{"text_format":"1","workbook":"xlsx","n_sheets":21,"sheets":["Welcome","Notes","Pivot % growth","Pivot_T","Service delivery impact","Performance impact","Pivot Infra impact","Pivot Personnel impact","Pivot HRBP","Data","Summary","SRT1","SRT2","SRT3","SRT4","Other reallocations","Reductions","Metadata","Sheet1","HRBP_Data","Tables"],"not_rendered":{"charts":16,"images":6,"macros":1,"external_links":2,"defined_names":132,"comments":0,"pivot_tables":5},"unopened":[],"bounds":{"document_bytes":16777216,"sheet_cells":100000,"rows_first":2000,"rows_last":500,"rows_between":2000,"halvings":0,"cell_chars":16384,"cell_head_chars":4096},"cells_cut":0,"cells_raw":0,"read":"whole","date_system":"1900"}

{"sheet":"Welcome","index":0,"n_rows":48,"n_cols":54,"rows_kept":48,"cut":false,"hidden":false,"merged":[[9,1,9,3],[9,5,9,6],[9,8,10,13],[6,2,6,5]]}
[null,null,null,null,null,null,null,null,null,null,null,null,null,null,null,null,null,null,null,null,null,null,null,null,null,null,26,{"$f":"INDEX(AB$4:AB$45,MATCH(MyVoteNo,$AA$4:$AA$45,0))","v":"Military Veterans"},{"$f":"INDEX(AC$4:AC$45,MATCH(MyVoteNo,$AA$4:$AA$45,0))","v":"Mashudu Bidzha"},null,{"$f":"INDEX(AE$4:AE$45,MATCH(MyVoteNo,$AA$4:$AA$45,0))","v":"Mashudu.Bidzha@treasury.gov.za"},{"$f":"INDEX(AF$4:AF$45,MATCH(MyVoteNo,$AA$4:$AA$45,0))","v":"Lesiba Ledwaba"},null,{"$f":"INDEX(AH$4:AH$45,MATCH(MyVoteNo,$AA$4:$AA$45,0))","v":"Lesiba.Ledwaba@treasury.gov.za"}]
[null,null,null,null,"MTEC Submission Workbook - 2024 MTEF",null,null,null,null,null,null,null,null,null,null,null,null,null,null,null,null,null,null,null,null,null,null,null,null,null,null,null,null,null,"Dept Ceilings",null,null,"CoE Ceilings",null,null,null,null,null,null,"Departmental Ceilings",{"$f":"SUM(AT4:AT45)","v":2112657589},2234053394,2337213784,null,null,"Compensation Ceilings",{"$f":"SUM(AZ4:AZ45)","v":193302074},202941875,212239489]
[null,null,null,null,null,null,null,null,null,null,null,null,null,null,null,null,null,null,null,null,null,null,null,null,null,"Dept Index No.","Vote No.","Department","Contact Person","Tel","email","Contact Person","Tel","email",{"$f":"MyYear5","v":"2024/25"},{"$f":"MyYear6","v":"2025/26"},{"$f":"MyYear7","v":"2026/27"},{"$f":"AI3","v":"2024/25"},"2025/26","2026/27",null,null,null,null,"Department",{"$f":"AI3","v":"2024/25"},"2025/26","2026/27",null,null,"Department",{"$f":"AI3","v":"2024/25"},"2025/26","2026/27"]
[null,null,null,null,null,null,null,null,null,null,null,null,null,null,null,null,null,null,null,null,null,null,null,null,null,1,29,"Agriculture, Land Reform and Rural Development","Bothwell Deka","(012) 395 6784","Bothwell.Deka@treasury.gov.za","Nico Likhethe","(012) 315 5558","Nico.Likhethe@treasury.gov.za",{"$f":"IFERROR(INDEX((AT$4:AT$45),MATCH($AB4,$AS$4:$AS$45,0)),0)","v":18106226},{"$f":"IFERROR(INDEX((AU$4:AU$45),MATCH($AB4,$AS$4:$AS$45,0)),0)","v":18884702},{"$f":"IFERROR(INDEX((AV$4:AV$45),MATCH($AB4,$AS$4:$AS$45,0)),0)","v":19689007},{"$f":"IFERROR(INDEX((AZ$4:AZ$45),MATCH($AB4,$AY$4:$AY$45,0)),0)","v":3973440},{"$f":"IFERROR(INDEX((BA$4:BA$45),MATCH($AB4,$AY$4:$AY$45,0)),0)","v":4150668},{"$f":"IFERROR(INDEX((BB$4:BB$45),MATCH($AB4,$AY$4:$AY$45,0)),0)","v":4340827},null,null,null,null,"Agriculture, Land Reform and Rural Development",18106226,18884702,19689007,null,null,"Agriculture, Land Reform and Rural Development",3973440,4150668,4340827]
[null,null,null,null,null,null,null,null,null,null,null,null,null,null,null,null,null,null,null,null,null,null,null,null,null,2,16,"Basic Education","Spencer Janari","(012) 315 5436","Spencer.Janari@treasury.gov.za","Shaneel Ragoo","(012) 315 5323","shaneel.ragoo@treasury.gov.za",33026402,34928673,36008078,582081,607658,635494,null,null,null,null,"Basic Education",33026402,34928673,36008078,null,null,"Basic Education",582081,607658,635494]
[null,null,null,null,null,null,null,null,null,null,null,null,null,null,null,null,null,null,null,null,null,null,null,null,null,3,42,"Centre for Public Service Innovation","George Tembo","(012) 315 5514","George.Tembo@treasury.gov.za","Uvadhya Singh","(012) 315 9030","Uvadhya.Singh@treasury.gov.za",{"$f":"IFERROR(INDEX((AT$4:AT$45),MATCH($AB6,$AS$4:$AS$45,0)),0)","v":47939},{"$f":"IFERROR(INDEX((AU$4:AU$45),MATCH($AB6,$AS$4:$AS$45,0)),0)","v":50071},{"$f":"IFERROR(INDEX((AV$4:AV$45),MATCH($AB6,$AS$4:$AS$45,0)),0)","v":52367},{"$f":"IFERROR(INDEX((AZ$4:AZ$45),MATCH($AB6,$AY$4:$AY$45,0)),0)","v":27704},{"$f":"IFERROR(INDEX((BA$4:BA$45),MATCH($AB6,$AY$4:$AY$45,0)),0)","v":28879},{"$f":"IFERROR(INDEX((BB$4:BB$45),MATCH($AB6,$AY$4:$AY$45,0)),0)","v":30202},null,null,null,null,"Centre for Public Service Innovation",47939,50071,52367,null,null,"Centre for Public Service Innovation",27704,28879,30202]
[null,{"$f":"\"VOTE \" &$AA$1&\": \"","v":"VOTE 26: "},{"$f":"MyDeptName","v":"Military Veterans"},null,null,null,null,null,null,null,null,null,null,null,null,null,null,null,null,null,null,null,null,null,null,4,21,"Civilian Secretariat for the Police Service","Velisubuhle Buti","(012) 395 6709","Velisubuhle.Buti@treasury.gov.za","Sesethu Mazoza","(012) 315 5106","Sesethu.Mazoza@treasury.gov.za",160964,168058,175762,113625,118605,124041,null,null,null,null,"Civilian Secretariat for the Police Service",160964,168058,175762,null,null,"Civilian Secretariat for the Police Service",113625,118605,124041]
[null,null,null,null,null,null,null,null,null,null,null,null,null,null,null,null,null,null,null,null,null,null,null,null,null,5,30,"Communications and Digital Technologies","Rezah Atcha","(012) 315 5287","Rezah.Atcha@treasury.gov.za","Keitumetse Motshegwe","(012) 395 6750","keitumetse.motshegwe@treasury.gov.za",4383604,2594540,2713406,315282,329082,344162,null,null,null,null,"Communications and Digital Technologies",4383604,2594540,2713406,null,null,"Communications and Digital Technologies",315282,329082,344162]
[null,null,null,null,null,null,null,null,null,null,null,null,null,null,null,null,null,null,null,null,null,null,null,null,null,6,3,"Cooperative Governance","Millicent Mulaudzi","(012) 395 6576","Millicent.Mulaudzi@treasury.gov.za","Iqbal Mahomed Alli","(012) 315 5809","Iqbal.Mahomed-Alli@treasury.gov.za",129717885,136475900,142728432,361869,377695,394999,null,null,null,null,"Cooperative Governance",129717885,136475900,142728432,null,null,"Cooperative Governance",361869,377695,394999]
[null,"Enquiries",null,null,null,"Department Contact Details ",null,null,"PLEASE CLICK THE BUTTON BELOW TO SUBMIT AN INPUT… (Note: Input can not be submitted if ceilings on the 'Data' sheet are exceeded.)",null,null,null,null,null,null,null,null,null,null,null,null,null,null,null,null,7,22,"Correctional Services","Elvis Ramafamba","(012) 315 5204","Elvis.Ramafamba@treasury.gov.za","Yolanda Matiwane","(012) 315 5012","Yolanda.Matiwane@treasury.gov.za",27182566,28387241,29687776,18128255,18927310,19794449,null,null,null,null,"Correctional Services",27182566,28387241,29687776,null,null,"Correctional Services",18128255,18927310,19794449]
[null,{"$f":"AC1","v":"Mashudu Bidzha"},null,{"$f":"AE1","v":"Mashudu.Bidzha@treasury.gov.za"},null,"Name:",null,null,null,null,null,null,null,null,null,null,null,null,null,null,null,null,null,null,null,8,23,"Defence","Mashudu Bidzha","(012) 315 5344","Mashudu.Bidzha@treasury.gov.za","Lesiba Ledwaba","(012) 315 6660","Lesiba.Ledwaba@treasury.gov.za",51045578,53004606,55432932,31744679,33142192,34660567,null,null,null,null,"Defence",51045578,53004606,55432932,null,null,"Defence",31744679,33142192,34660567]
[null,{"$f":"IF(AF1=B11,\"\",AF1)","v":"Lesiba Ledwaba"},null,{"$f":"IF(AH1=D11,\"\",AH1)","v":"Lesiba.Ledwaba@treasury.gov.za"},null,"Email:",null,null,null,null,null,null,null,null,null,null,null,null,null,null,null,null,null,null,null,9,31,"Employment and Labour","Judy Naidoo","(012) 315 5269","Judy.Naidoo@treasury.gov.za","Dennis Machobani","(012) 315 5269","Dennis.Machobani@treasury.gov.za",3902419,4097507,4285232,1472864,1537484,1607923,null,null,null,null,"Employment and Labour",3902419,4097507,4285232,null,null,"Employment and Labour",1472864,1537484,1607923]
[null,null,null,null,null,"Telephone number:",null,null,null,null,null,null,null,null,null,null,null,null,null,null,null,null,null,null,null,10,32,"Forestry, Fisheries and the Environment","Humbelani Ramuedzisi","(012) 315 5320","Humbelani.Ramuedzisi@treasury.gov.za","Ashley Ramasimu","(012) 315 5166","Ashley.Ramasimu@treasury.gov.za",9570290,9777840,10225800,2041818,2130887,2228513,null,null,null,null,"Forestry, Fisheries and the Environment",9570290,9777840,10225800,null,null,"Forestry, Fisheries and the Environment",2041818,2130887,2228513]
[null,null,null,null,null,"Mobile (optional):",null,null,null,null,null,null,null,null,null,null,null,null,null,null,null,null,null,null,null,11,4,"Government Communication and Information System","Mokgatla Tema","(012) 315 5948","Mokgatla.Tema@treasury.gov.za","Viwe Sobudula ","(012) 315 5015 ","Viwe.Sobudula@treasury.gov.za",782847,816429,853824,296596,309612,323793,null,null,null,null,"Government Communication and Information System",782847,816429,853824,null,null,"Government Communication and Information System",296596,309612,323793]
[null,null,null,null,null,null,null,null,null,null,null,null,null,null,null,null,null,null,null,null,null,null,null,null,null,12,18,"Health","Refiloe Thokoa","(012) 395 6559","Refiloe.thokoa@treasury.gov.za","Jonatan Daven","(012) 315 6711","Jonatan.Daven@treasury.gov.za ",62444328,65357869,68307055,710017,744332,778434,null,null,null,null,"Health",62444328,65357869,68307055,null,null,"Health",710017,744332,778434]
[null,null,null,null,null,null,null,null,null,null,null,null,null,null,null,null,null,null,null,null,null,null,null,null,null,13,17,"Higher Education and Training","Spencer Janari","(012) 315 5436","Spencer.Janari@treasury.gov.za","Barileng Khumisi","(012) 406 9069","barileng.khumisi@treasury.gov.za",145966089,151412052,158825532,11675667,12192156,12750727,null,null,null,null,"Higher Education and Training",145966089,151412052,158825532,null,null,"Higher Education and Training",11675667,12192156,12750727]
[null,null,null,null,null,null,null,null,null,null,null,null,null,null,null,null,null,null,null,null,null,null,null,null,null,14,5,"Home Affairs","Timothy Murwa","(012) 315 5002","Timothy.Murwa@treasury.gov.za","Pindi Masiso","(012) 315 5722","Pindi.Masiso@treasury.gov.za",10508917,11010949,11515404,3575257,3753374,3925331,null,null,null,null,"Home Affairs",10508917,11010949,11515404,null,null,"Home Affairs",3575257,3753374,3925331]
[null,null,null,null,null,null,null,null,null,null,null,null,null,null,null,null,null,null,null,null,null,null,null,null,null,15,33,"Human Settlements","Ulrike Britton ","(012) 315 5578","Ulrike.Britton@treasury.gov.za","Lindiwe Ngcongwane","(012) 315 5357","Lindiwe.Ngcongwane@treasury.gov.za",36292746,38074716,39966073,433287,452340,473064,null,null,null,null,"Human Settlements",36292746,38074716,39966073,null,null,"Human Settlements",433287,452340,473064]
[null,null,null,null,null,null,null,null,null,null,null,null,null,null,null,null,null,null,null,null,null,null,null,null,null,16,24,"Independent Police Investigative Directorate","Velisubuhle Buti","(012) 395 6709","Velisubuhle.Buti@treasury.gov.za","Sesethu Mazoza","(012) 315 5106","Sesethu.Mazoza@treasury.gov.za",380557,397413,415613,256869,268182,280468,null,null,null,null,"Independent Police Investigative Directorate",380557,397413,415613,null,null,"Independent Police Investigative Directorate",256869,268182,280468]
[null,null,null,null,null,null,null,null,null,null,null,null,null,null,null,null,null,null,null,null,null,null,null,null,null,17,6,"International Relations and Cooperation","George Tembo","(012) 315 5514","George.Tembo@treasury.gov.za","Mercy Mhlophe","(012) 315 5598","mercy.mhlope@treasury.gov.za",6992215,7302961,7637543,3169516,3201632,3348313,null,null,null,null,"International Relations and Cooperation",6992215,7302961,7637543,null,null,"International Relations and Cooperation",3169516,3201632,3348313]
[null,null,null,null,null,null,null,null,null,null,null,null,null,null,null,null,null,null,null,null,null,null,null,null,null,18,25,"Justice and Constitutional Development","Werner Krause","(012) 315 5211","Werner.Krause@treasury.gov.za","Siphamandla Khumalo","(012)315 5759","siphamandla.khumalo@treasury.gov.za",24105537,25158819,26311450,13516274,14115457,14762144,null,null,null,null,"Justice and Constitutional Development",24105537,25158819,26311450,null,null,"Justice and Constitutional Development",13516274,14115457,14762144]
[null,null,null,null,null,null,null,null,null,null,null,null,null,null,null,null,null,null,null,null,null,null,null,null,null,19,26,"Military Veterans","Mashudu Bidzha","(012) 315 5344","Mashudu.Bidzha@treasury.gov.za","Lesiba Ledwaba","(012) 315 6660","Lesiba.Ledwaba@treasury.gov.za",974630,1060016,1108574,140373,146550,153263,null,null,null,null,"Military Veterans",974630,1060016,1108574,null,null,"Military Veterans",140373,146550,153263]
[null,null,null,null,null,null,null,null,null,null,null,null,null,null,null,null,null,null,null,null,null,null,null,null,null,20,34,"Mineral Resources and Energy","Rezah Atcha","(012) 315 5287","Rezah.Atcha@treasury.gov.za","Nomagugu Madikane","(012) 315 5312","Nomagugu.Madikane@treasury.gov.za",11233275,11735638,12273293,1113586,1162586,1215852,null,null,null,null,"Mineral Resources and Energy",11233275,11735638,12273293,null,null,"Mineral Resources and Energy",1113586,1162586,1215852]
[null,null,null,null,null,null,null,null,null,null,null,null,null,null,null,null,null,null,null,null,null,null,null,null,null,21,7,"National School of Government","George Tembo","(012) 315 5514","George.Tembo@treasury.gov.za","Uvadhya Singh","(012) 315 9030","Uvadhya.Singh@treasury.gov.za",238762,249362,260790,63097,65890,68908,null,null,null,null,"National School of Government",238762,249362,260790,null,null,"National School of Government",63097,65890,68908]
[null,null,null,null,null,null,null,null,null,null,null,null,null,null,null,null,null,null,null,null,null,null,null,null,null,22,8,"National Treasury","Mokgatla Tema","(012) 315 5948","Mokgatla.Tema@treasury.gov.za","Rhoda Marais","(012) 315 5906","Rhoda.Marais@treasury.gov.za",1019501606,1084635490,1140308556,932436,973298,1017889,null,null,null,null,"National Treasury",1019501606,1084635490,1140308556,null,null,"National Treasury",932436,973298,1017889]
[null,null,null,null,null,null,null,null,null,null,null,null,null,null,null,null,null,null,null,null,null,null,null,null,null,23,27,"Office of the Chief Justice","Elvis Ramafamba","(012) 315 5204","Elvis.Ramafamba@treasury.gov.za","Keabetswe Matlwa","(012) 395 6678","Keabetswe.Matlwa@treasury.gov.za",2536188,2647639,2768935,1891577,1974159,2064604,null,null,null,null,"Office of the Chief Justice",2536188,2647639,2768935,null,null,"Office of the Chief Justice",1891577,1974159,2064604]
[null,null,null,null,null,null,null,null,null,null,null,null,null,null,null,null,null,null,null,null,null,null,null,null,null,24,2,"Parliament","Timothy Murwa","(012) 315 5002","Timothy.Murwa@treasury.gov.za","Maggy Makoka","(012) 315 5468","Maggy.Mokoka@Treasury.gov.za",3525104,3661084,3305912,1500186,1566258,1638015,null,null,null,null,"Parliament",3525104,3661084,3305912,null,null,"Parliament",1500186,1566258,1638015]
[null,null,null,null,null,null,null,null,null,null,null,null,null,null,null,null,null,null,null,null,null,null,null,null,null,25,9,"Planning, Monitoring and Evaluation","Mokgatla Tema","(012) 315 5948","Mokgatla.Tema@treasury.gov.za","Viwe Sobudula ","(012) 315 5015 ","Viwe.Sobudula@treasury.gov.za",496965,518973,542740,336866,351632,367740,null,null,null,null,"Planning, Monitoring and Evaluation",496965,518973,542740,null,null,"Planning, Monitoring and Evaluation",336866,351632,367740]
[null,null,null,null,null,null,null,null,null,null,null,null,null,null,null,null,null,null,null,null,null,null,null,null,null,26,28,"Police","Velisubuhle Buti","(012) 395 6709","Velisubuhle.Buti@treasury.gov.za","Sesethu Mazoza","(012) 315 5106","Sesethu.Mazoza@treasury.gov.za",109065348,114920516,120185505,85705405,90694708,94849807,null,null,null,null,"Police",109065348,114920516,120185505,null,null,"Police",85705405,90694708,94849807]
[null,null,null,null,null,null,null,null,null,null,null,null,null,null,null,null,null,null,null,null,null,null,null,null,null,27,10,"Public Enterprises","Isaac Kurasha","(012) 315 5213","Isaac.Kurasha@treasury.gov.za","Ntandokazi Makaula","(012) 395 6667","Ntandokazi.Makaula@treasury.gov.za",316354,330360,345495,193496,202002,211256,null,null,null,null,"Public Enterprises",316354,330360,345495,null,null,"Public Enterprises",193496,202002,211256]
[null,null,null,null,null,null,null,null,null,null,null,null,null,null,null,null,null,null,null,null,null,null,null,null,null,28,11,"Public Service and Administration","George Tembo","(012) 315 5514","George.Tembo@treasury.gov.za","Uvadhya Singh","(012) 315 9030","Uvadhya.Singh@treasury.gov.za",578023,603608,631259,313413,327169,342157,null,null,null,null,"Public Service and Administration",578023,603608,631259,null,null,"Public Service and Administration",313413,327169,342157]
[null,null,null,null,null,null,null,null,null,null,null,null,null,null,null,null,null,null,null,null,null,null,null,null,null,29,12,"Public Service Commission","George Tembo","(012) 315 5514","George.Tembo@treasury.gov.za","Mercy Mhlophe","(012) 315 5598","mercy.mhlope@treasury.gov.za",305021,318469,333064,229743,239818,250808,null,null,null,null,"Public Service Commission",305021,318469,333064,null,null,"Public Service Commission",229743,239818,250808]
[null,null,null,null,null,null,null,null,null,null,null,null,null,null,null,null,null,null,null,null,null,null,null,null,null,30,13,"Public Works and Infrastructure","George Tembo","(012) 315 5514","George.Tembo@treasury.gov.za","Mercy Mhlophe","(012) 315 5598","mercy.mhlope@treasury.gov.za",9167615,9569007,10007411,622362,640502,669847,null,null,null,null,"Public Works and Infrastructure",9167615,9569007,10007411,null,null,"Public Works and Infrastructure",622362,640502,669847]
[null,null,null,null,null,null,null,null,null,null,null,null,null,null,null,null,null,null,null,null,null,null,null,null,null,31,35,"Science and Innovation","Humbelani Ramuedzisi","(012) 315 5320","Humbelani.Ramuedzisi@treasury.gov.za","Ashley Ramasimu","(012) 315 5166","Ashley.Ramasimu@treasury.gov.za",10523679,10105023,10567964,386794,403758,422257,null,null,null,null,"Science and Innovation",10523679,10105023,10567964,null,null,"Science and Innovation",386794,403758,422257]
[null,null,null,null,null,null,null,null,null,null,null,null,null,null,null,null,null,null,null,null,null,null,null,null,null,32,36,"Small Business Development","Bothwell Deka","(012) 395 6784","Bothwell.Deka@treasury.gov.za","Nico Likhethe","(012) 315 5558","Nico.Likhethe@treasury.gov.za",2690264,2810645,2939411,251630,262759,274797,null,null,null,null,"Small Business Development",2690264,2810645,2939411,null,null,"Small Business Development",251630,262759,274797]
[null,null,null,null,null,null,null,null,null,null,null,null,null,null,null,null,null,null,null,null,null,null,null,null,null,33,19,"Social Development","Pebetse Maleka","(012) 315 5566","Pebetse.Maleka@treasury.gov.za","Yusuf Mayet","(012) 315 5189","Yusuf.Mayet@treasury.gov.za",242104513,258000337,269820387,536375,559929,585583,null,null,null,null,"Social Development",242104513,258000337,269820387,null,null,"Social Development",536375,559929,585583]
[null,null,null,null,null,null,null,null,null,null,null,null,null,null,null,null,null,null,null,null,null,null,null,null,null,34,37,"Sport, Arts and Culture","Judy Naidoo","(012) 315 5269","Judy.Naidoo@treasury.gov.za","Mabele Mdhluli","(012) 315 5573","Mabele.Mdhluli@treasury.gov.za",6160141,6435802,6730654,402042,419739,438971,null,null,null,null,"Sport, Arts and Culture",6160141,6435802,6730654,null,null,"Sport, Arts and Culture",402042,419739,438971]
[null,null,null,null,null,null,null,null,null,null,null,null,null,null,null,null,null,null,null,null,null,null,null,null,null,35,14,"Statistics South Africa","Mokgatla Tema","(012) 315 5948","Mokgatla.Tema@treasury.gov.za","Thobeka Mbonambi","(012) 395 6719","Thobeka.Mbonambi@treasury.gov.za",2823039,2948069,3083132,1732988,1809186,1892077,null,null,null,null,"Statistics South Africa",2823039,2948069,3083132,null,null,"Statistics South Africa",1732988,1809186,1892077]
[null,null,null,null,null,null,null,null,null,null,null,null,null,null,null,null,null,null,null,null,null,null,null,null,null,36,1,"The Presidency","Timothy Murwa","(012) 315 5002","Timothy.Murwa@treasury.gov.za","Maggy Mokoka","(012) 315 5468","Maggy.Mokoka@treasury.gov.za",652648,681399,712616,408025,425818,445327,null,null,null,null,"The Presidency",652648,681399,712616,null,null,"The Presidency",408025,425818,445327]
[null,null,null,null,null,null,null,null,null,null,null,null,null,null,null,null,null,null,null,null,null,null,null,null,null,37,38,"Tourism","Humbelani Ramuedzisi","(012) 315 5320","Humbelani.Ramuedzisi@treasury.gov.za","Ashley Ramasimu","(012) 315 5166","Ashley.Ramasimu@treasury.gov.za",2637187,2755030,2881247,390949,408134,426831,null,null,null,null,"Tourism",2637187,2755030,2881247,null,null,"Tourism",390949,408134,426831]
[null,null,null,null,null,null,null,null,null,null,null,null,null,null,null,null,null,null,null,null,null,null,null,null,null,38,39,"Trade, Industry and Competition","Isaac Kurasha","(012) 315 5213","Isaac.Kurasha@treasury.gov.za","Rudzani Sikhwari","(012) 315 5823","rudzani.sikhwari@treasury.gov.za",10588687,11061989,11568778,1081180,1128561,1180267,null,null,null,null,"Trade, Industry and Competition",10588687,11061989,11568778,null,null,"Trade, Industry and Competition",1081180,1128561,1180267]
[null,null,null,null,null,null,null,null,null,null,null,null,null,null,null,null,null,null,null,null,null,null,null,null,null,39,15,"Traditional Affairs","Millicent Mulaudzi","(012) 395 6576","Millicent.Mulaudzi@treasury.gov.za","Amanda Matutu","(012) 395 6786","Amanda.Matutu@treasury.gov.za",201250,209720,219328,101224,105440,110272,null,null,null,null,"Traditional Affairs",201250,209720,219328,null,null,"Traditional Affairs",101224,105440,110272]
[null,null,null,null,null,null,null,null,null,null,null,null,null,null,null,null,null,null,null,null,null,null,null,null,null,40,40,"Transport","Dumebi Ubogu","(012) 315 5077","Dumebi.Ubogu@treasury.gov.za","Luyolo Ntlangula ","(012) 315-5571","luyolo.ntangula@treasury.gov.za",86718488,94152020,95565466,571639,596766,624104,null,null,null,null,"Transport",86718488,94152020,95565466,null,null,"Transport",571639,596766,624104]
[null,null,null,null,null,null,null,null,null,null,null,null,null,null,null,null,null,null,null,null,null,null,null,null,null,41,41,"Water and Sanitation","Millicent Mulaudzi","(012) 395 6576","Millicent.Mulaudzi@treasury.gov.za","Iqbal Mahomed Alli","(012) 315 5809","Iqbal.Mahomed-Alli@treasury.gov.za",24180064,25884551,25324359,1869110,1951378,2040779,null,null,null,null,"Water and Sanitation",24180064,25884551,25324359,null,null,"Water and Sanitation",1869110,1951378,2040779]
[null,null,null,null,null,null,null,null,null,null,null,null,null,null,null,null,null,null,null,null,null,null,null,null,null,42,20,"Women, Youth and Persons with Disabilities","Pebetse Maleka","(012) 315 5566","Pebetse.Maleka@treasury.gov.za","Lindi Mzankomo","(012) 315 5256","Lindi.Mzankomo@treasury.gov.za",821629,858301,897622,132478,138290,144627,null,null,null,null,"Women, Youth and Persons with Disabilities",821629,858301,897622,null,null,"Women, Youth and Persons with Disabilities",132478,138290,144627]
[]
[]
[null,null,null,null,null,null,null,null,null,null,null,null,null,null,null,null,null,null,null,null,null,null,null,null,null,null,null,null,null,null,null,null,null,null,{"$f":"SUM(AI4:AI45)","v":2112657589},2234053394,2337213784,193302074,202941875,212239489]

{"sheet":"Notes","index":1,"n_rows":72,"n_cols":18,"rows_kept":72,"cut":false,"hidden":false,"merged":[[42,1,42,15]]}
[]
[]
[]
[]
[]
[]
[]
[]
[]
[]
[]
[]
[]
[]
[]
[]
[]
[]
[]
[]
[]
[]
[]
[]
[]
[]
[]
[]
[]
[]
[]
[]
[]
[]
[]
[]
[]
[]
[]
[]
[]
[null,"Link to 2024 MTEF Guidelines"]
[null,"http://www.treasury.gov.za/publications/guidelines/default.aspx"]
[]
[]
[]
[]
[]
[]
[]
[]
[]
[]
[]
[]
[]
[null,null,null,null,null,null,null,null,null,null,null,null,null,null,null,null,null,"Click \"Enable Content\""]
[]
[]
[]
[]
[]
[]
[]
[]
[]
[]
[]
[null,null,null,null,null,null,null,null,null,null,null,null,null,null,null,null,null,"Tick \"Ignore Privacy Levels\" box"]
[]
[]
[null,null,null,null,null,null,null,null,null,null,null,null,null,null,null,null,null,"Click \"Save\""]

{"sheet":"Pivot % growth","index":2,"n_rows":32,"n_cols":17,"rows_kept":32,"cut":false,"hidden":false,"merged":[]}
[]
[]
[]
[]
[]
[]
[]
[]
[]
[]
[]
[]
[]
[null,"Econ3","(All)"]
[]
[null,"Row Labels"," 2023/24 Baseline"," 2024/25 Revised baseline"," 2025/26 Revised baseline"," 2026/27 Revised baseline"," 2024/25 adjustment"," 2025/26 adjustment"," 2026/27 adjustment","% YoY 2024/25","% YoY 2025/26","% YoY 2026/27"," Ave Ann growth History"," Ave Ann growth MTEF"," 2024/25 % adjustment"," 2025/26 % adjustment"," 2026/27 % adjustment"]
[null,"Administration",135499,141722,148030,154806,0,0,0,4.5926538203233891E-2,4.4509673868559529E-2,4.5774505167871293E-2,1.8047862183183661E-3,4.540337943019046E-2,0,0,0]
[null,"Current payments",128886,135840,141967,148465,0,0,0,5.3954657604394551E-2,4.5104534746760905E-2,4.5771200349376873E-2,-4.175328304624637E-3,4.8269087514016373E-2,0,0,0]
[null,"Transfers and subsidies",0,0,0,0,0,0,0,0,0,0,-1,0,0,0,0]
[null,"Payments for capital assets",6613,5882,6063,6341,0,0,0,-0.11053984575835474,3.0771846310778672E-2,4.5851888504040872E-2,1.6736679780709931,-1.3902759446796087E-2,0,0,0]
[null,"Payments for financial assets",0,0,0,0,0,0,0,0,0,0,0,0,0,0,0]
[null,"Socioeconomic Support",542053,605288,669162,699821,0,0,0,0.11665833414813687,0.10552662534198598,4.5817006943012384E-2,0.34170438609206832,8.8884308450944083E-2,0,0,0]
[null,"Current payments",166980,175144,183090,191479,0,0,0,4.8892082884177679E-2,4.5368382588041767E-2,4.581899612212581E-2,0.1014903578863191,4.6691983575613216E-2,0,0,0]
[null,"Transfers and subsidies",371581,426702,483026,505156,0,0,0,0.14834181510895328,0.13199844387886639,4.5815339132883048E-2,0.55469577765932754,0.10778974079582171,0,0,0]
[null,"Payments for capital assets",3492,3442,3046,3186,0,0,0,-1.4318442153493649E-2,-0.11504938988959912,4.5961917268548813E-2,0.8017725575104715,-3.0106954074522463E-2,0,0,0]
[null,"Payments for financial assets",0,0,0,0,0,0,0,0,0,0,0,0,0,0,0]
[null,"Empowerment and Stakeholder Management",217152,227620,242824,253947,0,0,0,4.8205865016209826E-2,6.6795536420349633E-2,4.5806839521628895E-2,0.4579542807625181,5.3561158110417173E-2,0,0,0]
[null,"Current payments",130361,136211,142222,148735,0,0,0,4.4875384509170724E-2,4.4130062917091761E-2,4.5794602804066775E-2,0.32017459017560945,4.4933128322590443E-2,0,0,0]
[null,"Transfers and subsidies",71292,75469,83658,87491,0,0,0,5.8590024126129236E-2,0.10850812916561758,4.5817495039326861E-2,1.0278780160419592,7.0633579837627192E-2,0,0,0]
[null,"Payments for capital assets",15499,15940,16944,17721,0,0,0,2.8453448609587761E-2,6.2986198243412783E-2,4.5856940509914956E-2,2.3292887451705542,4.5670483237410409E-2,0,0,0]
[null,"Payments for financial assets",0,0,0,0,0,0,0,0,0,0,-1,0,0,0,0]
[null,"Grand Total",894704,974630,1060016,1108574,0,0,0,8.9332337845812626E-2,8.760863096764937E-2,4.5808742509547029E-2,0.27737567265082297,7.405973687214229E-2,0,0,0]

{"sheet":"Pivot_T","index":3,"n_rows":22,"n_cols":10,"rows_kept":22,"cut":false,"hidden":false,"merged":[]}
[]
[]
[]
[]
[]
[]
[]
[]
[]
[]
[null,"Econ4","(All)"]
[null,"Econ2","(All)"]
[null,"DOR","(All)"]
[null,"Econ3","(All)"]
[]
[null," Value","Column Labels"]
[null,null,"2023/24",null,"2024/25",null,"2025/26",null,"2026/27"]
[null,"Row Labels","Baseline","Revised baseline","Baseline","Revised baseline","Baseline","Revised baseline","Baseline","Revised baseline"]
[null,"Administration",135499,135499,141722,141722,148030,148030,154806,154806]
[null,"Socioeconomic Support",542053,542053,605288,605288,669162,669162,699821,699821]
[null,"Empowerment and Stakeholder Management",217152,217152,227620,227620,242824,242824,253947,253947]
[null,"Grand Total",894704,894704,974630,974630,1060016,1060016,1108574,1108574]

{"sheet":"Service delivery impact","index":4,"n_rows":17,"n_cols":5,"rows_kept":17,"cut":false,"hidden":false,"merged":[[14,1,14,14]]}
[]
[]
[]
[]
[]
[]
[]
[]
[]
[]
[]
[]
[]
[]
[null,"Note: Data in the table below is sourced from the individual SRT sheets. Any adjustments should be made on the SRT sheets. Ajustments made directly on this table will be over-written when the data is refreshed! …remember to refresh."]
[]
[null,"Impact area","Unit no","Unit name","Comment"]

{"sheet":"Performance impact","index":5,"n_rows":17,"n_cols":19,"rows_kept":17,"cut":false,"hidden":false,"merged":[[14,1,14,8]]}
[]
[]
[]
[]
[]
[]
[]
[]
[]
[]
[]
[]
[]
[]
[null,"Note: Data in the table below is sourced from the individual SRT sheets. Any adjustments should be made on the SRT sheets. Ajustments made directly on this table will be over-written when the data is refreshed!  …remember to refresh."]
[]
[null,"Impact area","Unit no","Unit name","Performance indicator","2023/24 Current performance","2023/24 Performance @ benchmark level","2023/24 Change","2024/25 Original target","2024/25 Revised target","2024/25 Change","2025/26 Original target","2025/26 Revised target","2025/26 Change","2026/27 Original target","2026/27 Revised target","2026/27 Change","Comment","Gov Priority"]

{"sheet":"Pivot Infra impact","index":6,"n_rows":20,"n_cols":10,"rows_kept":20,"cut":false,"hidden":false,"merged":[]}
[]
[]
[]
[]
[]
[]
[]
[]
[]
[]
[]
[]
[]
[null,"Impact area","(All)"]
[]
[null," Value","Column Labels"]
[null,null,"2023/24",null,"2024/25",null,"2025/26",null,"2026/27"]
[null,"Row Labels","Current Number","Change","Original amount","Change","Original amount","Change","Original amount","Change"]
[null,"(blank)",0,0,0,0,0,0,0,0]
[null,"Grand Total",0,0,0,0,0,0,0,0]

{"sheet":"Pivot Personnel impact","index":7,"n_rows":23,"n_cols":6,"rows_kept":23,"cut":false,"hidden":false,"merged":[]}
[]
[]
[]
[]
[]
[]
[]
[]
[]
[]
[]
[]
[]
[]
[]
[null," Value","Column Labels"]
[null,null,"2023/24","2024/25","2025/26","2026/27"]
[null,"Row Labels","Change in number","Change in number","Change in number","Change in number"]
[null,"Levels 01 - 06",0,0,0,0]
[null,"Levels 07 - 12",0,0,0,0]
[null,"Levels 13 - 16",0,0,0,0]
[null,"Other",0,0,0,0]
[null,"Grand Total",0,0,0,0]

{"sheet":"Pivot HRBP","index":8,"n_rows":22,"n_cols":8,"rows_kept":22,"cut":false,"hidden":false,"merged":[]}
[]
[]
[]
[]
[]
[]
[]
[]
[]
[]
[]
[null,"Salary level","(All)"]
[null,"Programme No","(All)"]
[]
[null," Number","Columns"]
[null,null,"2022/23"]
[null,"Row Labels","\nOnce-off Payments per person","Establishment: Number of funded posts additional to the establishment","FTE\nHeadcount","Total Annual Cost","Unit Costs","Establishment: Number of funded posts as at 31 March 2023"]
[null,"Levels 01 - 06",0,0,0,0,0,0]
[null,"Levels 07 - 12",0,0,0,0,0,0]
[null,"Levels 13 - 16",0,0,0,0,0,0]
[null,"Other",0,0,0,0,0,0]
[null,"Grand Total",0,0,0,0,0,0]

{"sheet":"Data","index":9,"n_rows":942,"n_cols":96,"rows_kept":942,"cut":false,"hidden":false,"merged":[[1,46,1,47],[2,46,2,47],[3,46,3,47],[4,46,4,47],[5,46,5,47]]}
[]
[null,null,null,null,null,null,null,null,null,null,null,null,null,null,null,null,null,null,null,null,null,null,null,null,null,null,null,null,null,null,null,null,null,null,null,null,null,null,null,null,null,null,null,null,null,null,"Spending review topics…"]
[null,null,null,null,null,null,null,null,null,null,null,null,null,null,null,null,null,null,null,null,null,null,null,null,null,null,null,null,null,null,null,null,null,null,null,null,null,null,null,null,null,null,null,null,null,1,"Spending review topic 1",null,null,null,null,null,null,null,null,null,null,null,null,null,null,null,null,null,null,null,null,null,null,null,null,null,null,null,null,null,null,null,null,null,null,null,null,null,null,null,null,null,null,null,null,null,null,{"$f":"COUNTIF(Dataset[2024/25 Revised baseline],\"<0\")","v":0},{"$f":"COUNTIF(Dataset[2025/26 Revised baseline],\"<0\")","v":0},{"$f":"COUNTIF(Dataset[2026/27 Revised baseline],\"<0\")","v":0}]
[null,null,null,null,null,null,null,null,null,null,null,null,null,null,null,null,null,null,null,null,null,null,null,null,null,null,null,null,null,null,null,null,null,null,null,null,null,null,null,null,null,null,null,null,null,2,"Spending review topic 2"]
[null,null,null,null,null,null,null,null,null,null,null,null,null,null,null,null,null,null,null,null,null,null,null,null,null,null,null,null,null,null,null,null,null,null,null,null,null,null,null,null,null,null,null,null,null,3,"Spending review topic 3"]
[null,null,null,null,null,null,null,null,null,null,null,null,null,null,null,null,null,null,null,null,null,null,null,null,null,null,null,null,null,null,null,null,null,null,null,null,null,null,null,null,null,null,null,null,null,4,"Spending review topic 4",null,null,null,null,null,null,null,null,null,null,null,null,null,null,null,null,null,null,null,null,null,null,null,null,null,null,null,null,null,null,null,null,null,null,null,null,null,null,null,null,null,null,null,null,null,null,{"$f":"MyYear5","v":"2024/25"},{"$f":"MyYear6","v":"2025/26"},{"$f":"MyYear7","v":"2026/27"}]
[]
[null,null,null,null,null,null,null,null,null,null,null,null,null,null,null,null,null,null,null,null,null,null,null,null,null,null,null,null,null,null,null,null,null,null,null,null,null,null,null,null,null,null,null,null,null,null,null,null,null,null,null,null,null,null,null,null,null,null,null,null,null,null,null,null,null,null,null,null,null,null,null,null,null,null,null,null,null,null,null,null,null,null,null,null,null,null,null,null,null,null,null,"Baseline ceiling:",null,{"$f":"INDEX(DeptCeiling,MATCH(MyVoteNo,VoteNoList,0),1)","v":974630},{"$f":"INDEX(DeptCeiling,MATCH(MyVoteNo,VoteNoList,0),2)","v":1060016},{"$f":"INDEX(DeptCeiling,MATCH(MyVoteNo,VoteNoList,0),3)","v":1108574}]
[null,null,null,null,null,null,null,null,null,null,null,null,null,null,null,null,null,null,null,null,null,null,null,null,null,null,null,null,null,null,null,null,null,null,null,null,null,null,null,null,null,null,null,null,null,null,null,null,null,null,null,null,null,null,null,null,null,null,null,null,null,null,null,null,null,null,null,null,null,null,null,null,null,null,null,null,null,null,null,null,null,null,null,null,null,null,null,null,null,null,null,"(Over)/Under",null,{"$f":"CP8-SUM(Dataset[2024/25 Revised baseline])","v":0},{"$f":"CQ8-SUM(Dataset[2025/26 Revised baseline])","v":0},{"$f":"CR8-SUM(Dataset[2026/27 Revised baseline])","v":0}]
[]
[null,null,null,null,null,null,null,null,null,null,null,null,null,null,null,null,null,null,null,null,null,null,null,null,null,null,null,null,null,null,null,null,null,null,null,null,null,null,null,null,null,null,null,null,null,null,null,null,null,null,null,null,null,null,null,null,null,null,null,null,null,null,null,null,null,null,null,null,null,null,null,null,null,null,null,null,null,null,null,null,null,null,null,null,null,null,null,null,null,null,null,"CoE ceiling:",null,{"$f":"INDEX(CoECeiling,MATCH(MyVoteNo,VoteNoList,0),1)","v":140373},{"$f":"INDEX(CoECeiling,MATCH(MyVoteNo,VoteNoList,0),2)","v":146550},{"$f":"INDEX(CoECeiling,MATCH(MyVoteNo,VoteNoList,0),3)","v":153263}]
[null,null,null,null,null,null,null,null,null,null,null,null,null,null,null,null,null,null,null,null,null,null,null,null,null,null,null,null,null,null,null,null,null,null,null,null,null,null,null,null,null,null,null,null,null,null,null,null,null,null,null,null,null,null,null,null,null,null,null,null,null,null,null,null,null,null,null,null,null,null,null,null,null,null,null,null,null,null,null,null,null,null,null,null,null,null,null,null,null,null,null,"(Over)/Under",null,{"$f":"CP11-SUMIF(Dataset[Econ3],\"Compensation of employees\",Dataset[2024/25 Revised baseline])","v":0},{"$f":"CQ11-SUMIF(Dataset[Econ3],\"Compensation of employees\",Dataset[2025/26 Revised baseline])","v":0},{"$f":"CR11-SUMIF(Dataset[Econ3],\"Compensation of employees\",Dataset[2026/27 Revised baseline])","v":0}]
[]
[]
[null,null,null,null,null,null,null,null,null,null,null,null,null,null,null,null,null,null,null,null,null,null,null,null,null,null,null,null,null,null,null,null,null,null,"2019/20","2020/21","2021/22","2022/23 Main appropriation","2022/23 Adjusted appropriation","2022/23 Revised estimate","2022/23 Preliminary outcome","2023/24 Baseline","2024/25 Baseline","2025/26 Baseline","2026/27 Baseline","2024/25 From - Spending review Topic 1","2025/26 From - Spending review Topic 1","2026/27 From - Spending review Topic 1","2024/25 To - Spending review Topic 1","2025/26 To - Spending review Topic 1","2026/27 To - Spending review Topic 1","2024/25 From - Spending review Topic 2","2025/26 From - Spending review Topic 2","2026/27 From - Spending review Topic 2","2024/25 To - Spending review Topic 2","2025/26 To - Spending review Topic 2","2026/27 To - Spending review Topic 2","2024/25 From - Spending review Topic 3","2025/26 From - Spending review Topic 3","2026/27 From - Spending review Topic 3","2024/25 To - Spending review Topic 3","2025/26 To - Spending review Topic 3","2026/27 To - Spending review Topic 3","2024/25 From - Spending review Topic 4","2025/26 From - Spending review Topic 4","2026/27 From - Spending review Topic 4","2024/25 To - Spending review Topic 4","2025/26 To - Spending review Topic 4","2026/27 To - Spending review Topic 4","2024/25 From - Other reallocations","2025/26 From - Other reallocations","2026/27 From - Other reallocations","2024/25 To - Other reallocations","2025/26 To - Other reallocations","2026/27 To - Other reallocations","2023/24 Reduction","2024/25 Reduction","2025/26 Reduction","2026/27 Reduction","2024/25 From - Total","2025/26 From - Total","2026/27 From - Total","2024/25 To - Total","2025/26 To - Total","2026/27 To - Total","2024/25 Total decrease","2025/26 Total decrease","2026/27 Total decrease","2023/24 Total change","2024/25 Total change","2025/26 Total change","2026/27 Total change","2023/24 Revised baseline","2024/25 Revised baseline","2025/26 Revised baseline","2026/27 Revised baseline"]
[null,null,null,null,null,null,null,null,null,null,null,null,null,null,null,null,null,null,null,null,null,null,null,null,null,null,null,null,null,null,null,null,null,"Subtotal:  ",{"$f":"SUBTOTAL(9,Dataset[2019/20])","v":477205},{"$f":"SUBTOTAL(9,Dataset[2020/21])","v":429263},{"$f":"SUBTOTAL(9,Dataset[2021/22])","v":515595},{"$f":"SUBTOTAL(9,Dataset[2022/23 Main appropriation])","v":666376},{"$f":"SUBTOTAL(9,Dataset[2022/23 Adjusted appropriation])","v":670032},{"$f":"SUBTOTAL(9,Dataset[2022/23 Revised estimate])","v":670032},{"$f":"SUBTOTAL(9,Dataset[2022/23 Preliminary outcome])","v":0},{"$f":"SUBTOTAL(9,Dataset[2023/24 Baseline])","v":894704},{"$f":"SUBTOTAL(9,Dataset[2024/25 Baseline])","v":974630},{"$f":"SUBTOTAL(9,Dataset[2025/26 Baseline])","v":1060016},{"$f":"SUBTOTAL(9,Dataset[2026/27 Baseline])","v":1108574},{"$f":"SUBTOTAL(9,Dataset[2024/25 From - Spending review Topic 1])","v":0},{"$f":"SUBTOTAL(9,Dataset[2025/26 From - Spending review Topic 1])","v":0},{"$f":"SUBTOTAL(9,Dataset[2026/27 From - Spending review Topic 1])","v":0},{"$f":"SUBTOTAL(9,Dataset[2024/25 To - Spending review Topic 1])","v":0},{"$f":"SUBTOTAL(9,Dataset[2025/26 To - Spending review Topic 1])","v":0},{"$f":"SUBTOTAL(9,Dataset[2026/27 To - Spending review Topic 1])","v":0},{"$f":"SUBTOTAL(9,Dataset[2024/25 From - Spending review Topic 2])","v":0},{"$f":"SUBTOTAL(9,Dataset[2025/26 From - Spending review Topic 2])","v":0},{"$f":"SUBTOTAL(9,Dataset[2026/27 From - Spending review Topic 2])","v":0},{"$f":"SUBTOTAL(9,Dataset[2024/25 To - Spending review Topic 2])","v":0},{"$f":"SUBTOTAL(9,Dataset[2025/26 To - Spending review Topic 2])","v":0},{"$f":"SUBTOTAL(9,Dataset[2026/27 To - Spending review Topic 2])","v":0},{"$f":"SUBTOTAL(9,Dataset[2024/25 From - Spending review Topic 3])","v":0},{"$f":"SUBTOTAL(9,Dataset[2025/26 From - Spending review Topic 3])","v":0},{"$f":"SUBTOTAL(9,Dataset[2026/27 From - Spending review Topic 3])","v":0},{"$f":"SUBTOTAL(9,Dataset[2024/25 To - Spending review Topic 3])","v":0},{"$f":"SUBTOTAL(9,Dataset[2025/26 To - Spending review Topic 3])","v":0},{"$f":"SUBTOTAL(9,Dataset[2026/27 To - Spending review Topic 3])","v":0},{"$f":"SUBTOTAL(9,Dataset[2024/25 From - Spending review Topic 4])","v":0},{"$f":"SUBTOTAL(9,Dataset[2025/26 From - Spending review Topic 4])","v":0},{"$f":"SUBTOTAL(9,Dataset[2026/27 From - Spending review Topic 4])","v":0},{"$f":"SUBTOTAL(9,Dataset[2024/25 To - Spending review Topic 4])","v":0},{"$f":"SUBTOTAL(9,Dataset[2025/26 To - Spending review Topic 4])","v":0},{"$f":"SUBTOTAL(9,Dataset[2026/27 To - Spending review Topic 4])","v":0},{"$f":"SUBTOTAL(9,Dataset[2024/25 From - Other reallocations])","v":0},{"$f":"SUBTOTAL(9,Dataset[2025/26 From - Other reallocations])","v":0},{"$f":"SUBTOTAL(9,Dataset[2026/27 From - Other reallocations])","v":0},{"$f":"SUBTOTAL(9,Dataset[2024/25 To - Other reallocations])","v":0},{"$f":"SUBTOTAL(9,Dataset[2025/26 To - Other reallocations])","v":0},{"$f":"SUBTOTAL(9,Dataset[2026/27 To - Other reallocations])","v":0},{"$f":"SUBTOTAL(9,Dataset[2023/24 Reduction])","v":0},{"$f":"SUBTOTAL(9,Dataset[2024/25 Reduction])","v":0},{"$f":"SUBTOTAL(9,Dataset[2025/26 Reduction])","v":0},{"$f":"SUBTOTAL(9,Dataset[2026/27 Reduction])","v":0},{"$f":"SUBTOTAL(9,Dataset[2024/25 From - Total])","v":0},{"$f":"SUBTOTAL(9,Dataset[2025/26 From - Total])","v":0},{"$f":"SUBTOTAL(9,Dataset[2026/27 From - Total])","v":0},{"$f":"SUBTOTAL(9,Dataset[2024/25 To - Total])","v":0},{"$f":"SUBTOTAL(9,Dataset[2025/26 To - Total])","v":0},{"$f":"SUBTOTAL(9,Dataset[2026/27 To - Total])","v":0},{"$f":"SUBTOTAL(9,Dataset[2024/25 Total decrease])","v":0},{"$f":"SUBTOTAL(9,Dataset[2025/26 Total decrease])","v":0},{"$f":"SUBTOTAL(9,Dataset[2026/27 Total decrease])","v":0},{"$f":"SUBTOTAL(9,Dataset[2023/24 Total change])","v":0},{"$f":"SUBTOTAL(9,Dataset[2024/25 Total change])","v":0},{"$f":"SUBTOTAL(9,Dataset[2025/26 Total change])","v":0},{"$f":"SUBTOTAL(9,Dataset[2026/27 Total change])","v":0},{"$f":"SUBTOTAL(9,Dataset[2023/24 Revised baseline])","v":894704},{"$f":"SUBTOTAL(9,Dataset[2024/25 Revised baseline])","v":974630},{"$f":"SUBTOTAL(9,Dataset[2025/26 Revised baseline])","v":1060016},{"$f":"SUBTOTAL(9,Dataset[2026/27 Revised baseline])","v":1108574}]
[null,null,null,null,null,null,null,null,null,null,null,null,null,null,null,null,null,null,null,null,null,null,null,null,null,null,null,null,null,null,null,null,null,null,null,null,null,null,null,null,null,null,null,null,null,{"$f":"\"…\"&SRTopic1","v":"…Spending review topic 1"},null,null,null,null,null,{"$f":"\"…\"&SRTopic2","v":"…Spending review topic 2"},null,null,null,null,null,{"$f":"\"…\"&SRTopic3","v":"…Spending review topic 3"},null,null,null,null,null,{"$f":"\"…\"&SRTopic4","v":"…Spending review topic 4"},null,null,null,null,null,"…Reallocations other than spending reviews",null,null,null,null,null,"…Reductions",null,null,null,null,null,null,null,null,null,null,null,null,null,null,null,null,"…red shaded cells below indicate negative budgets."]
["Combo_DoR","Combo_Econ","Budget Year","Process","Vote No. - N","Programme No. - N","Subprogramme No. - N","Index - N","Index - N2","Vote No.","Programme No.","Subprogramme No.","Index","Index2","UID","Econ1_IDn","Econ2_IDn","Econ3_IDn","Econ4_IDn","Econ5_IDn","Econ_UID","Province","Department","Programme","Subprogramme","Transfers and subsidies / Payments for financial assets detail","Econ1","Econ2","Econ3","Econ4","Econ5","Function group","Technical group","DOR","2019/20","2020/21","2021/22","2022/23 Main appropriation","2022/23 Adjusted appropriation","2022/23 Revised estimate","2022/23 Preliminary outcome","2023/24 Baseline","2024/25 Baseline","2025/26 Baseline","2026/27 Baseline","2024/25 From - Spending review Topic 1","2025/26 From - Spending review Topic 1","2026/27 From - Spending review Topic 1","2024/25 To - Spending review Topic 1","2025/26 To - Spending review Topic 1","2026/27 To - Spending review Topic 1","2024/25 From - Spending review Topic 2","2025/26 From - Spending review Topic 2","2026/27 From - Spending review Topic 2","2024/25 To - Spending review Topic 2","2025/26 To - Spending review Topic 2","2026/27 To - Spending review Topic 2","2024/25 From - Spending review Topic 3","2025/26 From - Spending review Topic 3","2026/27 From - Spending review Topic 3","2024/25 To - Spending review Topic 3","2025/26 To - Spending review Topic 3","2026/27 To - Spending review Topic 3","2024/25 From - Spending review Topic 4","2025/26 From - Spending review Topic 4","2026/27 From - Spending review Topic 4","2024/25 To - Spending review Topic 4","2025/26 To - Spending review Topic 4","2026/27 To - Spending review Topic 4","2024/25 From - Other reallocations","2025/26 From - Other reallocations","2026/27 From - Other reallocations","2024/25 To - Other reallocations","2025/26 To - Other reallocations","2026/27 To - Other reallocations","2023/24 Reduction","2024/25 Reduction","2025/26 Reduction","2026/27 Reduction","2024/25 From - Total","2025/26 From - Total","2026/27 From - Total","2024/25 To - Total","2025/26 To - Total","2026/27 To - Total","2024/25 Total decrease","2025/26 Total decrease","2026/27 Total decrease","2023/24 Total change","2024/25 Total change","2025/26 Total change","2026/27 Total change","2023/24 Revised baseline","2024/25 Revised baseline","2025/26 Revised baseline","2026/27 Revised baseline"]
["NAT|Non-transfer item","26|Salaries and wages","2024_25","MTEF2024",26,1,1,43888,1,"26","01","01","043888","000001","26|01|01","01","01","01","01","01","01|01|01|01|01","National","Military Veterans","Administration","Management","Non-transfer item","Current","Current payments","Compensation of employees","Salaries and wages","Salaries and wages","Peace and security","Defence and state security","NAT",7792,6735,7832,3116,9196,9196,0,4254,4396,4547,4755,null,null,null,null,null,null,null,null,null,null,null,null,null,null,null,null,null,null,null,null,null,null,null,null,null,null,null,null,null,null,null,null,null,null,{"$f":"Dataset[[#This Row],[2024/25 From - Spending review Topic 1]]+Dataset[[#This Row],[2024/25 From - Spending review Topic 2]]+Dataset[[#This Row],[2024/25 From - Spending review Topic 3]]+Dataset[[#This Row],[2024/25 From - Spending review Topic 4]]+Dataset[[#This Row],[2024/25 From - Other reallocations]]","v":0},{"$f":"Dataset[[#This Row],[2025/26 From - Spending review Topic 1]]+Dataset[[#This Row],[2025/26 From - Spending review Topic 2]]+Dataset[[#This Row],[2025/26 From - Spending review Topic 3]]+Dataset[[#This Row],[2025/26 From - Spending review Topic 4]]+Dataset[[#This Row],[2025/26 From - Other reallocations]]","v":0},{"$f":"Dataset[[#This Row],[2026/27 From - Spending review Topic 1]]+Dataset[[#This Row],[2026/27 From - Spending review Topic 2]]+Dataset[[#This Row],[2026/27 From - Spending review Topic 3]]+Dataset[[#This Row],[2026/27 From - Spending review Topic 4]]+Dataset[[#This Row],[2026/27 From - Other reallocations]]","v":0},{"$f":"Dataset[[#This Row],[2024/25 To - Spending review Topic 1]]+Dataset[[#This Row],[2024/25 To - Spending review Topic 2]]+Dataset[[#This Row],[2024/25 To - Spending review Topic 3]]+Dataset[[#This Row],[2024/25 To - Spending review Topic 4]]+Dataset[[#This Row],[2024/25 To - Other reallocations]]","v":0},{"$f":"Dataset[[#This Row],[2025/26 To - Spending review Topic 1]]+Dataset[[#This Row],[2025/26 To - Spending review Topic 2]]+Dataset[[#This Row],[2025/26 To - Spending review Topic 3]]+Dataset[[#This Row],[2025/26 To - Spending review Topic 4]]+Dataset[[#This Row],[2025/26 To - Other reallocations]]","v":0},{"$f":"Dataset[[#This Row],[2026/27 To - Spending review Topic 1]]+Dataset[[#This Row],[2026/27 To - Spending review Topic 2]]+Dataset[[#This Row],[2026/27 To - Spending review Topic 3]]+Dataset[[#This Row],[2026/27 To - Spending review Topic 4]]+Dataset[[#This Row],[2026/27 To - Other reallocations]]","v":0},{"$f":"Dataset[[#This Row],[2024/25 Reduction]]+Dataset[[#This Row],[2024/25 From - Total]]","v":0},{"$f":"Dataset[[#This Row],[2025/26 Reduction]]+Dataset[[#This Row],[2025/26 From - Total]]","v":0},{"$f":"Dataset[[#This Row],[2026/27 Reduction]]+Dataset[[#This Row],[2026/27 From - Total]]","v":0},{"$f":"Dataset[[#This Row],[2023/24 Reduction]]","v":0},{"$f":"SUM(Dataset[[#This Row],[2024/25 Reduction]],Dataset[[#This Row],[2024/25 From - Total]],Dataset[[#This Row],[2024/25 To - Total]])","v":0},{"$f":"SUM(Dataset[[#This Row],[2025/26 Reduction]],Dataset[[#This Row],[2025/26 From - Total]],Dataset[[#This Row],[2025/26 To - Total]])","v":0},{"$f":"SUM(Dataset[[#This Row],[2026/27 Reduction]],Dataset[[#This Row],[2026/27 From - Total]],Dataset[[#This Row],[2026/27 To - Total]])","v":0},{"$f":"Dataset[[#This Row],[2023/24 Baseline]]+Dataset[[#This Row],[2023/24 Total change]]","v":4254},{"$f":"Dataset[[#This Row],[2024/25 Baseline]]+Dataset[[#This Row],[2024/25 Total change]]","v":4396},{"$f":"Dataset[[#This Row],[2025/26 Baseline]]+Dataset[[#This Row],[2025/26 Total change]]","v":4547},{"$f":"Dataset[[#This Row],[2026/27 Baseline]]+Dataset[[#This Row],[2026/27 Total change]]","v":4755}]
["NAT|Non-transfer item","26|Social contributions","2024_25","MTEF2024",26,1,1,43889,2,"26","01","01","043889","000002","26|01|01","01","01","01","02","02","01|01|01|02|02","National","Military Veterans","Administration","Management","Non-transfer item","Current","Current payments","Compensation of employees","Social contributions","Social contributions","Peace and security","Defence and state security","NAT",650,668,864,1359,1359,1359,0,379,442,507,530,null,null,null,null,null,null,null,null,null,null,null,null,null,null,null,null,null,null,null,null,null,null,null,null,null,null,null,null,null,null,null,null,null,null,{"$f":"Dataset[[#This Row],[2024/25 From - Spending review Topic 1]]+Dataset[[#This Row],[2024/25 From - Spending review Topic 2]]+Dataset[[#This Row],[2024/25 From - Spending review Topic 3]]+Dataset[[#This Row],[2024/25 From - Spending review Topic 4]]+Dataset[[#This Row],[2024/25 From - Other reallocations]]","v":0},{"$f":"Dataset[[#This Row],[2025/26 From - Spending review Topic 1]]+Dataset[[#This Row],[2025/26 From - Spending review Topic 2]]+Dataset[[#This Row],[2025/26 From - Spending review Topic 3]]+Dataset[[#This Row],[2025/26 From - Spending review Topic 4]]+Dataset[[#This Row],[2025/26 From - Other reallocations]]","v":0},{"$f":"Dataset[[#This Row],[2026/27 From - Spending review Topic 1]]+Dataset[[#This Row],[2026/27 From - Spending review Topic 2]]+Dataset[[#This Row],[2026/27 From - Spending review Topic 3]]+Dataset[[#This Row],[2026/27 From - Spending review Topic 4]]+Dataset[[#This Row],[2026/27 From - Other reallocations]]","v":0},{"$f":"Dataset[[#This Row],[2024/25 To - Spending review Topic 1]]+Dataset[[#This Row],[2024/25 To - Spending review Topic 2]]+Dataset[[#This Row],[2024/25 To - Spending review Topic 3]]+Dataset[[#This Row],[2024/25 To - Spending review Topic 4]]+Dataset[[#This Row],[2024/25 To - Other reallocations]]","v":0},{"$f":"Dataset[[#This Row],[2025/26 To - Spending review Topic 1]]+Dataset[[#This Row],[2025/26 To - Spending review Topic 2]]+Dataset[[#This Row],[2025/26 To - Spending review Topic 3]]+Dataset[[#This Row],[2025/26 To - Spending review Topic 4]]+Dataset[[#This Row],[2025/26 To - Other reallocations]]","v":0},{"$f":"Dataset[[#This Row],[2026/27 To - Spending review Topic 1]]+Dataset[[#This Row],[2026/27 To - Spending review Topic 2]]+Dataset[[#This Row],[2026/27 To - Spending review Topic 3]]+Dataset[[#This Row],[2026/27 To - Spending review Topic 4]]+Dataset[[#This Row],[2026/27 To - Other reallocations]]","v":0},{"$f":"Dataset[[#This Row],[2024/25 Reduction]]+Dataset[[#This Row],[2024/25 From - Total]]","v":0},{"$f":"Dataset[[#This Row],[2025/26 Reduction]]+Dataset[[#This Row],[2025/26 From - Total]]","v":0},{"$f":"Dataset[[#This Row],[2026/27 Reduction]]+Dataset[[#This Row],[2026/27 From - Total]]","v":0},{"$f":"Dataset[[#This Row],[2023/24 Reduction]]","v":0},{"$f":"SUM(Dataset[[#This Row],[2024/25 Reduction]],Dataset[[#This Row],[2024/25 From - Total]],Dataset[[#This Row],[2024/25 To - Total]])","v":0},{"$f":"SUM(Dataset[[#This Row],[2025/26 Reduction]],Dataset[[#This Row],[2025/26 From - Total]],Dataset[[#This Row],[2025/26 To - Total]])","v":0},{"$f":"SUM(Dataset[[#This Row],[2026/27 Reduction]],Dataset[[#This Row],[2026/27 From - Total]],Dataset[[#This Row],[2026/27 To - Total]])","v":0},{"$f":"Dataset[[#This Row],[2023/24 Baseline]]+Dataset[[#This Row],[2023/24 Total change]]","v":379},{"$f":"Dataset[[#This Row],[2024/25 Baseline]]+Dataset[[#This Row],[2024/25 Total change]]","v":442},{"$f":"Dataset[[#This Row],[2025/26 Baseline]]+Dataset[[#This Row],[2025/26 Total change]]","v":507},{"$f":"Dataset[[#This Row],[2026/27 Baseline]]+Dataset[[#This Row],[2026/27 Total change]]","v":530}]
["NAT|Non-transfer item","26|Administrative fees","2024_25","MTEF2024",26,1,1,43890,3,"26","01","01","043890","000003","26|01|01","01","01","02","03","03","01|01|02|03|03","National","Military Veterans","Administration","Management","Non-transfer item","Current","Current payments","Goods and services","Administrative fees","Administrative fees","Peace and security","Defence and state security","NAT",115,86,17,0,0,0,0,350,450,550,575,null,null,null,null,null,null,null,null,null,null,null,null,null,null,null,null,null,null,null,null,null,null,null,null,null,null,null,null,null,null,null,null,null,null,{"$f":"Dataset[[#This Row],[2024/25 From - Spending review Topic 1]]+Dataset[[#This Row],[2024/25 From - Spending review Topic 2]]+Dataset[[#This Row],[2024/25 From - Spending review Topic 3]]+Dataset[[#This Row],[2024/25 From - Spending review Topic 4]]+Dataset[[#This Row],[2024/25 From - Other reallocations]]","v":0},{"$f":"Dataset[[#This Row],[2025/26 From - Spending review Topic 1]]+Dataset[[#This Row],[2025/26 From - Spending review Topic 2]]+Dataset[[#This Row],[2025/26 From - Spending review Topic 3]]+Dataset[[#This Row],[2025/26 From - Spending review Topic 4]]+Dataset[[#This Row],[2025/26 From - Other reallocations]]","v":0},{"$f":"Dataset[[#This Row],[2026/27 From - Spending review Topic 1]]+Dataset[[#This Row],[2026/27 From - Spending review Topic 2]]+Dataset[[#This Row],[2026/27 From - Spending review Topic 3]]+Dataset[[#This Row],[2026/27 From - Spending review Topic 4]]+Dataset[[#This Row],[2026/27 From - Other reallocations]]","v":0},{"$f":"Dataset[[#This Row],[2024/25 To - Spending review Topic 1]]+Dataset[[#This Row],[2024/25 To - Spending review Topic 2]]+Dataset[[#This Row],[2024/25 To - Spending review Topic 3]]+Dataset[[#This Row],[2024/25 To - Spending review Topic 4]]+Dataset[[#This Row],[2024/25 To - Other reallocations]]","v":0},{"$f":"Dataset[[#This Row],[2025/26 To - Spending review Topic 1]]+Dataset[[#This Row],[2025/26 To - Spending review Topic 2]]+Dataset[[#This Row],[2025/26 To - Spending review Topic 3]]+Dataset[[#This Row],[2025/26 To - Spending review Topic 4]]+Dataset[[#This Row],[2025/26 To - Other reallocations]]","v":0},{"$f":"Dataset[[#This Row],[2026/27 To - Spending review Topic 1]]+Dataset[[#This Row],[2026/27 To - Spending review Topic 2]]+Dataset[[#This Row],[2026/27 To - Spending review Topic 3]]+Dataset[[#This Row],[2026/27 To - Spending review Topic 4]]+Dataset[[#This Row],[2026/27 To - Other reallocations]]","v":0},{"$f":"Dataset[[#This Row],[2024/25 Reduction]]+Dataset[[#This Row],[2024/25 From - Total]]","v":0},{"$f":"Dataset[[#This Row],[2025/26 Reduction]]+Dataset[[#This Row],[2025/26 From - Total]]","v":0},{"$f":"Dataset[[#This Row],[2026/27 Reduction]]+Dataset[[#This Row],[2026/27 From - Total]]","v":0},{"$f":"Dataset[[#This Row],[2023/24 Reduction]]","v":0},{"$f":"SUM(Dataset[[#This Row],[2024/25 Reduction]],Dataset[[#This Row],[2024/25 From - Total]],Dataset[[#This Row],[2024/25 To - Total]])","v":0},{"$f":"SUM(Dataset[[#This Row],[2025/26 Reduction]],Dataset[[#This Row],[2025/26 From - Total]],Dataset[[#This Row],[2025/26 To - Total]])","v":0},{"$f":"SUM(Dataset[[#This Row],[2026/27 Reduction]],Dataset[[#This Row],[2026/27 From - Total]],Dataset[[#This Row],[2026/27 To - Total]])","v":0},{"$f":"Dataset[[#This Row],[2023/24 Baseline]]+Dataset[[#This Row],[2023/24 Total change]]","v":350},{"$f":"Dataset[[#This Row],[2024/25 Baseline]]+Dataset[[#This Row],[2024/25 Total change]]","v":450},{"$f":"Dataset[[#This Row],[2025/26 Baseline]]+Dataset[[#This Row],[2025/26 Total change]]","v":550},{"$f":"Dataset[[#This Row],[2026/27 Baseline]]+Dataset[[#This Row],[2026/27 Total change]]","v":575}]
["NAT|Non-transfer item","26|Advertising","2024_25","MTEF2024",26,1,1,43891,4,"26","01","01","043891","000004","26|01|01","01","01","02","04","04","01|01|02|04|04","National","Military Veterans","Administration","Management","Non-transfer item","Current","Current payments","Goods and services","Advertising","Advertising","Peace and security","Defence and state security","NAT",0,0,0,0,0,0,0,0,0,0,0,null,null,null,null,null,null,null,null,null,null,null,null,null,null,null,null,null,null,null,null,null,null,null,null,null,null,null,null,null,null,null,null,null,null,{"$f":"Dataset[[#This Row],[2024/25 From - Spending review Topic 1]]+Dataset[[#This Row],[2024/25 From - Spending review Topic 2]]+Dataset[[#This Row],[2024/25 From - Spending review Topic 3]]+Dataset[[#This Row],[2024/25 From - Spending review Topic 4]]+Dataset[[#This Row],[2024/25 From - Other reallocations]]","v":0},{"$f":"Dataset[[#This Row],[2025/26 From - Spending review Topic 1]]+Dataset[[#This Row],[2025/26 From - Spending review Topic 2]]+Dataset[[#This Row],[2025/26 From - Spending review Topic 3]]+Dataset[[#This Row],[2025/26 From - Spending review Topic 4]]+Dataset[[#This Row],[2025/26 From - Other reallocations]]","v":0},{"$f":"Dataset[[#This Row],[2026/27 From - Spending review Topic 1]]+Dataset[[#This Row],[2026/27 From - Spending review Topic 2]]+Dataset[[#This Row],[2026/27 From - Spending review Topic 3]]+Dataset[[#This Row],[2026/27 From - Spending review Topic 4]]+Dataset[[#This Row],[2026/27 From - Other reallocations]]","v":0},{"$f":"Dataset[[#This Row],[2024/25 To - Spending review Topic 1]]+Dataset[[#This Row],[2024/25 To - Spending review Topic 2]]+Dataset[[#This Row],[2024/25 To - Spending review Topic 3]]+Dataset[[#This Row],[2024/25 To - Spending review Topic 4]]+Dataset[[#This Row],[2024/25 To - Other reallocations]]","v":0},{"$f":"Dataset[[#This Row],[2025/26 To - Spending review Topic 1]]+Dataset[[#This Row],[2025/26 To - Spending review Topic 2]]+Dataset[[#This Row],[2025/26 To - Spending review Topic 3]]+Dataset[[#This Row],[2025/26 To - Spending review Topic 4]]+Dataset[[#This Row],[2025/26 To - Other reallocations]]","v":0},{"$f":"Dataset[[#This Row],[2026/27 To - Spending review Topic 1]]+Dataset[[#This Row],[2026/27 To - Spending review Topic 2]]+Dataset[[#This Row],[2026/27 To - Spending review Topic 3]]+Dataset[[#This Row],[2026/27 To - Spending review Topic 4]]+Dataset[[#This Row],[2026/27 To - Other reallocations]]","v":0},{"$f":"Dataset[[#This Row],[2024/25 Reduction]]+Dataset[[#This Row],[2024/25 From - Total]]","v":0},{"$f":"Dataset[[#This Row],[2025/26 Reduction]]+Dataset[[#This Row],[2025/26 From - Total]]","v":0},{"$f":"Dataset[[#This Row],[2026/27 Reduction]]+Dataset[[#This Row],[2026/27 From - Total]]","v":0},{"$f":"Dataset[[#This Row],[2023/24 Reduction]]","v":0},{"$f":"SUM(Dataset[[#This Row],[2024/25 Reduction]],Dataset[[#This Row],[2024/25 From - Total]],Dataset[[#This Row],[2024/25 To - Total]])","v":0},{"$f":"SUM(Dataset[[#This Row],[2025/26 Reduction]],Dataset[[#This Row],[2025/26 From - Total]],Dataset[[#This Row],[2025/26 To - Total]])","v":0},{"$f":"SUM(Dataset[[#This Row],[2026/27 Reduction]],Dataset[[#This Row],[2026/27 From - Total]],Dataset[[#This Row],[2026/27 To - Total]])","v":0},{"$f":"Dataset[[#This Row],[2023/24 Baseline]]+Dataset[[#This Row],[2023/24 Total change]]","v":0},{"$f":"Dataset[[#This Row],[2024/25 Baseline]]+Dataset[[#This Row],[2024/25 Total change]]","v":0},{"$f":"Dataset[[#This Row],[2025/26 Baseline]]+Dataset[[#This Row],[2025/26 Total change]]","v":0},{"$f":"Dataset[[#This Row],[2026/27 Baseline]]+Dataset[[#This Row],[2026/27 Total change]]","v":0}]
["NAT|Non-transfer item","26|Minor assets","2024_25","MTEF2024",26,1,1,43892,5,"26","01","01","043892","000005","26|01|01","01","01","02","05","05","01|01|02|05|05","National","Military Veterans","Administration","Management","Non-transfer item","Current","Current payments","Goods and services","Minor assets","Minor assets","Peace and security","Defence and state security","NAT",2,0,7,37,37,37,0,36,39,41,43,null,null,null,null,null,null,null,null,null,null,null,null,null,null,null,null,null,null,null,null,null,null,null,null,null,null,null,null,null,null,null,null,null,null,{"$f":"Dataset[[#This Row],[2024/25 From - Spending review Topic 1]]+Dataset[[#This Row],[2024/25 From - Spending review Topic 2]]+Dataset[[#This Row],[2024/25 From - Spending review Topic 3]]+Dataset[[#This Row],[2024/25 From - Spending review Topic 4]]+Dataset[[#This Row],[2024/25 From - Other reallocations]]","v":0},{"$f":"Dataset[[#This Row],[2025/26 From - Spending review Topic 1]]+Dataset[[#This Row],[2025/26 From - Spending review Topic 2]]+Dataset[[#This Row],[2025/26 From - Spending review Topic 3]]+Dataset[[#This Row],[2025/26 From - Spending review Topic 4]]+Dataset[[#This Row],[2025/26 From - Other reallocations]]","v":0},{"$f":"Dataset[[#This Row],[2026/27 From - Spending review Topic 1]]+Dataset[[#This Row],[2026/27 From - Spending review Topic 2]]+Dataset[[#This Row],[2026/27 From - Spending review Topic 3]]+Dataset[[#This Row],[2026/27 From - Spending review Topic 4]]+Dataset[[#This Row],[2026/27 From - Other reallocations]]","v":0},{"$f":"Dataset[[#This Row],[2024/25 To - Spending review Topic 1]]+Dataset[[#This Row],[2024/25 To - Spending review Topic 2]]+Dataset[[#This Row],[2024/25 To - Spending review Topic 3]]+Dataset[[#This Row],[2024/25 To - Spending review Topic 4]]+Dataset[[#This Row],[2024/25 To - Other reallocations]]","v":0},{"$f":"Dataset[[#This Row],[2025/26 To - Spending review Topic 1]]+Dataset[[#This Row],[2025/26 To - Spending review Topic 2]]+Dataset[[#This Row],[2025/26 To - Spending review Topic 3]]+Dataset[[#This Row],[2025/26 To - Spending review Topic 4]]+Dataset[[#This Row],[2025/26 To - Other reallocations]]","v":0},{"$f":"Dataset[[#This Row],[2026/27 To - Spending review Topic 1]]+Dataset[[#This Row],[2026/27 To - Spending review Topic 2]]+Dataset[[#This Row],[2026/27 To - Spending review Topic 3]]+Dataset[[#This Row],[2026/27 To - Spending review Topic 4]]+Dataset[[#This Row],[2026/27 To - Other reallocations]]","v":0},{"$f":"Dataset[[#This Row],[2024/25 Reduction]]+Dataset[[#This Row],[2024/25 From - Total]]","v":0},{"$f":"Dataset[[#This Row],[2025/26 Reduction]]+Dataset[[#This Row],[2025/26 From - Total]]","v":0},{"$f":"Dataset[[#This Row],[2026/27 Reduction]]+Dataset[[#This Row],[2026/27 From - Total]]","v":0},{"$f":"Dataset[[#This Row],[2023/24 Reduction]]","v":0},{"$f":"SUM(Dataset[[#This Row],[2024/25 Reduction]],Dataset[[#This Row],[2024/25 From - Total]],Dataset[[#This Row],[2024/25 To - Total]])","v":0},{"$f":"SUM(Dataset[[#This Row],[2025/26 Reduction]],Dataset[[#This Row],[2025/26 From - Total]],Dataset[[#This Row],[2025/26 To - Total]])","v":0},{"$f":"SUM(Dataset[[#This Row],[2026/27 Reduction]],Dataset[[#This Row],[2026/27 From - Total]],Dataset[[#This Row],[2026/27 To - Total]])","v":0},{"$f":"Dataset[[#This Row],[2023/24 Baseline]]+Dataset[[#This Row],[2023/24 Total change]]","v":36},{"$f":"Dataset[[#This Row],[2024/25 Baseline]]+Dataset[[#This Row],[2024/25 Total change]]","v":39},{"$f":"Dataset[[#This Row],[2025/26 Baseline]]+Dataset[[#This Row],[2025/26 Total change]]","v":41},{"$f":"Dataset[[#This Row],[2026/27 Baseline]]+Dataset[[#This Row],[2026/27 Total change]]","v":43}]
["NAT|Non-transfer item","26|Audit costs: External","2024_25","MTEF2024",26,1,1,43893,6,"26","01","01","043893","000006","26|01|01","01","01","02","06","06","01|01|02|06|06","National","Military Veterans","Administration","Management","Non-transfer item","Current","Current payments","Goods and services","Audit costs: External","Audit costs: External","Peace and security","Defence and state security","NAT",0,0,0,0,0,0,0,0,0,0,0,null,null,null,null,null,null,null,null,null,null,null,null,null,null,null,null,null,null,null,null,null,null,null,null,null,null,null,null,null,null,null,null,null,null,{"$f":"Dataset[[#This Row],[2024/25 From - Spending review Topic 1]]+Dataset[[#This Row],[2024/25 From - Spending review Topic 2]]+Dataset[[#This Row],[2024/25 From - Spending review Topic 3]]+Dataset[[#This Row],[2024/25 From - Spending review Topic 4]]+Dataset[[#This Row],[2024/25 From - Other reallocations]]","v":0},{"$f":"Dataset[[#This Row],[2025/26 From - Spending review Topic 1]]+Dataset[[#This Row],[2025/26 From - Spending review Topic 2]]+Dataset[[#This Row],[2025/26 From - Spending review Topic 3]]+Dataset[[#This Row],[2025/26 From - Spending review Topic 4]]+Dataset[[#This Row],[2025/26 From - Other reallocations]]","v":0},{"$f":"Dataset[[#This Row],[2026/27 From - Spending review Topic 1]]+Dataset[[#This Row],[2026/27 From - Spending review Topic 2]]+Dataset[[#This Row],[2026/27 From - Spending review Topic 3]]+Dataset[[#This Row],[2026/27 From - Spending review Topic 4]]+Dataset[[#This Row],[2026/27 From - Other reallocations]]","v":0},{"$f":"Dataset[[#This Row],[2024/25 To - Spending review Topic 1]]+Dataset[[#This Row],[2024/25 To - Spending review Topic 2]]+Dataset[[#This Row],[2024/25 To - Spending review Topic 3]]+Dataset[[#This Row],[2024/25 To - Spending review Topic 4]]+Dataset[[#This Row],[2024/25 To - Other reallocations]]","v":0},{"$f":"Dataset[[#This Row],[2025/26 To - Spending review Topic 1]]+Dataset[[#This Row],[2025/26 To - Spending review Topic 2]]+Dataset[[#This Row],[2025/26 To - Spending review Topic 3]]+Dataset[[#This Row],[2025/26 To - Spending review Topic 4]]+Dataset[[#This Row],[2025/26 To - Other reallocations]]","v":0},{"$f":"Dataset[[#This Row],[2026/27 To - Spending review Topic 1]]+Dataset[[#This Row],[2026/27 To - Spending review Topic 2]]+Dataset[[#This Row],[2026/27 To - Spending review Topic 3]]+Dataset[[#This Row],[2026/27 To - Spending review Topic 4]]+Dataset[[#This Row],[2026/27 To - Other reallocations]]","v":0},{"$f":"Dataset[[#This Row],[2024/25 Reduction]]+Dataset[[#This Row],[2024/25 From - Total]]","v":0},{"$f":"Dataset[[#This Row],[2025/26 Reduction]]+Dataset[[#This Row],[2025/26 From - Total]]","v":0},{"$f":"Dataset[[#This Row],[2026/27 Reduction]]+Dataset[[#This Row],[2026/27 From - Total]]","v":0},{"$f":"Dataset[[#This Row],[2023/24 Reduction]]","v":0},{"$f":"SUM(Dataset[[#This Row],[2024/25 Reduction]],Dataset[[#This Row],[2024/25 From - Total]],Dataset[[#This Row],[2024/25 To - Total]])","v":0},{"$f":"SUM(Dataset[[#This Row],[2025/26 Reduction]],Dataset[[#This Row],[2025/26 From - Total]],Dataset[[#This Row],[2025/26 To - Total]])","v":0},{"$f":"SUM(Dataset[[#This Row],[2026/27 Reduction]],Dataset[[#This Row],[2026/27 From - Total]],Dataset[[#This Row],[2026/27 To - Total]])","v":0},{"$f":"Dataset[[#This Row],[2023/24 Baseline]]+Dataset[[#This Row],[2023/24 Total change]]","v":0},{"$f":"Dataset[[#This Row],[2024/25 Baseline]]+Dataset[[#This Row],[2024/25 Total change]]","v":0},{"$f":"Dataset[[#This Row],[2025/26 Baseline]]+Dataset[[#This Row],[2025/26 Total change]]","v":0},{"$f":"Dataset[[#This Row],[2026/27 Baseline]]+Dataset[[#This Row],[2026/27 Total change]]","v":0}]
["NAT|Non-transfer item","26|Bursaries: Employees","2024_25","MTEF2024",26,1,1,43894,7,"26","01","01","043894","000007","26|01|01","01","01","02","07","07","01|01|02|07|07","National","Military Veterans","Administration","Management","Non-transfer item","Current","Current payments","Goods and services","Bursaries: Employees","Bursaries: Employees","Peace and security","Defence and state security","NAT",0,0,0,0,0,0,0,0,0,0,0,null,null,null,null,null,null,null,null,null,null,null,null,null,null,null,null,null,null,null,null,null,null,null,null,null,null,null,null,null,null,null,null,null,null,{"$f":"Dataset[[#This Row],[2024/25 From - Spending review Topic 1]]+Dataset[[#This Row],[2024/25 From - Spending review Topic 2]]+Dataset[[#This Row],[2024/25 From - Spending review Topic 3]]+Dataset[[#This Row],[2024/25 From - Spending review Topic 4]]+Dataset[[#This Row],[2024/25 From - Other reallocations]]","v":0},{"$f":"Dataset[[#This Row],[2025/26 From - Spending review Topic 1]]+Dataset[[#This Row],[2025/26 From - Spending review Topic 2]]+Dataset[[#This Row],[2025/26 From - Spending review Topic 3]]+Dataset[[#This Row],[2025/26 From - Spending review Topic 4]]+Dataset[[#This Row],[2025/26 From - Other reallocations]]","v":0},{"$f":"Dataset[[#This Row],[2026/27 From - Spending review Topic 1]]+Dataset[[#This Row],[2026/27 From - Spending review Topic 2]]+Dataset[[#This Row],[2026/27 From - Spending review Topic 3]]+Dataset[[#This Row],[2026/27 From - Spending review Topic 4]]+Dataset[[#This Row],[2026/27 From - Other reallocations]]","v":0},{"$f":"Dataset[[#This Row],[2024/25 To - Spending review Topic 1]]+Dataset[[#This Row],[2024/25 To - Spending review Topic 2]]+Dataset[[#This Row],[2024/25 To - Spending review Topic 3]]+Dataset[[#This Row],[2024/25 To - Spending review Topic 4]]+Dataset[[#This Row],[2024/25 To - Other reallocations]]","v":0},{"$f":"Dataset[[#This Row],[2025/26 To - Spending review Topic 1]]+Dataset[[#This Row],[2025/26 To - Spending review Topic 2]]+Dataset[[#This Row],[2025/26 To - Spending review Topic 3]]+Dataset[[#This Row],[2025/26 To - Spending review Topic 4]]+Dataset[[#This Row],[2025/26 To - Other reallocations]]","v":0},{"$f":"Dataset[[#This Row],[2026/27 To - Spending review Topic 1]]+Dataset[[#This Row],[2026/27 To - Spending review Topic 2]]+Dataset[[#This Row],[2026/27 To - Spending review Topic 3]]+Dataset[[#This Row],[2026/27 To - Spending review Topic 4]]+Dataset[[#This Row],[2026/27 To - Other reallocations]]","v":0},{"$f":"Dataset[[#This Row],[2024/25 Reduction]]+Dataset[[#This Row],[2024/25 From - Total]]","v":0},{"$f":"Dataset[[#This Row],[2025/26 Reduction]]+Dataset[[#This Row],[2025/26 From - Total]]","v":0},{"$f":"Dataset[[#This Row],[2026/27 Reduction]]+Dataset[[#This Row],[2026/27 From - Total]]","v":0},{"$f":"Dataset[[#This Row],[2023/24 Reduction]]","v":0},{"$f":"SUM(Dataset[[#This Row],[2024/25 Reduction]],Dataset[[#This Row],[2024/25 From - Total]],Dataset[[#This Row],[2024/25 To - Total]])","v":0},{"$f":"SUM(Dataset[[#This Row],[2025/26 Reduction]],Dataset[[#This Row],[2025/26 From - Total]],Dataset[[#This Row],[2025/26 To - Total]])","v":0},{"$f":"SUM(Dataset[[#This Row],[2026/27 Reduction]],Dataset[[#This Row],[2026/27 From - Total]],Dataset[[#This Row],[2026/27 To - Total]])","v":0},{"$f":"Dataset[[#This Row],[2023/24 Baseline]]+Dataset[[#This Row],[2023/24 Total change]]","v":0},{"$f":"Dataset[[#This Row],[2024/25 Baseline]]+Dataset[[#This Row],[2024/25 Total change]]","v":0},{"$f":"Dataset[[#This Row],[2025/26 Baseline]]+Dataset[[#This Row],[2025/26 Total change]]","v":0},{"$f":"Dataset[[#This Row],[2026/27 Baseline]]+Dataset[[#This Row],[2026/27 Total change]]","v":0}]
["NAT|Non-transfer item","26|Catering: Departmental activities","2024_25","MTEF2024",26,1,1,43895,8,"26","01","01","043895","000008","26|01|01","01","01","02","08","08","01|01|02|08|08","National","Military Veterans","Administration","Management","Non-transfer item","Current","Current payments","Goods and services","Catering: Departmental activities","Catering: Departmental activities","Peace and security","Defence and state security","NAT",181,16,0,15,21,21,0,365,395,416,435,null,null,null,null,null,null,null,null,null,null,null,null,null,null,null,null,null,null,null,null,null,null,null,null,null,null,null,null,null,null,null,null,null,null,{"$f":"Dataset[[#This Row],[2024/25 From - Spending review Topic 1]]+Dataset[[#This Row],[2024/25 From - Spending review Topic 2]]+Dataset[[#This Row],[2024/25 From - Spending review Topic 3]]+Dataset[[#This Row],[2024/25 From - Spending review Topic 4]]+Dataset[[#This Row],[2024/25 From - Other reallocations]]","v":0},{"$f":"Dataset[[#This Row],[2025/26 From - Spending review Topic 1]]+Dataset[[#This Row],[2025/26 From - Spending review Topic 2]]+Dataset[[#This Row],[2025/26 From - Spending review Topic 3]]+Dataset[[#This Row],[2025/26 From - Spending review Topic 4]]+Dataset[[#This Row],[2025/26 From - Other reallocations]]","v":0},{"$f":"Dataset[[#This Row],[2026/27 From - Spending review Topic 1]]+Dataset[[#This Row],[2026/27 From - Spending review Topic 2]]+Dataset[[#This Row],[2026/27 From - Spending review Topic 3]]+Dataset[[#This Row],[2026/27 From - Spending review Topic 4]]+Dataset[[#This Row],[2026/27 From - Other reallocations]]","v":0},{"$f":"Dataset[[#This Row],[2024/25 To - Spending review Topic 1]]+Dataset[[#This Row],[2024/25 To - Spending review Topic 2]]+Dataset[[#This Row],[2024/25 To - Spending review Topic 3]]+Dataset[[#This Row],[2024/25 To - Spending review Topic 4]]+Dataset[[#This Row],[2024/25 To - Other reallocations]]","v":0},{"$f":"Dataset[[#This Row],[2025/26 To - Spending review Topic 1]]+Dataset[[#This Row],[2025/26 To - Spending review Topic 2]]+Dataset[[#This Row],[2025/26 To - Spending review Topic 3]]+Dataset[[#This Row],[2025/26 To - Spending review Topic 4]]+Dataset[[#This Row],[2025/26 To - Other reallocations]]","v":0},{"$f":"Dataset[[#This Row],[2026/27 To - Spending review Topic 1]]+Dataset[[#This Row],[2026/27 To - Spending review Topic 2]]+Dataset[[#This Row],[2026/27 To - Spending review Topic 3]]+Dataset[[#This Row],[2026/27 To - Spending review Topic 4]]+Dataset[[#This Row],[2026/27 To - Other reallocations]]","v":0},{"$f":"Dataset[[#This Row],[2024/25 Reduction]]+Dataset[[#This Row],[2024/25 From - Total]]","v":0},{"$f":"Dataset[[#This Row],[2025/26 Reduction]]+Dataset[[#This Row],[2025/26 From - Total]]","v":0},{"$f":"Dataset[[#This Row],[2026/27 Reduction]]+Dataset[[#This Row],[2026/27 From - Total]]","v":0},{"$f":"Dataset[[#This Row],[2023/24 Reduction]]","v":0},{"$f":"SUM(Dataset[[#This Row],[2024/25 Reduction]],Dataset[[#This Row],[2024/25 From - Total]],Dataset[[#This Row],[2024/25 To - Total]])","v":0},{"$f":"SUM(Dataset[[#This Row],[2025/26 Reduction]],Dataset[[#This Row],[2025/26 From - Total]],Dataset[[#This Row],[2025/26 To - Total]])","v":0},{"$f":"SUM(Dataset[[#This Row],[2026/27 Reduction]],Dataset[[#This Row],[2026/27 From - Total]],Dataset[[#This Row],[2026/27 To - Total]])","v":0},{"$f":"Dataset[[#This Row],[2023/24 Baseline]]+Dataset[[#This Row],[2023/24 Total change]]","v":365},{"$f":"Dataset[[#This Row],[2024/25 Baseline]]+Dataset[[#This Row],[2024/25 Total change]]","v":395},{"$f":"Dataset[[#This Row],[2025/26 Baseline]]+Dataset[[#This Row],[2025/26 Total change]]","v":416},{"$f":"Dataset[[#This Row],[2026/27 Baseline]]+Dataset[[#This Row],[2026/27 Total change]]","v":435}]
["NAT|Non-transfer item","26|Communication (G&S)","2024_25","MTEF2024",26,1,1,43896,9,"26","01","01","043896","000009","26|01|01","01","01","02","09","09","01|01|02|09|09","National","Military Veterans","Administration","Management","Non-transfer item","Current","Current payments","Goods and services","Communication (G&S)","Communication (G&S)","Peace and security","Defence and state security","NAT",2,0,0,0,0,0,0,0,0,0,0,null,null,null,null,null,null,null,null,null,null,null,null,null,null,null,null,null,null,null,null,null,null,null,null,null,null,null,null,null,null,null,null,null,null,{"$f":"Dataset[[#This Row],[2024/25 From - Spending review Topic 1]]+Dataset[[#This Row],[2024/25 From - Spending review Topic 2]]+Dataset[[#This Row],[2024/25 From - Spending review Topic 3]]+Dataset[[#This Row],[2024/25 From - Spending review Topic 4]]+Dataset[[#This Row],[2024/25 From - Other reallocations]]","v":0},{"$f":"Dataset[[#This Row],[2025/26 From - Spending review Topic 1]]+Dataset[[#This Row],[2025/26 From - Spending review Topic 2]]+Dataset[[#This Row],[2025/26 From - Spending review Topic 3]]+Dataset[[#This Row],[2025/26 From - Spending review Topic 4]]+Dataset[[#This Row],[2025/26 From - Other reallocations]]","v":0},{"$f":"Dataset[[#This Row],[2026/27 From - Spending review Topic 1]]+Dataset[[#This Row],[2026/27 From - Spending review Topic 2]]+Dataset[[#This Row],[2026/27 From - Spending review Topic 3]]+Dataset[[#This Row],[2026/27 From - Spending review Topic 4]]+Dataset[[#This Row],[2026/27 From - Other reallocations]]","v":0},{"$f":"Dataset[[#This Row],[2024/25 To - Spending review Topic 1]]+Dataset[[#This Row],[2024/25 To - Spending review Topic 2]]+Dataset[[#This Row],[2024/25 To - Spending review Topic 3]]+Dataset[[#This Row],[2024/25 To - Spending review Topic 4]]+Dataset[[#This Row],[2024/25 To - Other reallocations]]","v":0},{"$f":"Dataset[[#This Row],[2025/26 To - Spending review Topic 1]]+Dataset[[#This Row],[2025/26 To - Spending review Topic 2]]+Dataset[[#This Row],[2025/26 To - Spending review Topic 3]]+Dataset[[#This Row],[2025/26 To - Spending review Topic 4]]+Dataset[[#This Row],[2025/26 To - Other reallocations]]","v":0},{"$f":"Dataset[[#This Row],[2026/27 To - Spending review Topic 1]]+Dataset[[#This Row],[2026/27 To - Spending review Topic 2]]+Dataset[[#This Row],[2026/27 To - Spending review Topic 3]]+Dataset[[#This Row],[2026/27 To - Spending review Topic 4]]+Dataset[[#This Row],[2026/27 To - Other reallocations]]","v":0},{"$f":"Dataset[[#This Row],[2024/25 Reduction]]+Dataset[[#This Row],[2024/25 From - Total]]","v":0},{"$f":"Dataset[[#This Row],[2025/26 Reduction]]+Dataset[[#This Row],[2025/26 From - Total]]","v":0},{"$f":"Dataset[[#This Row],[2026/27 Reduction]]+Dataset[[#This Row],[2026/27 From - Total]]","v":0},{"$f":"Dataset[[#This Row],[2023/24 Reduction]]","v":0},{"$f":"SUM(Dataset[[#This Row],[2024/25 Reduction]],Dataset[[#This Row],[2024/25 From - Total]],Dataset[[#This Row],[2024/25 To - Total]])","v":0},{"$f":"SUM(Dataset[[#This Row],[2025/26 Reduction]],Dataset[[#This Row],[2025/26 From - Total]],Dataset[[#This Row],[2025/26 To - Total]])","v":0},{"$f":"SUM(Dataset[[#This Row],[2026/27 Reduction]],Dataset[[#This Row],[2026/27 From - Total]],Dataset[[#This Row],[2026/27 To - Total]])","v":0},{"$f":"Dataset[[#This Row],[2023/24 Baseline]]+Dataset[[#This Row],[2023/24 Total change]]","v":0},{"$f":"Dataset[[#This Row],[2024/25 Baseline]]+Dataset[[#This Row],[2024/25 Total change]]","v":0},{"$f":"Dataset[[#This Row],[2025/26 Baseline]]+Dataset[[#This Row],[2025/26 Total change]]","v":0},{"$f":"Dataset[[#This Row],[2026/27 Baseline]]+Dataset[[#This Row],[2026/27 Total change]]","v":0}]
["NAT|Non-transfer item","26|Computer services","2024_25","MTEF2024",26,1,1,43897,10,"26","01","01","043897","000010","26|01|01","01","01","02","10","10","01|01|02|10|10","National","Military Veterans","Administration","Management","Non-transfer item","Current","Current payments","Goods and services","Computer services","Computer services","Peace and security","Defence and state security","NAT",0,0,0,0,0,0,0,0,0,0,0,null,null,null,null,null,null,null,null,null,null,null,null,null,null,null,null,null,null,null,null,null,null,null,null,null,null,null,null,null,null,null,null,null,null,{"$f":"Dataset[[#This Row],[2024/25 From - Spending review Topic 1]]+Dataset[[#This Row],[2024/25 From - Spending review Topic 2]]+Dataset[[#This Row],[2024/25 From - Spending review Topic 3]]+Dataset[[#This Row],[2024/25 From - Spending review Topic 4]]+Dataset[[#This Row],[2024/25 From - Other reallocations]]","v":0},{"$f":"Dataset[[#This Row],[2025/26 From - Spending review Topic 1]]+Dataset[[#This Row],[2025/26 From - Spending review Topic 2]]+Dataset[[#This Row],[2025/26 From - Spending review Topic 3]]+Dataset[[#This Row],[2025/26 From - Spending review Topic 4]]+Dataset[[#This Row],[2025/26 From - Other reallocations]]","v":0},{"$f":"Dataset[[#This Row],[2026/27 From - Spending review Topic 1]]+Dataset[[#This Row],[2026/27 From - Spending review Topic 2]]+Dataset[[#This Row],[2026/27 From - Spending review Topic 3]]+Dataset[[#This Row],[2026/27 From - Spending review Topic 4]]+Dataset[[#This Row],[2026/27 From - Other reallocations]]","v":0},{"$f":"Dataset[[#This Row],[2024/25 To - Spending review Topic 1]]+Dataset[[#This Row],[2024/25 To - Spending review Topic 2]]+Dataset[[#This Row],[2024/25 To - Spending review Topic 3]]+Dataset[[#This Row],[2024/25 To - Spending review Topic 4]]+Dataset[[#This Row],[2024/25 To - Other reallocations]]","v":0},{"$f":"Dataset[[#This Row],[2025/26 To - Spending review Topic 1]]+Dataset[[#This Row],[2025/26 To - Spending review Topic 2]]+Dataset[[#This Row],[2025/26 To - Spending review Topic 3]]+Dataset[[#This Row],[2025/26 To - Spending review Topic 4]]+Dataset[[#This Row],[2025/26 To - Other reallocations]]","v":0},{"$f":"Dataset[[#This Row],[2026/27 To - Spending review Topic 1]]+Dataset[[#This Row],[2026/27 To - Spending review Topic 2]]+Dataset[[#This Row],[2026/27 To - Spending review Topic 3]]+Dataset[[#This Row],[2026/27 To - Spending review Topic 4]]+Dataset[[#This Row],[2026/27 To - Other reallocations]]","v":0},{"$f":"Dataset[[#This Row],[2024/25 Reduction]]+Dataset[[#This Row],[2024/25 From - Total]]","v":0},{"$f":"Dataset[[#This Row],[2025/26 Reduction]]+Dataset[[#This Row],[2025/26 From - Total]]","v":0},{"$f":"Dataset[[#This Row],[2026/27 Reduction]]+Dataset[[#This Row],[2026/27 From - Total]]","v":0},{"$f":"Dataset[[#This Row],[2023/24 Reduction]]","v":0},{"$f":"SUM(Dataset[[#This Row],[2024/25 Reduction]],Dataset[[#This Row],[2024/25 From - Total]],Dataset[[#This Row],[2024/25 To - Total]])","v":0},{"$f":"SUM(Dataset[[#This Row],[2025/26 Reduction]],Dataset[[#This Row],[2025/26 From - Total]],Dataset[[#This Row],[2025/26 To - Total]])","v":0},{"$f":"SUM(Dataset[[#This Row],[2026/27 Reduction]],Dataset[[#This Row],[2026/27 From - Total]],Dataset[[#This Row],[2026/27 To - Total]])","v":0},{"$f":"Dataset[[#This Row],[2023/24 Baseline]]+Dataset[[#This Row],[2023/24 Total change]]","v":0},{"$f":"Dataset[[#This Row],[2024/25 Baseline]]+Dataset[[#This Row],[2024/25 Total change]]","v":0},{"$f":"Dataset[[#This Row],[2025/26 Baseline]]+Dataset[[#This Row],[2025/26 Total change]]","v":0},{"$f":"Dataset[[#This Row],[2026/27 Baseline]]+Dataset[[#This Row],[2026/27 Total change]]","v":0}]
["NAT|Non-transfer item","26|Consultants: Business and advisory services","2024_25","MTEF2024",26,1,1,43898,11,"26","01","01","043898","000011","26|01|01","01","01","02","11","11","01|01|02|11|11","National","Military Veterans","Administration","Management","Non-transfer item","Current","Current payments","Goods and services","Consultants: Business and advisory services","Consultants: Business and advisory services","Peace and security","Defence and state security","NAT",904,651,318,0,31,31,0,450,480,530,554,null,null,null,null,null,null,null,null,null,null,null,null,null,null,null,null,null,null,null,null,null,null,null,null,null,null,null,null,null,null,null,null,null,null,{"$f":"Dataset[[#This Row],[2024/25 From - Spending review Topic 1]]+Dataset[[#This Row],[2024/25 From - Spending review Topic 2]]+Dataset[[#This Row],[2024/25 From - Spending review Topic 3]]+Dataset[[#This Row],[2024/25 From - Spending review Topic 4]]+Dataset[[#This Row],[2024/25 From - Other reallocations]]","v":0},{"$f":"Dataset[[#This Row],[2025/26 From - Spending review Topic 1]]+Dataset[[#This Row],[2025/26 From - Spending review Topic 2]]+Dataset[[#This Row],[2025/26 From - Spending review Topic 3]]+Dataset[[#This Row],[2025/26 From - Spending review Topic 4]]+Dataset[[#This Row],[2025/26 From - Other reallocations]]","v":0},{"$f":"Dataset[[#This Row],[2026/27 From - Spending review Topic 1]]+Dataset[[#This Row],[2026/27 From - Spending review Topic 2]]+Dataset[[#This Row],[2026/27 From - Spending review Topic 3]]+Dataset[[#This Row],[2026/27 From - Spending review Topic 4]]+Dataset[[#This Row],[2026/27 From - Other reallocations]]","v":0},{"$f":"Dataset[[#This Row],[2024/25 To - Spending review Topic 1]]+Dataset[[#This Row],[2024/25 To - Spending review Topic 2]]+Dataset[[#This Row],[2024/25 To - Spending review Topic 3]]+Dataset[[#This Row],[2024/25 To - Spending review Topic 4]]+Dataset[[#This Row],[2024/25 To - Other reallocations]]","v":0},{"$f":"Dataset[[#This Row],[2025/26 To - Spending review Topic 1]]+Dataset[[#This Row],[2025/26 To - Spending review Topic 2]]+Dataset[[#This Row],[2025/26 To - Spending review Topic 3]]+Dataset[[#This Row],[2025/26 To - Spending review Topic 4]]+Dataset[[#This Row],[2025/26 To - Other reallocations]]","v":0},{"$f":"Dataset[[#This Row],[2026/27 To - Spending review Topic 1]]+Dataset[[#This Row],[2026/27 To - Spending review Topic 2]]+Dataset[[#This Row],[2026/27 To - Spending review Topic 3]]+Dataset[[#This Row],[2026/27 To - Spending review Topic 4]]+Dataset[[#This Row],[2026/27 To - Other reallocations]]","v":0},{"$f":"Dataset[[#This Row],[2024/25 Reduction]]+Dataset[[#This Row],[2024/25 From - Total]]","v":0},{"$f":"Dataset[[#This Row],[2025/26 Reduction]]+Dataset[[#This Row],[2025/26 From - Total]]","v":0},{"$f":"Dataset[[#This Row],[2026/27 Reduction]]+Dataset[[#This Row],[2026/27 From - Total]]","v":0},{"$f":"Dataset[[#This Row],[2023/24 Reduction]]","v":0},{"$f":"SUM(Dataset[[#This Row],[2024/25 Reduction]],Dataset[[#This Row],[2024/25 From - Total]],Dataset[[#This Row],[2024/25 To - Total]])","v":0},{"$f":"SUM(Dataset[[#This Row],[2025/26 Reduction]],Dataset[[#This Row],[2025/26 From - Total]],Dataset[[#This Row],[2025/26 To - Total]])","v":0},{"$f":"SUM(Dataset[[#This Row],[2026/27 Reduction]],Dataset[[#This Row],[2026/27 From - Total]],Dataset[[#This Row],[2026/27 To - Total]])","v":0},{"$f":"Dataset[[#This Row],[2023/24 Baseline]]+Dataset[[#This Row],[2023/24 Total change]]","v":450},{"$f":"Dataset[[#This Row],[2024/25 Baseline]]+Dataset[[#This Row],[2024/25 Total change]]","v":480},{"$f":"Dataset[[#This Row],[2025/26 Baseline]]+Dataset[[#This Row],[2025/26 Total change]]","v":530},{"$f":"Dataset[[#This Row],[2026/27 Baseline]]+Dataset[[#This Row],[2026/27 Total change]]","v":554}]
["NAT|Non-transfer item","26|Infrastructure and planning services","2024_25","MTEF2024",26,1,1,43899,12,"26","01","01","043899","000012","26|01|01","01","01","02","12","12","01|01|02|12|12","National","Military Veterans","Administration","Management","Non-transfer item","Current","Current payments","Goods and services","Infrastructure and planning services","Infrastructure and planning services","Peace and security","Defence and state security","NAT",0,0,0,0,0,0,0,0,0,0,0,null,null,null,null,null,null,null,null,null,null,null,null,null,null,null,null,null,null,null,null,null,null,null,null,null,null,null,null,null,null,null,null,null,null,{"$f":"Dataset[[#This Row],[2024/25 From - Spending review Topic 1]]+Dataset[[#This Row],[2024/25 From - Spending review Topic 2]]+Dataset[[#This Row],[2024/25 From - Spending review Topic 3]]+Dataset[[#This Row],[2024/25 From - Spending review Topic 4]]+Dataset[[#This Row],[2024/25 From - Other reallocations]]","v":0},{"$f":"Dataset[[#This Row],[2025/26 From - Spending review Topic 1]]+Dataset[[#This Row],[2025/26 From - Spending review Topic 2]]+Dataset[[#This Row],[2025/26 From - Spending review Topic 3]]+Dataset[[#This Row],[2025/26 From - Spending review Topic 4]]+Dataset[[#This Row],[2025/26 From - Other reallocations]]","v":0},{"$f":"Dataset[[#This Row],[2026/27 From - Spending review Topic 1]]+Dataset[[#This Row],[2026/27 From - Spending review Topic 2]]+Dataset[[#This Row],[2026/27 From - Spending review Topic 3]]+Dataset[[#This Row],[2026/27 From - Spending review Topic 4]]+Dataset[[#This Row],[2026/27 From - Other reallocations]]","v":0},{"$f":"Dataset[[#This Row],[2024/25 To - Spending review Topic 1]]+Dataset[[#This Row],[2024/25 To - Spending review Topic 2]]+Dataset[[#This Row],[2024/25 To - Spending review Topic 3]]+Dataset[[#This Row],[2024/25 To - Spending review Topic 4]]+Dataset[[#This Row],[2024/25 To - Other reallocations]]","v":0},{"$f":"Dataset[[#This Row],[2025/26 To - Spending review Topic 1]]+Dataset[[#This Row],[2025/26 To - Spending review Topic 2]]+Dataset[[#This Row],[2025/26 To - Spending review Topic 3]]+Dataset[[#This Row],[2025/26 To - Spending review Topic 4]]+Dataset[[#This Row],[2025/26 To - Other reallocations]]","v":0},{"$f":"Dataset[[#This Row],[2026/27 To - Spending review Topic 1]]+Dataset[[#This Row],[2026/27 To - Spending review Topic 2]]+Dataset[[#This Row],[2026/27 To - Spending review Topic 3]]+Dataset[[#This Row],[2026/27 To - Spending review Topic 4]]+Dataset[[#This Row],[2026/27 To - Other reallocations]]","v":0},{"$f":"Dataset[[#This Row],[2024/25 Reduction]]+Dataset[[#This Row],[2024/25 From - Total]]","v":0},{"$f":"Dataset[[#This Row],[2025/26 Reduction]]+Dataset[[#This Row],[2025/26 From - Total]]","v":0},{"$f":"Dataset[[#This Row],[2026/27 Reduction]]+Dataset[[#This Row],[2026/27 From - Total]]","v":0},{"$f":"Dataset[[#This Row],[2023/24 Reduction]]","v":0},{"$f":"SUM(Dataset[[#This Row],[2024/25 Reduction]],Dataset[[#This Row],[2024/25 From - Total]],Dataset[[#This Row],[2024/25 To - Total]])","v":0},{"$f":"SUM(Dataset[[#This Row],[2025/26 Reduction]],Dataset[[#This Row],[2025/26 From - Total]],Dataset[[#This Row],[2025/26 To - Total]])","v":0},{"$f":"SUM(Dataset[[#This Row],[2026/27 Reduction]],Dataset[[#This Row],[2026/27 From - Total]],Dataset[[#This Row],[2026/27 To - Total]])","v":0},{"$f":"Dataset[[#This Row],[2023/24 Baseline]]+Dataset[[#This Row],[2023/24 Total change]]","v":0},{"$f":"Dataset[[#This Row],[2024/25 Baseline]]+Dataset[[#This Row],[2024/25 Total change]]","v":0},{"$f":"Dataset[[#This Row],[2025/26 Baseline]]+Dataset[[#This Row],[2025/26 Total change]]","v":0},{"$f":"Dataset[[#This Row],[2026/27 Baseline]]+Dataset[[#This Row],[2026/27 Total change]]","v":0}]
["NAT|Non-transfer item","26|Laboratory services","2024_25","MTEF2024",26,1,1,43900,13,"26","01","01","043900","000013","26|01|01","01","01","02","13","13","01|01|02|13|13","National","Military Veterans","Administration","Management","Non-transfer item","Current","Current payments","Goods and services","Laboratory services","Laboratory services","Peace and security","Defence and state security","NAT",0,0,0,0,0,0,0,0,0,0,0,null,null,null,null,null,null,null,null,null,null,null,null,null,null,null,null,null,null,null,null,null,null,null,null,null,null,null,null,null,null,null,null,null,null,{"$f":"Dataset[[#This Row],[2024/25 From - Spending review Topic 1]]+Dataset[[#This Row],[2024/25 From - Spending review Topic 2]]+Dataset[[#This Row],[2024/25 From - Spending review Topic 3]]+Dataset[[#This Row],[2024/25 From - Spending review Topic 4]]+Dataset[[#This Row],[2024/25 From - Other reallocations]]","v":0},{"$f":"Dataset[[#This Row],[2025/26 From - Spending review Topic 1]]+Dataset[[#This Row],[2025/26 From - Spending review Topic 2]]+Dataset[[#This Row],[2025/26 From - Spending review Topic 3]]+Dataset[[#This Row],[2025/26 From - Spending review Topic 4]]+Dataset[[#This Row],[2025/26 From - Other reallocations]]","v":0},{"$f":"Dataset[[#This Row],[2026/27 From - Spending review Topic 1]]+Dataset[[#This Row],[2026/27 From - Spending review Topic 2]]+Dataset[[#This Row],[2026/27 From - Spending review Topic 3]]+Dataset[[#This Row],[2026/27 From - Spending review Topic 4]]+Dataset[[#This Row],[2026/27 From - Other reallocations]]","v":0},{"$f":"Dataset[[#This Row],[2024/25 To - Spending review Topic 1]]+Dataset[[#This Row],[2024/25 To - Spending review Topic 2]]+Dataset[[#This Row],[2024/25 To - Spending review Topic 3]]+Dataset[[#This Row],[2024/25 To - Spending review Topic 4]]+Dataset[[#This Row],[2024/25 To - Other reallocations]]","v":0},{"$f":"Dataset[[#This Row],[2025/26 To - Spending review Topic 1]]+Dataset[[#This Row],[2025/26 To - Spending review Topic 2]]+Dataset[[#This Row],[2025/26 To - Spending review Topic 3]]+Dataset[[#This Row],[2025/26 To - Spending review Topic 4]]+Dataset[[#This Row],[2025/26 To - Other reallocations]]","v":0},{"$f":"Dataset[[#This Row],[2026/27 To - Spending review Topic 1]]+Dataset[[#This Row],[2026/27 To - Spending review Topic 2]]+Dataset[[#This Row],[2026/27 To - Spending review Topic 3]]+Dataset[[#This Row],[2026/27 To - Spending review Topic 4]]+Dataset[[#This Row],[2026/27 To - Other reallocations]]","v":0},{"$f":"Dataset[[#This Row],[2024/25 Reduction]]+Dataset[[#This Row],[2024/25 From - Total]]","v":0},{"$f":"Dataset[[#This Row],[2025/26 Reduction]]+Dataset[[#This Row],[2025/26 From - Total]]","v":0},{"$f":"Dataset[[#This Row],[2026/27 Reduction]]+Dataset[[#This Row],[2026/27 From - Total]]","v":0},{"$f":"Dataset[[#This Row],[2023/24 Reduction]]","v":0},{"$f":"SUM(Dataset[[#This Row],[2024/25 Reduction]],Dataset[[#This Row],[2024/25 From - Total]],Dataset[[#This Row],[2024/25 To - Total]])","v":0},{"$f":"SUM(Dataset[[#This Row],[2025/26 Reduction]],Dataset[[#This Row],[2025/26 From - Total]],Dataset[[#This Row],[2025/26 To - Total]])","v":0},{"$f":"SUM(Dataset[[#This Row],[2026/27 Reduction]],Dataset[[#This Row],[2026/27 From - Total]],Dataset[[#This Row],[2026/27 To - Total]])","v":0},{"$f":"Dataset[[#This Row],[2023/24 Baseline]]+Dataset[[#This Row],[2023/24 Total change]]","v":0},{"$f":"Dataset[[#This Row],[2024/25 Baseline]]+Dataset[[#This Row],[2024/25 Total change]]","v":0},{"$f":"Dataset[[#This Row],[2025/26 Baseline]]+Dataset[[#This Row],[2025/26 Total change]]","v":0},{"$f":"Dataset[[#This Row],[2026/27 Baseline]]+Dataset[[#This Row],[2026/27 Total change]]","v":0}]
["NAT|Non-transfer item","26|Legal services (G&S)","2024_25","MTEF2024",26,1,1,43901,14,"26","01","01","043901","000014","26|01|01","01","01","02","14","14","01|01|02|14|14","National","Military Veterans","Administration","Management","Non-transfer item","Current","Current payments","Goods and services","Legal services (G&S)","Legal services (G&S)","Peace and security","Defence and state security","NAT",0,0,0,0,0,0,0,0,0,0,0,null,null,null,null,null,null,null,null,null,null,null,null,null,null,null,null,null,null,null,null,null,null,null,null,null,null,null,null,null,null,null,null,null,null,{"$f":"Dataset[[#This Row],[2024/25 From - Spending review Topic 1]]+Dataset[[#This Row],[2024/25 From - Spending review Topic 2]]+Dataset[[#This Row],[2024/25 From - Spending review Topic 3]]+Dataset[[#This Row],[2024/25 From - Spending review Topic 4]]+Dataset[[#This Row],[2024/25 From - Other reallocations]]","v":0},{"$f":"Dataset[[#This Row],[2025/26 From - Spending review Topic 1]]+Dataset[[#This Row],[2025/26 From - Spending review Topic 2]]+Dataset[[#This Row],[2025/26 From - Spending review Topic 3]]+Dataset[[#This Row],[2025/26 From - Spending review Topic 4]]+Dataset[[#This Row],[2025/26 From - Other reallocations]]","v":0},{"$f":"Dataset[[#This Row],[2026/27 From - Spending review Topic 1]]+Dataset[[#This Row],[2026/27 From - Spending review Topic 2]]+Dataset[[#This Row],[2026/27 From - Spending review Topic 3]]+Dataset[[#This Row],[2026/27 From - Spending review Topic 4]]+Dataset[[#This Row],[2026/27 From - Other reallocations]]","v":0},{"$f":"Dataset[[#This Row],[2024/25 To - Spending review Topic 1]]+Dataset[[#This Row],[2024/25 To - Spending review Topic 2]]+Dataset[[#This Row],[2024/25 To - Spending review Topic 3]]+Dataset[[#This Row],[2024/25 To - Spending review Topic 4]]+Dataset[[#This Row],[2024/25 To - Other reallocations]]","v":0},{"$f":"Dataset[[#This Row],[2025/26 To - Spending review Topic 1]]+Dataset[[#This Row],[2025/26 To - Spending review Topic 2]]+Dataset[[#This Row],[2025/26 To - Spending review Topic 3]]+Dataset[[#This Row],[2025/26 To - Spending review Topic 4]]+Dataset[[#This Row],[2025/26 To - Other reallocations]]","v":0},{"$f":"Dataset[[#This Row],[2026/27 To - Spending review Topic 1]]+Dataset[[#This Row],[2026/27 To - Spending review Topic 2]]+Dataset[[#This Row],[2026/27 To - Spending review Topic 3]]+Dataset[[#This Row],[2026/27 To - Spending review Topic 4]]+Dataset[[#This Row],[2026/27 To - Other reallocations]]","v":0},{"$f":"Dataset[[#This Row],[2024/25 Reduction]]+Dataset[[#This Row],[2024/25 From - Total]]","v":0},{"$f":"Dataset[[#This Row],[2025/26 Reduction]]+Dataset[[#This Row],[2025/26 From - Total]]","v":0},{"$f":"Dataset[[#This Row],[2026/27 Reduction]]+Dataset[[#This Row],[2026/27 From - Total]]","v":0},{"$f":"Dataset[[#This Row],[2023/24 Reduction]]","v":0},{"$f":"SUM(Dataset[[#This Row],[2024/25 Reduction]],Dataset[[#This Row],[2024/25 From - Total]],Dataset[[#This Row],[2024/25 To - Total]])","v":0},{"$f":"SUM(Dataset[[#This Row],[2025/26 Reduction]],Dataset[[#This Row],[2025/26 From - Total]],Dataset[[#This Row],[2025/26 To - Total]])","v":0},{"$f":"SUM(Dataset[[#This Row],[2026/27 Reduction]],Dataset[[#This Row],[2026/27 From - Total]],Dataset[[#This Row],[2026/27 To - Total]])","v":0},{"$f":"Dataset[[#This Row],[2023/24 Baseline]]+Dataset[[#This Row],[2023/24 Total change]]","v":0},{"$f":"Dataset[[#This Row],[2024/25 Baseline]]+Dataset[[#This Row],[2024/25 Total change]]","v":0},{"$f":"Dataset[[#This Row],[2025/26 Baseline]]+Dataset[[#This Row],[2025/26 Total change]]","v":0},{"$f":"Dataset[[#This Row],[2026/27 Baseline]]+Dataset[[#This Row],[2026/27 Total change]]","v":0}]
["NAT|Non-transfer item","26|Science and technological services","2024_25","MTEF2024",26,1,1,43902,15,"26","01","01","043902","000015","26|01|01","01","01","02","15","15","01|01|02|15|15","National","Military Veterans","Administration","Management","Non-transfer item","Current","Current payments","Goods and services","Science and technological services","Science and technological services","Peace and security","Defence and state security","NAT",0,0,0,0,0,0,0,0,0,0,0,null,null,null,null,null,null,null,null,null,null,null,null,null,null,null,null,null,null,null,null,null,null,null,null,null,null,null,null,null,null,null,null,null,null,{"$f":"Dataset[[#This Row],[2024/25 From - Spending review Topic 1]]+Dataset[[#This Row],[2024/25 From - Spending review Topic 2]]+Dataset[[#This Row],[2024/25 From - Spending review Topic 3]]+Dataset[[#This Row],[2024/25 From - Spending review Topic 4]]+Dataset[[#This Row],[2024/25 From - Other reallocations]]","v":0},{"$f":"Dataset[[#This Row],[2025/26 From - Spending review Topic 1]]+Dataset[[#This Row],[2025/26 From - Spending review Topic 2]]+Dataset[[#This Row],[2025/26 From - Spending review Topic 3]]+Dataset[[#This Row],[2025/26 From - Spending review Topic 4]]+Dataset[[#This Row],[2025/26 From - Other reallocations]]","v":0},{"$f":"Dataset[[#This Row],[2026/27 From - Spending review Topic 1]]+Dataset[[#This Row],[2026/27 From - Spending review Topic 2]]+Dataset[[#This Row],[2026/27 From - Spending review Topic 3]]+Dataset[[#This Row],[2026/27 From - Spending review Topic 4]]+Dataset[[#This Row],[2026/27 From - Other reallocations]]","v":0},{"$f":"Dataset[[#This Row],[2024/25 To - Spending review Topic 1]]+Dataset[[#This Row],[2024/25 To - Spending review Topic 2]]+Dataset[[#This Row],[2024/25 To - Spending review Topic 3]]+Dataset[[#This Row],[2024/25 To - Spending review Topic 4]]+Dataset[[#This Row],[2024/25 To - Other reallocations]]","v":0},{"$f":"Dataset[[#This Row],[2025/26 To - Spending review Topic 1]]+Dataset[[#This Row],[2025/26 To - Spending review Topic 2]]+Dataset[[#This Row],[2025/26 To - Spending review Topic 3]]+Dataset[[#This Row],[2025/26 To - Spending review Topic 4]]+Dataset[[#This Row],[2025/26 To - Other reallocations]]","v":0},{"$f":"Dataset[[#This Row],[2026/27 To - Spending review Topic 1]]+Dataset[[#This Row],[2026/27 To - Spending review Topic 2]]+Dataset[[#This Row],[2026/27 To - Spending review Topic 3]]+Dataset[[#This Row],[2026/27 To - Spending review Topic 4]]+Dataset[[#This Row],[2026/27 To - Other reallocations]]","v":0},{"$f":"Dataset[[#This Row],[2024/25 Reduction]]+Dataset[[#This Row],[2024/25 From - Total]]","v":0},{"$f":"Dataset[[#This Row],[2025/26 Reduction]]+Dataset[[#This Row],[2025/26 From - Total]]","v":0},{"$f":"Dataset[[#This Row],[2026/27 Reduction]]+Dataset[[#This Row],[2026/27 From - Total]]","v":0},{"$f":"Dataset[[#This Row],[2023/24 Reduction]]","v":0},{"$f":"SUM(Dataset[[#This Row],[2024/25 Reduction]],Dataset[[#This Row],[2024/25 From - Total]],Dataset[[#This Row],[2024/25 To - Total]])","v":0},{"$f":"SUM(Dataset[[#This Row],[2025/26 Reduction]],Dataset[[#This Row],[2025/26 From - Total]],Dataset[[#This Row],[2025/26 To - Total]])","v":0},{"$f":"SUM(Dataset[[#This Row],[2026/27 Reduction]],Dataset[[#This Row],[2026/27 From - Total]],Dataset[[#This Row],[2026/27 To - Total]])","v":0},{"$f":"Dataset[[#This Row],[2023/24 Baseline]]+Dataset[[#This Row],[2023/24 Total change]]","v":0},{"$f":"Dataset[[#This Row],[2024/25 Baseline]]+Dataset[[#This Row],[2024/25 Total change]]","v":0},{"$f":"Dataset[[#This Row],[2025/26 Baseline]]+Dataset[[#This Row],[2025/26 Total change]]","v":0},{"$f":"Dataset[[#This Row],[2026/27 Baseline]]+Dataset[[#This Row],[2026/27 Total change]]","v":0}]
["NAT|Non-transfer item","26|Contractors","2024_25","MTEF2024",26,1,1,43903,16,"26","01","01","043903","000016","26|01|01","01","01","02","16","16","01|01|02|16|16","National","Military Veterans","Administration","Management","Non-transfer item","Current","Current payments","Goods and services","Contractors","Contractors","Peace and security","Defence and state security","NAT",0,0,0,0,0,0,0,0,0,0,0,null,null,null,null,null,null,null,null,null,null,null,null,null,null,null,null,null,null,null,null,null,null,null,null,null,null,null,null,null,null,null,null,null,null,{"$f":"Dataset[[#This Row],[2024/25 From - Spending review Topic 1]]+Dataset[[#This Row],[2024/25 From - Spending review Topic 2]]+Dataset[[#This Row],[2024/25 From - Spending review Topic 3]]+Dataset[[#This Row],[2024/25 From - Spending review Topic 4]]+Dataset[[#This Row],[2024/25 From - Other reallocations]]","v":0},{"$f":"Dataset[[#This Row],[2025/26 From - Spending review Topic 1]]+Dataset[[#This Row],[2025/26 From - Spending review Topic 2]]+Dataset[[#This Row],[2025/26 From - Spending review Topic 3]]+Dataset[[#This Row],[2025/26 From - Spending review Topic 4]]+Dataset[[#This Row],[2025/26 From - Other reallocations]]","v":0},{"$f":"Dataset[[#This Row],[2026/27 From - Spending review Topic 1]]+Dataset[[#This Row],[2026/27 From - Spending review Topic 2]]+Dataset[[#This Row],[2026/27 From - Spending review Topic 3]]+Dataset[[#This Row],[2026/27 From - Spending review Topic 4]]+Dataset[[#This Row],[2026/27 From - Other reallocations]]","v":0},{"$f":"Dataset[[#This Row],[2024/25 To - Spending review Topic 1]]+Dataset[[#This Row],[2024/25 To - Spending review Topic 2]]+Dataset[[#This Row],[2024/25 To - Spending review Topic 3]]+Dataset[[#This Row],[2024/25 To - Spending review Topic 4]]+Dataset[[#This Row],[2024/25 To - Other reallocations]]","v":0},{"$f":"Dataset[[#This Row],[2025/26 To - Spending review Topic 1]]+Dataset[[#This Row],[2025/26 To - Spending review Topic 2]]+Dataset[[#This Row],[2025/26 To - Spending review Topic 3]]+Dataset[[#This Row],[2025/26 To - Spending review Topic 4]]+Dataset[[#This Row],[2025/26 To - Other reallocations]]","v":0},{"$f":"Dataset[[#This Row],[2026/27 To - Spending review Topic 1]]+Dataset[[#This Row],[2026/27 To - Spending review Topic 2]]+Dataset[[#This Row],[2026/27 To - Spending review Topic 3]]+Dataset[[#This Row],[2026/27 To - Spending review Topic 4]]+Dataset[[#This Row],[2026/27 To - Other reallocations]]","v":0},{"$f":"Dataset[[#This Row],[2024/25 Reduction]]+Dataset[[#This Row],[2024/25 From - Total]]","v":0},{"$f":"Dataset[[#This Row],[2025/26 Reduction]]+Dataset[[#This Row],[2025/26 From - Total]]","v":0},{"$f":"Dataset[[#This Row],[2026/27 Reduction]]+Dataset[[#This Row],[2026/27 From - Total]]","v":0},{"$f":"Dataset[[#This Row],[2023/24 Reduction]]","v":0},{"$f":"SUM(Dataset[[#This Row],[2024/25 Reduction]],Dataset[[#This Row],[2024/25 From - Total]],Dataset[[#This Row],[2024/25 To - Total]])","v":0},{"$f":"SUM(Dataset[[#This Row],[2025/26 Reduction]],Dataset[[#This Row],[2025/26 From - Total]],Dataset[[#This Row],[2025/26 To - Total]])","v":0},{"$f":"SUM(Dataset[[#This Row],[2026/27 Reduction]],Dataset[[#This Row],[2026/27 From - Total]],Dataset[[#This Row],[2026/27 To - Total]])","v":0},{"$f":"Dataset[[#This Row],[2023/24 Baseline]]+Dataset[[#This Row],[2023/24 Total change]]","v":0},{"$f":"Dataset[[#This Row],[2024/25 Baseline]]+Dataset[[#This Row],[2024/25 Total change]]","v":0},{"$f":"Dataset[[#This Row],[2025/26 Baseline]]+Dataset[[#This Row],[2025/26 Total change]]","v":0},{"$f":"Dataset[[#This Row],[2026/27 Baseline]]+Dataset[[#This Row],[2026/27 Total change]]","v":0}]
["NAT|Non-transfer item","26|Agency and support/outsourced services","2024_25","MTEF2024",26,1,1,43904,17,"26","01","01","043904","000017","26|01|01","01","01","02","17","17","01|01|02|17|17","National","Military Veterans","Administration","Management","Non-transfer item","Current","Current payments","Goods and services","Agency and support/outsourced services","Agency and support/outsourced services","Peace and security","Defence and state security","NAT",0,0,0,0,0,0,0,0,0,0,0,null,null,null,null,null,null,null,null,null,null,null,null,null,null,null,null,null,null,null,null,null,null,null,null,null,null,null,null,null,null,null,null,null,null,{"$f":"Dataset[[#This Row],[2024/25 From - Spending review Topic 1]]+Dataset[[#This Row],[2024/25 From - Spending review Topic 2]]+Dataset[[#This Row],[2024/25 From - Spending review Topic 3]]+Dataset[[#This Row],[2024/25 From - Spending review Topic 4]]+Dataset[[#This Row],[2024/25 From - Other reallocations]]","v":0},{"$f":"Dataset[[#This Row],[2025/26 From - Spending review Topic 1]]+Dataset[[#This Row],[2025/26 From - Spending review Topic 2]]+Dataset[[#This Row],[2025/26 From - Spending review Topic 3]]+Dataset[[#This Row],[2025/26 From - Spending review Topic 4]]+Dataset[[#This Row],[2025/26 From - Other reallocations]]","v":0},{"$f":"Dataset[[#This Row],[2026/27 From - Spending review Topic 1]]+Dataset[[#This Row],[2026/27 From - Spending review Topic 2]]+Dataset[[#This Row],[2026/27 From - Spending review Topic 3]]+Dataset[[#This Row],[2026/27 From - Spending review Topic 4]]+Dataset[[#This Row],[2026/27 From - Other reallocations]]","v":0},{"$f":"Dataset[[#This Row],[2024/25 To - Spending review Topic 1]]+Dataset[[#This Row],[2024/25 To - Spending review Topic 2]]+Dataset[[#This Row],[2024/25 To - Spending review Topic 3]]+Dataset[[#This Row],[2024/25 To - Spending review Topic 4]]+Dataset[[#This Row],[2024/25 To - Other reallocations]]","v":0},{"$f":"Dataset[[#This Row],[2025/26 To - Spending review Topic 1]]+Dataset[[#This Row],[2025/26 To - Spending review Topic 2]]+Dataset[[#This Row],[2025/26 To - Spending review Topic 3]]+Dataset[[#This Row],[2025/26 To - Spending review Topic 4]]+Dataset[[#This Row],[2025/26 To - Other reallocations]]","v":0},{"$f":"Dataset[[#This Row],[2026/27 To - Spending review Topic 1]]+Dataset[[#This Row],[2026/27 To - Spending review Topic 2]]+Dataset[[#This Row],[2026/27 To - Spending review Topic 3]]+Dataset[[#This Row],[2026/27 To - Spending review Topic 4]]+Dataset[[#This Row],[2026/27 To - Other reallocations]]","v":0},{"$f":"Dataset[[#This Row],[2024/25 Reduction]]+Dataset[[#This Row],[2024/25 From - Total]]","v":0},{"$f":"Dataset[[#This Row],[2025/26 Reduction]]+Dataset[[#This Row],[2025/26 From - Total]]","v":0},{"$f":"Dataset[[#This Row],[2026/27 Reduction]]+Dataset[[#This Row],[2026/27 From - Total]]","v":0},{"$f":"Dataset[[#This Row],[2023/24 Reduction]]","v":0},{"$f":"SUM(Dataset[[#This Row],[2024/25 Reduction]],Dataset[[#This Row],[2024/25 From - Total]],Dataset[[#This Row],[2024/25 To - Total]])","v":0},{"$f":"SUM(Dataset[[#This Row],[2025/26 Reduction]],Dataset[[#This Row],[2025/26 From - Total]],Dataset[[#This Row],[2025/26 To - Total]])","v":0},{"$f":"SUM(Dataset[[#This Row],[2026/27 Reduction]],Dataset[[#This Row],[2026/27 From - Total]],Dataset[[#This Row],[2026/27 To - Total]])","v":0},{"$f":"Dataset[[#This Row],[2023/24 Baseline]]+Dataset[[#This Row],[2023/24 Total change]]","v":0},{"$f":"Dataset[[#This Row],[2024/25 Baseline]]+Dataset[[#This Row],[2024/25 Total change]]","v":0},{"$f":"Dataset[[#This Row],[2025/26 Baseline]]+Dataset[[#This Row],[2025/26 Total change]]","v":0},{"$f":"Dataset[[#This Row],[2026/27 Baseline]]+Dataset[[#This Row],[2026/27 Total change]]","v":0}]
["NAT|Non-transfer item","26|Entertainment","2024_25","MTEF2024",26,1,1,43905,18,"26","01","01","043905","000018","26|01|01","01","01","02","18","18","01|01|02|18|18","National","Military Veterans","Administration","Management","Non-transfer item","Current","Current payments","Goods and services","Entertainment","Entertainment","Peace and security","Defence and state security","NAT",0,0,0,10,10,10,0,10,9,9,9,null,null,null,null,null,null,null,null,null,null,null,null,null,null,null,null,null,null,null,null,null,null,null,null,null,null,null,null,null,null,null,null,null,null,{"$f":"Dataset[[#This Row],[2024/25 From - Spending review Topic 1]]+Dataset[[#This Row],[2024/25 From - Spending review Topic 2]]+Dataset[[#This Row],[2024/25 From - Spending review Topic 3]]+Dataset[[#This Row],[2024/25 From - Spending review Topic 4]]+Dataset[[#This Row],[2024/25 From - Other reallocations]]","v":0},{"$f":"Dataset[[#This Row],[2025/26 From - Spending review Topic 1]]+Dataset[[#This Row],[2025/26 From - Spending review Topic 2]]+Dataset[[#This Row],[2025/26 From - Spending review Topic 3]]+Dataset[[#This Row],[2025/26 From - Spending review Topic 4]]+Dataset[[#This Row],[2025/26 From - Other reallocations]]","v":0},{"$f":"Dataset[[#This Row],[2026/27 From - Spending review Topic 1]]+Dataset[[#This Row],[2026/27 From - Spending review Topic 2]]+Dataset[[#This Row],[2026/27 From - Spending review Topic 3]]+Dataset[[#This Row],[2026/27 From - Spending review Topic 4]]+Dataset[[#This Row],[2026/27 From - Other reallocations]]","v":0},{"$f":"Dataset[[#This Row],[2024/25 To - Spending review Topic 1]]+Dataset[[#This Row],[2024/25 To - Spending review Topic 2]]+Dataset[[#This Row],[2024/25 To - Spending review Topic 3]]+Dataset[[#This Row],[2024/25 To - Spending review Topic 4]]+Dataset[[#This Row],[2024/25 To - Other reallocations]]","v":0},{"$f":"Dataset[[#This Row],[2025/26 To - Spending review Topic 1]]+Dataset[[#This Row],[2025/26 To - Spending review Topic 2]]+Dataset[[#This Row],[2025/26 To - Spending review Topic 3]]+Dataset[[#This Row],[2025/26 To - Spending review Topic 4]]+Dataset[[#This Row],[2025/26 To - Other reallocations]]","v":0},{"$f":"Dataset[[#This Row],[2026/27 To - Spending review Topic 1]]+Dataset[[#This Row],[2026/27 To - Spending review Topic 2]]+Dataset[[#This Row],[2026/27 To - Spending review Topic 3]]+Dataset[[#This Row],[2026/27 To - Spending review Topic 4]]+Dataset[[#This Row],[2026/27 To - Other reallocations]]","v":0},{"$f":"Dataset[[#This Row],[2024/25 Reduction]]+Dataset[[#This Row],[2024/25 From - Total]]","v":0},{"$f":"Dataset[[#This Row],[2025/26 Reduction]]+Dataset[[#This Row],[2025/26 From - Total]]","v":0},{"$f":"Dataset[[#This Row],[2026/27 Reduction]]+Dataset[[#This Row],[2026/27 From - Total]]","v":0},{"$f":"Dataset[[#This Row],[2023/24 Reduction]]","v":0},{"$f":"SUM(Dataset[[#This Row],[2024/25 Reduction]],Dataset[[#This Row],[2024/25 From - Total]],Dataset[[#This Row],[2024/25 To - Total]])","v":0},{"$f":"SUM(Dataset[[#This Row],[2025/26 Reduction]],Dataset[[#This Row],[2025/26 From - Total]],Dataset[[#This Row],[2025/26 To - Total]])","v":0},{"$f":"SUM(Dataset[[#This Row],[2026/27 Reduction]],Dataset[[#This Row],[2026/27 From - Total]],Dataset[[#This Row],[2026/27 To - Total]])","v":0},{"$f":"Dataset[[#This Row],[2023/24 Baseline]]+Dataset[[#This Row],[2023/24 Total change]]","v":10},{"$f":"Dataset[[#This Row],[2024/25 Baseline]]+Dataset[[#This Row],[2024/25 Total change]]","v":9},{"$f":"Dataset[[#This Row],[2025/26 Baseline]]+Dataset[[#This Row],[2025/26 Total change]]","v":9},{"$f":"Dataset[[#This Row],[2026/27 Baseline]]+Dataset[[#This Row],[2026/27 Total change]]","v":9}]
["NAT|Non-transfer item","26|Fleet services (including government motor transport)","2024_25","MTEF2024",26,1,1,43906,19,"26","01","01","043906","000019","26|01|01","01","01","02","19","19","01|01|02|19|19","National","Military Veterans","Administration","Management","Non-transfer item","Current","Current payments","Goods and services","Fleet services (including government motor transport)","Fleet services (including government motor transport)","Peace and security","Defence and state security","NAT",0,0,0,0,0,0,0,0,0,0,0,null,null,null,null,null,null,null,null,null,null,null,null,null,null,null,null,null,null,null,null,null,null,null,null,null,null,null,null,null,null,null,null,null,null,{"$f":"Dataset[[#This Row],[2024/25 From - Spending review Topic 1]]+Dataset[[#This Row],[2024/25 From - Spending review Topic 2]]+Dataset[[#This Row],[2024/25 From - Spending review Topic 3]]+Dataset[[#This Row],[2024/25 From - Spending review Topic 4]]+Dataset[[#This Row],[2024/25 From - Other reallocations]]","v":0},{"$f":"Dataset[[#This Row],[2025/26 From - Spending review Topic 1]]+Dataset[[#This Row],[2025/26 From - Spending review Topic 2]]+Dataset[[#This Row],[2025/26 From - Spending review Topic 3]]+Dataset[[#This Row],[2025/26 From - Spending review Topic 4]]+Dataset[[#This Row],[2025/26 From - Other reallocations]]","v":0},{"$f":"Dataset[[#This Row],[2026/27 From - Spending review Topic 1]]+Dataset[[#This Row],[2026/27 From - Spending review Topic 2]]+Dataset[[#This Row],[2026/27 From - Spending review Topic 3]]+Dataset[[#This Row],[2026/27 From - Spending review Topic 4]]+Dataset[[#This Row],[2026/27 From - Other reallocations]]","v":0},{"$f":"Dataset[[#This Row],[2024/25 To - Spending review Topic 1]]+Dataset[[#This Row],[2024/25 To - Spending review Topic 2]]+Dataset[[#This Row],[2024/25 To - Spending review Topic 3]]+Dataset[[#This Row],[2024/25 To - Spending review Topic 4]]+Dataset[[#This Row],[2024/25 To - Other reallocations]]","v":0},{"$f":"Dataset[[#This Row],[2025/26 To - Spending review Topic 1]]+Dataset[[#This Row],[2025/26 To - Spending review Topic 2]]+Dataset[[#This Row],[2025/26 To - Spending review Topic 3]]+Dataset[[#This Row],[2025/26 To - Spending review Topic 4]]+Dataset[[#This Row],[2025/26 To - Other reallocations]]","v":0},{"$f":"Dataset[[#This Row],[2026/27 To - Spending review Topic 1]]+Dataset[[#This Row],[2026/27 To - Spending review Topic 2]]+Dataset[[#This Row],[2026/27 To - Spending review Topic 3]]+Dataset[[#This Row],[2026/27 To - Spending review Topic 4]]+Dataset[[#This Row],[2026/27 To - Other reallocations]]","v":0},{"$f":"Dataset[[#This Row],[2024/25 Reduction]]+Dataset[[#This Row],[2024/25 From - Total]]","v":0},{"$f":"Dataset[[#This Row],[2025/26 Reduction]]+Dataset[[#This Row],[2025/26 From - Total]]","v":0},{"$f":"Dataset[[#This Row],[2026/27 Reduction]]+Dataset[[#This Row],[2026/27 From - Total]]","v":0},{"$f":"Dataset[[#This Row],[2023/24 Reduction]]","v":0},{"$f":"SUM(Dataset[[#This Row],[2024/25 Reduction]],Dataset[[#This Row],[2024/25 From - Total]],Dataset[[#This Row],[2024/25 To - Total]])","v":0},{"$f":"SUM(Dataset[[#This Row],[2025/26 Reduction]],Dataset[[#This Row],[2025/26 From - Total]],Dataset[[#This Row],[2025/26 To - Total]])","v":0},{"$f":"SUM(Dataset[[#This Row],[2026/27 Reduction]],Dataset[[#This Row],[2026/27 From - Total]],Dataset[[#This Row],[2026/27 To - Total]])","v":0},{"$f":"Dataset[[#This Row],[2023/24 Baseline]]+Dataset[[#This Row],[2023/24 Total change]]","v":0},{"$f":"Dataset[[#This Row],[2024/25 Baseline]]+Dataset[[#This Row],[2024/25 Total change]]","v":0},{"$f":"Dataset[[#This Row],[2025/26 Baseline]]+Dataset[[#This Row],[2025/26 Total change]]","v":0},{"$f":"Dataset[[#This Row],[2026/27 Baseline]]+Dataset[[#This Row],[2026/27 Total change]]","v":0}]
["NAT|Non-transfer item","26|Housing","2024_25","MTEF2024",26,1,1,43907,20,"26","01","01","043907","000020","26|01|01","01","01","02","20","20","01|01|02|20|20","National","Military Veterans","Administration","Management","Non-transfer item","Current","Current payments","Goods and services","Housing","Housing","Peace and security","Defence and state security","NAT",0,0,0,0,0,0,0,0,0,0,0,null,null,null,null,null,null,null,null,null,null,null,null,null,null,null,null,null,null,null,null,null,null,null,null,null,null,null,null,null,null,null,null,null,null,{"$f":"Dataset[[#This Row],[2024/25 From - Spending review Topic 1]]+Dataset[[#This Row],[2024/25 From - Spending review Topic 2]]+Dataset[[#This Row],[2024/25 From - Spending review Topic 3]]+Dataset[[#This Row],[2024/25 From - Spending review Topic 4]]+Dataset[[#This Row],[2024/25 From - Other reallocations]]","v":0},{"$f":"Dataset[[#This Row],[2025/26 From - Spending review Topic 1]]+Dataset[[#This Row],[2025/26 From - Spending review Topic 2]]+Dataset[[#This Row],[2025/26 From - Spending review Topic 3]]+Dataset[[#This Row],[2025/26 From - Spending review Topic 4]]+Dataset[[#This Row],[2025/26 From - Other reallocations]]","v":0},{"$f":"Dataset[[#This Row],[2026/27 From - Spending review Topic 1]]+Dataset[[#This Row],[2026/27 From - Spending review Topic 2]]+Dataset[[#This Row],[2026/27 From - Spending review Topic 3]]+Dataset[[#This Row],[2026/27 From - Spending review Topic 4]]+Dataset[[#This Row],[2026/27 From - Other reallocations]]","v":0},{"$f":"Dataset[[#This Row],[2024/25 To - Spending review Topic 1]]+Dataset[[#This Row],[2024/25 To - Spending review Topic 2]]+Dataset[[#This Row],[2024/25 To - Spending review Topic 3]]+Dataset[[#This Row],[2024/25 To - Spending review Topic 4]]+Dataset[[#This Row],[2024/25 To - Other reallocations]]","v":0},{"$f":"Dataset[[#This Row],[2025/26 To - Spending review Topic 1]]+Dataset[[#This Row],[2025/26 To - Spending review Topic 2]]+Dataset[[#This Row],[2025/26 To - Spending review Topic 3]]+Dataset[[#This Row],[2025/26 To - Spending review Topic 4]]+Dataset[[#This Row],[2025/26 To - Other reallocations]]","v":0},{"$f":"Dataset[[#This Row],[2026/27 To - Spending review Topic 1]]+Dataset[[#This Row],[2026/27 To - Spending review Topic 2]]+Dataset[[#This Row],[2026/27 To - Spending review Topic 3]]+Dataset[[#This Row],[2026/27 To - Spending review Topic 4]]+Dataset[[#This Row],[2026/27 To - Other reallocations]]","v":0},{"$f":"Dataset[[#This Row],[2024/25 Reduction]]+Dataset[[#This Row],[2024/25 From - Total]]","v":0},{"$f":"Dataset[[#This Row],[2025/26 Reduction]]+Dataset[[#This Row],[2025/26 From - Total]]","v":0},{"$f":"Dataset[[#This Row],[2026/27 Reduction]]+Dataset[[#This Row],[2026/27 From - Total]]","v":0},{"$f":"Dataset[[#This Row],[2023/24 Reduction]]","v":0},{"$f":"SUM(Dataset[[#This Row],[2024/25 Reduction]],Dataset[[#This Row],[2024/25 From - Total]],Dataset[[#This Row],[2024/25 To - Total]])","v":0},{"$f":"SUM(Dataset[[#This Row],[2025/26 Reduction]],Dataset[[#This Row],[2025/26 From - Total]],Dataset[[#This Row],[2025/26 To - Total]])","v":0},{"$f":"SUM(Dataset[[#This Row],[2026/27 Reduction]],Dataset[[#This Row],[2026/27 From - Total]],Dataset[[#This Row],[2026/27 To - Total]])","v":0},{"$f":"Dataset[[#This Row],[2023/24 Baseline]]+Dataset[[#This Row],[2023/24 Total change]]","v":0},{"$f":"Dataset[[#This Row],[2024/25 Baseline]]+Dataset[[#This Row],[2024/25 Total change]]","v":0},{"$f":"Dataset[[#This Row],[2025/26 Baseline]]+Dataset[[#This Row],[2025/26 Total change]]","v":0},{"$f":"Dataset[[#This Row],[2026/27 Baseline]]+Dataset[[#This Row],[2026/27 Total change]]","v":0}]
["NAT|Non-transfer item","26|Inventory: Clothing material and accessories","2024_25","MTEF2024",26,1,1,43908,21,"26","01","01","043908","000021","26|01|01","01","01","02","21","21","01|01|02|21|21","National","Military Veterans","Administration","Management","Non-transfer item","Current","Current payments","Goods and services","Inventory: Clothing material and accessories","Inventory: Clothing material and accessories","Peace and security","Defence and state security","NAT",0,0,0,0,0,0,0,0,0,0,0,null,null,null,null,null,null,null,null,null,null,null,null,null,null,null,null,null,null,null,null,null,null,null,null,null,null,null,null,null,null,null,null,null,null,{"$f":"Dataset[[#This Row],[2024/25 From - Spending review Topic 1]]+Dataset[[#This Row],[2024/25 From - Spending review Topic 2]]+Dataset[[#This Row],[2024/25 From - Spending review Topic 3]]+Dataset[[#This Row],[2024/25 From - Spending review Topic 4]]+Dataset[[#This Row],[2024/25 From - Other reallocations]]","v":0},{"$f":"Dataset[[#This Row],[2025/26 From - Spending review Topic 1]]+Dataset[[#This Row],[2025/26 From - Spending review Topic 2]]+Dataset[[#This Row],[2025/26 From - Spending review Topic 3]]+Dataset[[#This Row],[2025/26 From - Spending review Topic 4]]+Dataset[[#This Row],[2025/26 From - Other reallocations]]","v":0},{"$f":"Dataset[[#This Row],[2026/27 From - Spending review Topic 1]]+Dataset[[#This Row],[2026/27 From - Spending review Topic 2]]+Dataset[[#This Row],[2026/27 From - Spending review Topic 3]]+Dataset[[#This Row],[2026/27 From - Spending review Topic 4]]+Dataset[[#This Row],[2026/27 From - Other reallocations]]","v":0},{"$f":"Dataset[[#This Row],[2024/25 To - Spending review Topic 1]]+Dataset[[#This Row],[2024/25 To - Spending review Topic 2]]+Dataset[[#This Row],[2024/25 To - Spending review Topic 3]]+Dataset[[#This Row],[2024/25 To - Spending review Topic 4]]+Dataset[[#This Row],[2024/25 To - Other reallocations]]","v":0},{"$f":"Dataset[[#This Row],[2025/26 To - Spending review Topic 1]]+Dataset[[#This Row],[2025/26 To - Spending review Topic 2]]+Dataset[[#This Row],[2025/26 To - Spending review Topic 3]]+Dataset[[#This Row],[2025/26 To - Spending review Topic 4]]+Dataset[[#This Row],[2025/26 To - Other reallocations]]","v":0},{"$f":"Dataset[[#This Row],[2026/27 To - Spending review Topic 1]]+Dataset[[#This Row],[2026/27 To - Spending review Topic 2]]+Dataset[[#This Row],[2026/27 To - Spending review Topic 3]]+Dataset[[#This Row],[2026/27 To - Spending review Topic 4]]+Dataset[[#This Row],[2026/27 To - Other reallocations]]","v":0},{"$f":"Dataset[[#This Row],[2024/25 Reduction]]+Dataset[[#This Row],[2024/25 From - Total]]","v":0},{"$f":"Dataset[[#This Row],[2025/26 Reduction]]+Dataset[[#This Row],[2025/26 From - Total]]","v":0},{"$f":"Dataset[[#This Row],[2026/27 Reduction]]+Dataset[[#This Row],[2026/27 From - Total]]","v":0},{"$f":"Dataset[[#This Row],[2023/24 Reduction]]","v":0},{"$f":"SUM(Dataset[[#This Row],[2024/25 Reduction]],Dataset[[#This Row],[2024/25 From - Total]],Dataset[[#This Row],[2024/25 To - Total]])","v":0},{"$f":"SUM(Dataset[[#This Row],[2025/26 Reduction]],Dataset[[#This Row],[2025/26 From - Total]],Dataset[[#This Row],[2025/26 To - Total]])","v":0},{"$f":"SUM(Dataset[[#This Row],[2026/27 Reduction]],Dataset[[#This Row],[2026/27 From - Total]],Dataset[[#This Row],[2026/27 To - Total]])","v":0},{"$f":"Dataset[[#This Row],[2023/24 Baseline]]+Dataset[[#This Row],[2023/24 Total change]]","v":0},{"$f":"Dataset[[#This Row],[2024/25 Baseline]]+Dataset[[#This Row],[2024/25 Total change]]","v":0},{"$f":"Dataset[[#This Row],[2025/26 Baseline]]+Dataset[[#This Row],[2025/26 Total change]]","v":0},{"$f":"Dataset[[#This Row],[2026/27 Baseline]]+Dataset[[#This Row],[2026/27 Total change]]","v":0}]
["NAT|Non-transfer item","26|Inventory: Farming supplies","2024_25","MTEF2024",26,1,1,43909,22,"26","01","01","043909","000022","26|01|01","01","01","02","22","22","01|01|02|22|22","National","Military Veterans","Administration","Management","Non-transfer item","Current","Current payments","Goods and services","Inventory: Farming supplies","Inventory: Farming supplies","Peace and security","Defence and state security","NAT",0,0,0,0,0,0,0,0,0,0,0,null,null,null,null,null,null,null,null,null,null,null,null,null,null,null,null,null,null,null,null,null,null,null,null,null,null,null,null,null,null,null,null,null,null,{"$f":"Dataset[[#This Row],[2024/25 From - Spending review Topic 1]]+Dataset[[#This Row],[2024/25 From - Spending review Topic 2]]+Dataset[[#This Row],[2024/25 From - Spending review Topic 3]]+Dataset[[#This Row],[2024/25 From - Spending review Topic 4]]+Dataset[[#This Row],[2024/25 From - Other reallocations]]","v":0},{"$f":"Dataset[[#This Row],[2025/26 From - Spending review Topic 1]]+Dataset[[#This Row],[2025/26 From - Spending review Topic 2]]+Dataset[[#This Row],[2025/26 From - Spending review Topic 3]]+Dataset[[#This Row],[2025/26 From - Spending review Topic 4]]+Dataset[[#This Row],[2025/26 From - Other reallocations]]","v":0},{"$f":"Dataset[[#This Row],[2026/27 From - Spending review Topic 1]]+Dataset[[#This Row],[2026/27 From - Spending review Topic 2]]+Dataset[[#This Row],[2026/27 From - Spending review Topic 3]]+Dataset[[#This Row],[2026/27 From - Spending review Topic 4]]+Dataset[[#This Row],[2026/27 From - Other reallocations]]","v":0},{"$f":"Dataset[[#This Row],[2024/25 To - Spending review Topic 1]]+Dataset[[#This Row],[2024/25 To - Spending review Topic 2]]+Dataset[[#This Row],[2024/25 To - Spending review Topic 3]]+Dataset[[#This Row],[2024/25 To - Spending review Topic 4]]+Dataset[[#This Row],[2024/25 To - Other reallocations]]","v":0},{"$f":"Dataset[[#This Row],[2025/26 To - Spending review Topic 1]]+Dataset[[#This Row],[2025/26 To - Spending review Topic 2]]+Dataset[[#This Row],[2025/26 To - Spending review Topic 3]]+Dataset[[#This Row],[2025/26 To - Spending review Topic 4]]+Dataset[[#This Row],[2025/26 To - Other reallocations]]","v":0},{"$f":"Dataset[[#This Row],[2026/27 To - Spending review Topic 1]]+Dataset[[#This Row],[2026/27 To - Spending review Topic 2]]+Dataset[[#This Row],[2026/27 To - Spending review Topic 3]]+Dataset[[#This Row],[2026/27 To - Spending review Topic 4]]+Dataset[[#This Row],[2026/27 To - Other reallocations]]","v":0},{"$f":"Dataset[[#This Row],[2024/25 Reduction]]+Dataset[[#This Row],[2024/25 From - Total]]","v":0},{"$f":"Dataset[[#This Row],[2025/26 Reduction]]+Dataset[[#This Row],[2025/26 From - Total]]","v":0},{"$f":"Dataset[[#This Row],[2026/27 Reduction]]+Dataset[[#This Row],[2026/27 From - Total]]","v":0},{"$f":"Dataset[[#This Row],[2023/24 Reduction]]","v":0},{"$f":"SUM(Dataset[[#This Row],[2024/25 Reduction]],Dataset[[#This Row],[2024/25 From - Total]],Dataset[[#This Row],[2024/25 To - Total]])","v":0},{"$f":"SUM(Dataset[[#This Row],[2025/26 Reduction]],Dataset[[#This Row],[2025/26 From - Total]],Dataset[[#This Row],[2025/26 To - Total]])","v":0},{"$f":"SUM(Dataset[[#This Row],[2026/27 Reduction]],Dataset[[#This Row],[2026/27 From - Total]],Dataset[[#This Row],[2026/27 To - Total]])","v":0},{"$f":"Dataset[[#This Row],[2023/24 Baseline]]+Dataset[[#This Row],[2023/24 Total change]]","v":0},{"$f":"Dataset[[#This Row],[2024/25 Baseline]]+Dataset[[#This Row],[2024/25 Total change]]","v":0},{"$f":"Dataset[[#This Row],[2025/26 Baseline]]+Dataset[[#This Row],[2025/26 Total change]]","v":0},{"$f":"Dataset[[#This Row],[2026/27 Baseline]]+Dataset[[#This Row],[2026/27 Total change]]","v":0}]
["NAT|Non-transfer item","26|Inventory: Food and food supplies","2024_25","MTEF2024",26,1,1,43910,23,"26","01","01","043910","000023","26|01|01","01","01","02","23","23","01|01|02|23|23","National","Military Veterans","Administration","Management","Non-transfer item","Current","Current payments","Goods and services","Inventory: Food and food supplies","Inventory: Food and food supplies","Peace and security","Defence and state security","NAT",0,0,0,0,0,0,0,0,0,0,0,null,null,null,null,null,null,null,null,null,null,null,null,null,null,null,null,null,null,null,null,null,null,null,null,null,null,null,null,null,null,null,null,null,null,{"$f":"Dataset[[#This Row],[2024/25 From - Spending review Topic 1]]+Dataset[[#This Row],[2024/25 From - Spending review Topic 2]]+Dataset[[#This Row],[2024/25 From - Spending review Topic 3]]+Dataset[[#This Row],[2024/25 From - Spending review Topic 4]]+Dataset[[#This Row],[2024/25 From - Other reallocations]]","v":0},{"$f":"Dataset[[#This Row],[2025/26 From - Spending review Topic 1]]+Dataset[[#This Row],[2025/26 From - Spending review Topic 2]]+Dataset[[#This Row],[2025/26 From - Spending review Topic 3]]+Dataset[[#This Row],[2025/26 From - Spending review Topic 4]]+Dataset[[#This Row],[2025/26 From - Other reallocations]]","v":0},{"$f":"Dataset[[#This Row],[2026/27 From - Spending review Topic 1]]+Dataset[[#This Row],[2026/27 From - Spending review Topic 2]]+Dataset[[#This Row],[2026/27 From - Spending review Topic 3]]+Dataset[[#This Row],[2026/27 From - Spending review Topic 4]]+Dataset[[#This Row],[2026/27 From - Other reallocations]]","v":0},{"$f":"Dataset[[#This Row],[2024/25 To - Spending review Topic 1]]+Dataset[[#This Row],[2024/25 To - Spending review Topic 2]]+Dataset[[#This Row],[2024/25 To - Spending review Topic 3]]+Dataset[[#This Row],[2024/25 To - Spending review Topic 4]]+Dataset[[#This Row],[2024/25 To - Other reallocations]]","v":0},{"$f":"Dataset[[#This Row],[2025/26 To - Spending review Topic 1]]+Dataset[[#This Row],[2025/26 To - Spending review Topic 2]]+Dataset[[#This Row],[2025/26 To - Spending review Topic 3]]+Dataset[[#This Row],[2025/26 To - Spending review Topic 4]]+Dataset[[#This Row],[2025/26 To - Other reallocations]]","v":0},{"$f":"Dataset[[#This Row],[2026/27 To - Spending review Topic 1]]+Dataset[[#This Row],[2026/27 To - Spending review Topic 2]]+Dataset[[#This Row],[2026/27 To - Spending review Topic 3]]+Dataset[[#This Row],[2026/27 To - Spending review Topic 4]]+Dataset[[#This Row],[2026/27 To - Other reallocations]]","v":0},{"$f":"Dataset[[#This Row],[2024/25 Reduction]]+Dataset[[#This Row],[2024/25 From - Total]]","v":0},{"$f":"Dataset[[#This Row],[2025/26 Reduction]]+Dataset[[#This Row],[2025/26 From - Total]]","v":0},{"$f":"Dataset[[#This Row],[2026/27 Reduction]]+Dataset[[#This Row],[2026/27 From - Total]]","v":0},{"$f":"Dataset[[#This Row],[2023/24 Reduction]]","v":0},{"$f":"SUM(Dataset[[#This Row],[2024/25 Reduction]],Dataset[[#This Row],[2024/25 From - Total]],Dataset[[#This Row],[2024/25 To - Total]])","v":0},{"$f":"SUM(Dataset[[#This Row],[2025/26 Reduction]],Dataset[[#This Row],[2025/26 From - Total]],Dataset[[#This Row],[2025/26 To - Total]])","v":0},{"$f":"SUM(Dataset[[#This Row],[2026/27 Reduction]],Dataset[[#This Row],[2026/27 From - Total]],Dataset[[#This Row],[2026/27 To - Total]])","v":0},{"$f":"Dataset[[#This Row],[2023/24 Baseline]]+Dataset[[#This Row],[2023/24 Total change]]","v":0},{"$f":"Dataset[[#This Row],[2024/25 Baseline]]+Dataset[[#This Row],[2024/25 Total change]]","v":0},{"$f":"Dataset[[#This Row],[2025/26 Baseline]]+Dataset[[#This Row],[2025/26 Total change]]","v":0},{"$f":"Dataset[[#This Row],[2026/27 Baseline]]+Dataset[[#This Row],[2026/27 Total change]]","v":0}]
["NAT|Non-transfer item","26|Inventory: Fuel, oil and gas","2024_25","MTEF2024",26,1,1,43911,24,"26","01","01","043911","000024","26|01|01","01","01","02","24","24","01|01|02|24|24","National","Military Veterans","Administration","Management","Non-transfer item","Current","Current payments","Goods and services","Inventory: Fuel, oil and gas","Inventory: Fuel, oil and gas","Peace and security","Defence and state security","NAT",0,0,0,0,0,0,0,0,0,0,0,null,null,null,null,null,null,null,null,null,null,null,null,null,null,null,null,null,null,null,null,null,null,null,null,null,null,null,null,null,null,null,null,null,null,{"$f":"Dataset[[#This Row],[2024/25 From - Spending review Topic 1]]+Dataset[[#This Row],[2024/25 From - Spending review Topic 2]]+Dataset[[#This Row],[2024/25 From - Spending review Topic 3]]+Dataset[[#This Row],[2024/25 From - Spending review Topic 4]]+Dataset[[#This Row],[2024/25 From - Other reallocations]]","v":0},{"$f":"Dataset[[#This Row],[2025/26 From - Spending review Topic 1]]+Dataset[[#This Row],[2025/26 From - Spending review Topic 2]]+Dataset[[#This Row],[2025/26 From - Spending review Topic 3]]+Dataset[[#This Row],[2025/26 From - Spending review Topic 4]]+Dataset[[#This Row],[2025/26 From - Other reallocations]]","v":0},{"$f":"Dataset[[#This Row],[2026/27 From - Spending review Topic 1]]+Dataset[[#This Row],[2026/27 From - Spending review Topic 2]]+Dataset[[#This Row],[2026/27 From - Spending review Topic 3]]+Dataset[[#This Row],[2026/27 From - Spending review Topic 4]]+Dataset[[#This Row],[2026/27 From - Other reallocations]]","v":0},{"$f":"Dataset[[#This Row],[2024/25 To - Spending review Topic 1]]+Dataset[[#This Row],[2024/25 To - Spending review Topic 2]]+Dataset[[#This Row],[2024/25 To - Spending review Topic 3]]+Dataset[[#This Row],[2024/25 To - Spending review Topic 4]]+Dataset[[#This Row],[2024/25 To - Other reallocations]]","v":0},{"$f":"Dataset[[#This Row],[2025/26 To - Spending review Topic 1]]+Dataset[[#This Row],[2025/26 To - Spending review Topic 2]]+Dataset[[#This Row],[2025/26 To - Spending review Topic 3]]+Dataset[[#This Row],[2025/26 To - Spending review Topic 4]]+Dataset[[#This Row],[2025/26 To - Other reallocations]]","v":0},{"$f":"Dataset[[#This Row],[2026/27 To - Spending review Topic 1]]+Dataset[[#This Row],[2026/27 To - Spending review Topic 2]]+Dataset[[#This Row],[2026/27 To - Spending review Topic 3]]+Dataset[[#This Row],[2026/27 To - Spending review Topic 4]]+Dataset[[#This Row],[2026/27 To - Other reallocations]]","v":0},{"$f":"Dataset[[#This Row],[2024/25 Reduction]]+Dataset[[#This Row],[2024/25 From - Total]]","v":0},{"$f":"Dataset[[#This Row],[2025/26 Reduction]]+Dataset[[#This Row],[2025/26 From - Total]]","v":0},{"$f":"Dataset[[#This Row],[2026/27 Reduction]]+Dataset[[#This Row],[2026/27 From - Total]]","v":0},{"$f":"Dataset[[#This Row],[2023/24 Reduction]]","v":0},{"$f":"SUM(Dataset[[#This Row],[2024/25 Reduction]],Dataset[[#This Row],[2024/25 From - Total]],Dataset[[#This Row],[2024/25 To - Total]])","v":0},{"$f":"SUM(Dataset[[#This Row],[2025/26 Reduction]],Dataset[[#This Row],[2025/26 From - Total]],Dataset[[#This Row],[2025/26 To - Total]])","v":0},{"$f":"SUM(Dataset[[#This Row],[2026/27 Reduction]],Dataset[[#This Row],[2026/27 From - Total]],Dataset[[#This Row],[2026/27 To - Total]])","v":0},{"$f":"Dataset[[#This Row],[2023/24 Baseline]]+Dataset[[#This Row],[2023/24 Total change]]","v":0},{"$f":"Dataset[[#This Row],[2024/25 Baseline]]+Dataset[[#This Row],[2024/25 Total change]]","v":0},{"$f":"Dataset[[#This Row],[2025/26 Baseline]]+Dataset[[#This Row],[2025/26 Total change]]","v":0},{"$f":"Dataset[[#This Row],[2026/27 Baseline]]+Dataset[[#This Row],[2026/27 Total change]]","v":0}]
["NAT|Non-transfer item","26|Inventory: Learner and teacher support material","2024_25","MTEF2024",26,1,1,43912,25,"26","01","01","043912","000025","26|01|01","01","01","02","25","25","01|01|02|25|25","National","Military Veterans","Administration","Management","Non-transfer item","Current","Current payments","Goods and services","Inventory: Learner and teacher support material","Inventory: Learner and teacher support material","Peace and security","Defence and state security","NAT",0,0,0,0,0,0,0,0,0,0,0,null,null,null,null,null,null,null,null,null,null,null,null,null,null,null,null,null,null,null,null,null,null,null,null,null,null,null,null,null,null,null,null,null,null,{"$f":"Dataset[[#This Row],[2024/25 From - Spending review Topic 1]]+Dataset[[#This Row],[2024/25 From - Spending review Topic 2]]+Dataset[[#This Row],[2024/25 From - Spending review Topic 3]]+Dataset[[#This Row],[2024/25 From - Spending review Topic 4]]+Dataset[[#This Row],[2024/25 From - Other reallocations]]","v":0},{"$f":"Dataset[[#This Row],[2025/26 From - Spending review Topic 1]]+Dataset[[#This Row],[2025/26 From - Spending review Topic 2]]+Dataset[[#This Row],[2025/26 From - Spending review Topic 3]]+Dataset[[#This Row],[2025/26 From - Spending review Topic 4]]+Dataset[[#This Row],[2025/26 From - Other reallocations]]","v":0},{"$f":"Dataset[[#This Row],[2026/27 From - Spending review Topic 1]]+Dataset[[#This Row],[2026/27 From - Spending review Topic 2]]+Dataset[[#This Row],[2026/27 From - Spending review Topic 3]]+Dataset[[#This Row],[2026/27 From - Spending review Topic 4]]+Dataset[[#This Row],[2026/27 From - Other reallocations]]","v":0},{"$f":"Dataset[[#This Row],[2024/25 To - Spending review Topic 1]]+Dataset[[#This Row],[2024/25 To - Spending review Topic 2]]+Dataset[[#This Row],[2024/25 To - Spending review Topic 3]]+Dataset[[#This Row],[2024/25 To - Spending review Topic 4]]+Dataset[[#This Row],[2024/25 To - Other reallocations]]","v":0},{"$f":"Dataset[[#This Row],[2025/26 To - Spending review Topic 1]]+Dataset[[#This Row],[2025/26 To - Spending review Topic 2]]+Dataset[[#This Row],[2025/26 To - Spending review Topic 3]]+Dataset[[#This Row],[2025/26 To - Spending review Topic 4]]+Dataset[[#This Row],[2025/26 To - Other reallocations]]","v":0},{"$f":"Dataset[[#This Row],[2026/27 To - Spending review Topic 1]]+Dataset[[#This Row],[2026/27 To - Spending review Topic 2]]+Dataset[[#This Row],[2026/27 To - Spending review Topic 3]]+Dataset[[#This Row],[2026/27 To - Spending review Topic 4]]+Dataset[[#This Row],[2026/27 To - Other reallocations]]","v":0},{"$f":"Dataset[[#This Row],[2024/25 Reduction]]+Dataset[[#This Row],[2024/25 From - Total]]","v":0},{"$f":"Dataset[[#This Row],[2025/26 Reduction]]+Dataset[[#This Row],[2025/26 From - Total]]","v":0},{"$f":"Dataset[[#This Row],[2026/27 Reduction]]+Dataset[[#This Row],[2026/27 From - Total]]","v":0},{"$f":"Dataset[[#This Row],[2023/24 Reduction]]","v":0},{"$f":"SUM(Dataset[[#This Row],[2024/25 Reduction]],Dataset[[#This Row],[2024/25 From - Total]],Dataset[[#This Row],[2024/25 To - Total]])","v":0},{"$f":"SUM(Dataset[[#This Row],[2025/26 Reduction]],Dataset[[#This Row],[2025/26 From - Total]],Dataset[[#This Row],[2025/26 To - Total]])","v":0},{"$f":"SUM(Dataset[[#This Row],[2026/27 Reduction]],Dataset[[#This Row],[2026/27 From - Total]],Dataset[[#This Row],[2026/27 To - Total]])","v":0},{"$f":"Dataset[[#This Row],[2023/24 Baseline]]+Dataset[[#This Row],[2023/24 Total change]]","v":0},{"$f":"Dataset[[#This Row],[2024/25 Baseline]]+Dataset[[#This Row],[2024/25 Total change]]","v":0},{"$f":"Dataset[[#This Row],[2025/26 Baseline]]+Dataset[[#This Row],[2025/26 Total change]]","v":0},{"$f":"Dataset[[#This Row],[2026/27 Baseline]]+Dataset[[#This Row],[2026/27 Total change]]","v":0}]
["NAT|Non-transfer item","26|Inventory: Materials and supplies","2024_25","MTEF2024",26,1,1,43913,26,"26","01","01","043913","000026","26|01|01","01","01","02","26","26","01|01|02|26|26","National","Military Veterans","Administration","Management","Non-transfer item","Current","Current payments","Goods and services","Inventory: Materials and supplies","Inventory: Materials and supplies","Peace and security","Defence and state security","NAT",0,0,0,0,0,0,0,0,0,0,0,null,null,null,null,null,null,null,null,null,null,null,null,null,null,null,null,null,null,null,null,null,null,null,null,null,null,null,null,null,null,null,null,null,null,{"$f":"Dataset[[#This Row],[2024/25 From - Spending review Topic 1]]+Dataset[[#This Row],[2024/25 From - Spending review Topic 2]]+Dataset[[#This Row],[2024/25 From - Spending review Topic 3]]+Dataset[[#This Row],[2024/25 From - Spending review Topic 4]]+Dataset[[#This Row],[2024/25 From - Other reallocations]]","v":0},{"$f":"Dataset[[#This Row],[2025/26 From - Spending review Topic 1]]+Dataset[[#This Row],[2025/26 From - Spending review Topic 2]]+Dataset[[#This Row],[2025/26 From - Spending review Topic 3]]+Dataset[[#This Row],[2025/26 From - Spending review Topic 4]]+Dataset[[#This Row],[2025/26 From - Other reallocations]]","v":0},{"$f":"Dataset[[#This Row],[2026/27 From - Spending review Topic 1]]+Dataset[[#This Row],[2026/27 From - Spending review Topic 2]]+Dataset[[#This Row],[2026/27 From - Spending review Topic 3]]+Dataset[[#This Row],[2026/27 From - Spending review Topic 4]]+Dataset[[#This Row],[2026/27 From - Other reallocations]]","v":0},{"$f":"Dataset[[#This Row],[2024/25 To - Spending review Topic 1]]+Dataset[[#This Row],[2024/25 To - Spending review Topic 2]]+Dataset[[#This Row],[2024/25 To - Spending review Topic 3]]+Dataset[[#This Row],[2024/25 To - Spending review Topic 4]]+Dataset[[#This Row],[2024/25 To - Other reallocations]]","v":0},{"$f":"Dataset[[#This Row],[2025/26 To - Spending review Topic 1]]+Dataset[[#This Row],[2025/26 To - Spending review Topic 2]]+Dataset[[#This Row],[2025/26 To - Spending review Topic 3]]+Dataset[[#This Row],[2025/26 To - Spending review Topic 4]]+Dataset[[#This Row],[2025/26 To - Other reallocations]]","v":0},{"$f":"Dataset[[#This Row],[2026/27 To - Spending review Topic 1]]+Dataset[[#This Row],[2026/27 To - Spending review Topic 2]]+Dataset[[#This Row],[2026/27 To - Spending review Topic 3]]+Dataset[[#This Row],[2026/27 To - Spending review Topic 4]]+Dataset[[#This Row],[2026/27 To - Other reallocations]]","v":0},{"$f":"Dataset[[#This Row],[2024/25 Reduction]]+Dataset[[#This Row],[2024/25 From - Total]]","v":0},{"$f":"Dataset[[#This Row],[2025/26 Reduction]]+Dataset[[#This Row],[2025/26 From - Total]]","v":0},{"$f":"Dataset[[#This Row],[2026/27 Reduction]]+Dataset[[#This Row],[2026/27 From - Total]]","v":0},{"$f":"Dataset[[#This Row],[2023/24 Reduction]]","v":0},{"$f":"SUM(Dataset[[#This Row],[2024/25 Reduction]],Dataset[[#This Row],[2024/25 From - Total]],Dataset[[#This Row],[2024/25 To - Total]])","v":0},{"$f":"SUM(Dataset[[#This Row],[2025/26 Reduction]],Dataset[[#This Row],[2025/26 From - Total]],Dataset[[#This Row],[2025/26 To - Total]])","v":0},{"$f":"SUM(Dataset[[#This Row],[2026/27 Reduction]],Dataset[[#This Row],[2026/27 From - Total]],Dataset[[#This Row],[2026/27 To - Total]])","v":0},{"$f":"Dataset[[#This Row],[2023/24 Baseline]]+Dataset[[#This Row],[2023/24 Total change]]","v":0},{"$f":"Dataset[[#This Row],[2024/25 Baseline]]+Dataset[[#This Row],[2024/25 Total change]]","v":0},{"$f":"Dataset[[#This Row],[2025/26 Baseline]]+Dataset[[#This Row],[2025/26 Total change]]","v":0},{"$f":"Dataset[[#This Row],[2026/27 Baseline]]+Dataset[[#This Row],[2026/27 Total change]]","v":0}]
["NAT|Non-transfer item","26|Inventory: Medical supplies","2024_25","MTEF2024",26,1,1,43914,27,"26","01","01","043914","000027","26|01|01","01","01","02","27","27","01|01|02|27|27","National","Military Veterans","Administration","Management","Non-transfer item","Current","Current payments","Goods and services","Inventory: Medical supplies","Inventory: Medical supplies","Peace and security","Defence and state security","NAT",0,0,0,0,0,0,0,0,0,0,0,null,null,null,null,null,null,null,null,null,null,null,null,null,null,null,null,null,null,null,null,null,null,null,null,null,null,null,null,null,null,null,null,null,null,{"$f":"Dataset[[#This Row],[2024/25 From - Spending review Topic 1]]+Dataset[[#This Row],[2024/25 From - Spending review Topic 2]]+Dataset[[#This Row],[2024/25 From - Spending review Topic 3]]+Dataset[[#This Row],[2024/25 From - Spending review Topic 4]]+Dataset[[#This Row],[2024/25 From - Other reallocations]]","v":0},{"$f":"Dataset[[#This Row],[2025/26 From - Spending review Topic 1]]+Dataset[[#This Row],[2025/26 From - Spending review Topic 2]]+Dataset[[#This Row],[2025/26 From - Spending review Topic 3]]+Dataset[[#This Row],[2025/26 From - Spending review Topic 4]]+Dataset[[#This Row],[2025/26 From - Other reallocations]]","v":0},{"$f":"Dataset[[#This Row],[2026/27 From - Spending review Topic 1]]+Dataset[[#This Row],[2026/27 From - Spending review Topic 2]]+Dataset[[#This Row],[2026/27 From - Spending review Topic 3]]+Dataset[[#This Row],[2026/27 From - Spending review Topic 4]]+Dataset[[#This Row],[2026/27 From - Other reallocations]]","v":0},{"$f":"Dataset[[#This Row],[2024/25 To - Spending review Topic 1]]+Dataset[[#This Row],[2024/25 To - Spending review Topic 2]]+Dataset[[#This Row],[2024/25 To - Spending review Topic 3]]+Dataset[[#This Row],[2024/25 To - Spending review Topic 4]]+Dataset[[#This Row],[2024/25 To - Other reallocations]]","v":0},{"$f":"Dataset[[#This Row],[2025/26 To - Spending review Topic 1]]+Dataset[[#This Row],[2025/26 To - Spending review Topic 2]]+Dataset[[#This Row],[2025/26 To - Spending review Topic 3]]+Dataset[[#This Row],[2025/26 To - Spending review Topic 4]]+Dataset[[#This Row],[2025/26 To - Other reallocations]]","v":0},{"$f":"Dataset[[#This Row],[2026/27 To - Spending review Topic 1]]+Dataset[[#This Row],[2026/27 To - Spending review Topic 2]]+Dataset[[#This Row],[2026/27 To - Spending review Topic 3]]+Dataset[[#This Row],[2026/27 To - Spending review Topic 4]]+Dataset[[#This Row],[2026/27 To - Other reallocations]]","v":0},{"$f":"Dataset[[#This Row],[2024/25 Reduction]]+Dataset[[#This Row],[2024/25 From - Total]]","v":0},{"$f":"Dataset[[#This Row],[2025/26 Reduction]]+Dataset[[#This Row],[2025/26 From - Total]]","v":0},{"$f":"Dataset[[#This Row],[2026/27 Reduction]]+Dataset[[#This Row],[2026/27 From - Total]]","v":0},{"$f":"Dataset[[#This Row],[2023/24 Reduction]]","v":0},{"$f":"SUM(Dataset[[#This Row],[2024/25 Reduction]],Dataset[[#This Row],[2024/25 From - Total]],Dataset[[#This Row],[2024/25 To - Total]])","v":0},{"$f":"SUM(Dataset[[#This Row],[2025/26 Reduction]],Dataset[[#This Row],[2025/26 From - Total]],Dataset[[#This Row],[2025/26 To - Total]])","v":0},{"$f":"SUM(Dataset[[#This Row],[2026/27 Reduction]],Dataset[[#This Row],[2026/27 From - Total]],Dataset[[#This Row],[2026/27 To - Total]])","v":0},{"$f":"Dataset[[#This Row],[2023/24 Baseline]]+Dataset[[#This Row],[2023/24 Total change]]","v":0},{"$f":"Dataset[[#This Row],[2024/25 Baseline]]+Dataset[[#This Row],[2024/25 Total change]]","v":0},{"$f":"Dataset[[#This Row],[2025/26 Baseline]]+Dataset[[#This Row],[2025/26 Total change]]","v":0},{"$f":"Dataset[[#This Row],[2026/27 Baseline]]+Dataset[[#This Row],[2026/27 Total change]]","v":0}]
["NAT|Non-transfer item","26|Inventory: Medicine","2024_25","MTEF2024",26,1,1,43915,28,"26","01","01","043915","000028","26|01|01","01","01","02","28","28","01|01|02|28|28","National","Military Veterans","Administration","Management","Non-transfer item","Current","Current payments","Goods and services","Inventory: Medicine","Inventory: Medicine","Peace and security","Defence and state security","NAT",0,0,0,0,0,0,0,0,0,0,0,null,null,null,null,null,null,null,null,null,null,null,null,null,null,null,null,null,null,null,null,null,null,null,null,null,null,null,null,null,null,null,null,null,null,{"$f":"Dataset[[#This Row],[2024/25 From - Spending review Topic 1]]+Dataset[[#This Row],[2024/25 From - Spending review Topic 2]]+Dataset[[#This Row],[2024/25 From - Spending review Topic 3]]+Dataset[[#This Row],[2024/25 From - Spending review Topic 4]]+Dataset[[#This Row],[2024/25 From - Other reallocations]]","v":0},{"$f":"Dataset[[#This Row],[2025/26 From - Spending review Topic 1]]+Dataset[[#This Row],[2025/26 From - Spending review Topic 2]]+Dataset[[#This Row],[2025/26 From - Spending review Topic 3]]+Dataset[[#This Row],[2025/26 From - Spending review Topic 4]]+Dataset[[#This Row],[2025/26 From - Other reallocations]]","v":0},{"$f":"Dataset[[#This Row],[2026/27 From - Spending review Topic 1]]+Dataset[[#This Row],[2026/27 From - Spending review Topic 2]]+Dataset[[#This Row],[2026/27 From - Spending review Topic 3]]+Dataset[[#This Row],[2026/27 From - Spending review Topic 4]]+Dataset[[#This Row],[2026/27 From - Other reallocations]]","v":0},{"$f":"Dataset[[#This Row],[2024/25 To - Spending review Topic 1]]+Dataset[[#This Row],[2024/25 To - Spending review Topic 2]]+Dataset[[#This Row],[2024/25 To - Spending review Topic 3]]+Dataset[[#This Row],[2024/25 To - Spending review Topic 4]]+Dataset[[#This Row],[2024/25 To - Other reallocations]]","v":0},{"$f":"Dataset[[#This Row],[2025/26 To - Spending review Topic 1]]+Dataset[[#This Row],[2025/26 To - Spending review Topic 2]]+Dataset[[#This Row],[2025/26 To - Spending review Topic 3]]+Dataset[[#This Row],[2025/26 To - Spending review Topic 4]]+Dataset[[#This Row],[2025/26 To - Other reallocations]]","v":0},{"$f":"Dataset[[#This Row],[2026/27 To - Spending review Topic 1]]+Dataset[[#This Row],[2026/27 To - Spending review Topic 2]]+Dataset[[#This Row],[2026/27 To - Spending review Topic 3]]+Dataset[[#This Row],[2026/27 To - Spending review Topic 4]]+Dataset[[#This Row],[2026/27 To - Other reallocations]]","v":0},{"$f":"Dataset[[#This Row],[2024/25 Reduction]]+Dataset[[#This Row],[2024/25 From - Total]]","v":0},{"$f":"Dataset[[#This Row],[2025/26 Reduction]]+Dataset[[#This Row],[2025/26 From - Total]]","v":0},{"$f":"Dataset[[#This Row],[2026/27 Reduction]]+Dataset[[#This Row],[2026/27 From - Total]]","v":0},{"$f":"Dataset[[#This Row],[2023/24 Reduction]]","v":0},{"$f":"SUM(Dataset[[#This Row],[2024/25 Reduction]],Dataset[[#This Row],[2024/25 From - Total]],Dataset[[#This Row],[2024/25 To - Total]])","v":0},{"$f":"SUM(Dataset[[#This Row],[2025/26 Reduction]],Dataset[[#This Row],[2025/26 From - Total]],Dataset[[#This Row],[2025/26 To - Total]])","v":0},{"$f":"SUM(Dataset[[#This Row],[2026/27 Reduction]],Dataset[[#This Row],[2026/27 From - Total]],Dataset[[#This Row],[2026/27 To - Total]])","v":0},{"$f":"Dataset[[#This Row],[2023/24 Baseline]]+Dataset[[#This Row],[2023/24 Total change]]","v":0},{"$f":"Dataset[[#This Row],[2024/25 Baseline]]+Dataset[[#This Row],[2024/25 Total change]]","v":0},{"$f":"Dataset[[#This Row],[2025/26 Baseline]]+Dataset[[#This Row],[2025/26 Total change]]","v":0},{"$f":"Dataset[[#This Row],[2026/27 Baseline]]+Dataset[[#This Row],[2026/27 Total change]]","v":0}]
["NAT|Non-transfer item","26|Medsas inventory interface","2024_25","MTEF2024",26,1,1,43916,29,"26","01","01","043916","000029","26|01|01","01","01","02","29","29","01|01|02|29|29","National","Military Veterans","Administration","Management","Non-transfer item","Current","Current payments","Goods and services","Medsas inventory interface","Medsas inventory interface","Peace and security","Defence and state security","NAT",0,0,0,0,0,0,0,0,0,0,0,null,null,null,null,null,null,null,null,null,null,null,null,null,null,null,null,null,null,null,null,null,null,null,null,null,null,null,null,null,null,null,null,null,null,{"$f":"Dataset[[#This Row],[2024/25 From - Spending review Topic 1]]+Dataset[[#This Row],[2024/25 From - Spending review Topic 2]]+Dataset[[#This Row],[2024/25 From - Spending review Topic 3]]+Dataset[[#This Row],[2024/25 From - Spending review Topic 4]]+Dataset[[#This Row],[2024/25 From - Other reallocations]]","v":0},{"$f":"Dataset[[#This Row],[2025/26 From - Spending review Topic 1]]+Dataset[[#This Row],[2025/26 From - Spending review Topic 2]]+Dataset[[#This Row],[2025/26 From - Spending review Topic 3]]+Dataset[[#This Row],[2025/26 From - Spending review Topic 4]]+Dataset[[#This Row],[2025/26 From - Other reallocations]]","v":0},{"$f":"Dataset[[#This Row],[2026/27 From - Spending review Topic 1]]+Dataset[[#This Row],[2026/27 From - Spending review Topic 2]]+Dataset[[#This Row],[2026/27 From - Spending review Topic 3]]+Dataset[[#This Row],[2026/27 From - Spending review Topic 4]]+Dataset[[#This Row],[2026/27 From - Other reallocations]]","v":0},{"$f":"Dataset[[#This Row],[2024/25 To - Spending review Topic 1]]+Dataset[[#This Row],[2024/25 To - Spending review Topic 2]]+Dataset[[#This Row],[2024/25 To - Spending review Topic 3]]+Dataset[[#This Row],[2024/25 To - Spending review Topic 4]]+Dataset[[#This Row],[2024/25 To - Other reallocations]]","v":0},{"$f":"Dataset[[#This Row],[2025/26 To - Spending review Topic 1]]+Dataset[[#This Row],[2025/26 To - Spending review Topic 2]]+Dataset[[#This Row],[2025/26 To - Spending review Topic 3]]+Dataset[[#This Row],[2025/26 To - Spending review Topic 4]]+Dataset[[#This Row],[2025/26 To - Other reallocations]]","v":0},{"$f":"Dataset[[#This Row],[2026/27 To - Spending review Topic 1]]+Dataset[[#This Row],[2026/27 To - Spending review Topic 2]]+Dataset[[#This Row],[2026/27 To - Spending review Topic 3]]+Dataset[[#This Row],[2026/27 To - Spending review Topic 4]]+Dataset[[#This Row],[2026/27 To - Other reallocations]]","v":0},{"$f":"Dataset[[#This Row],[2024/25 Reduction]]+Dataset[[#This Row],[2024/25 From - Total]]","v":0},{"$f":"Dataset[[#This Row],[2025/26 Reduction]]+Dataset[[#This Row],[2025/26 From - Total]]","v":0},{"$f":"Dataset[[#This Row],[2026/27 Reduction]]+Dataset[[#This Row],[2026/27 From - Total]]","v":0},{"$f":"Dataset[[#This Row],[2023/24 Reduction]]","v":0},{"$f":"SUM(Dataset[[#This Row],[2024/25 Reduction]],Dataset[[#This Row],[2024/25 From - Total]],Dataset[[#This Row],[2024/25 To - Total]])","v":0},{"$f":"SUM(Dataset[[#This Row],[2025/26 Reduction]],Dataset[[#This Row],[2025/26 From - Total]],Dataset[[#This Row],[2025/26 To - Total]])","v":0},{"$f":"SUM(Dataset[[#This Row],[2026/27 Reduction]],Dataset[[#This Row],[2026/27 From - Total]],Dataset[[#This Row],[2026/27 To - Total]])","v":0},{"$f":"Dataset[[#This Row],[2023/24 Baseline]]+Dataset[[#This Row],[2023/24 Total change]]","v":0},{"$f":"Dataset[[#This Row],[2024/25 Baseline]]+Dataset[[#This Row],[2024/25 Total change]]","v":0},{"$f":"Dataset[[#This Row],[2025/26 Baseline]]+Dataset[[#This Row],[2025/26 Total change]]","v":0},{"$f":"Dataset[[#This Row],[2026/27 Baseline]]+Dataset[[#This Row],[2026/27 Total change]]","v":0}]
["NAT|Non-transfer item","26|Inventory: Other supplies","2024_25","MTEF2024",26,1,1,43917,30,"26","01","01","043917","000030","26|01|01","01","01","02","30","30","01|01|02|30|30","National","Military Veterans","Administration","Management","Non-transfer item","Current","Current payments","Goods and services","Inventory: Other supplies","Inventory: Other supplies","Peace and security","Defence and state security","NAT",0,0,0,0,0,0,0,0,0,0,0,null,null,null,null,null,null,null,null,null,null,null,null,null,null,null,null,null,null,null,null,null,null,null,null,null,null,null,null,null,null,null,null,null,null,{"$f":"Dataset[[#This Row],[2024/25 From - Spending review Topic 1]]+Dataset[[#This Row],[2024/25 From - Spending review Topic 2]]+Dataset[[#This Row],[2024/25 From - Spending review Topic 3]]+Dataset[[#This Row],[2024/25 From - Spending review Topic 4]]+Dataset[[#This Row],[2024/25 From - Other reallocations]]","v":0},{"$f":"Dataset[[#This Row],[2025/26 From - Spending review Topic 1]]+Dataset[[#This Row],[2025/26 From - Spending review Topic 2]]+Dataset[[#This Row],[2025/26 From - Spending review Topic 3]]+Dataset[[#This Row],[2025/26 From - Spending review Topic 4]]+Dataset[[#This Row],[2025/26 From - Other reallocations]]","v":0},{"$f":"Dataset[[#This Row],[2026/27 From - Spending review Topic 1]]+Dataset[[#This Row],[2026/27 From - Spending review Topic 2]]+Dataset[[#This Row],[2026/27 From - Spending review Topic 3]]+Dataset[[#This Row],[2026/27 From - Spending review Topic 4]]+Dataset[[#This Row],[2026/27 From - Other reallocations]]","v":0},{"$f":"Dataset[[#This Row],[2024/25 To - Spending review Topic 1]]+Dataset[[#This Row],[2024/25 To - Spending review Topic 2]]+Dataset[[#This Row],[2024/25 To - Spending review Topic 3]]+Dataset[[#This Row],[2024/25 To - Spending review Topic 4]]+Dataset[[#This Row],[2024/25 To - Other reallocations]]","v":0},{"$f":"Dataset[[#This Row],[2025/26 To - Spending review Topic 1]]+Dataset[[#This Row],[2025/26 To - Spending review Topic 2]]+Dataset[[#This Row],[2025/26 To - Spending review Topic 3]]+Dataset[[#This Row],[2025/26 To - Spending review Topic 4]]+Dataset[[#This Row],[2025/26 To - Other reallocations]]","v":0},{"$f":"Dataset[[#This Row],[2026/27 To - Spending review Topic 1]]+Dataset[[#This Row],[2026/27 To - Spending review Topic 2]]+Dataset[[#This Row],[2026/27 To - Spending review Topic 3]]+Dataset[[#This Row],[2026/27 To - Spending review Topic 4]]+Dataset[[#This Row],[2026/27 To - Other reallocations]]","v":0},{"$f":"Dataset[[#This Row],[2024/25 Reduction]]+Dataset[[#This Row],[2024/25 From - Total]]","v":0},{"$f":"Dataset[[#This Row],[2025/26 Reduction]]+Dataset[[#This Row],[2025/26 From - Total]]","v":0},{"$f":"Dataset[[#This Row],[2026/27 Reduction]]+Dataset[[#This Row],[2026/27 From - Total]]","v":0},{"$f":"Dataset[[#This Row],[2023/24 Reduction]]","v":0},{"$f":"SUM(Dataset[[#This Row],[2024/25 Reduction]],Dataset[[#This Row],[2024/25 From - Total]],Dataset[[#This Row],[2024/25 To - Total]])","v":0},{"$f":"SUM(Dataset[[#This Row],[2025/26 Reduction]],Dataset[[#This Row],[2025/26 From - Total]],Dataset[[#This Row],[2025/26 To - Total]])","v":0},{"$f":"SUM(Dataset[[#This Row],[2026/27 Reduction]],Dataset[[#This Row],[2026/27 From - Total]],Dataset[[#This Row],[2026/27 To - Total]])","v":0},{"$f":"Dataset[[#This Row],[2023/24 Baseline]]+Dataset[[#This Row],[2023/24 Total change]]","v":0},{"$f":"Dataset[[#This Row],[2024/25 Baseline]]+Dataset[[#This Row],[2024/25 Total change]]","v":0},{"$f":"Dataset[[#This Row],[2025/26 Baseline]]+Dataset[[#This Row],[2025/26 Total change]]","v":0},{"$f":"Dataset[[#This Row],[2026/27 Baseline]]+Dataset[[#This Row],[2026/27 Total change]]","v":0}]
["NAT|Non-transfer item","26|Consumable supplies","2024_25","MTEF2024",26,1,1,43918,31,"26","01","01","043918","000031","26|01|01","01","01","02","31","31","01|01|02|31|31","National","Military Veterans","Administration","Management","Non-transfer item","Current","Current payments","Goods and services","Consumable supplies","Consumable supplies","Peace and security","Defence and state security","NAT",7,8,3,22,7,7,0,68,84,90,94,null,null,null,null,null,null,null,null,null,null,null,null,null,null,null,null,null,null,null,null,null,null,null,null,null,null,null,null,null,null,null,null,null,null,{"$f":"Dataset[[#This Row],[2024/25 From - Spending review Topic 1]]+Dataset[[#This Row],[2024/25 From - Spending review Topic 2]]+Dataset[[#This Row],[2024/25 From - Spending review Topic 3]]+Dataset[[#This Row],[2024/25 From - Spending review Topic 4]]+Dataset[[#This Row],[2024/25 From - Other reallocations]]","v":0},{"$f":"Dataset[[#This Row],[2025/26 From - Spending review Topic 1]]+Dataset[[#This Row],[2025/26 From - Spending review Topic 2]]+Dataset[[#This Row],[2025/26 From - Spending review Topic 3]]+Dataset[[#This Row],[2025/26 From - Spending review Topic 4]]+Dataset[[#This Row],[2025/26 From - Other reallocations]]","v":0},{"$f":"Dataset[[#This Row],[2026/27 From - Spending review Topic 1]]+Dataset[[#This Row],[2026/27 From - Spending review Topic 2]]+Dataset[[#This Row],[2026/27 From - Spending review Topic 3]]+Dataset[[#This Row],[2026/27 From - Spending review Topic 4]]+Dataset[[#This Row],[2026/27 From - Other reallocations]]","v":0},{"$f":"Dataset[[#This Row],[2024/25 To - Spending review Topic 1]]+Dataset[[#This Row],[2024/25 To - Spending review Topic 2]]+Dataset[[#This Row],[2024/25 To - Spending review Topic 3]]+Dataset[[#This Row],[2024/25 To - Spending review Topic 4]]+Dataset[[#This Row],[2024/25 To - Other reallocations]]","v":0},{"$f":"Dataset[[#This Row],[2025/26 To - Spending review Topic 1]]+Dataset[[#This Row],[2025/26 To - Spending review Topic 2]]+Dataset[[#This Row],[2025/26 To - Spending review Topic 3]]+Dataset[[#This Row],[2025/26 To - Spending review Topic 4]]+Dataset[[#This Row],[2025/26 To - Other reallocations]]","v":0},{"$f":"Dataset[[#This Row],[2026/27 To - Spending review Topic 1]]+Dataset[[#This Row],[2026/27 To - Spending review Topic 2]]+Dataset[[#This Row],[2026/27 To - Spending review Topic 3]]+Dataset[[#This Row],[2026/27 To - Spending review Topic 4]]+Dataset[[#This Row],[2026/27 To - Other reallocations]]","v":0},{"$f":"Dataset[[#This Row],[2024/25 Reduction]]+Dataset[[#This Row],[2024/25 From - Total]]","v":0},{"$f":"Dataset[[#This Row],[2025/26 Reduction]]+Dataset[[#This Row],[2025/26 From - Total]]","v":0},{"$f":"Dataset[[#This Row],[2026/27 Reduction]]+Dataset[[#This Row],[2026/27 From - Total]]","v":0},{"$f":"Dataset[[#This Row],[2023/24 Reduction]]","v":0},{"$f":"SUM(Dataset[[#This Row],[2024/25 Reduction]],Dataset[[#This Row],[2024/25 From - Total]],Dataset[[#This Row],[2024/25 To - Total]])","v":0},{"$f":"SUM(Dataset[[#This Row],[2025/26 Reduction]],Dataset[[#This Row],[2025/26 From - Total]],Dataset[[#This Row],[2025/26 To - Total]])","v":0},{"$f":"SUM(Dataset[[#This Row],[2026/27 Reduction]],Dataset[[#This Row],[2026/27 From - Total]],Dataset[[#This Row],[2026/27 To - Total]])","v":0},{"$f":"Dataset[[#This Row],[2023/24 Baseline]]+Dataset[[#This Row],[2023/24 Total change]]","v":68},{"$f":"Dataset[[#This Row],[2024/25 Baseline]]+Dataset[[#This Row],[2024/25 Total change]]","v":84},{"$f":"Dataset[[#This Row],[2025/26 Baseline]]+Dataset[[#This Row],[2025/26 Total change]]","v":90},{"$f":"Dataset[[#This Row],[2026/27 Baseline]]+Dataset[[#This Row],[2026/27 Total change]]","v":94}]
["NAT|Non-transfer item","26|Consumables: Stationery, printing and office supplies","2024_25","MTEF2024",26,1,1,43919,32,"26","01","01","043919","000032","26|01|01","01","01","02","32","32","01|01|02|32|32","National","Military Veterans","Administration","Management","Non-transfer item","Current","Current payments","Goods and services","Consumables: Stationery, printing and office supplies","Consumables: Stationery, printing and office supplies","Peace and security","Defence and state security","NAT",100,0,0,290,120,120,0,388,444,507,530,null,null,null,null,null,null,null,null,null,null,null,null,null,null,null,null,null,null,null,null,null,null,null,null,null,null,null,null,null,null,null,null,null,null,{"$f":"Dataset[[#This Row],[2024/25 From - Spending review Topic 1]]+Dataset[[#This Row],[2024/25 From - Spending review Topic 2]]+Dataset[[#This Row],[2024/25 From - Spending review Topic 3]]+Dataset[[#This Row],[2024/25 From - Spending review Topic 4]]+Dataset[[#This Row],[2024/25 From - Other reallocations]]","v":0},{"$f":"Dataset[[#This Row],[2025/26 From - Spending review Topic 1]]+Dataset[[#This Row],[2025/26 From - Spending review Topic 2]]+Dataset[[#This Row],[2025/26 From - Spending review Topic 3]]+Dataset[[#This Row],[2025/26 From - Spending review Topic 4]]+Dataset[[#This Row],[2025/26 From - Other reallocations]]","v":0},{"$f":"Dataset[[#This Row],[2026/27 From - Spending review Topic 1]]+Dataset[[#This Row],[2026/27 From - Spending review Topic 2]]+Dataset[[#This Row],[2026/27 From - Spending review Topic 3]]+Dataset[[#This Row],[2026/27 From - Spending review Topic 4]]+Dataset[[#This Row],[2026/27 From - Other reallocations]]","v":0},{"$f":"Dataset[[#This Row],[2024/25 To - Spending review Topic 1]]+Dataset[[#This Row],[2024/25 To - Spending review Topic 2]]+Dataset[[#This Row],[2024/25 To - Spending review Topic 3]]+Dataset[[#This Row],[2024/25 To - Spending review Topic 4]]+Dataset[[#This Row],[2024/25 To - Other reallocations]]","v":0},{"$f":"Dataset[[#This Row],[2025/26 To - Spending review Topic 1]]+Dataset[[#This Row],[2025/26 To - Spending review Topic 2]]+Dataset[[#This Row],[2025/26 To - Spending review Topic 3]]+Dataset[[#This Row],[2025/26 To - Spending review Topic 4]]+Dataset[[#This Row],[2025/26 To - Other reallocations]]","v":0},{"$f":"Dataset[[#This Row],[2026/27 To - Spending review Topic 1]]+Dataset[[#This Row],[2026/27 To - Spending review Topic 2]]+Dataset[[#This Row],[2026/27 To - Spending review Topic 3]]+Dataset[[#This Row],[2026/27 To - Spending review Topic 4]]+Dataset[[#This Row],[2026/27 To - Other reallocations]]","v":0},{"$f":"Dataset[[#This Row],[2024/25 Reduction]]+Dataset[[#This Row],[2024/25 From - Total]]","v":0},{"$f":"Dataset[[#This Row],[2025/26 Reduction]]+Dataset[[#This Row],[2025/26 From - Total]]","v":0},{"$f":"Dataset[[#This Row],[2026/27 Reduction]]+Dataset[[#This Row],[2026/27 From - Total]]","v":0},{"$f":"Dataset[[#This Row],[2023/24 Reduction]]","v":0},{"$f":"SUM(Dataset[[#This Row],[2024/25 Reduction]],Dataset[[#This Row],[2024/25 From - Total]],Dataset[[#This Row],[2024/25 To - Total]])","v":0},{"$f":"SUM(Dataset[[#This Row],[2025/26 Reduction]],Dataset[[#This Row],[2025/26 From - Total]],Dataset[[#This Row],[2025/26 To - Total]])","v":0},{"$f":"SUM(Dataset[[#This Row],[2026/27 Reduction]],Dataset[[#This Row],[2026/27 From - Total]],Dataset[[#This Row],[2026/27 To - Total]])","v":0},{"$f":"Dataset[[#This Row],[2023/24 Baseline]]+Dataset[[#This Row],[2023/24 Total change]]","v":388},{"$f":"Dataset[[#This Row],[2024/25 Baseline]]+Dataset[[#This Row],[2024/25 Total change]]","v":444},{"$f":"Dataset[[#This Row],[2025/26 Baseline]]+Dataset[[#This Row],[2025/26 Total change]]","v":507},{"$f":"Dataset[[#This Row],[2026/27 Baseline]]+Dataset[[#This Row],[2026/27 Total change]]","v":530}]
["NAT|Non-transfer item","26|Operating leases","2024_25","MTEF2024",26,1,1,43920,33,"26","01","01","043920","000033","26|01|01","01","01","02","33","33","01|01|02|33|33","National","Military Veterans","Administration","Management","Non-transfer item","Current","Current payments","Goods and services","Operating leases","Operating leases","Peace and security","Defence and state security","NAT",0,0,0,0,0,0,0,0,0,0,0,null,null,null,null,null,null,null,null,null,null,null,null,null,null,null,null,null,null,null,null,null,null,null,null,null,null,null,null,null,null,null,null,null,null,{"$f":"Dataset[[#This Row],[2024/25 From - Spending review Topic 1]]+Dataset[[#This Row],[2024/25 From - Spending review Topic 2]]+Dataset[[#This Row],[2024/25 From - Spending review Topic 3]]+Dataset[[#This Row],[2024/25 From - Spending review Topic 4]]+Dataset[[#This Row],[2024/25 From - Other reallocations]]","v":0},{"$f":"Dataset[[#This Row],[2025/26 From - Spending review Topic 1]]+Dataset[[#This Row],[2025/26 From - Spending review Topic 2]]+Dataset[[#This Row],[2025/26 From - Spending review Topic 3]]+Dataset[[#This Row],[2025/26 From - Spending review Topic 4]]+Dataset[[#This Row],[2025/26 From - Other reallocations]]","v":0},{"$f":"Dataset[[#This Row],[2026/27 From - Spending review Topic 1]]+Dataset[[#This Row],[2026/27 From - Spending review Topic 2]]+Dataset[[#This Row],[2026/27 From - Spending review Topic 3]]+Dataset[[#This Row],[2026/27 From - Spending review Topic 4]]+Dataset[[#This Row],[2026/27 From - Other reallocations]]","v":0},{"$f":"Dataset[[#This Row],[2024/25 To - Spending review Topic 1]]+Dataset[[#This Row],[2024/25 To - Spending review Topic 2]]+Dataset[[#This Row],[2024/25 To - Spending review Topic 3]]+Dataset[[#This Row],[2024/25 To - Spending review Topic 4]]+Dataset[[#This Row],[2024/25 To - Other reallocations]]","v":0},{"$f":"Dataset[[#This Row],[2025/26 To - Spending review Topic 1]]+Dataset[[#This Row],[2025/26 To - Spending review Topic 2]]+Dataset[[#This Row],[2025/26 To - Spending review Topic 3]]+Dataset[[#This Row],[2025/26 To - Spending review Topic 4]]+Dataset[[#This Row],[2025/26 To - Other reallocations]]","v":0},{"$f":"Dataset[[#This Row],[2026/27 To - Spending review Topic 1]]+Dataset[[#This Row],[2026/27 To - Spending review Topic 2]]+Dataset[[#This Row],[2026/27 To - Spending review Topic 3]]+Dataset[[#This Row],[2026/27 To - Spending review Topic 4]]+Dataset[[#This Row],[2026/27 To - Other reallocations]]","v":0},{"$f":"Dataset[[#This Row],[2024/25 Reduction]]+Dataset[[#This Row],[2024/25 From - Total]]","v":0},{"$f":"Dataset[[#This Row],[2025/26 Reduction]]+Dataset[[#This Row],[2025/26 From - Total]]","v":0},{"$f":"Dataset[[#This Row],[2026/27 Reduction]]+Dataset[[#This Row],[2026/27 From - Total]]","v":0},{"$f":"Dataset[[#This Row],[2023/24 Reduction]]","v":0},{"$f":"SUM(Dataset[[#This Row],[2024/25 Reduction]],Dataset[[#This Row],[2024/25 From - Total]],Dataset[[#This Row],[2024/25 To - Total]])","v":0},{"$f":"SUM(Dataset[[#This Row],[2025/26 Reduction]],Dataset[[#This Row],[2025/26 From - Total]],Dataset[[#This Row],[2025/26 To - Total]])","v":0},{"$f":"SUM(Dataset[[#This Row],[2026/27 Reduction]],Dataset[[#This Row],[2026/27 From - Total]],Dataset[[#This Row],[2026/27 To - Total]])","v":0},{"$f":"Dataset[[#This Row],[2023/24 Baseline]]+Dataset[[#This Row],[2023/24 Total change]]","v":0},{"$f":"Dataset[[#This Row],[2024/25 Baseline]]+Dataset[[#This Row],[2024/25 Total change]]","v":0},{"$f":"Dataset[[#This Row],[2025/26 Baseline]]+Dataset[[#This Row],[2025/26 Total change]]","v":0},{"$f":"Dataset[[#This Row],[2026/27 Baseline]]+Dataset[[#This Row],[2026/27 Total change]]","v":0}]
["NAT|Non-transfer item","26|Rental and hiring","2024_25","MTEF2024",26,1,1,43921,34,"26","01","01","043921","000034","26|01|01","01","01","02","34","34","01|01|02|34|34","National","Military Veterans","Administration","Management","Non-transfer item","Current","Current payments","Goods and services","Rental and hiring","Rental and hiring","Peace and security","Defence and state security","NAT",0,0,0,0,0,0,0,50,60,70,73,null,null,null,null,null,null,null,null,null,null,null,null,null,null,null,null,null,null,null,null,null,null,null,null,null,null,null,null,null,null,null,null,null,null,{"$f":"Dataset[[#This Row],[2024/25 From - Spending review Topic 1]]+Dataset[[#This Row],[2024/25 From - Spending review Topic 2]]+Dataset[[#This Row],[2024/25 From - Spending review Topic 3]]+Dataset[[#This Row],[2024/25 From - Spending review Topic 4]]+Dataset[[#This Row],[2024/25 From - Other reallocations]]","v":0},{"$f":"Dataset[[#This Row],[2025/26 From - Spending review Topic 1]]+Dataset[[#This Row],[2025/26 From - Spending review Topic 2]]+Dataset[[#This Row],[2025/26 From - Spending review Topic 3]]+Dataset[[#This Row],[2025/26 From - Spending review Topic 4]]+Dataset[[#This Row],[2025/26 From - Other reallocations]]","v":0},{"$f":"Dataset[[#This Row],[2026/27 From - Spending review Topic 1]]+Dataset[[#This Row],[2026/27 From - Spending review Topic 2]]+Dataset[[#This Row],[2026/27 From - Spending review Topic 3]]+Dataset[[#This Row],[2026/27 From - Spending review Topic 4]]+Dataset[[#This Row],[2026/27 From - Other reallocations]]","v":0},{"$f":"Dataset[[#This Row],[2024/25 To - Spending review Topic 1]]+Dataset[[#This Row],[2024/25 To - Spending review Topic 2]]+Dataset[[#This Row],[2024/25 To - Spending review Topic 3]]+Dataset[[#This Row],[2024/25 To - Spending review Topic 4]]+Dataset[[#This Row],[2024/25 To - Other reallocations]]","v":0},{"$f":"Dataset[[#This Row],[2025/26 To - Spending review Topic 1]]+Dataset[[#This Row],[2025/26 To - Spending review Topic 2]]+Dataset[[#This Row],[2025/26 To - Spending review Topic 3]]+Dataset[[#This Row],[2025/26 To - Spending review Topic 4]]+Dataset[[#This Row],[2025/26 To - Other reallocations]]","v":0},{"$f":"Dataset[[#This Row],[2026/27 To - Spending review Topic 1]]+Dataset[[#This Row],[2026/27 To - Spending review Topic 2]]+Dataset[[#This Row],[2026/27 To - Spending review Topic 3]]+Dataset[[#This Row],[2026/27 To - Spending review Topic 4]]+Dataset[[#This Row],[2026/27 To - Other reallocations]]","v":0},{"$f":"Dataset[[#This Row],[2024/25 Reduction]]+Dataset[[#This Row],[2024/25 From - Total]]","v":0},{"$f":"Dataset[[#This Row],[2025/26 Reduction]]+Dataset[[#This Row],[2025/26 From - Total]]","v":0},{"$f":"Dataset[[#This Row],[2026/27 Reduction]]+Dataset[[#This Row],[2026/27 From - Total]]","v":0},{"$f":"Dataset[[#This Row],[2023/24 Reduction]]","v":0},{"$f":"SUM(Dataset[[#This Row],[2024/25 Reduction]],Dataset[[#This Row],[2024/25 From - Total]],Dataset[[#This Row],[2024/25 To - Total]])","v":0},{"$f":"SUM(Dataset[[#This Row],[2025/26 Reduction]],Dataset[[#This Row],[2025/26 From - Total]],Dataset[[#This Row],[2025/26 To - Total]])","v":0},{"$f":"SUM(Dataset[[#This Row],[2026/27 Reduction]],Dataset[[#This Row],[2026/27 From - Total]],Dataset[[#This Row],[2026/27 To - Total]])","v":0},{"$f":"Dataset[[#This Row],[2023/24 Baseline]]+Dataset[[#This Row],[2023/24 Total change]]","v":50},{"$f":"Dataset[[#This Row],[2024/25 Baseline]]+Dataset[[#This Row],[2024/25 Total change]]","v":60},{"$f":"Dataset[[#This Row],[2025/26 Baseline]]+Dataset[[#This Row],[2025/26 Total change]]","v":70},{"$f":"Dataset[[#This Row],[2026/27 Baseline]]+Dataset[[#This Row],[2026/27 Total change]]","v":73}]
["NAT|Non-transfer item","26|Property payments","2024_25","MTEF2024",26,1,1,43922,35,"26","01","01","043922","000035","26|01|01","01","01","02","35","35","01|01|02|35|35","National","Military Veterans","Administration","Management","Non-transfer item","Current","Current payments","Goods and services","Property payments","Property payments","Peace and security","Defence and state security","NAT",0,0,0,0,0,0,0,0,0,0,0,null,null,null,null,null,null,null,null,null,null,null,null,null,null,null,null,null,null,null,null,null,null,null,null,null,null,null,null,null,null,null,null,null,null,{"$f":"Dataset[[#This Row],[2024/25 From - Spending review Topic 1]]+Dataset[[#This Row],[2024/25 From - Spending review Topic 2]]+Dataset[[#This Row],[2024/25 From - Spending review Topic 3]]+Dataset[[#This Row],[2024/25 From - Spending review Topic 4]]+Dataset[[#This Row],[2024/25 From - Other reallocations]]","v":0},{"$f":"Dataset[[#This Row],[2025/26 From - Spending review Topic 1]]+Dataset[[#This Row],[2025/26 From - Spending review Topic 2]]+Dataset[[#This Row],[2025/26 From - Spending review Topic 3]]+Dataset[[#This Row],[2025/26 From - Spending review Topic 4]]+Dataset[[#This Row],[2025/26 From - Other reallocations]]","v":0},{"$f":"Dataset[[#This Row],[2026/27 From - Spending review Topic 1]]+Dataset[[#This Row],[2026/27 From - Spending review Topic 2]]+Dataset[[#This Row],[2026/27 From - Spending review Topic 3]]+Dataset[[#This Row],[2026/27 From - Spending review Topic 4]]+Dataset[[#This Row],[2026/27 From - Other reallocations]]","v":0},{"$f":"Dataset[[#This Row],[2024/25 To - Spending review Topic 1]]+Dataset[[#This Row],[2024/25 To - Spending review Topic 2]]+Dataset[[#This Row],[2024/25 To - Spending review Topic 3]]+Dataset[[#This Row],[2024/25 To - Spending review Topic 4]]+Dataset[[#This Row],[2024/25 To - Other reallocations]]","v":0},{"$f":"Dataset[[#This Row],[2025/26 To - Spending review Topic 1]]+Dataset[[#This Row],[2025/26 To - Spending review Topic 2]]+Dataset[[#This Row],[2025/26 To - Spending review Topic 3]]+Dataset[[#This Row],[2025/26 To - Spending review Topic 4]]+Dataset[[#This Row],[2025/26 To - Other reallocations]]","v":0},{"$f":"Dataset[[#This Row],[2026/27 To - Spending review Topic 1]]+Dataset[[#This Row],[2026/27 To - Spending review Topic 2]]+Dataset[[#This Row],[2026/27 To - Spending review Topic 3]]+Dataset[[#This Row],[2026/27 To - Spending review Topic 4]]+Dataset[[#This Row],[2026/27 To - Other reallocations]]","v":0},{"$f":"Dataset[[#This Row],[2024/25 Reduction]]+Dataset[[#This Row],[2024/25 From - Total]]","v":0},{"$f":"Dataset[[#This Row],[2025/26 Reduction]]+Dataset[[#This Row],[2025/26 From - Total]]","v":0},{"$f":"Dataset[[#This Row],[2026/27 Reduction]]+Dataset[[#This Row],[2026/27 From - Total]]","v":0},{"$f":"Dataset[[#This Row],[2023/24 Reduction]]","v":0},{"$f":"SUM(Dataset[[#This Row],[2024/25 Reduction]],Dataset[[#This Row],[2024/25 From - Total]],Dataset[[#This Row],[2024/25 To - Total]])","v":0},{"$f":"SUM(Dataset[[#This Row],[2025/26 Reduction]],Dataset[[#This Row],[2025/26 From - Total]],Dataset[[#This Row],[2025/26 To - Total]])","v":0},{"$f":"SUM(Dataset[[#This Row],[2026/27 Reduction]],Dataset[[#This Row],[2026/27 From - Total]],Dataset[[#This Row],[2026/27 To - Total]])","v":0},{"$f":"Dataset[[#This Row],[2023/24 Baseline]]+Dataset[[#This Row],[2023/24 Total change]]","v":0},{"$f":"Dataset[[#This Row],[2024/25 Baseline]]+Dataset[[#This Row],[2024/25 Total change]]","v":0},{"$f":"Dataset[[#This Row],[2025/26 Baseline]]+Dataset[[#This Row],[2025/26 Total change]]","v":0},{"$f":"Dataset[[#This Row],[2026/27 Baseline]]+Dataset[[#This Row],[2026/27 Total change]]","v":0}]
["NAT|Non-transfer item","26|Transport provided: Departmental activity","2024_25","MTEF2024",26,1,1,43923,36,"26","01","01","043923","000036","26|01|01","01","01","02","36","36","01|01|02|36|36","National","Military Veterans","Administration","Management","Non-transfer item","Current","Current payments","Goods and services","Transport provided: Departmental activity","Transport provided: Departmental activity","Peace and security","Defence and state security","NAT",0,0,0,0,0,0,0,0,0,0,0,null,null,null,null,null,null,null,null,null,null,null,null,null,null,null,null,null,null,null,null,null,null,null,null,null,null,null,null,null,null,null,null,null,null,{"$f":"Dataset[[#This Row],[2024/25 From - Spending review Topic 1]]+Dataset[[#This Row],[2024/25 From - Spending review Topic 2]]+Dataset[[#This Row],[2024/25 From - Spending review Topic 3]]+Dataset[[#This Row],[2024/25 From - Spending review Topic 4]]+Dataset[[#This Row],[2024/25 From - Other reallocations]]","v":0},{"$f":"Dataset[[#This Row],[2025/26 From - Spending review Topic 1]]+Dataset[[#This Row],[2025/26 From - Spending review Topic 2]]+Dataset[[#This Row],[2025/26 From - Spending review Topic 3]]+Dataset[[#This Row],[2025/26 From - Spending review Topic 4]]+Dataset[[#This Row],[2025/26 From - Other reallocations]]","v":0},{"$f":"Dataset[[#This Row],[2026/27 From - Spending review Topic 1]]+Dataset[[#This Row],[2026/27 From - Spending review Topic 2]]+Dataset[[#This Row],[2026/27 From - Spending review Topic 3]]+Dataset[[#This Row],[2026/27 From - Spending review Topic 4]]+Dataset[[#This Row],[2026/27 From - Other reallocations]]","v":0},{"$f":"Dataset[[#This Row],[2024/25 To - Spending review Topic 1]]+Dataset[[#This Row],[2024/25 To - Spending review Topic 2]]+Dataset[[#This Row],[2024/25 To - Spending review Topic 3]]+Dataset[[#This Row],[2024/25 To - Spending review Topic 4]]+Dataset[[#This Row],[2024/25 To - Other reallocations]]","v":0},{"$f":"Dataset[[#This Row],[2025/26 To - Spending review Topic 1]]+Dataset[[#This Row],[2025/26 To - Spending review Topic 2]]+Dataset[[#This Row],[2025/26 To - Spending review Topic 3]]+Dataset[[#This Row],[2025/26 To - Spending review Topic 4]]+Dataset[[#This Row],[2025/26 To - Other reallocations]]","v":0},{"$f":"Dataset[[#This Row],[2026/27 To - Spending review Topic 1]]+Dataset[[#This Row],[2026/27 To - Spending review Topic 2]]+Dataset[[#This Row],[2026/27 To - Spending review Topic 3]]+Dataset[[#This Row],[2026/27 To - Spending review Topic 4]]+Dataset[[#This Row],[2026/27 To - Other reallocations]]","v":0},{"$f":"Dataset[[#This Row],[2024/25 Reduction]]+Dataset[[#This Row],[2024/25 From - Total]]","v":0},{"$f":"Dataset[[#This Row],[2025/26 Reduction]]+Dataset[[#This Row],[2025/26 From - Total]]","v":0},{"$f":"Dataset[[#This Row],[2026/27 Reduction]]+Dataset[[#This Row],[2026/27 From - Total]]","v":0},{"$f":"Dataset[[#This Row],[2023/24 Reduction]]","v":0},{"$f":"SUM(Dataset[[#This Row],[2024/25 Reduction]],Dataset[[#This Row],[2024/25 From - Total]],Dataset[[#This Row],[2024/25 To - Total]])","v":0},{"$f":"SUM(Dataset[[#This Row],[2025/26 Reduction]],Dataset[[#This Row],[2025/26 From - Total]],Dataset[[#This Row],[2025/26 To - Total]])","v":0},{"$f":"SUM(Dataset[[#This Row],[2026/27 Reduction]],Dataset[[#This Row],[2026/27 From - Total]],Dataset[[#This Row],[2026/27 To - Total]])","v":0},{"$f":"Dataset[[#This Row],[2023/24 Baseline]]+Dataset[[#This Row],[2023/24 Total change]]","v":0},{"$f":"Dataset[[#This Row],[2024/25 Baseline]]+Dataset[[#This Row],[2024/25 Total change]]","v":0},{"$f":"Dataset[[#This Row],[2025/26 Baseline]]+Dataset[[#This Row],[2025/26 Total change]]","v":0},{"$f":"Dataset[[#This Row],[2026/27 Baseline]]+Dataset[[#This Row],[2026/27 Total change]]","v":0}]
["NAT|Non-transfer item","26|Travel and subsistence","2024_25","MTEF2024",26,1,1,43924,37,"26","01","01","043924","000037","26|01|01","01","01","02","37","37","01|01|02|37|37","National","Military Veterans","Administration","Management","Non-transfer item","Current","Current payments","Goods and services","Travel and subsistence","Travel and subsistence","Peace and security","Defence and state security","NAT",2364,789,489,1967,2234,2234,0,2947,3159,2962,3098,null,null,null,null,null,null,null,null,null,null,null,null,null,null,null,null,null,null,null,null,null,null,null,null,null,null,null,null,null,null,null,null,null,null,{"$f":"Dataset[[#This Row],[2024/25 From - Spending review Topic 1]]+Dataset[[#This Row],[2024/25 From - Spending review Topic 2]]+Dataset[[#This Row],[2024/25 From - Spending review Topic 3]]+Dataset[[#This Row],[2024/25 From - Spending review Topic 4]]+Dataset[[#This Row],[2024/25 From - Other reallocations]]","v":0},{"$f":"Dataset[[#This Row],[2025/26 From - Spending review Topic 1]]+Dataset[[#This Row],[2025/26 From - Spending review Topic 2]]+Dataset[[#This Row],[2025/26 From - Spending review Topic 3]]+Dataset[[#This Row],[2025/26 From - Spending review Topic 4]]+Dataset[[#This Row],[2025/26 From - Other reallocations]]","v":0},{"$f":"Dataset[[#This Row],[2026/27 From - Spending review Topic 1]]+Dataset[[#This Row],[2026/27 From - Spending review Topic 2]]+Dataset[[#This Row],[2026/27 From - Spending review Topic 3]]+Dataset[[#This Row],[2026/27 From - Spending review Topic 4]]+Dataset[[#This Row],[2026/27 From - Other reallocations]]","v":0},{"$f":"Dataset[[#This Row],[2024/25 To - Spending review Topic 1]]+Dataset[[#This Row],[2024/25 To - Spending review Topic 2]]+Dataset[[#This Row],[2024/25 To - Spending review Topic 3]]+Dataset[[#This Row],[2024/25 To - Spending review Topic 4]]+Dataset[[#This Row],[2024/25 To - Other reallocations]]","v":0},{"$f":"Dataset[[#This Row],[2025/26 To - Spending review Topic 1]]+Dataset[[#This Row],[2025/26 To - Spending review Topic 2]]+Dataset[[#This Row],[2025/26 To - Spending review Topic 3]]+Dataset[[#This Row],[2025/26 To - Spending review Topic 4]]+Dataset[[#This Row],[2025/26 To - Other reallocations]]","v":0},{"$f":"Dataset[[#This Row],[2026/27 To - Spending review Topic 1]]+Dataset[[#This Row],[2026/27 To - Spending review Topic 2]]+Dataset[[#This Row],[2026/27 To - Spending review Topic 3]]+Dataset[[#This Row],[2026/27 To - Spending review Topic 4]]+Dataset[[#This Row],[2026/27 To - Other reallocations]]","v":0},{"$f":"Dataset[[#This Row],[2024/25 Reduction]]+Dataset[[#This Row],[2024/25 From - Total]]","v":0},{"$f":"Dataset[[#This Row],[2025/26 Reduction]]+Dataset[[#This Row],[2025/26 From - Total]]","v":0},{"$f":"Dataset[[#This Row],[2026/27 Reduction]]+Dataset[[#This Row],[2026/27 From - Total]]","v":0},{"$f":"Dataset[[#This Row],[2023/24 Reduction]]","v":0},{"$f":"SUM(Dataset[[#This Row],[2024/25 Reduction]],Dataset[[#This Row],[2024/25 From - Total]],Dataset[[#This Row],[2024/25 To - Total]])","v":0},{"$f":"SUM(Dataset[[#This Row],[2025/26 Reduction]],Dataset[[#This Row],[2025/26 From - Total]],Dataset[[#This Row],[2025/26 To - Total]])","v":0},{"$f":"SUM(Dataset[[#This Row],[2026/27 Reduction]],Dataset[[#This Row],[2026/27 From - Total]],Dataset[[#This Row],[2026/27 To - Total]])","v":0},{"$f":"Dataset[[#This Row],[2023/24 Baseline]]+Dataset[[#This Row],[2023/24 Total change]]","v":2947},{"$f":"Dataset[[#This Row],[2024/25 Baseline]]+Dataset[[#This Row],[2024/25 Total change]]","v":3159},{"$f":"Dataset[[#This Row],[2025/26 Baseline]]+Dataset[[#This Row],[2025/26 Total change]]","v":2962},{"$f":"Dataset[[#This Row],[2026/27 Baseline]]+Dataset[[#This Row],[2026/27 Total change]]","v":3098}]
["NAT|Non-transfer item","26|Training and development","2024_25","MTEF2024",26,1,1,43925,38,"26","01","01","043925","000038","26|01|01","01","01","02","38","38","01|01|02|38|38","National","Military Veterans","Administration","Management","Non-transfer item","Current","Current payments","Goods and services","Training and development","Training and development","Peace and security","Defence and state security","NAT",0,0,0,0,0,0,0,0,0,0,0,null,null,null,null,null,null,null,null,null,null,null,null,null,null,null,null,null,null,null,null,null,null,null,null,null,null,null,null,null,null,null,null,null,null,{"$f":"Dataset[[#This Row],[2024/25 From - Spending review Topic 1]]+Dataset[[#This Row],[2024/25 From - Spending review Topic 2]]+Dataset[[#This Row],[2024/25 From - Spending review Topic 3]]+Dataset[[#This Row],[2024/25 From - Spending review Topic 4]]+Dataset[[#This Row],[2024/25 From - Other reallocations]]","v":0},{"$f":"Dataset[[#This Row],[2025/26 From - Spending review Topic 1]]+Dataset[[#This Row],[2025/26 From - Spending review Topic 2]]+Dataset[[#This Row],[2025/26 From - Spending review Topic 3]]+Dataset[[#This Row],[2025/26 From - Spending review Topic 4]]+Dataset[[#This Row],[2025/26 From - Other reallocations]]","v":0},{"$f":"Dataset[[#This Row],[2026/27 From - Spending review Topic 1]]+Dataset[[#This Row],[2026/27 From - Spending review Topic 2]]+Dataset[[#This Row],[2026/27 From - Spending review Topic 3]]+Dataset[[#This Row],[2026/27 From - Spending review Topic 4]]+Dataset[[#This Row],[2026/27 From - Other reallocations]]","v":0},{"$f":"Dataset[[#This Row],[2024/25 To - Spending review Topic 1]]+Dataset[[#This Row],[2024/25 To - Spending review Topic 2]]+Dataset[[#This Row],[2024/25 To - Spending review Topic 3]]+Dataset[[#This Row],[2024/25 To - Spending review Topic 4]]+Dataset[[#This Row],[2024/25 To - Other reallocations]]","v":0},{"$f":"Dataset[[#This Row],[2025/26 To - Spending review Topic 1]]+Dataset[[#This Row],[2025/26 To - Spending review Topic 2]]+Dataset[[#This Row],[2025/26 To - Spending review Topic 3]]+Dataset[[#This Row],[2025/26 To - Spending review Topic 4]]+Dataset[[#This Row],[2025/26 To - Other reallocations]]","v":0},{"$f":"Dataset[[#This Row],[2026/27 To - Spending review Topic 1]]+Dataset[[#This Row],[2026/27 To - Spending review Topic 2]]+Dataset[[#This Row],[2026/27 To - Spending review Topic 3]]+Dataset[[#This Row],[2026/27 To - Spending review Topic 4]]+Dataset[[#This Row],[2026/27 To - Other reallocations]]","v":0},{"$f":"Dataset[[#This Row],[2024/25 Reduction]]+Dataset[[#This Row],[2024/25 From - Total]]","v":0},{"$f":"Dataset[[#This Row],[2025/26 Reduction]]+Dataset[[#This Row],[2025/26 From - Total]]","v":0},{"$f":"Dataset[[#This Row],[2026/27 Reduction]]+Dataset[[#This Row],[2026/27 From - Total]]","v":0},{"$f":"Dataset[[#This Row],[2023/24 Reduction]]","v":0},{"$f":"SUM(Dataset[[#This Row],[2024/25 Reduction]],Dataset[[#This Row],[2024/25 From - Total]],Dataset[[#This Row],[2024/25 To - Total]])","v":0},{"$f":"SUM(Dataset[[#This Row],[2025/26 Reduction]],Dataset[[#This Row],[2025/26 From - Total]],Dataset[[#This Row],[2025/26 To - Total]])","v":0},{"$f":"SUM(Dataset[[#This Row],[2026/27 Reduction]],Dataset[[#This Row],[2026/27 From - Total]],Dataset[[#This Row],[2026/27 To - Total]])","v":0},{"$f":"Dataset[[#This Row],[2023/24 Baseline]]+Dataset[[#This Row],[2023/24 Total change]]","v":0},{"$f":"Dataset[[#This Row],[2024/25 Baseline]]+Dataset[[#This Row],[2024/25 Total change]]","v":0},{"$f":"Dataset[[#This Row],[2025/26 Baseline]]+Dataset[[#This Row],[2025/26 Total change]]","v":0},{"$f":"Dataset[[#This Row],[2026/27 Baseline]]+Dataset[[#This Row],[2026/27 Total change]]","v":0}]
["NAT|Non-transfer item","26|Operating payments","2024_25","MTEF2024",26,1,1,43926,39,"26","01","01","043926","000039","26|01|01","01","01","02","39","39","01|01|02|39|39","National","Military Veterans","Administration","Management","Non-transfer item","Current","Current payments","Goods and services","Operating payments","Operating payments","Peace and security","Defence and state security","NAT",0,0,0,0,0,0,0,0,0,0,0,null,null,null,null,null,null,null,null,null,null,null,null,null,null,null,null,null,null,null,null,null,null,null,null,null,null,null,null,null,null,null,null,null,null,{"$f":"Dataset[[#This Row],[2024/25 From - Spending review Topic 1]]+Dataset[[#This Row],[2024/25 From - Spending review Topic 2]]+Dataset[[#This Row],[2024/25 From - Spending review Topic 3]]+Dataset[[#This Row],[2024/25 From - Spending review Topic 4]]+Dataset[[#This Row],[2024/25 From - Other reallocations]]","v":0},{"$f":"Dataset[[#This Row],[2025/26 From - Spending review Topic 1]]+Dataset[[#This Row],[2025/26 From - Spending review Topic 2]]+Dataset[[#This Row],[2025/26 From - Spending review Topic 3]]+Dataset[[#This Row],[2025/26 From - Spending review Topic 4]]+Dataset[[#This Row],[2025/26 From - Other reallocations]]","v":0},{"$f":"Dataset[[#This Row],[2026/27 From - Spending review Topic 1]]+Dataset[[#This Row],[2026/27 From - Spending review Topic 2]]+Dataset[[#This Row],[2026/27 From - Spending review Topic 3]]+Dataset[[#This Row],[2026/27 From - Spending review Topic 4]]+Dataset[[#This Row],[2026/27 From - Other reallocations]]","v":0},{"$f":"Dataset[[#This Row],[2024/25 To - Spending review Topic 1]]+Dataset[[#This Row],[2024/25 To - Spending review Topic 2]]+Dataset[[#This Row],[2024/25 To - Spending review Topic 3]]+Dataset[[#This Row],[2024/25 To - Spending review Topic 4]]+Dataset[[#This Row],[2024/25 To - Other reallocations]]","v":0},{"$f":"Dataset[[#This Row],[2025/26 To - Spending review Topic 1]]+Dataset[[#This Row],[2025/26 To - Spending review Topic 2]]+Dataset[[#This Row],[2025/26 To - Spending review Topic 3]]+Dataset[[#This Row],[2025/26 To - Spending review Topic 4]]+Dataset[[#This Row],[2025/26 To - Other reallocations]]","v":0},{"$f":"Dataset[[#This Row],[2026/27 To - Spending review Topic 1]]+Dataset[[#This Row],[2026/27 To - Spending review Topic 2]]+Dataset[[#This Row],[2026/27 To - Spending review Topic 3]]+Dataset[[#This Row],[2026/27 To - Spending review Topic 4]]+Dataset[[#This Row],[2026/27 To - Other reallocations]]","v":0},{"$f":"Dataset[[#This Row],[2024/25 Reduction]]+Dataset[[#This Row],[2024/25 From - Total]]","v":0},{"$f":"Dataset[[#This Row],[2025/26 Reduction]]+Dataset[[#This Row],[2025/26 From - Total]]","v":0},{"$f":"Dataset[[#This Row],[2026/27 Reduction]]+Dataset[[#This Row],[2026/27 From - Total]]","v":0},{"$f":"Dataset[[#This Row],[2023/24 Reduction]]","v":0},{"$f":"SUM(Dataset[[#This Row],[2024/25 Reduction]],Dataset[[#This Row],[2024/25 From - Total]],Dataset[[#This Row],[2024/25 To - Total]])","v":0},{"$f":"SUM(Dataset[[#This Row],[2025/26 Reduction]],Dataset[[#This Row],[2025/26 From - Total]],Dataset[[#This Row],[2025/26 To - Total]])","v":0},{"$f":"SUM(Dataset[[#This Row],[2026/27 Reduction]],Dataset[[#This Row],[2026/27 From - Total]],Dataset[[#This Row],[2026/27 To - Total]])","v":0},{"$f":"Dataset[[#This Row],[2023/24 Baseline]]+Dataset[[#This Row],[2023/24 Total change]]","v":0},{"$f":"Dataset[[#This Row],[2024/25 Baseline]]+Dataset[[#This Row],[2024/25 Total change]]","v":0},{"$f":"Dataset[[#This Row],[2025/26 Baseline]]+Dataset[[#This Row],[2025/26 Total change]]","v":0},{"$f":"Dataset[[#This Row],[2026/27 Baseline]]+Dataset[[#This Row],[2026/27 Total change]]","v":0}]
["NAT|Non-transfer item","26|Venues and facilities","2024_25","MTEF2024",26,1,1,43927,40,"26","01","01","043927","000040","26|01|01","01","01","02","40","40","01|01|02|40|40","National","Military Veterans","Administration","Management","Non-transfer item","Current","Current payments","Goods and services","Venues and facilities","Venues and facilities","Peace and security","Defence and state security","NAT",66,183,0,120,370,370,0,516,677,733,767,null,null,null,null,null,null,null,null,null,null,null,null,null,null,null,null,null,null,null,null,null,null,null,null,null,null,null,null,null,null,null,null,null,null,{"$f":"Dataset[[#This Row],[2024/25 From - Spending review Topic 1]]+Dataset[[#This Row],[2024/25 From - Spending review Topic 2]]+Dataset[[#This Row],[2024/25 From - Spending review Topic 3]]+Dataset[[#This Row],[2024/25 From - Spending review Topic 4]]+Dataset[[#This Row],[2024/25 From - Other reallocations]]","v":0},{"$f":"Dataset[[#This Row],[2025/26 From - Spending review Topic 1]]+Dataset[[#This Row],[2025/26 From - Spending review Topic 2]]+Dataset[[#This Row],[2025/26 From - Spending review Topic 3]]+Dataset[[#This Row],[2025/26 From - Spending review Topic 4]]+Dataset[[#This Row],[2025/26 From - Other reallocations]]","v":0},{"$f":"Dataset[[#This Row],[2026/27 From - Spending review Topic 1]]+Dataset[[#This Row],[2026/27 From - Spending review Topic 2]]+Dataset[[#This Row],[2026/27 From - Spending review Topic 3]]+Dataset[[#This Row],[2026/27 From - Spending review Topic 4]]+Dataset[[#This Row],[2026/27 From - Other reallocations]]","v":0},{"$f":"Dataset[[#This Row],[2024/25 To - Spending review Topic 1]]+Dataset[[#This Row],[2024/25 To - Spending review Topic 2]]+Dataset[[#This Row],[2024/25 To - Spending review Topic 3]]+Dataset[[#This Row],[2024/25 To - Spending review Topic 4]]+Dataset[[#This Row],[2024/25 To - Other reallocations]]","v":0},{"$f":"Dataset[[#This Row],[2025/26 To - Spending review Topic 1]]+Dataset[[#This Row],[2025/26 To - Spending review Topic 2]]+Dataset[[#This Row],[2025/26 To - Spending review Topic 3]]+Dataset[[#This Row],[2025/26 To - Spending review Topic 4]]+Dataset[[#This Row],[2025/26 To - Other reallocations]]","v":0},{"$f":"Dataset[[#This Row],[2026/27 To - Spending review Topic 1]]+Dataset[[#This Row],[2026/27 To - Spending review Topic 2]]+Dataset[[#This Row],[2026/27 To - Spending review Topic 3]]+Dataset[[#This Row],[2026/27 To - Spending review Topic 4]]+Dataset[[#This Row],[2026/27 To - Other reallocations]]","v":0},{"$f":"Dataset[[#This Row],[2024/25 Reduction]]+Dataset[[#This Row],[2024/25 From - Total]]","v":0},{"$f":"Dataset[[#This Row],[2025/26 Reduction]]+Dataset[[#This Row],[2025/26 From - Total]]","v":0},{"$f":"Dataset[[#This Row],[2026/27 Reduction]]+Dataset[[#This Row],[2026/27 From - Total]]","v":0},{"$f":"Dataset[[#This Row],[2023/24 Reduction]]","v":0},{"$f":"SUM(Dataset[[#This Row],[2024/25 Reduction]],Dataset[[#This Row],[2024/25 From - Total]],Dataset[[#This Row],[2024/25 To - Total]])","v":0},{"$f":"SUM(Dataset[[#This Row],[2025/26 Reduction]],Dataset[[#This Row],[2025/26 From - Total]],Dataset[[#This Row],[2025/26 To - Total]])","v":0},{"$f":"SUM(Dataset[[#This Row],[2026/27 Reduction]],Dataset[[#This Row],[2026/27 From - Total]],Dataset[[#This Row],[2026/27 To - Total]])","v":0},{"$f":"Dataset[[#This Row],[2023/24 Baseline]]+Dataset[[#This Row],[2023/24 Total change]]","v":516},{"$f":"Dataset[[#This Row],[2024/25 Baseline]]+Dataset[[#This Row],[2024/25 Total change]]","v":677},{"$f":"Dataset[[#This Row],[2025/26 Baseline]]+Dataset[[#This Row],[2025/26 Total change]]","v":733},{"$f":"Dataset[[#This Row],[2026/27 Baseline]]+Dataset[[#This Row],[2026/27 Total change]]","v":767}]
["NAT|Non-transfer item","26|Interest (Incl. interest on unitary payments (PPP))","2024_25","MTEF2024",26,1,1,43928,41,"26","01","01","043928","000041","26|01|01","01","01","03","41","41","01|01|03|41|41","National","Military Veterans","Administration","Management","Non-transfer item","Current","Current payments","Interest and rent on land","Interest (Incl. interest on unitary payments (PPP))","Interest (Incl. interest on unitary payments (PPP))","Peace and security","Defence and state security","NAT",0,1293,0,0,0,0,0,0,0,0,0,null,null,null,null,null,null,null,null,null,null,null,null,null,null,null,null,null,null,null,null,null,null,null,null,null,null,null,null,null,null,null,null,null,null,{"$f":"Dataset[[#This Row],[2024/25 From - Spending review Topic 1]]+Dataset[[#This Row],[2024/25 From - Spending review Topic 2]]+Dataset[[#This Row],[2024/25 From - Spending review Topic 3]]+Dataset[[#This Row],[2024/25 From - Spending review Topic 4]]+Dataset[[#This Row],[2024/25 From - Other reallocations]]","v":0},{"$f":"Dataset[[#This Row],[2025/26 From - Spending review Topic 1]]+Dataset[[#This Row],[2025/26 From - Spending review Topic 2]]+Dataset[[#This Row],[2025/26 From - Spending review Topic 3]]+Dataset[[#This Row],[2025/26 From - Spending review Topic 4]]+Dataset[[#This Row],[2025/26 From - Other reallocations]]","v":0},{"$f":"Dataset[[#This Row],[2026/27 From - Spending review Topic 1]]+Dataset[[#This Row],[2026/27 From - Spending review Topic 2]]+Dataset[[#This Row],[2026/27 From - Spending review Topic 3]]+Dataset[[#This Row],[2026/27 From - Spending review Topic 4]]+Dataset[[#This Row],[2026/27 From - Other reallocations]]","v":0},{"$f":"Dataset[[#This Row],[2024/25 To - Spending review Topic 1]]+Dataset[[#This Row],[2024/25 To - Spending review Topic 2]]+Dataset[[#This Row],[2024/25 To - Spending review Topic 3]]+Dataset[[#This Row],[2024/25 To - Spending review Topic 4]]+Dataset[[#This Row],[2024/25 To - Other reallocations]]","v":0},{"$f":"Dataset[[#This Row],[2025/26 To - Spending review Topic 1]]+Dataset[[#This Row],[2025/26 To - Spending review Topic 2]]+Dataset[[#This Row],[2025/26 To - Spending review Topic 3]]+Dataset[[#This Row],[2025/26 To - Spending review Topic 4]]+Dataset[[#This Row],[2025/26 To - Other reallocations]]","v":0},{"$f":"Dataset[[#This Row],[2026/27 To - Spending review Topic 1]]+Dataset[[#This Row],[2026/27 To - Spending review Topic 2]]+Dataset[[#This Row],[2026/27 To - Spending review Topic 3]]+Dataset[[#This Row],[2026/27 To - Spending review Topic 4]]+Dataset[[#This Row],[2026/27 To - Other reallocations]]","v":0},{"$f":"Dataset[[#This Row],[2024/25 Reduction]]+Dataset[[#This Row],[2024/25 From - Total]]","v":0},{"$f":"Dataset[[#This Row],[2025/26 Reduction]]+Dataset[[#This Row],[2025/26 From - Total]]","v":0},{"$f":"Dataset[[#This Row],[2026/27 Reduction]]+Dataset[[#This Row],[2026/27 From - Total]]","v":0},{"$f":"Dataset[[#This Row],[2023/24 Reduction]]","v":0},{"$f":"SUM(Dataset[[#This Row],[2024/25 Reduction]],Dataset[[#This Row],[2024/25 From - Total]],Dataset[[#This Row],[2024/25 To - Total]])","v":0},{"$f":"SUM(Dataset[[#This Row],[2025/26 Reduction]],Dataset[[#This Row],[2025/26 From - Total]],Dataset[[#This Row],[2025/26 To - Total]])","v":0},{"$f":"SUM(Dataset[[#This Row],[2026/27 Reduction]],Dataset[[#This Row],[2026/27 From - Total]],Dataset[[#This Row],[2026/27 To - Total]])","v":0},{"$f":"Dataset[[#This Row],[2023/24 Baseline]]+Dataset[[#This Row],[2023/24 Total change]]","v":0},{"$f":"Dataset[[#This Row],[2024/25 Baseline]]+Dataset[[#This Row],[2024/25 Total change]]","v":0},{"$f":"Dataset[[#This Row],[2025/26 Baseline]]+Dataset[[#This Row],[2025/26 Total change]]","v":0},{"$f":"Dataset[[#This Row],[2026/27 Baseline]]+Dataset[[#This Row],[2026/27 Total change]]","v":0}]
["NAT|Non-transfer item","26|Rent on land","2024_25","MTEF2024",26,1,1,43929,42,"26","01","01","043929","000042","26|01|01","01","01","03","42","42","01|01|03|42|42","National","Military Veterans","Administration","Management","Non-transfer item","Current","Current payments","Interest and rent on land","Rent on land","Rent on land","Peace and security","Defence and state security","NAT",0,0,0,0,0,0,0,0,0,0,0,null,null,null,null,null,null,null,null,null,null,null,null,null,null,null,null,null,null,null,null,null,null,null,null,null,null,null,null,null,null,null,null,null,null,{"$f":"Dataset[[#This Row],[2024/25 From - Spending review Topic 1]]+Dataset[[#This Row],[2024/25 From - Spending review Topic 2]]+Dataset[[#This Row],[2024/25 From - Spending review Topic 3]]+Dataset[[#This Row],[2024/25 From - Spending review Topic 4]]+Dataset[[#This Row],[2024/25 From - Other reallocations]]","v":0},{"$f":"Dataset[[#This Row],[2025/26 From - Spending review Topic 1]]+Dataset[[#This Row],[2025/26 From - Spending review Topic 2]]+Dataset[[#This Row],[2025/26 From - Spending review Topic 3]]+Dataset[[#This Row],[2025/26 From - Spending review Topic 4]]+Dataset[[#This Row],[2025/26 From - Other reallocations]]","v":0},{"$f":"Dataset[[#This Row],[2026/27 From - Spending review Topic 1]]+Dataset[[#This Row],[2026/27 From - Spending review Topic 2]]+Dataset[[#This Row],[2026/27 From - Spending review Topic 3]]+Dataset[[#This Row],[2026/27 From - Spending review Topic 4]]+Dataset[[#This Row],[2026/27 From - Other reallocations]]","v":0},{"$f":"Dataset[[#This Row],[2024/25 To - Spending review Topic 1]]+Dataset[[#This Row],[2024/25 To - Spending review Topic 2]]+Dataset[[#This Row],[2024/25 To - Spending review Topic 3]]+Dataset[[#This Row],[2024/25 To - Spending review Topic 4]]+Dataset[[#This Row],[2024/25 To - Other reallocations]]","v":0},{"$f":"Dataset[[#This Row],[2025/26 To - Spending review Topic 1]]+Dataset[[#This Row],[2025/26 To - Spending review Topic 2]]+Dataset[[#This Row],[2025/26 To - Spending review Topic 3]]+Dataset[[#This Row],[2025/26 To - Spending review Topic 4]]+Dataset[[#This Row],[2025/26 To - Other reallocations]]","v":0},{"$f":"Dataset[[#This Row],[2026/27 To - Spending review Topic 1]]+Dataset[[#This Row],[2026/27 To - Spending review Topic 2]]+Dataset[[#This Row],[2026/27 To - Spending review Topic 3]]+Dataset[[#This Row],[2026/27 To - Spending review Topic 4]]+Dataset[[#This Row],[2026/27 To - Other reallocations]]","v":0},{"$f":"Dataset[[#This Row],[2024/25 Reduction]]+Dataset[[#This Row],[2024/25 From - Total]]","v":0},{"$f":"Dataset[[#This Row],[2025/26 Reduction]]+Dataset[[#This Row],[2025/26 From - Total]]","v":0},{"$f":"Dataset[[#This Row],[2026/27 Reduction]]+Dataset[[#This Row],[2026/27 From - Total]]","v":0},{"$f":"Dataset[[#This Row],[2023/24 Reduction]]","v":0},{"$f":"SUM(Dataset[[#This Row],[2024/25 Reduction]],Dataset[[#This Row],[2024/25 From - Total]],Dataset[[#This Row],[2024/25 To - Total]])","v":0},{"$f":"SUM(Dataset[[#This Row],[2025/26 Reduction]],Dataset[[#This Row],[2025/26 From - Total]],Dataset[[#This Row],[2025/26 To - Total]])","v":0},{"$f":"SUM(Dataset[[#This Row],[2026/27 Reduction]],Dataset[[#This Row],[2026/27 From - Total]],Dataset[[#This Row],[2026/27 To - Total]])","v":0},{"$f":"Dataset[[#This Row],[2023/24 Baseline]]+Dataset[[#This Row],[2023/24 Total change]]","v":0},{"$f":"Dataset[[#This Row],[2024/25 Baseline]]+Dataset[[#This Row],[2024/25 Total change]]","v":0},{"$f":"Dataset[[#This Row],[2025/26 Baseline]]+Dataset[[#This Row],[2025/26 Total change]]","v":0},{"$f":"Dataset[[#This Row],[2026/27 Baseline]]+Dataset[[#This Row],[2026/27 Total change]]","v":0}]
["NAT|Non-transfer item","26|Provincial Revenue Funds","2024_25","MTEF2024",26,1,1,43930,43,"26","01","01","043930","000043","26|01|01","01","02","04","43","43","01|02|04|43|43","National","Military Veterans","Administration","Management","Non-transfer item","Current","Transfers and subsidies","Provinces and municipalities","Provinces","Provincial Revenue Funds","Peace and security","Defence and state security","NAT",0,0,0,0,0,0,0,0,0,0,0,null,null,null,null,null,null,null,null,null,null,null,null,null,null,null,null,null,null,null,null,null,null,null,null,null,null,null,null,null,null,null,null,null,null,{"$f":"Dataset[[#This Row],[2024/25 From - Spending review Topic 1]]+Dataset[[#This Row],[2024/25 From - Spending review Topic 2]]+Dataset[[#This Row],[2024/25 From - Spending review Topic 3]]+Dataset[[#This Row],[2024/25 From - Spending review Topic 4]]+Dataset[[#This Row],[2024/25 From - Other reallocations]]","v":0},{"$f":"Dataset[[#This Row],[2025/26 From - Spending review Topic 1]]+Dataset[[#This Row],[2025/26 From - Spending review Topic 2]]+Dataset[[#This Row],[2025/26 From - Spending review Topic 3]]+Dataset[[#This Row],[2025/26 From - Spending review Topic 4]]+Dataset[[#This Row],[2025/26 From - Other reallocations]]","v":0},{"$f":"Dataset[[#This Row],[2026/27 From - Spending review Topic 1]]+Dataset[[#This Row],[2026/27 From - Spending review Topic 2]]+Dataset[[#This Row],[2026/27 From - Spending review Topic 3]]+Dataset[[#This Row],[2026/27 From - Spending review Topic 4]]+Dataset[[#This Row],[2026/27 From - Other reallocations]]","v":0},{"$f":"Dataset[[#This Row],[2024/25 To - Spending review Topic 1]]+Dataset[[#This Row],[2024/25 To - Spending review Topic 2]]+Dataset[[#This Row],[2024/25 To - Spending review Topic 3]]+Dataset[[#This Row],[2024/25 To - Spending review Topic 4]]+Dataset[[#This Row],[2024/25 To - Other reallocations]]","v":0},{"$f":"Dataset[[#This Row],[2025/26 To - Spending review Topic 1]]+Dataset[[#This Row],[2025/26 To - Spending review Topic 2]]+Dataset[[#This Row],[2025/26 To - Spending review Topic 3]]+Dataset[[#This Row],[2025/26 To - Spending review Topic 4]]+Dataset[[#This Row],[2025/26 To - Other reallocations]]","v":0},{"$f":"Dataset[[#This Row],[2026/27 To - Spending review Topic 1]]+Dataset[[#This Row],[2026/27 To - Spending review Topic 2]]+Dataset[[#This Row],[2026/27 To - Spending review Topic 3]]+Dataset[[#This Row],[2026/27 To - Spending review Topic 4]]+Dataset[[#This Row],[2026/27 To - Other reallocations]]","v":0},{"$f":"Dataset[[#This Row],[2024/25 Reduction]]+Dataset[[#This Row],[2024/25 From - Total]]","v":0},{"$f":"Dataset[[#This Row],[2025/26 Reduction]]+Dataset[[#This Row],[2025/26 From - Total]]","v":0},{"$f":"Dataset[[#This Row],[2026/27 Reduction]]+Dataset[[#This Row],[2026/27 From - Total]]","v":0},{"$f":"Dataset[[#This Row],[2023/24 Reduction]]","v":0},{"$f":"SUM(Dataset[[#This Row],[2024/25 Reduction]],Dataset[[#This Row],[2024/25 From - Total]],Dataset[[#This Row],[2024/25 To - Total]])","v":0},{"$f":"SUM(Dataset[[#This Row],[2025/26 Reduction]],Dataset[[#This Row],[2025/26 From - Total]],Dataset[[#This Row],[2025/26 To - Total]])","v":0},{"$f":"SUM(Dataset[[#This Row],[2026/27 Reduction]],Dataset[[#This Row],[2026/27 From - Total]],Dataset[[#This Row],[2026/27 To - Total]])","v":0},{"$f":"Dataset[[#This Row],[2023/24 Baseline]]+Dataset[[#This Row],[2023/24 Total change]]","v":0},{"$f":"Dataset[[#This Row],[2024/25 Baseline]]+Dataset[[#This Row],[2024/25 Total change]]","v":0},{"$f":"Dataset[[#This Row],[2025/26 Baseline]]+Dataset[[#This Row],[2025/26 Total change]]","v":0},{"$f":"Dataset[[#This Row],[2026/27 Baseline]]+Dataset[[#This Row],[2026/27 Total change]]","v":0}]
["NAT|Non-transfer item","26|Provincial agencies and funds","2024_25","MTEF2024",26,1,1,43931,44,"26","01","01","043931","000044","26|01|01","01","02","04","43","44","01|02|04|43|44","National","Military Veterans","Administration","Management","Non-transfer item","Current","Transfers and subsidies","Provinces and municipalities","Provinces","Provincial agencies and funds","Peace and security","Defence and state security","NAT",0,0,0,0,0,0,0,0,0,0,0,null,null,null,null,null,null,null,null,null,null,null,null,null,null,null,null,null,null,null,null,null,null,null,null,null,null,null,null,null,null,null,null,null,null,{"$f":"Dataset[[#This Row],[2024/25 From - Spending review Topic 1]]+Dataset[[#This Row],[2024/25 From - Spending review Topic 2]]+Dataset[[#This Row],[2024/25 From - Spending review Topic 3]]+Dataset[[#This Row],[2024/25 From - Spending review Topic 4]]+Dataset[[#This Row],[2024/25 From - Other reallocations]]","v":0},{"$f":"Dataset[[#This Row],[2025/26 From - Spending review Topic 1]]+Dataset[[#This Row],[2025/26 From - Spending review Topic 2]]+Dataset[[#This Row],[2025/26 From - Spending review Topic 3]]+Dataset[[#This Row],[2025/26 From - Spending review Topic 4]]+Dataset[[#This Row],[2025/26 From - Other reallocations]]","v":0},{"$f":"Dataset[[#This Row],[2026/27 From - Spending review Topic 1]]+Dataset[[#This Row],[2026/27 From - Spending review Topic 2]]+Dataset[[#This Row],[2026/27 From - Spending review Topic 3]]+Dataset[[#This Row],[2026/27 From - Spending review Topic 4]]+Dataset[[#This Row],[2026/27 From - Other reallocations]]","v":0},{"$f":"Dataset[[#This Row],[2024/25 To - Spending review Topic 1]]+Dataset[[#This Row],[2024/25 To - Spending review Topic 2]]+Dataset[[#This Row],[2024/25 To - Spending review Topic 3]]+Dataset[[#This Row],[2024/25 To - Spending review Topic 4]]+Dataset[[#This Row],[2024/25 To - Other reallocations]]","v":0},{"$f":"Dataset[[#This Row],[2025/26 To - Spending review Topic 1]]+Dataset[[#This Row],[2025/26 To - Spending review Topic 2]]+Dataset[[#This Row],[2025/26 To - Spending review Topic 3]]+Dataset[[#This Row],[2025/26 To - Spending review Topic 4]]+Dataset[[#This Row],[2025/26 To - Other reallocations]]","v":0},{"$f":"Dataset[[#This Row],[2026/27 To - Spending review Topic 1]]+Dataset[[#This Row],[2026/27 To - Spending review Topic 2]]+Dataset[[#This Row],[2026/27 To - Spending review Topic 3]]+Dataset[[#This Row],[2026/27 To - Spending review Topic 4]]+Dataset[[#This Row],[2026/27 To - Other reallocations]]","v":0},{"$f":"Dataset[[#This Row],[2024/25 Reduction]]+Dataset[[#This Row],[2024/25 From - Total]]","v":0},{"$f":"Dataset[[#This Row],[2025/26 Reduction]]+Dataset[[#This Row],[2025/26 From - Total]]","v":0},{"$f":"Dataset[[#This Row],[2026/27 Reduction]]+Dataset[[#This Row],[2026/27 From - Total]]","v":0},{"$f":"Dataset[[#This Row],[2023/24 Reduction]]","v":0},{"$f":"SUM(Dataset[[#This Row],[2024/25 Reduction]],Dataset[[#This Row],[2024/25 From - Total]],Dataset[[#This Row],[2024/25 To - Total]])","v":0},{"$f":"SUM(Dataset[[#This Row],[2025/26 Reduction]],Dataset[[#This Row],[2025/26 From - Total]],Dataset[[#This Row],[2025/26 To - Total]])","v":0},{"$f":"SUM(Dataset[[#This Row],[2026/27 Reduction]],Dataset[[#This Row],[2026/27 From - Total]],Dataset[[#This Row],[2026/27 To - Total]])","v":0},{"$f":"Dataset[[#This Row],[2023/24 Baseline]]+Dataset[[#This Row],[2023/24 Total change]]","v":0},{"$f":"Dataset[[#This Row],[2024/25 Baseline]]+Dataset[[#This Row],[2024/25 Total change]]","v":0},{"$f":"Dataset[[#This Row],[2025/26 Baseline]]+Dataset[[#This Row],[2025/26 Total change]]","v":0},{"$f":"Dataset[[#This Row],[2026/27 Baseline]]+Dataset[[#This Row],[2026/27 Total change]]","v":0}]
["NAT|Non-transfer item","26|Municipal bank accounts","2024_25","MTEF2024",26,1,1,43932,45,"26","01","01","043932","000045","26|01|01","01","02","04","44","45","01|02|04|44|45","National","Military Veterans","Administration","Management","Non-transfer item","Current","Transfers and subsidies","Provinces and municipalities","Municipalities","Municipal bank accounts","Peace and security","Defence and state security","NAT",0,0,0,0,0,0,0,0,0,0,0,null,null,null,null,null,null,null,null,null,null,null,null,null,null,null,null,null,null,null,null,null,null,null,null,null,null,null,null,null,null,null,null,null,null,{"$f":"Dataset[[#This Row],[2024/25 From - Spending review Topic 1]]+Dataset[[#This Row],[2024/25 From - Spending review Topic 2]]+Dataset[[#This Row],[2024/25 From - Spending review Topic 3]]+Dataset[[#This Row],[2024/25 From - Spending review Topic 4]]+Dataset[[#This Row],[2024/25 From - Other reallocations]]","v":0},{"$f":"Dataset[[#This Row],[2025/26 From - Spending review Topic 1]]+Dataset[[#This Row],[2025/26 From - Spending review Topic 2]]+Dataset[[#This Row],[2025/26 From - Spending review Topic 3]]+Dataset[[#This Row],[2025/26 From - Spending review Topic 4]]+Dataset[[#This Row],[2025/26 From - Other reallocations]]","v":0},{"$f":"Dataset[[#This Row],[2026/27 From - Spending review Topic 1]]+Dataset[[#This Row],[2026/27 From - Spending review Topic 2]]+Dataset[[#This Row],[2026/27 From - Spending review Topic 3]]+Dataset[[#This Row],[2026/27 From - Spending review Topic 4]]+Dataset[[#This Row],[2026/27 From - Other reallocations]]","v":0},{"$f":"Dataset[[#This Row],[2024/25 To - Spending review Topic 1]]+Dataset[[#This Row],[2024/25 To - Spending review Topic 2]]+Dataset[[#This Row],[2024/25 To - Spending review Topic 3]]+Dataset[[#This Row],[2024/25 To - Spending review Topic 4]]+Dataset[[#This Row],[2024/25 To - Other reallocations]]","v":0},{"$f":"Dataset[[#This Row],[2025/26 To - Spending review Topic 1]]+Dataset[[#This Row],[2025/26 To - Spending review Topic 2]]+Dataset[[#This Row],[2025/26 To - Spending review Topic 3]]+Dataset[[#This Row],[2025/26 To - Spending review Topic 4]]+Dataset[[#This Row],[2025/26 To - Other reallocations]]","v":0},{"$f":"Dataset[[#This Row],[2026/27 To - Spending review Topic 1]]+Dataset[[#This Row],[2026/27 To - Spending review Topic 2]]+Dataset[[#This Row],[2026/27 To - Spending review Topic 3]]+Dataset[[#This Row],[2026/27 To - Spending review Topic 4]]+Dataset[[#This Row],[2026/27 To - Other reallocations]]","v":0},{"$f":"Dataset[[#This Row],[2024/25 Reduction]]+Dataset[[#This Row],[2024/25 From - Total]]","v":0},{"$f":"Dataset[[#This Row],[2025/26 Reduction]]+Dataset[[#This Row],[2025/26 From - Total]]","v":0},{"$f":"Dataset[[#This Row],[2026/27 Reduction]]+Dataset[[#This Row],[2026/27 From - Total]]","v":0},{"$f":"Dataset[[#This Row],[2023/24 Reduction]]","v":0},{"$f":"SUM(Dataset[[#This Row],[2024/25 Reduction]],Dataset[[#This Row],[2024/25 From - Total]],Dataset[[#This Row],[2024/25 To - Total]])","v":0},{"$f":"SUM(Dataset[[#This Row],[2025/26 Reduction]],Dataset[[#This Row],[2025/26 From - Total]],Dataset[[#This Row],[2025/26 To - Total]])","v":0},{"$f":"SUM(Dataset[[#This Row],[2026/27 Reduction]],Dataset[[#This Row],[2026/27 From - Total]],Dataset[[#This Row],[2026/27 To - Total]])","v":0},{"$f":"Dataset[[#This Row],[2023/24 Baseline]]+Dataset[[#This Row],[2023/24 Total change]]","v":0},{"$f":"Dataset[[#This Row],[2024/25 Baseline]]+Dataset[[#This Row],[2024/25 Total change]]","v":0},{"$f":"Dataset[[#This Row],[2025/26 Baseline]]+Dataset[[#This Row],[2025/26 Total change]]","v":0},{"$f":"Dataset[[#This Row],[2026/27 Baseline]]+Dataset[[#This Row],[2026/27 Total change]]","v":0}]
["NAT|Non-transfer item","26|Municipal agencies and funds","2024_25","MTEF2024",26,1,1,43933,46,"26","01","01","043933","000046","26|01|01","01","02","04","44","46","01|02|04|44|46","National","Military Veterans","Administration","Management","Non-transfer item","Current","Transfers and subsidies","Provinces and municipalities","Municipalities","Municipal agencies and funds","Peace and security","Defence and state security","NAT",0,0,0,0,0,0,0,0,0,0,0,null,null,null,null,null,null,null,null,null,null,null,null,null,null,null,null,null,null,null,null,null,null,null,null,null,null,null,null,null,null,null,null,null,null,{"$f":"Dataset[[#This Row],[2024/25 From - Spending review Topic 1]]+Dataset[[#This Row],[2024/25 From - Spending review Topic 2]]+Dataset[[#This Row],[2024/25 From - Spending review Topic 3]]+Dataset[[#This Row],[2024/25 From - Spending review Topic 4]]+Dataset[[#This Row],[2024/25 From - Other reallocations]]","v":0},{"$f":"Dataset[[#This Row],[2025/26 From - Spending review Topic 1]]+Dataset[[#This Row],[2025/26 From - Spending review Topic 2]]+Dataset[[#This Row],[2025/26 From - Spending review Topic 3]]+Dataset[[#This Row],[2025/26 From - Spending review Topic 4]]+Dataset[[#This Row],[2025/26 From - Other reallocations]]","v":0},{"$f":"Dataset[[#This Row],[2026/27 From - Spending review Topic 1]]+Dataset[[#This Row],[2026/27 From - Spending review Topic 2]]+Dataset[[#This Row],[2026/27 From - Spending review Topic 3]]+Dataset[[#This Row],[2026/27 From - Spending review Topic 4]]+Dataset[[#This Row],[2026/27 From - Other reallocations]]","v":0},{"$f":"Dataset[[#This Row],[2024/25 To - Spending review Topic 1]]+Dataset[[#This Row],[2024/25 To - Spending review Topic 2]]+Dataset[[#This Row],[2024/25 To - Spending review Topic 3]]+Dataset[[#This Row],[2024/25 To - Spending review Topic 4]]+Dataset[[#This Row],[2024/25 To - Other reallocations]]","v":0},{"$f":"Dataset[[#This Row],[2025/26 To - Spending review Topic 1]]+Dataset[[#This Row],[2025/26 To - Spending review Topic 2]]+Dataset[[#This Row],[2025/26 To - Spending review Topic 3]]+Dataset[[#This Row],[2025/26 To - Spending review Topic 4]]+Dataset[[#This Row],[2025/26 To - Other reallocations]]","v":0},{"$f":"Dataset[[#This Row],[2026/27 To - Spending review Topic 1]]+Dataset[[#This Row],[2026/27 To - Spending review Topic 2]]+Dataset[[#This Row],[2026/27 To - Spending review Topic 3]]+Dataset[[#This Row],[2026/27 To - Spending review Topic 4]]+Dataset[[#This Row],[2026/27 To - Other reallocations]]","v":0},{"$f":"Dataset[[#This Row],[2024/25 Reduction]]+Dataset[[#This Row],[2024/25 From - Total]]","v":0},{"$f":"Dataset[[#This Row],[2025/26 Reduction]]+Dataset[[#This Row],[2025/26 From - Total]]","v":0},{"$f":"Dataset[[#This Row],[2026/27 Reduction]]+Dataset[[#This Row],[2026/27 From - Total]]","v":0},{"$f":"Dataset[[#This Row],[2023/24 Reduction]]","v":0},{"$f":"SUM(Dataset[[#This Row],[2024/25 Reduction]],Dataset[[#This Row],[2024/25 From - Total]],Dataset[[#This Row],[2024/25 To - Total]])","v":0},{"$f":"SUM(Dataset[[#This Row],[2025/26 Reduction]],Dataset[[#This Row],[2025/26 From - Total]],Dataset[[#This Row],[2025/26 To - Total]])","v":0},{"$f":"SUM(Dataset[[#This Row],[2026/27 Reduction]],Dataset[[#This Row],[2026/27 From - Total]],Dataset[[#This Row],[2026/27 To - Total]])","v":0},{"$f":"Dataset[[#This Row],[2023/24 Baseline]]+Dataset[[#This Row],[2023/24 Total change]]","v":0},{"$f":"Dataset[[#This Row],[2024/25 Baseline]]+Dataset[[#This Row],[2024/25 Total change]]","v":0},{"$f":"Dataset[[#This Row],[2025/26 Baseline]]+Dataset[[#This Row],[2025/26 Total change]]","v":0},{"$f":"Dataset[[#This Row],[2026/27 Baseline]]+Dataset[[#This Row],[2026/27 Total change]]","v":0}]
["NAT|Non-transfer item","26|Social security funds","2024_25","MTEF2024",26,1,1,43934,47,"26","01","01","043934","000047","26|01|01","01","02","05","45","47","01|02|05|45|47","National","Military Veterans","Administration","Management","Non-transfer item","Current","Transfers and subsidies","Departmental agencies and accounts","Social security funds","Social security funds","Peace and security","Defence and state security","NAT",0,0,0,0,0,0,0,0,0,0,0,null,null,null,null,null,null,null,null,null,null,null,null,null,null,null,null,null,null,null,null,null,null,null,null,null,null,null,null,null,null,null,null,null,null,{"$f":"Dataset[[#This Row],[2024/25 From - Spending review Topic 1]]+Dataset[[#This Row],[2024/25 From - Spending review Topic 2]]+Dataset[[#This Row],[2024/25 From - Spending review Topic 3]]+Dataset[[#This Row],[2024/25 From - Spending review Topic 4]]+Dataset[[#This Row],[2024/25 From - Other reallocations]]","v":0},{"$f":"Dataset[[#This Row],[2025/26 From - Spending review Topic 1]]+Dataset[[#This Row],[2025/26 From - Spending review Topic 2]]+Dataset[[#This Row],[2025/26 From - Spending review Topic 3]]+Dataset[[#This Row],[2025/26 From - Spending review Topic 4]]+Dataset[[#This Row],[2025/26 From - Other reallocations]]","v":0},{"$f":"Dataset[[#This Row],[2026/27 From - Spending review Topic 1]]+Dataset[[#This Row],[2026/27 From - Spending review Topic 2]]+Dataset[[#This Row],[2026/27 From - Spending review Topic 3]]+Dataset[[#This Row],[2026/27 From - Spending review Topic 4]]+Dataset[[#This Row],[2026/27 From - Other reallocations]]","v":0},{"$f":"Dataset[[#This Row],[2024/25 To - Spending review Topic 1]]+Dataset[[#This Row],[2024/25 To - Spending review Topic 2]]+Dataset[[#This Row],[2024/25 To - Spending review Topic 3]]+Dataset[[#This Row],[2024/25 To - Spending review Topic 4]]+Dataset[[#This Row],[2024/25 To - Other reallocations]]","v":0},{"$f":"Dataset[[#This Row],[2025/26 To - Spending review Topic 1]]+Dataset[[#This Row],[2025/26 To - Spending review Topic 2]]+Dataset[[#This Row],[2025/26 To - Spending review Topic 3]]+Dataset[[#This Row],[2025/26 To - Spending review Topic 4]]+Dataset[[#This Row],[2025/26 To - Other reallocations]]","v":0},{"$f":"Dataset[[#This Row],[2026/27 To - Spending review Topic 1]]+Dataset[[#This Row],[2026/27 To - Spending review Topic 2]]+Dataset[[#This Row],[2026/27 To - Spending review Topic 3]]+Dataset[[#This Row],[2026/27 To - Spending review Topic 4]]+Dataset[[#This Row],[2026/27 To - Other reallocations]]","v":0},{"$f":"Dataset[[#This Row],[2024/25 Reduction]]+Dataset[[#This Row],[2024/25 From - Total]]","v":0},{"$f":"Dataset[[#This Row],[2025/26 Reduction]]+Dataset[[#This Row],[2025/26 From - Total]]","v":0},{"$f":"Dataset[[#This Row],[2026/27 Reduction]]+Dataset[[#This Row],[2026/27 From - Total]]","v":0},{"$f":"Dataset[[#This Row],[2023/24 Reduction]]","v":0},{"$f":"SUM(Dataset[[#This Row],[2024/25 Reduction]],Dataset[[#This Row],[2024/25 From - Total]],Dataset[[#This Row],[2024/25 To - Total]])","v":0},{"$f":"SUM(Dataset[[#This Row],[2025/26 Reduction]],Dataset[[#This Row],[2025/26 From - Total]],Dataset[[#This Row],[2025/26 To - Total]])","v":0},{"$f":"SUM(Dataset[[#This Row],[2026/27 Reduction]],Dataset[[#This Row],[2026/27 From - Total]],Dataset[[#This Row],[2026/27 To - Total]])","v":0},{"$f":"Dataset[[#This Row],[2023/24 Baseline]]+Dataset[[#This Row],[2023/24 Total change]]","v":0},{"$f":"Dataset[[#This Row],[2024/25 Baseline]]+Dataset[[#This Row],[2024/25 Total change]]","v":0},{"$f":"Dataset[[#This Row],[2025/26 Baseline]]+Dataset[[#This Row],[2025/26 Total change]]","v":0},{"$f":"Dataset[[#This Row],[2026/27 Baseline]]+Dataset[[#This Row],[2026/27 Total change]]","v":0}]
["NAT|Non-transfer item","26|Departmental agencies (non-business entities)","2024_25","MTEF2024",26,1,1,43935,48,"26","01","01","043935","000048","26|01|01","01","02","05","46","48","01|02|05|46|48","National","Military Veterans","Administration","Management","Non-transfer item","Current","Transfers and subsidies","Departmental agencies and accounts","Departmental agencies (non-business entities)","Departmental agencies (non-business entities)","Peace and security","Defence and state security","NAT",0,0,0,0,0,0,0,0,0,0,0,null,null,null,null,null,null,null,null,null,null,null,null,null,null,null,null,null,null,null,null,null,null,null,null,null,null,null,null,null,null,null,null,null,null,{"$f":"Dataset[[#This Row],[2024/25 From - Spending review Topic 1]]+Dataset[[#This Row],[2024/25 From - Spending review Topic 2]]+Dataset[[#This Row],[2024/25 From - Spending review Topic 3]]+Dataset[[#This Row],[2024/25 From - Spending review Topic 4]]+Dataset[[#This Row],[2024/25 From - Other reallocations]]","v":0},{"$f":"Dataset[[#This Row],[2025/26 From - Spending review Topic 1]]+Dataset[[#This Row],[2025/26 From - Spending review Topic 2]]+Dataset[[#This Row],[2025/26 From - Spending review Topic 3]]+Dataset[[#This Row],[2025/26 From - Spending review Topic 4]]+Dataset[[#This Row],[2025/26 From - Other reallocations]]","v":0},{"$f":"Dataset[[#This Row],[2026/27 From - Spending review Topic 1]]+Dataset[[#This Row],[2026/27 From - Spending review Topic 2]]+Dataset[[#This Row],[2026/27 From - Spending review Topic 3]]+Dataset[[#This Row],[2026/27 From - Spending review Topic 4]]+Dataset[[#This Row],[2026/27 From - Other reallocations]]","v":0},{"$f":"Dataset[[#This Row],[2024/25 To - Spending review Topic 1]]+Dataset[[#This Row],[2024/25 To - Spending review Topic 2]]+Dataset[[#This Row],[2024/25 To - Spending review Topic 3]]+Dataset[[#This Row],[2024/25 To - Spending review Topic 4]]+Dataset[[#This Row],[2024/25 To - Other reallocations]]","v":0},{"$f":"Dataset[[#This Row],[2025/26 To - Spending review Topic 1]]+Dataset[[#This Row],[2025/26 To - Spending review Topic 2]]+Dataset[[#This Row],[2025/26 To - Spending review Topic 3]]+Dataset[[#This Row],[2025/26 To - Spending review Topic 4]]+Dataset[[#This Row],[2025/26 To - Other reallocations]]","v":0},{"$f":"Dataset[[#This Row],[2026/27 To - Spending review Topic 1]]+Dataset[[#This Row],[2026/27 To - Spending review Topic 2]]+Dataset[[#This Row],[2026/27 To - Spending review Topic 3]]+Dataset[[#This Row],[2026/27 To - Spending review Topic 4]]+Dataset[[#This Row],[2026/27 To - Other reallocations]]","v":0},{"$f":"Dataset[[#This Row],[2024/25 Reduction]]+Dataset[[#This Row],[2024/25 From - Total]]","v":0},{"$f":"Dataset[[#This Row],[2025/26 Reduction]]+Dataset[[#This Row],[2025/26 From - Total]]","v":0},{"$f":"Dataset[[#This Row],[2026/27 Reduction]]+Dataset[[#This Row],[2026/27 From - Total]]","v":0},{"$f":"Dataset[[#This Row],[2023/24 Reduction]]","v":0},{"$f":"SUM(Dataset[[#This Row],[2024/25 Reduction]],Dataset[[#This Row],[2024/25 From - Total]],Dataset[[#This Row],[2024/25 To - Total]])","v":0},{"$f":"SUM(Dataset[[#This Row],[2025/26 Reduction]],Dataset[[#This Row],[2025/26 From - Total]],Dataset[[#This Row],[2025/26 To - Total]])","v":0},{"$f":"SUM(Dataset[[#This Row],[2026/27 Reduction]],Dataset[[#This Row],[2026/27 From - Total]],Dataset[[#This Row],[2026/27 To - Total]])","v":0},{"$f":"Dataset[[#This Row],[2023/24 Baseline]]+Dataset[[#This Row],[2023/24 Total change]]","v":0},{"$f":"Dataset[[#This Row],[2024/25 Baseline]]+Dataset[[#This Row],[2024/25 Total change]]","v":0},{"$f":"Dataset[[#This Row],[2025/26 Baseline]]+Dataset[[#This Row],[2025/26 Total change]]","v":0},{"$f":"Dataset[[#This Row],[2026/27 Baseline]]+Dataset[[#This Row],[2026/27 Total change]]","v":0}]
["NAT|Non-transfer item","26|Higher education institutions","2024_25","MTEF2024",26,1,1,43936,49,"26","01","01","043936","000049","26|01|01","01","02","06","47","49","01|02|06|47|49","National","Military Veterans","Administration","Management","Non-transfer item","Current","Transfers and subsidies","Higher education institutions","Higher education institutions","Higher education institutions","Peace and security","Defence and state security","NAT",0,0,0,0,0,0,0,0,0,0,0,null,null,null,null,null,null,null,null,null,null,null,null,null,null,null,null,null,null,null,null,null,null,null,null,null,null,null,null,null,null,null,null,null,null,{"$f":"Dataset[[#This Row],[2024/25 From - Spending review Topic 1]]+Dataset[[#This Row],[2024/25 From - Spending review Topic 2]]+Dataset[[#This Row],[2024/25 From - Spending review Topic 3]]+Dataset[[#This Row],[2024/25 From - Spending review Topic 4]]+Dataset[[#This Row],[2024/25 From - Other reallocations]]","v":0},{"$f":"Dataset[[#This Row],[2025/26 From - Spending review Topic 1]]+Dataset[[#This Row],[2025/26 From - Spending review Topic 2]]+Dataset[[#This Row],[2025/26 From - Spending review Topic 3]]+Dataset[[#This Row],[2025/26 From - Spending review Topic 4]]+Dataset[[#This Row],[2025/26 From - Other reallocations]]","v":0},{"$f":"Dataset[[#This Row],[2026/27 From - Spending review Topic 1]]+Dataset[[#This Row],[2026/27 From - Spending review Topic 2]]+Dataset[[#This Row],[2026/27 From - Spending review Topic 3]]+Dataset[[#This Row],[2026/27 From - Spending review Topic 4]]+Dataset[[#This Row],[2026/27 From - Other reallocations]]","v":0},{"$f":"Dataset[[#This Row],[2024/25 To - Spending review Topic 1]]+Dataset[[#This Row],[2024/25 To - Spending review Topic 2]]+Dataset[[#This Row],[2024/25 To - Spending review Topic 3]]+Dataset[[#This Row],[2024/25 To - Spending review Topic 4]]+Dataset[[#This Row],[2024/25 To - Other reallocations]]","v":0},{"$f":"Dataset[[#This Row],[2025/26 To - Spending review Topic 1]]+Dataset[[#This Row],[2025/26 To - Spending review Topic 2]]+Dataset[[#This Row],[2025/26 To - Spending review Topic 3]]+Dataset[[#This Row],[2025/26 To - Spending review Topic 4]]+Dataset[[#This Row],[2025/26 To - Other reallocations]]","v":0},{"$f":"Dataset[[#This Row],[2026/27 To - Spending review Topic 1]]+Dataset[[#This Row],[2026/27 To - Spending review Topic 2]]+Dataset[[#This Row],[2026/27 To - Spending review Topic 3]]+Dataset[[#This Row],[2026/27 To - Spending review Topic 4]]+Dataset[[#This Row],[2026/27 To - Other reallocations]]","v":0},{"$f":"Dataset[[#This Row],[2024/25 Reduction]]+Dataset[[#This Row],[2024/25 From - Total]]","v":0},{"$f":"Dataset[[#This Row],[2025/26 Reduction]]+Dataset[[#This Row],[2025/26 From - Total]]","v":0},{"$f":"Dataset[[#This Row],[2026/27 Reduction]]+Dataset[[#This Row],[2026/27 From - Total]]","v":0},{"$f":"Dataset[[#This Row],[2023/24 Reduction]]","v":0},{"$f":"SUM(Dataset[[#This Row],[2024/25 Reduction]],Dataset[[#This Row],[2024/25 From - Total]],Dataset[[#This Row],[2024/25 To - Total]])","v":0},{"$f":"SUM(Dataset[[#This Row],[2025/26 Reduction]],Dataset[[#This Row],[2025/26 From - Total]],Dataset[[#This Row],[2025/26 To - Total]])","v":0},{"$f":"SUM(Dataset[[#This Row],[2026/27 Reduction]],Dataset[[#This Row],[2026/27 From - Total]],Dataset[[#This Row],[2026/27 To - Total]])","v":0},{"$f":"Dataset[[#This Row],[2023/24 Baseline]]+Dataset[[#This Row],[2023/24 Total change]]","v":0},{"$f":"Dataset[[#This Row],[2024/25 Baseline]]+Dataset[[#This Row],[2024/25 Total change]]","v":0},{"$f":"Dataset[[#This Row],[2025/26 Baseline]]+Dataset[[#This Row],[2025/26 Total change]]","v":0},{"$f":"Dataset[[#This Row],[2026/27 Baseline]]+Dataset[[#This Row],[2026/27 Total change]]","v":0}]
["NAT|Non-transfer item","26|Foreign governments and international organisations","2024_25","MTEF2024",26,1,1,43937,50,"26","01","01","043937","000050","26|01|01","01","02","07","48","50","01|02|07|48|50","National","Military Veterans","Administration","Management","Non-transfer item","Current","Transfers and subsidies","Foreign governments and international organisations","Foreign governments and international organisations","Foreign governments and international organisations","Peace and security","Defence and state security","NAT",0,0,0,0,0,0,0,0,0,0,0,null,null,null,null,null,null,null,null,null,null,null,null,null,null,null,null,null,null,null,null,null,null,null,null,null,null,null,null,null,null,null,null,null,null,{"$f":"Dataset[[#This Row],[2024/25 From - Spending review Topic 1]]+Dataset[[#This Row],[2024/25 From - Spending review Topic 2]]+Dataset[[#This Row],[2024/25 From - Spending review Topic 3]]+Dataset[[#This Row],[2024/25 From - Spending review Topic 4]]+Dataset[[#This Row],[2024/25 From - Other reallocations]]","v":0},{"$f":"Dataset[[#This Row],[2025/26 From - Spending review Topic 1]]+Dataset[[#This Row],[2025/26 From - Spending review Topic 2]]+Dataset[[#This Row],[2025/26 From - Spending review Topic 3]]+Dataset[[#This Row],[2025/26 From - Spending review Topic 4]]+Dataset[[#This Row],[2025/26 From - Other reallocations]]","v":0},{"$f":"Dataset[[#This Row],[2026/27 From - Spending review Topic 1]]+Dataset[[#This Row],[2026/27 From - Spending review Topic 2]]+Dataset[[#This Row],[2026/27 From - Spending review Topic 3]]+Dataset[[#This Row],[2026/27 From - Spending review Topic 4]]+Dataset[[#This Row],[2026/27 From - Other reallocations]]","v":0},{"$f":"Dataset[[#This Row],[2024/25 To - Spending review Topic 1]]+Dataset[[#This Row],[2024/25 To - Spending review Topic 2]]+Dataset[[#This Row],[2024/25 To - Spending review Topic 3]]+Dataset[[#This Row],[2024/25 To - Spending review Topic 4]]+Dataset[[#This Row],[2024/25 To - Other reallocations]]","v":0},{"$f":"Dataset[[#This Row],[2025/26 To - Spending review Topic 1]]+Dataset[[#This Row],[2025/26 To - Spending review Topic 2]]+Dataset[[#This Row],[2025/26 To - Spending review Topic 3]]+Dataset[[#This Row],[2025/26 To - Spending review Topic 4]]+Dataset[[#This Row],[2025/26 To - Other reallocations]]","v":0},{"$f":"Dataset[[#This Row],[2026/27 To - Spending review Topic 1]]+Dataset[[#This Row],[2026/27 To - Spending review Topic 2]]+Dataset[[#This Row],[2026/27 To - Spending review Topic 3]]+Dataset[[#This Row],[2026/27 To - Spending review Topic 4]]+Dataset[[#This Row],[2026/27 To - Other reallocations]]","v":0},{"$f":"Dataset[[#This Row],[2024/25 Reduction]]+Dataset[[#This Row],[2024/25 From - Total]]","v":0},{"$f":"Dataset[[#This Row],[2025/26 Reduction]]+Dataset[[#This Row],[2025/26 From - Total]]","v":0},{"$f":"Dataset[[#This Row],[2026/27 Reduction]]+Dataset[[#This Row],[2026/27 From - Total]]","v":0},{"$f":"Dataset[[#This Row],[2023/24 Reduction]]","v":0},{"$f":"SUM(Dataset[[#This Row],[2024/25 Reduction]],Dataset[[#This Row],[2024/25 From - Total]],Dataset[[#This Row],[2024/25 To - Total]])","v":0},{"$f":"SUM(Dataset[[#This Row],[2025/26 Reduction]],Dataset[[#This Row],[2025/26 From - Total]],Dataset[[#This Row],[2025/26 To - Total]])","v":0},{"$f":"SUM(Dataset[[#This Row],[2026/27 Reduction]],Dataset[[#This Row],[2026/27 From - Total]],Dataset[[#This Row],[2026/27 To - Total]])","v":0},{"$f":"Dataset[[#This Row],[2023/24 Baseline]]+Dataset[[#This Row],[2023/24 Total change]]","v":0},{"$f":"Dataset[[#This Row],[2024/25 Baseline]]+Dataset[[#This Row],[2024/25 Total change]]","v":0},{"$f":"Dataset[[#This Row],[2025/26 Baseline]]+Dataset[[#This Row],[2025/26 Total change]]","v":0},{"$f":"Dataset[[#This Row],[2026/27 Baseline]]+Dataset[[#This Row],[2026/27 Total change]]","v":0}]
["NAT|Non-transfer item","26|Subsidies on products and production (pc)","2024_25","MTEF2024",26,1,1,43938,51,"26","01","01","043938","000051","26|01|01","01","02","08","49","51","01|02|08|49|51","National","Military Veterans","Administration","Management","Non-transfer item","Current","Transfers and subsidies","Public corporations and private enterprises","Public corporations","Subsidies on products and production (pc)","Peace and security","Defence and state security","NAT",0,0,0,0,0,0,0,0,0,0,0,null,null,null,null,null,null,null,null,null,null,null,null,null,null,null,null,null,null,null,null,null,null,null,null,null,null,null,null,null,null,null,null,null,null,{"$f":"Dataset[[#This Row],[2024/25 From - Spending review Topic 1]]+Dataset[[#This Row],[2024/25 From - Spending review Topic 2]]+Dataset[[#This Row],[2024/25 From - Spending review Topic 3]]+Dataset[[#This Row],[2024/25 From - Spending review Topic 4]]+Dataset[[#This Row],[2024/25 From - Other reallocations]]","v":0},{"$f":"Dataset[[#This Row],[2025/26 From - Spending review Topic 1]]+Dataset[[#This Row],[2025/26 From - Spending review Topic 2]]+Dataset[[#This Row],[2025/26 From - Spending review Topic 3]]+Dataset[[#This Row],[2025/26 From - Spending review Topic 4]]+Dataset[[#This Row],[2025/26 From - Other reallocations]]","v":0},{"$f":"Dataset[[#This Row],[2026/27 From - Spending review Topic 1]]+Dataset[[#This Row],[2026/27 From - Spending review Topic 2]]+Dataset[[#This Row],[2026/27 From - Spending review Topic 3]]+Dataset[[#This Row],[2026/27 From - Spending review Topic 4]]+Dataset[[#This Row],[2026/27 From - Other reallocations]]","v":0},{"$f":"Dataset[[#This Row],[2024/25 To - Spending review Topic 1]]+Dataset[[#This Row],[2024/25 To - Spending review Topic 2]]+Dataset[[#This Row],[2024/25 To - Spending review Topic 3]]+Dataset[[#This Row],[2024/25 To - Spending review Topic 4]]+Dataset[[#This Row],[2024/25 To - Other reallocations]]","v":0},{"$f":"Dataset[[#This Row],[2025/26 To - Spending review Topic 1]]+Dataset[[#This Row],[2025/26 To - Spending review Topic 2]]+Dataset[[#This Row],[2025/26 To - Spending review Topic 3]]+Dataset[[#This Row],[2025/26 To - Spending review Topic 4]]+Dataset[[#This Row],[2025/26 To - Other reallocations]]","v":0},{"$f":"Dataset[[#This Row],[2026/27 To - Spending review Topic 1]]+Dataset[[#This Row],[2026/27 To - Spending review Topic 2]]+Dataset[[#This Row],[2026/27 To - Spending review Topic 3]]+Dataset[[#This Row],[2026/27 To - Spending review Topic 4]]+Dataset[[#This Row],[2026/27 To - Other reallocations]]","v":0},{"$f":"Dataset[[#This Row],[2024/25 Reduction]]+Dataset[[#This Row],[2024/25 From - Total]]","v":0},{"$f":"Dataset[[#This Row],[2025/26 Reduction]]+Dataset[[#This Row],[2025/26 From - Total]]","v":0},{"$f":"Dataset[[#This Row],[2026/27 Reduction]]+Dataset[[#This Row],[2026/27 From - Total]]","v":0},{"$f":"Dataset[[#This Row],[2023/24 Reduction]]","v":0},{"$f":"SUM(Dataset[[#This Row],[2024/25 Reduction]],Dataset[[#This Row],[2024/25 From - Total]],Dataset[[#This Row],[2024/25 To - Total]])","v":0},{"$f":"SUM(Dataset[[#This Row],[2025/26 Reduction]],Dataset[[#This Row],[2025/26 From - Total]],Dataset[[#This Row],[2025/26 To - Total]])","v":0},{"$f":"SUM(Dataset[[#This Row],[2026/27 Reduction]],Dataset[[#This Row],[2026/27 From - Total]],Dataset[[#This Row],[2026/27 To - Total]])","v":0},{"$f":"Dataset[[#This Row],[2023/24 Baseline]]+Dataset[[#This Row],[2023/24 Total change]]","v":0},{"$f":"Dataset[[#This Row],[2024/25 Baseline]]+Dataset[[#This Row],[2024/25 Total change]]","v":0},{"$f":"Dataset[[#This Row],[2025/26 Baseline]]+Dataset[[#This Row],[2025/26 Total change]]","v":0},{"$f":"Dataset[[#This Row],[2026/27 Baseline]]+Dataset[[#This Row],[2026/27 Total change]]","v":0}]
["NAT|Non-transfer item","26|Other transfers to public corporations","2024_25","MTEF2024",26,1,1,43939,52,"26","01","01","043939","000052","26|01|01","01","02","08","49","52","01|02|08|49|52","National","Military Veterans","Administration","Management","Non-transfer item","Current","Transfers and subsidies","Public corporations and private enterprises","Public corporations","Other transfers to public corporations","Peace and security","Defence and state security","NAT",0,0,0,0,0,0,0,0,0,0,0,null,null,null,null,null,null,null,null,null,null,null,null,null,null,null,null,null,null,null,null,null,null,null,null,null,null,null,null,null,null,null,null,null,null,{"$f":"Dataset[[#This Row],[2024/25 From - Spending review Topic 1]]+Dataset[[#This Row],[2024/25 From - Spending review Topic 2]]+Dataset[[#This Row],[2024/25 From - Spending review Topic 3]]+Dataset[[#This Row],[2024/25 From - Spending review Topic 4]]+Dataset[[#This Row],[2024/25 From - Other reallocations]]","v":0},{"$f":"Dataset[[#This Row],[2025/26 From - Spending review Topic 1]]+Dataset[[#This Row],[2025/26 From - Spending review Topic 2]]+Dataset[[#This Row],[2025/26 From - Spending review Topic 3]]+Dataset[[#This Row],[2025/26 From - Spending review Topic 4]]+Dataset[[#This Row],[2025/26 From - Other reallocations]]","v":0},{"$f":"Dataset[[#This Row],[2026/27 From - Spending review Topic 1]]+Dataset[[#This Row],[2026/27 From - Spending review Topic 2]]+Dataset[[#This Row],[2026/27 From - Spending review Topic 3]]+Dataset[[#This Row],[2026/27 From - Spending review Topic 4]]+Dataset[[#This Row],[2026/27 From - Other reallocations]]","v":0},{"$f":"Dataset[[#This Row],[2024/25 To - Spending review Topic 1]]+Dataset[[#This Row],[2024/25 To - Spending review Topic 2]]+Dataset[[#This Row],[2024/25 To - Spending review Topic 3]]+Dataset[[#This Row],[2024/25 To - Spending review Topic 4]]+Dataset[[#This Row],[2024/25 To - Other reallocations]]","v":0},{"$f":"Dataset[[#This Row],[2025/26 To - Spending review Topic 1]]+Dataset[[#This Row],[2025/26 To - Spending review Topic 2]]+Dataset[[#This Row],[2025/26 To - Spending review Topic 3]]+Dataset[[#This Row],[2025/26 To - Spending review Topic 4]]+Dataset[[#This Row],[2025/26 To - Other reallocations]]","v":0},{"$f":"Dataset[[#This Row],[2026/27 To - Spending review Topic 1]]+Dataset[[#This Row],[2026/27 To - Spending review Topic 2]]+Dataset[[#This Row],[2026/27 To - Spending review Topic 3]]+Dataset[[#This Row],[2026/27 To - Spending review Topic 4]]+Dataset[[#This Row],[2026/27 To - Other reallocations]]","v":0},{"$f":"Dataset[[#This Row],[2024/25 Reduction]]+Dataset[[#This Row],[2024/25 From - Total]]","v":0},{"$f":"Dataset[[#This Row],[2025/26 Reduction]]+Dataset[[#This Row],[2025/26 From - Total]]","v":0},{"$f":"Dataset[[#This Row],[2026/27 Reduction]]+Dataset[[#This Row],[2026/27 From - Total]]","v":0},{"$f":"Dataset[[#This Row],[2023/24 Reduction]]","v":0},{"$f":"SUM(Dataset[[#This Row],[2024/25 Reduction]],Dataset[[#This Row],[2024/25 From - Total]],Dataset[[#This Row],[2024/25 To - Total]])","v":0},{"$f":"SUM(Dataset[[#This Row],[2025/26 Reduction]],Dataset[[#This Row],[2025/26 From - Total]],Dataset[[#This Row],[2025/26 To - Total]])","v":0},{"$f":"SUM(Dataset[[#This Row],[2026/27 Reduction]],Dataset[[#This Row],[2026/27 From - Total]],Dataset[[#This Row],[2026/27 To - Total]])","v":0},{"$f":"Dataset[[#This Row],[2023/24 Baseline]]+Dataset[[#This Row],[2023/24 Total change]]","v":0},{"$f":"Dataset[[#This Row],[2024/25 Baseline]]+Dataset[[#This Row],[2024/25 Total change]]","v":0},{"$f":"Dataset[[#This Row],[2025/26 Baseline]]+Dataset[[#This Row],[2025/26 Total change]]","v":0},{"$f":"Dataset[[#This Row],[2026/27 Baseline]]+Dataset[[#This Row],[2026/27 Total change]]","v":0}]
["NAT|Non-transfer item","26|Subsidies on products and production (pe)","2024_25","MTEF2024",26,1,1,43940,53,"26","01","01","043940","000053","26|01|01","01","02","08","50","53","01|02|08|50|53","National","Military Veterans","Administration","Management","Non-transfer item","Current","Transfers and subsidies","Public corporations and private enterprises","Private enterprises","Subsidies on products and production (pe)","Peace and security","Defence and state security","NAT",0,0,0,0,0,0,0,0,0,0,0,null,null,null,null,null,null,null,null,null,null,null,null,null,null,null,null,null,null,null,null,null,null,null,null,null,null,null,null,null,null,null,null,null,null,{"$f":"Dataset[[#This Row],[2024/25 From - Spending review Topic 1]]+Dataset[[#This Row],[2024/25 From - Spending review Topic 2]]+Dataset[[#This Row],[2024/25 From - Spending review Topic 3]]+Dataset[[#This Row],[2024/25 From - Spending review Topic 4]]+Dataset[[#This Row],[2024/25 From - Other reallocations]]","v":0},{"$f":"Dataset[[#This Row],[2025/26 From - Spending review Topic 1]]+Dataset[[#This Row],[2025/26 From - Spending review Topic 2]]+Dataset[[#This Row],[2025/26 From - Spending review Topic 3]]+Dataset[[#This Row],[2025/26 From - Spending review Topic 4]]+Dataset[[#This Row],[2025/26 From - Other reallocations]]","v":0},{"$f":"Dataset[[#This Row],[2026/27 From - Spending review Topic 1]]+Dataset[[#This Row],[2026/27 From - Spending review Topic 2]]+Dataset[[#This Row],[2026/27 From - Spending review Topic 3]]+Dataset[[#This Row],[2026/27 From - Spending review Topic 4]]+Dataset[[#This Row],[2026/27 From - Other reallocations]]","v":0},{"$f":"Dataset[[#This Row],[2024/25 To - Spending review Topic 1]]+Dataset[[#This Row],[2024/25 To - Spending review Topic 2]]+Dataset[[#This Row],[2024/25 To - Spending review Topic 3]]+Dataset[[#This Row],[2024/25 To - Spending review Topic 4]]+Dataset[[#This Row],[2024/25 To - Other reallocations]]","v":0},{"$f":"Dataset[[#This Row],[2025/26 To - Spending review Topic 1]]+Dataset[[#This Row],[2025/26 To - Spending review Topic 2]]+Dataset[[#This Row],[2025/26 To - Spending review Topic 3]]+Dataset[[#This Row],[2025/26 To - Spending review Topic 4]]+Dataset[[#This Row],[2025/26 To - Other reallocations]]","v":0},{"$f":"Dataset[[#This Row],[2026/27 To - Spending review Topic 1]]+Dataset[[#This Row],[2026/27 To - Spending review Topic 2]]+Dataset[[#This Row],[2026/27 To - Spending review Topic 3]]+Dataset[[#This Row],[2026/27 To - Spending review Topic 4]]+Dataset[[#This Row],[2026/27 To - Other reallocations]]","v":0},{"$f":"Dataset[[#This Row],[2024/25 Reduction]]+Dataset[[#This Row],[2024/25 From - Total]]","v":0},{"$f":"Dataset[[#This Row],[2025/26 Reduction]]+Dataset[[#This Row],[2025/26 From - Total]]","v":0},{"$f":"Dataset[[#This Row],[2026/27 Reduction]]+Dataset[[#This Row],[2026/27 From - Total]]","v":0},{"$f":"Dataset[[#This Row],[2023/24 Reduction]]","v":0},{"$f":"SUM(Dataset[[#This Row],[2024/25 Reduction]],Dataset[[#This Row],[2024/25 From - Total]],Dataset[[#This Row],[2024/25 To - Total]])","v":0},{"$f":"SUM(Dataset[[#This Row],[2025/26 Reduction]],Dataset[[#This Row],[2025/26 From - Total]],Dataset[[#This Row],[2025/26 To - Total]])","v":0},{"$f":"SUM(Dataset[[#This Row],[2026/27 Reduction]],Dataset[[#This Row],[2026/27 From - Total]],Dataset[[#This Row],[2026/27 To - Total]])","v":0},{"$f":"Dataset[[#This Row],[2023/24 Baseline]]+Dataset[[#This Row],[2023/24 Total change]]","v":0},{"$f":"Dataset[[#This Row],[2024/25 Baseline]]+Dataset[[#This Row],[2024/25 Total change]]","v":0},{"$f":"Dataset[[#This Row],[2025/26 Baseline]]+Dataset[[#This Row],[2025/26 Total change]]","v":0},{"$f":"Dataset[[#This Row],[2026/27 Baseline]]+Dataset[[#This Row],[2026/27 Total change]]","v":0}]
["NAT|Non-transfer item","26|Other transfers to private enterprises","2024_25","MTEF2024",26,1,1,43941,54,"26","01","01","043941","000054","26|01|01","01","02","08","50","54","01|02|08|50|54","National","Military Veterans","Administration","Management","Non-transfer item","Current","Transfers and subsidies","Public corporations and private enterprises","Private enterprises","Other transfers to private enterprises","Peace and security","Defence and state security","NAT",0,0,0,0,0,0,0,0,0,0,0,null,null,null,null,null,null,null,null,null,null,null,null,null,null,null,null,null,null,null,null,null,null,null,null,null,null,null,null,null,null,null,null,null,null,{"$f":"Dataset[[#This Row],[2024/25 From - Spending review Topic 1]]+Dataset[[#This Row],[2024/25 From - Spending review Topic 2]]+Dataset[[#This Row],[2024/25 From - Spending review Topic 3]]+Dataset[[#This Row],[2024/25 From - Spending review Topic 4]]+Dataset[[#This Row],[2024/25 From - Other reallocations]]","v":0},{"$f":"Dataset[[#This Row],[2025/26 From - Spending review Topic 1]]+Dataset[[#This Row],[2025/26 From - Spending review Topic 2]]+Dataset[[#This Row],[2025/26 From - Spending review Topic 3]]+Dataset[[#This Row],[2025/26 From - Spending review Topic 4]]+Dataset[[#This Row],[2025/26 From - Other reallocations]]","v":0},{"$f":"Dataset[[#This Row],[2026/27 From - Spending review Topic 1]]+Dataset[[#This Row],[2026/27 From - Spending review Topic 2]]+Dataset[[#This Row],[2026/27 From - Spending review Topic 3]]+Dataset[[#This Row],[2026/27 From - Spending review Topic 4]]+Dataset[[#This Row],[2026/27 From - Other reallocations]]","v":0},{"$f":"Dataset[[#This Row],[2024/25 To - Spending review Topic 1]]+Dataset[[#This Row],[2024/25 To - Spending review Topic 2]]+Dataset[[#This Row],[2024/25 To - Spending review Topic 3]]+Dataset[[#This Row],[2024/25 To - Spending review Topic 4]]+Dataset[[#This Row],[2024/25 To - Other reallocations]]","v":0},{"$f":"Dataset[[#This Row],[2025/26 To - Spending review Topic 1]]+Dataset[[#This Row],[2025/26 To - Spending review Topic 2]]+Dataset[[#This Row],[2025/26 To - Spending review Topic 3]]+Dataset[[#This Row],[2025/26 To - Spending review Topic 4]]+Dataset[[#This Row],[2025/26 To - Other reallocations]]","v":0},{"$f":"Dataset[[#This Row],[2026/27 To - Spending review Topic 1]]+Dataset[[#This Row],[2026/27 To - Spending review Topic 2]]+Dataset[[#This Row],[2026/27 To - Spending review Topic 3]]+Dataset[[#This Row],[2026/27 To - Spending review Topic 4]]+Dataset[[#This Row],[2026/27 To - Other reallocations]]","v":0},{"$f":"Dataset[[#This Row],[2024/25 Reduction]]+Dataset[[#This Row],[2024/25 From - Total]]","v":0},{"$f":"Dataset[[#This Row],[2025/26 Reduction]]+Dataset[[#This Row],[2025/26 From - Total]]","v":0},{"$f":"Dataset[[#This Row],[2026/27 Reduction]]+Dataset[[#This Row],[2026/27 From - Total]]","v":0},{"$f":"Dataset[[#This Row],[2023/24 Reduction]]","v":0},{"$f":"SUM(Dataset[[#This Row],[2024/25 Reduction]],Dataset[[#This Row],[2024/25 From - Total]],Dataset[[#This Row],[2024/25 To - Total]])","v":0},{"$f":"SUM(Dataset[[#This Row],[2025/26 Reduction]],Dataset[[#This Row],[2025/26 From - Total]],Dataset[[#This Row],[2025/26 To - Total]])","v":0},{"$f":"SUM(Dataset[[#This Row],[2026/27 Reduction]],Dataset[[#This Row],[2026/27 From - Total]],Dataset[[#This Row],[2026/27 To - Total]])","v":0},{"$f":"Dataset[[#This Row],[2023/24 Baseline]]+Dataset[[#This Row],[2023/24 Total change]]","v":0},{"$f":"Dataset[[#This Row],[2024/25 Baseline]]+Dataset[[#This Row],[2024/25 Total change]]","v":0},{"$f":"Dataset[[#This Row],[2025/26 Baseline]]+Dataset[[#This Row],[2025/26 Total change]]","v":0},{"$f":"Dataset[[#This Row],[2026/27 Baseline]]+Dataset[[#This Row],[2026/27 Total change]]","v":0}]
["NAT|Non-transfer item","26|Non-profit institutions","2024_25","MTEF2024",26,1,1,43942,55,"26","01","01","043942","000055","26|01|01","01","02","09","51","55","01|02|09|51|55","National","Military Veterans","Administration","Management","Non-transfer item","Current","Transfers and subsidies","Non-profit institutions","Non-profit institutions","Non-profit institutions","Peace and security","Defence and state security","NAT",0,0,0,0,0,0,0,0,0,0,0,null,null,null,null,null,null,null,null,null,null,null,null,null,null,null,null,null,null,null,null,null,null,null,null,null,null,null,null,null,null,null,null,null,null,{"$f":"Dataset[[#This Row],[2024/25 From - Spending review Topic 1]]+Dataset[[#This Row],[2024/25 From - Spending review Topic 2]]+Dataset[[#This Row],[2024/25 From - Spending review Topic 3]]+Dataset[[#This Row],[2024/25 From - Spending review Topic 4]]+Dataset[[#This Row],[2024/25 From - Other reallocations]]","v":0},{"$f":"Dataset[[#This Row],[2025/26 From - Spending review Topic 1]]+Dataset[[#This Row],[2025/26 From - Spending review Topic 2]]+Dataset[[#This Row],[2025/26 From - Spending review Topic 3]]+Dataset[[#This Row],[2025/26 From - Spending review Topic 4]]+Dataset[[#This Row],[2025/26 From - Other reallocations]]","v":0},{"$f":"Dataset[[#This Row],[2026/27 From - Spending review Topic 1]]+Dataset[[#This Row],[2026/27 From - Spending review Topic 2]]+Dataset[[#This Row],[2026/27 From - Spending review Topic 3]]+Dataset[[#This Row],[2026/27 From - Spending review Topic 4]]+Dataset[[#This Row],[2026/27 From - Other reallocations]]","v":0},{"$f":"Dataset[[#This Row],[2024/25 To - Spending review Topic 1]]+Dataset[[#This Row],[2024/25 To - Spending review Topic 2]]+Dataset[[#This Row],[2024/25 To - Spending review Topic 3]]+Dataset[[#This Row],[2024/25 To - Spending review Topic 4]]+Dataset[[#This Row],[2024/25 To - Other reallocations]]","v":0},{"$f":"Dataset[[#This Row],[2025/26 To - Spending review Topic 1]]+Dataset[[#This Row],[2025/26 To - Spending review Topic 2]]+Dataset[[#This Row],[2025/26 To - Spending review Topic 3]]+Dataset[[#This Row],[2025/26 To - Spending review Topic 4]]+Dataset[[#This Row],[2025/26 To - Other reallocations]]","v":0},{"$f":"Dataset[[#This Row],[2026/27 To - Spending review Topic 1]]+Dataset[[#This Row],[2026/27 To - Spending review Topic 2]]+Dataset[[#This Row],[2026/27 To - Spending review Topic 3]]+Dataset[[#This Row],[2026/27 To - Spending review Topic 4]]+Dataset[[#This Row],[2026/27 To - Other reallocations]]","v":0},{"$f":"Dataset[[#This Row],[2024/25 Reduction]]+Dataset[[#This Row],[2024/25 From - Total]]","v":0},{"$f":"Dataset[[#This Row],[2025/26 Reduction]]+Dataset[[#This Row],[2025/26 From - Total]]","v":0},{"$f":"Dataset[[#This Row],[2026/27 Reduction]]+Dataset[[#This Row],[2026/27 From - Total]]","v":0},{"$f":"Dataset[[#This Row],[2023/24 Reduction]]","v":0},{"$f":"SUM(Dataset[[#This Row],[2024/25 Reduction]],Dataset[[#This Row],[2024/25 From - Total]],Dataset[[#This Row],[2024/25 To - Total]])","v":0},{"$f":"SUM(Dataset[[#This Row],[2025/26 Reduction]],Dataset[[#This Row],[2025/26 From - Total]],Dataset[[#This Row],[2025/26 To - Total]])","v":0},{"$f":"SUM(Dataset[[#This Row],[2026/27 Reduction]],Dataset[[#This Row],[2026/27 From - Total]],Dataset[[#This Row],[2026/27 To - Total]])","v":0},{"$f":"Dataset[[#This Row],[2023/24 Baseline]]+Dataset[[#This Row],[2023/24 Total change]]","v":0},{"$f":"Dataset[[#This Row],[2024/25 Baseline]]+Dataset[[#This Row],[2024/25 Total change]]","v":0},{"$f":"Dataset[[#This Row],[2025/26 Baseline]]+Dataset[[#This Row],[2025/26 Total change]]","v":0},{"$f":"Dataset[[#This Row],[2026/27 Baseline]]+Dataset[[#This Row],[2026/27 Total change]]","v":0}]
["NAT|Household","26|Social benefits","2024_25","MTEF2024",26,1,1,43943,56,"26","01","01","043943","000056","26|01|01","01","02","10","52","56","01|02|10|52|56","National","Military Veterans","Administration","Management","Household","Current","Transfers and subsidies","Households","Social benefits","Social benefits","Peace and security","Defence and state security","NAT",46,141,58,0,0,0,0,0,0,0,0,null,null,null,null,null,null,null,null,null,null,null,null,null,null,null,null,null,null,null,null,null,null,null,null,null,null,null,null,null,null,null,null,null,null,{"$f":"Dataset[[#This Row],[2024/25 From - Spending review Topic 1]]+Dataset[[#This Row],[2024/25 From - Spending review Topic 2]]+Dataset[[#This Row],[2024/25 From - Spending review Topic 3]]+Dataset[[#This Row],[2024/25 From - Spending review Topic 4]]+Dataset[[#This Row],[2024/25 From - Other reallocations]]","v":0},{"$f":"Dataset[[#This Row],[2025/26 From - Spending review Topic 1]]+Dataset[[#This Row],[2025/26 From - Spending review Topic 2]]+Dataset[[#This Row],[2025/26 From - Spending review Topic 3]]+Dataset[[#This Row],[2025/26 From - Spending review Topic 4]]+Dataset[[#This Row],[2025/26 From - Other reallocations]]","v":0},{"$f":"Dataset[[#This Row],[2026/27 From - Spending review Topic 1]]+Dataset[[#This Row],[2026/27 From - Spending review Topic 2]]+Dataset[[#This Row],[2026/27 From - Spending review Topic 3]]+Dataset[[#This Row],[2026/27 From - Spending review Topic 4]]+Dataset[[#This Row],[2026/27 From - Other reallocations]]","v":0},{"$f":"Dataset[[#This Row],[2024/25 To - Spending review Topic 1]]+Dataset[[#This Row],[2024/25 To - Spending review Topic 2]]+Dataset[[#This Row],[2024/25 To - Spending review Topic 3]]+Dataset[[#This Row],[2024/25 To - Spending review Topic 4]]+Dataset[[#This Row],[2024/25 To - Other reallocations]]","v":0},{"$f":"Dataset[[#This Row],[2025/26 To - Spending review Topic 1]]+Dataset[[#This Row],[2025/26 To - Spending review Topic 2]]+Dataset[[#This Row],[2025/26 To - Spending review Topic 3]]+Dataset[[#This Row],[2025/26 To - Spending review Topic 4]]+Dataset[[#This Row],[2025/26 To - Other reallocations]]","v":0},{"$f":"Dataset[[#This Row],[2026/27 To - Spending review Topic 1]]+Dataset[[#This Row],[2026/27 To - Spending review Topic 2]]+Dataset[[#This Row],[2026/27 To - Spending review Topic 3]]+Dataset[[#This Row],[2026/27 To - Spending review Topic 4]]+Dataset[[#This Row],[2026/27 To - Other reallocations]]","v":0},{"$f":"Dataset[[#This Row],[2024/25 Reduction]]+Dataset[[#This Row],[2024/25 From - Total]]","v":0},{"$f":"Dataset[[#This Row],[2025/26 Reduction]]+Dataset[[#This Row],[2025/26 From - Total]]","v":0},{"$f":"Dataset[[#This Row],[2026/27 Reduction]]+Dataset[[#This Row],[2026/27 From - Total]]","v":0},{"$f":"Dataset[[#This Row],[2023/24 Reduction]]","v":0},{"$f":"SUM(Dataset[[#This Row],[2024/25 Reduction]],Dataset[[#This Row],[2024/25 From - Total]],Dataset[[#This Row],[2024/25 To - Total]])","v":0},{"$f":"SUM(Dataset[[#This Row],[2025/26 Reduction]],Dataset[[#This Row],[2025/26 From - Total]],Dataset[[#This Row],[2025/26 To - Total]])","v":0},{"$f":"SUM(Dataset[[#This Row],[2026/27 Reduction]],Dataset[[#This Row],[2026/27 From - Total]],Dataset[[#This Row],[2026/27 To - Total]])","v":0},{"$f":"Dataset[[#This Row],[2023/24 Baseline]]+Dataset[[#This Row],[2023/24 Total change]]","v":0},{"$f":"Dataset[[#This Row],[2024/25 Baseline]]+Dataset[[#This Row],[2024/25 Total change]]","v":0},{"$f":"Dataset[[#This Row],[2025/26 Baseline]]+Dataset[[#This Row],[2025/26 Total change]]","v":0},{"$f":"Dataset[[#This Row],[2026/27 Baseline]]+Dataset[[#This Row],[2026/27 Total change]]","v":0}]
["NAT|Household","26|Other transfers to households","2024_25","MTEF2024",26,1,1,43944,57,"26","01","01","043944","000057","26|01|01","01","02","10","53","57","01|02|10|53|57","National","Military Veterans","Administration","Management","Household","Current","Transfers and subsidies","Households","Other transfers to households","Other transfers to households","Peace and security","Defence and state security","NAT",280,3493,0,0,0,0,0,0,0,0,0,null,null,null,null,null,null,null,null,null,null,null,null,null,null,null,null,null,null,null,null,null,null,null,null,null,null,null,null,null,null,null,null,null,null,{"$f":"Dataset[[#This Row],[2024/25 From - Spending review Topic 1]]+Dataset[[#This Row],[2024/25 From - Spending review Topic 2]]+Dataset[[#This Row],[2024/25 From - Spending review Topic 3]]+Dataset[[#This Row],[2024/25 From - Spending review Topic 4]]+Dataset[[#This Row],[2024/25 From - Other reallocations]]","v":0},{"$f":"Dataset[[#This Row],[2025/26 From - Spending review Topic 1]]+Dataset[[#This Row],[2025/26 From - Spending review Topic 2]]+Dataset[[#This Row],[2025/26 From - Spending review Topic 3]]+Dataset[[#This Row],[2025/26 From - Spending review Topic 4]]+Dataset[[#This Row],[2025/26 From - Other reallocations]]","v":0},{"$f":"Dataset[[#This Row],[2026/27 From - Spending review Topic 1]]+Dataset[[#This Row],[2026/27 From - Spending review Topic 2]]+Dataset[[#This Row],[2026/27 From - Spending review Topic 3]]+Dataset[[#This Row],[2026/27 From - Spending review Topic 4]]+Dataset[[#This Row],[2026/27 From - Other reallocations]]","v":0},{"$f":"Dataset[[#This Row],[2024/25 To - Spending review Topic 1]]+Dataset[[#This Row],[2024/25 To - Spending review Topic 2]]+Dataset[[#This Row],[2024/25 To - Spending review Topic 3]]+Dataset[[#This Row],[2024/25 To - Spending review Topic 4]]+Dataset[[#This Row],[2024/25 To - Other reallocations]]","v":0},{"$f":"Dataset[[#This Row],[2025/26 To - Spending review Topic 1]]+Dataset[[#This Row],[2025/26 To - Spending review Topic 2]]+Dataset[[#This Row],[2025/26 To - Spending review Topic 3]]+Dataset[[#This Row],[2025/26 To - Spending review Topic 4]]+Dataset[[#This Row],[2025/26 To - Other reallocations]]","v":0},{"$f":"Dataset[[#This Row],[2026/27 To - Spending review Topic 1]]+Dataset[[#This Row],[2026/27 To - Spending review Topic 2]]+Dataset[[#This Row],[2026/27 To - Spending review Topic 3]]+Dataset[[#This Row],[2026/27 To - Spending review Topic 4]]+Dataset[[#This Row],[2026/27 To - Other reallocations]]","v":0},{"$f":"Dataset[[#This Row],[2024/25 Reduction]]+Dataset[[#This Row],[2024/25 From - Total]]","v":0},{"$f":"Dataset[[#This Row],[2025/26 Reduction]]+Dataset[[#This Row],[2025/26 From - Total]]","v":0},{"$f":"Dataset[[#This Row],[2026/27 Reduction]]+Dataset[[#This Row],[2026/27 From - Total]]","v":0},{"$f":"Dataset[[#This Row],[2023/24 Reduction]]","v":0},{"$f":"SUM(Dataset[[#This Row],[2024/25 Reduction]],Dataset[[#This Row],[2024/25 From - Total]],Dataset[[#This Row],[2024/25 To - Total]])","v":0},{"$f":"SUM(Dataset[[#This Row],[2025/26 Reduction]],Dataset[[#This Row],[2025/26 From - Total]],Dataset[[#This Row],[2025/26 To - Total]])","v":0},{"$f":"SUM(Dataset[[#This Row],[2026/27 Reduction]],Dataset[[#This Row],[2026/27 From - Total]],Dataset[[#This Row],[2026/27 To - Total]])","v":0},{"$f":"Dataset[[#This Row],[2023/24 Baseline]]+Dataset[[#This Row],[2023/24 Total change]]","v":0},{"$f":"Dataset[[#This Row],[2024/25 Baseline]]+Dataset[[#This Row],[2024/25 Total change]]","v":0},{"$f":"Dataset[[#This Row],[2025/26 Baseline]]+Dataset[[#This Row],[2025/26 Total change]]","v":0},{"$f":"Dataset[[#This Row],[2026/27 Baseline]]+Dataset[[#This Row],[2026/27 Total change]]","v":0}]
["NAT|Non-transfer item","26|Provincial Revenue Funds","2024_25","MTEF2024",26,1,1,43945,58,"26","01","01","043945","000058","26|01|01","02","02","04","43","43","02|02|04|43|43","National","Military Veterans","Administration","Management","Non-transfer item","Capital","Transfers and subsidies","Provinces and municipalities","Provinces","Provincial Revenue Funds","Peace and security","Defence and state security","NAT",0,0,0,0,0,0,0,0,0,0,0,null,null,null,null,null,null,null,null,null,null,null,null,null,null,null,null,null,null,null,null,null,null,null,null,null,null,null,null,null,null,null,null,null,null,{"$f":"Dataset[[#This Row],[2024/25 From - Spending review Topic 1]]+Dataset[[#This Row],[2024/25 From - Spending review Topic 2]]+Dataset[[#This Row],[2024/25 From - Spending review Topic 3]]+Dataset[[#This Row],[2024/25 From - Spending review Topic 4]]+Dataset[[#This Row],[2024/25 From - Other reallocations]]","v":0},{"$f":"Dataset[[#This Row],[2025/26 From - Spending review Topic 1]]+Dataset[[#This Row],[2025/26 From - Spending review Topic 2]]+Dataset[[#This Row],[2025/26 From - Spending review Topic 3]]+Dataset[[#This Row],[2025/26 From - Spending review Topic 4]]+Dataset[[#This Row],[2025/26 From - Other reallocations]]","v":0},{"$f":"Dataset[[#This Row],[2026/27 From - Spending review Topic 1]]+Dataset[[#This Row],[2026/27 From - Spending review Topic 2]]+Dataset[[#This Row],[2026/27 From - Spending review Topic 3]]+Dataset[[#This Row],[2026/27 From - Spending review Topic 4]]+Dataset[[#This Row],[2026/27 From - Other reallocations]]","v":0},{"$f":"Dataset[[#This Row],[2024/25 To - Spending review Topic 1]]+Dataset[[#This Row],[2024/25 To - Spending review Topic 2]]+Dataset[[#This Row],[2024/25 To - Spending review Topic 3]]+Dataset[[#This Row],[2024/25 To - Spending review Topic 4]]+Dataset[[#This Row],[2024/25 To - Other reallocations]]","v":0},{"$f":"Dataset[[#This Row],[2025/26 To - Spending review Topic 1]]+Dataset[[#This Row],[2025/26 To - Spending review Topic 2]]+Dataset[[#This Row],[2025/26 To - Spending review Topic 3]]+Dataset[[#This Row],[2025/26 To - Spending review Topic 4]]+Dataset[[#This Row],[2025/26 To - Other reallocations]]","v":0},{"$f":"Dataset[[#This Row],[2026/27 To - Spending review Topic 1]]+Dataset[[#This Row],[2026/27 To - Spending review Topic 2]]+Dataset[[#This Row],[2026/27 To - Spending review Topic 3]]+Dataset[[#This Row],[2026/27 To - Spending review Topic 4]]+Dataset[[#This Row],[2026/27 To - Other reallocations]]","v":0},{"$f":"Dataset[[#This Row],[2024/25 Reduction]]+Dataset[[#This Row],[2024/25 From - Total]]","v":0},{"$f":"Dataset[[#This Row],[2025/26 Reduction]]+Dataset[[#This Row],[2025/26 From - Total]]","v":0},{"$f":"Dataset[[#This Row],[2026/27 Reduction]]+Dataset[[#This Row],[2026/27 From - Total]]","v":0},{"$f":"Dataset[[#This Row],[2023/24 Reduction]]","v":0},{"$f":"SUM(Dataset[[#This Row],[2024/25 Reduction]],Dataset[[#This Row],[2024/25 From - Total]],Dataset[[#This Row],[2024/25 To - Total]])","v":0},{"$f":"SUM(Dataset[[#This Row],[2025/26 Reduction]],Dataset[[#This Row],[2025/26 From - Total]],Dataset[[#This Row],[2025/26 To - Total]])","v":0},{"$f":"SUM(Dataset[[#This Row],[2026/27 Reduction]],Dataset[[#This Row],[2026/27 From - Total]],Dataset[[#This Row],[2026/27 To - Total]])","v":0},{"$f":"Dataset[[#This Row],[2023/24 Baseline]]+Dataset[[#This Row],[2023/24 Total change]]","v":0},{"$f":"Dataset[[#This Row],[2024/25 Baseline]]+Dataset[[#This Row],[2024/25 Total change]]","v":0},{"$f":"Dataset[[#This Row],[2025/26 Baseline]]+Dataset[[#This Row],[2025/26 Total change]]","v":0},{"$f":"Dataset[[#This Row],[2026/27 Baseline]]+Dataset[[#This Row],[2026/27 Total change]]","v":0}]
["NAT|Non-transfer item","26|Municipal bank accounts","2024_25","MTEF2024",26,1,1,43946,59,"26","01","01","043946","000059","26|01|01","02","02","04","44","45","02|02|04|44|45","National","Military Veterans","Administration","Management","Non-transfer item","Capital","Transfers and subsidies","Provinces and municipalities","Municipalities","Municipal bank accounts","Peace and security","Defence and state security","NAT",0,0,0,0,0,0,0,0,0,0,0,null,null,null,null,null,null,null,null,null,null,null,null,null,null,null,null,null,null,null,null,null,null,null,null,null,null,null,null,null,null,null,null,null,null,{"$f":"Dataset[[#This Row],[2024/25 From - Spending review Topic 1]]+Dataset[[#This Row],[2024/25 From - Spending review Topic 2]]+Dataset[[#This Row],[2024/25 From - Spending review Topic 3]]+Dataset[[#This Row],[2024/25 From - Spending review Topic 4]]+Dataset[[#This Row],[2024/25 From - Other reallocations]]","v":0},{"$f":"Dataset[[#This Row],[2025/26 From - Spending review Topic 1]]+Dataset[[#This Row],[2025/26 From - Spending review Topic 2]]+Dataset[[#This Row],[2025/26 From - Spending review Topic 3]]+Dataset[[#This Row],[2025/26 From - Spending review Topic 4]]+Dataset[[#This Row],[2025/26 From - Other reallocations]]","v":0},{"$f":"Dataset[[#This Row],[2026/27 From - Spending review Topic 1]]+Dataset[[#This Row],[2026/27 From - Spending review Topic 2]]+Dataset[[#This Row],[2026/27 From - Spending review Topic 3]]+Dataset[[#This Row],[2026/27 From - Spending review Topic 4]]+Dataset[[#This Row],[2026/27 From - Other reallocations]]","v":0},{"$f":"Dataset[[#This Row],[2024/25 To - Spending review Topic 1]]+Dataset[[#This Row],[2024/25 To - Spending review Topic 2]]+Dataset[[#This Row],[2024/25 To - Spending review Topic 3]]+Dataset[[#This Row],[2024/25 To - Spending review Topic 4]]+Dataset[[#This Row],[2024/25 To - Other reallocations]]","v":0},{"$f":"Dataset[[#This Row],[2025/26 To - Spending review Topic 1]]+Dataset[[#This Row],[2025/26 To - Spending review Topic 2]]+Dataset[[#This Row],[2025/26 To - Spending review Topic 3]]+Dataset[[#This Row],[2025/26 To - Spending review Topic 4]]+Dataset[[#This Row],[2025/26 To - Other reallocations]]","v":0},{"$f":"Dataset[[#This Row],[2026/27 To - Spending review Topic 1]]+Dataset[[#This Row],[2026/27 To - Spending review Topic 2]]+Dataset[[#This Row],[2026/27 To - Spending review Topic 3]]+Dataset[[#This Row],[2026/27 To - Spending review Topic 4]]+Dataset[[#This Row],[2026/27 To - Other reallocations]]","v":0},{"$f":"Dataset[[#This Row],[2024/25 Reduction]]+Dataset[[#This Row],[2024/25 From - Total]]","v":0},{"$f":"Dataset[[#This Row],[2025/26 Reduction]]+Dataset[[#This Row],[2025/26 From - Total]]","v":0},{"$f":"Dataset[[#This Row],[2026/27 Reduction]]+Dataset[[#This Row],[2026/27 From - Total]]","v":0},{"$f":"Dataset[[#This Row],[2023/24 Reduction]]","v":0},{"$f":"SUM(Dataset[[#This Row],[2024/25 Reduction]],Dataset[[#This Row],[2024/25 From - Total]],Dataset[[#This Row],[2024/25 To - Total]])","v":0},{"$f":"SUM(Dataset[[#This Row],[2025/26 Reduction]],Dataset[[#This Row],[2025/26 From - Total]],Dataset[[#This Row],[2025/26 To - Total]])","v":0},{"$f":"SUM(Dataset[[#This Row],[2026/27 Reduction]],Dataset[[#This Row],[2026/27 From - Total]],Dataset[[#This Row],[2026/27 To - Total]])","v":0},{"$f":"Dataset[[#This Row],[2023/24 Baseline]]+Dataset[[#This Row],[2023/24 Total change]]","v":0},{"$f":"Dataset[[#This Row],[2024/25 Baseline]]+Dataset[[#This Row],[2024/25 Total change]]","v":0},{"$f":"Dataset[[#This Row],[2025/26 Baseline]]+Dataset[[#This Row],[2025/26 Total change]]","v":0},{"$f":"Dataset[[#This Row],[2026/27 Baseline]]+Dataset[[#This Row],[2026/27 Total change]]","v":0}]
["NAT|Non-transfer item","26|Departmental agencies (non-business entities)","2024_25","MTEF2024",26,1,1,43947,60,"26","01","01","043947","000060","26|01|01","02","02","05","46","48","02|02|05|46|48","National","Military Veterans","Administration","Management","Non-transfer item","Capital","Transfers and subsidies","Departmental agencies and accounts","Departmental agencies (non-business entities)","Departmental agencies (non-business entities)","Peace and security","Defence and state security","NAT",0,0,0,0,0,0,0,0,0,0,0,null,null,null,null,null,null,null,null,null,null,null,null,null,null,null,null,null,null,null,null,null,null,null,null,null,null,null,null,null,null,null,null,null,null,{"$f":"Dataset[[#This Row],[2024/25 From - Spending review Topic 1]]+Dataset[[#This Row],[2024/25 From - Spending review Topic 2]]+Dataset[[#This Row],[2024/25 From - Spending review Topic 3]]+Dataset[[#This Row],[2024/25 From - Spending review Topic 4]]+Dataset[[#This Row],[2024/25 From - Other reallocations]]","v":0},{"$f":"Dataset[[#This Row],[2025/26 From - Spending review Topic 1]]+Dataset[[#This Row],[2025/26 From - Spending review Topic 2]]+Dataset[[#This Row],[2025/26 From - Spending review Topic 3]]+Dataset[[#This Row],[2025/26 From - Spending review Topic 4]]+Dataset[[#This Row],[2025/26 From - Other reallocations]]","v":0},{"$f":"Dataset[[#This Row],[2026/27 From - Spending review Topic 1]]+Dataset[[#This Row],[2026/27 From - Spending review Topic 2]]+Dataset[[#This Row],[2026/27 From - Spending review Topic 3]]+Dataset[[#This Row],[2026/27 From - Spending review Topic 4]]+Dataset[[#This Row],[2026/27 From - Other reallocations]]","v":0},{"$f":"Dataset[[#This Row],[2024/25 To - Spending review Topic 1]]+Dataset[[#This Row],[2024/25 To - Spending review Topic 2]]+Dataset[[#This Row],[2024/25 To - Spending review Topic 3]]+Dataset[[#This Row],[2024/25 To - Spending review Topic 4]]+Dataset[[#This Row],[2024/25 To - Other reallocations]]","v":0},{"$f":"Dataset[[#This Row],[2025/26 To - Spending review Topic 1]]+Dataset[[#This Row],[2025/26 To - Spending review Topic 2]]+Dataset[[#This Row],[2025/26 To - Spending review Topic 3]]+Dataset[[#This Row],[2025/26 To - Spending review Topic 4]]+Dataset[[#This Row],[2025/26 To - Other reallocations]]","v":0},{"$f":"Dataset[[#This Row],[2026/27 To - Spending review Topic 1]]+Dataset[[#This Row],[2026/27 To - Spending review Topic 2]]+Dataset[[#This Row],[2026/27 To - Spending review Topic 3]]+Dataset[[#This Row],[2026/27 To - Spending review Topic 4]]+Dataset[[#This Row],[2026/27 To - Other reallocations]]","v":0},{"$f":"Dataset[[#This Row],[2024/25 Reduction]]+Dataset[[#This Row],[2024/25 From - Total]]","v":0},{"$f":"Dataset[[#This Row],[2025/26 Reduction]]+Dataset[[#This Row],[2025/26 From - Total]]","v":0},{"$f":"Dataset[[#This Row],[2026/27 Reduction]]+Dataset[[#This Row],[2026/27 From - Total]]","v":0},{"$f":"Dataset[[#This Row],[2023/24 Reduction]]","v":0},{"$f":"SUM(Dataset[[#This Row],[2024/25 Reduction]],Dataset[[#This Row],[2024/25 From - Total]],Dataset[[#This Row],[2024/25 To - Total]])","v":0},{"$f":"SUM(Dataset[[#This Row],[2025/26 Reduction]],Dataset[[#This Row],[2025/26 From - Total]],Dataset[[#This Row],[2025/26 To - Total]])","v":0},{"$f":"SUM(Dataset[[#This Row],[2026/27 Reduction]],Dataset[[#This Row],[2026/27 From - Total]],Dataset[[#This Row],[2026/27 To - Total]])","v":0},{"$f":"Dataset[[#This Row],[2023/24 Baseline]]+Dataset[[#This Row],[2023/24 Total change]]","v":0},{"$f":"Dataset[[#This Row],[2024/25 Baseline]]+Dataset[[#This Row],[2024/25 Total change]]","v":0},{"$f":"Dataset[[#This Row],[2025/26 Baseline]]+Dataset[[#This Row],[2025/26 Total change]]","v":0},{"$f":"Dataset[[#This Row],[2026/27 Baseline]]+Dataset[[#This Row],[2026/27 Total change]]","v":0}]
["NAT|Non-transfer item","26|Higher education institutions","2024_25","MTEF2024",26,1,1,43948,61,"26","01","01","043948","000061","26|01|01","02","02","06","47","49","02|02|06|47|49","National","Military Veterans","Administration","Management","Non-transfer item","Capital","Transfers and subsidies","Higher education institutions","Higher education institutions","Higher education institutions","Peace and security","Defence and state security","NAT",0,0,0,0,0,0,0,0,0,0,0,null,null,null,null,null,null,null,null,null,null,null,null,null,null,null,null,null,null,null,null,null,null,null,null,null,null,null,null,null,null,null,null,null,null,{"$f":"Dataset[[#This Row],[2024/25 From - Spending review Topic 1]]+Dataset[[#This Row],[2024/25 From - Spending review Topic 2]]+Dataset[[#This Row],[2024/25 From - Spending review Topic 3]]+Dataset[[#This Row],[2024/25 From - Spending review Topic 4]]+Dataset[[#This Row],[2024/25 From - Other reallocations]]","v":0},{"$f":"Dataset[[#This Row],[2025/26 From - Spending review Topic 1]]+Dataset[[#This Row],[2025/26 From - Spending review Topic 2]]+Dataset[[#This Row],[2025/26 From - Spending review Topic 3]]+Dataset[[#This Row],[2025/26 From - Spending review Topic 4]]+Dataset[[#This Row],[2025/26 From - Other reallocations]]","v":0},{"$f":"Dataset[[#This Row],[2026/27 From - Spending review Topic 1]]+Dataset[[#This Row],[2026/27 From - Spending review Topic 2]]+Dataset[[#This Row],[2026/27 From - Spending review Topic 3]]+Dataset[[#This Row],[2026/27 From - Spending review Topic 4]]+Dataset[[#This Row],[2026/27 From - Other reallocations]]","v":0},{"$f":"Dataset[[#This Row],[2024/25 To - Spending review Topic 1]]+Dataset[[#This Row],[2024/25 To - Spending review Topic 2]]+Dataset[[#This Row],[2024/25 To - Spending review Topic 3]]+Dataset[[#This Row],[2024/25 To - Spending review Topic 4]]+Dataset[[#This Row],[2024/25 To - Other reallocations]]","v":0},{"$f":"Dataset[[#This Row],[2025/26 To - Spending review Topic 1]]+Dataset[[#This Row],[2025/26 To - Spending review Topic 2]]+Dataset[[#This Row],[2025/26 To - Spending review Topic 3]]+Dataset[[#This Row],[2025/26 To - Spending review Topic 4]]+Dataset[[#This Row],[2025/26 To - Other reallocations]]","v":0},{"$f":"Dataset[[#This Row],[2026/27 To - Spending review Topic 1]]+Dataset[[#This Row],[2026/27 To - Spending review Topic 2]]+Dataset[[#This Row],[2026/27 To - Spending review Topic 3]]+Dataset[[#This Row],[2026/27 To - Spending review Topic 4]]+Dataset[[#This Row],[2026/27 To - Other reallocations]]","v":0},{"$f":"Dataset[[#This Row],[2024/25 Reduction]]+Dataset[[#This Row],[2024/25 From - Total]]","v":0},{"$f":"Dataset[[#This Row],[2025/26 Reduction]]+Dataset[[#This Row],[2025/26 From - Total]]","v":0},{"$f":"Dataset[[#This Row],[2026/27 Reduction]]+Dataset[[#This Row],[2026/27 From - Total]]","v":0},{"$f":"Dataset[[#This Row],[2023/24 Reduction]]","v":0},{"$f":"SUM(Dataset[[#This Row],[2024/25 Reduction]],Dataset[[#This Row],[2024/25 From - Total]],Dataset[[#This Row],[2024/25 To - Total]])","v":0},{"$f":"SUM(Dataset[[#This Row],[2025/26 Reduction]],Dataset[[#This Row],[2025/26 From - Total]],Dataset[[#This Row],[2025/26 To - Total]])","v":0},{"$f":"SUM(Dataset[[#This Row],[2026/27 Reduction]],Dataset[[#This Row],[2026/27 From - Total]],Dataset[[#This Row],[2026/27 To - Total]])","v":0},{"$f":"Dataset[[#This Row],[2023/24 Baseline]]+Dataset[[#This Row],[2023/24 Total change]]","v":0},{"$f":"Dataset[[#This Row],[2024/25 Baseline]]+Dataset[[#This Row],[2024/25 Total change]]","v":0},{"$f":"Dataset[[#This Row],[2025/26 Baseline]]+Dataset[[#This Row],[2025/26 Total change]]","v":0},{"$f":"Dataset[[#This Row],[2026/27 Baseline]]+Dataset[[#This Row],[2026/27 Total change]]","v":0}]
["NAT|Non-transfer item","26|Foreign governments and international organisations","2024_25","MTEF2024",26,1,1,43949,62,"26","01","01","043949","000062","26|01|01","02","02","07","48","50","02|02|07|48|50","National","Military Veterans","Administration","Management","Non-transfer item","Capital","Transfers and subsidies","Foreign governments and international organisations","Foreign governments and international organisations","Foreign governments and international organisations","Peace and security","Defence and state security","NAT",0,0,0,0,0,0,0,0,0,0,0,null,null,null,null,null,null,null,null,null,null,null,null,null,null,null,null,null,null,null,null,null,null,null,null,null,null,null,null,null,null,null,null,null,null,{"$f":"Dataset[[#This Row],[2024/25 From - Spending review Topic 1]]+Dataset[[#This Row],[2024/25 From - Spending review Topic 2]]+Dataset[[#This Row],[2024/25 From - Spending review Topic 3]]+Dataset[[#This Row],[2024/25 From - Spending review Topic 4]]+Dataset[[#This Row],[2024/25 From - Other reallocations]]","v":0},{"$f":"Dataset[[#This Row],[2025/26 From - Spending review Topic 1]]+Dataset[[#This Row],[2025/26 From - Spending review Topic 2]]+Dataset[[#This Row],[2025/26 From - Spending review Topic 3]]+Dataset[[#This Row],[2025/26 From - Spending review Topic 4]]+Dataset[[#This Row],[2025/26 From - Other reallocations]]","v":0},{"$f":"Dataset[[#This Row],[2026/27 From - Spending review Topic 1]]+Dataset[[#This Row],[2026/27 From - Spending review Topic 2]]+Dataset[[#This Row],[2026/27 From - Spending review Topic 3]]+Dataset[[#This Row],[2026/27 From - Spending review Topic 4]]+Dataset[[#This Row],[2026/27 From - Other reallocations]]","v":0},{"$f":"Dataset[[#This Row],[2024/25 To - Spending review Topic 1]]+Dataset[[#This Row],[2024/25 To - Spending review Topic 2]]+Dataset[[#This Row],[2024/25 To - Spending review Topic 3]]+Dataset[[#This Row],[2024/25 To - Spending review Topic 4]]+Dataset[[#This Row],[2024/25 To - Other reallocations]]","v":0},{"$f":"Dataset[[#This Row],[2025/26 To - Spending review Topic 1]]+Dataset[[#This Row],[2025/26 To - Spending review Topic 2]]+Dataset[[#This Row],[2025/26 To - Spending review Topic 3]]+Dataset[[#This Row],[2025/26 To - Spending review Topic 4]]+Dataset[[#This Row],[2025/26 To - Other reallocations]]","v":0},{"$f":"Dataset[[#This Row],[2026/27 To - Spending review Topic 1]]+Dataset[[#This Row],[2026/27 To - Spending review Topic 2]]+Dataset[[#This Row],[2026/27 To - Spending review Topic 3]]+Dataset[[#This Row],[2026/27 To - Spending review Topic 4]]+Dataset[[#This Row],[2026/27 To - Other reallocations]]","v":0},{"$f":"Dataset[[#This Row],[2024/25 Reduction]]+Dataset[[#This Row],[2024/25 From - Total]]","v":0},{"$f":"Dataset[[#This Row],[2025/26 Reduction]]+Dataset[[#This Row],[2025/26 From - Total]]","v":0},{"$f":"Dataset[[#This Row],[2026/27 Reduction]]+Dataset[[#This Row],[2026/27 From - Total]]","v":0},{"$f":"Dataset[[#This Row],[2023/24 Reduction]]","v":0},{"$f":"SUM(Dataset[[#This Row],[2024/25 Reduction]],Dataset[[#This Row],[2024/25 From - Total]],Dataset[[#This Row],[2024/25 To - Total]])","v":0},{"$f":"SUM(Dataset[[#This Row],[2025/26 Reduction]],Dataset[[#This Row],[2025/26 From - Total]],Dataset[[#This Row],[2025/26 To - Total]])","v":0},{"$f":"SUM(Dataset[[#This Row],[2026/27 Reduction]],Dataset[[#This Row],[2026/27 From - Total]],Dataset[[#This Row],[2026/27 To - Total]])","v":0},{"$f":"Dataset[[#This Row],[2023/24 Baseline]]+Dataset[[#This Row],[2023/24 Total change]]","v":0},{"$f":"Dataset[[#This Row],[2024/25 Baseline]]+Dataset[[#This Row],[2024/25 Total change]]","v":0},{"$f":"Dataset[[#This Row],[2025/26 Baseline]]+Dataset[[#This Row],[2025/26 Total change]]","v":0},{"$f":"Dataset[[#This Row],[2026/27 Baseline]]+Dataset[[#This Row],[2026/27 Total change]]","v":0}]
["NAT|Non-transfer item","26|Subsidies on products and production (pc)","2024_25","MTEF2024",26,1,1,43950,63,"26","01","01","043950","000063","26|01|01","02","02","08","49","51","02|02|08|49|51","National","Military Veterans","Administration","Management","Non-transfer item","Capital","Transfers and subsidies","Public corporations and private enterprises","Public corporations","Subsidies on products and production (pc)","Peace and security","Defence and state security","NAT",0,0,0,0,0,0,0,0,0,0,0,null,null,null,null,null,null,null,null,null,null,null,null,null,null,null,null,null,null,null,null,null,null,null,null,null,null,null,null,null,null,null,null,null,null,{"$f":"Dataset[[#This Row],[2024/25 From - Spending review Topic 1]]+Dataset[[#This Row],[2024/25 From - Spending review Topic 2]]+Dataset[[#This Row],[2024/25 From - Spending review Topic 3]]+Dataset[[#This Row],[2024/25 From - Spending review Topic 4]]+Dataset[[#This Row],[2024/25 From - Other reallocations]]","v":0},{"$f":"Dataset[[#This Row],[2025/26 From - Spending review Topic 1]]+Dataset[[#This Row],[2025/26 From - Spending review Topic 2]]+Dataset[[#This Row],[2025/26 From - Spending review Topic 3]]+Dataset[[#This Row],[2025/26 From - Spending review Topic 4]]+Dataset[[#This Row],[2025/26 From - Other reallocations]]","v":0},{"$f":"Dataset[[#This Row],[2026/27 From - Spending review Topic 1]]+Dataset[[#This Row],[2026/27 From - Spending review Topic 2]]+Dataset[[#This Row],[2026/27 From - Spending review Topic 3]]+Dataset[[#This Row],[2026/27 From - Spending review Topic 4]]+Dataset[[#This Row],[2026/27 From - Other reallocations]]","v":0},{"$f":"Dataset[[#This Row],[2024/25 To - Spending review Topic 1]]+Dataset[[#This Row],[2024/25 To - Spending review Topic 2]]+Dataset[[#This Row],[2024/25 To - Spending review Topic 3]]+Dataset[[#This Row],[2024/25 To - Spending review Topic 4]]+Dataset[[#This Row],[2024/25 To - Other reallocations]]","v":0},{"$f":"Dataset[[#This Row],[2025/26 To - Spending review Topic 1]]+Dataset[[#This Row],[2025/26 To - Spending review Topic 2]]+Dataset[[#This Row],[2025/26 To - Spending review Topic 3]]+Dataset[[#This Row],[2025/26 To - Spending review Topic 4]]+Dataset[[#This Row],[2025/26 To - Other reallocations]]","v":0},{"$f":"Dataset[[#This Row],[2026/27 To - Spending review Topic 1]]+Dataset[[#This Row],[2026/27 To - Spending review Topic 2]]+Dataset[[#This Row],[2026/27 To - Spending review Topic 3]]+Dataset[[#This Row],[2026/27 To - Spending review Topic 4]]+Dataset[[#This Row],[2026/27 To - Other reallocations]]","v":0},{"$f":"Dataset[[#This Row],[2024/25 Reduction]]+Dataset[[#This Row],[2024/25 From - Total]]","v":0},{"$f":"Dataset[[#This Row],[2025/26 Reduction]]+Dataset[[#This Row],[2025/26 From - Total]]","v":0},{"$f":"Dataset[[#This Row],[2026/27 Reduction]]+Dataset[[#This Row],[2026/27 From - Total]]","v":0},{"$f":"Dataset[[#This Row],[2023/24 Reduction]]","v":0},{"$f":"SUM(Dataset[[#This Row],[2024/25 Reduction]],Dataset[[#This Row],[2024/25 From - Total]],Dataset[[#This Row],[2024/25 To - Total]])","v":0},{"$f":"SUM(Dataset[[#This Row],[2025/26 Reduction]],Dataset[[#This Row],[2025/26 From - Total]],Dataset[[#This Row],[2025/26 To - Total]])","v":0},{"$f":"SUM(Dataset[[#This Row],[2026/27 Reduction]],Dataset[[#This Row],[2026/27 From - Total]],Dataset[[#This Row],[2026/27 To - Total]])","v":0},{"$f":"Dataset[[#This Row],[2023/24 Baseline]]+Dataset[[#This Row],[2023/24 Total change]]","v":0},{"$f":"Dataset[[#This Row],[2024/25 Baseline]]+Dataset[[#This Row],[2024/25 Total change]]","v":0},{"$f":"Dataset[[#This Row],[2025/26 Baseline]]+Dataset[[#This Row],[2025/26 Total change]]","v":0},{"$f":"Dataset[[#This Row],[2026/27 Baseline]]+Dataset[[#This Row],[2026/27 Total change]]","v":0}]
["NAT|Non-transfer item","26|Other transfers to public corporations","2024_25","MTEF2024",26,1,1,43951,64,"26","01","01","043951","000064","26|01|01","02","02","08","49","52","02|02|08|49|52","National","Military Veterans","Administration","Management","Non-transfer item","Capital","Transfers and subsidies","Public corporations and private enterprises","Public corporations","Other transfers to public corporations","Peace and security","Defence and state security","NAT",0,0,0,0,0,0,0,0,0,0,0,null,null,null,null,null,null,null,null,null,null,null,null,null,null,null,null,null,null,null,null,null,null,null,null,null,null,null,null,null,null,null,null,null,null,{"$f":"Dataset[[#This Row],[2024/25 From - Spending review Topic 1]]+Dataset[[#This Row],[2024/25 From - Spending review Topic 2]]+Dataset[[#This Row],[2024/25 From - Spending review Topic 3]]+Dataset[[#This Row],[2024/25 From - Spending review Topic 4]]+Dataset[[#This Row],[2024/25 From - Other reallocations]]","v":0},{"$f":"Dataset[[#This Row],[2025/26 From - Spending review Topic 1]]+Dataset[[#This Row],[2025/26 From - Spending review Topic 2]]+Dataset[[#This Row],[2025/26 From - Spending review Topic 3]]+Dataset[[#This Row],[2025/26 From - Spending review Topic 4]]+Dataset[[#This Row],[2025/26 From - Other reallocations]]","v":0},{"$f":"Dataset[[#This Row],[2026/27 From - Spending review Topic 1]]+Dataset[[#This Row],[2026/27 From - Spending review Topic 2]]+Dataset[[#This Row],[2026/27 From - Spending review Topic 3]]+Dataset[[#This Row],[2026/27 From - Spending review Topic 4]]+Dataset[[#This Row],[2026/27 From - Other reallocations]]","v":0},{"$f":"Dataset[[#This Row],[2024/25 To - Spending review Topic 1]]+Dataset[[#This Row],[2024/25 To - Spending review Topic 2]]+Dataset[[#This Row],[2024/25 To - Spending review Topic 3]]+Dataset[[#This Row],[2024/25 To - Spending review Topic 4]]+Dataset[[#This Row],[2024/25 To - Other reallocations]]","v":0},{"$f":"Dataset[[#This Row],[2025/26 To - Spending review Topic 1]]+Dataset[[#This Row],[2025/26 To - Spending review Topic 2]]+Dataset[[#This Row],[2025/26 To - Spending review Topic 3]]+Dataset[[#This Row],[2025/26 To - Spending review Topic 4]]+Dataset[[#This Row],[2025/26 To - Other reallocations]]","v":0},{"$f":"Dataset[[#This Row],[2026/27 To - Spending review Topic 1]]+Dataset[[#This Row],[2026/27 To - Spending review Topic 2]]+Dataset[[#This Row],[2026/27 To - Spending review Topic 3]]+Dataset[[#This Row],[2026/27 To - Spending review Topic 4]]+Dataset[[#This Row],[2026/27 To - Other reallocations]]","v":0},{"$f":"Dataset[[#This Row],[2024/25 Reduction]]+Dataset[[#This Row],[2024/25 From - Total]]","v":0},{"$f":"Dataset[[#This Row],[2025/26 Reduction]]+Dataset[[#This Row],[2025/26 From - Total]]","v":0},{"$f":"Dataset[[#This Row],[2026/27 Reduction]]+Dataset[[#This Row],[2026/27 From - Total]]","v":0},{"$f":"Dataset[[#This Row],[2023/24 Reduction]]","v":0},{"$f":"SUM(Dataset[[#This Row],[2024/25 Reduction]],Dataset[[#This Row],[2024/25 From - Total]],Dataset[[#This Row],[2024/25 To - Total]])","v":0},{"$f":"SUM(Dataset[[#This Row],[2025/26 Reduction]],Dataset[[#This Row],[2025/26 From - Total]],Dataset[[#This Row],[2025/26 To - Total]])","v":0},{"$f":"SUM(Dataset[[#This Row],[2026/27 Reduction]],Dataset[[#This Row],[2026/27 From - Total]],Dataset[[#This Row],[2026/27 To - Total]])","v":0},{"$f":"Dataset[[#This Row],[2023/24 Baseline]]+Dataset[[#This Row],[2023/24 Total change]]","v":0},{"$f":"Dataset[[#This Row],[2024/25 Baseline]]+Dataset[[#This Row],[2024/25 Total change]]","v":0},{"$f":"Dataset[[#This Row],[2025/26 Baseline]]+Dataset[[#This Row],[2025/26 Total change]]","v":0},{"$f":"Dataset[[#This Row],[2026/27 Baseline]]+Dataset[[#This Row],[2026/27 Total change]]","v":0}]
["NAT|Non-transfer item","26|Other transfers to private enterprises","2024_25","MTEF2024",26,1,1,43952,65,"26","01","01","043952","000065","26|01|01","02","02","08","50","54","02|02|08|50|54","National","Military Veterans","Administration","Management","Non-transfer item","Capital","Transfers and subsidies","Public corporations and private enterprises","Private enterprises","Other transfers to private enterprises","Peace and security","Defence and state security","NAT",0,0,0,0,0,0,0,0,0,0,0,null,null,null,null,null,null,null,null,null,null,null,null,null,null,null,null,null,null,null,null,null,null,null,null,null,null,null,null,null,null,null,null,null,null,{"$f":"Dataset[[#This Row],[2024/25 From - Spending review Topic 1]]+Dataset[[#This Row],[2024/25 From - Spending review Topic 2]]+Dataset[[#This Row],[2024/25 From - Spending review Topic 3]]+Dataset[[#This Row],[2024/25 From - Spending review Topic 4]]+Dataset[[#This Row],[2024/25 From - Other reallocations]]","v":0},{"$f":"Dataset[[#This Row],[2025/26 From - Spending review Topic 1]]+Dataset[[#This Row],[2025/26 From - Spending review Topic 2]]+Dataset[[#This Row],[2025/26 From - Spending review Topic 3]]+Dataset[[#This Row],[2025/26 From - Spending review Topic 4]]+Dataset[[#This Row],[2025/26 From - Other reallocations]]","v":0},{"$f":"Dataset[[#This Row],[2026/27 From - Spending review Topic 1]]+Dataset[[#This Row],[2026/27 From - Spending review Topic 2]]+Dataset[[#This Row],[2026/27 From - Spending review Topic 3]]+Dataset[[#This Row],[2026/27 From - Spending review Topic 4]]+Dataset[[#This Row],[2026/27 From - Other reallocations]]","v":0},{"$f":"Dataset[[#This Row],[2024/25 To - Spending review Topic 1]]+Dataset[[#This Row],[2024/25 To - Spending review Topic 2]]+Dataset[[#This Row],[2024/25 To - Spending review Topic 3]]+Dataset[[#This Row],[2024/25 To - Spending review Topic 4]]+Dataset[[#This Row],[2024/25 To - Other reallocations]]","v":0},{"$f":"Dataset[[#This Row],[2025/26 To - Spending review Topic 1]]+Dataset[[#This Row],[2025/26 To - Spending review Topic 2]]+Dataset[[#This Row],[2025/26 To - Spending review Topic 3]]+Dataset[[#This Row],[2025/26 To - Spending review Topic 4]]+Dataset[[#This Row],[2025/26 To - Other reallocations]]","v":0},{"$f":"Dataset[[#This Row],[2026/27 To - Spending review Topic 1]]+Dataset[[#This Row],[2026/27 To - Spending review Topic 2]]+Dataset[[#This Row],[2026/27 To - Spending review Topic 3]]+Dataset[[#This Row],[2026/27 To - Spending review Topic 4]]+Dataset[[#This Row],[2026/27 To - Other reallocations]]","v":0},{"$f":"Dataset[[#This Row],[2024/25 Reduction]]+Dataset[[#This Row],[2024/25 From - Total]]","v":0},{"$f":"Dataset[[#This Row],[2025/26 Reduction]]+Dataset[[#This Row],[2025/26 From - Total]]","v":0},{"$f":"Dataset[[#This Row],[2026/27 Reduction]]+Dataset[[#This Row],[2026/27 From - Total]]","v":0},{"$f":"Dataset[[#This Row],[2023/24 Reduction]]","v":0},{"$f":"SUM(Dataset[[#This Row],[2024/25 Reduction]],Dataset[[#This Row],[2024/25 From - Total]],Dataset[[#This Row],[2024/25 To - Total]])","v":0},{"$f":"SUM(Dataset[[#This Row],[2025/26 Reduction]],Dataset[[#This Row],[2025/26 From - Total]],Dataset[[#This Row],[2025/26 To - Total]])","v":0},{"$f":"SUM(Dataset[[#This Row],[2026/27 Reduction]],Dataset[[#This Row],[2026/27 From - Total]],Dataset[[#This Row],[2026/27 To - Total]])","v":0},{"$f":"Dataset[[#This Row],[2023/24 Baseline]]+Dataset[[#This Row],[2023/24 Total change]]","v":0},{"$f":"Dataset[[#This Row],[2024/25 Baseline]]+Dataset[[#This Row],[2024/25 Total change]]","v":0},{"$f":"Dataset[[#This Row],[2025/26 Baseline]]+Dataset[[#This Row],[2025/26 Total change]]","v":0},{"$f":"Dataset[[#This Row],[2026/27 Baseline]]+Dataset[[#This Row],[2026/27 Total change]]","v":0}]
["NAT|Non-transfer item","26|Non-profit institutions","2024_25","MTEF2024",26,1,1,43953,66,"26","01","01","043953","000066","26|01|01","02","02","09","51","55","02|02|09|51|55","National","Military Veterans","Administration","Management","Non-transfer item","Capital","Transfers and subsidies","Non-profit institutions","Non-profit institutions","Non-profit institutions","Peace and security","Defence and state security","NAT",0,0,0,0,0,0,0,0,0,0,0,null,null,null,null,null,null,null,null,null,null,null,null,null,null,null,null,null,null,null,null,null,null,null,null,null,null,null,null,null,null,null,null,null,null,{"$f":"Dataset[[#This Row],[2024/25 From - Spending review Topic 1]]+Dataset[[#This Row],[2024/25 From - Spending review Topic 2]]+Dataset[[#This Row],[2024/25 From - Spending review Topic 3]]+Dataset[[#This Row],[2024/25 From - Spending review Topic 4]]+Dataset[[#This Row],[2024/25 From - Other reallocations]]","v":0},{"$f":"Dataset[[#This Row],[2025/26 From - Spending review Topic 1]]+Dataset[[#This Row],[2025/26 From - Spending review Topic 2]]+Dataset[[#This Row],[2025/26 From - Spending review Topic 3]]+Dataset[[#This Row],[2025/26 From - Spending review Topic 4]]+Dataset[[#This Row],[2025/26 From - Other reallocations]]","v":0},{"$f":"Dataset[[#This Row],[2026/27 From - Spending review Topic 1]]+Dataset[[#This Row],[2026/27 From - Spending review Topic 2]]+Dataset[[#This Row],[2026/27 From - Spending review Topic 3]]+Dataset[[#This Row],[2026/27 From - Spending review Topic 4]]+Dataset[[#This Row],[2026/27 From - Other reallocations]]","v":0},{"$f":"Dataset[[#This Row],[2024/25 To - Spending review Topic 1]]+Dataset[[#This Row],[2024/25 To - Spending review Topic 2]]+Dataset[[#This Row],[2024/25 To - Spending review Topic 3]]+Dataset[[#This Row],[2024/25 To - Spending review Topic 4]]+Dataset[[#This Row],[2024/25 To - Other reallocations]]","v":0},{"$f":"Dataset[[#This Row],[2025/26 To - Spending review Topic 1]]+Dataset[[#This Row],[2025/26 To - Spending review Topic 2]]+Dataset[[#This Row],[2025/26 To - Spending review Topic 3]]+Dataset[[#This Row],[2025/26 To - Spending review Topic 4]]+Dataset[[#This Row],[2025/26 To - Other reallocations]]","v":0},{"$f":"Dataset[[#This Row],[2026/27 To - Spending review Topic 1]]+Dataset[[#This Row],[2026/27 To - Spending review Topic 2]]+Dataset[[#This Row],[2026/27 To - Spending review Topic 3]]+Dataset[[#This Row],[2026/27 To - Spending review Topic 4]]+Dataset[[#This Row],[2026/27 To - Other reallocations]]","v":0},{"$f":"Dataset[[#This Row],[2024/25 Reduction]]+Dataset[[#This Row],[2024/25 From - Total]]","v":0},{"$f":"Dataset[[#This Row],[2025/26 Reduction]]+Dataset[[#This Row],[2025/26 From - Total]]","v":0},{"$f":"Dataset[[#This Row],[2026/27 Reduction]]+Dataset[[#This Row],[2026/27 From - Total]]","v":0},{"$f":"Dataset[[#This Row],[2023/24 Reduction]]","v":0},{"$f":"SUM(Dataset[[#This Row],[2024/25 Reduction]],Dataset[[#This Row],[2024/25 From - Total]],Dataset[[#This Row],[2024/25 To - Total]])","v":0},{"$f":"SUM(Dataset[[#This Row],[2025/26 Reduction]],Dataset[[#This Row],[2025/26 From - Total]],Dataset[[#This Row],[2025/26 To - Total]])","v":0},{"$f":"SUM(Dataset[[#This Row],[2026/27 Reduction]],Dataset[[#This Row],[2026/27 From - Total]],Dataset[[#This Row],[2026/27 To - Total]])","v":0},{"$f":"Dataset[[#This Row],[2023/24 Baseline]]+Dataset[[#This Row],[2023/24 Total change]]","v":0},{"$f":"Dataset[[#This Row],[2024/25 Baseline]]+Dataset[[#This Row],[2024/25 Total change]]","v":0},{"$f":"Dataset[[#This Row],[2025/26 Baseline]]+Dataset[[#This Row],[2025/26 Total change]]","v":0},{"$f":"Dataset[[#This Row],[2026/27 Baseline]]+Dataset[[#This Row],[2026/27 Total change]]","v":0}]
["NAT|Non-transfer item","26|Other transfers to households","2024_25","MTEF2024",26,1,1,43954,67,"26","01","01","043954","000067","26|01|01","02","02","10","53","57","02|02|10|53|57","National","Military Veterans","Administration","Management","Non-transfer item","Capital","Transfers and subsidies","Households","Other transfers to households","Other transfers to households","Peace and security","Defence and state security","NAT",0,0,0,0,0,0,0,0,0,0,0,null,null,null,null,null,null,null,null,null,null,null,null,null,null,null,null,null,null,null,null,null,null,null,null,null,null,null,null,null,null,null,null,null,null,{"$f":"Dataset[[#This Row],[2024/25 From - Spending review Topic 1]]+Dataset[[#This Row],[2024/25 From - Spending review Topic 2]]+Dataset[[#This Row],[2024/25 From - Spending review Topic 3]]+Dataset[[#This Row],[2024/25 From - Spending review Topic 4]]+Dataset[[#This Row],[2024/25 From - Other reallocations]]","v":0},{"$f":"Dataset[[#This Row],[2025/26 From - Spending review Topic 1]]+Dataset[[#This Row],[2025/26 From - Spending review Topic 2]]+Dataset[[#This Row],[2025/26 From - Spending review Topic 3]]+Dataset[[#This Row],[2025/26 From - Spending review Topic 4]]+Dataset[[#This Row],[2025/26 From - Other reallocations]]","v":0},{"$f":"Dataset[[#This Row],[2026/27 From - Spending review Topic 1]]+Dataset[[#This Row],[2026/27 From - Spending review Topic 2]]+Dataset[[#This Row],[2026/27 From - Spending review Topic 3]]+Dataset[[#This Row],[2026/27 From - Spending review Topic 4]]+Dataset[[#This Row],[2026/27 From - Other reallocations]]","v":0},{"$f":"Dataset[[#This Row],[2024/25 To - Spending review Topic 1]]+Dataset[[#This Row],[2024/25 To - Spending review Topic 2]]+Dataset[[#This Row],[2024/25 To - Spending review Topic 3]]+Dataset[[#This Row],[2024/25 To - Spending review Topic 4]]+Dataset[[#This Row],[2024/25 To - Other reallocations]]","v":0},{"$f":"Dataset[[#This Row],[2025/26 To - Spending review Topic 1]]+Dataset[[#This Row],[2025/26 To - Spending review Topic 2]]+Dataset[[#This Row],[2025/26 To - Spending review Topic 3]]+Dataset[[#This Row],[2025/26 To - Spending review Topic 4]]+Dataset[[#This Row],[2025/26 To - Other reallocations]]","v":0},{"$f":"Dataset[[#This Row],[2026/27 To - Spending review Topic 1]]+Dataset[[#This Row],[2026/27 To - Spending review Topic 2]]+Dataset[[#This Row],[2026/27 To - Spending review Topic 3]]+Dataset[[#This Row],[2026/27 To - Spending review Topic 4]]+Dataset[[#This Row],[2026/27 To - Other reallocations]]","v":0},{"$f":"Dataset[[#This Row],[2024/25 Reduction]]+Dataset[[#This Row],[2024/25 From - Total]]","v":0},{"$f":"Dataset[[#This Row],[2025/26 Reduction]]+Dataset[[#This Row],[2025/26 From - Total]]","v":0},{"$f":"Dataset[[#This Row],[2026/27 Reduction]]+Dataset[[#This Row],[2026/27 From - Total]]","v":0},{"$f":"Dataset[[#This Row],[2023/24 Reduction]]","v":0},{"$f":"SUM(Dataset[[#This Row],[2024/25 Reduction]],Dataset[[#This Row],[2024/25 From - Total]],Dataset[[#This Row],[2024/25 To - Total]])","v":0},{"$f":"SUM(Dataset[[#This Row],[2025/26 Reduction]],Dataset[[#This Row],[2025/26 From - Total]],Dataset[[#This Row],[2025/26 To - Total]])","v":0},{"$f":"SUM(Dataset[[#This Row],[2026/27 Reduction]],Dataset[[#This Row],[2026/27 From - Total]],Dataset[[#This Row],[2026/27 To - Total]])","v":0},{"$f":"Dataset[[#This Row],[2023/24 Baseline]]+Dataset[[#This Row],[2023/24 Total change]]","v":0},{"$f":"Dataset[[#This Row],[2024/25 Baseline]]+Dataset[[#This Row],[2024/25 Total change]]","v":0},{"$f":"Dataset[[#This Row],[2025/26 Baseline]]+Dataset[[#This Row],[2025/26 Total change]]","v":0},{"$f":"Dataset[[#This Row],[2026/27 Baseline]]+Dataset[[#This Row],[2026/27 Total change]]","v":0}]
["NAT|Non-transfer item","26|Buildings","2024_25","MTEF2024",26,1,1,43955,68,"26","01","01","043955","000068","26|01|01","02","03","11","54","58","02|03|11|54|58","National","Military Veterans","Administration","Management","Non-transfer item","Capital","Payments for capital assets","Buildings and other fixed structures","Buildings","Buildings","Peace and security","Defence and state security","NAT",0,0,0,0,0,0,0,0,0,0,0,null,null,null,null,null,null,null,null,null,null,null,null,null,null,null,null,null,null,null,null,null,null,null,null,null,null,null,null,null,null,null,null,null,null,{"$f":"Dataset[[#This Row],[2024/25 From - Spending review Topic 1]]+Dataset[[#This Row],[2024/25 From - Spending review Topic 2]]+Dataset[[#This Row],[2024/25 From - Spending review Topic 3]]+Dataset[[#This Row],[2024/25 From - Spending review Topic 4]]+Dataset[[#This Row],[2024/25 From - Other reallocations]]","v":0},{"$f":"Dataset[[#This Row],[2025/26 From - Spending review Topic 1]]+Dataset[[#This Row],[2025/26 From - Spending review Topic 2]]+Dataset[[#This Row],[2025/26 From - Spending review Topic 3]]+Dataset[[#This Row],[2025/26 From - Spending review Topic 4]]+Dataset[[#This Row],[2025/26 From - Other reallocations]]","v":0},{"$f":"Dataset[[#This Row],[2026/27 From - Spending review Topic 1]]+Dataset[[#This Row],[2026/27 From - Spending review Topic 2]]+Dataset[[#This Row],[2026/27 From - Spending review Topic 3]]+Dataset[[#This Row],[2026/27 From - Spending review Topic 4]]+Dataset[[#This Row],[2026/27 From - Other reallocations]]","v":0},{"$f":"Dataset[[#This Row],[2024/25 To - Spending review Topic 1]]+Dataset[[#This Row],[2024/25 To - Spending review Topic 2]]+Dataset[[#This Row],[2024/25 To - Spending review Topic 3]]+Dataset[[#This Row],[2024/25 To - Spending review Topic 4]]+Dataset[[#This Row],[2024/25 To - Other reallocations]]","v":0},{"$f":"Dataset[[#This Row],[2025/26 To - Spending review Topic 1]]+Dataset[[#This Row],[2025/26 To - Spending review Topic 2]]+Dataset[[#This Row],[2025/26 To - Spending review Topic 3]]+Dataset[[#This Row],[2025/26 To - Spending review Topic 4]]+Dataset[[#This Row],[2025/26 To - Other reallocations]]","v":0},{"$f":"Dataset[[#This Row],[2026/27 To - Spending review Topic 1]]+Dataset[[#This Row],[2026/27 To - Spending review Topic 2]]+Dataset[[#This Row],[2026/27 To - Spending review Topic 3]]+Dataset[[#This Row],[2026/27 To - Spending review Topic 4]]+Dataset[[#This Row],[2026/27 To - Other reallocations]]","v":0},{"$f":"Dataset[[#This Row],[2024/25 Reduction]]+Dataset[[#This Row],[2024/25 From - Total]]","v":0},{"$f":"Dataset[[#This Row],[2025/26 Reduction]]+Dataset[[#This Row],[2025/26 From - Total]]","v":0},{"$f":"Dataset[[#This Row],[2026/27 Reduction]]+Dataset[[#This Row],[2026/27 From - Total]]","v":0},{"$f":"Dataset[[#This Row],[2023/24 Reduction]]","v":0},{"$f":"SUM(Dataset[[#This Row],[2024/25 Reduction]],Dataset[[#This Row],[2024/25 From - Total]],Dataset[[#This Row],[2024/25 To - Total]])","v":0},{"$f":"SUM(Dataset[[#This Row],[2025/26 Reduction]],Dataset[[#This Row],[2025/26 From - Total]],Dataset[[#This Row],[2025/26 To - Total]])","v":0},{"$f":"SUM(Dataset[[#This Row],[2026/27 Reduction]],Dataset[[#This Row],[2026/27 From - Total]],Dataset[[#This Row],[2026/27 To - Total]])","v":0},{"$f":"Dataset[[#This Row],[2023/24 Baseline]]+Dataset[[#This Row],[2023/24 Total change]]","v":0},{"$f":"Dataset[[#This Row],[2024/25 Baseline]]+Dataset[[#This Row],[2024/25 Total change]]","v":0},{"$f":"Dataset[[#This Row],[2025/26 Baseline]]+Dataset[[#This Row],[2025/26 Total change]]","v":0},{"$f":"Dataset[[#This Row],[2026/27 Baseline]]+Dataset[[#This Row],[2026/27 Total change]]","v":0}]
["NAT|Non-transfer item","26|Other fixed structures","2024_25","MTEF2024",26,1,1,43956,69,"26","01","01","043956","000069","26|01|01","02","03","11","55","59","02|03|11|55|59","National","Military Veterans","Administration","Management","Non-transfer item","Capital","Payments for capital assets","Buildings and other fixed structures","Other fixed structures","Other fixed structures","Peace and security","Defence and state security","NAT",0,0,0,0,0,0,0,0,0,0,0,null,null,null,null,null,null,null,null,null,null,null,null,null,null,null,null,null,null,null,null,null,null,null,null,null,null,null,null,null,null,null,null,null,null,{"$f":"Dataset[[#This Row],[2024/25 From - Spending review Topic 1]]+Dataset[[#This Row],[2024/25 From - Spending review Topic 2]]+Dataset[[#This Row],[2024/25 From - Spending review Topic 3]]+Dataset[[#This Row],[2024/25 From - Spending review Topic 4]]+Dataset[[#This Row],[2024/25 From - Other reallocations]]","v":0},{"$f":"Dataset[[#This Row],[2025/26 From - Spending review Topic 1]]+Dataset[[#This Row],[2025/26 From - Spending review Topic 2]]+Dataset[[#This Row],[2025/26 From - Spending review Topic 3]]+Dataset[[#This Row],[2025/26 From - Spending review Topic 4]]+Dataset[[#This Row],[2025/26 From - Other reallocations]]","v":0},{"$f":"Dataset[[#This Row],[2026/27 From - Spending review Topic 1]]+Dataset[[#This Row],[2026/27 From - Spending review Topic 2]]+Dataset[[#This Row],[2026/27 From - Spending review Topic 3]]+Dataset[[#This Row],[2026/27 From - Spending review Topic 4]]+Dataset[[#This Row],[2026/27 From - Other reallocations]]","v":0},{"$f":"Dataset[[#This Row],[2024/25 To - Spending review Topic 1]]+Dataset[[#This Row],[2024/25 To - Spending review Topic 2]]+Dataset[[#This Row],[2024/25 To - Spending review Topic 3]]+Dataset[[#This Row],[2024/25 To - Spending review Topic 4]]+Dataset[[#This Row],[2024/25 To - Other reallocations]]","v":0},{"$f":"Dataset[[#This Row],[2025/26 To - Spending review Topic 1]]+Dataset[[#This Row],[2025/26 To - Spending review Topic 2]]+Dataset[[#This Row],[2025/26 To - Spending review Topic 3]]+Dataset[[#This Row],[2025/26 To - Spending review Topic 4]]+Dataset[[#This Row],[2025/26 To - Other reallocations]]","v":0},{"$f":"Dataset[[#This Row],[2026/27 To - Spending review Topic 1]]+Dataset[[#This Row],[2026/27 To - Spending review Topic 2]]+Dataset[[#This Row],[2026/27 To - Spending review Topic 3]]+Dataset[[#This Row],[2026/27 To - Spending review Topic 4]]+Dataset[[#This Row],[2026/27 To - Other reallocations]]","v":0},{"$f":"Dataset[[#This Row],[2024/25 Reduction]]+Dataset[[#This Row],[2024/25 From - Total]]","v":0},{"$f":"Dataset[[#This Row],[2025/26 Reduction]]+Dataset[[#This Row],[2025/26 From - Total]]","v":0},{"$f":"Dataset[[#This Row],[2026/27 Reduction]]+Dataset[[#This Row],[2026/27 From - Total]]","v":0},{"$f":"Dataset[[#This Row],[2023/24 Reduction]]","v":0},{"$f":"SUM(Dataset[[#This Row],[2024/25 Reduction]],Dataset[[#This Row],[2024/25 From - Total]],Dataset[[#This Row],[2024/25 To - Total]])","v":0},{"$f":"SUM(Dataset[[#This Row],[2025/26 Reduction]],Dataset[[#This Row],[2025/26 From - Total]],Dataset[[#This Row],[2025/26 To - Total]])","v":0},{"$f":"SUM(Dataset[[#This Row],[2026/27 Reduction]],Dataset[[#This Row],[2026/27 From - Total]],Dataset[[#This Row],[2026/27 To - Total]])","v":0},{"$f":"Dataset[[#This Row],[2023/24 Baseline]]+Dataset[[#This Row],[2023/24 Total change]]","v":0},{"$f":"Dataset[[#This Row],[2024/25 Baseline]]+Dataset[[#This Row],[2024/25 Total change]]","v":0},{"$f":"Dataset[[#This Row],[2025/26 Baseline]]+Dataset[[#This Row],[2025/26 Total change]]","v":0},{"$f":"Dataset[[#This Row],[2026/27 Baseline]]+Dataset[[#This Row],[2026/27 Total change]]","v":0}]
["NAT|Non-transfer item","26|Transport equipment","2024_25","MTEF2024",26,1,1,43957,70,"26","01","01","043957","000070","26|01|01","02","03","12","56","60","02|03|12|56|60","National","Military Veterans","Administration","Management","Non-transfer item","Capital","Payments for capital assets","Machinery and equipment","Transport equipment","Transport equipment","Peace and security","Defence and state security","NAT",0,0,0,0,0,0,0,0,0,0,0,null,null,null,null,null,null,null,null,null,null,null,null,null,null,null,null,null,null,null,null,null,null,null,null,null,null,null,null,null,null,null,null,null,null,{"$f":"Dataset[[#This Row],[2024/25 From - Spending review Topic 1]]+Dataset[[#This Row],[2024/25 From - Spending review Topic 2]]+Dataset[[#This Row],[2024/25 From - Spending review Topic 3]]+Dataset[[#This Row],[2024/25 From - Spending review Topic 4]]+Dataset[[#This Row],[2024/25 From - Other reallocations]]","v":0},{"$f":"Dataset[[#This Row],[2025/26 From - Spending review Topic 1]]+Dataset[[#This Row],[2025/26 From - Spending review Topic 2]]+Dataset[[#This Row],[2025/26 From - Spending review Topic 3]]+Dataset[[#This Row],[2025/26 From - Spending review Topic 4]]+Dataset[[#This Row],[2025/26 From - Other reallocations]]","v":0},{"$f":"Dataset[[#This Row],[2026/27 From - Spending review Topic 1]]+Dataset[[#This Row],[2026/27 From - Spending review Topic 2]]+Dataset[[#This Row],[2026/27 From - Spending review Topic 3]]+Dataset[[#This Row],[2026/27 From - Spending review Topic 4]]+Dataset[[#This Row],[2026/27 From - Other reallocations]]","v":0},{"$f":"Dataset[[#This Row],[2024/25 To - Spending review Topic 1]]+Dataset[[#This Row],[2024/25 To - Spending review Topic 2]]+Dataset[[#This Row],[2024/25 To - Spending review Topic 3]]+Dataset[[#This Row],[2024/25 To - Spending review Topic 4]]+Dataset[[#This Row],[2024/25 To - Other reallocations]]","v":0},{"$f":"Dataset[[#This Row],[2025/26 To - Spending review Topic 1]]+Dataset[[#This Row],[2025/26 To - Spending review Topic 2]]+Dataset[[#This Row],[2025/26 To - Spending review Topic 3]]+Dataset[[#This Row],[2025/26 To - Spending review Topic 4]]+Dataset[[#This Row],[2025/26 To - Other reallocations]]","v":0},{"$f":"Dataset[[#This Row],[2026/27 To - Spending review Topic 1]]+Dataset[[#This Row],[2026/27 To - Spending review Topic 2]]+Dataset[[#This Row],[2026/27 To - Spending review Topic 3]]+Dataset[[#This Row],[2026/27 To - Spending review Topic 4]]+Dataset[[#This Row],[2026/27 To - Other reallocations]]","v":0},{"$f":"Dataset[[#This Row],[2024/25 Reduction]]+Dataset[[#This Row],[2024/25 From - Total]]","v":0},{"$f":"Dataset[[#This Row],[2025/26 Reduction]]+Dataset[[#This Row],[2025/26 From - Total]]","v":0},{"$f":"Dataset[[#This Row],[2026/27 Reduction]]+Dataset[[#This Row],[2026/27 From - Total]]","v":0},{"$f":"Dataset[[#This Row],[2023/24 Reduction]]","v":0},{"$f":"SUM(Dataset[[#This Row],[2024/25 Reduction]],Dataset[[#This Row],[2024/25 From - Total]],Dataset[[#This Row],[2024/25 To - Total]])","v":0},{"$f":"SUM(Dataset[[#This Row],[2025/26 Reduction]],Dataset[[#This Row],[2025/26 From - Total]],Dataset[[#This Row],[2025/26 To - Total]])","v":0},{"$f":"SUM(Dataset[[#This Row],[2026/27 Reduction]],Dataset[[#This Row],[2026/27 From - Total]],Dataset[[#This Row],[2026/27 To - Total]])","v":0},{"$f":"Dataset[[#This Row],[2023/24 Baseline]]+Dataset[[#This Row],[2023/24 Total change]]","v":0},{"$f":"Dataset[[#This Row],[2024/25 Baseline]]+Dataset[[#This Row],[2024/25 Total change]]","v":0},{"$f":"Dataset[[#This Row],[2025/26 Baseline]]+Dataset[[#This Row],[2025/26 Total change]]","v":0},{"$f":"Dataset[[#This Row],[2026/27 Baseline]]+Dataset[[#This Row],[2026/27 Total change]]","v":0}]
["NAT|Non-transfer item","26|Other machinery and equipment","2024_25","MTEF2024",26,1,1,43958,71,"26","01","01","043958","000071","26|01|01","02","03","12","57","61","02|03|12|57|61","National","Military Veterans","Administration","Management","Non-transfer item","Capital","Payments for capital assets","Machinery and equipment","Other machinery and equipment","Other machinery and equipment","Peace and security","Defence and state security","NAT",8,198,197,230,291,291,0,350,441,468,489,null,null,null,null,null,null,null,null,null,null,null,null,null,null,null,null,null,null,null,null,null,null,null,null,null,null,null,null,null,null,null,null,null,null,{"$f":"Dataset[[#This Row],[2024/25 From - Spending review Topic 1]]+Dataset[[#This Row],[2024/25 From - Spending review Topic 2]]+Dataset[[#This Row],[2024/25 From - Spending review Topic 3]]+Dataset[[#This Row],[2024/25 From - Spending review Topic 4]]+Dataset[[#This Row],[2024/25 From - Other reallocations]]","v":0},{"$f":"Dataset[[#This Row],[2025/26 From - Spending review Topic 1]]+Dataset[[#This Row],[2025/26 From - Spending review Topic 2]]+Dataset[[#This Row],[2025/26 From - Spending review Topic 3]]+Dataset[[#This Row],[2025/26 From - Spending review Topic 4]]+Dataset[[#This Row],[2025/26 From - Other reallocations]]","v":0},{"$f":"Dataset[[#This Row],[2026/27 From - Spending review Topic 1]]+Dataset[[#This Row],[2026/27 From - Spending review Topic 2]]+Dataset[[#This Row],[2026/27 From - Spending review Topic 3]]+Dataset[[#This Row],[2026/27 From - Spending review Topic 4]]+Dataset[[#This Row],[2026/27 From - Other reallocations]]","v":0},{"$f":"Dataset[[#This Row],[2024/25 To - Spending review Topic 1]]+Dataset[[#This Row],[2024/25 To - Spending review Topic 2]]+Dataset[[#This Row],[2024/25 To - Spending review Topic 3]]+Dataset[[#This Row],[2024/25 To - Spending review Topic 4]]+Dataset[[#This Row],[2024/25 To - Other reallocations]]","v":0},{"$f":"Dataset[[#This Row],[2025/26 To - Spending review Topic 1]]+Dataset[[#This Row],[2025/26 To - Spending review Topic 2]]+Dataset[[#This Row],[2025/26 To - Spending review Topic 3]]+Dataset[[#This Row],[2025/26 To - Spending review Topic 4]]+Dataset[[#This Row],[2025/26 To - Other reallocations]]","v":0},{"$f":"Dataset[[#This Row],[2026/27 To - Spending review Topic 1]]+Dataset[[#This Row],[2026/27 To - Spending review Topic 2]]+Dataset[[#This Row],[2026/27 To - Spending review Topic 3]]+Dataset[[#This Row],[2026/27 To - Spending review Topic 4]]+Dataset[[#This Row],[2026/27 To - Other reallocations]]","v":0},{"$f":"Dataset[[#This Row],[2024/25 Reduction]]+Dataset[[#This Row],[2024/25 From - Total]]","v":0},{"$f":"Dataset[[#This Row],[2025/26 Reduction]]+Dataset[[#This Row],[2025/26 From - Total]]","v":0},{"$f":"Dataset[[#This Row],[2026/27 Reduction]]+Dataset[[#This Row],[2026/27 From - Total]]","v":0},{"$f":"Dataset[[#This Row],[2023/24 Reduction]]","v":0},{"$f":"SUM(Dataset[[#This Row],[2024/25 Reduction]],Dataset[[#This Row],[2024/25 From - Total]],Dataset[[#This Row],[2024/25 To - Total]])","v":0},{"$f":"SUM(Dataset[[#This Row],[2025/26 Reduction]],Dataset[[#This Row],[2025/26 From - Total]],Dataset[[#This Row],[2025/26 To - Total]])","v":0},{"$f":"SUM(Dataset[[#This Row],[2026/27 Reduction]],Dataset[[#This Row],[2026/27 From - Total]],Dataset[[#This Row],[2026/27 To - Total]])","v":0},{"$f":"Dataset[[#This Row],[2023/24 Baseline]]+Dataset[[#This Row],[2023/24 Total change]]","v":350},{"$f":"Dataset[[#This Row],[2024/25 Baseline]]+Dataset[[#This Row],[2024/25 Total change]]","v":441},{"$f":"Dataset[[#This Row],[2025/26 Baseline]]+Dataset[[#This Row],[2025/26 Total change]]","v":468},{"$f":"Dataset[[#This Row],[2026/27 Baseline]]+Dataset[[#This Row],[2026/27 Total change]]","v":489}]
["NAT|Non-transfer item","26|Heritage assets","2024_25","MTEF2024",26,1,1,43959,72,"26","01","01","043959","000072","26|01|01","02","03","13","58","62","02|03|13|58|62","National","Military Veterans","Administration","Management","Non-transfer item","Capital","Payments for capital assets","Heritage assets","Heritage assets","Heritage assets","Peace and security","Defence and state security","NAT",0,0,0,0,0,0,0,0,0,0,0,null,null,null,null,null,null,null,null,null,null,null,null,null,null,null,null,null,null,null,null,null,null,null,null,null,null,null,null,null,null,null,null,null,null,{"$f":"Dataset[[#This Row],[2024/25 From - Spending review Topic 1]]+Dataset[[#This Row],[2024/25 From - Spending review Topic 2]]+Dataset[[#This Row],[2024/25 From - Spending review Topic 3]]+Dataset[[#This Row],[2024/25 From - Spending review Topic 4]]+Dataset[[#This Row],[2024/25 From - Other reallocations]]","v":0},{"$f":"Dataset[[#This Row],[2025/26 From - Spending review Topic 1]]+Dataset[[#This Row],[2025/26 From - Spending review Topic 2]]+Dataset[[#This Row],[2025/26 From - Spending review Topic 3]]+Dataset[[#This Row],[2025/26 From - Spending review Topic 4]]+Dataset[[#This Row],[2025/26 From - Other reallocations]]","v":0},{"$f":"Dataset[[#This Row],[2026/27 From - Spending review Topic 1]]+Dataset[[#This Row],[2026/27 From - Spending review Topic 2]]+Dataset[[#This Row],[2026/27 From - Spending review Topic 3]]+Dataset[[#This Row],[2026/27 From - Spending review Topic 4]]+Dataset[[#This Row],[2026/27 From - Other reallocations]]","v":0},{"$f":"Dataset[[#This Row],[2024/25 To - Spending review Topic 1]]+Dataset[[#This Row],[2024/25 To - Spending review Topic 2]]+Dataset[[#This Row],[2024/25 To - Spending review Topic 3]]+Dataset[[#This Row],[2024/25 To - Spending review Topic 4]]+Dataset[[#This Row],[2024/25 To - Other reallocations]]","v":0},{"$f":"Dataset[[#This Row],[2025/26 To - Spending review Topic 1]]+Dataset[[#This Row],[2025/26 To - Spending review Topic 2]]+Dataset[[#This Row],[2025/26 To - Spending review Topic 3]]+Dataset[[#This Row],[2025/26 To - Spending review Topic 4]]+Dataset[[#This Row],[2025/26 To - Other reallocations]]","v":0},{"$f":"Dataset[[#This Row],[2026/27 To - Spending review Topic 1]]+Dataset[[#This Row],[2026/27 To - Spending review Topic 2]]+Dataset[[#This Row],[2026/27 To - Spending review Topic 3]]+Dataset[[#This Row],[2026/27 To - Spending review Topic 4]]+Dataset[[#This Row],[2026/27 To - Other reallocations]]","v":0},{"$f":"Dataset[[#This Row],[2024/25 Reduction]]+Dataset[[#This Row],[2024/25 From - Total]]","v":0},{"$f":"Dataset[[#This Row],[2025/26 Reduction]]+Dataset[[#This Row],[2025/26 From - Total]]","v":0},{"$f":"Dataset[[#This Row],[2026/27 Reduction]]+Dataset[[#This Row],[2026/27 From - Total]]","v":0},{"$f":"Dataset[[#This Row],[2023/24 Reduction]]","v":0},{"$f":"SUM(Dataset[[#This Row],[2024/25 Reduction]],Dataset[[#This Row],[2024/25 From - Total]],Dataset[[#This Row],[2024/25 To - Total]])","v":0},{"$f":"SUM(Dataset[[#This Row],[2025/26 Reduction]],Dataset[[#This Row],[2025/26 From - Total]],Dataset[[#This Row],[2025/26 To - Total]])","v":0},{"$f":"SUM(Dataset[[#This Row],[2026/27 Reduction]],Dataset[[#This Row],[2026/27 From - Total]],Dataset[[#This Row],[2026/27 To - Total]])","v":0},{"$f":"Dataset[[#This Row],[2023/24 Baseline]]+Dataset[[#This Row],[2023/24 Total change]]","v":0},{"$f":"Dataset[[#This Row],[2024/25 Baseline]]+Dataset[[#This Row],[2024/25 Total change]]","v":0},{"$f":"Dataset[[#This Row],[2025/26 Baseline]]+Dataset[[#This Row],[2025/26 Total change]]","v":0},{"$f":"Dataset[[#This Row],[2026/27 Baseline]]+Dataset[[#This Row],[2026/27 Total change]]","v":0}]
["NAT|Non-transfer item","26|Specialised military assets","2024_25","MTEF2024",26,1,1,43960,73,"26","01","01","043960","000073","26|01|01","02","03","14","59","63","02|03|14|59|63","National","Military Veterans","Administration","Management","Non-transfer item","Capital","Payments for capital assets","Specialised military assets","Specialised military assets","Specialised military assets","Peace and security","Defence and state security","NAT",0,0,0,0,0,0,0,0,0,0,0,null,null,null,null,null,null,null,null,null,null,null,null,null,null,null,null,null,null,null,null,null,null,null,null,null,null,null,null,null,null,null,null,null,null,{"$f":"Dataset[[#This Row],[2024/25 From - Spending review Topic 1]]+Dataset[[#This Row],[2024/25 From - Spending review Topic 2]]+Dataset[[#This Row],[2024/25 From - Spending review Topic 3]]+Dataset[[#This Row],[2024/25 From - Spending review Topic 4]]+Dataset[[#This Row],[2024/25 From - Other reallocations]]","v":0},{"$f":"Dataset[[#This Row],[2025/26 From - Spending review Topic 1]]+Dataset[[#This Row],[2025/26 From - Spending review Topic 2]]+Dataset[[#This Row],[2025/26 From - Spending review Topic 3]]+Dataset[[#This Row],[2025/26 From - Spending review Topic 4]]+Dataset[[#This Row],[2025/26 From - Other reallocations]]","v":0},{"$f":"Dataset[[#This Row],[2026/27 From - Spending review Topic 1]]+Dataset[[#This Row],[2026/27 From - Spending review Topic 2]]+Dataset[[#This Row],[2026/27 From - Spending review Topic 3]]+Dataset[[#This Row],[2026/27 From - Spending review Topic 4]]+Dataset[[#This Row],[2026/27 From - Other reallocations]]","v":0},{"$f":"Dataset[[#This Row],[2024/25 To - Spending review Topic 1]]+Dataset[[#This Row],[2024/25 To - Spending review Topic 2]]+Dataset[[#This Row],[2024/25 To - Spending review Topic 3]]+Dataset[[#This Row],[2024/25 To - Spending review Topic 4]]+Dataset[[#This Row],[2024/25 To - Other reallocations]]","v":0},{"$f":"Dataset[[#This Row],[2025/26 To - Spending review Topic 1]]+Dataset[[#This Row],[2025/26 To - Spending review Topic 2]]+Dataset[[#This Row],[2025/26 To - Spending review Topic 3]]+Dataset[[#This Row],[2025/26 To - Spending review Topic 4]]+Dataset[[#This Row],[2025/26 To - Other reallocations]]","v":0},{"$f":"Dataset[[#This Row],[2026/27 To - Spending review Topic 1]]+Dataset[[#This Row],[2026/27 To - Spending review Topic 2]]+Dataset[[#This Row],[2026/27 To - Spending review Topic 3]]+Dataset[[#This Row],[2026/27 To - Spending review Topic 4]]+Dataset[[#This Row],[2026/27 To - Other reallocations]]","v":0},{"$f":"Dataset[[#This Row],[2024/25 Reduction]]+Dataset[[#This Row],[2024/25 From - Total]]","v":0},{"$f":"Dataset[[#This Row],[2025/26 Reduction]]+Dataset[[#This Row],[2025/26 From - Total]]","v":0},{"$f":"Dataset[[#This Row],[2026/27 Reduction]]+Dataset[[#This Row],[2026/27 From - Total]]","v":0},{"$f":"Dataset[[#This Row],[2023/24 Reduction]]","v":0},{"$f":"SUM(Dataset[[#This Row],[2024/25 Reduction]],Dataset[[#This Row],[2024/25 From - Total]],Dataset[[#This Row],[2024/25 To - Total]])","v":0},{"$f":"SUM(Dataset[[#This Row],[2025/26 Reduction]],Dataset[[#This Row],[2025/26 From - Total]],Dataset[[#This Row],[2025/26 To - Total]])","v":0},{"$f":"SUM(Dataset[[#This Row],[2026/27 Reduction]],Dataset[[#This Row],[2026/27 From - Total]],Dataset[[#This Row],[2026/27 To - Total]])","v":0},{"$f":"Dataset[[#This Row],[2023/24 Baseline]]+Dataset[[#This Row],[2023/24 Total change]]","v":0},{"$f":"Dataset[[#This Row],[2024/25 Baseline]]+Dataset[[#This Row],[2024/25 Total change]]","v":0},{"$f":"Dataset[[#This Row],[2025/26 Baseline]]+Dataset[[#This Row],[2025/26 Total change]]","v":0},{"$f":"Dataset[[#This Row],[2026/27 Baseline]]+Dataset[[#This Row],[2026/27 Total change]]","v":0}]
["NAT|Non-transfer item","26|Biological assets","2024_25","MTEF2024",26,1,1,43961,74,"26","01","01","043961","000074","26|01|01","02","03","15","60","64","02|03|15|60|64","National","Military Veterans","Administration","Management","Non-transfer item","Capital","Payments for capital assets","Biological assets","Biological assets","Biological assets","Peace and security","Defence and state security","NAT",0,0,0,0,0,0,0,0,0,0,0,null,null,null,null,null,null,null,null,null,null,null,null,null,null,null,null,null,null,null,null,null,null,null,null,null,null,null,null,null,null,null,null,null,null,{"$f":"Dataset[[#This Row],[2024/25 From - Spending review Topic 1]]+Dataset[[#This Row],[2024/25 From - Spending review Topic 2]]+Dataset[[#This Row],[2024/25 From - Spending review Topic 3]]+Dataset[[#This Row],[2024/25 From - Spending review Topic 4]]+Dataset[[#This Row],[2024/25 From - Other reallocations]]","v":0},{"$f":"Dataset[[#This Row],[2025/26 From - Spending review Topic 1]]+Dataset[[#This Row],[2025/26 From - Spending review Topic 2]]+Dataset[[#This Row],[2025/26 From - Spending review Topic 3]]+Dataset[[#This Row],[2025/26 From - Spending review Topic 4]]+Dataset[[#This Row],[2025/26 From - Other reallocations]]","v":0},{"$f":"Dataset[[#This Row],[2026/27 From - Spending review Topic 1]]+Dataset[[#This Row],[2026/27 From - Spending review Topic 2]]+Dataset[[#This Row],[2026/27 From - Spending review Topic 3]]+Dataset[[#This Row],[2026/27 From - Spending review Topic 4]]+Dataset[[#This Row],[2026/27 From - Other reallocations]]","v":0},{"$f":"Dataset[[#This Row],[2024/25 To - Spending review Topic 1]]+Dataset[[#This Row],[2024/25 To - Spending review Topic 2]]+Dataset[[#This Row],[2024/25 To - Spending review Topic 3]]+Dataset[[#This Row],[2024/25 To - Spending review Topic 4]]+Dataset[[#This Row],[2024/25 To - Other reallocations]]","v":0},{"$f":"Dataset[[#This Row],[2025/26 To - Spending review Topic 1]]+Dataset[[#This Row],[2025/26 To - Spending review Topic 2]]+Dataset[[#This Row],[2025/26 To - Spending review Topic 3]]+Dataset[[#This Row],[2025/26 To - Spending review Topic 4]]+Dataset[[#This Row],[2025/26 To - Other reallocations]]","v":0},{"$f":"Dataset[[#This Row],[2026/27 To - Spending review Topic 1]]+Dataset[[#This Row],[2026/27 To - Spending review Topic 2]]+Dataset[[#This Row],[2026/27 To - Spending review Topic 3]]+Dataset[[#This Row],[2026/27 To - Spending review Topic 4]]+Dataset[[#This Row],[2026/27 To - Other reallocations]]","v":0},{"$f":"Dataset[[#This Row],[2024/25 Reduction]]+Dataset[[#This Row],[2024/25 From - Total]]","v":0},{"$f":"Dataset[[#This Row],[2025/26 Reduction]]+Dataset[[#This Row],[2025/26 From - Total]]","v":0},{"$f":"Dataset[[#This Row],[2026/27 Reduction]]+Dataset[[#This Row],[2026/27 From - Total]]","v":0},{"$f":"Dataset[[#This Row],[2023/24 Reduction]]","v":0},{"$f":"SUM(Dataset[[#This Row],[2024/25 Reduction]],Dataset[[#This Row],[2024/25 From - Total]],Dataset[[#This Row],[2024/25 To - Total]])","v":0},{"$f":"SUM(Dataset[[#This Row],[2025/26 Reduction]],Dataset[[#This Row],[2025/26 From - Total]],Dataset[[#This Row],[2025/26 To - Total]])","v":0},{"$f":"SUM(Dataset[[#This Row],[2026/27 Reduction]],Dataset[[#This Row],[2026/27 From - Total]],Dataset[[#This Row],[2026/27 To - Total]])","v":0},{"$f":"Dataset[[#This Row],[2023/24 Baseline]]+Dataset[[#This Row],[2023/24 Total change]]","v":0},{"$f":"Dataset[[#This Row],[2024/25 Baseline]]+Dataset[[#This Row],[2024/25 Total change]]","v":0},{"$f":"Dataset[[#This Row],[2025/26 Baseline]]+Dataset[[#This Row],[2025/26 Total change]]","v":0},{"$f":"Dataset[[#This Row],[2026/27 Baseline]]+Dataset[[#This Row],[2026/27 Total change]]","v":0}]
["NAT|Non-transfer item","26|Land and sub-soil assets","2024_25","MTEF2024",26,1,1,43962,75,"26","01","01","043962","000075","26|01|01","02","03","16","61","65","02|03|16|61|65","National","Military Veterans","Administration","Management","Non-transfer item","Capital","Payments for capital assets","Land and sub-soil assets","Land and sub-soil assets","Land and sub-soil assets","Peace and security","Defence and state security","NAT",0,0,0,0,0,0,0,0,0,0,0,null,null,null,null,null,null,null,null,null,null,null,null,null,null,null,null,null,null,null,null,null,null,null,null,null,null,null,null,null,null,null,null,null,null,{"$f":"Dataset[[#This Row],[2024/25 From - Spending review Topic 1]]+Dataset[[#This Row],[2024/25 From - Spending review Topic 2]]+Dataset[[#This Row],[2024/25 From - Spending review Topic 3]]+Dataset[[#This Row],[2024/25 From - Spending review Topic 4]]+Dataset[[#This Row],[2024/25 From - Other reallocations]]","v":0},{"$f":"Dataset[[#This Row],[2025/26 From - Spending review Topic 1]]+Dataset[[#This Row],[2025/26 From - Spending review Topic 2]]+Dataset[[#This Row],[2025/26 From - Spending review Topic 3]]+Dataset[[#This Row],[2025/26 From - Spending review Topic 4]]+Dataset[[#This Row],[2025/26 From - Other reallocations]]","v":0},{"$f":"Dataset[[#This Row],[2026/27 From - Spending review Topic 1]]+Dataset[[#This Row],[2026/27 From - Spending review Topic 2]]+Dataset[[#This Row],[2026/27 From - Spending review Topic 3]]+Dataset[[#This Row],[2026/27 From - Spending review Topic 4]]+Dataset[[#This Row],[2026/27 From - Other reallocations]]","v":0},{"$f":"Dataset[[#This Row],[2024/25 To - Spending review Topic 1]]+Dataset[[#This Row],[2024/25 To - Spending review Topic 2]]+Dataset[[#This Row],[2024/25 To - Spending review Topic 3]]+Dataset[[#This Row],[2024/25 To - Spending review Topic 4]]+Dataset[[#This Row],[2024/25 To - Other reallocations]]","v":0},{"$f":"Dataset[[#This Row],[2025/26 To - Spending review Topic 1]]+Dataset[[#This Row],[2025/26 To - Spending review Topic 2]]+Dataset[[#This Row],[2025/26 To - Spending review Topic 3]]+Dataset[[#This Row],[2025/26 To - Spending review Topic 4]]+Dataset[[#This Row],[2025/26 To - Other reallocations]]","v":0},{"$f":"Dataset[[#This Row],[2026/27 To - Spending review Topic 1]]+Dataset[[#This Row],[2026/27 To - Spending review Topic 2]]+Dataset[[#This Row],[2026/27 To - Spending review Topic 3]]+Dataset[[#This Row],[2026/27 To - Spending review Topic 4]]+Dataset[[#This Row],[2026/27 To - Other reallocations]]","v":0},{"$f":"Dataset[[#This Row],[2024/25 Reduction]]+Dataset[[#This Row],[2024/25 From - Total]]","v":0},{"$f":"Dataset[[#This Row],[2025/26 Reduction]]+Dataset[[#This Row],[2025/26 From - Total]]","v":0},{"$f":"Dataset[[#This Row],[2026/27 Reduction]]+Dataset[[#This Row],[2026/27 From - Total]]","v":0},{"$f":"Dataset[[#This Row],[2023/24 Reduction]]","v":0},{"$f":"SUM(Dataset[[#This Row],[2024/25 Reduction]],Dataset[[#This Row],[2024/25 From - Total]],Dataset[[#This Row],[2024/25 To - Total]])","v":0},{"$f":"SUM(Dataset[[#This Row],[2025/26 Reduction]],Dataset[[#This Row],[2025/26 From - Total]],Dataset[[#This Row],[2025/26 To - Total]])","v":0},{"$f":"SUM(Dataset[[#This Row],[2026/27 Reduction]],Dataset[[#This Row],[2026/27 From - Total]],Dataset[[#This Row],[2026/27 To - Total]])","v":0},{"$f":"Dataset[[#This Row],[2023/24 Baseline]]+Dataset[[#This Row],[2023/24 Total change]]","v":0},{"$f":"Dataset[[#This Row],[2024/25 Baseline]]+Dataset[[#This Row],[2024/25 Total change]]","v":0},{"$f":"Dataset[[#This Row],[2025/26 Baseline]]+Dataset[[#This Row],[2025/26 Total change]]","v":0},{"$f":"Dataset[[#This Row],[2026/27 Baseline]]+Dataset[[#This Row],[2026/27 Total change]]","v":0}]
["NAT|Non-transfer item","26|Software and other intangible assets","2024_25","MTEF2024",26,1,1,43963,76,"26","01","01","043963","000076","26|01|01","02","03","17","62","66","02|03|17|62|66","National","Military Veterans","Administration","Management","Non-transfer item","Capital","Payments for capital assets","Software and other intangible assets","Software and other intangible assets","Software and other intangible assets","Peace and security","Defence and state security","NAT",0,0,0,0,0,0,0,0,0,0,0,null,null,null,null,null,null,null,null,null,null,null,null,null,null,null,null,null,null,null,null,null,null,null,null,null,null,null,null,null,null,null,null,null,null,{"$f":"Dataset[[#This Row],[2024/25 From - Spending review Topic 1]]+Dataset[[#This Row],[2024/25 From - Spending review Topic 2]]+Dataset[[#This Row],[2024/25 From - Spending review Topic 3]]+Dataset[[#This Row],[2024/25 From - Spending review Topic 4]]+Dataset[[#This Row],[2024/25 From - Other reallocations]]","v":0},{"$f":"Dataset[[#This Row],[2025/26 From - Spending review Topic 1]]+Dataset[[#This Row],[2025/26 From - Spending review Topic 2]]+Dataset[[#This Row],[2025/26 From - Spending review Topic 3]]+Dataset[[#This Row],[2025/26 From - Spending review Topic 4]]+Dataset[[#This Row],[2025/26 From - Other reallocations]]","v":0},{"$f":"Dataset[[#This Row],[2026/27 From - Spending review Topic 1]]+Dataset[[#This Row],[2026/27 From - Spending review Topic 2]]+Dataset[[#This Row],[2026/27 From - Spending review Topic 3]]+Dataset[[#This Row],[2026/27 From - Spending review Topic 4]]+Dataset[[#This Row],[2026/27 From - Other reallocations]]","v":0},{"$f":"Dataset[[#This Row],[2024/25 To - Spending review Topic 1]]+Dataset[[#This Row],[2024/25 To - Spending review Topic 2]]+Dataset[[#This Row],[2024/25 To - Spending review Topic 3]]+Dataset[[#This Row],[2024/25 To - Spending review Topic 4]]+Dataset[[#This Row],[2024/25 To - Other reallocations]]","v":0},{"$f":"Dataset[[#This Row],[2025/26 To - Spending review Topic 1]]+Dataset[[#This Row],[2025/26 To - Spending review Topic 2]]+Dataset[[#This Row],[2025/26 To - Spending review Topic 3]]+Dataset[[#This Row],[2025/26 To - Spending review Topic 4]]+Dataset[[#This Row],[2025/26 To - Other reallocations]]","v":0},{"$f":"Dataset[[#This Row],[2026/27 To - Spending review Topic 1]]+Dataset[[#This Row],[2026/27 To - Spending review Topic 2]]+Dataset[[#This Row],[2026/27 To - Spending review Topic 3]]+Dataset[[#This Row],[2026/27 To - Spending review Topic 4]]+Dataset[[#This Row],[2026/27 To - Other reallocations]]","v":0},{"$f":"Dataset[[#This Row],[2024/25 Reduction]]+Dataset[[#This Row],[2024/25 From - Total]]","v":0},{"$f":"Dataset[[#This Row],[2025/26 Reduction]]+Dataset[[#This Row],[2025/26 From - Total]]","v":0},{"$f":"Dataset[[#This Row],[2026/27 Reduction]]+Dataset[[#This Row],[2026/27 From - Total]]","v":0},{"$f":"Dataset[[#This Row],[2023/24 Reduction]]","v":0},{"$f":"SUM(Dataset[[#This Row],[2024/25 Reduction]],Dataset[[#This Row],[2024/25 From - Total]],Dataset[[#This Row],[2024/25 To - Total]])","v":0},{"$f":"SUM(Dataset[[#This Row],[2025/26 Reduction]],Dataset[[#This Row],[2025/26 From - Total]],Dataset[[#This Row],[2025/26 To - Total]])","v":0},{"$f":"SUM(Dataset[[#This Row],[2026/27 Reduction]],Dataset[[#This Row],[2026/27 From - Total]],Dataset[[#This Row],[2026/27 To - Total]])","v":0},{"$f":"Dataset[[#This Row],[2023/24 Baseline]]+Dataset[[#This Row],[2023/24 Total change]]","v":0},{"$f":"Dataset[[#This Row],[2024/25 Baseline]]+Dataset[[#This Row],[2024/25 Total change]]","v":0},{"$f":"Dataset[[#This Row],[2025/26 Baseline]]+Dataset[[#This Row],[2025/26 Total change]]","v":0},{"$f":"Dataset[[#This Row],[2026/27 Baseline]]+Dataset[[#This Row],[2026/27 Total change]]","v":0}]
["NAT|Non-transfer item","26|Payments for financial assets","2024_25","MTEF2024",26,1,1,43964,77,"26","01","01","043964","000077","26|01|01","03","04","18","63","67","03|04|18|63|67","National","Military Veterans","Administration","Management","Non-transfer item","Payments for financial assets","Payments for financial assets","Payments for financial assets","Payments for financial assets","Payments for financial assets","Peace and security","Defence and state security","NAT",0,0,0,0,0,0,0,0,0,0,0,null,null,null,null,null,null,null,null,null,null,null,null,null,null,null,null,null,null,null,null,null,null,null,null,null,null,null,null,null,null,null,null,null,null,{"$f":"Dataset[[#This Row],[2024/25 From - Spending review Topic 1]]+Dataset[[#This Row],[2024/25 From - Spending review Topic 2]]+Dataset[[#This Row],[2024/25 From - Spending review Topic 3]]+Dataset[[#This Row],[2024/25 From - Spending review Topic 4]]+Dataset[[#This Row],[2024/25 From - Other reallocations]]","v":0},{"$f":"Dataset[[#This Row],[2025/26 From - Spending review Topic 1]]+Dataset[[#This Row],[2025/26 From - Spending review Topic 2]]+Dataset[[#This Row],[2025/26 From - Spending review Topic 3]]+Dataset[[#This Row],[2025/26 From - Spending review Topic 4]]+Dataset[[#This Row],[2025/26 From - Other reallocations]]","v":0},{"$f":"Dataset[[#This Row],[2026/27 From - Spending review Topic 1]]+Dataset[[#This Row],[2026/27 From - Spending review Topic 2]]+Dataset[[#This Row],[2026/27 From - Spending review Topic 3]]+Dataset[[#This Row],[2026/27 From - Spending review Topic 4]]+Dataset[[#This Row],[2026/27 From - Other reallocations]]","v":0},{"$f":"Dataset[[#This Row],[2024/25 To - Spending review Topic 1]]+Dataset[[#This Row],[2024/25 To - Spending review Topic 2]]+Dataset[[#This Row],[2024/25 To - Spending review Topic 3]]+Dataset[[#This Row],[2024/25 To - Spending review Topic 4]]+Dataset[[#This Row],[2024/25 To - Other reallocations]]","v":0},{"$f":"Dataset[[#This Row],[2025/26 To - Spending review Topic 1]]+Dataset[[#This Row],[2025/26 To - Spending review Topic 2]]+Dataset[[#This Row],[2025/26 To - Spending review Topic 3]]+Dataset[[#This Row],[2025/26 To - Spending review Topic 4]]+Dataset[[#This Row],[2025/26 To - Other reallocations]]","v":0},{"$f":"Dataset[[#This Row],[2026/27 To - Spending review Topic 1]]+Dataset[[#This Row],[2026/27 To - Spending review Topic 2]]+Dataset[[#This Row],[2026/27 To - Spending review Topic 3]]+Dataset[[#This Row],[2026/27 To - Spending review Topic 4]]+Dataset[[#This Row],[2026/27 To - Other reallocations]]","v":0},{"$f":"Dataset[[#This Row],[2024/25 Reduction]]+Dataset[[#This Row],[2024/25 From - Total]]","v":0},{"$f":"Dataset[[#This Row],[2025/26 Reduction]]+Dataset[[#This Row],[2025/26 From - Total]]","v":0},{"$f":"Dataset[[#This Row],[2026/27 Reduction]]+Dataset[[#This Row],[2026/27 From - Total]]","v":0},{"$f":"Dataset[[#This Row],[2023/24 Reduction]]","v":0},{"$f":"SUM(Dataset[[#This Row],[2024/25 Reduction]],Dataset[[#This Row],[2024/25 From - Total]],Dataset[[#This Row],[2024/25 To - Total]])","v":0},{"$f":"SUM(Dataset[[#This Row],[2025/26 Reduction]],Dataset[[#This Row],[2025/26 From - Total]],Dataset[[#This Row],[2025/26 To - Total]])","v":0},{"$f":"SUM(Dataset[[#This Row],[2026/27 Reduction]],Dataset[[#This Row],[2026/27 From - Total]],Dataset[[#This Row],[2026/27 To - Total]])","v":0},{"$f":"Dataset[[#This Row],[2023/24 Baseline]]+Dataset[[#This Row],[2023/24 Total change]]","v":0},{"$f":"Dataset[[#This Row],[2024/25 Baseline]]+Dataset[[#This Row],[2024/25 Total change]]","v":0},{"$f":"Dataset[[#This Row],[2025/26 Baseline]]+Dataset[[#This Row],[2025/26 Total change]]","v":0},{"$f":"Dataset[[#This Row],[2026/27 Baseline]]+Dataset[[#This Row],[2026/27 Total change]]","v":0}]
["NAT|Non-transfer item","26|Salaries and wages","2024_25","MTEF2024",26,1,2,43965,78,"26","01","02","043965","000078","26|01|02","01","01","01","01","01","01|01|01|01|01","National","Military Veterans","Administration","Corporate Services","Non-transfer item","Current","Current payments","Compensation of employees","Salaries and wages","Salaries and wages","Peace and security","Defence and state security","NAT",28047,25646,21887,18831,24438,24438,0,20746,21913,22808,23853,null,null,null,null,null,null,null,null,null,null,null,null,null,null,null,null,null,null,null,null,null,null,null,null,null,null,null,null,null,null,null,null,null,null,{"$f":"Dataset[[#This Row],[2024/25 From - Spending review Topic 1]]+Dataset[[#This Row],[2024/25 From - Spending review Topic 2]]+Dataset[[#This Row],[2024/25 From - Spending review Topic 3]]+Dataset[[#This Row],[2024/25 From - Spending review Topic 4]]+Dataset[[#This Row],[2024/25 From - Other reallocations]]","v":0},{"$f":"Dataset[[#This Row],[2025/26 From - Spending review Topic 1]]+Dataset[[#This Row],[2025/26 From - Spending review Topic 2]]+Dataset[[#This Row],[2025/26 From - Spending review Topic 3]]+Dataset[[#This Row],[2025/26 From - Spending review Topic 4]]+Dataset[[#This Row],[2025/26 From - Other reallocations]]","v":0},{"$f":"Dataset[[#This Row],[2026/27 From - Spending review Topic 1]]+Dataset[[#This Row],[2026/27 From - Spending review Topic 2]]+Dataset[[#This Row],[2026/27 From - Spending review Topic 3]]+Dataset[[#This Row],[2026/27 From - Spending review Topic 4]]+Dataset[[#This Row],[2026/27 From - Other reallocations]]","v":0},{"$f":"Dataset[[#This Row],[2024/25 To - Spending review Topic 1]]+Dataset[[#This Row],[2024/25 To - Spending review Topic 2]]+Dataset[[#This Row],[2024/25 To - Spending review Topic 3]]+Dataset[[#This Row],[2024/25 To - Spending review Topic 4]]+Dataset[[#This Row],[2024/25 To - Other reallocations]]","v":0},{"$f":"Dataset[[#This Row],[2025/26 To - Spending review Topic 1]]+Dataset[[#This Row],[2025/26 To - Spending review Topic 2]]+Dataset[[#This Row],[2025/26 To - Spending review Topic 3]]+Dataset[[#This Row],[2025/26 To - Spending review Topic 4]]+Dataset[[#This Row],[2025/26 To - Other reallocations]]","v":0},{"$f":"Dataset[[#This Row],[2026/27 To - Spending review Topic 1]]+Dataset[[#This Row],[2026/27 To - Spending review Topic 2]]+Dataset[[#This Row],[2026/27 To - Spending review Topic 3]]+Dataset[[#This Row],[2026/27 To - Spending review Topic 4]]+Dataset[[#This Row],[2026/27 To - Other reallocations]]","v":0},{"$f":"Dataset[[#This Row],[2024/25 Reduction]]+Dataset[[#This Row],[2024/25 From - Total]]","v":0},{"$f":"Dataset[[#This Row],[2025/26 Reduction]]+Dataset[[#This Row],[2025/26 From - Total]]","v":0},{"$f":"Dataset[[#This Row],[2026/27 Reduction]]+Dataset[[#This Row],[2026/27 From - Total]]","v":0},{"$f":"Dataset[[#This Row],[2023/24 Reduction]]","v":0},{"$f":"SUM(Dataset[[#This Row],[2024/25 Reduction]],Dataset[[#This Row],[2024/25 From - Total]],Dataset[[#This Row],[2024/25 To - Total]])","v":0},{"$f":"SUM(Dataset[[#This Row],[2025/26 Reduction]],Dataset[[#This Row],[2025/26 From - Total]],Dataset[[#This Row],[2025/26 To - Total]])","v":0},{"$f":"SUM(Dataset[[#This Row],[2026/27 Reduction]],Dataset[[#This Row],[2026/27 From - Total]],Dataset[[#This Row],[2026/27 To - Total]])","v":0},{"$f":"Dataset[[#This Row],[2023/24 Baseline]]+Dataset[[#This Row],[2023/24 Total change]]","v":20746},{"$f":"Dataset[[#This Row],[2024/25 Baseline]]+Dataset[[#This Row],[2024/25 Total change]]","v":21913},{"$f":"Dataset[[#This Row],[2025/26 Baseline]]+Dataset[[#This Row],[2025/26 Total change]]","v":22808},{"$f":"Dataset[[#This Row],[2026/27 Baseline]]+Dataset[[#This Row],[2026/27 Total change]]","v":23853}]
["NAT|Non-transfer item","26|Social contributions","2024_25","MTEF2024",26,1,2,43966,79,"26","01","02","043966","000079","26|01|02","01","01","01","02","02","01|01|01|02|02","National","Military Veterans","Administration","Corporate Services","Non-transfer item","Current","Current payments","Compensation of employees","Social contributions","Social contributions","Peace and security","Defence and state security","NAT",2456,2284,2108,2433,2133,2133,0,1287,1090,1207,1262,null,null,null,null,null,null,null,null,null,null,null,null,null,null,null,null,null,null,null,null,null,null,null,null,null,null,null,null,null,null,null,null,null,null,{"$f":"Dataset[[#This Row],[2024/25 From - Spending review Topic 1]]+Dataset[[#This Row],[2024/25 From - Spending review Topic 2]]+Dataset[[#This Row],[2024/25 From - Spending review Topic 3]]+Dataset[[#This Row],[2024/25 From - Spending review Topic 4]]+Dataset[[#This Row],[2024/25 From - Other reallocations]]","v":0},{"$f":"Dataset[[#This Row],[2025/26 From - Spending review Topic 1]]+Dataset[[#This Row],[2025/26 From - Spending review Topic 2]]+Dataset[[#This Row],[2025/26 From - Spending review Topic 3]]+Dataset[[#This Row],[2025/26 From - Spending review Topic 4]]+Dataset[[#This Row],[2025/26 From - Other reallocations]]","v":0},{"$f":"Dataset[[#This Row],[2026/27 From - Spending review Topic 1]]+Dataset[[#This Row],[2026/27 From - Spending review Topic 2]]+Dataset[[#This Row],[2026/27 From - Spending review Topic 3]]+Dataset[[#This Row],[2026/27 From - Spending review Topic 4]]+Dataset[[#This Row],[2026/27 From - Other reallocations]]","v":0},{"$f":"Dataset[[#This Row],[2024/25 To - Spending review Topic 1]]+Dataset[[#This Row],[2024/25 To - Spending review Topic 2]]+Dataset[[#This Row],[2024/25 To - Spending review Topic 3]]+Dataset[[#This Row],[2024/25 To - Spending review Topic 4]]+Dataset[[#This Row],[2024/25 To - Other reallocations]]","v":0},{"$f":"Dataset[[#This Row],[2025/26 To - Spending review Topic 1]]+Dataset[[#This Row],[2025/26 To - Spending review Topic 2]]+Dataset[[#This Row],[2025/26 To - Spending review Topic 3]]+Dataset[[#This Row],[2025/26 To - Spending review Topic 4]]+Dataset[[#This Row],[2025/26 To - Other reallocations]]","v":0},{"$f":"Dataset[[#This Row],[2026/27 To - Spending review Topic 1]]+Dataset[[#This Row],[2026/27 To - Spending review Topic 2]]+Dataset[[#This Row],[2026/27 To - Spending review Topic 3]]+Dataset[[#This Row],[2026/27 To - Spending review Topic 4]]+Dataset[[#This Row],[2026/27 To - Other reallocations]]","v":0},{"$f":"Dataset[[#This Row],[2024/25 Reduction]]+Dataset[[#This Row],[2024/25 From - Total]]","v":0},{"$f":"Dataset[[#This Row],[2025/26 Reduction]]+Dataset[[#This Row],[2025/26 From - Total]]","v":0},{"$f":"Dataset[[#This Row],[2026/27 Reduction]]+Dataset[[#This Row],[2026/27 From - Total]]","v":0},{"$f":"Dataset[[#This Row],[2023/24 Reduction]]","v":0},{"$f":"SUM(Dataset[[#This Row],[2024/25 Reduction]],Dataset[[#This Row],[2024/25 From - Total]],Dataset[[#This Row],[2024/25 To - Total]])","v":0},{"$f":"SUM(Dataset[[#This Row],[2025/26 Reduction]],Dataset[[#This Row],[2025/26 From - Total]],Dataset[[#This Row],[2025/26 To - Total]])","v":0},{"$f":"SUM(Dataset[[#This Row],[2026/27 Reduction]],Dataset[[#This Row],[2026/27 From - Total]],Dataset[[#This Row],[2026/27 To - Total]])","v":0},{"$f":"Dataset[[#This Row],[2023/24 Baseline]]+Dataset[[#This Row],[2023/24 Total change]]","v":1287},{"$f":"Dataset[[#This Row],[2024/25 Baseline]]+Dataset[[#This Row],[2024/25 Total change]]","v":1090},{"$f":"Dataset[[#This Row],[2025/26 Baseline]]+Dataset[[#This Row],[2025/26 Total change]]","v":1207},{"$f":"Dataset[[#This Row],[2026/27 Baseline]]+Dataset[[#This Row],[2026/27 Total change]]","v":1262}]
["NAT|Non-transfer item","26|Administrative fees","2024_25","MTEF2024",26,1,2,43967,80,"26","01","02","043967","000080","26|01|02","01","01","02","03","03","01|01|02|03|03","National","Military Veterans","Administration","Corporate Services","Non-transfer item","Current","Current payments","Goods and services","Administrative fees","Administrative fees","Peace and security","Defence and state security","NAT",144,28,270,0,27,27,0,220,250,280,293,null,null,null,null,null,null,null,null,null,null,null,null,null,null,null,null,null,null,null,null,null,null,null,null,null,null,null,null,null,null,null,null,null,null,{"$f":"Dataset[[#This Row],[2024/25 From - Spending review Topic 1]]+Dataset[[#This Row],[2024/25 From - Spending review Topic 2]]+Dataset[[#This Row],[2024/25 From - Spending review Topic 3]]+Dataset[[#This Row],[2024/25 From - Spending review Topic 4]]+Dataset[[#This Row],[2024/25 From - Other reallocations]]","v":0},{"$f":"Dataset[[#This Row],[2025/26 From - Spending review Topic 1]]+Dataset[[#This Row],[2025/26 From - Spending review Topic 2]]+Dataset[[#This Row],[2025/26 From - Spending review Topic 3]]+Dataset[[#This Row],[2025/26 From - Spending review Topic 4]]+Dataset[[#This Row],[2025/26 From - Other reallocations]]","v":0},{"$f":"Dataset[[#This Row],[2026/27 From - Spending review Topic 1]]+Dataset[[#This Row],[2026/27 From - Spending review Topic 2]]+Dataset[[#This Row],[2026/27 From - Spending review Topic 3]]+Dataset[[#This Row],[2026/27 From - Spending review Topic 4]]+Dataset[[#This Row],[2026/27 From - Other reallocations]]","v":0},{"$f":"Dataset[[#This Row],[2024/25 To - Spending review Topic 1]]+Dataset[[#This Row],[2024/25 To - Spending review Topic 2]]+Dataset[[#This Row],[2024/25 To - Spending review Topic 3]]+Dataset[[#This Row],[2024/25 To - Spending review Topic 4]]+Dataset[[#This Row],[2024/25 To - Other reallocations]]","v":0},{"$f":"Dataset[[#This Row],[2025/26 To - Spending review Topic 1]]+Dataset[[#This Row],[2025/26 To - Spending review Topic 2]]+Dataset[[#This Row],[2025/26 To - Spending review Topic 3]]+Dataset[[#This Row],[2025/26 To - Spending review Topic 4]]+Dataset[[#This Row],[2025/26 To - Other reallocations]]","v":0},{"$f":"Dataset[[#This Row],[2026/27 To - Spending review Topic 1]]+Dataset[[#This Row],[2026/27 To - Spending review Topic 2]]+Dataset[[#This Row],[2026/27 To - Spending review Topic 3]]+Dataset[[#This Row],[2026/27 To - Spending review Topic 4]]+Dataset[[#This Row],[2026/27 To - Other reallocations]]","v":0},{"$f":"Dataset[[#This Row],[2024/25 Reduction]]+Dataset[[#This Row],[2024/25 From - Total]]","v":0},{"$f":"Dataset[[#This Row],[2025/26 Reduction]]+Dataset[[#This Row],[2025/26 From - Total]]","v":0},{"$f":"Dataset[[#This Row],[2026/27 Reduction]]+Dataset[[#This Row],[2026/27 From - Total]]","v":0},{"$f":"Dataset[[#This Row],[2023/24 Reduction]]","v":0},{"$f":"SUM(Dataset[[#This Row],[2024/25 Reduction]],Dataset[[#This Row],[2024/25 From - Total]],Dataset[[#This Row],[2024/25 To - Total]])","v":0},{"$f":"SUM(Dataset[[#This Row],[2025/26 Reduction]],Dataset[[#This Row],[2025/26 From - Total]],Dataset[[#This Row],[2025/26 To - Total]])","v":0},{"$f":"SUM(Dataset[[#This Row],[2026/27 Reduction]],Dataset[[#This Row],[2026/27 From - Total]],Dataset[[#This Row],[2026/27 To - Total]])","v":0},{"$f":"Dataset[[#This Row],[2023/24 Baseline]]+Dataset[[#This Row],[2023/24 Total change]]","v":220},{"$f":"Dataset[[#This Row],[2024/25 Baseline]]+Dataset[[#This Row],[2024/25 Total change]]","v":250},{"$f":"Dataset[[#This Row],[2025/26 Baseline]]+Dataset[[#This Row],[2025/26 Total change]]","v":280},{"$f":"Dataset[[#This Row],[2026/27 Baseline]]+Dataset[[#This Row],[2026/27 Total change]]","v":293}]
["NAT|Non-transfer item","26|Advertising","2024_25","MTEF2024",26,1,2,43968,81,"26","01","02","043968","000081","26|01|02","01","01","02","04","04","01|01|02|04|04","National","Military Veterans","Administration","Corporate Services","Non-transfer item","Current","Current payments","Goods and services","Advertising","Advertising","Peace and security","Defence and state security","NAT",920,530,812,568,4798,4798,0,2466,2483,2505,2620,null,null,null,null,null,null,null,null,null,null,null,null,null,null,null,null,null,null,null,null,null,null,null,null,null,null,null,null,null,null,null,null,null,null,{"$f":"Dataset[[#This Row],[2024/25 From - Spending review Topic 1]]+Dataset[[#This Row],[2024/25 From - Spending review Topic 2]]+Dataset[[#This Row],[2024/25 From - Spending review Topic 3]]+Dataset[[#This Row],[2024/25 From - Spending review Topic 4]]+Dataset[[#This Row],[2024/25 From - Other reallocations]]","v":0},{"$f":"Dataset[[#This Row],[2025/26 From - Spending review Topic 1]]+Dataset[[#This Row],[2025/26 From - Spending review Topic 2]]+Dataset[[#This Row],[2025/26 From - Spending review Topic 3]]+Dataset[[#This Row],[2025/26 From - Spending review Topic 4]]+Dataset[[#This Row],[2025/26 From - Other reallocations]]","v":0},{"$f":"Dataset[[#This Row],[2026/27 From - Spending review Topic 1]]+Dataset[[#This Row],[2026/27 From - Spending review Topic 2]]+Dataset[[#This Row],[2026/27 From - Spending review Topic 3]]+Dataset[[#This Row],[2026/27 From - Spending review Topic 4]]+Dataset[[#This Row],[2026/27 From - Other reallocations]]","v":0},{"$f":"Dataset[[#This Row],[2024/25 To - Spending review Topic 1]]+Dataset[[#This Row],[2024/25 To - Spending review Topic 2]]+Dataset[[#This Row],[2024/25 To - Spending review Topic 3]]+Dataset[[#This Row],[2024/25 To - Spending review Topic 4]]+Dataset[[#This Row],[2024/25 To - Other reallocations]]","v":0},{"$f":"Dataset[[#This Row],[2025/26 To - Spending review Topic 1]]+Dataset[[#This Row],[2025/26 To - Spending review Topic 2]]+Dataset[[#This Row],[2025/26 To - Spending review Topic 3]]+Dataset[[#This Row],[2025/26 To - Spending review Topic 4]]+Dataset[[#This Row],[2025/26 To - Other reallocations]]","v":0},{"$f":"Dataset[[#This Row],[2026/27 To - Spending review Topic 1]]+Dataset[[#This Row],[2026/27 To - Spending review Topic 2]]+Dataset[[#This Row],[2026/27 To - Spending review Topic 3]]+Dataset[[#This Row],[2026/27 To - Spending review Topic 4]]+Dataset[[#This Row],[2026/27 To - Other reallocations]]","v":0},{"$f":"Dataset[[#This Row],[2024/25 Reduction]]+Dataset[[#This Row],[2024/25 From - Total]]","v":0},{"$f":"Dataset[[#This Row],[2025/26 Reduction]]+Dataset[[#This Row],[2025/26 From - Total]]","v":0},{"$f":"Dataset[[#This Row],[2026/27 Reduction]]+Dataset[[#This Row],[2026/27 From - Total]]","v":0},{"$f":"Dataset[[#This Row],[2023/24 Reduction]]","v":0},{"$f":"SUM(Dataset[[#This Row],[2024/25 Reduction]],Dataset[[#This Row],[2024/25 From - Total]],Dataset[[#This Row],[2024/25 To - Total]])","v":0},{"$f":"SUM(Dataset[[#This Row],[2025/26 Reduction]],Dataset[[#This Row],[2025/26 From - Total]],Dataset[[#This Row],[2025/26 To - Total]])","v":0},{"$f":"SUM(Dataset[[#This Row],[2026/27 Reduction]],Dataset[[#This Row],[2026/27 From - Total]],Dataset[[#This Row],[2026/27 To - Total]])","v":0},{"$f":"Dataset[[#This Row],[2023/24 Baseline]]+Dataset[[#This Row],[2023/24 Total change]]","v":2466},{"$f":"Dataset[[#This Row],[2024/25 Baseline]]+Dataset[[#This Row],[2024/25 Total change]]","v":2483},{"$f":"Dataset[[#This Row],[2025/26 Baseline]]+Dataset[[#This Row],[2025/26 Total change]]","v":2505},{"$f":"Dataset[[#This Row],[2026/27 Baseline]]+Dataset[[#This Row],[2026/27 Total change]]","v":2620}]
["NAT|Non-transfer item","26|Minor assets","2024_25","MTEF2024",26,1,2,43969,82,"26","01","02","043969","000082","26|01|02","01","01","02","05","05","01|01|02|05|05","National","Military Veterans","Administration","Corporate Services","Non-transfer item","Current","Current payments","Goods and services","Minor assets","Minor assets","Peace and security","Defence and state security","NAT",28,3,0,76,-44,-44,0,76,100,110,115,null,null,null,null,null,null,null,null,null,null,null,null,null,null,null,null,null,null,null,null,null,null,null,null,null,null,null,null,null,null,null,null,null,null,{"$f":"Dataset[[#This Row],[2024/25 From - Spending review Topic 1]]+Dataset[[#This Row],[2024/25 From - Spending review Topic 2]]+Dataset[[#This Row],[2024/25 From - Spending review Topic 3]]+Dataset[[#This Row],[2024/25 From - Spending review Topic 4]]+Dataset[[#This Row],[2024/25 From - Other reallocations]]","v":0},{"$f":"Dataset[[#This Row],[2025/26 From - Spending review Topic 1]]+Dataset[[#This Row],[2025/26 From - Spending review Topic 2]]+Dataset[[#This Row],[2025/26 From - Spending review Topic 3]]+Dataset[[#This Row],[2025/26 From - Spending review Topic 4]]+Dataset[[#This Row],[2025/26 From - Other reallocations]]","v":0},{"$f":"Dataset[[#This Row],[2026/27 From - Spending review Topic 1]]+Dataset[[#This Row],[2026/27 From - Spending review Topic 2]]+Dataset[[#This Row],[2026/27 From - Spending review Topic 3]]+Dataset[[#This Row],[2026/27 From - Spending review Topic 4]]+Dataset[[#This Row],[2026/27 From - Other reallocations]]","v":0},{"$f":"Dataset[[#This Row],[2024/25 To - Spending review Topic 1]]+Dataset[[#This Row],[2024/25 To - Spending review Topic 2]]+Dataset[[#This Row],[2024/25 To - Spending review Topic 3]]+Dataset[[#This Row],[2024/25 To - Spending review Topic 4]]+Dataset[[#This Row],[2024/25 To - Other reallocations]]","v":0},{"$f":"Dataset[[#This Row],[2025/26 To - Spending review Topic 1]]+Dataset[[#This Row],[2025/26 To - Spending review Topic 2]]+Dataset[[#This Row],[2025/26 To - Spending review Topic 3]]+Dataset[[#This Row],[2025/26 To - Spending review Topic 4]]+Dataset[[#This Row],[2025/26 To - Other reallocations]]","v":0},{"$f":"Dataset[[#This Row],[2026/27 To - Spending review Topic 1]]+Dataset[[#This Row],[2026/27 To - Spending review Topic 2]]+Dataset[[#This Row],[2026/27 To - Spending review Topic 3]]+Dataset[[#This Row],[2026/27 To - Spending review Topic 4]]+Dataset[[#This Row],[2026/27 To - Other reallocations]]","v":0},{"$f":"Dataset[[#This Row],[2024/25 Reduction]]+Dataset[[#This Row],[2024/25 From - Total]]","v":0},{"$f":"Dataset[[#This Row],[2025/26 Reduction]]+Dataset[[#This Row],[2025/26 From - Total]]","v":0},{"$f":"Dataset[[#This Row],[2026/27 Reduction]]+Dataset[[#This Row],[2026/27 From - Total]]","v":0},{"$f":"Dataset[[#This Row],[2023/24 Reduction]]","v":0},{"$f":"SUM(Dataset[[#This Row],[2024/25 Reduction]],Dataset[[#This Row],[2024/25 From - Total]],Dataset[[#This Row],[2024/25 To - Total]])","v":0},{"$f":"SUM(Dataset[[#This Row],[2025/26 Reduction]],Dataset[[#This Row],[2025/26 From - Total]],Dataset[[#This Row],[2025/26 To - Total]])","v":0},{"$f":"SUM(Dataset[[#This Row],[2026/27 Reduction]],Dataset[[#This Row],[2026/27 From - Total]],Dataset[[#This Row],[2026/27 To - Total]])","v":0},{"$f":"Dataset[[#This Row],[2023/24 Baseline]]+Dataset[[#This Row],[2023/24 Total change]]","v":76},{"$f":"Dataset[[#This Row],[2024/25 Baseline]]+Dataset[[#This Row],[2024/25 Total change]]","v":100},{"$f":"Dataset[[#This Row],[2025/26 Baseline]]+Dataset[[#This Row],[2025/26 Total change]]","v":110},{"$f":"Dataset[[#This Row],[2026/27 Baseline]]+Dataset[[#This Row],[2026/27 Total change]]","v":115}]
["NAT|Non-transfer item","26|Audit costs: External","2024_25","MTEF2024",26,1,2,43970,83,"26","01","02","043970","000083","26|01|02","01","01","02","06","06","01|01|02|06|06","National","Military Veterans","Administration","Corporate Services","Non-transfer item","Current","Current payments","Goods and services","Audit costs: External","Audit costs: External","Peace and security","Defence and state security","NAT",54,0,1080,0,0,0,0,0,0,0,0,null,null,null,null,null,null,null,null,null,null,null,null,null,null,null,null,null,null,null,null,null,null,null,null,null,null,null,null,null,null,null,null,null,null,{"$f":"Dataset[[#This Row],[2024/25 From - Spending review Topic 1]]+Dataset[[#This Row],[2024/25 From - Spending review Topic 2]]+Dataset[[#This Row],[2024/25 From - Spending review Topic 3]]+Dataset[[#This Row],[2024/25 From - Spending review Topic 4]]+Dataset[[#This Row],[2024/25 From - Other reallocations]]","v":0},{"$f":"Dataset[[#This Row],[2025/26 From - Spending review Topic 1]]+Dataset[[#This Row],[2025/26 From - Spending review Topic 2]]+Dataset[[#This Row],[2025/26 From - Spending review Topic 3]]+Dataset[[#This Row],[2025/26 From - Spending review Topic 4]]+Dataset[[#This Row],[2025/26 From - Other reallocations]]","v":0},{"$f":"Dataset[[#This Row],[2026/27 From - Spending review Topic 1]]+Dataset[[#This Row],[2026/27 From - Spending review Topic 2]]+Dataset[[#This Row],[2026/27 From - Spending review Topic 3]]+Dataset[[#This Row],[2026/27 From - Spending review Topic 4]]+Dataset[[#This Row],[2026/27 From - Other reallocations]]","v":0},{"$f":"Dataset[[#This Row],[2024/25 To - Spending review Topic 1]]+Dataset[[#This Row],[2024/25 To - Spending review Topic 2]]+Dataset[[#This Row],[2024/25 To - Spending review Topic 3]]+Dataset[[#This Row],[2024/25 To - Spending review Topic 4]]+Dataset[[#This Row],[2024/25 To - Other reallocations]]","v":0},{"$f":"Dataset[[#This Row],[2025/26 To - Spending review Topic 1]]+Dataset[[#This Row],[2025/26 To - Spending review Topic 2]]+Dataset[[#This Row],[2025/26 To - Spending review Topic 3]]+Dataset[[#This Row],[2025/26 To - Spending review Topic 4]]+Dataset[[#This Row],[2025/26 To - Other reallocations]]","v":0},{"$f":"Dataset[[#This Row],[2026/27 To - Spending review Topic 1]]+Dataset[[#This Row],[2026/27 To - Spending review Topic 2]]+Dataset[[#This Row],[2026/27 To - Spending review Topic 3]]+Dataset[[#This Row],[2026/27 To - Spending review Topic 4]]+Dataset[[#This Row],[2026/27 To - Other reallocations]]","v":0},{"$f":"Dataset[[#This Row],[2024/25 Reduction]]+Dataset[[#This Row],[2024/25 From - Total]]","v":0},{"$f":"Dataset[[#This Row],[2025/26 Reduction]]+Dataset[[#This Row],[2025/26 From - Total]]","v":0},{"$f":"Dataset[[#This Row],[2026/27 Reduction]]+Dataset[[#This Row],[2026/27 From - Total]]","v":0},{"$f":"Dataset[[#This Row],[2023/24 Reduction]]","v":0},{"$f":"SUM(Dataset[[#This Row],[2024/25 Reduction]],Dataset[[#This Row],[2024/25 From - Total]],Dataset[[#This Row],[2024/25 To - Total]])","v":0},{"$f":"SUM(Dataset[[#This Row],[2025/26 Reduction]],Dataset[[#This Row],[2025/26 From - Total]],Dataset[[#This Row],[2025/26 To - Total]])","v":0},{"$f":"SUM(Dataset[[#This Row],[2026/27 Reduction]],Dataset[[#This Row],[2026/27 From - Total]],Dataset[[#This Row],[2026/27 To - Total]])","v":0},{"$f":"Dataset[[#This Row],[2023/24 Baseline]]+Dataset[[#This Row],[2023/24 Total change]]","v":0},{"$f":"Dataset[[#This Row],[2024/25 Baseline]]+Dataset[[#This Row],[2024/25 Total change]]","v":0},{"$f":"Dataset[[#This Row],[2025/26 Baseline]]+Dataset[[#This Row],[2025/26 Total change]]","v":0},{"$f":"Dataset[[#This Row],[2026/27 Baseline]]+Dataset[[#This Row],[2026/27 Total change]]","v":0}]
["NAT|Non-transfer item","26|Bursaries: Employees","2024_25","MTEF2024",26,1,2,43971,84,"26","01","02","043971","000084","26|01|02","01","01","02","07","07","01|01|02|07|07","National","Military Veterans","Administration","Corporate Services","Non-transfer item","Current","Current payments","Goods and services","Bursaries: Employees","Bursaries: Employees","Peace and security","Defence and state security","NAT",293,175,758,599,599,599,0,600,623,651,681,null,null,null,null,null,null,null,null,null,null,null,null,null,null,null,null,null,null,null,null,null,null,null,null,null,null,null,null,null,null,null,null,null,null,{"$f":"Dataset[[#This Row],[2024/25 From - Spending review Topic 1]]+Dataset[[#This Row],[2024/25 From - Spending review Topic 2]]+Dataset[[#This Row],[2024/25 From - Spending review Topic 3]]+Dataset[[#This Row],[2024/25 From - Spending review Topic 4]]+Dataset[[#This Row],[2024/25 From - Other reallocations]]","v":0},{"$f":"Dataset[[#This Row],[2025/26 From - Spending review Topic 1]]+Dataset[[#This Row],[2025/26 From - Spending review Topic 2]]+Dataset[[#This Row],[2025/26 From - Spending review Topic 3]]+Dataset[[#This Row],[2025/26 From - Spending review Topic 4]]+Dataset[[#This Row],[2025/26 From - Other reallocations]]","v":0},{"$f":"Dataset[[#This Row],[2026/27 From - Spending review Topic 1]]+Dataset[[#This Row],[2026/27 From - Spending review Topic 2]]+Dataset[[#This Row],[2026/27 From - Spending review Topic 3]]+Dataset[[#This Row],[2026/27 From - Spending review Topic 4]]+Dataset[[#This Row],[2026/27 From - Other reallocations]]","v":0},{"$f":"Dataset[[#This Row],[2024/25 To - Spending review Topic 1]]+Dataset[[#This Row],[2024/25 To - Spending review Topic 2]]+Dataset[[#This Row],[2024/25 To - Spending review Topic 3]]+Dataset[[#This Row],[2024/25 To - Spending review Topic 4]]+Dataset[[#This Row],[2024/25 To - Other reallocations]]","v":0},{"$f":"Dataset[[#This Row],[2025/26 To - Spending review Topic 1]]+Dataset[[#This Row],[2025/26 To - Spending review Topic 2]]+Dataset[[#This Row],[2025/26 To - Spending review Topic 3]]+Dataset[[#This Row],[2025/26 To - Spending review Topic 4]]+Dataset[[#This Row],[2025/26 To - Other reallocations]]","v":0},{"$f":"Dataset[[#This Row],[2026/27 To - Spending review Topic 1]]+Dataset[[#This Row],[2026/27 To - Spending review Topic 2]]+Dataset[[#This Row],[2026/27 To - Spending review Topic 3]]+Dataset[[#This Row],[2026/27 To - Spending review Topic 4]]+Dataset[[#This Row],[2026/27 To - Other reallocations]]","v":0},{"$f":"Dataset[[#This Row],[2024/25 Reduction]]+Dataset[[#This Row],[2024/25 From - Total]]","v":0},{"$f":"Dataset[[#This Row],[2025/26 Reduction]]+Dataset[[#This Row],[2025/26 From - Total]]","v":0},{"$f":"Dataset[[#This Row],[2026/27 Reduction]]+Dataset[[#This Row],[2026/27 From - Total]]","v":0},{"$f":"Dataset[[#This Row],[2023/24 Reduction]]","v":0},{"$f":"SUM(Dataset[[#This Row],[2024/25 Reduction]],Dataset[[#This Row],[2024/25 From - Total]],Dataset[[#This Row],[2024/25 To - Total]])","v":0},{"$f":"SUM(Dataset[[#This Row],[2025/26 Reduction]],Dataset[[#This Row],[2025/26 From - Total]],Dataset[[#This Row],[2025/26 To - Total]])","v":0},{"$f":"SUM(Dataset[[#This Row],[2026/27 Reduction]],Dataset[[#This Row],[2026/27 From - Total]],Dataset[[#This Row],[2026/27 To - Total]])","v":0},{"$f":"Dataset[[#This Row],[2023/24 Baseline]]+Dataset[[#This Row],[2023/24 Total change]]","v":600},{"$f":"Dataset[[#This Row],[2024/25 Baseline]]+Dataset[[#This Row],[2024/25 Total change]]","v":623},{"$f":"Dataset[[#This Row],[2025/26 Baseline]]+Dataset[[#This Row],[2025/26 Total change]]","v":651},{"$f":"Dataset[[#This Row],[2026/27 Baseline]]+Dataset[[#This Row],[2026/27 Total change]]","v":681}]
["NAT|Non-transfer item","26|Catering: Departmental activities","2024_25","MTEF2024",26,1,2,43972,85,"26","01","02","043972","000085","26|01|02","01","01","02","08","08","01|01|02|08|08","National","Military Veterans","Administration","Corporate Services","Non-transfer item","Current","Current payments","Goods and services","Catering: Departmental activities","Catering: Departmental activities","Peace and security","Defence and state security","NAT",2,27,23,101,-50,-50,0,80,90,100,105,null,null,null,null,null,null,null,null,null,null,null,null,null,null,null,null,null,null,null,null,null,null,null,null,null,null,null,null,null,null,null,null,null,null,{"$f":"Dataset[[#This Row],[2024/25 From - Spending review Topic 1]]+Dataset[[#This Row],[2024/25 From - Spending review Topic 2]]+Dataset[[#This Row],[2024/25 From - Spending review Topic 3]]+Dataset[[#This Row],[2024/25 From - Spending review Topic 4]]+Dataset[[#This Row],[2024/25 From - Other reallocations]]","v":0},{"$f":"Dataset[[#This Row],[2025/26 From - Spending review Topic 1]]+Dataset[[#This Row],[2025/26 From - Spending review Topic 2]]+Dataset[[#This Row],[2025/26 From - Spending review Topic 3]]+Dataset[[#This Row],[2025/26 From - Spending review Topic 4]]+Dataset[[#This Row],[2025/26 From - Other reallocations]]","v":0},{"$f":"Dataset[[#This Row],[2026/27 From - Spending review Topic 1]]+Dataset[[#This Row],[2026/27 From - Spending review Topic 2]]+Dataset[[#This Row],[2026/27 From - Spending review Topic 3]]+Dataset[[#This Row],[2026/27 From - Spending review Topic 4]]+Dataset[[#This Row],[2026/27 From - Other reallocations]]","v":0},{"$f":"Dataset[[#This Row],[2024/25 To - Spending review Topic 1]]+Dataset[[#This Row],[2024/25 To - Spending review Topic 2]]+Dataset[[#This Row],[2024/25 To - Spending review Topic 3]]+Dataset[[#This Row],[2024/25 To - Spending review Topic 4]]+Dataset[[#This Row],[2024/25 To - Other reallocations]]","v":0},{"$f":"Dataset[[#This Row],[2025/26 To - Spending review Topic 1]]+Dataset[[#This Row],[2025/26 To - Spending review Topic 2]]+Dataset[[#This Row],[2025/26 To - Spending review Topic 3]]+Dataset[[#This Row],[2025/26 To - Spending review Topic 4]]+Dataset[[#This Row],[2025/26 To - Other reallocations]]","v":0},{"$f":"Dataset[[#This Row],[2026/27 To - Spending review Topic 1]]+Dataset[[#This Row],[2026/27 To - Spending review Topic 2]]+Dataset[[#This Row],[2026/27 To - Spending review Topic 3]]+Dataset[[#This Row],[2026/27 To - Spending review Topic 4]]+Dataset[[#This Row],[2026/27 To - Other reallocations]]","v":0},{"$f":"Dataset[[#This Row],[2024/25 Reduction]]+Dataset[[#This Row],[2024/25 From - Total]]","v":0},{"$f":"Dataset[[#This Row],[2025/26 Reduction]]+Dataset[[#This Row],[2025/26 From - Total]]","v":0},{"$f":"Dataset[[#This Row],[2026/27 Reduction]]+Dataset[[#This Row],[2026/27 From - Total]]","v":0},{"$f":"Dataset[[#This Row],[2023/24 Reduction]]","v":0},{"$f":"SUM(Dataset[[#This Row],[2024/25 Reduction]],Dataset[[#This Row],[2024/25 From - Total]],Dataset[[#This Row],[2024/25 To - Total]])","v":0},{"$f":"SUM(Dataset[[#This Row],[2025/26 Reduction]],Dataset[[#This Row],[2025/26 From - Total]],Dataset[[#This Row],[2025/26 To - Total]])","v":0},{"$f":"SUM(Dataset[[#This Row],[2026/27 Reduction]],Dataset[[#This Row],[2026/27 From - Total]],Dataset[[#This Row],[2026/27 To - Total]])","v":0},{"$f":"Dataset[[#This Row],[2023/24 Baseline]]+Dataset[[#This Row],[2023/24 Total change]]","v":80},{"$f":"Dataset[[#This Row],[2024/25 Baseline]]+Dataset[[#This Row],[2024/25 Total change]]","v":90},{"$f":"Dataset[[#This Row],[2025/26 Baseline]]+Dataset[[#This Row],[2025/26 Total change]]","v":100},{"$f":"Dataset[[#This Row],[2026/27 Baseline]]+Dataset[[#This Row],[2026/27 Total change]]","v":105}]
["NAT|Non-transfer item","26|Communication (G&S)","2024_25","MTEF2024",26,1,2,43973,86,"26","01","02","043973","000086","26|01|02","01","01","02","09","09","01|01|02|09|09","National","Military Veterans","Administration","Corporate Services","Non-transfer item","Current","Current payments","Goods and services","Communication (G&S)","Communication (G&S)","Peace and security","Defence and state security","NAT",3710,3474,3431,12507,7807,7807,0,4518,5011,5594,5850,null,null,null,null,null,null,null,null,null,null,null,null,null,null,null,null,null,null,null,null,null,null,null,null,null,null,null,null,null,null,null,null,null,null,{"$f":"Dataset[[#This Row],[2024/25 From - Spending review Topic 1]]+Dataset[[#This Row],[2024/25 From - Spending review Topic 2]]+Dataset[[#This Row],[2024/25 From - Spending review Topic 3]]+Dataset[[#This Row],[2024/25 From - Spending review Topic 4]]+Dataset[[#This Row],[2024/25 From - Other reallocations]]","v":0},{"$f":"Dataset[[#This Row],[2025/26 From - Spending review Topic 1]]+Dataset[[#This Row],[2025/26 From - Spending review Topic 2]]+Dataset[[#This Row],[2025/26 From - Spending review Topic 3]]+Dataset[[#This Row],[2025/26 From - Spending review Topic 4]]+Dataset[[#This Row],[2025/26 From - Other reallocations]]","v":0},{"$f":"Dataset[[#This Row],[2026/27 From - Spending review Topic 1]]+Dataset[[#This Row],[2026/27 From - Spending review Topic 2]]+Dataset[[#This Row],[2026/27 From - Spending review Topic 3]]+Dataset[[#This Row],[2026/27 From - Spending review Topic 4]]+Dataset[[#This Row],[2026/27 From - Other reallocations]]","v":0},{"$f":"Dataset[[#This Row],[2024/25 To - Spending review Topic 1]]+Dataset[[#This Row],[2024/25 To - Spending review Topic 2]]+Dataset[[#This Row],[2024/25 To - Spending review Topic 3]]+Dataset[[#This Row],[2024/25 To - Spending review Topic 4]]+Dataset[[#This Row],[2024/25 To - Other reallocations]]","v":0},{"$f":"Dataset[[#This Row],[2025/26 To - Spending review Topic 1]]+Dataset[[#This Row],[2025/26 To - Spending review Topic 2]]+Dataset[[#This Row],[2025/26 To - Spending review Topic 3]]+Dataset[[#This Row],[2025/26 To - Spending review Topic 4]]+Dataset[[#This Row],[2025/26 To - Other reallocations]]","v":0},{"$f":"Dataset[[#This Row],[2026/27 To - Spending review Topic 1]]+Dataset[[#This Row],[2026/27 To - Spending review Topic 2]]+Dataset[[#This Row],[2026/27 To - Spending review Topic 3]]+Dataset[[#This Row],[2026/27 To - Spending review Topic 4]]+Dataset[[#This Row],[2026/27 To - Other reallocations]]","v":0},{"$f":"Dataset[[#This Row],[2024/25 Reduction]]+Dataset[[#This Row],[2024/25 From - Total]]","v":0},{"$f":"Dataset[[#This Row],[2025/26 Reduction]]+Dataset[[#This Row],[2025/26 From - Total]]","v":0},{"$f":"Dataset[[#This Row],[2026/27 Reduction]]+Dataset[[#This Row],[2026/27 From - Total]]","v":0},{"$f":"Dataset[[#This Row],[2023/24 Reduction]]","v":0},{"$f":"SUM(Dataset[[#This Row],[2024/25 Reduction]],Dataset[[#This Row],[2024/25 From - Total]],Dataset[[#This Row],[2024/25 To - Total]])","v":0},{"$f":"SUM(Dataset[[#This Row],[2025/26 Reduction]],Dataset[[#This Row],[2025/26 From - Total]],Dataset[[#This Row],[2025/26 To - Total]])","v":0},{"$f":"SUM(Dataset[[#This Row],[2026/27 Reduction]],Dataset[[#This Row],[2026/27 From - Total]],Dataset[[#This Row],[2026/27 To - Total]])","v":0},{"$f":"Dataset[[#This Row],[2023/24 Baseline]]+Dataset[[#This Row],[2023/24 Total change]]","v":4518},{"$f":"Dataset[[#This Row],[2024/25 Baseline]]+Dataset[[#This Row],[2024/25 Total change]]","v":5011},{"$f":"Dataset[[#This Row],[2025/26 Baseline]]+Dataset[[#This Row],[2025/26 Total change]]","v":5594},{"$f":"Dataset[[#This Row],[2026/27 Baseline]]+Dataset[[#This Row],[2026/27 Total change]]","v":5850}]
["NAT|Non-transfer item","26|Computer services","2024_25","MTEF2024",26,1,2,43974,87,"26","01","02","043974","000087","26|01|02","01","01","02","10","10","01|01|02|10|10","National","Military Veterans","Administration","Corporate Services","Non-transfer item","Current","Current payments","Goods and services","Computer services","Computer services","Peace and security","Defence and state security","NAT",13595,17498,11356,10455,14579,14579,0,19158,19431,19943,20857,null,null,null,null,null,null,null,null,null,null,null,null,null,null,null,null,null,null,null,null,null,null,null,null,null,null,null,null,null,null,null,null,null,null,{"$f":"Dataset[[#This Row],[2024/25 From - Spending review Topic 1]]+Dataset[[#This Row],[2024/25 From - Spending review Topic 2]]+Dataset[[#This Row],[2024/25 From - Spending review Topic 3]]+Dataset[[#This Row],[2024/25 From - Spending review Topic 4]]+Dataset[[#This Row],[2024/25 From - Other reallocations]]","v":0},{"$f":"Dataset[[#This Row],[2025/26 From - Spending review Topic 1]]+Dataset[[#This Row],[2025/26 From - Spending review Topic 2]]+Dataset[[#This Row],[2025/26 From - Spending review Topic 3]]+Dataset[[#This Row],[2025/26 From - Spending review Topic 4]]+Dataset[[#This Row],[2025/26 From - Other reallocations]]","v":0},{"$f":"Dataset[[#This Row],[2026/27 From - Spending review Topic 1]]+Dataset[[#This Row],[2026/27 From - Spending review Topic 2]]+Dataset[[#This Row],[2026/27 From - Spending review Topic 3]]+Dataset[[#This Row],[2026/27 From - Spending review Topic 4]]+Dataset[[#This Row],[2026/27 From - Other reallocations]]","v":0},{"$f":"Dataset[[#This Row],[2024/25 To - Spending review Topic 1]]+Dataset[[#This Row],[2024/25 To - Spending review Topic 2]]+Dataset[[#This Row],[2024/25 To - Spending review Topic 3]]+Dataset[[#This Row],[2024/25 To - Spending review Topic 4]]+Dataset[[#This Row],[2024/25 To - Other reallocations]]","v":0},{"$f":"Dataset[[#This Row],[2025/26 To - Spending review Topic 1]]+Dataset[[#This Row],[2025/26 To - Spending review Topic 2]]+Dataset[[#This Row],[2025/26 To - Spending review Topic 3]]+Dataset[[#This Row],[2025/26 To - Spending review Topic 4]]+Dataset[[#This Row],[2025/26 To - Other reallocations]]","v":0},{"$f":"Dataset[[#This Row],[2026/27 To - Spending review Topic 1]]+Dataset[[#This Row],[2026/27 To - Spending review Topic 2]]+Dataset[[#This Row],[2026/27 To - Spending review Topic 3]]+Dataset[[#This Row],[2026/27 To - Spending review Topic 4]]+Dataset[[#This Row],[2026/27 To - Other reallocations]]","v":0},{"$f":"Dataset[[#This Row],[2024/25 Reduction]]+Dataset[[#This Row],[2024/25 From - Total]]","v":0},{"$f":"Dataset[[#This Row],[2025/26 Reduction]]+Dataset[[#This Row],[2025/26 From - Total]]","v":0},{"$f":"Dataset[[#This Row],[2026/27 Reduction]]+Dataset[[#This Row],[2026/27 From - Total]]","v":0},{"$f":"Dataset[[#This Row],[2023/24 Reduction]]","v":0},{"$f":"SUM(Dataset[[#This Row],[2024/25 Reduction]],Dataset[[#This Row],[2024/25 From - Total]],Dataset[[#This Row],[2024/25 To - Total]])","v":0},{"$f":"SUM(Dataset[[#This Row],[2025/26 Reduction]],Dataset[[#This Row],[2025/26 From - Total]],Dataset[[#This Row],[2025/26 To - Total]])","v":0},{"$f":"SUM(Dataset[[#This Row],[2026/27 Reduction]],Dataset[[#This Row],[2026/27 From - Total]],Dataset[[#This Row],[2026/27 To - Total]])","v":0},{"$f":"Dataset[[#This Row],[2023/24 Baseline]]+Dataset[[#This Row],[2023/24 Total change]]","v":19158},{"$f":"Dataset[[#This Row],[2024/25 Baseline]]+Dataset[[#This Row],[2024/25 Total change]]","v":19431},{"$f":"Dataset[[#This Row],[2025/26 Baseline]]+Dataset[[#This Row],[2025/26 Total change]]","v":19943},{"$f":"Dataset[[#This Row],[2026/27 Baseline]]+Dataset[[#This Row],[2026/27 Total change]]","v":20857}]
["NAT|Non-transfer item","26|Consultants: Business and advisory services","2024_25","MTEF2024",26,1,2,43975,88,"26","01","02","043975","000088","26|01|02","01","01","02","11","11","01|01|02|11|11","National","Military Veterans","Administration","Corporate Services","Non-transfer item","Current","Current payments","Goods and services","Consultants: Business and advisory services","Consultants: Business and advisory services","Peace and security","Defence and state security","NAT",137,53,94,3738,2838,2838,0,1744,1810,2167,2266,null,null,null,null,null,null,null,null,null,null,null,null,null,null,null,null,null,null,null,null,null,null,null,null,null,null,null,null,null,null,null,null,null,null,{"$f":"Dataset[[#This Row],[2024/25 From - Spending review Topic 1]]+Dataset[[#This Row],[2024/25 From - Spending review Topic 2]]+Dataset[[#This Row],[2024/25 From - Spending review Topic 3]]+Dataset[[#This Row],[2024/25 From - Spending review Topic 4]]+Dataset[[#This Row],[2024/25 From - Other reallocations]]","v":0},{"$f":"Dataset[[#This Row],[2025/26 From - Spending review Topic 1]]+Dataset[[#This Row],[2025/26 From - Spending review Topic 2]]+Dataset[[#This Row],[2025/26 From - Spending review Topic 3]]+Dataset[[#This Row],[2025/26 From - Spending review Topic 4]]+Dataset[[#This Row],[2025/26 From - Other reallocations]]","v":0},{"$f":"Dataset[[#This Row],[2026/27 From - Spending review Topic 1]]+Dataset[[#This Row],[2026/27 From - Spending review Topic 2]]+Dataset[[#This Row],[2026/27 From - Spending review Topic 3]]+Dataset[[#This Row],[2026/27 From - Spending review Topic 4]]+Dataset[[#This Row],[2026/27 From - Other reallocations]]","v":0},{"$f":"Dataset[[#This Row],[2024/25 To - Spending review Topic 1]]+Dataset[[#This Row],[2024/25 To - Spending review Topic 2]]+Dataset[[#This Row],[2024/25 To - Spending review Topic 3]]+Dataset[[#This Row],[2024/25 To - Spending review Topic 4]]+Dataset[[#This Row],[2024/25 To - Other reallocations]]","v":0},{"$f":"Dataset[[#This Row],[2025/26 To - Spending review Topic 1]]+Dataset[[#This Row],[2025/26 To - Spending review Topic 2]]+Dataset[[#This Row],[2025/26 To - Spending review Topic 3]]+Dataset[[#This Row],[2025/26 To - Spending review Topic 4]]+Dataset[[#This Row],[2025/26 To - Other reallocations]]","v":0},{"$f":"Dataset[[#This Row],[2026/27 To - Spending review Topic 1]]+Dataset[[#This Row],[2026/27 To - Spending review Topic 2]]+Dataset[[#This Row],[2026/27 To - Spending review Topic 3]]+Dataset[[#This Row],[2026/27 To - Spending review Topic 4]]+Dataset[[#This Row],[2026/27 To - Other reallocations]]","v":0},{"$f":"Dataset[[#This Row],[2024/25 Reduction]]+Dataset[[#This Row],[2024/25 From - Total]]","v":0},{"$f":"Dataset[[#This Row],[2025/26 Reduction]]+Dataset[[#This Row],[2025/26 From - Total]]","v":0},{"$f":"Dataset[[#This Row],[2026/27 Reduction]]+Dataset[[#This Row],[2026/27 From - Total]]","v":0},{"$f":"Dataset[[#This Row],[2023/24 Reduction]]","v":0},{"$f":"SUM(Dataset[[#This Row],[2024/25 Reduction]],Dataset[[#This Row],[2024/25 From - Total]],Dataset[[#This Row],[2024/25 To - Total]])","v":0},{"$f":"SUM(Dataset[[#This Row],[2025/26 Reduction]],Dataset[[#This Row],[2025/26 From - Total]],Dataset[[#This Row],[2025/26 To - Total]])","v":0},{"$f":"SUM(Dataset[[#This Row],[2026/27 Reduction]],Dataset[[#This Row],[2026/27 From - Total]],Dataset[[#This Row],[2026/27 To - Total]])","v":0},{"$f":"Dataset[[#This Row],[2023/24 Baseline]]+Dataset[[#This Row],[2023/24 Total change]]","v":1744},{"$f":"Dataset[[#This Row],[2024/25 Baseline]]+Dataset[[#This Row],[2024/25 Total change]]","v":1810},{"$f":"Dataset[[#This Row],[2025/26 Baseline]]+Dataset[[#This Row],[2025/26 Total change]]","v":2167},{"$f":"Dataset[[#This Row],[2026/27 Baseline]]+Dataset[[#This Row],[2026/27 Total change]]","v":2266}]
["NAT|Non-transfer item","26|Infrastructure and planning services","2024_25","MTEF2024",26,1,2,43976,89,"26","01","02","043976","000089","26|01|02","01","01","02","12","12","01|01|02|12|12","National","Military Veterans","Administration","Corporate Services","Non-transfer item","Current","Current payments","Goods and services","Infrastructure and planning services","Infrastructure and planning services","Peace and security","Defence and state security","NAT",0,0,0,0,0,0,0,0,0,0,0,null,null,null,null,null,null,null,null,null,null,null,null,null,null,null,null,null,null,null,null,null,null,null,null,null,null,null,null,null,null,null,null,null,null,{"$f":"Dataset[[#This Row],[2024/25 From - Spending review Topic 1]]+Dataset[[#This Row],[2024/25 From - Spending review Topic 2]]+Dataset[[#This Row],[2024/25 From - Spending review Topic 3]]+Dataset[[#This Row],[2024/25 From - Spending review Topic 4]]+Dataset[[#This Row],[2024/25 From - Other reallocations]]","v":0},{"$f":"Dataset[[#This Row],[2025/26 From - Spending review Topic 1]]+Dataset[[#This Row],[2025/26 From - Spending review Topic 2]]+Dataset[[#This Row],[2025/26 From - Spending review Topic 3]]+Dataset[[#This Row],[2025/26 From - Spending review Topic 4]]+Dataset[[#This Row],[2025/26 From - Other reallocations]]","v":0},{"$f":"Dataset[[#This Row],[2026/27 From - Spending review Topic 1]]+Dataset[[#This Row],[2026/27 From - Spending review Topic 2]]+Dataset[[#This Row],[2026/27 From - Spending review Topic 3]]+Dataset[[#This Row],[2026/27 From - Spending review Topic 4]]+Dataset[[#This Row],[2026/27 From - Other reallocations]]","v":0},{"$f":"Dataset[[#This Row],[2024/25 To - Spending review Topic 1]]+Dataset[[#This Row],[2024/25 To - Spending review Topic 2]]+Dataset[[#This Row],[2024/25 To - Spending review Topic 3]]+Dataset[[#This Row],[2024/25 To - Spending review Topic 4]]+Dataset[[#This Row],[2024/25 To - Other reallocations]]","v":0},{"$f":"Dataset[[#This Row],[2025/26 To - Spending review Topic 1]]+Dataset[[#This Row],[2025/26 To - Spending review Topic 2]]+Dataset[[#This Row],[2025/26 To - Spending review Topic 3]]+Dataset[[#This Row],[2025/26 To - Spending review Topic 4]]+Dataset[[#This Row],[2025/26 To - Other reallocations]]","v":0},{"$f":"Dataset[[#This Row],[2026/27 To - Spending review Topic 1]]+Dataset[[#This Row],[2026/27 To - Spending review Topic 2]]+Dataset[[#This Row],[2026/27 To - Spending review Topic 3]]+Dataset[[#This Row],[2026/27 To - Spending review Topic 4]]+Dataset[[#This Row],[2026/27 To - Other reallocations]]","v":0},{"$f":"Dataset[[#This Row],[2024/25 Reduction]]+Dataset[[#This Row],[2024/25 From - Total]]","v":0},{"$f":"Dataset[[#This Row],[2025/26 Reduction]]+Dataset[[#This Row],[2025/26 From - Total]]","v":0},{"$f":"Dataset[[#This Row],[2026/27 Reduction]]+Dataset[[#This Row],[2026/27 From - Total]]","v":0},{"$f":"Dataset[[#This Row],[2023/24 Reduction]]","v":0},{"$f":"SUM(Dataset[[#This Row],[2024/25 Reduction]],Dataset[[#This Row],[2024/25 From - Total]],Dataset[[#This Row],[2024/25 To - Total]])","v":0},{"$f":"SUM(Dataset[[#This Row],[2025/26 Reduction]],Dataset[[#This Row],[2025/26 From - Total]],Dataset[[#This Row],[2025/26 To - Total]])","v":0},{"$f":"SUM(Dataset[[#This Row],[2026/27 Reduction]],Dataset[[#This Row],[2026/27 From - Total]],Dataset[[#This Row],[2026/27 To - Total]])","v":0},{"$f":"Dataset[[#This Row],[2023/24 Baseline]]+Dataset[[#This Row],[2023/24 Total change]]","v":0},{"$f":"Dataset[[#This Row],[2024/25 Baseline]]+Dataset[[#This Row],[2024/25 Total change]]","v":0},{"$f":"Dataset[[#This Row],[2025/26 Baseline]]+Dataset[[#This Row],[2025/26 Total change]]","v":0},{"$f":"Dataset[[#This Row],[2026/27 Baseline]]+Dataset[[#This Row],[2026/27 Total change]]","v":0}]
["NAT|Non-transfer item","26|Laboratory services","2024_25","MTEF2024",26,1,2,43977,90,"26","01","02","043977","000090","26|01|02","01","01","02","13","13","01|01|02|13|13","National","Military Veterans","Administration","Corporate Services","Non-transfer item","Current","Current payments","Goods and services","Laboratory services","Laboratory services","Peace and security","Defence and state security","NAT",0,0,0,0,0,0,0,0,0,0,0,null,null,null,null,null,null,null,null,null,null,null,null,null,null,null,null,null,null,null,null,null,null,null,null,null,null,null,null,null,null,null,null,null,null,{"$f":"Dataset[[#This Row],[2024/25 From - Spending review Topic 1]]+Dataset[[#This Row],[2024/25 From - Spending review Topic 2]]+Dataset[[#This Row],[2024/25 From - Spending review Topic 3]]+Dataset[[#This Row],[2024/25 From - Spending review Topic 4]]+Dataset[[#This Row],[2024/25 From - Other reallocations]]","v":0},{"$f":"Dataset[[#This Row],[2025/26 From - Spending review Topic 1]]+Dataset[[#This Row],[2025/26 From - Spending review Topic 2]]+Dataset[[#This Row],[2025/26 From - Spending review Topic 3]]+Dataset[[#This Row],[2025/26 From - Spending review Topic 4]]+Dataset[[#This Row],[2025/26 From - Other reallocations]]","v":0},{"$f":"Dataset[[#This Row],[2026/27 From - Spending review Topic 1]]+Dataset[[#This Row],[2026/27 From - Spending review Topic 2]]+Dataset[[#This Row],[2026/27 From - Spending review Topic 3]]+Dataset[[#This Row],[2026/27 From - Spending review Topic 4]]+Dataset[[#This Row],[2026/27 From - Other reallocations]]","v":0},{"$f":"Dataset[[#This Row],[2024/25 To - Spending review Topic 1]]+Dataset[[#This Row],[2024/25 To - Spending review Topic 2]]+Dataset[[#This Row],[2024/25 To - Spending review Topic 3]]+Dataset[[#This Row],[2024/25 To - Spending review Topic 4]]+Dataset[[#This Row],[2024/25 To - Other reallocations]]","v":0},{"$f":"Dataset[[#This Row],[2025/26 To - Spending review Topic 1]]+Dataset[[#This Row],[2025/26 To - Spending review Topic 2]]+Dataset[[#This Row],[2025/26 To - Spending review Topic 3]]+Dataset[[#This Row],[2025/26 To - Spending review Topic 4]]+Dataset[[#This Row],[2025/26 To - Other reallocations]]","v":0},{"$f":"Dataset[[#This Row],[2026/27 To - Spending review Topic 1]]+Dataset[[#This Row],[2026/27 To - Spending review Topic 2]]+Dataset[[#This Row],[2026/27 To - Spending review Topic 3]]+Dataset[[#This Row],[2026/27 To - Spending review Topic 4]]+Dataset[[#This Row],[2026/27 To - Other reallocations]]","v":0},{"$f":"Dataset[[#This Row],[2024/25 Reduction]]+Dataset[[#This Row],[2024/25 From - Total]]","v":0},{"$f":"Dataset[[#This Row],[2025/26 Reduction]]+Dataset[[#This Row],[2025/26 From - Total]]","v":0},{"$f":"Dataset[[#This Row],[2026/27 Reduction]]+Dataset[[#This Row],[2026/27 From - Total]]","v":0},{"$f":"Dataset[[#This Row],[2023/24 Reduction]]","v":0},{"$f":"SUM(Dataset[[#This Row],[2024/25 Reduction]],Dataset[[#This Row],[2024/25 From - Total]],Dataset[[#This Row],[2024/25 To - Total]])","v":0},{"$f":"SUM(Dataset[[#This Row],[2025/26 Reduction]],Dataset[[#This Row],[2025/26 From - Total]],Dataset[[#This Row],[2025/26 To - Total]])","v":0},{"$f":"SUM(Dataset[[#This Row],[2026/27 Reduction]],Dataset[[#This Row],[2026/27 From - Total]],Dataset[[#This Row],[2026/27 To - Total]])","v":0},{"$f":"Dataset[[#This Row],[2023/24 Baseline]]+Dataset[[#This Row],[2023/24 Total change]]","v":0},{"$f":"Dataset[[#This Row],[2024/25 Baseline]]+Dataset[[#This Row],[2024/25 Total change]]","v":0},{"$f":"Dataset[[#This Row],[2025/26 Baseline]]+Dataset[[#This Row],[2025/26 Total change]]","v":0},{"$f":"Dataset[[#This Row],[2026/27 Baseline]]+Dataset[[#This Row],[2026/27 Total change]]","v":0}]
["NAT|Non-transfer item","26|Legal services (G&S)","2024_25","MTEF2024",26,1,2,43978,91,"26","01","02","043978","000091","26|01|02","01","01","02","14","14","01|01|02|14|14","National","Military Veterans","Administration","Corporate Services","Non-transfer item","Current","Current payments","Goods and services","Legal services (G&S)","Legal services (G&S)","Peace and security","Defence and state security","NAT",1411,457,1016,5261,5261,5261,0,3266,3473,3718,3888,null,null,null,null,null,null,null,null,null,null,null,null,null,null,null,null,null,null,null,null,null,null,null,null,null,null,null,null,null,null,null,null,null,null,{"$f":"Dataset[[#This Row],[2024/25 From - Spending review Topic 1]]+Dataset[[#This Row],[2024/25 From - Spending review Topic 2]]+Dataset[[#This Row],[2024/25 From - Spending review Topic 3]]+Dataset[[#This Row],[2024/25 From - Spending review Topic 4]]+Dataset[[#This Row],[2024/25 From - Other reallocations]]","v":0},{"$f":"Dataset[[#This Row],[2025/26 From - Spending review Topic 1]]+Dataset[[#This Row],[2025/26 From - Spending review Topic 2]]+Dataset[[#This Row],[2025/26 From - Spending review Topic 3]]+Dataset[[#This Row],[2025/26 From - Spending review Topic 4]]+Dataset[[#This Row],[2025/26 From - Other reallocations]]","v":0},{"$f":"Dataset[[#This Row],[2026/27 From - Spending review Topic 1]]+Dataset[[#This Row],[2026/27 From - Spending review Topic 2]]+Dataset[[#This Row],[2026/27 From - Spending review Topic 3]]+Dataset[[#This Row],[2026/27 From - Spending review Topic 4]]+Dataset[[#This Row],[2026/27 From - Other reallocations]]","v":0},{"$f":"Dataset[[#This Row],[2024/25 To - Spending review Topic 1]]+Dataset[[#This Row],[2024/25 To - Spending review Topic 2]]+Dataset[[#This Row],[2024/25 To - Spending review Topic 3]]+Dataset[[#This Row],[2024/25 To - Spending review Topic 4]]+Dataset[[#This Row],[2024/25 To - Other reallocations]]","v":0},{"$f":"Dataset[[#This Row],[2025/26 To - Spending review Topic 1]]+Dataset[[#This Row],[2025/26 To - Spending review Topic 2]]+Dataset[[#This Row],[2025/26 To - Spending review Topic 3]]+Dataset[[#This Row],[2025/26 To - Spending review Topic 4]]+Dataset[[#This Row],[2025/26 To - Other reallocations]]","v":0},{"$f":"Dataset[[#This Row],[2026/27 To - Spending review Topic 1]]+Dataset[[#This Row],[2026/27 To - Spending review Topic 2]]+Dataset[[#This Row],[2026/27 To - Spending review Topic 3]]+Dataset[[#This Row],[2026/27 To - Spending review Topic 4]]+Dataset[[#This Row],[2026/27 To - Other reallocations]]","v":0},{"$f":"Dataset[[#This Row],[2024/25 Reduction]]+Dataset[[#This Row],[2024/25 From - Total]]","v":0},{"$f":"Dataset[[#This Row],[2025/26 Reduction]]+Dataset[[#This Row],[2025/26 From - Total]]","v":0},{"$f":"Dataset[[#This Row],[2026/27 Reduction]]+Dataset[[#This Row],[2026/27 From - Total]]","v":0},{"$f":"Dataset[[#This Row],[2023/24 Reduction]]","v":0},{"$f":"SUM(Dataset[[#This Row],[2024/25 Reduction]],Dataset[[#This Row],[2024/25 From - Total]],Dataset[[#This Row],[2024/25 To - Total]])","v":0},{"$f":"SUM(Dataset[[#This Row],[2025/26 Reduction]],Dataset[[#This Row],[2025/26 From - Total]],Dataset[[#This Row],[2025/26 To - Total]])","v":0},{"$f":"SUM(Dataset[[#This Row],[2026/27 Reduction]],Dataset[[#This Row],[2026/27 From - Total]],Dataset[[#This Row],[2026/27 To - Total]])","v":0},{"$f":"Dataset[[#This Row],[2023/24 Baseline]]+Dataset[[#This Row],[2023/24 Total change]]","v":3266},{"$f":"Dataset[[#This Row],[2024/25 Baseline]]+Dataset[[#This Row],[2024/25 Total change]]","v":3473},{"$f":"Dataset[[#This Row],[2025/26 Baseline]]+Dataset[[#This Row],[2025/26 Total change]]","v":3718},{"$f":"Dataset[[#This Row],[2026/27 Baseline]]+Dataset[[#This Row],[2026/27 Total change]]","v":3888}]
["NAT|Non-transfer item","26|Science and technological services","2024_25","MTEF2024",26,1,2,43979,92,"26","01","02","043979","000092","26|01|02","01","01","02","15","15","01|01|02|15|15","National","Military Veterans","Administration","Corporate Services","Non-transfer item","Current","Current payments","Goods and services","Science and technological services","Science and technological services","Peace and security","Defence and state security","NAT",0,0,0,0,0,0,0,0,0,0,0,null,null,null,null,null,null,null,null,null,null,null,null,null,null,null,null,null,null,null,null,null,null,null,null,null,null,null,null,null,null,null,null,null,null,{"$f":"Dataset[[#This Row],[2024/25 From - Spending review Topic 1]]+Dataset[[#This Row],[2024/25 From - Spending review Topic 2]]+Dataset[[#This Row],[2024/25 From - Spending review Topic 3]]+Dataset[[#This Row],[2024/25 From - Spending review Topic 4]]+Dataset[[#This Row],[2024/25 From - Other reallocations]]","v":0},{"$f":"Dataset[[#This Row],[2025/26 From - Spending review Topic 1]]+Dataset[[#This Row],[2025/26 From - Spending review Topic 2]]+Dataset[[#This Row],[2025/26 From - Spending review Topic 3]]+Dataset[[#This Row],[2025/26 From - Spending review Topic 4]]+Dataset[[#This Row],[2025/26 From - Other reallocations]]","v":0},{"$f":"Dataset[[#This Row],[2026/27 From - Spending review Topic 1]]+Dataset[[#This Row],[2026/27 From - Spending review Topic 2]]+Dataset[[#This Row],[2026/27 From - Spending review Topic 3]]+Dataset[[#This Row],[2026/27 From - Spending review Topic 4]]+Dataset[[#This Row],[2026/27 From - Other reallocations]]","v":0},{"$f":"Dataset[[#This Row],[2024/25 To - Spending review Topic 1]]+Dataset[[#This Row],[2024/25 To - Spending review Topic 2]]+Dataset[[#This Row],[2024/25 To - Spending review Topic 3]]+Dataset[[#This Row],[2024/25 To - Spending review Topic 4]]+Dataset[[#This Row],[2024/25 To - Other reallocations]]","v":0},{"$f":"Dataset[[#This Row],[2025/26 To - Spending review Topic 1]]+Dataset[[#This Row],[2025/26 To - Spending review Topic 2]]+Dataset[[#This Row],[2025/26 To - Spending review Topic 3]]+Dataset[[#This Row],[2025/26 To - Spending review Topic 4]]+Dataset[[#This Row],[2025/26 To - Other reallocations]]","v":0},{"$f":"Dataset[[#This Row],[2026/27 To - Spending review Topic 1]]+Dataset[[#This Row],[2026/27 To - Spending review Topic 2]]+Dataset[[#This Row],[2026/27 To - Spending review Topic 3]]+Dataset[[#This Row],[2026/27 To - Spending review Topic 4]]+Dataset[[#This Row],[2026/27 To - Other reallocations]]","v":0},{"$f":"Dataset[[#This Row],[2024/25 Reduction]]+Dataset[[#This Row],[2024/25 From - Total]]","v":0},{"$f":"Dataset[[#This Row],[2025/26 Reduction]]+Dataset[[#This Row],[2025/26 From - Total]]","v":0},{"$f":"Dataset[[#This Row],[2026/27 Reduction]]+Dataset[[#This Row],[2026/27 From - Total]]","v":0},{"$f":"Dataset[[#This Row],[2023/24 Reduction]]","v":0},{"$f":"SUM(Dataset[[#This Row],[2024/25 Reduction]],Dataset[[#This Row],[2024/25 From - Total]],Dataset[[#This Row],[2024/25 To - Total]])","v":0},{"$f":"SUM(Dataset[[#This Row],[2025/26 Reduction]],Dataset[[#This Row],[2025/26 From - Total]],Dataset[[#This Row],[2025/26 To - Total]])","v":0},{"$f":"SUM(Dataset[[#This Row],[2026/27 Reduction]],Dataset[[#This Row],[2026/27 From - Total]],Dataset[[#This Row],[2026/27 To - Total]])","v":0},{"$f":"Dataset[[#This Row],[2023/24 Baseline]]+Dataset[[#This Row],[2023/24 Total change]]","v":0},{"$f":"Dataset[[#This Row],[2024/25 Baseline]]+Dataset[[#This Row],[2024/25 Total change]]","v":0},{"$f":"Dataset[[#This Row],[2025/26 Baseline]]+Dataset[[#This Row],[2025/26 Total change]]","v":0},{"$f":"Dataset[[#This Row],[2026/27 Baseline]]+Dataset[[#This Row],[2026/27 Total change]]","v":0}]
["NAT|Non-transfer item","26|Contractors","2024_25","MTEF2024",26,1,2,43980,93,"26","01","02","043980","000093","26|01|02","01","01","02","16","16","01|01|02|16|16","National","Military Veterans","Administration","Corporate Services","Non-transfer item","Current","Current payments","Goods and services","Contractors","Contractors","Peace and security","Defence and state security","NAT",3,13,38,2450,5441,5441,0,454,149,178,186,null,null,null,null,null,null,null,null,null,null,null,null,null,null,null,null,null,null,null,null,null,null,null,null,null,null,null,null,null,null,null,null,null,null,{"$f":"Dataset[[#This Row],[2024/25 From - Spending review Topic 1]]+Dataset[[#This Row],[2024/25 From - Spending review Topic 2]]+Dataset[[#This Row],[2024/25 From - Spending review Topic 3]]+Dataset[[#This Row],[2024/25 From - Spending review Topic 4]]+Dataset[[#This Row],[2024/25 From - Other reallocations]]","v":0},{"$f":"Dataset[[#This Row],[2025/26 From - Spending review Topic 1]]+Dataset[[#This Row],[2025/26 From - Spending review Topic 2]]+Dataset[[#This Row],[2025/26 From - Spending review Topic 3]]+Dataset[[#This Row],[2025/26 From - Spending review Topic 4]]+Dataset[[#This Row],[2025/26 From - Other reallocations]]","v":0},{"$f":"Dataset[[#This Row],[2026/27 From - Spending review Topic 1]]+Dataset[[#This Row],[2026/27 From - Spending review Topic 2]]+Dataset[[#This Row],[2026/27 From - Spending review Topic 3]]+Dataset[[#This Row],[2026/27 From - Spending review Topic 4]]+Dataset[[#This Row],[2026/27 From - Other reallocations]]","v":0},{"$f":"Dataset[[#This Row],[2024/25 To - Spending review Topic 1]]+Dataset[[#This Row],[2024/25 To - Spending review Topic 2]]+Dataset[[#This Row],[2024/25 To - Spending review Topic 3]]+Dataset[[#This Row],[2024/25 To - Spending review Topic 4]]+Dataset[[#This Row],[2024/25 To - Other reallocations]]","v":0},{"$f":"Dataset[[#This Row],[2025/26 To - Spending review Topic 1]]+Dataset[[#This Row],[2025/26 To - Spending review Topic 2]]+Dataset[[#This Row],[2025/26 To - Spending review Topic 3]]+Dataset[[#This Row],[2025/26 To - Spending review Topic 4]]+Dataset[[#This Row],[2025/26 To - Other reallocations]]","v":0},{"$f":"Dataset[[#This Row],[2026/27 To - Spending review Topic 1]]+Dataset[[#This Row],[2026/27 To - Spending review Topic 2]]+Dataset[[#This Row],[2026/27 To - Spending review Topic 3]]+Dataset[[#This Row],[2026/27 To - Spending review Topic 4]]+Dataset[[#This Row],[2026/27 To - Other reallocations]]","v":0},{"$f":"Dataset[[#This Row],[2024/25 Reduction]]+Dataset[[#This Row],[2024/25 From - Total]]","v":0},{"$f":"Dataset[[#This Row],[2025/26 Reduction]]+Dataset[[#This Row],[2025/26 From - Total]]","v":0},{"$f":"Dataset[[#This Row],[2026/27 Reduction]]+Dataset[[#This Row],[2026/27 From - Total]]","v":0},{"$f":"Dataset[[#This Row],[2023/24 Reduction]]","v":0},{"$f":"SUM(Dataset[[#This Row],[2024/25 Reduction]],Dataset[[#This Row],[2024/25 From - Total]],Dataset[[#This Row],[2024/25 To - Total]])","v":0},{"$f":"SUM(Dataset[[#This Row],[2025/26 Reduction]],Dataset[[#This Row],[2025/26 From - Total]],Dataset[[#This Row],[2025/26 To - Total]])","v":0},{"$f":"SUM(Dataset[[#This Row],[2026/27 Reduction]],Dataset[[#This Row],[2026/27 From - Total]],Dataset[[#This Row],[2026/27 To - Total]])","v":0},{"$f":"Dataset[[#This Row],[2023/24 Baseline]]+Dataset[[#This Row],[2023/24 Total change]]","v":454},{"$f":"Dataset[[#This Row],[2024/25 Baseline]]+Dataset[[#This Row],[2024/25 Total change]]","v":149},{"$f":"Dataset[[#This Row],[2025/26 Baseline]]+Dataset[[#This Row],[2025/26 Total change]]","v":178},{"$f":"Dataset[[#This Row],[2026/27 Baseline]]+Dataset[[#This Row],[2026/27 Total change]]","v":186}]
["NAT|Non-transfer item","26|Agency and support/outsourced services","2024_25","MTEF2024",26,1,2,43981,94,"26","01","02","043981","000094","26|01|02","01","01","02","17","17","01|01|02|17|17","National","Military Veterans","Administration","Corporate Services","Non-transfer item","Current","Current payments","Goods and services","Agency and support/outsourced services","Agency and support/outsourced services","Peace and security","Defence and state security","NAT",0,0,0,0,0,0,0,0,0,0,0,null,null,null,null,null,null,null,null,null,null,null,null,null,null,null,null,null,null,null,null,null,null,null,null,null,null,null,null,null,null,null,null,null,null,{"$f":"Dataset[[#This Row],[2024/25 From - Spending review Topic 1]]+Dataset[[#This Row],[2024/25 From - Spending review Topic 2]]+Dataset[[#This Row],[2024/25 From - Spending review Topic 3]]+Dataset[[#This Row],[2024/25 From - Spending review Topic 4]]+Dataset[[#This Row],[2024/25 From - Other reallocations]]","v":0},{"$f":"Dataset[[#This Row],[2025/26 From - Spending review Topic 1]]+Dataset[[#This Row],[2025/26 From - Spending review Topic 2]]+Dataset[[#This Row],[2025/26 From - Spending review Topic 3]]+Dataset[[#This Row],[2025/26 From - Spending review Topic 4]]+Dataset[[#This Row],[2025/26 From - Other reallocations]]","v":0},{"$f":"Dataset[[#This Row],[2026/27 From - Spending review Topic 1]]+Dataset[[#This Row],[2026/27 From - Spending review Topic 2]]+Dataset[[#This Row],[2026/27 From - Spending review Topic 3]]+Dataset[[#This Row],[2026/27 From - Spending review Topic 4]]+Dataset[[#This Row],[2026/27 From - Other reallocations]]","v":0},{"$f":"Dataset[[#This Row],[2024/25 To - Spending review Topic 1]]+Dataset[[#This Row],[2024/25 To - Spending review Topic 2]]+Dataset[[#This Row],[2024/25 To - Spending review Topic 3]]+Dataset[[#This Row],[2024/25 To - Spending review Topic 4]]+Dataset[[#This Row],[2024/25 To - Other reallocations]]","v":0},{"$f":"Dataset[[#This Row],[2025/26 To - Spending review Topic 1]]+Dataset[[#This Row],[2025/26 To - Spending review Topic 2]]+Dataset[[#This Row],[2025/26 To - Spending review Topic 3]]+Dataset[[#This Row],[2025/26 To - Spending review Topic 4]]+Dataset[[#This Row],[2025/26 To - Other reallocations]]","v":0},{"$f":"Dataset[[#This Row],[2026/27 To - Spending review Topic 1]]+Dataset[[#This Row],[2026/27 To - Spending review Topic 2]]+Dataset[[#This Row],[2026/27 To - Spending review Topic 3]]+Dataset[[#This Row],[2026/27 To - Spending review Topic 4]]+Dataset[[#This Row],[2026/27 To - Other reallocations]]","v":0},{"$f":"Dataset[[#This Row],[2024/25 Reduction]]+Dataset[[#This Row],[2024/25 From - Total]]","v":0},{"$f":"Dataset[[#This Row],[2025/26 Reduction]]+Dataset[[#This Row],[2025/26 From - Total]]","v":0},{"$f":"Dataset[[#This Row],[2026/27 Reduction]]+Dataset[[#This Row],[2026/27 From - Total]]","v":0},{"$f":"Dataset[[#This Row],[2023/24 Reduction]]","v":0},{"$f":"SUM(Dataset[[#This Row],[2024/25 Reduction]],Dataset[[#This Row],[2024/25 From - Total]],Dataset[[#This Row],[2024/25 To - Total]])","v":0},{"$f":"SUM(Dataset[[#This Row],[2025/26 Reduction]],Dataset[[#This Row],[2025/26 From - Total]],Dataset[[#This Row],[2025/26 To - Total]])","v":0},{"$f":"SUM(Dataset[[#This Row],[2026/27 Reduction]],Dataset[[#This Row],[2026/27 From - Total]],Dataset[[#This Row],[2026/27 To - Total]])","v":0},{"$f":"Dataset[[#This Row],[2023/24 Baseline]]+Dataset[[#This Row],[2023/24 Total change]]","v":0},{"$f":"Dataset[[#This Row],[2024/25 Baseline]]+Dataset[[#This Row],[2024/25 Total change]]","v":0},{"$f":"Dataset[[#This Row],[2025/26 Baseline]]+Dataset[[#This Row],[2025/26 Total change]]","v":0},{"$f":"Dataset[[#This Row],[2026/27 Baseline]]+Dataset[[#This Row],[2026/27 Total change]]","v":0}]
["NAT|Non-transfer item","26|Entertainment","2024_25","MTEF2024",26,1,2,43982,95,"26","01","02","043982","000095","26|01|02","01","01","02","18","18","01|01|02|18|18","National","Military Veterans","Administration","Corporate Services","Non-transfer item","Current","Current payments","Goods and services","Entertainment","Entertainment","Peace and security","Defence and state security","NAT",0,0,0,0,0,0,0,0,0,0,0,null,null,null,null,null,null,null,null,null,null,null,null,null,null,null,null,null,null,null,null,null,null,null,null,null,null,null,null,null,null,null,null,null,null,{"$f":"Dataset[[#This Row],[2024/25 From - Spending review Topic 1]]+Dataset[[#This Row],[2024/25 From - Spending review Topic 2]]+Dataset[[#This Row],[2024/25 From - Spending review Topic 3]]+Dataset[[#This Row],[2024/25 From - Spending review Topic 4]]+Dataset[[#This Row],[2024/25 From - Other reallocations]]","v":0},{"$f":"Dataset[[#This Row],[2025/26 From - Spending review Topic 1]]+Dataset[[#This Row],[2025/26 From - Spending review Topic 2]]+Dataset[[#This Row],[2025/26 From - Spending review Topic 3]]+Dataset[[#This Row],[2025/26 From - Spending review Topic 4]]+Dataset[[#This Row],[2025/26 From - Other reallocations]]","v":0},{"$f":"Dataset[[#This Row],[2026/27 From - Spending review Topic 1]]+Dataset[[#This Row],[2026/27 From - Spending review Topic 2]]+Dataset[[#This Row],[2026/27 From - Spending review Topic 3]]+Dataset[[#This Row],[2026/27 From - Spending review Topic 4]]+Dataset[[#This Row],[2026/27 From - Other reallocations]]","v":0},{"$f":"Dataset[[#This Row],[2024/25 To - Spending review Topic 1]]+Dataset[[#This Row],[2024/25 To - Spending review Topic 2]]+Dataset[[#This Row],[2024/25 To - Spending review Topic 3]]+Dataset[[#This Row],[2024/25 To - Spending review Topic 4]]+Dataset[[#This Row],[2024/25 To - Other reallocations]]","v":0},{"$f":"Dataset[[#This Row],[2025/26 To - Spending review Topic 1]]+Dataset[[#This Row],[2025/26 To - Spending review Topic 2]]+Dataset[[#This Row],[2025/26 To - Spending review Topic 3]]+Dataset[[#This Row],[2025/26 To - Spending review Topic 4]]+Dataset[[#This Row],[2025/26 To - Other reallocations]]","v":0},{"$f":"Dataset[[#This Row],[2026/27 To - Spending review Topic 1]]+Dataset[[#This Row],[2026/27 To - Spending review Topic 2]]+Dataset[[#This Row],[2026/27 To - Spending review Topic 3]]+Dataset[[#This Row],[2026/27 To - Spending review Topic 4]]+Dataset[[#This Row],[2026/27 To - Other reallocations]]","v":0},{"$f":"Dataset[[#This Row],[2024/25 Reduction]]+Dataset[[#This Row],[2024/25 From - Total]]","v":0},{"$f":"Dataset[[#This Row],[2025/26 Reduction]]+Dataset[[#This Row],[2025/26 From - Total]]","v":0},{"$f":"Dataset[[#This Row],[2026/27 Reduction]]+Dataset[[#This Row],[2026/27 From - Total]]","v":0},{"$f":"Dataset[[#This Row],[2023/24 Reduction]]","v":0},{"$f":"SUM(Dataset[[#This Row],[2024/25 Reduction]],Dataset[[#This Row],[2024/25 From - Total]],Dataset[[#This Row],[2024/25 To - Total]])","v":0},{"$f":"SUM(Dataset[[#This Row],[2025/26 Reduction]],Dataset[[#This Row],[2025/26 From - Total]],Dataset[[#This Row],[2025/26 To - Total]])","v":0},{"$f":"SUM(Dataset[[#This Row],[2026/27 Reduction]],Dataset[[#This Row],[2026/27 From - Total]],Dataset[[#This Row],[2026/27 To - Total]])","v":0},{"$f":"Dataset[[#This Row],[2023/24 Baseline]]+Dataset[[#This Row],[2023/24 Total change]]","v":0},{"$f":"Dataset[[#This Row],[2024/25 Baseline]]+Dataset[[#This Row],[2024/25 Total change]]","v":0},{"$f":"Dataset[[#This Row],[2025/26 Baseline]]+Dataset[[#This Row],[2025/26 Total change]]","v":0},{"$f":"Dataset[[#This Row],[2026/27 Baseline]]+Dataset[[#This Row],[2026/27 Total change]]","v":0}]
["NAT|Non-transfer item","26|Fleet services (including government motor transport)","2024_25","MTEF2024",26,1,2,43983,96,"26","01","02","043983","000096","26|01|02","01","01","02","19","19","01|01|02|19|19","National","Military Veterans","Administration","Corporate Services","Non-transfer item","Current","Current payments","Goods and services","Fleet services (including government motor transport)","Fleet services (including government motor transport)","Peace and security","Defence and state security","NAT",1461,1574,2478,700,1006,1006,0,3500,3500,3567,3730,null,null,null,null,null,null,null,null,null,null,null,null,null,null,null,null,null,null,null,null,null,null,null,null,null,null,null,null,null,null,null,null,null,null,{"$f":"Dataset[[#This Row],[2024/25 From - Spending review Topic 1]]+Dataset[[#This Row],[2024/25 From - Spending review Topic 2]]+Dataset[[#This Row],[2024/25 From - Spending review Topic 3]]+Dataset[[#This Row],[2024/25 From - Spending review Topic 4]]+Dataset[[#This Row],[2024/25 From - Other reallocations]]","v":0},{"$f":"Dataset[[#This Row],[2025/26 From - Spending review Topic 1]]+Dataset[[#This Row],[2025/26 From - Spending review Topic 2]]+Dataset[[#This Row],[2025/26 From - Spending review Topic 3]]+Dataset[[#This Row],[2025/26 From - Spending review Topic 4]]+Dataset[[#This Row],[2025/26 From - Other reallocations]]","v":0},{"$f":"Dataset[[#This Row],[2026/27 From - Spending review Topic 1]]+Dataset[[#This Row],[2026/27 From - Spending review Topic 2]]+Dataset[[#This Row],[2026/27 From - Spending review Topic 3]]+Dataset[[#This Row],[2026/27 From - Spending review Topic 4]]+Dataset[[#This Row],[2026/27 From - Other reallocations]]","v":0},{"$f":"Dataset[[#This Row],[2024/25 To - Spending review Topic 1]]+Dataset[[#This Row],[2024/25 To - Spending review Topic 2]]+Dataset[[#This Row],[2024/25 To - Spending review Topic 3]]+Dataset[[#This Row],[2024/25 To - Spending review Topic 4]]+Dataset[[#This Row],[2024/25 To - Other reallocations]]","v":0},{"$f":"Dataset[[#This Row],[2025/26 To - Spending review Topic 1]]+Dataset[[#This Row],[2025/26 To - Spending review Topic 2]]+Dataset[[#This Row],[2025/26 To - Spending review Topic 3]]+Dataset[[#This Row],[2025/26 To - Spending review Topic 4]]+Dataset[[#This Row],[2025/26 To - Other reallocations]]","v":0},{"$f":"Dataset[[#This Row],[2026/27 To - Spending review Topic 1]]+Dataset[[#This Row],[2026/27 To - Spending review Topic 2]]+Dataset[[#This Row],[2026/27 To - Spending review Topic 3]]+Dataset[[#This Row],[2026/27 To - Spending review Topic 4]]+Dataset[[#This Row],[2026/27 To - Other reallocations]]","v":0},{"$f":"Dataset[[#This Row],[2024/25 Reduction]]+Dataset[[#This Row],[2024/25 From - Total]]","v":0},{"$f":"Dataset[[#This Row],[2025/26 Reduction]]+Dataset[[#This Row],[2025/26 From - Total]]","v":0},{"$f":"Dataset[[#This Row],[2026/27 Reduction]]+Dataset[[#This Row],[2026/27 From - Total]]","v":0},{"$f":"Dataset[[#This Row],[2023/24 Reduction]]","v":0},{"$f":"SUM(Dataset[[#This Row],[2024/25 Reduction]],Dataset[[#This Row],[2024/25 From - Total]],Dataset[[#This Row],[2024/25 To - Total]])","v":0},{"$f":"SUM(Dataset[[#This Row],[2025/26 Reduction]],Dataset[[#This Row],[2025/26 From - Total]],Dataset[[#This Row],[2025/26 To - Total]])","v":0},{"$f":"SUM(Dataset[[#This Row],[2026/27 Reduction]],Dataset[[#This Row],[2026/27 From - Total]],Dataset[[#This Row],[2026/27 To - Total]])","v":0},{"$f":"Dataset[[#This Row],[2023/24 Baseline]]+Dataset[[#This Row],[2023/24 Total change]]","v":3500},{"$f":"Dataset[[#This Row],[2024/25 Baseline]]+Dataset[[#This Row],[2024/25 Total change]]","v":3500},{"$f":"Dataset[[#This Row],[2025/26 Baseline]]+Dataset[[#This Row],[2025/26 Total change]]","v":3567},{"$f":"Dataset[[#This Row],[2026/27 Baseline]]+Dataset[[#This Row],[2026/27 Total change]]","v":3730}]
["NAT|Non-transfer item","26|Housing","2024_25","MTEF2024",26,1,2,43984,97,"26","01","02","043984","000097","26|01|02","01","01","02","20","20","01|01|02|20|20","National","Military Veterans","Administration","Corporate Services","Non-transfer item","Current","Current payments","Goods and services","Housing","Housing","Peace and security","Defence and state security","NAT",0,0,0,0,0,0,0,0,0,0,0,null,null,null,null,null,null,null,null,null,null,null,null,null,null,null,null,null,null,null,null,null,null,null,null,null,null,null,null,null,null,null,null,null,null,{"$f":"Dataset[[#This Row],[2024/25 From - Spending review Topic 1]]+Dataset[[#This Row],[2024/25 From - Spending review Topic 2]]+Dataset[[#This Row],[2024/25 From - Spending review Topic 3]]+Dataset[[#This Row],[2024/25 From - Spending review Topic 4]]+Dataset[[#This Row],[2024/25 From - Other reallocations]]","v":0},{"$f":"Dataset[[#This Row],[2025/26 From - Spending review Topic 1]]+Dataset[[#This Row],[2025/26 From - Spending review Topic 2]]+Dataset[[#This Row],[2025/26 From - Spending review Topic 3]]+Dataset[[#This Row],[2025/26 From - Spending review Topic 4]]+Dataset[[#This Row],[2025/26 From - Other reallocations]]","v":0},{"$f":"Dataset[[#This Row],[2026/27 From - Spending review Topic 1]]+Dataset[[#This Row],[2026/27 From - Spending review Topic 2]]+Dataset[[#This Row],[2026/27 From - Spending review Topic 3]]+Dataset[[#This Row],[2026/27 From - Spending review Topic 4]]+Dataset[[#This Row],[2026/27 From - Other reallocations]]","v":0},{"$f":"Dataset[[#This Row],[2024/25 To - Spending review Topic 1]]+Dataset[[#This Row],[2024/25 To - Spending review Topic 2]]+Dataset[[#This Row],[2024/25 To - Spending review Topic 3]]+Dataset[[#This Row],[2024/25 To - Spending review Topic 4]]+Dataset[[#This Row],[2024/25 To - Other reallocations]]","v":0},{"$f":"Dataset[[#This Row],[2025/26 To - Spending review Topic 1]]+Dataset[[#This Row],[2025/26 To - Spending review Topic 2]]+Dataset[[#This Row],[2025/26 To - Spending review Topic 3]]+Dataset[[#This Row],[2025/26 To - Spending review Topic 4]]+Dataset[[#This Row],[2025/26 To - Other reallocations]]","v":0},{"$f":"Dataset[[#This Row],[2026/27 To - Spending review Topic 1]]+Dataset[[#This Row],[2026/27 To - Spending review Topic 2]]+Dataset[[#This Row],[2026/27 To - Spending review Topic 3]]+Dataset[[#This Row],[2026/27 To - Spending review Topic 4]]+Dataset[[#This Row],[2026/27 To - Other reallocations]]","v":0},{"$f":"Dataset[[#This Row],[2024/25 Reduction]]+Dataset[[#This Row],[2024/25 From - Total]]","v":0},{"$f":"Dataset[[#This Row],[2025/26 Reduction]]+Dataset[[#This Row],[2025/26 From - Total]]","v":0},{"$f":"Dataset[[#This Row],[2026/27 Reduction]]+Dataset[[#This Row],[2026/27 From - Total]]","v":0},{"$f":"Dataset[[#This Row],[2023/24 Reduction]]","v":0},{"$f":"SUM(Dataset[[#This Row],[2024/25 Reduction]],Dataset[[#This Row],[2024/25 From - Total]],Dataset[[#This Row],[2024/25 To - Total]])","v":0},{"$f":"SUM(Dataset[[#This Row],[2025/26 Reduction]],Dataset[[#This Row],[2025/26 From - Total]],Dataset[[#This Row],[2025/26 To - Total]])","v":0},{"$f":"SUM(Dataset[[#This Row],[2026/27 Reduction]],Dataset[[#This Row],[2026/27 From - Total]],Dataset[[#This Row],[2026/27 To - Total]])","v":0},{"$f":"Dataset[[#This Row],[2023/24 Baseline]]+Dataset[[#This Row],[2023/24 Total change]]","v":0},{"$f":"Dataset[[#This Row],[2024/25 Baseline]]+Dataset[[#This Row],[2024/25 Total change]]","v":0},{"$f":"Dataset[[#This Row],[2025/26 Baseline]]+Dataset[[#This Row],[2025/26 Total change]]","v":0},{"$f":"Dataset[[#This Row],[2026/27 Baseline]]+Dataset[[#This Row],[2026/27 Total change]]","v":0}]
["NAT|Non-transfer item","26|Inventory: Clothing material and accessories","2024_25","MTEF2024",26,1,2,43985,98,"26","01","02","043985","000098","26|01|02","01","01","02","21","21","01|01|02|21|21","National","Military Veterans","Administration","Corporate Services","Non-transfer item","Current","Current payments","Goods and services","Inventory: Clothing material and accessories","Inventory: Clothing material and accessories","Peace and security","Defence and state security","NAT",0,0,0,0,0,0,0,0,0,0,0,null,null,null,null,null,null,null,null,null,null,null,null,null,null,null,null,null,null,null,null,null,null,null,null,null,null,null,null,null,null,null,null,null,null,{"$f":"Dataset[[#This Row],[2024/25 From - Spending review Topic 1]]+Dataset[[#This Row],[2024/25 From - Spending review Topic 2]]+Dataset[[#This Row],[2024/25 From - Spending review Topic 3]]+Dataset[[#This Row],[2024/25 From - Spending review Topic 4]]+Dataset[[#This Row],[2024/25 From - Other reallocations]]","v":0},{"$f":"Dataset[[#This Row],[2025/26 From - Spending review Topic 1]]+Dataset[[#This Row],[2025/26 From - Spending review Topic 2]]+Dataset[[#This Row],[2025/26 From - Spending review Topic 3]]+Dataset[[#This Row],[2025/26 From - Spending review Topic 4]]+Dataset[[#This Row],[2025/26 From - Other reallocations]]","v":0},{"$f":"Dataset[[#This Row],[2026/27 From - Spending review Topic 1]]+Dataset[[#This Row],[2026/27 From - Spending review Topic 2]]+Dataset[[#This Row],[2026/27 From - Spending review Topic 3]]+Dataset[[#This Row],[2026/27 From - Spending review Topic 4]]+Dataset[[#This Row],[2026/27 From - Other reallocations]]","v":0},{"$f":"Dataset[[#This Row],[2024/25 To - Spending review Topic 1]]+Dataset[[#This Row],[2024/25 To - Spending review Topic 2]]+Dataset[[#This Row],[2024/25 To - Spending review Topic 3]]+Dataset[[#This Row],[2024/25 To - Spending review Topic 4]]+Dataset[[#This Row],[2024/25 To - Other reallocations]]","v":0},{"$f":"Dataset[[#This Row],[2025/26 To - Spending review Topic 1]]+Dataset[[#This Row],[2025/26 To - Spending review Topic 2]]+Dataset[[#This Row],[2025/26 To - Spending review Topic 3]]+Dataset[[#This Row],[2025/26 To - Spending review Topic 4]]+Dataset[[#This Row],[2025/26 To - Other reallocations]]","v":0},{"$f":"Dataset[[#This Row],[2026/27 To - Spending review Topic 1]]+Dataset[[#This Row],[2026/27 To - Spending review Topic 2]]+Dataset[[#This Row],[2026/27 To - Spending review Topic 3]]+Dataset[[#This Row],[2026/27 To - Spending review Topic 4]]+Dataset[[#This Row],[2026/27 To - Other reallocations]]","v":0},{"$f":"Dataset[[#This Row],[2024/25 Reduction]]+Dataset[[#This Row],[2024/25 From - Total]]","v":0},{"$f":"Dataset[[#This Row],[2025/26 Reduction]]+Dataset[[#This Row],[2025/26 From - Total]]","v":0},{"$f":"Dataset[[#This Row],[2026/27 Reduction]]+Dataset[[#This Row],[2026/27 From - Total]]","v":0},{"$f":"Dataset[[#This Row],[2023/24 Reduction]]","v":0},{"$f":"SUM(Dataset[[#This Row],[2024/25 Reduction]],Dataset[[#This Row],[2024/25 From - Total]],Dataset[[#This Row],[2024/25 To - Total]])","v":0},{"$f":"SUM(Dataset[[#This Row],[2025/26 Reduction]],Dataset[[#This Row],[2025/26 From - Total]],Dataset[[#This Row],[2025/26 To - Total]])","v":0},{"$f":"SUM(Dataset[[#This Row],[2026/27 Reduction]],Dataset[[#This Row],[2026/27 From - Total]],Dataset[[#This Row],[2026/27 To - Total]])","v":0},{"$f":"Dataset[[#This Row],[2023/24 Baseline]]+Dataset[[#This Row],[2023/24 Total change]]","v":0},{"$f":"Dataset[[#This Row],[2024/25 Baseline]]+Dataset[[#This Row],[2024/25 Total change]]","v":0},{"$f":"Dataset[[#This Row],[2025/26 Baseline]]+Dataset[[#This Row],[2025/26 Total change]]","v":0},{"$f":"Dataset[[#This Row],[2026/27 Baseline]]+Dataset[[#This Row],[2026/27 Total change]]","v":0}]
["NAT|Non-transfer item","26|Inventory: Farming supplies","2024_25","MTEF2024",26,1,2,43986,99,"26","01","02","043986","000099","26|01|02","01","01","02","22","22","01|01|02|22|22","National","Military Veterans","Administration","Corporate Services","Non-transfer item","Current","Current payments","Goods and services","Inventory: Farming supplies","Inventory: Farming supplies","Peace and security","Defence and state security","NAT",0,0,0,0,0,0,0,0,0,0,0,null,null,null,null,null,null,null,null,null,null,null,null,null,null,null,null,null,null,null,null,null,null,null,null,null,null,null,null,null,null,null,null,null,null,{"$f":"Dataset[[#This Row],[2024/25 From - Spending review Topic 1]]+Dataset[[#This Row],[2024/25 From - Spending review Topic 2]]+Dataset[[#This Row],[2024/25 From - Spending review Topic 3]]+Dataset[[#This Row],[2024/25 From - Spending review Topic 4]]+Dataset[[#This Row],[2024/25 From - Other reallocations]]","v":0},{"$f":"Dataset[[#This Row],[2025/26 From - Spending review Topic 1]]+Dataset[[#This Row],[2025/26 From - Spending review Topic 2]]+Dataset[[#This Row],[2025/26 From - Spending review Topic 3]]+Dataset[[#This Row],[2025/26 From - Spending review Topic 4]]+Dataset[[#This Row],[2025/26 From - Other reallocations]]","v":0},{"$f":"Dataset[[#This Row],[2026/27 From - Spending review Topic 1]]+Dataset[[#This Row],[2026/27 From - Spending review Topic 2]]+Dataset[[#This Row],[2026/27 From - Spending review Topic 3]]+Dataset[[#This Row],[2026/27 From - Spending review Topic 4]]+Dataset[[#This Row],[2026/27 From - Other reallocations]]","v":0},{"$f":"Dataset[[#This Row],[2024/25 To - Spending review Topic 1]]+Dataset[[#This Row],[2024/25 To - Spending review Topic 2]]+Dataset[[#This Row],[2024/25 To - Spending review Topic 3]]+Dataset[[#This Row],[2024/25 To - Spending review Topic 4]]+Dataset[[#This Row],[2024/25 To - Other reallocations]]","v":0},{"$f":"Dataset[[#This Row],[2025/26 To - Spending review Topic 1]]+Dataset[[#This Row],[2025/26 To - Spending review Topic 2]]+Dataset[[#This Row],[2025/26 To - Spending review Topic 3]]+Dataset[[#This Row],[2025/26 To - Spending review Topic 4]]+Dataset[[#This Row],[2025/26 To - Other reallocations]]","v":0},{"$f":"Dataset[[#This Row],[2026/27 To - Spending review Topic 1]]+Dataset[[#This Row],[2026/27 To - Spending review Topic 2]]+Dataset[[#This Row],[2026/27 To - Spending review Topic 3]]+Dataset[[#This Row],[2026/27 To - Spending review Topic 4]]+Dataset[[#This Row],[2026/27 To - Other reallocations]]","v":0},{"$f":"Dataset[[#This Row],[2024/25 Reduction]]+Dataset[[#This Row],[2024/25 From - Total]]","v":0},{"$f":"Dataset[[#This Row],[2025/26 Reduction]]+Dataset[[#This Row],[2025/26 From - Total]]","v":0},{"$f":"Dataset[[#This Row],[2026/27 Reduction]]+Dataset[[#This Row],[2026/27 From - Total]]","v":0},{"$f":"Dataset[[#This Row],[2023/24 Reduction]]","v":0},{"$f":"SUM(Dataset[[#This Row],[2024/25 Reduction]],Dataset[[#This Row],[2024/25 From - Total]],Dataset[[#This Row],[2024/25 To - Total]])","v":0},{"$f":"SUM(Dataset[[#This Row],[2025/26 Reduction]],Dataset[[#This Row],[2025/26 From - Total]],Dataset[[#This Row],[2025/26 To - Total]])","v":0},{"$f":"SUM(Dataset[[#This Row],[2026/27 Reduction]],Dataset[[#This Row],[2026/27 From - Total]],Dataset[[#This Row],[2026/27 To - Total]])","v":0},{"$f":"Dataset[[#This Row],[2023/24 Baseline]]+Dataset[[#This Row],[2023/24 Total change]]","v":0},{"$f":"Dataset[[#This Row],[2024/25 Baseline]]+Dataset[[#This Row],[2024/25 Total change]]","v":0},{"$f":"Dataset[[#This Row],[2025/26 Baseline]]+Dataset[[#This Row],[2025/26 Total change]]","v":0},{"$f":"Dataset[[#This Row],[2026/27 Baseline]]+Dataset[[#This Row],[2026/27 Total change]]","v":0}]
["NAT|Non-transfer item","26|Inventory: Food and food supplies","2024_25","MTEF2024",26,1,2,43987,100,"26","01","02","043987","000100","26|01|02","01","01","02","23","23","01|01|02|23|23","National","Military Veterans","Administration","Corporate Services","Non-transfer item","Current","Current payments","Goods and services","Inventory: Food and food supplies","Inventory: Food and food supplies","Peace and security","Defence and state security","NAT",0,0,0,0,0,0,0,0,0,0,0,null,null,null,null,null,null,null,null,null,null,null,null,null,null,null,null,null,null,null,null,null,null,null,null,null,null,null,null,null,null,null,null,null,null,{"$f":"Dataset[[#This Row],[2024/25 From - Spending review Topic 1]]+Dataset[[#This Row],[2024/25 From - Spending review Topic 2]]+Dataset[[#This Row],[2024/25 From - Spending review Topic 3]]+Dataset[[#This Row],[2024/25 From - Spending review Topic 4]]+Dataset[[#This Row],[2024/25 From - Other reallocations]]","v":0},{"$f":"Dataset[[#This Row],[2025/26 From - Spending review Topic 1]]+Dataset[[#This Row],[2025/26 From - Spending review Topic 2]]+Dataset[[#This Row],[2025/26 From - Spending review Topic 3]]+Dataset[[#This Row],[2025/26 From - Spending review Topic 4]]+Dataset[[#This Row],[2025/26 From - Other reallocations]]","v":0},{"$f":"Dataset[[#This Row],[2026/27 From - Spending review Topic 1]]+Dataset[[#This Row],[2026/27 From - Spending review Topic 2]]+Dataset[[#This Row],[2026/27 From - Spending review Topic 3]]+Dataset[[#This Row],[2026/27 From - Spending review Topic 4]]+Dataset[[#This Row],[2026/27 From - Other reallocations]]","v":0},{"$f":"Dataset[[#This Row],[2024/25 To - Spending review Topic 1]]+Dataset[[#This Row],[2024/25 To - Spending review Topic 2]]+Dataset[[#This Row],[2024/25 To - Spending review Topic 3]]+Dataset[[#This Row],[2024/25 To - Spending review Topic 4]]+Dataset[[#This Row],[2024/25 To - Other reallocations]]","v":0},{"$f":"Dataset[[#This Row],[2025/26 To - Spending review Topic 1]]+Dataset[[#This Row],[2025/26 To - Spending review Topic 2]]+Dataset[[#This Row],[2025/26 To - Spending review Topic 3]]+Dataset[[#This Row],[2025/26 To - Spending review Topic 4]]+Dataset[[#This Row],[2025/26 To - Other reallocations]]","v":0},{"$f":"Dataset[[#This Row],[2026/27 To - Spending review Topic 1]]+Dataset[[#This Row],[2026/27 To - Spending review Topic 2]]+Dataset[[#This Row],[2026/27 To - Spending review Topic 3]]+Dataset[[#This Row],[2026/27 To - Spending review Topic 4]]+Dataset[[#This Row],[2026/27 To - Other reallocations]]","v":0},{"$f":"Dataset[[#This Row],[2024/25 Reduction]]+Dataset[[#This Row],[2024/25 From - Total]]","v":0},{"$f":"Dataset[[#This Row],[2025/26 Reduction]]+Dataset[[#This Row],[2025/26 From - Total]]","v":0},{"$f":"Dataset[[#This Row],[2026/27 Reduction]]+Dataset[[#This Row],[2026/27 From - Total]]","v":0},{"$f":"Dataset[[#This Row],[2023/24 Reduction]]","v":0},{"$f":"SUM(Dataset[[#This Row],[2024/25 Reduction]],Dataset[[#This Row],[2024/25 From - Total]],Dataset[[#This Row],[2024/25 To - Total]])","v":0},{"$f":"SUM(Dataset[[#This Row],[2025/26 Reduction]],Dataset[[#This Row],[2025/26 From - Total]],Dataset[[#This Row],[2025/26 To - Total]])","v":0},{"$f":"SUM(Dataset[[#This Row],[2026/27 Reduction]],Dataset[[#This Row],[2026/27 From - Total]],Dataset[[#This Row],[2026/27 To - Total]])","v":0},{"$f":"Dataset[[#This Row],[2023/24 Baseline]]+Dataset[[#This Row],[2023/24 Total change]]","v":0},{"$f":"Dataset[[#This Row],[2024/25 Baseline]]+Dataset[[#This Row],[2024/25 Total change]]","v":0},{"$f":"Dataset[[#This Row],[2025/26 Baseline]]+Dataset[[#This Row],[2025/26 Total change]]","v":0},{"$f":"Dataset[[#This Row],[2026/27 Baseline]]+Dataset[[#This Row],[2026/27 Total change]]","v":0}]
["NAT|Non-transfer item","26|Inventory: Fuel, oil and gas","2024_25","MTEF2024",26,1,2,43988,101,"26","01","02","043988","000101","26|01|02","01","01","02","24","24","01|01|02|24|24","National","Military Veterans","Administration","Corporate Services","Non-transfer item","Current","Current payments","Goods and services","Inventory: Fuel, oil and gas","Inventory: Fuel, oil and gas","Peace and security","Defence and state security","NAT",0,0,0,0,0,0,0,0,0,0,0,null,null,null,null,null,null,null,null,null,null,null,null,null,null,null,null,null,null,null,null,null,null,null,null,null,null,null,null,null,null,null,null,null,null,{"$f":"Dataset[[#This Row],[2024/25 From - Spending review Topic 1]]+Dataset[[#This Row],[2024/25 From - Spending review Topic 2]]+Dataset[[#This Row],[2024/25 From - Spending review Topic 3]]+Dataset[[#This Row],[2024/25 From - Spending review Topic 4]]+Dataset[[#This Row],[2024/25 From - Other reallocations]]","v":0},{"$f":"Dataset[[#This Row],[2025/26 From - Spending review Topic 1]]+Dataset[[#This Row],[2025/26 From - Spending review Topic 2]]+Dataset[[#This Row],[2025/26 From - Spending review Topic 3]]+Dataset[[#This Row],[2025/26 From - Spending review Topic 4]]+Dataset[[#This Row],[2025/26 From - Other reallocations]]","v":0},{"$f":"Dataset[[#This Row],[2026/27 From - Spending review Topic 1]]+Dataset[[#This Row],[2026/27 From - Spending review Topic 2]]+Dataset[[#This Row],[2026/27 From - Spending review Topic 3]]+Dataset[[#This Row],[2026/27 From - Spending review Topic 4]]+Dataset[[#This Row],[2026/27 From - Other reallocations]]","v":0},{"$f":"Dataset[[#This Row],[2024/25 To - Spending review Topic 1]]+Dataset[[#This Row],[2024/25 To - Spending review Topic 2]]+Dataset[[#This Row],[2024/25 To - Spending review Topic 3]]+Dataset[[#This Row],[2024/25 To - Spending review Topic 4]]+Dataset[[#This Row],[2024/25 To - Other reallocations]]","v":0},{"$f":"Dataset[[#This Row],[2025/26 To - Spending review Topic 1]]+Dataset[[#This Row],[2025/26 To - Spending review Topic 2]]+Dataset[[#This Row],[2025/26 To - Spending review Topic 3]]+Dataset[[#This Row],[2025/26 To - Spending review Topic 4]]+Dataset[[#This Row],[2025/26 To - Other reallocations]]","v":0},{"$f":"Dataset[[#This Row],[2026/27 To - Spending review Topic 1]]+Dataset[[#This Row],[2026/27 To - Spending review Topic 2]]+Dataset[[#This Row],[2026/27 To - Spending review Topic 3]]+Dataset[[#This Row],[2026/27 To - Spending review Topic 4]]+Dataset[[#This Row],[2026/27 To - Other reallocations]]","v":0},{"$f":"Dataset[[#This Row],[2024/25 Reduction]]+Dataset[[#This Row],[2024/25 From - Total]]","v":0},{"$f":"Dataset[[#This Row],[2025/26 Reduction]]+Dataset[[#This Row],[2025/26 From - Total]]","v":0},{"$f":"Dataset[[#This Row],[2026/27 Reduction]]+Dataset[[#This Row],[2026/27 From - Total]]","v":0},{"$f":"Dataset[[#This Row],[2023/24 Reduction]]","v":0},{"$f":"SUM(Dataset[[#This Row],[2024/25 Reduction]],Dataset[[#This Row],[2024/25 From - Total]],Dataset[[#This Row],[2024/25 To - Total]])","v":0},{"$f":"SUM(Dataset[[#This Row],[2025/26 Reduction]],Dataset[[#This Row],[2025/26 From - Total]],Dataset[[#This Row],[2025/26 To - Total]])","v":0},{"$f":"SUM(Dataset[[#This Row],[2026/27 Reduction]],Dataset[[#This Row],[2026/27 From - Total]],Dataset[[#This Row],[2026/27 To - Total]])","v":0},{"$f":"Dataset[[#This Row],[2023/24 Baseline]]+Dataset[[#This Row],[2023/24 Total change]]","v":0},{"$f":"Dataset[[#This Row],[2024/25 Baseline]]+Dataset[[#This Row],[2024/25 Total change]]","v":0},{"$f":"Dataset[[#This Row],[2025/26 Baseline]]+Dataset[[#This Row],[2025/26 Total change]]","v":0},{"$f":"Dataset[[#This Row],[2026/27 Baseline]]+Dataset[[#This Row],[2026/27 Total change]]","v":0}]
["NAT|Non-transfer item","26|Inventory: Learner and teacher support material","2024_25","MTEF2024",26,1,2,43989,102,"26","01","02","043989","000102","26|01|02","01","01","02","25","25","01|01|02|25|25","National","Military Veterans","Administration","Corporate Services","Non-transfer item","Current","Current payments","Goods and services","Inventory: Learner and teacher support material","Inventory: Learner and teacher support material","Peace and security","Defence and state security","NAT",0,0,0,0,0,0,0,0,0,0,0,null,null,null,null,null,null,null,null,null,null,null,null,null,null,null,null,null,null,null,null,null,null,null,null,null,null,null,null,null,null,null,null,null,null,{"$f":"Dataset[[#This Row],[2024/25 From - Spending review Topic 1]]+Dataset[[#This Row],[2024/25 From - Spending review Topic 2]]+Dataset[[#This Row],[2024/25 From - Spending review Topic 3]]+Dataset[[#This Row],[2024/25 From - Spending review Topic 4]]+Dataset[[#This Row],[2024/25 From - Other reallocations]]","v":0},{"$f":"Dataset[[#This Row],[2025/26 From - Spending review Topic 1]]+Dataset[[#This Row],[2025/26 From - Spending review Topic 2]]+Dataset[[#This Row],[2025/26 From - Spending review Topic 3]]+Dataset[[#This Row],[2025/26 From - Spending review Topic 4]]+Dataset[[#This Row],[2025/26 From - Other reallocations]]","v":0},{"$f":"Dataset[[#This Row],[2026/27 From - Spending review Topic 1]]+Dataset[[#This Row],[2026/27 From - Spending review Topic 2]]+Dataset[[#This Row],[2026/27 From - Spending review Topic 3]]+Dataset[[#This Row],[2026/27 From - Spending review Topic 4]]+Dataset[[#This Row],[2026/27 From - Other reallocations]]","v":0},{"$f":"Dataset[[#This Row],[2024/25 To - Spending review Topic 1]]+Dataset[[#This Row],[2024/25 To - Spending review Topic 2]]+Dataset[[#This Row],[2024/25 To - Spending review Topic 3]]+Dataset[[#This Row],[2024/25 To - Spending review Topic 4]]+Dataset[[#This Row],[2024/25 To - Other reallocations]]","v":0},{"$f":"Dataset[[#This Row],[2025/26 To - Spending review Topic 1]]+Dataset[[#This Row],[2025/26 To - Spending review Topic 2]]+Dataset[[#This Row],[2025/26 To - Spending review Topic 3]]+Dataset[[#This Row],[2025/26 To - Spending review Topic 4]]+Dataset[[#This Row],[2025/26 To - Other reallocations]]","v":0},{"$f":"Dataset[[#This Row],[2026/27 To - Spending review Topic 1]]+Dataset[[#This Row],[2026/27 To - Spending review Topic 2]]+Dataset[[#This Row],[2026/27 To - Spending review Topic 3]]+Dataset[[#This Row],[2026/27 To - Spending review Topic 4]]+Dataset[[#This Row],[2026/27 To - Other reallocations]]","v":0},{"$f":"Dataset[[#This Row],[2024/25 Reduction]]+Dataset[[#This Row],[2024/25 From - Total]]","v":0},{"$f":"Dataset[[#This Row],[2025/26 Reduction]]+Dataset[[#This Row],[2025/26 From - Total]]","v":0},{"$f":"Dataset[[#This Row],[2026/27 Reduction]]+Dataset[[#This Row],[2026/27 From - Total]]","v":0},{"$f":"Dataset[[#This Row],[2023/24 Reduction]]","v":0},{"$f":"SUM(Dataset[[#This Row],[2024/25 Reduction]],Dataset[[#This Row],[2024/25 From - Total]],Dataset[[#This Row],[2024/25 To - Total]])","v":0},{"$f":"SUM(Dataset[[#This Row],[2025/26 Reduction]],Dataset[[#This Row],[2025/26 From - Total]],Dataset[[#This Row],[2025/26 To - Total]])","v":0},{"$f":"SUM(Dataset[[#This Row],[2026/27 Reduction]],Dataset[[#This Row],[2026/27 From - Total]],Dataset[[#This Row],[2026/27 To - Total]])","v":0},{"$f":"Dataset[[#This Row],[2023/24 Baseline]]+Dataset[[#This Row],[2023/24 Total change]]","v":0},{"$f":"Dataset[[#This Row],[2024/25 Baseline]]+Dataset[[#This Row],[2024/25 Total change]]","v":0},{"$f":"Dataset[[#This Row],[2025/26 Baseline]]+Dataset[[#This Row],[2025/26 Total change]]","v":0},{"$f":"Dataset[[#This Row],[2026/27 Baseline]]+Dataset[[#This Row],[2026/27 Total change]]","v":0}]
["NAT|Non-transfer item","26|Inventory: Materials and supplies","2024_25","MTEF2024",26,1,2,43990,103,"26","01","02","043990","000103","26|01|02","01","01","02","26","26","01|01|02|26|26","National","Military Veterans","Administration","Corporate Services","Non-transfer item","Current","Current payments","Goods and services","Inventory: Materials and supplies","Inventory: Materials and supplies","Peace and security","Defence and state security","NAT",0,0,0,0,0,0,0,0,0,0,0,null,null,null,null,null,null,null,null,null,null,null,null,null,null,null,null,null,null,null,null,null,null,null,null,null,null,null,null,null,null,null,null,null,null,{"$f":"Dataset[[#This Row],[2024/25 From - Spending review Topic 1]]+Dataset[[#This Row],[2024/25 From - Spending review Topic 2]]+Dataset[[#This Row],[2024/25 From - Spending review Topic 3]]+Dataset[[#This Row],[2024/25 From - Spending review Topic 4]]+Dataset[[#This Row],[2024/25 From - Other reallocations]]","v":0},{"$f":"Dataset[[#This Row],[2025/26 From - Spending review Topic 1]]+Dataset[[#This Row],[2025/26 From - Spending review Topic 2]]+Dataset[[#This Row],[2025/26 From - Spending review Topic 3]]+Dataset[[#This Row],[2025/26 From - Spending review Topic 4]]+Dataset[[#This Row],[2025/26 From - Other reallocations]]","v":0},{"$f":"Dataset[[#This Row],[2026/27 From - Spending review Topic 1]]+Dataset[[#This Row],[2026/27 From - Spending review Topic 2]]+Dataset[[#This Row],[2026/27 From - Spending review Topic 3]]+Dataset[[#This Row],[2026/27 From - Spending review Topic 4]]+Dataset[[#This Row],[2026/27 From - Other reallocations]]","v":0},{"$f":"Dataset[[#This Row],[2024/25 To - Spending review Topic 1]]+Dataset[[#This Row],[2024/25 To - Spending review Topic 2]]+Dataset[[#This Row],[2024/25 To - Spending review Topic 3]]+Dataset[[#This Row],[2024/25 To - Spending review Topic 4]]+Dataset[[#This Row],[2024/25 To - Other reallocations]]","v":0},{"$f":"Dataset[[#This Row],[2025/26 To - Spending review Topic 1]]+Dataset[[#This Row],[2025/26 To - Spending review Topic 2]]+Dataset[[#This Row],[2025/26 To - Spending review Topic 3]]+Dataset[[#This Row],[2025/26 To - Spending review Topic 4]]+Dataset[[#This Row],[2025/26 To - Other reallocations]]","v":0},{"$f":"Dataset[[#This Row],[2026/27 To - Spending review Topic 1]]+Dataset[[#This Row],[2026/27 To - Spending review Topic 2]]+Dataset[[#This Row],[2026/27 To - Spending review Topic 3]]+Dataset[[#This Row],[2026/27 To - Spending review Topic 4]]+Dataset[[#This Row],[2026/27 To - Other reallocations]]","v":0},{"$f":"Dataset[[#This Row],[2024/25 Reduction]]+Dataset[[#This Row],[2024/25 From - Total]]","v":0},{"$f":"Dataset[[#This Row],[2025/26 Reduction]]+Dataset[[#This Row],[2025/26 From - Total]]","v":0},{"$f":"Dataset[[#This Row],[2026/27 Reduction]]+Dataset[[#This Row],[2026/27 From - Total]]","v":0},{"$f":"Dataset[[#This Row],[2023/24 Reduction]]","v":0},{"$f":"SUM(Dataset[[#This Row],[2024/25 Reduction]],Dataset[[#This Row],[2024/25 From - Total]],Dataset[[#This Row],[2024/25 To - Total]])","v":0},{"$f":"SUM(Dataset[[#This Row],[2025/26 Reduction]],Dataset[[#This Row],[2025/26 From - Total]],Dataset[[#This Row],[2025/26 To - Total]])","v":0},{"$f":"SUM(Dataset[[#This Row],[2026/27 Reduction]],Dataset[[#This Row],[2026/27 From - Total]],Dataset[[#This Row],[2026/27 To - Total]])","v":0},{"$f":"Dataset[[#This Row],[2023/24 Baseline]]+Dataset[[#This Row],[2023/24 Total change]]","v":0},{"$f":"Dataset[[#This Row],[2024/25 Baseline]]+Dataset[[#This Row],[2024/25 Total change]]","v":0},{"$f":"Dataset[[#This Row],[2025/26 Baseline]]+Dataset[[#This Row],[2025/26 Total change]]","v":0},{"$f":"Dataset[[#This Row],[2026/27 Baseline]]+Dataset[[#This Row],[2026/27 Total change]]","v":0}]
["NAT|Non-transfer item","26|Inventory: Medical supplies","2024_25","MTEF2024",26,1,2,43991,104,"26","01","02","043991","000104","26|01|02","01","01","02","27","27","01|01|02|27|27","National","Military Veterans","Administration","Corporate Services","Non-transfer item","Current","Current payments","Goods and services","Inventory: Medical supplies","Inventory: Medical supplies","Peace and security","Defence and state security","NAT",0,0,0,0,0,0,0,0,0,0,0,null,null,null,null,null,null,null,null,null,null,null,null,null,null,null,null,null,null,null,null,null,null,null,null,null,null,null,null,null,null,null,null,null,null,{"$f":"Dataset[[#This Row],[2024/25 From - Spending review Topic 1]]+Dataset[[#This Row],[2024/25 From - Spending review Topic 2]]+Dataset[[#This Row],[2024/25 From - Spending review Topic 3]]+Dataset[[#This Row],[2024/25 From - Spending review Topic 4]]+Dataset[[#This Row],[2024/25 From - Other reallocations]]","v":0},{"$f":"Dataset[[#This Row],[2025/26 From - Spending review Topic 1]]+Dataset[[#This Row],[2025/26 From - Spending review Topic 2]]+Dataset[[#This Row],[2025/26 From - Spending review Topic 3]]+Dataset[[#This Row],[2025/26 From - Spending review Topic 4]]+Dataset[[#This Row],[2025/26 From - Other reallocations]]","v":0},{"$f":"Dataset[[#This Row],[2026/27 From - Spending review Topic 1]]+Dataset[[#This Row],[2026/27 From - Spending review Topic 2]]+Dataset[[#This Row],[2026/27 From - Spending review Topic 3]]+Dataset[[#This Row],[2026/27 From - Spending review Topic 4]]+Dataset[[#This Row],[2026/27 From - Other reallocations]]","v":0},{"$f":"Dataset[[#This Row],[2024/25 To - Spending review Topic 1]]+Dataset[[#This Row],[2024/25 To - Spending review Topic 2]]+Dataset[[#This Row],[2024/25 To - Spending review Topic 3]]+Dataset[[#This Row],[2024/25 To - Spending review Topic 4]]+Dataset[[#This Row],[2024/25 To - Other reallocations]]","v":0},{"$f":"Dataset[[#This Row],[2025/26 To - Spending review Topic 1]]+Dataset[[#This Row],[2025/26 To - Spending review Topic 2]]+Dataset[[#This Row],[2025/26 To - Spending review Topic 3]]+Dataset[[#This Row],[2025/26 To - Spending review Topic 4]]+Dataset[[#This Row],[2025/26 To - Other reallocations]]","v":0},{"$f":"Dataset[[#This Row],[2026/27 To - Spending review Topic 1]]+Dataset[[#This Row],[2026/27 To - Spending review Topic 2]]+Dataset[[#This Row],[2026/27 To - Spending review Topic 3]]+Dataset[[#This Row],[2026/27 To - Spending review Topic 4]]+Dataset[[#This Row],[2026/27 To - Other reallocations]]","v":0},{"$f":"Dataset[[#This Row],[2024/25 Reduction]]+Dataset[[#This Row],[2024/25 From - Total]]","v":0},{"$f":"Dataset[[#This Row],[2025/26 Reduction]]+Dataset[[#This Row],[2025/26 From - Total]]","v":0},{"$f":"Dataset[[#This Row],[2026/27 Reduction]]+Dataset[[#This Row],[2026/27 From - Total]]","v":0},{"$f":"Dataset[[#This Row],[2023/24 Reduction]]","v":0},{"$f":"SUM(Dataset[[#This Row],[2024/25 Reduction]],Dataset[[#This Row],[2024/25 From - Total]],Dataset[[#This Row],[2024/25 To - Total]])","v":0},{"$f":"SUM(Dataset[[#This Row],[2025/26 Reduction]],Dataset[[#This Row],[2025/26 From - Total]],Dataset[[#This Row],[2025/26 To - Total]])","v":0},{"$f":"SUM(Dataset[[#This Row],[2026/27 Reduction]],Dataset[[#This Row],[2026/27 From - Total]],Dataset[[#This Row],[2026/27 To - Total]])","v":0},{"$f":"Dataset[[#This Row],[2023/24 Baseline]]+Dataset[[#This Row],[2023/24 Total change]]","v":0},{"$f":"Dataset[[#This Row],[2024/25 Baseline]]+Dataset[[#This Row],[2024/25 Total change]]","v":0},{"$f":"Dataset[[#This Row],[2025/26 Baseline]]+Dataset[[#This Row],[2025/26 Total change]]","v":0},{"$f":"Dataset[[#This Row],[2026/27 Baseline]]+Dataset[[#This Row],[2026/27 Total change]]","v":0}]
["NAT|Non-transfer item","26|Inventory: Medicine","2024_25","MTEF2024",26,1,2,43992,105,"26","01","02","043992","000105","26|01|02","01","01","02","28","28","01|01|02|28|28","National","Military Veterans","Administration","Corporate Services","Non-transfer item","Current","Current payments","Goods and services","Inventory: Medicine","Inventory: Medicine","Peace and security","Defence and state security","NAT",0,0,0,0,0,0,0,0,0,0,0,null,null,null,null,null,null,null,null,null,null,null,null,null,null,null,null,null,null,null,null,null,null,null,null,null,null,null,null,null,null,null,null,null,null,{"$f":"Dataset[[#This Row],[2024/25 From - Spending review Topic 1]]+Dataset[[#This Row],[2024/25 From - Spending review Topic 2]]+Dataset[[#This Row],[2024/25 From - Spending review Topic 3]]+Dataset[[#This Row],[2024/25 From - Spending review Topic 4]]+Dataset[[#This Row],[2024/25 From - Other reallocations]]","v":0},{"$f":"Dataset[[#This Row],[2025/26 From - Spending review Topic 1]]+Dataset[[#This Row],[2025/26 From - Spending review Topic 2]]+Dataset[[#This Row],[2025/26 From - Spending review Topic 3]]+Dataset[[#This Row],[2025/26 From - Spending review Topic 4]]+Dataset[[#This Row],[2025/26 From - Other reallocations]]","v":0},{"$f":"Dataset[[#This Row],[2026/27 From - Spending review Topic 1]]+Dataset[[#This Row],[2026/27 From - Spending review Topic 2]]+Dataset[[#This Row],[2026/27 From - Spending review Topic 3]]+Dataset[[#This Row],[2026/27 From - Spending review Topic 4]]+Dataset[[#This Row],[2026/27 From - Other reallocations]]","v":0},{"$f":"Dataset[[#This Row],[2024/25 To - Spending review Topic 1]]+Dataset[[#This Row],[2024/25 To - Spending review Topic 2]]+Dataset[[#This Row],[2024/25 To - Spending review Topic 3]]+Dataset[[#This Row],[2024/25 To - Spending review Topic 4]]+Dataset[[#This Row],[2024/25 To - Other reallocations]]","v":0},{"$f":"Dataset[[#This Row],[2025/26 To - Spending review Topic 1]]+Dataset[[#This Row],[2025/26 To - Spending review Topic 2]]+Dataset[[#This Row],[2025/26 To - Spending review Topic 3]]+Dataset[[#This Row],[2025/26 To - Spending review Topic 4]]+Dataset[[#This Row],[2025/26 To - Other reallocations]]","v":0},{"$f":"Dataset[[#This Row],[2026/27 To - Spending review Topic 1]]+Dataset[[#This Row],[2026/27 To - Spending review Topic 2]]+Dataset[[#This Row],[2026/27 To - Spending review Topic 3]]+Dataset[[#This Row],[2026/27 To - Spending review Topic 4]]+Dataset[[#This Row],[2026/27 To - Other reallocations]]","v":0},{"$f":"Dataset[[#This Row],[2024/25 Reduction]]+Dataset[[#This Row],[2024/25 From - Total]]","v":0},{"$f":"Dataset[[#This Row],[2025/26 Reduction]]+Dataset[[#This Row],[2025/26 From - Total]]","v":0},{"$f":"Dataset[[#This Row],[2026/27 Reduction]]+Dataset[[#This Row],[2026/27 From - Total]]","v":0},{"$f":"Dataset[[#This Row],[2023/24 Reduction]]","v":0},{"$f":"SUM(Dataset[[#This Row],[2024/25 Reduction]],Dataset[[#This Row],[2024/25 From - Total]],Dataset[[#This Row],[2024/25 To - Total]])","v":0},{"$f":"SUM(Dataset[[#This Row],[2025/26 Reduction]],Dataset[[#This Row],[2025/26 From - Total]],Dataset[[#This Row],[2025/26 To - Total]])","v":0},{"$f":"SUM(Dataset[[#This Row],[2026/27 Reduction]],Dataset[[#This Row],[2026/27 From - Total]],Dataset[[#This Row],[2026/27 To - Total]])","v":0},{"$f":"Dataset[[#This Row],[2023/24 Baseline]]+Dataset[[#This Row],[2023/24 Total change]]","v":0},{"$f":"Dataset[[#This Row],[2024/25 Baseline]]+Dataset[[#This Row],[2024/25 Total change]]","v":0},{"$f":"Dataset[[#This Row],[2025/26 Baseline]]+Dataset[[#This Row],[2025/26 Total change]]","v":0},{"$f":"Dataset[[#This Row],[2026/27 Baseline]]+Dataset[[#This Row],[2026/27 Total change]]","v":0}]
["NAT|Non-transfer item","26|Medsas inventory interface","2024_25","MTEF2024",26,1,2,43993,106,"26","01","02","043993","000106","26|01|02","01","01","02","29","29","01|01|02|29|29","National","Military Veterans","Administration","Corporate Services","Non-transfer item","Current","Current payments","Goods and services","Medsas inventory interface","Medsas inventory interface","Peace and security","Defence and state security","NAT",0,0,0,0,0,0,0,0,0,0,0,null,null,null,null,null,null,null,null,null,null,null,null,null,null,null,null,null,null,null,null,null,null,null,null,null,null,null,null,null,null,null,null,null,null,{"$f":"Dataset[[#This Row],[2024/25 From - Spending review Topic 1]]+Dataset[[#This Row],[2024/25 From - Spending review Topic 2]]+Dataset[[#This Row],[2024/25 From - Spending review Topic 3]]+Dataset[[#This Row],[2024/25 From - Spending review Topic 4]]+Dataset[[#This Row],[2024/25 From - Other reallocations]]","v":0},{"$f":"Dataset[[#This Row],[2025/26 From - Spending review Topic 1]]+Dataset[[#This Row],[2025/26 From - Spending review Topic 2]]+Dataset[[#This Row],[2025/26 From - Spending review Topic 3]]+Dataset[[#This Row],[2025/26 From - Spending review Topic 4]]+Dataset[[#This Row],[2025/26 From - Other reallocations]]","v":0},{"$f":"Dataset[[#This Row],[2026/27 From - Spending review Topic 1]]+Dataset[[#This Row],[2026/27 From - Spending review Topic 2]]+Dataset[[#This Row],[2026/27 From - Spending review Topic 3]]+Dataset[[#This Row],[2026/27 From - Spending review Topic 4]]+Dataset[[#This Row],[2026/27 From - Other reallocations]]","v":0},{"$f":"Dataset[[#This Row],[2024/25 To - Spending review Topic 1]]+Dataset[[#This Row],[2024/25 To - Spending review Topic 2]]+Dataset[[#This Row],[2024/25 To - Spending review Topic 3]]+Dataset[[#This Row],[2024/25 To - Spending review Topic 4]]+Dataset[[#This Row],[2024/25 To - Other reallocations]]","v":0},{"$f":"Dataset[[#This Row],[2025/26 To - Spending review Topic 1]]+Dataset[[#This Row],[2025/26 To - Spending review Topic 2]]+Dataset[[#This Row],[2025/26 To - Spending review Topic 3]]+Dataset[[#This Row],[2025/26 To - Spending review Topic 4]]+Dataset[[#This Row],[2025/26 To - Other reallocations]]","v":0},{"$f":"Dataset[[#This Row],[2026/27 To - Spending review Topic 1]]+Dataset[[#This Row],[2026/27 To - Spending review Topic 2]]+Dataset[[#This Row],[2026/27 To - Spending review Topic 3]]+Dataset[[#This Row],[2026/27 To - Spending review Topic 4]]+Dataset[[#This Row],[2026/27 To - Other reallocations]]","v":0},{"$f":"Dataset[[#This Row],[2024/25 Reduction]]+Dataset[[#This Row],[2024/25 From - Total]]","v":0},{"$f":"Dataset[[#This Row],[2025/26 Reduction]]+Dataset[[#This Row],[2025/26 From - Total]]","v":0},{"$f":"Dataset[[#This Row],[2026/27 Reduction]]+Dataset[[#This Row],[2026/27 From - Total]]","v":0},{"$f":"Dataset[[#This Row],[2023/24 Reduction]]","v":0},{"$f":"SUM(Dataset[[#This Row],[2024/25 Reduction]],Dataset[[#This Row],[2024/25 From - Total]],Dataset[[#This Row],[2024/25 To - Total]])","v":0},{"$f":"SUM(Dataset[[#This Row],[2025/26 Reduction]],Dataset[[#This Row],[2025/26 From - Total]],Dataset[[#This Row],[2025/26 To - Total]])","v":0},{"$f":"SUM(Dataset[[#This Row],[2026/27 Reduction]],Dataset[[#This Row],[2026/27 From - Total]],Dataset[[#This Row],[2026/27 To - Total]])","v":0},{"$f":"Dataset[[#This Row],[2023/24 Baseline]]+Dataset[[#This Row],[2023/24 Total change]]","v":0},{"$f":"Dataset[[#This Row],[2024/25 Baseline]]+Dataset[[#This Row],[2024/25 Total change]]","v":0},{"$f":"Dataset[[#This Row],[2025/26 Baseline]]+Dataset[[#This Row],[2025/26 Total change]]","v":0},{"$f":"Dataset[[#This Row],[2026/27 Baseline]]+Dataset[[#This Row],[2026/27 Total change]]","v":0}]
["NAT|Non-transfer item","26|Inventory: Other supplies","2024_25","MTEF2024",26,1,2,43994,107,"26","01","02","043994","000107","26|01|02","01","01","02","30","30","01|01|02|30|30","National","Military Veterans","Administration","Corporate Services","Non-transfer item","Current","Current payments","Goods and services","Inventory: Other supplies","Inventory: Other supplies","Peace and security","Defence and state security","NAT",0,0,0,0,0,0,0,0,0,0,0,null,null,null,null,null,null,null,null,null,null,null,null,null,null,null,null,null,null,null,null,null,null,null,null,null,null,null,null,null,null,null,null,null,null,{"$f":"Dataset[[#This Row],[2024/25 From - Spending review Topic 1]]+Dataset[[#This Row],[2024/25 From - Spending review Topic 2]]+Dataset[[#This Row],[2024/25 From - Spending review Topic 3]]+Dataset[[#This Row],[2024/25 From - Spending review Topic 4]]+Dataset[[#This Row],[2024/25 From - Other reallocations]]","v":0},{"$f":"Dataset[[#This Row],[2025/26 From - Spending review Topic 1]]+Dataset[[#This Row],[2025/26 From - Spending review Topic 2]]+Dataset[[#This Row],[2025/26 From - Spending review Topic 3]]+Dataset[[#This Row],[2025/26 From - Spending review Topic 4]]+Dataset[[#This Row],[2025/26 From - Other reallocations]]","v":0},{"$f":"Dataset[[#This Row],[2026/27 From - Spending review Topic 1]]+Dataset[[#This Row],[2026/27 From - Spending review Topic 2]]+Dataset[[#This Row],[2026/27 From - Spending review Topic 3]]+Dataset[[#This Row],[2026/27 From - Spending review Topic 4]]+Dataset[[#This Row],[2026/27 From - Other reallocations]]","v":0},{"$f":"Dataset[[#This Row],[2024/25 To - Spending review Topic 1]]+Dataset[[#This Row],[2024/25 To - Spending review Topic 2]]+Dataset[[#This Row],[2024/25 To - Spending review Topic 3]]+Dataset[[#This Row],[2024/25 To - Spending review Topic 4]]+Dataset[[#This Row],[2024/25 To - Other reallocations]]","v":0},{"$f":"Dataset[[#This Row],[2025/26 To - Spending review Topic 1]]+Dataset[[#This Row],[2025/26 To - Spending review Topic 2]]+Dataset[[#This Row],[2025/26 To - Spending review Topic 3]]+Dataset[[#This Row],[2025/26 To - Spending review Topic 4]]+Dataset[[#This Row],[2025/26 To - Other reallocations]]","v":0},{"$f":"Dataset[[#This Row],[2026/27 To - Spending review Topic 1]]+Dataset[[#This Row],[2026/27 To - Spending review Topic 2]]+Dataset[[#This Row],[2026/27 To - Spending review Topic 3]]+Dataset[[#This Row],[2026/27 To - Spending review Topic 4]]+Dataset[[#This Row],[2026/27 To - Other reallocations]]","v":0},{"$f":"Dataset[[#This Row],[2024/25 Reduction]]+Dataset[[#This Row],[2024/25 From - Total]]","v":0},{"$f":"Dataset[[#This Row],[2025/26 Reduction]]+Dataset[[#This Row],[2025/26 From - Total]]","v":0},{"$f":"Dataset[[#This Row],[2026/27 Reduction]]+Dataset[[#This Row],[2026/27 From - Total]]","v":0},{"$f":"Dataset[[#This Row],[2023/24 Reduction]]","v":0},{"$f":"SUM(Dataset[[#This Row],[2024/25 Reduction]],Dataset[[#This Row],[2024/25 From - Total]],Dataset[[#This Row],[2024/25 To - Total]])","v":0},{"$f":"SUM(Dataset[[#This Row],[2025/26 Reduction]],Dataset[[#This Row],[2025/26 From - Total]],Dataset[[#This Row],[2025/26 To - Total]])","v":0},{"$f":"SUM(Dataset[[#This Row],[2026/27 Reduction]],Dataset[[#This Row],[2026/27 From - Total]],Dataset[[#This Row],[2026/27 To - Total]])","v":0},{"$f":"Dataset[[#This Row],[2023/24 Baseline]]+Dataset[[#This Row],[2023/24 Total change]]","v":0},{"$f":"Dataset[[#This Row],[2024/25 Baseline]]+Dataset[[#This Row],[2024/25 Total change]]","v":0},{"$f":"Dataset[[#This Row],[2025/26 Baseline]]+Dataset[[#This Row],[2025/26 Total change]]","v":0},{"$f":"Dataset[[#This Row],[2026/27 Baseline]]+Dataset[[#This Row],[2026/27 Total change]]","v":0}]
["NAT|Non-transfer item","26|Consumable supplies","2024_25","MTEF2024",26,1,2,43995,108,"26","01","02","043995","000108","26|01|02","01","01","02","31","31","01|01|02|31|31","National","Military Veterans","Administration","Corporate Services","Non-transfer item","Current","Current payments","Goods and services","Consumable supplies","Consumable supplies","Peace and security","Defence and state security","NAT",0,0,2,515,715,715,0,36,56,80,84,null,null,null,null,null,null,null,null,null,null,null,null,null,null,null,null,null,null,null,null,null,null,null,null,null,null,null,null,null,null,null,null,null,null,{"$f":"Dataset[[#This Row],[2024/25 From - Spending review Topic 1]]+Dataset[[#This Row],[2024/25 From - Spending review Topic 2]]+Dataset[[#This Row],[2024/25 From - Spending review Topic 3]]+Dataset[[#This Row],[2024/25 From - Spending review Topic 4]]+Dataset[[#This Row],[2024/25 From - Other reallocations]]","v":0},{"$f":"Dataset[[#This Row],[2025/26 From - Spending review Topic 1]]+Dataset[[#This Row],[2025/26 From - Spending review Topic 2]]+Dataset[[#This Row],[2025/26 From - Spending review Topic 3]]+Dataset[[#This Row],[2025/26 From - Spending review Topic 4]]+Dataset[[#This Row],[2025/26 From - Other reallocations]]","v":0},{"$f":"Dataset[[#This Row],[2026/27 From - Spending review Topic 1]]+Dataset[[#This Row],[2026/27 From - Spending review Topic 2]]+Dataset[[#This Row],[2026/27 From - Spending review Topic 3]]+Dataset[[#This Row],[2026/27 From - Spending review Topic 4]]+Dataset[[#This Row],[2026/27 From - Other reallocations]]","v":0},{"$f":"Dataset[[#This Row],[2024/25 To - Spending review Topic 1]]+Dataset[[#This Row],[2024/25 To - Spending review Topic 2]]+Dataset[[#This Row],[2024/25 To - Spending review Topic 3]]+Dataset[[#This Row],[2024/25 To - Spending review Topic 4]]+Dataset[[#This Row],[2024/25 To - Other reallocations]]","v":0},{"$f":"Dataset[[#This Row],[2025/26 To - Spending review Topic 1]]+Dataset[[#This Row],[2025/26 To - Spending review Topic 2]]+Dataset[[#This Row],[2025/26 To - Spending review Topic 3]]+Dataset[[#This Row],[2025/26 To - Spending review Topic 4]]+Dataset[[#This Row],[2025/26 To - Other reallocations]]","v":0},{"$f":"Dataset[[#This Row],[2026/27 To - Spending review Topic 1]]+Dataset[[#This Row],[2026/27 To - Spending review Topic 2]]+Dataset[[#This Row],[2026/27 To - Spending review Topic 3]]+Dataset[[#This Row],[2026/27 To - Spending review Topic 4]]+Dataset[[#This Row],[2026/27 To - Other reallocations]]","v":0},{"$f":"Dataset[[#This Row],[2024/25 Reduction]]+Dataset[[#This Row],[2024/25 From - Total]]","v":0},{"$f":"Dataset[[#This Row],[2025/26 Reduction]]+Dataset[[#This Row],[2025/26 From - Total]]","v":0},{"$f":"Dataset[[#This Row],[2026/27 Reduction]]+Dataset[[#This Row],[2026/27 From - Total]]","v":0},{"$f":"Dataset[[#This Row],[2023/24 Reduction]]","v":0},{"$f":"SUM(Dataset[[#This Row],[2024/25 Reduction]],Dataset[[#This Row],[2024/25 From - Total]],Dataset[[#This Row],[2024/25 To - Total]])","v":0},{"$f":"SUM(Dataset[[#This Row],[2025/26 Reduction]],Dataset[[#This Row],[2025/26 From - Total]],Dataset[[#This Row],[2025/26 To - Total]])","v":0},{"$f":"SUM(Dataset[[#This Row],[2026/27 Reduction]],Dataset[[#This Row],[2026/27 From - Total]],Dataset[[#This Row],[2026/27 To - Total]])","v":0},{"$f":"Dataset[[#This Row],[2023/24 Baseline]]+Dataset[[#This Row],[2023/24 Total change]]","v":36},{"$f":"Dataset[[#This Row],[2024/25 Baseline]]+Dataset[[#This Row],[2024/25 Total change]]","v":56},{"$f":"Dataset[[#This Row],[2025/26 Baseline]]+Dataset[[#This Row],[2025/26 Total change]]","v":80},{"$f":"Dataset[[#This Row],[2026/27 Baseline]]+Dataset[[#This Row],[2026/27 Total change]]","v":84}]
["NAT|Non-transfer item","26|Consumables: Stationery, printing and office supplies","2024_25","MTEF2024",26,1,2,43996,109,"26","01","02","043996","000109","26|01|02","01","01","02","32","32","01|01|02|32|32","National","Military Veterans","Administration","Corporate Services","Non-transfer item","Current","Current payments","Goods and services","Consumables: Stationery, printing and office supplies","Consumables: Stationery, printing and office supplies","Peace and security","Defence and state security","NAT",218,12,13,330,250,250,0,531,544,559,585,null,null,null,null,null,null,null,null,null,null,null,null,null,null,null,null,null,null,null,null,null,null,null,null,null,null,null,null,null,null,null,null,null,null,{"$f":"Dataset[[#This Row],[2024/25 From - Spending review Topic 1]]+Dataset[[#This Row],[2024/25 From - Spending review Topic 2]]+Dataset[[#This Row],[2024/25 From - Spending review Topic 3]]+Dataset[[#This Row],[2024/25 From - Spending review Topic 4]]+Dataset[[#This Row],[2024/25 From - Other reallocations]]","v":0},{"$f":"Dataset[[#This Row],[2025/26 From - Spending review Topic 1]]+Dataset[[#This Row],[2025/26 From - Spending review Topic 2]]+Dataset[[#This Row],[2025/26 From - Spending review Topic 3]]+Dataset[[#This Row],[2025/26 From - Spending review Topic 4]]+Dataset[[#This Row],[2025/26 From - Other reallocations]]","v":0},{"$f":"Dataset[[#This Row],[2026/27 From - Spending review Topic 1]]+Dataset[[#This Row],[2026/27 From - Spending review Topic 2]]+Dataset[[#This Row],[2026/27 From - Spending review Topic 3]]+Dataset[[#This Row],[2026/27 From - Spending review Topic 4]]+Dataset[[#This Row],[2026/27 From - Other reallocations]]","v":0},{"$f":"Dataset[[#This Row],[2024/25 To - Spending review Topic 1]]+Dataset[[#This Row],[2024/25 To - Spending review Topic 2]]+Dataset[[#This Row],[2024/25 To - Spending review Topic 3]]+Dataset[[#This Row],[2024/25 To - Spending review Topic 4]]+Dataset[[#This Row],[2024/25 To - Other reallocations]]","v":0},{"$f":"Dataset[[#This Row],[2025/26 To - Spending review Topic 1]]+Dataset[[#This Row],[2025/26 To - Spending review Topic 2]]+Dataset[[#This Row],[2025/26 To - Spending review Topic 3]]+Dataset[[#This Row],[2025/26 To - Spending review Topic 4]]+Dataset[[#This Row],[2025/26 To - Other reallocations]]","v":0},{"$f":"Dataset[[#This Row],[2026/27 To - Spending review Topic 1]]+Dataset[[#This Row],[2026/27 To - Spending review Topic 2]]+Dataset[[#This Row],[2026/27 To - Spending review Topic 3]]+Dataset[[#This Row],[2026/27 To - Spending review Topic 4]]+Dataset[[#This Row],[2026/27 To - Other reallocations]]","v":0},{"$f":"Dataset[[#This Row],[2024/25 Reduction]]+Dataset[[#This Row],[2024/25 From - Total]]","v":0},{"$f":"Dataset[[#This Row],[2025/26 Reduction]]+Dataset[[#This Row],[2025/26 From - Total]]","v":0},{"$f":"Dataset[[#This Row],[2026/27 Reduction]]+Dataset[[#This Row],[2026/27 From - Total]]","v":0},{"$f":"Dataset[[#This Row],[2023/24 Reduction]]","v":0},{"$f":"SUM(Dataset[[#This Row],[2024/25 Reduction]],Dataset[[#This Row],[2024/25 From - Total]],Dataset[[#This Row],[2024/25 To - Total]])","v":0},{"$f":"SUM(Dataset[[#This Row],[2025/26 Reduction]],Dataset[[#This Row],[2025/26 From - Total]],Dataset[[#This Row],[2025/26 To - Total]])","v":0},{"$f":"SUM(Dataset[[#This Row],[2026/27 Reduction]],Dataset[[#This Row],[2026/27 From - Total]],Dataset[[#This Row],[2026/27 To - Total]])","v":0},{"$f":"Dataset[[#This Row],[2023/24 Baseline]]+Dataset[[#This Row],[2023/24 Total change]]","v":531},{"$f":"Dataset[[#This Row],[2024/25 Baseline]]+Dataset[[#This Row],[2024/25 Total change]]","v":544},{"$f":"Dataset[[#This Row],[2025/26 Baseline]]+Dataset[[#This Row],[2025/26 Total change]]","v":559},{"$f":"Dataset[[#This Row],[2026/27 Baseline]]+Dataset[[#This Row],[2026/27 Total change]]","v":585}]
["NAT|Non-transfer item","26|Operating leases","2024_25","MTEF2024",26,1,2,43997,110,"26","01","02","043997","000110","26|01|02","01","01","02","33","33","01|01|02|33|33","National","Military Veterans","Administration","Corporate Services","Non-transfer item","Current","Current payments","Goods and services","Operating leases","Operating leases","Peace and security","Defence and state security","NAT",8761,13583,9184,1405,200,200,0,3850,3703,3877,4055,null,null,null,null,null,null,null,null,null,null,null,null,null,null,null,null,null,null,null,null,null,null,null,null,null,null,null,null,null,null,null,null,null,null,{"$f":"Dataset[[#This Row],[2024/25 From - Spending review Topic 1]]+Dataset[[#This Row],[2024/25 From - Spending review Topic 2]]+Dataset[[#This Row],[2024/25 From - Spending review Topic 3]]+Dataset[[#This Row],[2024/25 From - Spending review Topic 4]]+Dataset[[#This Row],[2024/25 From - Other reallocations]]","v":0},{"$f":"Dataset[[#This Row],[2025/26 From - Spending review Topic 1]]+Dataset[[#This Row],[2025/26 From - Spending review Topic 2]]+Dataset[[#This Row],[2025/26 From - Spending review Topic 3]]+Dataset[[#This Row],[2025/26 From - Spending review Topic 4]]+Dataset[[#This Row],[2025/26 From - Other reallocations]]","v":0},{"$f":"Dataset[[#This Row],[2026/27 From - Spending review Topic 1]]+Dataset[[#This Row],[2026/27 From - Spending review Topic 2]]+Dataset[[#This Row],[2026/27 From - Spending review Topic 3]]+Dataset[[#This Row],[2026/27 From - Spending review Topic 4]]+Dataset[[#This Row],[2026/27 From - Other reallocations]]","v":0},{"$f":"Dataset[[#This Row],[2024/25 To - Spending review Topic 1]]+Dataset[[#This Row],[2024/25 To - Spending review Topic 2]]+Dataset[[#This Row],[2024/25 To - Spending review Topic 3]]+Dataset[[#This Row],[2024/25 To - Spending review Topic 4]]+Dataset[[#This Row],[2024/25 To - Other reallocations]]","v":0},{"$f":"Dataset[[#This Row],[2025/26 To - Spending review Topic 1]]+Dataset[[#This Row],[2025/26 To - Spending review Topic 2]]+Dataset[[#This Row],[2025/26 To - Spending review Topic 3]]+Dataset[[#This Row],[2025/26 To - Spending review Topic 4]]+Dataset[[#This Row],[2025/26 To - Other reallocations]]","v":0},{"$f":"Dataset[[#This Row],[2026/27 To - Spending review Topic 1]]+Dataset[[#This Row],[2026/27 To - Spending review Topic 2]]+Dataset[[#This Row],[2026/27 To - Spending review Topic 3]]+Dataset[[#This Row],[2026/27 To - Spending review Topic 4]]+Dataset[[#This Row],[2026/27 To - Other reallocations]]","v":0},{"$f":"Dataset[[#This Row],[2024/25 Reduction]]+Dataset[[#This Row],[2024/25 From - Total]]","v":0},{"$f":"Dataset[[#This Row],[2025/26 Reduction]]+Dataset[[#This Row],[2025/26 From - Total]]","v":0},{"$f":"Dataset[[#This Row],[2026/27 Reduction]]+Dataset[[#This Row],[2026/27 From - Total]]","v":0},{"$f":"Dataset[[#This Row],[2023/24 Reduction]]","v":0},{"$f":"SUM(Dataset[[#This Row],[2024/25 Reduction]],Dataset[[#This Row],[2024/25 From - Total]],Dataset[[#This Row],[2024/25 To - Total]])","v":0},{"$f":"SUM(Dataset[[#This Row],[2025/26 Reduction]],Dataset[[#This Row],[2025/26 From - Total]],Dataset[[#This Row],[2025/26 To - Total]])","v":0},{"$f":"SUM(Dataset[[#This Row],[2026/27 Reduction]],Dataset[[#This Row],[2026/27 From - Total]],Dataset[[#This Row],[2026/27 To - Total]])","v":0},{"$f":"Dataset[[#This Row],[2023/24 Baseline]]+Dataset[[#This Row],[2023/24 Total change]]","v":3850},{"$f":"Dataset[[#This Row],[2024/25 Baseline]]+Dataset[[#This Row],[2024/25 Total change]]","v":3703},{"$f":"Dataset[[#This Row],[2025/26 Baseline]]+Dataset[[#This Row],[2025/26 Total change]]","v":3877},{"$f":"Dataset[[#This Row],[2026/27 Baseline]]+Dataset[[#This Row],[2026/27 Total change]]","v":4055}]
["NAT|Non-transfer item","26|Rental and hiring","2024_25","MTEF2024",26,1,2,43998,111,"26","01","02","043998","000111","26|01|02","01","01","02","34","34","01|01|02|34|34","National","Military Veterans","Administration","Corporate Services","Non-transfer item","Current","Current payments","Goods and services","Rental and hiring","Rental and hiring","Peace and security","Defence and state security","NAT",244,0,0,624,0,0,0,0,0,0,0,null,null,null,null,null,null,null,null,null,null,null,null,null,null,null,null,null,null,null,null,null,null,null,null,null,null,null,null,null,null,null,null,null,null,{"$f":"Dataset[[#This Row],[2024/25 From - Spending review Topic 1]]+Dataset[[#This Row],[2024/25 From - Spending review Topic 2]]+Dataset[[#This Row],[2024/25 From - Spending review Topic 3]]+Dataset[[#This Row],[2024/25 From - Spending review Topic 4]]+Dataset[[#This Row],[2024/25 From - Other reallocations]]","v":0},{"$f":"Dataset[[#This Row],[2025/26 From - Spending review Topic 1]]+Dataset[[#This Row],[2025/26 From - Spending review Topic 2]]+Dataset[[#This Row],[2025/26 From - Spending review Topic 3]]+Dataset[[#This Row],[2025/26 From - Spending review Topic 4]]+Dataset[[#This Row],[2025/26 From - Other reallocations]]","v":0},{"$f":"Dataset[[#This Row],[2026/27 From - Spending review Topic 1]]+Dataset[[#This Row],[2026/27 From - Spending review Topic 2]]+Dataset[[#This Row],[2026/27 From - Spending review Topic 3]]+Dataset[[#This Row],[2026/27 From - Spending review Topic 4]]+Dataset[[#This Row],[2026/27 From - Other reallocations]]","v":0},{"$f":"Dataset[[#This Row],[2024/25 To - Spending review Topic 1]]+Dataset[[#This Row],[2024/25 To - Spending review Topic 2]]+Dataset[[#This Row],[2024/25 To - Spending review Topic 3]]+Dataset[[#This Row],[2024/25 To - Spending review Topic 4]]+Dataset[[#This Row],[2024/25 To - Other reallocations]]","v":0},{"$f":"Dataset[[#This Row],[2025/26 To - Spending review Topic 1]]+Dataset[[#This Row],[2025/26 To - Spending review Topic 2]]+Dataset[[#This Row],[2025/26 To - Spending review Topic 3]]+Dataset[[#This Row],[2025/26 To - Spending review Topic 4]]+Dataset[[#This Row],[2025/26 To - Other reallocations]]","v":0},{"$f":"Dataset[[#This Row],[2026/27 To - Spending review Topic 1]]+Dataset[[#This Row],[2026/27 To - Spending review Topic 2]]+Dataset[[#This Row],[2026/27 To - Spending review Topic 3]]+Dataset[[#This Row],[2026/27 To - Spending review Topic 4]]+Dataset[[#This Row],[2026/27 To - Other reallocations]]","v":0},{"$f":"Dataset[[#This Row],[2024/25 Reduction]]+Dataset[[#This Row],[2024/25 From - Total]]","v":0},{"$f":"Dataset[[#This Row],[2025/26 Reduction]]+Dataset[[#This Row],[2025/26 From - Total]]","v":0},{"$f":"Dataset[[#This Row],[2026/27 Reduction]]+Dataset[[#This Row],[2026/27 From - Total]]","v":0},{"$f":"Dataset[[#This Row],[2023/24 Reduction]]","v":0},{"$f":"SUM(Dataset[[#This Row],[2024/25 Reduction]],Dataset[[#This Row],[2024/25 From - Total]],Dataset[[#This Row],[2024/25 To - Total]])","v":0},{"$f":"SUM(Dataset[[#This Row],[2025/26 Reduction]],Dataset[[#This Row],[2025/26 From - Total]],Dataset[[#This Row],[2025/26 To - Total]])","v":0},{"$f":"SUM(Dataset[[#This Row],[2026/27 Reduction]],Dataset[[#This Row],[2026/27 From - Total]],Dataset[[#This Row],[2026/27 To - Total]])","v":0},{"$f":"Dataset[[#This Row],[2023/24 Baseline]]+Dataset[[#This Row],[2023/24 Total change]]","v":0},{"$f":"Dataset[[#This Row],[2024/25 Baseline]]+Dataset[[#This Row],[2024/25 Total change]]","v":0},{"$f":"Dataset[[#This Row],[2025/26 Baseline]]+Dataset[[#This Row],[2025/26 Total change]]","v":0},{"$f":"Dataset[[#This Row],[2026/27 Baseline]]+Dataset[[#This Row],[2026/27 Total change]]","v":0}]
["NAT|Non-transfer item","26|Property payments","2024_25","MTEF2024",26,1,2,43999,112,"26","01","02","043999","000112","26|01|02","01","01","02","35","35","01|01|02|35|35","National","Military Veterans","Administration","Corporate Services","Non-transfer item","Current","Current payments","Goods and services","Property payments","Property payments","Peace and security","Defence and state security","NAT",0,0,4536,4000,0,0,0,0,0,0,0,null,null,null,null,null,null,null,null,null,null,null,null,null,null,null,null,null,null,null,null,null,null,null,null,null,null,null,null,null,null,null,null,null,null,{"$f":"Dataset[[#This Row],[2024/25 From - Spending review Topic 1]]+Dataset[[#This Row],[2024/25 From - Spending review Topic 2]]+Dataset[[#This Row],[2024/25 From - Spending review Topic 3]]+Dataset[[#This Row],[2024/25 From - Spending review Topic 4]]+Dataset[[#This Row],[2024/25 From - Other reallocations]]","v":0},{"$f":"Dataset[[#This Row],[2025/26 From - Spending review Topic 1]]+Dataset[[#This Row],[2025/26 From - Spending review Topic 2]]+Dataset[[#This Row],[2025/26 From - Spending review Topic 3]]+Dataset[[#This Row],[2025/26 From - Spending review Topic 4]]+Dataset[[#This Row],[2025/26 From - Other reallocations]]","v":0},{"$f":"Dataset[[#This Row],[2026/27 From - Spending review Topic 1]]+Dataset[[#This Row],[2026/27 From - Spending review Topic 2]]+Dataset[[#This Row],[2026/27 From - Spending review Topic 3]]+Dataset[[#This Row],[2026/27 From - Spending review Topic 4]]+Dataset[[#This Row],[2026/27 From - Other reallocations]]","v":0},{"$f":"Dataset[[#This Row],[2024/25 To - Spending review Topic 1]]+Dataset[[#This Row],[2024/25 To - Spending review Topic 2]]+Dataset[[#This Row],[2024/25 To - Spending review Topic 3]]+Dataset[[#This Row],[2024/25 To - Spending review Topic 4]]+Dataset[[#This Row],[2024/25 To - Other reallocations]]","v":0},{"$f":"Dataset[[#This Row],[2025/26 To - Spending review Topic 1]]+Dataset[[#This Row],[2025/26 To - Spending review Topic 2]]+Dataset[[#This Row],[2025/26 To - Spending review Topic 3]]+Dataset[[#This Row],[2025/26 To - Spending review Topic 4]]+Dataset[[#This Row],[2025/26 To - Other reallocations]]","v":0},{"$f":"Dataset[[#This Row],[2026/27 To - Spending review Topic 1]]+Dataset[[#This Row],[2026/27 To - Spending review Topic 2]]+Dataset[[#This Row],[2026/27 To - Spending review Topic 3]]+Dataset[[#This Row],[2026/27 To - Spending review Topic 4]]+Dataset[[#This Row],[2026/27 To - Other reallocations]]","v":0},{"$f":"Dataset[[#This Row],[2024/25 Reduction]]+Dataset[[#This Row],[2024/25 From - Total]]","v":0},{"$f":"Dataset[[#This Row],[2025/26 Reduction]]+Dataset[[#This Row],[2025/26 From - Total]]","v":0},{"$f":"Dataset[[#This Row],[2026/27 Reduction]]+Dataset[[#This Row],[2026/27 From - Total]]","v":0},{"$f":"Dataset[[#This Row],[2023/24 Reduction]]","v":0},{"$f":"SUM(Dataset[[#This Row],[2024/25 Reduction]],Dataset[[#This Row],[2024/25 From - Total]],Dataset[[#This Row],[2024/25 To - Total]])","v":0},{"$f":"SUM(Dataset[[#This Row],[2025/26 Reduction]],Dataset[[#This Row],[2025/26 From - Total]],Dataset[[#This Row],[2025/26 To - Total]])","v":0},{"$f":"SUM(Dataset[[#This Row],[2026/27 Reduction]],Dataset[[#This Row],[2026/27 From - Total]],Dataset[[#This Row],[2026/27 To - Total]])","v":0},{"$f":"Dataset[[#This Row],[2023/24 Baseline]]+Dataset[[#This Row],[2023/24 Total change]]","v":0},{"$f":"Dataset[[#This Row],[2024/25 Baseline]]+Dataset[[#This Row],[2024/25 Total change]]","v":0},{"$f":"Dataset[[#This Row],[2025/26 Baseline]]+Dataset[[#This Row],[2025/26 Total change]]","v":0},{"$f":"Dataset[[#This Row],[2026/27 Baseline]]+Dataset[[#This Row],[2026/27 Total change]]","v":0}]
["NAT|Non-transfer item","26|Transport provided: Departmental activity","2024_25","MTEF2024",26,1,2,44000,113,"26","01","02","044000","000113","26|01|02","01","01","02","36","36","01|01|02|36|36","National","Military Veterans","Administration","Corporate Services","Non-transfer item","Current","Current payments","Goods and services","Transport provided: Departmental activity","Transport provided: Departmental activity","Peace and security","Defence and state security","NAT",0,0,0,0,0,0,0,0,0,0,0,null,null,null,null,null,null,null,null,null,null,null,null,null,null,null,null,null,null,null,null,null,null,null,null,null,null,null,null,null,null,null,null,null,null,{"$f":"Dataset[[#This Row],[2024/25 From - Spending review Topic 1]]+Dataset[[#This Row],[2024/25 From - Spending review Topic 2]]+Dataset[[#This Row],[2024/25 From - Spending review Topic 3]]+Dataset[[#This Row],[2024/25 From - Spending review Topic 4]]+Dataset[[#This Row],[2024/25 From - Other reallocations]]","v":0},{"$f":"Dataset[[#This Row],[2025/26 From - Spending review Topic 1]]+Dataset[[#This Row],[2025/26 From - Spending review Topic 2]]+Dataset[[#This Row],[2025/26 From - Spending review Topic 3]]+Dataset[[#This Row],[2025/26 From - Spending review Topic 4]]+Dataset[[#This Row],[2025/26 From - Other reallocations]]","v":0},{"$f":"Dataset[[#This Row],[2026/27 From - Spending review Topic 1]]+Dataset[[#This Row],[2026/27 From - Spending review Topic 2]]+Dataset[[#This Row],[2026/27 From - Spending review Topic 3]]+Dataset[[#This Row],[2026/27 From - Spending review Topic 4]]+Dataset[[#This Row],[2026/27 From - Other reallocations]]","v":0},{"$f":"Dataset[[#This Row],[2024/25 To - Spending review Topic 1]]+Dataset[[#This Row],[2024/25 To - Spending review Topic 2]]+Dataset[[#This Row],[2024/25 To - Spending review Topic 3]]+Dataset[[#This Row],[2024/25 To - Spending review Topic 4]]+Dataset[[#This Row],[2024/25 To - Other reallocations]]","v":0},{"$f":"Dataset[[#This Row],[2025/26 To - Spending review Topic 1]]+Dataset[[#This Row],[2025/26 To - Spending review Topic 2]]+Dataset[[#This Row],[2025/26 To - Spending review Topic 3]]+Dataset[[#This Row],[2025/26 To - Spending review Topic 4]]+Dataset[[#This Row],[2025/26 To - Other reallocations]]","v":0},{"$f":"Dataset[[#This Row],[2026/27 To - Spending review Topic 1]]+Dataset[[#This Row],[2026/27 To - Spending review Topic 2]]+Dataset[[#This Row],[2026/27 To - Spending review Topic 3]]+Dataset[[#This Row],[2026/27 To - Spending review Topic 4]]+Dataset[[#This Row],[2026/27 To - Other reallocations]]","v":0},{"$f":"Dataset[[#This Row],[2024/25 Reduction]]+Dataset[[#This Row],[2024/25 From - Total]]","v":0},{"$f":"Dataset[[#This Row],[2025/26 Reduction]]+Dataset[[#This Row],[2025/26 From - Total]]","v":0},{"$f":"Dataset[[#This Row],[2026/27 Reduction]]+Dataset[[#This Row],[2026/27 From - Total]]","v":0},{"$f":"Dataset[[#This Row],[2023/24 Reduction]]","v":0},{"$f":"SUM(Dataset[[#This Row],[2024/25 Reduction]],Dataset[[#This Row],[2024/25 From - Total]],Dataset[[#This Row],[2024/25 To - Total]])","v":0},{"$f":"SUM(Dataset[[#This Row],[2025/26 Reduction]],Dataset[[#This Row],[2025/26 From - Total]],Dataset[[#This Row],[2025/26 To - Total]])","v":0},{"$f":"SUM(Dataset[[#This Row],[2026/27 Reduction]],Dataset[[#This Row],[2026/27 From - Total]],Dataset[[#This Row],[2026/27 To - Total]])","v":0},{"$f":"Dataset[[#This Row],[2023/24 Baseline]]+Dataset[[#This Row],[2023/24 Total change]]","v":0},{"$f":"Dataset[[#This Row],[2024/25 Baseline]]+Dataset[[#This Row],[2024/25 Total change]]","v":0},{"$f":"Dataset[[#This Row],[2025/26 Baseline]]+Dataset[[#This Row],[2025/26 Total change]]","v":0},{"$f":"Dataset[[#This Row],[2026/27 Baseline]]+Dataset[[#This Row],[2026/27 Total change]]","v":0}]
["NAT|Non-transfer item","26|Travel and subsistence","2024_25","MTEF2024",26,1,2,44001,114,"26","01","02","044001","000114","26|01|02","01","01","02","37","37","01|01|02|37|37","National","Military Veterans","Administration","Corporate Services","Non-transfer item","Current","Current payments","Goods and services","Travel and subsistence","Travel and subsistence","Peace and security","Defence and state security","NAT",2658,652,1152,2679,1565,1565,0,2682,2827,2954,3089,null,null,null,null,null,null,null,null,null,null,null,null,null,null,null,null,null,null,null,null,null,null,null,null,null,null,null,null,null,null,null,null,null,null,{"$f":"Dataset[[#This Row],[2024/25 From - Spending review Topic 1]]+Dataset[[#This Row],[2024/25 From - Spending review Topic 2]]+Dataset[[#This Row],[2024/25 From - Spending review Topic 3]]+Dataset[[#This Row],[2024/25 From - Spending review Topic 4]]+Dataset[[#This Row],[2024/25 From - Other reallocations]]","v":0},{"$f":"Dataset[[#This Row],[2025/26 From - Spending review Topic 1]]+Dataset[[#This Row],[2025/26 From - Spending review Topic 2]]+Dataset[[#This Row],[2025/26 From - Spending review Topic 3]]+Dataset[[#This Row],[2025/26 From - Spending review Topic 4]]+Dataset[[#This Row],[2025/26 From - Other reallocations]]","v":0},{"$f":"Dataset[[#This Row],[2026/27 From - Spending review Topic 1]]+Dataset[[#This Row],[2026/27 From - Spending review Topic 2]]+Dataset[[#This Row],[2026/27 From - Spending review Topic 3]]+Dataset[[#This Row],[2026/27 From - Spending review Topic 4]]+Dataset[[#This Row],[2026/27 From - Other reallocations]]","v":0},{"$f":"Dataset[[#This Row],[2024/25 To - Spending review Topic 1]]+Dataset[[#This Row],[2024/25 To - Spending review Topic 2]]+Dataset[[#This Row],[2024/25 To - Spending review Topic 3]]+Dataset[[#This Row],[2024/25 To - Spending review Topic 4]]+Dataset[[#This Row],[2024/25 To - Other reallocations]]","v":0},{"$f":"Dataset[[#This Row],[2025/26 To - Spending review Topic 1]]+Dataset[[#This Row],[2025/26 To - Spending review Topic 2]]+Dataset[[#This Row],[2025/26 To - Spending review Topic 3]]+Dataset[[#This Row],[2025/26 To - Spending review Topic 4]]+Dataset[[#This Row],[2025/26 To - Other reallocations]]","v":0},{"$f":"Dataset[[#This Row],[2026/27 To - Spending review Topic 1]]+Dataset[[#This Row],[2026/27 To - Spending review Topic 2]]+Dataset[[#This Row],[2026/27 To - Spending review Topic 3]]+Dataset[[#This Row],[2026/27 To - Spending review Topic 4]]+Dataset[[#This Row],[2026/27 To - Other reallocations]]","v":0},{"$f":"Dataset[[#This Row],[2024/25 Reduction]]+Dataset[[#This Row],[2024/25 From - Total]]","v":0},{"$f":"Dataset[[#This Row],[2025/26 Reduction]]+Dataset[[#This Row],[2025/26 From - Total]]","v":0},{"$f":"Dataset[[#This Row],[2026/27 Reduction]]+Dataset[[#This Row],[2026/27 From - Total]]","v":0},{"$f":"Dataset[[#This Row],[2023/24 Reduction]]","v":0},{"$f":"SUM(Dataset[[#This Row],[2024/25 Reduction]],Dataset[[#This Row],[2024/25 From - Total]],Dataset[[#This Row],[2024/25 To - Total]])","v":0},{"$f":"SUM(Dataset[[#This Row],[2025/26 Reduction]],Dataset[[#This Row],[2025/26 From - Total]],Dataset[[#This Row],[2025/26 To - Total]])","v":0},{"$f":"SUM(Dataset[[#This Row],[2026/27 Reduction]],Dataset[[#This Row],[2026/27 From - Total]],Dataset[[#This Row],[2026/27 To - Total]])","v":0},{"$f":"Dataset[[#This Row],[2023/24 Baseline]]+Dataset[[#This Row],[2023/24 Total change]]","v":2682},{"$f":"Dataset[[#This Row],[2024/25 Baseline]]+Dataset[[#This Row],[2024/25 Total change]]","v":2827},{"$f":"Dataset[[#This Row],[2025/26 Baseline]]+Dataset[[#This Row],[2025/26 Total change]]","v":2954},{"$f":"Dataset[[#This Row],[2026/27 Baseline]]+Dataset[[#This Row],[2026/27 Total change]]","v":3089}]
["NAT|Non-transfer item","26|Training and development","2024_25","MTEF2024",26,1,2,44002,115,"26","01","02","044002","000115","26|01|02","01","01","02","38","38","01|01|02|38|38","National","Military Veterans","Administration","Corporate Services","Non-transfer item","Current","Current payments","Goods and services","Training and development","Training and development","Peace and security","Defence and state security","NAT",850,41,76,2174,1954,1954,0,2176,2261,2362,2470,null,null,null,null,null,null,null,null,null,null,null,null,null,null,null,null,null,null,null,null,null,null,null,null,null,null,null,null,null,null,null,null,null,null,{"$f":"Dataset[[#This Row],[2024/25 From - Spending review Topic 1]]+Dataset[[#This Row],[2024/25 From - Spending review Topic 2]]+Dataset[[#This Row],[2024/25 From - Spending review Topic 3]]+Dataset[[#This Row],[2024/25 From - Spending review Topic 4]]+Dataset[[#This Row],[2024/25 From - Other reallocations]]","v":0},{"$f":"Dataset[[#This Row],[2025/26 From - Spending review Topic 1]]+Dataset[[#This Row],[2025/26 From - Spending review Topic 2]]+Dataset[[#This Row],[2025/26 From - Spending review Topic 3]]+Dataset[[#This Row],[2025/26 From - Spending review Topic 4]]+Dataset[[#This Row],[2025/26 From - Other reallocations]]","v":0},{"$f":"Dataset[[#This Row],[2026/27 From - Spending review Topic 1]]+Dataset[[#This Row],[2026/27 From - Spending review Topic 2]]+Dataset[[#This Row],[2026/27 From - Spending review Topic 3]]+Dataset[[#This Row],[2026/27 From - Spending review Topic 4]]+Dataset[[#This Row],[2026/27 From - Other reallocations]]","v":0},{"$f":"Dataset[[#This Row],[2024/25 To - Spending review Topic 1]]+Dataset[[#This Row],[2024/25 To - Spending review Topic 2]]+Dataset[[#This Row],[2024/25 To - Spending review Topic 3]]+Dataset[[#This Row],[2024/25 To - Spending review Topic 4]]+Dataset[[#This Row],[2024/25 To - Other reallocations]]","v":0},{"$f":"Dataset[[#This Row],[2025/26 To - Spending review Topic 1]]+Dataset[[#This Row],[2025/26 To - Spending review Topic 2]]+Dataset[[#This Row],[2025/26 To - Spending review Topic 3]]+Dataset[[#This Row],[2025/26 To - Spending review Topic 4]]+Dataset[[#This Row],[2025/26 To - Other reallocations]]","v":0},{"$f":"Dataset[[#This Row],[2026/27 To - Spending review Topic 1]]+Dataset[[#This Row],[2026/27 To - Spending review Topic 2]]+Dataset[[#This Row],[2026/27 To - Spending review Topic 3]]+Dataset[[#This Row],[2026/27 To - Spending review Topic 4]]+Dataset[[#This Row],[2026/27 To - Other reallocations]]","v":0},{"$f":"Dataset[[#This Row],[2024/25 Reduction]]+Dataset[[#This Row],[2024/25 From - Total]]","v":0},{"$f":"Dataset[[#This Row],[2025/26 Reduction]]+Dataset[[#This Row],[2025/26 From - Total]]","v":0},{"$f":"Dataset[[#This Row],[2026/27 Reduction]]+Dataset[[#This Row],[2026/27 From - Total]]","v":0},{"$f":"Dataset[[#This Row],[2023/24 Reduction]]","v":0},{"$f":"SUM(Dataset[[#This Row],[2024/25 Reduction]],Dataset[[#This Row],[2024/25 From - Total]],Dataset[[#This Row],[2024/25 To - Total]])","v":0},{"$f":"SUM(Dataset[[#This Row],[2025/26 Reduction]],Dataset[[#This Row],[2025/26 From - Total]],Dataset[[#This Row],[2025/26 To - Total]])","v":0},{"$f":"SUM(Dataset[[#This Row],[2026/27 Reduction]],Dataset[[#This Row],[2026/27 From - Total]],Dataset[[#This Row],[2026/27 To - Total]])","v":0},{"$f":"Dataset[[#This Row],[2023/24 Baseline]]+Dataset[[#This Row],[2023/24 Total change]]","v":2176},{"$f":"Dataset[[#This Row],[2024/25 Baseline]]+Dataset[[#This Row],[2024/25 Total change]]","v":2261},{"$f":"Dataset[[#This Row],[2025/26 Baseline]]+Dataset[[#This Row],[2025/26 Total change]]","v":2362},{"$f":"Dataset[[#This Row],[2026/27 Baseline]]+Dataset[[#This Row],[2026/27 Total change]]","v":2470}]
["NAT|Non-transfer item","26|Operating payments","2024_25","MTEF2024",26,1,2,44003,116,"26","01","02","044003","000116","26|01|02","01","01","02","39","39","01|01|02|39|39","National","Military Veterans","Administration","Corporate Services","Non-transfer item","Current","Current payments","Goods and services","Operating payments","Operating payments","Peace and security","Defence and state security","NAT",63,36,234,0,67,67,0,0,0,0,0,null,null,null,null,null,null,null,null,null,null,null,null,null,null,null,null,null,null,null,null,null,null,null,null,null,null,null,null,null,null,null,null,null,null,{"$f":"Dataset[[#This Row],[2024/25 From - Spending review Topic 1]]+Dataset[[#This Row],[2024/25 From - Spending review Topic 2]]+Dataset[[#This Row],[2024/25 From - Spending review Topic 3]]+Dataset[[#This Row],[2024/25 From - Spending review Topic 4]]+Dataset[[#This Row],[2024/25 From - Other reallocations]]","v":0},{"$f":"Dataset[[#This Row],[2025/26 From - Spending review Topic 1]]+Dataset[[#This Row],[2025/26 From - Spending review Topic 2]]+Dataset[[#This Row],[2025/26 From - Spending review Topic 3]]+Dataset[[#This Row],[2025/26 From - Spending review Topic 4]]+Dataset[[#This Row],[2025/26 From - Other reallocations]]","v":0},{"$f":"Dataset[[#This Row],[2026/27 From - Spending review Topic 1]]+Dataset[[#This Row],[2026/27 From - Spending review Topic 2]]+Dataset[[#This Row],[2026/27 From - Spending review Topic 3]]+Dataset[[#This Row],[2026/27 From - Spending review Topic 4]]+Dataset[[#This Row],[2026/27 From - Other reallocations]]","v":0},{"$f":"Dataset[[#This Row],[2024/25 To - Spending review Topic 1]]+Dataset[[#This Row],[2024/25 To - Spending review Topic 2]]+Dataset[[#This Row],[2024/25 To - Spending review Topic 3]]+Dataset[[#This Row],[2024/25 To - Spending review Topic 4]]+Dataset[[#This Row],[2024/25 To - Other reallocations]]","v":0},{"$f":"Dataset[[#This Row],[2025/26 To - Spending review Topic 1]]+Dataset[[#This Row],[2025/26 To - Spending review Topic 2]]+Dataset[[#This Row],[2025/26 To - Spending review Topic 3]]+Dataset[[#This Row],[2025/26 To - Spending review Topic 4]]+Dataset[[#This Row],[2025/26 To - Other reallocations]]","v":0},{"$f":"Dataset[[#This Row],[2026/27 To - Spending review Topic 1]]+Dataset[[#This Row],[2026/27 To - Spending review Topic 2]]+Dataset[[#This Row],[2026/27 To - Spending review Topic 3]]+Dataset[[#This Row],[2026/27 To - Spending review Topic 4]]+Dataset[[#This Row],[2026/27 To - Other reallocations]]","v":0},{"$f":"Dataset[[#This Row],[2024/25 Reduction]]+Dataset[[#This Row],[2024/25 From - Total]]","v":0},{"$f":"Dataset[[#This Row],[2025/26 Reduction]]+Dataset[[#This Row],[2025/26 From - Total]]","v":0},{"$f":"Dataset[[#This Row],[2026/27 Reduction]]+Dataset[[#This Row],[2026/27 From - Total]]","v":0},{"$f":"Dataset[[#This Row],[2023/24 Reduction]]","v":0},{"$f":"SUM(Dataset[[#This Row],[2024/25 Reduction]],Dataset[[#This Row],[2024/25 From - Total]],Dataset[[#This Row],[2024/25 To - Total]])","v":0},{"$f":"SUM(Dataset[[#This Row],[2025/26 Reduction]],Dataset[[#This Row],[2025/26 From - Total]],Dataset[[#This Row],[2025/26 To - Total]])","v":0},{"$f":"SUM(Dataset[[#This Row],[2026/27 Reduction]],Dataset[[#This Row],[2026/27 From - Total]],Dataset[[#This Row],[2026/27 To - Total]])","v":0},{"$f":"Dataset[[#This Row],[2023/24 Baseline]]+Dataset[[#This Row],[2023/24 Total change]]","v":0},{"$f":"Dataset[[#This Row],[2024/25 Baseline]]+Dataset[[#This Row],[2024/25 Total change]]","v":0},{"$f":"Dataset[[#This Row],[2025/26 Baseline]]+Dataset[[#This Row],[2025/26 Total change]]","v":0},{"$f":"Dataset[[#This Row],[2026/27 Baseline]]+Dataset[[#This Row],[2026/27 Total change]]","v":0}]
["NAT|Non-transfer item","26|Venues and facilities","2024_25","MTEF2024",26,1,2,44004,117,"26","01","02","044004","000117","26|01|02","01","01","02","40","40","01|01|02|40|40","National","Military Veterans","Administration","Corporate Services","Non-transfer item","Current","Current payments","Goods and services","Venues and facilities","Venues and facilities","Peace and security","Defence and state security","NAT",5,0,4,0,-145,-145,0,100,120,140,146,null,null,null,null,null,null,null,null,null,null,null,null,null,null,null,null,null,null,null,null,null,null,null,null,null,null,null,null,null,null,null,null,null,null,{"$f":"Dataset[[#This Row],[2024/25 From - Spending review Topic 1]]+Dataset[[#This Row],[2024/25 From - Spending review Topic 2]]+Dataset[[#This Row],[2024/25 From - Spending review Topic 3]]+Dataset[[#This Row],[2024/25 From - Spending review Topic 4]]+Dataset[[#This Row],[2024/25 From - Other reallocations]]","v":0},{"$f":"Dataset[[#This Row],[2025/26 From - Spending review Topic 1]]+Dataset[[#This Row],[2025/26 From - Spending review Topic 2]]+Dataset[[#This Row],[2025/26 From - Spending review Topic 3]]+Dataset[[#This Row],[2025/26 From - Spending review Topic 4]]+Dataset[[#This Row],[2025/26 From - Other reallocations]]","v":0},{"$f":"Dataset[[#This Row],[2026/27 From - Spending review Topic 1]]+Dataset[[#This Row],[2026/27 From - Spending review Topic 2]]+Dataset[[#This Row],[2026/27 From - Spending review Topic 3]]+Dataset[[#This Row],[2026/27 From - Spending review Topic 4]]+Dataset[[#This Row],[2026/27 From - Other reallocations]]","v":0},{"$f":"Dataset[[#This Row],[2024/25 To - Spending review Topic 1]]+Dataset[[#This Row],[2024/25 To - Spending review Topic 2]]+Dataset[[#This Row],[2024/25 To - Spending review Topic 3]]+Dataset[[#This Row],[2024/25 To - Spending review Topic 4]]+Dataset[[#This Row],[2024/25 To - Other reallocations]]","v":0},{"$f":"Dataset[[#This Row],[2025/26 To - Spending review Topic 1]]+Dataset[[#This Row],[2025/26 To - Spending review Topic 2]]+Dataset[[#This Row],[2025/26 To - Spending review Topic 3]]+Dataset[[#This Row],[2025/26 To - Spending review Topic 4]]+Dataset[[#This Row],[2025/26 To - Other reallocations]]","v":0},{"$f":"Dataset[[#This Row],[2026/27 To - Spending review Topic 1]]+Dataset[[#This Row],[2026/27 To - Spending review Topic 2]]+Dataset[[#This Row],[2026/27 To - Spending review Topic 3]]+Dataset[[#This Row],[2026/27 To - Spending review Topic 4]]+Dataset[[#This Row],[2026/27 To - Other reallocations]]","v":0},{"$f":"Dataset[[#This Row],[2024/25 Reduction]]+Dataset[[#This Row],[2024/25 From - Total]]","v":0},{"$f":"Dataset[[#This Row],[2025/26 Reduction]]+Dataset[[#This Row],[2025/26 From - Total]]","v":0},{"$f":"Dataset[[#This Row],[2026/27 Reduction]]+Dataset[[#This Row],[2026/27 From - Total]]","v":0},{"$f":"Dataset[[#This Row],[2023/24 Reduction]]","v":0},{"$f":"SUM(Dataset[[#This Row],[2024/25 Reduction]],Dataset[[#This Row],[2024/25 From - Total]],Dataset[[#This Row],[2024/25 To - Total]])","v":0},{"$f":"SUM(Dataset[[#This Row],[2025/26 Reduction]],Dataset[[#This Row],[2025/26 From - Total]],Dataset[[#This Row],[2025/26 To - Total]])","v":0},{"$f":"SUM(Dataset[[#This Row],[2026/27 Reduction]],Dataset[[#This Row],[2026/27 From - Total]],Dataset[[#This Row],[2026/27 To - Total]])","v":0},{"$f":"Dataset[[#This Row],[2023/24 Baseline]]+Dataset[[#This Row],[2023/24 Total change]]","v":100},{"$f":"Dataset[[#This Row],[2024/25 Baseline]]+Dataset[[#This Row],[2024/25 Total change]]","v":120},{"$f":"Dataset[[#This Row],[2025/26 Baseline]]+Dataset[[#This Row],[2025/26 Total change]]","v":140},{"$f":"Dataset[[#This Row],[2026/27 Baseline]]+Dataset[[#This Row],[2026/27 Total change]]","v":146}]
["NAT|Non-transfer item","26|Interest (Incl. interest on unitary payments (PPP))","2024_25","MTEF2024",26,1,2,44005,118,"26","01","02","044005","000118","26|01|02","01","01","03","41","41","01|01|03|41|41","National","Military Veterans","Administration","Corporate Services","Non-transfer item","Current","Current payments","Interest and rent on land","Interest (Incl. interest on unitary payments (PPP))","Interest (Incl. interest on unitary payments (PPP))","Peace and security","Defence and state security","NAT",0,0,0,0,0,0,0,0,0,0,0,null,null,null,null,null,null,null,null,null,null,null,null,null,null,null,null,null,null,null,null,null,null,null,null,null,null,null,null,null,null,null,null,null,null,{"$f":"Dataset[[#This Row],[2024/25 From - Spending review Topic 1]]+Dataset[[#This Row],[2024/25 From - Spending review Topic 2]]+Dataset[[#This Row],[2024/25 From - Spending review Topic 3]]+Dataset[[#This Row],[2024/25 From - Spending review Topic 4]]+Dataset[[#This Row],[2024/25 From - Other reallocations]]","v":0},{"$f":"Dataset[[#This Row],[2025/26 From - Spending review Topic 1]]+Dataset[[#This Row],[2025/26 From - Spending review Topic 2]]+Dataset[[#This Row],[2025/26 From - Spending review Topic 3]]+Dataset[[#This Row],[2025/26 From - Spending review Topic 4]]+Dataset[[#This Row],[2025/26 From - Other reallocations]]","v":0},{"$f":"Dataset[[#This Row],[2026/27 From - Spending review Topic 1]]+Dataset[[#This Row],[2026/27 From - Spending review Topic 2]]+Dataset[[#This Row],[2026/27 From - Spending review Topic 3]]+Dataset[[#This Row],[2026/27 From - Spending review Topic 4]]+Dataset[[#This Row],[2026/27 From - Other reallocations]]","v":0},{"$f":"Dataset[[#This Row],[2024/25 To - Spending review Topic 1]]+Dataset[[#This Row],[2024/25 To - Spending review Topic 2]]+Dataset[[#This Row],[2024/25 To - Spending review Topic 3]]+Dataset[[#This Row],[2024/25 To - Spending review Topic 4]]+Dataset[[#This Row],[2024/25 To - Other reallocations]]","v":0},{"$f":"Dataset[[#This Row],[2025/26 To - Spending review Topic 1]]+Dataset[[#This Row],[2025/26 To - Spending review Topic 2]]+Dataset[[#This Row],[2025/26 To - Spending review Topic 3]]+Dataset[[#This Row],[2025/26 To - Spending review Topic 4]]+Dataset[[#This Row],[2025/26 To - Other reallocations]]","v":0},{"$f":"Dataset[[#This Row],[2026/27 To - Spending review Topic 1]]+Dataset[[#This Row],[2026/27 To - Spending review Topic 2]]+Dataset[[#This Row],[2026/27 To - Spending review Topic 3]]+Dataset[[#This Row],[2026/27 To - Spending review Topic 4]]+Dataset[[#This Row],[2026/27 To - Other reallocations]]","v":0},{"$f":"Dataset[[#This Row],[2024/25 Reduction]]+Dataset[[#This Row],[2024/25 From - Total]]","v":0},{"$f":"Dataset[[#This Row],[2025/26 Reduction]]+Dataset[[#This Row],[2025/26 From - Total]]","v":0},{"$f":"Dataset[[#This Row],[2026/27 Reduction]]+Dataset[[#This Row],[2026/27 From - Total]]","v":0},{"$f":"Dataset[[#This Row],[2023/24 Reduction]]","v":0},{"$f":"SUM(Dataset[[#This Row],[2024/25 Reduction]],Dataset[[#This Row],[2024/25 From - Total]],Dataset[[#This Row],[2024/25 To - Total]])","v":0},{"$f":"SUM(Dataset[[#This Row],[2025/26 Reduction]],Dataset[[#This Row],[2025/26 From - Total]],Dataset[[#This Row],[2025/26 To - Total]])","v":0},{"$f":"SUM(Dataset[[#This Row],[2026/27 Reduction]],Dataset[[#This Row],[2026/27 From - Total]],Dataset[[#This Row],[2026/27 To - Total]])","v":0},{"$f":"Dataset[[#This Row],[2023/24 Baseline]]+Dataset[[#This Row],[2023/24 Total change]]","v":0},{"$f":"Dataset[[#This Row],[2024/25 Baseline]]+Dataset[[#This Row],[2024/25 Total change]]","v":0},{"$f":"Dataset[[#This Row],[2025/26 Baseline]]+Dataset[[#This Row],[2025/26 Total change]]","v":0},{"$f":"Dataset[[#This Row],[2026/27 Baseline]]+Dataset[[#This Row],[2026/27 Total change]]","v":0}]
["NAT|Non-transfer item","26|Rent on land","2024_25","MTEF2024",26,1,2,44006,119,"26","01","02","044006","000119","26|01|02","01","01","03","42","42","01|01|03|42|42","National","Military Veterans","Administration","Corporate Services","Non-transfer item","Current","Current payments","Interest and rent on land","Rent on land","Rent on land","Peace and security","Defence and state security","NAT",0,0,0,0,0,0,0,0,0,0,0,null,null,null,null,null,null,null,null,null,null,null,null,null,null,null,null,null,null,null,null,null,null,null,null,null,null,null,null,null,null,null,null,null,null,{"$f":"Dataset[[#This Row],[2024/25 From - Spending review Topic 1]]+Dataset[[#This Row],[2024/25 From - Spending review Topic 2]]+Dataset[[#This Row],[2024/25 From - Spending review Topic 3]]+Dataset[[#This Row],[2024/25 From - Spending review Topic 4]]+Dataset[[#This Row],[2024/25 From - Other reallocations]]","v":0},{"$f":"Dataset[[#This Row],[2025/26 From - Spending review Topic 1]]+Dataset[[#This Row],[2025/26 From - Spending review Topic 2]]+Dataset[[#This Row],[2025/26 From - Spending review Topic 3]]+Dataset[[#This Row],[2025/26 From - Spending review Topic 4]]+Dataset[[#This Row],[2025/26 From - Other reallocations]]","v":0},{"$f":"Dataset[[#This Row],[2026/27 From - Spending review Topic 1]]+Dataset[[#This Row],[2026/27 From - Spending review Topic 2]]+Dataset[[#This Row],[2026/27 From - Spending review Topic 3]]+Dataset[[#This Row],[2026/27 From - Spending review Topic 4]]+Dataset[[#This Row],[2026/27 From - Other reallocations]]","v":0},{"$f":"Dataset[[#This Row],[2024/25 To - Spending review Topic 1]]+Dataset[[#This Row],[2024/25 To - Spending review Topic 2]]+Dataset[[#This Row],[2024/25 To - Spending review Topic 3]]+Dataset[[#This Row],[2024/25 To - Spending review Topic 4]]+Dataset[[#This Row],[2024/25 To - Other reallocations]]","v":0},{"$f":"Dataset[[#This Row],[2025/26 To - Spending review Topic 1]]+Dataset[[#This Row],[2025/26 To - Spending review Topic 2]]+Dataset[[#This Row],[2025/26 To - Spending review Topic 3]]+Dataset[[#This Row],[2025/26 To - Spending review Topic 4]]+Dataset[[#This Row],[2025/26 To - Other reallocations]]","v":0},{"$f":"Dataset[[#This Row],[2026/27 To - Spending review Topic 1]]+Dataset[[#This Row],[2026/27 To - Spending review Topic 2]]+Dataset[[#This Row],[2026/27 To - Spending review Topic 3]]+Dataset[[#This Row],[2026/27 To - Spending review Topic 4]]+Dataset[[#This Row],[2026/27 To - Other reallocations]]","v":0},{"$f":"Dataset[[#This Row],[2024/25 Reduction]]+Dataset[[#This Row],[2024/25 From - Total]]","v":0},{"$f":"Dataset[[#This Row],[2025/26 Reduction]]+Dataset[[#This Row],[2025/26 From - Total]]","v":0},{"$f":"Dataset[[#This Row],[2026/27 Reduction]]+Dataset[[#This Row],[2026/27 From - Total]]","v":0},{"$f":"Dataset[[#This Row],[2023/24 Reduction]]","v":0},{"$f":"SUM(Dataset[[#This Row],[2024/25 Reduction]],Dataset[[#This Row],[2024/25 From - Total]],Dataset[[#This Row],[2024/25 To - Total]])","v":0},{"$f":"SUM(Dataset[[#This Row],[2025/26 Reduction]],Dataset[[#This Row],[2025/26 From - Total]],Dataset[[#This Row],[2025/26 To - Total]])","v":0},{"$f":"SUM(Dataset[[#This Row],[2026/27 Reduction]],Dataset[[#This Row],[2026/27 From - Total]],Dataset[[#This Row],[2026/27 To - Total]])","v":0},{"$f":"Dataset[[#This Row],[2023/24 Baseline]]+Dataset[[#This Row],[2023/24 Total change]]","v":0},{"$f":"Dataset[[#This Row],[2024/25 Baseline]]+Dataset[[#This Row],[2024/25 Total change]]","v":0},{"$f":"Dataset[[#This Row],[2025/26 Baseline]]+Dataset[[#This Row],[2025/26 Total change]]","v":0},{"$f":"Dataset[[#This Row],[2026/27 Baseline]]+Dataset[[#This Row],[2026/27 Total change]]","v":0}]
["NAT|Non-transfer item","26|Provincial Revenue Funds","2024_25","MTEF2024",26,1,2,44007,120,"26","01","02","044007","000120","26|01|02","01","02","04","43","43","01|02|04|43|43","National","Military Veterans","Administration","Corporate Services","Non-transfer item","Current","Transfers and subsidies","Provinces and municipalities","Provinces","Provincial Revenue Funds","Peace and security","Defence and state security","NAT",0,0,0,0,0,0,0,0,0,0,0,null,null,null,null,null,null,null,null,null,null,null,null,null,null,null,null,null,null,null,null,null,null,null,null,null,null,null,null,null,null,null,null,null,null,{"$f":"Dataset[[#This Row],[2024/25 From - Spending review Topic 1]]+Dataset[[#This Row],[2024/25 From - Spending review Topic 2]]+Dataset[[#This Row],[2024/25 From - Spending review Topic 3]]+Dataset[[#This Row],[2024/25 From - Spending review Topic 4]]+Dataset[[#This Row],[2024/25 From - Other reallocations]]","v":0},{"$f":"Dataset[[#This Row],[2025/26 From - Spending review Topic 1]]+Dataset[[#This Row],[2025/26 From - Spending review Topic 2]]+Dataset[[#This Row],[2025/26 From - Spending review Topic 3]]+Dataset[[#This Row],[2025/26 From - Spending review Topic 4]]+Dataset[[#This Row],[2025/26 From - Other reallocations]]","v":0},{"$f":"Dataset[[#This Row],[2026/27 From - Spending review Topic 1]]+Dataset[[#This Row],[2026/27 From - Spending review Topic 2]]+Dataset[[#This Row],[2026/27 From - Spending review Topic 3]]+Dataset[[#This Row],[2026/27 From - Spending review Topic 4]]+Dataset[[#This Row],[2026/27 From - Other reallocations]]","v":0},{"$f":"Dataset[[#This Row],[2024/25 To - Spending review Topic 1]]+Dataset[[#This Row],[2024/25 To - Spending review Topic 2]]+Dataset[[#This Row],[2024/25 To - Spending review Topic 3]]+Dataset[[#This Row],[2024/25 To - Spending review Topic 4]]+Dataset[[#This Row],[2024/25 To - Other reallocations]]","v":0},{"$f":"Dataset[[#This Row],[2025/26 To - Spending review Topic 1]]+Dataset[[#This Row],[2025/26 To - Spending review Topic 2]]+Dataset[[#This Row],[2025/26 To - Spending review Topic 3]]+Dataset[[#This Row],[2025/26 To - Spending review Topic 4]]+Dataset[[#This Row],[2025/26 To - Other reallocations]]","v":0},{"$f":"Dataset[[#This Row],[2026/27 To - Spending review Topic 1]]+Dataset[[#This Row],[2026/27 To - Spending review Topic 2]]+Dataset[[#This Row],[2026/27 To - Spending review Topic 3]]+Dataset[[#This Row],[2026/27 To - Spending review Topic 4]]+Dataset[[#This Row],[2026/27 To - Other reallocations]]","v":0},{"$f":"Dataset[[#This Row],[2024/25 Reduction]]+Dataset[[#This Row],[2024/25 From - Total]]","v":0},{"$f":"Dataset[[#This Row],[2025/26 Reduction]]+Dataset[[#This Row],[2025/26 From - Total]]","v":0},{"$f":"Dataset[[#This Row],[2026/27 Reduction]]+Dataset[[#This Row],[2026/27 From - Total]]","v":0},{"$f":"Dataset[[#This Row],[2023/24 Reduction]]","v":0},{"$f":"SUM(Dataset[[#This Row],[2024/25 Reduction]],Dataset[[#This Row],[2024/25 From - Total]],Dataset[[#This Row],[2024/25 To - Total]])","v":0},{"$f":"SUM(Dataset[[#This Row],[2025/26 Reduction]],Dataset[[#This Row],[2025/26 From - Total]],Dataset[[#This Row],[2025/26 To - Total]])","v":0},{"$f":"SUM(Dataset[[#This Row],[2026/27 Reduction]],Dataset[[#This Row],[2026/27 From - Total]],Dataset[[#This Row],[2026/27 To - Total]])","v":0},{"$f":"Dataset[[#This Row],[2023/24 Baseline]]+Dataset[[#This Row],[2023/24 Total change]]","v":0},{"$f":"Dataset[[#This Row],[2024/25 Baseline]]+Dataset[[#This Row],[2024/25 Total change]]","v":0},{"$f":"Dataset[[#This Row],[2025/26 Baseline]]+Dataset[[#This Row],[2025/26 Total change]]","v":0},{"$f":"Dataset[[#This Row],[2026/27 Baseline]]+Dataset[[#This Row],[2026/27 Total change]]","v":0}]
["NAT|Non-transfer item","26|Provincial agencies and funds","2024_25","MTEF2024",26,1,2,44008,121,"26","01","02","044008","000121","26|01|02","01","02","04","43","44","01|02|04|43|44","National","Military Veterans","Administration","Corporate Services","Non-transfer item","Current","Transfers and subsidies","Provinces and municipalities","Provinces","Provincial agencies and funds","Peace and security","Defence and state security","NAT",0,0,0,0,0,0,0,0,0,0,0,null,null,null,null,null,null,null,null,null,null,null,null,null,null,null,null,null,null,null,null,null,null,null,null,null,null,null,null,null,null,null,null,null,null,{"$f":"Dataset[[#This Row],[2024/25 From - Spending review Topic 1]]+Dataset[[#This Row],[2024/25 From - Spending review Topic 2]]+Dataset[[#This Row],[2024/25 From - Spending review Topic 3]]+Dataset[[#This Row],[2024/25 From - Spending review Topic 4]]+Dataset[[#This Row],[2024/25 From - Other reallocations]]","v":0},{"$f":"Dataset[[#This Row],[2025/26 From - Spending review Topic 1]]+Dataset[[#This Row],[2025/26 From - Spending review Topic 2]]+Dataset[[#This Row],[2025/26 From - Spending review Topic 3]]+Dataset[[#This Row],[2025/26 From - Spending review Topic 4]]+Dataset[[#This Row],[2025/26 From - Other reallocations]]","v":0},{"$f":"Dataset[[#This Row],[2026/27 From - Spending review Topic 1]]+Dataset[[#This Row],[2026/27 From - Spending review Topic 2]]+Dataset[[#This Row],[2026/27 From - Spending review Topic 3]]+Dataset[[#This Row],[2026/27 From - Spending review Topic 4]]+Dataset[[#This Row],[2026/27 From - Other reallocations]]","v":0},{"$f":"Dataset[[#This Row],[2024/25 To - Spending review Topic 1]]+Dataset[[#This Row],[2024/25 To - Spending review Topic 2]]+Dataset[[#This Row],[2024/25 To - Spending review Topic 3]]+Dataset[[#This Row],[2024/25 To - Spending review Topic 4]]+Dataset[[#This Row],[2024/25 To - Other reallocations]]","v":0},{"$f":"Dataset[[#This Row],[2025/26 To - Spending review Topic 1]]+Dataset[[#This Row],[2025/26 To - Spending review Topic 2]]+Dataset[[#This Row],[2025/26 To - Spending review Topic 3]]+Dataset[[#This Row],[2025/26 To - Spending review Topic 4]]+Dataset[[#This Row],[2025/26 To - Other reallocations]]","v":0},{"$f":"Dataset[[#This Row],[2026/27 To - Spending review Topic 1]]+Dataset[[#This Row],[2026/27 To - Spending review Topic 2]]+Dataset[[#This Row],[2026/27 To - Spending review Topic 3]]+Dataset[[#This Row],[2026/27 To - Spending review Topic 4]]+Dataset[[#This Row],[2026/27 To - Other reallocations]]","v":0},{"$f":"Dataset[[#This Row],[2024/25 Reduction]]+Dataset[[#This Row],[2024/25 From - Total]]","v":0},{"$f":"Dataset[[#This Row],[2025/26 Reduction]]+Dataset[[#This Row],[2025/26 From - Total]]","v":0},{"$f":"Dataset[[#This Row],[2026/27 Reduction]]+Dataset[[#This Row],[2026/27 From - Total]]","v":0},{"$f":"Dataset[[#This Row],[2023/24 Reduction]]","v":0},{"$f":"SUM(Dataset[[#This Row],[2024/25 Reduction]],Dataset[[#This Row],[2024/25 From - Total]],Dataset[[#This Row],[2024/25 To - Total]])","v":0},{"$f":"SUM(Dataset[[#This Row],[2025/26 Reduction]],Dataset[[#This Row],[2025/26 From - Total]],Dataset[[#This Row],[2025/26 To - Total]])","v":0},{"$f":"SUM(Dataset[[#This Row],[2026/27 Reduction]],Dataset[[#This Row],[2026/27 From - Total]],Dataset[[#This Row],[2026/27 To - Total]])","v":0},{"$f":"Dataset[[#This Row],[2023/24 Baseline]]+Dataset[[#This Row],[2023/24 Total change]]","v":0},{"$f":"Dataset[[#This Row],[2024/25 Baseline]]+Dataset[[#This Row],[2024/25 Total change]]","v":0},{"$f":"Dataset[[#This Row],[2025/26 Baseline]]+Dataset[[#This Row],[2025/26 Total change]]","v":0},{"$f":"Dataset[[#This Row],[2026/27 Baseline]]+Dataset[[#This Row],[2026/27 Total change]]","v":0}]
["NAT|Non-transfer item","26|Municipal bank accounts","2024_25","MTEF2024",26,1,2,44009,122,"26","01","02","044009","000122","26|01|02","01","02","04","44","45","01|02|04|44|45","National","Military Veterans","Administration","Corporate Services","Non-transfer item","Current","Transfers and subsidies","Provinces and municipalities","Municipalities","Municipal bank accounts","Peace and security","Defence and state security","NAT",0,0,0,0,0,0,0,0,0,0,0,null,null,null,null,null,null,null,null,null,null,null,null,null,null,null,null,null,null,null,null,null,null,null,null,null,null,null,null,null,null,null,null,null,null,{"$f":"Dataset[[#This Row],[2024/25 From - Spending review Topic 1]]+Dataset[[#This Row],[2024/25 From - Spending review Topic 2]]+Dataset[[#This Row],[2024/25 From - Spending review Topic 3]]+Dataset[[#This Row],[2024/25 From - Spending review Topic 4]]+Dataset[[#This Row],[2024/25 From - Other reallocations]]","v":0},{"$f":"Dataset[[#This Row],[2025/26 From - Spending review Topic 1]]+Dataset[[#This Row],[2025/26 From - Spending review Topic 2]]+Dataset[[#This Row],[2025/26 From - Spending review Topic 3]]+Dataset[[#This Row],[2025/26 From - Spending review Topic 4]]+Dataset[[#This Row],[2025/26 From - Other reallocations]]","v":0},{"$f":"Dataset[[#This Row],[2026/27 From - Spending review Topic 1]]+Dataset[[#This Row],[2026/27 From - Spending review Topic 2]]+Dataset[[#This Row],[2026/27 From - Spending review Topic 3]]+Dataset[[#This Row],[2026/27 From - Spending review Topic 4]]+Dataset[[#This Row],[2026/27 From - Other reallocations]]","v":0},{"$f":"Dataset[[#This Row],[2024/25 To - Spending review Topic 1]]+Dataset[[#This Row],[2024/25 To - Spending review Topic 2]]+Dataset[[#This Row],[2024/25 To - Spending review Topic 3]]+Dataset[[#This Row],[2024/25 To - Spending review Topic 4]]+Dataset[[#This Row],[2024/25 To - Other reallocations]]","v":0},{"$f":"Dataset[[#This Row],[2025/26 To - Spending review Topic 1]]+Dataset[[#This Row],[2025/26 To - Spending review Topic 2]]+Dataset[[#This Row],[2025/26 To - Spending review Topic 3]]+Dataset[[#This Row],[2025/26 To - Spending review Topic 4]]+Dataset[[#This Row],[2025/26 To - Other reallocations]]","v":0},{"$f":"Dataset[[#This Row],[2026/27 To - Spending review Topic 1]]+Dataset[[#This Row],[2026/27 To - Spending review Topic 2]]+Dataset[[#This Row],[2026/27 To - Spending review Topic 3]]+Dataset[[#This Row],[2026/27 To - Spending review Topic 4]]+Dataset[[#This Row],[2026/27 To - Other reallocations]]","v":0},{"$f":"Dataset[[#This Row],[2024/25 Reduction]]+Dataset[[#This Row],[2024/25 From - Total]]","v":0},{"$f":"Dataset[[#This Row],[2025/26 Reduction]]+Dataset[[#This Row],[2025/26 From - Total]]","v":0},{"$f":"Dataset[[#This Row],[2026/27 Reduction]]+Dataset[[#This Row],[2026/27 From - Total]]","v":0},{"$f":"Dataset[[#This Row],[2023/24 Reduction]]","v":0},{"$f":"SUM(Dataset[[#This Row],[2024/25 Reduction]],Dataset[[#This Row],[2024/25 From - Total]],Dataset[[#This Row],[2024/25 To - Total]])","v":0},{"$f":"SUM(Dataset[[#This Row],[2025/26 Reduction]],Dataset[[#This Row],[2025/26 From - Total]],Dataset[[#This Row],[2025/26 To - Total]])","v":0},{"$f":"SUM(Dataset[[#This Row],[2026/27 Reduction]],Dataset[[#This Row],[2026/27 From - Total]],Dataset[[#This Row],[2026/27 To - Total]])","v":0},{"$f":"Dataset[[#This Row],[2023/24 Baseline]]+Dataset[[#This Row],[2023/24 Total change]]","v":0},{"$f":"Dataset[[#This Row],[2024/25 Baseline]]+Dataset[[#This Row],[2024/25 Total change]]","v":0},{"$f":"Dataset[[#This Row],[2025/26 Baseline]]+Dataset[[#This Row],[2025/26 Total change]]","v":0},{"$f":"Dataset[[#This Row],[2026/27 Baseline]]+Dataset[[#This Row],[2026/27 Total change]]","v":0}]
["NAT|Non-transfer item","26|Municipal agencies and funds","2024_25","MTEF2024",26,1,2,44010,123,"26","01","02","044010","000123","26|01|02","01","02","04","44","46","01|02|04|44|46","National","Military Veterans","Administration","Corporate Services","Non-transfer item","Current","Transfers and subsidies","Provinces and municipalities","Municipalities","Municipal agencies and funds","Peace and security","Defence and state security","NAT",0,0,0,0,0,0,0,0,0,0,0,null,null,null,null,null,null,null,null,null,null,null,null,null,null,null,null,null,null,null,null,null,null,null,null,null,null,null,null,null,null,null,null,null,null,{"$f":"Dataset[[#This Row],[2024/25 From - Spending review Topic 1]]+Dataset[[#This Row],[2024/25 From - Spending review Topic 2]]+Dataset[[#This Row],[2024/25 From - Spending review Topic 3]]+Dataset[[#This Row],[2024/25 From - Spending review Topic 4]]+Dataset[[#This Row],[2024/25 From - Other reallocations]]","v":0},{"$f":"Dataset[[#This Row],[2025/26 From - Spending review Topic 1]]+Dataset[[#This Row],[2025/26 From - Spending review Topic 2]]+Dataset[[#This Row],[2025/26 From - Spending review Topic 3]]+Dataset[[#This Row],[2025/26 From - Spending review Topic 4]]+Dataset[[#This Row],[2025/26 From - Other reallocations]]","v":0},{"$f":"Dataset[[#This Row],[2026/27 From - Spending review Topic 1]]+Dataset[[#This Row],[2026/27 From - Spending review Topic 2]]+Dataset[[#This Row],[2026/27 From - Spending review Topic 3]]+Dataset[[#This Row],[2026/27 From - Spending review Topic 4]]+Dataset[[#This Row],[2026/27 From - Other reallocations]]","v":0},{"$f":"Dataset[[#This Row],[2024/25 To - Spending review Topic 1]]+Dataset[[#This Row],[2024/25 To - Spending review Topic 2]]+Dataset[[#This Row],[2024/25 To - Spending review Topic 3]]+Dataset[[#This Row],[2024/25 To - Spending review Topic 4]]+Dataset[[#This Row],[2024/25 To - Other reallocations]]","v":0},{"$f":"Dataset[[#This Row],[2025/26 To - Spending review Topic 1]]+Dataset[[#This Row],[2025/26 To - Spending review Topic 2]]+Dataset[[#This Row],[2025/26 To - Spending review Topic 3]]+Dataset[[#This Row],[2025/26 To - Spending review Topic 4]]+Dataset[[#This Row],[2025/26 To - Other reallocations]]","v":0},{"$f":"Dataset[[#This Row],[2026/27 To - Spending review Topic 1]]+Dataset[[#This Row],[2026/27 To - Spending review Topic 2]]+Dataset[[#This Row],[2026/27 To - Spending review Topic 3]]+Dataset[[#This Row],[2026/27 To - Spending review Topic 4]]+Dataset[[#This Row],[2026/27 To - Other reallocations]]","v":0},{"$f":"Dataset[[#This Row],[2024/25 Reduction]]+Dataset[[#This Row],[2024/25 From - Total]]","v":0},{"$f":"Dataset[[#This Row],[2025/26 Reduction]]+Dataset[[#This Row],[2025/26 From - Total]]","v":0},{"$f":"Dataset[[#This Row],[2026/27 Reduction]]+Dataset[[#This Row],[2026/27 From - Total]]","v":0},{"$f":"Dataset[[#This Row],[2023/24 Reduction]]","v":0},{"$f":"SUM(Dataset[[#This Row],[2024/25 Reduction]],Dataset[[#This Row],[2024/25 From - Total]],Dataset[[#This Row],[2024/25 To - Total]])","v":0},{"$f":"SUM(Dataset[[#This Row],[2025/26 Reduction]],Dataset[[#This Row],[2025/26 From - Total]],Dataset[[#This Row],[2025/26 To - Total]])","v":0},{"$f":"SUM(Dataset[[#This Row],[2026/27 Reduction]],Dataset[[#This Row],[2026/27 From - Total]],Dataset[[#This Row],[2026/27 To - Total]])","v":0},{"$f":"Dataset[[#This Row],[2023/24 Baseline]]+Dataset[[#This Row],[2023/24 Total change]]","v":0},{"$f":"Dataset[[#This Row],[2024/25 Baseline]]+Dataset[[#This Row],[2024/25 Total change]]","v":0},{"$f":"Dataset[[#This Row],[2025/26 Baseline]]+Dataset[[#This Row],[2025/26 Total change]]","v":0},{"$f":"Dataset[[#This Row],[2026/27 Baseline]]+Dataset[[#This Row],[2026/27 Total change]]","v":0}]
["NAT|Non-transfer item","26|Social security funds","2024_25","MTEF2024",26,1,2,44011,124,"26","01","02","044011","000124","26|01|02","01","02","05","45","47","01|02|05|45|47","National","Military Veterans","Administration","Corporate Services","Non-transfer item","Current","Transfers and subsidies","Departmental agencies and accounts","Social security funds","Social security funds","Peace and security","Defence and state security","NAT",0,0,0,0,0,0,0,0,0,0,0,null,null,null,null,null,null,null,null,null,null,null,null,null,null,null,null,null,null,null,null,null,null,null,null,null,null,null,null,null,null,null,null,null,null,{"$f":"Dataset[[#This Row],[2024/25 From - Spending review Topic 1]]+Dataset[[#This Row],[2024/25 From - Spending review Topic 2]]+Dataset[[#This Row],[2024/25 From - Spending review Topic 3]]+Dataset[[#This Row],[2024/25 From - Spending review Topic 4]]+Dataset[[#This Row],[2024/25 From - Other reallocations]]","v":0},{"$f":"Dataset[[#This Row],[2025/26 From - Spending review Topic 1]]+Dataset[[#This Row],[2025/26 From - Spending review Topic 2]]+Dataset[[#This Row],[2025/26 From - Spending review Topic 3]]+Dataset[[#This Row],[2025/26 From - Spending review Topic 4]]+Dataset[[#This Row],[2025/26 From - Other reallocations]]","v":0},{"$f":"Dataset[[#This Row],[2026/27 From - Spending review Topic 1]]+Dataset[[#This Row],[2026/27 From - Spending review Topic 2]]+Dataset[[#This Row],[2026/27 From - Spending review Topic 3]]+Dataset[[#This Row],[2026/27 From - Spending review Topic 4]]+Dataset[[#This Row],[2026/27 From - Other reallocations]]","v":0},{"$f":"Dataset[[#This Row],[2024/25 To - Spending review Topic 1]]+Dataset[[#This Row],[2024/25 To - Spending review Topic 2]]+Dataset[[#This Row],[2024/25 To - Spending review Topic 3]]+Dataset[[#This Row],[2024/25 To - Spending review Topic 4]]+Dataset[[#This Row],[2024/25 To - Other reallocations]]","v":0},{"$f":"Dataset[[#This Row],[2025/26 To - Spending review Topic 1]]+Dataset[[#This Row],[2025/26 To - Spending review Topic 2]]+Dataset[[#This Row],[2025/26 To - Spending review Topic 3]]+Dataset[[#This Row],[2025/26 To - Spending review Topic 4]]+Dataset[[#This Row],[2025/26 To - Other reallocations]]","v":0},{"$f":"Dataset[[#This Row],[2026/27 To - Spending review Topic 1]]+Dataset[[#This Row],[2026/27 To - Spending review Topic 2]]+Dataset[[#This Row],[2026/27 To - Spending review Topic 3]]+Dataset[[#This Row],[2026/27 To - Spending review Topic 4]]+Dataset[[#This Row],[2026/27 To - Other reallocations]]","v":0},{"$f":"Dataset[[#This Row],[2024/25 Reduction]]+Dataset[[#This Row],[2024/25 From - Total]]","v":0},{"$f":"Dataset[[#This Row],[2025/26 Reduction]]+Dataset[[#This Row],[2025/26 From - Total]]","v":0},{"$f":"Dataset[[#This Row],[2026/27 Reduction]]+Dataset[[#This Row],[2026/27 From - Total]]","v":0},{"$f":"Dataset[[#This Row],[2023/24 Reduction]]","v":0},{"$f":"SUM(Dataset[[#This Row],[2024/25 Reduction]],Dataset[[#This Row],[2024/25 From - Total]],Dataset[[#This Row],[2024/25 To - Total]])","v":0},{"$f":"SUM(Dataset[[#This Row],[2025/26 Reduction]],Dataset[[#This Row],[2025/26 From - Total]],Dataset[[#This Row],[2025/26 To - Total]])","v":0},{"$f":"SUM(Dataset[[#This Row],[2026/27 Reduction]],Dataset[[#This Row],[2026/27 From - Total]],Dataset[[#This Row],[2026/27 To - Total]])","v":0},{"$f":"Dataset[[#This Row],[2023/24 Baseline]]+Dataset[[#This Row],[2023/24 Total change]]","v":0},{"$f":"Dataset[[#This Row],[2024/25 Baseline]]+Dataset[[#This Row],[2024/25 Total change]]","v":0},{"$f":"Dataset[[#This Row],[2025/26 Baseline]]+Dataset[[#This Row],[2025/26 Total change]]","v":0},{"$f":"Dataset[[#This Row],[2026/27 Baseline]]+Dataset[[#This Row],[2026/27 Total change]]","v":0}]
["NAT|Non-transfer item","26|Departmental agencies (non-business entities)","2024_25","MTEF2024",26,1,2,44012,125,"26","01","02","044012","000125","26|01|02","01","02","05","46","48","01|02|05|46|48","National","Military Veterans","Administration","Corporate Services","Non-transfer item","Current","Transfers and subsidies","Departmental agencies and accounts","Departmental agencies (non-business entities)","Departmental agencies (non-business entities)","Peace and security","Defence and state security","NAT",0,0,0,0,0,0,0,0,0,0,0,null,null,null,null,null,null,null,null,null,null,null,null,null,null,null,null,null,null,null,null,null,null,null,null,null,null,null,null,null,null,null,null,null,null,{"$f":"Dataset[[#This Row],[2024/25 From - Spending review Topic 1]]+Dataset[[#This Row],[2024/25 From - Spending review Topic 2]]+Dataset[[#This Row],[2024/25 From - Spending review Topic 3]]+Dataset[[#This Row],[2024/25 From - Spending review Topic 4]]+Dataset[[#This Row],[2024/25 From - Other reallocations]]","v":0},{"$f":"Dataset[[#This Row],[2025/26 From - Spending review Topic 1]]+Dataset[[#This Row],[2025/26 From - Spending review Topic 2]]+Dataset[[#This Row],[2025/26 From - Spending review Topic 3]]+Dataset[[#This Row],[2025/26 From - Spending review Topic 4]]+Dataset[[#This Row],[2025/26 From - Other reallocations]]","v":0},{"$f":"Dataset[[#This Row],[2026/27 From - Spending review Topic 1]]+Dataset[[#This Row],[2026/27 From - Spending review Topic 2]]+Dataset[[#This Row],[2026/27 From - Spending review Topic 3]]+Dataset[[#This Row],[2026/27 From - Spending review Topic 4]]+Dataset[[#This Row],[2026/27 From - Other reallocations]]","v":0},{"$f":"Dataset[[#This Row],[2024/25 To - Spending review Topic 1]]+Dataset[[#This Row],[2024/25 To - Spending review Topic 2]]+Dataset[[#This Row],[2024/25 To - Spending review Topic 3]]+Dataset[[#This Row],[2024/25 To - Spending review Topic 4]]+Dataset[[#This Row],[2024/25 To - Other reallocations]]","v":0},{"$f":"Dataset[[#This Row],[2025/26 To - Spending review Topic 1]]+Dataset[[#This Row],[2025/26 To - Spending review Topic 2]]+Dataset[[#This Row],[2025/26 To - Spending review Topic 3]]+Dataset[[#This Row],[2025/26 To - Spending review Topic 4]]+Dataset[[#This Row],[2025/26 To - Other reallocations]]","v":0},{"$f":"Dataset[[#This Row],[2026/27 To - Spending review Topic 1]]+Dataset[[#This Row],[2026/27 To - Spending review Topic 2]]+Dataset[[#This Row],[2026/27 To - Spending review Topic 3]]+Dataset[[#This Row],[2026/27 To - Spending review Topic 4]]+Dataset[[#This Row],[2026/27 To - Other reallocations]]","v":0},{"$f":"Dataset[[#This Row],[2024/25 Reduction]]+Dataset[[#This Row],[2024/25 From - Total]]","v":0},{"$f":"Dataset[[#This Row],[2025/26 Reduction]]+Dataset[[#This Row],[2025/26 From - Total]]","v":0},{"$f":"Dataset[[#This Row],[2026/27 Reduction]]+Dataset[[#This Row],[2026/27 From - Total]]","v":0},{"$f":"Dataset[[#This Row],[2023/24 Reduction]]","v":0},{"$f":"SUM(Dataset[[#This Row],[2024/25 Reduction]],Dataset[[#This Row],[2024/25 From - Total]],Dataset[[#This Row],[2024/25 To - Total]])","v":0},{"$f":"SUM(Dataset[[#This Row],[2025/26 Reduction]],Dataset[[#This Row],[2025/26 From - Total]],Dataset[[#This Row],[2025/26 To - Total]])","v":0},{"$f":"SUM(Dataset[[#This Row],[2026/27 Reduction]],Dataset[[#This Row],[2026/27 From - Total]],Dataset[[#This Row],[2026/27 To - Total]])","v":0},{"$f":"Dataset[[#This Row],[2023/24 Baseline]]+Dataset[[#This Row],[2023/24 Total change]]","v":0},{"$f":"Dataset[[#This Row],[2024/25 Baseline]]+Dataset[[#This Row],[2024/25 Total change]]","v":0},{"$f":"Dataset[[#This Row],[2025/26 Baseline]]+Dataset[[#This Row],[2025/26 Total change]]","v":0},{"$f":"Dataset[[#This Row],[2026/27 Baseline]]+Dataset[[#This Row],[2026/27 Total change]]","v":0}]
["NAT|Non-transfer item","26|Higher education institutions","2024_25","MTEF2024",26,1,2,44013,126,"26","01","02","044013","000126","26|01|02","01","02","06","47","49","01|02|06|47|49","National","Military Veterans","Administration","Corporate Services","Non-transfer item","Current","Transfers and subsidies","Higher education institutions","Higher education institutions","Higher education institutions","Peace and security","Defence and state security","NAT",0,0,0,0,0,0,0,0,0,0,0,null,null,null,null,null,null,null,null,null,null,null,null,null,null,null,null,null,null,null,null,null,null,null,null,null,null,null,null,null,null,null,null,null,null,{"$f":"Dataset[[#This Row],[2024/25 From - Spending review Topic 1]]+Dataset[[#This Row],[2024/25 From - Spending review Topic 2]]+Dataset[[#This Row],[2024/25 From - Spending review Topic 3]]+Dataset[[#This Row],[2024/25 From - Spending review Topic 4]]+Dataset[[#This Row],[2024/25 From - Other reallocations]]","v":0},{"$f":"Dataset[[#This Row],[2025/26 From - Spending review Topic 1]]+Dataset[[#This Row],[2025/26 From - Spending review Topic 2]]+Dataset[[#This Row],[2025/26 From - Spending review Topic 3]]+Dataset[[#This Row],[2025/26 From - Spending review Topic 4]]+Dataset[[#This Row],[2025/26 From - Other reallocations]]","v":0},{"$f":"Dataset[[#This Row],[2026/27 From - Spending review Topic 1]]+Dataset[[#This Row],[2026/27 From - Spending review Topic 2]]+Dataset[[#This Row],[2026/27 From - Spending review Topic 3]]+Dataset[[#This Row],[2026/27 From - Spending review Topic 4]]+Dataset[[#This Row],[2026/27 From - Other reallocations]]","v":0},{"$f":"Dataset[[#This Row],[2024/25 To - Spending review Topic 1]]+Dataset[[#This Row],[2024/25 To - Spending review Topic 2]]+Dataset[[#This Row],[2024/25 To - Spending review Topic 3]]+Dataset[[#This Row],[2024/25 To - Spending review Topic 4]]+Dataset[[#This Row],[2024/25 To - Other reallocations]]","v":0},{"$f":"Dataset[[#This Row],[2025/26 To - Spending review Topic 1]]+Dataset[[#This Row],[2025/26 To - Spending review Topic 2]]+Dataset[[#This Row],[2025/26 To - Spending review Topic 3]]+Dataset[[#This Row],[2025/26 To - Spending review Topic 4]]+Dataset[[#This Row],[2025/26 To - Other reallocations]]","v":0},{"$f":"Dataset[[#This Row],[2026/27 To - Spending review Topic 1]]+Dataset[[#This Row],[2026/27 To - Spending review Topic 2]]+Dataset[[#This Row],[2026/27 To - Spending review Topic 3]]+Dataset[[#This Row],[2026/27 To - Spending review Topic 4]]+Dataset[[#This Row],[2026/27 To - Other reallocations]]","v":0},{"$f":"Dataset[[#This Row],[2024/25 Reduction]]+Dataset[[#This Row],[2024/25 From - Total]]","v":0},{"$f":"Dataset[[#This Row],[2025/26 Reduction]]+Dataset[[#This Row],[2025/26 From - Total]]","v":0},{"$f":"Dataset[[#This Row],[2026/27 Reduction]]+Dataset[[#This Row],[2026/27 From - Total]]","v":0},{"$f":"Dataset[[#This Row],[2023/24 Reduction]]","v":0},{"$f":"SUM(Dataset[[#This Row],[2024/25 Reduction]],Dataset[[#This Row],[2024/25 From - Total]],Dataset[[#This Row],[2024/25 To - Total]])","v":0},{"$f":"SUM(Dataset[[#This Row],[2025/26 Reduction]],Dataset[[#This Row],[2025/26 From - Total]],Dataset[[#This Row],[2025/26 To - Total]])","v":0},{"$f":"SUM(Dataset[[#This Row],[2026/27 Reduction]],Dataset[[#This Row],[2026/27 From - Total]],Dataset[[#This Row],[2026/27 To - Total]])","v":0},{"$f":"Dataset[[#This Row],[2023/24 Baseline]]+Dataset[[#This Row],[2023/24 Total change]]","v":0},{"$f":"Dataset[[#This Row],[2024/25 Baseline]]+Dataset[[#This Row],[2024/25 Total change]]","v":0},{"$f":"Dataset[[#This Row],[2025/26 Baseline]]+Dataset[[#This Row],[2025/26 Total change]]","v":0},{"$f":"Dataset[[#This Row],[2026/27 Baseline]]+Dataset[[#This Row],[2026/27 Total change]]","v":0}]
["NAT|Non-transfer item","26|Foreign governments and international organisations","2024_25","MTEF2024",26,1,2,44014,127,"26","01","02","044014","000127","26|01|02","01","02","07","48","50","01|02|07|48|50","National","Military Veterans","Administration","Corporate Services","Non-transfer item","Current","Transfers and subsidies","Foreign governments and international organisations","Foreign governments and international organisations","Foreign governments and international organisations","Peace and security","Defence and state security","NAT",0,0,0,0,0,0,0,0,0,0,0,null,null,null,null,null,null,null,null,null,null,null,null,null,null,null,null,null,null,null,null,null,null,null,null,null,null,null,null,null,null,null,null,null,null,{"$f":"Dataset[[#This Row],[2024/25 From - Spending review Topic 1]]+Dataset[[#This Row],[2024/25 From - Spending review Topic 2]]+Dataset[[#This Row],[2024/25 From - Spending review Topic 3]]+Dataset[[#This Row],[2024/25 From - Spending review Topic 4]]+Dataset[[#This Row],[2024/25 From - Other reallocations]]","v":0},{"$f":"Dataset[[#This Row],[2025/26 From - Spending review Topic 1]]+Dataset[[#This Row],[2025/26 From - Spending review Topic 2]]+Dataset[[#This Row],[2025/26 From - Spending review Topic 3]]+Dataset[[#This Row],[2025/26 From - Spending review Topic 4]]+Dataset[[#This Row],[2025/26 From - Other reallocations]]","v":0},{"$f":"Dataset[[#This Row],[2026/27 From - Spending review Topic 1]]+Dataset[[#This Row],[2026/27 From - Spending review Topic 2]]+Dataset[[#This Row],[2026/27 From - Spending review Topic 3]]+Dataset[[#This Row],[2026/27 From - Spending review Topic 4]]+Dataset[[#This Row],[2026/27 From - Other reallocations]]","v":0},{"$f":"Dataset[[#This Row],[2024/25 To - Spending review Topic 1]]+Dataset[[#This Row],[2024/25 To - Spending review Topic 2]]+Dataset[[#This Row],[2024/25 To - Spending review Topic 3]]+Dataset[[#This Row],[2024/25 To - Spending review Topic 4]]+Dataset[[#This Row],[2024/25 To - Other reallocations]]","v":0},{"$f":"Dataset[[#This Row],[2025/26 To - Spending review Topic 1]]+Dataset[[#This Row],[2025/26 To - Spending review Topic 2]]+Dataset[[#This Row],[2025/26 To - Spending review Topic 3]]+Dataset[[#This Row],[2025/26 To - Spending review Topic 4]]+Dataset[[#This Row],[2025/26 To - Other reallocations]]","v":0},{"$f":"Dataset[[#This Row],[2026/27 To - Spending review Topic 1]]+Dataset[[#This Row],[2026/27 To - Spending review Topic 2]]+Dataset[[#This Row],[2026/27 To - Spending review Topic 3]]+Dataset[[#This Row],[2026/27 To - Spending review Topic 4]]+Dataset[[#This Row],[2026/27 To - Other reallocations]]","v":0},{"$f":"Dataset[[#This Row],[2024/25 Reduction]]+Dataset[[#This Row],[2024/25 From - Total]]","v":0},{"$f":"Dataset[[#This Row],[2025/26 Reduction]]+Dataset[[#This Row],[2025/26 From - Total]]","v":0},{"$f":"Dataset[[#This Row],[2026/27 Reduction]]+Dataset[[#This Row],[2026/27 From - Total]]","v":0},{"$f":"Dataset[[#This Row],[2023/24 Reduction]]","v":0},{"$f":"SUM(Dataset[[#This Row],[2024/25 Reduction]],Dataset[[#This Row],[2024/25 From - Total]],Dataset[[#This Row],[2024/25 To - Total]])","v":0},{"$f":"SUM(Dataset[[#This Row],[2025/26 Reduction]],Dataset[[#This Row],[2025/26 From - Total]],Dataset[[#This Row],[2025/26 To - Total]])","v":0},{"$f":"SUM(Dataset[[#This Row],[2026/27 Reduction]],Dataset[[#This Row],[2026/27 From - Total]],Dataset[[#This Row],[2026/27 To - Total]])","v":0},{"$f":"Dataset[[#This Row],[2023/24 Baseline]]+Dataset[[#This Row],[2023/24 Total change]]","v":0},{"$f":"Dataset[[#This Row],[2024/25 Baseline]]+Dataset[[#This Row],[2024/25 Total change]]","v":0},{"$f":"Dataset[[#This Row],[2025/26 Baseline]]+Dataset[[#This Row],[2025/26 Total change]]","v":0},{"$f":"Dataset[[#This Row],[2026/27 Baseline]]+Dataset[[#This Row],[2026/27 Total change]]","v":0}]
["NAT|Non-transfer item","26|Subsidies on products and production (pc)","2024_25","MTEF2024",26,1,2,44015,128,"26","01","02","044015","000128","26|01|02","01","02","08","49","51","01|02|08|49|51","National","Military Veterans","Administration","Corporate Services","Non-transfer item","Current","Transfers and subsidies","Public corporations and private enterprises","Public corporations","Subsidies on products and production (pc)","Peace and security","Defence and state security","NAT",0,0,0,0,0,0,0,0,0,0,0,null,null,null,null,null,null,null,null,null,null,null,null,null,null,null,null,null,null,null,null,null,null,null,null,null,null,null,null,null,null,null,null,null,null,{"$f":"Dataset[[#This Row],[2024/25 From - Spending review Topic 1]]+Dataset[[#This Row],[2024/25 From - Spending review Topic 2]]+Dataset[[#This Row],[2024/25 From - Spending review Topic 3]]+Dataset[[#This Row],[2024/25 From - Spending review Topic 4]]+Dataset[[#This Row],[2024/25 From - Other reallocations]]","v":0},{"$f":"Dataset[[#This Row],[2025/26 From - Spending review Topic 1]]+Dataset[[#This Row],[2025/26 From - Spending review Topic 2]]+Dataset[[#This Row],[2025/26 From - Spending review Topic 3]]+Dataset[[#This Row],[2025/26 From - Spending review Topic 4]]+Dataset[[#This Row],[2025/26 From - Other reallocations]]","v":0},{"$f":"Dataset[[#This Row],[2026/27 From - Spending review Topic 1]]+Dataset[[#This Row],[2026/27 From - Spending review Topic 2]]+Dataset[[#This Row],[2026/27 From - Spending review Topic 3]]+Dataset[[#This Row],[2026/27 From - Spending review Topic 4]]+Dataset[[#This Row],[2026/27 From - Other reallocations]]","v":0},{"$f":"Dataset[[#This Row],[2024/25 To - Spending review Topic 1]]+Dataset[[#This Row],[2024/25 To - Spending review Topic 2]]+Dataset[[#This Row],[2024/25 To - Spending review Topic 3]]+Dataset[[#This Row],[2024/25 To - Spending review Topic 4]]+Dataset[[#This Row],[2024/25 To - Other reallocations]]","v":0},{"$f":"Dataset[[#This Row],[2025/26 To - Spending review Topic 1]]+Dataset[[#This Row],[2025/26 To - Spending review Topic 2]]+Dataset[[#This Row],[2025/26 To - Spending review Topic 3]]+Dataset[[#This Row],[2025/26 To - Spending review Topic 4]]+Dataset[[#This Row],[2025/26 To - Other reallocations]]","v":0},{"$f":"Dataset[[#This Row],[2026/27 To - Spending review Topic 1]]+Dataset[[#This Row],[2026/27 To - Spending review Topic 2]]+Dataset[[#This Row],[2026/27 To - Spending review Topic 3]]+Dataset[[#This Row],[2026/27 To - Spending review Topic 4]]+Dataset[[#This Row],[2026/27 To - Other reallocations]]","v":0},{"$f":"Dataset[[#This Row],[2024/25 Reduction]]+Dataset[[#This Row],[2024/25 From - Total]]","v":0},{"$f":"Dataset[[#This Row],[2025/26 Reduction]]+Dataset[[#This Row],[2025/26 From - Total]]","v":0},{"$f":"Dataset[[#This Row],[2026/27 Reduction]]+Dataset[[#This Row],[2026/27 From - Total]]","v":0},{"$f":"Dataset[[#This Row],[2023/24 Reduction]]","v":0},{"$f":"SUM(Dataset[[#This Row],[2024/25 Reduction]],Dataset[[#This Row],[2024/25 From - Total]],Dataset[[#This Row],[2024/25 To - Total]])","v":0},{"$f":"SUM(Dataset[[#This Row],[2025/26 Reduction]],Dataset[[#This Row],[2025/26 From - Total]],Dataset[[#This Row],[2025/26 To - Total]])","v":0},{"$f":"SUM(Dataset[[#This Row],[2026/27 Reduction]],Dataset[[#This Row],[2026/27 From - Total]],Dataset[[#This Row],[2026/27 To - Total]])","v":0},{"$f":"Dataset[[#This Row],[2023/24 Baseline]]+Dataset[[#This Row],[2023/24 Total change]]","v":0},{"$f":"Dataset[[#This Row],[2024/25 Baseline]]+Dataset[[#This Row],[2024/25 Total change]]","v":0},{"$f":"Dataset[[#This Row],[2025/26 Baseline]]+Dataset[[#This Row],[2025/26 Total change]]","v":0},{"$f":"Dataset[[#This Row],[2026/27 Baseline]]+Dataset[[#This Row],[2026/27 Total change]]","v":0}]
["NAT|Non-transfer item","26|Other transfers to public corporations","2024_25","MTEF2024",26,1,2,44016,129,"26","01","02","044016","000129","26|01|02","01","02","08","49","52","01|02|08|49|52","National","Military Veterans","Administration","Corporate Services","Non-transfer item","Current","Transfers and subsidies","Public corporations and private enterprises","Public corporations","Other transfers to public corporations","Peace and security","Defence and state security","NAT",0,0,0,0,0,0,0,0,0,0,0,null,null,null,null,null,null,null,null,null,null,null,null,null,null,null,null,null,null,null,null,null,null,null,null,null,null,null,null,null,null,null,null,null,null,{"$f":"Dataset[[#This Row],[2024/25 From - Spending review Topic 1]]+Dataset[[#This Row],[2024/25 From - Spending review Topic 2]]+Dataset[[#This Row],[2024/25 From - Spending review Topic 3]]+Dataset[[#This Row],[2024/25 From - Spending review Topic 4]]+Dataset[[#This Row],[2024/25 From - Other reallocations]]","v":0},{"$f":"Dataset[[#This Row],[2025/26 From - Spending review Topic 1]]+Dataset[[#This Row],[2025/26 From - Spending review Topic 2]]+Dataset[[#This Row],[2025/26 From - Spending review Topic 3]]+Dataset[[#This Row],[2025/26 From - Spending review Topic 4]]+Dataset[[#This Row],[2025/26 From - Other reallocations]]","v":0},{"$f":"Dataset[[#This Row],[2026/27 From - Spending review Topic 1]]+Dataset[[#This Row],[2026/27 From - Spending review Topic 2]]+Dataset[[#This Row],[2026/27 From - Spending review Topic 3]]+Dataset[[#This Row],[2026/27 From - Spending review Topic 4]]+Dataset[[#This Row],[2026/27 From - Other reallocations]]","v":0},{"$f":"Dataset[[#This Row],[2024/25 To - Spending review Topic 1]]+Dataset[[#This Row],[2024/25 To - Spending review Topic 2]]+Dataset[[#This Row],[2024/25 To - Spending review Topic 3]]+Dataset[[#This Row],[2024/25 To - Spending review Topic 4]]+Dataset[[#This Row],[2024/25 To - Other reallocations]]","v":0},{"$f":"Dataset[[#This Row],[2025/26 To - Spending review Topic 1]]+Dataset[[#This Row],[2025/26 To - Spending review Topic 2]]+Dataset[[#This Row],[2025/26 To - Spending review Topic 3]]+Dataset[[#This Row],[2025/26 To - Spending review Topic 4]]+Dataset[[#This Row],[2025/26 To - Other reallocations]]","v":0},{"$f":"Dataset[[#This Row],[2026/27 To - Spending review Topic 1]]+Dataset[[#This Row],[2026/27 To - Spending review Topic 2]]+Dataset[[#This Row],[2026/27 To - Spending review Topic 3]]+Dataset[[#This Row],[2026/27 To - Spending review Topic 4]]+Dataset[[#This Row],[2026/27 To - Other reallocations]]","v":0},{"$f":"Dataset[[#This Row],[2024/25 Reduction]]+Dataset[[#This Row],[2024/25 From - Total]]","v":0},{"$f":"Dataset[[#This Row],[2025/26 Reduction]]+Dataset[[#This Row],[2025/26 From - Total]]","v":0},{"$f":"Dataset[[#This Row],[2026/27 Reduction]]+Dataset[[#This Row],[2026/27 From - Total]]","v":0},{"$f":"Dataset[[#This Row],[2023/24 Reduction]]","v":0},{"$f":"SUM(Dataset[[#This Row],[2024/25 Reduction]],Dataset[[#This Row],[2024/25 From - Total]],Dataset[[#This Row],[2024/25 To - Total]])","v":0},{"$f":"SUM(Dataset[[#This Row],[2025/26 Reduction]],Dataset[[#This Row],[2025/26 From - Total]],Dataset[[#This Row],[2025/26 To - Total]])","v":0},{"$f":"SUM(Dataset[[#This Row],[2026/27 Reduction]],Dataset[[#This Row],[2026/27 From - Total]],Dataset[[#This Row],[2026/27 To - Total]])","v":0},{"$f":"Dataset[[#This Row],[2023/24 Baseline]]+Dataset[[#This Row],[2023/24 Total change]]","v":0},{"$f":"Dataset[[#This Row],[2024/25 Baseline]]+Dataset[[#This Row],[2024/25 Total change]]","v":0},{"$f":"Dataset[[#This Row],[2025/26 Baseline]]+Dataset[[#This Row],[2025/26 Total change]]","v":0},{"$f":"Dataset[[#This Row],[2026/27 Baseline]]+Dataset[[#This Row],[2026/27 Total change]]","v":0}]
["NAT|Non-transfer item","26|Subsidies on products and production (pe)","2024_25","MTEF2024",26,1,2,44017,130,"26","01","02","044017","000130","26|01|02","01","02","08","50","53","01|02|08|50|53","National","Military Veterans","Administration","Corporate Services","Non-transfer item","Current","Transfers and subsidies","Public corporations and private enterprises","Private enterprises","Subsidies on products and production (pe)","Peace and security","Defence and state security","NAT",0,0,0,0,0,0,0,0,0,0,0,null,null,null,null,null,null,null,null,null,null,null,null,null,null,null,null,null,null,null,null,null,null,null,null,null,null,null,null,null,null,null,null,null,null,{"$f":"Dataset[[#This Row],[2024/25 From - Spending review Topic 1]]+Dataset[[#This Row],[2024/25 From - Spending review Topic 2]]+Dataset[[#This Row],[2024/25 From - Spending review Topic 3]]+Dataset[[#This Row],[2024/25 From - Spending review Topic 4]]+Dataset[[#This Row],[2024/25 From - Other reallocations]]","v":0},{"$f":"Dataset[[#This Row],[2025/26 From - Spending review Topic 1]]+Dataset[[#This Row],[2025/26 From - Spending review Topic 2]]+Dataset[[#This Row],[2025/26 From - Spending review Topic 3]]+Dataset[[#This Row],[2025/26 From - Spending review Topic 4]]+Dataset[[#This Row],[2025/26 From - Other reallocations]]","v":0},{"$f":"Dataset[[#This Row],[2026/27 From - Spending review Topic 1]]+Dataset[[#This Row],[2026/27 From - Spending review Topic 2]]+Dataset[[#This Row],[2026/27 From - Spending review Topic 3]]+Dataset[[#This Row],[2026/27 From - Spending review Topic 4]]+Dataset[[#This Row],[2026/27 From - Other reallocations]]","v":0},{"$f":"Dataset[[#This Row],[2024/25 To - Spending review Topic 1]]+Dataset[[#This Row],[2024/25 To - Spending review Topic 2]]+Dataset[[#This Row],[2024/25 To - Spending review Topic 3]]+Dataset[[#This Row],[2024/25 To - Spending review Topic 4]]+Dataset[[#This Row],[2024/25 To - Other reallocations]]","v":0},{"$f":"Dataset[[#This Row],[2025/26 To - Spending review Topic 1]]+Dataset[[#This Row],[2025/26 To - Spending review Topic 2]]+Dataset[[#This Row],[2025/26 To - Spending review Topic 3]]+Dataset[[#This Row],[2025/26 To - Spending review Topic 4]]+Dataset[[#This Row],[2025/26 To - Other reallocations]]","v":0},{"$f":"Dataset[[#This Row],[2026/27 To - Spending review Topic 1]]+Dataset[[#This Row],[2026/27 To - Spending review Topic 2]]+Dataset[[#This Row],[2026/27 To - Spending review Topic 3]]+Dataset[[#This Row],[2026/27 To - Spending review Topic 4]]+Dataset[[#This Row],[2026/27 To - Other reallocations]]","v":0},{"$f":"Dataset[[#This Row],[2024/25 Reduction]]+Dataset[[#This Row],[2024/25 From - Total]]","v":0},{"$f":"Dataset[[#This Row],[2025/26 Reduction]]+Dataset[[#This Row],[2025/26 From - Total]]","v":0},{"$f":"Dataset[[#This Row],[2026/27 Reduction]]+Dataset[[#This Row],[2026/27 From - Total]]","v":0},{"$f":"Dataset[[#This Row],[2023/24 Reduction]]","v":0},{"$f":"SUM(Dataset[[#This Row],[2024/25 Reduction]],Dataset[[#This Row],[2024/25 From - Total]],Dataset[[#This Row],[2024/25 To - Total]])","v":0},{"$f":"SUM(Dataset[[#This Row],[2025/26 Reduction]],Dataset[[#This Row],[2025/26 From - Total]],Dataset[[#This Row],[2025/26 To - Total]])","v":0},{"$f":"SUM(Dataset[[#This Row],[2026/27 Reduction]],Dataset[[#This Row],[2026/27 From - Total]],Dataset[[#This Row],[2026/27 To - Total]])","v":0},{"$f":"Dataset[[#This Row],[2023/24 Baseline]]+Dataset[[#This Row],[2023/24 Total change]]","v":0},{"$f":"Dataset[[#This Row],[2024/25 Baseline]]+Dataset[[#This Row],[2024/25 Total change]]","v":0},{"$f":"Dataset[[#This Row],[2025/26 Baseline]]+Dataset[[#This Row],[2025/26 Total change]]","v":0},{"$f":"Dataset[[#This Row],[2026/27 Baseline]]+Dataset[[#This Row],[2026/27 Total change]]","v":0}]
["NAT|Non-transfer item","26|Other transfers to private enterprises","2024_25","MTEF2024",26,1,2,44018,131,"26","01","02","044018","000131","26|01|02","01","02","08","50","54","01|02|08|50|54","National","Military Veterans","Administration","Corporate Services","Non-transfer item","Current","Transfers and subsidies","Public corporations and private enterprises","Private enterprises","Other transfers to private enterprises","Peace and security","Defence and state security","NAT",0,0,0,0,0,0,0,0,0,0,0,null,null,null,null,null,null,null,null,null,null,null,null,null,null,null,null,null,null,null,null,null,null,null,null,null,null,null,null,null,null,null,null,null,null,{"$f":"Dataset[[#This Row],[2024/25 From - Spending review Topic 1]]+Dataset[[#This Row],[2024/25 From - Spending review Topic 2]]+Dataset[[#This Row],[2024/25 From - Spending review Topic 3]]+Dataset[[#This Row],[2024/25 From - Spending review Topic 4]]+Dataset[[#This Row],[2024/25 From - Other reallocations]]","v":0},{"$f":"Dataset[[#This Row],[2025/26 From - Spending review Topic 1]]+Dataset[[#This Row],[2025/26 From - Spending review Topic 2]]+Dataset[[#This Row],[2025/26 From - Spending review Topic 3]]+Dataset[[#This Row],[2025/26 From - Spending review Topic 4]]+Dataset[[#This Row],[2025/26 From - Other reallocations]]","v":0},{"$f":"Dataset[[#This Row],[2026/27 From - Spending review Topic 1]]+Dataset[[#This Row],[2026/27 From - Spending review Topic 2]]+Dataset[[#This Row],[2026/27 From - Spending review Topic 3]]+Dataset[[#This Row],[2026/27 From - Spending review Topic 4]]+Dataset[[#This Row],[2026/27 From - Other reallocations]]","v":0},{"$f":"Dataset[[#This Row],[2024/25 To - Spending review Topic 1]]+Dataset[[#This Row],[2024/25 To - Spending review Topic 2]]+Dataset[[#This Row],[2024/25 To - Spending review Topic 3]]+Dataset[[#This Row],[2024/25 To - Spending review Topic 4]]+Dataset[[#This Row],[2024/25 To - Other reallocations]]","v":0},{"$f":"Dataset[[#This Row],[2025/26 To - Spending review Topic 1]]+Dataset[[#This Row],[2025/26 To - Spending review Topic 2]]+Dataset[[#This Row],[2025/26 To - Spending review Topic 3]]+Dataset[[#This Row],[2025/26 To - Spending review Topic 4]]+Dataset[[#This Row],[2025/26 To - Other reallocations]]","v":0},{"$f":"Dataset[[#This Row],[2026/27 To - Spending review Topic 1]]+Dataset[[#This Row],[2026/27 To - Spending review Topic 2]]+Dataset[[#This Row],[2026/27 To - Spending review Topic 3]]+Dataset[[#This Row],[2026/27 To - Spending review Topic 4]]+Dataset[[#This Row],[2026/27 To - Other reallocations]]","v":0},{"$f":"Dataset[[#This Row],[2024/25 Reduction]]+Dataset[[#This Row],[2024/25 From - Total]]","v":0},{"$f":"Dataset[[#This Row],[2025/26 Reduction]]+Dataset[[#This Row],[2025/26 From - Total]]","v":0},{"$f":"Dataset[[#This Row],[2026/27 Reduction]]+Dataset[[#This Row],[2026/27 From - Total]]","v":0},{"$f":"Dataset[[#This Row],[2023/24 Reduction]]","v":0},{"$f":"SUM(Dataset[[#This Row],[2024/25 Reduction]],Dataset[[#This Row],[2024/25 From - Total]],Dataset[[#This Row],[2024/25 To - Total]])","v":0},{"$f":"SUM(Dataset[[#This Row],[2025/26 Reduction]],Dataset[[#This Row],[2025/26 From - Total]],Dataset[[#This Row],[2025/26 To - Total]])","v":0},{"$f":"SUM(Dataset[[#This Row],[2026/27 Reduction]],Dataset[[#This Row],[2026/27 From - Total]],Dataset[[#This Row],[2026/27 To - Total]])","v":0},{"$f":"Dataset[[#This Row],[2023/24 Baseline]]+Dataset[[#This Row],[2023/24 Total change]]","v":0},{"$f":"Dataset[[#This Row],[2024/25 Baseline]]+Dataset[[#This Row],[2024/25 Total change]]","v":0},{"$f":"Dataset[[#This Row],[2025/26 Baseline]]+Dataset[[#This Row],[2025/26 Total change]]","v":0},{"$f":"Dataset[[#This Row],[2026/27 Baseline]]+Dataset[[#This Row],[2026/27 Total change]]","v":0}]
["NAT|Non-transfer item","26|Non-profit institutions","2024_25","MTEF2024",26,1,2,44019,132,"26","01","02","044019","000132","26|01|02","01","02","09","51","55","01|02|09|51|55","National","Military Veterans","Administration","Corporate Services","Non-transfer item","Current","Transfers and subsidies","Non-profit institutions","Non-profit institutions","Non-profit institutions","Peace and security","Defence and state security","NAT",0,0,0,0,0,0,0,0,0,0,0,null,null,null,null,null,null,null,null,null,null,null,null,null,null,null,null,null,null,null,null,null,null,null,null,null,null,null,null,null,null,null,null,null,null,{"$f":"Dataset[[#This Row],[2024/25 From - Spending review Topic 1]]+Dataset[[#This Row],[2024/25 From - Spending review Topic 2]]+Dataset[[#This Row],[2024/25 From - Spending review Topic 3]]+Dataset[[#This Row],[2024/25 From - Spending review Topic 4]]+Dataset[[#This Row],[2024/25 From - Other reallocations]]","v":0},{"$f":"Dataset[[#This Row],[2025/26 From - Spending review Topic 1]]+Dataset[[#This Row],[2025/26 From - Spending review Topic 2]]+Dataset[[#This Row],[2025/26 From - Spending review Topic 3]]+Dataset[[#This Row],[2025/26 From - Spending review Topic 4]]+Dataset[[#This Row],[2025/26 From - Other reallocations]]","v":0},{"$f":"Dataset[[#This Row],[2026/27 From - Spending review Topic 1]]+Dataset[[#This Row],[2026/27 From - Spending review Topic 2]]+Dataset[[#This Row],[2026/27 From - Spending review Topic 3]]+Dataset[[#This Row],[2026/27 From - Spending review Topic 4]]+Dataset[[#This Row],[2026/27 From - Other reallocations]]","v":0},{"$f":"Dataset[[#This Row],[2024/25 To - Spending review Topic 1]]+Dataset[[#This Row],[2024/25 To - Spending review Topic 2]]+Dataset[[#This Row],[2024/25 To - Spending review Topic 3]]+Dataset[[#This Row],[2024/25 To - Spending review Topic 4]]+Dataset[[#This Row],[2024/25 To - Other reallocations]]","v":0},{"$f":"Dataset[[#This Row],[2025/26 To - Spending review Topic 1]]+Dataset[[#This Row],[2025/26 To - Spending review Topic 2]]+Dataset[[#This Row],[2025/26 To - Spending review Topic 3]]+Dataset[[#This Row],[2025/26 To - Spending review Topic 4]]+Dataset[[#This Row],[2025/26 To - Other reallocations]]","v":0},{"$f":"Dataset[[#This Row],[2026/27 To - Spending review Topic 1]]+Dataset[[#This Row],[2026/27 To - Spending review Topic 2]]+Dataset[[#This Row],[2026/27 To - Spending review Topic 3]]+Dataset[[#This Row],[2026/27 To - Spending review Topic 4]]+Dataset[[#This Row],[2026/27 To - Other reallocations]]","v":0},{"$f":"Dataset[[#This Row],[2024/25 Reduction]]+Dataset[[#This Row],[2024/25 From - Total]]","v":0},{"$f":"Dataset[[#This Row],[2025/26 Reduction]]+Dataset[[#This Row],[2025/26 From - Total]]","v":0},{"$f":"Dataset[[#This Row],[2026/27 Reduction]]+Dataset[[#This Row],[2026/27 From - Total]]","v":0},{"$f":"Dataset[[#This Row],[2023/24 Reduction]]","v":0},{"$f":"SUM(Dataset[[#This Row],[2024/25 Reduction]],Dataset[[#This Row],[2024/25 From - Total]],Dataset[[#This Row],[2024/25 To - Total]])","v":0},{"$f":"SUM(Dataset[[#This Row],[2025/26 Reduction]],Dataset[[#This Row],[2025/26 From - Total]],Dataset[[#This Row],[2025/26 To - Total]])","v":0},{"$f":"SUM(Dataset[[#This Row],[2026/27 Reduction]],Dataset[[#This Row],[2026/27 From - Total]],Dataset[[#This Row],[2026/27 To - Total]])","v":0},{"$f":"Dataset[[#This Row],[2023/24 Baseline]]+Dataset[[#This Row],[2023/24 Total change]]","v":0},{"$f":"Dataset[[#This Row],[2024/25 Baseline]]+Dataset[[#This Row],[2024/25 Total change]]","v":0},{"$f":"Dataset[[#This Row],[2025/26 Baseline]]+Dataset[[#This Row],[2025/26 Total change]]","v":0},{"$f":"Dataset[[#This Row],[2026/27 Baseline]]+Dataset[[#This Row],[2026/27 Total change]]","v":0}]
["NAT|Household","26|Social benefits","2024_25","MTEF2024",26,1,2,44020,133,"26","01","02","044020","000133","26|01|02","01","02","10","52","56","01|02|10|52|56","National","Military Veterans","Administration","Corporate Services","Household","Current","Transfers and subsidies","Households","Social benefits","Social benefits","Peace and security","Defence and state security","NAT",394,251,136,0,100,100,0,0,0,0,0,null,null,null,null,null,null,null,null,null,null,null,null,null,null,null,null,null,null,null,null,null,null,null,null,null,null,null,null,null,null,null,null,null,null,{"$f":"Dataset[[#This Row],[2024/25 From - Spending review Topic 1]]+Dataset[[#This Row],[2024/25 From - Spending review Topic 2]]+Dataset[[#This Row],[2024/25 From - Spending review Topic 3]]+Dataset[[#This Row],[2024/25 From - Spending review Topic 4]]+Dataset[[#This Row],[2024/25 From - Other reallocations]]","v":0},{"$f":"Dataset[[#This Row],[2025/26 From - Spending review Topic 1]]+Dataset[[#This Row],[2025/26 From - Spending review Topic 2]]+Dataset[[#This Row],[2025/26 From - Spending review Topic 3]]+Dataset[[#This Row],[2025/26 From - Spending review Topic 4]]+Dataset[[#This Row],[2025/26 From - Other reallocations]]","v":0},{"$f":"Dataset[[#This Row],[2026/27 From - Spending review Topic 1]]+Dataset[[#This Row],[2026/27 From - Spending review Topic 2]]+Dataset[[#This Row],[2026/27 From - Spending review Topic 3]]+Dataset[[#This Row],[2026/27 From - Spending review Topic 4]]+Dataset[[#This Row],[2026/27 From - Other reallocations]]","v":0},{"$f":"Dataset[[#This Row],[2024/25 To - Spending review Topic 1]]+Dataset[[#This Row],[2024/25 To - Spending review Topic 2]]+Dataset[[#This Row],[2024/25 To - Spending review Topic 3]]+Dataset[[#This Row],[2024/25 To - Spending review Topic 4]]+Dataset[[#This Row],[2024/25 To - Other reallocations]]","v":0},{"$f":"Dataset[[#This Row],[2025/26 To - Spending review Topic 1]]+Dataset[[#This Row],[2025/26 To - Spending review Topic 2]]+Dataset[[#This Row],[2025/26 To - Spending review Topic 3]]+Dataset[[#This Row],[2025/26 To - Spending review Topic 4]]+Dataset[[#This Row],[2025/26 To - Other reallocations]]","v":0},{"$f":"Dataset[[#This Row],[2026/27 To - Spending review Topic 1]]+Dataset[[#This Row],[2026/27 To - Spending review Topic 2]]+Dataset[[#This Row],[2026/27 To - Spending review Topic 3]]+Dataset[[#This Row],[2026/27 To - Spending review Topic 4]]+Dataset[[#This Row],[2026/27 To - Other reallocations]]","v":0},{"$f":"Dataset[[#This Row],[2024/25 Reduction]]+Dataset[[#This Row],[2024/25 From - Total]]","v":0},{"$f":"Dataset[[#This Row],[2025/26 Reduction]]+Dataset[[#This Row],[2025/26 From - Total]]","v":0},{"$f":"Dataset[[#This Row],[2026/27 Reduction]]+Dataset[[#This Row],[2026/27 From - Total]]","v":0},{"$f":"Dataset[[#This Row],[2023/24 Reduction]]","v":0},{"$f":"SUM(Dataset[[#This Row],[2024/25 Reduction]],Dataset[[#This Row],[2024/25 From - Total]],Dataset[[#This Row],[2024/25 To - Total]])","v":0},{"$f":"SUM(Dataset[[#This Row],[2025/26 Reduction]],Dataset[[#This Row],[2025/26 From - Total]],Dataset[[#This Row],[2025/26 To - Total]])","v":0},{"$f":"SUM(Dataset[[#This Row],[2026/27 Reduction]],Dataset[[#This Row],[2026/27 From - Total]],Dataset[[#This Row],[2026/27 To - Total]])","v":0},{"$f":"Dataset[[#This Row],[2023/24 Baseline]]+Dataset[[#This Row],[2023/24 Total change]]","v":0},{"$f":"Dataset[[#This Row],[2024/25 Baseline]]+Dataset[[#This Row],[2024/25 Total change]]","v":0},{"$f":"Dataset[[#This Row],[2025/26 Baseline]]+Dataset[[#This Row],[2025/26 Total change]]","v":0},{"$f":"Dataset[[#This Row],[2026/27 Baseline]]+Dataset[[#This Row],[2026/27 Total change]]","v":0}]
["NAT|Household","26|Other transfers to households","2024_25","MTEF2024",26,1,2,44021,134,"26","01","02","044021","000134","26|01|02","01","02","10","53","57","01|02|10|53|57","National","Military Veterans","Administration","Corporate Services","Household","Current","Transfers and subsidies","Households","Other transfers to households","Other transfers to households","Peace and security","Defence and state security","NAT",2238,0,445,0,0,0,0,0,0,0,0,null,null,null,null,null,null,null,null,null,null,null,null,null,null,null,null,null,null,null,null,null,null,null,null,null,null,null,null,null,null,null,null,null,null,{"$f":"Dataset[[#This Row],[2024/25 From - Spending review Topic 1]]+Dataset[[#This Row],[2024/25 From - Spending review Topic 2]]+Dataset[[#This Row],[2024/25 From - Spending review Topic 3]]+Dataset[[#This Row],[2024/25 From - Spending review Topic 4]]+Dataset[[#This Row],[2024/25 From - Other reallocations]]","v":0},{"$f":"Dataset[[#This Row],[2025/26 From - Spending review Topic 1]]+Dataset[[#This Row],[2025/26 From - Spending review Topic 2]]+Dataset[[#This Row],[2025/26 From - Spending review Topic 3]]+Dataset[[#This Row],[2025/26 From - Spending review Topic 4]]+Dataset[[#This Row],[2025/26 From - Other reallocations]]","v":0},{"$f":"Dataset[[#This Row],[2026/27 From - Spending review Topic 1]]+Dataset[[#This Row],[2026/27 From - Spending review Topic 2]]+Dataset[[#This Row],[2026/27 From - Spending review Topic 3]]+Dataset[[#This Row],[2026/27 From - Spending review Topic 4]]+Dataset[[#This Row],[2026/27 From - Other reallocations]]","v":0},{"$f":"Dataset[[#This Row],[2024/25 To - Spending review Topic 1]]+Dataset[[#This Row],[2024/25 To - Spending review Topic 2]]+Dataset[[#This Row],[2024/25 To - Spending review Topic 3]]+Dataset[[#This Row],[2024/25 To - Spending review Topic 4]]+Dataset[[#This Row],[2024/25 To - Other reallocations]]","v":0},{"$f":"Dataset[[#This Row],[2025/26 To - Spending review Topic 1]]+Dataset[[#This Row],[2025/26 To - Spending review Topic 2]]+Dataset[[#This Row],[2025/26 To - Spending review Topic 3]]+Dataset[[#This Row],[2025/26 To - Spending review Topic 4]]+Dataset[[#This Row],[2025/26 To - Other reallocations]]","v":0},{"$f":"Dataset[[#This Row],[2026/27 To - Spending review Topic 1]]+Dataset[[#This Row],[2026/27 To - Spending review Topic 2]]+Dataset[[#This Row],[2026/27 To - Spending review Topic 3]]+Dataset[[#This Row],[2026/27 To - Spending review Topic 4]]+Dataset[[#This Row],[2026/27 To - Other reallocations]]","v":0},{"$f":"Dataset[[#This Row],[2024/25 Reduction]]+Dataset[[#This Row],[2024/25 From - Total]]","v":0},{"$f":"Dataset[[#This Row],[2025/26 Reduction]]+Dataset[[#This Row],[2025/26 From - Total]]","v":0},{"$f":"Dataset[[#This Row],[2026/27 Reduction]]+Dataset[[#This Row],[2026/27 From - Total]]","v":0},{"$f":"Dataset[[#This Row],[2023/24 Reduction]]","v":0},{"$f":"SUM(Dataset[[#This Row],[2024/25 Reduction]],Dataset[[#This Row],[2024/25 From - Total]],Dataset[[#This Row],[2024/25 To - Total]])","v":0},{"$f":"SUM(Dataset[[#This Row],[2025/26 Reduction]],Dataset[[#This Row],[2025/26 From - Total]],Dataset[[#This Row],[2025/26 To - Total]])","v":0},{"$f":"SUM(Dataset[[#This Row],[2026/27 Reduction]],Dataset[[#This Row],[2026/27 From - Total]],Dataset[[#This Row],[2026/27 To - Total]])","v":0},{"$f":"Dataset[[#This Row],[2023/24 Baseline]]+Dataset[[#This Row],[2023/24 Total change]]","v":0},{"$f":"Dataset[[#This Row],[2024/25 Baseline]]+Dataset[[#This Row],[2024/25 Total change]]","v":0},{"$f":"Dataset[[#This Row],[2025/26 Baseline]]+Dataset[[#This Row],[2025/26 Total change]]","v":0},{"$f":"Dataset[[#This Row],[2026/27 Baseline]]+Dataset[[#This Row],[2026/27 Total change]]","v":0}]
["NAT|Non-transfer item","26|Provincial Revenue Funds","2024_25","MTEF2024",26,1,2,44022,135,"26","01","02","044022","000135","26|01|02","02","02","04","43","43","02|02|04|43|43","National","Military Veterans","Administration","Corporate Services","Non-transfer item","Capital","Transfers and subsidies","Provinces and municipalities","Provinces","Provincial Revenue Funds","Peace and security","Defence and state security","NAT",0,0,0,0,0,0,0,0,0,0,0,null,null,null,null,null,null,null,null,null,null,null,null,null,null,null,null,null,null,null,null,null,null,null,null,null,null,null,null,null,null,null,null,null,null,{"$f":"Dataset[[#This Row],[2024/25 From - Spending review Topic 1]]+Dataset[[#This Row],[2024/25 From - Spending review Topic 2]]+Dataset[[#This Row],[2024/25 From - Spending review Topic 3]]+Dataset[[#This Row],[2024/25 From - Spending review Topic 4]]+Dataset[[#This Row],[2024/25 From - Other reallocations]]","v":0},{"$f":"Dataset[[#This Row],[2025/26 From - Spending review Topic 1]]+Dataset[[#This Row],[2025/26 From - Spending review Topic 2]]+Dataset[[#This Row],[2025/26 From - Spending review Topic 3]]+Dataset[[#This Row],[2025/26 From - Spending review Topic 4]]+Dataset[[#This Row],[2025/26 From - Other reallocations]]","v":0},{"$f":"Dataset[[#This Row],[2026/27 From - Spending review Topic 1]]+Dataset[[#This Row],[2026/27 From - Spending review Topic 2]]+Dataset[[#This Row],[2026/27 From - Spending review Topic 3]]+Dataset[[#This Row],[2026/27 From - Spending review Topic 4]]+Dataset[[#This Row],[2026/27 From - Other reallocations]]","v":0},{"$f":"Dataset[[#This Row],[2024/25 To - Spending review Topic 1]]+Dataset[[#This Row],[2024/25 To - Spending review Topic 2]]+Dataset[[#This Row],[2024/25 To - Spending review Topic 3]]+Dataset[[#This Row],[2024/25 To - Spending review Topic 4]]+Dataset[[#This Row],[2024/25 To - Other reallocations]]","v":0},{"$f":"Dataset[[#This Row],[2025/26 To - Spending review Topic 1]]+Dataset[[#This Row],[2025/26 To - Spending review Topic 2]]+Dataset[[#This Row],[2025/26 To - Spending review Topic 3]]+Dataset[[#This Row],[2025/26 To - Spending review Topic 4]]+Dataset[[#This Row],[2025/26 To - Other reallocations]]","v":0},{"$f":"Dataset[[#This Row],[2026/27 To - Spending review Topic 1]]+Dataset[[#This Row],[2026/27 To - Spending review Topic 2]]+Dataset[[#This Row],[2026/27 To - Spending review Topic 3]]+Dataset[[#This Row],[2026/27 To - Spending review Topic 4]]+Dataset[[#This Row],[2026/27 To - Other reallocations]]","v":0},{"$f":"Dataset[[#This Row],[2024/25 Reduction]]+Dataset[[#This Row],[2024/25 From - Total]]","v":0},{"$f":"Dataset[[#This Row],[2025/26 Reduction]]+Dataset[[#This Row],[2025/26 From - Total]]","v":0},{"$f":"Dataset[[#This Row],[2026/27 Reduction]]+Dataset[[#This Row],[2026/27 From - Total]]","v":0},{"$f":"Dataset[[#This Row],[2023/24 Reduction]]","v":0},{"$f":"SUM(Dataset[[#This Row],[2024/25 Reduction]],Dataset[[#This Row],[2024/25 From - Total]],Dataset[[#This Row],[2024/25 To - Total]])","v":0},{"$f":"SUM(Dataset[[#This Row],[2025/26 Reduction]],Dataset[[#This Row],[2025/26 From - Total]],Dataset[[#This Row],[2025/26 To - Total]])","v":0},{"$f":"SUM(Dataset[[#This Row],[2026/27 Reduction]],Dataset[[#This Row],[2026/27 From - Total]],Dataset[[#This Row],[2026/27 To - Total]])","v":0},{"$f":"Dataset[[#This Row],[2023/24 Baseline]]+Dataset[[#This Row],[2023/24 Total change]]","v":0},{"$f":"Dataset[[#This Row],[2024/25 Baseline]]+Dataset[[#This Row],[2024/25 Total change]]","v":0},{"$f":"Dataset[[#This Row],[2025/26 Baseline]]+Dataset[[#This Row],[2025/26 Total change]]","v":0},{"$f":"Dataset[[#This Row],[2026/27 Baseline]]+Dataset[[#This Row],[2026/27 Total change]]","v":0}]
["NAT|Non-transfer item","26|Municipal bank accounts","2024_25","MTEF2024",26,1,2,44023,136,"26","01","02","044023","000136","26|01|02","02","02","04","44","45","02|02|04|44|45","National","Military Veterans","Administration","Corporate Services","Non-transfer item","Capital","Transfers and subsidies","Provinces and municipalities","Municipalities","Municipal bank accounts","Peace and security","Defence and state security","NAT",0,0,0,0,0,0,0,0,0,0,0,null,null,null,null,null,null,null,null,null,null,null,null,null,null,null,null,null,null,null,null,null,null,null,null,null,null,null,null,null,null,null,null,null,null,{"$f":"Dataset[[#This Row],[2024/25 From - Spending review Topic 1]]+Dataset[[#This Row],[2024/25 From - Spending review Topic 2]]+Dataset[[#This Row],[2024/25 From - Spending review Topic 3]]+Dataset[[#This Row],[2024/25 From - Spending review Topic 4]]+Dataset[[#This Row],[2024/25 From - Other reallocations]]","v":0},{"$f":"Dataset[[#This Row],[2025/26 From - Spending review Topic 1]]+Dataset[[#This Row],[2025/26 From - Spending review Topic 2]]+Dataset[[#This Row],[2025/26 From - Spending review Topic 3]]+Dataset[[#This Row],[2025/26 From - Spending review Topic 4]]+Dataset[[#This Row],[2025/26 From - Other reallocations]]","v":0},{"$f":"Dataset[[#This Row],[2026/27 From - Spending review Topic 1]]+Dataset[[#This Row],[2026/27 From - Spending review Topic 2]]+Dataset[[#This Row],[2026/27 From - Spending review Topic 3]]+Dataset[[#This Row],[2026/27 From - Spending review Topic 4]]+Dataset[[#This Row],[2026/27 From - Other reallocations]]","v":0},{"$f":"Dataset[[#This Row],[2024/25 To - Spending review Topic 1]]+Dataset[[#This Row],[2024/25 To - Spending review Topic 2]]+Dataset[[#This Row],[2024/25 To - Spending review Topic 3]]+Dataset[[#This Row],[2024/25 To - Spending review Topic 4]]+Dataset[[#This Row],[2024/25 To - Other reallocations]]","v":0},{"$f":"Dataset[[#This Row],[2025/26 To - Spending review Topic 1]]+Dataset[[#This Row],[2025/26 To - Spending review Topic 2]]+Dataset[[#This Row],[2025/26 To - Spending review Topic 3]]+Dataset[[#This Row],[2025/26 To - Spending review Topic 4]]+Dataset[[#This Row],[2025/26 To - Other reallocations]]","v":0},{"$f":"Dataset[[#This Row],[2026/27 To - Spending review Topic 1]]+Dataset[[#This Row],[2026/27 To - Spending review Topic 2]]+Dataset[[#This Row],[2026/27 To - Spending review Topic 3]]+Dataset[[#This Row],[2026/27 To - Spending review Topic 4]]+Dataset[[#This Row],[2026/27 To - Other reallocations]]","v":0},{"$f":"Dataset[[#This Row],[2024/25 Reduction]]+Dataset[[#This Row],[2024/25 From - Total]]","v":0},{"$f":"Dataset[[#This Row],[2025/26 Reduction]]+Dataset[[#This Row],[2025/26 From - Total]]","v":0},{"$f":"Dataset[[#This Row],[2026/27 Reduction]]+Dataset[[#This Row],[2026/27 From - Total]]","v":0},{"$f":"Dataset[[#This Row],[2023/24 Reduction]]","v":0},{"$f":"SUM(Dataset[[#This Row],[2024/25 Reduction]],Dataset[[#This Row],[2024/25 From - Total]],Dataset[[#This Row],[2024/25 To - Total]])","v":0},{"$f":"SUM(Dataset[[#This Row],[2025/26 Reduction]],Dataset[[#This Row],[2025/26 From - Total]],Dataset[[#This Row],[2025/26 To - Total]])","v":0},{"$f":"SUM(Dataset[[#This Row],[2026/27 Reduction]],Dataset[[#This Row],[2026/27 From - Total]],Dataset[[#This Row],[2026/27 To - Total]])","v":0},{"$f":"Dataset[[#This Row],[2023/24 Baseline]]+Dataset[[#This Row],[2023/24 Total change]]","v":0},{"$f":"Dataset[[#This Row],[2024/25 Baseline]]+Dataset[[#This Row],[2024/25 Total change]]","v":0},{"$f":"Dataset[[#This Row],[2025/26 Baseline]]+Dataset[[#This Row],[2025/26 Total change]]","v":0},{"$f":"Dataset[[#This Row],[2026/27 Baseline]]+Dataset[[#This Row],[2026/27 Total change]]","v":0}]
["NAT|Non-transfer item","26|Departmental agencies (non-business entities)","2024_25","MTEF2024",26,1,2,44024,137,"26","01","02","044024","000137","26|01|02","02","02","05","46","48","02|02|05|46|48","National","Military Veterans","Administration","Corporate Services","Non-transfer item","Capital","Transfers and subsidies","Departmental agencies and accounts","Departmental agencies (non-business entities)","Departmental agencies (non-business entities)","Peace and security","Defence and state security","NAT",0,0,0,0,0,0,0,0,0,0,0,null,null,null,null,null,null,null,null,null,null,null,null,null,null,null,null,null,null,null,null,null,null,null,null,null,null,null,null,null,null,null,null,null,null,{"$f":"Dataset[[#This Row],[2024/25 From - Spending review Topic 1]]+Dataset[[#This Row],[2024/25 From - Spending review Topic 2]]+Dataset[[#This Row],[2024/25 From - Spending review Topic 3]]+Dataset[[#This Row],[2024/25 From - Spending review Topic 4]]+Dataset[[#This Row],[2024/25 From - Other reallocations]]","v":0},{"$f":"Dataset[[#This Row],[2025/26 From - Spending review Topic 1]]+Dataset[[#This Row],[2025/26 From - Spending review Topic 2]]+Dataset[[#This Row],[2025/26 From - Spending review Topic 3]]+Dataset[[#This Row],[2025/26 From - Spending review Topic 4]]+Dataset[[#This Row],[2025/26 From - Other reallocations]]","v":0},{"$f":"Dataset[[#This Row],[2026/27 From - Spending review Topic 1]]+Dataset[[#This Row],[2026/27 From - Spending review Topic 2]]+Dataset[[#This Row],[2026/27 From - Spending review Topic 3]]+Dataset[[#This Row],[2026/27 From - Spending review Topic 4]]+Dataset[[#This Row],[2026/27 From - Other reallocations]]","v":0},{"$f":"Dataset[[#This Row],[2024/25 To - Spending review Topic 1]]+Dataset[[#This Row],[2024/25 To - Spending review Topic 2]]+Dataset[[#This Row],[2024/25 To - Spending review Topic 3]]+Dataset[[#This Row],[2024/25 To - Spending review Topic 4]]+Dataset[[#This Row],[2024/25 To - Other reallocations]]","v":0},{"$f":"Dataset[[#This Row],[2025/26 To - Spending review Topic 1]]+Dataset[[#This Row],[2025/26 To - Spending review Topic 2]]+Dataset[[#This Row],[2025/26 To - Spending review Topic 3]]+Dataset[[#This Row],[2025/26 To - Spending review Topic 4]]+Dataset[[#This Row],[2025/26 To - Other reallocations]]","v":0},{"$f":"Dataset[[#This Row],[2026/27 To - Spending review Topic 1]]+Dataset[[#This Row],[2026/27 To - Spending review Topic 2]]+Dataset[[#This Row],[2026/27 To - Spending review Topic 3]]+Dataset[[#This Row],[2026/27 To - Spending review Topic 4]]+Dataset[[#This Row],[2026/27 To - Other reallocations]]","v":0},{"$f":"Dataset[[#This Row],[2024/25 Reduction]]+Dataset[[#This Row],[2024/25 From - Total]]","v":0},{"$f":"Dataset[[#This Row],[2025/26 Reduction]]+Dataset[[#This Row],[2025/26 From - Total]]","v":0},{"$f":"Dataset[[#This Row],[2026/27 Reduction]]+Dataset[[#This Row],[2026/27 From - Total]]","v":0},{"$f":"Dataset[[#This Row],[2023/24 Reduction]]","v":0},{"$f":"SUM(Dataset[[#This Row],[2024/25 Reduction]],Dataset[[#This Row],[2024/25 From - Total]],Dataset[[#This Row],[2024/25 To - Total]])","v":0},{"$f":"SUM(Dataset[[#This Row],[2025/26 Reduction]],Dataset[[#This Row],[2025/26 From - Total]],Dataset[[#This Row],[2025/26 To - Total]])","v":0},{"$f":"SUM(Dataset[[#This Row],[2026/27 Reduction]],Dataset[[#This Row],[2026/27 From - Total]],Dataset[[#This Row],[2026/27 To - Total]])","v":0},{"$f":"Dataset[[#This Row],[2023/24 Baseline]]+Dataset[[#This Row],[2023/24 Total change]]","v":0},{"$f":"Dataset[[#This Row],[2024/25 Baseline]]+Dataset[[#This Row],[2024/25 Total change]]","v":0},{"$f":"Dataset[[#This Row],[2025/26 Baseline]]+Dataset[[#This Row],[2025/26 Total change]]","v":0},{"$f":"Dataset[[#This Row],[2026/27 Baseline]]+Dataset[[#This Row],[2026/27 Total change]]","v":0}]
["NAT|Non-transfer item","26|Higher education institutions","2024_25","MTEF2024",26,1,2,44025,138,"26","01","02","044025","000138","26|01|02","02","02","06","47","49","02|02|06|47|49","National","Military Veterans","Administration","Corporate Services","Non-transfer item","Capital","Transfers and subsidies","Higher education institutions","Higher education institutions","Higher education institutions","Peace and security","Defence and state security","NAT",0,0,0,0,0,0,0,0,0,0,0,null,null,null,null,null,null,null,null,null,null,null,null,null,null,null,null,null,null,null,null,null,null,null,null,null,null,null,null,null,null,null,null,null,null,{"$f":"Dataset[[#This Row],[2024/25 From - Spending review Topic 1]]+Dataset[[#This Row],[2024/25 From - Spending review Topic 2]]+Dataset[[#This Row],[2024/25 From - Spending review Topic 3]]+Dataset[[#This Row],[2024/25 From - Spending review Topic 4]]+Dataset[[#This Row],[2024/25 From - Other reallocations]]","v":0},{"$f":"Dataset[[#This Row],[2025/26 From - Spending review Topic 1]]+Dataset[[#This Row],[2025/26 From - Spending review Topic 2]]+Dataset[[#This Row],[2025/26 From - Spending review Topic 3]]+Dataset[[#This Row],[2025/26 From - Spending review Topic 4]]+Dataset[[#This Row],[2025/26 From - Other reallocations]]","v":0},{"$f":"Dataset[[#This Row],[2026/27 From - Spending review Topic 1]]+Dataset[[#This Row],[2026/27 From - Spending review Topic 2]]+Dataset[[#This Row],[2026/27 From - Spending review Topic 3]]+Dataset[[#This Row],[2026/27 From - Spending review Topic 4]]+Dataset[[#This Row],[2026/27 From - Other reallocations]]","v":0},{"$f":"Dataset[[#This Row],[2024/25 To - Spending review Topic 1]]+Dataset[[#This Row],[2024/25 To - Spending review Topic 2]]+Dataset[[#This Row],[2024/25 To - Spending review Topic 3]]+Dataset[[#This Row],[2024/25 To - Spending review Topic 4]]+Dataset[[#This Row],[2024/25 To - Other reallocations]]","v":0},{"$f":"Dataset[[#This Row],[2025/26 To - Spending review Topic 1]]+Dataset[[#This Row],[2025/26 To - Spending review Topic 2]]+Dataset[[#This Row],[2025/26 To - Spending review Topic 3]]+Dataset[[#This Row],[2025/26 To - Spending review Topic 4]]+Dataset[[#This Row],[2025/26 To - Other reallocations]]","v":0},{"$f":"Dataset[[#This Row],[2026/27 To - Spending review Topic 1]]+Dataset[[#This Row],[2026/27 To - Spending review Topic 2]]+Dataset[[#This Row],[2026/27 To - Spending review Topic 3]]+Dataset[[#This Row],[2026/27 To - Spending review Topic 4]]+Dataset[[#This Row],[2026/27 To - Other reallocations]]","v":0},{"$f":"Dataset[[#This Row],[2024/25 Reduction]]+Dataset[[#This Row],[2024/25 From - Total]]","v":0},{"$f":"Dataset[[#This Row],[2025/26 Reduction]]+Dataset[[#This Row],[2025/26 From - Total]]","v":0},{"$f":"Dataset[[#This Row],[2026/27 Reduction]]+Dataset[[#This Row],[2026/27 From - Total]]","v":0},{"$f":"Dataset[[#This Row],[2023/24 Reduction]]","v":0},{"$f":"SUM(Dataset[[#This Row],[2024/25 Reduction]],Dataset[[#This Row],[2024/25 From - Total]],Dataset[[#This Row],[2024/25 To - Total]])","v":0},{"$f":"SUM(Dataset[[#This Row],[2025/26 Reduction]],Dataset[[#This Row],[2025/26 From - Total]],Dataset[[#This Row],[2025/26 To - Total]])","v":0},{"$f":"SUM(Dataset[[#This Row],[2026/27 Reduction]],Dataset[[#This Row],[2026/27 From - Total]],Dataset[[#This Row],[2026/27 To - Total]])","v":0},{"$f":"Dataset[[#This Row],[2023/24 Baseline]]+Dataset[[#This Row],[2023/24 Total change]]","v":0},{"$f":"Dataset[[#This Row],[2024/25 Baseline]]+Dataset[[#This Row],[2024/25 Total change]]","v":0},{"$f":"Dataset[[#This Row],[2025/26 Baseline]]+Dataset[[#This Row],[2025/26 Total change]]","v":0},{"$f":"Dataset[[#This Row],[2026/27 Baseline]]+Dataset[[#This Row],[2026/27 Total change]]","v":0}]
["NAT|Non-transfer item","26|Foreign governments and international organisations","2024_25","MTEF2024",26,1,2,44026,139,"26","01","02","044026","000139","26|01|02","02","02","07","48","50","02|02|07|48|50","National","Military Veterans","Administration","Corporate Services","Non-transfer item","Capital","Transfers and subsidies","Foreign governments and international organisations","Foreign governments and international organisations","Foreign governments and international organisations","Peace and security","Defence and state security","NAT",0,0,0,0,0,0,0,0,0,0,0,null,null,null,null,null,null,null,null,null,null,null,null,null,null,null,null,null,null,null,null,null,null,null,null,null,null,null,null,null,null,null,null,null,null,{"$f":"Dataset[[#This Row],[2024/25 From - Spending review Topic 1]]+Dataset[[#This Row],[2024/25 From - Spending review Topic 2]]+Dataset[[#This Row],[2024/25 From - Spending review Topic 3]]+Dataset[[#This Row],[2024/25 From - Spending review Topic 4]]+Dataset[[#This Row],[2024/25 From - Other reallocations]]","v":0},{"$f":"Dataset[[#This Row],[2025/26 From - Spending review Topic 1]]+Dataset[[#This Row],[2025/26 From - Spending review Topic 2]]+Dataset[[#This Row],[2025/26 From - Spending review Topic 3]]+Dataset[[#This Row],[2025/26 From - Spending review Topic 4]]+Dataset[[#This Row],[2025/26 From - Other reallocations]]","v":0},{"$f":"Dataset[[#This Row],[2026/27 From - Spending review Topic 1]]+Dataset[[#This Row],[2026/27 From - Spending review Topic 2]]+Dataset[[#This Row],[2026/27 From - Spending review Topic 3]]+Dataset[[#This Row],[2026/27 From - Spending review Topic 4]]+Dataset[[#This Row],[2026/27 From - Other reallocations]]","v":0},{"$f":"Dataset[[#This Row],[2024/25 To - Spending review Topic 1]]+Dataset[[#This Row],[2024/25 To - Spending review Topic 2]]+Dataset[[#This Row],[2024/25 To - Spending review Topic 3]]+Dataset[[#This Row],[2024/25 To - Spending review Topic 4]]+Dataset[[#This Row],[2024/25 To - Other reallocations]]","v":0},{"$f":"Dataset[[#This Row],[2025/26 To - Spending review Topic 1]]+Dataset[[#This Row],[2025/26 To - Spending review Topic 2]]+Dataset[[#This Row],[2025/26 To - Spending review Topic 3]]+Dataset[[#This Row],[2025/26 To - Spending review Topic 4]]+Dataset[[#This Row],[2025/26 To - Other reallocations]]","v":0},{"$f":"Dataset[[#This Row],[2026/27 To - Spending review Topic 1]]+Dataset[[#This Row],[2026/27 To - Spending review Topic 2]]+Dataset[[#This Row],[2026/27 To - Spending review Topic 3]]+Dataset[[#This Row],[2026/27 To - Spending review Topic 4]]+Dataset[[#This Row],[2026/27 To - Other reallocations]]","v":0},{"$f":"Dataset[[#This Row],[2024/25 Reduction]]+Dataset[[#This Row],[2024/25 From - Total]]","v":0},{"$f":"Dataset[[#This Row],[2025/26 Reduction]]+Dataset[[#This Row],[2025/26 From - Total]]","v":0},{"$f":"Dataset[[#This Row],[2026/27 Reduction]]+Dataset[[#This Row],[2026/27 From - Total]]","v":0},{"$f":"Dataset[[#This Row],[2023/24 Reduction]]","v":0},{"$f":"SUM(Dataset[[#This Row],[2024/25 Reduction]],Dataset[[#This Row],[2024/25 From - Total]],Dataset[[#This Row],[2024/25 To - Total]])","v":0},{"$f":"SUM(Dataset[[#This Row],[2025/26 Reduction]],Dataset[[#This Row],[2025/26 From - Total]],Dataset[[#This Row],[2025/26 To - Total]])","v":0},{"$f":"SUM(Dataset[[#This Row],[2026/27 Reduction]],Dataset[[#This Row],[2026/27 From - Total]],Dataset[[#This Row],[2026/27 To - Total]])","v":0},{"$f":"Dataset[[#This Row],[2023/24 Baseline]]+Dataset[[#This Row],[2023/24 Total change]]","v":0},{"$f":"Dataset[[#This Row],[2024/25 Baseline]]+Dataset[[#This Row],[2024/25 Total change]]","v":0},{"$f":"Dataset[[#This Row],[2025/26 Baseline]]+Dataset[[#This Row],[2025/26 Total change]]","v":0},{"$f":"Dataset[[#This Row],[2026/27 Baseline]]+Dataset[[#This Row],[2026/27 Total change]]","v":0}]
["NAT|Non-transfer item","26|Subsidies on products and production (pc)","2024_25","MTEF2024",26,1,2,44027,140,"26","01","02","044027","000140","26|01|02","02","02","08","49","51","02|02|08|49|51","National","Military Veterans","Administration","Corporate Services","Non-transfer item","Capital","Transfers and subsidies","Public corporations and private enterprises","Public corporations","Subsidies on products and production (pc)","Peace and security","Defence and state security","NAT",0,0,0,0,0,0,0,0,0,0,0,null,null,null,null,null,null,null,null,null,null,null,null,null,null,null,null,null,null,null,null,null,null,null,null,null,null,null,null,null,null,null,null,null,null,{"$f":"Dataset[[#This Row],[2024/25 From - Spending review Topic 1]]+Dataset[[#This Row],[2024/25 From - Spending review Topic 2]]+Dataset[[#This Row],[2024/25 From - Spending review Topic 3]]+Dataset[[#This Row],[2024/25 From - Spending review Topic 4]]+Dataset[[#This Row],[2024/25 From - Other reallocations]]","v":0},{"$f":"Dataset[[#This Row],[2025/26 From - Spending review Topic 1]]+Dataset[[#This Row],[2025/26 From - Spending review Topic 2]]+Dataset[[#This Row],[2025/26 From - Spending review Topic 3]]+Dataset[[#This Row],[2025/26 From - Spending review Topic 4]]+Dataset[[#This Row],[2025/26 From - Other reallocations]]","v":0},{"$f":"Dataset[[#This Row],[2026/27 From - Spending review Topic 1]]+Dataset[[#This Row],[2026/27 From - Spending review Topic 2]]+Dataset[[#This Row],[2026/27 From - Spending review Topic 3]]+Dataset[[#This Row],[2026/27 From - Spending review Topic 4]]+Dataset[[#This Row],[2026/27 From - Other reallocations]]","v":0},{"$f":"Dataset[[#This Row],[2024/25 To - Spending review Topic 1]]+Dataset[[#This Row],[2024/25 To - Spending review Topic 2]]+Dataset[[#This Row],[2024/25 To - Spending review Topic 3]]+Dataset[[#This Row],[2024/25 To - Spending review Topic 4]]+Dataset[[#This Row],[2024/25 To - Other reallocations]]","v":0},{"$f":"Dataset[[#This Row],[2025/26 To - Spending review Topic 1]]+Dataset[[#This Row],[2025/26 To - Spending review Topic 2]]+Dataset[[#This Row],[2025/26 To - Spending review Topic 3]]+Dataset[[#This Row],[2025/26 To - Spending review Topic 4]]+Dataset[[#This Row],[2025/26 To - Other reallocations]]","v":0},{"$f":"Dataset[[#This Row],[2026/27 To - Spending review Topic 1]]+Dataset[[#This Row],[2026/27 To - Spending review Topic 2]]+Dataset[[#This Row],[2026/27 To - Spending review Topic 3]]+Dataset[[#This Row],[2026/27 To - Spending review Topic 4]]+Dataset[[#This Row],[2026/27 To - Other reallocations]]","v":0},{"$f":"Dataset[[#This Row],[2024/25 Reduction]]+Dataset[[#This Row],[2024/25 From - Total]]","v":0},{"$f":"Dataset[[#This Row],[2025/26 Reduction]]+Dataset[[#This Row],[2025/26 From - Total]]","v":0},{"$f":"Dataset[[#This Row],[2026/27 Reduction]]+Dataset[[#This Row],[2026/27 From - Total]]","v":0},{"$f":"Dataset[[#This Row],[2023/24 Reduction]]","v":0},{"$f":"SUM(Dataset[[#This Row],[2024/25 Reduction]],Dataset[[#This Row],[2024/25 From - Total]],Dataset[[#This Row],[2024/25 To - Total]])","v":0},{"$f":"SUM(Dataset[[#This Row],[2025/26 Reduction]],Dataset[[#This Row],[2025/26 From - Total]],Dataset[[#This Row],[2025/26 To - Total]])","v":0},{"$f":"SUM(Dataset[[#This Row],[2026/27 Reduction]],Dataset[[#This Row],[2026/27 From - Total]],Dataset[[#This Row],[2026/27 To - Total]])","v":0},{"$f":"Dataset[[#This Row],[2023/24 Baseline]]+Dataset[[#This Row],[2023/24 Total change]]","v":0},{"$f":"Dataset[[#This Row],[2024/25 Baseline]]+Dataset[[#This Row],[2024/25 Total change]]","v":0},{"$f":"Dataset[[#This Row],[2025/26 Baseline]]+Dataset[[#This Row],[2025/26 Total change]]","v":0},{"$f":"Dataset[[#This Row],[2026/27 Baseline]]+Dataset[[#This Row],[2026/27 Total change]]","v":0}]
["NAT|Non-transfer item","26|Other transfers to public corporations","2024_25","MTEF2024",26,1,2,44028,141,"26","01","02","044028","000141","26|01|02","02","02","08","49","52","02|02|08|49|52","National","Military Veterans","Administration","Corporate Services","Non-transfer item","Capital","Transfers and subsidies","Public corporations and private enterprises","Public corporations","Other transfers to public corporations","Peace and security","Defence and state security","NAT",0,0,0,0,0,0,0,0,0,0,0,null,null,null,null,null,null,null,null,null,null,null,null,null,null,null,null,null,null,null,null,null,null,null,null,null,null,null,null,null,null,null,null,null,null,{"$f":"Dataset[[#This Row],[2024/25 From - Spending review Topic 1]]+Dataset[[#This Row],[2024/25 From - Spending review Topic 2]]+Dataset[[#This Row],[2024/25 From - Spending review Topic 3]]+Dataset[[#This Row],[2024/25 From - Spending review Topic 4]]+Dataset[[#This Row],[2024/25 From - Other reallocations]]","v":0},{"$f":"Dataset[[#This Row],[2025/26 From - Spending review Topic 1]]+Dataset[[#This Row],[2025/26 From - Spending review Topic 2]]+Dataset[[#This Row],[2025/26 From - Spending review Topic 3]]+Dataset[[#This Row],[2025/26 From - Spending review Topic 4]]+Dataset[[#This Row],[2025/26 From - Other reallocations]]","v":0},{"$f":"Dataset[[#This Row],[2026/27 From - Spending review Topic 1]]+Dataset[[#This Row],[2026/27 From - Spending review Topic 2]]+Dataset[[#This Row],[2026/27 From - Spending review Topic 3]]+Dataset[[#This Row],[2026/27 From - Spending review Topic 4]]+Dataset[[#This Row],[2026/27 From - Other reallocations]]","v":0},{"$f":"Dataset[[#This Row],[2024/25 To - Spending review Topic 1]]+Dataset[[#This Row],[2024/25 To - Spending review Topic 2]]+Dataset[[#This Row],[2024/25 To - Spending review Topic 3]]+Dataset[[#This Row],[2024/25 To - Spending review Topic 4]]+Dataset[[#This Row],[2024/25 To - Other reallocations]]","v":0},{"$f":"Dataset[[#This Row],[2025/26 To - Spending review Topic 1]]+Dataset[[#This Row],[2025/26 To - Spending review Topic 2]]+Dataset[[#This Row],[2025/26 To - Spending review Topic 3]]+Dataset[[#This Row],[2025/26 To - Spending review Topic 4]]+Dataset[[#This Row],[2025/26 To - Other reallocations]]","v":0},{"$f":"Dataset[[#This Row],[2026/27 To - Spending review Topic 1]]+Dataset[[#This Row],[2026/27 To - Spending review Topic 2]]+Dataset[[#This Row],[2026/27 To - Spending review Topic 3]]+Dataset[[#This Row],[2026/27 To - Spending review Topic 4]]+Dataset[[#This Row],[2026/27 To - Other reallocations]]","v":0},{"$f":"Dataset[[#This Row],[2024/25 Reduction]]+Dataset[[#This Row],[2024/25 From - Total]]","v":0},{"$f":"Dataset[[#This Row],[2025/26 Reduction]]+Dataset[[#This Row],[2025/26 From - Total]]","v":0},{"$f":"Dataset[[#This Row],[2026/27 Reduction]]+Dataset[[#This Row],[2026/27 From - Total]]","v":0},{"$f":"Dataset[[#This Row],[2023/24 Reduction]]","v":0},{"$f":"SUM(Dataset[[#This Row],[2024/25 Reduction]],Dataset[[#This Row],[2024/25 From - Total]],Dataset[[#This Row],[2024/25 To - Total]])","v":0},{"$f":"SUM(Dataset[[#This Row],[2025/26 Reduction]],Dataset[[#This Row],[2025/26 From - Total]],Dataset[[#This Row],[2025/26 To - Total]])","v":0},{"$f":"SUM(Dataset[[#This Row],[2026/27 Reduction]],Dataset[[#This Row],[2026/27 From - Total]],Dataset[[#This Row],[2026/27 To - Total]])","v":0},{"$f":"Dataset[[#This Row],[2023/24 Baseline]]+Dataset[[#This Row],[2023/24 Total change]]","v":0},{"$f":"Dataset[[#This Row],[2024/25 Baseline]]+Dataset[[#This Row],[2024/25 Total change]]","v":0},{"$f":"Dataset[[#This Row],[2025/26 Baseline]]+Dataset[[#This Row],[2025/26 Total change]]","v":0},{"$f":"Dataset[[#This Row],[2026/27 Baseline]]+Dataset[[#This Row],[2026/27 Total change]]","v":0}]
["NAT|Non-transfer item","26|Other transfers to private enterprises","2024_25","MTEF2024",26,1,2,44029,142,"26","01","02","044029","000142","26|01|02","02","02","08","50","54","02|02|08|50|54","National","Military Veterans","Administration","Corporate Services","Non-transfer item","Capital","Transfers and subsidies","Public corporations and private enterprises","Private enterprises","Other transfers to private enterprises","Peace and security","Defence and state security","NAT",0,0,0,0,0,0,0,0,0,0,0,null,null,null,null,null,null,null,null,null,null,null,null,null,null,null,null,null,null,null,null,null,null,null,null,null,null,null,null,null,null,null,null,null,null,{"$f":"Dataset[[#This Row],[2024/25 From - Spending review Topic 1]]+Dataset[[#This Row],[2024/25 From - Spending review Topic 2]]+Dataset[[#This Row],[2024/25 From - Spending review Topic 3]]+Dataset[[#This Row],[2024/25 From - Spending review Topic 4]]+Dataset[[#This Row],[2024/25 From - Other reallocations]]","v":0},{"$f":"Dataset[[#This Row],[2025/26 From - Spending review Topic 1]]+Dataset[[#This Row],[2025/26 From - Spending review Topic 2]]+Dataset[[#This Row],[2025/26 From - Spending review Topic 3]]+Dataset[[#This Row],[2025/26 From - Spending review Topic 4]]+Dataset[[#This Row],[2025/26 From - Other reallocations]]","v":0},{"$f":"Dataset[[#This Row],[2026/27 From - Spending review Topic 1]]+Dataset[[#This Row],[2026/27 From - Spending review Topic 2]]+Dataset[[#This Row],[2026/27 From - Spending review Topic 3]]+Dataset[[#This Row],[2026/27 From - Spending review Topic 4]]+Dataset[[#This Row],[2026/27 From - Other reallocations]]","v":0},{"$f":"Dataset[[#This Row],[2024/25 To - Spending review Topic 1]]+Dataset[[#This Row],[2024/25 To - Spending review Topic 2]]+Dataset[[#This Row],[2024/25 To - Spending review Topic 3]]+Dataset[[#This Row],[2024/25 To - Spending review Topic 4]]+Dataset[[#This Row],[2024/25 To - Other reallocations]]","v":0},{"$f":"Dataset[[#This Row],[2025/26 To - Spending review Topic 1]]+Dataset[[#This Row],[2025/26 To - Spending review Topic 2]]+Dataset[[#This Row],[2025/26 To - Spending review Topic 3]]+Dataset[[#This Row],[2025/26 To - Spending review Topic 4]]+Dataset[[#This Row],[2025/26 To - Other reallocations]]","v":0},{"$f":"Dataset[[#This Row],[2026/27 To - Spending review Topic 1]]+Dataset[[#This Row],[2026/27 To - Spending review Topic 2]]+Dataset[[#This Row],[2026/27 To - Spending review Topic 3]]+Dataset[[#This Row],[2026/27 To - Spending review Topic 4]]+Dataset[[#This Row],[2026/27 To - Other reallocations]]","v":0},{"$f":"Dataset[[#This Row],[2024/25 Reduction]]+Dataset[[#This Row],[2024/25 From - Total]]","v":0},{"$f":"Dataset[[#This Row],[2025/26 Reduction]]+Dataset[[#This Row],[2025/26 From - Total]]","v":0},{"$f":"Dataset[[#This Row],[2026/27 Reduction]]+Dataset[[#This Row],[2026/27 From - Total]]","v":0},{"$f":"Dataset[[#This Row],[2023/24 Reduction]]","v":0},{"$f":"SUM(Dataset[[#This Row],[2024/25 Reduction]],Dataset[[#This Row],[2024/25 From - Total]],Dataset[[#This Row],[2024/25 To - Total]])","v":0},{"$f":"SUM(Dataset[[#This Row],[2025/26 Reduction]],Dataset[[#This Row],[2025/26 From - Total]],Dataset[[#This Row],[2025/26 To - Total]])","v":0},{"$f":"SUM(Dataset[[#This Row],[2026/27 Reduction]],Dataset[[#This Row],[2026/27 From - Total]],Dataset[[#This Row],[2026/27 To - Total]])","v":0},{"$f":"Dataset[[#This Row],[2023/24 Baseline]]+Dataset[[#This Row],[2023/24 Total change]]","v":0},{"$f":"Dataset[[#This Row],[2024/25 Baseline]]+Dataset[[#This Row],[2024/25 Total change]]","v":0},{"$f":"Dataset[[#This Row],[2025/26 Baseline]]+Dataset[[#This Row],[2025/26 Total change]]","v":0},{"$f":"Dataset[[#This Row],[2026/27 Baseline]]+Dataset[[#This Row],[2026/27 Total change]]","v":0}]
["NAT|Non-transfer item","26|Non-profit institutions","2024_25","MTEF2024",26,1,2,44030,143,"26","01","02","044030","000143","26|01|02","02","02","09","51","55","02|02|09|51|55","National","Military Veterans","Administration","Corporate Services","Non-transfer item","Capital","Transfers and subsidies","Non-profit institutions","Non-profit institutions","Non-profit institutions","Peace and security","Defence and state security","NAT",0,0,0,0,0,0,0,0,0,0,0,null,null,null,null,null,null,null,null,null,null,null,null,null,null,null,null,null,null,null,null,null,null,null,null,null,null,null,null,null,null,null,null,null,null,{"$f":"Dataset[[#This Row],[2024/25 From - Spending review Topic 1]]+Dataset[[#This Row],[2024/25 From - Spending review Topic 2]]+Dataset[[#This Row],[2024/25 From - Spending review Topic 3]]+Dataset[[#This Row],[2024/25 From - Spending review Topic 4]]+Dataset[[#This Row],[2024/25 From - Other reallocations]]","v":0},{"$f":"Dataset[[#This Row],[2025/26 From - Spending review Topic 1]]+Dataset[[#This Row],[2025/26 From - Spending review Topic 2]]+Dataset[[#This Row],[2025/26 From - Spending review Topic 3]]+Dataset[[#This Row],[2025/26 From - Spending review Topic 4]]+Dataset[[#This Row],[2025/26 From - Other reallocations]]","v":0},{"$f":"Dataset[[#This Row],[2026/27 From - Spending review Topic 1]]+Dataset[[#This Row],[2026/27 From - Spending review Topic 2]]+Dataset[[#This Row],[2026/27 From - Spending review Topic 3]]+Dataset[[#This Row],[2026/27 From - Spending review Topic 4]]+Dataset[[#This Row],[2026/27 From - Other reallocations]]","v":0},{"$f":"Dataset[[#This Row],[2024/25 To - Spending review Topic 1]]+Dataset[[#This Row],[2024/25 To - Spending review Topic 2]]+Dataset[[#This Row],[2024/25 To - Spending review Topic 3]]+Dataset[[#This Row],[2024/25 To - Spending review Topic 4]]+Dataset[[#This Row],[2024/25 To - Other reallocations]]","v":0},{"$f":"Dataset[[#This Row],[2025/26 To - Spending review Topic 1]]+Dataset[[#This Row],[2025/26 To - Spending review Topic 2]]+Dataset[[#This Row],[2025/26 To - Spending review Topic 3]]+Dataset[[#This Row],[2025/26 To - Spending review Topic 4]]+Dataset[[#This Row],[2025/26 To - Other reallocations]]","v":0},{"$f":"Dataset[[#This Row],[2026/27 To - Spending review Topic 1]]+Dataset[[#This Row],[2026/27 To - Spending review Topic 2]]+Dataset[[#This Row],[2026/27 To - Spending review Topic 3]]+Dataset[[#This Row],[2026/27 To - Spending review Topic 4]]+Dataset[[#This Row],[2026/27 To - Other reallocations]]","v":0},{"$f":"Dataset[[#This Row],[2024/25 Reduction]]+Dataset[[#This Row],[2024/25 From - Total]]","v":0},{"$f":"Dataset[[#This Row],[2025/26 Reduction]]+Dataset[[#This Row],[2025/26 From - Total]]","v":0},{"$f":"Dataset[[#This Row],[2026/27 Reduction]]+Dataset[[#This Row],[2026/27 From - Total]]","v":0},{"$f":"Dataset[[#This Row],[2023/24 Reduction]]","v":0},{"$f":"SUM(Dataset[[#This Row],[2024/25 Reduction]],Dataset[[#This Row],[2024/25 From - Total]],Dataset[[#This Row],[2024/25 To - Total]])","v":0},{"$f":"SUM(Dataset[[#This Row],[2025/26 Reduction]],Dataset[[#This Row],[2025/26 From - Total]],Dataset[[#This Row],[2025/26 To - Total]])","v":0},{"$f":"SUM(Dataset[[#This Row],[2026/27 Reduction]],Dataset[[#This Row],[2026/27 From - Total]],Dataset[[#This Row],[2026/27 To - Total]])","v":0},{"$f":"Dataset[[#This Row],[2023/24 Baseline]]+Dataset[[#This Row],[2023/24 Total change]]","v":0},{"$f":"Dataset[[#This Row],[2024/25 Baseline]]+Dataset[[#This Row],[2024/25 Total change]]","v":0},{"$f":"Dataset[[#This Row],[2025/26 Baseline]]+Dataset[[#This Row],[2025/26 Total change]]","v":0},{"$f":"Dataset[[#This Row],[2026/27 Baseline]]+Dataset[[#This Row],[2026/27 Total change]]","v":0}]
["NAT|Non-transfer item","26|Other transfers to households","2024_25","MTEF2024",26,1,2,44031,144,"26","01","02","044031","000144","26|01|02","02","02","10","53","57","02|02|10|53|57","National","Military Veterans","Administration","Corporate Services","Non-transfer item","Capital","Transfers and subsidies","Households","Other transfers to households","Other transfers to households","Peace and security","Defence and state security","NAT",0,0,0,0,0,0,0,0,0,0,0,null,null,null,null,null,null,null,null,null,null,null,null,null,null,null,null,null,null,null,null,null,null,null,null,null,null,null,null,null,null,null,null,null,null,{"$f":"Dataset[[#This Row],[2024/25 From - Spending review Topic 1]]+Dataset[[#This Row],[2024/25 From - Spending review Topic 2]]+Dataset[[#This Row],[2024/25 From - Spending review Topic 3]]+Dataset[[#This Row],[2024/25 From - Spending review Topic 4]]+Dataset[[#This Row],[2024/25 From - Other reallocations]]","v":0},{"$f":"Dataset[[#This Row],[2025/26 From - Spending review Topic 1]]+Dataset[[#This Row],[2025/26 From - Spending review Topic 2]]+Dataset[[#This Row],[2025/26 From - Spending review Topic 3]]+Dataset[[#This Row],[2025/26 From - Spending review Topic 4]]+Dataset[[#This Row],[2025/26 From - Other reallocations]]","v":0},{"$f":"Dataset[[#This Row],[2026/27 From - Spending review Topic 1]]+Dataset[[#This Row],[2026/27 From - Spending review Topic 2]]+Dataset[[#This Row],[2026/27 From - Spending review Topic 3]]+Dataset[[#This Row],[2026/27 From - Spending review Topic 4]]+Dataset[[#This Row],[2026/27 From - Other reallocations]]","v":0},{"$f":"Dataset[[#This Row],[2024/25 To - Spending review Topic 1]]+Dataset[[#This Row],[2024/25 To - Spending review Topic 2]]+Dataset[[#This Row],[2024/25 To - Spending review Topic 3]]+Dataset[[#This Row],[2024/25 To - Spending review Topic 4]]+Dataset[[#This Row],[2024/25 To - Other reallocations]]","v":0},{"$f":"Dataset[[#This Row],[2025/26 To - Spending review Topic 1]]+Dataset[[#This Row],[2025/26 To - Spending review Topic 2]]+Dataset[[#This Row],[2025/26 To - Spending review Topic 3]]+Dataset[[#This Row],[2025/26 To - Spending review Topic 4]]+Dataset[[#This Row],[2025/26 To - Other reallocations]]","v":0},{"$f":"Dataset[[#This Row],[2026/27 To - Spending review Topic 1]]+Dataset[[#This Row],[2026/27 To - Spending review Topic 2]]+Dataset[[#This Row],[2026/27 To - Spending review Topic 3]]+Dataset[[#This Row],[2026/27 To - Spending review Topic 4]]+Dataset[[#This Row],[2026/27 To - Other reallocations]]","v":0},{"$f":"Dataset[[#This Row],[2024/25 Reduction]]+Dataset[[#This Row],[2024/25 From - Total]]","v":0},{"$f":"Dataset[[#This Row],[2025/26 Reduction]]+Dataset[[#This Row],[2025/26 From - Total]]","v":0},{"$f":"Dataset[[#This Row],[2026/27 Reduction]]+Dataset[[#This Row],[2026/27 From - Total]]","v":0},{"$f":"Dataset[[#This Row],[2023/24 Reduction]]","v":0},{"$f":"SUM(Dataset[[#This Row],[2024/25 Reduction]],Dataset[[#This Row],[2024/25 From - Total]],Dataset[[#This Row],[2024/25 To - Total]])","v":0},{"$f":"SUM(Dataset[[#This Row],[2025/26 Reduction]],Dataset[[#This Row],[2025/26 From - Total]],Dataset[[#This Row],[2025/26 To - Total]])","v":0},{"$f":"SUM(Dataset[[#This Row],[2026/27 Reduction]],Dataset[[#This Row],[2026/27 From - Total]],Dataset[[#This Row],[2026/27 To - Total]])","v":0},{"$f":"Dataset[[#This Row],[2023/24 Baseline]]+Dataset[[#This Row],[2023/24 Total change]]","v":0},{"$f":"Dataset[[#This Row],[2024/25 Baseline]]+Dataset[[#This Row],[2024/25 Total change]]","v":0},{"$f":"Dataset[[#This Row],[2025/26 Baseline]]+Dataset[[#This Row],[2025/26 Total change]]","v":0},{"$f":"Dataset[[#This Row],[2026/27 Baseline]]+Dataset[[#This Row],[2026/27 Total change]]","v":0}]
["NAT|Non-transfer item","26|Buildings","2024_25","MTEF2024",26,1,2,44032,145,"26","01","02","044032","000145","26|01|02","02","03","11","54","58","02|03|11|54|58","National","Military Veterans","Administration","Corporate Services","Non-transfer item","Capital","Payments for capital assets","Buildings and other fixed structures","Buildings","Buildings","Peace and security","Defence and state security","NAT",0,0,0,0,0,0,0,0,0,0,0,null,null,null,null,null,null,null,null,null,null,null,null,null,null,null,null,null,null,null,null,null,null,null,null,null,null,null,null,null,null,null,null,null,null,{"$f":"Dataset[[#This Row],[2024/25 From - Spending review Topic 1]]+Dataset[[#This Row],[2024/25 From - Spending review Topic 2]]+Dataset[[#This Row],[2024/25 From - Spending review Topic 3]]+Dataset[[#This Row],[2024/25 From - Spending review Topic 4]]+Dataset[[#This Row],[2024/25 From - Other reallocations]]","v":0},{"$f":"Dataset[[#This Row],[2025/26 From - Spending review Topic 1]]+Dataset[[#This Row],[2025/26 From - Spending review Topic 2]]+Dataset[[#This Row],[2025/26 From - Spending review Topic 3]]+Dataset[[#This Row],[2025/26 From - Spending review Topic 4]]+Dataset[[#This Row],[2025/26 From - Other reallocations]]","v":0},{"$f":"Dataset[[#This Row],[2026/27 From - Spending review Topic 1]]+Dataset[[#This Row],[2026/27 From - Spending review Topic 2]]+Dataset[[#This Row],[2026/27 From - Spending review Topic 3]]+Dataset[[#This Row],[2026/27 From - Spending review Topic 4]]+Dataset[[#This Row],[2026/27 From - Other reallocations]]","v":0},{"$f":"Dataset[[#This Row],[2024/25 To - Spending review Topic 1]]+Dataset[[#This Row],[2024/25 To - Spending review Topic 2]]+Dataset[[#This Row],[2024/25 To - Spending review Topic 3]]+Dataset[[#This Row],[2024/25 To - Spending review Topic 4]]+Dataset[[#This Row],[2024/25 To - Other reallocations]]","v":0},{"$f":"Dataset[[#This Row],[2025/26 To - Spending review Topic 1]]+Dataset[[#This Row],[2025/26 To - Spending review Topic 2]]+Dataset[[#This Row],[2025/26 To - Spending review Topic 3]]+Dataset[[#This Row],[2025/26 To - Spending review Topic 4]]+Dataset[[#This Row],[2025/26 To - Other reallocations]]","v":0},{"$f":"Dataset[[#This Row],[2026/27 To - Spending review Topic 1]]+Dataset[[#This Row],[2026/27 To - Spending review Topic 2]]+Dataset[[#This Row],[2026/27 To - Spending review Topic 3]]+Dataset[[#This Row],[2026/27 To - Spending review Topic 4]]+Dataset[[#This Row],[2026/27 To - Other reallocations]]","v":0},{"$f":"Dataset[[#This Row],[2024/25 Reduction]]+Dataset[[#This Row],[2024/25 From - Total]]","v":0},{"$f":"Dataset[[#This Row],[2025/26 Reduction]]+Dataset[[#This Row],[2025/26 From - Total]]","v":0},{"$f":"Dataset[[#This Row],[2026/27 Reduction]]+Dataset[[#This Row],[2026/27 From - Total]]","v":0},{"$f":"Dataset[[#This Row],[2023/24 Reduction]]","v":0},{"$f":"SUM(Dataset[[#This Row],[2024/25 Reduction]],Dataset[[#This Row],[2024/25 From - Total]],Dataset[[#This Row],[2024/25 To - Total]])","v":0},{"$f":"SUM(Dataset[[#This Row],[2025/26 Reduction]],Dataset[[#This Row],[2025/26 From - Total]],Dataset[[#This Row],[2025/26 To - Total]])","v":0},{"$f":"SUM(Dataset[[#This Row],[2026/27 Reduction]],Dataset[[#This Row],[2026/27 From - Total]],Dataset[[#This Row],[2026/27 To - Total]])","v":0},{"$f":"Dataset[[#This Row],[2023/24 Baseline]]+Dataset[[#This Row],[2023/24 Total change]]","v":0},{"$f":"Dataset[[#This Row],[2024/25 Baseline]]+Dataset[[#This Row],[2024/25 Total change]]","v":0},{"$f":"Dataset[[#This Row],[2025/26 Baseline]]+Dataset[[#This Row],[2025/26 Total change]]","v":0},{"$f":"Dataset[[#This Row],[2026/27 Baseline]]+Dataset[[#This Row],[2026/27 Total change]]","v":0}]
["NAT|Non-transfer item","26|Other fixed structures","2024_25","MTEF2024",26,1,2,44033,146,"26","01","02","044033","000146","26|01|02","02","03","11","55","59","02|03|11|55|59","National","Military Veterans","Administration","Corporate Services","Non-transfer item","Capital","Payments for capital assets","Buildings and other fixed structures","Other fixed structures","Other fixed structures","Peace and security","Defence and state security","NAT",0,0,0,0,0,0,0,0,0,0,0,null,null,null,null,null,null,null,null,null,null,null,null,null,null,null,null,null,null,null,null,null,null,null,null,null,null,null,null,null,null,null,null,null,null,{"$f":"Dataset[[#This Row],[2024/25 From - Spending review Topic 1]]+Dataset[[#This Row],[2024/25 From - Spending review Topic 2]]+Dataset[[#This Row],[2024/25 From - Spending review Topic 3]]+Dataset[[#This Row],[2024/25 From - Spending review Topic 4]]+Dataset[[#This Row],[2024/25 From - Other reallocations]]","v":0},{"$f":"Dataset[[#This Row],[2025/26 From - Spending review Topic 1]]+Dataset[[#This Row],[2025/26 From - Spending review Topic 2]]+Dataset[[#This Row],[2025/26 From - Spending review Topic 3]]+Dataset[[#This Row],[2025/26 From - Spending review Topic 4]]+Dataset[[#This Row],[2025/26 From - Other reallocations]]","v":0},{"$f":"Dataset[[#This Row],[2026/27 From - Spending review Topic 1]]+Dataset[[#This Row],[2026/27 From - Spending review Topic 2]]+Dataset[[#This Row],[2026/27 From - Spending review Topic 3]]+Dataset[[#This Row],[2026/27 From - Spending review Topic 4]]+Dataset[[#This Row],[2026/27 From - Other reallocations]]","v":0},{"$f":"Dataset[[#This Row],[2024/25 To - Spending review Topic 1]]+Dataset[[#This Row],[2024/25 To - Spending review Topic 2]]+Dataset[[#This Row],[2024/25 To - Spending review Topic 3]]+Dataset[[#This Row],[2024/25 To - Spending review Topic 4]]+Dataset[[#This Row],[2024/25 To - Other reallocations]]","v":0},{"$f":"Dataset[[#This Row],[2025/26 To - Spending review Topic 1]]+Dataset[[#This Row],[2025/26 To - Spending review Topic 2]]+Dataset[[#This Row],[2025/26 To - Spending review Topic 3]]+Dataset[[#This Row],[2025/26 To - Spending review Topic 4]]+Dataset[[#This Row],[2025/26 To - Other reallocations]]","v":0},{"$f":"Dataset[[#This Row],[2026/27 To - Spending review Topic 1]]+Dataset[[#This Row],[2026/27 To - Spending review Topic 2]]+Dataset[[#This Row],[2026/27 To - Spending review Topic 3]]+Dataset[[#This Row],[2026/27 To - Spending review Topic 4]]+Dataset[[#This Row],[2026/27 To - Other reallocations]]","v":0},{"$f":"Dataset[[#This Row],[2024/25 Reduction]]+Dataset[[#This Row],[2024/25 From - Total]]","v":0},{"$f":"Dataset[[#This Row],[2025/26 Reduction]]+Dataset[[#This Row],[2025/26 From - Total]]","v":0},{"$f":"Dataset[[#This Row],[2026/27 Reduction]]+Dataset[[#This Row],[2026/27 From - Total]]","v":0},{"$f":"Dataset[[#This Row],[2023/24 Reduction]]","v":0},{"$f":"SUM(Dataset[[#This Row],[2024/25 Reduction]],Dataset[[#This Row],[2024/25 From - Total]],Dataset[[#This Row],[2024/25 To - Total]])","v":0},{"$f":"SUM(Dataset[[#This Row],[2025/26 Reduction]],Dataset[[#This Row],[2025/26 From - Total]],Dataset[[#This Row],[2025/26 To - Total]])","v":0},{"$f":"SUM(Dataset[[#This Row],[2026/27 Reduction]],Dataset[[#This Row],[2026/27 From - Total]],Dataset[[#This Row],[2026/27 To - Total]])","v":0},{"$f":"Dataset[[#This Row],[2023/24 Baseline]]+Dataset[[#This Row],[2023/24 Total change]]","v":0},{"$f":"Dataset[[#This Row],[2024/25 Baseline]]+Dataset[[#This Row],[2024/25 Total change]]","v":0},{"$f":"Dataset[[#This Row],[2025/26 Baseline]]+Dataset[[#This Row],[2025/26 Total change]]","v":0},{"$f":"Dataset[[#This Row],[2026/27 Baseline]]+Dataset[[#This Row],[2026/27 Total change]]","v":0}]
["NAT|Non-transfer item","26|Transport equipment","2024_25","MTEF2024",26,1,2,44034,147,"26","01","02","044034","000147","26|01|02","02","03","12","56","60","02|03|12|56|60","National","Military Veterans","Administration","Corporate Services","Non-transfer item","Capital","Payments for capital assets","Machinery and equipment","Transport equipment","Transport equipment","Peace and security","Defence and state security","NAT",0,0,0,0,0,0,0,0,0,0,0,null,null,null,null,null,null,null,null,null,null,null,null,null,null,null,null,null,null,null,null,null,null,null,null,null,null,null,null,null,null,null,null,null,null,{"$f":"Dataset[[#This Row],[2024/25 From - Spending review Topic 1]]+Dataset[[#This Row],[2024/25 From - Spending review Topic 2]]+Dataset[[#This Row],[2024/25 From - Spending review Topic 3]]+Dataset[[#This Row],[2024/25 From - Spending review Topic 4]]+Dataset[[#This Row],[2024/25 From - Other reallocations]]","v":0},{"$f":"Dataset[[#This Row],[2025/26 From - Spending review Topic 1]]+Dataset[[#This Row],[2025/26 From - Spending review Topic 2]]+Dataset[[#This Row],[2025/26 From - Spending review Topic 3]]+Dataset[[#This Row],[2025/26 From - Spending review Topic 4]]+Dataset[[#This Row],[2025/26 From - Other reallocations]]","v":0},{"$f":"Dataset[[#This Row],[2026/27 From - Spending review Topic 1]]+Dataset[[#This Row],[2026/27 From - Spending review Topic 2]]+Dataset[[#This Row],[2026/27 From - Spending review Topic 3]]+Dataset[[#This Row],[2026/27 From - Spending review Topic 4]]+Dataset[[#This Row],[2026/27 From - Other reallocations]]","v":0},{"$f":"Dataset[[#This Row],[2024/25 To - Spending review Topic 1]]+Dataset[[#This Row],[2024/25 To - Spending review Topic 2]]+Dataset[[#This Row],[2024/25 To - Spending review Topic 3]]+Dataset[[#This Row],[2024/25 To - Spending review Topic 4]]+Dataset[[#This Row],[2024/25 To - Other reallocations]]","v":0},{"$f":"Dataset[[#This Row],[2025/26 To - Spending review Topic 1]]+Dataset[[#This Row],[2025/26 To - Spending review Topic 2]]+Dataset[[#This Row],[2025/26 To - Spending review Topic 3]]+Dataset[[#This Row],[2025/26 To - Spending review Topic 4]]+Dataset[[#This Row],[2025/26 To - Other reallocations]]","v":0},{"$f":"Dataset[[#This Row],[2026/27 To - Spending review Topic 1]]+Dataset[[#This Row],[2026/27 To - Spending review Topic 2]]+Dataset[[#This Row],[2026/27 To - Spending review Topic 3]]+Dataset[[#This Row],[2026/27 To - Spending review Topic 4]]+Dataset[[#This Row],[2026/27 To - Other reallocations]]","v":0},{"$f":"Dataset[[#This Row],[2024/25 Reduction]]+Dataset[[#This Row],[2024/25 From - Total]]","v":0},{"$f":"Dataset[[#This Row],[2025/26 Reduction]]+Dataset[[#This Row],[2025/26 From - Total]]","v":0},{"$f":"Dataset[[#This Row],[2026/27 Reduction]]+Dataset[[#This Row],[2026/27 From - Total]]","v":0},{"$f":"Dataset[[#This Row],[2023/24 Reduction]]","v":0},{"$f":"SUM(Dataset[[#This Row],[2024/25 Reduction]],Dataset[[#This Row],[2024/25 From - Total]],Dataset[[#This Row],[2024/25 To - Total]])","v":0},{"$f":"SUM(Dataset[[#This Row],[2025/26 Reduction]],Dataset[[#This Row],[2025/26 From - Total]],Dataset[[#This Row],[2025/26 To - Total]])","v":0},{"$f":"SUM(Dataset[[#This Row],[2026/27 Reduction]],Dataset[[#This Row],[2026/27 From - Total]],Dataset[[#This Row],[2026/27 To - Total]])","v":0},{"$f":"Dataset[[#This Row],[2023/24 Baseline]]+Dataset[[#This Row],[2023/24 Total change]]","v":0},{"$f":"Dataset[[#This Row],[2024/25 Baseline]]+Dataset[[#This Row],[2024/25 Total change]]","v":0},{"$f":"Dataset[[#This Row],[2025/26 Baseline]]+Dataset[[#This Row],[2025/26 Total change]]","v":0},{"$f":"Dataset[[#This Row],[2026/27 Baseline]]+Dataset[[#This Row],[2026/27 Total change]]","v":0}]
["NAT|Non-transfer item","26|Other machinery and equipment","2024_25","MTEF2024",26,1,2,44035,148,"26","01","02","044035","000148","26|01|02","02","03","12","57","61","02|03|12|57|61","National","Military Veterans","Administration","Corporate Services","Non-transfer item","Capital","Payments for capital assets","Machinery and equipment","Other machinery and equipment","Other machinery and equipment","Peace and security","Defence and state security","NAT",984,34,50,1400,1400,1400,0,1000,1000,1045,1093,null,null,null,null,null,null,null,null,null,null,null,null,null,null,null,null,null,null,null,null,null,null,null,null,null,null,null,null,null,null,null,null,null,null,{"$f":"Dataset[[#This Row],[2024/25 From - Spending review Topic 1]]+Dataset[[#This Row],[2024/25 From - Spending review Topic 2]]+Dataset[[#This Row],[2024/25 From - Spending review Topic 3]]+Dataset[[#This Row],[2024/25 From - Spending review Topic 4]]+Dataset[[#This Row],[2024/25 From - Other reallocations]]","v":0},{"$f":"Dataset[[#This Row],[2025/26 From - Spending review Topic 1]]+Dataset[[#This Row],[2025/26 From - Spending review Topic 2]]+Dataset[[#This Row],[2025/26 From - Spending review Topic 3]]+Dataset[[#This Row],[2025/26 From - Spending review Topic 4]]+Dataset[[#This Row],[2025/26 From - Other reallocations]]","v":0},{"$f":"Dataset[[#This Row],[2026/27 From - Spending review Topic 1]]+Dataset[[#This Row],[2026/27 From - Spending review Topic 2]]+Dataset[[#This Row],[2026/27 From - Spending review Topic 3]]+Dataset[[#This Row],[2026/27 From - Spending review Topic 4]]+Dataset[[#This Row],[2026/27 From - Other reallocations]]","v":0},{"$f":"Dataset[[#This Row],[2024/25 To - Spending review Topic 1]]+Dataset[[#This Row],[2024/25 To - Spending review Topic 2]]+Dataset[[#This Row],[2024/25 To - Spending review Topic 3]]+Dataset[[#This Row],[2024/25 To - Spending review Topic 4]]+Dataset[[#This Row],[2024/25 To - Other reallocations]]","v":0},{"$f":"Dataset[[#This Row],[2025/26 To - Spending review Topic 1]]+Dataset[[#This Row],[2025/26 To - Spending review Topic 2]]+Dataset[[#This Row],[2025/26 To - Spending review Topic 3]]+Dataset[[#This Row],[2025/26 To - Spending review Topic 4]]+Dataset[[#This Row],[2025/26 To - Other reallocations]]","v":0},{"$f":"Dataset[[#This Row],[2026/27 To - Spending review Topic 1]]+Dataset[[#This Row],[2026/27 To - Spending review Topic 2]]+Dataset[[#This Row],[2026/27 To - Spending review Topic 3]]+Dataset[[#This Row],[2026/27 To - Spending review Topic 4]]+Dataset[[#This Row],[2026/27 To - Other reallocations]]","v":0},{"$f":"Dataset[[#This Row],[2024/25 Reduction]]+Dataset[[#This Row],[2024/25 From - Total]]","v":0},{"$f":"Dataset[[#This Row],[2025/26 Reduction]]+Dataset[[#This Row],[2025/26 From - Total]]","v":0},{"$f":"Dataset[[#This Row],[2026/27 Reduction]]+Dataset[[#This Row],[2026/27 From - Total]]","v":0},{"$f":"Dataset[[#This Row],[2023/24 Reduction]]","v":0},{"$f":"SUM(Dataset[[#This Row],[2024/25 Reduction]],Dataset[[#This Row],[2024/25 From - Total]],Dataset[[#This Row],[2024/25 To - Total]])","v":0},{"$f":"SUM(Dataset[[#This Row],[2025/26 Reduction]],Dataset[[#This Row],[2025/26 From - Total]],Dataset[[#This Row],[2025/26 To - Total]])","v":0},{"$f":"SUM(Dataset[[#This Row],[2026/27 Reduction]],Dataset[[#This Row],[2026/27 From - Total]],Dataset[[#This Row],[2026/27 To - Total]])","v":0},{"$f":"Dataset[[#This Row],[2023/24 Baseline]]+Dataset[[#This Row],[2023/24 Total change]]","v":1000},{"$f":"Dataset[[#This Row],[2024/25 Baseline]]+Dataset[[#This Row],[2024/25 Total change]]","v":1000},{"$f":"Dataset[[#This Row],[2025/26 Baseline]]+Dataset[[#This Row],[2025/26 Total change]]","v":1045},{"$f":"Dataset[[#This Row],[2026/27 Baseline]]+Dataset[[#This Row],[2026/27 Total change]]","v":1093}]
["NAT|Non-transfer item","26|Heritage assets","2024_25","MTEF2024",26,1,2,44036,149,"26","01","02","044036","000149","26|01|02","02","03","13","58","62","02|03|13|58|62","National","Military Veterans","Administration","Corporate Services","Non-transfer item","Capital","Payments for capital assets","Heritage assets","Heritage assets","Heritage assets","Peace and security","Defence and state security","NAT",0,0,0,0,0,0,0,0,0,0,0,null,null,null,null,null,null,null,null,null,null,null,null,null,null,null,null,null,null,null,null,null,null,null,null,null,null,null,null,null,null,null,null,null,null,{"$f":"Dataset[[#This Row],[2024/25 From - Spending review Topic 1]]+Dataset[[#This Row],[2024/25 From - Spending review Topic 2]]+Dataset[[#This Row],[2024/25 From - Spending review Topic 3]]+Dataset[[#This Row],[2024/25 From - Spending review Topic 4]]+Dataset[[#This Row],[2024/25 From - Other reallocations]]","v":0},{"$f":"Dataset[[#This Row],[2025/26 From - Spending review Topic 1]]+Dataset[[#This Row],[2025/26 From - Spending review Topic 2]]+Dataset[[#This Row],[2025/26 From - Spending review Topic 3]]+Dataset[[#This Row],[2025/26 From - Spending review Topic 4]]+Dataset[[#This Row],[2025/26 From - Other reallocations]]","v":0},{"$f":"Dataset[[#This Row],[2026/27 From - Spending review Topic 1]]+Dataset[[#This Row],[2026/27 From - Spending review Topic 2]]+Dataset[[#This Row],[2026/27 From - Spending review Topic 3]]+Dataset[[#This Row],[2026/27 From - Spending review Topic 4]]+Dataset[[#This Row],[2026/27 From - Other reallocations]]","v":0},{"$f":"Dataset[[#This Row],[2024/25 To - Spending review Topic 1]]+Dataset[[#This Row],[2024/25 To - Spending review Topic 2]]+Dataset[[#This Row],[2024/25 To - Spending review Topic 3]]+Dataset[[#This Row],[2024/25 To - Spending review Topic 4]]+Dataset[[#This Row],[2024/25 To - Other reallocations]]","v":0},{"$f":"Dataset[[#This Row],[2025/26 To - Spending review Topic 1]]+Dataset[[#This Row],[2025/26 To - Spending review Topic 2]]+Dataset[[#This Row],[2025/26 To - Spending review Topic 3]]+Dataset[[#This Row],[2025/26 To - Spending review Topic 4]]+Dataset[[#This Row],[2025/26 To - Other reallocations]]","v":0},{"$f":"Dataset[[#This Row],[2026/27 To - Spending review Topic 1]]+Dataset[[#This Row],[2026/27 To - Spending review Topic 2]]+Dataset[[#This Row],[2026/27 To - Spending review Topic 3]]+Dataset[[#This Row],[2026/27 To - Spending review Topic 4]]+Dataset[[#This Row],[2026/27 To - Other reallocations]]","v":0},{"$f":"Dataset[[#This Row],[2024/25 Reduction]]+Dataset[[#This Row],[2024/25 From - Total]]","v":0},{"$f":"Dataset[[#This Row],[2025/26 Reduction]]+Dataset[[#This Row],[2025/26 From - Total]]","v":0},{"$f":"Dataset[[#This Row],[2026/27 Reduction]]+Dataset[[#This Row],[2026/27 From - Total]]","v":0},{"$f":"Dataset[[#This Row],[2023/24 Reduction]]","v":0},{"$f":"SUM(Dataset[[#This Row],[2024/25 Reduction]],Dataset[[#This Row],[2024/25 From - Total]],Dataset[[#This Row],[2024/25 To - Total]])","v":0},{"$f":"SUM(Dataset[[#This Row],[2025/26 Reduction]],Dataset[[#This Row],[2025/26 From - Total]],Dataset[[#This Row],[2025/26 To - Total]])","v":0},{"$f":"SUM(Dataset[[#This Row],[2026/27 Reduction]],Dataset[[#This Row],[2026/27 From - Total]],Dataset[[#This Row],[2026/27 To - Total]])","v":0},{"$f":"Dataset[[#This Row],[2023/24 Baseline]]+Dataset[[#This Row],[2023/24 Total change]]","v":0},{"$f":"Dataset[[#This Row],[2024/25 Baseline]]+Dataset[[#This Row],[2024/25 Total change]]","v":0},{"$f":"Dataset[[#This Row],[2025/26 Baseline]]+Dataset[[#This Row],[2025/26 Total change]]","v":0},{"$f":"Dataset[[#This Row],[2026/27 Baseline]]+Dataset[[#This Row],[2026/27 Total change]]","v":0}]
["NAT|Non-transfer item","26|Specialised military assets","2024_25","MTEF2024",26,1,2,44037,150,"26","01","02","044037","000150","26|01|02","02","03","14","59","63","02|03|14|59|63","National","Military Veterans","Administration","Corporate Services","Non-transfer item","Capital","Payments for capital assets","Specialised military assets","Specialised military assets","Specialised military assets","Peace and security","Defence and state security","NAT",0,0,0,0,0,0,0,0,0,0,0,null,null,null,null,null,null,null,null,null,null,null,null,null,null,null,null,null,null,null,null,null,null,null,null,null,null,null,null,null,null,null,null,null,null,{"$f":"Dataset[[#This Row],[2024/25 From - Spending review Topic 1]]+Dataset[[#This Row],[2024/25 From - Spending review Topic 2]]+Dataset[[#This Row],[2024/25 From - Spending review Topic 3]]+Dataset[[#This Row],[2024/25 From - Spending review Topic 4]]+Dataset[[#This Row],[2024/25 From - Other reallocations]]","v":0},{"$f":"Dataset[[#This Row],[2025/26 From - Spending review Topic 1]]+Dataset[[#This Row],[2025/26 From - Spending review Topic 2]]+Dataset[[#This Row],[2025/26 From - Spending review Topic 3]]+Dataset[[#This Row],[2025/26 From - Spending review Topic 4]]+Dataset[[#This Row],[2025/26 From - Other reallocations]]","v":0},{"$f":"Dataset[[#This Row],[2026/27 From - Spending review Topic 1]]+Dataset[[#This Row],[2026/27 From - Spending review Topic 2]]+Dataset[[#This Row],[2026/27 From - Spending review Topic 3]]+Dataset[[#This Row],[2026/27 From - Spending review Topic 4]]+Dataset[[#This Row],[2026/27 From - Other reallocations]]","v":0},{"$f":"Dataset[[#This Row],[2024/25 To - Spending review Topic 1]]+Dataset[[#This Row],[2024/25 To - Spending review Topic 2]]+Dataset[[#This Row],[2024/25 To - Spending review Topic 3]]+Dataset[[#This Row],[2024/25 To - Spending review Topic 4]]+Dataset[[#This Row],[2024/25 To - Other reallocations]]","v":0},{"$f":"Dataset[[#This Row],[2025/26 To - Spending review Topic 1]]+Dataset[[#This Row],[2025/26 To - Spending review Topic 2]]+Dataset[[#This Row],[2025/26 To - Spending review Topic 3]]+Dataset[[#This Row],[2025/26 To - Spending review Topic 4]]+Dataset[[#This Row],[2025/26 To - Other reallocations]]","v":0},{"$f":"Dataset[[#This Row],[2026/27 To - Spending review Topic 1]]+Dataset[[#This Row],[2026/27 To - Spending review Topic 2]]+Dataset[[#This Row],[2026/27 To - Spending review Topic 3]]+Dataset[[#This Row],[2026/27 To - Spending review Topic 4]]+Dataset[[#This Row],[2026/27 To - Other reallocations]]","v":0},{"$f":"Dataset[[#This Row],[2024/25 Reduction]]+Dataset[[#This Row],[2024/25 From - Total]]","v":0},{"$f":"Dataset[[#This Row],[2025/26 Reduction]]+Dataset[[#This Row],[2025/26 From - Total]]","v":0},{"$f":"Dataset[[#This Row],[2026/27 Reduction]]+Dataset[[#This Row],[2026/27 From - Total]]","v":0},{"$f":"Dataset[[#This Row],[2023/24 Reduction]]","v":0},{"$f":"SUM(Dataset[[#This Row],[2024/25 Reduction]],Dataset[[#This Row],[2024/25 From - Total]],Dataset[[#This Row],[2024/25 To - Total]])","v":0},{"$f":"SUM(Dataset[[#This Row],[2025/26 Reduction]],Dataset[[#This Row],[2025/26 From - Total]],Dataset[[#This Row],[2025/26 To - Total]])","v":0},{"$f":"SUM(Dataset[[#This Row],[2026/27 Reduction]],Dataset[[#This Row],[2026/27 From - Total]],Dataset[[#This Row],[2026/27 To - Total]])","v":0},{"$f":"Dataset[[#This Row],[2023/24 Baseline]]+Dataset[[#This Row],[2023/24 Total change]]","v":0},{"$f":"Dataset[[#This Row],[2024/25 Baseline]]+Dataset[[#This Row],[2024/25 Total change]]","v":0},{"$f":"Dataset[[#This Row],[2025/26 Baseline]]+Dataset[[#This Row],[2025/26 Total change]]","v":0},{"$f":"Dataset[[#This Row],[2026/27 Baseline]]+Dataset[[#This Row],[2026/27 Total change]]","v":0}]
["NAT|Non-transfer item","26|Biological assets","2024_25","MTEF2024",26,1,2,44038,151,"26","01","02","044038","000151","26|01|02","02","03","15","60","64","02|03|15|60|64","National","Military Veterans","Administration","Corporate Services","Non-transfer item","Capital","Payments for capital assets","Biological assets","Biological assets","Biological assets","Peace and security","Defence and state security","NAT",0,0,0,0,0,0,0,0,0,0,0,null,null,null,null,null,null,null,null,null,null,null,null,null,null,null,null,null,null,null,null,null,null,null,null,null,null,null,null,null,null,null,null,null,null,{"$f":"Dataset[[#This Row],[2024/25 From - Spending review Topic 1]]+Dataset[[#This Row],[2024/25 From - Spending review Topic 2]]+Dataset[[#This Row],[2024/25 From - Spending review Topic 3]]+Dataset[[#This Row],[2024/25 From - Spending review Topic 4]]+Dataset[[#This Row],[2024/25 From - Other reallocations]]","v":0},{"$f":"Dataset[[#This Row],[2025/26 From - Spending review Topic 1]]+Dataset[[#This Row],[2025/26 From - Spending review Topic 2]]+Dataset[[#This Row],[2025/26 From - Spending review Topic 3]]+Dataset[[#This Row],[2025/26 From - Spending review Topic 4]]+Dataset[[#This Row],[2025/26 From - Other reallocations]]","v":0},{"$f":"Dataset[[#This Row],[2026/27 From - Spending review Topic 1]]+Dataset[[#This Row],[2026/27 From - Spending review Topic 2]]+Dataset[[#This Row],[2026/27 From - Spending review Topic 3]]+Dataset[[#This Row],[2026/27 From - Spending review Topic 4]]+Dataset[[#This Row],[2026/27 From - Other reallocations]]","v":0},{"$f":"Dataset[[#This Row],[2024/25 To - Spending review Topic 1]]+Dataset[[#This Row],[2024/25 To - Spending review Topic 2]]+Dataset[[#This Row],[2024/25 To - Spending review Topic 3]]+Dataset[[#This Row],[2024/25 To - Spending review Topic 4]]+Dataset[[#This Row],[2024/25 To - Other reallocations]]","v":0},{"$f":"Dataset[[#This Row],[2025/26 To - Spending review Topic 1]]+Dataset[[#This Row],[2025/26 To - Spending review Topic 2]]+Dataset[[#This Row],[2025/26 To - Spending review Topic 3]]+Dataset[[#This Row],[2025/26 To - Spending review Topic 4]]+Dataset[[#This Row],[2025/26 To - Other reallocations]]","v":0},{"$f":"Dataset[[#This Row],[2026/27 To - Spending review Topic 1]]+Dataset[[#This Row],[2026/27 To - Spending review Topic 2]]+Dataset[[#This Row],[2026/27 To - Spending review Topic 3]]+Dataset[[#This Row],[2026/27 To - Spending review Topic 4]]+Dataset[[#This Row],[2026/27 To - Other reallocations]]","v":0},{"$f":"Dataset[[#This Row],[2024/25 Reduction]]+Dataset[[#This Row],[2024/25 From - Total]]","v":0},{"$f":"Dataset[[#This Row],[2025/26 Reduction]]+Dataset[[#This Row],[2025/26 From - Total]]","v":0},{"$f":"Dataset[[#This Row],[2026/27 Reduction]]+Dataset[[#This Row],[2026/27 From - Total]]","v":0},{"$f":"Dataset[[#This Row],[2023/24 Reduction]]","v":0},{"$f":"SUM(Dataset[[#This Row],[2024/25 Reduction]],Dataset[[#This Row],[2024/25 From - Total]],Dataset[[#This Row],[2024/25 To - Total]])","v":0},{"$f":"SUM(Dataset[[#This Row],[2025/26 Reduction]],Dataset[[#This Row],[2025/26 From - Total]],Dataset[[#This Row],[2025/26 To - Total]])","v":0},{"$f":"SUM(Dataset[[#This Row],[2026/27 Reduction]],Dataset[[#This Row],[2026/27 From - Total]],Dataset[[#This Row],[2026/27 To - Total]])","v":0},{"$f":"Dataset[[#This Row],[2023/24 Baseline]]+Dataset[[#This Row],[2023/24 Total change]]","v":0},{"$f":"Dataset[[#This Row],[2024/25 Baseline]]+Dataset[[#This Row],[2024/25 Total change]]","v":0},{"$f":"Dataset[[#This Row],[2025/26 Baseline]]+Dataset[[#This Row],[2025/26 Total change]]","v":0},{"$f":"Dataset[[#This Row],[2026/27 Baseline]]+Dataset[[#This Row],[2026/27 Total change]]","v":0}]
["NAT|Non-transfer item","26|Land and sub-soil assets","2024_25","MTEF2024",26,1,2,44039,152,"26","01","02","044039","000152","26|01|02","02","03","16","61","65","02|03|16|61|65","National","Military Veterans","Administration","Corporate Services","Non-transfer item","Capital","Payments for capital assets","Land and sub-soil assets","Land and sub-soil assets","Land and sub-soil assets","Peace and security","Defence and state security","NAT",0,0,0,0,0,0,0,0,0,0,0,null,null,null,null,null,null,null,null,null,null,null,null,null,null,null,null,null,null,null,null,null,null,null,null,null,null,null,null,null,null,null,null,null,null,{"$f":"Dataset[[#This Row],[2024/25 From - Spending review Topic 1]]+Dataset[[#This Row],[2024/25 From - Spending review Topic 2]]+Dataset[[#This Row],[2024/25 From - Spending review Topic 3]]+Dataset[[#This Row],[2024/25 From - Spending review Topic 4]]+Dataset[[#This Row],[2024/25 From - Other reallocations]]","v":0},{"$f":"Dataset[[#This Row],[2025/26 From - Spending review Topic 1]]+Dataset[[#This Row],[2025/26 From - Spending review Topic 2]]+Dataset[[#This Row],[2025/26 From - Spending review Topic 3]]+Dataset[[#This Row],[2025/26 From - Spending review Topic 4]]+Dataset[[#This Row],[2025/26 From - Other reallocations]]","v":0},{"$f":"Dataset[[#This Row],[2026/27 From - Spending review Topic 1]]+Dataset[[#This Row],[2026/27 From - Spending review Topic 2]]+Dataset[[#This Row],[2026/27 From - Spending review Topic 3]]+Dataset[[#This Row],[2026/27 From - Spending review Topic 4]]+Dataset[[#This Row],[2026/27 From - Other reallocations]]","v":0},{"$f":"Dataset[[#This Row],[2024/25 To - Spending review Topic 1]]+Dataset[[#This Row],[2024/25 To - Spending review Topic 2]]+Dataset[[#This Row],[2024/25 To - Spending review Topic 3]]+Dataset[[#This Row],[2024/25 To - Spending review Topic 4]]+Dataset[[#This Row],[2024/25 To - Other reallocations]]","v":0},{"$f":"Dataset[[#This Row],[2025/26 To - Spending review Topic 1]]+Dataset[[#This Row],[2025/26 To - Spending review Topic 2]]+Dataset[[#This Row],[2025/26 To - Spending review Topic 3]]+Dataset[[#This Row],[2025/26 To - Spending review Topic 4]]+Dataset[[#This Row],[2025/26 To - Other reallocations]]","v":0},{"$f":"Dataset[[#This Row],[2026/27 To - Spending review Topic 1]]+Dataset[[#This Row],[2026/27 To - Spending review Topic 2]]+Dataset[[#This Row],[2026/27 To - Spending review Topic 3]]+Dataset[[#This Row],[2026/27 To - Spending review Topic 4]]+Dataset[[#This Row],[2026/27 To - Other reallocations]]","v":0},{"$f":"Dataset[[#This Row],[2024/25 Reduction]]+Dataset[[#This Row],[2024/25 From - Total]]","v":0},{"$f":"Dataset[[#This Row],[2025/26 Reduction]]+Dataset[[#This Row],[2025/26 From - Total]]","v":0},{"$f":"Dataset[[#This Row],[2026/27 Reduction]]+Dataset[[#This Row],[2026/27 From - Total]]","v":0},{"$f":"Dataset[[#This Row],[2023/24 Reduction]]","v":0},{"$f":"SUM(Dataset[[#This Row],[2024/25 Reduction]],Dataset[[#This Row],[2024/25 From - Total]],Dataset[[#This Row],[2024/25 To - Total]])","v":0},{"$f":"SUM(Dataset[[#This Row],[2025/26 Reduction]],Dataset[[#This Row],[2025/26 From - Total]],Dataset[[#This Row],[2025/26 To - Total]])","v":0},{"$f":"SUM(Dataset[[#This Row],[2026/27 Reduction]],Dataset[[#This Row],[2026/27 From - Total]],Dataset[[#This Row],[2026/27 To - Total]])","v":0},{"$f":"Dataset[[#This Row],[2023/24 Baseline]]+Dataset[[#This Row],[2023/24 Total change]]","v":0},{"$f":"Dataset[[#This Row],[2024/25 Baseline]]+Dataset[[#This Row],[2024/25 Total change]]","v":0},{"$f":"Dataset[[#This Row],[2025/26 Baseline]]+Dataset[[#This Row],[2025/26 Total change]]","v":0},{"$f":"Dataset[[#This Row],[2026/27 Baseline]]+Dataset[[#This Row],[2026/27 Total change]]","v":0}]
["NAT|Non-transfer item","26|Software and other intangible assets","2024_25","MTEF2024",26,1,2,44040,153,"26","01","02","044040","000153","26|01|02","02","03","17","62","66","02|03|17|62|66","National","Military Veterans","Administration","Corporate Services","Non-transfer item","Capital","Payments for capital assets","Software and other intangible assets","Software and other intangible assets","Software and other intangible assets","Peace and security","Defence and state security","NAT",0,0,0,900,900,900,0,1900,2900,2940,3075,null,null,null,null,null,null,null,null,null,null,null,null,null,null,null,null,null,null,null,null,null,null,null,null,null,null,null,null,null,null,null,null,null,null,{"$f":"Dataset[[#This Row],[2024/25 From - Spending review Topic 1]]+Dataset[[#This Row],[2024/25 From - Spending review Topic 2]]+Dataset[[#This Row],[2024/25 From - Spending review Topic 3]]+Dataset[[#This Row],[2024/25 From - Spending review Topic 4]]+Dataset[[#This Row],[2024/25 From - Other reallocations]]","v":0},{"$f":"Dataset[[#This Row],[2025/26 From - Spending review Topic 1]]+Dataset[[#This Row],[2025/26 From - Spending review Topic 2]]+Dataset[[#This Row],[2025/26 From - Spending review Topic 3]]+Dataset[[#This Row],[2025/26 From - Spending review Topic 4]]+Dataset[[#This Row],[2025/26 From - Other reallocations]]","v":0},{"$f":"Dataset[[#This Row],[2026/27 From - Spending review Topic 1]]+Dataset[[#This Row],[2026/27 From - Spending review Topic 2]]+Dataset[[#This Row],[2026/27 From - Spending review Topic 3]]+Dataset[[#This Row],[2026/27 From - Spending review Topic 4]]+Dataset[[#This Row],[2026/27 From - Other reallocations]]","v":0},{"$f":"Dataset[[#This Row],[2024/25 To - Spending review Topic 1]]+Dataset[[#This Row],[2024/25 To - Spending review Topic 2]]+Dataset[[#This Row],[2024/25 To - Spending review Topic 3]]+Dataset[[#This Row],[2024/25 To - Spending review Topic 4]]+Dataset[[#This Row],[2024/25 To - Other reallocations]]","v":0},{"$f":"Dataset[[#This Row],[2025/26 To - Spending review Topic 1]]+Dataset[[#This Row],[2025/26 To - Spending review Topic 2]]+Dataset[[#This Row],[2025/26 To - Spending review Topic 3]]+Dataset[[#This Row],[2025/26 To - Spending review Topic 4]]+Dataset[[#This Row],[2025/26 To - Other reallocations]]","v":0},{"$f":"Dataset[[#This Row],[2026/27 To - Spending review Topic 1]]+Dataset[[#This Row],[2026/27 To - Spending review Topic 2]]+Dataset[[#This Row],[2026/27 To - Spending review Topic 3]]+Dataset[[#This Row],[2026/27 To - Spending review Topic 4]]+Dataset[[#This Row],[2026/27 To - Other reallocations]]","v":0},{"$f":"Dataset[[#This Row],[2024/25 Reduction]]+Dataset[[#This Row],[2024/25 From - Total]]","v":0},{"$f":"Dataset[[#This Row],[2025/26 Reduction]]+Dataset[[#This Row],[2025/26 From - Total]]","v":0},{"$f":"Dataset[[#This Row],[2026/27 Reduction]]+Dataset[[#This Row],[2026/27 From - Total]]","v":0},{"$f":"Dataset[[#This Row],[2023/24 Reduction]]","v":0},{"$f":"SUM(Dataset[[#This Row],[2024/25 Reduction]],Dataset[[#This Row],[2024/25 From - Total]],Dataset[[#This Row],[2024/25 To - Total]])","v":0},{"$f":"SUM(Dataset[[#This Row],[2025/26 Reduction]],Dataset[[#This Row],[2025/26 From - Total]],Dataset[[#This Row],[2025/26 To - Total]])","v":0},{"$f":"SUM(Dataset[[#This Row],[2026/27 Reduction]],Dataset[[#This Row],[2026/27 From - Total]],Dataset[[#This Row],[2026/27 To - Total]])","v":0},{"$f":"Dataset[[#This Row],[2023/24 Baseline]]+Dataset[[#This Row],[2023/24 Total change]]","v":1900},{"$f":"Dataset[[#This Row],[2024/25 Baseline]]+Dataset[[#This Row],[2024/25 Total change]]","v":2900},{"$f":"Dataset[[#This Row],[2025/26 Baseline]]+Dataset[[#This Row],[2025/26 Total change]]","v":2940},{"$f":"Dataset[[#This Row],[2026/27 Baseline]]+Dataset[[#This Row],[2026/27 Total change]]","v":3075}]
["NAT|Non-transfer item","26|Payments for financial assets","2024_25","MTEF2024",26,1,2,44041,154,"26","01","02","044041","000154","26|01|02","03","04","18","63","67","03|04|18|63|67","National","Military Veterans","Administration","Corporate Services","Non-transfer item","Payments for financial assets","Payments for financial assets","Payments for financial assets","Payments for financial assets","Payments for financial assets","Peace and security","Defence and state security","NAT",0,0,0,0,0,0,0,0,0,0,0,null,null,null,null,null,null,null,null,null,null,null,null,null,null,null,null,null,null,null,null,null,null,null,null,null,null,null,null,null,null,null,null,null,null,{"$f":"Dataset[[#This Row],[2024/25 From - Spending review Topic 1]]+Dataset[[#This Row],[2024/25 From - Spending review Topic 2]]+Dataset[[#This Row],[2024/25 From - Spending review Topic 3]]+Dataset[[#This Row],[2024/25 From - Spending review Topic 4]]+Dataset[[#This Row],[2024/25 From - Other reallocations]]","v":0},{"$f":"Dataset[[#This Row],[2025/26 From - Spending review Topic 1]]+Dataset[[#This Row],[2025/26 From - Spending review Topic 2]]+Dataset[[#This Row],[2025/26 From - Spending review Topic 3]]+Dataset[[#This Row],[2025/26 From - Spending review Topic 4]]+Dataset[[#This Row],[2025/26 From - Other reallocations]]","v":0},{"$f":"Dataset[[#This Row],[2026/27 From - Spending review Topic 1]]+Dataset[[#This Row],[2026/27 From - Spending review Topic 2]]+Dataset[[#This Row],[2026/27 From - Spending review Topic 3]]+Dataset[[#This Row],[2026/27 From - Spending review Topic 4]]+Dataset[[#This Row],[2026/27 From - Other reallocations]]","v":0},{"$f":"Dataset[[#This Row],[2024/25 To - Spending review Topic 1]]+Dataset[[#This Row],[2024/25 To - Spending review Topic 2]]+Dataset[[#This Row],[2024/25 To - Spending review Topic 3]]+Dataset[[#This Row],[2024/25 To - Spending review Topic 4]]+Dataset[[#This Row],[2024/25 To - Other reallocations]]","v":0},{"$f":"Dataset[[#This Row],[2025/26 To - Spending review Topic 1]]+Dataset[[#This Row],[2025/26 To - Spending review Topic 2]]+Dataset[[#This Row],[2025/26 To - Spending review Topic 3]]+Dataset[[#This Row],[2025/26 To - Spending review Topic 4]]+Dataset[[#This Row],[2025/26 To - Other reallocations]]","v":0},{"$f":"Dataset[[#This Row],[2026/27 To - Spending review Topic 1]]+Dataset[[#This Row],[2026/27 To - Spending review Topic 2]]+Dataset[[#This Row],[2026/27 To - Spending review Topic 3]]+Dataset[[#This Row],[2026/27 To - Spending review Topic 4]]+Dataset[[#This Row],[2026/27 To - Other reallocations]]","v":0},{"$f":"Dataset[[#This Row],[2024/25 Reduction]]+Dataset[[#This Row],[2024/25 From - Total]]","v":0},{"$f":"Dataset[[#This Row],[2025/26 Reduction]]+Dataset[[#This Row],[2025/26 From - Total]]","v":0},{"$f":"Dataset[[#This Row],[2026/27 Reduction]]+Dataset[[#This Row],[2026/27 From - Total]]","v":0},{"$f":"Dataset[[#This Row],[2023/24 Reduction]]","v":0},{"$f":"SUM(Dataset[[#This Row],[2024/25 Reduction]],Dataset[[#This Row],[2024/25 From - Total]],Dataset[[#This Row],[2024/25 To - Total]])","v":0},{"$f":"SUM(Dataset[[#This Row],[2025/26 Reduction]],Dataset[[#This Row],[2025/26 From - Total]],Dataset[[#This Row],[2025/26 To - Total]])","v":0},{"$f":"SUM(Dataset[[#This Row],[2026/27 Reduction]],Dataset[[#This Row],[2026/27 From - Total]],Dataset[[#This Row],[2026/27 To - Total]])","v":0},{"$f":"Dataset[[#This Row],[2023/24 Baseline]]+Dataset[[#This Row],[2023/24 Total change]]","v":0},{"$f":"Dataset[[#This Row],[2024/25 Baseline]]+Dataset[[#This Row],[2024/25 Total change]]","v":0},{"$f":"Dataset[[#This Row],[2025/26 Baseline]]+Dataset[[#This Row],[2025/26 Total change]]","v":0},{"$f":"Dataset[[#This Row],[2026/27 Baseline]]+Dataset[[#This Row],[2026/27 Total change]]","v":0}]
["NAT|Non-transfer item","26|Salaries and wages","2024_25","MTEF2024",26,1,3,44042,155,"26","01","03","044042","000155","26|01|03","01","01","01","01","01","01|01|01|01|01","National","Military Veterans","Administration","Financial Administration","Non-transfer item","Current","Current payments","Compensation of employees","Salaries and wages","Salaries and wages","Peace and security","Defence and state security","NAT",18373,17158,16523,7953,13695,13695,0,9477,9942,10422,10899,null,null,null,null,null,null,null,null,null,null,null,null,null,null,null,null,null,null,null,null,null,null,null,null,null,null,null,null,null,null,null,null,null,null,{"$f":"Dataset[[#This Row],[2024/25 From - Spending review Topic 1]]+Dataset[[#This Row],[2024/25 From - Spending review Topic 2]]+Dataset[[#This Row],[2024/25 From - Spending review Topic 3]]+Dataset[[#This Row],[2024/25 From - Spending review Topic 4]]+Dataset[[#This Row],[2024/25 From - Other reallocations]]","v":0},{"$f":"Dataset[[#This Row],[2025/26 From - Spending review Topic 1]]+Dataset[[#This Row],[2025/26 From - Spending review Topic 2]]+Dataset[[#This Row],[2025/26 From - Spending review Topic 3]]+Dataset[[#This Row],[2025/26 From - Spending review Topic 4]]+Dataset[[#This Row],[2025/26 From - Other reallocations]]","v":0},{"$f":"Dataset[[#This Row],[2026/27 From - Spending review Topic 1]]+Dataset[[#This Row],[2026/27 From - Spending review Topic 2]]+Dataset[[#This Row],[2026/27 From - Spending review Topic 3]]+Dataset[[#This Row],[2026/27 From - Spending review Topic 4]]+Dataset[[#This Row],[2026/27 From - Other reallocations]]","v":0},{"$f":"Dataset[[#This Row],[2024/25 To - Spending review Topic 1]]+Dataset[[#This Row],[2024/25 To - Spending review Topic 2]]+Dataset[[#This Row],[2024/25 To - Spending review Topic 3]]+Dataset[[#This Row],[2024/25 To - Spending review Topic 4]]+Dataset[[#This Row],[2024/25 To - Other reallocations]]","v":0},{"$f":"Dataset[[#This Row],[2025/26 To - Spending review Topic 1]]+Dataset[[#This Row],[2025/26 To - Spending review Topic 2]]+Dataset[[#This Row],[2025/26 To - Spending review Topic 3]]+Dataset[[#This Row],[2025/26 To - Spending review Topic 4]]+Dataset[[#This Row],[2025/26 To - Other reallocations]]","v":0},{"$f":"Dataset[[#This Row],[2026/27 To - Spending review Topic 1]]+Dataset[[#This Row],[2026/27 To - Spending review Topic 2]]+Dataset[[#This Row],[2026/27 To - Spending review Topic 3]]+Dataset[[#This Row],[2026/27 To - Spending review Topic 4]]+Dataset[[#This Row],[2026/27 To - Other reallocations]]","v":0},{"$f":"Dataset[[#This Row],[2024/25 Reduction]]+Dataset[[#This Row],[2024/25 From - Total]]","v":0},{"$f":"Dataset[[#This Row],[2025/26 Reduction]]+Dataset[[#This Row],[2025/26 From - Total]]","v":0},{"$f":"Dataset[[#This Row],[2026/27 Reduction]]+Dataset[[#This Row],[2026/27 From - Total]]","v":0},{"$f":"Dataset[[#This Row],[2023/24 Reduction]]","v":0},{"$f":"SUM(Dataset[[#This Row],[2024/25 Reduction]],Dataset[[#This Row],[2024/25 From - Total]],Dataset[[#This Row],[2024/25 To - Total]])","v":0},{"$f":"SUM(Dataset[[#This Row],[2025/26 Reduction]],Dataset[[#This Row],[2025/26 From - Total]],Dataset[[#This Row],[2025/26 To - Total]])","v":0},{"$f":"SUM(Dataset[[#This Row],[2026/27 Reduction]],Dataset[[#This Row],[2026/27 From - Total]],Dataset[[#This Row],[2026/27 To - Total]])","v":0},{"$f":"Dataset[[#This Row],[2023/24 Baseline]]+Dataset[[#This Row],[2023/24 Total change]]","v":9477},{"$f":"Dataset[[#This Row],[2024/25 Baseline]]+Dataset[[#This Row],[2024/25 Total change]]","v":9942},{"$f":"Dataset[[#This Row],[2025/26 Baseline]]+Dataset[[#This Row],[2025/26 Total change]]","v":10422},{"$f":"Dataset[[#This Row],[2026/27 Baseline]]+Dataset[[#This Row],[2026/27 Total change]]","v":10899}]
["NAT|Non-transfer item","26|Social contributions","2024_25","MTEF2024",26,1,3,44043,156,"26","01","03","044043","000156","26|01|03","01","01","01","02","02","01|01|01|02|02","National","Military Veterans","Administration","Financial Administration","Non-transfer item","Current","Current payments","Compensation of employees","Social contributions","Social contributions","Peace and security","Defence and state security","NAT",1769,1876,1753,2264,1641,1641,0,1112,1113,1119,1170,null,null,null,null,null,null,null,null,null,null,null,null,null,null,null,null,null,null,null,null,null,null,null,null,null,null,null,null,null,null,null,null,null,null,{"$f":"Dataset[[#This Row],[2024/25 From - Spending review Topic 1]]+Dataset[[#This Row],[2024/25 From - Spending review Topic 2]]+Dataset[[#This Row],[2024/25 From - Spending review Topic 3]]+Dataset[[#This Row],[2024/25 From - Spending review Topic 4]]+Dataset[[#This Row],[2024/25 From - Other reallocations]]","v":0},{"$f":"Dataset[[#This Row],[2025/26 From - Spending review Topic 1]]+Dataset[[#This Row],[2025/26 From - Spending review Topic 2]]+Dataset[[#This Row],[2025/26 From - Spending review Topic 3]]+Dataset[[#This Row],[2025/26 From - Spending review Topic 4]]+Dataset[[#This Row],[2025/26 From - Other reallocations]]","v":0},{"$f":"Dataset[[#This Row],[2026/27 From - Spending review Topic 1]]+Dataset[[#This Row],[2026/27 From - Spending review Topic 2]]+Dataset[[#This Row],[2026/27 From - Spending review Topic 3]]+Dataset[[#This Row],[2026/27 From - Spending review Topic 4]]+Dataset[[#This Row],[2026/27 From - Other reallocations]]","v":0},{"$f":"Dataset[[#This Row],[2024/25 To - Spending review Topic 1]]+Dataset[[#This Row],[2024/25 To - Spending review Topic 2]]+Dataset[[#This Row],[2024/25 To - Spending review Topic 3]]+Dataset[[#This Row],[2024/25 To - Spending review Topic 4]]+Dataset[[#This Row],[2024/25 To - Other reallocations]]","v":0},{"$f":"Dataset[[#This Row],[2025/26 To - Spending review Topic 1]]+Dataset[[#This Row],[2025/26 To - Spending review Topic 2]]+Dataset[[#This Row],[2025/26 To - Spending review Topic 3]]+Dataset[[#This Row],[2025/26 To - Spending review Topic 4]]+Dataset[[#This Row],[2025/26 To - Other reallocations]]","v":0},{"$f":"Dataset[[#This Row],[2026/27 To - Spending review Topic 1]]+Dataset[[#This Row],[2026/27 To - Spending review Topic 2]]+Dataset[[#This Row],[2026/27 To - Spending review Topic 3]]+Dataset[[#This Row],[2026/27 To - Spending review Topic 4]]+Dataset[[#This Row],[2026/27 To - Other reallocations]]","v":0},{"$f":"Dataset[[#This Row],[2024/25 Reduction]]+Dataset[[#This Row],[2024/25 From - Total]]","v":0},{"$f":"Dataset[[#This Row],[2025/26 Reduction]]+Dataset[[#This Row],[2025/26 From - Total]]","v":0},{"$f":"Dataset[[#This Row],[2026/27 Reduction]]+Dataset[[#This Row],[2026/27 From - Total]]","v":0},{"$f":"Dataset[[#This Row],[2023/24 Reduction]]","v":0},{"$f":"SUM(Dataset[[#This Row],[2024/25 Reduction]],Dataset[[#This Row],[2024/25 From - Total]],Dataset[[#This Row],[2024/25 To - Total]])","v":0},{"$f":"SUM(Dataset[[#This Row],[2025/26 Reduction]],Dataset[[#This Row],[2025/26 From - Total]],Dataset[[#This Row],[2025/26 To - Total]])","v":0},{"$f":"SUM(Dataset[[#This Row],[2026/27 Reduction]],Dataset[[#This Row],[2026/27 From - Total]],Dataset[[#This Row],[2026/27 To - Total]])","v":0},{"$f":"Dataset[[#This Row],[2023/24 Baseline]]+Dataset[[#This Row],[2023/24 Total change]]","v":1112},{"$f":"Dataset[[#This Row],[2024/25 Baseline]]+Dataset[[#This Row],[2024/25 Total change]]","v":1113},{"$f":"Dataset[[#This Row],[2025/26 Baseline]]+Dataset[[#This Row],[2025/26 Total change]]","v":1119},{"$f":"Dataset[[#This Row],[2026/27 Baseline]]+Dataset[[#This Row],[2026/27 Total change]]","v":1170}]
["NAT|Non-transfer item","26|Administrative fees","2024_25","MTEF2024",26,1,3,44044,157,"26","01","03","044044","000157","26|01|03","01","01","02","03","03","01|01|02|03|03","National","Military Veterans","Administration","Financial Administration","Non-transfer item","Current","Current payments","Goods and services","Administrative fees","Administrative fees","Peace and security","Defence and state security","NAT",32,22,31,159,159,159,0,156,159,166,174,null,null,null,null,null,null,null,null,null,null,null,null,null,null,null,null,null,null,null,null,null,null,null,null,null,null,null,null,null,null,null,null,null,null,{"$f":"Dataset[[#This Row],[2024/25 From - Spending review Topic 1]]+Dataset[[#This Row],[2024/25 From - Spending review Topic 2]]+Dataset[[#This Row],[2024/25 From - Spending review Topic 3]]+Dataset[[#This Row],[2024/25 From - Spending review Topic 4]]+Dataset[[#This Row],[2024/25 From - Other reallocations]]","v":0},{"$f":"Dataset[[#This Row],[2025/26 From - Spending review Topic 1]]+Dataset[[#This Row],[2025/26 From - Spending review Topic 2]]+Dataset[[#This Row],[2025/26 From - Spending review Topic 3]]+Dataset[[#This Row],[2025/26 From - Spending review Topic 4]]+Dataset[[#This Row],[2025/26 From - Other reallocations]]","v":0},{"$f":"Dataset[[#This Row],[2026/27 From - Spending review Topic 1]]+Dataset[[#This Row],[2026/27 From - Spending review Topic 2]]+Dataset[[#This Row],[2026/27 From - Spending review Topic 3]]+Dataset[[#This Row],[2026/27 From - Spending review Topic 4]]+Dataset[[#This Row],[2026/27 From - Other reallocations]]","v":0},{"$f":"Dataset[[#This Row],[2024/25 To - Spending review Topic 1]]+Dataset[[#This Row],[2024/25 To - Spending review Topic 2]]+Dataset[[#This Row],[2024/25 To - Spending review Topic 3]]+Dataset[[#This Row],[2024/25 To - Spending review Topic 4]]+Dataset[[#This Row],[2024/25 To - Other reallocations]]","v":0},{"$f":"Dataset[[#This Row],[2025/26 To - Spending review Topic 1]]+Dataset[[#This Row],[2025/26 To - Spending review Topic 2]]+Dataset[[#This Row],[2025/26 To - Spending review Topic 3]]+Dataset[[#This Row],[2025/26 To - Spending review Topic 4]]+Dataset[[#This Row],[2025/26 To - Other reallocations]]","v":0},{"$f":"Dataset[[#This Row],[2026/27 To - Spending review Topic 1]]+Dataset[[#This Row],[2026/27 To - Spending review Topic 2]]+Dataset[[#This Row],[2026/27 To - Spending review Topic 3]]+Dataset[[#This Row],[2026/27 To - Spending review Topic 4]]+Dataset[[#This Row],[2026/27 To - Other reallocations]]","v":0},{"$f":"Dataset[[#This Row],[2024/25 Reduction]]+Dataset[[#This Row],[2024/25 From - Total]]","v":0},{"$f":"Dataset[[#This Row],[2025/26 Reduction]]+Dataset[[#This Row],[2025/26 From - Total]]","v":0},{"$f":"Dataset[[#This Row],[2026/27 Reduction]]+Dataset[[#This Row],[2026/27 From - Total]]","v":0},{"$f":"Dataset[[#This Row],[2023/24 Reduction]]","v":0},{"$f":"SUM(Dataset[[#This Row],[2024/25 Reduction]],Dataset[[#This Row],[2024/25 From - Total]],Dataset[[#This Row],[2024/25 To - Total]])","v":0},{"$f":"SUM(Dataset[[#This Row],[2025/26 Reduction]],Dataset[[#This Row],[2025/26 From - Total]],Dataset[[#This Row],[2025/26 To - Total]])","v":0},{"$f":"SUM(Dataset[[#This Row],[2026/27 Reduction]],Dataset[[#This Row],[2026/27 From - Total]],Dataset[[#This Row],[2026/27 To - Total]])","v":0},{"$f":"Dataset[[#This Row],[2023/24 Baseline]]+Dataset[[#This Row],[2023/24 Total change]]","v":156},{"$f":"Dataset[[#This Row],[2024/25 Baseline]]+Dataset[[#This Row],[2024/25 Total change]]","v":159},{"$f":"Dataset[[#This Row],[2025/26 Baseline]]+Dataset[[#This Row],[2025/26 Total change]]","v":166},{"$f":"Dataset[[#This Row],[2026/27 Baseline]]+Dataset[[#This Row],[2026/27 Total change]]","v":174}]
["NAT|Non-transfer item","26|Advertising","2024_25","MTEF2024",26,1,3,44045,158,"26","01","03","044045","000158","26|01|03","01","01","02","04","04","01|01|02|04|04","National","Military Veterans","Administration","Financial Administration","Non-transfer item","Current","Current payments","Goods and services","Advertising","Advertising","Peace and security","Defence and state security","NAT",0,26,0,886,586,586,0,500,550,572,598,null,null,null,null,null,null,null,null,null,null,null,null,null,null,null,null,null,null,null,null,null,null,null,null,null,null,null,null,null,null,null,null,null,null,{"$f":"Dataset[[#This Row],[2024/25 From - Spending review Topic 1]]+Dataset[[#This Row],[2024/25 From - Spending review Topic 2]]+Dataset[[#This Row],[2024/25 From - Spending review Topic 3]]+Dataset[[#This Row],[2024/25 From - Spending review Topic 4]]+Dataset[[#This Row],[2024/25 From - Other reallocations]]","v":0},{"$f":"Dataset[[#This Row],[2025/26 From - Spending review Topic 1]]+Dataset[[#This Row],[2025/26 From - Spending review Topic 2]]+Dataset[[#This Row],[2025/26 From - Spending review Topic 3]]+Dataset[[#This Row],[2025/26 From - Spending review Topic 4]]+Dataset[[#This Row],[2025/26 From - Other reallocations]]","v":0},{"$f":"Dataset[[#This Row],[2026/27 From - Spending review Topic 1]]+Dataset[[#This Row],[2026/27 From - Spending review Topic 2]]+Dataset[[#This Row],[2026/27 From - Spending review Topic 3]]+Dataset[[#This Row],[2026/27 From - Spending review Topic 4]]+Dataset[[#This Row],[2026/27 From - Other reallocations]]","v":0},{"$f":"Dataset[[#This Row],[2024/25 To - Spending review Topic 1]]+Dataset[[#This Row],[2024/25 To - Spending review Topic 2]]+Dataset[[#This Row],[2024/25 To - Spending review Topic 3]]+Dataset[[#This Row],[2024/25 To - Spending review Topic 4]]+Dataset[[#This Row],[2024/25 To - Other reallocations]]","v":0},{"$f":"Dataset[[#This Row],[2025/26 To - Spending review Topic 1]]+Dataset[[#This Row],[2025/26 To - Spending review Topic 2]]+Dataset[[#This Row],[2025/26 To - Spending review Topic 3]]+Dataset[[#This Row],[2025/26 To - Spending review Topic 4]]+Dataset[[#This Row],[2025/26 To - Other reallocations]]","v":0},{"$f":"Dataset[[#This Row],[2026/27 To - Spending review Topic 1]]+Dataset[[#This Row],[2026/27 To - Spending review Topic 2]]+Dataset[[#This Row],[2026/27 To - Spending review Topic 3]]+Dataset[[#This Row],[2026/27 To - Spending review Topic 4]]+Dataset[[#This Row],[2026/27 To - Other reallocations]]","v":0},{"$f":"Dataset[[#This Row],[2024/25 Reduction]]+Dataset[[#This Row],[2024/25 From - Total]]","v":0},{"$f":"Dataset[[#This Row],[2025/26 Reduction]]+Dataset[[#This Row],[2025/26 From - Total]]","v":0},{"$f":"Dataset[[#This Row],[2026/27 Reduction]]+Dataset[[#This Row],[2026/27 From - Total]]","v":0},{"$f":"Dataset[[#This Row],[2023/24 Reduction]]","v":0},{"$f":"SUM(Dataset[[#This Row],[2024/25 Reduction]],Dataset[[#This Row],[2024/25 From - Total]],Dataset[[#This Row],[2024/25 To - Total]])","v":0},{"$f":"SUM(Dataset[[#This Row],[2025/26 Reduction]],Dataset[[#This Row],[2025/26 From - Total]],Dataset[[#This Row],[2025/26 To - Total]])","v":0},{"$f":"SUM(Dataset[[#This Row],[2026/27 Reduction]],Dataset[[#This Row],[2026/27 From - Total]],Dataset[[#This Row],[2026/27 To - Total]])","v":0},{"$f":"Dataset[[#This Row],[2023/24 Baseline]]+Dataset[[#This Row],[2023/24 Total change]]","v":500},{"$f":"Dataset[[#This Row],[2024/25 Baseline]]+Dataset[[#This Row],[2024/25 Total change]]","v":550},{"$f":"Dataset[[#This Row],[2025/26 Baseline]]+Dataset[[#This Row],[2025/26 Total change]]","v":572},{"$f":"Dataset[[#This Row],[2026/27 Baseline]]+Dataset[[#This Row],[2026/27 Total change]]","v":598}]
["NAT|Non-transfer item","26|Minor assets","2024_25","MTEF2024",26,1,3,44046,159,"26","01","03","044046","000159","26|01|03","01","01","02","05","05","01|01|02|05|05","National","Military Veterans","Administration","Financial Administration","Non-transfer item","Current","Current payments","Goods and services","Minor assets","Minor assets","Peace and security","Defence and state security","NAT",0,74,6,368,0,0,0,65,44,40,42,null,null,null,null,null,null,null,null,null,null,null,null,null,null,null,null,null,null,null,null,null,null,null,null,null,null,null,null,null,null,null,null,null,null,{"$f":"Dataset[[#This Row],[2024/25 From - Spending review Topic 1]]+Dataset[[#This Row],[2024/25 From - Spending review Topic 2]]+Dataset[[#This Row],[2024/25 From - Spending review Topic 3]]+Dataset[[#This Row],[2024/25 From - Spending review Topic 4]]+Dataset[[#This Row],[2024/25 From - Other reallocations]]","v":0},{"$f":"Dataset[[#This Row],[2025/26 From - Spending review Topic 1]]+Dataset[[#This Row],[2025/26 From - Spending review Topic 2]]+Dataset[[#This Row],[2025/26 From - Spending review Topic 3]]+Dataset[[#This Row],[2025/26 From - Spending review Topic 4]]+Dataset[[#This Row],[2025/26 From - Other reallocations]]","v":0},{"$f":"Dataset[[#This Row],[2026/27 From - Spending review Topic 1]]+Dataset[[#This Row],[2026/27 From - Spending review Topic 2]]+Dataset[[#This Row],[2026/27 From - Spending review Topic 3]]+Dataset[[#This Row],[2026/27 From - Spending review Topic 4]]+Dataset[[#This Row],[2026/27 From - Other reallocations]]","v":0},{"$f":"Dataset[[#This Row],[2024/25 To - Spending review Topic 1]]+Dataset[[#This Row],[2024/25 To - Spending review Topic 2]]+Dataset[[#This Row],[2024/25 To - Spending review Topic 3]]+Dataset[[#This Row],[2024/25 To - Spending review Topic 4]]+Dataset[[#This Row],[2024/25 To - Other reallocations]]","v":0},{"$f":"Dataset[[#This Row],[2025/26 To - Spending review Topic 1]]+Dataset[[#This Row],[2025/26 To - Spending review Topic 2]]+Dataset[[#This Row],[2025/26 To - Spending review Topic 3]]+Dataset[[#This Row],[2025/26 To - Spending review Topic 4]]+Dataset[[#This Row],[2025/26 To - Other reallocations]]","v":0},{"$f":"Dataset[[#This Row],[2026/27 To - Spending review Topic 1]]+Dataset[[#This Row],[2026/27 To - Spending review Topic 2]]+Dataset[[#This Row],[2026/27 To - Spending review Topic 3]]+Dataset[[#This Row],[2026/27 To - Spending review Topic 4]]+Dataset[[#This Row],[2026/27 To - Other reallocations]]","v":0},{"$f":"Dataset[[#This Row],[2024/25 Reduction]]+Dataset[[#This Row],[2024/25 From - Total]]","v":0},{"$f":"Dataset[[#This Row],[2025/26 Reduction]]+Dataset[[#This Row],[2025/26 From - Total]]","v":0},{"$f":"Dataset[[#This Row],[2026/27 Reduction]]+Dataset[[#This Row],[2026/27 From - Total]]","v":0},{"$f":"Dataset[[#This Row],[2023/24 Reduction]]","v":0},{"$f":"SUM(Dataset[[#This Row],[2024/25 Reduction]],Dataset[[#This Row],[2024/25 From - Total]],Dataset[[#This Row],[2024/25 To - Total]])","v":0},{"$f":"SUM(Dataset[[#This Row],[2025/26 Reduction]],Dataset[[#This Row],[2025/26 From - Total]],Dataset[[#This Row],[2025/26 To - Total]])","v":0},{"$f":"SUM(Dataset[[#This Row],[2026/27 Reduction]],Dataset[[#This Row],[2026/27 From - Total]],Dataset[[#This Row],[2026/27 To - Total]])","v":0},{"$f":"Dataset[[#This Row],[2023/24 Baseline]]+Dataset[[#This Row],[2023/24 Total change]]","v":65},{"$f":"Dataset[[#This Row],[2024/25 Baseline]]+Dataset[[#This Row],[2024/25 Total change]]","v":44},{"$f":"Dataset[[#This Row],[2025/26 Baseline]]+Dataset[[#This Row],[2025/26 Total change]]","v":40},{"$f":"Dataset[[#This Row],[2026/27 Baseline]]+Dataset[[#This Row],[2026/27 Total change]]","v":42}]
["NAT|Non-transfer item","26|Audit costs: External","2024_25","MTEF2024",26,1,3,44047,160,"26","01","03","044047","000160","26|01|03","01","01","02","06","06","01|01|02|06|06","National","Military Veterans","Administration","Financial Administration","Non-transfer item","Current","Current payments","Goods and services","Audit costs: External","Audit costs: External","Peace and security","Defence and state security","NAT",0,0,0,0,0,0,0,0,0,0,0,null,null,null,null,null,null,null,null,null,null,null,null,null,null,null,null,null,null,null,null,null,null,null,null,null,null,null,null,null,null,null,null,null,null,{"$f":"Dataset[[#This Row],[2024/25 From - Spending review Topic 1]]+Dataset[[#This Row],[2024/25 From - Spending review Topic 2]]+Dataset[[#This Row],[2024/25 From - Spending review Topic 3]]+Dataset[[#This Row],[2024/25 From - Spending review Topic 4]]+Dataset[[#This Row],[2024/25 From - Other reallocations]]","v":0},{"$f":"Dataset[[#This Row],[2025/26 From - Spending review Topic 1]]+Dataset[[#This Row],[2025/26 From - Spending review Topic 2]]+Dataset[[#This Row],[2025/26 From - Spending review Topic 3]]+Dataset[[#This Row],[2025/26 From - Spending review Topic 4]]+Dataset[[#This Row],[2025/26 From - Other reallocations]]","v":0},{"$f":"Dataset[[#This Row],[2026/27 From - Spending review Topic 1]]+Dataset[[#This Row],[2026/27 From - Spending review Topic 2]]+Dataset[[#This Row],[2026/27 From - Spending review Topic 3]]+Dataset[[#This Row],[2026/27 From - Spending review Topic 4]]+Dataset[[#This Row],[2026/27 From - Other reallocations]]","v":0},{"$f":"Dataset[[#This Row],[2024/25 To - Spending review Topic 1]]+Dataset[[#This Row],[2024/25 To - Spending review Topic 2]]+Dataset[[#This Row],[2024/25 To - Spending review Topic 3]]+Dataset[[#This Row],[2024/25 To - Spending review Topic 4]]+Dataset[[#This Row],[2024/25 To - Other reallocations]]","v":0},{"$f":"Dataset[[#This Row],[2025/26 To - Spending review Topic 1]]+Dataset[[#This Row],[2025/26 To - Spending review Topic 2]]+Dataset[[#This Row],[2025/26 To - Spending review Topic 3]]+Dataset[[#This Row],[2025/26 To - Spending review Topic 4]]+Dataset[[#This Row],[2025/26 To - Other reallocations]]","v":0},{"$f":"Dataset[[#This Row],[2026/27 To - Spending review Topic 1]]+Dataset[[#This Row],[2026/27 To - Spending review Topic 2]]+Dataset[[#This Row],[2026/27 To - Spending review Topic 3]]+Dataset[[#This Row],[2026/27 To - Spending review Topic 4]]+Dataset[[#This Row],[2026/27 To - Other reallocations]]","v":0},{"$f":"Dataset[[#This Row],[2024/25 Reduction]]+Dataset[[#This Row],[2024/25 From - Total]]","v":0},{"$f":"Dataset[[#This Row],[2025/26 Reduction]]+Dataset[[#This Row],[2025/26 From - Total]]","v":0},{"$f":"Dataset[[#This Row],[2026/27 Reduction]]+Dataset[[#This Row],[2026/27 From - Total]]","v":0},{"$f":"Dataset[[#This Row],[2023/24 Reduction]]","v":0},{"$f":"SUM(Dataset[[#This Row],[2024/25 Reduction]],Dataset[[#This Row],[2024/25 From - Total]],Dataset[[#This Row],[2024/25 To - Total]])","v":0},{"$f":"SUM(Dataset[[#This Row],[2025/26 Reduction]],Dataset[[#This Row],[2025/26 From - Total]],Dataset[[#This Row],[2025/26 To - Total]])","v":0},{"$f":"SUM(Dataset[[#This Row],[2026/27 Reduction]],Dataset[[#This Row],[2026/27 From - Total]],Dataset[[#This Row],[2026/27 To - Total]])","v":0},{"$f":"Dataset[[#This Row],[2023/24 Baseline]]+Dataset[[#This Row],[2023/24 Total change]]","v":0},{"$f":"Dataset[[#This Row],[2024/25 Baseline]]+Dataset[[#This Row],[2024/25 Total change]]","v":0},{"$f":"Dataset[[#This Row],[2025/26 Baseline]]+Dataset[[#This Row],[2025/26 Total change]]","v":0},{"$f":"Dataset[[#This Row],[2026/27 Baseline]]+Dataset[[#This Row],[2026/27 Total change]]","v":0}]
["NAT|Non-transfer item","26|Bursaries: Employees","2024_25","MTEF2024",26,1,3,44048,161,"26","01","03","044048","000161","26|01|03","01","01","02","07","07","01|01|02|07|07","National","Military Veterans","Administration","Financial Administration","Non-transfer item","Current","Current payments","Goods and services","Bursaries: Employees","Bursaries: Employees","Peace and security","Defence and state security","NAT",0,0,0,0,0,0,0,0,0,0,0,null,null,null,null,null,null,null,null,null,null,null,null,null,null,null,null,null,null,null,null,null,null,null,null,null,null,null,null,null,null,null,null,null,null,{"$f":"Dataset[[#This Row],[2024/25 From - Spending review Topic 1]]+Dataset[[#This Row],[2024/25 From - Spending review Topic 2]]+Dataset[[#This Row],[2024/25 From - Spending review Topic 3]]+Dataset[[#This Row],[2024/25 From - Spending review Topic 4]]+Dataset[[#This Row],[2024/25 From - Other reallocations]]","v":0},{"$f":"Dataset[[#This Row],[2025/26 From - Spending review Topic 1]]+Dataset[[#This Row],[2025/26 From - Spending review Topic 2]]+Dataset[[#This Row],[2025/26 From - Spending review Topic 3]]+Dataset[[#This Row],[2025/26 From - Spending review Topic 4]]+Dataset[[#This Row],[2025/26 From - Other reallocations]]","v":0},{"$f":"Dataset[[#This Row],[2026/27 From - Spending review Topic 1]]+Dataset[[#This Row],[2026/27 From - Spending review Topic 2]]+Dataset[[#This Row],[2026/27 From - Spending review Topic 3]]+Dataset[[#This Row],[2026/27 From - Spending review Topic 4]]+Dataset[[#This Row],[2026/27 From - Other reallocations]]","v":0},{"$f":"Dataset[[#This Row],[2024/25 To - Spending review Topic 1]]+Dataset[[#This Row],[2024/25 To - Spending review Topic 2]]+Dataset[[#This Row],[2024/25 To - Spending review Topic 3]]+Dataset[[#This Row],[2024/25 To - Spending review Topic 4]]+Dataset[[#This Row],[2024/25 To - Other reallocations]]","v":0},{"$f":"Dataset[[#This Row],[2025/26 To - Spending review Topic 1]]+Dataset[[#This Row],[2025/26 To - Spending review Topic 2]]+Dataset[[#This Row],[2025/26 To - Spending review Topic 3]]+Dataset[[#This Row],[2025/26 To - Spending review Topic 4]]+Dataset[[#This Row],[2025/26 To - Other reallocations]]","v":0},{"$f":"Dataset[[#This Row],[2026/27 To - Spending review Topic 1]]+Dataset[[#This Row],[2026/27 To - Spending review Topic 2]]+Dataset[[#This Row],[2026/27 To - Spending review Topic 3]]+Dataset[[#This Row],[2026/27 To - Spending review Topic 4]]+Dataset[[#This Row],[2026/27 To - Other reallocations]]","v":0},{"$f":"Dataset[[#This Row],[2024/25 Reduction]]+Dataset[[#This Row],[2024/25 From - Total]]","v":0},{"$f":"Dataset[[#This Row],[2025/26 Reduction]]+Dataset[[#This Row],[2025/26 From - Total]]","v":0},{"$f":"Dataset[[#This Row],[2026/27 Reduction]]+Dataset[[#This Row],[2026/27 From - Total]]","v":0},{"$f":"Dataset[[#This Row],[2023/24 Reduction]]","v":0},{"$f":"SUM(Dataset[[#This Row],[2024/25 Reduction]],Dataset[[#This Row],[2024/25 From - Total]],Dataset[[#This Row],[2024/25 To - Total]])","v":0},{"$f":"SUM(Dataset[[#This Row],[2025/26 Reduction]],Dataset[[#This Row],[2025/26 From - Total]],Dataset[[#This Row],[2025/26 To - Total]])","v":0},{"$f":"SUM(Dataset[[#This Row],[2026/27 Reduction]],Dataset[[#This Row],[2026/27 From - Total]],Dataset[[#This Row],[2026/27 To - Total]])","v":0},{"$f":"Dataset[[#This Row],[2023/24 Baseline]]+Dataset[[#This Row],[2023/24 Total change]]","v":0},{"$f":"Dataset[[#This Row],[2024/25 Baseline]]+Dataset[[#This Row],[2024/25 Total change]]","v":0},{"$f":"Dataset[[#This Row],[2025/26 Baseline]]+Dataset[[#This Row],[2025/26 Total change]]","v":0},{"$f":"Dataset[[#This Row],[2026/27 Baseline]]+Dataset[[#This Row],[2026/27 Total change]]","v":0}]
["NAT|Non-transfer item","26|Catering: Departmental activities","2024_25","MTEF2024",26,1,3,44049,162,"26","01","03","044049","000162","26|01|03","01","01","02","08","08","01|01|02|08|08","National","Military Veterans","Administration","Financial Administration","Non-transfer item","Current","Current payments","Goods and services","Catering: Departmental activities","Catering: Departmental activities","Peace and security","Defence and state security","NAT",8,0,0,23,18,18,0,23,23,24,25,null,null,null,null,null,null,null,null,null,null,null,null,null,null,null,null,null,null,null,null,null,null,null,null,null,null,null,null,null,null,null,null,null,null,{"$f":"Dataset[[#This Row],[2024/25 From - Spending review Topic 1]]+Dataset[[#This Row],[2024/25 From - Spending review Topic 2]]+Dataset[[#This Row],[2024/25 From - Spending review Topic 3]]+Dataset[[#This Row],[2024/25 From - Spending review Topic 4]]+Dataset[[#This Row],[2024/25 From - Other reallocations]]","v":0},{"$f":"Dataset[[#This Row],[2025/26 From - Spending review Topic 1]]+Dataset[[#This Row],[2025/26 From - Spending review Topic 2]]+Dataset[[#This Row],[2025/26 From - Spending review Topic 3]]+Dataset[[#This Row],[2025/26 From - Spending review Topic 4]]+Dataset[[#This Row],[2025/26 From - Other reallocations]]","v":0},{"$f":"Dataset[[#This Row],[2026/27 From - Spending review Topic 1]]+Dataset[[#This Row],[2026/27 From - Spending review Topic 2]]+Dataset[[#This Row],[2026/27 From - Spending review Topic 3]]+Dataset[[#This Row],[2026/27 From - Spending review Topic 4]]+Dataset[[#This Row],[2026/27 From - Other reallocations]]","v":0},{"$f":"Dataset[[#This Row],[2024/25 To - Spending review Topic 1]]+Dataset[[#This Row],[2024/25 To - Spending review Topic 2]]+Dataset[[#This Row],[2024/25 To - Spending review Topic 3]]+Dataset[[#This Row],[2024/25 To - Spending review Topic 4]]+Dataset[[#This Row],[2024/25 To - Other reallocations]]","v":0},{"$f":"Dataset[[#This Row],[2025/26 To - Spending review Topic 1]]+Dataset[[#This Row],[2025/26 To - Spending review Topic 2]]+Dataset[[#This Row],[2025/26 To - Spending review Topic 3]]+Dataset[[#This Row],[2025/26 To - Spending review Topic 4]]+Dataset[[#This Row],[2025/26 To - Other reallocations]]","v":0},{"$f":"Dataset[[#This Row],[2026/27 To - Spending review Topic 1]]+Dataset[[#This Row],[2026/27 To - Spending review Topic 2]]+Dataset[[#This Row],[2026/27 To - Spending review Topic 3]]+Dataset[[#This Row],[2026/27 To - Spending review Topic 4]]+Dataset[[#This Row],[2026/27 To - Other reallocations]]","v":0},{"$f":"Dataset[[#This Row],[2024/25 Reduction]]+Dataset[[#This Row],[2024/25 From - Total]]","v":0},{"$f":"Dataset[[#This Row],[2025/26 Reduction]]+Dataset[[#This Row],[2025/26 From - Total]]","v":0},{"$f":"Dataset[[#This Row],[2026/27 Reduction]]+Dataset[[#This Row],[2026/27 From - Total]]","v":0},{"$f":"Dataset[[#This Row],[2023/24 Reduction]]","v":0},{"$f":"SUM(Dataset[[#This Row],[2024/25 Reduction]],Dataset[[#This Row],[2024/25 From - Total]],Dataset[[#This Row],[2024/25 To - Total]])","v":0},{"$f":"SUM(Dataset[[#This Row],[2025/26 Reduction]],Dataset[[#This Row],[2025/26 From - Total]],Dataset[[#This Row],[2025/26 To - Total]])","v":0},{"$f":"SUM(Dataset[[#This Row],[2026/27 Reduction]],Dataset[[#This Row],[2026/27 From - Total]],Dataset[[#This Row],[2026/27 To - Total]])","v":0},{"$f":"Dataset[[#This Row],[2023/24 Baseline]]+Dataset[[#This Row],[2023/24 Total change]]","v":23},{"$f":"Dataset[[#This Row],[2024/25 Baseline]]+Dataset[[#This Row],[2024/25 Total change]]","v":23},{"$f":"Dataset[[#This Row],[2025/26 Baseline]]+Dataset[[#This Row],[2025/26 Total change]]","v":24},{"$f":"Dataset[[#This Row],[2026/27 Baseline]]+Dataset[[#This Row],[2026/27 Total change]]","v":25}]
["NAT|Non-transfer item","26|Communication (G&S)","2024_25","MTEF2024",26,1,3,44050,163,"26","01","03","044050","000163","26|01|03","01","01","02","09","09","01|01|02|09|09","National","Military Veterans","Administration","Financial Administration","Non-transfer item","Current","Current payments","Goods and services","Communication (G&S)","Communication (G&S)","Peace and security","Defence and state security","NAT",0,34,2,2,2,2,0,2,3,4,4,null,null,null,null,null,null,null,null,null,null,null,null,null,null,null,null,null,null,null,null,null,null,null,null,null,null,null,null,null,null,null,null,null,null,{"$f":"Dataset[[#This Row],[2024/25 From - Spending review Topic 1]]+Dataset[[#This Row],[2024/25 From - Spending review Topic 2]]+Dataset[[#This Row],[2024/25 From - Spending review Topic 3]]+Dataset[[#This Row],[2024/25 From - Spending review Topic 4]]+Dataset[[#This Row],[2024/25 From - Other reallocations]]","v":0},{"$f":"Dataset[[#This Row],[2025/26 From - Spending review Topic 1]]+Dataset[[#This Row],[2025/26 From - Spending review Topic 2]]+Dataset[[#This Row],[2025/26 From - Spending review Topic 3]]+Dataset[[#This Row],[2025/26 From - Spending review Topic 4]]+Dataset[[#This Row],[2025/26 From - Other reallocations]]","v":0},{"$f":"Dataset[[#This Row],[2026/27 From - Spending review Topic 1]]+Dataset[[#This Row],[2026/27 From - Spending review Topic 2]]+Dataset[[#This Row],[2026/27 From - Spending review Topic 3]]+Dataset[[#This Row],[2026/27 From - Spending review Topic 4]]+Dataset[[#This Row],[2026/27 From - Other reallocations]]","v":0},{"$f":"Dataset[[#This Row],[2024/25 To - Spending review Topic 1]]+Dataset[[#This Row],[2024/25 To - Spending review Topic 2]]+Dataset[[#This Row],[2024/25 To - Spending review Topic 3]]+Dataset[[#This Row],[2024/25 To - Spending review Topic 4]]+Dataset[[#This Row],[2024/25 To - Other reallocations]]","v":0},{"$f":"Dataset[[#This Row],[2025/26 To - Spending review Topic 1]]+Dataset[[#This Row],[2025/26 To - Spending review Topic 2]]+Dataset[[#This Row],[2025/26 To - Spending review Topic 3]]+Dataset[[#This Row],[2025/26 To - Spending review Topic 4]]+Dataset[[#This Row],[2025/26 To - Other reallocations]]","v":0},{"$f":"Dataset[[#This Row],[2026/27 To - Spending review Topic 1]]+Dataset[[#This Row],[2026/27 To - Spending review Topic 2]]+Dataset[[#This Row],[2026/27 To - Spending review Topic 3]]+Dataset[[#This Row],[2026/27 To - Spending review Topic 4]]+Dataset[[#This Row],[2026/27 To - Other reallocations]]","v":0},{"$f":"Dataset[[#This Row],[2024/25 Reduction]]+Dataset[[#This Row],[2024/25 From - Total]]","v":0},{"$f":"Dataset[[#This Row],[2025/26 Reduction]]+Dataset[[#This Row],[2025/26 From - Total]]","v":0},{"$f":"Dataset[[#This Row],[2026/27 Reduction]]+Dataset[[#This Row],[2026/27 From - Total]]","v":0},{"$f":"Dataset[[#This Row],[2023/24 Reduction]]","v":0},{"$f":"SUM(Dataset[[#This Row],[2024/25 Reduction]],Dataset[[#This Row],[2024/25 From - Total]],Dataset[[#This Row],[2024/25 To - Total]])","v":0},{"$f":"SUM(Dataset[[#This Row],[2025/26 Reduction]],Dataset[[#This Row],[2025/26 From - Total]],Dataset[[#This Row],[2025/26 To - Total]])","v":0},{"$f":"SUM(Dataset[[#This Row],[2026/27 Reduction]],Dataset[[#This Row],[2026/27 From - Total]],Dataset[[#This Row],[2026/27 To - Total]])","v":0},{"$f":"Dataset[[#This Row],[2023/24 Baseline]]+Dataset[[#This Row],[2023/24 Total change]]","v":2},{"$f":"Dataset[[#This Row],[2024/25 Baseline]]+Dataset[[#This Row],[2024/25 Total change]]","v":3},{"$f":"Dataset[[#This Row],[2025/26 Baseline]]+Dataset[[#This Row],[2025/26 Total change]]","v":4},{"$f":"Dataset[[#This Row],[2026/27 Baseline]]+Dataset[[#This Row],[2026/27 Total change]]","v":4}]
["NAT|Non-transfer item","26|Computer services","2024_25","MTEF2024",26,1,3,44051,164,"26","01","03","044051","000164","26|01|03","01","01","02","10","10","01|01|02|10|10","National","Military Veterans","Administration","Financial Administration","Non-transfer item","Current","Current payments","Goods and services","Computer services","Computer services","Peace and security","Defence and state security","NAT",0,0,0,0,0,0,0,0,0,0,0,null,null,null,null,null,null,null,null,null,null,null,null,null,null,null,null,null,null,null,null,null,null,null,null,null,null,null,null,null,null,null,null,null,null,{"$f":"Dataset[[#This Row],[2024/25 From - Spending review Topic 1]]+Dataset[[#This Row],[2024/25 From - Spending review Topic 2]]+Dataset[[#This Row],[2024/25 From - Spending review Topic 3]]+Dataset[[#This Row],[2024/25 From - Spending review Topic 4]]+Dataset[[#This Row],[2024/25 From - Other reallocations]]","v":0},{"$f":"Dataset[[#This Row],[2025/26 From - Spending review Topic 1]]+Dataset[[#This Row],[2025/26 From - Spending review Topic 2]]+Dataset[[#This Row],[2025/26 From - Spending review Topic 3]]+Dataset[[#This Row],[2025/26 From - Spending review Topic 4]]+Dataset[[#This Row],[2025/26 From - Other reallocations]]","v":0},{"$f":"Dataset[[#This Row],[2026/27 From - Spending review Topic 1]]+Dataset[[#This Row],[2026/27 From - Spending review Topic 2]]+Dataset[[#This Row],[2026/27 From - Spending review Topic 3]]+Dataset[[#This Row],[2026/27 From - Spending review Topic 4]]+Dataset[[#This Row],[2026/27 From - Other reallocations]]","v":0},{"$f":"Dataset[[#This Row],[2024/25 To - Spending review Topic 1]]+Dataset[[#This Row],[2024/25 To - Spending review Topic 2]]+Dataset[[#This Row],[2024/25 To - Spending review Topic 3]]+Dataset[[#This Row],[2024/25 To - Spending review Topic 4]]+Dataset[[#This Row],[2024/25 To - Other reallocations]]","v":0},{"$f":"Dataset[[#This Row],[2025/26 To - Spending review Topic 1]]+Dataset[[#This Row],[2025/26 To - Spending review Topic 2]]+Dataset[[#This Row],[2025/26 To - Spending review Topic 3]]+Dataset[[#This Row],[2025/26 To - Spending review Topic 4]]+Dataset[[#This Row],[2025/26 To - Other reallocations]]","v":0},{"$f":"Dataset[[#This Row],[2026/27 To - Spending review Topic 1]]+Dataset[[#This Row],[2026/27 To - Spending review Topic 2]]+Dataset[[#This Row],[2026/27 To - Spending review Topic 3]]+Dataset[[#This Row],[2026/27 To - Spending review Topic 4]]+Dataset[[#This Row],[2026/27 To - Other reallocations]]","v":0},{"$f":"Dataset[[#This Row],[2024/25 Reduction]]+Dataset[[#This Row],[2024/25 From - Total]]","v":0},{"$f":"Dataset[[#This Row],[2025/26 Reduction]]+Dataset[[#This Row],[2025/26 From - Total]]","v":0},{"$f":"Dataset[[#This Row],[2026/27 Reduction]]+Dataset[[#This Row],[2026/27 From - Total]]","v":0},{"$f":"Dataset[[#This Row],[2023/24 Reduction]]","v":0},{"$f":"SUM(Dataset[[#This Row],[2024/25 Reduction]],Dataset[[#This Row],[2024/25 From - Total]],Dataset[[#This Row],[2024/25 To - Total]])","v":0},{"$f":"SUM(Dataset[[#This Row],[2025/26 Reduction]],Dataset[[#This Row],[2025/26 From - Total]],Dataset[[#This Row],[2025/26 To - Total]])","v":0},{"$f":"SUM(Dataset[[#This Row],[2026/27 Reduction]],Dataset[[#This Row],[2026/27 From - Total]],Dataset[[#This Row],[2026/27 To - Total]])","v":0},{"$f":"Dataset[[#This Row],[2023/24 Baseline]]+Dataset[[#This Row],[2023/24 Total change]]","v":0},{"$f":"Dataset[[#This Row],[2024/25 Baseline]]+Dataset[[#This Row],[2024/25 Total change]]","v":0},{"$f":"Dataset[[#This Row],[2025/26 Baseline]]+Dataset[[#This Row],[2025/26 Total change]]","v":0},{"$f":"Dataset[[#This Row],[2026/27 Baseline]]+Dataset[[#This Row],[2026/27 Total change]]","v":0}]
["NAT|Non-transfer item","26|Consultants: Business and advisory services","2024_25","MTEF2024",26,1,3,44052,165,"26","01","03","044052","000165","26|01|03","01","01","02","11","11","01|01|02|11|11","National","Military Veterans","Administration","Financial Administration","Non-transfer item","Current","Current payments","Goods and services","Consultants: Business and advisory services","Consultants: Business and advisory services","Peace and security","Defence and state security","NAT",0,231,262,531,531,531,0,529,529,553,578,null,null,null,null,null,null,null,null,null,null,null,null,null,null,null,null,null,null,null,null,null,null,null,null,null,null,null,null,null,null,null,null,null,null,{"$f":"Dataset[[#This Row],[2024/25 From - Spending review Topic 1]]+Dataset[[#This Row],[2024/25 From - Spending review Topic 2]]+Dataset[[#This Row],[2024/25 From - Spending review Topic 3]]+Dataset[[#This Row],[2024/25 From - Spending review Topic 4]]+Dataset[[#This Row],[2024/25 From - Other reallocations]]","v":0},{"$f":"Dataset[[#This Row],[2025/26 From - Spending review Topic 1]]+Dataset[[#This Row],[2025/26 From - Spending review Topic 2]]+Dataset[[#This Row],[2025/26 From - Spending review Topic 3]]+Dataset[[#This Row],[2025/26 From - Spending review Topic 4]]+Dataset[[#This Row],[2025/26 From - Other reallocations]]","v":0},{"$f":"Dataset[[#This Row],[2026/27 From - Spending review Topic 1]]+Dataset[[#This Row],[2026/27 From - Spending review Topic 2]]+Dataset[[#This Row],[2026/27 From - Spending review Topic 3]]+Dataset[[#This Row],[2026/27 From - Spending review Topic 4]]+Dataset[[#This Row],[2026/27 From - Other reallocations]]","v":0},{"$f":"Dataset[[#This Row],[2024/25 To - Spending review Topic 1]]+Dataset[[#This Row],[2024/25 To - Spending review Topic 2]]+Dataset[[#This Row],[2024/25 To - Spending review Topic 3]]+Dataset[[#This Row],[2024/25 To - Spending review Topic 4]]+Dataset[[#This Row],[2024/25 To - Other reallocations]]","v":0},{"$f":"Dataset[[#This Row],[2025/26 To - Spending review Topic 1]]+Dataset[[#This Row],[2025/26 To - Spending review Topic 2]]+Dataset[[#This Row],[2025/26 To - Spending review Topic 3]]+Dataset[[#This Row],[2025/26 To - Spending review Topic 4]]+Dataset[[#This Row],[2025/26 To - Other reallocations]]","v":0},{"$f":"Dataset[[#This Row],[2026/27 To - Spending review Topic 1]]+Dataset[[#This Row],[2026/27 To - Spending review Topic 2]]+Dataset[[#This Row],[2026/27 To - Spending review Topic 3]]+Dataset[[#This Row],[2026/27 To - Spending review Topic 4]]+Dataset[[#This Row],[2026/27 To - Other reallocations]]","v":0},{"$f":"Dataset[[#This Row],[2024/25 Reduction]]+Dataset[[#This Row],[2024/25 From - Total]]","v":0},{"$f":"Dataset[[#This Row],[2025/26 Reduction]]+Dataset[[#This Row],[2025/26 From - Total]]","v":0},{"$f":"Dataset[[#This Row],[2026/27 Reduction]]+Dataset[[#This Row],[2026/27 From - Total]]","v":0},{"$f":"Dataset[[#This Row],[2023/24 Reduction]]","v":0},{"$f":"SUM(Dataset[[#This Row],[2024/25 Reduction]],Dataset[[#This Row],[2024/25 From - Total]],Dataset[[#This Row],[2024/25 To - Total]])","v":0},{"$f":"SUM(Dataset[[#This Row],[2025/26 Reduction]],Dataset[[#This Row],[2025/26 From - Total]],Dataset[[#This Row],[2025/26 To - Total]])","v":0},{"$f":"SUM(Dataset[[#This Row],[2026/27 Reduction]],Dataset[[#This Row],[2026/27 From - Total]],Dataset[[#This Row],[2026/27 To - Total]])","v":0},{"$f":"Dataset[[#This Row],[2023/24 Baseline]]+Dataset[[#This Row],[2023/24 Total change]]","v":529},{"$f":"Dataset[[#This Row],[2024/25 Baseline]]+Dataset[[#This Row],[2024/25 Total change]]","v":529},{"$f":"Dataset[[#This Row],[2025/26 Baseline]]+Dataset[[#This Row],[2025/26 Total change]]","v":553},{"$f":"Dataset[[#This Row],[2026/27 Baseline]]+Dataset[[#This Row],[2026/27 Total change]]","v":578}]
["NAT|Non-transfer item","26|Infrastructure and planning services","2024_25","MTEF2024",26,1,3,44053,166,"26","01","03","044053","000166","26|01|03","01","01","02","12","12","01|01|02|12|12","National","Military Veterans","Administration","Financial Administration","Non-transfer item","Current","Current payments","Goods and services","Infrastructure and planning services","Infrastructure and planning services","Peace and security","Defence and state security","NAT",0,0,0,0,0,0,0,0,0,0,0,null,null,null,null,null,null,null,null,null,null,null,null,null,null,null,null,null,null,null,null,null,null,null,null,null,null,null,null,null,null,null,null,null,null,{"$f":"Dataset[[#This Row],[2024/25 From - Spending review Topic 1]]+Dataset[[#This Row],[2024/25 From - Spending review Topic 2]]+Dataset[[#This Row],[2024/25 From - Spending review Topic 3]]+Dataset[[#This Row],[2024/25 From - Spending review Topic 4]]+Dataset[[#This Row],[2024/25 From - Other reallocations]]","v":0},{"$f":"Dataset[[#This Row],[2025/26 From - Spending review Topic 1]]+Dataset[[#This Row],[2025/26 From - Spending review Topic 2]]+Dataset[[#This Row],[2025/26 From - Spending review Topic 3]]+Dataset[[#This Row],[2025/26 From - Spending review Topic 4]]+Dataset[[#This Row],[2025/26 From - Other reallocations]]","v":0},{"$f":"Dataset[[#This Row],[2026/27 From - Spending review Topic 1]]+Dataset[[#This Row],[2026/27 From - Spending review Topic 2]]+Dataset[[#This Row],[2026/27 From - Spending review Topic 3]]+Dataset[[#This Row],[2026/27 From - Spending review Topic 4]]+Dataset[[#This Row],[2026/27 From - Other reallocations]]","v":0},{"$f":"Dataset[[#This Row],[2024/25 To - Spending review Topic 1]]+Dataset[[#This Row],[2024/25 To - Spending review Topic 2]]+Dataset[[#This Row],[2024/25 To - Spending review Topic 3]]+Dataset[[#This Row],[2024/25 To - Spending review Topic 4]]+Dataset[[#This Row],[2024/25 To - Other reallocations]]","v":0},{"$f":"Dataset[[#This Row],[2025/26 To - Spending review Topic 1]]+Dataset[[#This Row],[2025/26 To - Spending review Topic 2]]+Dataset[[#This Row],[2025/26 To - Spending review Topic 3]]+Dataset[[#This Row],[2025/26 To - Spending review Topic 4]]+Dataset[[#This Row],[2025/26 To - Other reallocations]]","v":0},{"$f":"Dataset[[#This Row],[2026/27 To - Spending review Topic 1]]+Dataset[[#This Row],[2026/27 To - Spending review Topic 2]]+Dataset[[#This Row],[2026/27 To - Spending review Topic 3]]+Dataset[[#This Row],[2026/27 To - Spending review Topic 4]]+Dataset[[#This Row],[2026/27 To - Other reallocations]]","v":0},{"$f":"Dataset[[#This Row],[2024/25 Reduction]]+Dataset[[#This Row],[2024/25 From - Total]]","v":0},{"$f":"Dataset[[#This Row],[2025/26 Reduction]]+Dataset[[#This Row],[2025/26 From - Total]]","v":0},{"$f":"Dataset[[#This Row],[2026/27 Reduction]]+Dataset[[#This Row],[2026/27 From - Total]]","v":0},{"$f":"Dataset[[#This Row],[2023/24 Reduction]]","v":0},{"$f":"SUM(Dataset[[#This Row],[2024/25 Reduction]],Dataset[[#This Row],[2024/25 From - Total]],Dataset[[#This Row],[2024/25 To - Total]])","v":0},{"$f":"SUM(Dataset[[#This Row],[2025/26 Reduction]],Dataset[[#This Row],[2025/26 From - Total]],Dataset[[#This Row],[2025/26 To - Total]])","v":0},{"$f":"SUM(Dataset[[#This Row],[2026/27 Reduction]],Dataset[[#This Row],[2026/27 From - Total]],Dataset[[#This Row],[2026/27 To - Total]])","v":0},{"$f":"Dataset[[#This Row],[2023/24 Baseline]]+Dataset[[#This Row],[2023/24 Total change]]","v":0},{"$f":"Dataset[[#This Row],[2024/25 Baseline]]+Dataset[[#This Row],[2024/25 Total change]]","v":0},{"$f":"Dataset[[#This Row],[2025/26 Baseline]]+Dataset[[#This Row],[2025/26 Total change]]","v":0},{"$f":"Dataset[[#This Row],[2026/27 Baseline]]+Dataset[[#This Row],[2026/27 Total change]]","v":0}]
["NAT|Non-transfer item","26|Laboratory services","2024_25","MTEF2024",26,1,3,44054,167,"26","01","03","044054","000167","26|01|03","01","01","02","13","13","01|01|02|13|13","National","Military Veterans","Administration","Financial Administration","Non-transfer item","Current","Current payments","Goods and services","Laboratory services","Laboratory services","Peace and security","Defence and state security","NAT",0,0,0,0,0,0,0,0,0,0,0,null,null,null,null,null,null,null,null,null,null,null,null,null,null,null,null,null,null,null,null,null,null,null,null,null,null,null,null,null,null,null,null,null,null,{"$f":"Dataset[[#This Row],[2024/25 From - Spending review Topic 1]]+Dataset[[#This Row],[2024/25 From - Spending review Topic 2]]+Dataset[[#This Row],[2024/25 From - Spending review Topic 3]]+Dataset[[#This Row],[2024/25 From - Spending review Topic 4]]+Dataset[[#This Row],[2024/25 From - Other reallocations]]","v":0},{"$f":"Dataset[[#This Row],[2025/26 From - Spending review Topic 1]]+Dataset[[#This Row],[2025/26 From - Spending review Topic 2]]+Dataset[[#This Row],[2025/26 From - Spending review Topic 3]]+Dataset[[#This Row],[2025/26 From - Spending review Topic 4]]+Dataset[[#This Row],[2025/26 From - Other reallocations]]","v":0},{"$f":"Dataset[[#This Row],[2026/27 From - Spending review Topic 1]]+Dataset[[#This Row],[2026/27 From - Spending review Topic 2]]+Dataset[[#This Row],[2026/27 From - Spending review Topic 3]]+Dataset[[#This Row],[2026/27 From - Spending review Topic 4]]+Dataset[[#This Row],[2026/27 From - Other reallocations]]","v":0},{"$f":"Dataset[[#This Row],[2024/25 To - Spending review Topic 1]]+Dataset[[#This Row],[2024/25 To - Spending review Topic 2]]+Dataset[[#This Row],[2024/25 To - Spending review Topic 3]]+Dataset[[#This Row],[2024/25 To - Spending review Topic 4]]+Dataset[[#This Row],[2024/25 To - Other reallocations]]","v":0},{"$f":"Dataset[[#This Row],[2025/26 To - Spending review Topic 1]]+Dataset[[#This Row],[2025/26 To - Spending review Topic 2]]+Dataset[[#This Row],[2025/26 To - Spending review Topic 3]]+Dataset[[#This Row],[2025/26 To - Spending review Topic 4]]+Dataset[[#This Row],[2025/26 To - Other reallocations]]","v":0},{"$f":"Dataset[[#This Row],[2026/27 To - Spending review Topic 1]]+Dataset[[#This Row],[2026/27 To - Spending review Topic 2]]+Dataset[[#This Row],[2026/27 To - Spending review Topic 3]]+Dataset[[#This Row],[2026/27 To - Spending review Topic 4]]+Dataset[[#This Row],[2026/27 To - Other reallocations]]","v":0},{"$f":"Dataset[[#This Row],[2024/25 Reduction]]+Dataset[[#This Row],[2024/25 From - Total]]","v":0},{"$f":"Dataset[[#This Row],[2025/26 Reduction]]+Dataset[[#This Row],[2025/26 From - Total]]","v":0},{"$f":"Dataset[[#This Row],[2026/27 Reduction]]+Dataset[[#This Row],[2026/27 From - Total]]","v":0},{"$f":"Dataset[[#This Row],[2023/24 Reduction]]","v":0},{"$f":"SUM(Dataset[[#This Row],[2024/25 Reduction]],Dataset[[#This Row],[2024/25 From - Total]],Dataset[[#This Row],[2024/25 To - Total]])","v":0},{"$f":"SUM(Dataset[[#This Row],[2025/26 Reduction]],Dataset[[#This Row],[2025/26 From - Total]],Dataset[[#This Row],[2025/26 To - Total]])","v":0},{"$f":"SUM(Dataset[[#This Row],[2026/27 Reduction]],Dataset[[#This Row],[2026/27 From - Total]],Dataset[[#This Row],[2026/27 To - Total]])","v":0},{"$f":"Dataset[[#This Row],[2023/24 Baseline]]+Dataset[[#This Row],[2023/24 Total change]]","v":0},{"$f":"Dataset[[#This Row],[2024/25 Baseline]]+Dataset[[#This Row],[2024/25 Total change]]","v":0},{"$f":"Dataset[[#This Row],[2025/26 Baseline]]+Dataset[[#This Row],[2025/26 Total change]]","v":0},{"$f":"Dataset[[#This Row],[2026/27 Baseline]]+Dataset[[#This Row],[2026/27 Total change]]","v":0}]
["NAT|Non-transfer item","26|Legal services (G&S)","2024_25","MTEF2024",26,1,3,44055,168,"26","01","03","044055","000168","26|01|03","01","01","02","14","14","01|01|02|14|14","National","Military Veterans","Administration","Financial Administration","Non-transfer item","Current","Current payments","Goods and services","Legal services (G&S)","Legal services (G&S)","Peace and security","Defence and state security","NAT",0,0,0,0,0,0,0,0,0,0,0,null,null,null,null,null,null,null,null,null,null,null,null,null,null,null,null,null,null,null,null,null,null,null,null,null,null,null,null,null,null,null,null,null,null,{"$f":"Dataset[[#This Row],[2024/25 From - Spending review Topic 1]]+Dataset[[#This Row],[2024/25 From - Spending review Topic 2]]+Dataset[[#This Row],[2024/25 From - Spending review Topic 3]]+Dataset[[#This Row],[2024/25 From - Spending review Topic 4]]+Dataset[[#This Row],[2024/25 From - Other reallocations]]","v":0},{"$f":"Dataset[[#This Row],[2025/26 From - Spending review Topic 1]]+Dataset[[#This Row],[2025/26 From - Spending review Topic 2]]+Dataset[[#This Row],[2025/26 From - Spending review Topic 3]]+Dataset[[#This Row],[2025/26 From - Spending review Topic 4]]+Dataset[[#This Row],[2025/26 From - Other reallocations]]","v":0},{"$f":"Dataset[[#This Row],[2026/27 From - Spending review Topic 1]]+Dataset[[#This Row],[2026/27 From - Spending review Topic 2]]+Dataset[[#This Row],[2026/27 From - Spending review Topic 3]]+Dataset[[#This Row],[2026/27 From - Spending review Topic 4]]+Dataset[[#This Row],[2026/27 From - Other reallocations]]","v":0},{"$f":"Dataset[[#This Row],[2024/25 To - Spending review Topic 1]]+Dataset[[#This Row],[2024/25 To - Spending review Topic 2]]+Dataset[[#This Row],[2024/25 To - Spending review Topic 3]]+Dataset[[#This Row],[2024/25 To - Spending review Topic 4]]+Dataset[[#This Row],[2024/25 To - Other reallocations]]","v":0},{"$f":"Dataset[[#This Row],[2025/26 To - Spending review Topic 1]]+Dataset[[#This Row],[2025/26 To - Spending review Topic 2]]+Dataset[[#This Row],[2025/26 To - Spending review Topic 3]]+Dataset[[#This Row],[2025/26 To - Spending review Topic 4]]+Dataset[[#This Row],[2025/26 To - Other reallocations]]","v":0},{"$f":"Dataset[[#This Row],[2026/27 To - Spending review Topic 1]]+Dataset[[#This Row],[2026/27 To - Spending review Topic 2]]+Dataset[[#This Row],[2026/27 To - Spending review Topic 3]]+Dataset[[#This Row],[2026/27 To - Spending review Topic 4]]+Dataset[[#This Row],[2026/27 To - Other reallocations]]","v":0},{"$f":"Dataset[[#This Row],[2024/25 Reduction]]+Dataset[[#This Row],[2024/25 From - Total]]","v":0},{"$f":"Dataset[[#This Row],[2025/26 Reduction]]+Dataset[[#This Row],[2025/26 From - Total]]","v":0},{"$f":"Dataset[[#This Row],[2026/27 Reduction]]+Dataset[[#This Row],[2026/27 From - Total]]","v":0},{"$f":"Dataset[[#This Row],[2023/24 Reduction]]","v":0},{"$f":"SUM(Dataset[[#This Row],[2024/25 Reduction]],Dataset[[#This Row],[2024/25 From - Total]],Dataset[[#This Row],[2024/25 To - Total]])","v":0},{"$f":"SUM(Dataset[[#This Row],[2025/26 Reduction]],Dataset[[#This Row],[2025/26 From - Total]],Dataset[[#This Row],[2025/26 To - Total]])","v":0},{"$f":"SUM(Dataset[[#This Row],[2026/27 Reduction]],Dataset[[#This Row],[2026/27 From - Total]],Dataset[[#This Row],[2026/27 To - Total]])","v":0},{"$f":"Dataset[[#This Row],[2023/24 Baseline]]+Dataset[[#This Row],[2023/24 Total change]]","v":0},{"$f":"Dataset[[#This Row],[2024/25 Baseline]]+Dataset[[#This Row],[2024/25 Total change]]","v":0},{"$f":"Dataset[[#This Row],[2025/26 Baseline]]+Dataset[[#This Row],[2025/26 Total change]]","v":0},{"$f":"Dataset[[#This Row],[2026/27 Baseline]]+Dataset[[#This Row],[2026/27 Total change]]","v":0}]
["NAT|Non-transfer item","26|Science and technological services","2024_25","MTEF2024",26,1,3,44056,169,"26","01","03","044056","000169","26|01|03","01","01","02","15","15","01|01|02|15|15","National","Military Veterans","Administration","Financial Administration","Non-transfer item","Current","Current payments","Goods and services","Science and technological services","Science and technological services","Peace and security","Defence and state security","NAT",0,0,0,0,0,0,0,0,0,0,0,null,null,null,null,null,null,null,null,null,null,null,null,null,null,null,null,null,null,null,null,null,null,null,null,null,null,null,null,null,null,null,null,null,null,{"$f":"Dataset[[#This Row],[2024/25 From - Spending review Topic 1]]+Dataset[[#This Row],[2024/25 From - Spending review Topic 2]]+Dataset[[#This Row],[2024/25 From - Spending review Topic 3]]+Dataset[[#This Row],[2024/25 From - Spending review Topic 4]]+Dataset[[#This Row],[2024/25 From - Other reallocations]]","v":0},{"$f":"Dataset[[#This Row],[2025/26 From - Spending review Topic 1]]+Dataset[[#This Row],[2025/26 From - Spending review Topic 2]]+Dataset[[#This Row],[2025/26 From - Spending review Topic 3]]+Dataset[[#This Row],[2025/26 From - Spending review Topic 4]]+Dataset[[#This Row],[2025/26 From - Other reallocations]]","v":0},{"$f":"Dataset[[#This Row],[2026/27 From - Spending review Topic 1]]+Dataset[[#This Row],[2026/27 From - Spending review Topic 2]]+Dataset[[#This Row],[2026/27 From - Spending review Topic 3]]+Dataset[[#This Row],[2026/27 From - Spending review Topic 4]]+Dataset[[#This Row],[2026/27 From - Other reallocations]]","v":0},{"$f":"Dataset[[#This Row],[2024/25 To - Spending review Topic 1]]+Dataset[[#This Row],[2024/25 To - Spending review Topic 2]]+Dataset[[#This Row],[2024/25 To - Spending review Topic 3]]+Dataset[[#This Row],[2024/25 To - Spending review Topic 4]]+Dataset[[#This Row],[2024/25 To - Other reallocations]]","v":0},{"$f":"Dataset[[#This Row],[2025/26 To - Spending review Topic 1]]+Dataset[[#This Row],[2025/26 To - Spending review Topic 2]]+Dataset[[#This Row],[2025/26 To - Spending review Topic 3]]+Dataset[[#This Row],[2025/26 To - Spending review Topic 4]]+Dataset[[#This Row],[2025/26 To - Other reallocations]]","v":0},{"$f":"Dataset[[#This Row],[2026/27 To - Spending review Topic 1]]+Dataset[[#This Row],[2026/27 To - Spending review Topic 2]]+Dataset[[#This Row],[2026/27 To - Spending review Topic 3]]+Dataset[[#This Row],[2026/27 To - Spending review Topic 4]]+Dataset[[#This Row],[2026/27 To - Other reallocations]]","v":0},{"$f":"Dataset[[#This Row],[2024/25 Reduction]]+Dataset[[#This Row],[2024/25 From - Total]]","v":0},{"$f":"Dataset[[#This Row],[2025/26 Reduction]]+Dataset[[#This Row],[2025/26 From - Total]]","v":0},{"$f":"Dataset[[#This Row],[2026/27 Reduction]]+Dataset[[#This Row],[2026/27 From - Total]]","v":0},{"$f":"Dataset[[#This Row],[2023/24 Reduction]]","v":0},{"$f":"SUM(Dataset[[#This Row],[2024/25 Reduction]],Dataset[[#This Row],[2024/25 From - Total]],Dataset[[#This Row],[2024/25 To - Total]])","v":0},{"$f":"SUM(Dataset[[#This Row],[2025/26 Reduction]],Dataset[[#This Row],[2025/26 From - Total]],Dataset[[#This Row],[2025/26 To - Total]])","v":0},{"$f":"SUM(Dataset[[#This Row],[2026/27 Reduction]],Dataset[[#This Row],[2026/27 From - Total]],Dataset[[#This Row],[2026/27 To - Total]])","v":0},{"$f":"Dataset[[#This Row],[2023/24 Baseline]]+Dataset[[#This Row],[2023/24 Total change]]","v":0},{"$f":"Dataset[[#This Row],[2024/25 Baseline]]+Dataset[[#This Row],[2024/25 Total change]]","v":0},{"$f":"Dataset[[#This Row],[2025/26 Baseline]]+Dataset[[#This Row],[2025/26 Total change]]","v":0},{"$f":"Dataset[[#This Row],[2026/27 Baseline]]+Dataset[[#This Row],[2026/27 Total change]]","v":0}]
["NAT|Non-transfer item","26|Contractors","2024_25","MTEF2024",26,1,3,44057,170,"26","01","03","044057","000170","26|01|03","01","01","02","16","16","01|01|02|16|16","National","Military Veterans","Administration","Financial Administration","Non-transfer item","Current","Current payments","Goods and services","Contractors","Contractors","Peace and security","Defence and state security","NAT",0,0,0,0,0,0,0,0,0,0,0,null,null,null,null,null,null,null,null,null,null,null,null,null,null,null,null,null,null,null,null,null,null,null,null,null,null,null,null,null,null,null,null,null,null,{"$f":"Dataset[[#This Row],[2024/25 From - Spending review Topic 1]]+Dataset[[#This Row],[2024/25 From - Spending review Topic 2]]+Dataset[[#This Row],[2024/25 From - Spending review Topic 3]]+Dataset[[#This Row],[2024/25 From - Spending review Topic 4]]+Dataset[[#This Row],[2024/25 From - Other reallocations]]","v":0},{"$f":"Dataset[[#This Row],[2025/26 From - Spending review Topic 1]]+Dataset[[#This Row],[2025/26 From - Spending review Topic 2]]+Dataset[[#This Row],[2025/26 From - Spending review Topic 3]]+Dataset[[#This Row],[2025/26 From - Spending review Topic 4]]+Dataset[[#This Row],[2025/26 From - Other reallocations]]","v":0},{"$f":"Dataset[[#This Row],[2026/27 From - Spending review Topic 1]]+Dataset[[#This Row],[2026/27 From - Spending review Topic 2]]+Dataset[[#This Row],[2026/27 From - Spending review Topic 3]]+Dataset[[#This Row],[2026/27 From - Spending review Topic 4]]+Dataset[[#This Row],[2026/27 From - Other reallocations]]","v":0},{"$f":"Dataset[[#This Row],[2024/25 To - Spending review Topic 1]]+Dataset[[#This Row],[2024/25 To - Spending review Topic 2]]+Dataset[[#This Row],[2024/25 To - Spending review Topic 3]]+Dataset[[#This Row],[2024/25 To - Spending review Topic 4]]+Dataset[[#This Row],[2024/25 To - Other reallocations]]","v":0},{"$f":"Dataset[[#This Row],[2025/26 To - Spending review Topic 1]]+Dataset[[#This Row],[2025/26 To - Spending review Topic 2]]+Dataset[[#This Row],[2025/26 To - Spending review Topic 3]]+Dataset[[#This Row],[2025/26 To - Spending review Topic 4]]+Dataset[[#This Row],[2025/26 To - Other reallocations]]","v":0},{"$f":"Dataset[[#This Row],[2026/27 To - Spending review Topic 1]]+Dataset[[#This Row],[2026/27 To - Spending review Topic 2]]+Dataset[[#This Row],[2026/27 To - Spending review Topic 3]]+Dataset[[#This Row],[2026/27 To - Spending review Topic 4]]+Dataset[[#This Row],[2026/27 To - Other reallocations]]","v":0},{"$f":"Dataset[[#This Row],[2024/25 Reduction]]+Dataset[[#This Row],[2024/25 From - Total]]","v":0},{"$f":"Dataset[[#This Row],[2025/26 Reduction]]+Dataset[[#This Row],[2025/26 From - Total]]","v":0},{"$f":"Dataset[[#This Row],[2026/27 Reduction]]+Dataset[[#This Row],[2026/27 From - Total]]","v":0},{"$f":"Dataset[[#This Row],[2023/24 Reduction]]","v":0},{"$f":"SUM(Dataset[[#This Row],[2024/25 Reduction]],Dataset[[#This Row],[2024/25 From - Total]],Dataset[[#This Row],[2024/25 To - Total]])","v":0},{"$f":"SUM(Dataset[[#This Row],[2025/26 Reduction]],Dataset[[#This Row],[2025/26 From - Total]],Dataset[[#This Row],[2025/26 To - Total]])","v":0},{"$f":"SUM(Dataset[[#This Row],[2026/27 Reduction]],Dataset[[#This Row],[2026/27 From - Total]],Dataset[[#This Row],[2026/27 To - Total]])","v":0},{"$f":"Dataset[[#This Row],[2023/24 Baseline]]+Dataset[[#This Row],[2023/24 Total change]]","v":0},{"$f":"Dataset[[#This Row],[2024/25 Baseline]]+Dataset[[#This Row],[2024/25 Total change]]","v":0},{"$f":"Dataset[[#This Row],[2025/26 Baseline]]+Dataset[[#This Row],[2025/26 Total change]]","v":0},{"$f":"Dataset[[#This Row],[2026/27 Baseline]]+Dataset[[#This Row],[2026/27 Total change]]","v":0}]
["NAT|Non-transfer item","26|Agency and support/outsourced services","2024_25","MTEF2024",26,1,3,44058,171,"26","01","03","044058","000171","26|01|03","01","01","02","17","17","01|01|02|17|17","National","Military Veterans","Administration","Financial Administration","Non-transfer item","Current","Current payments","Goods and services","Agency and support/outsourced services","Agency and support/outsourced services","Peace and security","Defence and state security","NAT",0,0,0,0,0,0,0,0,0,0,0,null,null,null,null,null,null,null,null,null,null,null,null,null,null,null,null,null,null,null,null,null,null,null,null,null,null,null,null,null,null,null,null,null,null,{"$f":"Dataset[[#This Row],[2024/25 From - Spending review Topic 1]]+Dataset[[#This Row],[2024/25 From - Spending review Topic 2]]+Dataset[[#This Row],[2024/25 From - Spending review Topic 3]]+Dataset[[#This Row],[2024/25 From - Spending review Topic 4]]+Dataset[[#This Row],[2024/25 From - Other reallocations]]","v":0},{"$f":"Dataset[[#This Row],[2025/26 From - Spending review Topic 1]]+Dataset[[#This Row],[2025/26 From - Spending review Topic 2]]+Dataset[[#This Row],[2025/26 From - Spending review Topic 3]]+Dataset[[#This Row],[2025/26 From - Spending review Topic 4]]+Dataset[[#This Row],[2025/26 From - Other reallocations]]","v":0},{"$f":"Dataset[[#This Row],[2026/27 From - Spending review Topic 1]]+Dataset[[#This Row],[2026/27 From - Spending review Topic 2]]+Dataset[[#This Row],[2026/27 From - Spending review Topic 3]]+Dataset[[#This Row],[2026/27 From - Spending review Topic 4]]+Dataset[[#This Row],[2026/27 From - Other reallocations]]","v":0},{"$f":"Dataset[[#This Row],[2024/25 To - Spending review Topic 1]]+Dataset[[#This Row],[2024/25 To - Spending review Topic 2]]+Dataset[[#This Row],[2024/25 To - Spending review Topic 3]]+Dataset[[#This Row],[2024/25 To - Spending review Topic 4]]+Dataset[[#This Row],[2024/25 To - Other reallocations]]","v":0},{"$f":"Dataset[[#This Row],[2025/26 To - Spending review Topic 1]]+Dataset[[#This Row],[2025/26 To - Spending review Topic 2]]+Dataset[[#This Row],[2025/26 To - Spending review Topic 3]]+Dataset[[#This Row],[2025/26 To - Spending review Topic 4]]+Dataset[[#This Row],[2025/26 To - Other reallocations]]","v":0},{"$f":"Dataset[[#This Row],[2026/27 To - Spending review Topic 1]]+Dataset[[#This Row],[2026/27 To - Spending review Topic 2]]+Dataset[[#This Row],[2026/27 To - Spending review Topic 3]]+Dataset[[#This Row],[2026/27 To - Spending review Topic 4]]+Dataset[[#This Row],[2026/27 To - Other reallocations]]","v":0},{"$f":"Dataset[[#This Row],[2024/25 Reduction]]+Dataset[[#This Row],[2024/25 From - Total]]","v":0},{"$f":"Dataset[[#This Row],[2025/26 Reduction]]+Dataset[[#This Row],[2025/26 From - Total]]","v":0},{"$f":"Dataset[[#This Row],[2026/27 Reduction]]+Dataset[[#This Row],[2026/27 From - Total]]","v":0},{"$f":"Dataset[[#This Row],[2023/24 Reduction]]","v":0},{"$f":"SUM(Dataset[[#This Row],[2024/25 Reduction]],Dataset[[#This Row],[2024/25 From - Total]],Dataset[[#This Row],[2024/25 To - Total]])","v":0},{"$f":"SUM(Dataset[[#This Row],[2025/26 Reduction]],Dataset[[#This Row],[2025/26 From - Total]],Dataset[[#This Row],[2025/26 To - Total]])","v":0},{"$f":"SUM(Dataset[[#This Row],[2026/27 Reduction]],Dataset[[#This Row],[2026/27 From - Total]],Dataset[[#This Row],[2026/27 To - Total]])","v":0},{"$f":"Dataset[[#This Row],[2023/24 Baseline]]+Dataset[[#This Row],[2023/24 Total change]]","v":0},{"$f":"Dataset[[#This Row],[2024/25 Baseline]]+Dataset[[#This Row],[2024/25 Total change]]","v":0},{"$f":"Dataset[[#This Row],[2025/26 Baseline]]+Dataset[[#This Row],[2025/26 Total change]]","v":0},{"$f":"Dataset[[#This Row],[2026/27 Baseline]]+Dataset[[#This Row],[2026/27 Total change]]","v":0}]
["NAT|Non-transfer item","26|Entertainment","2024_25","MTEF2024",26,1,3,44059,172,"26","01","03","044059","000172","26|01|03","01","01","02","18","18","01|01|02|18|18","National","Military Veterans","Administration","Financial Administration","Non-transfer item","Current","Current payments","Goods and services","Entertainment","Entertainment","Peace and security","Defence and state security","NAT",0,0,0,0,0,0,0,0,0,0,0,null,null,null,null,null,null,null,null,null,null,null,null,null,null,null,null,null,null,null,null,null,null,null,null,null,null,null,null,null,null,null,null,null,null,{"$f":"Dataset[[#This Row],[2024/25 From - Spending review Topic 1]]+Dataset[[#This Row],[2024/25 From - Spending review Topic 2]]+Dataset[[#This Row],[2024/25 From - Spending review Topic 3]]+Dataset[[#This Row],[2024/25 From - Spending review Topic 4]]+Dataset[[#This Row],[2024/25 From - Other reallocations]]","v":0},{"$f":"Dataset[[#This Row],[2025/26 From - Spending review Topic 1]]+Dataset[[#This Row],[2025/26 From - Spending review Topic 2]]+Dataset[[#This Row],[2025/26 From - Spending review Topic 3]]+Dataset[[#This Row],[2025/26 From - Spending review Topic 4]]+Dataset[[#This Row],[2025/26 From - Other reallocations]]","v":0},{"$f":"Dataset[[#This Row],[2026/27 From - Spending review Topic 1]]+Dataset[[#This Row],[2026/27 From - Spending review Topic 2]]+Dataset[[#This Row],[2026/27 From - Spending review Topic 3]]+Dataset[[#This Row],[2026/27 From - Spending review Topic 4]]+Dataset[[#This Row],[2026/27 From - Other reallocations]]","v":0},{"$f":"Dataset[[#This Row],[2024/25 To - Spending review Topic 1]]+Dataset[[#This Row],[2024/25 To - Spending review Topic 2]]+Dataset[[#This Row],[2024/25 To - Spending review Topic 3]]+Dataset[[#This Row],[2024/25 To - Spending review Topic 4]]+Dataset[[#This Row],[2024/25 To - Other reallocations]]","v":0},{"$f":"Dataset[[#This Row],[2025/26 To - Spending review Topic 1]]+Dataset[[#This Row],[2025/26 To - Spending review Topic 2]]+Dataset[[#This Row],[2025/26 To - Spending review Topic 3]]+Dataset[[#This Row],[2025/26 To - Spending review Topic 4]]+Dataset[[#This Row],[2025/26 To - Other reallocations]]","v":0},{"$f":"Dataset[[#This Row],[2026/27 To - Spending review Topic 1]]+Dataset[[#This Row],[2026/27 To - Spending review Topic 2]]+Dataset[[#This Row],[2026/27 To - Spending review Topic 3]]+Dataset[[#This Row],[2026/27 To - Spending review Topic 4]]+Dataset[[#This Row],[2026/27 To - Other reallocations]]","v":0},{"$f":"Dataset[[#This Row],[2024/25 Reduction]]+Dataset[[#This Row],[2024/25 From - Total]]","v":0},{"$f":"Dataset[[#This Row],[2025/26 Reduction]]+Dataset[[#This Row],[2025/26 From - Total]]","v":0},{"$f":"Dataset[[#This Row],[2026/27 Reduction]]+Dataset[[#This Row],[2026/27 From - Total]]","v":0},{"$f":"Dataset[[#This Row],[2023/24 Reduction]]","v":0},{"$f":"SUM(Dataset[[#This Row],[2024/25 Reduction]],Dataset[[#This Row],[2024/25 From - Total]],Dataset[[#This Row],[2024/25 To - Total]])","v":0},{"$f":"SUM(Dataset[[#This Row],[2025/26 Reduction]],Dataset[[#This Row],[2025/26 From - Total]],Dataset[[#This Row],[2025/26 To - Total]])","v":0},{"$f":"SUM(Dataset[[#This Row],[2026/27 Reduction]],Dataset[[#This Row],[2026/27 From - Total]],Dataset[[#This Row],[2026/27 To - Total]])","v":0},{"$f":"Dataset[[#This Row],[2023/24 Baseline]]+Dataset[[#This Row],[2023/24 Total change]]","v":0},{"$f":"Dataset[[#This Row],[2024/25 Baseline]]+Dataset[[#This Row],[2024/25 Total change]]","v":0},{"$f":"Dataset[[#This Row],[2025/26 Baseline]]+Dataset[[#This Row],[2025/26 Total change]]","v":0},{"$f":"Dataset[[#This Row],[2026/27 Baseline]]+Dataset[[#This Row],[2026/27 Total change]]","v":0}]
["NAT|Non-transfer item","26|Fleet services (including government motor transport)","2024_25","MTEF2024",26,1,3,44060,173,"26","01","03","044060","000173","26|01|03","01","01","02","19","19","01|01|02|19|19","National","Military Veterans","Administration","Financial Administration","Non-transfer item","Current","Current payments","Goods and services","Fleet services (including government motor transport)","Fleet services (including government motor transport)","Peace and security","Defence and state security","NAT",0,0,0,0,0,0,0,0,0,0,0,null,null,null,null,null,null,null,null,null,null,null,null,null,null,null,null,null,null,null,null,null,null,null,null,null,null,null,null,null,null,null,null,null,null,{"$f":"Dataset[[#This Row],[2024/25 From - Spending review Topic 1]]+Dataset[[#This Row],[2024/25 From - Spending review Topic 2]]+Dataset[[#This Row],[2024/25 From - Spending review Topic 3]]+Dataset[[#This Row],[2024/25 From - Spending review Topic 4]]+Dataset[[#This Row],[2024/25 From - Other reallocations]]","v":0},{"$f":"Dataset[[#This Row],[2025/26 From - Spending review Topic 1]]+Dataset[[#This Row],[2025/26 From - Spending review Topic 2]]+Dataset[[#This Row],[2025/26 From - Spending review Topic 3]]+Dataset[[#This Row],[2025/26 From - Spending review Topic 4]]+Dataset[[#This Row],[2025/26 From - Other reallocations]]","v":0},{"$f":"Dataset[[#This Row],[2026/27 From - Spending review Topic 1]]+Dataset[[#This Row],[2026/27 From - Spending review Topic 2]]+Dataset[[#This Row],[2026/27 From - Spending review Topic 3]]+Dataset[[#This Row],[2026/27 From - Spending review Topic 4]]+Dataset[[#This Row],[2026/27 From - Other reallocations]]","v":0},{"$f":"Dataset[[#This Row],[2024/25 To - Spending review Topic 1]]+Dataset[[#This Row],[2024/25 To - Spending review Topic 2]]+Dataset[[#This Row],[2024/25 To - Spending review Topic 3]]+Dataset[[#This Row],[2024/25 To - Spending review Topic 4]]+Dataset[[#This Row],[2024/25 To - Other reallocations]]","v":0},{"$f":"Dataset[[#This Row],[2025/26 To - Spending review Topic 1]]+Dataset[[#This Row],[2025/26 To - Spending review Topic 2]]+Dataset[[#This Row],[2025/26 To - Spending review Topic 3]]+Dataset[[#This Row],[2025/26 To - Spending review Topic 4]]+Dataset[[#This Row],[2025/26 To - Other reallocations]]","v":0},{"$f":"Dataset[[#This Row],[2026/27 To - Spending review Topic 1]]+Dataset[[#This Row],[2026/27 To - Spending review Topic 2]]+Dataset[[#This Row],[2026/27 To - Spending review Topic 3]]+Dataset[[#This Row],[2026/27 To - Spending review Topic 4]]+Dataset[[#This Row],[2026/27 To - Other reallocations]]","v":0},{"$f":"Dataset[[#This Row],[2024/25 Reduction]]+Dataset[[#This Row],[2024/25 From - Total]]","v":0},{"$f":"Dataset[[#This Row],[2025/26 Reduction]]+Dataset[[#This Row],[2025/26 From - Total]]","v":0},{"$f":"Dataset[[#This Row],[2026/27 Reduction]]+Dataset[[#This Row],[2026/27 From - Total]]","v":0},{"$f":"Dataset[[#This Row],[2023/24 Reduction]]","v":0},{"$f":"SUM(Dataset[[#This Row],[2024/25 Reduction]],Dataset[[#This Row],[2024/25 From - Total]],Dataset[[#This Row],[2024/25 To - Total]])","v":0},{"$f":"SUM(Dataset[[#This Row],[2025/26 Reduction]],Dataset[[#This Row],[2025/26 From - Total]],Dataset[[#This Row],[2025/26 To - Total]])","v":0},{"$f":"SUM(Dataset[[#This Row],[2026/27 Reduction]],Dataset[[#This Row],[2026/27 From - Total]],Dataset[[#This Row],[2026/27 To - Total]])","v":0},{"$f":"Dataset[[#This Row],[2023/24 Baseline]]+Dataset[[#This Row],[2023/24 Total change]]","v":0},{"$f":"Dataset[[#This Row],[2024/25 Baseline]]+Dataset[[#This Row],[2024/25 Total change]]","v":0},{"$f":"Dataset[[#This Row],[2025/26 Baseline]]+Dataset[[#This Row],[2025/26 Total change]]","v":0},{"$f":"Dataset[[#This Row],[2026/27 Baseline]]+Dataset[[#This Row],[2026/27 Total change]]","v":0}]
["NAT|Non-transfer item","26|Housing","2024_25","MTEF2024",26,1,3,44061,174,"26","01","03","044061","000174","26|01|03","01","01","02","20","20","01|01|02|20|20","National","Military Veterans","Administration","Financial Administration","Non-transfer item","Current","Current payments","Goods and services","Housing","Housing","Peace and security","Defence and state security","NAT",0,0,0,0,0,0,0,0,0,0,0,null,null,null,null,null,null,null,null,null,null,null,null,null,null,null,null,null,null,null,null,null,null,null,null,null,null,null,null,null,null,null,null,null,null,{"$f":"Dataset[[#This Row],[2024/25 From - Spending review Topic 1]]+Dataset[[#This Row],[2024/25 From - Spending review Topic 2]]+Dataset[[#This Row],[2024/25 From - Spending review Topic 3]]+Dataset[[#This Row],[2024/25 From - Spending review Topic 4]]+Dataset[[#This Row],[2024/25 From - Other reallocations]]","v":0},{"$f":"Dataset[[#This Row],[2025/26 From - Spending review Topic 1]]+Dataset[[#This Row],[2025/26 From - Spending review Topic 2]]+Dataset[[#This Row],[2025/26 From - Spending review Topic 3]]+Dataset[[#This Row],[2025/26 From - Spending review Topic 4]]+Dataset[[#This Row],[2025/26 From - Other reallocations]]","v":0},{"$f":"Dataset[[#This Row],[2026/27 From - Spending review Topic 1]]+Dataset[[#This Row],[2026/27 From - Spending review Topic 2]]+Dataset[[#This Row],[2026/27 From - Spending review Topic 3]]+Dataset[[#This Row],[2026/27 From - Spending review Topic 4]]+Dataset[[#This Row],[2026/27 From - Other reallocations]]","v":0},{"$f":"Dataset[[#This Row],[2024/25 To - Spending review Topic 1]]+Dataset[[#This Row],[2024/25 To - Spending review Topic 2]]+Dataset[[#This Row],[2024/25 To - Spending review Topic 3]]+Dataset[[#This Row],[2024/25 To - Spending review Topic 4]]+Dataset[[#This Row],[2024/25 To - Other reallocations]]","v":0},{"$f":"Dataset[[#This Row],[2025/26 To - Spending review Topic 1]]+Dataset[[#This Row],[2025/26 To - Spending review Topic 2]]+Dataset[[#This Row],[2025/26 To - Spending review Topic 3]]+Dataset[[#This Row],[2025/26 To - Spending review Topic 4]]+Dataset[[#This Row],[2025/26 To - Other reallocations]]","v":0},{"$f":"Dataset[[#This Row],[2026/27 To - Spending review Topic 1]]+Dataset[[#This Row],[2026/27 To - Spending review Topic 2]]+Dataset[[#This Row],[2026/27 To - Spending review Topic 3]]+Dataset[[#This Row],[2026/27 To - Spending review Topic 4]]+Dataset[[#This Row],[2026/27 To - Other reallocations]]","v":0},{"$f":"Dataset[[#This Row],[2024/25 Reduction]]+Dataset[[#This Row],[2024/25 From - Total]]","v":0},{"$f":"Dataset[[#This Row],[2025/26 Reduction]]+Dataset[[#This Row],[2025/26 From - Total]]","v":0},{"$f":"Dataset[[#This Row],[2026/27 Reduction]]+Dataset[[#This Row],[2026/27 From - Total]]","v":0},{"$f":"Dataset[[#This Row],[2023/24 Reduction]]","v":0},{"$f":"SUM(Dataset[[#This Row],[2024/25 Reduction]],Dataset[[#This Row],[2024/25 From - Total]],Dataset[[#This Row],[2024/25 To - Total]])","v":0},{"$f":"SUM(Dataset[[#This Row],[2025/26 Reduction]],Dataset[[#This Row],[2025/26 From - Total]],Dataset[[#This Row],[2025/26 To - Total]])","v":0},{"$f":"SUM(Dataset[[#This Row],[2026/27 Reduction]],Dataset[[#This Row],[2026/27 From - Total]],Dataset[[#This Row],[2026/27 To - Total]])","v":0},{"$f":"Dataset[[#This Row],[2023/24 Baseline]]+Dataset[[#This Row],[2023/24 Total change]]","v":0},{"$f":"Dataset[[#This Row],[2024/25 Baseline]]+Dataset[[#This Row],[2024/25 Total change]]","v":0},{"$f":"Dataset[[#This Row],[2025/26 Baseline]]+Dataset[[#This Row],[2025/26 Total change]]","v":0},{"$f":"Dataset[[#This Row],[2026/27 Baseline]]+Dataset[[#This Row],[2026/27 Total change]]","v":0}]
["NAT|Non-transfer item","26|Inventory: Clothing material and accessories","2024_25","MTEF2024",26,1,3,44062,175,"26","01","03","044062","000175","26|01|03","01","01","02","21","21","01|01|02|21|21","National","Military Veterans","Administration","Financial Administration","Non-transfer item","Current","Current payments","Goods and services","Inventory: Clothing material and accessories","Inventory: Clothing material and accessories","Peace and security","Defence and state security","NAT",0,0,0,0,0,0,0,0,0,0,0,null,null,null,null,null,null,null,null,null,null,null,null,null,null,null,null,null,null,null,null,null,null,null,null,null,null,null,null,null,null,null,null,null,null,{"$f":"Dataset[[#This Row],[2024/25 From - Spending review Topic 1]]+Dataset[[#This Row],[2024/25 From - Spending review Topic 2]]+Dataset[[#This Row],[2024/25 From - Spending review Topic 3]]+Dataset[[#This Row],[2024/25 From - Spending review Topic 4]]+Dataset[[#This Row],[2024/25 From - Other reallocations]]","v":0},{"$f":"Dataset[[#This Row],[2025/26 From - Spending review Topic 1]]+Dataset[[#This Row],[2025/26 From - Spending review Topic 2]]+Dataset[[#This Row],[2025/26 From - Spending review Topic 3]]+Dataset[[#This Row],[2025/26 From - Spending review Topic 4]]+Dataset[[#This Row],[2025/26 From - Other reallocations]]","v":0},{"$f":"Dataset[[#This Row],[2026/27 From - Spending review Topic 1]]+Dataset[[#This Row],[2026/27 From - Spending review Topic 2]]+Dataset[[#This Row],[2026/27 From - Spending review Topic 3]]+Dataset[[#This Row],[2026/27 From - Spending review Topic 4]]+Dataset[[#This Row],[2026/27 From - Other reallocations]]","v":0},{"$f":"Dataset[[#This Row],[2024/25 To - Spending review Topic 1]]+Dataset[[#This Row],[2024/25 To - Spending review Topic 2]]+Dataset[[#This Row],[2024/25 To - Spending review Topic 3]]+Dataset[[#This Row],[2024/25 To - Spending review Topic 4]]+Dataset[[#This Row],[2024/25 To - Other reallocations]]","v":0},{"$f":"Dataset[[#This Row],[2025/26 To - Spending review Topic 1]]+Dataset[[#This Row],[2025/26 To - Spending review Topic 2]]+Dataset[[#This Row],[2025/26 To - Spending review Topic 3]]+Dataset[[#This Row],[2025/26 To - Spending review Topic 4]]+Dataset[[#This Row],[2025/26 To - Other reallocations]]","v":0},{"$f":"Dataset[[#This Row],[2026/27 To - Spending review Topic 1]]+Dataset[[#This Row],[2026/27 To - Spending review Topic 2]]+Dataset[[#This Row],[2026/27 To - Spending review Topic 3]]+Dataset[[#This Row],[2026/27 To - Spending review Topic 4]]+Dataset[[#This Row],[2026/27 To - Other reallocations]]","v":0},{"$f":"Dataset[[#This Row],[2024/25 Reduction]]+Dataset[[#This Row],[2024/25 From - Total]]","v":0},{"$f":"Dataset[[#This Row],[2025/26 Reduction]]+Dataset[[#This Row],[2025/26 From - Total]]","v":0},{"$f":"Dataset[[#This Row],[2026/27 Reduction]]+Dataset[[#This Row],[2026/27 From - Total]]","v":0},{"$f":"Dataset[[#This Row],[2023/24 Reduction]]","v":0},{"$f":"SUM(Dataset[[#This Row],[2024/25 Reduction]],Dataset[[#This Row],[2024/25 From - Total]],Dataset[[#This Row],[2024/25 To - Total]])","v":0},{"$f":"SUM(Dataset[[#This Row],[2025/26 Reduction]],Dataset[[#This Row],[2025/26 From - Total]],Dataset[[#This Row],[2025/26 To - Total]])","v":0},{"$f":"SUM(Dataset[[#This Row],[2026/27 Reduction]],Dataset[[#This Row],[2026/27 From - Total]],Dataset[[#This Row],[2026/27 To - Total]])","v":0},{"$f":"Dataset[[#This Row],[2023/24 Baseline]]+Dataset[[#This Row],[2023/24 Total change]]","v":0},{"$f":"Dataset[[#This Row],[2024/25 Baseline]]+Dataset[[#This Row],[2024/25 Total change]]","v":0},{"$f":"Dataset[[#This Row],[2025/26 Baseline]]+Dataset[[#This Row],[2025/26 Total change]]","v":0},{"$f":"Dataset[[#This Row],[2026/27 Baseline]]+Dataset[[#This Row],[2026/27 Total change]]","v":0}]
["NAT|Non-transfer item","26|Inventory: Farming supplies","2024_25","MTEF2024",26,1,3,44063,176,"26","01","03","044063","000176","26|01|03","01","01","02","22","22","01|01|02|22|22","National","Military Veterans","Administration","Financial Administration","Non-transfer item","Current","Current payments","Goods and services","Inventory: Farming supplies","Inventory: Farming supplies","Peace and security","Defence and state security","NAT",0,0,0,0,0,0,0,0,0,0,0,null,null,null,null,null,null,null,null,null,null,null,null,null,null,null,null,null,null,null,null,null,null,null,null,null,null,null,null,null,null,null,null,null,null,{"$f":"Dataset[[#This Row],[2024/25 From - Spending review Topic 1]]+Dataset[[#This Row],[2024/25 From - Spending review Topic 2]]+Dataset[[#This Row],[2024/25 From - Spending review Topic 3]]+Dataset[[#This Row],[2024/25 From - Spending review Topic 4]]+Dataset[[#This Row],[2024/25 From - Other reallocations]]","v":0},{"$f":"Dataset[[#This Row],[2025/26 From - Spending review Topic 1]]+Dataset[[#This Row],[2025/26 From - Spending review Topic 2]]+Dataset[[#This Row],[2025/26 From - Spending review Topic 3]]+Dataset[[#This Row],[2025/26 From - Spending review Topic 4]]+Dataset[[#This Row],[2025/26 From - Other reallocations]]","v":0},{"$f":"Dataset[[#This Row],[2026/27 From - Spending review Topic 1]]+Dataset[[#This Row],[2026/27 From - Spending review Topic 2]]+Dataset[[#This Row],[2026/27 From - Spending review Topic 3]]+Dataset[[#This Row],[2026/27 From - Spending review Topic 4]]+Dataset[[#This Row],[2026/27 From - Other reallocations]]","v":0},{"$f":"Dataset[[#This Row],[2024/25 To - Spending review Topic 1]]+Dataset[[#This Row],[2024/25 To - Spending review Topic 2]]+Dataset[[#This Row],[2024/25 To - Spending review Topic 3]]+Dataset[[#This Row],[2024/25 To - Spending review Topic 4]]+Dataset[[#This Row],[2024/25 To - Other reallocations]]","v":0},{"$f":"Dataset[[#This Row],[2025/26 To - Spending review Topic 1]]+Dataset[[#This Row],[2025/26 To - Spending review Topic 2]]+Dataset[[#This Row],[2025/26 To - Spending review Topic 3]]+Dataset[[#This Row],[2025/26 To - Spending review Topic 4]]+Dataset[[#This Row],[2025/26 To - Other reallocations]]","v":0},{"$f":"Dataset[[#This Row],[2026/27 To - Spending review Topic 1]]+Dataset[[#This Row],[2026/27 To - Spending review Topic 2]]+Dataset[[#This Row],[2026/27 To - Spending review Topic 3]]+Dataset[[#This Row],[2026/27 To - Spending review Topic 4]]+Dataset[[#This Row],[2026/27 To - Other reallocations]]","v":0},{"$f":"Dataset[[#This Row],[2024/25 Reduction]]+Dataset[[#This Row],[2024/25 From - Total]]","v":0},{"$f":"Dataset[[#This Row],[2025/26 Reduction]]+Dataset[[#This Row],[2025/26 From - Total]]","v":0},{"$f":"Dataset[[#This Row],[2026/27 Reduction]]+Dataset[[#This Row],[2026/27 From - Total]]","v":0},{"$f":"Dataset[[#This Row],[2023/24 Reduction]]","v":0},{"$f":"SUM(Dataset[[#This Row],[2024/25 Reduction]],Dataset[[#This Row],[2024/25 From - Total]],Dataset[[#This Row],[2024/25 To - Total]])","v":0},{"$f":"SUM(Dataset[[#This Row],[2025/26 Reduction]],Dataset[[#This Row],[2025/26 From - Total]],Dataset[[#This Row],[2025/26 To - Total]])","v":0},{"$f":"SUM(Dataset[[#This Row],[2026/27 Reduction]],Dataset[[#This Row],[2026/27 From - Total]],Dataset[[#This Row],[2026/27 To - Total]])","v":0},{"$f":"Dataset[[#This Row],[2023/24 Baseline]]+Dataset[[#This Row],[2023/24 Total change]]","v":0},{"$f":"Dataset[[#This Row],[2024/25 Baseline]]+Dataset[[#This Row],[2024/25 Total change]]","v":0},{"$f":"Dataset[[#This Row],[2025/26 Baseline]]+Dataset[[#This Row],[2025/26 Total change]]","v":0},{"$f":"Dataset[[#This Row],[2026/27 Baseline]]+Dataset[[#This Row],[2026/27 Total change]]","v":0}]
["NAT|Non-transfer item","26|Inventory: Food and food supplies","2024_25","MTEF2024",26,1,3,44064,177,"26","01","03","044064","000177","26|01|03","01","01","02","23","23","01|01|02|23|23","National","Military Veterans","Administration","Financial Administration","Non-transfer item","Current","Current payments","Goods and services","Inventory: Food and food supplies","Inventory: Food and food supplies","Peace and security","Defence and state security","NAT",0,0,0,0,0,0,0,0,0,0,0,null,null,null,null,null,null,null,null,null,null,null,null,null,null,null,null,null,null,null,null,null,null,null,null,null,null,null,null,null,null,null,null,null,null,{"$f":"Dataset[[#This Row],[2024/25 From - Spending review Topic 1]]+Dataset[[#This Row],[2024/25 From - Spending review Topic 2]]+Dataset[[#This Row],[2024/25 From - Spending review Topic 3]]+Dataset[[#This Row],[2024/25 From - Spending review Topic 4]]+Dataset[[#This Row],[2024/25 From - Other reallocations]]","v":0},{"$f":"Dataset[[#This Row],[2025/26 From - Spending review Topic 1]]+Dataset[[#This Row],[2025/26 From - Spending review Topic 2]]+Dataset[[#This Row],[2025/26 From - Spending review Topic 3]]+Dataset[[#This Row],[2025/26 From - Spending review Topic 4]]+Dataset[[#This Row],[2025/26 From - Other reallocations]]","v":0},{"$f":"Dataset[[#This Row],[2026/27 From - Spending review Topic 1]]+Dataset[[#This Row],[2026/27 From - Spending review Topic 2]]+Dataset[[#This Row],[2026/27 From - Spending review Topic 3]]+Dataset[[#This Row],[2026/27 From - Spending review Topic 4]]+Dataset[[#This Row],[2026/27 From - Other reallocations]]","v":0},{"$f":"Dataset[[#This Row],[2024/25 To - Spending review Topic 1]]+Dataset[[#This Row],[2024/25 To - Spending review Topic 2]]+Dataset[[#This Row],[2024/25 To - Spending review Topic 3]]+Dataset[[#This Row],[2024/25 To - Spending review Topic 4]]+Dataset[[#This Row],[2024/25 To - Other reallocations]]","v":0},{"$f":"Dataset[[#This Row],[2025/26 To - Spending review Topic 1]]+Dataset[[#This Row],[2025/26 To - Spending review Topic 2]]+Dataset[[#This Row],[2025/26 To - Spending review Topic 3]]+Dataset[[#This Row],[2025/26 To - Spending review Topic 4]]+Dataset[[#This Row],[2025/26 To - Other reallocations]]","v":0},{"$f":"Dataset[[#This Row],[2026/27 To - Spending review Topic 1]]+Dataset[[#This Row],[2026/27 To - Spending review Topic 2]]+Dataset[[#This Row],[2026/27 To - Spending review Topic 3]]+Dataset[[#This Row],[2026/27 To - Spending review Topic 4]]+Dataset[[#This Row],[2026/27 To - Other reallocations]]","v":0},{"$f":"Dataset[[#This Row],[2024/25 Reduction]]+Dataset[[#This Row],[2024/25 From - Total]]","v":0},{"$f":"Dataset[[#This Row],[2025/26 Reduction]]+Dataset[[#This Row],[2025/26 From - Total]]","v":0},{"$f":"Dataset[[#This Row],[2026/27 Reduction]]+Dataset[[#This Row],[2026/27 From - Total]]","v":0},{"$f":"Dataset[[#This Row],[2023/24 Reduction]]","v":0},{"$f":"SUM(Dataset[[#This Row],[2024/25 Reduction]],Dataset[[#This Row],[2024/25 From - Total]],Dataset[[#This Row],[2024/25 To - Total]])","v":0},{"$f":"SUM(Dataset[[#This Row],[2025/26 Reduction]],Dataset[[#This Row],[2025/26 From - Total]],Dataset[[#This Row],[2025/26 To - Total]])","v":0},{"$f":"SUM(Dataset[[#This Row],[2026/27 Reduction]],Dataset[[#This Row],[2026/27 From - Total]],Dataset[[#This Row],[2026/27 To - Total]])","v":0},{"$f":"Dataset[[#This Row],[2023/24 Baseline]]+Dataset[[#This Row],[2023/24 Total change]]","v":0},{"$f":"Dataset[[#This Row],[2024/25 Baseline]]+Dataset[[#This Row],[2024/25 Total change]]","v":0},{"$f":"Dataset[[#This Row],[2025/26 Baseline]]+Dataset[[#This Row],[2025/26 Total change]]","v":0},{"$f":"Dataset[[#This Row],[2026/27 Baseline]]+Dataset[[#This Row],[2026/27 Total change]]","v":0}]
["NAT|Non-transfer item","26|Inventory: Fuel, oil and gas","2024_25","MTEF2024",26,1,3,44065,178,"26","01","03","044065","000178","26|01|03","01","01","02","24","24","01|01|02|24|24","National","Military Veterans","Administration","Financial Administration","Non-transfer item","Current","Current payments","Goods and services","Inventory: Fuel, oil and gas","Inventory: Fuel, oil and gas","Peace and security","Defence and state security","NAT",0,0,0,0,0,0,0,0,0,0,0,null,null,null,null,null,null,null,null,null,null,null,null,null,null,null,null,null,null,null,null,null,null,null,null,null,null,null,null,null,null,null,null,null,null,{"$f":"Dataset[[#This Row],[2024/25 From - Spending review Topic 1]]+Dataset[[#This Row],[2024/25 From - Spending review Topic 2]]+Dataset[[#This Row],[2024/25 From - Spending review Topic 3]]+Dataset[[#This Row],[2024/25 From - Spending review Topic 4]]+Dataset[[#This Row],[2024/25 From - Other reallocations]]","v":0},{"$f":"Dataset[[#This Row],[2025/26 From - Spending review Topic 1]]+Dataset[[#This Row],[2025/26 From - Spending review Topic 2]]+Dataset[[#This Row],[2025/26 From - Spending review Topic 3]]+Dataset[[#This Row],[2025/26 From - Spending review Topic 4]]+Dataset[[#This Row],[2025/26 From - Other reallocations]]","v":0},{"$f":"Dataset[[#This Row],[2026/27 From - Spending review Topic 1]]+Dataset[[#This Row],[2026/27 From - Spending review Topic 2]]+Dataset[[#This Row],[2026/27 From - Spending review Topic 3]]+Dataset[[#This Row],[2026/27 From - Spending review Topic 4]]+Dataset[[#This Row],[2026/27 From - Other reallocations]]","v":0},{"$f":"Dataset[[#This Row],[2024/25 To - Spending review Topic 1]]+Dataset[[#This Row],[2024/25 To - Spending review Topic 2]]+Dataset[[#This Row],[2024/25 To - Spending review Topic 3]]+Dataset[[#This Row],[2024/25 To - Spending review Topic 4]]+Dataset[[#This Row],[2024/25 To - Other reallocations]]","v":0},{"$f":"Dataset[[#This Row],[2025/26 To - Spending review Topic 1]]+Dataset[[#This Row],[2025/26 To - Spending review Topic 2]]+Dataset[[#This Row],[2025/26 To - Spending review Topic 3]]+Dataset[[#This Row],[2025/26 To - Spending review Topic 4]]+Dataset[[#This Row],[2025/26 To - Other reallocations]]","v":0},{"$f":"Dataset[[#This Row],[2026/27 To - Spending review Topic 1]]+Dataset[[#This Row],[2026/27 To - Spending review Topic 2]]+Dataset[[#This Row],[2026/27 To - Spending review Topic 3]]+Dataset[[#This Row],[2026/27 To - Spending review Topic 4]]+Dataset[[#This Row],[2026/27 To - Other reallocations]]","v":0},{"$f":"Dataset[[#This Row],[2024/25 Reduction]]+Dataset[[#This Row],[2024/25 From - Total]]","v":0},{"$f":"Dataset[[#This Row],[2025/26 Reduction]]+Dataset[[#This Row],[2025/26 From - Total]]","v":0},{"$f":"Dataset[[#This Row],[2026/27 Reduction]]+Dataset[[#This Row],[2026/27 From - Total]]","v":0},{"$f":"Dataset[[#This Row],[2023/24 Reduction]]","v":0},{"$f":"SUM(Dataset[[#This Row],[2024/25 Reduction]],Dataset[[#This Row],[2024/25 From - Total]],Dataset[[#This Row],[2024/25 To - Total]])","v":0},{"$f":"SUM(Dataset[[#This Row],[2025/26 Reduction]],Dataset[[#This Row],[2025/26 From - Total]],Dataset[[#This Row],[2025/26 To - Total]])","v":0},{"$f":"SUM(Dataset[[#This Row],[2026/27 Reduction]],Dataset[[#This Row],[2026/27 From - Total]],Dataset[[#This Row],[2026/27 To - Total]])","v":0},{"$f":"Dataset[[#This Row],[2023/24 Baseline]]+Dataset[[#This Row],[2023/24 Total change]]","v":0},{"$f":"Dataset[[#This Row],[2024/25 Baseline]]+Dataset[[#This Row],[2024/25 Total change]]","v":0},{"$f":"Dataset[[#This Row],[2025/26 Baseline]]+Dataset[[#This Row],[2025/26 Total change]]","v":0},{"$f":"Dataset[[#This Row],[2026/27 Baseline]]+Dataset[[#This Row],[2026/27 Total change]]","v":0}]
["NAT|Non-transfer item","26|Inventory: Learner and teacher support material","2024_25","MTEF2024",26,1,3,44066,179,"26","01","03","044066","000179","26|01|03","01","01","02","25","25","01|01|02|25|25","National","Military Veterans","Administration","Financial Administration","Non-transfer item","Current","Current payments","Goods and services","Inventory: Learner and teacher support material","Inventory: Learner and teacher support material","Peace and security","Defence and state security","NAT",0,0,0,0,0,0,0,0,0,0,0,null,null,null,null,null,null,null,null,null,null,null,null,null,null,null,null,null,null,null,null,null,null,null,null,null,null,null,null,null,null,null,null,null,null,{"$f":"Dataset[[#This Row],[2024/25 From - Spending review Topic 1]]+Dataset[[#This Row],[2024/25 From - Spending review Topic 2]]+Dataset[[#This Row],[2024/25 From - Spending review Topic 3]]+Dataset[[#This Row],[2024/25 From - Spending review Topic 4]]+Dataset[[#This Row],[2024/25 From - Other reallocations]]","v":0},{"$f":"Dataset[[#This Row],[2025/26 From - Spending review Topic 1]]+Dataset[[#This Row],[2025/26 From - Spending review Topic 2]]+Dataset[[#This Row],[2025/26 From - Spending review Topic 3]]+Dataset[[#This Row],[2025/26 From - Spending review Topic 4]]+Dataset[[#This Row],[2025/26 From - Other reallocations]]","v":0},{"$f":"Dataset[[#This Row],[2026/27 From - Spending review Topic 1]]+Dataset[[#This Row],[2026/27 From - Spending review Topic 2]]+Dataset[[#This Row],[2026/27 From - Spending review Topic 3]]+Dataset[[#This Row],[2026/27 From - Spending review Topic 4]]+Dataset[[#This Row],[2026/27 From - Other reallocations]]","v":0},{"$f":"Dataset[[#This Row],[2024/25 To - Spending review Topic 1]]+Dataset[[#This Row],[2024/25 To - Spending review Topic 2]]+Dataset[[#This Row],[2024/25 To - Spending review Topic 3]]+Dataset[[#This Row],[2024/25 To - Spending review Topic 4]]+Dataset[[#This Row],[2024/25 To - Other reallocations]]","v":0},{"$f":"Dataset[[#This Row],[2025/26 To - Spending review Topic 1]]+Dataset[[#This Row],[2025/26 To - Spending review Topic 2]]+Dataset[[#This Row],[2025/26 To - Spending review Topic 3]]+Dataset[[#This Row],[2025/26 To - Spending review Topic 4]]+Dataset[[#This Row],[2025/26 To - Other reallocations]]","v":0},{"$f":"Dataset[[#This Row],[2026/27 To - Spending review Topic 1]]+Dataset[[#This Row],[2026/27 To - Spending review Topic 2]]+Dataset[[#This Row],[2026/27 To - Spending review Topic 3]]+Dataset[[#This Row],[2026/27 To - Spending review Topic 4]]+Dataset[[#This Row],[2026/27 To - Other reallocations]]","v":0},{"$f":"Dataset[[#This Row],[2024/25 Reduction]]+Dataset[[#This Row],[2024/25 From - Total]]","v":0},{"$f":"Dataset[[#This Row],[2025/26 Reduction]]+Dataset[[#This Row],[2025/26 From - Total]]","v":0},{"$f":"Dataset[[#This Row],[2026/27 Reduction]]+Dataset[[#This Row],[2026/27 From - Total]]","v":0},{"$f":"Dataset[[#This Row],[2023/24 Reduction]]","v":0},{"$f":"SUM(Dataset[[#This Row],[2024/25 Reduction]],Dataset[[#This Row],[2024/25 From - Total]],Dataset[[#This Row],[2024/25 To - Total]])","v":0},{"$f":"SUM(Dataset[[#This Row],[2025/26 Reduction]],Dataset[[#This Row],[2025/26 From - Total]],Dataset[[#This Row],[2025/26 To - Total]])","v":0},{"$f":"SUM(Dataset[[#This Row],[2026/27 Reduction]],Dataset[[#This Row],[2026/27 From - Total]],Dataset[[#This Row],[2026/27 To - Total]])","v":0},{"$f":"Dataset[[#This Row],[2023/24 Baseline]]+Dataset[[#This Row],[2023/24 Total change]]","v":0},{"$f":"Dataset[[#This Row],[2024/25 Baseline]]+Dataset[[#This Row],[2024/25 Total change]]","v":0},{"$f":"Dataset[[#This Row],[2025/26 Baseline]]+Dataset[[#This Row],[2025/26 Total change]]","v":0},{"$f":"Dataset[[#This Row],[2026/27 Baseline]]+Dataset[[#This Row],[2026/27 Total change]]","v":0}]
["NAT|Non-transfer item","26|Inventory: Materials and supplies","2024_25","MTEF2024",26,1,3,44067,180,"26","01","03","044067","000180","26|01|03","01","01","02","26","26","01|01|02|26|26","National","Military Veterans","Administration","Financial Administration","Non-transfer item","Current","Current payments","Goods and services","Inventory: Materials and supplies","Inventory: Materials and supplies","Peace and security","Defence and state security","NAT",0,0,0,0,0,0,0,0,0,0,0,null,null,null,null,null,null,null,null,null,null,null,null,null,null,null,null,null,null,null,null,null,null,null,null,null,null,null,null,null,null,null,null,null,null,{"$f":"Dataset[[#This Row],[2024/25 From - Spending review Topic 1]]+Dataset[[#This Row],[2024/25 From - Spending review Topic 2]]+Dataset[[#This Row],[2024/25 From - Spending review Topic 3]]+Dataset[[#This Row],[2024/25 From - Spending review Topic 4]]+Dataset[[#This Row],[2024/25 From - Other reallocations]]","v":0},{"$f":"Dataset[[#This Row],[2025/26 From - Spending review Topic 1]]+Dataset[[#This Row],[2025/26 From - Spending review Topic 2]]+Dataset[[#This Row],[2025/26 From - Spending review Topic 3]]+Dataset[[#This Row],[2025/26 From - Spending review Topic 4]]+Dataset[[#This Row],[2025/26 From - Other reallocations]]","v":0},{"$f":"Dataset[[#This Row],[2026/27 From - Spending review Topic 1]]+Dataset[[#This Row],[2026/27 From - Spending review Topic 2]]+Dataset[[#This Row],[2026/27 From - Spending review Topic 3]]+Dataset[[#This Row],[2026/27 From - Spending review Topic 4]]+Dataset[[#This Row],[2026/27 From - Other reallocations]]","v":0},{"$f":"Dataset[[#This Row],[2024/25 To - Spending review Topic 1]]+Dataset[[#This Row],[2024/25 To - Spending review Topic 2]]+Dataset[[#This Row],[2024/25 To - Spending review Topic 3]]+Dataset[[#This Row],[2024/25 To - Spending review Topic 4]]+Dataset[[#This Row],[2024/25 To - Other reallocations]]","v":0},{"$f":"Dataset[[#This Row],[2025/26 To - Spending review Topic 1]]+Dataset[[#This Row],[2025/26 To - Spending review Topic 2]]+Dataset[[#This Row],[2025/26 To - Spending review Topic 3]]+Dataset[[#This Row],[2025/26 To - Spending review Topic 4]]+Dataset[[#This Row],[2025/26 To - Other reallocations]]","v":0},{"$f":"Dataset[[#This Row],[2026/27 To - Spending review Topic 1]]+Dataset[[#This Row],[2026/27 To - Spending review Topic 2]]+Dataset[[#This Row],[2026/27 To - Spending review Topic 3]]+Dataset[[#This Row],[2026/27 To - Spending review Topic 4]]+Dataset[[#This Row],[2026/27 To - Other reallocations]]","v":0},{"$f":"Dataset[[#This Row],[2024/25 Reduction]]+Dataset[[#This Row],[2024/25 From - Total]]","v":0},{"$f":"Dataset[[#This Row],[2025/26 Reduction]]+Dataset[[#This Row],[2025/26 From - Total]]","v":0},{"$f":"Dataset[[#This Row],[2026/27 Reduction]]+Dataset[[#This Row],[2026/27 From - Total]]","v":0},{"$f":"Dataset[[#This Row],[2023/24 Reduction]]","v":0},{"$f":"SUM(Dataset[[#This Row],[2024/25 Reduction]],Dataset[[#This Row],[2024/25 From - Total]],Dataset[[#This Row],[2024/25 To - Total]])","v":0},{"$f":"SUM(Dataset[[#This Row],[2025/26 Reduction]],Dataset[[#This Row],[2025/26 From - Total]],Dataset[[#This Row],[2025/26 To - Total]])","v":0},{"$f":"SUM(Dataset[[#This Row],[2026/27 Reduction]],Dataset[[#This Row],[2026/27 From - Total]],Dataset[[#This Row],[2026/27 To - Total]])","v":0},{"$f":"Dataset[[#This Row],[2023/24 Baseline]]+Dataset[[#This Row],[2023/24 Total change]]","v":0},{"$f":"Dataset[[#This Row],[2024/25 Baseline]]+Dataset[[#This Row],[2024/25 Total change]]","v":0},{"$f":"Dataset[[#This Row],[2025/26 Baseline]]+Dataset[[#This Row],[2025/26 Total change]]","v":0},{"$f":"Dataset[[#This Row],[2026/27 Baseline]]+Dataset[[#This Row],[2026/27 Total change]]","v":0}]
["NAT|Non-transfer item","26|Inventory: Medical supplies","2024_25","MTEF2024",26,1,3,44068,181,"26","01","03","044068","000181","26|01|03","01","01","02","27","27","01|01|02|27|27","National","Military Veterans","Administration","Financial Administration","Non-transfer item","Current","Current payments","Goods and services","Inventory: Medical supplies","Inventory: Medical supplies","Peace and security","Defence and state security","NAT",0,0,0,0,0,0,0,0,0,0,0,null,null,null,null,null,null,null,null,null,null,null,null,null,null,null,null,null,null,null,null,null,null,null,null,null,null,null,null,null,null,null,null,null,null,{"$f":"Dataset[[#This Row],[2024/25 From - Spending review Topic 1]]+Dataset[[#This Row],[2024/25 From - Spending review Topic 2]]+Dataset[[#This Row],[2024/25 From - Spending review Topic 3]]+Dataset[[#This Row],[2024/25 From - Spending review Topic 4]]+Dataset[[#This Row],[2024/25 From - Other reallocations]]","v":0},{"$f":"Dataset[[#This Row],[2025/26 From - Spending review Topic 1]]+Dataset[[#This Row],[2025/26 From - Spending review Topic 2]]+Dataset[[#This Row],[2025/26 From - Spending review Topic 3]]+Dataset[[#This Row],[2025/26 From - Spending review Topic 4]]+Dataset[[#This Row],[2025/26 From - Other reallocations]]","v":0},{"$f":"Dataset[[#This Row],[2026/27 From - Spending review Topic 1]]+Dataset[[#This Row],[2026/27 From - Spending review Topic 2]]+Dataset[[#This Row],[2026/27 From - Spending review Topic 3]]+Dataset[[#This Row],[2026/27 From - Spending review Topic 4]]+Dataset[[#This Row],[2026/27 From - Other reallocations]]","v":0},{"$f":"Dataset[[#This Row],[2024/25 To - Spending review Topic 1]]+Dataset[[#This Row],[2024/25 To - Spending review Topic 2]]+Dataset[[#This Row],[2024/25 To - Spending review Topic 3]]+Dataset[[#This Row],[2024/25 To - Spending review Topic 4]]+Dataset[[#This Row],[2024/25 To - Other reallocations]]","v":0},{"$f":"Dataset[[#This Row],[2025/26 To - Spending review Topic 1]]+Dataset[[#This Row],[2025/26 To - Spending review Topic 2]]+Dataset[[#This Row],[2025/26 To - Spending review Topic 3]]+Dataset[[#This Row],[2025/26 To - Spending review Topic 4]]+Dataset[[#This Row],[2025/26 To - Other reallocations]]","v":0},{"$f":"Dataset[[#This Row],[2026/27 To - Spending review Topic 1]]+Dataset[[#This Row],[2026/27 To - Spending review Topic 2]]+Dataset[[#This Row],[2026/27 To - Spending review Topic 3]]+Dataset[[#This Row],[2026/27 To - Spending review Topic 4]]+Dataset[[#This Row],[2026/27 To - Other reallocations]]","v":0},{"$f":"Dataset[[#This Row],[2024/25 Reduction]]+Dataset[[#This Row],[2024/25 From - Total]]","v":0},{"$f":"Dataset[[#This Row],[2025/26 Reduction]]+Dataset[[#This Row],[2025/26 From - Total]]","v":0},{"$f":"Dataset[[#This Row],[2026/27 Reduction]]+Dataset[[#This Row],[2026/27 From - Total]]","v":0},{"$f":"Dataset[[#This Row],[2023/24 Reduction]]","v":0},{"$f":"SUM(Dataset[[#This Row],[2024/25 Reduction]],Dataset[[#This Row],[2024/25 From - Total]],Dataset[[#This Row],[2024/25 To - Total]])","v":0},{"$f":"SUM(Dataset[[#This Row],[2025/26 Reduction]],Dataset[[#This Row],[2025/26 From - Total]],Dataset[[#This Row],[2025/26 To - Total]])","v":0},{"$f":"SUM(Dataset[[#This Row],[2026/27 Reduction]],Dataset[[#This Row],[2026/27 From - Total]],Dataset[[#This Row],[2026/27 To - Total]])","v":0},{"$f":"Dataset[[#This Row],[2023/24 Baseline]]+Dataset[[#This Row],[2023/24 Total change]]","v":0},{"$f":"Dataset[[#This Row],[2024/25 Baseline]]+Dataset[[#This Row],[2024/25 Total change]]","v":0},{"$f":"Dataset[[#This Row],[2025/26 Baseline]]+Dataset[[#This Row],[2025/26 Total change]]","v":0},{"$f":"Dataset[[#This Row],[2026/27 Baseline]]+Dataset[[#This Row],[2026/27 Total change]]","v":0}]
["NAT|Non-transfer item","26|Inventory: Medicine","2024_25","MTEF2024",26,1,3,44069,182,"26","01","03","044069","000182","26|01|03","01","01","02","28","28","01|01|02|28|28","National","Military Veterans","Administration","Financial Administration","Non-transfer item","Current","Current payments","Goods and services","Inventory: Medicine","Inventory: Medicine","Peace and security","Defence and state security","NAT",0,0,0,0,0,0,0,0,0,0,0,null,null,null,null,null,null,null,null,null,null,null,null,null,null,null,null,null,null,null,null,null,null,null,null,null,null,null,null,null,null,null,null,null,null,{"$f":"Dataset[[#This Row],[2024/25 From - Spending review Topic 1]]+Dataset[[#This Row],[2024/25 From - Spending review Topic 2]]+Dataset[[#This Row],[2024/25 From - Spending review Topic 3]]+Dataset[[#This Row],[2024/25 From - Spending review Topic 4]]+Dataset[[#This Row],[2024/25 From - Other reallocations]]","v":0},{"$f":"Dataset[[#This Row],[2025/26 From - Spending review Topic 1]]+Dataset[[#This Row],[2025/26 From - Spending review Topic 2]]+Dataset[[#This Row],[2025/26 From - Spending review Topic 3]]+Dataset[[#This Row],[2025/26 From - Spending review Topic 4]]+Dataset[[#This Row],[2025/26 From - Other reallocations]]","v":0},{"$f":"Dataset[[#This Row],[2026/27 From - Spending review Topic 1]]+Dataset[[#This Row],[2026/27 From - Spending review Topic 2]]+Dataset[[#This Row],[2026/27 From - Spending review Topic 3]]+Dataset[[#This Row],[2026/27 From - Spending review Topic 4]]+Dataset[[#This Row],[2026/27 From - Other reallocations]]","v":0},{"$f":"Dataset[[#This Row],[2024/25 To - Spending review Topic 1]]+Dataset[[#This Row],[2024/25 To - Spending review Topic 2]]+Dataset[[#This Row],[2024/25 To - Spending review Topic 3]]+Dataset[[#This Row],[2024/25 To - Spending review Topic 4]]+Dataset[[#This Row],[2024/25 To - Other reallocations]]","v":0},{"$f":"Dataset[[#This Row],[2025/26 To - Spending review Topic 1]]+Dataset[[#This Row],[2025/26 To - Spending review Topic 2]]+Dataset[[#This Row],[2025/26 To - Spending review Topic 3]]+Dataset[[#This Row],[2025/26 To - Spending review Topic 4]]+Dataset[[#This Row],[2025/26 To - Other reallocations]]","v":0},{"$f":"Dataset[[#This Row],[2026/27 To - Spending review Topic 1]]+Dataset[[#This Row],[2026/27 To - Spending review Topic 2]]+Dataset[[#This Row],[2026/27 To - Spending review Topic 3]]+Dataset[[#This Row],[2026/27 To - Spending review Topic 4]]+Dataset[[#This Row],[2026/27 To - Other reallocations]]","v":0},{"$f":"Dataset[[#This Row],[2024/25 Reduction]]+Dataset[[#This Row],[2024/25 From - Total]]","v":0},{"$f":"Dataset[[#This Row],[2025/26 Reduction]]+Dataset[[#This Row],[2025/26 From - Total]]","v":0},{"$f":"Dataset[[#This Row],[2026/27 Reduction]]+Dataset[[#This Row],[2026/27 From - Total]]","v":0},{"$f":"Dataset[[#This Row],[2023/24 Reduction]]","v":0},{"$f":"SUM(Dataset[[#This Row],[2024/25 Reduction]],Dataset[[#This Row],[2024/25 From - Total]],Dataset[[#This Row],[2024/25 To - Total]])","v":0},{"$f":"SUM(Dataset[[#This Row],[2025/26 Reduction]],Dataset[[#This Row],[2025/26 From - Total]],Dataset[[#This Row],[2025/26 To - Total]])","v":0},{"$f":"SUM(Dataset[[#This Row],[2026/27 Reduction]],Dataset[[#This Row],[2026/27 From - Total]],Dataset[[#This Row],[2026/27 To - Total]])","v":0},{"$f":"Dataset[[#This Row],[2023/24 Baseline]]+Dataset[[#This Row],[2023/24 Total change]]","v":0},{"$f":"Dataset[[#This Row],[2024/25 Baseline]]+Dataset[[#This Row],[2024/25 Total change]]","v":0},{"$f":"Dataset[[#This Row],[2025/26 Baseline]]+Dataset[[#This Row],[2025/26 Total change]]","v":0},{"$f":"Dataset[[#This Row],[2026/27 Baseline]]+Dataset[[#This Row],[2026/27 Total change]]","v":0}]
["NAT|Non-transfer item","26|Medsas inventory interface","2024_25","MTEF2024",26,1,3,44070,183,"26","01","03","044070","000183","26|01|03","01","01","02","29","29","01|01|02|29|29","National","Military Veterans","Administration","Financial Administration","Non-transfer item","Current","Current payments","Goods and services","Medsas inventory interface","Medsas inventory interface","Peace and security","Defence and state security","NAT",0,0,0,0,0,0,0,0,0,0,0,null,null,null,null,null,null,null,null,null,null,null,null,null,null,null,null,null,null,null,null,null,null,null,null,null,null,null,null,null,null,null,null,null,null,{"$f":"Dataset[[#This Row],[2024/25 From - Spending review Topic 1]]+Dataset[[#This Row],[2024/25 From - Spending review Topic 2]]+Dataset[[#This Row],[2024/25 From - Spending review Topic 3]]+Dataset[[#This Row],[2024/25 From - Spending review Topic 4]]+Dataset[[#This Row],[2024/25 From - Other reallocations]]","v":0},{"$f":"Dataset[[#This Row],[2025/26 From - Spending review Topic 1]]+Dataset[[#This Row],[2025/26 From - Spending review Topic 2]]+Dataset[[#This Row],[2025/26 From - Spending review Topic 3]]+Dataset[[#This Row],[2025/26 From - Spending review Topic 4]]+Dataset[[#This Row],[2025/26 From - Other reallocations]]","v":0},{"$f":"Dataset[[#This Row],[2026/27 From - Spending review Topic 1]]+Dataset[[#This Row],[2026/27 From - Spending review Topic 2]]+Dataset[[#This Row],[2026/27 From - Spending review Topic 3]]+Dataset[[#This Row],[2026/27 From - Spending review Topic 4]]+Dataset[[#This Row],[2026/27 From - Other reallocations]]","v":0},{"$f":"Dataset[[#This Row],[2024/25 To - Spending review Topic 1]]+Dataset[[#This Row],[2024/25 To - Spending review Topic 2]]+Dataset[[#This Row],[2024/25 To - Spending review Topic 3]]+Dataset[[#This Row],[2024/25 To - Spending review Topic 4]]+Dataset[[#This Row],[2024/25 To - Other reallocations]]","v":0},{"$f":"Dataset[[#This Row],[2025/26 To - Spending review Topic 1]]+Dataset[[#This Row],[2025/26 To - Spending review Topic 2]]+Dataset[[#This Row],[2025/26 To - Spending review Topic 3]]+Dataset[[#This Row],[2025/26 To - Spending review Topic 4]]+Dataset[[#This Row],[2025/26 To - Other reallocations]]","v":0},{"$f":"Dataset[[#This Row],[2026/27 To - Spending review Topic 1]]+Dataset[[#This Row],[2026/27 To - Spending review Topic 2]]+Dataset[[#This Row],[2026/27 To - Spending review Topic 3]]+Dataset[[#This Row],[2026/27 To - Spending review Topic 4]]+Dataset[[#This Row],[2026/27 To - Other reallocations]]","v":0},{"$f":"Dataset[[#This Row],[2024/25 Reduction]]+Dataset[[#This Row],[2024/25 From - Total]]","v":0},{"$f":"Dataset[[#This Row],[2025/26 Reduction]]+Dataset[[#This Row],[2025/26 From - Total]]","v":0},{"$f":"Dataset[[#This Row],[2026/27 Reduction]]+Dataset[[#This Row],[2026/27 From - Total]]","v":0},{"$f":"Dataset[[#This Row],[2023/24 Reduction]]","v":0},{"$f":"SUM(Dataset[[#This Row],[2024/25 Reduction]],Dataset[[#This Row],[2024/25 From - Total]],Dataset[[#This Row],[2024/25 To - Total]])","v":0},{"$f":"SUM(Dataset[[#This Row],[2025/26 Reduction]],Dataset[[#This Row],[2025/26 From - Total]],Dataset[[#This Row],[2025/26 To - Total]])","v":0},{"$f":"SUM(Dataset[[#This Row],[2026/27 Reduction]],Dataset[[#This Row],[2026/27 From - Total]],Dataset[[#This Row],[2026/27 To - Total]])","v":0},{"$f":"Dataset[[#This Row],[2023/24 Baseline]]+Dataset[[#This Row],[2023/24 Total change]]","v":0},{"$f":"Dataset[[#This Row],[2024/25 Baseline]]+Dataset[[#This Row],[2024/25 Total change]]","v":0},{"$f":"Dataset[[#This Row],[2025/26 Baseline]]+Dataset[[#This Row],[2025/26 Total change]]","v":0},{"$f":"Dataset[[#This Row],[2026/27 Baseline]]+Dataset[[#This Row],[2026/27 Total change]]","v":0}]
["NAT|Non-transfer item","26|Inventory: Other supplies","2024_25","MTEF2024",26,1,3,44071,184,"26","01","03","044071","000184","26|01|03","01","01","02","30","30","01|01|02|30|30","National","Military Veterans","Administration","Financial Administration","Non-transfer item","Current","Current payments","Goods and services","Inventory: Other supplies","Inventory: Other supplies","Peace and security","Defence and state security","NAT",0,0,0,0,0,0,0,0,0,0,0,null,null,null,null,null,null,null,null,null,null,null,null,null,null,null,null,null,null,null,null,null,null,null,null,null,null,null,null,null,null,null,null,null,null,{"$f":"Dataset[[#This Row],[2024/25 From - Spending review Topic 1]]+Dataset[[#This Row],[2024/25 From - Spending review Topic 2]]+Dataset[[#This Row],[2024/25 From - Spending review Topic 3]]+Dataset[[#This Row],[2024/25 From - Spending review Topic 4]]+Dataset[[#This Row],[2024/25 From - Other reallocations]]","v":0},{"$f":"Dataset[[#This Row],[2025/26 From - Spending review Topic 1]]+Dataset[[#This Row],[2025/26 From - Spending review Topic 2]]+Dataset[[#This Row],[2025/26 From - Spending review Topic 3]]+Dataset[[#This Row],[2025/26 From - Spending review Topic 4]]+Dataset[[#This Row],[2025/26 From - Other reallocations]]","v":0},{"$f":"Dataset[[#This Row],[2026/27 From - Spending review Topic 1]]+Dataset[[#This Row],[2026/27 From - Spending review Topic 2]]+Dataset[[#This Row],[2026/27 From - Spending review Topic 3]]+Dataset[[#This Row],[2026/27 From - Spending review Topic 4]]+Dataset[[#This Row],[2026/27 From - Other reallocations]]","v":0},{"$f":"Dataset[[#This Row],[2024/25 To - Spending review Topic 1]]+Dataset[[#This Row],[2024/25 To - Spending review Topic 2]]+Dataset[[#This Row],[2024/25 To - Spending review Topic 3]]+Dataset[[#This Row],[2024/25 To - Spending review Topic 4]]+Dataset[[#This Row],[2024/25 To - Other reallocations]]","v":0},{"$f":"Dataset[[#This Row],[2025/26 To - Spending review Topic 1]]+Dataset[[#This Row],[2025/26 To - Spending review Topic 2]]+Dataset[[#This Row],[2025/26 To - Spending review Topic 3]]+Dataset[[#This Row],[2025/26 To - Spending review Topic 4]]+Dataset[[#This Row],[2025/26 To - Other reallocations]]","v":0},{"$f":"Dataset[[#This Row],[2026/27 To - Spending review Topic 1]]+Dataset[[#This Row],[2026/27 To - Spending review Topic 2]]+Dataset[[#This Row],[2026/27 To - Spending review Topic 3]]+Dataset[[#This Row],[2026/27 To - Spending review Topic 4]]+Dataset[[#This Row],[2026/27 To - Other reallocations]]","v":0},{"$f":"Dataset[[#This Row],[2024/25 Reduction]]+Dataset[[#This Row],[2024/25 From - Total]]","v":0},{"$f":"Dataset[[#This Row],[2025/26 Reduction]]+Dataset[[#This Row],[2025/26 From - Total]]","v":0},{"$f":"Dataset[[#This Row],[2026/27 Reduction]]+Dataset[[#This Row],[2026/27 From - Total]]","v":0},{"$f":"Dataset[[#This Row],[2023/24 Reduction]]","v":0},{"$f":"SUM(Dataset[[#This Row],[2024/25 Reduction]],Dataset[[#This Row],[2024/25 From - Total]],Dataset[[#This Row],[2024/25 To - Total]])","v":0},{"$f":"SUM(Dataset[[#This Row],[2025/26 Reduction]],Dataset[[#This Row],[2025/26 From - Total]],Dataset[[#This Row],[2025/26 To - Total]])","v":0},{"$f":"SUM(Dataset[[#This Row],[2026/27 Reduction]],Dataset[[#This Row],[2026/27 From - Total]],Dataset[[#This Row],[2026/27 To - Total]])","v":0},{"$f":"Dataset[[#This Row],[2023/24 Baseline]]+Dataset[[#This Row],[2023/24 Total change]]","v":0},{"$f":"Dataset[[#This Row],[2024/25 Baseline]]+Dataset[[#This Row],[2024/25 Total change]]","v":0},{"$f":"Dataset[[#This Row],[2025/26 Baseline]]+Dataset[[#This Row],[2025/26 Total change]]","v":0},{"$f":"Dataset[[#This Row],[2026/27 Baseline]]+Dataset[[#This Row],[2026/27 Total change]]","v":0}]
["NAT|Non-transfer item","26|Consumable supplies","2024_25","MTEF2024",26,1,3,44072,185,"26","01","03","044072","000185","26|01|03","01","01","02","31","31","01|01|02|31|31","National","Military Veterans","Administration","Financial Administration","Non-transfer item","Current","Current payments","Goods and services","Consumable supplies","Consumable supplies","Peace and security","Defence and state security","NAT",251,366,521,786,618,618,0,783,782,817,854,null,null,null,null,null,null,null,null,null,null,null,null,null,null,null,null,null,null,null,null,null,null,null,null,null,null,null,null,null,null,null,null,null,null,{"$f":"Dataset[[#This Row],[2024/25 From - Spending review Topic 1]]+Dataset[[#This Row],[2024/25 From - Spending review Topic 2]]+Dataset[[#This Row],[2024/25 From - Spending review Topic 3]]+Dataset[[#This Row],[2024/25 From - Spending review Topic 4]]+Dataset[[#This Row],[2024/25 From - Other reallocations]]","v":0},{"$f":"Dataset[[#This Row],[2025/26 From - Spending review Topic 1]]+Dataset[[#This Row],[2025/26 From - Spending review Topic 2]]+Dataset[[#This Row],[2025/26 From - Spending review Topic 3]]+Dataset[[#This Row],[2025/26 From - Spending review Topic 4]]+Dataset[[#This Row],[2025/26 From - Other reallocations]]","v":0},{"$f":"Dataset[[#This Row],[2026/27 From - Spending review Topic 1]]+Dataset[[#This Row],[2026/27 From - Spending review Topic 2]]+Dataset[[#This Row],[2026/27 From - Spending review Topic 3]]+Dataset[[#This Row],[2026/27 From - Spending review Topic 4]]+Dataset[[#This Row],[2026/27 From - Other reallocations]]","v":0},{"$f":"Dataset[[#This Row],[2024/25 To - Spending review Topic 1]]+Dataset[[#This Row],[2024/25 To - Spending review Topic 2]]+Dataset[[#This Row],[2024/25 To - Spending review Topic 3]]+Dataset[[#This Row],[2024/25 To - Spending review Topic 4]]+Dataset[[#This Row],[2024/25 To - Other reallocations]]","v":0},{"$f":"Dataset[[#This Row],[2025/26 To - Spending review Topic 1]]+Dataset[[#This Row],[2025/26 To - Spending review Topic 2]]+Dataset[[#This Row],[2025/26 To - Spending review Topic 3]]+Dataset[[#This Row],[2025/26 To - Spending review Topic 4]]+Dataset[[#This Row],[2025/26 To - Other reallocations]]","v":0},{"$f":"Dataset[[#This Row],[2026/27 To - Spending review Topic 1]]+Dataset[[#This Row],[2026/27 To - Spending review Topic 2]]+Dataset[[#This Row],[2026/27 To - Spending review Topic 3]]+Dataset[[#This Row],[2026/27 To - Spending review Topic 4]]+Dataset[[#This Row],[2026/27 To - Other reallocations]]","v":0},{"$f":"Dataset[[#This Row],[2024/25 Reduction]]+Dataset[[#This Row],[2024/25 From - Total]]","v":0},{"$f":"Dataset[[#This Row],[2025/26 Reduction]]+Dataset[[#This Row],[2025/26 From - Total]]","v":0},{"$f":"Dataset[[#This Row],[2026/27 Reduction]]+Dataset[[#This Row],[2026/27 From - Total]]","v":0},{"$f":"Dataset[[#This Row],[2023/24 Reduction]]","v":0},{"$f":"SUM(Dataset[[#This Row],[2024/25 Reduction]],Dataset[[#This Row],[2024/25 From - Total]],Dataset[[#This Row],[2024/25 To - Total]])","v":0},{"$f":"SUM(Dataset[[#This Row],[2025/26 Reduction]],Dataset[[#This Row],[2025/26 From - Total]],Dataset[[#This Row],[2025/26 To - Total]])","v":0},{"$f":"SUM(Dataset[[#This Row],[2026/27 Reduction]],Dataset[[#This Row],[2026/27 From - Total]],Dataset[[#This Row],[2026/27 To - Total]])","v":0},{"$f":"Dataset[[#This Row],[2023/24 Baseline]]+Dataset[[#This Row],[2023/24 Total change]]","v":783},{"$f":"Dataset[[#This Row],[2024/25 Baseline]]+Dataset[[#This Row],[2024/25 Total change]]","v":782},{"$f":"Dataset[[#This Row],[2025/26 Baseline]]+Dataset[[#This Row],[2025/26 Total change]]","v":817},{"$f":"Dataset[[#This Row],[2026/27 Baseline]]+Dataset[[#This Row],[2026/27 Total change]]","v":854}]
["NAT|Non-transfer item","26|Consumables: Stationery, printing and office supplies","2024_25","MTEF2024",26,1,3,44073,186,"26","01","03","044073","000186","26|01|03","01","01","02","32","32","01|01|02|32|32","National","Military Veterans","Administration","Financial Administration","Non-transfer item","Current","Current payments","Goods and services","Consumables: Stationery, printing and office supplies","Consumables: Stationery, printing and office supplies","Peace and security","Defence and state security","NAT",143,119,274,406,301,301,0,404,404,422,441,null,null,null,null,null,null,null,null,null,null,null,null,null,null,null,null,null,null,null,null,null,null,null,null,null,null,null,null,null,null,null,null,null,null,{"$f":"Dataset[[#This Row],[2024/25 From - Spending review Topic 1]]+Dataset[[#This Row],[2024/25 From - Spending review Topic 2]]+Dataset[[#This Row],[2024/25 From - Spending review Topic 3]]+Dataset[[#This Row],[2024/25 From - Spending review Topic 4]]+Dataset[[#This Row],[2024/25 From - Other reallocations]]","v":0},{"$f":"Dataset[[#This Row],[2025/26 From - Spending review Topic 1]]+Dataset[[#This Row],[2025/26 From - Spending review Topic 2]]+Dataset[[#This Row],[2025/26 From - Spending review Topic 3]]+Dataset[[#This Row],[2025/26 From - Spending review Topic 4]]+Dataset[[#This Row],[2025/26 From - Other reallocations]]","v":0},{"$f":"Dataset[[#This Row],[2026/27 From - Spending review Topic 1]]+Dataset[[#This Row],[2026/27 From - Spending review Topic 2]]+Dataset[[#This Row],[2026/27 From - Spending review Topic 3]]+Dataset[[#This Row],[2026/27 From - Spending review Topic 4]]+Dataset[[#This Row],[2026/27 From - Other reallocations]]","v":0},{"$f":"Dataset[[#This Row],[2024/25 To - Spending review Topic 1]]+Dataset[[#This Row],[2024/25 To - Spending review Topic 2]]+Dataset[[#This Row],[2024/25 To - Spending review Topic 3]]+Dataset[[#This Row],[2024/25 To - Spending review Topic 4]]+Dataset[[#This Row],[2024/25 To - Other reallocations]]","v":0},{"$f":"Dataset[[#This Row],[2025/26 To - Spending review Topic 1]]+Dataset[[#This Row],[2025/26 To - Spending review Topic 2]]+Dataset[[#This Row],[2025/26 To - Spending review Topic 3]]+Dataset[[#This Row],[2025/26 To - Spending review Topic 4]]+Dataset[[#This Row],[2025/26 To - Other reallocations]]","v":0},{"$f":"Dataset[[#This Row],[2026/27 To - Spending review Topic 1]]+Dataset[[#This Row],[2026/27 To - Spending review Topic 2]]+Dataset[[#This Row],[2026/27 To - Spending review Topic 3]]+Dataset[[#This Row],[2026/27 To - Spending review Topic 4]]+Dataset[[#This Row],[2026/27 To - Other reallocations]]","v":0},{"$f":"Dataset[[#This Row],[2024/25 Reduction]]+Dataset[[#This Row],[2024/25 From - Total]]","v":0},{"$f":"Dataset[[#This Row],[2025/26 Reduction]]+Dataset[[#This Row],[2025/26 From - Total]]","v":0},{"$f":"Dataset[[#This Row],[2026/27 Reduction]]+Dataset[[#This Row],[2026/27 From - Total]]","v":0},{"$f":"Dataset[[#This Row],[2023/24 Reduction]]","v":0},{"$f":"SUM(Dataset[[#This Row],[2024/25 Reduction]],Dataset[[#This Row],[2024/25 From - Total]],Dataset[[#This Row],[2024/25 To - Total]])","v":0},{"$f":"SUM(Dataset[[#This Row],[2025/26 Reduction]],Dataset[[#This Row],[2025/26 From - Total]],Dataset[[#This Row],[2025/26 To - Total]])","v":0},{"$f":"SUM(Dataset[[#This Row],[2026/27 Reduction]],Dataset[[#This Row],[2026/27 From - Total]],Dataset[[#This Row],[2026/27 To - Total]])","v":0},{"$f":"Dataset[[#This Row],[2023/24 Baseline]]+Dataset[[#This Row],[2023/24 Total change]]","v":404},{"$f":"Dataset[[#This Row],[2024/25 Baseline]]+Dataset[[#This Row],[2024/25 Total change]]","v":404},{"$f":"Dataset[[#This Row],[2025/26 Baseline]]+Dataset[[#This Row],[2025/26 Total change]]","v":422},{"$f":"Dataset[[#This Row],[2026/27 Baseline]]+Dataset[[#This Row],[2026/27 Total change]]","v":441}]
["NAT|Non-transfer item","26|Operating leases","2024_25","MTEF2024",26,1,3,44074,187,"26","01","03","044074","000187","26|01|03","01","01","02","33","33","01|01|02|33|33","National","Military Veterans","Administration","Financial Administration","Non-transfer item","Current","Current payments","Goods and services","Operating leases","Operating leases","Peace and security","Defence and state security","NAT",0,12,0,0,0,0,0,0,0,0,0,null,null,null,null,null,null,null,null,null,null,null,null,null,null,null,null,null,null,null,null,null,null,null,null,null,null,null,null,null,null,null,null,null,null,{"$f":"Dataset[[#This Row],[2024/25 From - Spending review Topic 1]]+Dataset[[#This Row],[2024/25 From - Spending review Topic 2]]+Dataset[[#This Row],[2024/25 From - Spending review Topic 3]]+Dataset[[#This Row],[2024/25 From - Spending review Topic 4]]+Dataset[[#This Row],[2024/25 From - Other reallocations]]","v":0},{"$f":"Dataset[[#This Row],[2025/26 From - Spending review Topic 1]]+Dataset[[#This Row],[2025/26 From - Spending review Topic 2]]+Dataset[[#This Row],[2025/26 From - Spending review Topic 3]]+Dataset[[#This Row],[2025/26 From - Spending review Topic 4]]+Dataset[[#This Row],[2025/26 From - Other reallocations]]","v":0},{"$f":"Dataset[[#This Row],[2026/27 From - Spending review Topic 1]]+Dataset[[#This Row],[2026/27 From - Spending review Topic 2]]+Dataset[[#This Row],[2026/27 From - Spending review Topic 3]]+Dataset[[#This Row],[2026/27 From - Spending review Topic 4]]+Dataset[[#This Row],[2026/27 From - Other reallocations]]","v":0},{"$f":"Dataset[[#This Row],[2024/25 To - Spending review Topic 1]]+Dataset[[#This Row],[2024/25 To - Spending review Topic 2]]+Dataset[[#This Row],[2024/25 To - Spending review Topic 3]]+Dataset[[#This Row],[2024/25 To - Spending review Topic 4]]+Dataset[[#This Row],[2024/25 To - Other reallocations]]","v":0},{"$f":"Dataset[[#This Row],[2025/26 To - Spending review Topic 1]]+Dataset[[#This Row],[2025/26 To - Spending review Topic 2]]+Dataset[[#This Row],[2025/26 To - Spending review Topic 3]]+Dataset[[#This Row],[2025/26 To - Spending review Topic 4]]+Dataset[[#This Row],[2025/26 To - Other reallocations]]","v":0},{"$f":"Dataset[[#This Row],[2026/27 To - Spending review Topic 1]]+Dataset[[#This Row],[2026/27 To - Spending review Topic 2]]+Dataset[[#This Row],[2026/27 To - Spending review Topic 3]]+Dataset[[#This Row],[2026/27 To - Spending review Topic 4]]+Dataset[[#This Row],[2026/27 To - Other reallocations]]","v":0},{"$f":"Dataset[[#This Row],[2024/25 Reduction]]+Dataset[[#This Row],[2024/25 From - Total]]","v":0},{"$f":"Dataset[[#This Row],[2025/26 Reduction]]+Dataset[[#This Row],[2025/26 From - Total]]","v":0},{"$f":"Dataset[[#This Row],[2026/27 Reduction]]+Dataset[[#This Row],[2026/27 From - Total]]","v":0},{"$f":"Dataset[[#This Row],[2023/24 Reduction]]","v":0},{"$f":"SUM(Dataset[[#This Row],[2024/25 Reduction]],Dataset[[#This Row],[2024/25 From - Total]],Dataset[[#This Row],[2024/25 To - Total]])","v":0},{"$f":"SUM(Dataset[[#This Row],[2025/26 Reduction]],Dataset[[#This Row],[2025/26 From - Total]],Dataset[[#This Row],[2025/26 To - Total]])","v":0},{"$f":"SUM(Dataset[[#This Row],[2026/27 Reduction]],Dataset[[#This Row],[2026/27 From - Total]],Dataset[[#This Row],[2026/27 To - Total]])","v":0},{"$f":"Dataset[[#This Row],[2023/24 Baseline]]+Dataset[[#This Row],[2023/24 Total change]]","v":0},{"$f":"Dataset[[#This Row],[2024/25 Baseline]]+Dataset[[#This Row],[2024/25 Total change]]","v":0},{"$f":"Dataset[[#This Row],[2025/26 Baseline]]+Dataset[[#This Row],[2025/26 Total change]]","v":0},{"$f":"Dataset[[#This Row],[2026/27 Baseline]]+Dataset[[#This Row],[2026/27 Total change]]","v":0}]
["NAT|Non-transfer item","26|Rental and hiring","2024_25","MTEF2024",26,1,3,44075,188,"26","01","03","044075","000188","26|01|03","01","01","02","34","34","01|01|02|34|34","National","Military Veterans","Administration","Financial Administration","Non-transfer item","Current","Current payments","Goods and services","Rental and hiring","Rental and hiring","Peace and security","Defence and state security","NAT",0,0,0,0,0,0,0,0,0,0,0,null,null,null,null,null,null,null,null,null,null,null,null,null,null,null,null,null,null,null,null,null,null,null,null,null,null,null,null,null,null,null,null,null,null,{"$f":"Dataset[[#This Row],[2024/25 From - Spending review Topic 1]]+Dataset[[#This Row],[2024/25 From - Spending review Topic 2]]+Dataset[[#This Row],[2024/25 From - Spending review Topic 3]]+Dataset[[#This Row],[2024/25 From - Spending review Topic 4]]+Dataset[[#This Row],[2024/25 From - Other reallocations]]","v":0},{"$f":"Dataset[[#This Row],[2025/26 From - Spending review Topic 1]]+Dataset[[#This Row],[2025/26 From - Spending review Topic 2]]+Dataset[[#This Row],[2025/26 From - Spending review Topic 3]]+Dataset[[#This Row],[2025/26 From - Spending review Topic 4]]+Dataset[[#This Row],[2025/26 From - Other reallocations]]","v":0},{"$f":"Dataset[[#This Row],[2026/27 From - Spending review Topic 1]]+Dataset[[#This Row],[2026/27 From - Spending review Topic 2]]+Dataset[[#This Row],[2026/27 From - Spending review Topic 3]]+Dataset[[#This Row],[2026/27 From - Spending review Topic 4]]+Dataset[[#This Row],[2026/27 From - Other reallocations]]","v":0},{"$f":"Dataset[[#This Row],[2024/25 To - Spending review Topic 1]]+Dataset[[#This Row],[2024/25 To - Spending review Topic 2]]+Dataset[[#This Row],[2024/25 To - Spending review Topic 3]]+Dataset[[#This Row],[2024/25 To - Spending review Topic 4]]+Dataset[[#This Row],[2024/25 To - Other reallocations]]","v":0},{"$f":"Dataset[[#This Row],[2025/26 To - Spending review Topic 1]]+Dataset[[#This Row],[2025/26 To - Spending review Topic 2]]+Dataset[[#This Row],[2025/26 To - Spending review Topic 3]]+Dataset[[#This Row],[2025/26 To - Spending review Topic 4]]+Dataset[[#This Row],[2025/26 To - Other reallocations]]","v":0},{"$f":"Dataset[[#This Row],[2026/27 To - Spending review Topic 1]]+Dataset[[#This Row],[2026/27 To - Spending review Topic 2]]+Dataset[[#This Row],[2026/27 To - Spending review Topic 3]]+Dataset[[#This Row],[2026/27 To - Spending review Topic 4]]+Dataset[[#This Row],[2026/27 To - Other reallocations]]","v":0},{"$f":"Dataset[[#This Row],[2024/25 Reduction]]+Dataset[[#This Row],[2024/25 From - Total]]","v":0},{"$f":"Dataset[[#This Row],[2025/26 Reduction]]+Dataset[[#This Row],[2025/26 From - Total]]","v":0},{"$f":"Dataset[[#This Row],[2026/27 Reduction]]+Dataset[[#This Row],[2026/27 From - Total]]","v":0},{"$f":"Dataset[[#This Row],[2023/24 Reduction]]","v":0},{"$f":"SUM(Dataset[[#This Row],[2024/25 Reduction]],Dataset[[#This Row],[2024/25 From - Total]],Dataset[[#This Row],[2024/25 To - Total]])","v":0},{"$f":"SUM(Dataset[[#This Row],[2025/26 Reduction]],Dataset[[#This Row],[2025/26 From - Total]],Dataset[[#This Row],[2025/26 To - Total]])","v":0},{"$f":"SUM(Dataset[[#This Row],[2026/27 Reduction]],Dataset[[#This Row],[2026/27 From - Total]],Dataset[[#This Row],[2026/27 To - Total]])","v":0},{"$f":"Dataset[[#This Row],[2023/24 Baseline]]+Dataset[[#This Row],[2023/24 Total change]]","v":0},{"$f":"Dataset[[#This Row],[2024/25 Baseline]]+Dataset[[#This Row],[2024/25 Total change]]","v":0},{"$f":"Dataset[[#This Row],[2025/26 Baseline]]+Dataset[[#This Row],[2025/26 Total change]]","v":0},{"$f":"Dataset[[#This Row],[2026/27 Baseline]]+Dataset[[#This Row],[2026/27 Total change]]","v":0}]
["NAT|Non-transfer item","26|Property payments","2024_25","MTEF2024",26,1,3,44076,189,"26","01","03","044076","000189","26|01|03","01","01","02","35","35","01|01|02|35|35","National","Military Veterans","Administration","Financial Administration","Non-transfer item","Current","Current payments","Goods and services","Property payments","Property payments","Peace and security","Defence and state security","NAT",0,0,0,0,0,0,0,0,0,0,0,null,null,null,null,null,null,null,null,null,null,null,null,null,null,null,null,null,null,null,null,null,null,null,null,null,null,null,null,null,null,null,null,null,null,{"$f":"Dataset[[#This Row],[2024/25 From - Spending review Topic 1]]+Dataset[[#This Row],[2024/25 From - Spending review Topic 2]]+Dataset[[#This Row],[2024/25 From - Spending review Topic 3]]+Dataset[[#This Row],[2024/25 From - Spending review Topic 4]]+Dataset[[#This Row],[2024/25 From - Other reallocations]]","v":0},{"$f":"Dataset[[#This Row],[2025/26 From - Spending review Topic 1]]+Dataset[[#This Row],[2025/26 From - Spending review Topic 2]]+Dataset[[#This Row],[2025/26 From - Spending review Topic 3]]+Dataset[[#This Row],[2025/26 From - Spending review Topic 4]]+Dataset[[#This Row],[2025/26 From - Other reallocations]]","v":0},{"$f":"Dataset[[#This Row],[2026/27 From - Spending review Topic 1]]+Dataset[[#This Row],[2026/27 From - Spending review Topic 2]]+Dataset[[#This Row],[2026/27 From - Spending review Topic 3]]+Dataset[[#This Row],[2026/27 From - Spending review Topic 4]]+Dataset[[#This Row],[2026/27 From - Other reallocations]]","v":0},{"$f":"Dataset[[#This Row],[2024/25 To - Spending review Topic 1]]+Dataset[[#This Row],[2024/25 To - Spending review Topic 2]]+Dataset[[#This Row],[2024/25 To - Spending review Topic 3]]+Dataset[[#This Row],[2024/25 To - Spending review Topic 4]]+Dataset[[#This Row],[2024/25 To - Other reallocations]]","v":0},{"$f":"Dataset[[#This Row],[2025/26 To - Spending review Topic 1]]+Dataset[[#This Row],[2025/26 To - Spending review Topic 2]]+Dataset[[#This Row],[2025/26 To - Spending review Topic 3]]+Dataset[[#This Row],[2025/26 To - Spending review Topic 4]]+Dataset[[#This Row],[2025/26 To - Other reallocations]]","v":0},{"$f":"Dataset[[#This Row],[2026/27 To - Spending review Topic 1]]+Dataset[[#This Row],[2026/27 To - Spending review Topic 2]]+Dataset[[#This Row],[2026/27 To - Spending review Topic 3]]+Dataset[[#This Row],[2026/27 To - Spending review Topic 4]]+Dataset[[#This Row],[2026/27 To - Other reallocations]]","v":0},{"$f":"Dataset[[#This Row],[2024/25 Reduction]]+Dataset[[#This Row],[2024/25 From - Total]]","v":0},{"$f":"Dataset[[#This Row],[2025/26 Reduction]]+Dataset[[#This Row],[2025/26 From - Total]]","v":0},{"$f":"Dataset[[#This Row],[2026/27 Reduction]]+Dataset[[#This Row],[2026/27 From - Total]]","v":0},{"$f":"Dataset[[#This Row],[2023/24 Reduction]]","v":0},{"$f":"SUM(Dataset[[#This Row],[2024/25 Reduction]],Dataset[[#This Row],[2024/25 From - Total]],Dataset[[#This Row],[2024/25 To - Total]])","v":0},{"$f":"SUM(Dataset[[#This Row],[2025/26 Reduction]],Dataset[[#This Row],[2025/26 From - Total]],Dataset[[#This Row],[2025/26 To - Total]])","v":0},{"$f":"SUM(Dataset[[#This Row],[2026/27 Reduction]],Dataset[[#This Row],[2026/27 From - Total]],Dataset[[#This Row],[2026/27 To - Total]])","v":0},{"$f":"Dataset[[#This Row],[2023/24 Baseline]]+Dataset[[#This Row],[2023/24 Total change]]","v":0},{"$f":"Dataset[[#This Row],[2024/25 Baseline]]+Dataset[[#This Row],[2024/25 Total change]]","v":0},{"$f":"Dataset[[#This Row],[2025/26 Baseline]]+Dataset[[#This Row],[2025/26 Total change]]","v":0},{"$f":"Dataset[[#This Row],[2026/27 Baseline]]+Dataset[[#This Row],[2026/27 Total change]]","v":0}]
["NAT|Non-transfer item","26|Transport provided: Departmental activity","2024_25","MTEF2024",26,1,3,44077,190,"26","01","03","044077","000190","26|01|03","01","01","02","36","36","01|01|02|36|36","National","Military Veterans","Administration","Financial Administration","Non-transfer item","Current","Current payments","Goods and services","Transport provided: Departmental activity","Transport provided: Departmental activity","Peace and security","Defence and state security","NAT",0,0,0,0,0,0,0,0,0,0,0,null,null,null,null,null,null,null,null,null,null,null,null,null,null,null,null,null,null,null,null,null,null,null,null,null,null,null,null,null,null,null,null,null,null,{"$f":"Dataset[[#This Row],[2024/25 From - Spending review Topic 1]]+Dataset[[#This Row],[2024/25 From - Spending review Topic 2]]+Dataset[[#This Row],[2024/25 From - Spending review Topic 3]]+Dataset[[#This Row],[2024/25 From - Spending review Topic 4]]+Dataset[[#This Row],[2024/25 From - Other reallocations]]","v":0},{"$f":"Dataset[[#This Row],[2025/26 From - Spending review Topic 1]]+Dataset[[#This Row],[2025/26 From - Spending review Topic 2]]+Dataset[[#This Row],[2025/26 From - Spending review Topic 3]]+Dataset[[#This Row],[2025/26 From - Spending review Topic 4]]+Dataset[[#This Row],[2025/26 From - Other reallocations]]","v":0},{"$f":"Dataset[[#This Row],[2026/27 From - Spending review Topic 1]]+Dataset[[#This Row],[2026/27 From - Spending review Topic 2]]+Dataset[[#This Row],[2026/27 From - Spending review Topic 3]]+Dataset[[#This Row],[2026/27 From - Spending review Topic 4]]+Dataset[[#This Row],[2026/27 From - Other reallocations]]","v":0},{"$f":"Dataset[[#This Row],[2024/25 To - Spending review Topic 1]]+Dataset[[#This Row],[2024/25 To - Spending review Topic 2]]+Dataset[[#This Row],[2024/25 To - Spending review Topic 3]]+Dataset[[#This Row],[2024/25 To - Spending review Topic 4]]+Dataset[[#This Row],[2024/25 To - Other reallocations]]","v":0},{"$f":"Dataset[[#This Row],[2025/26 To - Spending review Topic 1]]+Dataset[[#This Row],[2025/26 To - Spending review Topic 2]]+Dataset[[#This Row],[2025/26 To - Spending review Topic 3]]+Dataset[[#This Row],[2025/26 To - Spending review Topic 4]]+Dataset[[#This Row],[2025/26 To - Other reallocations]]","v":0},{"$f":"Dataset[[#This Row],[2026/27 To - Spending review Topic 1]]+Dataset[[#This Row],[2026/27 To - Spending review Topic 2]]+Dataset[[#This Row],[2026/27 To - Spending review Topic 3]]+Dataset[[#This Row],[2026/27 To - Spending review Topic 4]]+Dataset[[#This Row],[2026/27 To - Other reallocations]]","v":0},{"$f":"Dataset[[#This Row],[2024/25 Reduction]]+Dataset[[#This Row],[2024/25 From - Total]]","v":0},{"$f":"Dataset[[#This Row],[2025/26 Reduction]]+Dataset[[#This Row],[2025/26 From - Total]]","v":0},{"$f":"Dataset[[#This Row],[2026/27 Reduction]]+Dataset[[#This Row],[2026/27 From - Total]]","v":0},{"$f":"Dataset[[#This Row],[2023/24 Reduction]]","v":0},{"$f":"SUM(Dataset[[#This Row],[2024/25 Reduction]],Dataset[[#This Row],[2024/25 From - Total]],Dataset[[#This Row],[2024/25 To - Total]])","v":0},{"$f":"SUM(Dataset[[#This Row],[2025/26 Reduction]],Dataset[[#This Row],[2025/26 From - Total]],Dataset[[#This Row],[2025/26 To - Total]])","v":0},{"$f":"SUM(Dataset[[#This Row],[2026/27 Reduction]],Dataset[[#This Row],[2026/27 From - Total]],Dataset[[#This Row],[2026/27 To - Total]])","v":0},{"$f":"Dataset[[#This Row],[2023/24 Baseline]]+Dataset[[#This Row],[2023/24 Total change]]","v":0},{"$f":"Dataset[[#This Row],[2024/25 Baseline]]+Dataset[[#This Row],[2024/25 Total change]]","v":0},{"$f":"Dataset[[#This Row],[2025/26 Baseline]]+Dataset[[#This Row],[2025/26 Total change]]","v":0},{"$f":"Dataset[[#This Row],[2026/27 Baseline]]+Dataset[[#This Row],[2026/27 Total change]]","v":0}]
["NAT|Non-transfer item","26|Travel and subsistence","2024_25","MTEF2024",26,1,3,44078,191,"26","01","03","044078","000191","26|01|03","01","01","02","37","37","01|01|02|37|37","National","Military Veterans","Administration","Financial Administration","Non-transfer item","Current","Current payments","Goods and services","Travel and subsistence","Travel and subsistence","Peace and security","Defence and state security","NAT",149,68,160,605,401,401,0,501,500,527,551,null,null,null,null,null,null,null,null,null,null,null,null,null,null,null,null,null,null,null,null,null,null,null,null,null,null,null,null,null,null,null,null,null,null,{"$f":"Dataset[[#This Row],[2024/25 From - Spending review Topic 1]]+Dataset[[#This Row],[2024/25 From - Spending review Topic 2]]+Dataset[[#This Row],[2024/25 From - Spending review Topic 3]]+Dataset[[#This Row],[2024/25 From - Spending review Topic 4]]+Dataset[[#This Row],[2024/25 From - Other reallocations]]","v":0},{"$f":"Dataset[[#This Row],[2025/26 From - Spending review Topic 1]]+Dataset[[#This Row],[2025/26 From - Spending review Topic 2]]+Dataset[[#This Row],[2025/26 From - Spending review Topic 3]]+Dataset[[#This Row],[2025/26 From - Spending review Topic 4]]+Dataset[[#This Row],[2025/26 From - Other reallocations]]","v":0},{"$f":"Dataset[[#This Row],[2026/27 From - Spending review Topic 1]]+Dataset[[#This Row],[2026/27 From - Spending review Topic 2]]+Dataset[[#This Row],[2026/27 From - Spending review Topic 3]]+Dataset[[#This Row],[2026/27 From - Spending review Topic 4]]+Dataset[[#This Row],[2026/27 From - Other reallocations]]","v":0},{"$f":"Dataset[[#This Row],[2024/25 To - Spending review Topic 1]]+Dataset[[#This Row],[2024/25 To - Spending review Topic 2]]+Dataset[[#This Row],[2024/25 To - Spending review Topic 3]]+Dataset[[#This Row],[2024/25 To - Spending review Topic 4]]+Dataset[[#This Row],[2024/25 To - Other reallocations]]","v":0},{"$f":"Dataset[[#This Row],[2025/26 To - Spending review Topic 1]]+Dataset[[#This Row],[2025/26 To - Spending review Topic 2]]+Dataset[[#This Row],[2025/26 To - Spending review Topic 3]]+Dataset[[#This Row],[2025/26 To - Spending review Topic 4]]+Dataset[[#This Row],[2025/26 To - Other reallocations]]","v":0},{"$f":"Dataset[[#This Row],[2026/27 To - Spending review Topic 1]]+Dataset[[#This Row],[2026/27 To - Spending review Topic 2]]+Dataset[[#This Row],[2026/27 To - Spending review Topic 3]]+Dataset[[#This Row],[2026/27 To - Spending review Topic 4]]+Dataset[[#This Row],[2026/27 To - Other reallocations]]","v":0},{"$f":"Dataset[[#This Row],[2024/25 Reduction]]+Dataset[[#This Row],[2024/25 From - Total]]","v":0},{"$f":"Dataset[[#This Row],[2025/26 Reduction]]+Dataset[[#This Row],[2025/26 From - Total]]","v":0},{"$f":"Dataset[[#This Row],[2026/27 Reduction]]+Dataset[[#This Row],[2026/27 From - Total]]","v":0},{"$f":"Dataset[[#This Row],[2023/24 Reduction]]","v":0},{"$f":"SUM(Dataset[[#This Row],[2024/25 Reduction]],Dataset[[#This Row],[2024/25 From - Total]],Dataset[[#This Row],[2024/25 To - Total]])","v":0},{"$f":"SUM(Dataset[[#This Row],[2025/26 Reduction]],Dataset[[#This Row],[2025/26 From - Total]],Dataset[[#This Row],[2025/26 To - Total]])","v":0},{"$f":"SUM(Dataset[[#This Row],[2026/27 Reduction]],Dataset[[#This Row],[2026/27 From - Total]],Dataset[[#This Row],[2026/27 To - Total]])","v":0},{"$f":"Dataset[[#This Row],[2023/24 Baseline]]+Dataset[[#This Row],[2023/24 Total change]]","v":501},{"$f":"Dataset[[#This Row],[2024/25 Baseline]]+Dataset[[#This Row],[2024/25 Total change]]","v":500},{"$f":"Dataset[[#This Row],[2025/26 Baseline]]+Dataset[[#This Row],[2025/26 Total change]]","v":527},{"$f":"Dataset[[#This Row],[2026/27 Baseline]]+Dataset[[#This Row],[2026/27 Total change]]","v":551}]
["NAT|Non-transfer item","26|Training and development","2024_25","MTEF2024",26,1,3,44079,192,"26","01","03","044079","000192","26|01|03","01","01","02","38","38","01|01|02|38|38","National","Military Veterans","Administration","Financial Administration","Non-transfer item","Current","Current payments","Goods and services","Training and development","Training and development","Peace and security","Defence and state security","NAT",0,0,0,0,0,0,0,0,0,0,0,null,null,null,null,null,null,null,null,null,null,null,null,null,null,null,null,null,null,null,null,null,null,null,null,null,null,null,null,null,null,null,null,null,null,{"$f":"Dataset[[#This Row],[2024/25 From - Spending review Topic 1]]+Dataset[[#This Row],[2024/25 From - Spending review Topic 2]]+Dataset[[#This Row],[2024/25 From - Spending review Topic 3]]+Dataset[[#This Row],[2024/25 From - Spending review Topic 4]]+Dataset[[#This Row],[2024/25 From - Other reallocations]]","v":0},{"$f":"Dataset[[#This Row],[2025/26 From - Spending review Topic 1]]+Dataset[[#This Row],[2025/26 From - Spending review Topic 2]]+Dataset[[#This Row],[2025/26 From - Spending review Topic 3]]+Dataset[[#This Row],[2025/26 From - Spending review Topic 4]]+Dataset[[#This Row],[2025/26 From - Other reallocations]]","v":0},{"$f":"Dataset[[#This Row],[2026/27 From - Spending review Topic 1]]+Dataset[[#This Row],[2026/27 From - Spending review Topic 2]]+Dataset[[#This Row],[2026/27 From - Spending review Topic 3]]+Dataset[[#This Row],[2026/27 From - Spending review Topic 4]]+Dataset[[#This Row],[2026/27 From - Other reallocations]]","v":0},{"$f":"Dataset[[#This Row],[2024/25 To - Spending review Topic 1]]+Dataset[[#This Row],[2024/25 To - Spending review Topic 2]]+Dataset[[#This Row],[2024/25 To - Spending review Topic 3]]+Dataset[[#This Row],[2024/25 To - Spending review Topic 4]]+Dataset[[#This Row],[2024/25 To - Other reallocations]]","v":0},{"$f":"Dataset[[#This Row],[2025/26 To - Spending review Topic 1]]+Dataset[[#This Row],[2025/26 To - Spending review Topic 2]]+Dataset[[#This Row],[2025/26 To - Spending review Topic 3]]+Dataset[[#This Row],[2025/26 To - Spending review Topic 4]]+Dataset[[#This Row],[2025/26 To - Other reallocations]]","v":0},{"$f":"Dataset[[#This Row],[2026/27 To - Spending review Topic 1]]+Dataset[[#This Row],[2026/27 To - Spending review Topic 2]]+Dataset[[#This Row],[2026/27 To - Spending review Topic 3]]+Dataset[[#This Row],[2026/27 To - Spending review Topic 4]]+Dataset[[#This Row],[2026/27 To - Other reallocations]]","v":0},{"$f":"Dataset[[#This Row],[2024/25 Reduction]]+Dataset[[#This Row],[2024/25 From - Total]]","v":0},{"$f":"Dataset[[#This Row],[2025/26 Reduction]]+Dataset[[#This Row],[2025/26 From - Total]]","v":0},{"$f":"Dataset[[#This Row],[2026/27 Reduction]]+Dataset[[#This Row],[2026/27 From - Total]]","v":0},{"$f":"Dataset[[#This Row],[2023/24 Reduction]]","v":0},{"$f":"SUM(Dataset[[#This Row],[2024/25 Reduction]],Dataset[[#This Row],[2024/25 From - Total]],Dataset[[#This Row],[2024/25 To - Total]])","v":0},{"$f":"SUM(Dataset[[#This Row],[2025/26 Reduction]],Dataset[[#This Row],[2025/26 From - Total]],Dataset[[#This Row],[2025/26 To - Total]])","v":0},{"$f":"SUM(Dataset[[#This Row],[2026/27 Reduction]],Dataset[[#This Row],[2026/27 From - Total]],Dataset[[#This Row],[2026/27 To - Total]])","v":0},{"$f":"Dataset[[#This Row],[2023/24 Baseline]]+Dataset[[#This Row],[2023/24 Total change]]","v":0},{"$f":"Dataset[[#This Row],[2024/25 Baseline]]+Dataset[[#This Row],[2024/25 Total change]]","v":0},{"$f":"Dataset[[#This Row],[2025/26 Baseline]]+Dataset[[#This Row],[2025/26 Total change]]","v":0},{"$f":"Dataset[[#This Row],[2026/27 Baseline]]+Dataset[[#This Row],[2026/27 Total change]]","v":0}]
["NAT|Non-transfer item","26|Operating payments","2024_25","MTEF2024",26,1,3,44080,193,"26","01","03","044080","000193","26|01|03","01","01","02","39","39","01|01|02|39|39","National","Military Veterans","Administration","Financial Administration","Non-transfer item","Current","Current payments","Goods and services","Operating payments","Operating payments","Peace and security","Defence and state security","NAT",1,6,3,10,10,10,0,10,10,10,10,null,null,null,null,null,null,null,null,null,null,null,null,null,null,null,null,null,null,null,null,null,null,null,null,null,null,null,null,null,null,null,null,null,null,{"$f":"Dataset[[#This Row],[2024/25 From - Spending review Topic 1]]+Dataset[[#This Row],[2024/25 From - Spending review Topic 2]]+Dataset[[#This Row],[2024/25 From - Spending review Topic 3]]+Dataset[[#This Row],[2024/25 From - Spending review Topic 4]]+Dataset[[#This Row],[2024/25 From - Other reallocations]]","v":0},{"$f":"Dataset[[#This Row],[2025/26 From - Spending review Topic 1]]+Dataset[[#This Row],[2025/26 From - Spending review Topic 2]]+Dataset[[#This Row],[2025/26 From - Spending review Topic 3]]+Dataset[[#This Row],[2025/26 From - Spending review Topic 4]]+Dataset[[#This Row],[2025/26 From - Other reallocations]]","v":0},{"$f":"Dataset[[#This Row],[2026/27 From - Spending review Topic 1]]+Dataset[[#This Row],[2026/27 From - Spending review Topic 2]]+Dataset[[#This Row],[2026/27 From - Spending review Topic 3]]+Dataset[[#This Row],[2026/27 From - Spending review Topic 4]]+Dataset[[#This Row],[2026/27 From - Other reallocations]]","v":0},{"$f":"Dataset[[#This Row],[2024/25 To - Spending review Topic 1]]+Dataset[[#This Row],[2024/25 To - Spending review Topic 2]]+Dataset[[#This Row],[2024/25 To - Spending review Topic 3]]+Dataset[[#This Row],[2024/25 To - Spending review Topic 4]]+Dataset[[#This Row],[2024/25 To - Other reallocations]]","v":0},{"$f":"Dataset[[#This Row],[2025/26 To - Spending review Topic 1]]+Dataset[[#This Row],[2025/26 To - Spending review Topic 2]]+Dataset[[#This Row],[2025/26 To - Spending review Topic 3]]+Dataset[[#This Row],[2025/26 To - Spending review Topic 4]]+Dataset[[#This Row],[2025/26 To - Other reallocations]]","v":0},{"$f":"Dataset[[#This Row],[2026/27 To - Spending review Topic 1]]+Dataset[[#This Row],[2026/27 To - Spending review Topic 2]]+Dataset[[#This Row],[2026/27 To - Spending review Topic 3]]+Dataset[[#This Row],[2026/27 To - Spending review Topic 4]]+Dataset[[#This Row],[2026/27 To - Other reallocations]]","v":0},{"$f":"Dataset[[#This Row],[2024/25 Reduction]]+Dataset[[#This Row],[2024/25 From - Total]]","v":0},{"$f":"Dataset[[#This Row],[2025/26 Reduction]]+Dataset[[#This Row],[2025/26 From - Total]]","v":0},{"$f":"Dataset[[#This Row],[2026/27 Reduction]]+Dataset[[#This Row],[2026/27 From - Total]]","v":0},{"$f":"Dataset[[#This Row],[2023/24 Reduction]]","v":0},{"$f":"SUM(Dataset[[#This Row],[2024/25 Reduction]],Dataset[[#This Row],[2024/25 From - Total]],Dataset[[#This Row],[2024/25 To - Total]])","v":0},{"$f":"SUM(Dataset[[#This Row],[2025/26 Reduction]],Dataset[[#This Row],[2025/26 From - Total]],Dataset[[#This Row],[2025/26 To - Total]])","v":0},{"$f":"SUM(Dataset[[#This Row],[2026/27 Reduction]],Dataset[[#This Row],[2026/27 From - Total]],Dataset[[#This Row],[2026/27 To - Total]])","v":0},{"$f":"Dataset[[#This Row],[2023/24 Baseline]]+Dataset[[#This Row],[2023/24 Total change]]","v":10},{"$f":"Dataset[[#This Row],[2024/25 Baseline]]+Dataset[[#This Row],[2024/25 Total change]]","v":10},{"$f":"Dataset[[#This Row],[2025/26 Baseline]]+Dataset[[#This Row],[2025/26 Total change]]","v":10},{"$f":"Dataset[[#This Row],[2026/27 Baseline]]+Dataset[[#This Row],[2026/27 Total change]]","v":10}]
["NAT|Non-transfer item","26|Venues and facilities","2024_25","MTEF2024",26,1,3,44081,194,"26","01","03","044081","000194","26|01|03","01","01","02","40","40","01|01|02|40|40","National","Military Veterans","Administration","Financial Administration","Non-transfer item","Current","Current payments","Goods and services","Venues and facilities","Venues and facilities","Peace and security","Defence and state security","NAT",0,0,0,100,30,30,0,10,20,26,27,null,null,null,null,null,null,null,null,null,null,null,null,null,null,null,null,null,null,null,null,null,null,null,null,null,null,null,null,null,null,null,null,null,null,{"$f":"Dataset[[#This Row],[2024/25 From - Spending review Topic 1]]+Dataset[[#This Row],[2024/25 From - Spending review Topic 2]]+Dataset[[#This Row],[2024/25 From - Spending review Topic 3]]+Dataset[[#This Row],[2024/25 From - Spending review Topic 4]]+Dataset[[#This Row],[2024/25 From - Other reallocations]]","v":0},{"$f":"Dataset[[#This Row],[2025/26 From - Spending review Topic 1]]+Dataset[[#This Row],[2025/26 From - Spending review Topic 2]]+Dataset[[#This Row],[2025/26 From - Spending review Topic 3]]+Dataset[[#This Row],[2025/26 From - Spending review Topic 4]]+Dataset[[#This Row],[2025/26 From - Other reallocations]]","v":0},{"$f":"Dataset[[#This Row],[2026/27 From - Spending review Topic 1]]+Dataset[[#This Row],[2026/27 From - Spending review Topic 2]]+Dataset[[#This Row],[2026/27 From - Spending review Topic 3]]+Dataset[[#This Row],[2026/27 From - Spending review Topic 4]]+Dataset[[#This Row],[2026/27 From - Other reallocations]]","v":0},{"$f":"Dataset[[#This Row],[2024/25 To - Spending review Topic 1]]+Dataset[[#This Row],[2024/25 To - Spending review Topic 2]]+Dataset[[#This Row],[2024/25 To - Spending review Topic 3]]+Dataset[[#This Row],[2024/25 To - Spending review Topic 4]]+Dataset[[#This Row],[2024/25 To - Other reallocations]]","v":0},{"$f":"Dataset[[#This Row],[2025/26 To - Spending review Topic 1]]+Dataset[[#This Row],[2025/26 To - Spending review Topic 2]]+Dataset[[#This Row],[2025/26 To - Spending review Topic 3]]+Dataset[[#This Row],[2025/26 To - Spending review Topic 4]]+Dataset[[#This Row],[2025/26 To - Other reallocations]]","v":0},{"$f":"Dataset[[#This Row],[2026/27 To - Spending review Topic 1]]+Dataset[[#This Row],[2026/27 To - Spending review Topic 2]]+Dataset[[#This Row],[2026/27 To - Spending review Topic 3]]+Dataset[[#This Row],[2026/27 To - Spending review Topic 4]]+Dataset[[#This Row],[2026/27 To - Other reallocations]]","v":0},{"$f":"Dataset[[#This Row],[2024/25 Reduction]]+Dataset[[#This Row],[2024/25 From - Total]]","v":0},{"$f":"Dataset[[#This Row],[2025/26 Reduction]]+Dataset[[#This Row],[2025/26 From - Total]]","v":0},{"$f":"Dataset[[#This Row],[2026/27 Reduction]]+Dataset[[#This Row],[2026/27 From - Total]]","v":0},{"$f":"Dataset[[#This Row],[2023/24 Reduction]]","v":0},{"$f":"SUM(Dataset[[#This Row],[2024/25 Reduction]],Dataset[[#This Row],[2024/25 From - Total]],Dataset[[#This Row],[2024/25 To - Total]])","v":0},{"$f":"SUM(Dataset[[#This Row],[2025/26 Reduction]],Dataset[[#This Row],[2025/26 From - Total]],Dataset[[#This Row],[2025/26 To - Total]])","v":0},{"$f":"SUM(Dataset[[#This Row],[2026/27 Reduction]],Dataset[[#This Row],[2026/27 From - Total]],Dataset[[#This Row],[2026/27 To - Total]])","v":0},{"$f":"Dataset[[#This Row],[2023/24 Baseline]]+Dataset[[#This Row],[2023/24 Total change]]","v":10},{"$f":"Dataset[[#This Row],[2024/25 Baseline]]+Dataset[[#This Row],[2024/25 Total change]]","v":20},{"$f":"Dataset[[#This Row],[2025/26 Baseline]]+Dataset[[#This Row],[2025/26 Total change]]","v":26},{"$f":"Dataset[[#This Row],[2026/27 Baseline]]+Dataset[[#This Row],[2026/27 Total change]]","v":27}]
["NAT|Non-transfer item","26|Interest (Incl. interest on unitary payments (PPP))","2024_25","MTEF2024",26,1,3,44082,195,"26","01","03","044082","000195","26|01|03","01","01","03","41","41","01|01|03|41|41","National","Military Veterans","Administration","Financial Administration","Non-transfer item","Current","Current payments","Interest and rent on land","Interest (Incl. interest on unitary payments (PPP))","Interest (Incl. interest on unitary payments (PPP))","Peace and security","Defence and state security","NAT",0,0,0,0,0,0,0,0,0,0,0,null,null,null,null,null,null,null,null,null,null,null,null,null,null,null,null,null,null,null,null,null,null,null,null,null,null,null,null,null,null,null,null,null,null,{"$f":"Dataset[[#This Row],[2024/25 From - Spending review Topic 1]]+Dataset[[#This Row],[2024/25 From - Spending review Topic 2]]+Dataset[[#This Row],[2024/25 From - Spending review Topic 3]]+Dataset[[#This Row],[2024/25 From - Spending review Topic 4]]+Dataset[[#This Row],[2024/25 From - Other reallocations]]","v":0},{"$f":"Dataset[[#This Row],[2025/26 From - Spending review Topic 1]]+Dataset[[#This Row],[2025/26 From - Spending review Topic 2]]+Dataset[[#This Row],[2025/26 From - Spending review Topic 3]]+Dataset[[#This Row],[2025/26 From - Spending review Topic 4]]+Dataset[[#This Row],[2025/26 From - Other reallocations]]","v":0},{"$f":"Dataset[[#This Row],[2026/27 From - Spending review Topic 1]]+Dataset[[#This Row],[2026/27 From - Spending review Topic 2]]+Dataset[[#This Row],[2026/27 From - Spending review Topic 3]]+Dataset[[#This Row],[2026/27 From - Spending review Topic 4]]+Dataset[[#This Row],[2026/27 From - Other reallocations]]","v":0},{"$f":"Dataset[[#This Row],[2024/25 To - Spending review Topic 1]]+Dataset[[#This Row],[2024/25 To - Spending review Topic 2]]+Dataset[[#This Row],[2024/25 To - Spending review Topic 3]]+Dataset[[#This Row],[2024/25 To - Spending review Topic 4]]+Dataset[[#This Row],[2024/25 To - Other reallocations]]","v":0},{"$f":"Dataset[[#This Row],[2025/26 To - Spending review Topic 1]]+Dataset[[#This Row],[2025/26 To - Spending review Topic 2]]+Dataset[[#This Row],[2025/26 To - Spending review Topic 3]]+Dataset[[#This Row],[2025/26 To - Spending review Topic 4]]+Dataset[[#This Row],[2025/26 To - Other reallocations]]","v":0},{"$f":"Dataset[[#This Row],[2026/27 To - Spending review Topic 1]]+Dataset[[#This Row],[2026/27 To - Spending review Topic 2]]+Dataset[[#This Row],[2026/27 To - Spending review Topic 3]]+Dataset[[#This Row],[2026/27 To - Spending review Topic 4]]+Dataset[[#This Row],[2026/27 To - Other reallocations]]","v":0},{"$f":"Dataset[[#This Row],[2024/25 Reduction]]+Dataset[[#This Row],[2024/25 From - Total]]","v":0},{"$f":"Dataset[[#This Row],[2025/26 Reduction]]+Dataset[[#This Row],[2025/26 From - Total]]","v":0},{"$f":"Dataset[[#This Row],[2026/27 Reduction]]+Dataset[[#This Row],[2026/27 From - Total]]","v":0},{"$f":"Dataset[[#This Row],[2023/24 Reduction]]","v":0},{"$f":"SUM(Dataset[[#This Row],[2024/25 Reduction]],Dataset[[#This Row],[2024/25 From - Total]],Dataset[[#This Row],[2024/25 To - Total]])","v":0},{"$f":"SUM(Dataset[[#This Row],[2025/26 Reduction]],Dataset[[#This Row],[2025/26 From - Total]],Dataset[[#This Row],[2025/26 To - Total]])","v":0},{"$f":"SUM(Dataset[[#This Row],[2026/27 Reduction]],Dataset[[#This Row],[2026/27 From - Total]],Dataset[[#This Row],[2026/27 To - Total]])","v":0},{"$f":"Dataset[[#This Row],[2023/24 Baseline]]+Dataset[[#This Row],[2023/24 Total change]]","v":0},{"$f":"Dataset[[#This Row],[2024/25 Baseline]]+Dataset[[#This Row],[2024/25 Total change]]","v":0},{"$f":"Dataset[[#This Row],[2025/26 Baseline]]+Dataset[[#This Row],[2025/26 Total change]]","v":0},{"$f":"Dataset[[#This Row],[2026/27 Baseline]]+Dataset[[#This Row],[2026/27 Total change]]","v":0}]
["NAT|Non-transfer item","26|Rent on land","2024_25","MTEF2024",26,1,3,44083,196,"26","01","03","044083","000196","26|01|03","01","01","03","42","42","01|01|03|42|42","National","Military Veterans","Administration","Financial Administration","Non-transfer item","Current","Current payments","Interest and rent on land","Rent on land","Rent on land","Peace and security","Defence and state security","NAT",0,0,0,0,0,0,0,0,0,0,0,null,null,null,null,null,null,null,null,null,null,null,null,null,null,null,null,null,null,null,null,null,null,null,null,null,null,null,null,null,null,null,null,null,null,{"$f":"Dataset[[#This Row],[2024/25 From - Spending review Topic 1]]+Dataset[[#This Row],[2024/25 From - Spending review Topic 2]]+Dataset[[#This Row],[2024/25 From - Spending review Topic 3]]+Dataset[[#This Row],[2024/25 From - Spending review Topic 4]]+Dataset[[#This Row],[2024/25 From - Other reallocations]]","v":0},{"$f":"Dataset[[#This Row],[2025/26 From - Spending review Topic 1]]+Dataset[[#This Row],[2025/26 From - Spending review Topic 2]]+Dataset[[#This Row],[2025/26 From - Spending review Topic 3]]+Dataset[[#This Row],[2025/26 From - Spending review Topic 4]]+Dataset[[#This Row],[2025/26 From - Other reallocations]]","v":0},{"$f":"Dataset[[#This Row],[2026/27 From - Spending review Topic 1]]+Dataset[[#This Row],[2026/27 From - Spending review Topic 2]]+Dataset[[#This Row],[2026/27 From - Spending review Topic 3]]+Dataset[[#This Row],[2026/27 From - Spending review Topic 4]]+Dataset[[#This Row],[2026/27 From - Other reallocations]]","v":0},{"$f":"Dataset[[#This Row],[2024/25 To - Spending review Topic 1]]+Dataset[[#This Row],[2024/25 To - Spending review Topic 2]]+Dataset[[#This Row],[2024/25 To - Spending review Topic 3]]+Dataset[[#This Row],[2024/25 To - Spending review Topic 4]]+Dataset[[#This Row],[2024/25 To - Other reallocations]]","v":0},{"$f":"Dataset[[#This Row],[2025/26 To - Spending review Topic 1]]+Dataset[[#This Row],[2025/26 To - Spending review Topic 2]]+Dataset[[#This Row],[2025/26 To - Spending review Topic 3]]+Dataset[[#This Row],[2025/26 To - Spending review Topic 4]]+Dataset[[#This Row],[2025/26 To - Other reallocations]]","v":0},{"$f":"Dataset[[#This Row],[2026/27 To - Spending review Topic 1]]+Dataset[[#This Row],[2026/27 To - Spending review Topic 2]]+Dataset[[#This Row],[2026/27 To - Spending review Topic 3]]+Dataset[[#This Row],[2026/27 To - Spending review Topic 4]]+Dataset[[#This Row],[2026/27 To - Other reallocations]]","v":0},{"$f":"Dataset[[#This Row],[2024/25 Reduction]]+Dataset[[#This Row],[2024/25 From - Total]]","v":0},{"$f":"Dataset[[#This Row],[2025/26 Reduction]]+Dataset[[#This Row],[2025/26 From - Total]]","v":0},{"$f":"Dataset[[#This Row],[2026/27 Reduction]]+Dataset[[#This Row],[2026/27 From - Total]]","v":0},{"$f":"Dataset[[#This Row],[2023/24 Reduction]]","v":0},{"$f":"SUM(Dataset[[#This Row],[2024/25 Reduction]],Dataset[[#This Row],[2024/25 From - Total]],Dataset[[#This Row],[2024/25 To - Total]])","v":0},{"$f":"SUM(Dataset[[#This Row],[2025/26 Reduction]],Dataset[[#This Row],[2025/26 From - Total]],Dataset[[#This Row],[2025/26 To - Total]])","v":0},{"$f":"SUM(Dataset[[#This Row],[2026/27 Reduction]],Dataset[[#This Row],[2026/27 From - Total]],Dataset[[#This Row],[2026/27 To - Total]])","v":0},{"$f":"Dataset[[#This Row],[2023/24 Baseline]]+Dataset[[#This Row],[2023/24 Total change]]","v":0},{"$f":"Dataset[[#This Row],[2024/25 Baseline]]+Dataset[[#This Row],[2024/25 Total change]]","v":0},{"$f":"Dataset[[#This Row],[2025/26 Baseline]]+Dataset[[#This Row],[2025/26 Total change]]","v":0},{"$f":"Dataset[[#This Row],[2026/27 Baseline]]+Dataset[[#This Row],[2026/27 Total change]]","v":0}]
["NAT|Non-transfer item","26|Provincial Revenue Funds","2024_25","MTEF2024",26,1,3,44084,197,"26","01","03","044084","000197","26|01|03","01","02","04","43","43","01|02|04|43|43","National","Military Veterans","Administration","Financial Administration","Non-transfer item","Current","Transfers and subsidies","Provinces and municipalities","Provinces","Provincial Revenue Funds","Peace and security","Defence and state security","NAT",0,0,0,0,0,0,0,0,0,0,0,null,null,null,null,null,null,null,null,null,null,null,null,null,null,null,null,null,null,null,null,null,null,null,null,null,null,null,null,null,null,null,null,null,null,{"$f":"Dataset[[#This Row],[2024/25 From - Spending review Topic 1]]+Dataset[[#This Row],[2024/25 From - Spending review Topic 2]]+Dataset[[#This Row],[2024/25 From - Spending review Topic 3]]+Dataset[[#This Row],[2024/25 From - Spending review Topic 4]]+Dataset[[#This Row],[2024/25 From - Other reallocations]]","v":0},{"$f":"Dataset[[#This Row],[2025/26 From - Spending review Topic 1]]+Dataset[[#This Row],[2025/26 From - Spending review Topic 2]]+Dataset[[#This Row],[2025/26 From - Spending review Topic 3]]+Dataset[[#This Row],[2025/26 From - Spending review Topic 4]]+Dataset[[#This Row],[2025/26 From - Other reallocations]]","v":0},{"$f":"Dataset[[#This Row],[2026/27 From - Spending review Topic 1]]+Dataset[[#This Row],[2026/27 From - Spending review Topic 2]]+Dataset[[#This Row],[2026/27 From - Spending review Topic 3]]+Dataset[[#This Row],[2026/27 From - Spending review Topic 4]]+Dataset[[#This Row],[2026/27 From - Other reallocations]]","v":0},{"$f":"Dataset[[#This Row],[2024/25 To - Spending review Topic 1]]+Dataset[[#This Row],[2024/25 To - Spending review Topic 2]]+Dataset[[#This Row],[2024/25 To - Spending review Topic 3]]+Dataset[[#This Row],[2024/25 To - Spending review Topic 4]]+Dataset[[#This Row],[2024/25 To - Other reallocations]]","v":0},{"$f":"Dataset[[#This Row],[2025/26 To - Spending review Topic 1]]+Dataset[[#This Row],[2025/26 To - Spending review Topic 2]]+Dataset[[#This Row],[2025/26 To - Spending review Topic 3]]+Dataset[[#This Row],[2025/26 To - Spending review Topic 4]]+Dataset[[#This Row],[2025/26 To - Other reallocations]]","v":0},{"$f":"Dataset[[#This Row],[2026/27 To - Spending review Topic 1]]+Dataset[[#This Row],[2026/27 To - Spending review Topic 2]]+Dataset[[#This Row],[2026/27 To - Spending review Topic 3]]+Dataset[[#This Row],[2026/27 To - Spending review Topic 4]]+Dataset[[#This Row],[2026/27 To - Other reallocations]]","v":0},{"$f":"Dataset[[#This Row],[2024/25 Reduction]]+Dataset[[#This Row],[2024/25 From - Total]]","v":0},{"$f":"Dataset[[#This Row],[2025/26 Reduction]]+Dataset[[#This Row],[2025/26 From - Total]]","v":0},{"$f":"Dataset[[#This Row],[2026/27 Reduction]]+Dataset[[#This Row],[2026/27 From - Total]]","v":0},{"$f":"Dataset[[#This Row],[2023/24 Reduction]]","v":0},{"$f":"SUM(Dataset[[#This Row],[2024/25 Reduction]],Dataset[[#This Row],[2024/25 From - Total]],Dataset[[#This Row],[2024/25 To - Total]])","v":0},{"$f":"SUM(Dataset[[#This Row],[2025/26 Reduction]],Dataset[[#This Row],[2025/26 From - Total]],Dataset[[#This Row],[2025/26 To - Total]])","v":0},{"$f":"SUM(Dataset[[#This Row],[2026/27 Reduction]],Dataset[[#This Row],[2026/27 From - Total]],Dataset[[#This Row],[2026/27 To - Total]])","v":0},{"$f":"Dataset[[#This Row],[2023/24 Baseline]]+Dataset[[#This Row],[2023/24 Total change]]","v":0},{"$f":"Dataset[[#This Row],[2024/25 Baseline]]+Dataset[[#This Row],[2024/25 Total change]]","v":0},{"$f":"Dataset[[#This Row],[2025/26 Baseline]]+Dataset[[#This Row],[2025/26 Total change]]","v":0},{"$f":"Dataset[[#This Row],[2026/27 Baseline]]+Dataset[[#This Row],[2026/27 Total change]]","v":0}]
["NAT|Non-transfer item","26|Provincial agencies and funds","2024_25","MTEF2024",26,1,3,44085,198,"26","01","03","044085","000198","26|01|03","01","02","04","43","44","01|02|04|43|44","National","Military Veterans","Administration","Financial Administration","Non-transfer item","Current","Transfers and subsidies","Provinces and municipalities","Provinces","Provincial agencies and funds","Peace and security","Defence and state security","NAT",0,0,0,0,0,0,0,0,0,0,0,null,null,null,null,null,null,null,null,null,null,null,null,null,null,null,null,null,null,null,null,null,null,null,null,null,null,null,null,null,null,null,null,null,null,{"$f":"Dataset[[#This Row],[2024/25 From - Spending review Topic 1]]+Dataset[[#This Row],[2024/25 From - Spending review Topic 2]]+Dataset[[#This Row],[2024/25 From - Spending review Topic 3]]+Dataset[[#This Row],[2024/25 From - Spending review Topic 4]]+Dataset[[#This Row],[2024/25 From - Other reallocations]]","v":0},{"$f":"Dataset[[#This Row],[2025/26 From - Spending review Topic 1]]+Dataset[[#This Row],[2025/26 From - Spending review Topic 2]]+Dataset[[#This Row],[2025/26 From - Spending review Topic 3]]+Dataset[[#This Row],[2025/26 From - Spending review Topic 4]]+Dataset[[#This Row],[2025/26 From - Other reallocations]]","v":0},{"$f":"Dataset[[#This Row],[2026/27 From - Spending review Topic 1]]+Dataset[[#This Row],[2026/27 From - Spending review Topic 2]]+Dataset[[#This Row],[2026/27 From - Spending review Topic 3]]+Dataset[[#This Row],[2026/27 From - Spending review Topic 4]]+Dataset[[#This Row],[2026/27 From - Other reallocations]]","v":0},{"$f":"Dataset[[#This Row],[2024/25 To - Spending review Topic 1]]+Dataset[[#This Row],[2024/25 To - Spending review Topic 2]]+Dataset[[#This Row],[2024/25 To - Spending review Topic 3]]+Dataset[[#This Row],[2024/25 To - Spending review Topic 4]]+Dataset[[#This Row],[2024/25 To - Other reallocations]]","v":0},{"$f":"Dataset[[#This Row],[2025/26 To - Spending review Topic 1]]+Dataset[[#This Row],[2025/26 To - Spending review Topic 2]]+Dataset[[#This Row],[2025/26 To - Spending review Topic 3]]+Dataset[[#This Row],[2025/26 To - Spending review Topic 4]]+Dataset[[#This Row],[2025/26 To - Other reallocations]]","v":0},{"$f":"Dataset[[#This Row],[2026/27 To - Spending review Topic 1]]+Dataset[[#This Row],[2026/27 To - Spending review Topic 2]]+Dataset[[#This Row],[2026/27 To - Spending review Topic 3]]+Dataset[[#This Row],[2026/27 To - Spending review Topic 4]]+Dataset[[#This Row],[2026/27 To - Other reallocations]]","v":0},{"$f":"Dataset[[#This Row],[2024/25 Reduction]]+Dataset[[#This Row],[2024/25 From - Total]]","v":0},{"$f":"Dataset[[#This Row],[2025/26 Reduction]]+Dataset[[#This Row],[2025/26 From - Total]]","v":0},{"$f":"Dataset[[#This Row],[2026/27 Reduction]]+Dataset[[#This Row],[2026/27 From - Total]]","v":0},{"$f":"Dataset[[#This Row],[2023/24 Reduction]]","v":0},{"$f":"SUM(Dataset[[#This Row],[2024/25 Reduction]],Dataset[[#This Row],[2024/25 From - Total]],Dataset[[#This Row],[2024/25 To - Total]])","v":0},{"$f":"SUM(Dataset[[#This Row],[2025/26 Reduction]],Dataset[[#This Row],[2025/26 From - Total]],Dataset[[#This Row],[2025/26 To - Total]])","v":0},{"$f":"SUM(Dataset[[#This Row],[2026/27 Reduction]],Dataset[[#This Row],[2026/27 From - Total]],Dataset[[#This Row],[2026/27 To - Total]])","v":0},{"$f":"Dataset[[#This Row],[2023/24 Baseline]]+Dataset[[#This Row],[2023/24 Total change]]","v":0},{"$f":"Dataset[[#This Row],[2024/25 Baseline]]+Dataset[[#This Row],[2024/25 Total change]]","v":0},{"$f":"Dataset[[#This Row],[2025/26 Baseline]]+Dataset[[#This Row],[2025/26 Total change]]","v":0},{"$f":"Dataset[[#This Row],[2026/27 Baseline]]+Dataset[[#This Row],[2026/27 Total change]]","v":0}]
["NAT|Non-transfer item","26|Municipal bank accounts","2024_25","MTEF2024",26,1,3,44086,199,"26","01","03","044086","000199","26|01|03","01","02","04","44","45","01|02|04|44|45","National","Military Veterans","Administration","Financial Administration","Non-transfer item","Current","Transfers and subsidies","Provinces and municipalities","Municipalities","Municipal bank accounts","Peace and security","Defence and state security","NAT",0,0,0,0,0,0,0,0,0,0,0,null,null,null,null,null,null,null,null,null,null,null,null,null,null,null,null,null,null,null,null,null,null,null,null,null,null,null,null,null,null,null,null,null,null,{"$f":"Dataset[[#This Row],[2024/25 From - Spending review Topic 1]]+Dataset[[#This Row],[2024/25 From - Spending review Topic 2]]+Dataset[[#This Row],[2024/25 From - Spending review Topic 3]]+Dataset[[#This Row],[2024/25 From - Spending review Topic 4]]+Dataset[[#This Row],[2024/25 From - Other reallocations]]","v":0},{"$f":"Dataset[[#This Row],[2025/26 From - Spending review Topic 1]]+Dataset[[#This Row],[2025/26 From - Spending review Topic 2]]+Dataset[[#This Row],[2025/26 From - Spending review Topic 3]]+Dataset[[#This Row],[2025/26 From - Spending review Topic 4]]+Dataset[[#This Row],[2025/26 From - Other reallocations]]","v":0},{"$f":"Dataset[[#This Row],[2026/27 From - Spending review Topic 1]]+Dataset[[#This Row],[2026/27 From - Spending review Topic 2]]+Dataset[[#This Row],[2026/27 From - Spending review Topic 3]]+Dataset[[#This Row],[2026/27 From - Spending review Topic 4]]+Dataset[[#This Row],[2026/27 From - Other reallocations]]","v":0},{"$f":"Dataset[[#This Row],[2024/25 To - Spending review Topic 1]]+Dataset[[#This Row],[2024/25 To - Spending review Topic 2]]+Dataset[[#This Row],[2024/25 To - Spending review Topic 3]]+Dataset[[#This Row],[2024/25 To - Spending review Topic 4]]+Dataset[[#This Row],[2024/25 To - Other reallocations]]","v":0},{"$f":"Dataset[[#This Row],[2025/26 To - Spending review Topic 1]]+Dataset[[#This Row],[2025/26 To - Spending review Topic 2]]+Dataset[[#This Row],[2025/26 To - Spending review Topic 3]]+Dataset[[#This Row],[2025/26 To - Spending review Topic 4]]+Dataset[[#This Row],[2025/26 To - Other reallocations]]","v":0},{"$f":"Dataset[[#This Row],[2026/27 To - Spending review Topic 1]]+Dataset[[#This Row],[2026/27 To - Spending review Topic 2]]+Dataset[[#This Row],[2026/27 To - Spending review Topic 3]]+Dataset[[#This Row],[2026/27 To - Spending review Topic 4]]+Dataset[[#This Row],[2026/27 To - Other reallocations]]","v":0},{"$f":"Dataset[[#This Row],[2024/25 Reduction]]+Dataset[[#This Row],[2024/25 From - Total]]","v":0},{"$f":"Dataset[[#This Row],[2025/26 Reduction]]+Dataset[[#This Row],[2025/26 From - Total]]","v":0},{"$f":"Dataset[[#This Row],[2026/27 Reduction]]+Dataset[[#This Row],[2026/27 From - Total]]","v":0},{"$f":"Dataset[[#This Row],[2023/24 Reduction]]","v":0},{"$f":"SUM(Dataset[[#This Row],[2024/25 Reduction]],Dataset[[#This Row],[2024/25 From - Total]],Dataset[[#This Row],[2024/25 To - Total]])","v":0},{"$f":"SUM(Dataset[[#This Row],[2025/26 Reduction]],Dataset[[#This Row],[2025/26 From - Total]],Dataset[[#This Row],[2025/26 To - Total]])","v":0},{"$f":"SUM(Dataset[[#This Row],[2026/27 Reduction]],Dataset[[#This Row],[2026/27 From - Total]],Dataset[[#This Row],[2026/27 To - Total]])","v":0},{"$f":"Dataset[[#This Row],[2023/24 Baseline]]+Dataset[[#This Row],[2023/24 Total change]]","v":0},{"$f":"Dataset[[#This Row],[2024/25 Baseline]]+Dataset[[#This Row],[2024/25 Total change]]","v":0},{"$f":"Dataset[[#This Row],[2025/26 Baseline]]+Dataset[[#This Row],[2025/26 Total change]]","v":0},{"$f":"Dataset[[#This Row],[2026/27 Baseline]]+Dataset[[#This Row],[2026/27 Total change]]","v":0}]
["NAT|Non-transfer item","26|Municipal agencies and funds","2024_25","MTEF2024",26,1,3,44087,200,"26","01","03","044087","000200","26|01|03","01","02","04","44","46","01|02|04|44|46","National","Military Veterans","Administration","Financial Administration","Non-transfer item","Current","Transfers and subsidies","Provinces and municipalities","Municipalities","Municipal agencies and funds","Peace and security","Defence and state security","NAT",0,0,0,0,0,0,0,0,0,0,0,null,null,null,null,null,null,null,null,null,null,null,null,null,null,null,null,null,null,null,null,null,null,null,null,null,null,null,null,null,null,null,null,null,null,{"$f":"Dataset[[#This Row],[2024/25 From - Spending review Topic 1]]+Dataset[[#This Row],[2024/25 From - Spending review Topic 2]]+Dataset[[#This Row],[2024/25 From - Spending review Topic 3]]+Dataset[[#This Row],[2024/25 From - Spending review Topic 4]]+Dataset[[#This Row],[2024/25 From - Other reallocations]]","v":0},{"$f":"Dataset[[#This Row],[2025/26 From - Spending review Topic 1]]+Dataset[[#This Row],[2025/26 From - Spending review Topic 2]]+Dataset[[#This Row],[2025/26 From - Spending review Topic 3]]+Dataset[[#This Row],[2025/26 From - Spending review Topic 4]]+Dataset[[#This Row],[2025/26 From - Other reallocations]]","v":0},{"$f":"Dataset[[#This Row],[2026/27 From - Spending review Topic 1]]+Dataset[[#This Row],[2026/27 From - Spending review Topic 2]]+Dataset[[#This Row],[2026/27 From - Spending review Topic 3]]+Dataset[[#This Row],[2026/27 From - Spending review Topic 4]]+Dataset[[#This Row],[2026/27 From - Other reallocations]]","v":0},{"$f":"Dataset[[#This Row],[2024/25 To - Spending review Topic 1]]+Dataset[[#This Row],[2024/25 To - Spending review Topic 2]]+Dataset[[#This Row],[2024/25 To - Spending review Topic 3]]+Dataset[[#This Row],[2024/25 To - Spending review Topic 4]]+Dataset[[#This Row],[2024/25 To - Other reallocations]]","v":0},{"$f":"Dataset[[#This Row],[2025/26 To - Spending review Topic 1]]+Dataset[[#This Row],[2025/26 To - Spending review Topic 2]]+Dataset[[#This Row],[2025/26 To - Spending review Topic 3]]+Dataset[[#This Row],[2025/26 To - Spending review Topic 4]]+Dataset[[#This Row],[2025/26 To - Other reallocations]]","v":0},{"$f":"Dataset[[#This Row],[2026/27 To - Spending review Topic 1]]+Dataset[[#This Row],[2026/27 To - Spending review Topic 2]]+Dataset[[#This Row],[2026/27 To - Spending review Topic 3]]+Dataset[[#This Row],[2026/27 To - Spending review Topic 4]]+Dataset[[#This Row],[2026/27 To - Other reallocations]]","v":0},{"$f":"Dataset[[#This Row],[2024/25 Reduction]]+Dataset[[#This Row],[2024/25 From - Total]]","v":0},{"$f":"Dataset[[#This Row],[2025/26 Reduction]]+Dataset[[#This Row],[2025/26 From - Total]]","v":0},{"$f":"Dataset[[#This Row],[2026/27 Reduction]]+Dataset[[#This Row],[2026/27 From - Total]]","v":0},{"$f":"Dataset[[#This Row],[2023/24 Reduction]]","v":0},{"$f":"SUM(Dataset[[#This Row],[2024/25 Reduction]],Dataset[[#This Row],[2024/25 From - Total]],Dataset[[#This Row],[2024/25 To - Total]])","v":0},{"$f":"SUM(Dataset[[#This Row],[2025/26 Reduction]],Dataset[[#This Row],[2025/26 From - Total]],Dataset[[#This Row],[2025/26 To - Total]])","v":0},{"$f":"SUM(Dataset[[#This Row],[2026/27 Reduction]],Dataset[[#This Row],[2026/27 From - Total]],Dataset[[#This Row],[2026/27 To - Total]])","v":0},{"$f":"Dataset[[#This Row],[2023/24 Baseline]]+Dataset[[#This Row],[2023/24 Total change]]","v":0},{"$f":"Dataset[[#This Row],[2024/25 Baseline]]+Dataset[[#This Row],[2024/25 Total change]]","v":0},{"$f":"Dataset[[#This Row],[2025/26 Baseline]]+Dataset[[#This Row],[2025/26 Total change]]","v":0},{"$f":"Dataset[[#This Row],[2026/27 Baseline]]+Dataset[[#This Row],[2026/27 Total change]]","v":0}]
["NAT|Non-transfer item","26|Social security funds","2024_25","MTEF2024",26,1,3,44088,201,"26","01","03","044088","000201","26|01|03","01","02","05","45","47","01|02|05|45|47","National","Military Veterans","Administration","Financial Administration","Non-transfer item","Current","Transfers and subsidies","Departmental agencies and accounts","Social security funds","Social security funds","Peace and security","Defence and state security","NAT",0,0,0,0,0,0,0,0,0,0,0,null,null,null,null,null,null,null,null,null,null,null,null,null,null,null,null,null,null,null,null,null,null,null,null,null,null,null,null,null,null,null,null,null,null,{"$f":"Dataset[[#This Row],[2024/25 From - Spending review Topic 1]]+Dataset[[#This Row],[2024/25 From - Spending review Topic 2]]+Dataset[[#This Row],[2024/25 From - Spending review Topic 3]]+Dataset[[#This Row],[2024/25 From - Spending review Topic 4]]+Dataset[[#This Row],[2024/25 From - Other reallocations]]","v":0},{"$f":"Dataset[[#This Row],[2025/26 From - Spending review Topic 1]]+Dataset[[#This Row],[2025/26 From - Spending review Topic 2]]+Dataset[[#This Row],[2025/26 From - Spending review Topic 3]]+Dataset[[#This Row],[2025/26 From - Spending review Topic 4]]+Dataset[[#This Row],[2025/26 From - Other reallocations]]","v":0},{"$f":"Dataset[[#This Row],[2026/27 From - Spending review Topic 1]]+Dataset[[#This Row],[2026/27 From - Spending review Topic 2]]+Dataset[[#This Row],[2026/27 From - Spending review Topic 3]]+Dataset[[#This Row],[2026/27 From - Spending review Topic 4]]+Dataset[[#This Row],[2026/27 From - Other reallocations]]","v":0},{"$f":"Dataset[[#This Row],[2024/25 To - Spending review Topic 1]]+Dataset[[#This Row],[2024/25 To - Spending review Topic 2]]+Dataset[[#This Row],[2024/25 To - Spending review Topic 3]]+Dataset[[#This Row],[2024/25 To - Spending review Topic 4]]+Dataset[[#This Row],[2024/25 To - Other reallocations]]","v":0},{"$f":"Dataset[[#This Row],[2025/26 To - Spending review Topic 1]]+Dataset[[#This Row],[2025/26 To - Spending review Topic 2]]+Dataset[[#This Row],[2025/26 To - Spending review Topic 3]]+Dataset[[#This Row],[2025/26 To - Spending review Topic 4]]+Dataset[[#This Row],[2025/26 To - Other reallocations]]","v":0},{"$f":"Dataset[[#This Row],[2026/27 To - Spending review Topic 1]]+Dataset[[#This Row],[2026/27 To - Spending review Topic 2]]+Dataset[[#This Row],[2026/27 To - Spending review Topic 3]]+Dataset[[#This Row],[2026/27 To - Spending review Topic 4]]+Dataset[[#This Row],[2026/27 To - Other reallocations]]","v":0},{"$f":"Dataset[[#This Row],[2024/25 Reduction]]+Dataset[[#This Row],[2024/25 From - Total]]","v":0},{"$f":"Dataset[[#This Row],[2025/26 Reduction]]+Dataset[[#This Row],[2025/26 From - Total]]","v":0},{"$f":"Dataset[[#This Row],[2026/27 Reduction]]+Dataset[[#This Row],[2026/27 From - Total]]","v":0},{"$f":"Dataset[[#This Row],[2023/24 Reduction]]","v":0},{"$f":"SUM(Dataset[[#This Row],[2024/25 Reduction]],Dataset[[#This Row],[2024/25 From - Total]],Dataset[[#This Row],[2024/25 To - Total]])","v":0},{"$f":"SUM(Dataset[[#This Row],[2025/26 Reduction]],Dataset[[#This Row],[2025/26 From - Total]],Dataset[[#This Row],[2025/26 To - Total]])","v":0},{"$f":"SUM(Dataset[[#This Row],[2026/27 Reduction]],Dataset[[#This Row],[2026/27 From - Total]],Dataset[[#This Row],[2026/27 To - Total]])","v":0},{"$f":"Dataset[[#This Row],[2023/24 Baseline]]+Dataset[[#This Row],[2023/24 Total change]]","v":0},{"$f":"Dataset[[#This Row],[2024/25 Baseline]]+Dataset[[#This Row],[2024/25 Total change]]","v":0},{"$f":"Dataset[[#This Row],[2025/26 Baseline]]+Dataset[[#This Row],[2025/26 Total change]]","v":0},{"$f":"Dataset[[#This Row],[2026/27 Baseline]]+Dataset[[#This Row],[2026/27 Total change]]","v":0}]
["NAT|Non-transfer item","26|Departmental agencies (non-business entities)","2024_25","MTEF2024",26,1,3,44089,202,"26","01","03","044089","000202","26|01|03","01","02","05","46","48","01|02|05|46|48","National","Military Veterans","Administration","Financial Administration","Non-transfer item","Current","Transfers and subsidies","Departmental agencies and accounts","Departmental agencies (non-business entities)","Departmental agencies (non-business entities)","Peace and security","Defence and state security","NAT",0,0,0,0,0,0,0,0,0,0,0,null,null,null,null,null,null,null,null,null,null,null,null,null,null,null,null,null,null,null,null,null,null,null,null,null,null,null,null,null,null,null,null,null,null,{"$f":"Dataset[[#This Row],[2024/25 From - Spending review Topic 1]]+Dataset[[#This Row],[2024/25 From - Spending review Topic 2]]+Dataset[[#This Row],[2024/25 From - Spending review Topic 3]]+Dataset[[#This Row],[2024/25 From - Spending review Topic 4]]+Dataset[[#This Row],[2024/25 From - Other reallocations]]","v":0},{"$f":"Dataset[[#This Row],[2025/26 From - Spending review Topic 1]]+Dataset[[#This Row],[2025/26 From - Spending review Topic 2]]+Dataset[[#This Row],[2025/26 From - Spending review Topic 3]]+Dataset[[#This Row],[2025/26 From - Spending review Topic 4]]+Dataset[[#This Row],[2025/26 From - Other reallocations]]","v":0},{"$f":"Dataset[[#This Row],[2026/27 From - Spending review Topic 1]]+Dataset[[#This Row],[2026/27 From - Spending review Topic 2]]+Dataset[[#This Row],[2026/27 From - Spending review Topic 3]]+Dataset[[#This Row],[2026/27 From - Spending review Topic 4]]+Dataset[[#This Row],[2026/27 From - Other reallocations]]","v":0},{"$f":"Dataset[[#This Row],[2024/25 To - Spending review Topic 1]]+Dataset[[#This Row],[2024/25 To - Spending review Topic 2]]+Dataset[[#This Row],[2024/25 To - Spending review Topic 3]]+Dataset[[#This Row],[2024/25 To - Spending review Topic 4]]+Dataset[[#This Row],[2024/25 To - Other reallocations]]","v":0},{"$f":"Dataset[[#This Row],[2025/26 To - Spending review Topic 1]]+Dataset[[#This Row],[2025/26 To - Spending review Topic 2]]+Dataset[[#This Row],[2025/26 To - Spending review Topic 3]]+Dataset[[#This Row],[2025/26 To - Spending review Topic 4]]+Dataset[[#This Row],[2025/26 To - Other reallocations]]","v":0},{"$f":"Dataset[[#This Row],[2026/27 To - Spending review Topic 1]]+Dataset[[#This Row],[2026/27 To - Spending review Topic 2]]+Dataset[[#This Row],[2026/27 To - Spending review Topic 3]]+Dataset[[#This Row],[2026/27 To - Spending review Topic 4]]+Dataset[[#This Row],[2026/27 To - Other reallocations]]","v":0},{"$f":"Dataset[[#This Row],[2024/25 Reduction]]+Dataset[[#This Row],[2024/25 From - Total]]","v":0},{"$f":"Dataset[[#This Row],[2025/26 Reduction]]+Dataset[[#This Row],[2025/26 From - Total]]","v":0},{"$f":"Dataset[[#This Row],[2026/27 Reduction]]+Dataset[[#This Row],[2026/27 From - Total]]","v":0},{"$f":"Dataset[[#This Row],[2023/24 Reduction]]","v":0},{"$f":"SUM(Dataset[[#This Row],[2024/25 Reduction]],Dataset[[#This Row],[2024/25 From - Total]],Dataset[[#This Row],[2024/25 To - Total]])","v":0},{"$f":"SUM(Dataset[[#This Row],[2025/26 Reduction]],Dataset[[#This Row],[2025/26 From - Total]],Dataset[[#This Row],[2025/26 To - Total]])","v":0},{"$f":"SUM(Dataset[[#This Row],[2026/27 Reduction]],Dataset[[#This Row],[2026/27 From - Total]],Dataset[[#This Row],[2026/27 To - Total]])","v":0},{"$f":"Dataset[[#This Row],[2023/24 Baseline]]+Dataset[[#This Row],[2023/24 Total change]]","v":0},{"$f":"Dataset[[#This Row],[2024/25 Baseline]]+Dataset[[#This Row],[2024/25 Total change]]","v":0},{"$f":"Dataset[[#This Row],[2025/26 Baseline]]+Dataset[[#This Row],[2025/26 Total change]]","v":0},{"$f":"Dataset[[#This Row],[2026/27 Baseline]]+Dataset[[#This Row],[2026/27 Total change]]","v":0}]
["NAT|Non-transfer item","26|Higher education institutions","2024_25","MTEF2024",26,1,3,44090,203,"26","01","03","044090","000203","26|01|03","01","02","06","47","49","01|02|06|47|49","National","Military Veterans","Administration","Financial Administration","Non-transfer item","Current","Transfers and subsidies","Higher education institutions","Higher education institutions","Higher education institutions","Peace and security","Defence and state security","NAT",0,0,0,0,0,0,0,0,0,0,0,null,null,null,null,null,null,null,null,null,null,null,null,null,null,null,null,null,null,null,null,null,null,null,null,null,null,null,null,null,null,null,null,null,null,{"$f":"Dataset[[#This Row],[2024/25 From - Spending review Topic 1]]+Dataset[[#This Row],[2024/25 From - Spending review Topic 2]]+Dataset[[#This Row],[2024/25 From - Spending review Topic 3]]+Dataset[[#This Row],[2024/25 From - Spending review Topic 4]]+Dataset[[#This Row],[2024/25 From - Other reallocations]]","v":0},{"$f":"Dataset[[#This Row],[2025/26 From - Spending review Topic 1]]+Dataset[[#This Row],[2025/26 From - Spending review Topic 2]]+Dataset[[#This Row],[2025/26 From - Spending review Topic 3]]+Dataset[[#This Row],[2025/26 From - Spending review Topic 4]]+Dataset[[#This Row],[2025/26 From - Other reallocations]]","v":0},{"$f":"Dataset[[#This Row],[2026/27 From - Spending review Topic 1]]+Dataset[[#This Row],[2026/27 From - Spending review Topic 2]]+Dataset[[#This Row],[2026/27 From - Spending review Topic 3]]+Dataset[[#This Row],[2026/27 From - Spending review Topic 4]]+Dataset[[#This Row],[2026/27 From - Other reallocations]]","v":0},{"$f":"Dataset[[#This Row],[2024/25 To - Spending review Topic 1]]+Dataset[[#This Row],[2024/25 To - Spending review Topic 2]]+Dataset[[#This Row],[2024/25 To - Spending review Topic 3]]+Dataset[[#This Row],[2024/25 To - Spending review Topic 4]]+Dataset[[#This Row],[2024/25 To - Other reallocations]]","v":0},{"$f":"Dataset[[#This Row],[2025/26 To - Spending review Topic 1]]+Dataset[[#This Row],[2025/26 To - Spending review Topic 2]]+Dataset[[#This Row],[2025/26 To - Spending review Topic 3]]+Dataset[[#This Row],[2025/26 To - Spending review Topic 4]]+Dataset[[#This Row],[2025/26 To - Other reallocations]]","v":0},{"$f":"Dataset[[#This Row],[2026/27 To - Spending review Topic 1]]+Dataset[[#This Row],[2026/27 To - Spending review Topic 2]]+Dataset[[#This Row],[2026/27 To - Spending review Topic 3]]+Dataset[[#This Row],[2026/27 To - Spending review Topic 4]]+Dataset[[#This Row],[2026/27 To - Other reallocations]]","v":0},{"$f":"Dataset[[#This Row],[2024/25 Reduction]]+Dataset[[#This Row],[2024/25 From - Total]]","v":0},{"$f":"Dataset[[#This Row],[2025/26 Reduction]]+Dataset[[#This Row],[2025/26 From - Total]]","v":0},{"$f":"Dataset[[#This Row],[2026/27 Reduction]]+Dataset[[#This Row],[2026/27 From - Total]]","v":0},{"$f":"Dataset[[#This Row],[2023/24 Reduction]]","v":0},{"$f":"SUM(Dataset[[#This Row],[2024/25 Reduction]],Dataset[[#This Row],[2024/25 From - Total]],Dataset[[#This Row],[2024/25 To - Total]])","v":0},{"$f":"SUM(Dataset[[#This Row],[2025/26 Reduction]],Dataset[[#This Row],[2025/26 From - Total]],Dataset[[#This Row],[2025/26 To - Total]])","v":0},{"$f":"SUM(Dataset[[#This Row],[2026/27 Reduction]],Dataset[[#This Row],[2026/27 From - Total]],Dataset[[#This Row],[2026/27 To - Total]])","v":0},{"$f":"Dataset[[#This Row],[2023/24 Baseline]]+Dataset[[#This Row],[2023/24 Total change]]","v":0},{"$f":"Dataset[[#This Row],[2024/25 Baseline]]+Dataset[[#This Row],[2024/25 Total change]]","v":0},{"$f":"Dataset[[#This Row],[2025/26 Baseline]]+Dataset[[#This Row],[2025/26 Total change]]","v":0},{"$f":"Dataset[[#This Row],[2026/27 Baseline]]+Dataset[[#This Row],[2026/27 Total change]]","v":0}]
["NAT|Non-transfer item","26|Foreign governments and international organisations","2024_25","MTEF2024",26,1,3,44091,204,"26","01","03","044091","000204","26|01|03","01","02","07","48","50","01|02|07|48|50","National","Military Veterans","Administration","Financial Administration","Non-transfer item","Current","Transfers and subsidies","Foreign governments and international organisations","Foreign governments and international organisations","Foreign governments and international organisations","Peace and security","Defence and state security","NAT",0,0,0,0,0,0,0,0,0,0,0,null,null,null,null,null,null,null,null,null,null,null,null,null,null,null,null,null,null,null,null,null,null,null,null,null,null,null,null,null,null,null,null,null,null,{"$f":"Dataset[[#This Row],[2024/25 From - Spending review Topic 1]]+Dataset[[#This Row],[2024/25 From - Spending review Topic 2]]+Dataset[[#This Row],[2024/25 From - Spending review Topic 3]]+Dataset[[#This Row],[2024/25 From - Spending review Topic 4]]+Dataset[[#This Row],[2024/25 From - Other reallocations]]","v":0},{"$f":"Dataset[[#This Row],[2025/26 From - Spending review Topic 1]]+Dataset[[#This Row],[2025/26 From - Spending review Topic 2]]+Dataset[[#This Row],[2025/26 From - Spending review Topic 3]]+Dataset[[#This Row],[2025/26 From - Spending review Topic 4]]+Dataset[[#This Row],[2025/26 From - Other reallocations]]","v":0},{"$f":"Dataset[[#This Row],[2026/27 From - Spending review Topic 1]]+Dataset[[#This Row],[2026/27 From - Spending review Topic 2]]+Dataset[[#This Row],[2026/27 From - Spending review Topic 3]]+Dataset[[#This Row],[2026/27 From - Spending review Topic 4]]+Dataset[[#This Row],[2026/27 From - Other reallocations]]","v":0},{"$f":"Dataset[[#This Row],[2024/25 To - Spending review Topic 1]]+Dataset[[#This Row],[2024/25 To - Spending review Topic 2]]+Dataset[[#This Row],[2024/25 To - Spending review Topic 3]]+Dataset[[#This Row],[2024/25 To - Spending review Topic 4]]+Dataset[[#This Row],[2024/25 To - Other reallocations]]","v":0},{"$f":"Dataset[[#This Row],[2025/26 To - Spending review Topic 1]]+Dataset[[#This Row],[2025/26 To - Spending review Topic 2]]+Dataset[[#This Row],[2025/26 To - Spending review Topic 3]]+Dataset[[#This Row],[2025/26 To - Spending review Topic 4]]+Dataset[[#This Row],[2025/26 To - Other reallocations]]","v":0},{"$f":"Dataset[[#This Row],[2026/27 To - Spending review Topic 1]]+Dataset[[#This Row],[2026/27 To - Spending review Topic 2]]+Dataset[[#This Row],[2026/27 To - Spending review Topic 3]]+Dataset[[#This Row],[2026/27 To - Spending review Topic 4]]+Dataset[[#This Row],[2026/27 To - Other reallocations]]","v":0},{"$f":"Dataset[[#This Row],[2024/25 Reduction]]+Dataset[[#This Row],[2024/25 From - Total]]","v":0},{"$f":"Dataset[[#This Row],[2025/26 Reduction]]+Dataset[[#This Row],[2025/26 From - Total]]","v":0},{"$f":"Dataset[[#This Row],[2026/27 Reduction]]+Dataset[[#This Row],[2026/27 From - Total]]","v":0},{"$f":"Dataset[[#This Row],[2023/24 Reduction]]","v":0},{"$f":"SUM(Dataset[[#This Row],[2024/25 Reduction]],Dataset[[#This Row],[2024/25 From - Total]],Dataset[[#This Row],[2024/25 To - Total]])","v":0},{"$f":"SUM(Dataset[[#This Row],[2025/26 Reduction]],Dataset[[#This Row],[2025/26 From - Total]],Dataset[[#This Row],[2025/26 To - Total]])","v":0},{"$f":"SUM(Dataset[[#This Row],[2026/27 Reduction]],Dataset[[#This Row],[2026/27 From - Total]],Dataset[[#This Row],[2026/27 To - Total]])","v":0},{"$f":"Dataset[[#This Row],[2023/24 Baseline]]+Dataset[[#This Row],[2023/24 Total change]]","v":0},{"$f":"Dataset[[#This Row],[2024/25 Baseline]]+Dataset[[#This Row],[2024/25 Total change]]","v":0},{"$f":"Dataset[[#This Row],[2025/26 Baseline]]+Dataset[[#This Row],[2025/26 Total change]]","v":0},{"$f":"Dataset[[#This Row],[2026/27 Baseline]]+Dataset[[#This Row],[2026/27 Total change]]","v":0}]
["NAT|Non-transfer item","26|Subsidies on products and production (pc)","2024_25","MTEF2024",26,1,3,44092,205,"26","01","03","044092","000205","26|01|03","01","02","08","49","51","01|02|08|49|51","National","Military Veterans","Administration","Financial Administration","Non-transfer item","Current","Transfers and subsidies","Public corporations and private enterprises","Public corporations","Subsidies on products and production (pc)","Peace and security","Defence and state security","NAT",0,0,0,0,0,0,0,0,0,0,0,null,null,null,null,null,null,null,null,null,null,null,null,null,null,null,null,null,null,null,null,null,null,null,null,null,null,null,null,null,null,null,null,null,null,{"$f":"Dataset[[#This Row],[2024/25 From - Spending review Topic 1]]+Dataset[[#This Row],[2024/25 From - Spending review Topic 2]]+Dataset[[#This Row],[2024/25 From - Spending review Topic 3]]+Dataset[[#This Row],[2024/25 From - Spending review Topic 4]]+Dataset[[#This Row],[2024/25 From - Other reallocations]]","v":0},{"$f":"Dataset[[#This Row],[2025/26 From - Spending review Topic 1]]+Dataset[[#This Row],[2025/26 From - Spending review Topic 2]]+Dataset[[#This Row],[2025/26 From - Spending review Topic 3]]+Dataset[[#This Row],[2025/26 From - Spending review Topic 4]]+Dataset[[#This Row],[2025/26 From - Other reallocations]]","v":0},{"$f":"Dataset[[#This Row],[2026/27 From - Spending review Topic 1]]+Dataset[[#This Row],[2026/27 From - Spending review Topic 2]]+Dataset[[#This Row],[2026/27 From - Spending review Topic 3]]+Dataset[[#This Row],[2026/27 From - Spending review Topic 4]]+Dataset[[#This Row],[2026/27 From - Other reallocations]]","v":0},{"$f":"Dataset[[#This Row],[2024/25 To - Spending review Topic 1]]+Dataset[[#This Row],[2024/25 To - Spending review Topic 2]]+Dataset[[#This Row],[2024/25 To - Spending review Topic 3]]+Dataset[[#This Row],[2024/25 To - Spending review Topic 4]]+Dataset[[#This Row],[2024/25 To - Other reallocations]]","v":0},{"$f":"Dataset[[#This Row],[2025/26 To - Spending review Topic 1]]+Dataset[[#This Row],[2025/26 To - Spending review Topic 2]]+Dataset[[#This Row],[2025/26 To - Spending review Topic 3]]+Dataset[[#This Row],[2025/26 To - Spending review Topic 4]]+Dataset[[#This Row],[2025/26 To - Other reallocations]]","v":0},{"$f":"Dataset[[#This Row],[2026/27 To - Spending review Topic 1]]+Dataset[[#This Row],[2026/27 To - Spending review Topic 2]]+Dataset[[#This Row],[2026/27 To - Spending review Topic 3]]+Dataset[[#This Row],[2026/27 To - Spending review Topic 4]]+Dataset[[#This Row],[2026/27 To - Other reallocations]]","v":0},{"$f":"Dataset[[#This Row],[2024/25 Reduction]]+Dataset[[#This Row],[2024/25 From - Total]]","v":0},{"$f":"Dataset[[#This Row],[2025/26 Reduction]]+Dataset[[#This Row],[2025/26 From - Total]]","v":0},{"$f":"Dataset[[#This Row],[2026/27 Reduction]]+Dataset[[#This Row],[2026/27 From - Total]]","v":0},{"$f":"Dataset[[#This Row],[2023/24 Reduction]]","v":0},{"$f":"SUM(Dataset[[#This Row],[2024/25 Reduction]],Dataset[[#This Row],[2024/25 From - Total]],Dataset[[#This Row],[2024/25 To - Total]])","v":0},{"$f":"SUM(Dataset[[#This Row],[2025/26 Reduction]],Dataset[[#This Row],[2025/26 From - Total]],Dataset[[#This Row],[2025/26 To - Total]])","v":0},{"$f":"SUM(Dataset[[#This Row],[2026/27 Reduction]],Dataset[[#This Row],[2026/27 From - Total]],Dataset[[#This Row],[2026/27 To - Total]])","v":0},{"$f":"Dataset[[#This Row],[2023/24 Baseline]]+Dataset[[#This Row],[2023/24 Total change]]","v":0},{"$f":"Dataset[[#This Row],[2024/25 Baseline]]+Dataset[[#This Row],[2024/25 Total change]]","v":0},{"$f":"Dataset[[#This Row],[2025/26 Baseline]]+Dataset[[#This Row],[2025/26 Total change]]","v":0},{"$f":"Dataset[[#This Row],[2026/27 Baseline]]+Dataset[[#This Row],[2026/27 Total change]]","v":0}]
["NAT|Non-transfer item","26|Other transfers to public corporations","2024_25","MTEF2024",26,1,3,44093,206,"26","01","03","044093","000206","26|01|03","01","02","08","49","52","01|02|08|49|52","National","Military Veterans","Administration","Financial Administration","Non-transfer item","Current","Transfers and subsidies","Public corporations and private enterprises","Public corporations","Other transfers to public corporations","Peace and security","Defence and state security","NAT",0,0,0,0,0,0,0,0,0,0,0,null,null,null,null,null,null,null,null,null,null,null,null,null,null,null,null,null,null,null,null,null,null,null,null,null,null,null,null,null,null,null,null,null,null,{"$f":"Dataset[[#This Row],[2024/25 From - Spending review Topic 1]]+Dataset[[#This Row],[2024/25 From - Spending review Topic 2]]+Dataset[[#This Row],[2024/25 From - Spending review Topic 3]]+Dataset[[#This Row],[2024/25 From - Spending review Topic 4]]+Dataset[[#This Row],[2024/25 From - Other reallocations]]","v":0},{"$f":"Dataset[[#This Row],[2025/26 From - Spending review Topic 1]]+Dataset[[#This Row],[2025/26 From - Spending review Topic 2]]+Dataset[[#This Row],[2025/26 From - Spending review Topic 3]]+Dataset[[#This Row],[2025/26 From - Spending review Topic 4]]+Dataset[[#This Row],[2025/26 From - Other reallocations]]","v":0},{"$f":"Dataset[[#This Row],[2026/27 From - Spending review Topic 1]]+Dataset[[#This Row],[2026/27 From - Spending review Topic 2]]+Dataset[[#This Row],[2026/27 From - Spending review Topic 3]]+Dataset[[#This Row],[2026/27 From - Spending review Topic 4]]+Dataset[[#This Row],[2026/27 From - Other reallocations]]","v":0},{"$f":"Dataset[[#This Row],[2024/25 To - Spending review Topic 1]]+Dataset[[#This Row],[2024/25 To - Spending review Topic 2]]+Dataset[[#This Row],[2024/25 To - Spending review Topic 3]]+Dataset[[#This Row],[2024/25 To - Spending review Topic 4]]+Dataset[[#This Row],[2024/25 To - Other reallocations]]","v":0},{"$f":"Dataset[[#This Row],[2025/26 To - Spending review Topic 1]]+Dataset[[#This Row],[2025/26 To - Spending review Topic 2]]+Dataset[[#This Row],[2025/26 To - Spending review Topic 3]]+Dataset[[#This Row],[2025/26 To - Spending review Topic 4]]+Dataset[[#This Row],[2025/26 To - Other reallocations]]","v":0},{"$f":"Dataset[[#This Row],[2026/27 To - Spending review Topic 1]]+Dataset[[#This Row],[2026/27 To - Spending review Topic 2]]+Dataset[[#This Row],[2026/27 To - Spending review Topic 3]]+Dataset[[#This Row],[2026/27 To - Spending review Topic 4]]+Dataset[[#This Row],[2026/27 To - Other reallocations]]","v":0},{"$f":"Dataset[[#This Row],[2024/25 Reduction]]+Dataset[[#This Row],[2024/25 From - Total]]","v":0},{"$f":"Dataset[[#This Row],[2025/26 Reduction]]+Dataset[[#This Row],[2025/26 From - Total]]","v":0},{"$f":"Dataset[[#This Row],[2026/27 Reduction]]+Dataset[[#This Row],[2026/27 From - Total]]","v":0},{"$f":"Dataset[[#This Row],[2023/24 Reduction]]","v":0},{"$f":"SUM(Dataset[[#This Row],[2024/25 Reduction]],Dataset[[#This Row],[2024/25 From - Total]],Dataset[[#This Row],[2024/25 To - Total]])","v":0},{"$f":"SUM(Dataset[[#This Row],[2025/26 Reduction]],Dataset[[#This Row],[2025/26 From - Total]],Dataset[[#This Row],[2025/26 To - Total]])","v":0},{"$f":"SUM(Dataset[[#This Row],[2026/27 Reduction]],Dataset[[#This Row],[2026/27 From - Total]],Dataset[[#This Row],[2026/27 To - Total]])","v":0},{"$f":"Dataset[[#This Row],[2023/24 Baseline]]+Dataset[[#This Row],[2023/24 Total change]]","v":0},{"$f":"Dataset[[#This Row],[2024/25 Baseline]]+Dataset[[#This Row],[2024/25 Total change]]","v":0},{"$f":"Dataset[[#This Row],[2025/26 Baseline]]+Dataset[[#This Row],[2025/26 Total change]]","v":0},{"$f":"Dataset[[#This Row],[2026/27 Baseline]]+Dataset[[#This Row],[2026/27 Total change]]","v":0}]
["NAT|Non-transfer item","26|Subsidies on products and production (pe)","2024_25","MTEF2024",26,1,3,44094,207,"26","01","03","044094","000207","26|01|03","01","02","08","50","53","01|02|08|50|53","National","Military Veterans","Administration","Financial Administration","Non-transfer item","Current","Transfers and subsidies","Public corporations and private enterprises","Private enterprises","Subsidies on products and production (pe)","Peace and security","Defence and state security","NAT",0,0,0,0,0,0,0,0,0,0,0,null,null,null,null,null,null,null,null,null,null,null,null,null,null,null,null,null,null,null,null,null,null,null,null,null,null,null,null,null,null,null,null,null,null,{"$f":"Dataset[[#This Row],[2024/25 From - Spending review Topic 1]]+Dataset[[#This Row],[2024/25 From - Spending review Topic 2]]+Dataset[[#This Row],[2024/25 From - Spending review Topic 3]]+Dataset[[#This Row],[2024/25 From - Spending review Topic 4]]+Dataset[[#This Row],[2024/25 From - Other reallocations]]","v":0},{"$f":"Dataset[[#This Row],[2025/26 From - Spending review Topic 1]]+Dataset[[#This Row],[2025/26 From - Spending review Topic 2]]+Dataset[[#This Row],[2025/26 From - Spending review Topic 3]]+Dataset[[#This Row],[2025/26 From - Spending review Topic 4]]+Dataset[[#This Row],[2025/26 From - Other reallocations]]","v":0},{"$f":"Dataset[[#This Row],[2026/27 From - Spending review Topic 1]]+Dataset[[#This Row],[2026/27 From - Spending review Topic 2]]+Dataset[[#This Row],[2026/27 From - Spending review Topic 3]]+Dataset[[#This Row],[2026/27 From - Spending review Topic 4]]+Dataset[[#This Row],[2026/27 From - Other reallocations]]","v":0},{"$f":"Dataset[[#This Row],[2024/25 To - Spending review Topic 1]]+Dataset[[#This Row],[2024/25 To - Spending review Topic 2]]+Dataset[[#This Row],[2024/25 To - Spending review Topic 3]]+Dataset[[#This Row],[2024/25 To - Spending review Topic 4]]+Dataset[[#This Row],[2024/25 To - Other reallocations]]","v":0},{"$f":"Dataset[[#This Row],[2025/26 To - Spending review Topic 1]]+Dataset[[#This Row],[2025/26 To - Spending review Topic 2]]+Dataset[[#This Row],[2025/26 To - Spending review Topic 3]]+Dataset[[#This Row],[2025/26 To - Spending review Topic 4]]+Dataset[[#This Row],[2025/26 To - Other reallocations]]","v":0},{"$f":"Dataset[[#This Row],[2026/27 To - Spending review Topic 1]]+Dataset[[#This Row],[2026/27 To - Spending review Topic 2]]+Dataset[[#This Row],[2026/27 To - Spending review Topic 3]]+Dataset[[#This Row],[2026/27 To - Spending review Topic 4]]+Dataset[[#This Row],[2026/27 To - Other reallocations]]","v":0},{"$f":"Dataset[[#This Row],[2024/25 Reduction]]+Dataset[[#This Row],[2024/25 From - Total]]","v":0},{"$f":"Dataset[[#This Row],[2025/26 Reduction]]+Dataset[[#This Row],[2025/26 From - Total]]","v":0},{"$f":"Dataset[[#This Row],[2026/27 Reduction]]+Dataset[[#This Row],[2026/27 From - Total]]","v":0},{"$f":"Dataset[[#This Row],[2023/24 Reduction]]","v":0},{"$f":"SUM(Dataset[[#This Row],[2024/25 Reduction]],Dataset[[#This Row],[2024/25 From - Total]],Dataset[[#This Row],[2024/25 To - Total]])","v":0},{"$f":"SUM(Dataset[[#This Row],[2025/26 Reduction]],Dataset[[#This Row],[2025/26 From - Total]],Dataset[[#This Row],[2025/26 To - Total]])","v":0},{"$f":"SUM(Dataset[[#This Row],[2026/27 Reduction]],Dataset[[#This Row],[2026/27 From - Total]],Dataset[[#This Row],[2026/27 To - Total]])","v":0},{"$f":"Dataset[[#This Row],[2023/24 Baseline]]+Dataset[[#This Row],[2023/24 Total change]]","v":0},{"$f":"Dataset[[#This Row],[2024/25 Baseline]]+Dataset[[#This Row],[2024/25 Total change]]","v":0},{"$f":"Dataset[[#This Row],[2025/26 Baseline]]+Dataset[[#This Row],[2025/26 Total change]]","v":0},{"$f":"Dataset[[#This Row],[2026/27 Baseline]]+Dataset[[#This Row],[2026/27 Total change]]","v":0}]
["NAT|Non-transfer item","26|Other transfers to private enterprises","2024_25","MTEF2024",26,1,3,44095,208,"26","01","03","044095","000208","26|01|03","01","02","08","50","54","01|02|08|50|54","National","Military Veterans","Administration","Financial Administration","Non-transfer item","Current","Transfers and subsidies","Public corporations and private enterprises","Private enterprises","Other transfers to private enterprises","Peace and security","Defence and state security","NAT",0,0,0,0,0,0,0,0,0,0,0,null,null,null,null,null,null,null,null,null,null,null,null,null,null,null,null,null,null,null,null,null,null,null,null,null,null,null,null,null,null,null,null,null,null,{"$f":"Dataset[[#This Row],[2024/25 From - Spending review Topic 1]]+Dataset[[#This Row],[2024/25 From - Spending review Topic 2]]+Dataset[[#This Row],[2024/25 From - Spending review Topic 3]]+Dataset[[#This Row],[2024/25 From - Spending review Topic 4]]+Dataset[[#This Row],[2024/25 From - Other reallocations]]","v":0},{"$f":"Dataset[[#This Row],[2025/26 From - Spending review Topic 1]]+Dataset[[#This Row],[2025/26 From - Spending review Topic 2]]+Dataset[[#This Row],[2025/26 From - Spending review Topic 3]]+Dataset[[#This Row],[2025/26 From - Spending review Topic 4]]+Dataset[[#This Row],[2025/26 From - Other reallocations]]","v":0},{"$f":"Dataset[[#This Row],[2026/27 From - Spending review Topic 1]]+Dataset[[#This Row],[2026/27 From - Spending review Topic 2]]+Dataset[[#This Row],[2026/27 From - Spending review Topic 3]]+Dataset[[#This Row],[2026/27 From - Spending review Topic 4]]+Dataset[[#This Row],[2026/27 From - Other reallocations]]","v":0},{"$f":"Dataset[[#This Row],[2024/25 To - Spending review Topic 1]]+Dataset[[#This Row],[2024/25 To - Spending review Topic 2]]+Dataset[[#This Row],[2024/25 To - Spending review Topic 3]]+Dataset[[#This Row],[2024/25 To - Spending review Topic 4]]+Dataset[[#This Row],[2024/25 To - Other reallocations]]","v":0},{"$f":"Dataset[[#This Row],[2025/26 To - Spending review Topic 1]]+Dataset[[#This Row],[2025/26 To - Spending review Topic 2]]+Dataset[[#This Row],[2025/26 To - Spending review Topic 3]]+Dataset[[#This Row],[2025/26 To - Spending review Topic 4]]+Dataset[[#This Row],[2025/26 To - Other reallocations]]","v":0},{"$f":"Dataset[[#This Row],[2026/27 To - Spending review Topic 1]]+Dataset[[#This Row],[2026/27 To - Spending review Topic 2]]+Dataset[[#This Row],[2026/27 To - Spending review Topic 3]]+Dataset[[#This Row],[2026/27 To - Spending review Topic 4]]+Dataset[[#This Row],[2026/27 To - Other reallocations]]","v":0},{"$f":"Dataset[[#This Row],[2024/25 Reduction]]+Dataset[[#This Row],[2024/25 From - Total]]","v":0},{"$f":"Dataset[[#This Row],[2025/26 Reduction]]+Dataset[[#This Row],[2025/26 From - Total]]","v":0},{"$f":"Dataset[[#This Row],[2026/27 Reduction]]+Dataset[[#This Row],[2026/27 From - Total]]","v":0},{"$f":"Dataset[[#This Row],[2023/24 Reduction]]","v":0},{"$f":"SUM(Dataset[[#This Row],[2024/25 Reduction]],Dataset[[#This Row],[2024/25 From - Total]],Dataset[[#This Row],[2024/25 To - Total]])","v":0},{"$f":"SUM(Dataset[[#This Row],[2025/26 Reduction]],Dataset[[#This Row],[2025/26 From - Total]],Dataset[[#This Row],[2025/26 To - Total]])","v":0},{"$f":"SUM(Dataset[[#This Row],[2026/27 Reduction]],Dataset[[#This Row],[2026/27 From - Total]],Dataset[[#This Row],[2026/27 To - Total]])","v":0},{"$f":"Dataset[[#This Row],[2023/24 Baseline]]+Dataset[[#This Row],[2023/24 Total change]]","v":0},{"$f":"Dataset[[#This Row],[2024/25 Baseline]]+Dataset[[#This Row],[2024/25 Total change]]","v":0},{"$f":"Dataset[[#This Row],[2025/26 Baseline]]+Dataset[[#This Row],[2025/26 Total change]]","v":0},{"$f":"Dataset[[#This Row],[2026/27 Baseline]]+Dataset[[#This Row],[2026/27 Total change]]","v":0}]
["NAT|Non-transfer item","26|Non-profit institutions","2024_25","MTEF2024",26,1,3,44096,209,"26","01","03","044096","000209","26|01|03","01","02","09","51","55","01|02|09|51|55","National","Military Veterans","Administration","Financial Administration","Non-transfer item","Current","Transfers and subsidies","Non-profit institutions","Non-profit institutions","Non-profit institutions","Peace and security","Defence and state security","NAT",0,0,0,0,0,0,0,0,0,0,0,null,null,null,null,null,null,null,null,null,null,null,null,null,null,null,null,null,null,null,null,null,null,null,null,null,null,null,null,null,null,null,null,null,null,{"$f":"Dataset[[#This Row],[2024/25 From - Spending review Topic 1]]+Dataset[[#This Row],[2024/25 From - Spending review Topic 2]]+Dataset[[#This Row],[2024/25 From - Spending review Topic 3]]+Dataset[[#This Row],[2024/25 From - Spending review Topic 4]]+Dataset[[#This Row],[2024/25 From - Other reallocations]]","v":0},{"$f":"Dataset[[#This Row],[2025/26 From - Spending review Topic 1]]+Dataset[[#This Row],[2025/26 From - Spending review Topic 2]]+Dataset[[#This Row],[2025/26 From - Spending review Topic 3]]+Dataset[[#This Row],[2025/26 From - Spending review Topic 4]]+Dataset[[#This Row],[2025/26 From - Other reallocations]]","v":0},{"$f":"Dataset[[#This Row],[2026/27 From - Spending review Topic 1]]+Dataset[[#This Row],[2026/27 From - Spending review Topic 2]]+Dataset[[#This Row],[2026/27 From - Spending review Topic 3]]+Dataset[[#This Row],[2026/27 From - Spending review Topic 4]]+Dataset[[#This Row],[2026/27 From - Other reallocations]]","v":0},{"$f":"Dataset[[#This Row],[2024/25 To - Spending review Topic 1]]+Dataset[[#This Row],[2024/25 To - Spending review Topic 2]]+Dataset[[#This Row],[2024/25 To - Spending review Topic 3]]+Dataset[[#This Row],[2024/25 To - Spending review Topic 4]]+Dataset[[#This Row],[2024/25 To - Other reallocations]]","v":0},{"$f":"Dataset[[#This Row],[2025/26 To - Spending review Topic 1]]+Dataset[[#This Row],[2025/26 To - Spending review Topic 2]]+Dataset[[#This Row],[2025/26 To - Spending review Topic 3]]+Dataset[[#This Row],[2025/26 To - Spending review Topic 4]]+Dataset[[#This Row],[2025/26 To - Other reallocations]]","v":0},{"$f":"Dataset[[#This Row],[2026/27 To - Spending review Topic 1]]+Dataset[[#This Row],[2026/27 To - Spending review Topic 2]]+Dataset[[#This Row],[2026/27 To - Spending review Topic 3]]+Dataset[[#This Row],[2026/27 To - Spending review Topic 4]]+Dataset[[#This Row],[2026/27 To - Other reallocations]]","v":0},{"$f":"Dataset[[#This Row],[2024/25 Reduction]]+Dataset[[#This Row],[2024/25 From - Total]]","v":0},{"$f":"Dataset[[#This Row],[2025/26 Reduction]]+Dataset[[#This Row],[2025/26 From - Total]]","v":0},{"$f":"Dataset[[#This Row],[2026/27 Reduction]]+Dataset[[#This Row],[2026/27 From - Total]]","v":0},{"$f":"Dataset[[#This Row],[2023/24 Reduction]]","v":0},{"$f":"SUM(Dataset[[#This Row],[2024/25 Reduction]],Dataset[[#This Row],[2024/25 From - Total]],Dataset[[#This Row],[2024/25 To - Total]])","v":0},{"$f":"SUM(Dataset[[#This Row],[2025/26 Reduction]],Dataset[[#This Row],[2025/26 From - Total]],Dataset[[#This Row],[2025/26 To - Total]])","v":0},{"$f":"SUM(Dataset[[#This Row],[2026/27 Reduction]],Dataset[[#This Row],[2026/27 From - Total]],Dataset[[#This Row],[2026/27 To - Total]])","v":0},{"$f":"Dataset[[#This Row],[2023/24 Baseline]]+Dataset[[#This Row],[2023/24 Total change]]","v":0},{"$f":"Dataset[[#This Row],[2024/25 Baseline]]+Dataset[[#This Row],[2024/25 Total change]]","v":0},{"$f":"Dataset[[#This Row],[2025/26 Baseline]]+Dataset[[#This Row],[2025/26 Total change]]","v":0},{"$f":"Dataset[[#This Row],[2026/27 Baseline]]+Dataset[[#This Row],[2026/27 Total change]]","v":0}]
["NAT|Household","26|Social benefits","2024_25","MTEF2024",26,1,3,44097,210,"26","01","03","044097","000210","26|01|03","01","02","10","52","56","01|02|10|52|56","National","Military Veterans","Administration","Financial Administration","Household","Current","Transfers and subsidies","Households","Social benefits","Social benefits","Peace and security","Defence and state security","NAT",81,0,111,0,0,0,0,0,0,0,0,null,null,null,null,null,null,null,null,null,null,null,null,null,null,null,null,null,null,null,null,null,null,null,null,null,null,null,null,null,null,null,null,null,null,{"$f":"Dataset[[#This Row],[2024/25 From - Spending review Topic 1]]+Dataset[[#This Row],[2024/25 From - Spending review Topic 2]]+Dataset[[#This Row],[2024/25 From - Spending review Topic 3]]+Dataset[[#This Row],[2024/25 From - Spending review Topic 4]]+Dataset[[#This Row],[2024/25 From - Other reallocations]]","v":0},{"$f":"Dataset[[#This Row],[2025/26 From - Spending review Topic 1]]+Dataset[[#This Row],[2025/26 From - Spending review Topic 2]]+Dataset[[#This Row],[2025/26 From - Spending review Topic 3]]+Dataset[[#This Row],[2025/26 From - Spending review Topic 4]]+Dataset[[#This Row],[2025/26 From - Other reallocations]]","v":0},{"$f":"Dataset[[#This Row],[2026/27 From - Spending review Topic 1]]+Dataset[[#This Row],[2026/27 From - Spending review Topic 2]]+Dataset[[#This Row],[2026/27 From - Spending review Topic 3]]+Dataset[[#This Row],[2026/27 From - Spending review Topic 4]]+Dataset[[#This Row],[2026/27 From - Other reallocations]]","v":0},{"$f":"Dataset[[#This Row],[2024/25 To - Spending review Topic 1]]+Dataset[[#This Row],[2024/25 To - Spending review Topic 2]]+Dataset[[#This Row],[2024/25 To - Spending review Topic 3]]+Dataset[[#This Row],[2024/25 To - Spending review Topic 4]]+Dataset[[#This Row],[2024/25 To - Other reallocations]]","v":0},{"$f":"Dataset[[#This Row],[2025/26 To - Spending review Topic 1]]+Dataset[[#This Row],[2025/26 To - Spending review Topic 2]]+Dataset[[#This Row],[2025/26 To - Spending review Topic 3]]+Dataset[[#This Row],[2025/26 To - Spending review Topic 4]]+Dataset[[#This Row],[2025/26 To - Other reallocations]]","v":0},{"$f":"Dataset[[#This Row],[2026/27 To - Spending review Topic 1]]+Dataset[[#This Row],[2026/27 To - Spending review Topic 2]]+Dataset[[#This Row],[2026/27 To - Spending review Topic 3]]+Dataset[[#This Row],[2026/27 To - Spending review Topic 4]]+Dataset[[#This Row],[2026/27 To - Other reallocations]]","v":0},{"$f":"Dataset[[#This Row],[2024/25 Reduction]]+Dataset[[#This Row],[2024/25 From - Total]]","v":0},{"$f":"Dataset[[#This Row],[2025/26 Reduction]]+Dataset[[#This Row],[2025/26 From - Total]]","v":0},{"$f":"Dataset[[#This Row],[2026/27 Reduction]]+Dataset[[#This Row],[2026/27 From - Total]]","v":0},{"$f":"Dataset[[#This Row],[2023/24 Reduction]]","v":0},{"$f":"SUM(Dataset[[#This Row],[2024/25 Reduction]],Dataset[[#This Row],[2024/25 From - Total]],Dataset[[#This Row],[2024/25 To - Total]])","v":0},{"$f":"SUM(Dataset[[#This Row],[2025/26 Reduction]],Dataset[[#This Row],[2025/26 From - Total]],Dataset[[#This Row],[2025/26 To - Total]])","v":0},{"$f":"SUM(Dataset[[#This Row],[2026/27 Reduction]],Dataset[[#This Row],[2026/27 From - Total]],Dataset[[#This Row],[2026/27 To - Total]])","v":0},{"$f":"Dataset[[#This Row],[2023/24 Baseline]]+Dataset[[#This Row],[2023/24 Total change]]","v":0},{"$f":"Dataset[[#This Row],[2024/25 Baseline]]+Dataset[[#This Row],[2024/25 Total change]]","v":0},{"$f":"Dataset[[#This Row],[2025/26 Baseline]]+Dataset[[#This Row],[2025/26 Total change]]","v":0},{"$f":"Dataset[[#This Row],[2026/27 Baseline]]+Dataset[[#This Row],[2026/27 Total change]]","v":0}]
["NAT|Household","26|Other transfers to households","2024_25","MTEF2024",26,1,3,44098,211,"26","01","03","044098","000211","26|01|03","01","02","10","53","57","01|02|10|53|57","National","Military Veterans","Administration","Financial Administration","Household","Current","Transfers and subsidies","Households","Other transfers to households","Other transfers to households","Peace and security","Defence and state security","NAT",100,0,0,0,0,0,0,0,0,0,0,null,null,null,null,null,null,null,null,null,null,null,null,null,null,null,null,null,null,null,null,null,null,null,null,null,null,null,null,null,null,null,null,null,null,{"$f":"Dataset[[#This Row],[2024/25 From - Spending review Topic 1]]+Dataset[[#This Row],[2024/25 From - Spending review Topic 2]]+Dataset[[#This Row],[2024/25 From - Spending review Topic 3]]+Dataset[[#This Row],[2024/25 From - Spending review Topic 4]]+Dataset[[#This Row],[2024/25 From - Other reallocations]]","v":0},{"$f":"Dataset[[#This Row],[2025/26 From - Spending review Topic 1]]+Dataset[[#This Row],[2025/26 From - Spending review Topic 2]]+Dataset[[#This Row],[2025/26 From - Spending review Topic 3]]+Dataset[[#This Row],[2025/26 From - Spending review Topic 4]]+Dataset[[#This Row],[2025/26 From - Other reallocations]]","v":0},{"$f":"Dataset[[#This Row],[2026/27 From - Spending review Topic 1]]+Dataset[[#This Row],[2026/27 From - Spending review Topic 2]]+Dataset[[#This Row],[2026/27 From - Spending review Topic 3]]+Dataset[[#This Row],[2026/27 From - Spending review Topic 4]]+Dataset[[#This Row],[2026/27 From - Other reallocations]]","v":0},{"$f":"Dataset[[#This Row],[2024/25 To - Spending review Topic 1]]+Dataset[[#This Row],[2024/25 To - Spending review Topic 2]]+Dataset[[#This Row],[2024/25 To - Spending review Topic 3]]+Dataset[[#This Row],[2024/25 To - Spending review Topic 4]]+Dataset[[#This Row],[2024/25 To - Other reallocations]]","v":0},{"$f":"Dataset[[#This Row],[2025/26 To - Spending review Topic 1]]+Dataset[[#This Row],[2025/26 To - Spending review Topic 2]]+Dataset[[#This Row],[2025/26 To - Spending review Topic 3]]+Dataset[[#This Row],[2025/26 To - Spending review Topic 4]]+Dataset[[#This Row],[2025/26 To - Other reallocations]]","v":0},{"$f":"Dataset[[#This Row],[2026/27 To - Spending review Topic 1]]+Dataset[[#This Row],[2026/27 To - Spending review Topic 2]]+Dataset[[#This Row],[2026/27 To - Spending review Topic 3]]+Dataset[[#This Row],[2026/27 To - Spending review Topic 4]]+Dataset[[#This Row],[2026/27 To - Other reallocations]]","v":0},{"$f":"Dataset[[#This Row],[2024/25 Reduction]]+Dataset[[#This Row],[2024/25 From - Total]]","v":0},{"$f":"Dataset[[#This Row],[2025/26 Reduction]]+Dataset[[#This Row],[2025/26 From - Total]]","v":0},{"$f":"Dataset[[#This Row],[2026/27 Reduction]]+Dataset[[#This Row],[2026/27 From - Total]]","v":0},{"$f":"Dataset[[#This Row],[2023/24 Reduction]]","v":0},{"$f":"SUM(Dataset[[#This Row],[2024/25 Reduction]],Dataset[[#This Row],[2024/25 From - Total]],Dataset[[#This Row],[2024/25 To - Total]])","v":0},{"$f":"SUM(Dataset[[#This Row],[2025/26 Reduction]],Dataset[[#This Row],[2025/26 From - Total]],Dataset[[#This Row],[2025/26 To - Total]])","v":0},{"$f":"SUM(Dataset[[#This Row],[2026/27 Reduction]],Dataset[[#This Row],[2026/27 From - Total]],Dataset[[#This Row],[2026/27 To - Total]])","v":0},{"$f":"Dataset[[#This Row],[2023/24 Baseline]]+Dataset[[#This Row],[2023/24 Total change]]","v":0},{"$f":"Dataset[[#This Row],[2024/25 Baseline]]+Dataset[[#This Row],[2024/25 Total change]]","v":0},{"$f":"Dataset[[#This Row],[2025/26 Baseline]]+Dataset[[#This Row],[2025/26 Total change]]","v":0},{"$f":"Dataset[[#This Row],[2026/27 Baseline]]+Dataset[[#This Row],[2026/27 Total change]]","v":0}]
["NAT|Non-transfer item","26|Provincial Revenue Funds","2024_25","MTEF2024",26,1,3,44099,212,"26","01","03","044099","000212","26|01|03","02","02","04","43","43","02|02|04|43|43","National","Military Veterans","Administration","Financial Administration","Non-transfer item","Capital","Transfers and subsidies","Provinces and municipalities","Provinces","Provincial Revenue Funds","Peace and security","Defence and state security","NAT",0,0,0,0,0,0,0,0,0,0,0,null,null,null,null,null,null,null,null,null,null,null,null,null,null,null,null,null,null,null,null,null,null,null,null,null,null,null,null,null,null,null,null,null,null,{"$f":"Dataset[[#This Row],[2024/25 From - Spending review Topic 1]]+Dataset[[#This Row],[2024/25 From - Spending review Topic 2]]+Dataset[[#This Row],[2024/25 From - Spending review Topic 3]]+Dataset[[#This Row],[2024/25 From - Spending review Topic 4]]+Dataset[[#This Row],[2024/25 From - Other reallocations]]","v":0},{"$f":"Dataset[[#This Row],[2025/26 From - Spending review Topic 1]]+Dataset[[#This Row],[2025/26 From - Spending review Topic 2]]+Dataset[[#This Row],[2025/26 From - Spending review Topic 3]]+Dataset[[#This Row],[2025/26 From - Spending review Topic 4]]+Dataset[[#This Row],[2025/26 From - Other reallocations]]","v":0},{"$f":"Dataset[[#This Row],[2026/27 From - Spending review Topic 1]]+Dataset[[#This Row],[2026/27 From - Spending review Topic 2]]+Dataset[[#This Row],[2026/27 From - Spending review Topic 3]]+Dataset[[#This Row],[2026/27 From - Spending review Topic 4]]+Dataset[[#This Row],[2026/27 From - Other reallocations]]","v":0},{"$f":"Dataset[[#This Row],[2024/25 To - Spending review Topic 1]]+Dataset[[#This Row],[2024/25 To - Spending review Topic 2]]+Dataset[[#This Row],[2024/25 To - Spending review Topic 3]]+Dataset[[#This Row],[2024/25 To - Spending review Topic 4]]+Dataset[[#This Row],[2024/25 To - Other reallocations]]","v":0},{"$f":"Dataset[[#This Row],[2025/26 To - Spending review Topic 1]]+Dataset[[#This Row],[2025/26 To - Spending review Topic 2]]+Dataset[[#This Row],[2025/26 To - Spending review Topic 3]]+Dataset[[#This Row],[2025/26 To - Spending review Topic 4]]+Dataset[[#This Row],[2025/26 To - Other reallocations]]","v":0},{"$f":"Dataset[[#This Row],[2026/27 To - Spending review Topic 1]]+Dataset[[#This Row],[2026/27 To - Spending review Topic 2]]+Dataset[[#This Row],[2026/27 To - Spending review Topic 3]]+Dataset[[#This Row],[2026/27 To - Spending review Topic 4]]+Dataset[[#This Row],[2026/27 To - Other reallocations]]","v":0},{"$f":"Dataset[[#This Row],[2024/25 Reduction]]+Dataset[[#This Row],[2024/25 From - Total]]","v":0},{"$f":"Dataset[[#This Row],[2025/26 Reduction]]+Dataset[[#This Row],[2025/26 From - Total]]","v":0},{"$f":"Dataset[[#This Row],[2026/27 Reduction]]+Dataset[[#This Row],[2026/27 From - Total]]","v":0},{"$f":"Dataset[[#This Row],[2023/24 Reduction]]","v":0},{"$f":"SUM(Dataset[[#This Row],[2024/25 Reduction]],Dataset[[#This Row],[2024/25 From - Total]],Dataset[[#This Row],[2024/25 To - Total]])","v":0},{"$f":"SUM(Dataset[[#This Row],[2025/26 Reduction]],Dataset[[#This Row],[2025/26 From - Total]],Dataset[[#This Row],[2025/26 To - Total]])","v":0},{"$f":"SUM(Dataset[[#This Row],[2026/27 Reduction]],Dataset[[#This Row],[2026/27 From - Total]],Dataset[[#This Row],[2026/27 To - Total]])","v":0},{"$f":"Dataset[[#This Row],[2023/24 Baseline]]+Dataset[[#This Row],[2023/24 Total change]]","v":0},{"$f":"Dataset[[#This Row],[2024/25 Baseline]]+Dataset[[#This Row],[2024/25 Total change]]","v":0},{"$f":"Dataset[[#This Row],[2025/26 Baseline]]+Dataset[[#This Row],[2025/26 Total change]]","v":0},{"$f":"Dataset[[#This Row],[2026/27 Baseline]]+Dataset[[#This Row],[2026/27 Total change]]","v":0}]
["NAT|Non-transfer item","26|Municipal bank accounts","2024_25","MTEF2024",26,1,3,44100,213,"26","01","03","044100","000213","26|01|03","02","02","04","44","45","02|02|04|44|45","National","Military Veterans","Administration","Financial Administration","Non-transfer item","Capital","Transfers and subsidies","Provinces and municipalities","Municipalities","Municipal bank accounts","Peace and security","Defence and state security","NAT",0,0,0,0,0,0,0,0,0,0,0,null,null,null,null,null,null,null,null,null,null,null,null,null,null,null,null,null,null,null,null,null,null,null,null,null,null,null,null,null,null,null,null,null,null,{"$f":"Dataset[[#This Row],[2024/25 From - Spending review Topic 1]]+Dataset[[#This Row],[2024/25 From - Spending review Topic 2]]+Dataset[[#This Row],[2024/25 From - Spending review Topic 3]]+Dataset[[#This Row],[2024/25 From - Spending review Topic 4]]+Dataset[[#This Row],[2024/25 From - Other reallocations]]","v":0},{"$f":"Dataset[[#This Row],[2025/26 From - Spending review Topic 1]]+Dataset[[#This Row],[2025/26 From - Spending review Topic 2]]+Dataset[[#This Row],[2025/26 From - Spending review Topic 3]]+Dataset[[#This Row],[2025/26 From - Spending review Topic 4]]+Dataset[[#This Row],[2025/26 From - Other reallocations]]","v":0},{"$f":"Dataset[[#This Row],[2026/27 From - Spending review Topic 1]]+Dataset[[#This Row],[2026/27 From - Spending review Topic 2]]+Dataset[[#This Row],[2026/27 From - Spending review Topic 3]]+Dataset[[#This Row],[2026/27 From - Spending review Topic 4]]+Dataset[[#This Row],[2026/27 From - Other reallocations]]","v":0},{"$f":"Dataset[[#This Row],[2024/25 To - Spending review Topic 1]]+Dataset[[#This Row],[2024/25 To - Spending review Topic 2]]+Dataset[[#This Row],[2024/25 To - Spending review Topic 3]]+Dataset[[#This Row],[2024/25 To - Spending review Topic 4]]+Dataset[[#This Row],[2024/25 To - Other reallocations]]","v":0},{"$f":"Dataset[[#This Row],[2025/26 To - Spending review Topic 1]]+Dataset[[#This Row],[2025/26 To - Spending review Topic 2]]+Dataset[[#This Row],[2025/26 To - Spending review Topic 3]]+Dataset[[#This Row],[2025/26 To - Spending review Topic 4]]+Dataset[[#This Row],[2025/26 To - Other reallocations]]","v":0},{"$f":"Dataset[[#This Row],[2026/27 To - Spending review Topic 1]]+Dataset[[#This Row],[2026/27 To - Spending review Topic 2]]+Dataset[[#This Row],[2026/27 To - Spending review Topic 3]]+Dataset[[#This Row],[2026/27 To - Spending review Topic 4]]+Dataset[[#This Row],[2026/27 To - Other reallocations]]","v":0},{"$f":"Dataset[[#This Row],[2024/25 Reduction]]+Dataset[[#This Row],[2024/25 From - Total]]","v":0},{"$f":"Dataset[[#This Row],[2025/26 Reduction]]+Dataset[[#This Row],[2025/26 From - Total]]","v":0},{"$f":"Dataset[[#This Row],[2026/27 Reduction]]+Dataset[[#This Row],[2026/27 From - Total]]","v":0},{"$f":"Dataset[[#This Row],[2023/24 Reduction]]","v":0},{"$f":"SUM(Dataset[[#This Row],[2024/25 Reduction]],Dataset[[#This Row],[2024/25 From - Total]],Dataset[[#This Row],[2024/25 To - Total]])","v":0},{"$f":"SUM(Dataset[[#This Row],[2025/26 Reduction]],Dataset[[#This Row],[2025/26 From - Total]],Dataset[[#This Row],[2025/26 To - Total]])","v":0},{"$f":"SUM(Dataset[[#This Row],[2026/27 Reduction]],Dataset[[#This Row],[2026/27 From - Total]],Dataset[[#This Row],[2026/27 To - Total]])","v":0},{"$f":"Dataset[[#This Row],[2023/24 Baseline]]+Dataset[[#This Row],[2023/24 Total change]]","v":0},{"$f":"Dataset[[#This Row],[2024/25 Baseline]]+Dataset[[#This Row],[2024/25 Total change]]","v":0},{"$f":"Dataset[[#This Row],[2025/26 Baseline]]+Dataset[[#This Row],[2025/26 Total change]]","v":0},{"$f":"Dataset[[#This Row],[2026/27 Baseline]]+Dataset[[#This Row],[2026/27 Total change]]","v":0}]
["NAT|Non-transfer item","26|Departmental agencies (non-business entities)","2024_25","MTEF2024",26,1,3,44101,214,"26","01","03","044101","000214","26|01|03","02","02","05","46","48","02|02|05|46|48","National","Military Veterans","Administration","Financial Administration","Non-transfer item","Capital","Transfers and subsidies","Departmental agencies and accounts","Departmental agencies (non-business entities)","Departmental agencies (non-business entities)","Peace and security","Defence and state security","NAT",0,0,0,0,0,0,0,0,0,0,0,null,null,null,null,null,null,null,null,null,null,null,null,null,null,null,null,null,null,null,null,null,null,null,null,null,null,null,null,null,null,null,null,null,null,{"$f":"Dataset[[#This Row],[2024/25 From - Spending review Topic 1]]+Dataset[[#This Row],[2024/25 From - Spending review Topic 2]]+Dataset[[#This Row],[2024/25 From - Spending review Topic 3]]+Dataset[[#This Row],[2024/25 From - Spending review Topic 4]]+Dataset[[#This Row],[2024/25 From - Other reallocations]]","v":0},{"$f":"Dataset[[#This Row],[2025/26 From - Spending review Topic 1]]+Dataset[[#This Row],[2025/26 From - Spending review Topic 2]]+Dataset[[#This Row],[2025/26 From - Spending review Topic 3]]+Dataset[[#This Row],[2025/26 From - Spending review Topic 4]]+Dataset[[#This Row],[2025/26 From - Other reallocations]]","v":0},{"$f":"Dataset[[#This Row],[2026/27 From - Spending review Topic 1]]+Dataset[[#This Row],[2026/27 From - Spending review Topic 2]]+Dataset[[#This Row],[2026/27 From - Spending review Topic 3]]+Dataset[[#This Row],[2026/27 From - Spending review Topic 4]]+Dataset[[#This Row],[2026/27 From - Other reallocations]]","v":0},{"$f":"Dataset[[#This Row],[2024/25 To - Spending review Topic 1]]+Dataset[[#This Row],[2024/25 To - Spending review Topic 2]]+Dataset[[#This Row],[2024/25 To - Spending review Topic 3]]+Dataset[[#This Row],[2024/25 To - Spending review Topic 4]]+Dataset[[#This Row],[2024/25 To - Other reallocations]]","v":0},{"$f":"Dataset[[#This Row],[2025/26 To - Spending review Topic 1]]+Dataset[[#This Row],[2025/26 To - Spending review Topic 2]]+Dataset[[#This Row],[2025/26 To - Spending review Topic 3]]+Dataset[[#This Row],[2025/26 To - Spending review Topic 4]]+Dataset[[#This Row],[2025/26 To - Other reallocations]]","v":0},{"$f":"Dataset[[#This Row],[2026/27 To - Spending review Topic 1]]+Dataset[[#This Row],[2026/27 To - Spending review Topic 2]]+Dataset[[#This Row],[2026/27 To - Spending review Topic 3]]+Dataset[[#This Row],[2026/27 To - Spending review Topic 4]]+Dataset[[#This Row],[2026/27 To - Other reallocations]]","v":0},{"$f":"Dataset[[#This Row],[2024/25 Reduction]]+Dataset[[#This Row],[2024/25 From - Total]]","v":0},{"$f":"Dataset[[#This Row],[2025/26 Reduction]]+Dataset[[#This Row],[2025/26 From - Total]]","v":0},{"$f":"Dataset[[#This Row],[2026/27 Reduction]]+Dataset[[#This Row],[2026/27 From - Total]]","v":0},{"$f":"Dataset[[#This Row],[2023/24 Reduction]]","v":0},{"$f":"SUM(Dataset[[#This Row],[2024/25 Reduction]],Dataset[[#This Row],[2024/25 From - Total]],Dataset[[#This Row],[2024/25 To - Total]])","v":0},{"$f":"SUM(Dataset[[#This Row],[2025/26 Reduction]],Dataset[[#This Row],[2025/26 From - Total]],Dataset[[#This Row],[2025/26 To - Total]])","v":0},{"$f":"SUM(Dataset[[#This Row],[2026/27 Reduction]],Dataset[[#This Row],[2026/27 From - Total]],Dataset[[#This Row],[2026/27 To - Total]])","v":0},{"$f":"Dataset[[#This Row],[2023/24 Baseline]]+Dataset[[#This Row],[2023/24 Total change]]","v":0},{"$f":"Dataset[[#This Row],[2024/25 Baseline]]+Dataset[[#This Row],[2024/25 Total change]]","v":0},{"$f":"Dataset[[#This Row],[2025/26 Baseline]]+Dataset[[#This Row],[2025/26 Total change]]","v":0},{"$f":"Dataset[[#This Row],[2026/27 Baseline]]+Dataset[[#This Row],[2026/27 Total change]]","v":0}]
["NAT|Non-transfer item","26|Higher education institutions","2024_25","MTEF2024",26,1,3,44102,215,"26","01","03","044102","000215","26|01|03","02","02","06","47","49","02|02|06|47|49","National","Military Veterans","Administration","Financial Administration","Non-transfer item","Capital","Transfers and subsidies","Higher education institutions","Higher education institutions","Higher education institutions","Peace and security","Defence and state security","NAT",0,0,0,0,0,0,0,0,0,0,0,null,null,null,null,null,null,null,null,null,null,null,null,null,null,null,null,null,null,null,null,null,null,null,null,null,null,null,null,null,null,null,null,null,null,{"$f":"Dataset[[#This Row],[2024/25 From - Spending review Topic 1]]+Dataset[[#This Row],[2024/25 From - Spending review Topic 2]]+Dataset[[#This Row],[2024/25 From - Spending review Topic 3]]+Dataset[[#This Row],[2024/25 From - Spending review Topic 4]]+Dataset[[#This Row],[2024/25 From - Other reallocations]]","v":0},{"$f":"Dataset[[#This Row],[2025/26 From - Spending review Topic 1]]+Dataset[[#This Row],[2025/26 From - Spending review Topic 2]]+Dataset[[#This Row],[2025/26 From - Spending review Topic 3]]+Dataset[[#This Row],[2025/26 From - Spending review Topic 4]]+Dataset[[#This Row],[2025/26 From - Other reallocations]]","v":0},{"$f":"Dataset[[#This Row],[2026/27 From - Spending review Topic 1]]+Dataset[[#This Row],[2026/27 From - Spending review Topic 2]]+Dataset[[#This Row],[2026/27 From - Spending review Topic 3]]+Dataset[[#This Row],[2026/27 From - Spending review Topic 4]]+Dataset[[#This Row],[2026/27 From - Other reallocations]]","v":0},{"$f":"Dataset[[#This Row],[2024/25 To - Spending review Topic 1]]+Dataset[[#This Row],[2024/25 To - Spending review Topic 2]]+Dataset[[#This Row],[2024/25 To - Spending review Topic 3]]+Dataset[[#This Row],[2024/25 To - Spending review Topic 4]]+Dataset[[#This Row],[2024/25 To - Other reallocations]]","v":0},{"$f":"Dataset[[#This Row],[2025/26 To - Spending review Topic 1]]+Dataset[[#This Row],[2025/26 To - Spending review Topic 2]]+Dataset[[#This Row],[2025/26 To - Spending review Topic 3]]+Dataset[[#This Row],[2025/26 To - Spending review Topic 4]]+Dataset[[#This Row],[2025/26 To - Other reallocations]]","v":0},{"$f":"Dataset[[#This Row],[2026/27 To - Spending review Topic 1]]+Dataset[[#This Row],[2026/27 To - Spending review Topic 2]]+Dataset[[#This Row],[2026/27 To - Spending review Topic 3]]+Dataset[[#This Row],[2026/27 To - Spending review Topic 4]]+Dataset[[#This Row],[2026/27 To - Other reallocations]]","v":0},{"$f":"Dataset[[#This Row],[2024/25 Reduction]]+Dataset[[#This Row],[2024/25 From - Total]]","v":0},{"$f":"Dataset[[#This Row],[2025/26 Reduction]]+Dataset[[#This Row],[2025/26 From - Total]]","v":0},{"$f":"Dataset[[#This Row],[2026/27 Reduction]]+Dataset[[#This Row],[2026/27 From - Total]]","v":0},{"$f":"Dataset[[#This Row],[2023/24 Reduction]]","v":0},{"$f":"SUM(Dataset[[#This Row],[2024/25 Reduction]],Dataset[[#This Row],[2024/25 From - Total]],Dataset[[#This Row],[2024/25 To - Total]])","v":0},{"$f":"SUM(Dataset[[#This Row],[2025/26 Reduction]],Dataset[[#This Row],[2025/26 From - Total]],Dataset[[#This Row],[2025/26 To - Total]])","v":0},{"$f":"SUM(Dataset[[#This Row],[2026/27 Reduction]],Dataset[[#This Row],[2026/27 From - Total]],Dataset[[#This Row],[2026/27 To - Total]])","v":0},{"$f":"Dataset[[#This Row],[2023/24 Baseline]]+Dataset[[#This Row],[2023/24 Total change]]","v":0},{"$f":"Dataset[[#This Row],[2024/25 Baseline]]+Dataset[[#This Row],[2024/25 Total change]]","v":0},{"$f":"Dataset[[#This Row],[2025/26 Baseline]]+Dataset[[#This Row],[2025/26 Total change]]","v":0},{"$f":"Dataset[[#This Row],[2026/27 Baseline]]+Dataset[[#This Row],[2026/27 Total change]]","v":0}]
["NAT|Non-transfer item","26|Foreign governments and international organisations","2024_25","MTEF2024",26,1,3,44103,216,"26","01","03","044103","000216","26|01|03","02","02","07","48","50","02|02|07|48|50","National","Military Veterans","Administration","Financial Administration","Non-transfer item","Capital","Transfers and subsidies","Foreign governments and international organisations","Foreign governments and international organisations","Foreign governments and international organisations","Peace and security","Defence and state security","NAT",0,0,0,0,0,0,0,0,0,0,0,null,null,null,null,null,null,null,null,null,null,null,null,null,null,null,null,null,null,null,null,null,null,null,null,null,null,null,null,null,null,null,null,null,null,{"$f":"Dataset[[#This Row],[2024/25 From - Spending review Topic 1]]+Dataset[[#This Row],[2024/25 From - Spending review Topic 2]]+Dataset[[#This Row],[2024/25 From - Spending review Topic 3]]+Dataset[[#This Row],[2024/25 From - Spending review Topic 4]]+Dataset[[#This Row],[2024/25 From - Other reallocations]]","v":0},{"$f":"Dataset[[#This Row],[2025/26 From - Spending review Topic 1]]+Dataset[[#This Row],[2025/26 From - Spending review Topic 2]]+Dataset[[#This Row],[2025/26 From - Spending review Topic 3]]+Dataset[[#This Row],[2025/26 From - Spending review Topic 4]]+Dataset[[#This Row],[2025/26 From - Other reallocations]]","v":0},{"$f":"Dataset[[#This Row],[2026/27 From - Spending review Topic 1]]+Dataset[[#This Row],[2026/27 From - Spending review Topic 2]]+Dataset[[#This Row],[2026/27 From - Spending review Topic 3]]+Dataset[[#This Row],[2026/27 From - Spending review Topic 4]]+Dataset[[#This Row],[2026/27 From - Other reallocations]]","v":0},{"$f":"Dataset[[#This Row],[2024/25 To - Spending review Topic 1]]+Dataset[[#This Row],[2024/25 To - Spending review Topic 2]]+Dataset[[#This Row],[2024/25 To - Spending review Topic 3]]+Dataset[[#This Row],[2024/25 To - Spending review Topic 4]]+Dataset[[#This Row],[2024/25 To - Other reallocations]]","v":0},{"$f":"Dataset[[#This Row],[2025/26 To - Spending review Topic 1]]+Dataset[[#This Row],[2025/26 To - Spending review Topic 2]]+Dataset[[#This Row],[2025/26 To - Spending review Topic 3]]+Dataset[[#This Row],[2025/26 To - Spending review Topic 4]]+Dataset[[#This Row],[2025/26 To - Other reallocations]]","v":0},{"$f":"Dataset[[#This Row],[2026/27 To - Spending review Topic 1]]+Dataset[[#This Row],[2026/27 To - Spending review Topic 2]]+Dataset[[#This Row],[2026/27 To - Spending review Topic 3]]+Dataset[[#This Row],[2026/27 To - Spending review Topic 4]]+Dataset[[#This Row],[2026/27 To - Other reallocations]]","v":0},{"$f":"Dataset[[#This Row],[2024/25 Reduction]]+Dataset[[#This Row],[2024/25 From - Total]]","v":0},{"$f":"Dataset[[#This Row],[2025/26 Reduction]]+Dataset[[#This Row],[2025/26 From - Total]]","v":0},{"$f":"Dataset[[#This Row],[2026/27 Reduction]]+Dataset[[#This Row],[2026/27 From - Total]]","v":0},{"$f":"Dataset[[#This Row],[2023/24 Reduction]]","v":0},{"$f":"SUM(Dataset[[#This Row],[2024/25 Reduction]],Dataset[[#This Row],[2024/25 From - Total]],Dataset[[#This Row],[2024/25 To - Total]])","v":0},{"$f":"SUM(Dataset[[#This Row],[2025/26 Reduction]],Dataset[[#This Row],[2025/26 From - Total]],Dataset[[#This Row],[2025/26 To - Total]])","v":0},{"$f":"SUM(Dataset[[#This Row],[2026/27 Reduction]],Dataset[[#This Row],[2026/27 From - Total]],Dataset[[#This Row],[2026/27 To - Total]])","v":0},{"$f":"Dataset[[#This Row],[2023/24 Baseline]]+Dataset[[#This Row],[2023/24 Total change]]","v":0},{"$f":"Dataset[[#This Row],[2024/25 Baseline]]+Dataset[[#This Row],[2024/25 Total change]]","v":0},{"$f":"Dataset[[#This Row],[2025/26 Baseline]]+Dataset[[#This Row],[2025/26 Total change]]","v":0},{"$f":"Dataset[[#This Row],[2026/27 Baseline]]+Dataset[[#This Row],[2026/27 Total change]]","v":0}]
["NAT|Non-transfer item","26|Subsidies on products and production (pc)","2024_25","MTEF2024",26,1,3,44104,217,"26","01","03","044104","000217","26|01|03","02","02","08","49","51","02|02|08|49|51","National","Military Veterans","Administration","Financial Administration","Non-transfer item","Capital","Transfers and subsidies","Public corporations and private enterprises","Public corporations","Subsidies on products and production (pc)","Peace and security","Defence and state security","NAT",0,0,0,0,0,0,0,0,0,0,0,null,null,null,null,null,null,null,null,null,null,null,null,null,null,null,null,null,null,null,null,null,null,null,null,null,null,null,null,null,null,null,null,null,null,{"$f":"Dataset[[#This Row],[2024/25 From - Spending review Topic 1]]+Dataset[[#This Row],[2024/25 From - Spending review Topic 2]]+Dataset[[#This Row],[2024/25 From - Spending review Topic 3]]+Dataset[[#This Row],[2024/25 From - Spending review Topic 4]]+Dataset[[#This Row],[2024/25 From - Other reallocations]]","v":0},{"$f":"Dataset[[#This Row],[2025/26 From - Spending review Topic 1]]+Dataset[[#This Row],[2025/26 From - Spending review Topic 2]]+Dataset[[#This Row],[2025/26 From - Spending review Topic 3]]+Dataset[[#This Row],[2025/26 From - Spending review Topic 4]]+Dataset[[#This Row],[2025/26 From - Other reallocations]]","v":0},{"$f":"Dataset[[#This Row],[2026/27 From - Spending review Topic 1]]+Dataset[[#This Row],[2026/27 From - Spending review Topic 2]]+Dataset[[#This Row],[2026/27 From - Spending review Topic 3]]+Dataset[[#This Row],[2026/27 From - Spending review Topic 4]]+Dataset[[#This Row],[2026/27 From - Other reallocations]]","v":0},{"$f":"Dataset[[#This Row],[2024/25 To - Spending review Topic 1]]+Dataset[[#This Row],[2024/25 To - Spending review Topic 2]]+Dataset[[#This Row],[2024/25 To - Spending review Topic 3]]+Dataset[[#This Row],[2024/25 To - Spending review Topic 4]]+Dataset[[#This Row],[2024/25 To - Other reallocations]]","v":0},{"$f":"Dataset[[#This Row],[2025/26 To - Spending review Topic 1]]+Dataset[[#This Row],[2025/26 To - Spending review Topic 2]]+Dataset[[#This Row],[2025/26 To - Spending review Topic 3]]+Dataset[[#This Row],[2025/26 To - Spending review Topic 4]]+Dataset[[#This Row],[2025/26 To - Other reallocations]]","v":0},{"$f":"Dataset[[#This Row],[2026/27 To - Spending review Topic 1]]+Dataset[[#This Row],[2026/27 To - Spending review Topic 2]]+Dataset[[#This Row],[2026/27 To - Spending review Topic 3]]+Dataset[[#This Row],[2026/27 To - Spending review Topic 4]]+Dataset[[#This Row],[2026/27 To - Other reallocations]]","v":0},{"$f":"Dataset[[#This Row],[2024/25 Reduction]]+Dataset[[#This Row],[2024/25 From - Total]]","v":0},{"$f":"Dataset[[#This Row],[2025/26 Reduction]]+Dataset[[#This Row],[2025/26 From - Total]]","v":0},{"$f":"Dataset[[#This Row],[2026/27 Reduction]]+Dataset[[#This Row],[2026/27 From - Total]]","v":0},{"$f":"Dataset[[#This Row],[2023/24 Reduction]]","v":0},{"$f":"SUM(Dataset[[#This Row],[2024/25 Reduction]],Dataset[[#This Row],[2024/25 From - Total]],Dataset[[#This Row],[2024/25 To - Total]])","v":0},{"$f":"SUM(Dataset[[#This Row],[2025/26 Reduction]],Dataset[[#This Row],[2025/26 From - Total]],Dataset[[#This Row],[2025/26 To - Total]])","v":0},{"$f":"SUM(Dataset[[#This Row],[2026/27 Reduction]],Dataset[[#This Row],[2026/27 From - Total]],Dataset[[#This Row],[2026/27 To - Total]])","v":0},{"$f":"Dataset[[#This Row],[2023/24 Baseline]]+Dataset[[#This Row],[2023/24 Total change]]","v":0},{"$f":"Dataset[[#This Row],[2024/25 Baseline]]+Dataset[[#This Row],[2024/25 Total change]]","v":0},{"$f":"Dataset[[#This Row],[2025/26 Baseline]]+Dataset[[#This Row],[2025/26 Total change]]","v":0},{"$f":"Dataset[[#This Row],[2026/27 Baseline]]+Dataset[[#This Row],[2026/27 Total change]]","v":0}]
["NAT|Non-transfer item","26|Other transfers to public corporations","2024_25","MTEF2024",26,1,3,44105,218,"26","01","03","044105","000218","26|01|03","02","02","08","49","52","02|02|08|49|52","National","Military Veterans","Administration","Financial Administration","Non-transfer item","Capital","Transfers and subsidies","Public corporations and private enterprises","Public corporations","Other transfers to public corporations","Peace and security","Defence and state security","NAT",0,0,0,0,0,0,0,0,0,0,0,null,null,null,null,null,null,null,null,null,null,null,null,null,null,null,null,null,null,null,null,null,null,null,null,null,null,null,null,null,null,null,null,null,null,{"$f":"Dataset[[#This Row],[2024/25 From - Spending review Topic 1]]+Dataset[[#This Row],[2024/25 From - Spending review Topic 2]]+Dataset[[#This Row],[2024/25 From - Spending review Topic 3]]+Dataset[[#This Row],[2024/25 From - Spending review Topic 4]]+Dataset[[#This Row],[2024/25 From - Other reallocations]]","v":0},{"$f":"Dataset[[#This Row],[2025/26 From - Spending review Topic 1]]+Dataset[[#This Row],[2025/26 From - Spending review Topic 2]]+Dataset[[#This Row],[2025/26 From - Spending review Topic 3]]+Dataset[[#This Row],[2025/26 From - Spending review Topic 4]]+Dataset[[#This Row],[2025/26 From - Other reallocations]]","v":0},{"$f":"Dataset[[#This Row],[2026/27 From - Spending review Topic 1]]+Dataset[[#This Row],[2026/27 From - Spending review Topic 2]]+Dataset[[#This Row],[2026/27 From - Spending review Topic 3]]+Dataset[[#This Row],[2026/27 From - Spending review Topic 4]]+Dataset[[#This Row],[2026/27 From - Other reallocations]]","v":0},{"$f":"Dataset[[#This Row],[2024/25 To - Spending review Topic 1]]+Dataset[[#This Row],[2024/25 To - Spending review Topic 2]]+Dataset[[#This Row],[2024/25 To - Spending review Topic 3]]+Dataset[[#This Row],[2024/25 To - Spending review Topic 4]]+Dataset[[#This Row],[2024/25 To - Other reallocations]]","v":0},{"$f":"Dataset[[#This Row],[2025/26 To - Spending review Topic 1]]+Dataset[[#This Row],[2025/26 To - Spending review Topic 2]]+Dataset[[#This Row],[2025/26 To - Spending review Topic 3]]+Dataset[[#This Row],[2025/26 To - Spending review Topic 4]]+Dataset[[#This Row],[2025/26 To - Other reallocations]]","v":0},{"$f":"Dataset[[#This Row],[2026/27 To - Spending review Topic 1]]+Dataset[[#This Row],[2026/27 To - Spending review Topic 2]]+Dataset[[#This Row],[2026/27 To - Spending review Topic 3]]+Dataset[[#This Row],[2026/27 To - Spending review Topic 4]]+Dataset[[#This Row],[2026/27 To - Other reallocations]]","v":0},{"$f":"Dataset[[#This Row],[2024/25 Reduction]]+Dataset[[#This Row],[2024/25 From - Total]]","v":0},{"$f":"Dataset[[#This Row],[2025/26 Reduction]]+Dataset[[#This Row],[2025/26 From - Total]]","v":0},{"$f":"Dataset[[#This Row],[2026/27 Reduction]]+Dataset[[#This Row],[2026/27 From - Total]]","v":0},{"$f":"Dataset[[#This Row],[2023/24 Reduction]]","v":0},{"$f":"SUM(Dataset[[#This Row],[2024/25 Reduction]],Dataset[[#This Row],[2024/25 From - Total]],Dataset[[#This Row],[2024/25 To - Total]])","v":0},{"$f":"SUM(Dataset[[#This Row],[2025/26 Reduction]],Dataset[[#This Row],[2025/26 From - Total]],Dataset[[#This Row],[2025/26 To - Total]])","v":0},{"$f":"SUM(Dataset[[#This Row],[2026/27 Reduction]],Dataset[[#This Row],[2026/27 From - Total]],Dataset[[#This Row],[2026/27 To - Total]])","v":0},{"$f":"Dataset[[#This Row],[2023/24 Baseline]]+Dataset[[#This Row],[2023/24 Total change]]","v":0},{"$f":"Dataset[[#This Row],[2024/25 Baseline]]+Dataset[[#This Row],[2024/25 Total change]]","v":0},{"$f":"Dataset[[#This Row],[2025/26 Baseline]]+Dataset[[#This Row],[2025/26 Total change]]","v":0},{"$f":"Dataset[[#This Row],[2026/27 Baseline]]+Dataset[[#This Row],[2026/27 Total change]]","v":0}]
["NAT|Non-transfer item","26|Other transfers to private enterprises","2024_25","MTEF2024",26,1,3,44106,219,"26","01","03","044106","000219","26|01|03","02","02","08","50","54","02|02|08|50|54","National","Military Veterans","Administration","Financial Administration","Non-transfer item","Capital","Transfers and subsidies","Public corporations and private enterprises","Private enterprises","Other transfers to private enterprises","Peace and security","Defence and state security","NAT",0,0,0,0,0,0,0,0,0,0,0,null,null,null,null,null,null,null,null,null,null,null,null,null,null,null,null,null,null,null,null,null,null,null,null,null,null,null,null,null,null,null,null,null,null,{"$f":"Dataset[[#This Row],[2024/25 From - Spending review Topic 1]]+Dataset[[#This Row],[2024/25 From - Spending review Topic 2]]+Dataset[[#This Row],[2024/25 From - Spending review Topic 3]]+Dataset[[#This Row],[2024/25 From - Spending review Topic 4]]+Dataset[[#This Row],[2024/25 From - Other reallocations]]","v":0},{"$f":"Dataset[[#This Row],[2025/26 From - Spending review Topic 1]]+Dataset[[#This Row],[2025/26 From - Spending review Topic 2]]+Dataset[[#This Row],[2025/26 From - Spending review Topic 3]]+Dataset[[#This Row],[2025/26 From - Spending review Topic 4]]+Dataset[[#This Row],[2025/26 From - Other reallocations]]","v":0},{"$f":"Dataset[[#This Row],[2026/27 From - Spending review Topic 1]]+Dataset[[#This Row],[2026/27 From - Spending review Topic 2]]+Dataset[[#This Row],[2026/27 From - Spending review Topic 3]]+Dataset[[#This Row],[2026/27 From - Spending review Topic 4]]+Dataset[[#This Row],[2026/27 From - Other reallocations]]","v":0},{"$f":"Dataset[[#This Row],[2024/25 To - Spending review Topic 1]]+Dataset[[#This Row],[2024/25 To - Spending review Topic 2]]+Dataset[[#This Row],[2024/25 To - Spending review Topic 3]]+Dataset[[#This Row],[2024/25 To - Spending review Topic 4]]+Dataset[[#This Row],[2024/25 To - Other reallocations]]","v":0},{"$f":"Dataset[[#This Row],[2025/26 To - Spending review Topic 1]]+Dataset[[#This Row],[2025/26 To - Spending review Topic 2]]+Dataset[[#This Row],[2025/26 To - Spending review Topic 3]]+Dataset[[#This Row],[2025/26 To - Spending review Topic 4]]+Dataset[[#This Row],[2025/26 To - Other reallocations]]","v":0},{"$f":"Dataset[[#This Row],[2026/27 To - Spending review Topic 1]]+Dataset[[#This Row],[2026/27 To - Spending review Topic 2]]+Dataset[[#This Row],[2026/27 To - Spending review Topic 3]]+Dataset[[#This Row],[2026/27 To - Spending review Topic 4]]+Dataset[[#This Row],[2026/27 To - Other reallocations]]","v":0},{"$f":"Dataset[[#This Row],[2024/25 Reduction]]+Dataset[[#This Row],[2024/25 From - Total]]","v":0},{"$f":"Dataset[[#This Row],[2025/26 Reduction]]+Dataset[[#This Row],[2025/26 From - Total]]","v":0},{"$f":"Dataset[[#This Row],[2026/27 Reduction]]+Dataset[[#This Row],[2026/27 From - Total]]","v":0},{"$f":"Dataset[[#This Row],[2023/24 Reduction]]","v":0},{"$f":"SUM(Dataset[[#This Row],[2024/25 Reduction]],Dataset[[#This Row],[2024/25 From - Total]],Dataset[[#This Row],[2024/25 To - Total]])","v":0},{"$f":"SUM(Dataset[[#This Row],[2025/26 Reduction]],Dataset[[#This Row],[2025/26 From - Total]],Dataset[[#This Row],[2025/26 To - Total]])","v":0},{"$f":"SUM(Dataset[[#This Row],[2026/27 Reduction]],Dataset[[#This Row],[2026/27 From - Total]],Dataset[[#This Row],[2026/27 To - Total]])","v":0},{"$f":"Dataset[[#This Row],[2023/24 Baseline]]+Dataset[[#This Row],[2023/24 Total change]]","v":0},{"$f":"Dataset[[#This Row],[2024/25 Baseline]]+Dataset[[#This Row],[2024/25 Total change]]","v":0},{"$f":"Dataset[[#This Row],[2025/26 Baseline]]+Dataset[[#This Row],[2025/26 Total change]]","v":0},{"$f":"Dataset[[#This Row],[2026/27 Baseline]]+Dataset[[#This Row],[2026/27 Total change]]","v":0}]
["NAT|Non-transfer item","26|Non-profit institutions","2024_25","MTEF2024",26,1,3,44107,220,"26","01","03","044107","000220","26|01|03","02","02","09","51","55","02|02|09|51|55","National","Military Veterans","Administration","Financial Administration","Non-transfer item","Capital","Transfers and subsidies","Non-profit institutions","Non-profit institutions","Non-profit institutions","Peace and security","Defence and state security","NAT",0,0,0,0,0,0,0,0,0,0,0,null,null,null,null,null,null,null,null,null,null,null,null,null,null,null,null,null,null,null,null,null,null,null,null,null,null,null,null,null,null,null,null,null,null,{"$f":"Dataset[[#This Row],[2024/25 From - Spending review Topic 1]]+Dataset[[#This Row],[2024/25 From - Spending review Topic 2]]+Dataset[[#This Row],[2024/25 From - Spending review Topic 3]]+Dataset[[#This Row],[2024/25 From - Spending review Topic 4]]+Dataset[[#This Row],[2024/25 From - Other reallocations]]","v":0},{"$f":"Dataset[[#This Row],[2025/26 From - Spending review Topic 1]]+Dataset[[#This Row],[2025/26 From - Spending review Topic 2]]+Dataset[[#This Row],[2025/26 From - Spending review Topic 3]]+Dataset[[#This Row],[2025/26 From - Spending review Topic 4]]+Dataset[[#This Row],[2025/26 From - Other reallocations]]","v":0},{"$f":"Dataset[[#This Row],[2026/27 From - Spending review Topic 1]]+Dataset[[#This Row],[2026/27 From - Spending review Topic 2]]+Dataset[[#This Row],[2026/27 From - Spending review Topic 3]]+Dataset[[#This Row],[2026/27 From - Spending review Topic 4]]+Dataset[[#This Row],[2026/27 From - Other reallocations]]","v":0},{"$f":"Dataset[[#This Row],[2024/25 To - Spending review Topic 1]]+Dataset[[#This Row],[2024/25 To - Spending review Topic 2]]+Dataset[[#This Row],[2024/25 To - Spending review Topic 3]]+Dataset[[#This Row],[2024/25 To - Spending review Topic 4]]+Dataset[[#This Row],[2024/25 To - Other reallocations]]","v":0},{"$f":"Dataset[[#This Row],[2025/26 To - Spending review Topic 1]]+Dataset[[#This Row],[2025/26 To - Spending review Topic 2]]+Dataset[[#This Row],[2025/26 To - Spending review Topic 3]]+Dataset[[#This Row],[2025/26 To - Spending review Topic 4]]+Dataset[[#This Row],[2025/26 To - Other reallocations]]","v":0},{"$f":"Dataset[[#This Row],[2026/27 To - Spending review Topic 1]]+Dataset[[#This Row],[2026/27 To - Spending review Topic 2]]+Dataset[[#This Row],[2026/27 To - Spending review Topic 3]]+Dataset[[#This Row],[2026/27 To - Spending review Topic 4]]+Dataset[[#This Row],[2026/27 To - Other reallocations]]","v":0},{"$f":"Dataset[[#This Row],[2024/25 Reduction]]+Dataset[[#This Row],[2024/25 From - Total]]","v":0},{"$f":"Dataset[[#This Row],[2025/26 Reduction]]+Dataset[[#This Row],[2025/26 From - Total]]","v":0},{"$f":"Dataset[[#This Row],[2026/27 Reduction]]+Dataset[[#This Row],[2026/27 From - Total]]","v":0},{"$f":"Dataset[[#This Row],[2023/24 Reduction]]","v":0},{"$f":"SUM(Dataset[[#This Row],[2024/25 Reduction]],Dataset[[#This Row],[2024/25 From - Total]],Dataset[[#This Row],[2024/25 To - Total]])","v":0},{"$f":"SUM(Dataset[[#This Row],[2025/26 Reduction]],Dataset[[#This Row],[2025/26 From - Total]],Dataset[[#This Row],[2025/26 To - Total]])","v":0},{"$f":"SUM(Dataset[[#This Row],[2026/27 Reduction]],Dataset[[#This Row],[2026/27 From - Total]],Dataset[[#This Row],[2026/27 To - Total]])","v":0},{"$f":"Dataset[[#This Row],[2023/24 Baseline]]+Dataset[[#This Row],[2023/24 Total change]]","v":0},{"$f":"Dataset[[#This Row],[2024/25 Baseline]]+Dataset[[#This Row],[2024/25 Total change]]","v":0},{"$f":"Dataset[[#This Row],[2025/26 Baseline]]+Dataset[[#This Row],[2025/26 Total change]]","v":0},{"$f":"Dataset[[#This Row],[2026/27 Baseline]]+Dataset[[#This Row],[2026/27 Total change]]","v":0}]
["NAT|Non-transfer item","26|Other transfers to households","2024_25","MTEF2024",26,1,3,44108,221,"26","01","03","044108","000221","26|01|03","02","02","10","53","57","02|02|10|53|57","National","Military Veterans","Administration","Financial Administration","Non-transfer item","Capital","Transfers and subsidies","Households","Other transfers to households","Other transfers to households","Peace and security","Defence and state security","NAT",0,0,0,0,0,0,0,0,0,0,0,null,null,null,null,null,null,null,null,null,null,null,null,null,null,null,null,null,null,null,null,null,null,null,null,null,null,null,null,null,null,null,null,null,null,{"$f":"Dataset[[#This Row],[2024/25 From - Spending review Topic 1]]+Dataset[[#This Row],[2024/25 From - Spending review Topic 2]]+Dataset[[#This Row],[2024/25 From - Spending review Topic 3]]+Dataset[[#This Row],[2024/25 From - Spending review Topic 4]]+Dataset[[#This Row],[2024/25 From - Other reallocations]]","v":0},{"$f":"Dataset[[#This Row],[2025/26 From - Spending review Topic 1]]+Dataset[[#This Row],[2025/26 From - Spending review Topic 2]]+Dataset[[#This Row],[2025/26 From - Spending review Topic 3]]+Dataset[[#This Row],[2025/26 From - Spending review Topic 4]]+Dataset[[#This Row],[2025/26 From - Other reallocations]]","v":0},{"$f":"Dataset[[#This Row],[2026/27 From - Spending review Topic 1]]+Dataset[[#This Row],[2026/27 From - Spending review Topic 2]]+Dataset[[#This Row],[2026/27 From - Spending review Topic 3]]+Dataset[[#This Row],[2026/27 From - Spending review Topic 4]]+Dataset[[#This Row],[2026/27 From - Other reallocations]]","v":0},{"$f":"Dataset[[#This Row],[2024/25 To - Spending review Topic 1]]+Dataset[[#This Row],[2024/25 To - Spending review Topic 2]]+Dataset[[#This Row],[2024/25 To - Spending review Topic 3]]+Dataset[[#This Row],[2024/25 To - Spending review Topic 4]]+Dataset[[#This Row],[2024/25 To - Other reallocations]]","v":0},{"$f":"Dataset[[#This Row],[2025/26 To - Spending review Topic 1]]+Dataset[[#This Row],[2025/26 To - Spending review Topic 2]]+Dataset[[#This Row],[2025/26 To - Spending review Topic 3]]+Dataset[[#This Row],[2025/26 To - Spending review Topic 4]]+Dataset[[#This Row],[2025/26 To - Other reallocations]]","v":0},{"$f":"Dataset[[#This Row],[2026/27 To - Spending review Topic 1]]+Dataset[[#This Row],[2026/27 To - Spending review Topic 2]]+Dataset[[#This Row],[2026/27 To - Spending review Topic 3]]+Dataset[[#This Row],[2026/27 To - Spending review Topic 4]]+Dataset[[#This Row],[2026/27 To - Other reallocations]]","v":0},{"$f":"Dataset[[#This Row],[2024/25 Reduction]]+Dataset[[#This Row],[2024/25 From - Total]]","v":0},{"$f":"Dataset[[#This Row],[2025/26 Reduction]]+Dataset[[#This Row],[2025/26 From - Total]]","v":0},{"$f":"Dataset[[#This Row],[2026/27 Reduction]]+Dataset[[#This Row],[2026/27 From - Total]]","v":0},{"$f":"Dataset[[#This Row],[2023/24 Reduction]]","v":0},{"$f":"SUM(Dataset[[#This Row],[2024/25 Reduction]],Dataset[[#This Row],[2024/25 From - Total]],Dataset[[#This Row],[2024/25 To - Total]])","v":0},{"$f":"SUM(Dataset[[#This Row],[2025/26 Reduction]],Dataset[[#This Row],[2025/26 From - Total]],Dataset[[#This Row],[2025/26 To - Total]])","v":0},{"$f":"SUM(Dataset[[#This Row],[2026/27 Reduction]],Dataset[[#This Row],[2026/27 From - Total]],Dataset[[#This Row],[2026/27 To - Total]])","v":0},{"$f":"Dataset[[#This Row],[2023/24 Baseline]]+Dataset[[#This Row],[2023/24 Total change]]","v":0},{"$f":"Dataset[[#This Row],[2024/25 Baseline]]+Dataset[[#This Row],[2024/25 Total change]]","v":0},{"$f":"Dataset[[#This Row],[2025/26 Baseline]]+Dataset[[#This Row],[2025/26 Total change]]","v":0},{"$f":"Dataset[[#This Row],[2026/27 Baseline]]+Dataset[[#This Row],[2026/27 Total change]]","v":0}]
["NAT|Non-transfer item","26|Buildings","2024_25","MTEF2024",26,1,3,44109,222,"26","01","03","044109","000222","26|01|03","02","03","11","54","58","02|03|11|54|58","National","Military Veterans","Administration","Financial Administration","Non-transfer item","Capital","Payments for capital assets","Buildings and other fixed structures","Buildings","Buildings","Peace and security","Defence and state security","NAT",0,0,0,0,0,0,0,0,0,0,0,null,null,null,null,null,null,null,null,null,null,null,null,null,null,null,null,null,null,null,null,null,null,null,null,null,null,null,null,null,null,null,null,null,null,{"$f":"Dataset[[#This Row],[2024/25 From - Spending review Topic 1]]+Dataset[[#This Row],[2024/25 From - Spending review Topic 2]]+Dataset[[#This Row],[2024/25 From - Spending review Topic 3]]+Dataset[[#This Row],[2024/25 From - Spending review Topic 4]]+Dataset[[#This Row],[2024/25 From - Other reallocations]]","v":0},{"$f":"Dataset[[#This Row],[2025/26 From - Spending review Topic 1]]+Dataset[[#This Row],[2025/26 From - Spending review Topic 2]]+Dataset[[#This Row],[2025/26 From - Spending review Topic 3]]+Dataset[[#This Row],[2025/26 From - Spending review Topic 4]]+Dataset[[#This Row],[2025/26 From - Other reallocations]]","v":0},{"$f":"Dataset[[#This Row],[2026/27 From - Spending review Topic 1]]+Dataset[[#This Row],[2026/27 From - Spending review Topic 2]]+Dataset[[#This Row],[2026/27 From - Spending review Topic 3]]+Dataset[[#This Row],[2026/27 From - Spending review Topic 4]]+Dataset[[#This Row],[2026/27 From - Other reallocations]]","v":0},{"$f":"Dataset[[#This Row],[2024/25 To - Spending review Topic 1]]+Dataset[[#This Row],[2024/25 To - Spending review Topic 2]]+Dataset[[#This Row],[2024/25 To - Spending review Topic 3]]+Dataset[[#This Row],[2024/25 To - Spending review Topic 4]]+Dataset[[#This Row],[2024/25 To - Other reallocations]]","v":0},{"$f":"Dataset[[#This Row],[2025/26 To - Spending review Topic 1]]+Dataset[[#This Row],[2025/26 To - Spending review Topic 2]]+Dataset[[#This Row],[2025/26 To - Spending review Topic 3]]+Dataset[[#This Row],[2025/26 To - Spending review Topic 4]]+Dataset[[#This Row],[2025/26 To - Other reallocations]]","v":0},{"$f":"Dataset[[#This Row],[2026/27 To - Spending review Topic 1]]+Dataset[[#This Row],[2026/27 To - Spending review Topic 2]]+Dataset[[#This Row],[2026/27 To - Spending review Topic 3]]+Dataset[[#This Row],[2026/27 To - Spending review Topic 4]]+Dataset[[#This Row],[2026/27 To - Other reallocations]]","v":0},{"$f":"Dataset[[#This Row],[2024/25 Reduction]]+Dataset[[#This Row],[2024/25 From - Total]]","v":0},{"$f":"Dataset[[#This Row],[2025/26 Reduction]]+Dataset[[#This Row],[2025/26 From - Total]]","v":0},{"$f":"Dataset[[#This Row],[2026/27 Reduction]]+Dataset[[#This Row],[2026/27 From - Total]]","v":0},{"$f":"Dataset[[#This Row],[2023/24 Reduction]]","v":0},{"$f":"SUM(Dataset[[#This Row],[2024/25 Reduction]],Dataset[[#This Row],[2024/25 From - Total]],Dataset[[#This Row],[2024/25 To - Total]])","v":0},{"$f":"SUM(Dataset[[#This Row],[2025/26 Reduction]],Dataset[[#This Row],[2025/26 From - Total]],Dataset[[#This Row],[2025/26 To - Total]])","v":0},{"$f":"SUM(Dataset[[#This Row],[2026/27 Reduction]],Dataset[[#This Row],[2026/27 From - Total]],Dataset[[#This Row],[2026/27 To - Total]])","v":0},{"$f":"Dataset[[#This Row],[2023/24 Baseline]]+Dataset[[#This Row],[2023/24 Total change]]","v":0},{"$f":"Dataset[[#This Row],[2024/25 Baseline]]+Dataset[[#This Row],[2024/25 Total change]]","v":0},{"$f":"Dataset[[#This Row],[2025/26 Baseline]]+Dataset[[#This Row],[2025/26 Total change]]","v":0},{"$f":"Dataset[[#This Row],[2026/27 Baseline]]+Dataset[[#This Row],[2026/27 Total change]]","v":0}]
["NAT|Non-transfer item","26|Other fixed structures","2024_25","MTEF2024",26,1,3,44110,223,"26","01","03","044110","000223","26|01|03","02","03","11","55","59","02|03|11|55|59","National","Military Veterans","Administration","Financial Administration","Non-transfer item","Capital","Payments for capital assets","Buildings and other fixed structures","Other fixed structures","Other fixed structures","Peace and security","Defence and state security","NAT",0,0,0,0,0,0,0,0,0,0,0,null,null,null,null,null,null,null,null,null,null,null,null,null,null,null,null,null,null,null,null,null,null,null,null,null,null,null,null,null,null,null,null,null,null,{"$f":"Dataset[[#This Row],[2024/25 From - Spending review Topic 1]]+Dataset[[#This Row],[2024/25 From - Spending review Topic 2]]+Dataset[[#This Row],[2024/25 From - Spending review Topic 3]]+Dataset[[#This Row],[2024/25 From - Spending review Topic 4]]+Dataset[[#This Row],[2024/25 From - Other reallocations]]","v":0},{"$f":"Dataset[[#This Row],[2025/26 From - Spending review Topic 1]]+Dataset[[#This Row],[2025/26 From - Spending review Topic 2]]+Dataset[[#This Row],[2025/26 From - Spending review Topic 3]]+Dataset[[#This Row],[2025/26 From - Spending review Topic 4]]+Dataset[[#This Row],[2025/26 From - Other reallocations]]","v":0},{"$f":"Dataset[[#This Row],[2026/27 From - Spending review Topic 1]]+Dataset[[#This Row],[2026/27 From - Spending review Topic 2]]+Dataset[[#This Row],[2026/27 From - Spending review Topic 3]]+Dataset[[#This Row],[2026/27 From - Spending review Topic 4]]+Dataset[[#This Row],[2026/27 From - Other reallocations]]","v":0},{"$f":"Dataset[[#This Row],[2024/25 To - Spending review Topic 1]]+Dataset[[#This Row],[2024/25 To - Spending review Topic 2]]+Dataset[[#This Row],[2024/25 To - Spending review Topic 3]]+Dataset[[#This Row],[2024/25 To - Spending review Topic 4]]+Dataset[[#This Row],[2024/25 To - Other reallocations]]","v":0},{"$f":"Dataset[[#This Row],[2025/26 To - Spending review Topic 1]]+Dataset[[#This Row],[2025/26 To - Spending review Topic 2]]+Dataset[[#This Row],[2025/26 To - Spending review Topic 3]]+Dataset[[#This Row],[2025/26 To - Spending review Topic 4]]+Dataset[[#This Row],[2025/26 To - Other reallocations]]","v":0},{"$f":"Dataset[[#This Row],[2026/27 To - Spending review Topic 1]]+Dataset[[#This Row],[2026/27 To - Spending review Topic 2]]+Dataset[[#This Row],[2026/27 To - Spending review Topic 3]]+Dataset[[#This Row],[2026/27 To - Spending review Topic 4]]+Dataset[[#This Row],[2026/27 To - Other reallocations]]","v":0},{"$f":"Dataset[[#This Row],[2024/25 Reduction]]+Dataset[[#This Row],[2024/25 From - Total]]","v":0},{"$f":"Dataset[[#This Row],[2025/26 Reduction]]+Dataset[[#This Row],[2025/26 From - Total]]","v":0},{"$f":"Dataset[[#This Row],[2026/27 Reduction]]+Dataset[[#This Row],[2026/27 From - Total]]","v":0},{"$f":"Dataset[[#This Row],[2023/24 Reduction]]","v":0},{"$f":"SUM(Dataset[[#This Row],[2024/25 Reduction]],Dataset[[#This Row],[2024/25 From - Total]],Dataset[[#This Row],[2024/25 To - Total]])","v":0},{"$f":"SUM(Dataset[[#This Row],[2025/26 Reduction]],Dataset[[#This Row],[2025/26 From - Total]],Dataset[[#This Row],[2025/26 To - Total]])","v":0},{"$f":"SUM(Dataset[[#This Row],[2026/27 Reduction]],Dataset[[#This Row],[2026/27 From - Total]],Dataset[[#This Row],[2026/27 To - Total]])","v":0},{"$f":"Dataset[[#This Row],[2023/24 Baseline]]+Dataset[[#This Row],[2023/24 Total change]]","v":0},{"$f":"Dataset[[#This Row],[2024/25 Baseline]]+Dataset[[#This Row],[2024/25 Total change]]","v":0},{"$f":"Dataset[[#This Row],[2025/26 Baseline]]+Dataset[[#This Row],[2025/26 Total change]]","v":0},{"$f":"Dataset[[#This Row],[2026/27 Baseline]]+Dataset[[#This Row],[2026/27 Total change]]","v":0}]
["NAT|Non-transfer item","26|Transport equipment","2024_25","MTEF2024",26,1,3,44111,224,"26","01","03","044111","000224","26|01|03","02","03","12","56","60","02|03|12|56|60","National","Military Veterans","Administration","Financial Administration","Non-transfer item","Capital","Payments for capital assets","Machinery and equipment","Transport equipment","Transport equipment","Peace and security","Defence and state security","NAT",0,0,0,0,0,0,0,0,0,0,0,null,null,null,null,null,null,null,null,null,null,null,null,null,null,null,null,null,null,null,null,null,null,null,null,null,null,null,null,null,null,null,null,null,null,{"$f":"Dataset[[#This Row],[2024/25 From - Spending review Topic 1]]+Dataset[[#This Row],[2024/25 From - Spending review Topic 2]]+Dataset[[#This Row],[2024/25 From - Spending review Topic 3]]+Dataset[[#This Row],[2024/25 From - Spending review Topic 4]]+Dataset[[#This Row],[2024/25 From - Other reallocations]]","v":0},{"$f":"Dataset[[#This Row],[2025/26 From - Spending review Topic 1]]+Dataset[[#This Row],[2025/26 From - Spending review Topic 2]]+Dataset[[#This Row],[2025/26 From - Spending review Topic 3]]+Dataset[[#This Row],[2025/26 From - Spending review Topic 4]]+Dataset[[#This Row],[2025/26 From - Other reallocations]]","v":0},{"$f":"Dataset[[#This Row],[2026/27 From - Spending review Topic 1]]+Dataset[[#This Row],[2026/27 From - Spending review Topic 2]]+Dataset[[#This Row],[2026/27 From - Spending review Topic 3]]+Dataset[[#This Row],[2026/27 From - Spending review Topic 4]]+Dataset[[#This Row],[2026/27 From - Other reallocations]]","v":0},{"$f":"Dataset[[#This Row],[2024/25 To - Spending review Topic 1]]+Dataset[[#This Row],[2024/25 To - Spending review Topic 2]]+Dataset[[#This Row],[2024/25 To - Spending review Topic 3]]+Dataset[[#This Row],[2024/25 To - Spending review Topic 4]]+Dataset[[#This Row],[2024/25 To - Other reallocations]]","v":0},{"$f":"Dataset[[#This Row],[2025/26 To - Spending review Topic 1]]+Dataset[[#This Row],[2025/26 To - Spending review Topic 2]]+Dataset[[#This Row],[2025/26 To - Spending review Topic 3]]+Dataset[[#This Row],[2025/26 To - Spending review Topic 4]]+Dataset[[#This Row],[2025/26 To - Other reallocations]]","v":0},{"$f":"Dataset[[#This Row],[2026/27 To - Spending review Topic 1]]+Dataset[[#This Row],[2026/27 To - Spending review Topic 2]]+Dataset[[#This Row],[2026/27 To - Spending review Topic 3]]+Dataset[[#This Row],[2026/27 To - Spending review Topic 4]]+Dataset[[#This Row],[2026/27 To - Other reallocations]]","v":0},{"$f":"Dataset[[#This Row],[2024/25 Reduction]]+Dataset[[#This Row],[2024/25 From - Total]]","v":0},{"$f":"Dataset[[#This Row],[2025/26 Reduction]]+Dataset[[#This Row],[2025/26 From - Total]]","v":0},{"$f":"Dataset[[#This Row],[2026/27 Reduction]]+Dataset[[#This Row],[2026/27 From - Total]]","v":0},{"$f":"Dataset[[#This Row],[2023/24 Reduction]]","v":0},{"$f":"SUM(Dataset[[#This Row],[2024/25 Reduction]],Dataset[[#This Row],[2024/25 From - Total]],Dataset[[#This Row],[2024/25 To - Total]])","v":0},{"$f":"SUM(Dataset[[#This Row],[2025/26 Reduction]],Dataset[[#This Row],[2025/26 From - Total]],Dataset[[#This Row],[2025/26 To - Total]])","v":0},{"$f":"SUM(Dataset[[#This Row],[2026/27 Reduction]],Dataset[[#This Row],[2026/27 From - Total]],Dataset[[#This Row],[2026/27 To - Total]])","v":0},{"$f":"Dataset[[#This Row],[2023/24 Baseline]]+Dataset[[#This Row],[2023/24 Total change]]","v":0},{"$f":"Dataset[[#This Row],[2024/25 Baseline]]+Dataset[[#This Row],[2024/25 Total change]]","v":0},{"$f":"Dataset[[#This Row],[2025/26 Baseline]]+Dataset[[#This Row],[2025/26 Total change]]","v":0},{"$f":"Dataset[[#This Row],[2026/27 Baseline]]+Dataset[[#This Row],[2026/27 Total change]]","v":0}]
["NAT|Non-transfer item","26|Other machinery and equipment","2024_25","MTEF2024",26,1,3,44112,225,"26","01","03","044112","000225","26|01|03","02","03","12","57","61","02|03|12|57|61","National","Military Veterans","Administration","Financial Administration","Non-transfer item","Capital","Payments for capital assets","Machinery and equipment","Other machinery and equipment","Other machinery and equipment","Peace and security","Defence and state security","NAT",70,18,62,692,692,692,0,763,1132,1183,1237,null,null,null,null,null,null,null,null,null,null,null,null,null,null,null,null,null,null,null,null,null,null,null,null,null,null,null,null,null,null,null,null,null,null,{"$f":"Dataset[[#This Row],[2024/25 From - Spending review Topic 1]]+Dataset[[#This Row],[2024/25 From - Spending review Topic 2]]+Dataset[[#This Row],[2024/25 From - Spending review Topic 3]]+Dataset[[#This Row],[2024/25 From - Spending review Topic 4]]+Dataset[[#This Row],[2024/25 From - Other reallocations]]","v":0},{"$f":"Dataset[[#This Row],[2025/26 From - Spending review Topic 1]]+Dataset[[#This Row],[2025/26 From - Spending review Topic 2]]+Dataset[[#This Row],[2025/26 From - Spending review Topic 3]]+Dataset[[#This Row],[2025/26 From - Spending review Topic 4]]+Dataset[[#This Row],[2025/26 From - Other reallocations]]","v":0},{"$f":"Dataset[[#This Row],[2026/27 From - Spending review Topic 1]]+Dataset[[#This Row],[2026/27 From - Spending review Topic 2]]+Dataset[[#This Row],[2026/27 From - Spending review Topic 3]]+Dataset[[#This Row],[2026/27 From - Spending review Topic 4]]+Dataset[[#This Row],[2026/27 From - Other reallocations]]","v":0},{"$f":"Dataset[[#This Row],[2024/25 To - Spending review Topic 1]]+Dataset[[#This Row],[2024/25 To - Spending review Topic 2]]+Dataset[[#This Row],[2024/25 To - Spending review Topic 3]]+Dataset[[#This Row],[2024/25 To - Spending review Topic 4]]+Dataset[[#This Row],[2024/25 To - Other reallocations]]","v":0},{"$f":"Dataset[[#This Row],[2025/26 To - Spending review Topic 1]]+Dataset[[#This Row],[2025/26 To - Spending review Topic 2]]+Dataset[[#This Row],[2025/26 To - Spending review Topic 3]]+Dataset[[#This Row],[2025/26 To - Spending review Topic 4]]+Dataset[[#This Row],[2025/26 To - Other reallocations]]","v":0},{"$f":"Dataset[[#This Row],[2026/27 To - Spending review Topic 1]]+Dataset[[#This Row],[2026/27 To - Spending review Topic 2]]+Dataset[[#This Row],[2026/27 To - Spending review Topic 3]]+Dataset[[#This Row],[2026/27 To - Spending review Topic 4]]+Dataset[[#This Row],[2026/27 To - Other reallocations]]","v":0},{"$f":"Dataset[[#This Row],[2024/25 Reduction]]+Dataset[[#This Row],[2024/25 From - Total]]","v":0},{"$f":"Dataset[[#This Row],[2025/26 Reduction]]+Dataset[[#This Row],[2025/26 From - Total]]","v":0},{"$f":"Dataset[[#This Row],[2026/27 Reduction]]+Dataset[[#This Row],[2026/27 From - Total]]","v":0},{"$f":"Dataset[[#This Row],[2023/24 Reduction]]","v":0},{"$f":"SUM(Dataset[[#This Row],[2024/25 Reduction]],Dataset[[#This Row],[2024/25 From - Total]],Dataset[[#This Row],[2024/25 To - Total]])","v":0},{"$f":"SUM(Dataset[[#This Row],[2025/26 Reduction]],Dataset[[#This Row],[2025/26 From - Total]],Dataset[[#This Row],[2025/26 To - Total]])","v":0},{"$f":"SUM(Dataset[[#This Row],[2026/27 Reduction]],Dataset[[#This Row],[2026/27 From - Total]],Dataset[[#This Row],[2026/27 To - Total]])","v":0},{"$f":"Dataset[[#This Row],[2023/24 Baseline]]+Dataset[[#This Row],[2023/24 Total change]]","v":763},{"$f":"Dataset[[#This Row],[2024/25 Baseline]]+Dataset[[#This Row],[2024/25 Total change]]","v":1132},{"$f":"Dataset[[#This Row],[2025/26 Baseline]]+Dataset[[#This Row],[2025/26 Total change]]","v":1183},{"$f":"Dataset[[#This Row],[2026/27 Baseline]]+Dataset[[#This Row],[2026/27 Total change]]","v":1237}]
["NAT|Non-transfer item","26|Heritage assets","2024_25","MTEF2024",26,1,3,44113,226,"26","01","03","044113","000226","26|01|03","02","03","13","58","62","02|03|13|58|62","National","Military Veterans","Administration","Financial Administration","Non-transfer item","Capital","Payments for capital assets","Heritage assets","Heritage assets","Heritage assets","Peace and security","Defence and state security","NAT",0,0,0,0,0,0,0,0,0,0,0,null,null,null,null,null,null,null,null,null,null,null,null,null,null,null,null,null,null,null,null,null,null,null,null,null,null,null,null,null,null,null,null,null,null,{"$f":"Dataset[[#This Row],[2024/25 From - Spending review Topic 1]]+Dataset[[#This Row],[2024/25 From - Spending review Topic 2]]+Dataset[[#This Row],[2024/25 From - Spending review Topic 3]]+Dataset[[#This Row],[2024/25 From - Spending review Topic 4]]+Dataset[[#This Row],[2024/25 From - Other reallocations]]","v":0},{"$f":"Dataset[[#This Row],[2025/26 From - Spending review Topic 1]]+Dataset[[#This Row],[2025/26 From - Spending review Topic 2]]+Dataset[[#This Row],[2025/26 From - Spending review Topic 3]]+Dataset[[#This Row],[2025/26 From - Spending review Topic 4]]+Dataset[[#This Row],[2025/26 From - Other reallocations]]","v":0},{"$f":"Dataset[[#This Row],[2026/27 From - Spending review Topic 1]]+Dataset[[#This Row],[2026/27 From - Spending review Topic 2]]+Dataset[[#This Row],[2026/27 From - Spending review Topic 3]]+Dataset[[#This Row],[2026/27 From - Spending review Topic 4]]+Dataset[[#This Row],[2026/27 From - Other reallocations]]","v":0},{"$f":"Dataset[[#This Row],[2024/25 To - Spending review Topic 1]]+Dataset[[#This Row],[2024/25 To - Spending review Topic 2]]+Dataset[[#This Row],[2024/25 To - Spending review Topic 3]]+Dataset[[#This Row],[2024/25 To - Spending review Topic 4]]+Dataset[[#This Row],[2024/25 To - Other reallocations]]","v":0},{"$f":"Dataset[[#This Row],[2025/26 To - Spending review Topic 1]]+Dataset[[#This Row],[2025/26 To - Spending review Topic 2]]+Dataset[[#This Row],[2025/26 To - Spending review Topic 3]]+Dataset[[#This Row],[2025/26 To - Spending review Topic 4]]+Dataset[[#This Row],[2025/26 To - Other reallocations]]","v":0},{"$f":"Dataset[[#This Row],[2026/27 To - Spending review Topic 1]]+Dataset[[#This Row],[2026/27 To - Spending review Topic 2]]+Dataset[[#This Row],[2026/27 To - Spending review Topic 3]]+Dataset[[#This Row],[2026/27 To - Spending review Topic 4]]+Dataset[[#This Row],[2026/27 To - Other reallocations]]","v":0},{"$f":"Dataset[[#This Row],[2024/25 Reduction]]+Dataset[[#This Row],[2024/25 From - Total]]","v":0},{"$f":"Dataset[[#This Row],[2025/26 Reduction]]+Dataset[[#This Row],[2025/26 From - Total]]","v":0},{"$f":"Dataset[[#This Row],[2026/27 Reduction]]+Dataset[[#This Row],[2026/27 From - Total]]","v":0},{"$f":"Dataset[[#This Row],[2023/24 Reduction]]","v":0},{"$f":"SUM(Dataset[[#This Row],[2024/25 Reduction]],Dataset[[#This Row],[2024/25 From - Total]],Dataset[[#This Row],[2024/25 To - Total]])","v":0},{"$f":"SUM(Dataset[[#This Row],[2025/26 Reduction]],Dataset[[#This Row],[2025/26 From - Total]],Dataset[[#This Row],[2025/26 To - Total]])","v":0},{"$f":"SUM(Dataset[[#This Row],[2026/27 Reduction]],Dataset[[#This Row],[2026/27 From - Total]],Dataset[[#This Row],[2026/27 To - Total]])","v":0},{"$f":"Dataset[[#This Row],[2023/24 Baseline]]+Dataset[[#This Row],[2023/24 Total change]]","v":0},{"$f":"Dataset[[#This Row],[2024/25 Baseline]]+Dataset[[#This Row],[2024/25 Total change]]","v":0},{"$f":"Dataset[[#This Row],[2025/26 Baseline]]+Dataset[[#This Row],[2025/26 Total change]]","v":0},{"$f":"Dataset[[#This Row],[2026/27 Baseline]]+Dataset[[#This Row],[2026/27 Total change]]","v":0}]
["NAT|Non-transfer item","26|Specialised military assets","2024_25","MTEF2024",26,1,3,44114,227,"26","01","03","044114","000227","26|01|03","02","03","14","59","63","02|03|14|59|63","National","Military Veterans","Administration","Financial Administration","Non-transfer item","Capital","Payments for capital assets","Specialised military assets","Specialised military assets","Specialised military assets","Peace and security","Defence and state security","NAT",0,0,0,0,0,0,0,0,0,0,0,null,null,null,null,null,null,null,null,null,null,null,null,null,null,null,null,null,null,null,null,null,null,null,null,null,null,null,null,null,null,null,null,null,null,{"$f":"Dataset[[#This Row],[2024/25 From - Spending review Topic 1]]+Dataset[[#This Row],[2024/25 From - Spending review Topic 2]]+Dataset[[#This Row],[2024/25 From - Spending review Topic 3]]+Dataset[[#This Row],[2024/25 From - Spending review Topic 4]]+Dataset[[#This Row],[2024/25 From - Other reallocations]]","v":0},{"$f":"Dataset[[#This Row],[2025/26 From - Spending review Topic 1]]+Dataset[[#This Row],[2025/26 From - Spending review Topic 2]]+Dataset[[#This Row],[2025/26 From - Spending review Topic 3]]+Dataset[[#This Row],[2025/26 From - Spending review Topic 4]]+Dataset[[#This Row],[2025/26 From - Other reallocations]]","v":0},{"$f":"Dataset[[#This Row],[2026/27 From - Spending review Topic 1]]+Dataset[[#This Row],[2026/27 From - Spending review Topic 2]]+Dataset[[#This Row],[2026/27 From - Spending review Topic 3]]+Dataset[[#This Row],[2026/27 From - Spending review Topic 4]]+Dataset[[#This Row],[2026/27 From - Other reallocations]]","v":0},{"$f":"Dataset[[#This Row],[2024/25 To - Spending review Topic 1]]+Dataset[[#This Row],[2024/25 To - Spending review Topic 2]]+Dataset[[#This Row],[2024/25 To - Spending review Topic 3]]+Dataset[[#This Row],[2024/25 To - Spending review Topic 4]]+Dataset[[#This Row],[2024/25 To - Other reallocations]]","v":0},{"$f":"Dataset[[#This Row],[2025/26 To - Spending review Topic 1]]+Dataset[[#This Row],[2025/26 To - Spending review Topic 2]]+Dataset[[#This Row],[2025/26 To - Spending review Topic 3]]+Dataset[[#This Row],[2025/26 To - Spending review Topic 4]]+Dataset[[#This Row],[2025/26 To - Other reallocations]]","v":0},{"$f":"Dataset[[#This Row],[2026/27 To - Spending review Topic 1]]+Dataset[[#This Row],[2026/27 To - Spending review Topic 2]]+Dataset[[#This Row],[2026/27 To - Spending review Topic 3]]+Dataset[[#This Row],[2026/27 To - Spending review Topic 4]]+Dataset[[#This Row],[2026/27 To - Other reallocations]]","v":0},{"$f":"Dataset[[#This Row],[2024/25 Reduction]]+Dataset[[#This Row],[2024/25 From - Total]]","v":0},{"$f":"Dataset[[#This Row],[2025/26 Reduction]]+Dataset[[#This Row],[2025/26 From - Total]]","v":0},{"$f":"Dataset[[#This Row],[2026/27 Reduction]]+Dataset[[#This Row],[2026/27 From - Total]]","v":0},{"$f":"Dataset[[#This Row],[2023/24 Reduction]]","v":0},{"$f":"SUM(Dataset[[#This Row],[2024/25 Reduction]],Dataset[[#This Row],[2024/25 From - Total]],Dataset[[#This Row],[2024/25 To - Total]])","v":0},{"$f":"SUM(Dataset[[#This Row],[2025/26 Reduction]],Dataset[[#This Row],[2025/26 From - Total]],Dataset[[#This Row],[2025/26 To - Total]])","v":0},{"$f":"SUM(Dataset[[#This Row],[2026/27 Reduction]],Dataset[[#This Row],[2026/27 From - Total]],Dataset[[#This Row],[2026/27 To - Total]])","v":0},{"$f":"Dataset[[#This Row],[2023/24 Baseline]]+Dataset[[#This Row],[2023/24 Total change]]","v":0},{"$f":"Dataset[[#This Row],[2024/25 Baseline]]+Dataset[[#This Row],[2024/25 Total change]]","v":0},{"$f":"Dataset[[#This Row],[2025/26 Baseline]]+Dataset[[#This Row],[2025/26 Total change]]","v":0},{"$f":"Dataset[[#This Row],[2026/27 Baseline]]+Dataset[[#This Row],[2026/27 Total change]]","v":0}]
["NAT|Non-transfer item","26|Biological assets","2024_25","MTEF2024",26,1,3,44115,228,"26","01","03","044115","000228","26|01|03","02","03","15","60","64","02|03|15|60|64","National","Military Veterans","Administration","Financial Administration","Non-transfer item","Capital","Payments for capital assets","Biological assets","Biological assets","Biological assets","Peace and security","Defence and state security","NAT",0,0,0,0,0,0,0,0,0,0,0,null,null,null,null,null,null,null,null,null,null,null,null,null,null,null,null,null,null,null,null,null,null,null,null,null,null,null,null,null,null,null,null,null,null,{"$f":"Dataset[[#This Row],[2024/25 From - Spending review Topic 1]]+Dataset[[#This Row],[2024/25 From - Spending review Topic 2]]+Dataset[[#This Row],[2024/25 From - Spending review Topic 3]]+Dataset[[#This Row],[2024/25 From - Spending review Topic 4]]+Dataset[[#This Row],[2024/25 From - Other reallocations]]","v":0},{"$f":"Dataset[[#This Row],[2025/26 From - Spending review Topic 1]]+Dataset[[#This Row],[2025/26 From - Spending review Topic 2]]+Dataset[[#This Row],[2025/26 From - Spending review Topic 3]]+Dataset[[#This Row],[2025/26 From - Spending review Topic 4]]+Dataset[[#This Row],[2025/26 From - Other reallocations]]","v":0},{"$f":"Dataset[[#This Row],[2026/27 From - Spending review Topic 1]]+Dataset[[#This Row],[2026/27 From - Spending review Topic 2]]+Dataset[[#This Row],[2026/27 From - Spending review Topic 3]]+Dataset[[#This Row],[2026/27 From - Spending review Topic 4]]+Dataset[[#This Row],[2026/27 From - Other reallocations]]","v":0},{"$f":"Dataset[[#This Row],[2024/25 To - Spending review Topic 1]]+Dataset[[#This Row],[2024/25 To - Spending review Topic 2]]+Dataset[[#This Row],[2024/25 To - Spending review Topic 3]]+Dataset[[#This Row],[2024/25 To - Spending review Topic 4]]+Dataset[[#This Row],[2024/25 To - Other reallocations]]","v":0},{"$f":"Dataset[[#This Row],[2025/26 To - Spending review Topic 1]]+Dataset[[#This Row],[2025/26 To - Spending review Topic 2]]+Dataset[[#This Row],[2025/26 To - Spending review Topic 3]]+Dataset[[#This Row],[2025/26 To - Spending review Topic 4]]+Dataset[[#This Row],[2025/26 To - Other reallocations]]","v":0},{"$f":"Dataset[[#This Row],[2026/27 To - Spending review Topic 1]]+Dataset[[#This Row],[2026/27 To - Spending review Topic 2]]+Dataset[[#This Row],[2026/27 To - Spending review Topic 3]]+Dataset[[#This Row],[2026/27 To - Spending review Topic 4]]+Dataset[[#This Row],[2026/27 To - Other reallocations]]","v":0},{"$f":"Dataset[[#This Row],[2024/25 Reduction]]+Dataset[[#This Row],[2024/25 From - Total]]","v":0},{"$f":"Dataset[[#This Row],[2025/26 Reduction]]+Dataset[[#This Row],[2025/26 From - Total]]","v":0},{"$f":"Dataset[[#This Row],[2026/27 Reduction]]+Dataset[[#This Row],[2026/27 From - Total]]","v":0},{"$f":"Dataset[[#This Row],[2023/24 Reduction]]","v":0},{"$f":"SUM(Dataset[[#This Row],[2024/25 Reduction]],Dataset[[#This Row],[2024/25 From - Total]],Dataset[[#This Row],[2024/25 To - Total]])","v":0},{"$f":"SUM(Dataset[[#This Row],[2025/26 Reduction]],Dataset[[#This Row],[2025/26 From - Total]],Dataset[[#This Row],[2025/26 To - Total]])","v":0},{"$f":"SUM(Dataset[[#This Row],[2026/27 Reduction]],Dataset[[#This Row],[2026/27 From - Total]],Dataset[[#This Row],[2026/27 To - Total]])","v":0},{"$f":"Dataset[[#This Row],[2023/24 Baseline]]+Dataset[[#This Row],[2023/24 Total change]]","v":0},{"$f":"Dataset[[#This Row],[2024/25 Baseline]]+Dataset[[#This Row],[2024/25 Total change]]","v":0},{"$f":"Dataset[[#This Row],[2025/26 Baseline]]+Dataset[[#This Row],[2025/26 Total change]]","v":0},{"$f":"Dataset[[#This Row],[2026/27 Baseline]]+Dataset[[#This Row],[2026/27 Total change]]","v":0}]
["NAT|Non-transfer item","26|Land and sub-soil assets","2024_25","MTEF2024",26,1,3,44116,229,"26","01","03","044116","000229","26|01|03","02","03","16","61","65","02|03|16|61|65","National","Military Veterans","Administration","Financial Administration","Non-transfer item","Capital","Payments for capital assets","Land and sub-soil assets","Land and sub-soil assets","Land and sub-soil assets","Peace and security","Defence and state security","NAT",0,0,0,0,0,0,0,0,0,0,0,null,null,null,null,null,null,null,null,null,null,null,null,null,null,null,null,null,null,null,null,null,null,null,null,null,null,null,null,null,null,null,null,null,null,{"$f":"Dataset[[#This Row],[2024/25 From - Spending review Topic 1]]+Dataset[[#This Row],[2024/25 From - Spending review Topic 2]]+Dataset[[#This Row],[2024/25 From - Spending review Topic 3]]+Dataset[[#This Row],[2024/25 From - Spending review Topic 4]]+Dataset[[#This Row],[2024/25 From - Other reallocations]]","v":0},{"$f":"Dataset[[#This Row],[2025/26 From - Spending review Topic 1]]+Dataset[[#This Row],[2025/26 From - Spending review Topic 2]]+Dataset[[#This Row],[2025/26 From - Spending review Topic 3]]+Dataset[[#This Row],[2025/26 From - Spending review Topic 4]]+Dataset[[#This Row],[2025/26 From - Other reallocations]]","v":0},{"$f":"Dataset[[#This Row],[2026/27 From - Spending review Topic 1]]+Dataset[[#This Row],[2026/27 From - Spending review Topic 2]]+Dataset[[#This Row],[2026/27 From - Spending review Topic 3]]+Dataset[[#This Row],[2026/27 From - Spending review Topic 4]]+Dataset[[#This Row],[2026/27 From - Other reallocations]]","v":0},{"$f":"Dataset[[#This Row],[2024/25 To - Spending review Topic 1]]+Dataset[[#This Row],[2024/25 To - Spending review Topic 2]]+Dataset[[#This Row],[2024/25 To - Spending review Topic 3]]+Dataset[[#This Row],[2024/25 To - Spending review Topic 4]]+Dataset[[#This Row],[2024/25 To - Other reallocations]]","v":0},{"$f":"Dataset[[#This Row],[2025/26 To - Spending review Topic 1]]+Dataset[[#This Row],[2025/26 To - Spending review Topic 2]]+Dataset[[#This Row],[2025/26 To - Spending review Topic 3]]+Dataset[[#This Row],[2025/26 To - Spending review Topic 4]]+Dataset[[#This Row],[2025/26 To - Other reallocations]]","v":0},{"$f":"Dataset[[#This Row],[2026/27 To - Spending review Topic 1]]+Dataset[[#This Row],[2026/27 To - Spending review Topic 2]]+Dataset[[#This Row],[2026/27 To - Spending review Topic 3]]+Dataset[[#This Row],[2026/27 To - Spending review Topic 4]]+Dataset[[#This Row],[2026/27 To - Other reallocations]]","v":0},{"$f":"Dataset[[#This Row],[2024/25 Reduction]]+Dataset[[#This Row],[2024/25 From - Total]]","v":0},{"$f":"Dataset[[#This Row],[2025/26 Reduction]]+Dataset[[#This Row],[2025/26 From - Total]]","v":0},{"$f":"Dataset[[#This Row],[2026/27 Reduction]]+Dataset[[#This Row],[2026/27 From - Total]]","v":0},{"$f":"Dataset[[#This Row],[2023/24 Reduction]]","v":0},{"$f":"SUM(Dataset[[#This Row],[2024/25 Reduction]],Dataset[[#This Row],[2024/25 From - Total]],Dataset[[#This Row],[2024/25 To - Total]])","v":0},{"$f":"SUM(Dataset[[#This Row],[2025/26 Reduction]],Dataset[[#This Row],[2025/26 From - Total]],Dataset[[#This Row],[2025/26 To - Total]])","v":0},{"$f":"SUM(Dataset[[#This Row],[2026/27 Reduction]],Dataset[[#This Row],[2026/27 From - Total]],Dataset[[#This Row],[2026/27 To - Total]])","v":0},{"$f":"Dataset[[#This Row],[2023/24 Baseline]]+Dataset[[#This Row],[2023/24 Total change]]","v":0},{"$f":"Dataset[[#This Row],[2024/25 Baseline]]+Dataset[[#This Row],[2024/25 Total change]]","v":0},{"$f":"Dataset[[#This Row],[2025/26 Baseline]]+Dataset[[#This Row],[2025/26 Total change]]","v":0},{"$f":"Dataset[[#This Row],[2026/27 Baseline]]+Dataset[[#This Row],[2026/27 Total change]]","v":0}]
["NAT|Non-transfer item","26|Software and other intangible assets","2024_25","MTEF2024",26,1,3,44117,230,"26","01","03","044117","000230","26|01|03","02","03","17","62","66","02|03|17|62|66","National","Military Veterans","Administration","Financial Administration","Non-transfer item","Capital","Payments for capital assets","Software and other intangible assets","Software and other intangible assets","Software and other intangible assets","Peace and security","Defence and state security","NAT",0,0,0,0,0,0,0,0,0,0,0,null,null,null,null,null,null,null,null,null,null,null,null,null,null,null,null,null,null,null,null,null,null,null,null,null,null,null,null,null,null,null,null,null,null,{"$f":"Dataset[[#This Row],[2024/25 From - Spending review Topic 1]]+Dataset[[#This Row],[2024/25 From - Spending review Topic 2]]+Dataset[[#This Row],[2024/25 From - Spending review Topic 3]]+Dataset[[#This Row],[2024/25 From - Spending review Topic 4]]+Dataset[[#This Row],[2024/25 From - Other reallocations]]","v":0},{"$f":"Dataset[[#This Row],[2025/26 From - Spending review Topic 1]]+Dataset[[#This Row],[2025/26 From - Spending review Topic 2]]+Dataset[[#This Row],[2025/26 From - Spending review Topic 3]]+Dataset[[#This Row],[2025/26 From - Spending review Topic 4]]+Dataset[[#This Row],[2025/26 From - Other reallocations]]","v":0},{"$f":"Dataset[[#This Row],[2026/27 From - Spending review Topic 1]]+Dataset[[#This Row],[2026/27 From - Spending review Topic 2]]+Dataset[[#This Row],[2026/27 From - Spending review Topic 3]]+Dataset[[#This Row],[2026/27 From - Spending review Topic 4]]+Dataset[[#This Row],[2026/27 From - Other reallocations]]","v":0},{"$f":"Dataset[[#This Row],[2024/25 To - Spending review Topic 1]]+Dataset[[#This Row],[2024/25 To - Spending review Topic 2]]+Dataset[[#This Row],[2024/25 To - Spending review Topic 3]]+Dataset[[#This Row],[2024/25 To - Spending review Topic 4]]+Dataset[[#This Row],[2024/25 To - Other reallocations]]","v":0},{"$f":"Dataset[[#This Row],[2025/26 To - Spending review Topic 1]]+Dataset[[#This Row],[2025/26 To - Spending review Topic 2]]+Dataset[[#This Row],[2025/26 To - Spending review Topic 3]]+Dataset[[#This Row],[2025/26 To - Spending review Topic 4]]+Dataset[[#This Row],[2025/26 To - Other reallocations]]","v":0},{"$f":"Dataset[[#This Row],[2026/27 To - Spending review Topic 1]]+Dataset[[#This Row],[2026/27 To - Spending review Topic 2]]+Dataset[[#This Row],[2026/27 To - Spending review Topic 3]]+Dataset[[#This Row],[2026/27 To - Spending review Topic 4]]+Dataset[[#This Row],[2026/27 To - Other reallocations]]","v":0},{"$f":"Dataset[[#This Row],[2024/25 Reduction]]+Dataset[[#This Row],[2024/25 From - Total]]","v":0},{"$f":"Dataset[[#This Row],[2025/26 Reduction]]+Dataset[[#This Row],[2025/26 From - Total]]","v":0},{"$f":"Dataset[[#This Row],[2026/27 Reduction]]+Dataset[[#This Row],[2026/27 From - Total]]","v":0},{"$f":"Dataset[[#This Row],[2023/24 Reduction]]","v":0},{"$f":"SUM(Dataset[[#This Row],[2024/25 Reduction]],Dataset[[#This Row],[2024/25 From - Total]],Dataset[[#This Row],[2024/25 To - Total]])","v":0},{"$f":"SUM(Dataset[[#This Row],[2025/26 Reduction]],Dataset[[#This Row],[2025/26 From - Total]],Dataset[[#This Row],[2025/26 To - Total]])","v":0},{"$f":"SUM(Dataset[[#This Row],[2026/27 Reduction]],Dataset[[#This Row],[2026/27 From - Total]],Dataset[[#This Row],[2026/27 To - Total]])","v":0},{"$f":"Dataset[[#This Row],[2023/24 Baseline]]+Dataset[[#This Row],[2023/24 Total change]]","v":0},{"$f":"Dataset[[#This Row],[2024/25 Baseline]]+Dataset[[#This Row],[2024/25 Total change]]","v":0},{"$f":"Dataset[[#This Row],[2025/26 Baseline]]+Dataset[[#This Row],[2025/26 Total change]]","v":0},{"$f":"Dataset[[#This Row],[2026/27 Baseline]]+Dataset[[#This Row],[2026/27 Total change]]","v":0}]
["NAT|Non-transfer item","26|Payments for financial assets","2024_25","MTEF2024",26,1,3,44118,231,"26","01","03","044118","000231","26|01|03","03","04","18","63","67","03|04|18|63|67","National","Military Veterans","Administration","Financial Administration","Non-transfer item","Payments for financial assets","Payments for financial assets","Payments for financial assets","Payments for financial assets","Payments for financial assets","Peace and security","Defence and state security","NAT",0,0,0,0,0,0,0,0,0,0,0,null,null,null,null,null,null,null,null,null,null,null,null,null,null,null,null,null,null,null,null,null,null,null,null,null,null,null,null,null,null,null,null,null,null,{"$f":"Dataset[[#This Row],[2024/25 From - Spending review Topic 1]]+Dataset[[#This Row],[2024/25 From - Spending review Topic 2]]+Dataset[[#This Row],[2024/25 From - Spending review Topic 3]]+Dataset[[#This Row],[2024/25 From - Spending review Topic 4]]+Dataset[[#This Row],[2024/25 From - Other reallocations]]","v":0},{"$f":"Dataset[[#This Row],[2025/26 From - Spending review Topic 1]]+Dataset[[#This Row],[2025/26 From - Spending review Topic 2]]+Dataset[[#This Row],[2025/26 From - Spending review Topic 3]]+Dataset[[#This Row],[2025/26 From - Spending review Topic 4]]+Dataset[[#This Row],[2025/26 From - Other reallocations]]","v":0},{"$f":"Dataset[[#This Row],[2026/27 From - Spending review Topic 1]]+Dataset[[#This Row],[2026/27 From - Spending review Topic 2]]+Dataset[[#This Row],[2026/27 From - Spending review Topic 3]]+Dataset[[#This Row],[2026/27 From - Spending review Topic 4]]+Dataset[[#This Row],[2026/27 From - Other reallocations]]","v":0},{"$f":"Dataset[[#This Row],[2024/25 To - Spending review Topic 1]]+Dataset[[#This Row],[2024/25 To - Spending review Topic 2]]+Dataset[[#This Row],[2024/25 To - Spending review Topic 3]]+Dataset[[#This Row],[2024/25 To - Spending review Topic 4]]+Dataset[[#This Row],[2024/25 To - Other reallocations]]","v":0},{"$f":"Dataset[[#This Row],[2025/26 To - Spending review Topic 1]]+Dataset[[#This Row],[2025/26 To - Spending review Topic 2]]+Dataset[[#This Row],[2025/26 To - Spending review Topic 3]]+Dataset[[#This Row],[2025/26 To - Spending review Topic 4]]+Dataset[[#This Row],[2025/26 To - Other reallocations]]","v":0},{"$f":"Dataset[[#This Row],[2026/27 To - Spending review Topic 1]]+Dataset[[#This Row],[2026/27 To - Spending review Topic 2]]+Dataset[[#This Row],[2026/27 To - Spending review Topic 3]]+Dataset[[#This Row],[2026/27 To - Spending review Topic 4]]+Dataset[[#This Row],[2026/27 To - Other reallocations]]","v":0},{"$f":"Dataset[[#This Row],[2024/25 Reduction]]+Dataset[[#This Row],[2024/25 From - Total]]","v":0},{"$f":"Dataset[[#This Row],[2025/26 Reduction]]+Dataset[[#This Row],[2025/26 From - Total]]","v":0},{"$f":"Dataset[[#This Row],[2026/27 Reduction]]+Dataset[[#This Row],[2026/27 From - Total]]","v":0},{"$f":"Dataset[[#This Row],[2023/24 Reduction]]","v":0},{"$f":"SUM(Dataset[[#This Row],[2024/25 Reduction]],Dataset[[#This Row],[2024/25 From - Total]],Dataset[[#This Row],[2024/25 To - Total]])","v":0},{"$f":"SUM(Dataset[[#This Row],[2025/26 Reduction]],Dataset[[#This Row],[2025/26 From - Total]],Dataset[[#This Row],[2025/26 To - Total]])","v":0},{"$f":"SUM(Dataset[[#This Row],[2026/27 Reduction]],Dataset[[#This Row],[2026/27 From - Total]],Dataset[[#This Row],[2026/27 To - Total]])","v":0},{"$f":"Dataset[[#This Row],[2023/24 Baseline]]+Dataset[[#This Row],[2023/24 Total change]]","v":0},{"$f":"Dataset[[#This Row],[2024/25 Baseline]]+Dataset[[#This Row],[2024/25 Total change]]","v":0},{"$f":"Dataset[[#This Row],[2025/26 Baseline]]+Dataset[[#This Row],[2025/26 Total change]]","v":0},{"$f":"Dataset[[#This Row],[2026/27 Baseline]]+Dataset[[#This Row],[2026/27 Total change]]","v":0}]
["NAT|Non-transfer item","26|Salaries and wages","2024_25","MTEF2024",26,1,4,44119,232,"26","01","04","044119","000232","26|01|04","01","01","01","01","01","01|01|01|01|01","National","Military Veterans","Administration","Internal Audit","Non-transfer item","Current","Current payments","Compensation of employees","Salaries and wages","Salaries and wages","Peace and security","Defence and state security","NAT",2631,2904,3029,1691,2881,2881,0,1754,1832,1913,2001,null,null,null,null,null,null,null,null,null,null,null,null,null,null,null,null,null,null,null,null,null,null,null,null,null,null,null,null,null,null,null,null,null,null,{"$f":"Dataset[[#This Row],[2024/25 From - Spending review Topic 1]]+Dataset[[#This Row],[2024/25 From - Spending review Topic 2]]+Dataset[[#This Row],[2024/25 From - Spending review Topic 3]]+Dataset[[#This Row],[2024/25 From - Spending review Topic 4]]+Dataset[[#This Row],[2024/25 From - Other reallocations]]","v":0},{"$f":"Dataset[[#This Row],[2025/26 From - Spending review Topic 1]]+Dataset[[#This Row],[2025/26 From - Spending review Topic 2]]+Dataset[[#This Row],[2025/26 From - Spending review Topic 3]]+Dataset[[#This Row],[2025/26 From - Spending review Topic 4]]+Dataset[[#This Row],[2025/26 From - Other reallocations]]","v":0},{"$f":"Dataset[[#This Row],[2026/27 From - Spending review Topic 1]]+Dataset[[#This Row],[2026/27 From - Spending review Topic 2]]+Dataset[[#This Row],[2026/27 From - Spending review Topic 3]]+Dataset[[#This Row],[2026/27 From - Spending review Topic 4]]+Dataset[[#This Row],[2026/27 From - Other reallocations]]","v":0},{"$f":"Dataset[[#This Row],[2024/25 To - Spending review Topic 1]]+Dataset[[#This Row],[2024/25 To - Spending review Topic 2]]+Dataset[[#This Row],[2024/25 To - Spending review Topic 3]]+Dataset[[#This Row],[2024/25 To - Spending review Topic 4]]+Dataset[[#This Row],[2024/25 To - Other reallocations]]","v":0},{"$f":"Dataset[[#This Row],[2025/26 To - Spending review Topic 1]]+Dataset[[#This Row],[2025/26 To - Spending review Topic 2]]+Dataset[[#This Row],[2025/26 To - Spending review Topic 3]]+Dataset[[#This Row],[2025/26 To - Spending review Topic 4]]+Dataset[[#This Row],[2025/26 To - Other reallocations]]","v":0},{"$f":"Dataset[[#This Row],[2026/27 To - Spending review Topic 1]]+Dataset[[#This Row],[2026/27 To - Spending review Topic 2]]+Dataset[[#This Row],[2026/27 To - Spending review Topic 3]]+Dataset[[#This Row],[2026/27 To - Spending review Topic 4]]+Dataset[[#This Row],[2026/27 To - Other reallocations]]","v":0},{"$f":"Dataset[[#This Row],[2024/25 Reduction]]+Dataset[[#This Row],[2024/25 From - Total]]","v":0},{"$f":"Dataset[[#This Row],[2025/26 Reduction]]+Dataset[[#This Row],[2025/26 From - Total]]","v":0},{"$f":"Dataset[[#This Row],[2026/27 Reduction]]+Dataset[[#This Row],[2026/27 From - Total]]","v":0},{"$f":"Dataset[[#This Row],[2023/24 Reduction]]","v":0},{"$f":"SUM(Dataset[[#This Row],[2024/25 Reduction]],Dataset[[#This Row],[2024/25 From - Total]],Dataset[[#This Row],[2024/25 To - Total]])","v":0},{"$f":"SUM(Dataset[[#This Row],[2025/26 Reduction]],Dataset[[#This Row],[2025/26 From - Total]],Dataset[[#This Row],[2025/26 To - Total]])","v":0},{"$f":"SUM(Dataset[[#This Row],[2026/27 Reduction]],Dataset[[#This Row],[2026/27 From - Total]],Dataset[[#This Row],[2026/27 To - Total]])","v":0},{"$f":"Dataset[[#This Row],[2023/24 Baseline]]+Dataset[[#This Row],[2023/24 Total change]]","v":1754},{"$f":"Dataset[[#This Row],[2024/25 Baseline]]+Dataset[[#This Row],[2024/25 Total change]]","v":1832},{"$f":"Dataset[[#This Row],[2025/26 Baseline]]+Dataset[[#This Row],[2025/26 Total change]]","v":1913},{"$f":"Dataset[[#This Row],[2026/27 Baseline]]+Dataset[[#This Row],[2026/27 Total change]]","v":2001}]
["NAT|Non-transfer item","26|Social contributions","2024_25","MTEF2024",26,1,4,44120,233,"26","01","04","044120","000233","26|01|04","01","01","01","02","02","01|01|01|02|02","National","Military Veterans","Administration","Internal Audit","Non-transfer item","Current","Current payments","Compensation of employees","Social contributions","Social contributions","Peace and security","Defence and state security","NAT",286,331,351,216,313,313,0,224,234,244,255,null,null,null,null,null,null,null,null,null,null,null,null,null,null,null,null,null,null,null,null,null,null,null,null,null,null,null,null,null,null,null,null,null,null,{"$f":"Dataset[[#This Row],[2024/25 From - Spending review Topic 1]]+Dataset[[#This Row],[2024/25 From - Spending review Topic 2]]+Dataset[[#This Row],[2024/25 From - Spending review Topic 3]]+Dataset[[#This Row],[2024/25 From - Spending review Topic 4]]+Dataset[[#This Row],[2024/25 From - Other reallocations]]","v":0},{"$f":"Dataset[[#This Row],[2025/26 From - Spending review Topic 1]]+Dataset[[#This Row],[2025/26 From - Spending review Topic 2]]+Dataset[[#This Row],[2025/26 From - Spending review Topic 3]]+Dataset[[#This Row],[2025/26 From - Spending review Topic 4]]+Dataset[[#This Row],[2025/26 From - Other reallocations]]","v":0},{"$f":"Dataset[[#This Row],[2026/27 From - Spending review Topic 1]]+Dataset[[#This Row],[2026/27 From - Spending review Topic 2]]+Dataset[[#This Row],[2026/27 From - Spending review Topic 3]]+Dataset[[#This Row],[2026/27 From - Spending review Topic 4]]+Dataset[[#This Row],[2026/27 From - Other reallocations]]","v":0},{"$f":"Dataset[[#This Row],[2024/25 To - Spending review Topic 1]]+Dataset[[#This Row],[2024/25 To - Spending review Topic 2]]+Dataset[[#This Row],[2024/25 To - Spending review Topic 3]]+Dataset[[#This Row],[2024/25 To - Spending review Topic 4]]+Dataset[[#This Row],[2024/25 To - Other reallocations]]","v":0},{"$f":"Dataset[[#This Row],[2025/26 To - Spending review Topic 1]]+Dataset[[#This Row],[2025/26 To - Spending review Topic 2]]+Dataset[[#This Row],[2025/26 To - Spending review Topic 3]]+Dataset[[#This Row],[2025/26 To - Spending review Topic 4]]+Dataset[[#This Row],[2025/26 To - Other reallocations]]","v":0},{"$f":"Dataset[[#This Row],[2026/27 To - Spending review Topic 1]]+Dataset[[#This Row],[2026/27 To - Spending review Topic 2]]+Dataset[[#This Row],[2026/27 To - Spending review Topic 3]]+Dataset[[#This Row],[2026/27 To - Spending review Topic 4]]+Dataset[[#This Row],[2026/27 To - Other reallocations]]","v":0},{"$f":"Dataset[[#This Row],[2024/25 Reduction]]+Dataset[[#This Row],[2024/25 From - Total]]","v":0},{"$f":"Dataset[[#This Row],[2025/26 Reduction]]+Dataset[[#This Row],[2025/26 From - Total]]","v":0},{"$f":"Dataset[[#This Row],[2026/27 Reduction]]+Dataset[[#This Row],[2026/27 From - Total]]","v":0},{"$f":"Dataset[[#This Row],[2023/24 Reduction]]","v":0},{"$f":"SUM(Dataset[[#This Row],[2024/25 Reduction]],Dataset[[#This Row],[2024/25 From - Total]],Dataset[[#This Row],[2024/25 To - Total]])","v":0},{"$f":"SUM(Dataset[[#This Row],[2025/26 Reduction]],Dataset[[#This Row],[2025/26 From - Total]],Dataset[[#This Row],[2025/26 To - Total]])","v":0},{"$f":"SUM(Dataset[[#This Row],[2026/27 Reduction]],Dataset[[#This Row],[2026/27 From - Total]],Dataset[[#This Row],[2026/27 To - Total]])","v":0},{"$f":"Dataset[[#This Row],[2023/24 Baseline]]+Dataset[[#This Row],[2023/24 Total change]]","v":224},{"$f":"Dataset[[#This Row],[2024/25 Baseline]]+Dataset[[#This Row],[2024/25 Total change]]","v":234},{"$f":"Dataset[[#This Row],[2025/26 Baseline]]+Dataset[[#This Row],[2025/26 Total change]]","v":244},{"$f":"Dataset[[#This Row],[2026/27 Baseline]]+Dataset[[#This Row],[2026/27 Total change]]","v":255}]
["NAT|Non-transfer item","26|Administrative fees","2024_25","MTEF2024",26,1,4,44121,234,"26","01","04","044121","000234","26|01|04","01","01","02","03","03","01|01|02|03|03","National","Military Veterans","Administration","Internal Audit","Non-transfer item","Current","Current payments","Goods and services","Administrative fees","Administrative fees","Peace and security","Defence and state security","NAT",20,4,0,26,26,26,0,106,106,107,112,null,null,null,null,null,null,null,null,null,null,null,null,null,null,null,null,null,null,null,null,null,null,null,null,null,null,null,null,null,null,null,null,null,null,{"$f":"Dataset[[#This Row],[2024/25 From - Spending review Topic 1]]+Dataset[[#This Row],[2024/25 From - Spending review Topic 2]]+Dataset[[#This Row],[2024/25 From - Spending review Topic 3]]+Dataset[[#This Row],[2024/25 From - Spending review Topic 4]]+Dataset[[#This Row],[2024/25 From - Other reallocations]]","v":0},{"$f":"Dataset[[#This Row],[2025/26 From - Spending review Topic 1]]+Dataset[[#This Row],[2025/26 From - Spending review Topic 2]]+Dataset[[#This Row],[2025/26 From - Spending review Topic 3]]+Dataset[[#This Row],[2025/26 From - Spending review Topic 4]]+Dataset[[#This Row],[2025/26 From - Other reallocations]]","v":0},{"$f":"Dataset[[#This Row],[2026/27 From - Spending review Topic 1]]+Dataset[[#This Row],[2026/27 From - Spending review Topic 2]]+Dataset[[#This Row],[2026/27 From - Spending review Topic 3]]+Dataset[[#This Row],[2026/27 From - Spending review Topic 4]]+Dataset[[#This Row],[2026/27 From - Other reallocations]]","v":0},{"$f":"Dataset[[#This Row],[2024/25 To - Spending review Topic 1]]+Dataset[[#This Row],[2024/25 To - Spending review Topic 2]]+Dataset[[#This Row],[2024/25 To - Spending review Topic 3]]+Dataset[[#This Row],[2024/25 To - Spending review Topic 4]]+Dataset[[#This Row],[2024/25 To - Other reallocations]]","v":0},{"$f":"Dataset[[#This Row],[2025/26 To - Spending review Topic 1]]+Dataset[[#This Row],[2025/26 To - Spending review Topic 2]]+Dataset[[#This Row],[2025/26 To - Spending review Topic 3]]+Dataset[[#This Row],[2025/26 To - Spending review Topic 4]]+Dataset[[#This Row],[2025/26 To - Other reallocations]]","v":0},{"$f":"Dataset[[#This Row],[2026/27 To - Spending review Topic 1]]+Dataset[[#This Row],[2026/27 To - Spending review Topic 2]]+Dataset[[#This Row],[2026/27 To - Spending review Topic 3]]+Dataset[[#This Row],[2026/27 To - Spending review Topic 4]]+Dataset[[#This Row],[2026/27 To - Other reallocations]]","v":0},{"$f":"Dataset[[#This Row],[2024/25 Reduction]]+Dataset[[#This Row],[2024/25 From - Total]]","v":0},{"$f":"Dataset[[#This Row],[2025/26 Reduction]]+Dataset[[#This Row],[2025/26 From - Total]]","v":0},{"$f":"Dataset[[#This Row],[2026/27 Reduction]]+Dataset[[#This Row],[2026/27 From - Total]]","v":0},{"$f":"Dataset[[#This Row],[2023/24 Reduction]]","v":0},{"$f":"SUM(Dataset[[#This Row],[2024/25 Reduction]],Dataset[[#This Row],[2024/25 From - Total]],Dataset[[#This Row],[2024/25 To - Total]])","v":0},{"$f":"SUM(Dataset[[#This Row],[2025/26 Reduction]],Dataset[[#This Row],[2025/26 From - Total]],Dataset[[#This Row],[2025/26 To - Total]])","v":0},{"$f":"SUM(Dataset[[#This Row],[2026/27 Reduction]],Dataset[[#This Row],[2026/27 From - Total]],Dataset[[#This Row],[2026/27 To - Total]])","v":0},{"$f":"Dataset[[#This Row],[2023/24 Baseline]]+Dataset[[#This Row],[2023/24 Total change]]","v":106},{"$f":"Dataset[[#This Row],[2024/25 Baseline]]+Dataset[[#This Row],[2024/25 Total change]]","v":106},{"$f":"Dataset[[#This Row],[2025/26 Baseline]]+Dataset[[#This Row],[2025/26 Total change]]","v":107},{"$f":"Dataset[[#This Row],[2026/27 Baseline]]+Dataset[[#This Row],[2026/27 Total change]]","v":112}]
["NAT|Non-transfer item","26|Advertising","2024_25","MTEF2024",26,1,4,44122,235,"26","01","04","044122","000235","26|01|04","01","01","02","04","04","01|01|02|04|04","National","Military Veterans","Administration","Internal Audit","Non-transfer item","Current","Current payments","Goods and services","Advertising","Advertising","Peace and security","Defence and state security","NAT",0,0,0,0,0,0,0,0,0,0,0,null,null,null,null,null,null,null,null,null,null,null,null,null,null,null,null,null,null,null,null,null,null,null,null,null,null,null,null,null,null,null,null,null,null,{"$f":"Dataset[[#This Row],[2024/25 From - Spending review Topic 1]]+Dataset[[#This Row],[2024/25 From - Spending review Topic 2]]+Dataset[[#This Row],[2024/25 From - Spending review Topic 3]]+Dataset[[#This Row],[2024/25 From - Spending review Topic 4]]+Dataset[[#This Row],[2024/25 From - Other reallocations]]","v":0},{"$f":"Dataset[[#This Row],[2025/26 From - Spending review Topic 1]]+Dataset[[#This Row],[2025/26 From - Spending review Topic 2]]+Dataset[[#This Row],[2025/26 From - Spending review Topic 3]]+Dataset[[#This Row],[2025/26 From - Spending review Topic 4]]+Dataset[[#This Row],[2025/26 From - Other reallocations]]","v":0},{"$f":"Dataset[[#This Row],[2026/27 From - Spending review Topic 1]]+Dataset[[#This Row],[2026/27 From - Spending review Topic 2]]+Dataset[[#This Row],[2026/27 From - Spending review Topic 3]]+Dataset[[#This Row],[2026/27 From - Spending review Topic 4]]+Dataset[[#This Row],[2026/27 From - Other reallocations]]","v":0},{"$f":"Dataset[[#This Row],[2024/25 To - Spending review Topic 1]]+Dataset[[#This Row],[2024/25 To - Spending review Topic 2]]+Dataset[[#This Row],[2024/25 To - Spending review Topic 3]]+Dataset[[#This Row],[2024/25 To - Spending review Topic 4]]+Dataset[[#This Row],[2024/25 To - Other reallocations]]","v":0},{"$f":"Dataset[[#This Row],[2025/26 To - Spending review Topic 1]]+Dataset[[#This Row],[2025/26 To - Spending review Topic 2]]+Dataset[[#This Row],[2025/26 To - Spending review Topic 3]]+Dataset[[#This Row],[2025/26 To - Spending review Topic 4]]+Dataset[[#This Row],[2025/26 To - Other reallocations]]","v":0},{"$f":"Dataset[[#This Row],[2026/27 To - Spending review Topic 1]]+Dataset[[#This Row],[2026/27 To - Spending review Topic 2]]+Dataset[[#This Row],[2026/27 To - Spending review Topic 3]]+Dataset[[#This Row],[2026/27 To - Spending review Topic 4]]+Dataset[[#This Row],[2026/27 To - Other reallocations]]","v":0},{"$f":"Dataset[[#This Row],[2024/25 Reduction]]+Dataset[[#This Row],[2024/25 From - Total]]","v":0},{"$f":"Dataset[[#This Row],[2025/26 Reduction]]+Dataset[[#This Row],[2025/26 From - Total]]","v":0},{"$f":"Dataset[[#This Row],[2026/27 Reduction]]+Dataset[[#This Row],[2026/27 From - Total]]","v":0},{"$f":"Dataset[[#This Row],[2023/24 Reduction]]","v":0},{"$f":"SUM(Dataset[[#This Row],[2024/25 Reduction]],Dataset[[#This Row],[2024/25 From - Total]],Dataset[[#This Row],[2024/25 To - Total]])","v":0},{"$f":"SUM(Dataset[[#This Row],[2025/26 Reduction]],Dataset[[#This Row],[2025/26 From - Total]],Dataset[[#This Row],[2025/26 To - Total]])","v":0},{"$f":"SUM(Dataset[[#This Row],[2026/27 Reduction]],Dataset[[#This Row],[2026/27 From - Total]],Dataset[[#This Row],[2026/27 To - Total]])","v":0},{"$f":"Dataset[[#This Row],[2023/24 Baseline]]+Dataset[[#This Row],[2023/24 Total change]]","v":0},{"$f":"Dataset[[#This Row],[2024/25 Baseline]]+Dataset[[#This Row],[2024/25 Total change]]","v":0},{"$f":"Dataset[[#This Row],[2025/26 Baseline]]+Dataset[[#This Row],[2025/26 Total change]]","v":0},{"$f":"Dataset[[#This Row],[2026/27 Baseline]]+Dataset[[#This Row],[2026/27 Total change]]","v":0}]
["NAT|Non-transfer item","26|Minor assets","2024_25","MTEF2024",26,1,4,44123,236,"26","01","04","044123","000236","26|01|04","01","01","02","05","05","01|01|02|05|05","National","Military Veterans","Administration","Internal Audit","Non-transfer item","Current","Current payments","Goods and services","Minor assets","Minor assets","Peace and security","Defence and state security","NAT",18,0,0,95,8,8,0,46,57,54,56,null,null,null,null,null,null,null,null,null,null,null,null,null,null,null,null,null,null,null,null,null,null,null,null,null,null,null,null,null,null,null,null,null,null,{"$f":"Dataset[[#This Row],[2024/25 From - Spending review Topic 1]]+Dataset[[#This Row],[2024/25 From - Spending review Topic 2]]+Dataset[[#This Row],[2024/25 From - Spending review Topic 3]]+Dataset[[#This Row],[2024/25 From - Spending review Topic 4]]+Dataset[[#This Row],[2024/25 From - Other reallocations]]","v":0},{"$f":"Dataset[[#This Row],[2025/26 From - Spending review Topic 1]]+Dataset[[#This Row],[2025/26 From - Spending review Topic 2]]+Dataset[[#This Row],[2025/26 From - Spending review Topic 3]]+Dataset[[#This Row],[2025/26 From - Spending review Topic 4]]+Dataset[[#This Row],[2025/26 From - Other reallocations]]","v":0},{"$f":"Dataset[[#This Row],[2026/27 From - Spending review Topic 1]]+Dataset[[#This Row],[2026/27 From - Spending review Topic 2]]+Dataset[[#This Row],[2026/27 From - Spending review Topic 3]]+Dataset[[#This Row],[2026/27 From - Spending review Topic 4]]+Dataset[[#This Row],[2026/27 From - Other reallocations]]","v":0},{"$f":"Dataset[[#This Row],[2024/25 To - Spending review Topic 1]]+Dataset[[#This Row],[2024/25 To - Spending review Topic 2]]+Dataset[[#This Row],[2024/25 To - Spending review Topic 3]]+Dataset[[#This Row],[2024/25 To - Spending review Topic 4]]+Dataset[[#This Row],[2024/25 To - Other reallocations]]","v":0},{"$f":"Dataset[[#This Row],[2025/26 To - Spending review Topic 1]]+Dataset[[#This Row],[2025/26 To - Spending review Topic 2]]+Dataset[[#This Row],[2025/26 To - Spending review Topic 3]]+Dataset[[#This Row],[2025/26 To - Spending review Topic 4]]+Dataset[[#This Row],[2025/26 To - Other reallocations]]","v":0},{"$f":"Dataset[[#This Row],[2026/27 To - Spending review Topic 1]]+Dataset[[#This Row],[2026/27 To - Spending review Topic 2]]+Dataset[[#This Row],[2026/27 To - Spending review Topic 3]]+Dataset[[#This Row],[2026/27 To - Spending review Topic 4]]+Dataset[[#This Row],[2026/27 To - Other reallocations]]","v":0},{"$f":"Dataset[[#This Row],[2024/25 Reduction]]+Dataset[[#This Row],[2024/25 From - Total]]","v":0},{"$f":"Dataset[[#This Row],[2025/26 Reduction]]+Dataset[[#This Row],[2025/26 From - Total]]","v":0},{"$f":"Dataset[[#This Row],[2026/27 Reduction]]+Dataset[[#This Row],[2026/27 From - Total]]","v":0},{"$f":"Dataset[[#This Row],[2023/24 Reduction]]","v":0},{"$f":"SUM(Dataset[[#This Row],[2024/25 Reduction]],Dataset[[#This Row],[2024/25 From - Total]],Dataset[[#This Row],[2024/25 To - Total]])","v":0},{"$f":"SUM(Dataset[[#This Row],[2025/26 Reduction]],Dataset[[#This Row],[2025/26 From - Total]],Dataset[[#This Row],[2025/26 To - Total]])","v":0},{"$f":"SUM(Dataset[[#This Row],[2026/27 Reduction]],Dataset[[#This Row],[2026/27 From - Total]],Dataset[[#This Row],[2026/27 To - Total]])","v":0},{"$f":"Dataset[[#This Row],[2023/24 Baseline]]+Dataset[[#This Row],[2023/24 Total change]]","v":46},{"$f":"Dataset[[#This Row],[2024/25 Baseline]]+Dataset[[#This Row],[2024/25 Total change]]","v":57},{"$f":"Dataset[[#This Row],[2025/26 Baseline]]+Dataset[[#This Row],[2025/26 Total change]]","v":54},{"$f":"Dataset[[#This Row],[2026/27 Baseline]]+Dataset[[#This Row],[2026/27 Total change]]","v":56}]
["NAT|Non-transfer item","26|Audit costs: External","2024_25","MTEF2024",26,1,4,44124,237,"26","01","04","044124","000237","26|01|04","01","01","02","06","06","01|01|02|06|06","National","Military Veterans","Administration","Internal Audit","Non-transfer item","Current","Current payments","Goods and services","Audit costs: External","Audit costs: External","Peace and security","Defence and state security","NAT",6823,5460,7206,6324,7396,7396,0,6353,6639,6936,7254,null,null,null,null,null,null,null,null,null,null,null,null,null,null,null,null,null,null,null,null,null,null,null,null,null,null,null,null,null,null,null,null,null,null,{"$f":"Dataset[[#This Row],[2024/25 From - Spending review Topic 1]]+Dataset[[#This Row],[2024/25 From - Spending review Topic 2]]+Dataset[[#This Row],[2024/25 From - Spending review Topic 3]]+Dataset[[#This Row],[2024/25 From - Spending review Topic 4]]+Dataset[[#This Row],[2024/25 From - Other reallocations]]","v":0},{"$f":"Dataset[[#This Row],[2025/26 From - Spending review Topic 1]]+Dataset[[#This Row],[2025/26 From - Spending review Topic 2]]+Dataset[[#This Row],[2025/26 From - Spending review Topic 3]]+Dataset[[#This Row],[2025/26 From - Spending review Topic 4]]+Dataset[[#This Row],[2025/26 From - Other reallocations]]","v":0},{"$f":"Dataset[[#This Row],[2026/27 From - Spending review Topic 1]]+Dataset[[#This Row],[2026/27 From - Spending review Topic 2]]+Dataset[[#This Row],[2026/27 From - Spending review Topic 3]]+Dataset[[#This Row],[2026/27 From - Spending review Topic 4]]+Dataset[[#This Row],[2026/27 From - Other reallocations]]","v":0},{"$f":"Dataset[[#This Row],[2024/25 To - Spending review Topic 1]]+Dataset[[#This Row],[2024/25 To - Spending review Topic 2]]+Dataset[[#This Row],[2024/25 To - Spending review Topic 3]]+Dataset[[#This Row],[2024/25 To - Spending review Topic 4]]+Dataset[[#This Row],[2024/25 To - Other reallocations]]","v":0},{"$f":"Dataset[[#This Row],[2025/26 To - Spending review Topic 1]]+Dataset[[#This Row],[2025/26 To - Spending review Topic 2]]+Dataset[[#This Row],[2025/26 To - Spending review Topic 3]]+Dataset[[#This Row],[2025/26 To - Spending review Topic 4]]+Dataset[[#This Row],[2025/26 To - Other reallocations]]","v":0},{"$f":"Dataset[[#This Row],[2026/27 To - Spending review Topic 1]]+Dataset[[#This Row],[2026/27 To - Spending review Topic 2]]+Dataset[[#This Row],[2026/27 To - Spending review Topic 3]]+Dataset[[#This Row],[2026/27 To - Spending review Topic 4]]+Dataset[[#This Row],[2026/27 To - Other reallocations]]","v":0},{"$f":"Dataset[[#This Row],[2024/25 Reduction]]+Dataset[[#This Row],[2024/25 From - Total]]","v":0},{"$f":"Dataset[[#This Row],[2025/26 Reduction]]+Dataset[[#This Row],[2025/26 From - Total]]","v":0},{"$f":"Dataset[[#This Row],[2026/27 Reduction]]+Dataset[[#This Row],[2026/27 From - Total]]","v":0},{"$f":"Dataset[[#This Row],[2023/24 Reduction]]","v":0},{"$f":"SUM(Dataset[[#This Row],[2024/25 Reduction]],Dataset[[#This Row],[2024/25 From - Total]],Dataset[[#This Row],[2024/25 To - Total]])","v":0},{"$f":"SUM(Dataset[[#This Row],[2025/26 Reduction]],Dataset[[#This Row],[2025/26 From - Total]],Dataset[[#This Row],[2025/26 To - Total]])","v":0},{"$f":"SUM(Dataset[[#This Row],[2026/27 Reduction]],Dataset[[#This Row],[2026/27 From - Total]],Dataset[[#This Row],[2026/27 To - Total]])","v":0},{"$f":"Dataset[[#This Row],[2023/24 Baseline]]+Dataset[[#This Row],[2023/24 Total change]]","v":6353},{"$f":"Dataset[[#This Row],[2024/25 Baseline]]+Dataset[[#This Row],[2024/25 Total change]]","v":6639},{"$f":"Dataset[[#This Row],[2025/26 Baseline]]+Dataset[[#This Row],[2025/26 Total change]]","v":6936},{"$f":"Dataset[[#This Row],[2026/27 Baseline]]+Dataset[[#This Row],[2026/27 Total change]]","v":7254}]
["NAT|Non-transfer item","26|Bursaries: Employees","2024_25","MTEF2024",26,1,4,44125,238,"26","01","04","044125","000238","26|01|04","01","01","02","07","07","01|01|02|07|07","National","Military Veterans","Administration","Internal Audit","Non-transfer item","Current","Current payments","Goods and services","Bursaries: Employees","Bursaries: Employees","Peace and security","Defence and state security","NAT",0,0,0,0,0,0,0,0,0,0,0,null,null,null,null,null,null,null,null,null,null,null,null,null,null,null,null,null,null,null,null,null,null,null,null,null,null,null,null,null,null,null,null,null,null,{"$f":"Dataset[[#This Row],[2024/25 From - Spending review Topic 1]]+Dataset[[#This Row],[2024/25 From - Spending review Topic 2]]+Dataset[[#This Row],[2024/25 From - Spending review Topic 3]]+Dataset[[#This Row],[2024/25 From - Spending review Topic 4]]+Dataset[[#This Row],[2024/25 From - Other reallocations]]","v":0},{"$f":"Dataset[[#This Row],[2025/26 From - Spending review Topic 1]]+Dataset[[#This Row],[2025/26 From - Spending review Topic 2]]+Dataset[[#This Row],[2025/26 From - Spending review Topic 3]]+Dataset[[#This Row],[2025/26 From - Spending review Topic 4]]+Dataset[[#This Row],[2025/26 From - Other reallocations]]","v":0},{"$f":"Dataset[[#This Row],[2026/27 From - Spending review Topic 1]]+Dataset[[#This Row],[2026/27 From - Spending review Topic 2]]+Dataset[[#This Row],[2026/27 From - Spending review Topic 3]]+Dataset[[#This Row],[2026/27 From - Spending review Topic 4]]+Dataset[[#This Row],[2026/27 From - Other reallocations]]","v":0},{"$f":"Dataset[[#This Row],[2024/25 To - Spending review Topic 1]]+Dataset[[#This Row],[2024/25 To - Spending review Topic 2]]+Dataset[[#This Row],[2024/25 To - Spending review Topic 3]]+Dataset[[#This Row],[2024/25 To - Spending review Topic 4]]+Dataset[[#This Row],[2024/25 To - Other reallocations]]","v":0},{"$f":"Dataset[[#This Row],[2025/26 To - Spending review Topic 1]]+Dataset[[#This Row],[2025/26 To - Spending review Topic 2]]+Dataset[[#This Row],[2025/26 To - Spending review Topic 3]]+Dataset[[#This Row],[2025/26 To - Spending review Topic 4]]+Dataset[[#This Row],[2025/26 To - Other reallocations]]","v":0},{"$f":"Dataset[[#This Row],[2026/27 To - Spending review Topic 1]]+Dataset[[#This Row],[2026/27 To - Spending review Topic 2]]+Dataset[[#This Row],[2026/27 To - Spending review Topic 3]]+Dataset[[#This Row],[2026/27 To - Spending review Topic 4]]+Dataset[[#This Row],[2026/27 To - Other reallocations]]","v":0},{"$f":"Dataset[[#This Row],[2024/25 Reduction]]+Dataset[[#This Row],[2024/25 From - Total]]","v":0},{"$f":"Dataset[[#This Row],[2025/26 Reduction]]+Dataset[[#This Row],[2025/26 From - Total]]","v":0},{"$f":"Dataset[[#This Row],[2026/27 Reduction]]+Dataset[[#This Row],[2026/27 From - Total]]","v":0},{"$f":"Dataset[[#This Row],[2023/24 Reduction]]","v":0},{"$f":"SUM(Dataset[[#This Row],[2024/25 Reduction]],Dataset[[#This Row],[2024/25 From - Total]],Dataset[[#This Row],[2024/25 To - Total]])","v":0},{"$f":"SUM(Dataset[[#This Row],[2025/26 Reduction]],Dataset[[#This Row],[2025/26 From - Total]],Dataset[[#This Row],[2025/26 To - Total]])","v":0},{"$f":"SUM(Dataset[[#This Row],[2026/27 Reduction]],Dataset[[#This Row],[2026/27 From - Total]],Dataset[[#This Row],[2026/27 To - Total]])","v":0},{"$f":"Dataset[[#This Row],[2023/24 Baseline]]+Dataset[[#This Row],[2023/24 Total change]]","v":0},{"$f":"Dataset[[#This Row],[2024/25 Baseline]]+Dataset[[#This Row],[2024/25 Total change]]","v":0},{"$f":"Dataset[[#This Row],[2025/26 Baseline]]+Dataset[[#This Row],[2025/26 Total change]]","v":0},{"$f":"Dataset[[#This Row],[2026/27 Baseline]]+Dataset[[#This Row],[2026/27 Total change]]","v":0}]
["NAT|Non-transfer item","26|Catering: Departmental activities","2024_25","MTEF2024",26,1,4,44126,239,"26","01","04","044126","000239","26|01|04","01","01","02","08","08","01|01|02|08|08","National","Military Veterans","Administration","Internal Audit","Non-transfer item","Current","Current payments","Goods and services","Catering: Departmental activities","Catering: Departmental activities","Peace and security","Defence and state security","NAT",18,6,0,133,0,0,0,34,40,46,48,null,null,null,null,null,null,null,null,null,null,null,null,null,null,null,null,null,null,null,null,null,null,null,null,null,null,null,null,null,null,null,null,null,null,{"$f":"Dataset[[#This Row],[2024/25 From - Spending review Topic 1]]+Dataset[[#This Row],[2024/25 From - Spending review Topic 2]]+Dataset[[#This Row],[2024/25 From - Spending review Topic 3]]+Dataset[[#This Row],[2024/25 From - Spending review Topic 4]]+Dataset[[#This Row],[2024/25 From - Other reallocations]]","v":0},{"$f":"Dataset[[#This Row],[2025/26 From - Spending review Topic 1]]+Dataset[[#This Row],[2025/26 From - Spending review Topic 2]]+Dataset[[#This Row],[2025/26 From - Spending review Topic 3]]+Dataset[[#This Row],[2025/26 From - Spending review Topic 4]]+Dataset[[#This Row],[2025/26 From - Other reallocations]]","v":0},{"$f":"Dataset[[#This Row],[2026/27 From - Spending review Topic 1]]+Dataset[[#This Row],[2026/27 From - Spending review Topic 2]]+Dataset[[#This Row],[2026/27 From - Spending review Topic 3]]+Dataset[[#This Row],[2026/27 From - Spending review Topic 4]]+Dataset[[#This Row],[2026/27 From - Other reallocations]]","v":0},{"$f":"Dataset[[#This Row],[2024/25 To - Spending review Topic 1]]+Dataset[[#This Row],[2024/25 To - Spending review Topic 2]]+Dataset[[#This Row],[2024/25 To - Spending review Topic 3]]+Dataset[[#This Row],[2024/25 To - Spending review Topic 4]]+Dataset[[#This Row],[2024/25 To - Other reallocations]]","v":0},{"$f":"Dataset[[#This Row],[2025/26 To - Spending review Topic 1]]+Dataset[[#This Row],[2025/26 To - Spending review Topic 2]]+Dataset[[#This Row],[2025/26 To - Spending review Topic 3]]+Dataset[[#This Row],[2025/26 To - Spending review Topic 4]]+Dataset[[#This Row],[2025/26 To - Other reallocations]]","v":0},{"$f":"Dataset[[#This Row],[2026/27 To - Spending review Topic 1]]+Dataset[[#This Row],[2026/27 To - Spending review Topic 2]]+Dataset[[#This Row],[2026/27 To - Spending review Topic 3]]+Dataset[[#This Row],[2026/27 To - Spending review Topic 4]]+Dataset[[#This Row],[2026/27 To - Other reallocations]]","v":0},{"$f":"Dataset[[#This Row],[2024/25 Reduction]]+Dataset[[#This Row],[2024/25 From - Total]]","v":0},{"$f":"Dataset[[#This Row],[2025/26 Reduction]]+Dataset[[#This Row],[2025/26 From - Total]]","v":0},{"$f":"Dataset[[#This Row],[2026/27 Reduction]]+Dataset[[#This Row],[2026/27 From - Total]]","v":0},{"$f":"Dataset[[#This Row],[2023/24 Reduction]]","v":0},{"$f":"SUM(Dataset[[#This Row],[2024/25 Reduction]],Dataset[[#This Row],[2024/25 From - Total]],Dataset[[#This Row],[2024/25 To - Total]])","v":0},{"$f":"SUM(Dataset[[#This Row],[2025/26 Reduction]],Dataset[[#This Row],[2025/26 From - Total]],Dataset[[#This Row],[2025/26 To - Total]])","v":0},{"$f":"SUM(Dataset[[#This Row],[2026/27 Reduction]],Dataset[[#This Row],[2026/27 From - Total]],Dataset[[#This Row],[2026/27 To - Total]])","v":0},{"$f":"Dataset[[#This Row],[2023/24 Baseline]]+Dataset[[#This Row],[2023/24 Total change]]","v":34},{"$f":"Dataset[[#This Row],[2024/25 Baseline]]+Dataset[[#This Row],[2024/25 Total change]]","v":40},{"$f":"Dataset[[#This Row],[2025/26 Baseline]]+Dataset[[#This Row],[2025/26 Total change]]","v":46},{"$f":"Dataset[[#This Row],[2026/27 Baseline]]+Dataset[[#This Row],[2026/27 Total change]]","v":48}]
["NAT|Non-transfer item","26|Communication (G&S)","2024_25","MTEF2024",26,1,4,44127,240,"26","01","04","044127","000240","26|01|04","01","01","02","09","09","01|01|02|09|09","National","Military Veterans","Administration","Internal Audit","Non-transfer item","Current","Current payments","Goods and services","Communication (G&S)","Communication (G&S)","Peace and security","Defence and state security","NAT",0,0,0,0,0,0,0,0,0,0,0,null,null,null,null,null,null,null,null,null,null,null,null,null,null,null,null,null,null,null,null,null,null,null,null,null,null,null,null,null,null,null,null,null,null,{"$f":"Dataset[[#This Row],[2024/25 From - Spending review Topic 1]]+Dataset[[#This Row],[2024/25 From - Spending review Topic 2]]+Dataset[[#This Row],[2024/25 From - Spending review Topic 3]]+Dataset[[#This Row],[2024/25 From - Spending review Topic 4]]+Dataset[[#This Row],[2024/25 From - Other reallocations]]","v":0},{"$f":"Dataset[[#This Row],[2025/26 From - Spending review Topic 1]]+Dataset[[#This Row],[2025/26 From - Spending review Topic 2]]+Dataset[[#This Row],[2025/26 From - Spending review Topic 3]]+Dataset[[#This Row],[2025/26 From - Spending review Topic 4]]+Dataset[[#This Row],[2025/26 From - Other reallocations]]","v":0},{"$f":"Dataset[[#This Row],[2026/27 From - Spending review Topic 1]]+Dataset[[#This Row],[2026/27 From - Spending review Topic 2]]+Dataset[[#This Row],[2026/27 From - Spending review Topic 3]]+Dataset[[#This Row],[2026/27 From - Spending review Topic 4]]+Dataset[[#This Row],[2026/27 From - Other reallocations]]","v":0},{"$f":"Dataset[[#This Row],[2024/25 To - Spending review Topic 1]]+Dataset[[#This Row],[2024/25 To - Spending review Topic 2]]+Dataset[[#This Row],[2024/25 To - Spending review Topic 3]]+Dataset[[#This Row],[2024/25 To - Spending review Topic 4]]+Dataset[[#This Row],[2024/25 To - Other reallocations]]","v":0},{"$f":"Dataset[[#This Row],[2025/26 To - Spending review Topic 1]]+Dataset[[#This Row],[2025/26 To - Spending review Topic 2]]+Dataset[[#This Row],[2025/26 To - Spending review Topic 3]]+Dataset[[#This Row],[2025/26 To - Spending review Topic 4]]+Dataset[[#This Row],[2025/26 To - Other reallocations]]","v":0},{"$f":"Dataset[[#This Row],[2026/27 To - Spending review Topic 1]]+Dataset[[#This Row],[2026/27 To - Spending review Topic 2]]+Dataset[[#This Row],[2026/27 To - Spending review Topic 3]]+Dataset[[#This Row],[2026/27 To - Spending review Topic 4]]+Dataset[[#This Row],[2026/27 To - Other reallocations]]","v":0},{"$f":"Dataset[[#This Row],[2024/25 Reduction]]+Dataset[[#This Row],[2024/25 From - Total]]","v":0},{"$f":"Dataset[[#This Row],[2025/26 Reduction]]+Dataset[[#This Row],[2025/26 From - Total]]","v":0},{"$f":"Dataset[[#This Row],[2026/27 Reduction]]+Dataset[[#This Row],[2026/27 From - Total]]","v":0},{"$f":"Dataset[[#This Row],[2023/24 Reduction]]","v":0},{"$f":"SUM(Dataset[[#This Row],[2024/25 Reduction]],Dataset[[#This Row],[2024/25 From - Total]],Dataset[[#This Row],[2024/25 To - Total]])","v":0},{"$f":"SUM(Dataset[[#This Row],[2025/26 Reduction]],Dataset[[#This Row],[2025/26 From - Total]],Dataset[[#This Row],[2025/26 To - Total]])","v":0},{"$f":"SUM(Dataset[[#This Row],[2026/27 Reduction]],Dataset[[#This Row],[2026/27 From - Total]],Dataset[[#This Row],[2026/27 To - Total]])","v":0},{"$f":"Dataset[[#This Row],[2023/24 Baseline]]+Dataset[[#This Row],[2023/24 Total change]]","v":0},{"$f":"Dataset[[#This Row],[2024/25 Baseline]]+Dataset[[#This Row],[2024/25 Total change]]","v":0},{"$f":"Dataset[[#This Row],[2025/26 Baseline]]+Dataset[[#This Row],[2025/26 Total change]]","v":0},{"$f":"Dataset[[#This Row],[2026/27 Baseline]]+Dataset[[#This Row],[2026/27 Total change]]","v":0}]
["NAT|Non-transfer item","26|Computer services","2024_25","MTEF2024",26,1,4,44128,241,"26","01","04","044128","000241","26|01|04","01","01","02","10","10","01|01|02|10|10","National","Military Veterans","Administration","Internal Audit","Non-transfer item","Current","Current payments","Goods and services","Computer services","Computer services","Peace and security","Defence and state security","NAT",0,0,0,0,0,0,0,0,0,0,0,null,null,null,null,null,null,null,null,null,null,null,null,null,null,null,null,null,null,null,null,null,null,null,null,null,null,null,null,null,null,null,null,null,null,{"$f":"Dataset[[#This Row],[2024/25 From - Spending review Topic 1]]+Dataset[[#This Row],[2024/25 From - Spending review Topic 2]]+Dataset[[#This Row],[2024/25 From - Spending review Topic 3]]+Dataset[[#This Row],[2024/25 From - Spending review Topic 4]]+Dataset[[#This Row],[2024/25 From - Other reallocations]]","v":0},{"$f":"Dataset[[#This Row],[2025/26 From - Spending review Topic 1]]+Dataset[[#This Row],[2025/26 From - Spending review Topic 2]]+Dataset[[#This Row],[2025/26 From - Spending review Topic 3]]+Dataset[[#This Row],[2025/26 From - Spending review Topic 4]]+Dataset[[#This Row],[2025/26 From - Other reallocations]]","v":0},{"$f":"Dataset[[#This Row],[2026/27 From - Spending review Topic 1]]+Dataset[[#This Row],[2026/27 From - Spending review Topic 2]]+Dataset[[#This Row],[2026/27 From - Spending review Topic 3]]+Dataset[[#This Row],[2026/27 From - Spending review Topic 4]]+Dataset[[#This Row],[2026/27 From - Other reallocations]]","v":0},{"$f":"Dataset[[#This Row],[2024/25 To - Spending review Topic 1]]+Dataset[[#This Row],[2024/25 To - Spending review Topic 2]]+Dataset[[#This Row],[2024/25 To - Spending review Topic 3]]+Dataset[[#This Row],[2024/25 To - Spending review Topic 4]]+Dataset[[#This Row],[2024/25 To - Other reallocations]]","v":0},{"$f":"Dataset[[#This Row],[2025/26 To - Spending review Topic 1]]+Dataset[[#This Row],[2025/26 To - Spending review Topic 2]]+Dataset[[#This Row],[2025/26 To - Spending review Topic 3]]+Dataset[[#This Row],[2025/26 To - Spending review Topic 4]]+Dataset[[#This Row],[2025/26 To - Other reallocations]]","v":0},{"$f":"Dataset[[#This Row],[2026/27 To - Spending review Topic 1]]+Dataset[[#This Row],[2026/27 To - Spending review Topic 2]]+Dataset[[#This Row],[2026/27 To - Spending review Topic 3]]+Dataset[[#This Row],[2026/27 To - Spending review Topic 4]]+Dataset[[#This Row],[2026/27 To - Other reallocations]]","v":0},{"$f":"Dataset[[#This Row],[2024/25 Reduction]]+Dataset[[#This Row],[2024/25 From - Total]]","v":0},{"$f":"Dataset[[#This Row],[2025/26 Reduction]]+Dataset[[#This Row],[2025/26 From - Total]]","v":0},{"$f":"Dataset[[#This Row],[2026/27 Reduction]]+Dataset[[#This Row],[2026/27 From - Total]]","v":0},{"$f":"Dataset[[#This Row],[2023/24 Reduction]]","v":0},{"$f":"SUM(Dataset[[#This Row],[2024/25 Reduction]],Dataset[[#This Row],[2024/25 From - Total]],Dataset[[#This Row],[2024/25 To - Total]])","v":0},{"$f":"SUM(Dataset[[#This Row],[2025/26 Reduction]],Dataset[[#This Row],[2025/26 From - Total]],Dataset[[#This Row],[2025/26 To - Total]])","v":0},{"$f":"SUM(Dataset[[#This Row],[2026/27 Reduction]],Dataset[[#This Row],[2026/27 From - Total]],Dataset[[#This Row],[2026/27 To - Total]])","v":0},{"$f":"Dataset[[#This Row],[2023/24 Baseline]]+Dataset[[#This Row],[2023/24 Total change]]","v":0},{"$f":"Dataset[[#This Row],[2024/25 Baseline]]+Dataset[[#This Row],[2024/25 Total change]]","v":0},{"$f":"Dataset[[#This Row],[2025/26 Baseline]]+Dataset[[#This Row],[2025/26 Total change]]","v":0},{"$f":"Dataset[[#This Row],[2026/27 Baseline]]+Dataset[[#This Row],[2026/27 Total change]]","v":0}]
["NAT|Non-transfer item","26|Consultants: Business and advisory services","2024_25","MTEF2024",26,1,4,44129,242,"26","01","04","044129","000242","26|01|04","01","01","02","11","11","01|01|02|11|11","National","Military Veterans","Administration","Internal Audit","Non-transfer item","Current","Current payments","Goods and services","Consultants: Business and advisory services","Consultants: Business and advisory services","Peace and security","Defence and state security","NAT",338,531,254,2305,1505,1505,0,1266,1365,1460,1527,null,null,null,null,null,null,null,null,null,null,null,null,null,null,null,null,null,null,null,null,null,null,null,null,null,null,null,null,null,null,null,null,null,null,{"$f":"Dataset[[#This Row],[2024/25 From - Spending review Topic 1]]+Dataset[[#This Row],[2024/25 From - Spending review Topic 2]]+Dataset[[#This Row],[2024/25 From - Spending review Topic 3]]+Dataset[[#This Row],[2024/25 From - Spending review Topic 4]]+Dataset[[#This Row],[2024/25 From - Other reallocations]]","v":0},{"$f":"Dataset[[#This Row],[2025/26 From - Spending review Topic 1]]+Dataset[[#This Row],[2025/26 From - Spending review Topic 2]]+Dataset[[#This Row],[2025/26 From - Spending review Topic 3]]+Dataset[[#This Row],[2025/26 From - Spending review Topic 4]]+Dataset[[#This Row],[2025/26 From - Other reallocations]]","v":0},{"$f":"Dataset[[#This Row],[2026/27 From - Spending review Topic 1]]+Dataset[[#This Row],[2026/27 From - Spending review Topic 2]]+Dataset[[#This Row],[2026/27 From - Spending review Topic 3]]+Dataset[[#This Row],[2026/27 From - Spending review Topic 4]]+Dataset[[#This Row],[2026/27 From - Other reallocations]]","v":0},{"$f":"Dataset[[#This Row],[2024/25 To - Spending review Topic 1]]+Dataset[[#This Row],[2024/25 To - Spending review Topic 2]]+Dataset[[#This Row],[2024/25 To - Spending review Topic 3]]+Dataset[[#This Row],[2024/25 To - Spending review Topic 4]]+Dataset[[#This Row],[2024/25 To - Other reallocations]]","v":0},{"$f":"Dataset[[#This Row],[2025/26 To - Spending review Topic 1]]+Dataset[[#This Row],[2025/26 To - Spending review Topic 2]]+Dataset[[#This Row],[2025/26 To - Spending review Topic 3]]+Dataset[[#This Row],[2025/26 To - Spending review Topic 4]]+Dataset[[#This Row],[2025/26 To - Other reallocations]]","v":0},{"$f":"Dataset[[#This Row],[2026/27 To - Spending review Topic 1]]+Dataset[[#This Row],[2026/27 To - Spending review Topic 2]]+Dataset[[#This Row],[2026/27 To - Spending review Topic 3]]+Dataset[[#This Row],[2026/27 To - Spending review Topic 4]]+Dataset[[#This Row],[2026/27 To - Other reallocations]]","v":0},{"$f":"Dataset[[#This Row],[2024/25 Reduction]]+Dataset[[#This Row],[2024/25 From - Total]]","v":0},{"$f":"Dataset[[#This Row],[2025/26 Reduction]]+Dataset[[#This Row],[2025/26 From - Total]]","v":0},{"$f":"Dataset[[#This Row],[2026/27 Reduction]]+Dataset[[#This Row],[2026/27 From - Total]]","v":0},{"$f":"Dataset[[#This Row],[2023/24 Reduction]]","v":0},{"$f":"SUM(Dataset[[#This Row],[2024/25 Reduction]],Dataset[[#This Row],[2024/25 From - Total]],Dataset[[#This Row],[2024/25 To - Total]])","v":0},{"$f":"SUM(Dataset[[#This Row],[2025/26 Reduction]],Dataset[[#This Row],[2025/26 From - Total]],Dataset[[#This Row],[2025/26 To - Total]])","v":0},{"$f":"SUM(Dataset[[#This Row],[2026/27 Reduction]],Dataset[[#This Row],[2026/27 From - Total]],Dataset[[#This Row],[2026/27 To - Total]])","v":0},{"$f":"Dataset[[#This Row],[2023/24 Baseline]]+Dataset[[#This Row],[2023/24 Total change]]","v":1266},{"$f":"Dataset[[#This Row],[2024/25 Baseline]]+Dataset[[#This Row],[2024/25 Total change]]","v":1365},{"$f":"Dataset[[#This Row],[2025/26 Baseline]]+Dataset[[#This Row],[2025/26 Total change]]","v":1460},{"$f":"Dataset[[#This Row],[2026/27 Baseline]]+Dataset[[#This Row],[2026/27 Total change]]","v":1527}]
["NAT|Non-transfer item","26|Infrastructure and planning services","2024_25","MTEF2024",26,1,4,44130,243,"26","01","04","044130","000243","26|01|04","01","01","02","12","12","01|01|02|12|12","National","Military Veterans","Administration","Internal Audit","Non-transfer item","Current","Current payments","Goods and services","Infrastructure and planning services","Infrastructure and planning services","Peace and security","Defence and state security","NAT",0,0,0,0,0,0,0,0,0,0,0,null,null,null,null,null,null,null,null,null,null,null,null,null,null,null,null,null,null,null,null,null,null,null,null,null,null,null,null,null,null,null,null,null,null,{"$f":"Dataset[[#This Row],[2024/25 From - Spending review Topic 1]]+Dataset[[#This Row],[2024/25 From - Spending review Topic 2]]+Dataset[[#This Row],[2024/25 From - Spending review Topic 3]]+Dataset[[#This Row],[2024/25 From - Spending review Topic 4]]+Dataset[[#This Row],[2024/25 From - Other reallocations]]","v":0},{"$f":"Dataset[[#This Row],[2025/26 From - Spending review Topic 1]]+Dataset[[#This Row],[2025/26 From - Spending review Topic 2]]+Dataset[[#This Row],[2025/26 From - Spending review Topic 3]]+Dataset[[#This Row],[2025/26 From - Spending review Topic 4]]+Dataset[[#This Row],[2025/26 From - Other reallocations]]","v":0},{"$f":"Dataset[[#This Row],[2026/27 From - Spending review Topic 1]]+Dataset[[#This Row],[2026/27 From - Spending review Topic 2]]+Dataset[[#This Row],[2026/27 From - Spending review Topic 3]]+Dataset[[#This Row],[2026/27 From - Spending review Topic 4]]+Dataset[[#This Row],[2026/27 From - Other reallocations]]","v":0},{"$f":"Dataset[[#This Row],[2024/25 To - Spending review Topic 1]]+Dataset[[#This Row],[2024/25 To - Spending review Topic 2]]+Dataset[[#This Row],[2024/25 To - Spending review Topic 3]]+Dataset[[#This Row],[2024/25 To - Spending review Topic 4]]+Dataset[[#This Row],[2024/25 To - Other reallocations]]","v":0},{"$f":"Dataset[[#This Row],[2025/26 To - Spending review Topic 1]]+Dataset[[#This Row],[2025/26 To - Spending review Topic 2]]+Dataset[[#This Row],[2025/26 To - Spending review Topic 3]]+Dataset[[#This Row],[2025/26 To - Spending review Topic 4]]+Dataset[[#This Row],[2025/26 To - Other reallocations]]","v":0},{"$f":"Dataset[[#This Row],[2026/27 To - Spending review Topic 1]]+Dataset[[#This Row],[2026/27 To - Spending review Topic 2]]+Dataset[[#This Row],[2026/27 To - Spending review Topic 3]]+Dataset[[#This Row],[2026/27 To - Spending review Topic 4]]+Dataset[[#This Row],[2026/27 To - Other reallocations]]","v":0},{"$f":"Dataset[[#This Row],[2024/25 Reduction]]+Dataset[[#This Row],[2024/25 From - Total]]","v":0},{"$f":"Dataset[[#This Row],[2025/26 Reduction]]+Dataset[[#This Row],[2025/26 From - Total]]","v":0},{"$f":"Dataset[[#This Row],[2026/27 Reduction]]+Dataset[[#This Row],[2026/27 From - Total]]","v":0},{"$f":"Dataset[[#This Row],[2023/24 Reduction]]","v":0},{"$f":"SUM(Dataset[[#This Row],[2024/25 Reduction]],Dataset[[#This Row],[2024/25 From - Total]],Dataset[[#This Row],[2024/25 To - Total]])","v":0},{"$f":"SUM(Dataset[[#This Row],[2025/26 Reduction]],Dataset[[#This Row],[2025/26 From - Total]],Dataset[[#This Row],[2025/26 To - Total]])","v":0},{"$f":"SUM(Dataset[[#This Row],[2026/27 Reduction]],Dataset[[#This Row],[2026/27 From - Total]],Dataset[[#This Row],[2026/27 To - Total]])","v":0},{"$f":"Dataset[[#This Row],[2023/24 Baseline]]+Dataset[[#This Row],[2023/24 Total change]]","v":0},{"$f":"Dataset[[#This Row],[2024/25 Baseline]]+Dataset[[#This Row],[2024/25 Total change]]","v":0},{"$f":"Dataset[[#This Row],[2025/26 Baseline]]+Dataset[[#This Row],[2025/26 Total change]]","v":0},{"$f":"Dataset[[#This Row],[2026/27 Baseline]]+Dataset[[#This Row],[2026/27 Total change]]","v":0}]
["NAT|Non-transfer item","26|Laboratory services","2024_25","MTEF2024",26,1,4,44131,244,"26","01","04","044131","000244","26|01|04","01","01","02","13","13","01|01|02|13|13","National","Military Veterans","Administration","Internal Audit","Non-transfer item","Current","Current payments","Goods and services","Laboratory services","Laboratory services","Peace and security","Defence and state security","NAT",0,0,0,0,0,0,0,0,0,0,0,null,null,null,null,null,null,null,null,null,null,null,null,null,null,null,null,null,null,null,null,null,null,null,null,null,null,null,null,null,null,null,null,null,null,{"$f":"Dataset[[#This Row],[2024/25 From - Spending review Topic 1]]+Dataset[[#This Row],[2024/25 From - Spending review Topic 2]]+Dataset[[#This Row],[2024/25 From - Spending review Topic 3]]+Dataset[[#This Row],[2024/25 From - Spending review Topic 4]]+Dataset[[#This Row],[2024/25 From - Other reallocations]]","v":0},{"$f":"Dataset[[#This Row],[2025/26 From - Spending review Topic 1]]+Dataset[[#This Row],[2025/26 From - Spending review Topic 2]]+Dataset[[#This Row],[2025/26 From - Spending review Topic 3]]+Dataset[[#This Row],[2025/26 From - Spending review Topic 4]]+Dataset[[#This Row],[2025/26 From - Other reallocations]]","v":0},{"$f":"Dataset[[#This Row],[2026/27 From - Spending review Topic 1]]+Dataset[[#This Row],[2026/27 From - Spending review Topic 2]]+Dataset[[#This Row],[2026/27 From - Spending review Topic 3]]+Dataset[[#This Row],[2026/27 From - Spending review Topic 4]]+Dataset[[#This Row],[2026/27 From - Other reallocations]]","v":0},{"$f":"Dataset[[#This Row],[2024/25 To - Spending review Topic 1]]+Dataset[[#This Row],[2024/25 To - Spending review Topic 2]]+Dataset[[#This Row],[2024/25 To - Spending review Topic 3]]+Dataset[[#This Row],[2024/25 To - Spending review Topic 4]]+Dataset[[#This Row],[2024/25 To - Other reallocations]]","v":0},{"$f":"Dataset[[#This Row],[2025/26 To - Spending review Topic 1]]+Dataset[[#This Row],[2025/26 To - Spending review Topic 2]]+Dataset[[#This Row],[2025/26 To - Spending review Topic 3]]+Dataset[[#This Row],[2025/26 To - Spending review Topic 4]]+Dataset[[#This Row],[2025/26 To - Other reallocations]]","v":0},{"$f":"Dataset[[#This Row],[2026/27 To - Spending review Topic 1]]+Dataset[[#This Row],[2026/27 To - Spending review Topic 2]]+Dataset[[#This Row],[2026/27 To - Spending review Topic 3]]+Dataset[[#This Row],[2026/27 To - Spending review Topic 4]]+Dataset[[#This Row],[2026/27 To - Other reallocations]]","v":0},{"$f":"Dataset[[#This Row],[2024/25 Reduction]]+Dataset[[#This Row],[2024/25 From - Total]]","v":0},{"$f":"Dataset[[#This Row],[2025/26 Reduction]]+Dataset[[#This Row],[2025/26 From - Total]]","v":0},{"$f":"Dataset[[#This Row],[2026/27 Reduction]]+Dataset[[#This Row],[2026/27 From - Total]]","v":0},{"$f":"Dataset[[#This Row],[2023/24 Reduction]]","v":0},{"$f":"SUM(Dataset[[#This Row],[2024/25 Reduction]],Dataset[[#This Row],[2024/25 From - Total]],Dataset[[#This Row],[2024/25 To - Total]])","v":0},{"$f":"SUM(Dataset[[#This Row],[2025/26 Reduction]],Dataset[[#This Row],[2025/26 From - Total]],Dataset[[#This Row],[2025/26 To - Total]])","v":0},{"$f":"SUM(Dataset[[#This Row],[2026/27 Reduction]],Dataset[[#This Row],[2026/27 From - Total]],Dataset[[#This Row],[2026/27 To - Total]])","v":0},{"$f":"Dataset[[#This Row],[2023/24 Baseline]]+Dataset[[#This Row],[2023/24 Total change]]","v":0},{"$f":"Dataset[[#This Row],[2024/25 Baseline]]+Dataset[[#This Row],[2024/25 Total change]]","v":0},{"$f":"Dataset[[#This Row],[2025/26 Baseline]]+Dataset[[#This Row],[2025/26 Total change]]","v":0},{"$f":"Dataset[[#This Row],[2026/27 Baseline]]+Dataset[[#This Row],[2026/27 Total change]]","v":0}]
["NAT|Non-transfer item","26|Legal services (G&S)","2024_25","MTEF2024",26,1,4,44132,245,"26","01","04","044132","000245","26|01|04","01","01","02","14","14","01|01|02|14|14","National","Military Veterans","Administration","Internal Audit","Non-transfer item","Current","Current payments","Goods and services","Legal services (G&S)","Legal services (G&S)","Peace and security","Defence and state security","NAT",0,0,0,0,0,0,0,0,0,0,0,null,null,null,null,null,null,null,null,null,null,null,null,null,null,null,null,null,null,null,null,null,null,null,null,null,null,null,null,null,null,null,null,null,null,{"$f":"Dataset[[#This Row],[2024/25 From - Spending review Topic 1]]+Dataset[[#This Row],[2024/25 From - Spending review Topic 2]]+Dataset[[#This Row],[2024/25 From - Spending review Topic 3]]+Dataset[[#This Row],[2024/25 From - Spending review Topic 4]]+Dataset[[#This Row],[2024/25 From - Other reallocations]]","v":0},{"$f":"Dataset[[#This Row],[2025/26 From - Spending review Topic 1]]+Dataset[[#This Row],[2025/26 From - Spending review Topic 2]]+Dataset[[#This Row],[2025/26 From - Spending review Topic 3]]+Dataset[[#This Row],[2025/26 From - Spending review Topic 4]]+Dataset[[#This Row],[2025/26 From - Other reallocations]]","v":0},{"$f":"Dataset[[#This Row],[2026/27 From - Spending review Topic 1]]+Dataset[[#This Row],[2026/27 From - Spending review Topic 2]]+Dataset[[#This Row],[2026/27 From - Spending review Topic 3]]+Dataset[[#This Row],[2026/27 From - Spending review Topic 4]]+Dataset[[#This Row],[2026/27 From - Other reallocations]]","v":0},{"$f":"Dataset[[#This Row],[2024/25 To - Spending review Topic 1]]+Dataset[[#This Row],[2024/25 To - Spending review Topic 2]]+Dataset[[#This Row],[2024/25 To - Spending review Topic 3]]+Dataset[[#This Row],[2024/25 To - Spending review Topic 4]]+Dataset[[#This Row],[2024/25 To - Other reallocations]]","v":0},{"$f":"Dataset[[#This Row],[2025/26 To - Spending review Topic 1]]+Dataset[[#This Row],[2025/26 To - Spending review Topic 2]]+Dataset[[#This Row],[2025/26 To - Spending review Topic 3]]+Dataset[[#This Row],[2025/26 To - Spending review Topic 4]]+Dataset[[#This Row],[2025/26 To - Other reallocations]]","v":0},{"$f":"Dataset[[#This Row],[2026/27 To - Spending review Topic 1]]+Dataset[[#This Row],[2026/27 To - Spending review Topic 2]]+Dataset[[#This Row],[2026/27 To - Spending review Topic 3]]+Dataset[[#This Row],[2026/27 To - Spending review Topic 4]]+Dataset[[#This Row],[2026/27 To - Other reallocations]]","v":0},{"$f":"Dataset[[#This Row],[2024/25 Reduction]]+Dataset[[#This Row],[2024/25 From - Total]]","v":0},{"$f":"Dataset[[#This Row],[2025/26 Reduction]]+Dataset[[#This Row],[2025/26 From - Total]]","v":0},{"$f":"Dataset[[#This Row],[2026/27 Reduction]]+Dataset[[#This Row],[2026/27 From - Total]]","v":0},{"$f":"Dataset[[#This Row],[2023/24 Reduction]]","v":0},{"$f":"SUM(Dataset[[#This Row],[2024/25 Reduction]],Dataset[[#This Row],[2024/25 From - Total]],Dataset[[#This Row],[2024/25 To - Total]])","v":0},{"$f":"SUM(Dataset[[#This Row],[2025/26 Reduction]],Dataset[[#This Row],[2025/26 From - Total]],Dataset[[#This Row],[2025/26 To - Total]])","v":0},{"$f":"SUM(Dataset[[#This Row],[2026/27 Reduction]],Dataset[[#This Row],[2026/27 From - Total]],Dataset[[#This Row],[2026/27 To - Total]])","v":0},{"$f":"Dataset[[#This Row],[2023/24 Baseline]]+Dataset[[#This Row],[2023/24 Total change]]","v":0},{"$f":"Dataset[[#This Row],[2024/25 Baseline]]+Dataset[[#This Row],[2024/25 Total change]]","v":0},{"$f":"Dataset[[#This Row],[2025/26 Baseline]]+Dataset[[#This Row],[2025/26 Total change]]","v":0},{"$f":"Dataset[[#This Row],[2026/27 Baseline]]+Dataset[[#This Row],[2026/27 Total change]]","v":0}]
["NAT|Non-transfer item","26|Science and technological services","2024_25","MTEF2024",26,1,4,44133,246,"26","01","04","044133","000246","26|01|04","01","01","02","15","15","01|01|02|15|15","National","Military Veterans","Administration","Internal Audit","Non-transfer item","Current","Current payments","Goods and services","Science and technological services","Science and technological services","Peace and security","Defence and state security","NAT",0,0,0,0,0,0,0,0,0,0,0,null,null,null,null,null,null,null,null,null,null,null,null,null,null,null,null,null,null,null,null,null,null,null,null,null,null,null,null,null,null,null,null,null,null,{"$f":"Dataset[[#This Row],[2024/25 From - Spending review Topic 1]]+Dataset[[#This Row],[2024/25 From - Spending review Topic 2]]+Dataset[[#This Row],[2024/25 From - Spending review Topic 3]]+Dataset[[#This Row],[2024/25 From - Spending review Topic 4]]+Dataset[[#This Row],[2024/25 From - Other reallocations]]","v":0},{"$f":"Dataset[[#This Row],[2025/26 From - Spending review Topic 1]]+Dataset[[#This Row],[2025/26 From - Spending review Topic 2]]+Dataset[[#This Row],[2025/26 From - Spending review Topic 3]]+Dataset[[#This Row],[2025/26 From - Spending review Topic 4]]+Dataset[[#This Row],[2025/26 From - Other reallocations]]","v":0},{"$f":"Dataset[[#This Row],[2026/27 From - Spending review Topic 1]]+Dataset[[#This Row],[2026/27 From - Spending review Topic 2]]+Dataset[[#This Row],[2026/27 From - Spending review Topic 3]]+Dataset[[#This Row],[2026/27 From - Spending review Topic 4]]+Dataset[[#This Row],[2026/27 From - Other reallocations]]","v":0},{"$f":"Dataset[[#This Row],[2024/25 To - Spending review Topic 1]]+Dataset[[#This Row],[2024/25 To - Spending review Topic 2]]+Dataset[[#This Row],[2024/25 To - Spending review Topic 3]]+Dataset[[#This Row],[2024/25 To - Spending review Topic 4]]+Dataset[[#This Row],[2024/25 To - Other reallocations]]","v":0},{"$f":"Dataset[[#This Row],[2025/26 To - Spending review Topic 1]]+Dataset[[#This Row],[2025/26 To - Spending review Topic 2]]+Dataset[[#This Row],[2025/26 To - Spending review Topic 3]]+Dataset[[#This Row],[2025/26 To - Spending review Topic 4]]+Dataset[[#This Row],[2025/26 To - Other reallocations]]","v":0},{"$f":"Dataset[[#This Row],[2026/27 To - Spending review Topic 1]]+Dataset[[#This Row],[2026/27 To - Spending review Topic 2]]+Dataset[[#This Row],[2026/27 To - Spending review Topic 3]]+Dataset[[#This Row],[2026/27 To - Spending review Topic 4]]+Dataset[[#This Row],[2026/27 To - Other reallocations]]","v":0},{"$f":"Dataset[[#This Row],[2024/25 Reduction]]+Dataset[[#This Row],[2024/25 From - Total]]","v":0},{"$f":"Dataset[[#This Row],[2025/26 Reduction]]+Dataset[[#This Row],[2025/26 From - Total]]","v":0},{"$f":"Dataset[[#This Row],[2026/27 Reduction]]+Dataset[[#This Row],[2026/27 From - Total]]","v":0},{"$f":"Dataset[[#This Row],[2023/24 Reduction]]","v":0},{"$f":"SUM(Dataset[[#This Row],[2024/25 Reduction]],Dataset[[#This Row],[2024/25 From - Total]],Dataset[[#This Row],[2024/25 To - Total]])","v":0},{"$f":"SUM(Dataset[[#This Row],[2025/26 Reduction]],Dataset[[#This Row],[2025/26 From - Total]],Dataset[[#This Row],[2025/26 To - Total]])","v":0},{"$f":"SUM(Dataset[[#This Row],[2026/27 Reduction]],Dataset[[#This Row],[2026/27 From - Total]],Dataset[[#This Row],[2026/27 To - Total]])","v":0},{"$f":"Dataset[[#This Row],[2023/24 Baseline]]+Dataset[[#This Row],[2023/24 Total change]]","v":0},{"$f":"Dataset[[#This Row],[2024/25 Baseline]]+Dataset[[#This Row],[2024/25 Total change]]","v":0},{"$f":"Dataset[[#This Row],[2025/26 Baseline]]+Dataset[[#This Row],[2025/26 Total change]]","v":0},{"$f":"Dataset[[#This Row],[2026/27 Baseline]]+Dataset[[#This Row],[2026/27 Total change]]","v":0}]
["NAT|Non-transfer item","26|Contractors","2024_25","MTEF2024",26,1,4,44134,247,"26","01","04","044134","000247","26|01|04","01","01","02","16","16","01|01|02|16|16","National","Military Veterans","Administration","Internal Audit","Non-transfer item","Current","Current payments","Goods and services","Contractors","Contractors","Peace and security","Defence and state security","NAT",0,0,0,0,0,0,0,0,0,0,0,null,null,null,null,null,null,null,null,null,null,null,null,null,null,null,null,null,null,null,null,null,null,null,null,null,null,null,null,null,null,null,null,null,null,{"$f":"Dataset[[#This Row],[2024/25 From - Spending review Topic 1]]+Dataset[[#This Row],[2024/25 From - Spending review Topic 2]]+Dataset[[#This Row],[2024/25 From - Spending review Topic 3]]+Dataset[[#This Row],[2024/25 From - Spending review Topic 4]]+Dataset[[#This Row],[2024/25 From - Other reallocations]]","v":0},{"$f":"Dataset[[#This Row],[2025/26 From - Spending review Topic 1]]+Dataset[[#This Row],[2025/26 From - Spending review Topic 2]]+Dataset[[#This Row],[2025/26 From - Spending review Topic 3]]+Dataset[[#This Row],[2025/26 From - Spending review Topic 4]]+Dataset[[#This Row],[2025/26 From - Other reallocations]]","v":0},{"$f":"Dataset[[#This Row],[2026/27 From - Spending review Topic 1]]+Dataset[[#This Row],[2026/27 From - Spending review Topic 2]]+Dataset[[#This Row],[2026/27 From - Spending review Topic 3]]+Dataset[[#This Row],[2026/27 From - Spending review Topic 4]]+Dataset[[#This Row],[2026/27 From - Other reallocations]]","v":0},{"$f":"Dataset[[#This Row],[2024/25 To - Spending review Topic 1]]+Dataset[[#This Row],[2024/25 To - Spending review Topic 2]]+Dataset[[#This Row],[2024/25 To - Spending review Topic 3]]+Dataset[[#This Row],[2024/25 To - Spending review Topic 4]]+Dataset[[#This Row],[2024/25 To - Other reallocations]]","v":0},{"$f":"Dataset[[#This Row],[2025/26 To - Spending review Topic 1]]+Dataset[[#This Row],[2025/26 To - Spending review Topic 2]]+Dataset[[#This Row],[2025/26 To - Spending review Topic 3]]+Dataset[[#This Row],[2025/26 To - Spending review Topic 4]]+Dataset[[#This Row],[2025/26 To - Other reallocations]]","v":0},{"$f":"Dataset[[#This Row],[2026/27 To - Spending review Topic 1]]+Dataset[[#This Row],[2026/27 To - Spending review Topic 2]]+Dataset[[#This Row],[2026/27 To - Spending review Topic 3]]+Dataset[[#This Row],[2026/27 To - Spending review Topic 4]]+Dataset[[#This Row],[2026/27 To - Other reallocations]]","v":0},{"$f":"Dataset[[#This Row],[2024/25 Reduction]]+Dataset[[#This Row],[2024/25 From - Total]]","v":0},{"$f":"Dataset[[#This Row],[2025/26 Reduction]]+Dataset[[#This Row],[2025/26 From - Total]]","v":0},{"$f":"Dataset[[#This Row],[2026/27 Reduction]]+Dataset[[#This Row],[2026/27 From - Total]]","v":0},{"$f":"Dataset[[#This Row],[2023/24 Reduction]]","v":0},{"$f":"SUM(Dataset[[#This Row],[2024/25 Reduction]],Dataset[[#This Row],[2024/25 From - Total]],Dataset[[#This Row],[2024/25 To - Total]])","v":0},{"$f":"SUM(Dataset[[#This Row],[2025/26 Reduction]],Dataset[[#This Row],[2025/26 From - Total]],Dataset[[#This Row],[2025/26 To - Total]])","v":0},{"$f":"SUM(Dataset[[#This Row],[2026/27 Reduction]],Dataset[[#This Row],[2026/27 From - Total]],Dataset[[#This Row],[2026/27 To - Total]])","v":0},{"$f":"Dataset[[#This Row],[2023/24 Baseline]]+Dataset[[#This Row],[2023/24 Total change]]","v":0},{"$f":"Dataset[[#This Row],[2024/25 Baseline]]+Dataset[[#This Row],[2024/25 Total change]]","v":0},{"$f":"Dataset[[#This Row],[2025/26 Baseline]]+Dataset[[#This Row],[2025/26 Total change]]","v":0},{"$f":"Dataset[[#This Row],[2026/27 Baseline]]+Dataset[[#This Row],[2026/27 Total change]]","v":0}]
["NAT|Non-transfer item","26|Agency and support/outsourced services","2024_25","MTEF2024",26,1,4,44135,248,"26","01","04","044135","000248","26|01|04","01","01","02","17","17","01|01|02|17|17","National","Military Veterans","Administration","Internal Audit","Non-transfer item","Current","Current payments","Goods and services","Agency and support/outsourced services","Agency and support/outsourced services","Peace and security","Defence and state security","NAT",0,0,0,0,0,0,0,0,0,0,0,null,null,null,null,null,null,null,null,null,null,null,null,null,null,null,null,null,null,null,null,null,null,null,null,null,null,null,null,null,null,null,null,null,null,{"$f":"Dataset[[#This Row],[2024/25 From - Spending review Topic 1]]+Dataset[[#This Row],[2024/25 From - Spending review Topic 2]]+Dataset[[#This Row],[2024/25 From - Spending review Topic 3]]+Dataset[[#This Row],[2024/25 From - Spending review Topic 4]]+Dataset[[#This Row],[2024/25 From - Other reallocations]]","v":0},{"$f":"Dataset[[#This Row],[2025/26 From - Spending review Topic 1]]+Dataset[[#This Row],[2025/26 From - Spending review Topic 2]]+Dataset[[#This Row],[2025/26 From - Spending review Topic 3]]+Dataset[[#This Row],[2025/26 From - Spending review Topic 4]]+Dataset[[#This Row],[2025/26 From - Other reallocations]]","v":0},{"$f":"Dataset[[#This Row],[2026/27 From - Spending review Topic 1]]+Dataset[[#This Row],[2026/27 From - Spending review Topic 2]]+Dataset[[#This Row],[2026/27 From - Spending review Topic 3]]+Dataset[[#This Row],[2026/27 From - Spending review Topic 4]]+Dataset[[#This Row],[2026/27 From - Other reallocations]]","v":0},{"$f":"Dataset[[#This Row],[2024/25 To - Spending review Topic 1]]+Dataset[[#This Row],[2024/25 To - Spending review Topic 2]]+Dataset[[#This Row],[2024/25 To - Spending review Topic 3]]+Dataset[[#This Row],[2024/25 To - Spending review Topic 4]]+Dataset[[#This Row],[2024/25 To - Other reallocations]]","v":0},{"$f":"Dataset[[#This Row],[2025/26 To - Spending review Topic 1]]+Dataset[[#This Row],[2025/26 To - Spending review Topic 2]]+Dataset[[#This Row],[2025/26 To - Spending review Topic 3]]+Dataset[[#This Row],[2025/26 To - Spending review Topic 4]]+Dataset[[#This Row],[2025/26 To - Other reallocations]]","v":0},{"$f":"Dataset[[#This Row],[2026/27 To - Spending review Topic 1]]+Dataset[[#This Row],[2026/27 To - Spending review Topic 2]]+Dataset[[#This Row],[2026/27 To - Spending review Topic 3]]+Dataset[[#This Row],[2026/27 To - Spending review Topic 4]]+Dataset[[#This Row],[2026/27 To - Other reallocations]]","v":0},{"$f":"Dataset[[#This Row],[2024/25 Reduction]]+Dataset[[#This Row],[2024/25 From - Total]]","v":0},{"$f":"Dataset[[#This Row],[2025/26 Reduction]]+Dataset[[#This Row],[2025/26 From - Total]]","v":0},{"$f":"Dataset[[#This Row],[2026/27 Reduction]]+Dataset[[#This Row],[2026/27 From - Total]]","v":0},{"$f":"Dataset[[#This Row],[2023/24 Reduction]]","v":0},{"$f":"SUM(Dataset[[#This Row],[2024/25 Reduction]],Dataset[[#This Row],[2024/25 From - Total]],Dataset[[#This Row],[2024/25 To - Total]])","v":0},{"$f":"SUM(Dataset[[#This Row],[2025/26 Reduction]],Dataset[[#This Row],[2025/26 From - Total]],Dataset[[#This Row],[2025/26 To - Total]])","v":0},{"$f":"SUM(Dataset[[#This Row],[2026/27 Reduction]],Dataset[[#This Row],[2026/27 From - Total]],Dataset[[#This Row],[2026/27 To - Total]])","v":0},{"$f":"Dataset[[#This Row],[2023/24 Baseline]]+Dataset[[#This Row],[2023/24 Total change]]","v":0},{"$f":"Dataset[[#This Row],[2024/25 Baseline]]+Dataset[[#This Row],[2024/25 Total change]]","v":0},{"$f":"Dataset[[#This Row],[2025/26 Baseline]]+Dataset[[#This Row],[2025/26 Total change]]","v":0},{"$f":"Dataset[[#This Row],[2026/27 Baseline]]+Dataset[[#This Row],[2026/27 Total change]]","v":0}]
["NAT|Non-transfer item","26|Entertainment","2024_25","MTEF2024",26,1,4,44136,249,"26","01","04","044136","000249","26|01|04","01","01","02","18","18","01|01|02|18|18","National","Military Veterans","Administration","Internal Audit","Non-transfer item","Current","Current payments","Goods and services","Entertainment","Entertainment","Peace and security","Defence and state security","NAT",0,0,0,0,0,0,0,0,0,0,0,null,null,null,null,null,null,null,null,null,null,null,null,null,null,null,null,null,null,null,null,null,null,null,null,null,null,null,null,null,null,null,null,null,null,{"$f":"Dataset[[#This Row],[2024/25 From - Spending review Topic 1]]+Dataset[[#This Row],[2024/25 From - Spending review Topic 2]]+Dataset[[#This Row],[2024/25 From - Spending review Topic 3]]+Dataset[[#This Row],[2024/25 From - Spending review Topic 4]]+Dataset[[#This Row],[2024/25 From - Other reallocations]]","v":0},{"$f":"Dataset[[#This Row],[2025/26 From - Spending review Topic 1]]+Dataset[[#This Row],[2025/26 From - Spending review Topic 2]]+Dataset[[#This Row],[2025/26 From - Spending review Topic 3]]+Dataset[[#This Row],[2025/26 From - Spending review Topic 4]]+Dataset[[#This Row],[2025/26 From - Other reallocations]]","v":0},{"$f":"Dataset[[#This Row],[2026/27 From - Spending review Topic 1]]+Dataset[[#This Row],[2026/27 From - Spending review Topic 2]]+Dataset[[#This Row],[2026/27 From - Spending review Topic 3]]+Dataset[[#This Row],[2026/27 From - Spending review Topic 4]]+Dataset[[#This Row],[2026/27 From - Other reallocations]]","v":0},{"$f":"Dataset[[#This Row],[2024/25 To - Spending review Topic 1]]+Dataset[[#This Row],[2024/25 To - Spending review Topic 2]]+Dataset[[#This Row],[2024/25 To - Spending review Topic 3]]+Dataset[[#This Row],[2024/25 To - Spending review Topic 4]]+Dataset[[#This Row],[2024/25 To - Other reallocations]]","v":0},{"$f":"Dataset[[#This Row],[2025/26 To - Spending review Topic 1]]+Dataset[[#This Row],[2025/26 To - Spending review Topic 2]]+Dataset[[#This Row],[2025/26 To - Spending review Topic 3]]+Dataset[[#This Row],[2025/26 To - Spending review Topic 4]]+Dataset[[#This Row],[2025/26 To - Other reallocations]]","v":0},{"$f":"Dataset[[#This Row],[2026/27 To - Spending review Topic 1]]+Dataset[[#This Row],[2026/27 To - Spending review Topic 2]]+Dataset[[#This Row],[2026/27 To - Spending review Topic 3]]+Dataset[[#This Row],[2026/27 To - Spending review Topic 4]]+Dataset[[#This Row],[2026/27 To - Other reallocations]]","v":0},{"$f":"Dataset[[#This Row],[2024/25 Reduction]]+Dataset[[#This Row],[2024/25 From - Total]]","v":0},{"$f":"Dataset[[#This Row],[2025/26 Reduction]]+Dataset[[#This Row],[2025/26 From - Total]]","v":0},{"$f":"Dataset[[#This Row],[2026/27 Reduction]]+Dataset[[#This Row],[2026/27 From - Total]]","v":0},{"$f":"Dataset[[#This Row],[2023/24 Reduction]]","v":0},{"$f":"SUM(Dataset[[#This Row],[2024/25 Reduction]],Dataset[[#This Row],[2024/25 From - Total]],Dataset[[#This Row],[2024/25 To - Total]])","v":0},{"$f":"SUM(Dataset[[#This Row],[2025/26 Reduction]],Dataset[[#This Row],[2025/26 From - Total]],Dataset[[#This Row],[2025/26 To - Total]])","v":0},{"$f":"SUM(Dataset[[#This Row],[2026/27 Reduction]],Dataset[[#This Row],[2026/27 From - Total]],Dataset[[#This Row],[2026/27 To - Total]])","v":0},{"$f":"Dataset[[#This Row],[2023/24 Baseline]]+Dataset[[#This Row],[2023/24 Total change]]","v":0},{"$f":"Dataset[[#This Row],[2024/25 Baseline]]+Dataset[[#This Row],[2024/25 Total change]]","v":0},{"$f":"Dataset[[#This Row],[2025/26 Baseline]]+Dataset[[#This Row],[2025/26 Total change]]","v":0},{"$f":"Dataset[[#This Row],[2026/27 Baseline]]+Dataset[[#This Row],[2026/27 Total change]]","v":0}]
["NAT|Non-transfer item","26|Fleet services (including government motor transport)","2024_25","MTEF2024",26,1,4,44137,250,"26","01","04","044137","000250","26|01|04","01","01","02","19","19","01|01|02|19|19","National","Military Veterans","Administration","Internal Audit","Non-transfer item","Current","Current payments","Goods and services","Fleet services (including government motor transport)","Fleet services (including government motor transport)","Peace and security","Defence and state security","NAT",0,0,0,0,0,0,0,0,0,0,0,null,null,null,null,null,null,null,null,null,null,null,null,null,null,null,null,null,null,null,null,null,null,null,null,null,null,null,null,null,null,null,null,null,null,{"$f":"Dataset[[#This Row],[2024/25 From - Spending review Topic 1]]+Dataset[[#This Row],[2024/25 From - Spending review Topic 2]]+Dataset[[#This Row],[2024/25 From - Spending review Topic 3]]+Dataset[[#This Row],[2024/25 From - Spending review Topic 4]]+Dataset[[#This Row],[2024/25 From - Other reallocations]]","v":0},{"$f":"Dataset[[#This Row],[2025/26 From - Spending review Topic 1]]+Dataset[[#This Row],[2025/26 From - Spending review Topic 2]]+Dataset[[#This Row],[2025/26 From - Spending review Topic 3]]+Dataset[[#This Row],[2025/26 From - Spending review Topic 4]]+Dataset[[#This Row],[2025/26 From - Other reallocations]]","v":0},{"$f":"Dataset[[#This Row],[2026/27 From - Spending review Topic 1]]+Dataset[[#This Row],[2026/27 From - Spending review Topic 2]]+Dataset[[#This Row],[2026/27 From - Spending review Topic 3]]+Dataset[[#This Row],[2026/27 From - Spending review Topic 4]]+Dataset[[#This Row],[2026/27 From - Other reallocations]]","v":0},{"$f":"Dataset[[#This Row],[2024/25 To - Spending review Topic 1]]+Dataset[[#This Row],[2024/25 To - Spending review Topic 2]]+Dataset[[#This Row],[2024/25 To - Spending review Topic 3]]+Dataset[[#This Row],[2024/25 To - Spending review Topic 4]]+Dataset[[#This Row],[2024/25 To - Other reallocations]]","v":0},{"$f":"Dataset[[#This Row],[2025/26 To - Spending review Topic 1]]+Dataset[[#This Row],[2025/26 To - Spending review Topic 2]]+Dataset[[#This Row],[2025/26 To - Spending review Topic 3]]+Dataset[[#This Row],[2025/26 To - Spending review Topic 4]]+Dataset[[#This Row],[2025/26 To - Other reallocations]]","v":0},{"$f":"Dataset[[#This Row],[2026/27 To - Spending review Topic 1]]+Dataset[[#This Row],[2026/27 To - Spending review Topic 2]]+Dataset[[#This Row],[2026/27 To - Spending review Topic 3]]+Dataset[[#This Row],[2026/27 To - Spending review Topic 4]]+Dataset[[#This Row],[2026/27 To - Other reallocations]]","v":0},{"$f":"Dataset[[#This Row],[2024/25 Reduction]]+Dataset[[#This Row],[2024/25 From - Total]]","v":0},{"$f":"Dataset[[#This Row],[2025/26 Reduction]]+Dataset[[#This Row],[2025/26 From - Total]]","v":0},{"$f":"Dataset[[#This Row],[2026/27 Reduction]]+Dataset[[#This Row],[2026/27 From - Total]]","v":0},{"$f":"Dataset[[#This Row],[2023/24 Reduction]]","v":0},{"$f":"SUM(Dataset[[#This Row],[2024/25 Reduction]],Dataset[[#This Row],[2024/25 From - Total]],Dataset[[#This Row],[2024/25 To - Total]])","v":0},{"$f":"SUM(Dataset[[#This Row],[2025/26 Reduction]],Dataset[[#This Row],[2025/26 From - Total]],Dataset[[#This Row],[2025/26 To - Total]])","v":0},{"$f":"SUM(Dataset[[#This Row],[2026/27 Reduction]],Dataset[[#This Row],[2026/27 From - Total]],Dataset[[#This Row],[2026/27 To - Total]])","v":0},{"$f":"Dataset[[#This Row],[2023/24 Baseline]]+Dataset[[#This Row],[2023/24 Total change]]","v":0},{"$f":"Dataset[[#This Row],[2024/25 Baseline]]+Dataset[[#This Row],[2024/25 Total change]]","v":0},{"$f":"Dataset[[#This Row],[2025/26 Baseline]]+Dataset[[#This Row],[2025/26 Total change]]","v":0},{"$f":"Dataset[[#This Row],[2026/27 Baseline]]+Dataset[[#This Row],[2026/27 Total change]]","v":0}]
["NAT|Non-transfer item","26|Housing","2024_25","MTEF2024",26,1,4,44138,251,"26","01","04","044138","000251","26|01|04","01","01","02","20","20","01|01|02|20|20","National","Military Veterans","Administration","Internal Audit","Non-transfer item","Current","Current payments","Goods and services","Housing","Housing","Peace and security","Defence and state security","NAT",0,0,0,0,0,0,0,0,0,0,0,null,null,null,null,null,null,null,null,null,null,null,null,null,null,null,null,null,null,null,null,null,null,null,null,null,null,null,null,null,null,null,null,null,null,{"$f":"Dataset[[#This Row],[2024/25 From - Spending review Topic 1]]+Dataset[[#This Row],[2024/25 From - Spending review Topic 2]]+Dataset[[#This Row],[2024/25 From - Spending review Topic 3]]+Dataset[[#This Row],[2024/25 From - Spending review Topic 4]]+Dataset[[#This Row],[2024/25 From - Other reallocations]]","v":0},{"$f":"Dataset[[#This Row],[2025/26 From - Spending review Topic 1]]+Dataset[[#This Row],[2025/26 From - Spending review Topic 2]]+Dataset[[#This Row],[2025/26 From - Spending review Topic 3]]+Dataset[[#This Row],[2025/26 From - Spending review Topic 4]]+Dataset[[#This Row],[2025/26 From - Other reallocations]]","v":0},{"$f":"Dataset[[#This Row],[2026/27 From - Spending review Topic 1]]+Dataset[[#This Row],[2026/27 From - Spending review Topic 2]]+Dataset[[#This Row],[2026/27 From - Spending review Topic 3]]+Dataset[[#This Row],[2026/27 From - Spending review Topic 4]]+Dataset[[#This Row],[2026/27 From - Other reallocations]]","v":0},{"$f":"Dataset[[#This Row],[2024/25 To - Spending review Topic 1]]+Dataset[[#This Row],[2024/25 To - Spending review Topic 2]]+Dataset[[#This Row],[2024/25 To - Spending review Topic 3]]+Dataset[[#This Row],[2024/25 To - Spending review Topic 4]]+Dataset[[#This Row],[2024/25 To - Other reallocations]]","v":0},{"$f":"Dataset[[#This Row],[2025/26 To - Spending review Topic 1]]+Dataset[[#This Row],[2025/26 To - Spending review Topic 2]]+Dataset[[#This Row],[2025/26 To - Spending review Topic 3]]+Dataset[[#This Row],[2025/26 To - Spending review Topic 4]]+Dataset[[#This Row],[2025/26 To - Other reallocations]]","v":0},{"$f":"Dataset[[#This Row],[2026/27 To - Spending review Topic 1]]+Dataset[[#This Row],[2026/27 To - Spending review Topic 2]]+Dataset[[#This Row],[2026/27 To - Spending review Topic 3]]+Dataset[[#This Row],[2026/27 To - Spending review Topic 4]]+Dataset[[#This Row],[2026/27 To - Other reallocations]]","v":0},{"$f":"Dataset[[#This Row],[2024/25 Reduction]]+Dataset[[#This Row],[2024/25 From - Total]]","v":0},{"$f":"Dataset[[#This Row],[2025/26 Reduction]]+Dataset[[#This Row],[2025/26 From - Total]]","v":0},{"$f":"Dataset[[#This Row],[2026/27 Reduction]]+Dataset[[#This Row],[2026/27 From - Total]]","v":0},{"$f":"Dataset[[#This Row],[2023/24 Reduction]]","v":0},{"$f":"SUM(Dataset[[#This Row],[2024/25 Reduction]],Dataset[[#This Row],[2024/25 From - Total]],Dataset[[#This Row],[2024/25 To - Total]])","v":0},{"$f":"SUM(Dataset[[#This Row],[2025/26 Reduction]],Dataset[[#This Row],[2025/26 From - Total]],Dataset[[#This Row],[2025/26 To - Total]])","v":0},{"$f":"SUM(Dataset[[#This Row],[2026/27 Reduction]],Dataset[[#This Row],[2026/27 From - Total]],Dataset[[#This Row],[2026/27 To - Total]])","v":0},{"$f":"Dataset[[#This Row],[2023/24 Baseline]]+Dataset[[#This Row],[2023/24 Total change]]","v":0},{"$f":"Dataset[[#This Row],[2024/25 Baseline]]+Dataset[[#This Row],[2024/25 Total change]]","v":0},{"$f":"Dataset[[#This Row],[2025/26 Baseline]]+Dataset[[#This Row],[2025/26 Total change]]","v":0},{"$f":"Dataset[[#This Row],[2026/27 Baseline]]+Dataset[[#This Row],[2026/27 Total change]]","v":0}]
["NAT|Non-transfer item","26|Inventory: Clothing material and accessories","2024_25","MTEF2024",26,1,4,44139,252,"26","01","04","044139","000252","26|01|04","01","01","02","21","21","01|01|02|21|21","National","Military Veterans","Administration","Internal Audit","Non-transfer item","Current","Current payments","Goods and services","Inventory: Clothing material and accessories","Inventory: Clothing material and accessories","Peace and security","Defence and state security","NAT",0,0,0,0,0,0,0,0,0,0,0,null,null,null,null,null,null,null,null,null,null,null,null,null,null,null,null,null,null,null,null,null,null,null,null,null,null,null,null,null,null,null,null,null,null,{"$f":"Dataset[[#This Row],[2024/25 From - Spending review Topic 1]]+Dataset[[#This Row],[2024/25 From - Spending review Topic 2]]+Dataset[[#This Row],[2024/25 From - Spending review Topic 3]]+Dataset[[#This Row],[2024/25 From - Spending review Topic 4]]+Dataset[[#This Row],[2024/25 From - Other reallocations]]","v":0},{"$f":"Dataset[[#This Row],[2025/26 From - Spending review Topic 1]]+Dataset[[#This Row],[2025/26 From - Spending review Topic 2]]+Dataset[[#This Row],[2025/26 From - Spending review Topic 3]]+Dataset[[#This Row],[2025/26 From - Spending review Topic 4]]+Dataset[[#This Row],[2025/26 From - Other reallocations]]","v":0},{"$f":"Dataset[[#This Row],[2026/27 From - Spending review Topic 1]]+Dataset[[#This Row],[2026/27 From - Spending review Topic 2]]+Dataset[[#This Row],[2026/27 From - Spending review Topic 3]]+Dataset[[#This Row],[2026/27 From - Spending review Topic 4]]+Dataset[[#This Row],[2026/27 From - Other reallocations]]","v":0},{"$f":"Dataset[[#This Row],[2024/25 To - Spending review Topic 1]]+Dataset[[#This Row],[2024/25 To - Spending review Topic 2]]+Dataset[[#This Row],[2024/25 To - Spending review Topic 3]]+Dataset[[#This Row],[2024/25 To - Spending review Topic 4]]+Dataset[[#This Row],[2024/25 To - Other reallocations]]","v":0},{"$f":"Dataset[[#This Row],[2025/26 To - Spending review Topic 1]]+Dataset[[#This Row],[2025/26 To - Spending review Topic 2]]+Dataset[[#This Row],[2025/26 To - Spending review Topic 3]]+Dataset[[#This Row],[2025/26 To - Spending review Topic 4]]+Dataset[[#This Row],[2025/26 To - Other reallocations]]","v":0},{"$f":"Dataset[[#This Row],[2026/27 To - Spending review Topic 1]]+Dataset[[#This Row],[2026/27 To - Spending review Topic 2]]+Dataset[[#This Row],[2026/27 To - Spending review Topic 3]]+Dataset[[#This Row],[2026/27 To - Spending review Topic 4]]+Dataset[[#This Row],[2026/27 To - Other reallocations]]","v":0},{"$f":"Dataset[[#This Row],[2024/25 Reduction]]+Dataset[[#This Row],[2024/25 From - Total]]","v":0},{"$f":"Dataset[[#This Row],[2025/26 Reduction]]+Dataset[[#This Row],[2025/26 From - Total]]","v":0},{"$f":"Dataset[[#This Row],[2026/27 Reduction]]+Dataset[[#This Row],[2026/27 From - Total]]","v":0},{"$f":"Dataset[[#This Row],[2023/24 Reduction]]","v":0},{"$f":"SUM(Dataset[[#This Row],[2024/25 Reduction]],Dataset[[#This Row],[2024/25 From - Total]],Dataset[[#This Row],[2024/25 To - Total]])","v":0},{"$f":"SUM(Dataset[[#This Row],[2025/26 Reduction]],Dataset[[#This Row],[2025/26 From - Total]],Dataset[[#This Row],[2025/26 To - Total]])","v":0},{"$f":"SUM(Dataset[[#This Row],[2026/27 Reduction]],Dataset[[#This Row],[2026/27 From - Total]],Dataset[[#This Row],[2026/27 To - Total]])","v":0},{"$f":"Dataset[[#This Row],[2023/24 Baseline]]+Dataset[[#This Row],[2023/24 Total change]]","v":0},{"$f":"Dataset[[#This Row],[2024/25 Baseline]]+Dataset[[#This Row],[2024/25 Total change]]","v":0},{"$f":"Dataset[[#This Row],[2025/26 Baseline]]+Dataset[[#This Row],[2025/26 Total change]]","v":0},{"$f":"Dataset[[#This Row],[2026/27 Baseline]]+Dataset[[#This Row],[2026/27 Total change]]","v":0}]
["NAT|Non-transfer item","26|Inventory: Farming supplies","2024_25","MTEF2024",26,1,4,44140,253,"26","01","04","044140","000253","26|01|04","01","01","02","22","22","01|01|02|22|22","National","Military Veterans","Administration","Internal Audit","Non-transfer item","Current","Current payments","Goods and services","Inventory: Farming supplies","Inventory: Farming supplies","Peace and security","Defence and state security","NAT",0,0,0,0,0,0,0,0,0,0,0,null,null,null,null,null,null,null,null,null,null,null,null,null,null,null,null,null,null,null,null,null,null,null,null,null,null,null,null,null,null,null,null,null,null,{"$f":"Dataset[[#This Row],[2024/25 From - Spending review Topic 1]]+Dataset[[#This Row],[2024/25 From - Spending review Topic 2]]+Dataset[[#This Row],[2024/25 From - Spending review Topic 3]]+Dataset[[#This Row],[2024/25 From - Spending review Topic 4]]+Dataset[[#This Row],[2024/25 From - Other reallocations]]","v":0},{"$f":"Dataset[[#This Row],[2025/26 From - Spending review Topic 1]]+Dataset[[#This Row],[2025/26 From - Spending review Topic 2]]+Dataset[[#This Row],[2025/26 From - Spending review Topic 3]]+Dataset[[#This Row],[2025/26 From - Spending review Topic 4]]+Dataset[[#This Row],[2025/26 From - Other reallocations]]","v":0},{"$f":"Dataset[[#This Row],[2026/27 From - Spending review Topic 1]]+Dataset[[#This Row],[2026/27 From - Spending review Topic 2]]+Dataset[[#This Row],[2026/27 From - Spending review Topic 3]]+Dataset[[#This Row],[2026/27 From - Spending review Topic 4]]+Dataset[[#This Row],[2026/27 From - Other reallocations]]","v":0},{"$f":"Dataset[[#This Row],[2024/25 To - Spending review Topic 1]]+Dataset[[#This Row],[2024/25 To - Spending review Topic 2]]+Dataset[[#This Row],[2024/25 To - Spending review Topic 3]]+Dataset[[#This Row],[2024/25 To - Spending review Topic 4]]+Dataset[[#This Row],[2024/25 To - Other reallocations]]","v":0},{"$f":"Dataset[[#This Row],[2025/26 To - Spending review Topic 1]]+Dataset[[#This Row],[2025/26 To - Spending review Topic 2]]+Dataset[[#This Row],[2025/26 To - Spending review Topic 3]]+Dataset[[#This Row],[2025/26 To - Spending review Topic 4]]+Dataset[[#This Row],[2025/26 To - Other reallocations]]","v":0},{"$f":"Dataset[[#This Row],[2026/27 To - Spending review Topic 1]]+Dataset[[#This Row],[2026/27 To - Spending review Topic 2]]+Dataset[[#This Row],[2026/27 To - Spending review Topic 3]]+Dataset[[#This Row],[2026/27 To - Spending review Topic 4]]+Dataset[[#This Row],[2026/27 To - Other reallocations]]","v":0},{"$f":"Dataset[[#This Row],[2024/25 Reduction]]+Dataset[[#This Row],[2024/25 From - Total]]","v":0},{"$f":"Dataset[[#This Row],[2025/26 Reduction]]+Dataset[[#This Row],[2025/26 From - Total]]","v":0},{"$f":"Dataset[[#This Row],[2026/27 Reduction]]+Dataset[[#This Row],[2026/27 From - Total]]","v":0},{"$f":"Dataset[[#This Row],[2023/24 Reduction]]","v":0},{"$f":"SUM(Dataset[[#This Row],[2024/25 Reduction]],Dataset[[#This Row],[2024/25 From - Total]],Dataset[[#This Row],[2024/25 To - Total]])","v":0},{"$f":"SUM(Dataset[[#This Row],[2025/26 Reduction]],Dataset[[#This Row],[2025/26 From - Total]],Dataset[[#This Row],[2025/26 To - Total]])","v":0},{"$f":"SUM(Dataset[[#This Row],[2026/27 Reduction]],Dataset[[#This Row],[2026/27 From - Total]],Dataset[[#This Row],[2026/27 To - Total]])","v":0},{"$f":"Dataset[[#This Row],[2023/24 Baseline]]+Dataset[[#This Row],[2023/24 Total change]]","v":0},{"$f":"Dataset[[#This Row],[2024/25 Baseline]]+Dataset[[#This Row],[2024/25 Total change]]","v":0},{"$f":"Dataset[[#This Row],[2025/26 Baseline]]+Dataset[[#This Row],[2025/26 Total change]]","v":0},{"$f":"Dataset[[#This Row],[2026/27 Baseline]]+Dataset[[#This Row],[2026/27 Total change]]","v":0}]
["NAT|Non-transfer item","26|Inventory: Food and food supplies","2024_25","MTEF2024",26,1,4,44141,254,"26","01","04","044141","000254","26|01|04","01","01","02","23","23","01|01|02|23|23","National","Military Veterans","Administration","Internal Audit","Non-transfer item","Current","Current payments","Goods and services","Inventory: Food and food supplies","Inventory: Food and food supplies","Peace and security","Defence and state security","NAT",0,0,0,0,0,0,0,0,0,0,0,null,null,null,null,null,null,null,null,null,null,null,null,null,null,null,null,null,null,null,null,null,null,null,null,null,null,null,null,null,null,null,null,null,null,{"$f":"Dataset[[#This Row],[2024/25 From - Spending review Topic 1]]+Dataset[[#This Row],[2024/25 From - Spending review Topic 2]]+Dataset[[#This Row],[2024/25 From - Spending review Topic 3]]+Dataset[[#This Row],[2024/25 From - Spending review Topic 4]]+Dataset[[#This Row],[2024/25 From - Other reallocations]]","v":0},{"$f":"Dataset[[#This Row],[2025/26 From - Spending review Topic 1]]+Dataset[[#This Row],[2025/26 From - Spending review Topic 2]]+Dataset[[#This Row],[2025/26 From - Spending review Topic 3]]+Dataset[[#This Row],[2025/26 From - Spending review Topic 4]]+Dataset[[#This Row],[2025/26 From - Other reallocations]]","v":0},{"$f":"Dataset[[#This Row],[2026/27 From - Spending review Topic 1]]+Dataset[[#This Row],[2026/27 From - Spending review Topic 2]]+Dataset[[#This Row],[2026/27 From - Spending review Topic 3]]+Dataset[[#This Row],[2026/27 From - Spending review Topic 4]]+Dataset[[#This Row],[2026/27 From - Other reallocations]]","v":0},{"$f":"Dataset[[#This Row],[2024/25 To - Spending review Topic 1]]+Dataset[[#This Row],[2024/25 To - Spending review Topic 2]]+Dataset[[#This Row],[2024/25 To - Spending review Topic 3]]+Dataset[[#This Row],[2024/25 To - Spending review Topic 4]]+Dataset[[#This Row],[2024/25 To - Other reallocations]]","v":0},{"$f":"Dataset[[#This Row],[2025/26 To - Spending review Topic 1]]+Dataset[[#This Row],[2025/26 To - Spending review Topic 2]]+Dataset[[#This Row],[2025/26 To - Spending review Topic 3]]+Dataset[[#This Row],[2025/26 To - Spending review Topic 4]]+Dataset[[#This Row],[2025/26 To - Other reallocations]]","v":0},{"$f":"Dataset[[#This Row],[2026/27 To - Spending review Topic 1]]+Dataset[[#This Row],[2026/27 To - Spending review Topic 2]]+Dataset[[#This Row],[2026/27 To - Spending review Topic 3]]+Dataset[[#This Row],[2026/27 To - Spending review Topic 4]]+Dataset[[#This Row],[2026/27 To - Other reallocations]]","v":0},{"$f":"Dataset[[#This Row],[2024/25 Reduction]]+Dataset[[#This Row],[2024/25 From - Total]]","v":0},{"$f":"Dataset[[#This Row],[2025/26 Reduction]]+Dataset[[#This Row],[2025/26 From - Total]]","v":0},{"$f":"Dataset[[#This Row],[2026/27 Reduction]]+Dataset[[#This Row],[2026/27 From - Total]]","v":0},{"$f":"Dataset[[#This Row],[2023/24 Reduction]]","v":0},{"$f":"SUM(Dataset[[#This Row],[2024/25 Reduction]],Dataset[[#This Row],[2024/25 From - Total]],Dataset[[#This Row],[2024/25 To - Total]])","v":0},{"$f":"SUM(Dataset[[#This Row],[2025/26 Reduction]],Dataset[[#This Row],[2025/26 From - Total]],Dataset[[#This Row],[2025/26 To - Total]])","v":0},{"$f":"SUM(Dataset[[#This Row],[2026/27 Reduction]],Dataset[[#This Row],[2026/27 From - Total]],Dataset[[#This Row],[2026/27 To - Total]])","v":0},{"$f":"Dataset[[#This Row],[2023/24 Baseline]]+Dataset[[#This Row],[2023/24 Total change]]","v":0},{"$f":"Dataset[[#This Row],[2024/25 Baseline]]+Dataset[[#This Row],[2024/25 Total change]]","v":0},{"$f":"Dataset[[#This Row],[2025/26 Baseline]]+Dataset[[#This Row],[2025/26 Total change]]","v":0},{"$f":"Dataset[[#This Row],[2026/27 Baseline]]+Dataset[[#This Row],[2026/27 Total change]]","v":0}]
["NAT|Non-transfer item","26|Inventory: Fuel, oil and gas","2024_25","MTEF2024",26,1,4,44142,255,"26","01","04","044142","000255","26|01|04","01","01","02","24","24","01|01|02|24|24","National","Military Veterans","Administration","Internal Audit","Non-transfer item","Current","Current payments","Goods and services","Inventory: Fuel, oil and gas","Inventory: Fuel, oil and gas","Peace and security","Defence and state security","NAT",0,0,0,0,0,0,0,0,0,0,0,null,null,null,null,null,null,null,null,null,null,null,null,null,null,null,null,null,null,null,null,null,null,null,null,null,null,null,null,null,null,null,null,null,null,{"$f":"Dataset[[#This Row],[2024/25 From - Spending review Topic 1]]+Dataset[[#This Row],[2024/25 From - Spending review Topic 2]]+Dataset[[#This Row],[2024/25 From - Spending review Topic 3]]+Dataset[[#This Row],[2024/25 From - Spending review Topic 4]]+Dataset[[#This Row],[2024/25 From - Other reallocations]]","v":0},{"$f":"Dataset[[#This Row],[2025/26 From - Spending review Topic 1]]+Dataset[[#This Row],[2025/26 From - Spending review Topic 2]]+Dataset[[#This Row],[2025/26 From - Spending review Topic 3]]+Dataset[[#This Row],[2025/26 From - Spending review Topic 4]]+Dataset[[#This Row],[2025/26 From - Other reallocations]]","v":0},{"$f":"Dataset[[#This Row],[2026/27 From - Spending review Topic 1]]+Dataset[[#This Row],[2026/27 From - Spending review Topic 2]]+Dataset[[#This Row],[2026/27 From - Spending review Topic 3]]+Dataset[[#This Row],[2026/27 From - Spending review Topic 4]]+Dataset[[#This Row],[2026/27 From - Other reallocations]]","v":0},{"$f":"Dataset[[#This Row],[2024/25 To - Spending review Topic 1]]+Dataset[[#This Row],[2024/25 To - Spending review Topic 2]]+Dataset[[#This Row],[2024/25 To - Spending review Topic 3]]+Dataset[[#This Row],[2024/25 To - Spending review Topic 4]]+Dataset[[#This Row],[2024/25 To - Other reallocations]]","v":0},{"$f":"Dataset[[#This Row],[2025/26 To - Spending review Topic 1]]+Dataset[[#This Row],[2025/26 To - Spending review Topic 2]]+Dataset[[#This Row],[2025/26 To - Spending review Topic 3]]+Dataset[[#This Row],[2025/26 To - Spending review Topic 4]]+Dataset[[#This Row],[2025/26 To - Other reallocations]]","v":0},{"$f":"Dataset[[#This Row],[2026/27 To - Spending review Topic 1]]+Dataset[[#This Row],[2026/27 To - Spending review Topic 2]]+Dataset[[#This Row],[2026/27 To - Spending review Topic 3]]+Dataset[[#This Row],[2026/27 To - Spending review Topic 4]]+Dataset[[#This Row],[2026/27 To - Other reallocations]]","v":0},{"$f":"Dataset[[#This Row],[2024/25 Reduction]]+Dataset[[#This Row],[2024/25 From - Total]]","v":0},{"$f":"Dataset[[#This Row],[2025/26 Reduction]]+Dataset[[#This Row],[2025/26 From - Total]]","v":0},{"$f":"Dataset[[#This Row],[2026/27 Reduction]]+Dataset[[#This Row],[2026/27 From - Total]]","v":0},{"$f":"Dataset[[#This Row],[2023/24 Reduction]]","v":0},{"$f":"SUM(Dataset[[#This Row],[2024/25 Reduction]],Dataset[[#This Row],[2024/25 From - Total]],Dataset[[#This Row],[2024/25 To - Total]])","v":0},{"$f":"SUM(Dataset[[#This Row],[2025/26 Reduction]],Dataset[[#This Row],[2025/26 From - Total]],Dataset[[#This Row],[2025/26 To - Total]])","v":0},{"$f":"SUM(Dataset[[#This Row],[2026/27 Reduction]],Dataset[[#This Row],[2026/27 From - Total]],Dataset[[#This Row],[2026/27 To - Total]])","v":0},{"$f":"Dataset[[#This Row],[2023/24 Baseline]]+Dataset[[#This Row],[2023/24 Total change]]","v":0},{"$f":"Dataset[[#This Row],[2024/25 Baseline]]+Dataset[[#This Row],[2024/25 Total change]]","v":0},{"$f":"Dataset[[#This Row],[2025/26 Baseline]]+Dataset[[#This Row],[2025/26 Total change]]","v":0},{"$f":"Dataset[[#This Row],[2026/27 Baseline]]+Dataset[[#This Row],[2026/27 Total change]]","v":0}]
["NAT|Non-transfer item","26|Inventory: Learner and teacher support material","2024_25","MTEF2024",26,1,4,44143,256,"26","01","04","044143","000256","26|01|04","01","01","02","25","25","01|01|02|25|25","National","Military Veterans","Administration","Internal Audit","Non-transfer item","Current","Current payments","Goods and services","Inventory: Learner and teacher support material","Inventory: Learner and teacher support material","Peace and security","Defence and state security","NAT",0,0,0,0,0,0,0,0,0,0,0,null,null,null,null,null,null,null,null,null,null,null,null,null,null,null,null,null,null,null,null,null,null,null,null,null,null,null,null,null,null,null,null,null,null,{"$f":"Dataset[[#This Row],[2024/25 From - Spending review Topic 1]]+Dataset[[#This Row],[2024/25 From - Spending review Topic 2]]+Dataset[[#This Row],[2024/25 From - Spending review Topic 3]]+Dataset[[#This Row],[2024/25 From - Spending review Topic 4]]+Dataset[[#This Row],[2024/25 From - Other reallocations]]","v":0},{"$f":"Dataset[[#This Row],[2025/26 From - Spending review Topic 1]]+Dataset[[#This Row],[2025/26 From - Spending review Topic 2]]+Dataset[[#This Row],[2025/26 From - Spending review Topic 3]]+Dataset[[#This Row],[2025/26 From - Spending review Topic 4]]+Dataset[[#This Row],[2025/26 From - Other reallocations]]","v":0},{"$f":"Dataset[[#This Row],[2026/27 From - Spending review Topic 1]]+Dataset[[#This Row],[2026/27 From - Spending review Topic 2]]+Dataset[[#This Row],[2026/27 From - Spending review Topic 3]]+Dataset[[#This Row],[2026/27 From - Spending review Topic 4]]+Dataset[[#This Row],[2026/27 From - Other reallocations]]","v":0},{"$f":"Dataset[[#This Row],[2024/25 To - Spending review Topic 1]]+Dataset[[#This Row],[2024/25 To - Spending review Topic 2]]+Dataset[[#This Row],[2024/25 To - Spending review Topic 3]]+Dataset[[#This Row],[2024/25 To - Spending review Topic 4]]+Dataset[[#This Row],[2024/25 To - Other reallocations]]","v":0},{"$f":"Dataset[[#This Row],[2025/26 To - Spending review Topic 1]]+Dataset[[#This Row],[2025/26 To - Spending review Topic 2]]+Dataset[[#This Row],[2025/26 To - Spending review Topic 3]]+Dataset[[#This Row],[2025/26 To - Spending review Topic 4]]+Dataset[[#This Row],[2025/26 To - Other reallocations]]","v":0},{"$f":"Dataset[[#This Row],[2026/27 To - Spending review Topic 1]]+Dataset[[#This Row],[2026/27 To - Spending review Topic 2]]+Dataset[[#This Row],[2026/27 To - Spending review Topic 3]]+Dataset[[#This Row],[2026/27 To - Spending review Topic 4]]+Dataset[[#This Row],[2026/27 To - Other reallocations]]","v":0},{"$f":"Dataset[[#This Row],[2024/25 Reduction]]+Dataset[[#This Row],[2024/25 From - Total]]","v":0},{"$f":"Dataset[[#This Row],[2025/26 Reduction]]+Dataset[[#This Row],[2025/26 From - Total]]","v":0},{"$f":"Dataset[[#This Row],[2026/27 Reduction]]+Dataset[[#This Row],[2026/27 From - Total]]","v":0},{"$f":"Dataset[[#This Row],[2023/24 Reduction]]","v":0},{"$f":"SUM(Dataset[[#This Row],[2024/25 Reduction]],Dataset[[#This Row],[2024/25 From - Total]],Dataset[[#This Row],[2024/25 To - Total]])","v":0},{"$f":"SUM(Dataset[[#This Row],[2025/26 Reduction]],Dataset[[#This Row],[2025/26 From - Total]],Dataset[[#This Row],[2025/26 To - Total]])","v":0},{"$f":"SUM(Dataset[[#This Row],[2026/27 Reduction]],Dataset[[#This Row],[2026/27 From - Total]],Dataset[[#This Row],[2026/27 To - Total]])","v":0},{"$f":"Dataset[[#This Row],[2023/24 Baseline]]+Dataset[[#This Row],[2023/24 Total change]]","v":0},{"$f":"Dataset[[#This Row],[2024/25 Baseline]]+Dataset[[#This Row],[2024/25 Total change]]","v":0},{"$f":"Dataset[[#This Row],[2025/26 Baseline]]+Dataset[[#This Row],[2025/26 Total change]]","v":0},{"$f":"Dataset[[#This Row],[2026/27 Baseline]]+Dataset[[#This Row],[2026/27 Total change]]","v":0}]
["NAT|Non-transfer item","26|Inventory: Materials and supplies","2024_25","MTEF2024",26,1,4,44144,257,"26","01","04","044144","000257","26|01|04","01","01","02","26","26","01|01|02|26|26","National","Military Veterans","Administration","Internal Audit","Non-transfer item","Current","Current payments","Goods and services","Inventory: Materials and supplies","Inventory: Materials and supplies","Peace and security","Defence and state security","NAT",0,0,0,0,0,0,0,0,0,0,0,null,null,null,null,null,null,null,null,null,null,null,null,null,null,null,null,null,null,null,null,null,null,null,null,null,null,null,null,null,null,null,null,null,null,{"$f":"Dataset[[#This Row],[2024/25 From - Spending review Topic 1]]+Dataset[[#This Row],[2024/25 From - Spending review Topic 2]]+Dataset[[#This Row],[2024/25 From - Spending review Topic 3]]+Dataset[[#This Row],[2024/25 From - Spending review Topic 4]]+Dataset[[#This Row],[2024/25 From - Other reallocations]]","v":0},{"$f":"Dataset[[#This Row],[2025/26 From - Spending review Topic 1]]+Dataset[[#This Row],[2025/26 From - Spending review Topic 2]]+Dataset[[#This Row],[2025/26 From - Spending review Topic 3]]+Dataset[[#This Row],[2025/26 From - Spending review Topic 4]]+Dataset[[#This Row],[2025/26 From - Other reallocations]]","v":0},{"$f":"Dataset[[#This Row],[2026/27 From - Spending review Topic 1]]+Dataset[[#This Row],[2026/27 From - Spending review Topic 2]]+Dataset[[#This Row],[2026/27 From - Spending review Topic 3]]+Dataset[[#This Row],[2026/27 From - Spending review Topic 4]]+Dataset[[#This Row],[2026/27 From - Other reallocations]]","v":0},{"$f":"Dataset[[#This Row],[2024/25 To - Spending review Topic 1]]+Dataset[[#This Row],[2024/25 To - Spending review Topic 2]]+Dataset[[#This Row],[2024/25 To - Spending review Topic 3]]+Dataset[[#This Row],[2024/25 To - Spending review Topic 4]]+Dataset[[#This Row],[2024/25 To - Other reallocations]]","v":0},{"$f":"Dataset[[#This Row],[2025/26 To - Spending review Topic 1]]+Dataset[[#This Row],[2025/26 To - Spending review Topic 2]]+Dataset[[#This Row],[2025/26 To - Spending review Topic 3]]+Dataset[[#This Row],[2025/26 To - Spending review Topic 4]]+Dataset[[#This Row],[2025/26 To - Other reallocations]]","v":0},{"$f":"Dataset[[#This Row],[2026/27 To - Spending review Topic 1]]+Dataset[[#This Row],[2026/27 To - Spending review Topic 2]]+Dataset[[#This Row],[2026/27 To - Spending review Topic 3]]+Dataset[[#This Row],[2026/27 To - Spending review Topic 4]]+Dataset[[#This Row],[2026/27 To - Other reallocations]]","v":0},{"$f":"Dataset[[#This Row],[2024/25 Reduction]]+Dataset[[#This Row],[2024/25 From - Total]]","v":0},{"$f":"Dataset[[#This Row],[2025/26 Reduction]]+Dataset[[#This Row],[2025/26 From - Total]]","v":0},{"$f":"Dataset[[#This Row],[2026/27 Reduction]]+Dataset[[#This Row],[2026/27 From - Total]]","v":0},{"$f":"Dataset[[#This Row],[2023/24 Reduction]]","v":0},{"$f":"SUM(Dataset[[#This Row],[2024/25 Reduction]],Dataset[[#This Row],[2024/25 From - Total]],Dataset[[#This Row],[2024/25 To - Total]])","v":0},{"$f":"SUM(Dataset[[#This Row],[2025/26 Reduction]],Dataset[[#This Row],[2025/26 From - Total]],Dataset[[#This Row],[2025/26 To - Total]])","v":0},{"$f":"SUM(Dataset[[#This Row],[2026/27 Reduction]],Dataset[[#This Row],[2026/27 From - Total]],Dataset[[#This Row],[2026/27 To - Total]])","v":0},{"$f":"Dataset[[#This Row],[2023/24 Baseline]]+Dataset[[#This Row],[2023/24 Total change]]","v":0},{"$f":"Dataset[[#This Row],[2024/25 Baseline]]+Dataset[[#This Row],[2024/25 Total change]]","v":0},{"$f":"Dataset[[#This Row],[2025/26 Baseline]]+Dataset[[#This Row],[2025/26 Total change]]","v":0},{"$f":"Dataset[[#This Row],[2026/27 Baseline]]+Dataset[[#This Row],[2026/27 Total change]]","v":0}]
["NAT|Non-transfer item","26|Inventory: Medical supplies","2024_25","MTEF2024",26,1,4,44145,258,"26","01","04","044145","000258","26|01|04","01","01","02","27","27","01|01|02|27|27","National","Military Veterans","Administration","Internal Audit","Non-transfer item","Current","Current payments","Goods and services","Inventory: Medical supplies","Inventory: Medical supplies","Peace and security","Defence and state security","NAT",0,0,0,0,0,0,0,0,0,0,0,null,null,null,null,null,null,null,null,null,null,null,null,null,null,null,null,null,null,null,null,null,null,null,null,null,null,null,null,null,null,null,null,null,null,{"$f":"Dataset[[#This Row],[2024/25 From - Spending review Topic 1]]+Dataset[[#This Row],[2024/25 From - Spending review Topic 2]]+Dataset[[#This Row],[2024/25 From - Spending review Topic 3]]+Dataset[[#This Row],[2024/25 From - Spending review Topic 4]]+Dataset[[#This Row],[2024/25 From - Other reallocations]]","v":0},{"$f":"Dataset[[#This Row],[2025/26 From - Spending review Topic 1]]+Dataset[[#This Row],[2025/26 From - Spending review Topic 2]]+Dataset[[#This Row],[2025/26 From - Spending review Topic 3]]+Dataset[[#This Row],[2025/26 From - Spending review Topic 4]]+Dataset[[#This Row],[2025/26 From - Other reallocations]]","v":0},{"$f":"Dataset[[#This Row],[2026/27 From - Spending review Topic 1]]+Dataset[[#This Row],[2026/27 From - Spending review Topic 2]]+Dataset[[#This Row],[2026/27 From - Spending review Topic 3]]+Dataset[[#This Row],[2026/27 From - Spending review Topic 4]]+Dataset[[#This Row],[2026/27 From - Other reallocations]]","v":0},{"$f":"Dataset[[#This Row],[2024/25 To - Spending review Topic 1]]+Dataset[[#This Row],[2024/25 To - Spending review Topic 2]]+Dataset[[#This Row],[2024/25 To - Spending review Topic 3]]+Dataset[[#This Row],[2024/25 To - Spending review Topic 4]]+Dataset[[#This Row],[2024/25 To - Other reallocations]]","v":0},{"$f":"Dataset[[#This Row],[2025/26 To - Spending review Topic 1]]+Dataset[[#This Row],[2025/26 To - Spending review Topic 2]]+Dataset[[#This Row],[2025/26 To - Spending review Topic 3]]+Dataset[[#This Row],[2025/26 To - Spending review Topic 4]]+Dataset[[#This Row],[2025/26 To - Other reallocations]]","v":0},{"$f":"Dataset[[#This Row],[2026/27 To - Spending review Topic 1]]+Dataset[[#This Row],[2026/27 To - Spending review Topic 2]]+Dataset[[#This Row],[2026/27 To - Spending review Topic 3]]+Dataset[[#This Row],[2026/27 To - Spending review Topic 4]]+Dataset[[#This Row],[2026/27 To - Other reallocations]]","v":0},{"$f":"Dataset[[#This Row],[2024/25 Reduction]]+Dataset[[#This Row],[2024/25 From - Total]]","v":0},{"$f":"Dataset[[#This Row],[2025/26 Reduction]]+Dataset[[#This Row],[2025/26 From - Total]]","v":0},{"$f":"Dataset[[#This Row],[2026/27 Reduction]]+Dataset[[#This Row],[2026/27 From - Total]]","v":0},{"$f":"Dataset[[#This Row],[2023/24 Reduction]]","v":0},{"$f":"SUM(Dataset[[#This Row],[2024/25 Reduction]],Dataset[[#This Row],[2024/25 From - Total]],Dataset[[#This Row],[2024/25 To - Total]])","v":0},{"$f":"SUM(Dataset[[#This Row],[2025/26 Reduction]],Dataset[[#This Row],[2025/26 From - Total]],Dataset[[#This Row],[2025/26 To - Total]])","v":0},{"$f":"SUM(Dataset[[#This Row],[2026/27 Reduction]],Dataset[[#This Row],[2026/27 From - Total]],Dataset[[#This Row],[2026/27 To - Total]])","v":0},{"$f":"Dataset[[#This Row],[2023/24 Baseline]]+Dataset[[#This Row],[2023/24 Total change]]","v":0},{"$f":"Dataset[[#This Row],[2024/25 Baseline]]+Dataset[[#This Row],[2024/25 Total change]]","v":0},{"$f":"Dataset[[#This Row],[2025/26 Baseline]]+Dataset[[#This Row],[2025/26 Total change]]","v":0},{"$f":"Dataset[[#This Row],[2026/27 Baseline]]+Dataset[[#This Row],[2026/27 Total change]]","v":0}]
["NAT|Non-transfer item","26|Inventory: Medicine","2024_25","MTEF2024",26,1,4,44146,259,"26","01","04","044146","000259","26|01|04","01","01","02","28","28","01|01|02|28|28","National","Military Veterans","Administration","Internal Audit","Non-transfer item","Current","Current payments","Goods and services","Inventory: Medicine","Inventory: Medicine","Peace and security","Defence and state security","NAT",0,0,0,0,0,0,0,0,0,0,0,null,null,null,null,null,null,null,null,null,null,null,null,null,null,null,null,null,null,null,null,null,null,null,null,null,null,null,null,null,null,null,null,null,null,{"$f":"Dataset[[#This Row],[2024/25 From - Spending review Topic 1]]+Dataset[[#This Row],[2024/25 From - Spending review Topic 2]]+Dataset[[#This Row],[2024/25 From - Spending review Topic 3]]+Dataset[[#This Row],[2024/25 From - Spending review Topic 4]]+Dataset[[#This Row],[2024/25 From - Other reallocations]]","v":0},{"$f":"Dataset[[#This Row],[2025/26 From - Spending review Topic 1]]+Dataset[[#This Row],[2025/26 From - Spending review Topic 2]]+Dataset[[#This Row],[2025/26 From - Spending review Topic 3]]+Dataset[[#This Row],[2025/26 From - Spending review Topic 4]]+Dataset[[#This Row],[2025/26 From - Other reallocations]]","v":0},{"$f":"Dataset[[#This Row],[2026/27 From - Spending review Topic 1]]+Dataset[[#This Row],[2026/27 From - Spending review Topic 2]]+Dataset[[#This Row],[2026/27 From - Spending review Topic 3]]+Dataset[[#This Row],[2026/27 From - Spending review Topic 4]]+Dataset[[#This Row],[2026/27 From - Other reallocations]]","v":0},{"$f":"Dataset[[#This Row],[2024/25 To - Spending review Topic 1]]+Dataset[[#This Row],[2024/25 To - Spending review Topic 2]]+Dataset[[#This Row],[2024/25 To - Spending review Topic 3]]+Dataset[[#This Row],[2024/25 To - Spending review Topic 4]]+Dataset[[#This Row],[2024/25 To - Other reallocations]]","v":0},{"$f":"Dataset[[#This Row],[2025/26 To - Spending review Topic 1]]+Dataset[[#This Row],[2025/26 To - Spending review Topic 2]]+Dataset[[#This Row],[2025/26 To - Spending review Topic 3]]+Dataset[[#This Row],[2025/26 To - Spending review Topic 4]]+Dataset[[#This Row],[2025/26 To - Other reallocations]]","v":0},{"$f":"Dataset[[#This Row],[2026/27 To - Spending review Topic 1]]+Dataset[[#This Row],[2026/27 To - Spending review Topic 2]]+Dataset[[#This Row],[2026/27 To - Spending review Topic 3]]+Dataset[[#This Row],[2026/27 To - Spending review Topic 4]]+Dataset[[#This Row],[2026/27 To - Other reallocations]]","v":0},{"$f":"Dataset[[#This Row],[2024/25 Reduction]]+Dataset[[#This Row],[2024/25 From - Total]]","v":0},{"$f":"Dataset[[#This Row],[2025/26 Reduction]]+Dataset[[#This Row],[2025/26 From - Total]]","v":0},{"$f":"Dataset[[#This Row],[2026/27 Reduction]]+Dataset[[#This Row],[2026/27 From - Total]]","v":0},{"$f":"Dataset[[#This Row],[2023/24 Reduction]]","v":0},{"$f":"SUM(Dataset[[#This Row],[2024/25 Reduction]],Dataset[[#This Row],[2024/25 From - Total]],Dataset[[#This Row],[2024/25 To - Total]])","v":0},{"$f":"SUM(Dataset[[#This Row],[2025/26 Reduction]],Dataset[[#This Row],[2025/26 From - Total]],Dataset[[#This Row],[2025/26 To - Total]])","v":0},{"$f":"SUM(Dataset[[#This Row],[2026/27 Reduction]],Dataset[[#This Row],[2026/27 From - Total]],Dataset[[#This Row],[2026/27 To - Total]])","v":0},{"$f":"Dataset[[#This Row],[2023/24 Baseline]]+Dataset[[#This Row],[2023/24 Total change]]","v":0},{"$f":"Dataset[[#This Row],[2024/25 Baseline]]+Dataset[[#This Row],[2024/25 Total change]]","v":0},{"$f":"Dataset[[#This Row],[2025/26 Baseline]]+Dataset[[#This Row],[2025/26 Total change]]","v":0},{"$f":"Dataset[[#This Row],[2026/27 Baseline]]+Dataset[[#This Row],[2026/27 Total change]]","v":0}]
["NAT|Non-transfer item","26|Medsas inventory interface","2024_25","MTEF2024",26,1,4,44147,260,"26","01","04","044147","000260","26|01|04","01","01","02","29","29","01|01|02|29|29","National","Military Veterans","Administration","Internal Audit","Non-transfer item","Current","Current payments","Goods and services","Medsas inventory interface","Medsas inventory interface","Peace and security","Defence and state security","NAT",0,0,0,0,0,0,0,0,0,0,0,null,null,null,null,null,null,null,null,null,null,null,null,null,null,null,null,null,null,null,null,null,null,null,null,null,null,null,null,null,null,null,null,null,null,{"$f":"Dataset[[#This Row],[2024/25 From - Spending review Topic 1]]+Dataset[[#This Row],[2024/25 From - Spending review Topic 2]]+Dataset[[#This Row],[2024/25 From - Spending review Topic 3]]+Dataset[[#This Row],[2024/25 From - Spending review Topic 4]]+Dataset[[#This Row],[2024/25 From - Other reallocations]]","v":0},{"$f":"Dataset[[#This Row],[2025/26 From - Spending review Topic 1]]+Dataset[[#This Row],[2025/26 From - Spending review Topic 2]]+Dataset[[#This Row],[2025/26 From - Spending review Topic 3]]+Dataset[[#This Row],[2025/26 From - Spending review Topic 4]]+Dataset[[#This Row],[2025/26 From - Other reallocations]]","v":0},{"$f":"Dataset[[#This Row],[2026/27 From - Spending review Topic 1]]+Dataset[[#This Row],[2026/27 From - Spending review Topic 2]]+Dataset[[#This Row],[2026/27 From - Spending review Topic 3]]+Dataset[[#This Row],[2026/27 From - Spending review Topic 4]]+Dataset[[#This Row],[2026/27 From - Other reallocations]]","v":0},{"$f":"Dataset[[#This Row],[2024/25 To - Spending review Topic 1]]+Dataset[[#This Row],[2024/25 To - Spending review Topic 2]]+Dataset[[#This Row],[2024/25 To - Spending review Topic 3]]+Dataset[[#This Row],[2024/25 To - Spending review Topic 4]]+Dataset[[#This Row],[2024/25 To - Other reallocations]]","v":0},{"$f":"Dataset[[#This Row],[2025/26 To - Spending review Topic 1]]+Dataset[[#This Row],[2025/26 To - Spending review Topic 2]]+Dataset[[#This Row],[2025/26 To - Spending review Topic 3]]+Dataset[[#This Row],[2025/26 To - Spending review Topic 4]]+Dataset[[#This Row],[2025/26 To - Other reallocations]]","v":0},{"$f":"Dataset[[#This Row],[2026/27 To - Spending review Topic 1]]+Dataset[[#This Row],[2026/27 To - Spending review Topic 2]]+Dataset[[#This Row],[2026/27 To - Spending review Topic 3]]+Dataset[[#This Row],[2026/27 To - Spending review Topic 4]]+Dataset[[#This Row],[2026/27 To - Other reallocations]]","v":0},{"$f":"Dataset[[#This Row],[2024/25 Reduction]]+Dataset[[#This Row],[2024/25 From - Total]]","v":0},{"$f":"Dataset[[#This Row],[2025/26 Reduction]]+Dataset[[#This Row],[2025/26 From - Total]]","v":0},{"$f":"Dataset[[#This Row],[2026/27 Reduction]]+Dataset[[#This Row],[2026/27 From - Total]]","v":0},{"$f":"Dataset[[#This Row],[2023/24 Reduction]]","v":0},{"$f":"SUM(Dataset[[#This Row],[2024/25 Reduction]],Dataset[[#This Row],[2024/25 From - Total]],Dataset[[#This Row],[2024/25 To - Total]])","v":0},{"$f":"SUM(Dataset[[#This Row],[2025/26 Reduction]],Dataset[[#This Row],[2025/26 From - Total]],Dataset[[#This Row],[2025/26 To - Total]])","v":0},{"$f":"SUM(Dataset[[#This Row],[2026/27 Reduction]],Dataset[[#This Row],[2026/27 From - Total]],Dataset[[#This Row],[2026/27 To - Total]])","v":0},{"$f":"Dataset[[#This Row],[2023/24 Baseline]]+Dataset[[#This Row],[2023/24 Total change]]","v":0},{"$f":"Dataset[[#This Row],[2024/25 Baseline]]+Dataset[[#This Row],[2024/25 Total change]]","v":0},{"$f":"Dataset[[#This Row],[2025/26 Baseline]]+Dataset[[#This Row],[2025/26 Total change]]","v":0},{"$f":"Dataset[[#This Row],[2026/27 Baseline]]+Dataset[[#This Row],[2026/27 Total change]]","v":0}]
["NAT|Non-transfer item","26|Inventory: Other supplies","2024_25","MTEF2024",26,1,4,44148,261,"26","01","04","044148","000261","26|01|04","01","01","02","30","30","01|01|02|30|30","National","Military Veterans","Administration","Internal Audit","Non-transfer item","Current","Current payments","Goods and services","Inventory: Other supplies","Inventory: Other supplies","Peace and security","Defence and state security","NAT",0,0,0,0,0,0,0,0,0,0,0,null,null,null,null,null,null,null,null,null,null,null,null,null,null,null,null,null,null,null,null,null,null,null,null,null,null,null,null,null,null,null,null,null,null,{"$f":"Dataset[[#This Row],[2024/25 From - Spending review Topic 1]]+Dataset[[#This Row],[2024/25 From - Spending review Topic 2]]+Dataset[[#This Row],[2024/25 From - Spending review Topic 3]]+Dataset[[#This Row],[2024/25 From - Spending review Topic 4]]+Dataset[[#This Row],[2024/25 From - Other reallocations]]","v":0},{"$f":"Dataset[[#This Row],[2025/26 From - Spending review Topic 1]]+Dataset[[#This Row],[2025/26 From - Spending review Topic 2]]+Dataset[[#This Row],[2025/26 From - Spending review Topic 3]]+Dataset[[#This Row],[2025/26 From - Spending review Topic 4]]+Dataset[[#This Row],[2025/26 From - Other reallocations]]","v":0},{"$f":"Dataset[[#This Row],[2026/27 From - Spending review Topic 1]]+Dataset[[#This Row],[2026/27 From - Spending review Topic 2]]+Dataset[[#This Row],[2026/27 From - Spending review Topic 3]]+Dataset[[#This Row],[2026/27 From - Spending review Topic 4]]+Dataset[[#This Row],[2026/27 From - Other reallocations]]","v":0},{"$f":"Dataset[[#This Row],[2024/25 To - Spending review Topic 1]]+Dataset[[#This Row],[2024/25 To - Spending review Topic 2]]+Dataset[[#This Row],[2024/25 To - Spending review Topic 3]]+Dataset[[#This Row],[2024/25 To - Spending review Topic 4]]+Dataset[[#This Row],[2024/25 To - Other reallocations]]","v":0},{"$f":"Dataset[[#This Row],[2025/26 To - Spending review Topic 1]]+Dataset[[#This Row],[2025/26 To - Spending review Topic 2]]+Dataset[[#This Row],[2025/26 To - Spending review Topic 3]]+Dataset[[#This Row],[2025/26 To - Spending review Topic 4]]+Dataset[[#This Row],[2025/26 To - Other reallocations]]","v":0},{"$f":"Dataset[[#This Row],[2026/27 To - Spending review Topic 1]]+Dataset[[#This Row],[2026/27 To - Spending review Topic 2]]+Dataset[[#This Row],[2026/27 To - Spending review Topic 3]]+Dataset[[#This Row],[2026/27 To - Spending review Topic 4]]+Dataset[[#This Row],[2026/27 To - Other reallocations]]","v":0},{"$f":"Dataset[[#This Row],[2024/25 Reduction]]+Dataset[[#This Row],[2024/25 From - Total]]","v":0},{"$f":"Dataset[[#This Row],[2025/26 Reduction]]+Dataset[[#This Row],[2025/26 From - Total]]","v":0},{"$f":"Dataset[[#This Row],[2026/27 Reduction]]+Dataset[[#This Row],[2026/27 From - Total]]","v":0},{"$f":"Dataset[[#This Row],[2023/24 Reduction]]","v":0},{"$f":"SUM(Dataset[[#This Row],[2024/25 Reduction]],Dataset[[#This Row],[2024/25 From - Total]],Dataset[[#This Row],[2024/25 To - Total]])","v":0},{"$f":"SUM(Dataset[[#This Row],[2025/26 Reduction]],Dataset[[#This Row],[2025/26 From - Total]],Dataset[[#This Row],[2025/26 To - Total]])","v":0},{"$f":"SUM(Dataset[[#This Row],[2026/27 Reduction]],Dataset[[#This Row],[2026/27 From - Total]],Dataset[[#This Row],[2026/27 To - Total]])","v":0},{"$f":"Dataset[[#This Row],[2023/24 Baseline]]+Dataset[[#This Row],[2023/24 Total change]]","v":0},{"$f":"Dataset[[#This Row],[2024/25 Baseline]]+Dataset[[#This Row],[2024/25 Total change]]","v":0},{"$f":"Dataset[[#This Row],[2025/26 Baseline]]+Dataset[[#This Row],[2025/26 Total change]]","v":0},{"$f":"Dataset[[#This Row],[2026/27 Baseline]]+Dataset[[#This Row],[2026/27 Total change]]","v":0}]
["NAT|Non-transfer item","26|Consumable supplies","2024_25","MTEF2024",26,1,4,44149,262,"26","01","04","044149","000262","26|01|04","01","01","02","31","31","01|01|02|31|31","National","Military Veterans","Administration","Internal Audit","Non-transfer item","Current","Current payments","Goods and services","Consumable supplies","Consumable supplies","Peace and security","Defence and state security","NAT",2,0,0,34,2,2,0,6,8,10,10,null,null,null,null,null,null,null,null,null,null,null,null,null,null,null,null,null,null,null,null,null,null,null,null,null,null,null,null,null,null,null,null,null,null,{"$f":"Dataset[[#This Row],[2024/25 From - Spending review Topic 1]]+Dataset[[#This Row],[2024/25 From - Spending review Topic 2]]+Dataset[[#This Row],[2024/25 From - Spending review Topic 3]]+Dataset[[#This Row],[2024/25 From - Spending review Topic 4]]+Dataset[[#This Row],[2024/25 From - Other reallocations]]","v":0},{"$f":"Dataset[[#This Row],[2025/26 From - Spending review Topic 1]]+Dataset[[#This Row],[2025/26 From - Spending review Topic 2]]+Dataset[[#This Row],[2025/26 From - Spending review Topic 3]]+Dataset[[#This Row],[2025/26 From - Spending review Topic 4]]+Dataset[[#This Row],[2025/26 From - Other reallocations]]","v":0},{"$f":"Dataset[[#This Row],[2026/27 From - Spending review Topic 1]]+Dataset[[#This Row],[2026/27 From - Spending review Topic 2]]+Dataset[[#This Row],[2026/27 From - Spending review Topic 3]]+Dataset[[#This Row],[2026/27 From - Spending review Topic 4]]+Dataset[[#This Row],[2026/27 From - Other reallocations]]","v":0},{"$f":"Dataset[[#This Row],[2024/25 To - Spending review Topic 1]]+Dataset[[#This Row],[2024/25 To - Spending review Topic 2]]+Dataset[[#This Row],[2024/25 To - Spending review Topic 3]]+Dataset[[#This Row],[2024/25 To - Spending review Topic 4]]+Dataset[[#This Row],[2024/25 To - Other reallocations]]","v":0},{"$f":"Dataset[[#This Row],[2025/26 To - Spending review Topic 1]]+Dataset[[#This Row],[2025/26 To - Spending review Topic 2]]+Dataset[[#This Row],[2025/26 To - Spending review Topic 3]]+Dataset[[#This Row],[2025/26 To - Spending review Topic 4]]+Dataset[[#This Row],[2025/26 To - Other reallocations]]","v":0},{"$f":"Dataset[[#This Row],[2026/27 To - Spending review Topic 1]]+Dataset[[#This Row],[2026/27 To - Spending review Topic 2]]+Dataset[[#This Row],[2026/27 To - Spending review Topic 3]]+Dataset[[#This Row],[2026/27 To - Spending review Topic 4]]+Dataset[[#This Row],[2026/27 To - Other reallocations]]","v":0},{"$f":"Dataset[[#This Row],[2024/25 Reduction]]+Dataset[[#This Row],[2024/25 From - Total]]","v":0},{"$f":"Dataset[[#This Row],[2025/26 Reduction]]+Dataset[[#This Row],[2025/26 From - Total]]","v":0},{"$f":"Dataset[[#This Row],[2026/27 Reduction]]+Dataset[[#This Row],[2026/27 From - Total]]","v":0},{"$f":"Dataset[[#This Row],[2023/24 Reduction]]","v":0},{"$f":"SUM(Dataset[[#This Row],[2024/25 Reduction]],Dataset[[#This Row],[2024/25 From - Total]],Dataset[[#This Row],[2024/25 To - Total]])","v":0},{"$f":"SUM(Dataset[[#This Row],[2025/26 Reduction]],Dataset[[#This Row],[2025/26 From - Total]],Dataset[[#This Row],[2025/26 To - Total]])","v":0},{"$f":"SUM(Dataset[[#This Row],[2026/27 Reduction]],Dataset[[#This Row],[2026/27 From - Total]],Dataset[[#This Row],[2026/27 To - Total]])","v":0},{"$f":"Dataset[[#This Row],[2023/24 Baseline]]+Dataset[[#This Row],[2023/24 Total change]]","v":6},{"$f":"Dataset[[#This Row],[2024/25 Baseline]]+Dataset[[#This Row],[2024/25 Total change]]","v":8},{"$f":"Dataset[[#This Row],[2025/26 Baseline]]+Dataset[[#This Row],[2025/26 Total change]]","v":10},{"$f":"Dataset[[#This Row],[2026/27 Baseline]]+Dataset[[#This Row],[2026/27 Total change]]","v":10}]
["NAT|Non-transfer item","26|Consumables: Stationery, printing and office supplies","2024_25","MTEF2024",26,1,4,44150,263,"26","01","04","044150","000263","26|01|04","01","01","02","32","32","01|01|02|32|32","National","Military Veterans","Administration","Internal Audit","Non-transfer item","Current","Current payments","Goods and services","Consumables: Stationery, printing and office supplies","Consumables: Stationery, printing and office supplies","Peace and security","Defence and state security","NAT",57,0,0,74,44,44,0,102,106,109,114,null,null,null,null,null,null,null,null,null,null,null,null,null,null,null,null,null,null,null,null,null,null,null,null,null,null,null,null,null,null,null,null,null,null,{"$f":"Dataset[[#This Row],[2024/25 From - Spending review Topic 1]]+Dataset[[#This Row],[2024/25 From - Spending review Topic 2]]+Dataset[[#This Row],[2024/25 From - Spending review Topic 3]]+Dataset[[#This Row],[2024/25 From - Spending review Topic 4]]+Dataset[[#This Row],[2024/25 From - Other reallocations]]","v":0},{"$f":"Dataset[[#This Row],[2025/26 From - Spending review Topic 1]]+Dataset[[#This Row],[2025/26 From - Spending review Topic 2]]+Dataset[[#This Row],[2025/26 From - Spending review Topic 3]]+Dataset[[#This Row],[2025/26 From - Spending review Topic 4]]+Dataset[[#This Row],[2025/26 From - Other reallocations]]","v":0},{"$f":"Dataset[[#This Row],[2026/27 From - Spending review Topic 1]]+Dataset[[#This Row],[2026/27 From - Spending review Topic 2]]+Dataset[[#This Row],[2026/27 From - Spending review Topic 3]]+Dataset[[#This Row],[2026/27 From - Spending review Topic 4]]+Dataset[[#This Row],[2026/27 From - Other reallocations]]","v":0},{"$f":"Dataset[[#This Row],[2024/25 To - Spending review Topic 1]]+Dataset[[#This Row],[2024/25 To - Spending review Topic 2]]+Dataset[[#This Row],[2024/25 To - Spending review Topic 3]]+Dataset[[#This Row],[2024/25 To - Spending review Topic 4]]+Dataset[[#This Row],[2024/25 To - Other reallocations]]","v":0},{"$f":"Dataset[[#This Row],[2025/26 To - Spending review Topic 1]]+Dataset[[#This Row],[2025/26 To - Spending review Topic 2]]+Dataset[[#This Row],[2025/26 To - Spending review Topic 3]]+Dataset[[#This Row],[2025/26 To - Spending review Topic 4]]+Dataset[[#This Row],[2025/26 To - Other reallocations]]","v":0},{"$f":"Dataset[[#This Row],[2026/27 To - Spending review Topic 1]]+Dataset[[#This Row],[2026/27 To - Spending review Topic 2]]+Dataset[[#This Row],[2026/27 To - Spending review Topic 3]]+Dataset[[#This Row],[2026/27 To - Spending review Topic 4]]+Dataset[[#This Row],[2026/27 To - Other reallocations]]","v":0},{"$f":"Dataset[[#This Row],[2024/25 Reduction]]+Dataset[[#This Row],[2024/25 From - Total]]","v":0},{"$f":"Dataset[[#This Row],[2025/26 Reduction]]+Dataset[[#This Row],[2025/26 From - Total]]","v":0},{"$f":"Dataset[[#This Row],[2026/27 Reduction]]+Dataset[[#This Row],[2026/27 From - Total]]","v":0},{"$f":"Dataset[[#This Row],[2023/24 Reduction]]","v":0},{"$f":"SUM(Dataset[[#This Row],[2024/25 Reduction]],Dataset[[#This Row],[2024/25 From - Total]],Dataset[[#This Row],[2024/25 To - Total]])","v":0},{"$f":"SUM(Dataset[[#This Row],[2025/26 Reduction]],Dataset[[#This Row],[2025/26 From - Total]],Dataset[[#This Row],[2025/26 To - Total]])","v":0},{"$f":"SUM(Dataset[[#This Row],[2026/27 Reduction]],Dataset[[#This Row],[2026/27 From - Total]],Dataset[[#This Row],[2026/27 To - Total]])","v":0},{"$f":"Dataset[[#This Row],[2023/24 Baseline]]+Dataset[[#This Row],[2023/24 Total change]]","v":102},{"$f":"Dataset[[#This Row],[2024/25 Baseline]]+Dataset[[#This Row],[2024/25 Total change]]","v":106},{"$f":"Dataset[[#This Row],[2025/26 Baseline]]+Dataset[[#This Row],[2025/26 Total change]]","v":109},{"$f":"Dataset[[#This Row],[2026/27 Baseline]]+Dataset[[#This Row],[2026/27 Total change]]","v":114}]
["NAT|Non-transfer item","26|Operating leases","2024_25","MTEF2024",26,1,4,44151,264,"26","01","04","044151","000264","26|01|04","01","01","02","33","33","01|01|02|33|33","National","Military Veterans","Administration","Internal Audit","Non-transfer item","Current","Current payments","Goods and services","Operating leases","Operating leases","Peace and security","Defence and state security","NAT",0,0,0,0,0,0,0,0,0,0,0,null,null,null,null,null,null,null,null,null,null,null,null,null,null,null,null,null,null,null,null,null,null,null,null,null,null,null,null,null,null,null,null,null,null,{"$f":"Dataset[[#This Row],[2024/25 From - Spending review Topic 1]]+Dataset[[#This Row],[2024/25 From - Spending review Topic 2]]+Dataset[[#This Row],[2024/25 From - Spending review Topic 3]]+Dataset[[#This Row],[2024/25 From - Spending review Topic 4]]+Dataset[[#This Row],[2024/25 From - Other reallocations]]","v":0},{"$f":"Dataset[[#This Row],[2025/26 From - Spending review Topic 1]]+Dataset[[#This Row],[2025/26 From - Spending review Topic 2]]+Dataset[[#This Row],[2025/26 From - Spending review Topic 3]]+Dataset[[#This Row],[2025/26 From - Spending review Topic 4]]+Dataset[[#This Row],[2025/26 From - Other reallocations]]","v":0},{"$f":"Dataset[[#This Row],[2026/27 From - Spending review Topic 1]]+Dataset[[#This Row],[2026/27 From - Spending review Topic 2]]+Dataset[[#This Row],[2026/27 From - Spending review Topic 3]]+Dataset[[#This Row],[2026/27 From - Spending review Topic 4]]+Dataset[[#This Row],[2026/27 From - Other reallocations]]","v":0},{"$f":"Dataset[[#This Row],[2024/25 To - Spending review Topic 1]]+Dataset[[#This Row],[2024/25 To - Spending review Topic 2]]+Dataset[[#This Row],[2024/25 To - Spending review Topic 3]]+Dataset[[#This Row],[2024/25 To - Spending review Topic 4]]+Dataset[[#This Row],[2024/25 To - Other reallocations]]","v":0},{"$f":"Dataset[[#This Row],[2025/26 To - Spending review Topic 1]]+Dataset[[#This Row],[2025/26 To - Spending review Topic 2]]+Dataset[[#This Row],[2025/26 To - Spending review Topic 3]]+Dataset[[#This Row],[2025/26 To - Spending review Topic 4]]+Dataset[[#This Row],[2025/26 To - Other reallocations]]","v":0},{"$f":"Dataset[[#This Row],[2026/27 To - Spending review Topic 1]]+Dataset[[#This Row],[2026/27 To - Spending review Topic 2]]+Dataset[[#This Row],[2026/27 To - Spending review Topic 3]]+Dataset[[#This Row],[2026/27 To - Spending review Topic 4]]+Dataset[[#This Row],[2026/27 To - Other reallocations]]","v":0},{"$f":"Dataset[[#This Row],[2024/25 Reduction]]+Dataset[[#This Row],[2024/25 From - Total]]","v":0},{"$f":"Dataset[[#This Row],[2025/26 Reduction]]+Dataset[[#This Row],[2025/26 From - Total]]","v":0},{"$f":"Dataset[[#This Row],[2026/27 Reduction]]+Dataset[[#This Row],[2026/27 From - Total]]","v":0},{"$f":"Dataset[[#This Row],[2023/24 Reduction]]","v":0},{"$f":"SUM(Dataset[[#This Row],[2024/25 Reduction]],Dataset[[#This Row],[2024/25 From - Total]],Dataset[[#This Row],[2024/25 To - Total]])","v":0},{"$f":"SUM(Dataset[[#This Row],[2025/26 Reduction]],Dataset[[#This Row],[2025/26 From - Total]],Dataset[[#This Row],[2025/26 To - Total]])","v":0},{"$f":"SUM(Dataset[[#This Row],[2026/27 Reduction]],Dataset[[#This Row],[2026/27 From - Total]],Dataset[[#This Row],[2026/27 To - Total]])","v":0},{"$f":"Dataset[[#This Row],[2023/24 Baseline]]+Dataset[[#This Row],[2023/24 Total change]]","v":0},{"$f":"Dataset[[#This Row],[2024/25 Baseline]]+Dataset[[#This Row],[2024/25 Total change]]","v":0},{"$f":"Dataset[[#This Row],[2025/26 Baseline]]+Dataset[[#This Row],[2025/26 Total change]]","v":0},{"$f":"Dataset[[#This Row],[2026/27 Baseline]]+Dataset[[#This Row],[2026/27 Total change]]","v":0}]
["NAT|Non-transfer item","26|Rental and hiring","2024_25","MTEF2024",26,1,4,44152,265,"26","01","04","044152","000265","26|01|04","01","01","02","34","34","01|01|02|34|34","National","Military Veterans","Administration","Internal Audit","Non-transfer item","Current","Current payments","Goods and services","Rental and hiring","Rental and hiring","Peace and security","Defence and state security","NAT",0,0,0,0,0,0,0,0,0,0,0,null,null,null,null,null,null,null,null,null,null,null,null,null,null,null,null,null,null,null,null,null,null,null,null,null,null,null,null,null,null,null,null,null,null,{"$f":"Dataset[[#This Row],[2024/25 From - Spending review Topic 1]]+Dataset[[#This Row],[2024/25 From - Spending review Topic 2]]+Dataset[[#This Row],[2024/25 From - Spending review Topic 3]]+Dataset[[#This Row],[2024/25 From - Spending review Topic 4]]+Dataset[[#This Row],[2024/25 From - Other reallocations]]","v":0},{"$f":"Dataset[[#This Row],[2025/26 From - Spending review Topic 1]]+Dataset[[#This Row],[2025/26 From - Spending review Topic 2]]+Dataset[[#This Row],[2025/26 From - Spending review Topic 3]]+Dataset[[#This Row],[2025/26 From - Spending review Topic 4]]+Dataset[[#This Row],[2025/26 From - Other reallocations]]","v":0},{"$f":"Dataset[[#This Row],[2026/27 From - Spending review Topic 1]]+Dataset[[#This Row],[2026/27 From - Spending review Topic 2]]+Dataset[[#This Row],[2026/27 From - Spending review Topic 3]]+Dataset[[#This Row],[2026/27 From - Spending review Topic 4]]+Dataset[[#This Row],[2026/27 From - Other reallocations]]","v":0},{"$f":"Dataset[[#This Row],[2024/25 To - Spending review Topic 1]]+Dataset[[#This Row],[2024/25 To - Spending review Topic 2]]+Dataset[[#This Row],[2024/25 To - Spending review Topic 3]]+Dataset[[#This Row],[2024/25 To - Spending review Topic 4]]+Dataset[[#This Row],[2024/25 To - Other reallocations]]","v":0},{"$f":"Dataset[[#This Row],[2025/26 To - Spending review Topic 1]]+Dataset[[#This Row],[2025/26 To - Spending review Topic 2]]+Dataset[[#This Row],[2025/26 To - Spending review Topic 3]]+Dataset[[#This Row],[2025/26 To - Spending review Topic 4]]+Dataset[[#This Row],[2025/26 To - Other reallocations]]","v":0},{"$f":"Dataset[[#This Row],[2026/27 To - Spending review Topic 1]]+Dataset[[#This Row],[2026/27 To - Spending review Topic 2]]+Dataset[[#This Row],[2026/27 To - Spending review Topic 3]]+Dataset[[#This Row],[2026/27 To - Spending review Topic 4]]+Dataset[[#This Row],[2026/27 To - Other reallocations]]","v":0},{"$f":"Dataset[[#This Row],[2024/25 Reduction]]+Dataset[[#This Row],[2024/25 From - Total]]","v":0},{"$f":"Dataset[[#This Row],[2025/26 Reduction]]+Dataset[[#This Row],[2025/26 From - Total]]","v":0},{"$f":"Dataset[[#This Row],[2026/27 Reduction]]+Dataset[[#This Row],[2026/27 From - Total]]","v":0},{"$f":"Dataset[[#This Row],[2023/24 Reduction]]","v":0},{"$f":"SUM(Dataset[[#This Row],[2024/25 Reduction]],Dataset[[#This Row],[2024/25 From - Total]],Dataset[[#This Row],[2024/25 To - Total]])","v":0},{"$f":"SUM(Dataset[[#This Row],[2025/26 Reduction]],Dataset[[#This Row],[2025/26 From - Total]],Dataset[[#This Row],[2025/26 To - Total]])","v":0},{"$f":"SUM(Dataset[[#This Row],[2026/27 Reduction]],Dataset[[#This Row],[2026/27 From - Total]],Dataset[[#This Row],[2026/27 To - Total]])","v":0},{"$f":"Dataset[[#This Row],[2023/24 Baseline]]+Dataset[[#This Row],[2023/24 Total change]]","v":0},{"$f":"Dataset[[#This Row],[2024/25 Baseline]]+Dataset[[#This Row],[2024/25 Total change]]","v":0},{"$f":"Dataset[[#This Row],[2025/26 Baseline]]+Dataset[[#This Row],[2025/26 Total change]]","v":0},{"$f":"Dataset[[#This Row],[2026/27 Baseline]]+Dataset[[#This Row],[2026/27 Total change]]","v":0}]
["NAT|Non-transfer item","26|Property payments","2024_25","MTEF2024",26,1,4,44153,266,"26","01","04","044153","000266","26|01|04","01","01","02","35","35","01|01|02|35|35","National","Military Veterans","Administration","Internal Audit","Non-transfer item","Current","Current payments","Goods and services","Property payments","Property payments","Peace and security","Defence and state security","NAT",0,0,0,0,0,0,0,0,0,0,0,null,null,null,null,null,null,null,null,null,null,null,null,null,null,null,null,null,null,null,null,null,null,null,null,null,null,null,null,null,null,null,null,null,null,{"$f":"Dataset[[#This Row],[2024/25 From - Spending review Topic 1]]+Dataset[[#This Row],[2024/25 From - Spending review Topic 2]]+Dataset[[#This Row],[2024/25 From - Spending review Topic 3]]+Dataset[[#This Row],[2024/25 From - Spending review Topic 4]]+Dataset[[#This Row],[2024/25 From - Other reallocations]]","v":0},{"$f":"Dataset[[#This Row],[2025/26 From - Spending review Topic 1]]+Dataset[[#This Row],[2025/26 From - Spending review Topic 2]]+Dataset[[#This Row],[2025/26 From - Spending review Topic 3]]+Dataset[[#This Row],[2025/26 From - Spending review Topic 4]]+Dataset[[#This Row],[2025/26 From - Other reallocations]]","v":0},{"$f":"Dataset[[#This Row],[2026/27 From - Spending review Topic 1]]+Dataset[[#This Row],[2026/27 From - Spending review Topic 2]]+Dataset[[#This Row],[2026/27 From - Spending review Topic 3]]+Dataset[[#This Row],[2026/27 From - Spending review Topic 4]]+Dataset[[#This Row],[2026/27 From - Other reallocations]]","v":0},{"$f":"Dataset[[#This Row],[2024/25 To - Spending review Topic 1]]+Dataset[[#This Row],[2024/25 To - Spending review Topic 2]]+Dataset[[#This Row],[2024/25 To - Spending review Topic 3]]+Dataset[[#This Row],[2024/25 To - Spending review Topic 4]]+Dataset[[#This Row],[2024/25 To - Other reallocations]]","v":0},{"$f":"Dataset[[#This Row],[2025/26 To - Spending review Topic 1]]+Dataset[[#This Row],[2025/26 To - Spending review Topic 2]]+Dataset[[#This Row],[2025/26 To - Spending review Topic 3]]+Dataset[[#This Row],[2025/26 To - Spending review Topic 4]]+Dataset[[#This Row],[2025/26 To - Other reallocations]]","v":0},{"$f":"Dataset[[#This Row],[2026/27 To - Spending review Topic 1]]+Dataset[[#This Row],[2026/27 To - Spending review Topic 2]]+Dataset[[#This Row],[2026/27 To - Spending review Topic 3]]+Dataset[[#This Row],[2026/27 To - Spending review Topic 4]]+Dataset[[#This Row],[2026/27 To - Other reallocations]]","v":0},{"$f":"Dataset[[#This Row],[2024/25 Reduction]]+Dataset[[#This Row],[2024/25 From - Total]]","v":0},{"$f":"Dataset[[#This Row],[2025/26 Reduction]]+Dataset[[#This Row],[2025/26 From - Total]]","v":0},{"$f":"Dataset[[#This Row],[2026/27 Reduction]]+Dataset[[#This Row],[2026/27 From - Total]]","v":0},{"$f":"Dataset[[#This Row],[2023/24 Reduction]]","v":0},{"$f":"SUM(Dataset[[#This Row],[2024/25 Reduction]],Dataset[[#This Row],[2024/25 From - Total]],Dataset[[#This Row],[2024/25 To - Total]])","v":0},{"$f":"SUM(Dataset[[#This Row],[2025/26 Reduction]],Dataset[[#This Row],[2025/26 From - Total]],Dataset[[#This Row],[2025/26 To - Total]])","v":0},{"$f":"SUM(Dataset[[#This Row],[2026/27 Reduction]],Dataset[[#This Row],[2026/27 From - Total]],Dataset[[#This Row],[2026/27 To - Total]])","v":0},{"$f":"Dataset[[#This Row],[2023/24 Baseline]]+Dataset[[#This Row],[2023/24 Total change]]","v":0},{"$f":"Dataset[[#This Row],[2024/25 Baseline]]+Dataset[[#This Row],[2024/25 Total change]]","v":0},{"$f":"Dataset[[#This Row],[2025/26 Baseline]]+Dataset[[#This Row],[2025/26 Total change]]","v":0},{"$f":"Dataset[[#This Row],[2026/27 Baseline]]+Dataset[[#This Row],[2026/27 Total change]]","v":0}]
["NAT|Non-transfer item","26|Transport provided: Departmental activity","2024_25","MTEF2024",26,1,4,44154,267,"26","01","04","044154","000267","26|01|04","01","01","02","36","36","01|01|02|36|36","National","Military Veterans","Administration","Internal Audit","Non-transfer item","Current","Current payments","Goods and services","Transport provided: Departmental activity","Transport provided: Departmental activity","Peace and security","Defence and state security","NAT",0,0,0,0,0,0,0,0,0,0,0,null,null,null,null,null,null,null,null,null,null,null,null,null,null,null,null,null,null,null,null,null,null,null,null,null,null,null,null,null,null,null,null,null,null,{"$f":"Dataset[[#This Row],[2024/25 From - Spending review Topic 1]]+Dataset[[#This Row],[2024/25 From - Spending review Topic 2]]+Dataset[[#This Row],[2024/25 From - Spending review Topic 3]]+Dataset[[#This Row],[2024/25 From - Spending review Topic 4]]+Dataset[[#This Row],[2024/25 From - Other reallocations]]","v":0},{"$f":"Dataset[[#This Row],[2025/26 From - Spending review Topic 1]]+Dataset[[#This Row],[2025/26 From - Spending review Topic 2]]+Dataset[[#This Row],[2025/26 From - Spending review Topic 3]]+Dataset[[#This Row],[2025/26 From - Spending review Topic 4]]+Dataset[[#This Row],[2025/26 From - Other reallocations]]","v":0},{"$f":"Dataset[[#This Row],[2026/27 From - Spending review Topic 1]]+Dataset[[#This Row],[2026/27 From - Spending review Topic 2]]+Dataset[[#This Row],[2026/27 From - Spending review Topic 3]]+Dataset[[#This Row],[2026/27 From - Spending review Topic 4]]+Dataset[[#This Row],[2026/27 From - Other reallocations]]","v":0},{"$f":"Dataset[[#This Row],[2024/25 To - Spending review Topic 1]]+Dataset[[#This Row],[2024/25 To - Spending review Topic 2]]+Dataset[[#This Row],[2024/25 To - Spending review Topic 3]]+Dataset[[#This Row],[2024/25 To - Spending review Topic 4]]+Dataset[[#This Row],[2024/25 To - Other reallocations]]","v":0},{"$f":"Dataset[[#This Row],[2025/26 To - Spending review Topic 1]]+Dataset[[#This Row],[2025/26 To - Spending review Topic 2]]+Dataset[[#This Row],[2025/26 To - Spending review Topic 3]]+Dataset[[#This Row],[2025/26 To - Spending review Topic 4]]+Dataset[[#This Row],[2025/26 To - Other reallocations]]","v":0},{"$f":"Dataset[[#This Row],[2026/27 To - Spending review Topic 1]]+Dataset[[#This Row],[2026/27 To - Spending review Topic 2]]+Dataset[[#This Row],[2026/27 To - Spending review Topic 3]]+Dataset[[#This Row],[2026/27 To - Spending review Topic 4]]+Dataset[[#This Row],[2026/27 To - Other reallocations]]","v":0},{"$f":"Dataset[[#This Row],[2024/25 Reduction]]+Dataset[[#This Row],[2024/25 From - Total]]","v":0},{"$f":"Dataset[[#This Row],[2025/26 Reduction]]+Dataset[[#This Row],[2025/26 From - Total]]","v":0},{"$f":"Dataset[[#This Row],[2026/27 Reduction]]+Dataset[[#This Row],[2026/27 From - Total]]","v":0},{"$f":"Dataset[[#This Row],[2023/24 Reduction]]","v":0},{"$f":"SUM(Dataset[[#This Row],[2024/25 Reduction]],Dataset[[#This Row],[2024/25 From - Total]],Dataset[[#This Row],[2024/25 To - Total]])","v":0},{"$f":"SUM(Dataset[[#This Row],[2025/26 Reduction]],Dataset[[#This Row],[2025/26 From - Total]],Dataset[[#This Row],[2025/26 To - Total]])","v":0},{"$f":"SUM(Dataset[[#This Row],[2026/27 Reduction]],Dataset[[#This Row],[2026/27 From - Total]],Dataset[[#This Row],[2026/27 To - Total]])","v":0},{"$f":"Dataset[[#This Row],[2023/24 Baseline]]+Dataset[[#This Row],[2023/24 Total change]]","v":0},{"$f":"Dataset[[#This Row],[2024/25 Baseline]]+Dataset[[#This Row],[2024/25 Total change]]","v":0},{"$f":"Dataset[[#This Row],[2025/26 Baseline]]+Dataset[[#This Row],[2025/26 Total change]]","v":0},{"$f":"Dataset[[#This Row],[2026/27 Baseline]]+Dataset[[#This Row],[2026/27 Total change]]","v":0}]
["NAT|Non-transfer item","26|Travel and subsistence","2024_25","MTEF2024",26,1,4,44155,268,"26","01","04","044155","000268","26|01|04","01","01","02","37","37","01|01|02|37|37","National","Military Veterans","Administration","Internal Audit","Non-transfer item","Current","Current payments","Goods and services","Travel and subsistence","Travel and subsistence","Peace and security","Defence and state security","NAT",402,73,9,148,113,113,0,149,365,381,398,null,null,null,null,null,null,null,null,null,null,null,null,null,null,null,null,null,null,null,null,null,null,null,null,null,null,null,null,null,null,null,null,null,null,{"$f":"Dataset[[#This Row],[2024/25 From - Spending review Topic 1]]+Dataset[[#This Row],[2024/25 From - Spending review Topic 2]]+Dataset[[#This Row],[2024/25 From - Spending review Topic 3]]+Dataset[[#This Row],[2024/25 From - Spending review Topic 4]]+Dataset[[#This Row],[2024/25 From - Other reallocations]]","v":0},{"$f":"Dataset[[#This Row],[2025/26 From - Spending review Topic 1]]+Dataset[[#This Row],[2025/26 From - Spending review Topic 2]]+Dataset[[#This Row],[2025/26 From - Spending review Topic 3]]+Dataset[[#This Row],[2025/26 From - Spending review Topic 4]]+Dataset[[#This Row],[2025/26 From - Other reallocations]]","v":0},{"$f":"Dataset[[#This Row],[2026/27 From - Spending review Topic 1]]+Dataset[[#This Row],[2026/27 From - Spending review Topic 2]]+Dataset[[#This Row],[2026/27 From - Spending review Topic 3]]+Dataset[[#This Row],[2026/27 From - Spending review Topic 4]]+Dataset[[#This Row],[2026/27 From - Other reallocations]]","v":0},{"$f":"Dataset[[#This Row],[2024/25 To - Spending review Topic 1]]+Dataset[[#This Row],[2024/25 To - Spending review Topic 2]]+Dataset[[#This Row],[2024/25 To - Spending review Topic 3]]+Dataset[[#This Row],[2024/25 To - Spending review Topic 4]]+Dataset[[#This Row],[2024/25 To - Other reallocations]]","v":0},{"$f":"Dataset[[#This Row],[2025/26 To - Spending review Topic 1]]+Dataset[[#This Row],[2025/26 To - Spending review Topic 2]]+Dataset[[#This Row],[2025/26 To - Spending review Topic 3]]+Dataset[[#This Row],[2025/26 To - Spending review Topic 4]]+Dataset[[#This Row],[2025/26 To - Other reallocations]]","v":0},{"$f":"Dataset[[#This Row],[2026/27 To - Spending review Topic 1]]+Dataset[[#This Row],[2026/27 To - Spending review Topic 2]]+Dataset[[#This Row],[2026/27 To - Spending review Topic 3]]+Dataset[[#This Row],[2026/27 To - Spending review Topic 4]]+Dataset[[#This Row],[2026/27 To - Other reallocations]]","v":0},{"$f":"Dataset[[#This Row],[2024/25 Reduction]]+Dataset[[#This Row],[2024/25 From - Total]]","v":0},{"$f":"Dataset[[#This Row],[2025/26 Reduction]]+Dataset[[#This Row],[2025/26 From - Total]]","v":0},{"$f":"Dataset[[#This Row],[2026/27 Reduction]]+Dataset[[#This Row],[2026/27 From - Total]]","v":0},{"$f":"Dataset[[#This Row],[2023/24 Reduction]]","v":0},{"$f":"SUM(Dataset[[#This Row],[2024/25 Reduction]],Dataset[[#This Row],[2024/25 From - Total]],Dataset[[#This Row],[2024/25 To - Total]])","v":0},{"$f":"SUM(Dataset[[#This Row],[2025/26 Reduction]],Dataset[[#This Row],[2025/26 From - Total]],Dataset[[#This Row],[2025/26 To - Total]])","v":0},{"$f":"SUM(Dataset[[#This Row],[2026/27 Reduction]],Dataset[[#This Row],[2026/27 From - Total]],Dataset[[#This Row],[2026/27 To - Total]])","v":0},{"$f":"Dataset[[#This Row],[2023/24 Baseline]]+Dataset[[#This Row],[2023/24 Total change]]","v":149},{"$f":"Dataset[[#This Row],[2024/25 Baseline]]+Dataset[[#This Row],[2024/25 Total change]]","v":365},{"$f":"Dataset[[#This Row],[2025/26 Baseline]]+Dataset[[#This Row],[2025/26 Total change]]","v":381},{"$f":"Dataset[[#This Row],[2026/27 Baseline]]+Dataset[[#This Row],[2026/27 Total change]]","v":398}]
["NAT|Non-transfer item","26|Training and development","2024_25","MTEF2024",26,1,4,44156,269,"26","01","04","044156","000269","26|01|04","01","01","02","38","38","01|01|02|38|38","National","Military Veterans","Administration","Internal Audit","Non-transfer item","Current","Current payments","Goods and services","Training and development","Training and development","Peace and security","Defence and state security","NAT",0,14,0,0,0,0,0,0,0,0,0,null,null,null,null,null,null,null,null,null,null,null,null,null,null,null,null,null,null,null,null,null,null,null,null,null,null,null,null,null,null,null,null,null,null,{"$f":"Dataset[[#This Row],[2024/25 From - Spending review Topic 1]]+Dataset[[#This Row],[2024/25 From - Spending review Topic 2]]+Dataset[[#This Row],[2024/25 From - Spending review Topic 3]]+Dataset[[#This Row],[2024/25 From - Spending review Topic 4]]+Dataset[[#This Row],[2024/25 From - Other reallocations]]","v":0},{"$f":"Dataset[[#This Row],[2025/26 From - Spending review Topic 1]]+Dataset[[#This Row],[2025/26 From - Spending review Topic 2]]+Dataset[[#This Row],[2025/26 From - Spending review Topic 3]]+Dataset[[#This Row],[2025/26 From - Spending review Topic 4]]+Dataset[[#This Row],[2025/26 From - Other reallocations]]","v":0},{"$f":"Dataset[[#This Row],[2026/27 From - Spending review Topic 1]]+Dataset[[#This Row],[2026/27 From - Spending review Topic 2]]+Dataset[[#This Row],[2026/27 From - Spending review Topic 3]]+Dataset[[#This Row],[2026/27 From - Spending review Topic 4]]+Dataset[[#This Row],[2026/27 From - Other reallocations]]","v":0},{"$f":"Dataset[[#This Row],[2024/25 To - Spending review Topic 1]]+Dataset[[#This Row],[2024/25 To - Spending review Topic 2]]+Dataset[[#This Row],[2024/25 To - Spending review Topic 3]]+Dataset[[#This Row],[2024/25 To - Spending review Topic 4]]+Dataset[[#This Row],[2024/25 To - Other reallocations]]","v":0},{"$f":"Dataset[[#This Row],[2025/26 To - Spending review Topic 1]]+Dataset[[#This Row],[2025/26 To - Spending review Topic 2]]+Dataset[[#This Row],[2025/26 To - Spending review Topic 3]]+Dataset[[#This Row],[2025/26 To - Spending review Topic 4]]+Dataset[[#This Row],[2025/26 To - Other reallocations]]","v":0},{"$f":"Dataset[[#This Row],[2026/27 To - Spending review Topic 1]]+Dataset[[#This Row],[2026/27 To - Spending review Topic 2]]+Dataset[[#This Row],[2026/27 To - Spending review Topic 3]]+Dataset[[#This Row],[2026/27 To - Spending review Topic 4]]+Dataset[[#This Row],[2026/27 To - Other reallocations]]","v":0},{"$f":"Dataset[[#This Row],[2024/25 Reduction]]+Dataset[[#This Row],[2024/25 From - Total]]","v":0},{"$f":"Dataset[[#This Row],[2025/26 Reduction]]+Dataset[[#This Row],[2025/26 From - Total]]","v":0},{"$f":"Dataset[[#This Row],[2026/27 Reduction]]+Dataset[[#This Row],[2026/27 From - Total]]","v":0},{"$f":"Dataset[[#This Row],[2023/24 Reduction]]","v":0},{"$f":"SUM(Dataset[[#This Row],[2024/25 Reduction]],Dataset[[#This Row],[2024/25 From - Total]],Dataset[[#This Row],[2024/25 To - Total]])","v":0},{"$f":"SUM(Dataset[[#This Row],[2025/26 Reduction]],Dataset[[#This Row],[2025/26 From - Total]],Dataset[[#This Row],[2025/26 To - Total]])","v":0},{"$f":"SUM(Dataset[[#This Row],[2026/27 Reduction]],Dataset[[#This Row],[2026/27 From - Total]],Dataset[[#This Row],[2026/27 To - Total]])","v":0},{"$f":"Dataset[[#This Row],[2023/24 Baseline]]+Dataset[[#This Row],[2023/24 Total change]]","v":0},{"$f":"Dataset[[#This Row],[2024/25 Baseline]]+Dataset[[#This Row],[2024/25 Total change]]","v":0},{"$f":"Dataset[[#This Row],[2025/26 Baseline]]+Dataset[[#This Row],[2025/26 Total change]]","v":0},{"$f":"Dataset[[#This Row],[2026/27 Baseline]]+Dataset[[#This Row],[2026/27 Total change]]","v":0}]
["NAT|Non-transfer item","26|Operating payments","2024_25","MTEF2024",26,1,4,44157,270,"26","01","04","044157","000270","26|01|04","01","01","02","39","39","01|01|02|39|39","National","Military Veterans","Administration","Internal Audit","Non-transfer item","Current","Current payments","Goods and services","Operating payments","Operating payments","Peace and security","Defence and state security","NAT",7,0,9,94,20,20,0,50,55,68,71,null,null,null,null,null,null,null,null,null,null,null,null,null,null,null,null,null,null,null,null,null,null,null,null,null,null,null,null,null,null,null,null,null,null,{"$f":"Dataset[[#This Row],[2024/25 From - Spending review Topic 1]]+Dataset[[#This Row],[2024/25 From - Spending review Topic 2]]+Dataset[[#This Row],[2024/25 From - Spending review Topic 3]]+Dataset[[#This Row],[2024/25 From - Spending review Topic 4]]+Dataset[[#This Row],[2024/25 From - Other reallocations]]","v":0},{"$f":"Dataset[[#This Row],[2025/26 From - Spending review Topic 1]]+Dataset[[#This Row],[2025/26 From - Spending review Topic 2]]+Dataset[[#This Row],[2025/26 From - Spending review Topic 3]]+Dataset[[#This Row],[2025/26 From - Spending review Topic 4]]+Dataset[[#This Row],[2025/26 From - Other reallocations]]","v":0},{"$f":"Dataset[[#This Row],[2026/27 From - Spending review Topic 1]]+Dataset[[#This Row],[2026/27 From - Spending review Topic 2]]+Dataset[[#This Row],[2026/27 From - Spending review Topic 3]]+Dataset[[#This Row],[2026/27 From - Spending review Topic 4]]+Dataset[[#This Row],[2026/27 From - Other reallocations]]","v":0},{"$f":"Dataset[[#This Row],[2024/25 To - Spending review Topic 1]]+Dataset[[#This Row],[2024/25 To - Spending review Topic 2]]+Dataset[[#This Row],[2024/25 To - Spending review Topic 3]]+Dataset[[#This Row],[2024/25 To - Spending review Topic 4]]+Dataset[[#This Row],[2024/25 To - Other reallocations]]","v":0},{"$f":"Dataset[[#This Row],[2025/26 To - Spending review Topic 1]]+Dataset[[#This Row],[2025/26 To - Spending review Topic 2]]+Dataset[[#This Row],[2025/26 To - Spending review Topic 3]]+Dataset[[#This Row],[2025/26 To - Spending review Topic 4]]+Dataset[[#This Row],[2025/26 To - Other reallocations]]","v":0},{"$f":"Dataset[[#This Row],[2026/27 To - Spending review Topic 1]]+Dataset[[#This Row],[2026/27 To - Spending review Topic 2]]+Dataset[[#This Row],[2026/27 To - Spending review Topic 3]]+Dataset[[#This Row],[2026/27 To - Spending review Topic 4]]+Dataset[[#This Row],[2026/27 To - Other reallocations]]","v":0},{"$f":"Dataset[[#This Row],[2024/25 Reduction]]+Dataset[[#This Row],[2024/25 From - Total]]","v":0},{"$f":"Dataset[[#This Row],[2025/26 Reduction]]+Dataset[[#This Row],[2025/26 From - Total]]","v":0},{"$f":"Dataset[[#This Row],[2026/27 Reduction]]+Dataset[[#This Row],[2026/27 From - Total]]","v":0},{"$f":"Dataset[[#This Row],[2023/24 Reduction]]","v":0},{"$f":"SUM(Dataset[[#This Row],[2024/25 Reduction]],Dataset[[#This Row],[2024/25 From - Total]],Dataset[[#This Row],[2024/25 To - Total]])","v":0},{"$f":"SUM(Dataset[[#This Row],[2025/26 Reduction]],Dataset[[#This Row],[2025/26 From - Total]],Dataset[[#This Row],[2025/26 To - Total]])","v":0},{"$f":"SUM(Dataset[[#This Row],[2026/27 Reduction]],Dataset[[#This Row],[2026/27 From - Total]],Dataset[[#This Row],[2026/27 To - Total]])","v":0},{"$f":"Dataset[[#This Row],[2023/24 Baseline]]+Dataset[[#This Row],[2023/24 Total change]]","v":50},{"$f":"Dataset[[#This Row],[2024/25 Baseline]]+Dataset[[#This Row],[2024/25 Total change]]","v":55},{"$f":"Dataset[[#This Row],[2025/26 Baseline]]+Dataset[[#This Row],[2025/26 Total change]]","v":68},{"$f":"Dataset[[#This Row],[2026/27 Baseline]]+Dataset[[#This Row],[2026/27 Total change]]","v":71}]
["NAT|Non-transfer item","26|Venues and facilities","2024_25","MTEF2024",26,1,4,44158,271,"26","01","04","044158","000271","26|01|04","01","01","02","40","40","01|01|02|40|40","National","Military Veterans","Administration","Internal Audit","Non-transfer item","Current","Current payments","Goods and services","Venues and facilities","Venues and facilities","Peace and security","Defence and state security","NAT",0,0,0,103,13,13,0,0,0,0,0,null,null,null,null,null,null,null,null,null,null,null,null,null,null,null,null,null,null,null,null,null,null,null,null,null,null,null,null,null,null,null,null,null,null,{"$f":"Dataset[[#This Row],[2024/25 From - Spending review Topic 1]]+Dataset[[#This Row],[2024/25 From - Spending review Topic 2]]+Dataset[[#This Row],[2024/25 From - Spending review Topic 3]]+Dataset[[#This Row],[2024/25 From - Spending review Topic 4]]+Dataset[[#This Row],[2024/25 From - Other reallocations]]","v":0},{"$f":"Dataset[[#This Row],[2025/26 From - Spending review Topic 1]]+Dataset[[#This Row],[2025/26 From - Spending review Topic 2]]+Dataset[[#This Row],[2025/26 From - Spending review Topic 3]]+Dataset[[#This Row],[2025/26 From - Spending review Topic 4]]+Dataset[[#This Row],[2025/26 From - Other reallocations]]","v":0},{"$f":"Dataset[[#This Row],[2026/27 From - Spending review Topic 1]]+Dataset[[#This Row],[2026/27 From - Spending review Topic 2]]+Dataset[[#This Row],[2026/27 From - Spending review Topic 3]]+Dataset[[#This Row],[2026/27 From - Spending review Topic 4]]+Dataset[[#This Row],[2026/27 From - Other reallocations]]","v":0},{"$f":"Dataset[[#This Row],[2024/25 To - Spending review Topic 1]]+Dataset[[#This Row],[2024/25 To - Spending review Topic 2]]+Dataset[[#This Row],[2024/25 To - Spending review Topic 3]]+Dataset[[#This Row],[2024/25 To - Spending review Topic 4]]+Dataset[[#This Row],[2024/25 To - Other reallocations]]","v":0},{"$f":"Dataset[[#This Row],[2025/26 To - Spending review Topic 1]]+Dataset[[#This Row],[2025/26 To - Spending review Topic 2]]+Dataset[[#This Row],[2025/26 To - Spending review Topic 3]]+Dataset[[#This Row],[2025/26 To - Spending review Topic 4]]+Dataset[[#This Row],[2025/26 To - Other reallocations]]","v":0},{"$f":"Dataset[[#This Row],[2026/27 To - Spending review Topic 1]]+Dataset[[#This Row],[2026/27 To - Spending review Topic 2]]+Dataset[[#This Row],[2026/27 To - Spending review Topic 3]]+Dataset[[#This Row],[2026/27 To - Spending review Topic 4]]+Dataset[[#This Row],[2026/27 To - Other reallocations]]","v":0},{"$f":"Dataset[[#This Row],[2024/25 Reduction]]+Dataset[[#This Row],[2024/25 From - Total]]","v":0},{"$f":"Dataset[[#This Row],[2025/26 Reduction]]+Dataset[[#This Row],[2025/26 From - Total]]","v":0},{"$f":"Dataset[[#This Row],[2026/27 Reduction]]+Dataset[[#This Row],[2026/27 From - Total]]","v":0},{"$f":"Dataset[[#This Row],[2023/24 Reduction]]","v":0},{"$f":"SUM(Dataset[[#This Row],[2024/25 Reduction]],Dataset[[#This Row],[2024/25 From - Total]],Dataset[[#This Row],[2024/25 To - Total]])","v":0},{"$f":"SUM(Dataset[[#This Row],[2025/26 Reduction]],Dataset[[#This Row],[2025/26 From - Total]],Dataset[[#This Row],[2025/26 To - Total]])","v":0},{"$f":"SUM(Dataset[[#This Row],[2026/27 Reduction]],Dataset[[#This Row],[2026/27 From - Total]],Dataset[[#This Row],[2026/27 To - Total]])","v":0},{"$f":"Dataset[[#This Row],[2023/24 Baseline]]+Dataset[[#This Row],[2023/24 Total change]]","v":0},{"$f":"Dataset[[#This Row],[2024/25 Baseline]]+Dataset[[#This Row],[2024/25 Total change]]","v":0},{"$f":"Dataset[[#This Row],[2025/26 Baseline]]+Dataset[[#This Row],[2025/26 Total change]]","v":0},{"$f":"Dataset[[#This Row],[2026/27 Baseline]]+Dataset[[#This Row],[2026/27 Total change]]","v":0}]
["NAT|Non-transfer item","26|Interest (Incl. interest on unitary payments (PPP))","2024_25","MTEF2024",26,1,4,44159,272,"26","01","04","044159","000272","26|01|04","01","01","03","41","41","01|01|03|41|41","National","Military Veterans","Administration","Internal Audit","Non-transfer item","Current","Current payments","Interest and rent on land","Interest (Incl. interest on unitary payments (PPP))","Interest (Incl. interest on unitary payments (PPP))","Peace and security","Defence and state security","NAT",0,0,0,0,0,0,0,0,0,0,0,null,null,null,null,null,null,null,null,null,null,null,null,null,null,null,null,null,null,null,null,null,null,null,null,null,null,null,null,null,null,null,null,null,null,{"$f":"Dataset[[#This Row],[2024/25 From - Spending review Topic 1]]+Dataset[[#This Row],[2024/25 From - Spending review Topic 2]]+Dataset[[#This Row],[2024/25 From - Spending review Topic 3]]+Dataset[[#This Row],[2024/25 From - Spending review Topic 4]]+Dataset[[#This Row],[2024/25 From - Other reallocations]]","v":0},{"$f":"Dataset[[#This Row],[2025/26 From - Spending review Topic 1]]+Dataset[[#This Row],[2025/26 From - Spending review Topic 2]]+Dataset[[#This Row],[2025/26 From - Spending review Topic 3]]+Dataset[[#This Row],[2025/26 From - Spending review Topic 4]]+Dataset[[#This Row],[2025/26 From - Other reallocations]]","v":0},{"$f":"Dataset[[#This Row],[2026/27 From - Spending review Topic 1]]+Dataset[[#This Row],[2026/27 From - Spending review Topic 2]]+Dataset[[#This Row],[2026/27 From - Spending review Topic 3]]+Dataset[[#This Row],[2026/27 From - Spending review Topic 4]]+Dataset[[#This Row],[2026/27 From - Other reallocations]]","v":0},{"$f":"Dataset[[#This Row],[2024/25 To - Spending review Topic 1]]+Dataset[[#This Row],[2024/25 To - Spending review Topic 2]]+Dataset[[#This Row],[2024/25 To - Spending review Topic 3]]+Dataset[[#This Row],[2024/25 To - Spending review Topic 4]]+Dataset[[#This Row],[2024/25 To - Other reallocations]]","v":0},{"$f":"Dataset[[#This Row],[2025/26 To - Spending review Topic 1]]+Dataset[[#This Row],[2025/26 To - Spending review Topic 2]]+Dataset[[#This Row],[2025/26 To - Spending review Topic 3]]+Dataset[[#This Row],[2025/26 To - Spending review Topic 4]]+Dataset[[#This Row],[2025/26 To - Other reallocations]]","v":0},{"$f":"Dataset[[#This Row],[2026/27 To - Spending review Topic 1]]+Dataset[[#This Row],[2026/27 To - Spending review Topic 2]]+Dataset[[#This Row],[2026/27 To - Spending review Topic 3]]+Dataset[[#This Row],[2026/27 To - Spending review Topic 4]]+Dataset[[#This Row],[2026/27 To - Other reallocations]]","v":0},{"$f":"Dataset[[#This Row],[2024/25 Reduction]]+Dataset[[#This Row],[2024/25 From - Total]]","v":0},{"$f":"Dataset[[#This Row],[2025/26 Reduction]]+Dataset[[#This Row],[2025/26 From - Total]]","v":0},{"$f":"Dataset[[#This Row],[2026/27 Reduction]]+Dataset[[#This Row],[2026/27 From - Total]]","v":0},{"$f":"Dataset[[#This Row],[2023/24 Reduction]]","v":0},{"$f":"SUM(Dataset[[#This Row],[2024/25 Reduction]],Dataset[[#This Row],[2024/25 From - Total]],Dataset[[#This Row],[2024/25 To - Total]])","v":0},{"$f":"SUM(Dataset[[#This Row],[2025/26 Reduction]],Dataset[[#This Row],[2025/26 From - Total]],Dataset[[#This Row],[2025/26 To - Total]])","v":0},{"$f":"SUM(Dataset[[#This Row],[2026/27 Reduction]],Dataset[[#This Row],[2026/27 From - Total]],Dataset[[#This Row],[2026/27 To - Total]])","v":0},{"$f":"Dataset[[#This Row],[2023/24 Baseline]]+Dataset[[#This Row],[2023/24 Total change]]","v":0},{"$f":"Dataset[[#This Row],[2024/25 Baseline]]+Dataset[[#This Row],[2024/25 Total change]]","v":0},{"$f":"Dataset[[#This Row],[2025/26 Baseline]]+Dataset[[#This Row],[2025/26 Total change]]","v":0},{"$f":"Dataset[[#This Row],[2026/27 Baseline]]+Dataset[[#This Row],[2026/27 Total change]]","v":0}]
["NAT|Non-transfer item","26|Rent on land","2024_25","MTEF2024",26,1,4,44160,273,"26","01","04","044160","000273","26|01|04","01","01","03","42","42","01|01|03|42|42","National","Military Veterans","Administration","Internal Audit","Non-transfer item","Current","Current payments","Interest and rent on land","Rent on land","Rent on land","Peace and security","Defence and state security","NAT",0,0,0,0,0,0,0,0,0,0,0,null,null,null,null,null,null,null,null,null,null,null,null,null,null,null,null,null,null,null,null,null,null,null,null,null,null,null,null,null,null,null,null,null,null,{"$f":"Dataset[[#This Row],[2024/25 From - Spending review Topic 1]]+Dataset[[#This Row],[2024/25 From - Spending review Topic 2]]+Dataset[[#This Row],[2024/25 From - Spending review Topic 3]]+Dataset[[#This Row],[2024/25 From - Spending review Topic 4]]+Dataset[[#This Row],[2024/25 From - Other reallocations]]","v":0},{"$f":"Dataset[[#This Row],[2025/26 From - Spending review Topic 1]]+Dataset[[#This Row],[2025/26 From - Spending review Topic 2]]+Dataset[[#This Row],[2025/26 From - Spending review Topic 3]]+Dataset[[#This Row],[2025/26 From - Spending review Topic 4]]+Dataset[[#This Row],[2025/26 From - Other reallocations]]","v":0},{"$f":"Dataset[[#This Row],[2026/27 From - Spending review Topic 1]]+Dataset[[#This Row],[2026/27 From - Spending review Topic 2]]+Dataset[[#This Row],[2026/27 From - Spending review Topic 3]]+Dataset[[#This Row],[2026/27 From - Spending review Topic 4]]+Dataset[[#This Row],[2026/27 From - Other reallocations]]","v":0},{"$f":"Dataset[[#This Row],[2024/25 To - Spending review Topic 1]]+Dataset[[#This Row],[2024/25 To - Spending review Topic 2]]+Dataset[[#This Row],[2024/25 To - Spending review Topic 3]]+Dataset[[#This Row],[2024/25 To - Spending review Topic 4]]+Dataset[[#This Row],[2024/25 To - Other reallocations]]","v":0},{"$f":"Dataset[[#This Row],[2025/26 To - Spending review Topic 1]]+Dataset[[#This Row],[2025/26 To - Spending review Topic 2]]+Dataset[[#This Row],[2025/26 To - Spending review Topic 3]]+Dataset[[#This Row],[2025/26 To - Spending review Topic 4]]+Dataset[[#This Row],[2025/26 To - Other reallocations]]","v":0},{"$f":"Dataset[[#This Row],[2026/27 To - Spending review Topic 1]]+Dataset[[#This Row],[2026/27 To - Spending review Topic 2]]+Dataset[[#This Row],[2026/27 To - Spending review Topic 3]]+Dataset[[#This Row],[2026/27 To - Spending review Topic 4]]+Dataset[[#This Row],[2026/27 To - Other reallocations]]","v":0},{"$f":"Dataset[[#This Row],[2024/25 Reduction]]+Dataset[[#This Row],[2024/25 From - Total]]","v":0},{"$f":"Dataset[[#This Row],[2025/26 Reduction]]+Dataset[[#This Row],[2025/26 From - Total]]","v":0},{"$f":"Dataset[[#This Row],[2026/27 Reduction]]+Dataset[[#This Row],[2026/27 From - Total]]","v":0},{"$f":"Dataset[[#This Row],[2023/24 Reduction]]","v":0},{"$f":"SUM(Dataset[[#This Row],[2024/25 Reduction]],Dataset[[#This Row],[2024/25 From - Total]],Dataset[[#This Row],[2024/25 To - Total]])","v":0},{"$f":"SUM(Dataset[[#This Row],[2025/26 Reduction]],Dataset[[#This Row],[2025/26 From - Total]],Dataset[[#This Row],[2025/26 To - Total]])","v":0},{"$f":"SUM(Dataset[[#This Row],[2026/27 Reduction]],Dataset[[#This Row],[2026/27 From - Total]],Dataset[[#This Row],[2026/27 To - Total]])","v":0},{"$f":"Dataset[[#This Row],[2023/24 Baseline]]+Dataset[[#This Row],[2023/24 Total change]]","v":0},{"$f":"Dataset[[#This Row],[2024/25 Baseline]]+Dataset[[#This Row],[2024/25 Total change]]","v":0},{"$f":"Dataset[[#This Row],[2025/26 Baseline]]+Dataset[[#This Row],[2025/26 Total change]]","v":0},{"$f":"Dataset[[#This Row],[2026/27 Baseline]]+Dataset[[#This Row],[2026/27 Total change]]","v":0}]
["NAT|Non-transfer item","26|Provincial Revenue Funds","2024_25","MTEF2024",26,1,4,44161,274,"26","01","04","044161","000274","26|01|04","01","02","04","43","43","01|02|04|43|43","National","Military Veterans","Administration","Internal Audit","Non-transfer item","Current","Transfers and subsidies","Provinces and municipalities","Provinces","Provincial Revenue Funds","Peace and security","Defence and state security","NAT",0,0,0,0,0,0,0,0,0,0,0,null,null,null,null,null,null,null,null,null,null,null,null,null,null,null,null,null,null,null,null,null,null,null,null,null,null,null,null,null,null,null,null,null,null,{"$f":"Dataset[[#This Row],[2024/25 From - Spending review Topic 1]]+Dataset[[#This Row],[2024/25 From - Spending review Topic 2]]+Dataset[[#This Row],[2024/25 From - Spending review Topic 3]]+Dataset[[#This Row],[2024/25 From - Spending review Topic 4]]+Dataset[[#This Row],[2024/25 From - Other reallocations]]","v":0},{"$f":"Dataset[[#This Row],[2025/26 From - Spending review Topic 1]]+Dataset[[#This Row],[2025/26 From - Spending review Topic 2]]+Dataset[[#This Row],[2025/26 From - Spending review Topic 3]]+Dataset[[#This Row],[2025/26 From - Spending review Topic 4]]+Dataset[[#This Row],[2025/26 From - Other reallocations]]","v":0},{"$f":"Dataset[[#This Row],[2026/27 From - Spending review Topic 1]]+Dataset[[#This Row],[2026/27 From - Spending review Topic 2]]+Dataset[[#This Row],[2026/27 From - Spending review Topic 3]]+Dataset[[#This Row],[2026/27 From - Spending review Topic 4]]+Dataset[[#This Row],[2026/27 From - Other reallocations]]","v":0},{"$f":"Dataset[[#This Row],[2024/25 To - Spending review Topic 1]]+Dataset[[#This Row],[2024/25 To - Spending review Topic 2]]+Dataset[[#This Row],[2024/25 To - Spending review Topic 3]]+Dataset[[#This Row],[2024/25 To - Spending review Topic 4]]+Dataset[[#This Row],[2024/25 To - Other reallocations]]","v":0},{"$f":"Dataset[[#This Row],[2025/26 To - Spending review Topic 1]]+Dataset[[#This Row],[2025/26 To - Spending review Topic 2]]+Dataset[[#This Row],[2025/26 To - Spending review Topic 3]]+Dataset[[#This Row],[2025/26 To - Spending review Topic 4]]+Dataset[[#This Row],[2025/26 To - Other reallocations]]","v":0},{"$f":"Dataset[[#This Row],[2026/27 To - Spending review Topic 1]]+Dataset[[#This Row],[2026/27 To - Spending review Topic 2]]+Dataset[[#This Row],[2026/27 To - Spending review Topic 3]]+Dataset[[#This Row],[2026/27 To - Spending review Topic 4]]+Dataset[[#This Row],[2026/27 To - Other reallocations]]","v":0},{"$f":"Dataset[[#This Row],[2024/25 Reduction]]+Dataset[[#This Row],[2024/25 From - Total]]","v":0},{"$f":"Dataset[[#This Row],[2025/26 Reduction]]+Dataset[[#This Row],[2025/26 From - Total]]","v":0},{"$f":"Dataset[[#This Row],[2026/27 Reduction]]+Dataset[[#This Row],[2026/27 From - Total]]","v":0},{"$f":"Dataset[[#This Row],[2023/24 Reduction]]","v":0},{"$f":"SUM(Dataset[[#This Row],[2024/25 Reduction]],Dataset[[#This Row],[2024/25 From - Total]],Dataset[[#This Row],[2024/25 To - Total]])","v":0},{"$f":"SUM(Dataset[[#This Row],[2025/26 Reduction]],Dataset[[#This Row],[2025/26 From - Total]],Dataset[[#This Row],[2025/26 To - Total]])","v":0},{"$f":"SUM(Dataset[[#This Row],[2026/27 Reduction]],Dataset[[#This Row],[2026/27 From - Total]],Dataset[[#This Row],[2026/27 To - Total]])","v":0},{"$f":"Dataset[[#This Row],[2023/24 Baseline]]+Dataset[[#This Row],[2023/24 Total change]]","v":0},{"$f":"Dataset[[#This Row],[2024/25 Baseline]]+Dataset[[#This Row],[2024/25 Total change]]","v":0},{"$f":"Dataset[[#This Row],[2025/26 Baseline]]+Dataset[[#This Row],[2025/26 Total change]]","v":0},{"$f":"Dataset[[#This Row],[2026/27 Baseline]]+Dataset[[#This Row],[2026/27 Total change]]","v":0}]
["NAT|Non-transfer item","26|Provincial agencies and funds","2024_25","MTEF2024",26,1,4,44162,275,"26","01","04","044162","000275","26|01|04","01","02","04","43","44","01|02|04|43|44","National","Military Veterans","Administration","Internal Audit","Non-transfer item","Current","Transfers and subsidies","Provinces and municipalities","Provinces","Provincial agencies and funds","Peace and security","Defence and state security","NAT",0,0,0,0,0,0,0,0,0,0,0,null,null,null,null,null,null,null,null,null,null,null,null,null,null,null,null,null,null,null,null,null,null,null,null,null,null,null,null,null,null,null,null,null,null,{"$f":"Dataset[[#This Row],[2024/25 From - Spending review Topic 1]]+Dataset[[#This Row],[2024/25 From - Spending review Topic 2]]+Dataset[[#This Row],[2024/25 From - Spending review Topic 3]]+Dataset[[#This Row],[2024/25 From - Spending review Topic 4]]+Dataset[[#This Row],[2024/25 From - Other reallocations]]","v":0},{"$f":"Dataset[[#This Row],[2025/26 From - Spending review Topic 1]]+Dataset[[#This Row],[2025/26 From - Spending review Topic 2]]+Dataset[[#This Row],[2025/26 From - Spending review Topic 3]]+Dataset[[#This Row],[2025/26 From - Spending review Topic 4]]+Dataset[[#This Row],[2025/26 From - Other reallocations]]","v":0},{"$f":"Dataset[[#This Row],[2026/27 From - Spending review Topic 1]]+Dataset[[#This Row],[2026/27 From - Spending review Topic 2]]+Dataset[[#This Row],[2026/27 From - Spending review Topic 3]]+Dataset[[#This Row],[2026/27 From - Spending review Topic 4]]+Dataset[[#This Row],[2026/27 From - Other reallocations]]","v":0},{"$f":"Dataset[[#This Row],[2024/25 To - Spending review Topic 1]]+Dataset[[#This Row],[2024/25 To - Spending review Topic 2]]+Dataset[[#This Row],[2024/25 To - Spending review Topic 3]]+Dataset[[#This Row],[2024/25 To - Spending review Topic 4]]+Dataset[[#This Row],[2024/25 To - Other reallocations]]","v":0},{"$f":"Dataset[[#This Row],[2025/26 To - Spending review Topic 1]]+Dataset[[#This Row],[2025/26 To - Spending review Topic 2]]+Dataset[[#This Row],[2025/26 To - Spending review Topic 3]]+Dataset[[#This Row],[2025/26 To - Spending review Topic 4]]+Dataset[[#This Row],[2025/26 To - Other reallocations]]","v":0},{"$f":"Dataset[[#This Row],[2026/27 To - Spending review Topic 1]]+Dataset[[#This Row],[2026/27 To - Spending review Topic 2]]+Dataset[[#This Row],[2026/27 To - Spending review Topic 3]]+Dataset[[#This Row],[2026/27 To - Spending review Topic 4]]+Dataset[[#This Row],[2026/27 To - Other reallocations]]","v":0},{"$f":"Dataset[[#This Row],[2024/25 Reduction]]+Dataset[[#This Row],[2024/25 From - Total]]","v":0},{"$f":"Dataset[[#This Row],[2025/26 Reduction]]+Dataset[[#This Row],[2025/26 From - Total]]","v":0},{"$f":"Dataset[[#This Row],[2026/27 Reduction]]+Dataset[[#This Row],[2026/27 From - Total]]","v":0},{"$f":"Dataset[[#This Row],[2023/24 Reduction]]","v":0},{"$f":"SUM(Dataset[[#This Row],[2024/25 Reduction]],Dataset[[#This Row],[2024/25 From - Total]],Dataset[[#This Row],[2024/25 To - Total]])","v":0},{"$f":"SUM(Dataset[[#This Row],[2025/26 Reduction]],Dataset[[#This Row],[2025/26 From - Total]],Dataset[[#This Row],[2025/26 To - Total]])","v":0},{"$f":"SUM(Dataset[[#This Row],[2026/27 Reduction]],Dataset[[#This Row],[2026/27 From - Total]],Dataset[[#This Row],[2026/27 To - Total]])","v":0},{"$f":"Dataset[[#This Row],[2023/24 Baseline]]+Dataset[[#This Row],[2023/24 Total change]]","v":0},{"$f":"Dataset[[#This Row],[2024/25 Baseline]]+Dataset[[#This Row],[2024/25 Total change]]","v":0},{"$f":"Dataset[[#This Row],[2025/26 Baseline]]+Dataset[[#This Row],[2025/26 Total change]]","v":0},{"$f":"Dataset[[#This Row],[2026/27 Baseline]]+Dataset[[#This Row],[2026/27 Total change]]","v":0}]
["NAT|Non-transfer item","26|Municipal bank accounts","2024_25","MTEF2024",26,1,4,44163,276,"26","01","04","044163","000276","26|01|04","01","02","04","44","45","01|02|04|44|45","National","Military Veterans","Administration","Internal Audit","Non-transfer item","Current","Transfers and subsidies","Provinces and municipalities","Municipalities","Municipal bank accounts","Peace and security","Defence and state security","NAT",0,0,0,0,0,0,0,0,0,0,0,null,null,null,null,null,null,null,null,null,null,null,null,null,null,null,null,null,null,null,null,null,null,null,null,null,null,null,null,null,null,null,null,null,null,{"$f":"Dataset[[#This Row],[2024/25 From - Spending review Topic 1]]+Dataset[[#This Row],[2024/25 From - Spending review Topic 2]]+Dataset[[#This Row],[2024/25 From - Spending review Topic 3]]+Dataset[[#This Row],[2024/25 From - Spending review Topic 4]]+Dataset[[#This Row],[2024/25 From - Other reallocations]]","v":0},{"$f":"Dataset[[#This Row],[2025/26 From - Spending review Topic 1]]+Dataset[[#This Row],[2025/26 From - Spending review Topic 2]]+Dataset[[#This Row],[2025/26 From - Spending review Topic 3]]+Dataset[[#This Row],[2025/26 From - Spending review Topic 4]]+Dataset[[#This Row],[2025/26 From - Other reallocations]]","v":0},{"$f":"Dataset[[#This Row],[2026/27 From - Spending review Topic 1]]+Dataset[[#This Row],[2026/27 From - Spending review Topic 2]]+Dataset[[#This Row],[2026/27 From - Spending review Topic 3]]+Dataset[[#This Row],[2026/27 From - Spending review Topic 4]]+Dataset[[#This Row],[2026/27 From - Other reallocations]]","v":0},{"$f":"Dataset[[#This Row],[2024/25 To - Spending review Topic 1]]+Dataset[[#This Row],[2024/25 To - Spending review Topic 2]]+Dataset[[#This Row],[2024/25 To - Spending review Topic 3]]+Dataset[[#This Row],[2024/25 To - Spending review Topic 4]]+Dataset[[#This Row],[2024/25 To - Other reallocations]]","v":0},{"$f":"Dataset[[#This Row],[2025/26 To - Spending review Topic 1]]+Dataset[[#This Row],[2025/26 To - Spending review Topic 2]]+Dataset[[#This Row],[2025/26 To - Spending review Topic 3]]+Dataset[[#This Row],[2025/26 To - Spending review Topic 4]]+Dataset[[#This Row],[2025/26 To - Other reallocations]]","v":0},{"$f":"Dataset[[#This Row],[2026/27 To - Spending review Topic 1]]+Dataset[[#This Row],[2026/27 To - Spending review Topic 2]]+Dataset[[#This Row],[2026/27 To - Spending review Topic 3]]+Dataset[[#This Row],[2026/27 To - Spending review Topic 4]]+Dataset[[#This Row],[2026/27 To - Other reallocations]]","v":0},{"$f":"Dataset[[#This Row],[2024/25 Reduction]]+Dataset[[#This Row],[2024/25 From - Total]]","v":0},{"$f":"Dataset[[#This Row],[2025/26 Reduction]]+Dataset[[#This Row],[2025/26 From - Total]]","v":0},{"$f":"Dataset[[#This Row],[2026/27 Reduction]]+Dataset[[#This Row],[2026/27 From - Total]]","v":0},{"$f":"Dataset[[#This Row],[2023/24 Reduction]]","v":0},{"$f":"SUM(Dataset[[#This Row],[2024/25 Reduction]],Dataset[[#This Row],[2024/25 From - Total]],Dataset[[#This Row],[2024/25 To - Total]])","v":0},{"$f":"SUM(Dataset[[#This Row],[2025/26 Reduction]],Dataset[[#This Row],[2025/26 From - Total]],Dataset[[#This Row],[2025/26 To - Total]])","v":0},{"$f":"SUM(Dataset[[#This Row],[2026/27 Reduction]],Dataset[[#This Row],[2026/27 From - Total]],Dataset[[#This Row],[2026/27 To - Total]])","v":0},{"$f":"Dataset[[#This Row],[2023/24 Baseline]]+Dataset[[#This Row],[2023/24 Total change]]","v":0},{"$f":"Dataset[[#This Row],[2024/25 Baseline]]+Dataset[[#This Row],[2024/25 Total change]]","v":0},{"$f":"Dataset[[#This Row],[2025/26 Baseline]]+Dataset[[#This Row],[2025/26 Total change]]","v":0},{"$f":"Dataset[[#This Row],[2026/27 Baseline]]+Dataset[[#This Row],[2026/27 Total change]]","v":0}]
["NAT|Non-transfer item","26|Municipal agencies and funds","2024_25","MTEF2024",26,1,4,44164,277,"26","01","04","044164","000277","26|01|04","01","02","04","44","46","01|02|04|44|46","National","Military Veterans","Administration","Internal Audit","Non-transfer item","Current","Transfers and subsidies","Provinces and municipalities","Municipalities","Municipal agencies and funds","Peace and security","Defence and state security","NAT",0,0,0,0,0,0,0,0,0,0,0,null,null,null,null,null,null,null,null,null,null,null,null,null,null,null,null,null,null,null,null,null,null,null,null,null,null,null,null,null,null,null,null,null,null,{"$f":"Dataset[[#This Row],[2024/25 From - Spending review Topic 1]]+Dataset[[#This Row],[2024/25 From - Spending review Topic 2]]+Dataset[[#This Row],[2024/25 From - Spending review Topic 3]]+Dataset[[#This Row],[2024/25 From - Spending review Topic 4]]+Dataset[[#This Row],[2024/25 From - Other reallocations]]","v":0},{"$f":"Dataset[[#This Row],[2025/26 From - Spending review Topic 1]]+Dataset[[#This Row],[2025/26 From - Spending review Topic 2]]+Dataset[[#This Row],[2025/26 From - Spending review Topic 3]]+Dataset[[#This Row],[2025/26 From - Spending review Topic 4]]+Dataset[[#This Row],[2025/26 From - Other reallocations]]","v":0},{"$f":"Dataset[[#This Row],[2026/27 From - Spending review Topic 1]]+Dataset[[#This Row],[2026/27 From - Spending review Topic 2]]+Dataset[[#This Row],[2026/27 From - Spending review Topic 3]]+Dataset[[#This Row],[2026/27 From - Spending review Topic 4]]+Dataset[[#This Row],[2026/27 From - Other reallocations]]","v":0},{"$f":"Dataset[[#This Row],[2024/25 To - Spending review Topic 1]]+Dataset[[#This Row],[2024/25 To - Spending review Topic 2]]+Dataset[[#This Row],[2024/25 To - Spending review Topic 3]]+Dataset[[#This Row],[2024/25 To - Spending review Topic 4]]+Dataset[[#This Row],[2024/25 To - Other reallocations]]","v":0},{"$f":"Dataset[[#This Row],[2025/26 To - Spending review Topic 1]]+Dataset[[#This Row],[2025/26 To - Spending review Topic 2]]+Dataset[[#This Row],[2025/26 To - Spending review Topic 3]]+Dataset[[#This Row],[2025/26 To - Spending review Topic 4]]+Dataset[[#This Row],[2025/26 To - Other reallocations]]","v":0},{"$f":"Dataset[[#This Row],[2026/27 To - Spending review Topic 1]]+Dataset[[#This Row],[2026/27 To - Spending review Topic 2]]+Dataset[[#This Row],[2026/27 To - Spending review Topic 3]]+Dataset[[#This Row],[2026/27 To - Spending review Topic 4]]+Dataset[[#This Row],[2026/27 To - Other reallocations]]","v":0},{"$f":"Dataset[[#This Row],[2024/25 Reduction]]+Dataset[[#This Row],[2024/25 From - Total]]","v":0},{"$f":"Dataset[[#This Row],[2025/26 Reduction]]+Dataset[[#This Row],[2025/26 From - Total]]","v":0},{"$f":"Dataset[[#This Row],[2026/27 Reduction]]+Dataset[[#This Row],[2026/27 From - Total]]","v":0},{"$f":"Dataset[[#This Row],[2023/24 Reduction]]","v":0},{"$f":"SUM(Dataset[[#This Row],[2024/25 Reduction]],Dataset[[#This Row],[2024/25 From - Total]],Dataset[[#This Row],[2024/25 To - Total]])","v":0},{"$f":"SUM(Dataset[[#This Row],[2025/26 Reduction]],Dataset[[#This Row],[2025/26 From - Total]],Dataset[[#This Row],[2025/26 To - Total]])","v":0},{"$f":"SUM(Dataset[[#This Row],[2026/27 Reduction]],Dataset[[#This Row],[2026/27 From - Total]],Dataset[[#This Row],[2026/27 To - Total]])","v":0},{"$f":"Dataset[[#This Row],[2023/24 Baseline]]+Dataset[[#This Row],[2023/24 Total change]]","v":0},{"$f":"Dataset[[#This Row],[2024/25 Baseline]]+Dataset[[#This Row],[2024/25 Total change]]","v":0},{"$f":"Dataset[[#This Row],[2025/26 Baseline]]+Dataset[[#This Row],[2025/26 Total change]]","v":0},{"$f":"Dataset[[#This Row],[2026/27 Baseline]]+Dataset[[#This Row],[2026/27 Total change]]","v":0}]
["NAT|Non-transfer item","26|Social security funds","2024_25","MTEF2024",26,1,4,44165,278,"26","01","04","044165","000278","26|01|04","01","02","05","45","47","01|02|05|45|47","National","Military Veterans","Administration","Internal Audit","Non-transfer item","Current","Transfers and subsidies","Departmental agencies and accounts","Social security funds","Social security funds","Peace and security","Defence and state security","NAT",0,0,0,0,0,0,0,0,0,0,0,null,null,null,null,null,null,null,null,null,null,null,null,null,null,null,null,null,null,null,null,null,null,null,null,null,null,null,null,null,null,null,null,null,null,{"$f":"Dataset[[#This Row],[2024/25 From - Spending review Topic 1]]+Dataset[[#This Row],[2024/25 From - Spending review Topic 2]]+Dataset[[#This Row],[2024/25 From - Spending review Topic 3]]+Dataset[[#This Row],[2024/25 From - Spending review Topic 4]]+Dataset[[#This Row],[2024/25 From - Other reallocations]]","v":0},{"$f":"Dataset[[#This Row],[2025/26 From - Spending review Topic 1]]+Dataset[[#This Row],[2025/26 From - Spending review Topic 2]]+Dataset[[#This Row],[2025/26 From - Spending review Topic 3]]+Dataset[[#This Row],[2025/26 From - Spending review Topic 4]]+Dataset[[#This Row],[2025/26 From - Other reallocations]]","v":0},{"$f":"Dataset[[#This Row],[2026/27 From - Spending review Topic 1]]+Dataset[[#This Row],[2026/27 From - Spending review Topic 2]]+Dataset[[#This Row],[2026/27 From - Spending review Topic 3]]+Dataset[[#This Row],[2026/27 From - Spending review Topic 4]]+Dataset[[#This Row],[2026/27 From - Other reallocations]]","v":0},{"$f":"Dataset[[#This Row],[2024/25 To - Spending review Topic 1]]+Dataset[[#This Row],[2024/25 To - Spending review Topic 2]]+Dataset[[#This Row],[2024/25 To - Spending review Topic 3]]+Dataset[[#This Row],[2024/25 To - Spending review Topic 4]]+Dataset[[#This Row],[2024/25 To - Other reallocations]]","v":0},{"$f":"Dataset[[#This Row],[2025/26 To - Spending review Topic 1]]+Dataset[[#This Row],[2025/26 To - Spending review Topic 2]]+Dataset[[#This Row],[2025/26 To - Spending review Topic 3]]+Dataset[[#This Row],[2025/26 To - Spending review Topic 4]]+Dataset[[#This Row],[2025/26 To - Other reallocations]]","v":0},{"$f":"Dataset[[#This Row],[2026/27 To - Spending review Topic 1]]+Dataset[[#This Row],[2026/27 To - Spending review Topic 2]]+Dataset[[#This Row],[2026/27 To - Spending review Topic 3]]+Dataset[[#This Row],[2026/27 To - Spending review Topic 4]]+Dataset[[#This Row],[2026/27 To - Other reallocations]]","v":0},{"$f":"Dataset[[#This Row],[2024/25 Reduction]]+Dataset[[#This Row],[2024/25 From - Total]]","v":0},{"$f":"Dataset[[#This Row],[2025/26 Reduction]]+Dataset[[#This Row],[2025/26 From - Total]]","v":0},{"$f":"Dataset[[#This Row],[2026/27 Reduction]]+Dataset[[#This Row],[2026/27 From - Total]]","v":0},{"$f":"Dataset[[#This Row],[2023/24 Reduction]]","v":0},{"$f":"SUM(Dataset[[#This Row],[2024/25 Reduction]],Dataset[[#This Row],[2024/25 From - Total]],Dataset[[#This Row],[2024/25 To - Total]])","v":0},{"$f":"SUM(Dataset[[#This Row],[2025/26 Reduction]],Dataset[[#This Row],[2025/26 From - Total]],Dataset[[#This Row],[2025/26 To - Total]])","v":0},{"$f":"SUM(Dataset[[#This Row],[2026/27 Reduction]],Dataset[[#This Row],[2026/27 From - Total]],Dataset[[#This Row],[2026/27 To - Total]])","v":0},{"$f":"Dataset[[#This Row],[2023/24 Baseline]]+Dataset[[#This Row],[2023/24 Total change]]","v":0},{"$f":"Dataset[[#This Row],[2024/25 Baseline]]+Dataset[[#This Row],[2024/25 Total change]]","v":0},{"$f":"Dataset[[#This Row],[2025/26 Baseline]]+Dataset[[#This Row],[2025/26 Total change]]","v":0},{"$f":"Dataset[[#This Row],[2026/27 Baseline]]+Dataset[[#This Row],[2026/27 Total change]]","v":0}]
["NAT|Non-transfer item","26|Departmental agencies (non-business entities)","2024_25","MTEF2024",26,1,4,44166,279,"26","01","04","044166","000279","26|01|04","01","02","05","46","48","01|02|05|46|48","National","Military Veterans","Administration","Internal Audit","Non-transfer item","Current","Transfers and subsidies","Departmental agencies and accounts","Departmental agencies (non-business entities)","Departmental agencies (non-business entities)","Peace and security","Defence and state security","NAT",0,0,0,0,0,0,0,0,0,0,0,null,null,null,null,null,null,null,null,null,null,null,null,null,null,null,null,null,null,null,null,null,null,null,null,null,null,null,null,null,null,null,null,null,null,{"$f":"Dataset[[#This Row],[2024/25 From - Spending review Topic 1]]+Dataset[[#This Row],[2024/25 From - Spending review Topic 2]]+Dataset[[#This Row],[2024/25 From - Spending review Topic 3]]+Dataset[[#This Row],[2024/25 From - Spending review Topic 4]]+Dataset[[#This Row],[2024/25 From - Other reallocations]]","v":0},{"$f":"Dataset[[#This Row],[2025/26 From - Spending review Topic 1]]+Dataset[[#This Row],[2025/26 From - Spending review Topic 2]]+Dataset[[#This Row],[2025/26 From - Spending review Topic 3]]+Dataset[[#This Row],[2025/26 From - Spending review Topic 4]]+Dataset[[#This Row],[2025/26 From - Other reallocations]]","v":0},{"$f":"Dataset[[#This Row],[2026/27 From - Spending review Topic 1]]+Dataset[[#This Row],[2026/27 From - Spending review Topic 2]]+Dataset[[#This Row],[2026/27 From - Spending review Topic 3]]+Dataset[[#This Row],[2026/27 From - Spending review Topic 4]]+Dataset[[#This Row],[2026/27 From - Other reallocations]]","v":0},{"$f":"Dataset[[#This Row],[2024/25 To - Spending review Topic 1]]+Dataset[[#This Row],[2024/25 To - Spending review Topic 2]]+Dataset[[#This Row],[2024/25 To - Spending review Topic 3]]+Dataset[[#This Row],[2024/25 To - Spending review Topic 4]]+Dataset[[#This Row],[2024/25 To - Other reallocations]]","v":0},{"$f":"Dataset[[#This Row],[2025/26 To - Spending review Topic 1]]+Dataset[[#This Row],[2025/26 To - Spending review Topic 2]]+Dataset[[#This Row],[2025/26 To - Spending review Topic 3]]+Dataset[[#This Row],[2025/26 To - Spending review Topic 4]]+Dataset[[#This Row],[2025/26 To - Other reallocations]]","v":0},{"$f":"Dataset[[#This Row],[2026/27 To - Spending review Topic 1]]+Dataset[[#This Row],[2026/27 To - Spending review Topic 2]]+Dataset[[#This Row],[2026/27 To - Spending review Topic 3]]+Dataset[[#This Row],[2026/27 To - Spending review Topic 4]]+Dataset[[#This Row],[2026/27 To - Other reallocations]]","v":0},{"$f":"Dataset[[#This Row],[2024/25 Reduction]]+Dataset[[#This Row],[2024/25 From - Total]]","v":0},{"$f":"Dataset[[#This Row],[2025/26 Reduction]]+Dataset[[#This Row],[2025/26 From - Total]]","v":0},{"$f":"Dataset[[#This Row],[2026/27 Reduction]]+Dataset[[#This Row],[2026/27 From - Total]]","v":0},{"$f":"Dataset[[#This Row],[2023/24 Reduction]]","v":0},{"$f":"SUM(Dataset[[#This Row],[2024/25 Reduction]],Dataset[[#This Row],[2024/25 From - Total]],Dataset[[#This Row],[2024/25 To - Total]])","v":0},{"$f":"SUM(Dataset[[#This Row],[2025/26 Reduction]],Dataset[[#This Row],[2025/26 From - Total]],Dataset[[#This Row],[2025/26 To - Total]])","v":0},{"$f":"SUM(Dataset[[#This Row],[2026/27 Reduction]],Dataset[[#This Row],[2026/27 From - Total]],Dataset[[#This Row],[2026/27 To - Total]])","v":0},{"$f":"Dataset[[#This Row],[2023/24 Baseline]]+Dataset[[#This Row],[2023/24 Total change]]","v":0},{"$f":"Dataset[[#This Row],[2024/25 Baseline]]+Dataset[[#This Row],[2024/25 Total change]]","v":0},{"$f":"Dataset[[#This Row],[2025/26 Baseline]]+Dataset[[#This Row],[2025/26 Total change]]","v":0},{"$f":"Dataset[[#This Row],[2026/27 Baseline]]+Dataset[[#This Row],[2026/27 Total change]]","v":0}]
["NAT|Non-transfer item","26|Higher education institutions","2024_25","MTEF2024",26,1,4,44167,280,"26","01","04","044167","000280","26|01|04","01","02","06","47","49","01|02|06|47|49","National","Military Veterans","Administration","Internal Audit","Non-transfer item","Current","Transfers and subsidies","Higher education institutions","Higher education institutions","Higher education institutions","Peace and security","Defence and state security","NAT",0,0,0,0,0,0,0,0,0,0,0,null,null,null,null,null,null,null,null,null,null,null,null,null,null,null,null,null,null,null,null,null,null,null,null,null,null,null,null,null,null,null,null,null,null,{"$f":"Dataset[[#This Row],[2024/25 From - Spending review Topic 1]]+Dataset[[#This Row],[2024/25 From - Spending review Topic 2]]+Dataset[[#This Row],[2024/25 From - Spending review Topic 3]]+Dataset[[#This Row],[2024/25 From - Spending review Topic 4]]+Dataset[[#This Row],[2024/25 From - Other reallocations]]","v":0},{"$f":"Dataset[[#This Row],[2025/26 From - Spending review Topic 1]]+Dataset[[#This Row],[2025/26 From - Spending review Topic 2]]+Dataset[[#This Row],[2025/26 From - Spending review Topic 3]]+Dataset[[#This Row],[2025/26 From - Spending review Topic 4]]+Dataset[[#This Row],[2025/26 From - Other reallocations]]","v":0},{"$f":"Dataset[[#This Row],[2026/27 From - Spending review Topic 1]]+Dataset[[#This Row],[2026/27 From - Spending review Topic 2]]+Dataset[[#This Row],[2026/27 From - Spending review Topic 3]]+Dataset[[#This Row],[2026/27 From - Spending review Topic 4]]+Dataset[[#This Row],[2026/27 From - Other reallocations]]","v":0},{"$f":"Dataset[[#This Row],[2024/25 To - Spending review Topic 1]]+Dataset[[#This Row],[2024/25 To - Spending review Topic 2]]+Dataset[[#This Row],[2024/25 To - Spending review Topic 3]]+Dataset[[#This Row],[2024/25 To - Spending review Topic 4]]+Dataset[[#This Row],[2024/25 To - Other reallocations]]","v":0},{"$f":"Dataset[[#This Row],[2025/26 To - Spending review Topic 1]]+Dataset[[#This Row],[2025/26 To - Spending review Topic 2]]+Dataset[[#This Row],[2025/26 To - Spending review Topic 3]]+Dataset[[#This Row],[2025/26 To - Spending review Topic 4]]+Dataset[[#This Row],[2025/26 To - Other reallocations]]","v":0},{"$f":"Dataset[[#This Row],[2026/27 To - Spending review Topic 1]]+Dataset[[#This Row],[2026/27 To - Spending review Topic 2]]+Dataset[[#This Row],[2026/27 To - Spending review Topic 3]]+Dataset[[#This Row],[2026/27 To - Spending review Topic 4]]+Dataset[[#This Row],[2026/27 To - Other reallocations]]","v":0},{"$f":"Dataset[[#This Row],[2024/25 Reduction]]+Dataset[[#This Row],[2024/25 From - Total]]","v":0},{"$f":"Dataset[[#This Row],[2025/26 Reduction]]+Dataset[[#This Row],[2025/26 From - Total]]","v":0},{"$f":"Dataset[[#This Row],[2026/27 Reduction]]+Dataset[[#This Row],[2026/27 From - Total]]","v":0},{"$f":"Dataset[[#This Row],[2023/24 Reduction]]","v":0},{"$f":"SUM(Dataset[[#This Row],[2024/25 Reduction]],Dataset[[#This Row],[2024/25 From - Total]],Dataset[[#This Row],[2024/25 To - Total]])","v":0},{"$f":"SUM(Dataset[[#This Row],[2025/26 Reduction]],Dataset[[#This Row],[2025/26 From - Total]],Dataset[[#This Row],[2025/26 To - Total]])","v":0},{"$f":"SUM(Dataset[[#This Row],[2026/27 Reduction]],Dataset[[#This Row],[2026/27 From - Total]],Dataset[[#This Row],[2026/27 To - Total]])","v":0},{"$f":"Dataset[[#This Row],[2023/24 Baseline]]+Dataset[[#This Row],[2023/24 Total change]]","v":0},{"$f":"Dataset[[#This Row],[2024/25 Baseline]]+Dataset[[#This Row],[2024/25 Total change]]","v":0},{"$f":"Dataset[[#This Row],[2025/26 Baseline]]+Dataset[[#This Row],[2025/26 Total change]]","v":0},{"$f":"Dataset[[#This Row],[2026/27 Baseline]]+Dataset[[#This Row],[2026/27 Total change]]","v":0}]
["NAT|Non-transfer item","26|Foreign governments and international organisations","2024_25","MTEF2024",26,1,4,44168,281,"26","01","04","044168","000281","26|01|04","01","02","07","48","50","01|02|07|48|50","National","Military Veterans","Administration","Internal Audit","Non-transfer item","Current","Transfers and subsidies","Foreign governments and international organisations","Foreign governments and international organisations","Foreign governments and international organisations","Peace and security","Defence and state security","NAT",0,0,0,0,0,0,0,0,0,0,0,null,null,null,null,null,null,null,null,null,null,null,null,null,null,null,null,null,null,null,null,null,null,null,null,null,null,null,null,null,null,null,null,null,null,{"$f":"Dataset[[#This Row],[2024/25 From - Spending review Topic 1]]+Dataset[[#This Row],[2024/25 From - Spending review Topic 2]]+Dataset[[#This Row],[2024/25 From - Spending review Topic 3]]+Dataset[[#This Row],[2024/25 From - Spending review Topic 4]]+Dataset[[#This Row],[2024/25 From - Other reallocations]]","v":0},{"$f":"Dataset[[#This Row],[2025/26 From - Spending review Topic 1]]+Dataset[[#This Row],[2025/26 From - Spending review Topic 2]]+Dataset[[#This Row],[2025/26 From - Spending review Topic 3]]+Dataset[[#This Row],[2025/26 From - Spending review Topic 4]]+Dataset[[#This Row],[2025/26 From - Other reallocations]]","v":0},{"$f":"Dataset[[#This Row],[2026/27 From - Spending review Topic 1]]+Dataset[[#This Row],[2026/27 From - Spending review Topic 2]]+Dataset[[#This Row],[2026/27 From - Spending review Topic 3]]+Dataset[[#This Row],[2026/27 From - Spending review Topic 4]]+Dataset[[#This Row],[2026/27 From - Other reallocations]]","v":0},{"$f":"Dataset[[#This Row],[2024/25 To - Spending review Topic 1]]+Dataset[[#This Row],[2024/25 To - Spending review Topic 2]]+Dataset[[#This Row],[2024/25 To - Spending review Topic 3]]+Dataset[[#This Row],[2024/25 To - Spending review Topic 4]]+Dataset[[#This Row],[2024/25 To - Other reallocations]]","v":0},{"$f":"Dataset[[#This Row],[2025/26 To - Spending review Topic 1]]+Dataset[[#This Row],[2025/26 To - Spending review Topic 2]]+Dataset[[#This Row],[2025/26 To - Spending review Topic 3]]+Dataset[[#This Row],[2025/26 To - Spending review Topic 4]]+Dataset[[#This Row],[2025/26 To - Other reallocations]]","v":0},{"$f":"Dataset[[#This Row],[2026/27 To - Spending review Topic 1]]+Dataset[[#This Row],[2026/27 To - Spending review Topic 2]]+Dataset[[#This Row],[2026/27 To - Spending review Topic 3]]+Dataset[[#This Row],[2026/27 To - Spending review Topic 4]]+Dataset[[#This Row],[2026/27 To - Other reallocations]]","v":0},{"$f":"Dataset[[#This Row],[2024/25 Reduction]]+Dataset[[#This Row],[2024/25 From - Total]]","v":0},{"$f":"Dataset[[#This Row],[2025/26 Reduction]]+Dataset[[#This Row],[2025/26 From - Total]]","v":0},{"$f":"Dataset[[#This Row],[2026/27 Reduction]]+Dataset[[#This Row],[2026/27 From - Total]]","v":0},{"$f":"Dataset[[#This Row],[2023/24 Reduction]]","v":0},{"$f":"SUM(Dataset[[#This Row],[2024/25 Reduction]],Dataset[[#This Row],[2024/25 From - Total]],Dataset[[#This Row],[2024/25 To - Total]])","v":0},{"$f":"SUM(Dataset[[#This Row],[2025/26 Reduction]],Dataset[[#This Row],[2025/26 From - Total]],Dataset[[#This Row],[2025/26 To - Total]])","v":0},{"$f":"SUM(Dataset[[#This Row],[2026/27 Reduction]],Dataset[[#This Row],[2026/27 From - Total]],Dataset[[#This Row],[2026/27 To - Total]])","v":0},{"$f":"Dataset[[#This Row],[2023/24 Baseline]]+Dataset[[#This Row],[2023/24 Total change]]","v":0},{"$f":"Dataset[[#This Row],[2024/25 Baseline]]+Dataset[[#This Row],[2024/25 Total change]]","v":0},{"$f":"Dataset[[#This Row],[2025/26 Baseline]]+Dataset[[#This Row],[2025/26 Total change]]","v":0},{"$f":"Dataset[[#This Row],[2026/27 Baseline]]+Dataset[[#This Row],[2026/27 Total change]]","v":0}]
["NAT|Non-transfer item","26|Subsidies on products and production (pc)","2024_25","MTEF2024",26,1,4,44169,282,"26","01","04","044169","000282","26|01|04","01","02","08","49","51","01|02|08|49|51","National","Military Veterans","Administration","Internal Audit","Non-transfer item","Current","Transfers and subsidies","Public corporations and private enterprises","Public corporations","Subsidies on products and production (pc)","Peace and security","Defence and state security","NAT",0,0,0,0,0,0,0,0,0,0,0,null,null,null,null,null,null,null,null,null,null,null,null,null,null,null,null,null,null,null,null,null,null,null,null,null,null,null,null,null,null,null,null,null,null,{"$f":"Dataset[[#This Row],[2024/25 From - Spending review Topic 1]]+Dataset[[#This Row],[2024/25 From - Spending review Topic 2]]+Dataset[[#This Row],[2024/25 From - Spending review Topic 3]]+Dataset[[#This Row],[2024/25 From - Spending review Topic 4]]+Dataset[[#This Row],[2024/25 From - Other reallocations]]","v":0},{"$f":"Dataset[[#This Row],[2025/26 From - Spending review Topic 1]]+Dataset[[#This Row],[2025/26 From - Spending review Topic 2]]+Dataset[[#This Row],[2025/26 From - Spending review Topic 3]]+Dataset[[#This Row],[2025/26 From - Spending review Topic 4]]+Dataset[[#This Row],[2025/26 From - Other reallocations]]","v":0},{"$f":"Dataset[[#This Row],[2026/27 From - Spending review Topic 1]]+Dataset[[#This Row],[2026/27 From - Spending review Topic 2]]+Dataset[[#This Row],[2026/27 From - Spending review Topic 3]]+Dataset[[#This Row],[2026/27 From - Spending review Topic 4]]+Dataset[[#This Row],[2026/27 From - Other reallocations]]","v":0},{"$f":"Dataset[[#This Row],[2024/25 To - Spending review Topic 1]]+Dataset[[#This Row],[2024/25 To - Spending review Topic 2]]+Dataset[[#This Row],[2024/25 To - Spending review Topic 3]]+Dataset[[#This Row],[2024/25 To - Spending review Topic 4]]+Dataset[[#This Row],[2024/25 To - Other reallocations]]","v":0},{"$f":"Dataset[[#This Row],[2025/26 To - Spending review Topic 1]]+Dataset[[#This Row],[2025/26 To - Spending review Topic 2]]+Dataset[[#This Row],[2025/26 To - Spending review Topic 3]]+Dataset[[#This Row],[2025/26 To - Spending review Topic 4]]+Dataset[[#This Row],[2025/26 To - Other reallocations]]","v":0},{"$f":"Dataset[[#This Row],[2026/27 To - Spending review Topic 1]]+Dataset[[#This Row],[2026/27 To - Spending review Topic 2]]+Dataset[[#This Row],[2026/27 To - Spending review Topic 3]]+Dataset[[#This Row],[2026/27 To - Spending review Topic 4]]+Dataset[[#This Row],[2026/27 To - Other reallocations]]","v":0},{"$f":"Dataset[[#This Row],[2024/25 Reduction]]+Dataset[[#This Row],[2024/25 From - Total]]","v":0},{"$f":"Dataset[[#This Row],[2025/26 Reduction]]+Dataset[[#This Row],[2025/26 From - Total]]","v":0},{"$f":"Dataset[[#This Row],[2026/27 Reduction]]+Dataset[[#This Row],[2026/27 From - Total]]","v":0},{"$f":"Dataset[[#This Row],[2023/24 Reduction]]","v":0},{"$f":"SUM(Dataset[[#This Row],[2024/25 Reduction]],Dataset[[#This Row],[2024/25 From - Total]],Dataset[[#This Row],[2024/25 To - Total]])","v":0},{"$f":"SUM(Dataset[[#This Row],[2025/26 Reduction]],Dataset[[#This Row],[2025/26 From - Total]],Dataset[[#This Row],[2025/26 To - Total]])","v":0},{"$f":"SUM(Dataset[[#This Row],[2026/27 Reduction]],Dataset[[#This Row],[2026/27 From - Total]],Dataset[[#This Row],[2026/27 To - Total]])","v":0},{"$f":"Dataset[[#This Row],[2023/24 Baseline]]+Dataset[[#This Row],[2023/24 Total change]]","v":0},{"$f":"Dataset[[#This Row],[2024/25 Baseline]]+Dataset[[#This Row],[2024/25 Total change]]","v":0},{"$f":"Dataset[[#This Row],[2025/26 Baseline]]+Dataset[[#This Row],[2025/26 Total change]]","v":0},{"$f":"Dataset[[#This Row],[2026/27 Baseline]]+Dataset[[#This Row],[2026/27 Total change]]","v":0}]
["NAT|Non-transfer item","26|Other transfers to public corporations","2024_25","MTEF2024",26,1,4,44170,283,"26","01","04","044170","000283","26|01|04","01","02","08","49","52","01|02|08|49|52","National","Military Veterans","Administration","Internal Audit","Non-transfer item","Current","Transfers and subsidies","Public corporations and private enterprises","Public corporations","Other transfers to public corporations","Peace and security","Defence and state security","NAT",0,0,0,0,0,0,0,0,0,0,0,null,null,null,null,null,null,null,null,null,null,null,null,null,null,null,null,null,null,null,null,null,null,null,null,null,null,null,null,null,null,null,null,null,null,{"$f":"Dataset[[#This Row],[2024/25 From - Spending review Topic 1]]+Dataset[[#This Row],[2024/25 From - Spending review Topic 2]]+Dataset[[#This Row],[2024/25 From - Spending review Topic 3]]+Dataset[[#This Row],[2024/25 From - Spending review Topic 4]]+Dataset[[#This Row],[2024/25 From - Other reallocations]]","v":0},{"$f":"Dataset[[#This Row],[2025/26 From - Spending review Topic 1]]+Dataset[[#This Row],[2025/26 From - Spending review Topic 2]]+Dataset[[#This Row],[2025/26 From - Spending review Topic 3]]+Dataset[[#This Row],[2025/26 From - Spending review Topic 4]]+Dataset[[#This Row],[2025/26 From - Other reallocations]]","v":0},{"$f":"Dataset[[#This Row],[2026/27 From - Spending review Topic 1]]+Dataset[[#This Row],[2026/27 From - Spending review Topic 2]]+Dataset[[#This Row],[2026/27 From - Spending review Topic 3]]+Dataset[[#This Row],[2026/27 From - Spending review Topic 4]]+Dataset[[#This Row],[2026/27 From - Other reallocations]]","v":0},{"$f":"Dataset[[#This Row],[2024/25 To - Spending review Topic 1]]+Dataset[[#This Row],[2024/25 To - Spending review Topic 2]]+Dataset[[#This Row],[2024/25 To - Spending review Topic 3]]+Dataset[[#This Row],[2024/25 To - Spending review Topic 4]]+Dataset[[#This Row],[2024/25 To - Other reallocations]]","v":0},{"$f":"Dataset[[#This Row],[2025/26 To - Spending review Topic 1]]+Dataset[[#This Row],[2025/26 To - Spending review Topic 2]]+Dataset[[#This Row],[2025/26 To - Spending review Topic 3]]+Dataset[[#This Row],[2025/26 To - Spending review Topic 4]]+Dataset[[#This Row],[2025/26 To - Other reallocations]]","v":0},{"$f":"Dataset[[#This Row],[2026/27 To - Spending review Topic 1]]+Dataset[[#This Row],[2026/27 To - Spending review Topic 2]]+Dataset[[#This Row],[2026/27 To - Spending review Topic 3]]+Dataset[[#This Row],[2026/27 To - Spending review Topic 4]]+Dataset[[#This Row],[2026/27 To - Other reallocations]]","v":0},{"$f":"Dataset[[#This Row],[2024/25 Reduction]]+Dataset[[#This Row],[2024/25 From - Total]]","v":0},{"$f":"Dataset[[#This Row],[2025/26 Reduction]]+Dataset[[#This Row],[2025/26 From - Total]]","v":0},{"$f":"Dataset[[#This Row],[2026/27 Reduction]]+Dataset[[#This Row],[2026/27 From - Total]]","v":0},{"$f":"Dataset[[#This Row],[2023/24 Reduction]]","v":0},{"$f":"SUM(Dataset[[#This Row],[2024/25 Reduction]],Dataset[[#This Row],[2024/25 From - Total]],Dataset[[#This Row],[2024/25 To - Total]])","v":0},{"$f":"SUM(Dataset[[#This Row],[2025/26 Reduction]],Dataset[[#This Row],[2025/26 From - Total]],Dataset[[#This Row],[2025/26 To - Total]])","v":0},{"$f":"SUM(Dataset[[#This Row],[2026/27 Reduction]],Dataset[[#This Row],[2026/27 From - Total]],Dataset[[#This Row],[2026/27 To - Total]])","v":0},{"$f":"Dataset[[#This Row],[2023/24 Baseline]]+Dataset[[#This Row],[2023/24 Total change]]","v":0},{"$f":"Dataset[[#This Row],[2024/25 Baseline]]+Dataset[[#This Row],[2024/25 Total change]]","v":0},{"$f":"Dataset[[#This Row],[2025/26 Baseline]]+Dataset[[#This Row],[2025/26 Total change]]","v":0},{"$f":"Dataset[[#This Row],[2026/27 Baseline]]+Dataset[[#This Row],[2026/27 Total change]]","v":0}]
["NAT|Non-transfer item","26|Subsidies on products and production (pe)","2024_25","MTEF2024",26,1,4,44171,284,"26","01","04","044171","000284","26|01|04","01","02","08","50","53","01|02|08|50|53","National","Military Veterans","Administration","Internal Audit","Non-transfer item","Current","Transfers and subsidies","Public corporations and private enterprises","Private enterprises","Subsidies on products and production (pe)","Peace and security","Defence and state security","NAT",0,0,0,0,0,0,0,0,0,0,0,null,null,null,null,null,null,null,null,null,null,null,null,null,null,null,null,null,null,null,null,null,null,null,null,null,null,null,null,null,null,null,null,null,null,{"$f":"Dataset[[#This Row],[2024/25 From - Spending review Topic 1]]+Dataset[[#This Row],[2024/25 From - Spending review Topic 2]]+Dataset[[#This Row],[2024/25 From - Spending review Topic 3]]+Dataset[[#This Row],[2024/25 From - Spending review Topic 4]]+Dataset[[#This Row],[2024/25 From - Other reallocations]]","v":0},{"$f":"Dataset[[#This Row],[2025/26 From - Spending review Topic 1]]+Dataset[[#This Row],[2025/26 From - Spending review Topic 2]]+Dataset[[#This Row],[2025/26 From - Spending review Topic 3]]+Dataset[[#This Row],[2025/26 From - Spending review Topic 4]]+Dataset[[#This Row],[2025/26 From - Other reallocations]]","v":0},{"$f":"Dataset[[#This Row],[2026/27 From - Spending review Topic 1]]+Dataset[[#This Row],[2026/27 From - Spending review Topic 2]]+Dataset[[#This Row],[2026/27 From - Spending review Topic 3]]+Dataset[[#This Row],[2026/27 From - Spending review Topic 4]]+Dataset[[#This Row],[2026/27 From - Other reallocations]]","v":0},{"$f":"Dataset[[#This Row],[2024/25 To - Spending review Topic 1]]+Dataset[[#This Row],[2024/25 To - Spending review Topic 2]]+Dataset[[#This Row],[2024/25 To - Spending review Topic 3]]+Dataset[[#This Row],[2024/25 To - Spending review Topic 4]]+Dataset[[#This Row],[2024/25 To - Other reallocations]]","v":0},{"$f":"Dataset[[#This Row],[2025/26 To - Spending review Topic 1]]+Dataset[[#This Row],[2025/26 To - Spending review Topic 2]]+Dataset[[#This Row],[2025/26 To - Spending review Topic 3]]+Dataset[[#This Row],[2025/26 To - Spending review Topic 4]]+Dataset[[#This Row],[2025/26 To - Other reallocations]]","v":0},{"$f":"Dataset[[#This Row],[2026/27 To - Spending review Topic 1]]+Dataset[[#This Row],[2026/27 To - Spending review Topic 2]]+Dataset[[#This Row],[2026/27 To - Spending review Topic 3]]+Dataset[[#This Row],[2026/27 To - Spending review Topic 4]]+Dataset[[#This Row],[2026/27 To - Other reallocations]]","v":0},{"$f":"Dataset[[#This Row],[2024/25 Reduction]]+Dataset[[#This Row],[2024/25 From - Total]]","v":0},{"$f":"Dataset[[#This Row],[2025/26 Reduction]]+Dataset[[#This Row],[2025/26 From - Total]]","v":0},{"$f":"Dataset[[#This Row],[2026/27 Reduction]]+Dataset[[#This Row],[2026/27 From - Total]]","v":0},{"$f":"Dataset[[#This Row],[2023/24 Reduction]]","v":0},{"$f":"SUM(Dataset[[#This Row],[2024/25 Reduction]],Dataset[[#This Row],[2024/25 From - Total]],Dataset[[#This Row],[2024/25 To - Total]])","v":0},{"$f":"SUM(Dataset[[#This Row],[2025/26 Reduction]],Dataset[[#This Row],[2025/26 From - Total]],Dataset[[#This Row],[2025/26 To - Total]])","v":0},{"$f":"SUM(Dataset[[#This Row],[2026/27 Reduction]],Dataset[[#This Row],[2026/27 From - Total]],Dataset[[#This Row],[2026/27 To - Total]])","v":0},{"$f":"Dataset[[#This Row],[2023/24 Baseline]]+Dataset[[#This Row],[2023/24 Total change]]","v":0},{"$f":"Dataset[[#This Row],[2024/25 Baseline]]+Dataset[[#This Row],[2024/25 Total change]]","v":0},{"$f":"Dataset[[#This Row],[2025/26 Baseline]]+Dataset[[#This Row],[2025/26 Total change]]","v":0},{"$f":"Dataset[[#This Row],[2026/27 Baseline]]+Dataset[[#This Row],[2026/27 Total change]]","v":0}]
["NAT|Non-transfer item","26|Other transfers to private enterprises","2024_25","MTEF2024",26,1,4,44172,285,"26","01","04","044172","000285","26|01|04","01","02","08","50","54","01|02|08|50|54","National","Military Veterans","Administration","Internal Audit","Non-transfer item","Current","Transfers and subsidies","Public corporations and private enterprises","Private enterprises","Other transfers to private enterprises","Peace and security","Defence and state security","NAT",0,0,0,0,0,0,0,0,0,0,0,null,null,null,null,null,null,null,null,null,null,null,null,null,null,null,null,null,null,null,null,null,null,null,null,null,null,null,null,null,null,null,null,null,null,{"$f":"Dataset[[#This Row],[2024/25 From - Spending review Topic 1]]+Dataset[[#This Row],[2024/25 From - Spending review Topic 2]]+Dataset[[#This Row],[2024/25 From - Spending review Topic 3]]+Dataset[[#This Row],[2024/25 From - Spending review Topic 4]]+Dataset[[#This Row],[2024/25 From - Other reallocations]]","v":0},{"$f":"Dataset[[#This Row],[2025/26 From - Spending review Topic 1]]+Dataset[[#This Row],[2025/26 From - Spending review Topic 2]]+Dataset[[#This Row],[2025/26 From - Spending review Topic 3]]+Dataset[[#This Row],[2025/26 From - Spending review Topic 4]]+Dataset[[#This Row],[2025/26 From - Other reallocations]]","v":0},{"$f":"Dataset[[#This Row],[2026/27 From - Spending review Topic 1]]+Dataset[[#This Row],[2026/27 From - Spending review Topic 2]]+Dataset[[#This Row],[2026/27 From - Spending review Topic 3]]+Dataset[[#This Row],[2026/27 From - Spending review Topic 4]]+Dataset[[#This Row],[2026/27 From - Other reallocations]]","v":0},{"$f":"Dataset[[#This Row],[2024/25 To - Spending review Topic 1]]+Dataset[[#This Row],[2024/25 To - Spending review Topic 2]]+Dataset[[#This Row],[2024/25 To - Spending review Topic 3]]+Dataset[[#This Row],[2024/25 To - Spending review Topic 4]]+Dataset[[#This Row],[2024/25 To - Other reallocations]]","v":0},{"$f":"Dataset[[#This Row],[2025/26 To - Spending review Topic 1]]+Dataset[[#This Row],[2025/26 To - Spending review Topic 2]]+Dataset[[#This Row],[2025/26 To - Spending review Topic 3]]+Dataset[[#This Row],[2025/26 To - Spending review Topic 4]]+Dataset[[#This Row],[2025/26 To - Other reallocations]]","v":0},{"$f":"Dataset[[#This Row],[2026/27 To - Spending review Topic 1]]+Dataset[[#This Row],[2026/27 To - Spending review Topic 2]]+Dataset[[#This Row],[2026/27 To - Spending review Topic 3]]+Dataset[[#This Row],[2026/27 To - Spending review Topic 4]]+Dataset[[#This Row],[2026/27 To - Other reallocations]]","v":0},{"$f":"Dataset[[#This Row],[2024/25 Reduction]]+Dataset[[#This Row],[2024/25 From - Total]]","v":0},{"$f":"Dataset[[#This Row],[2025/26 Reduction]]+Dataset[[#This Row],[2025/26 From - Total]]","v":0},{"$f":"Dataset[[#This Row],[2026/27 Reduction]]+Dataset[[#This Row],[2026/27 From - Total]]","v":0},{"$f":"Dataset[[#This Row],[2023/24 Reduction]]","v":0},{"$f":"SUM(Dataset[[#This Row],[2024/25 Reduction]],Dataset[[#This Row],[2024/25 From - Total]],Dataset[[#This Row],[2024/25 To - Total]])","v":0},{"$f":"SUM(Dataset[[#This Row],[2025/26 Reduction]],Dataset[[#This Row],[2025/26 From - Total]],Dataset[[#This Row],[2025/26 To - Total]])","v":0},{"$f":"SUM(Dataset[[#This Row],[2026/27 Reduction]],Dataset[[#This Row],[2026/27 From - Total]],Dataset[[#This Row],[2026/27 To - Total]])","v":0},{"$f":"Dataset[[#This Row],[2023/24 Baseline]]+Dataset[[#This Row],[2023/24 Total change]]","v":0},{"$f":"Dataset[[#This Row],[2024/25 Baseline]]+Dataset[[#This Row],[2024/25 Total change]]","v":0},{"$f":"Dataset[[#This Row],[2025/26 Baseline]]+Dataset[[#This Row],[2025/26 Total change]]","v":0},{"$f":"Dataset[[#This Row],[2026/27 Baseline]]+Dataset[[#This Row],[2026/27 Total change]]","v":0}]
["NAT|Non-transfer item","26|Non-profit institutions","2024_25","MTEF2024",26,1,4,44173,286,"26","01","04","044173","000286","26|01|04","01","02","09","51","55","01|02|09|51|55","National","Military Veterans","Administration","Internal Audit","Non-transfer item","Current","Transfers and subsidies","Non-profit institutions","Non-profit institutions","Non-profit institutions","Peace and security","Defence and state security","NAT",0,0,0,0,0,0,0,0,0,0,0,null,null,null,null,null,null,null,null,null,null,null,null,null,null,null,null,null,null,null,null,null,null,null,null,null,null,null,null,null,null,null,null,null,null,{"$f":"Dataset[[#This Row],[2024/25 From - Spending review Topic 1]]+Dataset[[#This Row],[2024/25 From - Spending review Topic 2]]+Dataset[[#This Row],[2024/25 From - Spending review Topic 3]]+Dataset[[#This Row],[2024/25 From - Spending review Topic 4]]+Dataset[[#This Row],[2024/25 From - Other reallocations]]","v":0},{"$f":"Dataset[[#This Row],[2025/26 From - Spending review Topic 1]]+Dataset[[#This Row],[2025/26 From - Spending review Topic 2]]+Dataset[[#This Row],[2025/26 From - Spending review Topic 3]]+Dataset[[#This Row],[2025/26 From - Spending review Topic 4]]+Dataset[[#This Row],[2025/26 From - Other reallocations]]","v":0},{"$f":"Dataset[[#This Row],[2026/27 From - Spending review Topic 1]]+Dataset[[#This Row],[2026/27 From - Spending review Topic 2]]+Dataset[[#This Row],[2026/27 From - Spending review Topic 3]]+Dataset[[#This Row],[2026/27 From - Spending review Topic 4]]+Dataset[[#This Row],[2026/27 From - Other reallocations]]","v":0},{"$f":"Dataset[[#This Row],[2024/25 To - Spending review Topic 1]]+Dataset[[#This Row],[2024/25 To - Spending review Topic 2]]+Dataset[[#This Row],[2024/25 To - Spending review Topic 3]]+Dataset[[#This Row],[2024/25 To - Spending review Topic 4]]+Dataset[[#This Row],[2024/25 To - Other reallocations]]","v":0},{"$f":"Dataset[[#This Row],[2025/26 To - Spending review Topic 1]]+Dataset[[#This Row],[2025/26 To - Spending review Topic 2]]+Dataset[[#This Row],[2025/26 To - Spending review Topic 3]]+Dataset[[#This Row],[2025/26 To - Spending review Topic 4]]+Dataset[[#This Row],[2025/26 To - Other reallocations]]","v":0},{"$f":"Dataset[[#This Row],[2026/27 To - Spending review Topic 1]]+Dataset[[#This Row],[2026/27 To - Spending review Topic 2]]+Dataset[[#This Row],[2026/27 To - Spending review Topic 3]]+Dataset[[#This Row],[2026/27 To - Spending review Topic 4]]+Dataset[[#This Row],[2026/27 To - Other reallocations]]","v":0},{"$f":"Dataset[[#This Row],[2024/25 Reduction]]+Dataset[[#This Row],[2024/25 From - Total]]","v":0},{"$f":"Dataset[[#This Row],[2025/26 Reduction]]+Dataset[[#This Row],[2025/26 From - Total]]","v":0},{"$f":"Dataset[[#This Row],[2026/27 Reduction]]+Dataset[[#This Row],[2026/27 From - Total]]","v":0},{"$f":"Dataset[[#This Row],[2023/24 Reduction]]","v":0},{"$f":"SUM(Dataset[[#This Row],[2024/25 Reduction]],Dataset[[#This Row],[2024/25 From - Total]],Dataset[[#This Row],[2024/25 To - Total]])","v":0},{"$f":"SUM(Dataset[[#This Row],[2025/26 Reduction]],Dataset[[#This Row],[2025/26 From - Total]],Dataset[[#This Row],[2025/26 To - Total]])","v":0},{"$f":"SUM(Dataset[[#This Row],[2026/27 Reduction]],Dataset[[#This Row],[2026/27 From - Total]],Dataset[[#This Row],[2026/27 To - Total]])","v":0},{"$f":"Dataset[[#This Row],[2023/24 Baseline]]+Dataset[[#This Row],[2023/24 Total change]]","v":0},{"$f":"Dataset[[#This Row],[2024/25 Baseline]]+Dataset[[#This Row],[2024/25 Total change]]","v":0},{"$f":"Dataset[[#This Row],[2025/26 Baseline]]+Dataset[[#This Row],[2025/26 Total change]]","v":0},{"$f":"Dataset[[#This Row],[2026/27 Baseline]]+Dataset[[#This Row],[2026/27 Total change]]","v":0}]
["NAT|Household","26|Social benefits","2024_25","MTEF2024",26,1,4,44174,287,"26","01","04","044174","000287","26|01|04","01","02","10","52","56","01|02|10|52|56","National","Military Veterans","Administration","Internal Audit","Household","Current","Transfers and subsidies","Households","Social benefits","Social benefits","Peace and security","Defence and state security","NAT",38,0,0,0,0,0,0,0,0,0,0,null,null,null,null,null,null,null,null,null,null,null,null,null,null,null,null,null,null,null,null,null,null,null,null,null,null,null,null,null,null,null,null,null,null,{"$f":"Dataset[[#This Row],[2024/25 From - Spending review Topic 1]]+Dataset[[#This Row],[2024/25 From - Spending review Topic 2]]+Dataset[[#This Row],[2024/25 From - Spending review Topic 3]]+Dataset[[#This Row],[2024/25 From - Spending review Topic 4]]+Dataset[[#This Row],[2024/25 From - Other reallocations]]","v":0},{"$f":"Dataset[[#This Row],[2025/26 From - Spending review Topic 1]]+Dataset[[#This Row],[2025/26 From - Spending review Topic 2]]+Dataset[[#This Row],[2025/26 From - Spending review Topic 3]]+Dataset[[#This Row],[2025/26 From - Spending review Topic 4]]+Dataset[[#This Row],[2025/26 From - Other reallocations]]","v":0},{"$f":"Dataset[[#This Row],[2026/27 From - Spending review Topic 1]]+Dataset[[#This Row],[2026/27 From - Spending review Topic 2]]+Dataset[[#This Row],[2026/27 From - Spending review Topic 3]]+Dataset[[#This Row],[2026/27 From - Spending review Topic 4]]+Dataset[[#This Row],[2026/27 From - Other reallocations]]","v":0},{"$f":"Dataset[[#This Row],[2024/25 To - Spending review Topic 1]]+Dataset[[#This Row],[2024/25 To - Spending review Topic 2]]+Dataset[[#This Row],[2024/25 To - Spending review Topic 3]]+Dataset[[#This Row],[2024/25 To - Spending review Topic 4]]+Dataset[[#This Row],[2024/25 To - Other reallocations]]","v":0},{"$f":"Dataset[[#This Row],[2025/26 To - Spending review Topic 1]]+Dataset[[#This Row],[2025/26 To - Spending review Topic 2]]+Dataset[[#This Row],[2025/26 To - Spending review Topic 3]]+Dataset[[#This Row],[2025/26 To - Spending review Topic 4]]+Dataset[[#This Row],[2025/26 To - Other reallocations]]","v":0},{"$f":"Dataset[[#This Row],[2026/27 To - Spending review Topic 1]]+Dataset[[#This Row],[2026/27 To - Spending review Topic 2]]+Dataset[[#This Row],[2026/27 To - Spending review Topic 3]]+Dataset[[#This Row],[2026/27 To - Spending review Topic 4]]+Dataset[[#This Row],[2026/27 To - Other reallocations]]","v":0},{"$f":"Dataset[[#This Row],[2024/25 Reduction]]+Dataset[[#This Row],[2024/25 From - Total]]","v":0},{"$f":"Dataset[[#This Row],[2025/26 Reduction]]+Dataset[[#This Row],[2025/26 From - Total]]","v":0},{"$f":"Dataset[[#This Row],[2026/27 Reduction]]+Dataset[[#This Row],[2026/27 From - Total]]","v":0},{"$f":"Dataset[[#This Row],[2023/24 Reduction]]","v":0},{"$f":"SUM(Dataset[[#This Row],[2024/25 Reduction]],Dataset[[#This Row],[2024/25 From - Total]],Dataset[[#This Row],[2024/25 To - Total]])","v":0},{"$f":"SUM(Dataset[[#This Row],[2025/26 Reduction]],Dataset[[#This Row],[2025/26 From - Total]],Dataset[[#This Row],[2025/26 To - Total]])","v":0},{"$f":"SUM(Dataset[[#This Row],[2026/27 Reduction]],Dataset[[#This Row],[2026/27 From - Total]],Dataset[[#This Row],[2026/27 To - Total]])","v":0},{"$f":"Dataset[[#This Row],[2023/24 Baseline]]+Dataset[[#This Row],[2023/24 Total change]]","v":0},{"$f":"Dataset[[#This Row],[2024/25 Baseline]]+Dataset[[#This Row],[2024/25 Total change]]","v":0},{"$f":"Dataset[[#This Row],[2025/26 Baseline]]+Dataset[[#This Row],[2025/26 Total change]]","v":0},{"$f":"Dataset[[#This Row],[2026/27 Baseline]]+Dataset[[#This Row],[2026/27 Total change]]","v":0}]
["NAT|Non-transfer item","26|Other transfers to households","2024_25","MTEF2024",26,1,4,44175,288,"26","01","04","044175","000288","26|01|04","01","02","10","53","57","01|02|10|53|57","National","Military Veterans","Administration","Internal Audit","Non-transfer item","Current","Transfers and subsidies","Households","Other transfers to households","Other transfers to households","Peace and security","Defence and state security","NAT",0,0,0,0,0,0,0,0,0,0,0,null,null,null,null,null,null,null,null,null,null,null,null,null,null,null,null,null,null,null,null,null,null,null,null,null,null,null,null,null,null,null,null,null,null,{"$f":"Dataset[[#This Row],[2024/25 From - Spending review Topic 1]]+Dataset[[#This Row],[2024/25 From - Spending review Topic 2]]+Dataset[[#This Row],[2024/25 From - Spending review Topic 3]]+Dataset[[#This Row],[2024/25 From - Spending review Topic 4]]+Dataset[[#This Row],[2024/25 From - Other reallocations]]","v":0},{"$f":"Dataset[[#This Row],[2025/26 From - Spending review Topic 1]]+Dataset[[#This Row],[2025/26 From - Spending review Topic 2]]+Dataset[[#This Row],[2025/26 From - Spending review Topic 3]]+Dataset[[#This Row],[2025/26 From - Spending review Topic 4]]+Dataset[[#This Row],[2025/26 From - Other reallocations]]","v":0},{"$f":"Dataset[[#This Row],[2026/27 From - Spending review Topic 1]]+Dataset[[#This Row],[2026/27 From - Spending review Topic 2]]+Dataset[[#This Row],[2026/27 From - Spending review Topic 3]]+Dataset[[#This Row],[2026/27 From - Spending review Topic 4]]+Dataset[[#This Row],[2026/27 From - Other reallocations]]","v":0},{"$f":"Dataset[[#This Row],[2024/25 To - Spending review Topic 1]]+Dataset[[#This Row],[2024/25 To - Spending review Topic 2]]+Dataset[[#This Row],[2024/25 To - Spending review Topic 3]]+Dataset[[#This Row],[2024/25 To - Spending review Topic 4]]+Dataset[[#This Row],[2024/25 To - Other reallocations]]","v":0},{"$f":"Dataset[[#This Row],[2025/26 To - Spending review Topic 1]]+Dataset[[#This Row],[2025/26 To - Spending review Topic 2]]+Dataset[[#This Row],[2025/26 To - Spending review Topic 3]]+Dataset[[#This Row],[2025/26 To - Spending review Topic 4]]+Dataset[[#This Row],[2025/26 To - Other reallocations]]","v":0},{"$f":"Dataset[[#This Row],[2026/27 To - Spending review Topic 1]]+Dataset[[#This Row],[2026/27 To - Spending review Topic 2]]+Dataset[[#This Row],[2026/27 To - Spending review Topic 3]]+Dataset[[#This Row],[2026/27 To - Spending review Topic 4]]+Dataset[[#This Row],[2026/27 To - Other reallocations]]","v":0},{"$f":"Dataset[[#This Row],[2024/25 Reduction]]+Dataset[[#This Row],[2024/25 From - Total]]","v":0},{"$f":"Dataset[[#This Row],[2025/26 Reduction]]+Dataset[[#This Row],[2025/26 From - Total]]","v":0},{"$f":"Dataset[[#This Row],[2026/27 Reduction]]+Dataset[[#This Row],[2026/27 From - Total]]","v":0},{"$f":"Dataset[[#This Row],[2023/24 Reduction]]","v":0},{"$f":"SUM(Dataset[[#This Row],[2024/25 Reduction]],Dataset[[#This Row],[2024/25 From - Total]],Dataset[[#This Row],[2024/25 To - Total]])","v":0},{"$f":"SUM(Dataset[[#This Row],[2025/26 Reduction]],Dataset[[#This Row],[2025/26 From - Total]],Dataset[[#This Row],[2025/26 To - Total]])","v":0},{"$f":"SUM(Dataset[[#This Row],[2026/27 Reduction]],Dataset[[#This Row],[2026/27 From - Total]],Dataset[[#This Row],[2026/27 To - Total]])","v":0},{"$f":"Dataset[[#This Row],[2023/24 Baseline]]+Dataset[[#This Row],[2023/24 Total change]]","v":0},{"$f":"Dataset[[#This Row],[2024/25 Baseline]]+Dataset[[#This Row],[2024/25 Total change]]","v":0},{"$f":"Dataset[[#This Row],[2025/26 Baseline]]+Dataset[[#This Row],[2025/26 Total change]]","v":0},{"$f":"Dataset[[#This Row],[2026/27 Baseline]]+Dataset[[#This Row],[2026/27 Total change]]","v":0}]
["NAT|Non-transfer item","26|Provincial Revenue Funds","2024_25","MTEF2024",26,1,4,44176,289,"26","01","04","044176","000289","26|01|04","02","02","04","43","43","02|02|04|43|43","National","Military Veterans","Administration","Internal Audit","Non-transfer item","Capital","Transfers and subsidies","Provinces and municipalities","Provinces","Provincial Revenue Funds","Peace and security","Defence and state security","NAT",0,0,0,0,0,0,0,0,0,0,0,null,null,null,null,null,null,null,null,null,null,null,null,null,null,null,null,null,null,null,null,null,null,null,null,null,null,null,null,null,null,null,null,null,null,{"$f":"Dataset[[#This Row],[2024/25 From - Spending review Topic 1]]+Dataset[[#This Row],[2024/25 From - Spending review Topic 2]]+Dataset[[#This Row],[2024/25 From - Spending review Topic 3]]+Dataset[[#This Row],[2024/25 From - Spending review Topic 4]]+Dataset[[#This Row],[2024/25 From - Other reallocations]]","v":0},{"$f":"Dataset[[#This Row],[2025/26 From - Spending review Topic 1]]+Dataset[[#This Row],[2025/26 From - Spending review Topic 2]]+Dataset[[#This Row],[2025/26 From - Spending review Topic 3]]+Dataset[[#This Row],[2025/26 From - Spending review Topic 4]]+Dataset[[#This Row],[2025/26 From - Other reallocations]]","v":0},{"$f":"Dataset[[#This Row],[2026/27 From - Spending review Topic 1]]+Dataset[[#This Row],[2026/27 From - Spending review Topic 2]]+Dataset[[#This Row],[2026/27 From - Spending review Topic 3]]+Dataset[[#This Row],[2026/27 From - Spending review Topic 4]]+Dataset[[#This Row],[2026/27 From - Other reallocations]]","v":0},{"$f":"Dataset[[#This Row],[2024/25 To - Spending review Topic 1]]+Dataset[[#This Row],[2024/25 To - Spending review Topic 2]]+Dataset[[#This Row],[2024/25 To - Spending review Topic 3]]+Dataset[[#This Row],[2024/25 To - Spending review Topic 4]]+Dataset[[#This Row],[2024/25 To - Other reallocations]]","v":0},{"$f":"Dataset[[#This Row],[2025/26 To - Spending review Topic 1]]+Dataset[[#This Row],[2025/26 To - Spending review Topic 2]]+Dataset[[#This Row],[2025/26 To - Spending review Topic 3]]+Dataset[[#This Row],[2025/26 To - Spending review Topic 4]]+Dataset[[#This Row],[2025/26 To - Other reallocations]]","v":0},{"$f":"Dataset[[#This Row],[2026/27 To - Spending review Topic 1]]+Dataset[[#This Row],[2026/27 To - Spending review Topic 2]]+Dataset[[#This Row],[2026/27 To - Spending review Topic 3]]+Dataset[[#This Row],[2026/27 To - Spending review Topic 4]]+Dataset[[#This Row],[2026/27 To - Other reallocations]]","v":0},{"$f":"Dataset[[#This Row],[2024/25 Reduction]]+Dataset[[#This Row],[2024/25 From - Total]]","v":0},{"$f":"Dataset[[#This Row],[2025/26 Reduction]]+Dataset[[#This Row],[2025/26 From - Total]]","v":0},{"$f":"Dataset[[#This Row],[2026/27 Reduction]]+Dataset[[#This Row],[2026/27 From - Total]]","v":0},{"$f":"Dataset[[#This Row],[2023/24 Reduction]]","v":0},{"$f":"SUM(Dataset[[#This Row],[2024/25 Reduction]],Dataset[[#This Row],[2024/25 From - Total]],Dataset[[#This Row],[2024/25 To - Total]])","v":0},{"$f":"SUM(Dataset[[#This Row],[2025/26 Reduction]],Dataset[[#This Row],[2025/26 From - Total]],Dataset[[#This Row],[2025/26 To - Total]])","v":0},{"$f":"SUM(Dataset[[#This Row],[2026/27 Reduction]],Dataset[[#This Row],[2026/27 From - Total]],Dataset[[#This Row],[2026/27 To - Total]])","v":0},{"$f":"Dataset[[#This Row],[2023/24 Baseline]]+Dataset[[#This Row],[2023/24 Total change]]","v":0},{"$f":"Dataset[[#This Row],[2024/25 Baseline]]+Dataset[[#This Row],[2024/25 Total change]]","v":0},{"$f":"Dataset[[#This Row],[2025/26 Baseline]]+Dataset[[#This Row],[2025/26 Total change]]","v":0},{"$f":"Dataset[[#This Row],[2026/27 Baseline]]+Dataset[[#This Row],[2026/27 Total change]]","v":0}]
["NAT|Non-transfer item","26|Municipal bank accounts","2024_25","MTEF2024",26,1,4,44177,290,"26","01","04","044177","000290","26|01|04","02","02","04","44","45","02|02|04|44|45","National","Military Veterans","Administration","Internal Audit","Non-transfer item","Capital","Transfers and subsidies","Provinces and municipalities","Municipalities","Municipal bank accounts","Peace and security","Defence and state security","NAT",0,0,0,0,0,0,0,0,0,0,0,null,null,null,null,null,null,null,null,null,null,null,null,null,null,null,null,null,null,null,null,null,null,null,null,null,null,null,null,null,null,null,null,null,null,{"$f":"Dataset[[#This Row],[2024/25 From - Spending review Topic 1]]+Dataset[[#This Row],[2024/25 From - Spending review Topic 2]]+Dataset[[#This Row],[2024/25 From - Spending review Topic 3]]+Dataset[[#This Row],[2024/25 From - Spending review Topic 4]]+Dataset[[#This Row],[2024/25 From - Other reallocations]]","v":0},{"$f":"Dataset[[#This Row],[2025/26 From - Spending review Topic 1]]+Dataset[[#This Row],[2025/26 From - Spending review Topic 2]]+Dataset[[#This Row],[2025/26 From - Spending review Topic 3]]+Dataset[[#This Row],[2025/26 From - Spending review Topic 4]]+Dataset[[#This Row],[2025/26 From - Other reallocations]]","v":0},{"$f":"Dataset[[#This Row],[2026/27 From - Spending review Topic 1]]+Dataset[[#This Row],[2026/27 From - Spending review Topic 2]]+Dataset[[#This Row],[2026/27 From - Spending review Topic 3]]+Dataset[[#This Row],[2026/27 From - Spending review Topic 4]]+Dataset[[#This Row],[2026/27 From - Other reallocations]]","v":0},{"$f":"Dataset[[#This Row],[2024/25 To - Spending review Topic 1]]+Dataset[[#This Row],[2024/25 To - Spending review Topic 2]]+Dataset[[#This Row],[2024/25 To - Spending review Topic 3]]+Dataset[[#This Row],[2024/25 To - Spending review Topic 4]]+Dataset[[#This Row],[2024/25 To - Other reallocations]]","v":0},{"$f":"Dataset[[#This Row],[2025/26 To - Spending review Topic 1]]+Dataset[[#This Row],[2025/26 To - Spending review Topic 2]]+Dataset[[#This Row],[2025/26 To - Spending review Topic 3]]+Dataset[[#This Row],[2025/26 To - Spending review Topic 4]]+Dataset[[#This Row],[2025/26 To - Other reallocations]]","v":0},{"$f":"Dataset[[#This Row],[2026/27 To - Spending review Topic 1]]+Dataset[[#This Row],[2026/27 To - Spending review Topic 2]]+Dataset[[#This Row],[2026/27 To - Spending review Topic 3]]+Dataset[[#This Row],[2026/27 To - Spending review Topic 4]]+Dataset[[#This Row],[2026/27 To - Other reallocations]]","v":0},{"$f":"Dataset[[#This Row],[2024/25 Reduction]]+Dataset[[#This Row],[2024/25 From - Total]]","v":0},{"$f":"Dataset[[#This Row],[2025/26 Reduction]]+Dataset[[#This Row],[2025/26 From - Total]]","v":0},{"$f":"Dataset[[#This Row],[2026/27 Reduction]]+Dataset[[#This Row],[2026/27 From - Total]]","v":0},{"$f":"Dataset[[#This Row],[2023/24 Reduction]]","v":0},{"$f":"SUM(Dataset[[#This Row],[2024/25 Reduction]],Dataset[[#This Row],[2024/25 From - Total]],Dataset[[#This Row],[2024/25 To - Total]])","v":0},{"$f":"SUM(Dataset[[#This Row],[2025/26 Reduction]],Dataset[[#This Row],[2025/26 From - Total]],Dataset[[#This Row],[2025/26 To - Total]])","v":0},{"$f":"SUM(Dataset[[#This Row],[2026/27 Reduction]],Dataset[[#This Row],[2026/27 From - Total]],Dataset[[#This Row],[2026/27 To - Total]])","v":0},{"$f":"Dataset[[#This Row],[2023/24 Baseline]]+Dataset[[#This Row],[2023/24 Total change]]","v":0},{"$f":"Dataset[[#This Row],[2024/25 Baseline]]+Dataset[[#This Row],[2024/25 Total change]]","v":0},{"$f":"Dataset[[#This Row],[2025/26 Baseline]]+Dataset[[#This Row],[2025/26 Total change]]","v":0},{"$f":"Dataset[[#This Row],[2026/27 Baseline]]+Dataset[[#This Row],[2026/27 Total change]]","v":0}]
["NAT|Non-transfer item","26|Departmental agencies (non-business entities)","2024_25","MTEF2024",26,1,4,44178,291,"26","01","04","044178","000291","26|01|04","02","02","05","46","48","02|02|05|46|48","National","Military Veterans","Administration","Internal Audit","Non-transfer item","Capital","Transfers and subsidies","Departmental agencies and accounts","Departmental agencies (non-business entities)","Departmental agencies (non-business entities)","Peace and security","Defence and state security","NAT",0,0,0,0,0,0,0,0,0,0,0,null,null,null,null,null,null,null,null,null,null,null,null,null,null,null,null,null,null,null,null,null,null,null,null,null,null,null,null,null,null,null,null,null,null,{"$f":"Dataset[[#This Row],[2024/25 From - Spending review Topic 1]]+Dataset[[#This Row],[2024/25 From - Spending review Topic 2]]+Dataset[[#This Row],[2024/25 From - Spending review Topic 3]]+Dataset[[#This Row],[2024/25 From - Spending review Topic 4]]+Dataset[[#This Row],[2024/25 From - Other reallocations]]","v":0},{"$f":"Dataset[[#This Row],[2025/26 From - Spending review Topic 1]]+Dataset[[#This Row],[2025/26 From - Spending review Topic 2]]+Dataset[[#This Row],[2025/26 From - Spending review Topic 3]]+Dataset[[#This Row],[2025/26 From - Spending review Topic 4]]+Dataset[[#This Row],[2025/26 From - Other reallocations]]","v":0},{"$f":"Dataset[[#This Row],[2026/27 From - Spending review Topic 1]]+Dataset[[#This Row],[2026/27 From - Spending review Topic 2]]+Dataset[[#This Row],[2026/27 From - Spending review Topic 3]]+Dataset[[#This Row],[2026/27 From - Spending review Topic 4]]+Dataset[[#This Row],[2026/27 From - Other reallocations]]","v":0},{"$f":"Dataset[[#This Row],[2024/25 To - Spending review Topic 1]]+Dataset[[#This Row],[2024/25 To - Spending review Topic 2]]+Dataset[[#This Row],[2024/25 To - Spending review Topic 3]]+Dataset[[#This Row],[2024/25 To - Spending review Topic 4]]+Dataset[[#This Row],[2024/25 To - Other reallocations]]","v":0},{"$f":"Dataset[[#This Row],[2025/26 To - Spending review Topic 1]]+Dataset[[#This Row],[2025/26 To - Spending review Topic 2]]+Dataset[[#This Row],[2025/26 To - Spending review Topic 3]]+Dataset[[#This Row],[2025/26 To - Spending review Topic 4]]+Dataset[[#This Row],[2025/26 To - Other reallocations]]","v":0},{"$f":"Dataset[[#This Row],[2026/27 To - Spending review Topic 1]]+Dataset[[#This Row],[2026/27 To - Spending review Topic 2]]+Dataset[[#This Row],[2026/27 To - Spending review Topic 3]]+Dataset[[#This Row],[2026/27 To - Spending review Topic 4]]+Dataset[[#This Row],[2026/27 To - Other reallocations]]","v":0},{"$f":"Dataset[[#This Row],[2024/25 Reduction]]+Dataset[[#This Row],[2024/25 From - Total]]","v":0},{"$f":"Dataset[[#This Row],[2025/26 Reduction]]+Dataset[[#This Row],[2025/26 From - Total]]","v":0},{"$f":"Dataset[[#This Row],[2026/27 Reduction]]+Dataset[[#This Row],[2026/27 From - Total]]","v":0},{"$f":"Dataset[[#This Row],[2023/24 Reduction]]","v":0},{"$f":"SUM(Dataset[[#This Row],[2024/25 Reduction]],Dataset[[#This Row],[2024/25 From - Total]],Dataset[[#This Row],[2024/25 To - Total]])","v":0},{"$f":"SUM(Dataset[[#This Row],[2025/26 Reduction]],Dataset[[#This Row],[2025/26 From - Total]],Dataset[[#This Row],[2025/26 To - Total]])","v":0},{"$f":"SUM(Dataset[[#This Row],[2026/27 Reduction]],Dataset[[#This Row],[2026/27 From - Total]],Dataset[[#This Row],[2026/27 To - Total]])","v":0},{"$f":"Dataset[[#This Row],[2023/24 Baseline]]+Dataset[[#This Row],[2023/24 Total change]]","v":0},{"$f":"Dataset[[#This Row],[2024/25 Baseline]]+Dataset[[#This Row],[2024/25 Total change]]","v":0},{"$f":"Dataset[[#This Row],[2025/26 Baseline]]+Dataset[[#This Row],[2025/26 Total change]]","v":0},{"$f":"Dataset[[#This Row],[2026/27 Baseline]]+Dataset[[#This Row],[2026/27 Total change]]","v":0}]
["NAT|Non-transfer item","26|Higher education institutions","2024_25","MTEF2024",26,1,4,44179,292,"26","01","04","044179","000292","26|01|04","02","02","06","47","49","02|02|06|47|49","National","Military Veterans","Administration","Internal Audit","Non-transfer item","Capital","Transfers and subsidies","Higher education institutions","Higher education institutions","Higher education institutions","Peace and security","Defence and state security","NAT",0,0,0,0,0,0,0,0,0,0,0,null,null,null,null,null,null,null,null,null,null,null,null,null,null,null,null,null,null,null,null,null,null,null,null,null,null,null,null,null,null,null,null,null,null,{"$f":"Dataset[[#This Row],[2024/25 From - Spending review Topic 1]]+Dataset[[#This Row],[2024/25 From - Spending review Topic 2]]+Dataset[[#This Row],[2024/25 From - Spending review Topic 3]]+Dataset[[#This Row],[2024/25 From - Spending review Topic 4]]+Dataset[[#This Row],[2024/25 From - Other reallocations]]","v":0},{"$f":"Dataset[[#This Row],[2025/26 From - Spending review Topic 1]]+Dataset[[#This Row],[2025/26 From - Spending review Topic 2]]+Dataset[[#This Row],[2025/26 From - Spending review Topic 3]]+Dataset[[#This Row],[2025/26 From - Spending review Topic 4]]+Dataset[[#This Row],[2025/26 From - Other reallocations]]","v":0},{"$f":"Dataset[[#This Row],[2026/27 From - Spending review Topic 1]]+Dataset[[#This Row],[2026/27 From - Spending review Topic 2]]+Dataset[[#This Row],[2026/27 From - Spending review Topic 3]]+Dataset[[#This Row],[2026/27 From - Spending review Topic 4]]+Dataset[[#This Row],[2026/27 From - Other reallocations]]","v":0},{"$f":"Dataset[[#This Row],[2024/25 To - Spending review Topic 1]]+Dataset[[#This Row],[2024/25 To - Spending review Topic 2]]+Dataset[[#This Row],[2024/25 To - Spending review Topic 3]]+Dataset[[#This Row],[2024/25 To - Spending review Topic 4]]+Dataset[[#This Row],[2024/25 To - Other reallocations]]","v":0},{"$f":"Dataset[[#This Row],[2025/26 To - Spending review Topic 1]]+Dataset[[#This Row],[2025/26 To - Spending review Topic 2]]+Dataset[[#This Row],[2025/26 To - Spending review Topic 3]]+Dataset[[#This Row],[2025/26 To - Spending review Topic 4]]+Dataset[[#This Row],[2025/26 To - Other reallocations]]","v":0},{"$f":"Dataset[[#This Row],[2026/27 To - Spending review Topic 1]]+Dataset[[#This Row],[2026/27 To - Spending review Topic 2]]+Dataset[[#This Row],[2026/27 To - Spending review Topic 3]]+Dataset[[#This Row],[2026/27 To - Spending review Topic 4]]+Dataset[[#This Row],[2026/27 To - Other reallocations]]","v":0},{"$f":"Dataset[[#This Row],[2024/25 Reduction]]+Dataset[[#This Row],[2024/25 From - Total]]","v":0},{"$f":"Dataset[[#This Row],[2025/26 Reduction]]+Dataset[[#This Row],[2025/26 From - Total]]","v":0},{"$f":"Dataset[[#This Row],[2026/27 Reduction]]+Dataset[[#This Row],[2026/27 From - Total]]","v":0},{"$f":"Dataset[[#This Row],[2023/24 Reduction]]","v":0},{"$f":"SUM(Dataset[[#This Row],[2024/25 Reduction]],Dataset[[#This Row],[2024/25 From - Total]],Dataset[[#This Row],[2024/25 To - Total]])","v":0},{"$f":"SUM(Dataset[[#This Row],[2025/26 Reduction]],Dataset[[#This Row],[2025/26 From - Total]],Dataset[[#This Row],[2025/26 To - Total]])","v":0},{"$f":"SUM(Dataset[[#This Row],[2026/27 Reduction]],Dataset[[#This Row],[2026/27 From - Total]],Dataset[[#This Row],[2026/27 To - Total]])","v":0},{"$f":"Dataset[[#This Row],[2023/24 Baseline]]+Dataset[[#This Row],[2023/24 Total change]]","v":0},{"$f":"Dataset[[#This Row],[2024/25 Baseline]]+Dataset[[#This Row],[2024/25 Total change]]","v":0},{"$f":"Dataset[[#This Row],[2025/26 Baseline]]+Dataset[[#This Row],[2025/26 Total change]]","v":0},{"$f":"Dataset[[#This Row],[2026/27 Baseline]]+Dataset[[#This Row],[2026/27 Total change]]","v":0}]
["NAT|Non-transfer item","26|Foreign governments and international organisations","2024_25","MTEF2024",26,1,4,44180,293,"26","01","04","044180","000293","26|01|04","02","02","07","48","50","02|02|07|48|50","National","Military Veterans","Administration","Internal Audit","Non-transfer item","Capital","Transfers and subsidies","Foreign governments and international organisations","Foreign governments and international organisations","Foreign governments and international organisations","Peace and security","Defence and state security","NAT",0,0,0,0,0,0,0,0,0,0,0,null,null,null,null,null,null,null,null,null,null,null,null,null,null,null,null,null,null,null,null,null,null,null,null,null,null,null,null,null,null,null,null,null,null,{"$f":"Dataset[[#This Row],[2024/25 From - Spending review Topic 1]]+Dataset[[#This Row],[2024/25 From - Spending review Topic 2]]+Dataset[[#This Row],[2024/25 From - Spending review Topic 3]]+Dataset[[#This Row],[2024/25 From - Spending review Topic 4]]+Dataset[[#This Row],[2024/25 From - Other reallocations]]","v":0},{"$f":"Dataset[[#This Row],[2025/26 From - Spending review Topic 1]]+Dataset[[#This Row],[2025/26 From - Spending review Topic 2]]+Dataset[[#This Row],[2025/26 From - Spending review Topic 3]]+Dataset[[#This Row],[2025/26 From - Spending review Topic 4]]+Dataset[[#This Row],[2025/26 From - Other reallocations]]","v":0},{"$f":"Dataset[[#This Row],[2026/27 From - Spending review Topic 1]]+Dataset[[#This Row],[2026/27 From - Spending review Topic 2]]+Dataset[[#This Row],[2026/27 From - Spending review Topic 3]]+Dataset[[#This Row],[2026/27 From - Spending review Topic 4]]+Dataset[[#This Row],[2026/27 From - Other reallocations]]","v":0},{"$f":"Dataset[[#This Row],[2024/25 To - Spending review Topic 1]]+Dataset[[#This Row],[2024/25 To - Spending review Topic 2]]+Dataset[[#This Row],[2024/25 To - Spending review Topic 3]]+Dataset[[#This Row],[2024/25 To - Spending review Topic 4]]+Dataset[[#This Row],[2024/25 To - Other reallocations]]","v":0},{"$f":"Dataset[[#This Row],[2025/26 To - Spending review Topic 1]]+Dataset[[#This Row],[2025/26 To - Spending review Topic 2]]+Dataset[[#This Row],[2025/26 To - Spending review Topic 3]]+Dataset[[#This Row],[2025/26 To - Spending review Topic 4]]+Dataset[[#This Row],[2025/26 To - Other reallocations]]","v":0},{"$f":"Dataset[[#This Row],[2026/27 To - Spending review Topic 1]]+Dataset[[#This Row],[2026/27 To - Spending review Topic 2]]+Dataset[[#This Row],[2026/27 To - Spending review Topic 3]]+Dataset[[#This Row],[2026/27 To - Spending review Topic 4]]+Dataset[[#This Row],[2026/27 To - Other reallocations]]","v":0},{"$f":"Dataset[[#This Row],[2024/25 Reduction]]+Dataset[[#This Row],[2024/25 From - Total]]","v":0},{"$f":"Dataset[[#This Row],[2025/26 Reduction]]+Dataset[[#This Row],[2025/26 From - Total]]","v":0},{"$f":"Dataset[[#This Row],[2026/27 Reduction]]+Dataset[[#This Row],[2026/27 From - Total]]","v":0},{"$f":"Dataset[[#This Row],[2023/24 Reduction]]","v":0},{"$f":"SUM(Dataset[[#This Row],[2024/25 Reduction]],Dataset[[#This Row],[2024/25 From - Total]],Dataset[[#This Row],[2024/25 To - Total]])","v":0},{"$f":"SUM(Dataset[[#This Row],[2025/26 Reduction]],Dataset[[#This Row],[2025/26 From - Total]],Dataset[[#This Row],[2025/26 To - Total]])","v":0},{"$f":"SUM(Dataset[[#This Row],[2026/27 Reduction]],Dataset[[#This Row],[2026/27 From - Total]],Dataset[[#This Row],[2026/27 To - Total]])","v":0},{"$f":"Dataset[[#This Row],[2023/24 Baseline]]+Dataset[[#This Row],[2023/24 Total change]]","v":0},{"$f":"Dataset[[#This Row],[2024/25 Baseline]]+Dataset[[#This Row],[2024/25 Total change]]","v":0},{"$f":"Dataset[[#This Row],[2025/26 Baseline]]+Dataset[[#This Row],[2025/26 Total change]]","v":0},{"$f":"Dataset[[#This Row],[2026/27 Baseline]]+Dataset[[#This Row],[2026/27 Total change]]","v":0}]
["NAT|Non-transfer item","26|Subsidies on products and production (pc)","2024_25","MTEF2024",26,1,4,44181,294,"26","01","04","044181","000294","26|01|04","02","02","08","49","51","02|02|08|49|51","National","Military Veterans","Administration","Internal Audit","Non-transfer item","Capital","Transfers and subsidies","Public corporations and private enterprises","Public corporations","Subsidies on products and production (pc)","Peace and security","Defence and state security","NAT",0,0,0,0,0,0,0,0,0,0,0,null,null,null,null,null,null,null,null,null,null,null,null,null,null,null,null,null,null,null,null,null,null,null,null,null,null,null,null,null,null,null,null,null,null,{"$f":"Dataset[[#This Row],[2024/25 From - Spending review Topic 1]]+Dataset[[#This Row],[2024/25 From - Spending review Topic 2]]+Dataset[[#This Row],[2024/25 From - Spending review Topic 3]]+Dataset[[#This Row],[2024/25 From - Spending review Topic 4]]+Dataset[[#This Row],[2024/25 From - Other reallocations]]","v":0},{"$f":"Dataset[[#This Row],[2025/26 From - Spending review Topic 1]]+Dataset[[#This Row],[2025/26 From - Spending review Topic 2]]+Dataset[[#This Row],[2025/26 From - Spending review Topic 3]]+Dataset[[#This Row],[2025/26 From - Spending review Topic 4]]+Dataset[[#This Row],[2025/26 From - Other reallocations]]","v":0},{"$f":"Dataset[[#This Row],[2026/27 From - Spending review Topic 1]]+Dataset[[#This Row],[2026/27 From - Spending review Topic 2]]+Dataset[[#This Row],[2026/27 From - Spending review Topic 3]]+Dataset[[#This Row],[2026/27 From - Spending review Topic 4]]+Dataset[[#This Row],[2026/27 From - Other reallocations]]","v":0},{"$f":"Dataset[[#This Row],[2024/25 To - Spending review Topic 1]]+Dataset[[#This Row],[2024/25 To - Spending review Topic 2]]+Dataset[[#This Row],[2024/25 To - Spending review Topic 3]]+Dataset[[#This Row],[2024/25 To - Spending review Topic 4]]+Dataset[[#This Row],[2024/25 To - Other reallocations]]","v":0},{"$f":"Dataset[[#This Row],[2025/26 To - Spending review Topic 1]]+Dataset[[#This Row],[2025/26 To - Spending review Topic 2]]+Dataset[[#This Row],[2025/26 To - Spending review Topic 3]]+Dataset[[#This Row],[2025/26 To - Spending review Topic 4]]+Dataset[[#This Row],[2025/26 To - Other reallocations]]","v":0},{"$f":"Dataset[[#This Row],[2026/27 To - Spending review Topic 1]]+Dataset[[#This Row],[2026/27 To - Spending review Topic 2]]+Dataset[[#This Row],[2026/27 To - Spending review Topic 3]]+Dataset[[#This Row],[2026/27 To - Spending review Topic 4]]+Dataset[[#This Row],[2026/27 To - Other reallocations]]","v":0},{"$f":"Dataset[[#This Row],[2024/25 Reduction]]+Dataset[[#This Row],[2024/25 From - Total]]","v":0},{"$f":"Dataset[[#This Row],[2025/26 Reduction]]+Dataset[[#This Row],[2025/26 From - Total]]","v":0},{"$f":"Dataset[[#This Row],[2026/27 Reduction]]+Dataset[[#This Row],[2026/27 From - Total]]","v":0},{"$f":"Dataset[[#This Row],[2023/24 Reduction]]","v":0},{"$f":"SUM(Dataset[[#This Row],[2024/25 Reduction]],Dataset[[#This Row],[2024/25 From - Total]],Dataset[[#This Row],[2024/25 To - Total]])","v":0},{"$f":"SUM(Dataset[[#This Row],[2025/26 Reduction]],Dataset[[#This Row],[2025/26 From - Total]],Dataset[[#This Row],[2025/26 To - Total]])","v":0},{"$f":"SUM(Dataset[[#This Row],[2026/27 Reduction]],Dataset[[#This Row],[2026/27 From - Total]],Dataset[[#This Row],[2026/27 To - Total]])","v":0},{"$f":"Dataset[[#This Row],[2023/24 Baseline]]+Dataset[[#This Row],[2023/24 Total change]]","v":0},{"$f":"Dataset[[#This Row],[2024/25 Baseline]]+Dataset[[#This Row],[2024/25 Total change]]","v":0},{"$f":"Dataset[[#This Row],[2025/26 Baseline]]+Dataset[[#This Row],[2025/26 Total change]]","v":0},{"$f":"Dataset[[#This Row],[2026/27 Baseline]]+Dataset[[#This Row],[2026/27 Total change]]","v":0}]
["NAT|Non-transfer item","26|Other transfers to public corporations","2024_25","MTEF2024",26,1,4,44182,295,"26","01","04","044182","000295","26|01|04","02","02","08","49","52","02|02|08|49|52","National","Military Veterans","Administration","Internal Audit","Non-transfer item","Capital","Transfers and subsidies","Public corporations and private enterprises","Public corporations","Other transfers to public corporations","Peace and security","Defence and state security","NAT",0,0,0,0,0,0,0,0,0,0,0,null,null,null,null,null,null,null,null,null,null,null,null,null,null,null,null,null,null,null,null,null,null,null,null,null,null,null,null,null,null,null,null,null,null,{"$f":"Dataset[[#This Row],[2024/25 From - Spending review Topic 1]]+Dataset[[#This Row],[2024/25 From - Spending review Topic 2]]+Dataset[[#This Row],[2024/25 From - Spending review Topic 3]]+Dataset[[#This Row],[2024/25 From - Spending review Topic 4]]+Dataset[[#This Row],[2024/25 From - Other reallocations]]","v":0},{"$f":"Dataset[[#This Row],[2025/26 From - Spending review Topic 1]]+Dataset[[#This Row],[2025/26 From - Spending review Topic 2]]+Dataset[[#This Row],[2025/26 From - Spending review Topic 3]]+Dataset[[#This Row],[2025/26 From - Spending review Topic 4]]+Dataset[[#This Row],[2025/26 From - Other reallocations]]","v":0},{"$f":"Dataset[[#This Row],[2026/27 From - Spending review Topic 1]]+Dataset[[#This Row],[2026/27 From - Spending review Topic 2]]+Dataset[[#This Row],[2026/27 From - Spending review Topic 3]]+Dataset[[#This Row],[2026/27 From - Spending review Topic 4]]+Dataset[[#This Row],[2026/27 From - Other reallocations]]","v":0},{"$f":"Dataset[[#This Row],[2024/25 To - Spending review Topic 1]]+Dataset[[#This Row],[2024/25 To - Spending review Topic 2]]+Dataset[[#This Row],[2024/25 To - Spending review Topic 3]]+Dataset[[#This Row],[2024/25 To - Spending review Topic 4]]+Dataset[[#This Row],[2024/25 To - Other reallocations]]","v":0},{"$f":"Dataset[[#This Row],[2025/26 To - Spending review Topic 1]]+Dataset[[#This Row],[2025/26 To - Spending review Topic 2]]+Dataset[[#This Row],[2025/26 To - Spending review Topic 3]]+Dataset[[#This Row],[2025/26 To - Spending review Topic 4]]+Dataset[[#This Row],[2025/26 To - Other reallocations]]","v":0},{"$f":"Dataset[[#This Row],[2026/27 To - Spending review Topic 1]]+Dataset[[#This Row],[2026/27 To - Spending review Topic 2]]+Dataset[[#This Row],[2026/27 To - Spending review Topic 3]]+Dataset[[#This Row],[2026/27 To - Spending review Topic 4]]+Dataset[[#This Row],[2026/27 To - Other reallocations]]","v":0},{"$f":"Dataset[[#This Row],[2024/25 Reduction]]+Dataset[[#This Row],[2024/25 From - Total]]","v":0},{"$f":"Dataset[[#This Row],[2025/26 Reduction]]+Dataset[[#This Row],[2025/26 From - Total]]","v":0},{"$f":"Dataset[[#This Row],[2026/27 Reduction]]+Dataset[[#This Row],[2026/27 From - Total]]","v":0},{"$f":"Dataset[[#This Row],[2023/24 Reduction]]","v":0},{"$f":"SUM(Dataset[[#This Row],[2024/25 Reduction]],Dataset[[#This Row],[2024/25 From - Total]],Dataset[[#This Row],[2024/25 To - Total]])","v":0},{"$f":"SUM(Dataset[[#This Row],[2025/26 Reduction]],Dataset[[#This Row],[2025/26 From - Total]],Dataset[[#This Row],[2025/26 To - Total]])","v":0},{"$f":"SUM(Dataset[[#This Row],[2026/27 Reduction]],Dataset[[#This Row],[2026/27 From - Total]],Dataset[[#This Row],[2026/27 To - Total]])","v":0},{"$f":"Dataset[[#This Row],[2023/24 Baseline]]+Dataset[[#This Row],[2023/24 Total change]]","v":0},{"$f":"Dataset[[#This Row],[2024/25 Baseline]]+Dataset[[#This Row],[2024/25 Total change]]","v":0},{"$f":"Dataset[[#This Row],[2025/26 Baseline]]+Dataset[[#This Row],[2025/26 Total change]]","v":0},{"$f":"Dataset[[#This Row],[2026/27 Baseline]]+Dataset[[#This Row],[2026/27 Total change]]","v":0}]
["NAT|Non-transfer item","26|Other transfers to private enterprises","2024_25","MTEF2024",26,1,4,44183,296,"26","01","04","044183","000296","26|01|04","02","02","08","50","54","02|02|08|50|54","National","Military Veterans","Administration","Internal Audit","Non-transfer item","Capital","Transfers and subsidies","Public corporations and private enterprises","Private enterprises","Other transfers to private enterprises","Peace and security","Defence and state security","NAT",0,0,0,0,0,0,0,0,0,0,0,null,null,null,null,null,null,null,null,null,null,null,null,null,null,null,null,null,null,null,null,null,null,null,null,null,null,null,null,null,null,null,null,null,null,{"$f":"Dataset[[#This Row],[2024/25 From - Spending review Topic 1]]+Dataset[[#This Row],[2024/25 From - Spending review Topic 2]]+Dataset[[#This Row],[2024/25 From - Spending review Topic 3]]+Dataset[[#This Row],[2024/25 From - Spending review Topic 4]]+Dataset[[#This Row],[2024/25 From - Other reallocations]]","v":0},{"$f":"Dataset[[#This Row],[2025/26 From - Spending review Topic 1]]+Dataset[[#This Row],[2025/26 From - Spending review Topic 2]]+Dataset[[#This Row],[2025/26 From - Spending review Topic 3]]+Dataset[[#This Row],[2025/26 From - Spending review Topic 4]]+Dataset[[#This Row],[2025/26 From - Other reallocations]]","v":0},{"$f":"Dataset[[#This Row],[2026/27 From - Spending review Topic 1]]+Dataset[[#This Row],[2026/27 From - Spending review Topic 2]]+Dataset[[#This Row],[2026/27 From - Spending review Topic 3]]+Dataset[[#This Row],[2026/27 From - Spending review Topic 4]]+Dataset[[#This Row],[2026/27 From - Other reallocations]]","v":0},{"$f":"Dataset[[#This Row],[2024/25 To - Spending review Topic 1]]+Dataset[[#This Row],[2024/25 To - Spending review Topic 2]]+Dataset[[#This Row],[2024/25 To - Spending review Topic 3]]+Dataset[[#This Row],[2024/25 To - Spending review Topic 4]]+Dataset[[#This Row],[2024/25 To - Other reallocations]]","v":0},{"$f":"Dataset[[#This Row],[2025/26 To - Spending review Topic 1]]+Dataset[[#This Row],[2025/26 To - Spending review Topic 2]]+Dataset[[#This Row],[2025/26 To - Spending review Topic 3]]+Dataset[[#This Row],[2025/26 To - Spending review Topic 4]]+Dataset[[#This Row],[2025/26 To - Other reallocations]]","v":0},{"$f":"Dataset[[#This Row],[2026/27 To - Spending review Topic 1]]+Dataset[[#This Row],[2026/27 To - Spending review Topic 2]]+Dataset[[#This Row],[2026/27 To - Spending review Topic 3]]+Dataset[[#This Row],[2026/27 To - Spending review Topic 4]]+Dataset[[#This Row],[2026/27 To - Other reallocations]]","v":0},{"$f":"Dataset[[#This Row],[2024/25 Reduction]]+Dataset[[#This Row],[2024/25 From - Total]]","v":0},{"$f":"Dataset[[#This Row],[2025/26 Reduction]]+Dataset[[#This Row],[2025/26 From - Total]]","v":0},{"$f":"Dataset[[#This Row],[2026/27 Reduction]]+Dataset[[#This Row],[2026/27 From - Total]]","v":0},{"$f":"Dataset[[#This Row],[2023/24 Reduction]]","v":0},{"$f":"SUM(Dataset[[#This Row],[2024/25 Reduction]],Dataset[[#This Row],[2024/25 From - Total]],Dataset[[#This Row],[2024/25 To - Total]])","v":0},{"$f":"SUM(Dataset[[#This Row],[2025/26 Reduction]],Dataset[[#This Row],[2025/26 From - Total]],Dataset[[#This Row],[2025/26 To - Total]])","v":0},{"$f":"SUM(Dataset[[#This Row],[2026/27 Reduction]],Dataset[[#This Row],[2026/27 From - Total]],Dataset[[#This Row],[2026/27 To - Total]])","v":0},{"$f":"Dataset[[#This Row],[2023/24 Baseline]]+Dataset[[#This Row],[2023/24 Total change]]","v":0},{"$f":"Dataset[[#This Row],[2024/25 Baseline]]+Dataset[[#This Row],[2024/25 Total change]]","v":0},{"$f":"Dataset[[#This Row],[2025/26 Baseline]]+Dataset[[#This Row],[2025/26 Total change]]","v":0},{"$f":"Dataset[[#This Row],[2026/27 Baseline]]+Dataset[[#This Row],[2026/27 Total change]]","v":0}]
["NAT|Non-transfer item","26|Non-profit institutions","2024_25","MTEF2024",26,1,4,44184,297,"26","01","04","044184","000297","26|01|04","02","02","09","51","55","02|02|09|51|55","National","Military Veterans","Administration","Internal Audit","Non-transfer item","Capital","Transfers and subsidies","Non-profit institutions","Non-profit institutions","Non-profit institutions","Peace and security","Defence and state security","NAT",0,0,0,0,0,0,0,0,0,0,0,null,null,null,null,null,null,null,null,null,null,null,null,null,null,null,null,null,null,null,null,null,null,null,null,null,null,null,null,null,null,null,null,null,null,{"$f":"Dataset[[#This Row],[2024/25 From - Spending review Topic 1]]+Dataset[[#This Row],[2024/25 From - Spending review Topic 2]]+Dataset[[#This Row],[2024/25 From - Spending review Topic 3]]+Dataset[[#This Row],[2024/25 From - Spending review Topic 4]]+Dataset[[#This Row],[2024/25 From - Other reallocations]]","v":0},{"$f":"Dataset[[#This Row],[2025/26 From - Spending review Topic 1]]+Dataset[[#This Row],[2025/26 From - Spending review Topic 2]]+Dataset[[#This Row],[2025/26 From - Spending review Topic 3]]+Dataset[[#This Row],[2025/26 From - Spending review Topic 4]]+Dataset[[#This Row],[2025/26 From - Other reallocations]]","v":0},{"$f":"Dataset[[#This Row],[2026/27 From - Spending review Topic 1]]+Dataset[[#This Row],[2026/27 From - Spending review Topic 2]]+Dataset[[#This Row],[2026/27 From - Spending review Topic 3]]+Dataset[[#This Row],[2026/27 From - Spending review Topic 4]]+Dataset[[#This Row],[2026/27 From - Other reallocations]]","v":0},{"$f":"Dataset[[#This Row],[2024/25 To - Spending review Topic 1]]+Dataset[[#This Row],[2024/25 To - Spending review Topic 2]]+Dataset[[#This Row],[2024/25 To - Spending review Topic 3]]+Dataset[[#This Row],[2024/25 To - Spending review Topic 4]]+Dataset[[#This Row],[2024/25 To - Other reallocations]]","v":0},{"$f":"Dataset[[#This Row],[2025/26 To - Spending review Topic 1]]+Dataset[[#This Row],[2025/26 To - Spending review Topic 2]]+Dataset[[#This Row],[2025/26 To - Spending review Topic 3]]+Dataset[[#This Row],[2025/26 To - Spending review Topic 4]]+Dataset[[#This Row],[2025/26 To - Other reallocations]]","v":0},{"$f":"Dataset[[#This Row],[2026/27 To - Spending review Topic 1]]+Dataset[[#This Row],[2026/27 To - Spending review Topic 2]]+Dataset[[#This Row],[2026/27 To - Spending review Topic 3]]+Dataset[[#This Row],[2026/27 To - Spending review Topic 4]]+Dataset[[#This Row],[2026/27 To - Other reallocations]]","v":0},{"$f":"Dataset[[#This Row],[2024/25 Reduction]]+Dataset[[#This Row],[2024/25 From - Total]]","v":0},{"$f":"Dataset[[#This Row],[2025/26 Reduction]]+Dataset[[#This Row],[2025/26 From - Total]]","v":0},{"$f":"Dataset[[#This Row],[2026/27 Reduction]]+Dataset[[#This Row],[2026/27 From - Total]]","v":0},{"$f":"Dataset[[#This Row],[2023/24 Reduction]]","v":0},{"$f":"SUM(Dataset[[#This Row],[2024/25 Reduction]],Dataset[[#This Row],[2024/25 From - Total]],Dataset[[#This Row],[2024/25 To - Total]])","v":0},{"$f":"SUM(Dataset[[#This Row],[2025/26 Reduction]],Dataset[[#This Row],[2025/26 From - Total]],Dataset[[#This Row],[2025/26 To - Total]])","v":0},{"$f":"SUM(Dataset[[#This Row],[2026/27 Reduction]],Dataset[[#This Row],[2026/27 From - Total]],Dataset[[#This Row],[2026/27 To - Total]])","v":0},{"$f":"Dataset[[#This Row],[2023/24 Baseline]]+Dataset[[#This Row],[2023/24 Total change]]","v":0},{"$f":"Dataset[[#This Row],[2024/25 Baseline]]+Dataset[[#This Row],[2024/25 Total change]]","v":0},{"$f":"Dataset[[#This Row],[2025/26 Baseline]]+Dataset[[#This Row],[2025/26 Total change]]","v":0},{"$f":"Dataset[[#This Row],[2026/27 Baseline]]+Dataset[[#This Row],[2026/27 Total change]]","v":0}]
["NAT|Non-transfer item","26|Other transfers to households","2024_25","MTEF2024",26,1,4,44185,298,"26","01","04","044185","000298","26|01|04","02","02","10","53","57","02|02|10|53|57","National","Military Veterans","Administration","Internal Audit","Non-transfer item","Capital","Transfers and subsidies","Households","Other transfers to households","Other transfers to households","Peace and security","Defence and state security","NAT",0,0,0,0,0,0,0,0,0,0,0,null,null,null,null,null,null,null,null,null,null,null,null,null,null,null,null,null,null,null,null,null,null,null,null,null,null,null,null,null,null,null,null,null,null,{"$f":"Dataset[[#This Row],[2024/25 From - Spending review Topic 1]]+Dataset[[#This Row],[2024/25 From - Spending review Topic 2]]+Dataset[[#This Row],[2024/25 From - Spending review Topic 3]]+Dataset[[#This Row],[2024/25 From - Spending review Topic 4]]+Dataset[[#This Row],[2024/25 From - Other reallocations]]","v":0},{"$f":"Dataset[[#This Row],[2025/26 From - Spending review Topic 1]]+Dataset[[#This Row],[2025/26 From - Spending review Topic 2]]+Dataset[[#This Row],[2025/26 From - Spending review Topic 3]]+Dataset[[#This Row],[2025/26 From - Spending review Topic 4]]+Dataset[[#This Row],[2025/26 From - Other reallocations]]","v":0},{"$f":"Dataset[[#This Row],[2026/27 From - Spending review Topic 1]]+Dataset[[#This Row],[2026/27 From - Spending review Topic 2]]+Dataset[[#This Row],[2026/27 From - Spending review Topic 3]]+Dataset[[#This Row],[2026/27 From - Spending review Topic 4]]+Dataset[[#This Row],[2026/27 From - Other reallocations]]","v":0},{"$f":"Dataset[[#This Row],[2024/25 To - Spending review Topic 1]]+Dataset[[#This Row],[2024/25 To - Spending review Topic 2]]+Dataset[[#This Row],[2024/25 To - Spending review Topic 3]]+Dataset[[#This Row],[2024/25 To - Spending review Topic 4]]+Dataset[[#This Row],[2024/25 To - Other reallocations]]","v":0},{"$f":"Dataset[[#This Row],[2025/26 To - Spending review Topic 1]]+Dataset[[#This Row],[2025/26 To - Spending review Topic 2]]+Dataset[[#This Row],[2025/26 To - Spending review Topic 3]]+Dataset[[#This Row],[2025/26 To - Spending review Topic 4]]+Dataset[[#This Row],[2025/26 To - Other reallocations]]","v":0},{"$f":"Dataset[[#This Row],[2026/27 To - Spending review Topic 1]]+Dataset[[#This Row],[2026/27 To - Spending review Topic 2]]+Dataset[[#This Row],[2026/27 To - Spending review Topic 3]]+Dataset[[#This Row],[2026/27 To - Spending review Topic 4]]+Dataset[[#This Row],[2026/27 To - Other reallocations]]","v":0},{"$f":"Dataset[[#This Row],[2024/25 Reduction]]+Dataset[[#This Row],[2024/25 From - Total]]","v":0},{"$f":"Dataset[[#This Row],[2025/26 Reduction]]+Dataset[[#This Row],[2025/26 From - Total]]","v":0},{"$f":"Dataset[[#This Row],[2026/27 Reduction]]+Dataset[[#This Row],[2026/27 From - Total]]","v":0},{"$f":"Dataset[[#This Row],[2023/24 Reduction]]","v":0},{"$f":"SUM(Dataset[[#This Row],[2024/25 Reduction]],Dataset[[#This Row],[2024/25 From - Total]],Dataset[[#This Row],[2024/25 To - Total]])","v":0},{"$f":"SUM(Dataset[[#This Row],[2025/26 Reduction]],Dataset[[#This Row],[2025/26 From - Total]],Dataset[[#This Row],[2025/26 To - Total]])","v":0},{"$f":"SUM(Dataset[[#This Row],[2026/27 Reduction]],Dataset[[#This Row],[2026/27 From - Total]],Dataset[[#This Row],[2026/27 To - Total]])","v":0},{"$f":"Dataset[[#This Row],[2023/24 Baseline]]+Dataset[[#This Row],[2023/24 Total change]]","v":0},{"$f":"Dataset[[#This Row],[2024/25 Baseline]]+Dataset[[#This Row],[2024/25 Total change]]","v":0},{"$f":"Dataset[[#This Row],[2025/26 Baseline]]+Dataset[[#This Row],[2025/26 Total change]]","v":0},{"$f":"Dataset[[#This Row],[2026/27 Baseline]]+Dataset[[#This Row],[2026/27 Total change]]","v":0}]
["NAT|Non-transfer item","26|Buildings","2024_25","MTEF2024",26,1,4,44186,299,"26","01","04","044186","000299","26|01|04","02","03","11","54","58","02|03|11|54|58","National","Military Veterans","Administration","Internal Audit","Non-transfer item","Capital","Payments for capital assets","Buildings and other fixed structures","Buildings","Buildings","Peace and security","Defence and state security","NAT",0,0,0,0,0,0,0,0,0,0,0,null,null,null,null,null,null,null,null,null,null,null,null,null,null,null,null,null,null,null,null,null,null,null,null,null,null,null,null,null,null,null,null,null,null,{"$f":"Dataset[[#This Row],[2024/25 From - Spending review Topic 1]]+Dataset[[#This Row],[2024/25 From - Spending review Topic 2]]+Dataset[[#This Row],[2024/25 From - Spending review Topic 3]]+Dataset[[#This Row],[2024/25 From - Spending review Topic 4]]+Dataset[[#This Row],[2024/25 From - Other reallocations]]","v":0},{"$f":"Dataset[[#This Row],[2025/26 From - Spending review Topic 1]]+Dataset[[#This Row],[2025/26 From - Spending review Topic 2]]+Dataset[[#This Row],[2025/26 From - Spending review Topic 3]]+Dataset[[#This Row],[2025/26 From - Spending review Topic 4]]+Dataset[[#This Row],[2025/26 From - Other reallocations]]","v":0},{"$f":"Dataset[[#This Row],[2026/27 From - Spending review Topic 1]]+Dataset[[#This Row],[2026/27 From - Spending review Topic 2]]+Dataset[[#This Row],[2026/27 From - Spending review Topic 3]]+Dataset[[#This Row],[2026/27 From - Spending review Topic 4]]+Dataset[[#This Row],[2026/27 From - Other reallocations]]","v":0},{"$f":"Dataset[[#This Row],[2024/25 To - Spending review Topic 1]]+Dataset[[#This Row],[2024/25 To - Spending review Topic 2]]+Dataset[[#This Row],[2024/25 To - Spending review Topic 3]]+Dataset[[#This Row],[2024/25 To - Spending review Topic 4]]+Dataset[[#This Row],[2024/25 To - Other reallocations]]","v":0},{"$f":"Dataset[[#This Row],[2025/26 To - Spending review Topic 1]]+Dataset[[#This Row],[2025/26 To - Spending review Topic 2]]+Dataset[[#This Row],[2025/26 To - Spending review Topic 3]]+Dataset[[#This Row],[2025/26 To - Spending review Topic 4]]+Dataset[[#This Row],[2025/26 To - Other reallocations]]","v":0},{"$f":"Dataset[[#This Row],[2026/27 To - Spending review Topic 1]]+Dataset[[#This Row],[2026/27 To - Spending review Topic 2]]+Dataset[[#This Row],[2026/27 To - Spending review Topic 3]]+Dataset[[#This Row],[2026/27 To - Spending review Topic 4]]+Dataset[[#This Row],[2026/27 To - Other reallocations]]","v":0},{"$f":"Dataset[[#This Row],[2024/25 Reduction]]+Dataset[[#This Row],[2024/25 From - Total]]","v":0},{"$f":"Dataset[[#This Row],[2025/26 Reduction]]+Dataset[[#This Row],[2025/26 From - Total]]","v":0},{"$f":"Dataset[[#This Row],[2026/27 Reduction]]+Dataset[[#This Row],[2026/27 From - Total]]","v":0},{"$f":"Dataset[[#This Row],[2023/24 Reduction]]","v":0},{"$f":"SUM(Dataset[[#This Row],[2024/25 Reduction]],Dataset[[#This Row],[2024/25 From - Total]],Dataset[[#This Row],[2024/25 To - Total]])","v":0},{"$f":"SUM(Dataset[[#This Row],[2025/26 Reduction]],Dataset[[#This Row],[2025/26 From - Total]],Dataset[[#This Row],[2025/26 To - Total]])","v":0},{"$f":"SUM(Dataset[[#This Row],[2026/27 Reduction]],Dataset[[#This Row],[2026/27 From - Total]],Dataset[[#This Row],[2026/27 To - Total]])","v":0},{"$f":"Dataset[[#This Row],[2023/24 Baseline]]+Dataset[[#This Row],[2023/24 Total change]]","v":0},{"$f":"Dataset[[#This Row],[2024/25 Baseline]]+Dataset[[#This Row],[2024/25 Total change]]","v":0},{"$f":"Dataset[[#This Row],[2025/26 Baseline]]+Dataset[[#This Row],[2025/26 Total change]]","v":0},{"$f":"Dataset[[#This Row],[2026/27 Baseline]]+Dataset[[#This Row],[2026/27 Total change]]","v":0}]
["NAT|Non-transfer item","26|Other fixed structures","2024_25","MTEF2024",26,1,4,44187,300,"26","01","04","044187","000300","26|01|04","02","03","11","55","59","02|03|11|55|59","National","Military Veterans","Administration","Internal Audit","Non-transfer item","Capital","Payments for capital assets","Buildings and other fixed structures","Other fixed structures","Other fixed structures","Peace and security","Defence and state security","NAT",0,0,0,0,0,0,0,0,0,0,0,null,null,null,null,null,null,null,null,null,null,null,null,null,null,null,null,null,null,null,null,null,null,null,null,null,null,null,null,null,null,null,null,null,null,{"$f":"Dataset[[#This Row],[2024/25 From - Spending review Topic 1]]+Dataset[[#This Row],[2024/25 From - Spending review Topic 2]]+Dataset[[#This Row],[2024/25 From - Spending review Topic 3]]+Dataset[[#This Row],[2024/25 From - Spending review Topic 4]]+Dataset[[#This Row],[2024/25 From - Other reallocations]]","v":0},{"$f":"Dataset[[#This Row],[2025/26 From - Spending review Topic 1]]+Dataset[[#This Row],[2025/26 From - Spending review Topic 2]]+Dataset[[#This Row],[2025/26 From - Spending review Topic 3]]+Dataset[[#This Row],[2025/26 From - Spending review Topic 4]]+Dataset[[#This Row],[2025/26 From - Other reallocations]]","v":0},{"$f":"Dataset[[#This Row],[2026/27 From - Spending review Topic 1]]+Dataset[[#This Row],[2026/27 From - Spending review Topic 2]]+Dataset[[#This Row],[2026/27 From - Spending review Topic 3]]+Dataset[[#This Row],[2026/27 From - Spending review Topic 4]]+Dataset[[#This Row],[2026/27 From - Other reallocations]]","v":0},{"$f":"Dataset[[#This Row],[2024/25 To - Spending review Topic 1]]+Dataset[[#This Row],[2024/25 To - Spending review Topic 2]]+Dataset[[#This Row],[2024/25 To - Spending review Topic 3]]+Dataset[[#This Row],[2024/25 To - Spending review Topic 4]]+Dataset[[#This Row],[2024/25 To - Other reallocations]]","v":0},{"$f":"Dataset[[#This Row],[2025/26 To - Spending review Topic 1]]+Dataset[[#This Row],[2025/26 To - Spending review Topic 2]]+Dataset[[#This Row],[2025/26 To - Spending review Topic 3]]+Dataset[[#This Row],[2025/26 To - Spending review Topic 4]]+Dataset[[#This Row],[2025/26 To - Other reallocations]]","v":0},{"$f":"Dataset[[#This Row],[2026/27 To - Spending review Topic 1]]+Dataset[[#This Row],[2026/27 To - Spending review Topic 2]]+Dataset[[#This Row],[2026/27 To - Spending review Topic 3]]+Dataset[[#This Row],[2026/27 To - Spending review Topic 4]]+Dataset[[#This Row],[2026/27 To - Other reallocations]]","v":0},{"$f":"Dataset[[#This Row],[2024/25 Reduction]]+Dataset[[#This Row],[2024/25 From - Total]]","v":0},{"$f":"Dataset[[#This Row],[2025/26 Reduction]]+Dataset[[#This Row],[2025/26 From - Total]]","v":0},{"$f":"Dataset[[#This Row],[2026/27 Reduction]]+Dataset[[#This Row],[2026/27 From - Total]]","v":0},{"$f":"Dataset[[#This Row],[2023/24 Reduction]]","v":0},{"$f":"SUM(Dataset[[#This Row],[2024/25 Reduction]],Dataset[[#This Row],[2024/25 From - Total]],Dataset[[#This Row],[2024/25 To - Total]])","v":0},{"$f":"SUM(Dataset[[#This Row],[2025/26 Reduction]],Dataset[[#This Row],[2025/26 From - Total]],Dataset[[#This Row],[2025/26 To - Total]])","v":0},{"$f":"SUM(Dataset[[#This Row],[2026/27 Reduction]],Dataset[[#This Row],[2026/27 From - Total]],Dataset[[#This Row],[2026/27 To - Total]])","v":0},{"$f":"Dataset[[#This Row],[2023/24 Baseline]]+Dataset[[#This Row],[2023/24 Total change]]","v":0},{"$f":"Dataset[[#This Row],[2024/25 Baseline]]+Dataset[[#This Row],[2024/25 Total change]]","v":0},{"$f":"Dataset[[#This Row],[2025/26 Baseline]]+Dataset[[#This Row],[2025/26 Total change]]","v":0},{"$f":"Dataset[[#This Row],[2026/27 Baseline]]+Dataset[[#This Row],[2026/27 Total change]]","v":0}]
["NAT|Non-transfer item","26|Transport equipment","2024_25","MTEF2024",26,1,4,44188,301,"26","01","04","044188","000301","26|01|04","02","03","12","56","60","02|03|12|56|60","National","Military Veterans","Administration","Internal Audit","Non-transfer item","Capital","Payments for capital assets","Machinery and equipment","Transport equipment","Transport equipment","Peace and security","Defence and state security","NAT",0,0,0,0,0,0,0,0,0,0,0,null,null,null,null,null,null,null,null,null,null,null,null,null,null,null,null,null,null,null,null,null,null,null,null,null,null,null,null,null,null,null,null,null,null,{"$f":"Dataset[[#This Row],[2024/25 From - Spending review Topic 1]]+Dataset[[#This Row],[2024/25 From - Spending review Topic 2]]+Dataset[[#This Row],[2024/25 From - Spending review Topic 3]]+Dataset[[#This Row],[2024/25 From - Spending review Topic 4]]+Dataset[[#This Row],[2024/25 From - Other reallocations]]","v":0},{"$f":"Dataset[[#This Row],[2025/26 From - Spending review Topic 1]]+Dataset[[#This Row],[2025/26 From - Spending review Topic 2]]+Dataset[[#This Row],[2025/26 From - Spending review Topic 3]]+Dataset[[#This Row],[2025/26 From - Spending review Topic 4]]+Dataset[[#This Row],[2025/26 From - Other reallocations]]","v":0},{"$f":"Dataset[[#This Row],[2026/27 From - Spending review Topic 1]]+Dataset[[#This Row],[2026/27 From - Spending review Topic 2]]+Dataset[[#This Row],[2026/27 From - Spending review Topic 3]]+Dataset[[#This Row],[2026/27 From - Spending review Topic 4]]+Dataset[[#This Row],[2026/27 From - Other reallocations]]","v":0},{"$f":"Dataset[[#This Row],[2024/25 To - Spending review Topic 1]]+Dataset[[#This Row],[2024/25 To - Spending review Topic 2]]+Dataset[[#This Row],[2024/25 To - Spending review Topic 3]]+Dataset[[#This Row],[2024/25 To - Spending review Topic 4]]+Dataset[[#This Row],[2024/25 To - Other reallocations]]","v":0},{"$f":"Dataset[[#This Row],[2025/26 To - Spending review Topic 1]]+Dataset[[#This Row],[2025/26 To - Spending review Topic 2]]+Dataset[[#This Row],[2025/26 To - Spending review Topic 3]]+Dataset[[#This Row],[2025/26 To - Spending review Topic 4]]+Dataset[[#This Row],[2025/26 To - Other reallocations]]","v":0},{"$f":"Dataset[[#This Row],[2026/27 To - Spending review Topic 1]]+Dataset[[#This Row],[2026/27 To - Spending review Topic 2]]+Dataset[[#This Row],[2026/27 To - Spending review Topic 3]]+Dataset[[#This Row],[2026/27 To - Spending review Topic 4]]+Dataset[[#This Row],[2026/27 To - Other reallocations]]","v":0},{"$f":"Dataset[[#This Row],[2024/25 Reduction]]+Dataset[[#This Row],[2024/25 From - Total]]","v":0},{"$f":"Dataset[[#This Row],[2025/26 Reduction]]+Dataset[[#This Row],[2025/26 From - Total]]","v":0},{"$f":"Dataset[[#This Row],[2026/27 Reduction]]+Dataset[[#This Row],[2026/27 From - Total]]","v":0},{"$f":"Dataset[[#This Row],[2023/24 Reduction]]","v":0},{"$f":"SUM(Dataset[[#This Row],[2024/25 Reduction]],Dataset[[#This Row],[2024/25 From - Total]],Dataset[[#This Row],[2024/25 To - Total]])","v":0},{"$f":"SUM(Dataset[[#This Row],[2025/26 Reduction]],Dataset[[#This Row],[2025/26 From - Total]],Dataset[[#This Row],[2025/26 To - Total]])","v":0},{"$f":"SUM(Dataset[[#This Row],[2026/27 Reduction]],Dataset[[#This Row],[2026/27 From - Total]],Dataset[[#This Row],[2026/27 To - Total]])","v":0},{"$f":"Dataset[[#This Row],[2023/24 Baseline]]+Dataset[[#This Row],[2023/24 Total change]]","v":0},{"$f":"Dataset[[#This Row],[2024/25 Baseline]]+Dataset[[#This Row],[2024/25 Total change]]","v":0},{"$f":"Dataset[[#This Row],[2025/26 Baseline]]+Dataset[[#This Row],[2025/26 Total change]]","v":0},{"$f":"Dataset[[#This Row],[2026/27 Baseline]]+Dataset[[#This Row],[2026/27 Total change]]","v":0}]
["NAT|Non-transfer item","26|Other machinery and equipment","2024_25","MTEF2024",26,1,4,44189,302,"26","01","04","044189","000302","26|01|04","02","03","12","57","61","02|03|12|57|61","National","Military Veterans","Administration","Internal Audit","Non-transfer item","Capital","Payments for capital assets","Machinery and equipment","Other machinery and equipment","Other machinery and equipment","Peace and security","Defence and state security","NAT",0,81,0,150,150,150,0,200,209,218,228,null,null,null,null,null,null,null,null,null,null,null,null,null,null,null,null,null,null,null,null,null,null,null,null,null,null,null,null,null,null,null,null,null,null,{"$f":"Dataset[[#This Row],[2024/25 From - Spending review Topic 1]]+Dataset[[#This Row],[2024/25 From - Spending review Topic 2]]+Dataset[[#This Row],[2024/25 From - Spending review Topic 3]]+Dataset[[#This Row],[2024/25 From - Spending review Topic 4]]+Dataset[[#This Row],[2024/25 From - Other reallocations]]","v":0},{"$f":"Dataset[[#This Row],[2025/26 From - Spending review Topic 1]]+Dataset[[#This Row],[2025/26 From - Spending review Topic 2]]+Dataset[[#This Row],[2025/26 From - Spending review Topic 3]]+Dataset[[#This Row],[2025/26 From - Spending review Topic 4]]+Dataset[[#This Row],[2025/26 From - Other reallocations]]","v":0},{"$f":"Dataset[[#This Row],[2026/27 From - Spending review Topic 1]]+Dataset[[#This Row],[2026/27 From - Spending review Topic 2]]+Dataset[[#This Row],[2026/27 From - Spending review Topic 3]]+Dataset[[#This Row],[2026/27 From - Spending review Topic 4]]+Dataset[[#This Row],[2026/27 From - Other reallocations]]","v":0},{"$f":"Dataset[[#This Row],[2024/25 To - Spending review Topic 1]]+Dataset[[#This Row],[2024/25 To - Spending review Topic 2]]+Dataset[[#This Row],[2024/25 To - Spending review Topic 3]]+Dataset[[#This Row],[2024/25 To - Spending review Topic 4]]+Dataset[[#This Row],[2024/25 To - Other reallocations]]","v":0},{"$f":"Dataset[[#This Row],[2025/26 To - Spending review Topic 1]]+Dataset[[#This Row],[2025/26 To - Spending review Topic 2]]+Dataset[[#This Row],[2025/26 To - Spending review Topic 3]]+Dataset[[#This Row],[2025/26 To - Spending review Topic 4]]+Dataset[[#This Row],[2025/26 To - Other reallocations]]","v":0},{"$f":"Dataset[[#This Row],[2026/27 To - Spending review Topic 1]]+Dataset[[#This Row],[2026/27 To - Spending review Topic 2]]+Dataset[[#This Row],[2026/27 To - Spending review Topic 3]]+Dataset[[#This Row],[2026/27 To - Spending review Topic 4]]+Dataset[[#This Row],[2026/27 To - Other reallocations]]","v":0},{"$f":"Dataset[[#This Row],[2024/25 Reduction]]+Dataset[[#This Row],[2024/25 From - Total]]","v":0},{"$f":"Dataset[[#This Row],[2025/26 Reduction]]+Dataset[[#This Row],[2025/26 From - Total]]","v":0},{"$f":"Dataset[[#This Row],[2026/27 Reduction]]+Dataset[[#This Row],[2026/27 From - Total]]","v":0},{"$f":"Dataset[[#This Row],[2023/24 Reduction]]","v":0},{"$f":"SUM(Dataset[[#This Row],[2024/25 Reduction]],Dataset[[#This Row],[2024/25 From - Total]],Dataset[[#This Row],[2024/25 To - Total]])","v":0},{"$f":"SUM(Dataset[[#This Row],[2025/26 Reduction]],Dataset[[#This Row],[2025/26 From - Total]],Dataset[[#This Row],[2025/26 To - Total]])","v":0},{"$f":"SUM(Dataset[[#This Row],[2026/27 Reduction]],Dataset[[#This Row],[2026/27 From - Total]],Dataset[[#This Row],[2026/27 To - Total]])","v":0},{"$f":"Dataset[[#This Row],[2023/24 Baseline]]+Dataset[[#This Row],[2023/24 Total change]]","v":200},{"$f":"Dataset[[#This Row],[2024/25 Baseline]]+Dataset[[#This Row],[2024/25 Total change]]","v":209},{"$f":"Dataset[[#This Row],[2025/26 Baseline]]+Dataset[[#This Row],[2025/26 Total change]]","v":218},{"$f":"Dataset[[#This Row],[2026/27 Baseline]]+Dataset[[#This Row],[2026/27 Total change]]","v":228}]
["NAT|Non-transfer item","26|Heritage assets","2024_25","MTEF2024",26,1,4,44190,303,"26","01","04","044190","000303","26|01|04","02","03","13","58","62","02|03|13|58|62","National","Military Veterans","Administration","Internal Audit","Non-transfer item","Capital","Payments for capital assets","Heritage assets","Heritage assets","Heritage assets","Peace and security","Defence and state security","NAT",0,0,0,0,0,0,0,0,0,0,0,null,null,null,null,null,null,null,null,null,null,null,null,null,null,null,null,null,null,null,null,null,null,null,null,null,null,null,null,null,null,null,null,null,null,{"$f":"Dataset[[#This Row],[2024/25 From - Spending review Topic 1]]+Dataset[[#This Row],[2024/25 From - Spending review Topic 2]]+Dataset[[#This Row],[2024/25 From - Spending review Topic 3]]+Dataset[[#This Row],[2024/25 From - Spending review Topic 4]]+Dataset[[#This Row],[2024/25 From - Other reallocations]]","v":0},{"$f":"Dataset[[#This Row],[2025/26 From - Spending review Topic 1]]+Dataset[[#This Row],[2025/26 From - Spending review Topic 2]]+Dataset[[#This Row],[2025/26 From - Spending review Topic 3]]+Dataset[[#This Row],[2025/26 From - Spending review Topic 4]]+Dataset[[#This Row],[2025/26 From - Other reallocations]]","v":0},{"$f":"Dataset[[#This Row],[2026/27 From - Spending review Topic 1]]+Dataset[[#This Row],[2026/27 From - Spending review Topic 2]]+Dataset[[#This Row],[2026/27 From - Spending review Topic 3]]+Dataset[[#This Row],[2026/27 From - Spending review Topic 4]]+Dataset[[#This Row],[2026/27 From - Other reallocations]]","v":0},{"$f":"Dataset[[#This Row],[2024/25 To - Spending review Topic 1]]+Dataset[[#This Row],[2024/25 To - Spending review Topic 2]]+Dataset[[#This Row],[2024/25 To - Spending review Topic 3]]+Dataset[[#This Row],[2024/25 To - Spending review Topic 4]]+Dataset[[#This Row],[2024/25 To - Other reallocations]]","v":0},{"$f":"Dataset[[#This Row],[2025/26 To - Spending review Topic 1]]+Dataset[[#This Row],[2025/26 To - Spending review Topic 2]]+Dataset[[#This Row],[2025/26 To - Spending review Topic 3]]+Dataset[[#This Row],[2025/26 To - Spending review Topic 4]]+Dataset[[#This Row],[2025/26 To - Other reallocations]]","v":0},{"$f":"Dataset[[#This Row],[2026/27 To - Spending review Topic 1]]+Dataset[[#This Row],[2026/27 To - Spending review Topic 2]]+Dataset[[#This Row],[2026/27 To - Spending review Topic 3]]+Dataset[[#This Row],[2026/27 To - Spending review Topic 4]]+Dataset[[#This Row],[2026/27 To - Other reallocations]]","v":0},{"$f":"Dataset[[#This Row],[2024/25 Reduction]]+Dataset[[#This Row],[2024/25 From - Total]]","v":0},{"$f":"Dataset[[#This Row],[2025/26 Reduction]]+Dataset[[#This Row],[2025/26 From - Total]]","v":0},{"$f":"Dataset[[#This Row],[2026/27 Reduction]]+Dataset[[#This Row],[2026/27 From - Total]]","v":0},{"$f":"Dataset[[#This Row],[2023/24 Reduction]]","v":0},{"$f":"SUM(Dataset[[#This Row],[2024/25 Reduction]],Dataset[[#This Row],[2024/25 From - Total]],Dataset[[#This Row],[2024/25 To - Total]])","v":0},{"$f":"SUM(Dataset[[#This Row],[2025/26 Reduction]],Dataset[[#This Row],[2025/26 From - Total]],Dataset[[#This Row],[2025/26 To - Total]])","v":0},{"$f":"SUM(Dataset[[#This Row],[2026/27 Reduction]],Dataset[[#This Row],[2026/27 From - Total]],Dataset[[#This Row],[2026/27 To - Total]])","v":0},{"$f":"Dataset[[#This Row],[2023/24 Baseline]]+Dataset[[#This Row],[2023/24 Total change]]","v":0},{"$f":"Dataset[[#This Row],[2024/25 Baseline]]+Dataset[[#This Row],[2024/25 Total change]]","v":0},{"$f":"Dataset[[#This Row],[2025/26 Baseline]]+Dataset[[#This Row],[2025/26 Total change]]","v":0},{"$f":"Dataset[[#This Row],[2026/27 Baseline]]+Dataset[[#This Row],[2026/27 Total change]]","v":0}]
["NAT|Non-transfer item","26|Specialised military assets","2024_25","MTEF2024",26,1,4,44191,304,"26","01","04","044191","000304","26|01|04","02","03","14","59","63","02|03|14|59|63","National","Military Veterans","Administration","Internal Audit","Non-transfer item","Capital","Payments for capital assets","Specialised military assets","Specialised military assets","Specialised military assets","Peace and security","Defence and state security","NAT",0,0,0,0,0,0,0,0,0,0,0,null,null,null,null,null,null,null,null,null,null,null,null,null,null,null,null,null,null,null,null,null,null,null,null,null,null,null,null,null,null,null,null,null,null,{"$f":"Dataset[[#This Row],[2024/25 From - Spending review Topic 1]]+Dataset[[#This Row],[2024/25 From - Spending review Topic 2]]+Dataset[[#This Row],[2024/25 From - Spending review Topic 3]]+Dataset[[#This Row],[2024/25 From - Spending review Topic 4]]+Dataset[[#This Row],[2024/25 From - Other reallocations]]","v":0},{"$f":"Dataset[[#This Row],[2025/26 From - Spending review Topic 1]]+Dataset[[#This Row],[2025/26 From - Spending review Topic 2]]+Dataset[[#This Row],[2025/26 From - Spending review Topic 3]]+Dataset[[#This Row],[2025/26 From - Spending review Topic 4]]+Dataset[[#This Row],[2025/26 From - Other reallocations]]","v":0},{"$f":"Dataset[[#This Row],[2026/27 From - Spending review Topic 1]]+Dataset[[#This Row],[2026/27 From - Spending review Topic 2]]+Dataset[[#This Row],[2026/27 From - Spending review Topic 3]]+Dataset[[#This Row],[2026/27 From - Spending review Topic 4]]+Dataset[[#This Row],[2026/27 From - Other reallocations]]","v":0},{"$f":"Dataset[[#This Row],[2024/25 To - Spending review Topic 1]]+Dataset[[#This Row],[2024/25 To - Spending review Topic 2]]+Dataset[[#This Row],[2024/25 To - Spending review Topic 3]]+Dataset[[#This Row],[2024/25 To - Spending review Topic 4]]+Dataset[[#This Row],[2024/25 To - Other reallocations]]","v":0},{"$f":"Dataset[[#This Row],[2025/26 To - Spending review Topic 1]]+Dataset[[#This Row],[2025/26 To - Spending review Topic 2]]+Dataset[[#This Row],[2025/26 To - Spending review Topic 3]]+Dataset[[#This Row],[2025/26 To - Spending review Topic 4]]+Dataset[[#This Row],[2025/26 To - Other reallocations]]","v":0},{"$f":"Dataset[[#This Row],[2026/27 To - Spending review Topic 1]]+Dataset[[#This Row],[2026/27 To - Spending review Topic 2]]+Dataset[[#This Row],[2026/27 To - Spending review Topic 3]]+Dataset[[#This Row],[2026/27 To - Spending review Topic 4]]+Dataset[[#This Row],[2026/27 To - Other reallocations]]","v":0},{"$f":"Dataset[[#This Row],[2024/25 Reduction]]+Dataset[[#This Row],[2024/25 From - Total]]","v":0},{"$f":"Dataset[[#This Row],[2025/26 Reduction]]+Dataset[[#This Row],[2025/26 From - Total]]","v":0},{"$f":"Dataset[[#This Row],[2026/27 Reduction]]+Dataset[[#This Row],[2026/27 From - Total]]","v":0},{"$f":"Dataset[[#This Row],[2023/24 Reduction]]","v":0},{"$f":"SUM(Dataset[[#This Row],[2024/25 Reduction]],Dataset[[#This Row],[2024/25 From - Total]],Dataset[[#This Row],[2024/25 To - Total]])","v":0},{"$f":"SUM(Dataset[[#This Row],[2025/26 Reduction]],Dataset[[#This Row],[2025/26 From - Total]],Dataset[[#This Row],[2025/26 To - Total]])","v":0},{"$f":"SUM(Dataset[[#This Row],[2026/27 Reduction]],Dataset[[#This Row],[2026/27 From - Total]],Dataset[[#This Row],[2026/27 To - Total]])","v":0},{"$f":"Dataset[[#This Row],[2023/24 Baseline]]+Dataset[[#This Row],[2023/24 Total change]]","v":0},{"$f":"Dataset[[#This Row],[2024/25 Baseline]]+Dataset[[#This Row],[2024/25 Total change]]","v":0},{"$f":"Dataset[[#This Row],[2025/26 Baseline]]+Dataset[[#This Row],[2025/26 Total change]]","v":0},{"$f":"Dataset[[#This Row],[2026/27 Baseline]]+Dataset[[#This Row],[2026/27 Total change]]","v":0}]
["NAT|Non-transfer item","26|Biological assets","2024_25","MTEF2024",26,1,4,44192,305,"26","01","04","044192","000305","26|01|04","02","03","15","60","64","02|03|15|60|64","National","Military Veterans","Administration","Internal Audit","Non-transfer item","Capital","Payments for capital assets","Biological assets","Biological assets","Biological assets","Peace and security","Defence and state security","NAT",0,0,0,0,0,0,0,0,0,0,0,null,null,null,null,null,null,null,null,null,null,null,null,null,null,null,null,null,null,null,null,null,null,null,null,null,null,null,null,null,null,null,null,null,null,{"$f":"Dataset[[#This Row],[2024/25 From - Spending review Topic 1]]+Dataset[[#This Row],[2024/25 From - Spending review Topic 2]]+Dataset[[#This Row],[2024/25 From - Spending review Topic 3]]+Dataset[[#This Row],[2024/25 From - Spending review Topic 4]]+Dataset[[#This Row],[2024/25 From - Other reallocations]]","v":0},{"$f":"Dataset[[#This Row],[2025/26 From - Spending review Topic 1]]+Dataset[[#This Row],[2025/26 From - Spending review Topic 2]]+Dataset[[#This Row],[2025/26 From - Spending review Topic 3]]+Dataset[[#This Row],[2025/26 From - Spending review Topic 4]]+Dataset[[#This Row],[2025/26 From - Other reallocations]]","v":0},{"$f":"Dataset[[#This Row],[2026/27 From - Spending review Topic 1]]+Dataset[[#This Row],[2026/27 From - Spending review Topic 2]]+Dataset[[#This Row],[2026/27 From - Spending review Topic 3]]+Dataset[[#This Row],[2026/27 From - Spending review Topic 4]]+Dataset[[#This Row],[2026/27 From - Other reallocations]]","v":0},{"$f":"Dataset[[#This Row],[2024/25 To - Spending review Topic 1]]+Dataset[[#This Row],[2024/25 To - Spending review Topic 2]]+Dataset[[#This Row],[2024/25 To - Spending review Topic 3]]+Dataset[[#This Row],[2024/25 To - Spending review Topic 4]]+Dataset[[#This Row],[2024/25 To - Other reallocations]]","v":0},{"$f":"Dataset[[#This Row],[2025/26 To - Spending review Topic 1]]+Dataset[[#This Row],[2025/26 To - Spending review Topic 2]]+Dataset[[#This Row],[2025/26 To - Spending review Topic 3]]+Dataset[[#This Row],[2025/26 To - Spending review Topic 4]]+Dataset[[#This Row],[2025/26 To - Other reallocations]]","v":0},{"$f":"Dataset[[#This Row],[2026/27 To - Spending review Topic 1]]+Dataset[[#This Row],[2026/27 To - Spending review Topic 2]]+Dataset[[#This Row],[2026/27 To - Spending review Topic 3]]+Dataset[[#This Row],[2026/27 To - Spending review Topic 4]]+Dataset[[#This Row],[2026/27 To - Other reallocations]]","v":0},{"$f":"Dataset[[#This Row],[2024/25 Reduction]]+Dataset[[#This Row],[2024/25 From - Total]]","v":0},{"$f":"Dataset[[#This Row],[2025/26 Reduction]]+Dataset[[#This Row],[2025/26 From - Total]]","v":0},{"$f":"Dataset[[#This Row],[2026/27 Reduction]]+Dataset[[#This Row],[2026/27 From - Total]]","v":0},{"$f":"Dataset[[#This Row],[2023/24 Reduction]]","v":0},{"$f":"SUM(Dataset[[#This Row],[2024/25 Reduction]],Dataset[[#This Row],[2024/25 From - Total]],Dataset[[#This Row],[2024/25 To - Total]])","v":0},{"$f":"SUM(Dataset[[#This Row],[2025/26 Reduction]],Dataset[[#This Row],[2025/26 From - Total]],Dataset[[#This Row],[2025/26 To - Total]])","v":0},{"$f":"SUM(Dataset[[#This Row],[2026/27 Reduction]],Dataset[[#This Row],[2026/27 From - Total]],Dataset[[#This Row],[2026/27 To - Total]])","v":0},{"$f":"Dataset[[#This Row],[2023/24 Baseline]]+Dataset[[#This Row],[2023/24 Total change]]","v":0},{"$f":"Dataset[[#This Row],[2024/25 Baseline]]+Dataset[[#This Row],[2024/25 Total change]]","v":0},{"$f":"Dataset[[#This Row],[2025/26 Baseline]]+Dataset[[#This Row],[2025/26 Total change]]","v":0},{"$f":"Dataset[[#This Row],[2026/27 Baseline]]+Dataset[[#This Row],[2026/27 Total change]]","v":0}]
["NAT|Non-transfer item","26|Land and sub-soil assets","2024_25","MTEF2024",26,1,4,44193,306,"26","01","04","044193","000306","26|01|04","02","03","16","61","65","02|03|16|61|65","National","Military Veterans","Administration","Internal Audit","Non-transfer item","Capital","Payments for capital assets","Land and sub-soil assets","Land and sub-soil assets","Land and sub-soil assets","Peace and security","Defence and state security","NAT",0,0,0,0,0,0,0,0,0,0,0,null,null,null,null,null,null,null,null,null,null,null,null,null,null,null,null,null,null,null,null,null,null,null,null,null,null,null,null,null,null,null,null,null,null,{"$f":"Dataset[[#This Row],[2024/25 From - Spending review Topic 1]]+Dataset[[#This Row],[2024/25 From - Spending review Topic 2]]+Dataset[[#This Row],[2024/25 From - Spending review Topic 3]]+Dataset[[#This Row],[2024/25 From - Spending review Topic 4]]+Dataset[[#This Row],[2024/25 From - Other reallocations]]","v":0},{"$f":"Dataset[[#This Row],[2025/26 From - Spending review Topic 1]]+Dataset[[#This Row],[2025/26 From - Spending review Topic 2]]+Dataset[[#This Row],[2025/26 From - Spending review Topic 3]]+Dataset[[#This Row],[2025/26 From - Spending review Topic 4]]+Dataset[[#This Row],[2025/26 From - Other reallocations]]","v":0},{"$f":"Dataset[[#This Row],[2026/27 From - Spending review Topic 1]]+Dataset[[#This Row],[2026/27 From - Spending review Topic 2]]+Dataset[[#This Row],[2026/27 From - Spending review Topic 3]]+Dataset[[#This Row],[2026/27 From - Spending review Topic 4]]+Dataset[[#This Row],[2026/27 From - Other reallocations]]","v":0},{"$f":"Dataset[[#This Row],[2024/25 To - Spending review Topic 1]]+Dataset[[#This Row],[2024/25 To - Spending review Topic 2]]+Dataset[[#This Row],[2024/25 To - Spending review Topic 3]]+Dataset[[#This Row],[2024/25 To - Spending review Topic 4]]+Dataset[[#This Row],[2024/25 To - Other reallocations]]","v":0},{"$f":"Dataset[[#This Row],[2025/26 To - Spending review Topic 1]]+Dataset[[#This Row],[2025/26 To - Spending review Topic 2]]+Dataset[[#This Row],[2025/26 To - Spending review Topic 3]]+Dataset[[#This Row],[2025/26 To - Spending review Topic 4]]+Dataset[[#This Row],[2025/26 To - Other reallocations]]","v":0},{"$f":"Dataset[[#This Row],[2026/27 To - Spending review Topic 1]]+Dataset[[#This Row],[2026/27 To - Spending review Topic 2]]+Dataset[[#This Row],[2026/27 To - Spending review Topic 3]]+Dataset[[#This Row],[2026/27 To - Spending review Topic 4]]+Dataset[[#This Row],[2026/27 To - Other reallocations]]","v":0},{"$f":"Dataset[[#This Row],[2024/25 Reduction]]+Dataset[[#This Row],[2024/25 From - Total]]","v":0},{"$f":"Dataset[[#This Row],[2025/26 Reduction]]+Dataset[[#This Row],[2025/26 From - Total]]","v":0},{"$f":"Dataset[[#This Row],[2026/27 Reduction]]+Dataset[[#This Row],[2026/27 From - Total]]","v":0},{"$f":"Dataset[[#This Row],[2023/24 Reduction]]","v":0},{"$f":"SUM(Dataset[[#This Row],[2024/25 Reduction]],Dataset[[#This Row],[2024/25 From - Total]],Dataset[[#This Row],[2024/25 To - Total]])","v":0},{"$f":"SUM(Dataset[[#This Row],[2025/26 Reduction]],Dataset[[#This Row],[2025/26 From - Total]],Dataset[[#This Row],[2025/26 To - Total]])","v":0},{"$f":"SUM(Dataset[[#This Row],[2026/27 Reduction]],Dataset[[#This Row],[2026/27 From - Total]],Dataset[[#This Row],[2026/27 To - Total]])","v":0},{"$f":"Dataset[[#This Row],[2023/24 Baseline]]+Dataset[[#This Row],[2023/24 Total change]]","v":0},{"$f":"Dataset[[#This Row],[2024/25 Baseline]]+Dataset[[#This Row],[2024/25 Total change]]","v":0},{"$f":"Dataset[[#This Row],[2025/26 Baseline]]+Dataset[[#This Row],[2025/26 Total change]]","v":0},{"$f":"Dataset[[#This Row],[2026/27 Baseline]]+Dataset[[#This Row],[2026/27 Total change]]","v":0}]
["NAT|Non-transfer item","26|Software and other intangible assets","2024_25","MTEF2024",26,1,4,44194,307,"26","01","04","044194","000307","26|01|04","02","03","17","62","66","02|03|17|62|66","National","Military Veterans","Administration","Internal Audit","Non-transfer item","Capital","Payments for capital assets","Software and other intangible assets","Software and other intangible assets","Software and other intangible assets","Peace and security","Defence and state security","NAT",0,0,0,0,0,0,0,0,0,0,0,null,null,null,null,null,null,null,null,null,null,null,null,null,null,null,null,null,null,null,null,null,null,null,null,null,null,null,null,null,null,null,null,null,null,{"$f":"Dataset[[#This Row],[2024/25 From - Spending review Topic 1]]+Dataset[[#This Row],[2024/25 From - Spending review Topic 2]]+Dataset[[#This Row],[2024/25 From - Spending review Topic 3]]+Dataset[[#This Row],[2024/25 From - Spending review Topic 4]]+Dataset[[#This Row],[2024/25 From - Other reallocations]]","v":0},{"$f":"Dataset[[#This Row],[2025/26 From - Spending review Topic 1]]+Dataset[[#This Row],[2025/26 From - Spending review Topic 2]]+Dataset[[#This Row],[2025/26 From - Spending review Topic 3]]+Dataset[[#This Row],[2025/26 From - Spending review Topic 4]]+Dataset[[#This Row],[2025/26 From - Other reallocations]]","v":0},{"$f":"Dataset[[#This Row],[2026/27 From - Spending review Topic 1]]+Dataset[[#This Row],[2026/27 From - Spending review Topic 2]]+Dataset[[#This Row],[2026/27 From - Spending review Topic 3]]+Dataset[[#This Row],[2026/27 From - Spending review Topic 4]]+Dataset[[#This Row],[2026/27 From - Other reallocations]]","v":0},{"$f":"Dataset[[#This Row],[2024/25 To - Spending review Topic 1]]+Dataset[[#This Row],[2024/25 To - Spending review Topic 2]]+Dataset[[#This Row],[2024/25 To - Spending review Topic 3]]+Dataset[[#This Row],[2024/25 To - Spending review Topic 4]]+Dataset[[#This Row],[2024/25 To - Other reallocations]]","v":0},{"$f":"Dataset[[#This Row],[2025/26 To - Spending review Topic 1]]+Dataset[[#This Row],[2025/26 To - Spending review Topic 2]]+Dataset[[#This Row],[2025/26 To - Spending review Topic 3]]+Dataset[[#This Row],[2025/26 To - Spending review Topic 4]]+Dataset[[#This Row],[2025/26 To - Other reallocations]]","v":0},{"$f":"Dataset[[#This Row],[2026/27 To - Spending review Topic 1]]+Dataset[[#This Row],[2026/27 To - Spending review Topic 2]]+Dataset[[#This Row],[2026/27 To - Spending review Topic 3]]+Dataset[[#This Row],[2026/27 To - Spending review Topic 4]]+Dataset[[#This Row],[2026/27 To - Other reallocations]]","v":0},{"$f":"Dataset[[#This Row],[2024/25 Reduction]]+Dataset[[#This Row],[2024/25 From - Total]]","v":0},{"$f":"Dataset[[#This Row],[2025/26 Reduction]]+Dataset[[#This Row],[2025/26 From - Total]]","v":0},{"$f":"Dataset[[#This Row],[2026/27 Reduction]]+Dataset[[#This Row],[2026/27 From - Total]]","v":0},{"$f":"Dataset[[#This Row],[2023/24 Reduction]]","v":0},{"$f":"SUM(Dataset[[#This Row],[2024/25 Reduction]],Dataset[[#This Row],[2024/25 From - Total]],Dataset[[#This Row],[2024/25 To - Total]])","v":0},{"$f":"SUM(Dataset[[#This Row],[2025/26 Reduction]],Dataset[[#This Row],[2025/26 From - Total]],Dataset[[#This Row],[2025/26 To - Total]])","v":0},{"$f":"SUM(Dataset[[#This Row],[2026/27 Reduction]],Dataset[[#This Row],[2026/27 From - Total]],Dataset[[#This Row],[2026/27 To - Total]])","v":0},{"$f":"Dataset[[#This Row],[2023/24 Baseline]]+Dataset[[#This Row],[2023/24 Total change]]","v":0},{"$f":"Dataset[[#This Row],[2024/25 Baseline]]+Dataset[[#This Row],[2024/25 Total change]]","v":0},{"$f":"Dataset[[#This Row],[2025/26 Baseline]]+Dataset[[#This Row],[2025/26 Total change]]","v":0},{"$f":"Dataset[[#This Row],[2026/27 Baseline]]+Dataset[[#This Row],[2026/27 Total change]]","v":0}]
["NAT|Non-transfer item","26|Payments for financial assets","2024_25","MTEF2024",26,1,4,44195,308,"26","01","04","044195","000308","26|01|04","03","04","18","63","67","03|04|18|63|67","National","Military Veterans","Administration","Internal Audit","Non-transfer item","Payments for financial assets","Payments for financial assets","Payments for financial assets","Payments for financial assets","Payments for financial assets","Peace and security","Defence and state security","NAT",0,0,0,0,0,0,0,0,0,0,0,null,null,null,null,null,null,null,null,null,null,null,null,null,null,null,null,null,null,null,null,null,null,null,null,null,null,null,null,null,null,null,null,null,null,{"$f":"Dataset[[#This Row],[2024/25 From - Spending review Topic 1]]+Dataset[[#This Row],[2024/25 From - Spending review Topic 2]]+Dataset[[#This Row],[2024/25 From - Spending review Topic 3]]+Dataset[[#This Row],[2024/25 From - Spending review Topic 4]]+Dataset[[#This Row],[2024/25 From - Other reallocations]]","v":0},{"$f":"Dataset[[#This Row],[2025/26 From - Spending review Topic 1]]+Dataset[[#This Row],[2025/26 From - Spending review Topic 2]]+Dataset[[#This Row],[2025/26 From - Spending review Topic 3]]+Dataset[[#This Row],[2025/26 From - Spending review Topic 4]]+Dataset[[#This Row],[2025/26 From - Other reallocations]]","v":0},{"$f":"Dataset[[#This Row],[2026/27 From - Spending review Topic 1]]+Dataset[[#This Row],[2026/27 From - Spending review Topic 2]]+Dataset[[#This Row],[2026/27 From - Spending review Topic 3]]+Dataset[[#This Row],[2026/27 From - Spending review Topic 4]]+Dataset[[#This Row],[2026/27 From - Other reallocations]]","v":0},{"$f":"Dataset[[#This Row],[2024/25 To - Spending review Topic 1]]+Dataset[[#This Row],[2024/25 To - Spending review Topic 2]]+Dataset[[#This Row],[2024/25 To - Spending review Topic 3]]+Dataset[[#This Row],[2024/25 To - Spending review Topic 4]]+Dataset[[#This Row],[2024/25 To - Other reallocations]]","v":0},{"$f":"Dataset[[#This Row],[2025/26 To - Spending review Topic 1]]+Dataset[[#This Row],[2025/26 To - Spending review Topic 2]]+Dataset[[#This Row],[2025/26 To - Spending review Topic 3]]+Dataset[[#This Row],[2025/26 To - Spending review Topic 4]]+Dataset[[#This Row],[2025/26 To - Other reallocations]]","v":0},{"$f":"Dataset[[#This Row],[2026/27 To - Spending review Topic 1]]+Dataset[[#This Row],[2026/27 To - Spending review Topic 2]]+Dataset[[#This Row],[2026/27 To - Spending review Topic 3]]+Dataset[[#This Row],[2026/27 To - Spending review Topic 4]]+Dataset[[#This Row],[2026/27 To - Other reallocations]]","v":0},{"$f":"Dataset[[#This Row],[2024/25 Reduction]]+Dataset[[#This Row],[2024/25 From - Total]]","v":0},{"$f":"Dataset[[#This Row],[2025/26 Reduction]]+Dataset[[#This Row],[2025/26 From - Total]]","v":0},{"$f":"Dataset[[#This Row],[2026/27 Reduction]]+Dataset[[#This Row],[2026/27 From - Total]]","v":0},{"$f":"Dataset[[#This Row],[2023/24 Reduction]]","v":0},{"$f":"SUM(Dataset[[#This Row],[2024/25 Reduction]],Dataset[[#This Row],[2024/25 From - Total]],Dataset[[#This Row],[2024/25 To - Total]])","v":0},{"$f":"SUM(Dataset[[#This Row],[2025/26 Reduction]],Dataset[[#This Row],[2025/26 From - Total]],Dataset[[#This Row],[2025/26 To - Total]])","v":0},{"$f":"SUM(Dataset[[#This Row],[2026/27 Reduction]],Dataset[[#This Row],[2026/27 From - Total]],Dataset[[#This Row],[2026/27 To - Total]])","v":0},{"$f":"Dataset[[#This Row],[2023/24 Baseline]]+Dataset[[#This Row],[2023/24 Total change]]","v":0},{"$f":"Dataset[[#This Row],[2024/25 Baseline]]+Dataset[[#This Row],[2024/25 Total change]]","v":0},{"$f":"Dataset[[#This Row],[2025/26 Baseline]]+Dataset[[#This Row],[2025/26 Total change]]","v":0},{"$f":"Dataset[[#This Row],[2026/27 Baseline]]+Dataset[[#This Row],[2026/27 Total change]]","v":0}]
["NAT|Non-transfer item","26|Salaries and wages","2024_25","MTEF2024",26,1,5,44196,309,"26","01","05","044196","000309","26|01|05","01","01","01","01","01","01|01|01|01|01","National","Military Veterans","Administration","Strategic Planning, Policy Development, and Monitoring and Evaluation","Non-transfer item","Current","Current payments","Compensation of employees","Salaries and wages","Salaries and wages","Peace and security","Defence and state security","NAT",10833,9791,8799,5649,7688,7688,0,7602,8064,8413,8798,null,null,null,null,null,null,null,null,null,null,null,null,null,null,null,null,null,null,null,null,null,null,null,null,null,null,null,null,null,null,null,null,null,null,{"$f":"Dataset[[#This Row],[2024/25 From - Spending review Topic 1]]+Dataset[[#This Row],[2024/25 From - Spending review Topic 2]]+Dataset[[#This Row],[2024/25 From - Spending review Topic 3]]+Dataset[[#This Row],[2024/25 From - Spending review Topic 4]]+Dataset[[#This Row],[2024/25 From - Other reallocations]]","v":0},{"$f":"Dataset[[#This Row],[2025/26 From - Spending review Topic 1]]+Dataset[[#This Row],[2025/26 From - Spending review Topic 2]]+Dataset[[#This Row],[2025/26 From - Spending review Topic 3]]+Dataset[[#This Row],[2025/26 From - Spending review Topic 4]]+Dataset[[#This Row],[2025/26 From - Other reallocations]]","v":0},{"$f":"Dataset[[#This Row],[2026/27 From - Spending review Topic 1]]+Dataset[[#This Row],[2026/27 From - Spending review Topic 2]]+Dataset[[#This Row],[2026/27 From - Spending review Topic 3]]+Dataset[[#This Row],[2026/27 From - Spending review Topic 4]]+Dataset[[#This Row],[2026/27 From - Other reallocations]]","v":0},{"$f":"Dataset[[#This Row],[2024/25 To - Spending review Topic 1]]+Dataset[[#This Row],[2024/25 To - Spending review Topic 2]]+Dataset[[#This Row],[2024/25 To - Spending review Topic 3]]+Dataset[[#This Row],[2024/25 To - Spending review Topic 4]]+Dataset[[#This Row],[2024/25 To - Other reallocations]]","v":0},{"$f":"Dataset[[#This Row],[2025/26 To - Spending review Topic 1]]+Dataset[[#This Row],[2025/26 To - Spending review Topic 2]]+Dataset[[#This Row],[2025/26 To - Spending review Topic 3]]+Dataset[[#This Row],[2025/26 To - Spending review Topic 4]]+Dataset[[#This Row],[2025/26 To - Other reallocations]]","v":0},{"$f":"Dataset[[#This Row],[2026/27 To - Spending review Topic 1]]+Dataset[[#This Row],[2026/27 To - Spending review Topic 2]]+Dataset[[#This Row],[2026/27 To - Spending review Topic 3]]+Dataset[[#This Row],[2026/27 To - Spending review Topic 4]]+Dataset[[#This Row],[2026/27 To - Other reallocations]]","v":0},{"$f":"Dataset[[#This Row],[2024/25 Reduction]]+Dataset[[#This Row],[2024/25 From - Total]]","v":0},{"$f":"Dataset[[#This Row],[2025/26 Reduction]]+Dataset[[#This Row],[2025/26 From - Total]]","v":0},{"$f":"Dataset[[#This Row],[2026/27 Reduction]]+Dataset[[#This Row],[2026/27 From - Total]]","v":0},{"$f":"Dataset[[#This Row],[2023/24 Reduction]]","v":0},{"$f":"SUM(Dataset[[#This Row],[2024/25 Reduction]],Dataset[[#This Row],[2024/25 From - Total]],Dataset[[#This Row],[2024/25 To - Total]])","v":0},{"$f":"SUM(Dataset[[#This Row],[2025/26 Reduction]],Dataset[[#This Row],[2025/26 From - Total]],Dataset[[#This Row],[2025/26 To - Total]])","v":0},{"$f":"SUM(Dataset[[#This Row],[2026/27 Reduction]],Dataset[[#This Row],[2026/27 From - Total]],Dataset[[#This Row],[2026/27 To - Total]])","v":0},{"$f":"Dataset[[#This Row],[2023/24 Baseline]]+Dataset[[#This Row],[2023/24 Total change]]","v":7602},{"$f":"Dataset[[#This Row],[2024/25 Baseline]]+Dataset[[#This Row],[2024/25 Total change]]","v":8064},{"$f":"Dataset[[#This Row],[2025/26 Baseline]]+Dataset[[#This Row],[2025/26 Total change]]","v":8413},{"$f":"Dataset[[#This Row],[2026/27 Baseline]]+Dataset[[#This Row],[2026/27 Total change]]","v":8798}]
["NAT|Non-transfer item","26|Social contributions","2024_25","MTEF2024",26,1,5,44197,310,"26","01","05","044197","000310","26|01|05","01","01","01","02","02","01|01|01|02|02","National","Military Veterans","Administration","Strategic Planning, Policy Development, and Monitoring and Evaluation","Non-transfer item","Current","Current payments","Compensation of employees","Social contributions","Social contributions","Peace and security","Defence and state security","NAT",1326,1245,1090,2760,1048,1048,0,1112,1034,1084,1134,null,null,null,null,null,null,null,null,null,null,null,null,null,null,null,null,null,null,null,null,null,null,null,null,null,null,null,null,null,null,null,null,null,null,{"$f":"Dataset[[#This Row],[2024/25 From - Spending review Topic 1]]+Dataset[[#This Row],[2024/25 From - Spending review Topic 2]]+Dataset[[#This Row],[2024/25 From - Spending review Topic 3]]+Dataset[[#This Row],[2024/25 From - Spending review Topic 4]]+Dataset[[#This Row],[2024/25 From - Other reallocations]]","v":0},{"$f":"Dataset[[#This Row],[2025/26 From - Spending review Topic 1]]+Dataset[[#This Row],[2025/26 From - Spending review Topic 2]]+Dataset[[#This Row],[2025/26 From - Spending review Topic 3]]+Dataset[[#This Row],[2025/26 From - Spending review Topic 4]]+Dataset[[#This Row],[2025/26 From - Other reallocations]]","v":0},{"$f":"Dataset[[#This Row],[2026/27 From - Spending review Topic 1]]+Dataset[[#This Row],[2026/27 From - Spending review Topic 2]]+Dataset[[#This Row],[2026/27 From - Spending review Topic 3]]+Dataset[[#This Row],[2026/27 From - Spending review Topic 4]]+Dataset[[#This Row],[2026/27 From - Other reallocations]]","v":0},{"$f":"Dataset[[#This Row],[2024/25 To - Spending review Topic 1]]+Dataset[[#This Row],[2024/25 To - Spending review Topic 2]]+Dataset[[#This Row],[2024/25 To - Spending review Topic 3]]+Dataset[[#This Row],[2024/25 To - Spending review Topic 4]]+Dataset[[#This Row],[2024/25 To - Other reallocations]]","v":0},{"$f":"Dataset[[#This Row],[2025/26 To - Spending review Topic 1]]+Dataset[[#This Row],[2025/26 To - Spending review Topic 2]]+Dataset[[#This Row],[2025/26 To - Spending review Topic 3]]+Dataset[[#This Row],[2025/26 To - Spending review Topic 4]]+Dataset[[#This Row],[2025/26 To - Other reallocations]]","v":0},{"$f":"Dataset[[#This Row],[2026/27 To - Spending review Topic 1]]+Dataset[[#This Row],[2026/27 To - Spending review Topic 2]]+Dataset[[#This Row],[2026/27 To - Spending review Topic 3]]+Dataset[[#This Row],[2026/27 To - Spending review Topic 4]]+Dataset[[#This Row],[2026/27 To - Other reallocations]]","v":0},{"$f":"Dataset[[#This Row],[2024/25 Reduction]]+Dataset[[#This Row],[2024/25 From - Total]]","v":0},{"$f":"Dataset[[#This Row],[2025/26 Reduction]]+Dataset[[#This Row],[2025/26 From - Total]]","v":0},{"$f":"Dataset[[#This Row],[2026/27 Reduction]]+Dataset[[#This Row],[2026/27 From - Total]]","v":0},{"$f":"Dataset[[#This Row],[2023/24 Reduction]]","v":0},{"$f":"SUM(Dataset[[#This Row],[2024/25 Reduction]],Dataset[[#This Row],[2024/25 From - Total]],Dataset[[#This Row],[2024/25 To - Total]])","v":0},{"$f":"SUM(Dataset[[#This Row],[2025/26 Reduction]],Dataset[[#This Row],[2025/26 From - Total]],Dataset[[#This Row],[2025/26 To - Total]])","v":0},{"$f":"SUM(Dataset[[#This Row],[2026/27 Reduction]],Dataset[[#This Row],[2026/27 From - Total]],Dataset[[#This Row],[2026/27 To - Total]])","v":0},{"$f":"Dataset[[#This Row],[2023/24 Baseline]]+Dataset[[#This Row],[2023/24 Total change]]","v":1112},{"$f":"Dataset[[#This Row],[2024/25 Baseline]]+Dataset[[#This Row],[2024/25 Total change]]","v":1034},{"$f":"Dataset[[#This Row],[2025/26 Baseline]]+Dataset[[#This Row],[2025/26 Total change]]","v":1084},{"$f":"Dataset[[#This Row],[2026/27 Baseline]]+Dataset[[#This Row],[2026/27 Total change]]","v":1134}]
["NAT|Non-transfer item","26|Administrative fees","2024_25","MTEF2024",26,1,5,44198,311,"26","01","05","044198","000311","26|01|05","01","01","02","03","03","01|01|02|03|03","National","Military Veterans","Administration","Strategic Planning, Policy Development, and Monitoring and Evaluation","Non-transfer item","Current","Current payments","Goods and services","Administrative fees","Administrative fees","Peace and security","Defence and state security","NAT",60,9,7,0,0,0,0,150,190,220,230,null,null,null,null,null,null,null,null,null,null,null,null,null,null,null,null,null,null,null,null,null,null,null,null,null,null,null,null,null,null,null,null,null,null,{"$f":"Dataset[[#This Row],[2024/25 From - Spending review Topic 1]]+Dataset[[#This Row],[2024/25 From - Spending review Topic 2]]+Dataset[[#This Row],[2024/25 From - Spending review Topic 3]]+Dataset[[#This Row],[2024/25 From - Spending review Topic 4]]+Dataset[[#This Row],[2024/25 From - Other reallocations]]","v":0},{"$f":"Dataset[[#This Row],[2025/26 From - Spending review Topic 1]]+Dataset[[#This Row],[2025/26 From - Spending review Topic 2]]+Dataset[[#This Row],[2025/26 From - Spending review Topic 3]]+Dataset[[#This Row],[2025/26 From - Spending review Topic 4]]+Dataset[[#This Row],[2025/26 From - Other reallocations]]","v":0},{"$f":"Dataset[[#This Row],[2026/27 From - Spending review Topic 1]]+Dataset[[#This Row],[2026/27 From - Spending review Topic 2]]+Dataset[[#This Row],[2026/27 From - Spending review Topic 3]]+Dataset[[#This Row],[2026/27 From - Spending review Topic 4]]+Dataset[[#This Row],[2026/27 From - Other reallocations]]","v":0},{"$f":"Dataset[[#This Row],[2024/25 To - Spending review Topic 1]]+Dataset[[#This Row],[2024/25 To - Spending review Topic 2]]+Dataset[[#This Row],[2024/25 To - Spending review Topic 3]]+Dataset[[#This Row],[2024/25 To - Spending review Topic 4]]+Dataset[[#This Row],[2024/25 To - Other reallocations]]","v":0},{"$f":"Dataset[[#This Row],[2025/26 To - Spending review Topic 1]]+Dataset[[#This Row],[2025/26 To - Spending review Topic 2]]+Dataset[[#This Row],[2025/26 To - Spending review Topic 3]]+Dataset[[#This Row],[2025/26 To - Spending review Topic 4]]+Dataset[[#This Row],[2025/26 To - Other reallocations]]","v":0},{"$f":"Dataset[[#This Row],[2026/27 To - Spending review Topic 1]]+Dataset[[#This Row],[2026/27 To - Spending review Topic 2]]+Dataset[[#This Row],[2026/27 To - Spending review Topic 3]]+Dataset[[#This Row],[2026/27 To - Spending review Topic 4]]+Dataset[[#This Row],[2026/27 To - Other reallocations]]","v":0},{"$f":"Dataset[[#This Row],[2024/25 Reduction]]+Dataset[[#This Row],[2024/25 From - Total]]","v":0},{"$f":"Dataset[[#This Row],[2025/26 Reduction]]+Dataset[[#This Row],[2025/26 From - Total]]","v":0},{"$f":"Dataset[[#This Row],[2026/27 Reduction]]+Dataset[[#This Row],[2026/27 From - Total]]","v":0},{"$f":"Dataset[[#This Row],[2023/24 Reduction]]","v":0},{"$f":"SUM(Dataset[[#This Row],[2024/25 Reduction]],Dataset[[#This Row],[2024/25 From - Total]],Dataset[[#This Row],[2024/25 To - Total]])","v":0},{"$f":"SUM(Dataset[[#This Row],[2025/26 Reduction]],Dataset[[#This Row],[2025/26 From - Total]],Dataset[[#This Row],[2025/26 To - Total]])","v":0},{"$f":"SUM(Dataset[[#This Row],[2026/27 Reduction]],Dataset[[#This Row],[2026/27 From - Total]],Dataset[[#This Row],[2026/27 To - Total]])","v":0},{"$f":"Dataset[[#This Row],[2023/24 Baseline]]+Dataset[[#This Row],[2023/24 Total change]]","v":150},{"$f":"Dataset[[#This Row],[2024/25 Baseline]]+Dataset[[#This Row],[2024/25 Total change]]","v":190},{"$f":"Dataset[[#This Row],[2025/26 Baseline]]+Dataset[[#This Row],[2025/26 Total change]]","v":220},{"$f":"Dataset[[#This Row],[2026/27 Baseline]]+Dataset[[#This Row],[2026/27 Total change]]","v":230}]
["NAT|Non-transfer item","26|Advertising","2024_25","MTEF2024",26,1,5,44199,312,"26","01","05","044199","000312","26|01|05","01","01","02","04","04","01|01|02|04|04","National","Military Veterans","Administration","Strategic Planning, Policy Development, and Monitoring and Evaluation","Non-transfer item","Current","Current payments","Goods and services","Advertising","Advertising","Peace and security","Defence and state security","NAT",0,0,0,0,0,0,0,0,0,0,0,null,null,null,null,null,null,null,null,null,null,null,null,null,null,null,null,null,null,null,null,null,null,null,null,null,null,null,null,null,null,null,null,null,null,{"$f":"Dataset[[#This Row],[2024/25 From - Spending review Topic 1]]+Dataset[[#This Row],[2024/25 From - Spending review Topic 2]]+Dataset[[#This Row],[2024/25 From - Spending review Topic 3]]+Dataset[[#This Row],[2024/25 From - Spending review Topic 4]]+Dataset[[#This Row],[2024/25 From - Other reallocations]]","v":0},{"$f":"Dataset[[#This Row],[2025/26 From - Spending review Topic 1]]+Dataset[[#This Row],[2025/26 From - Spending review Topic 2]]+Dataset[[#This Row],[2025/26 From - Spending review Topic 3]]+Dataset[[#This Row],[2025/26 From - Spending review Topic 4]]+Dataset[[#This Row],[2025/26 From - Other reallocations]]","v":0},{"$f":"Dataset[[#This Row],[2026/27 From - Spending review Topic 1]]+Dataset[[#This Row],[2026/27 From - Spending review Topic 2]]+Dataset[[#This Row],[2026/27 From - Spending review Topic 3]]+Dataset[[#This Row],[2026/27 From - Spending review Topic 4]]+Dataset[[#This Row],[2026/27 From - Other reallocations]]","v":0},{"$f":"Dataset[[#This Row],[2024/25 To - Spending review Topic 1]]+Dataset[[#This Row],[2024/25 To - Spending review Topic 2]]+Dataset[[#This Row],[2024/25 To - Spending review Topic 3]]+Dataset[[#This Row],[2024/25 To - Spending review Topic 4]]+Dataset[[#This Row],[2024/25 To - Other reallocations]]","v":0},{"$f":"Dataset[[#This Row],[2025/26 To - Spending review Topic 1]]+Dataset[[#This Row],[2025/26 To - Spending review Topic 2]]+Dataset[[#This Row],[2025/26 To - Spending review Topic 3]]+Dataset[[#This Row],[2025/26 To - Spending review Topic 4]]+Dataset[[#This Row],[2025/26 To - Other reallocations]]","v":0},{"$f":"Dataset[[#This Row],[2026/27 To - Spending review Topic 1]]+Dataset[[#This Row],[2026/27 To - Spending review Topic 2]]+Dataset[[#This Row],[2026/27 To - Spending review Topic 3]]+Dataset[[#This Row],[2026/27 To - Spending review Topic 4]]+Dataset[[#This Row],[2026/27 To - Other reallocations]]","v":0},{"$f":"Dataset[[#This Row],[2024/25 Reduction]]+Dataset[[#This Row],[2024/25 From - Total]]","v":0},{"$f":"Dataset[[#This Row],[2025/26 Reduction]]+Dataset[[#This Row],[2025/26 From - Total]]","v":0},{"$f":"Dataset[[#This Row],[2026/27 Reduction]]+Dataset[[#This Row],[2026/27 From - Total]]","v":0},{"$f":"Dataset[[#This Row],[2023/24 Reduction]]","v":0},{"$f":"SUM(Dataset[[#This Row],[2024/25 Reduction]],Dataset[[#This Row],[2024/25 From - Total]],Dataset[[#This Row],[2024/25 To - Total]])","v":0},{"$f":"SUM(Dataset[[#This Row],[2025/26 Reduction]],Dataset[[#This Row],[2025/26 From - Total]],Dataset[[#This Row],[2025/26 To - Total]])","v":0},{"$f":"SUM(Dataset[[#This Row],[2026/27 Reduction]],Dataset[[#This Row],[2026/27 From - Total]],Dataset[[#This Row],[2026/27 To - Total]])","v":0},{"$f":"Dataset[[#This Row],[2023/24 Baseline]]+Dataset[[#This Row],[2023/24 Total change]]","v":0},{"$f":"Dataset[[#This Row],[2024/25 Baseline]]+Dataset[[#This Row],[2024/25 Total change]]","v":0},{"$f":"Dataset[[#This Row],[2025/26 Baseline]]+Dataset[[#This Row],[2025/26 Total change]]","v":0},{"$f":"Dataset[[#This Row],[2026/27 Baseline]]+Dataset[[#This Row],[2026/27 Total change]]","v":0}]
["NAT|Non-transfer item","26|Minor assets","2024_25","MTEF2024",26,1,5,44200,313,"26","01","05","044200","000313","26|01|05","01","01","02","05","05","01|01|02|05|05","National","Military Veterans","Administration","Strategic Planning, Policy Development, and Monitoring and Evaluation","Non-transfer item","Current","Current payments","Goods and services","Minor assets","Minor assets","Peace and security","Defence and state security","NAT",72,8,0,156,0,0,0,50,73,87,91,null,null,null,null,null,null,null,null,null,null,null,null,null,null,null,null,null,null,null,null,null,null,null,null,null,null,null,null,null,null,null,null,null,null,{"$f":"Dataset[[#This Row],[2024/25 From - Spending review Topic 1]]+Dataset[[#This Row],[2024/25 From - Spending review Topic 2]]+Dataset[[#This Row],[2024/25 From - Spending review Topic 3]]+Dataset[[#This Row],[2024/25 From - Spending review Topic 4]]+Dataset[[#This Row],[2024/25 From - Other reallocations]]","v":0},{"$f":"Dataset[[#This Row],[2025/26 From - Spending review Topic 1]]+Dataset[[#This Row],[2025/26 From - Spending review Topic 2]]+Dataset[[#This Row],[2025/26 From - Spending review Topic 3]]+Dataset[[#This Row],[2025/26 From - Spending review Topic 4]]+Dataset[[#This Row],[2025/26 From - Other reallocations]]","v":0},{"$f":"Dataset[[#This Row],[2026/27 From - Spending review Topic 1]]+Dataset[[#This Row],[2026/27 From - Spending review Topic 2]]+Dataset[[#This Row],[2026/27 From - Spending review Topic 3]]+Dataset[[#This Row],[2026/27 From - Spending review Topic 4]]+Dataset[[#This Row],[2026/27 From - Other reallocations]]","v":0},{"$f":"Dataset[[#This Row],[2024/25 To - Spending review Topic 1]]+Dataset[[#This Row],[2024/25 To - Spending review Topic 2]]+Dataset[[#This Row],[2024/25 To - Spending review Topic 3]]+Dataset[[#This Row],[2024/25 To - Spending review Topic 4]]+Dataset[[#This Row],[2024/25 To - Other reallocations]]","v":0},{"$f":"Dataset[[#This Row],[2025/26 To - Spending review Topic 1]]+Dataset[[#This Row],[2025/26 To - Spending review Topic 2]]+Dataset[[#This Row],[2025/26 To - Spending review Topic 3]]+Dataset[[#This Row],[2025/26 To - Spending review Topic 4]]+Dataset[[#This Row],[2025/26 To - Other reallocations]]","v":0},{"$f":"Dataset[[#This Row],[2026/27 To - Spending review Topic 1]]+Dataset[[#This Row],[2026/27 To - Spending review Topic 2]]+Dataset[[#This Row],[2026/27 To - Spending review Topic 3]]+Dataset[[#This Row],[2026/27 To - Spending review Topic 4]]+Dataset[[#This Row],[2026/27 To - Other reallocations]]","v":0},{"$f":"Dataset[[#This Row],[2024/25 Reduction]]+Dataset[[#This Row],[2024/25 From - Total]]","v":0},{"$f":"Dataset[[#This Row],[2025/26 Reduction]]+Dataset[[#This Row],[2025/26 From - Total]]","v":0},{"$f":"Dataset[[#This Row],[2026/27 Reduction]]+Dataset[[#This Row],[2026/27 From - Total]]","v":0},{"$f":"Dataset[[#This Row],[2023/24 Reduction]]","v":0},{"$f":"SUM(Dataset[[#This Row],[2024/25 Reduction]],Dataset[[#This Row],[2024/25 From - Total]],Dataset[[#This Row],[2024/25 To - Total]])","v":0},{"$f":"SUM(Dataset[[#This Row],[2025/26 Reduction]],Dataset[[#This Row],[2025/26 From - Total]],Dataset[[#This Row],[2025/26 To - Total]])","v":0},{"$f":"SUM(Dataset[[#This Row],[2026/27 Reduction]],Dataset[[#This Row],[2026/27 From - Total]],Dataset[[#This Row],[2026/27 To - Total]])","v":0},{"$f":"Dataset[[#This Row],[2023/24 Baseline]]+Dataset[[#This Row],[2023/24 Total change]]","v":50},{"$f":"Dataset[[#This Row],[2024/25 Baseline]]+Dataset[[#This Row],[2024/25 Total change]]","v":73},{"$f":"Dataset[[#This Row],[2025/26 Baseline]]+Dataset[[#This Row],[2025/26 Total change]]","v":87},{"$f":"Dataset[[#This Row],[2026/27 Baseline]]+Dataset[[#This Row],[2026/27 Total change]]","v":91}]
["NAT|Non-transfer item","26|Audit costs: External","2024_25","MTEF2024",26,1,5,44201,314,"26","01","05","044201","000314","26|01|05","01","01","02","06","06","01|01|02|06|06","National","Military Veterans","Administration","Strategic Planning, Policy Development, and Monitoring and Evaluation","Non-transfer item","Current","Current payments","Goods and services","Audit costs: External","Audit costs: External","Peace and security","Defence and state security","NAT",0,0,0,0,0,0,0,0,0,0,0,null,null,null,null,null,null,null,null,null,null,null,null,null,null,null,null,null,null,null,null,null,null,null,null,null,null,null,null,null,null,null,null,null,null,{"$f":"Dataset[[#This Row],[2024/25 From - Spending review Topic 1]]+Dataset[[#This Row],[2024/25 From - Spending review Topic 2]]+Dataset[[#This Row],[2024/25 From - Spending review Topic 3]]+Dataset[[#This Row],[2024/25 From - Spending review Topic 4]]+Dataset[[#This Row],[2024/25 From - Other reallocations]]","v":0},{"$f":"Dataset[[#This Row],[2025/26 From - Spending review Topic 1]]+Dataset[[#This Row],[2025/26 From - Spending review Topic 2]]+Dataset[[#This Row],[2025/26 From - Spending review Topic 3]]+Dataset[[#This Row],[2025/26 From - Spending review Topic 4]]+Dataset[[#This Row],[2025/26 From - Other reallocations]]","v":0},{"$f":"Dataset[[#This Row],[2026/27 From - Spending review Topic 1]]+Dataset[[#This Row],[2026/27 From - Spending review Topic 2]]+Dataset[[#This Row],[2026/27 From - Spending review Topic 3]]+Dataset[[#This Row],[2026/27 From - Spending review Topic 4]]+Dataset[[#This Row],[2026/27 From - Other reallocations]]","v":0},{"$f":"Dataset[[#This Row],[2024/25 To - Spending review Topic 1]]+Dataset[[#This Row],[2024/25 To - Spending review Topic 2]]+Dataset[[#This Row],[2024/25 To - Spending review Topic 3]]+Dataset[[#This Row],[2024/25 To - Spending review Topic 4]]+Dataset[[#This Row],[2024/25 To - Other reallocations]]","v":0},{"$f":"Dataset[[#This Row],[2025/26 To - Spending review Topic 1]]+Dataset[[#This Row],[2025/26 To - Spending review Topic 2]]+Dataset[[#This Row],[2025/26 To - Spending review Topic 3]]+Dataset[[#This Row],[2025/26 To - Spending review Topic 4]]+Dataset[[#This Row],[2025/26 To - Other reallocations]]","v":0},{"$f":"Dataset[[#This Row],[2026/27 To - Spending review Topic 1]]+Dataset[[#This Row],[2026/27 To - Spending review Topic 2]]+Dataset[[#This Row],[2026/27 To - Spending review Topic 3]]+Dataset[[#This Row],[2026/27 To - Spending review Topic 4]]+Dataset[[#This Row],[2026/27 To - Other reallocations]]","v":0},{"$f":"Dataset[[#This Row],[2024/25 Reduction]]+Dataset[[#This Row],[2024/25 From - Total]]","v":0},{"$f":"Dataset[[#This Row],[2025/26 Reduction]]+Dataset[[#This Row],[2025/26 From - Total]]","v":0},{"$f":"Dataset[[#This Row],[2026/27 Reduction]]+Dataset[[#This Row],[2026/27 From - Total]]","v":0},{"$f":"Dataset[[#This Row],[2023/24 Reduction]]","v":0},{"$f":"SUM(Dataset[[#This Row],[2024/25 Reduction]],Dataset[[#This Row],[2024/25 From - Total]],Dataset[[#This Row],[2024/25 To - Total]])","v":0},{"$f":"SUM(Dataset[[#This Row],[2025/26 Reduction]],Dataset[[#This Row],[2025/26 From - Total]],Dataset[[#This Row],[2025/26 To - Total]])","v":0},{"$f":"SUM(Dataset[[#This Row],[2026/27 Reduction]],Dataset[[#This Row],[2026/27 From - Total]],Dataset[[#This Row],[2026/27 To - Total]])","v":0},{"$f":"Dataset[[#This Row],[2023/24 Baseline]]+Dataset[[#This Row],[2023/24 Total change]]","v":0},{"$f":"Dataset[[#This Row],[2024/25 Baseline]]+Dataset[[#This Row],[2024/25 Total change]]","v":0},{"$f":"Dataset[[#This Row],[2025/26 Baseline]]+Dataset[[#This Row],[2025/26 Total change]]","v":0},{"$f":"Dataset[[#This Row],[2026/27 Baseline]]+Dataset[[#This Row],[2026/27 Total change]]","v":0}]
["NAT|Non-transfer item","26|Bursaries: Employees","2024_25","MTEF2024",26,1,5,44202,315,"26","01","05","044202","000315","26|01|05","01","01","02","07","07","01|01|02|07|07","National","Military Veterans","Administration","Strategic Planning, Policy Development, and Monitoring and Evaluation","Non-transfer item","Current","Current payments","Goods and services","Bursaries: Employees","Bursaries: Employees","Peace and security","Defence and state security","NAT",0,0,0,0,0,0,0,0,0,0,0,null,null,null,null,null,null,null,null,null,null,null,null,null,null,null,null,null,null,null,null,null,null,null,null,null,null,null,null,null,null,null,null,null,null,{"$f":"Dataset[[#This Row],[2024/25 From - Spending review Topic 1]]+Dataset[[#This Row],[2024/25 From - Spending review Topic 2]]+Dataset[[#This Row],[2024/25 From - Spending review Topic 3]]+Dataset[[#This Row],[2024/25 From - Spending review Topic 4]]+Dataset[[#This Row],[2024/25 From - Other reallocations]]","v":0},{"$f":"Dataset[[#This Row],[2025/26 From - Spending review Topic 1]]+Dataset[[#This Row],[2025/26 From - Spending review Topic 2]]+Dataset[[#This Row],[2025/26 From - Spending review Topic 3]]+Dataset[[#This Row],[2025/26 From - Spending review Topic 4]]+Dataset[[#This Row],[2025/26 From - Other reallocations]]","v":0},{"$f":"Dataset[[#This Row],[2026/27 From - Spending review Topic 1]]+Dataset[[#This Row],[2026/27 From - Spending review Topic 2]]+Dataset[[#This Row],[2026/27 From - Spending review Topic 3]]+Dataset[[#This Row],[2026/27 From - Spending review Topic 4]]+Dataset[[#This Row],[2026/27 From - Other reallocations]]","v":0},{"$f":"Dataset[[#This Row],[2024/25 To - Spending review Topic 1]]+Dataset[[#This Row],[2024/25 To - Spending review Topic 2]]+Dataset[[#This Row],[2024/25 To - Spending review Topic 3]]+Dataset[[#This Row],[2024/25 To - Spending review Topic 4]]+Dataset[[#This Row],[2024/25 To - Other reallocations]]","v":0},{"$f":"Dataset[[#This Row],[2025/26 To - Spending review Topic 1]]+Dataset[[#This Row],[2025/26 To - Spending review Topic 2]]+Dataset[[#This Row],[2025/26 To - Spending review Topic 3]]+Dataset[[#This Row],[2025/26 To - Spending review Topic 4]]+Dataset[[#This Row],[2025/26 To - Other reallocations]]","v":0},{"$f":"Dataset[[#This Row],[2026/27 To - Spending review Topic 1]]+Dataset[[#This Row],[2026/27 To - Spending review Topic 2]]+Dataset[[#This Row],[2026/27 To - Spending review Topic 3]]+Dataset[[#This Row],[2026/27 To - Spending review Topic 4]]+Dataset[[#This Row],[2026/27 To - Other reallocations]]","v":0},{"$f":"Dataset[[#This Row],[2024/25 Reduction]]+Dataset[[#This Row],[2024/25 From - Total]]","v":0},{"$f":"Dataset[[#This Row],[2025/26 Reduction]]+Dataset[[#This Row],[2025/26 From - Total]]","v":0},{"$f":"Dataset[[#This Row],[2026/27 Reduction]]+Dataset[[#This Row],[2026/27 From - Total]]","v":0},{"$f":"Dataset[[#This Row],[2023/24 Reduction]]","v":0},{"$f":"SUM(Dataset[[#This Row],[2024/25 Reduction]],Dataset[[#This Row],[2024/25 From - Total]],Dataset[[#This Row],[2024/25 To - Total]])","v":0},{"$f":"SUM(Dataset[[#This Row],[2025/26 Reduction]],Dataset[[#This Row],[2025/26 From - Total]],Dataset[[#This Row],[2025/26 To - Total]])","v":0},{"$f":"SUM(Dataset[[#This Row],[2026/27 Reduction]],Dataset[[#This Row],[2026/27 From - Total]],Dataset[[#This Row],[2026/27 To - Total]])","v":0},{"$f":"Dataset[[#This Row],[2023/24 Baseline]]+Dataset[[#This Row],[2023/24 Total change]]","v":0},{"$f":"Dataset[[#This Row],[2024/25 Baseline]]+Dataset[[#This Row],[2024/25 Total change]]","v":0},{"$f":"Dataset[[#This Row],[2025/26 Baseline]]+Dataset[[#This Row],[2025/26 Total change]]","v":0},{"$f":"Dataset[[#This Row],[2026/27 Baseline]]+Dataset[[#This Row],[2026/27 Total change]]","v":0}]
["NAT|Non-transfer item","26|Catering: Departmental activities","2024_25","MTEF2024",26,1,5,44203,316,"26","01","05","044203","000316","26|01|05","01","01","02","08","08","01|01|02|08|08","National","Military Veterans","Administration","Strategic Planning, Policy Development, and Monitoring and Evaluation","Non-transfer item","Current","Current payments","Goods and services","Catering: Departmental activities","Catering: Departmental activities","Peace and security","Defence and state security","NAT",21,13,0,148,129,129,0,51,63,70,73,null,null,null,null,null,null,null,null,null,null,null,null,null,null,null,null,null,null,null,null,null,null,null,null,null,null,null,null,null,null,null,null,null,null,{"$f":"Dataset[[#This Row],[2024/25 From - Spending review Topic 1]]+Dataset[[#This Row],[2024/25 From - Spending review Topic 2]]+Dataset[[#This Row],[2024/25 From - Spending review Topic 3]]+Dataset[[#This Row],[2024/25 From - Spending review Topic 4]]+Dataset[[#This Row],[2024/25 From - Other reallocations]]","v":0},{"$f":"Dataset[[#This Row],[2025/26 From - Spending review Topic 1]]+Dataset[[#This Row],[2025/26 From - Spending review Topic 2]]+Dataset[[#This Row],[2025/26 From - Spending review Topic 3]]+Dataset[[#This Row],[2025/26 From - Spending review Topic 4]]+Dataset[[#This Row],[2025/26 From - Other reallocations]]","v":0},{"$f":"Dataset[[#This Row],[2026/27 From - Spending review Topic 1]]+Dataset[[#This Row],[2026/27 From - Spending review Topic 2]]+Dataset[[#This Row],[2026/27 From - Spending review Topic 3]]+Dataset[[#This Row],[2026/27 From - Spending review Topic 4]]+Dataset[[#This Row],[2026/27 From - Other reallocations]]","v":0},{"$f":"Dataset[[#This Row],[2024/25 To - Spending review Topic 1]]+Dataset[[#This Row],[2024/25 To - Spending review Topic 2]]+Dataset[[#This Row],[2024/25 To - Spending review Topic 3]]+Dataset[[#This Row],[2024/25 To - Spending review Topic 4]]+Dataset[[#This Row],[2024/25 To - Other reallocations]]","v":0},{"$f":"Dataset[[#This Row],[2025/26 To - Spending review Topic 1]]+Dataset[[#This Row],[2025/26 To - Spending review Topic 2]]+Dataset[[#This Row],[2025/26 To - Spending review Topic 3]]+Dataset[[#This Row],[2025/26 To - Spending review Topic 4]]+Dataset[[#This Row],[2025/26 To - Other reallocations]]","v":0},{"$f":"Dataset[[#This Row],[2026/27 To - Spending review Topic 1]]+Dataset[[#This Row],[2026/27 To - Spending review Topic 2]]+Dataset[[#This Row],[2026/27 To - Spending review Topic 3]]+Dataset[[#This Row],[2026/27 To - Spending review Topic 4]]+Dataset[[#This Row],[2026/27 To - Other reallocations]]","v":0},{"$f":"Dataset[[#This Row],[2024/25 Reduction]]+Dataset[[#This Row],[2024/25 From - Total]]","v":0},{"$f":"Dataset[[#This Row],[2025/26 Reduction]]+Dataset[[#This Row],[2025/26 From - Total]]","v":0},{"$f":"Dataset[[#This Row],[2026/27 Reduction]]+Dataset[[#This Row],[2026/27 From - Total]]","v":0},{"$f":"Dataset[[#This Row],[2023/24 Reduction]]","v":0},{"$f":"SUM(Dataset[[#This Row],[2024/25 Reduction]],Dataset[[#This Row],[2024/25 From - Total]],Dataset[[#This Row],[2024/25 To - Total]])","v":0},{"$f":"SUM(Dataset[[#This Row],[2025/26 Reduction]],Dataset[[#This Row],[2025/26 From - Total]],Dataset[[#This Row],[2025/26 To - Total]])","v":0},{"$f":"SUM(Dataset[[#This Row],[2026/27 Reduction]],Dataset[[#This Row],[2026/27 From - Total]],Dataset[[#This Row],[2026/27 To - Total]])","v":0},{"$f":"Dataset[[#This Row],[2023/24 Baseline]]+Dataset[[#This Row],[2023/24 Total change]]","v":51},{"$f":"Dataset[[#This Row],[2024/25 Baseline]]+Dataset[[#This Row],[2024/25 Total change]]","v":63},{"$f":"Dataset[[#This Row],[2025/26 Baseline]]+Dataset[[#This Row],[2025/26 Total change]]","v":70},{"$f":"Dataset[[#This Row],[2026/27 Baseline]]+Dataset[[#This Row],[2026/27 Total change]]","v":73}]
["NAT|Non-transfer item","26|Communication (G&S)","2024_25","MTEF2024",26,1,5,44204,317,"26","01","05","044204","000317","26|01|05","01","01","02","09","09","01|01|02|09|09","National","Military Veterans","Administration","Strategic Planning, Policy Development, and Monitoring and Evaluation","Non-transfer item","Current","Current payments","Goods and services","Communication (G&S)","Communication (G&S)","Peace and security","Defence and state security","NAT",0,0,0,0,0,0,0,0,0,0,0,null,null,null,null,null,null,null,null,null,null,null,null,null,null,null,null,null,null,null,null,null,null,null,null,null,null,null,null,null,null,null,null,null,null,{"$f":"Dataset[[#This Row],[2024/25 From - Spending review Topic 1]]+Dataset[[#This Row],[2024/25 From - Spending review Topic 2]]+Dataset[[#This Row],[2024/25 From - Spending review Topic 3]]+Dataset[[#This Row],[2024/25 From - Spending review Topic 4]]+Dataset[[#This Row],[2024/25 From - Other reallocations]]","v":0},{"$f":"Dataset[[#This Row],[2025/26 From - Spending review Topic 1]]+Dataset[[#This Row],[2025/26 From - Spending review Topic 2]]+Dataset[[#This Row],[2025/26 From - Spending review Topic 3]]+Dataset[[#This Row],[2025/26 From - Spending review Topic 4]]+Dataset[[#This Row],[2025/26 From - Other reallocations]]","v":0},{"$f":"Dataset[[#This Row],[2026/27 From - Spending review Topic 1]]+Dataset[[#This Row],[2026/27 From - Spending review Topic 2]]+Dataset[[#This Row],[2026/27 From - Spending review Topic 3]]+Dataset[[#This Row],[2026/27 From - Spending review Topic 4]]+Dataset[[#This Row],[2026/27 From - Other reallocations]]","v":0},{"$f":"Dataset[[#This Row],[2024/25 To - Spending review Topic 1]]+Dataset[[#This Row],[2024/25 To - Spending review Topic 2]]+Dataset[[#This Row],[2024/25 To - Spending review Topic 3]]+Dataset[[#This Row],[2024/25 To - Spending review Topic 4]]+Dataset[[#This Row],[2024/25 To - Other reallocations]]","v":0},{"$f":"Dataset[[#This Row],[2025/26 To - Spending review Topic 1]]+Dataset[[#This Row],[2025/26 To - Spending review Topic 2]]+Dataset[[#This Row],[2025/26 To - Spending review Topic 3]]+Dataset[[#This Row],[2025/26 To - Spending review Topic 4]]+Dataset[[#This Row],[2025/26 To - Other reallocations]]","v":0},{"$f":"Dataset[[#This Row],[2026/27 To - Spending review Topic 1]]+Dataset[[#This Row],[2026/27 To - Spending review Topic 2]]+Dataset[[#This Row],[2026/27 To - Spending review Topic 3]]+Dataset[[#This Row],[2026/27 To - Spending review Topic 4]]+Dataset[[#This Row],[2026/27 To - Other reallocations]]","v":0},{"$f":"Dataset[[#This Row],[2024/25 Reduction]]+Dataset[[#This Row],[2024/25 From - Total]]","v":0},{"$f":"Dataset[[#This Row],[2025/26 Reduction]]+Dataset[[#This Row],[2025/26 From - Total]]","v":0},{"$f":"Dataset[[#This Row],[2026/27 Reduction]]+Dataset[[#This Row],[2026/27 From - Total]]","v":0},{"$f":"Dataset[[#This Row],[2023/24 Reduction]]","v":0},{"$f":"SUM(Dataset[[#This Row],[2024/25 Reduction]],Dataset[[#This Row],[2024/25 From - Total]],Dataset[[#This Row],[2024/25 To - Total]])","v":0},{"$f":"SUM(Dataset[[#This Row],[2025/26 Reduction]],Dataset[[#This Row],[2025/26 From - Total]],Dataset[[#This Row],[2025/26 To - Total]])","v":0},{"$f":"SUM(Dataset[[#This Row],[2026/27 Reduction]],Dataset[[#This Row],[2026/27 From - Total]],Dataset[[#This Row],[2026/27 To - Total]])","v":0},{"$f":"Dataset[[#This Row],[2023/24 Baseline]]+Dataset[[#This Row],[2023/24 Total change]]","v":0},{"$f":"Dataset[[#This Row],[2024/25 Baseline]]+Dataset[[#This Row],[2024/25 Total change]]","v":0},{"$f":"Dataset[[#This Row],[2025/26 Baseline]]+Dataset[[#This Row],[2025/26 Total change]]","v":0},{"$f":"Dataset[[#This Row],[2026/27 Baseline]]+Dataset[[#This Row],[2026/27 Total change]]","v":0}]
["NAT|Non-transfer item","26|Computer services","2024_25","MTEF2024",26,1,5,44205,318,"26","01","05","044205","000318","26|01|05","01","01","02","10","10","01|01|02|10|10","National","Military Veterans","Administration","Strategic Planning, Policy Development, and Monitoring and Evaluation","Non-transfer item","Current","Current payments","Goods and services","Computer services","Computer services","Peace and security","Defence and state security","NAT",0,0,0,0,0,0,0,0,0,0,0,null,null,null,null,null,null,null,null,null,null,null,null,null,null,null,null,null,null,null,null,null,null,null,null,null,null,null,null,null,null,null,null,null,null,{"$f":"Dataset[[#This Row],[2024/25 From - Spending review Topic 1]]+Dataset[[#This Row],[2024/25 From - Spending review Topic 2]]+Dataset[[#This Row],[2024/25 From - Spending review Topic 3]]+Dataset[[#This Row],[2024/25 From - Spending review Topic 4]]+Dataset[[#This Row],[2024/25 From - Other reallocations]]","v":0},{"$f":"Dataset[[#This Row],[2025/26 From - Spending review Topic 1]]+Dataset[[#This Row],[2025/26 From - Spending review Topic 2]]+Dataset[[#This Row],[2025/26 From - Spending review Topic 3]]+Dataset[[#This Row],[2025/26 From - Spending review Topic 4]]+Dataset[[#This Row],[2025/26 From - Other reallocations]]","v":0},{"$f":"Dataset[[#This Row],[2026/27 From - Spending review Topic 1]]+Dataset[[#This Row],[2026/27 From - Spending review Topic 2]]+Dataset[[#This Row],[2026/27 From - Spending review Topic 3]]+Dataset[[#This Row],[2026/27 From - Spending review Topic 4]]+Dataset[[#This Row],[2026/27 From - Other reallocations]]","v":0},{"$f":"Dataset[[#This Row],[2024/25 To - Spending review Topic 1]]+Dataset[[#This Row],[2024/25 To - Spending review Topic 2]]+Dataset[[#This Row],[2024/25 To - Spending review Topic 3]]+Dataset[[#This Row],[2024/25 To - Spending review Topic 4]]+Dataset[[#This Row],[2024/25 To - Other reallocations]]","v":0},{"$f":"Dataset[[#This Row],[2025/26 To - Spending review Topic 1]]+Dataset[[#This Row],[2025/26 To - Spending review Topic 2]]+Dataset[[#This Row],[2025/26 To - Spending review Topic 3]]+Dataset[[#This Row],[2025/26 To - Spending review Topic 4]]+Dataset[[#This Row],[2025/26 To - Other reallocations]]","v":0},{"$f":"Dataset[[#This Row],[2026/27 To - Spending review Topic 1]]+Dataset[[#This Row],[2026/27 To - Spending review Topic 2]]+Dataset[[#This Row],[2026/27 To - Spending review Topic 3]]+Dataset[[#This Row],[2026/27 To - Spending review Topic 4]]+Dataset[[#This Row],[2026/27 To - Other reallocations]]","v":0},{"$f":"Dataset[[#This Row],[2024/25 Reduction]]+Dataset[[#This Row],[2024/25 From - Total]]","v":0},{"$f":"Dataset[[#This Row],[2025/26 Reduction]]+Dataset[[#This Row],[2025/26 From - Total]]","v":0},{"$f":"Dataset[[#This Row],[2026/27 Reduction]]+Dataset[[#This Row],[2026/27 From - Total]]","v":0},{"$f":"Dataset[[#This Row],[2023/24 Reduction]]","v":0},{"$f":"SUM(Dataset[[#This Row],[2024/25 Reduction]],Dataset[[#This Row],[2024/25 From - Total]],Dataset[[#This Row],[2024/25 To - Total]])","v":0},{"$f":"SUM(Dataset[[#This Row],[2025/26 Reduction]],Dataset[[#This Row],[2025/26 From - Total]],Dataset[[#This Row],[2025/26 To - Total]])","v":0},{"$f":"SUM(Dataset[[#This Row],[2026/27 Reduction]],Dataset[[#This Row],[2026/27 From - Total]],Dataset[[#This Row],[2026/27 To - Total]])","v":0},{"$f":"Dataset[[#This Row],[2023/24 Baseline]]+Dataset[[#This Row],[2023/24 Total change]]","v":0},{"$f":"Dataset[[#This Row],[2024/25 Baseline]]+Dataset[[#This Row],[2024/25 Total change]]","v":0},{"$f":"Dataset[[#This Row],[2025/26 Baseline]]+Dataset[[#This Row],[2025/26 Total change]]","v":0},{"$f":"Dataset[[#This Row],[2026/27 Baseline]]+Dataset[[#This Row],[2026/27 Total change]]","v":0}]
["NAT|Non-transfer item","26|Consultants: Business and advisory services","2024_25","MTEF2024",26,1,5,44206,319,"26","01","05","044206","000319","26|01|05","01","01","02","11","11","01|01|02|11|11","National","Military Veterans","Administration","Strategic Planning, Policy Development, and Monitoring and Evaluation","Non-transfer item","Current","Current payments","Goods and services","Consultants: Business and advisory services","Consultants: Business and advisory services","Peace and security","Defence and state security","NAT",0,0,793,2326,850,850,0,368,556,671,702,null,null,null,null,null,null,null,null,null,null,null,null,null,null,null,null,null,null,null,null,null,null,null,null,null,null,null,null,null,null,null,null,null,null,{"$f":"Dataset[[#This Row],[2024/25 From - Spending review Topic 1]]+Dataset[[#This Row],[2024/25 From - Spending review Topic 2]]+Dataset[[#This Row],[2024/25 From - Spending review Topic 3]]+Dataset[[#This Row],[2024/25 From - Spending review Topic 4]]+Dataset[[#This Row],[2024/25 From - Other reallocations]]","v":0},{"$f":"Dataset[[#This Row],[2025/26 From - Spending review Topic 1]]+Dataset[[#This Row],[2025/26 From - Spending review Topic 2]]+Dataset[[#This Row],[2025/26 From - Spending review Topic 3]]+Dataset[[#This Row],[2025/26 From - Spending review Topic 4]]+Dataset[[#This Row],[2025/26 From - Other reallocations]]","v":0},{"$f":"Dataset[[#This Row],[2026/27 From - Spending review Topic 1]]+Dataset[[#This Row],[2026/27 From - Spending review Topic 2]]+Dataset[[#This Row],[2026/27 From - Spending review Topic 3]]+Dataset[[#This Row],[2026/27 From - Spending review Topic 4]]+Dataset[[#This Row],[2026/27 From - Other reallocations]]","v":0},{"$f":"Dataset[[#This Row],[2024/25 To - Spending review Topic 1]]+Dataset[[#This Row],[2024/25 To - Spending review Topic 2]]+Dataset[[#This Row],[2024/25 To - Spending review Topic 3]]+Dataset[[#This Row],[2024/25 To - Spending review Topic 4]]+Dataset[[#This Row],[2024/25 To - Other reallocations]]","v":0},{"$f":"Dataset[[#This Row],[2025/26 To - Spending review Topic 1]]+Dataset[[#This Row],[2025/26 To - Spending review Topic 2]]+Dataset[[#This Row],[2025/26 To - Spending review Topic 3]]+Dataset[[#This Row],[2025/26 To - Spending review Topic 4]]+Dataset[[#This Row],[2025/26 To - Other reallocations]]","v":0},{"$f":"Dataset[[#This Row],[2026/27 To - Spending review Topic 1]]+Dataset[[#This Row],[2026/27 To - Spending review Topic 2]]+Dataset[[#This Row],[2026/27 To - Spending review Topic 3]]+Dataset[[#This Row],[2026/27 To - Spending review Topic 4]]+Dataset[[#This Row],[2026/27 To - Other reallocations]]","v":0},{"$f":"Dataset[[#This Row],[2024/25 Reduction]]+Dataset[[#This Row],[2024/25 From - Total]]","v":0},{"$f":"Dataset[[#This Row],[2025/26 Reduction]]+Dataset[[#This Row],[2025/26 From - Total]]","v":0},{"$f":"Dataset[[#This Row],[2026/27 Reduction]]+Dataset[[#This Row],[2026/27 From - Total]]","v":0},{"$f":"Dataset[[#This Row],[2023/24 Reduction]]","v":0},{"$f":"SUM(Dataset[[#This Row],[2024/25 Reduction]],Dataset[[#This Row],[2024/25 From - Total]],Dataset[[#This Row],[2024/25 To - Total]])","v":0},{"$f":"SUM(Dataset[[#This Row],[2025/26 Reduction]],Dataset[[#This Row],[2025/26 From - Total]],Dataset[[#This Row],[2025/26 To - Total]])","v":0},{"$f":"SUM(Dataset[[#This Row],[2026/27 Reduction]],Dataset[[#This Row],[2026/27 From - Total]],Dataset[[#This Row],[2026/27 To - Total]])","v":0},{"$f":"Dataset[[#This Row],[2023/24 Baseline]]+Dataset[[#This Row],[2023/24 Total change]]","v":368},{"$f":"Dataset[[#This Row],[2024/25 Baseline]]+Dataset[[#This Row],[2024/25 Total change]]","v":556},{"$f":"Dataset[[#This Row],[2025/26 Baseline]]+Dataset[[#This Row],[2025/26 Total change]]","v":671},{"$f":"Dataset[[#This Row],[2026/27 Baseline]]+Dataset[[#This Row],[2026/27 Total change]]","v":702}]
["NAT|Non-transfer item","26|Infrastructure and planning services","2024_25","MTEF2024",26,1,5,44207,320,"26","01","05","044207","000320","26|01|05","01","01","02","12","12","01|01|02|12|12","National","Military Veterans","Administration","Strategic Planning, Policy Development, and Monitoring and Evaluation","Non-transfer item","Current","Current payments","Goods and services","Infrastructure and planning services","Infrastructure and planning services","Peace and security","Defence and state security","NAT",0,0,0,0,0,0,0,0,0,0,0,null,null,null,null,null,null,null,null,null,null,null,null,null,null,null,null,null,null,null,null,null,null,null,null,null,null,null,null,null,null,null,null,null,null,{"$f":"Dataset[[#This Row],[2024/25 From - Spending review Topic 1]]+Dataset[[#This Row],[2024/25 From - Spending review Topic 2]]+Dataset[[#This Row],[2024/25 From - Spending review Topic 3]]+Dataset[[#This Row],[2024/25 From - Spending review Topic 4]]+Dataset[[#This Row],[2024/25 From - Other reallocations]]","v":0},{"$f":"Dataset[[#This Row],[2025/26 From - Spending review Topic 1]]+Dataset[[#This Row],[2025/26 From - Spending review Topic 2]]+Dataset[[#This Row],[2025/26 From - Spending review Topic 3]]+Dataset[[#This Row],[2025/26 From - Spending review Topic 4]]+Dataset[[#This Row],[2025/26 From - Other reallocations]]","v":0},{"$f":"Dataset[[#This Row],[2026/27 From - Spending review Topic 1]]+Dataset[[#This Row],[2026/27 From - Spending review Topic 2]]+Dataset[[#This Row],[2026/27 From - Spending review Topic 3]]+Dataset[[#This Row],[2026/27 From - Spending review Topic 4]]+Dataset[[#This Row],[2026/27 From - Other reallocations]]","v":0},{"$f":"Dataset[[#This Row],[2024/25 To - Spending review Topic 1]]+Dataset[[#This Row],[2024/25 To - Spending review Topic 2]]+Dataset[[#This Row],[2024/25 To - Spending review Topic 3]]+Dataset[[#This Row],[2024/25 To - Spending review Topic 4]]+Dataset[[#This Row],[2024/25 To - Other reallocations]]","v":0},{"$f":"Dataset[[#This Row],[2025/26 To - Spending review Topic 1]]+Dataset[[#This Row],[2025/26 To - Spending review Topic 2]]+Dataset[[#This Row],[2025/26 To - Spending review Topic 3]]+Dataset[[#This Row],[2025/26 To - Spending review Topic 4]]+Dataset[[#This Row],[2025/26 To - Other reallocations]]","v":0},{"$f":"Dataset[[#This Row],[2026/27 To - Spending review Topic 1]]+Dataset[[#This Row],[2026/27 To - Spending review Topic 2]]+Dataset[[#This Row],[2026/27 To - Spending review Topic 3]]+Dataset[[#This Row],[2026/27 To - Spending review Topic 4]]+Dataset[[#This Row],[2026/27 To - Other reallocations]]","v":0},{"$f":"Dataset[[#This Row],[2024/25 Reduction]]+Dataset[[#This Row],[2024/25 From - Total]]","v":0},{"$f":"Dataset[[#This Row],[2025/26 Reduction]]+Dataset[[#This Row],[2025/26 From - Total]]","v":0},{"$f":"Dataset[[#This Row],[2026/27 Reduction]]+Dataset[[#This Row],[2026/27 From - Total]]","v":0},{"$f":"Dataset[[#This Row],[2023/24 Reduction]]","v":0},{"$f":"SUM(Dataset[[#This Row],[2024/25 Reduction]],Dataset[[#This Row],[2024/25 From - Total]],Dataset[[#This Row],[2024/25 To - Total]])","v":0},{"$f":"SUM(Dataset[[#This Row],[2025/26 Reduction]],Dataset[[#This Row],[2025/26 From - Total]],Dataset[[#This Row],[2025/26 To - Total]])","v":0},{"$f":"SUM(Dataset[[#This Row],[2026/27 Reduction]],Dataset[[#This Row],[2026/27 From - Total]],Dataset[[#This Row],[2026/27 To - Total]])","v":0},{"$f":"Dataset[[#This Row],[2023/24 Baseline]]+Dataset[[#This Row],[2023/24 Total change]]","v":0},{"$f":"Dataset[[#This Row],[2024/25 Baseline]]+Dataset[[#This Row],[2024/25 Total change]]","v":0},{"$f":"Dataset[[#This Row],[2025/26 Baseline]]+Dataset[[#This Row],[2025/26 Total change]]","v":0},{"$f":"Dataset[[#This Row],[2026/27 Baseline]]+Dataset[[#This Row],[2026/27 Total change]]","v":0}]
["NAT|Non-transfer item","26|Laboratory services","2024_25","MTEF2024",26,1,5,44208,321,"26","01","05","044208","000321","26|01|05","01","01","02","13","13","01|01|02|13|13","National","Military Veterans","Administration","Strategic Planning, Policy Development, and Monitoring and Evaluation","Non-transfer item","Current","Current payments","Goods and services","Laboratory services","Laboratory services","Peace and security","Defence and state security","NAT",0,0,0,0,0,0,0,0,0,0,0,null,null,null,null,null,null,null,null,null,null,null,null,null,null,null,null,null,null,null,null,null,null,null,null,null,null,null,null,null,null,null,null,null,null,{"$f":"Dataset[[#This Row],[2024/25 From - Spending review Topic 1]]+Dataset[[#This Row],[2024/25 From - Spending review Topic 2]]+Dataset[[#This Row],[2024/25 From - Spending review Topic 3]]+Dataset[[#This Row],[2024/25 From - Spending review Topic 4]]+Dataset[[#This Row],[2024/25 From - Other reallocations]]","v":0},{"$f":"Dataset[[#This Row],[2025/26 From - Spending review Topic 1]]+Dataset[[#This Row],[2025/26 From - Spending review Topic 2]]+Dataset[[#This Row],[2025/26 From - Spending review Topic 3]]+Dataset[[#This Row],[2025/26 From - Spending review Topic 4]]+Dataset[[#This Row],[2025/26 From - Other reallocations]]","v":0},{"$f":"Dataset[[#This Row],[2026/27 From - Spending review Topic 1]]+Dataset[[#This Row],[2026/27 From - Spending review Topic 2]]+Dataset[[#This Row],[2026/27 From - Spending review Topic 3]]+Dataset[[#This Row],[2026/27 From - Spending review Topic 4]]+Dataset[[#This Row],[2026/27 From - Other reallocations]]","v":0},{"$f":"Dataset[[#This Row],[2024/25 To - Spending review Topic 1]]+Dataset[[#This Row],[2024/25 To - Spending review Topic 2]]+Dataset[[#This Row],[2024/25 To - Spending review Topic 3]]+Dataset[[#This Row],[2024/25 To - Spending review Topic 4]]+Dataset[[#This Row],[2024/25 To - Other reallocations]]","v":0},{"$f":"Dataset[[#This Row],[2025/26 To - Spending review Topic 1]]+Dataset[[#This Row],[2025/26 To - Spending review Topic 2]]+Dataset[[#This Row],[2025/26 To - Spending review Topic 3]]+Dataset[[#This Row],[2025/26 To - Spending review Topic 4]]+Dataset[[#This Row],[2025/26 To - Other reallocations]]","v":0},{"$f":"Dataset[[#This Row],[2026/27 To - Spending review Topic 1]]+Dataset[[#This Row],[2026/27 To - Spending review Topic 2]]+Dataset[[#This Row],[2026/27 To - Spending review Topic 3]]+Dataset[[#This Row],[2026/27 To - Spending review Topic 4]]+Dataset[[#This Row],[2026/27 To - Other reallocations]]","v":0},{"$f":"Dataset[[#This Row],[2024/25 Reduction]]+Dataset[[#This Row],[2024/25 From - Total]]","v":0},{"$f":"Dataset[[#This Row],[2025/26 Reduction]]+Dataset[[#This Row],[2025/26 From - Total]]","v":0},{"$f":"Dataset[[#This Row],[2026/27 Reduction]]+Dataset[[#This Row],[2026/27 From - Total]]","v":0},{"$f":"Dataset[[#This Row],[2023/24 Reduction]]","v":0},{"$f":"SUM(Dataset[[#This Row],[2024/25 Reduction]],Dataset[[#This Row],[2024/25 From - Total]],Dataset[[#This Row],[2024/25 To - Total]])","v":0},{"$f":"SUM(Dataset[[#This Row],[2025/26 Reduction]],Dataset[[#This Row],[2025/26 From - Total]],Dataset[[#This Row],[2025/26 To - Total]])","v":0},{"$f":"SUM(Dataset[[#This Row],[2026/27 Reduction]],Dataset[[#This Row],[2026/27 From - Total]],Dataset[[#This Row],[2026/27 To - Total]])","v":0},{"$f":"Dataset[[#This Row],[2023/24 Baseline]]+Dataset[[#This Row],[2023/24 Total change]]","v":0},{"$f":"Dataset[[#This Row],[2024/25 Baseline]]+Dataset[[#This Row],[2024/25 Total change]]","v":0},{"$f":"Dataset[[#This Row],[2025/26 Baseline]]+Dataset[[#This Row],[2025/26 Total change]]","v":0},{"$f":"Dataset[[#This Row],[2026/27 Baseline]]+Dataset[[#This Row],[2026/27 Total change]]","v":0}]
["NAT|Non-transfer item","26|Legal services (G&S)","2024_25","MTEF2024",26,1,5,44209,322,"26","01","05","044209","000322","26|01|05","01","01","02","14","14","01|01|02|14|14","National","Military Veterans","Administration","Strategic Planning, Policy Development, and Monitoring and Evaluation","Non-transfer item","Current","Current payments","Goods and services","Legal services (G&S)","Legal services (G&S)","Peace and security","Defence and state security","NAT",0,0,0,0,0,0,0,0,0,0,0,null,null,null,null,null,null,null,null,null,null,null,null,null,null,null,null,null,null,null,null,null,null,null,null,null,null,null,null,null,null,null,null,null,null,{"$f":"Dataset[[#This Row],[2024/25 From - Spending review Topic 1]]+Dataset[[#This Row],[2024/25 From - Spending review Topic 2]]+Dataset[[#This Row],[2024/25 From - Spending review Topic 3]]+Dataset[[#This Row],[2024/25 From - Spending review Topic 4]]+Dataset[[#This Row],[2024/25 From - Other reallocations]]","v":0},{"$f":"Dataset[[#This Row],[2025/26 From - Spending review Topic 1]]+Dataset[[#This Row],[2025/26 From - Spending review Topic 2]]+Dataset[[#This Row],[2025/26 From - Spending review Topic 3]]+Dataset[[#This Row],[2025/26 From - Spending review Topic 4]]+Dataset[[#This Row],[2025/26 From - Other reallocations]]","v":0},{"$f":"Dataset[[#This Row],[2026/27 From - Spending review Topic 1]]+Dataset[[#This Row],[2026/27 From - Spending review Topic 2]]+Dataset[[#This Row],[2026/27 From - Spending review Topic 3]]+Dataset[[#This Row],[2026/27 From - Spending review Topic 4]]+Dataset[[#This Row],[2026/27 From - Other reallocations]]","v":0},{"$f":"Dataset[[#This Row],[2024/25 To - Spending review Topic 1]]+Dataset[[#This Row],[2024/25 To - Spending review Topic 2]]+Dataset[[#This Row],[2024/25 To - Spending review Topic 3]]+Dataset[[#This Row],[2024/25 To - Spending review Topic 4]]+Dataset[[#This Row],[2024/25 To - Other reallocations]]","v":0},{"$f":"Dataset[[#This Row],[2025/26 To - Spending review Topic 1]]+Dataset[[#This Row],[2025/26 To - Spending review Topic 2]]+Dataset[[#This Row],[2025/26 To - Spending review Topic 3]]+Dataset[[#This Row],[2025/26 To - Spending review Topic 4]]+Dataset[[#This Row],[2025/26 To - Other reallocations]]","v":0},{"$f":"Dataset[[#This Row],[2026/27 To - Spending review Topic 1]]+Dataset[[#This Row],[2026/27 To - Spending review Topic 2]]+Dataset[[#This Row],[2026/27 To - Spending review Topic 3]]+Dataset[[#This Row],[2026/27 To - Spending review Topic 4]]+Dataset[[#This Row],[2026/27 To - Other reallocations]]","v":0},{"$f":"Dataset[[#This Row],[2024/25 Reduction]]+Dataset[[#This Row],[2024/25 From - Total]]","v":0},{"$f":"Dataset[[#This Row],[2025/26 Reduction]]+Dataset[[#This Row],[2025/26 From - Total]]","v":0},{"$f":"Dataset[[#This Row],[2026/27 Reduction]]+Dataset[[#This Row],[2026/27 From - Total]]","v":0},{"$f":"Dataset[[#This Row],[2023/24 Reduction]]","v":0},{"$f":"SUM(Dataset[[#This Row],[2024/25 Reduction]],Dataset[[#This Row],[2024/25 From - Total]],Dataset[[#This Row],[2024/25 To - Total]])","v":0},{"$f":"SUM(Dataset[[#This Row],[2025/26 Reduction]],Dataset[[#This Row],[2025/26 From - Total]],Dataset[[#This Row],[2025/26 To - Total]])","v":0},{"$f":"SUM(Dataset[[#This Row],[2026/27 Reduction]],Dataset[[#This Row],[2026/27 From - Total]],Dataset[[#This Row],[2026/27 To - Total]])","v":0},{"$f":"Dataset[[#This Row],[2023/24 Baseline]]+Dataset[[#This Row],[2023/24 Total change]]","v":0},{"$f":"Dataset[[#This Row],[2024/25 Baseline]]+Dataset[[#This Row],[2024/25 Total change]]","v":0},{"$f":"Dataset[[#This Row],[2025/26 Baseline]]+Dataset[[#This Row],[2025/26 Total change]]","v":0},{"$f":"Dataset[[#This Row],[2026/27 Baseline]]+Dataset[[#This Row],[2026/27 Total change]]","v":0}]
["NAT|Non-transfer item","26|Science and technological services","2024_25","MTEF2024",26,1,5,44210,323,"26","01","05","044210","000323","26|01|05","01","01","02","15","15","01|01|02|15|15","National","Military Veterans","Administration","Strategic Planning, Policy Development, and Monitoring and Evaluation","Non-transfer item","Current","Current payments","Goods and services","Science and technological services","Science and technological services","Peace and security","Defence and state security","NAT",0,0,0,0,0,0,0,0,0,0,0,null,null,null,null,null,null,null,null,null,null,null,null,null,null,null,null,null,null,null,null,null,null,null,null,null,null,null,null,null,null,null,null,null,null,{"$f":"Dataset[[#This Row],[2024/25 From - Spending review Topic 1]]+Dataset[[#This Row],[2024/25 From - Spending review Topic 2]]+Dataset[[#This Row],[2024/25 From - Spending review Topic 3]]+Dataset[[#This Row],[2024/25 From - Spending review Topic 4]]+Dataset[[#This Row],[2024/25 From - Other reallocations]]","v":0},{"$f":"Dataset[[#This Row],[2025/26 From - Spending review Topic 1]]+Dataset[[#This Row],[2025/26 From - Spending review Topic 2]]+Dataset[[#This Row],[2025/26 From - Spending review Topic 3]]+Dataset[[#This Row],[2025/26 From - Spending review Topic 4]]+Dataset[[#This Row],[2025/26 From - Other reallocations]]","v":0},{"$f":"Dataset[[#This Row],[2026/27 From - Spending review Topic 1]]+Dataset[[#This Row],[2026/27 From - Spending review Topic 2]]+Dataset[[#This Row],[2026/27 From - Spending review Topic 3]]+Dataset[[#This Row],[2026/27 From - Spending review Topic 4]]+Dataset[[#This Row],[2026/27 From - Other reallocations]]","v":0},{"$f":"Dataset[[#This Row],[2024/25 To - Spending review Topic 1]]+Dataset[[#This Row],[2024/25 To - Spending review Topic 2]]+Dataset[[#This Row],[2024/25 To - Spending review Topic 3]]+Dataset[[#This Row],[2024/25 To - Spending review Topic 4]]+Dataset[[#This Row],[2024/25 To - Other reallocations]]","v":0},{"$f":"Dataset[[#This Row],[2025/26 To - Spending review Topic 1]]+Dataset[[#This Row],[2025/26 To - Spending review Topic 2]]+Dataset[[#This Row],[2025/26 To - Spending review Topic 3]]+Dataset[[#This Row],[2025/26 To - Spending review Topic 4]]+Dataset[[#This Row],[2025/26 To - Other reallocations]]","v":0},{"$f":"Dataset[[#This Row],[2026/27 To - Spending review Topic 1]]+Dataset[[#This Row],[2026/27 To - Spending review Topic 2]]+Dataset[[#This Row],[2026/27 To - Spending review Topic 3]]+Dataset[[#This Row],[2026/27 To - Spending review Topic 4]]+Dataset[[#This Row],[2026/27 To - Other reallocations]]","v":0},{"$f":"Dataset[[#This Row],[2024/25 Reduction]]+Dataset[[#This Row],[2024/25 From - Total]]","v":0},{"$f":"Dataset[[#This Row],[2025/26 Reduction]]+Dataset[[#This Row],[2025/26 From - Total]]","v":0},{"$f":"Dataset[[#This Row],[2026/27 Reduction]]+Dataset[[#This Row],[2026/27 From - Total]]","v":0},{"$f":"Dataset[[#This Row],[2023/24 Reduction]]","v":0},{"$f":"SUM(Dataset[[#This Row],[2024/25 Reduction]],Dataset[[#This Row],[2024/25 From - Total]],Dataset[[#This Row],[2024/25 To - Total]])","v":0},{"$f":"SUM(Dataset[[#This Row],[2025/26 Reduction]],Dataset[[#This Row],[2025/26 From - Total]],Dataset[[#This Row],[2025/26 To - Total]])","v":0},{"$f":"SUM(Dataset[[#This Row],[2026/27 Reduction]],Dataset[[#This Row],[2026/27 From - Total]],Dataset[[#This Row],[2026/27 To - Total]])","v":0},{"$f":"Dataset[[#This Row],[2023/24 Baseline]]+Dataset[[#This Row],[2023/24 Total change]]","v":0},{"$f":"Dataset[[#This Row],[2024/25 Baseline]]+Dataset[[#This Row],[2024/25 Total change]]","v":0},{"$f":"Dataset[[#This Row],[2025/26 Baseline]]+Dataset[[#This Row],[2025/26 Total change]]","v":0},{"$f":"Dataset[[#This Row],[2026/27 Baseline]]+Dataset[[#This Row],[2026/27 Total change]]","v":0}]
["NAT|Non-transfer item","26|Contractors","2024_25","MTEF2024",26,1,5,44211,324,"26","01","05","044211","000324","26|01|05","01","01","02","16","16","01|01|02|16|16","National","Military Veterans","Administration","Strategic Planning, Policy Development, and Monitoring and Evaluation","Non-transfer item","Current","Current payments","Goods and services","Contractors","Contractors","Peace and security","Defence and state security","NAT",0,0,0,579,0,0,0,200,250,300,314,null,null,null,null,null,null,null,null,null,null,null,null,null,null,null,null,null,null,null,null,null,null,null,null,null,null,null,null,null,null,null,null,null,null,{"$f":"Dataset[[#This Row],[2024/25 From - Spending review Topic 1]]+Dataset[[#This Row],[2024/25 From - Spending review Topic 2]]+Dataset[[#This Row],[2024/25 From - Spending review Topic 3]]+Dataset[[#This Row],[2024/25 From - Spending review Topic 4]]+Dataset[[#This Row],[2024/25 From - Other reallocations]]","v":0},{"$f":"Dataset[[#This Row],[2025/26 From - Spending review Topic 1]]+Dataset[[#This Row],[2025/26 From - Spending review Topic 2]]+Dataset[[#This Row],[2025/26 From - Spending review Topic 3]]+Dataset[[#This Row],[2025/26 From - Spending review Topic 4]]+Dataset[[#This Row],[2025/26 From - Other reallocations]]","v":0},{"$f":"Dataset[[#This Row],[2026/27 From - Spending review Topic 1]]+Dataset[[#This Row],[2026/27 From - Spending review Topic 2]]+Dataset[[#This Row],[2026/27 From - Spending review Topic 3]]+Dataset[[#This Row],[2026/27 From - Spending review Topic 4]]+Dataset[[#This Row],[2026/27 From - Other reallocations]]","v":0},{"$f":"Dataset[[#This Row],[2024/25 To - Spending review Topic 1]]+Dataset[[#This Row],[2024/25 To - Spending review Topic 2]]+Dataset[[#This Row],[2024/25 To - Spending review Topic 3]]+Dataset[[#This Row],[2024/25 To - Spending review Topic 4]]+Dataset[[#This Row],[2024/25 To - Other reallocations]]","v":0},{"$f":"Dataset[[#This Row],[2025/26 To - Spending review Topic 1]]+Dataset[[#This Row],[2025/26 To - Spending review Topic 2]]+Dataset[[#This Row],[2025/26 To - Spending review Topic 3]]+Dataset[[#This Row],[2025/26 To - Spending review Topic 4]]+Dataset[[#This Row],[2025/26 To - Other reallocations]]","v":0},{"$f":"Dataset[[#This Row],[2026/27 To - Spending review Topic 1]]+Dataset[[#This Row],[2026/27 To - Spending review Topic 2]]+Dataset[[#This Row],[2026/27 To - Spending review Topic 3]]+Dataset[[#This Row],[2026/27 To - Spending review Topic 4]]+Dataset[[#This Row],[2026/27 To - Other reallocations]]","v":0},{"$f":"Dataset[[#This Row],[2024/25 Reduction]]+Dataset[[#This Row],[2024/25 From - Total]]","v":0},{"$f":"Dataset[[#This Row],[2025/26 Reduction]]+Dataset[[#This Row],[2025/26 From - Total]]","v":0},{"$f":"Dataset[[#This Row],[2026/27 Reduction]]+Dataset[[#This Row],[2026/27 From - Total]]","v":0},{"$f":"Dataset[[#This Row],[2023/24 Reduction]]","v":0},{"$f":"SUM(Dataset[[#This Row],[2024/25 Reduction]],Dataset[[#This Row],[2024/25 From - Total]],Dataset[[#This Row],[2024/25 To - Total]])","v":0},{"$f":"SUM(Dataset[[#This Row],[2025/26 Reduction]],Dataset[[#This Row],[2025/26 From - Total]],Dataset[[#This Row],[2025/26 To - Total]])","v":0},{"$f":"SUM(Dataset[[#This Row],[2026/27 Reduction]],Dataset[[#This Row],[2026/27 From - Total]],Dataset[[#This Row],[2026/27 To - Total]])","v":0},{"$f":"Dataset[[#This Row],[2023/24 Baseline]]+Dataset[[#This Row],[2023/24 Total change]]","v":200},{"$f":"Dataset[[#This Row],[2024/25 Baseline]]+Dataset[[#This Row],[2024/25 Total change]]","v":250},{"$f":"Dataset[[#This Row],[2025/26 Baseline]]+Dataset[[#This Row],[2025/26 Total change]]","v":300},{"$f":"Dataset[[#This Row],[2026/27 Baseline]]+Dataset[[#This Row],[2026/27 Total change]]","v":314}]
["NAT|Non-transfer item","26|Agency and support/outsourced services","2024_25","MTEF2024",26,1,5,44212,325,"26","01","05","044212","000325","26|01|05","01","01","02","17","17","01|01|02|17|17","National","Military Veterans","Administration","Strategic Planning, Policy Development, and Monitoring and Evaluation","Non-transfer item","Current","Current payments","Goods and services","Agency and support/outsourced services","Agency and support/outsourced services","Peace and security","Defence and state security","NAT",0,0,0,0,0,0,0,0,0,0,0,null,null,null,null,null,null,null,null,null,null,null,null,null,null,null,null,null,null,null,null,null,null,null,null,null,null,null,null,null,null,null,null,null,null,{"$f":"Dataset[[#This Row],[2024/25 From - Spending review Topic 1]]+Dataset[[#This Row],[2024/25 From - Spending review Topic 2]]+Dataset[[#This Row],[2024/25 From - Spending review Topic 3]]+Dataset[[#This Row],[2024/25 From - Spending review Topic 4]]+Dataset[[#This Row],[2024/25 From - Other reallocations]]","v":0},{"$f":"Dataset[[#This Row],[2025/26 From - Spending review Topic 1]]+Dataset[[#This Row],[2025/26 From - Spending review Topic 2]]+Dataset[[#This Row],[2025/26 From - Spending review Topic 3]]+Dataset[[#This Row],[2025/26 From - Spending review Topic 4]]+Dataset[[#This Row],[2025/26 From - Other reallocations]]","v":0},{"$f":"Dataset[[#This Row],[2026/27 From - Spending review Topic 1]]+Dataset[[#This Row],[2026/27 From - Spending review Topic 2]]+Dataset[[#This Row],[2026/27 From - Spending review Topic 3]]+Dataset[[#This Row],[2026/27 From - Spending review Topic 4]]+Dataset[[#This Row],[2026/27 From - Other reallocations]]","v":0},{"$f":"Dataset[[#This Row],[2024/25 To - Spending review Topic 1]]+Dataset[[#This Row],[2024/25 To - Spending review Topic 2]]+Dataset[[#This Row],[2024/25 To - Spending review Topic 3]]+Dataset[[#This Row],[2024/25 To - Spending review Topic 4]]+Dataset[[#This Row],[2024/25 To - Other reallocations]]","v":0},{"$f":"Dataset[[#This Row],[2025/26 To - Spending review Topic 1]]+Dataset[[#This Row],[2025/26 To - Spending review Topic 2]]+Dataset[[#This Row],[2025/26 To - Spending review Topic 3]]+Dataset[[#This Row],[2025/26 To - Spending review Topic 4]]+Dataset[[#This Row],[2025/26 To - Other reallocations]]","v":0},{"$f":"Dataset[[#This Row],[2026/27 To - Spending review Topic 1]]+Dataset[[#This Row],[2026/27 To - Spending review Topic 2]]+Dataset[[#This Row],[2026/27 To - Spending review Topic 3]]+Dataset[[#This Row],[2026/27 To - Spending review Topic 4]]+Dataset[[#This Row],[2026/27 To - Other reallocations]]","v":0},{"$f":"Dataset[[#This Row],[2024/25 Reduction]]+Dataset[[#This Row],[2024/25 From - Total]]","v":0},{"$f":"Dataset[[#This Row],[2025/26 Reduction]]+Dataset[[#This Row],[2025/26 From - Total]]","v":0},{"$f":"Dataset[[#This Row],[2026/27 Reduction]]+Dataset[[#This Row],[2026/27 From - Total]]","v":0},{"$f":"Dataset[[#This Row],[2023/24 Reduction]]","v":0},{"$f":"SUM(Dataset[[#This Row],[2024/25 Reduction]],Dataset[[#This Row],[2024/25 From - Total]],Dataset[[#This Row],[2024/25 To - Total]])","v":0},{"$f":"SUM(Dataset[[#This Row],[2025/26 Reduction]],Dataset[[#This Row],[2025/26 From - Total]],Dataset[[#This Row],[2025/26 To - Total]])","v":0},{"$f":"SUM(Dataset[[#This Row],[2026/27 Reduction]],Dataset[[#This Row],[2026/27 From - Total]],Dataset[[#This Row],[2026/27 To - Total]])","v":0},{"$f":"Dataset[[#This Row],[2023/24 Baseline]]+Dataset[[#This Row],[2023/24 Total change]]","v":0},{"$f":"Dataset[[#This Row],[2024/25 Baseline]]+Dataset[[#This Row],[2024/25 Total change]]","v":0},{"$f":"Dataset[[#This Row],[2025/26 Baseline]]+Dataset[[#This Row],[2025/26 Total change]]","v":0},{"$f":"Dataset[[#This Row],[2026/27 Baseline]]+Dataset[[#This Row],[2026/27 Total change]]","v":0}]
["NAT|Non-transfer item","26|Entertainment","2024_25","MTEF2024",26,1,5,44213,326,"26","01","05","044213","000326","26|01|05","01","01","02","18","18","01|01|02|18|18","National","Military Veterans","Administration","Strategic Planning, Policy Development, and Monitoring and Evaluation","Non-transfer item","Current","Current payments","Goods and services","Entertainment","Entertainment","Peace and security","Defence and state security","NAT",0,0,0,-549,0,0,0,0,0,0,0,null,null,null,null,null,null,null,null,null,null,null,null,null,null,null,null,null,null,null,null,null,null,null,null,null,null,null,null,null,null,null,null,null,null,{"$f":"Dataset[[#This Row],[2024/25 From - Spending review Topic 1]]+Dataset[[#This Row],[2024/25 From - Spending review Topic 2]]+Dataset[[#This Row],[2024/25 From - Spending review Topic 3]]+Dataset[[#This Row],[2024/25 From - Spending review Topic 4]]+Dataset[[#This Row],[2024/25 From - Other reallocations]]","v":0},{"$f":"Dataset[[#This Row],[2025/26 From - Spending review Topic 1]]+Dataset[[#This Row],[2025/26 From - Spending review Topic 2]]+Dataset[[#This Row],[2025/26 From - Spending review Topic 3]]+Dataset[[#This Row],[2025/26 From - Spending review Topic 4]]+Dataset[[#This Row],[2025/26 From - Other reallocations]]","v":0},{"$f":"Dataset[[#This Row],[2026/27 From - Spending review Topic 1]]+Dataset[[#This Row],[2026/27 From - Spending review Topic 2]]+Dataset[[#This Row],[2026/27 From - Spending review Topic 3]]+Dataset[[#This Row],[2026/27 From - Spending review Topic 4]]+Dataset[[#This Row],[2026/27 From - Other reallocations]]","v":0},{"$f":"Dataset[[#This Row],[2024/25 To - Spending review Topic 1]]+Dataset[[#This Row],[2024/25 To - Spending review Topic 2]]+Dataset[[#This Row],[2024/25 To - Spending review Topic 3]]+Dataset[[#This Row],[2024/25 To - Spending review Topic 4]]+Dataset[[#This Row],[2024/25 To - Other reallocations]]","v":0},{"$f":"Dataset[[#This Row],[2025/26 To - Spending review Topic 1]]+Dataset[[#This Row],[2025/26 To - Spending review Topic 2]]+Dataset[[#This Row],[2025/26 To - Spending review Topic 3]]+Dataset[[#This Row],[2025/26 To - Spending review Topic 4]]+Dataset[[#This Row],[2025/26 To - Other reallocations]]","v":0},{"$f":"Dataset[[#This Row],[2026/27 To - Spending review Topic 1]]+Dataset[[#This Row],[2026/27 To - Spending review Topic 2]]+Dataset[[#This Row],[2026/27 To - Spending review Topic 3]]+Dataset[[#This Row],[2026/27 To - Spending review Topic 4]]+Dataset[[#This Row],[2026/27 To - Other reallocations]]","v":0},{"$f":"Dataset[[#This Row],[2024/25 Reduction]]+Dataset[[#This Row],[2024/25 From - Total]]","v":0},{"$f":"Dataset[[#This Row],[2025/26 Reduction]]+Dataset[[#This Row],[2025/26 From - Total]]","v":0},{"$f":"Dataset[[#This Row],[2026/27 Reduction]]+Dataset[[#This Row],[2026/27 From - Total]]","v":0},{"$f":"Dataset[[#This Row],[2023/24 Reduction]]","v":0},{"$f":"SUM(Dataset[[#This Row],[2024/25 Reduction]],Dataset[[#This Row],[2024/25 From - Total]],Dataset[[#This Row],[2024/25 To - Total]])","v":0},{"$f":"SUM(Dataset[[#This Row],[2025/26 Reduction]],Dataset[[#This Row],[2025/26 From - Total]],Dataset[[#This Row],[2025/26 To - Total]])","v":0},{"$f":"SUM(Dataset[[#This Row],[2026/27 Reduction]],Dataset[[#This Row],[2026/27 From - Total]],Dataset[[#This Row],[2026/27 To - Total]])","v":0},{"$f":"Dataset[[#This Row],[2023/24 Baseline]]+Dataset[[#This Row],[2023/24 Total change]]","v":0},{"$f":"Dataset[[#This Row],[2024/25 Baseline]]+Dataset[[#This Row],[2024/25 Total change]]","v":0},{"$f":"Dataset[[#This Row],[2025/26 Baseline]]+Dataset[[#This Row],[2025/26 Total change]]","v":0},{"$f":"Dataset[[#This Row],[2026/27 Baseline]]+Dataset[[#This Row],[2026/27 Total change]]","v":0}]
["NAT|Non-transfer item","26|Fleet services (including government motor transport)","2024_25","MTEF2024",26,1,5,44214,327,"26","01","05","044214","000327","26|01|05","01","01","02","19","19","01|01|02|19|19","National","Military Veterans","Administration","Strategic Planning, Policy Development, and Monitoring and Evaluation","Non-transfer item","Current","Current payments","Goods and services","Fleet services (including government motor transport)","Fleet services (including government motor transport)","Peace and security","Defence and state security","NAT",0,0,0,0,0,0,0,0,0,0,0,null,null,null,null,null,null,null,null,null,null,null,null,null,null,null,null,null,null,null,null,null,null,null,null,null,null,null,null,null,null,null,null,null,null,{"$f":"Dataset[[#This Row],[2024/25 From - Spending review Topic 1]]+Dataset[[#This Row],[2024/25 From - Spending review Topic 2]]+Dataset[[#This Row],[2024/25 From - Spending review Topic 3]]+Dataset[[#This Row],[2024/25 From - Spending review Topic 4]]+Dataset[[#This Row],[2024/25 From - Other reallocations]]","v":0},{"$f":"Dataset[[#This Row],[2025/26 From - Spending review Topic 1]]+Dataset[[#This Row],[2025/26 From - Spending review Topic 2]]+Dataset[[#This Row],[2025/26 From - Spending review Topic 3]]+Dataset[[#This Row],[2025/26 From - Spending review Topic 4]]+Dataset[[#This Row],[2025/26 From - Other reallocations]]","v":0},{"$f":"Dataset[[#This Row],[2026/27 From - Spending review Topic 1]]+Dataset[[#This Row],[2026/27 From - Spending review Topic 2]]+Dataset[[#This Row],[2026/27 From - Spending review Topic 3]]+Dataset[[#This Row],[2026/27 From - Spending review Topic 4]]+Dataset[[#This Row],[2026/27 From - Other reallocations]]","v":0},{"$f":"Dataset[[#This Row],[2024/25 To - Spending review Topic 1]]+Dataset[[#This Row],[2024/25 To - Spending review Topic 2]]+Dataset[[#This Row],[2024/25 To - Spending review Topic 3]]+Dataset[[#This Row],[2024/25 To - Spending review Topic 4]]+Dataset[[#This Row],[2024/25 To - Other reallocations]]","v":0},{"$f":"Dataset[[#This Row],[2025/26 To - Spending review Topic 1]]+Dataset[[#This Row],[2025/26 To - Spending review Topic 2]]+Dataset[[#This Row],[2025/26 To - Spending review Topic 3]]+Dataset[[#This Row],[2025/26 To - Spending review Topic 4]]+Dataset[[#This Row],[2025/26 To - Other reallocations]]","v":0},{"$f":"Dataset[[#This Row],[2026/27 To - Spending review Topic 1]]+Dataset[[#This Row],[2026/27 To - Spending review Topic 2]]+Dataset[[#This Row],[2026/27 To - Spending review Topic 3]]+Dataset[[#This Row],[2026/27 To - Spending review Topic 4]]+Dataset[[#This Row],[2026/27 To - Other reallocations]]","v":0},{"$f":"Dataset[[#This Row],[2024/25 Reduction]]+Dataset[[#This Row],[2024/25 From - Total]]","v":0},{"$f":"Dataset[[#This Row],[2025/26 Reduction]]+Dataset[[#This Row],[2025/26 From - Total]]","v":0},{"$f":"Dataset[[#This Row],[2026/27 Reduction]]+Dataset[[#This Row],[2026/27 From - Total]]","v":0},{"$f":"Dataset[[#This Row],[2023/24 Reduction]]","v":0},{"$f":"SUM(Dataset[[#This Row],[2024/25 Reduction]],Dataset[[#This Row],[2024/25 From - Total]],Dataset[[#This Row],[2024/25 To - Total]])","v":0},{"$f":"SUM(Dataset[[#This Row],[2025/26 Reduction]],Dataset[[#This Row],[2025/26 From - Total]],Dataset[[#This Row],[2025/26 To - Total]])","v":0},{"$f":"SUM(Dataset[[#This Row],[2026/27 Reduction]],Dataset[[#This Row],[2026/27 From - Total]],Dataset[[#This Row],[2026/27 To - Total]])","v":0},{"$f":"Dataset[[#This Row],[2023/24 Baseline]]+Dataset[[#This Row],[2023/24 Total change]]","v":0},{"$f":"Dataset[[#This Row],[2024/25 Baseline]]+Dataset[[#This Row],[2024/25 Total change]]","v":0},{"$f":"Dataset[[#This Row],[2025/26 Baseline]]+Dataset[[#This Row],[2025/26 Total change]]","v":0},{"$f":"Dataset[[#This Row],[2026/27 Baseline]]+Dataset[[#This Row],[2026/27 Total change]]","v":0}]
["NAT|Non-transfer item","26|Housing","2024_25","MTEF2024",26,1,5,44215,328,"26","01","05","044215","000328","26|01|05","01","01","02","20","20","01|01|02|20|20","National","Military Veterans","Administration","Strategic Planning, Policy Development, and Monitoring and Evaluation","Non-transfer item","Current","Current payments","Goods and services","Housing","Housing","Peace and security","Defence and state security","NAT",0,0,0,0,0,0,0,0,0,0,0,null,null,null,null,null,null,null,null,null,null,null,null,null,null,null,null,null,null,null,null,null,null,null,null,null,null,null,null,null,null,null,null,null,null,{"$f":"Dataset[[#This Row],[2024/25 From - Spending review Topic 1]]+Dataset[[#This Row],[2024/25 From - Spending review Topic 2]]+Dataset[[#This Row],[2024/25 From - Spending review Topic 3]]+Dataset[[#This Row],[2024/25 From - Spending review Topic 4]]+Dataset[[#This Row],[2024/25 From - Other reallocations]]","v":0},{"$f":"Dataset[[#This Row],[2025/26 From - Spending review Topic 1]]+Dataset[[#This Row],[2025/26 From - Spending review Topic 2]]+Dataset[[#This Row],[2025/26 From - Spending review Topic 3]]+Dataset[[#This Row],[2025/26 From - Spending review Topic 4]]+Dataset[[#This Row],[2025/26 From - Other reallocations]]","v":0},{"$f":"Dataset[[#This Row],[2026/27 From - Spending review Topic 1]]+Dataset[[#This Row],[2026/27 From - Spending review Topic 2]]+Dataset[[#This Row],[2026/27 From - Spending review Topic 3]]+Dataset[[#This Row],[2026/27 From - Spending review Topic 4]]+Dataset[[#This Row],[2026/27 From - Other reallocations]]","v":0},{"$f":"Dataset[[#This Row],[2024/25 To - Spending review Topic 1]]+Dataset[[#This Row],[2024/25 To - Spending review Topic 2]]+Dataset[[#This Row],[2024/25 To - Spending review Topic 3]]+Dataset[[#This Row],[2024/25 To - Spending review Topic 4]]+Dataset[[#This Row],[2024/25 To - Other reallocations]]","v":0},{"$f":"Dataset[[#This Row],[2025/26 To - Spending review Topic 1]]+Dataset[[#This Row],[2025/26 To - Spending review Topic 2]]+Dataset[[#This Row],[2025/26 To - Spending review Topic 3]]+Dataset[[#This Row],[2025/26 To - Spending review Topic 4]]+Dataset[[#This Row],[2025/26 To - Other reallocations]]","v":0},{"$f":"Dataset[[#This Row],[2026/27 To - Spending review Topic 1]]+Dataset[[#This Row],[2026/27 To - Spending review Topic 2]]+Dataset[[#This Row],[2026/27 To - Spending review Topic 3]]+Dataset[[#This Row],[2026/27 To - Spending review Topic 4]]+Dataset[[#This Row],[2026/27 To - Other reallocations]]","v":0},{"$f":"Dataset[[#This Row],[2024/25 Reduction]]+Dataset[[#This Row],[2024/25 From - Total]]","v":0},{"$f":"Dataset[[#This Row],[2025/26 Reduction]]+Dataset[[#This Row],[2025/26 From - Total]]","v":0},{"$f":"Dataset[[#This Row],[2026/27 Reduction]]+Dataset[[#This Row],[2026/27 From - Total]]","v":0},{"$f":"Dataset[[#This Row],[2023/24 Reduction]]","v":0},{"$f":"SUM(Dataset[[#This Row],[2024/25 Reduction]],Dataset[[#This Row],[2024/25 From - Total]],Dataset[[#This Row],[2024/25 To - Total]])","v":0},{"$f":"SUM(Dataset[[#This Row],[2025/26 Reduction]],Dataset[[#This Row],[2025/26 From - Total]],Dataset[[#This Row],[2025/26 To - Total]])","v":0},{"$f":"SUM(Dataset[[#This Row],[2026/27 Reduction]],Dataset[[#This Row],[2026/27 From - Total]],Dataset[[#This Row],[2026/27 To - Total]])","v":0},{"$f":"Dataset[[#This Row],[2023/24 Baseline]]+Dataset[[#This Row],[2023/24 Total change]]","v":0},{"$f":"Dataset[[#This Row],[2024/25 Baseline]]+Dataset[[#This Row],[2024/25 Total change]]","v":0},{"$f":"Dataset[[#This Row],[2025/26 Baseline]]+Dataset[[#This Row],[2025/26 Total change]]","v":0},{"$f":"Dataset[[#This Row],[2026/27 Baseline]]+Dataset[[#This Row],[2026/27 Total change]]","v":0}]
["NAT|Non-transfer item","26|Inventory: Clothing material and accessories","2024_25","MTEF2024",26,1,5,44216,329,"26","01","05","044216","000329","26|01|05","01","01","02","21","21","01|01|02|21|21","National","Military Veterans","Administration","Strategic Planning, Policy Development, and Monitoring and Evaluation","Non-transfer item","Current","Current payments","Goods and services","Inventory: Clothing material and accessories","Inventory: Clothing material and accessories","Peace and security","Defence and state security","NAT",0,0,0,0,0,0,0,0,0,0,0,null,null,null,null,null,null,null,null,null,null,null,null,null,null,null,null,null,null,null,null,null,null,null,null,null,null,null,null,null,null,null,null,null,null,{"$f":"Dataset[[#This Row],[2024/25 From - Spending review Topic 1]]+Dataset[[#This Row],[2024/25 From - Spending review Topic 2]]+Dataset[[#This Row],[2024/25 From - Spending review Topic 3]]+Dataset[[#This Row],[2024/25 From - Spending review Topic 4]]+Dataset[[#This Row],[2024/25 From - Other reallocations]]","v":0},{"$f":"Dataset[[#This Row],[2025/26 From - Spending review Topic 1]]+Dataset[[#This Row],[2025/26 From - Spending review Topic 2]]+Dataset[[#This Row],[2025/26 From - Spending review Topic 3]]+Dataset[[#This Row],[2025/26 From - Spending review Topic 4]]+Dataset[[#This Row],[2025/26 From - Other reallocations]]","v":0},{"$f":"Dataset[[#This Row],[2026/27 From - Spending review Topic 1]]+Dataset[[#This Row],[2026/27 From - Spending review Topic 2]]+Dataset[[#This Row],[2026/27 From - Spending review Topic 3]]+Dataset[[#This Row],[2026/27 From - Spending review Topic 4]]+Dataset[[#This Row],[2026/27 From - Other reallocations]]","v":0},{"$f":"Dataset[[#This Row],[2024/25 To - Spending review Topic 1]]+Dataset[[#This Row],[2024/25 To - Spending review Topic 2]]+Dataset[[#This Row],[2024/25 To - Spending review Topic 3]]+Dataset[[#This Row],[2024/25 To - Spending review Topic 4]]+Dataset[[#This Row],[2024/25 To - Other reallocations]]","v":0},{"$f":"Dataset[[#This Row],[2025/26 To - Spending review Topic 1]]+Dataset[[#This Row],[2025/26 To - Spending review Topic 2]]+Dataset[[#This Row],[2025/26 To - Spending review Topic 3]]+Dataset[[#This Row],[2025/26 To - Spending review Topic 4]]+Dataset[[#This Row],[2025/26 To - Other reallocations]]","v":0},{"$f":"Dataset[[#This Row],[2026/27 To - Spending review Topic 1]]+Dataset[[#This Row],[2026/27 To - Spending review Topic 2]]+Dataset[[#This Row],[2026/27 To - Spending review Topic 3]]+Dataset[[#This Row],[2026/27 To - Spending review Topic 4]]+Dataset[[#This Row],[2026/27 To - Other reallocations]]","v":0},{"$f":"Dataset[[#This Row],[2024/25 Reduction]]+Dataset[[#This Row],[2024/25 From - Total]]","v":0},{"$f":"Dataset[[#This Row],[2025/26 Reduction]]+Dataset[[#This Row],[2025/26 From - Total]]","v":0},{"$f":"Dataset[[#This Row],[2026/27 Reduction]]+Dataset[[#This Row],[2026/27 From - Total]]","v":0},{"$f":"Dataset[[#This Row],[2023/24 Reduction]]","v":0},{"$f":"SUM(Dataset[[#This Row],[2024/25 Reduction]],Dataset[[#This Row],[2024/25 From - Total]],Dataset[[#This Row],[2024/25 To - Total]])","v":0},{"$f":"SUM(Dataset[[#This Row],[2025/26 Reduction]],Dataset[[#This Row],[2025/26 From - Total]],Dataset[[#This Row],[2025/26 To - Total]])","v":0},{"$f":"SUM(Dataset[[#This Row],[2026/27 Reduction]],Dataset[[#This Row],[2026/27 From - Total]],Dataset[[#This Row],[2026/27 To - Total]])","v":0},{"$f":"Dataset[[#This Row],[2023/24 Baseline]]+Dataset[[#This Row],[2023/24 Total change]]","v":0},{"$f":"Dataset[[#This Row],[2024/25 Baseline]]+Dataset[[#This Row],[2024/25 Total change]]","v":0},{"$f":"Dataset[[#This Row],[2025/26 Baseline]]+Dataset[[#This Row],[2025/26 Total change]]","v":0},{"$f":"Dataset[[#This Row],[2026/27 Baseline]]+Dataset[[#This Row],[2026/27 Total change]]","v":0}]
["NAT|Non-transfer item","26|Inventory: Farming supplies","2024_25","MTEF2024",26,1,5,44217,330,"26","01","05","044217","000330","26|01|05","01","01","02","22","22","01|01|02|22|22","National","Military Veterans","Administration","Strategic Planning, Policy Development, and Monitoring and Evaluation","Non-transfer item","Current","Current payments","Goods and services","Inventory: Farming supplies","Inventory: Farming supplies","Peace and security","Defence and state security","NAT",0,0,0,0,0,0,0,0,0,0,0,null,null,null,null,null,null,null,null,null,null,null,null,null,null,null,null,null,null,null,null,null,null,null,null,null,null,null,null,null,null,null,null,null,null,{"$f":"Dataset[[#This Row],[2024/25 From - Spending review Topic 1]]+Dataset[[#This Row],[2024/25 From - Spending review Topic 2]]+Dataset[[#This Row],[2024/25 From - Spending review Topic 3]]+Dataset[[#This Row],[2024/25 From - Spending review Topic 4]]+Dataset[[#This Row],[2024/25 From - Other reallocations]]","v":0},{"$f":"Dataset[[#This Row],[2025/26 From - Spending review Topic 1]]+Dataset[[#This Row],[2025/26 From - Spending review Topic 2]]+Dataset[[#This Row],[2025/26 From - Spending review Topic 3]]+Dataset[[#This Row],[2025/26 From - Spending review Topic 4]]+Dataset[[#This Row],[2025/26 From - Other reallocations]]","v":0},{"$f":"Dataset[[#This Row],[2026/27 From - Spending review Topic 1]]+Dataset[[#This Row],[2026/27 From - Spending review Topic 2]]+Dataset[[#This Row],[2026/27 From - Spending review Topic 3]]+Dataset[[#This Row],[2026/27 From - Spending review Topic 4]]+Dataset[[#This Row],[2026/27 From - Other reallocations]]","v":0},{"$f":"Dataset[[#This Row],[2024/25 To - Spending review Topic 1]]+Dataset[[#This Row],[2024/25 To - Spending review Topic 2]]+Dataset[[#This Row],[2024/25 To - Spending review Topic 3]]+Dataset[[#This Row],[2024/25 To - Spending review Topic 4]]+Dataset[[#This Row],[2024/25 To - Other reallocations]]","v":0},{"$f":"Dataset[[#This Row],[2025/26 To - Spending review Topic 1]]+Dataset[[#This Row],[2025/26 To - Spending review Topic 2]]+Dataset[[#This Row],[2025/26 To - Spending review Topic 3]]+Dataset[[#This Row],[2025/26 To - Spending review Topic 4]]+Dataset[[#This Row],[2025/26 To - Other reallocations]]","v":0},{"$f":"Dataset[[#This Row],[2026/27 To - Spending review Topic 1]]+Dataset[[#This Row],[2026/27 To - Spending review Topic 2]]+Dataset[[#This Row],[2026/27 To - Spending review Topic 3]]+Dataset[[#This Row],[2026/27 To - Spending review Topic 4]]+Dataset[[#This Row],[2026/27 To - Other reallocations]]","v":0},{"$f":"Dataset[[#This Row],[2024/25 Reduction]]+Dataset[[#This Row],[2024/25 From - Total]]","v":0},{"$f":"Dataset[[#This Row],[2025/26 Reduction]]+Dataset[[#This Row],[2025/26 From - Total]]","v":0},{"$f":"Dataset[[#This Row],[2026/27 Reduction]]+Dataset[[#This Row],[2026/27 From - Total]]","v":0},{"$f":"Dataset[[#This Row],[2023/24 Reduction]]","v":0},{"$f":"SUM(Dataset[[#This Row],[2024/25 Reduction]],Dataset[[#This Row],[2024/25 From - Total]],Dataset[[#This Row],[2024/25 To - Total]])","v":0},{"$f":"SUM(Dataset[[#This Row],[2025/26 Reduction]],Dataset[[#This Row],[2025/26 From - Total]],Dataset[[#This Row],[2025/26 To - Total]])","v":0},{"$f":"SUM(Dataset[[#This Row],[2026/27 Reduction]],Dataset[[#This Row],[2026/27 From - Total]],Dataset[[#This Row],[2026/27 To - Total]])","v":0},{"$f":"Dataset[[#This Row],[2023/24 Baseline]]+Dataset[[#This Row],[2023/24 Total change]]","v":0},{"$f":"Dataset[[#This Row],[2024/25 Baseline]]+Dataset[[#This Row],[2024/25 Total change]]","v":0},{"$f":"Dataset[[#This Row],[2025/26 Baseline]]+Dataset[[#This Row],[2025/26 Total change]]","v":0},{"$f":"Dataset[[#This Row],[2026/27 Baseline]]+Dataset[[#This Row],[2026/27 Total change]]","v":0}]
["NAT|Non-transfer item","26|Inventory: Food and food supplies","2024_25","MTEF2024",26,1,5,44218,331,"26","01","05","044218","000331","26|01|05","01","01","02","23","23","01|01|02|23|23","National","Military Veterans","Administration","Strategic Planning, Policy Development, and Monitoring and Evaluation","Non-transfer item","Current","Current payments","Goods and services","Inventory: Food and food supplies","Inventory: Food and food supplies","Peace and security","Defence and state security","NAT",0,0,0,0,0,0,0,0,0,0,0,null,null,null,null,null,null,null,null,null,null,null,null,null,null,null,null,null,null,null,null,null,null,null,null,null,null,null,null,null,null,null,null,null,null,{"$f":"Dataset[[#This Row],[2024/25 From - Spending review Topic 1]]+Dataset[[#This Row],[2024/25 From - Spending review Topic 2]]+Dataset[[#This Row],[2024/25 From - Spending review Topic 3]]+Dataset[[#This Row],[2024/25 From - Spending review Topic 4]]+Dataset[[#This Row],[2024/25 From - Other reallocations]]","v":0},{"$f":"Dataset[[#This Row],[2025/26 From - Spending review Topic 1]]+Dataset[[#This Row],[2025/26 From - Spending review Topic 2]]+Dataset[[#This Row],[2025/26 From - Spending review Topic 3]]+Dataset[[#This Row],[2025/26 From - Spending review Topic 4]]+Dataset[[#This Row],[2025/26 From - Other reallocations]]","v":0},{"$f":"Dataset[[#This Row],[2026/27 From - Spending review Topic 1]]+Dataset[[#This Row],[2026/27 From - Spending review Topic 2]]+Dataset[[#This Row],[2026/27 From - Spending review Topic 3]]+Dataset[[#This Row],[2026/27 From - Spending review Topic 4]]+Dataset[[#This Row],[2026/27 From - Other reallocations]]","v":0},{"$f":"Dataset[[#This Row],[2024/25 To - Spending review Topic 1]]+Dataset[[#This Row],[2024/25 To - Spending review Topic 2]]+Dataset[[#This Row],[2024/25 To - Spending review Topic 3]]+Dataset[[#This Row],[2024/25 To - Spending review Topic 4]]+Dataset[[#This Row],[2024/25 To - Other reallocations]]","v":0},{"$f":"Dataset[[#This Row],[2025/26 To - Spending review Topic 1]]+Dataset[[#This Row],[2025/26 To - Spending review Topic 2]]+Dataset[[#This Row],[2025/26 To - Spending review Topic 3]]+Dataset[[#This Row],[2025/26 To - Spending review Topic 4]]+Dataset[[#This Row],[2025/26 To - Other reallocations]]","v":0},{"$f":"Dataset[[#This Row],[2026/27 To - Spending review Topic 1]]+Dataset[[#This Row],[2026/27 To - Spending review Topic 2]]+Dataset[[#This Row],[2026/27 To - Spending review Topic 3]]+Dataset[[#This Row],[2026/27 To - Spending review Topic 4]]+Dataset[[#This Row],[2026/27 To - Other reallocations]]","v":0},{"$f":"Dataset[[#This Row],[2024/25 Reduction]]+Dataset[[#This Row],[2024/25 From - Total]]","v":0},{"$f":"Dataset[[#This Row],[2025/26 Reduction]]+Dataset[[#This Row],[2025/26 From - Total]]","v":0},{"$f":"Dataset[[#This Row],[2026/27 Reduction]]+Dataset[[#This Row],[2026/27 From - Total]]","v":0},{"$f":"Dataset[[#This Row],[2023/24 Reduction]]","v":0},{"$f":"SUM(Dataset[[#This Row],[2024/25 Reduction]],Dataset[[#This Row],[2024/25 From - Total]],Dataset[[#This Row],[2024/25 To - Total]])","v":0},{"$f":"SUM(Dataset[[#This Row],[2025/26 Reduction]],Dataset[[#This Row],[2025/26 From - Total]],Dataset[[#This Row],[2025/26 To - Total]])","v":0},{"$f":"SUM(Dataset[[#This Row],[2026/27 Reduction]],Dataset[[#This Row],[2026/27 From - Total]],Dataset[[#This Row],[2026/27 To - Total]])","v":0},{"$f":"Dataset[[#This Row],[2023/24 Baseline]]+Dataset[[#This Row],[2023/24 Total change]]","v":0},{"$f":"Dataset[[#This Row],[2024/25 Baseline]]+Dataset[[#This Row],[2024/25 Total change]]","v":0},{"$f":"Dataset[[#This Row],[2025/26 Baseline]]+Dataset[[#This Row],[2025/26 Total change]]","v":0},{"$f":"Dataset[[#This Row],[2026/27 Baseline]]+Dataset[[#This Row],[2026/27 Total change]]","v":0}]
["NAT|Non-transfer item","26|Inventory: Fuel, oil and gas","2024_25","MTEF2024",26,1,5,44219,332,"26","01","05","044219","000332","26|01|05","01","01","02","24","24","01|01|02|24|24","National","Military Veterans","Administration","Strategic Planning, Policy Development, and Monitoring and Evaluation","Non-transfer item","Current","Current payments","Goods and services","Inventory: Fuel, oil and gas","Inventory: Fuel, oil and gas","Peace and security","Defence and state security","NAT",0,0,0,0,0,0,0,0,0,0,0,null,null,null,null,null,null,null,null,null,null,null,null,null,null,null,null,null,null,null,null,null,null,null,null,null,null,null,null,null,null,null,null,null,null,{"$f":"Dataset[[#This Row],[2024/25 From - Spending review Topic 1]]+Dataset[[#This Row],[2024/25 From - Spending review Topic 2]]+Dataset[[#This Row],[2024/25 From - Spending review Topic 3]]+Dataset[[#This Row],[2024/25 From - Spending review Topic 4]]+Dataset[[#This Row],[2024/25 From - Other reallocations]]","v":0},{"$f":"Dataset[[#This Row],[2025/26 From - Spending review Topic 1]]+Dataset[[#This Row],[2025/26 From - Spending review Topic 2]]+Dataset[[#This Row],[2025/26 From - Spending review Topic 3]]+Dataset[[#This Row],[2025/26 From - Spending review Topic 4]]+Dataset[[#This Row],[2025/26 From - Other reallocations]]","v":0},{"$f":"Dataset[[#This Row],[2026/27 From - Spending review Topic 1]]+Dataset[[#This Row],[2026/27 From - Spending review Topic 2]]+Dataset[[#This Row],[2026/27 From - Spending review Topic 3]]+Dataset[[#This Row],[2026/27 From - Spending review Topic 4]]+Dataset[[#This Row],[2026/27 From - Other reallocations]]","v":0},{"$f":"Dataset[[#This Row],[2024/25 To - Spending review Topic 1]]+Dataset[[#This Row],[2024/25 To - Spending review Topic 2]]+Dataset[[#This Row],[2024/25 To - Spending review Topic 3]]+Dataset[[#This Row],[2024/25 To - Spending review Topic 4]]+Dataset[[#This Row],[2024/25 To - Other reallocations]]","v":0},{"$f":"Dataset[[#This Row],[2025/26 To - Spending review Topic 1]]+Dataset[[#This Row],[2025/26 To - Spending review Topic 2]]+Dataset[[#This Row],[2025/26 To - Spending review Topic 3]]+Dataset[[#This Row],[2025/26 To - Spending review Topic 4]]+Dataset[[#This Row],[2025/26 To - Other reallocations]]","v":0},{"$f":"Dataset[[#This Row],[2026/27 To - Spending review Topic 1]]+Dataset[[#This Row],[2026/27 To - Spending review Topic 2]]+Dataset[[#This Row],[2026/27 To - Spending review Topic 3]]+Dataset[[#This Row],[2026/27 To - Spending review Topic 4]]+Dataset[[#This Row],[2026/27 To - Other reallocations]]","v":0},{"$f":"Dataset[[#This Row],[2024/25 Reduction]]+Dataset[[#This Row],[2024/25 From - Total]]","v":0},{"$f":"Dataset[[#This Row],[2025/26 Reduction]]+Dataset[[#This Row],[2025/26 From - Total]]","v":0},{"$f":"Dataset[[#This Row],[2026/27 Reduction]]+Dataset[[#This Row],[2026/27 From - Total]]","v":0},{"$f":"Dataset[[#This Row],[2023/24 Reduction]]","v":0},{"$f":"SUM(Dataset[[#This Row],[2024/25 Reduction]],Dataset[[#This Row],[2024/25 From - Total]],Dataset[[#This Row],[2024/25 To - Total]])","v":0},{"$f":"SUM(Dataset[[#This Row],[2025/26 Reduction]],Dataset[[#This Row],[2025/26 From - Total]],Dataset[[#This Row],[2025/26 To - Total]])","v":0},{"$f":"SUM(Dataset[[#This Row],[2026/27 Reduction]],Dataset[[#This Row],[2026/27 From - Total]],Dataset[[#This Row],[2026/27 To - Total]])","v":0},{"$f":"Dataset[[#This Row],[2023/24 Baseline]]+Dataset[[#This Row],[2023/24 Total change]]","v":0},{"$f":"Dataset[[#This Row],[2024/25 Baseline]]+Dataset[[#This Row],[2024/25 Total change]]","v":0},{"$f":"Dataset[[#This Row],[2025/26 Baseline]]+Dataset[[#This Row],[2025/26 Total change]]","v":0},{"$f":"Dataset[[#This Row],[2026/27 Baseline]]+Dataset[[#This Row],[2026/27 Total change]]","v":0}]
["NAT|Non-transfer item","26|Inventory: Learner and teacher support material","2024_25","MTEF2024",26,1,5,44220,333,"26","01","05","044220","000333","26|01|05","01","01","02","25","25","01|01|02|25|25","National","Military Veterans","Administration","Strategic Planning, Policy Development, and Monitoring and Evaluation","Non-transfer item","Current","Current payments","Goods and services","Inventory: Learner and teacher support material","Inventory: Learner and teacher support material","Peace and security","Defence and state security","NAT",0,0,0,0,0,0,0,0,0,0,0,null,null,null,null,null,null,null,null,null,null,null,null,null,null,null,null,null,null,null,null,null,null,null,null,null,null,null,null,null,null,null,null,null,null,{"$f":"Dataset[[#This Row],[2024/25 From - Spending review Topic 1]]+Dataset[[#This Row],[2024/25 From - Spending review Topic 2]]+Dataset[[#This Row],[2024/25 From - Spending review Topic 3]]+Dataset[[#This Row],[2024/25 From - Spending review Topic 4]]+Dataset[[#This Row],[2024/25 From - Other reallocations]]","v":0},{"$f":"Dataset[[#This Row],[2025/26 From - Spending review Topic 1]]+Dataset[[#This Row],[2025/26 From - Spending review Topic 2]]+Dataset[[#This Row],[2025/26 From - Spending review Topic 3]]+Dataset[[#This Row],[2025/26 From - Spending review Topic 4]]+Dataset[[#This Row],[2025/26 From - Other reallocations]]","v":0},{"$f":"Dataset[[#This Row],[2026/27 From - Spending review Topic 1]]+Dataset[[#This Row],[2026/27 From - Spending review Topic 2]]+Dataset[[#This Row],[2026/27 From - Spending review Topic 3]]+Dataset[[#This Row],[2026/27 From - Spending review Topic 4]]+Dataset[[#This Row],[2026/27 From - Other reallocations]]","v":0},{"$f":"Dataset[[#This Row],[2024/25 To - Spending review Topic 1]]+Dataset[[#This Row],[2024/25 To - Spending review Topic 2]]+Dataset[[#This Row],[2024/25 To - Spending review Topic 3]]+Dataset[[#This Row],[2024/25 To - Spending review Topic 4]]+Dataset[[#This Row],[2024/25 To - Other reallocations]]","v":0},{"$f":"Dataset[[#This Row],[2025/26 To - Spending review Topic 1]]+Dataset[[#This Row],[2025/26 To - Spending review Topic 2]]+Dataset[[#This Row],[2025/26 To - Spending review Topic 3]]+Dataset[[#This Row],[2025/26 To - Spending review Topic 4]]+Dataset[[#This Row],[2025/26 To - Other reallocations]]","v":0},{"$f":"Dataset[[#This Row],[2026/27 To - Spending review Topic 1]]+Dataset[[#This Row],[2026/27 To - Spending review Topic 2]]+Dataset[[#This Row],[2026/27 To - Spending review Topic 3]]+Dataset[[#This Row],[2026/27 To - Spending review Topic 4]]+Dataset[[#This Row],[2026/27 To - Other reallocations]]","v":0},{"$f":"Dataset[[#This Row],[2024/25 Reduction]]+Dataset[[#This Row],[2024/25 From - Total]]","v":0},{"$f":"Dataset[[#This Row],[2025/26 Reduction]]+Dataset[[#This Row],[2025/26 From - Total]]","v":0},{"$f":"Dataset[[#This Row],[2026/27 Reduction]]+Dataset[[#This Row],[2026/27 From - Total]]","v":0},{"$f":"Dataset[[#This Row],[2023/24 Reduction]]","v":0},{"$f":"SUM(Dataset[[#This Row],[2024/25 Reduction]],Dataset[[#This Row],[2024/25 From - Total]],Dataset[[#This Row],[2024/25 To - Total]])","v":0},{"$f":"SUM(Dataset[[#This Row],[2025/26 Reduction]],Dataset[[#This Row],[2025/26 From - Total]],Dataset[[#This Row],[2025/26 To - Total]])","v":0},{"$f":"SUM(Dataset[[#This Row],[2026/27 Reduction]],Dataset[[#This Row],[2026/27 From - Total]],Dataset[[#This Row],[2026/27 To - Total]])","v":0},{"$f":"Dataset[[#This Row],[2023/24 Baseline]]+Dataset[[#This Row],[2023/24 Total change]]","v":0},{"$f":"Dataset[[#This Row],[2024/25 Baseline]]+Dataset[[#This Row],[2024/25 Total change]]","v":0},{"$f":"Dataset[[#This Row],[2025/26 Baseline]]+Dataset[[#This Row],[2025/26 Total change]]","v":0},{"$f":"Dataset[[#This Row],[2026/27 Baseline]]+Dataset[[#This Row],[2026/27 Total change]]","v":0}]
["NAT|Non-transfer item","26|Inventory: Materials and supplies","2024_25","MTEF2024",26,1,5,44221,334,"26","01","05","044221","000334","26|01|05","01","01","02","26","26","01|01|02|26|26","National","Military Veterans","Administration","Strategic Planning, Policy Development, and Monitoring and Evaluation","Non-transfer item","Current","Current payments","Goods and services","Inventory: Materials and supplies","Inventory: Materials and supplies","Peace and security","Defence and state security","NAT",0,0,0,0,0,0,0,0,0,0,0,null,null,null,null,null,null,null,null,null,null,null,null,null,null,null,null,null,null,null,null,null,null,null,null,null,null,null,null,null,null,null,null,null,null,{"$f":"Dataset[[#This Row],[2024/25 From - Spending review Topic 1]]+Dataset[[#This Row],[2024/25 From - Spending review Topic 2]]+Dataset[[#This Row],[2024/25 From - Spending review Topic 3]]+Dataset[[#This Row],[2024/25 From - Spending review Topic 4]]+Dataset[[#This Row],[2024/25 From - Other reallocations]]","v":0},{"$f":"Dataset[[#This Row],[2025/26 From - Spending review Topic 1]]+Dataset[[#This Row],[2025/26 From - Spending review Topic 2]]+Dataset[[#This Row],[2025/26 From - Spending review Topic 3]]+Dataset[[#This Row],[2025/26 From - Spending review Topic 4]]+Dataset[[#This Row],[2025/26 From - Other reallocations]]","v":0},{"$f":"Dataset[[#This Row],[2026/27 From - Spending review Topic 1]]+Dataset[[#This Row],[2026/27 From - Spending review Topic 2]]+Dataset[[#This Row],[2026/27 From - Spending review Topic 3]]+Dataset[[#This Row],[2026/27 From - Spending review Topic 4]]+Dataset[[#This Row],[2026/27 From - Other reallocations]]","v":0},{"$f":"Dataset[[#This Row],[2024/25 To - Spending review Topic 1]]+Dataset[[#This Row],[2024/25 To - Spending review Topic 2]]+Dataset[[#This Row],[2024/25 To - Spending review Topic 3]]+Dataset[[#This Row],[2024/25 To - Spending review Topic 4]]+Dataset[[#This Row],[2024/25 To - Other reallocations]]","v":0},{"$f":"Dataset[[#This Row],[2025/26 To - Spending review Topic 1]]+Dataset[[#This Row],[2025/26 To - Spending review Topic 2]]+Dataset[[#This Row],[2025/26 To - Spending review Topic 3]]+Dataset[[#This Row],[2025/26 To - Spending review Topic 4]]+Dataset[[#This Row],[2025/26 To - Other reallocations]]","v":0},{"$f":"Dataset[[#This Row],[2026/27 To - Spending review Topic 1]]+Dataset[[#This Row],[2026/27 To - Spending review Topic 2]]+Dataset[[#This Row],[2026/27 To - Spending review Topic 3]]+Dataset[[#This Row],[2026/27 To - Spending review Topic 4]]+Dataset[[#This Row],[2026/27 To - Other reallocations]]","v":0},{"$f":"Dataset[[#This Row],[2024/25 Reduction]]+Dataset[[#This Row],[2024/25 From - Total]]","v":0},{"$f":"Dataset[[#This Row],[2025/26 Reduction]]+Dataset[[#This Row],[2025/26 From - Total]]","v":0},{"$f":"Dataset[[#This Row],[2026/27 Reduction]]+Dataset[[#This Row],[2026/27 From - Total]]","v":0},{"$f":"Dataset[[#This Row],[2023/24 Reduction]]","v":0},{"$f":"SUM(Dataset[[#This Row],[2024/25 Reduction]],Dataset[[#This Row],[2024/25 From - Total]],Dataset[[#This Row],[2024/25 To - Total]])","v":0},{"$f":"SUM(Dataset[[#This Row],[2025/26 Reduction]],Dataset[[#This Row],[2025/26 From - Total]],Dataset[[#This Row],[2025/26 To - Total]])","v":0},{"$f":"SUM(Dataset[[#This Row],[2026/27 Reduction]],Dataset[[#This Row],[2026/27 From - Total]],Dataset[[#This Row],[2026/27 To - Total]])","v":0},{"$f":"Dataset[[#This Row],[2023/24 Baseline]]+Dataset[[#This Row],[2023/24 Total change]]","v":0},{"$f":"Dataset[[#This Row],[2024/25 Baseline]]+Dataset[[#This Row],[2024/25 Total change]]","v":0},{"$f":"Dataset[[#This Row],[2025/26 Baseline]]+Dataset[[#This Row],[2025/26 Total change]]","v":0},{"$f":"Dataset[[#This Row],[2026/27 Baseline]]+Dataset[[#This Row],[2026/27 Total change]]","v":0}]
["NAT|Non-transfer item","26|Inventory: Medical supplies","2024_25","MTEF2024",26,1,5,44222,335,"26","01","05","044222","000335","26|01|05","01","01","02","27","27","01|01|02|27|27","National","Military Veterans","Administration","Strategic Planning, Policy Development, and Monitoring and Evaluation","Non-transfer item","Current","Current payments","Goods and services","Inventory: Medical supplies","Inventory: Medical supplies","Peace and security","Defence and state security","NAT",0,0,0,0,0,0,0,0,0,0,0,null,null,null,null,null,null,null,null,null,null,null,null,null,null,null,null,null,null,null,null,null,null,null,null,null,null,null,null,null,null,null,null,null,null,{"$f":"Dataset[[#This Row],[2024/25 From - Spending review Topic 1]]+Dataset[[#This Row],[2024/25 From - Spending review Topic 2]]+Dataset[[#This Row],[2024/25 From - Spending review Topic 3]]+Dataset[[#This Row],[2024/25 From - Spending review Topic 4]]+Dataset[[#This Row],[2024/25 From - Other reallocations]]","v":0},{"$f":"Dataset[[#This Row],[2025/26 From - Spending review Topic 1]]+Dataset[[#This Row],[2025/26 From - Spending review Topic 2]]+Dataset[[#This Row],[2025/26 From - Spending review Topic 3]]+Dataset[[#This Row],[2025/26 From - Spending review Topic 4]]+Dataset[[#This Row],[2025/26 From - Other reallocations]]","v":0},{"$f":"Dataset[[#This Row],[2026/27 From - Spending review Topic 1]]+Dataset[[#This Row],[2026/27 From - Spending review Topic 2]]+Dataset[[#This Row],[2026/27 From - Spending review Topic 3]]+Dataset[[#This Row],[2026/27 From - Spending review Topic 4]]+Dataset[[#This Row],[2026/27 From - Other reallocations]]","v":0},{"$f":"Dataset[[#This Row],[2024/25 To - Spending review Topic 1]]+Dataset[[#This Row],[2024/25 To - Spending review Topic 2]]+Dataset[[#This Row],[2024/25 To - Spending review Topic 3]]+Dataset[[#This Row],[2024/25 To - Spending review Topic 4]]+Dataset[[#This Row],[2024/25 To - Other reallocations]]","v":0},{"$f":"Dataset[[#This Row],[2025/26 To - Spending review Topic 1]]+Dataset[[#This Row],[2025/26 To - Spending review Topic 2]]+Dataset[[#This Row],[2025/26 To - Spending review Topic 3]]+Dataset[[#This Row],[2025/26 To - Spending review Topic 4]]+Dataset[[#This Row],[2025/26 To - Other reallocations]]","v":0},{"$f":"Dataset[[#This Row],[2026/27 To - Spending review Topic 1]]+Dataset[[#This Row],[2026/27 To - Spending review Topic 2]]+Dataset[[#This Row],[2026/27 To - Spending review Topic 3]]+Dataset[[#This Row],[2026/27 To - Spending review Topic 4]]+Dataset[[#This Row],[2026/27 To - Other reallocations]]","v":0},{"$f":"Dataset[[#This Row],[2024/25 Reduction]]+Dataset[[#This Row],[2024/25 From - Total]]","v":0},{"$f":"Dataset[[#This Row],[2025/26 Reduction]]+Dataset[[#This Row],[2025/26 From - Total]]","v":0},{"$f":"Dataset[[#This Row],[2026/27 Reduction]]+Dataset[[#This Row],[2026/27 From - Total]]","v":0},{"$f":"Dataset[[#This Row],[2023/24 Reduction]]","v":0},{"$f":"SUM(Dataset[[#This Row],[2024/25 Reduction]],Dataset[[#This Row],[2024/25 From - Total]],Dataset[[#This Row],[2024/25 To - Total]])","v":0},{"$f":"SUM(Dataset[[#This Row],[2025/26 Reduction]],Dataset[[#This Row],[2025/26 From - Total]],Dataset[[#This Row],[2025/26 To - Total]])","v":0},{"$f":"SUM(Dataset[[#This Row],[2026/27 Reduction]],Dataset[[#This Row],[2026/27 From - Total]],Dataset[[#This Row],[2026/27 To - Total]])","v":0},{"$f":"Dataset[[#This Row],[2023/24 Baseline]]+Dataset[[#This Row],[2023/24 Total change]]","v":0},{"$f":"Dataset[[#This Row],[2024/25 Baseline]]+Dataset[[#This Row],[2024/25 Total change]]","v":0},{"$f":"Dataset[[#This Row],[2025/26 Baseline]]+Dataset[[#This Row],[2025/26 Total change]]","v":0},{"$f":"Dataset[[#This Row],[2026/27 Baseline]]+Dataset[[#This Row],[2026/27 Total change]]","v":0}]
["NAT|Non-transfer item","26|Inventory: Medicine","2024_25","MTEF2024",26,1,5,44223,336,"26","01","05","044223","000336","26|01|05","01","01","02","28","28","01|01|02|28|28","National","Military Veterans","Administration","Strategic Planning, Policy Development, and Monitoring and Evaluation","Non-transfer item","Current","Current payments","Goods and services","Inventory: Medicine","Inventory: Medicine","Peace and security","Defence and state security","NAT",0,0,0,0,0,0,0,0,0,0,0,null,null,null,null,null,null,null,null,null,null,null,null,null,null,null,null,null,null,null,null,null,null,null,null,null,null,null,null,null,null,null,null,null,null,{"$f":"Dataset[[#This Row],[2024/25 From - Spending review Topic 1]]+Dataset[[#This Row],[2024/25 From - Spending review Topic 2]]+Dataset[[#This Row],[2024/25 From - Spending review Topic 3]]+Dataset[[#This Row],[2024/25 From - Spending review Topic 4]]+Dataset[[#This Row],[2024/25 From - Other reallocations]]","v":0},{"$f":"Dataset[[#This Row],[2025/26 From - Spending review Topic 1]]+Dataset[[#This Row],[2025/26 From - Spending review Topic 2]]+Dataset[[#This Row],[2025/26 From - Spending review Topic 3]]+Dataset[[#This Row],[2025/26 From - Spending review Topic 4]]+Dataset[[#This Row],[2025/26 From - Other reallocations]]","v":0},{"$f":"Dataset[[#This Row],[2026/27 From - Spending review Topic 1]]+Dataset[[#This Row],[2026/27 From - Spending review Topic 2]]+Dataset[[#This Row],[2026/27 From - Spending review Topic 3]]+Dataset[[#This Row],[2026/27 From - Spending review Topic 4]]+Dataset[[#This Row],[2026/27 From - Other reallocations]]","v":0},{"$f":"Dataset[[#This Row],[2024/25 To - Spending review Topic 1]]+Dataset[[#This Row],[2024/25 To - Spending review Topic 2]]+Dataset[[#This Row],[2024/25 To - Spending review Topic 3]]+Dataset[[#This Row],[2024/25 To - Spending review Topic 4]]+Dataset[[#This Row],[2024/25 To - Other reallocations]]","v":0},{"$f":"Dataset[[#This Row],[2025/26 To - Spending review Topic 1]]+Dataset[[#This Row],[2025/26 To - Spending review Topic 2]]+Dataset[[#This Row],[2025/26 To - Spending review Topic 3]]+Dataset[[#This Row],[2025/26 To - Spending review Topic 4]]+Dataset[[#This Row],[2025/26 To - Other reallocations]]","v":0},{"$f":"Dataset[[#This Row],[2026/27 To - Spending review Topic 1]]+Dataset[[#This Row],[2026/27 To - Spending review Topic 2]]+Dataset[[#This Row],[2026/27 To - Spending review Topic 3]]+Dataset[[#This Row],[2026/27 To - Spending review Topic 4]]+Dataset[[#This Row],[2026/27 To - Other reallocations]]","v":0},{"$f":"Dataset[[#This Row],[2024/25 Reduction]]+Dataset[[#This Row],[2024/25 From - Total]]","v":0},{"$f":"Dataset[[#This Row],[2025/26 Reduction]]+Dataset[[#This Row],[2025/26 From - Total]]","v":0},{"$f":"Dataset[[#This Row],[2026/27 Reduction]]+Dataset[[#This Row],[2026/27 From - Total]]","v":0},{"$f":"Dataset[[#This Row],[2023/24 Reduction]]","v":0},{"$f":"SUM(Dataset[[#This Row],[2024/25 Reduction]],Dataset[[#This Row],[2024/25 From - Total]],Dataset[[#This Row],[2024/25 To - Total]])","v":0},{"$f":"SUM(Dataset[[#This Row],[2025/26 Reduction]],Dataset[[#This Row],[2025/26 From - Total]],Dataset[[#This Row],[2025/26 To - Total]])","v":0},{"$f":"SUM(Dataset[[#This Row],[2026/27 Reduction]],Dataset[[#This Row],[2026/27 From - Total]],Dataset[[#This Row],[2026/27 To - Total]])","v":0},{"$f":"Dataset[[#This Row],[2023/24 Baseline]]+Dataset[[#This Row],[2023/24 Total change]]","v":0},{"$f":"Dataset[[#This Row],[2024/25 Baseline]]+Dataset[[#This Row],[2024/25 Total change]]","v":0},{"$f":"Dataset[[#This Row],[2025/26 Baseline]]+Dataset[[#This Row],[2025/26 Total change]]","v":0},{"$f":"Dataset[[#This Row],[2026/27 Baseline]]+Dataset[[#This Row],[2026/27 Total change]]","v":0}]
["NAT|Non-transfer item","26|Medsas inventory interface","2024_25","MTEF2024",26,1,5,44224,337,"26","01","05","044224","000337","26|01|05","01","01","02","29","29","01|01|02|29|29","National","Military Veterans","Administration","Strategic Planning, Policy Development, and Monitoring and Evaluation","Non-transfer item","Current","Current payments","Goods and services","Medsas inventory interface","Medsas inventory interface","Peace and security","Defence and state security","NAT",0,0,0,0,0,0,0,0,0,0,0,null,null,null,null,null,null,null,null,null,null,null,null,null,null,null,null,null,null,null,null,null,null,null,null,null,null,null,null,null,null,null,null,null,null,{"$f":"Dataset[[#This Row],[2024/25 From - Spending review Topic 1]]+Dataset[[#This Row],[2024/25 From - Spending review Topic 2]]+Dataset[[#This Row],[2024/25 From - Spending review Topic 3]]+Dataset[[#This Row],[2024/25 From - Spending review Topic 4]]+Dataset[[#This Row],[2024/25 From - Other reallocations]]","v":0},{"$f":"Dataset[[#This Row],[2025/26 From - Spending review Topic 1]]+Dataset[[#This Row],[2025/26 From - Spending review Topic 2]]+Dataset[[#This Row],[2025/26 From - Spending review Topic 3]]+Dataset[[#This Row],[2025/26 From - Spending review Topic 4]]+Dataset[[#This Row],[2025/26 From - Other reallocations]]","v":0},{"$f":"Dataset[[#This Row],[2026/27 From - Spending review Topic 1]]+Dataset[[#This Row],[2026/27 From - Spending review Topic 2]]+Dataset[[#This Row],[2026/27 From - Spending review Topic 3]]+Dataset[[#This Row],[2026/27 From - Spending review Topic 4]]+Dataset[[#This Row],[2026/27 From - Other reallocations]]","v":0},{"$f":"Dataset[[#This Row],[2024/25 To - Spending review Topic 1]]+Dataset[[#This Row],[2024/25 To - Spending review Topic 2]]+Dataset[[#This Row],[2024/25 To - Spending review Topic 3]]+Dataset[[#This Row],[2024/25 To - Spending review Topic 4]]+Dataset[[#This Row],[2024/25 To - Other reallocations]]","v":0},{"$f":"Dataset[[#This Row],[2025/26 To - Spending review Topic 1]]+Dataset[[#This Row],[2025/26 To - Spending review Topic 2]]+Dataset[[#This Row],[2025/26 To - Spending review Topic 3]]+Dataset[[#This Row],[2025/26 To - Spending review Topic 4]]+Dataset[[#This Row],[2025/26 To - Other reallocations]]","v":0},{"$f":"Dataset[[#This Row],[2026/27 To - Spending review Topic 1]]+Dataset[[#This Row],[2026/27 To - Spending review Topic 2]]+Dataset[[#This Row],[2026/27 To - Spending review Topic 3]]+Dataset[[#This Row],[2026/27 To - Spending review Topic 4]]+Dataset[[#This Row],[2026/27 To - Other reallocations]]","v":0},{"$f":"Dataset[[#This Row],[2024/25 Reduction]]+Dataset[[#This Row],[2024/25 From - Total]]","v":0},{"$f":"Dataset[[#This Row],[2025/26 Reduction]]+Dataset[[#This Row],[2025/26 From - Total]]","v":0},{"$f":"Dataset[[#This Row],[2026/27 Reduction]]+Dataset[[#This Row],[2026/27 From - Total]]","v":0},{"$f":"Dataset[[#This Row],[2023/24 Reduction]]","v":0},{"$f":"SUM(Dataset[[#This Row],[2024/25 Reduction]],Dataset[[#This Row],[2024/25 From - Total]],Dataset[[#This Row],[2024/25 To - Total]])","v":0},{"$f":"SUM(Dataset[[#This Row],[2025/26 Reduction]],Dataset[[#This Row],[2025/26 From - Total]],Dataset[[#This Row],[2025/26 To - Total]])","v":0},{"$f":"SUM(Dataset[[#This Row],[2026/27 Reduction]],Dataset[[#This Row],[2026/27 From - Total]],Dataset[[#This Row],[2026/27 To - Total]])","v":0},{"$f":"Dataset[[#This Row],[2023/24 Baseline]]+Dataset[[#This Row],[2023/24 Total change]]","v":0},{"$f":"Dataset[[#This Row],[2024/25 Baseline]]+Dataset[[#This Row],[2024/25 Total change]]","v":0},{"$f":"Dataset[[#This Row],[2025/26 Baseline]]+Dataset[[#This Row],[2025/26 Total change]]","v":0},{"$f":"Dataset[[#This Row],[2026/27 Baseline]]+Dataset[[#This Row],[2026/27 Total change]]","v":0}]
["NAT|Non-transfer item","26|Inventory: Other supplies","2024_25","MTEF2024",26,1,5,44225,338,"26","01","05","044225","000338","26|01|05","01","01","02","30","30","01|01|02|30|30","National","Military Veterans","Administration","Strategic Planning, Policy Development, and Monitoring and Evaluation","Non-transfer item","Current","Current payments","Goods and services","Inventory: Other supplies","Inventory: Other supplies","Peace and security","Defence and state security","NAT",0,0,0,0,0,0,0,0,0,0,0,null,null,null,null,null,null,null,null,null,null,null,null,null,null,null,null,null,null,null,null,null,null,null,null,null,null,null,null,null,null,null,null,null,null,{"$f":"Dataset[[#This Row],[2024/25 From - Spending review Topic 1]]+Dataset[[#This Row],[2024/25 From - Spending review Topic 2]]+Dataset[[#This Row],[2024/25 From - Spending review Topic 3]]+Dataset[[#This Row],[2024/25 From - Spending review Topic 4]]+Dataset[[#This Row],[2024/25 From - Other reallocations]]","v":0},{"$f":"Dataset[[#This Row],[2025/26 From - Spending review Topic 1]]+Dataset[[#This Row],[2025/26 From - Spending review Topic 2]]+Dataset[[#This Row],[2025/26 From - Spending review Topic 3]]+Dataset[[#This Row],[2025/26 From - Spending review Topic 4]]+Dataset[[#This Row],[2025/26 From - Other reallocations]]","v":0},{"$f":"Dataset[[#This Row],[2026/27 From - Spending review Topic 1]]+Dataset[[#This Row],[2026/27 From - Spending review Topic 2]]+Dataset[[#This Row],[2026/27 From - Spending review Topic 3]]+Dataset[[#This Row],[2026/27 From - Spending review Topic 4]]+Dataset[[#This Row],[2026/27 From - Other reallocations]]","v":0},{"$f":"Dataset[[#This Row],[2024/25 To - Spending review Topic 1]]+Dataset[[#This Row],[2024/25 To - Spending review Topic 2]]+Dataset[[#This Row],[2024/25 To - Spending review Topic 3]]+Dataset[[#This Row],[2024/25 To - Spending review Topic 4]]+Dataset[[#This Row],[2024/25 To - Other reallocations]]","v":0},{"$f":"Dataset[[#This Row],[2025/26 To - Spending review Topic 1]]+Dataset[[#This Row],[2025/26 To - Spending review Topic 2]]+Dataset[[#This Row],[2025/26 To - Spending review Topic 3]]+Dataset[[#This Row],[2025/26 To - Spending review Topic 4]]+Dataset[[#This Row],[2025/26 To - Other reallocations]]","v":0},{"$f":"Dataset[[#This Row],[2026/27 To - Spending review Topic 1]]+Dataset[[#This Row],[2026/27 To - Spending review Topic 2]]+Dataset[[#This Row],[2026/27 To - Spending review Topic 3]]+Dataset[[#This Row],[2026/27 To - Spending review Topic 4]]+Dataset[[#This Row],[2026/27 To - Other reallocations]]","v":0},{"$f":"Dataset[[#This Row],[2024/25 Reduction]]+Dataset[[#This Row],[2024/25 From - Total]]","v":0},{"$f":"Dataset[[#This Row],[2025/26 Reduction]]+Dataset[[#This Row],[2025/26 From - Total]]","v":0},{"$f":"Dataset[[#This Row],[2026/27 Reduction]]+Dataset[[#This Row],[2026/27 From - Total]]","v":0},{"$f":"Dataset[[#This Row],[2023/24 Reduction]]","v":0},{"$f":"SUM(Dataset[[#This Row],[2024/25 Reduction]],Dataset[[#This Row],[2024/25 From - Total]],Dataset[[#This Row],[2024/25 To - Total]])","v":0},{"$f":"SUM(Dataset[[#This Row],[2025/26 Reduction]],Dataset[[#This Row],[2025/26 From - Total]],Dataset[[#This Row],[2025/26 To - Total]])","v":0},{"$f":"SUM(Dataset[[#This Row],[2026/27 Reduction]],Dataset[[#This Row],[2026/27 From - Total]],Dataset[[#This Row],[2026/27 To - Total]])","v":0},{"$f":"Dataset[[#This Row],[2023/24 Baseline]]+Dataset[[#This Row],[2023/24 Total change]]","v":0},{"$f":"Dataset[[#This Row],[2024/25 Baseline]]+Dataset[[#This Row],[2024/25 Total change]]","v":0},{"$f":"Dataset[[#This Row],[2025/26 Baseline]]+Dataset[[#This Row],[2025/26 Total change]]","v":0},{"$f":"Dataset[[#This Row],[2026/27 Baseline]]+Dataset[[#This Row],[2026/27 Total change]]","v":0}]
["NAT|Non-transfer item","26|Consumable supplies","2024_25","MTEF2024",26,1,5,44226,339,"26","01","05","044226","000339","26|01|05","01","01","02","31","31","01|01|02|31|31","National","Military Veterans","Administration","Strategic Planning, Policy Development, and Monitoring and Evaluation","Non-transfer item","Current","Current payments","Goods and services","Consumable supplies","Consumable supplies","Peace and security","Defence and state security","NAT",8,2,0,145,20,20,0,25,69,76,79,null,null,null,null,null,null,null,null,null,null,null,null,null,null,null,null,null,null,null,null,null,null,null,null,null,null,null,null,null,null,null,null,null,null,{"$f":"Dataset[[#This Row],[2024/25 From - Spending review Topic 1]]+Dataset[[#This Row],[2024/25 From - Spending review Topic 2]]+Dataset[[#This Row],[2024/25 From - Spending review Topic 3]]+Dataset[[#This Row],[2024/25 From - Spending review Topic 4]]+Dataset[[#This Row],[2024/25 From - Other reallocations]]","v":0},{"$f":"Dataset[[#This Row],[2025/26 From - Spending review Topic 1]]+Dataset[[#This Row],[2025/26 From - Spending review Topic 2]]+Dataset[[#This Row],[2025/26 From - Spending review Topic 3]]+Dataset[[#This Row],[2025/26 From - Spending review Topic 4]]+Dataset[[#This Row],[2025/26 From - Other reallocations]]","v":0},{"$f":"Dataset[[#This Row],[2026/27 From - Spending review Topic 1]]+Dataset[[#This Row],[2026/27 From - Spending review Topic 2]]+Dataset[[#This Row],[2026/27 From - Spending review Topic 3]]+Dataset[[#This Row],[2026/27 From - Spending review Topic 4]]+Dataset[[#This Row],[2026/27 From - Other reallocations]]","v":0},{"$f":"Dataset[[#This Row],[2024/25 To - Spending review Topic 1]]+Dataset[[#This Row],[2024/25 To - Spending review Topic 2]]+Dataset[[#This Row],[2024/25 To - Spending review Topic 3]]+Dataset[[#This Row],[2024/25 To - Spending review Topic 4]]+Dataset[[#This Row],[2024/25 To - Other reallocations]]","v":0},{"$f":"Dataset[[#This Row],[2025/26 To - Spending review Topic 1]]+Dataset[[#This Row],[2025/26 To - Spending review Topic 2]]+Dataset[[#This Row],[2025/26 To - Spending review Topic 3]]+Dataset[[#This Row],[2025/26 To - Spending review Topic 4]]+Dataset[[#This Row],[2025/26 To - Other reallocations]]","v":0},{"$f":"Dataset[[#This Row],[2026/27 To - Spending review Topic 1]]+Dataset[[#This Row],[2026/27 To - Spending review Topic 2]]+Dataset[[#This Row],[2026/27 To - Spending review Topic 3]]+Dataset[[#This Row],[2026/27 To - Spending review Topic 4]]+Dataset[[#This Row],[2026/27 To - Other reallocations]]","v":0},{"$f":"Dataset[[#This Row],[2024/25 Reduction]]+Dataset[[#This Row],[2024/25 From - Total]]","v":0},{"$f":"Dataset[[#This Row],[2025/26 Reduction]]+Dataset[[#This Row],[2025/26 From - Total]]","v":0},{"$f":"Dataset[[#This Row],[2026/27 Reduction]]+Dataset[[#This Row],[2026/27 From - Total]]","v":0},{"$f":"Dataset[[#This Row],[2023/24 Reduction]]","v":0},{"$f":"SUM(Dataset[[#This Row],[2024/25 Reduction]],Dataset[[#This Row],[2024/25 From - Total]],Dataset[[#This Row],[2024/25 To - Total]])","v":0},{"$f":"SUM(Dataset[[#This Row],[2025/26 Reduction]],Dataset[[#This Row],[2025/26 From - Total]],Dataset[[#This Row],[2025/26 To - Total]])","v":0},{"$f":"SUM(Dataset[[#This Row],[2026/27 Reduction]],Dataset[[#This Row],[2026/27 From - Total]],Dataset[[#This Row],[2026/27 To - Total]])","v":0},{"$f":"Dataset[[#This Row],[2023/24 Baseline]]+Dataset[[#This Row],[2023/24 Total change]]","v":25},{"$f":"Dataset[[#This Row],[2024/25 Baseline]]+Dataset[[#This Row],[2024/25 Total change]]","v":69},{"$f":"Dataset[[#This Row],[2025/26 Baseline]]+Dataset[[#This Row],[2025/26 Total change]]","v":76},{"$f":"Dataset[[#This Row],[2026/27 Baseline]]+Dataset[[#This Row],[2026/27 Total change]]","v":79}]
["NAT|Non-transfer item","26|Consumables: Stationery, printing and office supplies","2024_25","MTEF2024",26,1,5,44227,340,"26","01","05","044227","000340","26|01|05","01","01","02","32","32","01|01|02|32|32","National","Military Veterans","Administration","Strategic Planning, Policy Development, and Monitoring and Evaluation","Non-transfer item","Current","Current payments","Goods and services","Consumables: Stationery, printing and office supplies","Consumables: Stationery, printing and office supplies","Peace and security","Defence and state security","NAT",650,151,3304,2369,2034,2034,0,1612,1803,1920,2008,null,null,null,null,null,null,null,null,null,null,null,null,null,null,null,null,null,null,null,null,null,null,null,null,null,null,null,null,null,null,null,null,null,null,{"$f":"Dataset[[#This Row],[2024/25 From - Spending review Topic 1]]+Dataset[[#This Row],[2024/25 From - Spending review Topic 2]]+Dataset[[#This Row],[2024/25 From - Spending review Topic 3]]+Dataset[[#This Row],[2024/25 From - Spending review Topic 4]]+Dataset[[#This Row],[2024/25 From - Other reallocations]]","v":0},{"$f":"Dataset[[#This Row],[2025/26 From - Spending review Topic 1]]+Dataset[[#This Row],[2025/26 From - Spending review Topic 2]]+Dataset[[#This Row],[2025/26 From - Spending review Topic 3]]+Dataset[[#This Row],[2025/26 From - Spending review Topic 4]]+Dataset[[#This Row],[2025/26 From - Other reallocations]]","v":0},{"$f":"Dataset[[#This Row],[2026/27 From - Spending review Topic 1]]+Dataset[[#This Row],[2026/27 From - Spending review Topic 2]]+Dataset[[#This Row],[2026/27 From - Spending review Topic 3]]+Dataset[[#This Row],[2026/27 From - Spending review Topic 4]]+Dataset[[#This Row],[2026/27 From - Other reallocations]]","v":0},{"$f":"Dataset[[#This Row],[2024/25 To - Spending review Topic 1]]+Dataset[[#This Row],[2024/25 To - Spending review Topic 2]]+Dataset[[#This Row],[2024/25 To - Spending review Topic 3]]+Dataset[[#This Row],[2024/25 To - Spending review Topic 4]]+Dataset[[#This Row],[2024/25 To - Other reallocations]]","v":0},{"$f":"Dataset[[#This Row],[2025/26 To - Spending review Topic 1]]+Dataset[[#This Row],[2025/26 To - Spending review Topic 2]]+Dataset[[#This Row],[2025/26 To - Spending review Topic 3]]+Dataset[[#This Row],[2025/26 To - Spending review Topic 4]]+Dataset[[#This Row],[2025/26 To - Other reallocations]]","v":0},{"$f":"Dataset[[#This Row],[2026/27 To - Spending review Topic 1]]+Dataset[[#This Row],[2026/27 To - Spending review Topic 2]]+Dataset[[#This Row],[2026/27 To - Spending review Topic 3]]+Dataset[[#This Row],[2026/27 To - Spending review Topic 4]]+Dataset[[#This Row],[2026/27 To - Other reallocations]]","v":0},{"$f":"Dataset[[#This Row],[2024/25 Reduction]]+Dataset[[#This Row],[2024/25 From - Total]]","v":0},{"$f":"Dataset[[#This Row],[2025/26 Reduction]]+Dataset[[#This Row],[2025/26 From - Total]]","v":0},{"$f":"Dataset[[#This Row],[2026/27 Reduction]]+Dataset[[#This Row],[2026/27 From - Total]]","v":0},{"$f":"Dataset[[#This Row],[2023/24 Reduction]]","v":0},{"$f":"SUM(Dataset[[#This Row],[2024/25 Reduction]],Dataset[[#This Row],[2024/25 From - Total]],Dataset[[#This Row],[2024/25 To - Total]])","v":0},{"$f":"SUM(Dataset[[#This Row],[2025/26 Reduction]],Dataset[[#This Row],[2025/26 From - Total]],Dataset[[#This Row],[2025/26 To - Total]])","v":0},{"$f":"SUM(Dataset[[#This Row],[2026/27 Reduction]],Dataset[[#This Row],[2026/27 From - Total]],Dataset[[#This Row],[2026/27 To - Total]])","v":0},{"$f":"Dataset[[#This Row],[2023/24 Baseline]]+Dataset[[#This Row],[2023/24 Total change]]","v":1612},{"$f":"Dataset[[#This Row],[2024/25 Baseline]]+Dataset[[#This Row],[2024/25 Total change]]","v":1803},{"$f":"Dataset[[#This Row],[2025/26 Baseline]]+Dataset[[#This Row],[2025/26 Total change]]","v":1920},{"$f":"Dataset[[#This Row],[2026/27 Baseline]]+Dataset[[#This Row],[2026/27 Total change]]","v":2008}]
["NAT|Non-transfer item","26|Operating leases","2024_25","MTEF2024",26,1,5,44228,341,"26","01","05","044228","000341","26|01|05","01","01","02","33","33","01|01|02|33|33","National","Military Veterans","Administration","Strategic Planning, Policy Development, and Monitoring and Evaluation","Non-transfer item","Current","Current payments","Goods and services","Operating leases","Operating leases","Peace and security","Defence and state security","NAT",0,0,0,72,0,0,0,0,0,0,0,null,null,null,null,null,null,null,null,null,null,null,null,null,null,null,null,null,null,null,null,null,null,null,null,null,null,null,null,null,null,null,null,null,null,{"$f":"Dataset[[#This Row],[2024/25 From - Spending review Topic 1]]+Dataset[[#This Row],[2024/25 From - Spending review Topic 2]]+Dataset[[#This Row],[2024/25 From - Spending review Topic 3]]+Dataset[[#This Row],[2024/25 From - Spending review Topic 4]]+Dataset[[#This Row],[2024/25 From - Other reallocations]]","v":0},{"$f":"Dataset[[#This Row],[2025/26 From - Spending review Topic 1]]+Dataset[[#This Row],[2025/26 From - Spending review Topic 2]]+Dataset[[#This Row],[2025/26 From - Spending review Topic 3]]+Dataset[[#This Row],[2025/26 From - Spending review Topic 4]]+Dataset[[#This Row],[2025/26 From - Other reallocations]]","v":0},{"$f":"Dataset[[#This Row],[2026/27 From - Spending review Topic 1]]+Dataset[[#This Row],[2026/27 From - Spending review Topic 2]]+Dataset[[#This Row],[2026/27 From - Spending review Topic 3]]+Dataset[[#This Row],[2026/27 From - Spending review Topic 4]]+Dataset[[#This Row],[2026/27 From - Other reallocations]]","v":0},{"$f":"Dataset[[#This Row],[2024/25 To - Spending review Topic 1]]+Dataset[[#This Row],[2024/25 To - Spending review Topic 2]]+Dataset[[#This Row],[2024/25 To - Spending review Topic 3]]+Dataset[[#This Row],[2024/25 To - Spending review Topic 4]]+Dataset[[#This Row],[2024/25 To - Other reallocations]]","v":0},{"$f":"Dataset[[#This Row],[2025/26 To - Spending review Topic 1]]+Dataset[[#This Row],[2025/26 To - Spending review Topic 2]]+Dataset[[#This Row],[2025/26 To - Spending review Topic 3]]+Dataset[[#This Row],[2025/26 To - Spending review Topic 4]]+Dataset[[#This Row],[2025/26 To - Other reallocations]]","v":0},{"$f":"Dataset[[#This Row],[2026/27 To - Spending review Topic 1]]+Dataset[[#This Row],[2026/27 To - Spending review Topic 2]]+Dataset[[#This Row],[2026/27 To - Spending review Topic 3]]+Dataset[[#This Row],[2026/27 To - Spending review Topic 4]]+Dataset[[#This Row],[2026/27 To - Other reallocations]]","v":0},{"$f":"Dataset[[#This Row],[2024/25 Reduction]]+Dataset[[#This Row],[2024/25 From - Total]]","v":0},{"$f":"Dataset[[#This Row],[2025/26 Reduction]]+Dataset[[#This Row],[2025/26 From - Total]]","v":0},{"$f":"Dataset[[#This Row],[2026/27 Reduction]]+Dataset[[#This Row],[2026/27 From - Total]]","v":0},{"$f":"Dataset[[#This Row],[2023/24 Reduction]]","v":0},{"$f":"SUM(Dataset[[#This Row],[2024/25 Reduction]],Dataset[[#This Row],[2024/25 From - Total]],Dataset[[#This Row],[2024/25 To - Total]])","v":0},{"$f":"SUM(Dataset[[#This Row],[2025/26 Reduction]],Dataset[[#This Row],[2025/26 From - Total]],Dataset[[#This Row],[2025/26 To - Total]])","v":0},{"$f":"SUM(Dataset[[#This Row],[2026/27 Reduction]],Dataset[[#This Row],[2026/27 From - Total]],Dataset[[#This Row],[2026/27 To - Total]])","v":0},{"$f":"Dataset[[#This Row],[2023/24 Baseline]]+Dataset[[#This Row],[2023/24 Total change]]","v":0},{"$f":"Dataset[[#This Row],[2024/25 Baseline]]+Dataset[[#This Row],[2024/25 Total change]]","v":0},{"$f":"Dataset[[#This Row],[2025/26 Baseline]]+Dataset[[#This Row],[2025/26 Total change]]","v":0},{"$f":"Dataset[[#This Row],[2026/27 Baseline]]+Dataset[[#This Row],[2026/27 Total change]]","v":0}]
["NAT|Non-transfer item","26|Rental and hiring","2024_25","MTEF2024",26,1,5,44229,342,"26","01","05","044229","000342","26|01|05","01","01","02","34","34","01|01|02|34|34","National","Military Veterans","Administration","Strategic Planning, Policy Development, and Monitoring and Evaluation","Non-transfer item","Current","Current payments","Goods and services","Rental and hiring","Rental and hiring","Peace and security","Defence and state security","NAT",0,0,0,0,0,0,0,0,0,0,0,null,null,null,null,null,null,null,null,null,null,null,null,null,null,null,null,null,null,null,null,null,null,null,null,null,null,null,null,null,null,null,null,null,null,{"$f":"Dataset[[#This Row],[2024/25 From - Spending review Topic 1]]+Dataset[[#This Row],[2024/25 From - Spending review Topic 2]]+Dataset[[#This Row],[2024/25 From - Spending review Topic 3]]+Dataset[[#This Row],[2024/25 From - Spending review Topic 4]]+Dataset[[#This Row],[2024/25 From - Other reallocations]]","v":0},{"$f":"Dataset[[#This Row],[2025/26 From - Spending review Topic 1]]+Dataset[[#This Row],[2025/26 From - Spending review Topic 2]]+Dataset[[#This Row],[2025/26 From - Spending review Topic 3]]+Dataset[[#This Row],[2025/26 From - Spending review Topic 4]]+Dataset[[#This Row],[2025/26 From - Other reallocations]]","v":0},{"$f":"Dataset[[#This Row],[2026/27 From - Spending review Topic 1]]+Dataset[[#This Row],[2026/27 From - Spending review Topic 2]]+Dataset[[#This Row],[2026/27 From - Spending review Topic 3]]+Dataset[[#This Row],[2026/27 From - Spending review Topic 4]]+Dataset[[#This Row],[2026/27 From - Other reallocations]]","v":0},{"$f":"Dataset[[#This Row],[2024/25 To - Spending review Topic 1]]+Dataset[[#This Row],[2024/25 To - Spending review Topic 2]]+Dataset[[#This Row],[2024/25 To - Spending review Topic 3]]+Dataset[[#This Row],[2024/25 To - Spending review Topic 4]]+Dataset[[#This Row],[2024/25 To - Other reallocations]]","v":0},{"$f":"Dataset[[#This Row],[2025/26 To - Spending review Topic 1]]+Dataset[[#This Row],[2025/26 To - Spending review Topic 2]]+Dataset[[#This Row],[2025/26 To - Spending review Topic 3]]+Dataset[[#This Row],[2025/26 To - Spending review Topic 4]]+Dataset[[#This Row],[2025/26 To - Other reallocations]]","v":0},{"$f":"Dataset[[#This Row],[2026/27 To - Spending review Topic 1]]+Dataset[[#This Row],[2026/27 To - Spending review Topic 2]]+Dataset[[#This Row],[2026/27 To - Spending review Topic 3]]+Dataset[[#This Row],[2026/27 To - Spending review Topic 4]]+Dataset[[#This Row],[2026/27 To - Other reallocations]]","v":0},{"$f":"Dataset[[#This Row],[2024/25 Reduction]]+Dataset[[#This Row],[2024/25 From - Total]]","v":0},{"$f":"Dataset[[#This Row],[2025/26 Reduction]]+Dataset[[#This Row],[2025/26 From - Total]]","v":0},{"$f":"Dataset[[#This Row],[2026/27 Reduction]]+Dataset[[#This Row],[2026/27 From - Total]]","v":0},{"$f":"Dataset[[#This Row],[2023/24 Reduction]]","v":0},{"$f":"SUM(Dataset[[#This Row],[2024/25 Reduction]],Dataset[[#This Row],[2024/25 From - Total]],Dataset[[#This Row],[2024/25 To - Total]])","v":0},{"$f":"SUM(Dataset[[#This Row],[2025/26 Reduction]],Dataset[[#This Row],[2025/26 From - Total]],Dataset[[#This Row],[2025/26 To - Total]])","v":0},{"$f":"SUM(Dataset[[#This Row],[2026/27 Reduction]],Dataset[[#This Row],[2026/27 From - Total]],Dataset[[#This Row],[2026/27 To - Total]])","v":0},{"$f":"Dataset[[#This Row],[2023/24 Baseline]]+Dataset[[#This Row],[2023/24 Total change]]","v":0},{"$f":"Dataset[[#This Row],[2024/25 Baseline]]+Dataset[[#This Row],[2024/25 Total change]]","v":0},{"$f":"Dataset[[#This Row],[2025/26 Baseline]]+Dataset[[#This Row],[2025/26 Total change]]","v":0},{"$f":"Dataset[[#This Row],[2026/27 Baseline]]+Dataset[[#This Row],[2026/27 Total change]]","v":0}]
["NAT|Non-transfer item","26|Property payments","2024_25","MTEF2024",26,1,5,44230,343,"26","01","05","044230","000343","26|01|05","01","01","02","35","35","01|01|02|35|35","National","Military Veterans","Administration","Strategic Planning, Policy Development, and Monitoring and Evaluation","Non-transfer item","Current","Current payments","Goods and services","Property payments","Property payments","Peace and security","Defence and state security","NAT",0,0,0,0,0,0,0,0,0,0,0,null,null,null,null,null,null,null,null,null,null,null,null,null,null,null,null,null,null,null,null,null,null,null,null,null,null,null,null,null,null,null,null,null,null,{"$f":"Dataset[[#This Row],[2024/25 From - Spending review Topic 1]]+Dataset[[#This Row],[2024/25 From - Spending review Topic 2]]+Dataset[[#This Row],[2024/25 From - Spending review Topic 3]]+Dataset[[#This Row],[2024/25 From - Spending review Topic 4]]+Dataset[[#This Row],[2024/25 From - Other reallocations]]","v":0},{"$f":"Dataset[[#This Row],[2025/26 From - Spending review Topic 1]]+Dataset[[#This Row],[2025/26 From - Spending review Topic 2]]+Dataset[[#This Row],[2025/26 From - Spending review Topic 3]]+Dataset[[#This Row],[2025/26 From - Spending review Topic 4]]+Dataset[[#This Row],[2025/26 From - Other reallocations]]","v":0},{"$f":"Dataset[[#This Row],[2026/27 From - Spending review Topic 1]]+Dataset[[#This Row],[2026/27 From - Spending review Topic 2]]+Dataset[[#This Row],[2026/27 From - Spending review Topic 3]]+Dataset[[#This Row],[2026/27 From - Spending review Topic 4]]+Dataset[[#This Row],[2026/27 From - Other reallocations]]","v":0},{"$f":"Dataset[[#This Row],[2024/25 To - Spending review Topic 1]]+Dataset[[#This Row],[2024/25 To - Spending review Topic 2]]+Dataset[[#This Row],[2024/25 To - Spending review Topic 3]]+Dataset[[#This Row],[2024/25 To - Spending review Topic 4]]+Dataset[[#This Row],[2024/25 To - Other reallocations]]","v":0},{"$f":"Dataset[[#This Row],[2025/26 To - Spending review Topic 1]]+Dataset[[#This Row],[2025/26 To - Spending review Topic 2]]+Dataset[[#This Row],[2025/26 To - Spending review Topic 3]]+Dataset[[#This Row],[2025/26 To - Spending review Topic 4]]+Dataset[[#This Row],[2025/26 To - Other reallocations]]","v":0},{"$f":"Dataset[[#This Row],[2026/27 To - Spending review Topic 1]]+Dataset[[#This Row],[2026/27 To - Spending review Topic 2]]+Dataset[[#This Row],[2026/27 To - Spending review Topic 3]]+Dataset[[#This Row],[2026/27 To - Spending review Topic 4]]+Dataset[[#This Row],[2026/27 To - Other reallocations]]","v":0},{"$f":"Dataset[[#This Row],[2024/25 Reduction]]+Dataset[[#This Row],[2024/25 From - Total]]","v":0},{"$f":"Dataset[[#This Row],[2025/26 Reduction]]+Dataset[[#This Row],[2025/26 From - Total]]","v":0},{"$f":"Dataset[[#This Row],[2026/27 Reduction]]+Dataset[[#This Row],[2026/27 From - Total]]","v":0},{"$f":"Dataset[[#This Row],[2023/24 Reduction]]","v":0},{"$f":"SUM(Dataset[[#This Row],[2024/25 Reduction]],Dataset[[#This Row],[2024/25 From - Total]],Dataset[[#This Row],[2024/25 To - Total]])","v":0},{"$f":"SUM(Dataset[[#This Row],[2025/26 Reduction]],Dataset[[#This Row],[2025/26 From - Total]],Dataset[[#This Row],[2025/26 To - Total]])","v":0},{"$f":"SUM(Dataset[[#This Row],[2026/27 Reduction]],Dataset[[#This Row],[2026/27 From - Total]],Dataset[[#This Row],[2026/27 To - Total]])","v":0},{"$f":"Dataset[[#This Row],[2023/24 Baseline]]+Dataset[[#This Row],[2023/24 Total change]]","v":0},{"$f":"Dataset[[#This Row],[2024/25 Baseline]]+Dataset[[#This Row],[2024/25 Total change]]","v":0},{"$f":"Dataset[[#This Row],[2025/26 Baseline]]+Dataset[[#This Row],[2025/26 Total change]]","v":0},{"$f":"Dataset[[#This Row],[2026/27 Baseline]]+Dataset[[#This Row],[2026/27 Total change]]","v":0}]
["NAT|Non-transfer item","26|Transport provided: Departmental activity","2024_25","MTEF2024",26,1,5,44231,344,"26","01","05","044231","000344","26|01|05","01","01","02","36","36","01|01|02|36|36","National","Military Veterans","Administration","Strategic Planning, Policy Development, and Monitoring and Evaluation","Non-transfer item","Current","Current payments","Goods and services","Transport provided: Departmental activity","Transport provided: Departmental activity","Peace and security","Defence and state security","NAT",0,0,0,0,0,0,0,0,0,0,0,null,null,null,null,null,null,null,null,null,null,null,null,null,null,null,null,null,null,null,null,null,null,null,null,null,null,null,null,null,null,null,null,null,null,{"$f":"Dataset[[#This Row],[2024/25 From - Spending review Topic 1]]+Dataset[[#This Row],[2024/25 From - Spending review Topic 2]]+Dataset[[#This Row],[2024/25 From - Spending review Topic 3]]+Dataset[[#This Row],[2024/25 From - Spending review Topic 4]]+Dataset[[#This Row],[2024/25 From - Other reallocations]]","v":0},{"$f":"Dataset[[#This Row],[2025/26 From - Spending review Topic 1]]+Dataset[[#This Row],[2025/26 From - Spending review Topic 2]]+Dataset[[#This Row],[2025/26 From - Spending review Topic 3]]+Dataset[[#This Row],[2025/26 From - Spending review Topic 4]]+Dataset[[#This Row],[2025/26 From - Other reallocations]]","v":0},{"$f":"Dataset[[#This Row],[2026/27 From - Spending review Topic 1]]+Dataset[[#This Row],[2026/27 From - Spending review Topic 2]]+Dataset[[#This Row],[2026/27 From - Spending review Topic 3]]+Dataset[[#This Row],[2026/27 From - Spending review Topic 4]]+Dataset[[#This Row],[2026/27 From - Other reallocations]]","v":0},{"$f":"Dataset[[#This Row],[2024/25 To - Spending review Topic 1]]+Dataset[[#This Row],[2024/25 To - Spending review Topic 2]]+Dataset[[#This Row],[2024/25 To - Spending review Topic 3]]+Dataset[[#This Row],[2024/25 To - Spending review Topic 4]]+Dataset[[#This Row],[2024/25 To - Other reallocations]]","v":0},{"$f":"Dataset[[#This Row],[2025/26 To - Spending review Topic 1]]+Dataset[[#This Row],[2025/26 To - Spending review Topic 2]]+Dataset[[#This Row],[2025/26 To - Spending review Topic 3]]+Dataset[[#This Row],[2025/26 To - Spending review Topic 4]]+Dataset[[#This Row],[2025/26 To - Other reallocations]]","v":0},{"$f":"Dataset[[#This Row],[2026/27 To - Spending review Topic 1]]+Dataset[[#This Row],[2026/27 To - Spending review Topic 2]]+Dataset[[#This Row],[2026/27 To - Spending review Topic 3]]+Dataset[[#This Row],[2026/27 To - Spending review Topic 4]]+Dataset[[#This Row],[2026/27 To - Other reallocations]]","v":0},{"$f":"Dataset[[#This Row],[2024/25 Reduction]]+Dataset[[#This Row],[2024/25 From - Total]]","v":0},{"$f":"Dataset[[#This Row],[2025/26 Reduction]]+Dataset[[#This Row],[2025/26 From - Total]]","v":0},{"$f":"Dataset[[#This Row],[2026/27 Reduction]]+Dataset[[#This Row],[2026/27 From - Total]]","v":0},{"$f":"Dataset[[#This Row],[2023/24 Reduction]]","v":0},{"$f":"SUM(Dataset[[#This Row],[2024/25 Reduction]],Dataset[[#This Row],[2024/25 From - Total]],Dataset[[#This Row],[2024/25 To - Total]])","v":0},{"$f":"SUM(Dataset[[#This Row],[2025/26 Reduction]],Dataset[[#This Row],[2025/26 From - Total]],Dataset[[#This Row],[2025/26 To - Total]])","v":0},{"$f":"SUM(Dataset[[#This Row],[2026/27 Reduction]],Dataset[[#This Row],[2026/27 From - Total]],Dataset[[#This Row],[2026/27 To - Total]])","v":0},{"$f":"Dataset[[#This Row],[2023/24 Baseline]]+Dataset[[#This Row],[2023/24 Total change]]","v":0},{"$f":"Dataset[[#This Row],[2024/25 Baseline]]+Dataset[[#This Row],[2024/25 Total change]]","v":0},{"$f":"Dataset[[#This Row],[2025/26 Baseline]]+Dataset[[#This Row],[2025/26 Total change]]","v":0},{"$f":"Dataset[[#This Row],[2026/27 Baseline]]+Dataset[[#This Row],[2026/27 Total change]]","v":0}]
["NAT|Non-transfer item","26|Travel and subsistence","2024_25","MTEF2024",26,1,5,44232,345,"26","01","05","044232","000345","26|01|05","01","01","02","37","37","01|01|02|37|37","National","Military Veterans","Administration","Strategic Planning, Policy Development, and Monitoring and Evaluation","Non-transfer item","Current","Current payments","Goods and services","Travel and subsistence","Travel and subsistence","Peace and security","Defence and state security","NAT",683,88,64,825,751,751,0,551,666,709,741,null,null,null,null,null,null,null,null,null,null,null,null,null,null,null,null,null,null,null,null,null,null,null,null,null,null,null,null,null,null,null,null,null,null,{"$f":"Dataset[[#This Row],[2024/25 From - Spending review Topic 1]]+Dataset[[#This Row],[2024/25 From - Spending review Topic 2]]+Dataset[[#This Row],[2024/25 From - Spending review Topic 3]]+Dataset[[#This Row],[2024/25 From - Spending review Topic 4]]+Dataset[[#This Row],[2024/25 From - Other reallocations]]","v":0},{"$f":"Dataset[[#This Row],[2025/26 From - Spending review Topic 1]]+Dataset[[#This Row],[2025/26 From - Spending review Topic 2]]+Dataset[[#This Row],[2025/26 From - Spending review Topic 3]]+Dataset[[#This Row],[2025/26 From - Spending review Topic 4]]+Dataset[[#This Row],[2025/26 From - Other reallocations]]","v":0},{"$f":"Dataset[[#This Row],[2026/27 From - Spending review Topic 1]]+Dataset[[#This Row],[2026/27 From - Spending review Topic 2]]+Dataset[[#This Row],[2026/27 From - Spending review Topic 3]]+Dataset[[#This Row],[2026/27 From - Spending review Topic 4]]+Dataset[[#This Row],[2026/27 From - Other reallocations]]","v":0},{"$f":"Dataset[[#This Row],[2024/25 To - Spending review Topic 1]]+Dataset[[#This Row],[2024/25 To - Spending review Topic 2]]+Dataset[[#This Row],[2024/25 To - Spending review Topic 3]]+Dataset[[#This Row],[2024/25 To - Spending review Topic 4]]+Dataset[[#This Row],[2024/25 To - Other reallocations]]","v":0},{"$f":"Dataset[[#This Row],[2025/26 To - Spending review Topic 1]]+Dataset[[#This Row],[2025/26 To - Spending review Topic 2]]+Dataset[[#This Row],[2025/26 To - Spending review Topic 3]]+Dataset[[#This Row],[2025/26 To - Spending review Topic 4]]+Dataset[[#This Row],[2025/26 To - Other reallocations]]","v":0},{"$f":"Dataset[[#This Row],[2026/27 To - Spending review Topic 1]]+Dataset[[#This Row],[2026/27 To - Spending review Topic 2]]+Dataset[[#This Row],[2026/27 To - Spending review Topic 3]]+Dataset[[#This Row],[2026/27 To - Spending review Topic 4]]+Dataset[[#This Row],[2026/27 To - Other reallocations]]","v":0},{"$f":"Dataset[[#This Row],[2024/25 Reduction]]+Dataset[[#This Row],[2024/25 From - Total]]","v":0},{"$f":"Dataset[[#This Row],[2025/26 Reduction]]+Dataset[[#This Row],[2025/26 From - Total]]","v":0},{"$f":"Dataset[[#This Row],[2026/27 Reduction]]+Dataset[[#This Row],[2026/27 From - Total]]","v":0},{"$f":"Dataset[[#This Row],[2023/24 Reduction]]","v":0},{"$f":"SUM(Dataset[[#This Row],[2024/25 Reduction]],Dataset[[#This Row],[2024/25 From - Total]],Dataset[[#This Row],[2024/25 To - Total]])","v":0},{"$f":"SUM(Dataset[[#This Row],[2025/26 Reduction]],Dataset[[#This Row],[2025/26 From - Total]],Dataset[[#This Row],[2025/26 To - Total]])","v":0},{"$f":"SUM(Dataset[[#This Row],[2026/27 Reduction]],Dataset[[#This Row],[2026/27 From - Total]],Dataset[[#This Row],[2026/27 To - Total]])","v":0},{"$f":"Dataset[[#This Row],[2023/24 Baseline]]+Dataset[[#This Row],[2023/24 Total change]]","v":551},{"$f":"Dataset[[#This Row],[2024/25 Baseline]]+Dataset[[#This Row],[2024/25 Total change]]","v":666},{"$f":"Dataset[[#This Row],[2025/26 Baseline]]+Dataset[[#This Row],[2025/26 Total change]]","v":709},{"$f":"Dataset[[#This Row],[2026/27 Baseline]]+Dataset[[#This Row],[2026/27 Total change]]","v":741}]
["NAT|Non-transfer item","26|Training and development","2024_25","MTEF2024",26,1,5,44233,346,"26","01","05","044233","000346","26|01|05","01","01","02","38","38","01|01|02|38|38","National","Military Veterans","Administration","Strategic Planning, Policy Development, and Monitoring and Evaluation","Non-transfer item","Current","Current payments","Goods and services","Training and development","Training and development","Peace and security","Defence and state security","NAT",0,0,0,0,0,0,0,0,0,0,0,null,null,null,null,null,null,null,null,null,null,null,null,null,null,null,null,null,null,null,null,null,null,null,null,null,null,null,null,null,null,null,null,null,null,{"$f":"Dataset[[#This Row],[2024/25 From - Spending review Topic 1]]+Dataset[[#This Row],[2024/25 From - Spending review Topic 2]]+Dataset[[#This Row],[2024/25 From - Spending review Topic 3]]+Dataset[[#This Row],[2024/25 From - Spending review Topic 4]]+Dataset[[#This Row],[2024/25 From - Other reallocations]]","v":0},{"$f":"Dataset[[#This Row],[2025/26 From - Spending review Topic 1]]+Dataset[[#This Row],[2025/26 From - Spending review Topic 2]]+Dataset[[#This Row],[2025/26 From - Spending review Topic 3]]+Dataset[[#This Row],[2025/26 From - Spending review Topic 4]]+Dataset[[#This Row],[2025/26 From - Other reallocations]]","v":0},{"$f":"Dataset[[#This Row],[2026/27 From - Spending review Topic 1]]+Dataset[[#This Row],[2026/27 From - Spending review Topic 2]]+Dataset[[#This Row],[2026/27 From - Spending review Topic 3]]+Dataset[[#This Row],[2026/27 From - Spending review Topic 4]]+Dataset[[#This Row],[2026/27 From - Other reallocations]]","v":0},{"$f":"Dataset[[#This Row],[2024/25 To - Spending review Topic 1]]+Dataset[[#This Row],[2024/25 To - Spending review Topic 2]]+Dataset[[#This Row],[2024/25 To - Spending review Topic 3]]+Dataset[[#This Row],[2024/25 To - Spending review Topic 4]]+Dataset[[#This Row],[2024/25 To - Other reallocations]]","v":0},{"$f":"Dataset[[#This Row],[2025/26 To - Spending review Topic 1]]+Dataset[[#This Row],[2025/26 To - Spending review Topic 2]]+Dataset[[#This Row],[2025/26 To - Spending review Topic 3]]+Dataset[[#This Row],[2025/26 To - Spending review Topic 4]]+Dataset[[#This Row],[2025/26 To - Other reallocations]]","v":0},{"$f":"Dataset[[#This Row],[2026/27 To - Spending review Topic 1]]+Dataset[[#This Row],[2026/27 To - Spending review Topic 2]]+Dataset[[#This Row],[2026/27 To - Spending review Topic 3]]+Dataset[[#This Row],[2026/27 To - Spending review Topic 4]]+Dataset[[#This Row],[2026/27 To - Other reallocations]]","v":0},{"$f":"Dataset[[#This Row],[2024/25 Reduction]]+Dataset[[#This Row],[2024/25 From - Total]]","v":0},{"$f":"Dataset[[#This Row],[2025/26 Reduction]]+Dataset[[#This Row],[2025/26 From - Total]]","v":0},{"$f":"Dataset[[#This Row],[2026/27 Reduction]]+Dataset[[#This Row],[2026/27 From - Total]]","v":0},{"$f":"Dataset[[#This Row],[2023/24 Reduction]]","v":0},{"$f":"SUM(Dataset[[#This Row],[2024/25 Reduction]],Dataset[[#This Row],[2024/25 From - Total]],Dataset[[#This Row],[2024/25 To - Total]])","v":0},{"$f":"SUM(Dataset[[#This Row],[2025/26 Reduction]],Dataset[[#This Row],[2025/26 From - Total]],Dataset[[#This Row],[2025/26 To - Total]])","v":0},{"$f":"SUM(Dataset[[#This Row],[2026/27 Reduction]],Dataset[[#This Row],[2026/27 From - Total]],Dataset[[#This Row],[2026/27 To - Total]])","v":0},{"$f":"Dataset[[#This Row],[2023/24 Baseline]]+Dataset[[#This Row],[2023/24 Total change]]","v":0},{"$f":"Dataset[[#This Row],[2024/25 Baseline]]+Dataset[[#This Row],[2024/25 Total change]]","v":0},{"$f":"Dataset[[#This Row],[2025/26 Baseline]]+Dataset[[#This Row],[2025/26 Total change]]","v":0},{"$f":"Dataset[[#This Row],[2026/27 Baseline]]+Dataset[[#This Row],[2026/27 Total change]]","v":0}]
["NAT|Non-transfer item","26|Operating payments","2024_25","MTEF2024",26,1,5,44234,347,"26","01","05","044234","000347","26|01|05","01","01","02","39","39","01|01|02|39|39","National","Military Veterans","Administration","Strategic Planning, Policy Development, and Monitoring and Evaluation","Non-transfer item","Current","Current payments","Goods and services","Operating payments","Operating payments","Peace and security","Defence and state security","NAT",0,0,0,0,0,0,0,0,0,0,0,null,null,null,null,null,null,null,null,null,null,null,null,null,null,null,null,null,null,null,null,null,null,null,null,null,null,null,null,null,null,null,null,null,null,{"$f":"Dataset[[#This Row],[2024/25 From - Spending review Topic 1]]+Dataset[[#This Row],[2024/25 From - Spending review Topic 2]]+Dataset[[#This Row],[2024/25 From - Spending review Topic 3]]+Dataset[[#This Row],[2024/25 From - Spending review Topic 4]]+Dataset[[#This Row],[2024/25 From - Other reallocations]]","v":0},{"$f":"Dataset[[#This Row],[2025/26 From - Spending review Topic 1]]+Dataset[[#This Row],[2025/26 From - Spending review Topic 2]]+Dataset[[#This Row],[2025/26 From - Spending review Topic 3]]+Dataset[[#This Row],[2025/26 From - Spending review Topic 4]]+Dataset[[#This Row],[2025/26 From - Other reallocations]]","v":0},{"$f":"Dataset[[#This Row],[2026/27 From - Spending review Topic 1]]+Dataset[[#This Row],[2026/27 From - Spending review Topic 2]]+Dataset[[#This Row],[2026/27 From - Spending review Topic 3]]+Dataset[[#This Row],[2026/27 From - Spending review Topic 4]]+Dataset[[#This Row],[2026/27 From - Other reallocations]]","v":0},{"$f":"Dataset[[#This Row],[2024/25 To - Spending review Topic 1]]+Dataset[[#This Row],[2024/25 To - Spending review Topic 2]]+Dataset[[#This Row],[2024/25 To - Spending review Topic 3]]+Dataset[[#This Row],[2024/25 To - Spending review Topic 4]]+Dataset[[#This Row],[2024/25 To - Other reallocations]]","v":0},{"$f":"Dataset[[#This Row],[2025/26 To - Spending review Topic 1]]+Dataset[[#This Row],[2025/26 To - Spending review Topic 2]]+Dataset[[#This Row],[2025/26 To - Spending review Topic 3]]+Dataset[[#This Row],[2025/26 To - Spending review Topic 4]]+Dataset[[#This Row],[2025/26 To - Other reallocations]]","v":0},{"$f":"Dataset[[#This Row],[2026/27 To - Spending review Topic 1]]+Dataset[[#This Row],[2026/27 To - Spending review Topic 2]]+Dataset[[#This Row],[2026/27 To - Spending review Topic 3]]+Dataset[[#This Row],[2026/27 To - Spending review Topic 4]]+Dataset[[#This Row],[2026/27 To - Other reallocations]]","v":0},{"$f":"Dataset[[#This Row],[2024/25 Reduction]]+Dataset[[#This Row],[2024/25 From - Total]]","v":0},{"$f":"Dataset[[#This Row],[2025/26 Reduction]]+Dataset[[#This Row],[2025/26 From - Total]]","v":0},{"$f":"Dataset[[#This Row],[2026/27 Reduction]]+Dataset[[#This Row],[2026/27 From - Total]]","v":0},{"$f":"Dataset[[#This Row],[2023/24 Reduction]]","v":0},{"$f":"SUM(Dataset[[#This Row],[2024/25 Reduction]],Dataset[[#This Row],[2024/25 From - Total]],Dataset[[#This Row],[2024/25 To - Total]])","v":0},{"$f":"SUM(Dataset[[#This Row],[2025/26 Reduction]],Dataset[[#This Row],[2025/26 From - Total]],Dataset[[#This Row],[2025/26 To - Total]])","v":0},{"$f":"SUM(Dataset[[#This Row],[2026/27 Reduction]],Dataset[[#This Row],[2026/27 From - Total]],Dataset[[#This Row],[2026/27 To - Total]])","v":0},{"$f":"Dataset[[#This Row],[2023/24 Baseline]]+Dataset[[#This Row],[2023/24 Total change]]","v":0},{"$f":"Dataset[[#This Row],[2024/25 Baseline]]+Dataset[[#This Row],[2024/25 Total change]]","v":0},{"$f":"Dataset[[#This Row],[2025/26 Baseline]]+Dataset[[#This Row],[2025/26 Total change]]","v":0},{"$f":"Dataset[[#This Row],[2026/27 Baseline]]+Dataset[[#This Row],[2026/27 Total change]]","v":0}]
["NAT|Non-transfer item","26|Venues and facilities","2024_25","MTEF2024",26,1,5,44235,348,"26","01","05","044235","000348","26|01|05","01","01","02","40","40","01|01|02|40|40","National","Military Veterans","Administration","Strategic Planning, Policy Development, and Monitoring and Evaluation","Non-transfer item","Current","Current payments","Goods and services","Venues and facilities","Venues and facilities","Peace and security","Defence and state security","NAT",86,60,2,725,225,225,0,255,386,426,446,null,null,null,null,null,null,null,null,null,null,null,null,null,null,null,null,null,null,null,null,null,null,null,null,null,null,null,null,null,null,null,null,null,null,{"$f":"Dataset[[#This Row],[2024/25 From - Spending review Topic 1]]+Dataset[[#This Row],[2024/25 From - Spending review Topic 2]]+Dataset[[#This Row],[2024/25 From - Spending review Topic 3]]+Dataset[[#This Row],[2024/25 From - Spending review Topic 4]]+Dataset[[#This Row],[2024/25 From - Other reallocations]]","v":0},{"$f":"Dataset[[#This Row],[2025/26 From - Spending review Topic 1]]+Dataset[[#This Row],[2025/26 From - Spending review Topic 2]]+Dataset[[#This Row],[2025/26 From - Spending review Topic 3]]+Dataset[[#This Row],[2025/26 From - Spending review Topic 4]]+Dataset[[#This Row],[2025/26 From - Other reallocations]]","v":0},{"$f":"Dataset[[#This Row],[2026/27 From - Spending review Topic 1]]+Dataset[[#This Row],[2026/27 From - Spending review Topic 2]]+Dataset[[#This Row],[2026/27 From - Spending review Topic 3]]+Dataset[[#This Row],[2026/27 From - Spending review Topic 4]]+Dataset[[#This Row],[2026/27 From - Other reallocations]]","v":0},{"$f":"Dataset[[#This Row],[2024/25 To - Spending review Topic 1]]+Dataset[[#This Row],[2024/25 To - Spending review Topic 2]]+Dataset[[#This Row],[2024/25 To - Spending review Topic 3]]+Dataset[[#This Row],[2024/25 To - Spending review Topic 4]]+Dataset[[#This Row],[2024/25 To - Other reallocations]]","v":0},{"$f":"Dataset[[#This Row],[2025/26 To - Spending review Topic 1]]+Dataset[[#This Row],[2025/26 To - Spending review Topic 2]]+Dataset[[#This Row],[2025/26 To - Spending review Topic 3]]+Dataset[[#This Row],[2025/26 To - Spending review Topic 4]]+Dataset[[#This Row],[2025/26 To - Other reallocations]]","v":0},{"$f":"Dataset[[#This Row],[2026/27 To - Spending review Topic 1]]+Dataset[[#This Row],[2026/27 To - Spending review Topic 2]]+Dataset[[#This Row],[2026/27 To - Spending review Topic 3]]+Dataset[[#This Row],[2026/27 To - Spending review Topic 4]]+Dataset[[#This Row],[2026/27 To - Other reallocations]]","v":0},{"$f":"Dataset[[#This Row],[2024/25 Reduction]]+Dataset[[#This Row],[2024/25 From - Total]]","v":0},{"$f":"Dataset[[#This Row],[2025/26 Reduction]]+Dataset[[#This Row],[2025/26 From - Total]]","v":0},{"$f":"Dataset[[#This Row],[2026/27 Reduction]]+Dataset[[#This Row],[2026/27 From - Total]]","v":0},{"$f":"Dataset[[#This Row],[2023/24 Reduction]]","v":0},{"$f":"SUM(Dataset[[#This Row],[2024/25 Reduction]],Dataset[[#This Row],[2024/25 From - Total]],Dataset[[#This Row],[2024/25 To - Total]])","v":0},{"$f":"SUM(Dataset[[#This Row],[2025/26 Reduction]],Dataset[[#This Row],[2025/26 From - Total]],Dataset[[#This Row],[2025/26 To - Total]])","v":0},{"$f":"SUM(Dataset[[#This Row],[2026/27 Reduction]],Dataset[[#This Row],[2026/27 From - Total]],Dataset[[#This Row],[2026/27 To - Total]])","v":0},{"$f":"Dataset[[#This Row],[2023/24 Baseline]]+Dataset[[#This Row],[2023/24 Total change]]","v":255},{"$f":"Dataset[[#This Row],[2024/25 Baseline]]+Dataset[[#This Row],[2024/25 Total change]]","v":386},{"$f":"Dataset[[#This Row],[2025/26 Baseline]]+Dataset[[#This Row],[2025/26 Total change]]","v":426},{"$f":"Dataset[[#This Row],[2026/27 Baseline]]+Dataset[[#This Row],[2026/27 Total change]]","v":446}]
["NAT|Non-transfer item","26|Interest (Incl. interest on unitary payments (PPP))","2024_25","MTEF2024",26,1,5,44236,349,"26","01","05","044236","000349","26|01|05","01","01","03","41","41","01|01|03|41|41","National","Military Veterans","Administration","Strategic Planning, Policy Development, and Monitoring and Evaluation","Non-transfer item","Current","Current payments","Interest and rent on land","Interest (Incl. interest on unitary payments (PPP))","Interest (Incl. interest on unitary payments (PPP))","Peace and security","Defence and state security","NAT",0,0,0,0,0,0,0,0,0,0,0,null,null,null,null,null,null,null,null,null,null,null,null,null,null,null,null,null,null,null,null,null,null,null,null,null,null,null,null,null,null,null,null,null,null,{"$f":"Dataset[[#This Row],[2024/25 From - Spending review Topic 1]]+Dataset[[#This Row],[2024/25 From - Spending review Topic 2]]+Dataset[[#This Row],[2024/25 From - Spending review Topic 3]]+Dataset[[#This Row],[2024/25 From - Spending review Topic 4]]+Dataset[[#This Row],[2024/25 From - Other reallocations]]","v":0},{"$f":"Dataset[[#This Row],[2025/26 From - Spending review Topic 1]]+Dataset[[#This Row],[2025/26 From - Spending review Topic 2]]+Dataset[[#This Row],[2025/26 From - Spending review Topic 3]]+Dataset[[#This Row],[2025/26 From - Spending review Topic 4]]+Dataset[[#This Row],[2025/26 From - Other reallocations]]","v":0},{"$f":"Dataset[[#This Row],[2026/27 From - Spending review Topic 1]]+Dataset[[#This Row],[2026/27 From - Spending review Topic 2]]+Dataset[[#This Row],[2026/27 From - Spending review Topic 3]]+Dataset[[#This Row],[2026/27 From - Spending review Topic 4]]+Dataset[[#This Row],[2026/27 From - Other reallocations]]","v":0},{"$f":"Dataset[[#This Row],[2024/25 To - Spending review Topic 1]]+Dataset[[#This Row],[2024/25 To - Spending review Topic 2]]+Dataset[[#This Row],[2024/25 To - Spending review Topic 3]]+Dataset[[#This Row],[2024/25 To - Spending review Topic 4]]+Dataset[[#This Row],[2024/25 To - Other reallocations]]","v":0},{"$f":"Dataset[[#This Row],[2025/26 To - Spending review Topic 1]]+Dataset[[#This Row],[2025/26 To - Spending review Topic 2]]+Dataset[[#This Row],[2025/26 To - Spending review Topic 3]]+Dataset[[#This Row],[2025/26 To - Spending review Topic 4]]+Dataset[[#This Row],[2025/26 To - Other reallocations]]","v":0},{"$f":"Dataset[[#This Row],[2026/27 To - Spending review Topic 1]]+Dataset[[#This Row],[2026/27 To - Spending review Topic 2]]+Dataset[[#This Row],[2026/27 To - Spending review Topic 3]]+Dataset[[#This Row],[2026/27 To - Spending review Topic 4]]+Dataset[[#This Row],[2026/27 To - Other reallocations]]","v":0},{"$f":"Dataset[[#This Row],[2024/25 Reduction]]+Dataset[[#This Row],[2024/25 From - Total]]","v":0},{"$f":"Dataset[[#This Row],[2025/26 Reduction]]+Dataset[[#This Row],[2025/26 From - Total]]","v":0},{"$f":"Dataset[[#This Row],[2026/27 Reduction]]+Dataset[[#This Row],[2026/27 From - Total]]","v":0},{"$f":"Dataset[[#This Row],[2023/24 Reduction]]","v":0},{"$f":"SUM(Dataset[[#This Row],[2024/25 Reduction]],Dataset[[#This Row],[2024/25 From - Total]],Dataset[[#This Row],[2024/25 To - Total]])","v":0},{"$f":"SUM(Dataset[[#This Row],[2025/26 Reduction]],Dataset[[#This Row],[2025/26 From - Total]],Dataset[[#This Row],[2025/26 To - Total]])","v":0},{"$f":"SUM(Dataset[[#This Row],[2026/27 Reduction]],Dataset[[#This Row],[2026/27 From - Total]],Dataset[[#This Row],[2026/27 To - Total]])","v":0},{"$f":"Dataset[[#This Row],[2023/24 Baseline]]+Dataset[[#This Row],[2023/24 Total change]]","v":0},{"$f":"Dataset[[#This Row],[2024/25 Baseline]]+Dataset[[#This Row],[2024/25 Total change]]","v":0},{"$f":"Dataset[[#This Row],[2025/26 Baseline]]+Dataset[[#This Row],[2025/26 Total change]]","v":0},{"$f":"Dataset[[#This Row],[2026/27 Baseline]]+Dataset[[#This Row],[2026/27 Total change]]","v":0}]
["NAT|Non-transfer item","26|Rent on land","2024_25","MTEF2024",26,1,5,44237,350,"26","01","05","044237","000350","26|01|05","01","01","03","42","42","01|01|03|42|42","National","Military Veterans","Administration","Strategic Planning, Policy Development, and Monitoring and Evaluation","Non-transfer item","Current","Current payments","Interest and rent on land","Rent on land","Rent on land","Peace and security","Defence and state security","NAT",0,0,0,0,0,0,0,0,0,0,0,null,null,null,null,null,null,null,null,null,null,null,null,null,null,null,null,null,null,null,null,null,null,null,null,null,null,null,null,null,null,null,null,null,null,{"$f":"Dataset[[#This Row],[2024/25 From - Spending review Topic 1]]+Dataset[[#This Row],[2024/25 From - Spending review Topic 2]]+Dataset[[#This Row],[2024/25 From - Spending review Topic 3]]+Dataset[[#This Row],[2024/25 From - Spending review Topic 4]]+Dataset[[#This Row],[2024/25 From - Other reallocations]]","v":0},{"$f":"Dataset[[#This Row],[2025/26 From - Spending review Topic 1]]+Dataset[[#This Row],[2025/26 From - Spending review Topic 2]]+Dataset[[#This Row],[2025/26 From - Spending review Topic 3]]+Dataset[[#This Row],[2025/26 From - Spending review Topic 4]]+Dataset[[#This Row],[2025/26 From - Other reallocations]]","v":0},{"$f":"Dataset[[#This Row],[2026/27 From - Spending review Topic 1]]+Dataset[[#This Row],[2026/27 From - Spending review Topic 2]]+Dataset[[#This Row],[2026/27 From - Spending review Topic 3]]+Dataset[[#This Row],[2026/27 From - Spending review Topic 4]]+Dataset[[#This Row],[2026/27 From - Other reallocations]]","v":0},{"$f":"Dataset[[#This Row],[2024/25 To - Spending review Topic 1]]+Dataset[[#This Row],[2024/25 To - Spending review Topic 2]]+Dataset[[#This Row],[2024/25 To - Spending review Topic 3]]+Dataset[[#This Row],[2024/25 To - Spending review Topic 4]]+Dataset[[#This Row],[2024/25 To - Other reallocations]]","v":0},{"$f":"Dataset[[#This Row],[2025/26 To - Spending review Topic 1]]+Dataset[[#This Row],[2025/26 To - Spending review Topic 2]]+Dataset[[#This Row],[2025/26 To - Spending review Topic 3]]+Dataset[[#This Row],[2025/26 To - Spending review Topic 4]]+Dataset[[#This Row],[2025/26 To - Other reallocations]]","v":0},{"$f":"Dataset[[#This Row],[2026/27 To - Spending review Topic 1]]+Dataset[[#This Row],[2026/27 To - Spending review Topic 2]]+Dataset[[#This Row],[2026/27 To - Spending review Topic 3]]+Dataset[[#This Row],[2026/27 To - Spending review Topic 4]]+Dataset[[#This Row],[2026/27 To - Other reallocations]]","v":0},{"$f":"Dataset[[#This Row],[2024/25 Reduction]]+Dataset[[#This Row],[2024/25 From - Total]]","v":0},{"$f":"Dataset[[#This Row],[2025/26 Reduction]]+Dataset[[#This Row],[2025/26 From - Total]]","v":0},{"$f":"Dataset[[#This Row],[2026/27 Reduction]]+Dataset[[#This Row],[2026/27 From - Total]]","v":0},{"$f":"Dataset[[#This Row],[2023/24 Reduction]]","v":0},{"$f":"SUM(Dataset[[#This Row],[2024/25 Reduction]],Dataset[[#This Row],[2024/25 From - Total]],Dataset[[#This Row],[2024/25 To - Total]])","v":0},{"$f":"SUM(Dataset[[#This Row],[2025/26 Reduction]],Dataset[[#This Row],[2025/26 From - Total]],Dataset[[#This Row],[2025/26 To - Total]])","v":0},{"$f":"SUM(Dataset[[#This Row],[2026/27 Reduction]],Dataset[[#This Row],[2026/27 From - Total]],Dataset[[#This Row],[2026/27 To - Total]])","v":0},{"$f":"Dataset[[#This Row],[2023/24 Baseline]]+Dataset[[#This Row],[2023/24 Total change]]","v":0},{"$f":"Dataset[[#This Row],[2024/25 Baseline]]+Dataset[[#This Row],[2024/25 Total change]]","v":0},{"$f":"Dataset[[#This Row],[2025/26 Baseline]]+Dataset[[#This Row],[2025/26 Total change]]","v":0},{"$f":"Dataset[[#This Row],[2026/27 Baseline]]+Dataset[[#This Row],[2026/27 Total change]]","v":0}]
["NAT|Non-transfer item","26|Provincial Revenue Funds","2024_25","MTEF2024",26,1,5,44238,351,"26","01","05","044238","000351","26|01|05","01","02","04","43","43","01|02|04|43|43","National","Military Veterans","Administration","Strategic Planning, Policy Development, and Monitoring and Evaluation","Non-transfer item","Current","Transfers and subsidies","Provinces and municipalities","Provinces","Provincial Revenue Funds","Peace and security","Defence and state security","NAT",0,0,0,0,0,0,0,0,0,0,0,null,null,null,null,null,null,null,null,null,null,null,null,null,null,null,null,null,null,null,null,null,null,null,null,null,null,null,null,null,null,null,null,null,null,{"$f":"Dataset[[#This Row],[2024/25 From - Spending review Topic 1]]+Dataset[[#This Row],[2024/25 From - Spending review Topic 2]]+Dataset[[#This Row],[2024/25 From - Spending review Topic 3]]+Dataset[[#This Row],[2024/25 From - Spending review Topic 4]]+Dataset[[#This Row],[2024/25 From - Other reallocations]]","v":0},{"$f":"Dataset[[#This Row],[2025/26 From - Spending review Topic 1]]+Dataset[[#This Row],[2025/26 From - Spending review Topic 2]]+Dataset[[#This Row],[2025/26 From - Spending review Topic 3]]+Dataset[[#This Row],[2025/26 From - Spending review Topic 4]]+Dataset[[#This Row],[2025/26 From - Other reallocations]]","v":0},{"$f":"Dataset[[#This Row],[2026/27 From - Spending review Topic 1]]+Dataset[[#This Row],[2026/27 From - Spending review Topic 2]]+Dataset[[#This Row],[2026/27 From - Spending review Topic 3]]+Dataset[[#This Row],[2026/27 From - Spending review Topic 4]]+Dataset[[#This Row],[2026/27 From - Other reallocations]]","v":0},{"$f":"Dataset[[#This Row],[2024/25 To - Spending review Topic 1]]+Dataset[[#This Row],[2024/25 To - Spending review Topic 2]]+Dataset[[#This Row],[2024/25 To - Spending review Topic 3]]+Dataset[[#This Row],[2024/25 To - Spending review Topic 4]]+Dataset[[#This Row],[2024/25 To - Other reallocations]]","v":0},{"$f":"Dataset[[#This Row],[2025/26 To - Spending review Topic 1]]+Dataset[[#This Row],[2025/26 To - Spending review Topic 2]]+Dataset[[#This Row],[2025/26 To - Spending review Topic 3]]+Dataset[[#This Row],[2025/26 To - Spending review Topic 4]]+Dataset[[#This Row],[2025/26 To - Other reallocations]]","v":0},{"$f":"Dataset[[#This Row],[2026/27 To - Spending review Topic 1]]+Dataset[[#This Row],[2026/27 To - Spending review Topic 2]]+Dataset[[#This Row],[2026/27 To - Spending review Topic 3]]+Dataset[[#This Row],[2026/27 To - Spending review Topic 4]]+Dataset[[#This Row],[2026/27 To - Other reallocations]]","v":0},{"$f":"Dataset[[#This Row],[2024/25 Reduction]]+Dataset[[#This Row],[2024/25 From - Total]]","v":0},{"$f":"Dataset[[#This Row],[2025/26 Reduction]]+Dataset[[#This Row],[2025/26 From - Total]]","v":0},{"$f":"Dataset[[#This Row],[2026/27 Reduction]]+Dataset[[#This Row],[2026/27 From - Total]]","v":0},{"$f":"Dataset[[#This Row],[2023/24 Reduction]]","v":0},{"$f":"SUM(Dataset[[#This Row],[2024/25 Reduction]],Dataset[[#This Row],[2024/25 From - Total]],Dataset[[#This Row],[2024/25 To - Total]])","v":0},{"$f":"SUM(Dataset[[#This Row],[2025/26 Reduction]],Dataset[[#This Row],[2025/26 From - Total]],Dataset[[#This Row],[2025/26 To - Total]])","v":0},{"$f":"SUM(Dataset[[#This Row],[2026/27 Reduction]],Dataset[[#This Row],[2026/27 From - Total]],Dataset[[#This Row],[2026/27 To - Total]])","v":0},{"$f":"Dataset[[#This Row],[2023/24 Baseline]]+Dataset[[#This Row],[2023/24 Total change]]","v":0},{"$f":"Dataset[[#This Row],[2024/25 Baseline]]+Dataset[[#This Row],[2024/25 Total change]]","v":0},{"$f":"Dataset[[#This Row],[2025/26 Baseline]]+Dataset[[#This Row],[2025/26 Total change]]","v":0},{"$f":"Dataset[[#This Row],[2026/27 Baseline]]+Dataset[[#This Row],[2026/27 Total change]]","v":0}]
["NAT|Non-transfer item","26|Provincial agencies and funds","2024_25","MTEF2024",26,1,5,44239,352,"26","01","05","044239","000352","26|01|05","01","02","04","43","44","01|02|04|43|44","National","Military Veterans","Administration","Strategic Planning, Policy Development, and Monitoring and Evaluation","Non-transfer item","Current","Transfers and subsidies","Provinces and municipalities","Provinces","Provincial agencies and funds","Peace and security","Defence and state security","NAT",0,0,0,0,0,0,0,0,0,0,0,null,null,null,null,null,null,null,null,null,null,null,null,null,null,null,null,null,null,null,null,null,null,null,null,null,null,null,null,null,null,null,null,null,null,{"$f":"Dataset[[#This Row],[2024/25 From - Spending review Topic 1]]+Dataset[[#This Row],[2024/25 From - Spending review Topic 2]]+Dataset[[#This Row],[2024/25 From - Spending review Topic 3]]+Dataset[[#This Row],[2024/25 From - Spending review Topic 4]]+Dataset[[#This Row],[2024/25 From - Other reallocations]]","v":0},{"$f":"Dataset[[#This Row],[2025/26 From - Spending review Topic 1]]+Dataset[[#This Row],[2025/26 From - Spending review Topic 2]]+Dataset[[#This Row],[2025/26 From - Spending review Topic 3]]+Dataset[[#This Row],[2025/26 From - Spending review Topic 4]]+Dataset[[#This Row],[2025/26 From - Other reallocations]]","v":0},{"$f":"Dataset[[#This Row],[2026/27 From - Spending review Topic 1]]+Dataset[[#This Row],[2026/27 From - Spending review Topic 2]]+Dataset[[#This Row],[2026/27 From - Spending review Topic 3]]+Dataset[[#This Row],[2026/27 From - Spending review Topic 4]]+Dataset[[#This Row],[2026/27 From - Other reallocations]]","v":0},{"$f":"Dataset[[#This Row],[2024/25 To - Spending review Topic 1]]+Dataset[[#This Row],[2024/25 To - Spending review Topic 2]]+Dataset[[#This Row],[2024/25 To - Spending review Topic 3]]+Dataset[[#This Row],[2024/25 To - Spending review Topic 4]]+Dataset[[#This Row],[2024/25 To - Other reallocations]]","v":0},{"$f":"Dataset[[#This Row],[2025/26 To - Spending review Topic 1]]+Dataset[[#This Row],[2025/26 To - Spending review Topic 2]]+Dataset[[#This Row],[2025/26 To - Spending review Topic 3]]+Dataset[[#This Row],[2025/26 To - Spending review Topic 4]]+Dataset[[#This Row],[2025/26 To - Other reallocations]]","v":0},{"$f":"Dataset[[#This Row],[2026/27 To - Spending review Topic 1]]+Dataset[[#This Row],[2026/27 To - Spending review Topic 2]]+Dataset[[#This Row],[2026/27 To - Spending review Topic 3]]+Dataset[[#This Row],[2026/27 To - Spending review Topic 4]]+Dataset[[#This Row],[2026/27 To - Other reallocations]]","v":0},{"$f":"Dataset[[#This Row],[2024/25 Reduction]]+Dataset[[#This Row],[2024/25 From - Total]]","v":0},{"$f":"Dataset[[#This Row],[2025/26 Reduction]]+Dataset[[#This Row],[2025/26 From - Total]]","v":0},{"$f":"Dataset[[#This Row],[2026/27 Reduction]]+Dataset[[#This Row],[2026/27 From - Total]]","v":0},{"$f":"Dataset[[#This Row],[2023/24 Reduction]]","v":0},{"$f":"SUM(Dataset[[#This Row],[2024/25 Reduction]],Dataset[[#This Row],[2024/25 From - Total]],Dataset[[#This Row],[2024/25 To - Total]])","v":0},{"$f":"SUM(Dataset[[#This Row],[2025/26 Reduction]],Dataset[[#This Row],[2025/26 From - Total]],Dataset[[#This Row],[2025/26 To - Total]])","v":0},{"$f":"SUM(Dataset[[#This Row],[2026/27 Reduction]],Dataset[[#This Row],[2026/27 From - Total]],Dataset[[#This Row],[2026/27 To - Total]])","v":0},{"$f":"Dataset[[#This Row],[2023/24 Baseline]]+Dataset[[#This Row],[2023/24 Total change]]","v":0},{"$f":"Dataset[[#This Row],[2024/25 Baseline]]+Dataset[[#This Row],[2024/25 Total change]]","v":0},{"$f":"Dataset[[#This Row],[2025/26 Baseline]]+Dataset[[#This Row],[2025/26 Total change]]","v":0},{"$f":"Dataset[[#This Row],[2026/27 Baseline]]+Dataset[[#This Row],[2026/27 Total change]]","v":0}]
["NAT|Non-transfer item","26|Municipal bank accounts","2024_25","MTEF2024",26,1,5,44240,353,"26","01","05","044240","000353","26|01|05","01","02","04","44","45","01|02|04|44|45","National","Military Veterans","Administration","Strategic Planning, Policy Development, and Monitoring and Evaluation","Non-transfer item","Current","Transfers and subsidies","Provinces and municipalities","Municipalities","Municipal bank accounts","Peace and security","Defence and state security","NAT",0,0,0,0,0,0,0,0,0,0,0,null,null,null,null,null,null,null,null,null,null,null,null,null,null,null,null,null,null,null,null,null,null,null,null,null,null,null,null,null,null,null,null,null,null,{"$f":"Dataset[[#This Row],[2024/25 From - Spending review Topic 1]]+Dataset[[#This Row],[2024/25 From - Spending review Topic 2]]+Dataset[[#This Row],[2024/25 From - Spending review Topic 3]]+Dataset[[#This Row],[2024/25 From - Spending review Topic 4]]+Dataset[[#This Row],[2024/25 From - Other reallocations]]","v":0},{"$f":"Dataset[[#This Row],[2025/26 From - Spending review Topic 1]]+Dataset[[#This Row],[2025/26 From - Spending review Topic 2]]+Dataset[[#This Row],[2025/26 From - Spending review Topic 3]]+Dataset[[#This Row],[2025/26 From - Spending review Topic 4]]+Dataset[[#This Row],[2025/26 From - Other reallocations]]","v":0},{"$f":"Dataset[[#This Row],[2026/27 From - Spending review Topic 1]]+Dataset[[#This Row],[2026/27 From - Spending review Topic 2]]+Dataset[[#This Row],[2026/27 From - Spending review Topic 3]]+Dataset[[#This Row],[2026/27 From - Spending review Topic 4]]+Dataset[[#This Row],[2026/27 From - Other reallocations]]","v":0},{"$f":"Dataset[[#This Row],[2024/25 To - Spending review Topic 1]]+Dataset[[#This Row],[2024/25 To - Spending review Topic 2]]+Dataset[[#This Row],[2024/25 To - Spending review Topic 3]]+Dataset[[#This Row],[2024/25 To - Spending review Topic 4]]+Dataset[[#This Row],[2024/25 To - Other reallocations]]","v":0},{"$f":"Dataset[[#This Row],[2025/26 To - Spending review Topic 1]]+Dataset[[#This Row],[2025/26 To - Spending review Topic 2]]+Dataset[[#This Row],[2025/26 To - Spending review Topic 3]]+Dataset[[#This Row],[2025/26 To - Spending review Topic 4]]+Dataset[[#This Row],[2025/26 To - Other reallocations]]","v":0},{"$f":"Dataset[[#This Row],[2026/27 To - Spending review Topic 1]]+Dataset[[#This Row],[2026/27 To - Spending review Topic 2]]+Dataset[[#This Row],[2026/27 To - Spending review Topic 3]]+Dataset[[#This Row],[2026/27 To - Spending review Topic 4]]+Dataset[[#This Row],[2026/27 To - Other reallocations]]","v":0},{"$f":"Dataset[[#This Row],[2024/25 Reduction]]+Dataset[[#This Row],[2024/25 From - Total]]","v":0},{"$f":"Dataset[[#This Row],[2025/26 Reduction]]+Dataset[[#This Row],[2025/26 From - Total]]","v":0},{"$f":"Dataset[[#This Row],[2026/27 Reduction]]+Dataset[[#This Row],[2026/27 From - Total]]","v":0},{"$f":"Dataset[[#This Row],[2023/24 Reduction]]","v":0},{"$f":"SUM(Dataset[[#This Row],[2024/25 Reduction]],Dataset[[#This Row],[2024/25 From - Total]],Dataset[[#This Row],[2024/25 To - Total]])","v":0},{"$f":"SUM(Dataset[[#This Row],[2025/26 Reduction]],Dataset[[#This Row],[2025/26 From - Total]],Dataset[[#This Row],[2025/26 To - Total]])","v":0},{"$f":"SUM(Dataset[[#This Row],[2026/27 Reduction]],Dataset[[#This Row],[2026/27 From - Total]],Dataset[[#This Row],[2026/27 To - Total]])","v":0},{"$f":"Dataset[[#This Row],[2023/24 Baseline]]+Dataset[[#This Row],[2023/24 Total change]]","v":0},{"$f":"Dataset[[#This Row],[2024/25 Baseline]]+Dataset[[#This Row],[2024/25 Total change]]","v":0},{"$f":"Dataset[[#This Row],[2025/26 Baseline]]+Dataset[[#This Row],[2025/26 Total change]]","v":0},{"$f":"Dataset[[#This Row],[2026/27 Baseline]]+Dataset[[#This Row],[2026/27 Total change]]","v":0}]
["NAT|Non-transfer item","26|Municipal agencies and funds","2024_25","MTEF2024",26,1,5,44241,354,"26","01","05","044241","000354","26|01|05","01","02","04","44","46","01|02|04|44|46","National","Military Veterans","Administration","Strategic Planning, Policy Development, and Monitoring and Evaluation","Non-transfer item","Current","Transfers and subsidies","Provinces and municipalities","Municipalities","Municipal agencies and funds","Peace and security","Defence and state security","NAT",0,0,0,0,0,0,0,0,0,0,0,null,null,null,null,null,null,null,null,null,null,null,null,null,null,null,null,null,null,null,null,null,null,null,null,null,null,null,null,null,null,null,null,null,null,{"$f":"Dataset[[#This Row],[2024/25 From - Spending review Topic 1]]+Dataset[[#This Row],[2024/25 From - Spending review Topic 2]]+Dataset[[#This Row],[2024/25 From - Spending review Topic 3]]+Dataset[[#This Row],[2024/25 From - Spending review Topic 4]]+Dataset[[#This Row],[2024/25 From - Other reallocations]]","v":0},{"$f":"Dataset[[#This Row],[2025/26 From - Spending review Topic 1]]+Dataset[[#This Row],[2025/26 From - Spending review Topic 2]]+Dataset[[#This Row],[2025/26 From - Spending review Topic 3]]+Dataset[[#This Row],[2025/26 From - Spending review Topic 4]]+Dataset[[#This Row],[2025/26 From - Other reallocations]]","v":0},{"$f":"Dataset[[#This Row],[2026/27 From - Spending review Topic 1]]+Dataset[[#This Row],[2026/27 From - Spending review Topic 2]]+Dataset[[#This Row],[2026/27 From - Spending review Topic 3]]+Dataset[[#This Row],[2026/27 From - Spending review Topic 4]]+Dataset[[#This Row],[2026/27 From - Other reallocations]]","v":0},{"$f":"Dataset[[#This Row],[2024/25 To - Spending review Topic 1]]+Dataset[[#This Row],[2024/25 To - Spending review Topic 2]]+Dataset[[#This Row],[2024/25 To - Spending review Topic 3]]+Dataset[[#This Row],[2024/25 To - Spending review Topic 4]]+Dataset[[#This Row],[2024/25 To - Other reallocations]]","v":0},{"$f":"Dataset[[#This Row],[2025/26 To - Spending review Topic 1]]+Dataset[[#This Row],[2025/26 To - Spending review Topic 2]]+Dataset[[#This Row],[2025/26 To - Spending review Topic 3]]+Dataset[[#This Row],[2025/26 To - Spending review Topic 4]]+Dataset[[#This Row],[2025/26 To - Other reallocations]]","v":0},{"$f":"Dataset[[#This Row],[2026/27 To - Spending review Topic 1]]+Dataset[[#This Row],[2026/27 To - Spending review Topic 2]]+Dataset[[#This Row],[2026/27 To - Spending review Topic 3]]+Dataset[[#This Row],[2026/27 To - Spending review Topic 4]]+Dataset[[#This Row],[2026/27 To - Other reallocations]]","v":0},{"$f":"Dataset[[#This Row],[2024/25 Reduction]]+Dataset[[#This Row],[2024/25 From - Total]]","v":0},{"$f":"Dataset[[#This Row],[2025/26 Reduction]]+Dataset[[#This Row],[2025/26 From - Total]]","v":0},{"$f":"Dataset[[#This Row],[2026/27 Reduction]]+Dataset[[#This Row],[2026/27 From - Total]]","v":0},{"$f":"Dataset[[#This Row],[2023/24 Reduction]]","v":0},{"$f":"SUM(Dataset[[#This Row],[2024/25 Reduction]],Dataset[[#This Row],[2024/25 From - Total]],Dataset[[#This Row],[2024/25 To - Total]])","v":0},{"$f":"SUM(Dataset[[#This Row],[2025/26 Reduction]],Dataset[[#This Row],[2025/26 From - Total]],Dataset[[#This Row],[2025/26 To - Total]])","v":0},{"$f":"SUM(Dataset[[#This Row],[2026/27 Reduction]],Dataset[[#This Row],[2026/27 From - Total]],Dataset[[#This Row],[2026/27 To - Total]])","v":0},{"$f":"Dataset[[#This Row],[2023/24 Baseline]]+Dataset[[#This Row],[2023/24 Total change]]","v":0},{"$f":"Dataset[[#This Row],[2024/25 Baseline]]+Dataset[[#This Row],[2024/25 Total change]]","v":0},{"$f":"Dataset[[#This Row],[2025/26 Baseline]]+Dataset[[#This Row],[2025/26 Total change]]","v":0},{"$f":"Dataset[[#This Row],[2026/27 Baseline]]+Dataset[[#This Row],[2026/27 Total change]]","v":0}]
["NAT|Non-transfer item","26|Social security funds","2024_25","MTEF2024",26,1,5,44242,355,"26","01","05","044242","000355","26|01|05","01","02","05","45","47","01|02|05|45|47","National","Military Veterans","Administration","Strategic Planning, Policy Development, and Monitoring and Evaluation","Non-transfer item","Current","Transfers and subsidies","Departmental agencies and accounts","Social security funds","Social security funds","Peace and security","Defence and state security","NAT",0,0,0,0,0,0,0,0,0,0,0,null,null,null,null,null,null,null,null,null,null,null,null,null,null,null,null,null,null,null,null,null,null,null,null,null,null,null,null,null,null,null,null,null,null,{"$f":"Dataset[[#This Row],[2024/25 From - Spending review Topic 1]]+Dataset[[#This Row],[2024/25 From - Spending review Topic 2]]+Dataset[[#This Row],[2024/25 From - Spending review Topic 3]]+Dataset[[#This Row],[2024/25 From - Spending review Topic 4]]+Dataset[[#This Row],[2024/25 From - Other reallocations]]","v":0},{"$f":"Dataset[[#This Row],[2025/26 From - Spending review Topic 1]]+Dataset[[#This Row],[2025/26 From - Spending review Topic 2]]+Dataset[[#This Row],[2025/26 From - Spending review Topic 3]]+Dataset[[#This Row],[2025/26 From - Spending review Topic 4]]+Dataset[[#This Row],[2025/26 From - Other reallocations]]","v":0},{"$f":"Dataset[[#This Row],[2026/27 From - Spending review Topic 1]]+Dataset[[#This Row],[2026/27 From - Spending review Topic 2]]+Dataset[[#This Row],[2026/27 From - Spending review Topic 3]]+Dataset[[#This Row],[2026/27 From - Spending review Topic 4]]+Dataset[[#This Row],[2026/27 From - Other reallocations]]","v":0},{"$f":"Dataset[[#This Row],[2024/25 To - Spending review Topic 1]]+Dataset[[#This Row],[2024/25 To - Spending review Topic 2]]+Dataset[[#This Row],[2024/25 To - Spending review Topic 3]]+Dataset[[#This Row],[2024/25 To - Spending review Topic 4]]+Dataset[[#This Row],[2024/25 To - Other reallocations]]","v":0},{"$f":"Dataset[[#This Row],[2025/26 To - Spending review Topic 1]]+Dataset[[#This Row],[2025/26 To - Spending review Topic 2]]+Dataset[[#This Row],[2025/26 To - Spending review Topic 3]]+Dataset[[#This Row],[2025/26 To - Spending review Topic 4]]+Dataset[[#This Row],[2025/26 To - Other reallocations]]","v":0},{"$f":"Dataset[[#This Row],[2026/27 To - Spending review Topic 1]]+Dataset[[#This Row],[2026/27 To - Spending review Topic 2]]+Dataset[[#This Row],[2026/27 To - Spending review Topic 3]]+Dataset[[#This Row],[2026/27 To - Spending review Topic 4]]+Dataset[[#This Row],[2026/27 To - Other reallocations]]","v":0},{"$f":"Dataset[[#This Row],[2024/25 Reduction]]+Dataset[[#This Row],[2024/25 From - Total]]","v":0},{"$f":"Dataset[[#This Row],[2025/26 Reduction]]+Dataset[[#This Row],[2025/26 From - Total]]","v":0},{"$f":"Dataset[[#This Row],[2026/27 Reduction]]+Dataset[[#This Row],[2026/27 From - Total]]","v":0},{"$f":"Dataset[[#This Row],[2023/24 Reduction]]","v":0},{"$f":"SUM(Dataset[[#This Row],[2024/25 Reduction]],Dataset[[#This Row],[2024/25 From - Total]],Dataset[[#This Row],[2024/25 To - Total]])","v":0},{"$f":"SUM(Dataset[[#This Row],[2025/26 Reduction]],Dataset[[#This Row],[2025/26 From - Total]],Dataset[[#This Row],[2025/26 To - Total]])","v":0},{"$f":"SUM(Dataset[[#This Row],[2026/27 Reduction]],Dataset[[#This Row],[2026/27 From - Total]],Dataset[[#This Row],[2026/27 To - Total]])","v":0},{"$f":"Dataset[[#This Row],[2023/24 Baseline]]+Dataset[[#This Row],[2023/24 Total change]]","v":0},{"$f":"Dataset[[#This Row],[2024/25 Baseline]]+Dataset[[#This Row],[2024/25 Total change]]","v":0},{"$f":"Dataset[[#This Row],[2025/26 Baseline]]+Dataset[[#This Row],[2025/26 Total change]]","v":0},{"$f":"Dataset[[#This Row],[2026/27 Baseline]]+Dataset[[#This Row],[2026/27 Total change]]","v":0}]
["NAT|Non-transfer item","26|Departmental agencies (non-business entities)","2024_25","MTEF2024",26,1,5,44243,356,"26","01","05","044243","000356","26|01|05","01","02","05","46","48","01|02|05|46|48","National","Military Veterans","Administration","Strategic Planning, Policy Development, and Monitoring and Evaluation","Non-transfer item","Current","Transfers and subsidies","Departmental agencies and accounts","Departmental agencies (non-business entities)","Departmental agencies (non-business entities)","Peace and security","Defence and state security","NAT",0,0,0,0,0,0,0,0,0,0,0,null,null,null,null,null,null,null,null,null,null,null,null,null,null,null,null,null,null,null,null,null,null,null,null,null,null,null,null,null,null,null,null,null,null,{"$f":"Dataset[[#This Row],[2024/25 From - Spending review Topic 1]]+Dataset[[#This Row],[2024/25 From - Spending review Topic 2]]+Dataset[[#This Row],[2024/25 From - Spending review Topic 3]]+Dataset[[#This Row],[2024/25 From - Spending review Topic 4]]+Dataset[[#This Row],[2024/25 From - Other reallocations]]","v":0},{"$f":"Dataset[[#This Row],[2025/26 From - Spending review Topic 1]]+Dataset[[#This Row],[2025/26 From - Spending review Topic 2]]+Dataset[[#This Row],[2025/26 From - Spending review Topic 3]]+Dataset[[#This Row],[2025/26 From - Spending review Topic 4]]+Dataset[[#This Row],[2025/26 From - Other reallocations]]","v":0},{"$f":"Dataset[[#This Row],[2026/27 From - Spending review Topic 1]]+Dataset[[#This Row],[2026/27 From - Spending review Topic 2]]+Dataset[[#This Row],[2026/27 From - Spending review Topic 3]]+Dataset[[#This Row],[2026/27 From - Spending review Topic 4]]+Dataset[[#This Row],[2026/27 From - Other reallocations]]","v":0},{"$f":"Dataset[[#This Row],[2024/25 To - Spending review Topic 1]]+Dataset[[#This Row],[2024/25 To - Spending review Topic 2]]+Dataset[[#This Row],[2024/25 To - Spending review Topic 3]]+Dataset[[#This Row],[2024/25 To - Spending review Topic 4]]+Dataset[[#This Row],[2024/25 To - Other reallocations]]","v":0},{"$f":"Dataset[[#This Row],[2025/26 To - Spending review Topic 1]]+Dataset[[#This Row],[2025/26 To - Spending review Topic 2]]+Dataset[[#This Row],[2025/26 To - Spending review Topic 3]]+Dataset[[#This Row],[2025/26 To - Spending review Topic 4]]+Dataset[[#This Row],[2025/26 To - Other reallocations]]","v":0},{"$f":"Dataset[[#This Row],[2026/27 To - Spending review Topic 1]]+Dataset[[#This Row],[2026/27 To - Spending review Topic 2]]+Dataset[[#This Row],[2026/27 To - Spending review Topic 3]]+Dataset[[#This Row],[2026/27 To - Spending review Topic 4]]+Dataset[[#This Row],[2026/27 To - Other reallocations]]","v":0},{"$f":"Dataset[[#This Row],[2024/25 Reduction]]+Dataset[[#This Row],[2024/25 From - Total]]","v":0},{"$f":"Dataset[[#This Row],[2025/26 Reduction]]+Dataset[[#This Row],[2025/26 From - Total]]","v":0},{"$f":"Dataset[[#This Row],[2026/27 Reduction]]+Dataset[[#This Row],[2026/27 From - Total]]","v":0},{"$f":"Dataset[[#This Row],[2023/24 Reduction]]","v":0},{"$f":"SUM(Dataset[[#This Row],[2024/25 Reduction]],Dataset[[#This Row],[2024/25 From - Total]],Dataset[[#This Row],[2024/25 To - Total]])","v":0},{"$f":"SUM(Dataset[[#This Row],[2025/26 Reduction]],Dataset[[#This Row],[2025/26 From - Total]],Dataset[[#This Row],[2025/26 To - Total]])","v":0},{"$f":"SUM(Dataset[[#This Row],[2026/27 Reduction]],Dataset[[#This Row],[2026/27 From - Total]],Dataset[[#This Row],[2026/27 To - Total]])","v":0},{"$f":"Dataset[[#This Row],[2023/24 Baseline]]+Dataset[[#This Row],[2023/24 Total change]]","v":0},{"$f":"Dataset[[#This Row],[2024/25 Baseline]]+Dataset[[#This Row],[2024/25 Total change]]","v":0},{"$f":"Dataset[[#This Row],[2025/26 Baseline]]+Dataset[[#This Row],[2025/26 Total change]]","v":0},{"$f":"Dataset[[#This Row],[2026/27 Baseline]]+Dataset[[#This Row],[2026/27 Total change]]","v":0}]
["NAT|Non-transfer item","26|Higher education institutions","2024_25","MTEF2024",26,1,5,44244,357,"26","01","05","044244","000357","26|01|05","01","02","06","47","49","01|02|06|47|49","National","Military Veterans","Administration","Strategic Planning, Policy Development, and Monitoring and Evaluation","Non-transfer item","Current","Transfers and subsidies","Higher education institutions","Higher education institutions","Higher education institutions","Peace and security","Defence and state security","NAT",0,0,0,0,0,0,0,0,0,0,0,null,null,null,null,null,null,null,null,null,null,null,null,null,null,null,null,null,null,null,null,null,null,null,null,null,null,null,null,null,null,null,null,null,null,{"$f":"Dataset[[#This Row],[2024/25 From - Spending review Topic 1]]+Dataset[[#This Row],[2024/25 From - Spending review Topic 2]]+Dataset[[#This Row],[2024/25 From - Spending review Topic 3]]+Dataset[[#This Row],[2024/25 From - Spending review Topic 4]]+Dataset[[#This Row],[2024/25 From - Other reallocations]]","v":0},{"$f":"Dataset[[#This Row],[2025/26 From - Spending review Topic 1]]+Dataset[[#This Row],[2025/26 From - Spending review Topic 2]]+Dataset[[#This Row],[2025/26 From - Spending review Topic 3]]+Dataset[[#This Row],[2025/26 From - Spending review Topic 4]]+Dataset[[#This Row],[2025/26 From - Other reallocations]]","v":0},{"$f":"Dataset[[#This Row],[2026/27 From - Spending review Topic 1]]+Dataset[[#This Row],[2026/27 From - Spending review Topic 2]]+Dataset[[#This Row],[2026/27 From - Spending review Topic 3]]+Dataset[[#This Row],[2026/27 From - Spending review Topic 4]]+Dataset[[#This Row],[2026/27 From - Other reallocations]]","v":0},{"$f":"Dataset[[#This Row],[2024/25 To - Spending review Topic 1]]+Dataset[[#This Row],[2024/25 To - Spending review Topic 2]]+Dataset[[#This Row],[2024/25 To - Spending review Topic 3]]+Dataset[[#This Row],[2024/25 To - Spending review Topic 4]]+Dataset[[#This Row],[2024/25 To - Other reallocations]]","v":0},{"$f":"Dataset[[#This Row],[2025/26 To - Spending review Topic 1]]+Dataset[[#This Row],[2025/26 To - Spending review Topic 2]]+Dataset[[#This Row],[2025/26 To - Spending review Topic 3]]+Dataset[[#This Row],[2025/26 To - Spending review Topic 4]]+Dataset[[#This Row],[2025/26 To - Other reallocations]]","v":0},{"$f":"Dataset[[#This Row],[2026/27 To - Spending review Topic 1]]+Dataset[[#This Row],[2026/27 To - Spending review Topic 2]]+Dataset[[#This Row],[2026/27 To - Spending review Topic 3]]+Dataset[[#This Row],[2026/27 To - Spending review Topic 4]]+Dataset[[#This Row],[2026/27 To - Other reallocations]]","v":0},{"$f":"Dataset[[#This Row],[2024/25 Reduction]]+Dataset[[#This Row],[2024/25 From - Total]]","v":0},{"$f":"Dataset[[#This Row],[2025/26 Reduction]]+Dataset[[#This Row],[2025/26 From - Total]]","v":0},{"$f":"Dataset[[#This Row],[2026/27 Reduction]]+Dataset[[#This Row],[2026/27 From - Total]]","v":0},{"$f":"Dataset[[#This Row],[2023/24 Reduction]]","v":0},{"$f":"SUM(Dataset[[#This Row],[2024/25 Reduction]],Dataset[[#This Row],[2024/25 From - Total]],Dataset[[#This Row],[2024/25 To - Total]])","v":0},{"$f":"SUM(Dataset[[#This Row],[2025/26 Reduction]],Dataset[[#This Row],[2025/26 From - Total]],Dataset[[#This Row],[2025/26 To - Total]])","v":0},{"$f":"SUM(Dataset[[#This Row],[2026/27 Reduction]],Dataset[[#This Row],[2026/27 From - Total]],Dataset[[#This Row],[2026/27 To - Total]])","v":0},{"$f":"Dataset[[#This Row],[2023/24 Baseline]]+Dataset[[#This Row],[2023/24 Total change]]","v":0},{"$f":"Dataset[[#This Row],[2024/25 Baseline]]+Dataset[[#This Row],[2024/25 Total change]]","v":0},{"$f":"Dataset[[#This Row],[2025/26 Baseline]]+Dataset[[#This Row],[2025/26 Total change]]","v":0},{"$f":"Dataset[[#This Row],[2026/27 Baseline]]+Dataset[[#This Row],[2026/27 Total change]]","v":0}]
["NAT|Non-transfer item","26|Foreign governments and international organisations","2024_25","MTEF2024",26,1,5,44245,358,"26","01","05","044245","000358","26|01|05","01","02","07","48","50","01|02|07|48|50","National","Military Veterans","Administration","Strategic Planning, Policy Development, and Monitoring and Evaluation","Non-transfer item","Current","Transfers and subsidies","Foreign governments and international organisations","Foreign governments and international organisations","Foreign governments and international organisations","Peace and security","Defence and state security","NAT",0,0,0,0,0,0,0,0,0,0,0,null,null,null,null,null,null,null,null,null,null,null,null,null,null,null,null,null,null,null,null,null,null,null,null,null,null,null,null,null,null,null,null,null,null,{"$f":"Dataset[[#This Row],[2024/25 From - Spending review Topic 1]]+Dataset[[#This Row],[2024/25 From - Spending review Topic 2]]+Dataset[[#This Row],[2024/25 From - Spending review Topic 3]]+Dataset[[#This Row],[2024/25 From - Spending review Topic 4]]+Dataset[[#This Row],[2024/25 From - Other reallocations]]","v":0},{"$f":"Dataset[[#This Row],[2025/26 From - Spending review Topic 1]]+Dataset[[#This Row],[2025/26 From - Spending review Topic 2]]+Dataset[[#This Row],[2025/26 From - Spending review Topic 3]]+Dataset[[#This Row],[2025/26 From - Spending review Topic 4]]+Dataset[[#This Row],[2025/26 From - Other reallocations]]","v":0},{"$f":"Dataset[[#This Row],[2026/27 From - Spending review Topic 1]]+Dataset[[#This Row],[2026/27 From - Spending review Topic 2]]+Dataset[[#This Row],[2026/27 From - Spending review Topic 3]]+Dataset[[#This Row],[2026/27 From - Spending review Topic 4]]+Dataset[[#This Row],[2026/27 From - Other reallocations]]","v":0},{"$f":"Dataset[[#This Row],[2024/25 To - Spending review Topic 1]]+Dataset[[#This Row],[2024/25 To - Spending review Topic 2]]+Dataset[[#This Row],[2024/25 To - Spending review Topic 3]]+Dataset[[#This Row],[2024/25 To - Spending review Topic 4]]+Dataset[[#This Row],[2024/25 To - Other reallocations]]","v":0},{"$f":"Dataset[[#This Row],[2025/26 To - Spending review Topic 1]]+Dataset[[#This Row],[2025/26 To - Spending review Topic 2]]+Dataset[[#This Row],[2025/26 To - Spending review Topic 3]]+Dataset[[#This Row],[2025/26 To - Spending review Topic 4]]+Dataset[[#This Row],[2025/26 To - Other reallocations]]","v":0},{"$f":"Dataset[[#This Row],[2026/27 To - Spending review Topic 1]]+Dataset[[#This Row],[2026/27 To - Spending review Topic 2]]+Dataset[[#This Row],[2026/27 To - Spending review Topic 3]]+Dataset[[#This Row],[2026/27 To - Spending review Topic 4]]+Dataset[[#This Row],[2026/27 To - Other reallocations]]","v":0},{"$f":"Dataset[[#This Row],[2024/25 Reduction]]+Dataset[[#This Row],[2024/25 From - Total]]","v":0},{"$f":"Dataset[[#This Row],[2025/26 Reduction]]+Dataset[[#This Row],[2025/26 From - Total]]","v":0},{"$f":"Dataset[[#This Row],[2026/27 Reduction]]+Dataset[[#This Row],[2026/27 From - Total]]","v":0},{"$f":"Dataset[[#This Row],[2023/24 Reduction]]","v":0},{"$f":"SUM(Dataset[[#This Row],[2024/25 Reduction]],Dataset[[#This Row],[2024/25 From - Total]],Dataset[[#This Row],[2024/25 To - Total]])","v":0},{"$f":"SUM(Dataset[[#This Row],[2025/26 Reduction]],Dataset[[#This Row],[2025/26 From - Total]],Dataset[[#This Row],[2025/26 To - Total]])","v":0},{"$f":"SUM(Dataset[[#This Row],[2026/27 Reduction]],Dataset[[#This Row],[2026/27 From - Total]],Dataset[[#This Row],[2026/27 To - Total]])","v":0},{"$f":"Dataset[[#This Row],[2023/24 Baseline]]+Dataset[[#This Row],[2023/24 Total change]]","v":0},{"$f":"Dataset[[#This Row],[2024/25 Baseline]]+Dataset[[#This Row],[2024/25 Total change]]","v":0},{"$f":"Dataset[[#This Row],[2025/26 Baseline]]+Dataset[[#This Row],[2025/26 Total change]]","v":0},{"$f":"Dataset[[#This Row],[2026/27 Baseline]]+Dataset[[#This Row],[2026/27 Total change]]","v":0}]
["NAT|Non-transfer item","26|Subsidies on products and production (pc)","2024_25","MTEF2024",26,1,5,44246,359,"26","01","05","044246","000359","26|01|05","01","02","08","49","51","01|02|08|49|51","National","Military Veterans","Administration","Strategic Planning, Policy Development, and Monitoring and Evaluation","Non-transfer item","Current","Transfers and subsidies","Public corporations and private enterprises","Public corporations","Subsidies on products and production (pc)","Peace and security","Defence and state security","NAT",0,0,0,0,0,0,0,0,0,0,0,null,null,null,null,null,null,null,null,null,null,null,null,null,null,null,null,null,null,null,null,null,null,null,null,null,null,null,null,null,null,null,null,null,null,{"$f":"Dataset[[#This Row],[2024/25 From - Spending review Topic 1]]+Dataset[[#This Row],[2024/25 From - Spending review Topic 2]]+Dataset[[#This Row],[2024/25 From - Spending review Topic 3]]+Dataset[[#This Row],[2024/25 From - Spending review Topic 4]]+Dataset[[#This Row],[2024/25 From - Other reallocations]]","v":0},{"$f":"Dataset[[#This Row],[2025/26 From - Spending review Topic 1]]+Dataset[[#This Row],[2025/26 From - Spending review Topic 2]]+Dataset[[#This Row],[2025/26 From - Spending review Topic 3]]+Dataset[[#This Row],[2025/26 From - Spending review Topic 4]]+Dataset[[#This Row],[2025/26 From - Other reallocations]]","v":0},{"$f":"Dataset[[#This Row],[2026/27 From - Spending review Topic 1]]+Dataset[[#This Row],[2026/27 From - Spending review Topic 2]]+Dataset[[#This Row],[2026/27 From - Spending review Topic 3]]+Dataset[[#This Row],[2026/27 From - Spending review Topic 4]]+Dataset[[#This Row],[2026/27 From - Other reallocations]]","v":0},{"$f":"Dataset[[#This Row],[2024/25 To - Spending review Topic 1]]+Dataset[[#This Row],[2024/25 To - Spending review Topic 2]]+Dataset[[#This Row],[2024/25 To - Spending review Topic 3]]+Dataset[[#This Row],[2024/25 To - Spending review Topic 4]]+Dataset[[#This Row],[2024/25 To - Other reallocations]]","v":0},{"$f":"Dataset[[#This Row],[2025/26 To - Spending review Topic 1]]+Dataset[[#This Row],[2025/26 To - Spending review Topic 2]]+Dataset[[#This Row],[2025/26 To - Spending review Topic 3]]+Dataset[[#This Row],[2025/26 To - Spending review Topic 4]]+Dataset[[#This Row],[2025/26 To - Other reallocations]]","v":0},{"$f":"Dataset[[#This Row],[2026/27 To - Spending review Topic 1]]+Dataset[[#This Row],[2026/27 To - Spending review Topic 2]]+Dataset[[#This Row],[2026/27 To - Spending review Topic 3]]+Dataset[[#This Row],[2026/27 To - Spending review Topic 4]]+Dataset[[#This Row],[2026/27 To - Other reallocations]]","v":0},{"$f":"Dataset[[#This Row],[2024/25 Reduction]]+Dataset[[#This Row],[2024/25 From - Total]]","v":0},{"$f":"Dataset[[#This Row],[2025/26 Reduction]]+Dataset[[#This Row],[2025/26 From - Total]]","v":0},{"$f":"Dataset[[#This Row],[2026/27 Reduction]]+Dataset[[#This Row],[2026/27 From - Total]]","v":0},{"$f":"Dataset[[#This Row],[2023/24 Reduction]]","v":0},{"$f":"SUM(Dataset[[#This Row],[2024/25 Reduction]],Dataset[[#This Row],[2024/25 From - Total]],Dataset[[#This Row],[2024/25 To - Total]])","v":0},{"$f":"SUM(Dataset[[#This Row],[2025/26 Reduction]],Dataset[[#This Row],[2025/26 From - Total]],Dataset[[#This Row],[2025/26 To - Total]])","v":0},{"$f":"SUM(Dataset[[#This Row],[2026/27 Reduction]],Dataset[[#This Row],[2026/27 From - Total]],Dataset[[#This Row],[2026/27 To - Total]])","v":0},{"$f":"Dataset[[#This Row],[2023/24 Baseline]]+Dataset[[#This Row],[2023/24 Total change]]","v":0},{"$f":"Dataset[[#This Row],[2024/25 Baseline]]+Dataset[[#This Row],[2024/25 Total change]]","v":0},{"$f":"Dataset[[#This Row],[2025/26 Baseline]]+Dataset[[#This Row],[2025/26 Total change]]","v":0},{"$f":"Dataset[[#This Row],[2026/27 Baseline]]+Dataset[[#This Row],[2026/27 Total change]]","v":0}]
["NAT|Non-transfer item","26|Other transfers to public corporations","2024_25","MTEF2024",26,1,5,44247,360,"26","01","05","044247","000360","26|01|05","01","02","08","49","52","01|02|08|49|52","National","Military Veterans","Administration","Strategic Planning, Policy Development, and Monitoring and Evaluation","Non-transfer item","Current","Transfers and subsidies","Public corporations and private enterprises","Public corporations","Other transfers to public corporations","Peace and security","Defence and state security","NAT",0,0,0,0,0,0,0,0,0,0,0,null,null,null,null,null,null,null,null,null,null,null,null,null,null,null,null,null,null,null,null,null,null,null,null,null,null,null,null,null,null,null,null,null,null,{"$f":"Dataset[[#This Row],[2024/25 From - Spending review Topic 1]]+Dataset[[#This Row],[2024/25 From - Spending review Topic 2]]+Dataset[[#This Row],[2024/25 From - Spending review Topic 3]]+Dataset[[#This Row],[2024/25 From - Spending review Topic 4]]+Dataset[[#This Row],[2024/25 From - Other reallocations]]","v":0},{"$f":"Dataset[[#This Row],[2025/26 From - Spending review Topic 1]]+Dataset[[#This Row],[2025/26 From - Spending review Topic 2]]+Dataset[[#This Row],[2025/26 From - Spending review Topic 3]]+Dataset[[#This Row],[2025/26 From - Spending review Topic 4]]+Dataset[[#This Row],[2025/26 From - Other reallocations]]","v":0},{"$f":"Dataset[[#This Row],[2026/27 From - Spending review Topic 1]]+Dataset[[#This Row],[2026/27 From - Spending review Topic 2]]+Dataset[[#This Row],[2026/27 From - Spending review Topic 3]]+Dataset[[#This Row],[2026/27 From - Spending review Topic 4]]+Dataset[[#This Row],[2026/27 From - Other reallocations]]","v":0},{"$f":"Dataset[[#This Row],[2024/25 To - Spending review Topic 1]]+Dataset[[#This Row],[2024/25 To - Spending review Topic 2]]+Dataset[[#This Row],[2024/25 To - Spending review Topic 3]]+Dataset[[#This Row],[2024/25 To - Spending review Topic 4]]+Dataset[[#This Row],[2024/25 To - Other reallocations]]","v":0},{"$f":"Dataset[[#This Row],[2025/26 To - Spending review Topic 1]]+Dataset[[#This Row],[2025/26 To - Spending review Topic 2]]+Dataset[[#This Row],[2025/26 To - Spending review Topic 3]]+Dataset[[#This Row],[2025/26 To - Spending review Topic 4]]+Dataset[[#This Row],[2025/26 To - Other reallocations]]","v":0},{"$f":"Dataset[[#This Row],[2026/27 To - Spending review Topic 1]]+Dataset[[#This Row],[2026/27 To - Spending review Topic 2]]+Dataset[[#This Row],[2026/27 To - Spending review Topic 3]]+Dataset[[#This Row],[2026/27 To - Spending review Topic 4]]+Dataset[[#This Row],[2026/27 To - Other reallocations]]","v":0},{"$f":"Dataset[[#This Row],[2024/25 Reduction]]+Dataset[[#This Row],[2024/25 From - Total]]","v":0},{"$f":"Dataset[[#This Row],[2025/26 Reduction]]+Dataset[[#This Row],[2025/26 From - Total]]","v":0},{"$f":"Dataset[[#This Row],[2026/27 Reduction]]+Dataset[[#This Row],[2026/27 From - Total]]","v":0},{"$f":"Dataset[[#This Row],[2023/24 Reduction]]","v":0},{"$f":"SUM(Dataset[[#This Row],[2024/25 Reduction]],Dataset[[#This Row],[2024/25 From - Total]],Dataset[[#This Row],[2024/25 To - Total]])","v":0},{"$f":"SUM(Dataset[[#This Row],[2025/26 Reduction]],Dataset[[#This Row],[2025/26 From - Total]],Dataset[[#This Row],[2025/26 To - Total]])","v":0},{"$f":"SUM(Dataset[[#This Row],[2026/27 Reduction]],Dataset[[#This Row],[2026/27 From - Total]],Dataset[[#This Row],[2026/27 To - Total]])","v":0},{"$f":"Dataset[[#This Row],[2023/24 Baseline]]+Dataset[[#This Row],[2023/24 Total change]]","v":0},{"$f":"Dataset[[#This Row],[2024/25 Baseline]]+Dataset[[#This Row],[2024/25 Total change]]","v":0},{"$f":"Dataset[[#This Row],[2025/26 Baseline]]+Dataset[[#This Row],[2025/26 Total change]]","v":0},{"$f":"Dataset[[#This Row],[2026/27 Baseline]]+Dataset[[#This Row],[2026/27 Total change]]","v":0}]
["NAT|Non-transfer item","26|Subsidies on products and production (pe)","2024_25","MTEF2024",26,1,5,44248,361,"26","01","05","044248","000361","26|01|05","01","02","08","50","53","01|02|08|50|53","National","Military Veterans","Administration","Strategic Planning, Policy Development, and Monitoring and Evaluation","Non-transfer item","Current","Transfers and subsidies","Public corporations and private enterprises","Private enterprises","Subsidies on products and production (pe)","Peace and security","Defence and state security","NAT",0,0,0,0,0,0,0,0,0,0,0,null,null,null,null,null,null,null,null,null,null,null,null,null,null,null,null,null,null,null,null,null,null,null,null,null,null,null,null,null,null,null,null,null,null,{"$f":"Dataset[[#This Row],[2024/25 From - Spending review Topic 1]]+Dataset[[#This Row],[2024/25 From - Spending review Topic 2]]+Dataset[[#This Row],[2024/25 From - Spending review Topic 3]]+Dataset[[#This Row],[2024/25 From - Spending review Topic 4]]+Dataset[[#This Row],[2024/25 From - Other reallocations]]","v":0},{"$f":"Dataset[[#This Row],[2025/26 From - Spending review Topic 1]]+Dataset[[#This Row],[2025/26 From - Spending review Topic 2]]+Dataset[[#This Row],[2025/26 From - Spending review Topic 3]]+Dataset[[#This Row],[2025/26 From - Spending review Topic 4]]+Dataset[[#This Row],[2025/26 From - Other reallocations]]","v":0},{"$f":"Dataset[[#This Row],[2026/27 From - Spending review Topic 1]]+Dataset[[#This Row],[2026/27 From - Spending review Topic 2]]+Dataset[[#This Row],[2026/27 From - Spending review Topic 3]]+Dataset[[#This Row],[2026/27 From - Spending review Topic 4]]+Dataset[[#This Row],[2026/27 From - Other reallocations]]","v":0},{"$f":"Dataset[[#This Row],[2024/25 To - Spending review Topic 1]]+Dataset[[#This Row],[2024/25 To - Spending review Topic 2]]+Dataset[[#This Row],[2024/25 To - Spending review Topic 3]]+Dataset[[#This Row],[2024/25 To - Spending review Topic 4]]+Dataset[[#This Row],[2024/25 To - Other reallocations]]","v":0},{"$f":"Dataset[[#This Row],[2025/26 To - Spending review Topic 1]]+Dataset[[#This Row],[2025/26 To - Spending review Topic 2]]+Dataset[[#This Row],[2025/26 To - Spending review Topic 3]]+Dataset[[#This Row],[2025/26 To - Spending review Topic 4]]+Dataset[[#This Row],[2025/26 To - Other reallocations]]","v":0},{"$f":"Dataset[[#This Row],[2026/27 To - Spending review Topic 1]]+Dataset[[#This Row],[2026/27 To - Spending review Topic 2]]+Dataset[[#This Row],[2026/27 To - Spending review Topic 3]]+Dataset[[#This Row],[2026/27 To - Spending review Topic 4]]+Dataset[[#This Row],[2026/27 To - Other reallocations]]","v":0},{"$f":"Dataset[[#This Row],[2024/25 Reduction]]+Dataset[[#This Row],[2024/25 From - Total]]","v":0},{"$f":"Dataset[[#This Row],[2025/26 Reduction]]+Dataset[[#This Row],[2025/26 From - Total]]","v":0},{"$f":"Dataset[[#This Row],[2026/27 Reduction]]+Dataset[[#This Row],[2026/27 From - Total]]","v":0},{"$f":"Dataset[[#This Row],[2023/24 Reduction]]","v":0},{"$f":"SUM(Dataset[[#This Row],[2024/25 Reduction]],Dataset[[#This Row],[2024/25 From - Total]],Dataset[[#This Row],[2024/25 To - Total]])","v":0},{"$f":"SUM(Dataset[[#This Row],[2025/26 Reduction]],Dataset[[#This Row],[2025/26 From - Total]],Dataset[[#This Row],[2025/26 To - Total]])","v":0},{"$f":"SUM(Dataset[[#This Row],[2026/27 Reduction]],Dataset[[#This Row],[2026/27 From - Total]],Dataset[[#This Row],[2026/27 To - Total]])","v":0},{"$f":"Dataset[[#This Row],[2023/24 Baseline]]+Dataset[[#This Row],[2023/24 Total change]]","v":0},{"$f":"Dataset[[#This Row],[2024/25 Baseline]]+Dataset[[#This Row],[2024/25 Total change]]","v":0},{"$f":"Dataset[[#This Row],[2025/26 Baseline]]+Dataset[[#This Row],[2025/26 Total change]]","v":0},{"$f":"Dataset[[#This Row],[2026/27 Baseline]]+Dataset[[#This Row],[2026/27 Total change]]","v":0}]
["NAT|Non-transfer item","26|Other transfers to private enterprises","2024_25","MTEF2024",26,1,5,44249,362,"26","01","05","044249","000362","26|01|05","01","02","08","50","54","01|02|08|50|54","National","Military Veterans","Administration","Strategic Planning, Policy Development, and Monitoring and Evaluation","Non-transfer item","Current","Transfers and subsidies","Public corporations and private enterprises","Private enterprises","Other transfers to private enterprises","Peace and security","Defence and state security","NAT",0,0,0,0,0,0,0,0,0,0,0,null,null,null,null,null,null,null,null,null,null,null,null,null,null,null,null,null,null,null,null,null,null,null,null,null,null,null,null,null,null,null,null,null,null,{"$f":"Dataset[[#This Row],[2024/25 From - Spending review Topic 1]]+Dataset[[#This Row],[2024/25 From - Spending review Topic 2]]+Dataset[[#This Row],[2024/25 From - Spending review Topic 3]]+Dataset[[#This Row],[2024/25 From - Spending review Topic 4]]+Dataset[[#This Row],[2024/25 From - Other reallocations]]","v":0},{"$f":"Dataset[[#This Row],[2025/26 From - Spending review Topic 1]]+Dataset[[#This Row],[2025/26 From - Spending review Topic 2]]+Dataset[[#This Row],[2025/26 From - Spending review Topic 3]]+Dataset[[#This Row],[2025/26 From - Spending review Topic 4]]+Dataset[[#This Row],[2025/26 From - Other reallocations]]","v":0},{"$f":"Dataset[[#This Row],[2026/27 From - Spending review Topic 1]]+Dataset[[#This Row],[2026/27 From - Spending review Topic 2]]+Dataset[[#This Row],[2026/27 From - Spending review Topic 3]]+Dataset[[#This Row],[2026/27 From - Spending review Topic 4]]+Dataset[[#This Row],[2026/27 From - Other reallocations]]","v":0},{"$f":"Dataset[[#This Row],[2024/25 To - Spending review Topic 1]]+Dataset[[#This Row],[2024/25 To - Spending review Topic 2]]+Dataset[[#This Row],[2024/25 To - Spending review Topic 3]]+Dataset[[#This Row],[2024/25 To - Spending review Topic 4]]+Dataset[[#This Row],[2024/25 To - Other reallocations]]","v":0},{"$f":"Dataset[[#This Row],[2025/26 To - Spending review Topic 1]]+Dataset[[#This Row],[2025/26 To - Spending review Topic 2]]+Dataset[[#This Row],[2025/26 To - Spending review Topic 3]]+Dataset[[#This Row],[2025/26 To - Spending review Topic 4]]+Dataset[[#This Row],[2025/26 To - Other reallocations]]","v":0},{"$f":"Dataset[[#This Row],[2026/27 To - Spending review Topic 1]]+Dataset[[#This Row],[2026/27 To - Spending review Topic 2]]+Dataset[[#This Row],[2026/27 To - Spending review Topic 3]]+Dataset[[#This Row],[2026/27 To - Spending review Topic 4]]+Dataset[[#This Row],[2026/27 To - Other reallocations]]","v":0},{"$f":"Dataset[[#This Row],[2024/25 Reduction]]+Dataset[[#This Row],[2024/25 From - Total]]","v":0},{"$f":"Dataset[[#This Row],[2025/26 Reduction]]+Dataset[[#This Row],[2025/26 From - Total]]","v":0},{"$f":"Dataset[[#This Row],[2026/27 Reduction]]+Dataset[[#This Row],[2026/27 From - Total]]","v":0},{"$f":"Dataset[[#This Row],[2023/24 Reduction]]","v":0},{"$f":"SUM(Dataset[[#This Row],[2024/25 Reduction]],Dataset[[#This Row],[2024/25 From - Total]],Dataset[[#This Row],[2024/25 To - Total]])","v":0},{"$f":"SUM(Dataset[[#This Row],[2025/26 Reduction]],Dataset[[#This Row],[2025/26 From - Total]],Dataset[[#This Row],[2025/26 To - Total]])","v":0},{"$f":"SUM(Dataset[[#This Row],[2026/27 Reduction]],Dataset[[#This Row],[2026/27 From - Total]],Dataset[[#This Row],[2026/27 To - Total]])","v":0},{"$f":"Dataset[[#This Row],[2023/24 Baseline]]+Dataset[[#This Row],[2023/24 Total change]]","v":0},{"$f":"Dataset[[#This Row],[2024/25 Baseline]]+Dataset[[#This Row],[2024/25 Total change]]","v":0},{"$f":"Dataset[[#This Row],[2025/26 Baseline]]+Dataset[[#This Row],[2025/26 Total change]]","v":0},{"$f":"Dataset[[#This Row],[2026/27 Baseline]]+Dataset[[#This Row],[2026/27 Total change]]","v":0}]
["NAT|Non-transfer item","26|Non-profit institutions","2024_25","MTEF2024",26,1,5,44250,363,"26","01","05","044250","000363","26|01|05","01","02","09","51","55","01|02|09|51|55","National","Military Veterans","Administration","Strategic Planning, Policy Development, and Monitoring and Evaluation","Non-transfer item","Current","Transfers and subsidies","Non-profit institutions","Non-profit institutions","Non-profit institutions","Peace and security","Defence and state security","NAT",0,0,0,0,0,0,0,0,0,0,0,null,null,null,null,null,null,null,null,null,null,null,null,null,null,null,null,null,null,null,null,null,null,null,null,null,null,null,null,null,null,null,null,null,null,{"$f":"Dataset[[#This Row],[2024/25 From - Spending review Topic 1]]+Dataset[[#This Row],[2024/25 From - Spending review Topic 2]]+Dataset[[#This Row],[2024/25 From - Spending review Topic 3]]+Dataset[[#This Row],[2024/25 From - Spending review Topic 4]]+Dataset[[#This Row],[2024/25 From - Other reallocations]]","v":0},{"$f":"Dataset[[#This Row],[2025/26 From - Spending review Topic 1]]+Dataset[[#This Row],[2025/26 From - Spending review Topic 2]]+Dataset[[#This Row],[2025/26 From - Spending review Topic 3]]+Dataset[[#This Row],[2025/26 From - Spending review Topic 4]]+Dataset[[#This Row],[2025/26 From - Other reallocations]]","v":0},{"$f":"Dataset[[#This Row],[2026/27 From - Spending review Topic 1]]+Dataset[[#This Row],[2026/27 From - Spending review Topic 2]]+Dataset[[#This Row],[2026/27 From - Spending review Topic 3]]+Dataset[[#This Row],[2026/27 From - Spending review Topic 4]]+Dataset[[#This Row],[2026/27 From - Other reallocations]]","v":0},{"$f":"Dataset[[#This Row],[2024/25 To - Spending review Topic 1]]+Dataset[[#This Row],[2024/25 To - Spending review Topic 2]]+Dataset[[#This Row],[2024/25 To - Spending review Topic 3]]+Dataset[[#This Row],[2024/25 To - Spending review Topic 4]]+Dataset[[#This Row],[2024/25 To - Other reallocations]]","v":0},{"$f":"Dataset[[#This Row],[2025/26 To - Spending review Topic 1]]+Dataset[[#This Row],[2025/26 To - Spending review Topic 2]]+Dataset[[#This Row],[2025/26 To - Spending review Topic 3]]+Dataset[[#This Row],[2025/26 To - Spending review Topic 4]]+Dataset[[#This Row],[2025/26 To - Other reallocations]]","v":0},{"$f":"Dataset[[#This Row],[2026/27 To - Spending review Topic 1]]+Dataset[[#This Row],[2026/27 To - Spending review Topic 2]]+Dataset[[#This Row],[2026/27 To - Spending review Topic 3]]+Dataset[[#This Row],[2026/27 To - Spending review Topic 4]]+Dataset[[#This Row],[2026/27 To - Other reallocations]]","v":0},{"$f":"Dataset[[#This Row],[2024/25 Reduction]]+Dataset[[#This Row],[2024/25 From - Total]]","v":0},{"$f":"Dataset[[#This Row],[2025/26 Reduction]]+Dataset[[#This Row],[2025/26 From - Total]]","v":0},{"$f":"Dataset[[#This Row],[2026/27 Reduction]]+Dataset[[#This Row],[2026/27 From - Total]]","v":0},{"$f":"Dataset[[#This Row],[2023/24 Reduction]]","v":0},{"$f":"SUM(Dataset[[#This Row],[2024/25 Reduction]],Dataset[[#This Row],[2024/25 From - Total]],Dataset[[#This Row],[2024/25 To - Total]])","v":0},{"$f":"SUM(Dataset[[#This Row],[2025/26 Reduction]],Dataset[[#This Row],[2025/26 From - Total]],Dataset[[#This Row],[2025/26 To - Total]])","v":0},{"$f":"SUM(Dataset[[#This Row],[2026/27 Reduction]],Dataset[[#This Row],[2026/27 From - Total]],Dataset[[#This Row],[2026/27 To - Total]])","v":0},{"$f":"Dataset[[#This Row],[2023/24 Baseline]]+Dataset[[#This Row],[2023/24 Total change]]","v":0},{"$f":"Dataset[[#This Row],[2024/25 Baseline]]+Dataset[[#This Row],[2024/25 Total change]]","v":0},{"$f":"Dataset[[#This Row],[2025/26 Baseline]]+Dataset[[#This Row],[2025/26 Total change]]","v":0},{"$f":"Dataset[[#This Row],[2026/27 Baseline]]+Dataset[[#This Row],[2026/27 Total change]]","v":0}]
["NAT|Household","26|Social benefits","2024_25","MTEF2024",26,1,5,44251,364,"26","01","05","044251","000364","26|01|05","01","02","10","52","56","01|02|10|52|56","National","Military Veterans","Administration","Strategic Planning, Policy Development, and Monitoring and Evaluation","Household","Current","Transfers and subsidies","Households","Social benefits","Social benefits","Peace and security","Defence and state security","NAT",34,23,155,0,0,0,0,0,0,0,0,null,null,null,null,null,null,null,null,null,null,null,null,null,null,null,null,null,null,null,null,null,null,null,null,null,null,null,null,null,null,null,null,null,null,{"$f":"Dataset[[#This Row],[2024/25 From - Spending review Topic 1]]+Dataset[[#This Row],[2024/25 From - Spending review Topic 2]]+Dataset[[#This Row],[2024/25 From - Spending review Topic 3]]+Dataset[[#This Row],[2024/25 From - Spending review Topic 4]]+Dataset[[#This Row],[2024/25 From - Other reallocations]]","v":0},{"$f":"Dataset[[#This Row],[2025/26 From - Spending review Topic 1]]+Dataset[[#This Row],[2025/26 From - Spending review Topic 2]]+Dataset[[#This Row],[2025/26 From - Spending review Topic 3]]+Dataset[[#This Row],[2025/26 From - Spending review Topic 4]]+Dataset[[#This Row],[2025/26 From - Other reallocations]]","v":0},{"$f":"Dataset[[#This Row],[2026/27 From - Spending review Topic 1]]+Dataset[[#This Row],[2026/27 From - Spending review Topic 2]]+Dataset[[#This Row],[2026/27 From - Spending review Topic 3]]+Dataset[[#This Row],[2026/27 From - Spending review Topic 4]]+Dataset[[#This Row],[2026/27 From - Other reallocations]]","v":0},{"$f":"Dataset[[#This Row],[2024/25 To - Spending review Topic 1]]+Dataset[[#This Row],[2024/25 To - Spending review Topic 2]]+Dataset[[#This Row],[2024/25 To - Spending review Topic 3]]+Dataset[[#This Row],[2024/25 To - Spending review Topic 4]]+Dataset[[#This Row],[2024/25 To - Other reallocations]]","v":0},{"$f":"Dataset[[#This Row],[2025/26 To - Spending review Topic 1]]+Dataset[[#This Row],[2025/26 To - Spending review Topic 2]]+Dataset[[#This Row],[2025/26 To - Spending review Topic 3]]+Dataset[[#This Row],[2025/26 To - Spending review Topic 4]]+Dataset[[#This Row],[2025/26 To - Other reallocations]]","v":0},{"$f":"Dataset[[#This Row],[2026/27 To - Spending review Topic 1]]+Dataset[[#This Row],[2026/27 To - Spending review Topic 2]]+Dataset[[#This Row],[2026/27 To - Spending review Topic 3]]+Dataset[[#This Row],[2026/27 To - Spending review Topic 4]]+Dataset[[#This Row],[2026/27 To - Other reallocations]]","v":0},{"$f":"Dataset[[#This Row],[2024/25 Reduction]]+Dataset[[#This Row],[2024/25 From - Total]]","v":0},{"$f":"Dataset[[#This Row],[2025/26 Reduction]]+Dataset[[#This Row],[2025/26 From - Total]]","v":0},{"$f":"Dataset[[#This Row],[2026/27 Reduction]]+Dataset[[#This Row],[2026/27 From - Total]]","v":0},{"$f":"Dataset[[#This Row],[2023/24 Reduction]]","v":0},{"$f":"SUM(Dataset[[#This Row],[2024/25 Reduction]],Dataset[[#This Row],[2024/25 From - Total]],Dataset[[#This Row],[2024/25 To - Total]])","v":0},{"$f":"SUM(Dataset[[#This Row],[2025/26 Reduction]],Dataset[[#This Row],[2025/26 From - Total]],Dataset[[#This Row],[2025/26 To - Total]])","v":0},{"$f":"SUM(Dataset[[#This Row],[2026/27 Reduction]],Dataset[[#This Row],[2026/27 From - Total]],Dataset[[#This Row],[2026/27 To - Total]])","v":0},{"$f":"Dataset[[#This Row],[2023/24 Baseline]]+Dataset[[#This Row],[2023/24 Total change]]","v":0},{"$f":"Dataset[[#This Row],[2024/25 Baseline]]+Dataset[[#This Row],[2024/25 Total change]]","v":0},{"$f":"Dataset[[#This Row],[2025/26 Baseline]]+Dataset[[#This Row],[2025/26 Total change]]","v":0},{"$f":"Dataset[[#This Row],[2026/27 Baseline]]+Dataset[[#This Row],[2026/27 Total change]]","v":0}]
["NAT|Non-transfer item","26|Other transfers to households","2024_25","MTEF2024",26,1,5,44252,365,"26","01","05","044252","000365","26|01|05","01","02","10","53","57","01|02|10|53|57","National","Military Veterans","Administration","Strategic Planning, Policy Development, and Monitoring and Evaluation","Non-transfer item","Current","Transfers and subsidies","Households","Other transfers to households","Other transfers to households","Peace and security","Defence and state security","NAT",0,0,0,0,0,0,0,0,0,0,0,null,null,null,null,null,null,null,null,null,null,null,null,null,null,null,null,null,null,null,null,null,null,null,null,null,null,null,null,null,null,null,null,null,null,{"$f":"Dataset[[#This Row],[2024/25 From - Spending review Topic 1]]+Dataset[[#This Row],[2024/25 From - Spending review Topic 2]]+Dataset[[#This Row],[2024/25 From - Spending review Topic 3]]+Dataset[[#This Row],[2024/25 From - Spending review Topic 4]]+Dataset[[#This Row],[2024/25 From - Other reallocations]]","v":0},{"$f":"Dataset[[#This Row],[2025/26 From - Spending review Topic 1]]+Dataset[[#This Row],[2025/26 From - Spending review Topic 2]]+Dataset[[#This Row],[2025/26 From - Spending review Topic 3]]+Dataset[[#This Row],[2025/26 From - Spending review Topic 4]]+Dataset[[#This Row],[2025/26 From - Other reallocations]]","v":0},{"$f":"Dataset[[#This Row],[2026/27 From - Spending review Topic 1]]+Dataset[[#This Row],[2026/27 From - Spending review Topic 2]]+Dataset[[#This Row],[2026/27 From - Spending review Topic 3]]+Dataset[[#This Row],[2026/27 From - Spending review Topic 4]]+Dataset[[#This Row],[2026/27 From - Other reallocations]]","v":0},{"$f":"Dataset[[#This Row],[2024/25 To - Spending review Topic 1]]+Dataset[[#This Row],[2024/25 To - Spending review Topic 2]]+Dataset[[#This Row],[2024/25 To - Spending review Topic 3]]+Dataset[[#This Row],[2024/25 To - Spending review Topic 4]]+Dataset[[#This Row],[2024/25 To - Other reallocations]]","v":0},{"$f":"Dataset[[#This Row],[2025/26 To - Spending review Topic 1]]+Dataset[[#This Row],[2025/26 To - Spending review Topic 2]]+Dataset[[#This Row],[2025/26 To - Spending review Topic 3]]+Dataset[[#This Row],[2025/26 To - Spending review Topic 4]]+Dataset[[#This Row],[2025/26 To - Other reallocations]]","v":0},{"$f":"Dataset[[#This Row],[2026/27 To - Spending review Topic 1]]+Dataset[[#This Row],[2026/27 To - Spending review Topic 2]]+Dataset[[#This Row],[2026/27 To - Spending review Topic 3]]+Dataset[[#This Row],[2026/27 To - Spending review Topic 4]]+Dataset[[#This Row],[2026/27 To - Other reallocations]]","v":0},{"$f":"Dataset[[#This Row],[2024/25 Reduction]]+Dataset[[#This Row],[2024/25 From - Total]]","v":0},{"$f":"Dataset[[#This Row],[2025/26 Reduction]]+Dataset[[#This Row],[2025/26 From - Total]]","v":0},{"$f":"Dataset[[#This Row],[2026/27 Reduction]]+Dataset[[#This Row],[2026/27 From - Total]]","v":0},{"$f":"Dataset[[#This Row],[2023/24 Reduction]]","v":0},{"$f":"SUM(Dataset[[#This Row],[2024/25 Reduction]],Dataset[[#This Row],[2024/25 From - Total]],Dataset[[#This Row],[2024/25 To - Total]])","v":0},{"$f":"SUM(Dataset[[#This Row],[2025/26 Reduction]],Dataset[[#This Row],[2025/26 From - Total]],Dataset[[#This Row],[2025/26 To - Total]])","v":0},{"$f":"SUM(Dataset[[#This Row],[2026/27 Reduction]],Dataset[[#This Row],[2026/27 From - Total]],Dataset[[#This Row],[2026/27 To - Total]])","v":0},{"$f":"Dataset[[#This Row],[2023/24 Baseline]]+Dataset[[#This Row],[2023/24 Total change]]","v":0},{"$f":"Dataset[[#This Row],[2024/25 Baseline]]+Dataset[[#This Row],[2024/25 Total change]]","v":0},{"$f":"Dataset[[#This Row],[2025/26 Baseline]]+Dataset[[#This Row],[2025/26 Total change]]","v":0},{"$f":"Dataset[[#This Row],[2026/27 Baseline]]+Dataset[[#This Row],[2026/27 Total change]]","v":0}]
["NAT|Non-transfer item","26|Provincial Revenue Funds","2024_25","MTEF2024",26,1,5,44253,366,"26","01","05","044253","000366","26|01|05","02","02","04","43","43","02|02|04|43|43","National","Military Veterans","Administration","Strategic Planning, Policy Development, and Monitoring and Evaluation","Non-transfer item","Capital","Transfers and subsidies","Provinces and municipalities","Provinces","Provincial Revenue Funds","Peace and security","Defence and state security","NAT",0,0,0,0,0,0,0,0,0,0,0,null,null,null,null,null,null,null,null,null,null,null,null,null,null,null,null,null,null,null,null,null,null,null,null,null,null,null,null,null,null,null,null,null,null,{"$f":"Dataset[[#This Row],[2024/25 From - Spending review Topic 1]]+Dataset[[#This Row],[2024/25 From - Spending review Topic 2]]+Dataset[[#This Row],[2024/25 From - Spending review Topic 3]]+Dataset[[#This Row],[2024/25 From - Spending review Topic 4]]+Dataset[[#This Row],[2024/25 From - Other reallocations]]","v":0},{"$f":"Dataset[[#This Row],[2025/26 From - Spending review Topic 1]]+Dataset[[#This Row],[2025/26 From - Spending review Topic 2]]+Dataset[[#This Row],[2025/26 From - Spending review Topic 3]]+Dataset[[#This Row],[2025/26 From - Spending review Topic 4]]+Dataset[[#This Row],[2025/26 From - Other reallocations]]","v":0},{"$f":"Dataset[[#This Row],[2026/27 From - Spending review Topic 1]]+Dataset[[#This Row],[2026/27 From - Spending review Topic 2]]+Dataset[[#This Row],[2026/27 From - Spending review Topic 3]]+Dataset[[#This Row],[2026/27 From - Spending review Topic 4]]+Dataset[[#This Row],[2026/27 From - Other reallocations]]","v":0},{"$f":"Dataset[[#This Row],[2024/25 To - Spending review Topic 1]]+Dataset[[#This Row],[2024/25 To - Spending review Topic 2]]+Dataset[[#This Row],[2024/25 To - Spending review Topic 3]]+Dataset[[#This Row],[2024/25 To - Spending review Topic 4]]+Dataset[[#This Row],[2024/25 To - Other reallocations]]","v":0},{"$f":"Dataset[[#This Row],[2025/26 To - Spending review Topic 1]]+Dataset[[#This Row],[2025/26 To - Spending review Topic 2]]+Dataset[[#This Row],[2025/26 To - Spending review Topic 3]]+Dataset[[#This Row],[2025/26 To - Spending review Topic 4]]+Dataset[[#This Row],[2025/26 To - Other reallocations]]","v":0},{"$f":"Dataset[[#This Row],[2026/27 To - Spending review Topic 1]]+Dataset[[#This Row],[2026/27 To - Spending review Topic 2]]+Dataset[[#This Row],[2026/27 To - Spending review Topic 3]]+Dataset[[#This Row],[2026/27 To - Spending review Topic 4]]+Dataset[[#This Row],[2026/27 To - Other reallocations]]","v":0},{"$f":"Dataset[[#This Row],[2024/25 Reduction]]+Dataset[[#This Row],[2024/25 From - Total]]","v":0},{"$f":"Dataset[[#This Row],[2025/26 Reduction]]+Dataset[[#This Row],[2025/26 From - Total]]","v":0},{"$f":"Dataset[[#This Row],[2026/27 Reduction]]+Dataset[[#This Row],[2026/27 From - Total]]","v":0},{"$f":"Dataset[[#This Row],[2023/24 Reduction]]","v":0},{"$f":"SUM(Dataset[[#This Row],[2024/25 Reduction]],Dataset[[#This Row],[2024/25 From - Total]],Dataset[[#This Row],[2024/25 To - Total]])","v":0},{"$f":"SUM(Dataset[[#This Row],[2025/26 Reduction]],Dataset[[#This Row],[2025/26 From - Total]],Dataset[[#This Row],[2025/26 To - Total]])","v":0},{"$f":"SUM(Dataset[[#This Row],[2026/27 Reduction]],Dataset[[#This Row],[2026/27 From - Total]],Dataset[[#This Row],[2026/27 To - Total]])","v":0},{"$f":"Dataset[[#This Row],[2023/24 Baseline]]+Dataset[[#This Row],[2023/24 Total change]]","v":0},{"$f":"Dataset[[#This Row],[2024/25 Baseline]]+Dataset[[#This Row],[2024/25 Total change]]","v":0},{"$f":"Dataset[[#This Row],[2025/26 Baseline]]+Dataset[[#This Row],[2025/26 Total change]]","v":0},{"$f":"Dataset[[#This Row],[2026/27 Baseline]]+Dataset[[#This Row],[2026/27 Total change]]","v":0}]
["NAT|Non-transfer item","26|Municipal bank accounts","2024_25","MTEF2024",26,1,5,44254,367,"26","01","05","044254","000367","26|01|05","02","02","04","44","45","02|02|04|44|45","National","Military Veterans","Administration","Strategic Planning, Policy Development, and Monitoring and Evaluation","Non-transfer item","Capital","Transfers and subsidies","Provinces and municipalities","Municipalities","Municipal bank accounts","Peace and security","Defence and state security","NAT",0,0,0,0,0,0,0,0,0,0,0,null,null,null,null,null,null,null,null,null,null,null,null,null,null,null,null,null,null,null,null,null,null,null,null,null,null,null,null,null,null,null,null,null,null,{"$f":"Dataset[[#This Row],[2024/25 From - Spending review Topic 1]]+Dataset[[#This Row],[2024/25 From - Spending review Topic 2]]+Dataset[[#This Row],[2024/25 From - Spending review Topic 3]]+Dataset[[#This Row],[2024/25 From - Spending review Topic 4]]+Dataset[[#This Row],[2024/25 From - Other reallocations]]","v":0},{"$f":"Dataset[[#This Row],[2025/26 From - Spending review Topic 1]]+Dataset[[#This Row],[2025/26 From - Spending review Topic 2]]+Dataset[[#This Row],[2025/26 From - Spending review Topic 3]]+Dataset[[#This Row],[2025/26 From - Spending review Topic 4]]+Dataset[[#This Row],[2025/26 From - Other reallocations]]","v":0},{"$f":"Dataset[[#This Row],[2026/27 From - Spending review Topic 1]]+Dataset[[#This Row],[2026/27 From - Spending review Topic 2]]+Dataset[[#This Row],[2026/27 From - Spending review Topic 3]]+Dataset[[#This Row],[2026/27 From - Spending review Topic 4]]+Dataset[[#This Row],[2026/27 From - Other reallocations]]","v":0},{"$f":"Dataset[[#This Row],[2024/25 To - Spending review Topic 1]]+Dataset[[#This Row],[2024/25 To - Spending review Topic 2]]+Dataset[[#This Row],[2024/25 To - Spending review Topic 3]]+Dataset[[#This Row],[2024/25 To - Spending review Topic 4]]+Dataset[[#This Row],[2024/25 To - Other reallocations]]","v":0},{"$f":"Dataset[[#This Row],[2025/26 To - Spending review Topic 1]]+Dataset[[#This Row],[2025/26 To - Spending review Topic 2]]+Dataset[[#This Row],[2025/26 To - Spending review Topic 3]]+Dataset[[#This Row],[2025/26 To - Spending review Topic 4]]+Dataset[[#This Row],[2025/26 To - Other reallocations]]","v":0},{"$f":"Dataset[[#This Row],[2026/27 To - Spending review Topic 1]]+Dataset[[#This Row],[2026/27 To - Spending review Topic 2]]+Dataset[[#This Row],[2026/27 To - Spending review Topic 3]]+Dataset[[#This Row],[2026/27 To - Spending review Topic 4]]+Dataset[[#This Row],[2026/27 To - Other reallocations]]","v":0},{"$f":"Dataset[[#This Row],[2024/25 Reduction]]+Dataset[[#This Row],[2024/25 From - Total]]","v":0},{"$f":"Dataset[[#This Row],[2025/26 Reduction]]+Dataset[[#This Row],[2025/26 From - Total]]","v":0},{"$f":"Dataset[[#This Row],[2026/27 Reduction]]+Dataset[[#This Row],[2026/27 From - Total]]","v":0},{"$f":"Dataset[[#This Row],[2023/24 Reduction]]","v":0},{"$f":"SUM(Dataset[[#This Row],[2024/25 Reduction]],Dataset[[#This Row],[2024/25 From - Total]],Dataset[[#This Row],[2024/25 To - Total]])","v":0},{"$f":"SUM(Dataset[[#This Row],[2025/26 Reduction]],Dataset[[#This Row],[2025/26 From - Total]],Dataset[[#This Row],[2025/26 To - Total]])","v":0},{"$f":"SUM(Dataset[[#This Row],[2026/27 Reduction]],Dataset[[#This Row],[2026/27 From - Total]],Dataset[[#This Row],[2026/27 To - Total]])","v":0},{"$f":"Dataset[[#This Row],[2023/24 Baseline]]+Dataset[[#This Row],[2023/24 Total change]]","v":0},{"$f":"Dataset[[#This Row],[2024/25 Baseline]]+Dataset[[#This Row],[2024/25 Total change]]","v":0},{"$f":"Dataset[[#This Row],[2025/26 Baseline]]+Dataset[[#This Row],[2025/26 Total change]]","v":0},{"$f":"Dataset[[#This Row],[2026/27 Baseline]]+Dataset[[#This Row],[2026/27 Total change]]","v":0}]
["NAT|Non-transfer item","26|Departmental agencies (non-business entities)","2024_25","MTEF2024",26,1,5,44255,368,"26","01","05","044255","000368","26|01|05","02","02","05","46","48","02|02|05|46|48","National","Military Veterans","Administration","Strategic Planning, Policy Development, and Monitoring and Evaluation","Non-transfer item","Capital","Transfers and subsidies","Departmental agencies and accounts","Departmental agencies (non-business entities)","Departmental agencies (non-business entities)","Peace and security","Defence and state security","NAT",0,0,0,0,0,0,0,0,0,0,0,null,null,null,null,null,null,null,null,null,null,null,null,null,null,null,null,null,null,null,null,null,null,null,null,null,null,null,null,null,null,null,null,null,null,{"$f":"Dataset[[#This Row],[2024/25 From - Spending review Topic 1]]+Dataset[[#This Row],[2024/25 From - Spending review Topic 2]]+Dataset[[#This Row],[2024/25 From - Spending review Topic 3]]+Dataset[[#This Row],[2024/25 From - Spending review Topic 4]]+Dataset[[#This Row],[2024/25 From - Other reallocations]]","v":0},{"$f":"Dataset[[#This Row],[2025/26 From - Spending review Topic 1]]+Dataset[[#This Row],[2025/26 From - Spending review Topic 2]]+Dataset[[#This Row],[2025/26 From - Spending review Topic 3]]+Dataset[[#This Row],[2025/26 From - Spending review Topic 4]]+Dataset[[#This Row],[2025/26 From - Other reallocations]]","v":0},{"$f":"Dataset[[#This Row],[2026/27 From - Spending review Topic 1]]+Dataset[[#This Row],[2026/27 From - Spending review Topic 2]]+Dataset[[#This Row],[2026/27 From - Spending review Topic 3]]+Dataset[[#This Row],[2026/27 From - Spending review Topic 4]]+Dataset[[#This Row],[2026/27 From - Other reallocations]]","v":0},{"$f":"Dataset[[#This Row],[2024/25 To - Spending review Topic 1]]+Dataset[[#This Row],[2024/25 To - Spending review Topic 2]]+Dataset[[#This Row],[2024/25 To - Spending review Topic 3]]+Dataset[[#This Row],[2024/25 To - Spending review Topic 4]]+Dataset[[#This Row],[2024/25 To - Other reallocations]]","v":0},{"$f":"Dataset[[#This Row],[2025/26 To - Spending review Topic 1]]+Dataset[[#This Row],[2025/26 To - Spending review Topic 2]]+Dataset[[#This Row],[2025/26 To - Spending review Topic 3]]+Dataset[[#This Row],[2025/26 To - Spending review Topic 4]]+Dataset[[#This Row],[2025/26 To - Other reallocations]]","v":0},{"$f":"Dataset[[#This Row],[2026/27 To - Spending review Topic 1]]+Dataset[[#This Row],[2026/27 To - Spending review Topic 2]]+Dataset[[#This Row],[2026/27 To - Spending review Topic 3]]+Dataset[[#This Row],[2026/27 To - Spending review Topic 4]]+Dataset[[#This Row],[2026/27 To - Other reallocations]]","v":0},{"$f":"Dataset[[#This Row],[2024/25 Reduction]]+Dataset[[#This Row],[2024/25 From - Total]]","v":0},{"$f":"Dataset[[#This Row],[2025/26 Reduction]]+Dataset[[#This Row],[2025/26 From - Total]]","v":0},{"$f":"Dataset[[#This Row],[2026/27 Reduction]]+Dataset[[#This Row],[2026/27 From - Total]]","v":0},{"$f":"Dataset[[#This Row],[2023/24 Reduction]]","v":0},{"$f":"SUM(Dataset[[#This Row],[2024/25 Reduction]],Dataset[[#This Row],[2024/25 From - Total]],Dataset[[#This Row],[2024/25 To - Total]])","v":0},{"$f":"SUM(Dataset[[#This Row],[2025/26 Reduction]],Dataset[[#This Row],[2025/26 From - Total]],Dataset[[#This Row],[2025/26 To - Total]])","v":0},{"$f":"SUM(Dataset[[#This Row],[2026/27 Reduction]],Dataset[[#This Row],[2026/27 From - Total]],Dataset[[#This Row],[2026/27 To - Total]])","v":0},{"$f":"Dataset[[#This Row],[2023/24 Baseline]]+Dataset[[#This Row],[2023/24 Total change]]","v":0},{"$f":"Dataset[[#This Row],[2024/25 Baseline]]+Dataset[[#This Row],[2024/25 Total change]]","v":0},{"$f":"Dataset[[#This Row],[2025/26 Baseline]]+Dataset[[#This Row],[2025/26 Total change]]","v":0},{"$f":"Dataset[[#This Row],[2026/27 Baseline]]+Dataset[[#This Row],[2026/27 Total change]]","v":0}]
["NAT|Non-transfer item","26|Higher education institutions","2024_25","MTEF2024",26,1,5,44256,369,"26","01","05","044256","000369","26|01|05","02","02","06","47","49","02|02|06|47|49","National","Military Veterans","Administration","Strategic Planning, Policy Development, and Monitoring and Evaluation","Non-transfer item","Capital","Transfers and subsidies","Higher education institutions","Higher education institutions","Higher education institutions","Peace and security","Defence and state security","NAT",0,0,0,0,0,0,0,0,0,0,0,null,null,null,null,null,null,null,null,null,null,null,null,null,null,null,null,null,null,null,null,null,null,null,null,null,null,null,null,null,null,null,null,null,null,{"$f":"Dataset[[#This Row],[2024/25 From - Spending review Topic 1]]+Dataset[[#This Row],[2024/25 From - Spending review Topic 2]]+Dataset[[#This Row],[2024/25 From - Spending review Topic 3]]+Dataset[[#This Row],[2024/25 From - Spending review Topic 4]]+Dataset[[#This Row],[2024/25 From - Other reallocations]]","v":0},{"$f":"Dataset[[#This Row],[2025/26 From - Spending review Topic 1]]+Dataset[[#This Row],[2025/26 From - Spending review Topic 2]]+Dataset[[#This Row],[2025/26 From - Spending review Topic 3]]+Dataset[[#This Row],[2025/26 From - Spending review Topic 4]]+Dataset[[#This Row],[2025/26 From - Other reallocations]]","v":0},{"$f":"Dataset[[#This Row],[2026/27 From - Spending review Topic 1]]+Dataset[[#This Row],[2026/27 From - Spending review Topic 2]]+Dataset[[#This Row],[2026/27 From - Spending review Topic 3]]+Dataset[[#This Row],[2026/27 From - Spending review Topic 4]]+Dataset[[#This Row],[2026/27 From - Other reallocations]]","v":0},{"$f":"Dataset[[#This Row],[2024/25 To - Spending review Topic 1]]+Dataset[[#This Row],[2024/25 To - Spending review Topic 2]]+Dataset[[#This Row],[2024/25 To - Spending review Topic 3]]+Dataset[[#This Row],[2024/25 To - Spending review Topic 4]]+Dataset[[#This Row],[2024/25 To - Other reallocations]]","v":0},{"$f":"Dataset[[#This Row],[2025/26 To - Spending review Topic 1]]+Dataset[[#This Row],[2025/26 To - Spending review Topic 2]]+Dataset[[#This Row],[2025/26 To - Spending review Topic 3]]+Dataset[[#This Row],[2025/26 To - Spending review Topic 4]]+Dataset[[#This Row],[2025/26 To - Other reallocations]]","v":0},{"$f":"Dataset[[#This Row],[2026/27 To - Spending review Topic 1]]+Dataset[[#This Row],[2026/27 To - Spending review Topic 2]]+Dataset[[#This Row],[2026/27 To - Spending review Topic 3]]+Dataset[[#This Row],[2026/27 To - Spending review Topic 4]]+Dataset[[#This Row],[2026/27 To - Other reallocations]]","v":0},{"$f":"Dataset[[#This Row],[2024/25 Reduction]]+Dataset[[#This Row],[2024/25 From - Total]]","v":0},{"$f":"Dataset[[#This Row],[2025/26 Reduction]]+Dataset[[#This Row],[2025/26 From - Total]]","v":0},{"$f":"Dataset[[#This Row],[2026/27 Reduction]]+Dataset[[#This Row],[2026/27 From - Total]]","v":0},{"$f":"Dataset[[#This Row],[2023/24 Reduction]]","v":0},{"$f":"SUM(Dataset[[#This Row],[2024/25 Reduction]],Dataset[[#This Row],[2024/25 From - Total]],Dataset[[#This Row],[2024/25 To - Total]])","v":0},{"$f":"SUM(Dataset[[#This Row],[2025/26 Reduction]],Dataset[[#This Row],[2025/26 From - Total]],Dataset[[#This Row],[2025/26 To - Total]])","v":0},{"$f":"SUM(Dataset[[#This Row],[2026/27 Reduction]],Dataset[[#This Row],[2026/27 From - Total]],Dataset[[#This Row],[2026/27 To - Total]])","v":0},{"$f":"Dataset[[#This Row],[2023/24 Baseline]]+Dataset[[#This Row],[2023/24 Total change]]","v":0},{"$f":"Dataset[[#This Row],[2024/25 Baseline]]+Dataset[[#This Row],[2024/25 Total change]]","v":0},{"$f":"Dataset[[#This Row],[2025/26 Baseline]]+Dataset[[#This Row],[2025/26 Total change]]","v":0},{"$f":"Dataset[[#This Row],[2026/27 Baseline]]+Dataset[[#This Row],[2026/27 Total change]]","v":0}]
["NAT|Non-transfer item","26|Foreign governments and international organisations","2024_25","MTEF2024",26,1,5,44257,370,"26","01","05","044257","000370","26|01|05","02","02","07","48","50","02|02|07|48|50","National","Military Veterans","Administration","Strategic Planning, Policy Development, and Monitoring and Evaluation","Non-transfer item","Capital","Transfers and subsidies","Foreign governments and international organisations","Foreign governments and international organisations","Foreign governments and international organisations","Peace and security","Defence and state security","NAT",0,0,0,0,0,0,0,0,0,0,0,null,null,null,null,null,null,null,null,null,null,null,null,null,null,null,null,null,null,null,null,null,null,null,null,null,null,null,null,null,null,null,null,null,null,{"$f":"Dataset[[#This Row],[2024/25 From - Spending review Topic 1]]+Dataset[[#This Row],[2024/25 From - Spending review Topic 2]]+Dataset[[#This Row],[2024/25 From - Spending review Topic 3]]+Dataset[[#This Row],[2024/25 From - Spending review Topic 4]]+Dataset[[#This Row],[2024/25 From - Other reallocations]]","v":0},{"$f":"Dataset[[#This Row],[2025/26 From - Spending review Topic 1]]+Dataset[[#This Row],[2025/26 From - Spending review Topic 2]]+Dataset[[#This Row],[2025/26 From - Spending review Topic 3]]+Dataset[[#This Row],[2025/26 From - Spending review Topic 4]]+Dataset[[#This Row],[2025/26 From - Other reallocations]]","v":0},{"$f":"Dataset[[#This Row],[2026/27 From - Spending review Topic 1]]+Dataset[[#This Row],[2026/27 From - Spending review Topic 2]]+Dataset[[#This Row],[2026/27 From - Spending review Topic 3]]+Dataset[[#This Row],[2026/27 From - Spending review Topic 4]]+Dataset[[#This Row],[2026/27 From - Other reallocations]]","v":0},{"$f":"Dataset[[#This Row],[2024/25 To - Spending review Topic 1]]+Dataset[[#This Row],[2024/25 To - Spending review Topic 2]]+Dataset[[#This Row],[2024/25 To - Spending review Topic 3]]+Dataset[[#This Row],[2024/25 To - Spending review Topic 4]]+Dataset[[#This Row],[2024/25 To - Other reallocations]]","v":0},{"$f":"Dataset[[#This Row],[2025/26 To - Spending review Topic 1]]+Dataset[[#This Row],[2025/26 To - Spending review Topic 2]]+Dataset[[#This Row],[2025/26 To - Spending review Topic 3]]+Dataset[[#This Row],[2025/26 To - Spending review Topic 4]]+Dataset[[#This Row],[2025/26 To - Other reallocations]]","v":0},{"$f":"Dataset[[#This Row],[2026/27 To - Spending review Topic 1]]+Dataset[[#This Row],[2026/27 To - Spending review Topic 2]]+Dataset[[#This Row],[2026/27 To - Spending review Topic 3]]+Dataset[[#This Row],[2026/27 To - Spending review Topic 4]]+Dataset[[#This Row],[2026/27 To - Other reallocations]]","v":0},{"$f":"Dataset[[#This Row],[2024/25 Reduction]]+Dataset[[#This Row],[2024/25 From - Total]]","v":0},{"$f":"Dataset[[#This Row],[2025/26 Reduction]]+Dataset[[#This Row],[2025/26 From - Total]]","v":0},{"$f":"Dataset[[#This Row],[2026/27 Reduction]]+Dataset[[#This Row],[2026/27 From - Total]]","v":0},{"$f":"Dataset[[#This Row],[2023/24 Reduction]]","v":0},{"$f":"SUM(Dataset[[#This Row],[2024/25 Reduction]],Dataset[[#This Row],[2024/25 From - Total]],Dataset[[#This Row],[2024/25 To - Total]])","v":0},{"$f":"SUM(Dataset[[#This Row],[2025/26 Reduction]],Dataset[[#This Row],[2025/26 From - Total]],Dataset[[#This Row],[2025/26 To - Total]])","v":0},{"$f":"SUM(Dataset[[#This Row],[2026/27 Reduction]],Dataset[[#This Row],[2026/27 From - Total]],Dataset[[#This Row],[2026/27 To - Total]])","v":0},{"$f":"Dataset[[#This Row],[2023/24 Baseline]]+Dataset[[#This Row],[2023/24 Total change]]","v":0},{"$f":"Dataset[[#This Row],[2024/25 Baseline]]+Dataset[[#This Row],[2024/25 Total change]]","v":0},{"$f":"Dataset[[#This Row],[2025/26 Baseline]]+Dataset[[#This Row],[2025/26 Total change]]","v":0},{"$f":"Dataset[[#This Row],[2026/27 Baseline]]+Dataset[[#This Row],[2026/27 Total change]]","v":0}]
["NAT|Non-transfer item","26|Subsidies on products and production (pc)","2024_25","MTEF2024",26,1,5,44258,371,"26","01","05","044258","000371","26|01|05","02","02","08","49","51","02|02|08|49|51","National","Military Veterans","Administration","Strategic Planning, Policy Development, and Monitoring and Evaluation","Non-transfer item","Capital","Transfers and subsidies","Public corporations and private enterprises","Public corporations","Subsidies on products and production (pc)","Peace and security","Defence and state security","NAT",0,0,0,0,0,0,0,0,0,0,0,null,null,null,null,null,null,null,null,null,null,null,null,null,null,null,null,null,null,null,null,null,null,null,null,null,null,null,null,null,null,null,null,null,null,{"$f":"Dataset[[#This Row],[2024/25 From - Spending review Topic 1]]+Dataset[[#This Row],[2024/25 From - Spending review Topic 2]]+Dataset[[#This Row],[2024/25 From - Spending review Topic 3]]+Dataset[[#This Row],[2024/25 From - Spending review Topic 4]]+Dataset[[#This Row],[2024/25 From - Other reallocations]]","v":0},{"$f":"Dataset[[#This Row],[2025/26 From - Spending review Topic 1]]+Dataset[[#This Row],[2025/26 From - Spending review Topic 2]]+Dataset[[#This Row],[2025/26 From - Spending review Topic 3]]+Dataset[[#This Row],[2025/26 From - Spending review Topic 4]]+Dataset[[#This Row],[2025/26 From - Other reallocations]]","v":0},{"$f":"Dataset[[#This Row],[2026/27 From - Spending review Topic 1]]+Dataset[[#This Row],[2026/27 From - Spending review Topic 2]]+Dataset[[#This Row],[2026/27 From - Spending review Topic 3]]+Dataset[[#This Row],[2026/27 From - Spending review Topic 4]]+Dataset[[#This Row],[2026/27 From - Other reallocations]]","v":0},{"$f":"Dataset[[#This Row],[2024/25 To - Spending review Topic 1]]+Dataset[[#This Row],[2024/25 To - Spending review Topic 2]]+Dataset[[#This Row],[2024/25 To - Spending review Topic 3]]+Dataset[[#This Row],[2024/25 To - Spending review Topic 4]]+Dataset[[#This Row],[2024/25 To - Other reallocations]]","v":0},{"$f":"Dataset[[#This Row],[2025/26 To - Spending review Topic 1]]+Dataset[[#This Row],[2025/26 To - Spending review Topic 2]]+Dataset[[#This Row],[2025/26 To - Spending review Topic 3]]+Dataset[[#This Row],[2025/26 To - Spending review Topic 4]]+Dataset[[#This Row],[2025/26 To - Other reallocations]]","v":0},{"$f":"Dataset[[#This Row],[2026/27 To - Spending review Topic 1]]+Dataset[[#This Row],[2026/27 To - Spending review Topic 2]]+Dataset[[#This Row],[2026/27 To - Spending review Topic 3]]+Dataset[[#This Row],[2026/27 To - Spending review Topic 4]]+Dataset[[#This Row],[2026/27 To - Other reallocations]]","v":0},{"$f":"Dataset[[#This Row],[2024/25 Reduction]]+Dataset[[#This Row],[2024/25 From - Total]]","v":0},{"$f":"Dataset[[#This Row],[2025/26 Reduction]]+Dataset[[#This Row],[2025/26 From - Total]]","v":0},{"$f":"Dataset[[#This Row],[2026/27 Reduction]]+Dataset[[#This Row],[2026/27 From - Total]]","v":0},{"$f":"Dataset[[#This Row],[2023/24 Reduction]]","v":0},{"$f":"SUM(Dataset[[#This Row],[2024/25 Reduction]],Dataset[[#This Row],[2024/25 From - Total]],Dataset[[#This Row],[2024/25 To - Total]])","v":0},{"$f":"SUM(Dataset[[#This Row],[2025/26 Reduction]],Dataset[[#This Row],[2025/26 From - Total]],Dataset[[#This Row],[2025/26 To - Total]])","v":0},{"$f":"SUM(Dataset[[#This Row],[2026/27 Reduction]],Dataset[[#This Row],[2026/27 From - Total]],Dataset[[#This Row],[2026/27 To - Total]])","v":0},{"$f":"Dataset[[#This Row],[2023/24 Baseline]]+Dataset[[#This Row],[2023/24 Total change]]","v":0},{"$f":"Dataset[[#This Row],[2024/25 Baseline]]+Dataset[[#This Row],[2024/25 Total change]]","v":0},{"$f":"Dataset[[#This Row],[2025/26 Baseline]]+Dataset[[#This Row],[2025/26 Total change]]","v":0},{"$f":"Dataset[[#This Row],[2026/27 Baseline]]+Dataset[[#This Row],[2026/27 Total change]]","v":0}]
["NAT|Non-transfer item","26|Other transfers to public corporations","2024_25","MTEF2024",26,1,5,44259,372,"26","01","05","044259","000372","26|01|05","02","02","08","49","52","02|02|08|49|52","National","Military Veterans","Administration","Strategic Planning, Policy Development, and Monitoring and Evaluation","Non-transfer item","Capital","Transfers and subsidies","Public corporations and private enterprises","Public corporations","Other transfers to public corporations","Peace and security","Defence and state security","NAT",0,0,0,0,0,0,0,0,0,0,0,null,null,null,null,null,null,null,null,null,null,null,null,null,null,null,null,null,null,null,null,null,null,null,null,null,null,null,null,null,null,null,null,null,null,{"$f":"Dataset[[#This Row],[2024/25 From - Spending review Topic 1]]+Dataset[[#This Row],[2024/25 From - Spending review Topic 2]]+Dataset[[#This Row],[2024/25 From - Spending review Topic 3]]+Dataset[[#This Row],[2024/25 From - Spending review Topic 4]]+Dataset[[#This Row],[2024/25 From - Other reallocations]]","v":0},{"$f":"Dataset[[#This Row],[2025/26 From - Spending review Topic 1]]+Dataset[[#This Row],[2025/26 From - Spending review Topic 2]]+Dataset[[#This Row],[2025/26 From - Spending review Topic 3]]+Dataset[[#This Row],[2025/26 From - Spending review Topic 4]]+Dataset[[#This Row],[2025/26 From - Other reallocations]]","v":0},{"$f":"Dataset[[#This Row],[2026/27 From - Spending review Topic 1]]+Dataset[[#This Row],[2026/27 From - Spending review Topic 2]]+Dataset[[#This Row],[2026/27 From - Spending review Topic 3]]+Dataset[[#This Row],[2026/27 From - Spending review Topic 4]]+Dataset[[#This Row],[2026/27 From - Other reallocations]]","v":0},{"$f":"Dataset[[#This Row],[2024/25 To - Spending review Topic 1]]+Dataset[[#This Row],[2024/25 To - Spending review Topic 2]]+Dataset[[#This Row],[2024/25 To - Spending review Topic 3]]+Dataset[[#This Row],[2024/25 To - Spending review Topic 4]]+Dataset[[#This Row],[2024/25 To - Other reallocations]]","v":0},{"$f":"Dataset[[#This Row],[2025/26 To - Spending review Topic 1]]+Dataset[[#This Row],[2025/26 To - Spending review Topic 2]]+Dataset[[#This Row],[2025/26 To - Spending review Topic 3]]+Dataset[[#This Row],[2025/26 To - Spending review Topic 4]]+Dataset[[#This Row],[2025/26 To - Other reallocations]]","v":0},{"$f":"Dataset[[#This Row],[2026/27 To - Spending review Topic 1]]+Dataset[[#This Row],[2026/27 To - Spending review Topic 2]]+Dataset[[#This Row],[2026/27 To - Spending review Topic 3]]+Dataset[[#This Row],[2026/27 To - Spending review Topic 4]]+Dataset[[#This Row],[2026/27 To - Other reallocations]]","v":0},{"$f":"Dataset[[#This Row],[2024/25 Reduction]]+Dataset[[#This Row],[2024/25 From - Total]]","v":0},{"$f":"Dataset[[#This Row],[2025/26 Reduction]]+Dataset[[#This Row],[2025/26 From - Total]]","v":0},{"$f":"Dataset[[#This Row],[2026/27 Reduction]]+Dataset[[#This Row],[2026/27 From - Total]]","v":0},{"$f":"Dataset[[#This Row],[2023/24 Reduction]]","v":0},{"$f":"SUM(Dataset[[#This Row],[2024/25 Reduction]],Dataset[[#This Row],[2024/25 From - Total]],Dataset[[#This Row],[2024/25 To - Total]])","v":0},{"$f":"SUM(Dataset[[#This Row],[2025/26 Reduction]],Dataset[[#This Row],[2025/26 From - Total]],Dataset[[#This Row],[2025/26 To - Total]])","v":0},{"$f":"SUM(Dataset[[#This Row],[2026/27 Reduction]],Dataset[[#This Row],[2026/27 From - Total]],Dataset[[#This Row],[2026/27 To - Total]])","v":0},{"$f":"Dataset[[#This Row],[2023/24 Baseline]]+Dataset[[#This Row],[2023/24 Total change]]","v":0},{"$f":"Dataset[[#This Row],[2024/25 Baseline]]+Dataset[[#This Row],[2024/25 Total change]]","v":0},{"$f":"Dataset[[#This Row],[2025/26 Baseline]]+Dataset[[#This Row],[2025/26 Total change]]","v":0},{"$f":"Dataset[[#This Row],[2026/27 Baseline]]+Dataset[[#This Row],[2026/27 Total change]]","v":0}]
["NAT|Non-transfer item","26|Other transfers to private enterprises","2024_25","MTEF2024",26,1,5,44260,373,"26","01","05","044260","000373","26|01|05","02","02","08","50","54","02|02|08|50|54","National","Military Veterans","Administration","Strategic Planning, Policy Development, and Monitoring and Evaluation","Non-transfer item","Capital","Transfers and subsidies","Public corporations and private enterprises","Private enterprises","Other transfers to private enterprises","Peace and security","Defence and state security","NAT",0,0,0,0,0,0,0,0,0,0,0,null,null,null,null,null,null,null,null,null,null,null,null,null,null,null,null,null,null,null,null,null,null,null,null,null,null,null,null,null,null,null,null,null,null,{"$f":"Dataset[[#This Row],[2024/25 From - Spending review Topic 1]]+Dataset[[#This Row],[2024/25 From - Spending review Topic 2]]+Dataset[[#This Row],[2024/25 From - Spending review Topic 3]]+Dataset[[#This Row],[2024/25 From - Spending review Topic 4]]+Dataset[[#This Row],[2024/25 From - Other reallocations]]","v":0},{"$f":"Dataset[[#This Row],[2025/26 From - Spending review Topic 1]]+Dataset[[#This Row],[2025/26 From - Spending review Topic 2]]+Dataset[[#This Row],[2025/26 From - Spending review Topic 3]]+Dataset[[#This Row],[2025/26 From - Spending review Topic 4]]+Dataset[[#This Row],[2025/26 From - Other reallocations]]","v":0},{"$f":"Dataset[[#This Row],[2026/27 From - Spending review Topic 1]]+Dataset[[#This Row],[2026/27 From - Spending review Topic 2]]+Dataset[[#This Row],[2026/27 From - Spending review Topic 3]]+Dataset[[#This Row],[2026/27 From - Spending review Topic 4]]+Dataset[[#This Row],[2026/27 From - Other reallocations]]","v":0},{"$f":"Dataset[[#This Row],[2024/25 To - Spending review Topic 1]]+Dataset[[#This Row],[2024/25 To - Spending review Topic 2]]+Dataset[[#This Row],[2024/25 To - Spending review Topic 3]]+Dataset[[#This Row],[2024/25 To - Spending review Topic 4]]+Dataset[[#This Row],[2024/25 To - Other reallocations]]","v":0},{"$f":"Dataset[[#This Row],[2025/26 To - Spending review Topic 1]]+Dataset[[#This Row],[2025/26 To - Spending review Topic 2]]+Dataset[[#This Row],[2025/26 To - Spending review Topic 3]]+Dataset[[#This Row],[2025/26 To - Spending review Topic 4]]+Dataset[[#This Row],[2025/26 To - Other reallocations]]","v":0},{"$f":"Dataset[[#This Row],[2026/27 To - Spending review Topic 1]]+Dataset[[#This Row],[2026/27 To - Spending review Topic 2]]+Dataset[[#This Row],[2026/27 To - Spending review Topic 3]]+Dataset[[#This Row],[2026/27 To - Spending review Topic 4]]+Dataset[[#This Row],[2026/27 To - Other reallocations]]","v":0},{"$f":"Dataset[[#This Row],[2024/25 Reduction]]+Dataset[[#This Row],[2024/25 From - Total]]","v":0},{"$f":"Dataset[[#This Row],[2025/26 Reduction]]+Dataset[[#This Row],[2025/26 From - Total]]","v":0},{"$f":"Dataset[[#This Row],[2026/27 Reduction]]+Dataset[[#This Row],[2026/27 From - Total]]","v":0},{"$f":"Dataset[[#This Row],[2023/24 Reduction]]","v":0},{"$f":"SUM(Dataset[[#This Row],[2024/25 Reduction]],Dataset[[#This Row],[2024/25 From - Total]],Dataset[[#This Row],[2024/25 To - Total]])","v":0},{"$f":"SUM(Dataset[[#This Row],[2025/26 Reduction]],Dataset[[#This Row],[2025/26 From - Total]],Dataset[[#This Row],[2025/26 To - Total]])","v":0},{"$f":"SUM(Dataset[[#This Row],[2026/27 Reduction]],Dataset[[#This Row],[2026/27 From - Total]],Dataset[[#This Row],[2026/27 To - Total]])","v":0},{"$f":"Dataset[[#This Row],[2023/24 Baseline]]+Dataset[[#This Row],[2023/24 Total change]]","v":0},{"$f":"Dataset[[#This Row],[2024/25 Baseline]]+Dataset[[#This Row],[2024/25 Total change]]","v":0},{"$f":"Dataset[[#This Row],[2025/26 Baseline]]+Dataset[[#This Row],[2025/26 Total change]]","v":0},{"$f":"Dataset[[#This Row],[2026/27 Baseline]]+Dataset[[#This Row],[2026/27 Total change]]","v":0}]
["NAT|Non-transfer item","26|Non-profit institutions","2024_25","MTEF2024",26,1,5,44261,374,"26","01","05","044261","000374","26|01|05","02","02","09","51","55","02|02|09|51|55","National","Military Veterans","Administration","Strategic Planning, Policy Development, and Monitoring and Evaluation","Non-transfer item","Capital","Transfers and subsidies","Non-profit institutions","Non-profit institutions","Non-profit institutions","Peace and security","Defence and state security","NAT",0,0,0,0,0,0,0,0,0,0,0,null,null,null,null,null,null,null,null,null,null,null,null,null,null,null,null,null,null,null,null,null,null,null,null,null,null,null,null,null,null,null,null,null,null,{"$f":"Dataset[[#This Row],[2024/25 From - Spending review Topic 1]]+Dataset[[#This Row],[2024/25 From - Spending review Topic 2]]+Dataset[[#This Row],[2024/25 From - Spending review Topic 3]]+Dataset[[#This Row],[2024/25 From - Spending review Topic 4]]+Dataset[[#This Row],[2024/25 From - Other reallocations]]","v":0},{"$f":"Dataset[[#This Row],[2025/26 From - Spending review Topic 1]]+Dataset[[#This Row],[2025/26 From - Spending review Topic 2]]+Dataset[[#This Row],[2025/26 From - Spending review Topic 3]]+Dataset[[#This Row],[2025/26 From - Spending review Topic 4]]+Dataset[[#This Row],[2025/26 From - Other reallocations]]","v":0},{"$f":"Dataset[[#This Row],[2026/27 From - Spending review Topic 1]]+Dataset[[#This Row],[2026/27 From - Spending review Topic 2]]+Dataset[[#This Row],[2026/27 From - Spending review Topic 3]]+Dataset[[#This Row],[2026/27 From - Spending review Topic 4]]+Dataset[[#This Row],[2026/27 From - Other reallocations]]","v":0},{"$f":"Dataset[[#This Row],[2024/25 To - Spending review Topic 1]]+Dataset[[#This Row],[2024/25 To - Spending review Topic 2]]+Dataset[[#This Row],[2024/25 To - Spending review Topic 3]]+Dataset[[#This Row],[2024/25 To - Spending review Topic 4]]+Dataset[[#This Row],[2024/25 To - Other reallocations]]","v":0},{"$f":"Dataset[[#This Row],[2025/26 To - Spending review Topic 1]]+Dataset[[#This Row],[2025/26 To - Spending review Topic 2]]+Dataset[[#This Row],[2025/26 To - Spending review Topic 3]]+Dataset[[#This Row],[2025/26 To - Spending review Topic 4]]+Dataset[[#This Row],[2025/26 To - Other reallocations]]","v":0},{"$f":"Dataset[[#This Row],[2026/27 To - Spending review Topic 1]]+Dataset[[#This Row],[2026/27 To - Spending review Topic 2]]+Dataset[[#This Row],[2026/27 To - Spending review Topic 3]]+Dataset[[#This Row],[2026/27 To - Spending review Topic 4]]+Dataset[[#This Row],[2026/27 To - Other reallocations]]","v":0},{"$f":"Dataset[[#This Row],[2024/25 Reduction]]+Dataset[[#This Row],[2024/25 From - Total]]","v":0},{"$f":"Dataset[[#This Row],[2025/26 Reduction]]+Dataset[[#This Row],[2025/26 From - Total]]","v":0},{"$f":"Dataset[[#This Row],[2026/27 Reduction]]+Dataset[[#This Row],[2026/27 From - Total]]","v":0},{"$f":"Dataset[[#This Row],[2023/24 Reduction]]","v":0},{"$f":"SUM(Dataset[[#This Row],[2024/25 Reduction]],Dataset[[#This Row],[2024/25 From - Total]],Dataset[[#This Row],[2024/25 To - Total]])","v":0},{"$f":"SUM(Dataset[[#This Row],[2025/26 Reduction]],Dataset[[#This Row],[2025/26 From - Total]],Dataset[[#This Row],[2025/26 To - Total]])","v":0},{"$f":"SUM(Dataset[[#This Row],[2026/27 Reduction]],Dataset[[#This Row],[2026/27 From - Total]],Dataset[[#This Row],[2026/27 To - Total]])","v":0},{"$f":"Dataset[[#This Row],[2023/24 Baseline]]+Dataset[[#This Row],[2023/24 Total change]]","v":0},{"$f":"Dataset[[#This Row],[2024/25 Baseline]]+Dataset[[#This Row],[2024/25 Total change]]","v":0},{"$f":"Dataset[[#This Row],[2025/26 Baseline]]+Dataset[[#This Row],[2025/26 Total change]]","v":0},{"$f":"Dataset[[#This Row],[2026/27 Baseline]]+Dataset[[#This Row],[2026/27 Total change]]","v":0}]
["NAT|Non-transfer item","26|Other transfers to households","2024_25","MTEF2024",26,1,5,44262,375,"26","01","05","044262","000375","26|01|05","02","02","10","53","57","02|02|10|53|57","National","Military Veterans","Administration","Strategic Planning, Policy Development, and Monitoring and Evaluation","Non-transfer item","Capital","Transfers and subsidies","Households","Other transfers to households","Other transfers to households","Peace and security","Defence and state security","NAT",0,0,0,0,0,0,0,0,0,0,0,null,null,null,null,null,null,null,null,null,null,null,null,null,null,null,null,null,null,null,null,null,null,null,null,null,null,null,null,null,null,null,null,null,null,{"$f":"Dataset[[#This Row],[2024/25 From - Spending review Topic 1]]+Dataset[[#This Row],[2024/25 From - Spending review Topic 2]]+Dataset[[#This Row],[2024/25 From - Spending review Topic 3]]+Dataset[[#This Row],[2024/25 From - Spending review Topic 4]]+Dataset[[#This Row],[2024/25 From - Other reallocations]]","v":0},{"$f":"Dataset[[#This Row],[2025/26 From - Spending review Topic 1]]+Dataset[[#This Row],[2025/26 From - Spending review Topic 2]]+Dataset[[#This Row],[2025/26 From - Spending review Topic 3]]+Dataset[[#This Row],[2025/26 From - Spending review Topic 4]]+Dataset[[#This Row],[2025/26 From - Other reallocations]]","v":0},{"$f":"Dataset[[#This Row],[2026/27 From - Spending review Topic 1]]+Dataset[[#This Row],[2026/27 From - Spending review Topic 2]]+Dataset[[#This Row],[2026/27 From - Spending review Topic 3]]+Dataset[[#This Row],[2026/27 From - Spending review Topic 4]]+Dataset[[#This Row],[2026/27 From - Other reallocations]]","v":0},{"$f":"Dataset[[#This Row],[2024/25 To - Spending review Topic 1]]+Dataset[[#This Row],[2024/25 To - Spending review Topic 2]]+Dataset[[#This Row],[2024/25 To - Spending review Topic 3]]+Dataset[[#This Row],[2024/25 To - Spending review Topic 4]]+Dataset[[#This Row],[2024/25 To - Other reallocations]]","v":0},{"$f":"Dataset[[#This Row],[2025/26 To - Spending review Topic 1]]+Dataset[[#This Row],[2025/26 To - Spending review Topic 2]]+Dataset[[#This Row],[2025/26 To - Spending review Topic 3]]+Dataset[[#This Row],[2025/26 To - Spending review Topic 4]]+Dataset[[#This Row],[2025/26 To - Other reallocations]]","v":0},{"$f":"Dataset[[#This Row],[2026/27 To - Spending review Topic 1]]+Dataset[[#This Row],[2026/27 To - Spending review Topic 2]]+Dataset[[#This Row],[2026/27 To - Spending review Topic 3]]+Dataset[[#This Row],[2026/27 To - Spending review Topic 4]]+Dataset[[#This Row],[2026/27 To - Other reallocations]]","v":0},{"$f":"Dataset[[#This Row],[2024/25 Reduction]]+Dataset[[#This Row],[2024/25 From - Total]]","v":0},{"$f":"Dataset[[#This Row],[2025/26 Reduction]]+Dataset[[#This Row],[2025/26 From - Total]]","v":0},{"$f":"Dataset[[#This Row],[2026/27 Reduction]]+Dataset[[#This Row],[2026/27 From - Total]]","v":0},{"$f":"Dataset[[#This Row],[2023/24 Reduction]]","v":0},{"$f":"SUM(Dataset[[#This Row],[2024/25 Reduction]],Dataset[[#This Row],[2024/25 From - Total]],Dataset[[#This Row],[2024/25 To - Total]])","v":0},{"$f":"SUM(Dataset[[#This Row],[2025/26 Reduction]],Dataset[[#This Row],[2025/26 From - Total]],Dataset[[#This Row],[2025/26 To - Total]])","v":0},{"$f":"SUM(Dataset[[#This Row],[2026/27 Reduction]],Dataset[[#This Row],[2026/27 From - Total]],Dataset[[#This Row],[2026/27 To - Total]])","v":0},{"$f":"Dataset[[#This Row],[2023/24 Baseline]]+Dataset[[#This Row],[2023/24 Total change]]","v":0},{"$f":"Dataset[[#This Row],[2024/25 Baseline]]+Dataset[[#This Row],[2024/25 Total change]]","v":0},{"$f":"Dataset[[#This Row],[2025/26 Baseline]]+Dataset[[#This Row],[2025/26 Total change]]","v":0},{"$f":"Dataset[[#This Row],[2026/27 Baseline]]+Dataset[[#This Row],[2026/27 Total change]]","v":0}]
["NAT|Non-transfer item","26|Buildings","2024_25","MTEF2024",26,1,5,44263,376,"26","01","05","044263","000376","26|01|05","02","03","11","54","58","02|03|11|54|58","National","Military Veterans","Administration","Strategic Planning, Policy Development, and Monitoring and Evaluation","Non-transfer item","Capital","Payments for capital assets","Buildings and other fixed structures","Buildings","Buildings","Peace and security","Defence and state security","NAT",0,0,0,0,0,0,0,0,0,0,0,null,null,null,null,null,null,null,null,null,null,null,null,null,null,null,null,null,null,null,null,null,null,null,null,null,null,null,null,null,null,null,null,null,null,{"$f":"Dataset[[#This Row],[2024/25 From - Spending review Topic 1]]+Dataset[[#This Row],[2024/25 From - Spending review Topic 2]]+Dataset[[#This Row],[2024/25 From - Spending review Topic 3]]+Dataset[[#This Row],[2024/25 From - Spending review Topic 4]]+Dataset[[#This Row],[2024/25 From - Other reallocations]]","v":0},{"$f":"Dataset[[#This Row],[2025/26 From - Spending review Topic 1]]+Dataset[[#This Row],[2025/26 From - Spending review Topic 2]]+Dataset[[#This Row],[2025/26 From - Spending review Topic 3]]+Dataset[[#This Row],[2025/26 From - Spending review Topic 4]]+Dataset[[#This Row],[2025/26 From - Other reallocations]]","v":0},{"$f":"Dataset[[#This Row],[2026/27 From - Spending review Topic 1]]+Dataset[[#This Row],[2026/27 From - Spending review Topic 2]]+Dataset[[#This Row],[2026/27 From - Spending review Topic 3]]+Dataset[[#This Row],[2026/27 From - Spending review Topic 4]]+Dataset[[#This Row],[2026/27 From - Other reallocations]]","v":0},{"$f":"Dataset[[#This Row],[2024/25 To - Spending review Topic 1]]+Dataset[[#This Row],[2024/25 To - Spending review Topic 2]]+Dataset[[#This Row],[2024/25 To - Spending review Topic 3]]+Dataset[[#This Row],[2024/25 To - Spending review Topic 4]]+Dataset[[#This Row],[2024/25 To - Other reallocations]]","v":0},{"$f":"Dataset[[#This Row],[2025/26 To - Spending review Topic 1]]+Dataset[[#This Row],[2025/26 To - Spending review Topic 2]]+Dataset[[#This Row],[2025/26 To - Spending review Topic 3]]+Dataset[[#This Row],[2025/26 To - Spending review Topic 4]]+Dataset[[#This Row],[2025/26 To - Other reallocations]]","v":0},{"$f":"Dataset[[#This Row],[2026/27 To - Spending review Topic 1]]+Dataset[[#This Row],[2026/27 To - Spending review Topic 2]]+Dataset[[#This Row],[2026/27 To - Spending review Topic 3]]+Dataset[[#This Row],[2026/27 To - Spending review Topic 4]]+Dataset[[#This Row],[2026/27 To - Other reallocations]]","v":0},{"$f":"Dataset[[#This Row],[2024/25 Reduction]]+Dataset[[#This Row],[2024/25 From - Total]]","v":0},{"$f":"Dataset[[#This Row],[2025/26 Reduction]]+Dataset[[#This Row],[2025/26 From - Total]]","v":0},{"$f":"Dataset[[#This Row],[2026/27 Reduction]]+Dataset[[#This Row],[2026/27 From - Total]]","v":0},{"$f":"Dataset[[#This Row],[2023/24 Reduction]]","v":0},{"$f":"SUM(Dataset[[#This Row],[2024/25 Reduction]],Dataset[[#This Row],[2024/25 From - Total]],Dataset[[#This Row],[2024/25 To - Total]])","v":0},{"$f":"SUM(Dataset[[#This Row],[2025/26 Reduction]],Dataset[[#This Row],[2025/26 From - Total]],Dataset[[#This Row],[2025/26 To - Total]])","v":0},{"$f":"SUM(Dataset[[#This Row],[2026/27 Reduction]],Dataset[[#This Row],[2026/27 From - Total]],Dataset[[#This Row],[2026/27 To - Total]])","v":0},{"$f":"Dataset[[#This Row],[2023/24 Baseline]]+Dataset[[#This Row],[2023/24 Total change]]","v":0},{"$f":"Dataset[[#This Row],[2024/25 Baseline]]+Dataset[[#This Row],[2024/25 Total change]]","v":0},{"$f":"Dataset[[#This Row],[2025/26 Baseline]]+Dataset[[#This Row],[2025/26 Total change]]","v":0},{"$f":"Dataset[[#This Row],[2026/27 Baseline]]+Dataset[[#This Row],[2026/27 Total change]]","v":0}]
["NAT|Non-transfer item","26|Other fixed structures","2024_25","MTEF2024",26,1,5,44264,377,"26","01","05","044264","000377","26|01|05","02","03","11","55","59","02|03|11|55|59","National","Military Veterans","Administration","Strategic Planning, Policy Development, and Monitoring and Evaluation","Non-transfer item","Capital","Payments for capital assets","Buildings and other fixed structures","Other fixed structures","Other fixed structures","Peace and security","Defence and state security","NAT",0,0,0,0,0,0,0,0,0,0,0,null,null,null,null,null,null,null,null,null,null,null,null,null,null,null,null,null,null,null,null,null,null,null,null,null,null,null,null,null,null,null,null,null,null,{"$f":"Dataset[[#This Row],[2024/25 From - Spending review Topic 1]]+Dataset[[#This Row],[2024/25 From - Spending review Topic 2]]+Dataset[[#This Row],[2024/25 From - Spending review Topic 3]]+Dataset[[#This Row],[2024/25 From - Spending review Topic 4]]+Dataset[[#This Row],[2024/25 From - Other reallocations]]","v":0},{"$f":"Dataset[[#This Row],[2025/26 From - Spending review Topic 1]]+Dataset[[#This Row],[2025/26 From - Spending review Topic 2]]+Dataset[[#This Row],[2025/26 From - Spending review Topic 3]]+Dataset[[#This Row],[2025/26 From - Spending review Topic 4]]+Dataset[[#This Row],[2025/26 From - Other reallocations]]","v":0},{"$f":"Dataset[[#This Row],[2026/27 From - Spending review Topic 1]]+Dataset[[#This Row],[2026/27 From - Spending review Topic 2]]+Dataset[[#This Row],[2026/27 From - Spending review Topic 3]]+Dataset[[#This Row],[2026/27 From - Spending review Topic 4]]+Dataset[[#This Row],[2026/27 From - Other reallocations]]","v":0},{"$f":"Dataset[[#This Row],[2024/25 To - Spending review Topic 1]]+Dataset[[#This Row],[2024/25 To - Spending review Topic 2]]+Dataset[[#This Row],[2024/25 To - Spending review Topic 3]]+Dataset[[#This Row],[2024/25 To - Spending review Topic 4]]+Dataset[[#This Row],[2024/25 To - Other reallocations]]","v":0},{"$f":"Dataset[[#This Row],[2025/26 To - Spending review Topic 1]]+Dataset[[#This Row],[2025/26 To - Spending review Topic 2]]+Dataset[[#This Row],[2025/26 To - Spending review Topic 3]]+Dataset[[#This Row],[2025/26 To - Spending review Topic 4]]+Dataset[[#This Row],[2025/26 To - Other reallocations]]","v":0},{"$f":"Dataset[[#This Row],[2026/27 To - Spending review Topic 1]]+Dataset[[#This Row],[2026/27 To - Spending review Topic 2]]+Dataset[[#This Row],[2026/27 To - Spending review Topic 3]]+Dataset[[#This Row],[2026/27 To - Spending review Topic 4]]+Dataset[[#This Row],[2026/27 To - Other reallocations]]","v":0},{"$f":"Dataset[[#This Row],[2024/25 Reduction]]+Dataset[[#This Row],[2024/25 From - Total]]","v":0},{"$f":"Dataset[[#This Row],[2025/26 Reduction]]+Dataset[[#This Row],[2025/26 From - Total]]","v":0},{"$f":"Dataset[[#This Row],[2026/27 Reduction]]+Dataset[[#This Row],[2026/27 From - Total]]","v":0},{"$f":"Dataset[[#This Row],[2023/24 Reduction]]","v":0},{"$f":"SUM(Dataset[[#This Row],[2024/25 Reduction]],Dataset[[#This Row],[2024/25 From - Total]],Dataset[[#This Row],[2024/25 To - Total]])","v":0},{"$f":"SUM(Dataset[[#This Row],[2025/26 Reduction]],Dataset[[#This Row],[2025/26 From - Total]],Dataset[[#This Row],[2025/26 To - Total]])","v":0},{"$f":"SUM(Dataset[[#This Row],[2026/27 Reduction]],Dataset[[#This Row],[2026/27 From - Total]],Dataset[[#This Row],[2026/27 To - Total]])","v":0},{"$f":"Dataset[[#This Row],[2023/24 Baseline]]+Dataset[[#This Row],[2023/24 Total change]]","v":0},{"$f":"Dataset[[#This Row],[2024/25 Baseline]]+Dataset[[#This Row],[2024/25 Total change]]","v":0},{"$f":"Dataset[[#This Row],[2025/26 Baseline]]+Dataset[[#This Row],[2025/26 Total change]]","v":0},{"$f":"Dataset[[#This Row],[2026/27 Baseline]]+Dataset[[#This Row],[2026/27 Total change]]","v":0}]
["NAT|Non-transfer item","26|Transport equipment","2024_25","MTEF2024",26,1,5,44265,378,"26","01","05","044265","000378","26|01|05","02","03","12","56","60","02|03|12|56|60","National","Military Veterans","Administration","Strategic Planning, Policy Development, and Monitoring and Evaluation","Non-transfer item","Capital","Payments for capital assets","Machinery and equipment","Transport equipment","Transport equipment","Peace and security","Defence and state security","NAT",0,0,0,0,0,0,0,0,0,0,0,null,null,null,null,null,null,null,null,null,null,null,null,null,null,null,null,null,null,null,null,null,null,null,null,null,null,null,null,null,null,null,null,null,null,{"$f":"Dataset[[#This Row],[2024/25 From - Spending review Topic 1]]+Dataset[[#This Row],[2024/25 From - Spending review Topic 2]]+Dataset[[#This Row],[2024/25 From - Spending review Topic 3]]+Dataset[[#This Row],[2024/25 From - Spending review Topic 4]]+Dataset[[#This Row],[2024/25 From - Other reallocations]]","v":0},{"$f":"Dataset[[#This Row],[2025/26 From - Spending review Topic 1]]+Dataset[[#This Row],[2025/26 From - Spending review Topic 2]]+Dataset[[#This Row],[2025/26 From - Spending review Topic 3]]+Dataset[[#This Row],[2025/26 From - Spending review Topic 4]]+Dataset[[#This Row],[2025/26 From - Other reallocations]]","v":0},{"$f":"Dataset[[#This Row],[2026/27 From - Spending review Topic 1]]+Dataset[[#This Row],[2026/27 From - Spending review Topic 2]]+Dataset[[#This Row],[2026/27 From - Spending review Topic 3]]+Dataset[[#This Row],[2026/27 From - Spending review Topic 4]]+Dataset[[#This Row],[2026/27 From - Other reallocations]]","v":0},{"$f":"Dataset[[#This Row],[2024/25 To - Spending review Topic 1]]+Dataset[[#This Row],[2024/25 To - Spending review Topic 2]]+Dataset[[#This Row],[2024/25 To - Spending review Topic 3]]+Dataset[[#This Row],[2024/25 To - Spending review Topic 4]]+Dataset[[#This Row],[2024/25 To - Other reallocations]]","v":0},{"$f":"Dataset[[#This Row],[2025/26 To - Spending review Topic 1]]+Dataset[[#This Row],[2025/26 To - Spending review Topic 2]]+Dataset[[#This Row],[2025/26 To - Spending review Topic 3]]+Dataset[[#This Row],[2025/26 To - Spending review Topic 4]]+Dataset[[#This Row],[2025/26 To - Other reallocations]]","v":0},{"$f":"Dataset[[#This Row],[2026/27 To - Spending review Topic 1]]+Dataset[[#This Row],[2026/27 To - Spending review Topic 2]]+Dataset[[#This Row],[2026/27 To - Spending review Topic 3]]+Dataset[[#This Row],[2026/27 To - Spending review Topic 4]]+Dataset[[#This Row],[2026/27 To - Other reallocations]]","v":0},{"$f":"Dataset[[#This Row],[2024/25 Reduction]]+Dataset[[#This Row],[2024/25 From - Total]]","v":0},{"$f":"Dataset[[#This Row],[2025/26 Reduction]]+Dataset[[#This Row],[2025/26 From - Total]]","v":0},{"$f":"Dataset[[#This Row],[2026/27 Reduction]]+Dataset[[#This Row],[2026/27 From - Total]]","v":0},{"$f":"Dataset[[#This Row],[2023/24 Reduction]]","v":0},{"$f":"SUM(Dataset[[#This Row],[2024/25 Reduction]],Dataset[[#This Row],[2024/25 From - Total]],Dataset[[#This Row],[2024/25 To - Total]])","v":0},{"$f":"SUM(Dataset[[#This Row],[2025/26 Reduction]],Dataset[[#This Row],[2025/26 From - Total]],Dataset[[#This Row],[2025/26 To - Total]])","v":0},{"$f":"SUM(Dataset[[#This Row],[2026/27 Reduction]],Dataset[[#This Row],[2026/27 From - Total]],Dataset[[#This Row],[2026/27 To - Total]])","v":0},{"$f":"Dataset[[#This Row],[2023/24 Baseline]]+Dataset[[#This Row],[2023/24 Total change]]","v":0},{"$f":"Dataset[[#This Row],[2024/25 Baseline]]+Dataset[[#This Row],[2024/25 Total change]]","v":0},{"$f":"Dataset[[#This Row],[2025/26 Baseline]]+Dataset[[#This Row],[2025/26 Total change]]","v":0},{"$f":"Dataset[[#This Row],[2026/27 Baseline]]+Dataset[[#This Row],[2026/27 Total change]]","v":0}]
["NAT|Non-transfer item","26|Other machinery and equipment","2024_25","MTEF2024",26,1,5,44266,379,"26","01","05","044266","000379","26|01|05","02","03","12","57","61","02|03|12|57|61","National","Military Veterans","Administration","Strategic Planning, Policy Development, and Monitoring and Evaluation","Non-transfer item","Capital","Payments for capital assets","Machinery and equipment","Other machinery and equipment","Other machinery and equipment","Peace and security","Defence and state security","NAT",103,15,0,200,200,200,0,200,200,209,219,null,null,null,null,null,null,null,null,null,null,null,null,null,null,null,null,null,null,null,null,null,null,null,null,null,null,null,null,null,null,null,null,null,null,{"$f":"Dataset[[#This Row],[2024/25 From - Spending review Topic 1]]+Dataset[[#This Row],[2024/25 From - Spending review Topic 2]]+Dataset[[#This Row],[2024/25 From - Spending review Topic 3]]+Dataset[[#This Row],[2024/25 From - Spending review Topic 4]]+Dataset[[#This Row],[2024/25 From - Other reallocations]]","v":0},{"$f":"Dataset[[#This Row],[2025/26 From - Spending review Topic 1]]+Dataset[[#This Row],[2025/26 From - Spending review Topic 2]]+Dataset[[#This Row],[2025/26 From - Spending review Topic 3]]+Dataset[[#This Row],[2025/26 From - Spending review Topic 4]]+Dataset[[#This Row],[2025/26 From - Other reallocations]]","v":0},{"$f":"Dataset[[#This Row],[2026/27 From - Spending review Topic 1]]+Dataset[[#This Row],[2026/27 From - Spending review Topic 2]]+Dataset[[#This Row],[2026/27 From - Spending review Topic 3]]+Dataset[[#This Row],[2026/27 From - Spending review Topic 4]]+Dataset[[#This Row],[2026/27 From - Other reallocations]]","v":0},{"$f":"Dataset[[#This Row],[2024/25 To - Spending review Topic 1]]+Dataset[[#This Row],[2024/25 To - Spending review Topic 2]]+Dataset[[#This Row],[2024/25 To - Spending review Topic 3]]+Dataset[[#This Row],[2024/25 To - Spending review Topic 4]]+Dataset[[#This Row],[2024/25 To - Other reallocations]]","v":0},{"$f":"Dataset[[#This Row],[2025/26 To - Spending review Topic 1]]+Dataset[[#This Row],[2025/26 To - Spending review Topic 2]]+Dataset[[#This Row],[2025/26 To - Spending review Topic 3]]+Dataset[[#This Row],[2025/26 To - Spending review Topic 4]]+Dataset[[#This Row],[2025/26 To - Other reallocations]]","v":0},{"$f":"Dataset[[#This Row],[2026/27 To - Spending review Topic 1]]+Dataset[[#This Row],[2026/27 To - Spending review Topic 2]]+Dataset[[#This Row],[2026/27 To - Spending review Topic 3]]+Dataset[[#This Row],[2026/27 To - Spending review Topic 4]]+Dataset[[#This Row],[2026/27 To - Other reallocations]]","v":0},{"$f":"Dataset[[#This Row],[2024/25 Reduction]]+Dataset[[#This Row],[2024/25 From - Total]]","v":0},{"$f":"Dataset[[#This Row],[2025/26 Reduction]]+Dataset[[#This Row],[2025/26 From - Total]]","v":0},{"$f":"Dataset[[#This Row],[2026/27 Reduction]]+Dataset[[#This Row],[2026/27 From - Total]]","v":0},{"$f":"Dataset[[#This Row],[2023/24 Reduction]]","v":0},{"$f":"SUM(Dataset[[#This Row],[2024/25 Reduction]],Dataset[[#This Row],[2024/25 From - Total]],Dataset[[#This Row],[2024/25 To - Total]])","v":0},{"$f":"SUM(Dataset[[#This Row],[2025/26 Reduction]],Dataset[[#This Row],[2025/26 From - Total]],Dataset[[#This Row],[2025/26 To - Total]])","v":0},{"$f":"SUM(Dataset[[#This Row],[2026/27 Reduction]],Dataset[[#This Row],[2026/27 From - Total]],Dataset[[#This Row],[2026/27 To - Total]])","v":0},{"$f":"Dataset[[#This Row],[2023/24 Baseline]]+Dataset[[#This Row],[2023/24 Total change]]","v":200},{"$f":"Dataset[[#This Row],[2024/25 Baseline]]+Dataset[[#This Row],[2024/25 Total change]]","v":200},{"$f":"Dataset[[#This Row],[2025/26 Baseline]]+Dataset[[#This Row],[2025/26 Total change]]","v":209},{"$f":"Dataset[[#This Row],[2026/27 Baseline]]+Dataset[[#This Row],[2026/27 Total change]]","v":219}]
["NAT|Non-transfer item","26|Heritage assets","2024_25","MTEF2024",26,1,5,44267,380,"26","01","05","044267","000380","26|01|05","02","03","13","58","62","02|03|13|58|62","National","Military Veterans","Administration","Strategic Planning, Policy Development, and Monitoring and Evaluation","Non-transfer item","Capital","Payments for capital assets","Heritage assets","Heritage assets","Heritage assets","Peace and security","Defence and state security","NAT",0,0,0,0,0,0,0,0,0,0,0,null,null,null,null,null,null,null,null,null,null,null,null,null,null,null,null,null,null,null,null,null,null,null,null,null,null,null,null,null,null,null,null,null,null,{"$f":"Dataset[[#This Row],[2024/25 From - Spending review Topic 1]]+Dataset[[#This Row],[2024/25 From - Spending review Topic 2]]+Dataset[[#This Row],[2024/25 From - Spending review Topic 3]]+Dataset[[#This Row],[2024/25 From - Spending review Topic 4]]+Dataset[[#This Row],[2024/25 From - Other reallocations]]","v":0},{"$f":"Dataset[[#This Row],[2025/26 From - Spending review Topic 1]]+Dataset[[#This Row],[2025/26 From - Spending review Topic 2]]+Dataset[[#This Row],[2025/26 From - Spending review Topic 3]]+Dataset[[#This Row],[2025/26 From - Spending review Topic 4]]+Dataset[[#This Row],[2025/26 From - Other reallocations]]","v":0},{"$f":"Dataset[[#This Row],[2026/27 From - Spending review Topic 1]]+Dataset[[#This Row],[2026/27 From - Spending review Topic 2]]+Dataset[[#This Row],[2026/27 From - Spending review Topic 3]]+Dataset[[#This Row],[2026/27 From - Spending review Topic 4]]+Dataset[[#This Row],[2026/27 From - Other reallocations]]","v":0},{"$f":"Dataset[[#This Row],[2024/25 To - Spending review Topic 1]]+Dataset[[#This Row],[2024/25 To - Spending review Topic 2]]+Dataset[[#This Row],[2024/25 To - Spending review Topic 3]]+Dataset[[#This Row],[2024/25 To - Spending review Topic 4]]+Dataset[[#This Row],[2024/25 To - Other reallocations]]","v":0},{"$f":"Dataset[[#This Row],[2025/26 To - Spending review Topic 1]]+Dataset[[#This Row],[2025/26 To - Spending review Topic 2]]+Dataset[[#This Row],[2025/26 To - Spending review Topic 3]]+Dataset[[#This Row],[2025/26 To - Spending review Topic 4]]+Dataset[[#This Row],[2025/26 To - Other reallocations]]","v":0},{"$f":"Dataset[[#This Row],[2026/27 To - Spending review Topic 1]]+Dataset[[#This Row],[2026/27 To - Spending review Topic 2]]+Dataset[[#This Row],[2026/27 To - Spending review Topic 3]]+Dataset[[#This Row],[2026/27 To - Spending review Topic 4]]+Dataset[[#This Row],[2026/27 To - Other reallocations]]","v":0},{"$f":"Dataset[[#This Row],[2024/25 Reduction]]+Dataset[[#This Row],[2024/25 From - Total]]","v":0},{"$f":"Dataset[[#This Row],[2025/26 Reduction]]+Dataset[[#This Row],[2025/26 From - Total]]","v":0},{"$f":"Dataset[[#This Row],[2026/27 Reduction]]+Dataset[[#This Row],[2026/27 From - Total]]","v":0},{"$f":"Dataset[[#This Row],[2023/24 Reduction]]","v":0},{"$f":"SUM(Dataset[[#This Row],[2024/25 Reduction]],Dataset[[#This Row],[2024/25 From - Total]],Dataset[[#This Row],[2024/25 To - Total]])","v":0},{"$f":"SUM(Dataset[[#This Row],[2025/26 Reduction]],Dataset[[#This Row],[2025/26 From - Total]],Dataset[[#This Row],[2025/26 To - Total]])","v":0},{"$f":"SUM(Dataset[[#This Row],[2026/27 Reduction]],Dataset[[#This Row],[2026/27 From - Total]],Dataset[[#This Row],[2026/27 To - Total]])","v":0},{"$f":"Dataset[[#This Row],[2023/24 Baseline]]+Dataset[[#This Row],[2023/24 Total change]]","v":0},{"$f":"Dataset[[#This Row],[2024/25 Baseline]]+Dataset[[#This Row],[2024/25 Total change]]","v":0},{"$f":"Dataset[[#This Row],[2025/26 Baseline]]+Dataset[[#This Row],[2025/26 Total change]]","v":0},{"$f":"Dataset[[#This Row],[2026/27 Baseline]]+Dataset[[#This Row],[2026/27 Total change]]","v":0}]
["NAT|Non-transfer item","26|Specialised military assets","2024_25","MTEF2024",26,1,5,44268,381,"26","01","05","044268","000381","26|01|05","02","03","14","59","63","02|03|14|59|63","National","Military Veterans","Administration","Strategic Planning, Policy Development, and Monitoring and Evaluation","Non-transfer item","Capital","Payments for capital assets","Specialised military assets","Specialised military assets","Specialised military assets","Peace and security","Defence and state security","NAT",0,0,0,0,0,0,0,0,0,0,0,null,null,null,null,null,null,null,null,null,null,null,null,null,null,null,null,null,null,null,null,null,null,null,null,null,null,null,null,null,null,null,null,null,null,{"$f":"Dataset[[#This Row],[2024/25 From - Spending review Topic 1]]+Dataset[[#This Row],[2024/25 From - Spending review Topic 2]]+Dataset[[#This Row],[2024/25 From - Spending review Topic 3]]+Dataset[[#This Row],[2024/25 From - Spending review Topic 4]]+Dataset[[#This Row],[2024/25 From - Other reallocations]]","v":0},{"$f":"Dataset[[#This Row],[2025/26 From - Spending review Topic 1]]+Dataset[[#This Row],[2025/26 From - Spending review Topic 2]]+Dataset[[#This Row],[2025/26 From - Spending review Topic 3]]+Dataset[[#This Row],[2025/26 From - Spending review Topic 4]]+Dataset[[#This Row],[2025/26 From - Other reallocations]]","v":0},{"$f":"Dataset[[#This Row],[2026/27 From - Spending review Topic 1]]+Dataset[[#This Row],[2026/27 From - Spending review Topic 2]]+Dataset[[#This Row],[2026/27 From - Spending review Topic 3]]+Dataset[[#This Row],[2026/27 From - Spending review Topic 4]]+Dataset[[#This Row],[2026/27 From - Other reallocations]]","v":0},{"$f":"Dataset[[#This Row],[2024/25 To - Spending review Topic 1]]+Dataset[[#This Row],[2024/25 To - Spending review Topic 2]]+Dataset[[#This Row],[2024/25 To - Spending review Topic 3]]+Dataset[[#This Row],[2024/25 To - Spending review Topic 4]]+Dataset[[#This Row],[2024/25 To - Other reallocations]]","v":0},{"$f":"Dataset[[#This Row],[2025/26 To - Spending review Topic 1]]+Dataset[[#This Row],[2025/26 To - Spending review Topic 2]]+Dataset[[#This Row],[2025/26 To - Spending review Topic 3]]+Dataset[[#This Row],[2025/26 To - Spending review Topic 4]]+Dataset[[#This Row],[2025/26 To - Other reallocations]]","v":0},{"$f":"Dataset[[#This Row],[2026/27 To - Spending review Topic 1]]+Dataset[[#This Row],[2026/27 To - Spending review Topic 2]]+Dataset[[#This Row],[2026/27 To - Spending review Topic 3]]+Dataset[[#This Row],[2026/27 To - Spending review Topic 4]]+Dataset[[#This Row],[2026/27 To - Other reallocations]]","v":0},{"$f":"Dataset[[#This Row],[2024/25 Reduction]]+Dataset[[#This Row],[2024/25 From - Total]]","v":0},{"$f":"Dataset[[#This Row],[2025/26 Reduction]]+Dataset[[#This Row],[2025/26 From - Total]]","v":0},{"$f":"Dataset[[#This Row],[2026/27 Reduction]]+Dataset[[#This Row],[2026/27 From - Total]]","v":0},{"$f":"Dataset[[#This Row],[2023/24 Reduction]]","v":0},{"$f":"SUM(Dataset[[#This Row],[2024/25 Reduction]],Dataset[[#This Row],[2024/25 From - Total]],Dataset[[#This Row],[2024/25 To - Total]])","v":0},{"$f":"SUM(Dataset[[#This Row],[2025/26 Reduction]],Dataset[[#This Row],[2025/26 From - Total]],Dataset[[#This Row],[2025/26 To - Total]])","v":0},{"$f":"SUM(Dataset[[#This Row],[2026/27 Reduction]],Dataset[[#This Row],[2026/27 From - Total]],Dataset[[#This Row],[2026/27 To - Total]])","v":0},{"$f":"Dataset[[#This Row],[2023/24 Baseline]]+Dataset[[#This Row],[2023/24 Total change]]","v":0},{"$f":"Dataset[[#This Row],[2024/25 Baseline]]+Dataset[[#This Row],[2024/25 Total change]]","v":0},{"$f":"Dataset[[#This Row],[2025/26 Baseline]]+Dataset[[#This Row],[2025/26 Total change]]","v":0},{"$f":"Dataset[[#This Row],[2026/27 Baseline]]+Dataset[[#This Row],[2026/27 Total change]]","v":0}]
["NAT|Non-transfer item","26|Biological assets","2024_25","MTEF2024",26,1,5,44269,382,"26","01","05","044269","000382","26|01|05","02","03","15","60","64","02|03|15|60|64","National","Military Veterans","Administration","Strategic Planning, Policy Development, and Monitoring and Evaluation","Non-transfer item","Capital","Payments for capital assets","Biological assets","Biological assets","Biological assets","Peace and security","Defence and state security","NAT",0,0,0,0,0,0,0,0,0,0,0,null,null,null,null,null,null,null,null,null,null,null,null,null,null,null,null,null,null,null,null,null,null,null,null,null,null,null,null,null,null,null,null,null,null,{"$f":"Dataset[[#This Row],[2024/25 From - Spending review Topic 1]]+Dataset[[#This Row],[2024/25 From - Spending review Topic 2]]+Dataset[[#This Row],[2024/25 From - Spending review Topic 3]]+Dataset[[#This Row],[2024/25 From - Spending review Topic 4]]+Dataset[[#This Row],[2024/25 From - Other reallocations]]","v":0},{"$f":"Dataset[[#This Row],[2025/26 From - Spending review Topic 1]]+Dataset[[#This Row],[2025/26 From - Spending review Topic 2]]+Dataset[[#This Row],[2025/26 From - Spending review Topic 3]]+Dataset[[#This Row],[2025/26 From - Spending review Topic 4]]+Dataset[[#This Row],[2025/26 From - Other reallocations]]","v":0},{"$f":"Dataset[[#This Row],[2026/27 From - Spending review Topic 1]]+Dataset[[#This Row],[2026/27 From - Spending review Topic 2]]+Dataset[[#This Row],[2026/27 From - Spending review Topic 3]]+Dataset[[#This Row],[2026/27 From - Spending review Topic 4]]+Dataset[[#This Row],[2026/27 From - Other reallocations]]","v":0},{"$f":"Dataset[[#This Row],[2024/25 To - Spending review Topic 1]]+Dataset[[#This Row],[2024/25 To - Spending review Topic 2]]+Dataset[[#This Row],[2024/25 To - Spending review Topic 3]]+Dataset[[#This Row],[2024/25 To - Spending review Topic 4]]+Dataset[[#This Row],[2024/25 To - Other reallocations]]","v":0},{"$f":"Dataset[[#This Row],[2025/26 To - Spending review Topic 1]]+Dataset[[#This Row],[2025/26 To - Spending review Topic 2]]+Dataset[[#This Row],[2025/26 To - Spending review Topic 3]]+Dataset[[#This Row],[2025/26 To - Spending review Topic 4]]+Dataset[[#This Row],[2025/26 To - Other reallocations]]","v":0},{"$f":"Dataset[[#This Row],[2026/27 To - Spending review Topic 1]]+Dataset[[#This Row],[2026/27 To - Spending review Topic 2]]+Dataset[[#This Row],[2026/27 To - Spending review Topic 3]]+Dataset[[#This Row],[2026/27 To - Spending review Topic 4]]+Dataset[[#This Row],[2026/27 To - Other reallocations]]","v":0},{"$f":"Dataset[[#This Row],[2024/25 Reduction]]+Dataset[[#This Row],[2024/25 From - Total]]","v":0},{"$f":"Dataset[[#This Row],[2025/26 Reduction]]+Dataset[[#This Row],[2025/26 From - Total]]","v":0},{"$f":"Dataset[[#This Row],[2026/27 Reduction]]+Dataset[[#This Row],[2026/27 From - Total]]","v":0},{"$f":"Dataset[[#This Row],[2023/24 Reduction]]","v":0},{"$f":"SUM(Dataset[[#This Row],[2024/25 Reduction]],Dataset[[#This Row],[2024/25 From - Total]],Dataset[[#This Row],[2024/25 To - Total]])","v":0},{"$f":"SUM(Dataset[[#This Row],[2025/26 Reduction]],Dataset[[#This Row],[2025/26 From - Total]],Dataset[[#This Row],[2025/26 To - Total]])","v":0},{"$f":"SUM(Dataset[[#This Row],[2026/27 Reduction]],Dataset[[#This Row],[2026/27 From - Total]],Dataset[[#This Row],[2026/27 To - Total]])","v":0},{"$f":"Dataset[[#This Row],[2023/24 Baseline]]+Dataset[[#This Row],[2023/24 Total change]]","v":0},{"$f":"Dataset[[#This Row],[2024/25 Baseline]]+Dataset[[#This Row],[2024/25 Total change]]","v":0},{"$f":"Dataset[[#This Row],[2025/26 Baseline]]+Dataset[[#This Row],[2025/26 Total change]]","v":0},{"$f":"Dataset[[#This Row],[2026/27 Baseline]]+Dataset[[#This Row],[2026/27 Total change]]","v":0}]
["NAT|Non-transfer item","26|Land and sub-soil assets","2024_25","MTEF2024",26,1,5,44270,383,"26","01","05","044270","000383","26|01|05","02","03","16","61","65","02|03|16|61|65","National","Military Veterans","Administration","Strategic Planning, Policy Development, and Monitoring and Evaluation","Non-transfer item","Capital","Payments for capital assets","Land and sub-soil assets","Land and sub-soil assets","Land and sub-soil assets","Peace and security","Defence and state security","NAT",0,0,0,0,0,0,0,0,0,0,0,null,null,null,null,null,null,null,null,null,null,null,null,null,null,null,null,null,null,null,null,null,null,null,null,null,null,null,null,null,null,null,null,null,null,{"$f":"Dataset[[#This Row],[2024/25 From - Spending review Topic 1]]+Dataset[[#This Row],[2024/25 From - Spending review Topic 2]]+Dataset[[#This Row],[2024/25 From - Spending review Topic 3]]+Dataset[[#This Row],[2024/25 From - Spending review Topic 4]]+Dataset[[#This Row],[2024/25 From - Other reallocations]]","v":0},{"$f":"Dataset[[#This Row],[2025/26 From - Spending review Topic 1]]+Dataset[[#This Row],[2025/26 From - Spending review Topic 2]]+Dataset[[#This Row],[2025/26 From - Spending review Topic 3]]+Dataset[[#This Row],[2025/26 From - Spending review Topic 4]]+Dataset[[#This Row],[2025/26 From - Other reallocations]]","v":0},{"$f":"Dataset[[#This Row],[2026/27 From - Spending review Topic 1]]+Dataset[[#This Row],[2026/27 From - Spending review Topic 2]]+Dataset[[#This Row],[2026/27 From - Spending review Topic 3]]+Dataset[[#This Row],[2026/27 From - Spending review Topic 4]]+Dataset[[#This Row],[2026/27 From - Other reallocations]]","v":0},{"$f":"Dataset[[#This Row],[2024/25 To - Spending review Topic 1]]+Dataset[[#This Row],[2024/25 To - Spending review Topic 2]]+Dataset[[#This Row],[2024/25 To - Spending review Topic 3]]+Dataset[[#This Row],[2024/25 To - Spending review Topic 4]]+Dataset[[#This Row],[2024/25 To - Other reallocations]]","v":0},{"$f":"Dataset[[#This Row],[2025/26 To - Spending review Topic 1]]+Dataset[[#This Row],[2025/26 To - Spending review Topic 2]]+Dataset[[#This Row],[2025/26 To - Spending review Topic 3]]+Dataset[[#This Row],[2025/26 To - Spending review Topic 4]]+Dataset[[#This Row],[2025/26 To - Other reallocations]]","v":0},{"$f":"Dataset[[#This Row],[2026/27 To - Spending review Topic 1]]+Dataset[[#This Row],[2026/27 To - Spending review Topic 2]]+Dataset[[#This Row],[2026/27 To - Spending review Topic 3]]+Dataset[[#This Row],[2026/27 To - Spending review Topic 4]]+Dataset[[#This Row],[2026/27 To - Other reallocations]]","v":0},{"$f":"Dataset[[#This Row],[2024/25 Reduction]]+Dataset[[#This Row],[2024/25 From - Total]]","v":0},{"$f":"Dataset[[#This Row],[2025/26 Reduction]]+Dataset[[#This Row],[2025/26 From - Total]]","v":0},{"$f":"Dataset[[#This Row],[2026/27 Reduction]]+Dataset[[#This Row],[2026/27 From - Total]]","v":0},{"$f":"Dataset[[#This Row],[2023/24 Reduction]]","v":0},{"$f":"SUM(Dataset[[#This Row],[2024/25 Reduction]],Dataset[[#This Row],[2024/25 From - Total]],Dataset[[#This Row],[2024/25 To - Total]])","v":0},{"$f":"SUM(Dataset[[#This Row],[2025/26 Reduction]],Dataset[[#This Row],[2025/26 From - Total]],Dataset[[#This Row],[2025/26 To - Total]])","v":0},{"$f":"SUM(Dataset[[#This Row],[2026/27 Reduction]],Dataset[[#This Row],[2026/27 From - Total]],Dataset[[#This Row],[2026/27 To - Total]])","v":0},{"$f":"Dataset[[#This Row],[2023/24 Baseline]]+Dataset[[#This Row],[2023/24 Total change]]","v":0},{"$f":"Dataset[[#This Row],[2024/25 Baseline]]+Dataset[[#This Row],[2024/25 Total change]]","v":0},{"$f":"Dataset[[#This Row],[2025/26 Baseline]]+Dataset[[#This Row],[2025/26 Total change]]","v":0},{"$f":"Dataset[[#This Row],[2026/27 Baseline]]+Dataset[[#This Row],[2026/27 Total change]]","v":0}]
["NAT|Non-transfer item","26|Software and other intangible assets","2024_25","MTEF2024",26,1,5,44271,384,"26","01","05","044271","000384","26|01|05","02","03","17","62","66","02|03|17|62|66","National","Military Veterans","Administration","Strategic Planning, Policy Development, and Monitoring and Evaluation","Non-transfer item","Capital","Payments for capital assets","Software and other intangible assets","Software and other intangible assets","Software and other intangible assets","Peace and security","Defence and state security","NAT",0,0,0,0,0,0,0,0,0,0,0,null,null,null,null,null,null,null,null,null,null,null,null,null,null,null,null,null,null,null,null,null,null,null,null,null,null,null,null,null,null,null,null,null,null,{"$f":"Dataset[[#This Row],[2024/25 From - Spending review Topic 1]]+Dataset[[#This Row],[2024/25 From - Spending review Topic 2]]+Dataset[[#This Row],[2024/25 From - Spending review Topic 3]]+Dataset[[#This Row],[2024/25 From - Spending review Topic 4]]+Dataset[[#This Row],[2024/25 From - Other reallocations]]","v":0},{"$f":"Dataset[[#This Row],[2025/26 From - Spending review Topic 1]]+Dataset[[#This Row],[2025/26 From - Spending review Topic 2]]+Dataset[[#This Row],[2025/26 From - Spending review Topic 3]]+Dataset[[#This Row],[2025/26 From - Spending review Topic 4]]+Dataset[[#This Row],[2025/26 From - Other reallocations]]","v":0},{"$f":"Dataset[[#This Row],[2026/27 From - Spending review Topic 1]]+Dataset[[#This Row],[2026/27 From - Spending review Topic 2]]+Dataset[[#This Row],[2026/27 From - Spending review Topic 3]]+Dataset[[#This Row],[2026/27 From - Spending review Topic 4]]+Dataset[[#This Row],[2026/27 From - Other reallocations]]","v":0},{"$f":"Dataset[[#This Row],[2024/25 To - Spending review Topic 1]]+Dataset[[#This Row],[2024/25 To - Spending review Topic 2]]+Dataset[[#This Row],[2024/25 To - Spending review Topic 3]]+Dataset[[#This Row],[2024/25 To - Spending review Topic 4]]+Dataset[[#This Row],[2024/25 To - Other reallocations]]","v":0},{"$f":"Dataset[[#This Row],[2025/26 To - Spending review Topic 1]]+Dataset[[#This Row],[2025/26 To - Spending review Topic 2]]+Dataset[[#This Row],[2025/26 To - Spending review Topic 3]]+Dataset[[#This Row],[2025/26 To - Spending review Topic 4]]+Dataset[[#This Row],[2025/26 To - Other reallocations]]","v":0},{"$f":"Dataset[[#This Row],[2026/27 To - Spending review Topic 1]]+Dataset[[#This Row],[2026/27 To - Spending review Topic 2]]+Dataset[[#This Row],[2026/27 To - Spending review Topic 3]]+Dataset[[#This Row],[2026/27 To - Spending review Topic 4]]+Dataset[[#This Row],[2026/27 To - Other reallocations]]","v":0},{"$f":"Dataset[[#This Row],[2024/25 Reduction]]+Dataset[[#This Row],[2024/25 From - Total]]","v":0},{"$f":"Dataset[[#This Row],[2025/26 Reduction]]+Dataset[[#This Row],[2025/26 From - Total]]","v":0},{"$f":"Dataset[[#This Row],[2026/27 Reduction]]+Dataset[[#This Row],[2026/27 From - Total]]","v":0},{"$f":"Dataset[[#This Row],[2023/24 Reduction]]","v":0},{"$f":"SUM(Dataset[[#This Row],[2024/25 Reduction]],Dataset[[#This Row],[2024/25 From - Total]],Dataset[[#This Row],[2024/25 To - Total]])","v":0},{"$f":"SUM(Dataset[[#This Row],[2025/26 Reduction]],Dataset[[#This Row],[2025/26 From - Total]],Dataset[[#This Row],[2025/26 To - Total]])","v":0},{"$f":"SUM(Dataset[[#This Row],[2026/27 Reduction]],Dataset[[#This Row],[2026/27 From - Total]],Dataset[[#This Row],[2026/27 To - Total]])","v":0},{"$f":"Dataset[[#This Row],[2023/24 Baseline]]+Dataset[[#This Row],[2023/24 Total change]]","v":0},{"$f":"Dataset[[#This Row],[2024/25 Baseline]]+Dataset[[#This Row],[2024/25 Total change]]","v":0},{"$f":"Dataset[[#This Row],[2025/26 Baseline]]+Dataset[[#This Row],[2025/26 Total change]]","v":0},{"$f":"Dataset[[#This Row],[2026/27 Baseline]]+Dataset[[#This Row],[2026/27 Total change]]","v":0}]
["NAT|Non-transfer item","26|Payments for financial assets","2024_25","MTEF2024",26,1,5,44272,385,"26","01","05","044272","000385","26|01|05","03","04","18","63","67","03|04|18|63|67","National","Military Veterans","Administration","Strategic Planning, Policy Development, and Monitoring and Evaluation","Non-transfer item","Payments for financial assets","Payments for financial assets","Payments for financial assets","Payments for financial assets","Payments for financial assets","Peace and security","Defence and state security","NAT",0,0,0,0,0,0,0,0,0,0,0,null,null,null,null,null,null,null,null,null,null,null,null,null,null,null,null,null,null,null,null,null,null,null,null,null,null,null,null,null,null,null,null,null,null,{"$f":"Dataset[[#This Row],[2024/25 From - Spending review Topic 1]]+Dataset[[#This Row],[2024/25 From - Spending review Topic 2]]+Dataset[[#This Row],[2024/25 From - Spending review Topic 3]]+Dataset[[#This Row],[2024/25 From - Spending review Topic 4]]+Dataset[[#This Row],[2024/25 From - Other reallocations]]","v":0},{"$f":"Dataset[[#This Row],[2025/26 From - Spending review Topic 1]]+Dataset[[#This Row],[2025/26 From - Spending review Topic 2]]+Dataset[[#This Row],[2025/26 From - Spending review Topic 3]]+Dataset[[#This Row],[2025/26 From - Spending review Topic 4]]+Dataset[[#This Row],[2025/26 From - Other reallocations]]","v":0},{"$f":"Dataset[[#This Row],[2026/27 From - Spending review Topic 1]]+Dataset[[#This Row],[2026/27 From - Spending review Topic 2]]+Dataset[[#This Row],[2026/27 From - Spending review Topic 3]]+Dataset[[#This Row],[2026/27 From - Spending review Topic 4]]+Dataset[[#This Row],[2026/27 From - Other reallocations]]","v":0},{"$f":"Dataset[[#This Row],[2024/25 To - Spending review Topic 1]]+Dataset[[#This Row],[2024/25 To - Spending review Topic 2]]+Dataset[[#This Row],[2024/25 To - Spending review Topic 3]]+Dataset[[#This Row],[2024/25 To - Spending review Topic 4]]+Dataset[[#This Row],[2024/25 To - Other reallocations]]","v":0},{"$f":"Dataset[[#This Row],[2025/26 To - Spending review Topic 1]]+Dataset[[#This Row],[2025/26 To - Spending review Topic 2]]+Dataset[[#This Row],[2025/26 To - Spending review Topic 3]]+Dataset[[#This Row],[2025/26 To - Spending review Topic 4]]+Dataset[[#This Row],[2025/26 To - Other reallocations]]","v":0},{"$f":"Dataset[[#This Row],[2026/27 To - Spending review Topic 1]]+Dataset[[#This Row],[2026/27 To - Spending review Topic 2]]+Dataset[[#This Row],[2026/27 To - Spending review Topic 3]]+Dataset[[#This Row],[2026/27 To - Spending review Topic 4]]+Dataset[[#This Row],[2026/27 To - Other reallocations]]","v":0},{"$f":"Dataset[[#This Row],[2024/25 Reduction]]+Dataset[[#This Row],[2024/25 From - Total]]","v":0},{"$f":"Dataset[[#This Row],[2025/26 Reduction]]+Dataset[[#This Row],[2025/26 From - Total]]","v":0},{"$f":"Dataset[[#This Row],[2026/27 Reduction]]+Dataset[[#This Row],[2026/27 From - Total]]","v":0},{"$f":"Dataset[[#This Row],[2023/24 Reduction]]","v":0},{"$f":"SUM(Dataset[[#This Row],[2024/25 Reduction]],Dataset[[#This Row],[2024/25 From - Total]],Dataset[[#This Row],[2024/25 To - Total]])","v":0},{"$f":"SUM(Dataset[[#This Row],[2025/26 Reduction]],Dataset[[#This Row],[2025/26 From - Total]],Dataset[[#This Row],[2025/26 To - Total]])","v":0},{"$f":"SUM(Dataset[[#This Row],[2026/27 Reduction]],Dataset[[#This Row],[2026/27 From - Total]],Dataset[[#This Row],[2026/27 To - Total]])","v":0},{"$f":"Dataset[[#This Row],[2023/24 Baseline]]+Dataset[[#This Row],[2023/24 Total change]]","v":0},{"$f":"Dataset[[#This Row],[2024/25 Baseline]]+Dataset[[#This Row],[2024/25 Total change]]","v":0},{"$f":"Dataset[[#This Row],[2025/26 Baseline]]+Dataset[[#This Row],[2025/26 Total change]]","v":0},{"$f":"Dataset[[#This Row],[2026/27 Baseline]]+Dataset[[#This Row],[2026/27 Total change]]","v":0}]
["NAT|Non-transfer item","26|Salaries and wages","2024_25","MTEF2024",26,1,6,44273,386,"26","01","06","044273","000386","26|01|06","01","01","01","01","01","01|01|01|01|01","National","Military Veterans","Administration","Office Accommodation","Non-transfer item","Current","Current payments","Compensation of employees","Salaries and wages","Salaries and wages","Peace and security","Defence and state security","NAT",0,0,0,0,0,0,0,0,0,0,0,null,null,null,null,null,null,null,null,null,null,null,null,null,null,null,null,null,null,null,null,null,null,null,null,null,null,null,null,null,null,null,null,null,null,{"$f":"Dataset[[#This Row],[2024/25 From - Spending review Topic 1]]+Dataset[[#This Row],[2024/25 From - Spending review Topic 2]]+Dataset[[#This Row],[2024/25 From - Spending review Topic 3]]+Dataset[[#This Row],[2024/25 From - Spending review Topic 4]]+Dataset[[#This Row],[2024/25 From - Other reallocations]]","v":0},{"$f":"Dataset[[#This Row],[2025/26 From - Spending review Topic 1]]+Dataset[[#This Row],[2025/26 From - Spending review Topic 2]]+Dataset[[#This Row],[2025/26 From - Spending review Topic 3]]+Dataset[[#This Row],[2025/26 From - Spending review Topic 4]]+Dataset[[#This Row],[2025/26 From - Other reallocations]]","v":0},{"$f":"Dataset[[#This Row],[2026/27 From - Spending review Topic 1]]+Dataset[[#This Row],[2026/27 From - Spending review Topic 2]]+Dataset[[#This Row],[2026/27 From - Spending review Topic 3]]+Dataset[[#This Row],[2026/27 From - Spending review Topic 4]]+Dataset[[#This Row],[2026/27 From - Other reallocations]]","v":0},{"$f":"Dataset[[#This Row],[2024/25 To - Spending review Topic 1]]+Dataset[[#This Row],[2024/25 To - Spending review Topic 2]]+Dataset[[#This Row],[2024/25 To - Spending review Topic 3]]+Dataset[[#This Row],[2024/25 To - Spending review Topic 4]]+Dataset[[#This Row],[2024/25 To - Other reallocations]]","v":0},{"$f":"Dataset[[#This Row],[2025/26 To - Spending review Topic 1]]+Dataset[[#This Row],[2025/26 To - Spending review Topic 2]]+Dataset[[#This Row],[2025/26 To - Spending review Topic 3]]+Dataset[[#This Row],[2025/26 To - Spending review Topic 4]]+Dataset[[#This Row],[2025/26 To - Other reallocations]]","v":0},{"$f":"Dataset[[#This Row],[2026/27 To - Spending review Topic 1]]+Dataset[[#This Row],[2026/27 To - Spending review Topic 2]]+Dataset[[#This Row],[2026/27 To - Spending review Topic 3]]+Dataset[[#This Row],[2026/27 To - Spending review Topic 4]]+Dataset[[#This Row],[2026/27 To - Other reallocations]]","v":0},{"$f":"Dataset[[#This Row],[2024/25 Reduction]]+Dataset[[#This Row],[2024/25 From - Total]]","v":0},{"$f":"Dataset[[#This Row],[2025/26 Reduction]]+Dataset[[#This Row],[2025/26 From - Total]]","v":0},{"$f":"Dataset[[#This Row],[2026/27 Reduction]]+Dataset[[#This Row],[2026/27 From - Total]]","v":0},{"$f":"Dataset[[#This Row],[2023/24 Reduction]]","v":0},{"$f":"SUM(Dataset[[#This Row],[2024/25 Reduction]],Dataset[[#This Row],[2024/25 From - Total]],Dataset[[#This Row],[2024/25 To - Total]])","v":0},{"$f":"SUM(Dataset[[#This Row],[2025/26 Reduction]],Dataset[[#This Row],[2025/26 From - Total]],Dataset[[#This Row],[2025/26 To - Total]])","v":0},{"$f":"SUM(Dataset[[#This Row],[2026/27 Reduction]],Dataset[[#This Row],[2026/27 From - Total]],Dataset[[#This Row],[2026/27 To - Total]])","v":0},{"$f":"Dataset[[#This Row],[2023/24 Baseline]]+Dataset[[#This Row],[2023/24 Total change]]","v":0},{"$f":"Dataset[[#This Row],[2024/25 Baseline]]+Dataset[[#This Row],[2024/25 Total change]]","v":0},{"$f":"Dataset[[#This Row],[2025/26 Baseline]]+Dataset[[#This Row],[2025/26 Total change]]","v":0},{"$f":"Dataset[[#This Row],[2026/27 Baseline]]+Dataset[[#This Row],[2026/27 Total change]]","v":0}]
["NAT|Non-transfer item","26|Social contributions","2024_25","MTEF2024",26,1,6,44274,387,"26","01","06","044274","000387","26|01|06","01","01","01","02","02","01|01|01|02|02","National","Military Veterans","Administration","Office Accommodation","Non-transfer item","Current","Current payments","Compensation of employees","Social contributions","Social contributions","Peace and security","Defence and state security","NAT",0,0,0,0,0,0,0,0,0,0,0,null,null,null,null,null,null,null,null,null,null,null,null,null,null,null,null,null,null,null,null,null,null,null,null,null,null,null,null,null,null,null,null,null,null,{"$f":"Dataset[[#This Row],[2024/25 From - Spending review Topic 1]]+Dataset[[#This Row],[2024/25 From - Spending review Topic 2]]+Dataset[[#This Row],[2024/25 From - Spending review Topic 3]]+Dataset[[#This Row],[2024/25 From - Spending review Topic 4]]+Dataset[[#This Row],[2024/25 From - Other reallocations]]","v":0},{"$f":"Dataset[[#This Row],[2025/26 From - Spending review Topic 1]]+Dataset[[#This Row],[2025/26 From - Spending review Topic 2]]+Dataset[[#This Row],[2025/26 From - Spending review Topic 3]]+Dataset[[#This Row],[2025/26 From - Spending review Topic 4]]+Dataset[[#This Row],[2025/26 From - Other reallocations]]","v":0},{"$f":"Dataset[[#This Row],[2026/27 From - Spending review Topic 1]]+Dataset[[#This Row],[2026/27 From - Spending review Topic 2]]+Dataset[[#This Row],[2026/27 From - Spending review Topic 3]]+Dataset[[#This Row],[2026/27 From - Spending review Topic 4]]+Dataset[[#This Row],[2026/27 From - Other reallocations]]","v":0},{"$f":"Dataset[[#This Row],[2024/25 To - Spending review Topic 1]]+Dataset[[#This Row],[2024/25 To - Spending review Topic 2]]+Dataset[[#This Row],[2024/25 To - Spending review Topic 3]]+Dataset[[#This Row],[2024/25 To - Spending review Topic 4]]+Dataset[[#This Row],[2024/25 To - Other reallocations]]","v":0},{"$f":"Dataset[[#This Row],[2025/26 To - Spending review Topic 1]]+Dataset[[#This Row],[2025/26 To - Spending review Topic 2]]+Dataset[[#This Row],[2025/26 To - Spending review Topic 3]]+Dataset[[#This Row],[2025/26 To - Spending review Topic 4]]+Dataset[[#This Row],[2025/26 To - Other reallocations]]","v":0},{"$f":"Dataset[[#This Row],[2026/27 To - Spending review Topic 1]]+Dataset[[#This Row],[2026/27 To - Spending review Topic 2]]+Dataset[[#This Row],[2026/27 To - Spending review Topic 3]]+Dataset[[#This Row],[2026/27 To - Spending review Topic 4]]+Dataset[[#This Row],[2026/27 To - Other reallocations]]","v":0},{"$f":"Dataset[[#This Row],[2024/25 Reduction]]+Dataset[[#This Row],[2024/25 From - Total]]","v":0},{"$f":"Dataset[[#This Row],[2025/26 Reduction]]+Dataset[[#This Row],[2025/26 From - Total]]","v":0},{"$f":"Dataset[[#This Row],[2026/27 Reduction]]+Dataset[[#This Row],[2026/27 From - Total]]","v":0},{"$f":"Dataset[[#This Row],[2023/24 Reduction]]","v":0},{"$f":"SUM(Dataset[[#This Row],[2024/25 Reduction]],Dataset[[#This Row],[2024/25 From - Total]],Dataset[[#This Row],[2024/25 To - Total]])","v":0},{"$f":"SUM(Dataset[[#This Row],[2025/26 Reduction]],Dataset[[#This Row],[2025/26 From - Total]],Dataset[[#This Row],[2025/26 To - Total]])","v":0},{"$f":"SUM(Dataset[[#This Row],[2026/27 Reduction]],Dataset[[#This Row],[2026/27 From - Total]],Dataset[[#This Row],[2026/27 To - Total]])","v":0},{"$f":"Dataset[[#This Row],[2023/24 Baseline]]+Dataset[[#This Row],[2023/24 Total change]]","v":0},{"$f":"Dataset[[#This Row],[2024/25 Baseline]]+Dataset[[#This Row],[2024/25 Total change]]","v":0},{"$f":"Dataset[[#This Row],[2025/26 Baseline]]+Dataset[[#This Row],[2025/26 Total change]]","v":0},{"$f":"Dataset[[#This Row],[2026/27 Baseline]]+Dataset[[#This Row],[2026/27 Total change]]","v":0}]
["NAT|Non-transfer item","26|Administrative fees","2024_25","MTEF2024",26,1,6,44275,388,"26","01","06","044275","000388","26|01|06","01","01","02","03","03","01|01|02|03|03","National","Military Veterans","Administration","Office Accommodation","Non-transfer item","Current","Current payments","Goods and services","Administrative fees","Administrative fees","Peace and security","Defence and state security","NAT",0,0,0,0,0,0,0,0,0,0,0,null,null,null,null,null,null,null,null,null,null,null,null,null,null,null,null,null,null,null,null,null,null,null,null,null,null,null,null,null,null,null,null,null,null,{"$f":"Dataset[[#This Row],[2024/25 From - Spending review Topic 1]]+Dataset[[#This Row],[2024/25 From - Spending review Topic 2]]+Dataset[[#This Row],[2024/25 From - Spending review Topic 3]]+Dataset[[#This Row],[2024/25 From - Spending review Topic 4]]+Dataset[[#This Row],[2024/25 From - Other reallocations]]","v":0},{"$f":"Dataset[[#This Row],[2025/26 From - Spending review Topic 1]]+Dataset[[#This Row],[2025/26 From - Spending review Topic 2]]+Dataset[[#This Row],[2025/26 From - Spending review Topic 3]]+Dataset[[#This Row],[2025/26 From - Spending review Topic 4]]+Dataset[[#This Row],[2025/26 From - Other reallocations]]","v":0},{"$f":"Dataset[[#This Row],[2026/27 From - Spending review Topic 1]]+Dataset[[#This Row],[2026/27 From - Spending review Topic 2]]+Dataset[[#This Row],[2026/27 From - Spending review Topic 3]]+Dataset[[#This Row],[2026/27 From - Spending review Topic 4]]+Dataset[[#This Row],[2026/27 From - Other reallocations]]","v":0},{"$f":"Dataset[[#This Row],[2024/25 To - Spending review Topic 1]]+Dataset[[#This Row],[2024/25 To - Spending review Topic 2]]+Dataset[[#This Row],[2024/25 To - Spending review Topic 3]]+Dataset[[#This Row],[2024/25 To - Spending review Topic 4]]+Dataset[[#This Row],[2024/25 To - Other reallocations]]","v":0},{"$f":"Dataset[[#This Row],[2025/26 To - Spending review Topic 1]]+Dataset[[#This Row],[2025/26 To - Spending review Topic 2]]+Dataset[[#This Row],[2025/26 To - Spending review Topic 3]]+Dataset[[#This Row],[2025/26 To - Spending review Topic 4]]+Dataset[[#This Row],[2025/26 To - Other reallocations]]","v":0},{"$f":"Dataset[[#This Row],[2026/27 To - Spending review Topic 1]]+Dataset[[#This Row],[2026/27 To - Spending review Topic 2]]+Dataset[[#This Row],[2026/27 To - Spending review Topic 3]]+Dataset[[#This Row],[2026/27 To - Spending review Topic 4]]+Dataset[[#This Row],[2026/27 To - Other reallocations]]","v":0},{"$f":"Dataset[[#This Row],[2024/25 Reduction]]+Dataset[[#This Row],[2024/25 From - Total]]","v":0},{"$f":"Dataset[[#This Row],[2025/26 Reduction]]+Dataset[[#This Row],[2025/26 From - Total]]","v":0},{"$f":"Dataset[[#This Row],[2026/27 Reduction]]+Dataset[[#This Row],[2026/27 From - Total]]","v":0},{"$f":"Dataset[[#This Row],[2023/24 Reduction]]","v":0},{"$f":"SUM(Dataset[[#This Row],[2024/25 Reduction]],Dataset[[#This Row],[2024/25 From - Total]],Dataset[[#This Row],[2024/25 To - Total]])","v":0},{"$f":"SUM(Dataset[[#This Row],[2025/26 Reduction]],Dataset[[#This Row],[2025/26 From - Total]],Dataset[[#This Row],[2025/26 To - Total]])","v":0},{"$f":"SUM(Dataset[[#This Row],[2026/27 Reduction]],Dataset[[#This Row],[2026/27 From - Total]],Dataset[[#This Row],[2026/27 To - Total]])","v":0},{"$f":"Dataset[[#This Row],[2023/24 Baseline]]+Dataset[[#This Row],[2023/24 Total change]]","v":0},{"$f":"Dataset[[#This Row],[2024/25 Baseline]]+Dataset[[#This Row],[2024/25 Total change]]","v":0},{"$f":"Dataset[[#This Row],[2025/26 Baseline]]+Dataset[[#This Row],[2025/26 Total change]]","v":0},{"$f":"Dataset[[#This Row],[2026/27 Baseline]]+Dataset[[#This Row],[2026/27 Total change]]","v":0}]
["NAT|Non-transfer item","26|Advertising","2024_25","MTEF2024",26,1,6,44276,389,"26","01","06","044276","000389","26|01|06","01","01","02","04","04","01|01|02|04|04","National","Military Veterans","Administration","Office Accommodation","Non-transfer item","Current","Current payments","Goods and services","Advertising","Advertising","Peace and security","Defence and state security","NAT",0,0,0,0,0,0,0,0,0,0,0,null,null,null,null,null,null,null,null,null,null,null,null,null,null,null,null,null,null,null,null,null,null,null,null,null,null,null,null,null,null,null,null,null,null,{"$f":"Dataset[[#This Row],[2024/25 From - Spending review Topic 1]]+Dataset[[#This Row],[2024/25 From - Spending review Topic 2]]+Dataset[[#This Row],[2024/25 From - Spending review Topic 3]]+Dataset[[#This Row],[2024/25 From - Spending review Topic 4]]+Dataset[[#This Row],[2024/25 From - Other reallocations]]","v":0},{"$f":"Dataset[[#This Row],[2025/26 From - Spending review Topic 1]]+Dataset[[#This Row],[2025/26 From - Spending review Topic 2]]+Dataset[[#This Row],[2025/26 From - Spending review Topic 3]]+Dataset[[#This Row],[2025/26 From - Spending review Topic 4]]+Dataset[[#This Row],[2025/26 From - Other reallocations]]","v":0},{"$f":"Dataset[[#This Row],[2026/27 From - Spending review Topic 1]]+Dataset[[#This Row],[2026/27 From - Spending review Topic 2]]+Dataset[[#This Row],[2026/27 From - Spending review Topic 3]]+Dataset[[#This Row],[2026/27 From - Spending review Topic 4]]+Dataset[[#This Row],[2026/27 From - Other reallocations]]","v":0},{"$f":"Dataset[[#This Row],[2024/25 To - Spending review Topic 1]]+Dataset[[#This Row],[2024/25 To - Spending review Topic 2]]+Dataset[[#This Row],[2024/25 To - Spending review Topic 3]]+Dataset[[#This Row],[2024/25 To - Spending review Topic 4]]+Dataset[[#This Row],[2024/25 To - Other reallocations]]","v":0},{"$f":"Dataset[[#This Row],[2025/26 To - Spending review Topic 1]]+Dataset[[#This Row],[2025/26 To - Spending review Topic 2]]+Dataset[[#This Row],[2025/26 To - Spending review Topic 3]]+Dataset[[#This Row],[2025/26 To - Spending review Topic 4]]+Dataset[[#This Row],[2025/26 To - Other reallocations]]","v":0},{"$f":"Dataset[[#This Row],[2026/27 To - Spending review Topic 1]]+Dataset[[#This Row],[2026/27 To - Spending review Topic 2]]+Dataset[[#This Row],[2026/27 To - Spending review Topic 3]]+Dataset[[#This Row],[2026/27 To - Spending review Topic 4]]+Dataset[[#This Row],[2026/27 To - Other reallocations]]","v":0},{"$f":"Dataset[[#This Row],[2024/25 Reduction]]+Dataset[[#This Row],[2024/25 From - Total]]","v":0},{"$f":"Dataset[[#This Row],[2025/26 Reduction]]+Dataset[[#This Row],[2025/26 From - Total]]","v":0},{"$f":"Dataset[[#This Row],[2026/27 Reduction]]+Dataset[[#This Row],[2026/27 From - Total]]","v":0},{"$f":"Dataset[[#This Row],[2023/24 Reduction]]","v":0},{"$f":"SUM(Dataset[[#This Row],[2024/25 Reduction]],Dataset[[#This Row],[2024/25 From - Total]],Dataset[[#This Row],[2024/25 To - Total]])","v":0},{"$f":"SUM(Dataset[[#This Row],[2025/26 Reduction]],Dataset[[#This Row],[2025/26 From - Total]],Dataset[[#This Row],[2025/26 To - Total]])","v":0},{"$f":"SUM(Dataset[[#This Row],[2026/27 Reduction]],Dataset[[#This Row],[2026/27 From - Total]],Dataset[[#This Row],[2026/27 To - Total]])","v":0},{"$f":"Dataset[[#This Row],[2023/24 Baseline]]+Dataset[[#This Row],[2023/24 Total change]]","v":0},{"$f":"Dataset[[#This Row],[2024/25 Baseline]]+Dataset[[#This Row],[2024/25 Total change]]","v":0},{"$f":"Dataset[[#This Row],[2025/26 Baseline]]+Dataset[[#This Row],[2025/26 Total change]]","v":0},{"$f":"Dataset[[#This Row],[2026/27 Baseline]]+Dataset[[#This Row],[2026/27 Total change]]","v":0}]
["NAT|Non-transfer item","26|Minor assets","2024_25","MTEF2024",26,1,6,44277,390,"26","01","06","044277","000390","26|01|06","01","01","02","05","05","01|01|02|05|05","National","Military Veterans","Administration","Office Accommodation","Non-transfer item","Current","Current payments","Goods and services","Minor assets","Minor assets","Peace and security","Defence and state security","NAT",0,0,0,0,0,0,0,0,0,0,0,null,null,null,null,null,null,null,null,null,null,null,null,null,null,null,null,null,null,null,null,null,null,null,null,null,null,null,null,null,null,null,null,null,null,{"$f":"Dataset[[#This Row],[2024/25 From - Spending review Topic 1]]+Dataset[[#This Row],[2024/25 From - Spending review Topic 2]]+Dataset[[#This Row],[2024/25 From - Spending review Topic 3]]+Dataset[[#This Row],[2024/25 From - Spending review Topic 4]]+Dataset[[#This Row],[2024/25 From - Other reallocations]]","v":0},{"$f":"Dataset[[#This Row],[2025/26 From - Spending review Topic 1]]+Dataset[[#This Row],[2025/26 From - Spending review Topic 2]]+Dataset[[#This Row],[2025/26 From - Spending review Topic 3]]+Dataset[[#This Row],[2025/26 From - Spending review Topic 4]]+Dataset[[#This Row],[2025/26 From - Other reallocations]]","v":0},{"$f":"Dataset[[#This Row],[2026/27 From - Spending review Topic 1]]+Dataset[[#This Row],[2026/27 From - Spending review Topic 2]]+Dataset[[#This Row],[2026/27 From - Spending review Topic 3]]+Dataset[[#This Row],[2026/27 From - Spending review Topic 4]]+Dataset[[#This Row],[2026/27 From - Other reallocations]]","v":0},{"$f":"Dataset[[#This Row],[2024/25 To - Spending review Topic 1]]+Dataset[[#This Row],[2024/25 To - Spending review Topic 2]]+Dataset[[#This Row],[2024/25 To - Spending review Topic 3]]+Dataset[[#This Row],[2024/25 To - Spending review Topic 4]]+Dataset[[#This Row],[2024/25 To - Other reallocations]]","v":0},{"$f":"Dataset[[#This Row],[2025/26 To - Spending review Topic 1]]+Dataset[[#This Row],[2025/26 To - Spending review Topic 2]]+Dataset[[#This Row],[2025/26 To - Spending review Topic 3]]+Dataset[[#This Row],[2025/26 To - Spending review Topic 4]]+Dataset[[#This Row],[2025/26 To - Other reallocations]]","v":0},{"$f":"Dataset[[#This Row],[2026/27 To - Spending review Topic 1]]+Dataset[[#This Row],[2026/27 To - Spending review Topic 2]]+Dataset[[#This Row],[2026/27 To - Spending review Topic 3]]+Dataset[[#This Row],[2026/27 To - Spending review Topic 4]]+Dataset[[#This Row],[2026/27 To - Other reallocations]]","v":0},{"$f":"Dataset[[#This Row],[2024/25 Reduction]]+Dataset[[#This Row],[2024/25 From - Total]]","v":0},{"$f":"Dataset[[#This Row],[2025/26 Reduction]]+Dataset[[#This Row],[2025/26 From - Total]]","v":0},{"$f":"Dataset[[#This Row],[2026/27 Reduction]]+Dataset[[#This Row],[2026/27 From - Total]]","v":0},{"$f":"Dataset[[#This Row],[2023/24 Reduction]]","v":0},{"$f":"SUM(Dataset[[#This Row],[2024/25 Reduction]],Dataset[[#This Row],[2024/25 From - Total]],Dataset[[#This Row],[2024/25 To - Total]])","v":0},{"$f":"SUM(Dataset[[#This Row],[2025/26 Reduction]],Dataset[[#This Row],[2025/26 From - Total]],Dataset[[#This Row],[2025/26 To - Total]])","v":0},{"$f":"SUM(Dataset[[#This Row],[2026/27 Reduction]],Dataset[[#This Row],[2026/27 From - Total]],Dataset[[#This Row],[2026/27 To - Total]])","v":0},{"$f":"Dataset[[#This Row],[2023/24 Baseline]]+Dataset[[#This Row],[2023/24 Total change]]","v":0},{"$f":"Dataset[[#This Row],[2024/25 Baseline]]+Dataset[[#This Row],[2024/25 Total change]]","v":0},{"$f":"Dataset[[#This Row],[2025/26 Baseline]]+Dataset[[#This Row],[2025/26 Total change]]","v":0},{"$f":"Dataset[[#This Row],[2026/27 Baseline]]+Dataset[[#This Row],[2026/27 Total change]]","v":0}]
["NAT|Non-transfer item","26|Audit costs: External","2024_25","MTEF2024",26,1,6,44278,391,"26","01","06","044278","000391","26|01|06","01","01","02","06","06","01|01|02|06|06","National","Military Veterans","Administration","Office Accommodation","Non-transfer item","Current","Current payments","Goods and services","Audit costs: External","Audit costs: External","Peace and security","Defence and state security","NAT",0,0,0,0,0,0,0,0,0,0,0,null,null,null,null,null,null,null,null,null,null,null,null,null,null,null,null,null,null,null,null,null,null,null,null,null,null,null,null,null,null,null,null,null,null,{"$f":"Dataset[[#This Row],[2024/25 From - Spending review Topic 1]]+Dataset[[#This Row],[2024/25 From - Spending review Topic 2]]+Dataset[[#This Row],[2024/25 From - Spending review Topic 3]]+Dataset[[#This Row],[2024/25 From - Spending review Topic 4]]+Dataset[[#This Row],[2024/25 From - Other reallocations]]","v":0},{"$f":"Dataset[[#This Row],[2025/26 From - Spending review Topic 1]]+Dataset[[#This Row],[2025/26 From - Spending review Topic 2]]+Dataset[[#This Row],[2025/26 From - Spending review Topic 3]]+Dataset[[#This Row],[2025/26 From - Spending review Topic 4]]+Dataset[[#This Row],[2025/26 From - Other reallocations]]","v":0},{"$f":"Dataset[[#This Row],[2026/27 From - Spending review Topic 1]]+Dataset[[#This Row],[2026/27 From - Spending review Topic 2]]+Dataset[[#This Row],[2026/27 From - Spending review Topic 3]]+Dataset[[#This Row],[2026/27 From - Spending review Topic 4]]+Dataset[[#This Row],[2026/27 From - Other reallocations]]","v":0},{"$f":"Dataset[[#This Row],[2024/25 To - Spending review Topic 1]]+Dataset[[#This Row],[2024/25 To - Spending review Topic 2]]+Dataset[[#This Row],[2024/25 To - Spending review Topic 3]]+Dataset[[#This Row],[2024/25 To - Spending review Topic 4]]+Dataset[[#This Row],[2024/25 To - Other reallocations]]","v":0},{"$f":"Dataset[[#This Row],[2025/26 To - Spending review Topic 1]]+Dataset[[#This Row],[2025/26 To - Spending review Topic 2]]+Dataset[[#This Row],[2025/26 To - Spending review Topic 3]]+Dataset[[#This Row],[2025/26 To - Spending review Topic 4]]+Dataset[[#This Row],[2025/26 To - Other reallocations]]","v":0},{"$f":"Dataset[[#This Row],[2026/27 To - Spending review Topic 1]]+Dataset[[#This Row],[2026/27 To - Spending review Topic 2]]+Dataset[[#This Row],[2026/27 To - Spending review Topic 3]]+Dataset[[#This Row],[2026/27 To - Spending review Topic 4]]+Dataset[[#This Row],[2026/27 To - Other reallocations]]","v":0},{"$f":"Dataset[[#This Row],[2024/25 Reduction]]+Dataset[[#This Row],[2024/25 From - Total]]","v":0},{"$f":"Dataset[[#This Row],[2025/26 Reduction]]+Dataset[[#This Row],[2025/26 From - Total]]","v":0},{"$f":"Dataset[[#This Row],[2026/27 Reduction]]+Dataset[[#This Row],[2026/27 From - Total]]","v":0},{"$f":"Dataset[[#This Row],[2023/24 Reduction]]","v":0},{"$f":"SUM(Dataset[[#This Row],[2024/25 Reduction]],Dataset[[#This Row],[2024/25 From - Total]],Dataset[[#This Row],[2024/25 To - Total]])","v":0},{"$f":"SUM(Dataset[[#This Row],[2025/26 Reduction]],Dataset[[#This Row],[2025/26 From - Total]],Dataset[[#This Row],[2025/26 To - Total]])","v":0},{"$f":"SUM(Dataset[[#This Row],[2026/27 Reduction]],Dataset[[#This Row],[2026/27 From - Total]],Dataset[[#This Row],[2026/27 To - Total]])","v":0},{"$f":"Dataset[[#This Row],[2023/24 Baseline]]+Dataset[[#This Row],[2023/24 Total change]]","v":0},{"$f":"Dataset[[#This Row],[2024/25 Baseline]]+Dataset[[#This Row],[2024/25 Total change]]","v":0},{"$f":"Dataset[[#This Row],[2025/26 Baseline]]+Dataset[[#This Row],[2025/26 Total change]]","v":0},{"$f":"Dataset[[#This Row],[2026/27 Baseline]]+Dataset[[#This Row],[2026/27 Total change]]","v":0}]
["NAT|Non-transfer item","26|Bursaries: Employees","2024_25","MTEF2024",26,1,6,44279,392,"26","01","06","044279","000392","26|01|06","01","01","02","07","07","01|01|02|07|07","National","Military Veterans","Administration","Office Accommodation","Non-transfer item","Current","Current payments","Goods and services","Bursaries: Employees","Bursaries: Employees","Peace and security","Defence and state security","NAT",0,0,0,0,0,0,0,0,0,0,0,null,null,null,null,null,null,null,null,null,null,null,null,null,null,null,null,null,null,null,null,null,null,null,null,null,null,null,null,null,null,null,null,null,null,{"$f":"Dataset[[#This Row],[2024/25 From - Spending review Topic 1]]+Dataset[[#This Row],[2024/25 From - Spending review Topic 2]]+Dataset[[#This Row],[2024/25 From - Spending review Topic 3]]+Dataset[[#This Row],[2024/25 From - Spending review Topic 4]]+Dataset[[#This Row],[2024/25 From - Other reallocations]]","v":0},{"$f":"Dataset[[#This Row],[2025/26 From - Spending review Topic 1]]+Dataset[[#This Row],[2025/26 From - Spending review Topic 2]]+Dataset[[#This Row],[2025/26 From - Spending review Topic 3]]+Dataset[[#This Row],[2025/26 From - Spending review Topic 4]]+Dataset[[#This Row],[2025/26 From - Other reallocations]]","v":0},{"$f":"Dataset[[#This Row],[2026/27 From - Spending review Topic 1]]+Dataset[[#This Row],[2026/27 From - Spending review Topic 2]]+Dataset[[#This Row],[2026/27 From - Spending review Topic 3]]+Dataset[[#This Row],[2026/27 From - Spending review Topic 4]]+Dataset[[#This Row],[2026/27 From - Other reallocations]]","v":0},{"$f":"Dataset[[#This Row],[2024/25 To - Spending review Topic 1]]+Dataset[[#This Row],[2024/25 To - Spending review Topic 2]]+Dataset[[#This Row],[2024/25 To - Spending review Topic 3]]+Dataset[[#This Row],[2024/25 To - Spending review Topic 4]]+Dataset[[#This Row],[2024/25 To - Other reallocations]]","v":0},{"$f":"Dataset[[#This Row],[2025/26 To - Spending review Topic 1]]+Dataset[[#This Row],[2025/26 To - Spending review Topic 2]]+Dataset[[#This Row],[2025/26 To - Spending review Topic 3]]+Dataset[[#This Row],[2025/26 To - Spending review Topic 4]]+Dataset[[#This Row],[2025/26 To - Other reallocations]]","v":0},{"$f":"Dataset[[#This Row],[2026/27 To - Spending review Topic 1]]+Dataset[[#This Row],[2026/27 To - Spending review Topic 2]]+Dataset[[#This Row],[2026/27 To - Spending review Topic 3]]+Dataset[[#This Row],[2026/27 To - Spending review Topic 4]]+Dataset[[#This Row],[2026/27 To - Other reallocations]]","v":0},{"$f":"Dataset[[#This Row],[2024/25 Reduction]]+Dataset[[#This Row],[2024/25 From - Total]]","v":0},{"$f":"Dataset[[#This Row],[2025/26 Reduction]]+Dataset[[#This Row],[2025/26 From - Total]]","v":0},{"$f":"Dataset[[#This Row],[2026/27 Reduction]]+Dataset[[#This Row],[2026/27 From - Total]]","v":0},{"$f":"Dataset[[#This Row],[2023/24 Reduction]]","v":0},{"$f":"SUM(Dataset[[#This Row],[2024/25 Reduction]],Dataset[[#This Row],[2024/25 From - Total]],Dataset[[#This Row],[2024/25 To - Total]])","v":0},{"$f":"SUM(Dataset[[#This Row],[2025/26 Reduction]],Dataset[[#This Row],[2025/26 From - Total]],Dataset[[#This Row],[2025/26 To - Total]])","v":0},{"$f":"SUM(Dataset[[#This Row],[2026/27 Reduction]],Dataset[[#This Row],[2026/27 From - Total]],Dataset[[#This Row],[2026/27 To - Total]])","v":0},{"$f":"Dataset[[#This Row],[2023/24 Baseline]]+Dataset[[#This Row],[2023/24 Total change]]","v":0},{"$f":"Dataset[[#This Row],[2024/25 Baseline]]+Dataset[[#This Row],[2024/25 Total change]]","v":0},{"$f":"Dataset[[#This Row],[2025/26 Baseline]]+Dataset[[#This Row],[2025/26 Total change]]","v":0},{"$f":"Dataset[[#This Row],[2026/27 Baseline]]+Dataset[[#This Row],[2026/27 Total change]]","v":0}]
["NAT|Non-transfer item","26|Catering: Departmental activities","2024_25","MTEF2024",26,1,6,44280,393,"26","01","06","044280","000393","26|01|06","01","01","02","08","08","01|01|02|08|08","National","Military Veterans","Administration","Office Accommodation","Non-transfer item","Current","Current payments","Goods and services","Catering: Departmental activities","Catering: Departmental activities","Peace and security","Defence and state security","NAT",0,0,0,0,0,0,0,0,0,0,0,null,null,null,null,null,null,null,null,null,null,null,null,null,null,null,null,null,null,null,null,null,null,null,null,null,null,null,null,null,null,null,null,null,null,{"$f":"Dataset[[#This Row],[2024/25 From - Spending review Topic 1]]+Dataset[[#This Row],[2024/25 From - Spending review Topic 2]]+Dataset[[#This Row],[2024/25 From - Spending review Topic 3]]+Dataset[[#This Row],[2024/25 From - Spending review Topic 4]]+Dataset[[#This Row],[2024/25 From - Other reallocations]]","v":0},{"$f":"Dataset[[#This Row],[2025/26 From - Spending review Topic 1]]+Dataset[[#This Row],[2025/26 From - Spending review Topic 2]]+Dataset[[#This Row],[2025/26 From - Spending review Topic 3]]+Dataset[[#This Row],[2025/26 From - Spending review Topic 4]]+Dataset[[#This Row],[2025/26 From - Other reallocations]]","v":0},{"$f":"Dataset[[#This Row],[2026/27 From - Spending review Topic 1]]+Dataset[[#This Row],[2026/27 From - Spending review Topic 2]]+Dataset[[#This Row],[2026/27 From - Spending review Topic 3]]+Dataset[[#This Row],[2026/27 From - Spending review Topic 4]]+Dataset[[#This Row],[2026/27 From - Other reallocations]]","v":0},{"$f":"Dataset[[#This Row],[2024/25 To - Spending review Topic 1]]+Dataset[[#This Row],[2024/25 To - Spending review Topic 2]]+Dataset[[#This Row],[2024/25 To - Spending review Topic 3]]+Dataset[[#This Row],[2024/25 To - Spending review Topic 4]]+Dataset[[#This Row],[2024/25 To - Other reallocations]]","v":0},{"$f":"Dataset[[#This Row],[2025/26 To - Spending review Topic 1]]+Dataset[[#This Row],[2025/26 To - Spending review Topic 2]]+Dataset[[#This Row],[2025/26 To - Spending review Topic 3]]+Dataset[[#This Row],[2025/26 To - Spending review Topic 4]]+Dataset[[#This Row],[2025/26 To - Other reallocations]]","v":0},{"$f":"Dataset[[#This Row],[2026/27 To - Spending review Topic 1]]+Dataset[[#This Row],[2026/27 To - Spending review Topic 2]]+Dataset[[#This Row],[2026/27 To - Spending review Topic 3]]+Dataset[[#This Row],[2026/27 To - Spending review Topic 4]]+Dataset[[#This Row],[2026/27 To - Other reallocations]]","v":0},{"$f":"Dataset[[#This Row],[2024/25 Reduction]]+Dataset[[#This Row],[2024/25 From - Total]]","v":0},{"$f":"Dataset[[#This Row],[2025/26 Reduction]]+Dataset[[#This Row],[2025/26 From - Total]]","v":0},{"$f":"Dataset[[#This Row],[2026/27 Reduction]]+Dataset[[#This Row],[2026/27 From - Total]]","v":0},{"$f":"Dataset[[#This Row],[2023/24 Reduction]]","v":0},{"$f":"SUM(Dataset[[#This Row],[2024/25 Reduction]],Dataset[[#This Row],[2024/25 From - Total]],Dataset[[#This Row],[2024/25 To - Total]])","v":0},{"$f":"SUM(Dataset[[#This Row],[2025/26 Reduction]],Dataset[[#This Row],[2025/26 From - Total]],Dataset[[#This Row],[2025/26 To - Total]])","v":0},{"$f":"SUM(Dataset[[#This Row],[2026/27 Reduction]],Dataset[[#This Row],[2026/27 From - Total]],Dataset[[#This Row],[2026/27 To - Total]])","v":0},{"$f":"Dataset[[#This Row],[2023/24 Baseline]]+Dataset[[#This Row],[2023/24 Total change]]","v":0},{"$f":"Dataset[[#This Row],[2024/25 Baseline]]+Dataset[[#This Row],[2024/25 Total change]]","v":0},{"$f":"Dataset[[#This Row],[2025/26 Baseline]]+Dataset[[#This Row],[2025/26 Total change]]","v":0},{"$f":"Dataset[[#This Row],[2026/27 Baseline]]+Dataset[[#This Row],[2026/27 Total change]]","v":0}]
["NAT|Non-transfer item","26|Communication (G&S)","2024_25","MTEF2024",26,1,6,44281,394,"26","01","06","044281","000394","26|01|06","01","01","02","09","09","01|01|02|09|09","National","Military Veterans","Administration","Office Accommodation","Non-transfer item","Current","Current payments","Goods and services","Communication (G&S)","Communication (G&S)","Peace and security","Defence and state security","NAT",0,0,0,0,0,0,0,0,0,0,0,null,null,null,null,null,null,null,null,null,null,null,null,null,null,null,null,null,null,null,null,null,null,null,null,null,null,null,null,null,null,null,null,null,null,{"$f":"Dataset[[#This Row],[2024/25 From - Spending review Topic 1]]+Dataset[[#This Row],[2024/25 From - Spending review Topic 2]]+Dataset[[#This Row],[2024/25 From - Spending review Topic 3]]+Dataset[[#This Row],[2024/25 From - Spending review Topic 4]]+Dataset[[#This Row],[2024/25 From - Other reallocations]]","v":0},{"$f":"Dataset[[#This Row],[2025/26 From - Spending review Topic 1]]+Dataset[[#This Row],[2025/26 From - Spending review Topic 2]]+Dataset[[#This Row],[2025/26 From - Spending review Topic 3]]+Dataset[[#This Row],[2025/26 From - Spending review Topic 4]]+Dataset[[#This Row],[2025/26 From - Other reallocations]]","v":0},{"$f":"Dataset[[#This Row],[2026/27 From - Spending review Topic 1]]+Dataset[[#This Row],[2026/27 From - Spending review Topic 2]]+Dataset[[#This Row],[2026/27 From - Spending review Topic 3]]+Dataset[[#This Row],[2026/27 From - Spending review Topic 4]]+Dataset[[#This Row],[2026/27 From - Other reallocations]]","v":0},{"$f":"Dataset[[#This Row],[2024/25 To - Spending review Topic 1]]+Dataset[[#This Row],[2024/25 To - Spending review Topic 2]]+Dataset[[#This Row],[2024/25 To - Spending review Topic 3]]+Dataset[[#This Row],[2024/25 To - Spending review Topic 4]]+Dataset[[#This Row],[2024/25 To - Other reallocations]]","v":0},{"$f":"Dataset[[#This Row],[2025/26 To - Spending review Topic 1]]+Dataset[[#This Row],[2025/26 To - Spending review Topic 2]]+Dataset[[#This Row],[2025/26 To - Spending review Topic 3]]+Dataset[[#This Row],[2025/26 To - Spending review Topic 4]]+Dataset[[#This Row],[2025/26 To - Other reallocations]]","v":0},{"$f":"Dataset[[#This Row],[2026/27 To - Spending review Topic 1]]+Dataset[[#This Row],[2026/27 To - Spending review Topic 2]]+Dataset[[#This Row],[2026/27 To - Spending review Topic 3]]+Dataset[[#This Row],[2026/27 To - Spending review Topic 4]]+Dataset[[#This Row],[2026/27 To - Other reallocations]]","v":0},{"$f":"Dataset[[#This Row],[2024/25 Reduction]]+Dataset[[#This Row],[2024/25 From - Total]]","v":0},{"$f":"Dataset[[#This Row],[2025/26 Reduction]]+Dataset[[#This Row],[2025/26 From - Total]]","v":0},{"$f":"Dataset[[#This Row],[2026/27 Reduction]]+Dataset[[#This Row],[2026/27 From - Total]]","v":0},{"$f":"Dataset[[#This Row],[2023/24 Reduction]]","v":0},{"$f":"SUM(Dataset[[#This Row],[2024/25 Reduction]],Dataset[[#This Row],[2024/25 From - Total]],Dataset[[#This Row],[2024/25 To - Total]])","v":0},{"$f":"SUM(Dataset[[#This Row],[2025/26 Reduction]],Dataset[[#This Row],[2025/26 From - Total]],Dataset[[#This Row],[2025/26 To - Total]])","v":0},{"$f":"SUM(Dataset[[#This Row],[2026/27 Reduction]],Dataset[[#This Row],[2026/27 From - Total]],Dataset[[#This Row],[2026/27 To - Total]])","v":0},{"$f":"Dataset[[#This Row],[2023/24 Baseline]]+Dataset[[#This Row],[2023/24 Total change]]","v":0},{"$f":"Dataset[[#This Row],[2024/25 Baseline]]+Dataset[[#This Row],[2024/25 Total change]]","v":0},{"$f":"Dataset[[#This Row],[2025/26 Baseline]]+Dataset[[#This Row],[2025/26 Total change]]","v":0},{"$f":"Dataset[[#This Row],[2026/27 Baseline]]+Dataset[[#This Row],[2026/27 Total change]]","v":0}]
["NAT|Non-transfer item","26|Computer services","2024_25","MTEF2024",26,1,6,44282,395,"26","01","06","044282","000395","26|01|06","01","01","02","10","10","01|01|02|10|10","National","Military Veterans","Administration","Office Accommodation","Non-transfer item","Current","Current payments","Goods and services","Computer services","Computer services","Peace and security","Defence and state security","NAT",0,0,0,0,0,0,0,0,0,0,0,null,null,null,null,null,null,null,null,null,null,null,null,null,null,null,null,null,null,null,null,null,null,null,null,null,null,null,null,null,null,null,null,null,null,{"$f":"Dataset[[#This Row],[2024/25 From - Spending review Topic 1]]+Dataset[[#This Row],[2024/25 From - Spending review Topic 2]]+Dataset[[#This Row],[2024/25 From - Spending review Topic 3]]+Dataset[[#This Row],[2024/25 From - Spending review Topic 4]]+Dataset[[#This Row],[2024/25 From - Other reallocations]]","v":0},{"$f":"Dataset[[#This Row],[2025/26 From - Spending review Topic 1]]+Dataset[[#This Row],[2025/26 From - Spending review Topic 2]]+Dataset[[#This Row],[2025/26 From - Spending review Topic 3]]+Dataset[[#This Row],[2025/26 From - Spending review Topic 4]]+Dataset[[#This Row],[2025/26 From - Other reallocations]]","v":0},{"$f":"Dataset[[#This Row],[2026/27 From - Spending review Topic 1]]+Dataset[[#This Row],[2026/27 From - Spending review Topic 2]]+Dataset[[#This Row],[2026/27 From - Spending review Topic 3]]+Dataset[[#This Row],[2026/27 From - Spending review Topic 4]]+Dataset[[#This Row],[2026/27 From - Other reallocations]]","v":0},{"$f":"Dataset[[#This Row],[2024/25 To - Spending review Topic 1]]+Dataset[[#This Row],[2024/25 To - Spending review Topic 2]]+Dataset[[#This Row],[2024/25 To - Spending review Topic 3]]+Dataset[[#This Row],[2024/25 To - Spending review Topic 4]]+Dataset[[#This Row],[2024/25 To - Other reallocations]]","v":0},{"$f":"Dataset[[#This Row],[2025/26 To - Spending review Topic 1]]+Dataset[[#This Row],[2025/26 To - Spending review Topic 2]]+Dataset[[#This Row],[2025/26 To - Spending review Topic 3]]+Dataset[[#This Row],[2025/26 To - Spending review Topic 4]]+Dataset[[#This Row],[2025/26 To - Other reallocations]]","v":0},{"$f":"Dataset[[#This Row],[2026/27 To - Spending review Topic 1]]+Dataset[[#This Row],[2026/27 To - Spending review Topic 2]]+Dataset[[#This Row],[2026/27 To - Spending review Topic 3]]+Dataset[[#This Row],[2026/27 To - Spending review Topic 4]]+Dataset[[#This Row],[2026/27 To - Other reallocations]]","v":0},{"$f":"Dataset[[#This Row],[2024/25 Reduction]]+Dataset[[#This Row],[2024/25 From - Total]]","v":0},{"$f":"Dataset[[#This Row],[2025/26 Reduction]]+Dataset[[#This Row],[2025/26 From - Total]]","v":0},{"$f":"Dataset[[#This Row],[2026/27 Reduction]]+Dataset[[#This Row],[2026/27 From - Total]]","v":0},{"$f":"Dataset[[#This Row],[2023/24 Reduction]]","v":0},{"$f":"SUM(Dataset[[#This Row],[2024/25 Reduction]],Dataset[[#This Row],[2024/25 From - Total]],Dataset[[#This Row],[2024/25 To - Total]])","v":0},{"$f":"SUM(Dataset[[#This Row],[2025/26 Reduction]],Dataset[[#This Row],[2025/26 From - Total]],Dataset[[#This Row],[2025/26 To - Total]])","v":0},{"$f":"SUM(Dataset[[#This Row],[2026/27 Reduction]],Dataset[[#This Row],[2026/27 From - Total]],Dataset[[#This Row],[2026/27 To - Total]])","v":0},{"$f":"Dataset[[#This Row],[2023/24 Baseline]]+Dataset[[#This Row],[2023/24 Total change]]","v":0},{"$f":"Dataset[[#This Row],[2024/25 Baseline]]+Dataset[[#This Row],[2024/25 Total change]]","v":0},{"$f":"Dataset[[#This Row],[2025/26 Baseline]]+Dataset[[#This Row],[2025/26 Total change]]","v":0},{"$f":"Dataset[[#This Row],[2026/27 Baseline]]+Dataset[[#This Row],[2026/27 Total change]]","v":0}]
["NAT|Non-transfer item","26|Consultants: Business and advisory services","2024_25","MTEF2024",26,1,6,44283,396,"26","01","06","044283","000396","26|01|06","01","01","02","11","11","01|01|02|11|11","National","Military Veterans","Administration","Office Accommodation","Non-transfer item","Current","Current payments","Goods and services","Consultants: Business and advisory services","Consultants: Business and advisory services","Peace and security","Defence and state security","NAT",0,0,0,0,0,0,0,0,0,0,0,null,null,null,null,null,null,null,null,null,null,null,null,null,null,null,null,null,null,null,null,null,null,null,null,null,null,null,null,null,null,null,null,null,null,{"$f":"Dataset[[#This Row],[2024/25 From - Spending review Topic 1]]+Dataset[[#This Row],[2024/25 From - Spending review Topic 2]]+Dataset[[#This Row],[2024/25 From - Spending review Topic 3]]+Dataset[[#This Row],[2024/25 From - Spending review Topic 4]]+Dataset[[#This Row],[2024/25 From - Other reallocations]]","v":0},{"$f":"Dataset[[#This Row],[2025/26 From - Spending review Topic 1]]+Dataset[[#This Row],[2025/26 From - Spending review Topic 2]]+Dataset[[#This Row],[2025/26 From - Spending review Topic 3]]+Dataset[[#This Row],[2025/26 From - Spending review Topic 4]]+Dataset[[#This Row],[2025/26 From - Other reallocations]]","v":0},{"$f":"Dataset[[#This Row],[2026/27 From - Spending review Topic 1]]+Dataset[[#This Row],[2026/27 From - Spending review Topic 2]]+Dataset[[#This Row],[2026/27 From - Spending review Topic 3]]+Dataset[[#This Row],[2026/27 From - Spending review Topic 4]]+Dataset[[#This Row],[2026/27 From - Other reallocations]]","v":0},{"$f":"Dataset[[#This Row],[2024/25 To - Spending review Topic 1]]+Dataset[[#This Row],[2024/25 To - Spending review Topic 2]]+Dataset[[#This Row],[2024/25 To - Spending review Topic 3]]+Dataset[[#This Row],[2024/25 To - Spending review Topic 4]]+Dataset[[#This Row],[2024/25 To - Other reallocations]]","v":0},{"$f":"Dataset[[#This Row],[2025/26 To - Spending review Topic 1]]+Dataset[[#This Row],[2025/26 To - Spending review Topic 2]]+Dataset[[#This Row],[2025/26 To - Spending review Topic 3]]+Dataset[[#This Row],[2025/26 To - Spending review Topic 4]]+Dataset[[#This Row],[2025/26 To - Other reallocations]]","v":0},{"$f":"Dataset[[#This Row],[2026/27 To - Spending review Topic 1]]+Dataset[[#This Row],[2026/27 To - Spending review Topic 2]]+Dataset[[#This Row],[2026/27 To - Spending review Topic 3]]+Dataset[[#This Row],[2026/27 To - Spending review Topic 4]]+Dataset[[#This Row],[2026/27 To - Other reallocations]]","v":0},{"$f":"Dataset[[#This Row],[2024/25 Reduction]]+Dataset[[#This Row],[2024/25 From - Total]]","v":0},{"$f":"Dataset[[#This Row],[2025/26 Reduction]]+Dataset[[#This Row],[2025/26 From - Total]]","v":0},{"$f":"Dataset[[#This Row],[2026/27 Reduction]]+Dataset[[#This Row],[2026/27 From - Total]]","v":0},{"$f":"Dataset[[#This Row],[2023/24 Reduction]]","v":0},{"$f":"SUM(Dataset[[#This Row],[2024/25 Reduction]],Dataset[[#This Row],[2024/25 From - Total]],Dataset[[#This Row],[2024/25 To - Total]])","v":0},{"$f":"SUM(Dataset[[#This Row],[2025/26 Reduction]],Dataset[[#This Row],[2025/26 From - Total]],Dataset[[#This Row],[2025/26 To - Total]])","v":0},{"$f":"SUM(Dataset[[#This Row],[2026/27 Reduction]],Dataset[[#This Row],[2026/27 From - Total]],Dataset[[#This Row],[2026/27 To - Total]])","v":0},{"$f":"Dataset[[#This Row],[2023/24 Baseline]]+Dataset[[#This Row],[2023/24 Total change]]","v":0},{"$f":"Dataset[[#This Row],[2024/25 Baseline]]+Dataset[[#This Row],[2024/25 Total change]]","v":0},{"$f":"Dataset[[#This Row],[2025/26 Baseline]]+Dataset[[#This Row],[2025/26 Total change]]","v":0},{"$f":"Dataset[[#This Row],[2026/27 Baseline]]+Dataset[[#This Row],[2026/27 Total change]]","v":0}]
["NAT|Non-transfer item","26|Infrastructure and planning services","2024_25","MTEF2024",26,1,6,44284,397,"26","01","06","044284","000397","26|01|06","01","01","02","12","12","01|01|02|12|12","National","Military Veterans","Administration","Office Accommodation","Non-transfer item","Current","Current payments","Goods and services","Infrastructure and planning services","Infrastructure and planning services","Peace and security","Defence and state security","NAT",0,0,0,0,0,0,0,0,0,0,0,null,null,null,null,null,null,null,null,null,null,null,null,null,null,null,null,null,null,null,null,null,null,null,null,null,null,null,null,null,null,null,null,null,null,{"$f":"Dataset[[#This Row],[2024/25 From - Spending review Topic 1]]+Dataset[[#This Row],[2024/25 From - Spending review Topic 2]]+Dataset[[#This Row],[2024/25 From - Spending review Topic 3]]+Dataset[[#This Row],[2024/25 From - Spending review Topic 4]]+Dataset[[#This Row],[2024/25 From - Other reallocations]]","v":0},{"$f":"Dataset[[#This Row],[2025/26 From - Spending review Topic 1]]+Dataset[[#This Row],[2025/26 From - Spending review Topic 2]]+Dataset[[#This Row],[2025/26 From - Spending review Topic 3]]+Dataset[[#This Row],[2025/26 From - Spending review Topic 4]]+Dataset[[#This Row],[2025/26 From - Other reallocations]]","v":0},{"$f":"Dataset[[#This Row],[2026/27 From - Spending review Topic 1]]+Dataset[[#This Row],[2026/27 From - Spending review Topic 2]]+Dataset[[#This Row],[2026/27 From - Spending review Topic 3]]+Dataset[[#This Row],[2026/27 From - Spending review Topic 4]]+Dataset[[#This Row],[2026/27 From - Other reallocations]]","v":0},{"$f":"Dataset[[#This Row],[2024/25 To - Spending review Topic 1]]+Dataset[[#This Row],[2024/25 To - Spending review Topic 2]]+Dataset[[#This Row],[2024/25 To - Spending review Topic 3]]+Dataset[[#This Row],[2024/25 To - Spending review Topic 4]]+Dataset[[#This Row],[2024/25 To - Other reallocations]]","v":0},{"$f":"Dataset[[#This Row],[2025/26 To - Spending review Topic 1]]+Dataset[[#This Row],[2025/26 To - Spending review Topic 2]]+Dataset[[#This Row],[2025/26 To - Spending review Topic 3]]+Dataset[[#This Row],[2025/26 To - Spending review Topic 4]]+Dataset[[#This Row],[2025/26 To - Other reallocations]]","v":0},{"$f":"Dataset[[#This Row],[2026/27 To - Spending review Topic 1]]+Dataset[[#This Row],[2026/27 To - Spending review Topic 2]]+Dataset[[#This Row],[2026/27 To - Spending review Topic 3]]+Dataset[[#This Row],[2026/27 To - Spending review Topic 4]]+Dataset[[#This Row],[2026/27 To - Other reallocations]]","v":0},{"$f":"Dataset[[#This Row],[2024/25 Reduction]]+Dataset[[#This Row],[2024/25 From - Total]]","v":0},{"$f":"Dataset[[#This Row],[2025/26 Reduction]]+Dataset[[#This Row],[2025/26 From - Total]]","v":0},{"$f":"Dataset[[#This Row],[2026/27 Reduction]]+Dataset[[#This Row],[2026/27 From - Total]]","v":0},{"$f":"Dataset[[#This Row],[2023/24 Reduction]]","v":0},{"$f":"SUM(Dataset[[#This Row],[2024/25 Reduction]],Dataset[[#This Row],[2024/25 From - Total]],Dataset[[#This Row],[2024/25 To - Total]])","v":0},{"$f":"SUM(Dataset[[#This Row],[2025/26 Reduction]],Dataset[[#This Row],[2025/26 From - Total]],Dataset[[#This Row],[2025/26 To - Total]])","v":0},{"$f":"SUM(Dataset[[#This Row],[2026/27 Reduction]],Dataset[[#This Row],[2026/27 From - Total]],Dataset[[#This Row],[2026/27 To - Total]])","v":0},{"$f":"Dataset[[#This Row],[2023/24 Baseline]]+Dataset[[#This Row],[2023/24 Total change]]","v":0},{"$f":"Dataset[[#This Row],[2024/25 Baseline]]+Dataset[[#This Row],[2024/25 Total change]]","v":0},{"$f":"Dataset[[#This Row],[2025/26 Baseline]]+Dataset[[#This Row],[2025/26 Total change]]","v":0},{"$f":"Dataset[[#This Row],[2026/27 Baseline]]+Dataset[[#This Row],[2026/27 Total change]]","v":0}]
["NAT|Non-transfer item","26|Laboratory services","2024_25","MTEF2024",26,1,6,44285,398,"26","01","06","044285","000398","26|01|06","01","01","02","13","13","01|01|02|13|13","National","Military Veterans","Administration","Office Accommodation","Non-transfer item","Current","Current payments","Goods and services","Laboratory services","Laboratory services","Peace and security","Defence and state security","NAT",0,0,0,0,0,0,0,0,0,0,0,null,null,null,null,null,null,null,null,null,null,null,null,null,null,null,null,null,null,null,null,null,null,null,null,null,null,null,null,null,null,null,null,null,null,{"$f":"Dataset[[#This Row],[2024/25 From - Spending review Topic 1]]+Dataset[[#This Row],[2024/25 From - Spending review Topic 2]]+Dataset[[#This Row],[2024/25 From - Spending review Topic 3]]+Dataset[[#This Row],[2024/25 From - Spending review Topic 4]]+Dataset[[#This Row],[2024/25 From - Other reallocations]]","v":0},{"$f":"Dataset[[#This Row],[2025/26 From - Spending review Topic 1]]+Dataset[[#This Row],[2025/26 From - Spending review Topic 2]]+Dataset[[#This Row],[2025/26 From - Spending review Topic 3]]+Dataset[[#This Row],[2025/26 From - Spending review Topic 4]]+Dataset[[#This Row],[2025/26 From - Other reallocations]]","v":0},{"$f":"Dataset[[#This Row],[2026/27 From - Spending review Topic 1]]+Dataset[[#This Row],[2026/27 From - Spending review Topic 2]]+Dataset[[#This Row],[2026/27 From - Spending review Topic 3]]+Dataset[[#This Row],[2026/27 From - Spending review Topic 4]]+Dataset[[#This Row],[2026/27 From - Other reallocations]]","v":0},{"$f":"Dataset[[#This Row],[2024/25 To - Spending review Topic 1]]+Dataset[[#This Row],[2024/25 To - Spending review Topic 2]]+Dataset[[#This Row],[2024/25 To - Spending review Topic 3]]+Dataset[[#This Row],[2024/25 To - Spending review Topic 4]]+Dataset[[#This Row],[2024/25 To - Other reallocations]]","v":0},{"$f":"Dataset[[#This Row],[2025/26 To - Spending review Topic 1]]+Dataset[[#This Row],[2025/26 To - Spending review Topic 2]]+Dataset[[#This Row],[2025/26 To - Spending review Topic 3]]+Dataset[[#This Row],[2025/26 To - Spending review Topic 4]]+Dataset[[#This Row],[2025/26 To - Other reallocations]]","v":0},{"$f":"Dataset[[#This Row],[2026/27 To - Spending review Topic 1]]+Dataset[[#This Row],[2026/27 To - Spending review Topic 2]]+Dataset[[#This Row],[2026/27 To - Spending review Topic 3]]+Dataset[[#This Row],[2026/27 To - Spending review Topic 4]]+Dataset[[#This Row],[2026/27 To - Other reallocations]]","v":0},{"$f":"Dataset[[#This Row],[2024/25 Reduction]]+Dataset[[#This Row],[2024/25 From - Total]]","v":0},{"$f":"Dataset[[#This Row],[2025/26 Reduction]]+Dataset[[#This Row],[2025/26 From - Total]]","v":0},{"$f":"Dataset[[#This Row],[2026/27 Reduction]]+Dataset[[#This Row],[2026/27 From - Total]]","v":0},{"$f":"Dataset[[#This Row],[2023/24 Reduction]]","v":0},{"$f":"SUM(Dataset[[#This Row],[2024/25 Reduction]],Dataset[[#This Row],[2024/25 From - Total]],Dataset[[#This Row],[2024/25 To - Total]])","v":0},{"$f":"SUM(Dataset[[#This Row],[2025/26 Reduction]],Dataset[[#This Row],[2025/26 From - Total]],Dataset[[#This Row],[2025/26 To - Total]])","v":0},{"$f":"SUM(Dataset[[#This Row],[2026/27 Reduction]],Dataset[[#This Row],[2026/27 From - Total]],Dataset[[#This Row],[2026/27 To - Total]])","v":0},{"$f":"Dataset[[#This Row],[2023/24 Baseline]]+Dataset[[#This Row],[2023/24 Total change]]","v":0},{"$f":"Dataset[[#This Row],[2024/25 Baseline]]+Dataset[[#This Row],[2024/25 Total change]]","v":0},{"$f":"Dataset[[#This Row],[2025/26 Baseline]]+Dataset[[#This Row],[2025/26 Total change]]","v":0},{"$f":"Dataset[[#This Row],[2026/27 Baseline]]+Dataset[[#This Row],[2026/27 Total change]]","v":0}]
["NAT|Non-transfer item","26|Legal services (G&S)","2024_25","MTEF2024",26,1,6,44286,399,"26","01","06","044286","000399","26|01|06","01","01","02","14","14","01|01|02|14|14","National","Military Veterans","Administration","Office Accommodation","Non-transfer item","Current","Current payments","Goods and services","Legal services (G&S)","Legal services (G&S)","Peace and security","Defence and state security","NAT",0,0,0,0,0,0,0,0,0,0,0,null,null,null,null,null,null,null,null,null,null,null,null,null,null,null,null,null,null,null,null,null,null,null,null,null,null,null,null,null,null,null,null,null,null,{"$f":"Dataset[[#This Row],[2024/25 From - Spending review Topic 1]]+Dataset[[#This Row],[2024/25 From - Spending review Topic 2]]+Dataset[[#This Row],[2024/25 From - Spending review Topic 3]]+Dataset[[#This Row],[2024/25 From - Spending review Topic 4]]+Dataset[[#This Row],[2024/25 From - Other reallocations]]","v":0},{"$f":"Dataset[[#This Row],[2025/26 From - Spending review Topic 1]]+Dataset[[#This Row],[2025/26 From - Spending review Topic 2]]+Dataset[[#This Row],[2025/26 From - Spending review Topic 3]]+Dataset[[#This Row],[2025/26 From - Spending review Topic 4]]+Dataset[[#This Row],[2025/26 From - Other reallocations]]","v":0},{"$f":"Dataset[[#This Row],[2026/27 From - Spending review Topic 1]]+Dataset[[#This Row],[2026/27 From - Spending review Topic 2]]+Dataset[[#This Row],[2026/27 From - Spending review Topic 3]]+Dataset[[#This Row],[2026/27 From - Spending review Topic 4]]+Dataset[[#This Row],[2026/27 From - Other reallocations]]","v":0},{"$f":"Dataset[[#This Row],[2024/25 To - Spending review Topic 1]]+Dataset[[#This Row],[2024/25 To - Spending review Topic 2]]+Dataset[[#This Row],[2024/25 To - Spending review Topic 3]]+Dataset[[#This Row],[2024/25 To - Spending review Topic 4]]+Dataset[[#This Row],[2024/25 To - Other reallocations]]","v":0},{"$f":"Dataset[[#This Row],[2025/26 To - Spending review Topic 1]]+Dataset[[#This Row],[2025/26 To - Spending review Topic 2]]+Dataset[[#This Row],[2025/26 To - Spending review Topic 3]]+Dataset[[#This Row],[2025/26 To - Spending review Topic 4]]+Dataset[[#This Row],[2025/26 To - Other reallocations]]","v":0},{"$f":"Dataset[[#This Row],[2026/27 To - Spending review Topic 1]]+Dataset[[#This Row],[2026/27 To - Spending review Topic 2]]+Dataset[[#This Row],[2026/27 To - Spending review Topic 3]]+Dataset[[#This Row],[2026/27 To - Spending review Topic 4]]+Dataset[[#This Row],[2026/27 To - Other reallocations]]","v":0},{"$f":"Dataset[[#This Row],[2024/25 Reduction]]+Dataset[[#This Row],[2024/25 From - Total]]","v":0},{"$f":"Dataset[[#This Row],[2025/26 Reduction]]+Dataset[[#This Row],[2025/26 From - Total]]","v":0},{"$f":"Dataset[[#This Row],[2026/27 Reduction]]+Dataset[[#This Row],[2026/27 From - Total]]","v":0},{"$f":"Dataset[[#This Row],[2023/24 Reduction]]","v":0},{"$f":"SUM(Dataset[[#This Row],[2024/25 Reduction]],Dataset[[#This Row],[2024/25 From - Total]],Dataset[[#This Row],[2024/25 To - Total]])","v":0},{"$f":"SUM(Dataset[[#This Row],[2025/26 Reduction]],Dataset[[#This Row],[2025/26 From - Total]],Dataset[[#This Row],[2025/26 To - Total]])","v":0},{"$f":"SUM(Dataset[[#This Row],[2026/27 Reduction]],Dataset[[#This Row],[2026/27 From - Total]],Dataset[[#This Row],[2026/27 To - Total]])","v":0},{"$f":"Dataset[[#This Row],[2023/24 Baseline]]+Dataset[[#This Row],[2023/24 Total change]]","v":0},{"$f":"Dataset[[#This Row],[2024/25 Baseline]]+Dataset[[#This Row],[2024/25 Total change]]","v":0},{"$f":"Dataset[[#This Row],[2025/26 Baseline]]+Dataset[[#This Row],[2025/26 Total change]]","v":0},{"$f":"Dataset[[#This Row],[2026/27 Baseline]]+Dataset[[#This Row],[2026/27 Total change]]","v":0}]
["NAT|Non-transfer item","26|Science and technological services","2024_25","MTEF2024",26,1,6,44287,400,"26","01","06","044287","000400","26|01|06","01","01","02","15","15","01|01|02|15|15","National","Military Veterans","Administration","Office Accommodation","Non-transfer item","Current","Current payments","Goods and services","Science and technological services","Science and technological services","Peace and security","Defence and state security","NAT",0,0,0,0,0,0,0,0,0,0,0,null,null,null,null,null,null,null,null,null,null,null,null,null,null,null,null,null,null,null,null,null,null,null,null,null,null,null,null,null,null,null,null,null,null,{"$f":"Dataset[[#This Row],[2024/25 From - Spending review Topic 1]]+Dataset[[#This Row],[2024/25 From - Spending review Topic 2]]+Dataset[[#This Row],[2024/25 From - Spending review Topic 3]]+Dataset[[#This Row],[2024/25 From - Spending review Topic 4]]+Dataset[[#This Row],[2024/25 From - Other reallocations]]","v":0},{"$f":"Dataset[[#This Row],[2025/26 From - Spending review Topic 1]]+Dataset[[#This Row],[2025/26 From - Spending review Topic 2]]+Dataset[[#This Row],[2025/26 From - Spending review Topic 3]]+Dataset[[#This Row],[2025/26 From - Spending review Topic 4]]+Dataset[[#This Row],[2025/26 From - Other reallocations]]","v":0},{"$f":"Dataset[[#This Row],[2026/27 From - Spending review Topic 1]]+Dataset[[#This Row],[2026/27 From - Spending review Topic 2]]+Dataset[[#This Row],[2026/27 From - Spending review Topic 3]]+Dataset[[#This Row],[2026/27 From - Spending review Topic 4]]+Dataset[[#This Row],[2026/27 From - Other reallocations]]","v":0},{"$f":"Dataset[[#This Row],[2024/25 To - Spending review Topic 1]]+Dataset[[#This Row],[2024/25 To - Spending review Topic 2]]+Dataset[[#This Row],[2024/25 To - Spending review Topic 3]]+Dataset[[#This Row],[2024/25 To - Spending review Topic 4]]+Dataset[[#This Row],[2024/25 To - Other reallocations]]","v":0},{"$f":"Dataset[[#This Row],[2025/26 To - Spending review Topic 1]]+Dataset[[#This Row],[2025/26 To - Spending review Topic 2]]+Dataset[[#This Row],[2025/26 To - Spending review Topic 3]]+Dataset[[#This Row],[2025/26 To - Spending review Topic 4]]+Dataset[[#This Row],[2025/26 To - Other reallocations]]","v":0},{"$f":"Dataset[[#This Row],[2026/27 To - Spending review Topic 1]]+Dataset[[#This Row],[2026/27 To - Spending review Topic 2]]+Dataset[[#This Row],[2026/27 To - Spending review Topic 3]]+Dataset[[#This Row],[2026/27 To - Spending review Topic 4]]+Dataset[[#This Row],[2026/27 To - Other reallocations]]","v":0},{"$f":"Dataset[[#This Row],[2024/25 Reduction]]+Dataset[[#This Row],[2024/25 From - Total]]","v":0},{"$f":"Dataset[[#This Row],[2025/26 Reduction]]+Dataset[[#This Row],[2025/26 From - Total]]","v":0},{"$f":"Dataset[[#This Row],[2026/27 Reduction]]+Dataset[[#This Row],[2026/27 From - Total]]","v":0},{"$f":"Dataset[[#This Row],[2023/24 Reduction]]","v":0},{"$f":"SUM(Dataset[[#This Row],[2024/25 Reduction]],Dataset[[#This Row],[2024/25 From - Total]],Dataset[[#This Row],[2024/25 To - Total]])","v":0},{"$f":"SUM(Dataset[[#This Row],[2025/26 Reduction]],Dataset[[#This Row],[2025/26 From - Total]],Dataset[[#This Row],[2025/26 To - Total]])","v":0},{"$f":"SUM(Dataset[[#This Row],[2026/27 Reduction]],Dataset[[#This Row],[2026/27 From - Total]],Dataset[[#This Row],[2026/27 To - Total]])","v":0},{"$f":"Dataset[[#This Row],[2023/24 Baseline]]+Dataset[[#This Row],[2023/24 Total change]]","v":0},{"$f":"Dataset[[#This Row],[2024/25 Baseline]]+Dataset[[#This Row],[2024/25 Total change]]","v":0},{"$f":"Dataset[[#This Row],[2025/26 Baseline]]+Dataset[[#This Row],[2025/26 Total change]]","v":0},{"$f":"Dataset[[#This Row],[2026/27 Baseline]]+Dataset[[#This Row],[2026/27 Total change]]","v":0}]
["NAT|Non-transfer item","26|Contractors","2024_25","MTEF2024",26,1,6,44288,401,"26","01","06","044288","000401","26|01|06","01","01","02","16","16","01|01|02|16|16","National","Military Veterans","Administration","Office Accommodation","Non-transfer item","Current","Current payments","Goods and services","Contractors","Contractors","Peace and security","Defence and state security","NAT",27,0,0,0,0,0,0,1000,0,0,0,null,null,null,null,null,null,null,null,null,null,null,null,null,null,null,null,null,null,null,null,null,null,null,null,null,null,null,null,null,null,null,null,null,null,{"$f":"Dataset[[#This Row],[2024/25 From - Spending review Topic 1]]+Dataset[[#This Row],[2024/25 From - Spending review Topic 2]]+Dataset[[#This Row],[2024/25 From - Spending review Topic 3]]+Dataset[[#This Row],[2024/25 From - Spending review Topic 4]]+Dataset[[#This Row],[2024/25 From - Other reallocations]]","v":0},{"$f":"Dataset[[#This Row],[2025/26 From - Spending review Topic 1]]+Dataset[[#This Row],[2025/26 From - Spending review Topic 2]]+Dataset[[#This Row],[2025/26 From - Spending review Topic 3]]+Dataset[[#This Row],[2025/26 From - Spending review Topic 4]]+Dataset[[#This Row],[2025/26 From - Other reallocations]]","v":0},{"$f":"Dataset[[#This Row],[2026/27 From - Spending review Topic 1]]+Dataset[[#This Row],[2026/27 From - Spending review Topic 2]]+Dataset[[#This Row],[2026/27 From - Spending review Topic 3]]+Dataset[[#This Row],[2026/27 From - Spending review Topic 4]]+Dataset[[#This Row],[2026/27 From - Other reallocations]]","v":0},{"$f":"Dataset[[#This Row],[2024/25 To - Spending review Topic 1]]+Dataset[[#This Row],[2024/25 To - Spending review Topic 2]]+Dataset[[#This Row],[2024/25 To - Spending review Topic 3]]+Dataset[[#This Row],[2024/25 To - Spending review Topic 4]]+Dataset[[#This Row],[2024/25 To - Other reallocations]]","v":0},{"$f":"Dataset[[#This Row],[2025/26 To - Spending review Topic 1]]+Dataset[[#This Row],[2025/26 To - Spending review Topic 2]]+Dataset[[#This Row],[2025/26 To - Spending review Topic 3]]+Dataset[[#This Row],[2025/26 To - Spending review Topic 4]]+Dataset[[#This Row],[2025/26 To - Other reallocations]]","v":0},{"$f":"Dataset[[#This Row],[2026/27 To - Spending review Topic 1]]+Dataset[[#This Row],[2026/27 To - Spending review Topic 2]]+Dataset[[#This Row],[2026/27 To - Spending review Topic 3]]+Dataset[[#This Row],[2026/27 To - Spending review Topic 4]]+Dataset[[#This Row],[2026/27 To - Other reallocations]]","v":0},{"$f":"Dataset[[#This Row],[2024/25 Reduction]]+Dataset[[#This Row],[2024/25 From - Total]]","v":0},{"$f":"Dataset[[#This Row],[2025/26 Reduction]]+Dataset[[#This Row],[2025/26 From - Total]]","v":0},{"$f":"Dataset[[#This Row],[2026/27 Reduction]]+Dataset[[#This Row],[2026/27 From - Total]]","v":0},{"$f":"Dataset[[#This Row],[2023/24 Reduction]]","v":0},{"$f":"SUM(Dataset[[#This Row],[2024/25 Reduction]],Dataset[[#This Row],[2024/25 From - Total]],Dataset[[#This Row],[2024/25 To - Total]])","v":0},{"$f":"SUM(Dataset[[#This Row],[2025/26 Reduction]],Dataset[[#This Row],[2025/26 From - Total]],Dataset[[#This Row],[2025/26 To - Total]])","v":0},{"$f":"SUM(Dataset[[#This Row],[2026/27 Reduction]],Dataset[[#This Row],[2026/27 From - Total]],Dataset[[#This Row],[2026/27 To - Total]])","v":0},{"$f":"Dataset[[#This Row],[2023/24 Baseline]]+Dataset[[#This Row],[2023/24 Total change]]","v":1000},{"$f":"Dataset[[#This Row],[2024/25 Baseline]]+Dataset[[#This Row],[2024/25 Total change]]","v":0},{"$f":"Dataset[[#This Row],[2025/26 Baseline]]+Dataset[[#This Row],[2025/26 Total change]]","v":0},{"$f":"Dataset[[#This Row],[2026/27 Baseline]]+Dataset[[#This Row],[2026/27 Total change]]","v":0}]
["NAT|Non-transfer item","26|Agency and support/outsourced services","2024_25","MTEF2024",26,1,6,44289,402,"26","01","06","044289","000402","26|01|06","01","01","02","17","17","01|01|02|17|17","National","Military Veterans","Administration","Office Accommodation","Non-transfer item","Current","Current payments","Goods and services","Agency and support/outsourced services","Agency and support/outsourced services","Peace and security","Defence and state security","NAT",0,0,0,0,0,0,0,0,0,0,0,null,null,null,null,null,null,null,null,null,null,null,null,null,null,null,null,null,null,null,null,null,null,null,null,null,null,null,null,null,null,null,null,null,null,{"$f":"Dataset[[#This Row],[2024/25 From - Spending review Topic 1]]+Dataset[[#This Row],[2024/25 From - Spending review Topic 2]]+Dataset[[#This Row],[2024/25 From - Spending review Topic 3]]+Dataset[[#This Row],[2024/25 From - Spending review Topic 4]]+Dataset[[#This Row],[2024/25 From - Other reallocations]]","v":0},{"$f":"Dataset[[#This Row],[2025/26 From - Spending review Topic 1]]+Dataset[[#This Row],[2025/26 From - Spending review Topic 2]]+Dataset[[#This Row],[2025/26 From - Spending review Topic 3]]+Dataset[[#This Row],[2025/26 From - Spending review Topic 4]]+Dataset[[#This Row],[2025/26 From - Other reallocations]]","v":0},{"$f":"Dataset[[#This Row],[2026/27 From - Spending review Topic 1]]+Dataset[[#This Row],[2026/27 From - Spending review Topic 2]]+Dataset[[#This Row],[2026/27 From - Spending review Topic 3]]+Dataset[[#This Row],[2026/27 From - Spending review Topic 4]]+Dataset[[#This Row],[2026/27 From - Other reallocations]]","v":0},{"$f":"Dataset[[#This Row],[2024/25 To - Spending review Topic 1]]+Dataset[[#This Row],[2024/25 To - Spending review Topic 2]]+Dataset[[#This Row],[2024/25 To - Spending review Topic 3]]+Dataset[[#This Row],[2024/25 To - Spending review Topic 4]]+Dataset[[#This Row],[2024/25 To - Other reallocations]]","v":0},{"$f":"Dataset[[#This Row],[2025/26 To - Spending review Topic 1]]+Dataset[[#This Row],[2025/26 To - Spending review Topic 2]]+Dataset[[#This Row],[2025/26 To - Spending review Topic 3]]+Dataset[[#This Row],[2025/26 To - Spending review Topic 4]]+Dataset[[#This Row],[2025/26 To - Other reallocations]]","v":0},{"$f":"Dataset[[#This Row],[2026/27 To - Spending review Topic 1]]+Dataset[[#This Row],[2026/27 To - Spending review Topic 2]]+Dataset[[#This Row],[2026/27 To - Spending review Topic 3]]+Dataset[[#This Row],[2026/27 To - Spending review Topic 4]]+Dataset[[#This Row],[2026/27 To - Other reallocations]]","v":0},{"$f":"Dataset[[#This Row],[2024/25 Reduction]]+Dataset[[#This Row],[2024/25 From - Total]]","v":0},{"$f":"Dataset[[#This Row],[2025/26 Reduction]]+Dataset[[#This Row],[2025/26 From - Total]]","v":0},{"$f":"Dataset[[#This Row],[2026/27 Reduction]]+Dataset[[#This Row],[2026/27 From - Total]]","v":0},{"$f":"Dataset[[#This Row],[2023/24 Reduction]]","v":0},{"$f":"SUM(Dataset[[#This Row],[2024/25 Reduction]],Dataset[[#This Row],[2024/25 From - Total]],Dataset[[#This Row],[2024/25 To - Total]])","v":0},{"$f":"SUM(Dataset[[#This Row],[2025/26 Reduction]],Dataset[[#This Row],[2025/26 From - Total]],Dataset[[#This Row],[2025/26 To - Total]])","v":0},{"$f":"SUM(Dataset[[#This Row],[2026/27 Reduction]],Dataset[[#This Row],[2026/27 From - Total]],Dataset[[#This Row],[2026/27 To - Total]])","v":0},{"$f":"Dataset[[#This Row],[2023/24 Baseline]]+Dataset[[#This Row],[2023/24 Total change]]","v":0},{"$f":"Dataset[[#This Row],[2024/25 Baseline]]+Dataset[[#This Row],[2024/25 Total change]]","v":0},{"$f":"Dataset[[#This Row],[2025/26 Baseline]]+Dataset[[#This Row],[2025/26 Total change]]","v":0},{"$f":"Dataset[[#This Row],[2026/27 Baseline]]+Dataset[[#This Row],[2026/27 Total change]]","v":0}]
["NAT|Non-transfer item","26|Entertainment","2024_25","MTEF2024",26,1,6,44290,403,"26","01","06","044290","000403","26|01|06","01","01","02","18","18","01|01|02|18|18","National","Military Veterans","Administration","Office Accommodation","Non-transfer item","Current","Current payments","Goods and services","Entertainment","Entertainment","Peace and security","Defence and state security","NAT",0,0,0,0,0,0,0,0,0,0,0,null,null,null,null,null,null,null,null,null,null,null,null,null,null,null,null,null,null,null,null,null,null,null,null,null,null,null,null,null,null,null,null,null,null,{"$f":"Dataset[[#This Row],[2024/25 From - Spending review Topic 1]]+Dataset[[#This Row],[2024/25 From - Spending review Topic 2]]+Dataset[[#This Row],[2024/25 From - Spending review Topic 3]]+Dataset[[#This Row],[2024/25 From - Spending review Topic 4]]+Dataset[[#This Row],[2024/25 From - Other reallocations]]","v":0},{"$f":"Dataset[[#This Row],[2025/26 From - Spending review Topic 1]]+Dataset[[#This Row],[2025/26 From - Spending review Topic 2]]+Dataset[[#This Row],[2025/26 From - Spending review Topic 3]]+Dataset[[#This Row],[2025/26 From - Spending review Topic 4]]+Dataset[[#This Row],[2025/26 From - Other reallocations]]","v":0},{"$f":"Dataset[[#This Row],[2026/27 From - Spending review Topic 1]]+Dataset[[#This Row],[2026/27 From - Spending review Topic 2]]+Dataset[[#This Row],[2026/27 From - Spending review Topic 3]]+Dataset[[#This Row],[2026/27 From - Spending review Topic 4]]+Dataset[[#This Row],[2026/27 From - Other reallocations]]","v":0},{"$f":"Dataset[[#This Row],[2024/25 To - Spending review Topic 1]]+Dataset[[#This Row],[2024/25 To - Spending review Topic 2]]+Dataset[[#This Row],[2024/25 To - Spending review Topic 3]]+Dataset[[#This Row],[2024/25 To - Spending review Topic 4]]+Dataset[[#This Row],[2024/25 To - Other reallocations]]","v":0},{"$f":"Dataset[[#This Row],[2025/26 To - Spending review Topic 1]]+Dataset[[#This Row],[2025/26 To - Spending review Topic 2]]+Dataset[[#This Row],[2025/26 To - Spending review Topic 3]]+Dataset[[#This Row],[2025/26 To - Spending review Topic 4]]+Dataset[[#This Row],[2025/26 To - Other reallocations]]","v":0},{"$f":"Dataset[[#This Row],[2026/27 To - Spending review Topic 1]]+Dataset[[#This Row],[2026/27 To - Spending review Topic 2]]+Dataset[[#This Row],[2026/27 To - Spending review Topic 3]]+Dataset[[#This Row],[2026/27 To - Spending review Topic 4]]+Dataset[[#This Row],[2026/27 To - Other reallocations]]","v":0},{"$f":"Dataset[[#This Row],[2024/25 Reduction]]+Dataset[[#This Row],[2024/25 From - Total]]","v":0},{"$f":"Dataset[[#This Row],[2025/26 Reduction]]+Dataset[[#This Row],[2025/26 From - Total]]","v":0},{"$f":"Dataset[[#This Row],[2026/27 Reduction]]+Dataset[[#This Row],[2026/27 From - Total]]","v":0},{"$f":"Dataset[[#This Row],[2023/24 Reduction]]","v":0},{"$f":"SUM(Dataset[[#This Row],[2024/25 Reduction]],Dataset[[#This Row],[2024/25 From - Total]],Dataset[[#This Row],[2024/25 To - Total]])","v":0},{"$f":"SUM(Dataset[[#This Row],[2025/26 Reduction]],Dataset[[#This Row],[2025/26 From - Total]],Dataset[[#This Row],[2025/26 To - Total]])","v":0},{"$f":"SUM(Dataset[[#This Row],[2026/27 Reduction]],Dataset[[#This Row],[2026/27 From - Total]],Dataset[[#This Row],[2026/27 To - Total]])","v":0},{"$f":"Dataset[[#This Row],[2023/24 Baseline]]+Dataset[[#This Row],[2023/24 Total change]]","v":0},{"$f":"Dataset[[#This Row],[2024/25 Baseline]]+Dataset[[#This Row],[2024/25 Total change]]","v":0},{"$f":"Dataset[[#This Row],[2025/26 Baseline]]+Dataset[[#This Row],[2025/26 Total change]]","v":0},{"$f":"Dataset[[#This Row],[2026/27 Baseline]]+Dataset[[#This Row],[2026/27 Total change]]","v":0}]
["NAT|Non-transfer item","26|Fleet services (including government motor transport)","2024_25","MTEF2024",26,1,6,44291,404,"26","01","06","044291","000404","26|01|06","01","01","02","19","19","01|01|02|19|19","National","Military Veterans","Administration","Office Accommodation","Non-transfer item","Current","Current payments","Goods and services","Fleet services (including government motor transport)","Fleet services (including government motor transport)","Peace and security","Defence and state security","NAT",0,0,0,0,0,0,0,0,0,0,0,null,null,null,null,null,null,null,null,null,null,null,null,null,null,null,null,null,null,null,null,null,null,null,null,null,null,null,null,null,null,null,null,null,null,{"$f":"Dataset[[#This Row],[2024/25 From - Spending review Topic 1]]+Dataset[[#This Row],[2024/25 From - Spending review Topic 2]]+Dataset[[#This Row],[2024/25 From - Spending review Topic 3]]+Dataset[[#This Row],[2024/25 From - Spending review Topic 4]]+Dataset[[#This Row],[2024/25 From - Other reallocations]]","v":0},{"$f":"Dataset[[#This Row],[2025/26 From - Spending review Topic 1]]+Dataset[[#This Row],[2025/26 From - Spending review Topic 2]]+Dataset[[#This Row],[2025/26 From - Spending review Topic 3]]+Dataset[[#This Row],[2025/26 From - Spending review Topic 4]]+Dataset[[#This Row],[2025/26 From - Other reallocations]]","v":0},{"$f":"Dataset[[#This Row],[2026/27 From - Spending review Topic 1]]+Dataset[[#This Row],[2026/27 From - Spending review Topic 2]]+Dataset[[#This Row],[2026/27 From - Spending review Topic 3]]+Dataset[[#This Row],[2026/27 From - Spending review Topic 4]]+Dataset[[#This Row],[2026/27 From - Other reallocations]]","v":0},{"$f":"Dataset[[#This Row],[2024/25 To - Spending review Topic 1]]+Dataset[[#This Row],[2024/25 To - Spending review Topic 2]]+Dataset[[#This Row],[2024/25 To - Spending review Topic 3]]+Dataset[[#This Row],[2024/25 To - Spending review Topic 4]]+Dataset[[#This Row],[2024/25 To - Other reallocations]]","v":0},{"$f":"Dataset[[#This Row],[2025/26 To - Spending review Topic 1]]+Dataset[[#This Row],[2025/26 To - Spending review Topic 2]]+Dataset[[#This Row],[2025/26 To - Spending review Topic 3]]+Dataset[[#This Row],[2025/26 To - Spending review Topic 4]]+Dataset[[#This Row],[2025/26 To - Other reallocations]]","v":0},{"$f":"Dataset[[#This Row],[2026/27 To - Spending review Topic 1]]+Dataset[[#This Row],[2026/27 To - Spending review Topic 2]]+Dataset[[#This Row],[2026/27 To - Spending review Topic 3]]+Dataset[[#This Row],[2026/27 To - Spending review Topic 4]]+Dataset[[#This Row],[2026/27 To - Other reallocations]]","v":0},{"$f":"Dataset[[#This Row],[2024/25 Reduction]]+Dataset[[#This Row],[2024/25 From - Total]]","v":0},{"$f":"Dataset[[#This Row],[2025/26 Reduction]]+Dataset[[#This Row],[2025/26 From - Total]]","v":0},{"$f":"Dataset[[#This Row],[2026/27 Reduction]]+Dataset[[#This Row],[2026/27 From - Total]]","v":0},{"$f":"Dataset[[#This Row],[2023/24 Reduction]]","v":0},{"$f":"SUM(Dataset[[#This Row],[2024/25 Reduction]],Dataset[[#This Row],[2024/25 From - Total]],Dataset[[#This Row],[2024/25 To - Total]])","v":0},{"$f":"SUM(Dataset[[#This Row],[2025/26 Reduction]],Dataset[[#This Row],[2025/26 From - Total]],Dataset[[#This Row],[2025/26 To - Total]])","v":0},{"$f":"SUM(Dataset[[#This Row],[2026/27 Reduction]],Dataset[[#This Row],[2026/27 From - Total]],Dataset[[#This Row],[2026/27 To - Total]])","v":0},{"$f":"Dataset[[#This Row],[2023/24 Baseline]]+Dataset[[#This Row],[2023/24 Total change]]","v":0},{"$f":"Dataset[[#This Row],[2024/25 Baseline]]+Dataset[[#This Row],[2024/25 Total change]]","v":0},{"$f":"Dataset[[#This Row],[2025/26 Baseline]]+Dataset[[#This Row],[2025/26 Total change]]","v":0},{"$f":"Dataset[[#This Row],[2026/27 Baseline]]+Dataset[[#This Row],[2026/27 Total change]]","v":0}]
["NAT|Non-transfer item","26|Housing","2024_25","MTEF2024",26,1,6,44292,405,"26","01","06","044292","000405","26|01|06","01","01","02","20","20","01|01|02|20|20","National","Military Veterans","Administration","Office Accommodation","Non-transfer item","Current","Current payments","Goods and services","Housing","Housing","Peace and security","Defence and state security","NAT",0,0,0,0,0,0,0,0,0,0,0,null,null,null,null,null,null,null,null,null,null,null,null,null,null,null,null,null,null,null,null,null,null,null,null,null,null,null,null,null,null,null,null,null,null,{"$f":"Dataset[[#This Row],[2024/25 From - Spending review Topic 1]]+Dataset[[#This Row],[2024/25 From - Spending review Topic 2]]+Dataset[[#This Row],[2024/25 From - Spending review Topic 3]]+Dataset[[#This Row],[2024/25 From - Spending review Topic 4]]+Dataset[[#This Row],[2024/25 From - Other reallocations]]","v":0},{"$f":"Dataset[[#This Row],[2025/26 From - Spending review Topic 1]]+Dataset[[#This Row],[2025/26 From - Spending review Topic 2]]+Dataset[[#This Row],[2025/26 From - Spending review Topic 3]]+Dataset[[#This Row],[2025/26 From - Spending review Topic 4]]+Dataset[[#This Row],[2025/26 From - Other reallocations]]","v":0},{"$f":"Dataset[[#This Row],[2026/27 From - Spending review Topic 1]]+Dataset[[#This Row],[2026/27 From - Spending review Topic 2]]+Dataset[[#This Row],[2026/27 From - Spending review Topic 3]]+Dataset[[#This Row],[2026/27 From - Spending review Topic 4]]+Dataset[[#This Row],[2026/27 From - Other reallocations]]","v":0},{"$f":"Dataset[[#This Row],[2024/25 To - Spending review Topic 1]]+Dataset[[#This Row],[2024/25 To - Spending review Topic 2]]+Dataset[[#This Row],[2024/25 To - Spending review Topic 3]]+Dataset[[#This Row],[2024/25 To - Spending review Topic 4]]+Dataset[[#This Row],[2024/25 To - Other reallocations]]","v":0},{"$f":"Dataset[[#This Row],[2025/26 To - Spending review Topic 1]]+Dataset[[#This Row],[2025/26 To - Spending review Topic 2]]+Dataset[[#This Row],[2025/26 To - Spending review Topic 3]]+Dataset[[#This Row],[2025/26 To - Spending review Topic 4]]+Dataset[[#This Row],[2025/26 To - Other reallocations]]","v":0},{"$f":"Dataset[[#This Row],[2026/27 To - Spending review Topic 1]]+Dataset[[#This Row],[2026/27 To - Spending review Topic 2]]+Dataset[[#This Row],[2026/27 To - Spending review Topic 3]]+Dataset[[#This Row],[2026/27 To - Spending review Topic 4]]+Dataset[[#This Row],[2026/27 To - Other reallocations]]","v":0},{"$f":"Dataset[[#This Row],[2024/25 Reduction]]+Dataset[[#This Row],[2024/25 From - Total]]","v":0},{"$f":"Dataset[[#This Row],[2025/26 Reduction]]+Dataset[[#This Row],[2025/26 From - Total]]","v":0},{"$f":"Dataset[[#This Row],[2026/27 Reduction]]+Dataset[[#This Row],[2026/27 From - Total]]","v":0},{"$f":"Dataset[[#This Row],[2023/24 Reduction]]","v":0},{"$f":"SUM(Dataset[[#This Row],[2024/25 Reduction]],Dataset[[#This Row],[2024/25 From - Total]],Dataset[[#This Row],[2024/25 To - Total]])","v":0},{"$f":"SUM(Dataset[[#This Row],[2025/26 Reduction]],Dataset[[#This Row],[2025/26 From - Total]],Dataset[[#This Row],[2025/26 To - Total]])","v":0},{"$f":"SUM(Dataset[[#This Row],[2026/27 Reduction]],Dataset[[#This Row],[2026/27 From - Total]],Dataset[[#This Row],[2026/27 To - Total]])","v":0},{"$f":"Dataset[[#This Row],[2023/24 Baseline]]+Dataset[[#This Row],[2023/24 Total change]]","v":0},{"$f":"Dataset[[#This Row],[2024/25 Baseline]]+Dataset[[#This Row],[2024/25 Total change]]","v":0},{"$f":"Dataset[[#This Row],[2025/26 Baseline]]+Dataset[[#This Row],[2025/26 Total change]]","v":0},{"$f":"Dataset[[#This Row],[2026/27 Baseline]]+Dataset[[#This Row],[2026/27 Total change]]","v":0}]
["NAT|Non-transfer item","26|Inventory: Clothing material and accessories","2024_25","MTEF2024",26,1,6,44293,406,"26","01","06","044293","000406","26|01|06","01","01","02","21","21","01|01|02|21|21","National","Military Veterans","Administration","Office Accommodation","Non-transfer item","Current","Current payments","Goods and services","Inventory: Clothing material and accessories","Inventory: Clothing material and accessories","Peace and security","Defence and state security","NAT",0,0,0,0,0,0,0,0,0,0,0,null,null,null,null,null,null,null,null,null,null,null,null,null,null,null,null,null,null,null,null,null,null,null,null,null,null,null,null,null,null,null,null,null,null,{"$f":"Dataset[[#This Row],[2024/25 From - Spending review Topic 1]]+Dataset[[#This Row],[2024/25 From - Spending review Topic 2]]+Dataset[[#This Row],[2024/25 From - Spending review Topic 3]]+Dataset[[#This Row],[2024/25 From - Spending review Topic 4]]+Dataset[[#This Row],[2024/25 From - Other reallocations]]","v":0},{"$f":"Dataset[[#This Row],[2025/26 From - Spending review Topic 1]]+Dataset[[#This Row],[2025/26 From - Spending review Topic 2]]+Dataset[[#This Row],[2025/26 From - Spending review Topic 3]]+Dataset[[#This Row],[2025/26 From - Spending review Topic 4]]+Dataset[[#This Row],[2025/26 From - Other reallocations]]","v":0},{"$f":"Dataset[[#This Row],[2026/27 From - Spending review Topic 1]]+Dataset[[#This Row],[2026/27 From - Spending review Topic 2]]+Dataset[[#This Row],[2026/27 From - Spending review Topic 3]]+Dataset[[#This Row],[2026/27 From - Spending review Topic 4]]+Dataset[[#This Row],[2026/27 From - Other reallocations]]","v":0},{"$f":"Dataset[[#This Row],[2024/25 To - Spending review Topic 1]]+Dataset[[#This Row],[2024/25 To - Spending review Topic 2]]+Dataset[[#This Row],[2024/25 To - Spending review Topic 3]]+Dataset[[#This Row],[2024/25 To - Spending review Topic 4]]+Dataset[[#This Row],[2024/25 To - Other reallocations]]","v":0},{"$f":"Dataset[[#This Row],[2025/26 To - Spending review Topic 1]]+Dataset[[#This Row],[2025/26 To - Spending review Topic 2]]+Dataset[[#This Row],[2025/26 To - Spending review Topic 3]]+Dataset[[#This Row],[2025/26 To - Spending review Topic 4]]+Dataset[[#This Row],[2025/26 To - Other reallocations]]","v":0},{"$f":"Dataset[[#This Row],[2026/27 To - Spending review Topic 1]]+Dataset[[#This Row],[2026/27 To - Spending review Topic 2]]+Dataset[[#This Row],[2026/27 To - Spending review Topic 3]]+Dataset[[#This Row],[2026/27 To - Spending review Topic 4]]+Dataset[[#This Row],[2026/27 To - Other reallocations]]","v":0},{"$f":"Dataset[[#This Row],[2024/25 Reduction]]+Dataset[[#This Row],[2024/25 From - Total]]","v":0},{"$f":"Dataset[[#This Row],[2025/26 Reduction]]+Dataset[[#This Row],[2025/26 From - Total]]","v":0},{"$f":"Dataset[[#This Row],[2026/27 Reduction]]+Dataset[[#This Row],[2026/27 From - Total]]","v":0},{"$f":"Dataset[[#This Row],[2023/24 Reduction]]","v":0},{"$f":"SUM(Dataset[[#This Row],[2024/25 Reduction]],Dataset[[#This Row],[2024/25 From - Total]],Dataset[[#This Row],[2024/25 To - Total]])","v":0},{"$f":"SUM(Dataset[[#This Row],[2025/26 Reduction]],Dataset[[#This Row],[2025/26 From - Total]],Dataset[[#This Row],[2025/26 To - Total]])","v":0},{"$f":"SUM(Dataset[[#This Row],[2026/27 Reduction]],Dataset[[#This Row],[2026/27 From - Total]],Dataset[[#This Row],[2026/27 To - Total]])","v":0},{"$f":"Dataset[[#This Row],[2023/24 Baseline]]+Dataset[[#This Row],[2023/24 Total change]]","v":0},{"$f":"Dataset[[#This Row],[2024/25 Baseline]]+Dataset[[#This Row],[2024/25 Total change]]","v":0},{"$f":"Dataset[[#This Row],[2025/26 Baseline]]+Dataset[[#This Row],[2025/26 Total change]]","v":0},{"$f":"Dataset[[#This Row],[2026/27 Baseline]]+Dataset[[#This Row],[2026/27 Total change]]","v":0}]
["NAT|Non-transfer item","26|Inventory: Farming supplies","2024_25","MTEF2024",26,1,6,44294,407,"26","01","06","044294","000407","26|01|06","01","01","02","22","22","01|01|02|22|22","National","Military Veterans","Administration","Office Accommodation","Non-transfer item","Current","Current payments","Goods and services","Inventory: Farming supplies","Inventory: Farming supplies","Peace and security","Defence and state security","NAT",0,0,0,0,0,0,0,0,0,0,0,null,null,null,null,null,null,null,null,null,null,null,null,null,null,null,null,null,null,null,null,null,null,null,null,null,null,null,null,null,null,null,null,null,null,{"$f":"Dataset[[#This Row],[2024/25 From - Spending review Topic 1]]+Dataset[[#This Row],[2024/25 From - Spending review Topic 2]]+Dataset[[#This Row],[2024/25 From - Spending review Topic 3]]+Dataset[[#This Row],[2024/25 From - Spending review Topic 4]]+Dataset[[#This Row],[2024/25 From - Other reallocations]]","v":0},{"$f":"Dataset[[#This Row],[2025/26 From - Spending review Topic 1]]+Dataset[[#This Row],[2025/26 From - Spending review Topic 2]]+Dataset[[#This Row],[2025/26 From - Spending review Topic 3]]+Dataset[[#This Row],[2025/26 From - Spending review Topic 4]]+Dataset[[#This Row],[2025/26 From - Other reallocations]]","v":0},{"$f":"Dataset[[#This Row],[2026/27 From - Spending review Topic 1]]+Dataset[[#This Row],[2026/27 From - Spending review Topic 2]]+Dataset[[#This Row],[2026/27 From - Spending review Topic 3]]+Dataset[[#This Row],[2026/27 From - Spending review Topic 4]]+Dataset[[#This Row],[2026/27 From - Other reallocations]]","v":0},{"$f":"Dataset[[#This Row],[2024/25 To - Spending review Topic 1]]+Dataset[[#This Row],[2024/25 To - Spending review Topic 2]]+Dataset[[#This Row],[2024/25 To - Spending review Topic 3]]+Dataset[[#This Row],[2024/25 To - Spending review Topic 4]]+Dataset[[#This Row],[2024/25 To - Other reallocations]]","v":0},{"$f":"Dataset[[#This Row],[2025/26 To - Spending review Topic 1]]+Dataset[[#This Row],[2025/26 To - Spending review Topic 2]]+Dataset[[#This Row],[2025/26 To - Spending review Topic 3]]+Dataset[[#This Row],[2025/26 To - Spending review Topic 4]]+Dataset[[#This Row],[2025/26 To - Other reallocations]]","v":0},{"$f":"Dataset[[#This Row],[2026/27 To - Spending review Topic 1]]+Dataset[[#This Row],[2026/27 To - Spending review Topic 2]]+Dataset[[#This Row],[2026/27 To - Spending review Topic 3]]+Dataset[[#This Row],[2026/27 To - Spending review Topic 4]]+Dataset[[#This Row],[2026/27 To - Other reallocations]]","v":0},{"$f":"Dataset[[#This Row],[2024/25 Reduction]]+Dataset[[#This Row],[2024/25 From - Total]]","v":0},{"$f":"Dataset[[#This Row],[2025/26 Reduction]]+Dataset[[#This Row],[2025/26 From - Total]]","v":0},{"$f":"Dataset[[#This Row],[2026/27 Reduction]]+Dataset[[#This Row],[2026/27 From - Total]]","v":0},{"$f":"Dataset[[#This Row],[2023/24 Reduction]]","v":0},{"$f":"SUM(Dataset[[#This Row],[2024/25 Reduction]],Dataset[[#This Row],[2024/25 From - Total]],Dataset[[#This Row],[2024/25 To - Total]])","v":0},{"$f":"SUM(Dataset[[#This Row],[2025/26 Reduction]],Dataset[[#This Row],[2025/26 From - Total]],Dataset[[#This Row],[2025/26 To - Total]])","v":0},{"$f":"SUM(Dataset[[#This Row],[2026/27 Reduction]],Dataset[[#This Row],[2026/27 From - Total]],Dataset[[#This Row],[2026/27 To - Total]])","v":0},{"$f":"Dataset[[#This Row],[2023/24 Baseline]]+Dataset[[#This Row],[2023/24 Total change]]","v":0},{"$f":"Dataset[[#This Row],[2024/25 Baseline]]+Dataset[[#This Row],[2024/25 Total change]]","v":0},{"$f":"Dataset[[#This Row],[2025/26 Baseline]]+Dataset[[#This Row],[2025/26 Total change]]","v":0},{"$f":"Dataset[[#This Row],[2026/27 Baseline]]+Dataset[[#This Row],[2026/27 Total change]]","v":0}]
["NAT|Non-transfer item","26|Inventory: Food and food supplies","2024_25","MTEF2024",26,1,6,44295,408,"26","01","06","044295","000408","26|01|06","01","01","02","23","23","01|01|02|23|23","National","Military Veterans","Administration","Office Accommodation","Non-transfer item","Current","Current payments","Goods and services","Inventory: Food and food supplies","Inventory: Food and food supplies","Peace and security","Defence and state security","NAT",0,0,0,0,0,0,0,0,0,0,0,null,null,null,null,null,null,null,null,null,null,null,null,null,null,null,null,null,null,null,null,null,null,null,null,null,null,null,null,null,null,null,null,null,null,{"$f":"Dataset[[#This Row],[2024/25 From - Spending review Topic 1]]+Dataset[[#This Row],[2024/25 From - Spending review Topic 2]]+Dataset[[#This Row],[2024/25 From - Spending review Topic 3]]+Dataset[[#This Row],[2024/25 From - Spending review Topic 4]]+Dataset[[#This Row],[2024/25 From - Other reallocations]]","v":0},{"$f":"Dataset[[#This Row],[2025/26 From - Spending review Topic 1]]+Dataset[[#This Row],[2025/26 From - Spending review Topic 2]]+Dataset[[#This Row],[2025/26 From - Spending review Topic 3]]+Dataset[[#This Row],[2025/26 From - Spending review Topic 4]]+Dataset[[#This Row],[2025/26 From - Other reallocations]]","v":0},{"$f":"Dataset[[#This Row],[2026/27 From - Spending review Topic 1]]+Dataset[[#This Row],[2026/27 From - Spending review Topic 2]]+Dataset[[#This Row],[2026/27 From - Spending review Topic 3]]+Dataset[[#This Row],[2026/27 From - Spending review Topic 4]]+Dataset[[#This Row],[2026/27 From - Other reallocations]]","v":0},{"$f":"Dataset[[#This Row],[2024/25 To - Spending review Topic 1]]+Dataset[[#This Row],[2024/25 To - Spending review Topic 2]]+Dataset[[#This Row],[2024/25 To - Spending review Topic 3]]+Dataset[[#This Row],[2024/25 To - Spending review Topic 4]]+Dataset[[#This Row],[2024/25 To - Other reallocations]]","v":0},{"$f":"Dataset[[#This Row],[2025/26 To - Spending review Topic 1]]+Dataset[[#This Row],[2025/26 To - Spending review Topic 2]]+Dataset[[#This Row],[2025/26 To - Spending review Topic 3]]+Dataset[[#This Row],[2025/26 To - Spending review Topic 4]]+Dataset[[#This Row],[2025/26 To - Other reallocations]]","v":0},{"$f":"Dataset[[#This Row],[2026/27 To - Spending review Topic 1]]+Dataset[[#This Row],[2026/27 To - Spending review Topic 2]]+Dataset[[#This Row],[2026/27 To - Spending review Topic 3]]+Dataset[[#This Row],[2026/27 To - Spending review Topic 4]]+Dataset[[#This Row],[2026/27 To - Other reallocations]]","v":0},{"$f":"Dataset[[#This Row],[2024/25 Reduction]]+Dataset[[#This Row],[2024/25 From - Total]]","v":0},{"$f":"Dataset[[#This Row],[2025/26 Reduction]]+Dataset[[#This Row],[2025/26 From - Total]]","v":0},{"$f":"Dataset[[#This Row],[2026/27 Reduction]]+Dataset[[#This Row],[2026/27 From - Total]]","v":0},{"$f":"Dataset[[#This Row],[2023/24 Reduction]]","v":0},{"$f":"SUM(Dataset[[#This Row],[2024/25 Reduction]],Dataset[[#This Row],[2024/25 From - Total]],Dataset[[#This Row],[2024/25 To - Total]])","v":0},{"$f":"SUM(Dataset[[#This Row],[2025/26 Reduction]],Dataset[[#This Row],[2025/26 From - Total]],Dataset[[#This Row],[2025/26 To - Total]])","v":0},{"$f":"SUM(Dataset[[#This Row],[2026/27 Reduction]],Dataset[[#This Row],[2026/27 From - Total]],Dataset[[#This Row],[2026/27 To - Total]])","v":0},{"$f":"Dataset[[#This Row],[2023/24 Baseline]]+Dataset[[#This Row],[2023/24 Total change]]","v":0},{"$f":"Dataset[[#This Row],[2024/25 Baseline]]+Dataset[[#This Row],[2024/25 Total change]]","v":0},{"$f":"Dataset[[#This Row],[2025/26 Baseline]]+Dataset[[#This Row],[2025/26 Total change]]","v":0},{"$f":"Dataset[[#This Row],[2026/27 Baseline]]+Dataset[[#This Row],[2026/27 Total change]]","v":0}]
["NAT|Non-transfer item","26|Inventory: Fuel, oil and gas","2024_25","MTEF2024",26,1,6,44296,409,"26","01","06","044296","000409","26|01|06","01","01","02","24","24","01|01|02|24|24","National","Military Veterans","Administration","Office Accommodation","Non-transfer item","Current","Current payments","Goods and services","Inventory: Fuel, oil and gas","Inventory: Fuel, oil and gas","Peace and security","Defence and state security","NAT",0,0,0,0,0,0,0,0,0,0,0,null,null,null,null,null,null,null,null,null,null,null,null,null,null,null,null,null,null,null,null,null,null,null,null,null,null,null,null,null,null,null,null,null,null,{"$f":"Dataset[[#This Row],[2024/25 From - Spending review Topic 1]]+Dataset[[#This Row],[2024/25 From - Spending review Topic 2]]+Dataset[[#This Row],[2024/25 From - Spending review Topic 3]]+Dataset[[#This Row],[2024/25 From - Spending review Topic 4]]+Dataset[[#This Row],[2024/25 From - Other reallocations]]","v":0},{"$f":"Dataset[[#This Row],[2025/26 From - Spending review Topic 1]]+Dataset[[#This Row],[2025/26 From - Spending review Topic 2]]+Dataset[[#This Row],[2025/26 From - Spending review Topic 3]]+Dataset[[#This Row],[2025/26 From - Spending review Topic 4]]+Dataset[[#This Row],[2025/26 From - Other reallocations]]","v":0},{"$f":"Dataset[[#This Row],[2026/27 From - Spending review Topic 1]]+Dataset[[#This Row],[2026/27 From - Spending review Topic 2]]+Dataset[[#This Row],[2026/27 From - Spending review Topic 3]]+Dataset[[#This Row],[2026/27 From - Spending review Topic 4]]+Dataset[[#This Row],[2026/27 From - Other reallocations]]","v":0},{"$f":"Dataset[[#This Row],[2024/25 To - Spending review Topic 1]]+Dataset[[#This Row],[2024/25 To - Spending review Topic 2]]+Dataset[[#This Row],[2024/25 To - Spending review Topic 3]]+Dataset[[#This Row],[2024/25 To - Spending review Topic 4]]+Dataset[[#This Row],[2024/25 To - Other reallocations]]","v":0},{"$f":"Dataset[[#This Row],[2025/26 To - Spending review Topic 1]]+Dataset[[#This Row],[2025/26 To - Spending review Topic 2]]+Dataset[[#This Row],[2025/26 To - Spending review Topic 3]]+Dataset[[#This Row],[2025/26 To - Spending review Topic 4]]+Dataset[[#This Row],[2025/26 To - Other reallocations]]","v":0},{"$f":"Dataset[[#This Row],[2026/27 To - Spending review Topic 1]]+Dataset[[#This Row],[2026/27 To - Spending review Topic 2]]+Dataset[[#This Row],[2026/27 To - Spending review Topic 3]]+Dataset[[#This Row],[2026/27 To - Spending review Topic 4]]+Dataset[[#This Row],[2026/27 To - Other reallocations]]","v":0},{"$f":"Dataset[[#This Row],[2024/25 Reduction]]+Dataset[[#This Row],[2024/25 From - Total]]","v":0},{"$f":"Dataset[[#This Row],[2025/26 Reduction]]+Dataset[[#This Row],[2025/26 From - Total]]","v":0},{"$f":"Dataset[[#This Row],[2026/27 Reduction]]+Dataset[[#This Row],[2026/27 From - Total]]","v":0},{"$f":"Dataset[[#This Row],[2023/24 Reduction]]","v":0},{"$f":"SUM(Dataset[[#This Row],[2024/25 Reduction]],Dataset[[#This Row],[2024/25 From - Total]],Dataset[[#This Row],[2024/25 To - Total]])","v":0},{"$f":"SUM(Dataset[[#This Row],[2025/26 Reduction]],Dataset[[#This Row],[2025/26 From - Total]],Dataset[[#This Row],[2025/26 To - Total]])","v":0},{"$f":"SUM(Dataset[[#This Row],[2026/27 Reduction]],Dataset[[#This Row],[2026/27 From - Total]],Dataset[[#This Row],[2026/27 To - Total]])","v":0},{"$f":"Dataset[[#This Row],[2023/24 Baseline]]+Dataset[[#This Row],[2023/24 Total change]]","v":0},{"$f":"Dataset[[#This Row],[2024/25 Baseline]]+Dataset[[#This Row],[2024/25 Total change]]","v":0},{"$f":"Dataset[[#This Row],[2025/26 Baseline]]+Dataset[[#This Row],[2025/26 Total change]]","v":0},{"$f":"Dataset[[#This Row],[2026/27 Baseline]]+Dataset[[#This Row],[2026/27 Total change]]","v":0}]
["NAT|Non-transfer item","26|Inventory: Learner and teacher support material","2024_25","MTEF2024",26,1,6,44297,410,"26","01","06","044297","000410","26|01|06","01","01","02","25","25","01|01|02|25|25","National","Military Veterans","Administration","Office Accommodation","Non-transfer item","Current","Current payments","Goods and services","Inventory: Learner and teacher support material","Inventory: Learner and teacher support material","Peace and security","Defence and state security","NAT",0,0,0,0,0,0,0,0,0,0,0,null,null,null,null,null,null,null,null,null,null,null,null,null,null,null,null,null,null,null,null,null,null,null,null,null,null,null,null,null,null,null,null,null,null,{"$f":"Dataset[[#This Row],[2024/25 From - Spending review Topic 1]]+Dataset[[#This Row],[2024/25 From - Spending review Topic 2]]+Dataset[[#This Row],[2024/25 From - Spending review Topic 3]]+Dataset[[#This Row],[2024/25 From - Spending review Topic 4]]+Dataset[[#This Row],[2024/25 From - Other reallocations]]","v":0},{"$f":"Dataset[[#This Row],[2025/26 From - Spending review Topic 1]]+Dataset[[#This Row],[2025/26 From - Spending review Topic 2]]+Dataset[[#This Row],[2025/26 From - Spending review Topic 3]]+Dataset[[#This Row],[2025/26 From - Spending review Topic 4]]+Dataset[[#This Row],[2025/26 From - Other reallocations]]","v":0},{"$f":"Dataset[[#This Row],[2026/27 From - Spending review Topic 1]]+Dataset[[#This Row],[2026/27 From - Spending review Topic 2]]+Dataset[[#This Row],[2026/27 From - Spending review Topic 3]]+Dataset[[#This Row],[2026/27 From - Spending review Topic 4]]+Dataset[[#This Row],[2026/27 From - Other reallocations]]","v":0},{"$f":"Dataset[[#This Row],[2024/25 To - Spending review Topic 1]]+Dataset[[#This Row],[2024/25 To - Spending review Topic 2]]+Dataset[[#This Row],[2024/25 To - Spending review Topic 3]]+Dataset[[#This Row],[2024/25 To - Spending review Topic 4]]+Dataset[[#This Row],[2024/25 To - Other reallocations]]","v":0},{"$f":"Dataset[[#This Row],[2025/26 To - Spending review Topic 1]]+Dataset[[#This Row],[2025/26 To - Spending review Topic 2]]+Dataset[[#This Row],[2025/26 To - Spending review Topic 3]]+Dataset[[#This Row],[2025/26 To - Spending review Topic 4]]+Dataset[[#This Row],[2025/26 To - Other reallocations]]","v":0},{"$f":"Dataset[[#This Row],[2026/27 To - Spending review Topic 1]]+Dataset[[#This Row],[2026/27 To - Spending review Topic 2]]+Dataset[[#This Row],[2026/27 To - Spending review Topic 3]]+Dataset[[#This Row],[2026/27 To - Spending review Topic 4]]+Dataset[[#This Row],[2026/27 To - Other reallocations]]","v":0},{"$f":"Dataset[[#This Row],[2024/25 Reduction]]+Dataset[[#This Row],[2024/25 From - Total]]","v":0},{"$f":"Dataset[[#This Row],[2025/26 Reduction]]+Dataset[[#This Row],[2025/26 From - Total]]","v":0},{"$f":"Dataset[[#This Row],[2026/27 Reduction]]+Dataset[[#This Row],[2026/27 From - Total]]","v":0},{"$f":"Dataset[[#This Row],[2023/24 Reduction]]","v":0},{"$f":"SUM(Dataset[[#This Row],[2024/25 Reduction]],Dataset[[#This Row],[2024/25 From - Total]],Dataset[[#This Row],[2024/25 To - Total]])","v":0},{"$f":"SUM(Dataset[[#This Row],[2025/26 Reduction]],Dataset[[#This Row],[2025/26 From - Total]],Dataset[[#This Row],[2025/26 To - Total]])","v":0},{"$f":"SUM(Dataset[[#This Row],[2026/27 Reduction]],Dataset[[#This Row],[2026/27 From - Total]],Dataset[[#This Row],[2026/27 To - Total]])","v":0},{"$f":"Dataset[[#This Row],[2023/24 Baseline]]+Dataset[[#This Row],[2023/24 Total change]]","v":0},{"$f":"Dataset[[#This Row],[2024/25 Baseline]]+Dataset[[#This Row],[2024/25 Total change]]","v":0},{"$f":"Dataset[[#This Row],[2025/26 Baseline]]+Dataset[[#This Row],[2025/26 Total change]]","v":0},{"$f":"Dataset[[#This Row],[2026/27 Baseline]]+Dataset[[#This Row],[2026/27 Total change]]","v":0}]
["NAT|Non-transfer item","26|Inventory: Materials and supplies","2024_25","MTEF2024",26,1,6,44298,411,"26","01","06","044298","000411","26|01|06","01","01","02","26","26","01|01|02|26|26","National","Military Veterans","Administration","Office Accommodation","Non-transfer item","Current","Current payments","Goods and services","Inventory: Materials and supplies","Inventory: Materials and supplies","Peace and security","Defence and state security","NAT",0,0,0,0,0,0,0,0,0,0,0,null,null,null,null,null,null,null,null,null,null,null,null,null,null,null,null,null,null,null,null,null,null,null,null,null,null,null,null,null,null,null,null,null,null,{"$f":"Dataset[[#This Row],[2024/25 From - Spending review Topic 1]]+Dataset[[#This Row],[2024/25 From - Spending review Topic 2]]+Dataset[[#This Row],[2024/25 From - Spending review Topic 3]]+Dataset[[#This Row],[2024/25 From - Spending review Topic 4]]+Dataset[[#This Row],[2024/25 From - Other reallocations]]","v":0},{"$f":"Dataset[[#This Row],[2025/26 From - Spending review Topic 1]]+Dataset[[#This Row],[2025/26 From - Spending review Topic 2]]+Dataset[[#This Row],[2025/26 From - Spending review Topic 3]]+Dataset[[#This Row],[2025/26 From - Spending review Topic 4]]+Dataset[[#This Row],[2025/26 From - Other reallocations]]","v":0},{"$f":"Dataset[[#This Row],[2026/27 From - Spending review Topic 1]]+Dataset[[#This Row],[2026/27 From - Spending review Topic 2]]+Dataset[[#This Row],[2026/27 From - Spending review Topic 3]]+Dataset[[#This Row],[2026/27 From - Spending review Topic 4]]+Dataset[[#This Row],[2026/27 From - Other reallocations]]","v":0},{"$f":"Dataset[[#This Row],[2024/25 To - Spending review Topic 1]]+Dataset[[#This Row],[2024/25 To - Spending review Topic 2]]+Dataset[[#This Row],[2024/25 To - Spending review Topic 3]]+Dataset[[#This Row],[2024/25 To - Spending review Topic 4]]+Dataset[[#This Row],[2024/25 To - Other reallocations]]","v":0},{"$f":"Dataset[[#This Row],[2025/26 To - Spending review Topic 1]]+Dataset[[#This Row],[2025/26 To - Spending review Topic 2]]+Dataset[[#This Row],[2025/26 To - Spending review Topic 3]]+Dataset[[#This Row],[2025/26 To - Spending review Topic 4]]+Dataset[[#This Row],[2025/26 To - Other reallocations]]","v":0},{"$f":"Dataset[[#This Row],[2026/27 To - Spending review Topic 1]]+Dataset[[#This Row],[2026/27 To - Spending review Topic 2]]+Dataset[[#This Row],[2026/27 To - Spending review Topic 3]]+Dataset[[#This Row],[2026/27 To - Spending review Topic 4]]+Dataset[[#This Row],[2026/27 To - Other reallocations]]","v":0},{"$f":"Dataset[[#This Row],[2024/25 Reduction]]+Dataset[[#This Row],[2024/25 From - Total]]","v":0},{"$f":"Dataset[[#This Row],[2025/26 Reduction]]+Dataset[[#This Row],[2025/26 From - Total]]","v":0},{"$f":"Dataset[[#This Row],[2026/27 Reduction]]+Dataset[[#This Row],[2026/27 From - Total]]","v":0},{"$f":"Dataset[[#This Row],[2023/24 Reduction]]","v":0},{"$f":"SUM(Dataset[[#This Row],[2024/25 Reduction]],Dataset[[#This Row],[2024/25 From - Total]],Dataset[[#This Row],[2024/25 To - Total]])","v":0},{"$f":"SUM(Dataset[[#This Row],[2025/26 Reduction]],Dataset[[#This Row],[2025/26 From - Total]],Dataset[[#This Row],[2025/26 To - Total]])","v":0},{"$f":"SUM(Dataset[[#This Row],[2026/27 Reduction]],Dataset[[#This Row],[2026/27 From - Total]],Dataset[[#This Row],[2026/27 To - Total]])","v":0},{"$f":"Dataset[[#This Row],[2023/24 Baseline]]+Dataset[[#This Row],[2023/24 Total change]]","v":0},{"$f":"Dataset[[#This Row],[2024/25 Baseline]]+Dataset[[#This Row],[2024/25 Total change]]","v":0},{"$f":"Dataset[[#This Row],[2025/26 Baseline]]+Dataset[[#This Row],[2025/26 Total change]]","v":0},{"$f":"Dataset[[#This Row],[2026/27 Baseline]]+Dataset[[#This Row],[2026/27 Total change]]","v":0}]
["NAT|Non-transfer item","26|Inventory: Medical supplies","2024_25","MTEF2024",26,1,6,44299,412,"26","01","06","044299","000412","26|01|06","01","01","02","27","27","01|01|02|27|27","National","Military Veterans","Administration","Office Accommodation","Non-transfer item","Current","Current payments","Goods and services","Inventory: Medical supplies","Inventory: Medical supplies","Peace and security","Defence and state security","NAT",0,0,0,0,0,0,0,0,0,0,0,null,null,null,null,null,null,null,null,null,null,null,null,null,null,null,null,null,null,null,null,null,null,null,null,null,null,null,null,null,null,null,null,null,null,{"$f":"Dataset[[#This Row],[2024/25 From - Spending review Topic 1]]+Dataset[[#This Row],[2024/25 From - Spending review Topic 2]]+Dataset[[#This Row],[2024/25 From - Spending review Topic 3]]+Dataset[[#This Row],[2024/25 From - Spending review Topic 4]]+Dataset[[#This Row],[2024/25 From - Other reallocations]]","v":0},{"$f":"Dataset[[#This Row],[2025/26 From - Spending review Topic 1]]+Dataset[[#This Row],[2025/26 From - Spending review Topic 2]]+Dataset[[#This Row],[2025/26 From - Spending review Topic 3]]+Dataset[[#This Row],[2025/26 From - Spending review Topic 4]]+Dataset[[#This Row],[2025/26 From - Other reallocations]]","v":0},{"$f":"Dataset[[#This Row],[2026/27 From - Spending review Topic 1]]+Dataset[[#This Row],[2026/27 From - Spending review Topic 2]]+Dataset[[#This Row],[2026/27 From - Spending review Topic 3]]+Dataset[[#This Row],[2026/27 From - Spending review Topic 4]]+Dataset[[#This Row],[2026/27 From - Other reallocations]]","v":0},{"$f":"Dataset[[#This Row],[2024/25 To - Spending review Topic 1]]+Dataset[[#This Row],[2024/25 To - Spending review Topic 2]]+Dataset[[#This Row],[2024/25 To - Spending review Topic 3]]+Dataset[[#This Row],[2024/25 To - Spending review Topic 4]]+Dataset[[#This Row],[2024/25 To - Other reallocations]]","v":0},{"$f":"Dataset[[#This Row],[2025/26 To - Spending review Topic 1]]+Dataset[[#This Row],[2025/26 To - Spending review Topic 2]]+Dataset[[#This Row],[2025/26 To - Spending review Topic 3]]+Dataset[[#This Row],[2025/26 To - Spending review Topic 4]]+Dataset[[#This Row],[2025/26 To - Other reallocations]]","v":0},{"$f":"Dataset[[#This Row],[2026/27 To - Spending review Topic 1]]+Dataset[[#This Row],[2026/27 To - Spending review Topic 2]]+Dataset[[#This Row],[2026/27 To - Spending review Topic 3]]+Dataset[[#This Row],[2026/27 To - Spending review Topic 4]]+Dataset[[#This Row],[2026/27 To - Other reallocations]]","v":0},{"$f":"Dataset[[#This Row],[2024/25 Reduction]]+Dataset[[#This Row],[2024/25 From - Total]]","v":0},{"$f":"Dataset[[#This Row],[2025/26 Reduction]]+Dataset[[#This Row],[2025/26 From - Total]]","v":0},{"$f":"Dataset[[#This Row],[2026/27 Reduction]]+Dataset[[#This Row],[2026/27 From - Total]]","v":0},{"$f":"Dataset[[#This Row],[2023/24 Reduction]]","v":0},{"$f":"SUM(Dataset[[#This Row],[2024/25 Reduction]],Dataset[[#This Row],[2024/25 From - Total]],Dataset[[#This Row],[2024/25 To - Total]])","v":0},{"$f":"SUM(Dataset[[#This Row],[2025/26 Reduction]],Dataset[[#This Row],[2025/26 From - Total]],Dataset[[#This Row],[2025/26 To - Total]])","v":0},{"$f":"SUM(Dataset[[#This Row],[2026/27 Reduction]],Dataset[[#This Row],[2026/27 From - Total]],Dataset[[#This Row],[2026/27 To - Total]])","v":0},{"$f":"Dataset[[#This Row],[2023/24 Baseline]]+Dataset[[#This Row],[2023/24 Total change]]","v":0},{"$f":"Dataset[[#This Row],[2024/25 Baseline]]+Dataset[[#This Row],[2024/25 Total change]]","v":0},{"$f":"Dataset[[#This Row],[2025/26 Baseline]]+Dataset[[#This Row],[2025/26 Total change]]","v":0},{"$f":"Dataset[[#This Row],[2026/27 Baseline]]+Dataset[[#This Row],[2026/27 Total change]]","v":0}]
["NAT|Non-transfer item","26|Inventory: Medicine","2024_25","MTEF2024",26,1,6,44300,413,"26","01","06","044300","000413","26|01|06","01","01","02","28","28","01|01|02|28|28","National","Military Veterans","Administration","Office Accommodation","Non-transfer item","Current","Current payments","Goods and services","Inventory: Medicine","Inventory: Medicine","Peace and security","Defence and state security","NAT",0,0,0,0,0,0,0,0,0,0,0,null,null,null,null,null,null,null,null,null,null,null,null,null,null,null,null,null,null,null,null,null,null,null,null,null,null,null,null,null,null,null,null,null,null,{"$f":"Dataset[[#This Row],[2024/25 From - Spending review Topic 1]]+Dataset[[#This Row],[2024/25 From - Spending review Topic 2]]+Dataset[[#This Row],[2024/25 From - Spending review Topic 3]]+Dataset[[#This Row],[2024/25 From - Spending review Topic 4]]+Dataset[[#This Row],[2024/25 From - Other reallocations]]","v":0},{"$f":"Dataset[[#This Row],[2025/26 From - Spending review Topic 1]]+Dataset[[#This Row],[2025/26 From - Spending review Topic 2]]+Dataset[[#This Row],[2025/26 From - Spending review Topic 3]]+Dataset[[#This Row],[2025/26 From - Spending review Topic 4]]+Dataset[[#This Row],[2025/26 From - Other reallocations]]","v":0},{"$f":"Dataset[[#This Row],[2026/27 From - Spending review Topic 1]]+Dataset[[#This Row],[2026/27 From - Spending review Topic 2]]+Dataset[[#This Row],[2026/27 From - Spending review Topic 3]]+Dataset[[#This Row],[2026/27 From - Spending review Topic 4]]+Dataset[[#This Row],[2026/27 From - Other reallocations]]","v":0},{"$f":"Dataset[[#This Row],[2024/25 To - Spending review Topic 1]]+Dataset[[#This Row],[2024/25 To - Spending review Topic 2]]+Dataset[[#This Row],[2024/25 To - Spending review Topic 3]]+Dataset[[#This Row],[2024/25 To - Spending review Topic 4]]+Dataset[[#This Row],[2024/25 To - Other reallocations]]","v":0},{"$f":"Dataset[[#This Row],[2025/26 To - Spending review Topic 1]]+Dataset[[#This Row],[2025/26 To - Spending review Topic 2]]+Dataset[[#This Row],[2025/26 To - Spending review Topic 3]]+Dataset[[#This Row],[2025/26 To - Spending review Topic 4]]+Dataset[[#This Row],[2025/26 To - Other reallocations]]","v":0},{"$f":"Dataset[[#This Row],[2026/27 To - Spending review Topic 1]]+Dataset[[#This Row],[2026/27 To - Spending review Topic 2]]+Dataset[[#This Row],[2026/27 To - Spending review Topic 3]]+Dataset[[#This Row],[2026/27 To - Spending review Topic 4]]+Dataset[[#This Row],[2026/27 To - Other reallocations]]","v":0},{"$f":"Dataset[[#This Row],[2024/25 Reduction]]+Dataset[[#This Row],[2024/25 From - Total]]","v":0},{"$f":"Dataset[[#This Row],[2025/26 Reduction]]+Dataset[[#This Row],[2025/26 From - Total]]","v":0},{"$f":"Dataset[[#This Row],[2026/27 Reduction]]+Dataset[[#This Row],[2026/27 From - Total]]","v":0},{"$f":"Dataset[[#This Row],[2023/24 Reduction]]","v":0},{"$f":"SUM(Dataset[[#This Row],[2024/25 Reduction]],Dataset[[#This Row],[2024/25 From - Total]],Dataset[[#This Row],[2024/25 To - Total]])","v":0},{"$f":"SUM(Dataset[[#This Row],[2025/26 Reduction]],Dataset[[#This Row],[2025/26 From - Total]],Dataset[[#This Row],[2025/26 To - Total]])","v":0},{"$f":"SUM(Dataset[[#This Row],[2026/27 Reduction]],Dataset[[#This Row],[2026/27 From - Total]],Dataset[[#This Row],[2026/27 To - Total]])","v":0},{"$f":"Dataset[[#This Row],[2023/24 Baseline]]+Dataset[[#This Row],[2023/24 Total change]]","v":0},{"$f":"Dataset[[#This Row],[2024/25 Baseline]]+Dataset[[#This Row],[2024/25 Total change]]","v":0},{"$f":"Dataset[[#This Row],[2025/26 Baseline]]+Dataset[[#This Row],[2025/26 Total change]]","v":0},{"$f":"Dataset[[#This Row],[2026/27 Baseline]]+Dataset[[#This Row],[2026/27 Total change]]","v":0}]
["NAT|Non-transfer item","26|Medsas inventory interface","2024_25","MTEF2024",26,1,6,44301,414,"26","01","06","044301","000414","26|01|06","01","01","02","29","29","01|01|02|29|29","National","Military Veterans","Administration","Office Accommodation","Non-transfer item","Current","Current payments","Goods and services","Medsas inventory interface","Medsas inventory interface","Peace and security","Defence and state security","NAT",0,0,0,0,0,0,0,0,0,0,0,null,null,null,null,null,null,null,null,null,null,null,null,null,null,null,null,null,null,null,null,null,null,null,null,null,null,null,null,null,null,null,null,null,null,{"$f":"Dataset[[#This Row],[2024/25 From - Spending review Topic 1]]+Dataset[[#This Row],[2024/25 From - Spending review Topic 2]]+Dataset[[#This Row],[2024/25 From - Spending review Topic 3]]+Dataset[[#This Row],[2024/25 From - Spending review Topic 4]]+Dataset[[#This Row],[2024/25 From - Other reallocations]]","v":0},{"$f":"Dataset[[#This Row],[2025/26 From - Spending review Topic 1]]+Dataset[[#This Row],[2025/26 From - Spending review Topic 2]]+Dataset[[#This Row],[2025/26 From - Spending review Topic 3]]+Dataset[[#This Row],[2025/26 From - Spending review Topic 4]]+Dataset[[#This Row],[2025/26 From - Other reallocations]]","v":0},{"$f":"Dataset[[#This Row],[2026/27 From - Spending review Topic 1]]+Dataset[[#This Row],[2026/27 From - Spending review Topic 2]]+Dataset[[#This Row],[2026/27 From - Spending review Topic 3]]+Dataset[[#This Row],[2026/27 From - Spending review Topic 4]]+Dataset[[#This Row],[2026/27 From - Other reallocations]]","v":0},{"$f":"Dataset[[#This Row],[2024/25 To - Spending review Topic 1]]+Dataset[[#This Row],[2024/25 To - Spending review Topic 2]]+Dataset[[#This Row],[2024/25 To - Spending review Topic 3]]+Dataset[[#This Row],[2024/25 To - Spending review Topic 4]]+Dataset[[#This Row],[2024/25 To - Other reallocations]]","v":0},{"$f":"Dataset[[#This Row],[2025/26 To - Spending review Topic 1]]+Dataset[[#This Row],[2025/26 To - Spending review Topic 2]]+Dataset[[#This Row],[2025/26 To - Spending review Topic 3]]+Dataset[[#This Row],[2025/26 To - Spending review Topic 4]]+Dataset[[#This Row],[2025/26 To - Other reallocations]]","v":0},{"$f":"Dataset[[#This Row],[2026/27 To - Spending review Topic 1]]+Dataset[[#This Row],[2026/27 To - Spending review Topic 2]]+Dataset[[#This Row],[2026/27 To - Spending review Topic 3]]+Dataset[[#This Row],[2026/27 To - Spending review Topic 4]]+Dataset[[#This Row],[2026/27 To - Other reallocations]]","v":0},{"$f":"Dataset[[#This Row],[2024/25 Reduction]]+Dataset[[#This Row],[2024/25 From - Total]]","v":0},{"$f":"Dataset[[#This Row],[2025/26 Reduction]]+Dataset[[#This Row],[2025/26 From - Total]]","v":0},{"$f":"Dataset[[#This Row],[2026/27 Reduction]]+Dataset[[#This Row],[2026/27 From - Total]]","v":0},{"$f":"Dataset[[#This Row],[2023/24 Reduction]]","v":0},{"$f":"SUM(Dataset[[#This Row],[2024/25 Reduction]],Dataset[[#This Row],[2024/25 From - Total]],Dataset[[#This Row],[2024/25 To - Total]])","v":0},{"$f":"SUM(Dataset[[#This Row],[2025/26 Reduction]],Dataset[[#This Row],[2025/26 From - Total]],Dataset[[#This Row],[2025/26 To - Total]])","v":0},{"$f":"SUM(Dataset[[#This Row],[2026/27 Reduction]],Dataset[[#This Row],[2026/27 From - Total]],Dataset[[#This Row],[2026/27 To - Total]])","v":0},{"$f":"Dataset[[#This Row],[2023/24 Baseline]]+Dataset[[#This Row],[2023/24 Total change]]","v":0},{"$f":"Dataset[[#This Row],[2024/25 Baseline]]+Dataset[[#This Row],[2024/25 Total change]]","v":0},{"$f":"Dataset[[#This Row],[2025/26 Baseline]]+Dataset[[#This Row],[2025/26 Total change]]","v":0},{"$f":"Dataset[[#This Row],[2026/27 Baseline]]+Dataset[[#This Row],[2026/27 Total change]]","v":0}]
["NAT|Non-transfer item","26|Inventory: Other supplies","2024_25","MTEF2024",26,1,6,44302,415,"26","01","06","044302","000415","26|01|06","01","01","02","30","30","01|01|02|30|30","National","Military Veterans","Administration","Office Accommodation","Non-transfer item","Current","Current payments","Goods and services","Inventory: Other supplies","Inventory: Other supplies","Peace and security","Defence and state security","NAT",0,0,0,0,0,0,0,0,0,0,0,null,null,null,null,null,null,null,null,null,null,null,null,null,null,null,null,null,null,null,null,null,null,null,null,null,null,null,null,null,null,null,null,null,null,{"$f":"Dataset[[#This Row],[2024/25 From - Spending review Topic 1]]+Dataset[[#This Row],[2024/25 From - Spending review Topic 2]]+Dataset[[#This Row],[2024/25 From - Spending review Topic 3]]+Dataset[[#This Row],[2024/25 From - Spending review Topic 4]]+Dataset[[#This Row],[2024/25 From - Other reallocations]]","v":0},{"$f":"Dataset[[#This Row],[2025/26 From - Spending review Topic 1]]+Dataset[[#This Row],[2025/26 From - Spending review Topic 2]]+Dataset[[#This Row],[2025/26 From - Spending review Topic 3]]+Dataset[[#This Row],[2025/26 From - Spending review Topic 4]]+Dataset[[#This Row],[2025/26 From - Other reallocations]]","v":0},{"$f":"Dataset[[#This Row],[2026/27 From - Spending review Topic 1]]+Dataset[[#This Row],[2026/27 From - Spending review Topic 2]]+Dataset[[#This Row],[2026/27 From - Spending review Topic 3]]+Dataset[[#This Row],[2026/27 From - Spending review Topic 4]]+Dataset[[#This Row],[2026/27 From - Other reallocations]]","v":0},{"$f":"Dataset[[#This Row],[2024/25 To - Spending review Topic 1]]+Dataset[[#This Row],[2024/25 To - Spending review Topic 2]]+Dataset[[#This Row],[2024/25 To - Spending review Topic 3]]+Dataset[[#This Row],[2024/25 To - Spending review Topic 4]]+Dataset[[#This Row],[2024/25 To - Other reallocations]]","v":0},{"$f":"Dataset[[#This Row],[2025/26 To - Spending review Topic 1]]+Dataset[[#This Row],[2025/26 To - Spending review Topic 2]]+Dataset[[#This Row],[2025/26 To - Spending review Topic 3]]+Dataset[[#This Row],[2025/26 To - Spending review Topic 4]]+Dataset[[#This Row],[2025/26 To - Other reallocations]]","v":0},{"$f":"Dataset[[#This Row],[2026/27 To - Spending review Topic 1]]+Dataset[[#This Row],[2026/27 To - Spending review Topic 2]]+Dataset[[#This Row],[2026/27 To - Spending review Topic 3]]+Dataset[[#This Row],[2026/27 To - Spending review Topic 4]]+Dataset[[#This Row],[2026/27 To - Other reallocations]]","v":0},{"$f":"Dataset[[#This Row],[2024/25 Reduction]]+Dataset[[#This Row],[2024/25 From - Total]]","v":0},{"$f":"Dataset[[#This Row],[2025/26 Reduction]]+Dataset[[#This Row],[2025/26 From - Total]]","v":0},{"$f":"Dataset[[#This Row],[2026/27 Reduction]]+Dataset[[#This Row],[2026/27 From - Total]]","v":0},{"$f":"Dataset[[#This Row],[2023/24 Reduction]]","v":0},{"$f":"SUM(Dataset[[#This Row],[2024/25 Reduction]],Dataset[[#This Row],[2024/25 From - Total]],Dataset[[#This Row],[2024/25 To - Total]])","v":0},{"$f":"SUM(Dataset[[#This Row],[2025/26 Reduction]],Dataset[[#This Row],[2025/26 From - Total]],Dataset[[#This Row],[2025/26 To - Total]])","v":0},{"$f":"SUM(Dataset[[#This Row],[2026/27 Reduction]],Dataset[[#This Row],[2026/27 From - Total]],Dataset[[#This Row],[2026/27 To - Total]])","v":0},{"$f":"Dataset[[#This Row],[2023/24 Baseline]]+Dataset[[#This Row],[2023/24 Total change]]","v":0},{"$f":"Dataset[[#This Row],[2024/25 Baseline]]+Dataset[[#This Row],[2024/25 Total change]]","v":0},{"$f":"Dataset[[#This Row],[2025/26 Baseline]]+Dataset[[#This Row],[2025/26 Total change]]","v":0},{"$f":"Dataset[[#This Row],[2026/27 Baseline]]+Dataset[[#This Row],[2026/27 Total change]]","v":0}]
["NAT|Non-transfer item","26|Consumable supplies","2024_25","MTEF2024",26,1,6,44303,416,"26","01","06","044303","000416","26|01|06","01","01","02","31","31","01|01|02|31|31","National","Military Veterans","Administration","Office Accommodation","Non-transfer item","Current","Current payments","Goods and services","Consumable supplies","Consumable supplies","Peace and security","Defence and state security","NAT",24,0,1,0,0,0,0,0,0,0,0,null,null,null,null,null,null,null,null,null,null,null,null,null,null,null,null,null,null,null,null,null,null,null,null,null,null,null,null,null,null,null,null,null,null,{"$f":"Dataset[[#This Row],[2024/25 From - Spending review Topic 1]]+Dataset[[#This Row],[2024/25 From - Spending review Topic 2]]+Dataset[[#This Row],[2024/25 From - Spending review Topic 3]]+Dataset[[#This Row],[2024/25 From - Spending review Topic 4]]+Dataset[[#This Row],[2024/25 From - Other reallocations]]","v":0},{"$f":"Dataset[[#This Row],[2025/26 From - Spending review Topic 1]]+Dataset[[#This Row],[2025/26 From - Spending review Topic 2]]+Dataset[[#This Row],[2025/26 From - Spending review Topic 3]]+Dataset[[#This Row],[2025/26 From - Spending review Topic 4]]+Dataset[[#This Row],[2025/26 From - Other reallocations]]","v":0},{"$f":"Dataset[[#This Row],[2026/27 From - Spending review Topic 1]]+Dataset[[#This Row],[2026/27 From - Spending review Topic 2]]+Dataset[[#This Row],[2026/27 From - Spending review Topic 3]]+Dataset[[#This Row],[2026/27 From - Spending review Topic 4]]+Dataset[[#This Row],[2026/27 From - Other reallocations]]","v":0},{"$f":"Dataset[[#This Row],[2024/25 To - Spending review Topic 1]]+Dataset[[#This Row],[2024/25 To - Spending review Topic 2]]+Dataset[[#This Row],[2024/25 To - Spending review Topic 3]]+Dataset[[#This Row],[2024/25 To - Spending review Topic 4]]+Dataset[[#This Row],[2024/25 To - Other reallocations]]","v":0},{"$f":"Dataset[[#This Row],[2025/26 To - Spending review Topic 1]]+Dataset[[#This Row],[2025/26 To - Spending review Topic 2]]+Dataset[[#This Row],[2025/26 To - Spending review Topic 3]]+Dataset[[#This Row],[2025/26 To - Spending review Topic 4]]+Dataset[[#This Row],[2025/26 To - Other reallocations]]","v":0},{"$f":"Dataset[[#This Row],[2026/27 To - Spending review Topic 1]]+Dataset[[#This Row],[2026/27 To - Spending review Topic 2]]+Dataset[[#This Row],[2026/27 To - Spending review Topic 3]]+Dataset[[#This Row],[2026/27 To - Spending review Topic 4]]+Dataset[[#This Row],[2026/27 To - Other reallocations]]","v":0},{"$f":"Dataset[[#This Row],[2024/25 Reduction]]+Dataset[[#This Row],[2024/25 From - Total]]","v":0},{"$f":"Dataset[[#This Row],[2025/26 Reduction]]+Dataset[[#This Row],[2025/26 From - Total]]","v":0},{"$f":"Dataset[[#This Row],[2026/27 Reduction]]+Dataset[[#This Row],[2026/27 From - Total]]","v":0},{"$f":"Dataset[[#This Row],[2023/24 Reduction]]","v":0},{"$f":"SUM(Dataset[[#This Row],[2024/25 Reduction]],Dataset[[#This Row],[2024/25 From - Total]],Dataset[[#This Row],[2024/25 To - Total]])","v":0},{"$f":"SUM(Dataset[[#This Row],[2025/26 Reduction]],Dataset[[#This Row],[2025/26 From - Total]],Dataset[[#This Row],[2025/26 To - Total]])","v":0},{"$f":"SUM(Dataset[[#This Row],[2026/27 Reduction]],Dataset[[#This Row],[2026/27 From - Total]],Dataset[[#This Row],[2026/27 To - Total]])","v":0},{"$f":"Dataset[[#This Row],[2023/24 Baseline]]+Dataset[[#This Row],[2023/24 Total change]]","v":0},{"$f":"Dataset[[#This Row],[2024/25 Baseline]]+Dataset[[#This Row],[2024/25 Total change]]","v":0},{"$f":"Dataset[[#This Row],[2025/26 Baseline]]+Dataset[[#This Row],[2025/26 Total change]]","v":0},{"$f":"Dataset[[#This Row],[2026/27 Baseline]]+Dataset[[#This Row],[2026/27 Total change]]","v":0}]
["NAT|Non-transfer item","26|Consumables: Stationery, printing and office supplies","2024_25","MTEF2024",26,1,6,44304,417,"26","01","06","044304","000417","26|01|06","01","01","02","32","32","01|01|02|32|32","National","Military Veterans","Administration","Office Accommodation","Non-transfer item","Current","Current payments","Goods and services","Consumables: Stationery, printing and office supplies","Consumables: Stationery, printing and office supplies","Peace and security","Defence and state security","NAT",0,0,0,0,0,0,0,0,0,0,0,null,null,null,null,null,null,null,null,null,null,null,null,null,null,null,null,null,null,null,null,null,null,null,null,null,null,null,null,null,null,null,null,null,null,{"$f":"Dataset[[#This Row],[2024/25 From - Spending review Topic 1]]+Dataset[[#This Row],[2024/25 From - Spending review Topic 2]]+Dataset[[#This Row],[2024/25 From - Spending review Topic 3]]+Dataset[[#This Row],[2024/25 From - Spending review Topic 4]]+Dataset[[#This Row],[2024/25 From - Other reallocations]]","v":0},{"$f":"Dataset[[#This Row],[2025/26 From - Spending review Topic 1]]+Dataset[[#This Row],[2025/26 From - Spending review Topic 2]]+Dataset[[#This Row],[2025/26 From - Spending review Topic 3]]+Dataset[[#This Row],[2025/26 From - Spending review Topic 4]]+Dataset[[#This Row],[2025/26 From - Other reallocations]]","v":0},{"$f":"Dataset[[#This Row],[2026/27 From - Spending review Topic 1]]+Dataset[[#This Row],[2026/27 From - Spending review Topic 2]]+Dataset[[#This Row],[2026/27 From - Spending review Topic 3]]+Dataset[[#This Row],[2026/27 From - Spending review Topic 4]]+Dataset[[#This Row],[2026/27 From - Other reallocations]]","v":0},{"$f":"Dataset[[#This Row],[2024/25 To - Spending review Topic 1]]+Dataset[[#This Row],[2024/25 To - Spending review Topic 2]]+Dataset[[#This Row],[2024/25 To - Spending review Topic 3]]+Dataset[[#This Row],[2024/25 To - Spending review Topic 4]]+Dataset[[#This Row],[2024/25 To - Other reallocations]]","v":0},{"$f":"Dataset[[#This Row],[2025/26 To - Spending review Topic 1]]+Dataset[[#This Row],[2025/26 To - Spending review Topic 2]]+Dataset[[#This Row],[2025/26 To - Spending review Topic 3]]+Dataset[[#This Row],[2025/26 To - Spending review Topic 4]]+Dataset[[#This Row],[2025/26 To - Other reallocations]]","v":0},{"$f":"Dataset[[#This Row],[2026/27 To - Spending review Topic 1]]+Dataset[[#This Row],[2026/27 To - Spending review Topic 2]]+Dataset[[#This Row],[2026/27 To - Spending review Topic 3]]+Dataset[[#This Row],[2026/27 To - Spending review Topic 4]]+Dataset[[#This Row],[2026/27 To - Other reallocations]]","v":0},{"$f":"Dataset[[#This Row],[2024/25 Reduction]]+Dataset[[#This Row],[2024/25 From - Total]]","v":0},{"$f":"Dataset[[#This Row],[2025/26 Reduction]]+Dataset[[#This Row],[2025/26 From - Total]]","v":0},{"$f":"Dataset[[#This Row],[2026/27 Reduction]]+Dataset[[#This Row],[2026/27 From - Total]]","v":0},{"$f":"Dataset[[#This Row],[2023/24 Reduction]]","v":0},{"$f":"SUM(Dataset[[#This Row],[2024/25 Reduction]],Dataset[[#This Row],[2024/25 From - Total]],Dataset[[#This Row],[2024/25 To - Total]])","v":0},{"$f":"SUM(Dataset[[#This Row],[2025/26 Reduction]],Dataset[[#This Row],[2025/26 From - Total]],Dataset[[#This Row],[2025/26 To - Total]])","v":0},{"$f":"SUM(Dataset[[#This Row],[2026/27 Reduction]],Dataset[[#This Row],[2026/27 From - Total]],Dataset[[#This Row],[2026/27 To - Total]])","v":0},{"$f":"Dataset[[#This Row],[2023/24 Baseline]]+Dataset[[#This Row],[2023/24 Total change]]","v":0},{"$f":"Dataset[[#This Row],[2024/25 Baseline]]+Dataset[[#This Row],[2024/25 Total change]]","v":0},{"$f":"Dataset[[#This Row],[2025/26 Baseline]]+Dataset[[#This Row],[2025/26 Total change]]","v":0},{"$f":"Dataset[[#This Row],[2026/27 Baseline]]+Dataset[[#This Row],[2026/27 Total change]]","v":0}]
["NAT|Non-transfer item","26|Operating leases","2024_25","MTEF2024",26,1,6,44305,418,"26","01","06","044305","000418","26|01|06","01","01","02","33","33","01|01|02|33|33","National","Military Veterans","Administration","Office Accommodation","Non-transfer item","Current","Current payments","Goods and services","Operating leases","Operating leases","Peace and security","Defence and state security","NAT",10922,11084,16203,8150,11650,11650,0,10216,12790,13037,13634,null,null,null,null,null,null,null,null,null,null,null,null,null,null,null,null,null,null,null,null,null,null,null,null,null,null,null,null,null,null,null,null,null,null,{"$f":"Dataset[[#This Row],[2024/25 From - Spending review Topic 1]]+Dataset[[#This Row],[2024/25 From - Spending review Topic 2]]+Dataset[[#This Row],[2024/25 From - Spending review Topic 3]]+Dataset[[#This Row],[2024/25 From - Spending review Topic 4]]+Dataset[[#This Row],[2024/25 From - Other reallocations]]","v":0},{"$f":"Dataset[[#This Row],[2025/26 From - Spending review Topic 1]]+Dataset[[#This Row],[2025/26 From - Spending review Topic 2]]+Dataset[[#This Row],[2025/26 From - Spending review Topic 3]]+Dataset[[#This Row],[2025/26 From - Spending review Topic 4]]+Dataset[[#This Row],[2025/26 From - Other reallocations]]","v":0},{"$f":"Dataset[[#This Row],[2026/27 From - Spending review Topic 1]]+Dataset[[#This Row],[2026/27 From - Spending review Topic 2]]+Dataset[[#This Row],[2026/27 From - Spending review Topic 3]]+Dataset[[#This Row],[2026/27 From - Spending review Topic 4]]+Dataset[[#This Row],[2026/27 From - Other reallocations]]","v":0},{"$f":"Dataset[[#This Row],[2024/25 To - Spending review Topic 1]]+Dataset[[#This Row],[2024/25 To - Spending review Topic 2]]+Dataset[[#This Row],[2024/25 To - Spending review Topic 3]]+Dataset[[#This Row],[2024/25 To - Spending review Topic 4]]+Dataset[[#This Row],[2024/25 To - Other reallocations]]","v":0},{"$f":"Dataset[[#This Row],[2025/26 To - Spending review Topic 1]]+Dataset[[#This Row],[2025/26 To - Spending review Topic 2]]+Dataset[[#This Row],[2025/26 To - Spending review Topic 3]]+Dataset[[#This Row],[2025/26 To - Spending review Topic 4]]+Dataset[[#This Row],[2025/26 To - Other reallocations]]","v":0},{"$f":"Dataset[[#This Row],[2026/27 To - Spending review Topic 1]]+Dataset[[#This Row],[2026/27 To - Spending review Topic 2]]+Dataset[[#This Row],[2026/27 To - Spending review Topic 3]]+Dataset[[#This Row],[2026/27 To - Spending review Topic 4]]+Dataset[[#This Row],[2026/27 To - Other reallocations]]","v":0},{"$f":"Dataset[[#This Row],[2024/25 Reduction]]+Dataset[[#This Row],[2024/25 From - Total]]","v":0},{"$f":"Dataset[[#This Row],[2025/26 Reduction]]+Dataset[[#This Row],[2025/26 From - Total]]","v":0},{"$f":"Dataset[[#This Row],[2026/27 Reduction]]+Dataset[[#This Row],[2026/27 From - Total]]","v":0},{"$f":"Dataset[[#This Row],[2023/24 Reduction]]","v":0},{"$f":"SUM(Dataset[[#This Row],[2024/25 Reduction]],Dataset[[#This Row],[2024/25 From - Total]],Dataset[[#This Row],[2024/25 To - Total]])","v":0},{"$f":"SUM(Dataset[[#This Row],[2025/26 Reduction]],Dataset[[#This Row],[2025/26 From - Total]],Dataset[[#This Row],[2025/26 To - Total]])","v":0},{"$f":"SUM(Dataset[[#This Row],[2026/27 Reduction]],Dataset[[#This Row],[2026/27 From - Total]],Dataset[[#This Row],[2026/27 To - Total]])","v":0},{"$f":"Dataset[[#This Row],[2023/24 Baseline]]+Dataset[[#This Row],[2023/24 Total change]]","v":10216},{"$f":"Dataset[[#This Row],[2024/25 Baseline]]+Dataset[[#This Row],[2024/25 Total change]]","v":12790},{"$f":"Dataset[[#This Row],[2025/26 Baseline]]+Dataset[[#This Row],[2025/26 Total change]]","v":13037},{"$f":"Dataset[[#This Row],[2026/27 Baseline]]+Dataset[[#This Row],[2026/27 Total change]]","v":13634}]
["NAT|Non-transfer item","26|Rental and hiring","2024_25","MTEF2024",26,1,6,44306,419,"26","01","06","044306","000419","26|01|06","01","01","02","34","34","01|01|02|34|34","National","Military Veterans","Administration","Office Accommodation","Non-transfer item","Current","Current payments","Goods and services","Rental and hiring","Rental and hiring","Peace and security","Defence and state security","NAT",0,0,0,0,0,0,0,0,0,0,0,null,null,null,null,null,null,null,null,null,null,null,null,null,null,null,null,null,null,null,null,null,null,null,null,null,null,null,null,null,null,null,null,null,null,{"$f":"Dataset[[#This Row],[2024/25 From - Spending review Topic 1]]+Dataset[[#This Row],[2024/25 From - Spending review Topic 2]]+Dataset[[#This Row],[2024/25 From - Spending review Topic 3]]+Dataset[[#This Row],[2024/25 From - Spending review Topic 4]]+Dataset[[#This Row],[2024/25 From - Other reallocations]]","v":0},{"$f":"Dataset[[#This Row],[2025/26 From - Spending review Topic 1]]+Dataset[[#This Row],[2025/26 From - Spending review Topic 2]]+Dataset[[#This Row],[2025/26 From - Spending review Topic 3]]+Dataset[[#This Row],[2025/26 From - Spending review Topic 4]]+Dataset[[#This Row],[2025/26 From - Other reallocations]]","v":0},{"$f":"Dataset[[#This Row],[2026/27 From - Spending review Topic 1]]+Dataset[[#This Row],[2026/27 From - Spending review Topic 2]]+Dataset[[#This Row],[2026/27 From - Spending review Topic 3]]+Dataset[[#This Row],[2026/27 From - Spending review Topic 4]]+Dataset[[#This Row],[2026/27 From - Other reallocations]]","v":0},{"$f":"Dataset[[#This Row],[2024/25 To - Spending review Topic 1]]+Dataset[[#This Row],[2024/25 To - Spending review Topic 2]]+Dataset[[#This Row],[2024/25 To - Spending review Topic 3]]+Dataset[[#This Row],[2024/25 To - Spending review Topic 4]]+Dataset[[#This Row],[2024/25 To - Other reallocations]]","v":0},{"$f":"Dataset[[#This Row],[2025/26 To - Spending review Topic 1]]+Dataset[[#This Row],[2025/26 To - Spending review Topic 2]]+Dataset[[#This Row],[2025/26 To - Spending review Topic 3]]+Dataset[[#This Row],[2025/26 To - Spending review Topic 4]]+Dataset[[#This Row],[2025/26 To - Other reallocations]]","v":0},{"$f":"Dataset[[#This Row],[2026/27 To - Spending review Topic 1]]+Dataset[[#This Row],[2026/27 To - Spending review Topic 2]]+Dataset[[#This Row],[2026/27 To - Spending review Topic 3]]+Dataset[[#This Row],[2026/27 To - Spending review Topic 4]]+Dataset[[#This Row],[2026/27 To - Other reallocations]]","v":0},{"$f":"Dataset[[#This Row],[2024/25 Reduction]]+Dataset[[#This Row],[2024/25 From - Total]]","v":0},{"$f":"Dataset[[#This Row],[2025/26 Reduction]]+Dataset[[#This Row],[2025/26 From - Total]]","v":0},{"$f":"Dataset[[#This Row],[2026/27 Reduction]]+Dataset[[#This Row],[2026/27 From - Total]]","v":0},{"$f":"Dataset[[#This Row],[2023/24 Reduction]]","v":0},{"$f":"SUM(Dataset[[#This Row],[2024/25 Reduction]],Dataset[[#This Row],[2024/25 From - Total]],Dataset[[#This Row],[2024/25 To - Total]])","v":0},{"$f":"SUM(Dataset[[#This Row],[2025/26 Reduction]],Dataset[[#This Row],[2025/26 From - Total]],Dataset[[#This Row],[2025/26 To - Total]])","v":0},{"$f":"SUM(Dataset[[#This Row],[2026/27 Reduction]],Dataset[[#This Row],[2026/27 From - Total]],Dataset[[#This Row],[2026/27 To - Total]])","v":0},{"$f":"Dataset[[#This Row],[2023/24 Baseline]]+Dataset[[#This Row],[2023/24 Total change]]","v":0},{"$f":"Dataset[[#This Row],[2024/25 Baseline]]+Dataset[[#This Row],[2024/25 Total change]]","v":0},{"$f":"Dataset[[#This Row],[2025/26 Baseline]]+Dataset[[#This Row],[2025/26 Total change]]","v":0},{"$f":"Dataset[[#This Row],[2026/27 Baseline]]+Dataset[[#This Row],[2026/27 Total change]]","v":0}]
["NAT|Non-transfer item","26|Property payments","2024_25","MTEF2024",26,1,6,44307,420,"26","01","06","044307","000420","26|01|06","01","01","02","35","35","01|01|02|35|35","National","Military Veterans","Administration","Office Accommodation","Non-transfer item","Current","Current payments","Goods and services","Property payments","Property payments","Peace and security","Defence and state security","NAT",1955,2233,2199,4666,6166,6166,0,4729,4941,5162,5398,null,null,null,null,null,null,null,null,null,null,null,null,null,null,null,null,null,null,null,null,null,null,null,null,null,null,null,null,null,null,null,null,null,null,{"$f":"Dataset[[#This Row],[2024/25 From - Spending review Topic 1]]+Dataset[[#This Row],[2024/25 From - Spending review Topic 2]]+Dataset[[#This Row],[2024/25 From - Spending review Topic 3]]+Dataset[[#This Row],[2024/25 From - Spending review Topic 4]]+Dataset[[#This Row],[2024/25 From - Other reallocations]]","v":0},{"$f":"Dataset[[#This Row],[2025/26 From - Spending review Topic 1]]+Dataset[[#This Row],[2025/26 From - Spending review Topic 2]]+Dataset[[#This Row],[2025/26 From - Spending review Topic 3]]+Dataset[[#This Row],[2025/26 From - Spending review Topic 4]]+Dataset[[#This Row],[2025/26 From - Other reallocations]]","v":0},{"$f":"Dataset[[#This Row],[2026/27 From - Spending review Topic 1]]+Dataset[[#This Row],[2026/27 From - Spending review Topic 2]]+Dataset[[#This Row],[2026/27 From - Spending review Topic 3]]+Dataset[[#This Row],[2026/27 From - Spending review Topic 4]]+Dataset[[#This Row],[2026/27 From - Other reallocations]]","v":0},{"$f":"Dataset[[#This Row],[2024/25 To - Spending review Topic 1]]+Dataset[[#This Row],[2024/25 To - Spending review Topic 2]]+Dataset[[#This Row],[2024/25 To - Spending review Topic 3]]+Dataset[[#This Row],[2024/25 To - Spending review Topic 4]]+Dataset[[#This Row],[2024/25 To - Other reallocations]]","v":0},{"$f":"Dataset[[#This Row],[2025/26 To - Spending review Topic 1]]+Dataset[[#This Row],[2025/26 To - Spending review Topic 2]]+Dataset[[#This Row],[2025/26 To - Spending review Topic 3]]+Dataset[[#This Row],[2025/26 To - Spending review Topic 4]]+Dataset[[#This Row],[2025/26 To - Other reallocations]]","v":0},{"$f":"Dataset[[#This Row],[2026/27 To - Spending review Topic 1]]+Dataset[[#This Row],[2026/27 To - Spending review Topic 2]]+Dataset[[#This Row],[2026/27 To - Spending review Topic 3]]+Dataset[[#This Row],[2026/27 To - Spending review Topic 4]]+Dataset[[#This Row],[2026/27 To - Other reallocations]]","v":0},{"$f":"Dataset[[#This Row],[2024/25 Reduction]]+Dataset[[#This Row],[2024/25 From - Total]]","v":0},{"$f":"Dataset[[#This Row],[2025/26 Reduction]]+Dataset[[#This Row],[2025/26 From - Total]]","v":0},{"$f":"Dataset[[#This Row],[2026/27 Reduction]]+Dataset[[#This Row],[2026/27 From - Total]]","v":0},{"$f":"Dataset[[#This Row],[2023/24 Reduction]]","v":0},{"$f":"SUM(Dataset[[#This Row],[2024/25 Reduction]],Dataset[[#This Row],[2024/25 From - Total]],Dataset[[#This Row],[2024/25 To - Total]])","v":0},{"$f":"SUM(Dataset[[#This Row],[2025/26 Reduction]],Dataset[[#This Row],[2025/26 From - Total]],Dataset[[#This Row],[2025/26 To - Total]])","v":0},{"$f":"SUM(Dataset[[#This Row],[2026/27 Reduction]],Dataset[[#This Row],[2026/27 From - Total]],Dataset[[#This Row],[2026/27 To - Total]])","v":0},{"$f":"Dataset[[#This Row],[2023/24 Baseline]]+Dataset[[#This Row],[2023/24 Total change]]","v":4729},{"$f":"Dataset[[#This Row],[2024/25 Baseline]]+Dataset[[#This Row],[2024/25 Total change]]","v":4941},{"$f":"Dataset[[#This Row],[2025/26 Baseline]]+Dataset[[#This Row],[2025/26 Total change]]","v":5162},{"$f":"Dataset[[#This Row],[2026/27 Baseline]]+Dataset[[#This Row],[2026/27 Total change]]","v":5398}]
["NAT|Non-transfer item","26|Transport provided: Departmental activity","2024_25","MTEF2024",26,1,6,44308,421,"26","01","06","044308","000421","26|01|06","01","01","02","36","36","01|01|02|36|36","National","Military Veterans","Administration","Office Accommodation","Non-transfer item","Current","Current payments","Goods and services","Transport provided: Departmental activity","Transport provided: Departmental activity","Peace and security","Defence and state security","NAT",0,0,0,0,0,0,0,0,0,0,0,null,null,null,null,null,null,null,null,null,null,null,null,null,null,null,null,null,null,null,null,null,null,null,null,null,null,null,null,null,null,null,null,null,null,{"$f":"Dataset[[#This Row],[2024/25 From - Spending review Topic 1]]+Dataset[[#This Row],[2024/25 From - Spending review Topic 2]]+Dataset[[#This Row],[2024/25 From - Spending review Topic 3]]+Dataset[[#This Row],[2024/25 From - Spending review Topic 4]]+Dataset[[#This Row],[2024/25 From - Other reallocations]]","v":0},{"$f":"Dataset[[#This Row],[2025/26 From - Spending review Topic 1]]+Dataset[[#This Row],[2025/26 From - Spending review Topic 2]]+Dataset[[#This Row],[2025/26 From - Spending review Topic 3]]+Dataset[[#This Row],[2025/26 From - Spending review Topic 4]]+Dataset[[#This Row],[2025/26 From - Other reallocations]]","v":0},{"$f":"Dataset[[#This Row],[2026/27 From - Spending review Topic 1]]+Dataset[[#This Row],[2026/27 From - Spending review Topic 2]]+Dataset[[#This Row],[2026/27 From - Spending review Topic 3]]+Dataset[[#This Row],[2026/27 From - Spending review Topic 4]]+Dataset[[#This Row],[2026/27 From - Other reallocations]]","v":0},{"$f":"Dataset[[#This Row],[2024/25 To - Spending review Topic 1]]+Dataset[[#This Row],[2024/25 To - Spending review Topic 2]]+Dataset[[#This Row],[2024/25 To - Spending review Topic 3]]+Dataset[[#This Row],[2024/25 To - Spending review Topic 4]]+Dataset[[#This Row],[2024/25 To - Other reallocations]]","v":0},{"$f":"Dataset[[#This Row],[2025/26 To - Spending review Topic 1]]+Dataset[[#This Row],[2025/26 To - Spending review Topic 2]]+Dataset[[#This Row],[2025/26 To - Spending review Topic 3]]+Dataset[[#This Row],[2025/26 To - Spending review Topic 4]]+Dataset[[#This Row],[2025/26 To - Other reallocations]]","v":0},{"$f":"Dataset[[#This Row],[2026/27 To - Spending review Topic 1]]+Dataset[[#This Row],[2026/27 To - Spending review Topic 2]]+Dataset[[#This Row],[2026/27 To - Spending review Topic 3]]+Dataset[[#This Row],[2026/27 To - Spending review Topic 4]]+Dataset[[#This Row],[2026/27 To - Other reallocations]]","v":0},{"$f":"Dataset[[#This Row],[2024/25 Reduction]]+Dataset[[#This Row],[2024/25 From - Total]]","v":0},{"$f":"Dataset[[#This Row],[2025/26 Reduction]]+Dataset[[#This Row],[2025/26 From - Total]]","v":0},{"$f":"Dataset[[#This Row],[2026/27 Reduction]]+Dataset[[#This Row],[2026/27 From - Total]]","v":0},{"$f":"Dataset[[#This Row],[2023/24 Reduction]]","v":0},{"$f":"SUM(Dataset[[#This Row],[2024/25 Reduction]],Dataset[[#This Row],[2024/25 From - Total]],Dataset[[#This Row],[2024/25 To - Total]])","v":0},{"$f":"SUM(Dataset[[#This Row],[2025/26 Reduction]],Dataset[[#This Row],[2025/26 From - Total]],Dataset[[#This Row],[2025/26 To - Total]])","v":0},{"$f":"SUM(Dataset[[#This Row],[2026/27 Reduction]],Dataset[[#This Row],[2026/27 From - Total]],Dataset[[#This Row],[2026/27 To - Total]])","v":0},{"$f":"Dataset[[#This Row],[2023/24 Baseline]]+Dataset[[#This Row],[2023/24 Total change]]","v":0},{"$f":"Dataset[[#This Row],[2024/25 Baseline]]+Dataset[[#This Row],[2024/25 Total change]]","v":0},{"$f":"Dataset[[#This Row],[2025/26 Baseline]]+Dataset[[#This Row],[2025/26 Total change]]","v":0},{"$f":"Dataset[[#This Row],[2026/27 Baseline]]+Dataset[[#This Row],[2026/27 Total change]]","v":0}]
["NAT|Non-transfer item","26|Travel and subsistence","2024_25","MTEF2024",26,1,6,44309,422,"26","01","06","044309","000422","26|01|06","01","01","02","37","37","01|01|02|37|37","National","Military Veterans","Administration","Office Accommodation","Non-transfer item","Current","Current payments","Goods and services","Travel and subsistence","Travel and subsistence","Peace and security","Defence and state security","NAT",0,0,0,0,0,0,0,0,0,0,0,null,null,null,null,null,null,null,null,null,null,null,null,null,null,null,null,null,null,null,null,null,null,null,null,null,null,null,null,null,null,null,null,null,null,{"$f":"Dataset[[#This Row],[2024/25 From - Spending review Topic 1]]+Dataset[[#This Row],[2024/25 From - Spending review Topic 2]]+Dataset[[#This Row],[2024/25 From - Spending review Topic 3]]+Dataset[[#This Row],[2024/25 From - Spending review Topic 4]]+Dataset[[#This Row],[2024/25 From - Other reallocations]]","v":0},{"$f":"Dataset[[#This Row],[2025/26 From - Spending review Topic 1]]+Dataset[[#This Row],[2025/26 From - Spending review Topic 2]]+Dataset[[#This Row],[2025/26 From - Spending review Topic 3]]+Dataset[[#This Row],[2025/26 From - Spending review Topic 4]]+Dataset[[#This Row],[2025/26 From - Other reallocations]]","v":0},{"$f":"Dataset[[#This Row],[2026/27 From - Spending review Topic 1]]+Dataset[[#This Row],[2026/27 From - Spending review Topic 2]]+Dataset[[#This Row],[2026/27 From - Spending review Topic 3]]+Dataset[[#This Row],[2026/27 From - Spending review Topic 4]]+Dataset[[#This Row],[2026/27 From - Other reallocations]]","v":0},{"$f":"Dataset[[#This Row],[2024/25 To - Spending review Topic 1]]+Dataset[[#This Row],[2024/25 To - Spending review Topic 2]]+Dataset[[#This Row],[2024/25 To - Spending review Topic 3]]+Dataset[[#This Row],[2024/25 To - Spending review Topic 4]]+Dataset[[#This Row],[2024/25 To - Other reallocations]]","v":0},{"$f":"Dataset[[#This Row],[2025/26 To - Spending review Topic 1]]+Dataset[[#This Row],[2025/26 To - Spending review Topic 2]]+Dataset[[#This Row],[2025/26 To - Spending review Topic 3]]+Dataset[[#This Row],[2025/26 To - Spending review Topic 4]]+Dataset[[#This Row],[2025/26 To - Other reallocations]]","v":0},{"$f":"Dataset[[#This Row],[2026/27 To - Spending review Topic 1]]+Dataset[[#This Row],[2026/27 To - Spending review Topic 2]]+Dataset[[#This Row],[2026/27 To - Spending review Topic 3]]+Dataset[[#This Row],[2026/27 To - Spending review Topic 4]]+Dataset[[#This Row],[2026/27 To - Other reallocations]]","v":0},{"$f":"Dataset[[#This Row],[2024/25 Reduction]]+Dataset[[#This Row],[2024/25 From - Total]]","v":0},{"$f":"Dataset[[#This Row],[2025/26 Reduction]]+Dataset[[#This Row],[2025/26 From - Total]]","v":0},{"$f":"Dataset[[#This Row],[2026/27 Reduction]]+Dataset[[#This Row],[2026/27 From - Total]]","v":0},{"$f":"Dataset[[#This Row],[2023/24 Reduction]]","v":0},{"$f":"SUM(Dataset[[#This Row],[2024/25 Reduction]],Dataset[[#This Row],[2024/25 From - Total]],Dataset[[#This Row],[2024/25 To - Total]])","v":0},{"$f":"SUM(Dataset[[#This Row],[2025/26 Reduction]],Dataset[[#This Row],[2025/26 From - Total]],Dataset[[#This Row],[2025/26 To - Total]])","v":0},{"$f":"SUM(Dataset[[#This Row],[2026/27 Reduction]],Dataset[[#This Row],[2026/27 From - Total]],Dataset[[#This Row],[2026/27 To - Total]])","v":0},{"$f":"Dataset[[#This Row],[2023/24 Baseline]]+Dataset[[#This Row],[2023/24 Total change]]","v":0},{"$f":"Dataset[[#This Row],[2024/25 Baseline]]+Dataset[[#This Row],[2024/25 Total change]]","v":0},{"$f":"Dataset[[#This Row],[2025/26 Baseline]]+Dataset[[#This Row],[2025/26 Total change]]","v":0},{"$f":"Dataset[[#This Row],[2026/27 Baseline]]+Dataset[[#This Row],[2026/27 Total change]]","v":0}]
["NAT|Non-transfer item","26|Training and development","2024_25","MTEF2024",26,1,6,44310,423,"26","01","06","044310","000423","26|01|06","01","01","02","38","38","01|01|02|38|38","National","Military Veterans","Administration","Office Accommodation","Non-transfer item","Current","Current payments","Goods and services","Training and development","Training and development","Peace and security","Defence and state security","NAT",0,0,0,0,0,0,0,0,0,0,0,null,null,null,null,null,null,null,null,null,null,null,null,null,null,null,null,null,null,null,null,null,null,null,null,null,null,null,null,null,null,null,null,null,null,{"$f":"Dataset[[#This Row],[2024/25 From - Spending review Topic 1]]+Dataset[[#This Row],[2024/25 From - Spending review Topic 2]]+Dataset[[#This Row],[2024/25 From - Spending review Topic 3]]+Dataset[[#This Row],[2024/25 From - Spending review Topic 4]]+Dataset[[#This Row],[2024/25 From - Other reallocations]]","v":0},{"$f":"Dataset[[#This Row],[2025/26 From - Spending review Topic 1]]+Dataset[[#This Row],[2025/26 From - Spending review Topic 2]]+Dataset[[#This Row],[2025/26 From - Spending review Topic 3]]+Dataset[[#This Row],[2025/26 From - Spending review Topic 4]]+Dataset[[#This Row],[2025/26 From - Other reallocations]]","v":0},{"$f":"Dataset[[#This Row],[2026/27 From - Spending review Topic 1]]+Dataset[[#This Row],[2026/27 From - Spending review Topic 2]]+Dataset[[#This Row],[2026/27 From - Spending review Topic 3]]+Dataset[[#This Row],[2026/27 From - Spending review Topic 4]]+Dataset[[#This Row],[2026/27 From - Other reallocations]]","v":0},{"$f":"Dataset[[#This Row],[2024/25 To - Spending review Topic 1]]+Dataset[[#This Row],[2024/25 To - Spending review Topic 2]]+Dataset[[#This Row],[2024/25 To - Spending review Topic 3]]+Dataset[[#This Row],[2024/25 To - Spending review Topic 4]]+Dataset[[#This Row],[2024/25 To - Other reallocations]]","v":0},{"$f":"Dataset[[#This Row],[2025/26 To - Spending review Topic 1]]+Dataset[[#This Row],[2025/26 To - Spending review Topic 2]]+Dataset[[#This Row],[2025/26 To - Spending review Topic 3]]+Dataset[[#This Row],[2025/26 To - Spending review Topic 4]]+Dataset[[#This Row],[2025/26 To - Other reallocations]]","v":0},{"$f":"Dataset[[#This Row],[2026/27 To - Spending review Topic 1]]+Dataset[[#This Row],[2026/27 To - Spending review Topic 2]]+Dataset[[#This Row],[2026/27 To - Spending review Topic 3]]+Dataset[[#This Row],[2026/27 To - Spending review Topic 4]]+Dataset[[#This Row],[2026/27 To - Other reallocations]]","v":0},{"$f":"Dataset[[#This Row],[2024/25 Reduction]]+Dataset[[#This Row],[2024/25 From - Total]]","v":0},{"$f":"Dataset[[#This Row],[2025/26 Reduction]]+Dataset[[#This Row],[2025/26 From - Total]]","v":0},{"$f":"Dataset[[#This Row],[2026/27 Reduction]]+Dataset[[#This Row],[2026/27 From - Total]]","v":0},{"$f":"Dataset[[#This Row],[2023/24 Reduction]]","v":0},{"$f":"SUM(Dataset[[#This Row],[2024/25 Reduction]],Dataset[[#This Row],[2024/25 From - Total]],Dataset[[#This Row],[2024/25 To - Total]])","v":0},{"$f":"SUM(Dataset[[#This Row],[2025/26 Reduction]],Dataset[[#This Row],[2025/26 From - Total]],Dataset[[#This Row],[2025/26 To - Total]])","v":0},{"$f":"SUM(Dataset[[#This Row],[2026/27 Reduction]],Dataset[[#This Row],[2026/27 From - Total]],Dataset[[#This Row],[2026/27 To - Total]])","v":0},{"$f":"Dataset[[#This Row],[2023/24 Baseline]]+Dataset[[#This Row],[2023/24 Total change]]","v":0},{"$f":"Dataset[[#This Row],[2024/25 Baseline]]+Dataset[[#This Row],[2024/25 Total change]]","v":0},{"$f":"Dataset[[#This Row],[2025/26 Baseline]]+Dataset[[#This Row],[2025/26 Total change]]","v":0},{"$f":"Dataset[[#This Row],[2026/27 Baseline]]+Dataset[[#This Row],[2026/27 Total change]]","v":0}]
["NAT|Non-transfer item","26|Operating payments","2024_25","MTEF2024",26,1,6,44311,424,"26","01","06","044311","000424","26|01|06","01","01","02","39","39","01|01|02|39|39","National","Military Veterans","Administration","Office Accommodation","Non-transfer item","Current","Current payments","Goods and services","Operating payments","Operating payments","Peace and security","Defence and state security","NAT",0,0,0,0,0,0,0,0,0,0,0,null,null,null,null,null,null,null,null,null,null,null,null,null,null,null,null,null,null,null,null,null,null,null,null,null,null,null,null,null,null,null,null,null,null,{"$f":"Dataset[[#This Row],[2024/25 From - Spending review Topic 1]]+Dataset[[#This Row],[2024/25 From - Spending review Topic 2]]+Dataset[[#This Row],[2024/25 From - Spending review Topic 3]]+Dataset[[#This Row],[2024/25 From - Spending review Topic 4]]+Dataset[[#This Row],[2024/25 From - Other reallocations]]","v":0},{"$f":"Dataset[[#This Row],[2025/26 From - Spending review Topic 1]]+Dataset[[#This Row],[2025/26 From - Spending review Topic 2]]+Dataset[[#This Row],[2025/26 From - Spending review Topic 3]]+Dataset[[#This Row],[2025/26 From - Spending review Topic 4]]+Dataset[[#This Row],[2025/26 From - Other reallocations]]","v":0},{"$f":"Dataset[[#This Row],[2026/27 From - Spending review Topic 1]]+Dataset[[#This Row],[2026/27 From - Spending review Topic 2]]+Dataset[[#This Row],[2026/27 From - Spending review Topic 3]]+Dataset[[#This Row],[2026/27 From - Spending review Topic 4]]+Dataset[[#This Row],[2026/27 From - Other reallocations]]","v":0},{"$f":"Dataset[[#This Row],[2024/25 To - Spending review Topic 1]]+Dataset[[#This Row],[2024/25 To - Spending review Topic 2]]+Dataset[[#This Row],[2024/25 To - Spending review Topic 3]]+Dataset[[#This Row],[2024/25 To - Spending review Topic 4]]+Dataset[[#This Row],[2024/25 To - Other reallocations]]","v":0},{"$f":"Dataset[[#This Row],[2025/26 To - Spending review Topic 1]]+Dataset[[#This Row],[2025/26 To - Spending review Topic 2]]+Dataset[[#This Row],[2025/26 To - Spending review Topic 3]]+Dataset[[#This Row],[2025/26 To - Spending review Topic 4]]+Dataset[[#This Row],[2025/26 To - Other reallocations]]","v":0},{"$f":"Dataset[[#This Row],[2026/27 To - Spending review Topic 1]]+Dataset[[#This Row],[2026/27 To - Spending review Topic 2]]+Dataset[[#This Row],[2026/27 To - Spending review Topic 3]]+Dataset[[#This Row],[2026/27 To - Spending review Topic 4]]+Dataset[[#This Row],[2026/27 To - Other reallocations]]","v":0},{"$f":"Dataset[[#This Row],[2024/25 Reduction]]+Dataset[[#This Row],[2024/25 From - Total]]","v":0},{"$f":"Dataset[[#This Row],[2025/26 Reduction]]+Dataset[[#This Row],[2025/26 From - Total]]","v":0},{"$f":"Dataset[[#This Row],[2026/27 Reduction]]+Dataset[[#This Row],[2026/27 From - Total]]","v":0},{"$f":"Dataset[[#This Row],[2023/24 Reduction]]","v":0},{"$f":"SUM(Dataset[[#This Row],[2024/25 Reduction]],Dataset[[#This Row],[2024/25 From - Total]],Dataset[[#This Row],[2024/25 To - Total]])","v":0},{"$f":"SUM(Dataset[[#This Row],[2025/26 Reduction]],Dataset[[#This Row],[2025/26 From - Total]],Dataset[[#This Row],[2025/26 To - Total]])","v":0},{"$f":"SUM(Dataset[[#This Row],[2026/27 Reduction]],Dataset[[#This Row],[2026/27 From - Total]],Dataset[[#This Row],[2026/27 To - Total]])","v":0},{"$f":"Dataset[[#This Row],[2023/24 Baseline]]+Dataset[[#This Row],[2023/24 Total change]]","v":0},{"$f":"Dataset[[#This Row],[2024/25 Baseline]]+Dataset[[#This Row],[2024/25 Total change]]","v":0},{"$f":"Dataset[[#This Row],[2025/26 Baseline]]+Dataset[[#This Row],[2025/26 Total change]]","v":0},{"$f":"Dataset[[#This Row],[2026/27 Baseline]]+Dataset[[#This Row],[2026/27 Total change]]","v":0}]
["NAT|Non-transfer item","26|Venues and facilities","2024_25","MTEF2024",26,1,6,44312,425,"26","01","06","044312","000425","26|01|06","01","01","02","40","40","01|01|02|40|40","National","Military Veterans","Administration","Office Accommodation","Non-transfer item","Current","Current payments","Goods and services","Venues and facilities","Venues and facilities","Peace and security","Defence and state security","NAT",0,0,0,0,0,0,0,0,0,0,0,null,null,null,null,null,null,null,null,null,null,null,null,null,null,null,null,null,null,null,null,null,null,null,null,null,null,null,null,null,null,null,null,null,null,{"$f":"Dataset[[#This Row],[2024/25 From - Spending review Topic 1]]+Dataset[[#This Row],[2024/25 From - Spending review Topic 2]]+Dataset[[#This Row],[2024/25 From - Spending review Topic 3]]+Dataset[[#This Row],[2024/25 From - Spending review Topic 4]]+Dataset[[#This Row],[2024/25 From - Other reallocations]]","v":0},{"$f":"Dataset[[#This Row],[2025/26 From - Spending review Topic 1]]+Dataset[[#This Row],[2025/26 From - Spending review Topic 2]]+Dataset[[#This Row],[2025/26 From - Spending review Topic 3]]+Dataset[[#This Row],[2025/26 From - Spending review Topic 4]]+Dataset[[#This Row],[2025/26 From - Other reallocations]]","v":0},{"$f":"Dataset[[#This Row],[2026/27 From - Spending review Topic 1]]+Dataset[[#This Row],[2026/27 From - Spending review Topic 2]]+Dataset[[#This Row],[2026/27 From - Spending review Topic 3]]+Dataset[[#This Row],[2026/27 From - Spending review Topic 4]]+Dataset[[#This Row],[2026/27 From - Other reallocations]]","v":0},{"$f":"Dataset[[#This Row],[2024/25 To - Spending review Topic 1]]+Dataset[[#This Row],[2024/25 To - Spending review Topic 2]]+Dataset[[#This Row],[2024/25 To - Spending review Topic 3]]+Dataset[[#This Row],[2024/25 To - Spending review Topic 4]]+Dataset[[#This Row],[2024/25 To - Other reallocations]]","v":0},{"$f":"Dataset[[#This Row],[2025/26 To - Spending review Topic 1]]+Dataset[[#This Row],[2025/26 To - Spending review Topic 2]]+Dataset[[#This Row],[2025/26 To - Spending review Topic 3]]+Dataset[[#This Row],[2025/26 To - Spending review Topic 4]]+Dataset[[#This Row],[2025/26 To - Other reallocations]]","v":0},{"$f":"Dataset[[#This Row],[2026/27 To - Spending review Topic 1]]+Dataset[[#This Row],[2026/27 To - Spending review Topic 2]]+Dataset[[#This Row],[2026/27 To - Spending review Topic 3]]+Dataset[[#This Row],[2026/27 To - Spending review Topic 4]]+Dataset[[#This Row],[2026/27 To - Other reallocations]]","v":0},{"$f":"Dataset[[#This Row],[2024/25 Reduction]]+Dataset[[#This Row],[2024/25 From - Total]]","v":0},{"$f":"Dataset[[#This Row],[2025/26 Reduction]]+Dataset[[#This Row],[2025/26 From - Total]]","v":0},{"$f":"Dataset[[#This Row],[2026/27 Reduction]]+Dataset[[#This Row],[2026/27 From - Total]]","v":0},{"$f":"Dataset[[#This Row],[2023/24 Reduction]]","v":0},{"$f":"SUM(Dataset[[#This Row],[2024/25 Reduction]],Dataset[[#This Row],[2024/25 From - Total]],Dataset[[#This Row],[2024/25 To - Total]])","v":0},{"$f":"SUM(Dataset[[#This Row],[2025/26 Reduction]],Dataset[[#This Row],[2025/26 From - Total]],Dataset[[#This Row],[2025/26 To - Total]])","v":0},{"$f":"SUM(Dataset[[#This Row],[2026/27 Reduction]],Dataset[[#This Row],[2026/27 From - Total]],Dataset[[#This Row],[2026/27 To - Total]])","v":0},{"$f":"Dataset[[#This Row],[2023/24 Baseline]]+Dataset[[#This Row],[2023/24 Total change]]","v":0},{"$f":"Dataset[[#This Row],[2024/25 Baseline]]+Dataset[[#This Row],[2024/25 Total change]]","v":0},{"$f":"Dataset[[#This Row],[2025/26 Baseline]]+Dataset[[#This Row],[2025/26 Total change]]","v":0},{"$f":"Dataset[[#This Row],[2026/27 Baseline]]+Dataset[[#This Row],[2026/27 Total change]]","v":0}]
["NAT|Non-transfer item","26|Interest (Incl. interest on unitary payments (PPP))","2024_25","MTEF2024",26,1,6,44313,426,"26","01","06","044313","000426","26|01|06","01","01","03","41","41","01|01|03|41|41","National","Military Veterans","Administration","Office Accommodation","Non-transfer item","Current","Current payments","Interest and rent on land","Interest (Incl. interest on unitary payments (PPP))","Interest (Incl. interest on unitary payments (PPP))","Peace and security","Defence and state security","NAT",0,0,0,0,0,0,0,0,0,0,0,null,null,null,null,null,null,null,null,null,null,null,null,null,null,null,null,null,null,null,null,null,null,null,null,null,null,null,null,null,null,null,null,null,null,{"$f":"Dataset[[#This Row],[2024/25 From - Spending review Topic 1]]+Dataset[[#This Row],[2024/25 From - Spending review Topic 2]]+Dataset[[#This Row],[2024/25 From - Spending review Topic 3]]+Dataset[[#This Row],[2024/25 From - Spending review Topic 4]]+Dataset[[#This Row],[2024/25 From - Other reallocations]]","v":0},{"$f":"Dataset[[#This Row],[2025/26 From - Spending review Topic 1]]+Dataset[[#This Row],[2025/26 From - Spending review Topic 2]]+Dataset[[#This Row],[2025/26 From - Spending review Topic 3]]+Dataset[[#This Row],[2025/26 From - Spending review Topic 4]]+Dataset[[#This Row],[2025/26 From - Other reallocations]]","v":0},{"$f":"Dataset[[#This Row],[2026/27 From - Spending review Topic 1]]+Dataset[[#This Row],[2026/27 From - Spending review Topic 2]]+Dataset[[#This Row],[2026/27 From - Spending review Topic 3]]+Dataset[[#This Row],[2026/27 From - Spending review Topic 4]]+Dataset[[#This Row],[2026/27 From - Other reallocations]]","v":0},{"$f":"Dataset[[#This Row],[2024/25 To - Spending review Topic 1]]+Dataset[[#This Row],[2024/25 To - Spending review Topic 2]]+Dataset[[#This Row],[2024/25 To - Spending review Topic 3]]+Dataset[[#This Row],[2024/25 To - Spending review Topic 4]]+Dataset[[#This Row],[2024/25 To - Other reallocations]]","v":0},{"$f":"Dataset[[#This Row],[2025/26 To - Spending review Topic 1]]+Dataset[[#This Row],[2025/26 To - Spending review Topic 2]]+Dataset[[#This Row],[2025/26 To - Spending review Topic 3]]+Dataset[[#This Row],[2025/26 To - Spending review Topic 4]]+Dataset[[#This Row],[2025/26 To - Other reallocations]]","v":0},{"$f":"Dataset[[#This Row],[2026/27 To - Spending review Topic 1]]+Dataset[[#This Row],[2026/27 To - Spending review Topic 2]]+Dataset[[#This Row],[2026/27 To - Spending review Topic 3]]+Dataset[[#This Row],[2026/27 To - Spending review Topic 4]]+Dataset[[#This Row],[2026/27 To - Other reallocations]]","v":0},{"$f":"Dataset[[#This Row],[2024/25 Reduction]]+Dataset[[#This Row],[2024/25 From - Total]]","v":0},{"$f":"Dataset[[#This Row],[2025/26 Reduction]]+Dataset[[#This Row],[2025/26 From - Total]]","v":0},{"$f":"Dataset[[#This Row],[2026/27 Reduction]]+Dataset[[#This Row],[2026/27 From - Total]]","v":0},{"$f":"Dataset[[#This Row],[2023/24 Reduction]]","v":0},{"$f":"SUM(Dataset[[#This Row],[2024/25 Reduction]],Dataset[[#This Row],[2024/25 From - Total]],Dataset[[#This Row],[2024/25 To - Total]])","v":0},{"$f":"SUM(Dataset[[#This Row],[2025/26 Reduction]],Dataset[[#This Row],[2025/26 From - Total]],Dataset[[#This Row],[2025/26 To - Total]])","v":0},{"$f":"SUM(Dataset[[#This Row],[2026/27 Reduction]],Dataset[[#This Row],[2026/27 From - Total]],Dataset[[#This Row],[2026/27 To - Total]])","v":0},{"$f":"Dataset[[#This Row],[2023/24 Baseline]]+Dataset[[#This Row],[2023/24 Total change]]","v":0},{"$f":"Dataset[[#This Row],[2024/25 Baseline]]+Dataset[[#This Row],[2024/25 Total change]]","v":0},{"$f":"Dataset[[#This Row],[2025/26 Baseline]]+Dataset[[#This Row],[2025/26 Total change]]","v":0},{"$f":"Dataset[[#This Row],[2026/27 Baseline]]+Dataset[[#This Row],[2026/27 Total change]]","v":0}]
["NAT|Non-transfer item","26|Rent on land","2024_25","MTEF2024",26,1,6,44314,427,"26","01","06","044314","000427","26|01|06","01","01","03","42","42","01|01|03|42|42","National","Military Veterans","Administration","Office Accommodation","Non-transfer item","Current","Current payments","Interest and rent on land","Rent on land","Rent on land","Peace and security","Defence and state security","NAT",0,0,0,0,0,0,0,0,0,0,0,null,null,null,null,null,null,null,null,null,null,null,null,null,null,null,null,null,null,null,null,null,null,null,null,null,null,null,null,null,null,null,null,null,null,{"$f":"Dataset[[#This Row],[2024/25 From - Spending review Topic 1]]+Dataset[[#This Row],[2024/25 From - Spending review Topic 2]]+Dataset[[#This Row],[2024/25 From - Spending review Topic 3]]+Dataset[[#This Row],[2024/25 From - Spending review Topic 4]]+Dataset[[#This Row],[2024/25 From - Other reallocations]]","v":0},{"$f":"Dataset[[#This Row],[2025/26 From - Spending review Topic 1]]+Dataset[[#This Row],[2025/26 From - Spending review Topic 2]]+Dataset[[#This Row],[2025/26 From - Spending review Topic 3]]+Dataset[[#This Row],[2025/26 From - Spending review Topic 4]]+Dataset[[#This Row],[2025/26 From - Other reallocations]]","v":0},{"$f":"Dataset[[#This Row],[2026/27 From - Spending review Topic 1]]+Dataset[[#This Row],[2026/27 From - Spending review Topic 2]]+Dataset[[#This Row],[2026/27 From - Spending review Topic 3]]+Dataset[[#This Row],[2026/27 From - Spending review Topic 4]]+Dataset[[#This Row],[2026/27 From - Other reallocations]]","v":0},{"$f":"Dataset[[#This Row],[2024/25 To - Spending review Topic 1]]+Dataset[[#This Row],[2024/25 To - Spending review Topic 2]]+Dataset[[#This Row],[2024/25 To - Spending review Topic 3]]+Dataset[[#This Row],[2024/25 To - Spending review Topic 4]]+Dataset[[#This Row],[2024/25 To - Other reallocations]]","v":0},{"$f":"Dataset[[#This Row],[2025/26 To - Spending review Topic 1]]+Dataset[[#This Row],[2025/26 To - Spending review Topic 2]]+Dataset[[#This Row],[2025/26 To - Spending review Topic 3]]+Dataset[[#This Row],[2025/26 To - Spending review Topic 4]]+Dataset[[#This Row],[2025/26 To - Other reallocations]]","v":0},{"$f":"Dataset[[#This Row],[2026/27 To - Spending review Topic 1]]+Dataset[[#This Row],[2026/27 To - Spending review Topic 2]]+Dataset[[#This Row],[2026/27 To - Spending review Topic 3]]+Dataset[[#This Row],[2026/27 To - Spending review Topic 4]]+Dataset[[#This Row],[2026/27 To - Other reallocations]]","v":0},{"$f":"Dataset[[#This Row],[2024/25 Reduction]]+Dataset[[#This Row],[2024/25 From - Total]]","v":0},{"$f":"Dataset[[#This Row],[2025/26 Reduction]]+Dataset[[#This Row],[2025/26 From - Total]]","v":0},{"$f":"Dataset[[#This Row],[2026/27 Reduction]]+Dataset[[#This Row],[2026/27 From - Total]]","v":0},{"$f":"Dataset[[#This Row],[2023/24 Reduction]]","v":0},{"$f":"SUM(Dataset[[#This Row],[2024/25 Reduction]],Dataset[[#This Row],[2024/25 From - Total]],Dataset[[#This Row],[2024/25 To - Total]])","v":0},{"$f":"SUM(Dataset[[#This Row],[2025/26 Reduction]],Dataset[[#This Row],[2025/26 From - Total]],Dataset[[#This Row],[2025/26 To - Total]])","v":0},{"$f":"SUM(Dataset[[#This Row],[2026/27 Reduction]],Dataset[[#This Row],[2026/27 From - Total]],Dataset[[#This Row],[2026/27 To - Total]])","v":0},{"$f":"Dataset[[#This Row],[2023/24 Baseline]]+Dataset[[#This Row],[2023/24 Total change]]","v":0},{"$f":"Dataset[[#This Row],[2024/25 Baseline]]+Dataset[[#This Row],[2024/25 Total change]]","v":0},{"$f":"Dataset[[#This Row],[2025/26 Baseline]]+Dataset[[#This Row],[2025/26 Total change]]","v":0},{"$f":"Dataset[[#This Row],[2026/27 Baseline]]+Dataset[[#This Row],[2026/27 Total change]]","v":0}]
["NAT|Non-transfer item","26|Provincial Revenue Funds","2024_25","MTEF2024",26,1,6,44315,428,"26","01","06","044315","000428","26|01|06","01","02","04","43","43","01|02|04|43|43","National","Military Veterans","Administration","Office Accommodation","Non-transfer item","Current","Transfers and subsidies","Provinces and municipalities","Provinces","Provincial Revenue Funds","Peace and security","Defence and state security","NAT",0,0,0,0,0,0,0,0,0,0,0,null,null,null,null,null,null,null,null,null,null,null,null,null,null,null,null,null,null,null,null,null,null,null,null,null,null,null,null,null,null,null,null,null,null,{"$f":"Dataset[[#This Row],[2024/25 From - Spending review Topic 1]]+Dataset[[#This Row],[2024/25 From - Spending review Topic 2]]+Dataset[[#This Row],[2024/25 From - Spending review Topic 3]]+Dataset[[#This Row],[2024/25 From - Spending review Topic 4]]+Dataset[[#This Row],[2024/25 From - Other reallocations]]","v":0},{"$f":"Dataset[[#This Row],[2025/26 From - Spending review Topic 1]]+Dataset[[#This Row],[2025/26 From - Spending review Topic 2]]+Dataset[[#This Row],[2025/26 From - Spending review Topic 3]]+Dataset[[#This Row],[2025/26 From - Spending review Topic 4]]+Dataset[[#This Row],[2025/26 From - Other reallocations]]","v":0},{"$f":"Dataset[[#This Row],[2026/27 From - Spending review Topic 1]]+Dataset[[#This Row],[2026/27 From - Spending review Topic 2]]+Dataset[[#This Row],[2026/27 From - Spending review Topic 3]]+Dataset[[#This Row],[2026/27 From - Spending review Topic 4]]+Dataset[[#This Row],[2026/27 From - Other reallocations]]","v":0},{"$f":"Dataset[[#This Row],[2024/25 To - Spending review Topic 1]]+Dataset[[#This Row],[2024/25 To - Spending review Topic 2]]+Dataset[[#This Row],[2024/25 To - Spending review Topic 3]]+Dataset[[#This Row],[2024/25 To - Spending review Topic 4]]+Dataset[[#This Row],[2024/25 To - Other reallocations]]","v":0},{"$f":"Dataset[[#This Row],[2025/26 To - Spending review Topic 1]]+Dataset[[#This Row],[2025/26 To - Spending review Topic 2]]+Dataset[[#This Row],[2025/26 To - Spending review Topic 3]]+Dataset[[#This Row],[2025/26 To - Spending review Topic 4]]+Dataset[[#This Row],[2025/26 To - Other reallocations]]","v":0},{"$f":"Dataset[[#This Row],[2026/27 To - Spending review Topic 1]]+Dataset[[#This Row],[2026/27 To - Spending review Topic 2]]+Dataset[[#This Row],[2026/27 To - Spending review Topic 3]]+Dataset[[#This Row],[2026/27 To - Spending review Topic 4]]+Dataset[[#This Row],[2026/27 To - Other reallocations]]","v":0},{"$f":"Dataset[[#This Row],[2024/25 Reduction]]+Dataset[[#This Row],[2024/25 From - Total]]","v":0},{"$f":"Dataset[[#This Row],[2025/26 Reduction]]+Dataset[[#This Row],[2025/26 From - Total]]","v":0},{"$f":"Dataset[[#This Row],[2026/27 Reduction]]+Dataset[[#This Row],[2026/27 From - Total]]","v":0},{"$f":"Dataset[[#This Row],[2023/24 Reduction]]","v":0},{"$f":"SUM(Dataset[[#This Row],[2024/25 Reduction]],Dataset[[#This Row],[2024/25 From - Total]],Dataset[[#This Row],[2024/25 To - Total]])","v":0},{"$f":"SUM(Dataset[[#This Row],[2025/26 Reduction]],Dataset[[#This Row],[2025/26 From - Total]],Dataset[[#This Row],[2025/26 To - Total]])","v":0},{"$f":"SUM(Dataset[[#This Row],[2026/27 Reduction]],Dataset[[#This Row],[2026/27 From - Total]],Dataset[[#This Row],[2026/27 To - Total]])","v":0},{"$f":"Dataset[[#This Row],[2023/24 Baseline]]+Dataset[[#This Row],[2023/24 Total change]]","v":0},{"$f":"Dataset[[#This Row],[2024/25 Baseline]]+Dataset[[#This Row],[2024/25 Total change]]","v":0},{"$f":"Dataset[[#This Row],[2025/26 Baseline]]+Dataset[[#This Row],[2025/26 Total change]]","v":0},{"$f":"Dataset[[#This Row],[2026/27 Baseline]]+Dataset[[#This Row],[2026/27 Total change]]","v":0}]
["NAT|Non-transfer item","26|Provincial agencies and funds","2024_25","MTEF2024",26,1,6,44316,429,"26","01","06","044316","000429","26|01|06","01","02","04","43","44","01|02|04|43|44","National","Military Veterans","Administration","Office Accommodation","Non-transfer item","Current","Transfers and subsidies","Provinces and municipalities","Provinces","Provincial agencies and funds","Peace and security","Defence and state security","NAT",0,0,0,0,0,0,0,0,0,0,0,null,null,null,null,null,null,null,null,null,null,null,null,null,null,null,null,null,null,null,null,null,null,null,null,null,null,null,null,null,null,null,null,null,null,{"$f":"Dataset[[#This Row],[2024/25 From - Spending review Topic 1]]+Dataset[[#This Row],[2024/25 From - Spending review Topic 2]]+Dataset[[#This Row],[2024/25 From - Spending review Topic 3]]+Dataset[[#This Row],[2024/25 From - Spending review Topic 4]]+Dataset[[#This Row],[2024/25 From - Other reallocations]]","v":0},{"$f":"Dataset[[#This Row],[2025/26 From - Spending review Topic 1]]+Dataset[[#This Row],[2025/26 From - Spending review Topic 2]]+Dataset[[#This Row],[2025/26 From - Spending review Topic 3]]+Dataset[[#This Row],[2025/26 From - Spending review Topic 4]]+Dataset[[#This Row],[2025/26 From - Other reallocations]]","v":0},{"$f":"Dataset[[#This Row],[2026/27 From - Spending review Topic 1]]+Dataset[[#This Row],[2026/27 From - Spending review Topic 2]]+Dataset[[#This Row],[2026/27 From - Spending review Topic 3]]+Dataset[[#This Row],[2026/27 From - Spending review Topic 4]]+Dataset[[#This Row],[2026/27 From - Other reallocations]]","v":0},{"$f":"Dataset[[#This Row],[2024/25 To - Spending review Topic 1]]+Dataset[[#This Row],[2024/25 To - Spending review Topic 2]]+Dataset[[#This Row],[2024/25 To - Spending review Topic 3]]+Dataset[[#This Row],[2024/25 To - Spending review Topic 4]]+Dataset[[#This Row],[2024/25 To - Other reallocations]]","v":0},{"$f":"Dataset[[#This Row],[2025/26 To - Spending review Topic 1]]+Dataset[[#This Row],[2025/26 To - Spending review Topic 2]]+Dataset[[#This Row],[2025/26 To - Spending review Topic 3]]+Dataset[[#This Row],[2025/26 To - Spending review Topic 4]]+Dataset[[#This Row],[2025/26 To - Other reallocations]]","v":0},{"$f":"Dataset[[#This Row],[2026/27 To - Spending review Topic 1]]+Dataset[[#This Row],[2026/27 To - Spending review Topic 2]]+Dataset[[#This Row],[2026/27 To - Spending review Topic 3]]+Dataset[[#This Row],[2026/27 To - Spending review Topic 4]]+Dataset[[#This Row],[2026/27 To - Other reallocations]]","v":0},{"$f":"Dataset[[#This Row],[2024/25 Reduction]]+Dataset[[#This Row],[2024/25 From - Total]]","v":0},{"$f":"Dataset[[#This Row],[2025/26 Reduction]]+Dataset[[#This Row],[2025/26 From - Total]]","v":0},{"$f":"Dataset[[#This Row],[2026/27 Reduction]]+Dataset[[#This Row],[2026/27 From - Total]]","v":0},{"$f":"Dataset[[#This Row],[2023/24 Reduction]]","v":0},{"$f":"SUM(Dataset[[#This Row],[2024/25 Reduction]],Dataset[[#This Row],[2024/25 From - Total]],Dataset[[#This Row],[2024/25 To - Total]])","v":0},{"$f":"SUM(Dataset[[#This Row],[2025/26 Reduction]],Dataset[[#This Row],[2025/26 From - Total]],Dataset[[#This Row],[2025/26 To - Total]])","v":0},{"$f":"SUM(Dataset[[#This Row],[2026/27 Reduction]],Dataset[[#This Row],[2026/27 From - Total]],Dataset[[#This Row],[2026/27 To - Total]])","v":0},{"$f":"Dataset[[#This Row],[2023/24 Baseline]]+Dataset[[#This Row],[2023/24 Total change]]","v":0},{"$f":"Dataset[[#This Row],[2024/25 Baseline]]+Dataset[[#This Row],[2024/25 Total change]]","v":0},{"$f":"Dataset[[#This Row],[2025/26 Baseline]]+Dataset[[#This Row],[2025/26 Total change]]","v":0},{"$f":"Dataset[[#This Row],[2026/27 Baseline]]+Dataset[[#This Row],[2026/27 Total change]]","v":0}]
["NAT|Non-transfer item","26|Municipal bank accounts","2024_25","MTEF2024",26,1,6,44317,430,"26","01","06","044317","000430","26|01|06","01","02","04","44","45","01|02|04|44|45","National","Military Veterans","Administration","Office Accommodation","Non-transfer item","Current","Transfers and subsidies","Provinces and municipalities","Municipalities","Municipal bank accounts","Peace and security","Defence and state security","NAT",0,0,0,0,0,0,0,0,0,0,0,null,null,null,null,null,null,null,null,null,null,null,null,null,null,null,null,null,null,null,null,null,null,null,null,null,null,null,null,null,null,null,null,null,null,{"$f":"Dataset[[#This Row],[2024/25 From - Spending review Topic 1]]+Dataset[[#This Row],[2024/25 From - Spending review Topic 2]]+Dataset[[#This Row],[2024/25 From - Spending review Topic 3]]+Dataset[[#This Row],[2024/25 From - Spending review Topic 4]]+Dataset[[#This Row],[2024/25 From - Other reallocations]]","v":0},{"$f":"Dataset[[#This Row],[2025/26 From - Spending review Topic 1]]+Dataset[[#This Row],[2025/26 From - Spending review Topic 2]]+Dataset[[#This Row],[2025/26 From - Spending review Topic 3]]+Dataset[[#This Row],[2025/26 From - Spending review Topic 4]]+Dataset[[#This Row],[2025/26 From - Other reallocations]]","v":0},{"$f":"Dataset[[#This Row],[2026/27 From - Spending review Topic 1]]+Dataset[[#This Row],[2026/27 From - Spending review Topic 2]]+Dataset[[#This Row],[2026/27 From - Spending review Topic 3]]+Dataset[[#This Row],[2026/27 From - Spending review Topic 4]]+Dataset[[#This Row],[2026/27 From - Other reallocations]]","v":0},{"$f":"Dataset[[#This Row],[2024/25 To - Spending review Topic 1]]+Dataset[[#This Row],[2024/25 To - Spending review Topic 2]]+Dataset[[#This Row],[2024/25 To - Spending review Topic 3]]+Dataset[[#This Row],[2024/25 To - Spending review Topic 4]]+Dataset[[#This Row],[2024/25 To - Other reallocations]]","v":0},{"$f":"Dataset[[#This Row],[2025/26 To - Spending review Topic 1]]+Dataset[[#This Row],[2025/26 To - Spending review Topic 2]]+Dataset[[#This Row],[2025/26 To - Spending review Topic 3]]+Dataset[[#This Row],[2025/26 To - Spending review Topic 4]]+Dataset[[#This Row],[2025/26 To - Other reallocations]]","v":0},{"$f":"Dataset[[#This Row],[2026/27 To - Spending review Topic 1]]+Dataset[[#This Row],[2026/27 To - Spending review Topic 2]]+Dataset[[#This Row],[2026/27 To - Spending review Topic 3]]+Dataset[[#This Row],[2026/27 To - Spending review Topic 4]]+Dataset[[#This Row],[2026/27 To - Other reallocations]]","v":0},{"$f":"Dataset[[#This Row],[2024/25 Reduction]]+Dataset[[#This Row],[2024/25 From - Total]]","v":0},{"$f":"Dataset[[#This Row],[2025/26 Reduction]]+Dataset[[#This Row],[2025/26 From - Total]]","v":0},{"$f":"Dataset[[#This Row],[2026/27 Reduction]]+Dataset[[#This Row],[2026/27 From - Total]]","v":0},{"$f":"Dataset[[#This Row],[2023/24 Reduction]]","v":0},{"$f":"SUM(Dataset[[#This Row],[2024/25 Reduction]],Dataset[[#This Row],[2024/25 From - Total]],Dataset[[#This Row],[2024/25 To - Total]])","v":0},{"$f":"SUM(Dataset[[#This Row],[2025/26 Reduction]],Dataset[[#This Row],[2025/26 From - Total]],Dataset[[#This Row],[2025/26 To - Total]])","v":0},{"$f":"SUM(Dataset[[#This Row],[2026/27 Reduction]],Dataset[[#This Row],[2026/27 From - Total]],Dataset[[#This Row],[2026/27 To - Total]])","v":0},{"$f":"Dataset[[#This Row],[2023/24 Baseline]]+Dataset[[#This Row],[2023/24 Total change]]","v":0},{"$f":"Dataset[[#This Row],[2024/25 Baseline]]+Dataset[[#This Row],[2024/25 Total change]]","v":0},{"$f":"Dataset[[#This Row],[2025/26 Baseline]]+Dataset[[#This Row],[2025/26 Total change]]","v":0},{"$f":"Dataset[[#This Row],[2026/27 Baseline]]+Dataset[[#This Row],[2026/27 Total change]]","v":0}]
["NAT|Non-transfer item","26|Municipal agencies and funds","2024_25","MTEF2024",26,1,6,44318,431,"26","01","06","044318","000431","26|01|06","01","02","04","44","46","01|02|04|44|46","National","Military Veterans","Administration","Office Accommodation","Non-transfer item","Current","Transfers and subsidies","Provinces and municipalities","Municipalities","Municipal agencies and funds","Peace and security","Defence and state security","NAT",0,0,0,0,0,0,0,0,0,0,0,null,null,null,null,null,null,null,null,null,null,null,null,null,null,null,null,null,null,null,null,null,null,null,null,null,null,null,null,null,null,null,null,null,null,{"$f":"Dataset[[#This Row],[2024/25 From - Spending review Topic 1]]+Dataset[[#This Row],[2024/25 From - Spending review Topic 2]]+Dataset[[#This Row],[2024/25 From - Spending review Topic 3]]+Dataset[[#This Row],[2024/25 From - Spending review Topic 4]]+Dataset[[#This Row],[2024/25 From - Other reallocations]]","v":0},{"$f":"Dataset[[#This Row],[2025/26 From - Spending review Topic 1]]+Dataset[[#This Row],[2025/26 From - Spending review Topic 2]]+Dataset[[#This Row],[2025/26 From - Spending review Topic 3]]+Dataset[[#This Row],[2025/26 From - Spending review Topic 4]]+Dataset[[#This Row],[2025/26 From - Other reallocations]]","v":0},{"$f":"Dataset[[#This Row],[2026/27 From - Spending review Topic 1]]+Dataset[[#This Row],[2026/27 From - Spending review Topic 2]]+Dataset[[#This Row],[2026/27 From - Spending review Topic 3]]+Dataset[[#This Row],[2026/27 From - Spending review Topic 4]]+Dataset[[#This Row],[2026/27 From - Other reallocations]]","v":0},{"$f":"Dataset[[#This Row],[2024/25 To - Spending review Topic 1]]+Dataset[[#This Row],[2024/25 To - Spending review Topic 2]]+Dataset[[#This Row],[2024/25 To - Spending review Topic 3]]+Dataset[[#This Row],[2024/25 To - Spending review Topic 4]]+Dataset[[#This Row],[2024/25 To - Other reallocations]]","v":0},{"$f":"Dataset[[#This Row],[2025/26 To - Spending review Topic 1]]+Dataset[[#This Row],[2025/26 To - Spending review Topic 2]]+Dataset[[#This Row],[2025/26 To - Spending review Topic 3]]+Dataset[[#This Row],[2025/26 To - Spending review Topic 4]]+Dataset[[#This Row],[2025/26 To - Other reallocations]]","v":0},{"$f":"Dataset[[#This Row],[2026/27 To - Spending review Topic 1]]+Dataset[[#This Row],[2026/27 To - Spending review Topic 2]]+Dataset[[#This Row],[2026/27 To - Spending review Topic 3]]+Dataset[[#This Row],[2026/27 To - Spending review Topic 4]]+Dataset[[#This Row],[2026/27 To - Other reallocations]]","v":0},{"$f":"Dataset[[#This Row],[2024/25 Reduction]]+Dataset[[#This Row],[2024/25 From - Total]]","v":0},{"$f":"Dataset[[#This Row],[2025/26 Reduction]]+Dataset[[#This Row],[2025/26 From - Total]]","v":0},{"$f":"Dataset[[#This Row],[2026/27 Reduction]]+Dataset[[#This Row],[2026/27 From - Total]]","v":0},{"$f":"Dataset[[#This Row],[2023/24 Reduction]]","v":0},{"$f":"SUM(Dataset[[#This Row],[2024/25 Reduction]],Dataset[[#This Row],[2024/25 From - Total]],Dataset[[#This Row],[2024/25 To - Total]])","v":0},{"$f":"SUM(Dataset[[#This Row],[2025/26 Reduction]],Dataset[[#This Row],[2025/26 From - Total]],Dataset[[#This Row],[2025/26 To - Total]])","v":0},{"$f":"SUM(Dataset[[#This Row],[2026/27 Reduction]],Dataset[[#This Row],[2026/27 From - Total]],Dataset[[#This Row],[2026/27 To - Total]])","v":0},{"$f":"Dataset[[#This Row],[2023/24 Baseline]]+Dataset[[#This Row],[2023/24 Total change]]","v":0},{"$f":"Dataset[[#This Row],[2024/25 Baseline]]+Dataset[[#This Row],[2024/25 Total change]]","v":0},{"$f":"Dataset[[#This Row],[2025/26 Baseline]]+Dataset[[#This Row],[2025/26 Total change]]","v":0},{"$f":"Dataset[[#This Row],[2026/27 Baseline]]+Dataset[[#This Row],[2026/27 Total change]]","v":0}]
["NAT|Non-transfer item","26|Social security funds","2024_25","MTEF2024",26,1,6,44319,432,"26","01","06","044319","000432","26|01|06","01","02","05","45","47","01|02|05|45|47","National","Military Veterans","Administration","Office Accommodation","Non-transfer item","Current","Transfers and subsidies","Departmental agencies and accounts","Social security funds","Social security funds","Peace and security","Defence and state security","NAT",0,0,0,0,0,0,0,0,0,0,0,null,null,null,null,null,null,null,null,null,null,null,null,null,null,null,null,null,null,null,null,null,null,null,null,null,null,null,null,null,null,null,null,null,null,{"$f":"Dataset[[#This Row],[2024/25 From - Spending review Topic 1]]+Dataset[[#This Row],[2024/25 From - Spending review Topic 2]]+Dataset[[#This Row],[2024/25 From - Spending review Topic 3]]+Dataset[[#This Row],[2024/25 From - Spending review Topic 4]]+Dataset[[#This Row],[2024/25 From - Other reallocations]]","v":0},{"$f":"Dataset[[#This Row],[2025/26 From - Spending review Topic 1]]+Dataset[[#This Row],[2025/26 From - Spending review Topic 2]]+Dataset[[#This Row],[2025/26 From - Spending review Topic 3]]+Dataset[[#This Row],[2025/26 From - Spending review Topic 4]]+Dataset[[#This Row],[2025/26 From - Other reallocations]]","v":0},{"$f":"Dataset[[#This Row],[2026/27 From - Spending review Topic 1]]+Dataset[[#This Row],[2026/27 From - Spending review Topic 2]]+Dataset[[#This Row],[2026/27 From - Spending review Topic 3]]+Dataset[[#This Row],[2026/27 From - Spending review Topic 4]]+Dataset[[#This Row],[2026/27 From - Other reallocations]]","v":0},{"$f":"Dataset[[#This Row],[2024/25 To - Spending review Topic 1]]+Dataset[[#This Row],[2024/25 To - Spending review Topic 2]]+Dataset[[#This Row],[2024/25 To - Spending review Topic 3]]+Dataset[[#This Row],[2024/25 To - Spending review Topic 4]]+Dataset[[#This Row],[2024/25 To - Other reallocations]]","v":0},{"$f":"Dataset[[#This Row],[2025/26 To - Spending review Topic 1]]+Dataset[[#This Row],[2025/26 To - Spending review Topic 2]]+Dataset[[#This Row],[2025/26 To - Spending review Topic 3]]+Dataset[[#This Row],[2025/26 To - Spending review Topic 4]]+Dataset[[#This Row],[2025/26 To - Other reallocations]]","v":0},{"$f":"Dataset[[#This Row],[2026/27 To - Spending review Topic 1]]+Dataset[[#This Row],[2026/27 To - Spending review Topic 2]]+Dataset[[#This Row],[2026/27 To - Spending review Topic 3]]+Dataset[[#This Row],[2026/27 To - Spending review Topic 4]]+Dataset[[#This Row],[2026/27 To - Other reallocations]]","v":0},{"$f":"Dataset[[#This Row],[2024/25 Reduction]]+Dataset[[#This Row],[2024/25 From - Total]]","v":0},{"$f":"Dataset[[#This Row],[2025/26 Reduction]]+Dataset[[#This Row],[2025/26 From - Total]]","v":0},{"$f":"Dataset[[#This Row],[2026/27 Reduction]]+Dataset[[#This Row],[2026/27 From - Total]]","v":0},{"$f":"Dataset[[#This Row],[2023/24 Reduction]]","v":0},{"$f":"SUM(Dataset[[#This Row],[2024/25 Reduction]],Dataset[[#This Row],[2024/25 From - Total]],Dataset[[#This Row],[2024/25 To - Total]])","v":0},{"$f":"SUM(Dataset[[#This Row],[2025/26 Reduction]],Dataset[[#This Row],[2025/26 From - Total]],Dataset[[#This Row],[2025/26 To - Total]])","v":0},{"$f":"SUM(Dataset[[#This Row],[2026/27 Reduction]],Dataset[[#This Row],[2026/27 From - Total]],Dataset[[#This Row],[2026/27 To - Total]])","v":0},{"$f":"Dataset[[#This Row],[2023/24 Baseline]]+Dataset[[#This Row],[2023/24 Total change]]","v":0},{"$f":"Dataset[[#This Row],[2024/25 Baseline]]+Dataset[[#This Row],[2024/25 Total change]]","v":0},{"$f":"Dataset[[#This Row],[2025/26 Baseline]]+Dataset[[#This Row],[2025/26 Total change]]","v":0},{"$f":"Dataset[[#This Row],[2026/27 Baseline]]+Dataset[[#This Row],[2026/27 Total change]]","v":0}]
["NAT|Non-transfer item","26|Departmental agencies (non-business entities)","2024_25","MTEF2024",26,1,6,44320,433,"26","01","06","044320","000433","26|01|06","01","02","05","46","48","01|02|05|46|48","National","Military Veterans","Administration","Office Accommodation","Non-transfer item","Current","Transfers and subsidies","Departmental agencies and accounts","Departmental agencies (non-business entities)","Departmental agencies (non-business entities)","Peace and security","Defence and state security","NAT",0,0,0,0,0,0,0,0,0,0,0,null,null,null,null,null,null,null,null,null,null,null,null,null,null,null,null,null,null,null,null,null,null,null,null,null,null,null,null,null,null,null,null,null,null,{"$f":"Dataset[[#This Row],[2024/25 From - Spending review Topic 1]]+Dataset[[#This Row],[2024/25 From - Spending review Topic 2]]+Dataset[[#This Row],[2024/25 From - Spending review Topic 3]]+Dataset[[#This Row],[2024/25 From - Spending review Topic 4]]+Dataset[[#This Row],[2024/25 From - Other reallocations]]","v":0},{"$f":"Dataset[[#This Row],[2025/26 From - Spending review Topic 1]]+Dataset[[#This Row],[2025/26 From - Spending review Topic 2]]+Dataset[[#This Row],[2025/26 From - Spending review Topic 3]]+Dataset[[#This Row],[2025/26 From - Spending review Topic 4]]+Dataset[[#This Row],[2025/26 From - Other reallocations]]","v":0},{"$f":"Dataset[[#This Row],[2026/27 From - Spending review Topic 1]]+Dataset[[#This Row],[2026/27 From - Spending review Topic 2]]+Dataset[[#This Row],[2026/27 From - Spending review Topic 3]]+Dataset[[#This Row],[2026/27 From - Spending review Topic 4]]+Dataset[[#This Row],[2026/27 From - Other reallocations]]","v":0},{"$f":"Dataset[[#This Row],[2024/25 To - Spending review Topic 1]]+Dataset[[#This Row],[2024/25 To - Spending review Topic 2]]+Dataset[[#This Row],[2024/25 To - Spending review Topic 3]]+Dataset[[#This Row],[2024/25 To - Spending review Topic 4]]+Dataset[[#This Row],[2024/25 To - Other reallocations]]","v":0},{"$f":"Dataset[[#This Row],[2025/26 To - Spending review Topic 1]]+Dataset[[#This Row],[2025/26 To - Spending review Topic 2]]+Dataset[[#This Row],[2025/26 To - Spending review Topic 3]]+Dataset[[#This Row],[2025/26 To - Spending review Topic 4]]+Dataset[[#This Row],[2025/26 To - Other reallocations]]","v":0},{"$f":"Dataset[[#This Row],[2026/27 To - Spending review Topic 1]]+Dataset[[#This Row],[2026/27 To - Spending review Topic 2]]+Dataset[[#This Row],[2026/27 To - Spending review Topic 3]]+Dataset[[#This Row],[2026/27 To - Spending review Topic 4]]+Dataset[[#This Row],[2026/27 To - Other reallocations]]","v":0},{"$f":"Dataset[[#This Row],[2024/25 Reduction]]+Dataset[[#This Row],[2024/25 From - Total]]","v":0},{"$f":"Dataset[[#This Row],[2025/26 Reduction]]+Dataset[[#This Row],[2025/26 From - Total]]","v":0},{"$f":"Dataset[[#This Row],[2026/27 Reduction]]+Dataset[[#This Row],[2026/27 From - Total]]","v":0},{"$f":"Dataset[[#This Row],[2023/24 Reduction]]","v":0},{"$f":"SUM(Dataset[[#This Row],[2024/25 Reduction]],Dataset[[#This Row],[2024/25 From - Total]],Dataset[[#This Row],[2024/25 To - Total]])","v":0},{"$f":"SUM(Dataset[[#This Row],[2025/26 Reduction]],Dataset[[#This Row],[2025/26 From - Total]],Dataset[[#This Row],[2025/26 To - Total]])","v":0},{"$f":"SUM(Dataset[[#This Row],[2026/27 Reduction]],Dataset[[#This Row],[2026/27 From - Total]],Dataset[[#This Row],[2026/27 To - Total]])","v":0},{"$f":"Dataset[[#This Row],[2023/24 Baseline]]+Dataset[[#This Row],[2023/24 Total change]]","v":0},{"$f":"Dataset[[#This Row],[2024/25 Baseline]]+Dataset[[#This Row],[2024/25 Total change]]","v":0},{"$f":"Dataset[[#This Row],[2025/26 Baseline]]+Dataset[[#This Row],[2025/26 Total change]]","v":0},{"$f":"Dataset[[#This Row],[2026/27 Baseline]]+Dataset[[#This Row],[2026/27 Total change]]","v":0}]
["NAT|Non-transfer item","26|Higher education institutions","2024_25","MTEF2024",26,1,6,44321,434,"26","01","06","044321","000434","26|01|06","01","02","06","47","49","01|02|06|47|49","National","Military Veterans","Administration","Office Accommodation","Non-transfer item","Current","Transfers and subsidies","Higher education institutions","Higher education institutions","Higher education institutions","Peace and security","Defence and state security","NAT",0,0,0,0,0,0,0,0,0,0,0,null,null,null,null,null,null,null,null,null,null,null,null,null,null,null,null,null,null,null,null,null,null,null,null,null,null,null,null,null,null,null,null,null,null,{"$f":"Dataset[[#This Row],[2024/25 From - Spending review Topic 1]]+Dataset[[#This Row],[2024/25 From - Spending review Topic 2]]+Dataset[[#This Row],[2024/25 From - Spending review Topic 3]]+Dataset[[#This Row],[2024/25 From - Spending review Topic 4]]+Dataset[[#This Row],[2024/25 From - Other reallocations]]","v":0},{"$f":"Dataset[[#This Row],[2025/26 From - Spending review Topic 1]]+Dataset[[#This Row],[2025/26 From - Spending review Topic 2]]+Dataset[[#This Row],[2025/26 From - Spending review Topic 3]]+Dataset[[#This Row],[2025/26 From - Spending review Topic 4]]+Dataset[[#This Row],[2025/26 From - Other reallocations]]","v":0},{"$f":"Dataset[[#This Row],[2026/27 From - Spending review Topic 1]]+Dataset[[#This Row],[2026/27 From - Spending review Topic 2]]+Dataset[[#This Row],[2026/27 From - Spending review Topic 3]]+Dataset[[#This Row],[2026/27 From - Spending review Topic 4]]+Dataset[[#This Row],[2026/27 From - Other reallocations]]","v":0},{"$f":"Dataset[[#This Row],[2024/25 To - Spending review Topic 1]]+Dataset[[#This Row],[2024/25 To - Spending review Topic 2]]+Dataset[[#This Row],[2024/25 To - Spending review Topic 3]]+Dataset[[#This Row],[2024/25 To - Spending review Topic 4]]+Dataset[[#This Row],[2024/25 To - Other reallocations]]","v":0},{"$f":"Dataset[[#This Row],[2025/26 To - Spending review Topic 1]]+Dataset[[#This Row],[2025/26 To - Spending review Topic 2]]+Dataset[[#This Row],[2025/26 To - Spending review Topic 3]]+Dataset[[#This Row],[2025/26 To - Spending review Topic 4]]+Dataset[[#This Row],[2025/26 To - Other reallocations]]","v":0},{"$f":"Dataset[[#This Row],[2026/27 To - Spending review Topic 1]]+Dataset[[#This Row],[2026/27 To - Spending review Topic 2]]+Dataset[[#This Row],[2026/27 To - Spending review Topic 3]]+Dataset[[#This Row],[2026/27 To - Spending review Topic 4]]+Dataset[[#This Row],[2026/27 To - Other reallocations]]","v":0},{"$f":"Dataset[[#This Row],[2024/25 Reduction]]+Dataset[[#This Row],[2024/25 From - Total]]","v":0},{"$f":"Dataset[[#This Row],[2025/26 Reduction]]+Dataset[[#This Row],[2025/26 From - Total]]","v":0},{"$f":"Dataset[[#This Row],[2026/27 Reduction]]+Dataset[[#This Row],[2026/27 From - Total]]","v":0},{"$f":"Dataset[[#This Row],[2023/24 Reduction]]","v":0},{"$f":"SUM(Dataset[[#This Row],[2024/25 Reduction]],Dataset[[#This Row],[2024/25 From - Total]],Dataset[[#This Row],[2024/25 To - Total]])","v":0},{"$f":"SUM(Dataset[[#This Row],[2025/26 Reduction]],Dataset[[#This Row],[2025/26 From - Total]],Dataset[[#This Row],[2025/26 To - Total]])","v":0},{"$f":"SUM(Dataset[[#This Row],[2026/27 Reduction]],Dataset[[#This Row],[2026/27 From - Total]],Dataset[[#This Row],[2026/27 To - Total]])","v":0},{"$f":"Dataset[[#This Row],[2023/24 Baseline]]+Dataset[[#This Row],[2023/24 Total change]]","v":0},{"$f":"Dataset[[#This Row],[2024/25 Baseline]]+Dataset[[#This Row],[2024/25 Total change]]","v":0},{"$f":"Dataset[[#This Row],[2025/26 Baseline]]+Dataset[[#This Row],[2025/26 Total change]]","v":0},{"$f":"Dataset[[#This Row],[2026/27 Baseline]]+Dataset[[#This Row],[2026/27 Total change]]","v":0}]
["NAT|Non-transfer item","26|Foreign governments and international organisations","2024_25","MTEF2024",26,1,6,44322,435,"26","01","06","044322","000435","26|01|06","01","02","07","48","50","01|02|07|48|50","National","Military Veterans","Administration","Office Accommodation","Non-transfer item","Current","Transfers and subsidies","Foreign governments and international organisations","Foreign governments and international organisations","Foreign governments and international organisations","Peace and security","Defence and state security","NAT",0,0,0,0,0,0,0,0,0,0,0,null,null,null,null,null,null,null,null,null,null,null,null,null,null,null,null,null,null,null,null,null,null,null,null,null,null,null,null,null,null,null,null,null,null,{"$f":"Dataset[[#This Row],[2024/25 From - Spending review Topic 1]]+Dataset[[#This Row],[2024/25 From - Spending review Topic 2]]+Dataset[[#This Row],[2024/25 From - Spending review Topic 3]]+Dataset[[#This Row],[2024/25 From - Spending review Topic 4]]+Dataset[[#This Row],[2024/25 From - Other reallocations]]","v":0},{"$f":"Dataset[[#This Row],[2025/26 From - Spending review Topic 1]]+Dataset[[#This Row],[2025/26 From - Spending review Topic 2]]+Dataset[[#This Row],[2025/26 From - Spending review Topic 3]]+Dataset[[#This Row],[2025/26 From - Spending review Topic 4]]+Dataset[[#This Row],[2025/26 From - Other reallocations]]","v":0},{"$f":"Dataset[[#This Row],[2026/27 From - Spending review Topic 1]]+Dataset[[#This Row],[2026/27 From - Spending review Topic 2]]+Dataset[[#This Row],[2026/27 From - Spending review Topic 3]]+Dataset[[#This Row],[2026/27 From - Spending review Topic 4]]+Dataset[[#This Row],[2026/27 From - Other reallocations]]","v":0},{"$f":"Dataset[[#This Row],[2024/25 To - Spending review Topic 1]]+Dataset[[#This Row],[2024/25 To - Spending review Topic 2]]+Dataset[[#This Row],[2024/25 To - Spending review Topic 3]]+Dataset[[#This Row],[2024/25 To - Spending review Topic 4]]+Dataset[[#This Row],[2024/25 To - Other reallocations]]","v":0},{"$f":"Dataset[[#This Row],[2025/26 To - Spending review Topic 1]]+Dataset[[#This Row],[2025/26 To - Spending review Topic 2]]+Dataset[[#This Row],[2025/26 To - Spending review Topic 3]]+Dataset[[#This Row],[2025/26 To - Spending review Topic 4]]+Dataset[[#This Row],[2025/26 To - Other reallocations]]","v":0},{"$f":"Dataset[[#This Row],[2026/27 To - Spending review Topic 1]]+Dataset[[#This Row],[2026/27 To - Spending review Topic 2]]+Dataset[[#This Row],[2026/27 To - Spending review Topic 3]]+Dataset[[#This Row],[2026/27 To - Spending review Topic 4]]+Dataset[[#This Row],[2026/27 To - Other reallocations]]","v":0},{"$f":"Dataset[[#This Row],[2024/25 Reduction]]+Dataset[[#This Row],[2024/25 From - Total]]","v":0},{"$f":"Dataset[[#This Row],[2025/26 Reduction]]+Dataset[[#This Row],[2025/26 From - Total]]","v":0},{"$f":"Dataset[[#This Row],[2026/27 Reduction]]+Dataset[[#This Row],[2026/27 From - Total]]","v":0},{"$f":"Dataset[[#This Row],[2023/24 Reduction]]","v":0},{"$f":"SUM(Dataset[[#This Row],[2024/25 Reduction]],Dataset[[#This Row],[2024/25 From - Total]],Dataset[[#This Row],[2024/25 To - Total]])","v":0},{"$f":"SUM(Dataset[[#This Row],[2025/26 Reduction]],Dataset[[#This Row],[2025/26 From - Total]],Dataset[[#This Row],[2025/26 To - Total]])","v":0},{"$f":"SUM(Dataset[[#This Row],[2026/27 Reduction]],Dataset[[#This Row],[2026/27 From - Total]],Dataset[[#This Row],[2026/27 To - Total]])","v":0},{"$f":"Dataset[[#This Row],[2023/24 Baseline]]+Dataset[[#This Row],[2023/24 Total change]]","v":0},{"$f":"Dataset[[#This Row],[2024/25 Baseline]]+Dataset[[#This Row],[2024/25 Total change]]","v":0},{"$f":"Dataset[[#This Row],[2025/26 Baseline]]+Dataset[[#This Row],[2025/26 Total change]]","v":0},{"$f":"Dataset[[#This Row],[2026/27 Baseline]]+Dataset[[#This Row],[2026/27 Total change]]","v":0}]
["NAT|Non-transfer item","26|Subsidies on products and production (pc)","2024_25","MTEF2024",26,1,6,44323,436,"26","01","06","044323","000436","26|01|06","01","02","08","49","51","01|02|08|49|51","National","Military Veterans","Administration","Office Accommodation","Non-transfer item","Current","Transfers and subsidies","Public corporations and private enterprises","Public corporations","Subsidies on products and production (pc)","Peace and security","Defence and state security","NAT",0,0,0,0,0,0,0,0,0,0,0,null,null,null,null,null,null,null,null,null,null,null,null,null,null,null,null,null,null,null,null,null,null,null,null,null,null,null,null,null,null,null,null,null,null,{"$f":"Dataset[[#This Row],[2024/25 From - Spending review Topic 1]]+Dataset[[#This Row],[2024/25 From - Spending review Topic 2]]+Dataset[[#This Row],[2024/25 From - Spending review Topic 3]]+Dataset[[#This Row],[2024/25 From - Spending review Topic 4]]+Dataset[[#This Row],[2024/25 From - Other reallocations]]","v":0},{"$f":"Dataset[[#This Row],[2025/26 From - Spending review Topic 1]]+Dataset[[#This Row],[2025/26 From - Spending review Topic 2]]+Dataset[[#This Row],[2025/26 From - Spending review Topic 3]]+Dataset[[#This Row],[2025/26 From - Spending review Topic 4]]+Dataset[[#This Row],[2025/26 From - Other reallocations]]","v":0},{"$f":"Dataset[[#This Row],[2026/27 From - Spending review Topic 1]]+Dataset[[#This Row],[2026/27 From - Spending review Topic 2]]+Dataset[[#This Row],[2026/27 From - Spending review Topic 3]]+Dataset[[#This Row],[2026/27 From - Spending review Topic 4]]+Dataset[[#This Row],[2026/27 From - Other reallocations]]","v":0},{"$f":"Dataset[[#This Row],[2024/25 To - Spending review Topic 1]]+Dataset[[#This Row],[2024/25 To - Spending review Topic 2]]+Dataset[[#This Row],[2024/25 To - Spending review Topic 3]]+Dataset[[#This Row],[2024/25 To - Spending review Topic 4]]+Dataset[[#This Row],[2024/25 To - Other reallocations]]","v":0},{"$f":"Dataset[[#This Row],[2025/26 To - Spending review Topic 1]]+Dataset[[#This Row],[2025/26 To - Spending review Topic 2]]+Dataset[[#This Row],[2025/26 To - Spending review Topic 3]]+Dataset[[#This Row],[2025/26 To - Spending review Topic 4]]+Dataset[[#This Row],[2025/26 To - Other reallocations]]","v":0},{"$f":"Dataset[[#This Row],[2026/27 To - Spending review Topic 1]]+Dataset[[#This Row],[2026/27 To - Spending review Topic 2]]+Dataset[[#This Row],[2026/27 To - Spending review Topic 3]]+Dataset[[#This Row],[2026/27 To - Spending review Topic 4]]+Dataset[[#This Row],[2026/27 To - Other reallocations]]","v":0},{"$f":"Dataset[[#This Row],[2024/25 Reduction]]+Dataset[[#This Row],[2024/25 From - Total]]","v":0},{"$f":"Dataset[[#This Row],[2025/26 Reduction]]+Dataset[[#This Row],[2025/26 From - Total]]","v":0},{"$f":"Dataset[[#This Row],[2026/27 Reduction]]+Dataset[[#This Row],[2026/27 From - Total]]","v":0},{"$f":"Dataset[[#This Row],[2023/24 Reduction]]","v":0},{"$f":"SUM(Dataset[[#This Row],[2024/25 Reduction]],Dataset[[#This Row],[2024/25 From - Total]],Dataset[[#This Row],[2024/25 To - Total]])","v":0},{"$f":"SUM(Dataset[[#This Row],[2025/26 Reduction]],Dataset[[#This Row],[2025/26 From - Total]],Dataset[[#This Row],[2025/26 To - Total]])","v":0},{"$f":"SUM(Dataset[[#This Row],[2026/27 Reduction]],Dataset[[#This Row],[2026/27 From - Total]],Dataset[[#This Row],[2026/27 To - Total]])","v":0},{"$f":"Dataset[[#This Row],[2023/24 Baseline]]+Dataset[[#This Row],[2023/24 Total change]]","v":0},{"$f":"Dataset[[#This Row],[2024/25 Baseline]]+Dataset[[#This Row],[2024/25 Total change]]","v":0},{"$f":"Dataset[[#This Row],[2025/26 Baseline]]+Dataset[[#This Row],[2025/26 Total change]]","v":0},{"$f":"Dataset[[#This Row],[2026/27 Baseline]]+Dataset[[#This Row],[2026/27 Total change]]","v":0}]
["NAT|Non-transfer item","26|Other transfers to public corporations","2024_25","MTEF2024",26,1,6,44324,437,"26","01","06","044324","000437","26|01|06","01","02","08","49","52","01|02|08|49|52","National","Military Veterans","Administration","Office Accommodation","Non-transfer item","Current","Transfers and subsidies","Public corporations and private enterprises","Public corporations","Other transfers to public corporations","Peace and security","Defence and state security","NAT",0,0,0,0,0,0,0,0,0,0,0,null,null,null,null,null,null,null,null,null,null,null,null,null,null,null,null,null,null,null,null,null,null,null,null,null,null,null,null,null,null,null,null,null,null,{"$f":"Dataset[[#This Row],[2024/25 From - Spending review Topic 1]]+Dataset[[#This Row],[2024/25 From - Spending review Topic 2]]+Dataset[[#This Row],[2024/25 From - Spending review Topic 3]]+Dataset[[#This Row],[2024/25 From - Spending review Topic 4]]+Dataset[[#This Row],[2024/25 From - Other reallocations]]","v":0},{"$f":"Dataset[[#This Row],[2025/26 From - Spending review Topic 1]]+Dataset[[#This Row],[2025/26 From - Spending review Topic 2]]+Dataset[[#This Row],[2025/26 From - Spending review Topic 3]]+Dataset[[#This Row],[2025/26 From - Spending review Topic 4]]+Dataset[[#This Row],[2025/26 From - Other reallocations]]","v":0},{"$f":"Dataset[[#This Row],[2026/27 From - Spending review Topic 1]]+Dataset[[#This Row],[2026/27 From - Spending review Topic 2]]+Dataset[[#This Row],[2026/27 From - Spending review Topic 3]]+Dataset[[#This Row],[2026/27 From - Spending review Topic 4]]+Dataset[[#This Row],[2026/27 From - Other reallocations]]","v":0},{"$f":"Dataset[[#This Row],[2024/25 To - Spending review Topic 1]]+Dataset[[#This Row],[2024/25 To - Spending review Topic 2]]+Dataset[[#This Row],[2024/25 To - Spending review Topic 3]]+Dataset[[#This Row],[2024/25 To - Spending review Topic 4]]+Dataset[[#This Row],[2024/25 To - Other reallocations]]","v":0},{"$f":"Dataset[[#This Row],[2025/26 To - Spending review Topic 1]]+Dataset[[#This Row],[2025/26 To - Spending review Topic 2]]+Dataset[[#This Row],[2025/26 To - Spending review Topic 3]]+Dataset[[#This Row],[2025/26 To - Spending review Topic 4]]+Dataset[[#This Row],[2025/26 To - Other reallocations]]","v":0},{"$f":"Dataset[[#This Row],[2026/27 To - Spending review Topic 1]]+Dataset[[#This Row],[2026/27 To - Spending review Topic 2]]+Dataset[[#This Row],[2026/27 To - Spending review Topic 3]]+Dataset[[#This Row],[2026/27 To - Spending review Topic 4]]+Dataset[[#This Row],[2026/27 To - Other reallocations]]","v":0},{"$f":"Dataset[[#This Row],[2024/25 Reduction]]+Dataset[[#This Row],[2024/25 From - Total]]","v":0},{"$f":"Dataset[[#This Row],[2025/26 Reduction]]+Dataset[[#This Row],[2025/26 From - Total]]","v":0},{"$f":"Dataset[[#This Row],[2026/27 Reduction]]+Dataset[[#This Row],[2026/27 From - Total]]","v":0},{"$f":"Dataset[[#This Row],[2023/24 Reduction]]","v":0},{"$f":"SUM(Dataset[[#This Row],[2024/25 Reduction]],Dataset[[#This Row],[2024/25 From - Total]],Dataset[[#This Row],[2024/25 To - Total]])","v":0},{"$f":"SUM(Dataset[[#This Row],[2025/26 Reduction]],Dataset[[#This Row],[2025/26 From - Total]],Dataset[[#This Row],[2025/26 To - Total]])","v":0},{"$f":"SUM(Dataset[[#This Row],[2026/27 Reduction]],Dataset[[#This Row],[2026/27 From - Total]],Dataset[[#This Row],[2026/27 To - Total]])","v":0},{"$f":"Dataset[[#This Row],[2023/24 Baseline]]+Dataset[[#This Row],[2023/24 Total change]]","v":0},{"$f":"Dataset[[#This Row],[2024/25 Baseline]]+Dataset[[#This Row],[2024/25 Total change]]","v":0},{"$f":"Dataset[[#This Row],[2025/26 Baseline]]+Dataset[[#This Row],[2025/26 Total change]]","v":0},{"$f":"Dataset[[#This Row],[2026/27 Baseline]]+Dataset[[#This Row],[2026/27 Total change]]","v":0}]
["NAT|Non-transfer item","26|Subsidies on products and production (pe)","2024_25","MTEF2024",26,1,6,44325,438,"26","01","06","044325","000438","26|01|06","01","02","08","50","53","01|02|08|50|53","National","Military Veterans","Administration","Office Accommodation","Non-transfer item","Current","Transfers and subsidies","Public corporations and private enterprises","Private enterprises","Subsidies on products and production (pe)","Peace and security","Defence and state security","NAT",0,0,0,0,0,0,0,0,0,0,0,null,null,null,null,null,null,null,null,null,null,null,null,null,null,null,null,null,null,null,null,null,null,null,null,null,null,null,null,null,null,null,null,null,null,{"$f":"Dataset[[#This Row],[2024/25 From - Spending review Topic 1]]+Dataset[[#This Row],[2024/25 From - Spending review Topic 2]]+Dataset[[#This Row],[2024/25 From - Spending review Topic 3]]+Dataset[[#This Row],[2024/25 From - Spending review Topic 4]]+Dataset[[#This Row],[2024/25 From - Other reallocations]]","v":0},{"$f":"Dataset[[#This Row],[2025/26 From - Spending review Topic 1]]+Dataset[[#This Row],[2025/26 From - Spending review Topic 2]]+Dataset[[#This Row],[2025/26 From - Spending review Topic 3]]+Dataset[[#This Row],[2025/26 From - Spending review Topic 4]]+Dataset[[#This Row],[2025/26 From - Other reallocations]]","v":0},{"$f":"Dataset[[#This Row],[2026/27 From - Spending review Topic 1]]+Dataset[[#This Row],[2026/27 From - Spending review Topic 2]]+Dataset[[#This Row],[2026/27 From - Spending review Topic 3]]+Dataset[[#This Row],[2026/27 From - Spending review Topic 4]]+Dataset[[#This Row],[2026/27 From - Other reallocations]]","v":0},{"$f":"Dataset[[#This Row],[2024/25 To - Spending review Topic 1]]+Dataset[[#This Row],[2024/25 To - Spending review Topic 2]]+Dataset[[#This Row],[2024/25 To - Spending review Topic 3]]+Dataset[[#This Row],[2024/25 To - Spending review Topic 4]]+Dataset[[#This Row],[2024/25 To - Other reallocations]]","v":0},{"$f":"Dataset[[#This Row],[2025/26 To - Spending review Topic 1]]+Dataset[[#This Row],[2025/26 To - Spending review Topic 2]]+Dataset[[#This Row],[2025/26 To - Spending review Topic 3]]+Dataset[[#This Row],[2025/26 To - Spending review Topic 4]]+Dataset[[#This Row],[2025/26 To - Other reallocations]]","v":0},{"$f":"Dataset[[#This Row],[2026/27 To - Spending review Topic 1]]+Dataset[[#This Row],[2026/27 To - Spending review Topic 2]]+Dataset[[#This Row],[2026/27 To - Spending review Topic 3]]+Dataset[[#This Row],[2026/27 To - Spending review Topic 4]]+Dataset[[#This Row],[2026/27 To - Other reallocations]]","v":0},{"$f":"Dataset[[#This Row],[2024/25 Reduction]]+Dataset[[#This Row],[2024/25 From - Total]]","v":0},{"$f":"Dataset[[#This Row],[2025/26 Reduction]]+Dataset[[#This Row],[2025/26 From - Total]]","v":0},{"$f":"Dataset[[#This Row],[2026/27 Reduction]]+Dataset[[#This Row],[2026/27 From - Total]]","v":0},{"$f":"Dataset[[#This Row],[2023/24 Reduction]]","v":0},{"$f":"SUM(Dataset[[#This Row],[2024/25 Reduction]],Dataset[[#This Row],[2024/25 From - Total]],Dataset[[#This Row],[2024/25 To - Total]])","v":0},{"$f":"SUM(Dataset[[#This Row],[2025/26 Reduction]],Dataset[[#This Row],[2025/26 From - Total]],Dataset[[#This Row],[2025/26 To - Total]])","v":0},{"$f":"SUM(Dataset[[#This Row],[2026/27 Reduction]],Dataset[[#This Row],[2026/27 From - Total]],Dataset[[#This Row],[2026/27 To - Total]])","v":0},{"$f":"Dataset[[#This Row],[2023/24 Baseline]]+Dataset[[#This Row],[2023/24 Total change]]","v":0},{"$f":"Dataset[[#This Row],[2024/25 Baseline]]+Dataset[[#This Row],[2024/25 Total change]]","v":0},{"$f":"Dataset[[#This Row],[2025/26 Baseline]]+Dataset[[#This Row],[2025/26 Total change]]","v":0},{"$f":"Dataset[[#This Row],[2026/27 Baseline]]+Dataset[[#This Row],[2026/27 Total change]]","v":0}]
["NAT|Non-transfer item","26|Other transfers to private enterprises","2024_25","MTEF2024",26,1,6,44326,439,"26","01","06","044326","000439","26|01|06","01","02","08","50","54","01|02|08|50|54","National","Military Veterans","Administration","Office Accommodation","Non-transfer item","Current","Transfers and subsidies","Public corporations and private enterprises","Private enterprises","Other transfers to private enterprises","Peace and security","Defence and state security","NAT",0,0,0,0,0,0,0,0,0,0,0,null,null,null,null,null,null,null,null,null,null,null,null,null,null,null,null,null,null,null,null,null,null,null,null,null,null,null,null,null,null,null,null,null,null,{"$f":"Dataset[[#This Row],[2024/25 From - Spending review Topic 1]]+Dataset[[#This Row],[2024/25 From - Spending review Topic 2]]+Dataset[[#This Row],[2024/25 From - Spending review Topic 3]]+Dataset[[#This Row],[2024/25 From - Spending review Topic 4]]+Dataset[[#This Row],[2024/25 From - Other reallocations]]","v":0},{"$f":"Dataset[[#This Row],[2025/26 From - Spending review Topic 1]]+Dataset[[#This Row],[2025/26 From - Spending review Topic 2]]+Dataset[[#This Row],[2025/26 From - Spending review Topic 3]]+Dataset[[#This Row],[2025/26 From - Spending review Topic 4]]+Dataset[[#This Row],[2025/26 From - Other reallocations]]","v":0},{"$f":"Dataset[[#This Row],[2026/27 From - Spending review Topic 1]]+Dataset[[#This Row],[2026/27 From - Spending review Topic 2]]+Dataset[[#This Row],[2026/27 From - Spending review Topic 3]]+Dataset[[#This Row],[2026/27 From - Spending review Topic 4]]+Dataset[[#This Row],[2026/27 From - Other reallocations]]","v":0},{"$f":"Dataset[[#This Row],[2024/25 To - Spending review Topic 1]]+Dataset[[#This Row],[2024/25 To - Spending review Topic 2]]+Dataset[[#This Row],[2024/25 To - Spending review Topic 3]]+Dataset[[#This Row],[2024/25 To - Spending review Topic 4]]+Dataset[[#This Row],[2024/25 To - Other reallocations]]","v":0},{"$f":"Dataset[[#This Row],[2025/26 To - Spending review Topic 1]]+Dataset[[#This Row],[2025/26 To - Spending review Topic 2]]+Dataset[[#This Row],[2025/26 To - Spending review Topic 3]]+Dataset[[#This Row],[2025/26 To - Spending review Topic 4]]+Dataset[[#This Row],[2025/26 To - Other reallocations]]","v":0},{"$f":"Dataset[[#This Row],[2026/27 To - Spending review Topic 1]]+Dataset[[#This Row],[2026/27 To - Spending review Topic 2]]+Dataset[[#This Row],[2026/27 To - Spending review Topic 3]]+Dataset[[#This Row],[2026/27 To - Spending review Topic 4]]+Dataset[[#This Row],[2026/27 To - Other reallocations]]","v":0},{"$f":"Dataset[[#This Row],[2024/25 Reduction]]+Dataset[[#This Row],[2024/25 From - Total]]","v":0},{"$f":"Dataset[[#This Row],[2025/26 Reduction]]+Dataset[[#This Row],[2025/26 From - Total]]","v":0},{"$f":"Dataset[[#This Row],[2026/27 Reduction]]+Dataset[[#This Row],[2026/27 From - Total]]","v":0},{"$f":"Dataset[[#This Row],[2023/24 Reduction]]","v":0},{"$f":"SUM(Dataset[[#This Row],[2024/25 Reduction]],Dataset[[#This Row],[2024/25 From - Total]],Dataset[[#This Row],[2024/25 To - Total]])","v":0},{"$f":"SUM(Dataset[[#This Row],[2025/26 Reduction]],Dataset[[#This Row],[2025/26 From - Total]],Dataset[[#This Row],[2025/26 To - Total]])","v":0},{"$f":"SUM(Dataset[[#This Row],[2026/27 Reduction]],Dataset[[#This Row],[2026/27 From - Total]],Dataset[[#This Row],[2026/27 To - Total]])","v":0},{"$f":"Dataset[[#This Row],[2023/24 Baseline]]+Dataset[[#This Row],[2023/24 Total change]]","v":0},{"$f":"Dataset[[#This Row],[2024/25 Baseline]]+Dataset[[#This Row],[2024/25 Total change]]","v":0},{"$f":"Dataset[[#This Row],[2025/26 Baseline]]+Dataset[[#This Row],[2025/26 Total change]]","v":0},{"$f":"Dataset[[#This Row],[2026/27 Baseline]]+Dataset[[#This Row],[2026/27 Total change]]","v":0}]
["NAT|Non-transfer item","26|Non-profit institutions","2024_25","MTEF2024",26,1,6,44327,440,"26","01","06","044327","000440","26|01|06","01","02","09","51","55","01|02|09|51|55","National","Military Veterans","Administration","Office Accommodation","Non-transfer item","Current","Transfers and subsidies","Non-profit institutions","Non-profit institutions","Non-profit institutions","Peace and security","Defence and state security","NAT",0,0,0,0,0,0,0,0,0,0,0,null,null,null,null,null,null,null,null,null,null,null,null,null,null,null,null,null,null,null,null,null,null,null,null,null,null,null,null,null,null,null,null,null,null,{"$f":"Dataset[[#This Row],[2024/25 From - Spending review Topic 1]]+Dataset[[#This Row],[2024/25 From - Spending review Topic 2]]+Dataset[[#This Row],[2024/25 From - Spending review Topic 3]]+Dataset[[#This Row],[2024/25 From - Spending review Topic 4]]+Dataset[[#This Row],[2024/25 From - Other reallocations]]","v":0},{"$f":"Dataset[[#This Row],[2025/26 From - Spending review Topic 1]]+Dataset[[#This Row],[2025/26 From - Spending review Topic 2]]+Dataset[[#This Row],[2025/26 From - Spending review Topic 3]]+Dataset[[#This Row],[2025/26 From - Spending review Topic 4]]+Dataset[[#This Row],[2025/26 From - Other reallocations]]","v":0},{"$f":"Dataset[[#This Row],[2026/27 From - Spending review Topic 1]]+Dataset[[#This Row],[2026/27 From - Spending review Topic 2]]+Dataset[[#This Row],[2026/27 From - Spending review Topic 3]]+Dataset[[#This Row],[2026/27 From - Spending review Topic 4]]+Dataset[[#This Row],[2026/27 From - Other reallocations]]","v":0},{"$f":"Dataset[[#This Row],[2024/25 To - Spending review Topic 1]]+Dataset[[#This Row],[2024/25 To - Spending review Topic 2]]+Dataset[[#This Row],[2024/25 To - Spending review Topic 3]]+Dataset[[#This Row],[2024/25 To - Spending review Topic 4]]+Dataset[[#This Row],[2024/25 To - Other reallocations]]","v":0},{"$f":"Dataset[[#This Row],[2025/26 To - Spending review Topic 1]]+Dataset[[#This Row],[2025/26 To - Spending review Topic 2]]+Dataset[[#This Row],[2025/26 To - Spending review Topic 3]]+Dataset[[#This Row],[2025/26 To - Spending review Topic 4]]+Dataset[[#This Row],[2025/26 To - Other reallocations]]","v":0},{"$f":"Dataset[[#This Row],[2026/27 To - Spending review Topic 1]]+Dataset[[#This Row],[2026/27 To - Spending review Topic 2]]+Dataset[[#This Row],[2026/27 To - Spending review Topic 3]]+Dataset[[#This Row],[2026/27 To - Spending review Topic 4]]+Dataset[[#This Row],[2026/27 To - Other reallocations]]","v":0},{"$f":"Dataset[[#This Row],[2024/25 Reduction]]+Dataset[[#This Row],[2024/25 From - Total]]","v":0},{"$f":"Dataset[[#This Row],[2025/26 Reduction]]+Dataset[[#This Row],[2025/26 From - Total]]","v":0},{"$f":"Dataset[[#This Row],[2026/27 Reduction]]+Dataset[[#This Row],[2026/27 From - Total]]","v":0},{"$f":"Dataset[[#This Row],[2023/24 Reduction]]","v":0},{"$f":"SUM(Dataset[[#This Row],[2024/25 Reduction]],Dataset[[#This Row],[2024/25 From - Total]],Dataset[[#This Row],[2024/25 To - Total]])","v":0},{"$f":"SUM(Dataset[[#This Row],[2025/26 Reduction]],Dataset[[#This Row],[2025/26 From - Total]],Dataset[[#This Row],[2025/26 To - Total]])","v":0},{"$f":"SUM(Dataset[[#This Row],[2026/27 Reduction]],Dataset[[#This Row],[2026/27 From - Total]],Dataset[[#This Row],[2026/27 To - Total]])","v":0},{"$f":"Dataset[[#This Row],[2023/24 Baseline]]+Dataset[[#This Row],[2023/24 Total change]]","v":0},{"$f":"Dataset[[#This Row],[2024/25 Baseline]]+Dataset[[#This Row],[2024/25 Total change]]","v":0},{"$f":"Dataset[[#This Row],[2025/26 Baseline]]+Dataset[[#This Row],[2025/26 Total change]]","v":0},{"$f":"Dataset[[#This Row],[2026/27 Baseline]]+Dataset[[#This Row],[2026/27 Total change]]","v":0}]
["NAT|Non-transfer item","26|Social benefits","2024_25","MTEF2024",26,1,6,44328,441,"26","01","06","044328","000441","26|01|06","01","02","10","52","56","01|02|10|52|56","National","Military Veterans","Administration","Office Accommodation","Non-transfer item","Current","Transfers and subsidies","Households","Social benefits","Social benefits","Peace and security","Defence and state security","NAT",0,0,0,0,0,0,0,0,0,0,0,null,null,null,null,null,null,null,null,null,null,null,null,null,null,null,null,null,null,null,null,null,null,null,null,null,null,null,null,null,null,null,null,null,null,{"$f":"Dataset[[#This Row],[2024/25 From - Spending review Topic 1]]+Dataset[[#This Row],[2024/25 From - Spending review Topic 2]]+Dataset[[#This Row],[2024/25 From - Spending review Topic 3]]+Dataset[[#This Row],[2024/25 From - Spending review Topic 4]]+Dataset[[#This Row],[2024/25 From - Other reallocations]]","v":0},{"$f":"Dataset[[#This Row],[2025/26 From - Spending review Topic 1]]+Dataset[[#This Row],[2025/26 From - Spending review Topic 2]]+Dataset[[#This Row],[2025/26 From - Spending review Topic 3]]+Dataset[[#This Row],[2025/26 From - Spending review Topic 4]]+Dataset[[#This Row],[2025/26 From - Other reallocations]]","v":0},{"$f":"Dataset[[#This Row],[2026/27 From - Spending review Topic 1]]+Dataset[[#This Row],[2026/27 From - Spending review Topic 2]]+Dataset[[#This Row],[2026/27 From - Spending review Topic 3]]+Dataset[[#This Row],[2026/27 From - Spending review Topic 4]]+Dataset[[#This Row],[2026/27 From - Other reallocations]]","v":0},{"$f":"Dataset[[#This Row],[2024/25 To - Spending review Topic 1]]+Dataset[[#This Row],[2024/25 To - Spending review Topic 2]]+Dataset[[#This Row],[2024/25 To - Spending review Topic 3]]+Dataset[[#This Row],[2024/25 To - Spending review Topic 4]]+Dataset[[#This Row],[2024/25 To - Other reallocations]]","v":0},{"$f":"Dataset[[#This Row],[2025/26 To - Spending review Topic 1]]+Dataset[[#This Row],[2025/26 To - Spending review Topic 2]]+Dataset[[#This Row],[2025/26 To - Spending review Topic 3]]+Dataset[[#This Row],[2025/26 To - Spending review Topic 4]]+Dataset[[#This Row],[2025/26 To - Other reallocations]]","v":0},{"$f":"Dataset[[#This Row],[2026/27 To - Spending review Topic 1]]+Dataset[[#This Row],[2026/27 To - Spending review Topic 2]]+Dataset[[#This Row],[2026/27 To - Spending review Topic 3]]+Dataset[[#This Row],[2026/27 To - Spending review Topic 4]]+Dataset[[#This Row],[2026/27 To - Other reallocations]]","v":0},{"$f":"Dataset[[#This Row],[2024/25 Reduction]]+Dataset[[#This Row],[2024/25 From - Total]]","v":0},{"$f":"Dataset[[#This Row],[2025/26 Reduction]]+Dataset[[#This Row],[2025/26 From - Total]]","v":0},{"$f":"Dataset[[#This Row],[2026/27 Reduction]]+Dataset[[#This Row],[2026/27 From - Total]]","v":0},{"$f":"Dataset[[#This Row],[2023/24 Reduction]]","v":0},{"$f":"SUM(Dataset[[#This Row],[2024/25 Reduction]],Dataset[[#This Row],[2024/25 From - Total]],Dataset[[#This Row],[2024/25 To - Total]])","v":0},{"$f":"SUM(Dataset[[#This Row],[2025/26 Reduction]],Dataset[[#This Row],[2025/26 From - Total]],Dataset[[#This Row],[2025/26 To - Total]])","v":0},{"$f":"SUM(Dataset[[#This Row],[2026/27 Reduction]],Dataset[[#This Row],[2026/27 From - Total]],Dataset[[#This Row],[2026/27 To - Total]])","v":0},{"$f":"Dataset[[#This Row],[2023/24 Baseline]]+Dataset[[#This Row],[2023/24 Total change]]","v":0},{"$f":"Dataset[[#This Row],[2024/25 Baseline]]+Dataset[[#This Row],[2024/25 Total change]]","v":0},{"$f":"Dataset[[#This Row],[2025/26 Baseline]]+Dataset[[#This Row],[2025/26 Total change]]","v":0},{"$f":"Dataset[[#This Row],[2026/27 Baseline]]+Dataset[[#This Row],[2026/27 Total change]]","v":0}]
["NAT|Non-transfer item","26|Other transfers to households","2024_25","MTEF2024",26,1,6,44329,442,"26","01","06","044329","000442","26|01|06","01","02","10","53","57","01|02|10|53|57","National","Military Veterans","Administration","Office Accommodation","Non-transfer item","Current","Transfers and subsidies","Households","Other transfers to households","Other transfers to households","Peace and security","Defence and state security","NAT",0,0,0,0,0,0,0,0,0,0,0,null,null,null,null,null,null,null,null,null,null,null,null,null,null,null,null,null,null,null,null,null,null,null,null,null,null,null,null,null,null,null,null,null,null,{"$f":"Dataset[[#This Row],[2024/25 From - Spending review Topic 1]]+Dataset[[#This Row],[2024/25 From - Spending review Topic 2]]+Dataset[[#This Row],[2024/25 From - Spending review Topic 3]]+Dataset[[#This Row],[2024/25 From - Spending review Topic 4]]+Dataset[[#This Row],[2024/25 From - Other reallocations]]","v":0},{"$f":"Dataset[[#This Row],[2025/26 From - Spending review Topic 1]]+Dataset[[#This Row],[2025/26 From - Spending review Topic 2]]+Dataset[[#This Row],[2025/26 From - Spending review Topic 3]]+Dataset[[#This Row],[2025/26 From - Spending review Topic 4]]+Dataset[[#This Row],[2025/26 From - Other reallocations]]","v":0},{"$f":"Dataset[[#This Row],[2026/27 From - Spending review Topic 1]]+Dataset[[#This Row],[2026/27 From - Spending review Topic 2]]+Dataset[[#This Row],[2026/27 From - Spending review Topic 3]]+Dataset[[#This Row],[2026/27 From - Spending review Topic 4]]+Dataset[[#This Row],[2026/27 From - Other reallocations]]","v":0},{"$f":"Dataset[[#This Row],[2024/25 To - Spending review Topic 1]]+Dataset[[#This Row],[2024/25 To - Spending review Topic 2]]+Dataset[[#This Row],[2024/25 To - Spending review Topic 3]]+Dataset[[#This Row],[2024/25 To - Spending review Topic 4]]+Dataset[[#This Row],[2024/25 To - Other reallocations]]","v":0},{"$f":"Dataset[[#This Row],[2025/26 To - Spending review Topic 1]]+Dataset[[#This Row],[2025/26 To - Spending review Topic 2]]+Dataset[[#This Row],[2025/26 To - Spending review Topic 3]]+Dataset[[#This Row],[2025/26 To - Spending review Topic 4]]+Dataset[[#This Row],[2025/26 To - Other reallocations]]","v":0},{"$f":"Dataset[[#This Row],[2026/27 To - Spending review Topic 1]]+Dataset[[#This Row],[2026/27 To - Spending review Topic 2]]+Dataset[[#This Row],[2026/27 To - Spending review Topic 3]]+Dataset[[#This Row],[2026/27 To - Spending review Topic 4]]+Dataset[[#This Row],[2026/27 To - Other reallocations]]","v":0},{"$f":"Dataset[[#This Row],[2024/25 Reduction]]+Dataset[[#This Row],[2024/25 From - Total]]","v":0},{"$f":"Dataset[[#This Row],[2025/26 Reduction]]+Dataset[[#This Row],[2025/26 From - Total]]","v":0},{"$f":"Dataset[[#This Row],[2026/27 Reduction]]+Dataset[[#This Row],[2026/27 From - Total]]","v":0},{"$f":"Dataset[[#This Row],[2023/24 Reduction]]","v":0},{"$f":"SUM(Dataset[[#This Row],[2024/25 Reduction]],Dataset[[#This Row],[2024/25 From - Total]],Dataset[[#This Row],[2024/25 To - Total]])","v":0},{"$f":"SUM(Dataset[[#This Row],[2025/26 Reduction]],Dataset[[#This Row],[2025/26 From - Total]],Dataset[[#This Row],[2025/26 To - Total]])","v":0},{"$f":"SUM(Dataset[[#This Row],[2026/27 Reduction]],Dataset[[#This Row],[2026/27 From - Total]],Dataset[[#This Row],[2026/27 To - Total]])","v":0},{"$f":"Dataset[[#This Row],[2023/24 Baseline]]+Dataset[[#This Row],[2023/24 Total change]]","v":0},{"$f":"Dataset[[#This Row],[2024/25 Baseline]]+Dataset[[#This Row],[2024/25 Total change]]","v":0},{"$f":"Dataset[[#This Row],[2025/26 Baseline]]+Dataset[[#This Row],[2025/26 Total change]]","v":0},{"$f":"Dataset[[#This Row],[2026/27 Baseline]]+Dataset[[#This Row],[2026/27 Total change]]","v":0}]
["NAT|Non-transfer item","26|Provincial Revenue Funds","2024_25","MTEF2024",26,1,6,44330,443,"26","01","06","044330","000443","26|01|06","02","02","04","43","43","02|02|04|43|43","National","Military Veterans","Administration","Office Accommodation","Non-transfer item","Capital","Transfers and subsidies","Provinces and municipalities","Provinces","Provincial Revenue Funds","Peace and security","Defence and state security","NAT",0,0,0,0,0,0,0,0,0,0,0,null,null,null,null,null,null,null,null,null,null,null,null,null,null,null,null,null,null,null,null,null,null,null,null,null,null,null,null,null,null,null,null,null,null,{"$f":"Dataset[[#This Row],[2024/25 From - Spending review Topic 1]]+Dataset[[#This Row],[2024/25 From - Spending review Topic 2]]+Dataset[[#This Row],[2024/25 From - Spending review Topic 3]]+Dataset[[#This Row],[2024/25 From - Spending review Topic 4]]+Dataset[[#This Row],[2024/25 From - Other reallocations]]","v":0},{"$f":"Dataset[[#This Row],[2025/26 From - Spending review Topic 1]]+Dataset[[#This Row],[2025/26 From - Spending review Topic 2]]+Dataset[[#This Row],[2025/26 From - Spending review Topic 3]]+Dataset[[#This Row],[2025/26 From - Spending review Topic 4]]+Dataset[[#This Row],[2025/26 From - Other reallocations]]","v":0},{"$f":"Dataset[[#This Row],[2026/27 From - Spending review Topic 1]]+Dataset[[#This Row],[2026/27 From - Spending review Topic 2]]+Dataset[[#This Row],[2026/27 From - Spending review Topic 3]]+Dataset[[#This Row],[2026/27 From - Spending review Topic 4]]+Dataset[[#This Row],[2026/27 From - Other reallocations]]","v":0},{"$f":"Dataset[[#This Row],[2024/25 To - Spending review Topic 1]]+Dataset[[#This Row],[2024/25 To - Spending review Topic 2]]+Dataset[[#This Row],[2024/25 To - Spending review Topic 3]]+Dataset[[#This Row],[2024/25 To - Spending review Topic 4]]+Dataset[[#This Row],[2024/25 To - Other reallocations]]","v":0},{"$f":"Dataset[[#This Row],[2025/26 To - Spending review Topic 1]]+Dataset[[#This Row],[2025/26 To - Spending review Topic 2]]+Dataset[[#This Row],[2025/26 To - Spending review Topic 3]]+Dataset[[#This Row],[2025/26 To - Spending review Topic 4]]+Dataset[[#This Row],[2025/26 To - Other reallocations]]","v":0},{"$f":"Dataset[[#This Row],[2026/27 To - Spending review Topic 1]]+Dataset[[#This Row],[2026/27 To - Spending review Topic 2]]+Dataset[[#This Row],[2026/27 To - Spending review Topic 3]]+Dataset[[#This Row],[2026/27 To - Spending review Topic 4]]+Dataset[[#This Row],[2026/27 To - Other reallocations]]","v":0},{"$f":"Dataset[[#This Row],[2024/25 Reduction]]+Dataset[[#This Row],[2024/25 From - Total]]","v":0},{"$f":"Dataset[[#This Row],[2025/26 Reduction]]+Dataset[[#This Row],[2025/26 From - Total]]","v":0},{"$f":"Dataset[[#This Row],[2026/27 Reduction]]+Dataset[[#This Row],[2026/27 From - Total]]","v":0},{"$f":"Dataset[[#This Row],[2023/24 Reduction]]","v":0},{"$f":"SUM(Dataset[[#This Row],[2024/25 Reduction]],Dataset[[#This Row],[2024/25 From - Total]],Dataset[[#This Row],[2024/25 To - Total]])","v":0},{"$f":"SUM(Dataset[[#This Row],[2025/26 Reduction]],Dataset[[#This Row],[2025/26 From - Total]],Dataset[[#This Row],[2025/26 To - Total]])","v":0},{"$f":"SUM(Dataset[[#This Row],[2026/27 Reduction]],Dataset[[#This Row],[2026/27 From - Total]],Dataset[[#This Row],[2026/27 To - Total]])","v":0},{"$f":"Dataset[[#This Row],[2023/24 Baseline]]+Dataset[[#This Row],[2023/24 Total change]]","v":0},{"$f":"Dataset[[#This Row],[2024/25 Baseline]]+Dataset[[#This Row],[2024/25 Total change]]","v":0},{"$f":"Dataset[[#This Row],[2025/26 Baseline]]+Dataset[[#This Row],[2025/26 Total change]]","v":0},{"$f":"Dataset[[#This Row],[2026/27 Baseline]]+Dataset[[#This Row],[2026/27 Total change]]","v":0}]
["NAT|Non-transfer item","26|Municipal bank accounts","2024_25","MTEF2024",26,1,6,44331,444,"26","01","06","044331","000444","26|01|06","02","02","04","44","45","02|02|04|44|45","National","Military Veterans","Administration","Office Accommodation","Non-transfer item","Capital","Transfers and subsidies","Provinces and municipalities","Municipalities","Municipal bank accounts","Peace and security","Defence and state security","NAT",0,0,0,0,0,0,0,0,0,0,0,null,null,null,null,null,null,null,null,null,null,null,null,null,null,null,null,null,null,null,null,null,null,null,null,null,null,null,null,null,null,null,null,null,null,{"$f":"Dataset[[#This Row],[2024/25 From - Spending review Topic 1]]+Dataset[[#This Row],[2024/25 From - Spending review Topic 2]]+Dataset[[#This Row],[2024/25 From - Spending review Topic 3]]+Dataset[[#This Row],[2024/25 From - Spending review Topic 4]]+Dataset[[#This Row],[2024/25 From - Other reallocations]]","v":0},{"$f":"Dataset[[#This Row],[2025/26 From - Spending review Topic 1]]+Dataset[[#This Row],[2025/26 From - Spending review Topic 2]]+Dataset[[#This Row],[2025/26 From - Spending review Topic 3]]+Dataset[[#This Row],[2025/26 From - Spending review Topic 4]]+Dataset[[#This Row],[2025/26 From - Other reallocations]]","v":0},{"$f":"Dataset[[#This Row],[2026/27 From - Spending review Topic 1]]+Dataset[[#This Row],[2026/27 From - Spending review Topic 2]]+Dataset[[#This Row],[2026/27 From - Spending review Topic 3]]+Dataset[[#This Row],[2026/27 From - Spending review Topic 4]]+Dataset[[#This Row],[2026/27 From - Other reallocations]]","v":0},{"$f":"Dataset[[#This Row],[2024/25 To - Spending review Topic 1]]+Dataset[[#This Row],[2024/25 To - Spending review Topic 2]]+Dataset[[#This Row],[2024/25 To - Spending review Topic 3]]+Dataset[[#This Row],[2024/25 To - Spending review Topic 4]]+Dataset[[#This Row],[2024/25 To - Other reallocations]]","v":0},{"$f":"Dataset[[#This Row],[2025/26 To - Spending review Topic 1]]+Dataset[[#This Row],[2025/26 To - Spending review Topic 2]]+Dataset[[#This Row],[2025/26 To - Spending review Topic 3]]+Dataset[[#This Row],[2025/26 To - Spending review Topic 4]]+Dataset[[#This Row],[2025/26 To - Other reallocations]]","v":0},{"$f":"Dataset[[#This Row],[2026/27 To - Spending review Topic 1]]+Dataset[[#This Row],[2026/27 To - Spending review Topic 2]]+Dataset[[#This Row],[2026/27 To - Spending review Topic 3]]+Dataset[[#This Row],[2026/27 To - Spending review Topic 4]]+Dataset[[#This Row],[2026/27 To - Other reallocations]]","v":0},{"$f":"Dataset[[#This Row],[2024/25 Reduction]]+Dataset[[#This Row],[2024/25 From - Total]]","v":0},{"$f":"Dataset[[#This Row],[2025/26 Reduction]]+Dataset[[#This Row],[2025/26 From - Total]]","v":0},{"$f":"Dataset[[#This Row],[2026/27 Reduction]]+Dataset[[#This Row],[2026/27 From - Total]]","v":0},{"$f":"Dataset[[#This Row],[2023/24 Reduction]]","v":0},{"$f":"SUM(Dataset[[#This Row],[2024/25 Reduction]],Dataset[[#This Row],[2024/25 From - Total]],Dataset[[#This Row],[2024/25 To - Total]])","v":0},{"$f":"SUM(Dataset[[#This Row],[2025/26 Reduction]],Dataset[[#This Row],[2025/26 From - Total]],Dataset[[#This Row],[2025/26 To - Total]])","v":0},{"$f":"SUM(Dataset[[#This Row],[2026/27 Reduction]],Dataset[[#This Row],[2026/27 From - Total]],Dataset[[#This Row],[2026/27 To - Total]])","v":0},{"$f":"Dataset[[#This Row],[2023/24 Baseline]]+Dataset[[#This Row],[2023/24 Total change]]","v":0},{"$f":"Dataset[[#This Row],[2024/25 Baseline]]+Dataset[[#This Row],[2024/25 Total change]]","v":0},{"$f":"Dataset[[#This Row],[2025/26 Baseline]]+Dataset[[#This Row],[2025/26 Total change]]","v":0},{"$f":"Dataset[[#This Row],[2026/27 Baseline]]+Dataset[[#This Row],[2026/27 Total change]]","v":0}]
["NAT|Non-transfer item","26|Departmental agencies (non-business entities)","2024_25","MTEF2024",26,1,6,44332,445,"26","01","06","044332","000445","26|01|06","02","02","05","46","48","02|02|05|46|48","National","Military Veterans","Administration","Office Accommodation","Non-transfer item","Capital","Transfers and subsidies","Departmental agencies and accounts","Departmental agencies (non-business entities)","Departmental agencies (non-business entities)","Peace and security","Defence and state security","NAT",0,0,0,0,0,0,0,0,0,0,0,null,null,null,null,null,null,null,null,null,null,null,null,null,null,null,null,null,null,null,null,null,null,null,null,null,null,null,null,null,null,null,null,null,null,{"$f":"Dataset[[#This Row],[2024/25 From - Spending review Topic 1]]+Dataset[[#This Row],[2024/25 From - Spending review Topic 2]]+Dataset[[#This Row],[2024/25 From - Spending review Topic 3]]+Dataset[[#This Row],[2024/25 From - Spending review Topic 4]]+Dataset[[#This Row],[2024/25 From - Other reallocations]]","v":0},{"$f":"Dataset[[#This Row],[2025/26 From - Spending review Topic 1]]+Dataset[[#This Row],[2025/26 From - Spending review Topic 2]]+Dataset[[#This Row],[2025/26 From - Spending review Topic 3]]+Dataset[[#This Row],[2025/26 From - Spending review Topic 4]]+Dataset[[#This Row],[2025/26 From - Other reallocations]]","v":0},{"$f":"Dataset[[#This Row],[2026/27 From - Spending review Topic 1]]+Dataset[[#This Row],[2026/27 From - Spending review Topic 2]]+Dataset[[#This Row],[2026/27 From - Spending review Topic 3]]+Dataset[[#This Row],[2026/27 From - Spending review Topic 4]]+Dataset[[#This Row],[2026/27 From - Other reallocations]]","v":0},{"$f":"Dataset[[#This Row],[2024/25 To - Spending review Topic 1]]+Dataset[[#This Row],[2024/25 To - Spending review Topic 2]]+Dataset[[#This Row],[2024/25 To - Spending review Topic 3]]+Dataset[[#This Row],[2024/25 To - Spending review Topic 4]]+Dataset[[#This Row],[2024/25 To - Other reallocations]]","v":0},{"$f":"Dataset[[#This Row],[2025/26 To - Spending review Topic 1]]+Dataset[[#This Row],[2025/26 To - Spending review Topic 2]]+Dataset[[#This Row],[2025/26 To - Spending review Topic 3]]+Dataset[[#This Row],[2025/26 To - Spending review Topic 4]]+Dataset[[#This Row],[2025/26 To - Other reallocations]]","v":0},{"$f":"Dataset[[#This Row],[2026/27 To - Spending review Topic 1]]+Dataset[[#This Row],[2026/27 To - Spending review Topic 2]]+Dataset[[#This Row],[2026/27 To - Spending review Topic 3]]+Dataset[[#This Row],[2026/27 To - Spending review Topic 4]]+Dataset[[#This Row],[2026/27 To - Other reallocations]]","v":0},{"$f":"Dataset[[#This Row],[2024/25 Reduction]]+Dataset[[#This Row],[2024/25 From - Total]]","v":0},{"$f":"Dataset[[#This Row],[2025/26 Reduction]]+Dataset[[#This Row],[2025/26 From - Total]]","v":0},{"$f":"Dataset[[#This Row],[2026/27 Reduction]]+Dataset[[#This Row],[2026/27 From - Total]]","v":0},{"$f":"Dataset[[#This Row],[2023/24 Reduction]]","v":0},{"$f":"SUM(Dataset[[#This Row],[2024/25 Reduction]],Dataset[[#This Row],[2024/25 From - Total]],Dataset[[#This Row],[2024/25 To - Total]])","v":0},{"$f":"SUM(Dataset[[#This Row],[2025/26 Reduction]],Dataset[[#This Row],[2025/26 From - Total]],Dataset[[#This Row],[2025/26 To - Total]])","v":0},{"$f":"SUM(Dataset[[#This Row],[2026/27 Reduction]],Dataset[[#This Row],[2026/27 From - Total]],Dataset[[#This Row],[2026/27 To - Total]])","v":0},{"$f":"Dataset[[#This Row],[2023/24 Baseline]]+Dataset[[#This Row],[2023/24 Total change]]","v":0},{"$f":"Dataset[[#This Row],[2024/25 Baseline]]+Dataset[[#This Row],[2024/25 Total change]]","v":0},{"$f":"Dataset[[#This Row],[2025/26 Baseline]]+Dataset[[#This Row],[2025/26 Total change]]","v":0},{"$f":"Dataset[[#This Row],[2026/27 Baseline]]+Dataset[[#This Row],[2026/27 Total change]]","v":0}]
["NAT|Non-transfer item","26|Higher education institutions","2024_25","MTEF2024",26,1,6,44333,446,"26","01","06","044333","000446","26|01|06","02","02","06","47","49","02|02|06|47|49","National","Military Veterans","Administration","Office Accommodation","Non-transfer item","Capital","Transfers and subsidies","Higher education institutions","Higher education institutions","Higher education institutions","Peace and security","Defence and state security","NAT",0,0,0,0,0,0,0,0,0,0,0,null,null,null,null,null,null,null,null,null,null,null,null,null,null,null,null,null,null,null,null,null,null,null,null,null,null,null,null,null,null,null,null,null,null,{"$f":"Dataset[[#This Row],[2024/25 From - Spending review Topic 1]]+Dataset[[#This Row],[2024/25 From - Spending review Topic 2]]+Dataset[[#This Row],[2024/25 From - Spending review Topic 3]]+Dataset[[#This Row],[2024/25 From - Spending review Topic 4]]+Dataset[[#This Row],[2024/25 From - Other reallocations]]","v":0},{"$f":"Dataset[[#This Row],[2025/26 From - Spending review Topic 1]]+Dataset[[#This Row],[2025/26 From - Spending review Topic 2]]+Dataset[[#This Row],[2025/26 From - Spending review Topic 3]]+Dataset[[#This Row],[2025/26 From - Spending review Topic 4]]+Dataset[[#This Row],[2025/26 From - Other reallocations]]","v":0},{"$f":"Dataset[[#This Row],[2026/27 From - Spending review Topic 1]]+Dataset[[#This Row],[2026/27 From - Spending review Topic 2]]+Dataset[[#This Row],[2026/27 From - Spending review Topic 3]]+Dataset[[#This Row],[2026/27 From - Spending review Topic 4]]+Dataset[[#This Row],[2026/27 From - Other reallocations]]","v":0},{"$f":"Dataset[[#This Row],[2024/25 To - Spending review Topic 1]]+Dataset[[#This Row],[2024/25 To - Spending review Topic 2]]+Dataset[[#This Row],[2024/25 To - Spending review Topic 3]]+Dataset[[#This Row],[2024/25 To - Spending review Topic 4]]+Dataset[[#This Row],[2024/25 To - Other reallocations]]","v":0},{"$f":"Dataset[[#This Row],[2025/26 To - Spending review Topic 1]]+Dataset[[#This Row],[2025/26 To - Spending review Topic 2]]+Dataset[[#This Row],[2025/26 To - Spending review Topic 3]]+Dataset[[#This Row],[2025/26 To - Spending review Topic 4]]+Dataset[[#This Row],[2025/26 To - Other reallocations]]","v":0},{"$f":"Dataset[[#This Row],[2026/27 To - Spending review Topic 1]]+Dataset[[#This Row],[2026/27 To - Spending review Topic 2]]+Dataset[[#This Row],[2026/27 To - Spending review Topic 3]]+Dataset[[#This Row],[2026/27 To - Spending review Topic 4]]+Dataset[[#This Row],[2026/27 To - Other reallocations]]","v":0},{"$f":"Dataset[[#This Row],[2024/25 Reduction]]+Dataset[[#This Row],[2024/25 From - Total]]","v":0},{"$f":"Dataset[[#This Row],[2025/26 Reduction]]+Dataset[[#This Row],[2025/26 From - Total]]","v":0},{"$f":"Dataset[[#This Row],[2026/27 Reduction]]+Dataset[[#This Row],[2026/27 From - Total]]","v":0},{"$f":"Dataset[[#This Row],[2023/24 Reduction]]","v":0},{"$f":"SUM(Dataset[[#This Row],[2024/25 Reduction]],Dataset[[#This Row],[2024/25 From - Total]],Dataset[[#This Row],[2024/25 To - Total]])","v":0},{"$f":"SUM(Dataset[[#This Row],[2025/26 Reduction]],Dataset[[#This Row],[2025/26 From - Total]],Dataset[[#This Row],[2025/26 To - Total]])","v":0},{"$f":"SUM(Dataset[[#This Row],[2026/27 Reduction]],Dataset[[#This Row],[2026/27 From - Total]],Dataset[[#This Row],[2026/27 To - Total]])","v":0},{"$f":"Dataset[[#This Row],[2023/24 Baseline]]+Dataset[[#This Row],[2023/24 Total change]]","v":0},{"$f":"Dataset[[#This Row],[2024/25 Baseline]]+Dataset[[#This Row],[2024/25 Total change]]","v":0},{"$f":"Dataset[[#This Row],[2025/26 Baseline]]+Dataset[[#This Row],[2025/26 Total change]]","v":0},{"$f":"Dataset[[#This Row],[2026/27 Baseline]]+Dataset[[#This Row],[2026/27 Total change]]","v":0}]
["NAT|Non-transfer item","26|Foreign governments and international organisations","2024_25","MTEF2024",26,1,6,44334,447,"26","01","06","044334","000447","26|01|06","02","02","07","48","50","02|02|07|48|50","National","Military Veterans","Administration","Office Accommodation","Non-transfer item","Capital","Transfers and subsidies","Foreign governments and international organisations","Foreign governments and international organisations","Foreign governments and international organisations","Peace and security","Defence and state security","NAT",0,0,0,0,0,0,0,0,0,0,0,null,null,null,null,null,null,null,null,null,null,null,null,null,null,null,null,null,null,null,null,null,null,null,null,null,null,null,null,null,null,null,null,null,null,{"$f":"Dataset[[#This Row],[2024/25 From - Spending review Topic 1]]+Dataset[[#This Row],[2024/25 From - Spending review Topic 2]]+Dataset[[#This Row],[2024/25 From - Spending review Topic 3]]+Dataset[[#This Row],[2024/25 From - Spending review Topic 4]]+Dataset[[#This Row],[2024/25 From - Other reallocations]]","v":0},{"$f":"Dataset[[#This Row],[2025/26 From - Spending review Topic 1]]+Dataset[[#This Row],[2025/26 From - Spending review Topic 2]]+Dataset[[#This Row],[2025/26 From - Spending review Topic 3]]+Dataset[[#This Row],[2025/26 From - Spending review Topic 4]]+Dataset[[#This Row],[2025/26 From - Other reallocations]]","v":0},{"$f":"Dataset[[#This Row],[2026/27 From - Spending review Topic 1]]+Dataset[[#This Row],[2026/27 From - Spending review Topic 2]]+Dataset[[#This Row],[2026/27 From - Spending review Topic 3]]+Dataset[[#This Row],[2026/27 From - Spending review Topic 4]]+Dataset[[#This Row],[2026/27 From - Other reallocations]]","v":0},{"$f":"Dataset[[#This Row],[2024/25 To - Spending review Topic 1]]+Dataset[[#This Row],[2024/25 To - Spending review Topic 2]]+Dataset[[#This Row],[2024/25 To - Spending review Topic 3]]+Dataset[[#This Row],[2024/25 To - Spending review Topic 4]]+Dataset[[#This Row],[2024/25 To - Other reallocations]]","v":0},{"$f":"Dataset[[#This Row],[2025/26 To - Spending review Topic 1]]+Dataset[[#This Row],[2025/26 To - Spending review Topic 2]]+Dataset[[#This Row],[2025/26 To - Spending review Topic 3]]+Dataset[[#This Row],[2025/26 To - Spending review Topic 4]]+Dataset[[#This Row],[2025/26 To - Other reallocations]]","v":0},{"$f":"Dataset[[#This Row],[2026/27 To - Spending review Topic 1]]+Dataset[[#This Row],[2026/27 To - Spending review Topic 2]]+Dataset[[#This Row],[2026/27 To - Spending review Topic 3]]+Dataset[[#This Row],[2026/27 To - Spending review Topic 4]]+Dataset[[#This Row],[2026/27 To - Other reallocations]]","v":0},{"$f":"Dataset[[#This Row],[2024/25 Reduction]]+Dataset[[#This Row],[2024/25 From - Total]]","v":0},{"$f":"Dataset[[#This Row],[2025/26 Reduction]]+Dataset[[#This Row],[2025/26 From - Total]]","v":0},{"$f":"Dataset[[#This Row],[2026/27 Reduction]]+Dataset[[#This Row],[2026/27 From - Total]]","v":0},{"$f":"Dataset[[#This Row],[2023/24 Reduction]]","v":0},{"$f":"SUM(Dataset[[#This Row],[2024/25 Reduction]],Dataset[[#This Row],[2024/25 From - Total]],Dataset[[#This Row],[2024/25 To - Total]])","v":0},{"$f":"SUM(Dataset[[#This Row],[2025/26 Reduction]],Dataset[[#This Row],[2025/26 From - Total]],Dataset[[#This Row],[2025/26 To - Total]])","v":0},{"$f":"SUM(Dataset[[#This Row],[2026/27 Reduction]],Dataset[[#This Row],[2026/27 From - Total]],Dataset[[#This Row],[2026/27 To - Total]])","v":0},{"$f":"Dataset[[#This Row],[2023/24 Baseline]]+Dataset[[#This Row],[2023/24 Total change]]","v":0},{"$f":"Dataset[[#This Row],[2024/25 Baseline]]+Dataset[[#This Row],[2024/25 Total change]]","v":0},{"$f":"Dataset[[#This Row],[2025/26 Baseline]]+Dataset[[#This Row],[2025/26 Total change]]","v":0},{"$f":"Dataset[[#This Row],[2026/27 Baseline]]+Dataset[[#This Row],[2026/27 Total change]]","v":0}]
["NAT|Non-transfer item","26|Subsidies on products and production (pc)","2024_25","MTEF2024",26,1,6,44335,448,"26","01","06","044335","000448","26|01|06","02","02","08","49","51","02|02|08|49|51","National","Military Veterans","Administration","Office Accommodation","Non-transfer item","Capital","Transfers and subsidies","Public corporations and private enterprises","Public corporations","Subsidies on products and production (pc)","Peace and security","Defence and state security","NAT",0,0,0,0,0,0,0,0,0,0,0,null,null,null,null,null,null,null,null,null,null,null,null,null,null,null,null,null,null,null,null,null,null,null,null,null,null,null,null,null,null,null,null,null,null,{"$f":"Dataset[[#This Row],[2024/25 From - Spending review Topic 1]]+Dataset[[#This Row],[2024/25 From - Spending review Topic 2]]+Dataset[[#This Row],[2024/25 From - Spending review Topic 3]]+Dataset[[#This Row],[2024/25 From - Spending review Topic 4]]+Dataset[[#This Row],[2024/25 From - Other reallocations]]","v":0},{"$f":"Dataset[[#This Row],[2025/26 From - Spending review Topic 1]]+Dataset[[#This Row],[2025/26 From - Spending review Topic 2]]+Dataset[[#This Row],[2025/26 From - Spending review Topic 3]]+Dataset[[#This Row],[2025/26 From - Spending review Topic 4]]+Dataset[[#This Row],[2025/26 From - Other reallocations]]","v":0},{"$f":"Dataset[[#This Row],[2026/27 From - Spending review Topic 1]]+Dataset[[#This Row],[2026/27 From - Spending review Topic 2]]+Dataset[[#This Row],[2026/27 From - Spending review Topic 3]]+Dataset[[#This Row],[2026/27 From - Spending review Topic 4]]+Dataset[[#This Row],[2026/27 From - Other reallocations]]","v":0},{"$f":"Dataset[[#This Row],[2024/25 To - Spending review Topic 1]]+Dataset[[#This Row],[2024/25 To - Spending review Topic 2]]+Dataset[[#This Row],[2024/25 To - Spending review Topic 3]]+Dataset[[#This Row],[2024/25 To - Spending review Topic 4]]+Dataset[[#This Row],[2024/25 To - Other reallocations]]","v":0},{"$f":"Dataset[[#This Row],[2025/26 To - Spending review Topic 1]]+Dataset[[#This Row],[2025/26 To - Spending review Topic 2]]+Dataset[[#This Row],[2025/26 To - Spending review Topic 3]]+Dataset[[#This Row],[2025/26 To - Spending review Topic 4]]+Dataset[[#This Row],[2025/26 To - Other reallocations]]","v":0},{"$f":"Dataset[[#This Row],[2026/27 To - Spending review Topic 1]]+Dataset[[#This Row],[2026/27 To - Spending review Topic 2]]+Dataset[[#This Row],[2026/27 To - Spending review Topic 3]]+Dataset[[#This Row],[2026/27 To - Spending review Topic 4]]+Dataset[[#This Row],[2026/27 To - Other reallocations]]","v":0},{"$f":"Dataset[[#This Row],[2024/25 Reduction]]+Dataset[[#This Row],[2024/25 From - Total]]","v":0},{"$f":"Dataset[[#This Row],[2025/26 Reduction]]+Dataset[[#This Row],[2025/26 From - Total]]","v":0},{"$f":"Dataset[[#This Row],[2026/27 Reduction]]+Dataset[[#This Row],[2026/27 From - Total]]","v":0},{"$f":"Dataset[[#This Row],[2023/24 Reduction]]","v":0},{"$f":"SUM(Dataset[[#This Row],[2024/25 Reduction]],Dataset[[#This Row],[2024/25 From - Total]],Dataset[[#This Row],[2024/25 To - Total]])","v":0},{"$f":"SUM(Dataset[[#This Row],[2025/26 Reduction]],Dataset[[#This Row],[2025/26 From - Total]],Dataset[[#This Row],[2025/26 To - Total]])","v":0},{"$f":"SUM(Dataset[[#This Row],[2026/27 Reduction]],Dataset[[#This Row],[2026/27 From - Total]],Dataset[[#This Row],[2026/27 To - Total]])","v":0},{"$f":"Dataset[[#This Row],[2023/24 Baseline]]+Dataset[[#This Row],[2023/24 Total change]]","v":0},{"$f":"Dataset[[#This Row],[2024/25 Baseline]]+Dataset[[#This Row],[2024/25 Total change]]","v":0},{"$f":"Dataset[[#This Row],[2025/26 Baseline]]+Dataset[[#This Row],[2025/26 Total change]]","v":0},{"$f":"Dataset[[#This Row],[2026/27 Baseline]]+Dataset[[#This Row],[2026/27 Total change]]","v":0}]
["NAT|Non-transfer item","26|Other transfers to public corporations","2024_25","MTEF2024",26,1,6,44336,449,"26","01","06","044336","000449","26|01|06","02","02","08","49","52","02|02|08|49|52","National","Military Veterans","Administration","Office Accommodation","Non-transfer item","Capital","Transfers and subsidies","Public corporations and private enterprises","Public corporations","Other transfers to public corporations","Peace and security","Defence and state security","NAT",0,0,0,0,0,0,0,0,0,0,0,null,null,null,null,null,null,null,null,null,null,null,null,null,null,null,null,null,null,null,null,null,null,null,null,null,null,null,null,null,null,null,null,null,null,{"$f":"Dataset[[#This Row],[2024/25 From - Spending review Topic 1]]+Dataset[[#This Row],[2024/25 From - Spending review Topic 2]]+Dataset[[#This Row],[2024/25 From - Spending review Topic 3]]+Dataset[[#This Row],[2024/25 From - Spending review Topic 4]]+Dataset[[#This Row],[2024/25 From - Other reallocations]]","v":0},{"$f":"Dataset[[#This Row],[2025/26 From - Spending review Topic 1]]+Dataset[[#This Row],[2025/26 From - Spending review Topic 2]]+Dataset[[#This Row],[2025/26 From - Spending review Topic 3]]+Dataset[[#This Row],[2025/26 From - Spending review Topic 4]]+Dataset[[#This Row],[2025/26 From - Other reallocations]]","v":0},{"$f":"Dataset[[#This Row],[2026/27 From - Spending review Topic 1]]+Dataset[[#This Row],[2026/27 From - Spending review Topic 2]]+Dataset[[#This Row],[2026/27 From - Spending review Topic 3]]+Dataset[[#This Row],[2026/27 From - Spending review Topic 4]]+Dataset[[#This Row],[2026/27 From - Other reallocations]]","v":0},{"$f":"Dataset[[#This Row],[2024/25 To - Spending review Topic 1]]+Dataset[[#This Row],[2024/25 To - Spending review Topic 2]]+Dataset[[#This Row],[2024/25 To - Spending review Topic 3]]+Dataset[[#This Row],[2024/25 To - Spending review Topic 4]]+Dataset[[#This Row],[2024/25 To - Other reallocations]]","v":0},{"$f":"Dataset[[#This Row],[2025/26 To - Spending review Topic 1]]+Dataset[[#This Row],[2025/26 To - Spending review Topic 2]]+Dataset[[#This Row],[2025/26 To - Spending review Topic 3]]+Dataset[[#This Row],[2025/26 To - Spending review Topic 4]]+Dataset[[#This Row],[2025/26 To - Other reallocations]]","v":0},{"$f":"Dataset[[#This Row],[2026/27 To - Spending review Topic 1]]+Dataset[[#This Row],[2026/27 To - Spending review Topic 2]]+Dataset[[#This Row],[2026/27 To - Spending review Topic 3]]+Dataset[[#This Row],[2026/27 To - Spending review Topic 4]]+Dataset[[#This Row],[2026/27 To - Other reallocations]]","v":0},{"$f":"Dataset[[#This Row],[2024/25 Reduction]]+Dataset[[#This Row],[2024/25 From - Total]]","v":0},{"$f":"Dataset[[#This Row],[2025/26 Reduction]]+Dataset[[#This Row],[2025/26 From - Total]]","v":0},{"$f":"Dataset[[#This Row],[2026/27 Reduction]]+Dataset[[#This Row],[2026/27 From - Total]]","v":0},{"$f":"Dataset[[#This Row],[2023/24 Reduction]]","v":0},{"$f":"SUM(Dataset[[#This Row],[2024/25 Reduction]],Dataset[[#This Row],[2024/25 From - Total]],Dataset[[#This Row],[2024/25 To - Total]])","v":0},{"$f":"SUM(Dataset[[#This Row],[2025/26 Reduction]],Dataset[[#This Row],[2025/26 From - Total]],Dataset[[#This Row],[2025/26 To - Total]])","v":0},{"$f":"SUM(Dataset[[#This Row],[2026/27 Reduction]],Dataset[[#This Row],[2026/27 From - Total]],Dataset[[#This Row],[2026/27 To - Total]])","v":0},{"$f":"Dataset[[#This Row],[2023/24 Baseline]]+Dataset[[#This Row],[2023/24 Total change]]","v":0},{"$f":"Dataset[[#This Row],[2024/25 Baseline]]+Dataset[[#This Row],[2024/25 Total change]]","v":0},{"$f":"Dataset[[#This Row],[2025/26 Baseline]]+Dataset[[#This Row],[2025/26 Total change]]","v":0},{"$f":"Dataset[[#This Row],[2026/27 Baseline]]+Dataset[[#This Row],[2026/27 Total change]]","v":0}]
["NAT|Non-transfer item","26|Other transfers to private enterprises","2024_25","MTEF2024",26,1,6,44337,450,"26","01","06","044337","000450","26|01|06","02","02","08","50","54","02|02|08|50|54","National","Military Veterans","Administration","Office Accommodation","Non-transfer item","Capital","Transfers and subsidies","Public corporations and private enterprises","Private enterprises","Other transfers to private enterprises","Peace and security","Defence and state security","NAT",0,0,0,0,0,0,0,0,0,0,0,null,null,null,null,null,null,null,null,null,null,null,null,null,null,null,null,null,null,null,null,null,null,null,null,null,null,null,null,null,null,null,null,null,null,{"$f":"Dataset[[#This Row],[2024/25 From - Spending review Topic 1]]+Dataset[[#This Row],[2024/25 From - Spending review Topic 2]]+Dataset[[#This Row],[2024/25 From - Spending review Topic 3]]+Dataset[[#This Row],[2024/25 From - Spending review Topic 4]]+Dataset[[#This Row],[2024/25 From - Other reallocations]]","v":0},{"$f":"Dataset[[#This Row],[2025/26 From - Spending review Topic 1]]+Dataset[[#This Row],[2025/26 From - Spending review Topic 2]]+Dataset[[#This Row],[2025/26 From - Spending review Topic 3]]+Dataset[[#This Row],[2025/26 From - Spending review Topic 4]]+Dataset[[#This Row],[2025/26 From - Other reallocations]]","v":0},{"$f":"Dataset[[#This Row],[2026/27 From - Spending review Topic 1]]+Dataset[[#This Row],[2026/27 From - Spending review Topic 2]]+Dataset[[#This Row],[2026/27 From - Spending review Topic 3]]+Dataset[[#This Row],[2026/27 From - Spending review Topic 4]]+Dataset[[#This Row],[2026/27 From - Other reallocations]]","v":0},{"$f":"Dataset[[#This Row],[2024/25 To - Spending review Topic 1]]+Dataset[[#This Row],[2024/25 To - Spending review Topic 2]]+Dataset[[#This Row],[2024/25 To - Spending review Topic 3]]+Dataset[[#This Row],[2024/25 To - Spending review Topic 4]]+Dataset[[#This Row],[2024/25 To - Other reallocations]]","v":0},{"$f":"Dataset[[#This Row],[2025/26 To - Spending review Topic 1]]+Dataset[[#This Row],[2025/26 To - Spending review Topic 2]]+Dataset[[#This Row],[2025/26 To - Spending review Topic 3]]+Dataset[[#This Row],[2025/26 To - Spending review Topic 4]]+Dataset[[#This Row],[2025/26 To - Other reallocations]]","v":0},{"$f":"Dataset[[#This Row],[2026/27 To - Spending review Topic 1]]+Dataset[[#This Row],[2026/27 To - Spending review Topic 2]]+Dataset[[#This Row],[2026/27 To - Spending review Topic 3]]+Dataset[[#This Row],[2026/27 To - Spending review Topic 4]]+Dataset[[#This Row],[2026/27 To - Other reallocations]]","v":0},{"$f":"Dataset[[#This Row],[2024/25 Reduction]]+Dataset[[#This Row],[2024/25 From - Total]]","v":0},{"$f":"Dataset[[#This Row],[2025/26 Reduction]]+Dataset[[#This Row],[2025/26 From - Total]]","v":0},{"$f":"Dataset[[#This Row],[2026/27 Reduction]]+Dataset[[#This Row],[2026/27 From - Total]]","v":0},{"$f":"Dataset[[#This Row],[2023/24 Reduction]]","v":0},{"$f":"SUM(Dataset[[#This Row],[2024/25 Reduction]],Dataset[[#This Row],[2024/25 From - Total]],Dataset[[#This Row],[2024/25 To - Total]])","v":0},{"$f":"SUM(Dataset[[#This Row],[2025/26 Reduction]],Dataset[[#This Row],[2025/26 From - Total]],Dataset[[#This Row],[2025/26 To - Total]])","v":0},{"$f":"SUM(Dataset[[#This Row],[2026/27 Reduction]],Dataset[[#This Row],[2026/27 From - Total]],Dataset[[#This Row],[2026/27 To - Total]])","v":0},{"$f":"Dataset[[#This Row],[2023/24 Baseline]]+Dataset[[#This Row],[2023/24 Total change]]","v":0},{"$f":"Dataset[[#This Row],[2024/25 Baseline]]+Dataset[[#This Row],[2024/25 Total change]]","v":0},{"$f":"Dataset[[#This Row],[2025/26 Baseline]]+Dataset[[#This Row],[2025/26 Total change]]","v":0},{"$f":"Dataset[[#This Row],[2026/27 Baseline]]+Dataset[[#This Row],[2026/27 Total change]]","v":0}]
["NAT|Non-transfer item","26|Non-profit institutions","2024_25","MTEF2024",26,1,6,44338,451,"26","01","06","044338","000451","26|01|06","02","02","09","51","55","02|02|09|51|55","National","Military Veterans","Administration","Office Accommodation","Non-transfer item","Capital","Transfers and subsidies","Non-profit institutions","Non-profit institutions","Non-profit institutions","Peace and security","Defence and state security","NAT",0,0,0,0,0,0,0,0,0,0,0,null,null,null,null,null,null,null,null,null,null,null,null,null,null,null,null,null,null,null,null,null,null,null,null,null,null,null,null,null,null,null,null,null,null,{"$f":"Dataset[[#This Row],[2024/25 From - Spending review Topic 1]]+Dataset[[#This Row],[2024/25 From - Spending review Topic 2]]+Dataset[[#This Row],[2024/25 From - Spending review Topic 3]]+Dataset[[#This Row],[2024/25 From - Spending review Topic 4]]+Dataset[[#This Row],[2024/25 From - Other reallocations]]","v":0},{"$f":"Dataset[[#This Row],[2025/26 From - Spending review Topic 1]]+Dataset[[#This Row],[2025/26 From - Spending review Topic 2]]+Dataset[[#This Row],[2025/26 From - Spending review Topic 3]]+Dataset[[#This Row],[2025/26 From - Spending review Topic 4]]+Dataset[[#This Row],[2025/26 From - Other reallocations]]","v":0},{"$f":"Dataset[[#This Row],[2026/27 From - Spending review Topic 1]]+Dataset[[#This Row],[2026/27 From - Spending review Topic 2]]+Dataset[[#This Row],[2026/27 From - Spending review Topic 3]]+Dataset[[#This Row],[2026/27 From - Spending review Topic 4]]+Dataset[[#This Row],[2026/27 From - Other reallocations]]","v":0},{"$f":"Dataset[[#This Row],[2024/25 To - Spending review Topic 1]]+Dataset[[#This Row],[2024/25 To - Spending review Topic 2]]+Dataset[[#This Row],[2024/25 To - Spending review Topic 3]]+Dataset[[#This Row],[2024/25 To - Spending review Topic 4]]+Dataset[[#This Row],[2024/25 To - Other reallocations]]","v":0},{"$f":"Dataset[[#This Row],[2025/26 To - Spending review Topic 1]]+Dataset[[#This Row],[2025/26 To - Spending review Topic 2]]+Dataset[[#This Row],[2025/26 To - Spending review Topic 3]]+Dataset[[#This Row],[2025/26 To - Spending review Topic 4]]+Dataset[[#This Row],[2025/26 To - Other reallocations]]","v":0},{"$f":"Dataset[[#This Row],[2026/27 To - Spending review Topic 1]]+Dataset[[#This Row],[2026/27 To - Spending review Topic 2]]+Dataset[[#This Row],[2026/27 To - Spending review Topic 3]]+Dataset[[#This Row],[2026/27 To - Spending review Topic 4]]+Dataset[[#This Row],[2026/27 To - Other reallocations]]","v":0},{"$f":"Dataset[[#This Row],[2024/25 Reduction]]+Dataset[[#This Row],[2024/25 From - Total]]","v":0},{"$f":"Dataset[[#This Row],[2025/26 Reduction]]+Dataset[[#This Row],[2025/26 From - Total]]","v":0},{"$f":"Dataset[[#This Row],[2026/27 Reduction]]+Dataset[[#This Row],[2026/27 From - Total]]","v":0},{"$f":"Dataset[[#This Row],[2023/24 Reduction]]","v":0},{"$f":"SUM(Dataset[[#This Row],[2024/25 Reduction]],Dataset[[#This Row],[2024/25 From - Total]],Dataset[[#This Row],[2024/25 To - Total]])","v":0},{"$f":"SUM(Dataset[[#This Row],[2025/26 Reduction]],Dataset[[#This Row],[2025/26 From - Total]],Dataset[[#This Row],[2025/26 To - Total]])","v":0},{"$f":"SUM(Dataset[[#This Row],[2026/27 Reduction]],Dataset[[#This Row],[2026/27 From - Total]],Dataset[[#This Row],[2026/27 To - Total]])","v":0},{"$f":"Dataset[[#This Row],[2023/24 Baseline]]+Dataset[[#This Row],[2023/24 Total change]]","v":0},{"$f":"Dataset[[#This Row],[2024/25 Baseline]]+Dataset[[#This Row],[2024/25 Total change]]","v":0},{"$f":"Dataset[[#This Row],[2025/26 Baseline]]+Dataset[[#This Row],[2025/26 Total change]]","v":0},{"$f":"Dataset[[#This Row],[2026/27 Baseline]]+Dataset[[#This Row],[2026/27 Total change]]","v":0}]
["NAT|Non-transfer item","26|Other transfers to households","2024_25","MTEF2024",26,1,6,44339,452,"26","01","06","044339","000452","26|01|06","02","02","10","53","57","02|02|10|53|57","National","Military Veterans","Administration","Office Accommodation","Non-transfer item","Capital","Transfers and subsidies","Households","Other transfers to households","Other transfers to households","Peace and security","Defence and state security","NAT",0,0,0,0,0,0,0,0,0,0,0,null,null,null,null,null,null,null,null,null,null,null,null,null,null,null,null,null,null,null,null,null,null,null,null,null,null,null,null,null,null,null,null,null,null,{"$f":"Dataset[[#This Row],[2024/25 From - Spending review Topic 1]]+Dataset[[#This Row],[2024/25 From - Spending review Topic 2]]+Dataset[[#This Row],[2024/25 From - Spending review Topic 3]]+Dataset[[#This Row],[2024/25 From - Spending review Topic 4]]+Dataset[[#This Row],[2024/25 From - Other reallocations]]","v":0},{"$f":"Dataset[[#This Row],[2025/26 From - Spending review Topic 1]]+Dataset[[#This Row],[2025/26 From - Spending review Topic 2]]+Dataset[[#This Row],[2025/26 From - Spending review Topic 3]]+Dataset[[#This Row],[2025/26 From - Spending review Topic 4]]+Dataset[[#This Row],[2025/26 From - Other reallocations]]","v":0},{"$f":"Dataset[[#This Row],[2026/27 From - Spending review Topic 1]]+Dataset[[#This Row],[2026/27 From - Spending review Topic 2]]+Dataset[[#This Row],[2026/27 From - Spending review Topic 3]]+Dataset[[#This Row],[2026/27 From - Spending review Topic 4]]+Dataset[[#This Row],[2026/27 From - Other reallocations]]","v":0},{"$f":"Dataset[[#This Row],[2024/25 To - Spending review Topic 1]]+Dataset[[#This Row],[2024/25 To - Spending review Topic 2]]+Dataset[[#This Row],[2024/25 To - Spending review Topic 3]]+Dataset[[#This Row],[2024/25 To - Spending review Topic 4]]+Dataset[[#This Row],[2024/25 To - Other reallocations]]","v":0},{"$f":"Dataset[[#This Row],[2025/26 To - Spending review Topic 1]]+Dataset[[#This Row],[2025/26 To - Spending review Topic 2]]+Dataset[[#This Row],[2025/26 To - Spending review Topic 3]]+Dataset[[#This Row],[2025/26 To - Spending review Topic 4]]+Dataset[[#This Row],[2025/26 To - Other reallocations]]","v":0},{"$f":"Dataset[[#This Row],[2026/27 To - Spending review Topic 1]]+Dataset[[#This Row],[2026/27 To - Spending review Topic 2]]+Dataset[[#This Row],[2026/27 To - Spending review Topic 3]]+Dataset[[#This Row],[2026/27 To - Spending review Topic 4]]+Dataset[[#This Row],[2026/27 To - Other reallocations]]","v":0},{"$f":"Dataset[[#This Row],[2024/25 Reduction]]+Dataset[[#This Row],[2024/25 From - Total]]","v":0},{"$f":"Dataset[[#This Row],[2025/26 Reduction]]+Dataset[[#This Row],[2025/26 From - Total]]","v":0},{"$f":"Dataset[[#This Row],[2026/27 Reduction]]+Dataset[[#This Row],[2026/27 From - Total]]","v":0},{"$f":"Dataset[[#This Row],[2023/24 Reduction]]","v":0},{"$f":"SUM(Dataset[[#This Row],[2024/25 Reduction]],Dataset[[#This Row],[2024/25 From - Total]],Dataset[[#This Row],[2024/25 To - Total]])","v":0},{"$f":"SUM(Dataset[[#This Row],[2025/26 Reduction]],Dataset[[#This Row],[2025/26 From - Total]],Dataset[[#This Row],[2025/26 To - Total]])","v":0},{"$f":"SUM(Dataset[[#This Row],[2026/27 Reduction]],Dataset[[#This Row],[2026/27 From - Total]],Dataset[[#This Row],[2026/27 To - Total]])","v":0},{"$f":"Dataset[[#This Row],[2023/24 Baseline]]+Dataset[[#This Row],[2023/24 Total change]]","v":0},{"$f":"Dataset[[#This Row],[2024/25 Baseline]]+Dataset[[#This Row],[2024/25 Total change]]","v":0},{"$f":"Dataset[[#This Row],[2025/26 Baseline]]+Dataset[[#This Row],[2025/26 Total change]]","v":0},{"$f":"Dataset[[#This Row],[2026/27 Baseline]]+Dataset[[#This Row],[2026/27 Total change]]","v":0}]
["NAT|Non-transfer item","26|Buildings","2024_25","MTEF2024",26,1,6,44340,453,"26","01","06","044340","000453","26|01|06","02","03","11","54","58","02|03|11|54|58","National","Military Veterans","Administration","Office Accommodation","Non-transfer item","Capital","Payments for capital assets","Buildings and other fixed structures","Buildings","Buildings","Peace and security","Defence and state security","NAT",0,0,0,0,0,0,0,0,0,0,0,null,null,null,null,null,null,null,null,null,null,null,null,null,null,null,null,null,null,null,null,null,null,null,null,null,null,null,null,null,null,null,null,null,null,{"$f":"Dataset[[#This Row],[2024/25 From - Spending review Topic 1]]+Dataset[[#This Row],[2024/25 From - Spending review Topic 2]]+Dataset[[#This Row],[2024/25 From - Spending review Topic 3]]+Dataset[[#This Row],[2024/25 From - Spending review Topic 4]]+Dataset[[#This Row],[2024/25 From - Other reallocations]]","v":0},{"$f":"Dataset[[#This Row],[2025/26 From - Spending review Topic 1]]+Dataset[[#This Row],[2025/26 From - Spending review Topic 2]]+Dataset[[#This Row],[2025/26 From - Spending review Topic 3]]+Dataset[[#This Row],[2025/26 From - Spending review Topic 4]]+Dataset[[#This Row],[2025/26 From - Other reallocations]]","v":0},{"$f":"Dataset[[#This Row],[2026/27 From - Spending review Topic 1]]+Dataset[[#This Row],[2026/27 From - Spending review Topic 2]]+Dataset[[#This Row],[2026/27 From - Spending review Topic 3]]+Dataset[[#This Row],[2026/27 From - Spending review Topic 4]]+Dataset[[#This Row],[2026/27 From - Other reallocations]]","v":0},{"$f":"Dataset[[#This Row],[2024/25 To - Spending review Topic 1]]+Dataset[[#This Row],[2024/25 To - Spending review Topic 2]]+Dataset[[#This Row],[2024/25 To - Spending review Topic 3]]+Dataset[[#This Row],[2024/25 To - Spending review Topic 4]]+Dataset[[#This Row],[2024/25 To - Other reallocations]]","v":0},{"$f":"Dataset[[#This Row],[2025/26 To - Spending review Topic 1]]+Dataset[[#This Row],[2025/26 To - Spending review Topic 2]]+Dataset[[#This Row],[2025/26 To - Spending review Topic 3]]+Dataset[[#This Row],[2025/26 To - Spending review Topic 4]]+Dataset[[#This Row],[2025/26 To - Other reallocations]]","v":0},{"$f":"Dataset[[#This Row],[2026/27 To - Spending review Topic 1]]+Dataset[[#This Row],[2026/27 To - Spending review Topic 2]]+Dataset[[#This Row],[2026/27 To - Spending review Topic 3]]+Dataset[[#This Row],[2026/27 To - Spending review Topic 4]]+Dataset[[#This Row],[2026/27 To - Other reallocations]]","v":0},{"$f":"Dataset[[#This Row],[2024/25 Reduction]]+Dataset[[#This Row],[2024/25 From - Total]]","v":0},{"$f":"Dataset[[#This Row],[2025/26 Reduction]]+Dataset[[#This Row],[2025/26 From - Total]]","v":0},{"$f":"Dataset[[#This Row],[2026/27 Reduction]]+Dataset[[#This Row],[2026/27 From - Total]]","v":0},{"$f":"Dataset[[#This Row],[2023/24 Reduction]]","v":0},{"$f":"SUM(Dataset[[#This Row],[2024/25 Reduction]],Dataset[[#This Row],[2024/25 From - Total]],Dataset[[#This Row],[2024/25 To - Total]])","v":0},{"$f":"SUM(Dataset[[#This Row],[2025/26 Reduction]],Dataset[[#This Row],[2025/26 From - Total]],Dataset[[#This Row],[2025/26 To - Total]])","v":0},{"$f":"SUM(Dataset[[#This Row],[2026/27 Reduction]],Dataset[[#This Row],[2026/27 From - Total]],Dataset[[#This Row],[2026/27 To - Total]])","v":0},{"$f":"Dataset[[#This Row],[2023/24 Baseline]]+Dataset[[#This Row],[2023/24 Total change]]","v":0},{"$f":"Dataset[[#This Row],[2024/25 Baseline]]+Dataset[[#This Row],[2024/25 Total change]]","v":0},{"$f":"Dataset[[#This Row],[2025/26 Baseline]]+Dataset[[#This Row],[2025/26 Total change]]","v":0},{"$f":"Dataset[[#This Row],[2026/27 Baseline]]+Dataset[[#This Row],[2026/27 Total change]]","v":0}]
["NAT|Non-transfer item","26|Other fixed structures","2024_25","MTEF2024",26,1,6,44341,454,"26","01","06","044341","000454","26|01|06","02","03","11","55","59","02|03|11|55|59","National","Military Veterans","Administration","Office Accommodation","Non-transfer item","Capital","Payments for capital assets","Buildings and other fixed structures","Other fixed structures","Other fixed structures","Peace and security","Defence and state security","NAT",0,0,0,0,0,0,0,0,0,0,0,null,null,null,null,null,null,null,null,null,null,null,null,null,null,null,null,null,null,null,null,null,null,null,null,null,null,null,null,null,null,null,null,null,null,{"$f":"Dataset[[#This Row],[2024/25 From - Spending review Topic 1]]+Dataset[[#This Row],[2024/25 From - Spending review Topic 2]]+Dataset[[#This Row],[2024/25 From - Spending review Topic 3]]+Dataset[[#This Row],[2024/25 From - Spending review Topic 4]]+Dataset[[#This Row],[2024/25 From - Other reallocations]]","v":0},{"$f":"Dataset[[#This Row],[2025/26 From - Spending review Topic 1]]+Dataset[[#This Row],[2025/26 From - Spending review Topic 2]]+Dataset[[#This Row],[2025/26 From - Spending review Topic 3]]+Dataset[[#This Row],[2025/26 From - Spending review Topic 4]]+Dataset[[#This Row],[2025/26 From - Other reallocations]]","v":0},{"$f":"Dataset[[#This Row],[2026/27 From - Spending review Topic 1]]+Dataset[[#This Row],[2026/27 From - Spending review Topic 2]]+Dataset[[#This Row],[2026/27 From - Spending review Topic 3]]+Dataset[[#This Row],[2026/27 From - Spending review Topic 4]]+Dataset[[#This Row],[2026/27 From - Other reallocations]]","v":0},{"$f":"Dataset[[#This Row],[2024/25 To - Spending review Topic 1]]+Dataset[[#This Row],[2024/25 To - Spending review Topic 2]]+Dataset[[#This Row],[2024/25 To - Spending review Topic 3]]+Dataset[[#This Row],[2024/25 To - Spending review Topic 4]]+Dataset[[#This Row],[2024/25 To - Other reallocations]]","v":0},{"$f":"Dataset[[#This Row],[2025/26 To - Spending review Topic 1]]+Dataset[[#This Row],[2025/26 To - Spending review Topic 2]]+Dataset[[#This Row],[2025/26 To - Spending review Topic 3]]+Dataset[[#This Row],[2025/26 To - Spending review Topic 4]]+Dataset[[#This Row],[2025/26 To - Other reallocations]]","v":0},{"$f":"Dataset[[#This Row],[2026/27 To - Spending review Topic 1]]+Dataset[[#This Row],[2026/27 To - Spending review Topic 2]]+Dataset[[#This Row],[2026/27 To - Spending review Topic 3]]+Dataset[[#This Row],[2026/27 To - Spending review Topic 4]]+Dataset[[#This Row],[2026/27 To - Other reallocations]]","v":0},{"$f":"Dataset[[#This Row],[2024/25 Reduction]]+Dataset[[#This Row],[2024/25 From - Total]]","v":0},{"$f":"Dataset[[#This Row],[2025/26 Reduction]]+Dataset[[#This Row],[2025/26 From - Total]]","v":0},{"$f":"Dataset[[#This Row],[2026/27 Reduction]]+Dataset[[#This Row],[2026/27 From - Total]]","v":0},{"$f":"Dataset[[#This Row],[2023/24 Reduction]]","v":0},{"$f":"SUM(Dataset[[#This Row],[2024/25 Reduction]],Dataset[[#This Row],[2024/25 From - Total]],Dataset[[#This Row],[2024/25 To - Total]])","v":0},{"$f":"SUM(Dataset[[#This Row],[2025/26 Reduction]],Dataset[[#This Row],[2025/26 From - Total]],Dataset[[#This Row],[2025/26 To - Total]])","v":0},{"$f":"SUM(Dataset[[#This Row],[2026/27 Reduction]],Dataset[[#This Row],[2026/27 From - Total]],Dataset[[#This Row],[2026/27 To - Total]])","v":0},{"$f":"Dataset[[#This Row],[2023/24 Baseline]]+Dataset[[#This Row],[2023/24 Total change]]","v":0},{"$f":"Dataset[[#This Row],[2024/25 Baseline]]+Dataset[[#This Row],[2024/25 Total change]]","v":0},{"$f":"Dataset[[#This Row],[2025/26 Baseline]]+Dataset[[#This Row],[2025/26 Total change]]","v":0},{"$f":"Dataset[[#This Row],[2026/27 Baseline]]+Dataset[[#This Row],[2026/27 Total change]]","v":0}]
["NAT|Non-transfer item","26|Transport equipment","2024_25","MTEF2024",26,1,6,44342,455,"26","01","06","044342","000455","26|01|06","02","03","12","56","60","02|03|12|56|60","National","Military Veterans","Administration","Office Accommodation","Non-transfer item","Capital","Payments for capital assets","Machinery and equipment","Transport equipment","Transport equipment","Peace and security","Defence and state security","NAT",0,0,0,0,0,0,0,0,0,0,0,null,null,null,null,null,null,null,null,null,null,null,null,null,null,null,null,null,null,null,null,null,null,null,null,null,null,null,null,null,null,null,null,null,null,{"$f":"Dataset[[#This Row],[2024/25 From - Spending review Topic 1]]+Dataset[[#This Row],[2024/25 From - Spending review Topic 2]]+Dataset[[#This Row],[2024/25 From - Spending review Topic 3]]+Dataset[[#This Row],[2024/25 From - Spending review Topic 4]]+Dataset[[#This Row],[2024/25 From - Other reallocations]]","v":0},{"$f":"Dataset[[#This Row],[2025/26 From - Spending review Topic 1]]+Dataset[[#This Row],[2025/26 From - Spending review Topic 2]]+Dataset[[#This Row],[2025/26 From - Spending review Topic 3]]+Dataset[[#This Row],[2025/26 From - Spending review Topic 4]]+Dataset[[#This Row],[2025/26 From - Other reallocations]]","v":0},{"$f":"Dataset[[#This Row],[2026/27 From - Spending review Topic 1]]+Dataset[[#This Row],[2026/27 From - Spending review Topic 2]]+Dataset[[#This Row],[2026/27 From - Spending review Topic 3]]+Dataset[[#This Row],[2026/27 From - Spending review Topic 4]]+Dataset[[#This Row],[2026/27 From - Other reallocations]]","v":0},{"$f":"Dataset[[#This Row],[2024/25 To - Spending review Topic 1]]+Dataset[[#This Row],[2024/25 To - Spending review Topic 2]]+Dataset[[#This Row],[2024/25 To - Spending review Topic 3]]+Dataset[[#This Row],[2024/25 To - Spending review Topic 4]]+Dataset[[#This Row],[2024/25 To - Other reallocations]]","v":0},{"$f":"Dataset[[#This Row],[2025/26 To - Spending review Topic 1]]+Dataset[[#This Row],[2025/26 To - Spending review Topic 2]]+Dataset[[#This Row],[2025/26 To - Spending review Topic 3]]+Dataset[[#This Row],[2025/26 To - Spending review Topic 4]]+Dataset[[#This Row],[2025/26 To - Other reallocations]]","v":0},{"$f":"Dataset[[#This Row],[2026/27 To - Spending review Topic 1]]+Dataset[[#This Row],[2026/27 To - Spending review Topic 2]]+Dataset[[#This Row],[2026/27 To - Spending review Topic 3]]+Dataset[[#This Row],[2026/27 To - Spending review Topic 4]]+Dataset[[#This Row],[2026/27 To - Other reallocations]]","v":0},{"$f":"Dataset[[#This Row],[2024/25 Reduction]]+Dataset[[#This Row],[2024/25 From - Total]]","v":0},{"$f":"Dataset[[#This Row],[2025/26 Reduction]]+Dataset[[#This Row],[2025/26 From - Total]]","v":0},{"$f":"Dataset[[#This Row],[2026/27 Reduction]]+Dataset[[#This Row],[2026/27 From - Total]]","v":0},{"$f":"Dataset[[#This Row],[2023/24 Reduction]]","v":0},{"$f":"SUM(Dataset[[#This Row],[2024/25 Reduction]],Dataset[[#This Row],[2024/25 From - Total]],Dataset[[#This Row],[2024/25 To - Total]])","v":0},{"$f":"SUM(Dataset[[#This Row],[2025/26 Reduction]],Dataset[[#This Row],[2025/26 From - Total]],Dataset[[#This Row],[2025/26 To - Total]])","v":0},{"$f":"SUM(Dataset[[#This Row],[2026/27 Reduction]],Dataset[[#This Row],[2026/27 From - Total]],Dataset[[#This Row],[2026/27 To - Total]])","v":0},{"$f":"Dataset[[#This Row],[2023/24 Baseline]]+Dataset[[#This Row],[2023/24 Total change]]","v":0},{"$f":"Dataset[[#This Row],[2024/25 Baseline]]+Dataset[[#This Row],[2024/25 Total change]]","v":0},{"$f":"Dataset[[#This Row],[2025/26 Baseline]]+Dataset[[#This Row],[2025/26 Total change]]","v":0},{"$f":"Dataset[[#This Row],[2026/27 Baseline]]+Dataset[[#This Row],[2026/27 Total change]]","v":0}]
["NAT|Non-transfer item","26|Other machinery and equipment","2024_25","MTEF2024",26,1,6,44343,456,"26","01","06","044343","000456","26|01|06","02","03","12","57","61","02|03|12|57|61","National","Military Veterans","Administration","Office Accommodation","Non-transfer item","Capital","Payments for capital assets","Machinery and equipment","Other machinery and equipment","Other machinery and equipment","Peace and security","Defence and state security","NAT",0,0,0,0,0,0,0,2200,0,0,0,null,null,null,null,null,null,null,null,null,null,null,null,null,null,null,null,null,null,null,null,null,null,null,null,null,null,null,null,null,null,null,null,null,null,{"$f":"Dataset[[#This Row],[2024/25 From - Spending review Topic 1]]+Dataset[[#This Row],[2024/25 From - Spending review Topic 2]]+Dataset[[#This Row],[2024/25 From - Spending review Topic 3]]+Dataset[[#This Row],[2024/25 From - Spending review Topic 4]]+Dataset[[#This Row],[2024/25 From - Other reallocations]]","v":0},{"$f":"Dataset[[#This Row],[2025/26 From - Spending review Topic 1]]+Dataset[[#This Row],[2025/26 From - Spending review Topic 2]]+Dataset[[#This Row],[2025/26 From - Spending review Topic 3]]+Dataset[[#This Row],[2025/26 From - Spending review Topic 4]]+Dataset[[#This Row],[2025/26 From - Other reallocations]]","v":0},{"$f":"Dataset[[#This Row],[2026/27 From - Spending review Topic 1]]+Dataset[[#This Row],[2026/27 From - Spending review Topic 2]]+Dataset[[#This Row],[2026/27 From - Spending review Topic 3]]+Dataset[[#This Row],[2026/27 From - Spending review Topic 4]]+Dataset[[#This Row],[2026/27 From - Other reallocations]]","v":0},{"$f":"Dataset[[#This Row],[2024/25 To - Spending review Topic 1]]+Dataset[[#This Row],[2024/25 To - Spending review Topic 2]]+Dataset[[#This Row],[2024/25 To - Spending review Topic 3]]+Dataset[[#This Row],[2024/25 To - Spending review Topic 4]]+Dataset[[#This Row],[2024/25 To - Other reallocations]]","v":0},{"$f":"Dataset[[#This Row],[2025/26 To - Spending review Topic 1]]+Dataset[[#This Row],[2025/26 To - Spending review Topic 2]]+Dataset[[#This Row],[2025/26 To - Spending review Topic 3]]+Dataset[[#This Row],[2025/26 To - Spending review Topic 4]]+Dataset[[#This Row],[2025/26 To - Other reallocations]]","v":0},{"$f":"Dataset[[#This Row],[2026/27 To - Spending review Topic 1]]+Dataset[[#This Row],[2026/27 To - Spending review Topic 2]]+Dataset[[#This Row],[2026/27 To - Spending review Topic 3]]+Dataset[[#This Row],[2026/27 To - Spending review Topic 4]]+Dataset[[#This Row],[2026/27 To - Other reallocations]]","v":0},{"$f":"Dataset[[#This Row],[2024/25 Reduction]]+Dataset[[#This Row],[2024/25 From - Total]]","v":0},{"$f":"Dataset[[#This Row],[2025/26 Reduction]]+Dataset[[#This Row],[2025/26 From - Total]]","v":0},{"$f":"Dataset[[#This Row],[2026/27 Reduction]]+Dataset[[#This Row],[2026/27 From - Total]]","v":0},{"$f":"Dataset[[#This Row],[2023/24 Reduction]]","v":0},{"$f":"SUM(Dataset[[#This Row],[2024/25 Reduction]],Dataset[[#This Row],[2024/25 From - Total]],Dataset[[#This Row],[2024/25 To - Total]])","v":0},{"$f":"SUM(Dataset[[#This Row],[2025/26 Reduction]],Dataset[[#This Row],[2025/26 From - Total]],Dataset[[#This Row],[2025/26 To - Total]])","v":0},{"$f":"SUM(Dataset[[#This Row],[2026/27 Reduction]],Dataset[[#This Row],[2026/27 From - Total]],Dataset[[#This Row],[2026/27 To - Total]])","v":0},{"$f":"Dataset[[#This Row],[2023/24 Baseline]]+Dataset[[#This Row],[2023/24 Total change]]","v":2200},{"$f":"Dataset[[#This Row],[2024/25 Baseline]]+Dataset[[#This Row],[2024/25 Total change]]","v":0},{"$f":"Dataset[[#This Row],[2025/26 Baseline]]+Dataset[[#This Row],[2025/26 Total change]]","v":0},{"$f":"Dataset[[#This Row],[2026/27 Baseline]]+Dataset[[#This Row],[2026/27 Total change]]","v":0}]
["NAT|Non-transfer item","26|Heritage assets","2024_25","MTEF2024",26,1,6,44344,457,"26","01","06","044344","000457","26|01|06","02","03","13","58","62","02|03|13|58|62","National","Military Veterans","Administration","Office Accommodation","Non-transfer item","Capital","Payments for capital assets","Heritage assets","Heritage assets","Heritage assets","Peace and security","Defence and state security","NAT",0,0,0,0,0,0,0,0,0,0,0,null,null,null,null,null,null,null,null,null,null,null,null,null,null,null,null,null,null,null,null,null,null,null,null,null,null,null,null,null,null,null,null,null,null,{"$f":"Dataset[[#This Row],[2024/25 From - Spending review Topic 1]]+Dataset[[#This Row],[2024/25 From - Spending review Topic 2]]+Dataset[[#This Row],[2024/25 From - Spending review Topic 3]]+Dataset[[#This Row],[2024/25 From - Spending review Topic 4]]+Dataset[[#This Row],[2024/25 From - Other reallocations]]","v":0},{"$f":"Dataset[[#This Row],[2025/26 From - Spending review Topic 1]]+Dataset[[#This Row],[2025/26 From - Spending review Topic 2]]+Dataset[[#This Row],[2025/26 From - Spending review Topic 3]]+Dataset[[#This Row],[2025/26 From - Spending review Topic 4]]+Dataset[[#This Row],[2025/26 From - Other reallocations]]","v":0},{"$f":"Dataset[[#This Row],[2026/27 From - Spending review Topic 1]]+Dataset[[#This Row],[2026/27 From - Spending review Topic 2]]+Dataset[[#This Row],[2026/27 From - Spending review Topic 3]]+Dataset[[#This Row],[2026/27 From - Spending review Topic 4]]+Dataset[[#This Row],[2026/27 From - Other reallocations]]","v":0},{"$f":"Dataset[[#This Row],[2024/25 To - Spending review Topic 1]]+Dataset[[#This Row],[2024/25 To - Spending review Topic 2]]+Dataset[[#This Row],[2024/25 To - Spending review Topic 3]]+Dataset[[#This Row],[2024/25 To - Spending review Topic 4]]+Dataset[[#This Row],[2024/25 To - Other reallocations]]","v":0},{"$f":"Dataset[[#This Row],[2025/26 To - Spending review Topic 1]]+Dataset[[#This Row],[2025/26 To - Spending review Topic 2]]+Dataset[[#This Row],[2025/26 To - Spending review Topic 3]]+Dataset[[#This Row],[2025/26 To - Spending review Topic 4]]+Dataset[[#This Row],[2025/26 To - Other reallocations]]","v":0},{"$f":"Dataset[[#This Row],[2026/27 To - Spending review Topic 1]]+Dataset[[#This Row],[2026/27 To - Spending review Topic 2]]+Dataset[[#This Row],[2026/27 To - Spending review Topic 3]]+Dataset[[#This Row],[2026/27 To - Spending review Topic 4]]+Dataset[[#This Row],[2026/27 To - Other reallocations]]","v":0},{"$f":"Dataset[[#This Row],[2024/25 Reduction]]+Dataset[[#This Row],[2024/25 From - Total]]","v":0},{"$f":"Dataset[[#This Row],[2025/26 Reduction]]+Dataset[[#This Row],[2025/26 From - Total]]","v":0},{"$f":"Dataset[[#This Row],[2026/27 Reduction]]+Dataset[[#This Row],[2026/27 From - Total]]","v":0},{"$f":"Dataset[[#This Row],[2023/24 Reduction]]","v":0},{"$f":"SUM(Dataset[[#This Row],[2024/25 Reduction]],Dataset[[#This Row],[2024/25 From - Total]],Dataset[[#This Row],[2024/25 To - Total]])","v":0},{"$f":"SUM(Dataset[[#This Row],[2025/26 Reduction]],Dataset[[#This Row],[2025/26 From - Total]],Dataset[[#This Row],[2025/26 To - Total]])","v":0},{"$f":"SUM(Dataset[[#This Row],[2026/27 Reduction]],Dataset[[#This Row],[2026/27 From - Total]],Dataset[[#This Row],[2026/27 To - Total]])","v":0},{"$f":"Dataset[[#This Row],[2023/24 Baseline]]+Dataset[[#This Row],[2023/24 Total change]]","v":0},{"$f":"Dataset[[#This Row],[2024/25 Baseline]]+Dataset[[#This Row],[2024/25 Total change]]","v":0},{"$f":"Dataset[[#This Row],[2025/26 Baseline]]+Dataset[[#This Row],[2025/26 Total change]]","v":0},{"$f":"Dataset[[#This Row],[2026/27 Baseline]]+Dataset[[#This Row],[2026/27 Total change]]","v":0}]
["NAT|Non-transfer item","26|Specialised military assets","2024_25","MTEF2024",26,1,6,44345,458,"26","01","06","044345","000458","26|01|06","02","03","14","59","63","02|03|14|59|63","National","Military Veterans","Administration","Office Accommodation","Non-transfer item","Capital","Payments for capital assets","Specialised military assets","Specialised military assets","Specialised military assets","Peace and security","Defence and state security","NAT",0,0,0,0,0,0,0,0,0,0,0,null,null,null,null,null,null,null,null,null,null,null,null,null,null,null,null,null,null,null,null,null,null,null,null,null,null,null,null,null,null,null,null,null,null,{"$f":"Dataset[[#This Row],[2024/25 From - Spending review Topic 1]]+Dataset[[#This Row],[2024/25 From - Spending review Topic 2]]+Dataset[[#This Row],[2024/25 From - Spending review Topic 3]]+Dataset[[#This Row],[2024/25 From - Spending review Topic 4]]+Dataset[[#This Row],[2024/25 From - Other reallocations]]","v":0},{"$f":"Dataset[[#This Row],[2025/26 From - Spending review Topic 1]]+Dataset[[#This Row],[2025/26 From - Spending review Topic 2]]+Dataset[[#This Row],[2025/26 From - Spending review Topic 3]]+Dataset[[#This Row],[2025/26 From - Spending review Topic 4]]+Dataset[[#This Row],[2025/26 From - Other reallocations]]","v":0},{"$f":"Dataset[[#This Row],[2026/27 From - Spending review Topic 1]]+Dataset[[#This Row],[2026/27 From - Spending review Topic 2]]+Dataset[[#This Row],[2026/27 From - Spending review Topic 3]]+Dataset[[#This Row],[2026/27 From - Spending review Topic 4]]+Dataset[[#This Row],[2026/27 From - Other reallocations]]","v":0},{"$f":"Dataset[[#This Row],[2024/25 To - Spending review Topic 1]]+Dataset[[#This Row],[2024/25 To - Spending review Topic 2]]+Dataset[[#This Row],[2024/25 To - Spending review Topic 3]]+Dataset[[#This Row],[2024/25 To - Spending review Topic 4]]+Dataset[[#This Row],[2024/25 To - Other reallocations]]","v":0},{"$f":"Dataset[[#This Row],[2025/26 To - Spending review Topic 1]]+Dataset[[#This Row],[2025/26 To - Spending review Topic 2]]+Dataset[[#This Row],[2025/26 To - Spending review Topic 3]]+Dataset[[#This Row],[2025/26 To - Spending review Topic 4]]+Dataset[[#This Row],[2025/26 To - Other reallocations]]","v":0},{"$f":"Dataset[[#This Row],[2026/27 To - Spending review Topic 1]]+Dataset[[#This Row],[2026/27 To - Spending review Topic 2]]+Dataset[[#This Row],[2026/27 To - Spending review Topic 3]]+Dataset[[#This Row],[2026/27 To - Spending review Topic 4]]+Dataset[[#This Row],[2026/27 To - Other reallocations]]","v":0},{"$f":"Dataset[[#This Row],[2024/25 Reduction]]+Dataset[[#This Row],[2024/25 From - Total]]","v":0},{"$f":"Dataset[[#This Row],[2025/26 Reduction]]+Dataset[[#This Row],[2025/26 From - Total]]","v":0},{"$f":"Dataset[[#This Row],[2026/27 Reduction]]+Dataset[[#This Row],[2026/27 From - Total]]","v":0},{"$f":"Dataset[[#This Row],[2023/24 Reduction]]","v":0},{"$f":"SUM(Dataset[[#This Row],[2024/25 Reduction]],Dataset[[#This Row],[2024/25 From - Total]],Dataset[[#This Row],[2024/25 To - Total]])","v":0},{"$f":"SUM(Dataset[[#This Row],[2025/26 Reduction]],Dataset[[#This Row],[2025/26 From - Total]],Dataset[[#This Row],[2025/26 To - Total]])","v":0},{"$f":"SUM(Dataset[[#This Row],[2026/27 Reduction]],Dataset[[#This Row],[2026/27 From - Total]],Dataset[[#This Row],[2026/27 To - Total]])","v":0},{"$f":"Dataset[[#This Row],[2023/24 Baseline]]+Dataset[[#This Row],[2023/24 Total change]]","v":0},{"$f":"Dataset[[#This Row],[2024/25 Baseline]]+Dataset[[#This Row],[2024/25 Total change]]","v":0},{"$f":"Dataset[[#This Row],[2025/26 Baseline]]+Dataset[[#This Row],[2025/26 Total change]]","v":0},{"$f":"Dataset[[#This Row],[2026/27 Baseline]]+Dataset[[#This Row],[2026/27 Total change]]","v":0}]
["NAT|Non-transfer item","26|Biological assets","2024_25","MTEF2024",26,1,6,44346,459,"26","01","06","044346","000459","26|01|06","02","03","15","60","64","02|03|15|60|64","National","Military Veterans","Administration","Office Accommodation","Non-transfer item","Capital","Payments for capital assets","Biological assets","Biological assets","Biological assets","Peace and security","Defence and state security","NAT",0,0,0,0,0,0,0,0,0,0,0,null,null,null,null,null,null,null,null,null,null,null,null,null,null,null,null,null,null,null,null,null,null,null,null,null,null,null,null,null,null,null,null,null,null,{"$f":"Dataset[[#This Row],[2024/25 From - Spending review Topic 1]]+Dataset[[#This Row],[2024/25 From - Spending review Topic 2]]+Dataset[[#This Row],[2024/25 From - Spending review Topic 3]]+Dataset[[#This Row],[2024/25 From - Spending review Topic 4]]+Dataset[[#This Row],[2024/25 From - Other reallocations]]","v":0},{"$f":"Dataset[[#This Row],[2025/26 From - Spending review Topic 1]]+Dataset[[#This Row],[2025/26 From - Spending review Topic 2]]+Dataset[[#This Row],[2025/26 From - Spending review Topic 3]]+Dataset[[#This Row],[2025/26 From - Spending review Topic 4]]+Dataset[[#This Row],[2025/26 From - Other reallocations]]","v":0},{"$f":"Dataset[[#This Row],[2026/27 From - Spending review Topic 1]]+Dataset[[#This Row],[2026/27 From - Spending review Topic 2]]+Dataset[[#This Row],[2026/27 From - Spending review Topic 3]]+Dataset[[#This Row],[2026/27 From - Spending review Topic 4]]+Dataset[[#This Row],[2026/27 From - Other reallocations]]","v":0},{"$f":"Dataset[[#This Row],[2024/25 To - Spending review Topic 1]]+Dataset[[#This Row],[2024/25 To - Spending review Topic 2]]+Dataset[[#This Row],[2024/25 To - Spending review Topic 3]]+Dataset[[#This Row],[2024/25 To - Spending review Topic 4]]+Dataset[[#This Row],[2024/25 To - Other reallocations]]","v":0},{"$f":"Dataset[[#This Row],[2025/26 To - Spending review Topic 1]]+Dataset[[#This Row],[2025/26 To - Spending review Topic 2]]+Dataset[[#This Row],[2025/26 To - Spending review Topic 3]]+Dataset[[#This Row],[2025/26 To - Spending review Topic 4]]+Dataset[[#This Row],[2025/26 To - Other reallocations]]","v":0},{"$f":"Dataset[[#This Row],[2026/27 To - Spending review Topic 1]]+Dataset[[#This Row],[2026/27 To - Spending review Topic 2]]+Dataset[[#This Row],[2026/27 To - Spending review Topic 3]]+Dataset[[#This Row],[2026/27 To - Spending review Topic 4]]+Dataset[[#This Row],[2026/27 To - Other reallocations]]","v":0},{"$f":"Dataset[[#This Row],[2024/25 Reduction]]+Dataset[[#This Row],[2024/25 From - Total]]","v":0},{"$f":"Dataset[[#This Row],[2025/26 Reduction]]+Dataset[[#This Row],[2025/26 From - Total]]","v":0},{"$f":"Dataset[[#This Row],[2026/27 Reduction]]+Dataset[[#This Row],[2026/27 From - Total]]","v":0},{"$f":"Dataset[[#This Row],[2023/24 Reduction]]","v":0},{"$f":"SUM(Dataset[[#This Row],[2024/25 Reduction]],Dataset[[#This Row],[2024/25 From - Total]],Dataset[[#This Row],[2024/25 To - Total]])","v":0},{"$f":"SUM(Dataset[[#This Row],[2025/26 Reduction]],Dataset[[#This Row],[2025/26 From - Total]],Dataset[[#This Row],[2025/26 To - Total]])","v":0},{"$f":"SUM(Dataset[[#This Row],[2026/27 Reduction]],Dataset[[#This Row],[2026/27 From - Total]],Dataset[[#This Row],[2026/27 To - Total]])","v":0},{"$f":"Dataset[[#This Row],[2023/24 Baseline]]+Dataset[[#This Row],[2023/24 Total change]]","v":0},{"$f":"Dataset[[#This Row],[2024/25 Baseline]]+Dataset[[#This Row],[2024/25 Total change]]","v":0},{"$f":"Dataset[[#This Row],[2025/26 Baseline]]+Dataset[[#This Row],[2025/26 Total change]]","v":0},{"$f":"Dataset[[#This Row],[2026/27 Baseline]]+Dataset[[#This Row],[2026/27 Total change]]","v":0}]
["NAT|Non-transfer item","26|Land and sub-soil assets","2024_25","MTEF2024",26,1,6,44347,460,"26","01","06","044347","000460","26|01|06","02","03","16","61","65","02|03|16|61|65","National","Military Veterans","Administration","Office Accommodation","Non-transfer item","Capital","Payments for capital assets","Land and sub-soil assets","Land and sub-soil assets","Land and sub-soil assets","Peace and security","Defence and state security","NAT",0,0,0,0,0,0,0,0,0,0,0,null,null,null,null,null,null,null,null,null,null,null,null,null,null,null,null,null,null,null,null,null,null,null,null,null,null,null,null,null,null,null,null,null,null,{"$f":"Dataset[[#This Row],[2024/25 From - Spending review Topic 1]]+Dataset[[#This Row],[2024/25 From - Spending review Topic 2]]+Dataset[[#This Row],[2024/25 From - Spending review Topic 3]]+Dataset[[#This Row],[2024/25 From - Spending review Topic 4]]+Dataset[[#This Row],[2024/25 From - Other reallocations]]","v":0},{"$f":"Dataset[[#This Row],[2025/26 From - Spending review Topic 1]]+Dataset[[#This Row],[2025/26 From - Spending review Topic 2]]+Dataset[[#This Row],[2025/26 From - Spending review Topic 3]]+Dataset[[#This Row],[2025/26 From - Spending review Topic 4]]+Dataset[[#This Row],[2025/26 From - Other reallocations]]","v":0},{"$f":"Dataset[[#This Row],[2026/27 From - Spending review Topic 1]]+Dataset[[#This Row],[2026/27 From - Spending review Topic 2]]+Dataset[[#This Row],[2026/27 From - Spending review Topic 3]]+Dataset[[#This Row],[2026/27 From - Spending review Topic 4]]+Dataset[[#This Row],[2026/27 From - Other reallocations]]","v":0},{"$f":"Dataset[[#This Row],[2024/25 To - Spending review Topic 1]]+Dataset[[#This Row],[2024/25 To - Spending review Topic 2]]+Dataset[[#This Row],[2024/25 To - Spending review Topic 3]]+Dataset[[#This Row],[2024/25 To - Spending review Topic 4]]+Dataset[[#This Row],[2024/25 To - Other reallocations]]","v":0},{"$f":"Dataset[[#This Row],[2025/26 To - Spending review Topic 1]]+Dataset[[#This Row],[2025/26 To - Spending review Topic 2]]+Dataset[[#This Row],[2025/26 To - Spending review Topic 3]]+Dataset[[#This Row],[2025/26 To - Spending review Topic 4]]+Dataset[[#This Row],[2025/26 To - Other reallocations]]","v":0},{"$f":"Dataset[[#This Row],[2026/27 To - Spending review Topic 1]]+Dataset[[#This Row],[2026/27 To - Spending review Topic 2]]+Dataset[[#This Row],[2026/27 To - Spending review Topic 3]]+Dataset[[#This Row],[2026/27 To - Spending review Topic 4]]+Dataset[[#This Row],[2026/27 To - Other reallocations]]","v":0},{"$f":"Dataset[[#This Row],[2024/25 Reduction]]+Dataset[[#This Row],[2024/25 From - Total]]","v":0},{"$f":"Dataset[[#This Row],[2025/26 Reduction]]+Dataset[[#This Row],[2025/26 From - Total]]","v":0},{"$f":"Dataset[[#This Row],[2026/27 Reduction]]+Dataset[[#This Row],[2026/27 From - Total]]","v":0},{"$f":"Dataset[[#This Row],[2023/24 Reduction]]","v":0},{"$f":"SUM(Dataset[[#This Row],[2024/25 Reduction]],Dataset[[#This Row],[2024/25 From - Total]],Dataset[[#This Row],[2024/25 To - Total]])","v":0},{"$f":"SUM(Dataset[[#This Row],[2025/26 Reduction]],Dataset[[#This Row],[2025/26 From - Total]],Dataset[[#This Row],[2025/26 To - Total]])","v":0},{"$f":"SUM(Dataset[[#This Row],[2026/27 Reduction]],Dataset[[#This Row],[2026/27 From - Total]],Dataset[[#This Row],[2026/27 To - Total]])","v":0},{"$f":"Dataset[[#This Row],[2023/24 Baseline]]+Dataset[[#This Row],[2023/24 Total change]]","v":0},{"$f":"Dataset[[#This Row],[2024/25 Baseline]]+Dataset[[#This Row],[2024/25 Total change]]","v":0},{"$f":"Dataset[[#This Row],[2025/26 Baseline]]+Dataset[[#This Row],[2025/26 Total change]]","v":0},{"$f":"Dataset[[#This Row],[2026/27 Baseline]]+Dataset[[#This Row],[2026/27 Total change]]","v":0}]
["NAT|Non-transfer item","26|Software and other intangible assets","2024_25","MTEF2024",26,1,6,44348,461,"26","01","06","044348","000461","26|01|06","02","03","17","62","66","02|03|17|62|66","National","Military Veterans","Administration","Office Accommodation","Non-transfer item","Capital","Payments for capital assets","Software and other intangible assets","Software and other intangible assets","Software and other intangible assets","Peace and security","Defence and state security","NAT",0,0,0,0,0,0,0,0,0,0,0,null,null,null,null,null,null,null,null,null,null,null,null,null,null,null,null,null,null,null,null,null,null,null,null,null,null,null,null,null,null,null,null,null,null,{"$f":"Dataset[[#This Row],[2024/25 From - Spending review Topic 1]]+Dataset[[#This Row],[2024/25 From - Spending review Topic 2]]+Dataset[[#This Row],[2024/25 From - Spending review Topic 3]]+Dataset[[#This Row],[2024/25 From - Spending review Topic 4]]+Dataset[[#This Row],[2024/25 From - Other reallocations]]","v":0},{"$f":"Dataset[[#This Row],[2025/26 From - Spending review Topic 1]]+Dataset[[#This Row],[2025/26 From - Spending review Topic 2]]+Dataset[[#This Row],[2025/26 From - Spending review Topic 3]]+Dataset[[#This Row],[2025/26 From - Spending review Topic 4]]+Dataset[[#This Row],[2025/26 From - Other reallocations]]","v":0},{"$f":"Dataset[[#This Row],[2026/27 From - Spending review Topic 1]]+Dataset[[#This Row],[2026/27 From - Spending review Topic 2]]+Dataset[[#This Row],[2026/27 From - Spending review Topic 3]]+Dataset[[#This Row],[2026/27 From - Spending review Topic 4]]+Dataset[[#This Row],[2026/27 From - Other reallocations]]","v":0},{"$f":"Dataset[[#This Row],[2024/25 To - Spending review Topic 1]]+Dataset[[#This Row],[2024/25 To - Spending review Topic 2]]+Dataset[[#This Row],[2024/25 To - Spending review Topic 3]]+Dataset[[#This Row],[2024/25 To - Spending review Topic 4]]+Dataset[[#This Row],[2024/25 To - Other reallocations]]","v":0},{"$f":"Dataset[[#This Row],[2025/26 To - Spending review Topic 1]]+Dataset[[#This Row],[2025/26 To - Spending review Topic 2]]+Dataset[[#This Row],[2025/26 To - Spending review Topic 3]]+Dataset[[#This Row],[2025/26 To - Spending review Topic 4]]+Dataset[[#This Row],[2025/26 To - Other reallocations]]","v":0},{"$f":"Dataset[[#This Row],[2026/27 To - Spending review Topic 1]]+Dataset[[#This Row],[2026/27 To - Spending review Topic 2]]+Dataset[[#This Row],[2026/27 To - Spending review Topic 3]]+Dataset[[#This Row],[2026/27 To - Spending review Topic 4]]+Dataset[[#This Row],[2026/27 To - Other reallocations]]","v":0},{"$f":"Dataset[[#This Row],[2024/25 Reduction]]+Dataset[[#This Row],[2024/25 From - Total]]","v":0},{"$f":"Dataset[[#This Row],[2025/26 Reduction]]+Dataset[[#This Row],[2025/26 From - Total]]","v":0},{"$f":"Dataset[[#This Row],[2026/27 Reduction]]+Dataset[[#This Row],[2026/27 From - Total]]","v":0},{"$f":"Dataset[[#This Row],[2023/24 Reduction]]","v":0},{"$f":"SUM(Dataset[[#This Row],[2024/25 Reduction]],Dataset[[#This Row],[2024/25 From - Total]],Dataset[[#This Row],[2024/25 To - Total]])","v":0},{"$f":"SUM(Dataset[[#This Row],[2025/26 Reduction]],Dataset[[#This Row],[2025/26 From - Total]],Dataset[[#This Row],[2025/26 To - Total]])","v":0},{"$f":"SUM(Dataset[[#This Row],[2026/27 Reduction]],Dataset[[#This Row],[2026/27 From - Total]],Dataset[[#This Row],[2026/27 To - Total]])","v":0},{"$f":"Dataset[[#This Row],[2023/24 Baseline]]+Dataset[[#This Row],[2023/24 Total change]]","v":0},{"$f":"Dataset[[#This Row],[2024/25 Baseline]]+Dataset[[#This Row],[2024/25 Total change]]","v":0},{"$f":"Dataset[[#This Row],[2025/26 Baseline]]+Dataset[[#This Row],[2025/26 Total change]]","v":0},{"$f":"Dataset[[#This Row],[2026/27 Baseline]]+Dataset[[#This Row],[2026/27 Total change]]","v":0}]
["NAT|Non-transfer item","26|Payments for financial assets","2024_25","MTEF2024",26,1,6,44349,462,"26","01","06","044349","000462","26|01|06","03","04","18","63","67","03|04|18|63|67","National","Military Veterans","Administration","Office Accommodation","Non-transfer item","Payments for financial assets","Payments for financial assets","Payments for financial assets","Payments for financial assets","Payments for financial assets","Peace and security","Defence and state security","NAT",0,0,0,0,0,0,0,0,0,0,0,null,null,null,null,null,null,null,null,null,null,null,null,null,null,null,null,null,null,null,null,null,null,null,null,null,null,null,null,null,null,null,null,null,null,{"$f":"Dataset[[#This Row],[2024/25 From - Spending review Topic 1]]+Dataset[[#This Row],[2024/25 From - Spending review Topic 2]]+Dataset[[#This Row],[2024/25 From - Spending review Topic 3]]+Dataset[[#This Row],[2024/25 From - Spending review Topic 4]]+Dataset[[#This Row],[2024/25 From - Other reallocations]]","v":0},{"$f":"Dataset[[#This Row],[2025/26 From - Spending review Topic 1]]+Dataset[[#This Row],[2025/26 From - Spending review Topic 2]]+Dataset[[#This Row],[2025/26 From - Spending review Topic 3]]+Dataset[[#This Row],[2025/26 From - Spending review Topic 4]]+Dataset[[#This Row],[2025/26 From - Other reallocations]]","v":0},{"$f":"Dataset[[#This Row],[2026/27 From - Spending review Topic 1]]+Dataset[[#This Row],[2026/27 From - Spending review Topic 2]]+Dataset[[#This Row],[2026/27 From - Spending review Topic 3]]+Dataset[[#This Row],[2026/27 From - Spending review Topic 4]]+Dataset[[#This Row],[2026/27 From - Other reallocations]]","v":0},{"$f":"Dataset[[#This Row],[2024/25 To - Spending review Topic 1]]+Dataset[[#This Row],[2024/25 To - Spending review Topic 2]]+Dataset[[#This Row],[2024/25 To - Spending review Topic 3]]+Dataset[[#This Row],[2024/25 To - Spending review Topic 4]]+Dataset[[#This Row],[2024/25 To - Other reallocations]]","v":0},{"$f":"Dataset[[#This Row],[2025/26 To - Spending review Topic 1]]+Dataset[[#This Row],[2025/26 To - Spending review Topic 2]]+Dataset[[#This Row],[2025/26 To - Spending review Topic 3]]+Dataset[[#This Row],[2025/26 To - Spending review Topic 4]]+Dataset[[#This Row],[2025/26 To - Other reallocations]]","v":0},{"$f":"Dataset[[#This Row],[2026/27 To - Spending review Topic 1]]+Dataset[[#This Row],[2026/27 To - Spending review Topic 2]]+Dataset[[#This Row],[2026/27 To - Spending review Topic 3]]+Dataset[[#This Row],[2026/27 To - Spending review Topic 4]]+Dataset[[#This Row],[2026/27 To - Other reallocations]]","v":0},{"$f":"Dataset[[#This Row],[2024/25 Reduction]]+Dataset[[#This Row],[2024/25 From - Total]]","v":0},{"$f":"Dataset[[#This Row],[2025/26 Reduction]]+Dataset[[#This Row],[2025/26 From - Total]]","v":0},{"$f":"Dataset[[#This Row],[2026/27 Reduction]]+Dataset[[#This Row],[2026/27 From - Total]]","v":0},{"$f":"Dataset[[#This Row],[2023/24 Reduction]]","v":0},{"$f":"SUM(Dataset[[#This Row],[2024/25 Reduction]],Dataset[[#This Row],[2024/25 From - Total]],Dataset[[#This Row],[2024/25 To - Total]])","v":0},{"$f":"SUM(Dataset[[#This Row],[2025/26 Reduction]],Dataset[[#This Row],[2025/26 From - Total]],Dataset[[#This Row],[2025/26 To - Total]])","v":0},{"$f":"SUM(Dataset[[#This Row],[2026/27 Reduction]],Dataset[[#This Row],[2026/27 From - Total]],Dataset[[#This Row],[2026/27 To - Total]])","v":0},{"$f":"Dataset[[#This Row],[2023/24 Baseline]]+Dataset[[#This Row],[2023/24 Total change]]","v":0},{"$f":"Dataset[[#This Row],[2024/25 Baseline]]+Dataset[[#This Row],[2024/25 Total change]]","v":0},{"$f":"Dataset[[#This Row],[2025/26 Baseline]]+Dataset[[#This Row],[2025/26 Total change]]","v":0},{"$f":"Dataset[[#This Row],[2026/27 Baseline]]+Dataset[[#This Row],[2026/27 Total change]]","v":0}]
["NAT|Non-transfer item","26|Salaries and wages","2024_25","MTEF2024",26,2,1,44350,463,"26","02","01","044350","000463","26|02|01","01","01","01","01","01","01|01|01|01|01","National","Military Veterans","Socioeconomic Support","Database and Benefits Management","Non-transfer item","Current","Current payments","Compensation of employees","Salaries and wages","Salaries and wages","Peace and security","Defence and state security","NAT",6652,7076,6872,7842,6650,6650,0,8126,8485,8858,9264,null,null,null,null,null,null,null,null,null,null,null,null,null,null,null,null,null,null,null,null,null,null,null,null,null,null,null,null,null,null,null,null,null,null,{"$f":"Dataset[[#This Row],[2024/25 From - Spending review Topic 1]]+Dataset[[#This Row],[2024/25 From - Spending review Topic 2]]+Dataset[[#This Row],[2024/25 From - Spending review Topic 3]]+Dataset[[#This Row],[2024/25 From - Spending review Topic 4]]+Dataset[[#This Row],[2024/25 From - Other reallocations]]","v":0},{"$f":"Dataset[[#This Row],[2025/26 From - Spending review Topic 1]]+Dataset[[#This Row],[2025/26 From - Spending review Topic 2]]+Dataset[[#This Row],[2025/26 From - Spending review Topic 3]]+Dataset[[#This Row],[2025/26 From - Spending review Topic 4]]+Dataset[[#This Row],[2025/26 From - Other reallocations]]","v":0},{"$f":"Dataset[[#This Row],[2026/27 From - Spending review Topic 1]]+Dataset[[#This Row],[2026/27 From - Spending review Topic 2]]+Dataset[[#This Row],[2026/27 From - Spending review Topic 3]]+Dataset[[#This Row],[2026/27 From - Spending review Topic 4]]+Dataset[[#This Row],[2026/27 From - Other reallocations]]","v":0},{"$f":"Dataset[[#This Row],[2024/25 To - Spending review Topic 1]]+Dataset[[#This Row],[2024/25 To - Spending review Topic 2]]+Dataset[[#This Row],[2024/25 To - Spending review Topic 3]]+Dataset[[#This Row],[2024/25 To - Spending review Topic 4]]+Dataset[[#This Row],[2024/25 To - Other reallocations]]","v":0},{"$f":"Dataset[[#This Row],[2025/26 To - Spending review Topic 1]]+Dataset[[#This Row],[2025/26 To - Spending review Topic 2]]+Dataset[[#This Row],[2025/26 To - Spending review Topic 3]]+Dataset[[#This Row],[2025/26 To - Spending review Topic 4]]+Dataset[[#This Row],[2025/26 To - Other reallocations]]","v":0},{"$f":"Dataset[[#This Row],[2026/27 To - Spending review Topic 1]]+Dataset[[#This Row],[2026/27 To - Spending review Topic 2]]+Dataset[[#This Row],[2026/27 To - Spending review Topic 3]]+Dataset[[#This Row],[2026/27 To - Spending review Topic 4]]+Dataset[[#This Row],[2026/27 To - Other reallocations]]","v":0},{"$f":"Dataset[[#This Row],[2024/25 Reduction]]+Dataset[[#This Row],[2024/25 From - Total]]","v":0},{"$f":"Dataset[[#This Row],[2025/26 Reduction]]+Dataset[[#This Row],[2025/26 From - Total]]","v":0},{"$f":"Dataset[[#This Row],[2026/27 Reduction]]+Dataset[[#This Row],[2026/27 From - Total]]","v":0},{"$f":"Dataset[[#This Row],[2023/24 Reduction]]","v":0},{"$f":"SUM(Dataset[[#This Row],[2024/25 Reduction]],Dataset[[#This Row],[2024/25 From - Total]],Dataset[[#This Row],[2024/25 To - Total]])","v":0},{"$f":"SUM(Dataset[[#This Row],[2025/26 Reduction]],Dataset[[#This Row],[2025/26 From - Total]],Dataset[[#This Row],[2025/26 To - Total]])","v":0},{"$f":"SUM(Dataset[[#This Row],[2026/27 Reduction]],Dataset[[#This Row],[2026/27 From - Total]],Dataset[[#This Row],[2026/27 To - Total]])","v":0},{"$f":"Dataset[[#This Row],[2023/24 Baseline]]+Dataset[[#This Row],[2023/24 Total change]]","v":8126},{"$f":"Dataset[[#This Row],[2024/25 Baseline]]+Dataset[[#This Row],[2024/25 Total change]]","v":8485},{"$f":"Dataset[[#This Row],[2025/26 Baseline]]+Dataset[[#This Row],[2025/26 Total change]]","v":8858},{"$f":"Dataset[[#This Row],[2026/27 Baseline]]+Dataset[[#This Row],[2026/27 Total change]]","v":9264}]
["NAT|Non-transfer item","26|Social contributions","2024_25","MTEF2024",26,2,1,44351,464,"26","02","01","044351","000464","26|02|01","01","01","01","02","02","01|01|01|02|02","National","Military Veterans","Socioeconomic Support","Database and Benefits Management","Non-transfer item","Current","Current payments","Compensation of employees","Social contributions","Social contributions","Peace and security","Defence and state security","NAT",577,654,677,1329,749,749,0,1377,1438,1501,1570,null,null,null,null,null,null,null,null,null,null,null,null,null,null,null,null,null,null,null,null,null,null,null,null,null,null,null,null,null,null,null,null,null,null,{"$f":"Dataset[[#This Row],[2024/25 From - Spending review Topic 1]]+Dataset[[#This Row],[2024/25 From - Spending review Topic 2]]+Dataset[[#This Row],[2024/25 From - Spending review Topic 3]]+Dataset[[#This Row],[2024/25 From - Spending review Topic 4]]+Dataset[[#This Row],[2024/25 From - Other reallocations]]","v":0},{"$f":"Dataset[[#This Row],[2025/26 From - Spending review Topic 1]]+Dataset[[#This Row],[2025/26 From - Spending review Topic 2]]+Dataset[[#This Row],[2025/26 From - Spending review Topic 3]]+Dataset[[#This Row],[2025/26 From - Spending review Topic 4]]+Dataset[[#This Row],[2025/26 From - Other reallocations]]","v":0},{"$f":"Dataset[[#This Row],[2026/27 From - Spending review Topic 1]]+Dataset[[#This Row],[2026/27 From - Spending review Topic 2]]+Dataset[[#This Row],[2026/27 From - Spending review Topic 3]]+Dataset[[#This Row],[2026/27 From - Spending review Topic 4]]+Dataset[[#This Row],[2026/27 From - Other reallocations]]","v":0},{"$f":"Dataset[[#This Row],[2024/25 To - Spending review Topic 1]]+Dataset[[#This Row],[2024/25 To - Spending review Topic 2]]+Dataset[[#This Row],[2024/25 To - Spending review Topic 3]]+Dataset[[#This Row],[2024/25 To - Spending review Topic 4]]+Dataset[[#This Row],[2024/25 To - Other reallocations]]","v":0},{"$f":"Dataset[[#This Row],[2025/26 To - Spending review Topic 1]]+Dataset[[#This Row],[2025/26 To - Spending review Topic 2]]+Dataset[[#This Row],[2025/26 To - Spending review Topic 3]]+Dataset[[#This Row],[2025/26 To - Spending review Topic 4]]+Dataset[[#This Row],[2025/26 To - Other reallocations]]","v":0},{"$f":"Dataset[[#This Row],[2026/27 To - Spending review Topic 1]]+Dataset[[#This Row],[2026/27 To - Spending review Topic 2]]+Dataset[[#This Row],[2026/27 To - Spending review Topic 3]]+Dataset[[#This Row],[2026/27 To - Spending review Topic 4]]+Dataset[[#This Row],[2026/27 To - Other reallocations]]","v":0},{"$f":"Dataset[[#This Row],[2024/25 Reduction]]+Dataset[[#This Row],[2024/25 From - Total]]","v":0},{"$f":"Dataset[[#This Row],[2025/26 Reduction]]+Dataset[[#This Row],[2025/26 From - Total]]","v":0},{"$f":"Dataset[[#This Row],[2026/27 Reduction]]+Dataset[[#This Row],[2026/27 From - Total]]","v":0},{"$f":"Dataset[[#This Row],[2023/24 Reduction]]","v":0},{"$f":"SUM(Dataset[[#This Row],[2024/25 Reduction]],Dataset[[#This Row],[2024/25 From - Total]],Dataset[[#This Row],[2024/25 To - Total]])","v":0},{"$f":"SUM(Dataset[[#This Row],[2025/26 Reduction]],Dataset[[#This Row],[2025/26 From - Total]],Dataset[[#This Row],[2025/26 To - Total]])","v":0},{"$f":"SUM(Dataset[[#This Row],[2026/27 Reduction]],Dataset[[#This Row],[2026/27 From - Total]],Dataset[[#This Row],[2026/27 To - Total]])","v":0},{"$f":"Dataset[[#This Row],[2023/24 Baseline]]+Dataset[[#This Row],[2023/24 Total change]]","v":1377},{"$f":"Dataset[[#This Row],[2024/25 Baseline]]+Dataset[[#This Row],[2024/25 Total change]]","v":1438},{"$f":"Dataset[[#This Row],[2025/26 Baseline]]+Dataset[[#This Row],[2025/26 Total change]]","v":1501},{"$f":"Dataset[[#This Row],[2026/27 Baseline]]+Dataset[[#This Row],[2026/27 Total change]]","v":1570}]
["NAT|Non-transfer item","26|Administrative fees","2024_25","MTEF2024",26,2,1,44352,465,"26","02","01","044352","000465","26|02|01","01","01","02","03","03","01|01|02|03|03","National","Military Veterans","Socioeconomic Support","Database and Benefits Management","Non-transfer item","Current","Current payments","Goods and services","Administrative fees","Administrative fees","Peace and security","Defence and state security","NAT",5,7,14,155,155,155,0,143,147,154,161,null,null,null,null,null,null,null,null,null,null,null,null,null,null,null,null,null,null,null,null,null,null,null,null,null,null,null,null,null,null,null,null,null,null,{"$f":"Dataset[[#This Row],[2024/25 From - Spending review Topic 1]]+Dataset[[#This Row],[2024/25 From - Spending review Topic 2]]+Dataset[[#This Row],[2024/25 From - Spending review Topic 3]]+Dataset[[#This Row],[2024/25 From - Spending review Topic 4]]+Dataset[[#This Row],[2024/25 From - Other reallocations]]","v":0},{"$f":"Dataset[[#This Row],[2025/26 From - Spending review Topic 1]]+Dataset[[#This Row],[2025/26 From - Spending review Topic 2]]+Dataset[[#This Row],[2025/26 From - Spending review Topic 3]]+Dataset[[#This Row],[2025/26 From - Spending review Topic 4]]+Dataset[[#This Row],[2025/26 From - Other reallocations]]","v":0},{"$f":"Dataset[[#This Row],[2026/27 From - Spending review Topic 1]]+Dataset[[#This Row],[2026/27 From - Spending review Topic 2]]+Dataset[[#This Row],[2026/27 From - Spending review Topic 3]]+Dataset[[#This Row],[2026/27 From - Spending review Topic 4]]+Dataset[[#This Row],[2026/27 From - Other reallocations]]","v":0},{"$f":"Dataset[[#This Row],[2024/25 To - Spending review Topic 1]]+Dataset[[#This Row],[2024/25 To - Spending review Topic 2]]+Dataset[[#This Row],[2024/25 To - Spending review Topic 3]]+Dataset[[#This Row],[2024/25 To - Spending review Topic 4]]+Dataset[[#This Row],[2024/25 To - Other reallocations]]","v":0},{"$f":"Dataset[[#This Row],[2025/26 To - Spending review Topic 1]]+Dataset[[#This Row],[2025/26 To - Spending review Topic 2]]+Dataset[[#This Row],[2025/26 To - Spending review Topic 3]]+Dataset[[#This Row],[2025/26 To - Spending review Topic 4]]+Dataset[[#This Row],[2025/26 To - Other reallocations]]","v":0},{"$f":"Dataset[[#This Row],[2026/27 To - Spending review Topic 1]]+Dataset[[#This Row],[2026/27 To - Spending review Topic 2]]+Dataset[[#This Row],[2026/27 To - Spending review Topic 3]]+Dataset[[#This Row],[2026/27 To - Spending review Topic 4]]+Dataset[[#This Row],[2026/27 To - Other reallocations]]","v":0},{"$f":"Dataset[[#This Row],[2024/25 Reduction]]+Dataset[[#This Row],[2024/25 From - Total]]","v":0},{"$f":"Dataset[[#This Row],[2025/26 Reduction]]+Dataset[[#This Row],[2025/26 From - Total]]","v":0},{"$f":"Dataset[[#This Row],[2026/27 Reduction]]+Dataset[[#This Row],[2026/27 From - Total]]","v":0},{"$f":"Dataset[[#This Row],[2023/24 Reduction]]","v":0},{"$f":"SUM(Dataset[[#This Row],[2024/25 Reduction]],Dataset[[#This Row],[2024/25 From - Total]],Dataset[[#This Row],[2024/25 To - Total]])","v":0},{"$f":"SUM(Dataset[[#This Row],[2025/26 Reduction]],Dataset[[#This Row],[2025/26 From - Total]],Dataset[[#This Row],[2025/26 To - Total]])","v":0},{"$f":"SUM(Dataset[[#This Row],[2026/27 Reduction]],Dataset[[#This Row],[2026/27 From - Total]],Dataset[[#This Row],[2026/27 To - Total]])","v":0},{"$f":"Dataset[[#This Row],[2023/24 Baseline]]+Dataset[[#This Row],[2023/24 Total change]]","v":143},{"$f":"Dataset[[#This Row],[2024/25 Baseline]]+Dataset[[#This Row],[2024/25 Total change]]","v":147},{"$f":"Dataset[[#This Row],[2025/26 Baseline]]+Dataset[[#This Row],[2025/26 Total change]]","v":154},{"$f":"Dataset[[#This Row],[2026/27 Baseline]]+Dataset[[#This Row],[2026/27 Total change]]","v":161}]
["NAT|Non-transfer item","26|Advertising","2024_25","MTEF2024",26,2,1,44353,466,"26","02","01","044353","000466","26|02|01","01","01","02","04","04","01|01|02|04|04","National","Military Veterans","Socioeconomic Support","Database and Benefits Management","Non-transfer item","Current","Current payments","Goods and services","Advertising","Advertising","Peace and security","Defence and state security","NAT",0,0,0,0,0,0,0,0,0,0,0,null,null,null,null,null,null,null,null,null,null,null,null,null,null,null,null,null,null,null,null,null,null,null,null,null,null,null,null,null,null,null,null,null,null,{"$f":"Dataset[[#This Row],[2024/25 From - Spending review Topic 1]]+Dataset[[#This Row],[2024/25 From - Spending review Topic 2]]+Dataset[[#This Row],[2024/25 From - Spending review Topic 3]]+Dataset[[#This Row],[2024/25 From - Spending review Topic 4]]+Dataset[[#This Row],[2024/25 From - Other reallocations]]","v":0},{"$f":"Dataset[[#This Row],[2025/26 From - Spending review Topic 1]]+Dataset[[#This Row],[2025/26 From - Spending review Topic 2]]+Dataset[[#This Row],[2025/26 From - Spending review Topic 3]]+Dataset[[#This Row],[2025/26 From - Spending review Topic 4]]+Dataset[[#This Row],[2025/26 From - Other reallocations]]","v":0},{"$f":"Dataset[[#This Row],[2026/27 From - Spending review Topic 1]]+Dataset[[#This Row],[2026/27 From - Spending review Topic 2]]+Dataset[[#This Row],[2026/27 From - Spending review Topic 3]]+Dataset[[#This Row],[2026/27 From - Spending review Topic 4]]+Dataset[[#This Row],[2026/27 From - Other reallocations]]","v":0},{"$f":"Dataset[[#This Row],[2024/25 To - Spending review Topic 1]]+Dataset[[#This Row],[2024/25 To - Spending review Topic 2]]+Dataset[[#This Row],[2024/25 To - Spending review Topic 3]]+Dataset[[#This Row],[2024/25 To - Spending review Topic 4]]+Dataset[[#This Row],[2024/25 To - Other reallocations]]","v":0},{"$f":"Dataset[[#This Row],[2025/26 To - Spending review Topic 1]]+Dataset[[#This Row],[2025/26 To - Spending review Topic 2]]+Dataset[[#This Row],[2025/26 To - Spending review Topic 3]]+Dataset[[#This Row],[2025/26 To - Spending review Topic 4]]+Dataset[[#This Row],[2025/26 To - Other reallocations]]","v":0},{"$f":"Dataset[[#This Row],[2026/27 To - Spending review Topic 1]]+Dataset[[#This Row],[2026/27 To - Spending review Topic 2]]+Dataset[[#This Row],[2026/27 To - Spending review Topic 3]]+Dataset[[#This Row],[2026/27 To - Spending review Topic 4]]+Dataset[[#This Row],[2026/27 To - Other reallocations]]","v":0},{"$f":"Dataset[[#This Row],[2024/25 Reduction]]+Dataset[[#This Row],[2024/25 From - Total]]","v":0},{"$f":"Dataset[[#This Row],[2025/26 Reduction]]+Dataset[[#This Row],[2025/26 From - Total]]","v":0},{"$f":"Dataset[[#This Row],[2026/27 Reduction]]+Dataset[[#This Row],[2026/27 From - Total]]","v":0},{"$f":"Dataset[[#This Row],[2023/24 Reduction]]","v":0},{"$f":"SUM(Dataset[[#This Row],[2024/25 Reduction]],Dataset[[#This Row],[2024/25 From - Total]],Dataset[[#This Row],[2024/25 To - Total]])","v":0},{"$f":"SUM(Dataset[[#This Row],[2025/26 Reduction]],Dataset[[#This Row],[2025/26 From - Total]],Dataset[[#This Row],[2025/26 To - Total]])","v":0},{"$f":"SUM(Dataset[[#This Row],[2026/27 Reduction]],Dataset[[#This Row],[2026/27 From - Total]],Dataset[[#This Row],[2026/27 To - Total]])","v":0},{"$f":"Dataset[[#This Row],[2023/24 Baseline]]+Dataset[[#This Row],[2023/24 Total change]]","v":0},{"$f":"Dataset[[#This Row],[2024/25 Baseline]]+Dataset[[#This Row],[2024/25 Total change]]","v":0},{"$f":"Dataset[[#This Row],[2025/26 Baseline]]+Dataset[[#This Row],[2025/26 Total change]]","v":0},{"$f":"Dataset[[#This Row],[2026/27 Baseline]]+Dataset[[#This Row],[2026/27 Total change]]","v":0}]
["NAT|Non-transfer item","26|Minor assets","2024_25","MTEF2024",26,2,1,44354,467,"26","02","01","044354","000467","26|02|01","01","01","02","05","05","01|01|02|05|05","National","Military Veterans","Socioeconomic Support","Database and Benefits Management","Non-transfer item","Current","Current payments","Goods and services","Minor assets","Minor assets","Peace and security","Defence and state security","NAT",3,4,18,376,310,310,0,248,505,201,210,null,null,null,null,null,null,null,null,null,null,null,null,null,null,null,null,null,null,null,null,null,null,null,null,null,null,null,null,null,null,null,null,null,null,{"$f":"Dataset[[#This Row],[2024/25 From - Spending review Topic 1]]+Dataset[[#This Row],[2024/25 From - Spending review Topic 2]]+Dataset[[#This Row],[2024/25 From - Spending review Topic 3]]+Dataset[[#This Row],[2024/25 From - Spending review Topic 4]]+Dataset[[#This Row],[2024/25 From - Other reallocations]]","v":0},{"$f":"Dataset[[#This Row],[2025/26 From - Spending review Topic 1]]+Dataset[[#This Row],[2025/26 From - Spending review Topic 2]]+Dataset[[#This Row],[2025/26 From - Spending review Topic 3]]+Dataset[[#This Row],[2025/26 From - Spending review Topic 4]]+Dataset[[#This Row],[2025/26 From - Other reallocations]]","v":0},{"$f":"Dataset[[#This Row],[2026/27 From - Spending review Topic 1]]+Dataset[[#This Row],[2026/27 From - Spending review Topic 2]]+Dataset[[#This Row],[2026/27 From - Spending review Topic 3]]+Dataset[[#This Row],[2026/27 From - Spending review Topic 4]]+Dataset[[#This Row],[2026/27 From - Other reallocations]]","v":0},{"$f":"Dataset[[#This Row],[2024/25 To - Spending review Topic 1]]+Dataset[[#This Row],[2024/25 To - Spending review Topic 2]]+Dataset[[#This Row],[2024/25 To - Spending review Topic 3]]+Dataset[[#This Row],[2024/25 To - Spending review Topic 4]]+Dataset[[#This Row],[2024/25 To - Other reallocations]]","v":0},{"$f":"Dataset[[#This Row],[2025/26 To - Spending review Topic 1]]+Dataset[[#This Row],[2025/26 To - Spending review Topic 2]]+Dataset[[#This Row],[2025/26 To - Spending review Topic 3]]+Dataset[[#This Row],[2025/26 To - Spending review Topic 4]]+Dataset[[#This Row],[2025/26 To - Other reallocations]]","v":0},{"$f":"Dataset[[#This Row],[2026/27 To - Spending review Topic 1]]+Dataset[[#This Row],[2026/27 To - Spending review Topic 2]]+Dataset[[#This Row],[2026/27 To - Spending review Topic 3]]+Dataset[[#This Row],[2026/27 To - Spending review Topic 4]]+Dataset[[#This Row],[2026/27 To - Other reallocations]]","v":0},{"$f":"Dataset[[#This Row],[2024/25 Reduction]]+Dataset[[#This Row],[2024/25 From - Total]]","v":0},{"$f":"Dataset[[#This Row],[2025/26 Reduction]]+Dataset[[#This Row],[2025/26 From - Total]]","v":0},{"$f":"Dataset[[#This Row],[2026/27 Reduction]]+Dataset[[#This Row],[2026/27 From - Total]]","v":0},{"$f":"Dataset[[#This Row],[2023/24 Reduction]]","v":0},{"$f":"SUM(Dataset[[#This Row],[2024/25 Reduction]],Dataset[[#This Row],[2024/25 From - Total]],Dataset[[#This Row],[2024/25 To - Total]])","v":0},{"$f":"SUM(Dataset[[#This Row],[2025/26 Reduction]],Dataset[[#This Row],[2025/26 From - Total]],Dataset[[#This Row],[2025/26 To - Total]])","v":0},{"$f":"SUM(Dataset[[#This Row],[2026/27 Reduction]],Dataset[[#This Row],[2026/27 From - Total]],Dataset[[#This Row],[2026/27 To - Total]])","v":0},{"$f":"Dataset[[#This Row],[2023/24 Baseline]]+Dataset[[#This Row],[2023/24 Total change]]","v":248},{"$f":"Dataset[[#This Row],[2024/25 Baseline]]+Dataset[[#This Row],[2024/25 Total change]]","v":505},{"$f":"Dataset[[#This Row],[2025/26 Baseline]]+Dataset[[#This Row],[2025/26 Total change]]","v":201},{"$f":"Dataset[[#This Row],[2026/27 Baseline]]+Dataset[[#This Row],[2026/27 Total change]]","v":210}]
["NAT|Non-transfer item","26|Audit costs: External","2024_25","MTEF2024",26,2,1,44355,468,"26","02","01","044355","000468","26|02|01","01","01","02","06","06","01|01|02|06|06","National","Military Veterans","Socioeconomic Support","Database and Benefits Management","Non-transfer item","Current","Current payments","Goods and services","Audit costs: External","Audit costs: External","Peace and security","Defence and state security","NAT",0,0,0,0,0,0,0,0,0,0,0,null,null,null,null,null,null,null,null,null,null,null,null,null,null,null,null,null,null,null,null,null,null,null,null,null,null,null,null,null,null,null,null,null,null,{"$f":"Dataset[[#This Row],[2024/25 From - Spending review Topic 1]]+Dataset[[#This Row],[2024/25 From - Spending review Topic 2]]+Dataset[[#This Row],[2024/25 From - Spending review Topic 3]]+Dataset[[#This Row],[2024/25 From - Spending review Topic 4]]+Dataset[[#This Row],[2024/25 From - Other reallocations]]","v":0},{"$f":"Dataset[[#This Row],[2025/26 From - Spending review Topic 1]]+Dataset[[#This Row],[2025/26 From - Spending review Topic 2]]+Dataset[[#This Row],[2025/26 From - Spending review Topic 3]]+Dataset[[#This Row],[2025/26 From - Spending review Topic 4]]+Dataset[[#This Row],[2025/26 From - Other reallocations]]","v":0},{"$f":"Dataset[[#This Row],[2026/27 From - Spending review Topic 1]]+Dataset[[#This Row],[2026/27 From - Spending review Topic 2]]+Dataset[[#This Row],[2026/27 From - Spending review Topic 3]]+Dataset[[#This Row],[2026/27 From - Spending review Topic 4]]+Dataset[[#This Row],[2026/27 From - Other reallocations]]","v":0},{"$f":"Dataset[[#This Row],[2024/25 To - Spending review Topic 1]]+Dataset[[#This Row],[2024/25 To - Spending review Topic 2]]+Dataset[[#This Row],[2024/25 To - Spending review Topic 3]]+Dataset[[#This Row],[2024/25 To - Spending review Topic 4]]+Dataset[[#This Row],[2024/25 To - Other reallocations]]","v":0},{"$f":"Dataset[[#This Row],[2025/26 To - Spending review Topic 1]]+Dataset[[#This Row],[2025/26 To - Spending review Topic 2]]+Dataset[[#This Row],[2025/26 To - Spending review Topic 3]]+Dataset[[#This Row],[2025/26 To - Spending review Topic 4]]+Dataset[[#This Row],[2025/26 To - Other reallocations]]","v":0},{"$f":"Dataset[[#This Row],[2026/27 To - Spending review Topic 1]]+Dataset[[#This Row],[2026/27 To - Spending review Topic 2]]+Dataset[[#This Row],[2026/27 To - Spending review Topic 3]]+Dataset[[#This Row],[2026/27 To - Spending review Topic 4]]+Dataset[[#This Row],[2026/27 To - Other reallocations]]","v":0},{"$f":"Dataset[[#This Row],[2024/25 Reduction]]+Dataset[[#This Row],[2024/25 From - Total]]","v":0},{"$f":"Dataset[[#This Row],[2025/26 Reduction]]+Dataset[[#This Row],[2025/26 From - Total]]","v":0},{"$f":"Dataset[[#This Row],[2026/27 Reduction]]+Dataset[[#This Row],[2026/27 From - Total]]","v":0},{"$f":"Dataset[[#This Row],[2023/24 Reduction]]","v":0},{"$f":"SUM(Dataset[[#This Row],[2024/25 Reduction]],Dataset[[#This Row],[2024/25 From - Total]],Dataset[[#This Row],[2024/25 To - Total]])","v":0},{"$f":"SUM(Dataset[[#This Row],[2025/26 Reduction]],Dataset[[#This Row],[2025/26 From - Total]],Dataset[[#This Row],[2025/26 To - Total]])","v":0},{"$f":"SUM(Dataset[[#This Row],[2026/27 Reduction]],Dataset[[#This Row],[2026/27 From - Total]],Dataset[[#This Row],[2026/27 To - Total]])","v":0},{"$f":"Dataset[[#This Row],[2023/24 Baseline]]+Dataset[[#This Row],[2023/24 Total change]]","v":0},{"$f":"Dataset[[#This Row],[2024/25 Baseline]]+Dataset[[#This Row],[2024/25 Total change]]","v":0},{"$f":"Dataset[[#This Row],[2025/26 Baseline]]+Dataset[[#This Row],[2025/26 Total change]]","v":0},{"$f":"Dataset[[#This Row],[2026/27 Baseline]]+Dataset[[#This Row],[2026/27 Total change]]","v":0}]
["NAT|Non-transfer item","26|Bursaries: Employees","2024_25","MTEF2024",26,2,1,44356,469,"26","02","01","044356","000469","26|02|01","01","01","02","07","07","01|01|02|07|07","National","Military Veterans","Socioeconomic Support","Database and Benefits Management","Non-transfer item","Current","Current payments","Goods and services","Bursaries: Employees","Bursaries: Employees","Peace and security","Defence and state security","NAT",0,0,0,0,0,0,0,0,0,0,0,null,null,null,null,null,null,null,null,null,null,null,null,null,null,null,null,null,null,null,null,null,null,null,null,null,null,null,null,null,null,null,null,null,null,{"$f":"Dataset[[#This Row],[2024/25 From - Spending review Topic 1]]+Dataset[[#This Row],[2024/25 From - Spending review Topic 2]]+Dataset[[#This Row],[2024/25 From - Spending review Topic 3]]+Dataset[[#This Row],[2024/25 From - Spending review Topic 4]]+Dataset[[#This Row],[2024/25 From - Other reallocations]]","v":0},{"$f":"Dataset[[#This Row],[2025/26 From - Spending review Topic 1]]+Dataset[[#This Row],[2025/26 From - Spending review Topic 2]]+Dataset[[#This Row],[2025/26 From - Spending review Topic 3]]+Dataset[[#This Row],[2025/26 From - Spending review Topic 4]]+Dataset[[#This Row],[2025/26 From - Other reallocations]]","v":0},{"$f":"Dataset[[#This Row],[2026/27 From - Spending review Topic 1]]+Dataset[[#This Row],[2026/27 From - Spending review Topic 2]]+Dataset[[#This Row],[2026/27 From - Spending review Topic 3]]+Dataset[[#This Row],[2026/27 From - Spending review Topic 4]]+Dataset[[#This Row],[2026/27 From - Other reallocations]]","v":0},{"$f":"Dataset[[#This Row],[2024/25 To - Spending review Topic 1]]+Dataset[[#This Row],[2024/25 To - Spending review Topic 2]]+Dataset[[#This Row],[2024/25 To - Spending review Topic 3]]+Dataset[[#This Row],[2024/25 To - Spending review Topic 4]]+Dataset[[#This Row],[2024/25 To - Other reallocations]]","v":0},{"$f":"Dataset[[#This Row],[2025/26 To - Spending review Topic 1]]+Dataset[[#This Row],[2025/26 To - Spending review Topic 2]]+Dataset[[#This Row],[2025/26 To - Spending review Topic 3]]+Dataset[[#This Row],[2025/26 To - Spending review Topic 4]]+Dataset[[#This Row],[2025/26 To - Other reallocations]]","v":0},{"$f":"Dataset[[#This Row],[2026/27 To - Spending review Topic 1]]+Dataset[[#This Row],[2026/27 To - Spending review Topic 2]]+Dataset[[#This Row],[2026/27 To - Spending review Topic 3]]+Dataset[[#This Row],[2026/27 To - Spending review Topic 4]]+Dataset[[#This Row],[2026/27 To - Other reallocations]]","v":0},{"$f":"Dataset[[#This Row],[2024/25 Reduction]]+Dataset[[#This Row],[2024/25 From - Total]]","v":0},{"$f":"Dataset[[#This Row],[2025/26 Reduction]]+Dataset[[#This Row],[2025/26 From - Total]]","v":0},{"$f":"Dataset[[#This Row],[2026/27 Reduction]]+Dataset[[#This Row],[2026/27 From - Total]]","v":0},{"$f":"Dataset[[#This Row],[2023/24 Reduction]]","v":0},{"$f":"SUM(Dataset[[#This Row],[2024/25 Reduction]],Dataset[[#This Row],[2024/25 From - Total]],Dataset[[#This Row],[2024/25 To - Total]])","v":0},{"$f":"SUM(Dataset[[#This Row],[2025/26 Reduction]],Dataset[[#This Row],[2025/26 From - Total]],Dataset[[#This Row],[2025/26 To - Total]])","v":0},{"$f":"SUM(Dataset[[#This Row],[2026/27 Reduction]],Dataset[[#This Row],[2026/27 From - Total]],Dataset[[#This Row],[2026/27 To - Total]])","v":0},{"$f":"Dataset[[#This Row],[2023/24 Baseline]]+Dataset[[#This Row],[2023/24 Total change]]","v":0},{"$f":"Dataset[[#This Row],[2024/25 Baseline]]+Dataset[[#This Row],[2024/25 Total change]]","v":0},{"$f":"Dataset[[#This Row],[2025/26 Baseline]]+Dataset[[#This Row],[2025/26 Total change]]","v":0},{"$f":"Dataset[[#This Row],[2026/27 Baseline]]+Dataset[[#This Row],[2026/27 Total change]]","v":0}]
["NAT|Non-transfer item","26|Catering: Departmental activities","2024_25","MTEF2024",26,2,1,44357,470,"26","02","01","044357","000470","26|02|01","01","01","02","08","08","01|01|02|08|08","National","Military Veterans","Socioeconomic Support","Database and Benefits Management","Non-transfer item","Current","Current payments","Goods and services","Catering: Departmental activities","Catering: Departmental activities","Peace and security","Defence and state security","NAT",0,0,22,206,206,206,0,290,344,373,390,null,null,null,null,null,null,null,null,null,null,null,null,null,null,null,null,null,null,null,null,null,null,null,null,null,null,null,null,null,null,null,null,null,null,{"$f":"Dataset[[#This Row],[2024/25 From - Spending review Topic 1]]+Dataset[[#This Row],[2024/25 From - Spending review Topic 2]]+Dataset[[#This Row],[2024/25 From - Spending review Topic 3]]+Dataset[[#This Row],[2024/25 From - Spending review Topic 4]]+Dataset[[#This Row],[2024/25 From - Other reallocations]]","v":0},{"$f":"Dataset[[#This Row],[2025/26 From - Spending review Topic 1]]+Dataset[[#This Row],[2025/26 From - Spending review Topic 2]]+Dataset[[#This Row],[2025/26 From - Spending review Topic 3]]+Dataset[[#This Row],[2025/26 From - Spending review Topic 4]]+Dataset[[#This Row],[2025/26 From - Other reallocations]]","v":0},{"$f":"Dataset[[#This Row],[2026/27 From - Spending review Topic 1]]+Dataset[[#This Row],[2026/27 From - Spending review Topic 2]]+Dataset[[#This Row],[2026/27 From - Spending review Topic 3]]+Dataset[[#This Row],[2026/27 From - Spending review Topic 4]]+Dataset[[#This Row],[2026/27 From - Other reallocations]]","v":0},{"$f":"Dataset[[#This Row],[2024/25 To - Spending review Topic 1]]+Dataset[[#This Row],[2024/25 To - Spending review Topic 2]]+Dataset[[#This Row],[2024/25 To - Spending review Topic 3]]+Dataset[[#This Row],[2024/25 To - Spending review Topic 4]]+Dataset[[#This Row],[2024/25 To - Other reallocations]]","v":0},{"$f":"Dataset[[#This Row],[2025/26 To - Spending review Topic 1]]+Dataset[[#This Row],[2025/26 To - Spending review Topic 2]]+Dataset[[#This Row],[2025/26 To - Spending review Topic 3]]+Dataset[[#This Row],[2025/26 To - Spending review Topic 4]]+Dataset[[#This Row],[2025/26 To - Other reallocations]]","v":0},{"$f":"Dataset[[#This Row],[2026/27 To - Spending review Topic 1]]+Dataset[[#This Row],[2026/27 To - Spending review Topic 2]]+Dataset[[#This Row],[2026/27 To - Spending review Topic 3]]+Dataset[[#This Row],[2026/27 To - Spending review Topic 4]]+Dataset[[#This Row],[2026/27 To - Other reallocations]]","v":0},{"$f":"Dataset[[#This Row],[2024/25 Reduction]]+Dataset[[#This Row],[2024/25 From - Total]]","v":0},{"$f":"Dataset[[#This Row],[2025/26 Reduction]]+Dataset[[#This Row],[2025/26 From - Total]]","v":0},{"$f":"Dataset[[#This Row],[2026/27 Reduction]]+Dataset[[#This Row],[2026/27 From - Total]]","v":0},{"$f":"Dataset[[#This Row],[2023/24 Reduction]]","v":0},{"$f":"SUM(Dataset[[#This Row],[2024/25 Reduction]],Dataset[[#This Row],[2024/25 From - Total]],Dataset[[#This Row],[2024/25 To - Total]])","v":0},{"$f":"SUM(Dataset[[#This Row],[2025/26 Reduction]],Dataset[[#This Row],[2025/26 From - Total]],Dataset[[#This Row],[2025/26 To - Total]])","v":0},{"$f":"SUM(Dataset[[#This Row],[2026/27 Reduction]],Dataset[[#This Row],[2026/27 From - Total]],Dataset[[#This Row],[2026/27 To - Total]])","v":0},{"$f":"Dataset[[#This Row],[2023/24 Baseline]]+Dataset[[#This Row],[2023/24 Total change]]","v":290},{"$f":"Dataset[[#This Row],[2024/25 Baseline]]+Dataset[[#This Row],[2024/25 Total change]]","v":344},{"$f":"Dataset[[#This Row],[2025/26 Baseline]]+Dataset[[#This Row],[2025/26 Total change]]","v":373},{"$f":"Dataset[[#This Row],[2026/27 Baseline]]+Dataset[[#This Row],[2026/27 Total change]]","v":390}]
["NAT|Non-transfer item","26|Communication (G&S)","2024_25","MTEF2024",26,2,1,44358,471,"26","02","01","044358","000471","26|02|01","01","01","02","09","09","01|01|02|09|09","National","Military Veterans","Socioeconomic Support","Database and Benefits Management","Non-transfer item","Current","Current payments","Goods and services","Communication (G&S)","Communication (G&S)","Peace and security","Defence and state security","NAT",0,0,0,0,0,0,0,1000,1000,1000,1046,null,null,null,null,null,null,null,null,null,null,null,null,null,null,null,null,null,null,null,null,null,null,null,null,null,null,null,null,null,null,null,null,null,null,{"$f":"Dataset[[#This Row],[2024/25 From - Spending review Topic 1]]+Dataset[[#This Row],[2024/25 From - Spending review Topic 2]]+Dataset[[#This Row],[2024/25 From - Spending review Topic 3]]+Dataset[[#This Row],[2024/25 From - Spending review Topic 4]]+Dataset[[#This Row],[2024/25 From - Other reallocations]]","v":0},{"$f":"Dataset[[#This Row],[2025/26 From - Spending review Topic 1]]+Dataset[[#This Row],[2025/26 From - Spending review Topic 2]]+Dataset[[#This Row],[2025/26 From - Spending review Topic 3]]+Dataset[[#This Row],[2025/26 From - Spending review Topic 4]]+Dataset[[#This Row],[2025/26 From - Other reallocations]]","v":0},{"$f":"Dataset[[#This Row],[2026/27 From - Spending review Topic 1]]+Dataset[[#This Row],[2026/27 From - Spending review Topic 2]]+Dataset[[#This Row],[2026/27 From - Spending review Topic 3]]+Dataset[[#This Row],[2026/27 From - Spending review Topic 4]]+Dataset[[#This Row],[2026/27 From - Other reallocations]]","v":0},{"$f":"Dataset[[#This Row],[2024/25 To - Spending review Topic 1]]+Dataset[[#This Row],[2024/25 To - Spending review Topic 2]]+Dataset[[#This Row],[2024/25 To - Spending review Topic 3]]+Dataset[[#This Row],[2024/25 To - Spending review Topic 4]]+Dataset[[#This Row],[2024/25 To - Other reallocations]]","v":0},{"$f":"Dataset[[#This Row],[2025/26 To - Spending review Topic 1]]+Dataset[[#This Row],[2025/26 To - Spending review Topic 2]]+Dataset[[#This Row],[2025/26 To - Spending review Topic 3]]+Dataset[[#This Row],[2025/26 To - Spending review Topic 4]]+Dataset[[#This Row],[2025/26 To - Other reallocations]]","v":0},{"$f":"Dataset[[#This Row],[2026/27 To - Spending review Topic 1]]+Dataset[[#This Row],[2026/27 To - Spending review Topic 2]]+Dataset[[#This Row],[2026/27 To - Spending review Topic 3]]+Dataset[[#This Row],[2026/27 To - Spending review Topic 4]]+Dataset[[#This Row],[2026/27 To - Other reallocations]]","v":0},{"$f":"Dataset[[#This Row],[2024/25 Reduction]]+Dataset[[#This Row],[2024/25 From - Total]]","v":0},{"$f":"Dataset[[#This Row],[2025/26 Reduction]]+Dataset[[#This Row],[2025/26 From - Total]]","v":0},{"$f":"Dataset[[#This Row],[2026/27 Reduction]]+Dataset[[#This Row],[2026/27 From - Total]]","v":0},{"$f":"Dataset[[#This Row],[2023/24 Reduction]]","v":0},{"$f":"SUM(Dataset[[#This Row],[2024/25 Reduction]],Dataset[[#This Row],[2024/25 From - Total]],Dataset[[#This Row],[2024/25 To - Total]])","v":0},{"$f":"SUM(Dataset[[#This Row],[2025/26 Reduction]],Dataset[[#This Row],[2025/26 From - Total]],Dataset[[#This Row],[2025/26 To - Total]])","v":0},{"$f":"SUM(Dataset[[#This Row],[2026/27 Reduction]],Dataset[[#This Row],[2026/27 From - Total]],Dataset[[#This Row],[2026/27 To - Total]])","v":0},{"$f":"Dataset[[#This Row],[2023/24 Baseline]]+Dataset[[#This Row],[2023/24 Total change]]","v":1000},{"$f":"Dataset[[#This Row],[2024/25 Baseline]]+Dataset[[#This Row],[2024/25 Total change]]","v":1000},{"$f":"Dataset[[#This Row],[2025/26 Baseline]]+Dataset[[#This Row],[2025/26 Total change]]","v":1000},{"$f":"Dataset[[#This Row],[2026/27 Baseline]]+Dataset[[#This Row],[2026/27 Total change]]","v":1046}]
["NAT|Non-transfer item","26|Computer services","2024_25","MTEF2024",26,2,1,44359,472,"26","02","01","044359","000472","26|02|01","01","01","02","10","10","01|01|02|10|10","National","Military Veterans","Socioeconomic Support","Database and Benefits Management","Non-transfer item","Current","Current payments","Goods and services","Computer services","Computer services","Peace and security","Defence and state security","NAT",0,0,0,3826,642,642,0,3533,3607,3769,3942,null,null,null,null,null,null,null,null,null,null,null,null,null,null,null,null,null,null,null,null,null,null,null,null,null,null,null,null,null,null,null,null,null,null,{"$f":"Dataset[[#This Row],[2024/25 From - Spending review Topic 1]]+Dataset[[#This Row],[2024/25 From - Spending review Topic 2]]+Dataset[[#This Row],[2024/25 From - Spending review Topic 3]]+Dataset[[#This Row],[2024/25 From - Spending review Topic 4]]+Dataset[[#This Row],[2024/25 From - Other reallocations]]","v":0},{"$f":"Dataset[[#This Row],[2025/26 From - Spending review Topic 1]]+Dataset[[#This Row],[2025/26 From - Spending review Topic 2]]+Dataset[[#This Row],[2025/26 From - Spending review Topic 3]]+Dataset[[#This Row],[2025/26 From - Spending review Topic 4]]+Dataset[[#This Row],[2025/26 From - Other reallocations]]","v":0},{"$f":"Dataset[[#This Row],[2026/27 From - Spending review Topic 1]]+Dataset[[#This Row],[2026/27 From - Spending review Topic 2]]+Dataset[[#This Row],[2026/27 From - Spending review Topic 3]]+Dataset[[#This Row],[2026/27 From - Spending review Topic 4]]+Dataset[[#This Row],[2026/27 From - Other reallocations]]","v":0},{"$f":"Dataset[[#This Row],[2024/25 To - Spending review Topic 1]]+Dataset[[#This Row],[2024/25 To - Spending review Topic 2]]+Dataset[[#This Row],[2024/25 To - Spending review Topic 3]]+Dataset[[#This Row],[2024/25 To - Spending review Topic 4]]+Dataset[[#This Row],[2024/25 To - Other reallocations]]","v":0},{"$f":"Dataset[[#This Row],[2025/26 To - Spending review Topic 1]]+Dataset[[#This Row],[2025/26 To - Spending review Topic 2]]+Dataset[[#This Row],[2025/26 To - Spending review Topic 3]]+Dataset[[#This Row],[2025/26 To - Spending review Topic 4]]+Dataset[[#This Row],[2025/26 To - Other reallocations]]","v":0},{"$f":"Dataset[[#This Row],[2026/27 To - Spending review Topic 1]]+Dataset[[#This Row],[2026/27 To - Spending review Topic 2]]+Dataset[[#This Row],[2026/27 To - Spending review Topic 3]]+Dataset[[#This Row],[2026/27 To - Spending review Topic 4]]+Dataset[[#This Row],[2026/27 To - Other reallocations]]","v":0},{"$f":"Dataset[[#This Row],[2024/25 Reduction]]+Dataset[[#This Row],[2024/25 From - Total]]","v":0},{"$f":"Dataset[[#This Row],[2025/26 Reduction]]+Dataset[[#This Row],[2025/26 From - Total]]","v":0},{"$f":"Dataset[[#This Row],[2026/27 Reduction]]+Dataset[[#This Row],[2026/27 From - Total]]","v":0},{"$f":"Dataset[[#This Row],[2023/24 Reduction]]","v":0},{"$f":"SUM(Dataset[[#This Row],[2024/25 Reduction]],Dataset[[#This Row],[2024/25 From - Total]],Dataset[[#This Row],[2024/25 To - Total]])","v":0},{"$f":"SUM(Dataset[[#This Row],[2025/26 Reduction]],Dataset[[#This Row],[2025/26 From - Total]],Dataset[[#This Row],[2025/26 To - Total]])","v":0},{"$f":"SUM(Dataset[[#This Row],[2026/27 Reduction]],Dataset[[#This Row],[2026/27 From - Total]],Dataset[[#This Row],[2026/27 To - Total]])","v":0},{"$f":"Dataset[[#This Row],[2023/24 Baseline]]+Dataset[[#This Row],[2023/24 Total change]]","v":3533},{"$f":"Dataset[[#This Row],[2024/25 Baseline]]+Dataset[[#This Row],[2024/25 Total change]]","v":3607},{"$f":"Dataset[[#This Row],[2025/26 Baseline]]+Dataset[[#This Row],[2025/26 Total change]]","v":3769},{"$f":"Dataset[[#This Row],[2026/27 Baseline]]+Dataset[[#This Row],[2026/27 Total change]]","v":3942}]
["NAT|Non-transfer item","26|Consultants: Business and advisory services","2024_25","MTEF2024",26,2,1,44360,473,"26","02","01","044360","000473","26|02|01","01","01","02","11","11","01|01|02|11|11","National","Military Veterans","Socioeconomic Support","Database and Benefits Management","Non-transfer item","Current","Current payments","Goods and services","Consultants: Business and advisory services","Consultants: Business and advisory services","Peace and security","Defence and state security","NAT",0,0,642,4411,5495,5495,0,5073,5159,5345,5590,null,null,null,null,null,null,null,null,null,null,null,null,null,null,null,null,null,null,null,null,null,null,null,null,null,null,null,null,null,null,null,null,null,null,{"$f":"Dataset[[#This Row],[2024/25 From - Spending review Topic 1]]+Dataset[[#This Row],[2024/25 From - Spending review Topic 2]]+Dataset[[#This Row],[2024/25 From - Spending review Topic 3]]+Dataset[[#This Row],[2024/25 From - Spending review Topic 4]]+Dataset[[#This Row],[2024/25 From - Other reallocations]]","v":0},{"$f":"Dataset[[#This Row],[2025/26 From - Spending review Topic 1]]+Dataset[[#This Row],[2025/26 From - Spending review Topic 2]]+Dataset[[#This Row],[2025/26 From - Spending review Topic 3]]+Dataset[[#This Row],[2025/26 From - Spending review Topic 4]]+Dataset[[#This Row],[2025/26 From - Other reallocations]]","v":0},{"$f":"Dataset[[#This Row],[2026/27 From - Spending review Topic 1]]+Dataset[[#This Row],[2026/27 From - Spending review Topic 2]]+Dataset[[#This Row],[2026/27 From - Spending review Topic 3]]+Dataset[[#This Row],[2026/27 From - Spending review Topic 4]]+Dataset[[#This Row],[2026/27 From - Other reallocations]]","v":0},{"$f":"Dataset[[#This Row],[2024/25 To - Spending review Topic 1]]+Dataset[[#This Row],[2024/25 To - Spending review Topic 2]]+Dataset[[#This Row],[2024/25 To - Spending review Topic 3]]+Dataset[[#This Row],[2024/25 To - Spending review Topic 4]]+Dataset[[#This Row],[2024/25 To - Other reallocations]]","v":0},{"$f":"Dataset[[#This Row],[2025/26 To - Spending review Topic 1]]+Dataset[[#This Row],[2025/26 To - Spending review Topic 2]]+Dataset[[#This Row],[2025/26 To - Spending review Topic 3]]+Dataset[[#This Row],[2025/26 To - Spending review Topic 4]]+Dataset[[#This Row],[2025/26 To - Other reallocations]]","v":0},{"$f":"Dataset[[#This Row],[2026/27 To - Spending review Topic 1]]+Dataset[[#This Row],[2026/27 To - Spending review Topic 2]]+Dataset[[#This Row],[2026/27 To - Spending review Topic 3]]+Dataset[[#This Row],[2026/27 To - Spending review Topic 4]]+Dataset[[#This Row],[2026/27 To - Other reallocations]]","v":0},{"$f":"Dataset[[#This Row],[2024/25 Reduction]]+Dataset[[#This Row],[2024/25 From - Total]]","v":0},{"$f":"Dataset[[#This Row],[2025/26 Reduction]]+Dataset[[#This Row],[2025/26 From - Total]]","v":0},{"$f":"Dataset[[#This Row],[2026/27 Reduction]]+Dataset[[#This Row],[2026/27 From - Total]]","v":0},{"$f":"Dataset[[#This Row],[2023/24 Reduction]]","v":0},{"$f":"SUM(Dataset[[#This Row],[2024/25 Reduction]],Dataset[[#This Row],[2024/25 From - Total]],Dataset[[#This Row],[2024/25 To - Total]])","v":0},{"$f":"SUM(Dataset[[#This Row],[2025/26 Reduction]],Dataset[[#This Row],[2025/26 From - Total]],Dataset[[#This Row],[2025/26 To - Total]])","v":0},{"$f":"SUM(Dataset[[#This Row],[2026/27 Reduction]],Dataset[[#This Row],[2026/27 From - Total]],Dataset[[#This Row],[2026/27 To - Total]])","v":0},{"$f":"Dataset[[#This Row],[2023/24 Baseline]]+Dataset[[#This Row],[2023/24 Total change]]","v":5073},{"$f":"Dataset[[#This Row],[2024/25 Baseline]]+Dataset[[#This Row],[2024/25 Total change]]","v":5159},{"$f":"Dataset[[#This Row],[2025/26 Baseline]]+Dataset[[#This Row],[2025/26 Total change]]","v":5345},{"$f":"Dataset[[#This Row],[2026/27 Baseline]]+Dataset[[#This Row],[2026/27 Total change]]","v":5590}]
["NAT|Non-transfer item","26|Infrastructure and planning services","2024_25","MTEF2024",26,2,1,44361,474,"26","02","01","044361","000474","26|02|01","01","01","02","12","12","01|01|02|12|12","National","Military Veterans","Socioeconomic Support","Database and Benefits Management","Non-transfer item","Current","Current payments","Goods and services","Infrastructure and planning services","Infrastructure and planning services","Peace and security","Defence and state security","NAT",0,0,0,0,0,0,0,0,0,0,0,null,null,null,null,null,null,null,null,null,null,null,null,null,null,null,null,null,null,null,null,null,null,null,null,null,null,null,null,null,null,null,null,null,null,{"$f":"Dataset[[#This Row],[2024/25 From - Spending review Topic 1]]+Dataset[[#This Row],[2024/25 From - Spending review Topic 2]]+Dataset[[#This Row],[2024/25 From - Spending review Topic 3]]+Dataset[[#This Row],[2024/25 From - Spending review Topic 4]]+Dataset[[#This Row],[2024/25 From - Other reallocations]]","v":0},{"$f":"Dataset[[#This Row],[2025/26 From - Spending review Topic 1]]+Dataset[[#This Row],[2025/26 From - Spending review Topic 2]]+Dataset[[#This Row],[2025/26 From - Spending review Topic 3]]+Dataset[[#This Row],[2025/26 From - Spending review Topic 4]]+Dataset[[#This Row],[2025/26 From - Other reallocations]]","v":0},{"$f":"Dataset[[#This Row],[2026/27 From - Spending review Topic 1]]+Dataset[[#This Row],[2026/27 From - Spending review Topic 2]]+Dataset[[#This Row],[2026/27 From - Spending review Topic 3]]+Dataset[[#This Row],[2026/27 From - Spending review Topic 4]]+Dataset[[#This Row],[2026/27 From - Other reallocations]]","v":0},{"$f":"Dataset[[#This Row],[2024/25 To - Spending review Topic 1]]+Dataset[[#This Row],[2024/25 To - Spending review Topic 2]]+Dataset[[#This Row],[2024/25 To - Spending review Topic 3]]+Dataset[[#This Row],[2024/25 To - Spending review Topic 4]]+Dataset[[#This Row],[2024/25 To - Other reallocations]]","v":0},{"$f":"Dataset[[#This Row],[2025/26 To - Spending review Topic 1]]+Dataset[[#This Row],[2025/26 To - Spending review Topic 2]]+Dataset[[#This Row],[2025/26 To - Spending review Topic 3]]+Dataset[[#This Row],[2025/26 To - Spending review Topic 4]]+Dataset[[#This Row],[2025/26 To - Other reallocations]]","v":0},{"$f":"Dataset[[#This Row],[2026/27 To - Spending review Topic 1]]+Dataset[[#This Row],[2026/27 To - Spending review Topic 2]]+Dataset[[#This Row],[2026/27 To - Spending review Topic 3]]+Dataset[[#This Row],[2026/27 To - Spending review Topic 4]]+Dataset[[#This Row],[2026/27 To - Other reallocations]]","v":0},{"$f":"Dataset[[#This Row],[2024/25 Reduction]]+Dataset[[#This Row],[2024/25 From - Total]]","v":0},{"$f":"Dataset[[#This Row],[2025/26 Reduction]]+Dataset[[#This Row],[2025/26 From - Total]]","v":0},{"$f":"Dataset[[#This Row],[2026/27 Reduction]]+Dataset[[#This Row],[2026/27 From - Total]]","v":0},{"$f":"Dataset[[#This Row],[2023/24 Reduction]]","v":0},{"$f":"SUM(Dataset[[#This Row],[2024/25 Reduction]],Dataset[[#This Row],[2024/25 From - Total]],Dataset[[#This Row],[2024/25 To - Total]])","v":0},{"$f":"SUM(Dataset[[#This Row],[2025/26 Reduction]],Dataset[[#This Row],[2025/26 From - Total]],Dataset[[#This Row],[2025/26 To - Total]])","v":0},{"$f":"SUM(Dataset[[#This Row],[2026/27 Reduction]],Dataset[[#This Row],[2026/27 From - Total]],Dataset[[#This Row],[2026/27 To - Total]])","v":0},{"$f":"Dataset[[#This Row],[2023/24 Baseline]]+Dataset[[#This Row],[2023/24 Total change]]","v":0},{"$f":"Dataset[[#This Row],[2024/25 Baseline]]+Dataset[[#This Row],[2024/25 Total change]]","v":0},{"$f":"Dataset[[#This Row],[2025/26 Baseline]]+Dataset[[#This Row],[2025/26 Total change]]","v":0},{"$f":"Dataset[[#This Row],[2026/27 Baseline]]+Dataset[[#This Row],[2026/27 Total change]]","v":0}]
["NAT|Non-transfer item","26|Laboratory services","2024_25","MTEF2024",26,2,1,44362,475,"26","02","01","044362","000475","26|02|01","01","01","02","13","13","01|01|02|13|13","National","Military Veterans","Socioeconomic Support","Database and Benefits Management","Non-transfer item","Current","Current payments","Goods and services","Laboratory services","Laboratory services","Peace and security","Defence and state security","NAT",0,0,0,0,0,0,0,0,0,0,0,null,null,null,null,null,null,null,null,null,null,null,null,null,null,null,null,null,null,null,null,null,null,null,null,null,null,null,null,null,null,null,null,null,null,{"$f":"Dataset[[#This Row],[2024/25 From - Spending review Topic 1]]+Dataset[[#This Row],[2024/25 From - Spending review Topic 2]]+Dataset[[#This Row],[2024/25 From - Spending review Topic 3]]+Dataset[[#This Row],[2024/25 From - Spending review Topic 4]]+Dataset[[#This Row],[2024/25 From - Other reallocations]]","v":0},{"$f":"Dataset[[#This Row],[2025/26 From - Spending review Topic 1]]+Dataset[[#This Row],[2025/26 From - Spending review Topic 2]]+Dataset[[#This Row],[2025/26 From - Spending review Topic 3]]+Dataset[[#This Row],[2025/26 From - Spending review Topic 4]]+Dataset[[#This Row],[2025/26 From - Other reallocations]]","v":0},{"$f":"Dataset[[#This Row],[2026/27 From - Spending review Topic 1]]+Dataset[[#This Row],[2026/27 From - Spending review Topic 2]]+Dataset[[#This Row],[2026/27 From - Spending review Topic 3]]+Dataset[[#This Row],[2026/27 From - Spending review Topic 4]]+Dataset[[#This Row],[2026/27 From - Other reallocations]]","v":0},{"$f":"Dataset[[#This Row],[2024/25 To - Spending review Topic 1]]+Dataset[[#This Row],[2024/25 To - Spending review Topic 2]]+Dataset[[#This Row],[2024/25 To - Spending review Topic 3]]+Dataset[[#This Row],[2024/25 To - Spending review Topic 4]]+Dataset[[#This Row],[2024/25 To - Other reallocations]]","v":0},{"$f":"Dataset[[#This Row],[2025/26 To - Spending review Topic 1]]+Dataset[[#This Row],[2025/26 To - Spending review Topic 2]]+Dataset[[#This Row],[2025/26 To - Spending review Topic 3]]+Dataset[[#This Row],[2025/26 To - Spending review Topic 4]]+Dataset[[#This Row],[2025/26 To - Other reallocations]]","v":0},{"$f":"Dataset[[#This Row],[2026/27 To - Spending review Topic 1]]+Dataset[[#This Row],[2026/27 To - Spending review Topic 2]]+Dataset[[#This Row],[2026/27 To - Spending review Topic 3]]+Dataset[[#This Row],[2026/27 To - Spending review Topic 4]]+Dataset[[#This Row],[2026/27 To - Other reallocations]]","v":0},{"$f":"Dataset[[#This Row],[2024/25 Reduction]]+Dataset[[#This Row],[2024/25 From - Total]]","v":0},{"$f":"Dataset[[#This Row],[2025/26 Reduction]]+Dataset[[#This Row],[2025/26 From - Total]]","v":0},{"$f":"Dataset[[#This Row],[2026/27 Reduction]]+Dataset[[#This Row],[2026/27 From - Total]]","v":0},{"$f":"Dataset[[#This Row],[2023/24 Reduction]]","v":0},{"$f":"SUM(Dataset[[#This Row],[2024/25 Reduction]],Dataset[[#This Row],[2024/25 From - Total]],Dataset[[#This Row],[2024/25 To - Total]])","v":0},{"$f":"SUM(Dataset[[#This Row],[2025/26 Reduction]],Dataset[[#This Row],[2025/26 From - Total]],Dataset[[#This Row],[2025/26 To - Total]])","v":0},{"$f":"SUM(Dataset[[#This Row],[2026/27 Reduction]],Dataset[[#This Row],[2026/27 From - Total]],Dataset[[#This Row],[2026/27 To - Total]])","v":0},{"$f":"Dataset[[#This Row],[2023/24 Baseline]]+Dataset[[#This Row],[2023/24 Total change]]","v":0},{"$f":"Dataset[[#This Row],[2024/25 Baseline]]+Dataset[[#This Row],[2024/25 Total change]]","v":0},{"$f":"Dataset[[#This Row],[2025/26 Baseline]]+Dataset[[#This Row],[2025/26 Total change]]","v":0},{"$f":"Dataset[[#This Row],[2026/27 Baseline]]+Dataset[[#This Row],[2026/27 Total change]]","v":0}]
["NAT|Non-transfer item","26|Legal services (G&S)","2024_25","MTEF2024",26,2,1,44363,476,"26","02","01","044363","000476","26|02|01","01","01","02","14","14","01|01|02|14|14","National","Military Veterans","Socioeconomic Support","Database and Benefits Management","Non-transfer item","Current","Current payments","Goods and services","Legal services (G&S)","Legal services (G&S)","Peace and security","Defence and state security","NAT",0,0,0,0,0,0,0,0,0,0,0,null,null,null,null,null,null,null,null,null,null,null,null,null,null,null,null,null,null,null,null,null,null,null,null,null,null,null,null,null,null,null,null,null,null,{"$f":"Dataset[[#This Row],[2024/25 From - Spending review Topic 1]]+Dataset[[#This Row],[2024/25 From - Spending review Topic 2]]+Dataset[[#This Row],[2024/25 From - Spending review Topic 3]]+Dataset[[#This Row],[2024/25 From - Spending review Topic 4]]+Dataset[[#This Row],[2024/25 From - Other reallocations]]","v":0},{"$f":"Dataset[[#This Row],[2025/26 From - Spending review Topic 1]]+Dataset[[#This Row],[2025/26 From - Spending review Topic 2]]+Dataset[[#This Row],[2025/26 From - Spending review Topic 3]]+Dataset[[#This Row],[2025/26 From - Spending review Topic 4]]+Dataset[[#This Row],[2025/26 From - Other reallocations]]","v":0},{"$f":"Dataset[[#This Row],[2026/27 From - Spending review Topic 1]]+Dataset[[#This Row],[2026/27 From - Spending review Topic 2]]+Dataset[[#This Row],[2026/27 From - Spending review Topic 3]]+Dataset[[#This Row],[2026/27 From - Spending review Topic 4]]+Dataset[[#This Row],[2026/27 From - Other reallocations]]","v":0},{"$f":"Dataset[[#This Row],[2024/25 To - Spending review Topic 1]]+Dataset[[#This Row],[2024/25 To - Spending review Topic 2]]+Dataset[[#This Row],[2024/25 To - Spending review Topic 3]]+Dataset[[#This Row],[2024/25 To - Spending review Topic 4]]+Dataset[[#This Row],[2024/25 To - Other reallocations]]","v":0},{"$f":"Dataset[[#This Row],[2025/26 To - Spending review Topic 1]]+Dataset[[#This Row],[2025/26 To - Spending review Topic 2]]+Dataset[[#This Row],[2025/26 To - Spending review Topic 3]]+Dataset[[#This Row],[2025/26 To - Spending review Topic 4]]+Dataset[[#This Row],[2025/26 To - Other reallocations]]","v":0},{"$f":"Dataset[[#This Row],[2026/27 To - Spending review Topic 1]]+Dataset[[#This Row],[2026/27 To - Spending review Topic 2]]+Dataset[[#This Row],[2026/27 To - Spending review Topic 3]]+Dataset[[#This Row],[2026/27 To - Spending review Topic 4]]+Dataset[[#This Row],[2026/27 To - Other reallocations]]","v":0},{"$f":"Dataset[[#This Row],[2024/25 Reduction]]+Dataset[[#This Row],[2024/25 From - Total]]","v":0},{"$f":"Dataset[[#This Row],[2025/26 Reduction]]+Dataset[[#This Row],[2025/26 From - Total]]","v":0},{"$f":"Dataset[[#This Row],[2026/27 Reduction]]+Dataset[[#This Row],[2026/27 From - Total]]","v":0},{"$f":"Dataset[[#This Row],[2023/24 Reduction]]","v":0},{"$f":"SUM(Dataset[[#This Row],[2024/25 Reduction]],Dataset[[#This Row],[2024/25 From - Total]],Dataset[[#This Row],[2024/25 To - Total]])","v":0},{"$f":"SUM(Dataset[[#This Row],[2025/26 Reduction]],Dataset[[#This Row],[2025/26 From - Total]],Dataset[[#This Row],[2025/26 To - Total]])","v":0},{"$f":"SUM(Dataset[[#This Row],[2026/27 Reduction]],Dataset[[#This Row],[2026/27 From - Total]],Dataset[[#This Row],[2026/27 To - Total]])","v":0},{"$f":"Dataset[[#This Row],[2023/24 Baseline]]+Dataset[[#This Row],[2023/24 Total change]]","v":0},{"$f":"Dataset[[#This Row],[2024/25 Baseline]]+Dataset[[#This Row],[2024/25 Total change]]","v":0},{"$f":"Dataset[[#This Row],[2025/26 Baseline]]+Dataset[[#This Row],[2025/26 Total change]]","v":0},{"$f":"Dataset[[#This Row],[2026/27 Baseline]]+Dataset[[#This Row],[2026/27 Total change]]","v":0}]
["NAT|Non-transfer item","26|Science and technological services","2024_25","MTEF2024",26,2,1,44364,477,"26","02","01","044364","000477","26|02|01","01","01","02","15","15","01|01|02|15|15","National","Military Veterans","Socioeconomic Support","Database and Benefits Management","Non-transfer item","Current","Current payments","Goods and services","Science and technological services","Science and technological services","Peace and security","Defence and state security","NAT",0,0,0,0,0,0,0,0,0,0,0,null,null,null,null,null,null,null,null,null,null,null,null,null,null,null,null,null,null,null,null,null,null,null,null,null,null,null,null,null,null,null,null,null,null,{"$f":"Dataset[[#This Row],[2024/25 From - Spending review Topic 1]]+Dataset[[#This Row],[2024/25 From - Spending review Topic 2]]+Dataset[[#This Row],[2024/25 From - Spending review Topic 3]]+Dataset[[#This Row],[2024/25 From - Spending review Topic 4]]+Dataset[[#This Row],[2024/25 From - Other reallocations]]","v":0},{"$f":"Dataset[[#This Row],[2025/26 From - Spending review Topic 1]]+Dataset[[#This Row],[2025/26 From - Spending review Topic 2]]+Dataset[[#This Row],[2025/26 From - Spending review Topic 3]]+Dataset[[#This Row],[2025/26 From - Spending review Topic 4]]+Dataset[[#This Row],[2025/26 From - Other reallocations]]","v":0},{"$f":"Dataset[[#This Row],[2026/27 From - Spending review Topic 1]]+Dataset[[#This Row],[2026/27 From - Spending review Topic 2]]+Dataset[[#This Row],[2026/27 From - Spending review Topic 3]]+Dataset[[#This Row],[2026/27 From - Spending review Topic 4]]+Dataset[[#This Row],[2026/27 From - Other reallocations]]","v":0},{"$f":"Dataset[[#This Row],[2024/25 To - Spending review Topic 1]]+Dataset[[#This Row],[2024/25 To - Spending review Topic 2]]+Dataset[[#This Row],[2024/25 To - Spending review Topic 3]]+Dataset[[#This Row],[2024/25 To - Spending review Topic 4]]+Dataset[[#This Row],[2024/25 To - Other reallocations]]","v":0},{"$f":"Dataset[[#This Row],[2025/26 To - Spending review Topic 1]]+Dataset[[#This Row],[2025/26 To - Spending review Topic 2]]+Dataset[[#This Row],[2025/26 To - Spending review Topic 3]]+Dataset[[#This Row],[2025/26 To - Spending review Topic 4]]+Dataset[[#This Row],[2025/26 To - Other reallocations]]","v":0},{"$f":"Dataset[[#This Row],[2026/27 To - Spending review Topic 1]]+Dataset[[#This Row],[2026/27 To - Spending review Topic 2]]+Dataset[[#This Row],[2026/27 To - Spending review Topic 3]]+Dataset[[#This Row],[2026/27 To - Spending review Topic 4]]+Dataset[[#This Row],[2026/27 To - Other reallocations]]","v":0},{"$f":"Dataset[[#This Row],[2024/25 Reduction]]+Dataset[[#This Row],[2024/25 From - Total]]","v":0},{"$f":"Dataset[[#This Row],[2025/26 Reduction]]+Dataset[[#This Row],[2025/26 From - Total]]","v":0},{"$f":"Dataset[[#This Row],[2026/27 Reduction]]+Dataset[[#This Row],[2026/27 From - Total]]","v":0},{"$f":"Dataset[[#This Row],[2023/24 Reduction]]","v":0},{"$f":"SUM(Dataset[[#This Row],[2024/25 Reduction]],Dataset[[#This Row],[2024/25 From - Total]],Dataset[[#This Row],[2024/25 To - Total]])","v":0},{"$f":"SUM(Dataset[[#This Row],[2025/26 Reduction]],Dataset[[#This Row],[2025/26 From - Total]],Dataset[[#This Row],[2025/26 To - Total]])","v":0},{"$f":"SUM(Dataset[[#This Row],[2026/27 Reduction]],Dataset[[#This Row],[2026/27 From - Total]],Dataset[[#This Row],[2026/27 To - Total]])","v":0},{"$f":"Dataset[[#This Row],[2023/24 Baseline]]+Dataset[[#This Row],[2023/24 Total change]]","v":0},{"$f":"Dataset[[#This Row],[2024/25 Baseline]]+Dataset[[#This Row],[2024/25 Total change]]","v":0},{"$f":"Dataset[[#This Row],[2025/26 Baseline]]+Dataset[[#This Row],[2025/26 Total change]]","v":0},{"$f":"Dataset[[#This Row],[2026/27 Baseline]]+Dataset[[#This Row],[2026/27 Total change]]","v":0}]
["NAT|Non-transfer item","26|Contractors","2024_25","MTEF2024",26,2,1,44365,478,"26","02","01","044365","000478","26|02|01","01","01","02","16","16","01|01|02|16|16","National","Military Veterans","Socioeconomic Support","Database and Benefits Management","Non-transfer item","Current","Current payments","Goods and services","Contractors","Contractors","Peace and security","Defence and state security","NAT",0,0,0,0,0,0,0,0,0,0,0,null,null,null,null,null,null,null,null,null,null,null,null,null,null,null,null,null,null,null,null,null,null,null,null,null,null,null,null,null,null,null,null,null,null,{"$f":"Dataset[[#This Row],[2024/25 From - Spending review Topic 1]]+Dataset[[#This Row],[2024/25 From - Spending review Topic 2]]+Dataset[[#This Row],[2024/25 From - Spending review Topic 3]]+Dataset[[#This Row],[2024/25 From - Spending review Topic 4]]+Dataset[[#This Row],[2024/25 From - Other reallocations]]","v":0},{"$f":"Dataset[[#This Row],[2025/26 From - Spending review Topic 1]]+Dataset[[#This Row],[2025/26 From - Spending review Topic 2]]+Dataset[[#This Row],[2025/26 From - Spending review Topic 3]]+Dataset[[#This Row],[2025/26 From - Spending review Topic 4]]+Dataset[[#This Row],[2025/26 From - Other reallocations]]","v":0},{"$f":"Dataset[[#This Row],[2026/27 From - Spending review Topic 1]]+Dataset[[#This Row],[2026/27 From - Spending review Topic 2]]+Dataset[[#This Row],[2026/27 From - Spending review Topic 3]]+Dataset[[#This Row],[2026/27 From - Spending review Topic 4]]+Dataset[[#This Row],[2026/27 From - Other reallocations]]","v":0},{"$f":"Dataset[[#This Row],[2024/25 To - Spending review Topic 1]]+Dataset[[#This Row],[2024/25 To - Spending review Topic 2]]+Dataset[[#This Row],[2024/25 To - Spending review Topic 3]]+Dataset[[#This Row],[2024/25 To - Spending review Topic 4]]+Dataset[[#This Row],[2024/25 To - Other reallocations]]","v":0},{"$f":"Dataset[[#This Row],[2025/26 To - Spending review Topic 1]]+Dataset[[#This Row],[2025/26 To - Spending review Topic 2]]+Dataset[[#This Row],[2025/26 To - Spending review Topic 3]]+Dataset[[#This Row],[2025/26 To - Spending review Topic 4]]+Dataset[[#This Row],[2025/26 To - Other reallocations]]","v":0},{"$f":"Dataset[[#This Row],[2026/27 To - Spending review Topic 1]]+Dataset[[#This Row],[2026/27 To - Spending review Topic 2]]+Dataset[[#This Row],[2026/27 To - Spending review Topic 3]]+Dataset[[#This Row],[2026/27 To - Spending review Topic 4]]+Dataset[[#This Row],[2026/27 To - Other reallocations]]","v":0},{"$f":"Dataset[[#This Row],[2024/25 Reduction]]+Dataset[[#This Row],[2024/25 From - Total]]","v":0},{"$f":"Dataset[[#This Row],[2025/26 Reduction]]+Dataset[[#This Row],[2025/26 From - Total]]","v":0},{"$f":"Dataset[[#This Row],[2026/27 Reduction]]+Dataset[[#This Row],[2026/27 From - Total]]","v":0},{"$f":"Dataset[[#This Row],[2023/24 Reduction]]","v":0},{"$f":"SUM(Dataset[[#This Row],[2024/25 Reduction]],Dataset[[#This Row],[2024/25 From - Total]],Dataset[[#This Row],[2024/25 To - Total]])","v":0},{"$f":"SUM(Dataset[[#This Row],[2025/26 Reduction]],Dataset[[#This Row],[2025/26 From - Total]],Dataset[[#This Row],[2025/26 To - Total]])","v":0},{"$f":"SUM(Dataset[[#This Row],[2026/27 Reduction]],Dataset[[#This Row],[2026/27 From - Total]],Dataset[[#This Row],[2026/27 To - Total]])","v":0},{"$f":"Dataset[[#This Row],[2023/24 Baseline]]+Dataset[[#This Row],[2023/24 Total change]]","v":0},{"$f":"Dataset[[#This Row],[2024/25 Baseline]]+Dataset[[#This Row],[2024/25 Total change]]","v":0},{"$f":"Dataset[[#This Row],[2025/26 Baseline]]+Dataset[[#This Row],[2025/26 Total change]]","v":0},{"$f":"Dataset[[#This Row],[2026/27 Baseline]]+Dataset[[#This Row],[2026/27 Total change]]","v":0}]
["NAT|Non-transfer item","26|Agency and support/outsourced services","2024_25","MTEF2024",26,2,1,44366,479,"26","02","01","044366","000479","26|02|01","01","01","02","17","17","01|01|02|17|17","National","Military Veterans","Socioeconomic Support","Database and Benefits Management","Non-transfer item","Current","Current payments","Goods and services","Agency and support/outsourced services","Agency and support/outsourced services","Peace and security","Defence and state security","NAT",0,0,0,0,0,0,0,0,0,0,0,null,null,null,null,null,null,null,null,null,null,null,null,null,null,null,null,null,null,null,null,null,null,null,null,null,null,null,null,null,null,null,null,null,null,{"$f":"Dataset[[#This Row],[2024/25 From - Spending review Topic 1]]+Dataset[[#This Row],[2024/25 From - Spending review Topic 2]]+Dataset[[#This Row],[2024/25 From - Spending review Topic 3]]+Dataset[[#This Row],[2024/25 From - Spending review Topic 4]]+Dataset[[#This Row],[2024/25 From - Other reallocations]]","v":0},{"$f":"Dataset[[#This Row],[2025/26 From - Spending review Topic 1]]+Dataset[[#This Row],[2025/26 From - Spending review Topic 2]]+Dataset[[#This Row],[2025/26 From - Spending review Topic 3]]+Dataset[[#This Row],[2025/26 From - Spending review Topic 4]]+Dataset[[#This Row],[2025/26 From - Other reallocations]]","v":0},{"$f":"Dataset[[#This Row],[2026/27 From - Spending review Topic 1]]+Dataset[[#This Row],[2026/27 From - Spending review Topic 2]]+Dataset[[#This Row],[2026/27 From - Spending review Topic 3]]+Dataset[[#This Row],[2026/27 From - Spending review Topic 4]]+Dataset[[#This Row],[2026/27 From - Other reallocations]]","v":0},{"$f":"Dataset[[#This Row],[2024/25 To - Spending review Topic 1]]+Dataset[[#This Row],[2024/25 To - Spending review Topic 2]]+Dataset[[#This Row],[2024/25 To - Spending review Topic 3]]+Dataset[[#This Row],[2024/25 To - Spending review Topic 4]]+Dataset[[#This Row],[2024/25 To - Other reallocations]]","v":0},{"$f":"Dataset[[#This Row],[2025/26 To - Spending review Topic 1]]+Dataset[[#This Row],[2025/26 To - Spending review Topic 2]]+Dataset[[#This Row],[2025/26 To - Spending review Topic 3]]+Dataset[[#This Row],[2025/26 To - Spending review Topic 4]]+Dataset[[#This Row],[2025/26 To - Other reallocations]]","v":0},{"$f":"Dataset[[#This Row],[2026/27 To - Spending review Topic 1]]+Dataset[[#This Row],[2026/27 To - Spending review Topic 2]]+Dataset[[#This Row],[2026/27 To - Spending review Topic 3]]+Dataset[[#This Row],[2026/27 To - Spending review Topic 4]]+Dataset[[#This Row],[2026/27 To - Other reallocations]]","v":0},{"$f":"Dataset[[#This Row],[2024/25 Reduction]]+Dataset[[#This Row],[2024/25 From - Total]]","v":0},{"$f":"Dataset[[#This Row],[2025/26 Reduction]]+Dataset[[#This Row],[2025/26 From - Total]]","v":0},{"$f":"Dataset[[#This Row],[2026/27 Reduction]]+Dataset[[#This Row],[2026/27 From - Total]]","v":0},{"$f":"Dataset[[#This Row],[2023/24 Reduction]]","v":0},{"$f":"SUM(Dataset[[#This Row],[2024/25 Reduction]],Dataset[[#This Row],[2024/25 From - Total]],Dataset[[#This Row],[2024/25 To - Total]])","v":0},{"$f":"SUM(Dataset[[#This Row],[2025/26 Reduction]],Dataset[[#This Row],[2025/26 From - Total]],Dataset[[#This Row],[2025/26 To - Total]])","v":0},{"$f":"SUM(Dataset[[#This Row],[2026/27 Reduction]],Dataset[[#This Row],[2026/27 From - Total]],Dataset[[#This Row],[2026/27 To - Total]])","v":0},{"$f":"Dataset[[#This Row],[2023/24 Baseline]]+Dataset[[#This Row],[2023/24 Total change]]","v":0},{"$f":"Dataset[[#This Row],[2024/25 Baseline]]+Dataset[[#This Row],[2024/25 Total change]]","v":0},{"$f":"Dataset[[#This Row],[2025/26 Baseline]]+Dataset[[#This Row],[2025/26 Total change]]","v":0},{"$f":"Dataset[[#This Row],[2026/27 Baseline]]+Dataset[[#This Row],[2026/27 Total change]]","v":0}]
["NAT|Non-transfer item","26|Entertainment","2024_25","MTEF2024",26,2,1,44367,480,"26","02","01","044367","000480","26|02|01","01","01","02","18","18","01|01|02|18|18","National","Military Veterans","Socioeconomic Support","Database and Benefits Management","Non-transfer item","Current","Current payments","Goods and services","Entertainment","Entertainment","Peace and security","Defence and state security","NAT",0,0,0,0,0,0,0,0,0,0,0,null,null,null,null,null,null,null,null,null,null,null,null,null,null,null,null,null,null,null,null,null,null,null,null,null,null,null,null,null,null,null,null,null,null,{"$f":"Dataset[[#This Row],[2024/25 From - Spending review Topic 1]]+Dataset[[#This Row],[2024/25 From - Spending review Topic 2]]+Dataset[[#This Row],[2024/25 From - Spending review Topic 3]]+Dataset[[#This Row],[2024/25 From - Spending review Topic 4]]+Dataset[[#This Row],[2024/25 From - Other reallocations]]","v":0},{"$f":"Dataset[[#This Row],[2025/26 From - Spending review Topic 1]]+Dataset[[#This Row],[2025/26 From - Spending review Topic 2]]+Dataset[[#This Row],[2025/26 From - Spending review Topic 3]]+Dataset[[#This Row],[2025/26 From - Spending review Topic 4]]+Dataset[[#This Row],[2025/26 From - Other reallocations]]","v":0},{"$f":"Dataset[[#This Row],[2026/27 From - Spending review Topic 1]]+Dataset[[#This Row],[2026/27 From - Spending review Topic 2]]+Dataset[[#This Row],[2026/27 From - Spending review Topic 3]]+Dataset[[#This Row],[2026/27 From - Spending review Topic 4]]+Dataset[[#This Row],[2026/27 From - Other reallocations]]","v":0},{"$f":"Dataset[[#This Row],[2024/25 To - Spending review Topic 1]]+Dataset[[#This Row],[2024/25 To - Spending review Topic 2]]+Dataset[[#This Row],[2024/25 To - Spending review Topic 3]]+Dataset[[#This Row],[2024/25 To - Spending review Topic 4]]+Dataset[[#This Row],[2024/25 To - Other reallocations]]","v":0},{"$f":"Dataset[[#This Row],[2025/26 To - Spending review Topic 1]]+Dataset[[#This Row],[2025/26 To - Spending review Topic 2]]+Dataset[[#This Row],[2025/26 To - Spending review Topic 3]]+Dataset[[#This Row],[2025/26 To - Spending review Topic 4]]+Dataset[[#This Row],[2025/26 To - Other reallocations]]","v":0},{"$f":"Dataset[[#This Row],[2026/27 To - Spending review Topic 1]]+Dataset[[#This Row],[2026/27 To - Spending review Topic 2]]+Dataset[[#This Row],[2026/27 To - Spending review Topic 3]]+Dataset[[#This Row],[2026/27 To - Spending review Topic 4]]+Dataset[[#This Row],[2026/27 To - Other reallocations]]","v":0},{"$f":"Dataset[[#This Row],[2024/25 Reduction]]+Dataset[[#This Row],[2024/25 From - Total]]","v":0},{"$f":"Dataset[[#This Row],[2025/26 Reduction]]+Dataset[[#This Row],[2025/26 From - Total]]","v":0},{"$f":"Dataset[[#This Row],[2026/27 Reduction]]+Dataset[[#This Row],[2026/27 From - Total]]","v":0},{"$f":"Dataset[[#This Row],[2023/24 Reduction]]","v":0},{"$f":"SUM(Dataset[[#This Row],[2024/25 Reduction]],Dataset[[#This Row],[2024/25 From - Total]],Dataset[[#This Row],[2024/25 To - Total]])","v":0},{"$f":"SUM(Dataset[[#This Row],[2025/26 Reduction]],Dataset[[#This Row],[2025/26 From - Total]],Dataset[[#This Row],[2025/26 To - Total]])","v":0},{"$f":"SUM(Dataset[[#This Row],[2026/27 Reduction]],Dataset[[#This Row],[2026/27 From - Total]],Dataset[[#This Row],[2026/27 To - Total]])","v":0},{"$f":"Dataset[[#This Row],[2023/24 Baseline]]+Dataset[[#This Row],[2023/24 Total change]]","v":0},{"$f":"Dataset[[#This Row],[2024/25 Baseline]]+Dataset[[#This Row],[2024/25 Total change]]","v":0},{"$f":"Dataset[[#This Row],[2025/26 Baseline]]+Dataset[[#This Row],[2025/26 Total change]]","v":0},{"$f":"Dataset[[#This Row],[2026/27 Baseline]]+Dataset[[#This Row],[2026/27 Total change]]","v":0}]
["NAT|Non-transfer item","26|Fleet services (including government motor transport)","2024_25","MTEF2024",26,2,1,44368,481,"26","02","01","044368","000481","26|02|01","01","01","02","19","19","01|01|02|19|19","National","Military Veterans","Socioeconomic Support","Database and Benefits Management","Non-transfer item","Current","Current payments","Goods and services","Fleet services (including government motor transport)","Fleet services (including government motor transport)","Peace and security","Defence and state security","NAT",0,0,0,0,5000,5000,0,2000,2500,3000,3137,null,null,null,null,null,null,null,null,null,null,null,null,null,null,null,null,null,null,null,null,null,null,null,null,null,null,null,null,null,null,null,null,null,null,{"$f":"Dataset[[#This Row],[2024/25 From - Spending review Topic 1]]+Dataset[[#This Row],[2024/25 From - Spending review Topic 2]]+Dataset[[#This Row],[2024/25 From - Spending review Topic 3]]+Dataset[[#This Row],[2024/25 From - Spending review Topic 4]]+Dataset[[#This Row],[2024/25 From - Other reallocations]]","v":0},{"$f":"Dataset[[#This Row],[2025/26 From - Spending review Topic 1]]+Dataset[[#This Row],[2025/26 From - Spending review Topic 2]]+Dataset[[#This Row],[2025/26 From - Spending review Topic 3]]+Dataset[[#This Row],[2025/26 From - Spending review Topic 4]]+Dataset[[#This Row],[2025/26 From - Other reallocations]]","v":0},{"$f":"Dataset[[#This Row],[2026/27 From - Spending review Topic 1]]+Dataset[[#This Row],[2026/27 From - Spending review Topic 2]]+Dataset[[#This Row],[2026/27 From - Spending review Topic 3]]+Dataset[[#This Row],[2026/27 From - Spending review Topic 4]]+Dataset[[#This Row],[2026/27 From - Other reallocations]]","v":0},{"$f":"Dataset[[#This Row],[2024/25 To - Spending review Topic 1]]+Dataset[[#This Row],[2024/25 To - Spending review Topic 2]]+Dataset[[#This Row],[2024/25 To - Spending review Topic 3]]+Dataset[[#This Row],[2024/25 To - Spending review Topic 4]]+Dataset[[#This Row],[2024/25 To - Other reallocations]]","v":0},{"$f":"Dataset[[#This Row],[2025/26 To - Spending review Topic 1]]+Dataset[[#This Row],[2025/26 To - Spending review Topic 2]]+Dataset[[#This Row],[2025/26 To - Spending review Topic 3]]+Dataset[[#This Row],[2025/26 To - Spending review Topic 4]]+Dataset[[#This Row],[2025/26 To - Other reallocations]]","v":0},{"$f":"Dataset[[#This Row],[2026/27 To - Spending review Topic 1]]+Dataset[[#This Row],[2026/27 To - Spending review Topic 2]]+Dataset[[#This Row],[2026/27 To - Spending review Topic 3]]+Dataset[[#This Row],[2026/27 To - Spending review Topic 4]]+Dataset[[#This Row],[2026/27 To - Other reallocations]]","v":0},{"$f":"Dataset[[#This Row],[2024/25 Reduction]]+Dataset[[#This Row],[2024/25 From - Total]]","v":0},{"$f":"Dataset[[#This Row],[2025/26 Reduction]]+Dataset[[#This Row],[2025/26 From - Total]]","v":0},{"$f":"Dataset[[#This Row],[2026/27 Reduction]]+Dataset[[#This Row],[2026/27 From - Total]]","v":0},{"$f":"Dataset[[#This Row],[2023/24 Reduction]]","v":0},{"$f":"SUM(Dataset[[#This Row],[2024/25 Reduction]],Dataset[[#This Row],[2024/25 From - Total]],Dataset[[#This Row],[2024/25 To - Total]])","v":0},{"$f":"SUM(Dataset[[#This Row],[2025/26 Reduction]],Dataset[[#This Row],[2025/26 From - Total]],Dataset[[#This Row],[2025/26 To - Total]])","v":0},{"$f":"SUM(Dataset[[#This Row],[2026/27 Reduction]],Dataset[[#This Row],[2026/27 From - Total]],Dataset[[#This Row],[2026/27 To - Total]])","v":0},{"$f":"Dataset[[#This Row],[2023/24 Baseline]]+Dataset[[#This Row],[2023/24 Total change]]","v":2000},{"$f":"Dataset[[#This Row],[2024/25 Baseline]]+Dataset[[#This Row],[2024/25 Total change]]","v":2500},{"$f":"Dataset[[#This Row],[2025/26 Baseline]]+Dataset[[#This Row],[2025/26 Total change]]","v":3000},{"$f":"Dataset[[#This Row],[2026/27 Baseline]]+Dataset[[#This Row],[2026/27 Total change]]","v":3137}]
["NAT|Non-transfer item","26|Housing","2024_25","MTEF2024",26,2,1,44369,482,"26","02","01","044369","000482","26|02|01","01","01","02","20","20","01|01|02|20|20","National","Military Veterans","Socioeconomic Support","Database and Benefits Management","Non-transfer item","Current","Current payments","Goods and services","Housing","Housing","Peace and security","Defence and state security","NAT",0,0,0,0,0,0,0,0,0,0,0,null,null,null,null,null,null,null,null,null,null,null,null,null,null,null,null,null,null,null,null,null,null,null,null,null,null,null,null,null,null,null,null,null,null,{"$f":"Dataset[[#This Row],[2024/25 From - Spending review Topic 1]]+Dataset[[#This Row],[2024/25 From - Spending review Topic 2]]+Dataset[[#This Row],[2024/25 From - Spending review Topic 3]]+Dataset[[#This Row],[2024/25 From - Spending review Topic 4]]+Dataset[[#This Row],[2024/25 From - Other reallocations]]","v":0},{"$f":"Dataset[[#This Row],[2025/26 From - Spending review Topic 1]]+Dataset[[#This Row],[2025/26 From - Spending review Topic 2]]+Dataset[[#This Row],[2025/26 From - Spending review Topic 3]]+Dataset[[#This Row],[2025/26 From - Spending review Topic 4]]+Dataset[[#This Row],[2025/26 From - Other reallocations]]","v":0},{"$f":"Dataset[[#This Row],[2026/27 From - Spending review Topic 1]]+Dataset[[#This Row],[2026/27 From - Spending review Topic 2]]+Dataset[[#This Row],[2026/27 From - Spending review Topic 3]]+Dataset[[#This Row],[2026/27 From - Spending review Topic 4]]+Dataset[[#This Row],[2026/27 From - Other reallocations]]","v":0},{"$f":"Dataset[[#This Row],[2024/25 To - Spending review Topic 1]]+Dataset[[#This Row],[2024/25 To - Spending review Topic 2]]+Dataset[[#This Row],[2024/25 To - Spending review Topic 3]]+Dataset[[#This Row],[2024/25 To - Spending review Topic 4]]+Dataset[[#This Row],[2024/25 To - Other reallocations]]","v":0},{"$f":"Dataset[[#This Row],[2025/26 To - Spending review Topic 1]]+Dataset[[#This Row],[2025/26 To - Spending review Topic 2]]+Dataset[[#This Row],[2025/26 To - Spending review Topic 3]]+Dataset[[#This Row],[2025/26 To - Spending review Topic 4]]+Dataset[[#This Row],[2025/26 To - Other reallocations]]","v":0},{"$f":"Dataset[[#This Row],[2026/27 To - Spending review Topic 1]]+Dataset[[#This Row],[2026/27 To - Spending review Topic 2]]+Dataset[[#This Row],[2026/27 To - Spending review Topic 3]]+Dataset[[#This Row],[2026/27 To - Spending review Topic 4]]+Dataset[[#This Row],[2026/27 To - Other reallocations]]","v":0},{"$f":"Dataset[[#This Row],[2024/25 Reduction]]+Dataset[[#This Row],[2024/25 From - Total]]","v":0},{"$f":"Dataset[[#This Row],[2025/26 Reduction]]+Dataset[[#This Row],[2025/26 From - Total]]","v":0},{"$f":"Dataset[[#This Row],[2026/27 Reduction]]+Dataset[[#This Row],[2026/27 From - Total]]","v":0},{"$f":"Dataset[[#This Row],[2023/24 Reduction]]","v":0},{"$f":"SUM(Dataset[[#This Row],[2024/25 Reduction]],Dataset[[#This Row],[2024/25 From - Total]],Dataset[[#This Row],[2024/25 To - Total]])","v":0},{"$f":"SUM(Dataset[[#This Row],[2025/26 Reduction]],Dataset[[#This Row],[2025/26 From - Total]],Dataset[[#This Row],[2025/26 To - Total]])","v":0},{"$f":"SUM(Dataset[[#This Row],[2026/27 Reduction]],Dataset[[#This Row],[2026/27 From - Total]],Dataset[[#This Row],[2026/27 To - Total]])","v":0},{"$f":"Dataset[[#This Row],[2023/24 Baseline]]+Dataset[[#This Row],[2023/24 Total change]]","v":0},{"$f":"Dataset[[#This Row],[2024/25 Baseline]]+Dataset[[#This Row],[2024/25 Total change]]","v":0},{"$f":"Dataset[[#This Row],[2025/26 Baseline]]+Dataset[[#This Row],[2025/26 Total change]]","v":0},{"$f":"Dataset[[#This Row],[2026/27 Baseline]]+Dataset[[#This Row],[2026/27 Total change]]","v":0}]
["NAT|Non-transfer item","26|Inventory: Clothing material and accessories","2024_25","MTEF2024",26,2,1,44370,483,"26","02","01","044370","000483","26|02|01","01","01","02","21","21","01|01|02|21|21","National","Military Veterans","Socioeconomic Support","Database and Benefits Management","Non-transfer item","Current","Current payments","Goods and services","Inventory: Clothing material and accessories","Inventory: Clothing material and accessories","Peace and security","Defence and state security","NAT",0,0,0,0,0,0,0,0,0,0,0,null,null,null,null,null,null,null,null,null,null,null,null,null,null,null,null,null,null,null,null,null,null,null,null,null,null,null,null,null,null,null,null,null,null,{"$f":"Dataset[[#This Row],[2024/25 From - Spending review Topic 1]]+Dataset[[#This Row],[2024/25 From - Spending review Topic 2]]+Dataset[[#This Row],[2024/25 From - Spending review Topic 3]]+Dataset[[#This Row],[2024/25 From - Spending review Topic 4]]+Dataset[[#This Row],[2024/25 From - Other reallocations]]","v":0},{"$f":"Dataset[[#This Row],[2025/26 From - Spending review Topic 1]]+Dataset[[#This Row],[2025/26 From - Spending review Topic 2]]+Dataset[[#This Row],[2025/26 From - Spending review Topic 3]]+Dataset[[#This Row],[2025/26 From - Spending review Topic 4]]+Dataset[[#This Row],[2025/26 From - Other reallocations]]","v":0},{"$f":"Dataset[[#This Row],[2026/27 From - Spending review Topic 1]]+Dataset[[#This Row],[2026/27 From - Spending review Topic 2]]+Dataset[[#This Row],[2026/27 From - Spending review Topic 3]]+Dataset[[#This Row],[2026/27 From - Spending review Topic 4]]+Dataset[[#This Row],[2026/27 From - Other reallocations]]","v":0},{"$f":"Dataset[[#This Row],[2024/25 To - Spending review Topic 1]]+Dataset[[#This Row],[2024/25 To - Spending review Topic 2]]+Dataset[[#This Row],[2024/25 To - Spending review Topic 3]]+Dataset[[#This Row],[2024/25 To - Spending review Topic 4]]+Dataset[[#This Row],[2024/25 To - Other reallocations]]","v":0},{"$f":"Dataset[[#This Row],[2025/26 To - Spending review Topic 1]]+Dataset[[#This Row],[2025/26 To - Spending review Topic 2]]+Dataset[[#This Row],[2025/26 To - Spending review Topic 3]]+Dataset[[#This Row],[2025/26 To - Spending review Topic 4]]+Dataset[[#This Row],[2025/26 To - Other reallocations]]","v":0},{"$f":"Dataset[[#This Row],[2026/27 To - Spending review Topic 1]]+Dataset[[#This Row],[2026/27 To - Spending review Topic 2]]+Dataset[[#This Row],[2026/27 To - Spending review Topic 3]]+Dataset[[#This Row],[2026/27 To - Spending review Topic 4]]+Dataset[[#This Row],[2026/27 To - Other reallocations]]","v":0},{"$f":"Dataset[[#This Row],[2024/25 Reduction]]+Dataset[[#This Row],[2024/25 From - Total]]","v":0},{"$f":"Dataset[[#This Row],[2025/26 Reduction]]+Dataset[[#This Row],[2025/26 From - Total]]","v":0},{"$f":"Dataset[[#This Row],[2026/27 Reduction]]+Dataset[[#This Row],[2026/27 From - Total]]","v":0},{"$f":"Dataset[[#This Row],[2023/24 Reduction]]","v":0},{"$f":"SUM(Dataset[[#This Row],[2024/25 Reduction]],Dataset[[#This Row],[2024/25 From - Total]],Dataset[[#This Row],[2024/25 To - Total]])","v":0},{"$f":"SUM(Dataset[[#This Row],[2025/26 Reduction]],Dataset[[#This Row],[2025/26 From - Total]],Dataset[[#This Row],[2025/26 To - Total]])","v":0},{"$f":"SUM(Dataset[[#This Row],[2026/27 Reduction]],Dataset[[#This Row],[2026/27 From - Total]],Dataset[[#This Row],[2026/27 To - Total]])","v":0},{"$f":"Dataset[[#This Row],[2023/24 Baseline]]+Dataset[[#This Row],[2023/24 Total change]]","v":0},{"$f":"Dataset[[#This Row],[2024/25 Baseline]]+Dataset[[#This Row],[2024/25 Total change]]","v":0},{"$f":"Dataset[[#This Row],[2025/26 Baseline]]+Dataset[[#This Row],[2025/26 Total change]]","v":0},{"$f":"Dataset[[#This Row],[2026/27 Baseline]]+Dataset[[#This Row],[2026/27 Total change]]","v":0}]
["NAT|Non-transfer item","26|Inventory: Farming supplies","2024_25","MTEF2024",26,2,1,44371,484,"26","02","01","044371","000484","26|02|01","01","01","02","22","22","01|01|02|22|22","National","Military Veterans","Socioeconomic Support","Database and Benefits Management","Non-transfer item","Current","Current payments","Goods and services","Inventory: Farming supplies","Inventory: Farming supplies","Peace and security","Defence and state security","NAT",0,0,0,0,0,0,0,0,0,0,0,null,null,null,null,null,null,null,null,null,null,null,null,null,null,null,null,null,null,null,null,null,null,null,null,null,null,null,null,null,null,null,null,null,null,{"$f":"Dataset[[#This Row],[2024/25 From - Spending review Topic 1]]+Dataset[[#This Row],[2024/25 From - Spending review Topic 2]]+Dataset[[#This Row],[2024/25 From - Spending review Topic 3]]+Dataset[[#This Row],[2024/25 From - Spending review Topic 4]]+Dataset[[#This Row],[2024/25 From - Other reallocations]]","v":0},{"$f":"Dataset[[#This Row],[2025/26 From - Spending review Topic 1]]+Dataset[[#This Row],[2025/26 From - Spending review Topic 2]]+Dataset[[#This Row],[2025/26 From - Spending review Topic 3]]+Dataset[[#This Row],[2025/26 From - Spending review Topic 4]]+Dataset[[#This Row],[2025/26 From - Other reallocations]]","v":0},{"$f":"Dataset[[#This Row],[2026/27 From - Spending review Topic 1]]+Dataset[[#This Row],[2026/27 From - Spending review Topic 2]]+Dataset[[#This Row],[2026/27 From - Spending review Topic 3]]+Dataset[[#This Row],[2026/27 From - Spending review Topic 4]]+Dataset[[#This Row],[2026/27 From - Other reallocations]]","v":0},{"$f":"Dataset[[#This Row],[2024/25 To - Spending review Topic 1]]+Dataset[[#This Row],[2024/25 To - Spending review Topic 2]]+Dataset[[#This Row],[2024/25 To - Spending review Topic 3]]+Dataset[[#This Row],[2024/25 To - Spending review Topic 4]]+Dataset[[#This Row],[2024/25 To - Other reallocations]]","v":0},{"$f":"Dataset[[#This Row],[2025/26 To - Spending review Topic 1]]+Dataset[[#This Row],[2025/26 To - Spending review Topic 2]]+Dataset[[#This Row],[2025/26 To - Spending review Topic 3]]+Dataset[[#This Row],[2025/26 To - Spending review Topic 4]]+Dataset[[#This Row],[2025/26 To - Other reallocations]]","v":0},{"$f":"Dataset[[#This Row],[2026/27 To - Spending review Topic 1]]+Dataset[[#This Row],[2026/27 To - Spending review Topic 2]]+Dataset[[#This Row],[2026/27 To - Spending review Topic 3]]+Dataset[[#This Row],[2026/27 To - Spending review Topic 4]]+Dataset[[#This Row],[2026/27 To - Other reallocations]]","v":0},{"$f":"Dataset[[#This Row],[2024/25 Reduction]]+Dataset[[#This Row],[2024/25 From - Total]]","v":0},{"$f":"Dataset[[#This Row],[2025/26 Reduction]]+Dataset[[#This Row],[2025/26 From - Total]]","v":0},{"$f":"Dataset[[#This Row],[2026/27 Reduction]]+Dataset[[#This Row],[2026/27 From - Total]]","v":0},{"$f":"Dataset[[#This Row],[2023/24 Reduction]]","v":0},{"$f":"SUM(Dataset[[#This Row],[2024/25 Reduction]],Dataset[[#This Row],[2024/25 From - Total]],Dataset[[#This Row],[2024/25 To - Total]])","v":0},{"$f":"SUM(Dataset[[#This Row],[2025/26 Reduction]],Dataset[[#This Row],[2025/26 From - Total]],Dataset[[#This Row],[2025/26 To - Total]])","v":0},{"$f":"SUM(Dataset[[#This Row],[2026/27 Reduction]],Dataset[[#This Row],[2026/27 From - Total]],Dataset[[#This Row],[2026/27 To - Total]])","v":0},{"$f":"Dataset[[#This Row],[2023/24 Baseline]]+Dataset[[#This Row],[2023/24 Total change]]","v":0},{"$f":"Dataset[[#This Row],[2024/25 Baseline]]+Dataset[[#This Row],[2024/25 Total change]]","v":0},{"$f":"Dataset[[#This Row],[2025/26 Baseline]]+Dataset[[#This Row],[2025/26 Total change]]","v":0},{"$f":"Dataset[[#This Row],[2026/27 Baseline]]+Dataset[[#This Row],[2026/27 Total change]]","v":0}]
["NAT|Non-transfer item","26|Inventory: Food and food supplies","2024_25","MTEF2024",26,2,1,44372,485,"26","02","01","044372","000485","26|02|01","01","01","02","23","23","01|01|02|23|23","National","Military Veterans","Socioeconomic Support","Database and Benefits Management","Non-transfer item","Current","Current payments","Goods and services","Inventory: Food and food supplies","Inventory: Food and food supplies","Peace and security","Defence and state security","NAT",0,0,0,0,0,0,0,0,0,0,0,null,null,null,null,null,null,null,null,null,null,null,null,null,null,null,null,null,null,null,null,null,null,null,null,null,null,null,null,null,null,null,null,null,null,{"$f":"Dataset[[#This Row],[2024/25 From - Spending review Topic 1]]+Dataset[[#This Row],[2024/25 From - Spending review Topic 2]]+Dataset[[#This Row],[2024/25 From - Spending review Topic 3]]+Dataset[[#This Row],[2024/25 From - Spending review Topic 4]]+Dataset[[#This Row],[2024/25 From - Other reallocations]]","v":0},{"$f":"Dataset[[#This Row],[2025/26 From - Spending review Topic 1]]+Dataset[[#This Row],[2025/26 From - Spending review Topic 2]]+Dataset[[#This Row],[2025/26 From - Spending review Topic 3]]+Dataset[[#This Row],[2025/26 From - Spending review Topic 4]]+Dataset[[#This Row],[2025/26 From - Other reallocations]]","v":0},{"$f":"Dataset[[#This Row],[2026/27 From - Spending review Topic 1]]+Dataset[[#This Row],[2026/27 From - Spending review Topic 2]]+Dataset[[#This Row],[2026/27 From - Spending review Topic 3]]+Dataset[[#This Row],[2026/27 From - Spending review Topic 4]]+Dataset[[#This Row],[2026/27 From - Other reallocations]]","v":0},{"$f":"Dataset[[#This Row],[2024/25 To - Spending review Topic 1]]+Dataset[[#This Row],[2024/25 To - Spending review Topic 2]]+Dataset[[#This Row],[2024/25 To - Spending review Topic 3]]+Dataset[[#This Row],[2024/25 To - Spending review Topic 4]]+Dataset[[#This Row],[2024/25 To - Other reallocations]]","v":0},{"$f":"Dataset[[#This Row],[2025/26 To - Spending review Topic 1]]+Dataset[[#This Row],[2025/26 To - Spending review Topic 2]]+Dataset[[#This Row],[2025/26 To - Spending review Topic 3]]+Dataset[[#This Row],[2025/26 To - Spending review Topic 4]]+Dataset[[#This Row],[2025/26 To - Other reallocations]]","v":0},{"$f":"Dataset[[#This Row],[2026/27 To - Spending review Topic 1]]+Dataset[[#This Row],[2026/27 To - Spending review Topic 2]]+Dataset[[#This Row],[2026/27 To - Spending review Topic 3]]+Dataset[[#This Row],[2026/27 To - Spending review Topic 4]]+Dataset[[#This Row],[2026/27 To - Other reallocations]]","v":0},{"$f":"Dataset[[#This Row],[2024/25 Reduction]]+Dataset[[#This Row],[2024/25 From - Total]]","v":0},{"$f":"Dataset[[#This Row],[2025/26 Reduction]]+Dataset[[#This Row],[2025/26 From - Total]]","v":0},{"$f":"Dataset[[#This Row],[2026/27 Reduction]]+Dataset[[#This Row],[2026/27 From - Total]]","v":0},{"$f":"Dataset[[#This Row],[2023/24 Reduction]]","v":0},{"$f":"SUM(Dataset[[#This Row],[2024/25 Reduction]],Dataset[[#This Row],[2024/25 From - Total]],Dataset[[#This Row],[2024/25 To - Total]])","v":0},{"$f":"SUM(Dataset[[#This Row],[2025/26 Reduction]],Dataset[[#This Row],[2025/26 From - Total]],Dataset[[#This Row],[2025/26 To - Total]])","v":0},{"$f":"SUM(Dataset[[#This Row],[2026/27 Reduction]],Dataset[[#This Row],[2026/27 From - Total]],Dataset[[#This Row],[2026/27 To - Total]])","v":0},{"$f":"Dataset[[#This Row],[2023/24 Baseline]]+Dataset[[#This Row],[2023/24 Total change]]","v":0},{"$f":"Dataset[[#This Row],[2024/25 Baseline]]+Dataset[[#This Row],[2024/25 Total change]]","v":0},{"$f":"Dataset[[#This Row],[2025/26 Baseline]]+Dataset[[#This Row],[2025/26 Total change]]","v":0},{"$f":"Dataset[[#This Row],[2026/27 Baseline]]+Dataset[[#This Row],[2026/27 Total change]]","v":0}]
["NAT|Non-transfer item","26|Inventory: Fuel, oil and gas","2024_25","MTEF2024",26,2,1,44373,486,"26","02","01","044373","000486","26|02|01","01","01","02","24","24","01|01|02|24|24","National","Military Veterans","Socioeconomic Support","Database and Benefits Management","Non-transfer item","Current","Current payments","Goods and services","Inventory: Fuel, oil and gas","Inventory: Fuel, oil and gas","Peace and security","Defence and state security","NAT",0,0,0,0,0,0,0,0,0,0,0,null,null,null,null,null,null,null,null,null,null,null,null,null,null,null,null,null,null,null,null,null,null,null,null,null,null,null,null,null,null,null,null,null,null,{"$f":"Dataset[[#This Row],[2024/25 From - Spending review Topic 1]]+Dataset[[#This Row],[2024/25 From - Spending review Topic 2]]+Dataset[[#This Row],[2024/25 From - Spending review Topic 3]]+Dataset[[#This Row],[2024/25 From - Spending review Topic 4]]+Dataset[[#This Row],[2024/25 From - Other reallocations]]","v":0},{"$f":"Dataset[[#This Row],[2025/26 From - Spending review Topic 1]]+Dataset[[#This Row],[2025/26 From - Spending review Topic 2]]+Dataset[[#This Row],[2025/26 From - Spending review Topic 3]]+Dataset[[#This Row],[2025/26 From - Spending review Topic 4]]+Dataset[[#This Row],[2025/26 From - Other reallocations]]","v":0},{"$f":"Dataset[[#This Row],[2026/27 From - Spending review Topic 1]]+Dataset[[#This Row],[2026/27 From - Spending review Topic 2]]+Dataset[[#This Row],[2026/27 From - Spending review Topic 3]]+Dataset[[#This Row],[2026/27 From - Spending review Topic 4]]+Dataset[[#This Row],[2026/27 From - Other reallocations]]","v":0},{"$f":"Dataset[[#This Row],[2024/25 To - Spending review Topic 1]]+Dataset[[#This Row],[2024/25 To - Spending review Topic 2]]+Dataset[[#This Row],[2024/25 To - Spending review Topic 3]]+Dataset[[#This Row],[2024/25 To - Spending review Topic 4]]+Dataset[[#This Row],[2024/25 To - Other reallocations]]","v":0},{"$f":"Dataset[[#This Row],[2025/26 To - Spending review Topic 1]]+Dataset[[#This Row],[2025/26 To - Spending review Topic 2]]+Dataset[[#This Row],[2025/26 To - Spending review Topic 3]]+Dataset[[#This Row],[2025/26 To - Spending review Topic 4]]+Dataset[[#This Row],[2025/26 To - Other reallocations]]","v":0},{"$f":"Dataset[[#This Row],[2026/27 To - Spending review Topic 1]]+Dataset[[#This Row],[2026/27 To - Spending review Topic 2]]+Dataset[[#This Row],[2026/27 To - Spending review Topic 3]]+Dataset[[#This Row],[2026/27 To - Spending review Topic 4]]+Dataset[[#This Row],[2026/27 To - Other reallocations]]","v":0},{"$f":"Dataset[[#This Row],[2024/25 Reduction]]+Dataset[[#This Row],[2024/25 From - Total]]","v":0},{"$f":"Dataset[[#This Row],[2025/26 Reduction]]+Dataset[[#This Row],[2025/26 From - Total]]","v":0},{"$f":"Dataset[[#This Row],[2026/27 Reduction]]+Dataset[[#This Row],[2026/27 From - Total]]","v":0},{"$f":"Dataset[[#This Row],[2023/24 Reduction]]","v":0},{"$f":"SUM(Dataset[[#This Row],[2024/25 Reduction]],Dataset[[#This Row],[2024/25 From - Total]],Dataset[[#This Row],[2024/25 To - Total]])","v":0},{"$f":"SUM(Dataset[[#This Row],[2025/26 Reduction]],Dataset[[#This Row],[2025/26 From - Total]],Dataset[[#This Row],[2025/26 To - Total]])","v":0},{"$f":"SUM(Dataset[[#This Row],[2026/27 Reduction]],Dataset[[#This Row],[2026/27 From - Total]],Dataset[[#This Row],[2026/27 To - Total]])","v":0},{"$f":"Dataset[[#This Row],[2023/24 Baseline]]+Dataset[[#This Row],[2023/24 Total change]]","v":0},{"$f":"Dataset[[#This Row],[2024/25 Baseline]]+Dataset[[#This Row],[2024/25 Total change]]","v":0},{"$f":"Dataset[[#This Row],[2025/26 Baseline]]+Dataset[[#This Row],[2025/26 Total change]]","v":0},{"$f":"Dataset[[#This Row],[2026/27 Baseline]]+Dataset[[#This Row],[2026/27 Total change]]","v":0}]
["NAT|Non-transfer item","26|Inventory: Learner and teacher support material","2024_25","MTEF2024",26,2,1,44374,487,"26","02","01","044374","000487","26|02|01","01","01","02","25","25","01|01|02|25|25","National","Military Veterans","Socioeconomic Support","Database and Benefits Management","Non-transfer item","Current","Current payments","Goods and services","Inventory: Learner and teacher support material","Inventory: Learner and teacher support material","Peace and security","Defence and state security","NAT",0,0,0,0,0,0,0,0,0,0,0,null,null,null,null,null,null,null,null,null,null,null,null,null,null,null,null,null,null,null,null,null,null,null,null,null,null,null,null,null,null,null,null,null,null,{"$f":"Dataset[[#This Row],[2024/25 From - Spending review Topic 1]]+Dataset[[#This Row],[2024/25 From - Spending review Topic 2]]+Dataset[[#This Row],[2024/25 From - Spending review Topic 3]]+Dataset[[#This Row],[2024/25 From - Spending review Topic 4]]+Dataset[[#This Row],[2024/25 From - Other reallocations]]","v":0},{"$f":"Dataset[[#This Row],[2025/26 From - Spending review Topic 1]]+Dataset[[#This Row],[2025/26 From - Spending review Topic 2]]+Dataset[[#This Row],[2025/26 From - Spending review Topic 3]]+Dataset[[#This Row],[2025/26 From - Spending review Topic 4]]+Dataset[[#This Row],[2025/26 From - Other reallocations]]","v":0},{"$f":"Dataset[[#This Row],[2026/27 From - Spending review Topic 1]]+Dataset[[#This Row],[2026/27 From - Spending review Topic 2]]+Dataset[[#This Row],[2026/27 From - Spending review Topic 3]]+Dataset[[#This Row],[2026/27 From - Spending review Topic 4]]+Dataset[[#This Row],[2026/27 From - Other reallocations]]","v":0},{"$f":"Dataset[[#This Row],[2024/25 To - Spending review Topic 1]]+Dataset[[#This Row],[2024/25 To - Spending review Topic 2]]+Dataset[[#This Row],[2024/25 To - Spending review Topic 3]]+Dataset[[#This Row],[2024/25 To - Spending review Topic 4]]+Dataset[[#This Row],[2024/25 To - Other reallocations]]","v":0},{"$f":"Dataset[[#This Row],[2025/26 To - Spending review Topic 1]]+Dataset[[#This Row],[2025/26 To - Spending review Topic 2]]+Dataset[[#This Row],[2025/26 To - Spending review Topic 3]]+Dataset[[#This Row],[2025/26 To - Spending review Topic 4]]+Dataset[[#This Row],[2025/26 To - Other reallocations]]","v":0},{"$f":"Dataset[[#This Row],[2026/27 To - Spending review Topic 1]]+Dataset[[#This Row],[2026/27 To - Spending review Topic 2]]+Dataset[[#This Row],[2026/27 To - Spending review Topic 3]]+Dataset[[#This Row],[2026/27 To - Spending review Topic 4]]+Dataset[[#This Row],[2026/27 To - Other reallocations]]","v":0},{"$f":"Dataset[[#This Row],[2024/25 Reduction]]+Dataset[[#This Row],[2024/25 From - Total]]","v":0},{"$f":"Dataset[[#This Row],[2025/26 Reduction]]+Dataset[[#This Row],[2025/26 From - Total]]","v":0},{"$f":"Dataset[[#This Row],[2026/27 Reduction]]+Dataset[[#This Row],[2026/27 From - Total]]","v":0},{"$f":"Dataset[[#This Row],[2023/24 Reduction]]","v":0},{"$f":"SUM(Dataset[[#This Row],[2024/25 Reduction]],Dataset[[#This Row],[2024/25 From - Total]],Dataset[[#This Row],[2024/25 To - Total]])","v":0},{"$f":"SUM(Dataset[[#This Row],[2025/26 Reduction]],Dataset[[#This Row],[2025/26 From - Total]],Dataset[[#This Row],[2025/26 To - Total]])","v":0},{"$f":"SUM(Dataset[[#This Row],[2026/27 Reduction]],Dataset[[#This Row],[2026/27 From - Total]],Dataset[[#This Row],[2026/27 To - Total]])","v":0},{"$f":"Dataset[[#This Row],[2023/24 Baseline]]+Dataset[[#This Row],[2023/24 Total change]]","v":0},{"$f":"Dataset[[#This Row],[2024/25 Baseline]]+Dataset[[#This Row],[2024/25 Total change]]","v":0},{"$f":"Dataset[[#This Row],[2025/26 Baseline]]+Dataset[[#This Row],[2025/26 Total change]]","v":0},{"$f":"Dataset[[#This Row],[2026/27 Baseline]]+Dataset[[#This Row],[2026/27 Total change]]","v":0}]
["NAT|Non-transfer item","26|Inventory: Materials and supplies","2024_25","MTEF2024",26,2,1,44375,488,"26","02","01","044375","000488","26|02|01","01","01","02","26","26","01|01|02|26|26","National","Military Veterans","Socioeconomic Support","Database and Benefits Management","Non-transfer item","Current","Current payments","Goods and services","Inventory: Materials and supplies","Inventory: Materials and supplies","Peace and security","Defence and state security","NAT",0,0,0,0,0,0,0,0,0,0,0,null,null,null,null,null,null,null,null,null,null,null,null,null,null,null,null,null,null,null,null,null,null,null,null,null,null,null,null,null,null,null,null,null,null,{"$f":"Dataset[[#This Row],[2024/25 From - Spending review Topic 1]]+Dataset[[#This Row],[2024/25 From - Spending review Topic 2]]+Dataset[[#This Row],[2024/25 From - Spending review Topic 3]]+Dataset[[#This Row],[2024/25 From - Spending review Topic 4]]+Dataset[[#This Row],[2024/25 From - Other reallocations]]","v":0},{"$f":"Dataset[[#This Row],[2025/26 From - Spending review Topic 1]]+Dataset[[#This Row],[2025/26 From - Spending review Topic 2]]+Dataset[[#This Row],[2025/26 From - Spending review Topic 3]]+Dataset[[#This Row],[2025/26 From - Spending review Topic 4]]+Dataset[[#This Row],[2025/26 From - Other reallocations]]","v":0},{"$f":"Dataset[[#This Row],[2026/27 From - Spending review Topic 1]]+Dataset[[#This Row],[2026/27 From - Spending review Topic 2]]+Dataset[[#This Row],[2026/27 From - Spending review Topic 3]]+Dataset[[#This Row],[2026/27 From - Spending review Topic 4]]+Dataset[[#This Row],[2026/27 From - Other reallocations]]","v":0},{"$f":"Dataset[[#This Row],[2024/25 To - Spending review Topic 1]]+Dataset[[#This Row],[2024/25 To - Spending review Topic 2]]+Dataset[[#This Row],[2024/25 To - Spending review Topic 3]]+Dataset[[#This Row],[2024/25 To - Spending review Topic 4]]+Dataset[[#This Row],[2024/25 To - Other reallocations]]","v":0},{"$f":"Dataset[[#This Row],[2025/26 To - Spending review Topic 1]]+Dataset[[#This Row],[2025/26 To - Spending review Topic 2]]+Dataset[[#This Row],[2025/26 To - Spending review Topic 3]]+Dataset[[#This Row],[2025/26 To - Spending review Topic 4]]+Dataset[[#This Row],[2025/26 To - Other reallocations]]","v":0},{"$f":"Dataset[[#This Row],[2026/27 To - Spending review Topic 1]]+Dataset[[#This Row],[2026/27 To - Spending review Topic 2]]+Dataset[[#This Row],[2026/27 To - Spending review Topic 3]]+Dataset[[#This Row],[2026/27 To - Spending review Topic 4]]+Dataset[[#This Row],[2026/27 To - Other reallocations]]","v":0},{"$f":"Dataset[[#This Row],[2024/25 Reduction]]+Dataset[[#This Row],[2024/25 From - Total]]","v":0},{"$f":"Dataset[[#This Row],[2025/26 Reduction]]+Dataset[[#This Row],[2025/26 From - Total]]","v":0},{"$f":"Dataset[[#This Row],[2026/27 Reduction]]+Dataset[[#This Row],[2026/27 From - Total]]","v":0},{"$f":"Dataset[[#This Row],[2023/24 Reduction]]","v":0},{"$f":"SUM(Dataset[[#This Row],[2024/25 Reduction]],Dataset[[#This Row],[2024/25 From - Total]],Dataset[[#This Row],[2024/25 To - Total]])","v":0},{"$f":"SUM(Dataset[[#This Row],[2025/26 Reduction]],Dataset[[#This Row],[2025/26 From - Total]],Dataset[[#This Row],[2025/26 To - Total]])","v":0},{"$f":"SUM(Dataset[[#This Row],[2026/27 Reduction]],Dataset[[#This Row],[2026/27 From - Total]],Dataset[[#This Row],[2026/27 To - Total]])","v":0},{"$f":"Dataset[[#This Row],[2023/24 Baseline]]+Dataset[[#This Row],[2023/24 Total change]]","v":0},{"$f":"Dataset[[#This Row],[2024/25 Baseline]]+Dataset[[#This Row],[2024/25 Total change]]","v":0},{"$f":"Dataset[[#This Row],[2025/26 Baseline]]+Dataset[[#This Row],[2025/26 Total change]]","v":0},{"$f":"Dataset[[#This Row],[2026/27 Baseline]]+Dataset[[#This Row],[2026/27 Total change]]","v":0}]
["NAT|Non-transfer item","26|Inventory: Medical supplies","2024_25","MTEF2024",26,2,1,44376,489,"26","02","01","044376","000489","26|02|01","01","01","02","27","27","01|01|02|27|27","National","Military Veterans","Socioeconomic Support","Database and Benefits Management","Non-transfer item","Current","Current payments","Goods and services","Inventory: Medical supplies","Inventory: Medical supplies","Peace and security","Defence and state security","NAT",0,0,0,0,0,0,0,0,0,0,0,null,null,null,null,null,null,null,null,null,null,null,null,null,null,null,null,null,null,null,null,null,null,null,null,null,null,null,null,null,null,null,null,null,null,{"$f":"Dataset[[#This Row],[2024/25 From - Spending review Topic 1]]+Dataset[[#This Row],[2024/25 From - Spending review Topic 2]]+Dataset[[#This Row],[2024/25 From - Spending review Topic 3]]+Dataset[[#This Row],[2024/25 From - Spending review Topic 4]]+Dataset[[#This Row],[2024/25 From - Other reallocations]]","v":0},{"$f":"Dataset[[#This Row],[2025/26 From - Spending review Topic 1]]+Dataset[[#This Row],[2025/26 From - Spending review Topic 2]]+Dataset[[#This Row],[2025/26 From - Spending review Topic 3]]+Dataset[[#This Row],[2025/26 From - Spending review Topic 4]]+Dataset[[#This Row],[2025/26 From - Other reallocations]]","v":0},{"$f":"Dataset[[#This Row],[2026/27 From - Spending review Topic 1]]+Dataset[[#This Row],[2026/27 From - Spending review Topic 2]]+Dataset[[#This Row],[2026/27 From - Spending review Topic 3]]+Dataset[[#This Row],[2026/27 From - Spending review Topic 4]]+Dataset[[#This Row],[2026/27 From - Other reallocations]]","v":0},{"$f":"Dataset[[#This Row],[2024/25 To - Spending review Topic 1]]+Dataset[[#This Row],[2024/25 To - Spending review Topic 2]]+Dataset[[#This Row],[2024/25 To - Spending review Topic 3]]+Dataset[[#This Row],[2024/25 To - Spending review Topic 4]]+Dataset[[#This Row],[2024/25 To - Other reallocations]]","v":0},{"$f":"Dataset[[#This Row],[2025/26 To - Spending review Topic 1]]+Dataset[[#This Row],[2025/26 To - Spending review Topic 2]]+Dataset[[#This Row],[2025/26 To - Spending review Topic 3]]+Dataset[[#This Row],[2025/26 To - Spending review Topic 4]]+Dataset[[#This Row],[2025/26 To - Other reallocations]]","v":0},{"$f":"Dataset[[#This Row],[2026/27 To - Spending review Topic 1]]+Dataset[[#This Row],[2026/27 To - Spending review Topic 2]]+Dataset[[#This Row],[2026/27 To - Spending review Topic 3]]+Dataset[[#This Row],[2026/27 To - Spending review Topic 4]]+Dataset[[#This Row],[2026/27 To - Other reallocations]]","v":0},{"$f":"Dataset[[#This Row],[2024/25 Reduction]]+Dataset[[#This Row],[2024/25 From - Total]]","v":0},{"$f":"Dataset[[#This Row],[2025/26 Reduction]]+Dataset[[#This Row],[2025/26 From - Total]]","v":0},{"$f":"Dataset[[#This Row],[2026/27 Reduction]]+Dataset[[#This Row],[2026/27 From - Total]]","v":0},{"$f":"Dataset[[#This Row],[2023/24 Reduction]]","v":0},{"$f":"SUM(Dataset[[#This Row],[2024/25 Reduction]],Dataset[[#This Row],[2024/25 From - Total]],Dataset[[#This Row],[2024/25 To - Total]])","v":0},{"$f":"SUM(Dataset[[#This Row],[2025/26 Reduction]],Dataset[[#This Row],[2025/26 From - Total]],Dataset[[#This Row],[2025/26 To - Total]])","v":0},{"$f":"SUM(Dataset[[#This Row],[2026/27 Reduction]],Dataset[[#This Row],[2026/27 From - Total]],Dataset[[#This Row],[2026/27 To - Total]])","v":0},{"$f":"Dataset[[#This Row],[2023/24 Baseline]]+Dataset[[#This Row],[2023/24 Total change]]","v":0},{"$f":"Dataset[[#This Row],[2024/25 Baseline]]+Dataset[[#This Row],[2024/25 Total change]]","v":0},{"$f":"Dataset[[#This Row],[2025/26 Baseline]]+Dataset[[#This Row],[2025/26 Total change]]","v":0},{"$f":"Dataset[[#This Row],[2026/27 Baseline]]+Dataset[[#This Row],[2026/27 Total change]]","v":0}]
["NAT|Non-transfer item","26|Inventory: Medicine","2024_25","MTEF2024",26,2,1,44377,490,"26","02","01","044377","000490","26|02|01","01","01","02","28","28","01|01|02|28|28","National","Military Veterans","Socioeconomic Support","Database and Benefits Management","Non-transfer item","Current","Current payments","Goods and services","Inventory: Medicine","Inventory: Medicine","Peace and security","Defence and state security","NAT",0,0,0,0,0,0,0,0,0,0,0,null,null,null,null,null,null,null,null,null,null,null,null,null,null,null,null,null,null,null,null,null,null,null,null,null,null,null,null,null,null,null,null,null,null,{"$f":"Dataset[[#This Row],[2024/25 From - Spending review Topic 1]]+Dataset[[#This Row],[2024/25 From - Spending review Topic 2]]+Dataset[[#This Row],[2024/25 From - Spending review Topic 3]]+Dataset[[#This Row],[2024/25 From - Spending review Topic 4]]+Dataset[[#This Row],[2024/25 From - Other reallocations]]","v":0},{"$f":"Dataset[[#This Row],[2025/26 From - Spending review Topic 1]]+Dataset[[#This Row],[2025/26 From - Spending review Topic 2]]+Dataset[[#This Row],[2025/26 From - Spending review Topic 3]]+Dataset[[#This Row],[2025/26 From - Spending review Topic 4]]+Dataset[[#This Row],[2025/26 From - Other reallocations]]","v":0},{"$f":"Dataset[[#This Row],[2026/27 From - Spending review Topic 1]]+Dataset[[#This Row],[2026/27 From - Spending review Topic 2]]+Dataset[[#This Row],[2026/27 From - Spending review Topic 3]]+Dataset[[#This Row],[2026/27 From - Spending review Topic 4]]+Dataset[[#This Row],[2026/27 From - Other reallocations]]","v":0},{"$f":"Dataset[[#This Row],[2024/25 To - Spending review Topic 1]]+Dataset[[#This Row],[2024/25 To - Spending review Topic 2]]+Dataset[[#This Row],[2024/25 To - Spending review Topic 3]]+Dataset[[#This Row],[2024/25 To - Spending review Topic 4]]+Dataset[[#This Row],[2024/25 To - Other reallocations]]","v":0},{"$f":"Dataset[[#This Row],[2025/26 To - Spending review Topic 1]]+Dataset[[#This Row],[2025/26 To - Spending review Topic 2]]+Dataset[[#This Row],[2025/26 To - Spending review Topic 3]]+Dataset[[#This Row],[2025/26 To - Spending review Topic 4]]+Dataset[[#This Row],[2025/26 To - Other reallocations]]","v":0},{"$f":"Dataset[[#This Row],[2026/27 To - Spending review Topic 1]]+Dataset[[#This Row],[2026/27 To - Spending review Topic 2]]+Dataset[[#This Row],[2026/27 To - Spending review Topic 3]]+Dataset[[#This Row],[2026/27 To - Spending review Topic 4]]+Dataset[[#This Row],[2026/27 To - Other reallocations]]","v":0},{"$f":"Dataset[[#This Row],[2024/25 Reduction]]+Dataset[[#This Row],[2024/25 From - Total]]","v":0},{"$f":"Dataset[[#This Row],[2025/26 Reduction]]+Dataset[[#This Row],[2025/26 From - Total]]","v":0},{"$f":"Dataset[[#This Row],[2026/27 Reduction]]+Dataset[[#This Row],[2026/27 From - Total]]","v":0},{"$f":"Dataset[[#This Row],[2023/24 Reduction]]","v":0},{"$f":"SUM(Dataset[[#This Row],[2024/25 Reduction]],Dataset[[#This Row],[2024/25 From - Total]],Dataset[[#This Row],[2024/25 To - Total]])","v":0},{"$f":"SUM(Dataset[[#This Row],[2025/26 Reduction]],Dataset[[#This Row],[2025/26 From - Total]],Dataset[[#This Row],[2025/26 To - Total]])","v":0},{"$f":"SUM(Dataset[[#This Row],[2026/27 Reduction]],Dataset[[#This Row],[2026/27 From - Total]],Dataset[[#This Row],[2026/27 To - Total]])","v":0},{"$f":"Dataset[[#This Row],[2023/24 Baseline]]+Dataset[[#This Row],[2023/24 Total change]]","v":0},{"$f":"Dataset[[#This Row],[2024/25 Baseline]]+Dataset[[#This Row],[2024/25 Total change]]","v":0},{"$f":"Dataset[[#This Row],[2025/26 Baseline]]+Dataset[[#This Row],[2025/26 Total change]]","v":0},{"$f":"Dataset[[#This Row],[2026/27 Baseline]]+Dataset[[#This Row],[2026/27 Total change]]","v":0}]
["NAT|Non-transfer item","26|Medsas inventory interface","2024_25","MTEF2024",26,2,1,44378,491,"26","02","01","044378","000491","26|02|01","01","01","02","29","29","01|01|02|29|29","National","Military Veterans","Socioeconomic Support","Database and Benefits Management","Non-transfer item","Current","Current payments","Goods and services","Medsas inventory interface","Medsas inventory interface","Peace and security","Defence and state security","NAT",0,0,0,0,0,0,0,0,0,0,0,null,null,null,null,null,null,null,null,null,null,null,null,null,null,null,null,null,null,null,null,null,null,null,null,null,null,null,null,null,null,null,null,null,null,{"$f":"Dataset[[#This Row],[2024/25 From - Spending review Topic 1]]+Dataset[[#This Row],[2024/25 From - Spending review Topic 2]]+Dataset[[#This Row],[2024/25 From - Spending review Topic 3]]+Dataset[[#This Row],[2024/25 From - Spending review Topic 4]]+Dataset[[#This Row],[2024/25 From - Other reallocations]]","v":0},{"$f":"Dataset[[#This Row],[2025/26 From - Spending review Topic 1]]+Dataset[[#This Row],[2025/26 From - Spending review Topic 2]]+Dataset[[#This Row],[2025/26 From - Spending review Topic 3]]+Dataset[[#This Row],[2025/26 From - Spending review Topic 4]]+Dataset[[#This Row],[2025/26 From - Other reallocations]]","v":0},{"$f":"Dataset[[#This Row],[2026/27 From - Spending review Topic 1]]+Dataset[[#This Row],[2026/27 From - Spending review Topic 2]]+Dataset[[#This Row],[2026/27 From - Spending review Topic 3]]+Dataset[[#This Row],[2026/27 From - Spending review Topic 4]]+Dataset[[#This Row],[2026/27 From - Other reallocations]]","v":0},{"$f":"Dataset[[#This Row],[2024/25 To - Spending review Topic 1]]+Dataset[[#This Row],[2024/25 To - Spending review Topic 2]]+Dataset[[#This Row],[2024/25 To - Spending review Topic 3]]+Dataset[[#This Row],[2024/25 To - Spending review Topic 4]]+Dataset[[#This Row],[2024/25 To - Other reallocations]]","v":0},{"$f":"Dataset[[#This Row],[2025/26 To - Spending review Topic 1]]+Dataset[[#This Row],[2025/26 To - Spending review Topic 2]]+Dataset[[#This Row],[2025/26 To - Spending review Topic 3]]+Dataset[[#This Row],[2025/26 To - Spending review Topic 4]]+Dataset[[#This Row],[2025/26 To - Other reallocations]]","v":0},{"$f":"Dataset[[#This Row],[2026/27 To - Spending review Topic 1]]+Dataset[[#This Row],[2026/27 To - Spending review Topic 2]]+Dataset[[#This Row],[2026/27 To - Spending review Topic 3]]+Dataset[[#This Row],[2026/27 To - Spending review Topic 4]]+Dataset[[#This Row],[2026/27 To - Other reallocations]]","v":0},{"$f":"Dataset[[#This Row],[2024/25 Reduction]]+Dataset[[#This Row],[2024/25 From - Total]]","v":0},{"$f":"Dataset[[#This Row],[2025/26 Reduction]]+Dataset[[#This Row],[2025/26 From - Total]]","v":0},{"$f":"Dataset[[#This Row],[2026/27 Reduction]]+Dataset[[#This Row],[2026/27 From - Total]]","v":0},{"$f":"Dataset[[#This Row],[2023/24 Reduction]]","v":0},{"$f":"SUM(Dataset[[#This Row],[2024/25 Reduction]],Dataset[[#This Row],[2024/25 From - Total]],Dataset[[#This Row],[2024/25 To - Total]])","v":0},{"$f":"SUM(Dataset[[#This Row],[2025/26 Reduction]],Dataset[[#This Row],[2025/26 From - Total]],Dataset[[#This Row],[2025/26 To - Total]])","v":0},{"$f":"SUM(Dataset[[#This Row],[2026/27 Reduction]],Dataset[[#This Row],[2026/27 From - Total]],Dataset[[#This Row],[2026/27 To - Total]])","v":0},{"$f":"Dataset[[#This Row],[2023/24 Baseline]]+Dataset[[#This Row],[2023/24 Total change]]","v":0},{"$f":"Dataset[[#This Row],[2024/25 Baseline]]+Dataset[[#This Row],[2024/25 Total change]]","v":0},{"$f":"Dataset[[#This Row],[2025/26 Baseline]]+Dataset[[#This Row],[2025/26 Total change]]","v":0},{"$f":"Dataset[[#This Row],[2026/27 Baseline]]+Dataset[[#This Row],[2026/27 Total change]]","v":0}]
["NAT|Non-transfer item","26|Inventory: Other supplies","2024_25","MTEF2024",26,2,1,44379,492,"26","02","01","044379","000492","26|02|01","01","01","02","30","30","01|01|02|30|30","National","Military Veterans","Socioeconomic Support","Database and Benefits Management","Non-transfer item","Current","Current payments","Goods and services","Inventory: Other supplies","Inventory: Other supplies","Peace and security","Defence and state security","NAT",0,0,0,0,0,0,0,0,0,0,0,null,null,null,null,null,null,null,null,null,null,null,null,null,null,null,null,null,null,null,null,null,null,null,null,null,null,null,null,null,null,null,null,null,null,{"$f":"Dataset[[#This Row],[2024/25 From - Spending review Topic 1]]+Dataset[[#This Row],[2024/25 From - Spending review Topic 2]]+Dataset[[#This Row],[2024/25 From - Spending review Topic 3]]+Dataset[[#This Row],[2024/25 From - Spending review Topic 4]]+Dataset[[#This Row],[2024/25 From - Other reallocations]]","v":0},{"$f":"Dataset[[#This Row],[2025/26 From - Spending review Topic 1]]+Dataset[[#This Row],[2025/26 From - Spending review Topic 2]]+Dataset[[#This Row],[2025/26 From - Spending review Topic 3]]+Dataset[[#This Row],[2025/26 From - Spending review Topic 4]]+Dataset[[#This Row],[2025/26 From - Other reallocations]]","v":0},{"$f":"Dataset[[#This Row],[2026/27 From - Spending review Topic 1]]+Dataset[[#This Row],[2026/27 From - Spending review Topic 2]]+Dataset[[#This Row],[2026/27 From - Spending review Topic 3]]+Dataset[[#This Row],[2026/27 From - Spending review Topic 4]]+Dataset[[#This Row],[2026/27 From - Other reallocations]]","v":0},{"$f":"Dataset[[#This Row],[2024/25 To - Spending review Topic 1]]+Dataset[[#This Row],[2024/25 To - Spending review Topic 2]]+Dataset[[#This Row],[2024/25 To - Spending review Topic 3]]+Dataset[[#This Row],[2024/25 To - Spending review Topic 4]]+Dataset[[#This Row],[2024/25 To - Other reallocations]]","v":0},{"$f":"Dataset[[#This Row],[2025/26 To - Spending review Topic 1]]+Dataset[[#This Row],[2025/26 To - Spending review Topic 2]]+Dataset[[#This Row],[2025/26 To - Spending review Topic 3]]+Dataset[[#This Row],[2025/26 To - Spending review Topic 4]]+Dataset[[#This Row],[2025/26 To - Other reallocations]]","v":0},{"$f":"Dataset[[#This Row],[2026/27 To - Spending review Topic 1]]+Dataset[[#This Row],[2026/27 To - Spending review Topic 2]]+Dataset[[#This Row],[2026/27 To - Spending review Topic 3]]+Dataset[[#This Row],[2026/27 To - Spending review Topic 4]]+Dataset[[#This Row],[2026/27 To - Other reallocations]]","v":0},{"$f":"Dataset[[#This Row],[2024/25 Reduction]]+Dataset[[#This Row],[2024/25 From - Total]]","v":0},{"$f":"Dataset[[#This Row],[2025/26 Reduction]]+Dataset[[#This Row],[2025/26 From - Total]]","v":0},{"$f":"Dataset[[#This Row],[2026/27 Reduction]]+Dataset[[#This Row],[2026/27 From - Total]]","v":0},{"$f":"Dataset[[#This Row],[2023/24 Reduction]]","v":0},{"$f":"SUM(Dataset[[#This Row],[2024/25 Reduction]],Dataset[[#This Row],[2024/25 From - Total]],Dataset[[#This Row],[2024/25 To - Total]])","v":0},{"$f":"SUM(Dataset[[#This Row],[2025/26 Reduction]],Dataset[[#This Row],[2025/26 From - Total]],Dataset[[#This Row],[2025/26 To - Total]])","v":0},{"$f":"SUM(Dataset[[#This Row],[2026/27 Reduction]],Dataset[[#This Row],[2026/27 From - Total]],Dataset[[#This Row],[2026/27 To - Total]])","v":0},{"$f":"Dataset[[#This Row],[2023/24 Baseline]]+Dataset[[#This Row],[2023/24 Total change]]","v":0},{"$f":"Dataset[[#This Row],[2024/25 Baseline]]+Dataset[[#This Row],[2024/25 Total change]]","v":0},{"$f":"Dataset[[#This Row],[2025/26 Baseline]]+Dataset[[#This Row],[2025/26 Total change]]","v":0},{"$f":"Dataset[[#This Row],[2026/27 Baseline]]+Dataset[[#This Row],[2026/27 Total change]]","v":0}]
["NAT|Non-transfer item","26|Consumable supplies","2024_25","MTEF2024",26,2,1,44380,493,"26","02","01","044380","000493","26|02|01","01","01","02","31","31","01|01|02|31|31","National","Military Veterans","Socioeconomic Support","Database and Benefits Management","Non-transfer item","Current","Current payments","Goods and services","Consumable supplies","Consumable supplies","Peace and security","Defence and state security","NAT",0,2,6,0,0,0,0,21,55,29,30,null,null,null,null,null,null,null,null,null,null,null,null,null,null,null,null,null,null,null,null,null,null,null,null,null,null,null,null,null,null,null,null,null,null,{"$f":"Dataset[[#This Row],[2024/25 From - Spending review Topic 1]]+Dataset[[#This Row],[2024/25 From - Spending review Topic 2]]+Dataset[[#This Row],[2024/25 From - Spending review Topic 3]]+Dataset[[#This Row],[2024/25 From - Spending review Topic 4]]+Dataset[[#This Row],[2024/25 From - Other reallocations]]","v":0},{"$f":"Dataset[[#This Row],[2025/26 From - Spending review Topic 1]]+Dataset[[#This Row],[2025/26 From - Spending review Topic 2]]+Dataset[[#This Row],[2025/26 From - Spending review Topic 3]]+Dataset[[#This Row],[2025/26 From - Spending review Topic 4]]+Dataset[[#This Row],[2025/26 From - Other reallocations]]","v":0},{"$f":"Dataset[[#This Row],[2026/27 From - Spending review Topic 1]]+Dataset[[#This Row],[2026/27 From - Spending review Topic 2]]+Dataset[[#This Row],[2026/27 From - Spending review Topic 3]]+Dataset[[#This Row],[2026/27 From - Spending review Topic 4]]+Dataset[[#This Row],[2026/27 From - Other reallocations]]","v":0},{"$f":"Dataset[[#This Row],[2024/25 To - Spending review Topic 1]]+Dataset[[#This Row],[2024/25 To - Spending review Topic 2]]+Dataset[[#This Row],[2024/25 To - Spending review Topic 3]]+Dataset[[#This Row],[2024/25 To - Spending review Topic 4]]+Dataset[[#This Row],[2024/25 To - Other reallocations]]","v":0},{"$f":"Dataset[[#This Row],[2025/26 To - Spending review Topic 1]]+Dataset[[#This Row],[2025/26 To - Spending review Topic 2]]+Dataset[[#This Row],[2025/26 To - Spending review Topic 3]]+Dataset[[#This Row],[2025/26 To - Spending review Topic 4]]+Dataset[[#This Row],[2025/26 To - Other reallocations]]","v":0},{"$f":"Dataset[[#This Row],[2026/27 To - Spending review Topic 1]]+Dataset[[#This Row],[2026/27 To - Spending review Topic 2]]+Dataset[[#This Row],[2026/27 To - Spending review Topic 3]]+Dataset[[#This Row],[2026/27 To - Spending review Topic 4]]+Dataset[[#This Row],[2026/27 To - Other reallocations]]","v":0},{"$f":"Dataset[[#This Row],[2024/25 Reduction]]+Dataset[[#This Row],[2024/25 From - Total]]","v":0},{"$f":"Dataset[[#This Row],[2025/26 Reduction]]+Dataset[[#This Row],[2025/26 From - Total]]","v":0},{"$f":"Dataset[[#This Row],[2026/27 Reduction]]+Dataset[[#This Row],[2026/27 From - Total]]","v":0},{"$f":"Dataset[[#This Row],[2023/24 Reduction]]","v":0},{"$f":"SUM(Dataset[[#This Row],[2024/25 Reduction]],Dataset[[#This Row],[2024/25 From - Total]],Dataset[[#This Row],[2024/25 To - Total]])","v":0},{"$f":"SUM(Dataset[[#This Row],[2025/26 Reduction]],Dataset[[#This Row],[2025/26 From - Total]],Dataset[[#This Row],[2025/26 To - Total]])","v":0},{"$f":"SUM(Dataset[[#This Row],[2026/27 Reduction]],Dataset[[#This Row],[2026/27 From - Total]],Dataset[[#This Row],[2026/27 To - Total]])","v":0},{"$f":"Dataset[[#This Row],[2023/24 Baseline]]+Dataset[[#This Row],[2023/24 Total change]]","v":21},{"$f":"Dataset[[#This Row],[2024/25 Baseline]]+Dataset[[#This Row],[2024/25 Total change]]","v":55},{"$f":"Dataset[[#This Row],[2025/26 Baseline]]+Dataset[[#This Row],[2025/26 Total change]]","v":29},{"$f":"Dataset[[#This Row],[2026/27 Baseline]]+Dataset[[#This Row],[2026/27 Total change]]","v":30}]
["NAT|Non-transfer item","26|Consumables: Stationery, printing and office supplies","2024_25","MTEF2024",26,2,1,44381,494,"26","02","01","044381","000494","26|02|01","01","01","02","32","32","01|01|02|32|32","National","Military Veterans","Socioeconomic Support","Database and Benefits Management","Non-transfer item","Current","Current payments","Goods and services","Consumables: Stationery, printing and office supplies","Consumables: Stationery, printing and office supplies","Peace and security","Defence and state security","NAT",232,21,58,1756,1572,1572,0,1600,1600,1700,1778,null,null,null,null,null,null,null,null,null,null,null,null,null,null,null,null,null,null,null,null,null,null,null,null,null,null,null,null,null,null,null,null,null,null,{"$f":"Dataset[[#This Row],[2024/25 From - Spending review Topic 1]]+Dataset[[#This Row],[2024/25 From - Spending review Topic 2]]+Dataset[[#This Row],[2024/25 From - Spending review Topic 3]]+Dataset[[#This Row],[2024/25 From - Spending review Topic 4]]+Dataset[[#This Row],[2024/25 From - Other reallocations]]","v":0},{"$f":"Dataset[[#This Row],[2025/26 From - Spending review Topic 1]]+Dataset[[#This Row],[2025/26 From - Spending review Topic 2]]+Dataset[[#This Row],[2025/26 From - Spending review Topic 3]]+Dataset[[#This Row],[2025/26 From - Spending review Topic 4]]+Dataset[[#This Row],[2025/26 From - Other reallocations]]","v":0},{"$f":"Dataset[[#This Row],[2026/27 From - Spending review Topic 1]]+Dataset[[#This Row],[2026/27 From - Spending review Topic 2]]+Dataset[[#This Row],[2026/27 From - Spending review Topic 3]]+Dataset[[#This Row],[2026/27 From - Spending review Topic 4]]+Dataset[[#This Row],[2026/27 From - Other reallocations]]","v":0},{"$f":"Dataset[[#This Row],[2024/25 To - Spending review Topic 1]]+Dataset[[#This Row],[2024/25 To - Spending review Topic 2]]+Dataset[[#This Row],[2024/25 To - Spending review Topic 3]]+Dataset[[#This Row],[2024/25 To - Spending review Topic 4]]+Dataset[[#This Row],[2024/25 To - Other reallocations]]","v":0},{"$f":"Dataset[[#This Row],[2025/26 To - Spending review Topic 1]]+Dataset[[#This Row],[2025/26 To - Spending review Topic 2]]+Dataset[[#This Row],[2025/26 To - Spending review Topic 3]]+Dataset[[#This Row],[2025/26 To - Spending review Topic 4]]+Dataset[[#This Row],[2025/26 To - Other reallocations]]","v":0},{"$f":"Dataset[[#This Row],[2026/27 To - Spending review Topic 1]]+Dataset[[#This Row],[2026/27 To - Spending review Topic 2]]+Dataset[[#This Row],[2026/27 To - Spending review Topic 3]]+Dataset[[#This Row],[2026/27 To - Spending review Topic 4]]+Dataset[[#This Row],[2026/27 To - Other reallocations]]","v":0},{"$f":"Dataset[[#This Row],[2024/25 Reduction]]+Dataset[[#This Row],[2024/25 From - Total]]","v":0},{"$f":"Dataset[[#This Row],[2025/26 Reduction]]+Dataset[[#This Row],[2025/26 From - Total]]","v":0},{"$f":"Dataset[[#This Row],[2026/27 Reduction]]+Dataset[[#This Row],[2026/27 From - Total]]","v":0},{"$f":"Dataset[[#This Row],[2023/24 Reduction]]","v":0},{"$f":"SUM(Dataset[[#This Row],[2024/25 Reduction]],Dataset[[#This Row],[2024/25 From - Total]],Dataset[[#This Row],[2024/25 To - Total]])","v":0},{"$f":"SUM(Dataset[[#This Row],[2025/26 Reduction]],Dataset[[#This Row],[2025/26 From - Total]],Dataset[[#This Row],[2025/26 To - Total]])","v":0},{"$f":"SUM(Dataset[[#This Row],[2026/27 Reduction]],Dataset[[#This Row],[2026/27 From - Total]],Dataset[[#This Row],[2026/27 To - Total]])","v":0},{"$f":"Dataset[[#This Row],[2023/24 Baseline]]+Dataset[[#This Row],[2023/24 Total change]]","v":1600},{"$f":"Dataset[[#This Row],[2024/25 Baseline]]+Dataset[[#This Row],[2024/25 Total change]]","v":1600},{"$f":"Dataset[[#This Row],[2025/26 Baseline]]+Dataset[[#This Row],[2025/26 Total change]]","v":1700},{"$f":"Dataset[[#This Row],[2026/27 Baseline]]+Dataset[[#This Row],[2026/27 Total change]]","v":1778}]
["NAT|Non-transfer item","26|Operating leases","2024_25","MTEF2024",26,2,1,44382,495,"26","02","01","044382","000495","26|02|01","01","01","02","33","33","01|01|02|33|33","National","Military Veterans","Socioeconomic Support","Database and Benefits Management","Non-transfer item","Current","Current payments","Goods and services","Operating leases","Operating leases","Peace and security","Defence and state security","NAT",0,0,0,0,1450,1450,0,0,0,0,0,null,null,null,null,null,null,null,null,null,null,null,null,null,null,null,null,null,null,null,null,null,null,null,null,null,null,null,null,null,null,null,null,null,null,{"$f":"Dataset[[#This Row],[2024/25 From - Spending review Topic 1]]+Dataset[[#This Row],[2024/25 From - Spending review Topic 2]]+Dataset[[#This Row],[2024/25 From - Spending review Topic 3]]+Dataset[[#This Row],[2024/25 From - Spending review Topic 4]]+Dataset[[#This Row],[2024/25 From - Other reallocations]]","v":0},{"$f":"Dataset[[#This Row],[2025/26 From - Spending review Topic 1]]+Dataset[[#This Row],[2025/26 From - Spending review Topic 2]]+Dataset[[#This Row],[2025/26 From - Spending review Topic 3]]+Dataset[[#This Row],[2025/26 From - Spending review Topic 4]]+Dataset[[#This Row],[2025/26 From - Other reallocations]]","v":0},{"$f":"Dataset[[#This Row],[2026/27 From - Spending review Topic 1]]+Dataset[[#This Row],[2026/27 From - Spending review Topic 2]]+Dataset[[#This Row],[2026/27 From - Spending review Topic 3]]+Dataset[[#This Row],[2026/27 From - Spending review Topic 4]]+Dataset[[#This Row],[2026/27 From - Other reallocations]]","v":0},{"$f":"Dataset[[#This Row],[2024/25 To - Spending review Topic 1]]+Dataset[[#This Row],[2024/25 To - Spending review Topic 2]]+Dataset[[#This Row],[2024/25 To - Spending review Topic 3]]+Dataset[[#This Row],[2024/25 To - Spending review Topic 4]]+Dataset[[#This Row],[2024/25 To - Other reallocations]]","v":0},{"$f":"Dataset[[#This Row],[2025/26 To - Spending review Topic 1]]+Dataset[[#This Row],[2025/26 To - Spending review Topic 2]]+Dataset[[#This Row],[2025/26 To - Spending review Topic 3]]+Dataset[[#This Row],[2025/26 To - Spending review Topic 4]]+Dataset[[#This Row],[2025/26 To - Other reallocations]]","v":0},{"$f":"Dataset[[#This Row],[2026/27 To - Spending review Topic 1]]+Dataset[[#This Row],[2026/27 To - Spending review Topic 2]]+Dataset[[#This Row],[2026/27 To - Spending review Topic 3]]+Dataset[[#This Row],[2026/27 To - Spending review Topic 4]]+Dataset[[#This Row],[2026/27 To - Other reallocations]]","v":0},{"$f":"Dataset[[#This Row],[2024/25 Reduction]]+Dataset[[#This Row],[2024/25 From - Total]]","v":0},{"$f":"Dataset[[#This Row],[2025/26 Reduction]]+Dataset[[#This Row],[2025/26 From - Total]]","v":0},{"$f":"Dataset[[#This Row],[2026/27 Reduction]]+Dataset[[#This Row],[2026/27 From - Total]]","v":0},{"$f":"Dataset[[#This Row],[2023/24 Reduction]]","v":0},{"$f":"SUM(Dataset[[#This Row],[2024/25 Reduction]],Dataset[[#This Row],[2024/25 From - Total]],Dataset[[#This Row],[2024/25 To - Total]])","v":0},{"$f":"SUM(Dataset[[#This Row],[2025/26 Reduction]],Dataset[[#This Row],[2025/26 From - Total]],Dataset[[#This Row],[2025/26 To - Total]])","v":0},{"$f":"SUM(Dataset[[#This Row],[2026/27 Reduction]],Dataset[[#This Row],[2026/27 From - Total]],Dataset[[#This Row],[2026/27 To - Total]])","v":0},{"$f":"Dataset[[#This Row],[2023/24 Baseline]]+Dataset[[#This Row],[2023/24 Total change]]","v":0},{"$f":"Dataset[[#This Row],[2024/25 Baseline]]+Dataset[[#This Row],[2024/25 Total change]]","v":0},{"$f":"Dataset[[#This Row],[2025/26 Baseline]]+Dataset[[#This Row],[2025/26 Total change]]","v":0},{"$f":"Dataset[[#This Row],[2026/27 Baseline]]+Dataset[[#This Row],[2026/27 Total change]]","v":0}]
["NAT|Non-transfer item","26|Rental and hiring","2024_25","MTEF2024",26,2,1,44383,496,"26","02","01","044383","000496","26|02|01","01","01","02","34","34","01|01|02|34|34","National","Military Veterans","Socioeconomic Support","Database and Benefits Management","Non-transfer item","Current","Current payments","Goods and services","Rental and hiring","Rental and hiring","Peace and security","Defence and state security","NAT",0,0,0,0,0,0,0,0,0,0,0,null,null,null,null,null,null,null,null,null,null,null,null,null,null,null,null,null,null,null,null,null,null,null,null,null,null,null,null,null,null,null,null,null,null,{"$f":"Dataset[[#This Row],[2024/25 From - Spending review Topic 1]]+Dataset[[#This Row],[2024/25 From - Spending review Topic 2]]+Dataset[[#This Row],[2024/25 From - Spending review Topic 3]]+Dataset[[#This Row],[2024/25 From - Spending review Topic 4]]+Dataset[[#This Row],[2024/25 From - Other reallocations]]","v":0},{"$f":"Dataset[[#This Row],[2025/26 From - Spending review Topic 1]]+Dataset[[#This Row],[2025/26 From - Spending review Topic 2]]+Dataset[[#This Row],[2025/26 From - Spending review Topic 3]]+Dataset[[#This Row],[2025/26 From - Spending review Topic 4]]+Dataset[[#This Row],[2025/26 From - Other reallocations]]","v":0},{"$f":"Dataset[[#This Row],[2026/27 From - Spending review Topic 1]]+Dataset[[#This Row],[2026/27 From - Spending review Topic 2]]+Dataset[[#This Row],[2026/27 From - Spending review Topic 3]]+Dataset[[#This Row],[2026/27 From - Spending review Topic 4]]+Dataset[[#This Row],[2026/27 From - Other reallocations]]","v":0},{"$f":"Dataset[[#This Row],[2024/25 To - Spending review Topic 1]]+Dataset[[#This Row],[2024/25 To - Spending review Topic 2]]+Dataset[[#This Row],[2024/25 To - Spending review Topic 3]]+Dataset[[#This Row],[2024/25 To - Spending review Topic 4]]+Dataset[[#This Row],[2024/25 To - Other reallocations]]","v":0},{"$f":"Dataset[[#This Row],[2025/26 To - Spending review Topic 1]]+Dataset[[#This Row],[2025/26 To - Spending review Topic 2]]+Dataset[[#This Row],[2025/26 To - Spending review Topic 3]]+Dataset[[#This Row],[2025/26 To - Spending review Topic 4]]+Dataset[[#This Row],[2025/26 To - Other reallocations]]","v":0},{"$f":"Dataset[[#This Row],[2026/27 To - Spending review Topic 1]]+Dataset[[#This Row],[2026/27 To - Spending review Topic 2]]+Dataset[[#This Row],[2026/27 To - Spending review Topic 3]]+Dataset[[#This Row],[2026/27 To - Spending review Topic 4]]+Dataset[[#This Row],[2026/27 To - Other reallocations]]","v":0},{"$f":"Dataset[[#This Row],[2024/25 Reduction]]+Dataset[[#This Row],[2024/25 From - Total]]","v":0},{"$f":"Dataset[[#This Row],[2025/26 Reduction]]+Dataset[[#This Row],[2025/26 From - Total]]","v":0},{"$f":"Dataset[[#This Row],[2026/27 Reduction]]+Dataset[[#This Row],[2026/27 From - Total]]","v":0},{"$f":"Dataset[[#This Row],[2023/24 Reduction]]","v":0},{"$f":"SUM(Dataset[[#This Row],[2024/25 Reduction]],Dataset[[#This Row],[2024/25 From - Total]],Dataset[[#This Row],[2024/25 To - Total]])","v":0},{"$f":"SUM(Dataset[[#This Row],[2025/26 Reduction]],Dataset[[#This Row],[2025/26 From - Total]],Dataset[[#This Row],[2025/26 To - Total]])","v":0},{"$f":"SUM(Dataset[[#This Row],[2026/27 Reduction]],Dataset[[#This Row],[2026/27 From - Total]],Dataset[[#This Row],[2026/27 To - Total]])","v":0},{"$f":"Dataset[[#This Row],[2023/24 Baseline]]+Dataset[[#This Row],[2023/24 Total change]]","v":0},{"$f":"Dataset[[#This Row],[2024/25 Baseline]]+Dataset[[#This Row],[2024/25 Total change]]","v":0},{"$f":"Dataset[[#This Row],[2025/26 Baseline]]+Dataset[[#This Row],[2025/26 Total change]]","v":0},{"$f":"Dataset[[#This Row],[2026/27 Baseline]]+Dataset[[#This Row],[2026/27 Total change]]","v":0}]
["NAT|Non-transfer item","26|Property payments","2024_25","MTEF2024",26,2,1,44384,497,"26","02","01","044384","000497","26|02|01","01","01","02","35","35","01|01|02|35|35","National","Military Veterans","Socioeconomic Support","Database and Benefits Management","Non-transfer item","Current","Current payments","Goods and services","Property payments","Property payments","Peace and security","Defence and state security","NAT",0,0,0,0,0,0,0,1000,1000,1000,1046,null,null,null,null,null,null,null,null,null,null,null,null,null,null,null,null,null,null,null,null,null,null,null,null,null,null,null,null,null,null,null,null,null,null,{"$f":"Dataset[[#This Row],[2024/25 From - Spending review Topic 1]]+Dataset[[#This Row],[2024/25 From - Spending review Topic 2]]+Dataset[[#This Row],[2024/25 From - Spending review Topic 3]]+Dataset[[#This Row],[2024/25 From - Spending review Topic 4]]+Dataset[[#This Row],[2024/25 From - Other reallocations]]","v":0},{"$f":"Dataset[[#This Row],[2025/26 From - Spending review Topic 1]]+Dataset[[#This Row],[2025/26 From - Spending review Topic 2]]+Dataset[[#This Row],[2025/26 From - Spending review Topic 3]]+Dataset[[#This Row],[2025/26 From - Spending review Topic 4]]+Dataset[[#This Row],[2025/26 From - Other reallocations]]","v":0},{"$f":"Dataset[[#This Row],[2026/27 From - Spending review Topic 1]]+Dataset[[#This Row],[2026/27 From - Spending review Topic 2]]+Dataset[[#This Row],[2026/27 From - Spending review Topic 3]]+Dataset[[#This Row],[2026/27 From - Spending review Topic 4]]+Dataset[[#This Row],[2026/27 From - Other reallocations]]","v":0},{"$f":"Dataset[[#This Row],[2024/25 To - Spending review Topic 1]]+Dataset[[#This Row],[2024/25 To - Spending review Topic 2]]+Dataset[[#This Row],[2024/25 To - Spending review Topic 3]]+Dataset[[#This Row],[2024/25 To - Spending review Topic 4]]+Dataset[[#This Row],[2024/25 To - Other reallocations]]","v":0},{"$f":"Dataset[[#This Row],[2025/26 To - Spending review Topic 1]]+Dataset[[#This Row],[2025/26 To - Spending review Topic 2]]+Dataset[[#This Row],[2025/26 To - Spending review Topic 3]]+Dataset[[#This Row],[2025/26 To - Spending review Topic 4]]+Dataset[[#This Row],[2025/26 To - Other reallocations]]","v":0},{"$f":"Dataset[[#This Row],[2026/27 To - Spending review Topic 1]]+Dataset[[#This Row],[2026/27 To - Spending review Topic 2]]+Dataset[[#This Row],[2026/27 To - Spending review Topic 3]]+Dataset[[#This Row],[2026/27 To - Spending review Topic 4]]+Dataset[[#This Row],[2026/27 To - Other reallocations]]","v":0},{"$f":"Dataset[[#This Row],[2024/25 Reduction]]+Dataset[[#This Row],[2024/25 From - Total]]","v":0},{"$f":"Dataset[[#This Row],[2025/26 Reduction]]+Dataset[[#This Row],[2025/26 From - Total]]","v":0},{"$f":"Dataset[[#This Row],[2026/27 Reduction]]+Dataset[[#This Row],[2026/27 From - Total]]","v":0},{"$f":"Dataset[[#This Row],[2023/24 Reduction]]","v":0},{"$f":"SUM(Dataset[[#This Row],[2024/25 Reduction]],Dataset[[#This Row],[2024/25 From - Total]],Dataset[[#This Row],[2024/25 To - Total]])","v":0},{"$f":"SUM(Dataset[[#This Row],[2025/26 Reduction]],Dataset[[#This Row],[2025/26 From - Total]],Dataset[[#This Row],[2025/26 To - Total]])","v":0},{"$f":"SUM(Dataset[[#This Row],[2026/27 Reduction]],Dataset[[#This Row],[2026/27 From - Total]],Dataset[[#This Row],[2026/27 To - Total]])","v":0},{"$f":"Dataset[[#This Row],[2023/24 Baseline]]+Dataset[[#This Row],[2023/24 Total change]]","v":1000},{"$f":"Dataset[[#This Row],[2024/25 Baseline]]+Dataset[[#This Row],[2024/25 Total change]]","v":1000},{"$f":"Dataset[[#This Row],[2025/26 Baseline]]+Dataset[[#This Row],[2025/26 Total change]]","v":1000},{"$f":"Dataset[[#This Row],[2026/27 Baseline]]+Dataset[[#This Row],[2026/27 Total change]]","v":1046}]
["NAT|Non-transfer item","26|Transport provided: Departmental activity","2024_25","MTEF2024",26,2,1,44385,498,"26","02","01","044385","000498","26|02|01","01","01","02","36","36","01|01|02|36|36","National","Military Veterans","Socioeconomic Support","Database and Benefits Management","Non-transfer item","Current","Current payments","Goods and services","Transport provided: Departmental activity","Transport provided: Departmental activity","Peace and security","Defence and state security","NAT",0,0,0,0,0,0,0,0,0,0,0,null,null,null,null,null,null,null,null,null,null,null,null,null,null,null,null,null,null,null,null,null,null,null,null,null,null,null,null,null,null,null,null,null,null,{"$f":"Dataset[[#This Row],[2024/25 From - Spending review Topic 1]]+Dataset[[#This Row],[2024/25 From - Spending review Topic 2]]+Dataset[[#This Row],[2024/25 From - Spending review Topic 3]]+Dataset[[#This Row],[2024/25 From - Spending review Topic 4]]+Dataset[[#This Row],[2024/25 From - Other reallocations]]","v":0},{"$f":"Dataset[[#This Row],[2025/26 From - Spending review Topic 1]]+Dataset[[#This Row],[2025/26 From - Spending review Topic 2]]+Dataset[[#This Row],[2025/26 From - Spending review Topic 3]]+Dataset[[#This Row],[2025/26 From - Spending review Topic 4]]+Dataset[[#This Row],[2025/26 From - Other reallocations]]","v":0},{"$f":"Dataset[[#This Row],[2026/27 From - Spending review Topic 1]]+Dataset[[#This Row],[2026/27 From - Spending review Topic 2]]+Dataset[[#This Row],[2026/27 From - Spending review Topic 3]]+Dataset[[#This Row],[2026/27 From - Spending review Topic 4]]+Dataset[[#This Row],[2026/27 From - Other reallocations]]","v":0},{"$f":"Dataset[[#This Row],[2024/25 To - Spending review Topic 1]]+Dataset[[#This Row],[2024/25 To - Spending review Topic 2]]+Dataset[[#This Row],[2024/25 To - Spending review Topic 3]]+Dataset[[#This Row],[2024/25 To - Spending review Topic 4]]+Dataset[[#This Row],[2024/25 To - Other reallocations]]","v":0},{"$f":"Dataset[[#This Row],[2025/26 To - Spending review Topic 1]]+Dataset[[#This Row],[2025/26 To - Spending review Topic 2]]+Dataset[[#This Row],[2025/26 To - Spending review Topic 3]]+Dataset[[#This Row],[2025/26 To - Spending review Topic 4]]+Dataset[[#This Row],[2025/26 To - Other reallocations]]","v":0},{"$f":"Dataset[[#This Row],[2026/27 To - Spending review Topic 1]]+Dataset[[#This Row],[2026/27 To - Spending review Topic 2]]+Dataset[[#This Row],[2026/27 To - Spending review Topic 3]]+Dataset[[#This Row],[2026/27 To - Spending review Topic 4]]+Dataset[[#This Row],[2026/27 To - Other reallocations]]","v":0},{"$f":"Dataset[[#This Row],[2024/25 Reduction]]+Dataset[[#This Row],[2024/25 From - Total]]","v":0},{"$f":"Dataset[[#This Row],[2025/26 Reduction]]+Dataset[[#This Row],[2025/26 From - Total]]","v":0},{"$f":"Dataset[[#This Row],[2026/27 Reduction]]+Dataset[[#This Row],[2026/27 From - Total]]","v":0},{"$f":"Dataset[[#This Row],[2023/24 Reduction]]","v":0},{"$f":"SUM(Dataset[[#This Row],[2024/25 Reduction]],Dataset[[#This Row],[2024/25 From - Total]],Dataset[[#This Row],[2024/25 To - Total]])","v":0},{"$f":"SUM(Dataset[[#This Row],[2025/26 Reduction]],Dataset[[#This Row],[2025/26 From - Total]],Dataset[[#This Row],[2025/26 To - Total]])","v":0},{"$f":"SUM(Dataset[[#This Row],[2026/27 Reduction]],Dataset[[#This Row],[2026/27 From - Total]],Dataset[[#This Row],[2026/27 To - Total]])","v":0},{"$f":"Dataset[[#This Row],[2023/24 Baseline]]+Dataset[[#This Row],[2023/24 Total change]]","v":0},{"$f":"Dataset[[#This Row],[2024/25 Baseline]]+Dataset[[#This Row],[2024/25 Total change]]","v":0},{"$f":"Dataset[[#This Row],[2025/26 Baseline]]+Dataset[[#This Row],[2025/26 Total change]]","v":0},{"$f":"Dataset[[#This Row],[2026/27 Baseline]]+Dataset[[#This Row],[2026/27 Total change]]","v":0}]
["NAT|Non-transfer item","26|Travel and subsistence","2024_25","MTEF2024",26,2,1,44386,499,"26","02","01","044386","000499","26|02|01","01","01","02","37","37","01|01|02|37|37","National","Military Veterans","Socioeconomic Support","Database and Benefits Management","Non-transfer item","Current","Current payments","Goods and services","Travel and subsistence","Travel and subsistence","Peace and security","Defence and state security","NAT",86,114,409,2059,7859,7859,0,4901,5441,6028,6304,null,null,null,null,null,null,null,null,null,null,null,null,null,null,null,null,null,null,null,null,null,null,null,null,null,null,null,null,null,null,null,null,null,null,{"$f":"Dataset[[#This Row],[2024/25 From - Spending review Topic 1]]+Dataset[[#This Row],[2024/25 From - Spending review Topic 2]]+Dataset[[#This Row],[2024/25 From - Spending review Topic 3]]+Dataset[[#This Row],[2024/25 From - Spending review Topic 4]]+Dataset[[#This Row],[2024/25 From - Other reallocations]]","v":0},{"$f":"Dataset[[#This Row],[2025/26 From - Spending review Topic 1]]+Dataset[[#This Row],[2025/26 From - Spending review Topic 2]]+Dataset[[#This Row],[2025/26 From - Spending review Topic 3]]+Dataset[[#This Row],[2025/26 From - Spending review Topic 4]]+Dataset[[#This Row],[2025/26 From - Other reallocations]]","v":0},{"$f":"Dataset[[#This Row],[2026/27 From - Spending review Topic 1]]+Dataset[[#This Row],[2026/27 From - Spending review Topic 2]]+Dataset[[#This Row],[2026/27 From - Spending review Topic 3]]+Dataset[[#This Row],[2026/27 From - Spending review Topic 4]]+Dataset[[#This Row],[2026/27 From - Other reallocations]]","v":0},{"$f":"Dataset[[#This Row],[2024/25 To - Spending review Topic 1]]+Dataset[[#This Row],[2024/25 To - Spending review Topic 2]]+Dataset[[#This Row],[2024/25 To - Spending review Topic 3]]+Dataset[[#This Row],[2024/25 To - Spending review Topic 4]]+Dataset[[#This Row],[2024/25 To - Other reallocations]]","v":0},{"$f":"Dataset[[#This Row],[2025/26 To - Spending review Topic 1]]+Dataset[[#This Row],[2025/26 To - Spending review Topic 2]]+Dataset[[#This Row],[2025/26 To - Spending review Topic 3]]+Dataset[[#This Row],[2025/26 To - Spending review Topic 4]]+Dataset[[#This Row],[2025/26 To - Other reallocations]]","v":0},{"$f":"Dataset[[#This Row],[2026/27 To - Spending review Topic 1]]+Dataset[[#This Row],[2026/27 To - Spending review Topic 2]]+Dataset[[#This Row],[2026/27 To - Spending review Topic 3]]+Dataset[[#This Row],[2026/27 To - Spending review Topic 4]]+Dataset[[#This Row],[2026/27 To - Other reallocations]]","v":0},{"$f":"Dataset[[#This Row],[2024/25 Reduction]]+Dataset[[#This Row],[2024/25 From - Total]]","v":0},{"$f":"Dataset[[#This Row],[2025/26 Reduction]]+Dataset[[#This Row],[2025/26 From - Total]]","v":0},{"$f":"Dataset[[#This Row],[2026/27 Reduction]]+Dataset[[#This Row],[2026/27 From - Total]]","v":0},{"$f":"Dataset[[#This Row],[2023/24 Reduction]]","v":0},{"$f":"SUM(Dataset[[#This Row],[2024/25 Reduction]],Dataset[[#This Row],[2024/25 From - Total]],Dataset[[#This Row],[2024/25 To - Total]])","v":0},{"$f":"SUM(Dataset[[#This Row],[2025/26 Reduction]],Dataset[[#This Row],[2025/26 From - Total]],Dataset[[#This Row],[2025/26 To - Total]])","v":0},{"$f":"SUM(Dataset[[#This Row],[2026/27 Reduction]],Dataset[[#This Row],[2026/27 From - Total]],Dataset[[#This Row],[2026/27 To - Total]])","v":0},{"$f":"Dataset[[#This Row],[2023/24 Baseline]]+Dataset[[#This Row],[2023/24 Total change]]","v":4901},{"$f":"Dataset[[#This Row],[2024/25 Baseline]]+Dataset[[#This Row],[2024/25 Total change]]","v":5441},{"$f":"Dataset[[#This Row],[2025/26 Baseline]]+Dataset[[#This Row],[2025/26 Total change]]","v":6028},{"$f":"Dataset[[#This Row],[2026/27 Baseline]]+Dataset[[#This Row],[2026/27 Total change]]","v":6304}]
["NAT|Non-transfer item","26|Training and development","2024_25","MTEF2024",26,2,1,44387,500,"26","02","01","044387","000500","26|02|01","01","01","02","38","38","01|01|02|38|38","National","Military Veterans","Socioeconomic Support","Database and Benefits Management","Non-transfer item","Current","Current payments","Goods and services","Training and development","Training and development","Peace and security","Defence and state security","NAT",0,0,0,0,0,0,0,0,0,0,0,null,null,null,null,null,null,null,null,null,null,null,null,null,null,null,null,null,null,null,null,null,null,null,null,null,null,null,null,null,null,null,null,null,null,{"$f":"Dataset[[#This Row],[2024/25 From - Spending review Topic 1]]+Dataset[[#This Row],[2024/25 From - Spending review Topic 2]]+Dataset[[#This Row],[2024/25 From - Spending review Topic 3]]+Dataset[[#This Row],[2024/25 From - Spending review Topic 4]]+Dataset[[#This Row],[2024/25 From - Other reallocations]]","v":0},{"$f":"Dataset[[#This Row],[2025/26 From - Spending review Topic 1]]+Dataset[[#This Row],[2025/26 From - Spending review Topic 2]]+Dataset[[#This Row],[2025/26 From - Spending review Topic 3]]+Dataset[[#This Row],[2025/26 From - Spending review Topic 4]]+Dataset[[#This Row],[2025/26 From - Other reallocations]]","v":0},{"$f":"Dataset[[#This Row],[2026/27 From - Spending review Topic 1]]+Dataset[[#This Row],[2026/27 From - Spending review Topic 2]]+Dataset[[#This Row],[2026/27 From - Spending review Topic 3]]+Dataset[[#This Row],[2026/27 From - Spending review Topic 4]]+Dataset[[#This Row],[2026/27 From - Other reallocations]]","v":0},{"$f":"Dataset[[#This Row],[2024/25 To - Spending review Topic 1]]+Dataset[[#This Row],[2024/25 To - Spending review Topic 2]]+Dataset[[#This Row],[2024/25 To - Spending review Topic 3]]+Dataset[[#This Row],[2024/25 To - Spending review Topic 4]]+Dataset[[#This Row],[2024/25 To - Other reallocations]]","v":0},{"$f":"Dataset[[#This Row],[2025/26 To - Spending review Topic 1]]+Dataset[[#This Row],[2025/26 To - Spending review Topic 2]]+Dataset[[#This Row],[2025/26 To - Spending review Topic 3]]+Dataset[[#This Row],[2025/26 To - Spending review Topic 4]]+Dataset[[#This Row],[2025/26 To - Other reallocations]]","v":0},{"$f":"Dataset[[#This Row],[2026/27 To - Spending review Topic 1]]+Dataset[[#This Row],[2026/27 To - Spending review Topic 2]]+Dataset[[#This Row],[2026/27 To - Spending review Topic 3]]+Dataset[[#This Row],[2026/27 To - Spending review Topic 4]]+Dataset[[#This Row],[2026/27 To - Other reallocations]]","v":0},{"$f":"Dataset[[#This Row],[2024/25 Reduction]]+Dataset[[#This Row],[2024/25 From - Total]]","v":0},{"$f":"Dataset[[#This Row],[2025/26 Reduction]]+Dataset[[#This Row],[2025/26 From - Total]]","v":0},{"$f":"Dataset[[#This Row],[2026/27 Reduction]]+Dataset[[#This Row],[2026/27 From - Total]]","v":0},{"$f":"Dataset[[#This Row],[2023/24 Reduction]]","v":0},{"$f":"SUM(Dataset[[#This Row],[2024/25 Reduction]],Dataset[[#This Row],[2024/25 From - Total]],Dataset[[#This Row],[2024/25 To - Total]])","v":0},{"$f":"SUM(Dataset[[#This Row],[2025/26 Reduction]],Dataset[[#This Row],[2025/26 From - Total]],Dataset[[#This Row],[2025/26 To - Total]])","v":0},{"$f":"SUM(Dataset[[#This Row],[2026/27 Reduction]],Dataset[[#This Row],[2026/27 From - Total]],Dataset[[#This Row],[2026/27 To - Total]])","v":0},{"$f":"Dataset[[#This Row],[2023/24 Baseline]]+Dataset[[#This Row],[2023/24 Total change]]","v":0},{"$f":"Dataset[[#This Row],[2024/25 Baseline]]+Dataset[[#This Row],[2024/25 Total change]]","v":0},{"$f":"Dataset[[#This Row],[2025/26 Baseline]]+Dataset[[#This Row],[2025/26 Total change]]","v":0},{"$f":"Dataset[[#This Row],[2026/27 Baseline]]+Dataset[[#This Row],[2026/27 Total change]]","v":0}]
["NAT|Non-transfer item","26|Operating payments","2024_25","MTEF2024",26,2,1,44388,501,"26","02","01","044388","000501","26|02|01","01","01","02","39","39","01|01|02|39|39","National","Military Veterans","Socioeconomic Support","Database and Benefits Management","Non-transfer item","Current","Current payments","Goods and services","Operating payments","Operating payments","Peace and security","Defence and state security","NAT",0,0,0,0,50,50,0,0,0,0,0,null,null,null,null,null,null,null,null,null,null,null,null,null,null,null,null,null,null,null,null,null,null,null,null,null,null,null,null,null,null,null,null,null,null,{"$f":"Dataset[[#This Row],[2024/25 From - Spending review Topic 1]]+Dataset[[#This Row],[2024/25 From - Spending review Topic 2]]+Dataset[[#This Row],[2024/25 From - Spending review Topic 3]]+Dataset[[#This Row],[2024/25 From - Spending review Topic 4]]+Dataset[[#This Row],[2024/25 From - Other reallocations]]","v":0},{"$f":"Dataset[[#This Row],[2025/26 From - Spending review Topic 1]]+Dataset[[#This Row],[2025/26 From - Spending review Topic 2]]+Dataset[[#This Row],[2025/26 From - Spending review Topic 3]]+Dataset[[#This Row],[2025/26 From - Spending review Topic 4]]+Dataset[[#This Row],[2025/26 From - Other reallocations]]","v":0},{"$f":"Dataset[[#This Row],[2026/27 From - Spending review Topic 1]]+Dataset[[#This Row],[2026/27 From - Spending review Topic 2]]+Dataset[[#This Row],[2026/27 From - Spending review Topic 3]]+Dataset[[#This Row],[2026/27 From - Spending review Topic 4]]+Dataset[[#This Row],[2026/27 From - Other reallocations]]","v":0},{"$f":"Dataset[[#This Row],[2024/25 To - Spending review Topic 1]]+Dataset[[#This Row],[2024/25 To - Spending review Topic 2]]+Dataset[[#This Row],[2024/25 To - Spending review Topic 3]]+Dataset[[#This Row],[2024/25 To - Spending review Topic 4]]+Dataset[[#This Row],[2024/25 To - Other reallocations]]","v":0},{"$f":"Dataset[[#This Row],[2025/26 To - Spending review Topic 1]]+Dataset[[#This Row],[2025/26 To - Spending review Topic 2]]+Dataset[[#This Row],[2025/26 To - Spending review Topic 3]]+Dataset[[#This Row],[2025/26 To - Spending review Topic 4]]+Dataset[[#This Row],[2025/26 To - Other reallocations]]","v":0},{"$f":"Dataset[[#This Row],[2026/27 To - Spending review Topic 1]]+Dataset[[#This Row],[2026/27 To - Spending review Topic 2]]+Dataset[[#This Row],[2026/27 To - Spending review Topic 3]]+Dataset[[#This Row],[2026/27 To - Spending review Topic 4]]+Dataset[[#This Row],[2026/27 To - Other reallocations]]","v":0},{"$f":"Dataset[[#This Row],[2024/25 Reduction]]+Dataset[[#This Row],[2024/25 From - Total]]","v":0},{"$f":"Dataset[[#This Row],[2025/26 Reduction]]+Dataset[[#This Row],[2025/26 From - Total]]","v":0},{"$f":"Dataset[[#This Row],[2026/27 Reduction]]+Dataset[[#This Row],[2026/27 From - Total]]","v":0},{"$f":"Dataset[[#This Row],[2023/24 Reduction]]","v":0},{"$f":"SUM(Dataset[[#This Row],[2024/25 Reduction]],Dataset[[#This Row],[2024/25 From - Total]],Dataset[[#This Row],[2024/25 To - Total]])","v":0},{"$f":"SUM(Dataset[[#This Row],[2025/26 Reduction]],Dataset[[#This Row],[2025/26 From - Total]],Dataset[[#This Row],[2025/26 To - Total]])","v":0},{"$f":"SUM(Dataset[[#This Row],[2026/27 Reduction]],Dataset[[#This Row],[2026/27 From - Total]],Dataset[[#This Row],[2026/27 To - Total]])","v":0},{"$f":"Dataset[[#This Row],[2023/24 Baseline]]+Dataset[[#This Row],[2023/24 Total change]]","v":0},{"$f":"Dataset[[#This Row],[2024/25 Baseline]]+Dataset[[#This Row],[2024/25 Total change]]","v":0},{"$f":"Dataset[[#This Row],[2025/26 Baseline]]+Dataset[[#This Row],[2025/26 Total change]]","v":0},{"$f":"Dataset[[#This Row],[2026/27 Baseline]]+Dataset[[#This Row],[2026/27 Total change]]","v":0}]
["NAT|Non-transfer item","26|Venues and facilities","2024_25","MTEF2024",26,2,1,44389,502,"26","02","01","044389","000502","26|02|01","01","01","02","40","40","01|01|02|40|40","National","Military Veterans","Socioeconomic Support","Database and Benefits Management","Non-transfer item","Current","Current payments","Goods and services","Venues and facilities","Venues and facilities","Peace and security","Defence and state security","NAT",0,0,0,265,265,265,0,244,250,261,273,null,null,null,null,null,null,null,null,null,null,null,null,null,null,null,null,null,null,null,null,null,null,null,null,null,null,null,null,null,null,null,null,null,null,{"$f":"Dataset[[#This Row],[2024/25 From - Spending review Topic 1]]+Dataset[[#This Row],[2024/25 From - Spending review Topic 2]]+Dataset[[#This Row],[2024/25 From - Spending review Topic 3]]+Dataset[[#This Row],[2024/25 From - Spending review Topic 4]]+Dataset[[#This Row],[2024/25 From - Other reallocations]]","v":0},{"$f":"Dataset[[#This Row],[2025/26 From - Spending review Topic 1]]+Dataset[[#This Row],[2025/26 From - Spending review Topic 2]]+Dataset[[#This Row],[2025/26 From - Spending review Topic 3]]+Dataset[[#This Row],[2025/26 From - Spending review Topic 4]]+Dataset[[#This Row],[2025/26 From - Other reallocations]]","v":0},{"$f":"Dataset[[#This Row],[2026/27 From - Spending review Topic 1]]+Dataset[[#This Row],[2026/27 From - Spending review Topic 2]]+Dataset[[#This Row],[2026/27 From - Spending review Topic 3]]+Dataset[[#This Row],[2026/27 From - Spending review Topic 4]]+Dataset[[#This Row],[2026/27 From - Other reallocations]]","v":0},{"$f":"Dataset[[#This Row],[2024/25 To - Spending review Topic 1]]+Dataset[[#This Row],[2024/25 To - Spending review Topic 2]]+Dataset[[#This Row],[2024/25 To - Spending review Topic 3]]+Dataset[[#This Row],[2024/25 To - Spending review Topic 4]]+Dataset[[#This Row],[2024/25 To - Other reallocations]]","v":0},{"$f":"Dataset[[#This Row],[2025/26 To - Spending review Topic 1]]+Dataset[[#This Row],[2025/26 To - Spending review Topic 2]]+Dataset[[#This Row],[2025/26 To - Spending review Topic 3]]+Dataset[[#This Row],[2025/26 To - Spending review Topic 4]]+Dataset[[#This Row],[2025/26 To - Other reallocations]]","v":0},{"$f":"Dataset[[#This Row],[2026/27 To - Spending review Topic 1]]+Dataset[[#This Row],[2026/27 To - Spending review Topic 2]]+Dataset[[#This Row],[2026/27 To - Spending review Topic 3]]+Dataset[[#This Row],[2026/27 To - Spending review Topic 4]]+Dataset[[#This Row],[2026/27 To - Other reallocations]]","v":0},{"$f":"Dataset[[#This Row],[2024/25 Reduction]]+Dataset[[#This Row],[2024/25 From - Total]]","v":0},{"$f":"Dataset[[#This Row],[2025/26 Reduction]]+Dataset[[#This Row],[2025/26 From - Total]]","v":0},{"$f":"Dataset[[#This Row],[2026/27 Reduction]]+Dataset[[#This Row],[2026/27 From - Total]]","v":0},{"$f":"Dataset[[#This Row],[2023/24 Reduction]]","v":0},{"$f":"SUM(Dataset[[#This Row],[2024/25 Reduction]],Dataset[[#This Row],[2024/25 From - Total]],Dataset[[#This Row],[2024/25 To - Total]])","v":0},{"$f":"SUM(Dataset[[#This Row],[2025/26 Reduction]],Dataset[[#This Row],[2025/26 From - Total]],Dataset[[#This Row],[2025/26 To - Total]])","v":0},{"$f":"SUM(Dataset[[#This Row],[2026/27 Reduction]],Dataset[[#This Row],[2026/27 From - Total]],Dataset[[#This Row],[2026/27 To - Total]])","v":0},{"$f":"Dataset[[#This Row],[2023/24 Baseline]]+Dataset[[#This Row],[2023/24 Total change]]","v":244},{"$f":"Dataset[[#This Row],[2024/25 Baseline]]+Dataset[[#This Row],[2024/25 Total change]]","v":250},{"$f":"Dataset[[#This Row],[2025/26 Baseline]]+Dataset[[#This Row],[2025/26 Total change]]","v":261},{"$f":"Dataset[[#This Row],[2026/27 Baseline]]+Dataset[[#This Row],[2026/27 Total change]]","v":273}]
["NAT|Non-transfer item","26|Interest (Incl. interest on unitary payments (PPP))","2024_25","MTEF2024",26,2,1,44390,503,"26","02","01","044390","000503","26|02|01","01","01","03","41","41","01|01|03|41|41","National","Military Veterans","Socioeconomic Support","Database and Benefits Management","Non-transfer item","Current","Current payments","Interest and rent on land","Interest (Incl. interest on unitary payments (PPP))","Interest (Incl. interest on unitary payments (PPP))","Peace and security","Defence and state security","NAT",0,0,0,0,0,0,0,0,0,0,0,null,null,null,null,null,null,null,null,null,null,null,null,null,null,null,null,null,null,null,null,null,null,null,null,null,null,null,null,null,null,null,null,null,null,{"$f":"Dataset[[#This Row],[2024/25 From - Spending review Topic 1]]+Dataset[[#This Row],[2024/25 From - Spending review Topic 2]]+Dataset[[#This Row],[2024/25 From - Spending review Topic 3]]+Dataset[[#This Row],[2024/25 From - Spending review Topic 4]]+Dataset[[#This Row],[2024/25 From - Other reallocations]]","v":0},{"$f":"Dataset[[#This Row],[2025/26 From - Spending review Topic 1]]+Dataset[[#This Row],[2025/26 From - Spending review Topic 2]]+Dataset[[#This Row],[2025/26 From - Spending review Topic 3]]+Dataset[[#This Row],[2025/26 From - Spending review Topic 4]]+Dataset[[#This Row],[2025/26 From - Other reallocations]]","v":0},{"$f":"Dataset[[#This Row],[2026/27 From - Spending review Topic 1]]+Dataset[[#This Row],[2026/27 From - Spending review Topic 2]]+Dataset[[#This Row],[2026/27 From - Spending review Topic 3]]+Dataset[[#This Row],[2026/27 From - Spending review Topic 4]]+Dataset[[#This Row],[2026/27 From - Other reallocations]]","v":0},{"$f":"Dataset[[#This Row],[2024/25 To - Spending review Topic 1]]+Dataset[[#This Row],[2024/25 To - Spending review Topic 2]]+Dataset[[#This Row],[2024/25 To - Spending review Topic 3]]+Dataset[[#This Row],[2024/25 To - Spending review Topic 4]]+Dataset[[#This Row],[2024/25 To - Other reallocations]]","v":0},{"$f":"Dataset[[#This Row],[2025/26 To - Spending review Topic 1]]+Dataset[[#This Row],[2025/26 To - Spending review Topic 2]]+Dataset[[#This Row],[2025/26 To - Spending review Topic 3]]+Dataset[[#This Row],[2025/26 To - Spending review Topic 4]]+Dataset[[#This Row],[2025/26 To - Other reallocations]]","v":0},{"$f":"Dataset[[#This Row],[2026/27 To - Spending review Topic 1]]+Dataset[[#This Row],[2026/27 To - Spending review Topic 2]]+Dataset[[#This Row],[2026/27 To - Spending review Topic 3]]+Dataset[[#This Row],[2026/27 To - Spending review Topic 4]]+Dataset[[#This Row],[2026/27 To - Other reallocations]]","v":0},{"$f":"Dataset[[#This Row],[2024/25 Reduction]]+Dataset[[#This Row],[2024/25 From - Total]]","v":0},{"$f":"Dataset[[#This Row],[2025/26 Reduction]]+Dataset[[#This Row],[2025/26 From - Total]]","v":0},{"$f":"Dataset[[#This Row],[2026/27 Reduction]]+Dataset[[#This Row],[2026/27 From - Total]]","v":0},{"$f":"Dataset[[#This Row],[2023/24 Reduction]]","v":0},{"$f":"SUM(Dataset[[#This Row],[2024/25 Reduction]],Dataset[[#This Row],[2024/25 From - Total]],Dataset[[#This Row],[2024/25 To - Total]])","v":0},{"$f":"SUM(Dataset[[#This Row],[2025/26 Reduction]],Dataset[[#This Row],[2025/26 From - Total]],Dataset[[#This Row],[2025/26 To - Total]])","v":0},{"$f":"SUM(Dataset[[#This Row],[2026/27 Reduction]],Dataset[[#This Row],[2026/27 From - Total]],Dataset[[#This Row],[2026/27 To - Total]])","v":0},{"$f":"Dataset[[#This Row],[2023/24 Baseline]]+Dataset[[#This Row],[2023/24 Total change]]","v":0},{"$f":"Dataset[[#This Row],[2024/25 Baseline]]+Dataset[[#This Row],[2024/25 Total change]]","v":0},{"$f":"Dataset[[#This Row],[2025/26 Baseline]]+Dataset[[#This Row],[2025/26 Total change]]","v":0},{"$f":"Dataset[[#This Row],[2026/27 Baseline]]+Dataset[[#This Row],[2026/27 Total change]]","v":0}]
["NAT|Non-transfer item","26|Rent on land","2024_25","MTEF2024",26,2,1,44391,504,"26","02","01","044391","000504","26|02|01","01","01","03","42","42","01|01|03|42|42","National","Military Veterans","Socioeconomic Support","Database and Benefits Management","Non-transfer item","Current","Current payments","Interest and rent on land","Rent on land","Rent on land","Peace and security","Defence and state security","NAT",0,0,0,0,0,0,0,0,0,0,0,null,null,null,null,null,null,null,null,null,null,null,null,null,null,null,null,null,null,null,null,null,null,null,null,null,null,null,null,null,null,null,null,null,null,{"$f":"Dataset[[#This Row],[2024/25 From - Spending review Topic 1]]+Dataset[[#This Row],[2024/25 From - Spending review Topic 2]]+Dataset[[#This Row],[2024/25 From - Spending review Topic 3]]+Dataset[[#This Row],[2024/25 From - Spending review Topic 4]]+Dataset[[#This Row],[2024/25 From - Other reallocations]]","v":0},{"$f":"Dataset[[#This Row],[2025/26 From - Spending review Topic 1]]+Dataset[[#This Row],[2025/26 From - Spending review Topic 2]]+Dataset[[#This Row],[2025/26 From - Spending review Topic 3]]+Dataset[[#This Row],[2025/26 From - Spending review Topic 4]]+Dataset[[#This Row],[2025/26 From - Other reallocations]]","v":0},{"$f":"Dataset[[#This Row],[2026/27 From - Spending review Topic 1]]+Dataset[[#This Row],[2026/27 From - Spending review Topic 2]]+Dataset[[#This Row],[2026/27 From - Spending review Topic 3]]+Dataset[[#This Row],[2026/27 From - Spending review Topic 4]]+Dataset[[#This Row],[2026/27 From - Other reallocations]]","v":0},{"$f":"Dataset[[#This Row],[2024/25 To - Spending review Topic 1]]+Dataset[[#This Row],[2024/25 To - Spending review Topic 2]]+Dataset[[#This Row],[2024/25 To - Spending review Topic 3]]+Dataset[[#This Row],[2024/25 To - Spending review Topic 4]]+Dataset[[#This Row],[2024/25 To - Other reallocations]]","v":0},{"$f":"Dataset[[#This Row],[2025/26 To - Spending review Topic 1]]+Dataset[[#This Row],[2025/26 To - Spending review Topic 2]]+Dataset[[#This Row],[2025/26 To - Spending review Topic 3]]+Dataset[[#This Row],[2025/26 To - Spending review Topic 4]]+Dataset[[#This Row],[2025/26 To - Other reallocations]]","v":0},{"$f":"Dataset[[#This Row],[2026/27 To - Spending review Topic 1]]+Dataset[[#This Row],[2026/27 To - Spending review Topic 2]]+Dataset[[#This Row],[2026/27 To - Spending review Topic 3]]+Dataset[[#This Row],[2026/27 To - Spending review Topic 4]]+Dataset[[#This Row],[2026/27 To - Other reallocations]]","v":0},{"$f":"Dataset[[#This Row],[2024/25 Reduction]]+Dataset[[#This Row],[2024/25 From - Total]]","v":0},{"$f":"Dataset[[#This Row],[2025/26 Reduction]]+Dataset[[#This Row],[2025/26 From - Total]]","v":0},{"$f":"Dataset[[#This Row],[2026/27 Reduction]]+Dataset[[#This Row],[2026/27 From - Total]]","v":0},{"$f":"Dataset[[#This Row],[2023/24 Reduction]]","v":0},{"$f":"SUM(Dataset[[#This Row],[2024/25 Reduction]],Dataset[[#This Row],[2024/25 From - Total]],Dataset[[#This Row],[2024/25 To - Total]])","v":0},{"$f":"SUM(Dataset[[#This Row],[2025/26 Reduction]],Dataset[[#This Row],[2025/26 From - Total]],Dataset[[#This Row],[2025/26 To - Total]])","v":0},{"$f":"SUM(Dataset[[#This Row],[2026/27 Reduction]],Dataset[[#This Row],[2026/27 From - Total]],Dataset[[#This Row],[2026/27 To - Total]])","v":0},{"$f":"Dataset[[#This Row],[2023/24 Baseline]]+Dataset[[#This Row],[2023/24 Total change]]","v":0},{"$f":"Dataset[[#This Row],[2024/25 Baseline]]+Dataset[[#This Row],[2024/25 Total change]]","v":0},{"$f":"Dataset[[#This Row],[2025/26 Baseline]]+Dataset[[#This Row],[2025/26 Total change]]","v":0},{"$f":"Dataset[[#This Row],[2026/27 Baseline]]+Dataset[[#This Row],[2026/27 Total change]]","v":0}]
["NAT|Non-transfer item","26|Provincial Revenue Funds","2024_25","MTEF2024",26,2,1,44392,505,"26","02","01","044392","000505","26|02|01","01","02","04","43","43","01|02|04|43|43","National","Military Veterans","Socioeconomic Support","Database and Benefits Management","Non-transfer item","Current","Transfers and subsidies","Provinces and municipalities","Provinces","Provincial Revenue Funds","Peace and security","Defence and state security","NAT",0,0,0,0,0,0,0,0,0,0,0,null,null,null,null,null,null,null,null,null,null,null,null,null,null,null,null,null,null,null,null,null,null,null,null,null,null,null,null,null,null,null,null,null,null,{"$f":"Dataset[[#This Row],[2024/25 From - Spending review Topic 1]]+Dataset[[#This Row],[2024/25 From - Spending review Topic 2]]+Dataset[[#This Row],[2024/25 From - Spending review Topic 3]]+Dataset[[#This Row],[2024/25 From - Spending review Topic 4]]+Dataset[[#This Row],[2024/25 From - Other reallocations]]","v":0},{"$f":"Dataset[[#This Row],[2025/26 From - Spending review Topic 1]]+Dataset[[#This Row],[2025/26 From - Spending review Topic 2]]+Dataset[[#This Row],[2025/26 From - Spending review Topic 3]]+Dataset[[#This Row],[2025/26 From - Spending review Topic 4]]+Dataset[[#This Row],[2025/26 From - Other reallocations]]","v":0},{"$f":"Dataset[[#This Row],[2026/27 From - Spending review Topic 1]]+Dataset[[#This Row],[2026/27 From - Spending review Topic 2]]+Dataset[[#This Row],[2026/27 From - Spending review Topic 3]]+Dataset[[#This Row],[2026/27 From - Spending review Topic 4]]+Dataset[[#This Row],[2026/27 From - Other reallocations]]","v":0},{"$f":"Dataset[[#This Row],[2024/25 To - Spending review Topic 1]]+Dataset[[#This Row],[2024/25 To - Spending review Topic 2]]+Dataset[[#This Row],[2024/25 To - Spending review Topic 3]]+Dataset[[#This Row],[2024/25 To - Spending review Topic 4]]+Dataset[[#This Row],[2024/25 To - Other reallocations]]","v":0},{"$f":"Dataset[[#This Row],[2025/26 To - Spending review Topic 1]]+Dataset[[#This Row],[2025/26 To - Spending review Topic 2]]+Dataset[[#This Row],[2025/26 To - Spending review Topic 3]]+Dataset[[#This Row],[2025/26 To - Spending review Topic 4]]+Dataset[[#This Row],[2025/26 To - Other reallocations]]","v":0},{"$f":"Dataset[[#This Row],[2026/27 To - Spending review Topic 1]]+Dataset[[#This Row],[2026/27 To - Spending review Topic 2]]+Dataset[[#This Row],[2026/27 To - Spending review Topic 3]]+Dataset[[#This Row],[2026/27 To - Spending review Topic 4]]+Dataset[[#This Row],[2026/27 To - Other reallocations]]","v":0},{"$f":"Dataset[[#This Row],[2024/25 Reduction]]+Dataset[[#This Row],[2024/25 From - Total]]","v":0},{"$f":"Dataset[[#This Row],[2025/26 Reduction]]+Dataset[[#This Row],[2025/26 From - Total]]","v":0},{"$f":"Dataset[[#This Row],[2026/27 Reduction]]+Dataset[[#This Row],[2026/27 From - Total]]","v":0},{"$f":"Dataset[[#This Row],[2023/24 Reduction]]","v":0},{"$f":"SUM(Dataset[[#This Row],[2024/25 Reduction]],Dataset[[#This Row],[2024/25 From - Total]],Dataset[[#This Row],[2024/25 To - Total]])","v":0},{"$f":"SUM(Dataset[[#This Row],[2025/26 Reduction]],Dataset[[#This Row],[2025/26 From - Total]],Dataset[[#This Row],[2025/26 To - Total]])","v":0},{"$f":"SUM(Dataset[[#This Row],[2026/27 Reduction]],Dataset[[#This Row],[2026/27 From - Total]],Dataset[[#This Row],[2026/27 To - Total]])","v":0},{"$f":"Dataset[[#This Row],[2023/24 Baseline]]+Dataset[[#This Row],[2023/24 Total change]]","v":0},{"$f":"Dataset[[#This Row],[2024/25 Baseline]]+Dataset[[#This Row],[2024/25 Total change]]","v":0},{"$f":"Dataset[[#This Row],[2025/26 Baseline]]+Dataset[[#This Row],[2025/26 Total change]]","v":0},{"$f":"Dataset[[#This Row],[2026/27 Baseline]]+Dataset[[#This Row],[2026/27 Total change]]","v":0}]
["NAT|Non-transfer item","26|Provincial agencies and funds","2024_25","MTEF2024",26,2,1,44393,506,"26","02","01","044393","000506","26|02|01","01","02","04","43","44","01|02|04|43|44","National","Military Veterans","Socioeconomic Support","Database and Benefits Management","Non-transfer item","Current","Transfers and subsidies","Provinces and municipalities","Provinces","Provincial agencies and funds","Peace and security","Defence and state security","NAT",0,0,0,0,0,0,0,0,0,0,0,null,null,null,null,null,null,null,null,null,null,null,null,null,null,null,null,null,null,null,null,null,null,null,null,null,null,null,null,null,null,null,null,null,null,{"$f":"Dataset[[#This Row],[2024/25 From - Spending review Topic 1]]+Dataset[[#This Row],[2024/25 From - Spending review Topic 2]]+Dataset[[#This Row],[2024/25 From - Spending review Topic 3]]+Dataset[[#This Row],[2024/25 From - Spending review Topic 4]]+Dataset[[#This Row],[2024/25 From - Other reallocations]]","v":0},{"$f":"Dataset[[#This Row],[2025/26 From - Spending review Topic 1]]+Dataset[[#This Row],[2025/26 From - Spending review Topic 2]]+Dataset[[#This Row],[2025/26 From - Spending review Topic 3]]+Dataset[[#This Row],[2025/26 From - Spending review Topic 4]]+Dataset[[#This Row],[2025/26 From - Other reallocations]]","v":0},{"$f":"Dataset[[#This Row],[2026/27 From - Spending review Topic 1]]+Dataset[[#This Row],[2026/27 From - Spending review Topic 2]]+Dataset[[#This Row],[2026/27 From - Spending review Topic 3]]+Dataset[[#This Row],[2026/27 From - Spending review Topic 4]]+Dataset[[#This Row],[2026/27 From - Other reallocations]]","v":0},{"$f":"Dataset[[#This Row],[2024/25 To - Spending review Topic 1]]+Dataset[[#This Row],[2024/25 To - Spending review Topic 2]]+Dataset[[#This Row],[2024/25 To - Spending review Topic 3]]+Dataset[[#This Row],[2024/25 To - Spending review Topic 4]]+Dataset[[#This Row],[2024/25 To - Other reallocations]]","v":0},{"$f":"Dataset[[#This Row],[2025/26 To - Spending review Topic 1]]+Dataset[[#This Row],[2025/26 To - Spending review Topic 2]]+Dataset[[#This Row],[2025/26 To - Spending review Topic 3]]+Dataset[[#This Row],[2025/26 To - Spending review Topic 4]]+Dataset[[#This Row],[2025/26 To - Other reallocations]]","v":0},{"$f":"Dataset[[#This Row],[2026/27 To - Spending review Topic 1]]+Dataset[[#This Row],[2026/27 To - Spending review Topic 2]]+Dataset[[#This Row],[2026/27 To - Spending review Topic 3]]+Dataset[[#This Row],[2026/27 To - Spending review Topic 4]]+Dataset[[#This Row],[2026/27 To - Other reallocations]]","v":0},{"$f":"Dataset[[#This Row],[2024/25 Reduction]]+Dataset[[#This Row],[2024/25 From - Total]]","v":0},{"$f":"Dataset[[#This Row],[2025/26 Reduction]]+Dataset[[#This Row],[2025/26 From - Total]]","v":0},{"$f":"Dataset[[#This Row],[2026/27 Reduction]]+Dataset[[#This Row],[2026/27 From - Total]]","v":0},{"$f":"Dataset[[#This Row],[2023/24 Reduction]]","v":0},{"$f":"SUM(Dataset[[#This Row],[2024/25 Reduction]],Dataset[[#This Row],[2024/25 From - Total]],Dataset[[#This Row],[2024/25 To - Total]])","v":0},{"$f":"SUM(Dataset[[#This Row],[2025/26 Reduction]],Dataset[[#This Row],[2025/26 From - Total]],Dataset[[#This Row],[2025/26 To - Total]])","v":0},{"$f":"SUM(Dataset[[#This Row],[2026/27 Reduction]],Dataset[[#This Row],[2026/27 From - Total]],Dataset[[#This Row],[2026/27 To - Total]])","v":0},{"$f":"Dataset[[#This Row],[2023/24 Baseline]]+Dataset[[#This Row],[2023/24 Total change]]","v":0},{"$f":"Dataset[[#This Row],[2024/25 Baseline]]+Dataset[[#This Row],[2024/25 Total change]]","v":0},{"$f":"Dataset[[#This Row],[2025/26 Baseline]]+Dataset[[#This Row],[2025/26 Total change]]","v":0},{"$f":"Dataset[[#This Row],[2026/27 Baseline]]+Dataset[[#This Row],[2026/27 Total change]]","v":0}]
["NAT|Non-transfer item","26|Municipal bank accounts","2024_25","MTEF2024",26,2,1,44394,507,"26","02","01","044394","000507","26|02|01","01","02","04","44","45","01|02|04|44|45","National","Military Veterans","Socioeconomic Support","Database and Benefits Management","Non-transfer item","Current","Transfers and subsidies","Provinces and municipalities","Municipalities","Municipal bank accounts","Peace and security","Defence and state security","NAT",0,0,0,0,0,0,0,0,0,0,0,null,null,null,null,null,null,null,null,null,null,null,null,null,null,null,null,null,null,null,null,null,null,null,null,null,null,null,null,null,null,null,null,null,null,{"$f":"Dataset[[#This Row],[2024/25 From - Spending review Topic 1]]+Dataset[[#This Row],[2024/25 From - Spending review Topic 2]]+Dataset[[#This Row],[2024/25 From - Spending review Topic 3]]+Dataset[[#This Row],[2024/25 From - Spending review Topic 4]]+Dataset[[#This Row],[2024/25 From - Other reallocations]]","v":0},{"$f":"Dataset[[#This Row],[2025/26 From - Spending review Topic 1]]+Dataset[[#This Row],[2025/26 From - Spending review Topic 2]]+Dataset[[#This Row],[2025/26 From - Spending review Topic 3]]+Dataset[[#This Row],[2025/26 From - Spending review Topic 4]]+Dataset[[#This Row],[2025/26 From - Other reallocations]]","v":0},{"$f":"Dataset[[#This Row],[2026/27 From - Spending review Topic 1]]+Dataset[[#This Row],[2026/27 From - Spending review Topic 2]]+Dataset[[#This Row],[2026/27 From - Spending review Topic 3]]+Dataset[[#This Row],[2026/27 From - Spending review Topic 4]]+Dataset[[#This Row],[2026/27 From - Other reallocations]]","v":0},{"$f":"Dataset[[#This Row],[2024/25 To - Spending review Topic 1]]+Dataset[[#This Row],[2024/25 To - Spending review Topic 2]]+Dataset[[#This Row],[2024/25 To - Spending review Topic 3]]+Dataset[[#This Row],[2024/25 To - Spending review Topic 4]]+Dataset[[#This Row],[2024/25 To - Other reallocations]]","v":0},{"$f":"Dataset[[#This Row],[2025/26 To - Spending review Topic 1]]+Dataset[[#This Row],[2025/26 To - Spending review Topic 2]]+Dataset[[#This Row],[2025/26 To - Spending review Topic 3]]+Dataset[[#This Row],[2025/26 To - Spending review Topic 4]]+Dataset[[#This Row],[2025/26 To - Other reallocations]]","v":0},{"$f":"Dataset[[#This Row],[2026/27 To - Spending review Topic 1]]+Dataset[[#This Row],[2026/27 To - Spending review Topic 2]]+Dataset[[#This Row],[2026/27 To - Spending review Topic 3]]+Dataset[[#This Row],[2026/27 To - Spending review Topic 4]]+Dataset[[#This Row],[2026/27 To - Other reallocations]]","v":0},{"$f":"Dataset[[#This Row],[2024/25 Reduction]]+Dataset[[#This Row],[2024/25 From - Total]]","v":0},{"$f":"Dataset[[#This Row],[2025/26 Reduction]]+Dataset[[#This Row],[2025/26 From - Total]]","v":0},{"$f":"Dataset[[#This Row],[2026/27 Reduction]]+Dataset[[#This Row],[2026/27 From - Total]]","v":0},{"$f":"Dataset[[#This Row],[2023/24 Reduction]]","v":0},{"$f":"SUM(Dataset[[#This Row],[2024/25 Reduction]],Dataset[[#This Row],[2024/25 From - Total]],Dataset[[#This Row],[2024/25 To - Total]])","v":0},{"$f":"SUM(Dataset[[#This Row],[2025/26 Reduction]],Dataset[[#This Row],[2025/26 From - Total]],Dataset[[#This Row],[2025/26 To - Total]])","v":0},{"$f":"SUM(Dataset[[#This Row],[2026/27 Reduction]],Dataset[[#This Row],[2026/27 From - Total]],Dataset[[#This Row],[2026/27 To - Total]])","v":0},{"$f":"Dataset[[#This Row],[2023/24 Baseline]]+Dataset[[#This Row],[2023/24 Total change]]","v":0},{"$f":"Dataset[[#This Row],[2024/25 Baseline]]+Dataset[[#This Row],[2024/25 Total change]]","v":0},{"$f":"Dataset[[#This Row],[2025/26 Baseline]]+Dataset[[#This Row],[2025/26 Total change]]","v":0},{"$f":"Dataset[[#This Row],[2026/27 Baseline]]+Dataset[[#This Row],[2026/27 Total change]]","v":0}]
["NAT|Non-transfer item","26|Municipal agencies and funds","2024_25","MTEF2024",26,2,1,44395,508,"26","02","01","044395","000508","26|02|01","01","02","04","44","46","01|02|04|44|46","National","Military Veterans","Socioeconomic Support","Database and Benefits Management","Non-transfer item","Current","Transfers and subsidies","Provinces and municipalities","Municipalities","Municipal agencies and funds","Peace and security","Defence and state security","NAT",0,0,0,0,0,0,0,0,0,0,0,null,null,null,null,null,null,null,null,null,null,null,null,null,null,null,null,null,null,null,null,null,null,null,null,null,null,null,null,null,null,null,null,null,null,{"$f":"Dataset[[#This Row],[2024/25 From - Spending review Topic 1]]+Dataset[[#This Row],[2024/25 From - Spending review Topic 2]]+Dataset[[#This Row],[2024/25 From - Spending review Topic 3]]+Dataset[[#This Row],[2024/25 From - Spending review Topic 4]]+Dataset[[#This Row],[2024/25 From - Other reallocations]]","v":0},{"$f":"Dataset[[#This Row],[2025/26 From - Spending review Topic 1]]+Dataset[[#This Row],[2025/26 From - Spending review Topic 2]]+Dataset[[#This Row],[2025/26 From - Spending review Topic 3]]+Dataset[[#This Row],[2025/26 From - Spending review Topic 4]]+Dataset[[#This Row],[2025/26 From - Other reallocations]]","v":0},{"$f":"Dataset[[#This Row],[2026/27 From - Spending review Topic 1]]+Dataset[[#This Row],[2026/27 From - Spending review Topic 2]]+Dataset[[#This Row],[2026/27 From - Spending review Topic 3]]+Dataset[[#This Row],[2026/27 From - Spending review Topic 4]]+Dataset[[#This Row],[2026/27 From - Other reallocations]]","v":0},{"$f":"Dataset[[#This Row],[2024/25 To - Spending review Topic 1]]+Dataset[[#This Row],[2024/25 To - Spending review Topic 2]]+Dataset[[#This Row],[2024/25 To - Spending review Topic 3]]+Dataset[[#This Row],[2024/25 To - Spending review Topic 4]]+Dataset[[#This Row],[2024/25 To - Other reallocations]]","v":0},{"$f":"Dataset[[#This Row],[2025/26 To - Spending review Topic 1]]+Dataset[[#This Row],[2025/26 To - Spending review Topic 2]]+Dataset[[#This Row],[2025/26 To - Spending review Topic 3]]+Dataset[[#This Row],[2025/26 To - Spending review Topic 4]]+Dataset[[#This Row],[2025/26 To - Other reallocations]]","v":0},{"$f":"Dataset[[#This Row],[2026/27 To - Spending review Topic 1]]+Dataset[[#This Row],[2026/27 To - Spending review Topic 2]]+Dataset[[#This Row],[2026/27 To - Spending review Topic 3]]+Dataset[[#This Row],[2026/27 To - Spending review Topic 4]]+Dataset[[#This Row],[2026/27 To - Other reallocations]]","v":0},{"$f":"Dataset[[#This Row],[2024/25 Reduction]]+Dataset[[#This Row],[2024/25 From - Total]]","v":0},{"$f":"Dataset[[#This Row],[2025/26 Reduction]]+Dataset[[#This Row],[2025/26 From - Total]]","v":0},{"$f":"Dataset[[#This Row],[2026/27 Reduction]]+Dataset[[#This Row],[2026/27 From - Total]]","v":0},{"$f":"Dataset[[#This Row],[2023/24 Reduction]]","v":0},{"$f":"SUM(Dataset[[#This Row],[2024/25 Reduction]],Dataset[[#This Row],[2024/25 From - Total]],Dataset[[#This Row],[2024/25 To - Total]])","v":0},{"$f":"SUM(Dataset[[#This Row],[2025/26 Reduction]],Dataset[[#This Row],[2025/26 From - Total]],Dataset[[#This Row],[2025/26 To - Total]])","v":0},{"$f":"SUM(Dataset[[#This Row],[2026/27 Reduction]],Dataset[[#This Row],[2026/27 From - Total]],Dataset[[#This Row],[2026/27 To - Total]])","v":0},{"$f":"Dataset[[#This Row],[2023/24 Baseline]]+Dataset[[#This Row],[2023/24 Total change]]","v":0},{"$f":"Dataset[[#This Row],[2024/25 Baseline]]+Dataset[[#This Row],[2024/25 Total change]]","v":0},{"$f":"Dataset[[#This Row],[2025/26 Baseline]]+Dataset[[#This Row],[2025/26 Total change]]","v":0},{"$f":"Dataset[[#This Row],[2026/27 Baseline]]+Dataset[[#This Row],[2026/27 Total change]]","v":0}]
["NAT|Non-transfer item","26|Social security funds","2024_25","MTEF2024",26,2,1,44396,509,"26","02","01","044396","000509","26|02|01","01","02","05","45","47","01|02|05|45|47","National","Military Veterans","Socioeconomic Support","Database and Benefits Management","Non-transfer item","Current","Transfers and subsidies","Departmental agencies and accounts","Social security funds","Social security funds","Peace and security","Defence and state security","NAT",0,0,0,0,0,0,0,0,0,0,0,null,null,null,null,null,null,null,null,null,null,null,null,null,null,null,null,null,null,null,null,null,null,null,null,null,null,null,null,null,null,null,null,null,null,{"$f":"Dataset[[#This Row],[2024/25 From - Spending review Topic 1]]+Dataset[[#This Row],[2024/25 From - Spending review Topic 2]]+Dataset[[#This Row],[2024/25 From - Spending review Topic 3]]+Dataset[[#This Row],[2024/25 From - Spending review Topic 4]]+Dataset[[#This Row],[2024/25 From - Other reallocations]]","v":0},{"$f":"Dataset[[#This Row],[2025/26 From - Spending review Topic 1]]+Dataset[[#This Row],[2025/26 From - Spending review Topic 2]]+Dataset[[#This Row],[2025/26 From - Spending review Topic 3]]+Dataset[[#This Row],[2025/26 From - Spending review Topic 4]]+Dataset[[#This Row],[2025/26 From - Other reallocations]]","v":0},{"$f":"Dataset[[#This Row],[2026/27 From - Spending review Topic 1]]+Dataset[[#This Row],[2026/27 From - Spending review Topic 2]]+Dataset[[#This Row],[2026/27 From - Spending review Topic 3]]+Dataset[[#This Row],[2026/27 From - Spending review Topic 4]]+Dataset[[#This Row],[2026/27 From - Other reallocations]]","v":0},{"$f":"Dataset[[#This Row],[2024/25 To - Spending review Topic 1]]+Dataset[[#This Row],[2024/25 To - Spending review Topic 2]]+Dataset[[#This Row],[2024/25 To - Spending review Topic 3]]+Dataset[[#This Row],[2024/25 To - Spending review Topic 4]]+Dataset[[#This Row],[2024/25 To - Other reallocations]]","v":0},{"$f":"Dataset[[#This Row],[2025/26 To - Spending review Topic 1]]+Dataset[[#This Row],[2025/26 To - Spending review Topic 2]]+Dataset[[#This Row],[2025/26 To - Spending review Topic 3]]+Dataset[[#This Row],[2025/26 To - Spending review Topic 4]]+Dataset[[#This Row],[2025/26 To - Other reallocations]]","v":0},{"$f":"Dataset[[#This Row],[2026/27 To - Spending review Topic 1]]+Dataset[[#This Row],[2026/27 To - Spending review Topic 2]]+Dataset[[#This Row],[2026/27 To - Spending review Topic 3]]+Dataset[[#This Row],[2026/27 To - Spending review Topic 4]]+Dataset[[#This Row],[2026/27 To - Other reallocations]]","v":0},{"$f":"Dataset[[#This Row],[2024/25 Reduction]]+Dataset[[#This Row],[2024/25 From - Total]]","v":0},{"$f":"Dataset[[#This Row],[2025/26 Reduction]]+Dataset[[#This Row],[2025/26 From - Total]]","v":0},{"$f":"Dataset[[#This Row],[2026/27 Reduction]]+Dataset[[#This Row],[2026/27 From - Total]]","v":0},{"$f":"Dataset[[#This Row],[2023/24 Reduction]]","v":0},{"$f":"SUM(Dataset[[#This Row],[2024/25 Reduction]],Dataset[[#This Row],[2024/25 From - Total]],Dataset[[#This Row],[2024/25 To - Total]])","v":0},{"$f":"SUM(Dataset[[#This Row],[2025/26 Reduction]],Dataset[[#This Row],[2025/26 From - Total]],Dataset[[#This Row],[2025/26 To - Total]])","v":0},{"$f":"SUM(Dataset[[#This Row],[2026/27 Reduction]],Dataset[[#This Row],[2026/27 From - Total]],Dataset[[#This Row],[2026/27 To - Total]])","v":0},{"$f":"Dataset[[#This Row],[2023/24 Baseline]]+Dataset[[#This Row],[2023/24 Total change]]","v":0},{"$f":"Dataset[[#This Row],[2024/25 Baseline]]+Dataset[[#This Row],[2024/25 Total change]]","v":0},{"$f":"Dataset[[#This Row],[2025/26 Baseline]]+Dataset[[#This Row],[2025/26 Total change]]","v":0},{"$f":"Dataset[[#This Row],[2026/27 Baseline]]+Dataset[[#This Row],[2026/27 Total change]]","v":0}]
["NAT|Non-transfer item","26|Departmental agencies (non-business entities)","2024_25","MTEF2024",26,2,1,44397,510,"26","02","01","044397","000510","26|02|01","01","02","05","46","48","01|02|05|46|48","National","Military Veterans","Socioeconomic Support","Database and Benefits Management","Non-transfer item","Current","Transfers and subsidies","Departmental agencies and accounts","Departmental agencies (non-business entities)","Departmental agencies (non-business entities)","Peace and security","Defence and state security","NAT",0,0,0,0,0,0,0,0,0,0,0,null,null,null,null,null,null,null,null,null,null,null,null,null,null,null,null,null,null,null,null,null,null,null,null,null,null,null,null,null,null,null,null,null,null,{"$f":"Dataset[[#This Row],[2024/25 From - Spending review Topic 1]]+Dataset[[#This Row],[2024/25 From - Spending review Topic 2]]+Dataset[[#This Row],[2024/25 From - Spending review Topic 3]]+Dataset[[#This Row],[2024/25 From - Spending review Topic 4]]+Dataset[[#This Row],[2024/25 From - Other reallocations]]","v":0},{"$f":"Dataset[[#This Row],[2025/26 From - Spending review Topic 1]]+Dataset[[#This Row],[2025/26 From - Spending review Topic 2]]+Dataset[[#This Row],[2025/26 From - Spending review Topic 3]]+Dataset[[#This Row],[2025/26 From - Spending review Topic 4]]+Dataset[[#This Row],[2025/26 From - Other reallocations]]","v":0},{"$f":"Dataset[[#This Row],[2026/27 From - Spending review Topic 1]]+Dataset[[#This Row],[2026/27 From - Spending review Topic 2]]+Dataset[[#This Row],[2026/27 From - Spending review Topic 3]]+Dataset[[#This Row],[2026/27 From - Spending review Topic 4]]+Dataset[[#This Row],[2026/27 From - Other reallocations]]","v":0},{"$f":"Dataset[[#This Row],[2024/25 To - Spending review Topic 1]]+Dataset[[#This Row],[2024/25 To - Spending review Topic 2]]+Dataset[[#This Row],[2024/25 To - Spending review Topic 3]]+Dataset[[#This Row],[2024/25 To - Spending review Topic 4]]+Dataset[[#This Row],[2024/25 To - Other reallocations]]","v":0},{"$f":"Dataset[[#This Row],[2025/26 To - Spending review Topic 1]]+Dataset[[#This Row],[2025/26 To - Spending review Topic 2]]+Dataset[[#This Row],[2025/26 To - Spending review Topic 3]]+Dataset[[#This Row],[2025/26 To - Spending review Topic 4]]+Dataset[[#This Row],[2025/26 To - Other reallocations]]","v":0},{"$f":"Dataset[[#This Row],[2026/27 To - Spending review Topic 1]]+Dataset[[#This Row],[2026/27 To - Spending review Topic 2]]+Dataset[[#This Row],[2026/27 To - Spending review Topic 3]]+Dataset[[#This Row],[2026/27 To - Spending review Topic 4]]+Dataset[[#This Row],[2026/27 To - Other reallocations]]","v":0},{"$f":"Dataset[[#This Row],[2024/25 Reduction]]+Dataset[[#This Row],[2024/25 From - Total]]","v":0},{"$f":"Dataset[[#This Row],[2025/26 Reduction]]+Dataset[[#This Row],[2025/26 From - Total]]","v":0},{"$f":"Dataset[[#This Row],[2026/27 Reduction]]+Dataset[[#This Row],[2026/27 From - Total]]","v":0},{"$f":"Dataset[[#This Row],[2023/24 Reduction]]","v":0},{"$f":"SUM(Dataset[[#This Row],[2024/25 Reduction]],Dataset[[#This Row],[2024/25 From - Total]],Dataset[[#This Row],[2024/25 To - Total]])","v":0},{"$f":"SUM(Dataset[[#This Row],[2025/26 Reduction]],Dataset[[#This Row],[2025/26 From - Total]],Dataset[[#This Row],[2025/26 To - Total]])","v":0},{"$f":"SUM(Dataset[[#This Row],[2026/27 Reduction]],Dataset[[#This Row],[2026/27 From - Total]],Dataset[[#This Row],[2026/27 To - Total]])","v":0},{"$f":"Dataset[[#This Row],[2023/24 Baseline]]+Dataset[[#This Row],[2023/24 Total change]]","v":0},{"$f":"Dataset[[#This Row],[2024/25 Baseline]]+Dataset[[#This Row],[2024/25 Total change]]","v":0},{"$f":"Dataset[[#This Row],[2025/26 Baseline]]+Dataset[[#This Row],[2025/26 Total change]]","v":0},{"$f":"Dataset[[#This Row],[2026/27 Baseline]]+Dataset[[#This Row],[2026/27 Total change]]","v":0}]
["NAT|Non-transfer item","26|Higher education institutions","2024_25","MTEF2024",26,2,1,44398,511,"26","02","01","044398","000511","26|02|01","01","02","06","47","49","01|02|06|47|49","National","Military Veterans","Socioeconomic Support","Database and Benefits Management","Non-transfer item","Current","Transfers and subsidies","Higher education institutions","Higher education institutions","Higher education institutions","Peace and security","Defence and state security","NAT",0,0,0,0,0,0,0,0,0,0,0,null,null,null,null,null,null,null,null,null,null,null,null,null,null,null,null,null,null,null,null,null,null,null,null,null,null,null,null,null,null,null,null,null,null,{"$f":"Dataset[[#This Row],[2024/25 From - Spending review Topic 1]]+Dataset[[#This Row],[2024/25 From - Spending review Topic 2]]+Dataset[[#This Row],[2024/25 From - Spending review Topic 3]]+Dataset[[#This Row],[2024/25 From - Spending review Topic 4]]+Dataset[[#This Row],[2024/25 From - Other reallocations]]","v":0},{"$f":"Dataset[[#This Row],[2025/26 From - Spending review Topic 1]]+Dataset[[#This Row],[2025/26 From - Spending review Topic 2]]+Dataset[[#This Row],[2025/26 From - Spending review Topic 3]]+Dataset[[#This Row],[2025/26 From - Spending review Topic 4]]+Dataset[[#This Row],[2025/26 From - Other reallocations]]","v":0},{"$f":"Dataset[[#This Row],[2026/27 From - Spending review Topic 1]]+Dataset[[#This Row],[2026/27 From - Spending review Topic 2]]+Dataset[[#This Row],[2026/27 From - Spending review Topic 3]]+Dataset[[#This Row],[2026/27 From - Spending review Topic 4]]+Dataset[[#This Row],[2026/27 From - Other reallocations]]","v":0},{"$f":"Dataset[[#This Row],[2024/25 To - Spending review Topic 1]]+Dataset[[#This Row],[2024/25 To - Spending review Topic 2]]+Dataset[[#This Row],[2024/25 To - Spending review Topic 3]]+Dataset[[#This Row],[2024/25 To - Spending review Topic 4]]+Dataset[[#This Row],[2024/25 To - Other reallocations]]","v":0},{"$f":"Dataset[[#This Row],[2025/26 To - Spending review Topic 1]]+Dataset[[#This Row],[2025/26 To - Spending review Topic 2]]+Dataset[[#This Row],[2025/26 To - Spending review Topic 3]]+Dataset[[#This Row],[2025/26 To - Spending review Topic 4]]+Dataset[[#This Row],[2025/26 To - Other reallocations]]","v":0},{"$f":"Dataset[[#This Row],[2026/27 To - Spending review Topic 1]]+Dataset[[#This Row],[2026/27 To - Spending review Topic 2]]+Dataset[[#This Row],[2026/27 To - Spending review Topic 3]]+Dataset[[#This Row],[2026/27 To - Spending review Topic 4]]+Dataset[[#This Row],[2026/27 To - Other reallocations]]","v":0},{"$f":"Dataset[[#This Row],[2024/25 Reduction]]+Dataset[[#This Row],[2024/25 From - Total]]","v":0},{"$f":"Dataset[[#This Row],[2025/26 Reduction]]+Dataset[[#This Row],[2025/26 From - Total]]","v":0},{"$f":"Dataset[[#This Row],[2026/27 Reduction]]+Dataset[[#This Row],[2026/27 From - Total]]","v":0},{"$f":"Dataset[[#This Row],[2023/24 Reduction]]","v":0},{"$f":"SUM(Dataset[[#This Row],[2024/25 Reduction]],Dataset[[#This Row],[2024/25 From - Total]],Dataset[[#This Row],[2024/25 To - Total]])","v":0},{"$f":"SUM(Dataset[[#This Row],[2025/26 Reduction]],Dataset[[#This Row],[2025/26 From - Total]],Dataset[[#This Row],[2025/26 To - Total]])","v":0},{"$f":"SUM(Dataset[[#This Row],[2026/27 Reduction]],Dataset[[#This Row],[2026/27 From - Total]],Dataset[[#This Row],[2026/27 To - Total]])","v":0},{"$f":"Dataset[[#This Row],[2023/24 Baseline]]+Dataset[[#This Row],[2023/24 Total change]]","v":0},{"$f":"Dataset[[#This Row],[2024/25 Baseline]]+Dataset[[#This Row],[2024/25 Total change]]","v":0},{"$f":"Dataset[[#This Row],[2025/26 Baseline]]+Dataset[[#This Row],[2025/26 Total change]]","v":0},{"$f":"Dataset[[#This Row],[2026/27 Baseline]]+Dataset[[#This Row],[2026/27 Total change]]","v":0}]
["NAT|Non-transfer item","26|Foreign governments and international organisations","2024_25","MTEF2024",26,2,1,44399,512,"26","02","01","044399","000512","26|02|01","01","02","07","48","50","01|02|07|48|50","National","Military Veterans","Socioeconomic Support","Database and Benefits Management","Non-transfer item","Current","Transfers and subsidies","Foreign governments and international organisations","Foreign governments and international organisations","Foreign governments and international organisations","Peace and security","Defence and state security","NAT",0,0,0,0,0,0,0,0,0,0,0,null,null,null,null,null,null,null,null,null,null,null,null,null,null,null,null,null,null,null,null,null,null,null,null,null,null,null,null,null,null,null,null,null,null,{"$f":"Dataset[[#This Row],[2024/25 From - Spending review Topic 1]]+Dataset[[#This Row],[2024/25 From - Spending review Topic 2]]+Dataset[[#This Row],[2024/25 From - Spending review Topic 3]]+Dataset[[#This Row],[2024/25 From - Spending review Topic 4]]+Dataset[[#This Row],[2024/25 From - Other reallocations]]","v":0},{"$f":"Dataset[[#This Row],[2025/26 From - Spending review Topic 1]]+Dataset[[#This Row],[2025/26 From - Spending review Topic 2]]+Dataset[[#This Row],[2025/26 From - Spending review Topic 3]]+Dataset[[#This Row],[2025/26 From - Spending review Topic 4]]+Dataset[[#This Row],[2025/26 From - Other reallocations]]","v":0},{"$f":"Dataset[[#This Row],[2026/27 From - Spending review Topic 1]]+Dataset[[#This Row],[2026/27 From - Spending review Topic 2]]+Dataset[[#This Row],[2026/27 From - Spending review Topic 3]]+Dataset[[#This Row],[2026/27 From - Spending review Topic 4]]+Dataset[[#This Row],[2026/27 From - Other reallocations]]","v":0},{"$f":"Dataset[[#This Row],[2024/25 To - Spending review Topic 1]]+Dataset[[#This Row],[2024/25 To - Spending review Topic 2]]+Dataset[[#This Row],[2024/25 To - Spending review Topic 3]]+Dataset[[#This Row],[2024/25 To - Spending review Topic 4]]+Dataset[[#This Row],[2024/25 To - Other reallocations]]","v":0},{"$f":"Dataset[[#This Row],[2025/26 To - Spending review Topic 1]]+Dataset[[#This Row],[2025/26 To - Spending review Topic 2]]+Dataset[[#This Row],[2025/26 To - Spending review Topic 3]]+Dataset[[#This Row],[2025/26 To - Spending review Topic 4]]+Dataset[[#This Row],[2025/26 To - Other reallocations]]","v":0},{"$f":"Dataset[[#This Row],[2026/27 To - Spending review Topic 1]]+Dataset[[#This Row],[2026/27 To - Spending review Topic 2]]+Dataset[[#This Row],[2026/27 To - Spending review Topic 3]]+Dataset[[#This Row],[2026/27 To - Spending review Topic 4]]+Dataset[[#This Row],[2026/27 To - Other reallocations]]","v":0},{"$f":"Dataset[[#This Row],[2024/25 Reduction]]+Dataset[[#This Row],[2024/25 From - Total]]","v":0},{"$f":"Dataset[[#This Row],[2025/26 Reduction]]+Dataset[[#This Row],[2025/26 From - Total]]","v":0},{"$f":"Dataset[[#This Row],[2026/27 Reduction]]+Dataset[[#This Row],[2026/27 From - Total]]","v":0},{"$f":"Dataset[[#This Row],[2023/24 Reduction]]","v":0},{"$f":"SUM(Dataset[[#This Row],[2024/25 Reduction]],Dataset[[#This Row],[2024/25 From - Total]],Dataset[[#This Row],[2024/25 To - Total]])","v":0},{"$f":"SUM(Dataset[[#This Row],[2025/26 Reduction]],Dataset[[#This Row],[2025/26 From - Total]],Dataset[[#This Row],[2025/26 To - Total]])","v":0},{"$f":"SUM(Dataset[[#This Row],[2026/27 Reduction]],Dataset[[#This Row],[2026/27 From - Total]],Dataset[[#This Row],[2026/27 To - Total]])","v":0},{"$f":"Dataset[[#This Row],[2023/24 Baseline]]+Dataset[[#This Row],[2023/24 Total change]]","v":0},{"$f":"Dataset[[#This Row],[2024/25 Baseline]]+Dataset[[#This Row],[2024/25 Total change]]","v":0},{"$f":"Dataset[[#This Row],[2025/26 Baseline]]+Dataset[[#This Row],[2025/26 Total change]]","v":0},{"$f":"Dataset[[#This Row],[2026/27 Baseline]]+Dataset[[#This Row],[2026/27 Total change]]","v":0}]
["NAT|Non-transfer item","26|Subsidies on products and production (pc)","2024_25","MTEF2024",26,2,1,44400,513,"26","02","01","044400","000513","26|02|01","01","02","08","49","51","01|02|08|49|51","National","Military Veterans","Socioeconomic Support","Database and Benefits Management","Non-transfer item","Current","Transfers and subsidies","Public corporations and private enterprises","Public corporations","Subsidies on products and production (pc)","Peace and security","Defence and state security","NAT",0,0,0,0,0,0,0,0,0,0,0,null,null,null,null,null,null,null,null,null,null,null,null,null,null,null,null,null,null,null,null,null,null,null,null,null,null,null,null,null,null,null,null,null,null,{"$f":"Dataset[[#This Row],[2024/25 From - Spending review Topic 1]]+Dataset[[#This Row],[2024/25 From - Spending review Topic 2]]+Dataset[[#This Row],[2024/25 From - Spending review Topic 3]]+Dataset[[#This Row],[2024/25 From - Spending review Topic 4]]+Dataset[[#This Row],[2024/25 From - Other reallocations]]","v":0},{"$f":"Dataset[[#This Row],[2025/26 From - Spending review Topic 1]]+Dataset[[#This Row],[2025/26 From - Spending review Topic 2]]+Dataset[[#This Row],[2025/26 From - Spending review Topic 3]]+Dataset[[#This Row],[2025/26 From - Spending review Topic 4]]+Dataset[[#This Row],[2025/26 From - Other reallocations]]","v":0},{"$f":"Dataset[[#This Row],[2026/27 From - Spending review Topic 1]]+Dataset[[#This Row],[2026/27 From - Spending review Topic 2]]+Dataset[[#This Row],[2026/27 From - Spending review Topic 3]]+Dataset[[#This Row],[2026/27 From - Spending review Topic 4]]+Dataset[[#This Row],[2026/27 From - Other reallocations]]","v":0},{"$f":"Dataset[[#This Row],[2024/25 To - Spending review Topic 1]]+Dataset[[#This Row],[2024/25 To - Spending review Topic 2]]+Dataset[[#This Row],[2024/25 To - Spending review Topic 3]]+Dataset[[#This Row],[2024/25 To - Spending review Topic 4]]+Dataset[[#This Row],[2024/25 To - Other reallocations]]","v":0},{"$f":"Dataset[[#This Row],[2025/26 To - Spending review Topic 1]]+Dataset[[#This Row],[2025/26 To - Spending review Topic 2]]+Dataset[[#This Row],[2025/26 To - Spending review Topic 3]]+Dataset[[#This Row],[2025/26 To - Spending review Topic 4]]+Dataset[[#This Row],[2025/26 To - Other reallocations]]","v":0},{"$f":"Dataset[[#This Row],[2026/27 To - Spending review Topic 1]]+Dataset[[#This Row],[2026/27 To - Spending review Topic 2]]+Dataset[[#This Row],[2026/27 To - Spending review Topic 3]]+Dataset[[#This Row],[2026/27 To - Spending review Topic 4]]+Dataset[[#This Row],[2026/27 To - Other reallocations]]","v":0},{"$f":"Dataset[[#This Row],[2024/25 Reduction]]+Dataset[[#This Row],[2024/25 From - Total]]","v":0},{"$f":"Dataset[[#This Row],[2025/26 Reduction]]+Dataset[[#This Row],[2025/26 From - Total]]","v":0},{"$f":"Dataset[[#This Row],[2026/27 Reduction]]+Dataset[[#This Row],[2026/27 From - Total]]","v":0},{"$f":"Dataset[[#This Row],[2023/24 Reduction]]","v":0},{"$f":"SUM(Dataset[[#This Row],[2024/25 Reduction]],Dataset[[#This Row],[2024/25 From - Total]],Dataset[[#This Row],[2024/25 To - Total]])","v":0},{"$f":"SUM(Dataset[[#This Row],[2025/26 Reduction]],Dataset[[#This Row],[2025/26 From - Total]],Dataset[[#This Row],[2025/26 To - Total]])","v":0},{"$f":"SUM(Dataset[[#This Row],[2026/27 Reduction]],Dataset[[#This Row],[2026/27 From - Total]],Dataset[[#This Row],[2026/27 To - Total]])","v":0},{"$f":"Dataset[[#This Row],[2023/24 Baseline]]+Dataset[[#This Row],[2023/24 Total change]]","v":0},{"$f":"Dataset[[#This Row],[2024/25 Baseline]]+Dataset[[#This Row],[2024/25 Total change]]","v":0},{"$f":"Dataset[[#This Row],[2025/26 Baseline]]+Dataset[[#This Row],[2025/26 Total change]]","v":0},{"$f":"Dataset[[#This Row],[2026/27 Baseline]]+Dataset[[#This Row],[2026/27 Total change]]","v":0}]
["NAT|Non-transfer item","26|Other transfers to public corporations","2024_25","MTEF2024",26,2,1,44401,514,"26","02","01","044401","000514","26|02|01","01","02","08","49","52","01|02|08|49|52","National","Military Veterans","Socioeconomic Support","Database and Benefits Management","Non-transfer item","Current","Transfers and subsidies","Public corporations and private enterprises","Public corporations","Other transfers to public corporations","Peace and security","Defence and state security","NAT",0,0,0,0,0,0,0,0,0,0,0,null,null,null,null,null,null,null,null,null,null,null,null,null,null,null,null,null,null,null,null,null,null,null,null,null,null,null,null,null,null,null,null,null,null,{"$f":"Dataset[[#This Row],[2024/25 From - Spending review Topic 1]]+Dataset[[#This Row],[2024/25 From - Spending review Topic 2]]+Dataset[[#This Row],[2024/25 From - Spending review Topic 3]]+Dataset[[#This Row],[2024/25 From - Spending review Topic 4]]+Dataset[[#This Row],[2024/25 From - Other reallocations]]","v":0},{"$f":"Dataset[[#This Row],[2025/26 From - Spending review Topic 1]]+Dataset[[#This Row],[2025/26 From - Spending review Topic 2]]+Dataset[[#This Row],[2025/26 From - Spending review Topic 3]]+Dataset[[#This Row],[2025/26 From - Spending review Topic 4]]+Dataset[[#This Row],[2025/26 From - Other reallocations]]","v":0},{"$f":"Dataset[[#This Row],[2026/27 From - Spending review Topic 1]]+Dataset[[#This Row],[2026/27 From - Spending review Topic 2]]+Dataset[[#This Row],[2026/27 From - Spending review Topic 3]]+Dataset[[#This Row],[2026/27 From - Spending review Topic 4]]+Dataset[[#This Row],[2026/27 From - Other reallocations]]","v":0},{"$f":"Dataset[[#This Row],[2024/25 To - Spending review Topic 1]]+Dataset[[#This Row],[2024/25 To - Spending review Topic 2]]+Dataset[[#This Row],[2024/25 To - Spending review Topic 3]]+Dataset[[#This Row],[2024/25 To - Spending review Topic 4]]+Dataset[[#This Row],[2024/25 To - Other reallocations]]","v":0},{"$f":"Dataset[[#This Row],[2025/26 To - Spending review Topic 1]]+Dataset[[#This Row],[2025/26 To - Spending review Topic 2]]+Dataset[[#This Row],[2025/26 To - Spending review Topic 3]]+Dataset[[#This Row],[2025/26 To - Spending review Topic 4]]+Dataset[[#This Row],[2025/26 To - Other reallocations]]","v":0},{"$f":"Dataset[[#This Row],[2026/27 To - Spending review Topic 1]]+Dataset[[#This Row],[2026/27 To - Spending review Topic 2]]+Dataset[[#This Row],[2026/27 To - Spending review Topic 3]]+Dataset[[#This Row],[2026/27 To - Spending review Topic 4]]+Dataset[[#This Row],[2026/27 To - Other reallocations]]","v":0},{"$f":"Dataset[[#This Row],[2024/25 Reduction]]+Dataset[[#This Row],[2024/25 From - Total]]","v":0},{"$f":"Dataset[[#This Row],[2025/26 Reduction]]+Dataset[[#This Row],[2025/26 From - Total]]","v":0},{"$f":"Dataset[[#This Row],[2026/27 Reduction]]+Dataset[[#This Row],[2026/27 From - Total]]","v":0},{"$f":"Dataset[[#This Row],[2023/24 Reduction]]","v":0},{"$f":"SUM(Dataset[[#This Row],[2024/25 Reduction]],Dataset[[#This Row],[2024/25 From - Total]],Dataset[[#This Row],[2024/25 To - Total]])","v":0},{"$f":"SUM(Dataset[[#This Row],[2025/26 Reduction]],Dataset[[#This Row],[2025/26 From - Total]],Dataset[[#This Row],[2025/26 To - Total]])","v":0},{"$f":"SUM(Dataset[[#This Row],[2026/27 Reduction]],Dataset[[#This Row],[2026/27 From - Total]],Dataset[[#This Row],[2026/27 To - Total]])","v":0},{"$f":"Dataset[[#This Row],[2023/24 Baseline]]+Dataset[[#This Row],[2023/24 Total change]]","v":0},{"$f":"Dataset[[#This Row],[2024/25 Baseline]]+Dataset[[#This Row],[2024/25 Total change]]","v":0},{"$f":"Dataset[[#This Row],[2025/26 Baseline]]+Dataset[[#This Row],[2025/26 Total change]]","v":0},{"$f":"Dataset[[#This Row],[2026/27 Baseline]]+Dataset[[#This Row],[2026/27 Total change]]","v":0}]
["NAT|Non-transfer item","26|Subsidies on products and production (pe)","2024_25","MTEF2024",26,2,1,44402,515,"26","02","01","044402","000515","26|02|01","01","02","08","50","53","01|02|08|50|53","National","Military Veterans","Socioeconomic Support","Database and Benefits Management","Non-transfer item","Current","Transfers and subsidies","Public corporations and private enterprises","Private enterprises","Subsidies on products and production (pe)","Peace and security","Defence and state security","NAT",0,0,0,0,0,0,0,0,0,0,0,null,null,null,null,null,null,null,null,null,null,null,null,null,null,null,null,null,null,null,null,null,null,null,null,null,null,null,null,null,null,null,null,null,null,{"$f":"Dataset[[#This Row],[2024/25 From - Spending review Topic 1]]+Dataset[[#This Row],[2024/25 From - Spending review Topic 2]]+Dataset[[#This Row],[2024/25 From - Spending review Topic 3]]+Dataset[[#This Row],[2024/25 From - Spending review Topic 4]]+Dataset[[#This Row],[2024/25 From - Other reallocations]]","v":0},{"$f":"Dataset[[#This Row],[2025/26 From - Spending review Topic 1]]+Dataset[[#This Row],[2025/26 From - Spending review Topic 2]]+Dataset[[#This Row],[2025/26 From - Spending review Topic 3]]+Dataset[[#This Row],[2025/26 From - Spending review Topic 4]]+Dataset[[#This Row],[2025/26 From - Other reallocations]]","v":0},{"$f":"Dataset[[#This Row],[2026/27 From - Spending review Topic 1]]+Dataset[[#This Row],[2026/27 From - Spending review Topic 2]]+Dataset[[#This Row],[2026/27 From - Spending review Topic 3]]+Dataset[[#This Row],[2026/27 From - Spending review Topic 4]]+Dataset[[#This Row],[2026/27 From - Other reallocations]]","v":0},{"$f":"Dataset[[#This Row],[2024/25 To - Spending review Topic 1]]+Dataset[[#This Row],[2024/25 To - Spending review Topic 2]]+Dataset[[#This Row],[2024/25 To - Spending review Topic 3]]+Dataset[[#This Row],[2024/25 To - Spending review Topic 4]]+Dataset[[#This Row],[2024/25 To - Other reallocations]]","v":0},{"$f":"Dataset[[#This Row],[2025/26 To - Spending review Topic 1]]+Dataset[[#This Row],[2025/26 To - Spending review Topic 2]]+Dataset[[#This Row],[2025/26 To - Spending review Topic 3]]+Dataset[[#This Row],[2025/26 To - Spending review Topic 4]]+Dataset[[#This Row],[2025/26 To - Other reallocations]]","v":0},{"$f":"Dataset[[#This Row],[2026/27 To - Spending review Topic 1]]+Dataset[[#This Row],[2026/27 To - Spending review Topic 2]]+Dataset[[#This Row],[2026/27 To - Spending review Topic 3]]+Dataset[[#This Row],[2026/27 To - Spending review Topic 4]]+Dataset[[#This Row],[2026/27 To - Other reallocations]]","v":0},{"$f":"Dataset[[#This Row],[2024/25 Reduction]]+Dataset[[#This Row],[2024/25 From - Total]]","v":0},{"$f":"Dataset[[#This Row],[2025/26 Reduction]]+Dataset[[#This Row],[2025/26 From - Total]]","v":0},{"$f":"Dataset[[#This Row],[2026/27 Reduction]]+Dataset[[#This Row],[2026/27 From - Total]]","v":0},{"$f":"Dataset[[#This Row],[2023/24 Reduction]]","v":0},{"$f":"SUM(Dataset[[#This Row],[2024/25 Reduction]],Dataset[[#This Row],[2024/25 From - Total]],Dataset[[#This Row],[2024/25 To - Total]])","v":0},{"$f":"SUM(Dataset[[#This Row],[2025/26 Reduction]],Dataset[[#This Row],[2025/26 From - Total]],Dataset[[#This Row],[2025/26 To - Total]])","v":0},{"$f":"SUM(Dataset[[#This Row],[2026/27 Reduction]],Dataset[[#This Row],[2026/27 From - Total]],Dataset[[#This Row],[2026/27 To - Total]])","v":0},{"$f":"Dataset[[#This Row],[2023/24 Baseline]]+Dataset[[#This Row],[2023/24 Total change]]","v":0},{"$f":"Dataset[[#This Row],[2024/25 Baseline]]+Dataset[[#This Row],[2024/25 Total change]]","v":0},{"$f":"Dataset[[#This Row],[2025/26 Baseline]]+Dataset[[#This Row],[2025/26 Total change]]","v":0},{"$f":"Dataset[[#This Row],[2026/27 Baseline]]+Dataset[[#This Row],[2026/27 Total change]]","v":0}]
["NAT|Non-transfer item","26|Other transfers to private enterprises","2024_25","MTEF2024",26,2,1,44403,516,"26","02","01","044403","000516","26|02|01","01","02","08","50","54","01|02|08|50|54","National","Military Veterans","Socioeconomic Support","Database and Benefits Management","Non-transfer item","Current","Transfers and subsidies","Public corporations and private enterprises","Private enterprises","Other transfers to private enterprises","Peace and security","Defence and state security","NAT",0,0,0,0,0,0,0,0,0,0,0,null,null,null,null,null,null,null,null,null,null,null,null,null,null,null,null,null,null,null,null,null,null,null,null,null,null,null,null,null,null,null,null,null,null,{"$f":"Dataset[[#This Row],[2024/25 From - Spending review Topic 1]]+Dataset[[#This Row],[2024/25 From - Spending review Topic 2]]+Dataset[[#This Row],[2024/25 From - Spending review Topic 3]]+Dataset[[#This Row],[2024/25 From - Spending review Topic 4]]+Dataset[[#This Row],[2024/25 From - Other reallocations]]","v":0},{"$f":"Dataset[[#This Row],[2025/26 From - Spending review Topic 1]]+Dataset[[#This Row],[2025/26 From - Spending review Topic 2]]+Dataset[[#This Row],[2025/26 From - Spending review Topic 3]]+Dataset[[#This Row],[2025/26 From - Spending review Topic 4]]+Dataset[[#This Row],[2025/26 From - Other reallocations]]","v":0},{"$f":"Dataset[[#This Row],[2026/27 From - Spending review Topic 1]]+Dataset[[#This Row],[2026/27 From - Spending review Topic 2]]+Dataset[[#This Row],[2026/27 From - Spending review Topic 3]]+Dataset[[#This Row],[2026/27 From - Spending review Topic 4]]+Dataset[[#This Row],[2026/27 From - Other reallocations]]","v":0},{"$f":"Dataset[[#This Row],[2024/25 To - Spending review Topic 1]]+Dataset[[#This Row],[2024/25 To - Spending review Topic 2]]+Dataset[[#This Row],[2024/25 To - Spending review Topic 3]]+Dataset[[#This Row],[2024/25 To - Spending review Topic 4]]+Dataset[[#This Row],[2024/25 To - Other reallocations]]","v":0},{"$f":"Dataset[[#This Row],[2025/26 To - Spending review Topic 1]]+Dataset[[#This Row],[2025/26 To - Spending review Topic 2]]+Dataset[[#This Row],[2025/26 To - Spending review Topic 3]]+Dataset[[#This Row],[2025/26 To - Spending review Topic 4]]+Dataset[[#This Row],[2025/26 To - Other reallocations]]","v":0},{"$f":"Dataset[[#This Row],[2026/27 To - Spending review Topic 1]]+Dataset[[#This Row],[2026/27 To - Spending review Topic 2]]+Dataset[[#This Row],[2026/27 To - Spending review Topic 3]]+Dataset[[#This Row],[2026/27 To - Spending review Topic 4]]+Dataset[[#This Row],[2026/27 To - Other reallocations]]","v":0},{"$f":"Dataset[[#This Row],[2024/25 Reduction]]+Dataset[[#This Row],[2024/25 From - Total]]","v":0},{"$f":"Dataset[[#This Row],[2025/26 Reduction]]+Dataset[[#This Row],[2025/26 From - Total]]","v":0},{"$f":"Dataset[[#This Row],[2026/27 Reduction]]+Dataset[[#This Row],[2026/27 From - Total]]","v":0},{"$f":"Dataset[[#This Row],[2023/24 Reduction]]","v":0},{"$f":"SUM(Dataset[[#This Row],[2024/25 Reduction]],Dataset[[#This Row],[2024/25 From - Total]],Dataset[[#This Row],[2024/25 To - Total]])","v":0},{"$f":"SUM(Dataset[[#This Row],[2025/26 Reduction]],Dataset[[#This Row],[2025/26 From - Total]],Dataset[[#This Row],[2025/26 To - Total]])","v":0},{"$f":"SUM(Dataset[[#This Row],[2026/27 Reduction]],Dataset[[#This Row],[2026/27 From - Total]],Dataset[[#This Row],[2026/27 To - Total]])","v":0},{"$f":"Dataset[[#This Row],[2023/24 Baseline]]+Dataset[[#This Row],[2023/24 Total change]]","v":0},{"$f":"Dataset[[#This Row],[2024/25 Baseline]]+Dataset[[#This Row],[2024/25 Total change]]","v":0},{"$f":"Dataset[[#This Row],[2025/26 Baseline]]+Dataset[[#This Row],[2025/26 Total change]]","v":0},{"$f":"Dataset[[#This Row],[2026/27 Baseline]]+Dataset[[#This Row],[2026/27 Total change]]","v":0}]
["NAT|Non-transfer item","26|Non-profit institutions","2024_25","MTEF2024",26,2,1,44404,517,"26","02","01","044404","000517","26|02|01","01","02","09","51","55","01|02|09|51|55","National","Military Veterans","Socioeconomic Support","Database and Benefits Management","Non-transfer item","Current","Transfers and subsidies","Non-profit institutions","Non-profit institutions","Non-profit institutions","Peace and security","Defence and state security","NAT",0,0,0,0,0,0,0,0,0,0,0,null,null,null,null,null,null,null,null,null,null,null,null,null,null,null,null,null,null,null,null,null,null,null,null,null,null,null,null,null,null,null,null,null,null,{"$f":"Dataset[[#This Row],[2024/25 From - Spending review Topic 1]]+Dataset[[#This Row],[2024/25 From - Spending review Topic 2]]+Dataset[[#This Row],[2024/25 From - Spending review Topic 3]]+Dataset[[#This Row],[2024/25 From - Spending review Topic 4]]+Dataset[[#This Row],[2024/25 From - Other reallocations]]","v":0},{"$f":"Dataset[[#This Row],[2025/26 From - Spending review Topic 1]]+Dataset[[#This Row],[2025/26 From - Spending review Topic 2]]+Dataset[[#This Row],[2025/26 From - Spending review Topic 3]]+Dataset[[#This Row],[2025/26 From - Spending review Topic 4]]+Dataset[[#This Row],[2025/26 From - Other reallocations]]","v":0},{"$f":"Dataset[[#This Row],[2026/27 From - Spending review Topic 1]]+Dataset[[#This Row],[2026/27 From - Spending review Topic 2]]+Dataset[[#This Row],[2026/27 From - Spending review Topic 3]]+Dataset[[#This Row],[2026/27 From - Spending review Topic 4]]+Dataset[[#This Row],[2026/27 From - Other reallocations]]","v":0},{"$f":"Dataset[[#This Row],[2024/25 To - Spending review Topic 1]]+Dataset[[#This Row],[2024/25 To - Spending review Topic 2]]+Dataset[[#This Row],[2024/25 To - Spending review Topic 3]]+Dataset[[#This Row],[2024/25 To - Spending review Topic 4]]+Dataset[[#This Row],[2024/25 To - Other reallocations]]","v":0},{"$f":"Dataset[[#This Row],[2025/26 To - Spending review Topic 1]]+Dataset[[#This Row],[2025/26 To - Spending review Topic 2]]+Dataset[[#This Row],[2025/26 To - Spending review Topic 3]]+Dataset[[#This Row],[2025/26 To - Spending review Topic 4]]+Dataset[[#This Row],[2025/26 To - Other reallocations]]","v":0},{"$f":"Dataset[[#This Row],[2026/27 To - Spending review Topic 1]]+Dataset[[#This Row],[2026/27 To - Spending review Topic 2]]+Dataset[[#This Row],[2026/27 To - Spending review Topic 3]]+Dataset[[#This Row],[2026/27 To - Spending review Topic 4]]+Dataset[[#This Row],[2026/27 To - Other reallocations]]","v":0},{"$f":"Dataset[[#This Row],[2024/25 Reduction]]+Dataset[[#This Row],[2024/25 From - Total]]","v":0},{"$f":"Dataset[[#This Row],[2025/26 Reduction]]+Dataset[[#This Row],[2025/26 From - Total]]","v":0},{"$f":"Dataset[[#This Row],[2026/27 Reduction]]+Dataset[[#This Row],[2026/27 From - Total]]","v":0},{"$f":"Dataset[[#This Row],[2023/24 Reduction]]","v":0},{"$f":"SUM(Dataset[[#This Row],[2024/25 Reduction]],Dataset[[#This Row],[2024/25 From - Total]],Dataset[[#This Row],[2024/25 To - Total]])","v":0},{"$f":"SUM(Dataset[[#This Row],[2025/26 Reduction]],Dataset[[#This Row],[2025/26 From - Total]],Dataset[[#This Row],[2025/26 To - Total]])","v":0},{"$f":"SUM(Dataset[[#This Row],[2026/27 Reduction]],Dataset[[#This Row],[2026/27 From - Total]],Dataset[[#This Row],[2026/27 To - Total]])","v":0},{"$f":"Dataset[[#This Row],[2023/24 Baseline]]+Dataset[[#This Row],[2023/24 Total change]]","v":0},{"$f":"Dataset[[#This Row],[2024/25 Baseline]]+Dataset[[#This Row],[2024/25 Total change]]","v":0},{"$f":"Dataset[[#This Row],[2025/26 Baseline]]+Dataset[[#This Row],[2025/26 Total change]]","v":0},{"$f":"Dataset[[#This Row],[2026/27 Baseline]]+Dataset[[#This Row],[2026/27 Total change]]","v":0}]
["NAT|Non-transfer item","26|Social benefits","2024_25","MTEF2024",26,2,1,44405,518,"26","02","01","044405","000518","26|02|01","01","02","10","52","56","01|02|10|52|56","National","Military Veterans","Socioeconomic Support","Database and Benefits Management","Non-transfer item","Current","Transfers and subsidies","Households","Social benefits","Social benefits","Peace and security","Defence and state security","NAT",0,0,0,0,0,0,0,0,0,0,0,null,null,null,null,null,null,null,null,null,null,null,null,null,null,null,null,null,null,null,null,null,null,null,null,null,null,null,null,null,null,null,null,null,null,{"$f":"Dataset[[#This Row],[2024/25 From - Spending review Topic 1]]+Dataset[[#This Row],[2024/25 From - Spending review Topic 2]]+Dataset[[#This Row],[2024/25 From - Spending review Topic 3]]+Dataset[[#This Row],[2024/25 From - Spending review Topic 4]]+Dataset[[#This Row],[2024/25 From - Other reallocations]]","v":0},{"$f":"Dataset[[#This Row],[2025/26 From - Spending review Topic 1]]+Dataset[[#This Row],[2025/26 From - Spending review Topic 2]]+Dataset[[#This Row],[2025/26 From - Spending review Topic 3]]+Dataset[[#This Row],[2025/26 From - Spending review Topic 4]]+Dataset[[#This Row],[2025/26 From - Other reallocations]]","v":0},{"$f":"Dataset[[#This Row],[2026/27 From - Spending review Topic 1]]+Dataset[[#This Row],[2026/27 From - Spending review Topic 2]]+Dataset[[#This Row],[2026/27 From - Spending review Topic 3]]+Dataset[[#This Row],[2026/27 From - Spending review Topic 4]]+Dataset[[#This Row],[2026/27 From - Other reallocations]]","v":0},{"$f":"Dataset[[#This Row],[2024/25 To - Spending review Topic 1]]+Dataset[[#This Row],[2024/25 To - Spending review Topic 2]]+Dataset[[#This Row],[2024/25 To - Spending review Topic 3]]+Dataset[[#This Row],[2024/25 To - Spending review Topic 4]]+Dataset[[#This Row],[2024/25 To - Other reallocations]]","v":0},{"$f":"Dataset[[#This Row],[2025/26 To - Spending review Topic 1]]+Dataset[[#This Row],[2025/26 To - Spending review Topic 2]]+Dataset[[#This Row],[2025/26 To - Spending review Topic 3]]+Dataset[[#This Row],[2025/26 To - Spending review Topic 4]]+Dataset[[#This Row],[2025/26 To - Other reallocations]]","v":0},{"$f":"Dataset[[#This Row],[2026/27 To - Spending review Topic 1]]+Dataset[[#This Row],[2026/27 To - Spending review Topic 2]]+Dataset[[#This Row],[2026/27 To - Spending review Topic 3]]+Dataset[[#This Row],[2026/27 To - Spending review Topic 4]]+Dataset[[#This Row],[2026/27 To - Other reallocations]]","v":0},{"$f":"Dataset[[#This Row],[2024/25 Reduction]]+Dataset[[#This Row],[2024/25 From - Total]]","v":0},{"$f":"Dataset[[#This Row],[2025/26 Reduction]]+Dataset[[#This Row],[2025/26 From - Total]]","v":0},{"$f":"Dataset[[#This Row],[2026/27 Reduction]]+Dataset[[#This Row],[2026/27 From - Total]]","v":0},{"$f":"Dataset[[#This Row],[2023/24 Reduction]]","v":0},{"$f":"SUM(Dataset[[#This Row],[2024/25 Reduction]],Dataset[[#This Row],[2024/25 From - Total]],Dataset[[#This Row],[2024/25 To - Total]])","v":0},{"$f":"SUM(Dataset[[#This Row],[2025/26 Reduction]],Dataset[[#This Row],[2025/26 From - Total]],Dataset[[#This Row],[2025/26 To - Total]])","v":0},{"$f":"SUM(Dataset[[#This Row],[2026/27 Reduction]],Dataset[[#This Row],[2026/27 From - Total]],Dataset[[#This Row],[2026/27 To - Total]])","v":0},{"$f":"Dataset[[#This Row],[2023/24 Baseline]]+Dataset[[#This Row],[2023/24 Total change]]","v":0},{"$f":"Dataset[[#This Row],[2024/25 Baseline]]+Dataset[[#This Row],[2024/25 Total change]]","v":0},{"$f":"Dataset[[#This Row],[2025/26 Baseline]]+Dataset[[#This Row],[2025/26 Total change]]","v":0},{"$f":"Dataset[[#This Row],[2026/27 Baseline]]+Dataset[[#This Row],[2026/27 Total change]]","v":0}]
["NAT|Military veterans' benefits","26|Other transfers to households","2024_25","MTEF2024",26,2,1,44406,519,"26","02","01","044406","000519","26|02|01","01","02","10","53","57","01|02|10|53|57","National","Military Veterans","Socioeconomic Support","Database and Benefits Management","Military veterans' benefits","Current","Transfers and subsidies","Households","Other transfers to households","Other transfers to households","Peace and security","Defence and state security","NAT",29,29,0,0,0,0,0,0,0,0,0,null,null,null,null,null,null,null,null,null,null,null,null,null,null,null,null,null,null,null,null,null,null,null,null,null,null,null,null,null,null,null,null,null,null,{"$f":"Dataset[[#This Row],[2024/25 From - Spending review Topic 1]]+Dataset[[#This Row],[2024/25 From - Spending review Topic 2]]+Dataset[[#This Row],[2024/25 From - Spending review Topic 3]]+Dataset[[#This Row],[2024/25 From - Spending review Topic 4]]+Dataset[[#This Row],[2024/25 From - Other reallocations]]","v":0},{"$f":"Dataset[[#This Row],[2025/26 From - Spending review Topic 1]]+Dataset[[#This Row],[2025/26 From - Spending review Topic 2]]+Dataset[[#This Row],[2025/26 From - Spending review Topic 3]]+Dataset[[#This Row],[2025/26 From - Spending review Topic 4]]+Dataset[[#This Row],[2025/26 From - Other reallocations]]","v":0},{"$f":"Dataset[[#This Row],[2026/27 From - Spending review Topic 1]]+Dataset[[#This Row],[2026/27 From - Spending review Topic 2]]+Dataset[[#This Row],[2026/27 From - Spending review Topic 3]]+Dataset[[#This Row],[2026/27 From - Spending review Topic 4]]+Dataset[[#This Row],[2026/27 From - Other reallocations]]","v":0},{"$f":"Dataset[[#This Row],[2024/25 To - Spending review Topic 1]]+Dataset[[#This Row],[2024/25 To - Spending review Topic 2]]+Dataset[[#This Row],[2024/25 To - Spending review Topic 3]]+Dataset[[#This Row],[2024/25 To - Spending review Topic 4]]+Dataset[[#This Row],[2024/25 To - Other reallocations]]","v":0},{"$f":"Dataset[[#This Row],[2025/26 To - Spending review Topic 1]]+Dataset[[#This Row],[2025/26 To - Spending review Topic 2]]+Dataset[[#This Row],[2025/26 To - Spending review Topic 3]]+Dataset[[#This Row],[2025/26 To - Spending review Topic 4]]+Dataset[[#This Row],[2025/26 To - Other reallocations]]","v":0},{"$f":"Dataset[[#This Row],[2026/27 To - Spending review Topic 1]]+Dataset[[#This Row],[2026/27 To - Spending review Topic 2]]+Dataset[[#This Row],[2026/27 To - Spending review Topic 3]]+Dataset[[#This Row],[2026/27 To - Spending review Topic 4]]+Dataset[[#This Row],[2026/27 To - Other reallocations]]","v":0},{"$f":"Dataset[[#This Row],[2024/25 Reduction]]+Dataset[[#This Row],[2024/25 From - Total]]","v":0},{"$f":"Dataset[[#This Row],[2025/26 Reduction]]+Dataset[[#This Row],[2025/26 From - Total]]","v":0},{"$f":"Dataset[[#This Row],[2026/27 Reduction]]+Dataset[[#This Row],[2026/27 From - Total]]","v":0},{"$f":"Dataset[[#This Row],[2023/24 Reduction]]","v":0},{"$f":"SUM(Dataset[[#This Row],[2024/25 Reduction]],Dataset[[#This Row],[2024/25 From - Total]],Dataset[[#This Row],[2024/25 To - Total]])","v":0},{"$f":"SUM(Dataset[[#This Row],[2025/26 Reduction]],Dataset[[#This Row],[2025/26 From - Total]],Dataset[[#This Row],[2025/26 To - Total]])","v":0},{"$f":"SUM(Dataset[[#This Row],[2026/27 Reduction]],Dataset[[#This Row],[2026/27 From - Total]],Dataset[[#This Row],[2026/27 To - Total]])","v":0},{"$f":"Dataset[[#This Row],[2023/24 Baseline]]+Dataset[[#This Row],[2023/24 Total change]]","v":0},{"$f":"Dataset[[#This Row],[2024/25 Baseline]]+Dataset[[#This Row],[2024/25 Total change]]","v":0},{"$f":"Dataset[[#This Row],[2025/26 Baseline]]+Dataset[[#This Row],[2025/26 Total change]]","v":0},{"$f":"Dataset[[#This Row],[2026/27 Baseline]]+Dataset[[#This Row],[2026/27 Total change]]","v":0}]
["NAT|Non-transfer item","26|Provincial Revenue Funds","2024_25","MTEF2024",26,2,1,44407,520,"26","02","01","044407","000520","26|02|01","02","02","04","43","43","02|02|04|43|43","National","Military Veterans","Socioeconomic Support","Database and Benefits Management","Non-transfer item","Capital","Transfers and subsidies","Provinces and municipalities","Provinces","Provincial Revenue Funds","Peace and security","Defence and state security","NAT",0,0,0,0,0,0,0,0,0,0,0,null,null,null,null,null,null,null,null,null,null,null,null,null,null,null,null,null,null,null,null,null,null,null,null,null,null,null,null,null,null,null,null,null,null,{"$f":"Dataset[[#This Row],[2024/25 From - Spending review Topic 1]]+Dataset[[#This Row],[2024/25 From - Spending review Topic 2]]+Dataset[[#This Row],[2024/25 From - Spending review Topic 3]]+Dataset[[#This Row],[2024/25 From - Spending review Topic 4]]+Dataset[[#This Row],[2024/25 From - Other reallocations]]","v":0},{"$f":"Dataset[[#This Row],[2025/26 From - Spending review Topic 1]]+Dataset[[#This Row],[2025/26 From - Spending review Topic 2]]+Dataset[[#This Row],[2025/26 From - Spending review Topic 3]]+Dataset[[#This Row],[2025/26 From - Spending review Topic 4]]+Dataset[[#This Row],[2025/26 From - Other reallocations]]","v":0},{"$f":"Dataset[[#This Row],[2026/27 From - Spending review Topic 1]]+Dataset[[#This Row],[2026/27 From - Spending review Topic 2]]+Dataset[[#This Row],[2026/27 From - Spending review Topic 3]]+Dataset[[#This Row],[2026/27 From - Spending review Topic 4]]+Dataset[[#This Row],[2026/27 From - Other reallocations]]","v":0},{"$f":"Dataset[[#This Row],[2024/25 To - Spending review Topic 1]]+Dataset[[#This Row],[2024/25 To - Spending review Topic 2]]+Dataset[[#This Row],[2024/25 To - Spending review Topic 3]]+Dataset[[#This Row],[2024/25 To - Spending review Topic 4]]+Dataset[[#This Row],[2024/25 To - Other reallocations]]","v":0},{"$f":"Dataset[[#This Row],[2025/26 To - Spending review Topic 1]]+Dataset[[#This Row],[2025/26 To - Spending review Topic 2]]+Dataset[[#This Row],[2025/26 To - Spending review Topic 3]]+Dataset[[#This Row],[2025/26 To - Spending review Topic 4]]+Dataset[[#This Row],[2025/26 To - Other reallocations]]","v":0},{"$f":"Dataset[[#This Row],[2026/27 To - Spending review Topic 1]]+Dataset[[#This Row],[2026/27 To - Spending review Topic 2]]+Dataset[[#This Row],[2026/27 To - Spending review Topic 3]]+Dataset[[#This Row],[2026/27 To - Spending review Topic 4]]+Dataset[[#This Row],[2026/27 To - Other reallocations]]","v":0},{"$f":"Dataset[[#This Row],[2024/25 Reduction]]+Dataset[[#This Row],[2024/25 From - Total]]","v":0},{"$f":"Dataset[[#This Row],[2025/26 Reduction]]+Dataset[[#This Row],[2025/26 From - Total]]","v":0},{"$f":"Dataset[[#This Row],[2026/27 Reduction]]+Dataset[[#This Row],[2026/27 From - Total]]","v":0},{"$f":"Dataset[[#This Row],[2023/24 Reduction]]","v":0},{"$f":"SUM(Dataset[[#This Row],[2024/25 Reduction]],Dataset[[#This Row],[2024/25 From - Total]],Dataset[[#This Row],[2024/25 To - Total]])","v":0},{"$f":"SUM(Dataset[[#This Row],[2025/26 Reduction]],Dataset[[#This Row],[2025/26 From - Total]],Dataset[[#This Row],[2025/26 To - Total]])","v":0},{"$f":"SUM(Dataset[[#This Row],[2026/27 Reduction]],Dataset[[#This Row],[2026/27 From - Total]],Dataset[[#This Row],[2026/27 To - Total]])","v":0},{"$f":"Dataset[[#This Row],[2023/24 Baseline]]+Dataset[[#This Row],[2023/24 Total change]]","v":0},{"$f":"Dataset[[#This Row],[2024/25 Baseline]]+Dataset[[#This Row],[2024/25 Total change]]","v":0},{"$f":"Dataset[[#This Row],[2025/26 Baseline]]+Dataset[[#This Row],[2025/26 Total change]]","v":0},{"$f":"Dataset[[#This Row],[2026/27 Baseline]]+Dataset[[#This Row],[2026/27 Total change]]","v":0}]
["NAT|Non-transfer item","26|Municipal bank accounts","2024_25","MTEF2024",26,2,1,44408,521,"26","02","01","044408","000521","26|02|01","02","02","04","44","45","02|02|04|44|45","National","Military Veterans","Socioeconomic Support","Database and Benefits Management","Non-transfer item","Capital","Transfers and subsidies","Provinces and municipalities","Municipalities","Municipal bank accounts","Peace and security","Defence and state security","NAT",0,0,0,0,0,0,0,0,0,0,0,null,null,null,null,null,null,null,null,null,null,null,null,null,null,null,null,null,null,null,null,null,null,null,null,null,null,null,null,null,null,null,null,null,null,{"$f":"Dataset[[#This Row],[2024/25 From - Spending review Topic 1]]+Dataset[[#This Row],[2024/25 From - Spending review Topic 2]]+Dataset[[#This Row],[2024/25 From - Spending review Topic 3]]+Dataset[[#This Row],[2024/25 From - Spending review Topic 4]]+Dataset[[#This Row],[2024/25 From - Other reallocations]]","v":0},{"$f":"Dataset[[#This Row],[2025/26 From - Spending review Topic 1]]+Dataset[[#This Row],[2025/26 From - Spending review Topic 2]]+Dataset[[#This Row],[2025/26 From - Spending review Topic 3]]+Dataset[[#This Row],[2025/26 From - Spending review Topic 4]]+Dataset[[#This Row],[2025/26 From - Other reallocations]]","v":0},{"$f":"Dataset[[#This Row],[2026/27 From - Spending review Topic 1]]+Dataset[[#This Row],[2026/27 From - Spending review Topic 2]]+Dataset[[#This Row],[2026/27 From - Spending review Topic 3]]+Dataset[[#This Row],[2026/27 From - Spending review Topic 4]]+Dataset[[#This Row],[2026/27 From - Other reallocations]]","v":0},{"$f":"Dataset[[#This Row],[2024/25 To - Spending review Topic 1]]+Dataset[[#This Row],[2024/25 To - Spending review Topic 2]]+Dataset[[#This Row],[2024/25 To - Spending review Topic 3]]+Dataset[[#This Row],[2024/25 To - Spending review Topic 4]]+Dataset[[#This Row],[2024/25 To - Other reallocations]]","v":0},{"$f":"Dataset[[#This Row],[2025/26 To - Spending review Topic 1]]+Dataset[[#This Row],[2025/26 To - Spending review Topic 2]]+Dataset[[#This Row],[2025/26 To - Spending review Topic 3]]+Dataset[[#This Row],[2025/26 To - Spending review Topic 4]]+Dataset[[#This Row],[2025/26 To - Other reallocations]]","v":0},{"$f":"Dataset[[#This Row],[2026/27 To - Spending review Topic 1]]+Dataset[[#This Row],[2026/27 To - Spending review Topic 2]]+Dataset[[#This Row],[2026/27 To - Spending review Topic 3]]+Dataset[[#This Row],[2026/27 To - Spending review Topic 4]]+Dataset[[#This Row],[2026/27 To - Other reallocations]]","v":0},{"$f":"Dataset[[#This Row],[2024/25 Reduction]]+Dataset[[#This Row],[2024/25 From - Total]]","v":0},{"$f":"Dataset[[#This Row],[2025/26 Reduction]]+Dataset[[#This Row],[2025/26 From - Total]]","v":0},{"$f":"Dataset[[#This Row],[2026/27 Reduction]]+Dataset[[#This Row],[2026/27 From - Total]]","v":0},{"$f":"Dataset[[#This Row],[2023/24 Reduction]]","v":0},{"$f":"SUM(Dataset[[#This Row],[2024/25 Reduction]],Dataset[[#This Row],[2024/25 From - Total]],Dataset[[#This Row],[2024/25 To - Total]])","v":0},{"$f":"SUM(Dataset[[#This Row],[2025/26 Reduction]],Dataset[[#This Row],[2025/26 From - Total]],Dataset[[#This Row],[2025/26 To - Total]])","v":0},{"$f":"SUM(Dataset[[#This Row],[2026/27 Reduction]],Dataset[[#This Row],[2026/27 From - Total]],Dataset[[#This Row],[2026/27 To - Total]])","v":0},{"$f":"Dataset[[#This Row],[2023/24 Baseline]]+Dataset[[#This Row],[2023/24 Total change]]","v":0},{"$f":"Dataset[[#This Row],[2024/25 Baseline]]+Dataset[[#This Row],[2024/25 Total change]]","v":0},{"$f":"Dataset[[#This Row],[2025/26 Baseline]]+Dataset[[#This Row],[2025/26 Total change]]","v":0},{"$f":"Dataset[[#This Row],[2026/27 Baseline]]+Dataset[[#This Row],[2026/27 Total change]]","v":0}]
["NAT|Non-transfer item","26|Departmental agencies (non-business entities)","2024_25","MTEF2024",26,2,1,44409,522,"26","02","01","044409","000522","26|02|01","02","02","05","46","48","02|02|05|46|48","National","Military Veterans","Socioeconomic Support","Database and Benefits Management","Non-transfer item","Capital","Transfers and subsidies","Departmental agencies and accounts","Departmental agencies (non-business entities)","Departmental agencies (non-business entities)","Peace and security","Defence and state security","NAT",0,0,0,0,0,0,0,0,0,0,0,null,null,null,null,null,null,null,null,null,null,null,null,null,null,null,null,null,null,null,null,null,null,null,null,null,null,null,null,null,null,null,null,null,null,{"$f":"Dataset[[#This Row],[2024/25 From - Spending review Topic 1]]+Dataset[[#This Row],[2024/25 From - Spending review Topic 2]]+Dataset[[#This Row],[2024/25 From - Spending review Topic 3]]+Dataset[[#This Row],[2024/25 From - Spending review Topic 4]]+Dataset[[#This Row],[2024/25 From - Other reallocations]]","v":0},{"$f":"Dataset[[#This Row],[2025/26 From - Spending review Topic 1]]+Dataset[[#This Row],[2025/26 From - Spending review Topic 2]]+Dataset[[#This Row],[2025/26 From - Spending review Topic 3]]+Dataset[[#This Row],[2025/26 From - Spending review Topic 4]]+Dataset[[#This Row],[2025/26 From - Other reallocations]]","v":0},{"$f":"Dataset[[#This Row],[2026/27 From - Spending review Topic 1]]+Dataset[[#This Row],[2026/27 From - Spending review Topic 2]]+Dataset[[#This Row],[2026/27 From - Spending review Topic 3]]+Dataset[[#This Row],[2026/27 From - Spending review Topic 4]]+Dataset[[#This Row],[2026/27 From - Other reallocations]]","v":0},{"$f":"Dataset[[#This Row],[2024/25 To - Spending review Topic 1]]+Dataset[[#This Row],[2024/25 To - Spending review Topic 2]]+Dataset[[#This Row],[2024/25 To - Spending review Topic 3]]+Dataset[[#This Row],[2024/25 To - Spending review Topic 4]]+Dataset[[#This Row],[2024/25 To - Other reallocations]]","v":0},{"$f":"Dataset[[#This Row],[2025/26 To - Spending review Topic 1]]+Dataset[[#This Row],[2025/26 To - Spending review Topic 2]]+Dataset[[#This Row],[2025/26 To - Spending review Topic 3]]+Dataset[[#This Row],[2025/26 To - Spending review Topic 4]]+Dataset[[#This Row],[2025/26 To - Other reallocations]]","v":0},{"$f":"Dataset[[#This Row],[2026/27 To - Spending review Topic 1]]+Dataset[[#This Row],[2026/27 To - Spending review Topic 2]]+Dataset[[#This Row],[2026/27 To - Spending review Topic 3]]+Dataset[[#This Row],[2026/27 To - Spending review Topic 4]]+Dataset[[#This Row],[2026/27 To - Other reallocations]]","v":0},{"$f":"Dataset[[#This Row],[2024/25 Reduction]]+Dataset[[#This Row],[2024/25 From - Total]]","v":0},{"$f":"Dataset[[#This Row],[2025/26 Reduction]]+Dataset[[#This Row],[2025/26 From - Total]]","v":0},{"$f":"Dataset[[#This Row],[2026/27 Reduction]]+Dataset[[#This Row],[2026/27 From - Total]]","v":0},{"$f":"Dataset[[#This Row],[2023/24 Reduction]]","v":0},{"$f":"SUM(Dataset[[#This Row],[2024/25 Reduction]],Dataset[[#This Row],[2024/25 From - Total]],Dataset[[#This Row],[2024/25 To - Total]])","v":0},{"$f":"SUM(Dataset[[#This Row],[2025/26 Reduction]],Dataset[[#This Row],[2025/26 From - Total]],Dataset[[#This Row],[2025/26 To - Total]])","v":0},{"$f":"SUM(Dataset[[#This Row],[2026/27 Reduction]],Dataset[[#This Row],[2026/27 From - Total]],Dataset[[#This Row],[2026/27 To - Total]])","v":0},{"$f":"Dataset[[#This Row],[2023/24 Baseline]]+Dataset[[#This Row],[2023/24 Total change]]","v":0},{"$f":"Dataset[[#This Row],[2024/25 Baseline]]+Dataset[[#This Row],[2024/25 Total change]]","v":0},{"$f":"Dataset[[#This Row],[2025/26 Baseline]]+Dataset[[#This Row],[2025/26 Total change]]","v":0},{"$f":"Dataset[[#This Row],[2026/27 Baseline]]+Dataset[[#This Row],[2026/27 Total change]]","v":0}]
["NAT|Non-transfer item","26|Higher education institutions","2024_25","MTEF2024",26,2,1,44410,523,"26","02","01","044410","000523","26|02|01","02","02","06","47","49","02|02|06|47|49","National","Military Veterans","Socioeconomic Support","Database and Benefits Management","Non-transfer item","Capital","Transfers and subsidies","Higher education institutions","Higher education institutions","Higher education institutions","Peace and security","Defence and state security","NAT",0,0,0,0,0,0,0,0,0,0,0,null,null,null,null,null,null,null,null,null,null,null,null,null,null,null,null,null,null,null,null,null,null,null,null,null,null,null,null,null,null,null,null,null,null,{"$f":"Dataset[[#This Row],[2024/25 From - Spending review Topic 1]]+Dataset[[#This Row],[2024/25 From - Spending review Topic 2]]+Dataset[[#This Row],[2024/25 From - Spending review Topic 3]]+Dataset[[#This Row],[2024/25 From - Spending review Topic 4]]+Dataset[[#This Row],[2024/25 From - Other reallocations]]","v":0},{"$f":"Dataset[[#This Row],[2025/26 From - Spending review Topic 1]]+Dataset[[#This Row],[2025/26 From - Spending review Topic 2]]+Dataset[[#This Row],[2025/26 From - Spending review Topic 3]]+Dataset[[#This Row],[2025/26 From - Spending review Topic 4]]+Dataset[[#This Row],[2025/26 From - Other reallocations]]","v":0},{"$f":"Dataset[[#This Row],[2026/27 From - Spending review Topic 1]]+Dataset[[#This Row],[2026/27 From - Spending review Topic 2]]+Dataset[[#This Row],[2026/27 From - Spending review Topic 3]]+Dataset[[#This Row],[2026/27 From - Spending review Topic 4]]+Dataset[[#This Row],[2026/27 From - Other reallocations]]","v":0},{"$f":"Dataset[[#This Row],[2024/25 To - Spending review Topic 1]]+Dataset[[#This Row],[2024/25 To - Spending review Topic 2]]+Dataset[[#This Row],[2024/25 To - Spending review Topic 3]]+Dataset[[#This Row],[2024/25 To - Spending review Topic 4]]+Dataset[[#This Row],[2024/25 To - Other reallocations]]","v":0},{"$f":"Dataset[[#This Row],[2025/26 To - Spending review Topic 1]]+Dataset[[#This Row],[2025/26 To - Spending review Topic 2]]+Dataset[[#This Row],[2025/26 To - Spending review Topic 3]]+Dataset[[#This Row],[2025/26 To - Spending review Topic 4]]+Dataset[[#This Row],[2025/26 To - Other reallocations]]","v":0},{"$f":"Dataset[[#This Row],[2026/27 To - Spending review Topic 1]]+Dataset[[#This Row],[2026/27 To - Spending review Topic 2]]+Dataset[[#This Row],[2026/27 To - Spending review Topic 3]]+Dataset[[#This Row],[2026/27 To - Spending review Topic 4]]+Dataset[[#This Row],[2026/27 To - Other reallocations]]","v":0},{"$f":"Dataset[[#This Row],[2024/25 Reduction]]+Dataset[[#This Row],[2024/25 From - Total]]","v":0},{"$f":"Dataset[[#This Row],[2025/26 Reduction]]+Dataset[[#This Row],[2025/26 From - Total]]","v":0},{"$f":"Dataset[[#This Row],[2026/27 Reduction]]+Dataset[[#This Row],[2026/27 From - Total]]","v":0},{"$f":"Dataset[[#This Row],[2023/24 Reduction]]","v":0},{"$f":"SUM(Dataset[[#This Row],[2024/25 Reduction]],Dataset[[#This Row],[2024/25 From - Total]],Dataset[[#This Row],[2024/25 To - Total]])","v":0},{"$f":"SUM(Dataset[[#This Row],[2025/26 Reduction]],Dataset[[#This Row],[2025/26 From - Total]],Dataset[[#This Row],[2025/26 To - Total]])","v":0},{"$f":"SUM(Dataset[[#This Row],[2026/27 Reduction]],Dataset[[#This Row],[2026/27 From - Total]],Dataset[[#This Row],[2026/27 To - Total]])","v":0},{"$f":"Dataset[[#This Row],[2023/24 Baseline]]+Dataset[[#This Row],[2023/24 Total change]]","v":0},{"$f":"Dataset[[#This Row],[2024/25 Baseline]]+Dataset[[#This Row],[2024/25 Total change]]","v":0},{"$f":"Dataset[[#This Row],[2025/26 Baseline]]+Dataset[[#This Row],[2025/26 Total change]]","v":0},{"$f":"Dataset[[#This Row],[2026/27 Baseline]]+Dataset[[#This Row],[2026/27 Total change]]","v":0}]
["NAT|Non-transfer item","26|Foreign governments and international organisations","2024_25","MTEF2024",26,2,1,44411,524,"26","02","01","044411","000524","26|02|01","02","02","07","48","50","02|02|07|48|50","National","Military Veterans","Socioeconomic Support","Database and Benefits Management","Non-transfer item","Capital","Transfers and subsidies","Foreign governments and international organisations","Foreign governments and international organisations","Foreign governments and international organisations","Peace and security","Defence and state security","NAT",0,0,0,0,0,0,0,0,0,0,0,null,null,null,null,null,null,null,null,null,null,null,null,null,null,null,null,null,null,null,null,null,null,null,null,null,null,null,null,null,null,null,null,null,null,{"$f":"Dataset[[#This Row],[2024/25 From - Spending review Topic 1]]+Dataset[[#This Row],[2024/25 From - Spending review Topic 2]]+Dataset[[#This Row],[2024/25 From - Spending review Topic 3]]+Dataset[[#This Row],[2024/25 From - Spending review Topic 4]]+Dataset[[#This Row],[2024/25 From - Other reallocations]]","v":0},{"$f":"Dataset[[#This Row],[2025/26 From - Spending review Topic 1]]+Dataset[[#This Row],[2025/26 From - Spending review Topic 2]]+Dataset[[#This Row],[2025/26 From - Spending review Topic 3]]+Dataset[[#This Row],[2025/26 From - Spending review Topic 4]]+Dataset[[#This Row],[2025/26 From - Other reallocations]]","v":0},{"$f":"Dataset[[#This Row],[2026/27 From - Spending review Topic 1]]+Dataset[[#This Row],[2026/27 From - Spending review Topic 2]]+Dataset[[#This Row],[2026/27 From - Spending review Topic 3]]+Dataset[[#This Row],[2026/27 From - Spending review Topic 4]]+Dataset[[#This Row],[2026/27 From - Other reallocations]]","v":0},{"$f":"Dataset[[#This Row],[2024/25 To - Spending review Topic 1]]+Dataset[[#This Row],[2024/25 To - Spending review Topic 2]]+Dataset[[#This Row],[2024/25 To - Spending review Topic 3]]+Dataset[[#This Row],[2024/25 To - Spending review Topic 4]]+Dataset[[#This Row],[2024/25 To - Other reallocations]]","v":0},{"$f":"Dataset[[#This Row],[2025/26 To - Spending review Topic 1]]+Dataset[[#This Row],[2025/26 To - Spending review Topic 2]]+Dataset[[#This Row],[2025/26 To - Spending review Topic 3]]+Dataset[[#This Row],[2025/26 To - Spending review Topic 4]]+Dataset[[#This Row],[2025/26 To - Other reallocations]]","v":0},{"$f":"Dataset[[#This Row],[2026/27 To - Spending review Topic 1]]+Dataset[[#This Row],[2026/27 To - Spending review Topic 2]]+Dataset[[#This Row],[2026/27 To - Spending review Topic 3]]+Dataset[[#This Row],[2026/27 To - Spending review Topic 4]]+Dataset[[#This Row],[2026/27 To - Other reallocations]]","v":0},{"$f":"Dataset[[#This Row],[2024/25 Reduction]]+Dataset[[#This Row],[2024/25 From - Total]]","v":0},{"$f":"Dataset[[#This Row],[2025/26 Reduction]]+Dataset[[#This Row],[2025/26 From - Total]]","v":0},{"$f":"Dataset[[#This Row],[2026/27 Reduction]]+Dataset[[#This Row],[2026/27 From - Total]]","v":0},{"$f":"Dataset[[#This Row],[2023/24 Reduction]]","v":0},{"$f":"SUM(Dataset[[#This Row],[2024/25 Reduction]],Dataset[[#This Row],[2024/25 From - Total]],Dataset[[#This Row],[2024/25 To - Total]])","v":0},{"$f":"SUM(Dataset[[#This Row],[2025/26 Reduction]],Dataset[[#This Row],[2025/26 From - Total]],Dataset[[#This Row],[2025/26 To - Total]])","v":0},{"$f":"SUM(Dataset[[#This Row],[2026/27 Reduction]],Dataset[[#This Row],[2026/27 From - Total]],Dataset[[#This Row],[2026/27 To - Total]])","v":0},{"$f":"Dataset[[#This Row],[2023/24 Baseline]]+Dataset[[#This Row],[2023/24 Total change]]","v":0},{"$f":"Dataset[[#This Row],[2024/25 Baseline]]+Dataset[[#This Row],[2024/25 Total change]]","v":0},{"$f":"Dataset[[#This Row],[2025/26 Baseline]]+Dataset[[#This Row],[2025/26 Total change]]","v":0},{"$f":"Dataset[[#This Row],[2026/27 Baseline]]+Dataset[[#This Row],[2026/27 Total change]]","v":0}]
["NAT|Non-transfer item","26|Subsidies on products and production (pc)","2024_25","MTEF2024",26,2,1,44412,525,"26","02","01","044412","000525","26|02|01","02","02","08","49","51","02|02|08|49|51","National","Military Veterans","Socioeconomic Support","Database and Benefits Management","Non-transfer item","Capital","Transfers and subsidies","Public corporations and private enterprises","Public corporations","Subsidies on products and production (pc)","Peace and security","Defence and state security","NAT",0,0,0,0,0,0,0,0,0,0,0,null,null,null,null,null,null,null,null,null,null,null,null,null,null,null,null,null,null,null,null,null,null,null,null,null,null,null,null,null,null,null,null,null,null,{"$f":"Dataset[[#This Row],[2024/25 From - Spending review Topic 1]]+Dataset[[#This Row],[2024/25 From - Spending review Topic 2]]+Dataset[[#This Row],[2024/25 From - Spending review Topic 3]]+Dataset[[#This Row],[2024/25 From - Spending review Topic 4]]+Dataset[[#This Row],[2024/25 From - Other reallocations]]","v":0},{"$f":"Dataset[[#This Row],[2025/26 From - Spending review Topic 1]]+Dataset[[#This Row],[2025/26 From - Spending review Topic 2]]+Dataset[[#This Row],[2025/26 From - Spending review Topic 3]]+Dataset[[#This Row],[2025/26 From - Spending review Topic 4]]+Dataset[[#This Row],[2025/26 From - Other reallocations]]","v":0},{"$f":"Dataset[[#This Row],[2026/27 From - Spending review Topic 1]]+Dataset[[#This Row],[2026/27 From - Spending review Topic 2]]+Dataset[[#This Row],[2026/27 From - Spending review Topic 3]]+Dataset[[#This Row],[2026/27 From - Spending review Topic 4]]+Dataset[[#This Row],[2026/27 From - Other reallocations]]","v":0},{"$f":"Dataset[[#This Row],[2024/25 To - Spending review Topic 1]]+Dataset[[#This Row],[2024/25 To - Spending review Topic 2]]+Dataset[[#This Row],[2024/25 To - Spending review Topic 3]]+Dataset[[#This Row],[2024/25 To - Spending review Topic 4]]+Dataset[[#This Row],[2024/25 To - Other reallocations]]","v":0},{"$f":"Dataset[[#This Row],[2025/26 To - Spending review Topic 1]]+Dataset[[#This Row],[2025/26 To - Spending review Topic 2]]+Dataset[[#This Row],[2025/26 To - Spending review Topic 3]]+Dataset[[#This Row],[2025/26 To - Spending review Topic 4]]+Dataset[[#This Row],[2025/26 To - Other reallocations]]","v":0},{"$f":"Dataset[[#This Row],[2026/27 To - Spending review Topic 1]]+Dataset[[#This Row],[2026/27 To - Spending review Topic 2]]+Dataset[[#This Row],[2026/27 To - Spending review Topic 3]]+Dataset[[#This Row],[2026/27 To - Spending review Topic 4]]+Dataset[[#This Row],[2026/27 To - Other reallocations]]","v":0},{"$f":"Dataset[[#This Row],[2024/25 Reduction]]+Dataset[[#This Row],[2024/25 From - Total]]","v":0},{"$f":"Dataset[[#This Row],[2025/26 Reduction]]+Dataset[[#This Row],[2025/26 From - Total]]","v":0},{"$f":"Dataset[[#This Row],[2026/27 Reduction]]+Dataset[[#This Row],[2026/27 From - Total]]","v":0},{"$f":"Dataset[[#This Row],[2023/24 Reduction]]","v":0},{"$f":"SUM(Dataset[[#This Row],[2024/25 Reduction]],Dataset[[#This Row],[2024/25 From - Total]],Dataset[[#This Row],[2024/25 To - Total]])","v":0},{"$f":"SUM(Dataset[[#This Row],[2025/26 Reduction]],Dataset[[#This Row],[2025/26 From - Total]],Dataset[[#This Row],[2025/26 To - Total]])","v":0},{"$f":"SUM(Dataset[[#This Row],[2026/27 Reduction]],Dataset[[#This Row],[2026/27 From - Total]],Dataset[[#This Row],[2026/27 To - Total]])","v":0},{"$f":"Dataset[[#This Row],[2023/24 Baseline]]+Dataset[[#This Row],[2023/24 Total change]]","v":0},{"$f":"Dataset[[#This Row],[2024/25 Baseline]]+Dataset[[#This Row],[2024/25 Total change]]","v":0},{"$f":"Dataset[[#This Row],[2025/26 Baseline]]+Dataset[[#This Row],[2025/26 Total change]]","v":0},{"$f":"Dataset[[#This Row],[2026/27 Baseline]]+Dataset[[#This Row],[2026/27 Total change]]","v":0}]
["NAT|Non-transfer item","26|Other transfers to public corporations","2024_25","MTEF2024",26,2,1,44413,526,"26","02","01","044413","000526","26|02|01","02","02","08","49","52","02|02|08|49|52","National","Military Veterans","Socioeconomic Support","Database and Benefits Management","Non-transfer item","Capital","Transfers and subsidies","Public corporations and private enterprises","Public corporations","Other transfers to public corporations","Peace and security","Defence and state security","NAT",0,0,0,0,0,0,0,0,0,0,0,null,null,null,null,null,null,null,null,null,null,null,null,null,null,null,null,null,null,null,null,null,null,null,null,null,null,null,null,null,null,null,null,null,null,{"$f":"Dataset[[#This Row],[2024/25 From - Spending review Topic 1]]+Dataset[[#This Row],[2024/25 From - Spending review Topic 2]]+Dataset[[#This Row],[2024/25 From - Spending review Topic 3]]+Dataset[[#This Row],[2024/25 From - Spending review Topic 4]]+Dataset[[#This Row],[2024/25 From - Other reallocations]]","v":0},{"$f":"Dataset[[#This Row],[2025/26 From - Spending review Topic 1]]+Dataset[[#This Row],[2025/26 From - Spending review Topic 2]]+Dataset[[#This Row],[2025/26 From - Spending review Topic 3]]+Dataset[[#This Row],[2025/26 From - Spending review Topic 4]]+Dataset[[#This Row],[2025/26 From - Other reallocations]]","v":0},{"$f":"Dataset[[#This Row],[2026/27 From - Spending review Topic 1]]+Dataset[[#This Row],[2026/27 From - Spending review Topic 2]]+Dataset[[#This Row],[2026/27 From - Spending review Topic 3]]+Dataset[[#This Row],[2026/27 From - Spending review Topic 4]]+Dataset[[#This Row],[2026/27 From - Other reallocations]]","v":0},{"$f":"Dataset[[#This Row],[2024/25 To - Spending review Topic 1]]+Dataset[[#This Row],[2024/25 To - Spending review Topic 2]]+Dataset[[#This Row],[2024/25 To - Spending review Topic 3]]+Dataset[[#This Row],[2024/25 To - Spending review Topic 4]]+Dataset[[#This Row],[2024/25 To - Other reallocations]]","v":0},{"$f":"Dataset[[#This Row],[2025/26 To - Spending review Topic 1]]+Dataset[[#This Row],[2025/26 To - Spending review Topic 2]]+Dataset[[#This Row],[2025/26 To - Spending review Topic 3]]+Dataset[[#This Row],[2025/26 To - Spending review Topic 4]]+Dataset[[#This Row],[2025/26 To - Other reallocations]]","v":0},{"$f":"Dataset[[#This Row],[2026/27 To - Spending review Topic 1]]+Dataset[[#This Row],[2026/27 To - Spending review Topic 2]]+Dataset[[#This Row],[2026/27 To - Spending review Topic 3]]+Dataset[[#This Row],[2026/27 To - Spending review Topic 4]]+Dataset[[#This Row],[2026/27 To - Other reallocations]]","v":0},{"$f":"Dataset[[#This Row],[2024/25 Reduction]]+Dataset[[#This Row],[2024/25 From - Total]]","v":0},{"$f":"Dataset[[#This Row],[2025/26 Reduction]]+Dataset[[#This Row],[2025/26 From - Total]]","v":0},{"$f":"Dataset[[#This Row],[2026/27 Reduction]]+Dataset[[#This Row],[2026/27 From - Total]]","v":0},{"$f":"Dataset[[#This Row],[2023/24 Reduction]]","v":0},{"$f":"SUM(Dataset[[#This Row],[2024/25 Reduction]],Dataset[[#This Row],[2024/25 From - Total]],Dataset[[#This Row],[2024/25 To - Total]])","v":0},{"$f":"SUM(Dataset[[#This Row],[2025/26 Reduction]],Dataset[[#This Row],[2025/26 From - Total]],Dataset[[#This Row],[2025/26 To - Total]])","v":0},{"$f":"SUM(Dataset[[#This Row],[2026/27 Reduction]],Dataset[[#This Row],[2026/27 From - Total]],Dataset[[#This Row],[2026/27 To - Total]])","v":0},{"$f":"Dataset[[#This Row],[2023/24 Baseline]]+Dataset[[#This Row],[2023/24 Total change]]","v":0},{"$f":"Dataset[[#This Row],[2024/25 Baseline]]+Dataset[[#This Row],[2024/25 Total change]]","v":0},{"$f":"Dataset[[#This Row],[2025/26 Baseline]]+Dataset[[#This Row],[2025/26 Total change]]","v":0},{"$f":"Dataset[[#This Row],[2026/27 Baseline]]+Dataset[[#This Row],[2026/27 Total change]]","v":0}]
["NAT|Non-transfer item","26|Other transfers to private enterprises","2024_25","MTEF2024",26,2,1,44414,527,"26","02","01","044414","000527","26|02|01","02","02","08","50","54","02|02|08|50|54","National","Military Veterans","Socioeconomic Support","Database and Benefits Management","Non-transfer item","Capital","Transfers and subsidies","Public corporations and private enterprises","Private enterprises","Other transfers to private enterprises","Peace and security","Defence and state security","NAT",0,0,0,0,0,0,0,0,0,0,0,null,null,null,null,null,null,null,null,null,null,null,null,null,null,null,null,null,null,null,null,null,null,null,null,null,null,null,null,null,null,null,null,null,null,{"$f":"Dataset[[#This Row],[2024/25 From - Spending review Topic 1]]+Dataset[[#This Row],[2024/25 From - Spending review Topic 2]]+Dataset[[#This Row],[2024/25 From - Spending review Topic 3]]+Dataset[[#This Row],[2024/25 From - Spending review Topic 4]]+Dataset[[#This Row],[2024/25 From - Other reallocations]]","v":0},{"$f":"Dataset[[#This Row],[2025/26 From - Spending review Topic 1]]+Dataset[[#This Row],[2025/26 From - Spending review Topic 2]]+Dataset[[#This Row],[2025/26 From - Spending review Topic 3]]+Dataset[[#This Row],[2025/26 From - Spending review Topic 4]]+Dataset[[#This Row],[2025/26 From - Other reallocations]]","v":0},{"$f":"Dataset[[#This Row],[2026/27 From - Spending review Topic 1]]+Dataset[[#This Row],[2026/27 From - Spending review Topic 2]]+Dataset[[#This Row],[2026/27 From - Spending review Topic 3]]+Dataset[[#This Row],[2026/27 From - Spending review Topic 4]]+Dataset[[#This Row],[2026/27 From - Other reallocations]]","v":0},{"$f":"Dataset[[#This Row],[2024/25 To - Spending review Topic 1]]+Dataset[[#This Row],[2024/25 To - Spending review Topic 2]]+Dataset[[#This Row],[2024/25 To - Spending review Topic 3]]+Dataset[[#This Row],[2024/25 To - Spending review Topic 4]]+Dataset[[#This Row],[2024/25 To - Other reallocations]]","v":0},{"$f":"Dataset[[#This Row],[2025/26 To - Spending review Topic 1]]+Dataset[[#This Row],[2025/26 To - Spending review Topic 2]]+Dataset[[#This Row],[2025/26 To - Spending review Topic 3]]+Dataset[[#This Row],[2025/26 To - Spending review Topic 4]]+Dataset[[#This Row],[2025/26 To - Other reallocations]]","v":0},{"$f":"Dataset[[#This Row],[2026/27 To - Spending review Topic 1]]+Dataset[[#This Row],[2026/27 To - Spending review Topic 2]]+Dataset[[#This Row],[2026/27 To - Spending review Topic 3]]+Dataset[[#This Row],[2026/27 To - Spending review Topic 4]]+Dataset[[#This Row],[2026/27 To - Other reallocations]]","v":0},{"$f":"Dataset[[#This Row],[2024/25 Reduction]]+Dataset[[#This Row],[2024/25 From - Total]]","v":0},{"$f":"Dataset[[#This Row],[2025/26 Reduction]]+Dataset[[#This Row],[2025/26 From - Total]]","v":0},{"$f":"Dataset[[#This Row],[2026/27 Reduction]]+Dataset[[#This Row],[2026/27 From - Total]]","v":0},{"$f":"Dataset[[#This Row],[2023/24 Reduction]]","v":0},{"$f":"SUM(Dataset[[#This Row],[2024/25 Reduction]],Dataset[[#This Row],[2024/25 From - Total]],Dataset[[#This Row],[2024/25 To - Total]])","v":0},{"$f":"SUM(Dataset[[#This Row],[2025/26 Reduction]],Dataset[[#This Row],[2025/26 From - Total]],Dataset[[#This Row],[2025/26 To - Total]])","v":0},{"$f":"SUM(Dataset[[#This Row],[2026/27 Reduction]],Dataset[[#This Row],[2026/27 From - Total]],Dataset[[#This Row],[2026/27 To - Total]])","v":0},{"$f":"Dataset[[#This Row],[2023/24 Baseline]]+Dataset[[#This Row],[2023/24 Total change]]","v":0},{"$f":"Dataset[[#This Row],[2024/25 Baseline]]+Dataset[[#This Row],[2024/25 Total change]]","v":0},{"$f":"Dataset[[#This Row],[2025/26 Baseline]]+Dataset[[#This Row],[2025/26 Total change]]","v":0},{"$f":"Dataset[[#This Row],[2026/27 Baseline]]+Dataset[[#This Row],[2026/27 Total change]]","v":0}]
["NAT|Non-transfer item","26|Non-profit institutions","2024_25","MTEF2024",26,2,1,44415,528,"26","02","01","044415","000528","26|02|01","02","02","09","51","55","02|02|09|51|55","National","Military Veterans","Socioeconomic Support","Database and Benefits Management","Non-transfer item","Capital","Transfers and subsidies","Non-profit institutions","Non-profit institutions","Non-profit institutions","Peace and security","Defence and state security","NAT",0,0,0,0,0,0,0,0,0,0,0,null,null,null,null,null,null,null,null,null,null,null,null,null,null,null,null,null,null,null,null,null,null,null,null,null,null,null,null,null,null,null,null,null,null,{"$f":"Dataset[[#This Row],[2024/25 From - Spending review Topic 1]]+Dataset[[#This Row],[2024/25 From - Spending review Topic 2]]+Dataset[[#This Row],[2024/25 From - Spending review Topic 3]]+Dataset[[#This Row],[2024/25 From - Spending review Topic 4]]+Dataset[[#This Row],[2024/25 From - Other reallocations]]","v":0},{"$f":"Dataset[[#This Row],[2025/26 From - Spending review Topic 1]]+Dataset[[#This Row],[2025/26 From - Spending review Topic 2]]+Dataset[[#This Row],[2025/26 From - Spending review Topic 3]]+Dataset[[#This Row],[2025/26 From - Spending review Topic 4]]+Dataset[[#This Row],[2025/26 From - Other reallocations]]","v":0},{"$f":"Dataset[[#This Row],[2026/27 From - Spending review Topic 1]]+Dataset[[#This Row],[2026/27 From - Spending review Topic 2]]+Dataset[[#This Row],[2026/27 From - Spending review Topic 3]]+Dataset[[#This Row],[2026/27 From - Spending review Topic 4]]+Dataset[[#This Row],[2026/27 From - Other reallocations]]","v":0},{"$f":"Dataset[[#This Row],[2024/25 To - Spending review Topic 1]]+Dataset[[#This Row],[2024/25 To - Spending review Topic 2]]+Dataset[[#This Row],[2024/25 To - Spending review Topic 3]]+Dataset[[#This Row],[2024/25 To - Spending review Topic 4]]+Dataset[[#This Row],[2024/25 To - Other reallocations]]","v":0},{"$f":"Dataset[[#This Row],[2025/26 To - Spending review Topic 1]]+Dataset[[#This Row],[2025/26 To - Spending review Topic 2]]+Dataset[[#This Row],[2025/26 To - Spending review Topic 3]]+Dataset[[#This Row],[2025/26 To - Spending review Topic 4]]+Dataset[[#This Row],[2025/26 To - Other reallocations]]","v":0},{"$f":"Dataset[[#This Row],[2026/27 To - Spending review Topic 1]]+Dataset[[#This Row],[2026/27 To - Spending review Topic 2]]+Dataset[[#This Row],[2026/27 To - Spending review Topic 3]]+Dataset[[#This Row],[2026/27 To - Spending review Topic 4]]+Dataset[[#This Row],[2026/27 To - Other reallocations]]","v":0},{"$f":"Dataset[[#This Row],[2024/25 Reduction]]+Dataset[[#This Row],[2024/25 From - Total]]","v":0},{"$f":"Dataset[[#This Row],[2025/26 Reduction]]+Dataset[[#This Row],[2025/26 From - Total]]","v":0},{"$f":"Dataset[[#This Row],[2026/27 Reduction]]+Dataset[[#This Row],[2026/27 From - Total]]","v":0},{"$f":"Dataset[[#This Row],[2023/24 Reduction]]","v":0},{"$f":"SUM(Dataset[[#This Row],[2024/25 Reduction]],Dataset[[#This Row],[2024/25 From - Total]],Dataset[[#This Row],[2024/25 To - Total]])","v":0},{"$f":"SUM(Dataset[[#This Row],[2025/26 Reduction]],Dataset[[#This Row],[2025/26 From - Total]],Dataset[[#This Row],[2025/26 To - Total]])","v":0},{"$f":"SUM(Dataset[[#This Row],[2026/27 Reduction]],Dataset[[#This Row],[2026/27 From - Total]],Dataset[[#This Row],[2026/27 To - Total]])","v":0},{"$f":"Dataset[[#This Row],[2023/24 Baseline]]+Dataset[[#This Row],[2023/24 Total change]]","v":0},{"$f":"Dataset[[#This Row],[2024/25 Baseline]]+Dataset[[#This Row],[2024/25 Total change]]","v":0},{"$f":"Dataset[[#This Row],[2025/26 Baseline]]+Dataset[[#This Row],[2025/26 Total change]]","v":0},{"$f":"Dataset[[#This Row],[2026/27 Baseline]]+Dataset[[#This Row],[2026/27 Total change]]","v":0}]
["NAT|Non-transfer item","26|Other transfers to households","2024_25","MTEF2024",26,2,1,44416,529,"26","02","01","044416","000529","26|02|01","02","02","10","53","57","02|02|10|53|57","National","Military Veterans","Socioeconomic Support","Database and Benefits Management","Non-transfer item","Capital","Transfers and subsidies","Households","Other transfers to households","Other transfers to households","Peace and security","Defence and state security","NAT",0,0,0,0,0,0,0,0,0,0,0,null,null,null,null,null,null,null,null,null,null,null,null,null,null,null,null,null,null,null,null,null,null,null,null,null,null,null,null,null,null,null,null,null,null,{"$f":"Dataset[[#This Row],[2024/25 From - Spending review Topic 1]]+Dataset[[#This Row],[2024/25 From - Spending review Topic 2]]+Dataset[[#This Row],[2024/25 From - Spending review Topic 3]]+Dataset[[#This Row],[2024/25 From - Spending review Topic 4]]+Dataset[[#This Row],[2024/25 From - Other reallocations]]","v":0},{"$f":"Dataset[[#This Row],[2025/26 From - Spending review Topic 1]]+Dataset[[#This Row],[2025/26 From - Spending review Topic 2]]+Dataset[[#This Row],[2025/26 From - Spending review Topic 3]]+Dataset[[#This Row],[2025/26 From - Spending review Topic 4]]+Dataset[[#This Row],[2025/26 From - Other reallocations]]","v":0},{"$f":"Dataset[[#This Row],[2026/27 From - Spending review Topic 1]]+Dataset[[#This Row],[2026/27 From - Spending review Topic 2]]+Dataset[[#This Row],[2026/27 From - Spending review Topic 3]]+Dataset[[#This Row],[2026/27 From - Spending review Topic 4]]+Dataset[[#This Row],[2026/27 From - Other reallocations]]","v":0},{"$f":"Dataset[[#This Row],[2024/25 To - Spending review Topic 1]]+Dataset[[#This Row],[2024/25 To - Spending review Topic 2]]+Dataset[[#This Row],[2024/25 To - Spending review Topic 3]]+Dataset[[#This Row],[2024/25 To - Spending review Topic 4]]+Dataset[[#This Row],[2024/25 To - Other reallocations]]","v":0},{"$f":"Dataset[[#This Row],[2025/26 To - Spending review Topic 1]]+Dataset[[#This Row],[2025/26 To - Spending review Topic 2]]+Dataset[[#This Row],[2025/26 To - Spending review Topic 3]]+Dataset[[#This Row],[2025/26 To - Spending review Topic 4]]+Dataset[[#This Row],[2025/26 To - Other reallocations]]","v":0},{"$f":"Dataset[[#This Row],[2026/27 To - Spending review Topic 1]]+Dataset[[#This Row],[2026/27 To - Spending review Topic 2]]+Dataset[[#This Row],[2026/27 To - Spending review Topic 3]]+Dataset[[#This Row],[2026/27 To - Spending review Topic 4]]+Dataset[[#This Row],[2026/27 To - Other reallocations]]","v":0},{"$f":"Dataset[[#This Row],[2024/25 Reduction]]+Dataset[[#This Row],[2024/25 From - Total]]","v":0},{"$f":"Dataset[[#This Row],[2025/26 Reduction]]+Dataset[[#This Row],[2025/26 From - Total]]","v":0},{"$f":"Dataset[[#This Row],[2026/27 Reduction]]+Dataset[[#This Row],[2026/27 From - Total]]","v":0},{"$f":"Dataset[[#This Row],[2023/24 Reduction]]","v":0},{"$f":"SUM(Dataset[[#This Row],[2024/25 Reduction]],Dataset[[#This Row],[2024/25 From - Total]],Dataset[[#This Row],[2024/25 To - Total]])","v":0},{"$f":"SUM(Dataset[[#This Row],[2025/26 Reduction]],Dataset[[#This Row],[2025/26 From - Total]],Dataset[[#This Row],[2025/26 To - Total]])","v":0},{"$f":"SUM(Dataset[[#This Row],[2026/27 Reduction]],Dataset[[#This Row],[2026/27 From - Total]],Dataset[[#This Row],[2026/27 To - Total]])","v":0},{"$f":"Dataset[[#This Row],[2023/24 Baseline]]+Dataset[[#This Row],[2023/24 Total change]]","v":0},{"$f":"Dataset[[#This Row],[2024/25 Baseline]]+Dataset[[#This Row],[2024/25 Total change]]","v":0},{"$f":"Dataset[[#This Row],[2025/26 Baseline]]+Dataset[[#This Row],[2025/26 Total change]]","v":0},{"$f":"Dataset[[#This Row],[2026/27 Baseline]]+Dataset[[#This Row],[2026/27 Total change]]","v":0}]
["NAT|Non-transfer item","26|Buildings","2024_25","MTEF2024",26,2,1,44417,530,"26","02","01","044417","000530","26|02|01","02","03","11","54","58","02|03|11|54|58","National","Military Veterans","Socioeconomic Support","Database and Benefits Management","Non-transfer item","Capital","Payments for capital assets","Buildings and other fixed structures","Buildings","Buildings","Peace and security","Defence and state security","NAT",0,0,0,0,0,0,0,0,0,0,0,null,null,null,null,null,null,null,null,null,null,null,null,null,null,null,null,null,null,null,null,null,null,null,null,null,null,null,null,null,null,null,null,null,null,{"$f":"Dataset[[#This Row],[2024/25 From - Spending review Topic 1]]+Dataset[[#This Row],[2024/25 From - Spending review Topic 2]]+Dataset[[#This Row],[2024/25 From - Spending review Topic 3]]+Dataset[[#This Row],[2024/25 From - Spending review Topic 4]]+Dataset[[#This Row],[2024/25 From - Other reallocations]]","v":0},{"$f":"Dataset[[#This Row],[2025/26 From - Spending review Topic 1]]+Dataset[[#This Row],[2025/26 From - Spending review Topic 2]]+Dataset[[#This Row],[2025/26 From - Spending review Topic 3]]+Dataset[[#This Row],[2025/26 From - Spending review Topic 4]]+Dataset[[#This Row],[2025/26 From - Other reallocations]]","v":0},{"$f":"Dataset[[#This Row],[2026/27 From - Spending review Topic 1]]+Dataset[[#This Row],[2026/27 From - Spending review Topic 2]]+Dataset[[#This Row],[2026/27 From - Spending review Topic 3]]+Dataset[[#This Row],[2026/27 From - Spending review Topic 4]]+Dataset[[#This Row],[2026/27 From - Other reallocations]]","v":0},{"$f":"Dataset[[#This Row],[2024/25 To - Spending review Topic 1]]+Dataset[[#This Row],[2024/25 To - Spending review Topic 2]]+Dataset[[#This Row],[2024/25 To - Spending review Topic 3]]+Dataset[[#This Row],[2024/25 To - Spending review Topic 4]]+Dataset[[#This Row],[2024/25 To - Other reallocations]]","v":0},{"$f":"Dataset[[#This Row],[2025/26 To - Spending review Topic 1]]+Dataset[[#This Row],[2025/26 To - Spending review Topic 2]]+Dataset[[#This Row],[2025/26 To - Spending review Topic 3]]+Dataset[[#This Row],[2025/26 To - Spending review Topic 4]]+Dataset[[#This Row],[2025/26 To - Other reallocations]]","v":0},{"$f":"Dataset[[#This Row],[2026/27 To - Spending review Topic 1]]+Dataset[[#This Row],[2026/27 To - Spending review Topic 2]]+Dataset[[#This Row],[2026/27 To - Spending review Topic 3]]+Dataset[[#This Row],[2026/27 To - Spending review Topic 4]]+Dataset[[#This Row],[2026/27 To - Other reallocations]]","v":0},{"$f":"Dataset[[#This Row],[2024/25 Reduction]]+Dataset[[#This Row],[2024/25 From - Total]]","v":0},{"$f":"Dataset[[#This Row],[2025/26 Reduction]]+Dataset[[#This Row],[2025/26 From - Total]]","v":0},{"$f":"Dataset[[#This Row],[2026/27 Reduction]]+Dataset[[#This Row],[2026/27 From - Total]]","v":0},{"$f":"Dataset[[#This Row],[2023/24 Reduction]]","v":0},{"$f":"SUM(Dataset[[#This Row],[2024/25 Reduction]],Dataset[[#This Row],[2024/25 From - Total]],Dataset[[#This Row],[2024/25 To - Total]])","v":0},{"$f":"SUM(Dataset[[#This Row],[2025/26 Reduction]],Dataset[[#This Row],[2025/26 From - Total]],Dataset[[#This Row],[2025/26 To - Total]])","v":0},{"$f":"SUM(Dataset[[#This Row],[2026/27 Reduction]],Dataset[[#This Row],[2026/27 From - Total]],Dataset[[#This Row],[2026/27 To - Total]])","v":0},{"$f":"Dataset[[#This Row],[2023/24 Baseline]]+Dataset[[#This Row],[2023/24 Total change]]","v":0},{"$f":"Dataset[[#This Row],[2024/25 Baseline]]+Dataset[[#This Row],[2024/25 Total change]]","v":0},{"$f":"Dataset[[#This Row],[2025/26 Baseline]]+Dataset[[#This Row],[2025/26 Total change]]","v":0},{"$f":"Dataset[[#This Row],[2026/27 Baseline]]+Dataset[[#This Row],[2026/27 Total change]]","v":0}]
["NAT|Non-transfer item","26|Other fixed structures","2024_25","MTEF2024",26,2,1,44418,531,"26","02","01","044418","000531","26|02|01","02","03","11","55","59","02|03|11|55|59","National","Military Veterans","Socioeconomic Support","Database and Benefits Management","Non-transfer item","Capital","Payments for capital assets","Buildings and other fixed structures","Other fixed structures","Other fixed structures","Peace and security","Defence and state security","NAT",0,0,0,0,0,0,0,0,0,0,0,null,null,null,null,null,null,null,null,null,null,null,null,null,null,null,null,null,null,null,null,null,null,null,null,null,null,null,null,null,null,null,null,null,null,{"$f":"Dataset[[#This Row],[2024/25 From - Spending review Topic 1]]+Dataset[[#This Row],[2024/25 From - Spending review Topic 2]]+Dataset[[#This Row],[2024/25 From - Spending review Topic 3]]+Dataset[[#This Row],[2024/25 From - Spending review Topic 4]]+Dataset[[#This Row],[2024/25 From - Other reallocations]]","v":0},{"$f":"Dataset[[#This Row],[2025/26 From - Spending review Topic 1]]+Dataset[[#This Row],[2025/26 From - Spending review Topic 2]]+Dataset[[#This Row],[2025/26 From - Spending review Topic 3]]+Dataset[[#This Row],[2025/26 From - Spending review Topic 4]]+Dataset[[#This Row],[2025/26 From - Other reallocations]]","v":0},{"$f":"Dataset[[#This Row],[2026/27 From - Spending review Topic 1]]+Dataset[[#This Row],[2026/27 From - Spending review Topic 2]]+Dataset[[#This Row],[2026/27 From - Spending review Topic 3]]+Dataset[[#This Row],[2026/27 From - Spending review Topic 4]]+Dataset[[#This Row],[2026/27 From - Other reallocations]]","v":0},{"$f":"Dataset[[#This Row],[2024/25 To - Spending review Topic 1]]+Dataset[[#This Row],[2024/25 To - Spending review Topic 2]]+Dataset[[#This Row],[2024/25 To - Spending review Topic 3]]+Dataset[[#This Row],[2024/25 To - Spending review Topic 4]]+Dataset[[#This Row],[2024/25 To - Other reallocations]]","v":0},{"$f":"Dataset[[#This Row],[2025/26 To - Spending review Topic 1]]+Dataset[[#This Row],[2025/26 To - Spending review Topic 2]]+Dataset[[#This Row],[2025/26 To - Spending review Topic 3]]+Dataset[[#This Row],[2025/26 To - Spending review Topic 4]]+Dataset[[#This Row],[2025/26 To - Other reallocations]]","v":0},{"$f":"Dataset[[#This Row],[2026/27 To - Spending review Topic 1]]+Dataset[[#This Row],[2026/27 To - Spending review Topic 2]]+Dataset[[#This Row],[2026/27 To - Spending review Topic 3]]+Dataset[[#This Row],[2026/27 To - Spending review Topic 4]]+Dataset[[#This Row],[2026/27 To - Other reallocations]]","v":0},{"$f":"Dataset[[#This Row],[2024/25 Reduction]]+Dataset[[#This Row],[2024/25 From - Total]]","v":0},{"$f":"Dataset[[#This Row],[2025/26 Reduction]]+Dataset[[#This Row],[2025/26 From - Total]]","v":0},{"$f":"Dataset[[#This Row],[2026/27 Reduction]]+Dataset[[#This Row],[2026/27 From - Total]]","v":0},{"$f":"Dataset[[#This Row],[2023/24 Reduction]]","v":0},{"$f":"SUM(Dataset[[#This Row],[2024/25 Reduction]],Dataset[[#This Row],[2024/25 From - Total]],Dataset[[#This Row],[2024/25 To - Total]])","v":0},{"$f":"SUM(Dataset[[#This Row],[2025/26 Reduction]],Dataset[[#This Row],[2025/26 From - Total]],Dataset[[#This Row],[2025/26 To - Total]])","v":0},{"$f":"SUM(Dataset[[#This Row],[2026/27 Reduction]],Dataset[[#This Row],[2026/27 From - Total]],Dataset[[#This Row],[2026/27 To - Total]])","v":0},{"$f":"Dataset[[#This Row],[2023/24 Baseline]]+Dataset[[#This Row],[2023/24 Total change]]","v":0},{"$f":"Dataset[[#This Row],[2024/25 Baseline]]+Dataset[[#This Row],[2024/25 Total change]]","v":0},{"$f":"Dataset[[#This Row],[2025/26 Baseline]]+Dataset[[#This Row],[2025/26 Total change]]","v":0},{"$f":"Dataset[[#This Row],[2026/27 Baseline]]+Dataset[[#This Row],[2026/27 Total change]]","v":0}]
["NAT|Non-transfer item","26|Transport equipment","2024_25","MTEF2024",26,2,1,44419,532,"26","02","01","044419","000532","26|02|01","02","03","12","56","60","02|03|12|56|60","National","Military Veterans","Socioeconomic Support","Database and Benefits Management","Non-transfer item","Capital","Payments for capital assets","Machinery and equipment","Transport equipment","Transport equipment","Peace and security","Defence and state security","NAT",0,0,0,0,0,0,0,0,0,0,0,null,null,null,null,null,null,null,null,null,null,null,null,null,null,null,null,null,null,null,null,null,null,null,null,null,null,null,null,null,null,null,null,null,null,{"$f":"Dataset[[#This Row],[2024/25 From - Spending review Topic 1]]+Dataset[[#This Row],[2024/25 From - Spending review Topic 2]]+Dataset[[#This Row],[2024/25 From - Spending review Topic 3]]+Dataset[[#This Row],[2024/25 From - Spending review Topic 4]]+Dataset[[#This Row],[2024/25 From - Other reallocations]]","v":0},{"$f":"Dataset[[#This Row],[2025/26 From - Spending review Topic 1]]+Dataset[[#This Row],[2025/26 From - Spending review Topic 2]]+Dataset[[#This Row],[2025/26 From - Spending review Topic 3]]+Dataset[[#This Row],[2025/26 From - Spending review Topic 4]]+Dataset[[#This Row],[2025/26 From - Other reallocations]]","v":0},{"$f":"Dataset[[#This Row],[2026/27 From - Spending review Topic 1]]+Dataset[[#This Row],[2026/27 From - Spending review Topic 2]]+Dataset[[#This Row],[2026/27 From - Spending review Topic 3]]+Dataset[[#This Row],[2026/27 From - Spending review Topic 4]]+Dataset[[#This Row],[2026/27 From - Other reallocations]]","v":0},{"$f":"Dataset[[#This Row],[2024/25 To - Spending review Topic 1]]+Dataset[[#This Row],[2024/25 To - Spending review Topic 2]]+Dataset[[#This Row],[2024/25 To - Spending review Topic 3]]+Dataset[[#This Row],[2024/25 To - Spending review Topic 4]]+Dataset[[#This Row],[2024/25 To - Other reallocations]]","v":0},{"$f":"Dataset[[#This Row],[2025/26 To - Spending review Topic 1]]+Dataset[[#This Row],[2025/26 To - Spending review Topic 2]]+Dataset[[#This Row],[2025/26 To - Spending review Topic 3]]+Dataset[[#This Row],[2025/26 To - Spending review Topic 4]]+Dataset[[#This Row],[2025/26 To - Other reallocations]]","v":0},{"$f":"Dataset[[#This Row],[2026/27 To - Spending review Topic 1]]+Dataset[[#This Row],[2026/27 To - Spending review Topic 2]]+Dataset[[#This Row],[2026/27 To - Spending review Topic 3]]+Dataset[[#This Row],[2026/27 To - Spending review Topic 4]]+Dataset[[#This Row],[2026/27 To - Other reallocations]]","v":0},{"$f":"Dataset[[#This Row],[2024/25 Reduction]]+Dataset[[#This Row],[2024/25 From - Total]]","v":0},{"$f":"Dataset[[#This Row],[2025/26 Reduction]]+Dataset[[#This Row],[2025/26 From - Total]]","v":0},{"$f":"Dataset[[#This Row],[2026/27 Reduction]]+Dataset[[#This Row],[2026/27 From - Total]]","v":0},{"$f":"Dataset[[#This Row],[2023/24 Reduction]]","v":0},{"$f":"SUM(Dataset[[#This Row],[2024/25 Reduction]],Dataset[[#This Row],[2024/25 From - Total]],Dataset[[#This Row],[2024/25 To - Total]])","v":0},{"$f":"SUM(Dataset[[#This Row],[2025/26 Reduction]],Dataset[[#This Row],[2025/26 From - Total]],Dataset[[#This Row],[2025/26 To - Total]])","v":0},{"$f":"SUM(Dataset[[#This Row],[2026/27 Reduction]],Dataset[[#This Row],[2026/27 From - Total]],Dataset[[#This Row],[2026/27 To - Total]])","v":0},{"$f":"Dataset[[#This Row],[2023/24 Baseline]]+Dataset[[#This Row],[2023/24 Total change]]","v":0},{"$f":"Dataset[[#This Row],[2024/25 Baseline]]+Dataset[[#This Row],[2024/25 Total change]]","v":0},{"$f":"Dataset[[#This Row],[2025/26 Baseline]]+Dataset[[#This Row],[2025/26 Total change]]","v":0},{"$f":"Dataset[[#This Row],[2026/27 Baseline]]+Dataset[[#This Row],[2026/27 Total change]]","v":0}]
["NAT|Non-transfer item","26|Other machinery and equipment","2024_25","MTEF2024",26,2,1,44420,533,"26","02","01","044420","000533","26|02|01","02","03","12","57","61","02|03|12|57|61","National","Military Veterans","Socioeconomic Support","Database and Benefits Management","Non-transfer item","Capital","Payments for capital assets","Machinery and equipment","Other machinery and equipment","Other machinery and equipment","Peace and security","Defence and state security","NAT",37,97,200,543,593,593,0,1790,1931,1555,1626,null,null,null,null,null,null,null,null,null,null,null,null,null,null,null,null,null,null,null,null,null,null,null,null,null,null,null,null,null,null,null,null,null,null,{"$f":"Dataset[[#This Row],[2024/25 From - Spending review Topic 1]]+Dataset[[#This Row],[2024/25 From - Spending review Topic 2]]+Dataset[[#This Row],[2024/25 From - Spending review Topic 3]]+Dataset[[#This Row],[2024/25 From - Spending review Topic 4]]+Dataset[[#This Row],[2024/25 From - Other reallocations]]","v":0},{"$f":"Dataset[[#This Row],[2025/26 From - Spending review Topic 1]]+Dataset[[#This Row],[2025/26 From - Spending review Topic 2]]+Dataset[[#This Row],[2025/26 From - Spending review Topic 3]]+Dataset[[#This Row],[2025/26 From - Spending review Topic 4]]+Dataset[[#This Row],[2025/26 From - Other reallocations]]","v":0},{"$f":"Dataset[[#This Row],[2026/27 From - Spending review Topic 1]]+Dataset[[#This Row],[2026/27 From - Spending review Topic 2]]+Dataset[[#This Row],[2026/27 From - Spending review Topic 3]]+Dataset[[#This Row],[2026/27 From - Spending review Topic 4]]+Dataset[[#This Row],[2026/27 From - Other reallocations]]","v":0},{"$f":"Dataset[[#This Row],[2024/25 To - Spending review Topic 1]]+Dataset[[#This Row],[2024/25 To - Spending review Topic 2]]+Dataset[[#This Row],[2024/25 To - Spending review Topic 3]]+Dataset[[#This Row],[2024/25 To - Spending review Topic 4]]+Dataset[[#This Row],[2024/25 To - Other reallocations]]","v":0},{"$f":"Dataset[[#This Row],[2025/26 To - Spending review Topic 1]]+Dataset[[#This Row],[2025/26 To - Spending review Topic 2]]+Dataset[[#This Row],[2025/26 To - Spending review Topic 3]]+Dataset[[#This Row],[2025/26 To - Spending review Topic 4]]+Dataset[[#This Row],[2025/26 To - Other reallocations]]","v":0},{"$f":"Dataset[[#This Row],[2026/27 To - Spending review Topic 1]]+Dataset[[#This Row],[2026/27 To - Spending review Topic 2]]+Dataset[[#This Row],[2026/27 To - Spending review Topic 3]]+Dataset[[#This Row],[2026/27 To - Spending review Topic 4]]+Dataset[[#This Row],[2026/27 To - Other reallocations]]","v":0},{"$f":"Dataset[[#This Row],[2024/25 Reduction]]+Dataset[[#This Row],[2024/25 From - Total]]","v":0},{"$f":"Dataset[[#This Row],[2025/26 Reduction]]+Dataset[[#This Row],[2025/26 From - Total]]","v":0},{"$f":"Dataset[[#This Row],[2026/27 Reduction]]+Dataset[[#This Row],[2026/27 From - Total]]","v":0},{"$f":"Dataset[[#This Row],[2023/24 Reduction]]","v":0},{"$f":"SUM(Dataset[[#This Row],[2024/25 Reduction]],Dataset[[#This Row],[2024/25 From - Total]],Dataset[[#This Row],[2024/25 To - Total]])","v":0},{"$f":"SUM(Dataset[[#This Row],[2025/26 Reduction]],Dataset[[#This Row],[2025/26 From - Total]],Dataset[[#This Row],[2025/26 To - Total]])","v":0},{"$f":"SUM(Dataset[[#This Row],[2026/27 Reduction]],Dataset[[#This Row],[2026/27 From - Total]],Dataset[[#This Row],[2026/27 To - Total]])","v":0},{"$f":"Dataset[[#This Row],[2023/24 Baseline]]+Dataset[[#This Row],[2023/24 Total change]]","v":1790},{"$f":"Dataset[[#This Row],[2024/25 Baseline]]+Dataset[[#This Row],[2024/25 Total change]]","v":1931},{"$f":"Dataset[[#This Row],[2025/26 Baseline]]+Dataset[[#This Row],[2025/26 Total change]]","v":1555},{"$f":"Dataset[[#This Row],[2026/27 Baseline]]+Dataset[[#This Row],[2026/27 Total change]]","v":1626}]
["NAT|Non-transfer item","26|Heritage assets","2024_25","MTEF2024",26,2,1,44421,534,"26","02","01","044421","000534","26|02|01","02","03","13","58","62","02|03|13|58|62","National","Military Veterans","Socioeconomic Support","Database and Benefits Management","Non-transfer item","Capital","Payments for capital assets","Heritage assets","Heritage assets","Heritage assets","Peace and security","Defence and state security","NAT",0,0,0,0,0,0,0,0,0,0,0,null,null,null,null,null,null,null,null,null,null,null,null,null,null,null,null,null,null,null,null,null,null,null,null,null,null,null,null,null,null,null,null,null,null,{"$f":"Dataset[[#This Row],[2024/25 From - Spending review Topic 1]]+Dataset[[#This Row],[2024/25 From - Spending review Topic 2]]+Dataset[[#This Row],[2024/25 From - Spending review Topic 3]]+Dataset[[#This Row],[2024/25 From - Spending review Topic 4]]+Dataset[[#This Row],[2024/25 From - Other reallocations]]","v":0},{"$f":"Dataset[[#This Row],[2025/26 From - Spending review Topic 1]]+Dataset[[#This Row],[2025/26 From - Spending review Topic 2]]+Dataset[[#This Row],[2025/26 From - Spending review Topic 3]]+Dataset[[#This Row],[2025/26 From - Spending review Topic 4]]+Dataset[[#This Row],[2025/26 From - Other reallocations]]","v":0},{"$f":"Dataset[[#This Row],[2026/27 From - Spending review Topic 1]]+Dataset[[#This Row],[2026/27 From - Spending review Topic 2]]+Dataset[[#This Row],[2026/27 From - Spending review Topic 3]]+Dataset[[#This Row],[2026/27 From - Spending review Topic 4]]+Dataset[[#This Row],[2026/27 From - Other reallocations]]","v":0},{"$f":"Dataset[[#This Row],[2024/25 To - Spending review Topic 1]]+Dataset[[#This Row],[2024/25 To - Spending review Topic 2]]+Dataset[[#This Row],[2024/25 To - Spending review Topic 3]]+Dataset[[#This Row],[2024/25 To - Spending review Topic 4]]+Dataset[[#This Row],[2024/25 To - Other reallocations]]","v":0},{"$f":"Dataset[[#This Row],[2025/26 To - Spending review Topic 1]]+Dataset[[#This Row],[2025/26 To - Spending review Topic 2]]+Dataset[[#This Row],[2025/26 To - Spending review Topic 3]]+Dataset[[#This Row],[2025/26 To - Spending review Topic 4]]+Dataset[[#This Row],[2025/26 To - Other reallocations]]","v":0},{"$f":"Dataset[[#This Row],[2026/27 To - Spending review Topic 1]]+Dataset[[#This Row],[2026/27 To - Spending review Topic 2]]+Dataset[[#This Row],[2026/27 To - Spending review Topic 3]]+Dataset[[#This Row],[2026/27 To - Spending review Topic 4]]+Dataset[[#This Row],[2026/27 To - Other reallocations]]","v":0},{"$f":"Dataset[[#This Row],[2024/25 Reduction]]+Dataset[[#This Row],[2024/25 From - Total]]","v":0},{"$f":"Dataset[[#This Row],[2025/26 Reduction]]+Dataset[[#This Row],[2025/26 From - Total]]","v":0},{"$f":"Dataset[[#This Row],[2026/27 Reduction]]+Dataset[[#This Row],[2026/27 From - Total]]","v":0},{"$f":"Dataset[[#This Row],[2023/24 Reduction]]","v":0},{"$f":"SUM(Dataset[[#This Row],[2024/25 Reduction]],Dataset[[#This Row],[2024/25 From - Total]],Dataset[[#This Row],[2024/25 To - Total]])","v":0},{"$f":"SUM(Dataset[[#This Row],[2025/26 Reduction]],Dataset[[#This Row],[2025/26 From - Total]],Dataset[[#This Row],[2025/26 To - Total]])","v":0},{"$f":"SUM(Dataset[[#This Row],[2026/27 Reduction]],Dataset[[#This Row],[2026/27 From - Total]],Dataset[[#This Row],[2026/27 To - Total]])","v":0},{"$f":"Dataset[[#This Row],[2023/24 Baseline]]+Dataset[[#This Row],[2023/24 Total change]]","v":0},{"$f":"Dataset[[#This Row],[2024/25 Baseline]]+Dataset[[#This Row],[2024/25 Total change]]","v":0},{"$f":"Dataset[[#This Row],[2025/26 Baseline]]+Dataset[[#This Row],[2025/26 Total change]]","v":0},{"$f":"Dataset[[#This Row],[2026/27 Baseline]]+Dataset[[#This Row],[2026/27 Total change]]","v":0}]
["NAT|Non-transfer item","26|Specialised military assets","2024_25","MTEF2024",26,2,1,44422,535,"26","02","01","044422","000535","26|02|01","02","03","14","59","63","02|03|14|59|63","National","Military Veterans","Socioeconomic Support","Database and Benefits Management","Non-transfer item","Capital","Payments for capital assets","Specialised military assets","Specialised military assets","Specialised military assets","Peace and security","Defence and state security","NAT",0,0,0,0,0,0,0,0,0,0,0,null,null,null,null,null,null,null,null,null,null,null,null,null,null,null,null,null,null,null,null,null,null,null,null,null,null,null,null,null,null,null,null,null,null,{"$f":"Dataset[[#This Row],[2024/25 From - Spending review Topic 1]]+Dataset[[#This Row],[2024/25 From - Spending review Topic 2]]+Dataset[[#This Row],[2024/25 From - Spending review Topic 3]]+Dataset[[#This Row],[2024/25 From - Spending review Topic 4]]+Dataset[[#This Row],[2024/25 From - Other reallocations]]","v":0},{"$f":"Dataset[[#This Row],[2025/26 From - Spending review Topic 1]]+Dataset[[#This Row],[2025/26 From - Spending review Topic 2]]+Dataset[[#This Row],[2025/26 From - Spending review Topic 3]]+Dataset[[#This Row],[2025/26 From - Spending review Topic 4]]+Dataset[[#This Row],[2025/26 From - Other reallocations]]","v":0},{"$f":"Dataset[[#This Row],[2026/27 From - Spending review Topic 1]]+Dataset[[#This Row],[2026/27 From - Spending review Topic 2]]+Dataset[[#This Row],[2026/27 From - Spending review Topic 3]]+Dataset[[#This Row],[2026/27 From - Spending review Topic 4]]+Dataset[[#This Row],[2026/27 From - Other reallocations]]","v":0},{"$f":"Dataset[[#This Row],[2024/25 To - Spending review Topic 1]]+Dataset[[#This Row],[2024/25 To - Spending review Topic 2]]+Dataset[[#This Row],[2024/25 To - Spending review Topic 3]]+Dataset[[#This Row],[2024/25 To - Spending review Topic 4]]+Dataset[[#This Row],[2024/25 To - Other reallocations]]","v":0},{"$f":"Dataset[[#This Row],[2025/26 To - Spending review Topic 1]]+Dataset[[#This Row],[2025/26 To - Spending review Topic 2]]+Dataset[[#This Row],[2025/26 To - Spending review Topic 3]]+Dataset[[#This Row],[2025/26 To - Spending review Topic 4]]+Dataset[[#This Row],[2025/26 To - Other reallocations]]","v":0},{"$f":"Dataset[[#This Row],[2026/27 To - Spending review Topic 1]]+Dataset[[#This Row],[2026/27 To - Spending review Topic 2]]+Dataset[[#This Row],[2026/27 To - Spending review Topic 3]]+Dataset[[#This Row],[2026/27 To - Spending review Topic 4]]+Dataset[[#This Row],[2026/27 To - Other reallocations]]","v":0},{"$f":"Dataset[[#This Row],[2024/25 Reduction]]+Dataset[[#This Row],[2024/25 From - Total]]","v":0},{"$f":"Dataset[[#This Row],[2025/26 Reduction]]+Dataset[[#This Row],[2025/26 From - Total]]","v":0},{"$f":"Dataset[[#This Row],[2026/27 Reduction]]+Dataset[[#This Row],[2026/27 From - Total]]","v":0},{"$f":"Dataset[[#This Row],[2023/24 Reduction]]","v":0},{"$f":"SUM(Dataset[[#This Row],[2024/25 Reduction]],Dataset[[#This Row],[2024/25 From - Total]],Dataset[[#This Row],[2024/25 To - Total]])","v":0},{"$f":"SUM(Dataset[[#This Row],[2025/26 Reduction]],Dataset[[#This Row],[2025/26 From - Total]],Dataset[[#This Row],[2025/26 To - Total]])","v":0},{"$f":"SUM(Dataset[[#This Row],[2026/27 Reduction]],Dataset[[#This Row],[2026/27 From - Total]],Dataset[[#This Row],[2026/27 To - Total]])","v":0},{"$f":"Dataset[[#This Row],[2023/24 Baseline]]+Dataset[[#This Row],[2023/24 Total change]]","v":0},{"$f":"Dataset[[#This Row],[2024/25 Baseline]]+Dataset[[#This Row],[2024/25 Total change]]","v":0},{"$f":"Dataset[[#This Row],[2025/26 Baseline]]+Dataset[[#This Row],[2025/26 Total change]]","v":0},{"$f":"Dataset[[#This Row],[2026/27 Baseline]]+Dataset[[#This Row],[2026/27 Total change]]","v":0}]
["NAT|Non-transfer item","26|Biological assets","2024_25","MTEF2024",26,2,1,44423,536,"26","02","01","044423","000536","26|02|01","02","03","15","60","64","02|03|15|60|64","National","Military Veterans","Socioeconomic Support","Database and Benefits Management","Non-transfer item","Capital","Payments for capital assets","Biological assets","Biological assets","Biological assets","Peace and security","Defence and state security","NAT",0,0,0,0,0,0,0,0,0,0,0,null,null,null,null,null,null,null,null,null,null,null,null,null,null,null,null,null,null,null,null,null,null,null,null,null,null,null,null,null,null,null,null,null,null,{"$f":"Dataset[[#This Row],[2024/25 From - Spending review Topic 1]]+Dataset[[#This Row],[2024/25 From - Spending review Topic 2]]+Dataset[[#This Row],[2024/25 From - Spending review Topic 3]]+Dataset[[#This Row],[2024/25 From - Spending review Topic 4]]+Dataset[[#This Row],[2024/25 From - Other reallocations]]","v":0},{"$f":"Dataset[[#This Row],[2025/26 From - Spending review Topic 1]]+Dataset[[#This Row],[2025/26 From - Spending review Topic 2]]+Dataset[[#This Row],[2025/26 From - Spending review Topic 3]]+Dataset[[#This Row],[2025/26 From - Spending review Topic 4]]+Dataset[[#This Row],[2025/26 From - Other reallocations]]","v":0},{"$f":"Dataset[[#This Row],[2026/27 From - Spending review Topic 1]]+Dataset[[#This Row],[2026/27 From - Spending review Topic 2]]+Dataset[[#This Row],[2026/27 From - Spending review Topic 3]]+Dataset[[#This Row],[2026/27 From - Spending review Topic 4]]+Dataset[[#This Row],[2026/27 From - Other reallocations]]","v":0},{"$f":"Dataset[[#This Row],[2024/25 To - Spending review Topic 1]]+Dataset[[#This Row],[2024/25 To - Spending review Topic 2]]+Dataset[[#This Row],[2024/25 To - Spending review Topic 3]]+Dataset[[#This Row],[2024/25 To - Spending review Topic 4]]+Dataset[[#This Row],[2024/25 To - Other reallocations]]","v":0},{"$f":"Dataset[[#This Row],[2025/26 To - Spending review Topic 1]]+Dataset[[#This Row],[2025/26 To - Spending review Topic 2]]+Dataset[[#This Row],[2025/26 To - Spending review Topic 3]]+Dataset[[#This Row],[2025/26 To - Spending review Topic 4]]+Dataset[[#This Row],[2025/26 To - Other reallocations]]","v":0},{"$f":"Dataset[[#This Row],[2026/27 To - Spending review Topic 1]]+Dataset[[#This Row],[2026/27 To - Spending review Topic 2]]+Dataset[[#This Row],[2026/27 To - Spending review Topic 3]]+Dataset[[#This Row],[2026/27 To - Spending review Topic 4]]+Dataset[[#This Row],[2026/27 To - Other reallocations]]","v":0},{"$f":"Dataset[[#This Row],[2024/25 Reduction]]+Dataset[[#This Row],[2024/25 From - Total]]","v":0},{"$f":"Dataset[[#This Row],[2025/26 Reduction]]+Dataset[[#This Row],[2025/26 From - Total]]","v":0},{"$f":"Dataset[[#This Row],[2026/27 Reduction]]+Dataset[[#This Row],[2026/27 From - Total]]","v":0},{"$f":"Dataset[[#This Row],[2023/24 Reduction]]","v":0},{"$f":"SUM(Dataset[[#This Row],[2024/25 Reduction]],Dataset[[#This Row],[2024/25 From - Total]],Dataset[[#This Row],[2024/25 To - Total]])","v":0},{"$f":"SUM(Dataset[[#This Row],[2025/26 Reduction]],Dataset[[#This Row],[2025/26 From - Total]],Dataset[[#This Row],[2025/26 To - Total]])","v":0},{"$f":"SUM(Dataset[[#This Row],[2026/27 Reduction]],Dataset[[#This Row],[2026/27 From - Total]],Dataset[[#This Row],[2026/27 To - Total]])","v":0},{"$f":"Dataset[[#This Row],[2023/24 Baseline]]+Dataset[[#This Row],[2023/24 Total change]]","v":0},{"$f":"Dataset[[#This Row],[2024/25 Baseline]]+Dataset[[#This Row],[2024/25 Total change]]","v":0},{"$f":"Dataset[[#This Row],[2025/26 Baseline]]+Dataset[[#This Row],[2025/26 Total change]]","v":0},{"$f":"Dataset[[#This Row],[2026/27 Baseline]]+Dataset[[#This Row],[2026/27 Total change]]","v":0}]
["NAT|Non-transfer item","26|Land and sub-soil assets","2024_25","MTEF2024",26,2,1,44424,537,"26","02","01","044424","000537","26|02|01","02","03","16","61","65","02|03|16|61|65","National","Military Veterans","Socioeconomic Support","Database and Benefits Management","Non-transfer item","Capital","Payments for capital assets","Land and sub-soil assets","Land and sub-soil assets","Land and sub-soil assets","Peace and security","Defence and state security","NAT",0,0,0,0,0,0,0,0,0,0,0,null,null,null,null,null,null,null,null,null,null,null,null,null,null,null,null,null,null,null,null,null,null,null,null,null,null,null,null,null,null,null,null,null,null,{"$f":"Dataset[[#This Row],[2024/25 From - Spending review Topic 1]]+Dataset[[#This Row],[2024/25 From - Spending review Topic 2]]+Dataset[[#This Row],[2024/25 From - Spending review Topic 3]]+Dataset[[#This Row],[2024/25 From - Spending review Topic 4]]+Dataset[[#This Row],[2024/25 From - Other reallocations]]","v":0},{"$f":"Dataset[[#This Row],[2025/26 From - Spending review Topic 1]]+Dataset[[#This Row],[2025/26 From - Spending review Topic 2]]+Dataset[[#This Row],[2025/26 From - Spending review Topic 3]]+Dataset[[#This Row],[2025/26 From - Spending review Topic 4]]+Dataset[[#This Row],[2025/26 From - Other reallocations]]","v":0},{"$f":"Dataset[[#This Row],[2026/27 From - Spending review Topic 1]]+Dataset[[#This Row],[2026/27 From - Spending review Topic 2]]+Dataset[[#This Row],[2026/27 From - Spending review Topic 3]]+Dataset[[#This Row],[2026/27 From - Spending review Topic 4]]+Dataset[[#This Row],[2026/27 From - Other reallocations]]","v":0},{"$f":"Dataset[[#This Row],[2024/25 To - Spending review Topic 1]]+Dataset[[#This Row],[2024/25 To - Spending review Topic 2]]+Dataset[[#This Row],[2024/25 To - Spending review Topic 3]]+Dataset[[#This Row],[2024/25 To - Spending review Topic 4]]+Dataset[[#This Row],[2024/25 To - Other reallocations]]","v":0},{"$f":"Dataset[[#This Row],[2025/26 To - Spending review Topic 1]]+Dataset[[#This Row],[2025/26 To - Spending review Topic 2]]+Dataset[[#This Row],[2025/26 To - Spending review Topic 3]]+Dataset[[#This Row],[2025/26 To - Spending review Topic 4]]+Dataset[[#This Row],[2025/26 To - Other reallocations]]","v":0},{"$f":"Dataset[[#This Row],[2026/27 To - Spending review Topic 1]]+Dataset[[#This Row],[2026/27 To - Spending review Topic 2]]+Dataset[[#This Row],[2026/27 To - Spending review Topic 3]]+Dataset[[#This Row],[2026/27 To - Spending review Topic 4]]+Dataset[[#This Row],[2026/27 To - Other reallocations]]","v":0},{"$f":"Dataset[[#This Row],[2024/25 Reduction]]+Dataset[[#This Row],[2024/25 From - Total]]","v":0},{"$f":"Dataset[[#This Row],[2025/26 Reduction]]+Dataset[[#This Row],[2025/26 From - Total]]","v":0},{"$f":"Dataset[[#This Row],[2026/27 Reduction]]+Dataset[[#This Row],[2026/27 From - Total]]","v":0},{"$f":"Dataset[[#This Row],[2023/24 Reduction]]","v":0},{"$f":"SUM(Dataset[[#This Row],[2024/25 Reduction]],Dataset[[#This Row],[2024/25 From - Total]],Dataset[[#This Row],[2024/25 To - Total]])","v":0},{"$f":"SUM(Dataset[[#This Row],[2025/26 Reduction]],Dataset[[#This Row],[2025/26 From - Total]],Dataset[[#This Row],[2025/26 To - Total]])","v":0},{"$f":"SUM(Dataset[[#This Row],[2026/27 Reduction]],Dataset[[#This Row],[2026/27 From - Total]],Dataset[[#This Row],[2026/27 To - Total]])","v":0},{"$f":"Dataset[[#This Row],[2023/24 Baseline]]+Dataset[[#This Row],[2023/24 Total change]]","v":0},{"$f":"Dataset[[#This Row],[2024/25 Baseline]]+Dataset[[#This Row],[2024/25 Total change]]","v":0},{"$f":"Dataset[[#This Row],[2025/26 Baseline]]+Dataset[[#This Row],[2025/26 Total change]]","v":0},{"$f":"Dataset[[#This Row],[2026/27 Baseline]]+Dataset[[#This Row],[2026/27 Total change]]","v":0}]
["NAT|Non-transfer item","26|Software and other intangible assets","2024_25","MTEF2024",26,2,1,44425,538,"26","02","01","044425","000538","26|02|01","02","03","17","62","66","02|03|17|62|66","National","Military Veterans","Socioeconomic Support","Database and Benefits Management","Non-transfer item","Capital","Payments for capital assets","Software and other intangible assets","Software and other intangible assets","Software and other intangible assets","Peace and security","Defence and state security","NAT",0,0,0,10047,47,47,0,1000,1000,1000,1046,null,null,null,null,null,null,null,null,null,null,null,null,null,null,null,null,null,null,null,null,null,null,null,null,null,null,null,null,null,null,null,null,null,null,{"$f":"Dataset[[#This Row],[2024/25 From - Spending review Topic 1]]+Dataset[[#This Row],[2024/25 From - Spending review Topic 2]]+Dataset[[#This Row],[2024/25 From - Spending review Topic 3]]+Dataset[[#This Row],[2024/25 From - Spending review Topic 4]]+Dataset[[#This Row],[2024/25 From - Other reallocations]]","v":0},{"$f":"Dataset[[#This Row],[2025/26 From - Spending review Topic 1]]+Dataset[[#This Row],[2025/26 From - Spending review Topic 2]]+Dataset[[#This Row],[2025/26 From - Spending review Topic 3]]+Dataset[[#This Row],[2025/26 From - Spending review Topic 4]]+Dataset[[#This Row],[2025/26 From - Other reallocations]]","v":0},{"$f":"Dataset[[#This Row],[2026/27 From - Spending review Topic 1]]+Dataset[[#This Row],[2026/27 From - Spending review Topic 2]]+Dataset[[#This Row],[2026/27 From - Spending review Topic 3]]+Dataset[[#This Row],[2026/27 From - Spending review Topic 4]]+Dataset[[#This Row],[2026/27 From - Other reallocations]]","v":0},{"$f":"Dataset[[#This Row],[2024/25 To - Spending review Topic 1]]+Dataset[[#This Row],[2024/25 To - Spending review Topic 2]]+Dataset[[#This Row],[2024/25 To - Spending review Topic 3]]+Dataset[[#This Row],[2024/25 To - Spending review Topic 4]]+Dataset[[#This Row],[2024/25 To - Other reallocations]]","v":0},{"$f":"Dataset[[#This Row],[2025/26 To - Spending review Topic 1]]+Dataset[[#This Row],[2025/26 To - Spending review Topic 2]]+Dataset[[#This Row],[2025/26 To - Spending review Topic 3]]+Dataset[[#This Row],[2025/26 To - Spending review Topic 4]]+Dataset[[#This Row],[2025/26 To - Other reallocations]]","v":0},{"$f":"Dataset[[#This Row],[2026/27 To - Spending review Topic 1]]+Dataset[[#This Row],[2026/27 To - Spending review Topic 2]]+Dataset[[#This Row],[2026/27 To - Spending review Topic 3]]+Dataset[[#This Row],[2026/27 To - Spending review Topic 4]]+Dataset[[#This Row],[2026/27 To - Other reallocations]]","v":0},{"$f":"Dataset[[#This Row],[2024/25 Reduction]]+Dataset[[#This Row],[2024/25 From - Total]]","v":0},{"$f":"Dataset[[#This Row],[2025/26 Reduction]]+Dataset[[#This Row],[2025/26 From - Total]]","v":0},{"$f":"Dataset[[#This Row],[2026/27 Reduction]]+Dataset[[#This Row],[2026/27 From - Total]]","v":0},{"$f":"Dataset[[#This Row],[2023/24 Reduction]]","v":0},{"$f":"SUM(Dataset[[#This Row],[2024/25 Reduction]],Dataset[[#This Row],[2024/25 From - Total]],Dataset[[#This Row],[2024/25 To - Total]])","v":0},{"$f":"SUM(Dataset[[#This Row],[2025/26 Reduction]],Dataset[[#This Row],[2025/26 From - Total]],Dataset[[#This Row],[2025/26 To - Total]])","v":0},{"$f":"SUM(Dataset[[#This Row],[2026/27 Reduction]],Dataset[[#This Row],[2026/27 From - Total]],Dataset[[#This Row],[2026/27 To - Total]])","v":0},{"$f":"Dataset[[#This Row],[2023/24 Baseline]]+Dataset[[#This Row],[2023/24 Total change]]","v":1000},{"$f":"Dataset[[#This Row],[2024/25 Baseline]]+Dataset[[#This Row],[2024/25 Total change]]","v":1000},{"$f":"Dataset[[#This Row],[2025/26 Baseline]]+Dataset[[#This Row],[2025/26 Total change]]","v":1000},{"$f":"Dataset[[#This Row],[2026/27 Baseline]]+Dataset[[#This Row],[2026/27 Total change]]","v":1046}]
["NAT|Non-transfer item","26|Payments for financial assets","2024_25","MTEF2024",26,2,1,44426,539,"26","02","01","044426","000539","26|02|01","03","04","18","63","67","03|04|18|63|67","National","Military Veterans","Socioeconomic Support","Database and Benefits Management","Non-transfer item","Payments for financial assets","Payments for financial assets","Payments for financial assets","Payments for financial assets","Payments for financial assets","Peace and security","Defence and state security","NAT",0,0,0,0,0,0,0,0,0,0,0,null,null,null,null,null,null,null,null,null,null,null,null,null,null,null,null,null,null,null,null,null,null,null,null,null,null,null,null,null,null,null,null,null,null,{"$f":"Dataset[[#This Row],[2024/25 From - Spending review Topic 1]]+Dataset[[#This Row],[2024/25 From - Spending review Topic 2]]+Dataset[[#This Row],[2024/25 From - Spending review Topic 3]]+Dataset[[#This Row],[2024/25 From - Spending review Topic 4]]+Dataset[[#This Row],[2024/25 From - Other reallocations]]","v":0},{"$f":"Dataset[[#This Row],[2025/26 From - Spending review Topic 1]]+Dataset[[#This Row],[2025/26 From - Spending review Topic 2]]+Dataset[[#This Row],[2025/26 From - Spending review Topic 3]]+Dataset[[#This Row],[2025/26 From - Spending review Topic 4]]+Dataset[[#This Row],[2025/26 From - Other reallocations]]","v":0},{"$f":"Dataset[[#This Row],[2026/27 From - Spending review Topic 1]]+Dataset[[#This Row],[2026/27 From - Spending review Topic 2]]+Dataset[[#This Row],[2026/27 From - Spending review Topic 3]]+Dataset[[#This Row],[2026/27 From - Spending review Topic 4]]+Dataset[[#This Row],[2026/27 From - Other reallocations]]","v":0},{"$f":"Dataset[[#This Row],[2024/25 To - Spending review Topic 1]]+Dataset[[#This Row],[2024/25 To - Spending review Topic 2]]+Dataset[[#This Row],[2024/25 To - Spending review Topic 3]]+Dataset[[#This Row],[2024/25 To - Spending review Topic 4]]+Dataset[[#This Row],[2024/25 To - Other reallocations]]","v":0},{"$f":"Dataset[[#This Row],[2025/26 To - Spending review Topic 1]]+Dataset[[#This Row],[2025/26 To - Spending review Topic 2]]+Dataset[[#This Row],[2025/26 To - Spending review Topic 3]]+Dataset[[#This Row],[2025/26 To - Spending review Topic 4]]+Dataset[[#This Row],[2025/26 To - Other reallocations]]","v":0},{"$f":"Dataset[[#This Row],[2026/27 To - Spending review Topic 1]]+Dataset[[#This Row],[2026/27 To - Spending review Topic 2]]+Dataset[[#This Row],[2026/27 To - Spending review Topic 3]]+Dataset[[#This Row],[2026/27 To - Spending review Topic 4]]+Dataset[[#This Row],[2026/27 To - Other reallocations]]","v":0},{"$f":"Dataset[[#This Row],[2024/25 Reduction]]+Dataset[[#This Row],[2024/25 From - Total]]","v":0},{"$f":"Dataset[[#This Row],[2025/26 Reduction]]+Dataset[[#This Row],[2025/26 From - Total]]","v":0},{"$f":"Dataset[[#This Row],[2026/27 Reduction]]+Dataset[[#This Row],[2026/27 From - Total]]","v":0},{"$f":"Dataset[[#This Row],[2023/24 Reduction]]","v":0},{"$f":"SUM(Dataset[[#This Row],[2024/25 Reduction]],Dataset[[#This Row],[2024/25 From - Total]],Dataset[[#This Row],[2024/25 To - Total]])","v":0},{"$f":"SUM(Dataset[[#This Row],[2025/26 Reduction]],Dataset[[#This Row],[2025/26 From - Total]],Dataset[[#This Row],[2025/26 To - Total]])","v":0},{"$f":"SUM(Dataset[[#This Row],[2026/27 Reduction]],Dataset[[#This Row],[2026/27 From - Total]],Dataset[[#This Row],[2026/27 To - Total]])","v":0},{"$f":"Dataset[[#This Row],[2023/24 Baseline]]+Dataset[[#This Row],[2023/24 Total change]]","v":0},{"$f":"Dataset[[#This Row],[2024/25 Baseline]]+Dataset[[#This Row],[2024/25 Total change]]","v":0},{"$f":"Dataset[[#This Row],[2025/26 Baseline]]+Dataset[[#This Row],[2025/26 Total change]]","v":0},{"$f":"Dataset[[#This Row],[2026/27 Baseline]]+Dataset[[#This Row],[2026/27 Total change]]","v":0}]
["NAT|Non-transfer item","26|Salaries and wages","2024_25","MTEF2024",26,2,2,44427,540,"26","02","02","044427","000540","26|02|02","01","01","01","01","01","01|01|01|01|01","National","Military Veterans","Socioeconomic Support","Health Care and Wellbeing Support","Non-transfer item","Current","Current payments","Compensation of employees","Salaries and wages","Salaries and wages","Peace and security","Defence and state security","NAT",9266,8570,8480,9091,8824,8824,0,9424,9840,10273,10744,null,null,null,null,null,null,null,null,null,null,null,null,null,null,null,null,null,null,null,null,null,null,null,null,null,null,null,null,null,null,null,null,null,null,{"$f":"Dataset[[#This Row],[2024/25 From - Spending review Topic 1]]+Dataset[[#This Row],[2024/25 From - Spending review Topic 2]]+Dataset[[#This Row],[2024/25 From - Spending review Topic 3]]+Dataset[[#This Row],[2024/25 From - Spending review Topic 4]]+Dataset[[#This Row],[2024/25 From - Other reallocations]]","v":0},{"$f":"Dataset[[#This Row],[2025/26 From - Spending review Topic 1]]+Dataset[[#This Row],[2025/26 From - Spending review Topic 2]]+Dataset[[#This Row],[2025/26 From - Spending review Topic 3]]+Dataset[[#This Row],[2025/26 From - Spending review Topic 4]]+Dataset[[#This Row],[2025/26 From - Other reallocations]]","v":0},{"$f":"Dataset[[#This Row],[2026/27 From - Spending review Topic 1]]+Dataset[[#This Row],[2026/27 From - Spending review Topic 2]]+Dataset[[#This Row],[2026/27 From - Spending review Topic 3]]+Dataset[[#This Row],[2026/27 From - Spending review Topic 4]]+Dataset[[#This Row],[2026/27 From - Other reallocations]]","v":0},{"$f":"Dataset[[#This Row],[2024/25 To - Spending review Topic 1]]+Dataset[[#This Row],[2024/25 To - Spending review Topic 2]]+Dataset[[#This Row],[2024/25 To - Spending review Topic 3]]+Dataset[[#This Row],[2024/25 To - Spending review Topic 4]]+Dataset[[#This Row],[2024/25 To - Other reallocations]]","v":0},{"$f":"Dataset[[#This Row],[2025/26 To - Spending review Topic 1]]+Dataset[[#This Row],[2025/26 To - Spending review Topic 2]]+Dataset[[#This Row],[2025/26 To - Spending review Topic 3]]+Dataset[[#This Row],[2025/26 To - Spending review Topic 4]]+Dataset[[#This Row],[2025/26 To - Other reallocations]]","v":0},{"$f":"Dataset[[#This Row],[2026/27 To - Spending review Topic 1]]+Dataset[[#This Row],[2026/27 To - Spending review Topic 2]]+Dataset[[#This Row],[2026/27 To - Spending review Topic 3]]+Dataset[[#This Row],[2026/27 To - Spending review Topic 4]]+Dataset[[#This Row],[2026/27 To - Other reallocations]]","v":0},{"$f":"Dataset[[#This Row],[2024/25 Reduction]]+Dataset[[#This Row],[2024/25 From - Total]]","v":0},{"$f":"Dataset[[#This Row],[2025/26 Reduction]]+Dataset[[#This Row],[2025/26 From - Total]]","v":0},{"$f":"Dataset[[#This Row],[2026/27 Reduction]]+Dataset[[#This Row],[2026/27 From - Total]]","v":0},{"$f":"Dataset[[#This Row],[2023/24 Reduction]]","v":0},{"$f":"SUM(Dataset[[#This Row],[2024/25 Reduction]],Dataset[[#This Row],[2024/25 From - Total]],Dataset[[#This Row],[2024/25 To - Total]])","v":0},{"$f":"SUM(Dataset[[#This Row],[2025/26 Reduction]],Dataset[[#This Row],[2025/26 From - Total]],Dataset[[#This Row],[2025/26 To - Total]])","v":0},{"$f":"SUM(Dataset[[#This Row],[2026/27 Reduction]],Dataset[[#This Row],[2026/27 From - Total]],Dataset[[#This Row],[2026/27 To - Total]])","v":0},{"$f":"Dataset[[#This Row],[2023/24 Baseline]]+Dataset[[#This Row],[2023/24 Total change]]","v":9424},{"$f":"Dataset[[#This Row],[2024/25 Baseline]]+Dataset[[#This Row],[2024/25 Total change]]","v":9840},{"$f":"Dataset[[#This Row],[2025/26 Baseline]]+Dataset[[#This Row],[2025/26 Total change]]","v":10273},{"$f":"Dataset[[#This Row],[2026/27 Baseline]]+Dataset[[#This Row],[2026/27 Total change]]","v":10744}]
["NAT|Non-transfer item","26|Social contributions","2024_25","MTEF2024",26,2,2,44428,541,"26","02","02","044428","000541","26|02|02","01","01","01","02","02","01|01|01|02|02","National","Military Veterans","Socioeconomic Support","Health Care and Wellbeing Support","Non-transfer item","Current","Current payments","Compensation of employees","Social contributions","Social contributions","Peace and security","Defence and state security","NAT",453,419,372,1441,349,349,0,1494,1560,1628,1703,null,null,null,null,null,null,null,null,null,null,null,null,null,null,null,null,null,null,null,null,null,null,null,null,null,null,null,null,null,null,null,null,null,null,{"$f":"Dataset[[#This Row],[2024/25 From - Spending review Topic 1]]+Dataset[[#This Row],[2024/25 From - Spending review Topic 2]]+Dataset[[#This Row],[2024/25 From - Spending review Topic 3]]+Dataset[[#This Row],[2024/25 From - Spending review Topic 4]]+Dataset[[#This Row],[2024/25 From - Other reallocations]]","v":0},{"$f":"Dataset[[#This Row],[2025/26 From - Spending review Topic 1]]+Dataset[[#This Row],[2025/26 From - Spending review Topic 2]]+Dataset[[#This Row],[2025/26 From - Spending review Topic 3]]+Dataset[[#This Row],[2025/26 From - Spending review Topic 4]]+Dataset[[#This Row],[2025/26 From - Other reallocations]]","v":0},{"$f":"Dataset[[#This Row],[2026/27 From - Spending review Topic 1]]+Dataset[[#This Row],[2026/27 From - Spending review Topic 2]]+Dataset[[#This Row],[2026/27 From - Spending review Topic 3]]+Dataset[[#This Row],[2026/27 From - Spending review Topic 4]]+Dataset[[#This Row],[2026/27 From - Other reallocations]]","v":0},{"$f":"Dataset[[#This Row],[2024/25 To - Spending review Topic 1]]+Dataset[[#This Row],[2024/25 To - Spending review Topic 2]]+Dataset[[#This Row],[2024/25 To - Spending review Topic 3]]+Dataset[[#This Row],[2024/25 To - Spending review Topic 4]]+Dataset[[#This Row],[2024/25 To - Other reallocations]]","v":0},{"$f":"Dataset[[#This Row],[2025/26 To - Spending review Topic 1]]+Dataset[[#This Row],[2025/26 To - Spending review Topic 2]]+Dataset[[#This Row],[2025/26 To - Spending review Topic 3]]+Dataset[[#This Row],[2025/26 To - Spending review Topic 4]]+Dataset[[#This Row],[2025/26 To - Other reallocations]]","v":0},{"$f":"Dataset[[#This Row],[2026/27 To - Spending review Topic 1]]+Dataset[[#This Row],[2026/27 To - Spending review Topic 2]]+Dataset[[#This Row],[2026/27 To - Spending review Topic 3]]+Dataset[[#This Row],[2026/27 To - Spending review Topic 4]]+Dataset[[#This Row],[2026/27 To - Other reallocations]]","v":0},{"$f":"Dataset[[#This Row],[2024/25 Reduction]]+Dataset[[#This Row],[2024/25 From - Total]]","v":0},{"$f":"Dataset[[#This Row],[2025/26 Reduction]]+Dataset[[#This Row],[2025/26 From - Total]]","v":0},{"$f":"Dataset[[#This Row],[2026/27 Reduction]]+Dataset[[#This Row],[2026/27 From - Total]]","v":0},{"$f":"Dataset[[#This Row],[2023/24 Reduction]]","v":0},{"$f":"SUM(Dataset[[#This Row],[2024/25 Reduction]],Dataset[[#This Row],[2024/25 From - Total]],Dataset[[#This Row],[2024/25 To - Total]])","v":0},{"$f":"SUM(Dataset[[#This Row],[2025/26 Reduction]],Dataset[[#This Row],[2025/26 From - Total]],Dataset[[#This Row],[2025/26 To - Total]])","v":0},{"$f":"SUM(Dataset[[#This Row],[2026/27 Reduction]],Dataset[[#This Row],[2026/27 From - Total]],Dataset[[#This Row],[2026/27 To - Total]])","v":0},{"$f":"Dataset[[#This Row],[2023/24 Baseline]]+Dataset[[#This Row],[2023/24 Total change]]","v":1494},{"$f":"Dataset[[#This Row],[2024/25 Baseline]]+Dataset[[#This Row],[2024/25 Total change]]","v":1560},{"$f":"Dataset[[#This Row],[2025/26 Baseline]]+Dataset[[#This Row],[2025/26 Total change]]","v":1628},{"$f":"Dataset[[#This Row],[2026/27 Baseline]]+Dataset[[#This Row],[2026/27 Total change]]","v":1703}]
["NAT|Non-transfer item","26|Administrative fees","2024_25","MTEF2024",26,2,2,44429,542,"26","02","02","044429","000542","26|02|02","01","01","02","03","03","01|01|02|03|03","National","Military Veterans","Socioeconomic Support","Health Care and Wellbeing Support","Non-transfer item","Current","Current payments","Goods and services","Administrative fees","Administrative fees","Peace and security","Defence and state security","NAT",88,35,42,93,93,93,0,95,98,102,107,null,null,null,null,null,null,null,null,null,null,null,null,null,null,null,null,null,null,null,null,null,null,null,null,null,null,null,null,null,null,null,null,null,null,{"$f":"Dataset[[#This Row],[2024/25 From - Spending review Topic 1]]+Dataset[[#This Row],[2024/25 From - Spending review Topic 2]]+Dataset[[#This Row],[2024/25 From - Spending review Topic 3]]+Dataset[[#This Row],[2024/25 From - Spending review Topic 4]]+Dataset[[#This Row],[2024/25 From - Other reallocations]]","v":0},{"$f":"Dataset[[#This Row],[2025/26 From - Spending review Topic 1]]+Dataset[[#This Row],[2025/26 From - Spending review Topic 2]]+Dataset[[#This Row],[2025/26 From - Spending review Topic 3]]+Dataset[[#This Row],[2025/26 From - Spending review Topic 4]]+Dataset[[#This Row],[2025/26 From - Other reallocations]]","v":0},{"$f":"Dataset[[#This Row],[2026/27 From - Spending review Topic 1]]+Dataset[[#This Row],[2026/27 From - Spending review Topic 2]]+Dataset[[#This Row],[2026/27 From - Spending review Topic 3]]+Dataset[[#This Row],[2026/27 From - Spending review Topic 4]]+Dataset[[#This Row],[2026/27 From - Other reallocations]]","v":0},{"$f":"Dataset[[#This Row],[2024/25 To - Spending review Topic 1]]+Dataset[[#This Row],[2024/25 To - Spending review Topic 2]]+Dataset[[#This Row],[2024/25 To - Spending review Topic 3]]+Dataset[[#This Row],[2024/25 To - Spending review Topic 4]]+Dataset[[#This Row],[2024/25 To - Other reallocations]]","v":0},{"$f":"Dataset[[#This Row],[2025/26 To - Spending review Topic 1]]+Dataset[[#This Row],[2025/26 To - Spending review Topic 2]]+Dataset[[#This Row],[2025/26 To - Spending review Topic 3]]+Dataset[[#This Row],[2025/26 To - Spending review Topic 4]]+Dataset[[#This Row],[2025/26 To - Other reallocations]]","v":0},{"$f":"Dataset[[#This Row],[2026/27 To - Spending review Topic 1]]+Dataset[[#This Row],[2026/27 To - Spending review Topic 2]]+Dataset[[#This Row],[2026/27 To - Spending review Topic 3]]+Dataset[[#This Row],[2026/27 To - Spending review Topic 4]]+Dataset[[#This Row],[2026/27 To - Other reallocations]]","v":0},{"$f":"Dataset[[#This Row],[2024/25 Reduction]]+Dataset[[#This Row],[2024/25 From - Total]]","v":0},{"$f":"Dataset[[#This Row],[2025/26 Reduction]]+Dataset[[#This Row],[2025/26 From - Total]]","v":0},{"$f":"Dataset[[#This Row],[2026/27 Reduction]]+Dataset[[#This Row],[2026/27 From - Total]]","v":0},{"$f":"Dataset[[#This Row],[2023/24 Reduction]]","v":0},{"$f":"SUM(Dataset[[#This Row],[2024/25 Reduction]],Dataset[[#This Row],[2024/25 From - Total]],Dataset[[#This Row],[2024/25 To - Total]])","v":0},{"$f":"SUM(Dataset[[#This Row],[2025/26 Reduction]],Dataset[[#This Row],[2025/26 From - Total]],Dataset[[#This Row],[2025/26 To - Total]])","v":0},{"$f":"SUM(Dataset[[#This Row],[2026/27 Reduction]],Dataset[[#This Row],[2026/27 From - Total]],Dataset[[#This Row],[2026/27 To - Total]])","v":0},{"$f":"Dataset[[#This Row],[2023/24 Baseline]]+Dataset[[#This Row],[2023/24 Total change]]","v":95},{"$f":"Dataset[[#This Row],[2024/25 Baseline]]+Dataset[[#This Row],[2024/25 Total change]]","v":98},{"$f":"Dataset[[#This Row],[2025/26 Baseline]]+Dataset[[#This Row],[2025/26 Total change]]","v":102},{"$f":"Dataset[[#This Row],[2026/27 Baseline]]+Dataset[[#This Row],[2026/27 Total change]]","v":107}]
["NAT|Non-transfer item","26|Advertising","2024_25","MTEF2024",26,2,2,44430,543,"26","02","02","044430","000543","26|02|02","01","01","02","04","04","01|01|02|04|04","National","Military Veterans","Socioeconomic Support","Health Care and Wellbeing Support","Non-transfer item","Current","Current payments","Goods and services","Advertising","Advertising","Peace and security","Defence and state security","NAT",75,0,0,0,0,0,0,0,0,0,0,null,null,null,null,null,null,null,null,null,null,null,null,null,null,null,null,null,null,null,null,null,null,null,null,null,null,null,null,null,null,null,null,null,null,{"$f":"Dataset[[#This Row],[2024/25 From - Spending review Topic 1]]+Dataset[[#This Row],[2024/25 From - Spending review Topic 2]]+Dataset[[#This Row],[2024/25 From - Spending review Topic 3]]+Dataset[[#This Row],[2024/25 From - Spending review Topic 4]]+Dataset[[#This Row],[2024/25 From - Other reallocations]]","v":0},{"$f":"Dataset[[#This Row],[2025/26 From - Spending review Topic 1]]+Dataset[[#This Row],[2025/26 From - Spending review Topic 2]]+Dataset[[#This Row],[2025/26 From - Spending review Topic 3]]+Dataset[[#This Row],[2025/26 From - Spending review Topic 4]]+Dataset[[#This Row],[2025/26 From - Other reallocations]]","v":0},{"$f":"Dataset[[#This Row],[2026/27 From - Spending review Topic 1]]+Dataset[[#This Row],[2026/27 From - Spending review Topic 2]]+Dataset[[#This Row],[2026/27 From - Spending review Topic 3]]+Dataset[[#This Row],[2026/27 From - Spending review Topic 4]]+Dataset[[#This Row],[2026/27 From - Other reallocations]]","v":0},{"$f":"Dataset[[#This Row],[2024/25 To - Spending review Topic 1]]+Dataset[[#This Row],[2024/25 To - Spending review Topic 2]]+Dataset[[#This Row],[2024/25 To - Spending review Topic 3]]+Dataset[[#This Row],[2024/25 To - Spending review Topic 4]]+Dataset[[#This Row],[2024/25 To - Other reallocations]]","v":0},{"$f":"Dataset[[#This Row],[2025/26 To - Spending review Topic 1]]+Dataset[[#This Row],[2025/26 To - Spending review Topic 2]]+Dataset[[#This Row],[2025/26 To - Spending review Topic 3]]+Dataset[[#This Row],[2025/26 To - Spending review Topic 4]]+Dataset[[#This Row],[2025/26 To - Other reallocations]]","v":0},{"$f":"Dataset[[#This Row],[2026/27 To - Spending review Topic 1]]+Dataset[[#This Row],[2026/27 To - Spending review Topic 2]]+Dataset[[#This Row],[2026/27 To - Spending review Topic 3]]+Dataset[[#This Row],[2026/27 To - Spending review Topic 4]]+Dataset[[#This Row],[2026/27 To - Other reallocations]]","v":0},{"$f":"Dataset[[#This Row],[2024/25 Reduction]]+Dataset[[#This Row],[2024/25 From - Total]]","v":0},{"$f":"Dataset[[#This Row],[2025/26 Reduction]]+Dataset[[#This Row],[2025/26 From - Total]]","v":0},{"$f":"Dataset[[#This Row],[2026/27 Reduction]]+Dataset[[#This Row],[2026/27 From - Total]]","v":0},{"$f":"Dataset[[#This Row],[2023/24 Reduction]]","v":0},{"$f":"SUM(Dataset[[#This Row],[2024/25 Reduction]],Dataset[[#This Row],[2024/25 From - Total]],Dataset[[#This Row],[2024/25 To - Total]])","v":0},{"$f":"SUM(Dataset[[#This Row],[2025/26 Reduction]],Dataset[[#This Row],[2025/26 From - Total]],Dataset[[#This Row],[2025/26 To - Total]])","v":0},{"$f":"SUM(Dataset[[#This Row],[2026/27 Reduction]],Dataset[[#This Row],[2026/27 From - Total]],Dataset[[#This Row],[2026/27 To - Total]])","v":0},{"$f":"Dataset[[#This Row],[2023/24 Baseline]]+Dataset[[#This Row],[2023/24 Total change]]","v":0},{"$f":"Dataset[[#This Row],[2024/25 Baseline]]+Dataset[[#This Row],[2024/25 Total change]]","v":0},{"$f":"Dataset[[#This Row],[2025/26 Baseline]]+Dataset[[#This Row],[2025/26 Total change]]","v":0},{"$f":"Dataset[[#This Row],[2026/27 Baseline]]+Dataset[[#This Row],[2026/27 Total change]]","v":0}]
["NAT|Non-transfer item","26|Minor assets","2024_25","MTEF2024",26,2,2,44431,544,"26","02","02","044431","000544","26|02|02","01","01","02","05","05","01|01|02|05|05","National","Military Veterans","Socioeconomic Support","Health Care and Wellbeing Support","Non-transfer item","Current","Current payments","Goods and services","Minor assets","Minor assets","Peace and security","Defence and state security","NAT",8,0,2,126,112,112,0,126,132,138,144,null,null,null,null,null,null,null,null,null,null,null,null,null,null,null,null,null,null,null,null,null,null,null,null,null,null,null,null,null,null,null,null,null,null,{"$f":"Dataset[[#This Row],[2024/25 From - Spending review Topic 1]]+Dataset[[#This Row],[2024/25 From - Spending review Topic 2]]+Dataset[[#This Row],[2024/25 From - Spending review Topic 3]]+Dataset[[#This Row],[2024/25 From - Spending review Topic 4]]+Dataset[[#This Row],[2024/25 From - Other reallocations]]","v":0},{"$f":"Dataset[[#This Row],[2025/26 From - Spending review Topic 1]]+Dataset[[#This Row],[2025/26 From - Spending review Topic 2]]+Dataset[[#This Row],[2025/26 From - Spending review Topic 3]]+Dataset[[#This Row],[2025/26 From - Spending review Topic 4]]+Dataset[[#This Row],[2025/26 From - Other reallocations]]","v":0},{"$f":"Dataset[[#This Row],[2026/27 From - Spending review Topic 1]]+Dataset[[#This Row],[2026/27 From - Spending review Topic 2]]+Dataset[[#This Row],[2026/27 From - Spending review Topic 3]]+Dataset[[#This Row],[2026/27 From - Spending review Topic 4]]+Dataset[[#This Row],[2026/27 From - Other reallocations]]","v":0},{"$f":"Dataset[[#This Row],[2024/25 To - Spending review Topic 1]]+Dataset[[#This Row],[2024/25 To - Spending review Topic 2]]+Dataset[[#This Row],[2024/25 To - Spending review Topic 3]]+Dataset[[#This Row],[2024/25 To - Spending review Topic 4]]+Dataset[[#This Row],[2024/25 To - Other reallocations]]","v":0},{"$f":"Dataset[[#This Row],[2025/26 To - Spending review Topic 1]]+Dataset[[#This Row],[2025/26 To - Spending review Topic 2]]+Dataset[[#This Row],[2025/26 To - Spending review Topic 3]]+Dataset[[#This Row],[2025/26 To - Spending review Topic 4]]+Dataset[[#This Row],[2025/26 To - Other reallocations]]","v":0},{"$f":"Dataset[[#This Row],[2026/27 To - Spending review Topic 1]]+Dataset[[#This Row],[2026/27 To - Spending review Topic 2]]+Dataset[[#This Row],[2026/27 To - Spending review Topic 3]]+Dataset[[#This Row],[2026/27 To - Spending review Topic 4]]+Dataset[[#This Row],[2026/27 To - Other reallocations]]","v":0},{"$f":"Dataset[[#This Row],[2024/25 Reduction]]+Dataset[[#This Row],[2024/25 From - Total]]","v":0},{"$f":"Dataset[[#This Row],[2025/26 Reduction]]+Dataset[[#This Row],[2025/26 From - Total]]","v":0},{"$f":"Dataset[[#This Row],[2026/27 Reduction]]+Dataset[[#This Row],[2026/27 From - Total]]","v":0},{"$f":"Dataset[[#This Row],[2023/24 Reduction]]","v":0},{"$f":"SUM(Dataset[[#This Row],[2024/25 Reduction]],Dataset[[#This Row],[2024/25 From - Total]],Dataset[[#This Row],[2024/25 To - Total]])","v":0},{"$f":"SUM(Dataset[[#This Row],[2025/26 Reduction]],Dataset[[#This Row],[2025/26 From - Total]],Dataset[[#This Row],[2025/26 To - Total]])","v":0},{"$f":"SUM(Dataset[[#This Row],[2026/27 Reduction]],Dataset[[#This Row],[2026/27 From - Total]],Dataset[[#This Row],[2026/27 To - Total]])","v":0},{"$f":"Dataset[[#This Row],[2023/24 Baseline]]+Dataset[[#This Row],[2023/24 Total change]]","v":126},{"$f":"Dataset[[#This Row],[2024/25 Baseline]]+Dataset[[#This Row],[2024/25 Total change]]","v":132},{"$f":"Dataset[[#This Row],[2025/26 Baseline]]+Dataset[[#This Row],[2025/26 Total change]]","v":138},{"$f":"Dataset[[#This Row],[2026/27 Baseline]]+Dataset[[#This Row],[2026/27 Total change]]","v":144}]
["NAT|Non-transfer item","26|Audit costs: External","2024_25","MTEF2024",26,2,2,44432,545,"26","02","02","044432","000545","26|02|02","01","01","02","06","06","01|01|02|06|06","National","Military Veterans","Socioeconomic Support","Health Care and Wellbeing Support","Non-transfer item","Current","Current payments","Goods and services","Audit costs: External","Audit costs: External","Peace and security","Defence and state security","NAT",0,0,0,0,0,0,0,0,0,0,0,null,null,null,null,null,null,null,null,null,null,null,null,null,null,null,null,null,null,null,null,null,null,null,null,null,null,null,null,null,null,null,null,null,null,{"$f":"Dataset[[#This Row],[2024/25 From - Spending review Topic 1]]+Dataset[[#This Row],[2024/25 From - Spending review Topic 2]]+Dataset[[#This Row],[2024/25 From - Spending review Topic 3]]+Dataset[[#This Row],[2024/25 From - Spending review Topic 4]]+Dataset[[#This Row],[2024/25 From - Other reallocations]]","v":0},{"$f":"Dataset[[#This Row],[2025/26 From - Spending review Topic 1]]+Dataset[[#This Row],[2025/26 From - Spending review Topic 2]]+Dataset[[#This Row],[2025/26 From - Spending review Topic 3]]+Dataset[[#This Row],[2025/26 From - Spending review Topic 4]]+Dataset[[#This Row],[2025/26 From - Other reallocations]]","v":0},{"$f":"Dataset[[#This Row],[2026/27 From - Spending review Topic 1]]+Dataset[[#This Row],[2026/27 From - Spending review Topic 2]]+Dataset[[#This Row],[2026/27 From - Spending review Topic 3]]+Dataset[[#This Row],[2026/27 From - Spending review Topic 4]]+Dataset[[#This Row],[2026/27 From - Other reallocations]]","v":0},{"$f":"Dataset[[#This Row],[2024/25 To - Spending review Topic 1]]+Dataset[[#This Row],[2024/25 To - Spending review Topic 2]]+Dataset[[#This Row],[2024/25 To - Spending review Topic 3]]+Dataset[[#This Row],[2024/25 To - Spending review Topic 4]]+Dataset[[#This Row],[2024/25 To - Other reallocations]]","v":0},{"$f":"Dataset[[#This Row],[2025/26 To - Spending review Topic 1]]+Dataset[[#This Row],[2025/26 To - Spending review Topic 2]]+Dataset[[#This Row],[2025/26 To - Spending review Topic 3]]+Dataset[[#This Row],[2025/26 To - Spending review Topic 4]]+Dataset[[#This Row],[2025/26 To - Other reallocations]]","v":0},{"$f":"Dataset[[#This Row],[2026/27 To - Spending review Topic 1]]+Dataset[[#This Row],[2026/27 To - Spending review Topic 2]]+Dataset[[#This Row],[2026/27 To - Spending review Topic 3]]+Dataset[[#This Row],[2026/27 To - Spending review Topic 4]]+Dataset[[#This Row],[2026/27 To - Other reallocations]]","v":0},{"$f":"Dataset[[#This Row],[2024/25 Reduction]]+Dataset[[#This Row],[2024/25 From - Total]]","v":0},{"$f":"Dataset[[#This Row],[2025/26 Reduction]]+Dataset[[#This Row],[2025/26 From - Total]]","v":0},{"$f":"Dataset[[#This Row],[2026/27 Reduction]]+Dataset[[#This Row],[2026/27 From - Total]]","v":0},{"$f":"Dataset[[#This Row],[2023/24 Reduction]]","v":0},{"$f":"SUM(Dataset[[#This Row],[2024/25 Reduction]],Dataset[[#This Row],[2024/25 From - Total]],Dataset[[#This Row],[2024/25 To - Total]])","v":0},{"$f":"SUM(Dataset[[#This Row],[2025/26 Reduction]],Dataset[[#This Row],[2025/26 From - Total]],Dataset[[#This Row],[2025/26 To - Total]])","v":0},{"$f":"SUM(Dataset[[#This Row],[2026/27 Reduction]],Dataset[[#This Row],[2026/27 From - Total]],Dataset[[#This Row],[2026/27 To - Total]])","v":0},{"$f":"Dataset[[#This Row],[2023/24 Baseline]]+Dataset[[#This Row],[2023/24 Total change]]","v":0},{"$f":"Dataset[[#This Row],[2024/25 Baseline]]+Dataset[[#This Row],[2024/25 Total change]]","v":0},{"$f":"Dataset[[#This Row],[2025/26 Baseline]]+Dataset[[#This Row],[2025/26 Total change]]","v":0},{"$f":"Dataset[[#This Row],[2026/27 Baseline]]+Dataset[[#This Row],[2026/27 Total change]]","v":0}]
["NAT|Non-transfer item","26|Bursaries: Employees","2024_25","MTEF2024",26,2,2,44433,546,"26","02","02","044433","000546","26|02|02","01","01","02","07","07","01|01|02|07|07","National","Military Veterans","Socioeconomic Support","Health Care and Wellbeing Support","Non-transfer item","Current","Current payments","Goods and services","Bursaries: Employees","Bursaries: Employees","Peace and security","Defence and state security","NAT",0,0,0,0,0,0,0,0,0,0,0,null,null,null,null,null,null,null,null,null,null,null,null,null,null,null,null,null,null,null,null,null,null,null,null,null,null,null,null,null,null,null,null,null,null,{"$f":"Dataset[[#This Row],[2024/25 From - Spending review Topic 1]]+Dataset[[#This Row],[2024/25 From - Spending review Topic 2]]+Dataset[[#This Row],[2024/25 From - Spending review Topic 3]]+Dataset[[#This Row],[2024/25 From - Spending review Topic 4]]+Dataset[[#This Row],[2024/25 From - Other reallocations]]","v":0},{"$f":"Dataset[[#This Row],[2025/26 From - Spending review Topic 1]]+Dataset[[#This Row],[2025/26 From - Spending review Topic 2]]+Dataset[[#This Row],[2025/26 From - Spending review Topic 3]]+Dataset[[#This Row],[2025/26 From - Spending review Topic 4]]+Dataset[[#This Row],[2025/26 From - Other reallocations]]","v":0},{"$f":"Dataset[[#This Row],[2026/27 From - Spending review Topic 1]]+Dataset[[#This Row],[2026/27 From - Spending review Topic 2]]+Dataset[[#This Row],[2026/27 From - Spending review Topic 3]]+Dataset[[#This Row],[2026/27 From - Spending review Topic 4]]+Dataset[[#This Row],[2026/27 From - Other reallocations]]","v":0},{"$f":"Dataset[[#This Row],[2024/25 To - Spending review Topic 1]]+Dataset[[#This Row],[2024/25 To - Spending review Topic 2]]+Dataset[[#This Row],[2024/25 To - Spending review Topic 3]]+Dataset[[#This Row],[2024/25 To - Spending review Topic 4]]+Dataset[[#This Row],[2024/25 To - Other reallocations]]","v":0},{"$f":"Dataset[[#This Row],[2025/26 To - Spending review Topic 1]]+Dataset[[#This Row],[2025/26 To - Spending review Topic 2]]+Dataset[[#This Row],[2025/26 To - Spending review Topic 3]]+Dataset[[#This Row],[2025/26 To - Spending review Topic 4]]+Dataset[[#This Row],[2025/26 To - Other reallocations]]","v":0},{"$f":"Dataset[[#This Row],[2026/27 To - Spending review Topic 1]]+Dataset[[#This Row],[2026/27 To - Spending review Topic 2]]+Dataset[[#This Row],[2026/27 To - Spending review Topic 3]]+Dataset[[#This Row],[2026/27 To - Spending review Topic 4]]+Dataset[[#This Row],[2026/27 To - Other reallocations]]","v":0},{"$f":"Dataset[[#This Row],[2024/25 Reduction]]+Dataset[[#This Row],[2024/25 From - Total]]","v":0},{"$f":"Dataset[[#This Row],[2025/26 Reduction]]+Dataset[[#This Row],[2025/26 From - Total]]","v":0},{"$f":"Dataset[[#This Row],[2026/27 Reduction]]+Dataset[[#This Row],[2026/27 From - Total]]","v":0},{"$f":"Dataset[[#This Row],[2023/24 Reduction]]","v":0},{"$f":"SUM(Dataset[[#This Row],[2024/25 Reduction]],Dataset[[#This Row],[2024/25 From - Total]],Dataset[[#This Row],[2024/25 To - Total]])","v":0},{"$f":"SUM(Dataset[[#This Row],[2025/26 Reduction]],Dataset[[#This Row],[2025/26 From - Total]],Dataset[[#This Row],[2025/26 To - Total]])","v":0},{"$f":"SUM(Dataset[[#This Row],[2026/27 Reduction]],Dataset[[#This Row],[2026/27 From - Total]],Dataset[[#This Row],[2026/27 To - Total]])","v":0},{"$f":"Dataset[[#This Row],[2023/24 Baseline]]+Dataset[[#This Row],[2023/24 Total change]]","v":0},{"$f":"Dataset[[#This Row],[2024/25 Baseline]]+Dataset[[#This Row],[2024/25 Total change]]","v":0},{"$f":"Dataset[[#This Row],[2025/26 Baseline]]+Dataset[[#This Row],[2025/26 Total change]]","v":0},{"$f":"Dataset[[#This Row],[2026/27 Baseline]]+Dataset[[#This Row],[2026/27 Total change]]","v":0}]
["NAT|Non-transfer item","26|Catering: Departmental activities","2024_25","MTEF2024",26,2,2,44434,547,"26","02","02","044434","000547","26|02|02","01","01","02","08","08","01|01|02|08|08","National","Military Veterans","Socioeconomic Support","Health Care and Wellbeing Support","Non-transfer item","Current","Current payments","Goods and services","Catering: Departmental activities","Catering: Departmental activities","Peace and security","Defence and state security","NAT",77,10,45,172,164,164,0,173,180,188,197,null,null,null,null,null,null,null,null,null,null,null,null,null,null,null,null,null,null,null,null,null,null,null,null,null,null,null,null,null,null,null,null,null,null,{"$f":"Dataset[[#This Row],[2024/25 From - Spending review Topic 1]]+Dataset[[#This Row],[2024/25 From - Spending review Topic 2]]+Dataset[[#This Row],[2024/25 From - Spending review Topic 3]]+Dataset[[#This Row],[2024/25 From - Spending review Topic 4]]+Dataset[[#This Row],[2024/25 From - Other reallocations]]","v":0},{"$f":"Dataset[[#This Row],[2025/26 From - Spending review Topic 1]]+Dataset[[#This Row],[2025/26 From - Spending review Topic 2]]+Dataset[[#This Row],[2025/26 From - Spending review Topic 3]]+Dataset[[#This Row],[2025/26 From - Spending review Topic 4]]+Dataset[[#This Row],[2025/26 From - Other reallocations]]","v":0},{"$f":"Dataset[[#This Row],[2026/27 From - Spending review Topic 1]]+Dataset[[#This Row],[2026/27 From - Spending review Topic 2]]+Dataset[[#This Row],[2026/27 From - Spending review Topic 3]]+Dataset[[#This Row],[2026/27 From - Spending review Topic 4]]+Dataset[[#This Row],[2026/27 From - Other reallocations]]","v":0},{"$f":"Dataset[[#This Row],[2024/25 To - Spending review Topic 1]]+Dataset[[#This Row],[2024/25 To - Spending review Topic 2]]+Dataset[[#This Row],[2024/25 To - Spending review Topic 3]]+Dataset[[#This Row],[2024/25 To - Spending review Topic 4]]+Dataset[[#This Row],[2024/25 To - Other reallocations]]","v":0},{"$f":"Dataset[[#This Row],[2025/26 To - Spending review Topic 1]]+Dataset[[#This Row],[2025/26 To - Spending review Topic 2]]+Dataset[[#This Row],[2025/26 To - Spending review Topic 3]]+Dataset[[#This Row],[2025/26 To - Spending review Topic 4]]+Dataset[[#This Row],[2025/26 To - Other reallocations]]","v":0},{"$f":"Dataset[[#This Row],[2026/27 To - Spending review Topic 1]]+Dataset[[#This Row],[2026/27 To - Spending review Topic 2]]+Dataset[[#This Row],[2026/27 To - Spending review Topic 3]]+Dataset[[#This Row],[2026/27 To - Spending review Topic 4]]+Dataset[[#This Row],[2026/27 To - Other reallocations]]","v":0},{"$f":"Dataset[[#This Row],[2024/25 Reduction]]+Dataset[[#This Row],[2024/25 From - Total]]","v":0},{"$f":"Dataset[[#This Row],[2025/26 Reduction]]+Dataset[[#This Row],[2025/26 From - Total]]","v":0},{"$f":"Dataset[[#This Row],[2026/27 Reduction]]+Dataset[[#This Row],[2026/27 From - Total]]","v":0},{"$f":"Dataset[[#This Row],[2023/24 Reduction]]","v":0},{"$f":"SUM(Dataset[[#This Row],[2024/25 Reduction]],Dataset[[#This Row],[2024/25 From - Total]],Dataset[[#This Row],[2024/25 To - Total]])","v":0},{"$f":"SUM(Dataset[[#This Row],[2025/26 Reduction]],Dataset[[#This Row],[2025/26 From - Total]],Dataset[[#This Row],[2025/26 To - Total]])","v":0},{"$f":"SUM(Dataset[[#This Row],[2026/27 Reduction]],Dataset[[#This Row],[2026/27 From - Total]],Dataset[[#This Row],[2026/27 To - Total]])","v":0},{"$f":"Dataset[[#This Row],[2023/24 Baseline]]+Dataset[[#This Row],[2023/24 Total change]]","v":173},{"$f":"Dataset[[#This Row],[2024/25 Baseline]]+Dataset[[#This Row],[2024/25 Total change]]","v":180},{"$f":"Dataset[[#This Row],[2025/26 Baseline]]+Dataset[[#This Row],[2025/26 Total change]]","v":188},{"$f":"Dataset[[#This Row],[2026/27 Baseline]]+Dataset[[#This Row],[2026/27 Total change]]","v":197}]
["NAT|Non-transfer item","26|Communication (G&S)","2024_25","MTEF2024",26,2,2,44435,548,"26","02","02","044435","000548","26|02|02","01","01","02","09","09","01|01|02|09|09","National","Military Veterans","Socioeconomic Support","Health Care and Wellbeing Support","Non-transfer item","Current","Current payments","Goods and services","Communication (G&S)","Communication (G&S)","Peace and security","Defence and state security","NAT",0,0,0,0,0,0,0,0,0,0,0,null,null,null,null,null,null,null,null,null,null,null,null,null,null,null,null,null,null,null,null,null,null,null,null,null,null,null,null,null,null,null,null,null,null,{"$f":"Dataset[[#This Row],[2024/25 From - Spending review Topic 1]]+Dataset[[#This Row],[2024/25 From - Spending review Topic 2]]+Dataset[[#This Row],[2024/25 From - Spending review Topic 3]]+Dataset[[#This Row],[2024/25 From - Spending review Topic 4]]+Dataset[[#This Row],[2024/25 From - Other reallocations]]","v":0},{"$f":"Dataset[[#This Row],[2025/26 From - Spending review Topic 1]]+Dataset[[#This Row],[2025/26 From - Spending review Topic 2]]+Dataset[[#This Row],[2025/26 From - Spending review Topic 3]]+Dataset[[#This Row],[2025/26 From - Spending review Topic 4]]+Dataset[[#This Row],[2025/26 From - Other reallocations]]","v":0},{"$f":"Dataset[[#This Row],[2026/27 From - Spending review Topic 1]]+Dataset[[#This Row],[2026/27 From - Spending review Topic 2]]+Dataset[[#This Row],[2026/27 From - Spending review Topic 3]]+Dataset[[#This Row],[2026/27 From - Spending review Topic 4]]+Dataset[[#This Row],[2026/27 From - Other reallocations]]","v":0},{"$f":"Dataset[[#This Row],[2024/25 To - Spending review Topic 1]]+Dataset[[#This Row],[2024/25 To - Spending review Topic 2]]+Dataset[[#This Row],[2024/25 To - Spending review Topic 3]]+Dataset[[#This Row],[2024/25 To - Spending review Topic 4]]+Dataset[[#This Row],[2024/25 To - Other reallocations]]","v":0},{"$f":"Dataset[[#This Row],[2025/26 To - Spending review Topic 1]]+Dataset[[#This Row],[2025/26 To - Spending review Topic 2]]+Dataset[[#This Row],[2025/26 To - Spending review Topic 3]]+Dataset[[#This Row],[2025/26 To - Spending review Topic 4]]+Dataset[[#This Row],[2025/26 To - Other reallocations]]","v":0},{"$f":"Dataset[[#This Row],[2026/27 To - Spending review Topic 1]]+Dataset[[#This Row],[2026/27 To - Spending review Topic 2]]+Dataset[[#This Row],[2026/27 To - Spending review Topic 3]]+Dataset[[#This Row],[2026/27 To - Spending review Topic 4]]+Dataset[[#This Row],[2026/27 To - Other reallocations]]","v":0},{"$f":"Dataset[[#This Row],[2024/25 Reduction]]+Dataset[[#This Row],[2024/25 From - Total]]","v":0},{"$f":"Dataset[[#This Row],[2025/26 Reduction]]+Dataset[[#This Row],[2025/26 From - Total]]","v":0},{"$f":"Dataset[[#This Row],[2026/27 Reduction]]+Dataset[[#This Row],[2026/27 From - Total]]","v":0},{"$f":"Dataset[[#This Row],[2023/24 Reduction]]","v":0},{"$f":"SUM(Dataset[[#This Row],[2024/25 Reduction]],Dataset[[#This Row],[2024/25 From - Total]],Dataset[[#This Row],[2024/25 To - Total]])","v":0},{"$f":"SUM(Dataset[[#This Row],[2025/26 Reduction]],Dataset[[#This Row],[2025/26 From - Total]],Dataset[[#This Row],[2025/26 To - Total]])","v":0},{"$f":"SUM(Dataset[[#This Row],[2026/27 Reduction]],Dataset[[#This Row],[2026/27 From - Total]],Dataset[[#This Row],[2026/27 To - Total]])","v":0},{"$f":"Dataset[[#This Row],[2023/24 Baseline]]+Dataset[[#This Row],[2023/24 Total change]]","v":0},{"$f":"Dataset[[#This Row],[2024/25 Baseline]]+Dataset[[#This Row],[2024/25 Total change]]","v":0},{"$f":"Dataset[[#This Row],[2025/26 Baseline]]+Dataset[[#This Row],[2025/26 Total change]]","v":0},{"$f":"Dataset[[#This Row],[2026/27 Baseline]]+Dataset[[#This Row],[2026/27 Total change]]","v":0}]
["NAT|Non-transfer item","26|Computer services","2024_25","MTEF2024",26,2,2,44436,549,"26","02","02","044436","000549","26|02|02","01","01","02","10","10","01|01|02|10|10","National","Military Veterans","Socioeconomic Support","Health Care and Wellbeing Support","Non-transfer item","Current","Current payments","Goods and services","Computer services","Computer services","Peace and security","Defence and state security","NAT",0,0,0,0,0,0,0,0,0,0,0,null,null,null,null,null,null,null,null,null,null,null,null,null,null,null,null,null,null,null,null,null,null,null,null,null,null,null,null,null,null,null,null,null,null,{"$f":"Dataset[[#This Row],[2024/25 From - Spending review Topic 1]]+Dataset[[#This Row],[2024/25 From - Spending review Topic 2]]+Dataset[[#This Row],[2024/25 From - Spending review Topic 3]]+Dataset[[#This Row],[2024/25 From - Spending review Topic 4]]+Dataset[[#This Row],[2024/25 From - Other reallocations]]","v":0},{"$f":"Dataset[[#This Row],[2025/26 From - Spending review Topic 1]]+Dataset[[#This Row],[2025/26 From - Spending review Topic 2]]+Dataset[[#This Row],[2025/26 From - Spending review Topic 3]]+Dataset[[#This Row],[2025/26 From - Spending review Topic 4]]+Dataset[[#This Row],[2025/26 From - Other reallocations]]","v":0},{"$f":"Dataset[[#This Row],[2026/27 From - Spending review Topic 1]]+Dataset[[#This Row],[2026/27 From - Spending review Topic 2]]+Dataset[[#This Row],[2026/27 From - Spending review Topic 3]]+Dataset[[#This Row],[2026/27 From - Spending review Topic 4]]+Dataset[[#This Row],[2026/27 From - Other reallocations]]","v":0},{"$f":"Dataset[[#This Row],[2024/25 To - Spending review Topic 1]]+Dataset[[#This Row],[2024/25 To - Spending review Topic 2]]+Dataset[[#This Row],[2024/25 To - Spending review Topic 3]]+Dataset[[#This Row],[2024/25 To - Spending review Topic 4]]+Dataset[[#This Row],[2024/25 To - Other reallocations]]","v":0},{"$f":"Dataset[[#This Row],[2025/26 To - Spending review Topic 1]]+Dataset[[#This Row],[2025/26 To - Spending review Topic 2]]+Dataset[[#This Row],[2025/26 To - Spending review Topic 3]]+Dataset[[#This Row],[2025/26 To - Spending review Topic 4]]+Dataset[[#This Row],[2025/26 To - Other reallocations]]","v":0},{"$f":"Dataset[[#This Row],[2026/27 To - Spending review Topic 1]]+Dataset[[#This Row],[2026/27 To - Spending review Topic 2]]+Dataset[[#This Row],[2026/27 To - Spending review Topic 3]]+Dataset[[#This Row],[2026/27 To - Spending review Topic 4]]+Dataset[[#This Row],[2026/27 To - Other reallocations]]","v":0},{"$f":"Dataset[[#This Row],[2024/25 Reduction]]+Dataset[[#This Row],[2024/25 From - Total]]","v":0},{"$f":"Dataset[[#This Row],[2025/26 Reduction]]+Dataset[[#This Row],[2025/26 From - Total]]","v":0},{"$f":"Dataset[[#This Row],[2026/27 Reduction]]+Dataset[[#This Row],[2026/27 From - Total]]","v":0},{"$f":"Dataset[[#This Row],[2023/24 Reduction]]","v":0},{"$f":"SUM(Dataset[[#This Row],[2024/25 Reduction]],Dataset[[#This Row],[2024/25 From - Total]],Dataset[[#This Row],[2024/25 To - Total]])","v":0},{"$f":"SUM(Dataset[[#This Row],[2025/26 Reduction]],Dataset[[#This Row],[2025/26 From - Total]],Dataset[[#This Row],[2025/26 To - Total]])","v":0},{"$f":"SUM(Dataset[[#This Row],[2026/27 Reduction]],Dataset[[#This Row],[2026/27 From - Total]],Dataset[[#This Row],[2026/27 To - Total]])","v":0},{"$f":"Dataset[[#This Row],[2023/24 Baseline]]+Dataset[[#This Row],[2023/24 Total change]]","v":0},{"$f":"Dataset[[#This Row],[2024/25 Baseline]]+Dataset[[#This Row],[2024/25 Total change]]","v":0},{"$f":"Dataset[[#This Row],[2025/26 Baseline]]+Dataset[[#This Row],[2025/26 Total change]]","v":0},{"$f":"Dataset[[#This Row],[2026/27 Baseline]]+Dataset[[#This Row],[2026/27 Total change]]","v":0}]
["NAT|Non-transfer item","26|Consultants: Business and advisory services","2024_25","MTEF2024",26,2,2,44437,550,"26","02","02","044437","000550","26|02|02","01","01","02","11","11","01|01|02|11|11","National","Military Veterans","Socioeconomic Support","Health Care and Wellbeing Support","Non-transfer item","Current","Current payments","Goods and services","Consultants: Business and advisory services","Consultants: Business and advisory services","Peace and security","Defence and state security","NAT",0,0,0,0,0,0,0,0,0,0,0,null,null,null,null,null,null,null,null,null,null,null,null,null,null,null,null,null,null,null,null,null,null,null,null,null,null,null,null,null,null,null,null,null,null,{"$f":"Dataset[[#This Row],[2024/25 From - Spending review Topic 1]]+Dataset[[#This Row],[2024/25 From - Spending review Topic 2]]+Dataset[[#This Row],[2024/25 From - Spending review Topic 3]]+Dataset[[#This Row],[2024/25 From - Spending review Topic 4]]+Dataset[[#This Row],[2024/25 From - Other reallocations]]","v":0},{"$f":"Dataset[[#This Row],[2025/26 From - Spending review Topic 1]]+Dataset[[#This Row],[2025/26 From - Spending review Topic 2]]+Dataset[[#This Row],[2025/26 From - Spending review Topic 3]]+Dataset[[#This Row],[2025/26 From - Spending review Topic 4]]+Dataset[[#This Row],[2025/26 From - Other reallocations]]","v":0},{"$f":"Dataset[[#This Row],[2026/27 From - Spending review Topic 1]]+Dataset[[#This Row],[2026/27 From - Spending review Topic 2]]+Dataset[[#This Row],[2026/27 From - Spending review Topic 3]]+Dataset[[#This Row],[2026/27 From - Spending review Topic 4]]+Dataset[[#This Row],[2026/27 From - Other reallocations]]","v":0},{"$f":"Dataset[[#This Row],[2024/25 To - Spending review Topic 1]]+Dataset[[#This Row],[2024/25 To - Spending review Topic 2]]+Dataset[[#This Row],[2024/25 To - Spending review Topic 3]]+Dataset[[#This Row],[2024/25 To - Spending review Topic 4]]+Dataset[[#This Row],[2024/25 To - Other reallocations]]","v":0},{"$f":"Dataset[[#This Row],[2025/26 To - Spending review Topic 1]]+Dataset[[#This Row],[2025/26 To - Spending review Topic 2]]+Dataset[[#This Row],[2025/26 To - Spending review Topic 3]]+Dataset[[#This Row],[2025/26 To - Spending review Topic 4]]+Dataset[[#This Row],[2025/26 To - Other reallocations]]","v":0},{"$f":"Dataset[[#This Row],[2026/27 To - Spending review Topic 1]]+Dataset[[#This Row],[2026/27 To - Spending review Topic 2]]+Dataset[[#This Row],[2026/27 To - Spending review Topic 3]]+Dataset[[#This Row],[2026/27 To - Spending review Topic 4]]+Dataset[[#This Row],[2026/27 To - Other reallocations]]","v":0},{"$f":"Dataset[[#This Row],[2024/25 Reduction]]+Dataset[[#This Row],[2024/25 From - Total]]","v":0},{"$f":"Dataset[[#This Row],[2025/26 Reduction]]+Dataset[[#This Row],[2025/26 From - Total]]","v":0},{"$f":"Dataset[[#This Row],[2026/27 Reduction]]+Dataset[[#This Row],[2026/27 From - Total]]","v":0},{"$f":"Dataset[[#This Row],[2023/24 Reduction]]","v":0},{"$f":"SUM(Dataset[[#This Row],[2024/25 Reduction]],Dataset[[#This Row],[2024/25 From - Total]],Dataset[[#This Row],[2024/25 To - Total]])","v":0},{"$f":"SUM(Dataset[[#This Row],[2025/26 Reduction]],Dataset[[#This Row],[2025/26 From - Total]],Dataset[[#This Row],[2025/26 To - Total]])","v":0},{"$f":"SUM(Dataset[[#This Row],[2026/27 Reduction]],Dataset[[#This Row],[2026/27 From - Total]],Dataset[[#This Row],[2026/27 To - Total]])","v":0},{"$f":"Dataset[[#This Row],[2023/24 Baseline]]+Dataset[[#This Row],[2023/24 Total change]]","v":0},{"$f":"Dataset[[#This Row],[2024/25 Baseline]]+Dataset[[#This Row],[2024/25 Total change]]","v":0},{"$f":"Dataset[[#This Row],[2025/26 Baseline]]+Dataset[[#This Row],[2025/26 Total change]]","v":0},{"$f":"Dataset[[#This Row],[2026/27 Baseline]]+Dataset[[#This Row],[2026/27 Total change]]","v":0}]
["NAT|Non-transfer item","26|Infrastructure and planning services","2024_25","MTEF2024",26,2,2,44438,551,"26","02","02","044438","000551","26|02|02","01","01","02","12","12","01|01|02|12|12","National","Military Veterans","Socioeconomic Support","Health Care and Wellbeing Support","Non-transfer item","Current","Current payments","Goods and services","Infrastructure and planning services","Infrastructure and planning services","Peace and security","Defence and state security","NAT",0,0,0,0,0,0,0,0,0,0,0,null,null,null,null,null,null,null,null,null,null,null,null,null,null,null,null,null,null,null,null,null,null,null,null,null,null,null,null,null,null,null,null,null,null,{"$f":"Dataset[[#This Row],[2024/25 From - Spending review Topic 1]]+Dataset[[#This Row],[2024/25 From - Spending review Topic 2]]+Dataset[[#This Row],[2024/25 From - Spending review Topic 3]]+Dataset[[#This Row],[2024/25 From - Spending review Topic 4]]+Dataset[[#This Row],[2024/25 From - Other reallocations]]","v":0},{"$f":"Dataset[[#This Row],[2025/26 From - Spending review Topic 1]]+Dataset[[#This Row],[2025/26 From - Spending review Topic 2]]+Dataset[[#This Row],[2025/26 From - Spending review Topic 3]]+Dataset[[#This Row],[2025/26 From - Spending review Topic 4]]+Dataset[[#This Row],[2025/26 From - Other reallocations]]","v":0},{"$f":"Dataset[[#This Row],[2026/27 From - Spending review Topic 1]]+Dataset[[#This Row],[2026/27 From - Spending review Topic 2]]+Dataset[[#This Row],[2026/27 From - Spending review Topic 3]]+Dataset[[#This Row],[2026/27 From - Spending review Topic 4]]+Dataset[[#This Row],[2026/27 From - Other reallocations]]","v":0},{"$f":"Dataset[[#This Row],[2024/25 To - Spending review Topic 1]]+Dataset[[#This Row],[2024/25 To - Spending review Topic 2]]+Dataset[[#This Row],[2024/25 To - Spending review Topic 3]]+Dataset[[#This Row],[2024/25 To - Spending review Topic 4]]+Dataset[[#This Row],[2024/25 To - Other reallocations]]","v":0},{"$f":"Dataset[[#This Row],[2025/26 To - Spending review Topic 1]]+Dataset[[#This Row],[2025/26 To - Spending review Topic 2]]+Dataset[[#This Row],[2025/26 To - Spending review Topic 3]]+Dataset[[#This Row],[2025/26 To - Spending review Topic 4]]+Dataset[[#This Row],[2025/26 To - Other reallocations]]","v":0},{"$f":"Dataset[[#This Row],[2026/27 To - Spending review Topic 1]]+Dataset[[#This Row],[2026/27 To - Spending review Topic 2]]+Dataset[[#This Row],[2026/27 To - Spending review Topic 3]]+Dataset[[#This Row],[2026/27 To - Spending review Topic 4]]+Dataset[[#This Row],[2026/27 To - Other reallocations]]","v":0},{"$f":"Dataset[[#This Row],[2024/25 Reduction]]+Dataset[[#This Row],[2024/25 From - Total]]","v":0},{"$f":"Dataset[[#This Row],[2025/26 Reduction]]+Dataset[[#This Row],[2025/26 From - Total]]","v":0},{"$f":"Dataset[[#This Row],[2026/27 Reduction]]+Dataset[[#This Row],[2026/27 From - Total]]","v":0},{"$f":"Dataset[[#This Row],[2023/24 Reduction]]","v":0},{"$f":"SUM(Dataset[[#This Row],[2024/25 Reduction]],Dataset[[#This Row],[2024/25 From - Total]],Dataset[[#This Row],[2024/25 To - Total]])","v":0},{"$f":"SUM(Dataset[[#This Row],[2025/26 Reduction]],Dataset[[#This Row],[2025/26 From - Total]],Dataset[[#This Row],[2025/26 To - Total]])","v":0},{"$f":"SUM(Dataset[[#This Row],[2026/27 Reduction]],Dataset[[#This Row],[2026/27 From - Total]],Dataset[[#This Row],[2026/27 To - Total]])","v":0},{"$f":"Dataset[[#This Row],[2023/24 Baseline]]+Dataset[[#This Row],[2023/24 Total change]]","v":0},{"$f":"Dataset[[#This Row],[2024/25 Baseline]]+Dataset[[#This Row],[2024/25 Total change]]","v":0},{"$f":"Dataset[[#This Row],[2025/26 Baseline]]+Dataset[[#This Row],[2025/26 Total change]]","v":0},{"$f":"Dataset[[#This Row],[2026/27 Baseline]]+Dataset[[#This Row],[2026/27 Total change]]","v":0}]
["NAT|Non-transfer item","26|Laboratory services","2024_25","MTEF2024",26,2,2,44439,552,"26","02","02","044439","000552","26|02|02","01","01","02","13","13","01|01|02|13|13","National","Military Veterans","Socioeconomic Support","Health Care and Wellbeing Support","Non-transfer item","Current","Current payments","Goods and services","Laboratory services","Laboratory services","Peace and security","Defence and state security","NAT",0,0,0,0,0,0,0,0,0,0,0,null,null,null,null,null,null,null,null,null,null,null,null,null,null,null,null,null,null,null,null,null,null,null,null,null,null,null,null,null,null,null,null,null,null,{"$f":"Dataset[[#This Row],[2024/25 From - Spending review Topic 1]]+Dataset[[#This Row],[2024/25 From - Spending review Topic 2]]+Dataset[[#This Row],[2024/25 From - Spending review Topic 3]]+Dataset[[#This Row],[2024/25 From - Spending review Topic 4]]+Dataset[[#This Row],[2024/25 From - Other reallocations]]","v":0},{"$f":"Dataset[[#This Row],[2025/26 From - Spending review Topic 1]]+Dataset[[#This Row],[2025/26 From - Spending review Topic 2]]+Dataset[[#This Row],[2025/26 From - Spending review Topic 3]]+Dataset[[#This Row],[2025/26 From - Spending review Topic 4]]+Dataset[[#This Row],[2025/26 From - Other reallocations]]","v":0},{"$f":"Dataset[[#This Row],[2026/27 From - Spending review Topic 1]]+Dataset[[#This Row],[2026/27 From - Spending review Topic 2]]+Dataset[[#This Row],[2026/27 From - Spending review Topic 3]]+Dataset[[#This Row],[2026/27 From - Spending review Topic 4]]+Dataset[[#This Row],[2026/27 From - Other reallocations]]","v":0},{"$f":"Dataset[[#This Row],[2024/25 To - Spending review Topic 1]]+Dataset[[#This Row],[2024/25 To - Spending review Topic 2]]+Dataset[[#This Row],[2024/25 To - Spending review Topic 3]]+Dataset[[#This Row],[2024/25 To - Spending review Topic 4]]+Dataset[[#This Row],[2024/25 To - Other reallocations]]","v":0},{"$f":"Dataset[[#This Row],[2025/26 To - Spending review Topic 1]]+Dataset[[#This Row],[2025/26 To - Spending review Topic 2]]+Dataset[[#This Row],[2025/26 To - Spending review Topic 3]]+Dataset[[#This Row],[2025/26 To - Spending review Topic 4]]+Dataset[[#This Row],[2025/26 To - Other reallocations]]","v":0},{"$f":"Dataset[[#This Row],[2026/27 To - Spending review Topic 1]]+Dataset[[#This Row],[2026/27 To - Spending review Topic 2]]+Dataset[[#This Row],[2026/27 To - Spending review Topic 3]]+Dataset[[#This Row],[2026/27 To - Spending review Topic 4]]+Dataset[[#This Row],[2026/27 To - Other reallocations]]","v":0},{"$f":"Dataset[[#This Row],[2024/25 Reduction]]+Dataset[[#This Row],[2024/25 From - Total]]","v":0},{"$f":"Dataset[[#This Row],[2025/26 Reduction]]+Dataset[[#This Row],[2025/26 From - Total]]","v":0},{"$f":"Dataset[[#This Row],[2026/27 Reduction]]+Dataset[[#This Row],[2026/27 From - Total]]","v":0},{"$f":"Dataset[[#This Row],[2023/24 Reduction]]","v":0},{"$f":"SUM(Dataset[[#This Row],[2024/25 Reduction]],Dataset[[#This Row],[2024/25 From - Total]],Dataset[[#This Row],[2024/25 To - Total]])","v":0},{"$f":"SUM(Dataset[[#This Row],[2025/26 Reduction]],Dataset[[#This Row],[2025/26 From - Total]],Dataset[[#This Row],[2025/26 To - Total]])","v":0},{"$f":"SUM(Dataset[[#This Row],[2026/27 Reduction]],Dataset[[#This Row],[2026/27 From - Total]],Dataset[[#This Row],[2026/27 To - Total]])","v":0},{"$f":"Dataset[[#This Row],[2023/24 Baseline]]+Dataset[[#This Row],[2023/24 Total change]]","v":0},{"$f":"Dataset[[#This Row],[2024/25 Baseline]]+Dataset[[#This Row],[2024/25 Total change]]","v":0},{"$f":"Dataset[[#This Row],[2025/26 Baseline]]+Dataset[[#This Row],[2025/26 Total change]]","v":0},{"$f":"Dataset[[#This Row],[2026/27 Baseline]]+Dataset[[#This Row],[2026/27 Total change]]","v":0}]
["NAT|Non-transfer item","26|Legal services (G&S)","2024_25","MTEF2024",26,2,2,44440,553,"26","02","02","044440","000553","26|02|02","01","01","02","14","14","01|01|02|14|14","National","Military Veterans","Socioeconomic Support","Health Care and Wellbeing Support","Non-transfer item","Current","Current payments","Goods and services","Legal services (G&S)","Legal services (G&S)","Peace and security","Defence and state security","NAT",0,0,0,0,0,0,0,0,0,0,0,null,null,null,null,null,null,null,null,null,null,null,null,null,null,null,null,null,null,null,null,null,null,null,null,null,null,null,null,null,null,null,null,null,null,{"$f":"Dataset[[#This Row],[2024/25 From - Spending review Topic 1]]+Dataset[[#This Row],[2024/25 From - Spending review Topic 2]]+Dataset[[#This Row],[2024/25 From - Spending review Topic 3]]+Dataset[[#This Row],[2024/25 From - Spending review Topic 4]]+Dataset[[#This Row],[2024/25 From - Other reallocations]]","v":0},{"$f":"Dataset[[#This Row],[2025/26 From - Spending review Topic 1]]+Dataset[[#This Row],[2025/26 From - Spending review Topic 2]]+Dataset[[#This Row],[2025/26 From - Spending review Topic 3]]+Dataset[[#This Row],[2025/26 From - Spending review Topic 4]]+Dataset[[#This Row],[2025/26 From - Other reallocations]]","v":0},{"$f":"Dataset[[#This Row],[2026/27 From - Spending review Topic 1]]+Dataset[[#This Row],[2026/27 From - Spending review Topic 2]]+Dataset[[#This Row],[2026/27 From - Spending review Topic 3]]+Dataset[[#This Row],[2026/27 From - Spending review Topic 4]]+Dataset[[#This Row],[2026/27 From - Other reallocations]]","v":0},{"$f":"Dataset[[#This Row],[2024/25 To - Spending review Topic 1]]+Dataset[[#This Row],[2024/25 To - Spending review Topic 2]]+Dataset[[#This Row],[2024/25 To - Spending review Topic 3]]+Dataset[[#This Row],[2024/25 To - Spending review Topic 4]]+Dataset[[#This Row],[2024/25 To - Other reallocations]]","v":0},{"$f":"Dataset[[#This Row],[2025/26 To - Spending review Topic 1]]+Dataset[[#This Row],[2025/26 To - Spending review Topic 2]]+Dataset[[#This Row],[2025/26 To - Spending review Topic 3]]+Dataset[[#This Row],[2025/26 To - Spending review Topic 4]]+Dataset[[#This Row],[2025/26 To - Other reallocations]]","v":0},{"$f":"Dataset[[#This Row],[2026/27 To - Spending review Topic 1]]+Dataset[[#This Row],[2026/27 To - Spending review Topic 2]]+Dataset[[#This Row],[2026/27 To - Spending review Topic 3]]+Dataset[[#This Row],[2026/27 To - Spending review Topic 4]]+Dataset[[#This Row],[2026/27 To - Other reallocations]]","v":0},{"$f":"Dataset[[#This Row],[2024/25 Reduction]]+Dataset[[#This Row],[2024/25 From - Total]]","v":0},{"$f":"Dataset[[#This Row],[2025/26 Reduction]]+Dataset[[#This Row],[2025/26 From - Total]]","v":0},{"$f":"Dataset[[#This Row],[2026/27 Reduction]]+Dataset[[#This Row],[2026/27 From - Total]]","v":0},{"$f":"Dataset[[#This Row],[2023/24 Reduction]]","v":0},{"$f":"SUM(Dataset[[#This Row],[2024/25 Reduction]],Dataset[[#This Row],[2024/25 From - Total]],Dataset[[#This Row],[2024/25 To - Total]])","v":0},{"$f":"SUM(Dataset[[#This Row],[2025/26 Reduction]],Dataset[[#This Row],[2025/26 From - Total]],Dataset[[#This Row],[2025/26 To - Total]])","v":0},{"$f":"SUM(Dataset[[#This Row],[2026/27 Reduction]],Dataset[[#This Row],[2026/27 From - Total]],Dataset[[#This Row],[2026/27 To - Total]])","v":0},{"$f":"Dataset[[#This Row],[2023/24 Baseline]]+Dataset[[#This Row],[2023/24 Total change]]","v":0},{"$f":"Dataset[[#This Row],[2024/25 Baseline]]+Dataset[[#This Row],[2024/25 Total change]]","v":0},{"$f":"Dataset[[#This Row],[2025/26 Baseline]]+Dataset[[#This Row],[2025/26 Total change]]","v":0},{"$f":"Dataset[[#This Row],[2026/27 Baseline]]+Dataset[[#This Row],[2026/27 Total change]]","v":0}]
["NAT|Non-transfer item","26|Science and technological services","2024_25","MTEF2024",26,2,2,44441,554,"26","02","02","044441","000554","26|02|02","01","01","02","15","15","01|01|02|15|15","National","Military Veterans","Socioeconomic Support","Health Care and Wellbeing Support","Non-transfer item","Current","Current payments","Goods and services","Science and technological services","Science and technological services","Peace and security","Defence and state security","NAT",0,0,0,0,0,0,0,0,0,0,0,null,null,null,null,null,null,null,null,null,null,null,null,null,null,null,null,null,null,null,null,null,null,null,null,null,null,null,null,null,null,null,null,null,null,{"$f":"Dataset[[#This Row],[2024/25 From - Spending review Topic 1]]+Dataset[[#This Row],[2024/25 From - Spending review Topic 2]]+Dataset[[#This Row],[2024/25 From - Spending review Topic 3]]+Dataset[[#This Row],[2024/25 From - Spending review Topic 4]]+Dataset[[#This Row],[2024/25 From - Other reallocations]]","v":0},{"$f":"Dataset[[#This Row],[2025/26 From - Spending review Topic 1]]+Dataset[[#This Row],[2025/26 From - Spending review Topic 2]]+Dataset[[#This Row],[2025/26 From - Spending review Topic 3]]+Dataset[[#This Row],[2025/26 From - Spending review Topic 4]]+Dataset[[#This Row],[2025/26 From - Other reallocations]]","v":0},{"$f":"Dataset[[#This Row],[2026/27 From - Spending review Topic 1]]+Dataset[[#This Row],[2026/27 From - Spending review Topic 2]]+Dataset[[#This Row],[2026/27 From - Spending review Topic 3]]+Dataset[[#This Row],[2026/27 From - Spending review Topic 4]]+Dataset[[#This Row],[2026/27 From - Other reallocations]]","v":0},{"$f":"Dataset[[#This Row],[2024/25 To - Spending review Topic 1]]+Dataset[[#This Row],[2024/25 To - Spending review Topic 2]]+Dataset[[#This Row],[2024/25 To - Spending review Topic 3]]+Dataset[[#This Row],[2024/25 To - Spending review Topic 4]]+Dataset[[#This Row],[2024/25 To - Other reallocations]]","v":0},{"$f":"Dataset[[#This Row],[2025/26 To - Spending review Topic 1]]+Dataset[[#This Row],[2025/26 To - Spending review Topic 2]]+Dataset[[#This Row],[2025/26 To - Spending review Topic 3]]+Dataset[[#This Row],[2025/26 To - Spending review Topic 4]]+Dataset[[#This Row],[2025/26 To - Other reallocations]]","v":0},{"$f":"Dataset[[#This Row],[2026/27 To - Spending review Topic 1]]+Dataset[[#This Row],[2026/27 To - Spending review Topic 2]]+Dataset[[#This Row],[2026/27 To - Spending review Topic 3]]+Dataset[[#This Row],[2026/27 To - Spending review Topic 4]]+Dataset[[#This Row],[2026/27 To - Other reallocations]]","v":0},{"$f":"Dataset[[#This Row],[2024/25 Reduction]]+Dataset[[#This Row],[2024/25 From - Total]]","v":0},{"$f":"Dataset[[#This Row],[2025/26 Reduction]]+Dataset[[#This Row],[2025/26 From - Total]]","v":0},{"$f":"Dataset[[#This Row],[2026/27 Reduction]]+Dataset[[#This Row],[2026/27 From - Total]]","v":0},{"$f":"Dataset[[#This Row],[2023/24 Reduction]]","v":0},{"$f":"SUM(Dataset[[#This Row],[2024/25 Reduction]],Dataset[[#This Row],[2024/25 From - Total]],Dataset[[#This Row],[2024/25 To - Total]])","v":0},{"$f":"SUM(Dataset[[#This Row],[2025/26 Reduction]],Dataset[[#This Row],[2025/26 From - Total]],Dataset[[#This Row],[2025/26 To - Total]])","v":0},{"$f":"SUM(Dataset[[#This Row],[2026/27 Reduction]],Dataset[[#This Row],[2026/27 From - Total]],Dataset[[#This Row],[2026/27 To - Total]])","v":0},{"$f":"Dataset[[#This Row],[2023/24 Baseline]]+Dataset[[#This Row],[2023/24 Total change]]","v":0},{"$f":"Dataset[[#This Row],[2024/25 Baseline]]+Dataset[[#This Row],[2024/25 Total change]]","v":0},{"$f":"Dataset[[#This Row],[2025/26 Baseline]]+Dataset[[#This Row],[2025/26 Total change]]","v":0},{"$f":"Dataset[[#This Row],[2026/27 Baseline]]+Dataset[[#This Row],[2026/27 Total change]]","v":0}]
["NAT|Non-transfer item","26|Contractors","2024_25","MTEF2024",26,2,2,44442,555,"26","02","02","044442","000555","26|02|02","01","01","02","16","16","01|01|02|16|16","National","Military Veterans","Socioeconomic Support","Health Care and Wellbeing Support","Non-transfer item","Current","Current payments","Goods and services","Contractors","Contractors","Peace and security","Defence and state security","NAT",127362,101223,89650,101608,96308,96308,0,95496,99578,103853,108611,null,null,null,null,null,null,null,null,null,null,null,null,null,null,null,null,null,null,null,null,null,null,null,null,null,null,null,null,null,null,null,null,null,null,{"$f":"Dataset[[#This Row],[2024/25 From - Spending review Topic 1]]+Dataset[[#This Row],[2024/25 From - Spending review Topic 2]]+Dataset[[#This Row],[2024/25 From - Spending review Topic 3]]+Dataset[[#This Row],[2024/25 From - Spending review Topic 4]]+Dataset[[#This Row],[2024/25 From - Other reallocations]]","v":0},{"$f":"Dataset[[#This Row],[2025/26 From - Spending review Topic 1]]+Dataset[[#This Row],[2025/26 From - Spending review Topic 2]]+Dataset[[#This Row],[2025/26 From - Spending review Topic 3]]+Dataset[[#This Row],[2025/26 From - Spending review Topic 4]]+Dataset[[#This Row],[2025/26 From - Other reallocations]]","v":0},{"$f":"Dataset[[#This Row],[2026/27 From - Spending review Topic 1]]+Dataset[[#This Row],[2026/27 From - Spending review Topic 2]]+Dataset[[#This Row],[2026/27 From - Spending review Topic 3]]+Dataset[[#This Row],[2026/27 From - Spending review Topic 4]]+Dataset[[#This Row],[2026/27 From - Other reallocations]]","v":0},{"$f":"Dataset[[#This Row],[2024/25 To - Spending review Topic 1]]+Dataset[[#This Row],[2024/25 To - Spending review Topic 2]]+Dataset[[#This Row],[2024/25 To - Spending review Topic 3]]+Dataset[[#This Row],[2024/25 To - Spending review Topic 4]]+Dataset[[#This Row],[2024/25 To - Other reallocations]]","v":0},{"$f":"Dataset[[#This Row],[2025/26 To - Spending review Topic 1]]+Dataset[[#This Row],[2025/26 To - Spending review Topic 2]]+Dataset[[#This Row],[2025/26 To - Spending review Topic 3]]+Dataset[[#This Row],[2025/26 To - Spending review Topic 4]]+Dataset[[#This Row],[2025/26 To - Other reallocations]]","v":0},{"$f":"Dataset[[#This Row],[2026/27 To - Spending review Topic 1]]+Dataset[[#This Row],[2026/27 To - Spending review Topic 2]]+Dataset[[#This Row],[2026/27 To - Spending review Topic 3]]+Dataset[[#This Row],[2026/27 To - Spending review Topic 4]]+Dataset[[#This Row],[2026/27 To - Other reallocations]]","v":0},{"$f":"Dataset[[#This Row],[2024/25 Reduction]]+Dataset[[#This Row],[2024/25 From - Total]]","v":0},{"$f":"Dataset[[#This Row],[2025/26 Reduction]]+Dataset[[#This Row],[2025/26 From - Total]]","v":0},{"$f":"Dataset[[#This Row],[2026/27 Reduction]]+Dataset[[#This Row],[2026/27 From - Total]]","v":0},{"$f":"Dataset[[#This Row],[2023/24 Reduction]]","v":0},{"$f":"SUM(Dataset[[#This Row],[2024/25 Reduction]],Dataset[[#This Row],[2024/25 From - Total]],Dataset[[#This Row],[2024/25 To - Total]])","v":0},{"$f":"SUM(Dataset[[#This Row],[2025/26 Reduction]],Dataset[[#This Row],[2025/26 From - Total]],Dataset[[#This Row],[2025/26 To - Total]])","v":0},{"$f":"SUM(Dataset[[#This Row],[2026/27 Reduction]],Dataset[[#This Row],[2026/27 From - Total]],Dataset[[#This Row],[2026/27 To - Total]])","v":0},{"$f":"Dataset[[#This Row],[2023/24 Baseline]]+Dataset[[#This Row],[2023/24 Total change]]","v":95496},{"$f":"Dataset[[#This Row],[2024/25 Baseline]]+Dataset[[#This Row],[2024/25 Total change]]","v":99578},{"$f":"Dataset[[#This Row],[2025/26 Baseline]]+Dataset[[#This Row],[2025/26 Total change]]","v":103853},{"$f":"Dataset[[#This Row],[2026/27 Baseline]]+Dataset[[#This Row],[2026/27 Total change]]","v":108611}]
["NAT|Non-transfer item","26|Agency and support/outsourced services","2024_25","MTEF2024",26,2,2,44443,556,"26","02","02","044443","000556","26|02|02","01","01","02","17","17","01|01|02|17|17","National","Military Veterans","Socioeconomic Support","Health Care and Wellbeing Support","Non-transfer item","Current","Current payments","Goods and services","Agency and support/outsourced services","Agency and support/outsourced services","Peace and security","Defence and state security","NAT",0,0,0,0,0,0,0,0,0,0,0,null,null,null,null,null,null,null,null,null,null,null,null,null,null,null,null,null,null,null,null,null,null,null,null,null,null,null,null,null,null,null,null,null,null,{"$f":"Dataset[[#This Row],[2024/25 From - Spending review Topic 1]]+Dataset[[#This Row],[2024/25 From - Spending review Topic 2]]+Dataset[[#This Row],[2024/25 From - Spending review Topic 3]]+Dataset[[#This Row],[2024/25 From - Spending review Topic 4]]+Dataset[[#This Row],[2024/25 From - Other reallocations]]","v":0},{"$f":"Dataset[[#This Row],[2025/26 From - Spending review Topic 1]]+Dataset[[#This Row],[2025/26 From - Spending review Topic 2]]+Dataset[[#This Row],[2025/26 From - Spending review Topic 3]]+Dataset[[#This Row],[2025/26 From - Spending review Topic 4]]+Dataset[[#This Row],[2025/26 From - Other reallocations]]","v":0},{"$f":"Dataset[[#This Row],[2026/27 From - Spending review Topic 1]]+Dataset[[#This Row],[2026/27 From - Spending review Topic 2]]+Dataset[[#This Row],[2026/27 From - Spending review Topic 3]]+Dataset[[#This Row],[2026/27 From - Spending review Topic 4]]+Dataset[[#This Row],[2026/27 From - Other reallocations]]","v":0},{"$f":"Dataset[[#This Row],[2024/25 To - Spending review Topic 1]]+Dataset[[#This Row],[2024/25 To - Spending review Topic 2]]+Dataset[[#This Row],[2024/25 To - Spending review Topic 3]]+Dataset[[#This Row],[2024/25 To - Spending review Topic 4]]+Dataset[[#This Row],[2024/25 To - Other reallocations]]","v":0},{"$f":"Dataset[[#This Row],[2025/26 To - Spending review Topic 1]]+Dataset[[#This Row],[2025/26 To - Spending review Topic 2]]+Dataset[[#This Row],[2025/26 To - Spending review Topic 3]]+Dataset[[#This Row],[2025/26 To - Spending review Topic 4]]+Dataset[[#This Row],[2025/26 To - Other reallocations]]","v":0},{"$f":"Dataset[[#This Row],[2026/27 To - Spending review Topic 1]]+Dataset[[#This Row],[2026/27 To - Spending review Topic 2]]+Dataset[[#This Row],[2026/27 To - Spending review Topic 3]]+Dataset[[#This Row],[2026/27 To - Spending review Topic 4]]+Dataset[[#This Row],[2026/27 To - Other reallocations]]","v":0},{"$f":"Dataset[[#This Row],[2024/25 Reduction]]+Dataset[[#This Row],[2024/25 From - Total]]","v":0},{"$f":"Dataset[[#This Row],[2025/26 Reduction]]+Dataset[[#This Row],[2025/26 From - Total]]","v":0},{"$f":"Dataset[[#This Row],[2026/27 Reduction]]+Dataset[[#This Row],[2026/27 From - Total]]","v":0},{"$f":"Dataset[[#This Row],[2023/24 Reduction]]","v":0},{"$f":"SUM(Dataset[[#This Row],[2024/25 Reduction]],Dataset[[#This Row],[2024/25 From - Total]],Dataset[[#This Row],[2024/25 To - Total]])","v":0},{"$f":"SUM(Dataset[[#This Row],[2025/26 Reduction]],Dataset[[#This Row],[2025/26 From - Total]],Dataset[[#This Row],[2025/26 To - Total]])","v":0},{"$f":"SUM(Dataset[[#This Row],[2026/27 Reduction]],Dataset[[#This Row],[2026/27 From - Total]],Dataset[[#This Row],[2026/27 To - Total]])","v":0},{"$f":"Dataset[[#This Row],[2023/24 Baseline]]+Dataset[[#This Row],[2023/24 Total change]]","v":0},{"$f":"Dataset[[#This Row],[2024/25 Baseline]]+Dataset[[#This Row],[2024/25 Total change]]","v":0},{"$f":"Dataset[[#This Row],[2025/26 Baseline]]+Dataset[[#This Row],[2025/26 Total change]]","v":0},{"$f":"Dataset[[#This Row],[2026/27 Baseline]]+Dataset[[#This Row],[2026/27 Total change]]","v":0}]
["NAT|Non-transfer item","26|Entertainment","2024_25","MTEF2024",26,2,2,44444,557,"26","02","02","044444","000557","26|02|02","01","01","02","18","18","01|01|02|18|18","National","Military Veterans","Socioeconomic Support","Health Care and Wellbeing Support","Non-transfer item","Current","Current payments","Goods and services","Entertainment","Entertainment","Peace and security","Defence and state security","NAT",0,0,0,0,0,0,0,4,0,0,0,null,null,null,null,null,null,null,null,null,null,null,null,null,null,null,null,null,null,null,null,null,null,null,null,null,null,null,null,null,null,null,null,null,null,{"$f":"Dataset[[#This Row],[2024/25 From - Spending review Topic 1]]+Dataset[[#This Row],[2024/25 From - Spending review Topic 2]]+Dataset[[#This Row],[2024/25 From - Spending review Topic 3]]+Dataset[[#This Row],[2024/25 From - Spending review Topic 4]]+Dataset[[#This Row],[2024/25 From - Other reallocations]]","v":0},{"$f":"Dataset[[#This Row],[2025/26 From - Spending review Topic 1]]+Dataset[[#This Row],[2025/26 From - Spending review Topic 2]]+Dataset[[#This Row],[2025/26 From - Spending review Topic 3]]+Dataset[[#This Row],[2025/26 From - Spending review Topic 4]]+Dataset[[#This Row],[2025/26 From - Other reallocations]]","v":0},{"$f":"Dataset[[#This Row],[2026/27 From - Spending review Topic 1]]+Dataset[[#This Row],[2026/27 From - Spending review Topic 2]]+Dataset[[#This Row],[2026/27 From - Spending review Topic 3]]+Dataset[[#This Row],[2026/27 From - Spending review Topic 4]]+Dataset[[#This Row],[2026/27 From - Other reallocations]]","v":0},{"$f":"Dataset[[#This Row],[2024/25 To - Spending review Topic 1]]+Dataset[[#This Row],[2024/25 To - Spending review Topic 2]]+Dataset[[#This Row],[2024/25 To - Spending review Topic 3]]+Dataset[[#This Row],[2024/25 To - Spending review Topic 4]]+Dataset[[#This Row],[2024/25 To - Other reallocations]]","v":0},{"$f":"Dataset[[#This Row],[2025/26 To - Spending review Topic 1]]+Dataset[[#This Row],[2025/26 To - Spending review Topic 2]]+Dataset[[#This Row],[2025/26 To - Spending review Topic 3]]+Dataset[[#This Row],[2025/26 To - Spending review Topic 4]]+Dataset[[#This Row],[2025/26 To - Other reallocations]]","v":0},{"$f":"Dataset[[#This Row],[2026/27 To - Spending review Topic 1]]+Dataset[[#This Row],[2026/27 To - Spending review Topic 2]]+Dataset[[#This Row],[2026/27 To - Spending review Topic 3]]+Dataset[[#This Row],[2026/27 To - Spending review Topic 4]]+Dataset[[#This Row],[2026/27 To - Other reallocations]]","v":0},{"$f":"Dataset[[#This Row],[2024/25 Reduction]]+Dataset[[#This Row],[2024/25 From - Total]]","v":0},{"$f":"Dataset[[#This Row],[2025/26 Reduction]]+Dataset[[#This Row],[2025/26 From - Total]]","v":0},{"$f":"Dataset[[#This Row],[2026/27 Reduction]]+Dataset[[#This Row],[2026/27 From - Total]]","v":0},{"$f":"Dataset[[#This Row],[2023/24 Reduction]]","v":0},{"$f":"SUM(Dataset[[#This Row],[2024/25 Reduction]],Dataset[[#This Row],[2024/25 From - Total]],Dataset[[#This Row],[2024/25 To - Total]])","v":0},{"$f":"SUM(Dataset[[#This Row],[2025/26 Reduction]],Dataset[[#This Row],[2025/26 From - Total]],Dataset[[#This Row],[2025/26 To - Total]])","v":0},{"$f":"SUM(Dataset[[#This Row],[2026/27 Reduction]],Dataset[[#This Row],[2026/27 From - Total]],Dataset[[#This Row],[2026/27 To - Total]])","v":0},{"$f":"Dataset[[#This Row],[2023/24 Baseline]]+Dataset[[#This Row],[2023/24 Total change]]","v":4},{"$f":"Dataset[[#This Row],[2024/25 Baseline]]+Dataset[[#This Row],[2024/25 Total change]]","v":0},{"$f":"Dataset[[#This Row],[2025/26 Baseline]]+Dataset[[#This Row],[2025/26 Total change]]","v":0},{"$f":"Dataset[[#This Row],[2026/27 Baseline]]+Dataset[[#This Row],[2026/27 Total change]]","v":0}]
["NAT|Non-transfer item","26|Fleet services (including government motor transport)","2024_25","MTEF2024",26,2,2,44445,558,"26","02","02","044445","000558","26|02|02","01","01","02","19","19","01|01|02|19|19","National","Military Veterans","Socioeconomic Support","Health Care and Wellbeing Support","Non-transfer item","Current","Current payments","Goods and services","Fleet services (including government motor transport)","Fleet services (including government motor transport)","Peace and security","Defence and state security","NAT",0,0,0,0,0,0,0,0,0,0,0,null,null,null,null,null,null,null,null,null,null,null,null,null,null,null,null,null,null,null,null,null,null,null,null,null,null,null,null,null,null,null,null,null,null,{"$f":"Dataset[[#This Row],[2024/25 From - Spending review Topic 1]]+Dataset[[#This Row],[2024/25 From - Spending review Topic 2]]+Dataset[[#This Row],[2024/25 From - Spending review Topic 3]]+Dataset[[#This Row],[2024/25 From - Spending review Topic 4]]+Dataset[[#This Row],[2024/25 From - Other reallocations]]","v":0},{"$f":"Dataset[[#This Row],[2025/26 From - Spending review Topic 1]]+Dataset[[#This Row],[2025/26 From - Spending review Topic 2]]+Dataset[[#This Row],[2025/26 From - Spending review Topic 3]]+Dataset[[#This Row],[2025/26 From - Spending review Topic 4]]+Dataset[[#This Row],[2025/26 From - Other reallocations]]","v":0},{"$f":"Dataset[[#This Row],[2026/27 From - Spending review Topic 1]]+Dataset[[#This Row],[2026/27 From - Spending review Topic 2]]+Dataset[[#This Row],[2026/27 From - Spending review Topic 3]]+Dataset[[#This Row],[2026/27 From - Spending review Topic 4]]+Dataset[[#This Row],[2026/27 From - Other reallocations]]","v":0},{"$f":"Dataset[[#This Row],[2024/25 To - Spending review Topic 1]]+Dataset[[#This Row],[2024/25 To - Spending review Topic 2]]+Dataset[[#This Row],[2024/25 To - Spending review Topic 3]]+Dataset[[#This Row],[2024/25 To - Spending review Topic 4]]+Dataset[[#This Row],[2024/25 To - Other reallocations]]","v":0},{"$f":"Dataset[[#This Row],[2025/26 To - Spending review Topic 1]]+Dataset[[#This Row],[2025/26 To - Spending review Topic 2]]+Dataset[[#This Row],[2025/26 To - Spending review Topic 3]]+Dataset[[#This Row],[2025/26 To - Spending review Topic 4]]+Dataset[[#This Row],[2025/26 To - Other reallocations]]","v":0},{"$f":"Dataset[[#This Row],[2026/27 To - Spending review Topic 1]]+Dataset[[#This Row],[2026/27 To - Spending review Topic 2]]+Dataset[[#This Row],[2026/27 To - Spending review Topic 3]]+Dataset[[#This Row],[2026/27 To - Spending review Topic 4]]+Dataset[[#This Row],[2026/27 To - Other reallocations]]","v":0},{"$f":"Dataset[[#This Row],[2024/25 Reduction]]+Dataset[[#This Row],[2024/25 From - Total]]","v":0},{"$f":"Dataset[[#This Row],[2025/26 Reduction]]+Dataset[[#This Row],[2025/26 From - Total]]","v":0},{"$f":"Dataset[[#This Row],[2026/27 Reduction]]+Dataset[[#This Row],[2026/27 From - Total]]","v":0},{"$f":"Dataset[[#This Row],[2023/24 Reduction]]","v":0},{"$f":"SUM(Dataset[[#This Row],[2024/25 Reduction]],Dataset[[#This Row],[2024/25 From - Total]],Dataset[[#This Row],[2024/25 To - Total]])","v":0},{"$f":"SUM(Dataset[[#This Row],[2025/26 Reduction]],Dataset[[#This Row],[2025/26 From - Total]],Dataset[[#This Row],[2025/26 To - Total]])","v":0},{"$f":"SUM(Dataset[[#This Row],[2026/27 Reduction]],Dataset[[#This Row],[2026/27 From - Total]],Dataset[[#This Row],[2026/27 To - Total]])","v":0},{"$f":"Dataset[[#This Row],[2023/24 Baseline]]+Dataset[[#This Row],[2023/24 Total change]]","v":0},{"$f":"Dataset[[#This Row],[2024/25 Baseline]]+Dataset[[#This Row],[2024/25 Total change]]","v":0},{"$f":"Dataset[[#This Row],[2025/26 Baseline]]+Dataset[[#This Row],[2025/26 Total change]]","v":0},{"$f":"Dataset[[#This Row],[2026/27 Baseline]]+Dataset[[#This Row],[2026/27 Total change]]","v":0}]
["NAT|Non-transfer item","26|Housing","2024_25","MTEF2024",26,2,2,44446,559,"26","02","02","044446","000559","26|02|02","01","01","02","20","20","01|01|02|20|20","National","Military Veterans","Socioeconomic Support","Health Care and Wellbeing Support","Non-transfer item","Current","Current payments","Goods and services","Housing","Housing","Peace and security","Defence and state security","NAT",0,0,0,0,0,0,0,0,0,0,0,null,null,null,null,null,null,null,null,null,null,null,null,null,null,null,null,null,null,null,null,null,null,null,null,null,null,null,null,null,null,null,null,null,null,{"$f":"Dataset[[#This Row],[2024/25 From - Spending review Topic 1]]+Dataset[[#This Row],[2024/25 From - Spending review Topic 2]]+Dataset[[#This Row],[2024/25 From - Spending review Topic 3]]+Dataset[[#This Row],[2024/25 From - Spending review Topic 4]]+Dataset[[#This Row],[2024/25 From - Other reallocations]]","v":0},{"$f":"Dataset[[#This Row],[2025/26 From - Spending review Topic 1]]+Dataset[[#This Row],[2025/26 From - Spending review Topic 2]]+Dataset[[#This Row],[2025/26 From - Spending review Topic 3]]+Dataset[[#This Row],[2025/26 From - Spending review Topic 4]]+Dataset[[#This Row],[2025/26 From - Other reallocations]]","v":0},{"$f":"Dataset[[#This Row],[2026/27 From - Spending review Topic 1]]+Dataset[[#This Row],[2026/27 From - Spending review Topic 2]]+Dataset[[#This Row],[2026/27 From - Spending review Topic 3]]+Dataset[[#This Row],[2026/27 From - Spending review Topic 4]]+Dataset[[#This Row],[2026/27 From - Other reallocations]]","v":0},{"$f":"Dataset[[#This Row],[2024/25 To - Spending review Topic 1]]+Dataset[[#This Row],[2024/25 To - Spending review Topic 2]]+Dataset[[#This Row],[2024/25 To - Spending review Topic 3]]+Dataset[[#This Row],[2024/25 To - Spending review Topic 4]]+Dataset[[#This Row],[2024/25 To - Other reallocations]]","v":0},{"$f":"Dataset[[#This Row],[2025/26 To - Spending review Topic 1]]+Dataset[[#This Row],[2025/26 To - Spending review Topic 2]]+Dataset[[#This Row],[2025/26 To - Spending review Topic 3]]+Dataset[[#This Row],[2025/26 To - Spending review Topic 4]]+Dataset[[#This Row],[2025/26 To - Other reallocations]]","v":0},{"$f":"Dataset[[#This Row],[2026/27 To - Spending review Topic 1]]+Dataset[[#This Row],[2026/27 To - Spending review Topic 2]]+Dataset[[#This Row],[2026/27 To - Spending review Topic 3]]+Dataset[[#This Row],[2026/27 To - Spending review Topic 4]]+Dataset[[#This Row],[2026/27 To - Other reallocations]]","v":0},{"$f":"Dataset[[#This Row],[2024/25 Reduction]]+Dataset[[#This Row],[2024/25 From - Total]]","v":0},{"$f":"Dataset[[#This Row],[2025/26 Reduction]]+Dataset[[#This Row],[2025/26 From - Total]]","v":0},{"$f":"Dataset[[#This Row],[2026/27 Reduction]]+Dataset[[#This Row],[2026/27 From - Total]]","v":0},{"$f":"Dataset[[#This Row],[2023/24 Reduction]]","v":0},{"$f":"SUM(Dataset[[#This Row],[2024/25 Reduction]],Dataset[[#This Row],[2024/25 From - Total]],Dataset[[#This Row],[2024/25 To - Total]])","v":0},{"$f":"SUM(Dataset[[#This Row],[2025/26 Reduction]],Dataset[[#This Row],[2025/26 From - Total]],Dataset[[#This Row],[2025/26 To - Total]])","v":0},{"$f":"SUM(Dataset[[#This Row],[2026/27 Reduction]],Dataset[[#This Row],[2026/27 From - Total]],Dataset[[#This Row],[2026/27 To - Total]])","v":0},{"$f":"Dataset[[#This Row],[2023/24 Baseline]]+Dataset[[#This Row],[2023/24 Total change]]","v":0},{"$f":"Dataset[[#This Row],[2024/25 Baseline]]+Dataset[[#This Row],[2024/25 Total change]]","v":0},{"$f":"Dataset[[#This Row],[2025/26 Baseline]]+Dataset[[#This Row],[2025/26 Total change]]","v":0},{"$f":"Dataset[[#This Row],[2026/27 Baseline]]+Dataset[[#This Row],[2026/27 Total change]]","v":0}]
["NAT|Non-transfer item","26|Inventory: Clothing material and accessories","2024_25","MTEF2024",26,2,2,44447,560,"26","02","02","044447","000560","26|02|02","01","01","02","21","21","01|01|02|21|21","National","Military Veterans","Socioeconomic Support","Health Care and Wellbeing Support","Non-transfer item","Current","Current payments","Goods and services","Inventory: Clothing material and accessories","Inventory: Clothing material and accessories","Peace and security","Defence and state security","NAT",0,0,0,0,0,0,0,0,0,0,0,null,null,null,null,null,null,null,null,null,null,null,null,null,null,null,null,null,null,null,null,null,null,null,null,null,null,null,null,null,null,null,null,null,null,{"$f":"Dataset[[#This Row],[2024/25 From - Spending review Topic 1]]+Dataset[[#This Row],[2024/25 From - Spending review Topic 2]]+Dataset[[#This Row],[2024/25 From - Spending review Topic 3]]+Dataset[[#This Row],[2024/25 From - Spending review Topic 4]]+Dataset[[#This Row],[2024/25 From - Other reallocations]]","v":0},{"$f":"Dataset[[#This Row],[2025/26 From - Spending review Topic 1]]+Dataset[[#This Row],[2025/26 From - Spending review Topic 2]]+Dataset[[#This Row],[2025/26 From - Spending review Topic 3]]+Dataset[[#This Row],[2025/26 From - Spending review Topic 4]]+Dataset[[#This Row],[2025/26 From - Other reallocations]]","v":0},{"$f":"Dataset[[#This Row],[2026/27 From - Spending review Topic 1]]+Dataset[[#This Row],[2026/27 From - Spending review Topic 2]]+Dataset[[#This Row],[2026/27 From - Spending review Topic 3]]+Dataset[[#This Row],[2026/27 From - Spending review Topic 4]]+Dataset[[#This Row],[2026/27 From - Other reallocations]]","v":0},{"$f":"Dataset[[#This Row],[2024/25 To - Spending review Topic 1]]+Dataset[[#This Row],[2024/25 To - Spending review Topic 2]]+Dataset[[#This Row],[2024/25 To - Spending review Topic 3]]+Dataset[[#This Row],[2024/25 To - Spending review Topic 4]]+Dataset[[#This Row],[2024/25 To - Other reallocations]]","v":0},{"$f":"Dataset[[#This Row],[2025/26 To - Spending review Topic 1]]+Dataset[[#This Row],[2025/26 To - Spending review Topic 2]]+Dataset[[#This Row],[2025/26 To - Spending review Topic 3]]+Dataset[[#This Row],[2025/26 To - Spending review Topic 4]]+Dataset[[#This Row],[2025/26 To - Other reallocations]]","v":0},{"$f":"Dataset[[#This Row],[2026/27 To - Spending review Topic 1]]+Dataset[[#This Row],[2026/27 To - Spending review Topic 2]]+Dataset[[#This Row],[2026/27 To - Spending review Topic 3]]+Dataset[[#This Row],[2026/27 To - Spending review Topic 4]]+Dataset[[#This Row],[2026/27 To - Other reallocations]]","v":0},{"$f":"Dataset[[#This Row],[2024/25 Reduction]]+Dataset[[#This Row],[2024/25 From - Total]]","v":0},{"$f":"Dataset[[#This Row],[2025/26 Reduction]]+Dataset[[#This Row],[2025/26 From - Total]]","v":0},{"$f":"Dataset[[#This Row],[2026/27 Reduction]]+Dataset[[#This Row],[2026/27 From - Total]]","v":0},{"$f":"Dataset[[#This Row],[2023/24 Reduction]]","v":0},{"$f":"SUM(Dataset[[#This Row],[2024/25 Reduction]],Dataset[[#This Row],[2024/25 From - Total]],Dataset[[#This Row],[2024/25 To - Total]])","v":0},{"$f":"SUM(Dataset[[#This Row],[2025/26 Reduction]],Dataset[[#This Row],[2025/26 From - Total]],Dataset[[#This Row],[2025/26 To - Total]])","v":0},{"$f":"SUM(Dataset[[#This Row],[2026/27 Reduction]],Dataset[[#This Row],[2026/27 From - Total]],Dataset[[#This Row],[2026/27 To - Total]])","v":0},{"$f":"Dataset[[#This Row],[2023/24 Baseline]]+Dataset[[#This Row],[2023/24 Total change]]","v":0},{"$f":"Dataset[[#This Row],[2024/25 Baseline]]+Dataset[[#This Row],[2024/25 Total change]]","v":0},{"$f":"Dataset[[#This Row],[2025/26 Baseline]]+Dataset[[#This Row],[2025/26 Total change]]","v":0},{"$f":"Dataset[[#This Row],[2026/27 Baseline]]+Dataset[[#This Row],[2026/27 Total change]]","v":0}]
["NAT|Non-transfer item","26|Inventory: Farming supplies","2024_25","MTEF2024",26,2,2,44448,561,"26","02","02","044448","000561","26|02|02","01","01","02","22","22","01|01|02|22|22","National","Military Veterans","Socioeconomic Support","Health Care and Wellbeing Support","Non-transfer item","Current","Current payments","Goods and services","Inventory: Farming supplies","Inventory: Farming supplies","Peace and security","Defence and state security","NAT",0,0,0,0,0,0,0,0,0,0,0,null,null,null,null,null,null,null,null,null,null,null,null,null,null,null,null,null,null,null,null,null,null,null,null,null,null,null,null,null,null,null,null,null,null,{"$f":"Dataset[[#This Row],[2024/25 From - Spending review Topic 1]]+Dataset[[#This Row],[2024/25 From - Spending review Topic 2]]+Dataset[[#This Row],[2024/25 From - Spending review Topic 3]]+Dataset[[#This Row],[2024/25 From - Spending review Topic 4]]+Dataset[[#This Row],[2024/25 From - Other reallocations]]","v":0},{"$f":"Dataset[[#This Row],[2025/26 From - Spending review Topic 1]]+Dataset[[#This Row],[2025/26 From - Spending review Topic 2]]+Dataset[[#This Row],[2025/26 From - Spending review Topic 3]]+Dataset[[#This Row],[2025/26 From - Spending review Topic 4]]+Dataset[[#This Row],[2025/26 From - Other reallocations]]","v":0},{"$f":"Dataset[[#This Row],[2026/27 From - Spending review Topic 1]]+Dataset[[#This Row],[2026/27 From - Spending review Topic 2]]+Dataset[[#This Row],[2026/27 From - Spending review Topic 3]]+Dataset[[#This Row],[2026/27 From - Spending review Topic 4]]+Dataset[[#This Row],[2026/27 From - Other reallocations]]","v":0},{"$f":"Dataset[[#This Row],[2024/25 To - Spending review Topic 1]]+Dataset[[#This Row],[2024/25 To - Spending review Topic 2]]+Dataset[[#This Row],[2024/25 To - Spending review Topic 3]]+Dataset[[#This Row],[2024/25 To - Spending review Topic 4]]+Dataset[[#This Row],[2024/25 To - Other reallocations]]","v":0},{"$f":"Dataset[[#This Row],[2025/26 To - Spending review Topic 1]]+Dataset[[#This Row],[2025/26 To - Spending review Topic 2]]+Dataset[[#This Row],[2025/26 To - Spending review Topic 3]]+Dataset[[#This Row],[2025/26 To - Spending review Topic 4]]+Dataset[[#This Row],[2025/26 To - Other reallocations]]","v":0},{"$f":"Dataset[[#This Row],[2026/27 To - Spending review Topic 1]]+Dataset[[#This Row],[2026/27 To - Spending review Topic 2]]+Dataset[[#This Row],[2026/27 To - Spending review Topic 3]]+Dataset[[#This Row],[2026/27 To - Spending review Topic 4]]+Dataset[[#This Row],[2026/27 To - Other reallocations]]","v":0},{"$f":"Dataset[[#This Row],[2024/25 Reduction]]+Dataset[[#This Row],[2024/25 From - Total]]","v":0},{"$f":"Dataset[[#This Row],[2025/26 Reduction]]+Dataset[[#This Row],[2025/26 From - Total]]","v":0},{"$f":"Dataset[[#This Row],[2026/27 Reduction]]+Dataset[[#This Row],[2026/27 From - Total]]","v":0},{"$f":"Dataset[[#This Row],[2023/24 Reduction]]","v":0},{"$f":"SUM(Dataset[[#This Row],[2024/25 Reduction]],Dataset[[#This Row],[2024/25 From - Total]],Dataset[[#This Row],[2024/25 To - Total]])","v":0},{"$f":"SUM(Dataset[[#This Row],[2025/26 Reduction]],Dataset[[#This Row],[2025/26 From - Total]],Dataset[[#This Row],[2025/26 To - Total]])","v":0},{"$f":"SUM(Dataset[[#This Row],[2026/27 Reduction]],Dataset[[#This Row],[2026/27 From - Total]],Dataset[[#This Row],[2026/27 To - Total]])","v":0},{"$f":"Dataset[[#This Row],[2023/24 Baseline]]+Dataset[[#This Row],[2023/24 Total change]]","v":0},{"$f":"Dataset[[#This Row],[2024/25 Baseline]]+Dataset[[#This Row],[2024/25 Total change]]","v":0},{"$f":"Dataset[[#This Row],[2025/26 Baseline]]+Dataset[[#This Row],[2025/26 Total change]]","v":0},{"$f":"Dataset[[#This Row],[2026/27 Baseline]]+Dataset[[#This Row],[2026/27 Total change]]","v":0}]
["NAT|Non-transfer item","26|Inventory: Food and food supplies","2024_25","MTEF2024",26,2,2,44449,562,"26","02","02","044449","000562","26|02|02","01","01","02","23","23","01|01|02|23|23","National","Military Veterans","Socioeconomic Support","Health Care and Wellbeing Support","Non-transfer item","Current","Current payments","Goods and services","Inventory: Food and food supplies","Inventory: Food and food supplies","Peace and security","Defence and state security","NAT",0,0,0,0,0,0,0,0,0,0,0,null,null,null,null,null,null,null,null,null,null,null,null,null,null,null,null,null,null,null,null,null,null,null,null,null,null,null,null,null,null,null,null,null,null,{"$f":"Dataset[[#This Row],[2024/25 From - Spending review Topic 1]]+Dataset[[#This Row],[2024/25 From - Spending review Topic 2]]+Dataset[[#This Row],[2024/25 From - Spending review Topic 3]]+Dataset[[#This Row],[2024/25 From - Spending review Topic 4]]+Dataset[[#This Row],[2024/25 From - Other reallocations]]","v":0},{"$f":"Dataset[[#This Row],[2025/26 From - Spending review Topic 1]]+Dataset[[#This Row],[2025/26 From - Spending review Topic 2]]+Dataset[[#This Row],[2025/26 From - Spending review Topic 3]]+Dataset[[#This Row],[2025/26 From - Spending review Topic 4]]+Dataset[[#This Row],[2025/26 From - Other reallocations]]","v":0},{"$f":"Dataset[[#This Row],[2026/27 From - Spending review Topic 1]]+Dataset[[#This Row],[2026/27 From - Spending review Topic 2]]+Dataset[[#This Row],[2026/27 From - Spending review Topic 3]]+Dataset[[#This Row],[2026/27 From - Spending review Topic 4]]+Dataset[[#This Row],[2026/27 From - Other reallocations]]","v":0},{"$f":"Dataset[[#This Row],[2024/25 To - Spending review Topic 1]]+Dataset[[#This Row],[2024/25 To - Spending review Topic 2]]+Dataset[[#This Row],[2024/25 To - Spending review Topic 3]]+Dataset[[#This Row],[2024/25 To - Spending review Topic 4]]+Dataset[[#This Row],[2024/25 To - Other reallocations]]","v":0},{"$f":"Dataset[[#This Row],[2025/26 To - Spending review Topic 1]]+Dataset[[#This Row],[2025/26 To - Spending review Topic 2]]+Dataset[[#This Row],[2025/26 To - Spending review Topic 3]]+Dataset[[#This Row],[2025/26 To - Spending review Topic 4]]+Dataset[[#This Row],[2025/26 To - Other reallocations]]","v":0},{"$f":"Dataset[[#This Row],[2026/27 To - Spending review Topic 1]]+Dataset[[#This Row],[2026/27 To - Spending review Topic 2]]+Dataset[[#This Row],[2026/27 To - Spending review Topic 3]]+Dataset[[#This Row],[2026/27 To - Spending review Topic 4]]+Dataset[[#This Row],[2026/27 To - Other reallocations]]","v":0},{"$f":"Dataset[[#This Row],[2024/25 Reduction]]+Dataset[[#This Row],[2024/25 From - Total]]","v":0},{"$f":"Dataset[[#This Row],[2025/26 Reduction]]+Dataset[[#This Row],[2025/26 From - Total]]","v":0},{"$f":"Dataset[[#This Row],[2026/27 Reduction]]+Dataset[[#This Row],[2026/27 From - Total]]","v":0},{"$f":"Dataset[[#This Row],[2023/24 Reduction]]","v":0},{"$f":"SUM(Dataset[[#This Row],[2024/25 Reduction]],Dataset[[#This Row],[2024/25 From - Total]],Dataset[[#This Row],[2024/25 To - Total]])","v":0},{"$f":"SUM(Dataset[[#This Row],[2025/26 Reduction]],Dataset[[#This Row],[2025/26 From - Total]],Dataset[[#This Row],[2025/26 To - Total]])","v":0},{"$f":"SUM(Dataset[[#This Row],[2026/27 Reduction]],Dataset[[#This Row],[2026/27 From - Total]],Dataset[[#This Row],[2026/27 To - Total]])","v":0},{"$f":"Dataset[[#This Row],[2023/24 Baseline]]+Dataset[[#This Row],[2023/24 Total change]]","v":0},{"$f":"Dataset[[#This Row],[2024/25 Baseline]]+Dataset[[#This Row],[2024/25 Total change]]","v":0},{"$f":"Dataset[[#This Row],[2025/26 Baseline]]+Dataset[[#This Row],[2025/26 Total change]]","v":0},{"$f":"Dataset[[#This Row],[2026/27 Baseline]]+Dataset[[#This Row],[2026/27 Total change]]","v":0}]
["NAT|Non-transfer item","26|Inventory: Fuel, oil and gas","2024_25","MTEF2024",26,2,2,44450,563,"26","02","02","044450","000563","26|02|02","01","01","02","24","24","01|01|02|24|24","National","Military Veterans","Socioeconomic Support","Health Care and Wellbeing Support","Non-transfer item","Current","Current payments","Goods and services","Inventory: Fuel, oil and gas","Inventory: Fuel, oil and gas","Peace and security","Defence and state security","NAT",0,0,0,0,0,0,0,0,0,0,0,null,null,null,null,null,null,null,null,null,null,null,null,null,null,null,null,null,null,null,null,null,null,null,null,null,null,null,null,null,null,null,null,null,null,{"$f":"Dataset[[#This Row],[2024/25 From - Spending review Topic 1]]+Dataset[[#This Row],[2024/25 From - Spending review Topic 2]]+Dataset[[#This Row],[2024/25 From - Spending review Topic 3]]+Dataset[[#This Row],[2024/25 From - Spending review Topic 4]]+Dataset[[#This Row],[2024/25 From - Other reallocations]]","v":0},{"$f":"Dataset[[#This Row],[2025/26 From - Spending review Topic 1]]+Dataset[[#This Row],[2025/26 From - Spending review Topic 2]]+Dataset[[#This Row],[2025/26 From - Spending review Topic 3]]+Dataset[[#This Row],[2025/26 From - Spending review Topic 4]]+Dataset[[#This Row],[2025/26 From - Other reallocations]]","v":0},{"$f":"Dataset[[#This Row],[2026/27 From - Spending review Topic 1]]+Dataset[[#This Row],[2026/27 From - Spending review Topic 2]]+Dataset[[#This Row],[2026/27 From - Spending review Topic 3]]+Dataset[[#This Row],[2026/27 From - Spending review Topic 4]]+Dataset[[#This Row],[2026/27 From - Other reallocations]]","v":0},{"$f":"Dataset[[#This Row],[2024/25 To - Spending review Topic 1]]+Dataset[[#This Row],[2024/25 To - Spending review Topic 2]]+Dataset[[#This Row],[2024/25 To - Spending review Topic 3]]+Dataset[[#This Row],[2024/25 To - Spending review Topic 4]]+Dataset[[#This Row],[2024/25 To - Other reallocations]]","v":0},{"$f":"Dataset[[#This Row],[2025/26 To - Spending review Topic 1]]+Dataset[[#This Row],[2025/26 To - Spending review Topic 2]]+Dataset[[#This Row],[2025/26 To - Spending review Topic 3]]+Dataset[[#This Row],[2025/26 To - Spending review Topic 4]]+Dataset[[#This Row],[2025/26 To - Other reallocations]]","v":0},{"$f":"Dataset[[#This Row],[2026/27 To - Spending review Topic 1]]+Dataset[[#This Row],[2026/27 To - Spending review Topic 2]]+Dataset[[#This Row],[2026/27 To - Spending review Topic 3]]+Dataset[[#This Row],[2026/27 To - Spending review Topic 4]]+Dataset[[#This Row],[2026/27 To - Other reallocations]]","v":0},{"$f":"Dataset[[#This Row],[2024/25 Reduction]]+Dataset[[#This Row],[2024/25 From - Total]]","v":0},{"$f":"Dataset[[#This Row],[2025/26 Reduction]]+Dataset[[#This Row],[2025/26 From - Total]]","v":0},{"$f":"Dataset[[#This Row],[2026/27 Reduction]]+Dataset[[#This Row],[2026/27 From - Total]]","v":0},{"$f":"Dataset[[#This Row],[2023/24 Reduction]]","v":0},{"$f":"SUM(Dataset[[#This Row],[2024/25 Reduction]],Dataset[[#This Row],[2024/25 From - Total]],Dataset[[#This Row],[2024/25 To - Total]])","v":0},{"$f":"SUM(Dataset[[#This Row],[2025/26 Reduction]],Dataset[[#This Row],[2025/26 From - Total]],Dataset[[#This Row],[2025/26 To - Total]])","v":0},{"$f":"SUM(Dataset[[#This Row],[2026/27 Reduction]],Dataset[[#This Row],[2026/27 From - Total]],Dataset[[#This Row],[2026/27 To - Total]])","v":0},{"$f":"Dataset[[#This Row],[2023/24 Baseline]]+Dataset[[#This Row],[2023/24 Total change]]","v":0},{"$f":"Dataset[[#This Row],[2024/25 Baseline]]+Dataset[[#This Row],[2024/25 Total change]]","v":0},{"$f":"Dataset[[#This Row],[2025/26 Baseline]]+Dataset[[#This Row],[2025/26 Total change]]","v":0},{"$f":"Dataset[[#This Row],[2026/27 Baseline]]+Dataset[[#This Row],[2026/27 Total change]]","v":0}]
["NAT|Non-transfer item","26|Inventory: Learner and teacher support material","2024_25","MTEF2024",26,2,2,44451,564,"26","02","02","044451","000564","26|02|02","01","01","02","25","25","01|01|02|25|25","National","Military Veterans","Socioeconomic Support","Health Care and Wellbeing Support","Non-transfer item","Current","Current payments","Goods and services","Inventory: Learner and teacher support material","Inventory: Learner and teacher support material","Peace and security","Defence and state security","NAT",0,0,0,0,0,0,0,0,0,0,0,null,null,null,null,null,null,null,null,null,null,null,null,null,null,null,null,null,null,null,null,null,null,null,null,null,null,null,null,null,null,null,null,null,null,{"$f":"Dataset[[#This Row],[2024/25 From - Spending review Topic 1]]+Dataset[[#This Row],[2024/25 From - Spending review Topic 2]]+Dataset[[#This Row],[2024/25 From - Spending review Topic 3]]+Dataset[[#This Row],[2024/25 From - Spending review Topic 4]]+Dataset[[#This Row],[2024/25 From - Other reallocations]]","v":0},{"$f":"Dataset[[#This Row],[2025/26 From - Spending review Topic 1]]+Dataset[[#This Row],[2025/26 From - Spending review Topic 2]]+Dataset[[#This Row],[2025/26 From - Spending review Topic 3]]+Dataset[[#This Row],[2025/26 From - Spending review Topic 4]]+Dataset[[#This Row],[2025/26 From - Other reallocations]]","v":0},{"$f":"Dataset[[#This Row],[2026/27 From - Spending review Topic 1]]+Dataset[[#This Row],[2026/27 From - Spending review Topic 2]]+Dataset[[#This Row],[2026/27 From - Spending review Topic 3]]+Dataset[[#This Row],[2026/27 From - Spending review Topic 4]]+Dataset[[#This Row],[2026/27 From - Other reallocations]]","v":0},{"$f":"Dataset[[#This Row],[2024/25 To - Spending review Topic 1]]+Dataset[[#This Row],[2024/25 To - Spending review Topic 2]]+Dataset[[#This Row],[2024/25 To - Spending review Topic 3]]+Dataset[[#This Row],[2024/25 To - Spending review Topic 4]]+Dataset[[#This Row],[2024/25 To - Other reallocations]]","v":0},{"$f":"Dataset[[#This Row],[2025/26 To - Spending review Topic 1]]+Dataset[[#This Row],[2025/26 To - Spending review Topic 2]]+Dataset[[#This Row],[2025/26 To - Spending review Topic 3]]+Dataset[[#This Row],[2025/26 To - Spending review Topic 4]]+Dataset[[#This Row],[2025/26 To - Other reallocations]]","v":0},{"$f":"Dataset[[#This Row],[2026/27 To - Spending review Topic 1]]+Dataset[[#This Row],[2026/27 To - Spending review Topic 2]]+Dataset[[#This Row],[2026/27 To - Spending review Topic 3]]+Dataset[[#This Row],[2026/27 To - Spending review Topic 4]]+Dataset[[#This Row],[2026/27 To - Other reallocations]]","v":0},{"$f":"Dataset[[#This Row],[2024/25 Reduction]]+Dataset[[#This Row],[2024/25 From - Total]]","v":0},{"$f":"Dataset[[#This Row],[2025/26 Reduction]]+Dataset[[#This Row],[2025/26 From - Total]]","v":0},{"$f":"Dataset[[#This Row],[2026/27 Reduction]]+Dataset[[#This Row],[2026/27 From - Total]]","v":0},{"$f":"Dataset[[#This Row],[2023/24 Reduction]]","v":0},{"$f":"SUM(Dataset[[#This Row],[2024/25 Reduction]],Dataset[[#This Row],[2024/25 From - Total]],Dataset[[#This Row],[2024/25 To - Total]])","v":0},{"$f":"SUM(Dataset[[#This Row],[2025/26 Reduction]],Dataset[[#This Row],[2025/26 From - Total]],Dataset[[#This Row],[2025/26 To - Total]])","v":0},{"$f":"SUM(Dataset[[#This Row],[2026/27 Reduction]],Dataset[[#This Row],[2026/27 From - Total]],Dataset[[#This Row],[2026/27 To - Total]])","v":0},{"$f":"Dataset[[#This Row],[2023/24 Baseline]]+Dataset[[#This Row],[2023/24 Total change]]","v":0},{"$f":"Dataset[[#This Row],[2024/25 Baseline]]+Dataset[[#This Row],[2024/25 Total change]]","v":0},{"$f":"Dataset[[#This Row],[2025/26 Baseline]]+Dataset[[#This Row],[2025/26 Total change]]","v":0},{"$f":"Dataset[[#This Row],[2026/27 Baseline]]+Dataset[[#This Row],[2026/27 Total change]]","v":0}]
["NAT|Non-transfer item","26|Inventory: Materials and supplies","2024_25","MTEF2024",26,2,2,44452,565,"26","02","02","044452","000565","26|02|02","01","01","02","26","26","01|01|02|26|26","National","Military Veterans","Socioeconomic Support","Health Care and Wellbeing Support","Non-transfer item","Current","Current payments","Goods and services","Inventory: Materials and supplies","Inventory: Materials and supplies","Peace and security","Defence and state security","NAT",0,0,0,0,0,0,0,0,0,0,0,null,null,null,null,null,null,null,null,null,null,null,null,null,null,null,null,null,null,null,null,null,null,null,null,null,null,null,null,null,null,null,null,null,null,{"$f":"Dataset[[#This Row],[2024/25 From - Spending review Topic 1]]+Dataset[[#This Row],[2024/25 From - Spending review Topic 2]]+Dataset[[#This Row],[2024/25 From - Spending review Topic 3]]+Dataset[[#This Row],[2024/25 From - Spending review Topic 4]]+Dataset[[#This Row],[2024/25 From - Other reallocations]]","v":0},{"$f":"Dataset[[#This Row],[2025/26 From - Spending review Topic 1]]+Dataset[[#This Row],[2025/26 From - Spending review Topic 2]]+Dataset[[#This Row],[2025/26 From - Spending review Topic 3]]+Dataset[[#This Row],[2025/26 From - Spending review Topic 4]]+Dataset[[#This Row],[2025/26 From - Other reallocations]]","v":0},{"$f":"Dataset[[#This Row],[2026/27 From - Spending review Topic 1]]+Dataset[[#This Row],[2026/27 From - Spending review Topic 2]]+Dataset[[#This Row],[2026/27 From - Spending review Topic 3]]+Dataset[[#This Row],[2026/27 From - Spending review Topic 4]]+Dataset[[#This Row],[2026/27 From - Other reallocations]]","v":0},{"$f":"Dataset[[#This Row],[2024/25 To - Spending review Topic 1]]+Dataset[[#This Row],[2024/25 To - Spending review Topic 2]]+Dataset[[#This Row],[2024/25 To - Spending review Topic 3]]+Dataset[[#This Row],[2024/25 To - Spending review Topic 4]]+Dataset[[#This Row],[2024/25 To - Other reallocations]]","v":0},{"$f":"Dataset[[#This Row],[2025/26 To - Spending review Topic 1]]+Dataset[[#This Row],[2025/26 To - Spending review Topic 2]]+Dataset[[#This Row],[2025/26 To - Spending review Topic 3]]+Dataset[[#This Row],[2025/26 To - Spending review Topic 4]]+Dataset[[#This Row],[2025/26 To - Other reallocations]]","v":0},{"$f":"Dataset[[#This Row],[2026/27 To - Spending review Topic 1]]+Dataset[[#This Row],[2026/27 To - Spending review Topic 2]]+Dataset[[#This Row],[2026/27 To - Spending review Topic 3]]+Dataset[[#This Row],[2026/27 To - Spending review Topic 4]]+Dataset[[#This Row],[2026/27 To - Other reallocations]]","v":0},{"$f":"Dataset[[#This Row],[2024/25 Reduction]]+Dataset[[#This Row],[2024/25 From - Total]]","v":0},{"$f":"Dataset[[#This Row],[2025/26 Reduction]]+Dataset[[#This Row],[2025/26 From - Total]]","v":0},{"$f":"Dataset[[#This Row],[2026/27 Reduction]]+Dataset[[#This Row],[2026/27 From - Total]]","v":0},{"$f":"Dataset[[#This Row],[2023/24 Reduction]]","v":0},{"$f":"SUM(Dataset[[#This Row],[2024/25 Reduction]],Dataset[[#This Row],[2024/25 From - Total]],Dataset[[#This Row],[2024/25 To - Total]])","v":0},{"$f":"SUM(Dataset[[#This Row],[2025/26 Reduction]],Dataset[[#This Row],[2025/26 From - Total]],Dataset[[#This Row],[2025/26 To - Total]])","v":0},{"$f":"SUM(Dataset[[#This Row],[2026/27 Reduction]],Dataset[[#This Row],[2026/27 From - Total]],Dataset[[#This Row],[2026/27 To - Total]])","v":0},{"$f":"Dataset[[#This Row],[2023/24 Baseline]]+Dataset[[#This Row],[2023/24 Total change]]","v":0},{"$f":"Dataset[[#This Row],[2024/25 Baseline]]+Dataset[[#This Row],[2024/25 Total change]]","v":0},{"$f":"Dataset[[#This Row],[2025/26 Baseline]]+Dataset[[#This Row],[2025/26 Total change]]","v":0},{"$f":"Dataset[[#This Row],[2026/27 Baseline]]+Dataset[[#This Row],[2026/27 Total change]]","v":0}]
["NAT|Non-transfer item","26|Inventory: Medical supplies","2024_25","MTEF2024",26,2,2,44453,566,"26","02","02","044453","000566","26|02|02","01","01","02","27","27","01|01|02|27|27","National","Military Veterans","Socioeconomic Support","Health Care and Wellbeing Support","Non-transfer item","Current","Current payments","Goods and services","Inventory: Medical supplies","Inventory: Medical supplies","Peace and security","Defence and state security","NAT",0,0,0,0,0,0,0,0,0,0,0,null,null,null,null,null,null,null,null,null,null,null,null,null,null,null,null,null,null,null,null,null,null,null,null,null,null,null,null,null,null,null,null,null,null,{"$f":"Dataset[[#This Row],[2024/25 From - Spending review Topic 1]]+Dataset[[#This Row],[2024/25 From - Spending review Topic 2]]+Dataset[[#This Row],[2024/25 From - Spending review Topic 3]]+Dataset[[#This Row],[2024/25 From - Spending review Topic 4]]+Dataset[[#This Row],[2024/25 From - Other reallocations]]","v":0},{"$f":"Dataset[[#This Row],[2025/26 From - Spending review Topic 1]]+Dataset[[#This Row],[2025/26 From - Spending review Topic 2]]+Dataset[[#This Row],[2025/26 From - Spending review Topic 3]]+Dataset[[#This Row],[2025/26 From - Spending review Topic 4]]+Dataset[[#This Row],[2025/26 From - Other reallocations]]","v":0},{"$f":"Dataset[[#This Row],[2026/27 From - Spending review Topic 1]]+Dataset[[#This Row],[2026/27 From - Spending review Topic 2]]+Dataset[[#This Row],[2026/27 From - Spending review Topic 3]]+Dataset[[#This Row],[2026/27 From - Spending review Topic 4]]+Dataset[[#This Row],[2026/27 From - Other reallocations]]","v":0},{"$f":"Dataset[[#This Row],[2024/25 To - Spending review Topic 1]]+Dataset[[#This Row],[2024/25 To - Spending review Topic 2]]+Dataset[[#This Row],[2024/25 To - Spending review Topic 3]]+Dataset[[#This Row],[2024/25 To - Spending review Topic 4]]+Dataset[[#This Row],[2024/25 To - Other reallocations]]","v":0},{"$f":"Dataset[[#This Row],[2025/26 To - Spending review Topic 1]]+Dataset[[#This Row],[2025/26 To - Spending review Topic 2]]+Dataset[[#This Row],[2025/26 To - Spending review Topic 3]]+Dataset[[#This Row],[2025/26 To - Spending review Topic 4]]+Dataset[[#This Row],[2025/26 To - Other reallocations]]","v":0},{"$f":"Dataset[[#This Row],[2026/27 To - Spending review Topic 1]]+Dataset[[#This Row],[2026/27 To - Spending review Topic 2]]+Dataset[[#This Row],[2026/27 To - Spending review Topic 3]]+Dataset[[#This Row],[2026/27 To - Spending review Topic 4]]+Dataset[[#This Row],[2026/27 To - Other reallocations]]","v":0},{"$f":"Dataset[[#This Row],[2024/25 Reduction]]+Dataset[[#This Row],[2024/25 From - Total]]","v":0},{"$f":"Dataset[[#This Row],[2025/26 Reduction]]+Dataset[[#This Row],[2025/26 From - Total]]","v":0},{"$f":"Dataset[[#This Row],[2026/27 Reduction]]+Dataset[[#This Row],[2026/27 From - Total]]","v":0},{"$f":"Dataset[[#This Row],[2023/24 Reduction]]","v":0},{"$f":"SUM(Dataset[[#This Row],[2024/25 Reduction]],Dataset[[#This Row],[2024/25 From - Total]],Dataset[[#This Row],[2024/25 To - Total]])","v":0},{"$f":"SUM(Dataset[[#This Row],[2025/26 Reduction]],Dataset[[#This Row],[2025/26 From - Total]],Dataset[[#This Row],[2025/26 To - Total]])","v":0},{"$f":"SUM(Dataset[[#This Row],[2026/27 Reduction]],Dataset[[#This Row],[2026/27 From - Total]],Dataset[[#This Row],[2026/27 To - Total]])","v":0},{"$f":"Dataset[[#This Row],[2023/24 Baseline]]+Dataset[[#This Row],[2023/24 Total change]]","v":0},{"$f":"Dataset[[#This Row],[2024/25 Baseline]]+Dataset[[#This Row],[2024/25 Total change]]","v":0},{"$f":"Dataset[[#This Row],[2025/26 Baseline]]+Dataset[[#This Row],[2025/26 Total change]]","v":0},{"$f":"Dataset[[#This Row],[2026/27 Baseline]]+Dataset[[#This Row],[2026/27 Total change]]","v":0}]
["NAT|Non-transfer item","26|Inventory: Medicine","2024_25","MTEF2024",26,2,2,44454,567,"26","02","02","044454","000567","26|02|02","01","01","02","28","28","01|01|02|28|28","National","Military Veterans","Socioeconomic Support","Health Care and Wellbeing Support","Non-transfer item","Current","Current payments","Goods and services","Inventory: Medicine","Inventory: Medicine","Peace and security","Defence and state security","NAT",0,0,0,0,0,0,0,0,0,0,0,null,null,null,null,null,null,null,null,null,null,null,null,null,null,null,null,null,null,null,null,null,null,null,null,null,null,null,null,null,null,null,null,null,null,{"$f":"Dataset[[#This Row],[2024/25 From - Spending review Topic 1]]+Dataset[[#This Row],[2024/25 From - Spending review Topic 2]]+Dataset[[#This Row],[2024/25 From - Spending review Topic 3]]+Dataset[[#This Row],[2024/25 From - Spending review Topic 4]]+Dataset[[#This Row],[2024/25 From - Other reallocations]]","v":0},{"$f":"Dataset[[#This Row],[2025/26 From - Spending review Topic 1]]+Dataset[[#This Row],[2025/26 From - Spending review Topic 2]]+Dataset[[#This Row],[2025/26 From - Spending review Topic 3]]+Dataset[[#This Row],[2025/26 From - Spending review Topic 4]]+Dataset[[#This Row],[2025/26 From - Other reallocations]]","v":0},{"$f":"Dataset[[#This Row],[2026/27 From - Spending review Topic 1]]+Dataset[[#This Row],[2026/27 From - Spending review Topic 2]]+Dataset[[#This Row],[2026/27 From - Spending review Topic 3]]+Dataset[[#This Row],[2026/27 From - Spending review Topic 4]]+Dataset[[#This Row],[2026/27 From - Other reallocations]]","v":0},{"$f":"Dataset[[#This Row],[2024/25 To - Spending review Topic 1]]+Dataset[[#This Row],[2024/25 To - Spending review Topic 2]]+Dataset[[#This Row],[2024/25 To - Spending review Topic 3]]+Dataset[[#This Row],[2024/25 To - Spending review Topic 4]]+Dataset[[#This Row],[2024/25 To - Other reallocations]]","v":0},{"$f":"Dataset[[#This Row],[2025/26 To - Spending review Topic 1]]+Dataset[[#This Row],[2025/26 To - Spending review Topic 2]]+Dataset[[#This Row],[2025/26 To - Spending review Topic 3]]+Dataset[[#This Row],[2025/26 To - Spending review Topic 4]]+Dataset[[#This Row],[2025/26 To - Other reallocations]]","v":0},{"$f":"Dataset[[#This Row],[2026/27 To - Spending review Topic 1]]+Dataset[[#This Row],[2026/27 To - Spending review Topic 2]]+Dataset[[#This Row],[2026/27 To - Spending review Topic 3]]+Dataset[[#This Row],[2026/27 To - Spending review Topic 4]]+Dataset[[#This Row],[2026/27 To - Other reallocations]]","v":0},{"$f":"Dataset[[#This Row],[2024/25 Reduction]]+Dataset[[#This Row],[2024/25 From - Total]]","v":0},{"$f":"Dataset[[#This Row],[2025/26 Reduction]]+Dataset[[#This Row],[2025/26 From - Total]]","v":0},{"$f":"Dataset[[#This Row],[2026/27 Reduction]]+Dataset[[#This Row],[2026/27 From - Total]]","v":0},{"$f":"Dataset[[#This Row],[2023/24 Reduction]]","v":0},{"$f":"SUM(Dataset[[#This Row],[2024/25 Reduction]],Dataset[[#This Row],[2024/25 From - Total]],Dataset[[#This Row],[2024/25 To - Total]])","v":0},{"$f":"SUM(Dataset[[#This Row],[2025/26 Reduction]],Dataset[[#This Row],[2025/26 From - Total]],Dataset[[#This Row],[2025/26 To - Total]])","v":0},{"$f":"SUM(Dataset[[#This Row],[2026/27 Reduction]],Dataset[[#This Row],[2026/27 From - Total]],Dataset[[#This Row],[2026/27 To - Total]])","v":0},{"$f":"Dataset[[#This Row],[2023/24 Baseline]]+Dataset[[#This Row],[2023/24 Total change]]","v":0},{"$f":"Dataset[[#This Row],[2024/25 Baseline]]+Dataset[[#This Row],[2024/25 Total change]]","v":0},{"$f":"Dataset[[#This Row],[2025/26 Baseline]]+Dataset[[#This Row],[2025/26 Total change]]","v":0},{"$f":"Dataset[[#This Row],[2026/27 Baseline]]+Dataset[[#This Row],[2026/27 Total change]]","v":0}]
["NAT|Non-transfer item","26|Medsas inventory interface","2024_25","MTEF2024",26,2,2,44455,568,"26","02","02","044455","000568","26|02|02","01","01","02","29","29","01|01|02|29|29","National","Military Veterans","Socioeconomic Support","Health Care and Wellbeing Support","Non-transfer item","Current","Current payments","Goods and services","Medsas inventory interface","Medsas inventory interface","Peace and security","Defence and state security","NAT",0,0,0,0,0,0,0,0,0,0,0,null,null,null,null,null,null,null,null,null,null,null,null,null,null,null,null,null,null,null,null,null,null,null,null,null,null,null,null,null,null,null,null,null,null,{"$f":"Dataset[[#This Row],[2024/25 From - Spending review Topic 1]]+Dataset[[#This Row],[2024/25 From - Spending review Topic 2]]+Dataset[[#This Row],[2024/25 From - Spending review Topic 3]]+Dataset[[#This Row],[2024/25 From - Spending review Topic 4]]+Dataset[[#This Row],[2024/25 From - Other reallocations]]","v":0},{"$f":"Dataset[[#This Row],[2025/26 From - Spending review Topic 1]]+Dataset[[#This Row],[2025/26 From - Spending review Topic 2]]+Dataset[[#This Row],[2025/26 From - Spending review Topic 3]]+Dataset[[#This Row],[2025/26 From - Spending review Topic 4]]+Dataset[[#This Row],[2025/26 From - Other reallocations]]","v":0},{"$f":"Dataset[[#This Row],[2026/27 From - Spending review Topic 1]]+Dataset[[#This Row],[2026/27 From - Spending review Topic 2]]+Dataset[[#This Row],[2026/27 From - Spending review Topic 3]]+Dataset[[#This Row],[2026/27 From - Spending review Topic 4]]+Dataset[[#This Row],[2026/27 From - Other reallocations]]","v":0},{"$f":"Dataset[[#This Row],[2024/25 To - Spending review Topic 1]]+Dataset[[#This Row],[2024/25 To - Spending review Topic 2]]+Dataset[[#This Row],[2024/25 To - Spending review Topic 3]]+Dataset[[#This Row],[2024/25 To - Spending review Topic 4]]+Dataset[[#This Row],[2024/25 To - Other reallocations]]","v":0},{"$f":"Dataset[[#This Row],[2025/26 To - Spending review Topic 1]]+Dataset[[#This Row],[2025/26 To - Spending review Topic 2]]+Dataset[[#This Row],[2025/26 To - Spending review Topic 3]]+Dataset[[#This Row],[2025/26 To - Spending review Topic 4]]+Dataset[[#This Row],[2025/26 To - Other reallocations]]","v":0},{"$f":"Dataset[[#This Row],[2026/27 To - Spending review Topic 1]]+Dataset[[#This Row],[2026/27 To - Spending review Topic 2]]+Dataset[[#This Row],[2026/27 To - Spending review Topic 3]]+Dataset[[#This Row],[2026/27 To - Spending review Topic 4]]+Dataset[[#This Row],[2026/27 To - Other reallocations]]","v":0},{"$f":"Dataset[[#This Row],[2024/25 Reduction]]+Dataset[[#This Row],[2024/25 From - Total]]","v":0},{"$f":"Dataset[[#This Row],[2025/26 Reduction]]+Dataset[[#This Row],[2025/26 From - Total]]","v":0},{"$f":"Dataset[[#This Row],[2026/27 Reduction]]+Dataset[[#This Row],[2026/27 From - Total]]","v":0},{"$f":"Dataset[[#This Row],[2023/24 Reduction]]","v":0},{"$f":"SUM(Dataset[[#This Row],[2024/25 Reduction]],Dataset[[#This Row],[2024/25 From - Total]],Dataset[[#This Row],[2024/25 To - Total]])","v":0},{"$f":"SUM(Dataset[[#This Row],[2025/26 Reduction]],Dataset[[#This Row],[2025/26 From - Total]],Dataset[[#This Row],[2025/26 To - Total]])","v":0},{"$f":"SUM(Dataset[[#This Row],[2026/27 Reduction]],Dataset[[#This Row],[2026/27 From - Total]],Dataset[[#This Row],[2026/27 To - Total]])","v":0},{"$f":"Dataset[[#This Row],[2023/24 Baseline]]+Dataset[[#This Row],[2023/24 Total change]]","v":0},{"$f":"Dataset[[#This Row],[2024/25 Baseline]]+Dataset[[#This Row],[2024/25 Total change]]","v":0},{"$f":"Dataset[[#This Row],[2025/26 Baseline]]+Dataset[[#This Row],[2025/26 Total change]]","v":0},{"$f":"Dataset[[#This Row],[2026/27 Baseline]]+Dataset[[#This Row],[2026/27 Total change]]","v":0}]
["NAT|Non-transfer item","26|Inventory: Other supplies","2024_25","MTEF2024",26,2,2,44456,569,"26","02","02","044456","000569","26|02|02","01","01","02","30","30","01|01|02|30|30","National","Military Veterans","Socioeconomic Support","Health Care and Wellbeing Support","Non-transfer item","Current","Current payments","Goods and services","Inventory: Other supplies","Inventory: Other supplies","Peace and security","Defence and state security","NAT",0,0,116,0,-6,-6,0,396,850,930,973,null,null,null,null,null,null,null,null,null,null,null,null,null,null,null,null,null,null,null,null,null,null,null,null,null,null,null,null,null,null,null,null,null,null,{"$f":"Dataset[[#This Row],[2024/25 From - Spending review Topic 1]]+Dataset[[#This Row],[2024/25 From - Spending review Topic 2]]+Dataset[[#This Row],[2024/25 From - Spending review Topic 3]]+Dataset[[#This Row],[2024/25 From - Spending review Topic 4]]+Dataset[[#This Row],[2024/25 From - Other reallocations]]","v":0},{"$f":"Dataset[[#This Row],[2025/26 From - Spending review Topic 1]]+Dataset[[#This Row],[2025/26 From - Spending review Topic 2]]+Dataset[[#This Row],[2025/26 From - Spending review Topic 3]]+Dataset[[#This Row],[2025/26 From - Spending review Topic 4]]+Dataset[[#This Row],[2025/26 From - Other reallocations]]","v":0},{"$f":"Dataset[[#This Row],[2026/27 From - Spending review Topic 1]]+Dataset[[#This Row],[2026/27 From - Spending review Topic 2]]+Dataset[[#This Row],[2026/27 From - Spending review Topic 3]]+Dataset[[#This Row],[2026/27 From - Spending review Topic 4]]+Dataset[[#This Row],[2026/27 From - Other reallocations]]","v":0},{"$f":"Dataset[[#This Row],[2024/25 To - Spending review Topic 1]]+Dataset[[#This Row],[2024/25 To - Spending review Topic 2]]+Dataset[[#This Row],[2024/25 To - Spending review Topic 3]]+Dataset[[#This Row],[2024/25 To - Spending review Topic 4]]+Dataset[[#This Row],[2024/25 To - Other reallocations]]","v":0},{"$f":"Dataset[[#This Row],[2025/26 To - Spending review Topic 1]]+Dataset[[#This Row],[2025/26 To - Spending review Topic 2]]+Dataset[[#This Row],[2025/26 To - Spending review Topic 3]]+Dataset[[#This Row],[2025/26 To - Spending review Topic 4]]+Dataset[[#This Row],[2025/26 To - Other reallocations]]","v":0},{"$f":"Dataset[[#This Row],[2026/27 To - Spending review Topic 1]]+Dataset[[#This Row],[2026/27 To - Spending review Topic 2]]+Dataset[[#This Row],[2026/27 To - Spending review Topic 3]]+Dataset[[#This Row],[2026/27 To - Spending review Topic 4]]+Dataset[[#This Row],[2026/27 To - Other reallocations]]","v":0},{"$f":"Dataset[[#This Row],[2024/25 Reduction]]+Dataset[[#This Row],[2024/25 From - Total]]","v":0},{"$f":"Dataset[[#This Row],[2025/26 Reduction]]+Dataset[[#This Row],[2025/26 From - Total]]","v":0},{"$f":"Dataset[[#This Row],[2026/27 Reduction]]+Dataset[[#This Row],[2026/27 From - Total]]","v":0},{"$f":"Dataset[[#This Row],[2023/24 Reduction]]","v":0},{"$f":"SUM(Dataset[[#This Row],[2024/25 Reduction]],Dataset[[#This Row],[2024/25 From - Total]],Dataset[[#This Row],[2024/25 To - Total]])","v":0},{"$f":"SUM(Dataset[[#This Row],[2025/26 Reduction]],Dataset[[#This Row],[2025/26 From - Total]],Dataset[[#This Row],[2025/26 To - Total]])","v":0},{"$f":"SUM(Dataset[[#This Row],[2026/27 Reduction]],Dataset[[#This Row],[2026/27 From - Total]],Dataset[[#This Row],[2026/27 To - Total]])","v":0},{"$f":"Dataset[[#This Row],[2023/24 Baseline]]+Dataset[[#This Row],[2023/24 Total change]]","v":396},{"$f":"Dataset[[#This Row],[2024/25 Baseline]]+Dataset[[#This Row],[2024/25 Total change]]","v":850},{"$f":"Dataset[[#This Row],[2025/26 Baseline]]+Dataset[[#This Row],[2025/26 Total change]]","v":930},{"$f":"Dataset[[#This Row],[2026/27 Baseline]]+Dataset[[#This Row],[2026/27 Total change]]","v":973}]
["NAT|Non-transfer item","26|Consumable supplies","2024_25","MTEF2024",26,2,2,44457,570,"26","02","02","044457","000570","26|02|02","01","01","02","31","31","01|01|02|31|31","National","Military Veterans","Socioeconomic Support","Health Care and Wellbeing Support","Non-transfer item","Current","Current payments","Goods and services","Consumable supplies","Consumable supplies","Peace and security","Defence and state security","NAT",3,1,36,63,111,111,0,86,66,69,72,null,null,null,null,null,null,null,null,null,null,null,null,null,null,null,null,null,null,null,null,null,null,null,null,null,null,null,null,null,null,null,null,null,null,{"$f":"Dataset[[#This Row],[2024/25 From - Spending review Topic 1]]+Dataset[[#This Row],[2024/25 From - Spending review Topic 2]]+Dataset[[#This Row],[2024/25 From - Spending review Topic 3]]+Dataset[[#This Row],[2024/25 From - Spending review Topic 4]]+Dataset[[#This Row],[2024/25 From - Other reallocations]]","v":0},{"$f":"Dataset[[#This Row],[2025/26 From - Spending review Topic 1]]+Dataset[[#This Row],[2025/26 From - Spending review Topic 2]]+Dataset[[#This Row],[2025/26 From - Spending review Topic 3]]+Dataset[[#This Row],[2025/26 From - Spending review Topic 4]]+Dataset[[#This Row],[2025/26 From - Other reallocations]]","v":0},{"$f":"Dataset[[#This Row],[2026/27 From - Spending review Topic 1]]+Dataset[[#This Row],[2026/27 From - Spending review Topic 2]]+Dataset[[#This Row],[2026/27 From - Spending review Topic 3]]+Dataset[[#This Row],[2026/27 From - Spending review Topic 4]]+Dataset[[#This Row],[2026/27 From - Other reallocations]]","v":0},{"$f":"Dataset[[#This Row],[2024/25 To - Spending review Topic 1]]+Dataset[[#This Row],[2024/25 To - Spending review Topic 2]]+Dataset[[#This Row],[2024/25 To - Spending review Topic 3]]+Dataset[[#This Row],[2024/25 To - Spending review Topic 4]]+Dataset[[#This Row],[2024/25 To - Other reallocations]]","v":0},{"$f":"Dataset[[#This Row],[2025/26 To - Spending review Topic 1]]+Dataset[[#This Row],[2025/26 To - Spending review Topic 2]]+Dataset[[#This Row],[2025/26 To - Spending review Topic 3]]+Dataset[[#This Row],[2025/26 To - Spending review Topic 4]]+Dataset[[#This Row],[2025/26 To - Other reallocations]]","v":0},{"$f":"Dataset[[#This Row],[2026/27 To - Spending review Topic 1]]+Dataset[[#This Row],[2026/27 To - Spending review Topic 2]]+Dataset[[#This Row],[2026/27 To - Spending review Topic 3]]+Dataset[[#This Row],[2026/27 To - Spending review Topic 4]]+Dataset[[#This Row],[2026/27 To - Other reallocations]]","v":0},{"$f":"Dataset[[#This Row],[2024/25 Reduction]]+Dataset[[#This Row],[2024/25 From - Total]]","v":0},{"$f":"Dataset[[#This Row],[2025/26 Reduction]]+Dataset[[#This Row],[2025/26 From - Total]]","v":0},{"$f":"Dataset[[#This Row],[2026/27 Reduction]]+Dataset[[#This Row],[2026/27 From - Total]]","v":0},{"$f":"Dataset[[#This Row],[2023/24 Reduction]]","v":0},{"$f":"SUM(Dataset[[#This Row],[2024/25 Reduction]],Dataset[[#This Row],[2024/25 From - Total]],Dataset[[#This Row],[2024/25 To - Total]])","v":0},{"$f":"SUM(Dataset[[#This Row],[2025/26 Reduction]],Dataset[[#This Row],[2025/26 From - Total]],Dataset[[#This Row],[2025/26 To - Total]])","v":0},{"$f":"SUM(Dataset[[#This Row],[2026/27 Reduction]],Dataset[[#This Row],[2026/27 From - Total]],Dataset[[#This Row],[2026/27 To - Total]])","v":0},{"$f":"Dataset[[#This Row],[2023/24 Baseline]]+Dataset[[#This Row],[2023/24 Total change]]","v":86},{"$f":"Dataset[[#This Row],[2024/25 Baseline]]+Dataset[[#This Row],[2024/25 Total change]]","v":66},{"$f":"Dataset[[#This Row],[2025/26 Baseline]]+Dataset[[#This Row],[2025/26 Total change]]","v":69},{"$f":"Dataset[[#This Row],[2026/27 Baseline]]+Dataset[[#This Row],[2026/27 Total change]]","v":72}]
["NAT|Non-transfer item","26|Consumables: Stationery, printing and office supplies","2024_25","MTEF2024",26,2,2,44458,571,"26","02","02","044458","000571","26|02|02","01","01","02","32","32","01|01|02|32|32","National","Military Veterans","Socioeconomic Support","Health Care and Wellbeing Support","Non-transfer item","Current","Current payments","Goods and services","Consumables: Stationery, printing and office supplies","Consumables: Stationery, printing and office supplies","Peace and security","Defence and state security","NAT",32,24,30,126,275,275,0,326,132,138,144,null,null,null,null,null,null,null,null,null,null,null,null,null,null,null,null,null,null,null,null,null,null,null,null,null,null,null,null,null,null,null,null,null,null,{"$f":"Dataset[[#This Row],[2024/25 From - Spending review Topic 1]]+Dataset[[#This Row],[2024/25 From - Spending review Topic 2]]+Dataset[[#This Row],[2024/25 From - Spending review Topic 3]]+Dataset[[#This Row],[2024/25 From - Spending review Topic 4]]+Dataset[[#This Row],[2024/25 From - Other reallocations]]","v":0},{"$f":"Dataset[[#This Row],[2025/26 From - Spending review Topic 1]]+Dataset[[#This Row],[2025/26 From - Spending review Topic 2]]+Dataset[[#This Row],[2025/26 From - Spending review Topic 3]]+Dataset[[#This Row],[2025/26 From - Spending review Topic 4]]+Dataset[[#This Row],[2025/26 From - Other reallocations]]","v":0},{"$f":"Dataset[[#This Row],[2026/27 From - Spending review Topic 1]]+Dataset[[#This Row],[2026/27 From - Spending review Topic 2]]+Dataset[[#This Row],[2026/27 From - Spending review Topic 3]]+Dataset[[#This Row],[2026/27 From - Spending review Topic 4]]+Dataset[[#This Row],[2026/27 From - Other reallocations]]","v":0},{"$f":"Dataset[[#This Row],[2024/25 To - Spending review Topic 1]]+Dataset[[#This Row],[2024/25 To - Spending review Topic 2]]+Dataset[[#This Row],[2024/25 To - Spending review Topic 3]]+Dataset[[#This Row],[2024/25 To - Spending review Topic 4]]+Dataset[[#This Row],[2024/25 To - Other reallocations]]","v":0},{"$f":"Dataset[[#This Row],[2025/26 To - Spending review Topic 1]]+Dataset[[#This Row],[2025/26 To - Spending review Topic 2]]+Dataset[[#This Row],[2025/26 To - Spending review Topic 3]]+Dataset[[#This Row],[2025/26 To - Spending review Topic 4]]+Dataset[[#This Row],[2025/26 To - Other reallocations]]","v":0},{"$f":"Dataset[[#This Row],[2026/27 To - Spending review Topic 1]]+Dataset[[#This Row],[2026/27 To - Spending review Topic 2]]+Dataset[[#This Row],[2026/27 To - Spending review Topic 3]]+Dataset[[#This Row],[2026/27 To - Spending review Topic 4]]+Dataset[[#This Row],[2026/27 To - Other reallocations]]","v":0},{"$f":"Dataset[[#This Row],[2024/25 Reduction]]+Dataset[[#This Row],[2024/25 From - Total]]","v":0},{"$f":"Dataset[[#This Row],[2025/26 Reduction]]+Dataset[[#This Row],[2025/26 From - Total]]","v":0},{"$f":"Dataset[[#This Row],[2026/27 Reduction]]+Dataset[[#This Row],[2026/27 From - Total]]","v":0},{"$f":"Dataset[[#This Row],[2023/24 Reduction]]","v":0},{"$f":"SUM(Dataset[[#This Row],[2024/25 Reduction]],Dataset[[#This Row],[2024/25 From - Total]],Dataset[[#This Row],[2024/25 To - Total]])","v":0},{"$f":"SUM(Dataset[[#This Row],[2025/26 Reduction]],Dataset[[#This Row],[2025/26 From - Total]],Dataset[[#This Row],[2025/26 To - Total]])","v":0},{"$f":"SUM(Dataset[[#This Row],[2026/27 Reduction]],Dataset[[#This Row],[2026/27 From - Total]],Dataset[[#This Row],[2026/27 To - Total]])","v":0},{"$f":"Dataset[[#This Row],[2023/24 Baseline]]+Dataset[[#This Row],[2023/24 Total change]]","v":326},{"$f":"Dataset[[#This Row],[2024/25 Baseline]]+Dataset[[#This Row],[2024/25 Total change]]","v":132},{"$f":"Dataset[[#This Row],[2025/26 Baseline]]+Dataset[[#This Row],[2025/26 Total change]]","v":138},{"$f":"Dataset[[#This Row],[2026/27 Baseline]]+Dataset[[#This Row],[2026/27 Total change]]","v":144}]
["NAT|Non-transfer item","26|Operating leases","2024_25","MTEF2024",26,2,2,44459,572,"26","02","02","044459","000572","26|02|02","01","01","02","33","33","01|01|02|33|33","National","Military Veterans","Socioeconomic Support","Health Care and Wellbeing Support","Non-transfer item","Current","Current payments","Goods and services","Operating leases","Operating leases","Peace and security","Defence and state security","NAT",0,0,0,0,0,0,0,0,0,0,0,null,null,null,null,null,null,null,null,null,null,null,null,null,null,null,null,null,null,null,null,null,null,null,null,null,null,null,null,null,null,null,null,null,null,{"$f":"Dataset[[#This Row],[2024/25 From - Spending review Topic 1]]+Dataset[[#This Row],[2024/25 From - Spending review Topic 2]]+Dataset[[#This Row],[2024/25 From - Spending review Topic 3]]+Dataset[[#This Row],[2024/25 From - Spending review Topic 4]]+Dataset[[#This Row],[2024/25 From - Other reallocations]]","v":0},{"$f":"Dataset[[#This Row],[2025/26 From - Spending review Topic 1]]+Dataset[[#This Row],[2025/26 From - Spending review Topic 2]]+Dataset[[#This Row],[2025/26 From - Spending review Topic 3]]+Dataset[[#This Row],[2025/26 From - Spending review Topic 4]]+Dataset[[#This Row],[2025/26 From - Other reallocations]]","v":0},{"$f":"Dataset[[#This Row],[2026/27 From - Spending review Topic 1]]+Dataset[[#This Row],[2026/27 From - Spending review Topic 2]]+Dataset[[#This Row],[2026/27 From - Spending review Topic 3]]+Dataset[[#This Row],[2026/27 From - Spending review Topic 4]]+Dataset[[#This Row],[2026/27 From - Other reallocations]]","v":0},{"$f":"Dataset[[#This Row],[2024/25 To - Spending review Topic 1]]+Dataset[[#This Row],[2024/25 To - Spending review Topic 2]]+Dataset[[#This Row],[2024/25 To - Spending review Topic 3]]+Dataset[[#This Row],[2024/25 To - Spending review Topic 4]]+Dataset[[#This Row],[2024/25 To - Other reallocations]]","v":0},{"$f":"Dataset[[#This Row],[2025/26 To - Spending review Topic 1]]+Dataset[[#This Row],[2025/26 To - Spending review Topic 2]]+Dataset[[#This Row],[2025/26 To - Spending review Topic 3]]+Dataset[[#This Row],[2025/26 To - Spending review Topic 4]]+Dataset[[#This Row],[2025/26 To - Other reallocations]]","v":0},{"$f":"Dataset[[#This Row],[2026/27 To - Spending review Topic 1]]+Dataset[[#This Row],[2026/27 To - Spending review Topic 2]]+Dataset[[#This Row],[2026/27 To - Spending review Topic 3]]+Dataset[[#This Row],[2026/27 To - Spending review Topic 4]]+Dataset[[#This Row],[2026/27 To - Other reallocations]]","v":0},{"$f":"Dataset[[#This Row],[2024/25 Reduction]]+Dataset[[#This Row],[2024/25 From - Total]]","v":0},{"$f":"Dataset[[#This Row],[2025/26 Reduction]]+Dataset[[#This Row],[2025/26 From - Total]]","v":0},{"$f":"Dataset[[#This Row],[2026/27 Reduction]]+Dataset[[#This Row],[2026/27 From - Total]]","v":0},{"$f":"Dataset[[#This Row],[2023/24 Reduction]]","v":0},{"$f":"SUM(Dataset[[#This Row],[2024/25 Reduction]],Dataset[[#This Row],[2024/25 From - Total]],Dataset[[#This Row],[2024/25 To - Total]])","v":0},{"$f":"SUM(Dataset[[#This Row],[2025/26 Reduction]],Dataset[[#This Row],[2025/26 From - Total]],Dataset[[#This Row],[2025/26 To - Total]])","v":0},{"$f":"SUM(Dataset[[#This Row],[2026/27 Reduction]],Dataset[[#This Row],[2026/27 From - Total]],Dataset[[#This Row],[2026/27 To - Total]])","v":0},{"$f":"Dataset[[#This Row],[2023/24 Baseline]]+Dataset[[#This Row],[2023/24 Total change]]","v":0},{"$f":"Dataset[[#This Row],[2024/25 Baseline]]+Dataset[[#This Row],[2024/25 Total change]]","v":0},{"$f":"Dataset[[#This Row],[2025/26 Baseline]]+Dataset[[#This Row],[2025/26 Total change]]","v":0},{"$f":"Dataset[[#This Row],[2026/27 Baseline]]+Dataset[[#This Row],[2026/27 Total change]]","v":0}]
["NAT|Non-transfer item","26|Rental and hiring","2024_25","MTEF2024",26,2,2,44460,573,"26","02","02","044460","000573","26|02|02","01","01","02","34","34","01|01|02|34|34","National","Military Veterans","Socioeconomic Support","Health Care and Wellbeing Support","Non-transfer item","Current","Current payments","Goods and services","Rental and hiring","Rental and hiring","Peace and security","Defence and state security","NAT",0,0,0,0,0,0,0,0,0,0,0,null,null,null,null,null,null,null,null,null,null,null,null,null,null,null,null,null,null,null,null,null,null,null,null,null,null,null,null,null,null,null,null,null,null,{"$f":"Dataset[[#This Row],[2024/25 From - Spending review Topic 1]]+Dataset[[#This Row],[2024/25 From - Spending review Topic 2]]+Dataset[[#This Row],[2024/25 From - Spending review Topic 3]]+Dataset[[#This Row],[2024/25 From - Spending review Topic 4]]+Dataset[[#This Row],[2024/25 From - Other reallocations]]","v":0},{"$f":"Dataset[[#This Row],[2025/26 From - Spending review Topic 1]]+Dataset[[#This Row],[2025/26 From - Spending review Topic 2]]+Dataset[[#This Row],[2025/26 From - Spending review Topic 3]]+Dataset[[#This Row],[2025/26 From - Spending review Topic 4]]+Dataset[[#This Row],[2025/26 From - Other reallocations]]","v":0},{"$f":"Dataset[[#This Row],[2026/27 From - Spending review Topic 1]]+Dataset[[#This Row],[2026/27 From - Spending review Topic 2]]+Dataset[[#This Row],[2026/27 From - Spending review Topic 3]]+Dataset[[#This Row],[2026/27 From - Spending review Topic 4]]+Dataset[[#This Row],[2026/27 From - Other reallocations]]","v":0},{"$f":"Dataset[[#This Row],[2024/25 To - Spending review Topic 1]]+Dataset[[#This Row],[2024/25 To - Spending review Topic 2]]+Dataset[[#This Row],[2024/25 To - Spending review Topic 3]]+Dataset[[#This Row],[2024/25 To - Spending review Topic 4]]+Dataset[[#This Row],[2024/25 To - Other reallocations]]","v":0},{"$f":"Dataset[[#This Row],[2025/26 To - Spending review Topic 1]]+Dataset[[#This Row],[2025/26 To - Spending review Topic 2]]+Dataset[[#This Row],[2025/26 To - Spending review Topic 3]]+Dataset[[#This Row],[2025/26 To - Spending review Topic 4]]+Dataset[[#This Row],[2025/26 To - Other reallocations]]","v":0},{"$f":"Dataset[[#This Row],[2026/27 To - Spending review Topic 1]]+Dataset[[#This Row],[2026/27 To - Spending review Topic 2]]+Dataset[[#This Row],[2026/27 To - Spending review Topic 3]]+Dataset[[#This Row],[2026/27 To - Spending review Topic 4]]+Dataset[[#This Row],[2026/27 To - Other reallocations]]","v":0},{"$f":"Dataset[[#This Row],[2024/25 Reduction]]+Dataset[[#This Row],[2024/25 From - Total]]","v":0},{"$f":"Dataset[[#This Row],[2025/26 Reduction]]+Dataset[[#This Row],[2025/26 From - Total]]","v":0},{"$f":"Dataset[[#This Row],[2026/27 Reduction]]+Dataset[[#This Row],[2026/27 From - Total]]","v":0},{"$f":"Dataset[[#This Row],[2023/24 Reduction]]","v":0},{"$f":"SUM(Dataset[[#This Row],[2024/25 Reduction]],Dataset[[#This Row],[2024/25 From - Total]],Dataset[[#This Row],[2024/25 To - Total]])","v":0},{"$f":"SUM(Dataset[[#This Row],[2025/26 Reduction]],Dataset[[#This Row],[2025/26 From - Total]],Dataset[[#This Row],[2025/26 To - Total]])","v":0},{"$f":"SUM(Dataset[[#This Row],[2026/27 Reduction]],Dataset[[#This Row],[2026/27 From - Total]],Dataset[[#This Row],[2026/27 To - Total]])","v":0},{"$f":"Dataset[[#This Row],[2023/24 Baseline]]+Dataset[[#This Row],[2023/24 Total change]]","v":0},{"$f":"Dataset[[#This Row],[2024/25 Baseline]]+Dataset[[#This Row],[2024/25 Total change]]","v":0},{"$f":"Dataset[[#This Row],[2025/26 Baseline]]+Dataset[[#This Row],[2025/26 Total change]]","v":0},{"$f":"Dataset[[#This Row],[2026/27 Baseline]]+Dataset[[#This Row],[2026/27 Total change]]","v":0}]
["NAT|Non-transfer item","26|Property payments","2024_25","MTEF2024",26,2,2,44461,574,"26","02","02","044461","000574","26|02|02","01","01","02","35","35","01|01|02|35|35","National","Military Veterans","Socioeconomic Support","Health Care and Wellbeing Support","Non-transfer item","Current","Current payments","Goods and services","Property payments","Property payments","Peace and security","Defence and state security","NAT",0,0,0,0,0,0,0,0,0,0,0,null,null,null,null,null,null,null,null,null,null,null,null,null,null,null,null,null,null,null,null,null,null,null,null,null,null,null,null,null,null,null,null,null,null,{"$f":"Dataset[[#This Row],[2024/25 From - Spending review Topic 1]]+Dataset[[#This Row],[2024/25 From - Spending review Topic 2]]+Dataset[[#This Row],[2024/25 From - Spending review Topic 3]]+Dataset[[#This Row],[2024/25 From - Spending review Topic 4]]+Dataset[[#This Row],[2024/25 From - Other reallocations]]","v":0},{"$f":"Dataset[[#This Row],[2025/26 From - Spending review Topic 1]]+Dataset[[#This Row],[2025/26 From - Spending review Topic 2]]+Dataset[[#This Row],[2025/26 From - Spending review Topic 3]]+Dataset[[#This Row],[2025/26 From - Spending review Topic 4]]+Dataset[[#This Row],[2025/26 From - Other reallocations]]","v":0},{"$f":"Dataset[[#This Row],[2026/27 From - Spending review Topic 1]]+Dataset[[#This Row],[2026/27 From - Spending review Topic 2]]+Dataset[[#This Row],[2026/27 From - Spending review Topic 3]]+Dataset[[#This Row],[2026/27 From - Spending review Topic 4]]+Dataset[[#This Row],[2026/27 From - Other reallocations]]","v":0},{"$f":"Dataset[[#This Row],[2024/25 To - Spending review Topic 1]]+Dataset[[#This Row],[2024/25 To - Spending review Topic 2]]+Dataset[[#This Row],[2024/25 To - Spending review Topic 3]]+Dataset[[#This Row],[2024/25 To - Spending review Topic 4]]+Dataset[[#This Row],[2024/25 To - Other reallocations]]","v":0},{"$f":"Dataset[[#This Row],[2025/26 To - Spending review Topic 1]]+Dataset[[#This Row],[2025/26 To - Spending review Topic 2]]+Dataset[[#This Row],[2025/26 To - Spending review Topic 3]]+Dataset[[#This Row],[2025/26 To - Spending review Topic 4]]+Dataset[[#This Row],[2025/26 To - Other reallocations]]","v":0},{"$f":"Dataset[[#This Row],[2026/27 To - Spending review Topic 1]]+Dataset[[#This Row],[2026/27 To - Spending review Topic 2]]+Dataset[[#This Row],[2026/27 To - Spending review Topic 3]]+Dataset[[#This Row],[2026/27 To - Spending review Topic 4]]+Dataset[[#This Row],[2026/27 To - Other reallocations]]","v":0},{"$f":"Dataset[[#This Row],[2024/25 Reduction]]+Dataset[[#This Row],[2024/25 From - Total]]","v":0},{"$f":"Dataset[[#This Row],[2025/26 Reduction]]+Dataset[[#This Row],[2025/26 From - Total]]","v":0},{"$f":"Dataset[[#This Row],[2026/27 Reduction]]+Dataset[[#This Row],[2026/27 From - Total]]","v":0},{"$f":"Dataset[[#This Row],[2023/24 Reduction]]","v":0},{"$f":"SUM(Dataset[[#This Row],[2024/25 Reduction]],Dataset[[#This Row],[2024/25 From - Total]],Dataset[[#This Row],[2024/25 To - Total]])","v":0},{"$f":"SUM(Dataset[[#This Row],[2025/26 Reduction]],Dataset[[#This Row],[2025/26 From - Total]],Dataset[[#This Row],[2025/26 To - Total]])","v":0},{"$f":"SUM(Dataset[[#This Row],[2026/27 Reduction]],Dataset[[#This Row],[2026/27 From - Total]],Dataset[[#This Row],[2026/27 To - Total]])","v":0},{"$f":"Dataset[[#This Row],[2023/24 Baseline]]+Dataset[[#This Row],[2023/24 Total change]]","v":0},{"$f":"Dataset[[#This Row],[2024/25 Baseline]]+Dataset[[#This Row],[2024/25 Total change]]","v":0},{"$f":"Dataset[[#This Row],[2025/26 Baseline]]+Dataset[[#This Row],[2025/26 Total change]]","v":0},{"$f":"Dataset[[#This Row],[2026/27 Baseline]]+Dataset[[#This Row],[2026/27 Total change]]","v":0}]
["NAT|Non-transfer item","26|Transport provided: Departmental activity","2024_25","MTEF2024",26,2,2,44462,575,"26","02","02","044462","000575","26|02|02","01","01","02","36","36","01|01|02|36|36","National","Military Veterans","Socioeconomic Support","Health Care and Wellbeing Support","Non-transfer item","Current","Current payments","Goods and services","Transport provided: Departmental activity","Transport provided: Departmental activity","Peace and security","Defence and state security","NAT",0,0,0,0,20,20,0,0,0,0,0,null,null,null,null,null,null,null,null,null,null,null,null,null,null,null,null,null,null,null,null,null,null,null,null,null,null,null,null,null,null,null,null,null,null,{"$f":"Dataset[[#This Row],[2024/25 From - Spending review Topic 1]]+Dataset[[#This Row],[2024/25 From - Spending review Topic 2]]+Dataset[[#This Row],[2024/25 From - Spending review Topic 3]]+Dataset[[#This Row],[2024/25 From - Spending review Topic 4]]+Dataset[[#This Row],[2024/25 From - Other reallocations]]","v":0},{"$f":"Dataset[[#This Row],[2025/26 From - Spending review Topic 1]]+Dataset[[#This Row],[2025/26 From - Spending review Topic 2]]+Dataset[[#This Row],[2025/26 From - Spending review Topic 3]]+Dataset[[#This Row],[2025/26 From - Spending review Topic 4]]+Dataset[[#This Row],[2025/26 From - Other reallocations]]","v":0},{"$f":"Dataset[[#This Row],[2026/27 From - Spending review Topic 1]]+Dataset[[#This Row],[2026/27 From - Spending review Topic 2]]+Dataset[[#This Row],[2026/27 From - Spending review Topic 3]]+Dataset[[#This Row],[2026/27 From - Spending review Topic 4]]+Dataset[[#This Row],[2026/27 From - Other reallocations]]","v":0},{"$f":"Dataset[[#This Row],[2024/25 To - Spending review Topic 1]]+Dataset[[#This Row],[2024/25 To - Spending review Topic 2]]+Dataset[[#This Row],[2024/25 To - Spending review Topic 3]]+Dataset[[#This Row],[2024/25 To - Spending review Topic 4]]+Dataset[[#This Row],[2024/25 To - Other reallocations]]","v":0},{"$f":"Dataset[[#This Row],[2025/26 To - Spending review Topic 1]]+Dataset[[#This Row],[2025/26 To - Spending review Topic 2]]+Dataset[[#This Row],[2025/26 To - Spending review Topic 3]]+Dataset[[#This Row],[2025/26 To - Spending review Topic 4]]+Dataset[[#This Row],[2025/26 To - Other reallocations]]","v":0},{"$f":"Dataset[[#This Row],[2026/27 To - Spending review Topic 1]]+Dataset[[#This Row],[2026/27 To - Spending review Topic 2]]+Dataset[[#This Row],[2026/27 To - Spending review Topic 3]]+Dataset[[#This Row],[2026/27 To - Spending review Topic 4]]+Dataset[[#This Row],[2026/27 To - Other reallocations]]","v":0},{"$f":"Dataset[[#This Row],[2024/25 Reduction]]+Dataset[[#This Row],[2024/25 From - Total]]","v":0},{"$f":"Dataset[[#This Row],[2025/26 Reduction]]+Dataset[[#This Row],[2025/26 From - Total]]","v":0},{"$f":"Dataset[[#This Row],[2026/27 Reduction]]+Dataset[[#This Row],[2026/27 From - Total]]","v":0},{"$f":"Dataset[[#This Row],[2023/24 Reduction]]","v":0},{"$f":"SUM(Dataset[[#This Row],[2024/25 Reduction]],Dataset[[#This Row],[2024/25 From - Total]],Dataset[[#This Row],[2024/25 To - Total]])","v":0},{"$f":"SUM(Dataset[[#This Row],[2025/26 Reduction]],Dataset[[#This Row],[2025/26 From - Total]],Dataset[[#This Row],[2025/26 To - Total]])","v":0},{"$f":"SUM(Dataset[[#This Row],[2026/27 Reduction]],Dataset[[#This Row],[2026/27 From - Total]],Dataset[[#This Row],[2026/27 To - Total]])","v":0},{"$f":"Dataset[[#This Row],[2023/24 Baseline]]+Dataset[[#This Row],[2023/24 Total change]]","v":0},{"$f":"Dataset[[#This Row],[2024/25 Baseline]]+Dataset[[#This Row],[2024/25 Total change]]","v":0},{"$f":"Dataset[[#This Row],[2025/26 Baseline]]+Dataset[[#This Row],[2025/26 Total change]]","v":0},{"$f":"Dataset[[#This Row],[2026/27 Baseline]]+Dataset[[#This Row],[2026/27 Total change]]","v":0}]
["NAT|Non-transfer item","26|Travel and subsistence","2024_25","MTEF2024",26,2,2,44463,576,"26","02","02","044463","000576","26|02|02","01","01","02","37","37","01|01|02|37|37","National","Military Veterans","Socioeconomic Support","Health Care and Wellbeing Support","Non-transfer item","Current","Current payments","Goods and services","Travel and subsistence","Travel and subsistence","Peace and security","Defence and state security","NAT",1917,744,1081,1328,1428,1428,0,1333,1393,1455,1522,null,null,null,null,null,null,null,null,null,null,null,null,null,null,null,null,null,null,null,null,null,null,null,null,null,null,null,null,null,null,null,null,null,null,{"$f":"Dataset[[#This Row],[2024/25 From - Spending review Topic 1]]+Dataset[[#This Row],[2024/25 From - Spending review Topic 2]]+Dataset[[#This Row],[2024/25 From - Spending review Topic 3]]+Dataset[[#This Row],[2024/25 From - Spending review Topic 4]]+Dataset[[#This Row],[2024/25 From - Other reallocations]]","v":0},{"$f":"Dataset[[#This Row],[2025/26 From - Spending review Topic 1]]+Dataset[[#This Row],[2025/26 From - Spending review Topic 2]]+Dataset[[#This Row],[2025/26 From - Spending review Topic 3]]+Dataset[[#This Row],[2025/26 From - Spending review Topic 4]]+Dataset[[#This Row],[2025/26 From - Other reallocations]]","v":0},{"$f":"Dataset[[#This Row],[2026/27 From - Spending review Topic 1]]+Dataset[[#This Row],[2026/27 From - Spending review Topic 2]]+Dataset[[#This Row],[2026/27 From - Spending review Topic 3]]+Dataset[[#This Row],[2026/27 From - Spending review Topic 4]]+Dataset[[#This Row],[2026/27 From - Other reallocations]]","v":0},{"$f":"Dataset[[#This Row],[2024/25 To - Spending review Topic 1]]+Dataset[[#This Row],[2024/25 To - Spending review Topic 2]]+Dataset[[#This Row],[2024/25 To - Spending review Topic 3]]+Dataset[[#This Row],[2024/25 To - Spending review Topic 4]]+Dataset[[#This Row],[2024/25 To - Other reallocations]]","v":0},{"$f":"Dataset[[#This Row],[2025/26 To - Spending review Topic 1]]+Dataset[[#This Row],[2025/26 To - Spending review Topic 2]]+Dataset[[#This Row],[2025/26 To - Spending review Topic 3]]+Dataset[[#This Row],[2025/26 To - Spending review Topic 4]]+Dataset[[#This Row],[2025/26 To - Other reallocations]]","v":0},{"$f":"Dataset[[#This Row],[2026/27 To - Spending review Topic 1]]+Dataset[[#This Row],[2026/27 To - Spending review Topic 2]]+Dataset[[#This Row],[2026/27 To - Spending review Topic 3]]+Dataset[[#This Row],[2026/27 To - Spending review Topic 4]]+Dataset[[#This Row],[2026/27 To - Other reallocations]]","v":0},{"$f":"Dataset[[#This Row],[2024/25 Reduction]]+Dataset[[#This Row],[2024/25 From - Total]]","v":0},{"$f":"Dataset[[#This Row],[2025/26 Reduction]]+Dataset[[#This Row],[2025/26 From - Total]]","v":0},{"$f":"Dataset[[#This Row],[2026/27 Reduction]]+Dataset[[#This Row],[2026/27 From - Total]]","v":0},{"$f":"Dataset[[#This Row],[2023/24 Reduction]]","v":0},{"$f":"SUM(Dataset[[#This Row],[2024/25 Reduction]],Dataset[[#This Row],[2024/25 From - Total]],Dataset[[#This Row],[2024/25 To - Total]])","v":0},{"$f":"SUM(Dataset[[#This Row],[2025/26 Reduction]],Dataset[[#This Row],[2025/26 From - Total]],Dataset[[#This Row],[2025/26 To - Total]])","v":0},{"$f":"SUM(Dataset[[#This Row],[2026/27 Reduction]],Dataset[[#This Row],[2026/27 From - Total]],Dataset[[#This Row],[2026/27 To - Total]])","v":0},{"$f":"Dataset[[#This Row],[2023/24 Baseline]]+Dataset[[#This Row],[2023/24 Total change]]","v":1333},{"$f":"Dataset[[#This Row],[2024/25 Baseline]]+Dataset[[#This Row],[2024/25 Total change]]","v":1393},{"$f":"Dataset[[#This Row],[2025/26 Baseline]]+Dataset[[#This Row],[2025/26 Total change]]","v":1455},{"$f":"Dataset[[#This Row],[2026/27 Baseline]]+Dataset[[#This Row],[2026/27 Total change]]","v":1522}]
["NAT|Non-transfer item","26|Training and development","2024_25","MTEF2024",26,2,2,44464,577,"26","02","02","044464","000577","26|02|02","01","01","02","38","38","01|01|02|38|38","National","Military Veterans","Socioeconomic Support","Health Care and Wellbeing Support","Non-transfer item","Current","Current payments","Goods and services","Training and development","Training and development","Peace and security","Defence and state security","NAT",0,0,0,0,0,0,0,0,0,0,0,null,null,null,null,null,null,null,null,null,null,null,null,null,null,null,null,null,null,null,null,null,null,null,null,null,null,null,null,null,null,null,null,null,null,{"$f":"Dataset[[#This Row],[2024/25 From - Spending review Topic 1]]+Dataset[[#This Row],[2024/25 From - Spending review Topic 2]]+Dataset[[#This Row],[2024/25 From - Spending review Topic 3]]+Dataset[[#This Row],[2024/25 From - Spending review Topic 4]]+Dataset[[#This Row],[2024/25 From - Other reallocations]]","v":0},{"$f":"Dataset[[#This Row],[2025/26 From - Spending review Topic 1]]+Dataset[[#This Row],[2025/26 From - Spending review Topic 2]]+Dataset[[#This Row],[2025/26 From - Spending review Topic 3]]+Dataset[[#This Row],[2025/26 From - Spending review Topic 4]]+Dataset[[#This Row],[2025/26 From - Other reallocations]]","v":0},{"$f":"Dataset[[#This Row],[2026/27 From - Spending review Topic 1]]+Dataset[[#This Row],[2026/27 From - Spending review Topic 2]]+Dataset[[#This Row],[2026/27 From - Spending review Topic 3]]+Dataset[[#This Row],[2026/27 From - Spending review Topic 4]]+Dataset[[#This Row],[2026/27 From - Other reallocations]]","v":0},{"$f":"Dataset[[#This Row],[2024/25 To - Spending review Topic 1]]+Dataset[[#This Row],[2024/25 To - Spending review Topic 2]]+Dataset[[#This Row],[2024/25 To - Spending review Topic 3]]+Dataset[[#This Row],[2024/25 To - Spending review Topic 4]]+Dataset[[#This Row],[2024/25 To - Other reallocations]]","v":0},{"$f":"Dataset[[#This Row],[2025/26 To - Spending review Topic 1]]+Dataset[[#This Row],[2025/26 To - Spending review Topic 2]]+Dataset[[#This Row],[2025/26 To - Spending review Topic 3]]+Dataset[[#This Row],[2025/26 To - Spending review Topic 4]]+Dataset[[#This Row],[2025/26 To - Other reallocations]]","v":0},{"$f":"Dataset[[#This Row],[2026/27 To - Spending review Topic 1]]+Dataset[[#This Row],[2026/27 To - Spending review Topic 2]]+Dataset[[#This Row],[2026/27 To - Spending review Topic 3]]+Dataset[[#This Row],[2026/27 To - Spending review Topic 4]]+Dataset[[#This Row],[2026/27 To - Other reallocations]]","v":0},{"$f":"Dataset[[#This Row],[2024/25 Reduction]]+Dataset[[#This Row],[2024/25 From - Total]]","v":0},{"$f":"Dataset[[#This Row],[2025/26 Reduction]]+Dataset[[#This Row],[2025/26 From - Total]]","v":0},{"$f":"Dataset[[#This Row],[2026/27 Reduction]]+Dataset[[#This Row],[2026/27 From - Total]]","v":0},{"$f":"Dataset[[#This Row],[2023/24 Reduction]]","v":0},{"$f":"SUM(Dataset[[#This Row],[2024/25 Reduction]],Dataset[[#This Row],[2024/25 From - Total]],Dataset[[#This Row],[2024/25 To - Total]])","v":0},{"$f":"SUM(Dataset[[#This Row],[2025/26 Reduction]],Dataset[[#This Row],[2025/26 From - Total]],Dataset[[#This Row],[2025/26 To - Total]])","v":0},{"$f":"SUM(Dataset[[#This Row],[2026/27 Reduction]],Dataset[[#This Row],[2026/27 From - Total]],Dataset[[#This Row],[2026/27 To - Total]])","v":0},{"$f":"Dataset[[#This Row],[2023/24 Baseline]]+Dataset[[#This Row],[2023/24 Total change]]","v":0},{"$f":"Dataset[[#This Row],[2024/25 Baseline]]+Dataset[[#This Row],[2024/25 Total change]]","v":0},{"$f":"Dataset[[#This Row],[2025/26 Baseline]]+Dataset[[#This Row],[2025/26 Total change]]","v":0},{"$f":"Dataset[[#This Row],[2026/27 Baseline]]+Dataset[[#This Row],[2026/27 Total change]]","v":0}]
["NAT|Non-transfer item","26|Operating payments","2024_25","MTEF2024",26,2,2,44465,578,"26","02","02","044465","000578","26|02|02","01","01","02","39","39","01|01|02|39|39","National","Military Veterans","Socioeconomic Support","Health Care and Wellbeing Support","Non-transfer item","Current","Current payments","Goods and services","Operating payments","Operating payments","Peace and security","Defence and state security","NAT",0,0,0,19,2,2,0,19,20,21,22,null,null,null,null,null,null,null,null,null,null,null,null,null,null,null,null,null,null,null,null,null,null,null,null,null,null,null,null,null,null,null,null,null,null,{"$f":"Dataset[[#This Row],[2024/25 From - Spending review Topic 1]]+Dataset[[#This Row],[2024/25 From - Spending review Topic 2]]+Dataset[[#This Row],[2024/25 From - Spending review Topic 3]]+Dataset[[#This Row],[2024/25 From - Spending review Topic 4]]+Dataset[[#This Row],[2024/25 From - Other reallocations]]","v":0},{"$f":"Dataset[[#This Row],[2025/26 From - Spending review Topic 1]]+Dataset[[#This Row],[2025/26 From - Spending review Topic 2]]+Dataset[[#This Row],[2025/26 From - Spending review Topic 3]]+Dataset[[#This Row],[2025/26 From - Spending review Topic 4]]+Dataset[[#This Row],[2025/26 From - Other reallocations]]","v":0},{"$f":"Dataset[[#This Row],[2026/27 From - Spending review Topic 1]]+Dataset[[#This Row],[2026/27 From - Spending review Topic 2]]+Dataset[[#This Row],[2026/27 From - Spending review Topic 3]]+Dataset[[#This Row],[2026/27 From - Spending review Topic 4]]+Dataset[[#This Row],[2026/27 From - Other reallocations]]","v":0},{"$f":"Dataset[[#This Row],[2024/25 To - Spending review Topic 1]]+Dataset[[#This Row],[2024/25 To - Spending review Topic 2]]+Dataset[[#This Row],[2024/25 To - Spending review Topic 3]]+Dataset[[#This Row],[2024/25 To - Spending review Topic 4]]+Dataset[[#This Row],[2024/25 To - Other reallocations]]","v":0},{"$f":"Dataset[[#This Row],[2025/26 To - Spending review Topic 1]]+Dataset[[#This Row],[2025/26 To - Spending review Topic 2]]+Dataset[[#This Row],[2025/26 To - Spending review Topic 3]]+Dataset[[#This Row],[2025/26 To - Spending review Topic 4]]+Dataset[[#This Row],[2025/26 To - Other reallocations]]","v":0},{"$f":"Dataset[[#This Row],[2026/27 To - Spending review Topic 1]]+Dataset[[#This Row],[2026/27 To - Spending review Topic 2]]+Dataset[[#This Row],[2026/27 To - Spending review Topic 3]]+Dataset[[#This Row],[2026/27 To - Spending review Topic 4]]+Dataset[[#This Row],[2026/27 To - Other reallocations]]","v":0},{"$f":"Dataset[[#This Row],[2024/25 Reduction]]+Dataset[[#This Row],[2024/25 From - Total]]","v":0},{"$f":"Dataset[[#This Row],[2025/26 Reduction]]+Dataset[[#This Row],[2025/26 From - Total]]","v":0},{"$f":"Dataset[[#This Row],[2026/27 Reduction]]+Dataset[[#This Row],[2026/27 From - Total]]","v":0},{"$f":"Dataset[[#This Row],[2023/24 Reduction]]","v":0},{"$f":"SUM(Dataset[[#This Row],[2024/25 Reduction]],Dataset[[#This Row],[2024/25 From - Total]],Dataset[[#This Row],[2024/25 To - Total]])","v":0},{"$f":"SUM(Dataset[[#This Row],[2025/26 Reduction]],Dataset[[#This Row],[2025/26 From - Total]],Dataset[[#This Row],[2025/26 To - Total]])","v":0},{"$f":"SUM(Dataset[[#This Row],[2026/27 Reduction]],Dataset[[#This Row],[2026/27 From - Total]],Dataset[[#This Row],[2026/27 To - Total]])","v":0},{"$f":"Dataset[[#This Row],[2023/24 Baseline]]+Dataset[[#This Row],[2023/24 Total change]]","v":19},{"$f":"Dataset[[#This Row],[2024/25 Baseline]]+Dataset[[#This Row],[2024/25 Total change]]","v":20},{"$f":"Dataset[[#This Row],[2025/26 Baseline]]+Dataset[[#This Row],[2025/26 Total change]]","v":21},{"$f":"Dataset[[#This Row],[2026/27 Baseline]]+Dataset[[#This Row],[2026/27 Total change]]","v":22}]
["NAT|Non-transfer item","26|Venues and facilities","2024_25","MTEF2024",26,2,2,44466,579,"26","02","02","044466","000579","26|02|02","01","01","02","40","40","01|01|02|40|40","National","Military Veterans","Socioeconomic Support","Health Care and Wellbeing Support","Non-transfer item","Current","Current payments","Goods and services","Venues and facilities","Venues and facilities","Peace and security","Defence and state security","NAT",0,0,0,63,61,61,0,40,66,69,72,null,null,null,null,null,null,null,null,null,null,null,null,null,null,null,null,null,null,null,null,null,null,null,null,null,null,null,null,null,null,null,null,null,null,{"$f":"Dataset[[#This Row],[2024/25 From - Spending review Topic 1]]+Dataset[[#This Row],[2024/25 From - Spending review Topic 2]]+Dataset[[#This Row],[2024/25 From - Spending review Topic 3]]+Dataset[[#This Row],[2024/25 From - Spending review Topic 4]]+Dataset[[#This Row],[2024/25 From - Other reallocations]]","v":0},{"$f":"Dataset[[#This Row],[2025/26 From - Spending review Topic 1]]+Dataset[[#This Row],[2025/26 From - Spending review Topic 2]]+Dataset[[#This Row],[2025/26 From - Spending review Topic 3]]+Dataset[[#This Row],[2025/26 From - Spending review Topic 4]]+Dataset[[#This Row],[2025/26 From - Other reallocations]]","v":0},{"$f":"Dataset[[#This Row],[2026/27 From - Spending review Topic 1]]+Dataset[[#This Row],[2026/27 From - Spending review Topic 2]]+Dataset[[#This Row],[2026/27 From - Spending review Topic 3]]+Dataset[[#This Row],[2026/27 From - Spending review Topic 4]]+Dataset[[#This Row],[2026/27 From - Other reallocations]]","v":0},{"$f":"Dataset[[#This Row],[2024/25 To - Spending review Topic 1]]+Dataset[[#This Row],[2024/25 To - Spending review Topic 2]]+Dataset[[#This Row],[2024/25 To - Spending review Topic 3]]+Dataset[[#This Row],[2024/25 To - Spending review Topic 4]]+Dataset[[#This Row],[2024/25 To - Other reallocations]]","v":0},{"$f":"Dataset[[#This Row],[2025/26 To - Spending review Topic 1]]+Dataset[[#This Row],[2025/26 To - Spending review Topic 2]]+Dataset[[#This Row],[2025/26 To - Spending review Topic 3]]+Dataset[[#This Row],[2025/26 To - Spending review Topic 4]]+Dataset[[#This Row],[2025/26 To - Other reallocations]]","v":0},{"$f":"Dataset[[#This Row],[2026/27 To - Spending review Topic 1]]+Dataset[[#This Row],[2026/27 To - Spending review Topic 2]]+Dataset[[#This Row],[2026/27 To - Spending review Topic 3]]+Dataset[[#This Row],[2026/27 To - Spending review Topic 4]]+Dataset[[#This Row],[2026/27 To - Other reallocations]]","v":0},{"$f":"Dataset[[#This Row],[2024/25 Reduction]]+Dataset[[#This Row],[2024/25 From - Total]]","v":0},{"$f":"Dataset[[#This Row],[2025/26 Reduction]]+Dataset[[#This Row],[2025/26 From - Total]]","v":0},{"$f":"Dataset[[#This Row],[2026/27 Reduction]]+Dataset[[#This Row],[2026/27 From - Total]]","v":0},{"$f":"Dataset[[#This Row],[2023/24 Reduction]]","v":0},{"$f":"SUM(Dataset[[#This Row],[2024/25 Reduction]],Dataset[[#This Row],[2024/25 From - Total]],Dataset[[#This Row],[2024/25 To - Total]])","v":0},{"$f":"SUM(Dataset[[#This Row],[2025/26 Reduction]],Dataset[[#This Row],[2025/26 From - Total]],Dataset[[#This Row],[2025/26 To - Total]])","v":0},{"$f":"SUM(Dataset[[#This Row],[2026/27 Reduction]],Dataset[[#This Row],[2026/27 From - Total]],Dataset[[#This Row],[2026/27 To - Total]])","v":0},{"$f":"Dataset[[#This Row],[2023/24 Baseline]]+Dataset[[#This Row],[2023/24 Total change]]","v":40},{"$f":"Dataset[[#This Row],[2024/25 Baseline]]+Dataset[[#This Row],[2024/25 Total change]]","v":66},{"$f":"Dataset[[#This Row],[2025/26 Baseline]]+Dataset[[#This Row],[2025/26 Total change]]","v":69},{"$f":"Dataset[[#This Row],[2026/27 Baseline]]+Dataset[[#This Row],[2026/27 Total change]]","v":72}]
["NAT|Non-transfer item","26|Interest (Incl. interest on unitary payments (PPP))","2024_25","MTEF2024",26,2,2,44467,580,"26","02","02","044467","000580","26|02|02","01","01","03","41","41","01|01|03|41|41","National","Military Veterans","Socioeconomic Support","Health Care and Wellbeing Support","Non-transfer item","Current","Current payments","Interest and rent on land","Interest (Incl. interest on unitary payments (PPP))","Interest (Incl. interest on unitary payments (PPP))","Peace and security","Defence and state security","NAT",0,0,0,0,0,0,0,0,0,0,0,null,null,null,null,null,null,null,null,null,null,null,null,null,null,null,null,null,null,null,null,null,null,null,null,null,null,null,null,null,null,null,null,null,null,{"$f":"Dataset[[#This Row],[2024/25 From - Spending review Topic 1]]+Dataset[[#This Row],[2024/25 From - Spending review Topic 2]]+Dataset[[#This Row],[2024/25 From - Spending review Topic 3]]+Dataset[[#This Row],[2024/25 From - Spending review Topic 4]]+Dataset[[#This Row],[2024/25 From - Other reallocations]]","v":0},{"$f":"Dataset[[#This Row],[2025/26 From - Spending review Topic 1]]+Dataset[[#This Row],[2025/26 From - Spending review Topic 2]]+Dataset[[#This Row],[2025/26 From - Spending review Topic 3]]+Dataset[[#This Row],[2025/26 From - Spending review Topic 4]]+Dataset[[#This Row],[2025/26 From - Other reallocations]]","v":0},{"$f":"Dataset[[#This Row],[2026/27 From - Spending review Topic 1]]+Dataset[[#This Row],[2026/27 From - Spending review Topic 2]]+Dataset[[#This Row],[2026/27 From - Spending review Topic 3]]+Dataset[[#This Row],[2026/27 From - Spending review Topic 4]]+Dataset[[#This Row],[2026/27 From - Other reallocations]]","v":0},{"$f":"Dataset[[#This Row],[2024/25 To - Spending review Topic 1]]+Dataset[[#This Row],[2024/25 To - Spending review Topic 2]]+Dataset[[#This Row],[2024/25 To - Spending review Topic 3]]+Dataset[[#This Row],[2024/25 To - Spending review Topic 4]]+Dataset[[#This Row],[2024/25 To - Other reallocations]]","v":0},{"$f":"Dataset[[#This Row],[2025/26 To - Spending review Topic 1]]+Dataset[[#This Row],[2025/26 To - Spending review Topic 2]]+Dataset[[#This Row],[2025/26 To - Spending review Topic 3]]+Dataset[[#This Row],[2025/26 To - Spending review Topic 4]]+Dataset[[#This Row],[2025/26 To - Other reallocations]]","v":0},{"$f":"Dataset[[#This Row],[2026/27 To - Spending review Topic 1]]+Dataset[[#This Row],[2026/27 To - Spending review Topic 2]]+Dataset[[#This Row],[2026/27 To - Spending review Topic 3]]+Dataset[[#This Row],[2026/27 To - Spending review Topic 4]]+Dataset[[#This Row],[2026/27 To - Other reallocations]]","v":0},{"$f":"Dataset[[#This Row],[2024/25 Reduction]]+Dataset[[#This Row],[2024/25 From - Total]]","v":0},{"$f":"Dataset[[#This Row],[2025/26 Reduction]]+Dataset[[#This Row],[2025/26 From - Total]]","v":0},{"$f":"Dataset[[#This Row],[2026/27 Reduction]]+Dataset[[#This Row],[2026/27 From - Total]]","v":0},{"$f":"Dataset[[#This Row],[2023/24 Reduction]]","v":0},{"$f":"SUM(Dataset[[#This Row],[2024/25 Reduction]],Dataset[[#This Row],[2024/25 From - Total]],Dataset[[#This Row],[2024/25 To - Total]])","v":0},{"$f":"SUM(Dataset[[#This Row],[2025/26 Reduction]],Dataset[[#This Row],[2025/26 From - Total]],Dataset[[#This Row],[2025/26 To - Total]])","v":0},{"$f":"SUM(Dataset[[#This Row],[2026/27 Reduction]],Dataset[[#This Row],[2026/27 From - Total]],Dataset[[#This Row],[2026/27 To - Total]])","v":0},{"$f":"Dataset[[#This Row],[2023/24 Baseline]]+Dataset[[#This Row],[2023/24 Total change]]","v":0},{"$f":"Dataset[[#This Row],[2024/25 Baseline]]+Dataset[[#This Row],[2024/25 Total change]]","v":0},{"$f":"Dataset[[#This Row],[2025/26 Baseline]]+Dataset[[#This Row],[2025/26 Total change]]","v":0},{"$f":"Dataset[[#This Row],[2026/27 Baseline]]+Dataset[[#This Row],[2026/27 Total change]]","v":0}]
["NAT|Non-transfer item","26|Rent on land","2024_25","MTEF2024",26,2,2,44468,581,"26","02","02","044468","000581","26|02|02","01","01","03","42","42","01|01|03|42|42","National","Military Veterans","Socioeconomic Support","Health Care and Wellbeing Support","Non-transfer item","Current","Current payments","Interest and rent on land","Rent on land","Rent on land","Peace and security","Defence and state security","NAT",0,0,0,0,0,0,0,0,0,0,0,null,null,null,null,null,null,null,null,null,null,null,null,null,null,null,null,null,null,null,null,null,null,null,null,null,null,null,null,null,null,null,null,null,null,{"$f":"Dataset[[#This Row],[2024/25 From - Spending review Topic 1]]+Dataset[[#This Row],[2024/25 From - Spending review Topic 2]]+Dataset[[#This Row],[2024/25 From - Spending review Topic 3]]+Dataset[[#This Row],[2024/25 From - Spending review Topic 4]]+Dataset[[#This Row],[2024/25 From - Other reallocations]]","v":0},{"$f":"Dataset[[#This Row],[2025/26 From - Spending review Topic 1]]+Dataset[[#This Row],[2025/26 From - Spending review Topic 2]]+Dataset[[#This Row],[2025/26 From - Spending review Topic 3]]+Dataset[[#This Row],[2025/26 From - Spending review Topic 4]]+Dataset[[#This Row],[2025/26 From - Other reallocations]]","v":0},{"$f":"Dataset[[#This Row],[2026/27 From - Spending review Topic 1]]+Dataset[[#This Row],[2026/27 From - Spending review Topic 2]]+Dataset[[#This Row],[2026/27 From - Spending review Topic 3]]+Dataset[[#This Row],[2026/27 From - Spending review Topic 4]]+Dataset[[#This Row],[2026/27 From - Other reallocations]]","v":0},{"$f":"Dataset[[#This Row],[2024/25 To - Spending review Topic 1]]+Dataset[[#This Row],[2024/25 To - Spending review Topic 2]]+Dataset[[#This Row],[2024/25 To - Spending review Topic 3]]+Dataset[[#This Row],[2024/25 To - Spending review Topic 4]]+Dataset[[#This Row],[2024/25 To - Other reallocations]]","v":0},{"$f":"Dataset[[#This Row],[2025/26 To - Spending review Topic 1]]+Dataset[[#This Row],[2025/26 To - Spending review Topic 2]]+Dataset[[#This Row],[2025/26 To - Spending review Topic 3]]+Dataset[[#This Row],[2025/26 To - Spending review Topic 4]]+Dataset[[#This Row],[2025/26 To - Other reallocations]]","v":0},{"$f":"Dataset[[#This Row],[2026/27 To - Spending review Topic 1]]+Dataset[[#This Row],[2026/27 To - Spending review Topic 2]]+Dataset[[#This Row],[2026/27 To - Spending review Topic 3]]+Dataset[[#This Row],[2026/27 To - Spending review Topic 4]]+Dataset[[#This Row],[2026/27 To - Other reallocations]]","v":0},{"$f":"Dataset[[#This Row],[2024/25 Reduction]]+Dataset[[#This Row],[2024/25 From - Total]]","v":0},{"$f":"Dataset[[#This Row],[2025/26 Reduction]]+Dataset[[#This Row],[2025/26 From - Total]]","v":0},{"$f":"Dataset[[#This Row],[2026/27 Reduction]]+Dataset[[#This Row],[2026/27 From - Total]]","v":0},{"$f":"Dataset[[#This Row],[2023/24 Reduction]]","v":0},{"$f":"SUM(Dataset[[#This Row],[2024/25 Reduction]],Dataset[[#This Row],[2024/25 From - Total]],Dataset[[#This Row],[2024/25 To - Total]])","v":0},{"$f":"SUM(Dataset[[#This Row],[2025/26 Reduction]],Dataset[[#This Row],[2025/26 From - Total]],Dataset[[#This Row],[2025/26 To - Total]])","v":0},{"$f":"SUM(Dataset[[#This Row],[2026/27 Reduction]],Dataset[[#This Row],[2026/27 From - Total]],Dataset[[#This Row],[2026/27 To - Total]])","v":0},{"$f":"Dataset[[#This Row],[2023/24 Baseline]]+Dataset[[#This Row],[2023/24 Total change]]","v":0},{"$f":"Dataset[[#This Row],[2024/25 Baseline]]+Dataset[[#This Row],[2024/25 Total change]]","v":0},{"$f":"Dataset[[#This Row],[2025/26 Baseline]]+Dataset[[#This Row],[2025/26 Total change]]","v":0},{"$f":"Dataset[[#This Row],[2026/27 Baseline]]+Dataset[[#This Row],[2026/27 Total change]]","v":0}]
["NAT|Non-transfer item","26|Provincial Revenue Funds","2024_25","MTEF2024",26,2,2,44469,582,"26","02","02","044469","000582","26|02|02","01","02","04","43","43","01|02|04|43|43","National","Military Veterans","Socioeconomic Support","Health Care and Wellbeing Support","Non-transfer item","Current","Transfers and subsidies","Provinces and municipalities","Provinces","Provincial Revenue Funds","Peace and security","Defence and state security","NAT",0,0,0,0,0,0,0,0,0,0,0,null,null,null,null,null,null,null,null,null,null,null,null,null,null,null,null,null,null,null,null,null,null,null,null,null,null,null,null,null,null,null,null,null,null,{"$f":"Dataset[[#This Row],[2024/25 From - Spending review Topic 1]]+Dataset[[#This Row],[2024/25 From - Spending review Topic 2]]+Dataset[[#This Row],[2024/25 From - Spending review Topic 3]]+Dataset[[#This Row],[2024/25 From - Spending review Topic 4]]+Dataset[[#This Row],[2024/25 From - Other reallocations]]","v":0},{"$f":"Dataset[[#This Row],[2025/26 From - Spending review Topic 1]]+Dataset[[#This Row],[2025/26 From - Spending review Topic 2]]+Dataset[[#This Row],[2025/26 From - Spending review Topic 3]]+Dataset[[#This Row],[2025/26 From - Spending review Topic 4]]+Dataset[[#This Row],[2025/26 From - Other reallocations]]","v":0},{"$f":"Dataset[[#This Row],[2026/27 From - Spending review Topic 1]]+Dataset[[#This Row],[2026/27 From - Spending review Topic 2]]+Dataset[[#This Row],[2026/27 From - Spending review Topic 3]]+Dataset[[#This Row],[2026/27 From - Spending review Topic 4]]+Dataset[[#This Row],[2026/27 From - Other reallocations]]","v":0},{"$f":"Dataset[[#This Row],[2024/25 To - Spending review Topic 1]]+Dataset[[#This Row],[2024/25 To - Spending review Topic 2]]+Dataset[[#This Row],[2024/25 To - Spending review Topic 3]]+Dataset[[#This Row],[2024/25 To - Spending review Topic 4]]+Dataset[[#This Row],[2024/25 To - Other reallocations]]","v":0},{"$f":"Dataset[[#This Row],[2025/26 To - Spending review Topic 1]]+Dataset[[#This Row],[2025/26 To - Spending review Topic 2]]+Dataset[[#This Row],[2025/26 To - Spending review Topic 3]]+Dataset[[#This Row],[2025/26 To - Spending review Topic 4]]+Dataset[[#This Row],[2025/26 To - Other reallocations]]","v":0},{"$f":"Dataset[[#This Row],[2026/27 To - Spending review Topic 1]]+Dataset[[#This Row],[2026/27 To - Spending review Topic 2]]+Dataset[[#This Row],[2026/27 To - Spending review Topic 3]]+Dataset[[#This Row],[2026/27 To - Spending review Topic 4]]+Dataset[[#This Row],[2026/27 To - Other reallocations]]","v":0},{"$f":"Dataset[[#This Row],[2024/25 Reduction]]+Dataset[[#This Row],[2024/25 From - Total]]","v":0},{"$f":"Dataset[[#This Row],[2025/26 Reduction]]+Dataset[[#This Row],[2025/26 From - Total]]","v":0},{"$f":"Dataset[[#This Row],[2026/27 Reduction]]+Dataset[[#This Row],[2026/27 From - Total]]","v":0},{"$f":"Dataset[[#This Row],[2023/24 Reduction]]","v":0},{"$f":"SUM(Dataset[[#This Row],[2024/25 Reduction]],Dataset[[#This Row],[2024/25 From - Total]],Dataset[[#This Row],[2024/25 To - Total]])","v":0},{"$f":"SUM(Dataset[[#This Row],[2025/26 Reduction]],Dataset[[#This Row],[2025/26 From - Total]],Dataset[[#This Row],[2025/26 To - Total]])","v":0},{"$f":"SUM(Dataset[[#This Row],[2026/27 Reduction]],Dataset[[#This Row],[2026/27 From - Total]],Dataset[[#This Row],[2026/27 To - Total]])","v":0},{"$f":"Dataset[[#This Row],[2023/24 Baseline]]+Dataset[[#This Row],[2023/24 Total change]]","v":0},{"$f":"Dataset[[#This Row],[2024/25 Baseline]]+Dataset[[#This Row],[2024/25 Total change]]","v":0},{"$f":"Dataset[[#This Row],[2025/26 Baseline]]+Dataset[[#This Row],[2025/26 Total change]]","v":0},{"$f":"Dataset[[#This Row],[2026/27 Baseline]]+Dataset[[#This Row],[2026/27 Total change]]","v":0}]
["NAT|Non-transfer item","26|Provincial agencies and funds","2024_25","MTEF2024",26,2,2,44470,583,"26","02","02","044470","000583","26|02|02","01","02","04","43","44","01|02|04|43|44","National","Military Veterans","Socioeconomic Support","Health Care and Wellbeing Support","Non-transfer item","Current","Transfers and subsidies","Provinces and municipalities","Provinces","Provincial agencies and funds","Peace and security","Defence and state security","NAT",0,0,0,0,0,0,0,0,0,0,0,null,null,null,null,null,null,null,null,null,null,null,null,null,null,null,null,null,null,null,null,null,null,null,null,null,null,null,null,null,null,null,null,null,null,{"$f":"Dataset[[#This Row],[2024/25 From - Spending review Topic 1]]+Dataset[[#This Row],[2024/25 From - Spending review Topic 2]]+Dataset[[#This Row],[2024/25 From - Spending review Topic 3]]+Dataset[[#This Row],[2024/25 From - Spending review Topic 4]]+Dataset[[#This Row],[2024/25 From - Other reallocations]]","v":0},{"$f":"Dataset[[#This Row],[2025/26 From - Spending review Topic 1]]+Dataset[[#This Row],[2025/26 From - Spending review Topic 2]]+Dataset[[#This Row],[2025/26 From - Spending review Topic 3]]+Dataset[[#This Row],[2025/26 From - Spending review Topic 4]]+Dataset[[#This Row],[2025/26 From - Other reallocations]]","v":0},{"$f":"Dataset[[#This Row],[2026/27 From - Spending review Topic 1]]+Dataset[[#This Row],[2026/27 From - Spending review Topic 2]]+Dataset[[#This Row],[2026/27 From - Spending review Topic 3]]+Dataset[[#This Row],[2026/27 From - Spending review Topic 4]]+Dataset[[#This Row],[2026/27 From - Other reallocations]]","v":0},{"$f":"Dataset[[#This Row],[2024/25 To - Spending review Topic 1]]+Dataset[[#This Row],[2024/25 To - Spending review Topic 2]]+Dataset[[#This Row],[2024/25 To - Spending review Topic 3]]+Dataset[[#This Row],[2024/25 To - Spending review Topic 4]]+Dataset[[#This Row],[2024/25 To - Other reallocations]]","v":0},{"$f":"Dataset[[#This Row],[2025/26 To - Spending review Topic 1]]+Dataset[[#This Row],[2025/26 To - Spending review Topic 2]]+Dataset[[#This Row],[2025/26 To - Spending review Topic 3]]+Dataset[[#This Row],[2025/26 To - Spending review Topic 4]]+Dataset[[#This Row],[2025/26 To - Other reallocations]]","v":0},{"$f":"Dataset[[#This Row],[2026/27 To - Spending review Topic 1]]+Dataset[[#This Row],[2026/27 To - Spending review Topic 2]]+Dataset[[#This Row],[2026/27 To - Spending review Topic 3]]+Dataset[[#This Row],[2026/27 To - Spending review Topic 4]]+Dataset[[#This Row],[2026/27 To - Other reallocations]]","v":0},{"$f":"Dataset[[#This Row],[2024/25 Reduction]]+Dataset[[#This Row],[2024/25 From - Total]]","v":0},{"$f":"Dataset[[#This Row],[2025/26 Reduction]]+Dataset[[#This Row],[2025/26 From - Total]]","v":0},{"$f":"Dataset[[#This Row],[2026/27 Reduction]]+Dataset[[#This Row],[2026/27 From - Total]]","v":0},{"$f":"Dataset[[#This Row],[2023/24 Reduction]]","v":0},{"$f":"SUM(Dataset[[#This Row],[2024/25 Reduction]],Dataset[[#This Row],[2024/25 From - Total]],Dataset[[#This Row],[2024/25 To - Total]])","v":0},{"$f":"SUM(Dataset[[#This Row],[2025/26 Reduction]],Dataset[[#This Row],[2025/26 From - Total]],Dataset[[#This Row],[2025/26 To - Total]])","v":0},{"$f":"SUM(Dataset[[#This Row],[2026/27 Reduction]],Dataset[[#This Row],[2026/27 From - Total]],Dataset[[#This Row],[2026/27 To - Total]])","v":0},{"$f":"Dataset[[#This Row],[2023/24 Baseline]]+Dataset[[#This Row],[2023/24 Total change]]","v":0},{"$f":"Dataset[[#This Row],[2024/25 Baseline]]+Dataset[[#This Row],[2024/25 Total change]]","v":0},{"$f":"Dataset[[#This Row],[2025/26 Baseline]]+Dataset[[#This Row],[2025/26 Total change]]","v":0},{"$f":"Dataset[[#This Row],[2026/27 Baseline]]+Dataset[[#This Row],[2026/27 Total change]]","v":0}]
["NAT|Non-transfer item","26|Municipal bank accounts","2024_25","MTEF2024",26,2,2,44471,584,"26","02","02","044471","000584","26|02|02","01","02","04","44","45","01|02|04|44|45","National","Military Veterans","Socioeconomic Support","Health Care and Wellbeing Support","Non-transfer item","Current","Transfers and subsidies","Provinces and municipalities","Municipalities","Municipal bank accounts","Peace and security","Defence and state security","NAT",0,0,0,0,0,0,0,0,0,0,0,null,null,null,null,null,null,null,null,null,null,null,null,null,null,null,null,null,null,null,null,null,null,null,null,null,null,null,null,null,null,null,null,null,null,{"$f":"Dataset[[#This Row],[2024/25 From - Spending review Topic 1]]+Dataset[[#This Row],[2024/25 From - Spending review Topic 2]]+Dataset[[#This Row],[2024/25 From - Spending review Topic 3]]+Dataset[[#This Row],[2024/25 From - Spending review Topic 4]]+Dataset[[#This Row],[2024/25 From - Other reallocations]]","v":0},{"$f":"Dataset[[#This Row],[2025/26 From - Spending review Topic 1]]+Dataset[[#This Row],[2025/26 From - Spending review Topic 2]]+Dataset[[#This Row],[2025/26 From - Spending review Topic 3]]+Dataset[[#This Row],[2025/26 From - Spending review Topic 4]]+Dataset[[#This Row],[2025/26 From - Other reallocations]]","v":0},{"$f":"Dataset[[#This Row],[2026/27 From - Spending review Topic 1]]+Dataset[[#This Row],[2026/27 From - Spending review Topic 2]]+Dataset[[#This Row],[2026/27 From - Spending review Topic 3]]+Dataset[[#This Row],[2026/27 From - Spending review Topic 4]]+Dataset[[#This Row],[2026/27 From - Other reallocations]]","v":0},{"$f":"Dataset[[#This Row],[2024/25 To - Spending review Topic 1]]+Dataset[[#This Row],[2024/25 To - Spending review Topic 2]]+Dataset[[#This Row],[2024/25 To - Spending review Topic 3]]+Dataset[[#This Row],[2024/25 To - Spending review Topic 4]]+Dataset[[#This Row],[2024/25 To - Other reallocations]]","v":0},{"$f":"Dataset[[#This Row],[2025/26 To - Spending review Topic 1]]+Dataset[[#This Row],[2025/26 To - Spending review Topic 2]]+Dataset[[#This Row],[2025/26 To - Spending review Topic 3]]+Dataset[[#This Row],[2025/26 To - Spending review Topic 4]]+Dataset[[#This Row],[2025/26 To - Other reallocations]]","v":0},{"$f":"Dataset[[#This Row],[2026/27 To - Spending review Topic 1]]+Dataset[[#This Row],[2026/27 To - Spending review Topic 2]]+Dataset[[#This Row],[2026/27 To - Spending review Topic 3]]+Dataset[[#This Row],[2026/27 To - Spending review Topic 4]]+Dataset[[#This Row],[2026/27 To - Other reallocations]]","v":0},{"$f":"Dataset[[#This Row],[2024/25 Reduction]]+Dataset[[#This Row],[2024/25 From - Total]]","v":0},{"$f":"Dataset[[#This Row],[2025/26 Reduction]]+Dataset[[#This Row],[2025/26 From - Total]]","v":0},{"$f":"Dataset[[#This Row],[2026/27 Reduction]]+Dataset[[#This Row],[2026/27 From - Total]]","v":0},{"$f":"Dataset[[#This Row],[2023/24 Reduction]]","v":0},{"$f":"SUM(Dataset[[#This Row],[2024/25 Reduction]],Dataset[[#This Row],[2024/25 From - Total]],Dataset[[#This Row],[2024/25 To - Total]])","v":0},{"$f":"SUM(Dataset[[#This Row],[2025/26 Reduction]],Dataset[[#This Row],[2025/26 From - Total]],Dataset[[#This Row],[2025/26 To - Total]])","v":0},{"$f":"SUM(Dataset[[#This Row],[2026/27 Reduction]],Dataset[[#This Row],[2026/27 From - Total]],Dataset[[#This Row],[2026/27 To - Total]])","v":0},{"$f":"Dataset[[#This Row],[2023/24 Baseline]]+Dataset[[#This Row],[2023/24 Total change]]","v":0},{"$f":"Dataset[[#This Row],[2024/25 Baseline]]+Dataset[[#This Row],[2024/25 Total change]]","v":0},{"$f":"Dataset[[#This Row],[2025/26 Baseline]]+Dataset[[#This Row],[2025/26 Total change]]","v":0},{"$f":"Dataset[[#This Row],[2026/27 Baseline]]+Dataset[[#This Row],[2026/27 Total change]]","v":0}]
["NAT|Non-transfer item","26|Municipal agencies and funds","2024_25","MTEF2024",26,2,2,44472,585,"26","02","02","044472","000585","26|02|02","01","02","04","44","46","01|02|04|44|46","National","Military Veterans","Socioeconomic Support","Health Care and Wellbeing Support","Non-transfer item","Current","Transfers and subsidies","Provinces and municipalities","Municipalities","Municipal agencies and funds","Peace and security","Defence and state security","NAT",0,0,0,0,0,0,0,0,0,0,0,null,null,null,null,null,null,null,null,null,null,null,null,null,null,null,null,null,null,null,null,null,null,null,null,null,null,null,null,null,null,null,null,null,null,{"$f":"Dataset[[#This Row],[2024/25 From - Spending review Topic 1]]+Dataset[[#This Row],[2024/25 From - Spending review Topic 2]]+Dataset[[#This Row],[2024/25 From - Spending review Topic 3]]+Dataset[[#This Row],[2024/25 From - Spending review Topic 4]]+Dataset[[#This Row],[2024/25 From - Other reallocations]]","v":0},{"$f":"Dataset[[#This Row],[2025/26 From - Spending review Topic 1]]+Dataset[[#This Row],[2025/26 From - Spending review Topic 2]]+Dataset[[#This Row],[2025/26 From - Spending review Topic 3]]+Dataset[[#This Row],[2025/26 From - Spending review Topic 4]]+Dataset[[#This Row],[2025/26 From - Other reallocations]]","v":0},{"$f":"Dataset[[#This Row],[2026/27 From - Spending review Topic 1]]+Dataset[[#This Row],[2026/27 From - Spending review Topic 2]]+Dataset[[#This Row],[2026/27 From - Spending review Topic 3]]+Dataset[[#This Row],[2026/27 From - Spending review Topic 4]]+Dataset[[#This Row],[2026/27 From - Other reallocations]]","v":0},{"$f":"Dataset[[#This Row],[2024/25 To - Spending review Topic 1]]+Dataset[[#This Row],[2024/25 To - Spending review Topic 2]]+Dataset[[#This Row],[2024/25 To - Spending review Topic 3]]+Dataset[[#This Row],[2024/25 To - Spending review Topic 4]]+Dataset[[#This Row],[2024/25 To - Other reallocations]]","v":0},{"$f":"Dataset[[#This Row],[2025/26 To - Spending review Topic 1]]+Dataset[[#This Row],[2025/26 To - Spending review Topic 2]]+Dataset[[#This Row],[2025/26 To - Spending review Topic 3]]+Dataset[[#This Row],[2025/26 To - Spending review Topic 4]]+Dataset[[#This Row],[2025/26 To - Other reallocations]]","v":0},{"$f":"Dataset[[#This Row],[2026/27 To - Spending review Topic 1]]+Dataset[[#This Row],[2026/27 To - Spending review Topic 2]]+Dataset[[#This Row],[2026/27 To - Spending review Topic 3]]+Dataset[[#This Row],[2026/27 To - Spending review Topic 4]]+Dataset[[#This Row],[2026/27 To - Other reallocations]]","v":0},{"$f":"Dataset[[#This Row],[2024/25 Reduction]]+Dataset[[#This Row],[2024/25 From - Total]]","v":0},{"$f":"Dataset[[#This Row],[2025/26 Reduction]]+Dataset[[#This Row],[2025/26 From - Total]]","v":0},{"$f":"Dataset[[#This Row],[2026/27 Reduction]]+Dataset[[#This Row],[2026/27 From - Total]]","v":0},{"$f":"Dataset[[#This Row],[2023/24 Reduction]]","v":0},{"$f":"SUM(Dataset[[#This Row],[2024/25 Reduction]],Dataset[[#This Row],[2024/25 From - Total]],Dataset[[#This Row],[2024/25 To - Total]])","v":0},{"$f":"SUM(Dataset[[#This Row],[2025/26 Reduction]],Dataset[[#This Row],[2025/26 From - Total]],Dataset[[#This Row],[2025/26 To - Total]])","v":0},{"$f":"SUM(Dataset[[#This Row],[2026/27 Reduction]],Dataset[[#This Row],[2026/27 From - Total]],Dataset[[#This Row],[2026/27 To - Total]])","v":0},{"$f":"Dataset[[#This Row],[2023/24 Baseline]]+Dataset[[#This Row],[2023/24 Total change]]","v":0},{"$f":"Dataset[[#This Row],[2024/25 Baseline]]+Dataset[[#This Row],[2024/25 Total change]]","v":0},{"$f":"Dataset[[#This Row],[2025/26 Baseline]]+Dataset[[#This Row],[2025/26 Total change]]","v":0},{"$f":"Dataset[[#This Row],[2026/27 Baseline]]+Dataset[[#This Row],[2026/27 Total change]]","v":0}]
["NAT|Non-transfer item","26|Social security funds","2024_25","MTEF2024",26,2,2,44473,586,"26","02","02","044473","000586","26|02|02","01","02","05","45","47","01|02|05|45|47","National","Military Veterans","Socioeconomic Support","Health Care and Wellbeing Support","Non-transfer item","Current","Transfers and subsidies","Departmental agencies and accounts","Social security funds","Social security funds","Peace and security","Defence and state security","NAT",0,0,0,0,0,0,0,0,0,0,0,null,null,null,null,null,null,null,null,null,null,null,null,null,null,null,null,null,null,null,null,null,null,null,null,null,null,null,null,null,null,null,null,null,null,{"$f":"Dataset[[#This Row],[2024/25 From - Spending review Topic 1]]+Dataset[[#This Row],[2024/25 From - Spending review Topic 2]]+Dataset[[#This Row],[2024/25 From - Spending review Topic 3]]+Dataset[[#This Row],[2024/25 From - Spending review Topic 4]]+Dataset[[#This Row],[2024/25 From - Other reallocations]]","v":0},{"$f":"Dataset[[#This Row],[2025/26 From - Spending review Topic 1]]+Dataset[[#This Row],[2025/26 From - Spending review Topic 2]]+Dataset[[#This Row],[2025/26 From - Spending review Topic 3]]+Dataset[[#This Row],[2025/26 From - Spending review Topic 4]]+Dataset[[#This Row],[2025/26 From - Other reallocations]]","v":0},{"$f":"Dataset[[#This Row],[2026/27 From - Spending review Topic 1]]+Dataset[[#This Row],[2026/27 From - Spending review Topic 2]]+Dataset[[#This Row],[2026/27 From - Spending review Topic 3]]+Dataset[[#This Row],[2026/27 From - Spending review Topic 4]]+Dataset[[#This Row],[2026/27 From - Other reallocations]]","v":0},{"$f":"Dataset[[#This Row],[2024/25 To - Spending review Topic 1]]+Dataset[[#This Row],[2024/25 To - Spending review Topic 2]]+Dataset[[#This Row],[2024/25 To - Spending review Topic 3]]+Dataset[[#This Row],[2024/25 To - Spending review Topic 4]]+Dataset[[#This Row],[2024/25 To - Other reallocations]]","v":0},{"$f":"Dataset[[#This Row],[2025/26 To - Spending review Topic 1]]+Dataset[[#This Row],[2025/26 To - Spending review Topic 2]]+Dataset[[#This Row],[2025/26 To - Spending review Topic 3]]+Dataset[[#This Row],[2025/26 To - Spending review Topic 4]]+Dataset[[#This Row],[2025/26 To - Other reallocations]]","v":0},{"$f":"Dataset[[#This Row],[2026/27 To - Spending review Topic 1]]+Dataset[[#This Row],[2026/27 To - Spending review Topic 2]]+Dataset[[#This Row],[2026/27 To - Spending review Topic 3]]+Dataset[[#This Row],[2026/27 To - Spending review Topic 4]]+Dataset[[#This Row],[2026/27 To - Other reallocations]]","v":0},{"$f":"Dataset[[#This Row],[2024/25 Reduction]]+Dataset[[#This Row],[2024/25 From - Total]]","v":0},{"$f":"Dataset[[#This Row],[2025/26 Reduction]]+Dataset[[#This Row],[2025/26 From - Total]]","v":0},{"$f":"Dataset[[#This Row],[2026/27 Reduction]]+Dataset[[#This Row],[2026/27 From - Total]]","v":0},{"$f":"Dataset[[#This Row],[2023/24 Reduction]]","v":0},{"$f":"SUM(Dataset[[#This Row],[2024/25 Reduction]],Dataset[[#This Row],[2024/25 From - Total]],Dataset[[#This Row],[2024/25 To - Total]])","v":0},{"$f":"SUM(Dataset[[#This Row],[2025/26 Reduction]],Dataset[[#This Row],[2025/26 From - Total]],Dataset[[#This Row],[2025/26 To - Total]])","v":0},{"$f":"SUM(Dataset[[#This Row],[2026/27 Reduction]],Dataset[[#This Row],[2026/27 From - Total]],Dataset[[#This Row],[2026/27 To - Total]])","v":0},{"$f":"Dataset[[#This Row],[2023/24 Baseline]]+Dataset[[#This Row],[2023/24 Total change]]","v":0},{"$f":"Dataset[[#This Row],[2024/25 Baseline]]+Dataset[[#This Row],[2024/25 Total change]]","v":0},{"$f":"Dataset[[#This Row],[2025/26 Baseline]]+Dataset[[#This Row],[2025/26 Total change]]","v":0},{"$f":"Dataset[[#This Row],[2026/27 Baseline]]+Dataset[[#This Row],[2026/27 Total change]]","v":0}]
["NAT|Non-transfer item","26|Departmental agencies (non-business entities)","2024_25","MTEF2024",26,2,2,44474,587,"26","02","02","044474","000587","26|02|02","01","02","05","46","48","01|02|05|46|48","National","Military Veterans","Socioeconomic Support","Health Care and Wellbeing Support","Non-transfer item","Current","Transfers and subsidies","Departmental agencies and accounts","Departmental agencies (non-business entities)","Departmental agencies (non-business entities)","Peace and security","Defence and state security","NAT",0,0,0,0,0,0,0,0,0,0,0,null,null,null,null,null,null,null,null,null,null,null,null,null,null,null,null,null,null,null,null,null,null,null,null,null,null,null,null,null,null,null,null,null,null,{"$f":"Dataset[[#This Row],[2024/25 From - Spending review Topic 1]]+Dataset[[#This Row],[2024/25 From - Spending review Topic 2]]+Dataset[[#This Row],[2024/25 From - Spending review Topic 3]]+Dataset[[#This Row],[2024/25 From - Spending review Topic 4]]+Dataset[[#This Row],[2024/25 From - Other reallocations]]","v":0},{"$f":"Dataset[[#This Row],[2025/26 From - Spending review Topic 1]]+Dataset[[#This Row],[2025/26 From - Spending review Topic 2]]+Dataset[[#This Row],[2025/26 From - Spending review Topic 3]]+Dataset[[#This Row],[2025/26 From - Spending review Topic 4]]+Dataset[[#This Row],[2025/26 From - Other reallocations]]","v":0},{"$f":"Dataset[[#This Row],[2026/27 From - Spending review Topic 1]]+Dataset[[#This Row],[2026/27 From - Spending review Topic 2]]+Dataset[[#This Row],[2026/27 From - Spending review Topic 3]]+Dataset[[#This Row],[2026/27 From - Spending review Topic 4]]+Dataset[[#This Row],[2026/27 From - Other reallocations]]","v":0},{"$f":"Dataset[[#This Row],[2024/25 To - Spending review Topic 1]]+Dataset[[#This Row],[2024/25 To - Spending review Topic 2]]+Dataset[[#This Row],[2024/25 To - Spending review Topic 3]]+Dataset[[#This Row],[2024/25 To - Spending review Topic 4]]+Dataset[[#This Row],[2024/25 To - Other reallocations]]","v":0},{"$f":"Dataset[[#This Row],[2025/26 To - Spending review Topic 1]]+Dataset[[#This Row],[2025/26 To - Spending review Topic 2]]+Dataset[[#This Row],[2025/26 To - Spending review Topic 3]]+Dataset[[#This Row],[2025/26 To - Spending review Topic 4]]+Dataset[[#This Row],[2025/26 To - Other reallocations]]","v":0},{"$f":"Dataset[[#This Row],[2026/27 To - Spending review Topic 1]]+Dataset[[#This Row],[2026/27 To - Spending review Topic 2]]+Dataset[[#This Row],[2026/27 To - Spending review Topic 3]]+Dataset[[#This Row],[2026/27 To - Spending review Topic 4]]+Dataset[[#This Row],[2026/27 To - Other reallocations]]","v":0},{"$f":"Dataset[[#This Row],[2024/25 Reduction]]+Dataset[[#This Row],[2024/25 From - Total]]","v":0},{"$f":"Dataset[[#This Row],[2025/26 Reduction]]+Dataset[[#This Row],[2025/26 From - Total]]","v":0},{"$f":"Dataset[[#This Row],[2026/27 Reduction]]+Dataset[[#This Row],[2026/27 From - Total]]","v":0},{"$f":"Dataset[[#This Row],[2023/24 Reduction]]","v":0},{"$f":"SUM(Dataset[[#This Row],[2024/25 Reduction]],Dataset[[#This Row],[2024/25 From - Total]],Dataset[[#This Row],[2024/25 To - Total]])","v":0},{"$f":"SUM(Dataset[[#This Row],[2025/26 Reduction]],Dataset[[#This Row],[2025/26 From - Total]],Dataset[[#This Row],[2025/26 To - Total]])","v":0},{"$f":"SUM(Dataset[[#This Row],[2026/27 Reduction]],Dataset[[#This Row],[2026/27 From - Total]],Dataset[[#This Row],[2026/27 To - Total]])","v":0},{"$f":"Dataset[[#This Row],[2023/24 Baseline]]+Dataset[[#This Row],[2023/24 Total change]]","v":0},{"$f":"Dataset[[#This Row],[2024/25 Baseline]]+Dataset[[#This Row],[2024/25 Total change]]","v":0},{"$f":"Dataset[[#This Row],[2025/26 Baseline]]+Dataset[[#This Row],[2025/26 Total change]]","v":0},{"$f":"Dataset[[#This Row],[2026/27 Baseline]]+Dataset[[#This Row],[2026/27 Total change]]","v":0}]
["NAT|Non-transfer item","26|Higher education institutions","2024_25","MTEF2024",26,2,2,44475,588,"26","02","02","044475","000588","26|02|02","01","02","06","47","49","01|02|06|47|49","National","Military Veterans","Socioeconomic Support","Health Care and Wellbeing Support","Non-transfer item","Current","Transfers and subsidies","Higher education institutions","Higher education institutions","Higher education institutions","Peace and security","Defence and state security","NAT",0,0,0,0,0,0,0,0,0,0,0,null,null,null,null,null,null,null,null,null,null,null,null,null,null,null,null,null,null,null,null,null,null,null,null,null,null,null,null,null,null,null,null,null,null,{"$f":"Dataset[[#This Row],[2024/25 From - Spending review Topic 1]]+Dataset[[#This Row],[2024/25 From - Spending review Topic 2]]+Dataset[[#This Row],[2024/25 From - Spending review Topic 3]]+Dataset[[#This Row],[2024/25 From - Spending review Topic 4]]+Dataset[[#This Row],[2024/25 From - Other reallocations]]","v":0},{"$f":"Dataset[[#This Row],[2025/26 From - Spending review Topic 1]]+Dataset[[#This Row],[2025/26 From - Spending review Topic 2]]+Dataset[[#This Row],[2025/26 From - Spending review Topic 3]]+Dataset[[#This Row],[2025/26 From - Spending review Topic 4]]+Dataset[[#This Row],[2025/26 From - Other reallocations]]","v":0},{"$f":"Dataset[[#This Row],[2026/27 From - Spending review Topic 1]]+Dataset[[#This Row],[2026/27 From - Spending review Topic 2]]+Dataset[[#This Row],[2026/27 From - Spending review Topic 3]]+Dataset[[#This Row],[2026/27 From - Spending review Topic 4]]+Dataset[[#This Row],[2026/27 From - Other reallocations]]","v":0},{"$f":"Dataset[[#This Row],[2024/25 To - Spending review Topic 1]]+Dataset[[#This Row],[2024/25 To - Spending review Topic 2]]+Dataset[[#This Row],[2024/25 To - Spending review Topic 3]]+Dataset[[#This Row],[2024/25 To - Spending review Topic 4]]+Dataset[[#This Row],[2024/25 To - Other reallocations]]","v":0},{"$f":"Dataset[[#This Row],[2025/26 To - Spending review Topic 1]]+Dataset[[#This Row],[2025/26 To - Spending review Topic 2]]+Dataset[[#This Row],[2025/26 To - Spending review Topic 3]]+Dataset[[#This Row],[2025/26 To - Spending review Topic 4]]+Dataset[[#This Row],[2025/26 To - Other reallocations]]","v":0},{"$f":"Dataset[[#This Row],[2026/27 To - Spending review Topic 1]]+Dataset[[#This Row],[2026/27 To - Spending review Topic 2]]+Dataset[[#This Row],[2026/27 To - Spending review Topic 3]]+Dataset[[#This Row],[2026/27 To - Spending review Topic 4]]+Dataset[[#This Row],[2026/27 To - Other reallocations]]","v":0},{"$f":"Dataset[[#This Row],[2024/25 Reduction]]+Dataset[[#This Row],[2024/25 From - Total]]","v":0},{"$f":"Dataset[[#This Row],[2025/26 Reduction]]+Dataset[[#This Row],[2025/26 From - Total]]","v":0},{"$f":"Dataset[[#This Row],[2026/27 Reduction]]+Dataset[[#This Row],[2026/27 From - Total]]","v":0},{"$f":"Dataset[[#This Row],[2023/24 Reduction]]","v":0},{"$f":"SUM(Dataset[[#This Row],[2024/25 Reduction]],Dataset[[#This Row],[2024/25 From - Total]],Dataset[[#This Row],[2024/25 To - Total]])","v":0},{"$f":"SUM(Dataset[[#This Row],[2025/26 Reduction]],Dataset[[#This Row],[2025/26 From - Total]],Dataset[[#This Row],[2025/26 To - Total]])","v":0},{"$f":"SUM(Dataset[[#This Row],[2026/27 Reduction]],Dataset[[#This Row],[2026/27 From - Total]],Dataset[[#This Row],[2026/27 To - Total]])","v":0},{"$f":"Dataset[[#This Row],[2023/24 Baseline]]+Dataset[[#This Row],[2023/24 Total change]]","v":0},{"$f":"Dataset[[#This Row],[2024/25 Baseline]]+Dataset[[#This Row],[2024/25 Total change]]","v":0},{"$f":"Dataset[[#This Row],[2025/26 Baseline]]+Dataset[[#This Row],[2025/26 Total change]]","v":0},{"$f":"Dataset[[#This Row],[2026/27 Baseline]]+Dataset[[#This Row],[2026/27 Total change]]","v":0}]
["NAT|Non-transfer item","26|Foreign governments and international organisations","2024_25","MTEF2024",26,2,2,44476,589,"26","02","02","044476","000589","26|02|02","01","02","07","48","50","01|02|07|48|50","National","Military Veterans","Socioeconomic Support","Health Care and Wellbeing Support","Non-transfer item","Current","Transfers and subsidies","Foreign governments and international organisations","Foreign governments and international organisations","Foreign governments and international organisations","Peace and security","Defence and state security","NAT",0,0,0,0,0,0,0,0,0,0,0,null,null,null,null,null,null,null,null,null,null,null,null,null,null,null,null,null,null,null,null,null,null,null,null,null,null,null,null,null,null,null,null,null,null,{"$f":"Dataset[[#This Row],[2024/25 From - Spending review Topic 1]]+Dataset[[#This Row],[2024/25 From - Spending review Topic 2]]+Dataset[[#This Row],[2024/25 From - Spending review Topic 3]]+Dataset[[#This Row],[2024/25 From - Spending review Topic 4]]+Dataset[[#This Row],[2024/25 From - Other reallocations]]","v":0},{"$f":"Dataset[[#This Row],[2025/26 From - Spending review Topic 1]]+Dataset[[#This Row],[2025/26 From - Spending review Topic 2]]+Dataset[[#This Row],[2025/26 From - Spending review Topic 3]]+Dataset[[#This Row],[2025/26 From - Spending review Topic 4]]+Dataset[[#This Row],[2025/26 From - Other reallocations]]","v":0},{"$f":"Dataset[[#This Row],[2026/27 From - Spending review Topic 1]]+Dataset[[#This Row],[2026/27 From - Spending review Topic 2]]+Dataset[[#This Row],[2026/27 From - Spending review Topic 3]]+Dataset[[#This Row],[2026/27 From - Spending review Topic 4]]+Dataset[[#This Row],[2026/27 From - Other reallocations]]","v":0},{"$f":"Dataset[[#This Row],[2024/25 To - Spending review Topic 1]]+Dataset[[#This Row],[2024/25 To - Spending review Topic 2]]+Dataset[[#This Row],[2024/25 To - Spending review Topic 3]]+Dataset[[#This Row],[2024/25 To - Spending review Topic 4]]+Dataset[[#This Row],[2024/25 To - Other reallocations]]","v":0},{"$f":"Dataset[[#This Row],[2025/26 To - Spending review Topic 1]]+Dataset[[#This Row],[2025/26 To - Spending review Topic 2]]+Dataset[[#This Row],[2025/26 To - Spending review Topic 3]]+Dataset[[#This Row],[2025/26 To - Spending review Topic 4]]+Dataset[[#This Row],[2025/26 To - Other reallocations]]","v":0},{"$f":"Dataset[[#This Row],[2026/27 To - Spending review Topic 1]]+Dataset[[#This Row],[2026/27 To - Spending review Topic 2]]+Dataset[[#This Row],[2026/27 To - Spending review Topic 3]]+Dataset[[#This Row],[2026/27 To - Spending review Topic 4]]+Dataset[[#This Row],[2026/27 To - Other reallocations]]","v":0},{"$f":"Dataset[[#This Row],[2024/25 Reduction]]+Dataset[[#This Row],[2024/25 From - Total]]","v":0},{"$f":"Dataset[[#This Row],[2025/26 Reduction]]+Dataset[[#This Row],[2025/26 From - Total]]","v":0},{"$f":"Dataset[[#This Row],[2026/27 Reduction]]+Dataset[[#This Row],[2026/27 From - Total]]","v":0},{"$f":"Dataset[[#This Row],[2023/24 Reduction]]","v":0},{"$f":"SUM(Dataset[[#This Row],[2024/25 Reduction]],Dataset[[#This Row],[2024/25 From - Total]],Dataset[[#This Row],[2024/25 To - Total]])","v":0},{"$f":"SUM(Dataset[[#This Row],[2025/26 Reduction]],Dataset[[#This Row],[2025/26 From - Total]],Dataset[[#This Row],[2025/26 To - Total]])","v":0},{"$f":"SUM(Dataset[[#This Row],[2026/27 Reduction]],Dataset[[#This Row],[2026/27 From - Total]],Dataset[[#This Row],[2026/27 To - Total]])","v":0},{"$f":"Dataset[[#This Row],[2023/24 Baseline]]+Dataset[[#This Row],[2023/24 Total change]]","v":0},{"$f":"Dataset[[#This Row],[2024/25 Baseline]]+Dataset[[#This Row],[2024/25 Total change]]","v":0},{"$f":"Dataset[[#This Row],[2025/26 Baseline]]+Dataset[[#This Row],[2025/26 Total change]]","v":0},{"$f":"Dataset[[#This Row],[2026/27 Baseline]]+Dataset[[#This Row],[2026/27 Total change]]","v":0}]
["NAT|Non-transfer item","26|Subsidies on products and production (pc)","2024_25","MTEF2024",26,2,2,44477,590,"26","02","02","044477","000590","26|02|02","01","02","08","49","51","01|02|08|49|51","National","Military Veterans","Socioeconomic Support","Health Care and Wellbeing Support","Non-transfer item","Current","Transfers and subsidies","Public corporations and private enterprises","Public corporations","Subsidies on products and production (pc)","Peace and security","Defence and state security","NAT",0,0,0,0,0,0,0,0,0,0,0,null,null,null,null,null,null,null,null,null,null,null,null,null,null,null,null,null,null,null,null,null,null,null,null,null,null,null,null,null,null,null,null,null,null,{"$f":"Dataset[[#This Row],[2024/25 From - Spending review Topic 1]]+Dataset[[#This Row],[2024/25 From - Spending review Topic 2]]+Dataset[[#This Row],[2024/25 From - Spending review Topic 3]]+Dataset[[#This Row],[2024/25 From - Spending review Topic 4]]+Dataset[[#This Row],[2024/25 From - Other reallocations]]","v":0},{"$f":"Dataset[[#This Row],[2025/26 From - Spending review Topic 1]]+Dataset[[#This Row],[2025/26 From - Spending review Topic 2]]+Dataset[[#This Row],[2025/26 From - Spending review Topic 3]]+Dataset[[#This Row],[2025/26 From - Spending review Topic 4]]+Dataset[[#This Row],[2025/26 From - Other reallocations]]","v":0},{"$f":"Dataset[[#This Row],[2026/27 From - Spending review Topic 1]]+Dataset[[#This Row],[2026/27 From - Spending review Topic 2]]+Dataset[[#This Row],[2026/27 From - Spending review Topic 3]]+Dataset[[#This Row],[2026/27 From - Spending review Topic 4]]+Dataset[[#This Row],[2026/27 From - Other reallocations]]","v":0},{"$f":"Dataset[[#This Row],[2024/25 To - Spending review Topic 1]]+Dataset[[#This Row],[2024/25 To - Spending review Topic 2]]+Dataset[[#This Row],[2024/25 To - Spending review Topic 3]]+Dataset[[#This Row],[2024/25 To - Spending review Topic 4]]+Dataset[[#This Row],[2024/25 To - Other reallocations]]","v":0},{"$f":"Dataset[[#This Row],[2025/26 To - Spending review Topic 1]]+Dataset[[#This Row],[2025/26 To - Spending review Topic 2]]+Dataset[[#This Row],[2025/26 To - Spending review Topic 3]]+Dataset[[#This Row],[2025/26 To - Spending review Topic 4]]+Dataset[[#This Row],[2025/26 To - Other reallocations]]","v":0},{"$f":"Dataset[[#This Row],[2026/27 To - Spending review Topic 1]]+Dataset[[#This Row],[2026/27 To - Spending review Topic 2]]+Dataset[[#This Row],[2026/27 To - Spending review Topic 3]]+Dataset[[#This Row],[2026/27 To - Spending review Topic 4]]+Dataset[[#This Row],[2026/27 To - Other reallocations]]","v":0},{"$f":"Dataset[[#This Row],[2024/25 Reduction]]+Dataset[[#This Row],[2024/25 From - Total]]","v":0},{"$f":"Dataset[[#This Row],[2025/26 Reduction]]+Dataset[[#This Row],[2025/26 From - Total]]","v":0},{"$f":"Dataset[[#This Row],[2026/27 Reduction]]+Dataset[[#This Row],[2026/27 From - Total]]","v":0},{"$f":"Dataset[[#This Row],[2023/24 Reduction]]","v":0},{"$f":"SUM(Dataset[[#This Row],[2024/25 Reduction]],Dataset[[#This Row],[2024/25 From - Total]],Dataset[[#This Row],[2024/25 To - Total]])","v":0},{"$f":"SUM(Dataset[[#This Row],[2025/26 Reduction]],Dataset[[#This Row],[2025/26 From - Total]],Dataset[[#This Row],[2025/26 To - Total]])","v":0},{"$f":"SUM(Dataset[[#This Row],[2026/27 Reduction]],Dataset[[#This Row],[2026/27 From - Total]],Dataset[[#This Row],[2026/27 To - Total]])","v":0},{"$f":"Dataset[[#This Row],[2023/24 Baseline]]+Dataset[[#This Row],[2023/24 Total change]]","v":0},{"$f":"Dataset[[#This Row],[2024/25 Baseline]]+Dataset[[#This Row],[2024/25 Total change]]","v":0},{"$f":"Dataset[[#This Row],[2025/26 Baseline]]+Dataset[[#This Row],[2025/26 Total change]]","v":0},{"$f":"Dataset[[#This Row],[2026/27 Baseline]]+Dataset[[#This Row],[2026/27 Total change]]","v":0}]
["NAT|Non-transfer item","26|Other transfers to public corporations","2024_25","MTEF2024",26,2,2,44478,591,"26","02","02","044478","000591","26|02|02","01","02","08","49","52","01|02|08|49|52","National","Military Veterans","Socioeconomic Support","Health Care and Wellbeing Support","Non-transfer item","Current","Transfers and subsidies","Public corporations and private enterprises","Public corporations","Other transfers to public corporations","Peace and security","Defence and state security","NAT",0,0,0,0,0,0,0,0,0,0,0,null,null,null,null,null,null,null,null,null,null,null,null,null,null,null,null,null,null,null,null,null,null,null,null,null,null,null,null,null,null,null,null,null,null,{"$f":"Dataset[[#This Row],[2024/25 From - Spending review Topic 1]]+Dataset[[#This Row],[2024/25 From - Spending review Topic 2]]+Dataset[[#This Row],[2024/25 From - Spending review Topic 3]]+Dataset[[#This Row],[2024/25 From - Spending review Topic 4]]+Dataset[[#This Row],[2024/25 From - Other reallocations]]","v":0},{"$f":"Dataset[[#This Row],[2025/26 From - Spending review Topic 1]]+Dataset[[#This Row],[2025/26 From - Spending review Topic 2]]+Dataset[[#This Row],[2025/26 From - Spending review Topic 3]]+Dataset[[#This Row],[2025/26 From - Spending review Topic 4]]+Dataset[[#This Row],[2025/26 From - Other reallocations]]","v":0},{"$f":"Dataset[[#This Row],[2026/27 From - Spending review Topic 1]]+Dataset[[#This Row],[2026/27 From - Spending review Topic 2]]+Dataset[[#This Row],[2026/27 From - Spending review Topic 3]]+Dataset[[#This Row],[2026/27 From - Spending review Topic 4]]+Dataset[[#This Row],[2026/27 From - Other reallocations]]","v":0},{"$f":"Dataset[[#This Row],[2024/25 To - Spending review Topic 1]]+Dataset[[#This Row],[2024/25 To - Spending review Topic 2]]+Dataset[[#This Row],[2024/25 To - Spending review Topic 3]]+Dataset[[#This Row],[2024/25 To - Spending review Topic 4]]+Dataset[[#This Row],[2024/25 To - Other reallocations]]","v":0},{"$f":"Dataset[[#This Row],[2025/26 To - Spending review Topic 1]]+Dataset[[#This Row],[2025/26 To - Spending review Topic 2]]+Dataset[[#This Row],[2025/26 To - Spending review Topic 3]]+Dataset[[#This Row],[2025/26 To - Spending review Topic 4]]+Dataset[[#This Row],[2025/26 To - Other reallocations]]","v":0},{"$f":"Dataset[[#This Row],[2026/27 To - Spending review Topic 1]]+Dataset[[#This Row],[2026/27 To - Spending review Topic 2]]+Dataset[[#This Row],[2026/27 To - Spending review Topic 3]]+Dataset[[#This Row],[2026/27 To - Spending review Topic 4]]+Dataset[[#This Row],[2026/27 To - Other reallocations]]","v":0},{"$f":"Dataset[[#This Row],[2024/25 Reduction]]+Dataset[[#This Row],[2024/25 From - Total]]","v":0},{"$f":"Dataset[[#This Row],[2025/26 Reduction]]+Dataset[[#This Row],[2025/26 From - Total]]","v":0},{"$f":"Dataset[[#This Row],[2026/27 Reduction]]+Dataset[[#This Row],[2026/27 From - Total]]","v":0},{"$f":"Dataset[[#This Row],[2023/24 Reduction]]","v":0},{"$f":"SUM(Dataset[[#This Row],[2024/25 Reduction]],Dataset[[#This Row],[2024/25 From - Total]],Dataset[[#This Row],[2024/25 To - Total]])","v":0},{"$f":"SUM(Dataset[[#This Row],[2025/26 Reduction]],Dataset[[#This Row],[2025/26 From - Total]],Dataset[[#This Row],[2025/26 To - Total]])","v":0},{"$f":"SUM(Dataset[[#This Row],[2026/27 Reduction]],Dataset[[#This Row],[2026/27 From - Total]],Dataset[[#This Row],[2026/27 To - Total]])","v":0},{"$f":"Dataset[[#This Row],[2023/24 Baseline]]+Dataset[[#This Row],[2023/24 Total change]]","v":0},{"$f":"Dataset[[#This Row],[2024/25 Baseline]]+Dataset[[#This Row],[2024/25 Total change]]","v":0},{"$f":"Dataset[[#This Row],[2025/26 Baseline]]+Dataset[[#This Row],[2025/26 Total change]]","v":0},{"$f":"Dataset[[#This Row],[2026/27 Baseline]]+Dataset[[#This Row],[2026/27 Total change]]","v":0}]
["NAT|Non-transfer item","26|Subsidies on products and production (pe)","2024_25","MTEF2024",26,2,2,44479,592,"26","02","02","044479","000592","26|02|02","01","02","08","50","53","01|02|08|50|53","National","Military Veterans","Socioeconomic Support","Health Care and Wellbeing Support","Non-transfer item","Current","Transfers and subsidies","Public corporations and private enterprises","Private enterprises","Subsidies on products and production (pe)","Peace and security","Defence and state security","NAT",0,0,0,0,0,0,0,0,0,0,0,null,null,null,null,null,null,null,null,null,null,null,null,null,null,null,null,null,null,null,null,null,null,null,null,null,null,null,null,null,null,null,null,null,null,{"$f":"Dataset[[#This Row],[2024/25 From - Spending review Topic 1]]+Dataset[[#This Row],[2024/25 From - Spending review Topic 2]]+Dataset[[#This Row],[2024/25 From - Spending review Topic 3]]+Dataset[[#This Row],[2024/25 From - Spending review Topic 4]]+Dataset[[#This Row],[2024/25 From - Other reallocations]]","v":0},{"$f":"Dataset[[#This Row],[2025/26 From - Spending review Topic 1]]+Dataset[[#This Row],[2025/26 From - Spending review Topic 2]]+Dataset[[#This Row],[2025/26 From - Spending review Topic 3]]+Dataset[[#This Row],[2025/26 From - Spending review Topic 4]]+Dataset[[#This Row],[2025/26 From - Other reallocations]]","v":0},{"$f":"Dataset[[#This Row],[2026/27 From - Spending review Topic 1]]+Dataset[[#This Row],[2026/27 From - Spending review Topic 2]]+Dataset[[#This Row],[2026/27 From - Spending review Topic 3]]+Dataset[[#This Row],[2026/27 From - Spending review Topic 4]]+Dataset[[#This Row],[2026/27 From - Other reallocations]]","v":0},{"$f":"Dataset[[#This Row],[2024/25 To - Spending review Topic 1]]+Dataset[[#This Row],[2024/25 To - Spending review Topic 2]]+Dataset[[#This Row],[2024/25 To - Spending review Topic 3]]+Dataset[[#This Row],[2024/25 To - Spending review Topic 4]]+Dataset[[#This Row],[2024/25 To - Other reallocations]]","v":0},{"$f":"Dataset[[#This Row],[2025/26 To - Spending review Topic 1]]+Dataset[[#This Row],[2025/26 To - Spending review Topic 2]]+Dataset[[#This Row],[2025/26 To - Spending review Topic 3]]+Dataset[[#This Row],[2025/26 To - Spending review Topic 4]]+Dataset[[#This Row],[2025/26 To - Other reallocations]]","v":0},{"$f":"Dataset[[#This Row],[2026/27 To - Spending review Topic 1]]+Dataset[[#This Row],[2026/27 To - Spending review Topic 2]]+Dataset[[#This Row],[2026/27 To - Spending review Topic 3]]+Dataset[[#This Row],[2026/27 To - Spending review Topic 4]]+Dataset[[#This Row],[2026/27 To - Other reallocations]]","v":0},{"$f":"Dataset[[#This Row],[2024/25 Reduction]]+Dataset[[#This Row],[2024/25 From - Total]]","v":0},{"$f":"Dataset[[#This Row],[2025/26 Reduction]]+Dataset[[#This Row],[2025/26 From - Total]]","v":0},{"$f":"Dataset[[#This Row],[2026/27 Reduction]]+Dataset[[#This Row],[2026/27 From - Total]]","v":0},{"$f":"Dataset[[#This Row],[2023/24 Reduction]]","v":0},{"$f":"SUM(Dataset[[#This Row],[2024/25 Reduction]],Dataset[[#This Row],[2024/25 From - Total]],Dataset[[#This Row],[2024/25 To - Total]])","v":0},{"$f":"SUM(Dataset[[#This Row],[2025/26 Reduction]],Dataset[[#This Row],[2025/26 From - Total]],Dataset[[#This Row],[2025/26 To - Total]])","v":0},{"$f":"SUM(Dataset[[#This Row],[2026/27 Reduction]],Dataset[[#This Row],[2026/27 From - Total]],Dataset[[#This Row],[2026/27 To - Total]])","v":0},{"$f":"Dataset[[#This Row],[2023/24 Baseline]]+Dataset[[#This Row],[2023/24 Total change]]","v":0},{"$f":"Dataset[[#This Row],[2024/25 Baseline]]+Dataset[[#This Row],[2024/25 Total change]]","v":0},{"$f":"Dataset[[#This Row],[2025/26 Baseline]]+Dataset[[#This Row],[2025/26 Total change]]","v":0},{"$f":"Dataset[[#This Row],[2026/27 Baseline]]+Dataset[[#This Row],[2026/27 Total change]]","v":0}]
["NAT|Non-transfer item","26|Other transfers to private enterprises","2024_25","MTEF2024",26,2,2,44480,593,"26","02","02","044480","000593","26|02|02","01","02","08","50","54","01|02|08|50|54","National","Military Veterans","Socioeconomic Support","Health Care and Wellbeing Support","Non-transfer item","Current","Transfers and subsidies","Public corporations and private enterprises","Private enterprises","Other transfers to private enterprises","Peace and security","Defence and state security","NAT",0,0,0,0,0,0,0,0,0,0,0,null,null,null,null,null,null,null,null,null,null,null,null,null,null,null,null,null,null,null,null,null,null,null,null,null,null,null,null,null,null,null,null,null,null,{"$f":"Dataset[[#This Row],[2024/25 From - Spending review Topic 1]]+Dataset[[#This Row],[2024/25 From - Spending review Topic 2]]+Dataset[[#This Row],[2024/25 From - Spending review Topic 3]]+Dataset[[#This Row],[2024/25 From - Spending review Topic 4]]+Dataset[[#This Row],[2024/25 From - Other reallocations]]","v":0},{"$f":"Dataset[[#This Row],[2025/26 From - Spending review Topic 1]]+Dataset[[#This Row],[2025/26 From - Spending review Topic 2]]+Dataset[[#This Row],[2025/26 From - Spending review Topic 3]]+Dataset[[#This Row],[2025/26 From - Spending review Topic 4]]+Dataset[[#This Row],[2025/26 From - Other reallocations]]","v":0},{"$f":"Dataset[[#This Row],[2026/27 From - Spending review Topic 1]]+Dataset[[#This Row],[2026/27 From - Spending review Topic 2]]+Dataset[[#This Row],[2026/27 From - Spending review Topic 3]]+Dataset[[#This Row],[2026/27 From - Spending review Topic 4]]+Dataset[[#This Row],[2026/27 From - Other reallocations]]","v":0},{"$f":"Dataset[[#This Row],[2024/25 To - Spending review Topic 1]]+Dataset[[#This Row],[2024/25 To - Spending review Topic 2]]+Dataset[[#This Row],[2024/25 To - Spending review Topic 3]]+Dataset[[#This Row],[2024/25 To - Spending review Topic 4]]+Dataset[[#This Row],[2024/25 To - Other reallocations]]","v":0},{"$f":"Dataset[[#This Row],[2025/26 To - Spending review Topic 1]]+Dataset[[#This Row],[2025/26 To - Spending review Topic 2]]+Dataset[[#This Row],[2025/26 To - Spending review Topic 3]]+Dataset[[#This Row],[2025/26 To - Spending review Topic 4]]+Dataset[[#This Row],[2025/26 To - Other reallocations]]","v":0},{"$f":"Dataset[[#This Row],[2026/27 To - Spending review Topic 1]]+Dataset[[#This Row],[2026/27 To - Spending review Topic 2]]+Dataset[[#This Row],[2026/27 To - Spending review Topic 3]]+Dataset[[#This Row],[2026/27 To - Spending review Topic 4]]+Dataset[[#This Row],[2026/27 To - Other reallocations]]","v":0},{"$f":"Dataset[[#This Row],[2024/25 Reduction]]+Dataset[[#This Row],[2024/25 From - Total]]","v":0},{"$f":"Dataset[[#This Row],[2025/26 Reduction]]+Dataset[[#This Row],[2025/26 From - Total]]","v":0},{"$f":"Dataset[[#This Row],[2026/27 Reduction]]+Dataset[[#This Row],[2026/27 From - Total]]","v":0},{"$f":"Dataset[[#This Row],[2023/24 Reduction]]","v":0},{"$f":"SUM(Dataset[[#This Row],[2024/25 Reduction]],Dataset[[#This Row],[2024/25 From - Total]],Dataset[[#This Row],[2024/25 To - Total]])","v":0},{"$f":"SUM(Dataset[[#This Row],[2025/26 Reduction]],Dataset[[#This Row],[2025/26 From - Total]],Dataset[[#This Row],[2025/26 To - Total]])","v":0},{"$f":"SUM(Dataset[[#This Row],[2026/27 Reduction]],Dataset[[#This Row],[2026/27 From - Total]],Dataset[[#This Row],[2026/27 To - Total]])","v":0},{"$f":"Dataset[[#This Row],[2023/24 Baseline]]+Dataset[[#This Row],[2023/24 Total change]]","v":0},{"$f":"Dataset[[#This Row],[2024/25 Baseline]]+Dataset[[#This Row],[2024/25 Total change]]","v":0},{"$f":"Dataset[[#This Row],[2025/26 Baseline]]+Dataset[[#This Row],[2025/26 Total change]]","v":0},{"$f":"Dataset[[#This Row],[2026/27 Baseline]]+Dataset[[#This Row],[2026/27 Total change]]","v":0}]
["NAT|Non-transfer item","26|Non-profit institutions","2024_25","MTEF2024",26,2,2,44481,594,"26","02","02","044481","000594","26|02|02","01","02","09","51","55","01|02|09|51|55","National","Military Veterans","Socioeconomic Support","Health Care and Wellbeing Support","Non-transfer item","Current","Transfers and subsidies","Non-profit institutions","Non-profit institutions","Non-profit institutions","Peace and security","Defence and state security","NAT",0,0,0,0,0,0,0,0,0,0,0,null,null,null,null,null,null,null,null,null,null,null,null,null,null,null,null,null,null,null,null,null,null,null,null,null,null,null,null,null,null,null,null,null,null,{"$f":"Dataset[[#This Row],[2024/25 From - Spending review Topic 1]]+Dataset[[#This Row],[2024/25 From - Spending review Topic 2]]+Dataset[[#This Row],[2024/25 From - Spending review Topic 3]]+Dataset[[#This Row],[2024/25 From - Spending review Topic 4]]+Dataset[[#This Row],[2024/25 From - Other reallocations]]","v":0},{"$f":"Dataset[[#This Row],[2025/26 From - Spending review Topic 1]]+Dataset[[#This Row],[2025/26 From - Spending review Topic 2]]+Dataset[[#This Row],[2025/26 From - Spending review Topic 3]]+Dataset[[#This Row],[2025/26 From - Spending review Topic 4]]+Dataset[[#This Row],[2025/26 From - Other reallocations]]","v":0},{"$f":"Dataset[[#This Row],[2026/27 From - Spending review Topic 1]]+Dataset[[#This Row],[2026/27 From - Spending review Topic 2]]+Dataset[[#This Row],[2026/27 From - Spending review Topic 3]]+Dataset[[#This Row],[2026/27 From - Spending review Topic 4]]+Dataset[[#This Row],[2026/27 From - Other reallocations]]","v":0},{"$f":"Dataset[[#This Row],[2024/25 To - Spending review Topic 1]]+Dataset[[#This Row],[2024/25 To - Spending review Topic 2]]+Dataset[[#This Row],[2024/25 To - Spending review Topic 3]]+Dataset[[#This Row],[2024/25 To - Spending review Topic 4]]+Dataset[[#This Row],[2024/25 To - Other reallocations]]","v":0},{"$f":"Dataset[[#This Row],[2025/26 To - Spending review Topic 1]]+Dataset[[#This Row],[2025/26 To - Spending review Topic 2]]+Dataset[[#This Row],[2025/26 To - Spending review Topic 3]]+Dataset[[#This Row],[2025/26 To - Spending review Topic 4]]+Dataset[[#This Row],[2025/26 To - Other reallocations]]","v":0},{"$f":"Dataset[[#This Row],[2026/27 To - Spending review Topic 1]]+Dataset[[#This Row],[2026/27 To - Spending review Topic 2]]+Dataset[[#This Row],[2026/27 To - Spending review Topic 3]]+Dataset[[#This Row],[2026/27 To - Spending review Topic 4]]+Dataset[[#This Row],[2026/27 To - Other reallocations]]","v":0},{"$f":"Dataset[[#This Row],[2024/25 Reduction]]+Dataset[[#This Row],[2024/25 From - Total]]","v":0},{"$f":"Dataset[[#This Row],[2025/26 Reduction]]+Dataset[[#This Row],[2025/26 From - Total]]","v":0},{"$f":"Dataset[[#This Row],[2026/27 Reduction]]+Dataset[[#This Row],[2026/27 From - Total]]","v":0},{"$f":"Dataset[[#This Row],[2023/24 Reduction]]","v":0},{"$f":"SUM(Dataset[[#This Row],[2024/25 Reduction]],Dataset[[#This Row],[2024/25 From - Total]],Dataset[[#This Row],[2024/25 To - Total]])","v":0},{"$f":"SUM(Dataset[[#This Row],[2025/26 Reduction]],Dataset[[#This Row],[2025/26 From - Total]],Dataset[[#This Row],[2025/26 To - Total]])","v":0},{"$f":"SUM(Dataset[[#This Row],[2026/27 Reduction]],Dataset[[#This Row],[2026/27 From - Total]],Dataset[[#This Row],[2026/27 To - Total]])","v":0},{"$f":"Dataset[[#This Row],[2023/24 Baseline]]+Dataset[[#This Row],[2023/24 Total change]]","v":0},{"$f":"Dataset[[#This Row],[2024/25 Baseline]]+Dataset[[#This Row],[2024/25 Total change]]","v":0},{"$f":"Dataset[[#This Row],[2025/26 Baseline]]+Dataset[[#This Row],[2025/26 Total change]]","v":0},{"$f":"Dataset[[#This Row],[2026/27 Baseline]]+Dataset[[#This Row],[2026/27 Total change]]","v":0}]
["NAT|Military veterans' benefits","26|Social benefits","2024_25","MTEF2024",26,2,2,44482,595,"26","02","02","044482","000595","26|02|02","01","02","10","52","56","01|02|10|52|56","National","Military Veterans","Socioeconomic Support","Health Care and Wellbeing Support","Military veterans' benefits","Current","Transfers and subsidies","Households","Social benefits","Social benefits","Peace and security","Defence and state security","NAT",5532,940,4211,0,5200,5200,0,4500,5000,5500,5752,null,null,null,null,null,null,null,null,null,null,null,null,null,null,null,null,null,null,null,null,null,null,null,null,null,null,null,null,null,null,null,null,null,null,{"$f":"Dataset[[#This Row],[2024/25 From - Spending review Topic 1]]+Dataset[[#This Row],[2024/25 From - Spending review Topic 2]]+Dataset[[#This Row],[2024/25 From - Spending review Topic 3]]+Dataset[[#This Row],[2024/25 From - Spending review Topic 4]]+Dataset[[#This Row],[2024/25 From - Other reallocations]]","v":0},{"$f":"Dataset[[#This Row],[2025/26 From - Spending review Topic 1]]+Dataset[[#This Row],[2025/26 From - Spending review Topic 2]]+Dataset[[#This Row],[2025/26 From - Spending review Topic 3]]+Dataset[[#This Row],[2025/26 From - Spending review Topic 4]]+Dataset[[#This Row],[2025/26 From - Other reallocations]]","v":0},{"$f":"Dataset[[#This Row],[2026/27 From - Spending review Topic 1]]+Dataset[[#This Row],[2026/27 From - Spending review Topic 2]]+Dataset[[#This Row],[2026/27 From - Spending review Topic 3]]+Dataset[[#This Row],[2026/27 From - Spending review Topic 4]]+Dataset[[#This Row],[2026/27 From - Other reallocations]]","v":0},{"$f":"Dataset[[#This Row],[2024/25 To - Spending review Topic 1]]+Dataset[[#This Row],[2024/25 To - Spending review Topic 2]]+Dataset[[#This Row],[2024/25 To - Spending review Topic 3]]+Dataset[[#This Row],[2024/25 To - Spending review Topic 4]]+Dataset[[#This Row],[2024/25 To - Other reallocations]]","v":0},{"$f":"Dataset[[#This Row],[2025/26 To - Spending review Topic 1]]+Dataset[[#This Row],[2025/26 To - Spending review Topic 2]]+Dataset[[#This Row],[2025/26 To - Spending review Topic 3]]+Dataset[[#This Row],[2025/26 To - Spending review Topic 4]]+Dataset[[#This Row],[2025/26 To - Other reallocations]]","v":0},{"$f":"Dataset[[#This Row],[2026/27 To - Spending review Topic 1]]+Dataset[[#This Row],[2026/27 To - Spending review Topic 2]]+Dataset[[#This Row],[2026/27 To - Spending review Topic 3]]+Dataset[[#This Row],[2026/27 To - Spending review Topic 4]]+Dataset[[#This Row],[2026/27 To - Other reallocations]]","v":0},{"$f":"Dataset[[#This Row],[2024/25 Reduction]]+Dataset[[#This Row],[2024/25 From - Total]]","v":0},{"$f":"Dataset[[#This Row],[2025/26 Reduction]]+Dataset[[#This Row],[2025/26 From - Total]]","v":0},{"$f":"Dataset[[#This Row],[2026/27 Reduction]]+Dataset[[#This Row],[2026/27 From - Total]]","v":0},{"$f":"Dataset[[#This Row],[2023/24 Reduction]]","v":0},{"$f":"SUM(Dataset[[#This Row],[2024/25 Reduction]],Dataset[[#This Row],[2024/25 From - Total]],Dataset[[#This Row],[2024/25 To - Total]])","v":0},{"$f":"SUM(Dataset[[#This Row],[2025/26 Reduction]],Dataset[[#This Row],[2025/26 From - Total]],Dataset[[#This Row],[2025/26 To - Total]])","v":0},{"$f":"SUM(Dataset[[#This Row],[2026/27 Reduction]],Dataset[[#This Row],[2026/27 From - Total]],Dataset[[#This Row],[2026/27 To - Total]])","v":0},{"$f":"Dataset[[#This Row],[2023/24 Baseline]]+Dataset[[#This Row],[2023/24 Total change]]","v":4500},{"$f":"Dataset[[#This Row],[2024/25 Baseline]]+Dataset[[#This Row],[2024/25 Total change]]","v":5000},{"$f":"Dataset[[#This Row],[2025/26 Baseline]]+Dataset[[#This Row],[2025/26 Total change]]","v":5500},{"$f":"Dataset[[#This Row],[2026/27 Baseline]]+Dataset[[#This Row],[2026/27 Total change]]","v":5752}]
["NAT|Non-transfer item","26|Other transfers to households","2024_25","MTEF2024",26,2,2,44483,596,"26","02","02","044483","000596","26|02|02","01","02","10","53","57","01|02|10|53|57","National","Military Veterans","Socioeconomic Support","Health Care and Wellbeing Support","Non-transfer item","Current","Transfers and subsidies","Households","Other transfers to households","Other transfers to households","Peace and security","Defence and state security","NAT",0,0,0,0,0,0,0,0,0,0,0,null,null,null,null,null,null,null,null,null,null,null,null,null,null,null,null,null,null,null,null,null,null,null,null,null,null,null,null,null,null,null,null,null,null,{"$f":"Dataset[[#This Row],[2024/25 From - Spending review Topic 1]]+Dataset[[#This Row],[2024/25 From - Spending review Topic 2]]+Dataset[[#This Row],[2024/25 From - Spending review Topic 3]]+Dataset[[#This Row],[2024/25 From - Spending review Topic 4]]+Dataset[[#This Row],[2024/25 From - Other reallocations]]","v":0},{"$f":"Dataset[[#This Row],[2025/26 From - Spending review Topic 1]]+Dataset[[#This Row],[2025/26 From - Spending review Topic 2]]+Dataset[[#This Row],[2025/26 From - Spending review Topic 3]]+Dataset[[#This Row],[2025/26 From - Spending review Topic 4]]+Dataset[[#This Row],[2025/26 From - Other reallocations]]","v":0},{"$f":"Dataset[[#This Row],[2026/27 From - Spending review Topic 1]]+Dataset[[#This Row],[2026/27 From - Spending review Topic 2]]+Dataset[[#This Row],[2026/27 From - Spending review Topic 3]]+Dataset[[#This Row],[2026/27 From - Spending review Topic 4]]+Dataset[[#This Row],[2026/27 From - Other reallocations]]","v":0},{"$f":"Dataset[[#This Row],[2024/25 To - Spending review Topic 1]]+Dataset[[#This Row],[2024/25 To - Spending review Topic 2]]+Dataset[[#This Row],[2024/25 To - Spending review Topic 3]]+Dataset[[#This Row],[2024/25 To - Spending review Topic 4]]+Dataset[[#This Row],[2024/25 To - Other reallocations]]","v":0},{"$f":"Dataset[[#This Row],[2025/26 To - Spending review Topic 1]]+Dataset[[#This Row],[2025/26 To - Spending review Topic 2]]+Dataset[[#This Row],[2025/26 To - Spending review Topic 3]]+Dataset[[#This Row],[2025/26 To - Spending review Topic 4]]+Dataset[[#This Row],[2025/26 To - Other reallocations]]","v":0},{"$f":"Dataset[[#This Row],[2026/27 To - Spending review Topic 1]]+Dataset[[#This Row],[2026/27 To - Spending review Topic 2]]+Dataset[[#This Row],[2026/27 To - Spending review Topic 3]]+Dataset[[#This Row],[2026/27 To - Spending review Topic 4]]+Dataset[[#This Row],[2026/27 To - Other reallocations]]","v":0},{"$f":"Dataset[[#This Row],[2024/25 Reduction]]+Dataset[[#This Row],[2024/25 From - Total]]","v":0},{"$f":"Dataset[[#This Row],[2025/26 Reduction]]+Dataset[[#This Row],[2025/26 From - Total]]","v":0},{"$f":"Dataset[[#This Row],[2026/27 Reduction]]+Dataset[[#This Row],[2026/27 From - Total]]","v":0},{"$f":"Dataset[[#This Row],[2023/24 Reduction]]","v":0},{"$f":"SUM(Dataset[[#This Row],[2024/25 Reduction]],Dataset[[#This Row],[2024/25 From - Total]],Dataset[[#This Row],[2024/25 To - Total]])","v":0},{"$f":"SUM(Dataset[[#This Row],[2025/26 Reduction]],Dataset[[#This Row],[2025/26 From - Total]],Dataset[[#This Row],[2025/26 To - Total]])","v":0},{"$f":"SUM(Dataset[[#This Row],[2026/27 Reduction]],Dataset[[#This Row],[2026/27 From - Total]],Dataset[[#This Row],[2026/27 To - Total]])","v":0},{"$f":"Dataset[[#This Row],[2023/24 Baseline]]+Dataset[[#This Row],[2023/24 Total change]]","v":0},{"$f":"Dataset[[#This Row],[2024/25 Baseline]]+Dataset[[#This Row],[2024/25 Total change]]","v":0},{"$f":"Dataset[[#This Row],[2025/26 Baseline]]+Dataset[[#This Row],[2025/26 Total change]]","v":0},{"$f":"Dataset[[#This Row],[2026/27 Baseline]]+Dataset[[#This Row],[2026/27 Total change]]","v":0}]
["NAT|Non-transfer item","26|Provincial Revenue Funds","2024_25","MTEF2024",26,2,2,44484,597,"26","02","02","044484","000597","26|02|02","02","02","04","43","43","02|02|04|43|43","National","Military Veterans","Socioeconomic Support","Health Care and Wellbeing Support","Non-transfer item","Capital","Transfers and subsidies","Provinces and municipalities","Provinces","Provincial Revenue Funds","Peace and security","Defence and state security","NAT",0,0,0,0,0,0,0,0,0,0,0,null,null,null,null,null,null,null,null,null,null,null,null,null,null,null,null,null,null,null,null,null,null,null,null,null,null,null,null,null,null,null,null,null,null,{"$f":"Dataset[[#This Row],[2024/25 From - Spending review Topic 1]]+Dataset[[#This Row],[2024/25 From - Spending review Topic 2]]+Dataset[[#This Row],[2024/25 From - Spending review Topic 3]]+Dataset[[#This Row],[2024/25 From - Spending review Topic 4]]+Dataset[[#This Row],[2024/25 From - Other reallocations]]","v":0},{"$f":"Dataset[[#This Row],[2025/26 From - Spending review Topic 1]]+Dataset[[#This Row],[2025/26 From - Spending review Topic 2]]+Dataset[[#This Row],[2025/26 From - Spending review Topic 3]]+Dataset[[#This Row],[2025/26 From - Spending review Topic 4]]+Dataset[[#This Row],[2025/26 From - Other reallocations]]","v":0},{"$f":"Dataset[[#This Row],[2026/27 From - Spending review Topic 1]]+Dataset[[#This Row],[2026/27 From - Spending review Topic 2]]+Dataset[[#This Row],[2026/27 From - Spending review Topic 3]]+Dataset[[#This Row],[2026/27 From - Spending review Topic 4]]+Dataset[[#This Row],[2026/27 From - Other reallocations]]","v":0},{"$f":"Dataset[[#This Row],[2024/25 To - Spending review Topic 1]]+Dataset[[#This Row],[2024/25 To - Spending review Topic 2]]+Dataset[[#This Row],[2024/25 To - Spending review Topic 3]]+Dataset[[#This Row],[2024/25 To - Spending review Topic 4]]+Dataset[[#This Row],[2024/25 To - Other reallocations]]","v":0},{"$f":"Dataset[[#This Row],[2025/26 To - Spending review Topic 1]]+Dataset[[#This Row],[2025/26 To - Spending review Topic 2]]+Dataset[[#This Row],[2025/26 To - Spending review Topic 3]]+Dataset[[#This Row],[2025/26 To - Spending review Topic 4]]+Dataset[[#This Row],[2025/26 To - Other reallocations]]","v":0},{"$f":"Dataset[[#This Row],[2026/27 To - Spending review Topic 1]]+Dataset[[#This Row],[2026/27 To - Spending review Topic 2]]+Dataset[[#This Row],[2026/27 To - Spending review Topic 3]]+Dataset[[#This Row],[2026/27 To - Spending review Topic 4]]+Dataset[[#This Row],[2026/27 To - Other reallocations]]","v":0},{"$f":"Dataset[[#This Row],[2024/25 Reduction]]+Dataset[[#This Row],[2024/25 From - Total]]","v":0},{"$f":"Dataset[[#This Row],[2025/26 Reduction]]+Dataset[[#This Row],[2025/26 From - Total]]","v":0},{"$f":"Dataset[[#This Row],[2026/27 Reduction]]+Dataset[[#This Row],[2026/27 From - Total]]","v":0},{"$f":"Dataset[[#This Row],[2023/24 Reduction]]","v":0},{"$f":"SUM(Dataset[[#This Row],[2024/25 Reduction]],Dataset[[#This Row],[2024/25 From - Total]],Dataset[[#This Row],[2024/25 To - Total]])","v":0},{"$f":"SUM(Dataset[[#This Row],[2025/26 Reduction]],Dataset[[#This Row],[2025/26 From - Total]],Dataset[[#This Row],[2025/26 To - Total]])","v":0},{"$f":"SUM(Dataset[[#This Row],[2026/27 Reduction]],Dataset[[#This Row],[2026/27 From - Total]],Dataset[[#This Row],[2026/27 To - Total]])","v":0},{"$f":"Dataset[[#This Row],[2023/24 Baseline]]+Dataset[[#This Row],[2023/24 Total change]]","v":0},{"$f":"Dataset[[#This Row],[2024/25 Baseline]]+Dataset[[#This Row],[2024/25 Total change]]","v":0},{"$f":"Dataset[[#This Row],[2025/26 Baseline]]+Dataset[[#This Row],[2025/26 Total change]]","v":0},{"$f":"Dataset[[#This Row],[2026/27 Baseline]]+Dataset[[#This Row],[2026/27 Total change]]","v":0}]
["NAT|Non-transfer item","26|Municipal bank accounts","2024_25","MTEF2024",26,2,2,44485,598,"26","02","02","044485","000598","26|02|02","02","02","04","44","45","02|02|04|44|45","National","Military Veterans","Socioeconomic Support","Health Care and Wellbeing Support","Non-transfer item","Capital","Transfers and subsidies","Provinces and municipalities","Municipalities","Municipal bank accounts","Peace and security","Defence and state security","NAT",0,0,0,0,0,0,0,0,0,0,0,null,null,null,null,null,null,null,null,null,null,null,null,null,null,null,null,null,null,null,null,null,null,null,null,null,null,null,null,null,null,null,null,null,null,{"$f":"Dataset[[#This Row],[2024/25 From - Spending review Topic 1]]+Dataset[[#This Row],[2024/25 From - Spending review Topic 2]]+Dataset[[#This Row],[2024/25 From - Spending review Topic 3]]+Dataset[[#This Row],[2024/25 From - Spending review Topic 4]]+Dataset[[#This Row],[2024/25 From - Other reallocations]]","v":0},{"$f":"Dataset[[#This Row],[2025/26 From - Spending review Topic 1]]+Dataset[[#This Row],[2025/26 From - Spending review Topic 2]]+Dataset[[#This Row],[2025/26 From - Spending review Topic 3]]+Dataset[[#This Row],[2025/26 From - Spending review Topic 4]]+Dataset[[#This Row],[2025/26 From - Other reallocations]]","v":0},{"$f":"Dataset[[#This Row],[2026/27 From - Spending review Topic 1]]+Dataset[[#This Row],[2026/27 From - Spending review Topic 2]]+Dataset[[#This Row],[2026/27 From - Spending review Topic 3]]+Dataset[[#This Row],[2026/27 From - Spending review Topic 4]]+Dataset[[#This Row],[2026/27 From - Other reallocations]]","v":0},{"$f":"Dataset[[#This Row],[2024/25 To - Spending review Topic 1]]+Dataset[[#This Row],[2024/25 To - Spending review Topic 2]]+Dataset[[#This Row],[2024/25 To - Spending review Topic 3]]+Dataset[[#This Row],[2024/25 To - Spending review Topic 4]]+Dataset[[#This Row],[2024/25 To - Other reallocations]]","v":0},{"$f":"Dataset[[#This Row],[2025/26 To - Spending review Topic 1]]+Dataset[[#This Row],[2025/26 To - Spending review Topic 2]]+Dataset[[#This Row],[2025/26 To - Spending review Topic 3]]+Dataset[[#This Row],[2025/26 To - Spending review Topic 4]]+Dataset[[#This Row],[2025/26 To - Other reallocations]]","v":0},{"$f":"Dataset[[#This Row],[2026/27 To - Spending review Topic 1]]+Dataset[[#This Row],[2026/27 To - Spending review Topic 2]]+Dataset[[#This Row],[2026/27 To - Spending review Topic 3]]+Dataset[[#This Row],[2026/27 To - Spending review Topic 4]]+Dataset[[#This Row],[2026/27 To - Other reallocations]]","v":0},{"$f":"Dataset[[#This Row],[2024/25 Reduction]]+Dataset[[#This Row],[2024/25 From - Total]]","v":0},{"$f":"Dataset[[#This Row],[2025/26 Reduction]]+Dataset[[#This Row],[2025/26 From - Total]]","v":0},{"$f":"Dataset[[#This Row],[2026/27 Reduction]]+Dataset[[#This Row],[2026/27 From - Total]]","v":0},{"$f":"Dataset[[#This Row],[2023/24 Reduction]]","v":0},{"$f":"SUM(Dataset[[#This Row],[2024/25 Reduction]],Dataset[[#This Row],[2024/25 From - Total]],Dataset[[#This Row],[2024/25 To - Total]])","v":0},{"$f":"SUM(Dataset[[#This Row],[2025/26 Reduction]],Dataset[[#This Row],[2025/26 From - Total]],Dataset[[#This Row],[2025/26 To - Total]])","v":0},{"$f":"SUM(Dataset[[#This Row],[2026/27 Reduction]],Dataset[[#This Row],[2026/27 From - Total]],Dataset[[#This Row],[2026/27 To - Total]])","v":0},{"$f":"Dataset[[#This Row],[2023/24 Baseline]]+Dataset[[#This Row],[2023/24 Total change]]","v":0},{"$f":"Dataset[[#This Row],[2024/25 Baseline]]+Dataset[[#This Row],[2024/25 Total change]]","v":0},{"$f":"Dataset[[#This Row],[2025/26 Baseline]]+Dataset[[#This Row],[2025/26 Total change]]","v":0},{"$f":"Dataset[[#This Row],[2026/27 Baseline]]+Dataset[[#This Row],[2026/27 Total change]]","v":0}]
["NAT|Non-transfer item","26|Departmental agencies (non-business entities)","2024_25","MTEF2024",26,2,2,44486,599,"26","02","02","044486","000599","26|02|02","02","02","05","46","48","02|02|05|46|48","National","Military Veterans","Socioeconomic Support","Health Care and Wellbeing Support","Non-transfer item","Capital","Transfers and subsidies","Departmental agencies and accounts","Departmental agencies (non-business entities)","Departmental agencies (non-business entities)","Peace and security","Defence and state security","NAT",0,0,0,0,0,0,0,0,0,0,0,null,null,null,null,null,null,null,null,null,null,null,null,null,null,null,null,null,null,null,null,null,null,null,null,null,null,null,null,null,null,null,null,null,null,{"$f":"Dataset[[#This Row],[2024/25 From - Spending review Topic 1]]+Dataset[[#This Row],[2024/25 From - Spending review Topic 2]]+Dataset[[#This Row],[2024/25 From - Spending review Topic 3]]+Dataset[[#This Row],[2024/25 From - Spending review Topic 4]]+Dataset[[#This Row],[2024/25 From - Other reallocations]]","v":0},{"$f":"Dataset[[#This Row],[2025/26 From - Spending review Topic 1]]+Dataset[[#This Row],[2025/26 From - Spending review Topic 2]]+Dataset[[#This Row],[2025/26 From - Spending review Topic 3]]+Dataset[[#This Row],[2025/26 From - Spending review Topic 4]]+Dataset[[#This Row],[2025/26 From - Other reallocations]]","v":0},{"$f":"Dataset[[#This Row],[2026/27 From - Spending review Topic 1]]+Dataset[[#This Row],[2026/27 From - Spending review Topic 2]]+Dataset[[#This Row],[2026/27 From - Spending review Topic 3]]+Dataset[[#This Row],[2026/27 From - Spending review Topic 4]]+Dataset[[#This Row],[2026/27 From - Other reallocations]]","v":0},{"$f":"Dataset[[#This Row],[2024/25 To - Spending review Topic 1]]+Dataset[[#This Row],[2024/25 To - Spending review Topic 2]]+Dataset[[#This Row],[2024/25 To - Spending review Topic 3]]+Dataset[[#This Row],[2024/25 To - Spending review Topic 4]]+Dataset[[#This Row],[2024/25 To - Other reallocations]]","v":0},{"$f":"Dataset[[#This Row],[2025/26 To - Spending review Topic 1]]+Dataset[[#This Row],[2025/26 To - Spending review Topic 2]]+Dataset[[#This Row],[2025/26 To - Spending review Topic 3]]+Dataset[[#This Row],[2025/26 To - Spending review Topic 4]]+Dataset[[#This Row],[2025/26 To - Other reallocations]]","v":0},{"$f":"Dataset[[#This Row],[2026/27 To - Spending review Topic 1]]+Dataset[[#This Row],[2026/27 To - Spending review Topic 2]]+Dataset[[#This Row],[2026/27 To - Spending review Topic 3]]+Dataset[[#This Row],[2026/27 To - Spending review Topic 4]]+Dataset[[#This Row],[2026/27 To - Other reallocations]]","v":0},{"$f":"Dataset[[#This Row],[2024/25 Reduction]]+Dataset[[#This Row],[2024/25 From - Total]]","v":0},{"$f":"Dataset[[#This Row],[2025/26 Reduction]]+Dataset[[#This Row],[2025/26 From - Total]]","v":0},{"$f":"Dataset[[#This Row],[2026/27 Reduction]]+Dataset[[#This Row],[2026/27 From - Total]]","v":0},{"$f":"Dataset[[#This Row],[2023/24 Reduction]]","v":0},{"$f":"SUM(Dataset[[#This Row],[2024/25 Reduction]],Dataset[[#This Row],[2024/25 From - Total]],Dataset[[#This Row],[2024/25 To - Total]])","v":0},{"$f":"SUM(Dataset[[#This Row],[2025/26 Reduction]],Dataset[[#This Row],[2025/26 From - Total]],Dataset[[#This Row],[2025/26 To - Total]])","v":0},{"$f":"SUM(Dataset[[#This Row],[2026/27 Reduction]],Dataset[[#This Row],[2026/27 From - Total]],Dataset[[#This Row],[2026/27 To - Total]])","v":0},{"$f":"Dataset[[#This Row],[2023/24 Baseline]]+Dataset[[#This Row],[2023/24 Total change]]","v":0},{"$f":"Dataset[[#This Row],[2024/25 Baseline]]+Dataset[[#This Row],[2024/25 Total change]]","v":0},{"$f":"Dataset[[#This Row],[2025/26 Baseline]]+Dataset[[#This Row],[2025/26 Total change]]","v":0},{"$f":"Dataset[[#This Row],[2026/27 Baseline]]+Dataset[[#This Row],[2026/27 Total change]]","v":0}]
["NAT|Non-transfer item","26|Higher education institutions","2024_25","MTEF2024",26,2,2,44487,600,"26","02","02","044487","000600","26|02|02","02","02","06","47","49","02|02|06|47|49","National","Military Veterans","Socioeconomic Support","Health Care and Wellbeing Support","Non-transfer item","Capital","Transfers and subsidies","Higher education institutions","Higher education institutions","Higher education institutions","Peace and security","Defence and state security","NAT",0,0,0,0,0,0,0,0,0,0,0,null,null,null,null,null,null,null,null,null,null,null,null,null,null,null,null,null,null,null,null,null,null,null,null,null,null,null,null,null,null,null,null,null,null,{"$f":"Dataset[[#This Row],[2024/25 From - Spending review Topic 1]]+Dataset[[#This Row],[2024/25 From - Spending review Topic 2]]+Dataset[[#This Row],[2024/25 From - Spending review Topic 3]]+Dataset[[#This Row],[2024/25 From - Spending review Topic 4]]+Dataset[[#This Row],[2024/25 From - Other reallocations]]","v":0},{"$f":"Dataset[[#This Row],[2025/26 From - Spending review Topic 1]]+Dataset[[#This Row],[2025/26 From - Spending review Topic 2]]+Dataset[[#This Row],[2025/26 From - Spending review Topic 3]]+Dataset[[#This Row],[2025/26 From - Spending review Topic 4]]+Dataset[[#This Row],[2025/26 From - Other reallocations]]","v":0},{"$f":"Dataset[[#This Row],[2026/27 From - Spending review Topic 1]]+Dataset[[#This Row],[2026/27 From - Spending review Topic 2]]+Dataset[[#This Row],[2026/27 From - Spending review Topic 3]]+Dataset[[#This Row],[2026/27 From - Spending review Topic 4]]+Dataset[[#This Row],[2026/27 From - Other reallocations]]","v":0},{"$f":"Dataset[[#This Row],[2024/25 To - Spending review Topic 1]]+Dataset[[#This Row],[2024/25 To - Spending review Topic 2]]+Dataset[[#This Row],[2024/25 To - Spending review Topic 3]]+Dataset[[#This Row],[2024/25 To - Spending review Topic 4]]+Dataset[[#This Row],[2024/25 To - Other reallocations]]","v":0},{"$f":"Dataset[[#This Row],[2025/26 To - Spending review Topic 1]]+Dataset[[#This Row],[2025/26 To - Spending review Topic 2]]+Dataset[[#This Row],[2025/26 To - Spending review Topic 3]]+Dataset[[#This Row],[2025/26 To - Spending review Topic 4]]+Dataset[[#This Row],[2025/26 To - Other reallocations]]","v":0},{"$f":"Dataset[[#This Row],[2026/27 To - Spending review Topic 1]]+Dataset[[#This Row],[2026/27 To - Spending review Topic 2]]+Dataset[[#This Row],[2026/27 To - Spending review Topic 3]]+Dataset[[#This Row],[2026/27 To - Spending review Topic 4]]+Dataset[[#This Row],[2026/27 To - Other reallocations]]","v":0},{"$f":"Dataset[[#This Row],[2024/25 Reduction]]+Dataset[[#This Row],[2024/25 From - Total]]","v":0},{"$f":"Dataset[[#This Row],[2025/26 Reduction]]+Dataset[[#This Row],[2025/26 From - Total]]","v":0},{"$f":"Dataset[[#This Row],[2026/27 Reduction]]+Dataset[[#This Row],[2026/27 From - Total]]","v":0},{"$f":"Dataset[[#This Row],[2023/24 Reduction]]","v":0},{"$f":"SUM(Dataset[[#This Row],[2024/25 Reduction]],Dataset[[#This Row],[2024/25 From - Total]],Dataset[[#This Row],[2024/25 To - Total]])","v":0},{"$f":"SUM(Dataset[[#This Row],[2025/26 Reduction]],Dataset[[#This Row],[2025/26 From - Total]],Dataset[[#This Row],[2025/26 To - Total]])","v":0},{"$f":"SUM(Dataset[[#This Row],[2026/27 Reduction]],Dataset[[#This Row],[2026/27 From - Total]],Dataset[[#This Row],[2026/27 To - Total]])","v":0},{"$f":"Dataset[[#This Row],[2023/24 Baseline]]+Dataset[[#This Row],[2023/24 Total change]]","v":0},{"$f":"Dataset[[#This Row],[2024/25 Baseline]]+Dataset[[#This Row],[2024/25 Total change]]","v":0},{"$f":"Dataset[[#This Row],[2025/26 Baseline]]+Dataset[[#This Row],[2025/26 Total change]]","v":0},{"$f":"Dataset[[#This Row],[2026/27 Baseline]]+Dataset[[#This Row],[2026/27 Total change]]","v":0}]
["NAT|Non-transfer item","26|Foreign governments and international organisations","2024_25","MTEF2024",26,2,2,44488,601,"26","02","02","044488","000601","26|02|02","02","02","07","48","50","02|02|07|48|50","National","Military Veterans","Socioeconomic Support","Health Care and Wellbeing Support","Non-transfer item","Capital","Transfers and subsidies","Foreign governments and international organisations","Foreign governments and international organisations","Foreign governments and international organisations","Peace and security","Defence and state security","NAT",0,0,0,0,0,0,0,0,0,0,0,null,null,null,null,null,null,null,null,null,null,null,null,null,null,null,null,null,null,null,null,null,null,null,null,null,null,null,null,null,null,null,null,null,null,{"$f":"Dataset[[#This Row],[2024/25 From - Spending review Topic 1]]+Dataset[[#This Row],[2024/25 From - Spending review Topic 2]]+Dataset[[#This Row],[2024/25 From - Spending review Topic 3]]+Dataset[[#This Row],[2024/25 From - Spending review Topic 4]]+Dataset[[#This Row],[2024/25 From - Other reallocations]]","v":0},{"$f":"Dataset[[#This Row],[2025/26 From - Spending review Topic 1]]+Dataset[[#This Row],[2025/26 From - Spending review Topic 2]]+Dataset[[#This Row],[2025/26 From - Spending review Topic 3]]+Dataset[[#This Row],[2025/26 From - Spending review Topic 4]]+Dataset[[#This Row],[2025/26 From - Other reallocations]]","v":0},{"$f":"Dataset[[#This Row],[2026/27 From - Spending review Topic 1]]+Dataset[[#This Row],[2026/27 From - Spending review Topic 2]]+Dataset[[#This Row],[2026/27 From - Spending review Topic 3]]+Dataset[[#This Row],[2026/27 From - Spending review Topic 4]]+Dataset[[#This Row],[2026/27 From - Other reallocations]]","v":0},{"$f":"Dataset[[#This Row],[2024/25 To - Spending review Topic 1]]+Dataset[[#This Row],[2024/25 To - Spending review Topic 2]]+Dataset[[#This Row],[2024/25 To - Spending review Topic 3]]+Dataset[[#This Row],[2024/25 To - Spending review Topic 4]]+Dataset[[#This Row],[2024/25 To - Other reallocations]]","v":0},{"$f":"Dataset[[#This Row],[2025/26 To - Spending review Topic 1]]+Dataset[[#This Row],[2025/26 To - Spending review Topic 2]]+Dataset[[#This Row],[2025/26 To - Spending review Topic 3]]+Dataset[[#This Row],[2025/26 To - Spending review Topic 4]]+Dataset[[#This Row],[2025/26 To - Other reallocations]]","v":0},{"$f":"Dataset[[#This Row],[2026/27 To - Spending review Topic 1]]+Dataset[[#This Row],[2026/27 To - Spending review Topic 2]]+Dataset[[#This Row],[2026/27 To - Spending review Topic 3]]+Dataset[[#This Row],[2026/27 To - Spending review Topic 4]]+Dataset[[#This Row],[2026/27 To - Other reallocations]]","v":0},{"$f":"Dataset[[#This Row],[2024/25 Reduction]]+Dataset[[#This Row],[2024/25 From - Total]]","v":0},{"$f":"Dataset[[#This Row],[2025/26 Reduction]]+Dataset[[#This Row],[2025/26 From - Total]]","v":0},{"$f":"Dataset[[#This Row],[2026/27 Reduction]]+Dataset[[#This Row],[2026/27 From - Total]]","v":0},{"$f":"Dataset[[#This Row],[2023/24 Reduction]]","v":0},{"$f":"SUM(Dataset[[#This Row],[2024/25 Reduction]],Dataset[[#This Row],[2024/25 From - Total]],Dataset[[#This Row],[2024/25 To - Total]])","v":0},{"$f":"SUM(Dataset[[#This Row],[2025/26 Reduction]],Dataset[[#This Row],[2025/26 From - Total]],Dataset[[#This Row],[2025/26 To - Total]])","v":0},{"$f":"SUM(Dataset[[#This Row],[2026/27 Reduction]],Dataset[[#This Row],[2026/27 From - Total]],Dataset[[#This Row],[2026/27 To - Total]])","v":0},{"$f":"Dataset[[#This Row],[2023/24 Baseline]]+Dataset[[#This Row],[2023/24 Total change]]","v":0},{"$f":"Dataset[[#This Row],[2024/25 Baseline]]+Dataset[[#This Row],[2024/25 Total change]]","v":0},{"$f":"Dataset[[#This Row],[2025/26 Baseline]]+Dataset[[#This Row],[2025/26 Total change]]","v":0},{"$f":"Dataset[[#This Row],[2026/27 Baseline]]+Dataset[[#This Row],[2026/27 Total change]]","v":0}]
["NAT|Non-transfer item","26|Subsidies on products and production (pc)","2024_25","MTEF2024",26,2,2,44489,602,"26","02","02","044489","000602","26|02|02","02","02","08","49","51","02|02|08|49|51","National","Military Veterans","Socioeconomic Support","Health Care and Wellbeing Support","Non-transfer item","Capital","Transfers and subsidies","Public corporations and private enterprises","Public corporations","Subsidies on products and production (pc)","Peace and security","Defence and state security","NAT",0,0,0,0,0,0,0,0,0,0,0,null,null,null,null,null,null,null,null,null,null,null,null,null,null,null,null,null,null,null,null,null,null,null,null,null,null,null,null,null,null,null,null,null,null,{"$f":"Dataset[[#This Row],[2024/25 From - Spending review Topic 1]]+Dataset[[#This Row],[2024/25 From - Spending review Topic 2]]+Dataset[[#This Row],[2024/25 From - Spending review Topic 3]]+Dataset[[#This Row],[2024/25 From - Spending review Topic 4]]+Dataset[[#This Row],[2024/25 From - Other reallocations]]","v":0},{"$f":"Dataset[[#This Row],[2025/26 From - Spending review Topic 1]]+Dataset[[#This Row],[2025/26 From - Spending review Topic 2]]+Dataset[[#This Row],[2025/26 From - Spending review Topic 3]]+Dataset[[#This Row],[2025/26 From - Spending review Topic 4]]+Dataset[[#This Row],[2025/26 From - Other reallocations]]","v":0},{"$f":"Dataset[[#This Row],[2026/27 From - Spending review Topic 1]]+Dataset[[#This Row],[2026/27 From - Spending review Topic 2]]+Dataset[[#This Row],[2026/27 From - Spending review Topic 3]]+Dataset[[#This Row],[2026/27 From - Spending review Topic 4]]+Dataset[[#This Row],[2026/27 From - Other reallocations]]","v":0},{"$f":"Dataset[[#This Row],[2024/25 To - Spending review Topic 1]]+Dataset[[#This Row],[2024/25 To - Spending review Topic 2]]+Dataset[[#This Row],[2024/25 To - Spending review Topic 3]]+Dataset[[#This Row],[2024/25 To - Spending review Topic 4]]+Dataset[[#This Row],[2024/25 To - Other reallocations]]","v":0},{"$f":"Dataset[[#This Row],[2025/26 To - Spending review Topic 1]]+Dataset[[#This Row],[2025/26 To - Spending review Topic 2]]+Dataset[[#This Row],[2025/26 To - Spending review Topic 3]]+Dataset[[#This Row],[2025/26 To - Spending review Topic 4]]+Dataset[[#This Row],[2025/26 To - Other reallocations]]","v":0},{"$f":"Dataset[[#This Row],[2026/27 To - Spending review Topic 1]]+Dataset[[#This Row],[2026/27 To - Spending review Topic 2]]+Dataset[[#This Row],[2026/27 To - Spending review Topic 3]]+Dataset[[#This Row],[2026/27 To - Spending review Topic 4]]+Dataset[[#This Row],[2026/27 To - Other reallocations]]","v":0},{"$f":"Dataset[[#This Row],[2024/25 Reduction]]+Dataset[[#This Row],[2024/25 From - Total]]","v":0},{"$f":"Dataset[[#This Row],[2025/26 Reduction]]+Dataset[[#This Row],[2025/26 From - Total]]","v":0},{"$f":"Dataset[[#This Row],[2026/27 Reduction]]+Dataset[[#This Row],[2026/27 From - Total]]","v":0},{"$f":"Dataset[[#This Row],[2023/24 Reduction]]","v":0},{"$f":"SUM(Dataset[[#This Row],[2024/25 Reduction]],Dataset[[#This Row],[2024/25 From - Total]],Dataset[[#This Row],[2024/25 To - Total]])","v":0},{"$f":"SUM(Dataset[[#This Row],[2025/26 Reduction]],Dataset[[#This Row],[2025/26 From - Total]],Dataset[[#This Row],[2025/26 To - Total]])","v":0},{"$f":"SUM(Dataset[[#This Row],[2026/27 Reduction]],Dataset[[#This Row],[2026/27 From - Total]],Dataset[[#This Row],[2026/27 To - Total]])","v":0},{"$f":"Dataset[[#This Row],[2023/24 Baseline]]+Dataset[[#This Row],[2023/24 Total change]]","v":0},{"$f":"Dataset[[#This Row],[2024/25 Baseline]]+Dataset[[#This Row],[2024/25 Total change]]","v":0},{"$f":"Dataset[[#This Row],[2025/26 Baseline]]+Dataset[[#This Row],[2025/26 Total change]]","v":0},{"$f":"Dataset[[#This Row],[2026/27 Baseline]]+Dataset[[#This Row],[2026/27 Total change]]","v":0}]
["NAT|Non-transfer item","26|Other transfers to public corporations","2024_25","MTEF2024",26,2,2,44490,603,"26","02","02","044490","000603","26|02|02","02","02","08","49","52","02|02|08|49|52","National","Military Veterans","Socioeconomic Support","Health Care and Wellbeing Support","Non-transfer item","Capital","Transfers and subsidies","Public corporations and private enterprises","Public corporations","Other transfers to public corporations","Peace and security","Defence and state security","NAT",0,0,0,0,0,0,0,0,0,0,0,null,null,null,null,null,null,null,null,null,null,null,null,null,null,null,null,null,null,null,null,null,null,null,null,null,null,null,null,null,null,null,null,null,null,{"$f":"Dataset[[#This Row],[2024/25 From - Spending review Topic 1]]+Dataset[[#This Row],[2024/25 From - Spending review Topic 2]]+Dataset[[#This Row],[2024/25 From - Spending review Topic 3]]+Dataset[[#This Row],[2024/25 From - Spending review Topic 4]]+Dataset[[#This Row],[2024/25 From - Other reallocations]]","v":0},{"$f":"Dataset[[#This Row],[2025/26 From - Spending review Topic 1]]+Dataset[[#This Row],[2025/26 From - Spending review Topic 2]]+Dataset[[#This Row],[2025/26 From - Spending review Topic 3]]+Dataset[[#This Row],[2025/26 From - Spending review Topic 4]]+Dataset[[#This Row],[2025/26 From - Other reallocations]]","v":0},{"$f":"Dataset[[#This Row],[2026/27 From - Spending review Topic 1]]+Dataset[[#This Row],[2026/27 From - Spending review Topic 2]]+Dataset[[#This Row],[2026/27 From - Spending review Topic 3]]+Dataset[[#This Row],[2026/27 From - Spending review Topic 4]]+Dataset[[#This Row],[2026/27 From - Other reallocations]]","v":0},{"$f":"Dataset[[#This Row],[2024/25 To - Spending review Topic 1]]+Dataset[[#This Row],[2024/25 To - Spending review Topic 2]]+Dataset[[#This Row],[2024/25 To - Spending review Topic 3]]+Dataset[[#This Row],[2024/25 To - Spending review Topic 4]]+Dataset[[#This Row],[2024/25 To - Other reallocations]]","v":0},{"$f":"Dataset[[#This Row],[2025/26 To - Spending review Topic 1]]+Dataset[[#This Row],[2025/26 To - Spending review Topic 2]]+Dataset[[#This Row],[2025/26 To - Spending review Topic 3]]+Dataset[[#This Row],[2025/26 To - Spending review Topic 4]]+Dataset[[#This Row],[2025/26 To - Other reallocations]]","v":0},{"$f":"Dataset[[#This Row],[2026/27 To - Spending review Topic 1]]+Dataset[[#This Row],[2026/27 To - Spending review Topic 2]]+Dataset[[#This Row],[2026/27 To - Spending review Topic 3]]+Dataset[[#This Row],[2026/27 To - Spending review Topic 4]]+Dataset[[#This Row],[2026/27 To - Other reallocations]]","v":0},{"$f":"Dataset[[#This Row],[2024/25 Reduction]]+Dataset[[#This Row],[2024/25 From - Total]]","v":0},{"$f":"Dataset[[#This Row],[2025/26 Reduction]]+Dataset[[#This Row],[2025/26 From - Total]]","v":0},{"$f":"Dataset[[#This Row],[2026/27 Reduction]]+Dataset[[#This Row],[2026/27 From - Total]]","v":0},{"$f":"Dataset[[#This Row],[2023/24 Reduction]]","v":0},{"$f":"SUM(Dataset[[#This Row],[2024/25 Reduction]],Dataset[[#This Row],[2024/25 From - Total]],Dataset[[#This Row],[2024/25 To - Total]])","v":0},{"$f":"SUM(Dataset[[#This Row],[2025/26 Reduction]],Dataset[[#This Row],[2025/26 From - Total]],Dataset[[#This Row],[2025/26 To - Total]])","v":0},{"$f":"SUM(Dataset[[#This Row],[2026/27 Reduction]],Dataset[[#This Row],[2026/27 From - Total]],Dataset[[#This Row],[2026/27 To - Total]])","v":0},{"$f":"Dataset[[#This Row],[2023/24 Baseline]]+Dataset[[#This Row],[2023/24 Total change]]","v":0},{"$f":"Dataset[[#This Row],[2024/25 Baseline]]+Dataset[[#This Row],[2024/25 Total change]]","v":0},{"$f":"Dataset[[#This Row],[2025/26 Baseline]]+Dataset[[#This Row],[2025/26 Total change]]","v":0},{"$f":"Dataset[[#This Row],[2026/27 Baseline]]+Dataset[[#This Row],[2026/27 Total change]]","v":0}]
["NAT|Non-transfer item","26|Other transfers to private enterprises","2024_25","MTEF2024",26,2,2,44491,604,"26","02","02","044491","000604","26|02|02","02","02","08","50","54","02|02|08|50|54","National","Military Veterans","Socioeconomic Support","Health Care and Wellbeing Support","Non-transfer item","Capital","Transfers and subsidies","Public corporations and private enterprises","Private enterprises","Other transfers to private enterprises","Peace and security","Defence and state security","NAT",0,0,0,0,0,0,0,0,0,0,0,null,null,null,null,null,null,null,null,null,null,null,null,null,null,null,null,null,null,null,null,null,null,null,null,null,null,null,null,null,null,null,null,null,null,{"$f":"Dataset[[#This Row],[2024/25 From - Spending review Topic 1]]+Dataset[[#This Row],[2024/25 From - Spending review Topic 2]]+Dataset[[#This Row],[2024/25 From - Spending review Topic 3]]+Dataset[[#This Row],[2024/25 From - Spending review Topic 4]]+Dataset[[#This Row],[2024/25 From - Other reallocations]]","v":0},{"$f":"Dataset[[#This Row],[2025/26 From - Spending review Topic 1]]+Dataset[[#This Row],[2025/26 From - Spending review Topic 2]]+Dataset[[#This Row],[2025/26 From - Spending review Topic 3]]+Dataset[[#This Row],[2025/26 From - Spending review Topic 4]]+Dataset[[#This Row],[2025/26 From - Other reallocations]]","v":0},{"$f":"Dataset[[#This Row],[2026/27 From - Spending review Topic 1]]+Dataset[[#This Row],[2026/27 From - Spending review Topic 2]]+Dataset[[#This Row],[2026/27 From - Spending review Topic 3]]+Dataset[[#This Row],[2026/27 From - Spending review Topic 4]]+Dataset[[#This Row],[2026/27 From - Other reallocations]]","v":0},{"$f":"Dataset[[#This Row],[2024/25 To - Spending review Topic 1]]+Dataset[[#This Row],[2024/25 To - Spending review Topic 2]]+Dataset[[#This Row],[2024/25 To - Spending review Topic 3]]+Dataset[[#This Row],[2024/25 To - Spending review Topic 4]]+Dataset[[#This Row],[2024/25 To - Other reallocations]]","v":0},{"$f":"Dataset[[#This Row],[2025/26 To - Spending review Topic 1]]+Dataset[[#This Row],[2025/26 To - Spending review Topic 2]]+Dataset[[#This Row],[2025/26 To - Spending review Topic 3]]+Dataset[[#This Row],[2025/26 To - Spending review Topic 4]]+Dataset[[#This Row],[2025/26 To - Other reallocations]]","v":0},{"$f":"Dataset[[#This Row],[2026/27 To - Spending review Topic 1]]+Dataset[[#This Row],[2026/27 To - Spending review Topic 2]]+Dataset[[#This Row],[2026/27 To - Spending review Topic 3]]+Dataset[[#This Row],[2026/27 To - Spending review Topic 4]]+Dataset[[#This Row],[2026/27 To - Other reallocations]]","v":0},{"$f":"Dataset[[#This Row],[2024/25 Reduction]]+Dataset[[#This Row],[2024/25 From - Total]]","v":0},{"$f":"Dataset[[#This Row],[2025/26 Reduction]]+Dataset[[#This Row],[2025/26 From - Total]]","v":0},{"$f":"Dataset[[#This Row],[2026/27 Reduction]]+Dataset[[#This Row],[2026/27 From - Total]]","v":0},{"$f":"Dataset[[#This Row],[2023/24 Reduction]]","v":0},{"$f":"SUM(Dataset[[#This Row],[2024/25 Reduction]],Dataset[[#This Row],[2024/25 From - Total]],Dataset[[#This Row],[2024/25 To - Total]])","v":0},{"$f":"SUM(Dataset[[#This Row],[2025/26 Reduction]],Dataset[[#This Row],[2025/26 From - Total]],Dataset[[#This Row],[2025/26 To - Total]])","v":0},{"$f":"SUM(Dataset[[#This Row],[2026/27 Reduction]],Dataset[[#This Row],[2026/27 From - Total]],Dataset[[#This Row],[2026/27 To - Total]])","v":0},{"$f":"Dataset[[#This Row],[2023/24 Baseline]]+Dataset[[#This Row],[2023/24 Total change]]","v":0},{"$f":"Dataset[[#This Row],[2024/25 Baseline]]+Dataset[[#This Row],[2024/25 Total change]]","v":0},{"$f":"Dataset[[#This Row],[2025/26 Baseline]]+Dataset[[#This Row],[2025/26 Total change]]","v":0},{"$f":"Dataset[[#This Row],[2026/27 Baseline]]+Dataset[[#This Row],[2026/27 Total change]]","v":0}]
["NAT|Non-transfer item","26|Non-profit institutions","2024_25","MTEF2024",26,2,2,44492,605,"26","02","02","044492","000605","26|02|02","02","02","09","51","55","02|02|09|51|55","National","Military Veterans","Socioeconomic Support","Health Care and Wellbeing Support","Non-transfer item","Capital","Transfers and subsidies","Non-profit institutions","Non-profit institutions","Non-profit institutions","Peace and security","Defence and state security","NAT",0,0,0,0,0,0,0,0,0,0,0,null,null,null,null,null,null,null,null,null,null,null,null,null,null,null,null,null,null,null,null,null,null,null,null,null,null,null,null,null,null,null,null,null,null,{"$f":"Dataset[[#This Row],[2024/25 From - Spending review Topic 1]]+Dataset[[#This Row],[2024/25 From - Spending review Topic 2]]+Dataset[[#This Row],[2024/25 From - Spending review Topic 3]]+Dataset[[#This Row],[2024/25 From - Spending review Topic 4]]+Dataset[[#This Row],[2024/25 From - Other reallocations]]","v":0},{"$f":"Dataset[[#This Row],[2025/26 From - Spending review Topic 1]]+Dataset[[#This Row],[2025/26 From - Spending review Topic 2]]+Dataset[[#This Row],[2025/26 From - Spending review Topic 3]]+Dataset[[#This Row],[2025/26 From - Spending review Topic 4]]+Dataset[[#This Row],[2025/26 From - Other reallocations]]","v":0},{"$f":"Dataset[[#This Row],[2026/27 From - Spending review Topic 1]]+Dataset[[#This Row],[2026/27 From - Spending review Topic 2]]+Dataset[[#This Row],[2026/27 From - Spending review Topic 3]]+Dataset[[#This Row],[2026/27 From - Spending review Topic 4]]+Dataset[[#This Row],[2026/27 From - Other reallocations]]","v":0},{"$f":"Dataset[[#This Row],[2024/25 To - Spending review Topic 1]]+Dataset[[#This Row],[2024/25 To - Spending review Topic 2]]+Dataset[[#This Row],[2024/25 To - Spending review Topic 3]]+Dataset[[#This Row],[2024/25 To - Spending review Topic 4]]+Dataset[[#This Row],[2024/25 To - Other reallocations]]","v":0},{"$f":"Dataset[[#This Row],[2025/26 To - Spending review Topic 1]]+Dataset[[#This Row],[2025/26 To - Spending review Topic 2]]+Dataset[[#This Row],[2025/26 To - Spending review Topic 3]]+Dataset[[#This Row],[2025/26 To - Spending review Topic 4]]+Dataset[[#This Row],[2025/26 To - Other reallocations]]","v":0},{"$f":"Dataset[[#This Row],[2026/27 To - Spending review Topic 1]]+Dataset[[#This Row],[2026/27 To - Spending review Topic 2]]+Dataset[[#This Row],[2026/27 To - Spending review Topic 3]]+Dataset[[#This Row],[2026/27 To - Spending review Topic 4]]+Dataset[[#This Row],[2026/27 To - Other reallocations]]","v":0},{"$f":"Dataset[[#This Row],[2024/25 Reduction]]+Dataset[[#This Row],[2024/25 From - Total]]","v":0},{"$f":"Dataset[[#This Row],[2025/26 Reduction]]+Dataset[[#This Row],[2025/26 From - Total]]","v":0},{"$f":"Dataset[[#This Row],[2026/27 Reduction]]+Dataset[[#This Row],[2026/27 From - Total]]","v":0},{"$f":"Dataset[[#This Row],[2023/24 Reduction]]","v":0},{"$f":"SUM(Dataset[[#This Row],[2024/25 Reduction]],Dataset[[#This Row],[2024/25 From - Total]],Dataset[[#This Row],[2024/25 To - Total]])","v":0},{"$f":"SUM(Dataset[[#This Row],[2025/26 Reduction]],Dataset[[#This Row],[2025/26 From - Total]],Dataset[[#This Row],[2025/26 To - Total]])","v":0},{"$f":"SUM(Dataset[[#This Row],[2026/27 Reduction]],Dataset[[#This Row],[2026/27 From - Total]],Dataset[[#This Row],[2026/27 To - Total]])","v":0},{"$f":"Dataset[[#This Row],[2023/24 Baseline]]+Dataset[[#This Row],[2023/24 Total change]]","v":0},{"$f":"Dataset[[#This Row],[2024/25 Baseline]]+Dataset[[#This Row],[2024/25 Total change]]","v":0},{"$f":"Dataset[[#This Row],[2025/26 Baseline]]+Dataset[[#This Row],[2025/26 Total change]]","v":0},{"$f":"Dataset[[#This Row],[2026/27 Baseline]]+Dataset[[#This Row],[2026/27 Total change]]","v":0}]
["NAT|Non-transfer item","26|Other transfers to households","2024_25","MTEF2024",26,2,2,44493,606,"26","02","02","044493","000606","26|02|02","02","02","10","53","57","02|02|10|53|57","National","Military Veterans","Socioeconomic Support","Health Care and Wellbeing Support","Non-transfer item","Capital","Transfers and subsidies","Households","Other transfers to households","Other transfers to households","Peace and security","Defence and state security","NAT",0,0,0,0,0,0,0,0,0,0,0,null,null,null,null,null,null,null,null,null,null,null,null,null,null,null,null,null,null,null,null,null,null,null,null,null,null,null,null,null,null,null,null,null,null,{"$f":"Dataset[[#This Row],[2024/25 From - Spending review Topic 1]]+Dataset[[#This Row],[2024/25 From - Spending review Topic 2]]+Dataset[[#This Row],[2024/25 From - Spending review Topic 3]]+Dataset[[#This Row],[2024/25 From - Spending review Topic 4]]+Dataset[[#This Row],[2024/25 From - Other reallocations]]","v":0},{"$f":"Dataset[[#This Row],[2025/26 From - Spending review Topic 1]]+Dataset[[#This Row],[2025/26 From - Spending review Topic 2]]+Dataset[[#This Row],[2025/26 From - Spending review Topic 3]]+Dataset[[#This Row],[2025/26 From - Spending review Topic 4]]+Dataset[[#This Row],[2025/26 From - Other reallocations]]","v":0},{"$f":"Dataset[[#This Row],[2026/27 From - Spending review Topic 1]]+Dataset[[#This Row],[2026/27 From - Spending review Topic 2]]+Dataset[[#This Row],[2026/27 From - Spending review Topic 3]]+Dataset[[#This Row],[2026/27 From - Spending review Topic 4]]+Dataset[[#This Row],[2026/27 From - Other reallocations]]","v":0},{"$f":"Dataset[[#This Row],[2024/25 To - Spending review Topic 1]]+Dataset[[#This Row],[2024/25 To - Spending review Topic 2]]+Dataset[[#This Row],[2024/25 To - Spending review Topic 3]]+Dataset[[#This Row],[2024/25 To - Spending review Topic 4]]+Dataset[[#This Row],[2024/25 To - Other reallocations]]","v":0},{"$f":"Dataset[[#This Row],[2025/26 To - Spending review Topic 1]]+Dataset[[#This Row],[2025/26 To - Spending review Topic 2]]+Dataset[[#This Row],[2025/26 To - Spending review Topic 3]]+Dataset[[#This Row],[2025/26 To - Spending review Topic 4]]+Dataset[[#This Row],[2025/26 To - Other reallocations]]","v":0},{"$f":"Dataset[[#This Row],[2026/27 To - Spending review Topic 1]]+Dataset[[#This Row],[2026/27 To - Spending review Topic 2]]+Dataset[[#This Row],[2026/27 To - Spending review Topic 3]]+Dataset[[#This Row],[2026/27 To - Spending review Topic 4]]+Dataset[[#This Row],[2026/27 To - Other reallocations]]","v":0},{"$f":"Dataset[[#This Row],[2024/25 Reduction]]+Dataset[[#This Row],[2024/25 From - Total]]","v":0},{"$f":"Dataset[[#This Row],[2025/26 Reduction]]+Dataset[[#This Row],[2025/26 From - Total]]","v":0},{"$f":"Dataset[[#This Row],[2026/27 Reduction]]+Dataset[[#This Row],[2026/27 From - Total]]","v":0},{"$f":"Dataset[[#This Row],[2023/24 Reduction]]","v":0},{"$f":"SUM(Dataset[[#This Row],[2024/25 Reduction]],Dataset[[#This Row],[2024/25 From - Total]],Dataset[[#This Row],[2024/25 To - Total]])","v":0},{"$f":"SUM(Dataset[[#This Row],[2025/26 Reduction]],Dataset[[#This Row],[2025/26 From - Total]],Dataset[[#This Row],[2025/26 To - Total]])","v":0},{"$f":"SUM(Dataset[[#This Row],[2026/27 Reduction]],Dataset[[#This Row],[2026/27 From - Total]],Dataset[[#This Row],[2026/27 To - Total]])","v":0},{"$f":"Dataset[[#This Row],[2023/24 Baseline]]+Dataset[[#This Row],[2023/24 Total change]]","v":0},{"$f":"Dataset[[#This Row],[2024/25 Baseline]]+Dataset[[#This Row],[2024/25 Total change]]","v":0},{"$f":"Dataset[[#This Row],[2025/26 Baseline]]+Dataset[[#This Row],[2025/26 Total change]]","v":0},{"$f":"Dataset[[#This Row],[2026/27 Baseline]]+Dataset[[#This Row],[2026/27 Total change]]","v":0}]
["NAT|Non-transfer item","26|Buildings","2024_25","MTEF2024",26,2,2,44494,607,"26","02","02","044494","000607","26|02|02","02","03","11","54","58","02|03|11|54|58","National","Military Veterans","Socioeconomic Support","Health Care and Wellbeing Support","Non-transfer item","Capital","Payments for capital assets","Buildings and other fixed structures","Buildings","Buildings","Peace and security","Defence and state security","NAT",0,0,0,0,0,0,0,0,0,0,0,null,null,null,null,null,null,null,null,null,null,null,null,null,null,null,null,null,null,null,null,null,null,null,null,null,null,null,null,null,null,null,null,null,null,{"$f":"Dataset[[#This Row],[2024/25 From - Spending review Topic 1]]+Dataset[[#This Row],[2024/25 From - Spending review Topic 2]]+Dataset[[#This Row],[2024/25 From - Spending review Topic 3]]+Dataset[[#This Row],[2024/25 From - Spending review Topic 4]]+Dataset[[#This Row],[2024/25 From - Other reallocations]]","v":0},{"$f":"Dataset[[#This Row],[2025/26 From - Spending review Topic 1]]+Dataset[[#This Row],[2025/26 From - Spending review Topic 2]]+Dataset[[#This Row],[2025/26 From - Spending review Topic 3]]+Dataset[[#This Row],[2025/26 From - Spending review Topic 4]]+Dataset[[#This Row],[2025/26 From - Other reallocations]]","v":0},{"$f":"Dataset[[#This Row],[2026/27 From - Spending review Topic 1]]+Dataset[[#This Row],[2026/27 From - Spending review Topic 2]]+Dataset[[#This Row],[2026/27 From - Spending review Topic 3]]+Dataset[[#This Row],[2026/27 From - Spending review Topic 4]]+Dataset[[#This Row],[2026/27 From - Other reallocations]]","v":0},{"$f":"Dataset[[#This Row],[2024/25 To - Spending review Topic 1]]+Dataset[[#This Row],[2024/25 To - Spending review Topic 2]]+Dataset[[#This Row],[2024/25 To - Spending review Topic 3]]+Dataset[[#This Row],[2024/25 To - Spending review Topic 4]]+Dataset[[#This Row],[2024/25 To - Other reallocations]]","v":0},{"$f":"Dataset[[#This Row],[2025/26 To - Spending review Topic 1]]+Dataset[[#This Row],[2025/26 To - Spending review Topic 2]]+Dataset[[#This Row],[2025/26 To - Spending review Topic 3]]+Dataset[[#This Row],[2025/26 To - Spending review Topic 4]]+Dataset[[#This Row],[2025/26 To - Other reallocations]]","v":0},{"$f":"Dataset[[#This Row],[2026/27 To - Spending review Topic 1]]+Dataset[[#This Row],[2026/27 To - Spending review Topic 2]]+Dataset[[#This Row],[2026/27 To - Spending review Topic 3]]+Dataset[[#This Row],[2026/27 To - Spending review Topic 4]]+Dataset[[#This Row],[2026/27 To - Other reallocations]]","v":0},{"$f":"Dataset[[#This Row],[2024/25 Reduction]]+Dataset[[#This Row],[2024/25 From - Total]]","v":0},{"$f":"Dataset[[#This Row],[2025/26 Reduction]]+Dataset[[#This Row],[2025/26 From - Total]]","v":0},{"$f":"Dataset[[#This Row],[2026/27 Reduction]]+Dataset[[#This Row],[2026/27 From - Total]]","v":0},{"$f":"Dataset[[#This Row],[2023/24 Reduction]]","v":0},{"$f":"SUM(Dataset[[#This Row],[2024/25 Reduction]],Dataset[[#This Row],[2024/25 From - Total]],Dataset[[#This Row],[2024/25 To - Total]])","v":0},{"$f":"SUM(Dataset[[#This Row],[2025/26 Reduction]],Dataset[[#This Row],[2025/26 From - Total]],Dataset[[#This Row],[2025/26 To - Total]])","v":0},{"$f":"SUM(Dataset[[#This Row],[2026/27 Reduction]],Dataset[[#This Row],[2026/27 From - Total]],Dataset[[#This Row],[2026/27 To - Total]])","v":0},{"$f":"Dataset[[#This Row],[2023/24 Baseline]]+Dataset[[#This Row],[2023/24 Total change]]","v":0},{"$f":"Dataset[[#This Row],[2024/25 Baseline]]+Dataset[[#This Row],[2024/25 Total change]]","v":0},{"$f":"Dataset[[#This Row],[2025/26 Baseline]]+Dataset[[#This Row],[2025/26 Total change]]","v":0},{"$f":"Dataset[[#This Row],[2026/27 Baseline]]+Dataset[[#This Row],[2026/27 Total change]]","v":0}]
["NAT|Non-transfer item","26|Other fixed structures","2024_25","MTEF2024",26,2,2,44495,608,"26","02","02","044495","000608","26|02|02","02","03","11","55","59","02|03|11|55|59","National","Military Veterans","Socioeconomic Support","Health Care and Wellbeing Support","Non-transfer item","Capital","Payments for capital assets","Buildings and other fixed structures","Other fixed structures","Other fixed structures","Peace and security","Defence and state security","NAT",0,0,0,0,0,0,0,0,0,0,0,null,null,null,null,null,null,null,null,null,null,null,null,null,null,null,null,null,null,null,null,null,null,null,null,null,null,null,null,null,null,null,null,null,null,{"$f":"Dataset[[#This Row],[2024/25 From - Spending review Topic 1]]+Dataset[[#This Row],[2024/25 From - Spending review Topic 2]]+Dataset[[#This Row],[2024/25 From - Spending review Topic 3]]+Dataset[[#This Row],[2024/25 From - Spending review Topic 4]]+Dataset[[#This Row],[2024/25 From - Other reallocations]]","v":0},{"$f":"Dataset[[#This Row],[2025/26 From - Spending review Topic 1]]+Dataset[[#This Row],[2025/26 From - Spending review Topic 2]]+Dataset[[#This Row],[2025/26 From - Spending review Topic 3]]+Dataset[[#This Row],[2025/26 From - Spending review Topic 4]]+Dataset[[#This Row],[2025/26 From - Other reallocations]]","v":0},{"$f":"Dataset[[#This Row],[2026/27 From - Spending review Topic 1]]+Dataset[[#This Row],[2026/27 From - Spending review Topic 2]]+Dataset[[#This Row],[2026/27 From - Spending review Topic 3]]+Dataset[[#This Row],[2026/27 From - Spending review Topic 4]]+Dataset[[#This Row],[2026/27 From - Other reallocations]]","v":0},{"$f":"Dataset[[#This Row],[2024/25 To - Spending review Topic 1]]+Dataset[[#This Row],[2024/25 To - Spending review Topic 2]]+Dataset[[#This Row],[2024/25 To - Spending review Topic 3]]+Dataset[[#This Row],[2024/25 To - Spending review Topic 4]]+Dataset[[#This Row],[2024/25 To - Other reallocations]]","v":0},{"$f":"Dataset[[#This Row],[2025/26 To - Spending review Topic 1]]+Dataset[[#This Row],[2025/26 To - Spending review Topic 2]]+Dataset[[#This Row],[2025/26 To - Spending review Topic 3]]+Dataset[[#This Row],[2025/26 To - Spending review Topic 4]]+Dataset[[#This Row],[2025/26 To - Other reallocations]]","v":0},{"$f":"Dataset[[#This Row],[2026/27 To - Spending review Topic 1]]+Dataset[[#This Row],[2026/27 To - Spending review Topic 2]]+Dataset[[#This Row],[2026/27 To - Spending review Topic 3]]+Dataset[[#This Row],[2026/27 To - Spending review Topic 4]]+Dataset[[#This Row],[2026/27 To - Other reallocations]]","v":0},{"$f":"Dataset[[#This Row],[2024/25 Reduction]]+Dataset[[#This Row],[2024/25 From - Total]]","v":0},{"$f":"Dataset[[#This Row],[2025/26 Reduction]]+Dataset[[#This Row],[2025/26 From - Total]]","v":0},{"$f":"Dataset[[#This Row],[2026/27 Reduction]]+Dataset[[#This Row],[2026/27 From - Total]]","v":0},{"$f":"Dataset[[#This Row],[2023/24 Reduction]]","v":0},{"$f":"SUM(Dataset[[#This Row],[2024/25 Reduction]],Dataset[[#This Row],[2024/25 From - Total]],Dataset[[#This Row],[2024/25 To - Total]])","v":0},{"$f":"SUM(Dataset[[#This Row],[2025/26 Reduction]],Dataset[[#This Row],[2025/26 From - Total]],Dataset[[#This Row],[2025/26 To - Total]])","v":0},{"$f":"SUM(Dataset[[#This Row],[2026/27 Reduction]],Dataset[[#This Row],[2026/27 From - Total]],Dataset[[#This Row],[2026/27 To - Total]])","v":0},{"$f":"Dataset[[#This Row],[2023/24 Baseline]]+Dataset[[#This Row],[2023/24 Total change]]","v":0},{"$f":"Dataset[[#This Row],[2024/25 Baseline]]+Dataset[[#This Row],[2024/25 Total change]]","v":0},{"$f":"Dataset[[#This Row],[2025/26 Baseline]]+Dataset[[#This Row],[2025/26 Total change]]","v":0},{"$f":"Dataset[[#This Row],[2026/27 Baseline]]+Dataset[[#This Row],[2026/27 Total change]]","v":0}]
["NAT|Non-transfer item","26|Transport equipment","2024_25","MTEF2024",26,2,2,44496,609,"26","02","02","044496","000609","26|02|02","02","03","12","56","60","02|03|12|56|60","National","Military Veterans","Socioeconomic Support","Health Care and Wellbeing Support","Non-transfer item","Capital","Payments for capital assets","Machinery and equipment","Transport equipment","Transport equipment","Peace and security","Defence and state security","NAT",0,0,0,0,0,0,0,0,0,0,0,null,null,null,null,null,null,null,null,null,null,null,null,null,null,null,null,null,null,null,null,null,null,null,null,null,null,null,null,null,null,null,null,null,null,{"$f":"Dataset[[#This Row],[2024/25 From - Spending review Topic 1]]+Dataset[[#This Row],[2024/25 From - Spending review Topic 2]]+Dataset[[#This Row],[2024/25 From - Spending review Topic 3]]+Dataset[[#This Row],[2024/25 From - Spending review Topic 4]]+Dataset[[#This Row],[2024/25 From - Other reallocations]]","v":0},{"$f":"Dataset[[#This Row],[2025/26 From - Spending review Topic 1]]+Dataset[[#This Row],[2025/26 From - Spending review Topic 2]]+Dataset[[#This Row],[2025/26 From - Spending review Topic 3]]+Dataset[[#This Row],[2025/26 From - Spending review Topic 4]]+Dataset[[#This Row],[2025/26 From - Other reallocations]]","v":0},{"$f":"Dataset[[#This Row],[2026/27 From - Spending review Topic 1]]+Dataset[[#This Row],[2026/27 From - Spending review Topic 2]]+Dataset[[#This Row],[2026/27 From - Spending review Topic 3]]+Dataset[[#This Row],[2026/27 From - Spending review Topic 4]]+Dataset[[#This Row],[2026/27 From - Other reallocations]]","v":0},{"$f":"Dataset[[#This Row],[2024/25 To - Spending review Topic 1]]+Dataset[[#This Row],[2024/25 To - Spending review Topic 2]]+Dataset[[#This Row],[2024/25 To - Spending review Topic 3]]+Dataset[[#This Row],[2024/25 To - Spending review Topic 4]]+Dataset[[#This Row],[2024/25 To - Other reallocations]]","v":0},{"$f":"Dataset[[#This Row],[2025/26 To - Spending review Topic 1]]+Dataset[[#This Row],[2025/26 To - Spending review Topic 2]]+Dataset[[#This Row],[2025/26 To - Spending review Topic 3]]+Dataset[[#This Row],[2025/26 To - Spending review Topic 4]]+Dataset[[#This Row],[2025/26 To - Other reallocations]]","v":0},{"$f":"Dataset[[#This Row],[2026/27 To - Spending review Topic 1]]+Dataset[[#This Row],[2026/27 To - Spending review Topic 2]]+Dataset[[#This Row],[2026/27 To - Spending review Topic 3]]+Dataset[[#This Row],[2026/27 To - Spending review Topic 4]]+Dataset[[#This Row],[2026/27 To - Other reallocations]]","v":0},{"$f":"Dataset[[#This Row],[2024/25 Reduction]]+Dataset[[#This Row],[2024/25 From - Total]]","v":0},{"$f":"Dataset[[#This Row],[2025/26 Reduction]]+Dataset[[#This Row],[2025/26 From - Total]]","v":0},{"$f":"Dataset[[#This Row],[2026/27 Reduction]]+Dataset[[#This Row],[2026/27 From - Total]]","v":0},{"$f":"Dataset[[#This Row],[2023/24 Reduction]]","v":0},{"$f":"SUM(Dataset[[#This Row],[2024/25 Reduction]],Dataset[[#This Row],[2024/25 From - Total]],Dataset[[#This Row],[2024/25 To - Total]])","v":0},{"$f":"SUM(Dataset[[#This Row],[2025/26 Reduction]],Dataset[[#This Row],[2025/26 From - Total]],Dataset[[#This Row],[2025/26 To - Total]])","v":0},{"$f":"SUM(Dataset[[#This Row],[2026/27 Reduction]],Dataset[[#This Row],[2026/27 From - Total]],Dataset[[#This Row],[2026/27 To - Total]])","v":0},{"$f":"Dataset[[#This Row],[2023/24 Baseline]]+Dataset[[#This Row],[2023/24 Total change]]","v":0},{"$f":"Dataset[[#This Row],[2024/25 Baseline]]+Dataset[[#This Row],[2024/25 Total change]]","v":0},{"$f":"Dataset[[#This Row],[2025/26 Baseline]]+Dataset[[#This Row],[2025/26 Total change]]","v":0},{"$f":"Dataset[[#This Row],[2026/27 Baseline]]+Dataset[[#This Row],[2026/27 Total change]]","v":0}]
["NAT|Non-transfer item","26|Other machinery and equipment","2024_25","MTEF2024",26,2,2,44497,610,"26","02","02","044497","000610","26|02|02","02","03","12","57","61","02|03|12|57|61","National","Military Veterans","Socioeconomic Support","Health Care and Wellbeing Support","Non-transfer item","Capital","Payments for capital assets","Machinery and equipment","Other machinery and equipment","Other machinery and equipment","Peace and security","Defence and state security","NAT",21,466,0,950,930,930,0,350,143,107,112,null,null,null,null,null,null,null,null,null,null,null,null,null,null,null,null,null,null,null,null,null,null,null,null,null,null,null,null,null,null,null,null,null,null,{"$f":"Dataset[[#This Row],[2024/25 From - Spending review Topic 1]]+Dataset[[#This Row],[2024/25 From - Spending review Topic 2]]+Dataset[[#This Row],[2024/25 From - Spending review Topic 3]]+Dataset[[#This Row],[2024/25 From - Spending review Topic 4]]+Dataset[[#This Row],[2024/25 From - Other reallocations]]","v":0},{"$f":"Dataset[[#This Row],[2025/26 From - Spending review Topic 1]]+Dataset[[#This Row],[2025/26 From - Spending review Topic 2]]+Dataset[[#This Row],[2025/26 From - Spending review Topic 3]]+Dataset[[#This Row],[2025/26 From - Spending review Topic 4]]+Dataset[[#This Row],[2025/26 From - Other reallocations]]","v":0},{"$f":"Dataset[[#This Row],[2026/27 From - Spending review Topic 1]]+Dataset[[#This Row],[2026/27 From - Spending review Topic 2]]+Dataset[[#This Row],[2026/27 From - Spending review Topic 3]]+Dataset[[#This Row],[2026/27 From - Spending review Topic 4]]+Dataset[[#This Row],[2026/27 From - Other reallocations]]","v":0},{"$f":"Dataset[[#This Row],[2024/25 To - Spending review Topic 1]]+Dataset[[#This Row],[2024/25 To - Spending review Topic 2]]+Dataset[[#This Row],[2024/25 To - Spending review Topic 3]]+Dataset[[#This Row],[2024/25 To - Spending review Topic 4]]+Dataset[[#This Row],[2024/25 To - Other reallocations]]","v":0},{"$f":"Dataset[[#This Row],[2025/26 To - Spending review Topic 1]]+Dataset[[#This Row],[2025/26 To - Spending review Topic 2]]+Dataset[[#This Row],[2025/26 To - Spending review Topic 3]]+Dataset[[#This Row],[2025/26 To - Spending review Topic 4]]+Dataset[[#This Row],[2025/26 To - Other reallocations]]","v":0},{"$f":"Dataset[[#This Row],[2026/27 To - Spending review Topic 1]]+Dataset[[#This Row],[2026/27 To - Spending review Topic 2]]+Dataset[[#This Row],[2026/27 To - Spending review Topic 3]]+Dataset[[#This Row],[2026/27 To - Spending review Topic 4]]+Dataset[[#This Row],[2026/27 To - Other reallocations]]","v":0},{"$f":"Dataset[[#This Row],[2024/25 Reduction]]+Dataset[[#This Row],[2024/25 From - Total]]","v":0},{"$f":"Dataset[[#This Row],[2025/26 Reduction]]+Dataset[[#This Row],[2025/26 From - Total]]","v":0},{"$f":"Dataset[[#This Row],[2026/27 Reduction]]+Dataset[[#This Row],[2026/27 From - Total]]","v":0},{"$f":"Dataset[[#This Row],[2023/24 Reduction]]","v":0},{"$f":"SUM(Dataset[[#This Row],[2024/25 Reduction]],Dataset[[#This Row],[2024/25 From - Total]],Dataset[[#This Row],[2024/25 To - Total]])","v":0},{"$f":"SUM(Dataset[[#This Row],[2025/26 Reduction]],Dataset[[#This Row],[2025/26 From - Total]],Dataset[[#This Row],[2025/26 To - Total]])","v":0},{"$f":"SUM(Dataset[[#This Row],[2026/27 Reduction]],Dataset[[#This Row],[2026/27 From - Total]],Dataset[[#This Row],[2026/27 To - Total]])","v":0},{"$f":"Dataset[[#This Row],[2023/24 Baseline]]+Dataset[[#This Row],[2023/24 Total change]]","v":350},{"$f":"Dataset[[#This Row],[2024/25 Baseline]]+Dataset[[#This Row],[2024/25 Total change]]","v":143},{"$f":"Dataset[[#This Row],[2025/26 Baseline]]+Dataset[[#This Row],[2025/26 Total change]]","v":107},{"$f":"Dataset[[#This Row],[2026/27 Baseline]]+Dataset[[#This Row],[2026/27 Total change]]","v":112}]
["NAT|Non-transfer item","26|Heritage assets","2024_25","MTEF2024",26,2,2,44498,611,"26","02","02","044498","000611","26|02|02","02","03","13","58","62","02|03|13|58|62","National","Military Veterans","Socioeconomic Support","Health Care and Wellbeing Support","Non-transfer item","Capital","Payments for capital assets","Heritage assets","Heritage assets","Heritage assets","Peace and security","Defence and state security","NAT",0,0,0,0,0,0,0,0,0,0,0,null,null,null,null,null,null,null,null,null,null,null,null,null,null,null,null,null,null,null,null,null,null,null,null,null,null,null,null,null,null,null,null,null,null,{"$f":"Dataset[[#This Row],[2024/25 From - Spending review Topic 1]]+Dataset[[#This Row],[2024/25 From - Spending review Topic 2]]+Dataset[[#This Row],[2024/25 From - Spending review Topic 3]]+Dataset[[#This Row],[2024/25 From - Spending review Topic 4]]+Dataset[[#This Row],[2024/25 From - Other reallocations]]","v":0},{"$f":"Dataset[[#This Row],[2025/26 From - Spending review Topic 1]]+Dataset[[#This Row],[2025/26 From - Spending review Topic 2]]+Dataset[[#This Row],[2025/26 From - Spending review Topic 3]]+Dataset[[#This Row],[2025/26 From - Spending review Topic 4]]+Dataset[[#This Row],[2025/26 From - Other reallocations]]","v":0},{"$f":"Dataset[[#This Row],[2026/27 From - Spending review Topic 1]]+Dataset[[#This Row],[2026/27 From - Spending review Topic 2]]+Dataset[[#This Row],[2026/27 From - Spending review Topic 3]]+Dataset[[#This Row],[2026/27 From - Spending review Topic 4]]+Dataset[[#This Row],[2026/27 From - Other reallocations]]","v":0},{"$f":"Dataset[[#This Row],[2024/25 To - Spending review Topic 1]]+Dataset[[#This Row],[2024/25 To - Spending review Topic 2]]+Dataset[[#This Row],[2024/25 To - Spending review Topic 3]]+Dataset[[#This Row],[2024/25 To - Spending review Topic 4]]+Dataset[[#This Row],[2024/25 To - Other reallocations]]","v":0},{"$f":"Dataset[[#This Row],[2025/26 To - Spending review Topic 1]]+Dataset[[#This Row],[2025/26 To - Spending review Topic 2]]+Dataset[[#This Row],[2025/26 To - Spending review Topic 3]]+Dataset[[#This Row],[2025/26 To - Spending review Topic 4]]+Dataset[[#This Row],[2025/26 To - Other reallocations]]","v":0},{"$f":"Dataset[[#This Row],[2026/27 To - Spending review Topic 1]]+Dataset[[#This Row],[2026/27 To - Spending review Topic 2]]+Dataset[[#This Row],[2026/27 To - Spending review Topic 3]]+Dataset[[#This Row],[2026/27 To - Spending review Topic 4]]+Dataset[[#This Row],[2026/27 To - Other reallocations]]","v":0},{"$f":"Dataset[[#This Row],[2024/25 Reduction]]+Dataset[[#This Row],[2024/25 From - Total]]","v":0},{"$f":"Dataset[[#This Row],[2025/26 Reduction]]+Dataset[[#This Row],[2025/26 From - Total]]","v":0},{"$f":"Dataset[[#This Row],[2026/27 Reduction]]+Dataset[[#This Row],[2026/27 From - Total]]","v":0},{"$f":"Dataset[[#This Row],[2023/24 Reduction]]","v":0},{"$f":"SUM(Dataset[[#This Row],[2024/25 Reduction]],Dataset[[#This Row],[2024/25 From - Total]],Dataset[[#This Row],[2024/25 To - Total]])","v":0},{"$f":"SUM(Dataset[[#This Row],[2025/26 Reduction]],Dataset[[#This Row],[2025/26 From - Total]],Dataset[[#This Row],[2025/26 To - Total]])","v":0},{"$f":"SUM(Dataset[[#This Row],[2026/27 Reduction]],Dataset[[#This Row],[2026/27 From - Total]],Dataset[[#This Row],[2026/27 To - Total]])","v":0},{"$f":"Dataset[[#This Row],[2023/24 Baseline]]+Dataset[[#This Row],[2023/24 Total change]]","v":0},{"$f":"Dataset[[#This Row],[2024/25 Baseline]]+Dataset[[#This Row],[2024/25 Total change]]","v":0},{"$f":"Dataset[[#This Row],[2025/26 Baseline]]+Dataset[[#This Row],[2025/26 Total change]]","v":0},{"$f":"Dataset[[#This Row],[2026/27 Baseline]]+Dataset[[#This Row],[2026/27 Total change]]","v":0}]
["NAT|Non-transfer item","26|Specialised military assets","2024_25","MTEF2024",26,2,2,44499,612,"26","02","02","044499","000612","26|02|02","02","03","14","59","63","02|03|14|59|63","National","Military Veterans","Socioeconomic Support","Health Care and Wellbeing Support","Non-transfer item","Capital","Payments for capital assets","Specialised military assets","Specialised military assets","Specialised military assets","Peace and security","Defence and state security","NAT",0,0,0,0,0,0,0,0,0,0,0,null,null,null,null,null,null,null,null,null,null,null,null,null,null,null,null,null,null,null,null,null,null,null,null,null,null,null,null,null,null,null,null,null,null,{"$f":"Dataset[[#This Row],[2024/25 From - Spending review Topic 1]]+Dataset[[#This Row],[2024/25 From - Spending review Topic 2]]+Dataset[[#This Row],[2024/25 From - Spending review Topic 3]]+Dataset[[#This Row],[2024/25 From - Spending review Topic 4]]+Dataset[[#This Row],[2024/25 From - Other reallocations]]","v":0},{"$f":"Dataset[[#This Row],[2025/26 From - Spending review Topic 1]]+Dataset[[#This Row],[2025/26 From - Spending review Topic 2]]+Dataset[[#This Row],[2025/26 From - Spending review Topic 3]]+Dataset[[#This Row],[2025/26 From - Spending review Topic 4]]+Dataset[[#This Row],[2025/26 From - Other reallocations]]","v":0},{"$f":"Dataset[[#This Row],[2026/27 From - Spending review Topic 1]]+Dataset[[#This Row],[2026/27 From - Spending review Topic 2]]+Dataset[[#This Row],[2026/27 From - Spending review Topic 3]]+Dataset[[#This Row],[2026/27 From - Spending review Topic 4]]+Dataset[[#This Row],[2026/27 From - Other reallocations]]","v":0},{"$f":"Dataset[[#This Row],[2024/25 To - Spending review Topic 1]]+Dataset[[#This Row],[2024/25 To - Spending review Topic 2]]+Dataset[[#This Row],[2024/25 To - Spending review Topic 3]]+Dataset[[#This Row],[2024/25 To - Spending review Topic 4]]+Dataset[[#This Row],[2024/25 To - Other reallocations]]","v":0},{"$f":"Dataset[[#This Row],[2025/26 To - Spending review Topic 1]]+Dataset[[#This Row],[2025/26 To - Spending review Topic 2]]+Dataset[[#This Row],[2025/26 To - Spending review Topic 3]]+Dataset[[#This Row],[2025/26 To - Spending review Topic 4]]+Dataset[[#This Row],[2025/26 To - Other reallocations]]","v":0},{"$f":"Dataset[[#This Row],[2026/27 To - Spending review Topic 1]]+Dataset[[#This Row],[2026/27 To - Spending review Topic 2]]+Dataset[[#This Row],[2026/27 To - Spending review Topic 3]]+Dataset[[#This Row],[2026/27 To - Spending review Topic 4]]+Dataset[[#This Row],[2026/27 To - Other reallocations]]","v":0},{"$f":"Dataset[[#This Row],[2024/25 Reduction]]+Dataset[[#This Row],[2024/25 From - Total]]","v":0},{"$f":"Dataset[[#This Row],[2025/26 Reduction]]+Dataset[[#This Row],[2025/26 From - Total]]","v":0},{"$f":"Dataset[[#This Row],[2026/27 Reduction]]+Dataset[[#This Row],[2026/27 From - Total]]","v":0},{"$f":"Dataset[[#This Row],[2023/24 Reduction]]","v":0},{"$f":"SUM(Dataset[[#This Row],[2024/25 Reduction]],Dataset[[#This Row],[2024/25 From - Total]],Dataset[[#This Row],[2024/25 To - Total]])","v":0},{"$f":"SUM(Dataset[[#This Row],[2025/26 Reduction]],Dataset[[#This Row],[2025/26 From - Total]],Dataset[[#This Row],[2025/26 To - Total]])","v":0},{"$f":"SUM(Dataset[[#This Row],[2026/27 Reduction]],Dataset[[#This Row],[2026/27 From - Total]],Dataset[[#This Row],[2026/27 To - Total]])","v":0},{"$f":"Dataset[[#This Row],[2023/24 Baseline]]+Dataset[[#This Row],[2023/24 Total change]]","v":0},{"$f":"Dataset[[#This Row],[2024/25 Baseline]]+Dataset[[#This Row],[2024/25 Total change]]","v":0},{"$f":"Dataset[[#This Row],[2025/26 Baseline]]+Dataset[[#This Row],[2025/26 Total change]]","v":0},{"$f":"Dataset[[#This Row],[2026/27 Baseline]]+Dataset[[#This Row],[2026/27 Total change]]","v":0}]
["NAT|Non-transfer item","26|Biological assets","2024_25","MTEF2024",26,2,2,44500,613,"26","02","02","044500","000613","26|02|02","02","03","15","60","64","02|03|15|60|64","National","Military Veterans","Socioeconomic Support","Health Care and Wellbeing Support","Non-transfer item","Capital","Payments for capital assets","Biological assets","Biological assets","Biological assets","Peace and security","Defence and state security","NAT",0,0,0,0,0,0,0,0,0,0,0,null,null,null,null,null,null,null,null,null,null,null,null,null,null,null,null,null,null,null,null,null,null,null,null,null,null,null,null,null,null,null,null,null,null,{"$f":"Dataset[[#This Row],[2024/25 From - Spending review Topic 1]]+Dataset[[#This Row],[2024/25 From - Spending review Topic 2]]+Dataset[[#This Row],[2024/25 From - Spending review Topic 3]]+Dataset[[#This Row],[2024/25 From - Spending review Topic 4]]+Dataset[[#This Row],[2024/25 From - Other reallocations]]","v":0},{"$f":"Dataset[[#This Row],[2025/26 From - Spending review Topic 1]]+Dataset[[#This Row],[2025/26 From - Spending review Topic 2]]+Dataset[[#This Row],[2025/26 From - Spending review Topic 3]]+Dataset[[#This Row],[2025/26 From - Spending review Topic 4]]+Dataset[[#This Row],[2025/26 From - Other reallocations]]","v":0},{"$f":"Dataset[[#This Row],[2026/27 From - Spending review Topic 1]]+Dataset[[#This Row],[2026/27 From - Spending review Topic 2]]+Dataset[[#This Row],[2026/27 From - Spending review Topic 3]]+Dataset[[#This Row],[2026/27 From - Spending review Topic 4]]+Dataset[[#This Row],[2026/27 From - Other reallocations]]","v":0},{"$f":"Dataset[[#This Row],[2024/25 To - Spending review Topic 1]]+Dataset[[#This Row],[2024/25 To - Spending review Topic 2]]+Dataset[[#This Row],[2024/25 To - Spending review Topic 3]]+Dataset[[#This Row],[2024/25 To - Spending review Topic 4]]+Dataset[[#This Row],[2024/25 To - Other reallocations]]","v":0},{"$f":"Dataset[[#This Row],[2025/26 To - Spending review Topic 1]]+Dataset[[#This Row],[2025/26 To - Spending review Topic 2]]+Dataset[[#This Row],[2025/26 To - Spending review Topic 3]]+Dataset[[#This Row],[2025/26 To - Spending review Topic 4]]+Dataset[[#This Row],[2025/26 To - Other reallocations]]","v":0},{"$f":"Dataset[[#This Row],[2026/27 To - Spending review Topic 1]]+Dataset[[#This Row],[2026/27 To - Spending review Topic 2]]+Dataset[[#This Row],[2026/27 To - Spending review Topic 3]]+Dataset[[#This Row],[2026/27 To - Spending review Topic 4]]+Dataset[[#This Row],[2026/27 To - Other reallocations]]","v":0},{"$f":"Dataset[[#This Row],[2024/25 Reduction]]+Dataset[[#This Row],[2024/25 From - Total]]","v":0},{"$f":"Dataset[[#This Row],[2025/26 Reduction]]+Dataset[[#This Row],[2025/26 From - Total]]","v":0},{"$f":"Dataset[[#This Row],[2026/27 Reduction]]+Dataset[[#This Row],[2026/27 From - Total]]","v":0},{"$f":"Dataset[[#This Row],[2023/24 Reduction]]","v":0},{"$f":"SUM(Dataset[[#This Row],[2024/25 Reduction]],Dataset[[#This Row],[2024/25 From - Total]],Dataset[[#This Row],[2024/25 To - Total]])","v":0},{"$f":"SUM(Dataset[[#This Row],[2025/26 Reduction]],Dataset[[#This Row],[2025/26 From - Total]],Dataset[[#This Row],[2025/26 To - Total]])","v":0},{"$f":"SUM(Dataset[[#This Row],[2026/27 Reduction]],Dataset[[#This Row],[2026/27 From - Total]],Dataset[[#This Row],[2026/27 To - Total]])","v":0},{"$f":"Dataset[[#This Row],[2023/24 Baseline]]+Dataset[[#This Row],[2023/24 Total change]]","v":0},{"$f":"Dataset[[#This Row],[2024/25 Baseline]]+Dataset[[#This Row],[2024/25 Total change]]","v":0},{"$f":"Dataset[[#This Row],[2025/26 Baseline]]+Dataset[[#This Row],[2025/26 Total change]]","v":0},{"$f":"Dataset[[#This Row],[2026/27 Baseline]]+Dataset[[#This Row],[2026/27 Total change]]","v":0}]
["NAT|Non-transfer item","26|Land and sub-soil assets","2024_25","MTEF2024",26,2,2,44501,614,"26","02","02","044501","000614","26|02|02","02","03","16","61","65","02|03|16|61|65","National","Military Veterans","Socioeconomic Support","Health Care and Wellbeing Support","Non-transfer item","Capital","Payments for capital assets","Land and sub-soil assets","Land and sub-soil assets","Land and sub-soil assets","Peace and security","Defence and state security","NAT",0,0,0,0,0,0,0,0,0,0,0,null,null,null,null,null,null,null,null,null,null,null,null,null,null,null,null,null,null,null,null,null,null,null,null,null,null,null,null,null,null,null,null,null,null,{"$f":"Dataset[[#This Row],[2024/25 From - Spending review Topic 1]]+Dataset[[#This Row],[2024/25 From - Spending review Topic 2]]+Dataset[[#This Row],[2024/25 From - Spending review Topic 3]]+Dataset[[#This Row],[2024/25 From - Spending review Topic 4]]+Dataset[[#This Row],[2024/25 From - Other reallocations]]","v":0},{"$f":"Dataset[[#This Row],[2025/26 From - Spending review Topic 1]]+Dataset[[#This Row],[2025/26 From - Spending review Topic 2]]+Dataset[[#This Row],[2025/26 From - Spending review Topic 3]]+Dataset[[#This Row],[2025/26 From - Spending review Topic 4]]+Dataset[[#This Row],[2025/26 From - Other reallocations]]","v":0},{"$f":"Dataset[[#This Row],[2026/27 From - Spending review Topic 1]]+Dataset[[#This Row],[2026/27 From - Spending review Topic 2]]+Dataset[[#This Row],[2026/27 From - Spending review Topic 3]]+Dataset[[#This Row],[2026/27 From - Spending review Topic 4]]+Dataset[[#This Row],[2026/27 From - Other reallocations]]","v":0},{"$f":"Dataset[[#This Row],[2024/25 To - Spending review Topic 1]]+Dataset[[#This Row],[2024/25 To - Spending review Topic 2]]+Dataset[[#This Row],[2024/25 To - Spending review Topic 3]]+Dataset[[#This Row],[2024/25 To - Spending review Topic 4]]+Dataset[[#This Row],[2024/25 To - Other reallocations]]","v":0},{"$f":"Dataset[[#This Row],[2025/26 To - Spending review Topic 1]]+Dataset[[#This Row],[2025/26 To - Spending review Topic 2]]+Dataset[[#This Row],[2025/26 To - Spending review Topic 3]]+Dataset[[#This Row],[2025/26 To - Spending review Topic 4]]+Dataset[[#This Row],[2025/26 To - Other reallocations]]","v":0},{"$f":"Dataset[[#This Row],[2026/27 To - Spending review Topic 1]]+Dataset[[#This Row],[2026/27 To - Spending review Topic 2]]+Dataset[[#This Row],[2026/27 To - Spending review Topic 3]]+Dataset[[#This Row],[2026/27 To - Spending review Topic 4]]+Dataset[[#This Row],[2026/27 To - Other reallocations]]","v":0},{"$f":"Dataset[[#This Row],[2024/25 Reduction]]+Dataset[[#This Row],[2024/25 From - Total]]","v":0},{"$f":"Dataset[[#This Row],[2025/26 Reduction]]+Dataset[[#This Row],[2025/26 From - Total]]","v":0},{"$f":"Dataset[[#This Row],[2026/27 Reduction]]+Dataset[[#This Row],[2026/27 From - Total]]","v":0},{"$f":"Dataset[[#This Row],[2023/24 Reduction]]","v":0},{"$f":"SUM(Dataset[[#This Row],[2024/25 Reduction]],Dataset[[#This Row],[2024/25 From - Total]],Dataset[[#This Row],[2024/25 To - Total]])","v":0},{"$f":"SUM(Dataset[[#This Row],[2025/26 Reduction]],Dataset[[#This Row],[2025/26 From - Total]],Dataset[[#This Row],[2025/26 To - Total]])","v":0},{"$f":"SUM(Dataset[[#This Row],[2026/27 Reduction]],Dataset[[#This Row],[2026/27 From - Total]],Dataset[[#This Row],[2026/27 To - Total]])","v":0},{"$f":"Dataset[[#This Row],[2023/24 Baseline]]+Dataset[[#This Row],[2023/24 Total change]]","v":0},{"$f":"Dataset[[#This Row],[2024/25 Baseline]]+Dataset[[#This Row],[2024/25 Total change]]","v":0},{"$f":"Dataset[[#This Row],[2025/26 Baseline]]+Dataset[[#This Row],[2025/26 Total change]]","v":0},{"$f":"Dataset[[#This Row],[2026/27 Baseline]]+Dataset[[#This Row],[2026/27 Total change]]","v":0}]
["NAT|Non-transfer item","26|Software and other intangible assets","2024_25","MTEF2024",26,2,2,44502,615,"26","02","02","044502","000615","26|02|02","02","03","17","62","66","02|03|17|62|66","National","Military Veterans","Socioeconomic Support","Health Care and Wellbeing Support","Non-transfer item","Capital","Payments for capital assets","Software and other intangible assets","Software and other intangible assets","Software and other intangible assets","Peace and security","Defence and state security","NAT",0,0,0,0,0,0,0,0,0,0,0,null,null,null,null,null,null,null,null,null,null,null,null,null,null,null,null,null,null,null,null,null,null,null,null,null,null,null,null,null,null,null,null,null,null,{"$f":"Dataset[[#This Row],[2024/25 From - Spending review Topic 1]]+Dataset[[#This Row],[2024/25 From - Spending review Topic 2]]+Dataset[[#This Row],[2024/25 From - Spending review Topic 3]]+Dataset[[#This Row],[2024/25 From - Spending review Topic 4]]+Dataset[[#This Row],[2024/25 From - Other reallocations]]","v":0},{"$f":"Dataset[[#This Row],[2025/26 From - Spending review Topic 1]]+Dataset[[#This Row],[2025/26 From - Spending review Topic 2]]+Dataset[[#This Row],[2025/26 From - Spending review Topic 3]]+Dataset[[#This Row],[2025/26 From - Spending review Topic 4]]+Dataset[[#This Row],[2025/26 From - Other reallocations]]","v":0},{"$f":"Dataset[[#This Row],[2026/27 From - Spending review Topic 1]]+Dataset[[#This Row],[2026/27 From - Spending review Topic 2]]+Dataset[[#This Row],[2026/27 From - Spending review Topic 3]]+Dataset[[#This Row],[2026/27 From - Spending review Topic 4]]+Dataset[[#This Row],[2026/27 From - Other reallocations]]","v":0},{"$f":"Dataset[[#This Row],[2024/25 To - Spending review Topic 1]]+Dataset[[#This Row],[2024/25 To - Spending review Topic 2]]+Dataset[[#This Row],[2024/25 To - Spending review Topic 3]]+Dataset[[#This Row],[2024/25 To - Spending review Topic 4]]+Dataset[[#This Row],[2024/25 To - Other reallocations]]","v":0},{"$f":"Dataset[[#This Row],[2025/26 To - Spending review Topic 1]]+Dataset[[#This Row],[2025/26 To - Spending review Topic 2]]+Dataset[[#This Row],[2025/26 To - Spending review Topic 3]]+Dataset[[#This Row],[2025/26 To - Spending review Topic 4]]+Dataset[[#This Row],[2025/26 To - Other reallocations]]","v":0},{"$f":"Dataset[[#This Row],[2026/27 To - Spending review Topic 1]]+Dataset[[#This Row],[2026/27 To - Spending review Topic 2]]+Dataset[[#This Row],[2026/27 To - Spending review Topic 3]]+Dataset[[#This Row],[2026/27 To - Spending review Topic 4]]+Dataset[[#This Row],[2026/27 To - Other reallocations]]","v":0},{"$f":"Dataset[[#This Row],[2024/25 Reduction]]+Dataset[[#This Row],[2024/25 From - Total]]","v":0},{"$f":"Dataset[[#This Row],[2025/26 Reduction]]+Dataset[[#This Row],[2025/26 From - Total]]","v":0},{"$f":"Dataset[[#This Row],[2026/27 Reduction]]+Dataset[[#This Row],[2026/27 From - Total]]","v":0},{"$f":"Dataset[[#This Row],[2023/24 Reduction]]","v":0},{"$f":"SUM(Dataset[[#This Row],[2024/25 Reduction]],Dataset[[#This Row],[2024/25 From - Total]],Dataset[[#This Row],[2024/25 To - Total]])","v":0},{"$f":"SUM(Dataset[[#This Row],[2025/26 Reduction]],Dataset[[#This Row],[2025/26 From - Total]],Dataset[[#This Row],[2025/26 To - Total]])","v":0},{"$f":"SUM(Dataset[[#This Row],[2026/27 Reduction]],Dataset[[#This Row],[2026/27 From - Total]],Dataset[[#This Row],[2026/27 To - Total]])","v":0},{"$f":"Dataset[[#This Row],[2023/24 Baseline]]+Dataset[[#This Row],[2023/24 Total change]]","v":0},{"$f":"Dataset[[#This Row],[2024/25 Baseline]]+Dataset[[#This Row],[2024/25 Total change]]","v":0},{"$f":"Dataset[[#This Row],[2025/26 Baseline]]+Dataset[[#This Row],[2025/26 Total change]]","v":0},{"$f":"Dataset[[#This Row],[2026/27 Baseline]]+Dataset[[#This Row],[2026/27 Total change]]","v":0}]
["NAT|Non-transfer item","26|Payments for financial assets","2024_25","MTEF2024",26,2,2,44503,616,"26","02","02","044503","000616","26|02|02","03","04","18","63","67","03|04|18|63|67","National","Military Veterans","Socioeconomic Support","Health Care and Wellbeing Support","Non-transfer item","Payments for financial assets","Payments for financial assets","Payments for financial assets","Payments for financial assets","Payments for financial assets","Peace and security","Defence and state security","NAT",0,0,0,0,0,0,0,0,0,0,0,null,null,null,null,null,null,null,null,null,null,null,null,null,null,null,null,null,null,null,null,null,null,null,null,null,null,null,null,null,null,null,null,null,null,{"$f":"Dataset[[#This Row],[2024/25 From - Spending review Topic 1]]+Dataset[[#This Row],[2024/25 From - Spending review Topic 2]]+Dataset[[#This Row],[2024/25 From - Spending review Topic 3]]+Dataset[[#This Row],[2024/25 From - Spending review Topic 4]]+Dataset[[#This Row],[2024/25 From - Other reallocations]]","v":0},{"$f":"Dataset[[#This Row],[2025/26 From - Spending review Topic 1]]+Dataset[[#This Row],[2025/26 From - Spending review Topic 2]]+Dataset[[#This Row],[2025/26 From - Spending review Topic 3]]+Dataset[[#This Row],[2025/26 From - Spending review Topic 4]]+Dataset[[#This Row],[2025/26 From - Other reallocations]]","v":0},{"$f":"Dataset[[#This Row],[2026/27 From - Spending review Topic 1]]+Dataset[[#This Row],[2026/27 From - Spending review Topic 2]]+Dataset[[#This Row],[2026/27 From - Spending review Topic 3]]+Dataset[[#This Row],[2026/27 From - Spending review Topic 4]]+Dataset[[#This Row],[2026/27 From - Other reallocations]]","v":0},{"$f":"Dataset[[#This Row],[2024/25 To - Spending review Topic 1]]+Dataset[[#This Row],[2024/25 To - Spending review Topic 2]]+Dataset[[#This Row],[2024/25 To - Spending review Topic 3]]+Dataset[[#This Row],[2024/25 To - Spending review Topic 4]]+Dataset[[#This Row],[2024/25 To - Other reallocations]]","v":0},{"$f":"Dataset[[#This Row],[2025/26 To - Spending review Topic 1]]+Dataset[[#This Row],[2025/26 To - Spending review Topic 2]]+Dataset[[#This Row],[2025/26 To - Spending review Topic 3]]+Dataset[[#This Row],[2025/26 To - Spending review Topic 4]]+Dataset[[#This Row],[2025/26 To - Other reallocations]]","v":0},{"$f":"Dataset[[#This Row],[2026/27 To - Spending review Topic 1]]+Dataset[[#This Row],[2026/27 To - Spending review Topic 2]]+Dataset[[#This Row],[2026/27 To - Spending review Topic 3]]+Dataset[[#This Row],[2026/27 To - Spending review Topic 4]]+Dataset[[#This Row],[2026/27 To - Other reallocations]]","v":0},{"$f":"Dataset[[#This Row],[2024/25 Reduction]]+Dataset[[#This Row],[2024/25 From - Total]]","v":0},{"$f":"Dataset[[#This Row],[2025/26 Reduction]]+Dataset[[#This Row],[2025/26 From - Total]]","v":0},{"$f":"Dataset[[#This Row],[2026/27 Reduction]]+Dataset[[#This Row],[2026/27 From - Total]]","v":0},{"$f":"Dataset[[#This Row],[2023/24 Reduction]]","v":0},{"$f":"SUM(Dataset[[#This Row],[2024/25 Reduction]],Dataset[[#This Row],[2024/25 From - Total]],Dataset[[#This Row],[2024/25 To - Total]])","v":0},{"$f":"SUM(Dataset[[#This Row],[2025/26 Reduction]],Dataset[[#This Row],[2025/26 From - Total]],Dataset[[#This Row],[2025/26 To - Total]])","v":0},{"$f":"SUM(Dataset[[#This Row],[2026/27 Reduction]],Dataset[[#This Row],[2026/27 From - Total]],Dataset[[#This Row],[2026/27 To - Total]])","v":0},{"$f":"Dataset[[#This Row],[2023/24 Baseline]]+Dataset[[#This Row],[2023/24 Total change]]","v":0},{"$f":"Dataset[[#This Row],[2024/25 Baseline]]+Dataset[[#This Row],[2024/25 Total change]]","v":0},{"$f":"Dataset[[#This Row],[2025/26 Baseline]]+Dataset[[#This Row],[2025/26 Total change]]","v":0},{"$f":"Dataset[[#This Row],[2026/27 Baseline]]+Dataset[[#This Row],[2026/27 Total change]]","v":0}]
["NAT|Non-transfer item","26|Salaries and wages","2024_25","MTEF2024",26,2,3,44504,617,"26","02","03","044504","000617","26|02|03","01","01","01","01","01","01|01|01|01|01","National","Military Veterans","Socioeconomic Support","Socioeconomic Support Management","Non-transfer item","Current","Current payments","Compensation of employees","Salaries and wages","Salaries and wages","Peace and security","Defence and state security","NAT",6419,5243,4086,21769,16967,16967,0,22556,23550,24586,25712,null,null,null,null,null,null,null,null,null,null,null,null,null,null,null,null,null,null,null,null,null,null,null,null,null,null,null,null,null,null,null,null,null,null,{"$f":"Dataset[[#This Row],[2024/25 From - Spending review Topic 1]]+Dataset[[#This Row],[2024/25 From - Spending review Topic 2]]+Dataset[[#This Row],[2024/25 From - Spending review Topic 3]]+Dataset[[#This Row],[2024/25 From - Spending review Topic 4]]+Dataset[[#This Row],[2024/25 From - Other reallocations]]","v":0},{"$f":"Dataset[[#This Row],[2025/26 From - Spending review Topic 1]]+Dataset[[#This Row],[2025/26 From - Spending review Topic 2]]+Dataset[[#This Row],[2025/26 From - Spending review Topic 3]]+Dataset[[#This Row],[2025/26 From - Spending review Topic 4]]+Dataset[[#This Row],[2025/26 From - Other reallocations]]","v":0},{"$f":"Dataset[[#This Row],[2026/27 From - Spending review Topic 1]]+Dataset[[#This Row],[2026/27 From - Spending review Topic 2]]+Dataset[[#This Row],[2026/27 From - Spending review Topic 3]]+Dataset[[#This Row],[2026/27 From - Spending review Topic 4]]+Dataset[[#This Row],[2026/27 From - Other reallocations]]","v":0},{"$f":"Dataset[[#This Row],[2024/25 To - Spending review Topic 1]]+Dataset[[#This Row],[2024/25 To - Spending review Topic 2]]+Dataset[[#This Row],[2024/25 To - Spending review Topic 3]]+Dataset[[#This Row],[2024/25 To - Spending review Topic 4]]+Dataset[[#This Row],[2024/25 To - Other reallocations]]","v":0},{"$f":"Dataset[[#This Row],[2025/26 To - Spending review Topic 1]]+Dataset[[#This Row],[2025/26 To - Spending review Topic 2]]+Dataset[[#This Row],[2025/26 To - Spending review Topic 3]]+Dataset[[#This Row],[2025/26 To - Spending review Topic 4]]+Dataset[[#This Row],[2025/26 To - Other reallocations]]","v":0},{"$f":"Dataset[[#This Row],[2026/27 To - Spending review Topic 1]]+Dataset[[#This Row],[2026/27 To - Spending review Topic 2]]+Dataset[[#This Row],[2026/27 To - Spending review Topic 3]]+Dataset[[#This Row],[2026/27 To - Spending review Topic 4]]+Dataset[[#This Row],[2026/27 To - Other reallocations]]","v":0},{"$f":"Dataset[[#This Row],[2024/25 Reduction]]+Dataset[[#This Row],[2024/25 From - Total]]","v":0},{"$f":"Dataset[[#This Row],[2025/26 Reduction]]+Dataset[[#This Row],[2025/26 From - Total]]","v":0},{"$f":"Dataset[[#This Row],[2026/27 Reduction]]+Dataset[[#This Row],[2026/27 From - Total]]","v":0},{"$f":"Dataset[[#This Row],[2023/24 Reduction]]","v":0},{"$f":"SUM(Dataset[[#This Row],[2024/25 Reduction]],Dataset[[#This Row],[2024/25 From - Total]],Dataset[[#This Row],[2024/25 To - Total]])","v":0},{"$f":"SUM(Dataset[[#This Row],[2025/26 Reduction]],Dataset[[#This Row],[2025/26 From - Total]],Dataset[[#This Row],[2025/26 To - Total]])","v":0},{"$f":"SUM(Dataset[[#This Row],[2026/27 Reduction]],Dataset[[#This Row],[2026/27 From - Total]],Dataset[[#This Row],[2026/27 To - Total]])","v":0},{"$f":"Dataset[[#This Row],[2023/24 Baseline]]+Dataset[[#This Row],[2023/24 Total change]]","v":22556},{"$f":"Dataset[[#This Row],[2024/25 Baseline]]+Dataset[[#This Row],[2024/25 Total change]]","v":23550},{"$f":"Dataset[[#This Row],[2025/26 Baseline]]+Dataset[[#This Row],[2025/26 Total change]]","v":24586},{"$f":"Dataset[[#This Row],[2026/27 Baseline]]+Dataset[[#This Row],[2026/27 Total change]]","v":25712}]
["NAT|Non-transfer item","26|Social contributions","2024_25","MTEF2024",26,2,3,44505,618,"26","02","03","044505","000618","26|02|03","01","01","01","02","02","01|01|01|02|02","National","Military Veterans","Socioeconomic Support","Socioeconomic Support Management","Non-transfer item","Current","Current payments","Compensation of employees","Social contributions","Social contributions","Peace and security","Defence and state security","NAT",571,484,282,1727,1318,1318,0,1789,1868,1950,2039,null,null,null,null,null,null,null,null,null,null,null,null,null,null,null,null,null,null,null,null,null,null,null,null,null,null,null,null,null,null,null,null,null,null,{"$f":"Dataset[[#This Row],[2024/25 From - Spending review Topic 1]]+Dataset[[#This Row],[2024/25 From - Spending review Topic 2]]+Dataset[[#This Row],[2024/25 From - Spending review Topic 3]]+Dataset[[#This Row],[2024/25 From - Spending review Topic 4]]+Dataset[[#This Row],[2024/25 From - Other reallocations]]","v":0},{"$f":"Dataset[[#This Row],[2025/26 From - Spending review Topic 1]]+Dataset[[#This Row],[2025/26 From - Spending review Topic 2]]+Dataset[[#This Row],[2025/26 From - Spending review Topic 3]]+Dataset[[#This Row],[2025/26 From - Spending review Topic 4]]+Dataset[[#This Row],[2025/26 From - Other reallocations]]","v":0},{"$f":"Dataset[[#This Row],[2026/27 From - Spending review Topic 1]]+Dataset[[#This Row],[2026/27 From - Spending review Topic 2]]+Dataset[[#This Row],[2026/27 From - Spending review Topic 3]]+Dataset[[#This Row],[2026/27 From - Spending review Topic 4]]+Dataset[[#This Row],[2026/27 From - Other reallocations]]","v":0},{"$f":"Dataset[[#This Row],[2024/25 To - Spending review Topic 1]]+Dataset[[#This Row],[2024/25 To - Spending review Topic 2]]+Dataset[[#This Row],[2024/25 To - Spending review Topic 3]]+Dataset[[#This Row],[2024/25 To - Spending review Topic 4]]+Dataset[[#This Row],[2024/25 To - Other reallocations]]","v":0},{"$f":"Dataset[[#This Row],[2025/26 To - Spending review Topic 1]]+Dataset[[#This Row],[2025/26 To - Spending review Topic 2]]+Dataset[[#This Row],[2025/26 To - Spending review Topic 3]]+Dataset[[#This Row],[2025/26 To - Spending review Topic 4]]+Dataset[[#This Row],[2025/26 To - Other reallocations]]","v":0},{"$f":"Dataset[[#This Row],[2026/27 To - Spending review Topic 1]]+Dataset[[#This Row],[2026/27 To - Spending review Topic 2]]+Dataset[[#This Row],[2026/27 To - Spending review Topic 3]]+Dataset[[#This Row],[2026/27 To - Spending review Topic 4]]+Dataset[[#This Row],[2026/27 To - Other reallocations]]","v":0},{"$f":"Dataset[[#This Row],[2024/25 Reduction]]+Dataset[[#This Row],[2024/25 From - Total]]","v":0},{"$f":"Dataset[[#This Row],[2025/26 Reduction]]+Dataset[[#This Row],[2025/26 From - Total]]","v":0},{"$f":"Dataset[[#This Row],[2026/27 Reduction]]+Dataset[[#This Row],[2026/27 From - Total]]","v":0},{"$f":"Dataset[[#This Row],[2023/24 Reduction]]","v":0},{"$f":"SUM(Dataset[[#This Row],[2024/25 Reduction]],Dataset[[#This Row],[2024/25 From - Total]],Dataset[[#This Row],[2024/25 To - Total]])","v":0},{"$f":"SUM(Dataset[[#This Row],[2025/26 Reduction]],Dataset[[#This Row],[2025/26 From - Total]],Dataset[[#This Row],[2025/26 To - Total]])","v":0},{"$f":"SUM(Dataset[[#This Row],[2026/27 Reduction]],Dataset[[#This Row],[2026/27 From - Total]],Dataset[[#This Row],[2026/27 To - Total]])","v":0},{"$f":"Dataset[[#This Row],[2023/24 Baseline]]+Dataset[[#This Row],[2023/24 Total change]]","v":1789},{"$f":"Dataset[[#This Row],[2024/25 Baseline]]+Dataset[[#This Row],[2024/25 Total change]]","v":1868},{"$f":"Dataset[[#This Row],[2025/26 Baseline]]+Dataset[[#This Row],[2025/26 Total change]]","v":1950},{"$f":"Dataset[[#This Row],[2026/27 Baseline]]+Dataset[[#This Row],[2026/27 Total change]]","v":2039}]
["NAT|Non-transfer item","26|Administrative fees","2024_25","MTEF2024",26,2,3,44506,619,"26","02","03","044506","000619","26|02|03","01","01","02","03","03","01|01|02|03|03","National","Military Veterans","Socioeconomic Support","Socioeconomic Support Management","Non-transfer item","Current","Current payments","Goods and services","Administrative fees","Administrative fees","Peace and security","Defence and state security","NAT",56,10,504,92,195,195,0,94,98,102,107,null,null,null,null,null,null,null,null,null,null,null,null,null,null,null,null,null,null,null,null,null,null,null,null,null,null,null,null,null,null,null,null,null,null,{"$f":"Dataset[[#This Row],[2024/25 From - Spending review Topic 1]]+Dataset[[#This Row],[2024/25 From - Spending review Topic 2]]+Dataset[[#This Row],[2024/25 From - Spending review Topic 3]]+Dataset[[#This Row],[2024/25 From - Spending review Topic 4]]+Dataset[[#This Row],[2024/25 From - Other reallocations]]","v":0},{"$f":"Dataset[[#This Row],[2025/26 From - Spending review Topic 1]]+Dataset[[#This Row],[2025/26 From - Spending review Topic 2]]+Dataset[[#This Row],[2025/26 From - Spending review Topic 3]]+Dataset[[#This Row],[2025/26 From - Spending review Topic 4]]+Dataset[[#This Row],[2025/26 From - Other reallocations]]","v":0},{"$f":"Dataset[[#This Row],[2026/27 From - Spending review Topic 1]]+Dataset[[#This Row],[2026/27 From - Spending review Topic 2]]+Dataset[[#This Row],[2026/27 From - Spending review Topic 3]]+Dataset[[#This Row],[2026/27 From - Spending review Topic 4]]+Dataset[[#This Row],[2026/27 From - Other reallocations]]","v":0},{"$f":"Dataset[[#This Row],[2024/25 To - Spending review Topic 1]]+Dataset[[#This Row],[2024/25 To - Spending review Topic 2]]+Dataset[[#This Row],[2024/25 To - Spending review Topic 3]]+Dataset[[#This Row],[2024/25 To - Spending review Topic 4]]+Dataset[[#This Row],[2024/25 To - Other reallocations]]","v":0},{"$f":"Dataset[[#This Row],[2025/26 To - Spending review Topic 1]]+Dataset[[#This Row],[2025/26 To - Spending review Topic 2]]+Dataset[[#This Row],[2025/26 To - Spending review Topic 3]]+Dataset[[#This Row],[2025/26 To - Spending review Topic 4]]+Dataset[[#This Row],[2025/26 To - Other reallocations]]","v":0},{"$f":"Dataset[[#This Row],[2026/27 To - Spending review Topic 1]]+Dataset[[#This Row],[2026/27 To - Spending review Topic 2]]+Dataset[[#This Row],[2026/27 To - Spending review Topic 3]]+Dataset[[#This Row],[2026/27 To - Spending review Topic 4]]+Dataset[[#This Row],[2026/27 To - Other reallocations]]","v":0},{"$f":"Dataset[[#This Row],[2024/25 Reduction]]+Dataset[[#This Row],[2024/25 From - Total]]","v":0},{"$f":"Dataset[[#This Row],[2025/26 Reduction]]+Dataset[[#This Row],[2025/26 From - Total]]","v":0},{"$f":"Dataset[[#This Row],[2026/27 Reduction]]+Dataset[[#This Row],[2026/27 From - Total]]","v":0},{"$f":"Dataset[[#This Row],[2023/24 Reduction]]","v":0},{"$f":"SUM(Dataset[[#This Row],[2024/25 Reduction]],Dataset[[#This Row],[2024/25 From - Total]],Dataset[[#This Row],[2024/25 To - Total]])","v":0},{"$f":"SUM(Dataset[[#This Row],[2025/26 Reduction]],Dataset[[#This Row],[2025/26 From - Total]],Dataset[[#This Row],[2025/26 To - Total]])","v":0},{"$f":"SUM(Dataset[[#This Row],[2026/27 Reduction]],Dataset[[#This Row],[2026/27 From - Total]],Dataset[[#This Row],[2026/27 To - Total]])","v":0},{"$f":"Dataset[[#This Row],[2023/24 Baseline]]+Dataset[[#This Row],[2023/24 Total change]]","v":94},{"$f":"Dataset[[#This Row],[2024/25 Baseline]]+Dataset[[#This Row],[2024/25 Total change]]","v":98},{"$f":"Dataset[[#This Row],[2025/26 Baseline]]+Dataset[[#This Row],[2025/26 Total change]]","v":102},{"$f":"Dataset[[#This Row],[2026/27 Baseline]]+Dataset[[#This Row],[2026/27 Total change]]","v":107}]
["NAT|Non-transfer item","26|Advertising","2024_25","MTEF2024",26,2,3,44507,620,"26","02","03","044507","000620","26|02|03","01","01","02","04","04","01|01|02|04|04","National","Military Veterans","Socioeconomic Support","Socioeconomic Support Management","Non-transfer item","Current","Current payments","Goods and services","Advertising","Advertising","Peace and security","Defence and state security","NAT",1244,35,2184,1076,1526,1526,0,1101,1159,1211,1266,null,null,null,null,null,null,null,null,null,null,null,null,null,null,null,null,null,null,null,null,null,null,null,null,null,null,null,null,null,null,null,null,null,null,{"$f":"Dataset[[#This Row],[2024/25 From - Spending review Topic 1]]+Dataset[[#This Row],[2024/25 From - Spending review Topic 2]]+Dataset[[#This Row],[2024/25 From - Spending review Topic 3]]+Dataset[[#This Row],[2024/25 From - Spending review Topic 4]]+Dataset[[#This Row],[2024/25 From - Other reallocations]]","v":0},{"$f":"Dataset[[#This Row],[2025/26 From - Spending review Topic 1]]+Dataset[[#This Row],[2025/26 From - Spending review Topic 2]]+Dataset[[#This Row],[2025/26 From - Spending review Topic 3]]+Dataset[[#This Row],[2025/26 From - Spending review Topic 4]]+Dataset[[#This Row],[2025/26 From - Other reallocations]]","v":0},{"$f":"Dataset[[#This Row],[2026/27 From - Spending review Topic 1]]+Dataset[[#This Row],[2026/27 From - Spending review Topic 2]]+Dataset[[#This Row],[2026/27 From - Spending review Topic 3]]+Dataset[[#This Row],[2026/27 From - Spending review Topic 4]]+Dataset[[#This Row],[2026/27 From - Other reallocations]]","v":0},{"$f":"Dataset[[#This Row],[2024/25 To - Spending review Topic 1]]+Dataset[[#This Row],[2024/25 To - Spending review Topic 2]]+Dataset[[#This Row],[2024/25 To - Spending review Topic 3]]+Dataset[[#This Row],[2024/25 To - Spending review Topic 4]]+Dataset[[#This Row],[2024/25 To - Other reallocations]]","v":0},{"$f":"Dataset[[#This Row],[2025/26 To - Spending review Topic 1]]+Dataset[[#This Row],[2025/26 To - Spending review Topic 2]]+Dataset[[#This Row],[2025/26 To - Spending review Topic 3]]+Dataset[[#This Row],[2025/26 To - Spending review Topic 4]]+Dataset[[#This Row],[2025/26 To - Other reallocations]]","v":0},{"$f":"Dataset[[#This Row],[2026/27 To - Spending review Topic 1]]+Dataset[[#This Row],[2026/27 To - Spending review Topic 2]]+Dataset[[#This Row],[2026/27 To - Spending review Topic 3]]+Dataset[[#This Row],[2026/27 To - Spending review Topic 4]]+Dataset[[#This Row],[2026/27 To - Other reallocations]]","v":0},{"$f":"Dataset[[#This Row],[2024/25 Reduction]]+Dataset[[#This Row],[2024/25 From - Total]]","v":0},{"$f":"Dataset[[#This Row],[2025/26 Reduction]]+Dataset[[#This Row],[2025/26 From - Total]]","v":0},{"$f":"Dataset[[#This Row],[2026/27 Reduction]]+Dataset[[#This Row],[2026/27 From - Total]]","v":0},{"$f":"Dataset[[#This Row],[2023/24 Reduction]]","v":0},{"$f":"SUM(Dataset[[#This Row],[2024/25 Reduction]],Dataset[[#This Row],[2024/25 From - Total]],Dataset[[#This Row],[2024/25 To - Total]])","v":0},{"$f":"SUM(Dataset[[#This Row],[2025/26 Reduction]],Dataset[[#This Row],[2025/26 From - Total]],Dataset[[#This Row],[2025/26 To - Total]])","v":0},{"$f":"SUM(Dataset[[#This Row],[2026/27 Reduction]],Dataset[[#This Row],[2026/27 From - Total]],Dataset[[#This Row],[2026/27 To - Total]])","v":0},{"$f":"Dataset[[#This Row],[2023/24 Baseline]]+Dataset[[#This Row],[2023/24 Total change]]","v":1101},{"$f":"Dataset[[#This Row],[2024/25 Baseline]]+Dataset[[#This Row],[2024/25 Total change]]","v":1159},{"$f":"Dataset[[#This Row],[2025/26 Baseline]]+Dataset[[#This Row],[2025/26 Total change]]","v":1211},{"$f":"Dataset[[#This Row],[2026/27 Baseline]]+Dataset[[#This Row],[2026/27 Total change]]","v":1266}]
["NAT|Non-transfer item","26|Minor assets","2024_25","MTEF2024",26,2,3,44508,621,"26","02","03","044508","000621","26|02|03","01","01","02","05","05","01|01|02|05|05","National","Military Veterans","Socioeconomic Support","Socioeconomic Support Management","Non-transfer item","Current","Current payments","Goods and services","Minor assets","Minor assets","Peace and security","Defence and state security","NAT",13,0,4,93,83,83,0,117,120,124,130,null,null,null,null,null,null,null,null,null,null,null,null,null,null,null,null,null,null,null,null,null,null,null,null,null,null,null,null,null,null,null,null,null,null,{"$f":"Dataset[[#This Row],[2024/25 From - Spending review Topic 1]]+Dataset[[#This Row],[2024/25 From - Spending review Topic 2]]+Dataset[[#This Row],[2024/25 From - Spending review Topic 3]]+Dataset[[#This Row],[2024/25 From - Spending review Topic 4]]+Dataset[[#This Row],[2024/25 From - Other reallocations]]","v":0},{"$f":"Dataset[[#This Row],[2025/26 From - Spending review Topic 1]]+Dataset[[#This Row],[2025/26 From - Spending review Topic 2]]+Dataset[[#This Row],[2025/26 From - Spending review Topic 3]]+Dataset[[#This Row],[2025/26 From - Spending review Topic 4]]+Dataset[[#This Row],[2025/26 From - Other reallocations]]","v":0},{"$f":"Dataset[[#This Row],[2026/27 From - Spending review Topic 1]]+Dataset[[#This Row],[2026/27 From - Spending review Topic 2]]+Dataset[[#This Row],[2026/27 From - Spending review Topic 3]]+Dataset[[#This Row],[2026/27 From - Spending review Topic 4]]+Dataset[[#This Row],[2026/27 From - Other reallocations]]","v":0},{"$f":"Dataset[[#This Row],[2024/25 To - Spending review Topic 1]]+Dataset[[#This Row],[2024/25 To - Spending review Topic 2]]+Dataset[[#This Row],[2024/25 To - Spending review Topic 3]]+Dataset[[#This Row],[2024/25 To - Spending review Topic 4]]+Dataset[[#This Row],[2024/25 To - Other reallocations]]","v":0},{"$f":"Dataset[[#This Row],[2025/26 To - Spending review Topic 1]]+Dataset[[#This Row],[2025/26 To - Spending review Topic 2]]+Dataset[[#This Row],[2025/26 To - Spending review Topic 3]]+Dataset[[#This Row],[2025/26 To - Spending review Topic 4]]+Dataset[[#This Row],[2025/26 To - Other reallocations]]","v":0},{"$f":"Dataset[[#This Row],[2026/27 To - Spending review Topic 1]]+Dataset[[#This Row],[2026/27 To - Spending review Topic 2]]+Dataset[[#This Row],[2026/27 To - Spending review Topic 3]]+Dataset[[#This Row],[2026/27 To - Spending review Topic 4]]+Dataset[[#This Row],[2026/27 To - Other reallocations]]","v":0},{"$f":"Dataset[[#This Row],[2024/25 Reduction]]+Dataset[[#This Row],[2024/25 From - Total]]","v":0},{"$f":"Dataset[[#This Row],[2025/26 Reduction]]+Dataset[[#This Row],[2025/26 From - Total]]","v":0},{"$f":"Dataset[[#This Row],[2026/27 Reduction]]+Dataset[[#This Row],[2026/27 From - Total]]","v":0},{"$f":"Dataset[[#This Row],[2023/24 Reduction]]","v":0},{"$f":"SUM(Dataset[[#This Row],[2024/25 Reduction]],Dataset[[#This Row],[2024/25 From - Total]],Dataset[[#This Row],[2024/25 To - Total]])","v":0},{"$f":"SUM(Dataset[[#This Row],[2025/26 Reduction]],Dataset[[#This Row],[2025/26 From - Total]],Dataset[[#This Row],[2025/26 To - Total]])","v":0},{"$f":"SUM(Dataset[[#This Row],[2026/27 Reduction]],Dataset[[#This Row],[2026/27 From - Total]],Dataset[[#This Row],[2026/27 To - Total]])","v":0},{"$f":"Dataset[[#This Row],[2023/24 Baseline]]+Dataset[[#This Row],[2023/24 Total change]]","v":117},{"$f":"Dataset[[#This Row],[2024/25 Baseline]]+Dataset[[#This Row],[2024/25 Total change]]","v":120},{"$f":"Dataset[[#This Row],[2025/26 Baseline]]+Dataset[[#This Row],[2025/26 Total change]]","v":124},{"$f":"Dataset[[#This Row],[2026/27 Baseline]]+Dataset[[#This Row],[2026/27 Total change]]","v":130}]
["NAT|Non-transfer item","26|Audit costs: External","2024_25","MTEF2024",26,2,3,44509,622,"26","02","03","044509","000622","26|02|03","01","01","02","06","06","01|01|02|06|06","National","Military Veterans","Socioeconomic Support","Socioeconomic Support Management","Non-transfer item","Current","Current payments","Goods and services","Audit costs: External","Audit costs: External","Peace and security","Defence and state security","NAT",0,0,0,0,0,0,0,0,0,0,0,null,null,null,null,null,null,null,null,null,null,null,null,null,null,null,null,null,null,null,null,null,null,null,null,null,null,null,null,null,null,null,null,null,null,{"$f":"Dataset[[#This Row],[2024/25 From - Spending review Topic 1]]+Dataset[[#This Row],[2024/25 From - Spending review Topic 2]]+Dataset[[#This Row],[2024/25 From - Spending review Topic 3]]+Dataset[[#This Row],[2024/25 From - Spending review Topic 4]]+Dataset[[#This Row],[2024/25 From - Other reallocations]]","v":0},{"$f":"Dataset[[#This Row],[2025/26 From - Spending review Topic 1]]+Dataset[[#This Row],[2025/26 From - Spending review Topic 2]]+Dataset[[#This Row],[2025/26 From - Spending review Topic 3]]+Dataset[[#This Row],[2025/26 From - Spending review Topic 4]]+Dataset[[#This Row],[2025/26 From - Other reallocations]]","v":0},{"$f":"Dataset[[#This Row],[2026/27 From - Spending review Topic 1]]+Dataset[[#This Row],[2026/27 From - Spending review Topic 2]]+Dataset[[#This Row],[2026/27 From - Spending review Topic 3]]+Dataset[[#This Row],[2026/27 From - Spending review Topic 4]]+Dataset[[#This Row],[2026/27 From - Other reallocations]]","v":0},{"$f":"Dataset[[#This Row],[2024/25 To - Spending review Topic 1]]+Dataset[[#This Row],[2024/25 To - Spending review Topic 2]]+Dataset[[#This Row],[2024/25 To - Spending review Topic 3]]+Dataset[[#This Row],[2024/25 To - Spending review Topic 4]]+Dataset[[#This Row],[2024/25 To - Other reallocations]]","v":0},{"$f":"Dataset[[#This Row],[2025/26 To - Spending review Topic 1]]+Dataset[[#This Row],[2025/26 To - Spending review Topic 2]]+Dataset[[#This Row],[2025/26 To - Spending review Topic 3]]+Dataset[[#This Row],[2025/26 To - Spending review Topic 4]]+Dataset[[#This Row],[2025/26 To - Other reallocations]]","v":0},{"$f":"Dataset[[#This Row],[2026/27 To - Spending review Topic 1]]+Dataset[[#This Row],[2026/27 To - Spending review Topic 2]]+Dataset[[#This Row],[2026/27 To - Spending review Topic 3]]+Dataset[[#This Row],[2026/27 To - Spending review Topic 4]]+Dataset[[#This Row],[2026/27 To - Other reallocations]]","v":0},{"$f":"Dataset[[#This Row],[2024/25 Reduction]]+Dataset[[#This Row],[2024/25 From - Total]]","v":0},{"$f":"Dataset[[#This Row],[2025/26 Reduction]]+Dataset[[#This Row],[2025/26 From - Total]]","v":0},{"$f":"Dataset[[#This Row],[2026/27 Reduction]]+Dataset[[#This Row],[2026/27 From - Total]]","v":0},{"$f":"Dataset[[#This Row],[2023/24 Reduction]]","v":0},{"$f":"SUM(Dataset[[#This Row],[2024/25 Reduction]],Dataset[[#This Row],[2024/25 From - Total]],Dataset[[#This Row],[2024/25 To - Total]])","v":0},{"$f":"SUM(Dataset[[#This Row],[2025/26 Reduction]],Dataset[[#This Row],[2025/26 From - Total]],Dataset[[#This Row],[2025/26 To - Total]])","v":0},{"$f":"SUM(Dataset[[#This Row],[2026/27 Reduction]],Dataset[[#This Row],[2026/27 From - Total]],Dataset[[#This Row],[2026/27 To - Total]])","v":0},{"$f":"Dataset[[#This Row],[2023/24 Baseline]]+Dataset[[#This Row],[2023/24 Total change]]","v":0},{"$f":"Dataset[[#This Row],[2024/25 Baseline]]+Dataset[[#This Row],[2024/25 Total change]]","v":0},{"$f":"Dataset[[#This Row],[2025/26 Baseline]]+Dataset[[#This Row],[2025/26 Total change]]","v":0},{"$f":"Dataset[[#This Row],[2026/27 Baseline]]+Dataset[[#This Row],[2026/27 Total change]]","v":0}]
["NAT|Non-transfer item","26|Bursaries: Employees","2024_25","MTEF2024",26,2,3,44510,623,"26","02","03","044510","000623","26|02|03","01","01","02","07","07","01|01|02|07|07","National","Military Veterans","Socioeconomic Support","Socioeconomic Support Management","Non-transfer item","Current","Current payments","Goods and services","Bursaries: Employees","Bursaries: Employees","Peace and security","Defence and state security","NAT",0,0,0,0,0,0,0,0,0,0,0,null,null,null,null,null,null,null,null,null,null,null,null,null,null,null,null,null,null,null,null,null,null,null,null,null,null,null,null,null,null,null,null,null,null,{"$f":"Dataset[[#This Row],[2024/25 From - Spending review Topic 1]]+Dataset[[#This Row],[2024/25 From - Spending review Topic 2]]+Dataset[[#This Row],[2024/25 From - Spending review Topic 3]]+Dataset[[#This Row],[2024/25 From - Spending review Topic 4]]+Dataset[[#This Row],[2024/25 From - Other reallocations]]","v":0},{"$f":"Dataset[[#This Row],[2025/26 From - Spending review Topic 1]]+Dataset[[#This Row],[2025/26 From - Spending review Topic 2]]+Dataset[[#This Row],[2025/26 From - Spending review Topic 3]]+Dataset[[#This Row],[2025/26 From - Spending review Topic 4]]+Dataset[[#This Row],[2025/26 From - Other reallocations]]","v":0},{"$f":"Dataset[[#This Row],[2026/27 From - Spending review Topic 1]]+Dataset[[#This Row],[2026/27 From - Spending review Topic 2]]+Dataset[[#This Row],[2026/27 From - Spending review Topic 3]]+Dataset[[#This Row],[2026/27 From - Spending review Topic 4]]+Dataset[[#This Row],[2026/27 From - Other reallocations]]","v":0},{"$f":"Dataset[[#This Row],[2024/25 To - Spending review Topic 1]]+Dataset[[#This Row],[2024/25 To - Spending review Topic 2]]+Dataset[[#This Row],[2024/25 To - Spending review Topic 3]]+Dataset[[#This Row],[2024/25 To - Spending review Topic 4]]+Dataset[[#This Row],[2024/25 To - Other reallocations]]","v":0},{"$f":"Dataset[[#This Row],[2025/26 To - Spending review Topic 1]]+Dataset[[#This Row],[2025/26 To - Spending review Topic 2]]+Dataset[[#This Row],[2025/26 To - Spending review Topic 3]]+Dataset[[#This Row],[2025/26 To - Spending review Topic 4]]+Dataset[[#This Row],[2025/26 To - Other reallocations]]","v":0},{"$f":"Dataset[[#This Row],[2026/27 To - Spending review Topic 1]]+Dataset[[#This Row],[2026/27 To - Spending review Topic 2]]+Dataset[[#This Row],[2026/27 To - Spending review Topic 3]]+Dataset[[#This Row],[2026/27 To - Spending review Topic 4]]+Dataset[[#This Row],[2026/27 To - Other reallocations]]","v":0},{"$f":"Dataset[[#This Row],[2024/25 Reduction]]+Dataset[[#This Row],[2024/25 From - Total]]","v":0},{"$f":"Dataset[[#This Row],[2025/26 Reduction]]+Dataset[[#This Row],[2025/26 From - Total]]","v":0},{"$f":"Dataset[[#This Row],[2026/27 Reduction]]+Dataset[[#This Row],[2026/27 From - Total]]","v":0},{"$f":"Dataset[[#This Row],[2023/24 Reduction]]","v":0},{"$f":"SUM(Dataset[[#This Row],[2024/25 Reduction]],Dataset[[#This Row],[2024/25 From - Total]],Dataset[[#This Row],[2024/25 To - Total]])","v":0},{"$f":"SUM(Dataset[[#This Row],[2025/26 Reduction]],Dataset[[#This Row],[2025/26 From - Total]],Dataset[[#This Row],[2025/26 To - Total]])","v":0},{"$f":"SUM(Dataset[[#This Row],[2026/27 Reduction]],Dataset[[#This Row],[2026/27 From - Total]],Dataset[[#This Row],[2026/27 To - Total]])","v":0},{"$f":"Dataset[[#This Row],[2023/24 Baseline]]+Dataset[[#This Row],[2023/24 Total change]]","v":0},{"$f":"Dataset[[#This Row],[2024/25 Baseline]]+Dataset[[#This Row],[2024/25 Total change]]","v":0},{"$f":"Dataset[[#This Row],[2025/26 Baseline]]+Dataset[[#This Row],[2025/26 Total change]]","v":0},{"$f":"Dataset[[#This Row],[2026/27 Baseline]]+Dataset[[#This Row],[2026/27 Total change]]","v":0}]
["NAT|Non-transfer item","26|Catering: Departmental activities","2024_25","MTEF2024",26,2,3,44511,624,"26","02","03","044511","000624","26|02|03","01","01","02","08","08","01|01|02|08|08","National","Military Veterans","Socioeconomic Support","Socioeconomic Support Management","Non-transfer item","Current","Current payments","Goods and services","Catering: Departmental activities","Catering: Departmental activities","Peace and security","Defence and state security","NAT",23,0,4,100,0,0,0,80,88,93,97,null,null,null,null,null,null,null,null,null,null,null,null,null,null,null,null,null,null,null,null,null,null,null,null,null,null,null,null,null,null,null,null,null,null,{"$f":"Dataset[[#This Row],[2024/25 From - Spending review Topic 1]]+Dataset[[#This Row],[2024/25 From - Spending review Topic 2]]+Dataset[[#This Row],[2024/25 From - Spending review Topic 3]]+Dataset[[#This Row],[2024/25 From - Spending review Topic 4]]+Dataset[[#This Row],[2024/25 From - Other reallocations]]","v":0},{"$f":"Dataset[[#This Row],[2025/26 From - Spending review Topic 1]]+Dataset[[#This Row],[2025/26 From - Spending review Topic 2]]+Dataset[[#This Row],[2025/26 From - Spending review Topic 3]]+Dataset[[#This Row],[2025/26 From - Spending review Topic 4]]+Dataset[[#This Row],[2025/26 From - Other reallocations]]","v":0},{"$f":"Dataset[[#This Row],[2026/27 From - Spending review Topic 1]]+Dataset[[#This Row],[2026/27 From - Spending review Topic 2]]+Dataset[[#This Row],[2026/27 From - Spending review Topic 3]]+Dataset[[#This Row],[2026/27 From - Spending review Topic 4]]+Dataset[[#This Row],[2026/27 From - Other reallocations]]","v":0},{"$f":"Dataset[[#This Row],[2024/25 To - Spending review Topic 1]]+Dataset[[#This Row],[2024/25 To - Spending review Topic 2]]+Dataset[[#This Row],[2024/25 To - Spending review Topic 3]]+Dataset[[#This Row],[2024/25 To - Spending review Topic 4]]+Dataset[[#This Row],[2024/25 To - Other reallocations]]","v":0},{"$f":"Dataset[[#This Row],[2025/26 To - Spending review Topic 1]]+Dataset[[#This Row],[2025/26 To - Spending review Topic 2]]+Dataset[[#This Row],[2025/26 To - Spending review Topic 3]]+Dataset[[#This Row],[2025/26 To - Spending review Topic 4]]+Dataset[[#This Row],[2025/26 To - Other reallocations]]","v":0},{"$f":"Dataset[[#This Row],[2026/27 To - Spending review Topic 1]]+Dataset[[#This Row],[2026/27 To - Spending review Topic 2]]+Dataset[[#This Row],[2026/27 To - Spending review Topic 3]]+Dataset[[#This Row],[2026/27 To - Spending review Topic 4]]+Dataset[[#This Row],[2026/27 To - Other reallocations]]","v":0},{"$f":"Dataset[[#This Row],[2024/25 Reduction]]+Dataset[[#This Row],[2024/25 From - Total]]","v":0},{"$f":"Dataset[[#This Row],[2025/26 Reduction]]+Dataset[[#This Row],[2025/26 From - Total]]","v":0},{"$f":"Dataset[[#This Row],[2026/27 Reduction]]+Dataset[[#This Row],[2026/27 From - Total]]","v":0},{"$f":"Dataset[[#This Row],[2023/24 Reduction]]","v":0},{"$f":"SUM(Dataset[[#This Row],[2024/25 Reduction]],Dataset[[#This Row],[2024/25 From - Total]],Dataset[[#This Row],[2024/25 To - Total]])","v":0},{"$f":"SUM(Dataset[[#This Row],[2025/26 Reduction]],Dataset[[#This Row],[2025/26 From - Total]],Dataset[[#This Row],[2025/26 To - Total]])","v":0},{"$f":"SUM(Dataset[[#This Row],[2026/27 Reduction]],Dataset[[#This Row],[2026/27 From - Total]],Dataset[[#This Row],[2026/27 To - Total]])","v":0},{"$f":"Dataset[[#This Row],[2023/24 Baseline]]+Dataset[[#This Row],[2023/24 Total change]]","v":80},{"$f":"Dataset[[#This Row],[2024/25 Baseline]]+Dataset[[#This Row],[2024/25 Total change]]","v":88},{"$f":"Dataset[[#This Row],[2025/26 Baseline]]+Dataset[[#This Row],[2025/26 Total change]]","v":93},{"$f":"Dataset[[#This Row],[2026/27 Baseline]]+Dataset[[#This Row],[2026/27 Total change]]","v":97}]
["NAT|Non-transfer item","26|Communication (G&S)","2024_25","MTEF2024",26,2,3,44512,625,"26","02","03","044512","000625","26|02|03","01","01","02","09","09","01|01|02|09|09","National","Military Veterans","Socioeconomic Support","Socioeconomic Support Management","Non-transfer item","Current","Current payments","Goods and services","Communication (G&S)","Communication (G&S)","Peace and security","Defence and state security","NAT",0,0,0,0,0,0,0,0,0,0,0,null,null,null,null,null,null,null,null,null,null,null,null,null,null,null,null,null,null,null,null,null,null,null,null,null,null,null,null,null,null,null,null,null,null,{"$f":"Dataset[[#This Row],[2024/25 From - Spending review Topic 1]]+Dataset[[#This Row],[2024/25 From - Spending review Topic 2]]+Dataset[[#This Row],[2024/25 From - Spending review Topic 3]]+Dataset[[#This Row],[2024/25 From - Spending review Topic 4]]+Dataset[[#This Row],[2024/25 From - Other reallocations]]","v":0},{"$f":"Dataset[[#This Row],[2025/26 From - Spending review Topic 1]]+Dataset[[#This Row],[2025/26 From - Spending review Topic 2]]+Dataset[[#This Row],[2025/26 From - Spending review Topic 3]]+Dataset[[#This Row],[2025/26 From - Spending review Topic 4]]+Dataset[[#This Row],[2025/26 From - Other reallocations]]","v":0},{"$f":"Dataset[[#This Row],[2026/27 From - Spending review Topic 1]]+Dataset[[#This Row],[2026/27 From - Spending review Topic 2]]+Dataset[[#This Row],[2026/27 From - Spending review Topic 3]]+Dataset[[#This Row],[2026/27 From - Spending review Topic 4]]+Dataset[[#This Row],[2026/27 From - Other reallocations]]","v":0},{"$f":"Dataset[[#This Row],[2024/25 To - Spending review Topic 1]]+Dataset[[#This Row],[2024/25 To - Spending review Topic 2]]+Dataset[[#This Row],[2024/25 To - Spending review Topic 3]]+Dataset[[#This Row],[2024/25 To - Spending review Topic 4]]+Dataset[[#This Row],[2024/25 To - Other reallocations]]","v":0},{"$f":"Dataset[[#This Row],[2025/26 To - Spending review Topic 1]]+Dataset[[#This Row],[2025/26 To - Spending review Topic 2]]+Dataset[[#This Row],[2025/26 To - Spending review Topic 3]]+Dataset[[#This Row],[2025/26 To - Spending review Topic 4]]+Dataset[[#This Row],[2025/26 To - Other reallocations]]","v":0},{"$f":"Dataset[[#This Row],[2026/27 To - Spending review Topic 1]]+Dataset[[#This Row],[2026/27 To - Spending review Topic 2]]+Dataset[[#This Row],[2026/27 To - Spending review Topic 3]]+Dataset[[#This Row],[2026/27 To - Spending review Topic 4]]+Dataset[[#This Row],[2026/27 To - Other reallocations]]","v":0},{"$f":"Dataset[[#This Row],[2024/25 Reduction]]+Dataset[[#This Row],[2024/25 From - Total]]","v":0},{"$f":"Dataset[[#This Row],[2025/26 Reduction]]+Dataset[[#This Row],[2025/26 From - Total]]","v":0},{"$f":"Dataset[[#This Row],[2026/27 Reduction]]+Dataset[[#This Row],[2026/27 From - Total]]","v":0},{"$f":"Dataset[[#This Row],[2023/24 Reduction]]","v":0},{"$f":"SUM(Dataset[[#This Row],[2024/25 Reduction]],Dataset[[#This Row],[2024/25 From - Total]],Dataset[[#This Row],[2024/25 To - Total]])","v":0},{"$f":"SUM(Dataset[[#This Row],[2025/26 Reduction]],Dataset[[#This Row],[2025/26 From - Total]],Dataset[[#This Row],[2025/26 To - Total]])","v":0},{"$f":"SUM(Dataset[[#This Row],[2026/27 Reduction]],Dataset[[#This Row],[2026/27 From - Total]],Dataset[[#This Row],[2026/27 To - Total]])","v":0},{"$f":"Dataset[[#This Row],[2023/24 Baseline]]+Dataset[[#This Row],[2023/24 Total change]]","v":0},{"$f":"Dataset[[#This Row],[2024/25 Baseline]]+Dataset[[#This Row],[2024/25 Total change]]","v":0},{"$f":"Dataset[[#This Row],[2025/26 Baseline]]+Dataset[[#This Row],[2025/26 Total change]]","v":0},{"$f":"Dataset[[#This Row],[2026/27 Baseline]]+Dataset[[#This Row],[2026/27 Total change]]","v":0}]
["NAT|Non-transfer item","26|Computer services","2024_25","MTEF2024",26,2,3,44513,626,"26","02","03","044513","000626","26|02|03","01","01","02","10","10","01|01|02|10|10","National","Military Veterans","Socioeconomic Support","Socioeconomic Support Management","Non-transfer item","Current","Current payments","Goods and services","Computer services","Computer services","Peace and security","Defence and state security","NAT",0,0,0,0,0,0,0,0,0,0,0,null,null,null,null,null,null,null,null,null,null,null,null,null,null,null,null,null,null,null,null,null,null,null,null,null,null,null,null,null,null,null,null,null,null,{"$f":"Dataset[[#This Row],[2024/25 From - Spending review Topic 1]]+Dataset[[#This Row],[2024/25 From - Spending review Topic 2]]+Dataset[[#This Row],[2024/25 From - Spending review Topic 3]]+Dataset[[#This Row],[2024/25 From - Spending review Topic 4]]+Dataset[[#This Row],[2024/25 From - Other reallocations]]","v":0},{"$f":"Dataset[[#This Row],[2025/26 From - Spending review Topic 1]]+Dataset[[#This Row],[2025/26 From - Spending review Topic 2]]+Dataset[[#This Row],[2025/26 From - Spending review Topic 3]]+Dataset[[#This Row],[2025/26 From - Spending review Topic 4]]+Dataset[[#This Row],[2025/26 From - Other reallocations]]","v":0},{"$f":"Dataset[[#This Row],[2026/27 From - Spending review Topic 1]]+Dataset[[#This Row],[2026/27 From - Spending review Topic 2]]+Dataset[[#This Row],[2026/27 From - Spending review Topic 3]]+Dataset[[#This Row],[2026/27 From - Spending review Topic 4]]+Dataset[[#This Row],[2026/27 From - Other reallocations]]","v":0},{"$f":"Dataset[[#This Row],[2024/25 To - Spending review Topic 1]]+Dataset[[#This Row],[2024/25 To - Spending review Topic 2]]+Dataset[[#This Row],[2024/25 To - Spending review Topic 3]]+Dataset[[#This Row],[2024/25 To - Spending review Topic 4]]+Dataset[[#This Row],[2024/25 To - Other reallocations]]","v":0},{"$f":"Dataset[[#This Row],[2025/26 To - Spending review Topic 1]]+Dataset[[#This Row],[2025/26 To - Spending review Topic 2]]+Dataset[[#This Row],[2025/26 To - Spending review Topic 3]]+Dataset[[#This Row],[2025/26 To - Spending review Topic 4]]+Dataset[[#This Row],[2025/26 To - Other reallocations]]","v":0},{"$f":"Dataset[[#This Row],[2026/27 To - Spending review Topic 1]]+Dataset[[#This Row],[2026/27 To - Spending review Topic 2]]+Dataset[[#This Row],[2026/27 To - Spending review Topic 3]]+Dataset[[#This Row],[2026/27 To - Spending review Topic 4]]+Dataset[[#This Row],[2026/27 To - Other reallocations]]","v":0},{"$f":"Dataset[[#This Row],[2024/25 Reduction]]+Dataset[[#This Row],[2024/25 From - Total]]","v":0},{"$f":"Dataset[[#This Row],[2025/26 Reduction]]+Dataset[[#This Row],[2025/26 From - Total]]","v":0},{"$f":"Dataset[[#This Row],[2026/27 Reduction]]+Dataset[[#This Row],[2026/27 From - Total]]","v":0},{"$f":"Dataset[[#This Row],[2023/24 Reduction]]","v":0},{"$f":"SUM(Dataset[[#This Row],[2024/25 Reduction]],Dataset[[#This Row],[2024/25 From - Total]],Dataset[[#This Row],[2024/25 To - Total]])","v":0},{"$f":"SUM(Dataset[[#This Row],[2025/26 Reduction]],Dataset[[#This Row],[2025/26 From - Total]],Dataset[[#This Row],[2025/26 To - Total]])","v":0},{"$f":"SUM(Dataset[[#This Row],[2026/27 Reduction]],Dataset[[#This Row],[2026/27 From - Total]],Dataset[[#This Row],[2026/27 To - Total]])","v":0},{"$f":"Dataset[[#This Row],[2023/24 Baseline]]+Dataset[[#This Row],[2023/24 Total change]]","v":0},{"$f":"Dataset[[#This Row],[2024/25 Baseline]]+Dataset[[#This Row],[2024/25 Total change]]","v":0},{"$f":"Dataset[[#This Row],[2025/26 Baseline]]+Dataset[[#This Row],[2025/26 Total change]]","v":0},{"$f":"Dataset[[#This Row],[2026/27 Baseline]]+Dataset[[#This Row],[2026/27 Total change]]","v":0}]
["NAT|Non-transfer item","26|Consultants: Business and advisory services","2024_25","MTEF2024",26,2,3,44514,627,"26","02","03","044514","000627","26|02|03","01","01","02","11","11","01|01|02|11|11","National","Military Veterans","Socioeconomic Support","Socioeconomic Support Management","Non-transfer item","Current","Current payments","Goods and services","Consultants: Business and advisory services","Consultants: Business and advisory services","Peace and security","Defence and state security","NAT",0,0,0,0,0,0,0,0,0,0,0,null,null,null,null,null,null,null,null,null,null,null,null,null,null,null,null,null,null,null,null,null,null,null,null,null,null,null,null,null,null,null,null,null,null,{"$f":"Dataset[[#This Row],[2024/25 From - Spending review Topic 1]]+Dataset[[#This Row],[2024/25 From - Spending review Topic 2]]+Dataset[[#This Row],[2024/25 From - Spending review Topic 3]]+Dataset[[#This Row],[2024/25 From - Spending review Topic 4]]+Dataset[[#This Row],[2024/25 From - Other reallocations]]","v":0},{"$f":"Dataset[[#This Row],[2025/26 From - Spending review Topic 1]]+Dataset[[#This Row],[2025/26 From - Spending review Topic 2]]+Dataset[[#This Row],[2025/26 From - Spending review Topic 3]]+Dataset[[#This Row],[2025/26 From - Spending review Topic 4]]+Dataset[[#This Row],[2025/26 From - Other reallocations]]","v":0},{"$f":"Dataset[[#This Row],[2026/27 From - Spending review Topic 1]]+Dataset[[#This Row],[2026/27 From - Spending review Topic 2]]+Dataset[[#This Row],[2026/27 From - Spending review Topic 3]]+Dataset[[#This Row],[2026/27 From - Spending review Topic 4]]+Dataset[[#This Row],[2026/27 From - Other reallocations]]","v":0},{"$f":"Dataset[[#This Row],[2024/25 To - Spending review Topic 1]]+Dataset[[#This Row],[2024/25 To - Spending review Topic 2]]+Dataset[[#This Row],[2024/25 To - Spending review Topic 3]]+Dataset[[#This Row],[2024/25 To - Spending review Topic 4]]+Dataset[[#This Row],[2024/25 To - Other reallocations]]","v":0},{"$f":"Dataset[[#This Row],[2025/26 To - Spending review Topic 1]]+Dataset[[#This Row],[2025/26 To - Spending review Topic 2]]+Dataset[[#This Row],[2025/26 To - Spending review Topic 3]]+Dataset[[#This Row],[2025/26 To - Spending review Topic 4]]+Dataset[[#This Row],[2025/26 To - Other reallocations]]","v":0},{"$f":"Dataset[[#This Row],[2026/27 To - Spending review Topic 1]]+Dataset[[#This Row],[2026/27 To - Spending review Topic 2]]+Dataset[[#This Row],[2026/27 To - Spending review Topic 3]]+Dataset[[#This Row],[2026/27 To - Spending review Topic 4]]+Dataset[[#This Row],[2026/27 To - Other reallocations]]","v":0},{"$f":"Dataset[[#This Row],[2024/25 Reduction]]+Dataset[[#This Row],[2024/25 From - Total]]","v":0},{"$f":"Dataset[[#This Row],[2025/26 Reduction]]+Dataset[[#This Row],[2025/26 From - Total]]","v":0},{"$f":"Dataset[[#This Row],[2026/27 Reduction]]+Dataset[[#This Row],[2026/27 From - Total]]","v":0},{"$f":"Dataset[[#This Row],[2023/24 Reduction]]","v":0},{"$f":"SUM(Dataset[[#This Row],[2024/25 Reduction]],Dataset[[#This Row],[2024/25 From - Total]],Dataset[[#This Row],[2024/25 To - Total]])","v":0},{"$f":"SUM(Dataset[[#This Row],[2025/26 Reduction]],Dataset[[#This Row],[2025/26 From - Total]],Dataset[[#This Row],[2025/26 To - Total]])","v":0},{"$f":"SUM(Dataset[[#This Row],[2026/27 Reduction]],Dataset[[#This Row],[2026/27 From - Total]],Dataset[[#This Row],[2026/27 To - Total]])","v":0},{"$f":"Dataset[[#This Row],[2023/24 Baseline]]+Dataset[[#This Row],[2023/24 Total change]]","v":0},{"$f":"Dataset[[#This Row],[2024/25 Baseline]]+Dataset[[#This Row],[2024/25 Total change]]","v":0},{"$f":"Dataset[[#This Row],[2025/26 Baseline]]+Dataset[[#This Row],[2025/26 Total change]]","v":0},{"$f":"Dataset[[#This Row],[2026/27 Baseline]]+Dataset[[#This Row],[2026/27 Total change]]","v":0}]
["NAT|Non-transfer item","26|Infrastructure and planning services","2024_25","MTEF2024",26,2,3,44515,628,"26","02","03","044515","000628","26|02|03","01","01","02","12","12","01|01|02|12|12","National","Military Veterans","Socioeconomic Support","Socioeconomic Support Management","Non-transfer item","Current","Current payments","Goods and services","Infrastructure and planning services","Infrastructure and planning services","Peace and security","Defence and state security","NAT",0,0,0,0,0,0,0,0,0,0,0,null,null,null,null,null,null,null,null,null,null,null,null,null,null,null,null,null,null,null,null,null,null,null,null,null,null,null,null,null,null,null,null,null,null,{"$f":"Dataset[[#This Row],[2024/25 From - Spending review Topic 1]]+Dataset[[#This Row],[2024/25 From - Spending review Topic 2]]+Dataset[[#This Row],[2024/25 From - Spending review Topic 3]]+Dataset[[#This Row],[2024/25 From - Spending review Topic 4]]+Dataset[[#This Row],[2024/25 From - Other reallocations]]","v":0},{"$f":"Dataset[[#This Row],[2025/26 From - Spending review Topic 1]]+Dataset[[#This Row],[2025/26 From - Spending review Topic 2]]+Dataset[[#This Row],[2025/26 From - Spending review Topic 3]]+Dataset[[#This Row],[2025/26 From - Spending review Topic 4]]+Dataset[[#This Row],[2025/26 From - Other reallocations]]","v":0},{"$f":"Dataset[[#This Row],[2026/27 From - Spending review Topic 1]]+Dataset[[#This Row],[2026/27 From - Spending review Topic 2]]+Dataset[[#This Row],[2026/27 From - Spending review Topic 3]]+Dataset[[#This Row],[2026/27 From - Spending review Topic 4]]+Dataset[[#This Row],[2026/27 From - Other reallocations]]","v":0},{"$f":"Dataset[[#This Row],[2024/25 To - Spending review Topic 1]]+Dataset[[#This Row],[2024/25 To - Spending review Topic 2]]+Dataset[[#This Row],[2024/25 To - Spending review Topic 3]]+Dataset[[#This Row],[2024/25 To - Spending review Topic 4]]+Dataset[[#This Row],[2024/25 To - Other reallocations]]","v":0},{"$f":"Dataset[[#This Row],[2025/26 To - Spending review Topic 1]]+Dataset[[#This Row],[2025/26 To - Spending review Topic 2]]+Dataset[[#This Row],[2025/26 To - Spending review Topic 3]]+Dataset[[#This Row],[2025/26 To - Spending review Topic 4]]+Dataset[[#This Row],[2025/26 To - Other reallocations]]","v":0},{"$f":"Dataset[[#This Row],[2026/27 To - Spending review Topic 1]]+Dataset[[#This Row],[2026/27 To - Spending review Topic 2]]+Dataset[[#This Row],[2026/27 To - Spending review Topic 3]]+Dataset[[#This Row],[2026/27 To - Spending review Topic 4]]+Dataset[[#This Row],[2026/27 To - Other reallocations]]","v":0},{"$f":"Dataset[[#This Row],[2024/25 Reduction]]+Dataset[[#This Row],[2024/25 From - Total]]","v":0},{"$f":"Dataset[[#This Row],[2025/26 Reduction]]+Dataset[[#This Row],[2025/26 From - Total]]","v":0},{"$f":"Dataset[[#This Row],[2026/27 Reduction]]+Dataset[[#This Row],[2026/27 From - Total]]","v":0},{"$f":"Dataset[[#This Row],[2023/24 Reduction]]","v":0},{"$f":"SUM(Dataset[[#This Row],[2024/25 Reduction]],Dataset[[#This Row],[2024/25 From - Total]],Dataset[[#This Row],[2024/25 To - Total]])","v":0},{"$f":"SUM(Dataset[[#This Row],[2025/26 Reduction]],Dataset[[#This Row],[2025/26 From - Total]],Dataset[[#This Row],[2025/26 To - Total]])","v":0},{"$f":"SUM(Dataset[[#This Row],[2026/27 Reduction]],Dataset[[#This Row],[2026/27 From - Total]],Dataset[[#This Row],[2026/27 To - Total]])","v":0},{"$f":"Dataset[[#This Row],[2023/24 Baseline]]+Dataset[[#This Row],[2023/24 Total change]]","v":0},{"$f":"Dataset[[#This Row],[2024/25 Baseline]]+Dataset[[#This Row],[2024/25 Total change]]","v":0},{"$f":"Dataset[[#This Row],[2025/26 Baseline]]+Dataset[[#This Row],[2025/26 Total change]]","v":0},{"$f":"Dataset[[#This Row],[2026/27 Baseline]]+Dataset[[#This Row],[2026/27 Total change]]","v":0}]
["NAT|Non-transfer item","26|Laboratory services","2024_25","MTEF2024",26,2,3,44516,629,"26","02","03","044516","000629","26|02|03","01","01","02","13","13","01|01|02|13|13","National","Military Veterans","Socioeconomic Support","Socioeconomic Support Management","Non-transfer item","Current","Current payments","Goods and services","Laboratory services","Laboratory services","Peace and security","Defence and state security","NAT",0,0,0,0,0,0,0,0,0,0,0,null,null,null,null,null,null,null,null,null,null,null,null,null,null,null,null,null,null,null,null,null,null,null,null,null,null,null,null,null,null,null,null,null,null,{"$f":"Dataset[[#This Row],[2024/25 From - Spending review Topic 1]]+Dataset[[#This Row],[2024/25 From - Spending review Topic 2]]+Dataset[[#This Row],[2024/25 From - Spending review Topic 3]]+Dataset[[#This Row],[2024/25 From - Spending review Topic 4]]+Dataset[[#This Row],[2024/25 From - Other reallocations]]","v":0},{"$f":"Dataset[[#This Row],[2025/26 From - Spending review Topic 1]]+Dataset[[#This Row],[2025/26 From - Spending review Topic 2]]+Dataset[[#This Row],[2025/26 From - Spending review Topic 3]]+Dataset[[#This Row],[2025/26 From - Spending review Topic 4]]+Dataset[[#This Row],[2025/26 From - Other reallocations]]","v":0},{"$f":"Dataset[[#This Row],[2026/27 From - Spending review Topic 1]]+Dataset[[#This Row],[2026/27 From - Spending review Topic 2]]+Dataset[[#This Row],[2026/27 From - Spending review Topic 3]]+Dataset[[#This Row],[2026/27 From - Spending review Topic 4]]+Dataset[[#This Row],[2026/27 From - Other reallocations]]","v":0},{"$f":"Dataset[[#This Row],[2024/25 To - Spending review Topic 1]]+Dataset[[#This Row],[2024/25 To - Spending review Topic 2]]+Dataset[[#This Row],[2024/25 To - Spending review Topic 3]]+Dataset[[#This Row],[2024/25 To - Spending review Topic 4]]+Dataset[[#This Row],[2024/25 To - Other reallocations]]","v":0},{"$f":"Dataset[[#This Row],[2025/26 To - Spending review Topic 1]]+Dataset[[#This Row],[2025/26 To - Spending review Topic 2]]+Dataset[[#This Row],[2025/26 To - Spending review Topic 3]]+Dataset[[#This Row],[2025/26 To - Spending review Topic 4]]+Dataset[[#This Row],[2025/26 To - Other reallocations]]","v":0},{"$f":"Dataset[[#This Row],[2026/27 To - Spending review Topic 1]]+Dataset[[#This Row],[2026/27 To - Spending review Topic 2]]+Dataset[[#This Row],[2026/27 To - Spending review Topic 3]]+Dataset[[#This Row],[2026/27 To - Spending review Topic 4]]+Dataset[[#This Row],[2026/27 To - Other reallocations]]","v":0},{"$f":"Dataset[[#This Row],[2024/25 Reduction]]+Dataset[[#This Row],[2024/25 From - Total]]","v":0},{"$f":"Dataset[[#This Row],[2025/26 Reduction]]+Dataset[[#This Row],[2025/26 From - Total]]","v":0},{"$f":"Dataset[[#This Row],[2026/27 Reduction]]+Dataset[[#This Row],[2026/27 From - Total]]","v":0},{"$f":"Dataset[[#This Row],[2023/24 Reduction]]","v":0},{"$f":"SUM(Dataset[[#This Row],[2024/25 Reduction]],Dataset[[#This Row],[2024/25 From - Total]],Dataset[[#This Row],[2024/25 To - Total]])","v":0},{"$f":"SUM(Dataset[[#This Row],[2025/26 Reduction]],Dataset[[#This Row],[2025/26 From - Total]],Dataset[[#This Row],[2025/26 To - Total]])","v":0},{"$f":"SUM(Dataset[[#This Row],[2026/27 Reduction]],Dataset[[#This Row],[2026/27 From - Total]],Dataset[[#This Row],[2026/27 To - Total]])","v":0},{"$f":"Dataset[[#This Row],[2023/24 Baseline]]+Dataset[[#This Row],[2023/24 Total change]]","v":0},{"$f":"Dataset[[#This Row],[2024/25 Baseline]]+Dataset[[#This Row],[2024/25 Total change]]","v":0},{"$f":"Dataset[[#This Row],[2025/26 Baseline]]+Dataset[[#This Row],[2025/26 Total change]]","v":0},{"$f":"Dataset[[#This Row],[2026/27 Baseline]]+Dataset[[#This Row],[2026/27 Total change]]","v":0}]
["NAT|Non-transfer item","26|Legal services (G&S)","2024_25","MTEF2024",26,2,3,44517,630,"26","02","03","044517","000630","26|02|03","01","01","02","14","14","01|01|02|14|14","National","Military Veterans","Socioeconomic Support","Socioeconomic Support Management","Non-transfer item","Current","Current payments","Goods and services","Legal services (G&S)","Legal services (G&S)","Peace and security","Defence and state security","NAT",0,0,0,0,0,0,0,0,0,0,0,null,null,null,null,null,null,null,null,null,null,null,null,null,null,null,null,null,null,null,null,null,null,null,null,null,null,null,null,null,null,null,null,null,null,{"$f":"Dataset[[#This Row],[2024/25 From - Spending review Topic 1]]+Dataset[[#This Row],[2024/25 From - Spending review Topic 2]]+Dataset[[#This Row],[2024/25 From - Spending review Topic 3]]+Dataset[[#This Row],[2024/25 From - Spending review Topic 4]]+Dataset[[#This Row],[2024/25 From - Other reallocations]]","v":0},{"$f":"Dataset[[#This Row],[2025/26 From - Spending review Topic 1]]+Dataset[[#This Row],[2025/26 From - Spending review Topic 2]]+Dataset[[#This Row],[2025/26 From - Spending review Topic 3]]+Dataset[[#This Row],[2025/26 From - Spending review Topic 4]]+Dataset[[#This Row],[2025/26 From - Other reallocations]]","v":0},{"$f":"Dataset[[#This Row],[2026/27 From - Spending review Topic 1]]+Dataset[[#This Row],[2026/27 From - Spending review Topic 2]]+Dataset[[#This Row],[2026/27 From - Spending review Topic 3]]+Dataset[[#This Row],[2026/27 From - Spending review Topic 4]]+Dataset[[#This Row],[2026/27 From - Other reallocations]]","v":0},{"$f":"Dataset[[#This Row],[2024/25 To - Spending review Topic 1]]+Dataset[[#This Row],[2024/25 To - Spending review Topic 2]]+Dataset[[#This Row],[2024/25 To - Spending review Topic 3]]+Dataset[[#This Row],[2024/25 To - Spending review Topic 4]]+Dataset[[#This Row],[2024/25 To - Other reallocations]]","v":0},{"$f":"Dataset[[#This Row],[2025/26 To - Spending review Topic 1]]+Dataset[[#This Row],[2025/26 To - Spending review Topic 2]]+Dataset[[#This Row],[2025/26 To - Spending review Topic 3]]+Dataset[[#This Row],[2025/26 To - Spending review Topic 4]]+Dataset[[#This Row],[2025/26 To - Other reallocations]]","v":0},{"$f":"Dataset[[#This Row],[2026/27 To - Spending review Topic 1]]+Dataset[[#This Row],[2026/27 To - Spending review Topic 2]]+Dataset[[#This Row],[2026/27 To - Spending review Topic 3]]+Dataset[[#This Row],[2026/27 To - Spending review Topic 4]]+Dataset[[#This Row],[2026/27 To - Other reallocations]]","v":0},{"$f":"Dataset[[#This Row],[2024/25 Reduction]]+Dataset[[#This Row],[2024/25 From - Total]]","v":0},{"$f":"Dataset[[#This Row],[2025/26 Reduction]]+Dataset[[#This Row],[2025/26 From - Total]]","v":0},{"$f":"Dataset[[#This Row],[2026/27 Reduction]]+Dataset[[#This Row],[2026/27 From - Total]]","v":0},{"$f":"Dataset[[#This Row],[2023/24 Reduction]]","v":0},{"$f":"SUM(Dataset[[#This Row],[2024/25 Reduction]],Dataset[[#This Row],[2024/25 From - Total]],Dataset[[#This Row],[2024/25 To - Total]])","v":0},{"$f":"SUM(Dataset[[#This Row],[2025/26 Reduction]],Dataset[[#This Row],[2025/26 From - Total]],Dataset[[#This Row],[2025/26 To - Total]])","v":0},{"$f":"SUM(Dataset[[#This Row],[2026/27 Reduction]],Dataset[[#This Row],[2026/27 From - Total]],Dataset[[#This Row],[2026/27 To - Total]])","v":0},{"$f":"Dataset[[#This Row],[2023/24 Baseline]]+Dataset[[#This Row],[2023/24 Total change]]","v":0},{"$f":"Dataset[[#This Row],[2024/25 Baseline]]+Dataset[[#This Row],[2024/25 Total change]]","v":0},{"$f":"Dataset[[#This Row],[2025/26 Baseline]]+Dataset[[#This Row],[2025/26 Total change]]","v":0},{"$f":"Dataset[[#This Row],[2026/27 Baseline]]+Dataset[[#This Row],[2026/27 Total change]]","v":0}]
["NAT|Non-transfer item","26|Science and technological services","2024_25","MTEF2024",26,2,3,44518,631,"26","02","03","044518","000631","26|02|03","01","01","02","15","15","01|01|02|15|15","National","Military Veterans","Socioeconomic Support","Socioeconomic Support Management","Non-transfer item","Current","Current payments","Goods and services","Science and technological services","Science and technological services","Peace and security","Defence and state security","NAT",0,0,0,0,0,0,0,0,0,0,0,null,null,null,null,null,null,null,null,null,null,null,null,null,null,null,null,null,null,null,null,null,null,null,null,null,null,null,null,null,null,null,null,null,null,{"$f":"Dataset[[#This Row],[2024/25 From - Spending review Topic 1]]+Dataset[[#This Row],[2024/25 From - Spending review Topic 2]]+Dataset[[#This Row],[2024/25 From - Spending review Topic 3]]+Dataset[[#This Row],[2024/25 From - Spending review Topic 4]]+Dataset[[#This Row],[2024/25 From - Other reallocations]]","v":0},{"$f":"Dataset[[#This Row],[2025/26 From - Spending review Topic 1]]+Dataset[[#This Row],[2025/26 From - Spending review Topic 2]]+Dataset[[#This Row],[2025/26 From - Spending review Topic 3]]+Dataset[[#This Row],[2025/26 From - Spending review Topic 4]]+Dataset[[#This Row],[2025/26 From - Other reallocations]]","v":0},{"$f":"Dataset[[#This Row],[2026/27 From - Spending review Topic 1]]+Dataset[[#This Row],[2026/27 From - Spending review Topic 2]]+Dataset[[#This Row],[2026/27 From - Spending review Topic 3]]+Dataset[[#This Row],[2026/27 From - Spending review Topic 4]]+Dataset[[#This Row],[2026/27 From - Other reallocations]]","v":0},{"$f":"Dataset[[#This Row],[2024/25 To - Spending review Topic 1]]+Dataset[[#This Row],[2024/25 To - Spending review Topic 2]]+Dataset[[#This Row],[2024/25 To - Spending review Topic 3]]+Dataset[[#This Row],[2024/25 To - Spending review Topic 4]]+Dataset[[#This Row],[2024/25 To - Other reallocations]]","v":0},{"$f":"Dataset[[#This Row],[2025/26 To - Spending review Topic 1]]+Dataset[[#This Row],[2025/26 To - Spending review Topic 2]]+Dataset[[#This Row],[2025/26 To - Spending review Topic 3]]+Dataset[[#This Row],[2025/26 To - Spending review Topic 4]]+Dataset[[#This Row],[2025/26 To - Other reallocations]]","v":0},{"$f":"Dataset[[#This Row],[2026/27 To - Spending review Topic 1]]+Dataset[[#This Row],[2026/27 To - Spending review Topic 2]]+Dataset[[#This Row],[2026/27 To - Spending review Topic 3]]+Dataset[[#This Row],[2026/27 To - Spending review Topic 4]]+Dataset[[#This Row],[2026/27 To - Other reallocations]]","v":0},{"$f":"Dataset[[#This Row],[2024/25 Reduction]]+Dataset[[#This Row],[2024/25 From - Total]]","v":0},{"$f":"Dataset[[#This Row],[2025/26 Reduction]]+Dataset[[#This Row],[2025/26 From - Total]]","v":0},{"$f":"Dataset[[#This Row],[2026/27 Reduction]]+Dataset[[#This Row],[2026/27 From - Total]]","v":0},{"$f":"Dataset[[#This Row],[2023/24 Reduction]]","v":0},{"$f":"SUM(Dataset[[#This Row],[2024/25 Reduction]],Dataset[[#This Row],[2024/25 From - Total]],Dataset[[#This Row],[2024/25 To - Total]])","v":0},{"$f":"SUM(Dataset[[#This Row],[2025/26 Reduction]],Dataset[[#This Row],[2025/26 From - Total]],Dataset[[#This Row],[2025/26 To - Total]])","v":0},{"$f":"SUM(Dataset[[#This Row],[2026/27 Reduction]],Dataset[[#This Row],[2026/27 From - Total]],Dataset[[#This Row],[2026/27 To - Total]])","v":0},{"$f":"Dataset[[#This Row],[2023/24 Baseline]]+Dataset[[#This Row],[2023/24 Total change]]","v":0},{"$f":"Dataset[[#This Row],[2024/25 Baseline]]+Dataset[[#This Row],[2024/25 Total change]]","v":0},{"$f":"Dataset[[#This Row],[2025/26 Baseline]]+Dataset[[#This Row],[2025/26 Total change]]","v":0},{"$f":"Dataset[[#This Row],[2026/27 Baseline]]+Dataset[[#This Row],[2026/27 Total change]]","v":0}]
["NAT|Non-transfer item","26|Contractors","2024_25","MTEF2024",26,2,3,44519,632,"26","02","03","044519","000632","26|02|03","01","01","02","16","16","01|01|02|16|16","National","Military Veterans","Socioeconomic Support","Socioeconomic Support Management","Non-transfer item","Current","Current payments","Goods and services","Contractors","Contractors","Peace and security","Defence and state security","NAT",0,2,0,215,45,45,0,100,100,100,105,null,null,null,null,null,null,null,null,null,null,null,null,null,null,null,null,null,null,null,null,null,null,null,null,null,null,null,null,null,null,null,null,null,null,{"$f":"Dataset[[#This Row],[2024/25 From - Spending review Topic 1]]+Dataset[[#This Row],[2024/25 From - Spending review Topic 2]]+Dataset[[#This Row],[2024/25 From - Spending review Topic 3]]+Dataset[[#This Row],[2024/25 From - Spending review Topic 4]]+Dataset[[#This Row],[2024/25 From - Other reallocations]]","v":0},{"$f":"Dataset[[#This Row],[2025/26 From - Spending review Topic 1]]+Dataset[[#This Row],[2025/26 From - Spending review Topic 2]]+Dataset[[#This Row],[2025/26 From - Spending review Topic 3]]+Dataset[[#This Row],[2025/26 From - Spending review Topic 4]]+Dataset[[#This Row],[2025/26 From - Other reallocations]]","v":0},{"$f":"Dataset[[#This Row],[2026/27 From - Spending review Topic 1]]+Dataset[[#This Row],[2026/27 From - Spending review Topic 2]]+Dataset[[#This Row],[2026/27 From - Spending review Topic 3]]+Dataset[[#This Row],[2026/27 From - Spending review Topic 4]]+Dataset[[#This Row],[2026/27 From - Other reallocations]]","v":0},{"$f":"Dataset[[#This Row],[2024/25 To - Spending review Topic 1]]+Dataset[[#This Row],[2024/25 To - Spending review Topic 2]]+Dataset[[#This Row],[2024/25 To - Spending review Topic 3]]+Dataset[[#This Row],[2024/25 To - Spending review Topic 4]]+Dataset[[#This Row],[2024/25 To - Other reallocations]]","v":0},{"$f":"Dataset[[#This Row],[2025/26 To - Spending review Topic 1]]+Dataset[[#This Row],[2025/26 To - Spending review Topic 2]]+Dataset[[#This Row],[2025/26 To - Spending review Topic 3]]+Dataset[[#This Row],[2025/26 To - Spending review Topic 4]]+Dataset[[#This Row],[2025/26 To - Other reallocations]]","v":0},{"$f":"Dataset[[#This Row],[2026/27 To - Spending review Topic 1]]+Dataset[[#This Row],[2026/27 To - Spending review Topic 2]]+Dataset[[#This Row],[2026/27 To - Spending review Topic 3]]+Dataset[[#This Row],[2026/27 To - Spending review Topic 4]]+Dataset[[#This Row],[2026/27 To - Other reallocations]]","v":0},{"$f":"Dataset[[#This Row],[2024/25 Reduction]]+Dataset[[#This Row],[2024/25 From - Total]]","v":0},{"$f":"Dataset[[#This Row],[2025/26 Reduction]]+Dataset[[#This Row],[2025/26 From - Total]]","v":0},{"$f":"Dataset[[#This Row],[2026/27 Reduction]]+Dataset[[#This Row],[2026/27 From - Total]]","v":0},{"$f":"Dataset[[#This Row],[2023/24 Reduction]]","v":0},{"$f":"SUM(Dataset[[#This Row],[2024/25 Reduction]],Dataset[[#This Row],[2024/25 From - Total]],Dataset[[#This Row],[2024/25 To - Total]])","v":0},{"$f":"SUM(Dataset[[#This Row],[2025/26 Reduction]],Dataset[[#This Row],[2025/26 From - Total]],Dataset[[#This Row],[2025/26 To - Total]])","v":0},{"$f":"SUM(Dataset[[#This Row],[2026/27 Reduction]],Dataset[[#This Row],[2026/27 From - Total]],Dataset[[#This Row],[2026/27 To - Total]])","v":0},{"$f":"Dataset[[#This Row],[2023/24 Baseline]]+Dataset[[#This Row],[2023/24 Total change]]","v":100},{"$f":"Dataset[[#This Row],[2024/25 Baseline]]+Dataset[[#This Row],[2024/25 Total change]]","v":100},{"$f":"Dataset[[#This Row],[2025/26 Baseline]]+Dataset[[#This Row],[2025/26 Total change]]","v":100},{"$f":"Dataset[[#This Row],[2026/27 Baseline]]+Dataset[[#This Row],[2026/27 Total change]]","v":105}]
["NAT|Non-transfer item","26|Agency and support/outsourced services","2024_25","MTEF2024",26,2,3,44520,633,"26","02","03","044520","000633","26|02|03","01","01","02","17","17","01|01|02|17|17","National","Military Veterans","Socioeconomic Support","Socioeconomic Support Management","Non-transfer item","Current","Current payments","Goods and services","Agency and support/outsourced services","Agency and support/outsourced services","Peace and security","Defence and state security","NAT",0,0,0,0,0,0,0,0,0,0,0,null,null,null,null,null,null,null,null,null,null,null,null,null,null,null,null,null,null,null,null,null,null,null,null,null,null,null,null,null,null,null,null,null,null,{"$f":"Dataset[[#This Row],[2024/25 From - Spending review Topic 1]]+Dataset[[#This Row],[2024/25 From - Spending review Topic 2]]+Dataset[[#This Row],[2024/25 From - Spending review Topic 3]]+Dataset[[#This Row],[2024/25 From - Spending review Topic 4]]+Dataset[[#This Row],[2024/25 From - Other reallocations]]","v":0},{"$f":"Dataset[[#This Row],[2025/26 From - Spending review Topic 1]]+Dataset[[#This Row],[2025/26 From - Spending review Topic 2]]+Dataset[[#This Row],[2025/26 From - Spending review Topic 3]]+Dataset[[#This Row],[2025/26 From - Spending review Topic 4]]+Dataset[[#This Row],[2025/26 From - Other reallocations]]","v":0},{"$f":"Dataset[[#This Row],[2026/27 From - Spending review Topic 1]]+Dataset[[#This Row],[2026/27 From - Spending review Topic 2]]+Dataset[[#This Row],[2026/27 From - Spending review Topic 3]]+Dataset[[#This Row],[2026/27 From - Spending review Topic 4]]+Dataset[[#This Row],[2026/27 From - Other reallocations]]","v":0},{"$f":"Dataset[[#This Row],[2024/25 To - Spending review Topic 1]]+Dataset[[#This Row],[2024/25 To - Spending review Topic 2]]+Dataset[[#This Row],[2024/25 To - Spending review Topic 3]]+Dataset[[#This Row],[2024/25 To - Spending review Topic 4]]+Dataset[[#This Row],[2024/25 To - Other reallocations]]","v":0},{"$f":"Dataset[[#This Row],[2025/26 To - Spending review Topic 1]]+Dataset[[#This Row],[2025/26 To - Spending review Topic 2]]+Dataset[[#This Row],[2025/26 To - Spending review Topic 3]]+Dataset[[#This Row],[2025/26 To - Spending review Topic 4]]+Dataset[[#This Row],[2025/26 To - Other reallocations]]","v":0},{"$f":"Dataset[[#This Row],[2026/27 To - Spending review Topic 1]]+Dataset[[#This Row],[2026/27 To - Spending review Topic 2]]+Dataset[[#This Row],[2026/27 To - Spending review Topic 3]]+Dataset[[#This Row],[2026/27 To - Spending review Topic 4]]+Dataset[[#This Row],[2026/27 To - Other reallocations]]","v":0},{"$f":"Dataset[[#This Row],[2024/25 Reduction]]+Dataset[[#This Row],[2024/25 From - Total]]","v":0},{"$f":"Dataset[[#This Row],[2025/26 Reduction]]+Dataset[[#This Row],[2025/26 From - Total]]","v":0},{"$f":"Dataset[[#This Row],[2026/27 Reduction]]+Dataset[[#This Row],[2026/27 From - Total]]","v":0},{"$f":"Dataset[[#This Row],[2023/24 Reduction]]","v":0},{"$f":"SUM(Dataset[[#This Row],[2024/25 Reduction]],Dataset[[#This Row],[2024/25 From - Total]],Dataset[[#This Row],[2024/25 To - Total]])","v":0},{"$f":"SUM(Dataset[[#This Row],[2025/26 Reduction]],Dataset[[#This Row],[2025/26 From - Total]],Dataset[[#This Row],[2025/26 To - Total]])","v":0},{"$f":"SUM(Dataset[[#This Row],[2026/27 Reduction]],Dataset[[#This Row],[2026/27 From - Total]],Dataset[[#This Row],[2026/27 To - Total]])","v":0},{"$f":"Dataset[[#This Row],[2023/24 Baseline]]+Dataset[[#This Row],[2023/24 Total change]]","v":0},{"$f":"Dataset[[#This Row],[2024/25 Baseline]]+Dataset[[#This Row],[2024/25 Total change]]","v":0},{"$f":"Dataset[[#This Row],[2025/26 Baseline]]+Dataset[[#This Row],[2025/26 Total change]]","v":0},{"$f":"Dataset[[#This Row],[2026/27 Baseline]]+Dataset[[#This Row],[2026/27 Total change]]","v":0}]
["NAT|Non-transfer item","26|Entertainment","2024_25","MTEF2024",26,2,3,44521,634,"26","02","03","044521","000634","26|02|03","01","01","02","18","18","01|01|02|18|18","National","Military Veterans","Socioeconomic Support","Socioeconomic Support Management","Non-transfer item","Current","Current payments","Goods and services","Entertainment","Entertainment","Peace and security","Defence and state security","NAT",0,0,0,0,0,0,0,0,0,0,0,null,null,null,null,null,null,null,null,null,null,null,null,null,null,null,null,null,null,null,null,null,null,null,null,null,null,null,null,null,null,null,null,null,null,{"$f":"Dataset[[#This Row],[2024/25 From - Spending review Topic 1]]+Dataset[[#This Row],[2024/25 From - Spending review Topic 2]]+Dataset[[#This Row],[2024/25 From - Spending review Topic 3]]+Dataset[[#This Row],[2024/25 From - Spending review Topic 4]]+Dataset[[#This Row],[2024/25 From - Other reallocations]]","v":0},{"$f":"Dataset[[#This Row],[2025/26 From - Spending review Topic 1]]+Dataset[[#This Row],[2025/26 From - Spending review Topic 2]]+Dataset[[#This Row],[2025/26 From - Spending review Topic 3]]+Dataset[[#This Row],[2025/26 From - Spending review Topic 4]]+Dataset[[#This Row],[2025/26 From - Other reallocations]]","v":0},{"$f":"Dataset[[#This Row],[2026/27 From - Spending review Topic 1]]+Dataset[[#This Row],[2026/27 From - Spending review Topic 2]]+Dataset[[#This Row],[2026/27 From - Spending review Topic 3]]+Dataset[[#This Row],[2026/27 From - Spending review Topic 4]]+Dataset[[#This Row],[2026/27 From - Other reallocations]]","v":0},{"$f":"Dataset[[#This Row],[2024/25 To - Spending review Topic 1]]+Dataset[[#This Row],[2024/25 To - Spending review Topic 2]]+Dataset[[#This Row],[2024/25 To - Spending review Topic 3]]+Dataset[[#This Row],[2024/25 To - Spending review Topic 4]]+Dataset[[#This Row],[2024/25 To - Other reallocations]]","v":0},{"$f":"Dataset[[#This Row],[2025/26 To - Spending review Topic 1]]+Dataset[[#This Row],[2025/26 To - Spending review Topic 2]]+Dataset[[#This Row],[2025/26 To - Spending review Topic 3]]+Dataset[[#This Row],[2025/26 To - Spending review Topic 4]]+Dataset[[#This Row],[2025/26 To - Other reallocations]]","v":0},{"$f":"Dataset[[#This Row],[2026/27 To - Spending review Topic 1]]+Dataset[[#This Row],[2026/27 To - Spending review Topic 2]]+Dataset[[#This Row],[2026/27 To - Spending review Topic 3]]+Dataset[[#This Row],[2026/27 To - Spending review Topic 4]]+Dataset[[#This Row],[2026/27 To - Other reallocations]]","v":0},{"$f":"Dataset[[#This Row],[2024/25 Reduction]]+Dataset[[#This Row],[2024/25 From - Total]]","v":0},{"$f":"Dataset[[#This Row],[2025/26 Reduction]]+Dataset[[#This Row],[2025/26 From - Total]]","v":0},{"$f":"Dataset[[#This Row],[2026/27 Reduction]]+Dataset[[#This Row],[2026/27 From - Total]]","v":0},{"$f":"Dataset[[#This Row],[2023/24 Reduction]]","v":0},{"$f":"SUM(Dataset[[#This Row],[2024/25 Reduction]],Dataset[[#This Row],[2024/25 From - Total]],Dataset[[#This Row],[2024/25 To - Total]])","v":0},{"$f":"SUM(Dataset[[#This Row],[2025/26 Reduction]],Dataset[[#This Row],[2025/26 From - Total]],Dataset[[#This Row],[2025/26 To - Total]])","v":0},{"$f":"SUM(Dataset[[#This Row],[2026/27 Reduction]],Dataset[[#This Row],[2026/27 From - Total]],Dataset[[#This Row],[2026/27 To - Total]])","v":0},{"$f":"Dataset[[#This Row],[2023/24 Baseline]]+Dataset[[#This Row],[2023/24 Total change]]","v":0},{"$f":"Dataset[[#This Row],[2024/25 Baseline]]+Dataset[[#This Row],[2024/25 Total change]]","v":0},{"$f":"Dataset[[#This Row],[2025/26 Baseline]]+Dataset[[#This Row],[2025/26 Total change]]","v":0},{"$f":"Dataset[[#This Row],[2026/27 Baseline]]+Dataset[[#This Row],[2026/27 Total change]]","v":0}]
["NAT|Non-transfer item","26|Fleet services (including government motor transport)","2024_25","MTEF2024",26,2,3,44522,635,"26","02","03","044522","000635","26|02|03","01","01","02","19","19","01|01|02|19|19","National","Military Veterans","Socioeconomic Support","Socioeconomic Support Management","Non-transfer item","Current","Current payments","Goods and services","Fleet services (including government motor transport)","Fleet services (including government motor transport)","Peace and security","Defence and state security","NAT",0,0,0,0,0,0,0,120,132,142,149,null,null,null,null,null,null,null,null,null,null,null,null,null,null,null,null,null,null,null,null,null,null,null,null,null,null,null,null,null,null,null,null,null,null,{"$f":"Dataset[[#This Row],[2024/25 From - Spending review Topic 1]]+Dataset[[#This Row],[2024/25 From - Spending review Topic 2]]+Dataset[[#This Row],[2024/25 From - Spending review Topic 3]]+Dataset[[#This Row],[2024/25 From - Spending review Topic 4]]+Dataset[[#This Row],[2024/25 From - Other reallocations]]","v":0},{"$f":"Dataset[[#This Row],[2025/26 From - Spending review Topic 1]]+Dataset[[#This Row],[2025/26 From - Spending review Topic 2]]+Dataset[[#This Row],[2025/26 From - Spending review Topic 3]]+Dataset[[#This Row],[2025/26 From - Spending review Topic 4]]+Dataset[[#This Row],[2025/26 From - Other reallocations]]","v":0},{"$f":"Dataset[[#This Row],[2026/27 From - Spending review Topic 1]]+Dataset[[#This Row],[2026/27 From - Spending review Topic 2]]+Dataset[[#This Row],[2026/27 From - Spending review Topic 3]]+Dataset[[#This Row],[2026/27 From - Spending review Topic 4]]+Dataset[[#This Row],[2026/27 From - Other reallocations]]","v":0},{"$f":"Dataset[[#This Row],[2024/25 To - Spending review Topic 1]]+Dataset[[#This Row],[2024/25 To - Spending review Topic 2]]+Dataset[[#This Row],[2024/25 To - Spending review Topic 3]]+Dataset[[#This Row],[2024/25 To - Spending review Topic 4]]+Dataset[[#This Row],[2024/25 To - Other reallocations]]","v":0},{"$f":"Dataset[[#This Row],[2025/26 To - Spending review Topic 1]]+Dataset[[#This Row],[2025/26 To - Spending review Topic 2]]+Dataset[[#This Row],[2025/26 To - Spending review Topic 3]]+Dataset[[#This Row],[2025/26 To - Spending review Topic 4]]+Dataset[[#This Row],[2025/26 To - Other reallocations]]","v":0},{"$f":"Dataset[[#This Row],[2026/27 To - Spending review Topic 1]]+Dataset[[#This Row],[2026/27 To - Spending review Topic 2]]+Dataset[[#This Row],[2026/27 To - Spending review Topic 3]]+Dataset[[#This Row],[2026/27 To - Spending review Topic 4]]+Dataset[[#This Row],[2026/27 To - Other reallocations]]","v":0},{"$f":"Dataset[[#This Row],[2024/25 Reduction]]+Dataset[[#This Row],[2024/25 From - Total]]","v":0},{"$f":"Dataset[[#This Row],[2025/26 Reduction]]+Dataset[[#This Row],[2025/26 From - Total]]","v":0},{"$f":"Dataset[[#This Row],[2026/27 Reduction]]+Dataset[[#This Row],[2026/27 From - Total]]","v":0},{"$f":"Dataset[[#This Row],[2023/24 Reduction]]","v":0},{"$f":"SUM(Dataset[[#This Row],[2024/25 Reduction]],Dataset[[#This Row],[2024/25 From - Total]],Dataset[[#This Row],[2024/25 To - Total]])","v":0},{"$f":"SUM(Dataset[[#This Row],[2025/26 Reduction]],Dataset[[#This Row],[2025/26 From - Total]],Dataset[[#This Row],[2025/26 To - Total]])","v":0},{"$f":"SUM(Dataset[[#This Row],[2026/27 Reduction]],Dataset[[#This Row],[2026/27 From - Total]],Dataset[[#This Row],[2026/27 To - Total]])","v":0},{"$f":"Dataset[[#This Row],[2023/24 Baseline]]+Dataset[[#This Row],[2023/24 Total change]]","v":120},{"$f":"Dataset[[#This Row],[2024/25 Baseline]]+Dataset[[#This Row],[2024/25 Total change]]","v":132},{"$f":"Dataset[[#This Row],[2025/26 Baseline]]+Dataset[[#This Row],[2025/26 Total change]]","v":142},{"$f":"Dataset[[#This Row],[2026/27 Baseline]]+Dataset[[#This Row],[2026/27 Total change]]","v":149}]
["NAT|Non-transfer item","26|Housing","2024_25","MTEF2024",26,2,3,44523,636,"26","02","03","044523","000636","26|02|03","01","01","02","20","20","01|01|02|20|20","National","Military Veterans","Socioeconomic Support","Socioeconomic Support Management","Non-transfer item","Current","Current payments","Goods and services","Housing","Housing","Peace and security","Defence and state security","NAT",0,0,0,0,0,0,0,0,0,0,0,null,null,null,null,null,null,null,null,null,null,null,null,null,null,null,null,null,null,null,null,null,null,null,null,null,null,null,null,null,null,null,null,null,null,{"$f":"Dataset[[#This Row],[2024/25 From - Spending review Topic 1]]+Dataset[[#This Row],[2024/25 From - Spending review Topic 2]]+Dataset[[#This Row],[2024/25 From - Spending review Topic 3]]+Dataset[[#This Row],[2024/25 From - Spending review Topic 4]]+Dataset[[#This Row],[2024/25 From - Other reallocations]]","v":0},{"$f":"Dataset[[#This Row],[2025/26 From - Spending review Topic 1]]+Dataset[[#This Row],[2025/26 From - Spending review Topic 2]]+Dataset[[#This Row],[2025/26 From - Spending review Topic 3]]+Dataset[[#This Row],[2025/26 From - Spending review Topic 4]]+Dataset[[#This Row],[2025/26 From - Other reallocations]]","v":0},{"$f":"Dataset[[#This Row],[2026/27 From - Spending review Topic 1]]+Dataset[[#This Row],[2026/27 From - Spending review Topic 2]]+Dataset[[#This Row],[2026/27 From - Spending review Topic 3]]+Dataset[[#This Row],[2026/27 From - Spending review Topic 4]]+Dataset[[#This Row],[2026/27 From - Other reallocations]]","v":0},{"$f":"Dataset[[#This Row],[2024/25 To - Spending review Topic 1]]+Dataset[[#This Row],[2024/25 To - Spending review Topic 2]]+Dataset[[#This Row],[2024/25 To - Spending review Topic 3]]+Dataset[[#This Row],[2024/25 To - Spending review Topic 4]]+Dataset[[#This Row],[2024/25 To - Other reallocations]]","v":0},{"$f":"Dataset[[#This Row],[2025/26 To - Spending review Topic 1]]+Dataset[[#This Row],[2025/26 To - Spending review Topic 2]]+Dataset[[#This Row],[2025/26 To - Spending review Topic 3]]+Dataset[[#This Row],[2025/26 To - Spending review Topic 4]]+Dataset[[#This Row],[2025/26 To - Other reallocations]]","v":0},{"$f":"Dataset[[#This Row],[2026/27 To - Spending review Topic 1]]+Dataset[[#This Row],[2026/27 To - Spending review Topic 2]]+Dataset[[#This Row],[2026/27 To - Spending review Topic 3]]+Dataset[[#This Row],[2026/27 To - Spending review Topic 4]]+Dataset[[#This Row],[2026/27 To - Other reallocations]]","v":0},{"$f":"Dataset[[#This Row],[2024/25 Reduction]]+Dataset[[#This Row],[2024/25 From - Total]]","v":0},{"$f":"Dataset[[#This Row],[2025/26 Reduction]]+Dataset[[#This Row],[2025/26 From - Total]]","v":0},{"$f":"Dataset[[#This Row],[2026/27 Reduction]]+Dataset[[#This Row],[2026/27 From - Total]]","v":0},{"$f":"Dataset[[#This Row],[2023/24 Reduction]]","v":0},{"$f":"SUM(Dataset[[#This Row],[2024/25 Reduction]],Dataset[[#This Row],[2024/25 From - Total]],Dataset[[#This Row],[2024/25 To - Total]])","v":0},{"$f":"SUM(Dataset[[#This Row],[2025/26 Reduction]],Dataset[[#This Row],[2025/26 From - Total]],Dataset[[#This Row],[2025/26 To - Total]])","v":0},{"$f":"SUM(Dataset[[#This Row],[2026/27 Reduction]],Dataset[[#This Row],[2026/27 From - Total]],Dataset[[#This Row],[2026/27 To - Total]])","v":0},{"$f":"Dataset[[#This Row],[2023/24 Baseline]]+Dataset[[#This Row],[2023/24 Total change]]","v":0},{"$f":"Dataset[[#This Row],[2024/25 Baseline]]+Dataset[[#This Row],[2024/25 Total change]]","v":0},{"$f":"Dataset[[#This Row],[2025/26 Baseline]]+Dataset[[#This Row],[2025/26 Total change]]","v":0},{"$f":"Dataset[[#This Row],[2026/27 Baseline]]+Dataset[[#This Row],[2026/27 Total change]]","v":0}]
["NAT|Non-transfer item","26|Inventory: Clothing material and accessories","2024_25","MTEF2024",26,2,3,44524,637,"26","02","03","044524","000637","26|02|03","01","01","02","21","21","01|01|02|21|21","National","Military Veterans","Socioeconomic Support","Socioeconomic Support Management","Non-transfer item","Current","Current payments","Goods and services","Inventory: Clothing material and accessories","Inventory: Clothing material and accessories","Peace and security","Defence and state security","NAT",0,0,0,0,0,0,0,0,0,0,0,null,null,null,null,null,null,null,null,null,null,null,null,null,null,null,null,null,null,null,null,null,null,null,null,null,null,null,null,null,null,null,null,null,null,{"$f":"Dataset[[#This Row],[2024/25 From - Spending review Topic 1]]+Dataset[[#This Row],[2024/25 From - Spending review Topic 2]]+Dataset[[#This Row],[2024/25 From - Spending review Topic 3]]+Dataset[[#This Row],[2024/25 From - Spending review Topic 4]]+Dataset[[#This Row],[2024/25 From - Other reallocations]]","v":0},{"$f":"Dataset[[#This Row],[2025/26 From - Spending review Topic 1]]+Dataset[[#This Row],[2025/26 From - Spending review Topic 2]]+Dataset[[#This Row],[2025/26 From - Spending review Topic 3]]+Dataset[[#This Row],[2025/26 From - Spending review Topic 4]]+Dataset[[#This Row],[2025/26 From - Other reallocations]]","v":0},{"$f":"Dataset[[#This Row],[2026/27 From - Spending review Topic 1]]+Dataset[[#This Row],[2026/27 From - Spending review Topic 2]]+Dataset[[#This Row],[2026/27 From - Spending review Topic 3]]+Dataset[[#This Row],[2026/27 From - Spending review Topic 4]]+Dataset[[#This Row],[2026/27 From - Other reallocations]]","v":0},{"$f":"Dataset[[#This Row],[2024/25 To - Spending review Topic 1]]+Dataset[[#This Row],[2024/25 To - Spending review Topic 2]]+Dataset[[#This Row],[2024/25 To - Spending review Topic 3]]+Dataset[[#This Row],[2024/25 To - Spending review Topic 4]]+Dataset[[#This Row],[2024/25 To - Other reallocations]]","v":0},{"$f":"Dataset[[#This Row],[2025/26 To - Spending review Topic 1]]+Dataset[[#This Row],[2025/26 To - Spending review Topic 2]]+Dataset[[#This Row],[2025/26 To - Spending review Topic 3]]+Dataset[[#This Row],[2025/26 To - Spending review Topic 4]]+Dataset[[#This Row],[2025/26 To - Other reallocations]]","v":0},{"$f":"Dataset[[#This Row],[2026/27 To - Spending review Topic 1]]+Dataset[[#This Row],[2026/27 To - Spending review Topic 2]]+Dataset[[#This Row],[2026/27 To - Spending review Topic 3]]+Dataset[[#This Row],[2026/27 To - Spending review Topic 4]]+Dataset[[#This Row],[2026/27 To - Other reallocations]]","v":0},{"$f":"Dataset[[#This Row],[2024/25 Reduction]]+Dataset[[#This Row],[2024/25 From - Total]]","v":0},{"$f":"Dataset[[#This Row],[2025/26 Reduction]]+Dataset[[#This Row],[2025/26 From - Total]]","v":0},{"$f":"Dataset[[#This Row],[2026/27 Reduction]]+Dataset[[#This Row],[2026/27 From - Total]]","v":0},{"$f":"Dataset[[#This Row],[2023/24 Reduction]]","v":0},{"$f":"SUM(Dataset[[#This Row],[2024/25 Reduction]],Dataset[[#This Row],[2024/25 From - Total]],Dataset[[#This Row],[2024/25 To - Total]])","v":0},{"$f":"SUM(Dataset[[#This Row],[2025/26 Reduction]],Dataset[[#This Row],[2025/26 From - Total]],Dataset[[#This Row],[2025/26 To - Total]])","v":0},{"$f":"SUM(Dataset[[#This Row],[2026/27 Reduction]],Dataset[[#This Row],[2026/27 From - Total]],Dataset[[#This Row],[2026/27 To - Total]])","v":0},{"$f":"Dataset[[#This Row],[2023/24 Baseline]]+Dataset[[#This Row],[2023/24 Total change]]","v":0},{"$f":"Dataset[[#This Row],[2024/25 Baseline]]+Dataset[[#This Row],[2024/25 Total change]]","v":0},{"$f":"Dataset[[#This Row],[2025/26 Baseline]]+Dataset[[#This Row],[2025/26 Total change]]","v":0},{"$f":"Dataset[[#This Row],[2026/27 Baseline]]+Dataset[[#This Row],[2026/27 Total change]]","v":0}]
["NAT|Non-transfer item","26|Inventory: Farming supplies","2024_25","MTEF2024",26,2,3,44525,638,"26","02","03","044525","000638","26|02|03","01","01","02","22","22","01|01|02|22|22","National","Military Veterans","Socioeconomic Support","Socioeconomic Support Management","Non-transfer item","Current","Current payments","Goods and services","Inventory: Farming supplies","Inventory: Farming supplies","Peace and security","Defence and state security","NAT",0,0,0,0,0,0,0,0,0,0,0,null,null,null,null,null,null,null,null,null,null,null,null,null,null,null,null,null,null,null,null,null,null,null,null,null,null,null,null,null,null,null,null,null,null,{"$f":"Dataset[[#This Row],[2024/25 From - Spending review Topic 1]]+Dataset[[#This Row],[2024/25 From - Spending review Topic 2]]+Dataset[[#This Row],[2024/25 From - Spending review Topic 3]]+Dataset[[#This Row],[2024/25 From - Spending review Topic 4]]+Dataset[[#This Row],[2024/25 From - Other reallocations]]","v":0},{"$f":"Dataset[[#This Row],[2025/26 From - Spending review Topic 1]]+Dataset[[#This Row],[2025/26 From - Spending review Topic 2]]+Dataset[[#This Row],[2025/26 From - Spending review Topic 3]]+Dataset[[#This Row],[2025/26 From - Spending review Topic 4]]+Dataset[[#This Row],[2025/26 From - Other reallocations]]","v":0},{"$f":"Dataset[[#This Row],[2026/27 From - Spending review Topic 1]]+Dataset[[#This Row],[2026/27 From - Spending review Topic 2]]+Dataset[[#This Row],[2026/27 From - Spending review Topic 3]]+Dataset[[#This Row],[2026/27 From - Spending review Topic 4]]+Dataset[[#This Row],[2026/27 From - Other reallocations]]","v":0},{"$f":"Dataset[[#This Row],[2024/25 To - Spending review Topic 1]]+Dataset[[#This Row],[2024/25 To - Spending review Topic 2]]+Dataset[[#This Row],[2024/25 To - Spending review Topic 3]]+Dataset[[#This Row],[2024/25 To - Spending review Topic 4]]+Dataset[[#This Row],[2024/25 To - Other reallocations]]","v":0},{"$f":"Dataset[[#This Row],[2025/26 To - Spending review Topic 1]]+Dataset[[#This Row],[2025/26 To - Spending review Topic 2]]+Dataset[[#This Row],[2025/26 To - Spending review Topic 3]]+Dataset[[#This Row],[2025/26 To - Spending review Topic 4]]+Dataset[[#This Row],[2025/26 To - Other reallocations]]","v":0},{"$f":"Dataset[[#This Row],[2026/27 To - Spending review Topic 1]]+Dataset[[#This Row],[2026/27 To - Spending review Topic 2]]+Dataset[[#This Row],[2026/27 To - Spending review Topic 3]]+Dataset[[#This Row],[2026/27 To - Spending review Topic 4]]+Dataset[[#This Row],[2026/27 To - Other reallocations]]","v":0},{"$f":"Dataset[[#This Row],[2024/25 Reduction]]+Dataset[[#This Row],[2024/25 From - Total]]","v":0},{"$f":"Dataset[[#This Row],[2025/26 Reduction]]+Dataset[[#This Row],[2025/26 From - Total]]","v":0},{"$f":"Dataset[[#This Row],[2026/27 Reduction]]+Dataset[[#This Row],[2026/27 From - Total]]","v":0},{"$f":"Dataset[[#This Row],[2023/24 Reduction]]","v":0},{"$f":"SUM(Dataset[[#This Row],[2024/25 Reduction]],Dataset[[#This Row],[2024/25 From - Total]],Dataset[[#This Row],[2024/25 To - Total]])","v":0},{"$f":"SUM(Dataset[[#This Row],[2025/26 Reduction]],Dataset[[#This Row],[2025/26 From - Total]],Dataset[[#This Row],[2025/26 To - Total]])","v":0},{"$f":"SUM(Dataset[[#This Row],[2026/27 Reduction]],Dataset[[#This Row],[2026/27 From - Total]],Dataset[[#This Row],[2026/27 To - Total]])","v":0},{"$f":"Dataset[[#This Row],[2023/24 Baseline]]+Dataset[[#This Row],[2023/24 Total change]]","v":0},{"$f":"Dataset[[#This Row],[2024/25 Baseline]]+Dataset[[#This Row],[2024/25 Total change]]","v":0},{"$f":"Dataset[[#This Row],[2025/26 Baseline]]+Dataset[[#This Row],[2025/26 Total change]]","v":0},{"$f":"Dataset[[#This Row],[2026/27 Baseline]]+Dataset[[#This Row],[2026/27 Total change]]","v":0}]
["NAT|Non-transfer item","26|Inventory: Food and food supplies","2024_25","MTEF2024",26,2,3,44526,639,"26","02","03","044526","000639","26|02|03","01","01","02","23","23","01|01|02|23|23","National","Military Veterans","Socioeconomic Support","Socioeconomic Support Management","Non-transfer item","Current","Current payments","Goods and services","Inventory: Food and food supplies","Inventory: Food and food supplies","Peace and security","Defence and state security","NAT",0,0,0,0,0,0,0,0,0,0,0,null,null,null,null,null,null,null,null,null,null,null,null,null,null,null,null,null,null,null,null,null,null,null,null,null,null,null,null,null,null,null,null,null,null,{"$f":"Dataset[[#This Row],[2024/25 From - Spending review Topic 1]]+Dataset[[#This Row],[2024/25 From - Spending review Topic 2]]+Dataset[[#This Row],[2024/25 From - Spending review Topic 3]]+Dataset[[#This Row],[2024/25 From - Spending review Topic 4]]+Dataset[[#This Row],[2024/25 From - Other reallocations]]","v":0},{"$f":"Dataset[[#This Row],[2025/26 From - Spending review Topic 1]]+Dataset[[#This Row],[2025/26 From - Spending review Topic 2]]+Dataset[[#This Row],[2025/26 From - Spending review Topic 3]]+Dataset[[#This Row],[2025/26 From - Spending review Topic 4]]+Dataset[[#This Row],[2025/26 From - Other reallocations]]","v":0},{"$f":"Dataset[[#This Row],[2026/27 From - Spending review Topic 1]]+Dataset[[#This Row],[2026/27 From - Spending review Topic 2]]+Dataset[[#This Row],[2026/27 From - Spending review Topic 3]]+Dataset[[#This Row],[2026/27 From - Spending review Topic 4]]+Dataset[[#This Row],[2026/27 From - Other reallocations]]","v":0},{"$f":"Dataset[[#This Row],[2024/25 To - Spending review Topic 1]]+Dataset[[#This Row],[2024/25 To - Spending review Topic 2]]+Dataset[[#This Row],[2024/25 To - Spending review Topic 3]]+Dataset[[#This Row],[2024/25 To - Spending review Topic 4]]+Dataset[[#This Row],[2024/25 To - Other reallocations]]","v":0},{"$f":"Dataset[[#This Row],[2025/26 To - Spending review Topic 1]]+Dataset[[#This Row],[2025/26 To - Spending review Topic 2]]+Dataset[[#This Row],[2025/26 To - Spending review Topic 3]]+Dataset[[#This Row],[2025/26 To - Spending review Topic 4]]+Dataset[[#This Row],[2025/26 To - Other reallocations]]","v":0},{"$f":"Dataset[[#This Row],[2026/27 To - Spending review Topic 1]]+Dataset[[#This Row],[2026/27 To - Spending review Topic 2]]+Dataset[[#This Row],[2026/27 To - Spending review Topic 3]]+Dataset[[#This Row],[2026/27 To - Spending review Topic 4]]+Dataset[[#This Row],[2026/27 To - Other reallocations]]","v":0},{"$f":"Dataset[[#This Row],[2024/25 Reduction]]+Dataset[[#This Row],[2024/25 From - Total]]","v":0},{"$f":"Dataset[[#This Row],[2025/26 Reduction]]+Dataset[[#This Row],[2025/26 From - Total]]","v":0},{"$f":"Dataset[[#This Row],[2026/27 Reduction]]+Dataset[[#This Row],[2026/27 From - Total]]","v":0},{"$f":"Dataset[[#This Row],[2023/24 Reduction]]","v":0},{"$f":"SUM(Dataset[[#This Row],[2024/25 Reduction]],Dataset[[#This Row],[2024/25 From - Total]],Dataset[[#This Row],[2024/25 To - Total]])","v":0},{"$f":"SUM(Dataset[[#This Row],[2025/26 Reduction]],Dataset[[#This Row],[2025/26 From - Total]],Dataset[[#This Row],[2025/26 To - Total]])","v":0},{"$f":"SUM(Dataset[[#This Row],[2026/27 Reduction]],Dataset[[#This Row],[2026/27 From - Total]],Dataset[[#This Row],[2026/27 To - Total]])","v":0},{"$f":"Dataset[[#This Row],[2023/24 Baseline]]+Dataset[[#This Row],[2023/24 Total change]]","v":0},{"$f":"Dataset[[#This Row],[2024/25 Baseline]]+Dataset[[#This Row],[2024/25 Total change]]","v":0},{"$f":"Dataset[[#This Row],[2025/26 Baseline]]+Dataset[[#This Row],[2025/26 Total change]]","v":0},{"$f":"Dataset[[#This Row],[2026/27 Baseline]]+Dataset[[#This Row],[2026/27 Total change]]","v":0}]
["NAT|Non-transfer item","26|Inventory: Fuel, oil and gas","2024_25","MTEF2024",26,2,3,44527,640,"26","02","03","044527","000640","26|02|03","01","01","02","24","24","01|01|02|24|24","National","Military Veterans","Socioeconomic Support","Socioeconomic Support Management","Non-transfer item","Current","Current payments","Goods and services","Inventory: Fuel, oil and gas","Inventory: Fuel, oil and gas","Peace and security","Defence and state security","NAT",0,0,0,0,0,0,0,0,0,0,0,null,null,null,null,null,null,null,null,null,null,null,null,null,null,null,null,null,null,null,null,null,null,null,null,null,null,null,null,null,null,null,null,null,null,{"$f":"Dataset[[#This Row],[2024/25 From - Spending review Topic 1]]+Dataset[[#This Row],[2024/25 From - Spending review Topic 2]]+Dataset[[#This Row],[2024/25 From - Spending review Topic 3]]+Dataset[[#This Row],[2024/25 From - Spending review Topic 4]]+Dataset[[#This Row],[2024/25 From - Other reallocations]]","v":0},{"$f":"Dataset[[#This Row],[2025/26 From - Spending review Topic 1]]+Dataset[[#This Row],[2025/26 From - Spending review Topic 2]]+Dataset[[#This Row],[2025/26 From - Spending review Topic 3]]+Dataset[[#This Row],[2025/26 From - Spending review Topic 4]]+Dataset[[#This Row],[2025/26 From - Other reallocations]]","v":0},{"$f":"Dataset[[#This Row],[2026/27 From - Spending review Topic 1]]+Dataset[[#This Row],[2026/27 From - Spending review Topic 2]]+Dataset[[#This Row],[2026/27 From - Spending review Topic 3]]+Dataset[[#This Row],[2026/27 From - Spending review Topic 4]]+Dataset[[#This Row],[2026/27 From - Other reallocations]]","v":0},{"$f":"Dataset[[#This Row],[2024/25 To - Spending review Topic 1]]+Dataset[[#This Row],[2024/25 To - Spending review Topic 2]]+Dataset[[#This Row],[2024/25 To - Spending review Topic 3]]+Dataset[[#This Row],[2024/25 To - Spending review Topic 4]]+Dataset[[#This Row],[2024/25 To - Other reallocations]]","v":0},{"$f":"Dataset[[#This Row],[2025/26 To - Spending review Topic 1]]+Dataset[[#This Row],[2025/26 To - Spending review Topic 2]]+Dataset[[#This Row],[2025/26 To - Spending review Topic 3]]+Dataset[[#This Row],[2025/26 To - Spending review Topic 4]]+Dataset[[#This Row],[2025/26 To - Other reallocations]]","v":0},{"$f":"Dataset[[#This Row],[2026/27 To - Spending review Topic 1]]+Dataset[[#This Row],[2026/27 To - Spending review Topic 2]]+Dataset[[#This Row],[2026/27 To - Spending review Topic 3]]+Dataset[[#This Row],[2026/27 To - Spending review Topic 4]]+Dataset[[#This Row],[2026/27 To - Other reallocations]]","v":0},{"$f":"Dataset[[#This Row],[2024/25 Reduction]]+Dataset[[#This Row],[2024/25 From - Total]]","v":0},{"$f":"Dataset[[#This Row],[2025/26 Reduction]]+Dataset[[#This Row],[2025/26 From - Total]]","v":0},{"$f":"Dataset[[#This Row],[2026/27 Reduction]]+Dataset[[#This Row],[2026/27 From - Total]]","v":0},{"$f":"Dataset[[#This Row],[2023/24 Reduction]]","v":0},{"$f":"SUM(Dataset[[#This Row],[2024/25 Reduction]],Dataset[[#This Row],[2024/25 From - Total]],Dataset[[#This Row],[2024/25 To - Total]])","v":0},{"$f":"SUM(Dataset[[#This Row],[2025/26 Reduction]],Dataset[[#This Row],[2025/26 From - Total]],Dataset[[#This Row],[2025/26 To - Total]])","v":0},{"$f":"SUM(Dataset[[#This Row],[2026/27 Reduction]],Dataset[[#This Row],[2026/27 From - Total]],Dataset[[#This Row],[2026/27 To - Total]])","v":0},{"$f":"Dataset[[#This Row],[2023/24 Baseline]]+Dataset[[#This Row],[2023/24 Total change]]","v":0},{"$f":"Dataset[[#This Row],[2024/25 Baseline]]+Dataset[[#This Row],[2024/25 Total change]]","v":0},{"$f":"Dataset[[#This Row],[2025/26 Baseline]]+Dataset[[#This Row],[2025/26 Total change]]","v":0},{"$f":"Dataset[[#This Row],[2026/27 Baseline]]+Dataset[[#This Row],[2026/27 Total change]]","v":0}]
["NAT|Non-transfer item","26|Inventory: Learner and teacher support material","2024_25","MTEF2024",26,2,3,44528,641,"26","02","03","044528","000641","26|02|03","01","01","02","25","25","01|01|02|25|25","National","Military Veterans","Socioeconomic Support","Socioeconomic Support Management","Non-transfer item","Current","Current payments","Goods and services","Inventory: Learner and teacher support material","Inventory: Learner and teacher support material","Peace and security","Defence and state security","NAT",0,0,0,0,0,0,0,0,0,0,0,null,null,null,null,null,null,null,null,null,null,null,null,null,null,null,null,null,null,null,null,null,null,null,null,null,null,null,null,null,null,null,null,null,null,{"$f":"Dataset[[#This Row],[2024/25 From - Spending review Topic 1]]+Dataset[[#This Row],[2024/25 From - Spending review Topic 2]]+Dataset[[#This Row],[2024/25 From - Spending review Topic 3]]+Dataset[[#This Row],[2024/25 From - Spending review Topic 4]]+Dataset[[#This Row],[2024/25 From - Other reallocations]]","v":0},{"$f":"Dataset[[#This Row],[2025/26 From - Spending review Topic 1]]+Dataset[[#This Row],[2025/26 From - Spending review Topic 2]]+Dataset[[#This Row],[2025/26 From - Spending review Topic 3]]+Dataset[[#This Row],[2025/26 From - Spending review Topic 4]]+Dataset[[#This Row],[2025/26 From - Other reallocations]]","v":0},{"$f":"Dataset[[#This Row],[2026/27 From - Spending review Topic 1]]+Dataset[[#This Row],[2026/27 From - Spending review Topic 2]]+Dataset[[#This Row],[2026/27 From - Spending review Topic 3]]+Dataset[[#This Row],[2026/27 From - Spending review Topic 4]]+Dataset[[#This Row],[2026/27 From - Other reallocations]]","v":0},{"$f":"Dataset[[#This Row],[2024/25 To - Spending review Topic 1]]+Dataset[[#This Row],[2024/25 To - Spending review Topic 2]]+Dataset[[#This Row],[2024/25 To - Spending review Topic 3]]+Dataset[[#This Row],[2024/25 To - Spending review Topic 4]]+Dataset[[#This Row],[2024/25 To - Other reallocations]]","v":0},{"$f":"Dataset[[#This Row],[2025/26 To - Spending review Topic 1]]+Dataset[[#This Row],[2025/26 To - Spending review Topic 2]]+Dataset[[#This Row],[2025/26 To - Spending review Topic 3]]+Dataset[[#This Row],[2025/26 To - Spending review Topic 4]]+Dataset[[#This Row],[2025/26 To - Other reallocations]]","v":0},{"$f":"Dataset[[#This Row],[2026/27 To - Spending review Topic 1]]+Dataset[[#This Row],[2026/27 To - Spending review Topic 2]]+Dataset[[#This Row],[2026/27 To - Spending review Topic 3]]+Dataset[[#This Row],[2026/27 To - Spending review Topic 4]]+Dataset[[#This Row],[2026/27 To - Other reallocations]]","v":0},{"$f":"Dataset[[#This Row],[2024/25 Reduction]]+Dataset[[#This Row],[2024/25 From - Total]]","v":0},{"$f":"Dataset[[#This Row],[2025/26 Reduction]]+Dataset[[#This Row],[2025/26 From - Total]]","v":0},{"$f":"Dataset[[#This Row],[2026/27 Reduction]]+Dataset[[#This Row],[2026/27 From - Total]]","v":0},{"$f":"Dataset[[#This Row],[2023/24 Reduction]]","v":0},{"$f":"SUM(Dataset[[#This Row],[2024/25 Reduction]],Dataset[[#This Row],[2024/25 From - Total]],Dataset[[#This Row],[2024/25 To - Total]])","v":0},{"$f":"SUM(Dataset[[#This Row],[2025/26 Reduction]],Dataset[[#This Row],[2025/26 From - Total]],Dataset[[#This Row],[2025/26 To - Total]])","v":0},{"$f":"SUM(Dataset[[#This Row],[2026/27 Reduction]],Dataset[[#This Row],[2026/27 From - Total]],Dataset[[#This Row],[2026/27 To - Total]])","v":0},{"$f":"Dataset[[#This Row],[2023/24 Baseline]]+Dataset[[#This Row],[2023/24 Total change]]","v":0},{"$f":"Dataset[[#This Row],[2024/25 Baseline]]+Dataset[[#This Row],[2024/25 Total change]]","v":0},{"$f":"Dataset[[#This Row],[2025/26 Baseline]]+Dataset[[#This Row],[2025/26 Total change]]","v":0},{"$f":"Dataset[[#This Row],[2026/27 Baseline]]+Dataset[[#This Row],[2026/27 Total change]]","v":0}]
["NAT|Non-transfer item","26|Inventory: Materials and supplies","2024_25","MTEF2024",26,2,3,44529,642,"26","02","03","044529","000642","26|02|03","01","01","02","26","26","01|01|02|26|26","National","Military Veterans","Socioeconomic Support","Socioeconomic Support Management","Non-transfer item","Current","Current payments","Goods and services","Inventory: Materials and supplies","Inventory: Materials and supplies","Peace and security","Defence and state security","NAT",0,0,0,0,0,0,0,0,0,0,0,null,null,null,null,null,null,null,null,null,null,null,null,null,null,null,null,null,null,null,null,null,null,null,null,null,null,null,null,null,null,null,null,null,null,{"$f":"Dataset[[#This Row],[2024/25 From - Spending review Topic 1]]+Dataset[[#This Row],[2024/25 From - Spending review Topic 2]]+Dataset[[#This Row],[2024/25 From - Spending review Topic 3]]+Dataset[[#This Row],[2024/25 From - Spending review Topic 4]]+Dataset[[#This Row],[2024/25 From - Other reallocations]]","v":0},{"$f":"Dataset[[#This Row],[2025/26 From - Spending review Topic 1]]+Dataset[[#This Row],[2025/26 From - Spending review Topic 2]]+Dataset[[#This Row],[2025/26 From - Spending review Topic 3]]+Dataset[[#This Row],[2025/26 From - Spending review Topic 4]]+Dataset[[#This Row],[2025/26 From - Other reallocations]]","v":0},{"$f":"Dataset[[#This Row],[2026/27 From - Spending review Topic 1]]+Dataset[[#This Row],[2026/27 From - Spending review Topic 2]]+Dataset[[#This Row],[2026/27 From - Spending review Topic 3]]+Dataset[[#This Row],[2026/27 From - Spending review Topic 4]]+Dataset[[#This Row],[2026/27 From - Other reallocations]]","v":0},{"$f":"Dataset[[#This Row],[2024/25 To - Spending review Topic 1]]+Dataset[[#This Row],[2024/25 To - Spending review Topic 2]]+Dataset[[#This Row],[2024/25 To - Spending review Topic 3]]+Dataset[[#This Row],[2024/25 To - Spending review Topic 4]]+Dataset[[#This Row],[2024/25 To - Other reallocations]]","v":0},{"$f":"Dataset[[#This Row],[2025/26 To - Spending review Topic 1]]+Dataset[[#This Row],[2025/26 To - Spending review Topic 2]]+Dataset[[#This Row],[2025/26 To - Spending review Topic 3]]+Dataset[[#This Row],[2025/26 To - Spending review Topic 4]]+Dataset[[#This Row],[2025/26 To - Other reallocations]]","v":0},{"$f":"Dataset[[#This Row],[2026/27 To - Spending review Topic 1]]+Dataset[[#This Row],[2026/27 To - Spending review Topic 2]]+Dataset[[#This Row],[2026/27 To - Spending review Topic 3]]+Dataset[[#This Row],[2026/27 To - Spending review Topic 4]]+Dataset[[#This Row],[2026/27 To - Other reallocations]]","v":0},{"$f":"Dataset[[#This Row],[2024/25 Reduction]]+Dataset[[#This Row],[2024/25 From - Total]]","v":0},{"$f":"Dataset[[#This Row],[2025/26 Reduction]]+Dataset[[#This Row],[2025/26 From - Total]]","v":0},{"$f":"Dataset[[#This Row],[2026/27 Reduction]]+Dataset[[#This Row],[2026/27 From - Total]]","v":0},{"$f":"Dataset[[#This Row],[2023/24 Reduction]]","v":0},{"$f":"SUM(Dataset[[#This Row],[2024/25 Reduction]],Dataset[[#This Row],[2024/25 From - Total]],Dataset[[#This Row],[2024/25 To - Total]])","v":0},{"$f":"SUM(Dataset[[#This Row],[2025/26 Reduction]],Dataset[[#This Row],[2025/26 From - Total]],Dataset[[#This Row],[2025/26 To - Total]])","v":0},{"$f":"SUM(Dataset[[#This Row],[2026/27 Reduction]],Dataset[[#This Row],[2026/27 From - Total]],Dataset[[#This Row],[2026/27 To - Total]])","v":0},{"$f":"Dataset[[#This Row],[2023/24 Baseline]]+Dataset[[#This Row],[2023/24 Total change]]","v":0},{"$f":"Dataset[[#This Row],[2024/25 Baseline]]+Dataset[[#This Row],[2024/25 Total change]]","v":0},{"$f":"Dataset[[#This Row],[2025/26 Baseline]]+Dataset[[#This Row],[2025/26 Total change]]","v":0},{"$f":"Dataset[[#This Row],[2026/27 Baseline]]+Dataset[[#This Row],[2026/27 Total change]]","v":0}]
["NAT|Non-transfer item","26|Inventory: Medical supplies","2024_25","MTEF2024",26,2,3,44530,643,"26","02","03","044530","000643","26|02|03","01","01","02","27","27","01|01|02|27|27","National","Military Veterans","Socioeconomic Support","Socioeconomic Support Management","Non-transfer item","Current","Current payments","Goods and services","Inventory: Medical supplies","Inventory: Medical supplies","Peace and security","Defence and state security","NAT",0,0,0,0,0,0,0,0,0,0,0,null,null,null,null,null,null,null,null,null,null,null,null,null,null,null,null,null,null,null,null,null,null,null,null,null,null,null,null,null,null,null,null,null,null,{"$f":"Dataset[[#This Row],[2024/25 From - Spending review Topic 1]]+Dataset[[#This Row],[2024/25 From - Spending review Topic 2]]+Dataset[[#This Row],[2024/25 From - Spending review Topic 3]]+Dataset[[#This Row],[2024/25 From - Spending review Topic 4]]+Dataset[[#This Row],[2024/25 From - Other reallocations]]","v":0},{"$f":"Dataset[[#This Row],[2025/26 From - Spending review Topic 1]]+Dataset[[#This Row],[2025/26 From - Spending review Topic 2]]+Dataset[[#This Row],[2025/26 From - Spending review Topic 3]]+Dataset[[#This Row],[2025/26 From - Spending review Topic 4]]+Dataset[[#This Row],[2025/26 From - Other reallocations]]","v":0},{"$f":"Dataset[[#This Row],[2026/27 From - Spending review Topic 1]]+Dataset[[#This Row],[2026/27 From - Spending review Topic 2]]+Dataset[[#This Row],[2026/27 From - Spending review Topic 3]]+Dataset[[#This Row],[2026/27 From - Spending review Topic 4]]+Dataset[[#This Row],[2026/27 From - Other reallocations]]","v":0},{"$f":"Dataset[[#This Row],[2024/25 To - Spending review Topic 1]]+Dataset[[#This Row],[2024/25 To - Spending review Topic 2]]+Dataset[[#This Row],[2024/25 To - Spending review Topic 3]]+Dataset[[#This Row],[2024/25 To - Spending review Topic 4]]+Dataset[[#This Row],[2024/25 To - Other reallocations]]","v":0},{"$f":"Dataset[[#This Row],[2025/26 To - Spending review Topic 1]]+Dataset[[#This Row],[2025/26 To - Spending review Topic 2]]+Dataset[[#This Row],[2025/26 To - Spending review Topic 3]]+Dataset[[#This Row],[2025/26 To - Spending review Topic 4]]+Dataset[[#This Row],[2025/26 To - Other reallocations]]","v":0},{"$f":"Dataset[[#This Row],[2026/27 To - Spending review Topic 1]]+Dataset[[#This Row],[2026/27 To - Spending review Topic 2]]+Dataset[[#This Row],[2026/27 To - Spending review Topic 3]]+Dataset[[#This Row],[2026/27 To - Spending review Topic 4]]+Dataset[[#This Row],[2026/27 To - Other reallocations]]","v":0},{"$f":"Dataset[[#This Row],[2024/25 Reduction]]+Dataset[[#This Row],[2024/25 From - Total]]","v":0},{"$f":"Dataset[[#This Row],[2025/26 Reduction]]+Dataset[[#This Row],[2025/26 From - Total]]","v":0},{"$f":"Dataset[[#This Row],[2026/27 Reduction]]+Dataset[[#This Row],[2026/27 From - Total]]","v":0},{"$f":"Dataset[[#This Row],[2023/24 Reduction]]","v":0},{"$f":"SUM(Dataset[[#This Row],[2024/25 Reduction]],Dataset[[#This Row],[2024/25 From - Total]],Dataset[[#This Row],[2024/25 To - Total]])","v":0},{"$f":"SUM(Dataset[[#This Row],[2025/26 Reduction]],Dataset[[#This Row],[2025/26 From - Total]],Dataset[[#This Row],[2025/26 To - Total]])","v":0},{"$f":"SUM(Dataset[[#This Row],[2026/27 Reduction]],Dataset[[#This Row],[2026/27 From - Total]],Dataset[[#This Row],[2026/27 To - Total]])","v":0},{"$f":"Dataset[[#This Row],[2023/24 Baseline]]+Dataset[[#This Row],[2023/24 Total change]]","v":0},{"$f":"Dataset[[#This Row],[2024/25 Baseline]]+Dataset[[#This Row],[2024/25 Total change]]","v":0},{"$f":"Dataset[[#This Row],[2025/26 Baseline]]+Dataset[[#This Row],[2025/26 Total change]]","v":0},{"$f":"Dataset[[#This Row],[2026/27 Baseline]]+Dataset[[#This Row],[2026/27 Total change]]","v":0}]
["NAT|Non-transfer item","26|Inventory: Medicine","2024_25","MTEF2024",26,2,3,44531,644,"26","02","03","044531","000644","26|02|03","01","01","02","28","28","01|01|02|28|28","National","Military Veterans","Socioeconomic Support","Socioeconomic Support Management","Non-transfer item","Current","Current payments","Goods and services","Inventory: Medicine","Inventory: Medicine","Peace and security","Defence and state security","NAT",0,0,0,0,0,0,0,0,0,0,0,null,null,null,null,null,null,null,null,null,null,null,null,null,null,null,null,null,null,null,null,null,null,null,null,null,null,null,null,null,null,null,null,null,null,{"$f":"Dataset[[#This Row],[2024/25 From - Spending review Topic 1]]+Dataset[[#This Row],[2024/25 From - Spending review Topic 2]]+Dataset[[#This Row],[2024/25 From - Spending review Topic 3]]+Dataset[[#This Row],[2024/25 From - Spending review Topic 4]]+Dataset[[#This Row],[2024/25 From - Other reallocations]]","v":0},{"$f":"Dataset[[#This Row],[2025/26 From - Spending review Topic 1]]+Dataset[[#This Row],[2025/26 From - Spending review Topic 2]]+Dataset[[#This Row],[2025/26 From - Spending review Topic 3]]+Dataset[[#This Row],[2025/26 From - Spending review Topic 4]]+Dataset[[#This Row],[2025/26 From - Other reallocations]]","v":0},{"$f":"Dataset[[#This Row],[2026/27 From - Spending review Topic 1]]+Dataset[[#This Row],[2026/27 From - Spending review Topic 2]]+Dataset[[#This Row],[2026/27 From - Spending review Topic 3]]+Dataset[[#This Row],[2026/27 From - Spending review Topic 4]]+Dataset[[#This Row],[2026/27 From - Other reallocations]]","v":0},{"$f":"Dataset[[#This Row],[2024/25 To - Spending review Topic 1]]+Dataset[[#This Row],[2024/25 To - Spending review Topic 2]]+Dataset[[#This Row],[2024/25 To - Spending review Topic 3]]+Dataset[[#This Row],[2024/25 To - Spending review Topic 4]]+Dataset[[#This Row],[2024/25 To - Other reallocations]]","v":0},{"$f":"Dataset[[#This Row],[2025/26 To - Spending review Topic 1]]+Dataset[[#This Row],[2025/26 To - Spending review Topic 2]]+Dataset[[#This Row],[2025/26 To - Spending review Topic 3]]+Dataset[[#This Row],[2025/26 To - Spending review Topic 4]]+Dataset[[#This Row],[2025/26 To - Other reallocations]]","v":0},{"$f":"Dataset[[#This Row],[2026/27 To - Spending review Topic 1]]+Dataset[[#This Row],[2026/27 To - Spending review Topic 2]]+Dataset[[#This Row],[2026/27 To - Spending review Topic 3]]+Dataset[[#This Row],[2026/27 To - Spending review Topic 4]]+Dataset[[#This Row],[2026/27 To - Other reallocations]]","v":0},{"$f":"Dataset[[#This Row],[2024/25 Reduction]]+Dataset[[#This Row],[2024/25 From - Total]]","v":0},{"$f":"Dataset[[#This Row],[2025/26 Reduction]]+Dataset[[#This Row],[2025/26 From - Total]]","v":0},{"$f":"Dataset[[#This Row],[2026/27 Reduction]]+Dataset[[#This Row],[2026/27 From - Total]]","v":0},{"$f":"Dataset[[#This Row],[2023/24 Reduction]]","v":0},{"$f":"SUM(Dataset[[#This Row],[2024/25 Reduction]],Dataset[[#This Row],[2024/25 From - Total]],Dataset[[#This Row],[2024/25 To - Total]])","v":0},{"$f":"SUM(Dataset[[#This Row],[2025/26 Reduction]],Dataset[[#This Row],[2025/26 From - Total]],Dataset[[#This Row],[2025/26 To - Total]])","v":0},{"$f":"SUM(Dataset[[#This Row],[2026/27 Reduction]],Dataset[[#This Row],[2026/27 From - Total]],Dataset[[#This Row],[2026/27 To - Total]])","v":0},{"$f":"Dataset[[#This Row],[2023/24 Baseline]]+Dataset[[#This Row],[2023/24 Total change]]","v":0},{"$f":"Dataset[[#This Row],[2024/25 Baseline]]+Dataset[[#This Row],[2024/25 Total change]]","v":0},{"$f":"Dataset[[#This Row],[2025/26 Baseline]]+Dataset[[#This Row],[2025/26 Total change]]","v":0},{"$f":"Dataset[[#This Row],[2026/27 Baseline]]+Dataset[[#This Row],[2026/27 Total change]]","v":0}]
["NAT|Non-transfer item","26|Medsas inventory interface","2024_25","MTEF2024",26,2,3,44532,645,"26","02","03","044532","000645","26|02|03","01","01","02","29","29","01|01|02|29|29","National","Military Veterans","Socioeconomic Support","Socioeconomic Support Management","Non-transfer item","Current","Current payments","Goods and services","Medsas inventory interface","Medsas inventory interface","Peace and security","Defence and state security","NAT",0,0,0,0,0,0,0,0,0,0,0,null,null,null,null,null,null,null,null,null,null,null,null,null,null,null,null,null,null,null,null,null,null,null,null,null,null,null,null,null,null,null,null,null,null,{"$f":"Dataset[[#This Row],[2024/25 From - Spending review Topic 1]]+Dataset[[#This Row],[2024/25 From - Spending review Topic 2]]+Dataset[[#This Row],[2024/25 From - Spending review Topic 3]]+Dataset[[#This Row],[2024/25 From - Spending review Topic 4]]+Dataset[[#This Row],[2024/25 From - Other reallocations]]","v":0},{"$f":"Dataset[[#This Row],[2025/26 From - Spending review Topic 1]]+Dataset[[#This Row],[2025/26 From - Spending review Topic 2]]+Dataset[[#This Row],[2025/26 From - Spending review Topic 3]]+Dataset[[#This Row],[2025/26 From - Spending review Topic 4]]+Dataset[[#This Row],[2025/26 From - Other reallocations]]","v":0},{"$f":"Dataset[[#This Row],[2026/27 From - Spending review Topic 1]]+Dataset[[#This Row],[2026/27 From - Spending review Topic 2]]+Dataset[[#This Row],[2026/27 From - Spending review Topic 3]]+Dataset[[#This Row],[2026/27 From - Spending review Topic 4]]+Dataset[[#This Row],[2026/27 From - Other reallocations]]","v":0},{"$f":"Dataset[[#This Row],[2024/25 To - Spending review Topic 1]]+Dataset[[#This Row],[2024/25 To - Spending review Topic 2]]+Dataset[[#This Row],[2024/25 To - Spending review Topic 3]]+Dataset[[#This Row],[2024/25 To - Spending review Topic 4]]+Dataset[[#This Row],[2024/25 To - Other reallocations]]","v":0},{"$f":"Dataset[[#This Row],[2025/26 To - Spending review Topic 1]]+Dataset[[#This Row],[2025/26 To - Spending review Topic 2]]+Dataset[[#This Row],[2025/26 To - Spending review Topic 3]]+Dataset[[#This Row],[2025/26 To - Spending review Topic 4]]+Dataset[[#This Row],[2025/26 To - Other reallocations]]","v":0},{"$f":"Dataset[[#This Row],[2026/27 To - Spending review Topic 1]]+Dataset[[#This Row],[2026/27 To - Spending review Topic 2]]+Dataset[[#This Row],[2026/27 To - Spending review Topic 3]]+Dataset[[#This Row],[2026/27 To - Spending review Topic 4]]+Dataset[[#This Row],[2026/27 To - Other reallocations]]","v":0},{"$f":"Dataset[[#This Row],[2024/25 Reduction]]+Dataset[[#This Row],[2024/25 From - Total]]","v":0},{"$f":"Dataset[[#This Row],[2025/26 Reduction]]+Dataset[[#This Row],[2025/26 From - Total]]","v":0},{"$f":"Dataset[[#This Row],[2026/27 Reduction]]+Dataset[[#This Row],[2026/27 From - Total]]","v":0},{"$f":"Dataset[[#This Row],[2023/24 Reduction]]","v":0},{"$f":"SUM(Dataset[[#This Row],[2024/25 Reduction]],Dataset[[#This Row],[2024/25 From - Total]],Dataset[[#This Row],[2024/25 To - Total]])","v":0},{"$f":"SUM(Dataset[[#This Row],[2025/26 Reduction]],Dataset[[#This Row],[2025/26 From - Total]],Dataset[[#This Row],[2025/26 To - Total]])","v":0},{"$f":"SUM(Dataset[[#This Row],[2026/27 Reduction]],Dataset[[#This Row],[2026/27 From - Total]],Dataset[[#This Row],[2026/27 To - Total]])","v":0},{"$f":"Dataset[[#This Row],[2023/24 Baseline]]+Dataset[[#This Row],[2023/24 Total change]]","v":0},{"$f":"Dataset[[#This Row],[2024/25 Baseline]]+Dataset[[#This Row],[2024/25 Total change]]","v":0},{"$f":"Dataset[[#This Row],[2025/26 Baseline]]+Dataset[[#This Row],[2025/26 Total change]]","v":0},{"$f":"Dataset[[#This Row],[2026/27 Baseline]]+Dataset[[#This Row],[2026/27 Total change]]","v":0}]
["NAT|Non-transfer item","26|Inventory: Other supplies","2024_25","MTEF2024",26,2,3,44533,646,"26","02","03","044533","000646","26|02|03","01","01","02","30","30","01|01|02|30|30","National","Military Veterans","Socioeconomic Support","Socioeconomic Support Management","Non-transfer item","Current","Current payments","Goods and services","Inventory: Other supplies","Inventory: Other supplies","Peace and security","Defence and state security","NAT",0,0,0,0,0,0,0,0,0,0,0,null,null,null,null,null,null,null,null,null,null,null,null,null,null,null,null,null,null,null,null,null,null,null,null,null,null,null,null,null,null,null,null,null,null,{"$f":"Dataset[[#This Row],[2024/25 From - Spending review Topic 1]]+Dataset[[#This Row],[2024/25 From - Spending review Topic 2]]+Dataset[[#This Row],[2024/25 From - Spending review Topic 3]]+Dataset[[#This Row],[2024/25 From - Spending review Topic 4]]+Dataset[[#This Row],[2024/25 From - Other reallocations]]","v":0},{"$f":"Dataset[[#This Row],[2025/26 From - Spending review Topic 1]]+Dataset[[#This Row],[2025/26 From - Spending review Topic 2]]+Dataset[[#This Row],[2025/26 From - Spending review Topic 3]]+Dataset[[#This Row],[2025/26 From - Spending review Topic 4]]+Dataset[[#This Row],[2025/26 From - Other reallocations]]","v":0},{"$f":"Dataset[[#This Row],[2026/27 From - Spending review Topic 1]]+Dataset[[#This Row],[2026/27 From - Spending review Topic 2]]+Dataset[[#This Row],[2026/27 From - Spending review Topic 3]]+Dataset[[#This Row],[2026/27 From - Spending review Topic 4]]+Dataset[[#This Row],[2026/27 From - Other reallocations]]","v":0},{"$f":"Dataset[[#This Row],[2024/25 To - Spending review Topic 1]]+Dataset[[#This Row],[2024/25 To - Spending review Topic 2]]+Dataset[[#This Row],[2024/25 To - Spending review Topic 3]]+Dataset[[#This Row],[2024/25 To - Spending review Topic 4]]+Dataset[[#This Row],[2024/25 To - Other reallocations]]","v":0},{"$f":"Dataset[[#This Row],[2025/26 To - Spending review Topic 1]]+Dataset[[#This Row],[2025/26 To - Spending review Topic 2]]+Dataset[[#This Row],[2025/26 To - Spending review Topic 3]]+Dataset[[#This Row],[2025/26 To - Spending review Topic 4]]+Dataset[[#This Row],[2025/26 To - Other reallocations]]","v":0},{"$f":"Dataset[[#This Row],[2026/27 To - Spending review Topic 1]]+Dataset[[#This Row],[2026/27 To - Spending review Topic 2]]+Dataset[[#This Row],[2026/27 To - Spending review Topic 3]]+Dataset[[#This Row],[2026/27 To - Spending review Topic 4]]+Dataset[[#This Row],[2026/27 To - Other reallocations]]","v":0},{"$f":"Dataset[[#This Row],[2024/25 Reduction]]+Dataset[[#This Row],[2024/25 From - Total]]","v":0},{"$f":"Dataset[[#This Row],[2025/26 Reduction]]+Dataset[[#This Row],[2025/26 From - Total]]","v":0},{"$f":"Dataset[[#This Row],[2026/27 Reduction]]+Dataset[[#This Row],[2026/27 From - Total]]","v":0},{"$f":"Dataset[[#This Row],[2023/24 Reduction]]","v":0},{"$f":"SUM(Dataset[[#This Row],[2024/25 Reduction]],Dataset[[#This Row],[2024/25 From - Total]],Dataset[[#This Row],[2024/25 To - Total]])","v":0},{"$f":"SUM(Dataset[[#This Row],[2025/26 Reduction]],Dataset[[#This Row],[2025/26 From - Total]],Dataset[[#This Row],[2025/26 To - Total]])","v":0},{"$f":"SUM(Dataset[[#This Row],[2026/27 Reduction]],Dataset[[#This Row],[2026/27 From - Total]],Dataset[[#This Row],[2026/27 To - Total]])","v":0},{"$f":"Dataset[[#This Row],[2023/24 Baseline]]+Dataset[[#This Row],[2023/24 Total change]]","v":0},{"$f":"Dataset[[#This Row],[2024/25 Baseline]]+Dataset[[#This Row],[2024/25 Total change]]","v":0},{"$f":"Dataset[[#This Row],[2025/26 Baseline]]+Dataset[[#This Row],[2025/26 Total change]]","v":0},{"$f":"Dataset[[#This Row],[2026/27 Baseline]]+Dataset[[#This Row],[2026/27 Total change]]","v":0}]
["NAT|Non-transfer item","26|Consumable supplies","2024_25","MTEF2024",26,2,3,44534,647,"26","02","03","044534","000647","26|02|03","01","01","02","31","31","01|01|02|31|31","National","Military Veterans","Socioeconomic Support","Socioeconomic Support Management","Non-transfer item","Current","Current payments","Goods and services","Consumable supplies","Consumable supplies","Peace and security","Defence and state security","NAT",7,0,0,22,22,22,0,2,3,4,4,null,null,null,null,null,null,null,null,null,null,null,null,null,null,null,null,null,null,null,null,null,null,null,null,null,null,null,null,null,null,null,null,null,null,{"$f":"Dataset[[#This Row],[2024/25 From - Spending review Topic 1]]+Dataset[[#This Row],[2024/25 From - Spending review Topic 2]]+Dataset[[#This Row],[2024/25 From - Spending review Topic 3]]+Dataset[[#This Row],[2024/25 From - Spending review Topic 4]]+Dataset[[#This Row],[2024/25 From - Other reallocations]]","v":0},{"$f":"Dataset[[#This Row],[2025/26 From - Spending review Topic 1]]+Dataset[[#This Row],[2025/26 From - Spending review Topic 2]]+Dataset[[#This Row],[2025/26 From - Spending review Topic 3]]+Dataset[[#This Row],[2025/26 From - Spending review Topic 4]]+Dataset[[#This Row],[2025/26 From - Other reallocations]]","v":0},{"$f":"Dataset[[#This Row],[2026/27 From - Spending review Topic 1]]+Dataset[[#This Row],[2026/27 From - Spending review Topic 2]]+Dataset[[#This Row],[2026/27 From - Spending review Topic 3]]+Dataset[[#This Row],[2026/27 From - Spending review Topic 4]]+Dataset[[#This Row],[2026/27 From - Other reallocations]]","v":0},{"$f":"Dataset[[#This Row],[2024/25 To - Spending review Topic 1]]+Dataset[[#This Row],[2024/25 To - Spending review Topic 2]]+Dataset[[#This Row],[2024/25 To - Spending review Topic 3]]+Dataset[[#This Row],[2024/25 To - Spending review Topic 4]]+Dataset[[#This Row],[2024/25 To - Other reallocations]]","v":0},{"$f":"Dataset[[#This Row],[2025/26 To - Spending review Topic 1]]+Dataset[[#This Row],[2025/26 To - Spending review Topic 2]]+Dataset[[#This Row],[2025/26 To - Spending review Topic 3]]+Dataset[[#This Row],[2025/26 To - Spending review Topic 4]]+Dataset[[#This Row],[2025/26 To - Other reallocations]]","v":0},{"$f":"Dataset[[#This Row],[2026/27 To - Spending review Topic 1]]+Dataset[[#This Row],[2026/27 To - Spending review Topic 2]]+Dataset[[#This Row],[2026/27 To - Spending review Topic 3]]+Dataset[[#This Row],[2026/27 To - Spending review Topic 4]]+Dataset[[#This Row],[2026/27 To - Other reallocations]]","v":0},{"$f":"Dataset[[#This Row],[2024/25 Reduction]]+Dataset[[#This Row],[2024/25 From - Total]]","v":0},{"$f":"Dataset[[#This Row],[2025/26 Reduction]]+Dataset[[#This Row],[2025/26 From - Total]]","v":0},{"$f":"Dataset[[#This Row],[2026/27 Reduction]]+Dataset[[#This Row],[2026/27 From - Total]]","v":0},{"$f":"Dataset[[#This Row],[2023/24 Reduction]]","v":0},{"$f":"SUM(Dataset[[#This Row],[2024/25 Reduction]],Dataset[[#This Row],[2024/25 From - Total]],Dataset[[#This Row],[2024/25 To - Total]])","v":0},{"$f":"SUM(Dataset[[#This Row],[2025/26 Reduction]],Dataset[[#This Row],[2025/26 From - Total]],Dataset[[#This Row],[2025/26 To - Total]])","v":0},{"$f":"SUM(Dataset[[#This Row],[2026/27 Reduction]],Dataset[[#This Row],[2026/27 From - Total]],Dataset[[#This Row],[2026/27 To - Total]])","v":0},{"$f":"Dataset[[#This Row],[2023/24 Baseline]]+Dataset[[#This Row],[2023/24 Total change]]","v":2},{"$f":"Dataset[[#This Row],[2024/25 Baseline]]+Dataset[[#This Row],[2024/25 Total change]]","v":3},{"$f":"Dataset[[#This Row],[2025/26 Baseline]]+Dataset[[#This Row],[2025/26 Total change]]","v":4},{"$f":"Dataset[[#This Row],[2026/27 Baseline]]+Dataset[[#This Row],[2026/27 Total change]]","v":4}]
["NAT|Non-transfer item","26|Consumables: Stationery, printing and office supplies","2024_25","MTEF2024",26,2,3,44535,648,"26","02","03","044535","000648","26|02|03","01","01","02","32","32","01|01|02|32|32","National","Military Veterans","Socioeconomic Support","Socioeconomic Support Management","Non-transfer item","Current","Current payments","Goods and services","Consumables: Stationery, printing and office supplies","Consumables: Stationery, printing and office supplies","Peace and security","Defence and state security","NAT",124,54,0,118,213,213,0,141,147,153,160,null,null,null,null,null,null,null,null,null,null,null,null,null,null,null,null,null,null,null,null,null,null,null,null,null,null,null,null,null,null,null,null,null,null,{"$f":"Dataset[[#This Row],[2024/25 From - Spending review Topic 1]]+Dataset[[#This Row],[2024/25 From - Spending review Topic 2]]+Dataset[[#This Row],[2024/25 From - Spending review Topic 3]]+Dataset[[#This Row],[2024/25 From - Spending review Topic 4]]+Dataset[[#This Row],[2024/25 From - Other reallocations]]","v":0},{"$f":"Dataset[[#This Row],[2025/26 From - Spending review Topic 1]]+Dataset[[#This Row],[2025/26 From - Spending review Topic 2]]+Dataset[[#This Row],[2025/26 From - Spending review Topic 3]]+Dataset[[#This Row],[2025/26 From - Spending review Topic 4]]+Dataset[[#This Row],[2025/26 From - Other reallocations]]","v":0},{"$f":"Dataset[[#This Row],[2026/27 From - Spending review Topic 1]]+Dataset[[#This Row],[2026/27 From - Spending review Topic 2]]+Dataset[[#This Row],[2026/27 From - Spending review Topic 3]]+Dataset[[#This Row],[2026/27 From - Spending review Topic 4]]+Dataset[[#This Row],[2026/27 From - Other reallocations]]","v":0},{"$f":"Dataset[[#This Row],[2024/25 To - Spending review Topic 1]]+Dataset[[#This Row],[2024/25 To - Spending review Topic 2]]+Dataset[[#This Row],[2024/25 To - Spending review Topic 3]]+Dataset[[#This Row],[2024/25 To - Spending review Topic 4]]+Dataset[[#This Row],[2024/25 To - Other reallocations]]","v":0},{"$f":"Dataset[[#This Row],[2025/26 To - Spending review Topic 1]]+Dataset[[#This Row],[2025/26 To - Spending review Topic 2]]+Dataset[[#This Row],[2025/26 To - Spending review Topic 3]]+Dataset[[#This Row],[2025/26 To - Spending review Topic 4]]+Dataset[[#This Row],[2025/26 To - Other reallocations]]","v":0},{"$f":"Dataset[[#This Row],[2026/27 To - Spending review Topic 1]]+Dataset[[#This Row],[2026/27 To - Spending review Topic 2]]+Dataset[[#This Row],[2026/27 To - Spending review Topic 3]]+Dataset[[#This Row],[2026/27 To - Spending review Topic 4]]+Dataset[[#This Row],[2026/27 To - Other reallocations]]","v":0},{"$f":"Dataset[[#This Row],[2024/25 Reduction]]+Dataset[[#This Row],[2024/25 From - Total]]","v":0},{"$f":"Dataset[[#This Row],[2025/26 Reduction]]+Dataset[[#This Row],[2025/26 From - Total]]","v":0},{"$f":"Dataset[[#This Row],[2026/27 Reduction]]+Dataset[[#This Row],[2026/27 From - Total]]","v":0},{"$f":"Dataset[[#This Row],[2023/24 Reduction]]","v":0},{"$f":"SUM(Dataset[[#This Row],[2024/25 Reduction]],Dataset[[#This Row],[2024/25 From - Total]],Dataset[[#This Row],[2024/25 To - Total]])","v":0},{"$f":"SUM(Dataset[[#This Row],[2025/26 Reduction]],Dataset[[#This Row],[2025/26 From - Total]],Dataset[[#This Row],[2025/26 To - Total]])","v":0},{"$f":"SUM(Dataset[[#This Row],[2026/27 Reduction]],Dataset[[#This Row],[2026/27 From - Total]],Dataset[[#This Row],[2026/27 To - Total]])","v":0},{"$f":"Dataset[[#This Row],[2023/24 Baseline]]+Dataset[[#This Row],[2023/24 Total change]]","v":141},{"$f":"Dataset[[#This Row],[2024/25 Baseline]]+Dataset[[#This Row],[2024/25 Total change]]","v":147},{"$f":"Dataset[[#This Row],[2025/26 Baseline]]+Dataset[[#This Row],[2025/26 Total change]]","v":153},{"$f":"Dataset[[#This Row],[2026/27 Baseline]]+Dataset[[#This Row],[2026/27 Total change]]","v":160}]
["NAT|Non-transfer item","26|Operating leases","2024_25","MTEF2024",26,2,3,44536,649,"26","02","03","044536","000649","26|02|03","01","01","02","33","33","01|01|02|33|33","National","Military Veterans","Socioeconomic Support","Socioeconomic Support Management","Non-transfer item","Current","Current payments","Goods and services","Operating leases","Operating leases","Peace and security","Defence and state security","NAT",0,0,0,0,0,0,0,0,0,0,0,null,null,null,null,null,null,null,null,null,null,null,null,null,null,null,null,null,null,null,null,null,null,null,null,null,null,null,null,null,null,null,null,null,null,{"$f":"Dataset[[#This Row],[2024/25 From - Spending review Topic 1]]+Dataset[[#This Row],[2024/25 From - Spending review Topic 2]]+Dataset[[#This Row],[2024/25 From - Spending review Topic 3]]+Dataset[[#This Row],[2024/25 From - Spending review Topic 4]]+Dataset[[#This Row],[2024/25 From - Other reallocations]]","v":0},{"$f":"Dataset[[#This Row],[2025/26 From - Spending review Topic 1]]+Dataset[[#This Row],[2025/26 From - Spending review Topic 2]]+Dataset[[#This Row],[2025/26 From - Spending review Topic 3]]+Dataset[[#This Row],[2025/26 From - Spending review Topic 4]]+Dataset[[#This Row],[2025/26 From - Other reallocations]]","v":0},{"$f":"Dataset[[#This Row],[2026/27 From - Spending review Topic 1]]+Dataset[[#This Row],[2026/27 From - Spending review Topic 2]]+Dataset[[#This Row],[2026/27 From - Spending review Topic 3]]+Dataset[[#This Row],[2026/27 From - Spending review Topic 4]]+Dataset[[#This Row],[2026/27 From - Other reallocations]]","v":0},{"$f":"Dataset[[#This Row],[2024/25 To - Spending review Topic 1]]+Dataset[[#This Row],[2024/25 To - Spending review Topic 2]]+Dataset[[#This Row],[2024/25 To - Spending review Topic 3]]+Dataset[[#This Row],[2024/25 To - Spending review Topic 4]]+Dataset[[#This Row],[2024/25 To - Other reallocations]]","v":0},{"$f":"Dataset[[#This Row],[2025/26 To - Spending review Topic 1]]+Dataset[[#This Row],[2025/26 To - Spending review Topic 2]]+Dataset[[#This Row],[2025/26 To - Spending review Topic 3]]+Dataset[[#This Row],[2025/26 To - Spending review Topic 4]]+Dataset[[#This Row],[2025/26 To - Other reallocations]]","v":0},{"$f":"Dataset[[#This Row],[2026/27 To - Spending review Topic 1]]+Dataset[[#This Row],[2026/27 To - Spending review Topic 2]]+Dataset[[#This Row],[2026/27 To - Spending review Topic 3]]+Dataset[[#This Row],[2026/27 To - Spending review Topic 4]]+Dataset[[#This Row],[2026/27 To - Other reallocations]]","v":0},{"$f":"Dataset[[#This Row],[2024/25 Reduction]]+Dataset[[#This Row],[2024/25 From - Total]]","v":0},{"$f":"Dataset[[#This Row],[2025/26 Reduction]]+Dataset[[#This Row],[2025/26 From - Total]]","v":0},{"$f":"Dataset[[#This Row],[2026/27 Reduction]]+Dataset[[#This Row],[2026/27 From - Total]]","v":0},{"$f":"Dataset[[#This Row],[2023/24 Reduction]]","v":0},{"$f":"SUM(Dataset[[#This Row],[2024/25 Reduction]],Dataset[[#This Row],[2024/25 From - Total]],Dataset[[#This Row],[2024/25 To - Total]])","v":0},{"$f":"SUM(Dataset[[#This Row],[2025/26 Reduction]],Dataset[[#This Row],[2025/26 From - Total]],Dataset[[#This Row],[2025/26 To - Total]])","v":0},{"$f":"SUM(Dataset[[#This Row],[2026/27 Reduction]],Dataset[[#This Row],[2026/27 From - Total]],Dataset[[#This Row],[2026/27 To - Total]])","v":0},{"$f":"Dataset[[#This Row],[2023/24 Baseline]]+Dataset[[#This Row],[2023/24 Total change]]","v":0},{"$f":"Dataset[[#This Row],[2024/25 Baseline]]+Dataset[[#This Row],[2024/25 Total change]]","v":0},{"$f":"Dataset[[#This Row],[2025/26 Baseline]]+Dataset[[#This Row],[2025/26 Total change]]","v":0},{"$f":"Dataset[[#This Row],[2026/27 Baseline]]+Dataset[[#This Row],[2026/27 Total change]]","v":0}]
["NAT|Non-transfer item","26|Rental and hiring","2024_25","MTEF2024",26,2,3,44537,650,"26","02","03","044537","000650","26|02|03","01","01","02","34","34","01|01|02|34|34","National","Military Veterans","Socioeconomic Support","Socioeconomic Support Management","Non-transfer item","Current","Current payments","Goods and services","Rental and hiring","Rental and hiring","Peace and security","Defence and state security","NAT",0,0,0,0,0,0,0,0,0,0,0,null,null,null,null,null,null,null,null,null,null,null,null,null,null,null,null,null,null,null,null,null,null,null,null,null,null,null,null,null,null,null,null,null,null,{"$f":"Dataset[[#This Row],[2024/25 From - Spending review Topic 1]]+Dataset[[#This Row],[2024/25 From - Spending review Topic 2]]+Dataset[[#This Row],[2024/25 From - Spending review Topic 3]]+Dataset[[#This Row],[2024/25 From - Spending review Topic 4]]+Dataset[[#This Row],[2024/25 From - Other reallocations]]","v":0},{"$f":"Dataset[[#This Row],[2025/26 From - Spending review Topic 1]]+Dataset[[#This Row],[2025/26 From - Spending review Topic 2]]+Dataset[[#This Row],[2025/26 From - Spending review Topic 3]]+Dataset[[#This Row],[2025/26 From - Spending review Topic 4]]+Dataset[[#This Row],[2025/26 From - Other reallocations]]","v":0},{"$f":"Dataset[[#This Row],[2026/27 From - Spending review Topic 1]]+Dataset[[#This Row],[2026/27 From - Spending review Topic 2]]+Dataset[[#This Row],[2026/27 From - Spending review Topic 3]]+Dataset[[#This Row],[2026/27 From - Spending review Topic 4]]+Dataset[[#This Row],[2026/27 From - Other reallocations]]","v":0},{"$f":"Dataset[[#This Row],[2024/25 To - Spending review Topic 1]]+Dataset[[#This Row],[2024/25 To - Spending review Topic 2]]+Dataset[[#This Row],[2024/25 To - Spending review Topic 3]]+Dataset[[#This Row],[2024/25 To - Spending review Topic 4]]+Dataset[[#This Row],[2024/25 To - Other reallocations]]","v":0},{"$f":"Dataset[[#This Row],[2025/26 To - Spending review Topic 1]]+Dataset[[#This Row],[2025/26 To - Spending review Topic 2]]+Dataset[[#This Row],[2025/26 To - Spending review Topic 3]]+Dataset[[#This Row],[2025/26 To - Spending review Topic 4]]+Dataset[[#This Row],[2025/26 To - Other reallocations]]","v":0},{"$f":"Dataset[[#This Row],[2026/27 To - Spending review Topic 1]]+Dataset[[#This Row],[2026/27 To - Spending review Topic 2]]+Dataset[[#This Row],[2026/27 To - Spending review Topic 3]]+Dataset[[#This Row],[2026/27 To - Spending review Topic 4]]+Dataset[[#This Row],[2026/27 To - Other reallocations]]","v":0},{"$f":"Dataset[[#This Row],[2024/25 Reduction]]+Dataset[[#This Row],[2024/25 From - Total]]","v":0},{"$f":"Dataset[[#This Row],[2025/26 Reduction]]+Dataset[[#This Row],[2025/26 From - Total]]","v":0},{"$f":"Dataset[[#This Row],[2026/27 Reduction]]+Dataset[[#This Row],[2026/27 From - Total]]","v":0},{"$f":"Dataset[[#This Row],[2023/24 Reduction]]","v":0},{"$f":"SUM(Dataset[[#This Row],[2024/25 Reduction]],Dataset[[#This Row],[2024/25 From - Total]],Dataset[[#This Row],[2024/25 To - Total]])","v":0},{"$f":"SUM(Dataset[[#This Row],[2025/26 Reduction]],Dataset[[#This Row],[2025/26 From - Total]],Dataset[[#This Row],[2025/26 To - Total]])","v":0},{"$f":"SUM(Dataset[[#This Row],[2026/27 Reduction]],Dataset[[#This Row],[2026/27 From - Total]],Dataset[[#This Row],[2026/27 To - Total]])","v":0},{"$f":"Dataset[[#This Row],[2023/24 Baseline]]+Dataset[[#This Row],[2023/24 Total change]]","v":0},{"$f":"Dataset[[#This Row],[2024/25 Baseline]]+Dataset[[#This Row],[2024/25 Total change]]","v":0},{"$f":"Dataset[[#This Row],[2025/26 Baseline]]+Dataset[[#This Row],[2025/26 Total change]]","v":0},{"$f":"Dataset[[#This Row],[2026/27 Baseline]]+Dataset[[#This Row],[2026/27 Total change]]","v":0}]
["NAT|Non-transfer item","26|Property payments","2024_25","MTEF2024",26,2,3,44538,651,"26","02","03","044538","000651","26|02|03","01","01","02","35","35","01|01|02|35|35","National","Military Veterans","Socioeconomic Support","Socioeconomic Support Management","Non-transfer item","Current","Current payments","Goods and services","Property payments","Property payments","Peace and security","Defence and state security","NAT",0,0,0,0,0,0,0,0,0,0,0,null,null,null,null,null,null,null,null,null,null,null,null,null,null,null,null,null,null,null,null,null,null,null,null,null,null,null,null,null,null,null,null,null,null,{"$f":"Dataset[[#This Row],[2024/25 From - Spending review Topic 1]]+Dataset[[#This Row],[2024/25 From - Spending review Topic 2]]+Dataset[[#This Row],[2024/25 From - Spending review Topic 3]]+Dataset[[#This Row],[2024/25 From - Spending review Topic 4]]+Dataset[[#This Row],[2024/25 From - Other reallocations]]","v":0},{"$f":"Dataset[[#This Row],[2025/26 From - Spending review Topic 1]]+Dataset[[#This Row],[2025/26 From - Spending review Topic 2]]+Dataset[[#This Row],[2025/26 From - Spending review Topic 3]]+Dataset[[#This Row],[2025/26 From - Spending review Topic 4]]+Dataset[[#This Row],[2025/26 From - Other reallocations]]","v":0},{"$f":"Dataset[[#This Row],[2026/27 From - Spending review Topic 1]]+Dataset[[#This Row],[2026/27 From - Spending review Topic 2]]+Dataset[[#This Row],[2026/27 From - Spending review Topic 3]]+Dataset[[#This Row],[2026/27 From - Spending review Topic 4]]+Dataset[[#This Row],[2026/27 From - Other reallocations]]","v":0},{"$f":"Dataset[[#This Row],[2024/25 To - Spending review Topic 1]]+Dataset[[#This Row],[2024/25 To - Spending review Topic 2]]+Dataset[[#This Row],[2024/25 To - Spending review Topic 3]]+Dataset[[#This Row],[2024/25 To - Spending review Topic 4]]+Dataset[[#This Row],[2024/25 To - Other reallocations]]","v":0},{"$f":"Dataset[[#This Row],[2025/26 To - Spending review Topic 1]]+Dataset[[#This Row],[2025/26 To - Spending review Topic 2]]+Dataset[[#This Row],[2025/26 To - Spending review Topic 3]]+Dataset[[#This Row],[2025/26 To - Spending review Topic 4]]+Dataset[[#This Row],[2025/26 To - Other reallocations]]","v":0},{"$f":"Dataset[[#This Row],[2026/27 To - Spending review Topic 1]]+Dataset[[#This Row],[2026/27 To - Spending review Topic 2]]+Dataset[[#This Row],[2026/27 To - Spending review Topic 3]]+Dataset[[#This Row],[2026/27 To - Spending review Topic 4]]+Dataset[[#This Row],[2026/27 To - Other reallocations]]","v":0},{"$f":"Dataset[[#This Row],[2024/25 Reduction]]+Dataset[[#This Row],[2024/25 From - Total]]","v":0},{"$f":"Dataset[[#This Row],[2025/26 Reduction]]+Dataset[[#This Row],[2025/26 From - Total]]","v":0},{"$f":"Dataset[[#This Row],[2026/27 Reduction]]+Dataset[[#This Row],[2026/27 From - Total]]","v":0},{"$f":"Dataset[[#This Row],[2023/24 Reduction]]","v":0},{"$f":"SUM(Dataset[[#This Row],[2024/25 Reduction]],Dataset[[#This Row],[2024/25 From - Total]],Dataset[[#This Row],[2024/25 To - Total]])","v":0},{"$f":"SUM(Dataset[[#This Row],[2025/26 Reduction]],Dataset[[#This Row],[2025/26 From - Total]],Dataset[[#This Row],[2025/26 To - Total]])","v":0},{"$f":"SUM(Dataset[[#This Row],[2026/27 Reduction]],Dataset[[#This Row],[2026/27 From - Total]],Dataset[[#This Row],[2026/27 To - Total]])","v":0},{"$f":"Dataset[[#This Row],[2023/24 Baseline]]+Dataset[[#This Row],[2023/24 Total change]]","v":0},{"$f":"Dataset[[#This Row],[2024/25 Baseline]]+Dataset[[#This Row],[2024/25 Total change]]","v":0},{"$f":"Dataset[[#This Row],[2025/26 Baseline]]+Dataset[[#This Row],[2025/26 Total change]]","v":0},{"$f":"Dataset[[#This Row],[2026/27 Baseline]]+Dataset[[#This Row],[2026/27 Total change]]","v":0}]
["NAT|Non-transfer item","26|Transport provided: Departmental activity","2024_25","MTEF2024",26,2,3,44539,652,"26","02","03","044539","000652","26|02|03","01","01","02","36","36","01|01|02|36|36","National","Military Veterans","Socioeconomic Support","Socioeconomic Support Management","Non-transfer item","Current","Current payments","Goods and services","Transport provided: Departmental activity","Transport provided: Departmental activity","Peace and security","Defence and state security","NAT",0,0,0,0,0,0,0,0,0,0,0,null,null,null,null,null,null,null,null,null,null,null,null,null,null,null,null,null,null,null,null,null,null,null,null,null,null,null,null,null,null,null,null,null,null,{"$f":"Dataset[[#This Row],[2024/25 From - Spending review Topic 1]]+Dataset[[#This Row],[2024/25 From - Spending review Topic 2]]+Dataset[[#This Row],[2024/25 From - Spending review Topic 3]]+Dataset[[#This Row],[2024/25 From - Spending review Topic 4]]+Dataset[[#This Row],[2024/25 From - Other reallocations]]","v":0},{"$f":"Dataset[[#This Row],[2025/26 From - Spending review Topic 1]]+Dataset[[#This Row],[2025/26 From - Spending review Topic 2]]+Dataset[[#This Row],[2025/26 From - Spending review Topic 3]]+Dataset[[#This Row],[2025/26 From - Spending review Topic 4]]+Dataset[[#This Row],[2025/26 From - Other reallocations]]","v":0},{"$f":"Dataset[[#This Row],[2026/27 From - Spending review Topic 1]]+Dataset[[#This Row],[2026/27 From - Spending review Topic 2]]+Dataset[[#This Row],[2026/27 From - Spending review Topic 3]]+Dataset[[#This Row],[2026/27 From - Spending review Topic 4]]+Dataset[[#This Row],[2026/27 From - Other reallocations]]","v":0},{"$f":"Dataset[[#This Row],[2024/25 To - Spending review Topic 1]]+Dataset[[#This Row],[2024/25 To - Spending review Topic 2]]+Dataset[[#This Row],[2024/25 To - Spending review Topic 3]]+Dataset[[#This Row],[2024/25 To - Spending review Topic 4]]+Dataset[[#This Row],[2024/25 To - Other reallocations]]","v":0},{"$f":"Dataset[[#This Row],[2025/26 To - Spending review Topic 1]]+Dataset[[#This Row],[2025/26 To - Spending review Topic 2]]+Dataset[[#This Row],[2025/26 To - Spending review Topic 3]]+Dataset[[#This Row],[2025/26 To - Spending review Topic 4]]+Dataset[[#This Row],[2025/26 To - Other reallocations]]","v":0},{"$f":"Dataset[[#This Row],[2026/27 To - Spending review Topic 1]]+Dataset[[#This Row],[2026/27 To - Spending review Topic 2]]+Dataset[[#This Row],[2026/27 To - Spending review Topic 3]]+Dataset[[#This Row],[2026/27 To - Spending review Topic 4]]+Dataset[[#This Row],[2026/27 To - Other reallocations]]","v":0},{"$f":"Dataset[[#This Row],[2024/25 Reduction]]+Dataset[[#This Row],[2024/25 From - Total]]","v":0},{"$f":"Dataset[[#This Row],[2025/26 Reduction]]+Dataset[[#This Row],[2025/26 From - Total]]","v":0},{"$f":"Dataset[[#This Row],[2026/27 Reduction]]+Dataset[[#This Row],[2026/27 From - Total]]","v":0},{"$f":"Dataset[[#This Row],[2023/24 Reduction]]","v":0},{"$f":"SUM(Dataset[[#This Row],[2024/25 Reduction]],Dataset[[#This Row],[2024/25 From - Total]],Dataset[[#This Row],[2024/25 To - Total]])","v":0},{"$f":"SUM(Dataset[[#This Row],[2025/26 Reduction]],Dataset[[#This Row],[2025/26 From - Total]],Dataset[[#This Row],[2025/26 To - Total]])","v":0},{"$f":"SUM(Dataset[[#This Row],[2026/27 Reduction]],Dataset[[#This Row],[2026/27 From - Total]],Dataset[[#This Row],[2026/27 To - Total]])","v":0},{"$f":"Dataset[[#This Row],[2023/24 Baseline]]+Dataset[[#This Row],[2023/24 Total change]]","v":0},{"$f":"Dataset[[#This Row],[2024/25 Baseline]]+Dataset[[#This Row],[2024/25 Total change]]","v":0},{"$f":"Dataset[[#This Row],[2025/26 Baseline]]+Dataset[[#This Row],[2025/26 Total change]]","v":0},{"$f":"Dataset[[#This Row],[2026/27 Baseline]]+Dataset[[#This Row],[2026/27 Total change]]","v":0}]
["NAT|Non-transfer item","26|Travel and subsistence","2024_25","MTEF2024",26,2,3,44540,653,"26","02","03","044540","000653","26|02|03","01","01","02","37","37","01|01|02|37|37","National","Military Veterans","Socioeconomic Support","Socioeconomic Support Management","Non-transfer item","Current","Current payments","Goods and services","Travel and subsistence","Travel and subsistence","Peace and security","Defence and state security","NAT",1168,214,2035,2045,1637,1637,0,2092,2201,2300,2405,null,null,null,null,null,null,null,null,null,null,null,null,null,null,null,null,null,null,null,null,null,null,null,null,null,null,null,null,null,null,null,null,null,null,{"$f":"Dataset[[#This Row],[2024/25 From - Spending review Topic 1]]+Dataset[[#This Row],[2024/25 From - Spending review Topic 2]]+Dataset[[#This Row],[2024/25 From - Spending review Topic 3]]+Dataset[[#This Row],[2024/25 From - Spending review Topic 4]]+Dataset[[#This Row],[2024/25 From - Other reallocations]]","v":0},{"$f":"Dataset[[#This Row],[2025/26 From - Spending review Topic 1]]+Dataset[[#This Row],[2025/26 From - Spending review Topic 2]]+Dataset[[#This Row],[2025/26 From - Spending review Topic 3]]+Dataset[[#This Row],[2025/26 From - Spending review Topic 4]]+Dataset[[#This Row],[2025/26 From - Other reallocations]]","v":0},{"$f":"Dataset[[#This Row],[2026/27 From - Spending review Topic 1]]+Dataset[[#This Row],[2026/27 From - Spending review Topic 2]]+Dataset[[#This Row],[2026/27 From - Spending review Topic 3]]+Dataset[[#This Row],[2026/27 From - Spending review Topic 4]]+Dataset[[#This Row],[2026/27 From - Other reallocations]]","v":0},{"$f":"Dataset[[#This Row],[2024/25 To - Spending review Topic 1]]+Dataset[[#This Row],[2024/25 To - Spending review Topic 2]]+Dataset[[#This Row],[2024/25 To - Spending review Topic 3]]+Dataset[[#This Row],[2024/25 To - Spending review Topic 4]]+Dataset[[#This Row],[2024/25 To - Other reallocations]]","v":0},{"$f":"Dataset[[#This Row],[2025/26 To - Spending review Topic 1]]+Dataset[[#This Row],[2025/26 To - Spending review Topic 2]]+Dataset[[#This Row],[2025/26 To - Spending review Topic 3]]+Dataset[[#This Row],[2025/26 To - Spending review Topic 4]]+Dataset[[#This Row],[2025/26 To - Other reallocations]]","v":0},{"$f":"Dataset[[#This Row],[2026/27 To - Spending review Topic 1]]+Dataset[[#This Row],[2026/27 To - Spending review Topic 2]]+Dataset[[#This Row],[2026/27 To - Spending review Topic 3]]+Dataset[[#This Row],[2026/27 To - Spending review Topic 4]]+Dataset[[#This Row],[2026/27 To - Other reallocations]]","v":0},{"$f":"Dataset[[#This Row],[2024/25 Reduction]]+Dataset[[#This Row],[2024/25 From - Total]]","v":0},{"$f":"Dataset[[#This Row],[2025/26 Reduction]]+Dataset[[#This Row],[2025/26 From - Total]]","v":0},{"$f":"Dataset[[#This Row],[2026/27 Reduction]]+Dataset[[#This Row],[2026/27 From - Total]]","v":0},{"$f":"Dataset[[#This Row],[2023/24 Reduction]]","v":0},{"$f":"SUM(Dataset[[#This Row],[2024/25 Reduction]],Dataset[[#This Row],[2024/25 From - Total]],Dataset[[#This Row],[2024/25 To - Total]])","v":0},{"$f":"SUM(Dataset[[#This Row],[2025/26 Reduction]],Dataset[[#This Row],[2025/26 From - Total]],Dataset[[#This Row],[2025/26 To - Total]])","v":0},{"$f":"SUM(Dataset[[#This Row],[2026/27 Reduction]],Dataset[[#This Row],[2026/27 From - Total]],Dataset[[#This Row],[2026/27 To - Total]])","v":0},{"$f":"Dataset[[#This Row],[2023/24 Baseline]]+Dataset[[#This Row],[2023/24 Total change]]","v":2092},{"$f":"Dataset[[#This Row],[2024/25 Baseline]]+Dataset[[#This Row],[2024/25 Total change]]","v":2201},{"$f":"Dataset[[#This Row],[2025/26 Baseline]]+Dataset[[#This Row],[2025/26 Total change]]","v":2300},{"$f":"Dataset[[#This Row],[2026/27 Baseline]]+Dataset[[#This Row],[2026/27 Total change]]","v":2405}]
["NAT|Non-transfer item","26|Training and development","2024_25","MTEF2024",26,2,3,44541,654,"26","02","03","044541","000654","26|02|03","01","01","02","38","38","01|01|02|38|38","National","Military Veterans","Socioeconomic Support","Socioeconomic Support Management","Non-transfer item","Current","Current payments","Goods and services","Training and development","Training and development","Peace and security","Defence and state security","NAT",0,0,0,0,0,0,0,0,0,0,0,null,null,null,null,null,null,null,null,null,null,null,null,null,null,null,null,null,null,null,null,null,null,null,null,null,null,null,null,null,null,null,null,null,null,{"$f":"Dataset[[#This Row],[2024/25 From - Spending review Topic 1]]+Dataset[[#This Row],[2024/25 From - Spending review Topic 2]]+Dataset[[#This Row],[2024/25 From - Spending review Topic 3]]+Dataset[[#This Row],[2024/25 From - Spending review Topic 4]]+Dataset[[#This Row],[2024/25 From - Other reallocations]]","v":0},{"$f":"Dataset[[#This Row],[2025/26 From - Spending review Topic 1]]+Dataset[[#This Row],[2025/26 From - Spending review Topic 2]]+Dataset[[#This Row],[2025/26 From - Spending review Topic 3]]+Dataset[[#This Row],[2025/26 From - Spending review Topic 4]]+Dataset[[#This Row],[2025/26 From - Other reallocations]]","v":0},{"$f":"Dataset[[#This Row],[2026/27 From - Spending review Topic 1]]+Dataset[[#This Row],[2026/27 From - Spending review Topic 2]]+Dataset[[#This Row],[2026/27 From - Spending review Topic 3]]+Dataset[[#This Row],[2026/27 From - Spending review Topic 4]]+Dataset[[#This Row],[2026/27 From - Other reallocations]]","v":0},{"$f":"Dataset[[#This Row],[2024/25 To - Spending review Topic 1]]+Dataset[[#This Row],[2024/25 To - Spending review Topic 2]]+Dataset[[#This Row],[2024/25 To - Spending review Topic 3]]+Dataset[[#This Row],[2024/25 To - Spending review Topic 4]]+Dataset[[#This Row],[2024/25 To - Other reallocations]]","v":0},{"$f":"Dataset[[#This Row],[2025/26 To - Spending review Topic 1]]+Dataset[[#This Row],[2025/26 To - Spending review Topic 2]]+Dataset[[#This Row],[2025/26 To - Spending review Topic 3]]+Dataset[[#This Row],[2025/26 To - Spending review Topic 4]]+Dataset[[#This Row],[2025/26 To - Other reallocations]]","v":0},{"$f":"Dataset[[#This Row],[2026/27 To - Spending review Topic 1]]+Dataset[[#This Row],[2026/27 To - Spending review Topic 2]]+Dataset[[#This Row],[2026/27 To - Spending review Topic 3]]+Dataset[[#This Row],[2026/27 To - Spending review Topic 4]]+Dataset[[#This Row],[2026/27 To - Other reallocations]]","v":0},{"$f":"Dataset[[#This Row],[2024/25 Reduction]]+Dataset[[#This Row],[2024/25 From - Total]]","v":0},{"$f":"Dataset[[#This Row],[2025/26 Reduction]]+Dataset[[#This Row],[2025/26 From - Total]]","v":0},{"$f":"Dataset[[#This Row],[2026/27 Reduction]]+Dataset[[#This Row],[2026/27 From - Total]]","v":0},{"$f":"Dataset[[#This Row],[2023/24 Reduction]]","v":0},{"$f":"SUM(Dataset[[#This Row],[2024/25 Reduction]],Dataset[[#This Row],[2024/25 From - Total]],Dataset[[#This Row],[2024/25 To - Total]])","v":0},{"$f":"SUM(Dataset[[#This Row],[2025/26 Reduction]],Dataset[[#This Row],[2025/26 From - Total]],Dataset[[#This Row],[2025/26 To - Total]])","v":0},{"$f":"SUM(Dataset[[#This Row],[2026/27 Reduction]],Dataset[[#This Row],[2026/27 From - Total]],Dataset[[#This Row],[2026/27 To - Total]])","v":0},{"$f":"Dataset[[#This Row],[2023/24 Baseline]]+Dataset[[#This Row],[2023/24 Total change]]","v":0},{"$f":"Dataset[[#This Row],[2024/25 Baseline]]+Dataset[[#This Row],[2024/25 Total change]]","v":0},{"$f":"Dataset[[#This Row],[2025/26 Baseline]]+Dataset[[#This Row],[2025/26 Total change]]","v":0},{"$f":"Dataset[[#This Row],[2026/27 Baseline]]+Dataset[[#This Row],[2026/27 Total change]]","v":0}]
["NAT|Non-transfer item","26|Operating payments","2024_25","MTEF2024",26,2,3,44542,655,"26","02","03","044542","000655","26|02|03","01","01","02","39","39","01|01|02|39|39","National","Military Veterans","Socioeconomic Support","Socioeconomic Support Management","Non-transfer item","Current","Current payments","Goods and services","Operating payments","Operating payments","Peace and security","Defence and state security","NAT",0,0,0,0,0,0,0,0,0,0,0,null,null,null,null,null,null,null,null,null,null,null,null,null,null,null,null,null,null,null,null,null,null,null,null,null,null,null,null,null,null,null,null,null,null,{"$f":"Dataset[[#This Row],[2024/25 From - Spending review Topic 1]]+Dataset[[#This Row],[2024/25 From - Spending review Topic 2]]+Dataset[[#This Row],[2024/25 From - Spending review Topic 3]]+Dataset[[#This Row],[2024/25 From - Spending review Topic 4]]+Dataset[[#This Row],[2024/25 From - Other reallocations]]","v":0},{"$f":"Dataset[[#This Row],[2025/26 From - Spending review Topic 1]]+Dataset[[#This Row],[2025/26 From - Spending review Topic 2]]+Dataset[[#This Row],[2025/26 From - Spending review Topic 3]]+Dataset[[#This Row],[2025/26 From - Spending review Topic 4]]+Dataset[[#This Row],[2025/26 From - Other reallocations]]","v":0},{"$f":"Dataset[[#This Row],[2026/27 From - Spending review Topic 1]]+Dataset[[#This Row],[2026/27 From - Spending review Topic 2]]+Dataset[[#This Row],[2026/27 From - Spending review Topic 3]]+Dataset[[#This Row],[2026/27 From - Spending review Topic 4]]+Dataset[[#This Row],[2026/27 From - Other reallocations]]","v":0},{"$f":"Dataset[[#This Row],[2024/25 To - Spending review Topic 1]]+Dataset[[#This Row],[2024/25 To - Spending review Topic 2]]+Dataset[[#This Row],[2024/25 To - Spending review Topic 3]]+Dataset[[#This Row],[2024/25 To - Spending review Topic 4]]+Dataset[[#This Row],[2024/25 To - Other reallocations]]","v":0},{"$f":"Dataset[[#This Row],[2025/26 To - Spending review Topic 1]]+Dataset[[#This Row],[2025/26 To - Spending review Topic 2]]+Dataset[[#This Row],[2025/26 To - Spending review Topic 3]]+Dataset[[#This Row],[2025/26 To - Spending review Topic 4]]+Dataset[[#This Row],[2025/26 To - Other reallocations]]","v":0},{"$f":"Dataset[[#This Row],[2026/27 To - Spending review Topic 1]]+Dataset[[#This Row],[2026/27 To - Spending review Topic 2]]+Dataset[[#This Row],[2026/27 To - Spending review Topic 3]]+Dataset[[#This Row],[2026/27 To - Spending review Topic 4]]+Dataset[[#This Row],[2026/27 To - Other reallocations]]","v":0},{"$f":"Dataset[[#This Row],[2024/25 Reduction]]+Dataset[[#This Row],[2024/25 From - Total]]","v":0},{"$f":"Dataset[[#This Row],[2025/26 Reduction]]+Dataset[[#This Row],[2025/26 From - Total]]","v":0},{"$f":"Dataset[[#This Row],[2026/27 Reduction]]+Dataset[[#This Row],[2026/27 From - Total]]","v":0},{"$f":"Dataset[[#This Row],[2023/24 Reduction]]","v":0},{"$f":"SUM(Dataset[[#This Row],[2024/25 Reduction]],Dataset[[#This Row],[2024/25 From - Total]],Dataset[[#This Row],[2024/25 To - Total]])","v":0},{"$f":"SUM(Dataset[[#This Row],[2025/26 Reduction]],Dataset[[#This Row],[2025/26 From - Total]],Dataset[[#This Row],[2025/26 To - Total]])","v":0},{"$f":"SUM(Dataset[[#This Row],[2026/27 Reduction]],Dataset[[#This Row],[2026/27 From - Total]],Dataset[[#This Row],[2026/27 To - Total]])","v":0},{"$f":"Dataset[[#This Row],[2023/24 Baseline]]+Dataset[[#This Row],[2023/24 Total change]]","v":0},{"$f":"Dataset[[#This Row],[2024/25 Baseline]]+Dataset[[#This Row],[2024/25 Total change]]","v":0},{"$f":"Dataset[[#This Row],[2025/26 Baseline]]+Dataset[[#This Row],[2025/26 Total change]]","v":0},{"$f":"Dataset[[#This Row],[2026/27 Baseline]]+Dataset[[#This Row],[2026/27 Total change]]","v":0}]
["NAT|Non-transfer item","26|Venues and facilities","2024_25","MTEF2024",26,2,3,44543,656,"26","02","03","044543","000656","26|02|03","01","01","02","40","40","01|01|02|40|40","National","Military Veterans","Socioeconomic Support","Socioeconomic Support Management","Non-transfer item","Current","Current payments","Goods and services","Venues and facilities","Venues and facilities","Peace and security","Defence and state security","NAT",9,0,6,215,0,0,0,220,232,242,253,null,null,null,null,null,null,null,null,null,null,null,null,null,null,null,null,null,null,null,null,null,null,null,null,null,null,null,null,null,null,null,null,null,null,{"$f":"Dataset[[#This Row],[2024/25 From - Spending review Topic 1]]+Dataset[[#This Row],[2024/25 From - Spending review Topic 2]]+Dataset[[#This Row],[2024/25 From - Spending review Topic 3]]+Dataset[[#This Row],[2024/25 From - Spending review Topic 4]]+Dataset[[#This Row],[2024/25 From - Other reallocations]]","v":0},{"$f":"Dataset[[#This Row],[2025/26 From - Spending review Topic 1]]+Dataset[[#This Row],[2025/26 From - Spending review Topic 2]]+Dataset[[#This Row],[2025/26 From - Spending review Topic 3]]+Dataset[[#This Row],[2025/26 From - Spending review Topic 4]]+Dataset[[#This Row],[2025/26 From - Other reallocations]]","v":0},{"$f":"Dataset[[#This Row],[2026/27 From - Spending review Topic 1]]+Dataset[[#This Row],[2026/27 From - Spending review Topic 2]]+Dataset[[#This Row],[2026/27 From - Spending review Topic 3]]+Dataset[[#This Row],[2026/27 From - Spending review Topic 4]]+Dataset[[#This Row],[2026/27 From - Other reallocations]]","v":0},{"$f":"Dataset[[#This Row],[2024/25 To - Spending review Topic 1]]+Dataset[[#This Row],[2024/25 To - Spending review Topic 2]]+Dataset[[#This Row],[2024/25 To - Spending review Topic 3]]+Dataset[[#This Row],[2024/25 To - Spending review Topic 4]]+Dataset[[#This Row],[2024/25 To - Other reallocations]]","v":0},{"$f":"Dataset[[#This Row],[2025/26 To - Spending review Topic 1]]+Dataset[[#This Row],[2025/26 To - Spending review Topic 2]]+Dataset[[#This Row],[2025/26 To - Spending review Topic 3]]+Dataset[[#This Row],[2025/26 To - Spending review Topic 4]]+Dataset[[#This Row],[2025/26 To - Other reallocations]]","v":0},{"$f":"Dataset[[#This Row],[2026/27 To - Spending review Topic 1]]+Dataset[[#This Row],[2026/27 To - Spending review Topic 2]]+Dataset[[#This Row],[2026/27 To - Spending review Topic 3]]+Dataset[[#This Row],[2026/27 To - Spending review Topic 4]]+Dataset[[#This Row],[2026/27 To - Other reallocations]]","v":0},{"$f":"Dataset[[#This Row],[2024/25 Reduction]]+Dataset[[#This Row],[2024/25 From - Total]]","v":0},{"$f":"Dataset[[#This Row],[2025/26 Reduction]]+Dataset[[#This Row],[2025/26 From - Total]]","v":0},{"$f":"Dataset[[#This Row],[2026/27 Reduction]]+Dataset[[#This Row],[2026/27 From - Total]]","v":0},{"$f":"Dataset[[#This Row],[2023/24 Reduction]]","v":0},{"$f":"SUM(Dataset[[#This Row],[2024/25 Reduction]],Dataset[[#This Row],[2024/25 From - Total]],Dataset[[#This Row],[2024/25 To - Total]])","v":0},{"$f":"SUM(Dataset[[#This Row],[2025/26 Reduction]],Dataset[[#This Row],[2025/26 From - Total]],Dataset[[#This Row],[2025/26 To - Total]])","v":0},{"$f":"SUM(Dataset[[#This Row],[2026/27 Reduction]],Dataset[[#This Row],[2026/27 From - Total]],Dataset[[#This Row],[2026/27 To - Total]])","v":0},{"$f":"Dataset[[#This Row],[2023/24 Baseline]]+Dataset[[#This Row],[2023/24 Total change]]","v":220},{"$f":"Dataset[[#This Row],[2024/25 Baseline]]+Dataset[[#This Row],[2024/25 Total change]]","v":232},{"$f":"Dataset[[#This Row],[2025/26 Baseline]]+Dataset[[#This Row],[2025/26 Total change]]","v":242},{"$f":"Dataset[[#This Row],[2026/27 Baseline]]+Dataset[[#This Row],[2026/27 Total change]]","v":253}]
["NAT|Non-transfer item","26|Interest (Incl. interest on unitary payments (PPP))","2024_25","MTEF2024",26,2,3,44544,657,"26","02","03","044544","000657","26|02|03","01","01","03","41","41","01|01|03|41|41","National","Military Veterans","Socioeconomic Support","Socioeconomic Support Management","Non-transfer item","Current","Current payments","Interest and rent on land","Interest (Incl. interest on unitary payments (PPP))","Interest (Incl. interest on unitary payments (PPP))","Peace and security","Defence and state security","NAT",0,0,0,0,0,0,0,0,0,0,0,null,null,null,null,null,null,null,null,null,null,null,null,null,null,null,null,null,null,null,null,null,null,null,null,null,null,null,null,null,null,null,null,null,null,{"$f":"Dataset[[#This Row],[2024/25 From - Spending review Topic 1]]+Dataset[[#This Row],[2024/25 From - Spending review Topic 2]]+Dataset[[#This Row],[2024/25 From - Spending review Topic 3]]+Dataset[[#This Row],[2024/25 From - Spending review Topic 4]]+Dataset[[#This Row],[2024/25 From - Other reallocations]]","v":0},{"$f":"Dataset[[#This Row],[2025/26 From - Spending review Topic 1]]+Dataset[[#This Row],[2025/26 From - Spending review Topic 2]]+Dataset[[#This Row],[2025/26 From - Spending review Topic 3]]+Dataset[[#This Row],[2025/26 From - Spending review Topic 4]]+Dataset[[#This Row],[2025/26 From - Other reallocations]]","v":0},{"$f":"Dataset[[#This Row],[2026/27 From - Spending review Topic 1]]+Dataset[[#This Row],[2026/27 From - Spending review Topic 2]]+Dataset[[#This Row],[2026/27 From - Spending review Topic 3]]+Dataset[[#This Row],[2026/27 From - Spending review Topic 4]]+Dataset[[#This Row],[2026/27 From - Other reallocations]]","v":0},{"$f":"Dataset[[#This Row],[2024/25 To - Spending review Topic 1]]+Dataset[[#This Row],[2024/25 To - Spending review Topic 2]]+Dataset[[#This Row],[2024/25 To - Spending review Topic 3]]+Dataset[[#This Row],[2024/25 To - Spending review Topic 4]]+Dataset[[#This Row],[2024/25 To - Other reallocations]]","v":0},{"$f":"Dataset[[#This Row],[2025/26 To - Spending review Topic 1]]+Dataset[[#This Row],[2025/26 To - Spending review Topic 2]]+Dataset[[#This Row],[2025/26 To - Spending review Topic 3]]+Dataset[[#This Row],[2025/26 To - Spending review Topic 4]]+Dataset[[#This Row],[2025/26 To - Other reallocations]]","v":0},{"$f":"Dataset[[#This Row],[2026/27 To - Spending review Topic 1]]+Dataset[[#This Row],[2026/27 To - Spending review Topic 2]]+Dataset[[#This Row],[2026/27 To - Spending review Topic 3]]+Dataset[[#This Row],[2026/27 To - Spending review Topic 4]]+Dataset[[#This Row],[2026/27 To - Other reallocations]]","v":0},{"$f":"Dataset[[#This Row],[2024/25 Reduction]]+Dataset[[#This Row],[2024/25 From - Total]]","v":0},{"$f":"Dataset[[#This Row],[2025/26 Reduction]]+Dataset[[#This Row],[2025/26 From - Total]]","v":0},{"$f":"Dataset[[#This Row],[2026/27 Reduction]]+Dataset[[#This Row],[2026/27 From - Total]]","v":0},{"$f":"Dataset[[#This Row],[2023/24 Reduction]]","v":0},{"$f":"SUM(Dataset[[#This Row],[2024/25 Reduction]],Dataset[[#This Row],[2024/25 From - Total]],Dataset[[#This Row],[2024/25 To - Total]])","v":0},{"$f":"SUM(Dataset[[#This Row],[2025/26 Reduction]],Dataset[[#This Row],[2025/26 From - Total]],Dataset[[#This Row],[2025/26 To - Total]])","v":0},{"$f":"SUM(Dataset[[#This Row],[2026/27 Reduction]],Dataset[[#This Row],[2026/27 From - Total]],Dataset[[#This Row],[2026/27 To - Total]])","v":0},{"$f":"Dataset[[#This Row],[2023/24 Baseline]]+Dataset[[#This Row],[2023/24 Total change]]","v":0},{"$f":"Dataset[[#This Row],[2024/25 Baseline]]+Dataset[[#This Row],[2024/25 Total change]]","v":0},{"$f":"Dataset[[#This Row],[2025/26 Baseline]]+Dataset[[#This Row],[2025/26 Total change]]","v":0},{"$f":"Dataset[[#This Row],[2026/27 Baseline]]+Dataset[[#This Row],[2026/27 Total change]]","v":0}]
["NAT|Non-transfer item","26|Rent on land","2024_25","MTEF2024",26,2,3,44545,658,"26","02","03","044545","000658","26|02|03","01","01","03","42","42","01|01|03|42|42","National","Military Veterans","Socioeconomic Support","Socioeconomic Support Management","Non-transfer item","Current","Current payments","Interest and rent on land","Rent on land","Rent on land","Peace and security","Defence and state security","NAT",0,0,0,0,0,0,0,0,0,0,0,null,null,null,null,null,null,null,null,null,null,null,null,null,null,null,null,null,null,null,null,null,null,null,null,null,null,null,null,null,null,null,null,null,null,{"$f":"Dataset[[#This Row],[2024/25 From - Spending review Topic 1]]+Dataset[[#This Row],[2024/25 From - Spending review Topic 2]]+Dataset[[#This Row],[2024/25 From - Spending review Topic 3]]+Dataset[[#This Row],[2024/25 From - Spending review Topic 4]]+Dataset[[#This Row],[2024/25 From - Other reallocations]]","v":0},{"$f":"Dataset[[#This Row],[2025/26 From - Spending review Topic 1]]+Dataset[[#This Row],[2025/26 From - Spending review Topic 2]]+Dataset[[#This Row],[2025/26 From - Spending review Topic 3]]+Dataset[[#This Row],[2025/26 From - Spending review Topic 4]]+Dataset[[#This Row],[2025/26 From - Other reallocations]]","v":0},{"$f":"Dataset[[#This Row],[2026/27 From - Spending review Topic 1]]+Dataset[[#This Row],[2026/27 From - Spending review Topic 2]]+Dataset[[#This Row],[2026/27 From - Spending review Topic 3]]+Dataset[[#This Row],[2026/27 From - Spending review Topic 4]]+Dataset[[#This Row],[2026/27 From - Other reallocations]]","v":0},{"$f":"Dataset[[#This Row],[2024/25 To - Spending review Topic 1]]+Dataset[[#This Row],[2024/25 To - Spending review Topic 2]]+Dataset[[#This Row],[2024/25 To - Spending review Topic 3]]+Dataset[[#This Row],[2024/25 To - Spending review Topic 4]]+Dataset[[#This Row],[2024/25 To - Other reallocations]]","v":0},{"$f":"Dataset[[#This Row],[2025/26 To - Spending review Topic 1]]+Dataset[[#This Row],[2025/26 To - Spending review Topic 2]]+Dataset[[#This Row],[2025/26 To - Spending review Topic 3]]+Dataset[[#This Row],[2025/26 To - Spending review Topic 4]]+Dataset[[#This Row],[2025/26 To - Other reallocations]]","v":0},{"$f":"Dataset[[#This Row],[2026/27 To - Spending review Topic 1]]+Dataset[[#This Row],[2026/27 To - Spending review Topic 2]]+Dataset[[#This Row],[2026/27 To - Spending review Topic 3]]+Dataset[[#This Row],[2026/27 To - Spending review Topic 4]]+Dataset[[#This Row],[2026/27 To - Other reallocations]]","v":0},{"$f":"Dataset[[#This Row],[2024/25 Reduction]]+Dataset[[#This Row],[2024/25 From - Total]]","v":0},{"$f":"Dataset[[#This Row],[2025/26 Reduction]]+Dataset[[#This Row],[2025/26 From - Total]]","v":0},{"$f":"Dataset[[#This Row],[2026/27 Reduction]]+Dataset[[#This Row],[2026/27 From - Total]]","v":0},{"$f":"Dataset[[#This Row],[2023/24 Reduction]]","v":0},{"$f":"SUM(Dataset[[#This Row],[2024/25 Reduction]],Dataset[[#This Row],[2024/25 From - Total]],Dataset[[#This Row],[2024/25 To - Total]])","v":0},{"$f":"SUM(Dataset[[#This Row],[2025/26 Reduction]],Dataset[[#This Row],[2025/26 From - Total]],Dataset[[#This Row],[2025/26 To - Total]])","v":0},{"$f":"SUM(Dataset[[#This Row],[2026/27 Reduction]],Dataset[[#This Row],[2026/27 From - Total]],Dataset[[#This Row],[2026/27 To - Total]])","v":0},{"$f":"Dataset[[#This Row],[2023/24 Baseline]]+Dataset[[#This Row],[2023/24 Total change]]","v":0},{"$f":"Dataset[[#This Row],[2024/25 Baseline]]+Dataset[[#This Row],[2024/25 Total change]]","v":0},{"$f":"Dataset[[#This Row],[2025/26 Baseline]]+Dataset[[#This Row],[2025/26 Total change]]","v":0},{"$f":"Dataset[[#This Row],[2026/27 Baseline]]+Dataset[[#This Row],[2026/27 Total change]]","v":0}]
["NAT|Non-transfer item","26|Provincial Revenue Funds","2024_25","MTEF2024",26,2,3,44546,659,"26","02","03","044546","000659","26|02|03","01","02","04","43","43","01|02|04|43|43","National","Military Veterans","Socioeconomic Support","Socioeconomic Support Management","Non-transfer item","Current","Transfers and subsidies","Provinces and municipalities","Provinces","Provincial Revenue Funds","Peace and security","Defence and state security","NAT",0,0,0,0,0,0,0,0,0,0,0,null,null,null,null,null,null,null,null,null,null,null,null,null,null,null,null,null,null,null,null,null,null,null,null,null,null,null,null,null,null,null,null,null,null,{"$f":"Dataset[[#This Row],[2024/25 From - Spending review Topic 1]]+Dataset[[#This Row],[2024/25 From - Spending review Topic 2]]+Dataset[[#This Row],[2024/25 From - Spending review Topic 3]]+Dataset[[#This Row],[2024/25 From - Spending review Topic 4]]+Dataset[[#This Row],[2024/25 From - Other reallocations]]","v":0},{"$f":"Dataset[[#This Row],[2025/26 From - Spending review Topic 1]]+Dataset[[#This Row],[2025/26 From - Spending review Topic 2]]+Dataset[[#This Row],[2025/26 From - Spending review Topic 3]]+Dataset[[#This Row],[2025/26 From - Spending review Topic 4]]+Dataset[[#This Row],[2025/26 From - Other reallocations]]","v":0},{"$f":"Dataset[[#This Row],[2026/27 From - Spending review Topic 1]]+Dataset[[#This Row],[2026/27 From - Spending review Topic 2]]+Dataset[[#This Row],[2026/27 From - Spending review Topic 3]]+Dataset[[#This Row],[2026/27 From - Spending review Topic 4]]+Dataset[[#This Row],[2026/27 From - Other reallocations]]","v":0},{"$f":"Dataset[[#This Row],[2024/25 To - Spending review Topic 1]]+Dataset[[#This Row],[2024/25 To - Spending review Topic 2]]+Dataset[[#This Row],[2024/25 To - Spending review Topic 3]]+Dataset[[#This Row],[2024/25 To - Spending review Topic 4]]+Dataset[[#This Row],[2024/25 To - Other reallocations]]","v":0},{"$f":"Dataset[[#This Row],[2025/26 To - Spending review Topic 1]]+Dataset[[#This Row],[2025/26 To - Spending review Topic 2]]+Dataset[[#This Row],[2025/26 To - Spending review Topic 3]]+Dataset[[#This Row],[2025/26 To - Spending review Topic 4]]+Dataset[[#This Row],[2025/26 To - Other reallocations]]","v":0},{"$f":"Dataset[[#This Row],[2026/27 To - Spending review Topic 1]]+Dataset[[#This Row],[2026/27 To - Spending review Topic 2]]+Dataset[[#This Row],[2026/27 To - Spending review Topic 3]]+Dataset[[#This Row],[2026/27 To - Spending review Topic 4]]+Dataset[[#This Row],[2026/27 To - Other reallocations]]","v":0},{"$f":"Dataset[[#This Row],[2024/25 Reduction]]+Dataset[[#This Row],[2024/25 From - Total]]","v":0},{"$f":"Dataset[[#This Row],[2025/26 Reduction]]+Dataset[[#This Row],[2025/26 From - Total]]","v":0},{"$f":"Dataset[[#This Row],[2026/27 Reduction]]+Dataset[[#This Row],[2026/27 From - Total]]","v":0},{"$f":"Dataset[[#This Row],[2023/24 Reduction]]","v":0},{"$f":"SUM(Dataset[[#This Row],[2024/25 Reduction]],Dataset[[#This Row],[2024/25 From - Total]],Dataset[[#This Row],[2024/25 To - Total]])","v":0},{"$f":"SUM(Dataset[[#This Row],[2025/26 Reduction]],Dataset[[#This Row],[2025/26 From - Total]],Dataset[[#This Row],[2025/26 To - Total]])","v":0},{"$f":"SUM(Dataset[[#This Row],[2026/27 Reduction]],Dataset[[#This Row],[2026/27 From - Total]],Dataset[[#This Row],[2026/27 To - Total]])","v":0},{"$f":"Dataset[[#This Row],[2023/24 Baseline]]+Dataset[[#This Row],[2023/24 Total change]]","v":0},{"$f":"Dataset[[#This Row],[2024/25 Baseline]]+Dataset[[#This Row],[2024/25 Total change]]","v":0},{"$f":"Dataset[[#This Row],[2025/26 Baseline]]+Dataset[[#This Row],[2025/26 Total change]]","v":0},{"$f":"Dataset[[#This Row],[2026/27 Baseline]]+Dataset[[#This Row],[2026/27 Total change]]","v":0}]
["NAT|Non-transfer item","26|Provincial agencies and funds","2024_25","MTEF2024",26,2,3,44547,660,"26","02","03","044547","000660","26|02|03","01","02","04","43","44","01|02|04|43|44","National","Military Veterans","Socioeconomic Support","Socioeconomic Support Management","Non-transfer item","Current","Transfers and subsidies","Provinces and municipalities","Provinces","Provincial agencies and funds","Peace and security","Defence and state security","NAT",0,0,0,0,0,0,0,0,0,0,0,null,null,null,null,null,null,null,null,null,null,null,null,null,null,null,null,null,null,null,null,null,null,null,null,null,null,null,null,null,null,null,null,null,null,{"$f":"Dataset[[#This Row],[2024/25 From - Spending review Topic 1]]+Dataset[[#This Row],[2024/25 From - Spending review Topic 2]]+Dataset[[#This Row],[2024/25 From - Spending review Topic 3]]+Dataset[[#This Row],[2024/25 From - Spending review Topic 4]]+Dataset[[#This Row],[2024/25 From - Other reallocations]]","v":0},{"$f":"Dataset[[#This Row],[2025/26 From - Spending review Topic 1]]+Dataset[[#This Row],[2025/26 From - Spending review Topic 2]]+Dataset[[#This Row],[2025/26 From - Spending review Topic 3]]+Dataset[[#This Row],[2025/26 From - Spending review Topic 4]]+Dataset[[#This Row],[2025/26 From - Other reallocations]]","v":0},{"$f":"Dataset[[#This Row],[2026/27 From - Spending review Topic 1]]+Dataset[[#This Row],[2026/27 From - Spending review Topic 2]]+Dataset[[#This Row],[2026/27 From - Spending review Topic 3]]+Dataset[[#This Row],[2026/27 From - Spending review Topic 4]]+Dataset[[#This Row],[2026/27 From - Other reallocations]]","v":0},{"$f":"Dataset[[#This Row],[2024/25 To - Spending review Topic 1]]+Dataset[[#This Row],[2024/25 To - Spending review Topic 2]]+Dataset[[#This Row],[2024/25 To - Spending review Topic 3]]+Dataset[[#This Row],[2024/25 To - Spending review Topic 4]]+Dataset[[#This Row],[2024/25 To - Other reallocations]]","v":0},{"$f":"Dataset[[#This Row],[2025/26 To - Spending review Topic 1]]+Dataset[[#This Row],[2025/26 To - Spending review Topic 2]]+Dataset[[#This Row],[2025/26 To - Spending review Topic 3]]+Dataset[[#This Row],[2025/26 To - Spending review Topic 4]]+Dataset[[#This Row],[2025/26 To - Other reallocations]]","v":0},{"$f":"Dataset[[#This Row],[2026/27 To - Spending review Topic 1]]+Dataset[[#This Row],[2026/27 To - Spending review Topic 2]]+Dataset[[#This Row],[2026/27 To - Spending review Topic 3]]+Dataset[[#This Row],[2026/27 To - Spending review Topic 4]]+Dataset[[#This Row],[2026/27 To - Other reallocations]]","v":0},{"$f":"Dataset[[#This Row],[2024/25 Reduction]]+Dataset[[#This Row],[2024/25 From - Total]]","v":0},{"$f":"Dataset[[#This Row],[2025/26 Reduction]]+Dataset[[#This Row],[2025/26 From - Total]]","v":0},{"$f":"Dataset[[#This Row],[2026/27 Reduction]]+Dataset[[#This Row],[2026/27 From - Total]]","v":0},{"$f":"Dataset[[#This Row],[2023/24 Reduction]]","v":0},{"$f":"SUM(Dataset[[#This Row],[2024/25 Reduction]],Dataset[[#This Row],[2024/25 From - Total]],Dataset[[#This Row],[2024/25 To - Total]])","v":0},{"$f":"SUM(Dataset[[#This Row],[2025/26 Reduction]],Dataset[[#This Row],[2025/26 From - Total]],Dataset[[#This Row],[2025/26 To - Total]])","v":0},{"$f":"SUM(Dataset[[#This Row],[2026/27 Reduction]],Dataset[[#This Row],[2026/27 From - Total]],Dataset[[#This Row],[2026/27 To - Total]])","v":0},{"$f":"Dataset[[#This Row],[2023/24 Baseline]]+Dataset[[#This Row],[2023/24 Total change]]","v":0},{"$f":"Dataset[[#This Row],[2024/25 Baseline]]+Dataset[[#This Row],[2024/25 Total change]]","v":0},{"$f":"Dataset[[#This Row],[2025/26 Baseline]]+Dataset[[#This Row],[2025/26 Total change]]","v":0},{"$f":"Dataset[[#This Row],[2026/27 Baseline]]+Dataset[[#This Row],[2026/27 Total change]]","v":0}]
["NAT|Non-transfer item","26|Municipal bank accounts","2024_25","MTEF2024",26,2,3,44548,661,"26","02","03","044548","000661","26|02|03","01","02","04","44","45","01|02|04|44|45","National","Military Veterans","Socioeconomic Support","Socioeconomic Support Management","Non-transfer item","Current","Transfers and subsidies","Provinces and municipalities","Municipalities","Municipal bank accounts","Peace and security","Defence and state security","NAT",0,0,0,0,0,0,0,0,0,0,0,null,null,null,null,null,null,null,null,null,null,null,null,null,null,null,null,null,null,null,null,null,null,null,null,null,null,null,null,null,null,null,null,null,null,{"$f":"Dataset[[#This Row],[2024/25 From - Spending review Topic 1]]+Dataset[[#This Row],[2024/25 From - Spending review Topic 2]]+Dataset[[#This Row],[2024/25 From - Spending review Topic 3]]+Dataset[[#This Row],[2024/25 From - Spending review Topic 4]]+Dataset[[#This Row],[2024/25 From - Other reallocations]]","v":0},{"$f":"Dataset[[#This Row],[2025/26 From - Spending review Topic 1]]+Dataset[[#This Row],[2025/26 From - Spending review Topic 2]]+Dataset[[#This Row],[2025/26 From - Spending review Topic 3]]+Dataset[[#This Row],[2025/26 From - Spending review Topic 4]]+Dataset[[#This Row],[2025/26 From - Other reallocations]]","v":0},{"$f":"Dataset[[#This Row],[2026/27 From - Spending review Topic 1]]+Dataset[[#This Row],[2026/27 From - Spending review Topic 2]]+Dataset[[#This Row],[2026/27 From - Spending review Topic 3]]+Dataset[[#This Row],[2026/27 From - Spending review Topic 4]]+Dataset[[#This Row],[2026/27 From - Other reallocations]]","v":0},{"$f":"Dataset[[#This Row],[2024/25 To - Spending review Topic 1]]+Dataset[[#This Row],[2024/25 To - Spending review Topic 2]]+Dataset[[#This Row],[2024/25 To - Spending review Topic 3]]+Dataset[[#This Row],[2024/25 To - Spending review Topic 4]]+Dataset[[#This Row],[2024/25 To - Other reallocations]]","v":0},{"$f":"Dataset[[#This Row],[2025/26 To - Spending review Topic 1]]+Dataset[[#This Row],[2025/26 To - Spending review Topic 2]]+Dataset[[#This Row],[2025/26 To - Spending review Topic 3]]+Dataset[[#This Row],[2025/26 To - Spending review Topic 4]]+Dataset[[#This Row],[2025/26 To - Other reallocations]]","v":0},{"$f":"Dataset[[#This Row],[2026/27 To - Spending review Topic 1]]+Dataset[[#This Row],[2026/27 To - Spending review Topic 2]]+Dataset[[#This Row],[2026/27 To - Spending review Topic 3]]+Dataset[[#This Row],[2026/27 To - Spending review Topic 4]]+Dataset[[#This Row],[2026/27 To - Other reallocations]]","v":0},{"$f":"Dataset[[#This Row],[2024/25 Reduction]]+Dataset[[#This Row],[2024/25 From - Total]]","v":0},{"$f":"Dataset[[#This Row],[2025/26 Reduction]]+Dataset[[#This Row],[2025/26 From - Total]]","v":0},{"$f":"Dataset[[#This Row],[2026/27 Reduction]]+Dataset[[#This Row],[2026/27 From - Total]]","v":0},{"$f":"Dataset[[#This Row],[2023/24 Reduction]]","v":0},{"$f":"SUM(Dataset[[#This Row],[2024/25 Reduction]],Dataset[[#This Row],[2024/25 From - Total]],Dataset[[#This Row],[2024/25 To - Total]])","v":0},{"$f":"SUM(Dataset[[#This Row],[2025/26 Reduction]],Dataset[[#This Row],[2025/26 From - Total]],Dataset[[#This Row],[2025/26 To - Total]])","v":0},{"$f":"SUM(Dataset[[#This Row],[2026/27 Reduction]],Dataset[[#This Row],[2026/27 From - Total]],Dataset[[#This Row],[2026/27 To - Total]])","v":0},{"$f":"Dataset[[#This Row],[2023/24 Baseline]]+Dataset[[#This Row],[2023/24 Total change]]","v":0},{"$f":"Dataset[[#This Row],[2024/25 Baseline]]+Dataset[[#This Row],[2024/25 Total change]]","v":0},{"$f":"Dataset[[#This Row],[2025/26 Baseline]]+Dataset[[#This Row],[2025/26 Total change]]","v":0},{"$f":"Dataset[[#This Row],[2026/27 Baseline]]+Dataset[[#This Row],[2026/27 Total change]]","v":0}]
["NAT|Non-transfer item","26|Municipal agencies and funds","2024_25","MTEF2024",26,2,3,44549,662,"26","02","03","044549","000662","26|02|03","01","02","04","44","46","01|02|04|44|46","National","Military Veterans","Socioeconomic Support","Socioeconomic Support Management","Non-transfer item","Current","Transfers and subsidies","Provinces and municipalities","Municipalities","Municipal agencies and funds","Peace and security","Defence and state security","NAT",0,0,0,0,0,0,0,0,0,0,0,null,null,null,null,null,null,null,null,null,null,null,null,null,null,null,null,null,null,null,null,null,null,null,null,null,null,null,null,null,null,null,null,null,null,{"$f":"Dataset[[#This Row],[2024/25 From - Spending review Topic 1]]+Dataset[[#This Row],[2024/25 From - Spending review Topic 2]]+Dataset[[#This Row],[2024/25 From - Spending review Topic 3]]+Dataset[[#This Row],[2024/25 From - Spending review Topic 4]]+Dataset[[#This Row],[2024/25 From - Other reallocations]]","v":0},{"$f":"Dataset[[#This Row],[2025/26 From - Spending review Topic 1]]+Dataset[[#This Row],[2025/26 From - Spending review Topic 2]]+Dataset[[#This Row],[2025/26 From - Spending review Topic 3]]+Dataset[[#This Row],[2025/26 From - Spending review Topic 4]]+Dataset[[#This Row],[2025/26 From - Other reallocations]]","v":0},{"$f":"Dataset[[#This Row],[2026/27 From - Spending review Topic 1]]+Dataset[[#This Row],[2026/27 From - Spending review Topic 2]]+Dataset[[#This Row],[2026/27 From - Spending review Topic 3]]+Dataset[[#This Row],[2026/27 From - Spending review Topic 4]]+Dataset[[#This Row],[2026/27 From - Other reallocations]]","v":0},{"$f":"Dataset[[#This Row],[2024/25 To - Spending review Topic 1]]+Dataset[[#This Row],[2024/25 To - Spending review Topic 2]]+Dataset[[#This Row],[2024/25 To - Spending review Topic 3]]+Dataset[[#This Row],[2024/25 To - Spending review Topic 4]]+Dataset[[#This Row],[2024/25 To - Other reallocations]]","v":0},{"$f":"Dataset[[#This Row],[2025/26 To - Spending review Topic 1]]+Dataset[[#This Row],[2025/26 To - Spending review Topic 2]]+Dataset[[#This Row],[2025/26 To - Spending review Topic 3]]+Dataset[[#This Row],[2025/26 To - Spending review Topic 4]]+Dataset[[#This Row],[2025/26 To - Other reallocations]]","v":0},{"$f":"Dataset[[#This Row],[2026/27 To - Spending review Topic 1]]+Dataset[[#This Row],[2026/27 To - Spending review Topic 2]]+Dataset[[#This Row],[2026/27 To - Spending review Topic 3]]+Dataset[[#This Row],[2026/27 To - Spending review Topic 4]]+Dataset[[#This Row],[2026/27 To - Other reallocations]]","v":0},{"$f":"Dataset[[#This Row],[2024/25 Reduction]]+Dataset[[#This Row],[2024/25 From - Total]]","v":0},{"$f":"Dataset[[#This Row],[2025/26 Reduction]]+Dataset[[#This Row],[2025/26 From - Total]]","v":0},{"$f":"Dataset[[#This Row],[2026/27 Reduction]]+Dataset[[#This Row],[2026/27 From - Total]]","v":0},{"$f":"Dataset[[#This Row],[2023/24 Reduction]]","v":0},{"$f":"SUM(Dataset[[#This Row],[2024/25 Reduction]],Dataset[[#This Row],[2024/25 From - Total]],Dataset[[#This Row],[2024/25 To - Total]])","v":0},{"$f":"SUM(Dataset[[#This Row],[2025/26 Reduction]],Dataset[[#This Row],[2025/26 From - Total]],Dataset[[#This Row],[2025/26 To - Total]])","v":0},{"$f":"SUM(Dataset[[#This Row],[2026/27 Reduction]],Dataset[[#This Row],[2026/27 From - Total]],Dataset[[#This Row],[2026/27 To - Total]])","v":0},{"$f":"Dataset[[#This Row],[2023/24 Baseline]]+Dataset[[#This Row],[2023/24 Total change]]","v":0},{"$f":"Dataset[[#This Row],[2024/25 Baseline]]+Dataset[[#This Row],[2024/25 Total change]]","v":0},{"$f":"Dataset[[#This Row],[2025/26 Baseline]]+Dataset[[#This Row],[2025/26 Total change]]","v":0},{"$f":"Dataset[[#This Row],[2026/27 Baseline]]+Dataset[[#This Row],[2026/27 Total change]]","v":0}]
["NAT|Non-transfer item","26|Social security funds","2024_25","MTEF2024",26,2,3,44550,663,"26","02","03","044550","000663","26|02|03","01","02","05","45","47","01|02|05|45|47","National","Military Veterans","Socioeconomic Support","Socioeconomic Support Management","Non-transfer item","Current","Transfers and subsidies","Departmental agencies and accounts","Social security funds","Social security funds","Peace and security","Defence and state security","NAT",0,0,0,0,0,0,0,0,0,0,0,null,null,null,null,null,null,null,null,null,null,null,null,null,null,null,null,null,null,null,null,null,null,null,null,null,null,null,null,null,null,null,null,null,null,{"$f":"Dataset[[#This Row],[2024/25 From - Spending review Topic 1]]+Dataset[[#This Row],[2024/25 From - Spending review Topic 2]]+Dataset[[#This Row],[2024/25 From - Spending review Topic 3]]+Dataset[[#This Row],[2024/25 From - Spending review Topic 4]]+Dataset[[#This Row],[2024/25 From - Other reallocations]]","v":0},{"$f":"Dataset[[#This Row],[2025/26 From - Spending review Topic 1]]+Dataset[[#This Row],[2025/26 From - Spending review Topic 2]]+Dataset[[#This Row],[2025/26 From - Spending review Topic 3]]+Dataset[[#This Row],[2025/26 From - Spending review Topic 4]]+Dataset[[#This Row],[2025/26 From - Other reallocations]]","v":0},{"$f":"Dataset[[#This Row],[2026/27 From - Spending review Topic 1]]+Dataset[[#This Row],[2026/27 From - Spending review Topic 2]]+Dataset[[#This Row],[2026/27 From - Spending review Topic 3]]+Dataset[[#This Row],[2026/27 From - Spending review Topic 4]]+Dataset[[#This Row],[2026/27 From - Other reallocations]]","v":0},{"$f":"Dataset[[#This Row],[2024/25 To - Spending review Topic 1]]+Dataset[[#This Row],[2024/25 To - Spending review Topic 2]]+Dataset[[#This Row],[2024/25 To - Spending review Topic 3]]+Dataset[[#This Row],[2024/25 To - Spending review Topic 4]]+Dataset[[#This Row],[2024/25 To - Other reallocations]]","v":0},{"$f":"Dataset[[#This Row],[2025/26 To - Spending review Topic 1]]+Dataset[[#This Row],[2025/26 To - Spending review Topic 2]]+Dataset[[#This Row],[2025/26 To - Spending review Topic 3]]+Dataset[[#This Row],[2025/26 To - Spending review Topic 4]]+Dataset[[#This Row],[2025/26 To - Other reallocations]]","v":0},{"$f":"Dataset[[#This Row],[2026/27 To - Spending review Topic 1]]+Dataset[[#This Row],[2026/27 To - Spending review Topic 2]]+Dataset[[#This Row],[2026/27 To - Spending review Topic 3]]+Dataset[[#This Row],[2026/27 To - Spending review Topic 4]]+Dataset[[#This Row],[2026/27 To - Other reallocations]]","v":0},{"$f":"Dataset[[#This Row],[2024/25 Reduction]]+Dataset[[#This Row],[2024/25 From - Total]]","v":0},{"$f":"Dataset[[#This Row],[2025/26 Reduction]]+Dataset[[#This Row],[2025/26 From - Total]]","v":0},{"$f":"Dataset[[#This Row],[2026/27 Reduction]]+Dataset[[#This Row],[2026/27 From - Total]]","v":0},{"$f":"Dataset[[#This Row],[2023/24 Reduction]]","v":0},{"$f":"SUM(Dataset[[#This Row],[2024/25 Reduction]],Dataset[[#This Row],[2024/25 From - Total]],Dataset[[#This Row],[2024/25 To - Total]])","v":0},{"$f":"SUM(Dataset[[#This Row],[2025/26 Reduction]],Dataset[[#This Row],[2025/26 From - Total]],Dataset[[#This Row],[2025/26 To - Total]])","v":0},{"$f":"SUM(Dataset[[#This Row],[2026/27 Reduction]],Dataset[[#This Row],[2026/27 From - Total]],Dataset[[#This Row],[2026/27 To - Total]])","v":0},{"$f":"Dataset[[#This Row],[2023/24 Baseline]]+Dataset[[#This Row],[2023/24 Total change]]","v":0},{"$f":"Dataset[[#This Row],[2024/25 Baseline]]+Dataset[[#This Row],[2024/25 Total change]]","v":0},{"$f":"Dataset[[#This Row],[2025/26 Baseline]]+Dataset[[#This Row],[2025/26 Total change]]","v":0},{"$f":"Dataset[[#This Row],[2026/27 Baseline]]+Dataset[[#This Row],[2026/27 Total change]]","v":0}]
["NAT|Non-transfer item","26|Departmental agencies (non-business entities)","2024_25","MTEF2024",26,2,3,44551,664,"26","02","03","044551","000664","26|02|03","01","02","05","46","48","01|02|05|46|48","National","Military Veterans","Socioeconomic Support","Socioeconomic Support Management","Non-transfer item","Current","Transfers and subsidies","Departmental agencies and accounts","Departmental agencies (non-business entities)","Departmental agencies (non-business entities)","Peace and security","Defence and state security","NAT",0,0,0,0,0,0,0,0,0,0,0,null,null,null,null,null,null,null,null,null,null,null,null,null,null,null,null,null,null,null,null,null,null,null,null,null,null,null,null,null,null,null,null,null,null,{"$f":"Dataset[[#This Row],[2024/25 From - Spending review Topic 1]]+Dataset[[#This Row],[2024/25 From - Spending review Topic 2]]+Dataset[[#This Row],[2024/25 From - Spending review Topic 3]]+Dataset[[#This Row],[2024/25 From - Spending review Topic 4]]+Dataset[[#This Row],[2024/25 From - Other reallocations]]","v":0},{"$f":"Dataset[[#This Row],[2025/26 From - Spending review Topic 1]]+Dataset[[#This Row],[2025/26 From - Spending review Topic 2]]+Dataset[[#This Row],[2025/26 From - Spending review Topic 3]]+Dataset[[#This Row],[2025/26 From - Spending review Topic 4]]+Dataset[[#This Row],[2025/26 From - Other reallocations]]","v":0},{"$f":"Dataset[[#This Row],[2026/27 From - Spending review Topic 1]]+Dataset[[#This Row],[2026/27 From - Spending review Topic 2]]+Dataset[[#This Row],[2026/27 From - Spending review Topic 3]]+Dataset[[#This Row],[2026/27 From - Spending review Topic 4]]+Dataset[[#This Row],[2026/27 From - Other reallocations]]","v":0},{"$f":"Dataset[[#This Row],[2024/25 To - Spending review Topic 1]]+Dataset[[#This Row],[2024/25 To - Spending review Topic 2]]+Dataset[[#This Row],[2024/25 To - Spending review Topic 3]]+Dataset[[#This Row],[2024/25 To - Spending review Topic 4]]+Dataset[[#This Row],[2024/25 To - Other reallocations]]","v":0},{"$f":"Dataset[[#This Row],[2025/26 To - Spending review Topic 1]]+Dataset[[#This Row],[2025/26 To - Spending review Topic 2]]+Dataset[[#This Row],[2025/26 To - Spending review Topic 3]]+Dataset[[#This Row],[2025/26 To - Spending review Topic 4]]+Dataset[[#This Row],[2025/26 To - Other reallocations]]","v":0},{"$f":"Dataset[[#This Row],[2026/27 To - Spending review Topic 1]]+Dataset[[#This Row],[2026/27 To - Spending review Topic 2]]+Dataset[[#This Row],[2026/27 To - Spending review Topic 3]]+Dataset[[#This Row],[2026/27 To - Spending review Topic 4]]+Dataset[[#This Row],[2026/27 To - Other reallocations]]","v":0},{"$f":"Dataset[[#This Row],[2024/25 Reduction]]+Dataset[[#This Row],[2024/25 From - Total]]","v":0},{"$f":"Dataset[[#This Row],[2025/26 Reduction]]+Dataset[[#This Row],[2025/26 From - Total]]","v":0},{"$f":"Dataset[[#This Row],[2026/27 Reduction]]+Dataset[[#This Row],[2026/27 From - Total]]","v":0},{"$f":"Dataset[[#This Row],[2023/24 Reduction]]","v":0},{"$f":"SUM(Dataset[[#This Row],[2024/25 Reduction]],Dataset[[#This Row],[2024/25 From - Total]],Dataset[[#This Row],[2024/25 To - Total]])","v":0},{"$f":"SUM(Dataset[[#This Row],[2025/26 Reduction]],Dataset[[#This Row],[2025/26 From - Total]],Dataset[[#This Row],[2025/26 To - Total]])","v":0},{"$f":"SUM(Dataset[[#This Row],[2026/27 Reduction]],Dataset[[#This Row],[2026/27 From - Total]],Dataset[[#This Row],[2026/27 To - Total]])","v":0},{"$f":"Dataset[[#This Row],[2023/24 Baseline]]+Dataset[[#This Row],[2023/24 Total change]]","v":0},{"$f":"Dataset[[#This Row],[2024/25 Baseline]]+Dataset[[#This Row],[2024/25 Total change]]","v":0},{"$f":"Dataset[[#This Row],[2025/26 Baseline]]+Dataset[[#This Row],[2025/26 Total change]]","v":0},{"$f":"Dataset[[#This Row],[2026/27 Baseline]]+Dataset[[#This Row],[2026/27 Total change]]","v":0}]
["NAT|Non-transfer item","26|Higher education institutions","2024_25","MTEF2024",26,2,3,44552,665,"26","02","03","044552","000665","26|02|03","01","02","06","47","49","01|02|06|47|49","National","Military Veterans","Socioeconomic Support","Socioeconomic Support Management","Non-transfer item","Current","Transfers and subsidies","Higher education institutions","Higher education institutions","Higher education institutions","Peace and security","Defence and state security","NAT",0,0,0,0,0,0,0,0,0,0,0,null,null,null,null,null,null,null,null,null,null,null,null,null,null,null,null,null,null,null,null,null,null,null,null,null,null,null,null,null,null,null,null,null,null,{"$f":"Dataset[[#This Row],[2024/25 From - Spending review Topic 1]]+Dataset[[#This Row],[2024/25 From - Spending review Topic 2]]+Dataset[[#This Row],[2024/25 From - Spending review Topic 3]]+Dataset[[#This Row],[2024/25 From - Spending review Topic 4]]+Dataset[[#This Row],[2024/25 From - Other reallocations]]","v":0},{"$f":"Dataset[[#This Row],[2025/26 From - Spending review Topic 1]]+Dataset[[#This Row],[2025/26 From - Spending review Topic 2]]+Dataset[[#This Row],[2025/26 From - Spending review Topic 3]]+Dataset[[#This Row],[2025/26 From - Spending review Topic 4]]+Dataset[[#This Row],[2025/26 From - Other reallocations]]","v":0},{"$f":"Dataset[[#This Row],[2026/27 From - Spending review Topic 1]]+Dataset[[#This Row],[2026/27 From - Spending review Topic 2]]+Dataset[[#This Row],[2026/27 From - Spending review Topic 3]]+Dataset[[#This Row],[2026/27 From - Spending review Topic 4]]+Dataset[[#This Row],[2026/27 From - Other reallocations]]","v":0},{"$f":"Dataset[[#This Row],[2024/25 To - Spending review Topic 1]]+Dataset[[#This Row],[2024/25 To - Spending review Topic 2]]+Dataset[[#This Row],[2024/25 To - Spending review Topic 3]]+Dataset[[#This Row],[2024/25 To - Spending review Topic 4]]+Dataset[[#This Row],[2024/25 To - Other reallocations]]","v":0},{"$f":"Dataset[[#This Row],[2025/26 To - Spending review Topic 1]]+Dataset[[#This Row],[2025/26 To - Spending review Topic 2]]+Dataset[[#This Row],[2025/26 To - Spending review Topic 3]]+Dataset[[#This Row],[2025/26 To - Spending review Topic 4]]+Dataset[[#This Row],[2025/26 To - Other reallocations]]","v":0},{"$f":"Dataset[[#This Row],[2026/27 To - Spending review Topic 1]]+Dataset[[#This Row],[2026/27 To - Spending review Topic 2]]+Dataset[[#This Row],[2026/27 To - Spending review Topic 3]]+Dataset[[#This Row],[2026/27 To - Spending review Topic 4]]+Dataset[[#This Row],[2026/27 To - Other reallocations]]","v":0},{"$f":"Dataset[[#This Row],[2024/25 Reduction]]+Dataset[[#This Row],[2024/25 From - Total]]","v":0},{"$f":"Dataset[[#This Row],[2025/26 Reduction]]+Dataset[[#This Row],[2025/26 From - Total]]","v":0},{"$f":"Dataset[[#This Row],[2026/27 Reduction]]+Dataset[[#This Row],[2026/27 From - Total]]","v":0},{"$f":"Dataset[[#This Row],[2023/24 Reduction]]","v":0},{"$f":"SUM(Dataset[[#This Row],[2024/25 Reduction]],Dataset[[#This Row],[2024/25 From - Total]],Dataset[[#This Row],[2024/25 To - Total]])","v":0},{"$f":"SUM(Dataset[[#This Row],[2025/26 Reduction]],Dataset[[#This Row],[2025/26 From - Total]],Dataset[[#This Row],[2025/26 To - Total]])","v":0},{"$f":"SUM(Dataset[[#This Row],[2026/27 Reduction]],Dataset[[#This Row],[2026/27 From - Total]],Dataset[[#This Row],[2026/27 To - Total]])","v":0},{"$f":"Dataset[[#This Row],[2023/24 Baseline]]+Dataset[[#This Row],[2023/24 Total change]]","v":0},{"$f":"Dataset[[#This Row],[2024/25 Baseline]]+Dataset[[#This Row],[2024/25 Total change]]","v":0},{"$f":"Dataset[[#This Row],[2025/26 Baseline]]+Dataset[[#This Row],[2025/26 Total change]]","v":0},{"$f":"Dataset[[#This Row],[2026/27 Baseline]]+Dataset[[#This Row],[2026/27 Total change]]","v":0}]
["NAT|Non-transfer item","26|Foreign governments and international organisations","2024_25","MTEF2024",26,2,3,44553,666,"26","02","03","044553","000666","26|02|03","01","02","07","48","50","01|02|07|48|50","National","Military Veterans","Socioeconomic Support","Socioeconomic Support Management","Non-transfer item","Current","Transfers and subsidies","Foreign governments and international organisations","Foreign governments and international organisations","Foreign governments and international organisations","Peace and security","Defence and state security","NAT",0,0,0,0,0,0,0,0,0,0,0,null,null,null,null,null,null,null,null,null,null,null,null,null,null,null,null,null,null,null,null,null,null,null,null,null,null,null,null,null,null,null,null,null,null,{"$f":"Dataset[[#This Row],[2024/25 From - Spending review Topic 1]]+Dataset[[#This Row],[2024/25 From - Spending review Topic 2]]+Dataset[[#This Row],[2024/25 From - Spending review Topic 3]]+Dataset[[#This Row],[2024/25 From - Spending review Topic 4]]+Dataset[[#This Row],[2024/25 From - Other reallocations]]","v":0},{"$f":"Dataset[[#This Row],[2025/26 From - Spending review Topic 1]]+Dataset[[#This Row],[2025/26 From - Spending review Topic 2]]+Dataset[[#This Row],[2025/26 From - Spending review Topic 3]]+Dataset[[#This Row],[2025/26 From - Spending review Topic 4]]+Dataset[[#This Row],[2025/26 From - Other reallocations]]","v":0},{"$f":"Dataset[[#This Row],[2026/27 From - Spending review Topic 1]]+Dataset[[#This Row],[2026/27 From - Spending review Topic 2]]+Dataset[[#This Row],[2026/27 From - Spending review Topic 3]]+Dataset[[#This Row],[2026/27 From - Spending review Topic 4]]+Dataset[[#This Row],[2026/27 From - Other reallocations]]","v":0},{"$f":"Dataset[[#This Row],[2024/25 To - Spending review Topic 1]]+Dataset[[#This Row],[2024/25 To - Spending review Topic 2]]+Dataset[[#This Row],[2024/25 To - Spending review Topic 3]]+Dataset[[#This Row],[2024/25 To - Spending review Topic 4]]+Dataset[[#This Row],[2024/25 To - Other reallocations]]","v":0},{"$f":"Dataset[[#This Row],[2025/26 To - Spending review Topic 1]]+Dataset[[#This Row],[2025/26 To - Spending review Topic 2]]+Dataset[[#This Row],[2025/26 To - Spending review Topic 3]]+Dataset[[#This Row],[2025/26 To - Spending review Topic 4]]+Dataset[[#This Row],[2025/26 To - Other reallocations]]","v":0},{"$f":"Dataset[[#This Row],[2026/27 To - Spending review Topic 1]]+Dataset[[#This Row],[2026/27 To - Spending review Topic 2]]+Dataset[[#This Row],[2026/27 To - Spending review Topic 3]]+Dataset[[#This Row],[2026/27 To - Spending review Topic 4]]+Dataset[[#This Row],[2026/27 To - Other reallocations]]","v":0},{"$f":"Dataset[[#This Row],[2024/25 Reduction]]+Dataset[[#This Row],[2024/25 From - Total]]","v":0},{"$f":"Dataset[[#This Row],[2025/26 Reduction]]+Dataset[[#This Row],[2025/26 From - Total]]","v":0},{"$f":"Dataset[[#This Row],[2026/27 Reduction]]+Dataset[[#This Row],[2026/27 From - Total]]","v":0},{"$f":"Dataset[[#This Row],[2023/24 Reduction]]","v":0},{"$f":"SUM(Dataset[[#This Row],[2024/25 Reduction]],Dataset[[#This Row],[2024/25 From - Total]],Dataset[[#This Row],[2024/25 To - Total]])","v":0},{"$f":"SUM(Dataset[[#This Row],[2025/26 Reduction]],Dataset[[#This Row],[2025/26 From - Total]],Dataset[[#This Row],[2025/26 To - Total]])","v":0},{"$f":"SUM(Dataset[[#This Row],[2026/27 Reduction]],Dataset[[#This Row],[2026/27 From - Total]],Dataset[[#This Row],[2026/27 To - Total]])","v":0},{"$f":"Dataset[[#This Row],[2023/24 Baseline]]+Dataset[[#This Row],[2023/24 Total change]]","v":0},{"$f":"Dataset[[#This Row],[2024/25 Baseline]]+Dataset[[#This Row],[2024/25 Total change]]","v":0},{"$f":"Dataset[[#This Row],[2025/26 Baseline]]+Dataset[[#This Row],[2025/26 Total change]]","v":0},{"$f":"Dataset[[#This Row],[2026/27 Baseline]]+Dataset[[#This Row],[2026/27 Total change]]","v":0}]
["NAT|Non-transfer item","26|Subsidies on products and production (pc)","2024_25","MTEF2024",26,2,3,44554,667,"26","02","03","044554","000667","26|02|03","01","02","08","49","51","01|02|08|49|51","National","Military Veterans","Socioeconomic Support","Socioeconomic Support Management","Non-transfer item","Current","Transfers and subsidies","Public corporations and private enterprises","Public corporations","Subsidies on products and production (pc)","Peace and security","Defence and state security","NAT",0,0,0,0,0,0,0,0,0,0,0,null,null,null,null,null,null,null,null,null,null,null,null,null,null,null,null,null,null,null,null,null,null,null,null,null,null,null,null,null,null,null,null,null,null,{"$f":"Dataset[[#This Row],[2024/25 From - Spending review Topic 1]]+Dataset[[#This Row],[2024/25 From - Spending review Topic 2]]+Dataset[[#This Row],[2024/25 From - Spending review Topic 3]]+Dataset[[#This Row],[2024/25 From - Spending review Topic 4]]+Dataset[[#This Row],[2024/25 From - Other reallocations]]","v":0},{"$f":"Dataset[[#This Row],[2025/26 From - Spending review Topic 1]]+Dataset[[#This Row],[2025/26 From - Spending review Topic 2]]+Dataset[[#This Row],[2025/26 From - Spending review Topic 3]]+Dataset[[#This Row],[2025/26 From - Spending review Topic 4]]+Dataset[[#This Row],[2025/26 From - Other reallocations]]","v":0},{"$f":"Dataset[[#This Row],[2026/27 From - Spending review Topic 1]]+Dataset[[#This Row],[2026/27 From - Spending review Topic 2]]+Dataset[[#This Row],[2026/27 From - Spending review Topic 3]]+Dataset[[#This Row],[2026/27 From - Spending review Topic 4]]+Dataset[[#This Row],[2026/27 From - Other reallocations]]","v":0},{"$f":"Dataset[[#This Row],[2024/25 To - Spending review Topic 1]]+Dataset[[#This Row],[2024/25 To - Spending review Topic 2]]+Dataset[[#This Row],[2024/25 To - Spending review Topic 3]]+Dataset[[#This Row],[2024/25 To - Spending review Topic 4]]+Dataset[[#This Row],[2024/25 To - Other reallocations]]","v":0},{"$f":"Dataset[[#This Row],[2025/26 To - Spending review Topic 1]]+Dataset[[#This Row],[2025/26 To - Spending review Topic 2]]+Dataset[[#This Row],[2025/26 To - Spending review Topic 3]]+Dataset[[#This Row],[2025/26 To - Spending review Topic 4]]+Dataset[[#This Row],[2025/26 To - Other reallocations]]","v":0},{"$f":"Dataset[[#This Row],[2026/27 To - Spending review Topic 1]]+Dataset[[#This Row],[2026/27 To - Spending review Topic 2]]+Dataset[[#This Row],[2026/27 To - Spending review Topic 3]]+Dataset[[#This Row],[2026/27 To - Spending review Topic 4]]+Dataset[[#This Row],[2026/27 To - Other reallocations]]","v":0},{"$f":"Dataset[[#This Row],[2024/25 Reduction]]+Dataset[[#This Row],[2024/25 From - Total]]","v":0},{"$f":"Dataset[[#This Row],[2025/26 Reduction]]+Dataset[[#This Row],[2025/26 From - Total]]","v":0},{"$f":"Dataset[[#This Row],[2026/27 Reduction]]+Dataset[[#This Row],[2026/27 From - Total]]","v":0},{"$f":"Dataset[[#This Row],[2023/24 Reduction]]","v":0},{"$f":"SUM(Dataset[[#This Row],[2024/25 Reduction]],Dataset[[#This Row],[2024/25 From - Total]],Dataset[[#This Row],[2024/25 To - Total]])","v":0},{"$f":"SUM(Dataset[[#This Row],[2025/26 Reduction]],Dataset[[#This Row],[2025/26 From - Total]],Dataset[[#This Row],[2025/26 To - Total]])","v":0},{"$f":"SUM(Dataset[[#This Row],[2026/27 Reduction]],Dataset[[#This Row],[2026/27 From - Total]],Dataset[[#This Row],[2026/27 To - Total]])","v":0},{"$f":"Dataset[[#This Row],[2023/24 Baseline]]+Dataset[[#This Row],[2023/24 Total change]]","v":0},{"$f":"Dataset[[#This Row],[2024/25 Baseline]]+Dataset[[#This Row],[2024/25 Total change]]","v":0},{"$f":"Dataset[[#This Row],[2025/26 Baseline]]+Dataset[[#This Row],[2025/26 Total change]]","v":0},{"$f":"Dataset[[#This Row],[2026/27 Baseline]]+Dataset[[#This Row],[2026/27 Total change]]","v":0}]
["NAT|Non-transfer item","26|Other transfers to public corporations","2024_25","MTEF2024",26,2,3,44555,668,"26","02","03","044555","000668","26|02|03","01","02","08","49","52","01|02|08|49|52","National","Military Veterans","Socioeconomic Support","Socioeconomic Support Management","Non-transfer item","Current","Transfers and subsidies","Public corporations and private enterprises","Public corporations","Other transfers to public corporations","Peace and security","Defence and state security","NAT",0,0,0,0,0,0,0,0,0,0,0,null,null,null,null,null,null,null,null,null,null,null,null,null,null,null,null,null,null,null,null,null,null,null,null,null,null,null,null,null,null,null,null,null,null,{"$f":"Dataset[[#This Row],[2024/25 From - Spending review Topic 1]]+Dataset[[#This Row],[2024/25 From - Spending review Topic 2]]+Dataset[[#This Row],[2024/25 From - Spending review Topic 3]]+Dataset[[#This Row],[2024/25 From - Spending review Topic 4]]+Dataset[[#This Row],[2024/25 From - Other reallocations]]","v":0},{"$f":"Dataset[[#This Row],[2025/26 From - Spending review Topic 1]]+Dataset[[#This Row],[2025/26 From - Spending review Topic 2]]+Dataset[[#This Row],[2025/26 From - Spending review Topic 3]]+Dataset[[#This Row],[2025/26 From - Spending review Topic 4]]+Dataset[[#This Row],[2025/26 From - Other reallocations]]","v":0},{"$f":"Dataset[[#This Row],[2026/27 From - Spending review Topic 1]]+Dataset[[#This Row],[2026/27 From - Spending review Topic 2]]+Dataset[[#This Row],[2026/27 From - Spending review Topic 3]]+Dataset[[#This Row],[2026/27 From - Spending review Topic 4]]+Dataset[[#This Row],[2026/27 From - Other reallocations]]","v":0},{"$f":"Dataset[[#This Row],[2024/25 To - Spending review Topic 1]]+Dataset[[#This Row],[2024/25 To - Spending review Topic 2]]+Dataset[[#This Row],[2024/25 To - Spending review Topic 3]]+Dataset[[#This Row],[2024/25 To - Spending review Topic 4]]+Dataset[[#This Row],[2024/25 To - Other reallocations]]","v":0},{"$f":"Dataset[[#This Row],[2025/26 To - Spending review Topic 1]]+Dataset[[#This Row],[2025/26 To - Spending review Topic 2]]+Dataset[[#This Row],[2025/26 To - Spending review Topic 3]]+Dataset[[#This Row],[2025/26 To - Spending review Topic 4]]+Dataset[[#This Row],[2025/26 To - Other reallocations]]","v":0},{"$f":"Dataset[[#This Row],[2026/27 To - Spending review Topic 1]]+Dataset[[#This Row],[2026/27 To - Spending review Topic 2]]+Dataset[[#This Row],[2026/27 To - Spending review Topic 3]]+Dataset[[#This Row],[2026/27 To - Spending review Topic 4]]+Dataset[[#This Row],[2026/27 To - Other reallocations]]","v":0},{"$f":"Dataset[[#This Row],[2024/25 Reduction]]+Dataset[[#This Row],[2024/25 From - Total]]","v":0},{"$f":"Dataset[[#This Row],[2025/26 Reduction]]+Dataset[[#This Row],[2025/26 From - Total]]","v":0},{"$f":"Dataset[[#This Row],[2026/27 Reduction]]+Dataset[[#This Row],[2026/27 From - Total]]","v":0},{"$f":"Dataset[[#This Row],[2023/24 Reduction]]","v":0},{"$f":"SUM(Dataset[[#This Row],[2024/25 Reduction]],Dataset[[#This Row],[2024/25 From - Total]],Dataset[[#This Row],[2024/25 To - Total]])","v":0},{"$f":"SUM(Dataset[[#This Row],[2025/26 Reduction]],Dataset[[#This Row],[2025/26 From - Total]],Dataset[[#This Row],[2025/26 To - Total]])","v":0},{"$f":"SUM(Dataset[[#This Row],[2026/27 Reduction]],Dataset[[#This Row],[2026/27 From - Total]],Dataset[[#This Row],[2026/27 To - Total]])","v":0},{"$f":"Dataset[[#This Row],[2023/24 Baseline]]+Dataset[[#This Row],[2023/24 Total change]]","v":0},{"$f":"Dataset[[#This Row],[2024/25 Baseline]]+Dataset[[#This Row],[2024/25 Total change]]","v":0},{"$f":"Dataset[[#This Row],[2025/26 Baseline]]+Dataset[[#This Row],[2025/26 Total change]]","v":0},{"$f":"Dataset[[#This Row],[2026/27 Baseline]]+Dataset[[#This Row],[2026/27 Total change]]","v":0}]
["NAT|Non-transfer item","26|Subsidies on products and production (pe)","2024_25","MTEF2024",26,2,3,44556,669,"26","02","03","044556","000669","26|02|03","01","02","08","50","53","01|02|08|50|53","National","Military Veterans","Socioeconomic Support","Socioeconomic Support Management","Non-transfer item","Current","Transfers and subsidies","Public corporations and private enterprises","Private enterprises","Subsidies on products and production (pe)","Peace and security","Defence and state security","NAT",0,0,0,0,0,0,0,0,0,0,0,null,null,null,null,null,null,null,null,null,null,null,null,null,null,null,null,null,null,null,null,null,null,null,null,null,null,null,null,null,null,null,null,null,null,{"$f":"Dataset[[#This Row],[2024/25 From - Spending review Topic 1]]+Dataset[[#This Row],[2024/25 From - Spending review Topic 2]]+Dataset[[#This Row],[2024/25 From - Spending review Topic 3]]+Dataset[[#This Row],[2024/25 From - Spending review Topic 4]]+Dataset[[#This Row],[2024/25 From - Other reallocations]]","v":0},{"$f":"Dataset[[#This Row],[2025/26 From - Spending review Topic 1]]+Dataset[[#This Row],[2025/26 From - Spending review Topic 2]]+Dataset[[#This Row],[2025/26 From - Spending review Topic 3]]+Dataset[[#This Row],[2025/26 From - Spending review Topic 4]]+Dataset[[#This Row],[2025/26 From - Other reallocations]]","v":0},{"$f":"Dataset[[#This Row],[2026/27 From - Spending review Topic 1]]+Dataset[[#This Row],[2026/27 From - Spending review Topic 2]]+Dataset[[#This Row],[2026/27 From - Spending review Topic 3]]+Dataset[[#This Row],[2026/27 From - Spending review Topic 4]]+Dataset[[#This Row],[2026/27 From - Other reallocations]]","v":0},{"$f":"Dataset[[#This Row],[2024/25 To - Spending review Topic 1]]+Dataset[[#This Row],[2024/25 To - Spending review Topic 2]]+Dataset[[#This Row],[2024/25 To - Spending review Topic 3]]+Dataset[[#This Row],[2024/25 To - Spending review Topic 4]]+Dataset[[#This Row],[2024/25 To - Other reallocations]]","v":0},{"$f":"Dataset[[#This Row],[2025/26 To - Spending review Topic 1]]+Dataset[[#This Row],[2025/26 To - Spending review Topic 2]]+Dataset[[#This Row],[2025/26 To - Spending review Topic 3]]+Dataset[[#This Row],[2025/26 To - Spending review Topic 4]]+Dataset[[#This Row],[2025/26 To - Other reallocations]]","v":0},{"$f":"Dataset[[#This Row],[2026/27 To - Spending review Topic 1]]+Dataset[[#This Row],[2026/27 To - Spending review Topic 2]]+Dataset[[#This Row],[2026/27 To - Spending review Topic 3]]+Dataset[[#This Row],[2026/27 To - Spending review Topic 4]]+Dataset[[#This Row],[2026/27 To - Other reallocations]]","v":0},{"$f":"Dataset[[#This Row],[2024/25 Reduction]]+Dataset[[#This Row],[2024/25 From - Total]]","v":0},{"$f":"Dataset[[#This Row],[2025/26 Reduction]]+Dataset[[#This Row],[2025/26 From - Total]]","v":0},{"$f":"Dataset[[#This Row],[2026/27 Reduction]]+Dataset[[#This Row],[2026/27 From - Total]]","v":0},{"$f":"Dataset[[#This Row],[2023/24 Reduction]]","v":0},{"$f":"SUM(Dataset[[#This Row],[2024/25 Reduction]],Dataset[[#This Row],[2024/25 From - Total]],Dataset[[#This Row],[2024/25 To - Total]])","v":0},{"$f":"SUM(Dataset[[#This Row],[2025/26 Reduction]],Dataset[[#This Row],[2025/26 From - Total]],Dataset[[#This Row],[2025/26 To - Total]])","v":0},{"$f":"SUM(Dataset[[#This Row],[2026/27 Reduction]],Dataset[[#This Row],[2026/27 From - Total]],Dataset[[#This Row],[2026/27 To - Total]])","v":0},{"$f":"Dataset[[#This Row],[2023/24 Baseline]]+Dataset[[#This Row],[2023/24 Total change]]","v":0},{"$f":"Dataset[[#This Row],[2024/25 Baseline]]+Dataset[[#This Row],[2024/25 Total change]]","v":0},{"$f":"Dataset[[#This Row],[2025/26 Baseline]]+Dataset[[#This Row],[2025/26 Total change]]","v":0},{"$f":"Dataset[[#This Row],[2026/27 Baseline]]+Dataset[[#This Row],[2026/27 Total change]]","v":0}]
["NAT|Non-transfer item","26|Other transfers to private enterprises","2024_25","MTEF2024",26,2,3,44557,670,"26","02","03","044557","000670","26|02|03","01","02","08","50","54","01|02|08|50|54","National","Military Veterans","Socioeconomic Support","Socioeconomic Support Management","Non-transfer item","Current","Transfers and subsidies","Public corporations and private enterprises","Private enterprises","Other transfers to private enterprises","Peace and security","Defence and state security","NAT",0,0,0,0,0,0,0,0,0,0,0,null,null,null,null,null,null,null,null,null,null,null,null,null,null,null,null,null,null,null,null,null,null,null,null,null,null,null,null,null,null,null,null,null,null,{"$f":"Dataset[[#This Row],[2024/25 From - Spending review Topic 1]]+Dataset[[#This Row],[2024/25 From - Spending review Topic 2]]+Dataset[[#This Row],[2024/25 From - Spending review Topic 3]]+Dataset[[#This Row],[2024/25 From - Spending review Topic 4]]+Dataset[[#This Row],[2024/25 From - Other reallocations]]","v":0},{"$f":"Dataset[[#This Row],[2025/26 From - Spending review Topic 1]]+Dataset[[#This Row],[2025/26 From - Spending review Topic 2]]+Dataset[[#This Row],[2025/26 From - Spending review Topic 3]]+Dataset[[#This Row],[2025/26 From - Spending review Topic 4]]+Dataset[[#This Row],[2025/26 From - Other reallocations]]","v":0},{"$f":"Dataset[[#This Row],[2026/27 From - Spending review Topic 1]]+Dataset[[#This Row],[2026/27 From - Spending review Topic 2]]+Dataset[[#This Row],[2026/27 From - Spending review Topic 3]]+Dataset[[#This Row],[2026/27 From - Spending review Topic 4]]+Dataset[[#This Row],[2026/27 From - Other reallocations]]","v":0},{"$f":"Dataset[[#This Row],[2024/25 To - Spending review Topic 1]]+Dataset[[#This Row],[2024/25 To - Spending review Topic 2]]+Dataset[[#This Row],[2024/25 To - Spending review Topic 3]]+Dataset[[#This Row],[2024/25 To - Spending review Topic 4]]+Dataset[[#This Row],[2024/25 To - Other reallocations]]","v":0},{"$f":"Dataset[[#This Row],[2025/26 To - Spending review Topic 1]]+Dataset[[#This Row],[2025/26 To - Spending review Topic 2]]+Dataset[[#This Row],[2025/26 To - Spending review Topic 3]]+Dataset[[#This Row],[2025/26 To - Spending review Topic 4]]+Dataset[[#This Row],[2025/26 To - Other reallocations]]","v":0},{"$f":"Dataset[[#This Row],[2026/27 To - Spending review Topic 1]]+Dataset[[#This Row],[2026/27 To - Spending review Topic 2]]+Dataset[[#This Row],[2026/27 To - Spending review Topic 3]]+Dataset[[#This Row],[2026/27 To - Spending review Topic 4]]+Dataset[[#This Row],[2026/27 To - Other reallocations]]","v":0},{"$f":"Dataset[[#This Row],[2024/25 Reduction]]+Dataset[[#This Row],[2024/25 From - Total]]","v":0},{"$f":"Dataset[[#This Row],[2025/26 Reduction]]+Dataset[[#This Row],[2025/26 From - Total]]","v":0},{"$f":"Dataset[[#This Row],[2026/27 Reduction]]+Dataset[[#This Row],[2026/27 From - Total]]","v":0},{"$f":"Dataset[[#This Row],[2023/24 Reduction]]","v":0},{"$f":"SUM(Dataset[[#This Row],[2024/25 Reduction]],Dataset[[#This Row],[2024/25 From - Total]],Dataset[[#This Row],[2024/25 To - Total]])","v":0},{"$f":"SUM(Dataset[[#This Row],[2025/26 Reduction]],Dataset[[#This Row],[2025/26 From - Total]],Dataset[[#This Row],[2025/26 To - Total]])","v":0},{"$f":"SUM(Dataset[[#This Row],[2026/27 Reduction]],Dataset[[#This Row],[2026/27 From - Total]],Dataset[[#This Row],[2026/27 To - Total]])","v":0},{"$f":"Dataset[[#This Row],[2023/24 Baseline]]+Dataset[[#This Row],[2023/24 Total change]]","v":0},{"$f":"Dataset[[#This Row],[2024/25 Baseline]]+Dataset[[#This Row],[2024/25 Total change]]","v":0},{"$f":"Dataset[[#This Row],[2025/26 Baseline]]+Dataset[[#This Row],[2025/26 Total change]]","v":0},{"$f":"Dataset[[#This Row],[2026/27 Baseline]]+Dataset[[#This Row],[2026/27 Total change]]","v":0}]
["NAT|Non-transfer item","26|Non-profit institutions","2024_25","MTEF2024",26,2,3,44558,671,"26","02","03","044558","000671","26|02|03","01","02","09","51","55","01|02|09|51|55","National","Military Veterans","Socioeconomic Support","Socioeconomic Support Management","Non-transfer item","Current","Transfers and subsidies","Non-profit institutions","Non-profit institutions","Non-profit institutions","Peace and security","Defence and state security","NAT",0,0,0,0,0,0,0,0,0,0,0,null,null,null,null,null,null,null,null,null,null,null,null,null,null,null,null,null,null,null,null,null,null,null,null,null,null,null,null,null,null,null,null,null,null,{"$f":"Dataset[[#This Row],[2024/25 From - Spending review Topic 1]]+Dataset[[#This Row],[2024/25 From - Spending review Topic 2]]+Dataset[[#This Row],[2024/25 From - Spending review Topic 3]]+Dataset[[#This Row],[2024/25 From - Spending review Topic 4]]+Dataset[[#This Row],[2024/25 From - Other reallocations]]","v":0},{"$f":"Dataset[[#This Row],[2025/26 From - Spending review Topic 1]]+Dataset[[#This Row],[2025/26 From - Spending review Topic 2]]+Dataset[[#This Row],[2025/26 From - Spending review Topic 3]]+Dataset[[#This Row],[2025/26 From - Spending review Topic 4]]+Dataset[[#This Row],[2025/26 From - Other reallocations]]","v":0},{"$f":"Dataset[[#This Row],[2026/27 From - Spending review Topic 1]]+Dataset[[#This Row],[2026/27 From - Spending review Topic 2]]+Dataset[[#This Row],[2026/27 From - Spending review Topic 3]]+Dataset[[#This Row],[2026/27 From - Spending review Topic 4]]+Dataset[[#This Row],[2026/27 From - Other reallocations]]","v":0},{"$f":"Dataset[[#This Row],[2024/25 To - Spending review Topic 1]]+Dataset[[#This Row],[2024/25 To - Spending review Topic 2]]+Dataset[[#This Row],[2024/25 To - Spending review Topic 3]]+Dataset[[#This Row],[2024/25 To - Spending review Topic 4]]+Dataset[[#This Row],[2024/25 To - Other reallocations]]","v":0},{"$f":"Dataset[[#This Row],[2025/26 To - Spending review Topic 1]]+Dataset[[#This Row],[2025/26 To - Spending review Topic 2]]+Dataset[[#This Row],[2025/26 To - Spending review Topic 3]]+Dataset[[#This Row],[2025/26 To - Spending review Topic 4]]+Dataset[[#This Row],[2025/26 To - Other reallocations]]","v":0},{"$f":"Dataset[[#This Row],[2026/27 To - Spending review Topic 1]]+Dataset[[#This Row],[2026/27 To - Spending review Topic 2]]+Dataset[[#This Row],[2026/27 To - Spending review Topic 3]]+Dataset[[#This Row],[2026/27 To - Spending review Topic 4]]+Dataset[[#This Row],[2026/27 To - Other reallocations]]","v":0},{"$f":"Dataset[[#This Row],[2024/25 Reduction]]+Dataset[[#This Row],[2024/25 From - Total]]","v":0},{"$f":"Dataset[[#This Row],[2025/26 Reduction]]+Dataset[[#This Row],[2025/26 From - Total]]","v":0},{"$f":"Dataset[[#This Row],[2026/27 Reduction]]+Dataset[[#This Row],[2026/27 From - Total]]","v":0},{"$f":"Dataset[[#This Row],[2023/24 Reduction]]","v":0},{"$f":"SUM(Dataset[[#This Row],[2024/25 Reduction]],Dataset[[#This Row],[2024/25 From - Total]],Dataset[[#This Row],[2024/25 To - Total]])","v":0},{"$f":"SUM(Dataset[[#This Row],[2025/26 Reduction]],Dataset[[#This Row],[2025/26 From - Total]],Dataset[[#This Row],[2025/26 To - Total]])","v":0},{"$f":"SUM(Dataset[[#This Row],[2026/27 Reduction]],Dataset[[#This Row],[2026/27 From - Total]],Dataset[[#This Row],[2026/27 To - Total]])","v":0},{"$f":"Dataset[[#This Row],[2023/24 Baseline]]+Dataset[[#This Row],[2023/24 Total change]]","v":0},{"$f":"Dataset[[#This Row],[2024/25 Baseline]]+Dataset[[#This Row],[2024/25 Total change]]","v":0},{"$f":"Dataset[[#This Row],[2025/26 Baseline]]+Dataset[[#This Row],[2025/26 Total change]]","v":0},{"$f":"Dataset[[#This Row],[2026/27 Baseline]]+Dataset[[#This Row],[2026/27 Total change]]","v":0}]
["NAT|Military veterans' benefits","26|Social benefits","2024_25","MTEF2024",26,2,3,44559,672,"26","02","03","044559","000672","26|02|03","01","02","10","52","56","01|02|10|52|56","National","Military Veterans","Socioeconomic Support","Socioeconomic Support Management","Military veterans' benefits","Current","Transfers and subsidies","Households","Social benefits","Social benefits","Peace and security","Defence and state security","NAT",92616,97913,4737,36912,36912,36912,0,330958,387947,447494,467996,null,null,null,null,null,null,null,null,null,null,null,null,null,null,null,null,null,null,null,null,null,null,null,null,null,null,null,null,null,null,null,null,null,null,{"$f":"Dataset[[#This Row],[2024/25 From - Spending review Topic 1]]+Dataset[[#This Row],[2024/25 From - Spending review Topic 2]]+Dataset[[#This Row],[2024/25 From - Spending review Topic 3]]+Dataset[[#This Row],[2024/25 From - Spending review Topic 4]]+Dataset[[#This Row],[2024/25 From - Other reallocations]]","v":0},{"$f":"Dataset[[#This Row],[2025/26 From - Spending review Topic 1]]+Dataset[[#This Row],[2025/26 From - Spending review Topic 2]]+Dataset[[#This Row],[2025/26 From - Spending review Topic 3]]+Dataset[[#This Row],[2025/26 From - Spending review Topic 4]]+Dataset[[#This Row],[2025/26 From - Other reallocations]]","v":0},{"$f":"Dataset[[#This Row],[2026/27 From - Spending review Topic 1]]+Dataset[[#This Row],[2026/27 From - Spending review Topic 2]]+Dataset[[#This Row],[2026/27 From - Spending review Topic 3]]+Dataset[[#This Row],[2026/27 From - Spending review Topic 4]]+Dataset[[#This Row],[2026/27 From - Other reallocations]]","v":0},{"$f":"Dataset[[#This Row],[2024/25 To - Spending review Topic 1]]+Dataset[[#This Row],[2024/25 To - Spending review Topic 2]]+Dataset[[#This Row],[2024/25 To - Spending review Topic 3]]+Dataset[[#This Row],[2024/25 To - Spending review Topic 4]]+Dataset[[#This Row],[2024/25 To - Other reallocations]]","v":0},{"$f":"Dataset[[#This Row],[2025/26 To - Spending review Topic 1]]+Dataset[[#This Row],[2025/26 To - Spending review Topic 2]]+Dataset[[#This Row],[2025/26 To - Spending review Topic 3]]+Dataset[[#This Row],[2025/26 To - Spending review Topic 4]]+Dataset[[#This Row],[2025/26 To - Other reallocations]]","v":0},{"$f":"Dataset[[#This Row],[2026/27 To - Spending review Topic 1]]+Dataset[[#This Row],[2026/27 To - Spending review Topic 2]]+Dataset[[#This Row],[2026/27 To - Spending review Topic 3]]+Dataset[[#This Row],[2026/27 To - Spending review Topic 4]]+Dataset[[#This Row],[2026/27 To - Other reallocations]]","v":0},{"$f":"Dataset[[#This Row],[2024/25 Reduction]]+Dataset[[#This Row],[2024/25 From - Total]]","v":0},{"$f":"Dataset[[#This Row],[2025/26 Reduction]]+Dataset[[#This Row],[2025/26 From - Total]]","v":0},{"$f":"Dataset[[#This Row],[2026/27 Reduction]]+Dataset[[#This Row],[2026/27 From - Total]]","v":0},{"$f":"Dataset[[#This Row],[2023/24 Reduction]]","v":0},{"$f":"SUM(Dataset[[#This Row],[2024/25 Reduction]],Dataset[[#This Row],[2024/25 From - Total]],Dataset[[#This Row],[2024/25 To - Total]])","v":0},{"$f":"SUM(Dataset[[#This Row],[2025/26 Reduction]],Dataset[[#This Row],[2025/26 From - Total]],Dataset[[#This Row],[2025/26 To - Total]])","v":0},{"$f":"SUM(Dataset[[#This Row],[2026/27 Reduction]],Dataset[[#This Row],[2026/27 From - Total]],Dataset[[#This Row],[2026/27 To - Total]])","v":0},{"$f":"Dataset[[#This Row],[2023/24 Baseline]]+Dataset[[#This Row],[2023/24 Total change]]","v":330958},{"$f":"Dataset[[#This Row],[2024/25 Baseline]]+Dataset[[#This Row],[2024/25 Total change]]","v":387947},{"$f":"Dataset[[#This Row],[2025/26 Baseline]]+Dataset[[#This Row],[2025/26 Total change]]","v":447494},{"$f":"Dataset[[#This Row],[2026/27 Baseline]]+Dataset[[#This Row],[2026/27 Total change]]","v":467996}]
["NAT|Military veterans' benefits","26|Other transfers to households","2024_25","MTEF2024",26,2,3,44560,673,"26","02","03","044560","000673","26|02|03","01","02","10","53","57","01|02|10|53|57","National","Military Veterans","Socioeconomic Support","Socioeconomic Support Management","Military veterans' benefits","Current","Transfers and subsidies","Households","Other transfers to households","Other transfers to households","Peace and security","Defence and state security","NAT",0,0,107017,165993,165993,165993,0,36123,33755,30032,31408,null,null,null,null,null,null,null,null,null,null,null,null,null,null,null,null,null,null,null,null,null,null,null,null,null,null,null,null,null,null,null,null,null,null,{"$f":"Dataset[[#This Row],[2024/25 From - Spending review Topic 1]]+Dataset[[#This Row],[2024/25 From - Spending review Topic 2]]+Dataset[[#This Row],[2024/25 From - Spending review Topic 3]]+Dataset[[#This Row],[2024/25 From - Spending review Topic 4]]+Dataset[[#This Row],[2024/25 From - Other reallocations]]","v":0},{"$f":"Dataset[[#This Row],[2025/26 From - Spending review Topic 1]]+Dataset[[#This Row],[2025/26 From - Spending review Topic 2]]+Dataset[[#This Row],[2025/26 From - Spending review Topic 3]]+Dataset[[#This Row],[2025/26 From - Spending review Topic 4]]+Dataset[[#This Row],[2025/26 From - Other reallocations]]","v":0},{"$f":"Dataset[[#This Row],[2026/27 From - Spending review Topic 1]]+Dataset[[#This Row],[2026/27 From - Spending review Topic 2]]+Dataset[[#This Row],[2026/27 From - Spending review Topic 3]]+Dataset[[#This Row],[2026/27 From - Spending review Topic 4]]+Dataset[[#This Row],[2026/27 From - Other reallocations]]","v":0},{"$f":"Dataset[[#This Row],[2024/25 To - Spending review Topic 1]]+Dataset[[#This Row],[2024/25 To - Spending review Topic 2]]+Dataset[[#This Row],[2024/25 To - Spending review Topic 3]]+Dataset[[#This Row],[2024/25 To - Spending review Topic 4]]+Dataset[[#This Row],[2024/25 To - Other reallocations]]","v":0},{"$f":"Dataset[[#This Row],[2025/26 To - Spending review Topic 1]]+Dataset[[#This Row],[2025/26 To - Spending review Topic 2]]+Dataset[[#This Row],[2025/26 To - Spending review Topic 3]]+Dataset[[#This Row],[2025/26 To - Spending review Topic 4]]+Dataset[[#This Row],[2025/26 To - Other reallocations]]","v":0},{"$f":"Dataset[[#This Row],[2026/27 To - Spending review Topic 1]]+Dataset[[#This Row],[2026/27 To - Spending review Topic 2]]+Dataset[[#This Row],[2026/27 To - Spending review Topic 3]]+Dataset[[#This Row],[2026/27 To - Spending review Topic 4]]+Dataset[[#This Row],[2026/27 To - Other reallocations]]","v":0},{"$f":"Dataset[[#This Row],[2024/25 Reduction]]+Dataset[[#This Row],[2024/25 From - Total]]","v":0},{"$f":"Dataset[[#This Row],[2025/26 Reduction]]+Dataset[[#This Row],[2025/26 From - Total]]","v":0},{"$f":"Dataset[[#This Row],[2026/27 Reduction]]+Dataset[[#This Row],[2026/27 From - Total]]","v":0},{"$f":"Dataset[[#This Row],[2023/24 Reduction]]","v":0},{"$f":"SUM(Dataset[[#This Row],[2024/25 Reduction]],Dataset[[#This Row],[2024/25 From - Total]],Dataset[[#This Row],[2024/25 To - Total]])","v":0},{"$f":"SUM(Dataset[[#This Row],[2025/26 Reduction]],Dataset[[#This Row],[2025/26 From - Total]],Dataset[[#This Row],[2025/26 To - Total]])","v":0},{"$f":"SUM(Dataset[[#This Row],[2026/27 Reduction]],Dataset[[#This Row],[2026/27 From - Total]],Dataset[[#This Row],[2026/27 To - Total]])","v":0},{"$f":"Dataset[[#This Row],[2023/24 Baseline]]+Dataset[[#This Row],[2023/24 Total change]]","v":36123},{"$f":"Dataset[[#This Row],[2024/25 Baseline]]+Dataset[[#This Row],[2024/25 Total change]]","v":33755},{"$f":"Dataset[[#This Row],[2025/26 Baseline]]+Dataset[[#This Row],[2025/26 Total change]]","v":30032},{"$f":"Dataset[[#This Row],[2026/27 Baseline]]+Dataset[[#This Row],[2026/27 Total change]]","v":31408}]
["NAT|Non-transfer item","26|Provincial Revenue Funds","2024_25","MTEF2024",26,2,3,44561,674,"26","02","03","044561","000674","26|02|03","02","02","04","43","43","02|02|04|43|43","National","Military Veterans","Socioeconomic Support","Socioeconomic Support Management","Non-transfer item","Capital","Transfers and subsidies","Provinces and municipalities","Provinces","Provincial Revenue Funds","Peace and security","Defence and state security","NAT",0,0,0,0,0,0,0,0,0,0,0,null,null,null,null,null,null,null,null,null,null,null,null,null,null,null,null,null,null,null,null,null,null,null,null,null,null,null,null,null,null,null,null,null,null,{"$f":"Dataset[[#This Row],[2024/25 From - Spending review Topic 1]]+Dataset[[#This Row],[2024/25 From - Spending review Topic 2]]+Dataset[[#This Row],[2024/25 From - Spending review Topic 3]]+Dataset[[#This Row],[2024/25 From - Spending review Topic 4]]+Dataset[[#This Row],[2024/25 From - Other reallocations]]","v":0},{"$f":"Dataset[[#This Row],[2025/26 From - Spending review Topic 1]]+Dataset[[#This Row],[2025/26 From - Spending review Topic 2]]+Dataset[[#This Row],[2025/26 From - Spending review Topic 3]]+Dataset[[#This Row],[2025/26 From - Spending review Topic 4]]+Dataset[[#This Row],[2025/26 From - Other reallocations]]","v":0},{"$f":"Dataset[[#This Row],[2026/27 From - Spending review Topic 1]]+Dataset[[#This Row],[2026/27 From - Spending review Topic 2]]+Dataset[[#This Row],[2026/27 From - Spending review Topic 3]]+Dataset[[#This Row],[2026/27 From - Spending review Topic 4]]+Dataset[[#This Row],[2026/27 From - Other reallocations]]","v":0},{"$f":"Dataset[[#This Row],[2024/25 To - Spending review Topic 1]]+Dataset[[#This Row],[2024/25 To - Spending review Topic 2]]+Dataset[[#This Row],[2024/25 To - Spending review Topic 3]]+Dataset[[#This Row],[2024/25 To - Spending review Topic 4]]+Dataset[[#This Row],[2024/25 To - Other reallocations]]","v":0},{"$f":"Dataset[[#This Row],[2025/26 To - Spending review Topic 1]]+Dataset[[#This Row],[2025/26 To - Spending review Topic 2]]+Dataset[[#This Row],[2025/26 To - Spending review Topic 3]]+Dataset[[#This Row],[2025/26 To - Spending review Topic 4]]+Dataset[[#This Row],[2025/26 To - Other reallocations]]","v":0},{"$f":"Dataset[[#This Row],[2026/27 To - Spending review Topic 1]]+Dataset[[#This Row],[2026/27 To - Spending review Topic 2]]+Dataset[[#This Row],[2026/27 To - Spending review Topic 3]]+Dataset[[#This Row],[2026/27 To - Spending review Topic 4]]+Dataset[[#This Row],[2026/27 To - Other reallocations]]","v":0},{"$f":"Dataset[[#This Row],[2024/25 Reduction]]+Dataset[[#This Row],[2024/25 From - Total]]","v":0},{"$f":"Dataset[[#This Row],[2025/26 Reduction]]+Dataset[[#This Row],[2025/26 From - Total]]","v":0},{"$f":"Dataset[[#This Row],[2026/27 Reduction]]+Dataset[[#This Row],[2026/27 From - Total]]","v":0},{"$f":"Dataset[[#This Row],[2023/24 Reduction]]","v":0},{"$f":"SUM(Dataset[[#This Row],[2024/25 Reduction]],Dataset[[#This Row],[2024/25 From - Total]],Dataset[[#This Row],[2024/25 To - Total]])","v":0},{"$f":"SUM(Dataset[[#This Row],[2025/26 Reduction]],Dataset[[#This Row],[2025/26 From - Total]],Dataset[[#This Row],[2025/26 To - Total]])","v":0},{"$f":"SUM(Dataset[[#This Row],[2026/27 Reduction]],Dataset[[#This Row],[2026/27 From - Total]],Dataset[[#This Row],[2026/27 To - Total]])","v":0},{"$f":"Dataset[[#This Row],[2023/24 Baseline]]+Dataset[[#This Row],[2023/24 Total change]]","v":0},{"$f":"Dataset[[#This Row],[2024/25 Baseline]]+Dataset[[#This Row],[2024/25 Total change]]","v":0},{"$f":"Dataset[[#This Row],[2025/26 Baseline]]+Dataset[[#This Row],[2025/26 Total change]]","v":0},{"$f":"Dataset[[#This Row],[2026/27 Baseline]]+Dataset[[#This Row],[2026/27 Total change]]","v":0}]
["NAT|Non-transfer item","26|Municipal bank accounts","2024_25","MTEF2024",26,2,3,44562,675,"26","02","03","044562","000675","26|02|03","02","02","04","44","45","02|02|04|44|45","National","Military Veterans","Socioeconomic Support","Socioeconomic Support Management","Non-transfer item","Capital","Transfers and subsidies","Provinces and municipalities","Municipalities","Municipal bank accounts","Peace and security","Defence and state security","NAT",0,0,0,0,0,0,0,0,0,0,0,null,null,null,null,null,null,null,null,null,null,null,null,null,null,null,null,null,null,null,null,null,null,null,null,null,null,null,null,null,null,null,null,null,null,{"$f":"Dataset[[#This Row],[2024/25 From - Spending review Topic 1]]+Dataset[[#This Row],[2024/25 From - Spending review Topic 2]]+Dataset[[#This Row],[2024/25 From - Spending review Topic 3]]+Dataset[[#This Row],[2024/25 From - Spending review Topic 4]]+Dataset[[#This Row],[2024/25 From - Other reallocations]]","v":0},{"$f":"Dataset[[#This Row],[2025/26 From - Spending review Topic 1]]+Dataset[[#This Row],[2025/26 From - Spending review Topic 2]]+Dataset[[#This Row],[2025/26 From - Spending review Topic 3]]+Dataset[[#This Row],[2025/26 From - Spending review Topic 4]]+Dataset[[#This Row],[2025/26 From - Other reallocations]]","v":0},{"$f":"Dataset[[#This Row],[2026/27 From - Spending review Topic 1]]+Dataset[[#This Row],[2026/27 From - Spending review Topic 2]]+Dataset[[#This Row],[2026/27 From - Spending review Topic 3]]+Dataset[[#This Row],[2026/27 From - Spending review Topic 4]]+Dataset[[#This Row],[2026/27 From - Other reallocations]]","v":0},{"$f":"Dataset[[#This Row],[2024/25 To - Spending review Topic 1]]+Dataset[[#This Row],[2024/25 To - Spending review Topic 2]]+Dataset[[#This Row],[2024/25 To - Spending review Topic 3]]+Dataset[[#This Row],[2024/25 To - Spending review Topic 4]]+Dataset[[#This Row],[2024/25 To - Other reallocations]]","v":0},{"$f":"Dataset[[#This Row],[2025/26 To - Spending review Topic 1]]+Dataset[[#This Row],[2025/26 To - Spending review Topic 2]]+Dataset[[#This Row],[2025/26 To - Spending review Topic 3]]+Dataset[[#This Row],[2025/26 To - Spending review Topic 4]]+Dataset[[#This Row],[2025/26 To - Other reallocations]]","v":0},{"$f":"Dataset[[#This Row],[2026/27 To - Spending review Topic 1]]+Dataset[[#This Row],[2026/27 To - Spending review Topic 2]]+Dataset[[#This Row],[2026/27 To - Spending review Topic 3]]+Dataset[[#This Row],[2026/27 To - Spending review Topic 4]]+Dataset[[#This Row],[2026/27 To - Other reallocations]]","v":0},{"$f":"Dataset[[#This Row],[2024/25 Reduction]]+Dataset[[#This Row],[2024/25 From - Total]]","v":0},{"$f":"Dataset[[#This Row],[2025/26 Reduction]]+Dataset[[#This Row],[2025/26 From - Total]]","v":0},{"$f":"Dataset[[#This Row],[2026/27 Reduction]]+Dataset[[#This Row],[2026/27 From - Total]]","v":0},{"$f":"Dataset[[#This Row],[2023/24 Reduction]]","v":0},{"$f":"SUM(Dataset[[#This Row],[2024/25 Reduction]],Dataset[[#This Row],[2024/25 From - Total]],Dataset[[#This Row],[2024/25 To - Total]])","v":0},{"$f":"SUM(Dataset[[#This Row],[2025/26 Reduction]],Dataset[[#This Row],[2025/26 From - Total]],Dataset[[#This Row],[2025/26 To - Total]])","v":0},{"$f":"SUM(Dataset[[#This Row],[2026/27 Reduction]],Dataset[[#This Row],[2026/27 From - Total]],Dataset[[#This Row],[2026/27 To - Total]])","v":0},{"$f":"Dataset[[#This Row],[2023/24 Baseline]]+Dataset[[#This Row],[2023/24 Total change]]","v":0},{"$f":"Dataset[[#This Row],[2024/25 Baseline]]+Dataset[[#This Row],[2024/25 Total change]]","v":0},{"$f":"Dataset[[#This Row],[2025/26 Baseline]]+Dataset[[#This Row],[2025/26 Total change]]","v":0},{"$f":"Dataset[[#This Row],[2026/27 Baseline]]+Dataset[[#This Row],[2026/27 Total change]]","v":0}]
["NAT|Non-transfer item","26|Departmental agencies (non-business entities)","2024_25","MTEF2024",26,2,3,44563,676,"26","02","03","044563","000676","26|02|03","02","02","05","46","48","02|02|05|46|48","National","Military Veterans","Socioeconomic Support","Socioeconomic Support Management","Non-transfer item","Capital","Transfers and subsidies","Departmental agencies and accounts","Departmental agencies (non-business entities)","Departmental agencies (non-business entities)","Peace and security","Defence and state security","NAT",0,0,0,0,0,0,0,0,0,0,0,null,null,null,null,null,null,null,null,null,null,null,null,null,null,null,null,null,null,null,null,null,null,null,null,null,null,null,null,null,null,null,null,null,null,{"$f":"Dataset[[#This Row],[2024/25 From - Spending review Topic 1]]+Dataset[[#This Row],[2024/25 From - Spending review Topic 2]]+Dataset[[#This Row],[2024/25 From - Spending review Topic 3]]+Dataset[[#This Row],[2024/25 From - Spending review Topic 4]]+Dataset[[#This Row],[2024/25 From - Other reallocations]]","v":0},{"$f":"Dataset[[#This Row],[2025/26 From - Spending review Topic 1]]+Dataset[[#This Row],[2025/26 From - Spending review Topic 2]]+Dataset[[#This Row],[2025/26 From - Spending review Topic 3]]+Dataset[[#This Row],[2025/26 From - Spending review Topic 4]]+Dataset[[#This Row],[2025/26 From - Other reallocations]]","v":0},{"$f":"Dataset[[#This Row],[2026/27 From - Spending review Topic 1]]+Dataset[[#This Row],[2026/27 From - Spending review Topic 2]]+Dataset[[#This Row],[2026/27 From - Spending review Topic 3]]+Dataset[[#This Row],[2026/27 From - Spending review Topic 4]]+Dataset[[#This Row],[2026/27 From - Other reallocations]]","v":0},{"$f":"Dataset[[#This Row],[2024/25 To - Spending review Topic 1]]+Dataset[[#This Row],[2024/25 To - Spending review Topic 2]]+Dataset[[#This Row],[2024/25 To - Spending review Topic 3]]+Dataset[[#This Row],[2024/25 To - Spending review Topic 4]]+Dataset[[#This Row],[2024/25 To - Other reallocations]]","v":0},{"$f":"Dataset[[#This Row],[2025/26 To - Spending review Topic 1]]+Dataset[[#This Row],[2025/26 To - Spending review Topic 2]]+Dataset[[#This Row],[2025/26 To - Spending review Topic 3]]+Dataset[[#This Row],[2025/26 To - Spending review Topic 4]]+Dataset[[#This Row],[2025/26 To - Other reallocations]]","v":0},{"$f":"Dataset[[#This Row],[2026/27 To - Spending review Topic 1]]+Dataset[[#This Row],[2026/27 To - Spending review Topic 2]]+Dataset[[#This Row],[2026/27 To - Spending review Topic 3]]+Dataset[[#This Row],[2026/27 To - Spending review Topic 4]]+Dataset[[#This Row],[2026/27 To - Other reallocations]]","v":0},{"$f":"Dataset[[#This Row],[2024/25 Reduction]]+Dataset[[#This Row],[2024/25 From - Total]]","v":0},{"$f":"Dataset[[#This Row],[2025/26 Reduction]]+Dataset[[#This Row],[2025/26 From - Total]]","v":0},{"$f":"Dataset[[#This Row],[2026/27 Reduction]]+Dataset[[#This Row],[2026/27 From - Total]]","v":0},{"$f":"Dataset[[#This Row],[2023/24 Reduction]]","v":0},{"$f":"SUM(Dataset[[#This Row],[2024/25 Reduction]],Dataset[[#This Row],[2024/25 From - Total]],Dataset[[#This Row],[2024/25 To - Total]])","v":0},{"$f":"SUM(Dataset[[#This Row],[2025/26 Reduction]],Dataset[[#This Row],[2025/26 From - Total]],Dataset[[#This Row],[2025/26 To - Total]])","v":0},{"$f":"SUM(Dataset[[#This Row],[2026/27 Reduction]],Dataset[[#This Row],[2026/27 From - Total]],Dataset[[#This Row],[2026/27 To - Total]])","v":0},{"$f":"Dataset[[#This Row],[2023/24 Baseline]]+Dataset[[#This Row],[2023/24 Total change]]","v":0},{"$f":"Dataset[[#This Row],[2024/25 Baseline]]+Dataset[[#This Row],[2024/25 Total change]]","v":0},{"$f":"Dataset[[#This Row],[2025/26 Baseline]]+Dataset[[#This Row],[2025/26 Total change]]","v":0},{"$f":"Dataset[[#This Row],[2026/27 Baseline]]+Dataset[[#This Row],[2026/27 Total change]]","v":0}]
["NAT|Non-transfer item","26|Higher education institutions","2024_25","MTEF2024",26,2,3,44564,677,"26","02","03","044564","000677","26|02|03","02","02","06","47","49","02|02|06|47|49","National","Military Veterans","Socioeconomic Support","Socioeconomic Support Management","Non-transfer item","Capital","Transfers and subsidies","Higher education institutions","Higher education institutions","Higher education institutions","Peace and security","Defence and state security","NAT",0,0,0,0,0,0,0,0,0,0,0,null,null,null,null,null,null,null,null,null,null,null,null,null,null,null,null,null,null,null,null,null,null,null,null,null,null,null,null,null,null,null,null,null,null,{"$f":"Dataset[[#This Row],[2024/25 From - Spending review Topic 1]]+Dataset[[#This Row],[2024/25 From - Spending review Topic 2]]+Dataset[[#This Row],[2024/25 From - Spending review Topic 3]]+Dataset[[#This Row],[2024/25 From - Spending review Topic 4]]+Dataset[[#This Row],[2024/25 From - Other reallocations]]","v":0},{"$f":"Dataset[[#This Row],[2025/26 From - Spending review Topic 1]]+Dataset[[#This Row],[2025/26 From - Spending review Topic 2]]+Dataset[[#This Row],[2025/26 From - Spending review Topic 3]]+Dataset[[#This Row],[2025/26 From - Spending review Topic 4]]+Dataset[[#This Row],[2025/26 From - Other reallocations]]","v":0},{"$f":"Dataset[[#This Row],[2026/27 From - Spending review Topic 1]]+Dataset[[#This Row],[2026/27 From - Spending review Topic 2]]+Dataset[[#This Row],[2026/27 From - Spending review Topic 3]]+Dataset[[#This Row],[2026/27 From - Spending review Topic 4]]+Dataset[[#This Row],[2026/27 From - Other reallocations]]","v":0},{"$f":"Dataset[[#This Row],[2024/25 To - Spending review Topic 1]]+Dataset[[#This Row],[2024/25 To - Spending review Topic 2]]+Dataset[[#This Row],[2024/25 To - Spending review Topic 3]]+Dataset[[#This Row],[2024/25 To - Spending review Topic 4]]+Dataset[[#This Row],[2024/25 To - Other reallocations]]","v":0},{"$f":"Dataset[[#This Row],[2025/26 To - Spending review Topic 1]]+Dataset[[#This Row],[2025/26 To - Spending review Topic 2]]+Dataset[[#This Row],[2025/26 To - Spending review Topic 3]]+Dataset[[#This Row],[2025/26 To - Spending review Topic 4]]+Dataset[[#This Row],[2025/26 To - Other reallocations]]","v":0},{"$f":"Dataset[[#This Row],[2026/27 To - Spending review Topic 1]]+Dataset[[#This Row],[2026/27 To - Spending review Topic 2]]+Dataset[[#This Row],[2026/27 To - Spending review Topic 3]]+Dataset[[#This Row],[2026/27 To - Spending review Topic 4]]+Dataset[[#This Row],[2026/27 To - Other reallocations]]","v":0},{"$f":"Dataset[[#This Row],[2024/25 Reduction]]+Dataset[[#This Row],[2024/25 From - Total]]","v":0},{"$f":"Dataset[[#This Row],[2025/26 Reduction]]+Dataset[[#This Row],[2025/26 From - Total]]","v":0},{"$f":"Dataset[[#This Row],[2026/27 Reduction]]+Dataset[[#This Row],[2026/27 From - Total]]","v":0},{"$f":"Dataset[[#This Row],[2023/24 Reduction]]","v":0},{"$f":"SUM(Dataset[[#This Row],[2024/25 Reduction]],Dataset[[#This Row],[2024/25 From - Total]],Dataset[[#This Row],[2024/25 To - Total]])","v":0},{"$f":"SUM(Dataset[[#This Row],[2025/26 Reduction]],Dataset[[#This Row],[2025/26 From - Total]],Dataset[[#This Row],[2025/26 To - Total]])","v":0},{"$f":"SUM(Dataset[[#This Row],[2026/27 Reduction]],Dataset[[#This Row],[2026/27 From - Total]],Dataset[[#This Row],[2026/27 To - Total]])","v":0},{"$f":"Dataset[[#This Row],[2023/24 Baseline]]+Dataset[[#This Row],[2023/24 Total change]]","v":0},{"$f":"Dataset[[#This Row],[2024/25 Baseline]]+Dataset[[#This Row],[2024/25 Total change]]","v":0},{"$f":"Dataset[[#This Row],[2025/26 Baseline]]+Dataset[[#This Row],[2025/26 Total change]]","v":0},{"$f":"Dataset[[#This Row],[2026/27 Baseline]]+Dataset[[#This Row],[2026/27 Total change]]","v":0}]
["NAT|Non-transfer item","26|Foreign governments and international organisations","2024_25","MTEF2024",26,2,3,44565,678,"26","02","03","044565","000678","26|02|03","02","02","07","48","50","02|02|07|48|50","National","Military Veterans","Socioeconomic Support","Socioeconomic Support Management","Non-transfer item","Capital","Transfers and subsidies","Foreign governments and international organisations","Foreign governments and international organisations","Foreign governments and international organisations","Peace and security","Defence and state security","NAT",0,0,0,0,0,0,0,0,0,0,0,null,null,null,null,null,null,null,null,null,null,null,null,null,null,null,null,null,null,null,null,null,null,null,null,null,null,null,null,null,null,null,null,null,null,{"$f":"Dataset[[#This Row],[2024/25 From - Spending review Topic 1]]+Dataset[[#This Row],[2024/25 From - Spending review Topic 2]]+Dataset[[#This Row],[2024/25 From - Spending review Topic 3]]+Dataset[[#This Row],[2024/25 From - Spending review Topic 4]]+Dataset[[#This Row],[2024/25 From - Other reallocations]]","v":0},{"$f":"Dataset[[#This Row],[2025/26 From - Spending review Topic 1]]+Dataset[[#This Row],[2025/26 From - Spending review Topic 2]]+Dataset[[#This Row],[2025/26 From - Spending review Topic 3]]+Dataset[[#This Row],[2025/26 From - Spending review Topic 4]]+Dataset[[#This Row],[2025/26 From - Other reallocations]]","v":0},{"$f":"Dataset[[#This Row],[2026/27 From - Spending review Topic 1]]+Dataset[[#This Row],[2026/27 From - Spending review Topic 2]]+Dataset[[#This Row],[2026/27 From - Spending review Topic 3]]+Dataset[[#This Row],[2026/27 From - Spending review Topic 4]]+Dataset[[#This Row],[2026/27 From - Other reallocations]]","v":0},{"$f":"Dataset[[#This Row],[2024/25 To - Spending review Topic 1]]+Dataset[[#This Row],[2024/25 To - Spending review Topic 2]]+Dataset[[#This Row],[2024/25 To - Spending review Topic 3]]+Dataset[[#This Row],[2024/25 To - Spending review Topic 4]]+Dataset[[#This Row],[2024/25 To - Other reallocations]]","v":0},{"$f":"Dataset[[#This Row],[2025/26 To - Spending review Topic 1]]+Dataset[[#This Row],[2025/26 To - Spending review Topic 2]]+Dataset[[#This Row],[2025/26 To - Spending review Topic 3]]+Dataset[[#This Row],[2025/26 To - Spending review Topic 4]]+Dataset[[#This Row],[2025/26 To - Other reallocations]]","v":0},{"$f":"Dataset[[#This Row],[2026/27 To - Spending review Topic 1]]+Dataset[[#This Row],[2026/27 To - Spending review Topic 2]]+Dataset[[#This Row],[2026/27 To - Spending review Topic 3]]+Dataset[[#This Row],[2026/27 To - Spending review Topic 4]]+Dataset[[#This Row],[2026/27 To - Other reallocations]]","v":0},{"$f":"Dataset[[#This Row],[2024/25 Reduction]]+Dataset[[#This Row],[2024/25 From - Total]]","v":0},{"$f":"Dataset[[#This Row],[2025/26 Reduction]]+Dataset[[#This Row],[2025/26 From - Total]]","v":0},{"$f":"Dataset[[#This Row],[2026/27 Reduction]]+Dataset[[#This Row],[2026/27 From - Total]]","v":0},{"$f":"Dataset[[#This Row],[2023/24 Reduction]]","v":0},{"$f":"SUM(Dataset[[#This Row],[2024/25 Reduction]],Dataset[[#This Row],[2024/25 From - Total]],Dataset[[#This Row],[2024/25 To - Total]])","v":0},{"$f":"SUM(Dataset[[#This Row],[2025/26 Reduction]],Dataset[[#This Row],[2025/26 From - Total]],Dataset[[#This Row],[2025/26 To - Total]])","v":0},{"$f":"SUM(Dataset[[#This Row],[2026/27 Reduction]],Dataset[[#This Row],[2026/27 From - Total]],Dataset[[#This Row],[2026/27 To - Total]])","v":0},{"$f":"Dataset[[#This Row],[2023/24 Baseline]]+Dataset[[#This Row],[2023/24 Total change]]","v":0},{"$f":"Dataset[[#This Row],[2024/25 Baseline]]+Dataset[[#This Row],[2024/25 Total change]]","v":0},{"$f":"Dataset[[#This Row],[2025/26 Baseline]]+Dataset[[#This Row],[2025/26 Total change]]","v":0},{"$f":"Dataset[[#This Row],[2026/27 Baseline]]+Dataset[[#This Row],[2026/27 Total change]]","v":0}]
["NAT|Non-transfer item","26|Subsidies on products and production (pc)","2024_25","MTEF2024",26,2,3,44566,679,"26","02","03","044566","000679","26|02|03","02","02","08","49","51","02|02|08|49|51","National","Military Veterans","Socioeconomic Support","Socioeconomic Support Management","Non-transfer item","Capital","Transfers and subsidies","Public corporations and private enterprises","Public corporations","Subsidies on products and production (pc)","Peace and security","Defence and state security","NAT",0,0,0,0,0,0,0,0,0,0,0,null,null,null,null,null,null,null,null,null,null,null,null,null,null,null,null,null,null,null,null,null,null,null,null,null,null,null,null,null,null,null,null,null,null,{"$f":"Dataset[[#This Row],[2024/25 From - Spending review Topic 1]]+Dataset[[#This Row],[2024/25 From - Spending review Topic 2]]+Dataset[[#This Row],[2024/25 From - Spending review Topic 3]]+Dataset[[#This Row],[2024/25 From - Spending review Topic 4]]+Dataset[[#This Row],[2024/25 From - Other reallocations]]","v":0},{"$f":"Dataset[[#This Row],[2025/26 From - Spending review Topic 1]]+Dataset[[#This Row],[2025/26 From - Spending review Topic 2]]+Dataset[[#This Row],[2025/26 From - Spending review Topic 3]]+Dataset[[#This Row],[2025/26 From - Spending review Topic 4]]+Dataset[[#This Row],[2025/26 From - Other reallocations]]","v":0},{"$f":"Dataset[[#This Row],[2026/27 From - Spending review Topic 1]]+Dataset[[#This Row],[2026/27 From - Spending review Topic 2]]+Dataset[[#This Row],[2026/27 From - Spending review Topic 3]]+Dataset[[#This Row],[2026/27 From - Spending review Topic 4]]+Dataset[[#This Row],[2026/27 From - Other reallocations]]","v":0},{"$f":"Dataset[[#This Row],[2024/25 To - Spending review Topic 1]]+Dataset[[#This Row],[2024/25 To - Spending review Topic 2]]+Dataset[[#This Row],[2024/25 To - Spending review Topic 3]]+Dataset[[#This Row],[2024/25 To - Spending review Topic 4]]+Dataset[[#This Row],[2024/25 To - Other reallocations]]","v":0},{"$f":"Dataset[[#This Row],[2025/26 To - Spending review Topic 1]]+Dataset[[#This Row],[2025/26 To - Spending review Topic 2]]+Dataset[[#This Row],[2025/26 To - Spending review Topic 3]]+Dataset[[#This Row],[2025/26 To - Spending review Topic 4]]+Dataset[[#This Row],[2025/26 To - Other reallocations]]","v":0},{"$f":"Dataset[[#This Row],[2026/27 To - Spending review Topic 1]]+Dataset[[#This Row],[2026/27 To - Spending review Topic 2]]+Dataset[[#This Row],[2026/27 To - Spending review Topic 3]]+Dataset[[#This Row],[2026/27 To - Spending review Topic 4]]+Dataset[[#This Row],[2026/27 To - Other reallocations]]","v":0},{"$f":"Dataset[[#This Row],[2024/25 Reduction]]+Dataset[[#This Row],[2024/25 From - Total]]","v":0},{"$f":"Dataset[[#This Row],[2025/26 Reduction]]+Dataset[[#This Row],[2025/26 From - Total]]","v":0},{"$f":"Dataset[[#This Row],[2026/27 Reduction]]+Dataset[[#This Row],[2026/27 From - Total]]","v":0},{"$f":"Dataset[[#This Row],[2023/24 Reduction]]","v":0},{"$f":"SUM(Dataset[[#This Row],[2024/25 Reduction]],Dataset[[#This Row],[2024/25 From - Total]],Dataset[[#This Row],[2024/25 To - Total]])","v":0},{"$f":"SUM(Dataset[[#This Row],[2025/26 Reduction]],Dataset[[#This Row],[2025/26 From - Total]],Dataset[[#This Row],[2025/26 To - Total]])","v":0},{"$f":"SUM(Dataset[[#This Row],[2026/27 Reduction]],Dataset[[#This Row],[2026/27 From - Total]],Dataset[[#This Row],[2026/27 To - Total]])","v":0},{"$f":"Dataset[[#This Row],[2023/24 Baseline]]+Dataset[[#This Row],[2023/24 Total change]]","v":0},{"$f":"Dataset[[#This Row],[2024/25 Baseline]]+Dataset[[#This Row],[2024/25 Total change]]","v":0},{"$f":"Dataset[[#This Row],[2025/26 Baseline]]+Dataset[[#This Row],[2025/26 Total change]]","v":0},{"$f":"Dataset[[#This Row],[2026/27 Baseline]]+Dataset[[#This Row],[2026/27 Total change]]","v":0}]
["NAT|Non-transfer item","26|Other transfers to public corporations","2024_25","MTEF2024",26,2,3,44567,680,"26","02","03","044567","000680","26|02|03","02","02","08","49","52","02|02|08|49|52","National","Military Veterans","Socioeconomic Support","Socioeconomic Support Management","Non-transfer item","Capital","Transfers and subsidies","Public corporations and private enterprises","Public corporations","Other transfers to public corporations","Peace and security","Defence and state security","NAT",0,0,0,0,0,0,0,0,0,0,0,null,null,null,null,null,null,null,null,null,null,null,null,null,null,null,null,null,null,null,null,null,null,null,null,null,null,null,null,null,null,null,null,null,null,{"$f":"Dataset[[#This Row],[2024/25 From - Spending review Topic 1]]+Dataset[[#This Row],[2024/25 From - Spending review Topic 2]]+Dataset[[#This Row],[2024/25 From - Spending review Topic 3]]+Dataset[[#This Row],[2024/25 From - Spending review Topic 4]]+Dataset[[#This Row],[2024/25 From - Other reallocations]]","v":0},{"$f":"Dataset[[#This Row],[2025/26 From - Spending review Topic 1]]+Dataset[[#This Row],[2025/26 From - Spending review Topic 2]]+Dataset[[#This Row],[2025/26 From - Spending review Topic 3]]+Dataset[[#This Row],[2025/26 From - Spending review Topic 4]]+Dataset[[#This Row],[2025/26 From - Other reallocations]]","v":0},{"$f":"Dataset[[#This Row],[2026/27 From - Spending review Topic 1]]+Dataset[[#This Row],[2026/27 From - Spending review Topic 2]]+Dataset[[#This Row],[2026/27 From - Spending review Topic 3]]+Dataset[[#This Row],[2026/27 From - Spending review Topic 4]]+Dataset[[#This Row],[2026/27 From - Other reallocations]]","v":0},{"$f":"Dataset[[#This Row],[2024/25 To - Spending review Topic 1]]+Dataset[[#This Row],[2024/25 To - Spending review Topic 2]]+Dataset[[#This Row],[2024/25 To - Spending review Topic 3]]+Dataset[[#This Row],[2024/25 To - Spending review Topic 4]]+Dataset[[#This Row],[2024/25 To - Other reallocations]]","v":0},{"$f":"Dataset[[#This Row],[2025/26 To - Spending review Topic 1]]+Dataset[[#This Row],[2025/26 To - Spending review Topic 2]]+Dataset[[#This Row],[2025/26 To - Spending review Topic 3]]+Dataset[[#This Row],[2025/26 To - Spending review Topic 4]]+Dataset[[#This Row],[2025/26 To - Other reallocations]]","v":0},{"$f":"Dataset[[#This Row],[2026/27 To - Spending review Topic 1]]+Dataset[[#This Row],[2026/27 To - Spending review Topic 2]]+Dataset[[#This Row],[2026/27 To - Spending review Topic 3]]+Dataset[[#This Row],[2026/27 To - Spending review Topic 4]]+Dataset[[#This Row],[2026/27 To - Other reallocations]]","v":0},{"$f":"Dataset[[#This Row],[2024/25 Reduction]]+Dataset[[#This Row],[2024/25 From - Total]]","v":0},{"$f":"Dataset[[#This Row],[2025/26 Reduction]]+Dataset[[#This Row],[2025/26 From - Total]]","v":0},{"$f":"Dataset[[#This Row],[2026/27 Reduction]]+Dataset[[#This Row],[2026/27 From - Total]]","v":0},{"$f":"Dataset[[#This Row],[2023/24 Reduction]]","v":0},{"$f":"SUM(Dataset[[#This Row],[2024/25 Reduction]],Dataset[[#This Row],[2024/25 From - Total]],Dataset[[#This Row],[2024/25 To - Total]])","v":0},{"$f":"SUM(Dataset[[#This Row],[2025/26 Reduction]],Dataset[[#This Row],[2025/26 From - Total]],Dataset[[#This Row],[2025/26 To - Total]])","v":0},{"$f":"SUM(Dataset[[#This Row],[2026/27 Reduction]],Dataset[[#This Row],[2026/27 From - Total]],Dataset[[#This Row],[2026/27 To - Total]])","v":0},{"$f":"Dataset[[#This Row],[2023/24 Baseline]]+Dataset[[#This Row],[2023/24 Total change]]","v":0},{"$f":"Dataset[[#This Row],[2024/25 Baseline]]+Dataset[[#This Row],[2024/25 Total change]]","v":0},{"$f":"Dataset[[#This Row],[2025/26 Baseline]]+Dataset[[#This Row],[2025/26 Total change]]","v":0},{"$f":"Dataset[[#This Row],[2026/27 Baseline]]+Dataset[[#This Row],[2026/27 Total change]]","v":0}]
["NAT|Non-transfer item","26|Other transfers to private enterprises","2024_25","MTEF2024",26,2,3,44568,681,"26","02","03","044568","000681","26|02|03","02","02","08","50","54","02|02|08|50|54","National","Military Veterans","Socioeconomic Support","Socioeconomic Support Management","Non-transfer item","Capital","Transfers and subsidies","Public corporations and private enterprises","Private enterprises","Other transfers to private enterprises","Peace and security","Defence and state security","NAT",0,0,0,0,0,0,0,0,0,0,0,null,null,null,null,null,null,null,null,null,null,null,null,null,null,null,null,null,null,null,null,null,null,null,null,null,null,null,null,null,null,null,null,null,null,{"$f":"Dataset[[#This Row],[2024/25 From - Spending review Topic 1]]+Dataset[[#This Row],[2024/25 From - Spending review Topic 2]]+Dataset[[#This Row],[2024/25 From - Spending review Topic 3]]+Dataset[[#This Row],[2024/25 From - Spending review Topic 4]]+Dataset[[#This Row],[2024/25 From - Other reallocations]]","v":0},{"$f":"Dataset[[#This Row],[2025/26 From - Spending review Topic 1]]+Dataset[[#This Row],[2025/26 From - Spending review Topic 2]]+Dataset[[#This Row],[2025/26 From - Spending review Topic 3]]+Dataset[[#This Row],[2025/26 From - Spending review Topic 4]]+Dataset[[#This Row],[2025/26 From - Other reallocations]]","v":0},{"$f":"Dataset[[#This Row],[2026/27 From - Spending review Topic 1]]+Dataset[[#This Row],[2026/27 From - Spending review Topic 2]]+Dataset[[#This Row],[2026/27 From - Spending review Topic 3]]+Dataset[[#This Row],[2026/27 From - Spending review Topic 4]]+Dataset[[#This Row],[2026/27 From - Other reallocations]]","v":0},{"$f":"Dataset[[#This Row],[2024/25 To - Spending review Topic 1]]+Dataset[[#This Row],[2024/25 To - Spending review Topic 2]]+Dataset[[#This Row],[2024/25 To - Spending review Topic 3]]+Dataset[[#This Row],[2024/25 To - Spending review Topic 4]]+Dataset[[#This Row],[2024/25 To - Other reallocations]]","v":0},{"$f":"Dataset[[#This Row],[2025/26 To - Spending review Topic 1]]+Dataset[[#This Row],[2025/26 To - Spending review Topic 2]]+Dataset[[#This Row],[2025/26 To - Spending review Topic 3]]+Dataset[[#This Row],[2025/26 To - Spending review Topic 4]]+Dataset[[#This Row],[2025/26 To - Other reallocations]]","v":0},{"$f":"Dataset[[#This Row],[2026/27 To - Spending review Topic 1]]+Dataset[[#This Row],[2026/27 To - Spending review Topic 2]]+Dataset[[#This Row],[2026/27 To - Spending review Topic 3]]+Dataset[[#This Row],[2026/27 To - Spending review Topic 4]]+Dataset[[#This Row],[2026/27 To - Other reallocations]]","v":0},{"$f":"Dataset[[#This Row],[2024/25 Reduction]]+Dataset[[#This Row],[2024/25 From - Total]]","v":0},{"$f":"Dataset[[#This Row],[2025/26 Reduction]]+Dataset[[#This Row],[2025/26 From - Total]]","v":0},{"$f":"Dataset[[#This Row],[2026/27 Reduction]]+Dataset[[#This Row],[2026/27 From - Total]]","v":0},{"$f":"Dataset[[#This Row],[2023/24 Reduction]]","v":0},{"$f":"SUM(Dataset[[#This Row],[2024/25 Reduction]],Dataset[[#This Row],[2024/25 From - Total]],Dataset[[#This Row],[2024/25 To - Total]])","v":0},{"$f":"SUM(Dataset[[#This Row],[2025/26 Reduction]],Dataset[[#This Row],[2025/26 From - Total]],Dataset[[#This Row],[2025/26 To - Total]])","v":0},{"$f":"SUM(Dataset[[#This Row],[2026/27 Reduction]],Dataset[[#This Row],[2026/27 From - Total]],Dataset[[#This Row],[2026/27 To - Total]])","v":0},{"$f":"Dataset[[#This Row],[2023/24 Baseline]]+Dataset[[#This Row],[2023/24 Total change]]","v":0},{"$f":"Dataset[[#This Row],[2024/25 Baseline]]+Dataset[[#This Row],[2024/25 Total change]]","v":0},{"$f":"Dataset[[#This Row],[2025/26 Baseline]]+Dataset[[#This Row],[2025/26 Total change]]","v":0},{"$f":"Dataset[[#This Row],[2026/27 Baseline]]+Dataset[[#This Row],[2026/27 Total change]]","v":0}]
["NAT|Non-transfer item","26|Non-profit institutions","2024_25","MTEF2024",26,2,3,44569,682,"26","02","03","044569","000682","26|02|03","02","02","09","51","55","02|02|09|51|55","National","Military Veterans","Socioeconomic Support","Socioeconomic Support Management","Non-transfer item","Capital","Transfers and subsidies","Non-profit institutions","Non-profit institutions","Non-profit institutions","Peace and security","Defence and state security","NAT",0,0,0,0,0,0,0,0,0,0,0,null,null,null,null,null,null,null,null,null,null,null,null,null,null,null,null,null,null,null,null,null,null,null,null,null,null,null,null,null,null,null,null,null,null,{"$f":"Dataset[[#This Row],[2024/25 From - Spending review Topic 1]]+Dataset[[#This Row],[2024/25 From - Spending review Topic 2]]+Dataset[[#This Row],[2024/25 From - Spending review Topic 3]]+Dataset[[#This Row],[2024/25 From - Spending review Topic 4]]+Dataset[[#This Row],[2024/25 From - Other reallocations]]","v":0},{"$f":"Dataset[[#This Row],[2025/26 From - Spending review Topic 1]]+Dataset[[#This Row],[2025/26 From - Spending review Topic 2]]+Dataset[[#This Row],[2025/26 From - Spending review Topic 3]]+Dataset[[#This Row],[2025/26 From - Spending review Topic 4]]+Dataset[[#This Row],[2025/26 From - Other reallocations]]","v":0},{"$f":"Dataset[[#This Row],[2026/27 From - Spending review Topic 1]]+Dataset[[#This Row],[2026/27 From - Spending review Topic 2]]+Dataset[[#This Row],[2026/27 From - Spending review Topic 3]]+Dataset[[#This Row],[2026/27 From - Spending review Topic 4]]+Dataset[[#This Row],[2026/27 From - Other reallocations]]","v":0},{"$f":"Dataset[[#This Row],[2024/25 To - Spending review Topic 1]]+Dataset[[#This Row],[2024/25 To - Spending review Topic 2]]+Dataset[[#This Row],[2024/25 To - Spending review Topic 3]]+Dataset[[#This Row],[2024/25 To - Spending review Topic 4]]+Dataset[[#This Row],[2024/25 To - Other reallocations]]","v":0},{"$f":"Dataset[[#This Row],[2025/26 To - Spending review Topic 1]]+Dataset[[#This Row],[2025/26 To - Spending review Topic 2]]+Dataset[[#This Row],[2025/26 To - Spending review Topic 3]]+Dataset[[#This Row],[2025/26 To - Spending review Topic 4]]+Dataset[[#This Row],[2025/26 To - Other reallocations]]","v":0},{"$f":"Dataset[[#This Row],[2026/27 To - Spending review Topic 1]]+Dataset[[#This Row],[2026/27 To - Spending review Topic 2]]+Dataset[[#This Row],[2026/27 To - Spending review Topic 3]]+Dataset[[#This Row],[2026/27 To - Spending review Topic 4]]+Dataset[[#This Row],[2026/27 To - Other reallocations]]","v":0},{"$f":"Dataset[[#This Row],[2024/25 Reduction]]+Dataset[[#This Row],[2024/25 From - Total]]","v":0},{"$f":"Dataset[[#This Row],[2025/26 Reduction]]+Dataset[[#This Row],[2025/26 From - Total]]","v":0},{"$f":"Dataset[[#This Row],[2026/27 Reduction]]+Dataset[[#This Row],[2026/27 From - Total]]","v":0},{"$f":"Dataset[[#This Row],[2023/24 Reduction]]","v":0},{"$f":"SUM(Dataset[[#This Row],[2024/25 Reduction]],Dataset[[#This Row],[2024/25 From - Total]],Dataset[[#This Row],[2024/25 To - Total]])","v":0},{"$f":"SUM(Dataset[[#This Row],[2025/26 Reduction]],Dataset[[#This Row],[2025/26 From - Total]],Dataset[[#This Row],[2025/26 To - Total]])","v":0},{"$f":"SUM(Dataset[[#This Row],[2026/27 Reduction]],Dataset[[#This Row],[2026/27 From - Total]],Dataset[[#This Row],[2026/27 To - Total]])","v":0},{"$f":"Dataset[[#This Row],[2023/24 Baseline]]+Dataset[[#This Row],[2023/24 Total change]]","v":0},{"$f":"Dataset[[#This Row],[2024/25 Baseline]]+Dataset[[#This Row],[2024/25 Total change]]","v":0},{"$f":"Dataset[[#This Row],[2025/26 Baseline]]+Dataset[[#This Row],[2025/26 Total change]]","v":0},{"$f":"Dataset[[#This Row],[2026/27 Baseline]]+Dataset[[#This Row],[2026/27 Total change]]","v":0}]
["NAT|Non-transfer item","26|Other transfers to households","2024_25","MTEF2024",26,2,3,44570,683,"26","02","03","044570","000683","26|02|03","02","02","10","53","57","02|02|10|53|57","National","Military Veterans","Socioeconomic Support","Socioeconomic Support Management","Non-transfer item","Capital","Transfers and subsidies","Households","Other transfers to households","Other transfers to households","Peace and security","Defence and state security","NAT",0,0,0,0,0,0,0,0,0,0,0,null,null,null,null,null,null,null,null,null,null,null,null,null,null,null,null,null,null,null,null,null,null,null,null,null,null,null,null,null,null,null,null,null,null,{"$f":"Dataset[[#This Row],[2024/25 From - Spending review Topic 1]]+Dataset[[#This Row],[2024/25 From - Spending review Topic 2]]+Dataset[[#This Row],[2024/25 From - Spending review Topic 3]]+Dataset[[#This Row],[2024/25 From - Spending review Topic 4]]+Dataset[[#This Row],[2024/25 From - Other reallocations]]","v":0},{"$f":"Dataset[[#This Row],[2025/26 From - Spending review Topic 1]]+Dataset[[#This Row],[2025/26 From - Spending review Topic 2]]+Dataset[[#This Row],[2025/26 From - Spending review Topic 3]]+Dataset[[#This Row],[2025/26 From - Spending review Topic 4]]+Dataset[[#This Row],[2025/26 From - Other reallocations]]","v":0},{"$f":"Dataset[[#This Row],[2026/27 From - Spending review Topic 1]]+Dataset[[#This Row],[2026/27 From - Spending review Topic 2]]+Dataset[[#This Row],[2026/27 From - Spending review Topic 3]]+Dataset[[#This Row],[2026/27 From - Spending review Topic 4]]+Dataset[[#This Row],[2026/27 From - Other reallocations]]","v":0},{"$f":"Dataset[[#This Row],[2024/25 To - Spending review Topic 1]]+Dataset[[#This Row],[2024/25 To - Spending review Topic 2]]+Dataset[[#This Row],[2024/25 To - Spending review Topic 3]]+Dataset[[#This Row],[2024/25 To - Spending review Topic 4]]+Dataset[[#This Row],[2024/25 To - Other reallocations]]","v":0},{"$f":"Dataset[[#This Row],[2025/26 To - Spending review Topic 1]]+Dataset[[#This Row],[2025/26 To - Spending review Topic 2]]+Dataset[[#This Row],[2025/26 To - Spending review Topic 3]]+Dataset[[#This Row],[2025/26 To - Spending review Topic 4]]+Dataset[[#This Row],[2025/26 To - Other reallocations]]","v":0},{"$f":"Dataset[[#This Row],[2026/27 To - Spending review Topic 1]]+Dataset[[#This Row],[2026/27 To - Spending review Topic 2]]+Dataset[[#This Row],[2026/27 To - Spending review Topic 3]]+Dataset[[#This Row],[2026/27 To - Spending review Topic 4]]+Dataset[[#This Row],[2026/27 To - Other reallocations]]","v":0},{"$f":"Dataset[[#This Row],[2024/25 Reduction]]+Dataset[[#This Row],[2024/25 From - Total]]","v":0},{"$f":"Dataset[[#This Row],[2025/26 Reduction]]+Dataset[[#This Row],[2025/26 From - Total]]","v":0},{"$f":"Dataset[[#This Row],[2026/27 Reduction]]+Dataset[[#This Row],[2026/27 From - Total]]","v":0},{"$f":"Dataset[[#This Row],[2023/24 Reduction]]","v":0},{"$f":"SUM(Dataset[[#This Row],[2024/25 Reduction]],Dataset[[#This Row],[2024/25 From - Total]],Dataset[[#This Row],[2024/25 To - Total]])","v":0},{"$f":"SUM(Dataset[[#This Row],[2025/26 Reduction]],Dataset[[#This Row],[2025/26 From - Total]],Dataset[[#This Row],[2025/26 To - Total]])","v":0},{"$f":"SUM(Dataset[[#This Row],[2026/27 Reduction]],Dataset[[#This Row],[2026/27 From - Total]],Dataset[[#This Row],[2026/27 To - Total]])","v":0},{"$f":"Dataset[[#This Row],[2023/24 Baseline]]+Dataset[[#This Row],[2023/24 Total change]]","v":0},{"$f":"Dataset[[#This Row],[2024/25 Baseline]]+Dataset[[#This Row],[2024/25 Total change]]","v":0},{"$f":"Dataset[[#This Row],[2025/26 Baseline]]+Dataset[[#This Row],[2025/26 Total change]]","v":0},{"$f":"Dataset[[#This Row],[2026/27 Baseline]]+Dataset[[#This Row],[2026/27 Total change]]","v":0}]
["NAT|Non-transfer item","26|Buildings","2024_25","MTEF2024",26,2,3,44571,684,"26","02","03","044571","000684","26|02|03","02","03","11","54","58","02|03|11|54|58","National","Military Veterans","Socioeconomic Support","Socioeconomic Support Management","Non-transfer item","Capital","Payments for capital assets","Buildings and other fixed structures","Buildings","Buildings","Peace and security","Defence and state security","NAT",0,0,0,0,0,0,0,0,0,0,0,null,null,null,null,null,null,null,null,null,null,null,null,null,null,null,null,null,null,null,null,null,null,null,null,null,null,null,null,null,null,null,null,null,null,{"$f":"Dataset[[#This Row],[2024/25 From - Spending review Topic 1]]+Dataset[[#This Row],[2024/25 From - Spending review Topic 2]]+Dataset[[#This Row],[2024/25 From - Spending review Topic 3]]+Dataset[[#This Row],[2024/25 From - Spending review Topic 4]]+Dataset[[#This Row],[2024/25 From - Other reallocations]]","v":0},{"$f":"Dataset[[#This Row],[2025/26 From - Spending review Topic 1]]+Dataset[[#This Row],[2025/26 From - Spending review Topic 2]]+Dataset[[#This Row],[2025/26 From - Spending review Topic 3]]+Dataset[[#This Row],[2025/26 From - Spending review Topic 4]]+Dataset[[#This Row],[2025/26 From - Other reallocations]]","v":0},{"$f":"Dataset[[#This Row],[2026/27 From - Spending review Topic 1]]+Dataset[[#This Row],[2026/27 From - Spending review Topic 2]]+Dataset[[#This Row],[2026/27 From - Spending review Topic 3]]+Dataset[[#This Row],[2026/27 From - Spending review Topic 4]]+Dataset[[#This Row],[2026/27 From - Other reallocations]]","v":0},{"$f":"Dataset[[#This Row],[2024/25 To - Spending review Topic 1]]+Dataset[[#This Row],[2024/25 To - Spending review Topic 2]]+Dataset[[#This Row],[2024/25 To - Spending review Topic 3]]+Dataset[[#This Row],[2024/25 To - Spending review Topic 4]]+Dataset[[#This Row],[2024/25 To - Other reallocations]]","v":0},{"$f":"Dataset[[#This Row],[2025/26 To - Spending review Topic 1]]+Dataset[[#This Row],[2025/26 To - Spending review Topic 2]]+Dataset[[#This Row],[2025/26 To - Spending review Topic 3]]+Dataset[[#This Row],[2025/26 To - Spending review Topic 4]]+Dataset[[#This Row],[2025/26 To - Other reallocations]]","v":0},{"$f":"Dataset[[#This Row],[2026/27 To - Spending review Topic 1]]+Dataset[[#This Row],[2026/27 To - Spending review Topic 2]]+Dataset[[#This Row],[2026/27 To - Spending review Topic 3]]+Dataset[[#This Row],[2026/27 To - Spending review Topic 4]]+Dataset[[#This Row],[2026/27 To - Other reallocations]]","v":0},{"$f":"Dataset[[#This Row],[2024/25 Reduction]]+Dataset[[#This Row],[2024/25 From - Total]]","v":0},{"$f":"Dataset[[#This Row],[2025/26 Reduction]]+Dataset[[#This Row],[2025/26 From - Total]]","v":0},{"$f":"Dataset[[#This Row],[2026/27 Reduction]]+Dataset[[#This Row],[2026/27 From - Total]]","v":0},{"$f":"Dataset[[#This Row],[2023/24 Reduction]]","v":0},{"$f":"SUM(Dataset[[#This Row],[2024/25 Reduction]],Dataset[[#This Row],[2024/25 From - Total]],Dataset[[#This Row],[2024/25 To - Total]])","v":0},{"$f":"SUM(Dataset[[#This Row],[2025/26 Reduction]],Dataset[[#This Row],[2025/26 From - Total]],Dataset[[#This Row],[2025/26 To - Total]])","v":0},{"$f":"SUM(Dataset[[#This Row],[2026/27 Reduction]],Dataset[[#This Row],[2026/27 From - Total]],Dataset[[#This Row],[2026/27 To - Total]])","v":0},{"$f":"Dataset[[#This Row],[2023/24 Baseline]]+Dataset[[#This Row],[2023/24 Total change]]","v":0},{"$f":"Dataset[[#This Row],[2024/25 Baseline]]+Dataset[[#This Row],[2024/25 Total change]]","v":0},{"$f":"Dataset[[#This Row],[2025/26 Baseline]]+Dataset[[#This Row],[2025/26 Total change]]","v":0},{"$f":"Dataset[[#This Row],[2026/27 Baseline]]+Dataset[[#This Row],[2026/27 Total change]]","v":0}]
["NAT|Non-transfer item","26|Other fixed structures","2024_25","MTEF2024",26,2,3,44572,685,"26","02","03","044572","000685","26|02|03","02","03","11","55","59","02|03|11|55|59","National","Military Veterans","Socioeconomic Support","Socioeconomic Support Management","Non-transfer item","Capital","Payments for capital assets","Buildings and other fixed structures","Other fixed structures","Other fixed structures","Peace and security","Defence and state security","NAT",0,0,0,0,0,0,0,0,0,0,0,null,null,null,null,null,null,null,null,null,null,null,null,null,null,null,null,null,null,null,null,null,null,null,null,null,null,null,null,null,null,null,null,null,null,{"$f":"Dataset[[#This Row],[2024/25 From - Spending review Topic 1]]+Dataset[[#This Row],[2024/25 From - Spending review Topic 2]]+Dataset[[#This Row],[2024/25 From - Spending review Topic 3]]+Dataset[[#This Row],[2024/25 From - Spending review Topic 4]]+Dataset[[#This Row],[2024/25 From - Other reallocations]]","v":0},{"$f":"Dataset[[#This Row],[2025/26 From - Spending review Topic 1]]+Dataset[[#This Row],[2025/26 From - Spending review Topic 2]]+Dataset[[#This Row],[2025/26 From - Spending review Topic 3]]+Dataset[[#This Row],[2025/26 From - Spending review Topic 4]]+Dataset[[#This Row],[2025/26 From - Other reallocations]]","v":0},{"$f":"Dataset[[#This Row],[2026/27 From - Spending review Topic 1]]+Dataset[[#This Row],[2026/27 From - Spending review Topic 2]]+Dataset[[#This Row],[2026/27 From - Spending review Topic 3]]+Dataset[[#This Row],[2026/27 From - Spending review Topic 4]]+Dataset[[#This Row],[2026/27 From - Other reallocations]]","v":0},{"$f":"Dataset[[#This Row],[2024/25 To - Spending review Topic 1]]+Dataset[[#This Row],[2024/25 To - Spending review Topic 2]]+Dataset[[#This Row],[2024/25 To - Spending review Topic 3]]+Dataset[[#This Row],[2024/25 To - Spending review Topic 4]]+Dataset[[#This Row],[2024/25 To - Other reallocations]]","v":0},{"$f":"Dataset[[#This Row],[2025/26 To - Spending review Topic 1]]+Dataset[[#This Row],[2025/26 To - Spending review Topic 2]]+Dataset[[#This Row],[2025/26 To - Spending review Topic 3]]+Dataset[[#This Row],[2025/26 To - Spending review Topic 4]]+Dataset[[#This Row],[2025/26 To - Other reallocations]]","v":0},{"$f":"Dataset[[#This Row],[2026/27 To - Spending review Topic 1]]+Dataset[[#This Row],[2026/27 To - Spending review Topic 2]]+Dataset[[#This Row],[2026/27 To - Spending review Topic 3]]+Dataset[[#This Row],[2026/27 To - Spending review Topic 4]]+Dataset[[#This Row],[2026/27 To - Other reallocations]]","v":0},{"$f":"Dataset[[#This Row],[2024/25 Reduction]]+Dataset[[#This Row],[2024/25 From - Total]]","v":0},{"$f":"Dataset[[#This Row],[2025/26 Reduction]]+Dataset[[#This Row],[2025/26 From - Total]]","v":0},{"$f":"Dataset[[#This Row],[2026/27 Reduction]]+Dataset[[#This Row],[2026/27 From - Total]]","v":0},{"$f":"Dataset[[#This Row],[2023/24 Reduction]]","v":0},{"$f":"SUM(Dataset[[#This Row],[2024/25 Reduction]],Dataset[[#This Row],[2024/25 From - Total]],Dataset[[#This Row],[2024/25 To - Total]])","v":0},{"$f":"SUM(Dataset[[#This Row],[2025/26 Reduction]],Dataset[[#This Row],[2025/26 From - Total]],Dataset[[#This Row],[2025/26 To - Total]])","v":0},{"$f":"SUM(Dataset[[#This Row],[2026/27 Reduction]],Dataset[[#This Row],[2026/27 From - Total]],Dataset[[#This Row],[2026/27 To - Total]])","v":0},{"$f":"Dataset[[#This Row],[2023/24 Baseline]]+Dataset[[#This Row],[2023/24 Total change]]","v":0},{"$f":"Dataset[[#This Row],[2024/25 Baseline]]+Dataset[[#This Row],[2024/25 Total change]]","v":0},{"$f":"Dataset[[#This Row],[2025/26 Baseline]]+Dataset[[#This Row],[2025/26 Total change]]","v":0},{"$f":"Dataset[[#This Row],[2026/27 Baseline]]+Dataset[[#This Row],[2026/27 Total change]]","v":0}]
["NAT|Non-transfer item","26|Transport equipment","2024_25","MTEF2024",26,2,3,44573,686,"26","02","03","044573","000686","26|02|03","02","03","12","56","60","02|03|12|56|60","National","Military Veterans","Socioeconomic Support","Socioeconomic Support Management","Non-transfer item","Capital","Payments for capital assets","Machinery and equipment","Transport equipment","Transport equipment","Peace and security","Defence and state security","NAT",0,0,0,0,0,0,0,0,0,0,0,null,null,null,null,null,null,null,null,null,null,null,null,null,null,null,null,null,null,null,null,null,null,null,null,null,null,null,null,null,null,null,null,null,null,{"$f":"Dataset[[#This Row],[2024/25 From - Spending review Topic 1]]+Dataset[[#This Row],[2024/25 From - Spending review Topic 2]]+Dataset[[#This Row],[2024/25 From - Spending review Topic 3]]+Dataset[[#This Row],[2024/25 From - Spending review Topic 4]]+Dataset[[#This Row],[2024/25 From - Other reallocations]]","v":0},{"$f":"Dataset[[#This Row],[2025/26 From - Spending review Topic 1]]+Dataset[[#This Row],[2025/26 From - Spending review Topic 2]]+Dataset[[#This Row],[2025/26 From - Spending review Topic 3]]+Dataset[[#This Row],[2025/26 From - Spending review Topic 4]]+Dataset[[#This Row],[2025/26 From - Other reallocations]]","v":0},{"$f":"Dataset[[#This Row],[2026/27 From - Spending review Topic 1]]+Dataset[[#This Row],[2026/27 From - Spending review Topic 2]]+Dataset[[#This Row],[2026/27 From - Spending review Topic 3]]+Dataset[[#This Row],[2026/27 From - Spending review Topic 4]]+Dataset[[#This Row],[2026/27 From - Other reallocations]]","v":0},{"$f":"Dataset[[#This Row],[2024/25 To - Spending review Topic 1]]+Dataset[[#This Row],[2024/25 To - Spending review Topic 2]]+Dataset[[#This Row],[2024/25 To - Spending review Topic 3]]+Dataset[[#This Row],[2024/25 To - Spending review Topic 4]]+Dataset[[#This Row],[2024/25 To - Other reallocations]]","v":0},{"$f":"Dataset[[#This Row],[2025/26 To - Spending review Topic 1]]+Dataset[[#This Row],[2025/26 To - Spending review Topic 2]]+Dataset[[#This Row],[2025/26 To - Spending review Topic 3]]+Dataset[[#This Row],[2025/26 To - Spending review Topic 4]]+Dataset[[#This Row],[2025/26 To - Other reallocations]]","v":0},{"$f":"Dataset[[#This Row],[2026/27 To - Spending review Topic 1]]+Dataset[[#This Row],[2026/27 To - Spending review Topic 2]]+Dataset[[#This Row],[2026/27 To - Spending review Topic 3]]+Dataset[[#This Row],[2026/27 To - Spending review Topic 4]]+Dataset[[#This Row],[2026/27 To - Other reallocations]]","v":0},{"$f":"Dataset[[#This Row],[2024/25 Reduction]]+Dataset[[#This Row],[2024/25 From - Total]]","v":0},{"$f":"Dataset[[#This Row],[2025/26 Reduction]]+Dataset[[#This Row],[2025/26 From - Total]]","v":0},{"$f":"Dataset[[#This Row],[2026/27 Reduction]]+Dataset[[#This Row],[2026/27 From - Total]]","v":0},{"$f":"Dataset[[#This Row],[2023/24 Reduction]]","v":0},{"$f":"SUM(Dataset[[#This Row],[2024/25 Reduction]],Dataset[[#This Row],[2024/25 From - Total]],Dataset[[#This Row],[2024/25 To - Total]])","v":0},{"$f":"SUM(Dataset[[#This Row],[2025/26 Reduction]],Dataset[[#This Row],[2025/26 From - Total]],Dataset[[#This Row],[2025/26 To - Total]])","v":0},{"$f":"SUM(Dataset[[#This Row],[2026/27 Reduction]],Dataset[[#This Row],[2026/27 From - Total]],Dataset[[#This Row],[2026/27 To - Total]])","v":0},{"$f":"Dataset[[#This Row],[2023/24 Baseline]]+Dataset[[#This Row],[2023/24 Total change]]","v":0},{"$f":"Dataset[[#This Row],[2024/25 Baseline]]+Dataset[[#This Row],[2024/25 Total change]]","v":0},{"$f":"Dataset[[#This Row],[2025/26 Baseline]]+Dataset[[#This Row],[2025/26 Total change]]","v":0},{"$f":"Dataset[[#This Row],[2026/27 Baseline]]+Dataset[[#This Row],[2026/27 Total change]]","v":0}]
["NAT|Non-transfer item","26|Other machinery and equipment","2024_25","MTEF2024",26,2,3,44574,687,"26","02","03","044574","000687","26|02|03","02","03","12","57","61","02|03|12|57|61","National","Military Veterans","Socioeconomic Support","Socioeconomic Support Management","Non-transfer item","Capital","Payments for capital assets","Machinery and equipment","Other machinery and equipment","Other machinery and equipment","Peace and security","Defence and state security","NAT",138,34,21,348,453,453,0,352,368,384,402,null,null,null,null,null,null,null,null,null,null,null,null,null,null,null,null,null,null,null,null,null,null,null,null,null,null,null,null,null,null,null,null,null,null,{"$f":"Dataset[[#This Row],[2024/25 From - Spending review Topic 1]]+Dataset[[#This Row],[2024/25 From - Spending review Topic 2]]+Dataset[[#This Row],[2024/25 From - Spending review Topic 3]]+Dataset[[#This Row],[2024/25 From - Spending review Topic 4]]+Dataset[[#This Row],[2024/25 From - Other reallocations]]","v":0},{"$f":"Dataset[[#This Row],[2025/26 From - Spending review Topic 1]]+Dataset[[#This Row],[2025/26 From - Spending review Topic 2]]+Dataset[[#This Row],[2025/26 From - Spending review Topic 3]]+Dataset[[#This Row],[2025/26 From - Spending review Topic 4]]+Dataset[[#This Row],[2025/26 From - Other reallocations]]","v":0},{"$f":"Dataset[[#This Row],[2026/27 From - Spending review Topic 1]]+Dataset[[#This Row],[2026/27 From - Spending review Topic 2]]+Dataset[[#This Row],[2026/27 From - Spending review Topic 3]]+Dataset[[#This Row],[2026/27 From - Spending review Topic 4]]+Dataset[[#This Row],[2026/27 From - Other reallocations]]","v":0},{"$f":"Dataset[[#This Row],[2024/25 To - Spending review Topic 1]]+Dataset[[#This Row],[2024/25 To - Spending review Topic 2]]+Dataset[[#This Row],[2024/25 To - Spending review Topic 3]]+Dataset[[#This Row],[2024/25 To - Spending review Topic 4]]+Dataset[[#This Row],[2024/25 To - Other reallocations]]","v":0},{"$f":"Dataset[[#This Row],[2025/26 To - Spending review Topic 1]]+Dataset[[#This Row],[2025/26 To - Spending review Topic 2]]+Dataset[[#This Row],[2025/26 To - Spending review Topic 3]]+Dataset[[#This Row],[2025/26 To - Spending review Topic 4]]+Dataset[[#This Row],[2025/26 To - Other reallocations]]","v":0},{"$f":"Dataset[[#This Row],[2026/27 To - Spending review Topic 1]]+Dataset[[#This Row],[2026/27 To - Spending review Topic 2]]+Dataset[[#This Row],[2026/27 To - Spending review Topic 3]]+Dataset[[#This Row],[2026/27 To - Spending review Topic 4]]+Dataset[[#This Row],[2026/27 To - Other reallocations]]","v":0},{"$f":"Dataset[[#This Row],[2024/25 Reduction]]+Dataset[[#This Row],[2024/25 From - Total]]","v":0},{"$f":"Dataset[[#This Row],[2025/26 Reduction]]+Dataset[[#This Row],[2025/26 From - Total]]","v":0},{"$f":"Dataset[[#This Row],[2026/27 Reduction]]+Dataset[[#This Row],[2026/27 From - Total]]","v":0},{"$f":"Dataset[[#This Row],[2023/24 Reduction]]","v":0},{"$f":"SUM(Dataset[[#This Row],[2024/25 Reduction]],Dataset[[#This Row],[2024/25 From - Total]],Dataset[[#This Row],[2024/25 To - Total]])","v":0},{"$f":"SUM(Dataset[[#This Row],[2025/26 Reduction]],Dataset[[#This Row],[2025/26 From - Total]],Dataset[[#This Row],[2025/26 To - Total]])","v":0},{"$f":"SUM(Dataset[[#This Row],[2026/27 Reduction]],Dataset[[#This Row],[2026/27 From - Total]],Dataset[[#This Row],[2026/27 To - Total]])","v":0},{"$f":"Dataset[[#This Row],[2023/24 Baseline]]+Dataset[[#This Row],[2023/24 Total change]]","v":352},{"$f":"Dataset[[#This Row],[2024/25 Baseline]]+Dataset[[#This Row],[2024/25 Total change]]","v":368},{"$f":"Dataset[[#This Row],[2025/26 Baseline]]+Dataset[[#This Row],[2025/26 Total change]]","v":384},{"$f":"Dataset[[#This Row],[2026/27 Baseline]]+Dataset[[#This Row],[2026/27 Total change]]","v":402}]
["NAT|Non-transfer item","26|Heritage assets","2024_25","MTEF2024",26,2,3,44575,688,"26","02","03","044575","000688","26|02|03","02","03","13","58","62","02|03|13|58|62","National","Military Veterans","Socioeconomic Support","Socioeconomic Support Management","Non-transfer item","Capital","Payments for capital assets","Heritage assets","Heritage assets","Heritage assets","Peace and security","Defence and state security","NAT",0,0,0,0,0,0,0,0,0,0,0,null,null,null,null,null,null,null,null,null,null,null,null,null,null,null,null,null,null,null,null,null,null,null,null,null,null,null,null,null,null,null,null,null,null,{"$f":"Dataset[[#This Row],[2024/25 From - Spending review Topic 1]]+Dataset[[#This Row],[2024/25 From - Spending review Topic 2]]+Dataset[[#This Row],[2024/25 From - Spending review Topic 3]]+Dataset[[#This Row],[2024/25 From - Spending review Topic 4]]+Dataset[[#This Row],[2024/25 From - Other reallocations]]","v":0},{"$f":"Dataset[[#This Row],[2025/26 From - Spending review Topic 1]]+Dataset[[#This Row],[2025/26 From - Spending review Topic 2]]+Dataset[[#This Row],[2025/26 From - Spending review Topic 3]]+Dataset[[#This Row],[2025/26 From - Spending review Topic 4]]+Dataset[[#This Row],[2025/26 From - Other reallocations]]","v":0},{"$f":"Dataset[[#This Row],[2026/27 From - Spending review Topic 1]]+Dataset[[#This Row],[2026/27 From - Spending review Topic 2]]+Dataset[[#This Row],[2026/27 From - Spending review Topic 3]]+Dataset[[#This Row],[2026/27 From - Spending review Topic 4]]+Dataset[[#This Row],[2026/27 From - Other reallocations]]","v":0},{"$f":"Dataset[[#This Row],[2024/25 To - Spending review Topic 1]]+Dataset[[#This Row],[2024/25 To - Spending review Topic 2]]+Dataset[[#This Row],[2024/25 To - Spending review Topic 3]]+Dataset[[#This Row],[2024/25 To - Spending review Topic 4]]+Dataset[[#This Row],[2024/25 To - Other reallocations]]","v":0},{"$f":"Dataset[[#This Row],[2025/26 To - Spending review Topic 1]]+Dataset[[#This Row],[2025/26 To - Spending review Topic 2]]+Dataset[[#This Row],[2025/26 To - Spending review Topic 3]]+Dataset[[#This Row],[2025/26 To - Spending review Topic 4]]+Dataset[[#This Row],[2025/26 To - Other reallocations]]","v":0},{"$f":"Dataset[[#This Row],[2026/27 To - Spending review Topic 1]]+Dataset[[#This Row],[2026/27 To - Spending review Topic 2]]+Dataset[[#This Row],[2026/27 To - Spending review Topic 3]]+Dataset[[#This Row],[2026/27 To - Spending review Topic 4]]+Dataset[[#This Row],[2026/27 To - Other reallocations]]","v":0},{"$f":"Dataset[[#This Row],[2024/25 Reduction]]+Dataset[[#This Row],[2024/25 From - Total]]","v":0},{"$f":"Dataset[[#This Row],[2025/26 Reduction]]+Dataset[[#This Row],[2025/26 From - Total]]","v":0},{"$f":"Dataset[[#This Row],[2026/27 Reduction]]+Dataset[[#This Row],[2026/27 From - Total]]","v":0},{"$f":"Dataset[[#This Row],[2023/24 Reduction]]","v":0},{"$f":"SUM(Dataset[[#This Row],[2024/25 Reduction]],Dataset[[#This Row],[2024/25 From - Total]],Dataset[[#This Row],[2024/25 To - Total]])","v":0},{"$f":"SUM(Dataset[[#This Row],[2025/26 Reduction]],Dataset[[#This Row],[2025/26 From - Total]],Dataset[[#This Row],[2025/26 To - Total]])","v":0},{"$f":"SUM(Dataset[[#This Row],[2026/27 Reduction]],Dataset[[#This Row],[2026/27 From - Total]],Dataset[[#This Row],[2026/27 To - Total]])","v":0},{"$f":"Dataset[[#This Row],[2023/24 Baseline]]+Dataset[[#This Row],[2023/24 Total change]]","v":0},{"$f":"Dataset[[#This Row],[2024/25 Baseline]]+Dataset[[#This Row],[2024/25 Total change]]","v":0},{"$f":"Dataset[[#This Row],[2025/26 Baseline]]+Dataset[[#This Row],[2025/26 Total change]]","v":0},{"$f":"Dataset[[#This Row],[2026/27 Baseline]]+Dataset[[#This Row],[2026/27 Total change]]","v":0}]
["NAT|Non-transfer item","26|Specialised military assets","2024_25","MTEF2024",26,2,3,44576,689,"26","02","03","044576","000689","26|02|03","02","03","14","59","63","02|03|14|59|63","National","Military Veterans","Socioeconomic Support","Socioeconomic Support Management","Non-transfer item","Capital","Payments for capital assets","Specialised military assets","Specialised military assets","Specialised military assets","Peace and security","Defence and state security","NAT",0,0,0,0,0,0,0,0,0,0,0,null,null,null,null,null,null,null,null,null,null,null,null,null,null,null,null,null,null,null,null,null,null,null,null,null,null,null,null,null,null,null,null,null,null,{"$f":"Dataset[[#This Row],[2024/25 From - Spending review Topic 1]]+Dataset[[#This Row],[2024/25 From - Spending review Topic 2]]+Dataset[[#This Row],[2024/25 From - Spending review Topic 3]]+Dataset[[#This Row],[2024/25 From - Spending review Topic 4]]+Dataset[[#This Row],[2024/25 From - Other reallocations]]","v":0},{"$f":"Dataset[[#This Row],[2025/26 From - Spending review Topic 1]]+Dataset[[#This Row],[2025/26 From - Spending review Topic 2]]+Dataset[[#This Row],[2025/26 From - Spending review Topic 3]]+Dataset[[#This Row],[2025/26 From - Spending review Topic 4]]+Dataset[[#This Row],[2025/26 From - Other reallocations]]","v":0},{"$f":"Dataset[[#This Row],[2026/27 From - Spending review Topic 1]]+Dataset[[#This Row],[2026/27 From - Spending review Topic 2]]+Dataset[[#This Row],[2026/27 From - Spending review Topic 3]]+Dataset[[#This Row],[2026/27 From - Spending review Topic 4]]+Dataset[[#This Row],[2026/27 From - Other reallocations]]","v":0},{"$f":"Dataset[[#This Row],[2024/25 To - Spending review Topic 1]]+Dataset[[#This Row],[2024/25 To - Spending review Topic 2]]+Dataset[[#This Row],[2024/25 To - Spending review Topic 3]]+Dataset[[#This Row],[2024/25 To - Spending review Topic 4]]+Dataset[[#This Row],[2024/25 To - Other reallocations]]","v":0},{"$f":"Dataset[[#This Row],[2025/26 To - Spending review Topic 1]]+Dataset[[#This Row],[2025/26 To - Spending review Topic 2]]+Dataset[[#This Row],[2025/26 To - Spending review Topic 3]]+Dataset[[#This Row],[2025/26 To - Spending review Topic 4]]+Dataset[[#This Row],[2025/26 To - Other reallocations]]","v":0},{"$f":"Dataset[[#This Row],[2026/27 To - Spending review Topic 1]]+Dataset[[#This Row],[2026/27 To - Spending review Topic 2]]+Dataset[[#This Row],[2026/27 To - Spending review Topic 3]]+Dataset[[#This Row],[2026/27 To - Spending review Topic 4]]+Dataset[[#This Row],[2026/27 To - Other reallocations]]","v":0},{"$f":"Dataset[[#This Row],[2024/25 Reduction]]+Dataset[[#This Row],[2024/25 From - Total]]","v":0},{"$f":"Dataset[[#This Row],[2025/26 Reduction]]+Dataset[[#This Row],[2025/26 From - Total]]","v":0},{"$f":"Dataset[[#This Row],[2026/27 Reduction]]+Dataset[[#This Row],[2026/27 From - Total]]","v":0},{"$f":"Dataset[[#This Row],[2023/24 Reduction]]","v":0},{"$f":"SUM(Dataset[[#This Row],[2024/25 Reduction]],Dataset[[#This Row],[2024/25 From - Total]],Dataset[[#This Row],[2024/25 To - Total]])","v":0},{"$f":"SUM(Dataset[[#This Row],[2025/26 Reduction]],Dataset[[#This Row],[2025/26 From - Total]],Dataset[[#This Row],[2025/26 To - Total]])","v":0},{"$f":"SUM(Dataset[[#This Row],[2026/27 Reduction]],Dataset[[#This Row],[2026/27 From - Total]],Dataset[[#This Row],[2026/27 To - Total]])","v":0},{"$f":"Dataset[[#This Row],[2023/24 Baseline]]+Dataset[[#This Row],[2023/24 Total change]]","v":0},{"$f":"Dataset[[#This Row],[2024/25 Baseline]]+Dataset[[#This Row],[2024/25 Total change]]","v":0},{"$f":"Dataset[[#This Row],[2025/26 Baseline]]+Dataset[[#This Row],[2025/26 Total change]]","v":0},{"$f":"Dataset[[#This Row],[2026/27 Baseline]]+Dataset[[#This Row],[2026/27 Total change]]","v":0}]
["NAT|Non-transfer item","26|Biological assets","2024_25","MTEF2024",26,2,3,44577,690,"26","02","03","044577","000690","26|02|03","02","03","15","60","64","02|03|15|60|64","National","Military Veterans","Socioeconomic Support","Socioeconomic Support Management","Non-transfer item","Capital","Payments for capital assets","Biological assets","Biological assets","Biological assets","Peace and security","Defence and state security","NAT",0,0,0,0,0,0,0,0,0,0,0,null,null,null,null,null,null,null,null,null,null,null,null,null,null,null,null,null,null,null,null,null,null,null,null,null,null,null,null,null,null,null,null,null,null,{"$f":"Dataset[[#This Row],[2024/25 From - Spending review Topic 1]]+Dataset[[#This Row],[2024/25 From - Spending review Topic 2]]+Dataset[[#This Row],[2024/25 From - Spending review Topic 3]]+Dataset[[#This Row],[2024/25 From - Spending review Topic 4]]+Dataset[[#This Row],[2024/25 From - Other reallocations]]","v":0},{"$f":"Dataset[[#This Row],[2025/26 From - Spending review Topic 1]]+Dataset[[#This Row],[2025/26 From - Spending review Topic 2]]+Dataset[[#This Row],[2025/26 From - Spending review Topic 3]]+Dataset[[#This Row],[2025/26 From - Spending review Topic 4]]+Dataset[[#This Row],[2025/26 From - Other reallocations]]","v":0},{"$f":"Dataset[[#This Row],[2026/27 From - Spending review Topic 1]]+Dataset[[#This Row],[2026/27 From - Spending review Topic 2]]+Dataset[[#This Row],[2026/27 From - Spending review Topic 3]]+Dataset[[#This Row],[2026/27 From - Spending review Topic 4]]+Dataset[[#This Row],[2026/27 From - Other reallocations]]","v":0},{"$f":"Dataset[[#This Row],[2024/25 To - Spending review Topic 1]]+Dataset[[#This Row],[2024/25 To - Spending review Topic 2]]+Dataset[[#This Row],[2024/25 To - Spending review Topic 3]]+Dataset[[#This Row],[2024/25 To - Spending review Topic 4]]+Dataset[[#This Row],[2024/25 To - Other reallocations]]","v":0},{"$f":"Dataset[[#This Row],[2025/26 To - Spending review Topic 1]]+Dataset[[#This Row],[2025/26 To - Spending review Topic 2]]+Dataset[[#This Row],[2025/26 To - Spending review Topic 3]]+Dataset[[#This Row],[2025/26 To - Spending review Topic 4]]+Dataset[[#This Row],[2025/26 To - Other reallocations]]","v":0},{"$f":"Dataset[[#This Row],[2026/27 To - Spending review Topic 1]]+Dataset[[#This Row],[2026/27 To - Spending review Topic 2]]+Dataset[[#This Row],[2026/27 To - Spending review Topic 3]]+Dataset[[#This Row],[2026/27 To - Spending review Topic 4]]+Dataset[[#This Row],[2026/27 To - Other reallocations]]","v":0},{"$f":"Dataset[[#This Row],[2024/25 Reduction]]+Dataset[[#This Row],[2024/25 From - Total]]","v":0},{"$f":"Dataset[[#This Row],[2025/26 Reduction]]+Dataset[[#This Row],[2025/26 From - Total]]","v":0},{"$f":"Dataset[[#This Row],[2026/27 Reduction]]+Dataset[[#This Row],[2026/27 From - Total]]","v":0},{"$f":"Dataset[[#This Row],[2023/24 Reduction]]","v":0},{"$f":"SUM(Dataset[[#This Row],[2024/25 Reduction]],Dataset[[#This Row],[2024/25 From - Total]],Dataset[[#This Row],[2024/25 To - Total]])","v":0},{"$f":"SUM(Dataset[[#This Row],[2025/26 Reduction]],Dataset[[#This Row],[2025/26 From - Total]],Dataset[[#This Row],[2025/26 To - Total]])","v":0},{"$f":"SUM(Dataset[[#This Row],[2026/27 Reduction]],Dataset[[#This Row],[2026/27 From - Total]],Dataset[[#This Row],[2026/27 To - Total]])","v":0},{"$f":"Dataset[[#This Row],[2023/24 Baseline]]+Dataset[[#This Row],[2023/24 Total change]]","v":0},{"$f":"Dataset[[#This Row],[2024/25 Baseline]]+Dataset[[#This Row],[2024/25 Total change]]","v":0},{"$f":"Dataset[[#This Row],[2025/26 Baseline]]+Dataset[[#This Row],[2025/26 Total change]]","v":0},{"$f":"Dataset[[#This Row],[2026/27 Baseline]]+Dataset[[#This Row],[2026/27 Total change]]","v":0}]
["NAT|Non-transfer item","26|Land and sub-soil assets","2024_25","MTEF2024",26,2,3,44578,691,"26","02","03","044578","000691","26|02|03","02","03","16","61","65","02|03|16|61|65","National","Military Veterans","Socioeconomic Support","Socioeconomic Support Management","Non-transfer item","Capital","Payments for capital assets","Land and sub-soil assets","Land and sub-soil assets","Land and sub-soil assets","Peace and security","Defence and state security","NAT",0,0,0,0,0,0,0,0,0,0,0,null,null,null,null,null,null,null,null,null,null,null,null,null,null,null,null,null,null,null,null,null,null,null,null,null,null,null,null,null,null,null,null,null,null,{"$f":"Dataset[[#This Row],[2024/25 From - Spending review Topic 1]]+Dataset[[#This Row],[2024/25 From - Spending review Topic 2]]+Dataset[[#This Row],[2024/25 From - Spending review Topic 3]]+Dataset[[#This Row],[2024/25 From - Spending review Topic 4]]+Dataset[[#This Row],[2024/25 From - Other reallocations]]","v":0},{"$f":"Dataset[[#This Row],[2025/26 From - Spending review Topic 1]]+Dataset[[#This Row],[2025/26 From - Spending review Topic 2]]+Dataset[[#This Row],[2025/26 From - Spending review Topic 3]]+Dataset[[#This Row],[2025/26 From - Spending review Topic 4]]+Dataset[[#This Row],[2025/26 From - Other reallocations]]","v":0},{"$f":"Dataset[[#This Row],[2026/27 From - Spending review Topic 1]]+Dataset[[#This Row],[2026/27 From - Spending review Topic 2]]+Dataset[[#This Row],[2026/27 From - Spending review Topic 3]]+Dataset[[#This Row],[2026/27 From - Spending review Topic 4]]+Dataset[[#This Row],[2026/27 From - Other reallocations]]","v":0},{"$f":"Dataset[[#This Row],[2024/25 To - Spending review Topic 1]]+Dataset[[#This Row],[2024/25 To - Spending review Topic 2]]+Dataset[[#This Row],[2024/25 To - Spending review Topic 3]]+Dataset[[#This Row],[2024/25 To - Spending review Topic 4]]+Dataset[[#This Row],[2024/25 To - Other reallocations]]","v":0},{"$f":"Dataset[[#This Row],[2025/26 To - Spending review Topic 1]]+Dataset[[#This Row],[2025/26 To - Spending review Topic 2]]+Dataset[[#This Row],[2025/26 To - Spending review Topic 3]]+Dataset[[#This Row],[2025/26 To - Spending review Topic 4]]+Dataset[[#This Row],[2025/26 To - Other reallocations]]","v":0},{"$f":"Dataset[[#This Row],[2026/27 To - Spending review Topic 1]]+Dataset[[#This Row],[2026/27 To - Spending review Topic 2]]+Dataset[[#This Row],[2026/27 To - Spending review Topic 3]]+Dataset[[#This Row],[2026/27 To - Spending review Topic 4]]+Dataset[[#This Row],[2026/27 To - Other reallocations]]","v":0},{"$f":"Dataset[[#This Row],[2024/25 Reduction]]+Dataset[[#This Row],[2024/25 From - Total]]","v":0},{"$f":"Dataset[[#This Row],[2025/26 Reduction]]+Dataset[[#This Row],[2025/26 From - Total]]","v":0},{"$f":"Dataset[[#This Row],[2026/27 Reduction]]+Dataset[[#This Row],[2026/27 From - Total]]","v":0},{"$f":"Dataset[[#This Row],[2023/24 Reduction]]","v":0},{"$f":"SUM(Dataset[[#This Row],[2024/25 Reduction]],Dataset[[#This Row],[2024/25 From - Total]],Dataset[[#This Row],[2024/25 To - Total]])","v":0},{"$f":"SUM(Dataset[[#This Row],[2025/26 Reduction]],Dataset[[#This Row],[2025/26 From - Total]],Dataset[[#This Row],[2025/26 To - Total]])","v":0},{"$f":"SUM(Dataset[[#This Row],[2026/27 Reduction]],Dataset[[#This Row],[2026/27 From - Total]],Dataset[[#This Row],[2026/27 To - Total]])","v":0},{"$f":"Dataset[[#This Row],[2023/24 Baseline]]+Dataset[[#This Row],[2023/24 Total change]]","v":0},{"$f":"Dataset[[#This Row],[2024/25 Baseline]]+Dataset[[#This Row],[2024/25 Total change]]","v":0},{"$f":"Dataset[[#This Row],[2025/26 Baseline]]+Dataset[[#This Row],[2025/26 Total change]]","v":0},{"$f":"Dataset[[#This Row],[2026/27 Baseline]]+Dataset[[#This Row],[2026/27 Total change]]","v":0}]
["NAT|Non-transfer item","26|Software and other intangible assets","2024_25","MTEF2024",26,2,3,44579,692,"26","02","03","044579","000692","26|02|03","02","03","17","62","66","02|03|17|62|66","National","Military Veterans","Socioeconomic Support","Socioeconomic Support Management","Non-transfer item","Capital","Payments for capital assets","Software and other intangible assets","Software and other intangible assets","Software and other intangible assets","Peace and security","Defence and state security","NAT",0,0,0,0,0,0,0,0,0,0,0,null,null,null,null,null,null,null,null,null,null,null,null,null,null,null,null,null,null,null,null,null,null,null,null,null,null,null,null,null,null,null,null,null,null,{"$f":"Dataset[[#This Row],[2024/25 From - Spending review Topic 1]]+Dataset[[#This Row],[2024/25 From - Spending review Topic 2]]+Dataset[[#This Row],[2024/25 From - Spending review Topic 3]]+Dataset[[#This Row],[2024/25 From - Spending review Topic 4]]+Dataset[[#This Row],[2024/25 From - Other reallocations]]","v":0},{"$f":"Dataset[[#This Row],[2025/26 From - Spending review Topic 1]]+Dataset[[#This Row],[2025/26 From - Spending review Topic 2]]+Dataset[[#This Row],[2025/26 From - Spending review Topic 3]]+Dataset[[#This Row],[2025/26 From - Spending review Topic 4]]+Dataset[[#This Row],[2025/26 From - Other reallocations]]","v":0},{"$f":"Dataset[[#This Row],[2026/27 From - Spending review Topic 1]]+Dataset[[#This Row],[2026/27 From - Spending review Topic 2]]+Dataset[[#This Row],[2026/27 From - Spending review Topic 3]]+Dataset[[#This Row],[2026/27 From - Spending review Topic 4]]+Dataset[[#This Row],[2026/27 From - Other reallocations]]","v":0},{"$f":"Dataset[[#This Row],[2024/25 To - Spending review Topic 1]]+Dataset[[#This Row],[2024/25 To - Spending review Topic 2]]+Dataset[[#This Row],[2024/25 To - Spending review Topic 3]]+Dataset[[#This Row],[2024/25 To - Spending review Topic 4]]+Dataset[[#This Row],[2024/25 To - Other reallocations]]","v":0},{"$f":"Dataset[[#This Row],[2025/26 To - Spending review Topic 1]]+Dataset[[#This Row],[2025/26 To - Spending review Topic 2]]+Dataset[[#This Row],[2025/26 To - Spending review Topic 3]]+Dataset[[#This Row],[2025/26 To - Spending review Topic 4]]+Dataset[[#This Row],[2025/26 To - Other reallocations]]","v":0},{"$f":"Dataset[[#This Row],[2026/27 To - Spending review Topic 1]]+Dataset[[#This Row],[2026/27 To - Spending review Topic 2]]+Dataset[[#This Row],[2026/27 To - Spending review Topic 3]]+Dataset[[#This Row],[2026/27 To - Spending review Topic 4]]+Dataset[[#This Row],[2026/27 To - Other reallocations]]","v":0},{"$f":"Dataset[[#This Row],[2024/25 Reduction]]+Dataset[[#This Row],[2024/25 From - Total]]","v":0},{"$f":"Dataset[[#This Row],[2025/26 Reduction]]+Dataset[[#This Row],[2025/26 From - Total]]","v":0},{"$f":"Dataset[[#This Row],[2026/27 Reduction]]+Dataset[[#This Row],[2026/27 From - Total]]","v":0},{"$f":"Dataset[[#This Row],[2023/24 Reduction]]","v":0},{"$f":"SUM(Dataset[[#This Row],[2024/25 Reduction]],Dataset[[#This Row],[2024/25 From - Total]],Dataset[[#This Row],[2024/25 To - Total]])","v":0},{"$f":"SUM(Dataset[[#This Row],[2025/26 Reduction]],Dataset[[#This Row],[2025/26 From - Total]],Dataset[[#This Row],[2025/26 To - Total]])","v":0},{"$f":"SUM(Dataset[[#This Row],[2026/27 Reduction]],Dataset[[#This Row],[2026/27 From - Total]],Dataset[[#This Row],[2026/27 To - Total]])","v":0},{"$f":"Dataset[[#This Row],[2023/24 Baseline]]+Dataset[[#This Row],[2023/24 Total change]]","v":0},{"$f":"Dataset[[#This Row],[2024/25 Baseline]]+Dataset[[#This Row],[2024/25 Total change]]","v":0},{"$f":"Dataset[[#This Row],[2025/26 Baseline]]+Dataset[[#This Row],[2025/26 Total change]]","v":0},{"$f":"Dataset[[#This Row],[2026/27 Baseline]]+Dataset[[#This Row],[2026/27 Total change]]","v":0}]
["NAT|Thefts and losses","26|Payments for financial assets","2024_25","MTEF2024",26,2,3,44580,693,"26","02","03","044580","000693","26|02|03","03","04","18","63","67","03|04|18|63|67","National","Military Veterans","Socioeconomic Support","Socioeconomic Support Management","Thefts and losses","Payments for financial assets","Payments for financial assets","Payments for financial assets","Payments for financial assets","Payments for financial assets","Peace and security","Defence and state security","NAT",0,0,17,0,0,0,0,0,0,0,0,null,null,null,null,null,null,null,null,null,null,null,null,null,null,null,null,null,null,null,null,null,null,null,null,null,null,null,null,null,null,null,null,null,null,{"$f":"Dataset[[#This Row],[2024/25 From - Spending review Topic 1]]+Dataset[[#This Row],[2024/25 From - Spending review Topic 2]]+Dataset[[#This Row],[2024/25 From - Spending review Topic 3]]+Dataset[[#This Row],[2024/25 From - Spending review Topic 4]]+Dataset[[#This Row],[2024/25 From - Other reallocations]]","v":0},{"$f":"Dataset[[#This Row],[2025/26 From - Spending review Topic 1]]+Dataset[[#This Row],[2025/26 From - Spending review Topic 2]]+Dataset[[#This Row],[2025/26 From - Spending review Topic 3]]+Dataset[[#This Row],[2025/26 From - Spending review Topic 4]]+Dataset[[#This Row],[2025/26 From - Other reallocations]]","v":0},{"$f":"Dataset[[#This Row],[2026/27 From - Spending review Topic 1]]+Dataset[[#This Row],[2026/27 From - Spending review Topic 2]]+Dataset[[#This Row],[2026/27 From - Spending review Topic 3]]+Dataset[[#This Row],[2026/27 From - Spending review Topic 4]]+Dataset[[#This Row],[2026/27 From - Other reallocations]]","v":0},{"$f":"Dataset[[#This Row],[2024/25 To - Spending review Topic 1]]+Dataset[[#This Row],[2024/25 To - Spending review Topic 2]]+Dataset[[#This Row],[2024/25 To - Spending review Topic 3]]+Dataset[[#This Row],[2024/25 To - Spending review Topic 4]]+Dataset[[#This Row],[2024/25 To - Other reallocations]]","v":0},{"$f":"Dataset[[#This Row],[2025/26 To - Spending review Topic 1]]+Dataset[[#This Row],[2025/26 To - Spending review Topic 2]]+Dataset[[#This Row],[2025/26 To - Spending review Topic 3]]+Dataset[[#This Row],[2025/26 To - Spending review Topic 4]]+Dataset[[#This Row],[2025/26 To - Other reallocations]]","v":0},{"$f":"Dataset[[#This Row],[2026/27 To - Spending review Topic 1]]+Dataset[[#This Row],[2026/27 To - Spending review Topic 2]]+Dataset[[#This Row],[2026/27 To - Spending review Topic 3]]+Dataset[[#This Row],[2026/27 To - Spending review Topic 4]]+Dataset[[#This Row],[2026/27 To - Other reallocations]]","v":0},{"$f":"Dataset[[#This Row],[2024/25 Reduction]]+Dataset[[#This Row],[2024/25 From - Total]]","v":0},{"$f":"Dataset[[#This Row],[2025/26 Reduction]]+Dataset[[#This Row],[2025/26 From - Total]]","v":0},{"$f":"Dataset[[#This Row],[2026/27 Reduction]]+Dataset[[#This Row],[2026/27 From - Total]]","v":0},{"$f":"Dataset[[#This Row],[2023/24 Reduction]]","v":0},{"$f":"SUM(Dataset[[#This Row],[2024/25 Reduction]],Dataset[[#This Row],[2024/25 From - Total]],Dataset[[#This Row],[2024/25 To - Total]])","v":0},{"$f":"SUM(Dataset[[#This Row],[2025/26 Reduction]],Dataset[[#This Row],[2025/26 From - Total]],Dataset[[#This Row],[2025/26 To - Total]])","v":0},{"$f":"SUM(Dataset[[#This Row],[2026/27 Reduction]],Dataset[[#This Row],[2026/27 From - Total]],Dataset[[#This Row],[2026/27 To - Total]])","v":0},{"$f":"Dataset[[#This Row],[2023/24 Baseline]]+Dataset[[#This Row],[2023/24 Total change]]","v":0},{"$f":"Dataset[[#This Row],[2024/25 Baseline]]+Dataset[[#This Row],[2024/25 Total change]]","v":0},{"$f":"Dataset[[#This Row],[2025/26 Baseline]]+Dataset[[#This Row],[2025/26 Total change]]","v":0},{"$f":"Dataset[[#This Row],[2026/27 Baseline]]+Dataset[[#This Row],[2026/27 Total change]]","v":0}]
["NAT|Non-transfer item","26|Salaries and wages","2024_25","MTEF2024",26,3,1,44581,694,"26","03","01","044581","000694","26|03|01","01","01","01","01","01","01|01|01|01|01","National","Military Veterans","Empowerment and Stakeholder Management","Provincial Offices and Stakeholder Relations","Non-transfer item","Current","Current payments","Compensation of employees","Salaries and wages","Salaries and wages","Peace and security","Defence and state security","NAT",17903,17335,17663,27369,19443,19443,0,22182,23437,24745,25879,null,null,null,null,null,null,null,null,null,null,null,null,null,null,null,null,null,null,null,null,null,null,null,null,null,null,null,null,null,null,null,null,null,null,{"$f":"Dataset[[#This Row],[2024/25 From - Spending review Topic 1]]+Dataset[[#This Row],[2024/25 From - Spending review Topic 2]]+Dataset[[#This Row],[2024/25 From - Spending review Topic 3]]+Dataset[[#This Row],[2024/25 From - Spending review Topic 4]]+Dataset[[#This Row],[2024/25 From - Other reallocations]]","v":0},{"$f":"Dataset[[#This Row],[2025/26 From - Spending review Topic 1]]+Dataset[[#This Row],[2025/26 From - Spending review Topic 2]]+Dataset[[#This Row],[2025/26 From - Spending review Topic 3]]+Dataset[[#This Row],[2025/26 From - Spending review Topic 4]]+Dataset[[#This Row],[2025/26 From - Other reallocations]]","v":0},{"$f":"Dataset[[#This Row],[2026/27 From - Spending review Topic 1]]+Dataset[[#This Row],[2026/27 From - Spending review Topic 2]]+Dataset[[#This Row],[2026/27 From - Spending review Topic 3]]+Dataset[[#This Row],[2026/27 From - Spending review Topic 4]]+Dataset[[#This Row],[2026/27 From - Other reallocations]]","v":0},{"$f":"Dataset[[#This Row],[2024/25 To - Spending review Topic 1]]+Dataset[[#This Row],[2024/25 To - Spending review Topic 2]]+Dataset[[#This Row],[2024/25 To - Spending review Topic 3]]+Dataset[[#This Row],[2024/25 To - Spending review Topic 4]]+Dataset[[#This Row],[2024/25 To - Other reallocations]]","v":0},{"$f":"Dataset[[#This Row],[2025/26 To - Spending review Topic 1]]+Dataset[[#This Row],[2025/26 To - Spending review Topic 2]]+Dataset[[#This Row],[2025/26 To - Spending review Topic 3]]+Dataset[[#This Row],[2025/26 To - Spending review Topic 4]]+Dataset[[#This Row],[2025/26 To - Other reallocations]]","v":0},{"$f":"Dataset[[#This Row],[2026/27 To - Spending review Topic 1]]+Dataset[[#This Row],[2026/27 To - Spending review Topic 2]]+Dataset[[#This Row],[2026/27 To - Spending review Topic 3]]+Dataset[[#This Row],[2026/27 To - Spending review Topic 4]]+Dataset[[#This Row],[2026/27 To - Other reallocations]]","v":0},{"$f":"Dataset[[#This Row],[2024/25 Reduction]]+Dataset[[#This Row],[2024/25 From - Total]]","v":0},{"$f":"Dataset[[#This Row],[2025/26 Reduction]]+Dataset[[#This Row],[2025/26 From - Total]]","v":0},{"$f":"Dataset[[#This Row],[2026/27 Reduction]]+Dataset[[#This Row],[2026/27 From - Total]]","v":0},{"$f":"Dataset[[#This Row],[2023/24 Reduction]]","v":0},{"$f":"SUM(Dataset[[#This Row],[2024/25 Reduction]],Dataset[[#This Row],[2024/25 From - Total]],Dataset[[#This Row],[2024/25 To - Total]])","v":0},{"$f":"SUM(Dataset[[#This Row],[2025/26 Reduction]],Dataset[[#This Row],[2025/26 From - Total]],Dataset[[#This Row],[2025/26 To - Total]])","v":0},{"$f":"SUM(Dataset[[#This Row],[2026/27 Reduction]],Dataset[[#This Row],[2026/27 From - Total]],Dataset[[#This Row],[2026/27 To - Total]])","v":0},{"$f":"Dataset[[#This Row],[2023/24 Baseline]]+Dataset[[#This Row],[2023/24 Total change]]","v":22182},{"$f":"Dataset[[#This Row],[2024/25 Baseline]]+Dataset[[#This Row],[2024/25 Total change]]","v":23437},{"$f":"Dataset[[#This Row],[2025/26 Baseline]]+Dataset[[#This Row],[2025/26 Total change]]","v":24745},{"$f":"Dataset[[#This Row],[2026/27 Baseline]]+Dataset[[#This Row],[2026/27 Total change]]","v":25879}]
["NAT|Non-transfer item","26|Social contributions","2024_25","MTEF2024",26,3,1,44582,695,"26","03","01","044582","000695","26|03|01","01","01","01","02","02","01|01|01|02|02","National","Military Veterans","Empowerment and Stakeholder Management","Provincial Offices and Stakeholder Relations","Non-transfer item","Current","Current payments","Compensation of employees","Social contributions","Social contributions","Peace and security","Defence and state security","NAT",1830,1821,1963,5088,3188,3188,0,1158,1393,1639,1714,null,null,null,null,null,null,null,null,null,null,null,null,null,null,null,null,null,null,null,null,null,null,null,null,null,null,null,null,null,null,null,null,null,null,{"$f":"Dataset[[#This Row],[2024/25 From - Spending review Topic 1]]+Dataset[[#This Row],[2024/25 From - Spending review Topic 2]]+Dataset[[#This Row],[2024/25 From - Spending review Topic 3]]+Dataset[[#This Row],[2024/25 From - Spending review Topic 4]]+Dataset[[#This Row],[2024/25 From - Other reallocations]]","v":0},{"$f":"Dataset[[#This Row],[2025/26 From - Spending review Topic 1]]+Dataset[[#This Row],[2025/26 From - Spending review Topic 2]]+Dataset[[#This Row],[2025/26 From - Spending review Topic 3]]+Dataset[[#This Row],[2025/26 From - Spending review Topic 4]]+Dataset[[#This Row],[2025/26 From - Other reallocations]]","v":0},{"$f":"Dataset[[#This Row],[2026/27 From - Spending review Topic 1]]+Dataset[[#This Row],[2026/27 From - Spending review Topic 2]]+Dataset[[#This Row],[2026/27 From - Spending review Topic 3]]+Dataset[[#This Row],[2026/27 From - Spending review Topic 4]]+Dataset[[#This Row],[2026/27 From - Other reallocations]]","v":0},{"$f":"Dataset[[#This Row],[2024/25 To - Spending review Topic 1]]+Dataset[[#This Row],[2024/25 To - Spending review Topic 2]]+Dataset[[#This Row],[2024/25 To - Spending review Topic 3]]+Dataset[[#This Row],[2024/25 To - Spending review Topic 4]]+Dataset[[#This Row],[2024/25 To - Other reallocations]]","v":0},{"$f":"Dataset[[#This Row],[2025/26 To - Spending review Topic 1]]+Dataset[[#This Row],[2025/26 To - Spending review Topic 2]]+Dataset[[#This Row],[2025/26 To - Spending review Topic 3]]+Dataset[[#This Row],[2025/26 To - Spending review Topic 4]]+Dataset[[#This Row],[2025/26 To - Other reallocations]]","v":0},{"$f":"Dataset[[#This Row],[2026/27 To - Spending review Topic 1]]+Dataset[[#This Row],[2026/27 To - Spending review Topic 2]]+Dataset[[#This Row],[2026/27 To - Spending review Topic 3]]+Dataset[[#This Row],[2026/27 To - Spending review Topic 4]]+Dataset[[#This Row],[2026/27 To - Other reallocations]]","v":0},{"$f":"Dataset[[#This Row],[2024/25 Reduction]]+Dataset[[#This Row],[2024/25 From - Total]]","v":0},{"$f":"Dataset[[#This Row],[2025/26 Reduction]]+Dataset[[#This Row],[2025/26 From - Total]]","v":0},{"$f":"Dataset[[#This Row],[2026/27 Reduction]]+Dataset[[#This Row],[2026/27 From - Total]]","v":0},{"$f":"Dataset[[#This Row],[2023/24 Reduction]]","v":0},{"$f":"SUM(Dataset[[#This Row],[2024/25 Reduction]],Dataset[[#This Row],[2024/25 From - Total]],Dataset[[#This Row],[2024/25 To - Total]])","v":0},{"$f":"SUM(Dataset[[#This Row],[2025/26 Reduction]],Dataset[[#This Row],[2025/26 From - Total]],Dataset[[#This Row],[2025/26 To - Total]])","v":0},{"$f":"SUM(Dataset[[#This Row],[2026/27 Reduction]],Dataset[[#This Row],[2026/27 From - Total]],Dataset[[#This Row],[2026/27 To - Total]])","v":0},{"$f":"Dataset[[#This Row],[2023/24 Baseline]]+Dataset[[#This Row],[2023/24 Total change]]","v":1158},{"$f":"Dataset[[#This Row],[2024/25 Baseline]]+Dataset[[#This Row],[2024/25 Total change]]","v":1393},{"$f":"Dataset[[#This Row],[2025/26 Baseline]]+Dataset[[#This Row],[2025/26 Total change]]","v":1639},{"$f":"Dataset[[#This Row],[2026/27 Baseline]]+Dataset[[#This Row],[2026/27 Total change]]","v":1714}]
["NAT|Non-transfer item","26|Administrative fees","2024_25","MTEF2024",26,3,1,44583,696,"26","03","01","044583","000696","26|03|01","01","01","02","03","03","01|01|02|03|03","National","Military Veterans","Empowerment and Stakeholder Management","Provincial Offices and Stakeholder Relations","Non-transfer item","Current","Current payments","Goods and services","Administrative fees","Administrative fees","Peace and security","Defence and state security","NAT",1294,259,740,1283,1283,1283,0,1288,1345,1405,1469,null,null,null,null,null,null,null,null,null,null,null,null,null,null,null,null,null,null,null,null,null,null,null,null,null,null,null,null,null,null,null,null,null,null,{"$f":"Dataset[[#This Row],[2024/25 From - Spending review Topic 1]]+Dataset[[#This Row],[2024/25 From - Spending review Topic 2]]+Dataset[[#This Row],[2024/25 From - Spending review Topic 3]]+Dataset[[#This Row],[2024/25 From - Spending review Topic 4]]+Dataset[[#This Row],[2024/25 From - Other reallocations]]","v":0},{"$f":"Dataset[[#This Row],[2025/26 From - Spending review Topic 1]]+Dataset[[#This Row],[2025/26 From - Spending review Topic 2]]+Dataset[[#This Row],[2025/26 From - Spending review Topic 3]]+Dataset[[#This Row],[2025/26 From - Spending review Topic 4]]+Dataset[[#This Row],[2025/26 From - Other reallocations]]","v":0},{"$f":"Dataset[[#This Row],[2026/27 From - Spending review Topic 1]]+Dataset[[#This Row],[2026/27 From - Spending review Topic 2]]+Dataset[[#This Row],[2026/27 From - Spending review Topic 3]]+Dataset[[#This Row],[2026/27 From - Spending review Topic 4]]+Dataset[[#This Row],[2026/27 From - Other reallocations]]","v":0},{"$f":"Dataset[[#This Row],[2024/25 To - Spending review Topic 1]]+Dataset[[#This Row],[2024/25 To - Spending review Topic 2]]+Dataset[[#This Row],[2024/25 To - Spending review Topic 3]]+Dataset[[#This Row],[2024/25 To - Spending review Topic 4]]+Dataset[[#This Row],[2024/25 To - Other reallocations]]","v":0},{"$f":"Dataset[[#This Row],[2025/26 To - Spending review Topic 1]]+Dataset[[#This Row],[2025/26 To - Spending review Topic 2]]+Dataset[[#This Row],[2025/26 To - Spending review Topic 3]]+Dataset[[#This Row],[2025/26 To - Spending review Topic 4]]+Dataset[[#This Row],[2025/26 To - Other reallocations]]","v":0},{"$f":"Dataset[[#This Row],[2026/27 To - Spending review Topic 1]]+Dataset[[#This Row],[2026/27 To - Spending review Topic 2]]+Dataset[[#This Row],[2026/27 To - Spending review Topic 3]]+Dataset[[#This Row],[2026/27 To - Spending review Topic 4]]+Dataset[[#This Row],[2026/27 To - Other reallocations]]","v":0},{"$f":"Dataset[[#This Row],[2024/25 Reduction]]+Dataset[[#This Row],[2024/25 From - Total]]","v":0},{"$f":"Dataset[[#This Row],[2025/26 Reduction]]+Dataset[[#This Row],[2025/26 From - Total]]","v":0},{"$f":"Dataset[[#This Row],[2026/27 Reduction]]+Dataset[[#This Row],[2026/27 From - Total]]","v":0},{"$f":"Dataset[[#This Row],[2023/24 Reduction]]","v":0},{"$f":"SUM(Dataset[[#This Row],[2024/25 Reduction]],Dataset[[#This Row],[2024/25 From - Total]],Dataset[[#This Row],[2024/25 To - Total]])","v":0},{"$f":"SUM(Dataset[[#This Row],[2025/26 Reduction]],Dataset[[#This Row],[2025/26 From - Total]],Dataset[[#This Row],[2025/26 To - Total]])","v":0},{"$f":"SUM(Dataset[[#This Row],[2026/27 Reduction]],Dataset[[#This Row],[2026/27 From - Total]],Dataset[[#This Row],[2026/27 To - Total]])","v":0},{"$f":"Dataset[[#This Row],[2023/24 Baseline]]+Dataset[[#This Row],[2023/24 Total change]]","v":1288},{"$f":"Dataset[[#This Row],[2024/25 Baseline]]+Dataset[[#This Row],[2024/25 Total change]]","v":1345},{"$f":"Dataset[[#This Row],[2025/26 Baseline]]+Dataset[[#This Row],[2025/26 Total change]]","v":1405},{"$f":"Dataset[[#This Row],[2026/27 Baseline]]+Dataset[[#This Row],[2026/27 Total change]]","v":1469}]
["NAT|Non-transfer item","26|Advertising","2024_25","MTEF2024",26,3,1,44584,697,"26","03","01","044584","000697","26|03|01","01","01","02","04","04","01|01|02|04|04","National","Military Veterans","Empowerment and Stakeholder Management","Provincial Offices and Stakeholder Relations","Non-transfer item","Current","Current payments","Goods and services","Advertising","Advertising","Peace and security","Defence and state security","NAT",0,0,1454,359,359,359,0,561,577,594,621,null,null,null,null,null,null,null,null,null,null,null,null,null,null,null,null,null,null,null,null,null,null,null,null,null,null,null,null,null,null,null,null,null,null,{"$f":"Dataset[[#This Row],[2024/25 From - Spending review Topic 1]]+Dataset[[#This Row],[2024/25 From - Spending review Topic 2]]+Dataset[[#This Row],[2024/25 From - Spending review Topic 3]]+Dataset[[#This Row],[2024/25 From - Spending review Topic 4]]+Dataset[[#This Row],[2024/25 From - Other reallocations]]","v":0},{"$f":"Dataset[[#This Row],[2025/26 From - Spending review Topic 1]]+Dataset[[#This Row],[2025/26 From - Spending review Topic 2]]+Dataset[[#This Row],[2025/26 From - Spending review Topic 3]]+Dataset[[#This Row],[2025/26 From - Spending review Topic 4]]+Dataset[[#This Row],[2025/26 From - Other reallocations]]","v":0},{"$f":"Dataset[[#This Row],[2026/27 From - Spending review Topic 1]]+Dataset[[#This Row],[2026/27 From - Spending review Topic 2]]+Dataset[[#This Row],[2026/27 From - Spending review Topic 3]]+Dataset[[#This Row],[2026/27 From - Spending review Topic 4]]+Dataset[[#This Row],[2026/27 From - Other reallocations]]","v":0},{"$f":"Dataset[[#This Row],[2024/25 To - Spending review Topic 1]]+Dataset[[#This Row],[2024/25 To - Spending review Topic 2]]+Dataset[[#This Row],[2024/25 To - Spending review Topic 3]]+Dataset[[#This Row],[2024/25 To - Spending review Topic 4]]+Dataset[[#This Row],[2024/25 To - Other reallocations]]","v":0},{"$f":"Dataset[[#This Row],[2025/26 To - Spending review Topic 1]]+Dataset[[#This Row],[2025/26 To - Spending review Topic 2]]+Dataset[[#This Row],[2025/26 To - Spending review Topic 3]]+Dataset[[#This Row],[2025/26 To - Spending review Topic 4]]+Dataset[[#This Row],[2025/26 To - Other reallocations]]","v":0},{"$f":"Dataset[[#This Row],[2026/27 To - Spending review Topic 1]]+Dataset[[#This Row],[2026/27 To - Spending review Topic 2]]+Dataset[[#This Row],[2026/27 To - Spending review Topic 3]]+Dataset[[#This Row],[2026/27 To - Spending review Topic 4]]+Dataset[[#This Row],[2026/27 To - Other reallocations]]","v":0},{"$f":"Dataset[[#This Row],[2024/25 Reduction]]+Dataset[[#This Row],[2024/25 From - Total]]","v":0},{"$f":"Dataset[[#This Row],[2025/26 Reduction]]+Dataset[[#This Row],[2025/26 From - Total]]","v":0},{"$f":"Dataset[[#This Row],[2026/27 Reduction]]+Dataset[[#This Row],[2026/27 From - Total]]","v":0},{"$f":"Dataset[[#This Row],[2023/24 Reduction]]","v":0},{"$f":"SUM(Dataset[[#This Row],[2024/25 Reduction]],Dataset[[#This Row],[2024/25 From - Total]],Dataset[[#This Row],[2024/25 To - Total]])","v":0},{"$f":"SUM(Dataset[[#This Row],[2025/26 Reduction]],Dataset[[#This Row],[2025/26 From - Total]],Dataset[[#This Row],[2025/26 To - Total]])","v":0},{"$f":"SUM(Dataset[[#This Row],[2026/27 Reduction]],Dataset[[#This Row],[2026/27 From - Total]],Dataset[[#This Row],[2026/27 To - Total]])","v":0},{"$f":"Dataset[[#This Row],[2023/24 Baseline]]+Dataset[[#This Row],[2023/24 Total change]]","v":561},{"$f":"Dataset[[#This Row],[2024/25 Baseline]]+Dataset[[#This Row],[2024/25 Total change]]","v":577},{"$f":"Dataset[[#This Row],[2025/26 Baseline]]+Dataset[[#This Row],[2025/26 Total change]]","v":594},{"$f":"Dataset[[#This Row],[2026/27 Baseline]]+Dataset[[#This Row],[2026/27 Total change]]","v":621}]
["NAT|Non-transfer item","26|Minor assets","2024_25","MTEF2024",26,3,1,44585,698,"26","03","01","044585","000698","26|03|01","01","01","02","05","05","01|01|02|05|05","National","Military Veterans","Empowerment and Stakeholder Management","Provincial Offices and Stakeholder Relations","Non-transfer item","Current","Current payments","Goods and services","Minor assets","Minor assets","Peace and security","Defence and state security","NAT",0,608,0,1025,1025,1025,0,100,120,150,157,null,null,null,null,null,null,null,null,null,null,null,null,null,null,null,null,null,null,null,null,null,null,null,null,null,null,null,null,null,null,null,null,null,null,{"$f":"Dataset[[#This Row],[2024/25 From - Spending review Topic 1]]+Dataset[[#This Row],[2024/25 From - Spending review Topic 2]]+Dataset[[#This Row],[2024/25 From - Spending review Topic 3]]+Dataset[[#This Row],[2024/25 From - Spending review Topic 4]]+Dataset[[#This Row],[2024/25 From - Other reallocations]]","v":0},{"$f":"Dataset[[#This Row],[2025/26 From - Spending review Topic 1]]+Dataset[[#This Row],[2025/26 From - Spending review Topic 2]]+Dataset[[#This Row],[2025/26 From - Spending review Topic 3]]+Dataset[[#This Row],[2025/26 From - Spending review Topic 4]]+Dataset[[#This Row],[2025/26 From - Other reallocations]]","v":0},{"$f":"Dataset[[#This Row],[2026/27 From - Spending review Topic 1]]+Dataset[[#This Row],[2026/27 From - Spending review Topic 2]]+Dataset[[#This Row],[2026/27 From - Spending review Topic 3]]+Dataset[[#This Row],[2026/27 From - Spending review Topic 4]]+Dataset[[#This Row],[2026/27 From - Other reallocations]]","v":0},{"$f":"Dataset[[#This Row],[2024/25 To - Spending review Topic 1]]+Dataset[[#This Row],[2024/25 To - Spending review Topic 2]]+Dataset[[#This Row],[2024/25 To - Spending review Topic 3]]+Dataset[[#This Row],[2024/25 To - Spending review Topic 4]]+Dataset[[#This Row],[2024/25 To - Other reallocations]]","v":0},{"$f":"Dataset[[#This Row],[2025/26 To - Spending review Topic 1]]+Dataset[[#This Row],[2025/26 To - Spending review Topic 2]]+Dataset[[#This Row],[2025/26 To - Spending review Topic 3]]+Dataset[[#This Row],[2025/26 To - Spending review Topic 4]]+Dataset[[#This Row],[2025/26 To - Other reallocations]]","v":0},{"$f":"Dataset[[#This Row],[2026/27 To - Spending review Topic 1]]+Dataset[[#This Row],[2026/27 To - Spending review Topic 2]]+Dataset[[#This Row],[2026/27 To - Spending review Topic 3]]+Dataset[[#This Row],[2026/27 To - Spending review Topic 4]]+Dataset[[#This Row],[2026/27 To - Other reallocations]]","v":0},{"$f":"Dataset[[#This Row],[2024/25 Reduction]]+Dataset[[#This Row],[2024/25 From - Total]]","v":0},{"$f":"Dataset[[#This Row],[2025/26 Reduction]]+Dataset[[#This Row],[2025/26 From - Total]]","v":0},{"$f":"Dataset[[#This Row],[2026/27 Reduction]]+Dataset[[#This Row],[2026/27 From - Total]]","v":0},{"$f":"Dataset[[#This Row],[2023/24 Reduction]]","v":0},{"$f":"SUM(Dataset[[#This Row],[2024/25 Reduction]],Dataset[[#This Row],[2024/25 From - Total]],Dataset[[#This Row],[2024/25 To - Total]])","v":0},{"$f":"SUM(Dataset[[#This Row],[2025/26 Reduction]],Dataset[[#This Row],[2025/26 From - Total]],Dataset[[#This Row],[2025/26 To - Total]])","v":0},{"$f":"SUM(Dataset[[#This Row],[2026/27 Reduction]],Dataset[[#This Row],[2026/27 From - Total]],Dataset[[#This Row],[2026/27 To - Total]])","v":0},{"$f":"Dataset[[#This Row],[2023/24 Baseline]]+Dataset[[#This Row],[2023/24 Total change]]","v":100},{"$f":"Dataset[[#This Row],[2024/25 Baseline]]+Dataset[[#This Row],[2024/25 Total change]]","v":120},{"$f":"Dataset[[#This Row],[2025/26 Baseline]]+Dataset[[#This Row],[2025/26 Total change]]","v":150},{"$f":"Dataset[[#This Row],[2026/27 Baseline]]+Dataset[[#This Row],[2026/27 Total change]]","v":157}]
["NAT|Non-transfer item","26|Audit costs: External","2024_25","MTEF2024",26,3,1,44586,699,"26","03","01","044586","000699","26|03|01","01","01","02","06","06","01|01|02|06|06","National","Military Veterans","Empowerment and Stakeholder Management","Provincial Offices and Stakeholder Relations","Non-transfer item","Current","Current payments","Goods and services","Audit costs: External","Audit costs: External","Peace and security","Defence and state security","NAT",0,0,0,0,0,0,0,0,0,0,0,null,null,null,null,null,null,null,null,null,null,null,null,null,null,null,null,null,null,null,null,null,null,null,null,null,null,null,null,null,null,null,null,null,null,{"$f":"Dataset[[#This Row],[2024/25 From - Spending review Topic 1]]+Dataset[[#This Row],[2024/25 From - Spending review Topic 2]]+Dataset[[#This Row],[2024/25 From - Spending review Topic 3]]+Dataset[[#This Row],[2024/25 From - Spending review Topic 4]]+Dataset[[#This Row],[2024/25 From - Other reallocations]]","v":0},{"$f":"Dataset[[#This Row],[2025/26 From - Spending review Topic 1]]+Dataset[[#This Row],[2025/26 From - Spending review Topic 2]]+Dataset[[#This Row],[2025/26 From - Spending review Topic 3]]+Dataset[[#This Row],[2025/26 From - Spending review Topic 4]]+Dataset[[#This Row],[2025/26 From - Other reallocations]]","v":0},{"$f":"Dataset[[#This Row],[2026/27 From - Spending review Topic 1]]+Dataset[[#This Row],[2026/27 From - Spending review Topic 2]]+Dataset[[#This Row],[2026/27 From - Spending review Topic 3]]+Dataset[[#This Row],[2026/27 From - Spending review Topic 4]]+Dataset[[#This Row],[2026/27 From - Other reallocations]]","v":0},{"$f":"Dataset[[#This Row],[2024/25 To - Spending review Topic 1]]+Dataset[[#This Row],[2024/25 To - Spending review Topic 2]]+Dataset[[#This Row],[2024/25 To - Spending review Topic 3]]+Dataset[[#This Row],[2024/25 To - Spending review Topic 4]]+Dataset[[#This Row],[2024/25 To - Other reallocations]]","v":0},{"$f":"Dataset[[#This Row],[2025/26 To - Spending review Topic 1]]+Dataset[[#This Row],[2025/26 To - Spending review Topic 2]]+Dataset[[#This Row],[2025/26 To - Spending review Topic 3]]+Dataset[[#This Row],[2025/26 To - Spending review Topic 4]]+Dataset[[#This Row],[2025/26 To - Other reallocations]]","v":0},{"$f":"Dataset[[#This Row],[2026/27 To - Spending review Topic 1]]+Dataset[[#This Row],[2026/27 To - Spending review Topic 2]]+Dataset[[#This Row],[2026/27 To - Spending review Topic 3]]+Dataset[[#This Row],[2026/27 To - Spending review Topic 4]]+Dataset[[#This Row],[2026/27 To - Other reallocations]]","v":0},{"$f":"Dataset[[#This Row],[2024/25 Reduction]]+Dataset[[#This Row],[2024/25 From - Total]]","v":0},{"$f":"Dataset[[#This Row],[2025/26 Reduction]]+Dataset[[#This Row],[2025/26 From - Total]]","v":0},{"$f":"Dataset[[#This Row],[2026/27 Reduction]]+Dataset[[#This Row],[2026/27 From - Total]]","v":0},{"$f":"Dataset[[#This Row],[2023/24 Reduction]]","v":0},{"$f":"SUM(Dataset[[#This Row],[2024/25 Reduction]],Dataset[[#This Row],[2024/25 From - Total]],Dataset[[#This Row],[2024/25 To - Total]])","v":0},{"$f":"SUM(Dataset[[#This Row],[2025/26 Reduction]],Dataset[[#This Row],[2025/26 From - Total]],Dataset[[#This Row],[2025/26 To - Total]])","v":0},{"$f":"SUM(Dataset[[#This Row],[2026/27 Reduction]],Dataset[[#This Row],[2026/27 From - Total]],Dataset[[#This Row],[2026/27 To - Total]])","v":0},{"$f":"Dataset[[#This Row],[2023/24 Baseline]]+Dataset[[#This Row],[2023/24 Total change]]","v":0},{"$f":"Dataset[[#This Row],[2024/25 Baseline]]+Dataset[[#This Row],[2024/25 Total change]]","v":0},{"$f":"Dataset[[#This Row],[2025/26 Baseline]]+Dataset[[#This Row],[2025/26 Total change]]","v":0},{"$f":"Dataset[[#This Row],[2026/27 Baseline]]+Dataset[[#This Row],[2026/27 Total change]]","v":0}]
["NAT|Non-transfer item","26|Bursaries: Employees","2024_25","MTEF2024",26,3,1,44587,700,"26","03","01","044587","000700","26|03|01","01","01","02","07","07","01|01|02|07|07","National","Military Veterans","Empowerment and Stakeholder Management","Provincial Offices and Stakeholder Relations","Non-transfer item","Current","Current payments","Goods and services","Bursaries: Employees","Bursaries: Employees","Peace and security","Defence and state security","NAT",0,0,0,0,0,0,0,0,0,0,0,null,null,null,null,null,null,null,null,null,null,null,null,null,null,null,null,null,null,null,null,null,null,null,null,null,null,null,null,null,null,null,null,null,null,{"$f":"Dataset[[#This Row],[2024/25 From - Spending review Topic 1]]+Dataset[[#This Row],[2024/25 From - Spending review Topic 2]]+Dataset[[#This Row],[2024/25 From - Spending review Topic 3]]+Dataset[[#This Row],[2024/25 From - Spending review Topic 4]]+Dataset[[#This Row],[2024/25 From - Other reallocations]]","v":0},{"$f":"Dataset[[#This Row],[2025/26 From - Spending review Topic 1]]+Dataset[[#This Row],[2025/26 From - Spending review Topic 2]]+Dataset[[#This Row],[2025/26 From - Spending review Topic 3]]+Dataset[[#This Row],[2025/26 From - Spending review Topic 4]]+Dataset[[#This Row],[2025/26 From - Other reallocations]]","v":0},{"$f":"Dataset[[#This Row],[2026/27 From - Spending review Topic 1]]+Dataset[[#This Row],[2026/27 From - Spending review Topic 2]]+Dataset[[#This Row],[2026/27 From - Spending review Topic 3]]+Dataset[[#This Row],[2026/27 From - Spending review Topic 4]]+Dataset[[#This Row],[2026/27 From - Other reallocations]]","v":0},{"$f":"Dataset[[#This Row],[2024/25 To - Spending review Topic 1]]+Dataset[[#This Row],[2024/25 To - Spending review Topic 2]]+Dataset[[#This Row],[2024/25 To - Spending review Topic 3]]+Dataset[[#This Row],[2024/25 To - Spending review Topic 4]]+Dataset[[#This Row],[2024/25 To - Other reallocations]]","v":0},{"$f":"Dataset[[#This Row],[2025/26 To - Spending review Topic 1]]+Dataset[[#This Row],[2025/26 To - Spending review Topic 2]]+Dataset[[#This Row],[2025/26 To - Spending review Topic 3]]+Dataset[[#This Row],[2025/26 To - Spending review Topic 4]]+Dataset[[#This Row],[2025/26 To - Other reallocations]]","v":0},{"$f":"Dataset[[#This Row],[2026/27 To - Spending review Topic 1]]+Dataset[[#This Row],[2026/27 To - Spending review Topic 2]]+Dataset[[#This Row],[2026/27 To - Spending review Topic 3]]+Dataset[[#This Row],[2026/27 To - Spending review Topic 4]]+Dataset[[#This Row],[2026/27 To - Other reallocations]]","v":0},{"$f":"Dataset[[#This Row],[2024/25 Reduction]]+Dataset[[#This Row],[2024/25 From - Total]]","v":0},{"$f":"Dataset[[#This Row],[2025/26 Reduction]]+Dataset[[#This Row],[2025/26 From - Total]]","v":0},{"$f":"Dataset[[#This Row],[2026/27 Reduction]]+Dataset[[#This Row],[2026/27 From - Total]]","v":0},{"$f":"Dataset[[#This Row],[2023/24 Reduction]]","v":0},{"$f":"SUM(Dataset[[#This Row],[2024/25 Reduction]],Dataset[[#This Row],[2024/25 From - Total]],Dataset[[#This Row],[2024/25 To - Total]])","v":0},{"$f":"SUM(Dataset[[#This Row],[2025/26 Reduction]],Dataset[[#This Row],[2025/26 From - Total]],Dataset[[#This Row],[2025/26 To - Total]])","v":0},{"$f":"SUM(Dataset[[#This Row],[2026/27 Reduction]],Dataset[[#This Row],[2026/27 From - Total]],Dataset[[#This Row],[2026/27 To - Total]])","v":0},{"$f":"Dataset[[#This Row],[2023/24 Baseline]]+Dataset[[#This Row],[2023/24 Total change]]","v":0},{"$f":"Dataset[[#This Row],[2024/25 Baseline]]+Dataset[[#This Row],[2024/25 Total change]]","v":0},{"$f":"Dataset[[#This Row],[2025/26 Baseline]]+Dataset[[#This Row],[2025/26 Total change]]","v":0},{"$f":"Dataset[[#This Row],[2026/27 Baseline]]+Dataset[[#This Row],[2026/27 Total change]]","v":0}]
["NAT|Non-transfer item","26|Catering: Departmental activities","2024_25","MTEF2024",26,3,1,44588,701,"26","03","01","044588","000701","26|03|01","01","01","02","08","08","01|01|02|08|08","National","Military Veterans","Empowerment and Stakeholder Management","Provincial Offices and Stakeholder Relations","Non-transfer item","Current","Current payments","Goods and services","Catering: Departmental activities","Catering: Departmental activities","Peace and security","Defence and state security","NAT",0,0,212,622,622,622,0,624,652,681,712,null,null,null,null,null,null,null,null,null,null,null,null,null,null,null,null,null,null,null,null,null,null,null,null,null,null,null,null,null,null,null,null,null,null,{"$f":"Dataset[[#This Row],[2024/25 From - Spending review Topic 1]]+Dataset[[#This Row],[2024/25 From - Spending review Topic 2]]+Dataset[[#This Row],[2024/25 From - Spending review Topic 3]]+Dataset[[#This Row],[2024/25 From - Spending review Topic 4]]+Dataset[[#This Row],[2024/25 From - Other reallocations]]","v":0},{"$f":"Dataset[[#This Row],[2025/26 From - Spending review Topic 1]]+Dataset[[#This Row],[2025/26 From - Spending review Topic 2]]+Dataset[[#This Row],[2025/26 From - Spending review Topic 3]]+Dataset[[#This Row],[2025/26 From - Spending review Topic 4]]+Dataset[[#This Row],[2025/26 From - Other reallocations]]","v":0},{"$f":"Dataset[[#This Row],[2026/27 From - Spending review Topic 1]]+Dataset[[#This Row],[2026/27 From - Spending review Topic 2]]+Dataset[[#This Row],[2026/27 From - Spending review Topic 3]]+Dataset[[#This Row],[2026/27 From - Spending review Topic 4]]+Dataset[[#This Row],[2026/27 From - Other reallocations]]","v":0},{"$f":"Dataset[[#This Row],[2024/25 To - Spending review Topic 1]]+Dataset[[#This Row],[2024/25 To - Spending review Topic 2]]+Dataset[[#This Row],[2024/25 To - Spending review Topic 3]]+Dataset[[#This Row],[2024/25 To - Spending review Topic 4]]+Dataset[[#This Row],[2024/25 To - Other reallocations]]","v":0},{"$f":"Dataset[[#This Row],[2025/26 To - Spending review Topic 1]]+Dataset[[#This Row],[2025/26 To - Spending review Topic 2]]+Dataset[[#This Row],[2025/26 To - Spending review Topic 3]]+Dataset[[#This Row],[2025/26 To - Spending review Topic 4]]+Dataset[[#This Row],[2025/26 To - Other reallocations]]","v":0},{"$f":"Dataset[[#This Row],[2026/27 To - Spending review Topic 1]]+Dataset[[#This Row],[2026/27 To - Spending review Topic 2]]+Dataset[[#This Row],[2026/27 To - Spending review Topic 3]]+Dataset[[#This Row],[2026/27 To - Spending review Topic 4]]+Dataset[[#This Row],[2026/27 To - Other reallocations]]","v":0},{"$f":"Dataset[[#This Row],[2024/25 Reduction]]+Dataset[[#This Row],[2024/25 From - Total]]","v":0},{"$f":"Dataset[[#This Row],[2025/26 Reduction]]+Dataset[[#This Row],[2025/26 From - Total]]","v":0},{"$f":"Dataset[[#This Row],[2026/27 Reduction]]+Dataset[[#This Row],[2026/27 From - Total]]","v":0},{"$f":"Dataset[[#This Row],[2023/24 Reduction]]","v":0},{"$f":"SUM(Dataset[[#This Row],[2024/25 Reduction]],Dataset[[#This Row],[2024/25 From - Total]],Dataset[[#This Row],[2024/25 To - Total]])","v":0},{"$f":"SUM(Dataset[[#This Row],[2025/26 Reduction]],Dataset[[#This Row],[2025/26 From - Total]],Dataset[[#This Row],[2025/26 To - Total]])","v":0},{"$f":"SUM(Dataset[[#This Row],[2026/27 Reduction]],Dataset[[#This Row],[2026/27 From - Total]],Dataset[[#This Row],[2026/27 To - Total]])","v":0},{"$f":"Dataset[[#This Row],[2023/24 Baseline]]+Dataset[[#This Row],[2023/24 Total change]]","v":624},{"$f":"Dataset[[#This Row],[2024/25 Baseline]]+Dataset[[#This Row],[2024/25 Total change]]","v":652},{"$f":"Dataset[[#This Row],[2025/26 Baseline]]+Dataset[[#This Row],[2025/26 Total change]]","v":681},{"$f":"Dataset[[#This Row],[2026/27 Baseline]]+Dataset[[#This Row],[2026/27 Total change]]","v":712}]
["NAT|Non-transfer item","26|Communication (G&S)","2024_25","MTEF2024",26,3,1,44589,702,"26","03","01","044589","000702","26|03|01","01","01","02","09","09","01|01|02|09|09","National","Military Veterans","Empowerment and Stakeholder Management","Provincial Offices and Stakeholder Relations","Non-transfer item","Current","Current payments","Goods and services","Communication (G&S)","Communication (G&S)","Peace and security","Defence and state security","NAT",0,0,0,0,0,0,0,0,0,0,0,null,null,null,null,null,null,null,null,null,null,null,null,null,null,null,null,null,null,null,null,null,null,null,null,null,null,null,null,null,null,null,null,null,null,{"$f":"Dataset[[#This Row],[2024/25 From - Spending review Topic 1]]+Dataset[[#This Row],[2024/25 From - Spending review Topic 2]]+Dataset[[#This Row],[2024/25 From - Spending review Topic 3]]+Dataset[[#This Row],[2024/25 From - Spending review Topic 4]]+Dataset[[#This Row],[2024/25 From - Other reallocations]]","v":0},{"$f":"Dataset[[#This Row],[2025/26 From - Spending review Topic 1]]+Dataset[[#This Row],[2025/26 From - Spending review Topic 2]]+Dataset[[#This Row],[2025/26 From - Spending review Topic 3]]+Dataset[[#This Row],[2025/26 From - Spending review Topic 4]]+Dataset[[#This Row],[2025/26 From - Other reallocations]]","v":0},{"$f":"Dataset[[#This Row],[2026/27 From - Spending review Topic 1]]+Dataset[[#This Row],[2026/27 From - Spending review Topic 2]]+Dataset[[#This Row],[2026/27 From - Spending review Topic 3]]+Dataset[[#This Row],[2026/27 From - Spending review Topic 4]]+Dataset[[#This Row],[2026/27 From - Other reallocations]]","v":0},{"$f":"Dataset[[#This Row],[2024/25 To - Spending review Topic 1]]+Dataset[[#This Row],[2024/25 To - Spending review Topic 2]]+Dataset[[#This Row],[2024/25 To - Spending review Topic 3]]+Dataset[[#This Row],[2024/25 To - Spending review Topic 4]]+Dataset[[#This Row],[2024/25 To - Other reallocations]]","v":0},{"$f":"Dataset[[#This Row],[2025/26 To - Spending review Topic 1]]+Dataset[[#This Row],[2025/26 To - Spending review Topic 2]]+Dataset[[#This Row],[2025/26 To - Spending review Topic 3]]+Dataset[[#This Row],[2025/26 To - Spending review Topic 4]]+Dataset[[#This Row],[2025/26 To - Other reallocations]]","v":0},{"$f":"Dataset[[#This Row],[2026/27 To - Spending review Topic 1]]+Dataset[[#This Row],[2026/27 To - Spending review Topic 2]]+Dataset[[#This Row],[2026/27 To - Spending review Topic 3]]+Dataset[[#This Row],[2026/27 To - Spending review Topic 4]]+Dataset[[#This Row],[2026/27 To - Other reallocations]]","v":0},{"$f":"Dataset[[#This Row],[2024/25 Reduction]]+Dataset[[#This Row],[2024/25 From - Total]]","v":0},{"$f":"Dataset[[#This Row],[2025/26 Reduction]]+Dataset[[#This Row],[2025/26 From - Total]]","v":0},{"$f":"Dataset[[#This Row],[2026/27 Reduction]]+Dataset[[#This Row],[2026/27 From - Total]]","v":0},{"$f":"Dataset[[#This Row],[2023/24 Reduction]]","v":0},{"$f":"SUM(Dataset[[#This Row],[2024/25 Reduction]],Dataset[[#This Row],[2024/25 From - Total]],Dataset[[#This Row],[2024/25 To - Total]])","v":0},{"$f":"SUM(Dataset[[#This Row],[2025/26 Reduction]],Dataset[[#This Row],[2025/26 From - Total]],Dataset[[#This Row],[2025/26 To - Total]])","v":0},{"$f":"SUM(Dataset[[#This Row],[2026/27 Reduction]],Dataset[[#This Row],[2026/27 From - Total]],Dataset[[#This Row],[2026/27 To - Total]])","v":0},{"$f":"Dataset[[#This Row],[2023/24 Baseline]]+Dataset[[#This Row],[2023/24 Total change]]","v":0},{"$f":"Dataset[[#This Row],[2024/25 Baseline]]+Dataset[[#This Row],[2024/25 Total change]]","v":0},{"$f":"Dataset[[#This Row],[2025/26 Baseline]]+Dataset[[#This Row],[2025/26 Total change]]","v":0},{"$f":"Dataset[[#This Row],[2026/27 Baseline]]+Dataset[[#This Row],[2026/27 Total change]]","v":0}]
["NAT|Non-transfer item","26|Computer services","2024_25","MTEF2024",26,3,1,44590,703,"26","03","01","044590","000703","26|03|01","01","01","02","10","10","01|01|02|10|10","National","Military Veterans","Empowerment and Stakeholder Management","Provincial Offices and Stakeholder Relations","Non-transfer item","Current","Current payments","Goods and services","Computer services","Computer services","Peace and security","Defence and state security","NAT",0,0,0,0,0,0,0,0,0,0,0,null,null,null,null,null,null,null,null,null,null,null,null,null,null,null,null,null,null,null,null,null,null,null,null,null,null,null,null,null,null,null,null,null,null,{"$f":"Dataset[[#This Row],[2024/25 From - Spending review Topic 1]]+Dataset[[#This Row],[2024/25 From - Spending review Topic 2]]+Dataset[[#This Row],[2024/25 From - Spending review Topic 3]]+Dataset[[#This Row],[2024/25 From - Spending review Topic 4]]+Dataset[[#This Row],[2024/25 From - Other reallocations]]","v":0},{"$f":"Dataset[[#This Row],[2025/26 From - Spending review Topic 1]]+Dataset[[#This Row],[2025/26 From - Spending review Topic 2]]+Dataset[[#This Row],[2025/26 From - Spending review Topic 3]]+Dataset[[#This Row],[2025/26 From - Spending review Topic 4]]+Dataset[[#This Row],[2025/26 From - Other reallocations]]","v":0},{"$f":"Dataset[[#This Row],[2026/27 From - Spending review Topic 1]]+Dataset[[#This Row],[2026/27 From - Spending review Topic 2]]+Dataset[[#This Row],[2026/27 From - Spending review Topic 3]]+Dataset[[#This Row],[2026/27 From - Spending review Topic 4]]+Dataset[[#This Row],[2026/27 From - Other reallocations]]","v":0},{"$f":"Dataset[[#This Row],[2024/25 To - Spending review Topic 1]]+Dataset[[#This Row],[2024/25 To - Spending review Topic 2]]+Dataset[[#This Row],[2024/25 To - Spending review Topic 3]]+Dataset[[#This Row],[2024/25 To - Spending review Topic 4]]+Dataset[[#This Row],[2024/25 To - Other reallocations]]","v":0},{"$f":"Dataset[[#This Row],[2025/26 To - Spending review Topic 1]]+Dataset[[#This Row],[2025/26 To - Spending review Topic 2]]+Dataset[[#This Row],[2025/26 To - Spending review Topic 3]]+Dataset[[#This Row],[2025/26 To - Spending review Topic 4]]+Dataset[[#This Row],[2025/26 To - Other reallocations]]","v":0},{"$f":"Dataset[[#This Row],[2026/27 To - Spending review Topic 1]]+Dataset[[#This Row],[2026/27 To - Spending review Topic 2]]+Dataset[[#This Row],[2026/27 To - Spending review Topic 3]]+Dataset[[#This Row],[2026/27 To - Spending review Topic 4]]+Dataset[[#This Row],[2026/27 To - Other reallocations]]","v":0},{"$f":"Dataset[[#This Row],[2024/25 Reduction]]+Dataset[[#This Row],[2024/25 From - Total]]","v":0},{"$f":"Dataset[[#This Row],[2025/26 Reduction]]+Dataset[[#This Row],[2025/26 From - Total]]","v":0},{"$f":"Dataset[[#This Row],[2026/27 Reduction]]+Dataset[[#This Row],[2026/27 From - Total]]","v":0},{"$f":"Dataset[[#This Row],[2023/24 Reduction]]","v":0},{"$f":"SUM(Dataset[[#This Row],[2024/25 Reduction]],Dataset[[#This Row],[2024/25 From - Total]],Dataset[[#This Row],[2024/25 To - Total]])","v":0},{"$f":"SUM(Dataset[[#This Row],[2025/26 Reduction]],Dataset[[#This Row],[2025/26 From - Total]],Dataset[[#This Row],[2025/26 To - Total]])","v":0},{"$f":"SUM(Dataset[[#This Row],[2026/27 Reduction]],Dataset[[#This Row],[2026/27 From - Total]],Dataset[[#This Row],[2026/27 To - Total]])","v":0},{"$f":"Dataset[[#This Row],[2023/24 Baseline]]+Dataset[[#This Row],[2023/24 Total change]]","v":0},{"$f":"Dataset[[#This Row],[2024/25 Baseline]]+Dataset[[#This Row],[2024/25 Total change]]","v":0},{"$f":"Dataset[[#This Row],[2025/26 Baseline]]+Dataset[[#This Row],[2025/26 Total change]]","v":0},{"$f":"Dataset[[#This Row],[2026/27 Baseline]]+Dataset[[#This Row],[2026/27 Total change]]","v":0}]
["NAT|Non-transfer item","26|Consultants: Business and advisory services","2024_25","MTEF2024",26,3,1,44591,704,"26","03","01","044591","000704","26|03|01","01","01","02","11","11","01|01|02|11|11","National","Military Veterans","Empowerment and Stakeholder Management","Provincial Offices and Stakeholder Relations","Non-transfer item","Current","Current payments","Goods and services","Consultants: Business and advisory services","Consultants: Business and advisory services","Peace and security","Defence and state security","NAT",0,0,0,0,0,0,0,0,0,0,0,null,null,null,null,null,null,null,null,null,null,null,null,null,null,null,null,null,null,null,null,null,null,null,null,null,null,null,null,null,null,null,null,null,null,{"$f":"Dataset[[#This Row],[2024/25 From - Spending review Topic 1]]+Dataset[[#This Row],[2024/25 From - Spending review Topic 2]]+Dataset[[#This Row],[2024/25 From - Spending review Topic 3]]+Dataset[[#This Row],[2024/25 From - Spending review Topic 4]]+Dataset[[#This Row],[2024/25 From - Other reallocations]]","v":0},{"$f":"Dataset[[#This Row],[2025/26 From - Spending review Topic 1]]+Dataset[[#This Row],[2025/26 From - Spending review Topic 2]]+Dataset[[#This Row],[2025/26 From - Spending review Topic 3]]+Dataset[[#This Row],[2025/26 From - Spending review Topic 4]]+Dataset[[#This Row],[2025/26 From - Other reallocations]]","v":0},{"$f":"Dataset[[#This Row],[2026/27 From - Spending review Topic 1]]+Dataset[[#This Row],[2026/27 From - Spending review Topic 2]]+Dataset[[#This Row],[2026/27 From - Spending review Topic 3]]+Dataset[[#This Row],[2026/27 From - Spending review Topic 4]]+Dataset[[#This Row],[2026/27 From - Other reallocations]]","v":0},{"$f":"Dataset[[#This Row],[2024/25 To - Spending review Topic 1]]+Dataset[[#This Row],[2024/25 To - Spending review Topic 2]]+Dataset[[#This Row],[2024/25 To - Spending review Topic 3]]+Dataset[[#This Row],[2024/25 To - Spending review Topic 4]]+Dataset[[#This Row],[2024/25 To - Other reallocations]]","v":0},{"$f":"Dataset[[#This Row],[2025/26 To - Spending review Topic 1]]+Dataset[[#This Row],[2025/26 To - Spending review Topic 2]]+Dataset[[#This Row],[2025/26 To - Spending review Topic 3]]+Dataset[[#This Row],[2025/26 To - Spending review Topic 4]]+Dataset[[#This Row],[2025/26 To - Other reallocations]]","v":0},{"$f":"Dataset[[#This Row],[2026/27 To - Spending review Topic 1]]+Dataset[[#This Row],[2026/27 To - Spending review Topic 2]]+Dataset[[#This Row],[2026/27 To - Spending review Topic 3]]+Dataset[[#This Row],[2026/27 To - Spending review Topic 4]]+Dataset[[#This Row],[2026/27 To - Other reallocations]]","v":0},{"$f":"Dataset[[#This Row],[2024/25 Reduction]]+Dataset[[#This Row],[2024/25 From - Total]]","v":0},{"$f":"Dataset[[#This Row],[2025/26 Reduction]]+Dataset[[#This Row],[2025/26 From - Total]]","v":0},{"$f":"Dataset[[#This Row],[2026/27 Reduction]]+Dataset[[#This Row],[2026/27 From - Total]]","v":0},{"$f":"Dataset[[#This Row],[2023/24 Reduction]]","v":0},{"$f":"SUM(Dataset[[#This Row],[2024/25 Reduction]],Dataset[[#This Row],[2024/25 From - Total]],Dataset[[#This Row],[2024/25 To - Total]])","v":0},{"$f":"SUM(Dataset[[#This Row],[2025/26 Reduction]],Dataset[[#This Row],[2025/26 From - Total]],Dataset[[#This Row],[2025/26 To - Total]])","v":0},{"$f":"SUM(Dataset[[#This Row],[2026/27 Reduction]],Dataset[[#This Row],[2026/27 From - Total]],Dataset[[#This Row],[2026/27 To - Total]])","v":0},{"$f":"Dataset[[#This Row],[2023/24 Baseline]]+Dataset[[#This Row],[2023/24 Total change]]","v":0},{"$f":"Dataset[[#This Row],[2024/25 Baseline]]+Dataset[[#This Row],[2024/25 Total change]]","v":0},{"$f":"Dataset[[#This Row],[2025/26 Baseline]]+Dataset[[#This Row],[2025/26 Total change]]","v":0},{"$f":"Dataset[[#This Row],[2026/27 Baseline]]+Dataset[[#This Row],[2026/27 Total change]]","v":0}]
["NAT|Non-transfer item","26|Infrastructure and planning services","2024_25","MTEF2024",26,3,1,44592,705,"26","03","01","044592","000705","26|03|01","01","01","02","12","12","01|01|02|12|12","National","Military Veterans","Empowerment and Stakeholder Management","Provincial Offices and Stakeholder Relations","Non-transfer item","Current","Current payments","Goods and services","Infrastructure and planning services","Infrastructure and planning services","Peace and security","Defence and state security","NAT",0,0,0,0,0,0,0,0,0,0,0,null,null,null,null,null,null,null,null,null,null,null,null,null,null,null,null,null,null,null,null,null,null,null,null,null,null,null,null,null,null,null,null,null,null,{"$f":"Dataset[[#This Row],[2024/25 From - Spending review Topic 1]]+Dataset[[#This Row],[2024/25 From - Spending review Topic 2]]+Dataset[[#This Row],[2024/25 From - Spending review Topic 3]]+Dataset[[#This Row],[2024/25 From - Spending review Topic 4]]+Dataset[[#This Row],[2024/25 From - Other reallocations]]","v":0},{"$f":"Dataset[[#This Row],[2025/26 From - Spending review Topic 1]]+Dataset[[#This Row],[2025/26 From - Spending review Topic 2]]+Dataset[[#This Row],[2025/26 From - Spending review Topic 3]]+Dataset[[#This Row],[2025/26 From - Spending review Topic 4]]+Dataset[[#This Row],[2025/26 From - Other reallocations]]","v":0},{"$f":"Dataset[[#This Row],[2026/27 From - Spending review Topic 1]]+Dataset[[#This Row],[2026/27 From - Spending review Topic 2]]+Dataset[[#This Row],[2026/27 From - Spending review Topic 3]]+Dataset[[#This Row],[2026/27 From - Spending review Topic 4]]+Dataset[[#This Row],[2026/27 From - Other reallocations]]","v":0},{"$f":"Dataset[[#This Row],[2024/25 To - Spending review Topic 1]]+Dataset[[#This Row],[2024/25 To - Spending review Topic 2]]+Dataset[[#This Row],[2024/25 To - Spending review Topic 3]]+Dataset[[#This Row],[2024/25 To - Spending review Topic 4]]+Dataset[[#This Row],[2024/25 To - Other reallocations]]","v":0},{"$f":"Dataset[[#This Row],[2025/26 To - Spending review Topic 1]]+Dataset[[#This Row],[2025/26 To - Spending review Topic 2]]+Dataset[[#This Row],[2025/26 To - Spending review Topic 3]]+Dataset[[#This Row],[2025/26 To - Spending review Topic 4]]+Dataset[[#This Row],[2025/26 To - Other reallocations]]","v":0},{"$f":"Dataset[[#This Row],[2026/27 To - Spending review Topic 1]]+Dataset[[#This Row],[2026/27 To - Spending review Topic 2]]+Dataset[[#This Row],[2026/27 To - Spending review Topic 3]]+Dataset[[#This Row],[2026/27 To - Spending review Topic 4]]+Dataset[[#This Row],[2026/27 To - Other reallocations]]","v":0},{"$f":"Dataset[[#This Row],[2024/25 Reduction]]+Dataset[[#This Row],[2024/25 From - Total]]","v":0},{"$f":"Dataset[[#This Row],[2025/26 Reduction]]+Dataset[[#This Row],[2025/26 From - Total]]","v":0},{"$f":"Dataset[[#This Row],[2026/27 Reduction]]+Dataset[[#This Row],[2026/27 From - Total]]","v":0},{"$f":"Dataset[[#This Row],[2023/24 Reduction]]","v":0},{"$f":"SUM(Dataset[[#This Row],[2024/25 Reduction]],Dataset[[#This Row],[2024/25 From - Total]],Dataset[[#This Row],[2024/25 To - Total]])","v":0},{"$f":"SUM(Dataset[[#This Row],[2025/26 Reduction]],Dataset[[#This Row],[2025/26 From - Total]],Dataset[[#This Row],[2025/26 To - Total]])","v":0},{"$f":"SUM(Dataset[[#This Row],[2026/27 Reduction]],Dataset[[#This Row],[2026/27 From - Total]],Dataset[[#This Row],[2026/27 To - Total]])","v":0},{"$f":"Dataset[[#This Row],[2023/24 Baseline]]+Dataset[[#This Row],[2023/24 Total change]]","v":0},{"$f":"Dataset[[#This Row],[2024/25 Baseline]]+Dataset[[#This Row],[2024/25 Total change]]","v":0},{"$f":"Dataset[[#This Row],[2025/26 Baseline]]+Dataset[[#This Row],[2025/26 Total change]]","v":0},{"$f":"Dataset[[#This Row],[2026/27 Baseline]]+Dataset[[#This Row],[2026/27 Total change]]","v":0}]
["NAT|Non-transfer item","26|Laboratory services","2024_25","MTEF2024",26,3,1,44593,706,"26","03","01","044593","000706","26|03|01","01","01","02","13","13","01|01|02|13|13","National","Military Veterans","Empowerment and Stakeholder Management","Provincial Offices and Stakeholder Relations","Non-transfer item","Current","Current payments","Goods and services","Laboratory services","Laboratory services","Peace and security","Defence and state security","NAT",0,0,0,0,0,0,0,0,0,0,0,null,null,null,null,null,null,null,null,null,null,null,null,null,null,null,null,null,null,null,null,null,null,null,null,null,null,null,null,null,null,null,null,null,null,{"$f":"Dataset[[#This Row],[2024/25 From - Spending review Topic 1]]+Dataset[[#This Row],[2024/25 From - Spending review Topic 2]]+Dataset[[#This Row],[2024/25 From - Spending review Topic 3]]+Dataset[[#This Row],[2024/25 From - Spending review Topic 4]]+Dataset[[#This Row],[2024/25 From - Other reallocations]]","v":0},{"$f":"Dataset[[#This Row],[2025/26 From - Spending review Topic 1]]+Dataset[[#This Row],[2025/26 From - Spending review Topic 2]]+Dataset[[#This Row],[2025/26 From - Spending review Topic 3]]+Dataset[[#This Row],[2025/26 From - Spending review Topic 4]]+Dataset[[#This Row],[2025/26 From - Other reallocations]]","v":0},{"$f":"Dataset[[#This Row],[2026/27 From - Spending review Topic 1]]+Dataset[[#This Row],[2026/27 From - Spending review Topic 2]]+Dataset[[#This Row],[2026/27 From - Spending review Topic 3]]+Dataset[[#This Row],[2026/27 From - Spending review Topic 4]]+Dataset[[#This Row],[2026/27 From - Other reallocations]]","v":0},{"$f":"Dataset[[#This Row],[2024/25 To - Spending review Topic 1]]+Dataset[[#This Row],[2024/25 To - Spending review Topic 2]]+Dataset[[#This Row],[2024/25 To - Spending review Topic 3]]+Dataset[[#This Row],[2024/25 To - Spending review Topic 4]]+Dataset[[#This Row],[2024/25 To - Other reallocations]]","v":0},{"$f":"Dataset[[#This Row],[2025/26 To - Spending review Topic 1]]+Dataset[[#This Row],[2025/26 To - Spending review Topic 2]]+Dataset[[#This Row],[2025/26 To - Spending review Topic 3]]+Dataset[[#This Row],[2025/26 To - Spending review Topic 4]]+Dataset[[#This Row],[2025/26 To - Other reallocations]]","v":0},{"$f":"Dataset[[#This Row],[2026/27 To - Spending review Topic 1]]+Dataset[[#This Row],[2026/27 To - Spending review Topic 2]]+Dataset[[#This Row],[2026/27 To - Spending review Topic 3]]+Dataset[[#This Row],[2026/27 To - Spending review Topic 4]]+Dataset[[#This Row],[2026/27 To - Other reallocations]]","v":0},{"$f":"Dataset[[#This Row],[2024/25 Reduction]]+Dataset[[#This Row],[2024/25 From - Total]]","v":0},{"$f":"Dataset[[#This Row],[2025/26 Reduction]]+Dataset[[#This Row],[2025/26 From - Total]]","v":0},{"$f":"Dataset[[#This Row],[2026/27 Reduction]]+Dataset[[#This Row],[2026/27 From - Total]]","v":0},{"$f":"Dataset[[#This Row],[2023/24 Reduction]]","v":0},{"$f":"SUM(Dataset[[#This Row],[2024/25 Reduction]],Dataset[[#This Row],[2024/25 From - Total]],Dataset[[#This Row],[2024/25 To - Total]])","v":0},{"$f":"SUM(Dataset[[#This Row],[2025/26 Reduction]],Dataset[[#This Row],[2025/26 From - Total]],Dataset[[#This Row],[2025/26 To - Total]])","v":0},{"$f":"SUM(Dataset[[#This Row],[2026/27 Reduction]],Dataset[[#This Row],[2026/27 From - Total]],Dataset[[#This Row],[2026/27 To - Total]])","v":0},{"$f":"Dataset[[#This Row],[2023/24 Baseline]]+Dataset[[#This Row],[2023/24 Total change]]","v":0},{"$f":"Dataset[[#This Row],[2024/25 Baseline]]+Dataset[[#This Row],[2024/25 Total change]]","v":0},{"$f":"Dataset[[#This Row],[2025/26 Baseline]]+Dataset[[#This Row],[2025/26 Total change]]","v":0},{"$f":"Dataset[[#This Row],[2026/27 Baseline]]+Dataset[[#This Row],[2026/27 Total change]]","v":0}]
["NAT|Non-transfer item","26|Legal services (G&S)","2024_25","MTEF2024",26,3,1,44594,707,"26","03","01","044594","000707","26|03|01","01","01","02","14","14","01|01|02|14|14","National","Military Veterans","Empowerment and Stakeholder Management","Provincial Offices and Stakeholder Relations","Non-transfer item","Current","Current payments","Goods and services","Legal services (G&S)","Legal services (G&S)","Peace and security","Defence and state security","NAT",0,0,0,0,0,0,0,0,0,0,0,null,null,null,null,null,null,null,null,null,null,null,null,null,null,null,null,null,null,null,null,null,null,null,null,null,null,null,null,null,null,null,null,null,null,{"$f":"Dataset[[#This Row],[2024/25 From - Spending review Topic 1]]+Dataset[[#This Row],[2024/25 From - Spending review Topic 2]]+Dataset[[#This Row],[2024/25 From - Spending review Topic 3]]+Dataset[[#This Row],[2024/25 From - Spending review Topic 4]]+Dataset[[#This Row],[2024/25 From - Other reallocations]]","v":0},{"$f":"Dataset[[#This Row],[2025/26 From - Spending review Topic 1]]+Dataset[[#This Row],[2025/26 From - Spending review Topic 2]]+Dataset[[#This Row],[2025/26 From - Spending review Topic 3]]+Dataset[[#This Row],[2025/26 From - Spending review Topic 4]]+Dataset[[#This Row],[2025/26 From - Other reallocations]]","v":0},{"$f":"Dataset[[#This Row],[2026/27 From - Spending review Topic 1]]+Dataset[[#This Row],[2026/27 From - Spending review Topic 2]]+Dataset[[#This Row],[2026/27 From - Spending review Topic 3]]+Dataset[[#This Row],[2026/27 From - Spending review Topic 4]]+Dataset[[#This Row],[2026/27 From - Other reallocations]]","v":0},{"$f":"Dataset[[#This Row],[2024/25 To - Spending review Topic 1]]+Dataset[[#This Row],[2024/25 To - Spending review Topic 2]]+Dataset[[#This Row],[2024/25 To - Spending review Topic 3]]+Dataset[[#This Row],[2024/25 To - Spending review Topic 4]]+Dataset[[#This Row],[2024/25 To - Other reallocations]]","v":0},{"$f":"Dataset[[#This Row],[2025/26 To - Spending review Topic 1]]+Dataset[[#This Row],[2025/26 To - Spending review Topic 2]]+Dataset[[#This Row],[2025/26 To - Spending review Topic 3]]+Dataset[[#This Row],[2025/26 To - Spending review Topic 4]]+Dataset[[#This Row],[2025/26 To - Other reallocations]]","v":0},{"$f":"Dataset[[#This Row],[2026/27 To - Spending review Topic 1]]+Dataset[[#This Row],[2026/27 To - Spending review Topic 2]]+Dataset[[#This Row],[2026/27 To - Spending review Topic 3]]+Dataset[[#This Row],[2026/27 To - Spending review Topic 4]]+Dataset[[#This Row],[2026/27 To - Other reallocations]]","v":0},{"$f":"Dataset[[#This Row],[2024/25 Reduction]]+Dataset[[#This Row],[2024/25 From - Total]]","v":0},{"$f":"Dataset[[#This Row],[2025/26 Reduction]]+Dataset[[#This Row],[2025/26 From - Total]]","v":0},{"$f":"Dataset[[#This Row],[2026/27 Reduction]]+Dataset[[#This Row],[2026/27 From - Total]]","v":0},{"$f":"Dataset[[#This Row],[2023/24 Reduction]]","v":0},{"$f":"SUM(Dataset[[#This Row],[2024/25 Reduction]],Dataset[[#This Row],[2024/25 From - Total]],Dataset[[#This Row],[2024/25 To - Total]])","v":0},{"$f":"SUM(Dataset[[#This Row],[2025/26 Reduction]],Dataset[[#This Row],[2025/26 From - Total]],Dataset[[#This Row],[2025/26 To - Total]])","v":0},{"$f":"SUM(Dataset[[#This Row],[2026/27 Reduction]],Dataset[[#This Row],[2026/27 From - Total]],Dataset[[#This Row],[2026/27 To - Total]])","v":0},{"$f":"Dataset[[#This Row],[2023/24 Baseline]]+Dataset[[#This Row],[2023/24 Total change]]","v":0},{"$f":"Dataset[[#This Row],[2024/25 Baseline]]+Dataset[[#This Row],[2024/25 Total change]]","v":0},{"$f":"Dataset[[#This Row],[2025/26 Baseline]]+Dataset[[#This Row],[2025/26 Total change]]","v":0},{"$f":"Dataset[[#This Row],[2026/27 Baseline]]+Dataset[[#This Row],[2026/27 Total change]]","v":0}]
["NAT|Non-transfer item","26|Science and technological services","2024_25","MTEF2024",26,3,1,44595,708,"26","03","01","044595","000708","26|03|01","01","01","02","15","15","01|01|02|15|15","National","Military Veterans","Empowerment and Stakeholder Management","Provincial Offices and Stakeholder Relations","Non-transfer item","Current","Current payments","Goods and services","Science and technological services","Science and technological services","Peace and security","Defence and state security","NAT",0,0,0,0,0,0,0,0,0,0,0,null,null,null,null,null,null,null,null,null,null,null,null,null,null,null,null,null,null,null,null,null,null,null,null,null,null,null,null,null,null,null,null,null,null,{"$f":"Dataset[[#This Row],[2024/25 From - Spending review Topic 1]]+Dataset[[#This Row],[2024/25 From - Spending review Topic 2]]+Dataset[[#This Row],[2024/25 From - Spending review Topic 3]]+Dataset[[#This Row],[2024/25 From - Spending review Topic 4]]+Dataset[[#This Row],[2024/25 From - Other reallocations]]","v":0},{"$f":"Dataset[[#This Row],[2025/26 From - Spending review Topic 1]]+Dataset[[#This Row],[2025/26 From - Spending review Topic 2]]+Dataset[[#This Row],[2025/26 From - Spending review Topic 3]]+Dataset[[#This Row],[2025/26 From - Spending review Topic 4]]+Dataset[[#This Row],[2025/26 From - Other reallocations]]","v":0},{"$f":"Dataset[[#This Row],[2026/27 From - Spending review Topic 1]]+Dataset[[#This Row],[2026/27 From - Spending review Topic 2]]+Dataset[[#This Row],[2026/27 From - Spending review Topic 3]]+Dataset[[#This Row],[2026/27 From - Spending review Topic 4]]+Dataset[[#This Row],[2026/27 From - Other reallocations]]","v":0},{"$f":"Dataset[[#This Row],[2024/25 To - Spending review Topic 1]]+Dataset[[#This Row],[2024/25 To - Spending review Topic 2]]+Dataset[[#This Row],[2024/25 To - Spending review Topic 3]]+Dataset[[#This Row],[2024/25 To - Spending review Topic 4]]+Dataset[[#This Row],[2024/25 To - Other reallocations]]","v":0},{"$f":"Dataset[[#This Row],[2025/26 To - Spending review Topic 1]]+Dataset[[#This Row],[2025/26 To - Spending review Topic 2]]+Dataset[[#This Row],[2025/26 To - Spending review Topic 3]]+Dataset[[#This Row],[2025/26 To - Spending review Topic 4]]+Dataset[[#This Row],[2025/26 To - Other reallocations]]","v":0},{"$f":"Dataset[[#This Row],[2026/27 To - Spending review Topic 1]]+Dataset[[#This Row],[2026/27 To - Spending review Topic 2]]+Dataset[[#This Row],[2026/27 To - Spending review Topic 3]]+Dataset[[#This Row],[2026/27 To - Spending review Topic 4]]+Dataset[[#This Row],[2026/27 To - Other reallocations]]","v":0},{"$f":"Dataset[[#This Row],[2024/25 Reduction]]+Dataset[[#This Row],[2024/25 From - Total]]","v":0},{"$f":"Dataset[[#This Row],[2025/26 Reduction]]+Dataset[[#This Row],[2025/26 From - Total]]","v":0},{"$f":"Dataset[[#This Row],[2026/27 Reduction]]+Dataset[[#This Row],[2026/27 From - Total]]","v":0},{"$f":"Dataset[[#This Row],[2023/24 Reduction]]","v":0},{"$f":"SUM(Dataset[[#This Row],[2024/25 Reduction]],Dataset[[#This Row],[2024/25 From - Total]],Dataset[[#This Row],[2024/25 To - Total]])","v":0},{"$f":"SUM(Dataset[[#This Row],[2025/26 Reduction]],Dataset[[#This Row],[2025/26 From - Total]],Dataset[[#This Row],[2025/26 To - Total]])","v":0},{"$f":"SUM(Dataset[[#This Row],[2026/27 Reduction]],Dataset[[#This Row],[2026/27 From - Total]],Dataset[[#This Row],[2026/27 To - Total]])","v":0},{"$f":"Dataset[[#This Row],[2023/24 Baseline]]+Dataset[[#This Row],[2023/24 Total change]]","v":0},{"$f":"Dataset[[#This Row],[2024/25 Baseline]]+Dataset[[#This Row],[2024/25 Total change]]","v":0},{"$f":"Dataset[[#This Row],[2025/26 Baseline]]+Dataset[[#This Row],[2025/26 Total change]]","v":0},{"$f":"Dataset[[#This Row],[2026/27 Baseline]]+Dataset[[#This Row],[2026/27 Total change]]","v":0}]
["NAT|Non-transfer item","26|Contractors","2024_25","MTEF2024",26,3,1,44596,709,"26","03","01","044596","000709","26|03|01","01","01","02","16","16","01|01|02|16|16","National","Military Veterans","Empowerment and Stakeholder Management","Provincial Offices and Stakeholder Relations","Non-transfer item","Current","Current payments","Goods and services","Contractors","Contractors","Peace and security","Defence and state security","NAT",0,0,0,0,0,0,0,0,0,0,0,null,null,null,null,null,null,null,null,null,null,null,null,null,null,null,null,null,null,null,null,null,null,null,null,null,null,null,null,null,null,null,null,null,null,{"$f":"Dataset[[#This Row],[2024/25 From - Spending review Topic 1]]+Dataset[[#This Row],[2024/25 From - Spending review Topic 2]]+Dataset[[#This Row],[2024/25 From - Spending review Topic 3]]+Dataset[[#This Row],[2024/25 From - Spending review Topic 4]]+Dataset[[#This Row],[2024/25 From - Other reallocations]]","v":0},{"$f":"Dataset[[#This Row],[2025/26 From - Spending review Topic 1]]+Dataset[[#This Row],[2025/26 From - Spending review Topic 2]]+Dataset[[#This Row],[2025/26 From - Spending review Topic 3]]+Dataset[[#This Row],[2025/26 From - Spending review Topic 4]]+Dataset[[#This Row],[2025/26 From - Other reallocations]]","v":0},{"$f":"Dataset[[#This Row],[2026/27 From - Spending review Topic 1]]+Dataset[[#This Row],[2026/27 From - Spending review Topic 2]]+Dataset[[#This Row],[2026/27 From - Spending review Topic 3]]+Dataset[[#This Row],[2026/27 From - Spending review Topic 4]]+Dataset[[#This Row],[2026/27 From - Other reallocations]]","v":0},{"$f":"Dataset[[#This Row],[2024/25 To - Spending review Topic 1]]+Dataset[[#This Row],[2024/25 To - Spending review Topic 2]]+Dataset[[#This Row],[2024/25 To - Spending review Topic 3]]+Dataset[[#This Row],[2024/25 To - Spending review Topic 4]]+Dataset[[#This Row],[2024/25 To - Other reallocations]]","v":0},{"$f":"Dataset[[#This Row],[2025/26 To - Spending review Topic 1]]+Dataset[[#This Row],[2025/26 To - Spending review Topic 2]]+Dataset[[#This Row],[2025/26 To - Spending review Topic 3]]+Dataset[[#This Row],[2025/26 To - Spending review Topic 4]]+Dataset[[#This Row],[2025/26 To - Other reallocations]]","v":0},{"$f":"Dataset[[#This Row],[2026/27 To - Spending review Topic 1]]+Dataset[[#This Row],[2026/27 To - Spending review Topic 2]]+Dataset[[#This Row],[2026/27 To - Spending review Topic 3]]+Dataset[[#This Row],[2026/27 To - Spending review Topic 4]]+Dataset[[#This Row],[2026/27 To - Other reallocations]]","v":0},{"$f":"Dataset[[#This Row],[2024/25 Reduction]]+Dataset[[#This Row],[2024/25 From - Total]]","v":0},{"$f":"Dataset[[#This Row],[2025/26 Reduction]]+Dataset[[#This Row],[2025/26 From - Total]]","v":0},{"$f":"Dataset[[#This Row],[2026/27 Reduction]]+Dataset[[#This Row],[2026/27 From - Total]]","v":0},{"$f":"Dataset[[#This Row],[2023/24 Reduction]]","v":0},{"$f":"SUM(Dataset[[#This Row],[2024/25 Reduction]],Dataset[[#This Row],[2024/25 From - Total]],Dataset[[#This Row],[2024/25 To - Total]])","v":0},{"$f":"SUM(Dataset[[#This Row],[2025/26 Reduction]],Dataset[[#This Row],[2025/26 From - Total]],Dataset[[#This Row],[2025/26 To - Total]])","v":0},{"$f":"SUM(Dataset[[#This Row],[2026/27 Reduction]],Dataset[[#This Row],[2026/27 From - Total]],Dataset[[#This Row],[2026/27 To - Total]])","v":0},{"$f":"Dataset[[#This Row],[2023/24 Baseline]]+Dataset[[#This Row],[2023/24 Total change]]","v":0},{"$f":"Dataset[[#This Row],[2024/25 Baseline]]+Dataset[[#This Row],[2024/25 Total change]]","v":0},{"$f":"Dataset[[#This Row],[2025/26 Baseline]]+Dataset[[#This Row],[2025/26 Total change]]","v":0},{"$f":"Dataset[[#This Row],[2026/27 Baseline]]+Dataset[[#This Row],[2026/27 Total change]]","v":0}]
["NAT|Non-transfer item","26|Agency and support/outsourced services","2024_25","MTEF2024",26,3,1,44597,710,"26","03","01","044597","000710","26|03|01","01","01","02","17","17","01|01|02|17|17","National","Military Veterans","Empowerment and Stakeholder Management","Provincial Offices and Stakeholder Relations","Non-transfer item","Current","Current payments","Goods and services","Agency and support/outsourced services","Agency and support/outsourced services","Peace and security","Defence and state security","NAT",0,0,0,0,0,0,0,0,0,0,0,null,null,null,null,null,null,null,null,null,null,null,null,null,null,null,null,null,null,null,null,null,null,null,null,null,null,null,null,null,null,null,null,null,null,{"$f":"Dataset[[#This Row],[2024/25 From - Spending review Topic 1]]+Dataset[[#This Row],[2024/25 From - Spending review Topic 2]]+Dataset[[#This Row],[2024/25 From - Spending review Topic 3]]+Dataset[[#This Row],[2024/25 From - Spending review Topic 4]]+Dataset[[#This Row],[2024/25 From - Other reallocations]]","v":0},{"$f":"Dataset[[#This Row],[2025/26 From - Spending review Topic 1]]+Dataset[[#This Row],[2025/26 From - Spending review Topic 2]]+Dataset[[#This Row],[2025/26 From - Spending review Topic 3]]+Dataset[[#This Row],[2025/26 From - Spending review Topic 4]]+Dataset[[#This Row],[2025/26 From - Other reallocations]]","v":0},{"$f":"Dataset[[#This Row],[2026/27 From - Spending review Topic 1]]+Dataset[[#This Row],[2026/27 From - Spending review Topic 2]]+Dataset[[#This Row],[2026/27 From - Spending review Topic 3]]+Dataset[[#This Row],[2026/27 From - Spending review Topic 4]]+Dataset[[#This Row],[2026/27 From - Other reallocations]]","v":0},{"$f":"Dataset[[#This Row],[2024/25 To - Spending review Topic 1]]+Dataset[[#This Row],[2024/25 To - Spending review Topic 2]]+Dataset[[#This Row],[2024/25 To - Spending review Topic 3]]+Dataset[[#This Row],[2024/25 To - Spending review Topic 4]]+Dataset[[#This Row],[2024/25 To - Other reallocations]]","v":0},{"$f":"Dataset[[#This Row],[2025/26 To - Spending review Topic 1]]+Dataset[[#This Row],[2025/26 To - Spending review Topic 2]]+Dataset[[#This Row],[2025/26 To - Spending review Topic 3]]+Dataset[[#This Row],[2025/26 To - Spending review Topic 4]]+Dataset[[#This Row],[2025/26 To - Other reallocations]]","v":0},{"$f":"Dataset[[#This Row],[2026/27 To - Spending review Topic 1]]+Dataset[[#This Row],[2026/27 To - Spending review Topic 2]]+Dataset[[#This Row],[2026/27 To - Spending review Topic 3]]+Dataset[[#This Row],[2026/27 To - Spending review Topic 4]]+Dataset[[#This Row],[2026/27 To - Other reallocations]]","v":0},{"$f":"Dataset[[#This Row],[2024/25 Reduction]]+Dataset[[#This Row],[2024/25 From - Total]]","v":0},{"$f":"Dataset[[#This Row],[2025/26 Reduction]]+Dataset[[#This Row],[2025/26 From - Total]]","v":0},{"$f":"Dataset[[#This Row],[2026/27 Reduction]]+Dataset[[#This Row],[2026/27 From - Total]]","v":0},{"$f":"Dataset[[#This Row],[2023/24 Reduction]]","v":0},{"$f":"SUM(Dataset[[#This Row],[2024/25 Reduction]],Dataset[[#This Row],[2024/25 From - Total]],Dataset[[#This Row],[2024/25 To - Total]])","v":0},{"$f":"SUM(Dataset[[#This Row],[2025/26 Reduction]],Dataset[[#This Row],[2025/26 From - Total]],Dataset[[#This Row],[2025/26 To - Total]])","v":0},{"$f":"SUM(Dataset[[#This Row],[2026/27 Reduction]],Dataset[[#This Row],[2026/27 From - Total]],Dataset[[#This Row],[2026/27 To - Total]])","v":0},{"$f":"Dataset[[#This Row],[2023/24 Baseline]]+Dataset[[#This Row],[2023/24 Total change]]","v":0},{"$f":"Dataset[[#This Row],[2024/25 Baseline]]+Dataset[[#This Row],[2024/25 Total change]]","v":0},{"$f":"Dataset[[#This Row],[2025/26 Baseline]]+Dataset[[#This Row],[2025/26 Total change]]","v":0},{"$f":"Dataset[[#This Row],[2026/27 Baseline]]+Dataset[[#This Row],[2026/27 Total change]]","v":0}]
["NAT|Non-transfer item","26|Entertainment","2024_25","MTEF2024",26,3,1,44598,711,"26","03","01","044598","000711","26|03|01","01","01","02","18","18","01|01|02|18|18","National","Military Veterans","Empowerment and Stakeholder Management","Provincial Offices and Stakeholder Relations","Non-transfer item","Current","Current payments","Goods and services","Entertainment","Entertainment","Peace and security","Defence and state security","NAT",0,0,0,0,0,0,0,0,0,0,0,null,null,null,null,null,null,null,null,null,null,null,null,null,null,null,null,null,null,null,null,null,null,null,null,null,null,null,null,null,null,null,null,null,null,{"$f":"Dataset[[#This Row],[2024/25 From - Spending review Topic 1]]+Dataset[[#This Row],[2024/25 From - Spending review Topic 2]]+Dataset[[#This Row],[2024/25 From - Spending review Topic 3]]+Dataset[[#This Row],[2024/25 From - Spending review Topic 4]]+Dataset[[#This Row],[2024/25 From - Other reallocations]]","v":0},{"$f":"Dataset[[#This Row],[2025/26 From - Spending review Topic 1]]+Dataset[[#This Row],[2025/26 From - Spending review Topic 2]]+Dataset[[#This Row],[2025/26 From - Spending review Topic 3]]+Dataset[[#This Row],[2025/26 From - Spending review Topic 4]]+Dataset[[#This Row],[2025/26 From - Other reallocations]]","v":0},{"$f":"Dataset[[#This Row],[2026/27 From - Spending review Topic 1]]+Dataset[[#This Row],[2026/27 From - Spending review Topic 2]]+Dataset[[#This Row],[2026/27 From - Spending review Topic 3]]+Dataset[[#This Row],[2026/27 From - Spending review Topic 4]]+Dataset[[#This Row],[2026/27 From - Other reallocations]]","v":0},{"$f":"Dataset[[#This Row],[2024/25 To - Spending review Topic 1]]+Dataset[[#This Row],[2024/25 To - Spending review Topic 2]]+Dataset[[#This Row],[2024/25 To - Spending review Topic 3]]+Dataset[[#This Row],[2024/25 To - Spending review Topic 4]]+Dataset[[#This Row],[2024/25 To - Other reallocations]]","v":0},{"$f":"Dataset[[#This Row],[2025/26 To - Spending review Topic 1]]+Dataset[[#This Row],[2025/26 To - Spending review Topic 2]]+Dataset[[#This Row],[2025/26 To - Spending review Topic 3]]+Dataset[[#This Row],[2025/26 To - Spending review Topic 4]]+Dataset[[#This Row],[2025/26 To - Other reallocations]]","v":0},{"$f":"Dataset[[#This Row],[2026/27 To - Spending review Topic 1]]+Dataset[[#This Row],[2026/27 To - Spending review Topic 2]]+Dataset[[#This Row],[2026/27 To - Spending review Topic 3]]+Dataset[[#This Row],[2026/27 To - Spending review Topic 4]]+Dataset[[#This Row],[2026/27 To - Other reallocations]]","v":0},{"$f":"Dataset[[#This Row],[2024/25 Reduction]]+Dataset[[#This Row],[2024/25 From - Total]]","v":0},{"$f":"Dataset[[#This Row],[2025/26 Reduction]]+Dataset[[#This Row],[2025/26 From - Total]]","v":0},{"$f":"Dataset[[#This Row],[2026/27 Reduction]]+Dataset[[#This Row],[2026/27 From - Total]]","v":0},{"$f":"Dataset[[#This Row],[2023/24 Reduction]]","v":0},{"$f":"SUM(Dataset[[#This Row],[2024/25 Reduction]],Dataset[[#This Row],[2024/25 From - Total]],Dataset[[#This Row],[2024/25 To - Total]])","v":0},{"$f":"SUM(Dataset[[#This Row],[2025/26 Reduction]],Dataset[[#This Row],[2025/26 From - Total]],Dataset[[#This Row],[2025/26 To - Total]])","v":0},{"$f":"SUM(Dataset[[#This Row],[2026/27 Reduction]],Dataset[[#This Row],[2026/27 From - Total]],Dataset[[#This Row],[2026/27 To - Total]])","v":0},{"$f":"Dataset[[#This Row],[2023/24 Baseline]]+Dataset[[#This Row],[2023/24 Total change]]","v":0},{"$f":"Dataset[[#This Row],[2024/25 Baseline]]+Dataset[[#This Row],[2024/25 Total change]]","v":0},{"$f":"Dataset[[#This Row],[2025/26 Baseline]]+Dataset[[#This Row],[2025/26 Total change]]","v":0},{"$f":"Dataset[[#This Row],[2026/27 Baseline]]+Dataset[[#This Row],[2026/27 Total change]]","v":0}]
["NAT|Non-transfer item","26|Fleet services (including government motor transport)","2024_25","MTEF2024",26,3,1,44599,712,"26","03","01","044599","000712","26|03|01","01","01","02","19","19","01|01|02|19|19","National","Military Veterans","Empowerment and Stakeholder Management","Provincial Offices and Stakeholder Relations","Non-transfer item","Current","Current payments","Goods and services","Fleet services (including government motor transport)","Fleet services (including government motor transport)","Peace and security","Defence and state security","NAT",0,0,0,1712,1712,1712,0,0,0,0,0,null,null,null,null,null,null,null,null,null,null,null,null,null,null,null,null,null,null,null,null,null,null,null,null,null,null,null,null,null,null,null,null,null,null,{"$f":"Dataset[[#This Row],[2024/25 From - Spending review Topic 1]]+Dataset[[#This Row],[2024/25 From - Spending review Topic 2]]+Dataset[[#This Row],[2024/25 From - Spending review Topic 3]]+Dataset[[#This Row],[2024/25 From - Spending review Topic 4]]+Dataset[[#This Row],[2024/25 From - Other reallocations]]","v":0},{"$f":"Dataset[[#This Row],[2025/26 From - Spending review Topic 1]]+Dataset[[#This Row],[2025/26 From - Spending review Topic 2]]+Dataset[[#This Row],[2025/26 From - Spending review Topic 3]]+Dataset[[#This Row],[2025/26 From - Spending review Topic 4]]+Dataset[[#This Row],[2025/26 From - Other reallocations]]","v":0},{"$f":"Dataset[[#This Row],[2026/27 From - Spending review Topic 1]]+Dataset[[#This Row],[2026/27 From - Spending review Topic 2]]+Dataset[[#This Row],[2026/27 From - Spending review Topic 3]]+Dataset[[#This Row],[2026/27 From - Spending review Topic 4]]+Dataset[[#This Row],[2026/27 From - Other reallocations]]","v":0},{"$f":"Dataset[[#This Row],[2024/25 To - Spending review Topic 1]]+Dataset[[#This Row],[2024/25 To - Spending review Topic 2]]+Dataset[[#This Row],[2024/25 To - Spending review Topic 3]]+Dataset[[#This Row],[2024/25 To - Spending review Topic 4]]+Dataset[[#This Row],[2024/25 To - Other reallocations]]","v":0},{"$f":"Dataset[[#This Row],[2025/26 To - Spending review Topic 1]]+Dataset[[#This Row],[2025/26 To - Spending review Topic 2]]+Dataset[[#This Row],[2025/26 To - Spending review Topic 3]]+Dataset[[#This Row],[2025/26 To - Spending review Topic 4]]+Dataset[[#This Row],[2025/26 To - Other reallocations]]","v":0},{"$f":"Dataset[[#This Row],[2026/27 To - Spending review Topic 1]]+Dataset[[#This Row],[2026/27 To - Spending review Topic 2]]+Dataset[[#This Row],[2026/27 To - Spending review Topic 3]]+Dataset[[#This Row],[2026/27 To - Spending review Topic 4]]+Dataset[[#This Row],[2026/27 To - Other reallocations]]","v":0},{"$f":"Dataset[[#This Row],[2024/25 Reduction]]+Dataset[[#This Row],[2024/25 From - Total]]","v":0},{"$f":"Dataset[[#This Row],[2025/26 Reduction]]+Dataset[[#This Row],[2025/26 From - Total]]","v":0},{"$f":"Dataset[[#This Row],[2026/27 Reduction]]+Dataset[[#This Row],[2026/27 From - Total]]","v":0},{"$f":"Dataset[[#This Row],[2023/24 Reduction]]","v":0},{"$f":"SUM(Dataset[[#This Row],[2024/25 Reduction]],Dataset[[#This Row],[2024/25 From - Total]],Dataset[[#This Row],[2024/25 To - Total]])","v":0},{"$f":"SUM(Dataset[[#This Row],[2025/26 Reduction]],Dataset[[#This Row],[2025/26 From - Total]],Dataset[[#This Row],[2025/26 To - Total]])","v":0},{"$f":"SUM(Dataset[[#This Row],[2026/27 Reduction]],Dataset[[#This Row],[2026/27 From - Total]],Dataset[[#This Row],[2026/27 To - Total]])","v":0},{"$f":"Dataset[[#This Row],[2023/24 Baseline]]+Dataset[[#This Row],[2023/24 Total change]]","v":0},{"$f":"Dataset[[#This Row],[2024/25 Baseline]]+Dataset[[#This Row],[2024/25 Total change]]","v":0},{"$f":"Dataset[[#This Row],[2025/26 Baseline]]+Dataset[[#This Row],[2025/26 Total change]]","v":0},{"$f":"Dataset[[#This Row],[2026/27 Baseline]]+Dataset[[#This Row],[2026/27 Total change]]","v":0}]
["NAT|Non-transfer item","26|Housing","2024_25","MTEF2024",26,3,1,44600,713,"26","03","01","044600","000713","26|03|01","01","01","02","20","20","01|01|02|20|20","National","Military Veterans","Empowerment and Stakeholder Management","Provincial Offices and Stakeholder Relations","Non-transfer item","Current","Current payments","Goods and services","Housing","Housing","Peace and security","Defence and state security","NAT",0,0,0,0,0,0,0,0,0,0,0,null,null,null,null,null,null,null,null,null,null,null,null,null,null,null,null,null,null,null,null,null,null,null,null,null,null,null,null,null,null,null,null,null,null,{"$f":"Dataset[[#This Row],[2024/25 From - Spending review Topic 1]]+Dataset[[#This Row],[2024/25 From - Spending review Topic 2]]+Dataset[[#This Row],[2024/25 From - Spending review Topic 3]]+Dataset[[#This Row],[2024/25 From - Spending review Topic 4]]+Dataset[[#This Row],[2024/25 From - Other reallocations]]","v":0},{"$f":"Dataset[[#This Row],[2025/26 From - Spending review Topic 1]]+Dataset[[#This Row],[2025/26 From - Spending review Topic 2]]+Dataset[[#This Row],[2025/26 From - Spending review Topic 3]]+Dataset[[#This Row],[2025/26 From - Spending review Topic 4]]+Dataset[[#This Row],[2025/26 From - Other reallocations]]","v":0},{"$f":"Dataset[[#This Row],[2026/27 From - Spending review Topic 1]]+Dataset[[#This Row],[2026/27 From - Spending review Topic 2]]+Dataset[[#This Row],[2026/27 From - Spending review Topic 3]]+Dataset[[#This Row],[2026/27 From - Spending review Topic 4]]+Dataset[[#This Row],[2026/27 From - Other reallocations]]","v":0},{"$f":"Dataset[[#This Row],[2024/25 To - Spending review Topic 1]]+Dataset[[#This Row],[2024/25 To - Spending review Topic 2]]+Dataset[[#This Row],[2024/25 To - Spending review Topic 3]]+Dataset[[#This Row],[2024/25 To - Spending review Topic 4]]+Dataset[[#This Row],[2024/25 To - Other reallocations]]","v":0},{"$f":"Dataset[[#This Row],[2025/26 To - Spending review Topic 1]]+Dataset[[#This Row],[2025/26 To - Spending review Topic 2]]+Dataset[[#This Row],[2025/26 To - Spending review Topic 3]]+Dataset[[#This Row],[2025/26 To - Spending review Topic 4]]+Dataset[[#This Row],[2025/26 To - Other reallocations]]","v":0},{"$f":"Dataset[[#This Row],[2026/27 To - Spending review Topic 1]]+Dataset[[#This Row],[2026/27 To - Spending review Topic 2]]+Dataset[[#This Row],[2026/27 To - Spending review Topic 3]]+Dataset[[#This Row],[2026/27 To - Spending review Topic 4]]+Dataset[[#This Row],[2026/27 To - Other reallocations]]","v":0},{"$f":"Dataset[[#This Row],[2024/25 Reduction]]+Dataset[[#This Row],[2024/25 From - Total]]","v":0},{"$f":"Dataset[[#This Row],[2025/26 Reduction]]+Dataset[[#This Row],[2025/26 From - Total]]","v":0},{"$f":"Dataset[[#This Row],[2026/27 Reduction]]+Dataset[[#This Row],[2026/27 From - Total]]","v":0},{"$f":"Dataset[[#This Row],[2023/24 Reduction]]","v":0},{"$f":"SUM(Dataset[[#This Row],[2024/25 Reduction]],Dataset[[#This Row],[2024/25 From - Total]],Dataset[[#This Row],[2024/25 To - Total]])","v":0},{"$f":"SUM(Dataset[[#This Row],[2025/26 Reduction]],Dataset[[#This Row],[2025/26 From - Total]],Dataset[[#This Row],[2025/26 To - Total]])","v":0},{"$f":"SUM(Dataset[[#This Row],[2026/27 Reduction]],Dataset[[#This Row],[2026/27 From - Total]],Dataset[[#This Row],[2026/27 To - Total]])","v":0},{"$f":"Dataset[[#This Row],[2023/24 Baseline]]+Dataset[[#This Row],[2023/24 Total change]]","v":0},{"$f":"Dataset[[#This Row],[2024/25 Baseline]]+Dataset[[#This Row],[2024/25 Total change]]","v":0},{"$f":"Dataset[[#This Row],[2025/26 Baseline]]+Dataset[[#This Row],[2025/26 Total change]]","v":0},{"$f":"Dataset[[#This Row],[2026/27 Baseline]]+Dataset[[#This Row],[2026/27 Total change]]","v":0}]
["NAT|Non-transfer item","26|Inventory: Clothing material and accessories","2024_25","MTEF2024",26,3,1,44601,714,"26","03","01","044601","000714","26|03|01","01","01","02","21","21","01|01|02|21|21","National","Military Veterans","Empowerment and Stakeholder Management","Provincial Offices and Stakeholder Relations","Non-transfer item","Current","Current payments","Goods and services","Inventory: Clothing material and accessories","Inventory: Clothing material and accessories","Peace and security","Defence and state security","NAT",0,0,0,0,0,0,0,0,0,0,0,null,null,null,null,null,null,null,null,null,null,null,null,null,null,null,null,null,null,null,null,null,null,null,null,null,null,null,null,null,null,null,null,null,null,{"$f":"Dataset[[#This Row],[2024/25 From - Spending review Topic 1]]+Dataset[[#This Row],[2024/25 From - Spending review Topic 2]]+Dataset[[#This Row],[2024/25 From - Spending review Topic 3]]+Dataset[[#This Row],[2024/25 From - Spending review Topic 4]]+Dataset[[#This Row],[2024/25 From - Other reallocations]]","v":0},{"$f":"Dataset[[#This Row],[2025/26 From - Spending review Topic 1]]+Dataset[[#This Row],[2025/26 From - Spending review Topic 2]]+Dataset[[#This Row],[2025/26 From - Spending review Topic 3]]+Dataset[[#This Row],[2025/26 From - Spending review Topic 4]]+Dataset[[#This Row],[2025/26 From - Other reallocations]]","v":0},{"$f":"Dataset[[#This Row],[2026/27 From - Spending review Topic 1]]+Dataset[[#This Row],[2026/27 From - Spending review Topic 2]]+Dataset[[#This Row],[2026/27 From - Spending review Topic 3]]+Dataset[[#This Row],[2026/27 From - Spending review Topic 4]]+Dataset[[#This Row],[2026/27 From - Other reallocations]]","v":0},{"$f":"Dataset[[#This Row],[2024/25 To - Spending review Topic 1]]+Dataset[[#This Row],[2024/25 To - Spending review Topic 2]]+Dataset[[#This Row],[2024/25 To - Spending review Topic 3]]+Dataset[[#This Row],[2024/25 To - Spending review Topic 4]]+Dataset[[#This Row],[2024/25 To - Other reallocations]]","v":0},{"$f":"Dataset[[#This Row],[2025/26 To - Spending review Topic 1]]+Dataset[[#This Row],[2025/26 To - Spending review Topic 2]]+Dataset[[#This Row],[2025/26 To - Spending review Topic 3]]+Dataset[[#This Row],[2025/26 To - Spending review Topic 4]]+Dataset[[#This Row],[2025/26 To - Other reallocations]]","v":0},{"$f":"Dataset[[#This Row],[2026/27 To - Spending review Topic 1]]+Dataset[[#This Row],[2026/27 To - Spending review Topic 2]]+Dataset[[#This Row],[2026/27 To - Spending review Topic 3]]+Dataset[[#This Row],[2026/27 To - Spending review Topic 4]]+Dataset[[#This Row],[2026/27 To - Other reallocations]]","v":0},{"$f":"Dataset[[#This Row],[2024/25 Reduction]]+Dataset[[#This Row],[2024/25 From - Total]]","v":0},{"$f":"Dataset[[#This Row],[2025/26 Reduction]]+Dataset[[#This Row],[2025/26 From - Total]]","v":0},{"$f":"Dataset[[#This Row],[2026/27 Reduction]]+Dataset[[#This Row],[2026/27 From - Total]]","v":0},{"$f":"Dataset[[#This Row],[2023/24 Reduction]]","v":0},{"$f":"SUM(Dataset[[#This Row],[2024/25 Reduction]],Dataset[[#This Row],[2024/25 From - Total]],Dataset[[#This Row],[2024/25 To - Total]])","v":0},{"$f":"SUM(Dataset[[#This Row],[2025/26 Reduction]],Dataset[[#This Row],[2025/26 From - Total]],Dataset[[#This Row],[2025/26 To - Total]])","v":0},{"$f":"SUM(Dataset[[#This Row],[2026/27 Reduction]],Dataset[[#This Row],[2026/27 From - Total]],Dataset[[#This Row],[2026/27 To - Total]])","v":0},{"$f":"Dataset[[#This Row],[2023/24 Baseline]]+Dataset[[#This Row],[2023/24 Total change]]","v":0},{"$f":"Dataset[[#This Row],[2024/25 Baseline]]+Dataset[[#This Row],[2024/25 Total change]]","v":0},{"$f":"Dataset[[#This Row],[2025/26 Baseline]]+Dataset[[#This Row],[2025/26 Total change]]","v":0},{"$f":"Dataset[[#This Row],[2026/27 Baseline]]+Dataset[[#This Row],[2026/27 Total change]]","v":0}]
["NAT|Non-transfer item","26|Inventory: Farming supplies","2024_25","MTEF2024",26,3,1,44602,715,"26","03","01","044602","000715","26|03|01","01","01","02","22","22","01|01|02|22|22","National","Military Veterans","Empowerment and Stakeholder Management","Provincial Offices and Stakeholder Relations","Non-transfer item","Current","Current payments","Goods and services","Inventory: Farming supplies","Inventory: Farming supplies","Peace and security","Defence and state security","NAT",0,0,0,0,0,0,0,0,0,0,0,null,null,null,null,null,null,null,null,null,null,null,null,null,null,null,null,null,null,null,null,null,null,null,null,null,null,null,null,null,null,null,null,null,null,{"$f":"Dataset[[#This Row],[2024/25 From - Spending review Topic 1]]+Dataset[[#This Row],[2024/25 From - Spending review Topic 2]]+Dataset[[#This Row],[2024/25 From - Spending review Topic 3]]+Dataset[[#This Row],[2024/25 From - Spending review Topic 4]]+Dataset[[#This Row],[2024/25 From - Other reallocations]]","v":0},{"$f":"Dataset[[#This Row],[2025/26 From - Spending review Topic 1]]+Dataset[[#This Row],[2025/26 From - Spending review Topic 2]]+Dataset[[#This Row],[2025/26 From - Spending review Topic 3]]+Dataset[[#This Row],[2025/26 From - Spending review Topic 4]]+Dataset[[#This Row],[2025/26 From - Other reallocations]]","v":0},{"$f":"Dataset[[#This Row],[2026/27 From - Spending review Topic 1]]+Dataset[[#This Row],[2026/27 From - Spending review Topic 2]]+Dataset[[#This Row],[2026/27 From - Spending review Topic 3]]+Dataset[[#This Row],[2026/27 From - Spending review Topic 4]]+Dataset[[#This Row],[2026/27 From - Other reallocations]]","v":0},{"$f":"Dataset[[#This Row],[2024/25 To - Spending review Topic 1]]+Dataset[[#This Row],[2024/25 To - Spending review Topic 2]]+Dataset[[#This Row],[2024/25 To - Spending review Topic 3]]+Dataset[[#This Row],[2024/25 To - Spending review Topic 4]]+Dataset[[#This Row],[2024/25 To - Other reallocations]]","v":0},{"$f":"Dataset[[#This Row],[2025/26 To - Spending review Topic 1]]+Dataset[[#This Row],[2025/26 To - Spending review Topic 2]]+Dataset[[#This Row],[2025/26 To - Spending review Topic 3]]+Dataset[[#This Row],[2025/26 To - Spending review Topic 4]]+Dataset[[#This Row],[2025/26 To - Other reallocations]]","v":0},{"$f":"Dataset[[#This Row],[2026/27 To - Spending review Topic 1]]+Dataset[[#This Row],[2026/27 To - Spending review Topic 2]]+Dataset[[#This Row],[2026/27 To - Spending review Topic 3]]+Dataset[[#This Row],[2026/27 To - Spending review Topic 4]]+Dataset[[#This Row],[2026/27 To - Other reallocations]]","v":0},{"$f":"Dataset[[#This Row],[2024/25 Reduction]]+Dataset[[#This Row],[2024/25 From - Total]]","v":0},{"$f":"Dataset[[#This Row],[2025/26 Reduction]]+Dataset[[#This Row],[2025/26 From - Total]]","v":0},{"$f":"Dataset[[#This Row],[2026/27 Reduction]]+Dataset[[#This Row],[2026/27 From - Total]]","v":0},{"$f":"Dataset[[#This Row],[2023/24 Reduction]]","v":0},{"$f":"SUM(Dataset[[#This Row],[2024/25 Reduction]],Dataset[[#This Row],[2024/25 From - Total]],Dataset[[#This Row],[2024/25 To - Total]])","v":0},{"$f":"SUM(Dataset[[#This Row],[2025/26 Reduction]],Dataset[[#This Row],[2025/26 From - Total]],Dataset[[#This Row],[2025/26 To - Total]])","v":0},{"$f":"SUM(Dataset[[#This Row],[2026/27 Reduction]],Dataset[[#This Row],[2026/27 From - Total]],Dataset[[#This Row],[2026/27 To - Total]])","v":0},{"$f":"Dataset[[#This Row],[2023/24 Baseline]]+Dataset[[#This Row],[2023/24 Total change]]","v":0},{"$f":"Dataset[[#This Row],[2024/25 Baseline]]+Dataset[[#This Row],[2024/25 Total change]]","v":0},{"$f":"Dataset[[#This Row],[2025/26 Baseline]]+Dataset[[#This Row],[2025/26 Total change]]","v":0},{"$f":"Dataset[[#This Row],[2026/27 Baseline]]+Dataset[[#This Row],[2026/27 Total change]]","v":0}]
["NAT|Non-transfer item","26|Inventory: Food and food supplies","2024_25","MTEF2024",26,3,1,44603,716,"26","03","01","044603","000716","26|03|01","01","01","02","23","23","01|01|02|23|23","National","Military Veterans","Empowerment and Stakeholder Management","Provincial Offices and Stakeholder Relations","Non-transfer item","Current","Current payments","Goods and services","Inventory: Food and food supplies","Inventory: Food and food supplies","Peace and security","Defence and state security","NAT",0,0,0,0,0,0,0,0,0,0,0,null,null,null,null,null,null,null,null,null,null,null,null,null,null,null,null,null,null,null,null,null,null,null,null,null,null,null,null,null,null,null,null,null,null,{"$f":"Dataset[[#This Row],[2024/25 From - Spending review Topic 1]]+Dataset[[#This Row],[2024/25 From - Spending review Topic 2]]+Dataset[[#This Row],[2024/25 From - Spending review Topic 3]]+Dataset[[#This Row],[2024/25 From - Spending review Topic 4]]+Dataset[[#This Row],[2024/25 From - Other reallocations]]","v":0},{"$f":"Dataset[[#This Row],[2025/26 From - Spending review Topic 1]]+Dataset[[#This Row],[2025/26 From - Spending review Topic 2]]+Dataset[[#This Row],[2025/26 From - Spending review Topic 3]]+Dataset[[#This Row],[2025/26 From - Spending review Topic 4]]+Dataset[[#This Row],[2025/26 From - Other reallocations]]","v":0},{"$f":"Dataset[[#This Row],[2026/27 From - Spending review Topic 1]]+Dataset[[#This Row],[2026/27 From - Spending review Topic 2]]+Dataset[[#This Row],[2026/27 From - Spending review Topic 3]]+Dataset[[#This Row],[2026/27 From - Spending review Topic 4]]+Dataset[[#This Row],[2026/27 From - Other reallocations]]","v":0},{"$f":"Dataset[[#This Row],[2024/25 To - Spending review Topic 1]]+Dataset[[#This Row],[2024/25 To - Spending review Topic 2]]+Dataset[[#This Row],[2024/25 To - Spending review Topic 3]]+Dataset[[#This Row],[2024/25 To - Spending review Topic 4]]+Dataset[[#This Row],[2024/25 To - Other reallocations]]","v":0},{"$f":"Dataset[[#This Row],[2025/26 To - Spending review Topic 1]]+Dataset[[#This Row],[2025/26 To - Spending review Topic 2]]+Dataset[[#This Row],[2025/26 To - Spending review Topic 3]]+Dataset[[#This Row],[2025/26 To - Spending review Topic 4]]+Dataset[[#This Row],[2025/26 To - Other reallocations]]","v":0},{"$f":"Dataset[[#This Row],[2026/27 To - Spending review Topic 1]]+Dataset[[#This Row],[2026/27 To - Spending review Topic 2]]+Dataset[[#This Row],[2026/27 To - Spending review Topic 3]]+Dataset[[#This Row],[2026/27 To - Spending review Topic 4]]+Dataset[[#This Row],[2026/27 To - Other reallocations]]","v":0},{"$f":"Dataset[[#This Row],[2024/25 Reduction]]+Dataset[[#This Row],[2024/25 From - Total]]","v":0},{"$f":"Dataset[[#This Row],[2025/26 Reduction]]+Dataset[[#This Row],[2025/26 From - Total]]","v":0},{"$f":"Dataset[[#This Row],[2026/27 Reduction]]+Dataset[[#This Row],[2026/27 From - Total]]","v":0},{"$f":"Dataset[[#This Row],[2023/24 Reduction]]","v":0},{"$f":"SUM(Dataset[[#This Row],[2024/25 Reduction]],Dataset[[#This Row],[2024/25 From - Total]],Dataset[[#This Row],[2024/25 To - Total]])","v":0},{"$f":"SUM(Dataset[[#This Row],[2025/26 Reduction]],Dataset[[#This Row],[2025/26 From - Total]],Dataset[[#This Row],[2025/26 To - Total]])","v":0},{"$f":"SUM(Dataset[[#This Row],[2026/27 Reduction]],Dataset[[#This Row],[2026/27 From - Total]],Dataset[[#This Row],[2026/27 To - Total]])","v":0},{"$f":"Dataset[[#This Row],[2023/24 Baseline]]+Dataset[[#This Row],[2023/24 Total change]]","v":0},{"$f":"Dataset[[#This Row],[2024/25 Baseline]]+Dataset[[#This Row],[2024/25 Total change]]","v":0},{"$f":"Dataset[[#This Row],[2025/26 Baseline]]+Dataset[[#This Row],[2025/26 Total change]]","v":0},{"$f":"Dataset[[#This Row],[2026/27 Baseline]]+Dataset[[#This Row],[2026/27 Total change]]","v":0}]
["NAT|Non-transfer item","26|Inventory: Fuel, oil and gas","2024_25","MTEF2024",26,3,1,44604,717,"26","03","01","044604","000717","26|03|01","01","01","02","24","24","01|01|02|24|24","National","Military Veterans","Empowerment and Stakeholder Management","Provincial Offices and Stakeholder Relations","Non-transfer item","Current","Current payments","Goods and services","Inventory: Fuel, oil and gas","Inventory: Fuel, oil and gas","Peace and security","Defence and state security","NAT",0,0,0,0,0,0,0,0,0,0,0,null,null,null,null,null,null,null,null,null,null,null,null,null,null,null,null,null,null,null,null,null,null,null,null,null,null,null,null,null,null,null,null,null,null,{"$f":"Dataset[[#This Row],[2024/25 From - Spending review Topic 1]]+Dataset[[#This Row],[2024/25 From - Spending review Topic 2]]+Dataset[[#This Row],[2024/25 From - Spending review Topic 3]]+Dataset[[#This Row],[2024/25 From - Spending review Topic 4]]+Dataset[[#This Row],[2024/25 From - Other reallocations]]","v":0},{"$f":"Dataset[[#This Row],[2025/26 From - Spending review Topic 1]]+Dataset[[#This Row],[2025/26 From - Spending review Topic 2]]+Dataset[[#This Row],[2025/26 From - Spending review Topic 3]]+Dataset[[#This Row],[2025/26 From - Spending review Topic 4]]+Dataset[[#This Row],[2025/26 From - Other reallocations]]","v":0},{"$f":"Dataset[[#This Row],[2026/27 From - Spending review Topic 1]]+Dataset[[#This Row],[2026/27 From - Spending review Topic 2]]+Dataset[[#This Row],[2026/27 From - Spending review Topic 3]]+Dataset[[#This Row],[2026/27 From - Spending review Topic 4]]+Dataset[[#This Row],[2026/27 From - Other reallocations]]","v":0},{"$f":"Dataset[[#This Row],[2024/25 To - Spending review Topic 1]]+Dataset[[#This Row],[2024/25 To - Spending review Topic 2]]+Dataset[[#This Row],[2024/25 To - Spending review Topic 3]]+Dataset[[#This Row],[2024/25 To - Spending review Topic 4]]+Dataset[[#This Row],[2024/25 To - Other reallocations]]","v":0},{"$f":"Dataset[[#This Row],[2025/26 To - Spending review Topic 1]]+Dataset[[#This Row],[2025/26 To - Spending review Topic 2]]+Dataset[[#This Row],[2025/26 To - Spending review Topic 3]]+Dataset[[#This Row],[2025/26 To - Spending review Topic 4]]+Dataset[[#This Row],[2025/26 To - Other reallocations]]","v":0},{"$f":"Dataset[[#This Row],[2026/27 To - Spending review Topic 1]]+Dataset[[#This Row],[2026/27 To - Spending review Topic 2]]+Dataset[[#This Row],[2026/27 To - Spending review Topic 3]]+Dataset[[#This Row],[2026/27 To - Spending review Topic 4]]+Dataset[[#This Row],[2026/27 To - Other reallocations]]","v":0},{"$f":"Dataset[[#This Row],[2024/25 Reduction]]+Dataset[[#This Row],[2024/25 From - Total]]","v":0},{"$f":"Dataset[[#This Row],[2025/26 Reduction]]+Dataset[[#This Row],[2025/26 From - Total]]","v":0},{"$f":"Dataset[[#This Row],[2026/27 Reduction]]+Dataset[[#This Row],[2026/27 From - Total]]","v":0},{"$f":"Dataset[[#This Row],[2023/24 Reduction]]","v":0},{"$f":"SUM(Dataset[[#This Row],[2024/25 Reduction]],Dataset[[#This Row],[2024/25 From - Total]],Dataset[[#This Row],[2024/25 To - Total]])","v":0},{"$f":"SUM(Dataset[[#This Row],[2025/26 Reduction]],Dataset[[#This Row],[2025/26 From - Total]],Dataset[[#This Row],[2025/26 To - Total]])","v":0},{"$f":"SUM(Dataset[[#This Row],[2026/27 Reduction]],Dataset[[#This Row],[2026/27 From - Total]],Dataset[[#This Row],[2026/27 To - Total]])","v":0},{"$f":"Dataset[[#This Row],[2023/24 Baseline]]+Dataset[[#This Row],[2023/24 Total change]]","v":0},{"$f":"Dataset[[#This Row],[2024/25 Baseline]]+Dataset[[#This Row],[2024/25 Total change]]","v":0},{"$f":"Dataset[[#This Row],[2025/26 Baseline]]+Dataset[[#This Row],[2025/26 Total change]]","v":0},{"$f":"Dataset[[#This Row],[2026/27 Baseline]]+Dataset[[#This Row],[2026/27 Total change]]","v":0}]
["NAT|Non-transfer item","26|Inventory: Learner and teacher support material","2024_25","MTEF2024",26,3,1,44605,718,"26","03","01","044605","000718","26|03|01","01","01","02","25","25","01|01|02|25|25","National","Military Veterans","Empowerment and Stakeholder Management","Provincial Offices and Stakeholder Relations","Non-transfer item","Current","Current payments","Goods and services","Inventory: Learner and teacher support material","Inventory: Learner and teacher support material","Peace and security","Defence and state security","NAT",0,0,0,0,0,0,0,0,0,0,0,null,null,null,null,null,null,null,null,null,null,null,null,null,null,null,null,null,null,null,null,null,null,null,null,null,null,null,null,null,null,null,null,null,null,{"$f":"Dataset[[#This Row],[2024/25 From - Spending review Topic 1]]+Dataset[[#This Row],[2024/25 From - Spending review Topic 2]]+Dataset[[#This Row],[2024/25 From - Spending review Topic 3]]+Dataset[[#This Row],[2024/25 From - Spending review Topic 4]]+Dataset[[#This Row],[2024/25 From - Other reallocations]]","v":0},{"$f":"Dataset[[#This Row],[2025/26 From - Spending review Topic 1]]+Dataset[[#This Row],[2025/26 From - Spending review Topic 2]]+Dataset[[#This Row],[2025/26 From - Spending review Topic 3]]+Dataset[[#This Row],[2025/26 From - Spending review Topic 4]]+Dataset[[#This Row],[2025/26 From - Other reallocations]]","v":0},{"$f":"Dataset[[#This Row],[2026/27 From - Spending review Topic 1]]+Dataset[[#This Row],[2026/27 From - Spending review Topic 2]]+Dataset[[#This Row],[2026/27 From - Spending review Topic 3]]+Dataset[[#This Row],[2026/27 From - Spending review Topic 4]]+Dataset[[#This Row],[2026/27 From - Other reallocations]]","v":0},{"$f":"Dataset[[#This Row],[2024/25 To - Spending review Topic 1]]+Dataset[[#This Row],[2024/25 To - Spending review Topic 2]]+Dataset[[#This Row],[2024/25 To - Spending review Topic 3]]+Dataset[[#This Row],[2024/25 To - Spending review Topic 4]]+Dataset[[#This Row],[2024/25 To - Other reallocations]]","v":0},{"$f":"Dataset[[#This Row],[2025/26 To - Spending review Topic 1]]+Dataset[[#This Row],[2025/26 To - Spending review Topic 2]]+Dataset[[#This Row],[2025/26 To - Spending review Topic 3]]+Dataset[[#This Row],[2025/26 To - Spending review Topic 4]]+Dataset[[#This Row],[2025/26 To - Other reallocations]]","v":0},{"$f":"Dataset[[#This Row],[2026/27 To - Spending review Topic 1]]+Dataset[[#This Row],[2026/27 To - Spending review Topic 2]]+Dataset[[#This Row],[2026/27 To - Spending review Topic 3]]+Dataset[[#This Row],[2026/27 To - Spending review Topic 4]]+Dataset[[#This Row],[2026/27 To - Other reallocations]]","v":0},{"$f":"Dataset[[#This Row],[2024/25 Reduction]]+Dataset[[#This Row],[2024/25 From - Total]]","v":0},{"$f":"Dataset[[#This Row],[2025/26 Reduction]]+Dataset[[#This Row],[2025/26 From - Total]]","v":0},{"$f":"Dataset[[#This Row],[2026/27 Reduction]]+Dataset[[#This Row],[2026/27 From - Total]]","v":0},{"$f":"Dataset[[#This Row],[2023/24 Reduction]]","v":0},{"$f":"SUM(Dataset[[#This Row],[2024/25 Reduction]],Dataset[[#This Row],[2024/25 From - Total]],Dataset[[#This Row],[2024/25 To - Total]])","v":0},{"$f":"SUM(Dataset[[#This Row],[2025/26 Reduction]],Dataset[[#This Row],[2025/26 From - Total]],Dataset[[#This Row],[2025/26 To - Total]])","v":0},{"$f":"SUM(Dataset[[#This Row],[2026/27 Reduction]],Dataset[[#This Row],[2026/27 From - Total]],Dataset[[#This Row],[2026/27 To - Total]])","v":0},{"$f":"Dataset[[#This Row],[2023/24 Baseline]]+Dataset[[#This Row],[2023/24 Total change]]","v":0},{"$f":"Dataset[[#This Row],[2024/25 Baseline]]+Dataset[[#This Row],[2024/25 Total change]]","v":0},{"$f":"Dataset[[#This Row],[2025/26 Baseline]]+Dataset[[#This Row],[2025/26 Total change]]","v":0},{"$f":"Dataset[[#This Row],[2026/27 Baseline]]+Dataset[[#This Row],[2026/27 Total change]]","v":0}]
["NAT|Non-transfer item","26|Inventory: Materials and supplies","2024_25","MTEF2024",26,3,1,44606,719,"26","03","01","044606","000719","26|03|01","01","01","02","26","26","01|01|02|26|26","National","Military Veterans","Empowerment and Stakeholder Management","Provincial Offices and Stakeholder Relations","Non-transfer item","Current","Current payments","Goods and services","Inventory: Materials and supplies","Inventory: Materials and supplies","Peace and security","Defence and state security","NAT",0,0,0,0,0,0,0,0,0,0,0,null,null,null,null,null,null,null,null,null,null,null,null,null,null,null,null,null,null,null,null,null,null,null,null,null,null,null,null,null,null,null,null,null,null,{"$f":"Dataset[[#This Row],[2024/25 From - Spending review Topic 1]]+Dataset[[#This Row],[2024/25 From - Spending review Topic 2]]+Dataset[[#This Row],[2024/25 From - Spending review Topic 3]]+Dataset[[#This Row],[2024/25 From - Spending review Topic 4]]+Dataset[[#This Row],[2024/25 From - Other reallocations]]","v":0},{"$f":"Dataset[[#This Row],[2025/26 From - Spending review Topic 1]]+Dataset[[#This Row],[2025/26 From - Spending review Topic 2]]+Dataset[[#This Row],[2025/26 From - Spending review Topic 3]]+Dataset[[#This Row],[2025/26 From - Spending review Topic 4]]+Dataset[[#This Row],[2025/26 From - Other reallocations]]","v":0},{"$f":"Dataset[[#This Row],[2026/27 From - Spending review Topic 1]]+Dataset[[#This Row],[2026/27 From - Spending review Topic 2]]+Dataset[[#This Row],[2026/27 From - Spending review Topic 3]]+Dataset[[#This Row],[2026/27 From - Spending review Topic 4]]+Dataset[[#This Row],[2026/27 From - Other reallocations]]","v":0},{"$f":"Dataset[[#This Row],[2024/25 To - Spending review Topic 1]]+Dataset[[#This Row],[2024/25 To - Spending review Topic 2]]+Dataset[[#This Row],[2024/25 To - Spending review Topic 3]]+Dataset[[#This Row],[2024/25 To - Spending review Topic 4]]+Dataset[[#This Row],[2024/25 To - Other reallocations]]","v":0},{"$f":"Dataset[[#This Row],[2025/26 To - Spending review Topic 1]]+Dataset[[#This Row],[2025/26 To - Spending review Topic 2]]+Dataset[[#This Row],[2025/26 To - Spending review Topic 3]]+Dataset[[#This Row],[2025/26 To - Spending review Topic 4]]+Dataset[[#This Row],[2025/26 To - Other reallocations]]","v":0},{"$f":"Dataset[[#This Row],[2026/27 To - Spending review Topic 1]]+Dataset[[#This Row],[2026/27 To - Spending review Topic 2]]+Dataset[[#This Row],[2026/27 To - Spending review Topic 3]]+Dataset[[#This Row],[2026/27 To - Spending review Topic 4]]+Dataset[[#This Row],[2026/27 To - Other reallocations]]","v":0},{"$f":"Dataset[[#This Row],[2024/25 Reduction]]+Dataset[[#This Row],[2024/25 From - Total]]","v":0},{"$f":"Dataset[[#This Row],[2025/26 Reduction]]+Dataset[[#This Row],[2025/26 From - Total]]","v":0},{"$f":"Dataset[[#This Row],[2026/27 Reduction]]+Dataset[[#This Row],[2026/27 From - Total]]","v":0},{"$f":"Dataset[[#This Row],[2023/24 Reduction]]","v":0},{"$f":"SUM(Dataset[[#This Row],[2024/25 Reduction]],Dataset[[#This Row],[2024/25 From - Total]],Dataset[[#This Row],[2024/25 To - Total]])","v":0},{"$f":"SUM(Dataset[[#This Row],[2025/26 Reduction]],Dataset[[#This Row],[2025/26 From - Total]],Dataset[[#This Row],[2025/26 To - Total]])","v":0},{"$f":"SUM(Dataset[[#This Row],[2026/27 Reduction]],Dataset[[#This Row],[2026/27 From - Total]],Dataset[[#This Row],[2026/27 To - Total]])","v":0},{"$f":"Dataset[[#This Row],[2023/24 Baseline]]+Dataset[[#This Row],[2023/24 Total change]]","v":0},{"$f":"Dataset[[#This Row],[2024/25 Baseline]]+Dataset[[#This Row],[2024/25 Total change]]","v":0},{"$f":"Dataset[[#This Row],[2025/26 Baseline]]+Dataset[[#This Row],[2025/26 Total change]]","v":0},{"$f":"Dataset[[#This Row],[2026/27 Baseline]]+Dataset[[#This Row],[2026/27 Total change]]","v":0}]
["NAT|Non-transfer item","26|Inventory: Medical supplies","2024_25","MTEF2024",26,3,1,44607,720,"26","03","01","044607","000720","26|03|01","01","01","02","27","27","01|01|02|27|27","National","Military Veterans","Empowerment and Stakeholder Management","Provincial Offices and Stakeholder Relations","Non-transfer item","Current","Current payments","Goods and services","Inventory: Medical supplies","Inventory: Medical supplies","Peace and security","Defence and state security","NAT",0,0,0,0,0,0,0,0,0,0,0,null,null,null,null,null,null,null,null,null,null,null,null,null,null,null,null,null,null,null,null,null,null,null,null,null,null,null,null,null,null,null,null,null,null,{"$f":"Dataset[[#This Row],[2024/25 From - Spending review Topic 1]]+Dataset[[#This Row],[2024/25 From - Spending review Topic 2]]+Dataset[[#This Row],[2024/25 From - Spending review Topic 3]]+Dataset[[#This Row],[2024/25 From - Spending review Topic 4]]+Dataset[[#This Row],[2024/25 From - Other reallocations]]","v":0},{"$f":"Dataset[[#This Row],[2025/26 From - Spending review Topic 1]]+Dataset[[#This Row],[2025/26 From - Spending review Topic 2]]+Dataset[[#This Row],[2025/26 From - Spending review Topic 3]]+Dataset[[#This Row],[2025/26 From - Spending review Topic 4]]+Dataset[[#This Row],[2025/26 From - Other reallocations]]","v":0},{"$f":"Dataset[[#This Row],[2026/27 From - Spending review Topic 1]]+Dataset[[#This Row],[2026/27 From - Spending review Topic 2]]+Dataset[[#This Row],[2026/27 From - Spending review Topic 3]]+Dataset[[#This Row],[2026/27 From - Spending review Topic 4]]+Dataset[[#This Row],[2026/27 From - Other reallocations]]","v":0},{"$f":"Dataset[[#This Row],[2024/25 To - Spending review Topic 1]]+Dataset[[#This Row],[2024/25 To - Spending review Topic 2]]+Dataset[[#This Row],[2024/25 To - Spending review Topic 3]]+Dataset[[#This Row],[2024/25 To - Spending review Topic 4]]+Dataset[[#This Row],[2024/25 To - Other reallocations]]","v":0},{"$f":"Dataset[[#This Row],[2025/26 To - Spending review Topic 1]]+Dataset[[#This Row],[2025/26 To - Spending review Topic 2]]+Dataset[[#This Row],[2025/26 To - Spending review Topic 3]]+Dataset[[#This Row],[2025/26 To - Spending review Topic 4]]+Dataset[[#This Row],[2025/26 To - Other reallocations]]","v":0},{"$f":"Dataset[[#This Row],[2026/27 To - Spending review Topic 1]]+Dataset[[#This Row],[2026/27 To - Spending review Topic 2]]+Dataset[[#This Row],[2026/27 To - Spending review Topic 3]]+Dataset[[#This Row],[2026/27 To - Spending review Topic 4]]+Dataset[[#This Row],[2026/27 To - Other reallocations]]","v":0},{"$f":"Dataset[[#This Row],[2024/25 Reduction]]+Dataset[[#This Row],[2024/25 From - Total]]","v":0},{"$f":"Dataset[[#This Row],[2025/26 Reduction]]+Dataset[[#This Row],[2025/26 From - Total]]","v":0},{"$f":"Dataset[[#This Row],[2026/27 Reduction]]+Dataset[[#This Row],[2026/27 From - Total]]","v":0},{"$f":"Dataset[[#This Row],[2023/24 Reduction]]","v":0},{"$f":"SUM(Dataset[[#This Row],[2024/25 Reduction]],Dataset[[#This Row],[2024/25 From - Total]],Dataset[[#This Row],[2024/25 To - Total]])","v":0},{"$f":"SUM(Dataset[[#This Row],[2025/26 Reduction]],Dataset[[#This Row],[2025/26 From - Total]],Dataset[[#This Row],[2025/26 To - Total]])","v":0},{"$f":"SUM(Dataset[[#This Row],[2026/27 Reduction]],Dataset[[#This Row],[2026/27 From - Total]],Dataset[[#This Row],[2026/27 To - Total]])","v":0},{"$f":"Dataset[[#This Row],[2023/24 Baseline]]+Dataset[[#This Row],[2023/24 Total change]]","v":0},{"$f":"Dataset[[#This Row],[2024/25 Baseline]]+Dataset[[#This Row],[2024/25 Total change]]","v":0},{"$f":"Dataset[[#This Row],[2025/26 Baseline]]+Dataset[[#This Row],[2025/26 Total change]]","v":0},{"$f":"Dataset[[#This Row],[2026/27 Baseline]]+Dataset[[#This Row],[2026/27 Total change]]","v":0}]
["NAT|Non-transfer item","26|Inventory: Medicine","2024_25","MTEF2024",26,3,1,44608,721,"26","03","01","044608","000721","26|03|01","01","01","02","28","28","01|01|02|28|28","National","Military Veterans","Empowerment and Stakeholder Management","Provincial Offices and Stakeholder Relations","Non-transfer item","Current","Current payments","Goods and services","Inventory: Medicine","Inventory: Medicine","Peace and security","Defence and state security","NAT",0,0,0,0,0,0,0,0,0,0,0,null,null,null,null,null,null,null,null,null,null,null,null,null,null,null,null,null,null,null,null,null,null,null,null,null,null,null,null,null,null,null,null,null,null,{"$f":"Dataset[[#This Row],[2024/25 From - Spending review Topic 1]]+Dataset[[#This Row],[2024/25 From - Spending review Topic 2]]+Dataset[[#This Row],[2024/25 From - Spending review Topic 3]]+Dataset[[#This Row],[2024/25 From - Spending review Topic 4]]+Dataset[[#This Row],[2024/25 From - Other reallocations]]","v":0},{"$f":"Dataset[[#This Row],[2025/26 From - Spending review Topic 1]]+Dataset[[#This Row],[2025/26 From - Spending review Topic 2]]+Dataset[[#This Row],[2025/26 From - Spending review Topic 3]]+Dataset[[#This Row],[2025/26 From - Spending review Topic 4]]+Dataset[[#This Row],[2025/26 From - Other reallocations]]","v":0},{"$f":"Dataset[[#This Row],[2026/27 From - Spending review Topic 1]]+Dataset[[#This Row],[2026/27 From - Spending review Topic 2]]+Dataset[[#This Row],[2026/27 From - Spending review Topic 3]]+Dataset[[#This Row],[2026/27 From - Spending review Topic 4]]+Dataset[[#This Row],[2026/27 From - Other reallocations]]","v":0},{"$f":"Dataset[[#This Row],[2024/25 To - Spending review Topic 1]]+Dataset[[#This Row],[2024/25 To - Spending review Topic 2]]+Dataset[[#This Row],[2024/25 To - Spending review Topic 3]]+Dataset[[#This Row],[2024/25 To - Spending review Topic 4]]+Dataset[[#This Row],[2024/25 To - Other reallocations]]","v":0},{"$f":"Dataset[[#This Row],[2025/26 To - Spending review Topic 1]]+Dataset[[#This Row],[2025/26 To - Spending review Topic 2]]+Dataset[[#This Row],[2025/26 To - Spending review Topic 3]]+Dataset[[#This Row],[2025/26 To - Spending review Topic 4]]+Dataset[[#This Row],[2025/26 To - Other reallocations]]","v":0},{"$f":"Dataset[[#This Row],[2026/27 To - Spending review Topic 1]]+Dataset[[#This Row],[2026/27 To - Spending review Topic 2]]+Dataset[[#This Row],[2026/27 To - Spending review Topic 3]]+Dataset[[#This Row],[2026/27 To - Spending review Topic 4]]+Dataset[[#This Row],[2026/27 To - Other reallocations]]","v":0},{"$f":"Dataset[[#This Row],[2024/25 Reduction]]+Dataset[[#This Row],[2024/25 From - Total]]","v":0},{"$f":"Dataset[[#This Row],[2025/26 Reduction]]+Dataset[[#This Row],[2025/26 From - Total]]","v":0},{"$f":"Dataset[[#This Row],[2026/27 Reduction]]+Dataset[[#This Row],[2026/27 From - Total]]","v":0},{"$f":"Dataset[[#This Row],[2023/24 Reduction]]","v":0},{"$f":"SUM(Dataset[[#This Row],[2024/25 Reduction]],Dataset[[#This Row],[2024/25 From - Total]],Dataset[[#This Row],[2024/25 To - Total]])","v":0},{"$f":"SUM(Dataset[[#This Row],[2025/26 Reduction]],Dataset[[#This Row],[2025/26 From - Total]],Dataset[[#This Row],[2025/26 To - Total]])","v":0},{"$f":"SUM(Dataset[[#This Row],[2026/27 Reduction]],Dataset[[#This Row],[2026/27 From - Total]],Dataset[[#This Row],[2026/27 To - Total]])","v":0},{"$f":"Dataset[[#This Row],[2023/24 Baseline]]+Dataset[[#This Row],[2023/24 Total change]]","v":0},{"$f":"Dataset[[#This Row],[2024/25 Baseline]]+Dataset[[#This Row],[2024/25 Total change]]","v":0},{"$f":"Dataset[[#This Row],[2025/26 Baseline]]+Dataset[[#This Row],[2025/26 Total change]]","v":0},{"$f":"Dataset[[#This Row],[2026/27 Baseline]]+Dataset[[#This Row],[2026/27 Total change]]","v":0}]
["NAT|Non-transfer item","26|Medsas inventory interface","2024_25","MTEF2024",26,3,1,44609,722,"26","03","01","044609","000722","26|03|01","01","01","02","29","29","01|01|02|29|29","National","Military Veterans","Empowerment and Stakeholder Management","Provincial Offices and Stakeholder Relations","Non-transfer item","Current","Current payments","Goods and services","Medsas inventory interface","Medsas inventory interface","Peace and security","Defence and state security","NAT",0,0,0,0,0,0,0,0,0,0,0,null,null,null,null,null,null,null,null,null,null,null,null,null,null,null,null,null,null,null,null,null,null,null,null,null,null,null,null,null,null,null,null,null,null,{"$f":"Dataset[[#This Row],[2024/25 From - Spending review Topic 1]]+Dataset[[#This Row],[2024/25 From - Spending review Topic 2]]+Dataset[[#This Row],[2024/25 From - Spending review Topic 3]]+Dataset[[#This Row],[2024/25 From - Spending review Topic 4]]+Dataset[[#This Row],[2024/25 From - Other reallocations]]","v":0},{"$f":"Dataset[[#This Row],[2025/26 From - Spending review Topic 1]]+Dataset[[#This Row],[2025/26 From - Spending review Topic 2]]+Dataset[[#This Row],[2025/26 From - Spending review Topic 3]]+Dataset[[#This Row],[2025/26 From - Spending review Topic 4]]+Dataset[[#This Row],[2025/26 From - Other reallocations]]","v":0},{"$f":"Dataset[[#This Row],[2026/27 From - Spending review Topic 1]]+Dataset[[#This Row],[2026/27 From - Spending review Topic 2]]+Dataset[[#This Row],[2026/27 From - Spending review Topic 3]]+Dataset[[#This Row],[2026/27 From - Spending review Topic 4]]+Dataset[[#This Row],[2026/27 From - Other reallocations]]","v":0},{"$f":"Dataset[[#This Row],[2024/25 To - Spending review Topic 1]]+Dataset[[#This Row],[2024/25 To - Spending review Topic 2]]+Dataset[[#This Row],[2024/25 To - Spending review Topic 3]]+Dataset[[#This Row],[2024/25 To - Spending review Topic 4]]+Dataset[[#This Row],[2024/25 To - Other reallocations]]","v":0},{"$f":"Dataset[[#This Row],[2025/26 To - Spending review Topic 1]]+Dataset[[#This Row],[2025/26 To - Spending review Topic 2]]+Dataset[[#This Row],[2025/26 To - Spending review Topic 3]]+Dataset[[#This Row],[2025/26 To - Spending review Topic 4]]+Dataset[[#This Row],[2025/26 To - Other reallocations]]","v":0},{"$f":"Dataset[[#This Row],[2026/27 To - Spending review Topic 1]]+Dataset[[#This Row],[2026/27 To - Spending review Topic 2]]+Dataset[[#This Row],[2026/27 To - Spending review Topic 3]]+Dataset[[#This Row],[2026/27 To - Spending review Topic 4]]+Dataset[[#This Row],[2026/27 To - Other reallocations]]","v":0},{"$f":"Dataset[[#This Row],[2024/25 Reduction]]+Dataset[[#This Row],[2024/25 From - Total]]","v":0},{"$f":"Dataset[[#This Row],[2025/26 Reduction]]+Dataset[[#This Row],[2025/26 From - Total]]","v":0},{"$f":"Dataset[[#This Row],[2026/27 Reduction]]+Dataset[[#This Row],[2026/27 From - Total]]","v":0},{"$f":"Dataset[[#This Row],[2023/24 Reduction]]","v":0},{"$f":"SUM(Dataset[[#This Row],[2024/25 Reduction]],Dataset[[#This Row],[2024/25 From - Total]],Dataset[[#This Row],[2024/25 To - Total]])","v":0},{"$f":"SUM(Dataset[[#This Row],[2025/26 Reduction]],Dataset[[#This Row],[2025/26 From - Total]],Dataset[[#This Row],[2025/26 To - Total]])","v":0},{"$f":"SUM(Dataset[[#This Row],[2026/27 Reduction]],Dataset[[#This Row],[2026/27 From - Total]],Dataset[[#This Row],[2026/27 To - Total]])","v":0},{"$f":"Dataset[[#This Row],[2023/24 Baseline]]+Dataset[[#This Row],[2023/24 Total change]]","v":0},{"$f":"Dataset[[#This Row],[2024/25 Baseline]]+Dataset[[#This Row],[2024/25 Total change]]","v":0},{"$f":"Dataset[[#This Row],[2025/26 Baseline]]+Dataset[[#This Row],[2025/26 Total change]]","v":0},{"$f":"Dataset[[#This Row],[2026/27 Baseline]]+Dataset[[#This Row],[2026/27 Total change]]","v":0}]
["NAT|Non-transfer item","26|Inventory: Other supplies","2024_25","MTEF2024",26,3,1,44610,723,"26","03","01","044610","000723","26|03|01","01","01","02","30","30","01|01|02|30|30","National","Military Veterans","Empowerment and Stakeholder Management","Provincial Offices and Stakeholder Relations","Non-transfer item","Current","Current payments","Goods and services","Inventory: Other supplies","Inventory: Other supplies","Peace and security","Defence and state security","NAT",0,0,0,0,0,0,0,0,0,0,0,null,null,null,null,null,null,null,null,null,null,null,null,null,null,null,null,null,null,null,null,null,null,null,null,null,null,null,null,null,null,null,null,null,null,{"$f":"Dataset[[#This Row],[2024/25 From - Spending review Topic 1]]+Dataset[[#This Row],[2024/25 From - Spending review Topic 2]]+Dataset[[#This Row],[2024/25 From - Spending review Topic 3]]+Dataset[[#This Row],[2024/25 From - Spending review Topic 4]]+Dataset[[#This Row],[2024/25 From - Other reallocations]]","v":0},{"$f":"Dataset[[#This Row],[2025/26 From - Spending review Topic 1]]+Dataset[[#This Row],[2025/26 From - Spending review Topic 2]]+Dataset[[#This Row],[2025/26 From - Spending review Topic 3]]+Dataset[[#This Row],[2025/26 From - Spending review Topic 4]]+Dataset[[#This Row],[2025/26 From - Other reallocations]]","v":0},{"$f":"Dataset[[#This Row],[2026/27 From - Spending review Topic 1]]+Dataset[[#This Row],[2026/27 From - Spending review Topic 2]]+Dataset[[#This Row],[2026/27 From - Spending review Topic 3]]+Dataset[[#This Row],[2026/27 From - Spending review Topic 4]]+Dataset[[#This Row],[2026/27 From - Other reallocations]]","v":0},{"$f":"Dataset[[#This Row],[2024/25 To - Spending review Topic 1]]+Dataset[[#This Row],[2024/25 To - Spending review Topic 2]]+Dataset[[#This Row],[2024/25 To - Spending review Topic 3]]+Dataset[[#This Row],[2024/25 To - Spending review Topic 4]]+Dataset[[#This Row],[2024/25 To - Other reallocations]]","v":0},{"$f":"Dataset[[#This Row],[2025/26 To - Spending review Topic 1]]+Dataset[[#This Row],[2025/26 To - Spending review Topic 2]]+Dataset[[#This Row],[2025/26 To - Spending review Topic 3]]+Dataset[[#This Row],[2025/26 To - Spending review Topic 4]]+Dataset[[#This Row],[2025/26 To - Other reallocations]]","v":0},{"$f":"Dataset[[#This Row],[2026/27 To - Spending review Topic 1]]+Dataset[[#This Row],[2026/27 To - Spending review Topic 2]]+Dataset[[#This Row],[2026/27 To - Spending review Topic 3]]+Dataset[[#This Row],[2026/27 To - Spending review Topic 4]]+Dataset[[#This Row],[2026/27 To - Other reallocations]]","v":0},{"$f":"Dataset[[#This Row],[2024/25 Reduction]]+Dataset[[#This Row],[2024/25 From - Total]]","v":0},{"$f":"Dataset[[#This Row],[2025/26 Reduction]]+Dataset[[#This Row],[2025/26 From - Total]]","v":0},{"$f":"Dataset[[#This Row],[2026/27 Reduction]]+Dataset[[#This Row],[2026/27 From - Total]]","v":0},{"$f":"Dataset[[#This Row],[2023/24 Reduction]]","v":0},{"$f":"SUM(Dataset[[#This Row],[2024/25 Reduction]],Dataset[[#This Row],[2024/25 From - Total]],Dataset[[#This Row],[2024/25 To - Total]])","v":0},{"$f":"SUM(Dataset[[#This Row],[2025/26 Reduction]],Dataset[[#This Row],[2025/26 From - Total]],Dataset[[#This Row],[2025/26 To - Total]])","v":0},{"$f":"SUM(Dataset[[#This Row],[2026/27 Reduction]],Dataset[[#This Row],[2026/27 From - Total]],Dataset[[#This Row],[2026/27 To - Total]])","v":0},{"$f":"Dataset[[#This Row],[2023/24 Baseline]]+Dataset[[#This Row],[2023/24 Total change]]","v":0},{"$f":"Dataset[[#This Row],[2024/25 Baseline]]+Dataset[[#This Row],[2024/25 Total change]]","v":0},{"$f":"Dataset[[#This Row],[2025/26 Baseline]]+Dataset[[#This Row],[2025/26 Total change]]","v":0},{"$f":"Dataset[[#This Row],[2026/27 Baseline]]+Dataset[[#This Row],[2026/27 Total change]]","v":0}]
["NAT|Non-transfer item","26|Consumable supplies","2024_25","MTEF2024",26,3,1,44611,724,"26","03","01","044611","000724","26|03|01","01","01","02","31","31","01|01|02|31|31","National","Military Veterans","Empowerment and Stakeholder Management","Provincial Offices and Stakeholder Relations","Non-transfer item","Current","Current payments","Goods and services","Consumable supplies","Consumable supplies","Peace and security","Defence and state security","NAT",0,22,0,266,266,266,0,20,25,30,31,null,null,null,null,null,null,null,null,null,null,null,null,null,null,null,null,null,null,null,null,null,null,null,null,null,null,null,null,null,null,null,null,null,null,{"$f":"Dataset[[#This Row],[2024/25 From - Spending review Topic 1]]+Dataset[[#This Row],[2024/25 From - Spending review Topic 2]]+Dataset[[#This Row],[2024/25 From - Spending review Topic 3]]+Dataset[[#This Row],[2024/25 From - Spending review Topic 4]]+Dataset[[#This Row],[2024/25 From - Other reallocations]]","v":0},{"$f":"Dataset[[#This Row],[2025/26 From - Spending review Topic 1]]+Dataset[[#This Row],[2025/26 From - Spending review Topic 2]]+Dataset[[#This Row],[2025/26 From - Spending review Topic 3]]+Dataset[[#This Row],[2025/26 From - Spending review Topic 4]]+Dataset[[#This Row],[2025/26 From - Other reallocations]]","v":0},{"$f":"Dataset[[#This Row],[2026/27 From - Spending review Topic 1]]+Dataset[[#This Row],[2026/27 From - Spending review Topic 2]]+Dataset[[#This Row],[2026/27 From - Spending review Topic 3]]+Dataset[[#This Row],[2026/27 From - Spending review Topic 4]]+Dataset[[#This Row],[2026/27 From - Other reallocations]]","v":0},{"$f":"Dataset[[#This Row],[2024/25 To - Spending review Topic 1]]+Dataset[[#This Row],[2024/25 To - Spending review Topic 2]]+Dataset[[#This Row],[2024/25 To - Spending review Topic 3]]+Dataset[[#This Row],[2024/25 To - Spending review Topic 4]]+Dataset[[#This Row],[2024/25 To - Other reallocations]]","v":0},{"$f":"Dataset[[#This Row],[2025/26 To - Spending review Topic 1]]+Dataset[[#This Row],[2025/26 To - Spending review Topic 2]]+Dataset[[#This Row],[2025/26 To - Spending review Topic 3]]+Dataset[[#This Row],[2025/26 To - Spending review Topic 4]]+Dataset[[#This Row],[2025/26 To - Other reallocations]]","v":0},{"$f":"Dataset[[#This Row],[2026/27 To - Spending review Topic 1]]+Dataset[[#This Row],[2026/27 To - Spending review Topic 2]]+Dataset[[#This Row],[2026/27 To - Spending review Topic 3]]+Dataset[[#This Row],[2026/27 To - Spending review Topic 4]]+Dataset[[#This Row],[2026/27 To - Other reallocations]]","v":0},{"$f":"Dataset[[#This Row],[2024/25 Reduction]]+Dataset[[#This Row],[2024/25 From - Total]]","v":0},{"$f":"Dataset[[#This Row],[2025/26 Reduction]]+Dataset[[#This Row],[2025/26 From - Total]]","v":0},{"$f":"Dataset[[#This Row],[2026/27 Reduction]]+Dataset[[#This Row],[2026/27 From - Total]]","v":0},{"$f":"Dataset[[#This Row],[2023/24 Reduction]]","v":0},{"$f":"SUM(Dataset[[#This Row],[2024/25 Reduction]],Dataset[[#This Row],[2024/25 From - Total]],Dataset[[#This Row],[2024/25 To - Total]])","v":0},{"$f":"SUM(Dataset[[#This Row],[2025/26 Reduction]],Dataset[[#This Row],[2025/26 From - Total]],Dataset[[#This Row],[2025/26 To - Total]])","v":0},{"$f":"SUM(Dataset[[#This Row],[2026/27 Reduction]],Dataset[[#This Row],[2026/27 From - Total]],Dataset[[#This Row],[2026/27 To - Total]])","v":0},{"$f":"Dataset[[#This Row],[2023/24 Baseline]]+Dataset[[#This Row],[2023/24 Total change]]","v":20},{"$f":"Dataset[[#This Row],[2024/25 Baseline]]+Dataset[[#This Row],[2024/25 Total change]]","v":25},{"$f":"Dataset[[#This Row],[2025/26 Baseline]]+Dataset[[#This Row],[2025/26 Total change]]","v":30},{"$f":"Dataset[[#This Row],[2026/27 Baseline]]+Dataset[[#This Row],[2026/27 Total change]]","v":31}]
["NAT|Non-transfer item","26|Consumables: Stationery, printing and office supplies","2024_25","MTEF2024",26,3,1,44612,725,"26","03","01","044612","000725","26|03|01","01","01","02","32","32","01|01|02|32|32","National","Military Veterans","Empowerment and Stakeholder Management","Provincial Offices and Stakeholder Relations","Non-transfer item","Current","Current payments","Goods and services","Consumables: Stationery, printing and office supplies","Consumables: Stationery, printing and office supplies","Peace and security","Defence and state security","NAT",349,94,0,1449,1449,1449,0,455,520,588,615,null,null,null,null,null,null,null,null,null,null,null,null,null,null,null,null,null,null,null,null,null,null,null,null,null,null,null,null,null,null,null,null,null,null,{"$f":"Dataset[[#This Row],[2024/25 From - Spending review Topic 1]]+Dataset[[#This Row],[2024/25 From - Spending review Topic 2]]+Dataset[[#This Row],[2024/25 From - Spending review Topic 3]]+Dataset[[#This Row],[2024/25 From - Spending review Topic 4]]+Dataset[[#This Row],[2024/25 From - Other reallocations]]","v":0},{"$f":"Dataset[[#This Row],[2025/26 From - Spending review Topic 1]]+Dataset[[#This Row],[2025/26 From - Spending review Topic 2]]+Dataset[[#This Row],[2025/26 From - Spending review Topic 3]]+Dataset[[#This Row],[2025/26 From - Spending review Topic 4]]+Dataset[[#This Row],[2025/26 From - Other reallocations]]","v":0},{"$f":"Dataset[[#This Row],[2026/27 From - Spending review Topic 1]]+Dataset[[#This Row],[2026/27 From - Spending review Topic 2]]+Dataset[[#This Row],[2026/27 From - Spending review Topic 3]]+Dataset[[#This Row],[2026/27 From - Spending review Topic 4]]+Dataset[[#This Row],[2026/27 From - Other reallocations]]","v":0},{"$f":"Dataset[[#This Row],[2024/25 To - Spending review Topic 1]]+Dataset[[#This Row],[2024/25 To - Spending review Topic 2]]+Dataset[[#This Row],[2024/25 To - Spending review Topic 3]]+Dataset[[#This Row],[2024/25 To - Spending review Topic 4]]+Dataset[[#This Row],[2024/25 To - Other reallocations]]","v":0},{"$f":"Dataset[[#This Row],[2025/26 To - Spending review Topic 1]]+Dataset[[#This Row],[2025/26 To - Spending review Topic 2]]+Dataset[[#This Row],[2025/26 To - Spending review Topic 3]]+Dataset[[#This Row],[2025/26 To - Spending review Topic 4]]+Dataset[[#This Row],[2025/26 To - Other reallocations]]","v":0},{"$f":"Dataset[[#This Row],[2026/27 To - Spending review Topic 1]]+Dataset[[#This Row],[2026/27 To - Spending review Topic 2]]+Dataset[[#This Row],[2026/27 To - Spending review Topic 3]]+Dataset[[#This Row],[2026/27 To - Spending review Topic 4]]+Dataset[[#This Row],[2026/27 To - Other reallocations]]","v":0},{"$f":"Dataset[[#This Row],[2024/25 Reduction]]+Dataset[[#This Row],[2024/25 From - Total]]","v":0},{"$f":"Dataset[[#This Row],[2025/26 Reduction]]+Dataset[[#This Row],[2025/26 From - Total]]","v":0},{"$f":"Dataset[[#This Row],[2026/27 Reduction]]+Dataset[[#This Row],[2026/27 From - Total]]","v":0},{"$f":"Dataset[[#This Row],[2023/24 Reduction]]","v":0},{"$f":"SUM(Dataset[[#This Row],[2024/25 Reduction]],Dataset[[#This Row],[2024/25 From - Total]],Dataset[[#This Row],[2024/25 To - Total]])","v":0},{"$f":"SUM(Dataset[[#This Row],[2025/26 Reduction]],Dataset[[#This Row],[2025/26 From - Total]],Dataset[[#This Row],[2025/26 To - Total]])","v":0},{"$f":"SUM(Dataset[[#This Row],[2026/27 Reduction]],Dataset[[#This Row],[2026/27 From - Total]],Dataset[[#This Row],[2026/27 To - Total]])","v":0},{"$f":"Dataset[[#This Row],[2023/24 Baseline]]+Dataset[[#This Row],[2023/24 Total change]]","v":455},{"$f":"Dataset[[#This Row],[2024/25 Baseline]]+Dataset[[#This Row],[2024/25 Total change]]","v":520},{"$f":"Dataset[[#This Row],[2025/26 Baseline]]+Dataset[[#This Row],[2025/26 Total change]]","v":588},{"$f":"Dataset[[#This Row],[2026/27 Baseline]]+Dataset[[#This Row],[2026/27 Total change]]","v":615}]
["NAT|Non-transfer item","26|Operating leases","2024_25","MTEF2024",26,3,1,44613,726,"26","03","01","044613","000726","26|03|01","01","01","02","33","33","01|01|02|33|33","National","Military Veterans","Empowerment and Stakeholder Management","Provincial Offices and Stakeholder Relations","Non-transfer item","Current","Current payments","Goods and services","Operating leases","Operating leases","Peace and security","Defence and state security","NAT",0,0,0,1192,1192,1192,0,0,0,0,0,null,null,null,null,null,null,null,null,null,null,null,null,null,null,null,null,null,null,null,null,null,null,null,null,null,null,null,null,null,null,null,null,null,null,{"$f":"Dataset[[#This Row],[2024/25 From - Spending review Topic 1]]+Dataset[[#This Row],[2024/25 From - Spending review Topic 2]]+Dataset[[#This Row],[2024/25 From - Spending review Topic 3]]+Dataset[[#This Row],[2024/25 From - Spending review Topic 4]]+Dataset[[#This Row],[2024/25 From - Other reallocations]]","v":0},{"$f":"Dataset[[#This Row],[2025/26 From - Spending review Topic 1]]+Dataset[[#This Row],[2025/26 From - Spending review Topic 2]]+Dataset[[#This Row],[2025/26 From - Spending review Topic 3]]+Dataset[[#This Row],[2025/26 From - Spending review Topic 4]]+Dataset[[#This Row],[2025/26 From - Other reallocations]]","v":0},{"$f":"Dataset[[#This Row],[2026/27 From - Spending review Topic 1]]+Dataset[[#This Row],[2026/27 From - Spending review Topic 2]]+Dataset[[#This Row],[2026/27 From - Spending review Topic 3]]+Dataset[[#This Row],[2026/27 From - Spending review Topic 4]]+Dataset[[#This Row],[2026/27 From - Other reallocations]]","v":0},{"$f":"Dataset[[#This Row],[2024/25 To - Spending review Topic 1]]+Dataset[[#This Row],[2024/25 To - Spending review Topic 2]]+Dataset[[#This Row],[2024/25 To - Spending review Topic 3]]+Dataset[[#This Row],[2024/25 To - Spending review Topic 4]]+Dataset[[#This Row],[2024/25 To - Other reallocations]]","v":0},{"$f":"Dataset[[#This Row],[2025/26 To - Spending review Topic 1]]+Dataset[[#This Row],[2025/26 To - Spending review Topic 2]]+Dataset[[#This Row],[2025/26 To - Spending review Topic 3]]+Dataset[[#This Row],[2025/26 To - Spending review Topic 4]]+Dataset[[#This Row],[2025/26 To - Other reallocations]]","v":0},{"$f":"Dataset[[#This Row],[2026/27 To - Spending review Topic 1]]+Dataset[[#This Row],[2026/27 To - Spending review Topic 2]]+Dataset[[#This Row],[2026/27 To - Spending review Topic 3]]+Dataset[[#This Row],[2026/27 To - Spending review Topic 4]]+Dataset[[#This Row],[2026/27 To - Other reallocations]]","v":0},{"$f":"Dataset[[#This Row],[2024/25 Reduction]]+Dataset[[#This Row],[2024/25 From - Total]]","v":0},{"$f":"Dataset[[#This Row],[2025/26 Reduction]]+Dataset[[#This Row],[2025/26 From - Total]]","v":0},{"$f":"Dataset[[#This Row],[2026/27 Reduction]]+Dataset[[#This Row],[2026/27 From - Total]]","v":0},{"$f":"Dataset[[#This Row],[2023/24 Reduction]]","v":0},{"$f":"SUM(Dataset[[#This Row],[2024/25 Reduction]],Dataset[[#This Row],[2024/25 From - Total]],Dataset[[#This Row],[2024/25 To - Total]])","v":0},{"$f":"SUM(Dataset[[#This Row],[2025/26 Reduction]],Dataset[[#This Row],[2025/26 From - Total]],Dataset[[#This Row],[2025/26 To - Total]])","v":0},{"$f":"SUM(Dataset[[#This Row],[2026/27 Reduction]],Dataset[[#This Row],[2026/27 From - Total]],Dataset[[#This Row],[2026/27 To - Total]])","v":0},{"$f":"Dataset[[#This Row],[2023/24 Baseline]]+Dataset[[#This Row],[2023/24 Total change]]","v":0},{"$f":"Dataset[[#This Row],[2024/25 Baseline]]+Dataset[[#This Row],[2024/25 Total change]]","v":0},{"$f":"Dataset[[#This Row],[2025/26 Baseline]]+Dataset[[#This Row],[2025/26 Total change]]","v":0},{"$f":"Dataset[[#This Row],[2026/27 Baseline]]+Dataset[[#This Row],[2026/27 Total change]]","v":0}]
["NAT|Non-transfer item","26|Rental and hiring","2024_25","MTEF2024",26,3,1,44614,727,"26","03","01","044614","000727","26|03|01","01","01","02","34","34","01|01|02|34|34","National","Military Veterans","Empowerment and Stakeholder Management","Provincial Offices and Stakeholder Relations","Non-transfer item","Current","Current payments","Goods and services","Rental and hiring","Rental and hiring","Peace and security","Defence and state security","NAT",0,0,0,0,0,0,0,0,0,0,0,null,null,null,null,null,null,null,null,null,null,null,null,null,null,null,null,null,null,null,null,null,null,null,null,null,null,null,null,null,null,null,null,null,null,{"$f":"Dataset[[#This Row],[2024/25 From - Spending review Topic 1]]+Dataset[[#This Row],[2024/25 From - Spending review Topic 2]]+Dataset[[#This Row],[2024/25 From - Spending review Topic 3]]+Dataset[[#This Row],[2024/25 From - Spending review Topic 4]]+Dataset[[#This Row],[2024/25 From - Other reallocations]]","v":0},{"$f":"Dataset[[#This Row],[2025/26 From - Spending review Topic 1]]+Dataset[[#This Row],[2025/26 From - Spending review Topic 2]]+Dataset[[#This Row],[2025/26 From - Spending review Topic 3]]+Dataset[[#This Row],[2025/26 From - Spending review Topic 4]]+Dataset[[#This Row],[2025/26 From - Other reallocations]]","v":0},{"$f":"Dataset[[#This Row],[2026/27 From - Spending review Topic 1]]+Dataset[[#This Row],[2026/27 From - Spending review Topic 2]]+Dataset[[#This Row],[2026/27 From - Spending review Topic 3]]+Dataset[[#This Row],[2026/27 From - Spending review Topic 4]]+Dataset[[#This Row],[2026/27 From - Other reallocations]]","v":0},{"$f":"Dataset[[#This Row],[2024/25 To - Spending review Topic 1]]+Dataset[[#This Row],[2024/25 To - Spending review Topic 2]]+Dataset[[#This Row],[2024/25 To - Spending review Topic 3]]+Dataset[[#This Row],[2024/25 To - Spending review Topic 4]]+Dataset[[#This Row],[2024/25 To - Other reallocations]]","v":0},{"$f":"Dataset[[#This Row],[2025/26 To - Spending review Topic 1]]+Dataset[[#This Row],[2025/26 To - Spending review Topic 2]]+Dataset[[#This Row],[2025/26 To - Spending review Topic 3]]+Dataset[[#This Row],[2025/26 To - Spending review Topic 4]]+Dataset[[#This Row],[2025/26 To - Other reallocations]]","v":0},{"$f":"Dataset[[#This Row],[2026/27 To - Spending review Topic 1]]+Dataset[[#This Row],[2026/27 To - Spending review Topic 2]]+Dataset[[#This Row],[2026/27 To - Spending review Topic 3]]+Dataset[[#This Row],[2026/27 To - Spending review Topic 4]]+Dataset[[#This Row],[2026/27 To - Other reallocations]]","v":0},{"$f":"Dataset[[#This Row],[2024/25 Reduction]]+Dataset[[#This Row],[2024/25 From - Total]]","v":0},{"$f":"Dataset[[#This Row],[2025/26 Reduction]]+Dataset[[#This Row],[2025/26 From - Total]]","v":0},{"$f":"Dataset[[#This Row],[2026/27 Reduction]]+Dataset[[#This Row],[2026/27 From - Total]]","v":0},{"$f":"Dataset[[#This Row],[2023/24 Reduction]]","v":0},{"$f":"SUM(Dataset[[#This Row],[2024/25 Reduction]],Dataset[[#This Row],[2024/25 From - Total]],Dataset[[#This Row],[2024/25 To - Total]])","v":0},{"$f":"SUM(Dataset[[#This Row],[2025/26 Reduction]],Dataset[[#This Row],[2025/26 From - Total]],Dataset[[#This Row],[2025/26 To - Total]])","v":0},{"$f":"SUM(Dataset[[#This Row],[2026/27 Reduction]],Dataset[[#This Row],[2026/27 From - Total]],Dataset[[#This Row],[2026/27 To - Total]])","v":0},{"$f":"Dataset[[#This Row],[2023/24 Baseline]]+Dataset[[#This Row],[2023/24 Total change]]","v":0},{"$f":"Dataset[[#This Row],[2024/25 Baseline]]+Dataset[[#This Row],[2024/25 Total change]]","v":0},{"$f":"Dataset[[#This Row],[2025/26 Baseline]]+Dataset[[#This Row],[2025/26 Total change]]","v":0},{"$f":"Dataset[[#This Row],[2026/27 Baseline]]+Dataset[[#This Row],[2026/27 Total change]]","v":0}]
["NAT|Non-transfer item","26|Property payments","2024_25","MTEF2024",26,3,1,44615,728,"26","03","01","044615","000728","26|03|01","01","01","02","35","35","01|01|02|35|35","National","Military Veterans","Empowerment and Stakeholder Management","Provincial Offices and Stakeholder Relations","Non-transfer item","Current","Current payments","Goods and services","Property payments","Property payments","Peace and security","Defence and state security","NAT",0,0,0,0,0,0,0,0,0,0,0,null,null,null,null,null,null,null,null,null,null,null,null,null,null,null,null,null,null,null,null,null,null,null,null,null,null,null,null,null,null,null,null,null,null,{"$f":"Dataset[[#This Row],[2024/25 From - Spending review Topic 1]]+Dataset[[#This Row],[2024/25 From - Spending review Topic 2]]+Dataset[[#This Row],[2024/25 From - Spending review Topic 3]]+Dataset[[#This Row],[2024/25 From - Spending review Topic 4]]+Dataset[[#This Row],[2024/25 From - Other reallocations]]","v":0},{"$f":"Dataset[[#This Row],[2025/26 From - Spending review Topic 1]]+Dataset[[#This Row],[2025/26 From - Spending review Topic 2]]+Dataset[[#This Row],[2025/26 From - Spending review Topic 3]]+Dataset[[#This Row],[2025/26 From - Spending review Topic 4]]+Dataset[[#This Row],[2025/26 From - Other reallocations]]","v":0},{"$f":"Dataset[[#This Row],[2026/27 From - Spending review Topic 1]]+Dataset[[#This Row],[2026/27 From - Spending review Topic 2]]+Dataset[[#This Row],[2026/27 From - Spending review Topic 3]]+Dataset[[#This Row],[2026/27 From - Spending review Topic 4]]+Dataset[[#This Row],[2026/27 From - Other reallocations]]","v":0},{"$f":"Dataset[[#This Row],[2024/25 To - Spending review Topic 1]]+Dataset[[#This Row],[2024/25 To - Spending review Topic 2]]+Dataset[[#This Row],[2024/25 To - Spending review Topic 3]]+Dataset[[#This Row],[2024/25 To - Spending review Topic 4]]+Dataset[[#This Row],[2024/25 To - Other reallocations]]","v":0},{"$f":"Dataset[[#This Row],[2025/26 To - Spending review Topic 1]]+Dataset[[#This Row],[2025/26 To - Spending review Topic 2]]+Dataset[[#This Row],[2025/26 To - Spending review Topic 3]]+Dataset[[#This Row],[2025/26 To - Spending review Topic 4]]+Dataset[[#This Row],[2025/26 To - Other reallocations]]","v":0},{"$f":"Dataset[[#This Row],[2026/27 To - Spending review Topic 1]]+Dataset[[#This Row],[2026/27 To - Spending review Topic 2]]+Dataset[[#This Row],[2026/27 To - Spending review Topic 3]]+Dataset[[#This Row],[2026/27 To - Spending review Topic 4]]+Dataset[[#This Row],[2026/27 To - Other reallocations]]","v":0},{"$f":"Dataset[[#This Row],[2024/25 Reduction]]+Dataset[[#This Row],[2024/25 From - Total]]","v":0},{"$f":"Dataset[[#This Row],[2025/26 Reduction]]+Dataset[[#This Row],[2025/26 From - Total]]","v":0},{"$f":"Dataset[[#This Row],[2026/27 Reduction]]+Dataset[[#This Row],[2026/27 From - Total]]","v":0},{"$f":"Dataset[[#This Row],[2023/24 Reduction]]","v":0},{"$f":"SUM(Dataset[[#This Row],[2024/25 Reduction]],Dataset[[#This Row],[2024/25 From - Total]],Dataset[[#This Row],[2024/25 To - Total]])","v":0},{"$f":"SUM(Dataset[[#This Row],[2025/26 Reduction]],Dataset[[#This Row],[2025/26 From - Total]],Dataset[[#This Row],[2025/26 To - Total]])","v":0},{"$f":"SUM(Dataset[[#This Row],[2026/27 Reduction]],Dataset[[#This Row],[2026/27 From - Total]],Dataset[[#This Row],[2026/27 To - Total]])","v":0},{"$f":"Dataset[[#This Row],[2023/24 Baseline]]+Dataset[[#This Row],[2023/24 Total change]]","v":0},{"$f":"Dataset[[#This Row],[2024/25 Baseline]]+Dataset[[#This Row],[2024/25 Total change]]","v":0},{"$f":"Dataset[[#This Row],[2025/26 Baseline]]+Dataset[[#This Row],[2025/26 Total change]]","v":0},{"$f":"Dataset[[#This Row],[2026/27 Baseline]]+Dataset[[#This Row],[2026/27 Total change]]","v":0}]
["NAT|Non-transfer item","26|Transport provided: Departmental activity","2024_25","MTEF2024",26,3,1,44616,729,"26","03","01","044616","000729","26|03|01","01","01","02","36","36","01|01|02|36|36","National","Military Veterans","Empowerment and Stakeholder Management","Provincial Offices and Stakeholder Relations","Non-transfer item","Current","Current payments","Goods and services","Transport provided: Departmental activity","Transport provided: Departmental activity","Peace and security","Defence and state security","NAT",0,0,0,0,0,0,0,0,0,0,0,null,null,null,null,null,null,null,null,null,null,null,null,null,null,null,null,null,null,null,null,null,null,null,null,null,null,null,null,null,null,null,null,null,null,{"$f":"Dataset[[#This Row],[2024/25 From - Spending review Topic 1]]+Dataset[[#This Row],[2024/25 From - Spending review Topic 2]]+Dataset[[#This Row],[2024/25 From - Spending review Topic 3]]+Dataset[[#This Row],[2024/25 From - Spending review Topic 4]]+Dataset[[#This Row],[2024/25 From - Other reallocations]]","v":0},{"$f":"Dataset[[#This Row],[2025/26 From - Spending review Topic 1]]+Dataset[[#This Row],[2025/26 From - Spending review Topic 2]]+Dataset[[#This Row],[2025/26 From - Spending review Topic 3]]+Dataset[[#This Row],[2025/26 From - Spending review Topic 4]]+Dataset[[#This Row],[2025/26 From - Other reallocations]]","v":0},{"$f":"Dataset[[#This Row],[2026/27 From - Spending review Topic 1]]+Dataset[[#This Row],[2026/27 From - Spending review Topic 2]]+Dataset[[#This Row],[2026/27 From - Spending review Topic 3]]+Dataset[[#This Row],[2026/27 From - Spending review Topic 4]]+Dataset[[#This Row],[2026/27 From - Other reallocations]]","v":0},{"$f":"Dataset[[#This Row],[2024/25 To - Spending review Topic 1]]+Dataset[[#This Row],[2024/25 To - Spending review Topic 2]]+Dataset[[#This Row],[2024/25 To - Spending review Topic 3]]+Dataset[[#This Row],[2024/25 To - Spending review Topic 4]]+Dataset[[#This Row],[2024/25 To - Other reallocations]]","v":0},{"$f":"Dataset[[#This Row],[2025/26 To - Spending review Topic 1]]+Dataset[[#This Row],[2025/26 To - Spending review Topic 2]]+Dataset[[#This Row],[2025/26 To - Spending review Topic 3]]+Dataset[[#This Row],[2025/26 To - Spending review Topic 4]]+Dataset[[#This Row],[2025/26 To - Other reallocations]]","v":0},{"$f":"Dataset[[#This Row],[2026/27 To - Spending review Topic 1]]+Dataset[[#This Row],[2026/27 To - Spending review Topic 2]]+Dataset[[#This Row],[2026/27 To - Spending review Topic 3]]+Dataset[[#This Row],[2026/27 To - Spending review Topic 4]]+Dataset[[#This Row],[2026/27 To - Other reallocations]]","v":0},{"$f":"Dataset[[#This Row],[2024/25 Reduction]]+Dataset[[#This Row],[2024/25 From - Total]]","v":0},{"$f":"Dataset[[#This Row],[2025/26 Reduction]]+Dataset[[#This Row],[2025/26 From - Total]]","v":0},{"$f":"Dataset[[#This Row],[2026/27 Reduction]]+Dataset[[#This Row],[2026/27 From - Total]]","v":0},{"$f":"Dataset[[#This Row],[2023/24 Reduction]]","v":0},{"$f":"SUM(Dataset[[#This Row],[2024/25 Reduction]],Dataset[[#This Row],[2024/25 From - Total]],Dataset[[#This Row],[2024/25 To - Total]])","v":0},{"$f":"SUM(Dataset[[#This Row],[2025/26 Reduction]],Dataset[[#This Row],[2025/26 From - Total]],Dataset[[#This Row],[2025/26 To - Total]])","v":0},{"$f":"SUM(Dataset[[#This Row],[2026/27 Reduction]],Dataset[[#This Row],[2026/27 From - Total]],Dataset[[#This Row],[2026/27 To - Total]])","v":0},{"$f":"Dataset[[#This Row],[2023/24 Baseline]]+Dataset[[#This Row],[2023/24 Total change]]","v":0},{"$f":"Dataset[[#This Row],[2024/25 Baseline]]+Dataset[[#This Row],[2024/25 Total change]]","v":0},{"$f":"Dataset[[#This Row],[2025/26 Baseline]]+Dataset[[#This Row],[2025/26 Total change]]","v":0},{"$f":"Dataset[[#This Row],[2026/27 Baseline]]+Dataset[[#This Row],[2026/27 Total change]]","v":0}]
["NAT|Non-transfer item","26|Travel and subsistence","2024_25","MTEF2024",26,3,1,44617,730,"26","03","01","044617","000730","26|03|01","01","01","02","37","37","01|01|02|37|37","National","Military Veterans","Empowerment and Stakeholder Management","Provincial Offices and Stakeholder Relations","Non-transfer item","Current","Current payments","Goods and services","Travel and subsistence","Travel and subsistence","Peace and security","Defence and state security","NAT",14423,2996,8145,16470,16470,16470,0,13538,14102,14868,15549,null,null,null,null,null,null,null,null,null,null,null,null,null,null,null,null,null,null,null,null,null,null,null,null,null,null,null,null,null,null,null,null,null,null,{"$f":"Dataset[[#This Row],[2024/25 From - Spending review Topic 1]]+Dataset[[#This Row],[2024/25 From - Spending review Topic 2]]+Dataset[[#This Row],[2024/25 From - Spending review Topic 3]]+Dataset[[#This Row],[2024/25 From - Spending review Topic 4]]+Dataset[[#This Row],[2024/25 From - Other reallocations]]","v":0},{"$f":"Dataset[[#This Row],[2025/26 From - Spending review Topic 1]]+Dataset[[#This Row],[2025/26 From - Spending review Topic 2]]+Dataset[[#This Row],[2025/26 From - Spending review Topic 3]]+Dataset[[#This Row],[2025/26 From - Spending review Topic 4]]+Dataset[[#This Row],[2025/26 From - Other reallocations]]","v":0},{"$f":"Dataset[[#This Row],[2026/27 From - Spending review Topic 1]]+Dataset[[#This Row],[2026/27 From - Spending review Topic 2]]+Dataset[[#This Row],[2026/27 From - Spending review Topic 3]]+Dataset[[#This Row],[2026/27 From - Spending review Topic 4]]+Dataset[[#This Row],[2026/27 From - Other reallocations]]","v":0},{"$f":"Dataset[[#This Row],[2024/25 To - Spending review Topic 1]]+Dataset[[#This Row],[2024/25 To - Spending review Topic 2]]+Dataset[[#This Row],[2024/25 To - Spending review Topic 3]]+Dataset[[#This Row],[2024/25 To - Spending review Topic 4]]+Dataset[[#This Row],[2024/25 To - Other reallocations]]","v":0},{"$f":"Dataset[[#This Row],[2025/26 To - Spending review Topic 1]]+Dataset[[#This Row],[2025/26 To - Spending review Topic 2]]+Dataset[[#This Row],[2025/26 To - Spending review Topic 3]]+Dataset[[#This Row],[2025/26 To - Spending review Topic 4]]+Dataset[[#This Row],[2025/26 To - Other reallocations]]","v":0},{"$f":"Dataset[[#This Row],[2026/27 To - Spending review Topic 1]]+Dataset[[#This Row],[2026/27 To - Spending review Topic 2]]+Dataset[[#This Row],[2026/27 To - Spending review Topic 3]]+Dataset[[#This Row],[2026/27 To - Spending review Topic 4]]+Dataset[[#This Row],[2026/27 To - Other reallocations]]","v":0},{"$f":"Dataset[[#This Row],[2024/25 Reduction]]+Dataset[[#This Row],[2024/25 From - Total]]","v":0},{"$f":"Dataset[[#This Row],[2025/26 Reduction]]+Dataset[[#This Row],[2025/26 From - Total]]","v":0},{"$f":"Dataset[[#This Row],[2026/27 Reduction]]+Dataset[[#This Row],[2026/27 From - Total]]","v":0},{"$f":"Dataset[[#This Row],[2023/24 Reduction]]","v":0},{"$f":"SUM(Dataset[[#This Row],[2024/25 Reduction]],Dataset[[#This Row],[2024/25 From - Total]],Dataset[[#This Row],[2024/25 To - Total]])","v":0},{"$f":"SUM(Dataset[[#This Row],[2025/26 Reduction]],Dataset[[#This Row],[2025/26 From - Total]],Dataset[[#This Row],[2025/26 To - Total]])","v":0},{"$f":"SUM(Dataset[[#This Row],[2026/27 Reduction]],Dataset[[#This Row],[2026/27 From - Total]],Dataset[[#This Row],[2026/27 To - Total]])","v":0},{"$f":"Dataset[[#This Row],[2023/24 Baseline]]+Dataset[[#This Row],[2023/24 Total change]]","v":13538},{"$f":"Dataset[[#This Row],[2024/25 Baseline]]+Dataset[[#This Row],[2024/25 Total change]]","v":14102},{"$f":"Dataset[[#This Row],[2025/26 Baseline]]+Dataset[[#This Row],[2025/26 Total change]]","v":14868},{"$f":"Dataset[[#This Row],[2026/27 Baseline]]+Dataset[[#This Row],[2026/27 Total change]]","v":15549}]
["NAT|Non-transfer item","26|Training and development","2024_25","MTEF2024",26,3,1,44618,731,"26","03","01","044618","000731","26|03|01","01","01","02","38","38","01|01|02|38|38","National","Military Veterans","Empowerment and Stakeholder Management","Provincial Offices and Stakeholder Relations","Non-transfer item","Current","Current payments","Goods and services","Training and development","Training and development","Peace and security","Defence and state security","NAT",0,0,0,0,0,0,0,0,0,0,0,null,null,null,null,null,null,null,null,null,null,null,null,null,null,null,null,null,null,null,null,null,null,null,null,null,null,null,null,null,null,null,null,null,null,{"$f":"Dataset[[#This Row],[2024/25 From - Spending review Topic 1]]+Dataset[[#This Row],[2024/25 From - Spending review Topic 2]]+Dataset[[#This Row],[2024/25 From - Spending review Topic 3]]+Dataset[[#This Row],[2024/25 From - Spending review Topic 4]]+Dataset[[#This Row],[2024/25 From - Other reallocations]]","v":0},{"$f":"Dataset[[#This Row],[2025/26 From - Spending review Topic 1]]+Dataset[[#This Row],[2025/26 From - Spending review Topic 2]]+Dataset[[#This Row],[2025/26 From - Spending review Topic 3]]+Dataset[[#This Row],[2025/26 From - Spending review Topic 4]]+Dataset[[#This Row],[2025/26 From - Other reallocations]]","v":0},{"$f":"Dataset[[#This Row],[2026/27 From - Spending review Topic 1]]+Dataset[[#This Row],[2026/27 From - Spending review Topic 2]]+Dataset[[#This Row],[2026/27 From - Spending review Topic 3]]+Dataset[[#This Row],[2026/27 From - Spending review Topic 4]]+Dataset[[#This Row],[2026/27 From - Other reallocations]]","v":0},{"$f":"Dataset[[#This Row],[2024/25 To - Spending review Topic 1]]+Dataset[[#This Row],[2024/25 To - Spending review Topic 2]]+Dataset[[#This Row],[2024/25 To - Spending review Topic 3]]+Dataset[[#This Row],[2024/25 To - Spending review Topic 4]]+Dataset[[#This Row],[2024/25 To - Other reallocations]]","v":0},{"$f":"Dataset[[#This Row],[2025/26 To - Spending review Topic 1]]+Dataset[[#This Row],[2025/26 To - Spending review Topic 2]]+Dataset[[#This Row],[2025/26 To - Spending review Topic 3]]+Dataset[[#This Row],[2025/26 To - Spending review Topic 4]]+Dataset[[#This Row],[2025/26 To - Other reallocations]]","v":0},{"$f":"Dataset[[#This Row],[2026/27 To - Spending review Topic 1]]+Dataset[[#This Row],[2026/27 To - Spending review Topic 2]]+Dataset[[#This Row],[2026/27 To - Spending review Topic 3]]+Dataset[[#This Row],[2026/27 To - Spending review Topic 4]]+Dataset[[#This Row],[2026/27 To - Other reallocations]]","v":0},{"$f":"Dataset[[#This Row],[2024/25 Reduction]]+Dataset[[#This Row],[2024/25 From - Total]]","v":0},{"$f":"Dataset[[#This Row],[2025/26 Reduction]]+Dataset[[#This Row],[2025/26 From - Total]]","v":0},{"$f":"Dataset[[#This Row],[2026/27 Reduction]]+Dataset[[#This Row],[2026/27 From - Total]]","v":0},{"$f":"Dataset[[#This Row],[2023/24 Reduction]]","v":0},{"$f":"SUM(Dataset[[#This Row],[2024/25 Reduction]],Dataset[[#This Row],[2024/25 From - Total]],Dataset[[#This Row],[2024/25 To - Total]])","v":0},{"$f":"SUM(Dataset[[#This Row],[2025/26 Reduction]],Dataset[[#This Row],[2025/26 From - Total]],Dataset[[#This Row],[2025/26 To - Total]])","v":0},{"$f":"SUM(Dataset[[#This Row],[2026/27 Reduction]],Dataset[[#This Row],[2026/27 From - Total]],Dataset[[#This Row],[2026/27 To - Total]])","v":0},{"$f":"Dataset[[#This Row],[2023/24 Baseline]]+Dataset[[#This Row],[2023/24 Total change]]","v":0},{"$f":"Dataset[[#This Row],[2024/25 Baseline]]+Dataset[[#This Row],[2024/25 Total change]]","v":0},{"$f":"Dataset[[#This Row],[2025/26 Baseline]]+Dataset[[#This Row],[2025/26 Total change]]","v":0},{"$f":"Dataset[[#This Row],[2026/27 Baseline]]+Dataset[[#This Row],[2026/27 Total change]]","v":0}]
["NAT|Non-transfer item","26|Operating payments","2024_25","MTEF2024",26,3,1,44619,732,"26","03","01","044619","000732","26|03|01","01","01","02","39","39","01|01|02|39|39","National","Military Veterans","Empowerment and Stakeholder Management","Provincial Offices and Stakeholder Relations","Non-transfer item","Current","Current payments","Goods and services","Operating payments","Operating payments","Peace and security","Defence and state security","NAT",0,0,86,0,0,0,0,0,0,0,0,null,null,null,null,null,null,null,null,null,null,null,null,null,null,null,null,null,null,null,null,null,null,null,null,null,null,null,null,null,null,null,null,null,null,{"$f":"Dataset[[#This Row],[2024/25 From - Spending review Topic 1]]+Dataset[[#This Row],[2024/25 From - Spending review Topic 2]]+Dataset[[#This Row],[2024/25 From - Spending review Topic 3]]+Dataset[[#This Row],[2024/25 From - Spending review Topic 4]]+Dataset[[#This Row],[2024/25 From - Other reallocations]]","v":0},{"$f":"Dataset[[#This Row],[2025/26 From - Spending review Topic 1]]+Dataset[[#This Row],[2025/26 From - Spending review Topic 2]]+Dataset[[#This Row],[2025/26 From - Spending review Topic 3]]+Dataset[[#This Row],[2025/26 From - Spending review Topic 4]]+Dataset[[#This Row],[2025/26 From - Other reallocations]]","v":0},{"$f":"Dataset[[#This Row],[2026/27 From - Spending review Topic 1]]+Dataset[[#This Row],[2026/27 From - Spending review Topic 2]]+Dataset[[#This Row],[2026/27 From - Spending review Topic 3]]+Dataset[[#This Row],[2026/27 From - Spending review Topic 4]]+Dataset[[#This Row],[2026/27 From - Other reallocations]]","v":0},{"$f":"Dataset[[#This Row],[2024/25 To - Spending review Topic 1]]+Dataset[[#This Row],[2024/25 To - Spending review Topic 2]]+Dataset[[#This Row],[2024/25 To - Spending review Topic 3]]+Dataset[[#This Row],[2024/25 To - Spending review Topic 4]]+Dataset[[#This Row],[2024/25 To - Other reallocations]]","v":0},{"$f":"Dataset[[#This Row],[2025/26 To - Spending review Topic 1]]+Dataset[[#This Row],[2025/26 To - Spending review Topic 2]]+Dataset[[#This Row],[2025/26 To - Spending review Topic 3]]+Dataset[[#This Row],[2025/26 To - Spending review Topic 4]]+Dataset[[#This Row],[2025/26 To - Other reallocations]]","v":0},{"$f":"Dataset[[#This Row],[2026/27 To - Spending review Topic 1]]+Dataset[[#This Row],[2026/27 To - Spending review Topic 2]]+Dataset[[#This Row],[2026/27 To - Spending review Topic 3]]+Dataset[[#This Row],[2026/27 To - Spending review Topic 4]]+Dataset[[#This Row],[2026/27 To - Other reallocations]]","v":0},{"$f":"Dataset[[#This Row],[2024/25 Reduction]]+Dataset[[#This Row],[2024/25 From - Total]]","v":0},{"$f":"Dataset[[#This Row],[2025/26 Reduction]]+Dataset[[#This Row],[2025/26 From - Total]]","v":0},{"$f":"Dataset[[#This Row],[2026/27 Reduction]]+Dataset[[#This Row],[2026/27 From - Total]]","v":0},{"$f":"Dataset[[#This Row],[2023/24 Reduction]]","v":0},{"$f":"SUM(Dataset[[#This Row],[2024/25 Reduction]],Dataset[[#This Row],[2024/25 From - Total]],Dataset[[#This Row],[2024/25 To - Total]])","v":0},{"$f":"SUM(Dataset[[#This Row],[2025/26 Reduction]],Dataset[[#This Row],[2025/26 From - Total]],Dataset[[#This Row],[2025/26 To - Total]])","v":0},{"$f":"SUM(Dataset[[#This Row],[2026/27 Reduction]],Dataset[[#This Row],[2026/27 From - Total]],Dataset[[#This Row],[2026/27 To - Total]])","v":0},{"$f":"Dataset[[#This Row],[2023/24 Baseline]]+Dataset[[#This Row],[2023/24 Total change]]","v":0},{"$f":"Dataset[[#This Row],[2024/25 Baseline]]+Dataset[[#This Row],[2024/25 Total change]]","v":0},{"$f":"Dataset[[#This Row],[2025/26 Baseline]]+Dataset[[#This Row],[2025/26 Total change]]","v":0},{"$f":"Dataset[[#This Row],[2026/27 Baseline]]+Dataset[[#This Row],[2026/27 Total change]]","v":0}]
["NAT|Non-transfer item","26|Venues and facilities","2024_25","MTEF2024",26,3,1,44620,733,"26","03","01","044620","000733","26|03|01","01","01","02","40","40","01|01|02|40|40","National","Military Veterans","Empowerment and Stakeholder Management","Provincial Offices and Stakeholder Relations","Non-transfer item","Current","Current payments","Goods and services","Venues and facilities","Venues and facilities","Peace and security","Defence and state security","NAT",1225,380,2020,4959,4887,4887,0,1450,1720,1930,2018,null,null,null,null,null,null,null,null,null,null,null,null,null,null,null,null,null,null,null,null,null,null,null,null,null,null,null,null,null,null,null,null,null,null,{"$f":"Dataset[[#This Row],[2024/25 From - Spending review Topic 1]]+Dataset[[#This Row],[2024/25 From - Spending review Topic 2]]+Dataset[[#This Row],[2024/25 From - Spending review Topic 3]]+Dataset[[#This Row],[2024/25 From - Spending review Topic 4]]+Dataset[[#This Row],[2024/25 From - Other reallocations]]","v":0},{"$f":"Dataset[[#This Row],[2025/26 From - Spending review Topic 1]]+Dataset[[#This Row],[2025/26 From - Spending review Topic 2]]+Dataset[[#This Row],[2025/26 From - Spending review Topic 3]]+Dataset[[#This Row],[2025/26 From - Spending review Topic 4]]+Dataset[[#This Row],[2025/26 From - Other reallocations]]","v":0},{"$f":"Dataset[[#This Row],[2026/27 From - Spending review Topic 1]]+Dataset[[#This Row],[2026/27 From - Spending review Topic 2]]+Dataset[[#This Row],[2026/27 From - Spending review Topic 3]]+Dataset[[#This Row],[2026/27 From - Spending review Topic 4]]+Dataset[[#This Row],[2026/27 From - Other reallocations]]","v":0},{"$f":"Dataset[[#This Row],[2024/25 To - Spending review Topic 1]]+Dataset[[#This Row],[2024/25 To - Spending review Topic 2]]+Dataset[[#This Row],[2024/25 To - Spending review Topic 3]]+Dataset[[#This Row],[2024/25 To - Spending review Topic 4]]+Dataset[[#This Row],[2024/25 To - Other reallocations]]","v":0},{"$f":"Dataset[[#This Row],[2025/26 To - Spending review Topic 1]]+Dataset[[#This Row],[2025/26 To - Spending review Topic 2]]+Dataset[[#This Row],[2025/26 To - Spending review Topic 3]]+Dataset[[#This Row],[2025/26 To - Spending review Topic 4]]+Dataset[[#This Row],[2025/26 To - Other reallocations]]","v":0},{"$f":"Dataset[[#This Row],[2026/27 To - Spending review Topic 1]]+Dataset[[#This Row],[2026/27 To - Spending review Topic 2]]+Dataset[[#This Row],[2026/27 To - Spending review Topic 3]]+Dataset[[#This Row],[2026/27 To - Spending review Topic 4]]+Dataset[[#This Row],[2026/27 To - Other reallocations]]","v":0},{"$f":"Dataset[[#This Row],[2024/25 Reduction]]+Dataset[[#This Row],[2024/25 From - Total]]","v":0},{"$f":"Dataset[[#This Row],[2025/26 Reduction]]+Dataset[[#This Row],[2025/26 From - Total]]","v":0},{"$f":"Dataset[[#This Row],[2026/27 Reduction]]+Dataset[[#This Row],[2026/27 From - Total]]","v":0},{"$f":"Dataset[[#This Row],[2023/24 Reduction]]","v":0},{"$f":"SUM(Dataset[[#This Row],[2024/25 Reduction]],Dataset[[#This Row],[2024/25 From - Total]],Dataset[[#This Row],[2024/25 To - Total]])","v":0},{"$f":"SUM(Dataset[[#This Row],[2025/26 Reduction]],Dataset[[#This Row],[2025/26 From - Total]],Dataset[[#This Row],[2025/26 To - Total]])","v":0},{"$f":"SUM(Dataset[[#This Row],[2026/27 Reduction]],Dataset[[#This Row],[2026/27 From - Total]],Dataset[[#This Row],[2026/27 To - Total]])","v":0},{"$f":"Dataset[[#This Row],[2023/24 Baseline]]+Dataset[[#This Row],[2023/24 Total change]]","v":1450},{"$f":"Dataset[[#This Row],[2024/25 Baseline]]+Dataset[[#This Row],[2024/25 Total change]]","v":1720},{"$f":"Dataset[[#This Row],[2025/26 Baseline]]+Dataset[[#This Row],[2025/26 Total change]]","v":1930},{"$f":"Dataset[[#This Row],[2026/27 Baseline]]+Dataset[[#This Row],[2026/27 Total change]]","v":2018}]
["NAT|Non-transfer item","26|Interest (Incl. interest on unitary payments (PPP))","2024_25","MTEF2024",26,3,1,44621,734,"26","03","01","044621","000734","26|03|01","01","01","03","41","41","01|01|03|41|41","National","Military Veterans","Empowerment and Stakeholder Management","Provincial Offices and Stakeholder Relations","Non-transfer item","Current","Current payments","Interest and rent on land","Interest (Incl. interest on unitary payments (PPP))","Interest (Incl. interest on unitary payments (PPP))","Peace and security","Defence and state security","NAT",0,0,0,0,0,0,0,0,0,0,0,null,null,null,null,null,null,null,null,null,null,null,null,null,null,null,null,null,null,null,null,null,null,null,null,null,null,null,null,null,null,null,null,null,null,{"$f":"Dataset[[#This Row],[2024/25 From - Spending review Topic 1]]+Dataset[[#This Row],[2024/25 From - Spending review Topic 2]]+Dataset[[#This Row],[2024/25 From - Spending review Topic 3]]+Dataset[[#This Row],[2024/25 From - Spending review Topic 4]]+Dataset[[#This Row],[2024/25 From - Other reallocations]]","v":0},{"$f":"Dataset[[#This Row],[2025/26 From - Spending review Topic 1]]+Dataset[[#This Row],[2025/26 From - Spending review Topic 2]]+Dataset[[#This Row],[2025/26 From - Spending review Topic 3]]+Dataset[[#This Row],[2025/26 From - Spending review Topic 4]]+Dataset[[#This Row],[2025/26 From - Other reallocations]]","v":0},{"$f":"Dataset[[#This Row],[2026/27 From - Spending review Topic 1]]+Dataset[[#This Row],[2026/27 From - Spending review Topic 2]]+Dataset[[#This Row],[2026/27 From - Spending review Topic 3]]+Dataset[[#This Row],[2026/27 From - Spending review Topic 4]]+Dataset[[#This Row],[2026/27 From - Other reallocations]]","v":0},{"$f":"Dataset[[#This Row],[2024/25 To - Spending review Topic 1]]+Dataset[[#This Row],[2024/25 To - Spending review Topic 2]]+Dataset[[#This Row],[2024/25 To - Spending review Topic 3]]+Dataset[[#This Row],[2024/25 To - Spending review Topic 4]]+Dataset[[#This Row],[2024/25 To - Other reallocations]]","v":0},{"$f":"Dataset[[#This Row],[2025/26 To - Spending review Topic 1]]+Dataset[[#This Row],[2025/26 To - Spending review Topic 2]]+Dataset[[#This Row],[2025/26 To - Spending review Topic 3]]+Dataset[[#This Row],[2025/26 To - Spending review Topic 4]]+Dataset[[#This Row],[2025/26 To - Other reallocations]]","v":0},{"$f":"Dataset[[#This Row],[2026/27 To - Spending review Topic 1]]+Dataset[[#This Row],[2026/27 To - Spending review Topic 2]]+Dataset[[#This Row],[2026/27 To - Spending review Topic 3]]+Dataset[[#This Row],[2026/27 To - Spending review Topic 4]]+Dataset[[#This Row],[2026/27 To - Other reallocations]]","v":0},{"$f":"Dataset[[#This Row],[2024/25 Reduction]]+Dataset[[#This Row],[2024/25 From - Total]]","v":0},{"$f":"Dataset[[#This Row],[2025/26 Reduction]]+Dataset[[#This Row],[2025/26 From - Total]]","v":0},{"$f":"Dataset[[#This Row],[2026/27 Reduction]]+Dataset[[#This Row],[2026/27 From - Total]]","v":0},{"$f":"Dataset[[#This Row],[2023/24 Reduction]]","v":0},{"$f":"SUM(Dataset[[#This Row],[2024/25 Reduction]],Dataset[[#This Row],[2024/25 From - Total]],Dataset[[#This Row],[2024/25 To - Total]])","v":0},{"$f":"SUM(Dataset[[#This Row],[2025/26 Reduction]],Dataset[[#This Row],[2025/26 From - Total]],Dataset[[#This Row],[2025/26 To - Total]])","v":0},{"$f":"SUM(Dataset[[#This Row],[2026/27 Reduction]],Dataset[[#This Row],[2026/27 From - Total]],Dataset[[#This Row],[2026/27 To - Total]])","v":0},{"$f":"Dataset[[#This Row],[2023/24 Baseline]]+Dataset[[#This Row],[2023/24 Total change]]","v":0},{"$f":"Dataset[[#This Row],[2024/25 Baseline]]+Dataset[[#This Row],[2024/25 Total change]]","v":0},{"$f":"Dataset[[#This Row],[2025/26 Baseline]]+Dataset[[#This Row],[2025/26 Total change]]","v":0},{"$f":"Dataset[[#This Row],[2026/27 Baseline]]+Dataset[[#This Row],[2026/27 Total change]]","v":0}]
["NAT|Non-transfer item","26|Rent on land","2024_25","MTEF2024",26,3,1,44622,735,"26","03","01","044622","000735","26|03|01","01","01","03","42","42","01|01|03|42|42","National","Military Veterans","Empowerment and Stakeholder Management","Provincial Offices and Stakeholder Relations","Non-transfer item","Current","Current payments","Interest and rent on land","Rent on land","Rent on land","Peace and security","Defence and state security","NAT",0,0,0,0,0,0,0,0,0,0,0,null,null,null,null,null,null,null,null,null,null,null,null,null,null,null,null,null,null,null,null,null,null,null,null,null,null,null,null,null,null,null,null,null,null,{"$f":"Dataset[[#This Row],[2024/25 From - Spending review Topic 1]]+Dataset[[#This Row],[2024/25 From - Spending review Topic 2]]+Dataset[[#This Row],[2024/25 From - Spending review Topic 3]]+Dataset[[#This Row],[2024/25 From - Spending review Topic 4]]+Dataset[[#This Row],[2024/25 From - Other reallocations]]","v":0},{"$f":"Dataset[[#This Row],[2025/26 From - Spending review Topic 1]]+Dataset[[#This Row],[2025/26 From - Spending review Topic 2]]+Dataset[[#This Row],[2025/26 From - Spending review Topic 3]]+Dataset[[#This Row],[2025/26 From - Spending review Topic 4]]+Dataset[[#This Row],[2025/26 From - Other reallocations]]","v":0},{"$f":"Dataset[[#This Row],[2026/27 From - Spending review Topic 1]]+Dataset[[#This Row],[2026/27 From - Spending review Topic 2]]+Dataset[[#This Row],[2026/27 From - Spending review Topic 3]]+Dataset[[#This Row],[2026/27 From - Spending review Topic 4]]+Dataset[[#This Row],[2026/27 From - Other reallocations]]","v":0},{"$f":"Dataset[[#This Row],[2024/25 To - Spending review Topic 1]]+Dataset[[#This Row],[2024/25 To - Spending review Topic 2]]+Dataset[[#This Row],[2024/25 To - Spending review Topic 3]]+Dataset[[#This Row],[2024/25 To - Spending review Topic 4]]+Dataset[[#This Row],[2024/25 To - Other reallocations]]","v":0},{"$f":"Dataset[[#This Row],[2025/26 To - Spending review Topic 1]]+Dataset[[#This Row],[2025/26 To - Spending review Topic 2]]+Dataset[[#This Row],[2025/26 To - Spending review Topic 3]]+Dataset[[#This Row],[2025/26 To - Spending review Topic 4]]+Dataset[[#This Row],[2025/26 To - Other reallocations]]","v":0},{"$f":"Dataset[[#This Row],[2026/27 To - Spending review Topic 1]]+Dataset[[#This Row],[2026/27 To - Spending review Topic 2]]+Dataset[[#This Row],[2026/27 To - Spending review Topic 3]]+Dataset[[#This Row],[2026/27 To - Spending review Topic 4]]+Dataset[[#This Row],[2026/27 To - Other reallocations]]","v":0},{"$f":"Dataset[[#This Row],[2024/25 Reduction]]+Dataset[[#This Row],[2024/25 From - Total]]","v":0},{"$f":"Dataset[[#This Row],[2025/26 Reduction]]+Dataset[[#This Row],[2025/26 From - Total]]","v":0},{"$f":"Dataset[[#This Row],[2026/27 Reduction]]+Dataset[[#This Row],[2026/27 From - Total]]","v":0},{"$f":"Dataset[[#This Row],[2023/24 Reduction]]","v":0},{"$f":"SUM(Dataset[[#This Row],[2024/25 Reduction]],Dataset[[#This Row],[2024/25 From - Total]],Dataset[[#This Row],[2024/25 To - Total]])","v":0},{"$f":"SUM(Dataset[[#This Row],[2025/26 Reduction]],Dataset[[#This Row],[2025/26 From - Total]],Dataset[[#This Row],[2025/26 To - Total]])","v":0},{"$f":"SUM(Dataset[[#This Row],[2026/27 Reduction]],Dataset[[#This Row],[2026/27 From - Total]],Dataset[[#This Row],[2026/27 To - Total]])","v":0},{"$f":"Dataset[[#This Row],[2023/24 Baseline]]+Dataset[[#This Row],[2023/24 Total change]]","v":0},{"$f":"Dataset[[#This Row],[2024/25 Baseline]]+Dataset[[#This Row],[2024/25 Total change]]","v":0},{"$f":"Dataset[[#This Row],[2025/26 Baseline]]+Dataset[[#This Row],[2025/26 Total change]]","v":0},{"$f":"Dataset[[#This Row],[2026/27 Baseline]]+Dataset[[#This Row],[2026/27 Total change]]","v":0}]
["NAT|Non-transfer item","26|Provincial Revenue Funds","2024_25","MTEF2024",26,3,1,44623,736,"26","03","01","044623","000736","26|03|01","01","02","04","43","43","01|02|04|43|43","National","Military Veterans","Empowerment and Stakeholder Management","Provincial Offices and Stakeholder Relations","Non-transfer item","Current","Transfers and subsidies","Provinces and municipalities","Provinces","Provincial Revenue Funds","Peace and security","Defence and state security","NAT",0,0,0,0,0,0,0,0,0,0,0,null,null,null,null,null,null,null,null,null,null,null,null,null,null,null,null,null,null,null,null,null,null,null,null,null,null,null,null,null,null,null,null,null,null,{"$f":"Dataset[[#This Row],[2024/25 From - Spending review Topic 1]]+Dataset[[#This Row],[2024/25 From - Spending review Topic 2]]+Dataset[[#This Row],[2024/25 From - Spending review Topic 3]]+Dataset[[#This Row],[2024/25 From - Spending review Topic 4]]+Dataset[[#This Row],[2024/25 From - Other reallocations]]","v":0},{"$f":"Dataset[[#This Row],[2025/26 From - Spending review Topic 1]]+Dataset[[#This Row],[2025/26 From - Spending review Topic 2]]+Dataset[[#This Row],[2025/26 From - Spending review Topic 3]]+Dataset[[#This Row],[2025/26 From - Spending review Topic 4]]+Dataset[[#This Row],[2025/26 From - Other reallocations]]","v":0},{"$f":"Dataset[[#This Row],[2026/27 From - Spending review Topic 1]]+Dataset[[#This Row],[2026/27 From - Spending review Topic 2]]+Dataset[[#This Row],[2026/27 From - Spending review Topic 3]]+Dataset[[#This Row],[2026/27 From - Spending review Topic 4]]+Dataset[[#This Row],[2026/27 From - Other reallocations]]","v":0},{"$f":"Dataset[[#This Row],[2024/25 To - Spending review Topic 1]]+Dataset[[#This Row],[2024/25 To - Spending review Topic 2]]+Dataset[[#This Row],[2024/25 To - Spending review Topic 3]]+Dataset[[#This Row],[2024/25 To - Spending review Topic 4]]+Dataset[[#This Row],[2024/25 To - Other reallocations]]","v":0},{"$f":"Dataset[[#This Row],[2025/26 To - Spending review Topic 1]]+Dataset[[#This Row],[2025/26 To - Spending review Topic 2]]+Dataset[[#This Row],[2025/26 To - Spending review Topic 3]]+Dataset[[#This Row],[2025/26 To - Spending review Topic 4]]+Dataset[[#This Row],[2025/26 To - Other reallocations]]","v":0},{"$f":"Dataset[[#This Row],[2026/27 To - Spending review Topic 1]]+Dataset[[#This Row],[2026/27 To - Spending review Topic 2]]+Dataset[[#This Row],[2026/27 To - Spending review Topic 3]]+Dataset[[#This Row],[2026/27 To - Spending review Topic 4]]+Dataset[[#This Row],[2026/27 To - Other reallocations]]","v":0},{"$f":"Dataset[[#This Row],[2024/25 Reduction]]+Dataset[[#This Row],[2024/25 From - Total]]","v":0},{"$f":"Dataset[[#This Row],[2025/26 Reduction]]+Dataset[[#This Row],[2025/26 From - Total]]","v":0},{"$f":"Dataset[[#This Row],[2026/27 Reduction]]+Dataset[[#This Row],[2026/27 From - Total]]","v":0},{"$f":"Dataset[[#This Row],[2023/24 Reduction]]","v":0},{"$f":"SUM(Dataset[[#This Row],[2024/25 Reduction]],Dataset[[#This Row],[2024/25 From - Total]],Dataset[[#This Row],[2024/25 To - Total]])","v":0},{"$f":"SUM(Dataset[[#This Row],[2025/26 Reduction]],Dataset[[#This Row],[2025/26 From - Total]],Dataset[[#This Row],[2025/26 To - Total]])","v":0},{"$f":"SUM(Dataset[[#This Row],[2026/27 Reduction]],Dataset[[#This Row],[2026/27 From - Total]],Dataset[[#This Row],[2026/27 To - Total]])","v":0},{"$f":"Dataset[[#This Row],[2023/24 Baseline]]+Dataset[[#This Row],[2023/24 Total change]]","v":0},{"$f":"Dataset[[#This Row],[2024/25 Baseline]]+Dataset[[#This Row],[2024/25 Total change]]","v":0},{"$f":"Dataset[[#This Row],[2025/26 Baseline]]+Dataset[[#This Row],[2025/26 Total change]]","v":0},{"$f":"Dataset[[#This Row],[2026/27 Baseline]]+Dataset[[#This Row],[2026/27 Total change]]","v":0}]
["NAT|Non-transfer item","26|Provincial agencies and funds","2024_25","MTEF2024",26,3,1,44624,737,"26","03","01","044624","000737","26|03|01","01","02","04","43","44","01|02|04|43|44","National","Military Veterans","Empowerment and Stakeholder Management","Provincial Offices and Stakeholder Relations","Non-transfer item","Current","Transfers and subsidies","Provinces and municipalities","Provinces","Provincial agencies and funds","Peace and security","Defence and state security","NAT",0,0,0,0,0,0,0,0,0,0,0,null,null,null,null,null,null,null,null,null,null,null,null,null,null,null,null,null,null,null,null,null,null,null,null,null,null,null,null,null,null,null,null,null,null,{"$f":"Dataset[[#This Row],[2024/25 From - Spending review Topic 1]]+Dataset[[#This Row],[2024/25 From - Spending review Topic 2]]+Dataset[[#This Row],[2024/25 From - Spending review Topic 3]]+Dataset[[#This Row],[2024/25 From - Spending review Topic 4]]+Dataset[[#This Row],[2024/25 From - Other reallocations]]","v":0},{"$f":"Dataset[[#This Row],[2025/26 From - Spending review Topic 1]]+Dataset[[#This Row],[2025/26 From - Spending review Topic 2]]+Dataset[[#This Row],[2025/26 From - Spending review Topic 3]]+Dataset[[#This Row],[2025/26 From - Spending review Topic 4]]+Dataset[[#This Row],[2025/26 From - Other reallocations]]","v":0},{"$f":"Dataset[[#This Row],[2026/27 From - Spending review Topic 1]]+Dataset[[#This Row],[2026/27 From - Spending review Topic 2]]+Dataset[[#This Row],[2026/27 From - Spending review Topic 3]]+Dataset[[#This Row],[2026/27 From - Spending review Topic 4]]+Dataset[[#This Row],[2026/27 From - Other reallocations]]","v":0},{"$f":"Dataset[[#This Row],[2024/25 To - Spending review Topic 1]]+Dataset[[#This Row],[2024/25 To - Spending review Topic 2]]+Dataset[[#This Row],[2024/25 To - Spending review Topic 3]]+Dataset[[#This Row],[2024/25 To - Spending review Topic 4]]+Dataset[[#This Row],[2024/25 To - Other reallocations]]","v":0},{"$f":"Dataset[[#This Row],[2025/26 To - Spending review Topic 1]]+Dataset[[#This Row],[2025/26 To - Spending review Topic 2]]+Dataset[[#This Row],[2025/26 To - Spending review Topic 3]]+Dataset[[#This Row],[2025/26 To - Spending review Topic 4]]+Dataset[[#This Row],[2025/26 To - Other reallocations]]","v":0},{"$f":"Dataset[[#This Row],[2026/27 To - Spending review Topic 1]]+Dataset[[#This Row],[2026/27 To - Spending review Topic 2]]+Dataset[[#This Row],[2026/27 To - Spending review Topic 3]]+Dataset[[#This Row],[2026/27 To - Spending review Topic 4]]+Dataset[[#This Row],[2026/27 To - Other reallocations]]","v":0},{"$f":"Dataset[[#This Row],[2024/25 Reduction]]+Dataset[[#This Row],[2024/25 From - Total]]","v":0},{"$f":"Dataset[[#This Row],[2025/26 Reduction]]+Dataset[[#This Row],[2025/26 From - Total]]","v":0},{"$f":"Dataset[[#This Row],[2026/27 Reduction]]+Dataset[[#This Row],[2026/27 From - Total]]","v":0},{"$f":"Dataset[[#This Row],[2023/24 Reduction]]","v":0},{"$f":"SUM(Dataset[[#This Row],[2024/25 Reduction]],Dataset[[#This Row],[2024/25 From - Total]],Dataset[[#This Row],[2024/25 To - Total]])","v":0},{"$f":"SUM(Dataset[[#This Row],[2025/26 Reduction]],Dataset[[#This Row],[2025/26 From - Total]],Dataset[[#This Row],[2025/26 To - Total]])","v":0},{"$f":"SUM(Dataset[[#This Row],[2026/27 Reduction]],Dataset[[#This Row],[2026/27 From - Total]],Dataset[[#This Row],[2026/27 To - Total]])","v":0},{"$f":"Dataset[[#This Row],[2023/24 Baseline]]+Dataset[[#This Row],[2023/24 Total change]]","v":0},{"$f":"Dataset[[#This Row],[2024/25 Baseline]]+Dataset[[#This Row],[2024/25 Total change]]","v":0},{"$f":"Dataset[[#This Row],[2025/26 Baseline]]+Dataset[[#This Row],[2025/26 Total change]]","v":0},{"$f":"Dataset[[#This Row],[2026/27 Baseline]]+Dataset[[#This Row],[2026/27 Total change]]","v":0}]
["NAT|Non-transfer item","26|Municipal bank accounts","2024_25","MTEF2024",26,3,1,44625,738,"26","03","01","044625","000738","26|03|01","01","02","04","44","45","01|02|04|44|45","National","Military Veterans","Empowerment and Stakeholder Management","Provincial Offices and Stakeholder Relations","Non-transfer item","Current","Transfers and subsidies","Provinces and municipalities","Municipalities","Municipal bank accounts","Peace and security","Defence and state security","NAT",0,0,0,0,0,0,0,0,0,0,0,null,null,null,null,null,null,null,null,null,null,null,null,null,null,null,null,null,null,null,null,null,null,null,null,null,null,null,null,null,null,null,null,null,null,{"$f":"Dataset[[#This Row],[2024/25 From - Spending review Topic 1]]+Dataset[[#This Row],[2024/25 From - Spending review Topic 2]]+Dataset[[#This Row],[2024/25 From - Spending review Topic 3]]+Dataset[[#This Row],[2024/25 From - Spending review Topic 4]]+Dataset[[#This Row],[2024/25 From - Other reallocations]]","v":0},{"$f":"Dataset[[#This Row],[2025/26 From - Spending review Topic 1]]+Dataset[[#This Row],[2025/26 From - Spending review Topic 2]]+Dataset[[#This Row],[2025/26 From - Spending review Topic 3]]+Dataset[[#This Row],[2025/26 From - Spending review Topic 4]]+Dataset[[#This Row],[2025/26 From - Other reallocations]]","v":0},{"$f":"Dataset[[#This Row],[2026/27 From - Spending review Topic 1]]+Dataset[[#This Row],[2026/27 From - Spending review Topic 2]]+Dataset[[#This Row],[2026/27 From - Spending review Topic 3]]+Dataset[[#This Row],[2026/27 From - Spending review Topic 4]]+Dataset[[#This Row],[2026/27 From - Other reallocations]]","v":0},{"$f":"Dataset[[#This Row],[2024/25 To - Spending review Topic 1]]+Dataset[[#This Row],[2024/25 To - Spending review Topic 2]]+Dataset[[#This Row],[2024/25 To - Spending review Topic 3]]+Dataset[[#This Row],[2024/25 To - Spending review Topic 4]]+Dataset[[#This Row],[2024/25 To - Other reallocations]]","v":0},{"$f":"Dataset[[#This Row],[2025/26 To - Spending review Topic 1]]+Dataset[[#This Row],[2025/26 To - Spending review Topic 2]]+Dataset[[#This Row],[2025/26 To - Spending review Topic 3]]+Dataset[[#This Row],[2025/26 To - Spending review Topic 4]]+Dataset[[#This Row],[2025/26 To - Other reallocations]]","v":0},{"$f":"Dataset[[#This Row],[2026/27 To - Spending review Topic 1]]+Dataset[[#This Row],[2026/27 To - Spending review Topic 2]]+Dataset[[#This Row],[2026/27 To - Spending review Topic 3]]+Dataset[[#This Row],[2026/27 To - Spending review Topic 4]]+Dataset[[#This Row],[2026/27 To - Other reallocations]]","v":0},{"$f":"Dataset[[#This Row],[2024/25 Reduction]]+Dataset[[#This Row],[2024/25 From - Total]]","v":0},{"$f":"Dataset[[#This Row],[2025/26 Reduction]]+Dataset[[#This Row],[2025/26 From - Total]]","v":0},{"$f":"Dataset[[#This Row],[2026/27 Reduction]]+Dataset[[#This Row],[2026/27 From - Total]]","v":0},{"$f":"Dataset[[#This Row],[2023/24 Reduction]]","v":0},{"$f":"SUM(Dataset[[#This Row],[2024/25 Reduction]],Dataset[[#This Row],[2024/25 From - Total]],Dataset[[#This Row],[2024/25 To - Total]])","v":0},{"$f":"SUM(Dataset[[#This Row],[2025/26 Reduction]],Dataset[[#This Row],[2025/26 From - Total]],Dataset[[#This Row],[2025/26 To - Total]])","v":0},{"$f":"SUM(Dataset[[#This Row],[2026/27 Reduction]],Dataset[[#This Row],[2026/27 From - Total]],Dataset[[#This Row],[2026/27 To - Total]])","v":0},{"$f":"Dataset[[#This Row],[2023/24 Baseline]]+Dataset[[#This Row],[2023/24 Total change]]","v":0},{"$f":"Dataset[[#This Row],[2024/25 Baseline]]+Dataset[[#This Row],[2024/25 Total change]]","v":0},{"$f":"Dataset[[#This Row],[2025/26 Baseline]]+Dataset[[#This Row],[2025/26 Total change]]","v":0},{"$f":"Dataset[[#This Row],[2026/27 Baseline]]+Dataset[[#This Row],[2026/27 Total change]]","v":0}]
["NAT|Non-transfer item","26|Municipal agencies and funds","2024_25","MTEF2024",26,3,1,44626,739,"26","03","01","044626","000739","26|03|01","01","02","04","44","46","01|02|04|44|46","National","Military Veterans","Empowerment and Stakeholder Management","Provincial Offices and Stakeholder Relations","Non-transfer item","Current","Transfers and subsidies","Provinces and municipalities","Municipalities","Municipal agencies and funds","Peace and security","Defence and state security","NAT",0,0,0,0,0,0,0,0,0,0,0,null,null,null,null,null,null,null,null,null,null,null,null,null,null,null,null,null,null,null,null,null,null,null,null,null,null,null,null,null,null,null,null,null,null,{"$f":"Dataset[[#This Row],[2024/25 From - Spending review Topic 1]]+Dataset[[#This Row],[2024/25 From - Spending review Topic 2]]+Dataset[[#This Row],[2024/25 From - Spending review Topic 3]]+Dataset[[#This Row],[2024/25 From - Spending review Topic 4]]+Dataset[[#This Row],[2024/25 From - Other reallocations]]","v":0},{"$f":"Dataset[[#This Row],[2025/26 From - Spending review Topic 1]]+Dataset[[#This Row],[2025/26 From - Spending review Topic 2]]+Dataset[[#This Row],[2025/26 From - Spending review Topic 3]]+Dataset[[#This Row],[2025/26 From - Spending review Topic 4]]+Dataset[[#This Row],[2025/26 From - Other reallocations]]","v":0},{"$f":"Dataset[[#This Row],[2026/27 From - Spending review Topic 1]]+Dataset[[#This Row],[2026/27 From - Spending review Topic 2]]+Dataset[[#This Row],[2026/27 From - Spending review Topic 3]]+Dataset[[#This Row],[2026/27 From - Spending review Topic 4]]+Dataset[[#This Row],[2026/27 From - Other reallocations]]","v":0},{"$f":"Dataset[[#This Row],[2024/25 To - Spending review Topic 1]]+Dataset[[#This Row],[2024/25 To - Spending review Topic 2]]+Dataset[[#This Row],[2024/25 To - Spending review Topic 3]]+Dataset[[#This Row],[2024/25 To - Spending review Topic 4]]+Dataset[[#This Row],[2024/25 To - Other reallocations]]","v":0},{"$f":"Dataset[[#This Row],[2025/26 To - Spending review Topic 1]]+Dataset[[#This Row],[2025/26 To - Spending review Topic 2]]+Dataset[[#This Row],[2025/26 To - Spending review Topic 3]]+Dataset[[#This Row],[2025/26 To - Spending review Topic 4]]+Dataset[[#This Row],[2025/26 To - Other reallocations]]","v":0},{"$f":"Dataset[[#This Row],[2026/27 To - Spending review Topic 1]]+Dataset[[#This Row],[2026/27 To - Spending review Topic 2]]+Dataset[[#This Row],[2026/27 To - Spending review Topic 3]]+Dataset[[#This Row],[2026/27 To - Spending review Topic 4]]+Dataset[[#This Row],[2026/27 To - Other reallocations]]","v":0},{"$f":"Dataset[[#This Row],[2024/25 Reduction]]+Dataset[[#This Row],[2024/25 From - Total]]","v":0},{"$f":"Dataset[[#This Row],[2025/26 Reduction]]+Dataset[[#This Row],[2025/26 From - Total]]","v":0},{"$f":"Dataset[[#This Row],[2026/27 Reduction]]+Dataset[[#This Row],[2026/27 From - Total]]","v":0},{"$f":"Dataset[[#This Row],[2023/24 Reduction]]","v":0},{"$f":"SUM(Dataset[[#This Row],[2024/25 Reduction]],Dataset[[#This Row],[2024/25 From - Total]],Dataset[[#This Row],[2024/25 To - Total]])","v":0},{"$f":"SUM(Dataset[[#This Row],[2025/26 Reduction]],Dataset[[#This Row],[2025/26 From - Total]],Dataset[[#This Row],[2025/26 To - Total]])","v":0},{"$f":"SUM(Dataset[[#This Row],[2026/27 Reduction]],Dataset[[#This Row],[2026/27 From - Total]],Dataset[[#This Row],[2026/27 To - Total]])","v":0},{"$f":"Dataset[[#This Row],[2023/24 Baseline]]+Dataset[[#This Row],[2023/24 Total change]]","v":0},{"$f":"Dataset[[#This Row],[2024/25 Baseline]]+Dataset[[#This Row],[2024/25 Total change]]","v":0},{"$f":"Dataset[[#This Row],[2025/26 Baseline]]+Dataset[[#This Row],[2025/26 Total change]]","v":0},{"$f":"Dataset[[#This Row],[2026/27 Baseline]]+Dataset[[#This Row],[2026/27 Total change]]","v":0}]
["NAT|Non-transfer item","26|Social security funds","2024_25","MTEF2024",26,3,1,44627,740,"26","03","01","044627","000740","26|03|01","01","02","05","45","47","01|02|05|45|47","National","Military Veterans","Empowerment and Stakeholder Management","Provincial Offices and Stakeholder Relations","Non-transfer item","Current","Transfers and subsidies","Departmental agencies and accounts","Social security funds","Social security funds","Peace and security","Defence and state security","NAT",0,0,0,0,0,0,0,0,0,0,0,null,null,null,null,null,null,null,null,null,null,null,null,null,null,null,null,null,null,null,null,null,null,null,null,null,null,null,null,null,null,null,null,null,null,{"$f":"Dataset[[#This Row],[2024/25 From - Spending review Topic 1]]+Dataset[[#This Row],[2024/25 From - Spending review Topic 2]]+Dataset[[#This Row],[2024/25 From - Spending review Topic 3]]+Dataset[[#This Row],[2024/25 From - Spending review Topic 4]]+Dataset[[#This Row],[2024/25 From - Other reallocations]]","v":0},{"$f":"Dataset[[#This Row],[2025/26 From - Spending review Topic 1]]+Dataset[[#This Row],[2025/26 From - Spending review Topic 2]]+Dataset[[#This Row],[2025/26 From - Spending review Topic 3]]+Dataset[[#This Row],[2025/26 From - Spending review Topic 4]]+Dataset[[#This Row],[2025/26 From - Other reallocations]]","v":0},{"$f":"Dataset[[#This Row],[2026/27 From - Spending review Topic 1]]+Dataset[[#This Row],[2026/27 From - Spending review Topic 2]]+Dataset[[#This Row],[2026/27 From - Spending review Topic 3]]+Dataset[[#This Row],[2026/27 From - Spending review Topic 4]]+Dataset[[#This Row],[2026/27 From - Other reallocations]]","v":0},{"$f":"Dataset[[#This Row],[2024/25 To - Spending review Topic 1]]+Dataset[[#This Row],[2024/25 To - Spending review Topic 2]]+Dataset[[#This Row],[2024/25 To - Spending review Topic 3]]+Dataset[[#This Row],[2024/25 To - Spending review Topic 4]]+Dataset[[#This Row],[2024/25 To - Other reallocations]]","v":0},{"$f":"Dataset[[#This Row],[2025/26 To - Spending review Topic 1]]+Dataset[[#This Row],[2025/26 To - Spending review Topic 2]]+Dataset[[#This Row],[2025/26 To - Spending review Topic 3]]+Dataset[[#This Row],[2025/26 To - Spending review Topic 4]]+Dataset[[#This Row],[2025/26 To - Other reallocations]]","v":0},{"$f":"Dataset[[#This Row],[2026/27 To - Spending review Topic 1]]+Dataset[[#This Row],[2026/27 To - Spending review Topic 2]]+Dataset[[#This Row],[2026/27 To - Spending review Topic 3]]+Dataset[[#This Row],[2026/27 To - Spending review Topic 4]]+Dataset[[#This Row],[2026/27 To - Other reallocations]]","v":0},{"$f":"Dataset[[#This Row],[2024/25 Reduction]]+Dataset[[#This Row],[2024/25 From - Total]]","v":0},{"$f":"Dataset[[#This Row],[2025/26 Reduction]]+Dataset[[#This Row],[2025/26 From - Total]]","v":0},{"$f":"Dataset[[#This Row],[2026/27 Reduction]]+Dataset[[#This Row],[2026/27 From - Total]]","v":0},{"$f":"Dataset[[#This Row],[2023/24 Reduction]]","v":0},{"$f":"SUM(Dataset[[#This Row],[2024/25 Reduction]],Dataset[[#This Row],[2024/25 From - Total]],Dataset[[#This Row],[2024/25 To - Total]])","v":0},{"$f":"SUM(Dataset[[#This Row],[2025/26 Reduction]],Dataset[[#This Row],[2025/26 From - Total]],Dataset[[#This Row],[2025/26 To - Total]])","v":0},{"$f":"SUM(Dataset[[#This Row],[2026/27 Reduction]],Dataset[[#This Row],[2026/27 From - Total]],Dataset[[#This Row],[2026/27 To - Total]])","v":0},{"$f":"Dataset[[#This Row],[2023/24 Baseline]]+Dataset[[#This Row],[2023/24 Total change]]","v":0},{"$f":"Dataset[[#This Row],[2024/25 Baseline]]+Dataset[[#This Row],[2024/25 Total change]]","v":0},{"$f":"Dataset[[#This Row],[2025/26 Baseline]]+Dataset[[#This Row],[2025/26 Total change]]","v":0},{"$f":"Dataset[[#This Row],[2026/27 Baseline]]+Dataset[[#This Row],[2026/27 Total change]]","v":0}]
["NAT|Non-transfer item","26|Departmental agencies (non-business entities)","2024_25","MTEF2024",26,3,1,44628,741,"26","03","01","044628","000741","26|03|01","01","02","05","46","48","01|02|05|46|48","National","Military Veterans","Empowerment and Stakeholder Management","Provincial Offices and Stakeholder Relations","Non-transfer item","Current","Transfers and subsidies","Departmental agencies and accounts","Departmental agencies (non-business entities)","Departmental agencies (non-business entities)","Peace and security","Defence and state security","NAT",0,0,0,0,0,0,0,0,0,0,0,null,null,null,null,null,null,null,null,null,null,null,null,null,null,null,null,null,null,null,null,null,null,null,null,null,null,null,null,null,null,null,null,null,null,{"$f":"Dataset[[#This Row],[2024/25 From - Spending review Topic 1]]+Dataset[[#This Row],[2024/25 From - Spending review Topic 2]]+Dataset[[#This Row],[2024/25 From - Spending review Topic 3]]+Dataset[[#This Row],[2024/25 From - Spending review Topic 4]]+Dataset[[#This Row],[2024/25 From - Other reallocations]]","v":0},{"$f":"Dataset[[#This Row],[2025/26 From - Spending review Topic 1]]+Dataset[[#This Row],[2025/26 From - Spending review Topic 2]]+Dataset[[#This Row],[2025/26 From - Spending review Topic 3]]+Dataset[[#This Row],[2025/26 From - Spending review Topic 4]]+Dataset[[#This Row],[2025/26 From - Other reallocations]]","v":0},{"$f":"Dataset[[#This Row],[2026/27 From - Spending review Topic 1]]+Dataset[[#This Row],[2026/27 From - Spending review Topic 2]]+Dataset[[#This Row],[2026/27 From - Spending review Topic 3]]+Dataset[[#This Row],[2026/27 From - Spending review Topic 4]]+Dataset[[#This Row],[2026/27 From - Other reallocations]]","v":0},{"$f":"Dataset[[#This Row],[2024/25 To - Spending review Topic 1]]+Dataset[[#This Row],[2024/25 To - Spending review Topic 2]]+Dataset[[#This Row],[2024/25 To - Spending review Topic 3]]+Dataset[[#This Row],[2024/25 To - Spending review Topic 4]]+Dataset[[#This Row],[2024/25 To - Other reallocations]]","v":0},{"$f":"Dataset[[#This Row],[2025/26 To - Spending review Topic 1]]+Dataset[[#This Row],[2025/26 To - Spending review Topic 2]]+Dataset[[#This Row],[2025/26 To - Spending review Topic 3]]+Dataset[[#This Row],[2025/26 To - Spending review Topic 4]]+Dataset[[#This Row],[2025/26 To - Other reallocations]]","v":0},{"$f":"Dataset[[#This Row],[2026/27 To - Spending review Topic 1]]+Dataset[[#This Row],[2026/27 To - Spending review Topic 2]]+Dataset[[#This Row],[2026/27 To - Spending review Topic 3]]+Dataset[[#This Row],[2026/27 To - Spending review Topic 4]]+Dataset[[#This Row],[2026/27 To - Other reallocations]]","v":0},{"$f":"Dataset[[#This Row],[2024/25 Reduction]]+Dataset[[#This Row],[2024/25 From - Total]]","v":0},{"$f":"Dataset[[#This Row],[2025/26 Reduction]]+Dataset[[#This Row],[2025/26 From - Total]]","v":0},{"$f":"Dataset[[#This Row],[2026/27 Reduction]]+Dataset[[#This Row],[2026/27 From - Total]]","v":0},{"$f":"Dataset[[#This Row],[2023/24 Reduction]]","v":0},{"$f":"SUM(Dataset[[#This Row],[2024/25 Reduction]],Dataset[[#This Row],[2024/25 From - Total]],Dataset[[#This Row],[2024/25 To - Total]])","v":0},{"$f":"SUM(Dataset[[#This Row],[2025/26 Reduction]],Dataset[[#This Row],[2025/26 From - Total]],Dataset[[#This Row],[2025/26 To - Total]])","v":0},{"$f":"SUM(Dataset[[#This Row],[2026/27 Reduction]],Dataset[[#This Row],[2026/27 From - Total]],Dataset[[#This Row],[2026/27 To - Total]])","v":0},{"$f":"Dataset[[#This Row],[2023/24 Baseline]]+Dataset[[#This Row],[2023/24 Total change]]","v":0},{"$f":"Dataset[[#This Row],[2024/25 Baseline]]+Dataset[[#This Row],[2024/25 Total change]]","v":0},{"$f":"Dataset[[#This Row],[2025/26 Baseline]]+Dataset[[#This Row],[2025/26 Total change]]","v":0},{"$f":"Dataset[[#This Row],[2026/27 Baseline]]+Dataset[[#This Row],[2026/27 Total change]]","v":0}]
["NAT|Non-transfer item","26|Higher education institutions","2024_25","MTEF2024",26,3,1,44629,742,"26","03","01","044629","000742","26|03|01","01","02","06","47","49","01|02|06|47|49","National","Military Veterans","Empowerment and Stakeholder Management","Provincial Offices and Stakeholder Relations","Non-transfer item","Current","Transfers and subsidies","Higher education institutions","Higher education institutions","Higher education institutions","Peace and security","Defence and state security","NAT",0,0,0,0,0,0,0,0,0,0,0,null,null,null,null,null,null,null,null,null,null,null,null,null,null,null,null,null,null,null,null,null,null,null,null,null,null,null,null,null,null,null,null,null,null,{"$f":"Dataset[[#This Row],[2024/25 From - Spending review Topic 1]]+Dataset[[#This Row],[2024/25 From - Spending review Topic 2]]+Dataset[[#This Row],[2024/25 From - Spending review Topic 3]]+Dataset[[#This Row],[2024/25 From - Spending review Topic 4]]+Dataset[[#This Row],[2024/25 From - Other reallocations]]","v":0},{"$f":"Dataset[[#This Row],[2025/26 From - Spending review Topic 1]]+Dataset[[#This Row],[2025/26 From - Spending review Topic 2]]+Dataset[[#This Row],[2025/26 From - Spending review Topic 3]]+Dataset[[#This Row],[2025/26 From - Spending review Topic 4]]+Dataset[[#This Row],[2025/26 From - Other reallocations]]","v":0},{"$f":"Dataset[[#This Row],[2026/27 From - Spending review Topic 1]]+Dataset[[#This Row],[2026/27 From - Spending review Topic 2]]+Dataset[[#This Row],[2026/27 From - Spending review Topic 3]]+Dataset[[#This Row],[2026/27 From - Spending review Topic 4]]+Dataset[[#This Row],[2026/27 From - Other reallocations]]","v":0},{"$f":"Dataset[[#This Row],[2024/25 To - Spending review Topic 1]]+Dataset[[#This Row],[2024/25 To - Spending review Topic 2]]+Dataset[[#This Row],[2024/25 To - Spending review Topic 3]]+Dataset[[#This Row],[2024/25 To - Spending review Topic 4]]+Dataset[[#This Row],[2024/25 To - Other reallocations]]","v":0},{"$f":"Dataset[[#This Row],[2025/26 To - Spending review Topic 1]]+Dataset[[#This Row],[2025/26 To - Spending review Topic 2]]+Dataset[[#This Row],[2025/26 To - Spending review Topic 3]]+Dataset[[#This Row],[2025/26 To - Spending review Topic 4]]+Dataset[[#This Row],[2025/26 To - Other reallocations]]","v":0},{"$f":"Dataset[[#This Row],[2026/27 To - Spending review Topic 1]]+Dataset[[#This Row],[2026/27 To - Spending review Topic 2]]+Dataset[[#This Row],[2026/27 To - Spending review Topic 3]]+Dataset[[#This Row],[2026/27 To - Spending review Topic 4]]+Dataset[[#This Row],[2026/27 To - Other reallocations]]","v":0},{"$f":"Dataset[[#This Row],[2024/25 Reduction]]+Dataset[[#This Row],[2024/25 From - Total]]","v":0},{"$f":"Dataset[[#This Row],[2025/26 Reduction]]+Dataset[[#This Row],[2025/26 From - Total]]","v":0},{"$f":"Dataset[[#This Row],[2026/27 Reduction]]+Dataset[[#This Row],[2026/27 From - Total]]","v":0},{"$f":"Dataset[[#This Row],[2023/24 Reduction]]","v":0},{"$f":"SUM(Dataset[[#This Row],[2024/25 Reduction]],Dataset[[#This Row],[2024/25 From - Total]],Dataset[[#This Row],[2024/25 To - Total]])","v":0},{"$f":"SUM(Dataset[[#This Row],[2025/26 Reduction]],Dataset[[#This Row],[2025/26 From - Total]],Dataset[[#This Row],[2025/26 To - Total]])","v":0},{"$f":"SUM(Dataset[[#This Row],[2026/27 Reduction]],Dataset[[#This Row],[2026/27 From - Total]],Dataset[[#This Row],[2026/27 To - Total]])","v":0},{"$f":"Dataset[[#This Row],[2023/24 Baseline]]+Dataset[[#This Row],[2023/24 Total change]]","v":0},{"$f":"Dataset[[#This Row],[2024/25 Baseline]]+Dataset[[#This Row],[2024/25 Total change]]","v":0},{"$f":"Dataset[[#This Row],[2025/26 Baseline]]+Dataset[[#This Row],[2025/26 Total change]]","v":0},{"$f":"Dataset[[#This Row],[2026/27 Baseline]]+Dataset[[#This Row],[2026/27 Total change]]","v":0}]
["NAT|Non-transfer item","26|Foreign governments and international organisations","2024_25","MTEF2024",26,3,1,44630,743,"26","03","01","044630","000743","26|03|01","01","02","07","48","50","01|02|07|48|50","National","Military Veterans","Empowerment and Stakeholder Management","Provincial Offices and Stakeholder Relations","Non-transfer item","Current","Transfers and subsidies","Foreign governments and international organisations","Foreign governments and international organisations","Foreign governments and international organisations","Peace and security","Defence and state security","NAT",0,0,0,0,0,0,0,0,0,0,0,null,null,null,null,null,null,null,null,null,null,null,null,null,null,null,null,null,null,null,null,null,null,null,null,null,null,null,null,null,null,null,null,null,null,{"$f":"Dataset[[#This Row],[2024/25 From - Spending review Topic 1]]+Dataset[[#This Row],[2024/25 From - Spending review Topic 2]]+Dataset[[#This Row],[2024/25 From - Spending review Topic 3]]+Dataset[[#This Row],[2024/25 From - Spending review Topic 4]]+Dataset[[#This Row],[2024/25 From - Other reallocations]]","v":0},{"$f":"Dataset[[#This Row],[2025/26 From - Spending review Topic 1]]+Dataset[[#This Row],[2025/26 From - Spending review Topic 2]]+Dataset[[#This Row],[2025/26 From - Spending review Topic 3]]+Dataset[[#This Row],[2025/26 From - Spending review Topic 4]]+Dataset[[#This Row],[2025/26 From - Other reallocations]]","v":0},{"$f":"Dataset[[#This Row],[2026/27 From - Spending review Topic 1]]+Dataset[[#This Row],[2026/27 From - Spending review Topic 2]]+Dataset[[#This Row],[2026/27 From - Spending review Topic 3]]+Dataset[[#This Row],[2026/27 From - Spending review Topic 4]]+Dataset[[#This Row],[2026/27 From - Other reallocations]]","v":0},{"$f":"Dataset[[#This Row],[2024/25 To - Spending review Topic 1]]+Dataset[[#This Row],[2024/25 To - Spending review Topic 2]]+Dataset[[#This Row],[2024/25 To - Spending review Topic 3]]+Dataset[[#This Row],[2024/25 To - Spending review Topic 4]]+Dataset[[#This Row],[2024/25 To - Other reallocations]]","v":0},{"$f":"Dataset[[#This Row],[2025/26 To - Spending review Topic 1]]+Dataset[[#This Row],[2025/26 To - Spending review Topic 2]]+Dataset[[#This Row],[2025/26 To - Spending review Topic 3]]+Dataset[[#This Row],[2025/26 To - Spending review Topic 4]]+Dataset[[#This Row],[2025/26 To - Other reallocations]]","v":0},{"$f":"Dataset[[#This Row],[2026/27 To - Spending review Topic 1]]+Dataset[[#This Row],[2026/27 To - Spending review Topic 2]]+Dataset[[#This Row],[2026/27 To - Spending review Topic 3]]+Dataset[[#This Row],[2026/27 To - Spending review Topic 4]]+Dataset[[#This Row],[2026/27 To - Other reallocations]]","v":0},{"$f":"Dataset[[#This Row],[2024/25 Reduction]]+Dataset[[#This Row],[2024/25 From - Total]]","v":0},{"$f":"Dataset[[#This Row],[2025/26 Reduction]]+Dataset[[#This Row],[2025/26 From - Total]]","v":0},{"$f":"Dataset[[#This Row],[2026/27 Reduction]]+Dataset[[#This Row],[2026/27 From - Total]]","v":0},{"$f":"Dataset[[#This Row],[2023/24 Reduction]]","v":0},{"$f":"SUM(Dataset[[#This Row],[2024/25 Reduction]],Dataset[[#This Row],[2024/25 From - Total]],Dataset[[#This Row],[2024/25 To - Total]])","v":0},{"$f":"SUM(Dataset[[#This Row],[2025/26 Reduction]],Dataset[[#This Row],[2025/26 From - Total]],Dataset[[#This Row],[2025/26 To - Total]])","v":0},{"$f":"SUM(Dataset[[#This Row],[2026/27 Reduction]],Dataset[[#This Row],[2026/27 From - Total]],Dataset[[#This Row],[2026/27 To - Total]])","v":0},{"$f":"Dataset[[#This Row],[2023/24 Baseline]]+Dataset[[#This Row],[2023/24 Total change]]","v":0},{"$f":"Dataset[[#This Row],[2024/25 Baseline]]+Dataset[[#This Row],[2024/25 Total change]]","v":0},{"$f":"Dataset[[#This Row],[2025/26 Baseline]]+Dataset[[#This Row],[2025/26 Total change]]","v":0},{"$f":"Dataset[[#This Row],[2026/27 Baseline]]+Dataset[[#This Row],[2026/27 Total change]]","v":0}]
["NAT|Non-transfer item","26|Subsidies on products and production (pc)","2024_25","MTEF2024",26,3,1,44631,744,"26","03","01","044631","000744","26|03|01","01","02","08","49","51","01|02|08|49|51","National","Military Veterans","Empowerment and Stakeholder Management","Provincial Offices and Stakeholder Relations","Non-transfer item","Current","Transfers and subsidies","Public corporations and private enterprises","Public corporations","Subsidies on products and production (pc)","Peace and security","Defence and state security","NAT",0,0,0,0,0,0,0,0,0,0,0,null,null,null,null,null,null,null,null,null,null,null,null,null,null,null,null,null,null,null,null,null,null,null,null,null,null,null,null,null,null,null,null,null,null,{"$f":"Dataset[[#This Row],[2024/25 From - Spending review Topic 1]]+Dataset[[#This Row],[2024/25 From - Spending review Topic 2]]+Dataset[[#This Row],[2024/25 From - Spending review Topic 3]]+Dataset[[#This Row],[2024/25 From - Spending review Topic 4]]+Dataset[[#This Row],[2024/25 From - Other reallocations]]","v":0},{"$f":"Dataset[[#This Row],[2025/26 From - Spending review Topic 1]]+Dataset[[#This Row],[2025/26 From - Spending review Topic 2]]+Dataset[[#This Row],[2025/26 From - Spending review Topic 3]]+Dataset[[#This Row],[2025/26 From - Spending review Topic 4]]+Dataset[[#This Row],[2025/26 From - Other reallocations]]","v":0},{"$f":"Dataset[[#This Row],[2026/27 From - Spending review Topic 1]]+Dataset[[#This Row],[2026/27 From - Spending review Topic 2]]+Dataset[[#This Row],[2026/27 From - Spending review Topic 3]]+Dataset[[#This Row],[2026/27 From - Spending review Topic 4]]+Dataset[[#This Row],[2026/27 From - Other reallocations]]","v":0},{"$f":"Dataset[[#This Row],[2024/25 To - Spending review Topic 1]]+Dataset[[#This Row],[2024/25 To - Spending review Topic 2]]+Dataset[[#This Row],[2024/25 To - Spending review Topic 3]]+Dataset[[#This Row],[2024/25 To - Spending review Topic 4]]+Dataset[[#This Row],[2024/25 To - Other reallocations]]","v":0},{"$f":"Dataset[[#This Row],[2025/26 To - Spending review Topic 1]]+Dataset[[#This Row],[2025/26 To - Spending review Topic 2]]+Dataset[[#This Row],[2025/26 To - Spending review Topic 3]]+Dataset[[#This Row],[2025/26 To - Spending review Topic 4]]+Dataset[[#This Row],[2025/26 To - Other reallocations]]","v":0},{"$f":"Dataset[[#This Row],[2026/27 To - Spending review Topic 1]]+Dataset[[#This Row],[2026/27 To - Spending review Topic 2]]+Dataset[[#This Row],[2026/27 To - Spending review Topic 3]]+Dataset[[#This Row],[2026/27 To - Spending review Topic 4]]+Dataset[[#This Row],[2026/27 To - Other reallocations]]","v":0},{"$f":"Dataset[[#This Row],[2024/25 Reduction]]+Dataset[[#This Row],[2024/25 From - Total]]","v":0},{"$f":"Dataset[[#This Row],[2025/26 Reduction]]+Dataset[[#This Row],[2025/26 From - Total]]","v":0},{"$f":"Dataset[[#This Row],[2026/27 Reduction]]+Dataset[[#This Row],[2026/27 From - Total]]","v":0},{"$f":"Dataset[[#This Row],[2023/24 Reduction]]","v":0},{"$f":"SUM(Dataset[[#This Row],[2024/25 Reduction]],Dataset[[#This Row],[2024/25 From - Total]],Dataset[[#This Row],[2024/25 To - Total]])","v":0},{"$f":"SUM(Dataset[[#This Row],[2025/26 Reduction]],Dataset[[#This Row],[2025/26 From - Total]],Dataset[[#This Row],[2025/26 To - Total]])","v":0},{"$f":"SUM(Dataset[[#This Row],[2026/27 Reduction]],Dataset[[#This Row],[2026/27 From - Total]],Dataset[[#This Row],[2026/27 To - Total]])","v":0},{"$f":"Dataset[[#This Row],[2023/24 Baseline]]+Dataset[[#This Row],[2023/24 Total change]]","v":0},{"$f":"Dataset[[#This Row],[2024/25 Baseline]]+Dataset[[#This Row],[2024/25 Total change]]","v":0},{"$f":"Dataset[[#This Row],[2025/26 Baseline]]+Dataset[[#This Row],[2025/26 Total change]]","v":0},{"$f":"Dataset[[#This Row],[2026/27 Baseline]]+Dataset[[#This Row],[2026/27 Total change]]","v":0}]
["NAT|Non-transfer item","26|Other transfers to public corporations","2024_25","MTEF2024",26,3,1,44632,745,"26","03","01","044632","000745","26|03|01","01","02","08","49","52","01|02|08|49|52","National","Military Veterans","Empowerment and Stakeholder Management","Provincial Offices and Stakeholder Relations","Non-transfer item","Current","Transfers and subsidies","Public corporations and private enterprises","Public corporations","Other transfers to public corporations","Peace and security","Defence and state security","NAT",0,0,0,0,0,0,0,0,0,0,0,null,null,null,null,null,null,null,null,null,null,null,null,null,null,null,null,null,null,null,null,null,null,null,null,null,null,null,null,null,null,null,null,null,null,{"$f":"Dataset[[#This Row],[2024/25 From - Spending review Topic 1]]+Dataset[[#This Row],[2024/25 From - Spending review Topic 2]]+Dataset[[#This Row],[2024/25 From - Spending review Topic 3]]+Dataset[[#This Row],[2024/25 From - Spending review Topic 4]]+Dataset[[#This Row],[2024/25 From - Other reallocations]]","v":0},{"$f":"Dataset[[#This Row],[2025/26 From - Spending review Topic 1]]+Dataset[[#This Row],[2025/26 From - Spending review Topic 2]]+Dataset[[#This Row],[2025/26 From - Spending review Topic 3]]+Dataset[[#This Row],[2025/26 From - Spending review Topic 4]]+Dataset[[#This Row],[2025/26 From - Other reallocations]]","v":0},{"$f":"Dataset[[#This Row],[2026/27 From - Spending review Topic 1]]+Dataset[[#This Row],[2026/27 From - Spending review Topic 2]]+Dataset[[#This Row],[2026/27 From - Spending review Topic 3]]+Dataset[[#This Row],[2026/27 From - Spending review Topic 4]]+Dataset[[#This Row],[2026/27 From - Other reallocations]]","v":0},{"$f":"Dataset[[#This Row],[2024/25 To - Spending review Topic 1]]+Dataset[[#This Row],[2024/25 To - Spending review Topic 2]]+Dataset[[#This Row],[2024/25 To - Spending review Topic 3]]+Dataset[[#This Row],[2024/25 To - Spending review Topic 4]]+Dataset[[#This Row],[2024/25 To - Other reallocations]]","v":0},{"$f":"Dataset[[#This Row],[2025/26 To - Spending review Topic 1]]+Dataset[[#This Row],[2025/26 To - Spending review Topic 2]]+Dataset[[#This Row],[2025/26 To - Spending review Topic 3]]+Dataset[[#This Row],[2025/26 To - Spending review Topic 4]]+Dataset[[#This Row],[2025/26 To - Other reallocations]]","v":0},{"$f":"Dataset[[#This Row],[2026/27 To - Spending review Topic 1]]+Dataset[[#This Row],[2026/27 To - Spending review Topic 2]]+Dataset[[#This Row],[2026/27 To - Spending review Topic 3]]+Dataset[[#This Row],[2026/27 To - Spending review Topic 4]]+Dataset[[#This Row],[2026/27 To - Other reallocations]]","v":0},{"$f":"Dataset[[#This Row],[2024/25 Reduction]]+Dataset[[#This Row],[2024/25 From - Total]]","v":0},{"$f":"Dataset[[#This Row],[2025/26 Reduction]]+Dataset[[#This Row],[2025/26 From - Total]]","v":0},{"$f":"Dataset[[#This Row],[2026/27 Reduction]]+Dataset[[#This Row],[2026/27 From - Total]]","v":0},{"$f":"Dataset[[#This Row],[2023/24 Reduction]]","v":0},{"$f":"SUM(Dataset[[#This Row],[2024/25 Reduction]],Dataset[[#This Row],[2024/25 From - Total]],Dataset[[#This Row],[2024/25 To - Total]])","v":0},{"$f":"SUM(Dataset[[#This Row],[2025/26 Reduction]],Dataset[[#This Row],[2025/26 From - Total]],Dataset[[#This Row],[2025/26 To - Total]])","v":0},{"$f":"SUM(Dataset[[#This Row],[2026/27 Reduction]],Dataset[[#This Row],[2026/27 From - Total]],Dataset[[#This Row],[2026/27 To - Total]])","v":0},{"$f":"Dataset[[#This Row],[2023/24 Baseline]]+Dataset[[#This Row],[2023/24 Total change]]","v":0},{"$f":"Dataset[[#This Row],[2024/25 Baseline]]+Dataset[[#This Row],[2024/25 Total change]]","v":0},{"$f":"Dataset[[#This Row],[2025/26 Baseline]]+Dataset[[#This Row],[2025/26 Total change]]","v":0},{"$f":"Dataset[[#This Row],[2026/27 Baseline]]+Dataset[[#This Row],[2026/27 Total change]]","v":0}]
["NAT|Non-transfer item","26|Subsidies on products and production (pe)","2024_25","MTEF2024",26,3,1,44633,746,"26","03","01","044633","000746","26|03|01","01","02","08","50","53","01|02|08|50|53","National","Military Veterans","Empowerment and Stakeholder Management","Provincial Offices and Stakeholder Relations","Non-transfer item","Current","Transfers and subsidies","Public corporations and private enterprises","Private enterprises","Subsidies on products and production (pe)","Peace and security","Defence and state security","NAT",0,0,0,0,0,0,0,0,0,0,0,null,null,null,null,null,null,null,null,null,null,null,null,null,null,null,null,null,null,null,null,null,null,null,null,null,null,null,null,null,null,null,null,null,null,{"$f":"Dataset[[#This Row],[2024/25 From - Spending review Topic 1]]+Dataset[[#This Row],[2024/25 From - Spending review Topic 2]]+Dataset[[#This Row],[2024/25 From - Spending review Topic 3]]+Dataset[[#This Row],[2024/25 From - Spending review Topic 4]]+Dataset[[#This Row],[2024/25 From - Other reallocations]]","v":0},{"$f":"Dataset[[#This Row],[2025/26 From - Spending review Topic 1]]+Dataset[[#This Row],[2025/26 From - Spending review Topic 2]]+Dataset[[#This Row],[2025/26 From - Spending review Topic 3]]+Dataset[[#This Row],[2025/26 From - Spending review Topic 4]]+Dataset[[#This Row],[2025/26 From - Other reallocations]]","v":0},{"$f":"Dataset[[#This Row],[2026/27 From - Spending review Topic 1]]+Dataset[[#This Row],[2026/27 From - Spending review Topic 2]]+Dataset[[#This Row],[2026/27 From - Spending review Topic 3]]+Dataset[[#This Row],[2026/27 From - Spending review Topic 4]]+Dataset[[#This Row],[2026/27 From - Other reallocations]]","v":0},{"$f":"Dataset[[#This Row],[2024/25 To - Spending review Topic 1]]+Dataset[[#This Row],[2024/25 To - Spending review Topic 2]]+Dataset[[#This Row],[2024/25 To - Spending review Topic 3]]+Dataset[[#This Row],[2024/25 To - Spending review Topic 4]]+Dataset[[#This Row],[2024/25 To - Other reallocations]]","v":0},{"$f":"Dataset[[#This Row],[2025/26 To - Spending review Topic 1]]+Dataset[[#This Row],[2025/26 To - Spending review Topic 2]]+Dataset[[#This Row],[2025/26 To - Spending review Topic 3]]+Dataset[[#This Row],[2025/26 To - Spending review Topic 4]]+Dataset[[#This Row],[2025/26 To - Other reallocations]]","v":0},{"$f":"Dataset[[#This Row],[2026/27 To - Spending review Topic 1]]+Dataset[[#This Row],[2026/27 To - Spending review Topic 2]]+Dataset[[#This Row],[2026/27 To - Spending review Topic 3]]+Dataset[[#This Row],[2026/27 To - Spending review Topic 4]]+Dataset[[#This Row],[2026/27 To - Other reallocations]]","v":0},{"$f":"Dataset[[#This Row],[2024/25 Reduction]]+Dataset[[#This Row],[2024/25 From - Total]]","v":0},{"$f":"Dataset[[#This Row],[2025/26 Reduction]]+Dataset[[#This Row],[2025/26 From - Total]]","v":0},{"$f":"Dataset[[#This Row],[2026/27 Reduction]]+Dataset[[#This Row],[2026/27 From - Total]]","v":0},{"$f":"Dataset[[#This Row],[2023/24 Reduction]]","v":0},{"$f":"SUM(Dataset[[#This Row],[2024/25 Reduction]],Dataset[[#This Row],[2024/25 From - Total]],Dataset[[#This Row],[2024/25 To - Total]])","v":0},{"$f":"SUM(Dataset[[#This Row],[2025/26 Reduction]],Dataset[[#This Row],[2025/26 From - Total]],Dataset[[#This Row],[2025/26 To - Total]])","v":0},{"$f":"SUM(Dataset[[#This Row],[2026/27 Reduction]],Dataset[[#This Row],[2026/27 From - Total]],Dataset[[#This Row],[2026/27 To - Total]])","v":0},{"$f":"Dataset[[#This Row],[2023/24 Baseline]]+Dataset[[#This Row],[2023/24 Total change]]","v":0},{"$f":"Dataset[[#This Row],[2024/25 Baseline]]+Dataset[[#This Row],[2024/25 Total change]]","v":0},{"$f":"Dataset[[#This Row],[2025/26 Baseline]]+Dataset[[#This Row],[2025/26 Total change]]","v":0},{"$f":"Dataset[[#This Row],[2026/27 Baseline]]+Dataset[[#This Row],[2026/27 Total change]]","v":0}]
["NAT|Non-transfer item","26|Other transfers to private enterprises","2024_25","MTEF2024",26,3,1,44634,747,"26","03","01","044634","000747","26|03|01","01","02","08","50","54","01|02|08|50|54","National","Military Veterans","Empowerment and Stakeholder Management","Provincial Offices and Stakeholder Relations","Non-transfer item","Current","Transfers and subsidies","Public corporations and private enterprises","Private enterprises","Other transfers to private enterprises","Peace and security","Defence and state security","NAT",0,0,0,0,0,0,0,0,0,0,0,null,null,null,null,null,null,null,null,null,null,null,null,null,null,null,null,null,null,null,null,null,null,null,null,null,null,null,null,null,null,null,null,null,null,{"$f":"Dataset[[#This Row],[2024/25 From - Spending review Topic 1]]+Dataset[[#This Row],[2024/25 From - Spending review Topic 2]]+Dataset[[#This Row],[2024/25 From - Spending review Topic 3]]+Dataset[[#This Row],[2024/25 From - Spending review Topic 4]]+Dataset[[#This Row],[2024/25 From - Other reallocations]]","v":0},{"$f":"Dataset[[#This Row],[2025/26 From - Spending review Topic 1]]+Dataset[[#This Row],[2025/26 From - Spending review Topic 2]]+Dataset[[#This Row],[2025/26 From - Spending review Topic 3]]+Dataset[[#This Row],[2025/26 From - Spending review Topic 4]]+Dataset[[#This Row],[2025/26 From - Other reallocations]]","v":0},{"$f":"Dataset[[#This Row],[2026/27 From - Spending review Topic 1]]+Dataset[[#This Row],[2026/27 From - Spending review Topic 2]]+Dataset[[#This Row],[2026/27 From - Spending review Topic 3]]+Dataset[[#This Row],[2026/27 From - Spending review Topic 4]]+Dataset[[#This Row],[2026/27 From - Other reallocations]]","v":0},{"$f":"Dataset[[#This Row],[2024/25 To - Spending review Topic 1]]+Dataset[[#This Row],[2024/25 To - Spending review Topic 2]]+Dataset[[#This Row],[2024/25 To - Spending review Topic 3]]+Dataset[[#This Row],[2024/25 To - Spending review Topic 4]]+Dataset[[#This Row],[2024/25 To - Other reallocations]]","v":0},{"$f":"Dataset[[#This Row],[2025/26 To - Spending review Topic 1]]+Dataset[[#This Row],[2025/26 To - Spending review Topic 2]]+Dataset[[#This Row],[2025/26 To - Spending review Topic 3]]+Dataset[[#This Row],[2025/26 To - Spending review Topic 4]]+Dataset[[#This Row],[2025/26 To - Other reallocations]]","v":0},{"$f":"Dataset[[#This Row],[2026/27 To - Spending review Topic 1]]+Dataset[[#This Row],[2026/27 To - Spending review Topic 2]]+Dataset[[#This Row],[2026/27 To - Spending review Topic 3]]+Dataset[[#This Row],[2026/27 To - Spending review Topic 4]]+Dataset[[#This Row],[2026/27 To - Other reallocations]]","v":0},{"$f":"Dataset[[#This Row],[2024/25 Reduction]]+Dataset[[#This Row],[2024/25 From - Total]]","v":0},{"$f":"Dataset[[#This Row],[2025/26 Reduction]]+Dataset[[#This Row],[2025/26 From - Total]]","v":0},{"$f":"Dataset[[#This Row],[2026/27 Reduction]]+Dataset[[#This Row],[2026/27 From - Total]]","v":0},{"$f":"Dataset[[#This Row],[2023/24 Reduction]]","v":0},{"$f":"SUM(Dataset[[#This Row],[2024/25 Reduction]],Dataset[[#This Row],[2024/25 From - Total]],Dataset[[#This Row],[2024/25 To - Total]])","v":0},{"$f":"SUM(Dataset[[#This Row],[2025/26 Reduction]],Dataset[[#This Row],[2025/26 From - Total]],Dataset[[#This Row],[2025/26 To - Total]])","v":0},{"$f":"SUM(Dataset[[#This Row],[2026/27 Reduction]],Dataset[[#This Row],[2026/27 From - Total]],Dataset[[#This Row],[2026/27 To - Total]])","v":0},{"$f":"Dataset[[#This Row],[2023/24 Baseline]]+Dataset[[#This Row],[2023/24 Total change]]","v":0},{"$f":"Dataset[[#This Row],[2024/25 Baseline]]+Dataset[[#This Row],[2024/25 Total change]]","v":0},{"$f":"Dataset[[#This Row],[2025/26 Baseline]]+Dataset[[#This Row],[2025/26 Total change]]","v":0},{"$f":"Dataset[[#This Row],[2026/27 Baseline]]+Dataset[[#This Row],[2026/27 Total change]]","v":0}]
["NAT|Non-transfer item","26|Non-profit institutions","2024_25","MTEF2024",26,3,1,44635,748,"26","03","01","044635","000748","26|03|01","01","02","09","51","55","01|02|09|51|55","National","Military Veterans","Empowerment and Stakeholder Management","Provincial Offices and Stakeholder Relations","Non-transfer item","Current","Transfers and subsidies","Non-profit institutions","Non-profit institutions","Non-profit institutions","Peace and security","Defence and state security","NAT",0,0,0,0,0,0,0,0,0,0,0,null,null,null,null,null,null,null,null,null,null,null,null,null,null,null,null,null,null,null,null,null,null,null,null,null,null,null,null,null,null,null,null,null,null,{"$f":"Dataset[[#This Row],[2024/25 From - Spending review Topic 1]]+Dataset[[#This Row],[2024/25 From - Spending review Topic 2]]+Dataset[[#This Row],[2024/25 From - Spending review Topic 3]]+Dataset[[#This Row],[2024/25 From - Spending review Topic 4]]+Dataset[[#This Row],[2024/25 From - Other reallocations]]","v":0},{"$f":"Dataset[[#This Row],[2025/26 From - Spending review Topic 1]]+Dataset[[#This Row],[2025/26 From - Spending review Topic 2]]+Dataset[[#This Row],[2025/26 From - Spending review Topic 3]]+Dataset[[#This Row],[2025/26 From - Spending review Topic 4]]+Dataset[[#This Row],[2025/26 From - Other reallocations]]","v":0},{"$f":"Dataset[[#This Row],[2026/27 From - Spending review Topic 1]]+Dataset[[#This Row],[2026/27 From - Spending review Topic 2]]+Dataset[[#This Row],[2026/27 From - Spending review Topic 3]]+Dataset[[#This Row],[2026/27 From - Spending review Topic 4]]+Dataset[[#This Row],[2026/27 From - Other reallocations]]","v":0},{"$f":"Dataset[[#This Row],[2024/25 To - Spending review Topic 1]]+Dataset[[#This Row],[2024/25 To - Spending review Topic 2]]+Dataset[[#This Row],[2024/25 To - Spending review Topic 3]]+Dataset[[#This Row],[2024/25 To - Spending review Topic 4]]+Dataset[[#This Row],[2024/25 To - Other reallocations]]","v":0},{"$f":"Dataset[[#This Row],[2025/26 To - Spending review Topic 1]]+Dataset[[#This Row],[2025/26 To - Spending review Topic 2]]+Dataset[[#This Row],[2025/26 To - Spending review Topic 3]]+Dataset[[#This Row],[2025/26 To - Spending review Topic 4]]+Dataset[[#This Row],[2025/26 To - Other reallocations]]","v":0},{"$f":"Dataset[[#This Row],[2026/27 To - Spending review Topic 1]]+Dataset[[#This Row],[2026/27 To - Spending review Topic 2]]+Dataset[[#This Row],[2026/27 To - Spending review Topic 3]]+Dataset[[#This Row],[2026/27 To - Spending review Topic 4]]+Dataset[[#This Row],[2026/27 To - Other reallocations]]","v":0},{"$f":"Dataset[[#This Row],[2024/25 Reduction]]+Dataset[[#This Row],[2024/25 From - Total]]","v":0},{"$f":"Dataset[[#This Row],[2025/26 Reduction]]+Dataset[[#This Row],[2025/26 From - Total]]","v":0},{"$f":"Dataset[[#This Row],[2026/27 Reduction]]+Dataset[[#This Row],[2026/27 From - Total]]","v":0},{"$f":"Dataset[[#This Row],[2023/24 Reduction]]","v":0},{"$f":"SUM(Dataset[[#This Row],[2024/25 Reduction]],Dataset[[#This Row],[2024/25 From - Total]],Dataset[[#This Row],[2024/25 To - Total]])","v":0},{"$f":"SUM(Dataset[[#This Row],[2025/26 Reduction]],Dataset[[#This Row],[2025/26 From - Total]],Dataset[[#This Row],[2025/26 To - Total]])","v":0},{"$f":"SUM(Dataset[[#This Row],[2026/27 Reduction]],Dataset[[#This Row],[2026/27 From - Total]],Dataset[[#This Row],[2026/27 To - Total]])","v":0},{"$f":"Dataset[[#This Row],[2023/24 Baseline]]+Dataset[[#This Row],[2023/24 Total change]]","v":0},{"$f":"Dataset[[#This Row],[2024/25 Baseline]]+Dataset[[#This Row],[2024/25 Total change]]","v":0},{"$f":"Dataset[[#This Row],[2025/26 Baseline]]+Dataset[[#This Row],[2025/26 Total change]]","v":0},{"$f":"Dataset[[#This Row],[2026/27 Baseline]]+Dataset[[#This Row],[2026/27 Total change]]","v":0}]
["NAT|Non-transfer item","26|Social benefits","2024_25","MTEF2024",26,3,1,44636,749,"26","03","01","044636","000749","26|03|01","01","02","10","52","56","01|02|10|52|56","National","Military Veterans","Empowerment and Stakeholder Management","Provincial Offices and Stakeholder Relations","Non-transfer item","Current","Transfers and subsidies","Households","Social benefits","Social benefits","Peace and security","Defence and state security","NAT",0,0,0,0,0,0,0,0,0,0,0,null,null,null,null,null,null,null,null,null,null,null,null,null,null,null,null,null,null,null,null,null,null,null,null,null,null,null,null,null,null,null,null,null,null,{"$f":"Dataset[[#This Row],[2024/25 From - Spending review Topic 1]]+Dataset[[#This Row],[2024/25 From - Spending review Topic 2]]+Dataset[[#This Row],[2024/25 From - Spending review Topic 3]]+Dataset[[#This Row],[2024/25 From - Spending review Topic 4]]+Dataset[[#This Row],[2024/25 From - Other reallocations]]","v":0},{"$f":"Dataset[[#This Row],[2025/26 From - Spending review Topic 1]]+Dataset[[#This Row],[2025/26 From - Spending review Topic 2]]+Dataset[[#This Row],[2025/26 From - Spending review Topic 3]]+Dataset[[#This Row],[2025/26 From - Spending review Topic 4]]+Dataset[[#This Row],[2025/26 From - Other reallocations]]","v":0},{"$f":"Dataset[[#This Row],[2026/27 From - Spending review Topic 1]]+Dataset[[#This Row],[2026/27 From - Spending review Topic 2]]+Dataset[[#This Row],[2026/27 From - Spending review Topic 3]]+Dataset[[#This Row],[2026/27 From - Spending review Topic 4]]+Dataset[[#This Row],[2026/27 From - Other reallocations]]","v":0},{"$f":"Dataset[[#This Row],[2024/25 To - Spending review Topic 1]]+Dataset[[#This Row],[2024/25 To - Spending review Topic 2]]+Dataset[[#This Row],[2024/25 To - Spending review Topic 3]]+Dataset[[#This Row],[2024/25 To - Spending review Topic 4]]+Dataset[[#This Row],[2024/25 To - Other reallocations]]","v":0},{"$f":"Dataset[[#This Row],[2025/26 To - Spending review Topic 1]]+Dataset[[#This Row],[2025/26 To - Spending review Topic 2]]+Dataset[[#This Row],[2025/26 To - Spending review Topic 3]]+Dataset[[#This Row],[2025/26 To - Spending review Topic 4]]+Dataset[[#This Row],[2025/26 To - Other reallocations]]","v":0},{"$f":"Dataset[[#This Row],[2026/27 To - Spending review Topic 1]]+Dataset[[#This Row],[2026/27 To - Spending review Topic 2]]+Dataset[[#This Row],[2026/27 To - Spending review Topic 3]]+Dataset[[#This Row],[2026/27 To - Spending review Topic 4]]+Dataset[[#This Row],[2026/27 To - Other reallocations]]","v":0},{"$f":"Dataset[[#This Row],[2024/25 Reduction]]+Dataset[[#This Row],[2024/25 From - Total]]","v":0},{"$f":"Dataset[[#This Row],[2025/26 Reduction]]+Dataset[[#This Row],[2025/26 From - Total]]","v":0},{"$f":"Dataset[[#This Row],[2026/27 Reduction]]+Dataset[[#This Row],[2026/27 From - Total]]","v":0},{"$f":"Dataset[[#This Row],[2023/24 Reduction]]","v":0},{"$f":"SUM(Dataset[[#This Row],[2024/25 Reduction]],Dataset[[#This Row],[2024/25 From - Total]],Dataset[[#This Row],[2024/25 To - Total]])","v":0},{"$f":"SUM(Dataset[[#This Row],[2025/26 Reduction]],Dataset[[#This Row],[2025/26 From - Total]],Dataset[[#This Row],[2025/26 To - Total]])","v":0},{"$f":"SUM(Dataset[[#This Row],[2026/27 Reduction]],Dataset[[#This Row],[2026/27 From - Total]],Dataset[[#This Row],[2026/27 To - Total]])","v":0},{"$f":"Dataset[[#This Row],[2023/24 Baseline]]+Dataset[[#This Row],[2023/24 Total change]]","v":0},{"$f":"Dataset[[#This Row],[2024/25 Baseline]]+Dataset[[#This Row],[2024/25 Total change]]","v":0},{"$f":"Dataset[[#This Row],[2025/26 Baseline]]+Dataset[[#This Row],[2025/26 Total change]]","v":0},{"$f":"Dataset[[#This Row],[2026/27 Baseline]]+Dataset[[#This Row],[2026/27 Total change]]","v":0}]
["NAT|Military veterans' benefits","26|Other transfers to households","2024_25","MTEF2024",26,3,1,44637,750,"26","03","01","044637","000750","26|03|01","01","02","10","53","57","01|02|10|53|57","National","Military Veterans","Empowerment and Stakeholder Management","Provincial Offices and Stakeholder Relations","Military veterans' benefits","Current","Transfers and subsidies","Households","Other transfers to households","Other transfers to households","Peace and security","Defence and state security","NAT",0,399,116,0,72,72,0,0,0,0,0,null,null,null,null,null,null,null,null,null,null,null,null,null,null,null,null,null,null,null,null,null,null,null,null,null,null,null,null,null,null,null,null,null,null,{"$f":"Dataset[[#This Row],[2024/25 From - Spending review Topic 1]]+Dataset[[#This Row],[2024/25 From - Spending review Topic 2]]+Dataset[[#This Row],[2024/25 From - Spending review Topic 3]]+Dataset[[#This Row],[2024/25 From - Spending review Topic 4]]+Dataset[[#This Row],[2024/25 From - Other reallocations]]","v":0},{"$f":"Dataset[[#This Row],[2025/26 From - Spending review Topic 1]]+Dataset[[#This Row],[2025/26 From - Spending review Topic 2]]+Dataset[[#This Row],[2025/26 From - Spending review Topic 3]]+Dataset[[#This Row],[2025/26 From - Spending review Topic 4]]+Dataset[[#This Row],[2025/26 From - Other reallocations]]","v":0},{"$f":"Dataset[[#This Row],[2026/27 From - Spending review Topic 1]]+Dataset[[#This Row],[2026/27 From - Spending review Topic 2]]+Dataset[[#This Row],[2026/27 From - Spending review Topic 3]]+Dataset[[#This Row],[2026/27 From - Spending review Topic 4]]+Dataset[[#This Row],[2026/27 From - Other reallocations]]","v":0},{"$f":"Dataset[[#This Row],[2024/25 To - Spending review Topic 1]]+Dataset[[#This Row],[2024/25 To - Spending review Topic 2]]+Dataset[[#This Row],[2024/25 To - Spending review Topic 3]]+Dataset[[#This Row],[2024/25 To - Spending review Topic 4]]+Dataset[[#This Row],[2024/25 To - Other reallocations]]","v":0},{"$f":"Dataset[[#This Row],[2025/26 To - Spending review Topic 1]]+Dataset[[#This Row],[2025/26 To - Spending review Topic 2]]+Dataset[[#This Row],[2025/26 To - Spending review Topic 3]]+Dataset[[#This Row],[2025/26 To - Spending review Topic 4]]+Dataset[[#This Row],[2025/26 To - Other reallocations]]","v":0},{"$f":"Dataset[[#This Row],[2026/27 To - Spending review Topic 1]]+Dataset[[#This Row],[2026/27 To - Spending review Topic 2]]+Dataset[[#This Row],[2026/27 To - Spending review Topic 3]]+Dataset[[#This Row],[2026/27 To - Spending review Topic 4]]+Dataset[[#This Row],[2026/27 To - Other reallocations]]","v":0},{"$f":"Dataset[[#This Row],[2024/25 Reduction]]+Dataset[[#This Row],[2024/25 From - Total]]","v":0},{"$f":"Dataset[[#This Row],[2025/26 Reduction]]+Dataset[[#This Row],[2025/26 From - Total]]","v":0},{"$f":"Dataset[[#This Row],[2026/27 Reduction]]+Dataset[[#This Row],[2026/27 From - Total]]","v":0},{"$f":"Dataset[[#This Row],[2023/24 Reduction]]","v":0},{"$f":"SUM(Dataset[[#This Row],[2024/25 Reduction]],Dataset[[#This Row],[2024/25 From - Total]],Dataset[[#This Row],[2024/25 To - Total]])","v":0},{"$f":"SUM(Dataset[[#This Row],[2025/26 Reduction]],Dataset[[#This Row],[2025/26 From - Total]],Dataset[[#This Row],[2025/26 To - Total]])","v":0},{"$f":"SUM(Dataset[[#This Row],[2026/27 Reduction]],Dataset[[#This Row],[2026/27 From - Total]],Dataset[[#This Row],[2026/27 To - Total]])","v":0},{"$f":"Dataset[[#This Row],[2023/24 Baseline]]+Dataset[[#This Row],[2023/24 Total change]]","v":0},{"$f":"Dataset[[#This Row],[2024/25 Baseline]]+Dataset[[#This Row],[2024/25 Total change]]","v":0},{"$f":"Dataset[[#This Row],[2025/26 Baseline]]+Dataset[[#This Row],[2025/26 Total change]]","v":0},{"$f":"Dataset[[#This Row],[2026/27 Baseline]]+Dataset[[#This Row],[2026/27 Total change]]","v":0}]
["NAT|Non-transfer item","26|Provincial Revenue Funds","2024_25","MTEF2024",26,3,1,44638,751,"26","03","01","044638","000751","26|03|01","02","02","04","43","43","02|02|04|43|43","National","Military Veterans","Empowerment and Stakeholder Management","Provincial Offices and Stakeholder Relations","Non-transfer item","Capital","Transfers and subsidies","Provinces and municipalities","Provinces","Provincial Revenue Funds","Peace and security","Defence and state security","NAT",0,0,0,0,0,0,0,0,0,0,0,null,null,null,null,null,null,null,null,null,null,null,null,null,null,null,null,null,null,null,null,null,null,null,null,null,null,null,null,null,null,null,null,null,null,{"$f":"Dataset[[#This Row],[2024/25 From - Spending review Topic 1]]+Dataset[[#This Row],[2024/25 From - Spending review Topic 2]]+Dataset[[#This Row],[2024/25 From - Spending review Topic 3]]+Dataset[[#This Row],[2024/25 From - Spending review Topic 4]]+Dataset[[#This Row],[2024/25 From - Other reallocations]]","v":0},{"$f":"Dataset[[#This Row],[2025/26 From - Spending review Topic 1]]+Dataset[[#This Row],[2025/26 From - Spending review Topic 2]]+Dataset[[#This Row],[2025/26 From - Spending review Topic 3]]+Dataset[[#This Row],[2025/26 From - Spending review Topic 4]]+Dataset[[#This Row],[2025/26 From - Other reallocations]]","v":0},{"$f":"Dataset[[#This Row],[2026/27 From - Spending review Topic 1]]+Dataset[[#This Row],[2026/27 From - Spending review Topic 2]]+Dataset[[#This Row],[2026/27 From - Spending review Topic 3]]+Dataset[[#This Row],[2026/27 From - Spending review Topic 4]]+Dataset[[#This Row],[2026/27 From - Other reallocations]]","v":0},{"$f":"Dataset[[#This Row],[2024/25 To - Spending review Topic 1]]+Dataset[[#This Row],[2024/25 To - Spending review Topic 2]]+Dataset[[#This Row],[2024/25 To - Spending review Topic 3]]+Dataset[[#This Row],[2024/25 To - Spending review Topic 4]]+Dataset[[#This Row],[2024/25 To - Other reallocations]]","v":0},{"$f":"Dataset[[#This Row],[2025/26 To - Spending review Topic 1]]+Dataset[[#This Row],[2025/26 To - Spending review Topic 2]]+Dataset[[#This Row],[2025/26 To - Spending review Topic 3]]+Dataset[[#This Row],[2025/26 To - Spending review Topic 4]]+Dataset[[#This Row],[2025/26 To - Other reallocations]]","v":0},{"$f":"Dataset[[#This Row],[2026/27 To - Spending review Topic 1]]+Dataset[[#This Row],[2026/27 To - Spending review Topic 2]]+Dataset[[#This Row],[2026/27 To - Spending review Topic 3]]+Dataset[[#This Row],[2026/27 To - Spending review Topic 4]]+Dataset[[#This Row],[2026/27 To - Other reallocations]]","v":0},{"$f":"Dataset[[#This Row],[2024/25 Reduction]]+Dataset[[#This Row],[2024/25 From - Total]]","v":0},{"$f":"Dataset[[#This Row],[2025/26 Reduction]]+Dataset[[#This Row],[2025/26 From - Total]]","v":0},{"$f":"Dataset[[#This Row],[2026/27 Reduction]]+Dataset[[#This Row],[2026/27 From - Total]]","v":0},{"$f":"Dataset[[#This Row],[2023/24 Reduction]]","v":0},{"$f":"SUM(Dataset[[#This Row],[2024/25 Reduction]],Dataset[[#This Row],[2024/25 From - Total]],Dataset[[#This Row],[2024/25 To - Total]])","v":0},{"$f":"SUM(Dataset[[#This Row],[2025/26 Reduction]],Dataset[[#This Row],[2025/26 From - Total]],Dataset[[#This Row],[2025/26 To - Total]])","v":0},{"$f":"SUM(Dataset[[#This Row],[2026/27 Reduction]],Dataset[[#This Row],[2026/27 From - Total]],Dataset[[#This Row],[2026/27 To - Total]])","v":0},{"$f":"Dataset[[#This Row],[2023/24 Baseline]]+Dataset[[#This Row],[2023/24 Total change]]","v":0},{"$f":"Dataset[[#This Row],[2024/25 Baseline]]+Dataset[[#This Row],[2024/25 Total change]]","v":0},{"$f":"Dataset[[#This Row],[2025/26 Baseline]]+Dataset[[#This Row],[2025/26 Total change]]","v":0},{"$f":"Dataset[[#This Row],[2026/27 Baseline]]+Dataset[[#This Row],[2026/27 Total change]]","v":0}]
["NAT|Non-transfer item","26|Municipal bank accounts","2024_25","MTEF2024",26,3,1,44639,752,"26","03","01","044639","000752","26|03|01","02","02","04","44","45","02|02|04|44|45","National","Military Veterans","Empowerment and Stakeholder Management","Provincial Offices and Stakeholder Relations","Non-transfer item","Capital","Transfers and subsidies","Provinces and municipalities","Municipalities","Municipal bank accounts","Peace and security","Defence and state security","NAT",0,0,0,0,0,0,0,0,0,0,0,null,null,null,null,null,null,null,null,null,null,null,null,null,null,null,null,null,null,null,null,null,null,null,null,null,null,null,null,null,null,null,null,null,null,{"$f":"Dataset[[#This Row],[2024/25 From - Spending review Topic 1]]+Dataset[[#This Row],[2024/25 From - Spending review Topic 2]]+Dataset[[#This Row],[2024/25 From - Spending review Topic 3]]+Dataset[[#This Row],[2024/25 From - Spending review Topic 4]]+Dataset[[#This Row],[2024/25 From - Other reallocations]]","v":0},{"$f":"Dataset[[#This Row],[2025/26 From - Spending review Topic 1]]+Dataset[[#This Row],[2025/26 From - Spending review Topic 2]]+Dataset[[#This Row],[2025/26 From - Spending review Topic 3]]+Dataset[[#This Row],[2025/26 From - Spending review Topic 4]]+Dataset[[#This Row],[2025/26 From - Other reallocations]]","v":0},{"$f":"Dataset[[#This Row],[2026/27 From - Spending review Topic 1]]+Dataset[[#This Row],[2026/27 From - Spending review Topic 2]]+Dataset[[#This Row],[2026/27 From - Spending review Topic 3]]+Dataset[[#This Row],[2026/27 From - Spending review Topic 4]]+Dataset[[#This Row],[2026/27 From - Other reallocations]]","v":0},{"$f":"Dataset[[#This Row],[2024/25 To - Spending review Topic 1]]+Dataset[[#This Row],[2024/25 To - Spending review Topic 2]]+Dataset[[#This Row],[2024/25 To - Spending review Topic 3]]+Dataset[[#This Row],[2024/25 To - Spending review Topic 4]]+Dataset[[#This Row],[2024/25 To - Other reallocations]]","v":0},{"$f":"Dataset[[#This Row],[2025/26 To - Spending review Topic 1]]+Dataset[[#This Row],[2025/26 To - Spending review Topic 2]]+Dataset[[#This Row],[2025/26 To - Spending review Topic 3]]+Dataset[[#This Row],[2025/26 To - Spending review Topic 4]]+Dataset[[#This Row],[2025/26 To - Other reallocations]]","v":0},{"$f":"Dataset[[#This Row],[2026/27 To - Spending review Topic 1]]+Dataset[[#This Row],[2026/27 To - Spending review Topic 2]]+Dataset[[#This Row],[2026/27 To - Spending review Topic 3]]+Dataset[[#This Row],[2026/27 To - Spending review Topic 4]]+Dataset[[#This Row],[2026/27 To - Other reallocations]]","v":0},{"$f":"Dataset[[#This Row],[2024/25 Reduction]]+Dataset[[#This Row],[2024/25 From - Total]]","v":0},{"$f":"Dataset[[#This Row],[2025/26 Reduction]]+Dataset[[#This Row],[2025/26 From - Total]]","v":0},{"$f":"Dataset[[#This Row],[2026/27 Reduction]]+Dataset[[#This Row],[2026/27 From - Total]]","v":0},{"$f":"Dataset[[#This Row],[2023/24 Reduction]]","v":0},{"$f":"SUM(Dataset[[#This Row],[2024/25 Reduction]],Dataset[[#This Row],[2024/25 From - Total]],Dataset[[#This Row],[2024/25 To - Total]])","v":0},{"$f":"SUM(Dataset[[#This Row],[2025/26 Reduction]],Dataset[[#This Row],[2025/26 From - Total]],Dataset[[#This Row],[2025/26 To - Total]])","v":0},{"$f":"SUM(Dataset[[#This Row],[2026/27 Reduction]],Dataset[[#This Row],[2026/27 From - Total]],Dataset[[#This Row],[2026/27 To - Total]])","v":0},{"$f":"Dataset[[#This Row],[2023/24 Baseline]]+Dataset[[#This Row],[2023/24 Total change]]","v":0},{"$f":"Dataset[[#This Row],[2024/25 Baseline]]+Dataset[[#This Row],[2024/25 Total change]]","v":0},{"$f":"Dataset[[#This Row],[2025/26 Baseline]]+Dataset[[#This Row],[2025/26 Total change]]","v":0},{"$f":"Dataset[[#This Row],[2026/27 Baseline]]+Dataset[[#This Row],[2026/27 Total change]]","v":0}]
["NAT|Non-transfer item","26|Departmental agencies (non-business entities)","2024_25","MTEF2024",26,3,1,44640,753,"26","03","01","044640","000753","26|03|01","02","02","05","46","48","02|02|05|46|48","National","Military Veterans","Empowerment and Stakeholder Management","Provincial Offices and Stakeholder Relations","Non-transfer item","Capital","Transfers and subsidies","Departmental agencies and accounts","Departmental agencies (non-business entities)","Departmental agencies (non-business entities)","Peace and security","Defence and state security","NAT",0,0,0,0,0,0,0,0,0,0,0,null,null,null,null,null,null,null,null,null,null,null,null,null,null,null,null,null,null,null,null,null,null,null,null,null,null,null,null,null,null,null,null,null,null,{"$f":"Dataset[[#This Row],[2024/25 From - Spending review Topic 1]]+Dataset[[#This Row],[2024/25 From - Spending review Topic 2]]+Dataset[[#This Row],[2024/25 From - Spending review Topic 3]]+Dataset[[#This Row],[2024/25 From - Spending review Topic 4]]+Dataset[[#This Row],[2024/25 From - Other reallocations]]","v":0},{"$f":"Dataset[[#This Row],[2025/26 From - Spending review Topic 1]]+Dataset[[#This Row],[2025/26 From - Spending review Topic 2]]+Dataset[[#This Row],[2025/26 From - Spending review Topic 3]]+Dataset[[#This Row],[2025/26 From - Spending review Topic 4]]+Dataset[[#This Row],[2025/26 From - Other reallocations]]","v":0},{"$f":"Dataset[[#This Row],[2026/27 From - Spending review Topic 1]]+Dataset[[#This Row],[2026/27 From - Spending review Topic 2]]+Dataset[[#This Row],[2026/27 From - Spending review Topic 3]]+Dataset[[#This Row],[2026/27 From - Spending review Topic 4]]+Dataset[[#This Row],[2026/27 From - Other reallocations]]","v":0},{"$f":"Dataset[[#This Row],[2024/25 To - Spending review Topic 1]]+Dataset[[#This Row],[2024/25 To - Spending review Topic 2]]+Dataset[[#This Row],[2024/25 To - Spending review Topic 3]]+Dataset[[#This Row],[2024/25 To - Spending review Topic 4]]+Dataset[[#This Row],[2024/25 To - Other reallocations]]","v":0},{"$f":"Dataset[[#This Row],[2025/26 To - Spending review Topic 1]]+Dataset[[#This Row],[2025/26 To - Spending review Topic 2]]+Dataset[[#This Row],[2025/26 To - Spending review Topic 3]]+Dataset[[#This Row],[2025/26 To - Spending review Topic 4]]+Dataset[[#This Row],[2025/26 To - Other reallocations]]","v":0},{"$f":"Dataset[[#This Row],[2026/27 To - Spending review Topic 1]]+Dataset[[#This Row],[2026/27 To - Spending review Topic 2]]+Dataset[[#This Row],[2026/27 To - Spending review Topic 3]]+Dataset[[#This Row],[2026/27 To - Spending review Topic 4]]+Dataset[[#This Row],[2026/27 To - Other reallocations]]","v":0},{"$f":"Dataset[[#This Row],[2024/25 Reduction]]+Dataset[[#This Row],[2024/25 From - Total]]","v":0},{"$f":"Dataset[[#This Row],[2025/26 Reduction]]+Dataset[[#This Row],[2025/26 From - Total]]","v":0},{"$f":"Dataset[[#This Row],[2026/27 Reduction]]+Dataset[[#This Row],[2026/27 From - Total]]","v":0},{"$f":"Dataset[[#This Row],[2023/24 Reduction]]","v":0},{"$f":"SUM(Dataset[[#This Row],[2024/25 Reduction]],Dataset[[#This Row],[2024/25 From - Total]],Dataset[[#This Row],[2024/25 To - Total]])","v":0},{"$f":"SUM(Dataset[[#This Row],[2025/26 Reduction]],Dataset[[#This Row],[2025/26 From - Total]],Dataset[[#This Row],[2025/26 To - Total]])","v":0},{"$f":"SUM(Dataset[[#This Row],[2026/27 Reduction]],Dataset[[#This Row],[2026/27 From - Total]],Dataset[[#This Row],[2026/27 To - Total]])","v":0},{"$f":"Dataset[[#This Row],[2023/24 Baseline]]+Dataset[[#This Row],[2023/24 Total change]]","v":0},{"$f":"Dataset[[#This Row],[2024/25 Baseline]]+Dataset[[#This Row],[2024/25 Total change]]","v":0},{"$f":"Dataset[[#This Row],[2025/26 Baseline]]+Dataset[[#This Row],[2025/26 Total change]]","v":0},{"$f":"Dataset[[#This Row],[2026/27 Baseline]]+Dataset[[#This Row],[2026/27 Total change]]","v":0}]
["NAT|Non-transfer item","26|Higher education institutions","2024_25","MTEF2024",26,3,1,44641,754,"26","03","01","044641","000754","26|03|01","02","02","06","47","49","02|02|06|47|49","National","Military Veterans","Empowerment and Stakeholder Management","Provincial Offices and Stakeholder Relations","Non-transfer item","Capital","Transfers and subsidies","Higher education institutions","Higher education institutions","Higher education institutions","Peace and security","Defence and state security","NAT",0,0,0,0,0,0,0,0,0,0,0,null,null,null,null,null,null,null,null,null,null,null,null,null,null,null,null,null,null,null,null,null,null,null,null,null,null,null,null,null,null,null,null,null,null,{"$f":"Dataset[[#This Row],[2024/25 From - Spending review Topic 1]]+Dataset[[#This Row],[2024/25 From - Spending review Topic 2]]+Dataset[[#This Row],[2024/25 From - Spending review Topic 3]]+Dataset[[#This Row],[2024/25 From - Spending review Topic 4]]+Dataset[[#This Row],[2024/25 From - Other reallocations]]","v":0},{"$f":"Dataset[[#This Row],[2025/26 From - Spending review Topic 1]]+Dataset[[#This Row],[2025/26 From - Spending review Topic 2]]+Dataset[[#This Row],[2025/26 From - Spending review Topic 3]]+Dataset[[#This Row],[2025/26 From - Spending review Topic 4]]+Dataset[[#This Row],[2025/26 From - Other reallocations]]","v":0},{"$f":"Dataset[[#This Row],[2026/27 From - Spending review Topic 1]]+Dataset[[#This Row],[2026/27 From - Spending review Topic 2]]+Dataset[[#This Row],[2026/27 From - Spending review Topic 3]]+Dataset[[#This Row],[2026/27 From - Spending review Topic 4]]+Dataset[[#This Row],[2026/27 From - Other reallocations]]","v":0},{"$f":"Dataset[[#This Row],[2024/25 To - Spending review Topic 1]]+Dataset[[#This Row],[2024/25 To - Spending review Topic 2]]+Dataset[[#This Row],[2024/25 To - Spending review Topic 3]]+Dataset[[#This Row],[2024/25 To - Spending review Topic 4]]+Dataset[[#This Row],[2024/25 To - Other reallocations]]","v":0},{"$f":"Dataset[[#This Row],[2025/26 To - Spending review Topic 1]]+Dataset[[#This Row],[2025/26 To - Spending review Topic 2]]+Dataset[[#This Row],[2025/26 To - Spending review Topic 3]]+Dataset[[#This Row],[2025/26 To - Spending review Topic 4]]+Dataset[[#This Row],[2025/26 To - Other reallocations]]","v":0},{"$f":"Dataset[[#This Row],[2026/27 To - Spending review Topic 1]]+Dataset[[#This Row],[2026/27 To - Spending review Topic 2]]+Dataset[[#This Row],[2026/27 To - Spending review Topic 3]]+Dataset[[#This Row],[2026/27 To - Spending review Topic 4]]+Dataset[[#This Row],[2026/27 To - Other reallocations]]","v":0},{"$f":"Dataset[[#This Row],[2024/25 Reduction]]+Dataset[[#This Row],[2024/25 From - Total]]","v":0},{"$f":"Dataset[[#This Row],[2025/26 Reduction]]+Dataset[[#This Row],[2025/26 From - Total]]","v":0},{"$f":"Dataset[[#This Row],[2026/27 Reduction]]+Dataset[[#This Row],[2026/27 From - Total]]","v":0},{"$f":"Dataset[[#This Row],[2023/24 Reduction]]","v":0},{"$f":"SUM(Dataset[[#This Row],[2024/25 Reduction]],Dataset[[#This Row],[2024/25 From - Total]],Dataset[[#This Row],[2024/25 To - Total]])","v":0},{"$f":"SUM(Dataset[[#This Row],[2025/26 Reduction]],Dataset[[#This Row],[2025/26 From - Total]],Dataset[[#This Row],[2025/26 To - Total]])","v":0},{"$f":"SUM(Dataset[[#This Row],[2026/27 Reduction]],Dataset[[#This Row],[2026/27 From - Total]],Dataset[[#This Row],[2026/27 To - Total]])","v":0},{"$f":"Dataset[[#This Row],[2023/24 Baseline]]+Dataset[[#This Row],[2023/24 Total change]]","v":0},{"$f":"Dataset[[#This Row],[2024/25 Baseline]]+Dataset[[#This Row],[2024/25 Total change]]","v":0},{"$f":"Dataset[[#This Row],[2025/26 Baseline]]+Dataset[[#This Row],[2025/26 Total change]]","v":0},{"$f":"Dataset[[#This Row],[2026/27 Baseline]]+Dataset[[#This Row],[2026/27 Total change]]","v":0}]
["NAT|Non-transfer item","26|Foreign governments and international organisations","2024_25","MTEF2024",26,3,1,44642,755,"26","03","01","044642","000755","26|03|01","02","02","07","48","50","02|02|07|48|50","National","Military Veterans","Empowerment and Stakeholder Management","Provincial Offices and Stakeholder Relations","Non-transfer item","Capital","Transfers and subsidies","Foreign governments and international organisations","Foreign governments and international organisations","Foreign governments and international organisations","Peace and security","Defence and state security","NAT",0,0,0,0,0,0,0,0,0,0,0,null,null,null,null,null,null,null,null,null,null,null,null,null,null,null,null,null,null,null,null,null,null,null,null,null,null,null,null,null,null,null,null,null,null,{"$f":"Dataset[[#This Row],[2024/25 From - Spending review Topic 1]]+Dataset[[#This Row],[2024/25 From - Spending review Topic 2]]+Dataset[[#This Row],[2024/25 From - Spending review Topic 3]]+Dataset[[#This Row],[2024/25 From - Spending review Topic 4]]+Dataset[[#This Row],[2024/25 From - Other reallocations]]","v":0},{"$f":"Dataset[[#This Row],[2025/26 From - Spending review Topic 1]]+Dataset[[#This Row],[2025/26 From - Spending review Topic 2]]+Dataset[[#This Row],[2025/26 From - Spending review Topic 3]]+Dataset[[#This Row],[2025/26 From - Spending review Topic 4]]+Dataset[[#This Row],[2025/26 From - Other reallocations]]","v":0},{"$f":"Dataset[[#This Row],[2026/27 From - Spending review Topic 1]]+Dataset[[#This Row],[2026/27 From - Spending review Topic 2]]+Dataset[[#This Row],[2026/27 From - Spending review Topic 3]]+Dataset[[#This Row],[2026/27 From - Spending review Topic 4]]+Dataset[[#This Row],[2026/27 From - Other reallocations]]","v":0},{"$f":"Dataset[[#This Row],[2024/25 To - Spending review Topic 1]]+Dataset[[#This Row],[2024/25 To - Spending review Topic 2]]+Dataset[[#This Row],[2024/25 To - Spending review Topic 3]]+Dataset[[#This Row],[2024/25 To - Spending review Topic 4]]+Dataset[[#This Row],[2024/25 To - Other reallocations]]","v":0},{"$f":"Dataset[[#This Row],[2025/26 To - Spending review Topic 1]]+Dataset[[#This Row],[2025/26 To - Spending review Topic 2]]+Dataset[[#This Row],[2025/26 To - Spending review Topic 3]]+Dataset[[#This Row],[2025/26 To - Spending review Topic 4]]+Dataset[[#This Row],[2025/26 To - Other reallocations]]","v":0},{"$f":"Dataset[[#This Row],[2026/27 To - Spending review Topic 1]]+Dataset[[#This Row],[2026/27 To - Spending review Topic 2]]+Dataset[[#This Row],[2026/27 To - Spending review Topic 3]]+Dataset[[#This Row],[2026/27 To - Spending review Topic 4]]+Dataset[[#This Row],[2026/27 To - Other reallocations]]","v":0},{"$f":"Dataset[[#This Row],[2024/25 Reduction]]+Dataset[[#This Row],[2024/25 From - Total]]","v":0},{"$f":"Dataset[[#This Row],[2025/26 Reduction]]+Dataset[[#This Row],[2025/26 From - Total]]","v":0},{"$f":"Dataset[[#This Row],[2026/27 Reduction]]+Dataset[[#This Row],[2026/27 From - Total]]","v":0},{"$f":"Dataset[[#This Row],[2023/24 Reduction]]","v":0},{"$f":"SUM(Dataset[[#This Row],[2024/25 Reduction]],Dataset[[#This Row],[2024/25 From - Total]],Dataset[[#This Row],[2024/25 To - Total]])","v":0},{"$f":"SUM(Dataset[[#This Row],[2025/26 Reduction]],Dataset[[#This Row],[2025/26 From - Total]],Dataset[[#This Row],[2025/26 To - Total]])","v":0},{"$f":"SUM(Dataset[[#This Row],[2026/27 Reduction]],Dataset[[#This Row],[2026/27 From - Total]],Dataset[[#This Row],[2026/27 To - Total]])","v":0},{"$f":"Dataset[[#This Row],[2023/24 Baseline]]+Dataset[[#This Row],[2023/24 Total change]]","v":0},{"$f":"Dataset[[#This Row],[2024/25 Baseline]]+Dataset[[#This Row],[2024/25 Total change]]","v":0},{"$f":"Dataset[[#This Row],[2025/26 Baseline]]+Dataset[[#This Row],[2025/26 Total change]]","v":0},{"$f":"Dataset[[#This Row],[2026/27 Baseline]]+Dataset[[#This Row],[2026/27 Total change]]","v":0}]
["NAT|Non-transfer item","26|Subsidies on products and production (pc)","2024_25","MTEF2024",26,3,1,44643,756,"26","03","01","044643","000756","26|03|01","02","02","08","49","51","02|02|08|49|51","National","Military Veterans","Empowerment and Stakeholder Management","Provincial Offices and Stakeholder Relations","Non-transfer item","Capital","Transfers and subsidies","Public corporations and private enterprises","Public corporations","Subsidies on products and production (pc)","Peace and security","Defence and state security","NAT",0,0,0,0,0,0,0,0,0,0,0,null,null,null,null,null,null,null,null,null,null,null,null,null,null,null,null,null,null,null,null,null,null,null,null,null,null,null,null,null,null,null,null,null,null,{"$f":"Dataset[[#This Row],[2024/25 From - Spending review Topic 1]]+Dataset[[#This Row],[2024/25 From - Spending review Topic 2]]+Dataset[[#This Row],[2024/25 From - Spending review Topic 3]]+Dataset[[#This Row],[2024/25 From - Spending review Topic 4]]+Dataset[[#This Row],[2024/25 From - Other reallocations]]","v":0},{"$f":"Dataset[[#This Row],[2025/26 From - Spending review Topic 1]]+Dataset[[#This Row],[2025/26 From - Spending review Topic 2]]+Dataset[[#This Row],[2025/26 From - Spending review Topic 3]]+Dataset[[#This Row],[2025/26 From - Spending review Topic 4]]+Dataset[[#This Row],[2025/26 From - Other reallocations]]","v":0},{"$f":"Dataset[[#This Row],[2026/27 From - Spending review Topic 1]]+Dataset[[#This Row],[2026/27 From - Spending review Topic 2]]+Dataset[[#This Row],[2026/27 From - Spending review Topic 3]]+Dataset[[#This Row],[2026/27 From - Spending review Topic 4]]+Dataset[[#This Row],[2026/27 From - Other reallocations]]","v":0},{"$f":"Dataset[[#This Row],[2024/25 To - Spending review Topic 1]]+Dataset[[#This Row],[2024/25 To - Spending review Topic 2]]+Dataset[[#This Row],[2024/25 To - Spending review Topic 3]]+Dataset[[#This Row],[2024/25 To - Spending review Topic 4]]+Dataset[[#This Row],[2024/25 To - Other reallocations]]","v":0},{"$f":"Dataset[[#This Row],[2025/26 To - Spending review Topic 1]]+Dataset[[#This Row],[2025/26 To - Spending review Topic 2]]+Dataset[[#This Row],[2025/26 To - Spending review Topic 3]]+Dataset[[#This Row],[2025/26 To - Spending review Topic 4]]+Dataset[[#This Row],[2025/26 To - Other reallocations]]","v":0},{"$f":"Dataset[[#This Row],[2026/27 To - Spending review Topic 1]]+Dataset[[#This Row],[2026/27 To - Spending review Topic 2]]+Dataset[[#This Row],[2026/27 To - Spending review Topic 3]]+Dataset[[#This Row],[2026/27 To - Spending review Topic 4]]+Dataset[[#This Row],[2026/27 To - Other reallocations]]","v":0},{"$f":"Dataset[[#This Row],[2024/25 Reduction]]+Dataset[[#This Row],[2024/25 From - Total]]","v":0},{"$f":"Dataset[[#This Row],[2025/26 Reduction]]+Dataset[[#This Row],[2025/26 From - Total]]","v":0},{"$f":"Dataset[[#This Row],[2026/27 Reduction]]+Dataset[[#This Row],[2026/27 From - Total]]","v":0},{"$f":"Dataset[[#This Row],[2023/24 Reduction]]","v":0},{"$f":"SUM(Dataset[[#This Row],[2024/25 Reduction]],Dataset[[#This Row],[2024/25 From - Total]],Dataset[[#This Row],[2024/25 To - Total]])","v":0},{"$f":"SUM(Dataset[[#This Row],[2025/26 Reduction]],Dataset[[#This Row],[2025/26 From - Total]],Dataset[[#This Row],[2025/26 To - Total]])","v":0},{"$f":"SUM(Dataset[[#This Row],[2026/27 Reduction]],Dataset[[#This Row],[2026/27 From - Total]],Dataset[[#This Row],[2026/27 To - Total]])","v":0},{"$f":"Dataset[[#This Row],[2023/24 Baseline]]+Dataset[[#This Row],[2023/24 Total change]]","v":0},{"$f":"Dataset[[#This Row],[2024/25 Baseline]]+Dataset[[#This Row],[2024/25 Total change]]","v":0},{"$f":"Dataset[[#This Row],[2025/26 Baseline]]+Dataset[[#This Row],[2025/26 Total change]]","v":0},{"$f":"Dataset[[#This Row],[2026/27 Baseline]]+Dataset[[#This Row],[2026/27 Total change]]","v":0}]
["NAT|Non-transfer item","26|Other transfers to public corporations","2024_25","MTEF2024",26,3,1,44644,757,"26","03","01","044644","000757","26|03|01","02","02","08","49","52","02|02|08|49|52","National","Military Veterans","Empowerment and Stakeholder Management","Provincial Offices and Stakeholder Relations","Non-transfer item","Capital","Transfers and subsidies","Public corporations and private enterprises","Public corporations","Other transfers to public corporations","Peace and security","Defence and state security","NAT",0,0,0,0,0,0,0,0,0,0,0,null,null,null,null,null,null,null,null,null,null,null,null,null,null,null,null,null,null,null,null,null,null,null,null,null,null,null,null,null,null,null,null,null,null,{"$f":"Dataset[[#This Row],[2024/25 From - Spending review Topic 1]]+Dataset[[#This Row],[2024/25 From - Spending review Topic 2]]+Dataset[[#This Row],[2024/25 From - Spending review Topic 3]]+Dataset[[#This Row],[2024/25 From - Spending review Topic 4]]+Dataset[[#This Row],[2024/25 From - Other reallocations]]","v":0},{"$f":"Dataset[[#This Row],[2025/26 From - Spending review Topic 1]]+Dataset[[#This Row],[2025/26 From - Spending review Topic 2]]+Dataset[[#This Row],[2025/26 From - Spending review Topic 3]]+Dataset[[#This Row],[2025/26 From - Spending review Topic 4]]+Dataset[[#This Row],[2025/26 From - Other reallocations]]","v":0},{"$f":"Dataset[[#This Row],[2026/27 From - Spending review Topic 1]]+Dataset[[#This Row],[2026/27 From - Spending review Topic 2]]+Dataset[[#This Row],[2026/27 From - Spending review Topic 3]]+Dataset[[#This Row],[2026/27 From - Spending review Topic 4]]+Dataset[[#This Row],[2026/27 From - Other reallocations]]","v":0},{"$f":"Dataset[[#This Row],[2024/25 To - Spending review Topic 1]]+Dataset[[#This Row],[2024/25 To - Spending review Topic 2]]+Dataset[[#This Row],[2024/25 To - Spending review Topic 3]]+Dataset[[#This Row],[2024/25 To - Spending review Topic 4]]+Dataset[[#This Row],[2024/25 To - Other reallocations]]","v":0},{"$f":"Dataset[[#This Row],[2025/26 To - Spending review Topic 1]]+Dataset[[#This Row],[2025/26 To - Spending review Topic 2]]+Dataset[[#This Row],[2025/26 To - Spending review Topic 3]]+Dataset[[#This Row],[2025/26 To - Spending review Topic 4]]+Dataset[[#This Row],[2025/26 To - Other reallocations]]","v":0},{"$f":"Dataset[[#This Row],[2026/27 To - Spending review Topic 1]]+Dataset[[#This Row],[2026/27 To - Spending review Topic 2]]+Dataset[[#This Row],[2026/27 To - Spending review Topic 3]]+Dataset[[#This Row],[2026/27 To - Spending review Topic 4]]+Dataset[[#This Row],[2026/27 To - Other reallocations]]","v":0},{"$f":"Dataset[[#This Row],[2024/25 Reduction]]+Dataset[[#This Row],[2024/25 From - Total]]","v":0},{"$f":"Dataset[[#This Row],[2025/26 Reduction]]+Dataset[[#This Row],[2025/26 From - Total]]","v":0},{"$f":"Dataset[[#This Row],[2026/27 Reduction]]+Dataset[[#This Row],[2026/27 From - Total]]","v":0},{"$f":"Dataset[[#This Row],[2023/24 Reduction]]","v":0},{"$f":"SUM(Dataset[[#This Row],[2024/25 Reduction]],Dataset[[#This Row],[2024/25 From - Total]],Dataset[[#This Row],[2024/25 To - Total]])","v":0},{"$f":"SUM(Dataset[[#This Row],[2025/26 Reduction]],Dataset[[#This Row],[2025/26 From - Total]],Dataset[[#This Row],[2025/26 To - Total]])","v":0},{"$f":"SUM(Dataset[[#This Row],[2026/27 Reduction]],Dataset[[#This Row],[2026/27 From - Total]],Dataset[[#This Row],[2026/27 To - Total]])","v":0},{"$f":"Dataset[[#This Row],[2023/24 Baseline]]+Dataset[[#This Row],[2023/24 Total change]]","v":0},{"$f":"Dataset[[#This Row],[2024/25 Baseline]]+Dataset[[#This Row],[2024/25 Total change]]","v":0},{"$f":"Dataset[[#This Row],[2025/26 Baseline]]+Dataset[[#This Row],[2025/26 Total change]]","v":0},{"$f":"Dataset[[#This Row],[2026/27 Baseline]]+Dataset[[#This Row],[2026/27 Total change]]","v":0}]
["NAT|Non-transfer item","26|Other transfers to private enterprises","2024_25","MTEF2024",26,3,1,44645,758,"26","03","01","044645","000758","26|03|01","02","02","08","50","54","02|02|08|50|54","National","Military Veterans","Empowerment and Stakeholder Management","Provincial Offices and Stakeholder Relations","Non-transfer item","Capital","Transfers and subsidies","Public corporations and private enterprises","Private enterprises","Other transfers to private enterprises","Peace and security","Defence and state security","NAT",0,0,0,0,0,0,0,0,0,0,0,null,null,null,null,null,null,null,null,null,null,null,null,null,null,null,null,null,null,null,null,null,null,null,null,null,null,null,null,null,null,null,null,null,null,{"$f":"Dataset[[#This Row],[2024/25 From - Spending review Topic 1]]+Dataset[[#This Row],[2024/25 From - Spending review Topic 2]]+Dataset[[#This Row],[2024/25 From - Spending review Topic 3]]+Dataset[[#This Row],[2024/25 From - Spending review Topic 4]]+Dataset[[#This Row],[2024/25 From - Other reallocations]]","v":0},{"$f":"Dataset[[#This Row],[2025/26 From - Spending review Topic 1]]+Dataset[[#This Row],[2025/26 From - Spending review Topic 2]]+Dataset[[#This Row],[2025/26 From - Spending review Topic 3]]+Dataset[[#This Row],[2025/26 From - Spending review Topic 4]]+Dataset[[#This Row],[2025/26 From - Other reallocations]]","v":0},{"$f":"Dataset[[#This Row],[2026/27 From - Spending review Topic 1]]+Dataset[[#This Row],[2026/27 From - Spending review Topic 2]]+Dataset[[#This Row],[2026/27 From - Spending review Topic 3]]+Dataset[[#This Row],[2026/27 From - Spending review Topic 4]]+Dataset[[#This Row],[2026/27 From - Other reallocations]]","v":0},{"$f":"Dataset[[#This Row],[2024/25 To - Spending review Topic 1]]+Dataset[[#This Row],[2024/25 To - Spending review Topic 2]]+Dataset[[#This Row],[2024/25 To - Spending review Topic 3]]+Dataset[[#This Row],[2024/25 To - Spending review Topic 4]]+Dataset[[#This Row],[2024/25 To - Other reallocations]]","v":0},{"$f":"Dataset[[#This Row],[2025/26 To - Spending review Topic 1]]+Dataset[[#This Row],[2025/26 To - Spending review Topic 2]]+Dataset[[#This Row],[2025/26 To - Spending review Topic 3]]+Dataset[[#This Row],[2025/26 To - Spending review Topic 4]]+Dataset[[#This Row],[2025/26 To - Other reallocations]]","v":0},{"$f":"Dataset[[#This Row],[2026/27 To - Spending review Topic 1]]+Dataset[[#This Row],[2026/27 To - Spending review Topic 2]]+Dataset[[#This Row],[2026/27 To - Spending review Topic 3]]+Dataset[[#This Row],[2026/27 To - Spending review Topic 4]]+Dataset[[#This Row],[2026/27 To - Other reallocations]]","v":0},{"$f":"Dataset[[#This Row],[2024/25 Reduction]]+Dataset[[#This Row],[2024/25 From - Total]]","v":0},{"$f":"Dataset[[#This Row],[2025/26 Reduction]]+Dataset[[#This Row],[2025/26 From - Total]]","v":0},{"$f":"Dataset[[#This Row],[2026/27 Reduction]]+Dataset[[#This Row],[2026/27 From - Total]]","v":0},{"$f":"Dataset[[#This Row],[2023/24 Reduction]]","v":0},{"$f":"SUM(Dataset[[#This Row],[2024/25 Reduction]],Dataset[[#This Row],[2024/25 From - Total]],Dataset[[#This Row],[2024/25 To - Total]])","v":0},{"$f":"SUM(Dataset[[#This Row],[2025/26 Reduction]],Dataset[[#This Row],[2025/26 From - Total]],Dataset[[#This Row],[2025/26 To - Total]])","v":0},{"$f":"SUM(Dataset[[#This Row],[2026/27 Reduction]],Dataset[[#This Row],[2026/27 From - Total]],Dataset[[#This Row],[2026/27 To - Total]])","v":0},{"$f":"Dataset[[#This Row],[2023/24 Baseline]]+Dataset[[#This Row],[2023/24 Total change]]","v":0},{"$f":"Dataset[[#This Row],[2024/25 Baseline]]+Dataset[[#This Row],[2024/25 Total change]]","v":0},{"$f":"Dataset[[#This Row],[2025/26 Baseline]]+Dataset[[#This Row],[2025/26 Total change]]","v":0},{"$f":"Dataset[[#This Row],[2026/27 Baseline]]+Dataset[[#This Row],[2026/27 Total change]]","v":0}]
["NAT|Non-transfer item","26|Non-profit institutions","2024_25","MTEF2024",26,3,1,44646,759,"26","03","01","044646","000759","26|03|01","02","02","09","51","55","02|02|09|51|55","National","Military Veterans","Empowerment and Stakeholder Management","Provincial Offices and Stakeholder Relations","Non-transfer item","Capital","Transfers and subsidies","Non-profit institutions","Non-profit institutions","Non-profit institutions","Peace and security","Defence and state security","NAT",0,0,0,0,0,0,0,0,0,0,0,null,null,null,null,null,null,null,null,null,null,null,null,null,null,null,null,null,null,null,null,null,null,null,null,null,null,null,null,null,null,null,null,null,null,{"$f":"Dataset[[#This Row],[2024/25 From - Spending review Topic 1]]+Dataset[[#This Row],[2024/25 From - Spending review Topic 2]]+Dataset[[#This Row],[2024/25 From - Spending review Topic 3]]+Dataset[[#This Row],[2024/25 From - Spending review Topic 4]]+Dataset[[#This Row],[2024/25 From - Other reallocations]]","v":0},{"$f":"Dataset[[#This Row],[2025/26 From - Spending review Topic 1]]+Dataset[[#This Row],[2025/26 From - Spending review Topic 2]]+Dataset[[#This Row],[2025/26 From - Spending review Topic 3]]+Dataset[[#This Row],[2025/26 From - Spending review Topic 4]]+Dataset[[#This Row],[2025/26 From - Other reallocations]]","v":0},{"$f":"Dataset[[#This Row],[2026/27 From - Spending review Topic 1]]+Dataset[[#This Row],[2026/27 From - Spending review Topic 2]]+Dataset[[#This Row],[2026/27 From - Spending review Topic 3]]+Dataset[[#This Row],[2026/27 From - Spending review Topic 4]]+Dataset[[#This Row],[2026/27 From - Other reallocations]]","v":0},{"$f":"Dataset[[#This Row],[2024/25 To - Spending review Topic 1]]+Dataset[[#This Row],[2024/25 To - Spending review Topic 2]]+Dataset[[#This Row],[2024/25 To - Spending review Topic 3]]+Dataset[[#This Row],[2024/25 To - Spending review Topic 4]]+Dataset[[#This Row],[2024/25 To - Other reallocations]]","v":0},{"$f":"Dataset[[#This Row],[2025/26 To - Spending review Topic 1]]+Dataset[[#This Row],[2025/26 To - Spending review Topic 2]]+Dataset[[#This Row],[2025/26 To - Spending review Topic 3]]+Dataset[[#This Row],[2025/26 To - Spending review Topic 4]]+Dataset[[#This Row],[2025/26 To - Other reallocations]]","v":0},{"$f":"Dataset[[#This Row],[2026/27 To - Spending review Topic 1]]+Dataset[[#This Row],[2026/27 To - Spending review Topic 2]]+Dataset[[#This Row],[2026/27 To - Spending review Topic 3]]+Dataset[[#This Row],[2026/27 To - Spending review Topic 4]]+Dataset[[#This Row],[2026/27 To - Other reallocations]]","v":0},{"$f":"Dataset[[#This Row],[2024/25 Reduction]]+Dataset[[#This Row],[2024/25 From - Total]]","v":0},{"$f":"Dataset[[#This Row],[2025/26 Reduction]]+Dataset[[#This Row],[2025/26 From - Total]]","v":0},{"$f":"Dataset[[#This Row],[2026/27 Reduction]]+Dataset[[#This Row],[2026/27 From - Total]]","v":0},{"$f":"Dataset[[#This Row],[2023/24 Reduction]]","v":0},{"$f":"SUM(Dataset[[#This Row],[2024/25 Reduction]],Dataset[[#This Row],[2024/25 From - Total]],Dataset[[#This Row],[2024/25 To - Total]])","v":0},{"$f":"SUM(Dataset[[#This Row],[2025/26 Reduction]],Dataset[[#This Row],[2025/26 From - Total]],Dataset[[#This Row],[2025/26 To - Total]])","v":0},{"$f":"SUM(Dataset[[#This Row],[2026/27 Reduction]],Dataset[[#This Row],[2026/27 From - Total]],Dataset[[#This Row],[2026/27 To - Total]])","v":0},{"$f":"Dataset[[#This Row],[2023/24 Baseline]]+Dataset[[#This Row],[2023/24 Total change]]","v":0},{"$f":"Dataset[[#This Row],[2024/25 Baseline]]+Dataset[[#This Row],[2024/25 Total change]]","v":0},{"$f":"Dataset[[#This Row],[2025/26 Baseline]]+Dataset[[#This Row],[2025/26 Total change]]","v":0},{"$f":"Dataset[[#This Row],[2026/27 Baseline]]+Dataset[[#This Row],[2026/27 Total change]]","v":0}]
["NAT|Non-transfer item","26|Other transfers to households","2024_25","MTEF2024",26,3,1,44647,760,"26","03","01","044647","000760","26|03|01","02","02","10","53","57","02|02|10|53|57","National","Military Veterans","Empowerment and Stakeholder Management","Provincial Offices and Stakeholder Relations","Non-transfer item","Capital","Transfers and subsidies","Households","Other transfers to households","Other transfers to households","Peace and security","Defence and state security","NAT",0,0,0,0,0,0,0,0,0,0,0,null,null,null,null,null,null,null,null,null,null,null,null,null,null,null,null,null,null,null,null,null,null,null,null,null,null,null,null,null,null,null,null,null,null,{"$f":"Dataset[[#This Row],[2024/25 From - Spending review Topic 1]]+Dataset[[#This Row],[2024/25 From - Spending review Topic 2]]+Dataset[[#This Row],[2024/25 From - Spending review Topic 3]]+Dataset[[#This Row],[2024/25 From - Spending review Topic 4]]+Dataset[[#This Row],[2024/25 From - Other reallocations]]","v":0},{"$f":"Dataset[[#This Row],[2025/26 From - Spending review Topic 1]]+Dataset[[#This Row],[2025/26 From - Spending review Topic 2]]+Dataset[[#This Row],[2025/26 From - Spending review Topic 3]]+Dataset[[#This Row],[2025/26 From - Spending review Topic 4]]+Dataset[[#This Row],[2025/26 From - Other reallocations]]","v":0},{"$f":"Dataset[[#This Row],[2026/27 From - Spending review Topic 1]]+Dataset[[#This Row],[2026/27 From - Spending review Topic 2]]+Dataset[[#This Row],[2026/27 From - Spending review Topic 3]]+Dataset[[#This Row],[2026/27 From - Spending review Topic 4]]+Dataset[[#This Row],[2026/27 From - Other reallocations]]","v":0},{"$f":"Dataset[[#This Row],[2024/25 To - Spending review Topic 1]]+Dataset[[#This Row],[2024/25 To - Spending review Topic 2]]+Dataset[[#This Row],[2024/25 To - Spending review Topic 3]]+Dataset[[#This Row],[2024/25 To - Spending review Topic 4]]+Dataset[[#This Row],[2024/25 To - Other reallocations]]","v":0},{"$f":"Dataset[[#This Row],[2025/26 To - Spending review Topic 1]]+Dataset[[#This Row],[2025/26 To - Spending review Topic 2]]+Dataset[[#This Row],[2025/26 To - Spending review Topic 3]]+Dataset[[#This Row],[2025/26 To - Spending review Topic 4]]+Dataset[[#This Row],[2025/26 To - Other reallocations]]","v":0},{"$f":"Dataset[[#This Row],[2026/27 To - Spending review Topic 1]]+Dataset[[#This Row],[2026/27 To - Spending review Topic 2]]+Dataset[[#This Row],[2026/27 To - Spending review Topic 3]]+Dataset[[#This Row],[2026/27 To - Spending review Topic 4]]+Dataset[[#This Row],[2026/27 To - Other reallocations]]","v":0},{"$f":"Dataset[[#This Row],[2024/25 Reduction]]+Dataset[[#This Row],[2024/25 From - Total]]","v":0},{"$f":"Dataset[[#This Row],[2025/26 Reduction]]+Dataset[[#This Row],[2025/26 From - Total]]","v":0},{"$f":"Dataset[[#This Row],[2026/27 Reduction]]+Dataset[[#This Row],[2026/27 From - Total]]","v":0},{"$f":"Dataset[[#This Row],[2023/24 Reduction]]","v":0},{"$f":"SUM(Dataset[[#This Row],[2024/25 Reduction]],Dataset[[#This Row],[2024/25 From - Total]],Dataset[[#This Row],[2024/25 To - Total]])","v":0},{"$f":"SUM(Dataset[[#This Row],[2025/26 Reduction]],Dataset[[#This Row],[2025/26 From - Total]],Dataset[[#This Row],[2025/26 To - Total]])","v":0},{"$f":"SUM(Dataset[[#This Row],[2026/27 Reduction]],Dataset[[#This Row],[2026/27 From - Total]],Dataset[[#This Row],[2026/27 To - Total]])","v":0},{"$f":"Dataset[[#This Row],[2023/24 Baseline]]+Dataset[[#This Row],[2023/24 Total change]]","v":0},{"$f":"Dataset[[#This Row],[2024/25 Baseline]]+Dataset[[#This Row],[2024/25 Total change]]","v":0},{"$f":"Dataset[[#This Row],[2025/26 Baseline]]+Dataset[[#This Row],[2025/26 Total change]]","v":0},{"$f":"Dataset[[#This Row],[2026/27 Baseline]]+Dataset[[#This Row],[2026/27 Total change]]","v":0}]
["NAT|Non-transfer item","26|Buildings","2024_25","MTEF2024",26,3,1,44648,761,"26","03","01","044648","000761","26|03|01","02","03","11","54","58","02|03|11|54|58","National","Military Veterans","Empowerment and Stakeholder Management","Provincial Offices and Stakeholder Relations","Non-transfer item","Capital","Payments for capital assets","Buildings and other fixed structures","Buildings","Buildings","Peace and security","Defence and state security","NAT",0,0,0,0,0,0,0,0,0,0,0,null,null,null,null,null,null,null,null,null,null,null,null,null,null,null,null,null,null,null,null,null,null,null,null,null,null,null,null,null,null,null,null,null,null,{"$f":"Dataset[[#This Row],[2024/25 From - Spending review Topic 1]]+Dataset[[#This Row],[2024/25 From - Spending review Topic 2]]+Dataset[[#This Row],[2024/25 From - Spending review Topic 3]]+Dataset[[#This Row],[2024/25 From - Spending review Topic 4]]+Dataset[[#This Row],[2024/25 From - Other reallocations]]","v":0},{"$f":"Dataset[[#This Row],[2025/26 From - Spending review Topic 1]]+Dataset[[#This Row],[2025/26 From - Spending review Topic 2]]+Dataset[[#This Row],[2025/26 From - Spending review Topic 3]]+Dataset[[#This Row],[2025/26 From - Spending review Topic 4]]+Dataset[[#This Row],[2025/26 From - Other reallocations]]","v":0},{"$f":"Dataset[[#This Row],[2026/27 From - Spending review Topic 1]]+Dataset[[#This Row],[2026/27 From - Spending review Topic 2]]+Dataset[[#This Row],[2026/27 From - Spending review Topic 3]]+Dataset[[#This Row],[2026/27 From - Spending review Topic 4]]+Dataset[[#This Row],[2026/27 From - Other reallocations]]","v":0},{"$f":"Dataset[[#This Row],[2024/25 To - Spending review Topic 1]]+Dataset[[#This Row],[2024/25 To - Spending review Topic 2]]+Dataset[[#This Row],[2024/25 To - Spending review Topic 3]]+Dataset[[#This Row],[2024/25 To - Spending review Topic 4]]+Dataset[[#This Row],[2024/25 To - Other reallocations]]","v":0},{"$f":"Dataset[[#This Row],[2025/26 To - Spending review Topic 1]]+Dataset[[#This Row],[2025/26 To - Spending review Topic 2]]+Dataset[[#This Row],[2025/26 To - Spending review Topic 3]]+Dataset[[#This Row],[2025/26 To - Spending review Topic 4]]+Dataset[[#This Row],[2025/26 To - Other reallocations]]","v":0},{"$f":"Dataset[[#This Row],[2026/27 To - Spending review Topic 1]]+Dataset[[#This Row],[2026/27 To - Spending review Topic 2]]+Dataset[[#This Row],[2026/27 To - Spending review Topic 3]]+Dataset[[#This Row],[2026/27 To - Spending review Topic 4]]+Dataset[[#This Row],[2026/27 To - Other reallocations]]","v":0},{"$f":"Dataset[[#This Row],[2024/25 Reduction]]+Dataset[[#This Row],[2024/25 From - Total]]","v":0},{"$f":"Dataset[[#This Row],[2025/26 Reduction]]+Dataset[[#This Row],[2025/26 From - Total]]","v":0},{"$f":"Dataset[[#This Row],[2026/27 Reduction]]+Dataset[[#This Row],[2026/27 From - Total]]","v":0},{"$f":"Dataset[[#This Row],[2023/24 Reduction]]","v":0},{"$f":"SUM(Dataset[[#This Row],[2024/25 Reduction]],Dataset[[#This Row],[2024/25 From - Total]],Dataset[[#This Row],[2024/25 To - Total]])","v":0},{"$f":"SUM(Dataset[[#This Row],[2025/26 Reduction]],Dataset[[#This Row],[2025/26 From - Total]],Dataset[[#This Row],[2025/26 To - Total]])","v":0},{"$f":"SUM(Dataset[[#This Row],[2026/27 Reduction]],Dataset[[#This Row],[2026/27 From - Total]],Dataset[[#This Row],[2026/27 To - Total]])","v":0},{"$f":"Dataset[[#This Row],[2023/24 Baseline]]+Dataset[[#This Row],[2023/24 Total change]]","v":0},{"$f":"Dataset[[#This Row],[2024/25 Baseline]]+Dataset[[#This Row],[2024/25 Total change]]","v":0},{"$f":"Dataset[[#This Row],[2025/26 Baseline]]+Dataset[[#This Row],[2025/26 Total change]]","v":0},{"$f":"Dataset[[#This Row],[2026/27 Baseline]]+Dataset[[#This Row],[2026/27 Total change]]","v":0}]
["NAT|Non-transfer item","26|Other fixed structures","2024_25","MTEF2024",26,3,1,44649,762,"26","03","01","044649","000762","26|03|01","02","03","11","55","59","02|03|11|55|59","National","Military Veterans","Empowerment and Stakeholder Management","Provincial Offices and Stakeholder Relations","Non-transfer item","Capital","Payments for capital assets","Buildings and other fixed structures","Other fixed structures","Other fixed structures","Peace and security","Defence and state security","NAT",0,0,0,0,0,0,0,0,0,0,0,null,null,null,null,null,null,null,null,null,null,null,null,null,null,null,null,null,null,null,null,null,null,null,null,null,null,null,null,null,null,null,null,null,null,{"$f":"Dataset[[#This Row],[2024/25 From - Spending review Topic 1]]+Dataset[[#This Row],[2024/25 From - Spending review Topic 2]]+Dataset[[#This Row],[2024/25 From - Spending review Topic 3]]+Dataset[[#This Row],[2024/25 From - Spending review Topic 4]]+Dataset[[#This Row],[2024/25 From - Other reallocations]]","v":0},{"$f":"Dataset[[#This Row],[2025/26 From - Spending review Topic 1]]+Dataset[[#This Row],[2025/26 From - Spending review Topic 2]]+Dataset[[#This Row],[2025/26 From - Spending review Topic 3]]+Dataset[[#This Row],[2025/26 From - Spending review Topic 4]]+Dataset[[#This Row],[2025/26 From - Other reallocations]]","v":0},{"$f":"Dataset[[#This Row],[2026/27 From - Spending review Topic 1]]+Dataset[[#This Row],[2026/27 From - Spending review Topic 2]]+Dataset[[#This Row],[2026/27 From - Spending review Topic 3]]+Dataset[[#This Row],[2026/27 From - Spending review Topic 4]]+Dataset[[#This Row],[2026/27 From - Other reallocations]]","v":0},{"$f":"Dataset[[#This Row],[2024/25 To - Spending review Topic 1]]+Dataset[[#This Row],[2024/25 To - Spending review Topic 2]]+Dataset[[#This Row],[2024/25 To - Spending review Topic 3]]+Dataset[[#This Row],[2024/25 To - Spending review Topic 4]]+Dataset[[#This Row],[2024/25 To - Other reallocations]]","v":0},{"$f":"Dataset[[#This Row],[2025/26 To - Spending review Topic 1]]+Dataset[[#This Row],[2025/26 To - Spending review Topic 2]]+Dataset[[#This Row],[2025/26 To - Spending review Topic 3]]+Dataset[[#This Row],[2025/26 To - Spending review Topic 4]]+Dataset[[#This Row],[2025/26 To - Other reallocations]]","v":0},{"$f":"Dataset[[#This Row],[2026/27 To - Spending review Topic 1]]+Dataset[[#This Row],[2026/27 To - Spending review Topic 2]]+Dataset[[#This Row],[2026/27 To - Spending review Topic 3]]+Dataset[[#This Row],[2026/27 To - Spending review Topic 4]]+Dataset[[#This Row],[2026/27 To - Other reallocations]]","v":0},{"$f":"Dataset[[#This Row],[2024/25 Reduction]]+Dataset[[#This Row],[2024/25 From - Total]]","v":0},{"$f":"Dataset[[#This Row],[2025/26 Reduction]]+Dataset[[#This Row],[2025/26 From - Total]]","v":0},{"$f":"Dataset[[#This Row],[2026/27 Reduction]]+Dataset[[#This Row],[2026/27 From - Total]]","v":0},{"$f":"Dataset[[#This Row],[2023/24 Reduction]]","v":0},{"$f":"SUM(Dataset[[#This Row],[2024/25 Reduction]],Dataset[[#This Row],[2024/25 From - Total]],Dataset[[#This Row],[2024/25 To - Total]])","v":0},{"$f":"SUM(Dataset[[#This Row],[2025/26 Reduction]],Dataset[[#This Row],[2025/26 From - Total]],Dataset[[#This Row],[2025/26 To - Total]])","v":0},{"$f":"SUM(Dataset[[#This Row],[2026/27 Reduction]],Dataset[[#This Row],[2026/27 From - Total]],Dataset[[#This Row],[2026/27 To - Total]])","v":0},{"$f":"Dataset[[#This Row],[2023/24 Baseline]]+Dataset[[#This Row],[2023/24 Total change]]","v":0},{"$f":"Dataset[[#This Row],[2024/25 Baseline]]+Dataset[[#This Row],[2024/25 Total change]]","v":0},{"$f":"Dataset[[#This Row],[2025/26 Baseline]]+Dataset[[#This Row],[2025/26 Total change]]","v":0},{"$f":"Dataset[[#This Row],[2026/27 Baseline]]+Dataset[[#This Row],[2026/27 Total change]]","v":0}]
["NAT|Non-transfer item","26|Transport equipment","2024_25","MTEF2024",26,3,1,44650,763,"26","03","01","044650","000763","26|03|01","02","03","12","56","60","02|03|12|56|60","National","Military Veterans","Empowerment and Stakeholder Management","Provincial Offices and Stakeholder Relations","Non-transfer item","Capital","Payments for capital assets","Machinery and equipment","Transport equipment","Transport equipment","Peace and security","Defence and state security","NAT",0,0,0,0,0,0,0,0,0,0,0,null,null,null,null,null,null,null,null,null,null,null,null,null,null,null,null,null,null,null,null,null,null,null,null,null,null,null,null,null,null,null,null,null,null,{"$f":"Dataset[[#This Row],[2024/25 From - Spending review Topic 1]]+Dataset[[#This Row],[2024/25 From - Spending review Topic 2]]+Dataset[[#This Row],[2024/25 From - Spending review Topic 3]]+Dataset[[#This Row],[2024/25 From - Spending review Topic 4]]+Dataset[[#This Row],[2024/25 From - Other reallocations]]","v":0},{"$f":"Dataset[[#This Row],[2025/26 From - Spending review Topic 1]]+Dataset[[#This Row],[2025/26 From - Spending review Topic 2]]+Dataset[[#This Row],[2025/26 From - Spending review Topic 3]]+Dataset[[#This Row],[2025/26 From - Spending review Topic 4]]+Dataset[[#This Row],[2025/26 From - Other reallocations]]","v":0},{"$f":"Dataset[[#This Row],[2026/27 From - Spending review Topic 1]]+Dataset[[#This Row],[2026/27 From - Spending review Topic 2]]+Dataset[[#This Row],[2026/27 From - Spending review Topic 3]]+Dataset[[#This Row],[2026/27 From - Spending review Topic 4]]+Dataset[[#This Row],[2026/27 From - Other reallocations]]","v":0},{"$f":"Dataset[[#This Row],[2024/25 To - Spending review Topic 1]]+Dataset[[#This Row],[2024/25 To - Spending review Topic 2]]+Dataset[[#This Row],[2024/25 To - Spending review Topic 3]]+Dataset[[#This Row],[2024/25 To - Spending review Topic 4]]+Dataset[[#This Row],[2024/25 To - Other reallocations]]","v":0},{"$f":"Dataset[[#This Row],[2025/26 To - Spending review Topic 1]]+Dataset[[#This Row],[2025/26 To - Spending review Topic 2]]+Dataset[[#This Row],[2025/26 To - Spending review Topic 3]]+Dataset[[#This Row],[2025/26 To - Spending review Topic 4]]+Dataset[[#This Row],[2025/26 To - Other reallocations]]","v":0},{"$f":"Dataset[[#This Row],[2026/27 To - Spending review Topic 1]]+Dataset[[#This Row],[2026/27 To - Spending review Topic 2]]+Dataset[[#This Row],[2026/27 To - Spending review Topic 3]]+Dataset[[#This Row],[2026/27 To - Spending review Topic 4]]+Dataset[[#This Row],[2026/27 To - Other reallocations]]","v":0},{"$f":"Dataset[[#This Row],[2024/25 Reduction]]+Dataset[[#This Row],[2024/25 From - Total]]","v":0},{"$f":"Dataset[[#This Row],[2025/26 Reduction]]+Dataset[[#This Row],[2025/26 From - Total]]","v":0},{"$f":"Dataset[[#This Row],[2026/27 Reduction]]+Dataset[[#This Row],[2026/27 From - Total]]","v":0},{"$f":"Dataset[[#This Row],[2023/24 Reduction]]","v":0},{"$f":"SUM(Dataset[[#This Row],[2024/25 Reduction]],Dataset[[#This Row],[2024/25 From - Total]],Dataset[[#This Row],[2024/25 To - Total]])","v":0},{"$f":"SUM(Dataset[[#This Row],[2025/26 Reduction]],Dataset[[#This Row],[2025/26 From - Total]],Dataset[[#This Row],[2025/26 To - Total]])","v":0},{"$f":"SUM(Dataset[[#This Row],[2026/27 Reduction]],Dataset[[#This Row],[2026/27 From - Total]],Dataset[[#This Row],[2026/27 To - Total]])","v":0},{"$f":"Dataset[[#This Row],[2023/24 Baseline]]+Dataset[[#This Row],[2023/24 Total change]]","v":0},{"$f":"Dataset[[#This Row],[2024/25 Baseline]]+Dataset[[#This Row],[2024/25 Total change]]","v":0},{"$f":"Dataset[[#This Row],[2025/26 Baseline]]+Dataset[[#This Row],[2025/26 Total change]]","v":0},{"$f":"Dataset[[#This Row],[2026/27 Baseline]]+Dataset[[#This Row],[2026/27 Total change]]","v":0}]
["NAT|Non-transfer item","26|Other machinery and equipment","2024_25","MTEF2024",26,3,1,44651,764,"26","03","01","044651","000764","26|03|01","02","03","12","57","61","02|03|12|57|61","National","Military Veterans","Empowerment and Stakeholder Management","Provincial Offices and Stakeholder Relations","Non-transfer item","Capital","Payments for capital assets","Machinery and equipment","Other machinery and equipment","Other machinery and equipment","Peace and security","Defence and state security","NAT",0,390,0,4089,4089,4089,0,4269,4461,4661,4875,null,null,null,null,null,null,null,null,null,null,null,null,null,null,null,null,null,null,null,null,null,null,null,null,null,null,null,null,null,null,null,null,null,null,{"$f":"Dataset[[#This Row],[2024/25 From - Spending review Topic 1]]+Dataset[[#This Row],[2024/25 From - Spending review Topic 2]]+Dataset[[#This Row],[2024/25 From - Spending review Topic 3]]+Dataset[[#This Row],[2024/25 From - Spending review Topic 4]]+Dataset[[#This Row],[2024/25 From - Other reallocations]]","v":0},{"$f":"Dataset[[#This Row],[2025/26 From - Spending review Topic 1]]+Dataset[[#This Row],[2025/26 From - Spending review Topic 2]]+Dataset[[#This Row],[2025/26 From - Spending review Topic 3]]+Dataset[[#This Row],[2025/26 From - Spending review Topic 4]]+Dataset[[#This Row],[2025/26 From - Other reallocations]]","v":0},{"$f":"Dataset[[#This Row],[2026/27 From - Spending review Topic 1]]+Dataset[[#This Row],[2026/27 From - Spending review Topic 2]]+Dataset[[#This Row],[2026/27 From - Spending review Topic 3]]+Dataset[[#This Row],[2026/27 From - Spending review Topic 4]]+Dataset[[#This Row],[2026/27 From - Other reallocations]]","v":0},{"$f":"Dataset[[#This Row],[2024/25 To - Spending review Topic 1]]+Dataset[[#This Row],[2024/25 To - Spending review Topic 2]]+Dataset[[#This Row],[2024/25 To - Spending review Topic 3]]+Dataset[[#This Row],[2024/25 To - Spending review Topic 4]]+Dataset[[#This Row],[2024/25 To - Other reallocations]]","v":0},{"$f":"Dataset[[#This Row],[2025/26 To - Spending review Topic 1]]+Dataset[[#This Row],[2025/26 To - Spending review Topic 2]]+Dataset[[#This Row],[2025/26 To - Spending review Topic 3]]+Dataset[[#This Row],[2025/26 To - Spending review Topic 4]]+Dataset[[#This Row],[2025/26 To - Other reallocations]]","v":0},{"$f":"Dataset[[#This Row],[2026/27 To - Spending review Topic 1]]+Dataset[[#This Row],[2026/27 To - Spending review Topic 2]]+Dataset[[#This Row],[2026/27 To - Spending review Topic 3]]+Dataset[[#This Row],[2026/27 To - Spending review Topic 4]]+Dataset[[#This Row],[2026/27 To - Other reallocations]]","v":0},{"$f":"Dataset[[#This Row],[2024/25 Reduction]]+Dataset[[#This Row],[2024/25 From - Total]]","v":0},{"$f":"Dataset[[#This Row],[2025/26 Reduction]]+Dataset[[#This Row],[2025/26 From - Total]]","v":0},{"$f":"Dataset[[#This Row],[2026/27 Reduction]]+Dataset[[#This Row],[2026/27 From - Total]]","v":0},{"$f":"Dataset[[#This Row],[2023/24 Reduction]]","v":0},{"$f":"SUM(Dataset[[#This Row],[2024/25 Reduction]],Dataset[[#This Row],[2024/25 From - Total]],Dataset[[#This Row],[2024/25 To - Total]])","v":0},{"$f":"SUM(Dataset[[#This Row],[2025/26 Reduction]],Dataset[[#This Row],[2025/26 From - Total]],Dataset[[#This Row],[2025/26 To - Total]])","v":0},{"$f":"SUM(Dataset[[#This Row],[2026/27 Reduction]],Dataset[[#This Row],[2026/27 From - Total]],Dataset[[#This Row],[2026/27 To - Total]])","v":0},{"$f":"Dataset[[#This Row],[2023/24 Baseline]]+Dataset[[#This Row],[2023/24 Total change]]","v":4269},{"$f":"Dataset[[#This Row],[2024/25 Baseline]]+Dataset[[#This Row],[2024/25 Total change]]","v":4461},{"$f":"Dataset[[#This Row],[2025/26 Baseline]]+Dataset[[#This Row],[2025/26 Total change]]","v":4661},{"$f":"Dataset[[#This Row],[2026/27 Baseline]]+Dataset[[#This Row],[2026/27 Total change]]","v":4875}]
["NAT|Non-transfer item","26|Heritage assets","2024_25","MTEF2024",26,3,1,44652,765,"26","03","01","044652","000765","26|03|01","02","03","13","58","62","02|03|13|58|62","National","Military Veterans","Empowerment and Stakeholder Management","Provincial Offices and Stakeholder Relations","Non-transfer item","Capital","Payments for capital assets","Heritage assets","Heritage assets","Heritage assets","Peace and security","Defence and state security","NAT",0,0,0,0,0,0,0,0,0,0,0,null,null,null,null,null,null,null,null,null,null,null,null,null,null,null,null,null,null,null,null,null,null,null,null,null,null,null,null,null,null,null,null,null,null,{"$f":"Dataset[[#This Row],[2024/25 From - Spending review Topic 1]]+Dataset[[#This Row],[2024/25 From - Spending review Topic 2]]+Dataset[[#This Row],[2024/25 From - Spending review Topic 3]]+Dataset[[#This Row],[2024/25 From - Spending review Topic 4]]+Dataset[[#This Row],[2024/25 From - Other reallocations]]","v":0},{"$f":"Dataset[[#This Row],[2025/26 From - Spending review Topic 1]]+Dataset[[#This Row],[2025/26 From - Spending review Topic 2]]+Dataset[[#This Row],[2025/26 From - Spending review Topic 3]]+Dataset[[#This Row],[2025/26 From - Spending review Topic 4]]+Dataset[[#This Row],[2025/26 From - Other reallocations]]","v":0},{"$f":"Dataset[[#This Row],[2026/27 From - Spending review Topic 1]]+Dataset[[#This Row],[2026/27 From - Spending review Topic 2]]+Dataset[[#This Row],[2026/27 From - Spending review Topic 3]]+Dataset[[#This Row],[2026/27 From - Spending review Topic 4]]+Dataset[[#This Row],[2026/27 From - Other reallocations]]","v":0},{"$f":"Dataset[[#This Row],[2024/25 To - Spending review Topic 1]]+Dataset[[#This Row],[2024/25 To - Spending review Topic 2]]+Dataset[[#This Row],[2024/25 To - Spending review Topic 3]]+Dataset[[#This Row],[2024/25 To - Spending review Topic 4]]+Dataset[[#This Row],[2024/25 To - Other reallocations]]","v":0},{"$f":"Dataset[[#This Row],[2025/26 To - Spending review Topic 1]]+Dataset[[#This Row],[2025/26 To - Spending review Topic 2]]+Dataset[[#This Row],[2025/26 To - Spending review Topic 3]]+Dataset[[#This Row],[2025/26 To - Spending review Topic 4]]+Dataset[[#This Row],[2025/26 To - Other reallocations]]","v":0},{"$f":"Dataset[[#This Row],[2026/27 To - Spending review Topic 1]]+Dataset[[#This Row],[2026/27 To - Spending review Topic 2]]+Dataset[[#This Row],[2026/27 To - Spending review Topic 3]]+Dataset[[#This Row],[2026/27 To - Spending review Topic 4]]+Dataset[[#This Row],[2026/27 To - Other reallocations]]","v":0},{"$f":"Dataset[[#This Row],[2024/25 Reduction]]+Dataset[[#This Row],[2024/25 From - Total]]","v":0},{"$f":"Dataset[[#This Row],[2025/26 Reduction]]+Dataset[[#This Row],[2025/26 From - Total]]","v":0},{"$f":"Dataset[[#This Row],[2026/27 Reduction]]+Dataset[[#This Row],[2026/27 From - Total]]","v":0},{"$f":"Dataset[[#This Row],[2023/24 Reduction]]","v":0},{"$f":"SUM(Dataset[[#This Row],[2024/25 Reduction]],Dataset[[#This Row],[2024/25 From - Total]],Dataset[[#This Row],[2024/25 To - Total]])","v":0},{"$f":"SUM(Dataset[[#This Row],[2025/26 Reduction]],Dataset[[#This Row],[2025/26 From - Total]],Dataset[[#This Row],[2025/26 To - Total]])","v":0},{"$f":"SUM(Dataset[[#This Row],[2026/27 Reduction]],Dataset[[#This Row],[2026/27 From - Total]],Dataset[[#This Row],[2026/27 To - Total]])","v":0},{"$f":"Dataset[[#This Row],[2023/24 Baseline]]+Dataset[[#This Row],[2023/24 Total change]]","v":0},{"$f":"Dataset[[#This Row],[2024/25 Baseline]]+Dataset[[#This Row],[2024/25 Total change]]","v":0},{"$f":"Dataset[[#This Row],[2025/26 Baseline]]+Dataset[[#This Row],[2025/26 Total change]]","v":0},{"$f":"Dataset[[#This Row],[2026/27 Baseline]]+Dataset[[#This Row],[2026/27 Total change]]","v":0}]
["NAT|Non-transfer item","26|Specialised military assets","2024_25","MTEF2024",26,3,1,44653,766,"26","03","01","044653","000766","26|03|01","02","03","14","59","63","02|03|14|59|63","National","Military Veterans","Empowerment and Stakeholder Management","Provincial Offices and Stakeholder Relations","Non-transfer item","Capital","Payments for capital assets","Specialised military assets","Specialised military assets","Specialised military assets","Peace and security","Defence and state security","NAT",0,0,0,0,0,0,0,0,0,0,0,null,null,null,null,null,null,null,null,null,null,null,null,null,null,null,null,null,null,null,null,null,null,null,null,null,null,null,null,null,null,null,null,null,null,{"$f":"Dataset[[#This Row],[2024/25 From - Spending review Topic 1]]+Dataset[[#This Row],[2024/25 From - Spending review Topic 2]]+Dataset[[#This Row],[2024/25 From - Spending review Topic 3]]+Dataset[[#This Row],[2024/25 From - Spending review Topic 4]]+Dataset[[#This Row],[2024/25 From - Other reallocations]]","v":0},{"$f":"Dataset[[#This Row],[2025/26 From - Spending review Topic 1]]+Dataset[[#This Row],[2025/26 From - Spending review Topic 2]]+Dataset[[#This Row],[2025/26 From - Spending review Topic 3]]+Dataset[[#This Row],[2025/26 From - Spending review Topic 4]]+Dataset[[#This Row],[2025/26 From - Other reallocations]]","v":0},{"$f":"Dataset[[#This Row],[2026/27 From - Spending review Topic 1]]+Dataset[[#This Row],[2026/27 From - Spending review Topic 2]]+Dataset[[#This Row],[2026/27 From - Spending review Topic 3]]+Dataset[[#This Row],[2026/27 From - Spending review Topic 4]]+Dataset[[#This Row],[2026/27 From - Other reallocations]]","v":0},{"$f":"Dataset[[#This Row],[2024/25 To - Spending review Topic 1]]+Dataset[[#This Row],[2024/25 To - Spending review Topic 2]]+Dataset[[#This Row],[2024/25 To - Spending review Topic 3]]+Dataset[[#This Row],[2024/25 To - Spending review Topic 4]]+Dataset[[#This Row],[2024/25 To - Other reallocations]]","v":0},{"$f":"Dataset[[#This Row],[2025/26 To - Spending review Topic 1]]+Dataset[[#This Row],[2025/26 To - Spending review Topic 2]]+Dataset[[#This Row],[2025/26 To - Spending review Topic 3]]+Dataset[[#This Row],[2025/26 To - Spending review Topic 4]]+Dataset[[#This Row],[2025/26 To - Other reallocations]]","v":0},{"$f":"Dataset[[#This Row],[2026/27 To - Spending review Topic 1]]+Dataset[[#This Row],[2026/27 To - Spending review Topic 2]]+Dataset[[#This Row],[2026/27 To - Spending review Topic 3]]+Dataset[[#This Row],[2026/27 To - Spending review Topic 4]]+Dataset[[#This Row],[2026/27 To - Other reallocations]]","v":0},{"$f":"Dataset[[#This Row],[2024/25 Reduction]]+Dataset[[#This Row],[2024/25 From - Total]]","v":0},{"$f":"Dataset[[#This Row],[2025/26 Reduction]]+Dataset[[#This Row],[2025/26 From - Total]]","v":0},{"$f":"Dataset[[#This Row],[2026/27 Reduction]]+Dataset[[#This Row],[2026/27 From - Total]]","v":0},{"$f":"Dataset[[#This Row],[2023/24 Reduction]]","v":0},{"$f":"SUM(Dataset[[#This Row],[2024/25 Reduction]],Dataset[[#This Row],[2024/25 From - Total]],Dataset[[#This Row],[2024/25 To - Total]])","v":0},{"$f":"SUM(Dataset[[#This Row],[2025/26 Reduction]],Dataset[[#This Row],[2025/26 From - Total]],Dataset[[#This Row],[2025/26 To - Total]])","v":0},{"$f":"SUM(Dataset[[#This Row],[2026/27 Reduction]],Dataset[[#This Row],[2026/27 From - Total]],Dataset[[#This Row],[2026/27 To - Total]])","v":0},{"$f":"Dataset[[#This Row],[2023/24 Baseline]]+Dataset[[#This Row],[2023/24 Total change]]","v":0},{"$f":"Dataset[[#This Row],[2024/25 Baseline]]+Dataset[[#This Row],[2024/25 Total change]]","v":0},{"$f":"Dataset[[#This Row],[2025/26 Baseline]]+Dataset[[#This Row],[2025/26 Total change]]","v":0},{"$f":"Dataset[[#This Row],[2026/27 Baseline]]+Dataset[[#This Row],[2026/27 Total change]]","v":0}]
["NAT|Non-transfer item","26|Biological assets","2024_25","MTEF2024",26,3,1,44654,767,"26","03","01","044654","000767","26|03|01","02","03","15","60","64","02|03|15|60|64","National","Military Veterans","Empowerment and Stakeholder Management","Provincial Offices and Stakeholder Relations","Non-transfer item","Capital","Payments for capital assets","Biological assets","Biological assets","Biological assets","Peace and security","Defence and state security","NAT",0,0,0,0,0,0,0,0,0,0,0,null,null,null,null,null,null,null,null,null,null,null,null,null,null,null,null,null,null,null,null,null,null,null,null,null,null,null,null,null,null,null,null,null,null,{"$f":"Dataset[[#This Row],[2024/25 From - Spending review Topic 1]]+Dataset[[#This Row],[2024/25 From - Spending review Topic 2]]+Dataset[[#This Row],[2024/25 From - Spending review Topic 3]]+Dataset[[#This Row],[2024/25 From - Spending review Topic 4]]+Dataset[[#This Row],[2024/25 From - Other reallocations]]","v":0},{"$f":"Dataset[[#This Row],[2025/26 From - Spending review Topic 1]]+Dataset[[#This Row],[2025/26 From - Spending review Topic 2]]+Dataset[[#This Row],[2025/26 From - Spending review Topic 3]]+Dataset[[#This Row],[2025/26 From - Spending review Topic 4]]+Dataset[[#This Row],[2025/26 From - Other reallocations]]","v":0},{"$f":"Dataset[[#This Row],[2026/27 From - Spending review Topic 1]]+Dataset[[#This Row],[2026/27 From - Spending review Topic 2]]+Dataset[[#This Row],[2026/27 From - Spending review Topic 3]]+Dataset[[#This Row],[2026/27 From - Spending review Topic 4]]+Dataset[[#This Row],[2026/27 From - Other reallocations]]","v":0},{"$f":"Dataset[[#This Row],[2024/25 To - Spending review Topic 1]]+Dataset[[#This Row],[2024/25 To - Spending review Topic 2]]+Dataset[[#This Row],[2024/25 To - Spending review Topic 3]]+Dataset[[#This Row],[2024/25 To - Spending review Topic 4]]+Dataset[[#This Row],[2024/25 To - Other reallocations]]","v":0},{"$f":"Dataset[[#This Row],[2025/26 To - Spending review Topic 1]]+Dataset[[#This Row],[2025/26 To - Spending review Topic 2]]+Dataset[[#This Row],[2025/26 To - Spending review Topic 3]]+Dataset[[#This Row],[2025/26 To - Spending review Topic 4]]+Dataset[[#This Row],[2025/26 To - Other reallocations]]","v":0},{"$f":"Dataset[[#This Row],[2026/27 To - Spending review Topic 1]]+Dataset[[#This Row],[2026/27 To - Spending review Topic 2]]+Dataset[[#This Row],[2026/27 To - Spending review Topic 3]]+Dataset[[#This Row],[2026/27 To - Spending review Topic 4]]+Dataset[[#This Row],[2026/27 To - Other reallocations]]","v":0},{"$f":"Dataset[[#This Row],[2024/25 Reduction]]+Dataset[[#This Row],[2024/25 From - Total]]","v":0},{"$f":"Dataset[[#This Row],[2025/26 Reduction]]+Dataset[[#This Row],[2025/26 From - Total]]","v":0},{"$f":"Dataset[[#This Row],[2026/27 Reduction]]+Dataset[[#This Row],[2026/27 From - Total]]","v":0},{"$f":"Dataset[[#This Row],[2023/24 Reduction]]","v":0},{"$f":"SUM(Dataset[[#This Row],[2024/25 Reduction]],Dataset[[#This Row],[2024/25 From - Total]],Dataset[[#This Row],[2024/25 To - Total]])","v":0},{"$f":"SUM(Dataset[[#This Row],[2025/26 Reduction]],Dataset[[#This Row],[2025/26 From - Total]],Dataset[[#This Row],[2025/26 To - Total]])","v":0},{"$f":"SUM(Dataset[[#This Row],[2026/27 Reduction]],Dataset[[#This Row],[2026/27 From - Total]],Dataset[[#This Row],[2026/27 To - Total]])","v":0},{"$f":"Dataset[[#This Row],[2023/24 Baseline]]+Dataset[[#This Row],[2023/24 Total change]]","v":0},{"$f":"Dataset[[#This Row],[2024/25 Baseline]]+Dataset[[#This Row],[2024/25 Total change]]","v":0},{"$f":"Dataset[[#This Row],[2025/26 Baseline]]+Dataset[[#This Row],[2025/26 Total change]]","v":0},{"$f":"Dataset[[#This Row],[2026/27 Baseline]]+Dataset[[#This Row],[2026/27 Total change]]","v":0}]
["NAT|Non-transfer item","26|Land and sub-soil assets","2024_25","MTEF2024",26,3,1,44655,768,"26","03","01","044655","000768","26|03|01","02","03","16","61","65","02|03|16|61|65","National","Military Veterans","Empowerment and Stakeholder Management","Provincial Offices and Stakeholder Relations","Non-transfer item","Capital","Payments for capital assets","Land and sub-soil assets","Land and sub-soil assets","Land and sub-soil assets","Peace and security","Defence and state security","NAT",0,0,0,0,0,0,0,0,0,0,0,null,null,null,null,null,null,null,null,null,null,null,null,null,null,null,null,null,null,null,null,null,null,null,null,null,null,null,null,null,null,null,null,null,null,{"$f":"Dataset[[#This Row],[2024/25 From - Spending review Topic 1]]+Dataset[[#This Row],[2024/25 From - Spending review Topic 2]]+Dataset[[#This Row],[2024/25 From - Spending review Topic 3]]+Dataset[[#This Row],[2024/25 From - Spending review Topic 4]]+Dataset[[#This Row],[2024/25 From - Other reallocations]]","v":0},{"$f":"Dataset[[#This Row],[2025/26 From - Spending review Topic 1]]+Dataset[[#This Row],[2025/26 From - Spending review Topic 2]]+Dataset[[#This Row],[2025/26 From - Spending review Topic 3]]+Dataset[[#This Row],[2025/26 From - Spending review Topic 4]]+Dataset[[#This Row],[2025/26 From - Other reallocations]]","v":0},{"$f":"Dataset[[#This Row],[2026/27 From - Spending review Topic 1]]+Dataset[[#This Row],[2026/27 From - Spending review Topic 2]]+Dataset[[#This Row],[2026/27 From - Spending review Topic 3]]+Dataset[[#This Row],[2026/27 From - Spending review Topic 4]]+Dataset[[#This Row],[2026/27 From - Other reallocations]]","v":0},{"$f":"Dataset[[#This Row],[2024/25 To - Spending review Topic 1]]+Dataset[[#This Row],[2024/25 To - Spending review Topic 2]]+Dataset[[#This Row],[2024/25 To - Spending review Topic 3]]+Dataset[[#This Row],[2024/25 To - Spending review Topic 4]]+Dataset[[#This Row],[2024/25 To - Other reallocations]]","v":0},{"$f":"Dataset[[#This Row],[2025/26 To - Spending review Topic 1]]+Dataset[[#This Row],[2025/26 To - Spending review Topic 2]]+Dataset[[#This Row],[2025/26 To - Spending review Topic 3]]+Dataset[[#This Row],[2025/26 To - Spending review Topic 4]]+Dataset[[#This Row],[2025/26 To - Other reallocations]]","v":0},{"$f":"Dataset[[#This Row],[2026/27 To - Spending review Topic 1]]+Dataset[[#This Row],[2026/27 To - Spending review Topic 2]]+Dataset[[#This Row],[2026/27 To - Spending review Topic 3]]+Dataset[[#This Row],[2026/27 To - Spending review Topic 4]]+Dataset[[#This Row],[2026/27 To - Other reallocations]]","v":0},{"$f":"Dataset[[#This Row],[2024/25 Reduction]]+Dataset[[#This Row],[2024/25 From - Total]]","v":0},{"$f":"Dataset[[#This Row],[2025/26 Reduction]]+Dataset[[#This Row],[2025/26 From - Total]]","v":0},{"$f":"Dataset[[#This Row],[2026/27 Reduction]]+Dataset[[#This Row],[2026/27 From - Total]]","v":0},{"$f":"Dataset[[#This Row],[2023/24 Reduction]]","v":0},{"$f":"SUM(Dataset[[#This Row],[2024/25 Reduction]],Dataset[[#This Row],[2024/25 From - Total]],Dataset[[#This Row],[2024/25 To - Total]])","v":0},{"$f":"SUM(Dataset[[#This Row],[2025/26 Reduction]],Dataset[[#This Row],[2025/26 From - Total]],Dataset[[#This Row],[2025/26 To - Total]])","v":0},{"$f":"SUM(Dataset[[#This Row],[2026/27 Reduction]],Dataset[[#This Row],[2026/27 From - Total]],Dataset[[#This Row],[2026/27 To - Total]])","v":0},{"$f":"Dataset[[#This Row],[2023/24 Baseline]]+Dataset[[#This Row],[2023/24 Total change]]","v":0},{"$f":"Dataset[[#This Row],[2024/25 Baseline]]+Dataset[[#This Row],[2024/25 Total change]]","v":0},{"$f":"Dataset[[#This Row],[2025/26 Baseline]]+Dataset[[#This Row],[2025/26 Total change]]","v":0},{"$f":"Dataset[[#This Row],[2026/27 Baseline]]+Dataset[[#This Row],[2026/27 Total change]]","v":0}]
["NAT|Non-transfer item","26|Software and other intangible assets","2024_25","MTEF2024",26,3,1,44656,769,"26","03","01","044656","000769","26|03|01","02","03","17","62","66","02|03|17|62|66","National","Military Veterans","Empowerment and Stakeholder Management","Provincial Offices and Stakeholder Relations","Non-transfer item","Capital","Payments for capital assets","Software and other intangible assets","Software and other intangible assets","Software and other intangible assets","Peace and security","Defence and state security","NAT",0,0,0,0,0,0,0,0,0,0,0,null,null,null,null,null,null,null,null,null,null,null,null,null,null,null,null,null,null,null,null,null,null,null,null,null,null,null,null,null,null,null,null,null,null,{"$f":"Dataset[[#This Row],[2024/25 From - Spending review Topic 1]]+Dataset[[#This Row],[2024/25 From - Spending review Topic 2]]+Dataset[[#This Row],[2024/25 From - Spending review Topic 3]]+Dataset[[#This Row],[2024/25 From - Spending review Topic 4]]+Dataset[[#This Row],[2024/25 From - Other reallocations]]","v":0},{"$f":"Dataset[[#This Row],[2025/26 From - Spending review Topic 1]]+Dataset[[#This Row],[2025/26 From - Spending review Topic 2]]+Dataset[[#This Row],[2025/26 From - Spending review Topic 3]]+Dataset[[#This Row],[2025/26 From - Spending review Topic 4]]+Dataset[[#This Row],[2025/26 From - Other reallocations]]","v":0},{"$f":"Dataset[[#This Row],[2026/27 From - Spending review Topic 1]]+Dataset[[#This Row],[2026/27 From - Spending review Topic 2]]+Dataset[[#This Row],[2026/27 From - Spending review Topic 3]]+Dataset[[#This Row],[2026/27 From - Spending review Topic 4]]+Dataset[[#This Row],[2026/27 From - Other reallocations]]","v":0},{"$f":"Dataset[[#This Row],[2024/25 To - Spending review Topic 1]]+Dataset[[#This Row],[2024/25 To - Spending review Topic 2]]+Dataset[[#This Row],[2024/25 To - Spending review Topic 3]]+Dataset[[#This Row],[2024/25 To - Spending review Topic 4]]+Dataset[[#This Row],[2024/25 To - Other reallocations]]","v":0},{"$f":"Dataset[[#This Row],[2025/26 To - Spending review Topic 1]]+Dataset[[#This Row],[2025/26 To - Spending review Topic 2]]+Dataset[[#This Row],[2025/26 To - Spending review Topic 3]]+Dataset[[#This Row],[2025/26 To - Spending review Topic 4]]+Dataset[[#This Row],[2025/26 To - Other reallocations]]","v":0},{"$f":"Dataset[[#This Row],[2026/27 To - Spending review Topic 1]]+Dataset[[#This Row],[2026/27 To - Spending review Topic 2]]+Dataset[[#This Row],[2026/27 To - Spending review Topic 3]]+Dataset[[#This Row],[2026/27 To - Spending review Topic 4]]+Dataset[[#This Row],[2026/27 To - Other reallocations]]","v":0},{"$f":"Dataset[[#This Row],[2024/25 Reduction]]+Dataset[[#This Row],[2024/25 From - Total]]","v":0},{"$f":"Dataset[[#This Row],[2025/26 Reduction]]+Dataset[[#This Row],[2025/26 From - Total]]","v":0},{"$f":"Dataset[[#This Row],[2026/27 Reduction]]+Dataset[[#This Row],[2026/27 From - Total]]","v":0},{"$f":"Dataset[[#This Row],[2023/24 Reduction]]","v":0},{"$f":"SUM(Dataset[[#This Row],[2024/25 Reduction]],Dataset[[#This Row],[2024/25 From - Total]],Dataset[[#This Row],[2024/25 To - Total]])","v":0},{"$f":"SUM(Dataset[[#This Row],[2025/26 Reduction]],Dataset[[#This Row],[2025/26 From - Total]],Dataset[[#This Row],[2025/26 To - Total]])","v":0},{"$f":"SUM(Dataset[[#This Row],[2026/27 Reduction]],Dataset[[#This Row],[2026/27 From - Total]],Dataset[[#This Row],[2026/27 To - Total]])","v":0},{"$f":"Dataset[[#This Row],[2023/24 Baseline]]+Dataset[[#This Row],[2023/24 Total change]]","v":0},{"$f":"Dataset[[#This Row],[2024/25 Baseline]]+Dataset[[#This Row],[2024/25 Total change]]","v":0},{"$f":"Dataset[[#This Row],[2025/26 Baseline]]+Dataset[[#This Row],[2025/26 Total change]]","v":0},{"$f":"Dataset[[#This Row],[2026/27 Baseline]]+Dataset[[#This Row],[2026/27 Total change]]","v":0}]
["NAT|Thefts and losses","26|Payments for financial assets","2024_25","MTEF2024",26,3,1,44657,770,"26","03","01","044657","000770","26|03|01","03","04","18","63","67","03|04|18|63|67","National","Military Veterans","Empowerment and Stakeholder Management","Provincial Offices and Stakeholder Relations","Thefts and losses","Payments for financial assets","Payments for financial assets","Payments for financial assets","Payments for financial assets","Payments for financial assets","Peace and security","Defence and state security","NAT",0,4444,0,0,0,0,0,0,0,0,0,null,null,null,null,null,null,null,null,null,null,null,null,null,null,null,null,null,null,null,null,null,null,null,null,null,null,null,null,null,null,null,null,null,null,{"$f":"Dataset[[#This Row],[2024/25 From - Spending review Topic 1]]+Dataset[[#This Row],[2024/25 From - Spending review Topic 2]]+Dataset[[#This Row],[2024/25 From - Spending review Topic 3]]+Dataset[[#This Row],[2024/25 From - Spending review Topic 4]]+Dataset[[#This Row],[2024/25 From - Other reallocations]]","v":0},{"$f":"Dataset[[#This Row],[2025/26 From - Spending review Topic 1]]+Dataset[[#This Row],[2025/26 From - Spending review Topic 2]]+Dataset[[#This Row],[2025/26 From - Spending review Topic 3]]+Dataset[[#This Row],[2025/26 From - Spending review Topic 4]]+Dataset[[#This Row],[2025/26 From - Other reallocations]]","v":0},{"$f":"Dataset[[#This Row],[2026/27 From - Spending review Topic 1]]+Dataset[[#This Row],[2026/27 From - Spending review Topic 2]]+Dataset[[#This Row],[2026/27 From - Spending review Topic 3]]+Dataset[[#This Row],[2026/27 From - Spending review Topic 4]]+Dataset[[#This Row],[2026/27 From - Other reallocations]]","v":0},{"$f":"Dataset[[#This Row],[2024/25 To - Spending review Topic 1]]+Dataset[[#This Row],[2024/25 To - Spending review Topic 2]]+Dataset[[#This Row],[2024/25 To - Spending review Topic 3]]+Dataset[[#This Row],[2024/25 To - Spending review Topic 4]]+Dataset[[#This Row],[2024/25 To - Other reallocations]]","v":0},{"$f":"Dataset[[#This Row],[2025/26 To - Spending review Topic 1]]+Dataset[[#This Row],[2025/26 To - Spending review Topic 2]]+Dataset[[#This Row],[2025/26 To - Spending review Topic 3]]+Dataset[[#This Row],[2025/26 To - Spending review Topic 4]]+Dataset[[#This Row],[2025/26 To - Other reallocations]]","v":0},{"$f":"Dataset[[#This Row],[2026/27 To - Spending review Topic 1]]+Dataset[[#This Row],[2026/27 To - Spending review Topic 2]]+Dataset[[#This Row],[2026/27 To - Spending review Topic 3]]+Dataset[[#This Row],[2026/27 To - Spending review Topic 4]]+Dataset[[#This Row],[2026/27 To - Other reallocations]]","v":0},{"$f":"Dataset[[#This Row],[2024/25 Reduction]]+Dataset[[#This Row],[2024/25 From - Total]]","v":0},{"$f":"Dataset[[#This Row],[2025/26 Reduction]]+Dataset[[#This Row],[2025/26 From - Total]]","v":0},{"$f":"Dataset[[#This Row],[2026/27 Reduction]]+Dataset[[#This Row],[2026/27 From - Total]]","v":0},{"$f":"Dataset[[#This Row],[2023/24 Reduction]]","v":0},{"$f":"SUM(Dataset[[#This Row],[2024/25 Reduction]],Dataset[[#This Row],[2024/25 From - Total]],Dataset[[#This Row],[2024/25 To - Total]])","v":0},{"$f":"SUM(Dataset[[#This Row],[2025/26 Reduction]],Dataset[[#This Row],[2025/26 From - Total]],Dataset[[#This Row],[2025/26 To - Total]])","v":0},{"$f":"SUM(Dataset[[#This Row],[2026/27 Reduction]],Dataset[[#This Row],[2026/27 From - Total]],Dataset[[#This Row],[2026/27 To - Total]])","v":0},{"$f":"Dataset[[#This Row],[2023/24 Baseline]]+Dataset[[#This Row],[2023/24 Total change]]","v":0},{"$f":"Dataset[[#This Row],[2024/25 Baseline]]+Dataset[[#This Row],[2024/25 Total change]]","v":0},{"$f":"Dataset[[#This Row],[2025/26 Baseline]]+Dataset[[#This Row],[2025/26 Total change]]","v":0},{"$f":"Dataset[[#This Row],[2026/27 Baseline]]+Dataset[[#This Row],[2026/27 Total change]]","v":0}]
["NAT|Non-transfer item","26|Salaries and wages","2024_25","MTEF2024",26,3,2,44658,771,"26","03","02","044658","000771","26|03|02","01","01","01","01","01","01|01|01|01|01","National","Military Veterans","Empowerment and Stakeholder Management","Empowerment and Skills Development","Non-transfer item","Current","Current payments","Compensation of employees","Salaries and wages","Salaries and wages","Peace and security","Defence and state security","NAT",7940,8238,7956,1354,7765,7765,0,11686,11739,11796,12336,null,null,null,null,null,null,null,null,null,null,null,null,null,null,null,null,null,null,null,null,null,null,null,null,null,null,null,null,null,null,null,null,null,null,{"$f":"Dataset[[#This Row],[2024/25 From - Spending review Topic 1]]+Dataset[[#This Row],[2024/25 From - Spending review Topic 2]]+Dataset[[#This Row],[2024/25 From - Spending review Topic 3]]+Dataset[[#This Row],[2024/25 From - Spending review Topic 4]]+Dataset[[#This Row],[2024/25 From - Other reallocations]]","v":0},{"$f":"Dataset[[#This Row],[2025/26 From - Spending review Topic 1]]+Dataset[[#This Row],[2025/26 From - Spending review Topic 2]]+Dataset[[#This Row],[2025/26 From - Spending review Topic 3]]+Dataset[[#This Row],[2025/26 From - Spending review Topic 4]]+Dataset[[#This Row],[2025/26 From - Other reallocations]]","v":0},{"$f":"Dataset[[#This Row],[2026/27 From - Spending review Topic 1]]+Dataset[[#This Row],[2026/27 From - Spending review Topic 2]]+Dataset[[#This Row],[2026/27 From - Spending review Topic 3]]+Dataset[[#This Row],[2026/27 From - Spending review Topic 4]]+Dataset[[#This Row],[2026/27 From - Other reallocations]]","v":0},{"$f":"Dataset[[#This Row],[2024/25 To - Spending review Topic 1]]+Dataset[[#This Row],[2024/25 To - Spending review Topic 2]]+Dataset[[#This Row],[2024/25 To - Spending review Topic 3]]+Dataset[[#This Row],[2024/25 To - Spending review Topic 4]]+Dataset[[#This Row],[2024/25 To - Other reallocations]]","v":0},{"$f":"Dataset[[#This Row],[2025/26 To - Spending review Topic 1]]+Dataset[[#This Row],[2025/26 To - Spending review Topic 2]]+Dataset[[#This Row],[2025/26 To - Spending review Topic 3]]+Dataset[[#This Row],[2025/26 To - Spending review Topic 4]]+Dataset[[#This Row],[2025/26 To - Other reallocations]]","v":0},{"$f":"Dataset[[#This Row],[2026/27 To - Spending review Topic 1]]+Dataset[[#This Row],[2026/27 To - Spending review Topic 2]]+Dataset[[#This Row],[2026/27 To - Spending review Topic 3]]+Dataset[[#This Row],[2026/27 To - Spending review Topic 4]]+Dataset[[#This Row],[2026/27 To - Other reallocations]]","v":0},{"$f":"Dataset[[#This Row],[2024/25 Reduction]]+Dataset[[#This Row],[2024/25 From - Total]]","v":0},{"$f":"Dataset[[#This Row],[2025/26 Reduction]]+Dataset[[#This Row],[2025/26 From - Total]]","v":0},{"$f":"Dataset[[#This Row],[2026/27 Reduction]]+Dataset[[#This Row],[2026/27 From - Total]]","v":0},{"$f":"Dataset[[#This Row],[2023/24 Reduction]]","v":0},{"$f":"SUM(Dataset[[#This Row],[2024/25 Reduction]],Dataset[[#This Row],[2024/25 From - Total]],Dataset[[#This Row],[2024/25 To - Total]])","v":0},{"$f":"SUM(Dataset[[#This Row],[2025/26 Reduction]],Dataset[[#This Row],[2025/26 From - Total]],Dataset[[#This Row],[2025/26 To - Total]])","v":0},{"$f":"SUM(Dataset[[#This Row],[2026/27 Reduction]],Dataset[[#This Row],[2026/27 From - Total]],Dataset[[#This Row],[2026/27 To - Total]])","v":0},{"$f":"Dataset[[#This Row],[2023/24 Baseline]]+Dataset[[#This Row],[2023/24 Total change]]","v":11686},{"$f":"Dataset[[#This Row],[2024/25 Baseline]]+Dataset[[#This Row],[2024/25 Total change]]","v":11739},{"$f":"Dataset[[#This Row],[2025/26 Baseline]]+Dataset[[#This Row],[2025/26 Total change]]","v":11796},{"$f":"Dataset[[#This Row],[2026/27 Baseline]]+Dataset[[#This Row],[2026/27 Total change]]","v":12336}]
["NAT|Non-transfer item","26|Social contributions","2024_25","MTEF2024",26,3,2,44659,772,"26","03","02","044659","000772","26|03|02","01","01","01","02","02","01|01|01|02|02","National","Military Veterans","Empowerment and Stakeholder Management","Empowerment and Skills Development","Non-transfer item","Current","Current payments","Compensation of employees","Social contributions","Social contributions","Peace and security","Defence and state security","NAT",561,642,689,1003,627,627,0,1038,1083,1130,1182,null,null,null,null,null,null,null,null,null,null,null,null,null,null,null,null,null,null,null,null,null,null,null,null,null,null,null,null,null,null,null,null,null,null,{"$f":"Dataset[[#This Row],[2024/25 From - Spending review Topic 1]]+Dataset[[#This Row],[2024/25 From - Spending review Topic 2]]+Dataset[[#This Row],[2024/25 From - Spending review Topic 3]]+Dataset[[#This Row],[2024/25 From - Spending review Topic 4]]+Dataset[[#This Row],[2024/25 From - Other reallocations]]","v":0},{"$f":"Dataset[[#This Row],[2025/26 From - Spending review Topic 1]]+Dataset[[#This Row],[2025/26 From - Spending review Topic 2]]+Dataset[[#This Row],[2025/26 From - Spending review Topic 3]]+Dataset[[#This Row],[2025/26 From - Spending review Topic 4]]+Dataset[[#This Row],[2025/26 From - Other reallocations]]","v":0},{"$f":"Dataset[[#This Row],[2026/27 From - Spending review Topic 1]]+Dataset[[#This Row],[2026/27 From - Spending review Topic 2]]+Dataset[[#This Row],[2026/27 From - Spending review Topic 3]]+Dataset[[#This Row],[2026/27 From - Spending review Topic 4]]+Dataset[[#This Row],[2026/27 From - Other reallocations]]","v":0},{"$f":"Dataset[[#This Row],[2024/25 To - Spending review Topic 1]]+Dataset[[#This Row],[2024/25 To - Spending review Topic 2]]+Dataset[[#This Row],[2024/25 To - Spending review Topic 3]]+Dataset[[#This Row],[2024/25 To - Spending review Topic 4]]+Dataset[[#This Row],[2024/25 To - Other reallocations]]","v":0},{"$f":"Dataset[[#This Row],[2025/26 To - Spending review Topic 1]]+Dataset[[#This Row],[2025/26 To - Spending review Topic 2]]+Dataset[[#This Row],[2025/26 To - Spending review Topic 3]]+Dataset[[#This Row],[2025/26 To - Spending review Topic 4]]+Dataset[[#This Row],[2025/26 To - Other reallocations]]","v":0},{"$f":"Dataset[[#This Row],[2026/27 To - Spending review Topic 1]]+Dataset[[#This Row],[2026/27 To - Spending review Topic 2]]+Dataset[[#This Row],[2026/27 To - Spending review Topic 3]]+Dataset[[#This Row],[2026/27 To - Spending review Topic 4]]+Dataset[[#This Row],[2026/27 To - Other reallocations]]","v":0},{"$f":"Dataset[[#This Row],[2024/25 Reduction]]+Dataset[[#This Row],[2024/25 From - Total]]","v":0},{"$f":"Dataset[[#This Row],[2025/26 Reduction]]+Dataset[[#This Row],[2025/26 From - Total]]","v":0},{"$f":"Dataset[[#This Row],[2026/27 Reduction]]+Dataset[[#This Row],[2026/27 From - Total]]","v":0},{"$f":"Dataset[[#This Row],[2023/24 Reduction]]","v":0},{"$f":"SUM(Dataset[[#This Row],[2024/25 Reduction]],Dataset[[#This Row],[2024/25 From - Total]],Dataset[[#This Row],[2024/25 To - Total]])","v":0},{"$f":"SUM(Dataset[[#This Row],[2025/26 Reduction]],Dataset[[#This Row],[2025/26 From - Total]],Dataset[[#This Row],[2025/26 To - Total]])","v":0},{"$f":"SUM(Dataset[[#This Row],[2026/27 Reduction]],Dataset[[#This Row],[2026/27 From - Total]],Dataset[[#This Row],[2026/27 To - Total]])","v":0},{"$f":"Dataset[[#This Row],[2023/24 Baseline]]+Dataset[[#This Row],[2023/24 Total change]]","v":1038},{"$f":"Dataset[[#This Row],[2024/25 Baseline]]+Dataset[[#This Row],[2024/25 Total change]]","v":1083},{"$f":"Dataset[[#This Row],[2025/26 Baseline]]+Dataset[[#This Row],[2025/26 Total change]]","v":1130},{"$f":"Dataset[[#This Row],[2026/27 Baseline]]+Dataset[[#This Row],[2026/27 Total change]]","v":1182}]
["NAT|Non-transfer item","26|Administrative fees","2024_25","MTEF2024",26,3,2,44660,773,"26","03","02","044660","000773","26|03|02","01","01","02","03","03","01|01|02|03|03","National","Military Veterans","Empowerment and Stakeholder Management","Empowerment and Skills Development","Non-transfer item","Current","Current payments","Goods and services","Administrative fees","Administrative fees","Peace and security","Defence and state security","NAT",144,57,354,267,267,267,0,461,470,482,504,null,null,null,null,null,null,null,null,null,null,null,null,null,null,null,null,null,null,null,null,null,null,null,null,null,null,null,null,null,null,null,null,null,null,{"$f":"Dataset[[#This Row],[2024/25 From - Spending review Topic 1]]+Dataset[[#This Row],[2024/25 From - Spending review Topic 2]]+Dataset[[#This Row],[2024/25 From - Spending review Topic 3]]+Dataset[[#This Row],[2024/25 From - Spending review Topic 4]]+Dataset[[#This Row],[2024/25 From - Other reallocations]]","v":0},{"$f":"Dataset[[#This Row],[2025/26 From - Spending review Topic 1]]+Dataset[[#This Row],[2025/26 From - Spending review Topic 2]]+Dataset[[#This Row],[2025/26 From - Spending review Topic 3]]+Dataset[[#This Row],[2025/26 From - Spending review Topic 4]]+Dataset[[#This Row],[2025/26 From - Other reallocations]]","v":0},{"$f":"Dataset[[#This Row],[2026/27 From - Spending review Topic 1]]+Dataset[[#This Row],[2026/27 From - Spending review Topic 2]]+Dataset[[#This Row],[2026/27 From - Spending review Topic 3]]+Dataset[[#This Row],[2026/27 From - Spending review Topic 4]]+Dataset[[#This Row],[2026/27 From - Other reallocations]]","v":0},{"$f":"Dataset[[#This Row],[2024/25 To - Spending review Topic 1]]+Dataset[[#This Row],[2024/25 To - Spending review Topic 2]]+Dataset[[#This Row],[2024/25 To - Spending review Topic 3]]+Dataset[[#This Row],[2024/25 To - Spending review Topic 4]]+Dataset[[#This Row],[2024/25 To - Other reallocations]]","v":0},{"$f":"Dataset[[#This Row],[2025/26 To - Spending review Topic 1]]+Dataset[[#This Row],[2025/26 To - Spending review Topic 2]]+Dataset[[#This Row],[2025/26 To - Spending review Topic 3]]+Dataset[[#This Row],[2025/26 To - Spending review Topic 4]]+Dataset[[#This Row],[2025/26 To - Other reallocations]]","v":0},{"$f":"Dataset[[#This Row],[2026/27 To - Spending review Topic 1]]+Dataset[[#This Row],[2026/27 To - Spending review Topic 2]]+Dataset[[#This Row],[2026/27 To - Spending review Topic 3]]+Dataset[[#This Row],[2026/27 To - Spending review Topic 4]]+Dataset[[#This Row],[2026/27 To - Other reallocations]]","v":0},{"$f":"Dataset[[#This Row],[2024/25 Reduction]]+Dataset[[#This Row],[2024/25 From - Total]]","v":0},{"$f":"Dataset[[#This Row],[2025/26 Reduction]]+Dataset[[#This Row],[2025/26 From - Total]]","v":0},{"$f":"Dataset[[#This Row],[2026/27 Reduction]]+Dataset[[#This Row],[2026/27 From - Total]]","v":0},{"$f":"Dataset[[#This Row],[2023/24 Reduction]]","v":0},{"$f":"SUM(Dataset[[#This Row],[2024/25 Reduction]],Dataset[[#This Row],[2024/25 From - Total]],Dataset[[#This Row],[2024/25 To - Total]])","v":0},{"$f":"SUM(Dataset[[#This Row],[2025/26 Reduction]],Dataset[[#This Row],[2025/26 From - Total]],Dataset[[#This Row],[2025/26 To - Total]])","v":0},{"$f":"SUM(Dataset[[#This Row],[2026/27 Reduction]],Dataset[[#This Row],[2026/27 From - Total]],Dataset[[#This Row],[2026/27 To - Total]])","v":0},{"$f":"Dataset[[#This Row],[2023/24 Baseline]]+Dataset[[#This Row],[2023/24 Total change]]","v":461},{"$f":"Dataset[[#This Row],[2024/25 Baseline]]+Dataset[[#This Row],[2024/25 Total change]]","v":470},{"$f":"Dataset[[#This Row],[2025/26 Baseline]]+Dataset[[#This Row],[2025/26 Total change]]","v":482},{"$f":"Dataset[[#This Row],[2026/27 Baseline]]+Dataset[[#This Row],[2026/27 Total change]]","v":504}]
["NAT|Non-transfer item","26|Advertising","2024_25","MTEF2024",26,3,2,44661,774,"26","03","02","044661","000774","26|03|02","01","01","02","04","04","01|01|02|04|04","National","Military Veterans","Empowerment and Stakeholder Management","Empowerment and Skills Development","Non-transfer item","Current","Current payments","Goods and services","Advertising","Advertising","Peace and security","Defence and state security","NAT",0,0,0,2720,2720,2720,0,668,775,899,940,null,null,null,null,null,null,null,null,null,null,null,null,null,null,null,null,null,null,null,null,null,null,null,null,null,null,null,null,null,null,null,null,null,null,{"$f":"Dataset[[#This Row],[2024/25 From - Spending review Topic 1]]+Dataset[[#This Row],[2024/25 From - Spending review Topic 2]]+Dataset[[#This Row],[2024/25 From - Spending review Topic 3]]+Dataset[[#This Row],[2024/25 From - Spending review Topic 4]]+Dataset[[#This Row],[2024/25 From - Other reallocations]]","v":0},{"$f":"Dataset[[#This Row],[2025/26 From - Spending review Topic 1]]+Dataset[[#This Row],[2025/26 From - Spending review Topic 2]]+Dataset[[#This Row],[2025/26 From - Spending review Topic 3]]+Dataset[[#This Row],[2025/26 From - Spending review Topic 4]]+Dataset[[#This Row],[2025/26 From - Other reallocations]]","v":0},{"$f":"Dataset[[#This Row],[2026/27 From - Spending review Topic 1]]+Dataset[[#This Row],[2026/27 From - Spending review Topic 2]]+Dataset[[#This Row],[2026/27 From - Spending review Topic 3]]+Dataset[[#This Row],[2026/27 From - Spending review Topic 4]]+Dataset[[#This Row],[2026/27 From - Other reallocations]]","v":0},{"$f":"Dataset[[#This Row],[2024/25 To - Spending review Topic 1]]+Dataset[[#This Row],[2024/25 To - Spending review Topic 2]]+Dataset[[#This Row],[2024/25 To - Spending review Topic 3]]+Dataset[[#This Row],[2024/25 To - Spending review Topic 4]]+Dataset[[#This Row],[2024/25 To - Other reallocations]]","v":0},{"$f":"Dataset[[#This Row],[2025/26 To - Spending review Topic 1]]+Dataset[[#This Row],[2025/26 To - Spending review Topic 2]]+Dataset[[#This Row],[2025/26 To - Spending review Topic 3]]+Dataset[[#This Row],[2025/26 To - Spending review Topic 4]]+Dataset[[#This Row],[2025/26 To - Other reallocations]]","v":0},{"$f":"Dataset[[#This Row],[2026/27 To - Spending review Topic 1]]+Dataset[[#This Row],[2026/27 To - Spending review Topic 2]]+Dataset[[#This Row],[2026/27 To - Spending review Topic 3]]+Dataset[[#This Row],[2026/27 To - Spending review Topic 4]]+Dataset[[#This Row],[2026/27 To - Other reallocations]]","v":0},{"$f":"Dataset[[#This Row],[2024/25 Reduction]]+Dataset[[#This Row],[2024/25 From - Total]]","v":0},{"$f":"Dataset[[#This Row],[2025/26 Reduction]]+Dataset[[#This Row],[2025/26 From - Total]]","v":0},{"$f":"Dataset[[#This Row],[2026/27 Reduction]]+Dataset[[#This Row],[2026/27 From - Total]]","v":0},{"$f":"Dataset[[#This Row],[2023/24 Reduction]]","v":0},{"$f":"SUM(Dataset[[#This Row],[2024/25 Reduction]],Dataset[[#This Row],[2024/25 From - Total]],Dataset[[#This Row],[2024/25 To - Total]])","v":0},{"$f":"SUM(Dataset[[#This Row],[2025/26 Reduction]],Dataset[[#This Row],[2025/26 From - Total]],Dataset[[#This Row],[2025/26 To - Total]])","v":0},{"$f":"SUM(Dataset[[#This Row],[2026/27 Reduction]],Dataset[[#This Row],[2026/27 From - Total]],Dataset[[#This Row],[2026/27 To - Total]])","v":0},{"$f":"Dataset[[#This Row],[2023/24 Baseline]]+Dataset[[#This Row],[2023/24 Total change]]","v":668},{"$f":"Dataset[[#This Row],[2024/25 Baseline]]+Dataset[[#This Row],[2024/25 Total change]]","v":775},{"$f":"Dataset[[#This Row],[2025/26 Baseline]]+Dataset[[#This Row],[2025/26 Total change]]","v":899},{"$f":"Dataset[[#This Row],[2026/27 Baseline]]+Dataset[[#This Row],[2026/27 Total change]]","v":940}]
["NAT|Non-transfer item","26|Minor assets","2024_25","MTEF2024",26,3,2,44662,775,"26","03","02","044662","000775","26|03|02","01","01","02","05","05","01|01|02|05|05","National","Military Veterans","Empowerment and Stakeholder Management","Empowerment and Skills Development","Non-transfer item","Current","Current payments","Goods and services","Minor assets","Minor assets","Peace and security","Defence and state security","NAT",0,0,0,97,97,97,0,95,99,103,108,null,null,null,null,null,null,null,null,null,null,null,null,null,null,null,null,null,null,null,null,null,null,null,null,null,null,null,null,null,null,null,null,null,null,{"$f":"Dataset[[#This Row],[2024/25 From - Spending review Topic 1]]+Dataset[[#This Row],[2024/25 From - Spending review Topic 2]]+Dataset[[#This Row],[2024/25 From - Spending review Topic 3]]+Dataset[[#This Row],[2024/25 From - Spending review Topic 4]]+Dataset[[#This Row],[2024/25 From - Other reallocations]]","v":0},{"$f":"Dataset[[#This Row],[2025/26 From - Spending review Topic 1]]+Dataset[[#This Row],[2025/26 From - Spending review Topic 2]]+Dataset[[#This Row],[2025/26 From - Spending review Topic 3]]+Dataset[[#This Row],[2025/26 From - Spending review Topic 4]]+Dataset[[#This Row],[2025/26 From - Other reallocations]]","v":0},{"$f":"Dataset[[#This Row],[2026/27 From - Spending review Topic 1]]+Dataset[[#This Row],[2026/27 From - Spending review Topic 2]]+Dataset[[#This Row],[2026/27 From - Spending review Topic 3]]+Dataset[[#This Row],[2026/27 From - Spending review Topic 4]]+Dataset[[#This Row],[2026/27 From - Other reallocations]]","v":0},{"$f":"Dataset[[#This Row],[2024/25 To - Spending review Topic 1]]+Dataset[[#This Row],[2024/25 To - Spending review Topic 2]]+Dataset[[#This Row],[2024/25 To - Spending review Topic 3]]+Dataset[[#This Row],[2024/25 To - Spending review Topic 4]]+Dataset[[#This Row],[2024/25 To - Other reallocations]]","v":0},{"$f":"Dataset[[#This Row],[2025/26 To - Spending review Topic 1]]+Dataset[[#This Row],[2025/26 To - Spending review Topic 2]]+Dataset[[#This Row],[2025/26 To - Spending review Topic 3]]+Dataset[[#This Row],[2025/26 To - Spending review Topic 4]]+Dataset[[#This Row],[2025/26 To - Other reallocations]]","v":0},{"$f":"Dataset[[#This Row],[2026/27 To - Spending review Topic 1]]+Dataset[[#This Row],[2026/27 To - Spending review Topic 2]]+Dataset[[#This Row],[2026/27 To - Spending review Topic 3]]+Dataset[[#This Row],[2026/27 To - Spending review Topic 4]]+Dataset[[#This Row],[2026/27 To - Other reallocations]]","v":0},{"$f":"Dataset[[#This Row],[2024/25 Reduction]]+Dataset[[#This Row],[2024/25 From - Total]]","v":0},{"$f":"Dataset[[#This Row],[2025/26 Reduction]]+Dataset[[#This Row],[2025/26 From - Total]]","v":0},{"$f":"Dataset[[#This Row],[2026/27 Reduction]]+Dataset[[#This Row],[2026/27 From - Total]]","v":0},{"$f":"Dataset[[#This Row],[2023/24 Reduction]]","v":0},{"$f":"SUM(Dataset[[#This Row],[2024/25 Reduction]],Dataset[[#This Row],[2024/25 From - Total]],Dataset[[#This Row],[2024/25 To - Total]])","v":0},{"$f":"SUM(Dataset[[#This Row],[2025/26 Reduction]],Dataset[[#This Row],[2025/26 From - Total]],Dataset[[#This Row],[2025/26 To - Total]])","v":0},{"$f":"SUM(Dataset[[#This Row],[2026/27 Reduction]],Dataset[[#This Row],[2026/27 From - Total]],Dataset[[#This Row],[2026/27 To - Total]])","v":0},{"$f":"Dataset[[#This Row],[2023/24 Baseline]]+Dataset[[#This Row],[2023/24 Total change]]","v":95},{"$f":"Dataset[[#This Row],[2024/25 Baseline]]+Dataset[[#This Row],[2024/25 Total change]]","v":99},{"$f":"Dataset[[#This Row],[2025/26 Baseline]]+Dataset[[#This Row],[2025/26 Total change]]","v":103},{"$f":"Dataset[[#This Row],[2026/27 Baseline]]+Dataset[[#This Row],[2026/27 Total change]]","v":108}]
["NAT|Non-transfer item","26|Audit costs: External","2024_25","MTEF2024",26,3,2,44663,776,"26","03","02","044663","000776","26|03|02","01","01","02","06","06","01|01|02|06|06","National","Military Veterans","Empowerment and Stakeholder Management","Empowerment and Skills Development","Non-transfer item","Current","Current payments","Goods and services","Audit costs: External","Audit costs: External","Peace and security","Defence and state security","NAT",0,0,0,0,0,0,0,0,0,0,0,null,null,null,null,null,null,null,null,null,null,null,null,null,null,null,null,null,null,null,null,null,null,null,null,null,null,null,null,null,null,null,null,null,null,{"$f":"Dataset[[#This Row],[2024/25 From - Spending review Topic 1]]+Dataset[[#This Row],[2024/25 From - Spending review Topic 2]]+Dataset[[#This Row],[2024/25 From - Spending review Topic 3]]+Dataset[[#This Row],[2024/25 From - Spending review Topic 4]]+Dataset[[#This Row],[2024/25 From - Other reallocations]]","v":0},{"$f":"Dataset[[#This Row],[2025/26 From - Spending review Topic 1]]+Dataset[[#This Row],[2025/26 From - Spending review Topic 2]]+Dataset[[#This Row],[2025/26 From - Spending review Topic 3]]+Dataset[[#This Row],[2025/26 From - Spending review Topic 4]]+Dataset[[#This Row],[2025/26 From - Other reallocations]]","v":0},{"$f":"Dataset[[#This Row],[2026/27 From - Spending review Topic 1]]+Dataset[[#This Row],[2026/27 From - Spending review Topic 2]]+Dataset[[#This Row],[2026/27 From - Spending review Topic 3]]+Dataset[[#This Row],[2026/27 From - Spending review Topic 4]]+Dataset[[#This Row],[2026/27 From - Other reallocations]]","v":0},{"$f":"Dataset[[#This Row],[2024/25 To - Spending review Topic 1]]+Dataset[[#This Row],[2024/25 To - Spending review Topic 2]]+Dataset[[#This Row],[2024/25 To - Spending review Topic 3]]+Dataset[[#This Row],[2024/25 To - Spending review Topic 4]]+Dataset[[#This Row],[2024/25 To - Other reallocations]]","v":0},{"$f":"Dataset[[#This Row],[2025/26 To - Spending review Topic 1]]+Dataset[[#This Row],[2025/26 To - Spending review Topic 2]]+Dataset[[#This Row],[2025/26 To - Spending review Topic 3]]+Dataset[[#This Row],[2025/26 To - Spending review Topic 4]]+Dataset[[#This Row],[2025/26 To - Other reallocations]]","v":0},{"$f":"Dataset[[#This Row],[2026/27 To - Spending review Topic 1]]+Dataset[[#This Row],[2026/27 To - Spending review Topic 2]]+Dataset[[#This Row],[2026/27 To - Spending review Topic 3]]+Dataset[[#This Row],[2026/27 To - Spending review Topic 4]]+Dataset[[#This Row],[2026/27 To - Other reallocations]]","v":0},{"$f":"Dataset[[#This Row],[2024/25 Reduction]]+Dataset[[#This Row],[2024/25 From - Total]]","v":0},{"$f":"Dataset[[#This Row],[2025/26 Reduction]]+Dataset[[#This Row],[2025/26 From - Total]]","v":0},{"$f":"Dataset[[#This Row],[2026/27 Reduction]]+Dataset[[#This Row],[2026/27 From - Total]]","v":0},{"$f":"Dataset[[#This Row],[2023/24 Reduction]]","v":0},{"$f":"SUM(Dataset[[#This Row],[2024/25 Reduction]],Dataset[[#This Row],[2024/25 From - Total]],Dataset[[#This Row],[2024/25 To - Total]])","v":0},{"$f":"SUM(Dataset[[#This Row],[2025/26 Reduction]],Dataset[[#This Row],[2025/26 From - Total]],Dataset[[#This Row],[2025/26 To - Total]])","v":0},{"$f":"SUM(Dataset[[#This Row],[2026/27 Reduction]],Dataset[[#This Row],[2026/27 From - Total]],Dataset[[#This Row],[2026/27 To - Total]])","v":0},{"$f":"Dataset[[#This Row],[2023/24 Baseline]]+Dataset[[#This Row],[2023/24 Total change]]","v":0},{"$f":"Dataset[[#This Row],[2024/25 Baseline]]+Dataset[[#This Row],[2024/25 Total change]]","v":0},{"$f":"Dataset[[#This Row],[2025/26 Baseline]]+Dataset[[#This Row],[2025/26 Total change]]","v":0},{"$f":"Dataset[[#This Row],[2026/27 Baseline]]+Dataset[[#This Row],[2026/27 Total change]]","v":0}]
["NAT|Non-transfer item","26|Bursaries: Employees","2024_25","MTEF2024",26,3,2,44664,777,"26","03","02","044664","000777","26|03|02","01","01","02","07","07","01|01|02|07|07","National","Military Veterans","Empowerment and Stakeholder Management","Empowerment and Skills Development","Non-transfer item","Current","Current payments","Goods and services","Bursaries: Employees","Bursaries: Employees","Peace and security","Defence and state security","NAT",0,0,0,0,0,0,0,0,0,0,0,null,null,null,null,null,null,null,null,null,null,null,null,null,null,null,null,null,null,null,null,null,null,null,null,null,null,null,null,null,null,null,null,null,null,{"$f":"Dataset[[#This Row],[2024/25 From - Spending review Topic 1]]+Dataset[[#This Row],[2024/25 From - Spending review Topic 2]]+Dataset[[#This Row],[2024/25 From - Spending review Topic 3]]+Dataset[[#This Row],[2024/25 From - Spending review Topic 4]]+Dataset[[#This Row],[2024/25 From - Other reallocations]]","v":0},{"$f":"Dataset[[#This Row],[2025/26 From - Spending review Topic 1]]+Dataset[[#This Row],[2025/26 From - Spending review Topic 2]]+Dataset[[#This Row],[2025/26 From - Spending review Topic 3]]+Dataset[[#This Row],[2025/26 From - Spending review Topic 4]]+Dataset[[#This Row],[2025/26 From - Other reallocations]]","v":0},{"$f":"Dataset[[#This Row],[2026/27 From - Spending review Topic 1]]+Dataset[[#This Row],[2026/27 From - Spending review Topic 2]]+Dataset[[#This Row],[2026/27 From - Spending review Topic 3]]+Dataset[[#This Row],[2026/27 From - Spending review Topic 4]]+Dataset[[#This Row],[2026/27 From - Other reallocations]]","v":0},{"$f":"Dataset[[#This Row],[2024/25 To - Spending review Topic 1]]+Dataset[[#This Row],[2024/25 To - Spending review Topic 2]]+Dataset[[#This Row],[2024/25 To - Spending review Topic 3]]+Dataset[[#This Row],[2024/25 To - Spending review Topic 4]]+Dataset[[#This Row],[2024/25 To - Other reallocations]]","v":0},{"$f":"Dataset[[#This Row],[2025/26 To - Spending review Topic 1]]+Dataset[[#This Row],[2025/26 To - Spending review Topic 2]]+Dataset[[#This Row],[2025/26 To - Spending review Topic 3]]+Dataset[[#This Row],[2025/26 To - Spending review Topic 4]]+Dataset[[#This Row],[2025/26 To - Other reallocations]]","v":0},{"$f":"Dataset[[#This Row],[2026/27 To - Spending review Topic 1]]+Dataset[[#This Row],[2026/27 To - Spending review Topic 2]]+Dataset[[#This Row],[2026/27 To - Spending review Topic 3]]+Dataset[[#This Row],[2026/27 To - Spending review Topic 4]]+Dataset[[#This Row],[2026/27 To - Other reallocations]]","v":0},{"$f":"Dataset[[#This Row],[2024/25 Reduction]]+Dataset[[#This Row],[2024/25 From - Total]]","v":0},{"$f":"Dataset[[#This Row],[2025/26 Reduction]]+Dataset[[#This Row],[2025/26 From - Total]]","v":0},{"$f":"Dataset[[#This Row],[2026/27 Reduction]]+Dataset[[#This Row],[2026/27 From - Total]]","v":0},{"$f":"Dataset[[#This Row],[2023/24 Reduction]]","v":0},{"$f":"SUM(Dataset[[#This Row],[2024/25 Reduction]],Dataset[[#This Row],[2024/25 From - Total]],Dataset[[#This Row],[2024/25 To - Total]])","v":0},{"$f":"SUM(Dataset[[#This Row],[2025/26 Reduction]],Dataset[[#This Row],[2025/26 From - Total]],Dataset[[#This Row],[2025/26 To - Total]])","v":0},{"$f":"SUM(Dataset[[#This Row],[2026/27 Reduction]],Dataset[[#This Row],[2026/27 From - Total]],Dataset[[#This Row],[2026/27 To - Total]])","v":0},{"$f":"Dataset[[#This Row],[2023/24 Baseline]]+Dataset[[#This Row],[2023/24 Total change]]","v":0},{"$f":"Dataset[[#This Row],[2024/25 Baseline]]+Dataset[[#This Row],[2024/25 Total change]]","v":0},{"$f":"Dataset[[#This Row],[2025/26 Baseline]]+Dataset[[#This Row],[2025/26 Total change]]","v":0},{"$f":"Dataset[[#This Row],[2026/27 Baseline]]+Dataset[[#This Row],[2026/27 Total change]]","v":0}]
["NAT|Non-transfer item","26|Catering: Departmental activities","2024_25","MTEF2024",26,3,2,44665,778,"26","03","02","044665","000778","26|03|02","01","01","02","08","08","01|01|02|08|08","National","Military Veterans","Empowerment and Stakeholder Management","Empowerment and Skills Development","Non-transfer item","Current","Current payments","Goods and services","Catering: Departmental activities","Catering: Departmental activities","Peace and security","Defence and state security","NAT",6,133,2,383,383,383,0,676,691,709,741,null,null,null,null,null,null,null,null,null,null,null,null,null,null,null,null,null,null,null,null,null,null,null,null,null,null,null,null,null,null,null,null,null,null,{"$f":"Dataset[[#This Row],[2024/25 From - Spending review Topic 1]]+Dataset[[#This Row],[2024/25 From - Spending review Topic 2]]+Dataset[[#This Row],[2024/25 From - Spending review Topic 3]]+Dataset[[#This Row],[2024/25 From - Spending review Topic 4]]+Dataset[[#This Row],[2024/25 From - Other reallocations]]","v":0},{"$f":"Dataset[[#This Row],[2025/26 From - Spending review Topic 1]]+Dataset[[#This Row],[2025/26 From - Spending review Topic 2]]+Dataset[[#This Row],[2025/26 From - Spending review Topic 3]]+Dataset[[#This Row],[2025/26 From - Spending review Topic 4]]+Dataset[[#This Row],[2025/26 From - Other reallocations]]","v":0},{"$f":"Dataset[[#This Row],[2026/27 From - Spending review Topic 1]]+Dataset[[#This Row],[2026/27 From - Spending review Topic 2]]+Dataset[[#This Row],[2026/27 From - Spending review Topic 3]]+Dataset[[#This Row],[2026/27 From - Spending review Topic 4]]+Dataset[[#This Row],[2026/27 From - Other reallocations]]","v":0},{"$f":"Dataset[[#This Row],[2024/25 To - Spending review Topic 1]]+Dataset[[#This Row],[2024/25 To - Spending review Topic 2]]+Dataset[[#This Row],[2024/25 To - Spending review Topic 3]]+Dataset[[#This Row],[2024/25 To - Spending review Topic 4]]+Dataset[[#This Row],[2024/25 To - Other reallocations]]","v":0},{"$f":"Dataset[[#This Row],[2025/26 To - Spending review Topic 1]]+Dataset[[#This Row],[2025/26 To - Spending review Topic 2]]+Dataset[[#This Row],[2025/26 To - Spending review Topic 3]]+Dataset[[#This Row],[2025/26 To - Spending review Topic 4]]+Dataset[[#This Row],[2025/26 To - Other reallocations]]","v":0},{"$f":"Dataset[[#This Row],[2026/27 To - Spending review Topic 1]]+Dataset[[#This Row],[2026/27 To - Spending review Topic 2]]+Dataset[[#This Row],[2026/27 To - Spending review Topic 3]]+Dataset[[#This Row],[2026/27 To - Spending review Topic 4]]+Dataset[[#This Row],[2026/27 To - Other reallocations]]","v":0},{"$f":"Dataset[[#This Row],[2024/25 Reduction]]+Dataset[[#This Row],[2024/25 From - Total]]","v":0},{"$f":"Dataset[[#This Row],[2025/26 Reduction]]+Dataset[[#This Row],[2025/26 From - Total]]","v":0},{"$f":"Dataset[[#This Row],[2026/27 Reduction]]+Dataset[[#This Row],[2026/27 From - Total]]","v":0},{"$f":"Dataset[[#This Row],[2023/24 Reduction]]","v":0},{"$f":"SUM(Dataset[[#This Row],[2024/25 Reduction]],Dataset[[#This Row],[2024/25 From - Total]],Dataset[[#This Row],[2024/25 To - Total]])","v":0},{"$f":"SUM(Dataset[[#This Row],[2025/26 Reduction]],Dataset[[#This Row],[2025/26 From - Total]],Dataset[[#This Row],[2025/26 To - Total]])","v":0},{"$f":"SUM(Dataset[[#This Row],[2026/27 Reduction]],Dataset[[#This Row],[2026/27 From - Total]],Dataset[[#This Row],[2026/27 To - Total]])","v":0},{"$f":"Dataset[[#This Row],[2023/24 Baseline]]+Dataset[[#This Row],[2023/24 Total change]]","v":676},{"$f":"Dataset[[#This Row],[2024/25 Baseline]]+Dataset[[#This Row],[2024/25 Total change]]","v":691},{"$f":"Dataset[[#This Row],[2025/26 Baseline]]+Dataset[[#This Row],[2025/26 Total change]]","v":709},{"$f":"Dataset[[#This Row],[2026/27 Baseline]]+Dataset[[#This Row],[2026/27 Total change]]","v":741}]
["NAT|Non-transfer item","26|Communication (G&S)","2024_25","MTEF2024",26,3,2,44666,779,"26","03","02","044666","000779","26|03|02","01","01","02","09","09","01|01|02|09|09","National","Military Veterans","Empowerment and Stakeholder Management","Empowerment and Skills Development","Non-transfer item","Current","Current payments","Goods and services","Communication (G&S)","Communication (G&S)","Peace and security","Defence and state security","NAT",0,0,0,0,0,0,0,0,0,0,0,null,null,null,null,null,null,null,null,null,null,null,null,null,null,null,null,null,null,null,null,null,null,null,null,null,null,null,null,null,null,null,null,null,null,{"$f":"Dataset[[#This Row],[2024/25 From - Spending review Topic 1]]+Dataset[[#This Row],[2024/25 From - Spending review Topic 2]]+Dataset[[#This Row],[2024/25 From - Spending review Topic 3]]+Dataset[[#This Row],[2024/25 From - Spending review Topic 4]]+Dataset[[#This Row],[2024/25 From - Other reallocations]]","v":0},{"$f":"Dataset[[#This Row],[2025/26 From - Spending review Topic 1]]+Dataset[[#This Row],[2025/26 From - Spending review Topic 2]]+Dataset[[#This Row],[2025/26 From - Spending review Topic 3]]+Dataset[[#This Row],[2025/26 From - Spending review Topic 4]]+Dataset[[#This Row],[2025/26 From - Other reallocations]]","v":0},{"$f":"Dataset[[#This Row],[2026/27 From - Spending review Topic 1]]+Dataset[[#This Row],[2026/27 From - Spending review Topic 2]]+Dataset[[#This Row],[2026/27 From - Spending review Topic 3]]+Dataset[[#This Row],[2026/27 From - Spending review Topic 4]]+Dataset[[#This Row],[2026/27 From - Other reallocations]]","v":0},{"$f":"Dataset[[#This Row],[2024/25 To - Spending review Topic 1]]+Dataset[[#This Row],[2024/25 To - Spending review Topic 2]]+Dataset[[#This Row],[2024/25 To - Spending review Topic 3]]+Dataset[[#This Row],[2024/25 To - Spending review Topic 4]]+Dataset[[#This Row],[2024/25 To - Other reallocations]]","v":0},{"$f":"Dataset[[#This Row],[2025/26 To - Spending review Topic 1]]+Dataset[[#This Row],[2025/26 To - Spending review Topic 2]]+Dataset[[#This Row],[2025/26 To - Spending review Topic 3]]+Dataset[[#This Row],[2025/26 To - Spending review Topic 4]]+Dataset[[#This Row],[2025/26 To - Other reallocations]]","v":0},{"$f":"Dataset[[#This Row],[2026/27 To - Spending review Topic 1]]+Dataset[[#This Row],[2026/27 To - Spending review Topic 2]]+Dataset[[#This Row],[2026/27 To - Spending review Topic 3]]+Dataset[[#This Row],[2026/27 To - Spending review Topic 4]]+Dataset[[#This Row],[2026/27 To - Other reallocations]]","v":0},{"$f":"Dataset[[#This Row],[2024/25 Reduction]]+Dataset[[#This Row],[2024/25 From - Total]]","v":0},{"$f":"Dataset[[#This Row],[2025/26 Reduction]]+Dataset[[#This Row],[2025/26 From - Total]]","v":0},{"$f":"Dataset[[#This Row],[2026/27 Reduction]]+Dataset[[#This Row],[2026/27 From - Total]]","v":0},{"$f":"Dataset[[#This Row],[2023/24 Reduction]]","v":0},{"$f":"SUM(Dataset[[#This Row],[2024/25 Reduction]],Dataset[[#This Row],[2024/25 From - Total]],Dataset[[#This Row],[2024/25 To - Total]])","v":0},{"$f":"SUM(Dataset[[#This Row],[2025/26 Reduction]],Dataset[[#This Row],[2025/26 From - Total]],Dataset[[#This Row],[2025/26 To - Total]])","v":0},{"$f":"SUM(Dataset[[#This Row],[2026/27 Reduction]],Dataset[[#This Row],[2026/27 From - Total]],Dataset[[#This Row],[2026/27 To - Total]])","v":0},{"$f":"Dataset[[#This Row],[2023/24 Baseline]]+Dataset[[#This Row],[2023/24 Total change]]","v":0},{"$f":"Dataset[[#This Row],[2024/25 Baseline]]+Dataset[[#This Row],[2024/25 Total change]]","v":0},{"$f":"Dataset[[#This Row],[2025/26 Baseline]]+Dataset[[#This Row],[2025/26 Total change]]","v":0},{"$f":"Dataset[[#This Row],[2026/27 Baseline]]+Dataset[[#This Row],[2026/27 Total change]]","v":0}]
["NAT|Non-transfer item","26|Computer services","2024_25","MTEF2024",26,3,2,44667,780,"26","03","02","044667","000780","26|03|02","01","01","02","10","10","01|01|02|10|10","National","Military Veterans","Empowerment and Stakeholder Management","Empowerment and Skills Development","Non-transfer item","Current","Current payments","Goods and services","Computer services","Computer services","Peace and security","Defence and state security","NAT",0,0,0,0,0,0,0,0,0,0,0,null,null,null,null,null,null,null,null,null,null,null,null,null,null,null,null,null,null,null,null,null,null,null,null,null,null,null,null,null,null,null,null,null,null,{"$f":"Dataset[[#This Row],[2024/25 From - Spending review Topic 1]]+Dataset[[#This Row],[2024/25 From - Spending review Topic 2]]+Dataset[[#This Row],[2024/25 From - Spending review Topic 3]]+Dataset[[#This Row],[2024/25 From - Spending review Topic 4]]+Dataset[[#This Row],[2024/25 From - Other reallocations]]","v":0},{"$f":"Dataset[[#This Row],[2025/26 From - Spending review Topic 1]]+Dataset[[#This Row],[2025/26 From - Spending review Topic 2]]+Dataset[[#This Row],[2025/26 From - Spending review Topic 3]]+Dataset[[#This Row],[2025/26 From - Spending review Topic 4]]+Dataset[[#This Row],[2025/26 From - Other reallocations]]","v":0},{"$f":"Dataset[[#This Row],[2026/27 From - Spending review Topic 1]]+Dataset[[#This Row],[2026/27 From - Spending review Topic 2]]+Dataset[[#This Row],[2026/27 From - Spending review Topic 3]]+Dataset[[#This Row],[2026/27 From - Spending review Topic 4]]+Dataset[[#This Row],[2026/27 From - Other reallocations]]","v":0},{"$f":"Dataset[[#This Row],[2024/25 To - Spending review Topic 1]]+Dataset[[#This Row],[2024/25 To - Spending review Topic 2]]+Dataset[[#This Row],[2024/25 To - Spending review Topic 3]]+Dataset[[#This Row],[2024/25 To - Spending review Topic 4]]+Dataset[[#This Row],[2024/25 To - Other reallocations]]","v":0},{"$f":"Dataset[[#This Row],[2025/26 To - Spending review Topic 1]]+Dataset[[#This Row],[2025/26 To - Spending review Topic 2]]+Dataset[[#This Row],[2025/26 To - Spending review Topic 3]]+Dataset[[#This Row],[2025/26 To - Spending review Topic 4]]+Dataset[[#This Row],[2025/26 To - Other reallocations]]","v":0},{"$f":"Dataset[[#This Row],[2026/27 To - Spending review Topic 1]]+Dataset[[#This Row],[2026/27 To - Spending review Topic 2]]+Dataset[[#This Row],[2026/27 To - Spending review Topic 3]]+Dataset[[#This Row],[2026/27 To - Spending review Topic 4]]+Dataset[[#This Row],[2026/27 To - Other reallocations]]","v":0},{"$f":"Dataset[[#This Row],[2024/25 Reduction]]+Dataset[[#This Row],[2024/25 From - Total]]","v":0},{"$f":"Dataset[[#This Row],[2025/26 Reduction]]+Dataset[[#This Row],[2025/26 From - Total]]","v":0},{"$f":"Dataset[[#This Row],[2026/27 Reduction]]+Dataset[[#This Row],[2026/27 From - Total]]","v":0},{"$f":"Dataset[[#This Row],[2023/24 Reduction]]","v":0},{"$f":"SUM(Dataset[[#This Row],[2024/25 Reduction]],Dataset[[#This Row],[2024/25 From - Total]],Dataset[[#This Row],[2024/25 To - Total]])","v":0},{"$f":"SUM(Dataset[[#This Row],[2025/26 Reduction]],Dataset[[#This Row],[2025/26 From - Total]],Dataset[[#This Row],[2025/26 To - Total]])","v":0},{"$f":"SUM(Dataset[[#This Row],[2026/27 Reduction]],Dataset[[#This Row],[2026/27 From - Total]],Dataset[[#This Row],[2026/27 To - Total]])","v":0},{"$f":"Dataset[[#This Row],[2023/24 Baseline]]+Dataset[[#This Row],[2023/24 Total change]]","v":0},{"$f":"Dataset[[#This Row],[2024/25 Baseline]]+Dataset[[#This Row],[2024/25 Total change]]","v":0},{"$f":"Dataset[[#This Row],[2025/26 Baseline]]+Dataset[[#This Row],[2025/26 Total change]]","v":0},{"$f":"Dataset[[#This Row],[2026/27 Baseline]]+Dataset[[#This Row],[2026/27 Total change]]","v":0}]
["NAT|Non-transfer item","26|Consultants: Business and advisory services","2024_25","MTEF2024",26,3,2,44668,781,"26","03","02","044668","000781","26|03|02","01","01","02","11","11","01|01|02|11|11","National","Military Veterans","Empowerment and Stakeholder Management","Empowerment and Skills Development","Non-transfer item","Current","Current payments","Goods and services","Consultants: Business and advisory services","Consultants: Business and advisory services","Peace and security","Defence and state security","NAT",0,0,0,0,0,0,0,0,0,0,0,null,null,null,null,null,null,null,null,null,null,null,null,null,null,null,null,null,null,null,null,null,null,null,null,null,null,null,null,null,null,null,null,null,null,{"$f":"Dataset[[#This Row],[2024/25 From - Spending review Topic 1]]+Dataset[[#This Row],[2024/25 From - Spending review Topic 2]]+Dataset[[#This Row],[2024/25 From - Spending review Topic 3]]+Dataset[[#This Row],[2024/25 From - Spending review Topic 4]]+Dataset[[#This Row],[2024/25 From - Other reallocations]]","v":0},{"$f":"Dataset[[#This Row],[2025/26 From - Spending review Topic 1]]+Dataset[[#This Row],[2025/26 From - Spending review Topic 2]]+Dataset[[#This Row],[2025/26 From - Spending review Topic 3]]+Dataset[[#This Row],[2025/26 From - Spending review Topic 4]]+Dataset[[#This Row],[2025/26 From - Other reallocations]]","v":0},{"$f":"Dataset[[#This Row],[2026/27 From - Spending review Topic 1]]+Dataset[[#This Row],[2026/27 From - Spending review Topic 2]]+Dataset[[#This Row],[2026/27 From - Spending review Topic 3]]+Dataset[[#This Row],[2026/27 From - Spending review Topic 4]]+Dataset[[#This Row],[2026/27 From - Other reallocations]]","v":0},{"$f":"Dataset[[#This Row],[2024/25 To - Spending review Topic 1]]+Dataset[[#This Row],[2024/25 To - Spending review Topic 2]]+Dataset[[#This Row],[2024/25 To - Spending review Topic 3]]+Dataset[[#This Row],[2024/25 To - Spending review Topic 4]]+Dataset[[#This Row],[2024/25 To - Other reallocations]]","v":0},{"$f":"Dataset[[#This Row],[2025/26 To - Spending review Topic 1]]+Dataset[[#This Row],[2025/26 To - Spending review Topic 2]]+Dataset[[#This Row],[2025/26 To - Spending review Topic 3]]+Dataset[[#This Row],[2025/26 To - Spending review Topic 4]]+Dataset[[#This Row],[2025/26 To - Other reallocations]]","v":0},{"$f":"Dataset[[#This Row],[2026/27 To - Spending review Topic 1]]+Dataset[[#This Row],[2026/27 To - Spending review Topic 2]]+Dataset[[#This Row],[2026/27 To - Spending review Topic 3]]+Dataset[[#This Row],[2026/27 To - Spending review Topic 4]]+Dataset[[#This Row],[2026/27 To - Other reallocations]]","v":0},{"$f":"Dataset[[#This Row],[2024/25 Reduction]]+Dataset[[#This Row],[2024/25 From - Total]]","v":0},{"$f":"Dataset[[#This Row],[2025/26 Reduction]]+Dataset[[#This Row],[2025/26 From - Total]]","v":0},{"$f":"Dataset[[#This Row],[2026/27 Reduction]]+Dataset[[#This Row],[2026/27 From - Total]]","v":0},{"$f":"Dataset[[#This Row],[2023/24 Reduction]]","v":0},{"$f":"SUM(Dataset[[#This Row],[2024/25 Reduction]],Dataset[[#This Row],[2024/25 From - Total]],Dataset[[#This Row],[2024/25 To - Total]])","v":0},{"$f":"SUM(Dataset[[#This Row],[2025/26 Reduction]],Dataset[[#This Row],[2025/26 From - Total]],Dataset[[#This Row],[2025/26 To - Total]])","v":0},{"$f":"SUM(Dataset[[#This Row],[2026/27 Reduction]],Dataset[[#This Row],[2026/27 From - Total]],Dataset[[#This Row],[2026/27 To - Total]])","v":0},{"$f":"Dataset[[#This Row],[2023/24 Baseline]]+Dataset[[#This Row],[2023/24 Total change]]","v":0},{"$f":"Dataset[[#This Row],[2024/25 Baseline]]+Dataset[[#This Row],[2024/25 Total change]]","v":0},{"$f":"Dataset[[#This Row],[2025/26 Baseline]]+Dataset[[#This Row],[2025/26 Total change]]","v":0},{"$f":"Dataset[[#This Row],[2026/27 Baseline]]+Dataset[[#This Row],[2026/27 Total change]]","v":0}]
["NAT|Non-transfer item","26|Infrastructure and planning services","2024_25","MTEF2024",26,3,2,44669,782,"26","03","02","044669","000782","26|03|02","01","01","02","12","12","01|01|02|12|12","National","Military Veterans","Empowerment and Stakeholder Management","Empowerment and Skills Development","Non-transfer item","Current","Current payments","Goods and services","Infrastructure and planning services","Infrastructure and planning services","Peace and security","Defence and state security","NAT",0,0,0,0,0,0,0,0,0,0,0,null,null,null,null,null,null,null,null,null,null,null,null,null,null,null,null,null,null,null,null,null,null,null,null,null,null,null,null,null,null,null,null,null,null,{"$f":"Dataset[[#This Row],[2024/25 From - Spending review Topic 1]]+Dataset[[#This Row],[2024/25 From - Spending review Topic 2]]+Dataset[[#This Row],[2024/25 From - Spending review Topic 3]]+Dataset[[#This Row],[2024/25 From - Spending review Topic 4]]+Dataset[[#This Row],[2024/25 From - Other reallocations]]","v":0},{"$f":"Dataset[[#This Row],[2025/26 From - Spending review Topic 1]]+Dataset[[#This Row],[2025/26 From - Spending review Topic 2]]+Dataset[[#This Row],[2025/26 From - Spending review Topic 3]]+Dataset[[#This Row],[2025/26 From - Spending review Topic 4]]+Dataset[[#This Row],[2025/26 From - Other reallocations]]","v":0},{"$f":"Dataset[[#This Row],[2026/27 From - Spending review Topic 1]]+Dataset[[#This Row],[2026/27 From - Spending review Topic 2]]+Dataset[[#This Row],[2026/27 From - Spending review Topic 3]]+Dataset[[#This Row],[2026/27 From - Spending review Topic 4]]+Dataset[[#This Row],[2026/27 From - Other reallocations]]","v":0},{"$f":"Dataset[[#This Row],[2024/25 To - Spending review Topic 1]]+Dataset[[#This Row],[2024/25 To - Spending review Topic 2]]+Dataset[[#This Row],[2024/25 To - Spending review Topic 3]]+Dataset[[#This Row],[2024/25 To - Spending review Topic 4]]+Dataset[[#This Row],[2024/25 To - Other reallocations]]","v":0},{"$f":"Dataset[[#This Row],[2025/26 To - Spending review Topic 1]]+Dataset[[#This Row],[2025/26 To - Spending review Topic 2]]+Dataset[[#This Row],[2025/26 To - Spending review Topic 3]]+Dataset[[#This Row],[2025/26 To - Spending review Topic 4]]+Dataset[[#This Row],[2025/26 To - Other reallocations]]","v":0},{"$f":"Dataset[[#This Row],[2026/27 To - Spending review Topic 1]]+Dataset[[#This Row],[2026/27 To - Spending review Topic 2]]+Dataset[[#This Row],[2026/27 To - Spending review Topic 3]]+Dataset[[#This Row],[2026/27 To - Spending review Topic 4]]+Dataset[[#This Row],[2026/27 To - Other reallocations]]","v":0},{"$f":"Dataset[[#This Row],[2024/25 Reduction]]+Dataset[[#This Row],[2024/25 From - Total]]","v":0},{"$f":"Dataset[[#This Row],[2025/26 Reduction]]+Dataset[[#This Row],[2025/26 From - Total]]","v":0},{"$f":"Dataset[[#This Row],[2026/27 Reduction]]+Dataset[[#This Row],[2026/27 From - Total]]","v":0},{"$f":"Dataset[[#This Row],[2023/24 Reduction]]","v":0},{"$f":"SUM(Dataset[[#This Row],[2024/25 Reduction]],Dataset[[#This Row],[2024/25 From - Total]],Dataset[[#This Row],[2024/25 To - Total]])","v":0},{"$f":"SUM(Dataset[[#This Row],[2025/26 Reduction]],Dataset[[#This Row],[2025/26 From - Total]],Dataset[[#This Row],[2025/26 To - Total]])","v":0},{"$f":"SUM(Dataset[[#This Row],[2026/27 Reduction]],Dataset[[#This Row],[2026/27 From - Total]],Dataset[[#This Row],[2026/27 To - Total]])","v":0},{"$f":"Dataset[[#This Row],[2023/24 Baseline]]+Dataset[[#This Row],[2023/24 Total change]]","v":0},{"$f":"Dataset[[#This Row],[2024/25 Baseline]]+Dataset[[#This Row],[2024/25 Total change]]","v":0},{"$f":"Dataset[[#This Row],[2025/26 Baseline]]+Dataset[[#This Row],[2025/26 Total change]]","v":0},{"$f":"Dataset[[#This Row],[2026/27 Baseline]]+Dataset[[#This Row],[2026/27 Total change]]","v":0}]
["NAT|Non-transfer item","26|Laboratory services","2024_25","MTEF2024",26,3,2,44670,783,"26","03","02","044670","000783","26|03|02","01","01","02","13","13","01|01|02|13|13","National","Military Veterans","Empowerment and Stakeholder Management","Empowerment and Skills Development","Non-transfer item","Current","Current payments","Goods and services","Laboratory services","Laboratory services","Peace and security","Defence and state security","NAT",0,0,0,0,0,0,0,0,0,0,0,null,null,null,null,null,null,null,null,null,null,null,null,null,null,null,null,null,null,null,null,null,null,null,null,null,null,null,null,null,null,null,null,null,null,{"$f":"Dataset[[#This Row],[2024/25 From - Spending review Topic 1]]+Dataset[[#This Row],[2024/25 From - Spending review Topic 2]]+Dataset[[#This Row],[2024/25 From - Spending review Topic 3]]+Dataset[[#This Row],[2024/25 From - Spending review Topic 4]]+Dataset[[#This Row],[2024/25 From - Other reallocations]]","v":0},{"$f":"Dataset[[#This Row],[2025/26 From - Spending review Topic 1]]+Dataset[[#This Row],[2025/26 From - Spending review Topic 2]]+Dataset[[#This Row],[2025/26 From - Spending review Topic 3]]+Dataset[[#This Row],[2025/26 From - Spending review Topic 4]]+Dataset[[#This Row],[2025/26 From - Other reallocations]]","v":0},{"$f":"Dataset[[#This Row],[2026/27 From - Spending review Topic 1]]+Dataset[[#This Row],[2026/27 From - Spending review Topic 2]]+Dataset[[#This Row],[2026/27 From - Spending review Topic 3]]+Dataset[[#This Row],[2026/27 From - Spending review Topic 4]]+Dataset[[#This Row],[2026/27 From - Other reallocations]]","v":0},{"$f":"Dataset[[#This Row],[2024/25 To - Spending review Topic 1]]+Dataset[[#This Row],[2024/25 To - Spending review Topic 2]]+Dataset[[#This Row],[2024/25 To - Spending review Topic 3]]+Dataset[[#This Row],[2024/25 To - Spending review Topic 4]]+Dataset[[#This Row],[2024/25 To - Other reallocations]]","v":0},{"$f":"Dataset[[#This Row],[2025/26 To - Spending review Topic 1]]+Dataset[[#This Row],[2025/26 To - Spending review Topic 2]]+Dataset[[#This Row],[2025/26 To - Spending review Topic 3]]+Dataset[[#This Row],[2025/26 To - Spending review Topic 4]]+Dataset[[#This Row],[2025/26 To - Other reallocations]]","v":0},{"$f":"Dataset[[#This Row],[2026/27 To - Spending review Topic 1]]+Dataset[[#This Row],[2026/27 To - Spending review Topic 2]]+Dataset[[#This Row],[2026/27 To - Spending review Topic 3]]+Dataset[[#This Row],[2026/27 To - Spending review Topic 4]]+Dataset[[#This Row],[2026/27 To - Other reallocations]]","v":0},{"$f":"Dataset[[#This Row],[2024/25 Reduction]]+Dataset[[#This Row],[2024/25 From - Total]]","v":0},{"$f":"Dataset[[#This Row],[2025/26 Reduction]]+Dataset[[#This Row],[2025/26 From - Total]]","v":0},{"$f":"Dataset[[#This Row],[2026/27 Reduction]]+Dataset[[#This Row],[2026/27 From - Total]]","v":0},{"$f":"Dataset[[#This Row],[2023/24 Reduction]]","v":0},{"$f":"SUM(Dataset[[#This Row],[2024/25 Reduction]],Dataset[[#This Row],[2024/25 From - Total]],Dataset[[#This Row],[2024/25 To - Total]])","v":0},{"$f":"SUM(Dataset[[#This Row],[2025/26 Reduction]],Dataset[[#This Row],[2025/26 From - Total]],Dataset[[#This Row],[2025/26 To - Total]])","v":0},{"$f":"SUM(Dataset[[#This Row],[2026/27 Reduction]],Dataset[[#This Row],[2026/27 From - Total]],Dataset[[#This Row],[2026/27 To - Total]])","v":0},{"$f":"Dataset[[#This Row],[2023/24 Baseline]]+Dataset[[#This Row],[2023/24 Total change]]","v":0},{"$f":"Dataset[[#This Row],[2024/25 Baseline]]+Dataset[[#This Row],[2024/25 Total change]]","v":0},{"$f":"Dataset[[#This Row],[2025/26 Baseline]]+Dataset[[#This Row],[2025/26 Total change]]","v":0},{"$f":"Dataset[[#This Row],[2026/27 Baseline]]+Dataset[[#This Row],[2026/27 Total change]]","v":0}]
["NAT|Non-transfer item","26|Legal services (G&S)","2024_25","MTEF2024",26,3,2,44671,784,"26","03","02","044671","000784","26|03|02","01","01","02","14","14","01|01|02|14|14","National","Military Veterans","Empowerment and Stakeholder Management","Empowerment and Skills Development","Non-transfer item","Current","Current payments","Goods and services","Legal services (G&S)","Legal services (G&S)","Peace and security","Defence and state security","NAT",0,0,0,0,0,0,0,0,0,0,0,null,null,null,null,null,null,null,null,null,null,null,null,null,null,null,null,null,null,null,null,null,null,null,null,null,null,null,null,null,null,null,null,null,null,{"$f":"Dataset[[#This Row],[2024/25 From - Spending review Topic 1]]+Dataset[[#This Row],[2024/25 From - Spending review Topic 2]]+Dataset[[#This Row],[2024/25 From - Spending review Topic 3]]+Dataset[[#This Row],[2024/25 From - Spending review Topic 4]]+Dataset[[#This Row],[2024/25 From - Other reallocations]]","v":0},{"$f":"Dataset[[#This Row],[2025/26 From - Spending review Topic 1]]+Dataset[[#This Row],[2025/26 From - Spending review Topic 2]]+Dataset[[#This Row],[2025/26 From - Spending review Topic 3]]+Dataset[[#This Row],[2025/26 From - Spending review Topic 4]]+Dataset[[#This Row],[2025/26 From - Other reallocations]]","v":0},{"$f":"Dataset[[#This Row],[2026/27 From - Spending review Topic 1]]+Dataset[[#This Row],[2026/27 From - Spending review Topic 2]]+Dataset[[#This Row],[2026/27 From - Spending review Topic 3]]+Dataset[[#This Row],[2026/27 From - Spending review Topic 4]]+Dataset[[#This Row],[2026/27 From - Other reallocations]]","v":0},{"$f":"Dataset[[#This Row],[2024/25 To - Spending review Topic 1]]+Dataset[[#This Row],[2024/25 To - Spending review Topic 2]]+Dataset[[#This Row],[2024/25 To - Spending review Topic 3]]+Dataset[[#This Row],[2024/25 To - Spending review Topic 4]]+Dataset[[#This Row],[2024/25 To - Other reallocations]]","v":0},{"$f":"Dataset[[#This Row],[2025/26 To - Spending review Topic 1]]+Dataset[[#This Row],[2025/26 To - Spending review Topic 2]]+Dataset[[#This Row],[2025/26 To - Spending review Topic 3]]+Dataset[[#This Row],[2025/26 To - Spending review Topic 4]]+Dataset[[#This Row],[2025/26 To - Other reallocations]]","v":0},{"$f":"Dataset[[#This Row],[2026/27 To - Spending review Topic 1]]+Dataset[[#This Row],[2026/27 To - Spending review Topic 2]]+Dataset[[#This Row],[2026/27 To - Spending review Topic 3]]+Dataset[[#This Row],[2026/27 To - Spending review Topic 4]]+Dataset[[#This Row],[2026/27 To - Other reallocations]]","v":0},{"$f":"Dataset[[#This Row],[2024/25 Reduction]]+Dataset[[#This Row],[2024/25 From - Total]]","v":0},{"$f":"Dataset[[#This Row],[2025/26 Reduction]]+Dataset[[#This Row],[2025/26 From - Total]]","v":0},{"$f":"Dataset[[#This Row],[2026/27 Reduction]]+Dataset[[#This Row],[2026/27 From - Total]]","v":0},{"$f":"Dataset[[#This Row],[2023/24 Reduction]]","v":0},{"$f":"SUM(Dataset[[#This Row],[2024/25 Reduction]],Dataset[[#This Row],[2024/25 From - Total]],Dataset[[#This Row],[2024/25 To - Total]])","v":0},{"$f":"SUM(Dataset[[#This Row],[2025/26 Reduction]],Dataset[[#This Row],[2025/26 From - Total]],Dataset[[#This Row],[2025/26 To - Total]])","v":0},{"$f":"SUM(Dataset[[#This Row],[2026/27 Reduction]],Dataset[[#This Row],[2026/27 From - Total]],Dataset[[#This Row],[2026/27 To - Total]])","v":0},{"$f":"Dataset[[#This Row],[2023/24 Baseline]]+Dataset[[#This Row],[2023/24 Total change]]","v":0},{"$f":"Dataset[[#This Row],[2024/25 Baseline]]+Dataset[[#This Row],[2024/25 Total change]]","v":0},{"$f":"Dataset[[#This Row],[2025/26 Baseline]]+Dataset[[#This Row],[2025/26 Total change]]","v":0},{"$f":"Dataset[[#This Row],[2026/27 Baseline]]+Dataset[[#This Row],[2026/27 Total change]]","v":0}]
["NAT|Non-transfer item","26|Science and technological services","2024_25","MTEF2024",26,3,2,44672,785,"26","03","02","044672","000785","26|03|02","01","01","02","15","15","01|01|02|15|15","National","Military Veterans","Empowerment and Stakeholder Management","Empowerment and Skills Development","Non-transfer item","Current","Current payments","Goods and services","Science and technological services","Science and technological services","Peace and security","Defence and state security","NAT",0,0,0,0,0,0,0,0,0,0,0,null,null,null,null,null,null,null,null,null,null,null,null,null,null,null,null,null,null,null,null,null,null,null,null,null,null,null,null,null,null,null,null,null,null,{"$f":"Dataset[[#This Row],[2024/25 From - Spending review Topic 1]]+Dataset[[#This Row],[2024/25 From - Spending review Topic 2]]+Dataset[[#This Row],[2024/25 From - Spending review Topic 3]]+Dataset[[#This Row],[2024/25 From - Spending review Topic 4]]+Dataset[[#This Row],[2024/25 From - Other reallocations]]","v":0},{"$f":"Dataset[[#This Row],[2025/26 From - Spending review Topic 1]]+Dataset[[#This Row],[2025/26 From - Spending review Topic 2]]+Dataset[[#This Row],[2025/26 From - Spending review Topic 3]]+Dataset[[#This Row],[2025/26 From - Spending review Topic 4]]+Dataset[[#This Row],[2025/26 From - Other reallocations]]","v":0},{"$f":"Dataset[[#This Row],[2026/27 From - Spending review Topic 1]]+Dataset[[#This Row],[2026/27 From - Spending review Topic 2]]+Dataset[[#This Row],[2026/27 From - Spending review Topic 3]]+Dataset[[#This Row],[2026/27 From - Spending review Topic 4]]+Dataset[[#This Row],[2026/27 From - Other reallocations]]","v":0},{"$f":"Dataset[[#This Row],[2024/25 To - Spending review Topic 1]]+Dataset[[#This Row],[2024/25 To - Spending review Topic 2]]+Dataset[[#This Row],[2024/25 To - Spending review Topic 3]]+Dataset[[#This Row],[2024/25 To - Spending review Topic 4]]+Dataset[[#This Row],[2024/25 To - Other reallocations]]","v":0},{"$f":"Dataset[[#This Row],[2025/26 To - Spending review Topic 1]]+Dataset[[#This Row],[2025/26 To - Spending review Topic 2]]+Dataset[[#This Row],[2025/26 To - Spending review Topic 3]]+Dataset[[#This Row],[2025/26 To - Spending review Topic 4]]+Dataset[[#This Row],[2025/26 To - Other reallocations]]","v":0},{"$f":"Dataset[[#This Row],[2026/27 To - Spending review Topic 1]]+Dataset[[#This Row],[2026/27 To - Spending review Topic 2]]+Dataset[[#This Row],[2026/27 To - Spending review Topic 3]]+Dataset[[#This Row],[2026/27 To - Spending review Topic 4]]+Dataset[[#This Row],[2026/27 To - Other reallocations]]","v":0},{"$f":"Dataset[[#This Row],[2024/25 Reduction]]+Dataset[[#This Row],[2024/25 From - Total]]","v":0},{"$f":"Dataset[[#This Row],[2025/26 Reduction]]+Dataset[[#This Row],[2025/26 From - Total]]","v":0},{"$f":"Dataset[[#This Row],[2026/27 Reduction]]+Dataset[[#This Row],[2026/27 From - Total]]","v":0},{"$f":"Dataset[[#This Row],[2023/24 Reduction]]","v":0},{"$f":"SUM(Dataset[[#This Row],[2024/25 Reduction]],Dataset[[#This Row],[2024/25 From - Total]],Dataset[[#This Row],[2024/25 To - Total]])","v":0},{"$f":"SUM(Dataset[[#This Row],[2025/26 Reduction]],Dataset[[#This Row],[2025/26 From - Total]],Dataset[[#This Row],[2025/26 To - Total]])","v":0},{"$f":"SUM(Dataset[[#This Row],[2026/27 Reduction]],Dataset[[#This Row],[2026/27 From - Total]],Dataset[[#This Row],[2026/27 To - Total]])","v":0},{"$f":"Dataset[[#This Row],[2023/24 Baseline]]+Dataset[[#This Row],[2023/24 Total change]]","v":0},{"$f":"Dataset[[#This Row],[2024/25 Baseline]]+Dataset[[#This Row],[2024/25 Total change]]","v":0},{"$f":"Dataset[[#This Row],[2025/26 Baseline]]+Dataset[[#This Row],[2025/26 Total change]]","v":0},{"$f":"Dataset[[#This Row],[2026/27 Baseline]]+Dataset[[#This Row],[2026/27 Total change]]","v":0}]
["NAT|Non-transfer item","26|Contractors","2024_25","MTEF2024",26,3,2,44673,786,"26","03","02","044673","000786","26|03|02","01","01","02","16","16","01|01|02|16|16","National","Military Veterans","Empowerment and Stakeholder Management","Empowerment and Skills Development","Non-transfer item","Current","Current payments","Goods and services","Contractors","Contractors","Peace and security","Defence and state security","NAT",0,0,0,69,69,69,0,68,71,74,77,null,null,null,null,null,null,null,null,null,null,null,null,null,null,null,null,null,null,null,null,null,null,null,null,null,null,null,null,null,null,null,null,null,null,{"$f":"Dataset[[#This Row],[2024/25 From - Spending review Topic 1]]+Dataset[[#This Row],[2024/25 From - Spending review Topic 2]]+Dataset[[#This Row],[2024/25 From - Spending review Topic 3]]+Dataset[[#This Row],[2024/25 From - Spending review Topic 4]]+Dataset[[#This Row],[2024/25 From - Other reallocations]]","v":0},{"$f":"Dataset[[#This Row],[2025/26 From - Spending review Topic 1]]+Dataset[[#This Row],[2025/26 From - Spending review Topic 2]]+Dataset[[#This Row],[2025/26 From - Spending review Topic 3]]+Dataset[[#This Row],[2025/26 From - Spending review Topic 4]]+Dataset[[#This Row],[2025/26 From - Other reallocations]]","v":0},{"$f":"Dataset[[#This Row],[2026/27 From - Spending review Topic 1]]+Dataset[[#This Row],[2026/27 From - Spending review Topic 2]]+Dataset[[#This Row],[2026/27 From - Spending review Topic 3]]+Dataset[[#This Row],[2026/27 From - Spending review Topic 4]]+Dataset[[#This Row],[2026/27 From - Other reallocations]]","v":0},{"$f":"Dataset[[#This Row],[2024/25 To - Spending review Topic 1]]+Dataset[[#This Row],[2024/25 To - Spending review Topic 2]]+Dataset[[#This Row],[2024/25 To - Spending review Topic 3]]+Dataset[[#This Row],[2024/25 To - Spending review Topic 4]]+Dataset[[#This Row],[2024/25 To - Other reallocations]]","v":0},{"$f":"Dataset[[#This Row],[2025/26 To - Spending review Topic 1]]+Dataset[[#This Row],[2025/26 To - Spending review Topic 2]]+Dataset[[#This Row],[2025/26 To - Spending review Topic 3]]+Dataset[[#This Row],[2025/26 To - Spending review Topic 4]]+Dataset[[#This Row],[2025/26 To - Other reallocations]]","v":0},{"$f":"Dataset[[#This Row],[2026/27 To - Spending review Topic 1]]+Dataset[[#This Row],[2026/27 To - Spending review Topic 2]]+Dataset[[#This Row],[2026/27 To - Spending review Topic 3]]+Dataset[[#This Row],[2026/27 To - Spending review Topic 4]]+Dataset[[#This Row],[2026/27 To - Other reallocations]]","v":0},{"$f":"Dataset[[#This Row],[2024/25 Reduction]]+Dataset[[#This Row],[2024/25 From - Total]]","v":0},{"$f":"Dataset[[#This Row],[2025/26 Reduction]]+Dataset[[#This Row],[2025/26 From - Total]]","v":0},{"$f":"Dataset[[#This Row],[2026/27 Reduction]]+Dataset[[#This Row],[2026/27 From - Total]]","v":0},{"$f":"Dataset[[#This Row],[2023/24 Reduction]]","v":0},{"$f":"SUM(Dataset[[#This Row],[2024/25 Reduction]],Dataset[[#This Row],[2024/25 From - Total]],Dataset[[#This Row],[2024/25 To - Total]])","v":0},{"$f":"SUM(Dataset[[#This Row],[2025/26 Reduction]],Dataset[[#This Row],[2025/26 From - Total]],Dataset[[#This Row],[2025/26 To - Total]])","v":0},{"$f":"SUM(Dataset[[#This Row],[2026/27 Reduction]],Dataset[[#This Row],[2026/27 From - Total]],Dataset[[#This Row],[2026/27 To - Total]])","v":0},{"$f":"Dataset[[#This Row],[2023/24 Baseline]]+Dataset[[#This Row],[2023/24 Total change]]","v":68},{"$f":"Dataset[[#This Row],[2024/25 Baseline]]+Dataset[[#This Row],[2024/25 Total change]]","v":71},{"$f":"Dataset[[#This Row],[2025/26 Baseline]]+Dataset[[#This Row],[2025/26 Total change]]","v":74},{"$f":"Dataset[[#This Row],[2026/27 Baseline]]+Dataset[[#This Row],[2026/27 Total change]]","v":77}]
["NAT|Non-transfer item","26|Agency and support/outsourced services","2024_25","MTEF2024",26,3,2,44674,787,"26","03","02","044674","000787","26|03|02","01","01","02","17","17","01|01|02|17|17","National","Military Veterans","Empowerment and Stakeholder Management","Empowerment and Skills Development","Non-transfer item","Current","Current payments","Goods and services","Agency and support/outsourced services","Agency and support/outsourced services","Peace and security","Defence and state security","NAT",0,0,0,0,0,0,0,0,0,0,0,null,null,null,null,null,null,null,null,null,null,null,null,null,null,null,null,null,null,null,null,null,null,null,null,null,null,null,null,null,null,null,null,null,null,{"$f":"Dataset[[#This Row],[2024/25 From - Spending review Topic 1]]+Dataset[[#This Row],[2024/25 From - Spending review Topic 2]]+Dataset[[#This Row],[2024/25 From - Spending review Topic 3]]+Dataset[[#This Row],[2024/25 From - Spending review Topic 4]]+Dataset[[#This Row],[2024/25 From - Other reallocations]]","v":0},{"$f":"Dataset[[#This Row],[2025/26 From - Spending review Topic 1]]+Dataset[[#This Row],[2025/26 From - Spending review Topic 2]]+Dataset[[#This Row],[2025/26 From - Spending review Topic 3]]+Dataset[[#This Row],[2025/26 From - Spending review Topic 4]]+Dataset[[#This Row],[2025/26 From - Other reallocations]]","v":0},{"$f":"Dataset[[#This Row],[2026/27 From - Spending review Topic 1]]+Dataset[[#This Row],[2026/27 From - Spending review Topic 2]]+Dataset[[#This Row],[2026/27 From - Spending review Topic 3]]+Dataset[[#This Row],[2026/27 From - Spending review Topic 4]]+Dataset[[#This Row],[2026/27 From - Other reallocations]]","v":0},{"$f":"Dataset[[#This Row],[2024/25 To - Spending review Topic 1]]+Dataset[[#This Row],[2024/25 To - Spending review Topic 2]]+Dataset[[#This Row],[2024/25 To - Spending review Topic 3]]+Dataset[[#This Row],[2024/25 To - Spending review Topic 4]]+Dataset[[#This Row],[2024/25 To - Other reallocations]]","v":0},{"$f":"Dataset[[#This Row],[2025/26 To - Spending review Topic 1]]+Dataset[[#This Row],[2025/26 To - Spending review Topic 2]]+Dataset[[#This Row],[2025/26 To - Spending review Topic 3]]+Dataset[[#This Row],[2025/26 To - Spending review Topic 4]]+Dataset[[#This Row],[2025/26 To - Other reallocations]]","v":0},{"$f":"Dataset[[#This Row],[2026/27 To - Spending review Topic 1]]+Dataset[[#This Row],[2026/27 To - Spending review Topic 2]]+Dataset[[#This Row],[2026/27 To - Spending review Topic 3]]+Dataset[[#This Row],[2026/27 To - Spending review Topic 4]]+Dataset[[#This Row],[2026/27 To - Other reallocations]]","v":0},{"$f":"Dataset[[#This Row],[2024/25 Reduction]]+Dataset[[#This Row],[2024/25 From - Total]]","v":0},{"$f":"Dataset[[#This Row],[2025/26 Reduction]]+Dataset[[#This Row],[2025/26 From - Total]]","v":0},{"$f":"Dataset[[#This Row],[2026/27 Reduction]]+Dataset[[#This Row],[2026/27 From - Total]]","v":0},{"$f":"Dataset[[#This Row],[2023/24 Reduction]]","v":0},{"$f":"SUM(Dataset[[#This Row],[2024/25 Reduction]],Dataset[[#This Row],[2024/25 From - Total]],Dataset[[#This Row],[2024/25 To - Total]])","v":0},{"$f":"SUM(Dataset[[#This Row],[2025/26 Reduction]],Dataset[[#This Row],[2025/26 From - Total]],Dataset[[#This Row],[2025/26 To - Total]])","v":0},{"$f":"SUM(Dataset[[#This Row],[2026/27 Reduction]],Dataset[[#This Row],[2026/27 From - Total]],Dataset[[#This Row],[2026/27 To - Total]])","v":0},{"$f":"Dataset[[#This Row],[2023/24 Baseline]]+Dataset[[#This Row],[2023/24 Total change]]","v":0},{"$f":"Dataset[[#This Row],[2024/25 Baseline]]+Dataset[[#This Row],[2024/25 Total change]]","v":0},{"$f":"Dataset[[#This Row],[2025/26 Baseline]]+Dataset[[#This Row],[2025/26 Total change]]","v":0},{"$f":"Dataset[[#This Row],[2026/27 Baseline]]+Dataset[[#This Row],[2026/27 Total change]]","v":0}]
["NAT|Non-transfer item","26|Entertainment","2024_25","MTEF2024",26,3,2,44675,788,"26","03","02","044675","000788","26|03|02","01","01","02","18","18","01|01|02|18|18","National","Military Veterans","Empowerment and Stakeholder Management","Empowerment and Skills Development","Non-transfer item","Current","Current payments","Goods and services","Entertainment","Entertainment","Peace and security","Defence and state security","NAT",0,0,0,0,0,0,0,0,0,0,0,null,null,null,null,null,null,null,null,null,null,null,null,null,null,null,null,null,null,null,null,null,null,null,null,null,null,null,null,null,null,null,null,null,null,{"$f":"Dataset[[#This Row],[2024/25 From - Spending review Topic 1]]+Dataset[[#This Row],[2024/25 From - Spending review Topic 2]]+Dataset[[#This Row],[2024/25 From - Spending review Topic 3]]+Dataset[[#This Row],[2024/25 From - Spending review Topic 4]]+Dataset[[#This Row],[2024/25 From - Other reallocations]]","v":0},{"$f":"Dataset[[#This Row],[2025/26 From - Spending review Topic 1]]+Dataset[[#This Row],[2025/26 From - Spending review Topic 2]]+Dataset[[#This Row],[2025/26 From - Spending review Topic 3]]+Dataset[[#This Row],[2025/26 From - Spending review Topic 4]]+Dataset[[#This Row],[2025/26 From - Other reallocations]]","v":0},{"$f":"Dataset[[#This Row],[2026/27 From - Spending review Topic 1]]+Dataset[[#This Row],[2026/27 From - Spending review Topic 2]]+Dataset[[#This Row],[2026/27 From - Spending review Topic 3]]+Dataset[[#This Row],[2026/27 From - Spending review Topic 4]]+Dataset[[#This Row],[2026/27 From - Other reallocations]]","v":0},{"$f":"Dataset[[#This Row],[2024/25 To - Spending review Topic 1]]+Dataset[[#This Row],[2024/25 To - Spending review Topic 2]]+Dataset[[#This Row],[2024/25 To - Spending review Topic 3]]+Dataset[[#This Row],[2024/25 To - Spending review Topic 4]]+Dataset[[#This Row],[2024/25 To - Other reallocations]]","v":0},{"$f":"Dataset[[#This Row],[2025/26 To - Spending review Topic 1]]+Dataset[[#This Row],[2025/26 To - Spending review Topic 2]]+Dataset[[#This Row],[2025/26 To - Spending review Topic 3]]+Dataset[[#This Row],[2025/26 To - Spending review Topic 4]]+Dataset[[#This Row],[2025/26 To - Other reallocations]]","v":0},{"$f":"Dataset[[#This Row],[2026/27 To - Spending review Topic 1]]+Dataset[[#This Row],[2026/27 To - Spending review Topic 2]]+Dataset[[#This Row],[2026/27 To - Spending review Topic 3]]+Dataset[[#This Row],[2026/27 To - Spending review Topic 4]]+Dataset[[#This Row],[2026/27 To - Other reallocations]]","v":0},{"$f":"Dataset[[#This Row],[2024/25 Reduction]]+Dataset[[#This Row],[2024/25 From - Total]]","v":0},{"$f":"Dataset[[#This Row],[2025/26 Reduction]]+Dataset[[#This Row],[2025/26 From - Total]]","v":0},{"$f":"Dataset[[#This Row],[2026/27 Reduction]]+Dataset[[#This Row],[2026/27 From - Total]]","v":0},{"$f":"Dataset[[#This Row],[2023/24 Reduction]]","v":0},{"$f":"SUM(Dataset[[#This Row],[2024/25 Reduction]],Dataset[[#This Row],[2024/25 From - Total]],Dataset[[#This Row],[2024/25 To - Total]])","v":0},{"$f":"SUM(Dataset[[#This Row],[2025/26 Reduction]],Dataset[[#This Row],[2025/26 From - Total]],Dataset[[#This Row],[2025/26 To - Total]])","v":0},{"$f":"SUM(Dataset[[#This Row],[2026/27 Reduction]],Dataset[[#This Row],[2026/27 From - Total]],Dataset[[#This Row],[2026/27 To - Total]])","v":0},{"$f":"Dataset[[#This Row],[2023/24 Baseline]]+Dataset[[#This Row],[2023/24 Total change]]","v":0},{"$f":"Dataset[[#This Row],[2024/25 Baseline]]+Dataset[[#This Row],[2024/25 Total change]]","v":0},{"$f":"Dataset[[#This Row],[2025/26 Baseline]]+Dataset[[#This Row],[2025/26 Total change]]","v":0},{"$f":"Dataset[[#This Row],[2026/27 Baseline]]+Dataset[[#This Row],[2026/27 Total change]]","v":0}]
["NAT|Non-transfer item","26|Fleet services (including government motor transport)","2024_25","MTEF2024",26,3,2,44676,789,"26","03","02","044676","000789","26|03|02","01","01","02","19","19","01|01|02|19|19","National","Military Veterans","Empowerment and Stakeholder Management","Empowerment and Skills Development","Non-transfer item","Current","Current payments","Goods and services","Fleet services (including government motor transport)","Fleet services (including government motor transport)","Peace and security","Defence and state security","NAT",0,0,0,0,0,0,0,0,0,0,0,null,null,null,null,null,null,null,null,null,null,null,null,null,null,null,null,null,null,null,null,null,null,null,null,null,null,null,null,null,null,null,null,null,null,{"$f":"Dataset[[#This Row],[2024/25 From - Spending review Topic 1]]+Dataset[[#This Row],[2024/25 From - Spending review Topic 2]]+Dataset[[#This Row],[2024/25 From - Spending review Topic 3]]+Dataset[[#This Row],[2024/25 From - Spending review Topic 4]]+Dataset[[#This Row],[2024/25 From - Other reallocations]]","v":0},{"$f":"Dataset[[#This Row],[2025/26 From - Spending review Topic 1]]+Dataset[[#This Row],[2025/26 From - Spending review Topic 2]]+Dataset[[#This Row],[2025/26 From - Spending review Topic 3]]+Dataset[[#This Row],[2025/26 From - Spending review Topic 4]]+Dataset[[#This Row],[2025/26 From - Other reallocations]]","v":0},{"$f":"Dataset[[#This Row],[2026/27 From - Spending review Topic 1]]+Dataset[[#This Row],[2026/27 From - Spending review Topic 2]]+Dataset[[#This Row],[2026/27 From - Spending review Topic 3]]+Dataset[[#This Row],[2026/27 From - Spending review Topic 4]]+Dataset[[#This Row],[2026/27 From - Other reallocations]]","v":0},{"$f":"Dataset[[#This Row],[2024/25 To - Spending review Topic 1]]+Dataset[[#This Row],[2024/25 To - Spending review Topic 2]]+Dataset[[#This Row],[2024/25 To - Spending review Topic 3]]+Dataset[[#This Row],[2024/25 To - Spending review Topic 4]]+Dataset[[#This Row],[2024/25 To - Other reallocations]]","v":0},{"$f":"Dataset[[#This Row],[2025/26 To - Spending review Topic 1]]+Dataset[[#This Row],[2025/26 To - Spending review Topic 2]]+Dataset[[#This Row],[2025/26 To - Spending review Topic 3]]+Dataset[[#This Row],[2025/26 To - Spending review Topic 4]]+Dataset[[#This Row],[2025/26 To - Other reallocations]]","v":0},{"$f":"Dataset[[#This Row],[2026/27 To - Spending review Topic 1]]+Dataset[[#This Row],[2026/27 To - Spending review Topic 2]]+Dataset[[#This Row],[2026/27 To - Spending review Topic 3]]+Dataset[[#This Row],[2026/27 To - Spending review Topic 4]]+Dataset[[#This Row],[2026/27 To - Other reallocations]]","v":0},{"$f":"Dataset[[#This Row],[2024/25 Reduction]]+Dataset[[#This Row],[2024/25 From - Total]]","v":0},{"$f":"Dataset[[#This Row],[2025/26 Reduction]]+Dataset[[#This Row],[2025/26 From - Total]]","v":0},{"$f":"Dataset[[#This Row],[2026/27 Reduction]]+Dataset[[#This Row],[2026/27 From - Total]]","v":0},{"$f":"Dataset[[#This Row],[2023/24 Reduction]]","v":0},{"$f":"SUM(Dataset[[#This Row],[2024/25 Reduction]],Dataset[[#This Row],[2024/25 From - Total]],Dataset[[#This Row],[2024/25 To - Total]])","v":0},{"$f":"SUM(Dataset[[#This Row],[2025/26 Reduction]],Dataset[[#This Row],[2025/26 From - Total]],Dataset[[#This Row],[2025/26 To - Total]])","v":0},{"$f":"SUM(Dataset[[#This Row],[2026/27 Reduction]],Dataset[[#This Row],[2026/27 From - Total]],Dataset[[#This Row],[2026/27 To - Total]])","v":0},{"$f":"Dataset[[#This Row],[2023/24 Baseline]]+Dataset[[#This Row],[2023/24 Total change]]","v":0},{"$f":"Dataset[[#This Row],[2024/25 Baseline]]+Dataset[[#This Row],[2024/25 Total change]]","v":0},{"$f":"Dataset[[#This Row],[2025/26 Baseline]]+Dataset[[#This Row],[2025/26 Total change]]","v":0},{"$f":"Dataset[[#This Row],[2026/27 Baseline]]+Dataset[[#This Row],[2026/27 Total change]]","v":0}]
["NAT|Non-transfer item","26|Housing","2024_25","MTEF2024",26,3,2,44677,790,"26","03","02","044677","000790","26|03|02","01","01","02","20","20","01|01|02|20|20","National","Military Veterans","Empowerment and Stakeholder Management","Empowerment and Skills Development","Non-transfer item","Current","Current payments","Goods and services","Housing","Housing","Peace and security","Defence and state security","NAT",0,0,0,0,0,0,0,0,0,0,0,null,null,null,null,null,null,null,null,null,null,null,null,null,null,null,null,null,null,null,null,null,null,null,null,null,null,null,null,null,null,null,null,null,null,{"$f":"Dataset[[#This Row],[2024/25 From - Spending review Topic 1]]+Dataset[[#This Row],[2024/25 From - Spending review Topic 2]]+Dataset[[#This Row],[2024/25 From - Spending review Topic 3]]+Dataset[[#This Row],[2024/25 From - Spending review Topic 4]]+Dataset[[#This Row],[2024/25 From - Other reallocations]]","v":0},{"$f":"Dataset[[#This Row],[2025/26 From - Spending review Topic 1]]+Dataset[[#This Row],[2025/26 From - Spending review Topic 2]]+Dataset[[#This Row],[2025/26 From - Spending review Topic 3]]+Dataset[[#This Row],[2025/26 From - Spending review Topic 4]]+Dataset[[#This Row],[2025/26 From - Other reallocations]]","v":0},{"$f":"Dataset[[#This Row],[2026/27 From - Spending review Topic 1]]+Dataset[[#This Row],[2026/27 From - Spending review Topic 2]]+Dataset[[#This Row],[2026/27 From - Spending review Topic 3]]+Dataset[[#This Row],[2026/27 From - Spending review Topic 4]]+Dataset[[#This Row],[2026/27 From - Other reallocations]]","v":0},{"$f":"Dataset[[#This Row],[2024/25 To - Spending review Topic 1]]+Dataset[[#This Row],[2024/25 To - Spending review Topic 2]]+Dataset[[#This Row],[2024/25 To - Spending review Topic 3]]+Dataset[[#This Row],[2024/25 To - Spending review Topic 4]]+Dataset[[#This Row],[2024/25 To - Other reallocations]]","v":0},{"$f":"Dataset[[#This Row],[2025/26 To - Spending review Topic 1]]+Dataset[[#This Row],[2025/26 To - Spending review Topic 2]]+Dataset[[#This Row],[2025/26 To - Spending review Topic 3]]+Dataset[[#This Row],[2025/26 To - Spending review Topic 4]]+Dataset[[#This Row],[2025/26 To - Other reallocations]]","v":0},{"$f":"Dataset[[#This Row],[2026/27 To - Spending review Topic 1]]+Dataset[[#This Row],[2026/27 To - Spending review Topic 2]]+Dataset[[#This Row],[2026/27 To - Spending review Topic 3]]+Dataset[[#This Row],[2026/27 To - Spending review Topic 4]]+Dataset[[#This Row],[2026/27 To - Other reallocations]]","v":0},{"$f":"Dataset[[#This Row],[2024/25 Reduction]]+Dataset[[#This Row],[2024/25 From - Total]]","v":0},{"$f":"Dataset[[#This Row],[2025/26 Reduction]]+Dataset[[#This Row],[2025/26 From - Total]]","v":0},{"$f":"Dataset[[#This Row],[2026/27 Reduction]]+Dataset[[#This Row],[2026/27 From - Total]]","v":0},{"$f":"Dataset[[#This Row],[2023/24 Reduction]]","v":0},{"$f":"SUM(Dataset[[#This Row],[2024/25 Reduction]],Dataset[[#This Row],[2024/25 From - Total]],Dataset[[#This Row],[2024/25 To - Total]])","v":0},{"$f":"SUM(Dataset[[#This Row],[2025/26 Reduction]],Dataset[[#This Row],[2025/26 From - Total]],Dataset[[#This Row],[2025/26 To - Total]])","v":0},{"$f":"SUM(Dataset[[#This Row],[2026/27 Reduction]],Dataset[[#This Row],[2026/27 From - Total]],Dataset[[#This Row],[2026/27 To - Total]])","v":0},{"$f":"Dataset[[#This Row],[2023/24 Baseline]]+Dataset[[#This Row],[2023/24 Total change]]","v":0},{"$f":"Dataset[[#This Row],[2024/25 Baseline]]+Dataset[[#This Row],[2024/25 Total change]]","v":0},{"$f":"Dataset[[#This Row],[2025/26 Baseline]]+Dataset[[#This Row],[2025/26 Total change]]","v":0},{"$f":"Dataset[[#This Row],[2026/27 Baseline]]+Dataset[[#This Row],[2026/27 Total change]]","v":0}]
["NAT|Non-transfer item","26|Inventory: Clothing material and accessories","2024_25","MTEF2024",26,3,2,44678,791,"26","03","02","044678","000791","26|03|02","01","01","02","21","21","01|01|02|21|21","National","Military Veterans","Empowerment and Stakeholder Management","Empowerment and Skills Development","Non-transfer item","Current","Current payments","Goods and services","Inventory: Clothing material and accessories","Inventory: Clothing material and accessories","Peace and security","Defence and state security","NAT",0,0,0,0,0,0,0,0,0,0,0,null,null,null,null,null,null,null,null,null,null,null,null,null,null,null,null,null,null,null,null,null,null,null,null,null,null,null,null,null,null,null,null,null,null,{"$f":"Dataset[[#This Row],[2024/25 From - Spending review Topic 1]]+Dataset[[#This Row],[2024/25 From - Spending review Topic 2]]+Dataset[[#This Row],[2024/25 From - Spending review Topic 3]]+Dataset[[#This Row],[2024/25 From - Spending review Topic 4]]+Dataset[[#This Row],[2024/25 From - Other reallocations]]","v":0},{"$f":"Dataset[[#This Row],[2025/26 From - Spending review Topic 1]]+Dataset[[#This Row],[2025/26 From - Spending review Topic 2]]+Dataset[[#This Row],[2025/26 From - Spending review Topic 3]]+Dataset[[#This Row],[2025/26 From - Spending review Topic 4]]+Dataset[[#This Row],[2025/26 From - Other reallocations]]","v":0},{"$f":"Dataset[[#This Row],[2026/27 From - Spending review Topic 1]]+Dataset[[#This Row],[2026/27 From - Spending review Topic 2]]+Dataset[[#This Row],[2026/27 From - Spending review Topic 3]]+Dataset[[#This Row],[2026/27 From - Spending review Topic 4]]+Dataset[[#This Row],[2026/27 From - Other reallocations]]","v":0},{"$f":"Dataset[[#This Row],[2024/25 To - Spending review Topic 1]]+Dataset[[#This Row],[2024/25 To - Spending review Topic 2]]+Dataset[[#This Row],[2024/25 To - Spending review Topic 3]]+Dataset[[#This Row],[2024/25 To - Spending review Topic 4]]+Dataset[[#This Row],[2024/25 To - Other reallocations]]","v":0},{"$f":"Dataset[[#This Row],[2025/26 To - Spending review Topic 1]]+Dataset[[#This Row],[2025/26 To - Spending review Topic 2]]+Dataset[[#This Row],[2025/26 To - Spending review Topic 3]]+Dataset[[#This Row],[2025/26 To - Spending review Topic 4]]+Dataset[[#This Row],[2025/26 To - Other reallocations]]","v":0},{"$f":"Dataset[[#This Row],[2026/27 To - Spending review Topic 1]]+Dataset[[#This Row],[2026/27 To - Spending review Topic 2]]+Dataset[[#This Row],[2026/27 To - Spending review Topic 3]]+Dataset[[#This Row],[2026/27 To - Spending review Topic 4]]+Dataset[[#This Row],[2026/27 To - Other reallocations]]","v":0},{"$f":"Dataset[[#This Row],[2024/25 Reduction]]+Dataset[[#This Row],[2024/25 From - Total]]","v":0},{"$f":"Dataset[[#This Row],[2025/26 Reduction]]+Dataset[[#This Row],[2025/26 From - Total]]","v":0},{"$f":"Dataset[[#This Row],[2026/27 Reduction]]+Dataset[[#This Row],[2026/27 From - Total]]","v":0},{"$f":"Dataset[[#This Row],[2023/24 Reduction]]","v":0},{"$f":"SUM(Dataset[[#This Row],[2024/25 Reduction]],Dataset[[#This Row],[2024/25 From - Total]],Dataset[[#This Row],[2024/25 To - Total]])","v":0},{"$f":"SUM(Dataset[[#This Row],[2025/26 Reduction]],Dataset[[#This Row],[2025/26 From - Total]],Dataset[[#This Row],[2025/26 To - Total]])","v":0},{"$f":"SUM(Dataset[[#This Row],[2026/27 Reduction]],Dataset[[#This Row],[2026/27 From - Total]],Dataset[[#This Row],[2026/27 To - Total]])","v":0},{"$f":"Dataset[[#This Row],[2023/24 Baseline]]+Dataset[[#This Row],[2023/24 Total change]]","v":0},{"$f":"Dataset[[#This Row],[2024/25 Baseline]]+Dataset[[#This Row],[2024/25 Total change]]","v":0},{"$f":"Dataset[[#This Row],[2025/26 Baseline]]+Dataset[[#This Row],[2025/26 Total change]]","v":0},{"$f":"Dataset[[#This Row],[2026/27 Baseline]]+Dataset[[#This Row],[2026/27 Total change]]","v":0}]
["NAT|Non-transfer item","26|Inventory: Farming supplies","2024_25","MTEF2024",26,3,2,44679,792,"26","03","02","044679","000792","26|03|02","01","01","02","22","22","01|01|02|22|22","National","Military Veterans","Empowerment and Stakeholder Management","Empowerment and Skills Development","Non-transfer item","Current","Current payments","Goods and services","Inventory: Farming supplies","Inventory: Farming supplies","Peace and security","Defence and state security","NAT",0,0,0,0,0,0,0,0,0,0,0,null,null,null,null,null,null,null,null,null,null,null,null,null,null,null,null,null,null,null,null,null,null,null,null,null,null,null,null,null,null,null,null,null,null,{"$f":"Dataset[[#This Row],[2024/25 From - Spending review Topic 1]]+Dataset[[#This Row],[2024/25 From - Spending review Topic 2]]+Dataset[[#This Row],[2024/25 From - Spending review Topic 3]]+Dataset[[#This Row],[2024/25 From - Spending review Topic 4]]+Dataset[[#This Row],[2024/25 From - Other reallocations]]","v":0},{"$f":"Dataset[[#This Row],[2025/26 From - Spending review Topic 1]]+Dataset[[#This Row],[2025/26 From - Spending review Topic 2]]+Dataset[[#This Row],[2025/26 From - Spending review Topic 3]]+Dataset[[#This Row],[2025/26 From - Spending review Topic 4]]+Dataset[[#This Row],[2025/26 From - Other reallocations]]","v":0},{"$f":"Dataset[[#This Row],[2026/27 From - Spending review Topic 1]]+Dataset[[#This Row],[2026/27 From - Spending review Topic 2]]+Dataset[[#This Row],[2026/27 From - Spending review Topic 3]]+Dataset[[#This Row],[2026/27 From - Spending review Topic 4]]+Dataset[[#This Row],[2026/27 From - Other reallocations]]","v":0},{"$f":"Dataset[[#This Row],[2024/25 To - Spending review Topic 1]]+Dataset[[#This Row],[2024/25 To - Spending review Topic 2]]+Dataset[[#This Row],[2024/25 To - Spending review Topic 3]]+Dataset[[#This Row],[2024/25 To - Spending review Topic 4]]+Dataset[[#This Row],[2024/25 To - Other reallocations]]","v":0},{"$f":"Dataset[[#This Row],[2025/26 To - Spending review Topic 1]]+Dataset[[#This Row],[2025/26 To - Spending review Topic 2]]+Dataset[[#This Row],[2025/26 To - Spending review Topic 3]]+Dataset[[#This Row],[2025/26 To - Spending review Topic 4]]+Dataset[[#This Row],[2025/26 To - Other reallocations]]","v":0},{"$f":"Dataset[[#This Row],[2026/27 To - Spending review Topic 1]]+Dataset[[#This Row],[2026/27 To - Spending review Topic 2]]+Dataset[[#This Row],[2026/27 To - Spending review Topic 3]]+Dataset[[#This Row],[2026/27 To - Spending review Topic 4]]+Dataset[[#This Row],[2026/27 To - Other reallocations]]","v":0},{"$f":"Dataset[[#This Row],[2024/25 Reduction]]+Dataset[[#This Row],[2024/25 From - Total]]","v":0},{"$f":"Dataset[[#This Row],[2025/26 Reduction]]+Dataset[[#This Row],[2025/26 From - Total]]","v":0},{"$f":"Dataset[[#This Row],[2026/27 Reduction]]+Dataset[[#This Row],[2026/27 From - Total]]","v":0},{"$f":"Dataset[[#This Row],[2023/24 Reduction]]","v":0},{"$f":"SUM(Dataset[[#This Row],[2024/25 Reduction]],Dataset[[#This Row],[2024/25 From - Total]],Dataset[[#This Row],[2024/25 To - Total]])","v":0},{"$f":"SUM(Dataset[[#This Row],[2025/26 Reduction]],Dataset[[#This Row],[2025/26 From - Total]],Dataset[[#This Row],[2025/26 To - Total]])","v":0},{"$f":"SUM(Dataset[[#This Row],[2026/27 Reduction]],Dataset[[#This Row],[2026/27 From - Total]],Dataset[[#This Row],[2026/27 To - Total]])","v":0},{"$f":"Dataset[[#This Row],[2023/24 Baseline]]+Dataset[[#This Row],[2023/24 Total change]]","v":0},{"$f":"Dataset[[#This Row],[2024/25 Baseline]]+Dataset[[#This Row],[2024/25 Total change]]","v":0},{"$f":"Dataset[[#This Row],[2025/26 Baseline]]+Dataset[[#This Row],[2025/26 Total change]]","v":0},{"$f":"Dataset[[#This Row],[2026/27 Baseline]]+Dataset[[#This Row],[2026/27 Total change]]","v":0}]
["NAT|Non-transfer item","26|Inventory: Food and food supplies","2024_25","MTEF2024",26,3,2,44680,793,"26","03","02","044680","000793","26|03|02","01","01","02","23","23","01|01|02|23|23","National","Military Veterans","Empowerment and Stakeholder Management","Empowerment and Skills Development","Non-transfer item","Current","Current payments","Goods and services","Inventory: Food and food supplies","Inventory: Food and food supplies","Peace and security","Defence and state security","NAT",0,0,0,0,0,0,0,0,0,0,0,null,null,null,null,null,null,null,null,null,null,null,null,null,null,null,null,null,null,null,null,null,null,null,null,null,null,null,null,null,null,null,null,null,null,{"$f":"Dataset[[#This Row],[2024/25 From - Spending review Topic 1]]+Dataset[[#This Row],[2024/25 From - Spending review Topic 2]]+Dataset[[#This Row],[2024/25 From - Spending review Topic 3]]+Dataset[[#This Row],[2024/25 From - Spending review Topic 4]]+Dataset[[#This Row],[2024/25 From - Other reallocations]]","v":0},{"$f":"Dataset[[#This Row],[2025/26 From - Spending review Topic 1]]+Dataset[[#This Row],[2025/26 From - Spending review Topic 2]]+Dataset[[#This Row],[2025/26 From - Spending review Topic 3]]+Dataset[[#This Row],[2025/26 From - Spending review Topic 4]]+Dataset[[#This Row],[2025/26 From - Other reallocations]]","v":0},{"$f":"Dataset[[#This Row],[2026/27 From - Spending review Topic 1]]+Dataset[[#This Row],[2026/27 From - Spending review Topic 2]]+Dataset[[#This Row],[2026/27 From - Spending review Topic 3]]+Dataset[[#This Row],[2026/27 From - Spending review Topic 4]]+Dataset[[#This Row],[2026/27 From - Other reallocations]]","v":0},{"$f":"Dataset[[#This Row],[2024/25 To - Spending review Topic 1]]+Dataset[[#This Row],[2024/25 To - Spending review Topic 2]]+Dataset[[#This Row],[2024/25 To - Spending review Topic 3]]+Dataset[[#This Row],[2024/25 To - Spending review Topic 4]]+Dataset[[#This Row],[2024/25 To - Other reallocations]]","v":0},{"$f":"Dataset[[#This Row],[2025/26 To - Spending review Topic 1]]+Dataset[[#This Row],[2025/26 To - Spending review Topic 2]]+Dataset[[#This Row],[2025/26 To - Spending review Topic 3]]+Dataset[[#This Row],[2025/26 To - Spending review Topic 4]]+Dataset[[#This Row],[2025/26 To - Other reallocations]]","v":0},{"$f":"Dataset[[#This Row],[2026/27 To - Spending review Topic 1]]+Dataset[[#This Row],[2026/27 To - Spending review Topic 2]]+Dataset[[#This Row],[2026/27 To - Spending review Topic 3]]+Dataset[[#This Row],[2026/27 To - Spending review Topic 4]]+Dataset[[#This Row],[2026/27 To - Other reallocations]]","v":0},{"$f":"Dataset[[#This Row],[2024/25 Reduction]]+Dataset[[#This Row],[2024/25 From - Total]]","v":0},{"$f":"Dataset[[#This Row],[2025/26 Reduction]]+Dataset[[#This Row],[2025/26 From - Total]]","v":0},{"$f":"Dataset[[#This Row],[2026/27 Reduction]]+Dataset[[#This Row],[2026/27 From - Total]]","v":0},{"$f":"Dataset[[#This Row],[2023/24 Reduction]]","v":0},{"$f":"SUM(Dataset[[#This Row],[2024/25 Reduction]],Dataset[[#This Row],[2024/25 From - Total]],Dataset[[#This Row],[2024/25 To - Total]])","v":0},{"$f":"SUM(Dataset[[#This Row],[2025/26 Reduction]],Dataset[[#This Row],[2025/26 From - Total]],Dataset[[#This Row],[2025/26 To - Total]])","v":0},{"$f":"SUM(Dataset[[#This Row],[2026/27 Reduction]],Dataset[[#This Row],[2026/27 From - Total]],Dataset[[#This Row],[2026/27 To - Total]])","v":0},{"$f":"Dataset[[#This Row],[2023/24 Baseline]]+Dataset[[#This Row],[2023/24 Total change]]","v":0},{"$f":"Dataset[[#This Row],[2024/25 Baseline]]+Dataset[[#This Row],[2024/25 Total change]]","v":0},{"$f":"Dataset[[#This Row],[2025/26 Baseline]]+Dataset[[#This Row],[2025/26 Total change]]","v":0},{"$f":"Dataset[[#This Row],[2026/27 Baseline]]+Dataset[[#This Row],[2026/27 Total change]]","v":0}]
["NAT|Non-transfer item","26|Inventory: Fuel, oil and gas","2024_25","MTEF2024",26,3,2,44681,794,"26","03","02","044681","000794","26|03|02","01","01","02","24","24","01|01|02|24|24","National","Military Veterans","Empowerment and Stakeholder Management","Empowerment and Skills Development","Non-transfer item","Current","Current payments","Goods and services","Inventory: Fuel, oil and gas","Inventory: Fuel, oil and gas","Peace and security","Defence and state security","NAT",0,0,0,0,0,0,0,0,0,0,0,null,null,null,null,null,null,null,null,null,null,null,null,null,null,null,null,null,null,null,null,null,null,null,null,null,null,null,null,null,null,null,null,null,null,{"$f":"Dataset[[#This Row],[2024/25 From - Spending review Topic 1]]+Dataset[[#This Row],[2024/25 From - Spending review Topic 2]]+Dataset[[#This Row],[2024/25 From - Spending review Topic 3]]+Dataset[[#This Row],[2024/25 From - Spending review Topic 4]]+Dataset[[#This Row],[2024/25 From - Other reallocations]]","v":0},{"$f":"Dataset[[#This Row],[2025/26 From - Spending review Topic 1]]+Dataset[[#This Row],[2025/26 From - Spending review Topic 2]]+Dataset[[#This Row],[2025/26 From - Spending review Topic 3]]+Dataset[[#This Row],[2025/26 From - Spending review Topic 4]]+Dataset[[#This Row],[2025/26 From - Other reallocations]]","v":0},{"$f":"Dataset[[#This Row],[2026/27 From - Spending review Topic 1]]+Dataset[[#This Row],[2026/27 From - Spending review Topic 2]]+Dataset[[#This Row],[2026/27 From - Spending review Topic 3]]+Dataset[[#This Row],[2026/27 From - Spending review Topic 4]]+Dataset[[#This Row],[2026/27 From - Other reallocations]]","v":0},{"$f":"Dataset[[#This Row],[2024/25 To - Spending review Topic 1]]+Dataset[[#This Row],[2024/25 To - Spending review Topic 2]]+Dataset[[#This Row],[2024/25 To - Spending review Topic 3]]+Dataset[[#This Row],[2024/25 To - Spending review Topic 4]]+Dataset[[#This Row],[2024/25 To - Other reallocations]]","v":0},{"$f":"Dataset[[#This Row],[2025/26 To - Spending review Topic 1]]+Dataset[[#This Row],[2025/26 To - Spending review Topic 2]]+Dataset[[#This Row],[2025/26 To - Spending review Topic 3]]+Dataset[[#This Row],[2025/26 To - Spending review Topic 4]]+Dataset[[#This Row],[2025/26 To - Other reallocations]]","v":0},{"$f":"Dataset[[#This Row],[2026/27 To - Spending review Topic 1]]+Dataset[[#This Row],[2026/27 To - Spending review Topic 2]]+Dataset[[#This Row],[2026/27 To - Spending review Topic 3]]+Dataset[[#This Row],[2026/27 To - Spending review Topic 4]]+Dataset[[#This Row],[2026/27 To - Other reallocations]]","v":0},{"$f":"Dataset[[#This Row],[2024/25 Reduction]]+Dataset[[#This Row],[2024/25 From - Total]]","v":0},{"$f":"Dataset[[#This Row],[2025/26 Reduction]]+Dataset[[#This Row],[2025/26 From - Total]]","v":0},{"$f":"Dataset[[#This Row],[2026/27 Reduction]]+Dataset[[#This Row],[2026/27 From - Total]]","v":0},{"$f":"Dataset[[#This Row],[2023/24 Reduction]]","v":0},{"$f":"SUM(Dataset[[#This Row],[2024/25 Reduction]],Dataset[[#This Row],[2024/25 From - Total]],Dataset[[#This Row],[2024/25 To - Total]])","v":0},{"$f":"SUM(Dataset[[#This Row],[2025/26 Reduction]],Dataset[[#This Row],[2025/26 From - Total]],Dataset[[#This Row],[2025/26 To - Total]])","v":0},{"$f":"SUM(Dataset[[#This Row],[2026/27 Reduction]],Dataset[[#This Row],[2026/27 From - Total]],Dataset[[#This Row],[2026/27 To - Total]])","v":0},{"$f":"Dataset[[#This Row],[2023/24 Baseline]]+Dataset[[#This Row],[2023/24 Total change]]","v":0},{"$f":"Dataset[[#This Row],[2024/25 Baseline]]+Dataset[[#This Row],[2024/25 Total change]]","v":0},{"$f":"Dataset[[#This Row],[2025/26 Baseline]]+Dataset[[#This Row],[2025/26 Total change]]","v":0},{"$f":"Dataset[[#This Row],[2026/27 Baseline]]+Dataset[[#This Row],[2026/27 Total change]]","v":0}]
["NAT|Non-transfer item","26|Inventory: Learner and teacher support material","2024_25","MTEF2024",26,3,2,44682,795,"26","03","02","044682","000795","26|03|02","01","01","02","25","25","01|01|02|25|25","National","Military Veterans","Empowerment and Stakeholder Management","Empowerment and Skills Development","Non-transfer item","Current","Current payments","Goods and services","Inventory: Learner and teacher support material","Inventory: Learner and teacher support material","Peace and security","Defence and state security","NAT",0,0,0,0,0,0,0,0,0,0,0,null,null,null,null,null,null,null,null,null,null,null,null,null,null,null,null,null,null,null,null,null,null,null,null,null,null,null,null,null,null,null,null,null,null,{"$f":"Dataset[[#This Row],[2024/25 From - Spending review Topic 1]]+Dataset[[#This Row],[2024/25 From - Spending review Topic 2]]+Dataset[[#This Row],[2024/25 From - Spending review Topic 3]]+Dataset[[#This Row],[2024/25 From - Spending review Topic 4]]+Dataset[[#This Row],[2024/25 From - Other reallocations]]","v":0},{"$f":"Dataset[[#This Row],[2025/26 From - Spending review Topic 1]]+Dataset[[#This Row],[2025/26 From - Spending review Topic 2]]+Dataset[[#This Row],[2025/26 From - Spending review Topic 3]]+Dataset[[#This Row],[2025/26 From - Spending review Topic 4]]+Dataset[[#This Row],[2025/26 From - Other reallocations]]","v":0},{"$f":"Dataset[[#This Row],[2026/27 From - Spending review Topic 1]]+Dataset[[#This Row],[2026/27 From - Spending review Topic 2]]+Dataset[[#This Row],[2026/27 From - Spending review Topic 3]]+Dataset[[#This Row],[2026/27 From - Spending review Topic 4]]+Dataset[[#This Row],[2026/27 From - Other reallocations]]","v":0},{"$f":"Dataset[[#This Row],[2024/25 To - Spending review Topic 1]]+Dataset[[#This Row],[2024/25 To - Spending review Topic 2]]+Dataset[[#This Row],[2024/25 To - Spending review Topic 3]]+Dataset[[#This Row],[2024/25 To - Spending review Topic 4]]+Dataset[[#This Row],[2024/25 To - Other reallocations]]","v":0},{"$f":"Dataset[[#This Row],[2025/26 To - Spending review Topic 1]]+Dataset[[#This Row],[2025/26 To - Spending review Topic 2]]+Dataset[[#This Row],[2025/26 To - Spending review Topic 3]]+Dataset[[#This Row],[2025/26 To - Spending review Topic 4]]+Dataset[[#This Row],[2025/26 To - Other reallocations]]","v":0},{"$f":"Dataset[[#This Row],[2026/27 To - Spending review Topic 1]]+Dataset[[#This Row],[2026/27 To - Spending review Topic 2]]+Dataset[[#This Row],[2026/27 To - Spending review Topic 3]]+Dataset[[#This Row],[2026/27 To - Spending review Topic 4]]+Dataset[[#This Row],[2026/27 To - Other reallocations]]","v":0},{"$f":"Dataset[[#This Row],[2024/25 Reduction]]+Dataset[[#This Row],[2024/25 From - Total]]","v":0},{"$f":"Dataset[[#This Row],[2025/26 Reduction]]+Dataset[[#This Row],[2025/26 From - Total]]","v":0},{"$f":"Dataset[[#This Row],[2026/27 Reduction]]+Dataset[[#This Row],[2026/27 From - Total]]","v":0},{"$f":"Dataset[[#This Row],[2023/24 Reduction]]","v":0},{"$f":"SUM(Dataset[[#This Row],[2024/25 Reduction]],Dataset[[#This Row],[2024/25 From - Total]],Dataset[[#This Row],[2024/25 To - Total]])","v":0},{"$f":"SUM(Dataset[[#This Row],[2025/26 Reduction]],Dataset[[#This Row],[2025/26 From - Total]],Dataset[[#This Row],[2025/26 To - Total]])","v":0},{"$f":"SUM(Dataset[[#This Row],[2026/27 Reduction]],Dataset[[#This Row],[2026/27 From - Total]],Dataset[[#This Row],[2026/27 To - Total]])","v":0},{"$f":"Dataset[[#This Row],[2023/24 Baseline]]+Dataset[[#This Row],[2023/24 Total change]]","v":0},{"$f":"Dataset[[#This Row],[2024/25 Baseline]]+Dataset[[#This Row],[2024/25 Total change]]","v":0},{"$f":"Dataset[[#This Row],[2025/26 Baseline]]+Dataset[[#This Row],[2025/26 Total change]]","v":0},{"$f":"Dataset[[#This Row],[2026/27 Baseline]]+Dataset[[#This Row],[2026/27 Total change]]","v":0}]
["NAT|Non-transfer item","26|Inventory: Materials and supplies","2024_25","MTEF2024",26,3,2,44683,796,"26","03","02","044683","000796","26|03|02","01","01","02","26","26","01|01|02|26|26","National","Military Veterans","Empowerment and Stakeholder Management","Empowerment and Skills Development","Non-transfer item","Current","Current payments","Goods and services","Inventory: Materials and supplies","Inventory: Materials and supplies","Peace and security","Defence and state security","NAT",0,0,0,0,0,0,0,0,0,0,0,null,null,null,null,null,null,null,null,null,null,null,null,null,null,null,null,null,null,null,null,null,null,null,null,null,null,null,null,null,null,null,null,null,null,{"$f":"Dataset[[#This Row],[2024/25 From - Spending review Topic 1]]+Dataset[[#This Row],[2024/25 From - Spending review Topic 2]]+Dataset[[#This Row],[2024/25 From - Spending review Topic 3]]+Dataset[[#This Row],[2024/25 From - Spending review Topic 4]]+Dataset[[#This Row],[2024/25 From - Other reallocations]]","v":0},{"$f":"Dataset[[#This Row],[2025/26 From - Spending review Topic 1]]+Dataset[[#This Row],[2025/26 From - Spending review Topic 2]]+Dataset[[#This Row],[2025/26 From - Spending review Topic 3]]+Dataset[[#This Row],[2025/26 From - Spending review Topic 4]]+Dataset[[#This Row],[2025/26 From - Other reallocations]]","v":0},{"$f":"Dataset[[#This Row],[2026/27 From - Spending review Topic 1]]+Dataset[[#This Row],[2026/27 From - Spending review Topic 2]]+Dataset[[#This Row],[2026/27 From - Spending review Topic 3]]+Dataset[[#This Row],[2026/27 From - Spending review Topic 4]]+Dataset[[#This Row],[2026/27 From - Other reallocations]]","v":0},{"$f":"Dataset[[#This Row],[2024/25 To - Spending review Topic 1]]+Dataset[[#This Row],[2024/25 To - Spending review Topic 2]]+Dataset[[#This Row],[2024/25 To - Spending review Topic 3]]+Dataset[[#This Row],[2024/25 To - Spending review Topic 4]]+Dataset[[#This Row],[2024/25 To - Other reallocations]]","v":0},{"$f":"Dataset[[#This Row],[2025/26 To - Spending review Topic 1]]+Dataset[[#This Row],[2025/26 To - Spending review Topic 2]]+Dataset[[#This Row],[2025/26 To - Spending review Topic 3]]+Dataset[[#This Row],[2025/26 To - Spending review Topic 4]]+Dataset[[#This Row],[2025/26 To - Other reallocations]]","v":0},{"$f":"Dataset[[#This Row],[2026/27 To - Spending review Topic 1]]+Dataset[[#This Row],[2026/27 To - Spending review Topic 2]]+Dataset[[#This Row],[2026/27 To - Spending review Topic 3]]+Dataset[[#This Row],[2026/27 To - Spending review Topic 4]]+Dataset[[#This Row],[2026/27 To - Other reallocations]]","v":0},{"$f":"Dataset[[#This Row],[2024/25 Reduction]]+Dataset[[#This Row],[2024/25 From - Total]]","v":0},{"$f":"Dataset[[#This Row],[2025/26 Reduction]]+Dataset[[#This Row],[2025/26 From - Total]]","v":0},{"$f":"Dataset[[#This Row],[2026/27 Reduction]]+Dataset[[#This Row],[2026/27 From - Total]]","v":0},{"$f":"Dataset[[#This Row],[2023/24 Reduction]]","v":0},{"$f":"SUM(Dataset[[#This Row],[2024/25 Reduction]],Dataset[[#This Row],[2024/25 From - Total]],Dataset[[#This Row],[2024/25 To - Total]])","v":0},{"$f":"SUM(Dataset[[#This Row],[2025/26 Reduction]],Dataset[[#This Row],[2025/26 From - Total]],Dataset[[#This Row],[2025/26 To - Total]])","v":0},{"$f":"SUM(Dataset[[#This Row],[2026/27 Reduction]],Dataset[[#This Row],[2026/27 From - Total]],Dataset[[#This Row],[2026/27 To - Total]])","v":0},{"$f":"Dataset[[#This Row],[2023/24 Baseline]]+Dataset[[#This Row],[2023/24 Total change]]","v":0},{"$f":"Dataset[[#This Row],[2024/25 Baseline]]+Dataset[[#This Row],[2024/25 Total change]]","v":0},{"$f":"Dataset[[#This Row],[2025/26 Baseline]]+Dataset[[#This Row],[2025/26 Total change]]","v":0},{"$f":"Dataset[[#This Row],[2026/27 Baseline]]+Dataset[[#This Row],[2026/27 Total change]]","v":0}]
["NAT|Non-transfer item","26|Inventory: Medical supplies","2024_25","MTEF2024",26,3,2,44684,797,"26","03","02","044684","000797","26|03|02","01","01","02","27","27","01|01|02|27|27","National","Military Veterans","Empowerment and Stakeholder Management","Empowerment and Skills Development","Non-transfer item","Current","Current payments","Goods and services","Inventory: Medical supplies","Inventory: Medical supplies","Peace and security","Defence and state security","NAT",0,0,0,0,0,0,0,0,0,0,0,null,null,null,null,null,null,null,null,null,null,null,null,null,null,null,null,null,null,null,null,null,null,null,null,null,null,null,null,null,null,null,null,null,null,{"$f":"Dataset[[#This Row],[2024/25 From - Spending review Topic 1]]+Dataset[[#This Row],[2024/25 From - Spending review Topic 2]]+Dataset[[#This Row],[2024/25 From - Spending review Topic 3]]+Dataset[[#This Row],[2024/25 From - Spending review Topic 4]]+Dataset[[#This Row],[2024/25 From - Other reallocations]]","v":0},{"$f":"Dataset[[#This Row],[2025/26 From - Spending review Topic 1]]+Dataset[[#This Row],[2025/26 From - Spending review Topic 2]]+Dataset[[#This Row],[2025/26 From - Spending review Topic 3]]+Dataset[[#This Row],[2025/26 From - Spending review Topic 4]]+Dataset[[#This Row],[2025/26 From - Other reallocations]]","v":0},{"$f":"Dataset[[#This Row],[2026/27 From - Spending review Topic 1]]+Dataset[[#This Row],[2026/27 From - Spending review Topic 2]]+Dataset[[#This Row],[2026/27 From - Spending review Topic 3]]+Dataset[[#This Row],[2026/27 From - Spending review Topic 4]]+Dataset[[#This Row],[2026/27 From - Other reallocations]]","v":0},{"$f":"Dataset[[#This Row],[2024/25 To - Spending review Topic 1]]+Dataset[[#This Row],[2024/25 To - Spending review Topic 2]]+Dataset[[#This Row],[2024/25 To - Spending review Topic 3]]+Dataset[[#This Row],[2024/25 To - Spending review Topic 4]]+Dataset[[#This Row],[2024/25 To - Other reallocations]]","v":0},{"$f":"Dataset[[#This Row],[2025/26 To - Spending review Topic 1]]+Dataset[[#This Row],[2025/26 To - Spending review Topic 2]]+Dataset[[#This Row],[2025/26 To - Spending review Topic 3]]+Dataset[[#This Row],[2025/26 To - Spending review Topic 4]]+Dataset[[#This Row],[2025/26 To - Other reallocations]]","v":0},{"$f":"Dataset[[#This Row],[2026/27 To - Spending review Topic 1]]+Dataset[[#This Row],[2026/27 To - Spending review Topic 2]]+Dataset[[#This Row],[2026/27 To - Spending review Topic 3]]+Dataset[[#This Row],[2026/27 To - Spending review Topic 4]]+Dataset[[#This Row],[2026/27 To - Other reallocations]]","v":0},{"$f":"Dataset[[#This Row],[2024/25 Reduction]]+Dataset[[#This Row],[2024/25 From - Total]]","v":0},{"$f":"Dataset[[#This Row],[2025/26 Reduction]]+Dataset[[#This Row],[2025/26 From - Total]]","v":0},{"$f":"Dataset[[#This Row],[2026/27 Reduction]]+Dataset[[#This Row],[2026/27 From - Total]]","v":0},{"$f":"Dataset[[#This Row],[2023/24 Reduction]]","v":0},{"$f":"SUM(Dataset[[#This Row],[2024/25 Reduction]],Dataset[[#This Row],[2024/25 From - Total]],Dataset[[#This Row],[2024/25 To - Total]])","v":0},{"$f":"SUM(Dataset[[#This Row],[2025/26 Reduction]],Dataset[[#This Row],[2025/26 From - Total]],Dataset[[#This Row],[2025/26 To - Total]])","v":0},{"$f":"SUM(Dataset[[#This Row],[2026/27 Reduction]],Dataset[[#This Row],[2026/27 From - Total]],Dataset[[#This Row],[2026/27 To - Total]])","v":0},{"$f":"Dataset[[#This Row],[2023/24 Baseline]]+Dataset[[#This Row],[2023/24 Total change]]","v":0},{"$f":"Dataset[[#This Row],[2024/25 Baseline]]+Dataset[[#This Row],[2024/25 Total change]]","v":0},{"$f":"Dataset[[#This Row],[2025/26 Baseline]]+Dataset[[#This Row],[2025/26 Total change]]","v":0},{"$f":"Dataset[[#This Row],[2026/27 Baseline]]+Dataset[[#This Row],[2026/27 Total change]]","v":0}]
["NAT|Non-transfer item","26|Inventory: Medicine","2024_25","MTEF2024",26,3,2,44685,798,"26","03","02","044685","000798","26|03|02","01","01","02","28","28","01|01|02|28|28","National","Military Veterans","Empowerment and Stakeholder Management","Empowerment and Skills Development","Non-transfer item","Current","Current payments","Goods and services","Inventory: Medicine","Inventory: Medicine","Peace and security","Defence and state security","NAT",0,0,0,0,0,0,0,0,0,0,0,null,null,null,null,null,null,null,null,null,null,null,null,null,null,null,null,null,null,null,null,null,null,null,null,null,null,null,null,null,null,null,null,null,null,{"$f":"Dataset[[#This Row],[2024/25 From - Spending review Topic 1]]+Dataset[[#This Row],[2024/25 From - Spending review Topic 2]]+Dataset[[#This Row],[2024/25 From - Spending review Topic 3]]+Dataset[[#This Row],[2024/25 From - Spending review Topic 4]]+Dataset[[#This Row],[2024/25 From - Other reallocations]]","v":0},{"$f":"Dataset[[#This Row],[2025/26 From - Spending review Topic 1]]+Dataset[[#This Row],[2025/26 From - Spending review Topic 2]]+Dataset[[#This Row],[2025/26 From - Spending review Topic 3]]+Dataset[[#This Row],[2025/26 From - Spending review Topic 4]]+Dataset[[#This Row],[2025/26 From - Other reallocations]]","v":0},{"$f":"Dataset[[#This Row],[2026/27 From - Spending review Topic 1]]+Dataset[[#This Row],[2026/27 From - Spending review Topic 2]]+Dataset[[#This Row],[2026/27 From - Spending review Topic 3]]+Dataset[[#This Row],[2026/27 From - Spending review Topic 4]]+Dataset[[#This Row],[2026/27 From - Other reallocations]]","v":0},{"$f":"Dataset[[#This Row],[2024/25 To - Spending review Topic 1]]+Dataset[[#This Row],[2024/25 To - Spending review Topic 2]]+Dataset[[#This Row],[2024/25 To - Spending review Topic 3]]+Dataset[[#This Row],[2024/25 To - Spending review Topic 4]]+Dataset[[#This Row],[2024/25 To - Other reallocations]]","v":0},{"$f":"Dataset[[#This Row],[2025/26 To - Spending review Topic 1]]+Dataset[[#This Row],[2025/26 To - Spending review Topic 2]]+Dataset[[#This Row],[2025/26 To - Spending review Topic 3]]+Dataset[[#This Row],[2025/26 To - Spending review Topic 4]]+Dataset[[#This Row],[2025/26 To - Other reallocations]]","v":0},{"$f":"Dataset[[#This Row],[2026/27 To - Spending review Topic 1]]+Dataset[[#This Row],[2026/27 To - Spending review Topic 2]]+Dataset[[#This Row],[2026/27 To - Spending review Topic 3]]+Dataset[[#This Row],[2026/27 To - Spending review Topic 4]]+Dataset[[#This Row],[2026/27 To - Other reallocations]]","v":0},{"$f":"Dataset[[#This Row],[2024/25 Reduction]]+Dataset[[#This Row],[2024/25 From - Total]]","v":0},{"$f":"Dataset[[#This Row],[2025/26 Reduction]]+Dataset[[#This Row],[2025/26 From - Total]]","v":0},{"$f":"Dataset[[#This Row],[2026/27 Reduction]]+Dataset[[#This Row],[2026/27 From - Total]]","v":0},{"$f":"Dataset[[#This Row],[2023/24 Reduction]]","v":0},{"$f":"SUM(Dataset[[#This Row],[2024/25 Reduction]],Dataset[[#This Row],[2024/25 From - Total]],Dataset[[#This Row],[2024/25 To - Total]])","v":0},{"$f":"SUM(Dataset[[#This Row],[2025/26 Reduction]],Dataset[[#This Row],[2025/26 From - Total]],Dataset[[#This Row],[2025/26 To - Total]])","v":0},{"$f":"SUM(Dataset[[#This Row],[2026/27 Reduction]],Dataset[[#This Row],[2026/27 From - Total]],Dataset[[#This Row],[2026/27 To - Total]])","v":0},{"$f":"Dataset[[#This Row],[2023/24 Baseline]]+Dataset[[#This Row],[2023/24 Total change]]","v":0},{"$f":"Dataset[[#This Row],[2024/25 Baseline]]+Dataset[[#This Row],[2024/25 Total change]]","v":0},{"$f":"Dataset[[#This Row],[2025/26 Baseline]]+Dataset[[#This Row],[2025/26 Total change]]","v":0},{"$f":"Dataset[[#This Row],[2026/27 Baseline]]+Dataset[[#This Row],[2026/27 Total change]]","v":0}]
["NAT|Non-transfer item","26|Medsas inventory interface","2024_25","MTEF2024",26,3,2,44686,799,"26","03","02","044686","000799","26|03|02","01","01","02","29","29","01|01|02|29|29","National","Military Veterans","Empowerment and Stakeholder Management","Empowerment and Skills Development","Non-transfer item","Current","Current payments","Goods and services","Medsas inventory interface","Medsas inventory interface","Peace and security","Defence and state security","NAT",0,0,0,0,0,0,0,0,0,0,0,null,null,null,null,null,null,null,null,null,null,null,null,null,null,null,null,null,null,null,null,null,null,null,null,null,null,null,null,null,null,null,null,null,null,{"$f":"Dataset[[#This Row],[2024/25 From - Spending review Topic 1]]+Dataset[[#This Row],[2024/25 From - Spending review Topic 2]]+Dataset[[#This Row],[2024/25 From - Spending review Topic 3]]+Dataset[[#This Row],[2024/25 From - Spending review Topic 4]]+Dataset[[#This Row],[2024/25 From - Other reallocations]]","v":0},{"$f":"Dataset[[#This Row],[2025/26 From - Spending review Topic 1]]+Dataset[[#This Row],[2025/26 From - Spending review Topic 2]]+Dataset[[#This Row],[2025/26 From - Spending review Topic 3]]+Dataset[[#This Row],[2025/26 From - Spending review Topic 4]]+Dataset[[#This Row],[2025/26 From - Other reallocations]]","v":0},{"$f":"Dataset[[#This Row],[2026/27 From - Spending review Topic 1]]+Dataset[[#This Row],[2026/27 From - Spending review Topic 2]]+Dataset[[#This Row],[2026/27 From - Spending review Topic 3]]+Dataset[[#This Row],[2026/27 From - Spending review Topic 4]]+Dataset[[#This Row],[2026/27 From - Other reallocations]]","v":0},{"$f":"Dataset[[#This Row],[2024/25 To - Spending review Topic 1]]+Dataset[[#This Row],[2024/25 To - Spending review Topic 2]]+Dataset[[#This Row],[2024/25 To - Spending review Topic 3]]+Dataset[[#This Row],[2024/25 To - Spending review Topic 4]]+Dataset[[#This Row],[2024/25 To - Other reallocations]]","v":0},{"$f":"Dataset[[#This Row],[2025/26 To - Spending review Topic 1]]+Dataset[[#This Row],[2025/26 To - Spending review Topic 2]]+Dataset[[#This Row],[2025/26 To - Spending review Topic 3]]+Dataset[[#This Row],[2025/26 To - Spending review Topic 4]]+Dataset[[#This Row],[2025/26 To - Other reallocations]]","v":0},{"$f":"Dataset[[#This Row],[2026/27 To - Spending review Topic 1]]+Dataset[[#This Row],[2026/27 To - Spending review Topic 2]]+Dataset[[#This Row],[2026/27 To - Spending review Topic 3]]+Dataset[[#This Row],[2026/27 To - Spending review Topic 4]]+Dataset[[#This Row],[2026/27 To - Other reallocations]]","v":0},{"$f":"Dataset[[#This Row],[2024/25 Reduction]]+Dataset[[#This Row],[2024/25 From - Total]]","v":0},{"$f":"Dataset[[#This Row],[2025/26 Reduction]]+Dataset[[#This Row],[2025/26 From - Total]]","v":0},{"$f":"Dataset[[#This Row],[2026/27 Reduction]]+Dataset[[#This Row],[2026/27 From - Total]]","v":0},{"$f":"Dataset[[#This Row],[2023/24 Reduction]]","v":0},{"$f":"SUM(Dataset[[#This Row],[2024/25 Reduction]],Dataset[[#This Row],[2024/25 From - Total]],Dataset[[#This Row],[2024/25 To - Total]])","v":0},{"$f":"SUM(Dataset[[#This Row],[2025/26 Reduction]],Dataset[[#This Row],[2025/26 From - Total]],Dataset[[#This Row],[2025/26 To - Total]])","v":0},{"$f":"SUM(Dataset[[#This Row],[2026/27 Reduction]],Dataset[[#This Row],[2026/27 From - Total]],Dataset[[#This Row],[2026/27 To - Total]])","v":0},{"$f":"Dataset[[#This Row],[2023/24 Baseline]]+Dataset[[#This Row],[2023/24 Total change]]","v":0},{"$f":"Dataset[[#This Row],[2024/25 Baseline]]+Dataset[[#This Row],[2024/25 Total change]]","v":0},{"$f":"Dataset[[#This Row],[2025/26 Baseline]]+Dataset[[#This Row],[2025/26 Total change]]","v":0},{"$f":"Dataset[[#This Row],[2026/27 Baseline]]+Dataset[[#This Row],[2026/27 Total change]]","v":0}]
["NAT|Non-transfer item","26|Inventory: Other supplies","2024_25","MTEF2024",26,3,2,44687,800,"26","03","02","044687","000800","26|03|02","01","01","02","30","30","01|01|02|30|30","National","Military Veterans","Empowerment and Stakeholder Management","Empowerment and Skills Development","Non-transfer item","Current","Current payments","Goods and services","Inventory: Other supplies","Inventory: Other supplies","Peace and security","Defence and state security","NAT",0,0,20995,0,0,0,0,5000,5000,5000,5229,null,null,null,null,null,null,null,null,null,null,null,null,null,null,null,null,null,null,null,null,null,null,null,null,null,null,null,null,null,null,null,null,null,null,{"$f":"Dataset[[#This Row],[2024/25 From - Spending review Topic 1]]+Dataset[[#This Row],[2024/25 From - Spending review Topic 2]]+Dataset[[#This Row],[2024/25 From - Spending review Topic 3]]+Dataset[[#This Row],[2024/25 From - Spending review Topic 4]]+Dataset[[#This Row],[2024/25 From - Other reallocations]]","v":0},{"$f":"Dataset[[#This Row],[2025/26 From - Spending review Topic 1]]+Dataset[[#This Row],[2025/26 From - Spending review Topic 2]]+Dataset[[#This Row],[2025/26 From - Spending review Topic 3]]+Dataset[[#This Row],[2025/26 From - Spending review Topic 4]]+Dataset[[#This Row],[2025/26 From - Other reallocations]]","v":0},{"$f":"Dataset[[#This Row],[2026/27 From - Spending review Topic 1]]+Dataset[[#This Row],[2026/27 From - Spending review Topic 2]]+Dataset[[#This Row],[2026/27 From - Spending review Topic 3]]+Dataset[[#This Row],[2026/27 From - Spending review Topic 4]]+Dataset[[#This Row],[2026/27 From - Other reallocations]]","v":0},{"$f":"Dataset[[#This Row],[2024/25 To - Spending review Topic 1]]+Dataset[[#This Row],[2024/25 To - Spending review Topic 2]]+Dataset[[#This Row],[2024/25 To - Spending review Topic 3]]+Dataset[[#This Row],[2024/25 To - Spending review Topic 4]]+Dataset[[#This Row],[2024/25 To - Other reallocations]]","v":0},{"$f":"Dataset[[#This Row],[2025/26 To - Spending review Topic 1]]+Dataset[[#This Row],[2025/26 To - Spending review Topic 2]]+Dataset[[#This Row],[2025/26 To - Spending review Topic 3]]+Dataset[[#This Row],[2025/26 To - Spending review Topic 4]]+Dataset[[#This Row],[2025/26 To - Other reallocations]]","v":0},{"$f":"Dataset[[#This Row],[2026/27 To - Spending review Topic 1]]+Dataset[[#This Row],[2026/27 To - Spending review Topic 2]]+Dataset[[#This Row],[2026/27 To - Spending review Topic 3]]+Dataset[[#This Row],[2026/27 To - Spending review Topic 4]]+Dataset[[#This Row],[2026/27 To - Other reallocations]]","v":0},{"$f":"Dataset[[#This Row],[2024/25 Reduction]]+Dataset[[#This Row],[2024/25 From - Total]]","v":0},{"$f":"Dataset[[#This Row],[2025/26 Reduction]]+Dataset[[#This Row],[2025/26 From - Total]]","v":0},{"$f":"Dataset[[#This Row],[2026/27 Reduction]]+Dataset[[#This Row],[2026/27 From - Total]]","v":0},{"$f":"Dataset[[#This Row],[2023/24 Reduction]]","v":0},{"$f":"SUM(Dataset[[#This Row],[2024/25 Reduction]],Dataset[[#This Row],[2024/25 From - Total]],Dataset[[#This Row],[2024/25 To - Total]])","v":0},{"$f":"SUM(Dataset[[#This Row],[2025/26 Reduction]],Dataset[[#This Row],[2025/26 From - Total]],Dataset[[#This Row],[2025/26 To - Total]])","v":0},{"$f":"SUM(Dataset[[#This Row],[2026/27 Reduction]],Dataset[[#This Row],[2026/27 From - Total]],Dataset[[#This Row],[2026/27 To - Total]])","v":0},{"$f":"Dataset[[#This Row],[2023/24 Baseline]]+Dataset[[#This Row],[2023/24 Total change]]","v":5000},{"$f":"Dataset[[#This Row],[2024/25 Baseline]]+Dataset[[#This Row],[2024/25 Total change]]","v":5000},{"$f":"Dataset[[#This Row],[2025/26 Baseline]]+Dataset[[#This Row],[2025/26 Total change]]","v":5000},{"$f":"Dataset[[#This Row],[2026/27 Baseline]]+Dataset[[#This Row],[2026/27 Total change]]","v":5229}]
["NAT|Non-transfer item","26|Consumable supplies","2024_25","MTEF2024",26,3,2,44688,801,"26","03","02","044688","000801","26|03|02","01","01","02","31","31","01|01|02|31|31","National","Military Veterans","Empowerment and Stakeholder Management","Empowerment and Skills Development","Non-transfer item","Current","Current payments","Goods and services","Consumable supplies","Consumable supplies","Peace and security","Defence and state security","NAT",1,732,272,4251,4251,4251,0,30,52,64,67,null,null,null,null,null,null,null,null,null,null,null,null,null,null,null,null,null,null,null,null,null,null,null,null,null,null,null,null,null,null,null,null,null,null,{"$f":"Dataset[[#This Row],[2024/25 From - Spending review Topic 1]]+Dataset[[#This Row],[2024/25 From - Spending review Topic 2]]+Dataset[[#This Row],[2024/25 From - Spending review Topic 3]]+Dataset[[#This Row],[2024/25 From - Spending review Topic 4]]+Dataset[[#This Row],[2024/25 From - Other reallocations]]","v":0},{"$f":"Dataset[[#This Row],[2025/26 From - Spending review Topic 1]]+Dataset[[#This Row],[2025/26 From - Spending review Topic 2]]+Dataset[[#This Row],[2025/26 From - Spending review Topic 3]]+Dataset[[#This Row],[2025/26 From - Spending review Topic 4]]+Dataset[[#This Row],[2025/26 From - Other reallocations]]","v":0},{"$f":"Dataset[[#This Row],[2026/27 From - Spending review Topic 1]]+Dataset[[#This Row],[2026/27 From - Spending review Topic 2]]+Dataset[[#This Row],[2026/27 From - Spending review Topic 3]]+Dataset[[#This Row],[2026/27 From - Spending review Topic 4]]+Dataset[[#This Row],[2026/27 From - Other reallocations]]","v":0},{"$f":"Dataset[[#This Row],[2024/25 To - Spending review Topic 1]]+Dataset[[#This Row],[2024/25 To - Spending review Topic 2]]+Dataset[[#This Row],[2024/25 To - Spending review Topic 3]]+Dataset[[#This Row],[2024/25 To - Spending review Topic 4]]+Dataset[[#This Row],[2024/25 To - Other reallocations]]","v":0},{"$f":"Dataset[[#This Row],[2025/26 To - Spending review Topic 1]]+Dataset[[#This Row],[2025/26 To - Spending review Topic 2]]+Dataset[[#This Row],[2025/26 To - Spending review Topic 3]]+Dataset[[#This Row],[2025/26 To - Spending review Topic 4]]+Dataset[[#This Row],[2025/26 To - Other reallocations]]","v":0},{"$f":"Dataset[[#This Row],[2026/27 To - Spending review Topic 1]]+Dataset[[#This Row],[2026/27 To - Spending review Topic 2]]+Dataset[[#This Row],[2026/27 To - Spending review Topic 3]]+Dataset[[#This Row],[2026/27 To - Spending review Topic 4]]+Dataset[[#This Row],[2026/27 To - Other reallocations]]","v":0},{"$f":"Dataset[[#This Row],[2024/25 Reduction]]+Dataset[[#This Row],[2024/25 From - Total]]","v":0},{"$f":"Dataset[[#This Row],[2025/26 Reduction]]+Dataset[[#This Row],[2025/26 From - Total]]","v":0},{"$f":"Dataset[[#This Row],[2026/27 Reduction]]+Dataset[[#This Row],[2026/27 From - Total]]","v":0},{"$f":"Dataset[[#This Row],[2023/24 Reduction]]","v":0},{"$f":"SUM(Dataset[[#This Row],[2024/25 Reduction]],Dataset[[#This Row],[2024/25 From - Total]],Dataset[[#This Row],[2024/25 To - Total]])","v":0},{"$f":"SUM(Dataset[[#This Row],[2025/26 Reduction]],Dataset[[#This Row],[2025/26 From - Total]],Dataset[[#This Row],[2025/26 To - Total]])","v":0},{"$f":"SUM(Dataset[[#This Row],[2026/27 Reduction]],Dataset[[#This Row],[2026/27 From - Total]],Dataset[[#This Row],[2026/27 To - Total]])","v":0},{"$f":"Dataset[[#This Row],[2023/24 Baseline]]+Dataset[[#This Row],[2023/24 Total change]]","v":30},{"$f":"Dataset[[#This Row],[2024/25 Baseline]]+Dataset[[#This Row],[2024/25 Total change]]","v":52},{"$f":"Dataset[[#This Row],[2025/26 Baseline]]+Dataset[[#This Row],[2025/26 Total change]]","v":64},{"$f":"Dataset[[#This Row],[2026/27 Baseline]]+Dataset[[#This Row],[2026/27 Total change]]","v":67}]
["NAT|Non-transfer item","26|Consumables: Stationery, printing and office supplies","2024_25","MTEF2024",26,3,2,44689,802,"26","03","02","044689","000802","26|03|02","01","01","02","32","32","01|01|02|32|32","National","Military Veterans","Empowerment and Stakeholder Management","Empowerment and Skills Development","Non-transfer item","Current","Current payments","Goods and services","Consumables: Stationery, printing and office supplies","Consumables: Stationery, printing and office supplies","Peace and security","Defence and state security","NAT",2,44,0,902,902,902,0,484,420,441,461,null,null,null,null,null,null,null,null,null,null,null,null,null,null,null,null,null,null,null,null,null,null,null,null,null,null,null,null,null,null,null,null,null,null,{"$f":"Dataset[[#This Row],[2024/25 From - Spending review Topic 1]]+Dataset[[#This Row],[2024/25 From - Spending review Topic 2]]+Dataset[[#This Row],[2024/25 From - Spending review Topic 3]]+Dataset[[#This Row],[2024/25 From - Spending review Topic 4]]+Dataset[[#This Row],[2024/25 From - Other reallocations]]","v":0},{"$f":"Dataset[[#This Row],[2025/26 From - Spending review Topic 1]]+Dataset[[#This Row],[2025/26 From - Spending review Topic 2]]+Dataset[[#This Row],[2025/26 From - Spending review Topic 3]]+Dataset[[#This Row],[2025/26 From - Spending review Topic 4]]+Dataset[[#This Row],[2025/26 From - Other reallocations]]","v":0},{"$f":"Dataset[[#This Row],[2026/27 From - Spending review Topic 1]]+Dataset[[#This Row],[2026/27 From - Spending review Topic 2]]+Dataset[[#This Row],[2026/27 From - Spending review Topic 3]]+Dataset[[#This Row],[2026/27 From - Spending review Topic 4]]+Dataset[[#This Row],[2026/27 From - Other reallocations]]","v":0},{"$f":"Dataset[[#This Row],[2024/25 To - Spending review Topic 1]]+Dataset[[#This Row],[2024/25 To - Spending review Topic 2]]+Dataset[[#This Row],[2024/25 To - Spending review Topic 3]]+Dataset[[#This Row],[2024/25 To - Spending review Topic 4]]+Dataset[[#This Row],[2024/25 To - Other reallocations]]","v":0},{"$f":"Dataset[[#This Row],[2025/26 To - Spending review Topic 1]]+Dataset[[#This Row],[2025/26 To - Spending review Topic 2]]+Dataset[[#This Row],[2025/26 To - Spending review Topic 3]]+Dataset[[#This Row],[2025/26 To - Spending review Topic 4]]+Dataset[[#This Row],[2025/26 To - Other reallocations]]","v":0},{"$f":"Dataset[[#This Row],[2026/27 To - Spending review Topic 1]]+Dataset[[#This Row],[2026/27 To - Spending review Topic 2]]+Dataset[[#This Row],[2026/27 To - Spending review Topic 3]]+Dataset[[#This Row],[2026/27 To - Spending review Topic 4]]+Dataset[[#This Row],[2026/27 To - Other reallocations]]","v":0},{"$f":"Dataset[[#This Row],[2024/25 Reduction]]+Dataset[[#This Row],[2024/25 From - Total]]","v":0},{"$f":"Dataset[[#This Row],[2025/26 Reduction]]+Dataset[[#This Row],[2025/26 From - Total]]","v":0},{"$f":"Dataset[[#This Row],[2026/27 Reduction]]+Dataset[[#This Row],[2026/27 From - Total]]","v":0},{"$f":"Dataset[[#This Row],[2023/24 Reduction]]","v":0},{"$f":"SUM(Dataset[[#This Row],[2024/25 Reduction]],Dataset[[#This Row],[2024/25 From - Total]],Dataset[[#This Row],[2024/25 To - Total]])","v":0},{"$f":"SUM(Dataset[[#This Row],[2025/26 Reduction]],Dataset[[#This Row],[2025/26 From - Total]],Dataset[[#This Row],[2025/26 To - Total]])","v":0},{"$f":"SUM(Dataset[[#This Row],[2026/27 Reduction]],Dataset[[#This Row],[2026/27 From - Total]],Dataset[[#This Row],[2026/27 To - Total]])","v":0},{"$f":"Dataset[[#This Row],[2023/24 Baseline]]+Dataset[[#This Row],[2023/24 Total change]]","v":484},{"$f":"Dataset[[#This Row],[2024/25 Baseline]]+Dataset[[#This Row],[2024/25 Total change]]","v":420},{"$f":"Dataset[[#This Row],[2025/26 Baseline]]+Dataset[[#This Row],[2025/26 Total change]]","v":441},{"$f":"Dataset[[#This Row],[2026/27 Baseline]]+Dataset[[#This Row],[2026/27 Total change]]","v":461}]
["NAT|Non-transfer item","26|Operating leases","2024_25","MTEF2024",26,3,2,44690,803,"26","03","02","044690","000803","26|03|02","01","01","02","33","33","01|01|02|33|33","National","Military Veterans","Empowerment and Stakeholder Management","Empowerment and Skills Development","Non-transfer item","Current","Current payments","Goods and services","Operating leases","Operating leases","Peace and security","Defence and state security","NAT",0,0,0,0,0,0,0,0,0,0,0,null,null,null,null,null,null,null,null,null,null,null,null,null,null,null,null,null,null,null,null,null,null,null,null,null,null,null,null,null,null,null,null,null,null,{"$f":"Dataset[[#This Row],[2024/25 From - Spending review Topic 1]]+Dataset[[#This Row],[2024/25 From - Spending review Topic 2]]+Dataset[[#This Row],[2024/25 From - Spending review Topic 3]]+Dataset[[#This Row],[2024/25 From - Spending review Topic 4]]+Dataset[[#This Row],[2024/25 From - Other reallocations]]","v":0},{"$f":"Dataset[[#This Row],[2025/26 From - Spending review Topic 1]]+Dataset[[#This Row],[2025/26 From - Spending review Topic 2]]+Dataset[[#This Row],[2025/26 From - Spending review Topic 3]]+Dataset[[#This Row],[2025/26 From - Spending review Topic 4]]+Dataset[[#This Row],[2025/26 From - Other reallocations]]","v":0},{"$f":"Dataset[[#This Row],[2026/27 From - Spending review Topic 1]]+Dataset[[#This Row],[2026/27 From - Spending review Topic 2]]+Dataset[[#This Row],[2026/27 From - Spending review Topic 3]]+Dataset[[#This Row],[2026/27 From - Spending review Topic 4]]+Dataset[[#This Row],[2026/27 From - Other reallocations]]","v":0},{"$f":"Dataset[[#This Row],[2024/25 To - Spending review Topic 1]]+Dataset[[#This Row],[2024/25 To - Spending review Topic 2]]+Dataset[[#This Row],[2024/25 To - Spending review Topic 3]]+Dataset[[#This Row],[2024/25 To - Spending review Topic 4]]+Dataset[[#This Row],[2024/25 To - Other reallocations]]","v":0},{"$f":"Dataset[[#This Row],[2025/26 To - Spending review Topic 1]]+Dataset[[#This Row],[2025/26 To - Spending review Topic 2]]+Dataset[[#This Row],[2025/26 To - Spending review Topic 3]]+Dataset[[#This Row],[2025/26 To - Spending review Topic 4]]+Dataset[[#This Row],[2025/26 To - Other reallocations]]","v":0},{"$f":"Dataset[[#This Row],[2026/27 To - Spending review Topic 1]]+Dataset[[#This Row],[2026/27 To - Spending review Topic 2]]+Dataset[[#This Row],[2026/27 To - Spending review Topic 3]]+Dataset[[#This Row],[2026/27 To - Spending review Topic 4]]+Dataset[[#This Row],[2026/27 To - Other reallocations]]","v":0},{"$f":"Dataset[[#This Row],[2024/25 Reduction]]+Dataset[[#This Row],[2024/25 From - Total]]","v":0},{"$f":"Dataset[[#This Row],[2025/26 Reduction]]+Dataset[[#This Row],[2025/26 From - Total]]","v":0},{"$f":"Dataset[[#This Row],[2026/27 Reduction]]+Dataset[[#This Row],[2026/27 From - Total]]","v":0},{"$f":"Dataset[[#This Row],[2023/24 Reduction]]","v":0},{"$f":"SUM(Dataset[[#This Row],[2024/25 Reduction]],Dataset[[#This Row],[2024/25 From - Total]],Dataset[[#This Row],[2024/25 To - Total]])","v":0},{"$f":"SUM(Dataset[[#This Row],[2025/26 Reduction]],Dataset[[#This Row],[2025/26 From - Total]],Dataset[[#This Row],[2025/26 To - Total]])","v":0},{"$f":"SUM(Dataset[[#This Row],[2026/27 Reduction]],Dataset[[#This Row],[2026/27 From - Total]],Dataset[[#This Row],[2026/27 To - Total]])","v":0},{"$f":"Dataset[[#This Row],[2023/24 Baseline]]+Dataset[[#This Row],[2023/24 Total change]]","v":0},{"$f":"Dataset[[#This Row],[2024/25 Baseline]]+Dataset[[#This Row],[2024/25 Total change]]","v":0},{"$f":"Dataset[[#This Row],[2025/26 Baseline]]+Dataset[[#This Row],[2025/26 Total change]]","v":0},{"$f":"Dataset[[#This Row],[2026/27 Baseline]]+Dataset[[#This Row],[2026/27 Total change]]","v":0}]
["NAT|Non-transfer item","26|Rental and hiring","2024_25","MTEF2024",26,3,2,44691,804,"26","03","02","044691","000804","26|03|02","01","01","02","34","34","01|01|02|34|34","National","Military Veterans","Empowerment and Stakeholder Management","Empowerment and Skills Development","Non-transfer item","Current","Current payments","Goods and services","Rental and hiring","Rental and hiring","Peace and security","Defence and state security","NAT",0,0,0,0,0,0,0,0,0,0,0,null,null,null,null,null,null,null,null,null,null,null,null,null,null,null,null,null,null,null,null,null,null,null,null,null,null,null,null,null,null,null,null,null,null,{"$f":"Dataset[[#This Row],[2024/25 From - Spending review Topic 1]]+Dataset[[#This Row],[2024/25 From - Spending review Topic 2]]+Dataset[[#This Row],[2024/25 From - Spending review Topic 3]]+Dataset[[#This Row],[2024/25 From - Spending review Topic 4]]+Dataset[[#This Row],[2024/25 From - Other reallocations]]","v":0},{"$f":"Dataset[[#This Row],[2025/26 From - Spending review Topic 1]]+Dataset[[#This Row],[2025/26 From - Spending review Topic 2]]+Dataset[[#This Row],[2025/26 From - Spending review Topic 3]]+Dataset[[#This Row],[2025/26 From - Spending review Topic 4]]+Dataset[[#This Row],[2025/26 From - Other reallocations]]","v":0},{"$f":"Dataset[[#This Row],[2026/27 From - Spending review Topic 1]]+Dataset[[#This Row],[2026/27 From - Spending review Topic 2]]+Dataset[[#This Row],[2026/27 From - Spending review Topic 3]]+Dataset[[#This Row],[2026/27 From - Spending review Topic 4]]+Dataset[[#This Row],[2026/27 From - Other reallocations]]","v":0},{"$f":"Dataset[[#This Row],[2024/25 To - Spending review Topic 1]]+Dataset[[#This Row],[2024/25 To - Spending review Topic 2]]+Dataset[[#This Row],[2024/25 To - Spending review Topic 3]]+Dataset[[#This Row],[2024/25 To - Spending review Topic 4]]+Dataset[[#This Row],[2024/25 To - Other reallocations]]","v":0},{"$f":"Dataset[[#This Row],[2025/26 To - Spending review Topic 1]]+Dataset[[#This Row],[2025/26 To - Spending review Topic 2]]+Dataset[[#This Row],[2025/26 To - Spending review Topic 3]]+Dataset[[#This Row],[2025/26 To - Spending review Topic 4]]+Dataset[[#This Row],[2025/26 To - Other reallocations]]","v":0},{"$f":"Dataset[[#This Row],[2026/27 To - Spending review Topic 1]]+Dataset[[#This Row],[2026/27 To - Spending review Topic 2]]+Dataset[[#This Row],[2026/27 To - Spending review Topic 3]]+Dataset[[#This Row],[2026/27 To - Spending review Topic 4]]+Dataset[[#This Row],[2026/27 To - Other reallocations]]","v":0},{"$f":"Dataset[[#This Row],[2024/25 Reduction]]+Dataset[[#This Row],[2024/25 From - Total]]","v":0},{"$f":"Dataset[[#This Row],[2025/26 Reduction]]+Dataset[[#This Row],[2025/26 From - Total]]","v":0},{"$f":"Dataset[[#This Row],[2026/27 Reduction]]+Dataset[[#This Row],[2026/27 From - Total]]","v":0},{"$f":"Dataset[[#This Row],[2023/24 Reduction]]","v":0},{"$f":"SUM(Dataset[[#This Row],[2024/25 Reduction]],Dataset[[#This Row],[2024/25 From - Total]],Dataset[[#This Row],[2024/25 To - Total]])","v":0},{"$f":"SUM(Dataset[[#This Row],[2025/26 Reduction]],Dataset[[#This Row],[2025/26 From - Total]],Dataset[[#This Row],[2025/26 To - Total]])","v":0},{"$f":"SUM(Dataset[[#This Row],[2026/27 Reduction]],Dataset[[#This Row],[2026/27 From - Total]],Dataset[[#This Row],[2026/27 To - Total]])","v":0},{"$f":"Dataset[[#This Row],[2023/24 Baseline]]+Dataset[[#This Row],[2023/24 Total change]]","v":0},{"$f":"Dataset[[#This Row],[2024/25 Baseline]]+Dataset[[#This Row],[2024/25 Total change]]","v":0},{"$f":"Dataset[[#This Row],[2025/26 Baseline]]+Dataset[[#This Row],[2025/26 Total change]]","v":0},{"$f":"Dataset[[#This Row],[2026/27 Baseline]]+Dataset[[#This Row],[2026/27 Total change]]","v":0}]
["NAT|Non-transfer item","26|Property payments","2024_25","MTEF2024",26,3,2,44692,805,"26","03","02","044692","000805","26|03|02","01","01","02","35","35","01|01|02|35|35","National","Military Veterans","Empowerment and Stakeholder Management","Empowerment and Skills Development","Non-transfer item","Current","Current payments","Goods and services","Property payments","Property payments","Peace and security","Defence and state security","NAT",0,86,0,0,0,0,0,0,0,0,0,null,null,null,null,null,null,null,null,null,null,null,null,null,null,null,null,null,null,null,null,null,null,null,null,null,null,null,null,null,null,null,null,null,null,{"$f":"Dataset[[#This Row],[2024/25 From - Spending review Topic 1]]+Dataset[[#This Row],[2024/25 From - Spending review Topic 2]]+Dataset[[#This Row],[2024/25 From - Spending review Topic 3]]+Dataset[[#This Row],[2024/25 From - Spending review Topic 4]]+Dataset[[#This Row],[2024/25 From - Other reallocations]]","v":0},{"$f":"Dataset[[#This Row],[2025/26 From - Spending review Topic 1]]+Dataset[[#This Row],[2025/26 From - Spending review Topic 2]]+Dataset[[#This Row],[2025/26 From - Spending review Topic 3]]+Dataset[[#This Row],[2025/26 From - Spending review Topic 4]]+Dataset[[#This Row],[2025/26 From - Other reallocations]]","v":0},{"$f":"Dataset[[#This Row],[2026/27 From - Spending review Topic 1]]+Dataset[[#This Row],[2026/27 From - Spending review Topic 2]]+Dataset[[#This Row],[2026/27 From - Spending review Topic 3]]+Dataset[[#This Row],[2026/27 From - Spending review Topic 4]]+Dataset[[#This Row],[2026/27 From - Other reallocations]]","v":0},{"$f":"Dataset[[#This Row],[2024/25 To - Spending review Topic 1]]+Dataset[[#This Row],[2024/25 To - Spending review Topic 2]]+Dataset[[#This Row],[2024/25 To - Spending review Topic 3]]+Dataset[[#This Row],[2024/25 To - Spending review Topic 4]]+Dataset[[#This Row],[2024/25 To - Other reallocations]]","v":0},{"$f":"Dataset[[#This Row],[2025/26 To - Spending review Topic 1]]+Dataset[[#This Row],[2025/26 To - Spending review Topic 2]]+Dataset[[#This Row],[2025/26 To - Spending review Topic 3]]+Dataset[[#This Row],[2025/26 To - Spending review Topic 4]]+Dataset[[#This Row],[2025/26 To - Other reallocations]]","v":0},{"$f":"Dataset[[#This Row],[2026/27 To - Spending review Topic 1]]+Dataset[[#This Row],[2026/27 To - Spending review Topic 2]]+Dataset[[#This Row],[2026/27 To - Spending review Topic 3]]+Dataset[[#This Row],[2026/27 To - Spending review Topic 4]]+Dataset[[#This Row],[2026/27 To - Other reallocations]]","v":0},{"$f":"Dataset[[#This Row],[2024/25 Reduction]]+Dataset[[#This Row],[2024/25 From - Total]]","v":0},{"$f":"Dataset[[#This Row],[2025/26 Reduction]]+Dataset[[#This Row],[2025/26 From - Total]]","v":0},{"$f":"Dataset[[#This Row],[2026/27 Reduction]]+Dataset[[#This Row],[2026/27 From - Total]]","v":0},{"$f":"Dataset[[#This Row],[2023/24 Reduction]]","v":0},{"$f":"SUM(Dataset[[#This Row],[2024/25 Reduction]],Dataset[[#This Row],[2024/25 From - Total]],Dataset[[#This Row],[2024/25 To - Total]])","v":0},{"$f":"SUM(Dataset[[#This Row],[2025/26 Reduction]],Dataset[[#This Row],[2025/26 From - Total]],Dataset[[#This Row],[2025/26 To - Total]])","v":0},{"$f":"SUM(Dataset[[#This Row],[2026/27 Reduction]],Dataset[[#This Row],[2026/27 From - Total]],Dataset[[#This Row],[2026/27 To - Total]])","v":0},{"$f":"Dataset[[#This Row],[2023/24 Baseline]]+Dataset[[#This Row],[2023/24 Total change]]","v":0},{"$f":"Dataset[[#This Row],[2024/25 Baseline]]+Dataset[[#This Row],[2024/25 Total change]]","v":0},{"$f":"Dataset[[#This Row],[2025/26 Baseline]]+Dataset[[#This Row],[2025/26 Total change]]","v":0},{"$f":"Dataset[[#This Row],[2026/27 Baseline]]+Dataset[[#This Row],[2026/27 Total change]]","v":0}]
["NAT|Non-transfer item","26|Transport provided: Departmental activity","2024_25","MTEF2024",26,3,2,44693,806,"26","03","02","044693","000806","26|03|02","01","01","02","36","36","01|01|02|36|36","National","Military Veterans","Empowerment and Stakeholder Management","Empowerment and Skills Development","Non-transfer item","Current","Current payments","Goods and services","Transport provided: Departmental activity","Transport provided: Departmental activity","Peace and security","Defence and state security","NAT",0,0,0,0,0,0,0,0,0,0,0,null,null,null,null,null,null,null,null,null,null,null,null,null,null,null,null,null,null,null,null,null,null,null,null,null,null,null,null,null,null,null,null,null,null,{"$f":"Dataset[[#This Row],[2024/25 From - Spending review Topic 1]]+Dataset[[#This Row],[2024/25 From - Spending review Topic 2]]+Dataset[[#This Row],[2024/25 From - Spending review Topic 3]]+Dataset[[#This Row],[2024/25 From - Spending review Topic 4]]+Dataset[[#This Row],[2024/25 From - Other reallocations]]","v":0},{"$f":"Dataset[[#This Row],[2025/26 From - Spending review Topic 1]]+Dataset[[#This Row],[2025/26 From - Spending review Topic 2]]+Dataset[[#This Row],[2025/26 From - Spending review Topic 3]]+Dataset[[#This Row],[2025/26 From - Spending review Topic 4]]+Dataset[[#This Row],[2025/26 From - Other reallocations]]","v":0},{"$f":"Dataset[[#This Row],[2026/27 From - Spending review Topic 1]]+Dataset[[#This Row],[2026/27 From - Spending review Topic 2]]+Dataset[[#This Row],[2026/27 From - Spending review Topic 3]]+Dataset[[#This Row],[2026/27 From - Spending review Topic 4]]+Dataset[[#This Row],[2026/27 From - Other reallocations]]","v":0},{"$f":"Dataset[[#This Row],[2024/25 To - Spending review Topic 1]]+Dataset[[#This Row],[2024/25 To - Spending review Topic 2]]+Dataset[[#This Row],[2024/25 To - Spending review Topic 3]]+Dataset[[#This Row],[2024/25 To - Spending review Topic 4]]+Dataset[[#This Row],[2024/25 To - Other reallocations]]","v":0},{"$f":"Dataset[[#This Row],[2025/26 To - Spending review Topic 1]]+Dataset[[#This Row],[2025/26 To - Spending review Topic 2]]+Dataset[[#This Row],[2025/26 To - Spending review Topic 3]]+Dataset[[#This Row],[2025/26 To - Spending review Topic 4]]+Dataset[[#This Row],[2025/26 To - Other reallocations]]","v":0},{"$f":"Dataset[[#This Row],[2026/27 To - Spending review Topic 1]]+Dataset[[#This Row],[2026/27 To - Spending review Topic 2]]+Dataset[[#This Row],[2026/27 To - Spending review Topic 3]]+Dataset[[#This Row],[2026/27 To - Spending review Topic 4]]+Dataset[[#This Row],[2026/27 To - Other reallocations]]","v":0},{"$f":"Dataset[[#This Row],[2024/25 Reduction]]+Dataset[[#This Row],[2024/25 From - Total]]","v":0},{"$f":"Dataset[[#This Row],[2025/26 Reduction]]+Dataset[[#This Row],[2025/26 From - Total]]","v":0},{"$f":"Dataset[[#This Row],[2026/27 Reduction]]+Dataset[[#This Row],[2026/27 From - Total]]","v":0},{"$f":"Dataset[[#This Row],[2023/24 Reduction]]","v":0},{"$f":"SUM(Dataset[[#This Row],[2024/25 Reduction]],Dataset[[#This Row],[2024/25 From - Total]],Dataset[[#This Row],[2024/25 To - Total]])","v":0},{"$f":"SUM(Dataset[[#This Row],[2025/26 Reduction]],Dataset[[#This Row],[2025/26 From - Total]],Dataset[[#This Row],[2025/26 To - Total]])","v":0},{"$f":"SUM(Dataset[[#This Row],[2026/27 Reduction]],Dataset[[#This Row],[2026/27 From - Total]],Dataset[[#This Row],[2026/27 To - Total]])","v":0},{"$f":"Dataset[[#This Row],[2023/24 Baseline]]+Dataset[[#This Row],[2023/24 Total change]]","v":0},{"$f":"Dataset[[#This Row],[2024/25 Baseline]]+Dataset[[#This Row],[2024/25 Total change]]","v":0},{"$f":"Dataset[[#This Row],[2025/26 Baseline]]+Dataset[[#This Row],[2025/26 Total change]]","v":0},{"$f":"Dataset[[#This Row],[2026/27 Baseline]]+Dataset[[#This Row],[2026/27 Total change]]","v":0}]
["NAT|Non-transfer item","26|Travel and subsistence","2024_25","MTEF2024",26,3,2,44694,807,"26","03","02","044694","000807","26|03|02","01","01","02","37","37","01|01|02|37|37","National","Military Veterans","Empowerment and Stakeholder Management","Empowerment and Skills Development","Non-transfer item","Current","Current payments","Goods and services","Travel and subsistence","Travel and subsistence","Peace and security","Defence and state security","NAT",2342,1046,5545,20405,20405,20405,0,6012,6813,7745,8100,null,null,null,null,null,null,null,null,null,null,null,null,null,null,null,null,null,null,null,null,null,null,null,null,null,null,null,null,null,null,null,null,null,null,{"$f":"Dataset[[#This Row],[2024/25 From - Spending review Topic 1]]+Dataset[[#This Row],[2024/25 From - Spending review Topic 2]]+Dataset[[#This Row],[2024/25 From - Spending review Topic 3]]+Dataset[[#This Row],[2024/25 From - Spending review Topic 4]]+Dataset[[#This Row],[2024/25 From - Other reallocations]]","v":0},{"$f":"Dataset[[#This Row],[2025/26 From - Spending review Topic 1]]+Dataset[[#This Row],[2025/26 From - Spending review Topic 2]]+Dataset[[#This Row],[2025/26 From - Spending review Topic 3]]+Dataset[[#This Row],[2025/26 From - Spending review Topic 4]]+Dataset[[#This Row],[2025/26 From - Other reallocations]]","v":0},{"$f":"Dataset[[#This Row],[2026/27 From - Spending review Topic 1]]+Dataset[[#This Row],[2026/27 From - Spending review Topic 2]]+Dataset[[#This Row],[2026/27 From - Spending review Topic 3]]+Dataset[[#This Row],[2026/27 From - Spending review Topic 4]]+Dataset[[#This Row],[2026/27 From - Other reallocations]]","v":0},{"$f":"Dataset[[#This Row],[2024/25 To - Spending review Topic 1]]+Dataset[[#This Row],[2024/25 To - Spending review Topic 2]]+Dataset[[#This Row],[2024/25 To - Spending review Topic 3]]+Dataset[[#This Row],[2024/25 To - Spending review Topic 4]]+Dataset[[#This Row],[2024/25 To - Other reallocations]]","v":0},{"$f":"Dataset[[#This Row],[2025/26 To - Spending review Topic 1]]+Dataset[[#This Row],[2025/26 To - Spending review Topic 2]]+Dataset[[#This Row],[2025/26 To - Spending review Topic 3]]+Dataset[[#This Row],[2025/26 To - Spending review Topic 4]]+Dataset[[#This Row],[2025/26 To - Other reallocations]]","v":0},{"$f":"Dataset[[#This Row],[2026/27 To - Spending review Topic 1]]+Dataset[[#This Row],[2026/27 To - Spending review Topic 2]]+Dataset[[#This Row],[2026/27 To - Spending review Topic 3]]+Dataset[[#This Row],[2026/27 To - Spending review Topic 4]]+Dataset[[#This Row],[2026/27 To - Other reallocations]]","v":0},{"$f":"Dataset[[#This Row],[2024/25 Reduction]]+Dataset[[#This Row],[2024/25 From - Total]]","v":0},{"$f":"Dataset[[#This Row],[2025/26 Reduction]]+Dataset[[#This Row],[2025/26 From - Total]]","v":0},{"$f":"Dataset[[#This Row],[2026/27 Reduction]]+Dataset[[#This Row],[2026/27 From - Total]]","v":0},{"$f":"Dataset[[#This Row],[2023/24 Reduction]]","v":0},{"$f":"SUM(Dataset[[#This Row],[2024/25 Reduction]],Dataset[[#This Row],[2024/25 From - Total]],Dataset[[#This Row],[2024/25 To - Total]])","v":0},{"$f":"SUM(Dataset[[#This Row],[2025/26 Reduction]],Dataset[[#This Row],[2025/26 From - Total]],Dataset[[#This Row],[2025/26 To - Total]])","v":0},{"$f":"SUM(Dataset[[#This Row],[2026/27 Reduction]],Dataset[[#This Row],[2026/27 From - Total]],Dataset[[#This Row],[2026/27 To - Total]])","v":0},{"$f":"Dataset[[#This Row],[2023/24 Baseline]]+Dataset[[#This Row],[2023/24 Total change]]","v":6012},{"$f":"Dataset[[#This Row],[2024/25 Baseline]]+Dataset[[#This Row],[2024/25 Total change]]","v":6813},{"$f":"Dataset[[#This Row],[2025/26 Baseline]]+Dataset[[#This Row],[2025/26 Total change]]","v":7745},{"$f":"Dataset[[#This Row],[2026/27 Baseline]]+Dataset[[#This Row],[2026/27 Total change]]","v":8100}]
["NAT|Non-transfer item","26|Training and development","2024_25","MTEF2024",26,3,2,44695,808,"26","03","02","044695","000808","26|03|02","01","01","02","38","38","01|01|02|38|38","National","Military Veterans","Empowerment and Stakeholder Management","Empowerment and Skills Development","Non-transfer item","Current","Current payments","Goods and services","Training and development","Training and development","Peace and security","Defence and state security","NAT",16615,16456,31611,26292,26292,26292,0,35786,34466,33585,35124,null,null,null,null,null,null,null,null,null,null,null,null,null,null,null,null,null,null,null,null,null,null,null,null,null,null,null,null,null,null,null,null,null,null,{"$f":"Dataset[[#This Row],[2024/25 From - Spending review Topic 1]]+Dataset[[#This Row],[2024/25 From - Spending review Topic 2]]+Dataset[[#This Row],[2024/25 From - Spending review Topic 3]]+Dataset[[#This Row],[2024/25 From - Spending review Topic 4]]+Dataset[[#This Row],[2024/25 From - Other reallocations]]","v":0},{"$f":"Dataset[[#This Row],[2025/26 From - Spending review Topic 1]]+Dataset[[#This Row],[2025/26 From - Spending review Topic 2]]+Dataset[[#This Row],[2025/26 From - Spending review Topic 3]]+Dataset[[#This Row],[2025/26 From - Spending review Topic 4]]+Dataset[[#This Row],[2025/26 From - Other reallocations]]","v":0},{"$f":"Dataset[[#This Row],[2026/27 From - Spending review Topic 1]]+Dataset[[#This Row],[2026/27 From - Spending review Topic 2]]+Dataset[[#This Row],[2026/27 From - Spending review Topic 3]]+Dataset[[#This Row],[2026/27 From - Spending review Topic 4]]+Dataset[[#This Row],[2026/27 From - Other reallocations]]","v":0},{"$f":"Dataset[[#This Row],[2024/25 To - Spending review Topic 1]]+Dataset[[#This Row],[2024/25 To - Spending review Topic 2]]+Dataset[[#This Row],[2024/25 To - Spending review Topic 3]]+Dataset[[#This Row],[2024/25 To - Spending review Topic 4]]+Dataset[[#This Row],[2024/25 To - Other reallocations]]","v":0},{"$f":"Dataset[[#This Row],[2025/26 To - Spending review Topic 1]]+Dataset[[#This Row],[2025/26 To - Spending review Topic 2]]+Dataset[[#This Row],[2025/26 To - Spending review Topic 3]]+Dataset[[#This Row],[2025/26 To - Spending review Topic 4]]+Dataset[[#This Row],[2025/26 To - Other reallocations]]","v":0},{"$f":"Dataset[[#This Row],[2026/27 To - Spending review Topic 1]]+Dataset[[#This Row],[2026/27 To - Spending review Topic 2]]+Dataset[[#This Row],[2026/27 To - Spending review Topic 3]]+Dataset[[#This Row],[2026/27 To - Spending review Topic 4]]+Dataset[[#This Row],[2026/27 To - Other reallocations]]","v":0},{"$f":"Dataset[[#This Row],[2024/25 Reduction]]+Dataset[[#This Row],[2024/25 From - Total]]","v":0},{"$f":"Dataset[[#This Row],[2025/26 Reduction]]+Dataset[[#This Row],[2025/26 From - Total]]","v":0},{"$f":"Dataset[[#This Row],[2026/27 Reduction]]+Dataset[[#This Row],[2026/27 From - Total]]","v":0},{"$f":"Dataset[[#This Row],[2023/24 Reduction]]","v":0},{"$f":"SUM(Dataset[[#This Row],[2024/25 Reduction]],Dataset[[#This Row],[2024/25 From - Total]],Dataset[[#This Row],[2024/25 To - Total]])","v":0},{"$f":"SUM(Dataset[[#This Row],[2025/26 Reduction]],Dataset[[#This Row],[2025/26 From - Total]],Dataset[[#This Row],[2025/26 To - Total]])","v":0},{"$f":"SUM(Dataset[[#This Row],[2026/27 Reduction]],Dataset[[#This Row],[2026/27 From - Total]],Dataset[[#This Row],[2026/27 To - Total]])","v":0},{"$f":"Dataset[[#This Row],[2023/24 Baseline]]+Dataset[[#This Row],[2023/24 Total change]]","v":35786},{"$f":"Dataset[[#This Row],[2024/25 Baseline]]+Dataset[[#This Row],[2024/25 Total change]]","v":34466},{"$f":"Dataset[[#This Row],[2025/26 Baseline]]+Dataset[[#This Row],[2025/26 Total change]]","v":33585},{"$f":"Dataset[[#This Row],[2026/27 Baseline]]+Dataset[[#This Row],[2026/27 Total change]]","v":35124}]
["NAT|Non-transfer item","26|Operating payments","2024_25","MTEF2024",26,3,2,44696,809,"26","03","02","044696","000809","26|03|02","01","01","02","39","39","01|01|02|39|39","National","Military Veterans","Empowerment and Stakeholder Management","Empowerment and Skills Development","Non-transfer item","Current","Current payments","Goods and services","Operating payments","Operating payments","Peace and security","Defence and state security","NAT",0,0,0,0,0,0,0,0,0,0,0,null,null,null,null,null,null,null,null,null,null,null,null,null,null,null,null,null,null,null,null,null,null,null,null,null,null,null,null,null,null,null,null,null,null,{"$f":"Dataset[[#This Row],[2024/25 From - Spending review Topic 1]]+Dataset[[#This Row],[2024/25 From - Spending review Topic 2]]+Dataset[[#This Row],[2024/25 From - Spending review Topic 3]]+Dataset[[#This Row],[2024/25 From - Spending review Topic 4]]+Dataset[[#This Row],[2024/25 From - Other reallocations]]","v":0},{"$f":"Dataset[[#This Row],[2025/26 From - Spending review Topic 1]]+Dataset[[#This Row],[2025/26 From - Spending review Topic 2]]+Dataset[[#This Row],[2025/26 From - Spending review Topic 3]]+Dataset[[#This Row],[2025/26 From - Spending review Topic 4]]+Dataset[[#This Row],[2025/26 From - Other reallocations]]","v":0},{"$f":"Dataset[[#This Row],[2026/27 From - Spending review Topic 1]]+Dataset[[#This Row],[2026/27 From - Spending review Topic 2]]+Dataset[[#This Row],[2026/27 From - Spending review Topic 3]]+Dataset[[#This Row],[2026/27 From - Spending review Topic 4]]+Dataset[[#This Row],[2026/27 From - Other reallocations]]","v":0},{"$f":"Dataset[[#This Row],[2024/25 To - Spending review Topic 1]]+Dataset[[#This Row],[2024/25 To - Spending review Topic 2]]+Dataset[[#This Row],[2024/25 To - Spending review Topic 3]]+Dataset[[#This Row],[2024/25 To - Spending review Topic 4]]+Dataset[[#This Row],[2024/25 To - Other reallocations]]","v":0},{"$f":"Dataset[[#This Row],[2025/26 To - Spending review Topic 1]]+Dataset[[#This Row],[2025/26 To - Spending review Topic 2]]+Dataset[[#This Row],[2025/26 To - Spending review Topic 3]]+Dataset[[#This Row],[2025/26 To - Spending review Topic 4]]+Dataset[[#This Row],[2025/26 To - Other reallocations]]","v":0},{"$f":"Dataset[[#This Row],[2026/27 To - Spending review Topic 1]]+Dataset[[#This Row],[2026/27 To - Spending review Topic 2]]+Dataset[[#This Row],[2026/27 To - Spending review Topic 3]]+Dataset[[#This Row],[2026/27 To - Spending review Topic 4]]+Dataset[[#This Row],[2026/27 To - Other reallocations]]","v":0},{"$f":"Dataset[[#This Row],[2024/25 Reduction]]+Dataset[[#This Row],[2024/25 From - Total]]","v":0},{"$f":"Dataset[[#This Row],[2025/26 Reduction]]+Dataset[[#This Row],[2025/26 From - Total]]","v":0},{"$f":"Dataset[[#This Row],[2026/27 Reduction]]+Dataset[[#This Row],[2026/27 From - Total]]","v":0},{"$f":"Dataset[[#This Row],[2023/24 Reduction]]","v":0},{"$f":"SUM(Dataset[[#This Row],[2024/25 Reduction]],Dataset[[#This Row],[2024/25 From - Total]],Dataset[[#This Row],[2024/25 To - Total]])","v":0},{"$f":"SUM(Dataset[[#This Row],[2025/26 Reduction]],Dataset[[#This Row],[2025/26 From - Total]],Dataset[[#This Row],[2025/26 To - Total]])","v":0},{"$f":"SUM(Dataset[[#This Row],[2026/27 Reduction]],Dataset[[#This Row],[2026/27 From - Total]],Dataset[[#This Row],[2026/27 To - Total]])","v":0},{"$f":"Dataset[[#This Row],[2023/24 Baseline]]+Dataset[[#This Row],[2023/24 Total change]]","v":0},{"$f":"Dataset[[#This Row],[2024/25 Baseline]]+Dataset[[#This Row],[2024/25 Total change]]","v":0},{"$f":"Dataset[[#This Row],[2025/26 Baseline]]+Dataset[[#This Row],[2025/26 Total change]]","v":0},{"$f":"Dataset[[#This Row],[2026/27 Baseline]]+Dataset[[#This Row],[2026/27 Total change]]","v":0}]
["NAT|Non-transfer item","26|Venues and facilities","2024_25","MTEF2024",26,3,2,44697,810,"26","03","02","044697","000810","26|03|02","01","01","02","40","40","01|01|02|40|40","National","Military Veterans","Empowerment and Stakeholder Management","Empowerment and Skills Development","Non-transfer item","Current","Current payments","Goods and services","Venues and facilities","Venues and facilities","Peace and security","Defence and state security","NAT",149,0,31,3565,3437,3437,0,496,636,799,836,null,null,null,null,null,null,null,null,null,null,null,null,null,null,null,null,null,null,null,null,null,null,null,null,null,null,null,null,null,null,null,null,null,null,{"$f":"Dataset[[#This Row],[2024/25 From - Spending review Topic 1]]+Dataset[[#This Row],[2024/25 From - Spending review Topic 2]]+Dataset[[#This Row],[2024/25 From - Spending review Topic 3]]+Dataset[[#This Row],[2024/25 From - Spending review Topic 4]]+Dataset[[#This Row],[2024/25 From - Other reallocations]]","v":0},{"$f":"Dataset[[#This Row],[2025/26 From - Spending review Topic 1]]+Dataset[[#This Row],[2025/26 From - Spending review Topic 2]]+Dataset[[#This Row],[2025/26 From - Spending review Topic 3]]+Dataset[[#This Row],[2025/26 From - Spending review Topic 4]]+Dataset[[#This Row],[2025/26 From - Other reallocations]]","v":0},{"$f":"Dataset[[#This Row],[2026/27 From - Spending review Topic 1]]+Dataset[[#This Row],[2026/27 From - Spending review Topic 2]]+Dataset[[#This Row],[2026/27 From - Spending review Topic 3]]+Dataset[[#This Row],[2026/27 From - Spending review Topic 4]]+Dataset[[#This Row],[2026/27 From - Other reallocations]]","v":0},{"$f":"Dataset[[#This Row],[2024/25 To - Spending review Topic 1]]+Dataset[[#This Row],[2024/25 To - Spending review Topic 2]]+Dataset[[#This Row],[2024/25 To - Spending review Topic 3]]+Dataset[[#This Row],[2024/25 To - Spending review Topic 4]]+Dataset[[#This Row],[2024/25 To - Other reallocations]]","v":0},{"$f":"Dataset[[#This Row],[2025/26 To - Spending review Topic 1]]+Dataset[[#This Row],[2025/26 To - Spending review Topic 2]]+Dataset[[#This Row],[2025/26 To - Spending review Topic 3]]+Dataset[[#This Row],[2025/26 To - Spending review Topic 4]]+Dataset[[#This Row],[2025/26 To - Other reallocations]]","v":0},{"$f":"Dataset[[#This Row],[2026/27 To - Spending review Topic 1]]+Dataset[[#This Row],[2026/27 To - Spending review Topic 2]]+Dataset[[#This Row],[2026/27 To - Spending review Topic 3]]+Dataset[[#This Row],[2026/27 To - Spending review Topic 4]]+Dataset[[#This Row],[2026/27 To - Other reallocations]]","v":0},{"$f":"Dataset[[#This Row],[2024/25 Reduction]]+Dataset[[#This Row],[2024/25 From - Total]]","v":0},{"$f":"Dataset[[#This Row],[2025/26 Reduction]]+Dataset[[#This Row],[2025/26 From - Total]]","v":0},{"$f":"Dataset[[#This Row],[2026/27 Reduction]]+Dataset[[#This Row],[2026/27 From - Total]]","v":0},{"$f":"Dataset[[#This Row],[2023/24 Reduction]]","v":0},{"$f":"SUM(Dataset[[#This Row],[2024/25 Reduction]],Dataset[[#This Row],[2024/25 From - Total]],Dataset[[#This Row],[2024/25 To - Total]])","v":0},{"$f":"SUM(Dataset[[#This Row],[2025/26 Reduction]],Dataset[[#This Row],[2025/26 From - Total]],Dataset[[#This Row],[2025/26 To - Total]])","v":0},{"$f":"SUM(Dataset[[#This Row],[2026/27 Reduction]],Dataset[[#This Row],[2026/27 From - Total]],Dataset[[#This Row],[2026/27 To - Total]])","v":0},{"$f":"Dataset[[#This Row],[2023/24 Baseline]]+Dataset[[#This Row],[2023/24 Total change]]","v":496},{"$f":"Dataset[[#This Row],[2024/25 Baseline]]+Dataset[[#This Row],[2024/25 Total change]]","v":636},{"$f":"Dataset[[#This Row],[2025/26 Baseline]]+Dataset[[#This Row],[2025/26 Total change]]","v":799},{"$f":"Dataset[[#This Row],[2026/27 Baseline]]+Dataset[[#This Row],[2026/27 Total change]]","v":836}]
["NAT|Non-transfer item","26|Interest (Incl. interest on unitary payments (PPP))","2024_25","MTEF2024",26,3,2,44698,811,"26","03","02","044698","000811","26|03|02","01","01","03","41","41","01|01|03|41|41","National","Military Veterans","Empowerment and Stakeholder Management","Empowerment and Skills Development","Non-transfer item","Current","Current payments","Interest and rent on land","Interest (Incl. interest on unitary payments (PPP))","Interest (Incl. interest on unitary payments (PPP))","Peace and security","Defence and state security","NAT",0,0,0,0,0,0,0,0,0,0,0,null,null,null,null,null,null,null,null,null,null,null,null,null,null,null,null,null,null,null,null,null,null,null,null,null,null,null,null,null,null,null,null,null,null,{"$f":"Dataset[[#This Row],[2024/25 From - Spending review Topic 1]]+Dataset[[#This Row],[2024/25 From - Spending review Topic 2]]+Dataset[[#This Row],[2024/25 From - Spending review Topic 3]]+Dataset[[#This Row],[2024/25 From - Spending review Topic 4]]+Dataset[[#This Row],[2024/25 From - Other reallocations]]","v":0},{"$f":"Dataset[[#This Row],[2025/26 From - Spending review Topic 1]]+Dataset[[#This Row],[2025/26 From - Spending review Topic 2]]+Dataset[[#This Row],[2025/26 From - Spending review Topic 3]]+Dataset[[#This Row],[2025/26 From - Spending review Topic 4]]+Dataset[[#This Row],[2025/26 From - Other reallocations]]","v":0},{"$f":"Dataset[[#This Row],[2026/27 From - Spending review Topic 1]]+Dataset[[#This Row],[2026/27 From - Spending review Topic 2]]+Dataset[[#This Row],[2026/27 From - Spending review Topic 3]]+Dataset[[#This Row],[2026/27 From - Spending review Topic 4]]+Dataset[[#This Row],[2026/27 From - Other reallocations]]","v":0},{"$f":"Dataset[[#This Row],[2024/25 To - Spending review Topic 1]]+Dataset[[#This Row],[2024/25 To - Spending review Topic 2]]+Dataset[[#This Row],[2024/25 To - Spending review Topic 3]]+Dataset[[#This Row],[2024/25 To - Spending review Topic 4]]+Dataset[[#This Row],[2024/25 To - Other reallocations]]","v":0},{"$f":"Dataset[[#This Row],[2025/26 To - Spending review Topic 1]]+Dataset[[#This Row],[2025/26 To - Spending review Topic 2]]+Dataset[[#This Row],[2025/26 To - Spending review Topic 3]]+Dataset[[#This Row],[2025/26 To - Spending review Topic 4]]+Dataset[[#This Row],[2025/26 To - Other reallocations]]","v":0},{"$f":"Dataset[[#This Row],[2026/27 To - Spending review Topic 1]]+Dataset[[#This Row],[2026/27 To - Spending review Topic 2]]+Dataset[[#This Row],[2026/27 To - Spending review Topic 3]]+Dataset[[#This Row],[2026/27 To - Spending review Topic 4]]+Dataset[[#This Row],[2026/27 To - Other reallocations]]","v":0},{"$f":"Dataset[[#This Row],[2024/25 Reduction]]+Dataset[[#This Row],[2024/25 From - Total]]","v":0},{"$f":"Dataset[[#This Row],[2025/26 Reduction]]+Dataset[[#This Row],[2025/26 From - Total]]","v":0},{"$f":"Dataset[[#This Row],[2026/27 Reduction]]+Dataset[[#This Row],[2026/27 From - Total]]","v":0},{"$f":"Dataset[[#This Row],[2023/24 Reduction]]","v":0},{"$f":"SUM(Dataset[[#This Row],[2024/25 Reduction]],Dataset[[#This Row],[2024/25 From - Total]],Dataset[[#This Row],[2024/25 To - Total]])","v":0},{"$f":"SUM(Dataset[[#This Row],[2025/26 Reduction]],Dataset[[#This Row],[2025/26 From - Total]],Dataset[[#This Row],[2025/26 To - Total]])","v":0},{"$f":"SUM(Dataset[[#This Row],[2026/27 Reduction]],Dataset[[#This Row],[2026/27 From - Total]],Dataset[[#This Row],[2026/27 To - Total]])","v":0},{"$f":"Dataset[[#This Row],[2023/24 Baseline]]+Dataset[[#This Row],[2023/24 Total change]]","v":0},{"$f":"Dataset[[#This Row],[2024/25 Baseline]]+Dataset[[#This Row],[2024/25 Total change]]","v":0},{"$f":"Dataset[[#This Row],[2025/26 Baseline]]+Dataset[[#This Row],[2025/26 Total change]]","v":0},{"$f":"Dataset[[#This Row],[2026/27 Baseline]]+Dataset[[#This Row],[2026/27 Total change]]","v":0}]
["NAT|Non-transfer item","26|Rent on land","2024_25","MTEF2024",26,3,2,44699,812,"26","03","02","044699","000812","26|03|02","01","01","03","42","42","01|01|03|42|42","National","Military Veterans","Empowerment and Stakeholder Management","Empowerment and Skills Development","Non-transfer item","Current","Current payments","Interest and rent on land","Rent on land","Rent on land","Peace and security","Defence and state security","NAT",0,0,0,0,0,0,0,0,0,0,0,null,null,null,null,null,null,null,null,null,null,null,null,null,null,null,null,null,null,null,null,null,null,null,null,null,null,null,null,null,null,null,null,null,null,{"$f":"Dataset[[#This Row],[2024/25 From - Spending review Topic 1]]+Dataset[[#This Row],[2024/25 From - Spending review Topic 2]]+Dataset[[#This Row],[2024/25 From - Spending review Topic 3]]+Dataset[[#This Row],[2024/25 From - Spending review Topic 4]]+Dataset[[#This Row],[2024/25 From - Other reallocations]]","v":0},{"$f":"Dataset[[#This Row],[2025/26 From - Spending review Topic 1]]+Dataset[[#This Row],[2025/26 From - Spending review Topic 2]]+Dataset[[#This Row],[2025/26 From - Spending review Topic 3]]+Dataset[[#This Row],[2025/26 From - Spending review Topic 4]]+Dataset[[#This Row],[2025/26 From - Other reallocations]]","v":0},{"$f":"Dataset[[#This Row],[2026/27 From - Spending review Topic 1]]+Dataset[[#This Row],[2026/27 From - Spending review Topic 2]]+Dataset[[#This Row],[2026/27 From - Spending review Topic 3]]+Dataset[[#This Row],[2026/27 From - Spending review Topic 4]]+Dataset[[#This Row],[2026/27 From - Other reallocations]]","v":0},{"$f":"Dataset[[#This Row],[2024/25 To - Spending review Topic 1]]+Dataset[[#This Row],[2024/25 To - Spending review Topic 2]]+Dataset[[#This Row],[2024/25 To - Spending review Topic 3]]+Dataset[[#This Row],[2024/25 To - Spending review Topic 4]]+Dataset[[#This Row],[2024/25 To - Other reallocations]]","v":0},{"$f":"Dataset[[#This Row],[2025/26 To - Spending review Topic 1]]+Dataset[[#This Row],[2025/26 To - Spending review Topic 2]]+Dataset[[#This Row],[2025/26 To - Spending review Topic 3]]+Dataset[[#This Row],[2025/26 To - Spending review Topic 4]]+Dataset[[#This Row],[2025/26 To - Other reallocations]]","v":0},{"$f":"Dataset[[#This Row],[2026/27 To - Spending review Topic 1]]+Dataset[[#This Row],[2026/27 To - Spending review Topic 2]]+Dataset[[#This Row],[2026/27 To - Spending review Topic 3]]+Dataset[[#This Row],[2026/27 To - Spending review Topic 4]]+Dataset[[#This Row],[2026/27 To - Other reallocations]]","v":0},{"$f":"Dataset[[#This Row],[2024/25 Reduction]]+Dataset[[#This Row],[2024/25 From - Total]]","v":0},{"$f":"Dataset[[#This Row],[2025/26 Reduction]]+Dataset[[#This Row],[2025/26 From - Total]]","v":0},{"$f":"Dataset[[#This Row],[2026/27 Reduction]]+Dataset[[#This Row],[2026/27 From - Total]]","v":0},{"$f":"Dataset[[#This Row],[2023/24 Reduction]]","v":0},{"$f":"SUM(Dataset[[#This Row],[2024/25 Reduction]],Dataset[[#This Row],[2024/25 From - Total]],Dataset[[#This Row],[2024/25 To - Total]])","v":0},{"$f":"SUM(Dataset[[#This Row],[2025/26 Reduction]],Dataset[[#This Row],[2025/26 From - Total]],Dataset[[#This Row],[2025/26 To - Total]])","v":0},{"$f":"SUM(Dataset[[#This Row],[2026/27 Reduction]],Dataset[[#This Row],[2026/27 From - Total]],Dataset[[#This Row],[2026/27 To - Total]])","v":0},{"$f":"Dataset[[#This Row],[2023/24 Baseline]]+Dataset[[#This Row],[2023/24 Total change]]","v":0},{"$f":"Dataset[[#This Row],[2024/25 Baseline]]+Dataset[[#This Row],[2024/25 Total change]]","v":0},{"$f":"Dataset[[#This Row],[2025/26 Baseline]]+Dataset[[#This Row],[2025/26 Total change]]","v":0},{"$f":"Dataset[[#This Row],[2026/27 Baseline]]+Dataset[[#This Row],[2026/27 Total change]]","v":0}]
["NAT|Non-transfer item","26|Provincial Revenue Funds","2024_25","MTEF2024",26,3,2,44700,813,"26","03","02","044700","000813","26|03|02","01","02","04","43","43","01|02|04|43|43","National","Military Veterans","Empowerment and Stakeholder Management","Empowerment and Skills Development","Non-transfer item","Current","Transfers and subsidies","Provinces and municipalities","Provinces","Provincial Revenue Funds","Peace and security","Defence and state security","NAT",0,0,0,0,0,0,0,0,0,0,0,null,null,null,null,null,null,null,null,null,null,null,null,null,null,null,null,null,null,null,null,null,null,null,null,null,null,null,null,null,null,null,null,null,null,{"$f":"Dataset[[#This Row],[2024/25 From - Spending review Topic 1]]+Dataset[[#This Row],[2024/25 From - Spending review Topic 2]]+Dataset[[#This Row],[2024/25 From - Spending review Topic 3]]+Dataset[[#This Row],[2024/25 From - Spending review Topic 4]]+Dataset[[#This Row],[2024/25 From - Other reallocations]]","v":0},{"$f":"Dataset[[#This Row],[2025/26 From - Spending review Topic 1]]+Dataset[[#This Row],[2025/26 From - Spending review Topic 2]]+Dataset[[#This Row],[2025/26 From - Spending review Topic 3]]+Dataset[[#This Row],[2025/26 From - Spending review Topic 4]]+Dataset[[#This Row],[2025/26 From - Other reallocations]]","v":0},{"$f":"Dataset[[#This Row],[2026/27 From - Spending review Topic 1]]+Dataset[[#This Row],[2026/27 From - Spending review Topic 2]]+Dataset[[#This Row],[2026/27 From - Spending review Topic 3]]+Dataset[[#This Row],[2026/27 From - Spending review Topic 4]]+Dataset[[#This Row],[2026/27 From - Other reallocations]]","v":0},{"$f":"Dataset[[#This Row],[2024/25 To - Spending review Topic 1]]+Dataset[[#This Row],[2024/25 To - Spending review Topic 2]]+Dataset[[#This Row],[2024/25 To - Spending review Topic 3]]+Dataset[[#This Row],[2024/25 To - Spending review Topic 4]]+Dataset[[#This Row],[2024/25 To - Other reallocations]]","v":0},{"$f":"Dataset[[#This Row],[2025/26 To - Spending review Topic 1]]+Dataset[[#This Row],[2025/26 To - Spending review Topic 2]]+Dataset[[#This Row],[2025/26 To - Spending review Topic 3]]+Dataset[[#This Row],[2025/26 To - Spending review Topic 4]]+Dataset[[#This Row],[2025/26 To - Other reallocations]]","v":0},{"$f":"Dataset[[#This Row],[2026/27 To - Spending review Topic 1]]+Dataset[[#This Row],[2026/27 To - Spending review Topic 2]]+Dataset[[#This Row],[2026/27 To - Spending review Topic 3]]+Dataset[[#This Row],[2026/27 To - Spending review Topic 4]]+Dataset[[#This Row],[2026/27 To - Other reallocations]]","v":0},{"$f":"Dataset[[#This Row],[2024/25 Reduction]]+Dataset[[#This Row],[2024/25 From - Total]]","v":0},{"$f":"Dataset[[#This Row],[2025/26 Reduction]]+Dataset[[#This Row],[2025/26 From - Total]]","v":0},{"$f":"Dataset[[#This Row],[2026/27 Reduction]]+Dataset[[#This Row],[2026/27 From - Total]]","v":0},{"$f":"Dataset[[#This Row],[2023/24 Reduction]]","v":0},{"$f":"SUM(Dataset[[#This Row],[2024/25 Reduction]],Dataset[[#This Row],[2024/25 From - Total]],Dataset[[#This Row],[2024/25 To - Total]])","v":0},{"$f":"SUM(Dataset[[#This Row],[2025/26 Reduction]],Dataset[[#This Row],[2025/26 From - Total]],Dataset[[#This Row],[2025/26 To - Total]])","v":0},{"$f":"SUM(Dataset[[#This Row],[2026/27 Reduction]],Dataset[[#This Row],[2026/27 From - Total]],Dataset[[#This Row],[2026/27 To - Total]])","v":0},{"$f":"Dataset[[#This Row],[2023/24 Baseline]]+Dataset[[#This Row],[2023/24 Total change]]","v":0},{"$f":"Dataset[[#This Row],[2024/25 Baseline]]+Dataset[[#This Row],[2024/25 Total change]]","v":0},{"$f":"Dataset[[#This Row],[2025/26 Baseline]]+Dataset[[#This Row],[2025/26 Total change]]","v":0},{"$f":"Dataset[[#This Row],[2026/27 Baseline]]+Dataset[[#This Row],[2026/27 Total change]]","v":0}]
["NAT|Non-transfer item","26|Provincial agencies and funds","2024_25","MTEF2024",26,3,2,44701,814,"26","03","02","044701","000814","26|03|02","01","02","04","43","44","01|02|04|43|44","National","Military Veterans","Empowerment and Stakeholder Management","Empowerment and Skills Development","Non-transfer item","Current","Transfers and subsidies","Provinces and municipalities","Provinces","Provincial agencies and funds","Peace and security","Defence and state security","NAT",0,0,0,0,0,0,0,0,0,0,0,null,null,null,null,null,null,null,null,null,null,null,null,null,null,null,null,null,null,null,null,null,null,null,null,null,null,null,null,null,null,null,null,null,null,{"$f":"Dataset[[#This Row],[2024/25 From - Spending review Topic 1]]+Dataset[[#This Row],[2024/25 From - Spending review Topic 2]]+Dataset[[#This Row],[2024/25 From - Spending review Topic 3]]+Dataset[[#This Row],[2024/25 From - Spending review Topic 4]]+Dataset[[#This Row],[2024/25 From - Other reallocations]]","v":0},{"$f":"Dataset[[#This Row],[2025/26 From - Spending review Topic 1]]+Dataset[[#This Row],[2025/26 From - Spending review Topic 2]]+Dataset[[#This Row],[2025/26 From - Spending review Topic 3]]+Dataset[[#This Row],[2025/26 From - Spending review Topic 4]]+Dataset[[#This Row],[2025/26 From - Other reallocations]]","v":0},{"$f":"Dataset[[#This Row],[2026/27 From - Spending review Topic 1]]+Dataset[[#This Row],[2026/27 From - Spending review Topic 2]]+Dataset[[#This Row],[2026/27 From - Spending review Topic 3]]+Dataset[[#This Row],[2026/27 From - Spending review Topic 4]]+Dataset[[#This Row],[2026/27 From - Other reallocations]]","v":0},{"$f":"Dataset[[#This Row],[2024/25 To - Spending review Topic 1]]+Dataset[[#This Row],[2024/25 To - Spending review Topic 2]]+Dataset[[#This Row],[2024/25 To - Spending review Topic 3]]+Dataset[[#This Row],[2024/25 To - Spending review Topic 4]]+Dataset[[#This Row],[2024/25 To - Other reallocations]]","v":0},{"$f":"Dataset[[#This Row],[2025/26 To - Spending review Topic 1]]+Dataset[[#This Row],[2025/26 To - Spending review Topic 2]]+Dataset[[#This Row],[2025/26 To - Spending review Topic 3]]+Dataset[[#This Row],[2025/26 To - Spending review Topic 4]]+Dataset[[#This Row],[2025/26 To - Other reallocations]]","v":0},{"$f":"Dataset[[#This Row],[2026/27 To - Spending review Topic 1]]+Dataset[[#This Row],[2026/27 To - Spending review Topic 2]]+Dataset[[#This Row],[2026/27 To - Spending review Topic 3]]+Dataset[[#This Row],[2026/27 To - Spending review Topic 4]]+Dataset[[#This Row],[2026/27 To - Other reallocations]]","v":0},{"$f":"Dataset[[#This Row],[2024/25 Reduction]]+Dataset[[#This Row],[2024/25 From - Total]]","v":0},{"$f":"Dataset[[#This Row],[2025/26 Reduction]]+Dataset[[#This Row],[2025/26 From - Total]]","v":0},{"$f":"Dataset[[#This Row],[2026/27 Reduction]]+Dataset[[#This Row],[2026/27 From - Total]]","v":0},{"$f":"Dataset[[#This Row],[2023/24 Reduction]]","v":0},{"$f":"SUM(Dataset[[#This Row],[2024/25 Reduction]],Dataset[[#This Row],[2024/25 From - Total]],Dataset[[#This Row],[2024/25 To - Total]])","v":0},{"$f":"SUM(Dataset[[#This Row],[2025/26 Reduction]],Dataset[[#This Row],[2025/26 From - Total]],Dataset[[#This Row],[2025/26 To - Total]])","v":0},{"$f":"SUM(Dataset[[#This Row],[2026/27 Reduction]],Dataset[[#This Row],[2026/27 From - Total]],Dataset[[#This Row],[2026/27 To - Total]])","v":0},{"$f":"Dataset[[#This Row],[2023/24 Baseline]]+Dataset[[#This Row],[2023/24 Total change]]","v":0},{"$f":"Dataset[[#This Row],[2024/25 Baseline]]+Dataset[[#This Row],[2024/25 Total change]]","v":0},{"$f":"Dataset[[#This Row],[2025/26 Baseline]]+Dataset[[#This Row],[2025/26 Total change]]","v":0},{"$f":"Dataset[[#This Row],[2026/27 Baseline]]+Dataset[[#This Row],[2026/27 Total change]]","v":0}]
["NAT|Non-transfer item","26|Municipal bank accounts","2024_25","MTEF2024",26,3,2,44702,815,"26","03","02","044702","000815","26|03|02","01","02","04","44","45","01|02|04|44|45","National","Military Veterans","Empowerment and Stakeholder Management","Empowerment and Skills Development","Non-transfer item","Current","Transfers and subsidies","Provinces and municipalities","Municipalities","Municipal bank accounts","Peace and security","Defence and state security","NAT",0,0,0,0,0,0,0,0,0,0,0,null,null,null,null,null,null,null,null,null,null,null,null,null,null,null,null,null,null,null,null,null,null,null,null,null,null,null,null,null,null,null,null,null,null,{"$f":"Dataset[[#This Row],[2024/25 From - Spending review Topic 1]]+Dataset[[#This Row],[2024/25 From - Spending review Topic 2]]+Dataset[[#This Row],[2024/25 From - Spending review Topic 3]]+Dataset[[#This Row],[2024/25 From - Spending review Topic 4]]+Dataset[[#This Row],[2024/25 From - Other reallocations]]","v":0},{"$f":"Dataset[[#This Row],[2025/26 From - Spending review Topic 1]]+Dataset[[#This Row],[2025/26 From - Spending review Topic 2]]+Dataset[[#This Row],[2025/26 From - Spending review Topic 3]]+Dataset[[#This Row],[2025/26 From - Spending review Topic 4]]+Dataset[[#This Row],[2025/26 From - Other reallocations]]","v":0},{"$f":"Dataset[[#This Row],[2026/27 From - Spending review Topic 1]]+Dataset[[#This Row],[2026/27 From - Spending review Topic 2]]+Dataset[[#This Row],[2026/27 From - Spending review Topic 3]]+Dataset[[#This Row],[2026/27 From - Spending review Topic 4]]+Dataset[[#This Row],[2026/27 From - Other reallocations]]","v":0},{"$f":"Dataset[[#This Row],[2024/25 To - Spending review Topic 1]]+Dataset[[#This Row],[2024/25 To - Spending review Topic 2]]+Dataset[[#This Row],[2024/25 To - Spending review Topic 3]]+Dataset[[#This Row],[2024/25 To - Spending review Topic 4]]+Dataset[[#This Row],[2024/25 To - Other reallocations]]","v":0},{"$f":"Dataset[[#This Row],[2025/26 To - Spending review Topic 1]]+Dataset[[#This Row],[2025/26 To - Spending review Topic 2]]+Dataset[[#This Row],[2025/26 To - Spending review Topic 3]]+Dataset[[#This Row],[2025/26 To - Spending review Topic 4]]+Dataset[[#This Row],[2025/26 To - Other reallocations]]","v":0},{"$f":"Dataset[[#This Row],[2026/27 To - Spending review Topic 1]]+Dataset[[#This Row],[2026/27 To - Spending review Topic 2]]+Dataset[[#This Row],[2026/27 To - Spending review Topic 3]]+Dataset[[#This Row],[2026/27 To - Spending review Topic 4]]+Dataset[[#This Row],[2026/27 To - Other reallocations]]","v":0},{"$f":"Dataset[[#This Row],[2024/25 Reduction]]+Dataset[[#This Row],[2024/25 From - Total]]","v":0},{"$f":"Dataset[[#This Row],[2025/26 Reduction]]+Dataset[[#This Row],[2025/26 From - Total]]","v":0},{"$f":"Dataset[[#This Row],[2026/27 Reduction]]+Dataset[[#This Row],[2026/27 From - Total]]","v":0},{"$f":"Dataset[[#This Row],[2023/24 Reduction]]","v":0},{"$f":"SUM(Dataset[[#This Row],[2024/25 Reduction]],Dataset[[#This Row],[2024/25 From - Total]],Dataset[[#This Row],[2024/25 To - Total]])","v":0},{"$f":"SUM(Dataset[[#This Row],[2025/26 Reduction]],Dataset[[#This Row],[2025/26 From - Total]],Dataset[[#This Row],[2025/26 To - Total]])","v":0},{"$f":"SUM(Dataset[[#This Row],[2026/27 Reduction]],Dataset[[#This Row],[2026/27 From - Total]],Dataset[[#This Row],[2026/27 To - Total]])","v":0},{"$f":"Dataset[[#This Row],[2023/24 Baseline]]+Dataset[[#This Row],[2023/24 Total change]]","v":0},{"$f":"Dataset[[#This Row],[2024/25 Baseline]]+Dataset[[#This Row],[2024/25 Total change]]","v":0},{"$f":"Dataset[[#This Row],[2025/26 Baseline]]+Dataset[[#This Row],[2025/26 Total change]]","v":0},{"$f":"Dataset[[#This Row],[2026/27 Baseline]]+Dataset[[#This Row],[2026/27 Total change]]","v":0}]
["NAT|Non-transfer item","26|Municipal agencies and funds","2024_25","MTEF2024",26,3,2,44703,816,"26","03","02","044703","000816","26|03|02","01","02","04","44","46","01|02|04|44|46","National","Military Veterans","Empowerment and Stakeholder Management","Empowerment and Skills Development","Non-transfer item","Current","Transfers and subsidies","Provinces and municipalities","Municipalities","Municipal agencies and funds","Peace and security","Defence and state security","NAT",0,0,0,0,0,0,0,0,0,0,0,null,null,null,null,null,null,null,null,null,null,null,null,null,null,null,null,null,null,null,null,null,null,null,null,null,null,null,null,null,null,null,null,null,null,{"$f":"Dataset[[#This Row],[2024/25 From - Spending review Topic 1]]+Dataset[[#This Row],[2024/25 From - Spending review Topic 2]]+Dataset[[#This Row],[2024/25 From - Spending review Topic 3]]+Dataset[[#This Row],[2024/25 From - Spending review Topic 4]]+Dataset[[#This Row],[2024/25 From - Other reallocations]]","v":0},{"$f":"Dataset[[#This Row],[2025/26 From - Spending review Topic 1]]+Dataset[[#This Row],[2025/26 From - Spending review Topic 2]]+Dataset[[#This Row],[2025/26 From - Spending review Topic 3]]+Dataset[[#This Row],[2025/26 From - Spending review Topic 4]]+Dataset[[#This Row],[2025/26 From - Other reallocations]]","v":0},{"$f":"Dataset[[#This Row],[2026/27 From - Spending review Topic 1]]+Dataset[[#This Row],[2026/27 From - Spending review Topic 2]]+Dataset[[#This Row],[2026/27 From - Spending review Topic 3]]+Dataset[[#This Row],[2026/27 From - Spending review Topic 4]]+Dataset[[#This Row],[2026/27 From - Other reallocations]]","v":0},{"$f":"Dataset[[#This Row],[2024/25 To - Spending review Topic 1]]+Dataset[[#This Row],[2024/25 To - Spending review Topic 2]]+Dataset[[#This Row],[2024/25 To - Spending review Topic 3]]+Dataset[[#This Row],[2024/25 To - Spending review Topic 4]]+Dataset[[#This Row],[2024/25 To - Other reallocations]]","v":0},{"$f":"Dataset[[#This Row],[2025/26 To - Spending review Topic 1]]+Dataset[[#This Row],[2025/26 To - Spending review Topic 2]]+Dataset[[#This Row],[2025/26 To - Spending review Topic 3]]+Dataset[[#This Row],[2025/26 To - Spending review Topic 4]]+Dataset[[#This Row],[2025/26 To - Other reallocations]]","v":0},{"$f":"Dataset[[#This Row],[2026/27 To - Spending review Topic 1]]+Dataset[[#This Row],[2026/27 To - Spending review Topic 2]]+Dataset[[#This Row],[2026/27 To - Spending review Topic 3]]+Dataset[[#This Row],[2026/27 To - Spending review Topic 4]]+Dataset[[#This Row],[2026/27 To - Other reallocations]]","v":0},{"$f":"Dataset[[#This Row],[2024/25 Reduction]]+Dataset[[#This Row],[2024/25 From - Total]]","v":0},{"$f":"Dataset[[#This Row],[2025/26 Reduction]]+Dataset[[#This Row],[2025/26 From - Total]]","v":0},{"$f":"Dataset[[#This Row],[2026/27 Reduction]]+Dataset[[#This Row],[2026/27 From - Total]]","v":0},{"$f":"Dataset[[#This Row],[2023/24 Reduction]]","v":0},{"$f":"SUM(Dataset[[#This Row],[2024/25 Reduction]],Dataset[[#This Row],[2024/25 From - Total]],Dataset[[#This Row],[2024/25 To - Total]])","v":0},{"$f":"SUM(Dataset[[#This Row],[2025/26 Reduction]],Dataset[[#This Row],[2025/26 From - Total]],Dataset[[#This Row],[2025/26 To - Total]])","v":0},{"$f":"SUM(Dataset[[#This Row],[2026/27 Reduction]],Dataset[[#This Row],[2026/27 From - Total]],Dataset[[#This Row],[2026/27 To - Total]])","v":0},{"$f":"Dataset[[#This Row],[2023/24 Baseline]]+Dataset[[#This Row],[2023/24 Total change]]","v":0},{"$f":"Dataset[[#This Row],[2024/25 Baseline]]+Dataset[[#This Row],[2024/25 Total change]]","v":0},{"$f":"Dataset[[#This Row],[2025/26 Baseline]]+Dataset[[#This Row],[2025/26 Total change]]","v":0},{"$f":"Dataset[[#This Row],[2026/27 Baseline]]+Dataset[[#This Row],[2026/27 Total change]]","v":0}]
["NAT|Non-transfer item","26|Social security funds","2024_25","MTEF2024",26,3,2,44704,817,"26","03","02","044704","000817","26|03|02","01","02","05","45","47","01|02|05|45|47","National","Military Veterans","Empowerment and Stakeholder Management","Empowerment and Skills Development","Non-transfer item","Current","Transfers and subsidies","Departmental agencies and accounts","Social security funds","Social security funds","Peace and security","Defence and state security","NAT",0,0,0,0,0,0,0,0,0,0,0,null,null,null,null,null,null,null,null,null,null,null,null,null,null,null,null,null,null,null,null,null,null,null,null,null,null,null,null,null,null,null,null,null,null,{"$f":"Dataset[[#This Row],[2024/25 From - Spending review Topic 1]]+Dataset[[#This Row],[2024/25 From - Spending review Topic 2]]+Dataset[[#This Row],[2024/25 From - Spending review Topic 3]]+Dataset[[#This Row],[2024/25 From - Spending review Topic 4]]+Dataset[[#This Row],[2024/25 From - Other reallocations]]","v":0},{"$f":"Dataset[[#This Row],[2025/26 From - Spending review Topic 1]]+Dataset[[#This Row],[2025/26 From - Spending review Topic 2]]+Dataset[[#This Row],[2025/26 From - Spending review Topic 3]]+Dataset[[#This Row],[2025/26 From - Spending review Topic 4]]+Dataset[[#This Row],[2025/26 From - Other reallocations]]","v":0},{"$f":"Dataset[[#This Row],[2026/27 From - Spending review Topic 1]]+Dataset[[#This Row],[2026/27 From - Spending review Topic 2]]+Dataset[[#This Row],[2026/27 From - Spending review Topic 3]]+Dataset[[#This Row],[2026/27 From - Spending review Topic 4]]+Dataset[[#This Row],[2026/27 From - Other reallocations]]","v":0},{"$f":"Dataset[[#This Row],[2024/25 To - Spending review Topic 1]]+Dataset[[#This Row],[2024/25 To - Spending review Topic 2]]+Dataset[[#This Row],[2024/25 To - Spending review Topic 3]]+Dataset[[#This Row],[2024/25 To - Spending review Topic 4]]+Dataset[[#This Row],[2024/25 To - Other reallocations]]","v":0},{"$f":"Dataset[[#This Row],[2025/26 To - Spending review Topic 1]]+Dataset[[#This Row],[2025/26 To - Spending review Topic 2]]+Dataset[[#This Row],[2025/26 To - Spending review Topic 3]]+Dataset[[#This Row],[2025/26 To - Spending review Topic 4]]+Dataset[[#This Row],[2025/26 To - Other reallocations]]","v":0},{"$f":"Dataset[[#This Row],[2026/27 To - Spending review Topic 1]]+Dataset[[#This Row],[2026/27 To - Spending review Topic 2]]+Dataset[[#This Row],[2026/27 To - Spending review Topic 3]]+Dataset[[#This Row],[2026/27 To - Spending review Topic 4]]+Dataset[[#This Row],[2026/27 To - Other reallocations]]","v":0},{"$f":"Dataset[[#This Row],[2024/25 Reduction]]+Dataset[[#This Row],[2024/25 From - Total]]","v":0},{"$f":"Dataset[[#This Row],[2025/26 Reduction]]+Dataset[[#This Row],[2025/26 From - Total]]","v":0},{"$f":"Dataset[[#This Row],[2026/27 Reduction]]+Dataset[[#This Row],[2026/27 From - Total]]","v":0},{"$f":"Dataset[[#This Row],[2023/24 Reduction]]","v":0},{"$f":"SUM(Dataset[[#This Row],[2024/25 Reduction]],Dataset[[#This Row],[2024/25 From - Total]],Dataset[[#This Row],[2024/25 To - Total]])","v":0},{"$f":"SUM(Dataset[[#This Row],[2025/26 Reduction]],Dataset[[#This Row],[2025/26 From - Total]],Dataset[[#This Row],[2025/26 To - Total]])","v":0},{"$f":"SUM(Dataset[[#This Row],[2026/27 Reduction]],Dataset[[#This Row],[2026/27 From - Total]],Dataset[[#This Row],[2026/27 To - Total]])","v":0},{"$f":"Dataset[[#This Row],[2023/24 Baseline]]+Dataset[[#This Row],[2023/24 Total change]]","v":0},{"$f":"Dataset[[#This Row],[2024/25 Baseline]]+Dataset[[#This Row],[2024/25 Total change]]","v":0},{"$f":"Dataset[[#This Row],[2025/26 Baseline]]+Dataset[[#This Row],[2025/26 Total change]]","v":0},{"$f":"Dataset[[#This Row],[2026/27 Baseline]]+Dataset[[#This Row],[2026/27 Total change]]","v":0}]
["NAT|Non-transfer item","26|Departmental agencies (non-business entities)","2024_25","MTEF2024",26,3,2,44705,818,"26","03","02","044705","000818","26|03|02","01","02","05","46","48","01|02|05|46|48","National","Military Veterans","Empowerment and Stakeholder Management","Empowerment and Skills Development","Non-transfer item","Current","Transfers and subsidies","Departmental agencies and accounts","Departmental agencies (non-business entities)","Departmental agencies (non-business entities)","Peace and security","Defence and state security","NAT",0,0,0,0,0,0,0,0,0,0,0,null,null,null,null,null,null,null,null,null,null,null,null,null,null,null,null,null,null,null,null,null,null,null,null,null,null,null,null,null,null,null,null,null,null,{"$f":"Dataset[[#This Row],[2024/25 From - Spending review Topic 1]]+Dataset[[#This Row],[2024/25 From - Spending review Topic 2]]+Dataset[[#This Row],[2024/25 From - Spending review Topic 3]]+Dataset[[#This Row],[2024/25 From - Spending review Topic 4]]+Dataset[[#This Row],[2024/25 From - Other reallocations]]","v":0},{"$f":"Dataset[[#This Row],[2025/26 From - Spending review Topic 1]]+Dataset[[#This Row],[2025/26 From - Spending review Topic 2]]+Dataset[[#This Row],[2025/26 From - Spending review Topic 3]]+Dataset[[#This Row],[2025/26 From - Spending review Topic 4]]+Dataset[[#This Row],[2025/26 From - Other reallocations]]","v":0},{"$f":"Dataset[[#This Row],[2026/27 From - Spending review Topic 1]]+Dataset[[#This Row],[2026/27 From - Spending review Topic 2]]+Dataset[[#This Row],[2026/27 From - Spending review Topic 3]]+Dataset[[#This Row],[2026/27 From - Spending review Topic 4]]+Dataset[[#This Row],[2026/27 From - Other reallocations]]","v":0},{"$f":"Dataset[[#This Row],[2024/25 To - Spending review Topic 1]]+Dataset[[#This Row],[2024/25 To - Spending review Topic 2]]+Dataset[[#This Row],[2024/25 To - Spending review Topic 3]]+Dataset[[#This Row],[2024/25 To - Spending review Topic 4]]+Dataset[[#This Row],[2024/25 To - Other reallocations]]","v":0},{"$f":"Dataset[[#This Row],[2025/26 To - Spending review Topic 1]]+Dataset[[#This Row],[2025/26 To - Spending review Topic 2]]+Dataset[[#This Row],[2025/26 To - Spending review Topic 3]]+Dataset[[#This Row],[2025/26 To - Spending review Topic 4]]+Dataset[[#This Row],[2025/26 To - Other reallocations]]","v":0},{"$f":"Dataset[[#This Row],[2026/27 To - Spending review Topic 1]]+Dataset[[#This Row],[2026/27 To - Spending review Topic 2]]+Dataset[[#This Row],[2026/27 To - Spending review Topic 3]]+Dataset[[#This Row],[2026/27 To - Spending review Topic 4]]+Dataset[[#This Row],[2026/27 To - Other reallocations]]","v":0},{"$f":"Dataset[[#This Row],[2024/25 Reduction]]+Dataset[[#This Row],[2024/25 From - Total]]","v":0},{"$f":"Dataset[[#This Row],[2025/26 Reduction]]+Dataset[[#This Row],[2025/26 From - Total]]","v":0},{"$f":"Dataset[[#This Row],[2026/27 Reduction]]+Dataset[[#This Row],[2026/27 From - Total]]","v":0},{"$f":"Dataset[[#This Row],[2023/24 Reduction]]","v":0},{"$f":"SUM(Dataset[[#This Row],[2024/25 Reduction]],Dataset[[#This Row],[2024/25 From - Total]],Dataset[[#This Row],[2024/25 To - Total]])","v":0},{"$f":"SUM(Dataset[[#This Row],[2025/26 Reduction]],Dataset[[#This Row],[2025/26 From - Total]],Dataset[[#This Row],[2025/26 To - Total]])","v":0},{"$f":"SUM(Dataset[[#This Row],[2026/27 Reduction]],Dataset[[#This Row],[2026/27 From - Total]],Dataset[[#This Row],[2026/27 To - Total]])","v":0},{"$f":"Dataset[[#This Row],[2023/24 Baseline]]+Dataset[[#This Row],[2023/24 Total change]]","v":0},{"$f":"Dataset[[#This Row],[2024/25 Baseline]]+Dataset[[#This Row],[2024/25 Total change]]","v":0},{"$f":"Dataset[[#This Row],[2025/26 Baseline]]+Dataset[[#This Row],[2025/26 Total change]]","v":0},{"$f":"Dataset[[#This Row],[2026/27 Baseline]]+Dataset[[#This Row],[2026/27 Total change]]","v":0}]
["NAT|Non-transfer item","26|Higher education institutions","2024_25","MTEF2024",26,3,2,44706,819,"26","03","02","044706","000819","26|03|02","01","02","06","47","49","01|02|06|47|49","National","Military Veterans","Empowerment and Stakeholder Management","Empowerment and Skills Development","Non-transfer item","Current","Transfers and subsidies","Higher education institutions","Higher education institutions","Higher education institutions","Peace and security","Defence and state security","NAT",0,0,0,0,0,0,0,0,0,0,0,null,null,null,null,null,null,null,null,null,null,null,null,null,null,null,null,null,null,null,null,null,null,null,null,null,null,null,null,null,null,null,null,null,null,{"$f":"Dataset[[#This Row],[2024/25 From - Spending review Topic 1]]+Dataset[[#This Row],[2024/25 From - Spending review Topic 2]]+Dataset[[#This Row],[2024/25 From - Spending review Topic 3]]+Dataset[[#This Row],[2024/25 From - Spending review Topic 4]]+Dataset[[#This Row],[2024/25 From - Other reallocations]]","v":0},{"$f":"Dataset[[#This Row],[2025/26 From - Spending review Topic 1]]+Dataset[[#This Row],[2025/26 From - Spending review Topic 2]]+Dataset[[#This Row],[2025/26 From - Spending review Topic 3]]+Dataset[[#This Row],[2025/26 From - Spending review Topic 4]]+Dataset[[#This Row],[2025/26 From - Other reallocations]]","v":0},{"$f":"Dataset[[#This Row],[2026/27 From - Spending review Topic 1]]+Dataset[[#This Row],[2026/27 From - Spending review Topic 2]]+Dataset[[#This Row],[2026/27 From - Spending review Topic 3]]+Dataset[[#This Row],[2026/27 From - Spending review Topic 4]]+Dataset[[#This Row],[2026/27 From - Other reallocations]]","v":0},{"$f":"Dataset[[#This Row],[2024/25 To - Spending review Topic 1]]+Dataset[[#This Row],[2024/25 To - Spending review Topic 2]]+Dataset[[#This Row],[2024/25 To - Spending review Topic 3]]+Dataset[[#This Row],[2024/25 To - Spending review Topic 4]]+Dataset[[#This Row],[2024/25 To - Other reallocations]]","v":0},{"$f":"Dataset[[#This Row],[2025/26 To - Spending review Topic 1]]+Dataset[[#This Row],[2025/26 To - Spending review Topic 2]]+Dataset[[#This Row],[2025/26 To - Spending review Topic 3]]+Dataset[[#This Row],[2025/26 To - Spending review Topic 4]]+Dataset[[#This Row],[2025/26 To - Other reallocations]]","v":0},{"$f":"Dataset[[#This Row],[2026/27 To - Spending review Topic 1]]+Dataset[[#This Row],[2026/27 To - Spending review Topic 2]]+Dataset[[#This Row],[2026/27 To - Spending review Topic 3]]+Dataset[[#This Row],[2026/27 To - Spending review Topic 4]]+Dataset[[#This Row],[2026/27 To - Other reallocations]]","v":0},{"$f":"Dataset[[#This Row],[2024/25 Reduction]]+Dataset[[#This Row],[2024/25 From - Total]]","v":0},{"$f":"Dataset[[#This Row],[2025/26 Reduction]]+Dataset[[#This Row],[2025/26 From - Total]]","v":0},{"$f":"Dataset[[#This Row],[2026/27 Reduction]]+Dataset[[#This Row],[2026/27 From - Total]]","v":0},{"$f":"Dataset[[#This Row],[2023/24 Reduction]]","v":0},{"$f":"SUM(Dataset[[#This Row],[2024/25 Reduction]],Dataset[[#This Row],[2024/25 From - Total]],Dataset[[#This Row],[2024/25 To - Total]])","v":0},{"$f":"SUM(Dataset[[#This Row],[2025/26 Reduction]],Dataset[[#This Row],[2025/26 From - Total]],Dataset[[#This Row],[2025/26 To - Total]])","v":0},{"$f":"SUM(Dataset[[#This Row],[2026/27 Reduction]],Dataset[[#This Row],[2026/27 From - Total]],Dataset[[#This Row],[2026/27 To - Total]])","v":0},{"$f":"Dataset[[#This Row],[2023/24 Baseline]]+Dataset[[#This Row],[2023/24 Total change]]","v":0},{"$f":"Dataset[[#This Row],[2024/25 Baseline]]+Dataset[[#This Row],[2024/25 Total change]]","v":0},{"$f":"Dataset[[#This Row],[2025/26 Baseline]]+Dataset[[#This Row],[2025/26 Total change]]","v":0},{"$f":"Dataset[[#This Row],[2026/27 Baseline]]+Dataset[[#This Row],[2026/27 Total change]]","v":0}]
["NAT|Non-transfer item","26|Foreign governments and international organisations","2024_25","MTEF2024",26,3,2,44707,820,"26","03","02","044707","000820","26|03|02","01","02","07","48","50","01|02|07|48|50","National","Military Veterans","Empowerment and Stakeholder Management","Empowerment and Skills Development","Non-transfer item","Current","Transfers and subsidies","Foreign governments and international organisations","Foreign governments and international organisations","Foreign governments and international organisations","Peace and security","Defence and state security","NAT",0,0,0,0,0,0,0,0,0,0,0,null,null,null,null,null,null,null,null,null,null,null,null,null,null,null,null,null,null,null,null,null,null,null,null,null,null,null,null,null,null,null,null,null,null,{"$f":"Dataset[[#This Row],[2024/25 From - Spending review Topic 1]]+Dataset[[#This Row],[2024/25 From - Spending review Topic 2]]+Dataset[[#This Row],[2024/25 From - Spending review Topic 3]]+Dataset[[#This Row],[2024/25 From - Spending review Topic 4]]+Dataset[[#This Row],[2024/25 From - Other reallocations]]","v":0},{"$f":"Dataset[[#This Row],[2025/26 From - Spending review Topic 1]]+Dataset[[#This Row],[2025/26 From - Spending review Topic 2]]+Dataset[[#This Row],[2025/26 From - Spending review Topic 3]]+Dataset[[#This Row],[2025/26 From - Spending review Topic 4]]+Dataset[[#This Row],[2025/26 From - Other reallocations]]","v":0},{"$f":"Dataset[[#This Row],[2026/27 From - Spending review Topic 1]]+Dataset[[#This Row],[2026/27 From - Spending review Topic 2]]+Dataset[[#This Row],[2026/27 From - Spending review Topic 3]]+Dataset[[#This Row],[2026/27 From - Spending review Topic 4]]+Dataset[[#This Row],[2026/27 From - Other reallocations]]","v":0},{"$f":"Dataset[[#This Row],[2024/25 To - Spending review Topic 1]]+Dataset[[#This Row],[2024/25 To - Spending review Topic 2]]+Dataset[[#This Row],[2024/25 To - Spending review Topic 3]]+Dataset[[#This Row],[2024/25 To - Spending review Topic 4]]+Dataset[[#This Row],[2024/25 To - Other reallocations]]","v":0},{"$f":"Dataset[[#This Row],[2025/26 To - Spending review Topic 1]]+Dataset[[#This Row],[2025/26 To - Spending review Topic 2]]+Dataset[[#This Row],[2025/26 To - Spending review Topic 3]]+Dataset[[#This Row],[2025/26 To - Spending review Topic 4]]+Dataset[[#This Row],[2025/26 To - Other reallocations]]","v":0},{"$f":"Dataset[[#This Row],[2026/27 To - Spending review Topic 1]]+Dataset[[#This Row],[2026/27 To - Spending review Topic 2]]+Dataset[[#This Row],[2026/27 To - Spending review Topic 3]]+Dataset[[#This Row],[2026/27 To - Spending review Topic 4]]+Dataset[[#This Row],[2026/27 To - Other reallocations]]","v":0},{"$f":"Dataset[[#This Row],[2024/25 Reduction]]+Dataset[[#This Row],[2024/25 From - Total]]","v":0},{"$f":"Dataset[[#This Row],[2025/26 Reduction]]+Dataset[[#This Row],[2025/26 From - Total]]","v":0},{"$f":"Dataset[[#This Row],[2026/27 Reduction]]+Dataset[[#This Row],[2026/27 From - Total]]","v":0},{"$f":"Dataset[[#This Row],[2023/24 Reduction]]","v":0},{"$f":"SUM(Dataset[[#This Row],[2024/25 Reduction]],Dataset[[#This Row],[2024/25 From - Total]],Dataset[[#This Row],[2024/25 To - Total]])","v":0},{"$f":"SUM(Dataset[[#This Row],[2025/26 Reduction]],Dataset[[#This Row],[2025/26 From - Total]],Dataset[[#This Row],[2025/26 To - Total]])","v":0},{"$f":"SUM(Dataset[[#This Row],[2026/27 Reduction]],Dataset[[#This Row],[2026/27 From - Total]],Dataset[[#This Row],[2026/27 To - Total]])","v":0},{"$f":"Dataset[[#This Row],[2023/24 Baseline]]+Dataset[[#This Row],[2023/24 Total change]]","v":0},{"$f":"Dataset[[#This Row],[2024/25 Baseline]]+Dataset[[#This Row],[2024/25 Total change]]","v":0},{"$f":"Dataset[[#This Row],[2025/26 Baseline]]+Dataset[[#This Row],[2025/26 Total change]]","v":0},{"$f":"Dataset[[#This Row],[2026/27 Baseline]]+Dataset[[#This Row],[2026/27 Total change]]","v":0}]
["NAT|Non-transfer item","26|Subsidies on products and production (pc)","2024_25","MTEF2024",26,3,2,44708,821,"26","03","02","044708","000821","26|03|02","01","02","08","49","51","01|02|08|49|51","National","Military Veterans","Empowerment and Stakeholder Management","Empowerment and Skills Development","Non-transfer item","Current","Transfers and subsidies","Public corporations and private enterprises","Public corporations","Subsidies on products and production (pc)","Peace and security","Defence and state security","NAT",0,0,0,0,0,0,0,0,0,0,0,null,null,null,null,null,null,null,null,null,null,null,null,null,null,null,null,null,null,null,null,null,null,null,null,null,null,null,null,null,null,null,null,null,null,{"$f":"Dataset[[#This Row],[2024/25 From - Spending review Topic 1]]+Dataset[[#This Row],[2024/25 From - Spending review Topic 2]]+Dataset[[#This Row],[2024/25 From - Spending review Topic 3]]+Dataset[[#This Row],[2024/25 From - Spending review Topic 4]]+Dataset[[#This Row],[2024/25 From - Other reallocations]]","v":0},{"$f":"Dataset[[#This Row],[2025/26 From - Spending review Topic 1]]+Dataset[[#This Row],[2025/26 From - Spending review Topic 2]]+Dataset[[#This Row],[2025/26 From - Spending review Topic 3]]+Dataset[[#This Row],[2025/26 From - Spending review Topic 4]]+Dataset[[#This Row],[2025/26 From - Other reallocations]]","v":0},{"$f":"Dataset[[#This Row],[2026/27 From - Spending review Topic 1]]+Dataset[[#This Row],[2026/27 From - Spending review Topic 2]]+Dataset[[#This Row],[2026/27 From - Spending review Topic 3]]+Dataset[[#This Row],[2026/27 From - Spending review Topic 4]]+Dataset[[#This Row],[2026/27 From - Other reallocations]]","v":0},{"$f":"Dataset[[#This Row],[2024/25 To - Spending review Topic 1]]+Dataset[[#This Row],[2024/25 To - Spending review Topic 2]]+Dataset[[#This Row],[2024/25 To - Spending review Topic 3]]+Dataset[[#This Row],[2024/25 To - Spending review Topic 4]]+Dataset[[#This Row],[2024/25 To - Other reallocations]]","v":0},{"$f":"Dataset[[#This Row],[2025/26 To - Spending review Topic 1]]+Dataset[[#This Row],[2025/26 To - Spending review Topic 2]]+Dataset[[#This Row],[2025/26 To - Spending review Topic 3]]+Dataset[[#This Row],[2025/26 To - Spending review Topic 4]]+Dataset[[#This Row],[2025/26 To - Other reallocations]]","v":0},{"$f":"Dataset[[#This Row],[2026/27 To - Spending review Topic 1]]+Dataset[[#This Row],[2026/27 To - Spending review Topic 2]]+Dataset[[#This Row],[2026/27 To - Spending review Topic 3]]+Dataset[[#This Row],[2026/27 To - Spending review Topic 4]]+Dataset[[#This Row],[2026/27 To - Other reallocations]]","v":0},{"$f":"Dataset[[#This Row],[2024/25 Reduction]]+Dataset[[#This Row],[2024/25 From - Total]]","v":0},{"$f":"Dataset[[#This Row],[2025/26 Reduction]]+Dataset[[#This Row],[2025/26 From - Total]]","v":0},{"$f":"Dataset[[#This Row],[2026/27 Reduction]]+Dataset[[#This Row],[2026/27 From - Total]]","v":0},{"$f":"Dataset[[#This Row],[2023/24 Reduction]]","v":0},{"$f":"SUM(Dataset[[#This Row],[2024/25 Reduction]],Dataset[[#This Row],[2024/25 From - Total]],Dataset[[#This Row],[2024/25 To - Total]])","v":0},{"$f":"SUM(Dataset[[#This Row],[2025/26 Reduction]],Dataset[[#This Row],[2025/26 From - Total]],Dataset[[#This Row],[2025/26 To - Total]])","v":0},{"$f":"SUM(Dataset[[#This Row],[2026/27 Reduction]],Dataset[[#This Row],[2026/27 From - Total]],Dataset[[#This Row],[2026/27 To - Total]])","v":0},{"$f":"Dataset[[#This Row],[2023/24 Baseline]]+Dataset[[#This Row],[2023/24 Total change]]","v":0},{"$f":"Dataset[[#This Row],[2024/25 Baseline]]+Dataset[[#This Row],[2024/25 Total change]]","v":0},{"$f":"Dataset[[#This Row],[2025/26 Baseline]]+Dataset[[#This Row],[2025/26 Total change]]","v":0},{"$f":"Dataset[[#This Row],[2026/27 Baseline]]+Dataset[[#This Row],[2026/27 Total change]]","v":0}]
["NAT|Non-transfer item","26|Other transfers to public corporations","2024_25","MTEF2024",26,3,2,44709,822,"26","03","02","044709","000822","26|03|02","01","02","08","49","52","01|02|08|49|52","National","Military Veterans","Empowerment and Stakeholder Management","Empowerment and Skills Development","Non-transfer item","Current","Transfers and subsidies","Public corporations and private enterprises","Public corporations","Other transfers to public corporations","Peace and security","Defence and state security","NAT",0,0,0,0,0,0,0,0,0,0,0,null,null,null,null,null,null,null,null,null,null,null,null,null,null,null,null,null,null,null,null,null,null,null,null,null,null,null,null,null,null,null,null,null,null,{"$f":"Dataset[[#This Row],[2024/25 From - Spending review Topic 1]]+Dataset[[#This Row],[2024/25 From - Spending review Topic 2]]+Dataset[[#This Row],[2024/25 From - Spending review Topic 3]]+Dataset[[#This Row],[2024/25 From - Spending review Topic 4]]+Dataset[[#This Row],[2024/25 From - Other reallocations]]","v":0},{"$f":"Dataset[[#This Row],[2025/26 From - Spending review Topic 1]]+Dataset[[#This Row],[2025/26 From - Spending review Topic 2]]+Dataset[[#This Row],[2025/26 From - Spending review Topic 3]]+Dataset[[#This Row],[2025/26 From - Spending review Topic 4]]+Dataset[[#This Row],[2025/26 From - Other reallocations]]","v":0},{"$f":"Dataset[[#This Row],[2026/27 From - Spending review Topic 1]]+Dataset[[#This Row],[2026/27 From - Spending review Topic 2]]+Dataset[[#This Row],[2026/27 From - Spending review Topic 3]]+Dataset[[#This Row],[2026/27 From - Spending review Topic 4]]+Dataset[[#This Row],[2026/27 From - Other reallocations]]","v":0},{"$f":"Dataset[[#This Row],[2024/25 To - Spending review Topic 1]]+Dataset[[#This Row],[2024/25 To - Spending review Topic 2]]+Dataset[[#This Row],[2024/25 To - Spending review Topic 3]]+Dataset[[#This Row],[2024/25 To - Spending review Topic 4]]+Dataset[[#This Row],[2024/25 To - Other reallocations]]","v":0},{"$f":"Dataset[[#This Row],[2025/26 To - Spending review Topic 1]]+Dataset[[#This Row],[2025/26 To - Spending review Topic 2]]+Dataset[[#This Row],[2025/26 To - Spending review Topic 3]]+Dataset[[#This Row],[2025/26 To - Spending review Topic 4]]+Dataset[[#This Row],[2025/26 To - Other reallocations]]","v":0},{"$f":"Dataset[[#This Row],[2026/27 To - Spending review Topic 1]]+Dataset[[#This Row],[2026/27 To - Spending review Topic 2]]+Dataset[[#This Row],[2026/27 To - Spending review Topic 3]]+Dataset[[#This Row],[2026/27 To - Spending review Topic 4]]+Dataset[[#This Row],[2026/27 To - Other reallocations]]","v":0},{"$f":"Dataset[[#This Row],[2024/25 Reduction]]+Dataset[[#This Row],[2024/25 From - Total]]","v":0},{"$f":"Dataset[[#This Row],[2025/26 Reduction]]+Dataset[[#This Row],[2025/26 From - Total]]","v":0},{"$f":"Dataset[[#This Row],[2026/27 Reduction]]+Dataset[[#This Row],[2026/27 From - Total]]","v":0},{"$f":"Dataset[[#This Row],[2023/24 Reduction]]","v":0},{"$f":"SUM(Dataset[[#This Row],[2024/25 Reduction]],Dataset[[#This Row],[2024/25 From - Total]],Dataset[[#This Row],[2024/25 To - Total]])","v":0},{"$f":"SUM(Dataset[[#This Row],[2025/26 Reduction]],Dataset[[#This Row],[2025/26 From - Total]],Dataset[[#This Row],[2025/26 To - Total]])","v":0},{"$f":"SUM(Dataset[[#This Row],[2026/27 Reduction]],Dataset[[#This Row],[2026/27 From - Total]],Dataset[[#This Row],[2026/27 To - Total]])","v":0},{"$f":"Dataset[[#This Row],[2023/24 Baseline]]+Dataset[[#This Row],[2023/24 Total change]]","v":0},{"$f":"Dataset[[#This Row],[2024/25 Baseline]]+Dataset[[#This Row],[2024/25 Total change]]","v":0},{"$f":"Dataset[[#This Row],[2025/26 Baseline]]+Dataset[[#This Row],[2025/26 Total change]]","v":0},{"$f":"Dataset[[#This Row],[2026/27 Baseline]]+Dataset[[#This Row],[2026/27 Total change]]","v":0}]
["NAT|Non-transfer item","26|Subsidies on products and production (pe)","2024_25","MTEF2024",26,3,2,44710,823,"26","03","02","044710","000823","26|03|02","01","02","08","50","53","01|02|08|50|53","National","Military Veterans","Empowerment and Stakeholder Management","Empowerment and Skills Development","Non-transfer item","Current","Transfers and subsidies","Public corporations and private enterprises","Private enterprises","Subsidies on products and production (pe)","Peace and security","Defence and state security","NAT",0,0,0,0,0,0,0,0,0,0,0,null,null,null,null,null,null,null,null,null,null,null,null,null,null,null,null,null,null,null,null,null,null,null,null,null,null,null,null,null,null,null,null,null,null,{"$f":"Dataset[[#This Row],[2024/25 From - Spending review Topic 1]]+Dataset[[#This Row],[2024/25 From - Spending review Topic 2]]+Dataset[[#This Row],[2024/25 From - Spending review Topic 3]]+Dataset[[#This Row],[2024/25 From - Spending review Topic 4]]+Dataset[[#This Row],[2024/25 From - Other reallocations]]","v":0},{"$f":"Dataset[[#This Row],[2025/26 From - Spending review Topic 1]]+Dataset[[#This Row],[2025/26 From - Spending review Topic 2]]+Dataset[[#This Row],[2025/26 From - Spending review Topic 3]]+Dataset[[#This Row],[2025/26 From - Spending review Topic 4]]+Dataset[[#This Row],[2025/26 From - Other reallocations]]","v":0},{"$f":"Dataset[[#This Row],[2026/27 From - Spending review Topic 1]]+Dataset[[#This Row],[2026/27 From - Spending review Topic 2]]+Dataset[[#This Row],[2026/27 From - Spending review Topic 3]]+Dataset[[#This Row],[2026/27 From - Spending review Topic 4]]+Dataset[[#This Row],[2026/27 From - Other reallocations]]","v":0},{"$f":"Dataset[[#This Row],[2024/25 To - Spending review Topic 1]]+Dataset[[#This Row],[2024/25 To - Spending review Topic 2]]+Dataset[[#This Row],[2024/25 To - Spending review Topic 3]]+Dataset[[#This Row],[2024/25 To - Spending review Topic 4]]+Dataset[[#This Row],[2024/25 To - Other reallocations]]","v":0},{"$f":"Dataset[[#This Row],[2025/26 To - Spending review Topic 1]]+Dataset[[#This Row],[2025/26 To - Spending review Topic 2]]+Dataset[[#This Row],[2025/26 To - Spending review Topic 3]]+Dataset[[#This Row],[2025/26 To - Spending review Topic 4]]+Dataset[[#This Row],[2025/26 To - Other reallocations]]","v":0},{"$f":"Dataset[[#This Row],[2026/27 To - Spending review Topic 1]]+Dataset[[#This Row],[2026/27 To - Spending review Topic 2]]+Dataset[[#This Row],[2026/27 To - Spending review Topic 3]]+Dataset[[#This Row],[2026/27 To - Spending review Topic 4]]+Dataset[[#This Row],[2026/27 To - Other reallocations]]","v":0},{"$f":"Dataset[[#This Row],[2024/25 Reduction]]+Dataset[[#This Row],[2024/25 From - Total]]","v":0},{"$f":"Dataset[[#This Row],[2025/26 Reduction]]+Dataset[[#This Row],[2025/26 From - Total]]","v":0},{"$f":"Dataset[[#This Row],[2026/27 Reduction]]+Dataset[[#This Row],[2026/27 From - Total]]","v":0},{"$f":"Dataset[[#This Row],[2023/24 Reduction]]","v":0},{"$f":"SUM(Dataset[[#This Row],[2024/25 Reduction]],Dataset[[#This Row],[2024/25 From - Total]],Dataset[[#This Row],[2024/25 To - Total]])","v":0},{"$f":"SUM(Dataset[[#This Row],[2025/26 Reduction]],Dataset[[#This Row],[2025/26 From - Total]],Dataset[[#This Row],[2025/26 To - Total]])","v":0},{"$f":"SUM(Dataset[[#This Row],[2026/27 Reduction]],Dataset[[#This Row],[2026/27 From - Total]],Dataset[[#This Row],[2026/27 To - Total]])","v":0},{"$f":"Dataset[[#This Row],[2023/24 Baseline]]+Dataset[[#This Row],[2023/24 Total change]]","v":0},{"$f":"Dataset[[#This Row],[2024/25 Baseline]]+Dataset[[#This Row],[2024/25 Total change]]","v":0},{"$f":"Dataset[[#This Row],[2025/26 Baseline]]+Dataset[[#This Row],[2025/26 Total change]]","v":0},{"$f":"Dataset[[#This Row],[2026/27 Baseline]]+Dataset[[#This Row],[2026/27 Total change]]","v":0}]
["NAT|Non-transfer item","26|Other transfers to private enterprises","2024_25","MTEF2024",26,3,2,44711,824,"26","03","02","044711","000824","26|03|02","01","02","08","50","54","01|02|08|50|54","National","Military Veterans","Empowerment and Stakeholder Management","Empowerment and Skills Development","Non-transfer item","Current","Transfers and subsidies","Public corporations and private enterprises","Private enterprises","Other transfers to private enterprises","Peace and security","Defence and state security","NAT",0,0,0,0,0,0,0,0,0,0,0,null,null,null,null,null,null,null,null,null,null,null,null,null,null,null,null,null,null,null,null,null,null,null,null,null,null,null,null,null,null,null,null,null,null,{"$f":"Dataset[[#This Row],[2024/25 From - Spending review Topic 1]]+Dataset[[#This Row],[2024/25 From - Spending review Topic 2]]+Dataset[[#This Row],[2024/25 From - Spending review Topic 3]]+Dataset[[#This Row],[2024/25 From - Spending review Topic 4]]+Dataset[[#This Row],[2024/25 From - Other reallocations]]","v":0},{"$f":"Dataset[[#This Row],[2025/26 From - Spending review Topic 1]]+Dataset[[#This Row],[2025/26 From - Spending review Topic 2]]+Dataset[[#This Row],[2025/26 From - Spending review Topic 3]]+Dataset[[#This Row],[2025/26 From - Spending review Topic 4]]+Dataset[[#This Row],[2025/26 From - Other reallocations]]","v":0},{"$f":"Dataset[[#This Row],[2026/27 From - Spending review Topic 1]]+Dataset[[#This Row],[2026/27 From - Spending review Topic 2]]+Dataset[[#This Row],[2026/27 From - Spending review Topic 3]]+Dataset[[#This Row],[2026/27 From - Spending review Topic 4]]+Dataset[[#This Row],[2026/27 From - Other reallocations]]","v":0},{"$f":"Dataset[[#This Row],[2024/25 To - Spending review Topic 1]]+Dataset[[#This Row],[2024/25 To - Spending review Topic 2]]+Dataset[[#This Row],[2024/25 To - Spending review Topic 3]]+Dataset[[#This Row],[2024/25 To - Spending review Topic 4]]+Dataset[[#This Row],[2024/25 To - Other reallocations]]","v":0},{"$f":"Dataset[[#This Row],[2025/26 To - Spending review Topic 1]]+Dataset[[#This Row],[2025/26 To - Spending review Topic 2]]+Dataset[[#This Row],[2025/26 To - Spending review Topic 3]]+Dataset[[#This Row],[2025/26 To - Spending review Topic 4]]+Dataset[[#This Row],[2025/26 To - Other reallocations]]","v":0},{"$f":"Dataset[[#This Row],[2026/27 To - Spending review Topic 1]]+Dataset[[#This Row],[2026/27 To - Spending review Topic 2]]+Dataset[[#This Row],[2026/27 To - Spending review Topic 3]]+Dataset[[#This Row],[2026/27 To - Spending review Topic 4]]+Dataset[[#This Row],[2026/27 To - Other reallocations]]","v":0},{"$f":"Dataset[[#This Row],[2024/25 Reduction]]+Dataset[[#This Row],[2024/25 From - Total]]","v":0},{"$f":"Dataset[[#This Row],[2025/26 Reduction]]+Dataset[[#This Row],[2025/26 From - Total]]","v":0},{"$f":"Dataset[[#This Row],[2026/27 Reduction]]+Dataset[[#This Row],[2026/27 From - Total]]","v":0},{"$f":"Dataset[[#This Row],[2023/24 Reduction]]","v":0},{"$f":"SUM(Dataset[[#This Row],[2024/25 Reduction]],Dataset[[#This Row],[2024/25 From - Total]],Dataset[[#This Row],[2024/25 To - Total]])","v":0},{"$f":"SUM(Dataset[[#This Row],[2025/26 Reduction]],Dataset[[#This Row],[2025/26 From - Total]],Dataset[[#This Row],[2025/26 To - Total]])","v":0},{"$f":"SUM(Dataset[[#This Row],[2026/27 Reduction]],Dataset[[#This Row],[2026/27 From - Total]],Dataset[[#This Row],[2026/27 To - Total]])","v":0},{"$f":"Dataset[[#This Row],[2023/24 Baseline]]+Dataset[[#This Row],[2023/24 Total change]]","v":0},{"$f":"Dataset[[#This Row],[2024/25 Baseline]]+Dataset[[#This Row],[2024/25 Total change]]","v":0},{"$f":"Dataset[[#This Row],[2025/26 Baseline]]+Dataset[[#This Row],[2025/26 Total change]]","v":0},{"$f":"Dataset[[#This Row],[2026/27 Baseline]]+Dataset[[#This Row],[2026/27 Total change]]","v":0}]
["NAT|Non-transfer item","26|Non-profit institutions","2024_25","MTEF2024",26,3,2,44712,825,"26","03","02","044712","000825","26|03|02","01","02","09","51","55","01|02|09|51|55","National","Military Veterans","Empowerment and Stakeholder Management","Empowerment and Skills Development","Non-transfer item","Current","Transfers and subsidies","Non-profit institutions","Non-profit institutions","Non-profit institutions","Peace and security","Defence and state security","NAT",0,0,0,0,0,0,0,0,0,0,0,null,null,null,null,null,null,null,null,null,null,null,null,null,null,null,null,null,null,null,null,null,null,null,null,null,null,null,null,null,null,null,null,null,null,{"$f":"Dataset[[#This Row],[2024/25 From - Spending review Topic 1]]+Dataset[[#This Row],[2024/25 From - Spending review Topic 2]]+Dataset[[#This Row],[2024/25 From - Spending review Topic 3]]+Dataset[[#This Row],[2024/25 From - Spending review Topic 4]]+Dataset[[#This Row],[2024/25 From - Other reallocations]]","v":0},{"$f":"Dataset[[#This Row],[2025/26 From - Spending review Topic 1]]+Dataset[[#This Row],[2025/26 From - Spending review Topic 2]]+Dataset[[#This Row],[2025/26 From - Spending review Topic 3]]+Dataset[[#This Row],[2025/26 From - Spending review Topic 4]]+Dataset[[#This Row],[2025/26 From - Other reallocations]]","v":0},{"$f":"Dataset[[#This Row],[2026/27 From - Spending review Topic 1]]+Dataset[[#This Row],[2026/27 From - Spending review Topic 2]]+Dataset[[#This Row],[2026/27 From - Spending review Topic 3]]+Dataset[[#This Row],[2026/27 From - Spending review Topic 4]]+Dataset[[#This Row],[2026/27 From - Other reallocations]]","v":0},{"$f":"Dataset[[#This Row],[2024/25 To - Spending review Topic 1]]+Dataset[[#This Row],[2024/25 To - Spending review Topic 2]]+Dataset[[#This Row],[2024/25 To - Spending review Topic 3]]+Dataset[[#This Row],[2024/25 To - Spending review Topic 4]]+Dataset[[#This Row],[2024/25 To - Other reallocations]]","v":0},{"$f":"Dataset[[#This Row],[2025/26 To - Spending review Topic 1]]+Dataset[[#This Row],[2025/26 To - Spending review Topic 2]]+Dataset[[#This Row],[2025/26 To - Spending review Topic 3]]+Dataset[[#This Row],[2025/26 To - Spending review Topic 4]]+Dataset[[#This Row],[2025/26 To - Other reallocations]]","v":0},{"$f":"Dataset[[#This Row],[2026/27 To - Spending review Topic 1]]+Dataset[[#This Row],[2026/27 To - Spending review Topic 2]]+Dataset[[#This Row],[2026/27 To - Spending review Topic 3]]+Dataset[[#This Row],[2026/27 To - Spending review Topic 4]]+Dataset[[#This Row],[2026/27 To - Other reallocations]]","v":0},{"$f":"Dataset[[#This Row],[2024/25 Reduction]]+Dataset[[#This Row],[2024/25 From - Total]]","v":0},{"$f":"Dataset[[#This Row],[2025/26 Reduction]]+Dataset[[#This Row],[2025/26 From - Total]]","v":0},{"$f":"Dataset[[#This Row],[2026/27 Reduction]]+Dataset[[#This Row],[2026/27 From - Total]]","v":0},{"$f":"Dataset[[#This Row],[2023/24 Reduction]]","v":0},{"$f":"SUM(Dataset[[#This Row],[2024/25 Reduction]],Dataset[[#This Row],[2024/25 From - Total]],Dataset[[#This Row],[2024/25 To - Total]])","v":0},{"$f":"SUM(Dataset[[#This Row],[2025/26 Reduction]],Dataset[[#This Row],[2025/26 From - Total]],Dataset[[#This Row],[2025/26 To - Total]])","v":0},{"$f":"SUM(Dataset[[#This Row],[2026/27 Reduction]],Dataset[[#This Row],[2026/27 From - Total]],Dataset[[#This Row],[2026/27 To - Total]])","v":0},{"$f":"Dataset[[#This Row],[2023/24 Baseline]]+Dataset[[#This Row],[2023/24 Total change]]","v":0},{"$f":"Dataset[[#This Row],[2024/25 Baseline]]+Dataset[[#This Row],[2024/25 Total change]]","v":0},{"$f":"Dataset[[#This Row],[2025/26 Baseline]]+Dataset[[#This Row],[2025/26 Total change]]","v":0},{"$f":"Dataset[[#This Row],[2026/27 Baseline]]+Dataset[[#This Row],[2026/27 Total change]]","v":0}]
["NAT|Military veterans' benefits","26|Social benefits","2024_25","MTEF2024",26,3,2,44713,826,"26","03","02","044713","000826","26|03|02","01","02","10","52","56","01|02|10|52|56","National","Military Veterans","Empowerment and Stakeholder Management","Empowerment and Skills Development","Military veterans' benefits","Current","Transfers and subsidies","Households","Social benefits","Social benefits","Peace and security","Defence and state security","NAT",0,30,0,0,128,128,0,0,0,0,0,null,null,null,null,null,null,null,null,null,null,null,null,null,null,null,null,null,null,null,null,null,null,null,null,null,null,null,null,null,null,null,null,null,null,{"$f":"Dataset[[#This Row],[2024/25 From - Spending review Topic 1]]+Dataset[[#This Row],[2024/25 From - Spending review Topic 2]]+Dataset[[#This Row],[2024/25 From - Spending review Topic 3]]+Dataset[[#This Row],[2024/25 From - Spending review Topic 4]]+Dataset[[#This Row],[2024/25 From - Other reallocations]]","v":0},{"$f":"Dataset[[#This Row],[2025/26 From - Spending review Topic 1]]+Dataset[[#This Row],[2025/26 From - Spending review Topic 2]]+Dataset[[#This Row],[2025/26 From - Spending review Topic 3]]+Dataset[[#This Row],[2025/26 From - Spending review Topic 4]]+Dataset[[#This Row],[2025/26 From - Other reallocations]]","v":0},{"$f":"Dataset[[#This Row],[2026/27 From - Spending review Topic 1]]+Dataset[[#This Row],[2026/27 From - Spending review Topic 2]]+Dataset[[#This Row],[2026/27 From - Spending review Topic 3]]+Dataset[[#This Row],[2026/27 From - Spending review Topic 4]]+Dataset[[#This Row],[2026/27 From - Other reallocations]]","v":0},{"$f":"Dataset[[#This Row],[2024/25 To - Spending review Topic 1]]+Dataset[[#This Row],[2024/25 To - Spending review Topic 2]]+Dataset[[#This Row],[2024/25 To - Spending review Topic 3]]+Dataset[[#This Row],[2024/25 To - Spending review Topic 4]]+Dataset[[#This Row],[2024/25 To - Other reallocations]]","v":0},{"$f":"Dataset[[#This Row],[2025/26 To - Spending review Topic 1]]+Dataset[[#This Row],[2025/26 To - Spending review Topic 2]]+Dataset[[#This Row],[2025/26 To - Spending review Topic 3]]+Dataset[[#This Row],[2025/26 To - Spending review Topic 4]]+Dataset[[#This Row],[2025/26 To - Other reallocations]]","v":0},{"$f":"Dataset[[#This Row],[2026/27 To - Spending review Topic 1]]+Dataset[[#This Row],[2026/27 To - Spending review Topic 2]]+Dataset[[#This Row],[2026/27 To - Spending review Topic 3]]+Dataset[[#This Row],[2026/27 To - Spending review Topic 4]]+Dataset[[#This Row],[2026/27 To - Other reallocations]]","v":0},{"$f":"Dataset[[#This Row],[2024/25 Reduction]]+Dataset[[#This Row],[2024/25 From - Total]]","v":0},{"$f":"Dataset[[#This Row],[2025/26 Reduction]]+Dataset[[#This Row],[2025/26 From - Total]]","v":0},{"$f":"Dataset[[#This Row],[2026/27 Reduction]]+Dataset[[#This Row],[2026/27 From - Total]]","v":0},{"$f":"Dataset[[#This Row],[2023/24 Reduction]]","v":0},{"$f":"SUM(Dataset[[#This Row],[2024/25 Reduction]],Dataset[[#This Row],[2024/25 From - Total]],Dataset[[#This Row],[2024/25 To - Total]])","v":0},{"$f":"SUM(Dataset[[#This Row],[2025/26 Reduction]],Dataset[[#This Row],[2025/26 From - Total]],Dataset[[#This Row],[2025/26 To - Total]])","v":0},{"$f":"SUM(Dataset[[#This Row],[2026/27 Reduction]],Dataset[[#This Row],[2026/27 From - Total]],Dataset[[#This Row],[2026/27 To - Total]])","v":0},{"$f":"Dataset[[#This Row],[2023/24 Baseline]]+Dataset[[#This Row],[2023/24 Total change]]","v":0},{"$f":"Dataset[[#This Row],[2024/25 Baseline]]+Dataset[[#This Row],[2024/25 Total change]]","v":0},{"$f":"Dataset[[#This Row],[2025/26 Baseline]]+Dataset[[#This Row],[2025/26 Total change]]","v":0},{"$f":"Dataset[[#This Row],[2026/27 Baseline]]+Dataset[[#This Row],[2026/27 Total change]]","v":0}]
["NAT|Military veterans' benefits","26|Other transfers to households","2024_25","MTEF2024",26,3,2,44714,827,"26","03","02","044714","000827","26|03|02","01","02","10","53","57","01|02|10|53|57","National","Military Veterans","Empowerment and Stakeholder Management","Empowerment and Skills Development","Military veterans' benefits","Current","Transfers and subsidies","Households","Other transfers to households","Other transfers to households","Peace and security","Defence and state security","NAT",0,0,0,0,0,0,0,62000,66000,74000,77390,null,null,null,null,null,null,null,null,null,null,null,null,null,null,null,null,null,null,null,null,null,null,null,null,null,null,null,null,null,null,null,null,null,null,{"$f":"Dataset[[#This Row],[2024/25 From - Spending review Topic 1]]+Dataset[[#This Row],[2024/25 From - Spending review Topic 2]]+Dataset[[#This Row],[2024/25 From - Spending review Topic 3]]+Dataset[[#This Row],[2024/25 From - Spending review Topic 4]]+Dataset[[#This Row],[2024/25 From - Other reallocations]]","v":0},{"$f":"Dataset[[#This Row],[2025/26 From - Spending review Topic 1]]+Dataset[[#This Row],[2025/26 From - Spending review Topic 2]]+Dataset[[#This Row],[2025/26 From - Spending review Topic 3]]+Dataset[[#This Row],[2025/26 From - Spending review Topic 4]]+Dataset[[#This Row],[2025/26 From - Other reallocations]]","v":0},{"$f":"Dataset[[#This Row],[2026/27 From - Spending review Topic 1]]+Dataset[[#This Row],[2026/27 From - Spending review Topic 2]]+Dataset[[#This Row],[2026/27 From - Spending review Topic 3]]+Dataset[[#This Row],[2026/27 From - Spending review Topic 4]]+Dataset[[#This Row],[2026/27 From - Other reallocations]]","v":0},{"$f":"Dataset[[#This Row],[2024/25 To - Spending review Topic 1]]+Dataset[[#This Row],[2024/25 To - Spending review Topic 2]]+Dataset[[#This Row],[2024/25 To - Spending review Topic 3]]+Dataset[[#This Row],[2024/25 To - Spending review Topic 4]]+Dataset[[#This Row],[2024/25 To - Other reallocations]]","v":0},{"$f":"Dataset[[#This Row],[2025/26 To - Spending review Topic 1]]+Dataset[[#This Row],[2025/26 To - Spending review Topic 2]]+Dataset[[#This Row],[2025/26 To - Spending review Topic 3]]+Dataset[[#This Row],[2025/26 To - Spending review Topic 4]]+Dataset[[#This Row],[2025/26 To - Other reallocations]]","v":0},{"$f":"Dataset[[#This Row],[2026/27 To - Spending review Topic 1]]+Dataset[[#This Row],[2026/27 To - Spending review Topic 2]]+Dataset[[#This Row],[2026/27 To - Spending review Topic 3]]+Dataset[[#This Row],[2026/27 To - Spending review Topic 4]]+Dataset[[#This Row],[2026/27 To - Other reallocations]]","v":0},{"$f":"Dataset[[#This Row],[2024/25 Reduction]]+Dataset[[#This Row],[2024/25 From - Total]]","v":0},{"$f":"Dataset[[#This Row],[2025/26 Reduction]]+Dataset[[#This Row],[2025/26 From - Total]]","v":0},{"$f":"Dataset[[#This Row],[2026/27 Reduction]]+Dataset[[#This Row],[2026/27 From - Total]]","v":0},{"$f":"Dataset[[#This Row],[2023/24 Reduction]]","v":0},{"$f":"SUM(Dataset[[#This Row],[2024/25 Reduction]],Dataset[[#This Row],[2024/25 From - Total]],Dataset[[#This Row],[2024/25 To - Total]])","v":0},{"$f":"SUM(Dataset[[#This Row],[2025/26 Reduction]],Dataset[[#This Row],[2025/26 From - Total]],Dataset[[#This Row],[2025/26 To - Total]])","v":0},{"$f":"SUM(Dataset[[#This Row],[2026/27 Reduction]],Dataset[[#This Row],[2026/27 From - Total]],Dataset[[#This Row],[2026/27 To - Total]])","v":0},{"$f":"Dataset[[#This Row],[2023/24 Baseline]]+Dataset[[#This Row],[2023/24 Total change]]","v":62000},{"$f":"Dataset[[#This Row],[2024/25 Baseline]]+Dataset[[#This Row],[2024/25 Total change]]","v":66000},{"$f":"Dataset[[#This Row],[2025/26 Baseline]]+Dataset[[#This Row],[2025/26 Total change]]","v":74000},{"$f":"Dataset[[#This Row],[2026/27 Baseline]]+Dataset[[#This Row],[2026/27 Total change]]","v":77390}]
["NAT|Non-transfer item","26|Provincial Revenue Funds","2024_25","MTEF2024",26,3,2,44715,828,"26","03","02","044715","000828","26|03|02","02","02","04","43","43","02|02|04|43|43","National","Military Veterans","Empowerment and Stakeholder Management","Empowerment and Skills Development","Non-transfer item","Capital","Transfers and subsidies","Provinces and municipalities","Provinces","Provincial Revenue Funds","Peace and security","Defence and state security","NAT",0,0,0,0,0,0,0,0,0,0,0,null,null,null,null,null,null,null,null,null,null,null,null,null,null,null,null,null,null,null,null,null,null,null,null,null,null,null,null,null,null,null,null,null,null,{"$f":"Dataset[[#This Row],[2024/25 From - Spending review Topic 1]]+Dataset[[#This Row],[2024/25 From - Spending review Topic 2]]+Dataset[[#This Row],[2024/25 From - Spending review Topic 3]]+Dataset[[#This Row],[2024/25 From - Spending review Topic 4]]+Dataset[[#This Row],[2024/25 From - Other reallocations]]","v":0},{"$f":"Dataset[[#This Row],[2025/26 From - Spending review Topic 1]]+Dataset[[#This Row],[2025/26 From - Spending review Topic 2]]+Dataset[[#This Row],[2025/26 From - Spending review Topic 3]]+Dataset[[#This Row],[2025/26 From - Spending review Topic 4]]+Dataset[[#This Row],[2025/26 From - Other reallocations]]","v":0},{"$f":"Dataset[[#This Row],[2026/27 From - Spending review Topic 1]]+Dataset[[#This Row],[2026/27 From - Spending review Topic 2]]+Dataset[[#This Row],[2026/27 From - Spending review Topic 3]]+Dataset[[#This Row],[2026/27 From - Spending review Topic 4]]+Dataset[[#This Row],[2026/27 From - Other reallocations]]","v":0},{"$f":"Dataset[[#This Row],[2024/25 To - Spending review Topic 1]]+Dataset[[#This Row],[2024/25 To - Spending review Topic 2]]+Dataset[[#This Row],[2024/25 To - Spending review Topic 3]]+Dataset[[#This Row],[2024/25 To - Spending review Topic 4]]+Dataset[[#This Row],[2024/25 To - Other reallocations]]","v":0},{"$f":"Dataset[[#This Row],[2025/26 To - Spending review Topic 1]]+Dataset[[#This Row],[2025/26 To - Spending review Topic 2]]+Dataset[[#This Row],[2025/26 To - Spending review Topic 3]]+Dataset[[#This Row],[2025/26 To - Spending review Topic 4]]+Dataset[[#This Row],[2025/26 To - Other reallocations]]","v":0},{"$f":"Dataset[[#This Row],[2026/27 To - Spending review Topic 1]]+Dataset[[#This Row],[2026/27 To - Spending review Topic 2]]+Dataset[[#This Row],[2026/27 To - Spending review Topic 3]]+Dataset[[#This Row],[2026/27 To - Spending review Topic 4]]+Dataset[[#This Row],[2026/27 To - Other reallocations]]","v":0},{"$f":"Dataset[[#This Row],[2024/25 Reduction]]+Dataset[[#This Row],[2024/25 From - Total]]","v":0},{"$f":"Dataset[[#This Row],[2025/26 Reduction]]+Dataset[[#This Row],[2025/26 From - Total]]","v":0},{"$f":"Dataset[[#This Row],[2026/27 Reduction]]+Dataset[[#This Row],[2026/27 From - Total]]","v":0},{"$f":"Dataset[[#This Row],[2023/24 Reduction]]","v":0},{"$f":"SUM(Dataset[[#This Row],[2024/25 Reduction]],Dataset[[#This Row],[2024/25 From - Total]],Dataset[[#This Row],[2024/25 To - Total]])","v":0},{"$f":"SUM(Dataset[[#This Row],[2025/26 Reduction]],Dataset[[#This Row],[2025/26 From - Total]],Dataset[[#This Row],[2025/26 To - Total]])","v":0},{"$f":"SUM(Dataset[[#This Row],[2026/27 Reduction]],Dataset[[#This Row],[2026/27 From - Total]],Dataset[[#This Row],[2026/27 To - Total]])","v":0},{"$f":"Dataset[[#This Row],[2023/24 Baseline]]+Dataset[[#This Row],[2023/24 Total change]]","v":0},{"$f":"Dataset[[#This Row],[2024/25 Baseline]]+Dataset[[#This Row],[2024/25 Total change]]","v":0},{"$f":"Dataset[[#This Row],[2025/26 Baseline]]+Dataset[[#This Row],[2025/26 Total change]]","v":0},{"$f":"Dataset[[#This Row],[2026/27 Baseline]]+Dataset[[#This Row],[2026/27 Total change]]","v":0}]
["NAT|Non-transfer item","26|Municipal bank accounts","2024_25","MTEF2024",26,3,2,44716,829,"26","03","02","044716","000829","26|03|02","02","02","04","44","45","02|02|04|44|45","National","Military Veterans","Empowerment and Stakeholder Management","Empowerment and Skills Development","Non-transfer item","Capital","Transfers and subsidies","Provinces and municipalities","Municipalities","Municipal bank accounts","Peace and security","Defence and state security","NAT",0,0,0,0,0,0,0,0,0,0,0,null,null,null,null,null,null,null,null,null,null,null,null,null,null,null,null,null,null,null,null,null,null,null,null,null,null,null,null,null,null,null,null,null,null,{"$f":"Dataset[[#This Row],[2024/25 From - Spending review Topic 1]]+Dataset[[#This Row],[2024/25 From - Spending review Topic 2]]+Dataset[[#This Row],[2024/25 From - Spending review Topic 3]]+Dataset[[#This Row],[2024/25 From - Spending review Topic 4]]+Dataset[[#This Row],[2024/25 From - Other reallocations]]","v":0},{"$f":"Dataset[[#This Row],[2025/26 From - Spending review Topic 1]]+Dataset[[#This Row],[2025/26 From - Spending review Topic 2]]+Dataset[[#This Row],[2025/26 From - Spending review Topic 3]]+Dataset[[#This Row],[2025/26 From - Spending review Topic 4]]+Dataset[[#This Row],[2025/26 From - Other reallocations]]","v":0},{"$f":"Dataset[[#This Row],[2026/27 From - Spending review Topic 1]]+Dataset[[#This Row],[2026/27 From - Spending review Topic 2]]+Dataset[[#This Row],[2026/27 From - Spending review Topic 3]]+Dataset[[#This Row],[2026/27 From - Spending review Topic 4]]+Dataset[[#This Row],[2026/27 From - Other reallocations]]","v":0},{"$f":"Dataset[[#This Row],[2024/25 To - Spending review Topic 1]]+Dataset[[#This Row],[2024/25 To - Spending review Topic 2]]+Dataset[[#This Row],[2024/25 To - Spending review Topic 3]]+Dataset[[#This Row],[2024/25 To - Spending review Topic 4]]+Dataset[[#This Row],[2024/25 To - Other reallocations]]","v":0},{"$f":"Dataset[[#This Row],[2025/26 To - Spending review Topic 1]]+Dataset[[#This Row],[2025/26 To - Spending review Topic 2]]+Dataset[[#This Row],[2025/26 To - Spending review Topic 3]]+Dataset[[#This Row],[2025/26 To - Spending review Topic 4]]+Dataset[[#This Row],[2025/26 To - Other reallocations]]","v":0},{"$f":"Dataset[[#This Row],[2026/27 To - Spending review Topic 1]]+Dataset[[#This Row],[2026/27 To - Spending review Topic 2]]+Dataset[[#This Row],[2026/27 To - Spending review Topic 3]]+Dataset[[#This Row],[2026/27 To - Spending review Topic 4]]+Dataset[[#This Row],[2026/27 To - Other reallocations]]","v":0},{"$f":"Dataset[[#This Row],[2024/25 Reduction]]+Dataset[[#This Row],[2024/25 From - Total]]","v":0},{"$f":"Dataset[[#This Row],[2025/26 Reduction]]+Dataset[[#This Row],[2025/26 From - Total]]","v":0},{"$f":"Dataset[[#This Row],[2026/27 Reduction]]+Dataset[[#This Row],[2026/27 From - Total]]","v":0},{"$f":"Dataset[[#This Row],[2023/24 Reduction]]","v":0},{"$f":"SUM(Dataset[[#This Row],[2024/25 Reduction]],Dataset[[#This Row],[2024/25 From - Total]],Dataset[[#This Row],[2024/25 To - Total]])","v":0},{"$f":"SUM(Dataset[[#This Row],[2025/26 Reduction]],Dataset[[#This Row],[2025/26 From - Total]],Dataset[[#This Row],[2025/26 To - Total]])","v":0},{"$f":"SUM(Dataset[[#This Row],[2026/27 Reduction]],Dataset[[#This Row],[2026/27 From - Total]],Dataset[[#This Row],[2026/27 To - Total]])","v":0},{"$f":"Dataset[[#This Row],[2023/24 Baseline]]+Dataset[[#This Row],[2023/24 Total change]]","v":0},{"$f":"Dataset[[#This Row],[2024/25 Baseline]]+Dataset[[#This Row],[2024/25 Total change]]","v":0},{"$f":"Dataset[[#This Row],[2025/26 Baseline]]+Dataset[[#This Row],[2025/26 Total change]]","v":0},{"$f":"Dataset[[#This Row],[2026/27 Baseline]]+Dataset[[#This Row],[2026/27 Total change]]","v":0}]
["NAT|Non-transfer item","26|Departmental agencies (non-business entities)","2024_25","MTEF2024",26,3,2,44717,830,"26","03","02","044717","000830","26|03|02","02","02","05","46","48","02|02|05|46|48","National","Military Veterans","Empowerment and Stakeholder Management","Empowerment and Skills Development","Non-transfer item","Capital","Transfers and subsidies","Departmental agencies and accounts","Departmental agencies (non-business entities)","Departmental agencies (non-business entities)","Peace and security","Defence and state security","NAT",0,0,0,0,0,0,0,0,0,0,0,null,null,null,null,null,null,null,null,null,null,null,null,null,null,null,null,null,null,null,null,null,null,null,null,null,null,null,null,null,null,null,null,null,null,{"$f":"Dataset[[#This Row],[2024/25 From - Spending review Topic 1]]+Dataset[[#This Row],[2024/25 From - Spending review Topic 2]]+Dataset[[#This Row],[2024/25 From - Spending review Topic 3]]+Dataset[[#This Row],[2024/25 From - Spending review Topic 4]]+Dataset[[#This Row],[2024/25 From - Other reallocations]]","v":0},{"$f":"Dataset[[#This Row],[2025/26 From - Spending review Topic 1]]+Dataset[[#This Row],[2025/26 From - Spending review Topic 2]]+Dataset[[#This Row],[2025/26 From - Spending review Topic 3]]+Dataset[[#This Row],[2025/26 From - Spending review Topic 4]]+Dataset[[#This Row],[2025/26 From - Other reallocations]]","v":0},{"$f":"Dataset[[#This Row],[2026/27 From - Spending review Topic 1]]+Dataset[[#This Row],[2026/27 From - Spending review Topic 2]]+Dataset[[#This Row],[2026/27 From - Spending review Topic 3]]+Dataset[[#This Row],[2026/27 From - Spending review Topic 4]]+Dataset[[#This Row],[2026/27 From - Other reallocations]]","v":0},{"$f":"Dataset[[#This Row],[2024/25 To - Spending review Topic 1]]+Dataset[[#This Row],[2024/25 To - Spending review Topic 2]]+Dataset[[#This Row],[2024/25 To - Spending review Topic 3]]+Dataset[[#This Row],[2024/25 To - Spending review Topic 4]]+Dataset[[#This Row],[2024/25 To - Other reallocations]]","v":0},{"$f":"Dataset[[#This Row],[2025/26 To - Spending review Topic 1]]+Dataset[[#This Row],[2025/26 To - Spending review Topic 2]]+Dataset[[#This Row],[2025/26 To - Spending review Topic 3]]+Dataset[[#This Row],[2025/26 To - Spending review Topic 4]]+Dataset[[#This Row],[2025/26 To - Other reallocations]]","v":0},{"$f":"Dataset[[#This Row],[2026/27 To - Spending review Topic 1]]+Dataset[[#This Row],[2026/27 To - Spending review Topic 2]]+Dataset[[#This Row],[2026/27 To - Spending review Topic 3]]+Dataset[[#This Row],[2026/27 To - Spending review Topic 4]]+Dataset[[#This Row],[2026/27 To - Other reallocations]]","v":0},{"$f":"Dataset[[#This Row],[2024/25 Reduction]]+Dataset[[#This Row],[2024/25 From - Total]]","v":0},{"$f":"Dataset[[#This Row],[2025/26 Reduction]]+Dataset[[#This Row],[2025/26 From - Total]]","v":0},{"$f":"Dataset[[#This Row],[2026/27 Reduction]]+Dataset[[#This Row],[2026/27 From - Total]]","v":0},{"$f":"Dataset[[#This Row],[2023/24 Reduction]]","v":0},{"$f":"SUM(Dataset[[#This Row],[2024/25 Reduction]],Dataset[[#This Row],[2024/25 From - Total]],Dataset[[#This Row],[2024/25 To - Total]])","v":0},{"$f":"SUM(Dataset[[#This Row],[2025/26 Reduction]],Dataset[[#This Row],[2025/26 From - Total]],Dataset[[#This Row],[2025/26 To - Total]])","v":0},{"$f":"SUM(Dataset[[#This Row],[2026/27 Reduction]],Dataset[[#This Row],[2026/27 From - Total]],Dataset[[#This Row],[2026/27 To - Total]])","v":0},{"$f":"Dataset[[#This Row],[2023/24 Baseline]]+Dataset[[#This Row],[2023/24 Total change]]","v":0},{"$f":"Dataset[[#This Row],[2024/25 Baseline]]+Dataset[[#This Row],[2024/25 Total change]]","v":0},{"$f":"Dataset[[#This Row],[2025/26 Baseline]]+Dataset[[#This Row],[2025/26 Total change]]","v":0},{"$f":"Dataset[[#This Row],[2026/27 Baseline]]+Dataset[[#This Row],[2026/27 Total change]]","v":0}]
["NAT|Non-transfer item","26|Higher education institutions","2024_25","MTEF2024",26,3,2,44718,831,"26","03","02","044718","000831","26|03|02","02","02","06","47","49","02|02|06|47|49","National","Military Veterans","Empowerment and Stakeholder Management","Empowerment and Skills Development","Non-transfer item","Capital","Transfers and subsidies","Higher education institutions","Higher education institutions","Higher education institutions","Peace and security","Defence and state security","NAT",0,0,0,0,0,0,0,0,0,0,0,null,null,null,null,null,null,null,null,null,null,null,null,null,null,null,null,null,null,null,null,null,null,null,null,null,null,null,null,null,null,null,null,null,null,{"$f":"Dataset[[#This Row],[2024/25 From - Spending review Topic 1]]+Dataset[[#This Row],[2024/25 From - Spending review Topic 2]]+Dataset[[#This Row],[2024/25 From - Spending review Topic 3]]+Dataset[[#This Row],[2024/25 From - Spending review Topic 4]]+Dataset[[#This Row],[2024/25 From - Other reallocations]]","v":0},{"$f":"Dataset[[#This Row],[2025/26 From - Spending review Topic 1]]+Dataset[[#This Row],[2025/26 From - Spending review Topic 2]]+Dataset[[#This Row],[2025/26 From - Spending review Topic 3]]+Dataset[[#This Row],[2025/26 From - Spending review Topic 4]]+Dataset[[#This Row],[2025/26 From - Other reallocations]]","v":0},{"$f":"Dataset[[#This Row],[2026/27 From - Spending review Topic 1]]+Dataset[[#This Row],[2026/27 From - Spending review Topic 2]]+Dataset[[#This Row],[2026/27 From - Spending review Topic 3]]+Dataset[[#This Row],[2026/27 From - Spending review Topic 4]]+Dataset[[#This Row],[2026/27 From - Other reallocations]]","v":0},{"$f":"Dataset[[#This Row],[2024/25 To - Spending review Topic 1]]+Dataset[[#This Row],[2024/25 To - Spending review Topic 2]]+Dataset[[#This Row],[2024/25 To - Spending review Topic 3]]+Dataset[[#This Row],[2024/25 To - Spending review Topic 4]]+Dataset[[#This Row],[2024/25 To - Other reallocations]]","v":0},{"$f":"Dataset[[#This Row],[2025/26 To - Spending review Topic 1]]+Dataset[[#This Row],[2025/26 To - Spending review Topic 2]]+Dataset[[#This Row],[2025/26 To - Spending review Topic 3]]+Dataset[[#This Row],[2025/26 To - Spending review Topic 4]]+Dataset[[#This Row],[2025/26 To - Other reallocations]]","v":0},{"$f":"Dataset[[#This Row],[2026/27 To - Spending review Topic 1]]+Dataset[[#This Row],[2026/27 To - Spending review Topic 2]]+Dataset[[#This Row],[2026/27 To - Spending review Topic 3]]+Dataset[[#This Row],[2026/27 To - Spending review Topic 4]]+Dataset[[#This Row],[2026/27 To - Other reallocations]]","v":0},{"$f":"Dataset[[#This Row],[2024/25 Reduction]]+Dataset[[#This Row],[2024/25 From - Total]]","v":0},{"$f":"Dataset[[#This Row],[2025/26 Reduction]]+Dataset[[#This Row],[2025/26 From - Total]]","v":0},{"$f":"Dataset[[#This Row],[2026/27 Reduction]]+Dataset[[#This Row],[2026/27 From - Total]]","v":0},{"$f":"Dataset[[#This Row],[2023/24 Reduction]]","v":0},{"$f":"SUM(Dataset[[#This Row],[2024/25 Reduction]],Dataset[[#This Row],[2024/25 From - Total]],Dataset[[#This Row],[2024/25 To - Total]])","v":0},{"$f":"SUM(Dataset[[#This Row],[2025/26 Reduction]],Dataset[[#This Row],[2025/26 From - Total]],Dataset[[#This Row],[2025/26 To - Total]])","v":0},{"$f":"SUM(Dataset[[#This Row],[2026/27 Reduction]],Dataset[[#This Row],[2026/27 From - Total]],Dataset[[#This Row],[2026/27 To - Total]])","v":0},{"$f":"Dataset[[#This Row],[2023/24 Baseline]]+Dataset[[#This Row],[2023/24 Total change]]","v":0},{"$f":"Dataset[[#This Row],[2024/25 Baseline]]+Dataset[[#This Row],[2024/25 Total change]]","v":0},{"$f":"Dataset[[#This Row],[2025/26 Baseline]]+Dataset[[#This Row],[2025/26 Total change]]","v":0},{"$f":"Dataset[[#This Row],[2026/27 Baseline]]+Dataset[[#This Row],[2026/27 Total change]]","v":0}]
["NAT|Non-transfer item","26|Foreign governments and international organisations","2024_25","MTEF2024",26,3,2,44719,832,"26","03","02","044719","000832","26|03|02","02","02","07","48","50","02|02|07|48|50","National","Military Veterans","Empowerment and Stakeholder Management","Empowerment and Skills Development","Non-transfer item","Capital","Transfers and subsidies","Foreign governments and international organisations","Foreign governments and international organisations","Foreign governments and international organisations","Peace and security","Defence and state security","NAT",0,0,0,0,0,0,0,0,0,0,0,null,null,null,null,null,null,null,null,null,null,null,null,null,null,null,null,null,null,null,null,null,null,null,null,null,null,null,null,null,null,null,null,null,null,{"$f":"Dataset[[#This Row],[2024/25 From - Spending review Topic 1]]+Dataset[[#This Row],[2024/25 From - Spending review Topic 2]]+Dataset[[#This Row],[2024/25 From - Spending review Topic 3]]+Dataset[[#This Row],[2024/25 From - Spending review Topic 4]]+Dataset[[#This Row],[2024/25 From - Other reallocations]]","v":0},{"$f":"Dataset[[#This Row],[2025/26 From - Spending review Topic 1]]+Dataset[[#This Row],[2025/26 From - Spending review Topic 2]]+Dataset[[#This Row],[2025/26 From - Spending review Topic 3]]+Dataset[[#This Row],[2025/26 From - Spending review Topic 4]]+Dataset[[#This Row],[2025/26 From - Other reallocations]]","v":0},{"$f":"Dataset[[#This Row],[2026/27 From - Spending review Topic 1]]+Dataset[[#This Row],[2026/27 From - Spending review Topic 2]]+Dataset[[#This Row],[2026/27 From - Spending review Topic 3]]+Dataset[[#This Row],[2026/27 From - Spending review Topic 4]]+Dataset[[#This Row],[2026/27 From - Other reallocations]]","v":0},{"$f":"Dataset[[#This Row],[2024/25 To - Spending review Topic 1]]+Dataset[[#This Row],[2024/25 To - Spending review Topic 2]]+Dataset[[#This Row],[2024/25 To - Spending review Topic 3]]+Dataset[[#This Row],[2024/25 To - Spending review Topic 4]]+Dataset[[#This Row],[2024/25 To - Other reallocations]]","v":0},{"$f":"Dataset[[#This Row],[2025/26 To - Spending review Topic 1]]+Dataset[[#This Row],[2025/26 To - Spending review Topic 2]]+Dataset[[#This Row],[2025/26 To - Spending review Topic 3]]+Dataset[[#This Row],[2025/26 To - Spending review Topic 4]]+Dataset[[#This Row],[2025/26 To - Other reallocations]]","v":0},{"$f":"Dataset[[#This Row],[2026/27 To - Spending review Topic 1]]+Dataset[[#This Row],[2026/27 To - Spending review Topic 2]]+Dataset[[#This Row],[2026/27 To - Spending review Topic 3]]+Dataset[[#This Row],[2026/27 To - Spending review Topic 4]]+Dataset[[#This Row],[2026/27 To - Other reallocations]]","v":0},{"$f":"Dataset[[#This Row],[2024/25 Reduction]]+Dataset[[#This Row],[2024/25 From - Total]]","v":0},{"$f":"Dataset[[#This Row],[2025/26 Reduction]]+Dataset[[#This Row],[2025/26 From - Total]]","v":0},{"$f":"Dataset[[#This Row],[2026/27 Reduction]]+Dataset[[#This Row],[2026/27 From - Total]]","v":0},{"$f":"Dataset[[#This Row],[2023/24 Reduction]]","v":0},{"$f":"SUM(Dataset[[#This Row],[2024/25 Reduction]],Dataset[[#This Row],[2024/25 From - Total]],Dataset[[#This Row],[2024/25 To - Total]])","v":0},{"$f":"SUM(Dataset[[#This Row],[2025/26 Reduction]],Dataset[[#This Row],[2025/26 From - Total]],Dataset[[#This Row],[2025/26 To - Total]])","v":0},{"$f":"SUM(Dataset[[#This Row],[2026/27 Reduction]],Dataset[[#This Row],[2026/27 From - Total]],Dataset[[#This Row],[2026/27 To - Total]])","v":0},{"$f":"Dataset[[#This Row],[2023/24 Baseline]]+Dataset[[#This Row],[2023/24 Total change]]","v":0},{"$f":"Dataset[[#This Row],[2024/25 Baseline]]+Dataset[[#This Row],[2024/25 Total change]]","v":0},{"$f":"Dataset[[#This Row],[2025/26 Baseline]]+Dataset[[#This Row],[2025/26 Total change]]","v":0},{"$f":"Dataset[[#This Row],[2026/27 Baseline]]+Dataset[[#This Row],[2026/27 Total change]]","v":0}]
["NAT|Non-transfer item","26|Subsidies on products and production (pc)","2024_25","MTEF2024",26,3,2,44720,833,"26","03","02","044720","000833","26|03|02","02","02","08","49","51","02|02|08|49|51","National","Military Veterans","Empowerment and Stakeholder Management","Empowerment and Skills Development","Non-transfer item","Capital","Transfers and subsidies","Public corporations and private enterprises","Public corporations","Subsidies on products and production (pc)","Peace and security","Defence and state security","NAT",0,0,0,0,0,0,0,0,0,0,0,null,null,null,null,null,null,null,null,null,null,null,null,null,null,null,null,null,null,null,null,null,null,null,null,null,null,null,null,null,null,null,null,null,null,{"$f":"Dataset[[#This Row],[2024/25 From - Spending review Topic 1]]+Dataset[[#This Row],[2024/25 From - Spending review Topic 2]]+Dataset[[#This Row],[2024/25 From - Spending review Topic 3]]+Dataset[[#This Row],[2024/25 From - Spending review Topic 4]]+Dataset[[#This Row],[2024/25 From - Other reallocations]]","v":0},{"$f":"Dataset[[#This Row],[2025/26 From - Spending review Topic 1]]+Dataset[[#This Row],[2025/26 From - Spending review Topic 2]]+Dataset[[#This Row],[2025/26 From - Spending review Topic 3]]+Dataset[[#This Row],[2025/26 From - Spending review Topic 4]]+Dataset[[#This Row],[2025/26 From - Other reallocations]]","v":0},{"$f":"Dataset[[#This Row],[2026/27 From - Spending review Topic 1]]+Dataset[[#This Row],[2026/27 From - Spending review Topic 2]]+Dataset[[#This Row],[2026/27 From - Spending review Topic 3]]+Dataset[[#This Row],[2026/27 From - Spending review Topic 4]]+Dataset[[#This Row],[2026/27 From - Other reallocations]]","v":0},{"$f":"Dataset[[#This Row],[2024/25 To - Spending review Topic 1]]+Dataset[[#This Row],[2024/25 To - Spending review Topic 2]]+Dataset[[#This Row],[2024/25 To - Spending review Topic 3]]+Dataset[[#This Row],[2024/25 To - Spending review Topic 4]]+Dataset[[#This Row],[2024/25 To - Other reallocations]]","v":0},{"$f":"Dataset[[#This Row],[2025/26 To - Spending review Topic 1]]+Dataset[[#This Row],[2025/26 To - Spending review Topic 2]]+Dataset[[#This Row],[2025/26 To - Spending review Topic 3]]+Dataset[[#This Row],[2025/26 To - Spending review Topic 4]]+Dataset[[#This Row],[2025/26 To - Other reallocations]]","v":0},{"$f":"Dataset[[#This Row],[2026/27 To - Spending review Topic 1]]+Dataset[[#This Row],[2026/27 To - Spending review Topic 2]]+Dataset[[#This Row],[2026/27 To - Spending review Topic 3]]+Dataset[[#This Row],[2026/27 To - Spending review Topic 4]]+Dataset[[#This Row],[2026/27 To - Other reallocations]]","v":0},{"$f":"Dataset[[#This Row],[2024/25 Reduction]]+Dataset[[#This Row],[2024/25 From - Total]]","v":0},{"$f":"Dataset[[#This Row],[2025/26 Reduction]]+Dataset[[#This Row],[2025/26 From - Total]]","v":0},{"$f":"Dataset[[#This Row],[2026/27 Reduction]]+Dataset[[#This Row],[2026/27 From - Total]]","v":0},{"$f":"Dataset[[#This Row],[2023/24 Reduction]]","v":0},{"$f":"SUM(Dataset[[#This Row],[2024/25 Reduction]],Dataset[[#This Row],[2024/25 From - Total]],Dataset[[#This Row],[2024/25 To - Total]])","v":0},{"$f":"SUM(Dataset[[#This Row],[2025/26 Reduction]],Dataset[[#This Row],[2025/26 From - Total]],Dataset[[#This Row],[2025/26 To - Total]])","v":0},{"$f":"SUM(Dataset[[#This Row],[2026/27 Reduction]],Dataset[[#This Row],[2026/27 From - Total]],Dataset[[#This Row],[2026/27 To - Total]])","v":0},{"$f":"Dataset[[#This Row],[2023/24 Baseline]]+Dataset[[#This Row],[2023/24 Total change]]","v":0},{"$f":"Dataset[[#This Row],[2024/25 Baseline]]+Dataset[[#This Row],[2024/25 Total change]]","v":0},{"$f":"Dataset[[#This Row],[2025/26 Baseline]]+Dataset[[#This Row],[2025/26 Total change]]","v":0},{"$f":"Dataset[[#This Row],[2026/27 Baseline]]+Dataset[[#This Row],[2026/27 Total change]]","v":0}]
["NAT|Non-transfer item","26|Other transfers to public corporations","2024_25","MTEF2024",26,3,2,44721,834,"26","03","02","044721","000834","26|03|02","02","02","08","49","52","02|02|08|49|52","National","Military Veterans","Empowerment and Stakeholder Management","Empowerment and Skills Development","Non-transfer item","Capital","Transfers and subsidies","Public corporations and private enterprises","Public corporations","Other transfers to public corporations","Peace and security","Defence and state security","NAT",0,0,0,0,0,0,0,0,0,0,0,null,null,null,null,null,null,null,null,null,null,null,null,null,null,null,null,null,null,null,null,null,null,null,null,null,null,null,null,null,null,null,null,null,null,{"$f":"Dataset[[#This Row],[2024/25 From - Spending review Topic 1]]+Dataset[[#This Row],[2024/25 From - Spending review Topic 2]]+Dataset[[#This Row],[2024/25 From - Spending review Topic 3]]+Dataset[[#This Row],[2024/25 From - Spending review Topic 4]]+Dataset[[#This Row],[2024/25 From - Other reallocations]]","v":0},{"$f":"Dataset[[#This Row],[2025/26 From - Spending review Topic 1]]+Dataset[[#This Row],[2025/26 From - Spending review Topic 2]]+Dataset[[#This Row],[2025/26 From - Spending review Topic 3]]+Dataset[[#This Row],[2025/26 From - Spending review Topic 4]]+Dataset[[#This Row],[2025/26 From - Other reallocations]]","v":0},{"$f":"Dataset[[#This Row],[2026/27 From - Spending review Topic 1]]+Dataset[[#This Row],[2026/27 From - Spending review Topic 2]]+Dataset[[#This Row],[2026/27 From - Spending review Topic 3]]+Dataset[[#This Row],[2026/27 From - Spending review Topic 4]]+Dataset[[#This Row],[2026/27 From - Other reallocations]]","v":0},{"$f":"Dataset[[#This Row],[2024/25 To - Spending review Topic 1]]+Dataset[[#This Row],[2024/25 To - Spending review Topic 2]]+Dataset[[#This Row],[2024/25 To - Spending review Topic 3]]+Dataset[[#This Row],[2024/25 To - Spending review Topic 4]]+Dataset[[#This Row],[2024/25 To - Other reallocations]]","v":0},{"$f":"Dataset[[#This Row],[2025/26 To - Spending review Topic 1]]+Dataset[[#This Row],[2025/26 To - Spending review Topic 2]]+Dataset[[#This Row],[2025/26 To - Spending review Topic 3]]+Dataset[[#This Row],[2025/26 To - Spending review Topic 4]]+Dataset[[#This Row],[2025/26 To - Other reallocations]]","v":0},{"$f":"Dataset[[#This Row],[2026/27 To - Spending review Topic 1]]+Dataset[[#This Row],[2026/27 To - Spending review Topic 2]]+Dataset[[#This Row],[2026/27 To - Spending review Topic 3]]+Dataset[[#This Row],[2026/27 To - Spending review Topic 4]]+Dataset[[#This Row],[2026/27 To - Other reallocations]]","v":0},{"$f":"Dataset[[#This Row],[2024/25 Reduction]]+Dataset[[#This Row],[2024/25 From - Total]]","v":0},{"$f":"Dataset[[#This Row],[2025/26 Reduction]]+Dataset[[#This Row],[2025/26 From - Total]]","v":0},{"$f":"Dataset[[#This Row],[2026/27 Reduction]]+Dataset[[#This Row],[2026/27 From - Total]]","v":0},{"$f":"Dataset[[#This Row],[2023/24 Reduction]]","v":0},{"$f":"SUM(Dataset[[#This Row],[2024/25 Reduction]],Dataset[[#This Row],[2024/25 From - Total]],Dataset[[#This Row],[2024/25 To - Total]])","v":0},{"$f":"SUM(Dataset[[#This Row],[2025/26 Reduction]],Dataset[[#This Row],[2025/26 From - Total]],Dataset[[#This Row],[2025/26 To - Total]])","v":0},{"$f":"SUM(Dataset[[#This Row],[2026/27 Reduction]],Dataset[[#This Row],[2026/27 From - Total]],Dataset[[#This Row],[2026/27 To - Total]])","v":0},{"$f":"Dataset[[#This Row],[2023/24 Baseline]]+Dataset[[#This Row],[2023/24 Total change]]","v":0},{"$f":"Dataset[[#This Row],[2024/25 Baseline]]+Dataset[[#This Row],[2024/25 Total change]]","v":0},{"$f":"Dataset[[#This Row],[2025/26 Baseline]]+Dataset[[#This Row],[2025/26 Total change]]","v":0},{"$f":"Dataset[[#This Row],[2026/27 Baseline]]+Dataset[[#This Row],[2026/27 Total change]]","v":0}]
["NAT|Non-transfer item","26|Other transfers to private enterprises","2024_25","MTEF2024",26,3,2,44722,835,"26","03","02","044722","000835","26|03|02","02","02","08","50","54","02|02|08|50|54","National","Military Veterans","Empowerment and Stakeholder Management","Empowerment and Skills Development","Non-transfer item","Capital","Transfers and subsidies","Public corporations and private enterprises","Private enterprises","Other transfers to private enterprises","Peace and security","Defence and state security","NAT",0,0,0,0,0,0,0,0,0,0,0,null,null,null,null,null,null,null,null,null,null,null,null,null,null,null,null,null,null,null,null,null,null,null,null,null,null,null,null,null,null,null,null,null,null,{"$f":"Dataset[[#This Row],[2024/25 From - Spending review Topic 1]]+Dataset[[#This Row],[2024/25 From - Spending review Topic 2]]+Dataset[[#This Row],[2024/25 From - Spending review Topic 3]]+Dataset[[#This Row],[2024/25 From - Spending review Topic 4]]+Dataset[[#This Row],[2024/25 From - Other reallocations]]","v":0},{"$f":"Dataset[[#This Row],[2025/26 From - Spending review Topic 1]]+Dataset[[#This Row],[2025/26 From - Spending review Topic 2]]+Dataset[[#This Row],[2025/26 From - Spending review Topic 3]]+Dataset[[#This Row],[2025/26 From - Spending review Topic 4]]+Dataset[[#This Row],[2025/26 From - Other reallocations]]","v":0},{"$f":"Dataset[[#This Row],[2026/27 From - Spending review Topic 1]]+Dataset[[#This Row],[2026/27 From - Spending review Topic 2]]+Dataset[[#This Row],[2026/27 From - Spending review Topic 3]]+Dataset[[#This Row],[2026/27 From - Spending review Topic 4]]+Dataset[[#This Row],[2026/27 From - Other reallocations]]","v":0},{"$f":"Dataset[[#This Row],[2024/25 To - Spending review Topic 1]]+Dataset[[#This Row],[2024/25 To - Spending review Topic 2]]+Dataset[[#This Row],[2024/25 To - Spending review Topic 3]]+Dataset[[#This Row],[2024/25 To - Spending review Topic 4]]+Dataset[[#This Row],[2024/25 To - Other reallocations]]","v":0},{"$f":"Dataset[[#This Row],[2025/26 To - Spending review Topic 1]]+Dataset[[#This Row],[2025/26 To - Spending review Topic 2]]+Dataset[[#This Row],[2025/26 To - Spending review Topic 3]]+Dataset[[#This Row],[2025/26 To - Spending review Topic 4]]+Dataset[[#This Row],[2025/26 To - Other reallocations]]","v":0},{"$f":"Dataset[[#This Row],[2026/27 To - Spending review Topic 1]]+Dataset[[#This Row],[2026/27 To - Spending review Topic 2]]+Dataset[[#This Row],[2026/27 To - Spending review Topic 3]]+Dataset[[#This Row],[2026/27 To - Spending review Topic 4]]+Dataset[[#This Row],[2026/27 To - Other reallocations]]","v":0},{"$f":"Dataset[[#This Row],[2024/25 Reduction]]+Dataset[[#This Row],[2024/25 From - Total]]","v":0},{"$f":"Dataset[[#This Row],[2025/26 Reduction]]+Dataset[[#This Row],[2025/26 From - Total]]","v":0},{"$f":"Dataset[[#This Row],[2026/27 Reduction]]+Dataset[[#This Row],[2026/27 From - Total]]","v":0},{"$f":"Dataset[[#This Row],[2023/24 Reduction]]","v":0},{"$f":"SUM(Dataset[[#This Row],[2024/25 Reduction]],Dataset[[#This Row],[2024/25 From - Total]],Dataset[[#This Row],[2024/25 To - Total]])","v":0},{"$f":"SUM(Dataset[[#This Row],[2025/26 Reduction]],Dataset[[#This Row],[2025/26 From - Total]],Dataset[[#This Row],[2025/26 To - Total]])","v":0},{"$f":"SUM(Dataset[[#This Row],[2026/27 Reduction]],Dataset[[#This Row],[2026/27 From - Total]],Dataset[[#This Row],[2026/27 To - Total]])","v":0},{"$f":"Dataset[[#This Row],[2023/24 Baseline]]+Dataset[[#This Row],[2023/24 Total change]]","v":0},{"$f":"Dataset[[#This Row],[2024/25 Baseline]]+Dataset[[#This Row],[2024/25 Total change]]","v":0},{"$f":"Dataset[[#This Row],[2025/26 Baseline]]+Dataset[[#This Row],[2025/26 Total change]]","v":0},{"$f":"Dataset[[#This Row],[2026/27 Baseline]]+Dataset[[#This Row],[2026/27 Total change]]","v":0}]
["NAT|Non-transfer item","26|Non-profit institutions","2024_25","MTEF2024",26,3,2,44723,836,"26","03","02","044723","000836","26|03|02","02","02","09","51","55","02|02|09|51|55","National","Military Veterans","Empowerment and Stakeholder Management","Empowerment and Skills Development","Non-transfer item","Capital","Transfers and subsidies","Non-profit institutions","Non-profit institutions","Non-profit institutions","Peace and security","Defence and state security","NAT",0,0,0,0,0,0,0,0,0,0,0,null,null,null,null,null,null,null,null,null,null,null,null,null,null,null,null,null,null,null,null,null,null,null,null,null,null,null,null,null,null,null,null,null,null,{"$f":"Dataset[[#This Row],[2024/25 From - Spending review Topic 1]]+Dataset[[#This Row],[2024/25 From - Spending review Topic 2]]+Dataset[[#This Row],[2024/25 From - Spending review Topic 3]]+Dataset[[#This Row],[2024/25 From - Spending review Topic 4]]+Dataset[[#This Row],[2024/25 From - Other reallocations]]","v":0},{"$f":"Dataset[[#This Row],[2025/26 From - Spending review Topic 1]]+Dataset[[#This Row],[2025/26 From - Spending review Topic 2]]+Dataset[[#This Row],[2025/26 From - Spending review Topic 3]]+Dataset[[#This Row],[2025/26 From - Spending review Topic 4]]+Dataset[[#This Row],[2025/26 From - Other reallocations]]","v":0},{"$f":"Dataset[[#This Row],[2026/27 From - Spending review Topic 1]]+Dataset[[#This Row],[2026/27 From - Spending review Topic 2]]+Dataset[[#This Row],[2026/27 From - Spending review Topic 3]]+Dataset[[#This Row],[2026/27 From - Spending review Topic 4]]+Dataset[[#This Row],[2026/27 From - Other reallocations]]","v":0},{"$f":"Dataset[[#This Row],[2024/25 To - Spending review Topic 1]]+Dataset[[#This Row],[2024/25 To - Spending review Topic 2]]+Dataset[[#This Row],[2024/25 To - Spending review Topic 3]]+Dataset[[#This Row],[2024/25 To - Spending review Topic 4]]+Dataset[[#This Row],[2024/25 To - Other reallocations]]","v":0},{"$f":"Dataset[[#This Row],[2025/26 To - Spending review Topic 1]]+Dataset[[#This Row],[2025/26 To - Spending review Topic 2]]+Dataset[[#This Row],[2025/26 To - Spending review Topic 3]]+Dataset[[#This Row],[2025/26 To - Spending review Topic 4]]+Dataset[[#This Row],[2025/26 To - Other reallocations]]","v":0},{"$f":"Dataset[[#This Row],[2026/27 To - Spending review Topic 1]]+Dataset[[#This Row],[2026/27 To - Spending review Topic 2]]+Dataset[[#This Row],[2026/27 To - Spending review Topic 3]]+Dataset[[#This Row],[2026/27 To - Spending review Topic 4]]+Dataset[[#This Row],[2026/27 To - Other reallocations]]","v":0},{"$f":"Dataset[[#This Row],[2024/25 Reduction]]+Dataset[[#This Row],[2024/25 From - Total]]","v":0},{"$f":"Dataset[[#This Row],[2025/26 Reduction]]+Dataset[[#This Row],[2025/26 From - Total]]","v":0},{"$f":"Dataset[[#This Row],[2026/27 Reduction]]+Dataset[[#This Row],[2026/27 From - Total]]","v":0},{"$f":"Dataset[[#This Row],[2023/24 Reduction]]","v":0},{"$f":"SUM(Dataset[[#This Row],[2024/25 Reduction]],Dataset[[#This Row],[2024/25 From - Total]],Dataset[[#This Row],[2024/25 To - Total]])","v":0},{"$f":"SUM(Dataset[[#This Row],[2025/26 Reduction]],Dataset[[#This Row],[2025/26 From - Total]],Dataset[[#This Row],[2025/26 To - Total]])","v":0},{"$f":"SUM(Dataset[[#This Row],[2026/27 Reduction]],Dataset[[#This Row],[2026/27 From - Total]],Dataset[[#This Row],[2026/27 To - Total]])","v":0},{"$f":"Dataset[[#This Row],[2023/24 Baseline]]+Dataset[[#This Row],[2023/24 Total change]]","v":0},{"$f":"Dataset[[#This Row],[2024/25 Baseline]]+Dataset[[#This Row],[2024/25 Total change]]","v":0},{"$f":"Dataset[[#This Row],[2025/26 Baseline]]+Dataset[[#This Row],[2025/26 Total change]]","v":0},{"$f":"Dataset[[#This Row],[2026/27 Baseline]]+Dataset[[#This Row],[2026/27 Total change]]","v":0}]
["NAT|Non-transfer item","26|Other transfers to households","2024_25","MTEF2024",26,3,2,44724,837,"26","03","02","044724","000837","26|03|02","02","02","10","53","57","02|02|10|53|57","National","Military Veterans","Empowerment and Stakeholder Management","Empowerment and Skills Development","Non-transfer item","Capital","Transfers and subsidies","Households","Other transfers to households","Other transfers to households","Peace and security","Defence and state security","NAT",0,0,0,0,0,0,0,0,0,0,0,null,null,null,null,null,null,null,null,null,null,null,null,null,null,null,null,null,null,null,null,null,null,null,null,null,null,null,null,null,null,null,null,null,null,{"$f":"Dataset[[#This Row],[2024/25 From - Spending review Topic 1]]+Dataset[[#This Row],[2024/25 From - Spending review Topic 2]]+Dataset[[#This Row],[2024/25 From - Spending review Topic 3]]+Dataset[[#This Row],[2024/25 From - Spending review Topic 4]]+Dataset[[#This Row],[2024/25 From - Other reallocations]]","v":0},{"$f":"Dataset[[#This Row],[2025/26 From - Spending review Topic 1]]+Dataset[[#This Row],[2025/26 From - Spending review Topic 2]]+Dataset[[#This Row],[2025/26 From - Spending review Topic 3]]+Dataset[[#This Row],[2025/26 From - Spending review Topic 4]]+Dataset[[#This Row],[2025/26 From - Other reallocations]]","v":0},{"$f":"Dataset[[#This Row],[2026/27 From - Spending review Topic 1]]+Dataset[[#This Row],[2026/27 From - Spending review Topic 2]]+Dataset[[#This Row],[2026/27 From - Spending review Topic 3]]+Dataset[[#This Row],[2026/27 From - Spending review Topic 4]]+Dataset[[#This Row],[2026/27 From - Other reallocations]]","v":0},{"$f":"Dataset[[#This Row],[2024/25 To - Spending review Topic 1]]+Dataset[[#This Row],[2024/25 To - Spending review Topic 2]]+Dataset[[#This Row],[2024/25 To - Spending review Topic 3]]+Dataset[[#This Row],[2024/25 To - Spending review Topic 4]]+Dataset[[#This Row],[2024/25 To - Other reallocations]]","v":0},{"$f":"Dataset[[#This Row],[2025/26 To - Spending review Topic 1]]+Dataset[[#This Row],[2025/26 To - Spending review Topic 2]]+Dataset[[#This Row],[2025/26 To - Spending review Topic 3]]+Dataset[[#This Row],[2025/26 To - Spending review Topic 4]]+Dataset[[#This Row],[2025/26 To - Other reallocations]]","v":0},{"$f":"Dataset[[#This Row],[2026/27 To - Spending review Topic 1]]+Dataset[[#This Row],[2026/27 To - Spending review Topic 2]]+Dataset[[#This Row],[2026/27 To - Spending review Topic 3]]+Dataset[[#This Row],[2026/27 To - Spending review Topic 4]]+Dataset[[#This Row],[2026/27 To - Other reallocations]]","v":0},{"$f":"Dataset[[#This Row],[2024/25 Reduction]]+Dataset[[#This Row],[2024/25 From - Total]]","v":0},{"$f":"Dataset[[#This Row],[2025/26 Reduction]]+Dataset[[#This Row],[2025/26 From - Total]]","v":0},{"$f":"Dataset[[#This Row],[2026/27 Reduction]]+Dataset[[#This Row],[2026/27 From - Total]]","v":0},{"$f":"Dataset[[#This Row],[2023/24 Reduction]]","v":0},{"$f":"SUM(Dataset[[#This Row],[2024/25 Reduction]],Dataset[[#This Row],[2024/25 From - Total]],Dataset[[#This Row],[2024/25 To - Total]])","v":0},{"$f":"SUM(Dataset[[#This Row],[2025/26 Reduction]],Dataset[[#This Row],[2025/26 From - Total]],Dataset[[#This Row],[2025/26 To - Total]])","v":0},{"$f":"SUM(Dataset[[#This Row],[2026/27 Reduction]],Dataset[[#This Row],[2026/27 From - Total]],Dataset[[#This Row],[2026/27 To - Total]])","v":0},{"$f":"Dataset[[#This Row],[2023/24 Baseline]]+Dataset[[#This Row],[2023/24 Total change]]","v":0},{"$f":"Dataset[[#This Row],[2024/25 Baseline]]+Dataset[[#This Row],[2024/25 Total change]]","v":0},{"$f":"Dataset[[#This Row],[2025/26 Baseline]]+Dataset[[#This Row],[2025/26 Total change]]","v":0},{"$f":"Dataset[[#This Row],[2026/27 Baseline]]+Dataset[[#This Row],[2026/27 Total change]]","v":0}]
["NAT|Non-transfer item","26|Buildings","2024_25","MTEF2024",26,3,2,44725,838,"26","03","02","044725","000838","26|03|02","02","03","11","54","58","02|03|11|54|58","National","Military Veterans","Empowerment and Stakeholder Management","Empowerment and Skills Development","Non-transfer item","Capital","Payments for capital assets","Buildings and other fixed structures","Buildings","Buildings","Peace and security","Defence and state security","NAT",0,0,0,0,0,0,0,0,0,0,0,null,null,null,null,null,null,null,null,null,null,null,null,null,null,null,null,null,null,null,null,null,null,null,null,null,null,null,null,null,null,null,null,null,null,{"$f":"Dataset[[#This Row],[2024/25 From - Spending review Topic 1]]+Dataset[[#This Row],[2024/25 From - Spending review Topic 2]]+Dataset[[#This Row],[2024/25 From - Spending review Topic 3]]+Dataset[[#This Row],[2024/25 From - Spending review Topic 4]]+Dataset[[#This Row],[2024/25 From - Other reallocations]]","v":0},{"$f":"Dataset[[#This Row],[2025/26 From - Spending review Topic 1]]+Dataset[[#This Row],[2025/26 From - Spending review Topic 2]]+Dataset[[#This Row],[2025/26 From - Spending review Topic 3]]+Dataset[[#This Row],[2025/26 From - Spending review Topic 4]]+Dataset[[#This Row],[2025/26 From - Other reallocations]]","v":0},{"$f":"Dataset[[#This Row],[2026/27 From - Spending review Topic 1]]+Dataset[[#This Row],[2026/27 From - Spending review Topic 2]]+Dataset[[#This Row],[2026/27 From - Spending review Topic 3]]+Dataset[[#This Row],[2026/27 From - Spending review Topic 4]]+Dataset[[#This Row],[2026/27 From - Other reallocations]]","v":0},{"$f":"Dataset[[#This Row],[2024/25 To - Spending review Topic 1]]+Dataset[[#This Row],[2024/25 To - Spending review Topic 2]]+Dataset[[#This Row],[2024/25 To - Spending review Topic 3]]+Dataset[[#This Row],[2024/25 To - Spending review Topic 4]]+Dataset[[#This Row],[2024/25 To - Other reallocations]]","v":0},{"$f":"Dataset[[#This Row],[2025/26 To - Spending review Topic 1]]+Dataset[[#This Row],[2025/26 To - Spending review Topic 2]]+Dataset[[#This Row],[2025/26 To - Spending review Topic 3]]+Dataset[[#This Row],[2025/26 To - Spending review Topic 4]]+Dataset[[#This Row],[2025/26 To - Other reallocations]]","v":0},{"$f":"Dataset[[#This Row],[2026/27 To - Spending review Topic 1]]+Dataset[[#This Row],[2026/27 To - Spending review Topic 2]]+Dataset[[#This Row],[2026/27 To - Spending review Topic 3]]+Dataset[[#This Row],[2026/27 To - Spending review Topic 4]]+Dataset[[#This Row],[2026/27 To - Other reallocations]]","v":0},{"$f":"Dataset[[#This Row],[2024/25 Reduction]]+Dataset[[#This Row],[2024/25 From - Total]]","v":0},{"$f":"Dataset[[#This Row],[2025/26 Reduction]]+Dataset[[#This Row],[2025/26 From - Total]]","v":0},{"$f":"Dataset[[#This Row],[2026/27 Reduction]]+Dataset[[#This Row],[2026/27 From - Total]]","v":0},{"$f":"Dataset[[#This Row],[2023/24 Reduction]]","v":0},{"$f":"SUM(Dataset[[#This Row],[2024/25 Reduction]],Dataset[[#This Row],[2024/25 From - Total]],Dataset[[#This Row],[2024/25 To - Total]])","v":0},{"$f":"SUM(Dataset[[#This Row],[2025/26 Reduction]],Dataset[[#This Row],[2025/26 From - Total]],Dataset[[#This Row],[2025/26 To - Total]])","v":0},{"$f":"SUM(Dataset[[#This Row],[2026/27 Reduction]],Dataset[[#This Row],[2026/27 From - Total]],Dataset[[#This Row],[2026/27 To - Total]])","v":0},{"$f":"Dataset[[#This Row],[2023/24 Baseline]]+Dataset[[#This Row],[2023/24 Total change]]","v":0},{"$f":"Dataset[[#This Row],[2024/25 Baseline]]+Dataset[[#This Row],[2024/25 Total change]]","v":0},{"$f":"Dataset[[#This Row],[2025/26 Baseline]]+Dataset[[#This Row],[2025/26 Total change]]","v":0},{"$f":"Dataset[[#This Row],[2026/27 Baseline]]+Dataset[[#This Row],[2026/27 Total change]]","v":0}]
["NAT|Non-transfer item","26|Other fixed structures","2024_25","MTEF2024",26,3,2,44726,839,"26","03","02","044726","000839","26|03|02","02","03","11","55","59","02|03|11|55|59","National","Military Veterans","Empowerment and Stakeholder Management","Empowerment and Skills Development","Non-transfer item","Capital","Payments for capital assets","Buildings and other fixed structures","Other fixed structures","Other fixed structures","Peace and security","Defence and state security","NAT",0,0,0,0,0,0,0,0,0,0,0,null,null,null,null,null,null,null,null,null,null,null,null,null,null,null,null,null,null,null,null,null,null,null,null,null,null,null,null,null,null,null,null,null,null,{"$f":"Dataset[[#This Row],[2024/25 From - Spending review Topic 1]]+Dataset[[#This Row],[2024/25 From - Spending review Topic 2]]+Dataset[[#This Row],[2024/25 From - Spending review Topic 3]]+Dataset[[#This Row],[2024/25 From - Spending review Topic 4]]+Dataset[[#This Row],[2024/25 From - Other reallocations]]","v":0},{"$f":"Dataset[[#This Row],[2025/26 From - Spending review Topic 1]]+Dataset[[#This Row],[2025/26 From - Spending review Topic 2]]+Dataset[[#This Row],[2025/26 From - Spending review Topic 3]]+Dataset[[#This Row],[2025/26 From - Spending review Topic 4]]+Dataset[[#This Row],[2025/26 From - Other reallocations]]","v":0},{"$f":"Dataset[[#This Row],[2026/27 From - Spending review Topic 1]]+Dataset[[#This Row],[2026/27 From - Spending review Topic 2]]+Dataset[[#This Row],[2026/27 From - Spending review Topic 3]]+Dataset[[#This Row],[2026/27 From - Spending review Topic 4]]+Dataset[[#This Row],[2026/27 From - Other reallocations]]","v":0},{"$f":"Dataset[[#This Row],[2024/25 To - Spending review Topic 1]]+Dataset[[#This Row],[2024/25 To - Spending review Topic 2]]+Dataset[[#This Row],[2024/25 To - Spending review Topic 3]]+Dataset[[#This Row],[2024/25 To - Spending review Topic 4]]+Dataset[[#This Row],[2024/25 To - Other reallocations]]","v":0},{"$f":"Dataset[[#This Row],[2025/26 To - Spending review Topic 1]]+Dataset[[#This Row],[2025/26 To - Spending review Topic 2]]+Dataset[[#This Row],[2025/26 To - Spending review Topic 3]]+Dataset[[#This Row],[2025/26 To - Spending review Topic 4]]+Dataset[[#This Row],[2025/26 To - Other reallocations]]","v":0},{"$f":"Dataset[[#This Row],[2026/27 To - Spending review Topic 1]]+Dataset[[#This Row],[2026/27 To - Spending review Topic 2]]+Dataset[[#This Row],[2026/27 To - Spending review Topic 3]]+Dataset[[#This Row],[2026/27 To - Spending review Topic 4]]+Dataset[[#This Row],[2026/27 To - Other reallocations]]","v":0},{"$f":"Dataset[[#This Row],[2024/25 Reduction]]+Dataset[[#This Row],[2024/25 From - Total]]","v":0},{"$f":"Dataset[[#This Row],[2025/26 Reduction]]+Dataset[[#This Row],[2025/26 From - Total]]","v":0},{"$f":"Dataset[[#This Row],[2026/27 Reduction]]+Dataset[[#This Row],[2026/27 From - Total]]","v":0},{"$f":"Dataset[[#This Row],[2023/24 Reduction]]","v":0},{"$f":"SUM(Dataset[[#This Row],[2024/25 Reduction]],Dataset[[#This Row],[2024/25 From - Total]],Dataset[[#This Row],[2024/25 To - Total]])","v":0},{"$f":"SUM(Dataset[[#This Row],[2025/26 Reduction]],Dataset[[#This Row],[2025/26 From - Total]],Dataset[[#This Row],[2025/26 To - Total]])","v":0},{"$f":"SUM(Dataset[[#This Row],[2026/27 Reduction]],Dataset[[#This Row],[2026/27 From - Total]],Dataset[[#This Row],[2026/27 To - Total]])","v":0},{"$f":"Dataset[[#This Row],[2023/24 Baseline]]+Dataset[[#This Row],[2023/24 Total change]]","v":0},{"$f":"Dataset[[#This Row],[2024/25 Baseline]]+Dataset[[#This Row],[2024/25 Total change]]","v":0},{"$f":"Dataset[[#This Row],[2025/26 Baseline]]+Dataset[[#This Row],[2025/26 Total change]]","v":0},{"$f":"Dataset[[#This Row],[2026/27 Baseline]]+Dataset[[#This Row],[2026/27 Total change]]","v":0}]
["NAT|Non-transfer item","26|Transport equipment","2024_25","MTEF2024",26,3,2,44727,840,"26","03","02","044727","000840","26|03|02","02","03","12","56","60","02|03|12|56|60","National","Military Veterans","Empowerment and Stakeholder Management","Empowerment and Skills Development","Non-transfer item","Capital","Payments for capital assets","Machinery and equipment","Transport equipment","Transport equipment","Peace and security","Defence and state security","NAT",0,0,0,0,0,0,0,0,0,0,0,null,null,null,null,null,null,null,null,null,null,null,null,null,null,null,null,null,null,null,null,null,null,null,null,null,null,null,null,null,null,null,null,null,null,{"$f":"Dataset[[#This Row],[2024/25 From - Spending review Topic 1]]+Dataset[[#This Row],[2024/25 From - Spending review Topic 2]]+Dataset[[#This Row],[2024/25 From - Spending review Topic 3]]+Dataset[[#This Row],[2024/25 From - Spending review Topic 4]]+Dataset[[#This Row],[2024/25 From - Other reallocations]]","v":0},{"$f":"Dataset[[#This Row],[2025/26 From - Spending review Topic 1]]+Dataset[[#This Row],[2025/26 From - Spending review Topic 2]]+Dataset[[#This Row],[2025/26 From - Spending review Topic 3]]+Dataset[[#This Row],[2025/26 From - Spending review Topic 4]]+Dataset[[#This Row],[2025/26 From - Other reallocations]]","v":0},{"$f":"Dataset[[#This Row],[2026/27 From - Spending review Topic 1]]+Dataset[[#This Row],[2026/27 From - Spending review Topic 2]]+Dataset[[#This Row],[2026/27 From - Spending review Topic 3]]+Dataset[[#This Row],[2026/27 From - Spending review Topic 4]]+Dataset[[#This Row],[2026/27 From - Other reallocations]]","v":0},{"$f":"Dataset[[#This Row],[2024/25 To - Spending review Topic 1]]+Dataset[[#This Row],[2024/25 To - Spending review Topic 2]]+Dataset[[#This Row],[2024/25 To - Spending review Topic 3]]+Dataset[[#This Row],[2024/25 To - Spending review Topic 4]]+Dataset[[#This Row],[2024/25 To - Other reallocations]]","v":0},{"$f":"Dataset[[#This Row],[2025/26 To - Spending review Topic 1]]+Dataset[[#This Row],[2025/26 To - Spending review Topic 2]]+Dataset[[#This Row],[2025/26 To - Spending review Topic 3]]+Dataset[[#This Row],[2025/26 To - Spending review Topic 4]]+Dataset[[#This Row],[2025/26 To - Other reallocations]]","v":0},{"$f":"Dataset[[#This Row],[2026/27 To - Spending review Topic 1]]+Dataset[[#This Row],[2026/27 To - Spending review Topic 2]]+Dataset[[#This Row],[2026/27 To - Spending review Topic 3]]+Dataset[[#This Row],[2026/27 To - Spending review Topic 4]]+Dataset[[#This Row],[2026/27 To - Other reallocations]]","v":0},{"$f":"Dataset[[#This Row],[2024/25 Reduction]]+Dataset[[#This Row],[2024/25 From - Total]]","v":0},{"$f":"Dataset[[#This Row],[2025/26 Reduction]]+Dataset[[#This Row],[2025/26 From - Total]]","v":0},{"$f":"Dataset[[#This Row],[2026/27 Reduction]]+Dataset[[#This Row],[2026/27 From - Total]]","v":0},{"$f":"Dataset[[#This Row],[2023/24 Reduction]]","v":0},{"$f":"SUM(Dataset[[#This Row],[2024/25 Reduction]],Dataset[[#This Row],[2024/25 From - Total]],Dataset[[#This Row],[2024/25 To - Total]])","v":0},{"$f":"SUM(Dataset[[#This Row],[2025/26 Reduction]],Dataset[[#This Row],[2025/26 From - Total]],Dataset[[#This Row],[2025/26 To - Total]])","v":0},{"$f":"SUM(Dataset[[#This Row],[2026/27 Reduction]],Dataset[[#This Row],[2026/27 From - Total]],Dataset[[#This Row],[2026/27 To - Total]])","v":0},{"$f":"Dataset[[#This Row],[2023/24 Baseline]]+Dataset[[#This Row],[2023/24 Total change]]","v":0},{"$f":"Dataset[[#This Row],[2024/25 Baseline]]+Dataset[[#This Row],[2024/25 Total change]]","v":0},{"$f":"Dataset[[#This Row],[2025/26 Baseline]]+Dataset[[#This Row],[2025/26 Total change]]","v":0},{"$f":"Dataset[[#This Row],[2026/27 Baseline]]+Dataset[[#This Row],[2026/27 Total change]]","v":0}]
["NAT|Non-transfer item","26|Other machinery and equipment","2024_25","MTEF2024",26,3,2,44728,841,"26","03","02","044728","000841","26|03|02","02","03","12","57","61","02|03|12|57|61","National","Military Veterans","Empowerment and Stakeholder Management","Empowerment and Skills Development","Non-transfer item","Capital","Payments for capital assets","Machinery and equipment","Other machinery and equipment","Other machinery and equipment","Peace and security","Defence and state security","NAT",47,24,27796,259,259,259,0,270,282,295,309,null,null,null,null,null,null,null,null,null,null,null,null,null,null,null,null,null,null,null,null,null,null,null,null,null,null,null,null,null,null,null,null,null,null,{"$f":"Dataset[[#This Row],[2024/25 From - Spending review Topic 1]]+Dataset[[#This Row],[2024/25 From - Spending review Topic 2]]+Dataset[[#This Row],[2024/25 From - Spending review Topic 3]]+Dataset[[#This Row],[2024/25 From - Spending review Topic 4]]+Dataset[[#This Row],[2024/25 From - Other reallocations]]","v":0},{"$f":"Dataset[[#This Row],[2025/26 From - Spending review Topic 1]]+Dataset[[#This Row],[2025/26 From - Spending review Topic 2]]+Dataset[[#This Row],[2025/26 From - Spending review Topic 3]]+Dataset[[#This Row],[2025/26 From - Spending review Topic 4]]+Dataset[[#This Row],[2025/26 From - Other reallocations]]","v":0},{"$f":"Dataset[[#This Row],[2026/27 From - Spending review Topic 1]]+Dataset[[#This Row],[2026/27 From - Spending review Topic 2]]+Dataset[[#This Row],[2026/27 From - Spending review Topic 3]]+Dataset[[#This Row],[2026/27 From - Spending review Topic 4]]+Dataset[[#This Row],[2026/27 From - Other reallocations]]","v":0},{"$f":"Dataset[[#This Row],[2024/25 To - Spending review Topic 1]]+Dataset[[#This Row],[2024/25 To - Spending review Topic 2]]+Dataset[[#This Row],[2024/25 To - Spending review Topic 3]]+Dataset[[#This Row],[2024/25 To - Spending review Topic 4]]+Dataset[[#This Row],[2024/25 To - Other reallocations]]","v":0},{"$f":"Dataset[[#This Row],[2025/26 To - Spending review Topic 1]]+Dataset[[#This Row],[2025/26 To - Spending review Topic 2]]+Dataset[[#This Row],[2025/26 To - Spending review Topic 3]]+Dataset[[#This Row],[2025/26 To - Spending review Topic 4]]+Dataset[[#This Row],[2025/26 To - Other reallocations]]","v":0},{"$f":"Dataset[[#This Row],[2026/27 To - Spending review Topic 1]]+Dataset[[#This Row],[2026/27 To - Spending review Topic 2]]+Dataset[[#This Row],[2026/27 To - Spending review Topic 3]]+Dataset[[#This Row],[2026/27 To - Spending review Topic 4]]+Dataset[[#This Row],[2026/27 To - Other reallocations]]","v":0},{"$f":"Dataset[[#This Row],[2024/25 Reduction]]+Dataset[[#This Row],[2024/25 From - Total]]","v":0},{"$f":"Dataset[[#This Row],[2025/26 Reduction]]+Dataset[[#This Row],[2025/26 From - Total]]","v":0},{"$f":"Dataset[[#This Row],[2026/27 Reduction]]+Dataset[[#This Row],[2026/27 From - Total]]","v":0},{"$f":"Dataset[[#This Row],[2023/24 Reduction]]","v":0},{"$f":"SUM(Dataset[[#This Row],[2024/25 Reduction]],Dataset[[#This Row],[2024/25 From - Total]],Dataset[[#This Row],[2024/25 To - Total]])","v":0},{"$f":"SUM(Dataset[[#This Row],[2025/26 Reduction]],Dataset[[#This Row],[2025/26 From - Total]],Dataset[[#This Row],[2025/26 To - Total]])","v":0},{"$f":"SUM(Dataset[[#This Row],[2026/27 Reduction]],Dataset[[#This Row],[2026/27 From - Total]],Dataset[[#This Row],[2026/27 To - Total]])","v":0},{"$f":"Dataset[[#This Row],[2023/24 Baseline]]+Dataset[[#This Row],[2023/24 Total change]]","v":270},{"$f":"Dataset[[#This Row],[2024/25 Baseline]]+Dataset[[#This Row],[2024/25 Total change]]","v":282},{"$f":"Dataset[[#This Row],[2025/26 Baseline]]+Dataset[[#This Row],[2025/26 Total change]]","v":295},{"$f":"Dataset[[#This Row],[2026/27 Baseline]]+Dataset[[#This Row],[2026/27 Total change]]","v":309}]
["NAT|Non-transfer item","26|Heritage assets","2024_25","MTEF2024",26,3,2,44729,842,"26","03","02","044729","000842","26|03|02","02","03","13","58","62","02|03|13|58|62","National","Military Veterans","Empowerment and Stakeholder Management","Empowerment and Skills Development","Non-transfer item","Capital","Payments for capital assets","Heritage assets","Heritage assets","Heritage assets","Peace and security","Defence and state security","NAT",0,0,0,0,0,0,0,0,0,0,0,null,null,null,null,null,null,null,null,null,null,null,null,null,null,null,null,null,null,null,null,null,null,null,null,null,null,null,null,null,null,null,null,null,null,{"$f":"Dataset[[#This Row],[2024/25 From - Spending review Topic 1]]+Dataset[[#This Row],[2024/25 From - Spending review Topic 2]]+Dataset[[#This Row],[2024/25 From - Spending review Topic 3]]+Dataset[[#This Row],[2024/25 From - Spending review Topic 4]]+Dataset[[#This Row],[2024/25 From - Other reallocations]]","v":0},{"$f":"Dataset[[#This Row],[2025/26 From - Spending review Topic 1]]+Dataset[[#This Row],[2025/26 From - Spending review Topic 2]]+Dataset[[#This Row],[2025/26 From - Spending review Topic 3]]+Dataset[[#This Row],[2025/26 From - Spending review Topic 4]]+Dataset[[#This Row],[2025/26 From - Other reallocations]]","v":0},{"$f":"Dataset[[#This Row],[2026/27 From - Spending review Topic 1]]+Dataset[[#This Row],[2026/27 From - Spending review Topic 2]]+Dataset[[#This Row],[2026/27 From - Spending review Topic 3]]+Dataset[[#This Row],[2026/27 From - Spending review Topic 4]]+Dataset[[#This Row],[2026/27 From - Other reallocations]]","v":0},{"$f":"Dataset[[#This Row],[2024/25 To - Spending review Topic 1]]+Dataset[[#This Row],[2024/25 To - Spending review Topic 2]]+Dataset[[#This Row],[2024/25 To - Spending review Topic 3]]+Dataset[[#This Row],[2024/25 To - Spending review Topic 4]]+Dataset[[#This Row],[2024/25 To - Other reallocations]]","v":0},{"$f":"Dataset[[#This Row],[2025/26 To - Spending review Topic 1]]+Dataset[[#This Row],[2025/26 To - Spending review Topic 2]]+Dataset[[#This Row],[2025/26 To - Spending review Topic 3]]+Dataset[[#This Row],[2025/26 To - Spending review Topic 4]]+Dataset[[#This Row],[2025/26 To - Other reallocations]]","v":0},{"$f":"Dataset[[#This Row],[2026/27 To - Spending review Topic 1]]+Dataset[[#This Row],[2026/27 To - Spending review Topic 2]]+Dataset[[#This Row],[2026/27 To - Spending review Topic 3]]+Dataset[[#This Row],[2026/27 To - Spending review Topic 4]]+Dataset[[#This Row],[2026/27 To - Other reallocations]]","v":0},{"$f":"Dataset[[#This Row],[2024/25 Reduction]]+Dataset[[#This Row],[2024/25 From - Total]]","v":0},{"$f":"Dataset[[#This Row],[2025/26 Reduction]]+Dataset[[#This Row],[2025/26 From - Total]]","v":0},{"$f":"Dataset[[#This Row],[2026/27 Reduction]]+Dataset[[#This Row],[2026/27 From - Total]]","v":0},{"$f":"Dataset[[#This Row],[2023/24 Reduction]]","v":0},{"$f":"SUM(Dataset[[#This Row],[2024/25 Reduction]],Dataset[[#This Row],[2024/25 From - Total]],Dataset[[#This Row],[2024/25 To - Total]])","v":0},{"$f":"SUM(Dataset[[#This Row],[2025/26 Reduction]],Dataset[[#This Row],[2025/26 From - Total]],Dataset[[#This Row],[2025/26 To - Total]])","v":0},{"$f":"SUM(Dataset[[#This Row],[2026/27 Reduction]],Dataset[[#This Row],[2026/27 From - Total]],Dataset[[#This Row],[2026/27 To - Total]])","v":0},{"$f":"Dataset[[#This Row],[2023/24 Baseline]]+Dataset[[#This Row],[2023/24 Total change]]","v":0},{"$f":"Dataset[[#This Row],[2024/25 Baseline]]+Dataset[[#This Row],[2024/25 Total change]]","v":0},{"$f":"Dataset[[#This Row],[2025/26 Baseline]]+Dataset[[#This Row],[2025/26 Total change]]","v":0},{"$f":"Dataset[[#This Row],[2026/27 Baseline]]+Dataset[[#This Row],[2026/27 Total change]]","v":0}]
["NAT|Non-transfer item","26|Specialised military assets","2024_25","MTEF2024",26,3,2,44730,843,"26","03","02","044730","000843","26|03|02","02","03","14","59","63","02|03|14|59|63","National","Military Veterans","Empowerment and Stakeholder Management","Empowerment and Skills Development","Non-transfer item","Capital","Payments for capital assets","Specialised military assets","Specialised military assets","Specialised military assets","Peace and security","Defence and state security","NAT",0,0,0,0,0,0,0,0,0,0,0,null,null,null,null,null,null,null,null,null,null,null,null,null,null,null,null,null,null,null,null,null,null,null,null,null,null,null,null,null,null,null,null,null,null,{"$f":"Dataset[[#This Row],[2024/25 From - Spending review Topic 1]]+Dataset[[#This Row],[2024/25 From - Spending review Topic 2]]+Dataset[[#This Row],[2024/25 From - Spending review Topic 3]]+Dataset[[#This Row],[2024/25 From - Spending review Topic 4]]+Dataset[[#This Row],[2024/25 From - Other reallocations]]","v":0},{"$f":"Dataset[[#This Row],[2025/26 From - Spending review Topic 1]]+Dataset[[#This Row],[2025/26 From - Spending review Topic 2]]+Dataset[[#This Row],[2025/26 From - Spending review Topic 3]]+Dataset[[#This Row],[2025/26 From - Spending review Topic 4]]+Dataset[[#This Row],[2025/26 From - Other reallocations]]","v":0},{"$f":"Dataset[[#This Row],[2026/27 From - Spending review Topic 1]]+Dataset[[#This Row],[2026/27 From - Spending review Topic 2]]+Dataset[[#This Row],[2026/27 From - Spending review Topic 3]]+Dataset[[#This Row],[2026/27 From - Spending review Topic 4]]+Dataset[[#This Row],[2026/27 From - Other reallocations]]","v":0},{"$f":"Dataset[[#This Row],[2024/25 To - Spending review Topic 1]]+Dataset[[#This Row],[2024/25 To - Spending review Topic 2]]+Dataset[[#This Row],[2024/25 To - Spending review Topic 3]]+Dataset[[#This Row],[2024/25 To - Spending review Topic 4]]+Dataset[[#This Row],[2024/25 To - Other reallocations]]","v":0},{"$f":"Dataset[[#This Row],[2025/26 To - Spending review Topic 1]]+Dataset[[#This Row],[2025/26 To - Spending review Topic 2]]+Dataset[[#This Row],[2025/26 To - Spending review Topic 3]]+Dataset[[#This Row],[2025/26 To - Spending review Topic 4]]+Dataset[[#This Row],[2025/26 To - Other reallocations]]","v":0},{"$f":"Dataset[[#This Row],[2026/27 To - Spending review Topic 1]]+Dataset[[#This Row],[2026/27 To - Spending review Topic 2]]+Dataset[[#This Row],[2026/27 To - Spending review Topic 3]]+Dataset[[#This Row],[2026/27 To - Spending review Topic 4]]+Dataset[[#This Row],[2026/27 To - Other reallocations]]","v":0},{"$f":"Dataset[[#This Row],[2024/25 Reduction]]+Dataset[[#This Row],[2024/25 From - Total]]","v":0},{"$f":"Dataset[[#This Row],[2025/26 Reduction]]+Dataset[[#This Row],[2025/26 From - Total]]","v":0},{"$f":"Dataset[[#This Row],[2026/27 Reduction]]+Dataset[[#This Row],[2026/27 From - Total]]","v":0},{"$f":"Dataset[[#This Row],[2023/24 Reduction]]","v":0},{"$f":"SUM(Dataset[[#This Row],[2024/25 Reduction]],Dataset[[#This Row],[2024/25 From - Total]],Dataset[[#This Row],[2024/25 To - Total]])","v":0},{"$f":"SUM(Dataset[[#This Row],[2025/26 Reduction]],Dataset[[#This Row],[2025/26 From - Total]],Dataset[[#This Row],[2025/26 To - Total]])","v":0},{"$f":"SUM(Dataset[[#This Row],[2026/27 Reduction]],Dataset[[#This Row],[2026/27 From - Total]],Dataset[[#This Row],[2026/27 To - Total]])","v":0},{"$f":"Dataset[[#This Row],[2023/24 Baseline]]+Dataset[[#This Row],[2023/24 Total change]]","v":0},{"$f":"Dataset[[#This Row],[2024/25 Baseline]]+Dataset[[#This Row],[2024/25 Total change]]","v":0},{"$f":"Dataset[[#This Row],[2025/26 Baseline]]+Dataset[[#This Row],[2025/26 Total change]]","v":0},{"$f":"Dataset[[#This Row],[2026/27 Baseline]]+Dataset[[#This Row],[2026/27 Total change]]","v":0}]
["NAT|Non-transfer item","26|Biological assets","2024_25","MTEF2024",26,3,2,44731,844,"26","03","02","044731","000844","26|03|02","02","03","15","60","64","02|03|15|60|64","National","Military Veterans","Empowerment and Stakeholder Management","Empowerment and Skills Development","Non-transfer item","Capital","Payments for capital assets","Biological assets","Biological assets","Biological assets","Peace and security","Defence and state security","NAT",0,0,0,0,0,0,0,0,0,0,0,null,null,null,null,null,null,null,null,null,null,null,null,null,null,null,null,null,null,null,null,null,null,null,null,null,null,null,null,null,null,null,null,null,null,{"$f":"Dataset[[#This Row],[2024/25 From - Spending review Topic 1]]+Dataset[[#This Row],[2024/25 From - Spending review Topic 2]]+Dataset[[#This Row],[2024/25 From - Spending review Topic 3]]+Dataset[[#This Row],[2024/25 From - Spending review Topic 4]]+Dataset[[#This Row],[2024/25 From - Other reallocations]]","v":0},{"$f":"Dataset[[#This Row],[2025/26 From - Spending review Topic 1]]+Dataset[[#This Row],[2025/26 From - Spending review Topic 2]]+Dataset[[#This Row],[2025/26 From - Spending review Topic 3]]+Dataset[[#This Row],[2025/26 From - Spending review Topic 4]]+Dataset[[#This Row],[2025/26 From - Other reallocations]]","v":0},{"$f":"Dataset[[#This Row],[2026/27 From - Spending review Topic 1]]+Dataset[[#This Row],[2026/27 From - Spending review Topic 2]]+Dataset[[#This Row],[2026/27 From - Spending review Topic 3]]+Dataset[[#This Row],[2026/27 From - Spending review Topic 4]]+Dataset[[#This Row],[2026/27 From - Other reallocations]]","v":0},{"$f":"Dataset[[#This Row],[2024/25 To - Spending review Topic 1]]+Dataset[[#This Row],[2024/25 To - Spending review Topic 2]]+Dataset[[#This Row],[2024/25 To - Spending review Topic 3]]+Dataset[[#This Row],[2024/25 To - Spending review Topic 4]]+Dataset[[#This Row],[2024/25 To - Other reallocations]]","v":0},{"$f":"Dataset[[#This Row],[2025/26 To - Spending review Topic 1]]+Dataset[[#This Row],[2025/26 To - Spending review Topic 2]]+Dataset[[#This Row],[2025/26 To - Spending review Topic 3]]+Dataset[[#This Row],[2025/26 To - Spending review Topic 4]]+Dataset[[#This Row],[2025/26 To - Other reallocations]]","v":0},{"$f":"Dataset[[#This Row],[2026/27 To - Spending review Topic 1]]+Dataset[[#This Row],[2026/27 To - Spending review Topic 2]]+Dataset[[#This Row],[2026/27 To - Spending review Topic 3]]+Dataset[[#This Row],[2026/27 To - Spending review Topic 4]]+Dataset[[#This Row],[2026/27 To - Other reallocations]]","v":0},{"$f":"Dataset[[#This Row],[2024/25 Reduction]]+Dataset[[#This Row],[2024/25 From - Total]]","v":0},{"$f":"Dataset[[#This Row],[2025/26 Reduction]]+Dataset[[#This Row],[2025/26 From - Total]]","v":0},{"$f":"Dataset[[#This Row],[2026/27 Reduction]]+Dataset[[#This Row],[2026/27 From - Total]]","v":0},{"$f":"Dataset[[#This Row],[2023/24 Reduction]]","v":0},{"$f":"SUM(Dataset[[#This Row],[2024/25 Reduction]],Dataset[[#This Row],[2024/25 From - Total]],Dataset[[#This Row],[2024/25 To - Total]])","v":0},{"$f":"SUM(Dataset[[#This Row],[2025/26 Reduction]],Dataset[[#This Row],[2025/26 From - Total]],Dataset[[#This Row],[2025/26 To - Total]])","v":0},{"$f":"SUM(Dataset[[#This Row],[2026/27 Reduction]],Dataset[[#This Row],[2026/27 From - Total]],Dataset[[#This Row],[2026/27 To - Total]])","v":0},{"$f":"Dataset[[#This Row],[2023/24 Baseline]]+Dataset[[#This Row],[2023/24 Total change]]","v":0},{"$f":"Dataset[[#This Row],[2024/25 Baseline]]+Dataset[[#This Row],[2024/25 Total change]]","v":0},{"$f":"Dataset[[#This Row],[2025/26 Baseline]]+Dataset[[#This Row],[2025/26 Total change]]","v":0},{"$f":"Dataset[[#This Row],[2026/27 Baseline]]+Dataset[[#This Row],[2026/27 Total change]]","v":0}]
["NAT|Non-transfer item","26|Land and sub-soil assets","2024_25","MTEF2024",26,3,2,44732,845,"26","03","02","044732","000845","26|03|02","02","03","16","61","65","02|03|16|61|65","National","Military Veterans","Empowerment and Stakeholder Management","Empowerment and Skills Development","Non-transfer item","Capital","Payments for capital assets","Land and sub-soil assets","Land and sub-soil assets","Land and sub-soil assets","Peace and security","Defence and state security","NAT",0,0,0,0,0,0,0,0,0,0,0,null,null,null,null,null,null,null,null,null,null,null,null,null,null,null,null,null,null,null,null,null,null,null,null,null,null,null,null,null,null,null,null,null,null,{"$f":"Dataset[[#This Row],[2024/25 From - Spending review Topic 1]]+Dataset[[#This Row],[2024/25 From - Spending review Topic 2]]+Dataset[[#This Row],[2024/25 From - Spending review Topic 3]]+Dataset[[#This Row],[2024/25 From - Spending review Topic 4]]+Dataset[[#This Row],[2024/25 From - Other reallocations]]","v":0},{"$f":"Dataset[[#This Row],[2025/26 From - Spending review Topic 1]]+Dataset[[#This Row],[2025/26 From - Spending review Topic 2]]+Dataset[[#This Row],[2025/26 From - Spending review Topic 3]]+Dataset[[#This Row],[2025/26 From - Spending review Topic 4]]+Dataset[[#This Row],[2025/26 From - Other reallocations]]","v":0},{"$f":"Dataset[[#This Row],[2026/27 From - Spending review Topic 1]]+Dataset[[#This Row],[2026/27 From - Spending review Topic 2]]+Dataset[[#This Row],[2026/27 From - Spending review Topic 3]]+Dataset[[#This Row],[2026/27 From - Spending review Topic 4]]+Dataset[[#This Row],[2026/27 From - Other reallocations]]","v":0},{"$f":"Dataset[[#This Row],[2024/25 To - Spending review Topic 1]]+Dataset[[#This Row],[2024/25 To - Spending review Topic 2]]+Dataset[[#This Row],[2024/25 To - Spending review Topic 3]]+Dataset[[#This Row],[2024/25 To - Spending review Topic 4]]+Dataset[[#This Row],[2024/25 To - Other reallocations]]","v":0},{"$f":"Dataset[[#This Row],[2025/26 To - Spending review Topic 1]]+Dataset[[#This Row],[2025/26 To - Spending review Topic 2]]+Dataset[[#This Row],[2025/26 To - Spending review Topic 3]]+Dataset[[#This Row],[2025/26 To - Spending review Topic 4]]+Dataset[[#This Row],[2025/26 To - Other reallocations]]","v":0},{"$f":"Dataset[[#This Row],[2026/27 To - Spending review Topic 1]]+Dataset[[#This Row],[2026/27 To - Spending review Topic 2]]+Dataset[[#This Row],[2026/27 To - Spending review Topic 3]]+Dataset[[#This Row],[2026/27 To - Spending review Topic 4]]+Dataset[[#This Row],[2026/27 To - Other reallocations]]","v":0},{"$f":"Dataset[[#This Row],[2024/25 Reduction]]+Dataset[[#This Row],[2024/25 From - Total]]","v":0},{"$f":"Dataset[[#This Row],[2025/26 Reduction]]+Dataset[[#This Row],[2025/26 From - Total]]","v":0},{"$f":"Dataset[[#This Row],[2026/27 Reduction]]+Dataset[[#This Row],[2026/27 From - Total]]","v":0},{"$f":"Dataset[[#This Row],[2023/24 Reduction]]","v":0},{"$f":"SUM(Dataset[[#This Row],[2024/25 Reduction]],Dataset[[#This Row],[2024/25 From - Total]],Dataset[[#This Row],[2024/25 To - Total]])","v":0},{"$f":"SUM(Dataset[[#This Row],[2025/26 Reduction]],Dataset[[#This Row],[2025/26 From - Total]],Dataset[[#This Row],[2025/26 To - Total]])","v":0},{"$f":"SUM(Dataset[[#This Row],[2026/27 Reduction]],Dataset[[#This Row],[2026/27 From - Total]],Dataset[[#This Row],[2026/27 To - Total]])","v":0},{"$f":"Dataset[[#This Row],[2023/24 Baseline]]+Dataset[[#This Row],[2023/24 Total change]]","v":0},{"$f":"Dataset[[#This Row],[2024/25 Baseline]]+Dataset[[#This Row],[2024/25 Total change]]","v":0},{"$f":"Dataset[[#This Row],[2025/26 Baseline]]+Dataset[[#This Row],[2025/26 Total change]]","v":0},{"$f":"Dataset[[#This Row],[2026/27 Baseline]]+Dataset[[#This Row],[2026/27 Total change]]","v":0}]
["NAT|Non-transfer item","26|Software and other intangible assets","2024_25","MTEF2024",26,3,2,44733,846,"26","03","02","044733","000846","26|03|02","02","03","17","62","66","02|03|17|62|66","National","Military Veterans","Empowerment and Stakeholder Management","Empowerment and Skills Development","Non-transfer item","Capital","Payments for capital assets","Software and other intangible assets","Software and other intangible assets","Software and other intangible assets","Peace and security","Defence and state security","NAT",0,0,0,0,0,0,0,0,0,0,0,null,null,null,null,null,null,null,null,null,null,null,null,null,null,null,null,null,null,null,null,null,null,null,null,null,null,null,null,null,null,null,null,null,null,{"$f":"Dataset[[#This Row],[2024/25 From - Spending review Topic 1]]+Dataset[[#This Row],[2024/25 From - Spending review Topic 2]]+Dataset[[#This Row],[2024/25 From - Spending review Topic 3]]+Dataset[[#This Row],[2024/25 From - Spending review Topic 4]]+Dataset[[#This Row],[2024/25 From - Other reallocations]]","v":0},{"$f":"Dataset[[#This Row],[2025/26 From - Spending review Topic 1]]+Dataset[[#This Row],[2025/26 From - Spending review Topic 2]]+Dataset[[#This Row],[2025/26 From - Spending review Topic 3]]+Dataset[[#This Row],[2025/26 From - Spending review Topic 4]]+Dataset[[#This Row],[2025/26 From - Other reallocations]]","v":0},{"$f":"Dataset[[#This Row],[2026/27 From - Spending review Topic 1]]+Dataset[[#This Row],[2026/27 From - Spending review Topic 2]]+Dataset[[#This Row],[2026/27 From - Spending review Topic 3]]+Dataset[[#This Row],[2026/27 From - Spending review Topic 4]]+Dataset[[#This Row],[2026/27 From - Other reallocations]]","v":0},{"$f":"Dataset[[#This Row],[2024/25 To - Spending review Topic 1]]+Dataset[[#This Row],[2024/25 To - Spending review Topic 2]]+Dataset[[#This Row],[2024/25 To - Spending review Topic 3]]+Dataset[[#This Row],[2024/25 To - Spending review Topic 4]]+Dataset[[#This Row],[2024/25 To - Other reallocations]]","v":0},{"$f":"Dataset[[#This Row],[2025/26 To - Spending review Topic 1]]+Dataset[[#This Row],[2025/26 To - Spending review Topic 2]]+Dataset[[#This Row],[2025/26 To - Spending review Topic 3]]+Dataset[[#This Row],[2025/26 To - Spending review Topic 4]]+Dataset[[#This Row],[2025/26 To - Other reallocations]]","v":0},{"$f":"Dataset[[#This Row],[2026/27 To - Spending review Topic 1]]+Dataset[[#This Row],[2026/27 To - Spending review Topic 2]]+Dataset[[#This Row],[2026/27 To - Spending review Topic 3]]+Dataset[[#This Row],[2026/27 To - Spending review Topic 4]]+Dataset[[#This Row],[2026/27 To - Other reallocations]]","v":0},{"$f":"Dataset[[#This Row],[2024/25 Reduction]]+Dataset[[#This Row],[2024/25 From - Total]]","v":0},{"$f":"Dataset[[#This Row],[2025/26 Reduction]]+Dataset[[#This Row],[2025/26 From - Total]]","v":0},{"$f":"Dataset[[#This Row],[2026/27 Reduction]]+Dataset[[#This Row],[2026/27 From - Total]]","v":0},{"$f":"Dataset[[#This Row],[2023/24 Reduction]]","v":0},{"$f":"SUM(Dataset[[#This Row],[2024/25 Reduction]],Dataset[[#This Row],[2024/25 From - Total]],Dataset[[#This Row],[2024/25 To - Total]])","v":0},{"$f":"SUM(Dataset[[#This Row],[2025/26 Reduction]],Dataset[[#This Row],[2025/26 From - Total]],Dataset[[#This Row],[2025/26 To - Total]])","v":0},{"$f":"SUM(Dataset[[#This Row],[2026/27 Reduction]],Dataset[[#This Row],[2026/27 From - Total]],Dataset[[#This Row],[2026/27 To - Total]])","v":0},{"$f":"Dataset[[#This Row],[2023/24 Baseline]]+Dataset[[#This Row],[2023/24 Total change]]","v":0},{"$f":"Dataset[[#This Row],[2024/25 Baseline]]+Dataset[[#This Row],[2024/25 Total change]]","v":0},{"$f":"Dataset[[#This Row],[2025/26 Baseline]]+Dataset[[#This Row],[2025/26 Total change]]","v":0},{"$f":"Dataset[[#This Row],[2026/27 Baseline]]+Dataset[[#This Row],[2026/27 Total change]]","v":0}]
["NAT|Non-transfer item","26|Payments for financial assets","2024_25","MTEF2024",26,3,2,44734,847,"26","03","02","044734","000847","26|03|02","03","04","18","63","67","03|04|18|63|67","National","Military Veterans","Empowerment and Stakeholder Management","Empowerment and Skills Development","Non-transfer item","Payments for financial assets","Payments for financial assets","Payments for financial assets","Payments for financial assets","Payments for financial assets","Peace and security","Defence and state security","NAT",0,0,0,0,0,0,0,0,0,0,0,null,null,null,null,null,null,null,null,null,null,null,null,null,null,null,null,null,null,null,null,null,null,null,null,null,null,null,null,null,null,null,null,null,null,{"$f":"Dataset[[#This Row],[2024/25 From - Spending review Topic 1]]+Dataset[[#This Row],[2024/25 From - Spending review Topic 2]]+Dataset[[#This Row],[2024/25 From - Spending review Topic 3]]+Dataset[[#This Row],[2024/25 From - Spending review Topic 4]]+Dataset[[#This Row],[2024/25 From - Other reallocations]]","v":0},{"$f":"Dataset[[#This Row],[2025/26 From - Spending review Topic 1]]+Dataset[[#This Row],[2025/26 From - Spending review Topic 2]]+Dataset[[#This Row],[2025/26 From - Spending review Topic 3]]+Dataset[[#This Row],[2025/26 From - Spending review Topic 4]]+Dataset[[#This Row],[2025/26 From - Other reallocations]]","v":0},{"$f":"Dataset[[#This Row],[2026/27 From - Spending review Topic 1]]+Dataset[[#This Row],[2026/27 From - Spending review Topic 2]]+Dataset[[#This Row],[2026/27 From - Spending review Topic 3]]+Dataset[[#This Row],[2026/27 From - Spending review Topic 4]]+Dataset[[#This Row],[2026/27 From - Other reallocations]]","v":0},{"$f":"Dataset[[#This Row],[2024/25 To - Spending review Topic 1]]+Dataset[[#This Row],[2024/25 To - Spending review Topic 2]]+Dataset[[#This Row],[2024/25 To - Spending review Topic 3]]+Dataset[[#This Row],[2024/25 To - Spending review Topic 4]]+Dataset[[#This Row],[2024/25 To - Other reallocations]]","v":0},{"$f":"Dataset[[#This Row],[2025/26 To - Spending review Topic 1]]+Dataset[[#This Row],[2025/26 To - Spending review Topic 2]]+Dataset[[#This Row],[2025/26 To - Spending review Topic 3]]+Dataset[[#This Row],[2025/26 To - Spending review Topic 4]]+Dataset[[#This Row],[2025/26 To - Other reallocations]]","v":0},{"$f":"Dataset[[#This Row],[2026/27 To - Spending review Topic 1]]+Dataset[[#This Row],[2026/27 To - Spending review Topic 2]]+Dataset[[#This Row],[2026/27 To - Spending review Topic 3]]+Dataset[[#This Row],[2026/27 To - Spending review Topic 4]]+Dataset[[#This Row],[2026/27 To - Other reallocations]]","v":0},{"$f":"Dataset[[#This Row],[2024/25 Reduction]]+Dataset[[#This Row],[2024/25 From - Total]]","v":0},{"$f":"Dataset[[#This Row],[2025/26 Reduction]]+Dataset[[#This Row],[2025/26 From - Total]]","v":0},{"$f":"Dataset[[#This Row],[2026/27 Reduction]]+Dataset[[#This Row],[2026/27 From - Total]]","v":0},{"$f":"Dataset[[#This Row],[2023/24 Reduction]]","v":0},{"$f":"SUM(Dataset[[#This Row],[2024/25 Reduction]],Dataset[[#This Row],[2024/25 From - Total]],Dataset[[#This Row],[2024/25 To - Total]])","v":0},{"$f":"SUM(Dataset[[#This Row],[2025/26 Reduction]],Dataset[[#This Row],[2025/26 From - Total]],Dataset[[#This Row],[2025/26 To - Total]])","v":0},{"$f":"SUM(Dataset[[#This Row],[2026/27 Reduction]],Dataset[[#This Row],[2026/27 From - Total]],Dataset[[#This Row],[2026/27 To - Total]])","v":0},{"$f":"Dataset[[#This Row],[2023/24 Baseline]]+Dataset[[#This Row],[2023/24 Total change]]","v":0},{"$f":"Dataset[[#This Row],[2024/25 Baseline]]+Dataset[[#This Row],[2024/25 Total change]]","v":0},{"$f":"Dataset[[#This Row],[2025/26 Baseline]]+Dataset[[#This Row],[2025/26 Total change]]","v":0},{"$f":"Dataset[[#This Row],[2026/27 Baseline]]+Dataset[[#This Row],[2026/27 Total change]]","v":0}]
["NAT|Non-transfer item","26|Salaries and wages","2024_25","MTEF2024",26,3,3,44735,848,"26","03","03","044735","000848","26|03|03","01","01","01","01","01","01|01|01|01|01","National","Military Veterans","Empowerment and Stakeholder Management","Heritage, Memorials, Burials and Honours","Non-transfer item","Current","Current payments","Compensation of employees","Salaries and wages","Salaries and wages","Peace and security","Defence and state security","NAT",3404,2257,2807,5544,2823,2823,0,5209,5298,5521,5774,null,null,null,null,null,null,null,null,null,null,null,null,null,null,null,null,null,null,null,null,null,null,null,null,null,null,null,null,null,null,null,null,null,null,{"$f":"Dataset[[#This Row],[2024/25 From - Spending review Topic 1]]+Dataset[[#This Row],[2024/25 From - Spending review Topic 2]]+Dataset[[#This Row],[2024/25 From - Spending review Topic 3]]+Dataset[[#This Row],[2024/25 From - Spending review Topic 4]]+Dataset[[#This Row],[2024/25 From - Other reallocations]]","v":0},{"$f":"Dataset[[#This Row],[2025/26 From - Spending review Topic 1]]+Dataset[[#This Row],[2025/26 From - Spending review Topic 2]]+Dataset[[#This Row],[2025/26 From - Spending review Topic 3]]+Dataset[[#This Row],[2025/26 From - Spending review Topic 4]]+Dataset[[#This Row],[2025/26 From - Other reallocations]]","v":0},{"$f":"Dataset[[#This Row],[2026/27 From - Spending review Topic 1]]+Dataset[[#This Row],[2026/27 From - Spending review Topic 2]]+Dataset[[#This Row],[2026/27 From - Spending review Topic 3]]+Dataset[[#This Row],[2026/27 From - Spending review Topic 4]]+Dataset[[#This Row],[2026/27 From - Other reallocations]]","v":0},{"$f":"Dataset[[#This Row],[2024/25 To - Spending review Topic 1]]+Dataset[[#This Row],[2024/25 To - Spending review Topic 2]]+Dataset[[#This Row],[2024/25 To - Spending review Topic 3]]+Dataset[[#This Row],[2024/25 To - Spending review Topic 4]]+Dataset[[#This Row],[2024/25 To - Other reallocations]]","v":0},{"$f":"Dataset[[#This Row],[2025/26 To - Spending review Topic 1]]+Dataset[[#This Row],[2025/26 To - Spending review Topic 2]]+Dataset[[#This Row],[2025/26 To - Spending review Topic 3]]+Dataset[[#This Row],[2025/26 To - Spending review Topic 4]]+Dataset[[#This Row],[2025/26 To - Other reallocations]]","v":0},{"$f":"Dataset[[#This Row],[2026/27 To - Spending review Topic 1]]+Dataset[[#This Row],[2026/27 To - Spending review Topic 2]]+Dataset[[#This Row],[2026/27 To - Spending review Topic 3]]+Dataset[[#This Row],[2026/27 To - Spending review Topic 4]]+Dataset[[#This Row],[2026/27 To - Other reallocations]]","v":0},{"$f":"Dataset[[#This Row],[2024/25 Reduction]]+Dataset[[#This Row],[2024/25 From - Total]]","v":0},{"$f":"Dataset[[#This Row],[2025/26 Reduction]]+Dataset[[#This Row],[2025/26 From - Total]]","v":0},{"$f":"Dataset[[#This Row],[2026/27 Reduction]]+Dataset[[#This Row],[2026/27 From - Total]]","v":0},{"$f":"Dataset[[#This Row],[2023/24 Reduction]]","v":0},{"$f":"SUM(Dataset[[#This Row],[2024/25 Reduction]],Dataset[[#This Row],[2024/25 From - Total]],Dataset[[#This Row],[2024/25 To - Total]])","v":0},{"$f":"SUM(Dataset[[#This Row],[2025/26 Reduction]],Dataset[[#This Row],[2025/26 From - Total]],Dataset[[#This Row],[2025/26 To - Total]])","v":0},{"$f":"SUM(Dataset[[#This Row],[2026/27 Reduction]],Dataset[[#This Row],[2026/27 From - Total]],Dataset[[#This Row],[2026/27 To - Total]])","v":0},{"$f":"Dataset[[#This Row],[2023/24 Baseline]]+Dataset[[#This Row],[2023/24 Total change]]","v":5209},{"$f":"Dataset[[#This Row],[2024/25 Baseline]]+Dataset[[#This Row],[2024/25 Total change]]","v":5298},{"$f":"Dataset[[#This Row],[2025/26 Baseline]]+Dataset[[#This Row],[2025/26 Total change]]","v":5521},{"$f":"Dataset[[#This Row],[2026/27 Baseline]]+Dataset[[#This Row],[2026/27 Total change]]","v":5774}]
["NAT|Non-transfer item","26|Social contributions","2024_25","MTEF2024",26,3,3,44736,849,"26","03","03","044736","000849","26|03|03","01","01","01","02","02","01|01|01|02|02","National","Military Veterans","Empowerment and Stakeholder Management","Heritage, Memorials, Burials and Honours","Non-transfer item","Current","Current payments","Compensation of employees","Social contributions","Social contributions","Peace and security","Defence and state security","NAT",334,271,289,-72,318,318,0,461,622,659,689,null,null,null,null,null,null,null,null,null,null,null,null,null,null,null,null,null,null,null,null,null,null,null,null,null,null,null,null,null,null,null,null,null,null,{"$f":"Dataset[[#This Row],[2024/25 From - Spending review Topic 1]]+Dataset[[#This Row],[2024/25 From - Spending review Topic 2]]+Dataset[[#This Row],[2024/25 From - Spending review Topic 3]]+Dataset[[#This Row],[2024/25 From - Spending review Topic 4]]+Dataset[[#This Row],[2024/25 From - Other reallocations]]","v":0},{"$f":"Dataset[[#This Row],[2025/26 From - Spending review Topic 1]]+Dataset[[#This Row],[2025/26 From - Spending review Topic 2]]+Dataset[[#This Row],[2025/26 From - Spending review Topic 3]]+Dataset[[#This Row],[2025/26 From - Spending review Topic 4]]+Dataset[[#This Row],[2025/26 From - Other reallocations]]","v":0},{"$f":"Dataset[[#This Row],[2026/27 From - Spending review Topic 1]]+Dataset[[#This Row],[2026/27 From - Spending review Topic 2]]+Dataset[[#This Row],[2026/27 From - Spending review Topic 3]]+Dataset[[#This Row],[2026/27 From - Spending review Topic 4]]+Dataset[[#This Row],[2026/27 From - Other reallocations]]","v":0},{"$f":"Dataset[[#This Row],[2024/25 To - Spending review Topic 1]]+Dataset[[#This Row],[2024/25 To - Spending review Topic 2]]+Dataset[[#This Row],[2024/25 To - Spending review Topic 3]]+Dataset[[#This Row],[2024/25 To - Spending review Topic 4]]+Dataset[[#This Row],[2024/25 To - Other reallocations]]","v":0},{"$f":"Dataset[[#This Row],[2025/26 To - Spending review Topic 1]]+Dataset[[#This Row],[2025/26 To - Spending review Topic 2]]+Dataset[[#This Row],[2025/26 To - Spending review Topic 3]]+Dataset[[#This Row],[2025/26 To - Spending review Topic 4]]+Dataset[[#This Row],[2025/26 To - Other reallocations]]","v":0},{"$f":"Dataset[[#This Row],[2026/27 To - Spending review Topic 1]]+Dataset[[#This Row],[2026/27 To - Spending review Topic 2]]+Dataset[[#This Row],[2026/27 To - Spending review Topic 3]]+Dataset[[#This Row],[2026/27 To - Spending review Topic 4]]+Dataset[[#This Row],[2026/27 To - Other reallocations]]","v":0},{"$f":"Dataset[[#This Row],[2024/25 Reduction]]+Dataset[[#This Row],[2024/25 From - Total]]","v":0},{"$f":"Dataset[[#This Row],[2025/26 Reduction]]+Dataset[[#This Row],[2025/26 From - Total]]","v":0},{"$f":"Dataset[[#This Row],[2026/27 Reduction]]+Dataset[[#This Row],[2026/27 From - Total]]","v":0},{"$f":"Dataset[[#This Row],[2023/24 Reduction]]","v":0},{"$f":"SUM(Dataset[[#This Row],[2024/25 Reduction]],Dataset[[#This Row],[2024/25 From - Total]],Dataset[[#This Row],[2024/25 To - Total]])","v":0},{"$f":"SUM(Dataset[[#This Row],[2025/26 Reduction]],Dataset[[#This Row],[2025/26 From - Total]],Dataset[[#This Row],[2025/26 To - Total]])","v":0},{"$f":"SUM(Dataset[[#This Row],[2026/27 Reduction]],Dataset[[#This Row],[2026/27 From - Total]],Dataset[[#This Row],[2026/27 To - Total]])","v":0},{"$f":"Dataset[[#This Row],[2023/24 Baseline]]+Dataset[[#This Row],[2023/24 Total change]]","v":461},{"$f":"Dataset[[#This Row],[2024/25 Baseline]]+Dataset[[#This Row],[2024/25 Total change]]","v":622},{"$f":"Dataset[[#This Row],[2025/26 Baseline]]+Dataset[[#This Row],[2025/26 Total change]]","v":659},{"$f":"Dataset[[#This Row],[2026/27 Baseline]]+Dataset[[#This Row],[2026/27 Total change]]","v":689}]
["NAT|Non-transfer item","26|Administrative fees","2024_25","MTEF2024",26,3,3,44737,850,"26","03","03","044737","000850","26|03|03","01","01","02","03","03","01|01|02|03|03","National","Military Veterans","Empowerment and Stakeholder Management","Heritage, Memorials, Burials and Honours","Non-transfer item","Current","Current payments","Goods and services","Administrative fees","Administrative fees","Peace and security","Defence and state security","NAT",88,8,10,231,270,270,0,631,691,872,912,null,null,null,null,null,null,null,null,null,null,null,null,null,null,null,null,null,null,null,null,null,null,null,null,null,null,null,null,null,null,null,null,null,null,{"$f":"Dataset[[#This Row],[2024/25 From - Spending review Topic 1]]+Dataset[[#This Row],[2024/25 From - Spending review Topic 2]]+Dataset[[#This Row],[2024/25 From - Spending review Topic 3]]+Dataset[[#This Row],[2024/25 From - Spending review Topic 4]]+Dataset[[#This Row],[2024/25 From - Other reallocations]]","v":0},{"$f":"Dataset[[#This Row],[2025/26 From - Spending review Topic 1]]+Dataset[[#This Row],[2025/26 From - Spending review Topic 2]]+Dataset[[#This Row],[2025/26 From - Spending review Topic 3]]+Dataset[[#This Row],[2025/26 From - Spending review Topic 4]]+Dataset[[#This Row],[2025/26 From - Other reallocations]]","v":0},{"$f":"Dataset[[#This Row],[2026/27 From - Spending review Topic 1]]+Dataset[[#This Row],[2026/27 From - Spending review Topic 2]]+Dataset[[#This Row],[2026/27 From - Spending review Topic 3]]+Dataset[[#This Row],[2026/27 From - Spending review Topic 4]]+Dataset[[#This Row],[2026/27 From - Other reallocations]]","v":0},{"$f":"Dataset[[#This Row],[2024/25 To - Spending review Topic 1]]+Dataset[[#This Row],[2024/25 To - Spending review Topic 2]]+Dataset[[#This Row],[2024/25 To - Spending review Topic 3]]+Dataset[[#This Row],[2024/25 To - Spending review Topic 4]]+Dataset[[#This Row],[2024/25 To - Other reallocations]]","v":0},{"$f":"Dataset[[#This Row],[2025/26 To - Spending review Topic 1]]+Dataset[[#This Row],[2025/26 To - Spending review Topic 2]]+Dataset[[#This Row],[2025/26 To - Spending review Topic 3]]+Dataset[[#This Row],[2025/26 To - Spending review Topic 4]]+Dataset[[#This Row],[2025/26 To - Other reallocations]]","v":0},{"$f":"Dataset[[#This Row],[2026/27 To - Spending review Topic 1]]+Dataset[[#This Row],[2026/27 To - Spending review Topic 2]]+Dataset[[#This Row],[2026/27 To - Spending review Topic 3]]+Dataset[[#This Row],[2026/27 To - Spending review Topic 4]]+Dataset[[#This Row],[2026/27 To - Other reallocations]]","v":0},{"$f":"Dataset[[#This Row],[2024/25 Reduction]]+Dataset[[#This Row],[2024/25 From - Total]]","v":0},{"$f":"Dataset[[#This Row],[2025/26 Reduction]]+Dataset[[#This Row],[2025/26 From - Total]]","v":0},{"$f":"Dataset[[#This Row],[2026/27 Reduction]]+Dataset[[#This Row],[2026/27 From - Total]]","v":0},{"$f":"Dataset[[#This Row],[2023/24 Reduction]]","v":0},{"$f":"SUM(Dataset[[#This Row],[2024/25 Reduction]],Dataset[[#This Row],[2024/25 From - Total]],Dataset[[#This Row],[2024/25 To - Total]])","v":0},{"$f":"SUM(Dataset[[#This Row],[2025/26 Reduction]],Dataset[[#This Row],[2025/26 From - Total]],Dataset[[#This Row],[2025/26 To - Total]])","v":0},{"$f":"SUM(Dataset[[#This Row],[2026/27 Reduction]],Dataset[[#This Row],[2026/27 From - Total]],Dataset[[#This Row],[2026/27 To - Total]])","v":0},{"$f":"Dataset[[#This Row],[2023/24 Baseline]]+Dataset[[#This Row],[2023/24 Total change]]","v":631},{"$f":"Dataset[[#This Row],[2024/25 Baseline]]+Dataset[[#This Row],[2024/25 Total change]]","v":691},{"$f":"Dataset[[#This Row],[2025/26 Baseline]]+Dataset[[#This Row],[2025/26 Total change]]","v":872},{"$f":"Dataset[[#This Row],[2026/27 Baseline]]+Dataset[[#This Row],[2026/27 Total change]]","v":912}]
["NAT|Non-transfer item","26|Advertising","2024_25","MTEF2024",26,3,3,44738,851,"26","03","03","044738","000851","26|03|03","01","01","02","04","04","01|01|02|04|04","National","Military Veterans","Empowerment and Stakeholder Management","Heritage, Memorials, Burials and Honours","Non-transfer item","Current","Current payments","Goods and services","Advertising","Advertising","Peace and security","Defence and state security","NAT",0,0,0,0,0,0,0,0,0,0,0,null,null,null,null,null,null,null,null,null,null,null,null,null,null,null,null,null,null,null,null,null,null,null,null,null,null,null,null,null,null,null,null,null,null,{"$f":"Dataset[[#This Row],[2024/25 From - Spending review Topic 1]]+Dataset[[#This Row],[2024/25 From - Spending review Topic 2]]+Dataset[[#This Row],[2024/25 From - Spending review Topic 3]]+Dataset[[#This Row],[2024/25 From - Spending review Topic 4]]+Dataset[[#This Row],[2024/25 From - Other reallocations]]","v":0},{"$f":"Dataset[[#This Row],[2025/26 From - Spending review Topic 1]]+Dataset[[#This Row],[2025/26 From - Spending review Topic 2]]+Dataset[[#This Row],[2025/26 From - Spending review Topic 3]]+Dataset[[#This Row],[2025/26 From - Spending review Topic 4]]+Dataset[[#This Row],[2025/26 From - Other reallocations]]","v":0},{"$f":"Dataset[[#This Row],[2026/27 From - Spending review Topic 1]]+Dataset[[#This Row],[2026/27 From - Spending review Topic 2]]+Dataset[[#This Row],[2026/27 From - Spending review Topic 3]]+Dataset[[#This Row],[2026/27 From - Spending review Topic 4]]+Dataset[[#This Row],[2026/27 From - Other reallocations]]","v":0},{"$f":"Dataset[[#This Row],[2024/25 To - Spending review Topic 1]]+Dataset[[#This Row],[2024/25 To - Spending review Topic 2]]+Dataset[[#This Row],[2024/25 To - Spending review Topic 3]]+Dataset[[#This Row],[2024/25 To - Spending review Topic 4]]+Dataset[[#This Row],[2024/25 To - Other reallocations]]","v":0},{"$f":"Dataset[[#This Row],[2025/26 To - Spending review Topic 1]]+Dataset[[#This Row],[2025/26 To - Spending review Topic 2]]+Dataset[[#This Row],[2025/26 To - Spending review Topic 3]]+Dataset[[#This Row],[2025/26 To - Spending review Topic 4]]+Dataset[[#This Row],[2025/26 To - Other reallocations]]","v":0},{"$f":"Dataset[[#This Row],[2026/27 To - Spending review Topic 1]]+Dataset[[#This Row],[2026/27 To - Spending review Topic 2]]+Dataset[[#This Row],[2026/27 To - Spending review Topic 3]]+Dataset[[#This Row],[2026/27 To - Spending review Topic 4]]+Dataset[[#This Row],[2026/27 To - Other reallocations]]","v":0},{"$f":"Dataset[[#This Row],[2024/25 Reduction]]+Dataset[[#This Row],[2024/25 From - Total]]","v":0},{"$f":"Dataset[[#This Row],[2025/26 Reduction]]+Dataset[[#This Row],[2025/26 From - Total]]","v":0},{"$f":"Dataset[[#This Row],[2026/27 Reduction]]+Dataset[[#This Row],[2026/27 From - Total]]","v":0},{"$f":"Dataset[[#This Row],[2023/24 Reduction]]","v":0},{"$f":"SUM(Dataset[[#This Row],[2024/25 Reduction]],Dataset[[#This Row],[2024/25 From - Total]],Dataset[[#This Row],[2024/25 To - Total]])","v":0},{"$f":"SUM(Dataset[[#This Row],[2025/26 Reduction]],Dataset[[#This Row],[2025/26 From - Total]],Dataset[[#This Row],[2025/26 To - Total]])","v":0},{"$f":"SUM(Dataset[[#This Row],[2026/27 Reduction]],Dataset[[#This Row],[2026/27 From - Total]],Dataset[[#This Row],[2026/27 To - Total]])","v":0},{"$f":"Dataset[[#This Row],[2023/24 Baseline]]+Dataset[[#This Row],[2023/24 Total change]]","v":0},{"$f":"Dataset[[#This Row],[2024/25 Baseline]]+Dataset[[#This Row],[2024/25 Total change]]","v":0},{"$f":"Dataset[[#This Row],[2025/26 Baseline]]+Dataset[[#This Row],[2025/26 Total change]]","v":0},{"$f":"Dataset[[#This Row],[2026/27 Baseline]]+Dataset[[#This Row],[2026/27 Total change]]","v":0}]
["NAT|Non-transfer item","26|Minor assets","2024_25","MTEF2024",26,3,3,44739,852,"26","03","03","044739","000852","26|03|03","01","01","02","05","05","01|01|02|05|05","National","Military Veterans","Empowerment and Stakeholder Management","Heritage, Memorials, Burials and Honours","Non-transfer item","Current","Current payments","Goods and services","Minor assets","Minor assets","Peace and security","Defence and state security","NAT",10,0,0,323,218,218,0,23,39,54,56,null,null,null,null,null,null,null,null,null,null,null,null,null,null,null,null,null,null,null,null,null,null,null,null,null,null,null,null,null,null,null,null,null,null,{"$f":"Dataset[[#This Row],[2024/25 From - Spending review Topic 1]]+Dataset[[#This Row],[2024/25 From - Spending review Topic 2]]+Dataset[[#This Row],[2024/25 From - Spending review Topic 3]]+Dataset[[#This Row],[2024/25 From - Spending review Topic 4]]+Dataset[[#This Row],[2024/25 From - Other reallocations]]","v":0},{"$f":"Dataset[[#This Row],[2025/26 From - Spending review Topic 1]]+Dataset[[#This Row],[2025/26 From - Spending review Topic 2]]+Dataset[[#This Row],[2025/26 From - Spending review Topic 3]]+Dataset[[#This Row],[2025/26 From - Spending review Topic 4]]+Dataset[[#This Row],[2025/26 From - Other reallocations]]","v":0},{"$f":"Dataset[[#This Row],[2026/27 From - Spending review Topic 1]]+Dataset[[#This Row],[2026/27 From - Spending review Topic 2]]+Dataset[[#This Row],[2026/27 From - Spending review Topic 3]]+Dataset[[#This Row],[2026/27 From - Spending review Topic 4]]+Dataset[[#This Row],[2026/27 From - Other reallocations]]","v":0},{"$f":"Dataset[[#This Row],[2024/25 To - Spending review Topic 1]]+Dataset[[#This Row],[2024/25 To - Spending review Topic 2]]+Dataset[[#This Row],[2024/25 To - Spending review Topic 3]]+Dataset[[#This Row],[2024/25 To - Spending review Topic 4]]+Dataset[[#This Row],[2024/25 To - Other reallocations]]","v":0},{"$f":"Dataset[[#This Row],[2025/26 To - Spending review Topic 1]]+Dataset[[#This Row],[2025/26 To - Spending review Topic 2]]+Dataset[[#This Row],[2025/26 To - Spending review Topic 3]]+Dataset[[#This Row],[2025/26 To - Spending review Topic 4]]+Dataset[[#This Row],[2025/26 To - Other reallocations]]","v":0},{"$f":"Dataset[[#This Row],[2026/27 To - Spending review Topic 1]]+Dataset[[#This Row],[2026/27 To - Spending review Topic 2]]+Dataset[[#This Row],[2026/27 To - Spending review Topic 3]]+Dataset[[#This Row],[2026/27 To - Spending review Topic 4]]+Dataset[[#This Row],[2026/27 To - Other reallocations]]","v":0},{"$f":"Dataset[[#This Row],[2024/25 Reduction]]+Dataset[[#This Row],[2024/25 From - Total]]","v":0},{"$f":"Dataset[[#This Row],[2025/26 Reduction]]+Dataset[[#This Row],[2025/26 From - Total]]","v":0},{"$f":"Dataset[[#This Row],[2026/27 Reduction]]+Dataset[[#This Row],[2026/27 From - Total]]","v":0},{"$f":"Dataset[[#This Row],[2023/24 Reduction]]","v":0},{"$f":"SUM(Dataset[[#This Row],[2024/25 Reduction]],Dataset[[#This Row],[2024/25 From - Total]],Dataset[[#This Row],[2024/25 To - Total]])","v":0},{"$f":"SUM(Dataset[[#This Row],[2025/26 Reduction]],Dataset[[#This Row],[2025/26 From - Total]],Dataset[[#This Row],[2025/26 To - Total]])","v":0},{"$f":"SUM(Dataset[[#This Row],[2026/27 Reduction]],Dataset[[#This Row],[2026/27 From - Total]],Dataset[[#This Row],[2026/27 To - Total]])","v":0},{"$f":"Dataset[[#This Row],[2023/24 Baseline]]+Dataset[[#This Row],[2023/24 Total change]]","v":23},{"$f":"Dataset[[#This Row],[2024/25 Baseline]]+Dataset[[#This Row],[2024/25 Total change]]","v":39},{"$f":"Dataset[[#This Row],[2025/26 Baseline]]+Dataset[[#This Row],[2025/26 Total change]]","v":54},{"$f":"Dataset[[#This Row],[2026/27 Baseline]]+Dataset[[#This Row],[2026/27 Total change]]","v":56}]
["NAT|Non-transfer item","26|Audit costs: External","2024_25","MTEF2024",26,3,3,44740,853,"26","03","03","044740","000853","26|03|03","01","01","02","06","06","01|01|02|06|06","National","Military Veterans","Empowerment and Stakeholder Management","Heritage, Memorials, Burials and Honours","Non-transfer item","Current","Current payments","Goods and services","Audit costs: External","Audit costs: External","Peace and security","Defence and state security","NAT",0,0,0,0,0,0,0,0,0,0,0,null,null,null,null,null,null,null,null,null,null,null,null,null,null,null,null,null,null,null,null,null,null,null,null,null,null,null,null,null,null,null,null,null,null,{"$f":"Dataset[[#This Row],[2024/25 From - Spending review Topic 1]]+Dataset[[#This Row],[2024/25 From - Spending review Topic 2]]+Dataset[[#This Row],[2024/25 From - Spending review Topic 3]]+Dataset[[#This Row],[2024/25 From - Spending review Topic 4]]+Dataset[[#This Row],[2024/25 From - Other reallocations]]","v":0},{"$f":"Dataset[[#This Row],[2025/26 From - Spending review Topic 1]]+Dataset[[#This Row],[2025/26 From - Spending review Topic 2]]+Dataset[[#This Row],[2025/26 From - Spending review Topic 3]]+Dataset[[#This Row],[2025/26 From - Spending review Topic 4]]+Dataset[[#This Row],[2025/26 From - Other reallocations]]","v":0},{"$f":"Dataset[[#This Row],[2026/27 From - Spending review Topic 1]]+Dataset[[#This Row],[2026/27 From - Spending review Topic 2]]+Dataset[[#This Row],[2026/27 From - Spending review Topic 3]]+Dataset[[#This Row],[2026/27 From - Spending review Topic 4]]+Dataset[[#This Row],[2026/27 From - Other reallocations]]","v":0},{"$f":"Dataset[[#This Row],[2024/25 To - Spending review Topic 1]]+Dataset[[#This Row],[2024/25 To - Spending review Topic 2]]+Dataset[[#This Row],[2024/25 To - Spending review Topic 3]]+Dataset[[#This Row],[2024/25 To - Spending review Topic 4]]+Dataset[[#This Row],[2024/25 To - Other reallocations]]","v":0},{"$f":"Dataset[[#This Row],[2025/26 To - Spending review Topic 1]]+Dataset[[#This Row],[2025/26 To - Spending review Topic 2]]+Dataset[[#This Row],[2025/26 To - Spending review Topic 3]]+Dataset[[#This Row],[2025/26 To - Spending review Topic 4]]+Dataset[[#This Row],[2025/26 To - Other reallocations]]","v":0},{"$f":"Dataset[[#This Row],[2026/27 To - Spending review Topic 1]]+Dataset[[#This Row],[2026/27 To - Spending review Topic 2]]+Dataset[[#This Row],[2026/27 To - Spending review Topic 3]]+Dataset[[#This Row],[2026/27 To - Spending review Topic 4]]+Dataset[[#This Row],[2026/27 To - Other reallocations]]","v":0},{"$f":"Dataset[[#This Row],[2024/25 Reduction]]+Dataset[[#This Row],[2024/25 From - Total]]","v":0},{"$f":"Dataset[[#This Row],[2025/26 Reduction]]+Dataset[[#This Row],[2025/26 From - Total]]","v":0},{"$f":"Dataset[[#This Row],[2026/27 Reduction]]+Dataset[[#This Row],[2026/27 From - Total]]","v":0},{"$f":"Dataset[[#This Row],[2023/24 Reduction]]","v":0},{"$f":"SUM(Dataset[[#This Row],[2024/25 Reduction]],Dataset[[#This Row],[2024/25 From - Total]],Dataset[[#This Row],[2024/25 To - Total]])","v":0},{"$f":"SUM(Dataset[[#This Row],[2025/26 Reduction]],Dataset[[#This Row],[2025/26 From - Total]],Dataset[[#This Row],[2025/26 To - Total]])","v":0},{"$f":"SUM(Dataset[[#This Row],[2026/27 Reduction]],Dataset[[#This Row],[2026/27 From - Total]],Dataset[[#This Row],[2026/27 To - Total]])","v":0},{"$f":"Dataset[[#This Row],[2023/24 Baseline]]+Dataset[[#This Row],[2023/24 Total change]]","v":0},{"$f":"Dataset[[#This Row],[2024/25 Baseline]]+Dataset[[#This Row],[2024/25 Total change]]","v":0},{"$f":"Dataset[[#This Row],[2025/26 Baseline]]+Dataset[[#This Row],[2025/26 Total change]]","v":0},{"$f":"Dataset[[#This Row],[2026/27 Baseline]]+Dataset[[#This Row],[2026/27 Total change]]","v":0}]
["NAT|Non-transfer item","26|Bursaries: Employees","2024_25","MTEF2024",26,3,3,44741,854,"26","03","03","044741","000854","26|03|03","01","01","02","07","07","01|01|02|07|07","National","Military Veterans","Empowerment and Stakeholder Management","Heritage, Memorials, Burials and Honours","Non-transfer item","Current","Current payments","Goods and services","Bursaries: Employees","Bursaries: Employees","Peace and security","Defence and state security","NAT",0,0,0,0,0,0,0,0,0,0,0,null,null,null,null,null,null,null,null,null,null,null,null,null,null,null,null,null,null,null,null,null,null,null,null,null,null,null,null,null,null,null,null,null,null,{"$f":"Dataset[[#This Row],[2024/25 From - Spending review Topic 1]]+Dataset[[#This Row],[2024/25 From - Spending review Topic 2]]+Dataset[[#This Row],[2024/25 From - Spending review Topic 3]]+Dataset[[#This Row],[2024/25 From - Spending review Topic 4]]+Dataset[[#This Row],[2024/25 From - Other reallocations]]","v":0},{"$f":"Dataset[[#This Row],[2025/26 From - Spending review Topic 1]]+Dataset[[#This Row],[2025/26 From - Spending review Topic 2]]+Dataset[[#This Row],[2025/26 From - Spending review Topic 3]]+Dataset[[#This Row],[2025/26 From - Spending review Topic 4]]+Dataset[[#This Row],[2025/26 From - Other reallocations]]","v":0},{"$f":"Dataset[[#This Row],[2026/27 From - Spending review Topic 1]]+Dataset[[#This Row],[2026/27 From - Spending review Topic 2]]+Dataset[[#This Row],[2026/27 From - Spending review Topic 3]]+Dataset[[#This Row],[2026/27 From - Spending review Topic 4]]+Dataset[[#This Row],[2026/27 From - Other reallocations]]","v":0},{"$f":"Dataset[[#This Row],[2024/25 To - Spending review Topic 1]]+Dataset[[#This Row],[2024/25 To - Spending review Topic 2]]+Dataset[[#This Row],[2024/25 To - Spending review Topic 3]]+Dataset[[#This Row],[2024/25 To - Spending review Topic 4]]+Dataset[[#This Row],[2024/25 To - Other reallocations]]","v":0},{"$f":"Dataset[[#This Row],[2025/26 To - Spending review Topic 1]]+Dataset[[#This Row],[2025/26 To - Spending review Topic 2]]+Dataset[[#This Row],[2025/26 To - Spending review Topic 3]]+Dataset[[#This Row],[2025/26 To - Spending review Topic 4]]+Dataset[[#This Row],[2025/26 To - Other reallocations]]","v":0},{"$f":"Dataset[[#This Row],[2026/27 To - Spending review Topic 1]]+Dataset[[#This Row],[2026/27 To - Spending review Topic 2]]+Dataset[[#This Row],[2026/27 To - Spending review Topic 3]]+Dataset[[#This Row],[2026/27 To - Spending review Topic 4]]+Dataset[[#This Row],[2026/27 To - Other reallocations]]","v":0},{"$f":"Dataset[[#This Row],[2024/25 Reduction]]+Dataset[[#This Row],[2024/25 From - Total]]","v":0},{"$f":"Dataset[[#This Row],[2025/26 Reduction]]+Dataset[[#This Row],[2025/26 From - Total]]","v":0},{"$f":"Dataset[[#This Row],[2026/27 Reduction]]+Dataset[[#This Row],[2026/27 From - Total]]","v":0},{"$f":"Dataset[[#This Row],[2023/24 Reduction]]","v":0},{"$f":"SUM(Dataset[[#This Row],[2024/25 Reduction]],Dataset[[#This Row],[2024/25 From - Total]],Dataset[[#This Row],[2024/25 To - Total]])","v":0},{"$f":"SUM(Dataset[[#This Row],[2025/26 Reduction]],Dataset[[#This Row],[2025/26 From - Total]],Dataset[[#This Row],[2025/26 To - Total]])","v":0},{"$f":"SUM(Dataset[[#This Row],[2026/27 Reduction]],Dataset[[#This Row],[2026/27 From - Total]],Dataset[[#This Row],[2026/27 To - Total]])","v":0},{"$f":"Dataset[[#This Row],[2023/24 Baseline]]+Dataset[[#This Row],[2023/24 Total change]]","v":0},{"$f":"Dataset[[#This Row],[2024/25 Baseline]]+Dataset[[#This Row],[2024/25 Total change]]","v":0},{"$f":"Dataset[[#This Row],[2025/26 Baseline]]+Dataset[[#This Row],[2025/26 Total change]]","v":0},{"$f":"Dataset[[#This Row],[2026/27 Baseline]]+Dataset[[#This Row],[2026/27 Total change]]","v":0}]
["NAT|Non-transfer item","26|Catering: Departmental activities","2024_25","MTEF2024",26,3,3,44742,855,"26","03","03","044742","000855","26|03|03","01","01","02","08","08","01|01|02|08|08","National","Military Veterans","Empowerment and Stakeholder Management","Heritage, Memorials, Burials and Honours","Non-transfer item","Current","Current payments","Goods and services","Catering: Departmental activities","Catering: Departmental activities","Peace and security","Defence and state security","NAT",36,118,279,2030,1000,1000,0,520,580,620,648,null,null,null,null,null,null,null,null,null,null,null,null,null,null,null,null,null,null,null,null,null,null,null,null,null,null,null,null,null,null,null,null,null,null,{"$f":"Dataset[[#This Row],[2024/25 From - Spending review Topic 1]]+Dataset[[#This Row],[2024/25 From - Spending review Topic 2]]+Dataset[[#This Row],[2024/25 From - Spending review Topic 3]]+Dataset[[#This Row],[2024/25 From - Spending review Topic 4]]+Dataset[[#This Row],[2024/25 From - Other reallocations]]","v":0},{"$f":"Dataset[[#This Row],[2025/26 From - Spending review Topic 1]]+Dataset[[#This Row],[2025/26 From - Spending review Topic 2]]+Dataset[[#This Row],[2025/26 From - Spending review Topic 3]]+Dataset[[#This Row],[2025/26 From - Spending review Topic 4]]+Dataset[[#This Row],[2025/26 From - Other reallocations]]","v":0},{"$f":"Dataset[[#This Row],[2026/27 From - Spending review Topic 1]]+Dataset[[#This Row],[2026/27 From - Spending review Topic 2]]+Dataset[[#This Row],[2026/27 From - Spending review Topic 3]]+Dataset[[#This Row],[2026/27 From - Spending review Topic 4]]+Dataset[[#This Row],[2026/27 From - Other reallocations]]","v":0},{"$f":"Dataset[[#This Row],[2024/25 To - Spending review Topic 1]]+Dataset[[#This Row],[2024/25 To - Spending review Topic 2]]+Dataset[[#This Row],[2024/25 To - Spending review Topic 3]]+Dataset[[#This Row],[2024/25 To - Spending review Topic 4]]+Dataset[[#This Row],[2024/25 To - Other reallocations]]","v":0},{"$f":"Dataset[[#This Row],[2025/26 To - Spending review Topic 1]]+Dataset[[#This Row],[2025/26 To - Spending review Topic 2]]+Dataset[[#This Row],[2025/26 To - Spending review Topic 3]]+Dataset[[#This Row],[2025/26 To - Spending review Topic 4]]+Dataset[[#This Row],[2025/26 To - Other reallocations]]","v":0},{"$f":"Dataset[[#This Row],[2026/27 To - Spending review Topic 1]]+Dataset[[#This Row],[2026/27 To - Spending review Topic 2]]+Dataset[[#This Row],[2026/27 To - Spending review Topic 3]]+Dataset[[#This Row],[2026/27 To - Spending review Topic 4]]+Dataset[[#This Row],[2026/27 To - Other reallocations]]","v":0},{"$f":"Dataset[[#This Row],[2024/25 Reduction]]+Dataset[[#This Row],[2024/25 From - Total]]","v":0},{"$f":"Dataset[[#This Row],[2025/26 Reduction]]+Dataset[[#This Row],[2025/26 From - Total]]","v":0},{"$f":"Dataset[[#This Row],[2026/27 Reduction]]+Dataset[[#This Row],[2026/27 From - Total]]","v":0},{"$f":"Dataset[[#This Row],[2023/24 Reduction]]","v":0},{"$f":"SUM(Dataset[[#This Row],[2024/25 Reduction]],Dataset[[#This Row],[2024/25 From - Total]],Dataset[[#This Row],[2024/25 To - Total]])","v":0},{"$f":"SUM(Dataset[[#This Row],[2025/26 Reduction]],Dataset[[#This Row],[2025/26 From - Total]],Dataset[[#This Row],[2025/26 To - Total]])","v":0},{"$f":"SUM(Dataset[[#This Row],[2026/27 Reduction]],Dataset[[#This Row],[2026/27 From - Total]],Dataset[[#This Row],[2026/27 To - Total]])","v":0},{"$f":"Dataset[[#This Row],[2023/24 Baseline]]+Dataset[[#This Row],[2023/24 Total change]]","v":520},{"$f":"Dataset[[#This Row],[2024/25 Baseline]]+Dataset[[#This Row],[2024/25 Total change]]","v":580},{"$f":"Dataset[[#This Row],[2025/26 Baseline]]+Dataset[[#This Row],[2025/26 Total change]]","v":620},{"$f":"Dataset[[#This Row],[2026/27 Baseline]]+Dataset[[#This Row],[2026/27 Total change]]","v":648}]
["NAT|Non-transfer item","26|Communication (G&S)","2024_25","MTEF2024",26,3,3,44743,856,"26","03","03","044743","000856","26|03|03","01","01","02","09","09","01|01|02|09|09","National","Military Veterans","Empowerment and Stakeholder Management","Heritage, Memorials, Burials and Honours","Non-transfer item","Current","Current payments","Goods and services","Communication (G&S)","Communication (G&S)","Peace and security","Defence and state security","NAT",0,0,0,0,0,0,0,0,0,0,0,null,null,null,null,null,null,null,null,null,null,null,null,null,null,null,null,null,null,null,null,null,null,null,null,null,null,null,null,null,null,null,null,null,null,{"$f":"Dataset[[#This Row],[2024/25 From - Spending review Topic 1]]+Dataset[[#This Row],[2024/25 From - Spending review Topic 2]]+Dataset[[#This Row],[2024/25 From - Spending review Topic 3]]+Dataset[[#This Row],[2024/25 From - Spending review Topic 4]]+Dataset[[#This Row],[2024/25 From - Other reallocations]]","v":0},{"$f":"Dataset[[#This Row],[2025/26 From - Spending review Topic 1]]+Dataset[[#This Row],[2025/26 From - Spending review Topic 2]]+Dataset[[#This Row],[2025/26 From - Spending review Topic 3]]+Dataset[[#This Row],[2025/26 From - Spending review Topic 4]]+Dataset[[#This Row],[2025/26 From - Other reallocations]]","v":0},{"$f":"Dataset[[#This Row],[2026/27 From - Spending review Topic 1]]+Dataset[[#This Row],[2026/27 From - Spending review Topic 2]]+Dataset[[#This Row],[2026/27 From - Spending review Topic 3]]+Dataset[[#This Row],[2026/27 From - Spending review Topic 4]]+Dataset[[#This Row],[2026/27 From - Other reallocations]]","v":0},{"$f":"Dataset[[#This Row],[2024/25 To - Spending review Topic 1]]+Dataset[[#This Row],[2024/25 To - Spending review Topic 2]]+Dataset[[#This Row],[2024/25 To - Spending review Topic 3]]+Dataset[[#This Row],[2024/25 To - Spending review Topic 4]]+Dataset[[#This Row],[2024/25 To - Other reallocations]]","v":0},{"$f":"Dataset[[#This Row],[2025/26 To - Spending review Topic 1]]+Dataset[[#This Row],[2025/26 To - Spending review Topic 2]]+Dataset[[#This Row],[2025/26 To - Spending review Topic 3]]+Dataset[[#This Row],[2025/26 To - Spending review Topic 4]]+Dataset[[#This Row],[2025/26 To - Other reallocations]]","v":0},{"$f":"Dataset[[#This Row],[2026/27 To - Spending review Topic 1]]+Dataset[[#This Row],[2026/27 To - Spending review Topic 2]]+Dataset[[#This Row],[2026/27 To - Spending review Topic 3]]+Dataset[[#This Row],[2026/27 To - Spending review Topic 4]]+Dataset[[#This Row],[2026/27 To - Other reallocations]]","v":0},{"$f":"Dataset[[#This Row],[2024/25 Reduction]]+Dataset[[#This Row],[2024/25 From - Total]]","v":0},{"$f":"Dataset[[#This Row],[2025/26 Reduction]]+Dataset[[#This Row],[2025/26 From - Total]]","v":0},{"$f":"Dataset[[#This Row],[2026/27 Reduction]]+Dataset[[#This Row],[2026/27 From - Total]]","v":0},{"$f":"Dataset[[#This Row],[2023/24 Reduction]]","v":0},{"$f":"SUM(Dataset[[#This Row],[2024/25 Reduction]],Dataset[[#This Row],[2024/25 From - Total]],Dataset[[#This Row],[2024/25 To - Total]])","v":0},{"$f":"SUM(Dataset[[#This Row],[2025/26 Reduction]],Dataset[[#This Row],[2025/26 From - Total]],Dataset[[#This Row],[2025/26 To - Total]])","v":0},{"$f":"SUM(Dataset[[#This Row],[2026/27 Reduction]],Dataset[[#This Row],[2026/27 From - Total]],Dataset[[#This Row],[2026/27 To - Total]])","v":0},{"$f":"Dataset[[#This Row],[2023/24 Baseline]]+Dataset[[#This Row],[2023/24 Total change]]","v":0},{"$f":"Dataset[[#This Row],[2024/25 Baseline]]+Dataset[[#This Row],[2024/25 Total change]]","v":0},{"$f":"Dataset[[#This Row],[2025/26 Baseline]]+Dataset[[#This Row],[2025/26 Total change]]","v":0},{"$f":"Dataset[[#This Row],[2026/27 Baseline]]+Dataset[[#This Row],[2026/27 Total change]]","v":0}]
["NAT|Non-transfer item","26|Computer services","2024_25","MTEF2024",26,3,3,44744,857,"26","03","03","044744","000857","26|03|03","01","01","02","10","10","01|01|02|10|10","National","Military Veterans","Empowerment and Stakeholder Management","Heritage, Memorials, Burials and Honours","Non-transfer item","Current","Current payments","Goods and services","Computer services","Computer services","Peace and security","Defence and state security","NAT",0,0,7,0,0,0,0,0,0,0,0,null,null,null,null,null,null,null,null,null,null,null,null,null,null,null,null,null,null,null,null,null,null,null,null,null,null,null,null,null,null,null,null,null,null,{"$f":"Dataset[[#This Row],[2024/25 From - Spending review Topic 1]]+Dataset[[#This Row],[2024/25 From - Spending review Topic 2]]+Dataset[[#This Row],[2024/25 From - Spending review Topic 3]]+Dataset[[#This Row],[2024/25 From - Spending review Topic 4]]+Dataset[[#This Row],[2024/25 From - Other reallocations]]","v":0},{"$f":"Dataset[[#This Row],[2025/26 From - Spending review Topic 1]]+Dataset[[#This Row],[2025/26 From - Spending review Topic 2]]+Dataset[[#This Row],[2025/26 From - Spending review Topic 3]]+Dataset[[#This Row],[2025/26 From - Spending review Topic 4]]+Dataset[[#This Row],[2025/26 From - Other reallocations]]","v":0},{"$f":"Dataset[[#This Row],[2026/27 From - Spending review Topic 1]]+Dataset[[#This Row],[2026/27 From - Spending review Topic 2]]+Dataset[[#This Row],[2026/27 From - Spending review Topic 3]]+Dataset[[#This Row],[2026/27 From - Spending review Topic 4]]+Dataset[[#This Row],[2026/27 From - Other reallocations]]","v":0},{"$f":"Dataset[[#This Row],[2024/25 To - Spending review Topic 1]]+Dataset[[#This Row],[2024/25 To - Spending review Topic 2]]+Dataset[[#This Row],[2024/25 To - Spending review Topic 3]]+Dataset[[#This Row],[2024/25 To - Spending review Topic 4]]+Dataset[[#This Row],[2024/25 To - Other reallocations]]","v":0},{"$f":"Dataset[[#This Row],[2025/26 To - Spending review Topic 1]]+Dataset[[#This Row],[2025/26 To - Spending review Topic 2]]+Dataset[[#This Row],[2025/26 To - Spending review Topic 3]]+Dataset[[#This Row],[2025/26 To - Spending review Topic 4]]+Dataset[[#This Row],[2025/26 To - Other reallocations]]","v":0},{"$f":"Dataset[[#This Row],[2026/27 To - Spending review Topic 1]]+Dataset[[#This Row],[2026/27 To - Spending review Topic 2]]+Dataset[[#This Row],[2026/27 To - Spending review Topic 3]]+Dataset[[#This Row],[2026/27 To - Spending review Topic 4]]+Dataset[[#This Row],[2026/27 To - Other reallocations]]","v":0},{"$f":"Dataset[[#This Row],[2024/25 Reduction]]+Dataset[[#This Row],[2024/25 From - Total]]","v":0},{"$f":"Dataset[[#This Row],[2025/26 Reduction]]+Dataset[[#This Row],[2025/26 From - Total]]","v":0},{"$f":"Dataset[[#This Row],[2026/27 Reduction]]+Dataset[[#This Row],[2026/27 From - Total]]","v":0},{"$f":"Dataset[[#This Row],[2023/24 Reduction]]","v":0},{"$f":"SUM(Dataset[[#This Row],[2024/25 Reduction]],Dataset[[#This Row],[2024/25 From - Total]],Dataset[[#This Row],[2024/25 To - Total]])","v":0},{"$f":"SUM(Dataset[[#This Row],[2025/26 Reduction]],Dataset[[#This Row],[2025/26 From - Total]],Dataset[[#This Row],[2025/26 To - Total]])","v":0},{"$f":"SUM(Dataset[[#This Row],[2026/27 Reduction]],Dataset[[#This Row],[2026/27 From - Total]],Dataset[[#This Row],[2026/27 To - Total]])","v":0},{"$f":"Dataset[[#This Row],[2023/24 Baseline]]+Dataset[[#This Row],[2023/24 Total change]]","v":0},{"$f":"Dataset[[#This Row],[2024/25 Baseline]]+Dataset[[#This Row],[2024/25 Total change]]","v":0},{"$f":"Dataset[[#This Row],[2025/26 Baseline]]+Dataset[[#This Row],[2025/26 Total change]]","v":0},{"$f":"Dataset[[#This Row],[2026/27 Baseline]]+Dataset[[#This Row],[2026/27 Total change]]","v":0}]
["NAT|Non-transfer item","26|Consultants: Business and advisory services","2024_25","MTEF2024",26,3,3,44745,858,"26","03","03","044745","000858","26|03|03","01","01","02","11","11","01|01|02|11|11","National","Military Veterans","Empowerment and Stakeholder Management","Heritage, Memorials, Burials and Honours","Non-transfer item","Current","Current payments","Goods and services","Consultants: Business and advisory services","Consultants: Business and advisory services","Peace and security","Defence and state security","NAT",0,0,0,0,0,0,0,0,0,0,0,null,null,null,null,null,null,null,null,null,null,null,null,null,null,null,null,null,null,null,null,null,null,null,null,null,null,null,null,null,null,null,null,null,null,{"$f":"Dataset[[#This Row],[2024/25 From - Spending review Topic 1]]+Dataset[[#This Row],[2024/25 From - Spending review Topic 2]]+Dataset[[#This Row],[2024/25 From - Spending review Topic 3]]+Dataset[[#This Row],[2024/25 From - Spending review Topic 4]]+Dataset[[#This Row],[2024/25 From - Other reallocations]]","v":0},{"$f":"Dataset[[#This Row],[2025/26 From - Spending review Topic 1]]+Dataset[[#This Row],[2025/26 From - Spending review Topic 2]]+Dataset[[#This Row],[2025/26 From - Spending review Topic 3]]+Dataset[[#This Row],[2025/26 From - Spending review Topic 4]]+Dataset[[#This Row],[2025/26 From - Other reallocations]]","v":0},{"$f":"Dataset[[#This Row],[2026/27 From - Spending review Topic 1]]+Dataset[[#This Row],[2026/27 From - Spending review Topic 2]]+Dataset[[#This Row],[2026/27 From - Spending review Topic 3]]+Dataset[[#This Row],[2026/27 From - Spending review Topic 4]]+Dataset[[#This Row],[2026/27 From - Other reallocations]]","v":0},{"$f":"Dataset[[#This Row],[2024/25 To - Spending review Topic 1]]+Dataset[[#This Row],[2024/25 To - Spending review Topic 2]]+Dataset[[#This Row],[2024/25 To - Spending review Topic 3]]+Dataset[[#This Row],[2024/25 To - Spending review Topic 4]]+Dataset[[#This Row],[2024/25 To - Other reallocations]]","v":0},{"$f":"Dataset[[#This Row],[2025/26 To - Spending review Topic 1]]+Dataset[[#This Row],[2025/26 To - Spending review Topic 2]]+Dataset[[#This Row],[2025/26 To - Spending review Topic 3]]+Dataset[[#This Row],[2025/26 To - Spending review Topic 4]]+Dataset[[#This Row],[2025/26 To - Other reallocations]]","v":0},{"$f":"Dataset[[#This Row],[2026/27 To - Spending review Topic 1]]+Dataset[[#This Row],[2026/27 To - Spending review Topic 2]]+Dataset[[#This Row],[2026/27 To - Spending review Topic 3]]+Dataset[[#This Row],[2026/27 To - Spending review Topic 4]]+Dataset[[#This Row],[2026/27 To - Other reallocations]]","v":0},{"$f":"Dataset[[#This Row],[2024/25 Reduction]]+Dataset[[#This Row],[2024/25 From - Total]]","v":0},{"$f":"Dataset[[#This Row],[2025/26 Reduction]]+Dataset[[#This Row],[2025/26 From - Total]]","v":0},{"$f":"Dataset[[#This Row],[2026/27 Reduction]]+Dataset[[#This Row],[2026/27 From - Total]]","v":0},{"$f":"Dataset[[#This Row],[2023/24 Reduction]]","v":0},{"$f":"SUM(Dataset[[#This Row],[2024/25 Reduction]],Dataset[[#This Row],[2024/25 From - Total]],Dataset[[#This Row],[2024/25 To - Total]])","v":0},{"$f":"SUM(Dataset[[#This Row],[2025/26 Reduction]],Dataset[[#This Row],[2025/26 From - Total]],Dataset[[#This Row],[2025/26 To - Total]])","v":0},{"$f":"SUM(Dataset[[#This Row],[2026/27 Reduction]],Dataset[[#This Row],[2026/27 From - Total]],Dataset[[#This Row],[2026/27 To - Total]])","v":0},{"$f":"Dataset[[#This Row],[2023/24 Baseline]]+Dataset[[#This Row],[2023/24 Total change]]","v":0},{"$f":"Dataset[[#This Row],[2024/25 Baseline]]+Dataset[[#This Row],[2024/25 Total change]]","v":0},{"$f":"Dataset[[#This Row],[2025/26 Baseline]]+Dataset[[#This Row],[2025/26 Total change]]","v":0},{"$f":"Dataset[[#This Row],[2026/27 Baseline]]+Dataset[[#This Row],[2026/27 Total change]]","v":0}]
["NAT|Non-transfer item","26|Infrastructure and planning services","2024_25","MTEF2024",26,3,3,44746,859,"26","03","03","044746","000859","26|03|03","01","01","02","12","12","01|01|02|12|12","National","Military Veterans","Empowerment and Stakeholder Management","Heritage, Memorials, Burials and Honours","Non-transfer item","Current","Current payments","Goods and services","Infrastructure and planning services","Infrastructure and planning services","Peace and security","Defence and state security","NAT",0,0,0,0,0,0,0,0,0,0,0,null,null,null,null,null,null,null,null,null,null,null,null,null,null,null,null,null,null,null,null,null,null,null,null,null,null,null,null,null,null,null,null,null,null,{"$f":"Dataset[[#This Row],[2024/25 From - Spending review Topic 1]]+Dataset[[#This Row],[2024/25 From - Spending review Topic 2]]+Dataset[[#This Row],[2024/25 From - Spending review Topic 3]]+Dataset[[#This Row],[2024/25 From - Spending review Topic 4]]+Dataset[[#This Row],[2024/25 From - Other reallocations]]","v":0},{"$f":"Dataset[[#This Row],[2025/26 From - Spending review Topic 1]]+Dataset[[#This Row],[2025/26 From - Spending review Topic 2]]+Dataset[[#This Row],[2025/26 From - Spending review Topic 3]]+Dataset[[#This Row],[2025/26 From - Spending review Topic 4]]+Dataset[[#This Row],[2025/26 From - Other reallocations]]","v":0},{"$f":"Dataset[[#This Row],[2026/27 From - Spending review Topic 1]]+Dataset[[#This Row],[2026/27 From - Spending review Topic 2]]+Dataset[[#This Row],[2026/27 From - Spending review Topic 3]]+Dataset[[#This Row],[2026/27 From - Spending review Topic 4]]+Dataset[[#This Row],[2026/27 From - Other reallocations]]","v":0},{"$f":"Dataset[[#This Row],[2024/25 To - Spending review Topic 1]]+Dataset[[#This Row],[2024/25 To - Spending review Topic 2]]+Dataset[[#This Row],[2024/25 To - Spending review Topic 3]]+Dataset[[#This Row],[2024/25 To - Spending review Topic 4]]+Dataset[[#This Row],[2024/25 To - Other reallocations]]","v":0},{"$f":"Dataset[[#This Row],[2025/26 To - Spending review Topic 1]]+Dataset[[#This Row],[2025/26 To - Spending review Topic 2]]+Dataset[[#This Row],[2025/26 To - Spending review Topic 3]]+Dataset[[#This Row],[2025/26 To - Spending review Topic 4]]+Dataset[[#This Row],[2025/26 To - Other reallocations]]","v":0},{"$f":"Dataset[[#This Row],[2026/27 To - Spending review Topic 1]]+Dataset[[#This Row],[2026/27 To - Spending review Topic 2]]+Dataset[[#This Row],[2026/27 To - Spending review Topic 3]]+Dataset[[#This Row],[2026/27 To - Spending review Topic 4]]+Dataset[[#This Row],[2026/27 To - Other reallocations]]","v":0},{"$f":"Dataset[[#This Row],[2024/25 Reduction]]+Dataset[[#This Row],[2024/25 From - Total]]","v":0},{"$f":"Dataset[[#This Row],[2025/26 Reduction]]+Dataset[[#This Row],[2025/26 From - Total]]","v":0},{"$f":"Dataset[[#This Row],[2026/27 Reduction]]+Dataset[[#This Row],[2026/27 From - Total]]","v":0},{"$f":"Dataset[[#This Row],[2023/24 Reduction]]","v":0},{"$f":"SUM(Dataset[[#This Row],[2024/25 Reduction]],Dataset[[#This Row],[2024/25 From - Total]],Dataset[[#This Row],[2024/25 To - Total]])","v":0},{"$f":"SUM(Dataset[[#This Row],[2025/26 Reduction]],Dataset[[#This Row],[2025/26 From - Total]],Dataset[[#This Row],[2025/26 To - Total]])","v":0},{"$f":"SUM(Dataset[[#This Row],[2026/27 Reduction]],Dataset[[#This Row],[2026/27 From - Total]],Dataset[[#This Row],[2026/27 To - Total]])","v":0},{"$f":"Dataset[[#This Row],[2023/24 Baseline]]+Dataset[[#This Row],[2023/24 Total change]]","v":0},{"$f":"Dataset[[#This Row],[2024/25 Baseline]]+Dataset[[#This Row],[2024/25 Total change]]","v":0},{"$f":"Dataset[[#This Row],[2025/26 Baseline]]+Dataset[[#This Row],[2025/26 Total change]]","v":0},{"$f":"Dataset[[#This Row],[2026/27 Baseline]]+Dataset[[#This Row],[2026/27 Total change]]","v":0}]
["NAT|Non-transfer item","26|Laboratory services","2024_25","MTEF2024",26,3,3,44747,860,"26","03","03","044747","000860","26|03|03","01","01","02","13","13","01|01|02|13|13","National","Military Veterans","Empowerment and Stakeholder Management","Heritage, Memorials, Burials and Honours","Non-transfer item","Current","Current payments","Goods and services","Laboratory services","Laboratory services","Peace and security","Defence and state security","NAT",0,0,0,0,0,0,0,0,0,0,0,null,null,null,null,null,null,null,null,null,null,null,null,null,null,null,null,null,null,null,null,null,null,null,null,null,null,null,null,null,null,null,null,null,null,{"$f":"Dataset[[#This Row],[2024/25 From - Spending review Topic 1]]+Dataset[[#This Row],[2024/25 From - Spending review Topic 2]]+Dataset[[#This Row],[2024/25 From - Spending review Topic 3]]+Dataset[[#This Row],[2024/25 From - Spending review Topic 4]]+Dataset[[#This Row],[2024/25 From - Other reallocations]]","v":0},{"$f":"Dataset[[#This Row],[2025/26 From - Spending review Topic 1]]+Dataset[[#This Row],[2025/26 From - Spending review Topic 2]]+Dataset[[#This Row],[2025/26 From - Spending review Topic 3]]+Dataset[[#This Row],[2025/26 From - Spending review Topic 4]]+Dataset[[#This Row],[2025/26 From - Other reallocations]]","v":0},{"$f":"Dataset[[#This Row],[2026/27 From - Spending review Topic 1]]+Dataset[[#This Row],[2026/27 From - Spending review Topic 2]]+Dataset[[#This Row],[2026/27 From - Spending review Topic 3]]+Dataset[[#This Row],[2026/27 From - Spending review Topic 4]]+Dataset[[#This Row],[2026/27 From - Other reallocations]]","v":0},{"$f":"Dataset[[#This Row],[2024/25 To - Spending review Topic 1]]+Dataset[[#This Row],[2024/25 To - Spending review Topic 2]]+Dataset[[#This Row],[2024/25 To - Spending review Topic 3]]+Dataset[[#This Row],[2024/25 To - Spending review Topic 4]]+Dataset[[#This Row],[2024/25 To - Other reallocations]]","v":0},{"$f":"Dataset[[#This Row],[2025/26 To - Spending review Topic 1]]+Dataset[[#This Row],[2025/26 To - Spending review Topic 2]]+Dataset[[#This Row],[2025/26 To - Spending review Topic 3]]+Dataset[[#This Row],[2025/26 To - Spending review Topic 4]]+Dataset[[#This Row],[2025/26 To - Other reallocations]]","v":0},{"$f":"Dataset[[#This Row],[2026/27 To - Spending review Topic 1]]+Dataset[[#This Row],[2026/27 To - Spending review Topic 2]]+Dataset[[#This Row],[2026/27 To - Spending review Topic 3]]+Dataset[[#This Row],[2026/27 To - Spending review Topic 4]]+Dataset[[#This Row],[2026/27 To - Other reallocations]]","v":0},{"$f":"Dataset[[#This Row],[2024/25 Reduction]]+Dataset[[#This Row],[2024/25 From - Total]]","v":0},{"$f":"Dataset[[#This Row],[2025/26 Reduction]]+Dataset[[#This Row],[2025/26 From - Total]]","v":0},{"$f":"Dataset[[#This Row],[2026/27 Reduction]]+Dataset[[#This Row],[2026/27 From - Total]]","v":0},{"$f":"Dataset[[#This Row],[2023/24 Reduction]]","v":0},{"$f":"SUM(Dataset[[#This Row],[2024/25 Reduction]],Dataset[[#This Row],[2024/25 From - Total]],Dataset[[#This Row],[2024/25 To - Total]])","v":0},{"$f":"SUM(Dataset[[#This Row],[2025/26 Reduction]],Dataset[[#This Row],[2025/26 From - Total]],Dataset[[#This Row],[2025/26 To - Total]])","v":0},{"$f":"SUM(Dataset[[#This Row],[2026/27 Reduction]],Dataset[[#This Row],[2026/27 From - Total]],Dataset[[#This Row],[2026/27 To - Total]])","v":0},{"$f":"Dataset[[#This Row],[2023/24 Baseline]]+Dataset[[#This Row],[2023/24 Total change]]","v":0},{"$f":"Dataset[[#This Row],[2024/25 Baseline]]+Dataset[[#This Row],[2024/25 Total change]]","v":0},{"$f":"Dataset[[#This Row],[2025/26 Baseline]]+Dataset[[#This Row],[2025/26 Total change]]","v":0},{"$f":"Dataset[[#This Row],[2026/27 Baseline]]+Dataset[[#This Row],[2026/27 Total change]]","v":0}]
["NAT|Non-transfer item","26|Legal services (G&S)","2024_25","MTEF2024",26,3,3,44748,861,"26","03","03","044748","000861","26|03|03","01","01","02","14","14","01|01|02|14|14","National","Military Veterans","Empowerment and Stakeholder Management","Heritage, Memorials, Burials and Honours","Non-transfer item","Current","Current payments","Goods and services","Legal services (G&S)","Legal services (G&S)","Peace and security","Defence and state security","NAT",0,0,0,0,0,0,0,0,0,0,0,null,null,null,null,null,null,null,null,null,null,null,null,null,null,null,null,null,null,null,null,null,null,null,null,null,null,null,null,null,null,null,null,null,null,{"$f":"Dataset[[#This Row],[2024/25 From - Spending review Topic 1]]+Dataset[[#This Row],[2024/25 From - Spending review Topic 2]]+Dataset[[#This Row],[2024/25 From - Spending review Topic 3]]+Dataset[[#This Row],[2024/25 From - Spending review Topic 4]]+Dataset[[#This Row],[2024/25 From - Other reallocations]]","v":0},{"$f":"Dataset[[#This Row],[2025/26 From - Spending review Topic 1]]+Dataset[[#This Row],[2025/26 From - Spending review Topic 2]]+Dataset[[#This Row],[2025/26 From - Spending review Topic 3]]+Dataset[[#This Row],[2025/26 From - Spending review Topic 4]]+Dataset[[#This Row],[2025/26 From - Other reallocations]]","v":0},{"$f":"Dataset[[#This Row],[2026/27 From - Spending review Topic 1]]+Dataset[[#This Row],[2026/27 From - Spending review Topic 2]]+Dataset[[#This Row],[2026/27 From - Spending review Topic 3]]+Dataset[[#This Row],[2026/27 From - Spending review Topic 4]]+Dataset[[#This Row],[2026/27 From - Other reallocations]]","v":0},{"$f":"Dataset[[#This Row],[2024/25 To - Spending review Topic 1]]+Dataset[[#This Row],[2024/25 To - Spending review Topic 2]]+Dataset[[#This Row],[2024/25 To - Spending review Topic 3]]+Dataset[[#This Row],[2024/25 To - Spending review Topic 4]]+Dataset[[#This Row],[2024/25 To - Other reallocations]]","v":0},{"$f":"Dataset[[#This Row],[2025/26 To - Spending review Topic 1]]+Dataset[[#This Row],[2025/26 To - Spending review Topic 2]]+Dataset[[#This Row],[2025/26 To - Spending review Topic 3]]+Dataset[[#This Row],[2025/26 To - Spending review Topic 4]]+Dataset[[#This Row],[2025/26 To - Other reallocations]]","v":0},{"$f":"Dataset[[#This Row],[2026/27 To - Spending review Topic 1]]+Dataset[[#This Row],[2026/27 To - Spending review Topic 2]]+Dataset[[#This Row],[2026/27 To - Spending review Topic 3]]+Dataset[[#This Row],[2026/27 To - Spending review Topic 4]]+Dataset[[#This Row],[2026/27 To - Other reallocations]]","v":0},{"$f":"Dataset[[#This Row],[2024/25 Reduction]]+Dataset[[#This Row],[2024/25 From - Total]]","v":0},{"$f":"Dataset[[#This Row],[2025/26 Reduction]]+Dataset[[#This Row],[2025/26 From - Total]]","v":0},{"$f":"Dataset[[#This Row],[2026/27 Reduction]]+Dataset[[#This Row],[2026/27 From - Total]]","v":0},{"$f":"Dataset[[#This Row],[2023/24 Reduction]]","v":0},{"$f":"SUM(Dataset[[#This Row],[2024/25 Reduction]],Dataset[[#This Row],[2024/25 From - Total]],Dataset[[#This Row],[2024/25 To - Total]])","v":0},{"$f":"SUM(Dataset[[#This Row],[2025/26 Reduction]],Dataset[[#This Row],[2025/26 From - Total]],Dataset[[#This Row],[2025/26 To - Total]])","v":0},{"$f":"SUM(Dataset[[#This Row],[2026/27 Reduction]],Dataset[[#This Row],[2026/27 From - Total]],Dataset[[#This Row],[2026/27 To - Total]])","v":0},{"$f":"Dataset[[#This Row],[2023/24 Baseline]]+Dataset[[#This Row],[2023/24 Total change]]","v":0},{"$f":"Dataset[[#This Row],[2024/25 Baseline]]+Dataset[[#This Row],[2024/25 Total change]]","v":0},{"$f":"Dataset[[#This Row],[2025/26 Baseline]]+Dataset[[#This Row],[2025/26 Total change]]","v":0},{"$f":"Dataset[[#This Row],[2026/27 Baseline]]+Dataset[[#This Row],[2026/27 Total change]]","v":0}]
["NAT|Non-transfer item","26|Science and technological services","2024_25","MTEF2024",26,3,3,44749,862,"26","03","03","044749","000862","26|03|03","01","01","02","15","15","01|01|02|15|15","National","Military Veterans","Empowerment and Stakeholder Management","Heritage, Memorials, Burials and Honours","Non-transfer item","Current","Current payments","Goods and services","Science and technological services","Science and technological services","Peace and security","Defence and state security","NAT",0,0,0,0,0,0,0,0,0,0,0,null,null,null,null,null,null,null,null,null,null,null,null,null,null,null,null,null,null,null,null,null,null,null,null,null,null,null,null,null,null,null,null,null,null,{"$f":"Dataset[[#This Row],[2024/25 From - Spending review Topic 1]]+Dataset[[#This Row],[2024/25 From - Spending review Topic 2]]+Dataset[[#This Row],[2024/25 From - Spending review Topic 3]]+Dataset[[#This Row],[2024/25 From - Spending review Topic 4]]+Dataset[[#This Row],[2024/25 From - Other reallocations]]","v":0},{"$f":"Dataset[[#This Row],[2025/26 From - Spending review Topic 1]]+Dataset[[#This Row],[2025/26 From - Spending review Topic 2]]+Dataset[[#This Row],[2025/26 From - Spending review Topic 3]]+Dataset[[#This Row],[2025/26 From - Spending review Topic 4]]+Dataset[[#This Row],[2025/26 From - Other reallocations]]","v":0},{"$f":"Dataset[[#This Row],[2026/27 From - Spending review Topic 1]]+Dataset[[#This Row],[2026/27 From - Spending review Topic 2]]+Dataset[[#This Row],[2026/27 From - Spending review Topic 3]]+Dataset[[#This Row],[2026/27 From - Spending review Topic 4]]+Dataset[[#This Row],[2026/27 From - Other reallocations]]","v":0},{"$f":"Dataset[[#This Row],[2024/25 To - Spending review Topic 1]]+Dataset[[#This Row],[2024/25 To - Spending review Topic 2]]+Dataset[[#This Row],[2024/25 To - Spending review Topic 3]]+Dataset[[#This Row],[2024/25 To - Spending review Topic 4]]+Dataset[[#This Row],[2024/25 To - Other reallocations]]","v":0},{"$f":"Dataset[[#This Row],[2025/26 To - Spending review Topic 1]]+Dataset[[#This Row],[2025/26 To - Spending review Topic 2]]+Dataset[[#This Row],[2025/26 To - Spending review Topic 3]]+Dataset[[#This Row],[2025/26 To - Spending review Topic 4]]+Dataset[[#This Row],[2025/26 To - Other reallocations]]","v":0},{"$f":"Dataset[[#This Row],[2026/27 To - Spending review Topic 1]]+Dataset[[#This Row],[2026/27 To - Spending review Topic 2]]+Dataset[[#This Row],[2026/27 To - Spending review Topic 3]]+Dataset[[#This Row],[2026/27 To - Spending review Topic 4]]+Dataset[[#This Row],[2026/27 To - Other reallocations]]","v":0},{"$f":"Dataset[[#This Row],[2024/25 Reduction]]+Dataset[[#This Row],[2024/25 From - Total]]","v":0},{"$f":"Dataset[[#This Row],[2025/26 Reduction]]+Dataset[[#This Row],[2025/26 From - Total]]","v":0},{"$f":"Dataset[[#This Row],[2026/27 Reduction]]+Dataset[[#This Row],[2026/27 From - Total]]","v":0},{"$f":"Dataset[[#This Row],[2023/24 Reduction]]","v":0},{"$f":"SUM(Dataset[[#This Row],[2024/25 Reduction]],Dataset[[#This Row],[2024/25 From - Total]],Dataset[[#This Row],[2024/25 To - Total]])","v":0},{"$f":"SUM(Dataset[[#This Row],[2025/26 Reduction]],Dataset[[#This Row],[2025/26 From - Total]],Dataset[[#This Row],[2025/26 To - Total]])","v":0},{"$f":"SUM(Dataset[[#This Row],[2026/27 Reduction]],Dataset[[#This Row],[2026/27 From - Total]],Dataset[[#This Row],[2026/27 To - Total]])","v":0},{"$f":"Dataset[[#This Row],[2023/24 Baseline]]+Dataset[[#This Row],[2023/24 Total change]]","v":0},{"$f":"Dataset[[#This Row],[2024/25 Baseline]]+Dataset[[#This Row],[2024/25 Total change]]","v":0},{"$f":"Dataset[[#This Row],[2025/26 Baseline]]+Dataset[[#This Row],[2025/26 Total change]]","v":0},{"$f":"Dataset[[#This Row],[2026/27 Baseline]]+Dataset[[#This Row],[2026/27 Total change]]","v":0}]
["NAT|Non-transfer item","26|Contractors","2024_25","MTEF2024",26,3,3,44750,863,"26","03","03","044750","000863","26|03|03","01","01","02","16","16","01|01|02|16|16","National","Military Veterans","Empowerment and Stakeholder Management","Heritage, Memorials, Burials and Honours","Non-transfer item","Current","Current payments","Goods and services","Contractors","Contractors","Peace and security","Defence and state security","NAT",7,23,51,230,130,130,0,1030,1121,1172,1226,null,null,null,null,null,null,null,null,null,null,null,null,null,null,null,null,null,null,null,null,null,null,null,null,null,null,null,null,null,null,null,null,null,null,{"$f":"Dataset[[#This Row],[2024/25 From - Spending review Topic 1]]+Dataset[[#This Row],[2024/25 From - Spending review Topic 2]]+Dataset[[#This Row],[2024/25 From - Spending review Topic 3]]+Dataset[[#This Row],[2024/25 From - Spending review Topic 4]]+Dataset[[#This Row],[2024/25 From - Other reallocations]]","v":0},{"$f":"Dataset[[#This Row],[2025/26 From - Spending review Topic 1]]+Dataset[[#This Row],[2025/26 From - Spending review Topic 2]]+Dataset[[#This Row],[2025/26 From - Spending review Topic 3]]+Dataset[[#This Row],[2025/26 From - Spending review Topic 4]]+Dataset[[#This Row],[2025/26 From - Other reallocations]]","v":0},{"$f":"Dataset[[#This Row],[2026/27 From - Spending review Topic 1]]+Dataset[[#This Row],[2026/27 From - Spending review Topic 2]]+Dataset[[#This Row],[2026/27 From - Spending review Topic 3]]+Dataset[[#This Row],[2026/27 From - Spending review Topic 4]]+Dataset[[#This Row],[2026/27 From - Other reallocations]]","v":0},{"$f":"Dataset[[#This Row],[2024/25 To - Spending review Topic 1]]+Dataset[[#This Row],[2024/25 To - Spending review Topic 2]]+Dataset[[#This Row],[2024/25 To - Spending review Topic 3]]+Dataset[[#This Row],[2024/25 To - Spending review Topic 4]]+Dataset[[#This Row],[2024/25 To - Other reallocations]]","v":0},{"$f":"Dataset[[#This Row],[2025/26 To - Spending review Topic 1]]+Dataset[[#This Row],[2025/26 To - Spending review Topic 2]]+Dataset[[#This Row],[2025/26 To - Spending review Topic 3]]+Dataset[[#This Row],[2025/26 To - Spending review Topic 4]]+Dataset[[#This Row],[2025/26 To - Other reallocations]]","v":0},{"$f":"Dataset[[#This Row],[2026/27 To - Spending review Topic 1]]+Dataset[[#This Row],[2026/27 To - Spending review Topic 2]]+Dataset[[#This Row],[2026/27 To - Spending review Topic 3]]+Dataset[[#This Row],[2026/27 To - Spending review Topic 4]]+Dataset[[#This Row],[2026/27 To - Other reallocations]]","v":0},{"$f":"Dataset[[#This Row],[2024/25 Reduction]]+Dataset[[#This Row],[2024/25 From - Total]]","v":0},{"$f":"Dataset[[#This Row],[2025/26 Reduction]]+Dataset[[#This Row],[2025/26 From - Total]]","v":0},{"$f":"Dataset[[#This Row],[2026/27 Reduction]]+Dataset[[#This Row],[2026/27 From - Total]]","v":0},{"$f":"Dataset[[#This Row],[2023/24 Reduction]]","v":0},{"$f":"SUM(Dataset[[#This Row],[2024/25 Reduction]],Dataset[[#This Row],[2024/25 From - Total]],Dataset[[#This Row],[2024/25 To - Total]])","v":0},{"$f":"SUM(Dataset[[#This Row],[2025/26 Reduction]],Dataset[[#This Row],[2025/26 From - Total]],Dataset[[#This Row],[2025/26 To - Total]])","v":0},{"$f":"SUM(Dataset[[#This Row],[2026/27 Reduction]],Dataset[[#This Row],[2026/27 From - Total]],Dataset[[#This Row],[2026/27 To - Total]])","v":0},{"$f":"Dataset[[#This Row],[2023/24 Baseline]]+Dataset[[#This Row],[2023/24 Total change]]","v":1030},{"$f":"Dataset[[#This Row],[2024/25 Baseline]]+Dataset[[#This Row],[2024/25 Total change]]","v":1121},{"$f":"Dataset[[#This Row],[2025/26 Baseline]]+Dataset[[#This Row],[2025/26 Total change]]","v":1172},{"$f":"Dataset[[#This Row],[2026/27 Baseline]]+Dataset[[#This Row],[2026/27 Total change]]","v":1226}]
["NAT|Non-transfer item","26|Agency and support/outsourced services","2024_25","MTEF2024",26,3,3,44751,864,"26","03","03","044751","000864","26|03|03","01","01","02","17","17","01|01|02|17|17","National","Military Veterans","Empowerment and Stakeholder Management","Heritage, Memorials, Burials and Honours","Non-transfer item","Current","Current payments","Goods and services","Agency and support/outsourced services","Agency and support/outsourced services","Peace and security","Defence and state security","NAT",2874,2780,4174,6320,6320,6320,0,10319,11633,11930,12477,null,null,null,null,null,null,null,null,null,null,null,null,null,null,null,null,null,null,null,null,null,null,null,null,null,null,null,null,null,null,null,null,null,null,{"$f":"Dataset[[#This Row],[2024/25 From - Spending review Topic 1]]+Dataset[[#This Row],[2024/25 From - Spending review Topic 2]]+Dataset[[#This Row],[2024/25 From - Spending review Topic 3]]+Dataset[[#This Row],[2024/25 From - Spending review Topic 4]]+Dataset[[#This Row],[2024/25 From - Other reallocations]]","v":0},{"$f":"Dataset[[#This Row],[2025/26 From - Spending review Topic 1]]+Dataset[[#This Row],[2025/26 From - Spending review Topic 2]]+Dataset[[#This Row],[2025/26 From - Spending review Topic 3]]+Dataset[[#This Row],[2025/26 From - Spending review Topic 4]]+Dataset[[#This Row],[2025/26 From - Other reallocations]]","v":0},{"$f":"Dataset[[#This Row],[2026/27 From - Spending review Topic 1]]+Dataset[[#This Row],[2026/27 From - Spending review Topic 2]]+Dataset[[#This Row],[2026/27 From - Spending review Topic 3]]+Dataset[[#This Row],[2026/27 From - Spending review Topic 4]]+Dataset[[#This Row],[2026/27 From - Other reallocations]]","v":0},{"$f":"Dataset[[#This Row],[2024/25 To - Spending review Topic 1]]+Dataset[[#This Row],[2024/25 To - Spending review Topic 2]]+Dataset[[#This Row],[2024/25 To - Spending review Topic 3]]+Dataset[[#This Row],[2024/25 To - Spending review Topic 4]]+Dataset[[#This Row],[2024/25 To - Other reallocations]]","v":0},{"$f":"Dataset[[#This Row],[2025/26 To - Spending review Topic 1]]+Dataset[[#This Row],[2025/26 To - Spending review Topic 2]]+Dataset[[#This Row],[2025/26 To - Spending review Topic 3]]+Dataset[[#This Row],[2025/26 To - Spending review Topic 4]]+Dataset[[#This Row],[2025/26 To - Other reallocations]]","v":0},{"$f":"Dataset[[#This Row],[2026/27 To - Spending review Topic 1]]+Dataset[[#This Row],[2026/27 To - Spending review Topic 2]]+Dataset[[#This Row],[2026/27 To - Spending review Topic 3]]+Dataset[[#This Row],[2026/27 To - Spending review Topic 4]]+Dataset[[#This Row],[2026/27 To - Other reallocations]]","v":0},{"$f":"Dataset[[#This Row],[2024/25 Reduction]]+Dataset[[#This Row],[2024/25 From - Total]]","v":0},{"$f":"Dataset[[#This Row],[2025/26 Reduction]]+Dataset[[#This Row],[2025/26 From - Total]]","v":0},{"$f":"Dataset[[#This Row],[2026/27 Reduction]]+Dataset[[#This Row],[2026/27 From - Total]]","v":0},{"$f":"Dataset[[#This Row],[2023/24 Reduction]]","v":0},{"$f":"SUM(Dataset[[#This Row],[2024/25 Reduction]],Dataset[[#This Row],[2024/25 From - Total]],Dataset[[#This Row],[2024/25 To - Total]])","v":0},{"$f":"SUM(Dataset[[#This Row],[2025/26 Reduction]],Dataset[[#This Row],[2025/26 From - Total]],Dataset[[#This Row],[2025/26 To - Total]])","v":0},{"$f":"SUM(Dataset[[#This Row],[2026/27 Reduction]],Dataset[[#This Row],[2026/27 From - Total]],Dataset[[#This Row],[2026/27 To - Total]])","v":0},{"$f":"Dataset[[#This Row],[2023/24 Baseline]]+Dataset[[#This Row],[2023/24 Total change]]","v":10319},{"$f":"Dataset[[#This Row],[2024/25 Baseline]]+Dataset[[#This Row],[2024/25 Total change]]","v":11633},{"$f":"Dataset[[#This Row],[2025/26 Baseline]]+Dataset[[#This Row],[2025/26 Total change]]","v":11930},{"$f":"Dataset[[#This Row],[2026/27 Baseline]]+Dataset[[#This Row],[2026/27 Total change]]","v":12477}]
["NAT|Non-transfer item","26|Entertainment","2024_25","MTEF2024",26,3,3,44752,865,"26","03","03","044752","000865","26|03|03","01","01","02","18","18","01|01|02|18|18","National","Military Veterans","Empowerment and Stakeholder Management","Heritage, Memorials, Burials and Honours","Non-transfer item","Current","Current payments","Goods and services","Entertainment","Entertainment","Peace and security","Defence and state security","NAT",0,0,0,0,0,0,0,0,0,0,0,null,null,null,null,null,null,null,null,null,null,null,null,null,null,null,null,null,null,null,null,null,null,null,null,null,null,null,null,null,null,null,null,null,null,{"$f":"Dataset[[#This Row],[2024/25 From - Spending review Topic 1]]+Dataset[[#This Row],[2024/25 From - Spending review Topic 2]]+Dataset[[#This Row],[2024/25 From - Spending review Topic 3]]+Dataset[[#This Row],[2024/25 From - Spending review Topic 4]]+Dataset[[#This Row],[2024/25 From - Other reallocations]]","v":0},{"$f":"Dataset[[#This Row],[2025/26 From - Spending review Topic 1]]+Dataset[[#This Row],[2025/26 From - Spending review Topic 2]]+Dataset[[#This Row],[2025/26 From - Spending review Topic 3]]+Dataset[[#This Row],[2025/26 From - Spending review Topic 4]]+Dataset[[#This Row],[2025/26 From - Other reallocations]]","v":0},{"$f":"Dataset[[#This Row],[2026/27 From - Spending review Topic 1]]+Dataset[[#This Row],[2026/27 From - Spending review Topic 2]]+Dataset[[#This Row],[2026/27 From - Spending review Topic 3]]+Dataset[[#This Row],[2026/27 From - Spending review Topic 4]]+Dataset[[#This Row],[2026/27 From - Other reallocations]]","v":0},{"$f":"Dataset[[#This Row],[2024/25 To - Spending review Topic 1]]+Dataset[[#This Row],[2024/25 To - Spending review Topic 2]]+Dataset[[#This Row],[2024/25 To - Spending review Topic 3]]+Dataset[[#This Row],[2024/25 To - Spending review Topic 4]]+Dataset[[#This Row],[2024/25 To - Other reallocations]]","v":0},{"$f":"Dataset[[#This Row],[2025/26 To - Spending review Topic 1]]+Dataset[[#This Row],[2025/26 To - Spending review Topic 2]]+Dataset[[#This Row],[2025/26 To - Spending review Topic 3]]+Dataset[[#This Row],[2025/26 To - Spending review Topic 4]]+Dataset[[#This Row],[2025/26 To - Other reallocations]]","v":0},{"$f":"Dataset[[#This Row],[2026/27 To - Spending review Topic 1]]+Dataset[[#This Row],[2026/27 To - Spending review Topic 2]]+Dataset[[#This Row],[2026/27 To - Spending review Topic 3]]+Dataset[[#This Row],[2026/27 To - Spending review Topic 4]]+Dataset[[#This Row],[2026/27 To - Other reallocations]]","v":0},{"$f":"Dataset[[#This Row],[2024/25 Reduction]]+Dataset[[#This Row],[2024/25 From - Total]]","v":0},{"$f":"Dataset[[#This Row],[2025/26 Reduction]]+Dataset[[#This Row],[2025/26 From - Total]]","v":0},{"$f":"Dataset[[#This Row],[2026/27 Reduction]]+Dataset[[#This Row],[2026/27 From - Total]]","v":0},{"$f":"Dataset[[#This Row],[2023/24 Reduction]]","v":0},{"$f":"SUM(Dataset[[#This Row],[2024/25 Reduction]],Dataset[[#This Row],[2024/25 From - Total]],Dataset[[#This Row],[2024/25 To - Total]])","v":0},{"$f":"SUM(Dataset[[#This Row],[2025/26 Reduction]],Dataset[[#This Row],[2025/26 From - Total]],Dataset[[#This Row],[2025/26 To - Total]])","v":0},{"$f":"SUM(Dataset[[#This Row],[2026/27 Reduction]],Dataset[[#This Row],[2026/27 From - Total]],Dataset[[#This Row],[2026/27 To - Total]])","v":0},{"$f":"Dataset[[#This Row],[2023/24 Baseline]]+Dataset[[#This Row],[2023/24 Total change]]","v":0},{"$f":"Dataset[[#This Row],[2024/25 Baseline]]+Dataset[[#This Row],[2024/25 Total change]]","v":0},{"$f":"Dataset[[#This Row],[2025/26 Baseline]]+Dataset[[#This Row],[2025/26 Total change]]","v":0},{"$f":"Dataset[[#This Row],[2026/27 Baseline]]+Dataset[[#This Row],[2026/27 Total change]]","v":0}]
["NAT|Non-transfer item","26|Fleet services (including government motor transport)","2024_25","MTEF2024",26,3,3,44753,866,"26","03","03","044753","000866","26|03|03","01","01","02","19","19","01|01|02|19|19","National","Military Veterans","Empowerment and Stakeholder Management","Heritage, Memorials, Burials and Honours","Non-transfer item","Current","Current payments","Goods and services","Fleet services (including government motor transport)","Fleet services (including government motor transport)","Peace and security","Defence and state security","NAT",0,0,0,0,0,0,0,0,0,0,0,null,null,null,null,null,null,null,null,null,null,null,null,null,null,null,null,null,null,null,null,null,null,null,null,null,null,null,null,null,null,null,null,null,null,{"$f":"Dataset[[#This Row],[2024/25 From - Spending review Topic 1]]+Dataset[[#This Row],[2024/25 From - Spending review Topic 2]]+Dataset[[#This Row],[2024/25 From - Spending review Topic 3]]+Dataset[[#This Row],[2024/25 From - Spending review Topic 4]]+Dataset[[#This Row],[2024/25 From - Other reallocations]]","v":0},{"$f":"Dataset[[#This Row],[2025/26 From - Spending review Topic 1]]+Dataset[[#This Row],[2025/26 From - Spending review Topic 2]]+Dataset[[#This Row],[2025/26 From - Spending review Topic 3]]+Dataset[[#This Row],[2025/26 From - Spending review Topic 4]]+Dataset[[#This Row],[2025/26 From - Other reallocations]]","v":0},{"$f":"Dataset[[#This Row],[2026/27 From - Spending review Topic 1]]+Dataset[[#This Row],[2026/27 From - Spending review Topic 2]]+Dataset[[#This Row],[2026/27 From - Spending review Topic 3]]+Dataset[[#This Row],[2026/27 From - Spending review Topic 4]]+Dataset[[#This Row],[2026/27 From - Other reallocations]]","v":0},{"$f":"Dataset[[#This Row],[2024/25 To - Spending review Topic 1]]+Dataset[[#This Row],[2024/25 To - Spending review Topic 2]]+Dataset[[#This Row],[2024/25 To - Spending review Topic 3]]+Dataset[[#This Row],[2024/25 To - Spending review Topic 4]]+Dataset[[#This Row],[2024/25 To - Other reallocations]]","v":0},{"$f":"Dataset[[#This Row],[2025/26 To - Spending review Topic 1]]+Dataset[[#This Row],[2025/26 To - Spending review Topic 2]]+Dataset[[#This Row],[2025/26 To - Spending review Topic 3]]+Dataset[[#This Row],[2025/26 To - Spending review Topic 4]]+Dataset[[#This Row],[2025/26 To - Other reallocations]]","v":0},{"$f":"Dataset[[#This Row],[2026/27 To - Spending review Topic 1]]+Dataset[[#This Row],[2026/27 To - Spending review Topic 2]]+Dataset[[#This Row],[2026/27 To - Spending review Topic 3]]+Dataset[[#This Row],[2026/27 To - Spending review Topic 4]]+Dataset[[#This Row],[2026/27 To - Other reallocations]]","v":0},{"$f":"Dataset[[#This Row],[2024/25 Reduction]]+Dataset[[#This Row],[2024/25 From - Total]]","v":0},{"$f":"Dataset[[#This Row],[2025/26 Reduction]]+Dataset[[#This Row],[2025/26 From - Total]]","v":0},{"$f":"Dataset[[#This Row],[2026/27 Reduction]]+Dataset[[#This Row],[2026/27 From - Total]]","v":0},{"$f":"Dataset[[#This Row],[2023/24 Reduction]]","v":0},{"$f":"SUM(Dataset[[#This Row],[2024/25 Reduction]],Dataset[[#This Row],[2024/25 From - Total]],Dataset[[#This Row],[2024/25 To - Total]])","v":0},{"$f":"SUM(Dataset[[#This Row],[2025/26 Reduction]],Dataset[[#This Row],[2025/26 From - Total]],Dataset[[#This Row],[2025/26 To - Total]])","v":0},{"$f":"SUM(Dataset[[#This Row],[2026/27 Reduction]],Dataset[[#This Row],[2026/27 From - Total]],Dataset[[#This Row],[2026/27 To - Total]])","v":0},{"$f":"Dataset[[#This Row],[2023/24 Baseline]]+Dataset[[#This Row],[2023/24 Total change]]","v":0},{"$f":"Dataset[[#This Row],[2024/25 Baseline]]+Dataset[[#This Row],[2024/25 Total change]]","v":0},{"$f":"Dataset[[#This Row],[2025/26 Baseline]]+Dataset[[#This Row],[2025/26 Total change]]","v":0},{"$f":"Dataset[[#This Row],[2026/27 Baseline]]+Dataset[[#This Row],[2026/27 Total change]]","v":0}]
["NAT|Non-transfer item","26|Housing","2024_25","MTEF2024",26,3,3,44754,867,"26","03","03","044754","000867","26|03|03","01","01","02","20","20","01|01|02|20|20","National","Military Veterans","Empowerment and Stakeholder Management","Heritage, Memorials, Burials and Honours","Non-transfer item","Current","Current payments","Goods and services","Housing","Housing","Peace and security","Defence and state security","NAT",0,0,0,0,0,0,0,0,0,0,0,null,null,null,null,null,null,null,null,null,null,null,null,null,null,null,null,null,null,null,null,null,null,null,null,null,null,null,null,null,null,null,null,null,null,{"$f":"Dataset[[#This Row],[2024/25 From - Spending review Topic 1]]+Dataset[[#This Row],[2024/25 From - Spending review Topic 2]]+Dataset[[#This Row],[2024/25 From - Spending review Topic 3]]+Dataset[[#This Row],[2024/25 From - Spending review Topic 4]]+Dataset[[#This Row],[2024/25 From - Other reallocations]]","v":0},{"$f":"Dataset[[#This Row],[2025/26 From - Spending review Topic 1]]+Dataset[[#This Row],[2025/26 From - Spending review Topic 2]]+Dataset[[#This Row],[2025/26 From - Spending review Topic 3]]+Dataset[[#This Row],[2025/26 From - Spending review Topic 4]]+Dataset[[#This Row],[2025/26 From - Other reallocations]]","v":0},{"$f":"Dataset[[#This Row],[2026/27 From - Spending review Topic 1]]+Dataset[[#This Row],[2026/27 From - Spending review Topic 2]]+Dataset[[#This Row],[2026/27 From - Spending review Topic 3]]+Dataset[[#This Row],[2026/27 From - Spending review Topic 4]]+Dataset[[#This Row],[2026/27 From - Other reallocations]]","v":0},{"$f":"Dataset[[#This Row],[2024/25 To - Spending review Topic 1]]+Dataset[[#This Row],[2024/25 To - Spending review Topic 2]]+Dataset[[#This Row],[2024/25 To - Spending review Topic 3]]+Dataset[[#This Row],[2024/25 To - Spending review Topic 4]]+Dataset[[#This Row],[2024/25 To - Other reallocations]]","v":0},{"$f":"Dataset[[#This Row],[2025/26 To - Spending review Topic 1]]+Dataset[[#This Row],[2025/26 To - Spending review Topic 2]]+Dataset[[#This Row],[2025/26 To - Spending review Topic 3]]+Dataset[[#This Row],[2025/26 To - Spending review Topic 4]]+Dataset[[#This Row],[2025/26 To - Other reallocations]]","v":0},{"$f":"Dataset[[#This Row],[2026/27 To - Spending review Topic 1]]+Dataset[[#This Row],[2026/27 To - Spending review Topic 2]]+Dataset[[#This Row],[2026/27 To - Spending review Topic 3]]+Dataset[[#This Row],[2026/27 To - Spending review Topic 4]]+Dataset[[#This Row],[2026/27 To - Other reallocations]]","v":0},{"$f":"Dataset[[#This Row],[2024/25 Reduction]]+Dataset[[#This Row],[2024/25 From - Total]]","v":0},{"$f":"Dataset[[#This Row],[2025/26 Reduction]]+Dataset[[#This Row],[2025/26 From - Total]]","v":0},{"$f":"Dataset[[#This Row],[2026/27 Reduction]]+Dataset[[#This Row],[2026/27 From - Total]]","v":0},{"$f":"Dataset[[#This Row],[2023/24 Reduction]]","v":0},{"$f":"SUM(Dataset[[#This Row],[2024/25 Reduction]],Dataset[[#This Row],[2024/25 From - Total]],Dataset[[#This Row],[2024/25 To - Total]])","v":0},{"$f":"SUM(Dataset[[#This Row],[2025/26 Reduction]],Dataset[[#This Row],[2025/26 From - Total]],Dataset[[#This Row],[2025/26 To - Total]])","v":0},{"$f":"SUM(Dataset[[#This Row],[2026/27 Reduction]],Dataset[[#This Row],[2026/27 From - Total]],Dataset[[#This Row],[2026/27 To - Total]])","v":0},{"$f":"Dataset[[#This Row],[2023/24 Baseline]]+Dataset[[#This Row],[2023/24 Total change]]","v":0},{"$f":"Dataset[[#This Row],[2024/25 Baseline]]+Dataset[[#This Row],[2024/25 Total change]]","v":0},{"$f":"Dataset[[#This Row],[2025/26 Baseline]]+Dataset[[#This Row],[2025/26 Total change]]","v":0},{"$f":"Dataset[[#This Row],[2026/27 Baseline]]+Dataset[[#This Row],[2026/27 Total change]]","v":0}]
["NAT|Non-transfer item","26|Inventory: Clothing material and accessories","2024_25","MTEF2024",26,3,3,44755,868,"26","03","03","044755","000868","26|03|03","01","01","02","21","21","01|01|02|21|21","National","Military Veterans","Empowerment and Stakeholder Management","Heritage, Memorials, Burials and Honours","Non-transfer item","Current","Current payments","Goods and services","Inventory: Clothing material and accessories","Inventory: Clothing material and accessories","Peace and security","Defence and state security","NAT",0,0,0,0,0,0,0,0,0,0,0,null,null,null,null,null,null,null,null,null,null,null,null,null,null,null,null,null,null,null,null,null,null,null,null,null,null,null,null,null,null,null,null,null,null,{"$f":"Dataset[[#This Row],[2024/25 From - Spending review Topic 1]]+Dataset[[#This Row],[2024/25 From - Spending review Topic 2]]+Dataset[[#This Row],[2024/25 From - Spending review Topic 3]]+Dataset[[#This Row],[2024/25 From - Spending review Topic 4]]+Dataset[[#This Row],[2024/25 From - Other reallocations]]","v":0},{"$f":"Dataset[[#This Row],[2025/26 From - Spending review Topic 1]]+Dataset[[#This Row],[2025/26 From - Spending review Topic 2]]+Dataset[[#This Row],[2025/26 From - Spending review Topic 3]]+Dataset[[#This Row],[2025/26 From - Spending review Topic 4]]+Dataset[[#This Row],[2025/26 From - Other reallocations]]","v":0},{"$f":"Dataset[[#This Row],[2026/27 From - Spending review Topic 1]]+Dataset[[#This Row],[2026/27 From - Spending review Topic 2]]+Dataset[[#This Row],[2026/27 From - Spending review Topic 3]]+Dataset[[#This Row],[2026/27 From - Spending review Topic 4]]+Dataset[[#This Row],[2026/27 From - Other reallocations]]","v":0},{"$f":"Dataset[[#This Row],[2024/25 To - Spending review Topic 1]]+Dataset[[#This Row],[2024/25 To - Spending review Topic 2]]+Dataset[[#This Row],[2024/25 To - Spending review Topic 3]]+Dataset[[#This Row],[2024/25 To - Spending review Topic 4]]+Dataset[[#This Row],[2024/25 To - Other reallocations]]","v":0},{"$f":"Dataset[[#This Row],[2025/26 To - Spending review Topic 1]]+Dataset[[#This Row],[2025/26 To - Spending review Topic 2]]+Dataset[[#This Row],[2025/26 To - Spending review Topic 3]]+Dataset[[#This Row],[2025/26 To - Spending review Topic 4]]+Dataset[[#This Row],[2025/26 To - Other reallocations]]","v":0},{"$f":"Dataset[[#This Row],[2026/27 To - Spending review Topic 1]]+Dataset[[#This Row],[2026/27 To - Spending review Topic 2]]+Dataset[[#This Row],[2026/27 To - Spending review Topic 3]]+Dataset[[#This Row],[2026/27 To - Spending review Topic 4]]+Dataset[[#This Row],[2026/27 To - Other reallocations]]","v":0},{"$f":"Dataset[[#This Row],[2024/25 Reduction]]+Dataset[[#This Row],[2024/25 From - Total]]","v":0},{"$f":"Dataset[[#This Row],[2025/26 Reduction]]+Dataset[[#This Row],[2025/26 From - Total]]","v":0},{"$f":"Dataset[[#This Row],[2026/27 Reduction]]+Dataset[[#This Row],[2026/27 From - Total]]","v":0},{"$f":"Dataset[[#This Row],[2023/24 Reduction]]","v":0},{"$f":"SUM(Dataset[[#This Row],[2024/25 Reduction]],Dataset[[#This Row],[2024/25 From - Total]],Dataset[[#This Row],[2024/25 To - Total]])","v":0},{"$f":"SUM(Dataset[[#This Row],[2025/26 Reduction]],Dataset[[#This Row],[2025/26 From - Total]],Dataset[[#This Row],[2025/26 To - Total]])","v":0},{"$f":"SUM(Dataset[[#This Row],[2026/27 Reduction]],Dataset[[#This Row],[2026/27 From - Total]],Dataset[[#This Row],[2026/27 To - Total]])","v":0},{"$f":"Dataset[[#This Row],[2023/24 Baseline]]+Dataset[[#This Row],[2023/24 Total change]]","v":0},{"$f":"Dataset[[#This Row],[2024/25 Baseline]]+Dataset[[#This Row],[2024/25 Total change]]","v":0},{"$f":"Dataset[[#This Row],[2025/26 Baseline]]+Dataset[[#This Row],[2025/26 Total change]]","v":0},{"$f":"Dataset[[#This Row],[2026/27 Baseline]]+Dataset[[#This Row],[2026/27 Total change]]","v":0}]
["NAT|Non-transfer item","26|Inventory: Farming supplies","2024_25","MTEF2024",26,3,3,44756,869,"26","03","03","044756","000869","26|03|03","01","01","02","22","22","01|01|02|22|22","National","Military Veterans","Empowerment and Stakeholder Management","Heritage, Memorials, Burials and Honours","Non-transfer item","Current","Current payments","Goods and services","Inventory: Farming supplies","Inventory: Farming supplies","Peace and security","Defence and state security","NAT",0,0,0,0,0,0,0,0,0,0,0,null,null,null,null,null,null,null,null,null,null,null,null,null,null,null,null,null,null,null,null,null,null,null,null,null,null,null,null,null,null,null,null,null,null,{"$f":"Dataset[[#This Row],[2024/25 From - Spending review Topic 1]]+Dataset[[#This Row],[2024/25 From - Spending review Topic 2]]+Dataset[[#This Row],[2024/25 From - Spending review Topic 3]]+Dataset[[#This Row],[2024/25 From - Spending review Topic 4]]+Dataset[[#This Row],[2024/25 From - Other reallocations]]","v":0},{"$f":"Dataset[[#This Row],[2025/26 From - Spending review Topic 1]]+Dataset[[#This Row],[2025/26 From - Spending review Topic 2]]+Dataset[[#This Row],[2025/26 From - Spending review Topic 3]]+Dataset[[#This Row],[2025/26 From - Spending review Topic 4]]+Dataset[[#This Row],[2025/26 From - Other reallocations]]","v":0},{"$f":"Dataset[[#This Row],[2026/27 From - Spending review Topic 1]]+Dataset[[#This Row],[2026/27 From - Spending review Topic 2]]+Dataset[[#This Row],[2026/27 From - Spending review Topic 3]]+Dataset[[#This Row],[2026/27 From - Spending review Topic 4]]+Dataset[[#This Row],[2026/27 From - Other reallocations]]","v":0},{"$f":"Dataset[[#This Row],[2024/25 To - Spending review Topic 1]]+Dataset[[#This Row],[2024/25 To - Spending review Topic 2]]+Dataset[[#This Row],[2024/25 To - Spending review Topic 3]]+Dataset[[#This Row],[2024/25 To - Spending review Topic 4]]+Dataset[[#This Row],[2024/25 To - Other reallocations]]","v":0},{"$f":"Dataset[[#This Row],[2025/26 To - Spending review Topic 1]]+Dataset[[#This Row],[2025/26 To - Spending review Topic 2]]+Dataset[[#This Row],[2025/26 To - Spending review Topic 3]]+Dataset[[#This Row],[2025/26 To - Spending review Topic 4]]+Dataset[[#This Row],[2025/26 To - Other reallocations]]","v":0},{"$f":"Dataset[[#This Row],[2026/27 To - Spending review Topic 1]]+Dataset[[#This Row],[2026/27 To - Spending review Topic 2]]+Dataset[[#This Row],[2026/27 To - Spending review Topic 3]]+Dataset[[#This Row],[2026/27 To - Spending review Topic 4]]+Dataset[[#This Row],[2026/27 To - Other reallocations]]","v":0},{"$f":"Dataset[[#This Row],[2024/25 Reduction]]+Dataset[[#This Row],[2024/25 From - Total]]","v":0},{"$f":"Dataset[[#This Row],[2025/26 Reduction]]+Dataset[[#This Row],[2025/26 From - Total]]","v":0},{"$f":"Dataset[[#This Row],[2026/27 Reduction]]+Dataset[[#This Row],[2026/27 From - Total]]","v":0},{"$f":"Dataset[[#This Row],[2023/24 Reduction]]","v":0},{"$f":"SUM(Dataset[[#This Row],[2024/25 Reduction]],Dataset[[#This Row],[2024/25 From - Total]],Dataset[[#This Row],[2024/25 To - Total]])","v":0},{"$f":"SUM(Dataset[[#This Row],[2025/26 Reduction]],Dataset[[#This Row],[2025/26 From - Total]],Dataset[[#This Row],[2025/26 To - Total]])","v":0},{"$f":"SUM(Dataset[[#This Row],[2026/27 Reduction]],Dataset[[#This Row],[2026/27 From - Total]],Dataset[[#This Row],[2026/27 To - Total]])","v":0},{"$f":"Dataset[[#This Row],[2023/24 Baseline]]+Dataset[[#This Row],[2023/24 Total change]]","v":0},{"$f":"Dataset[[#This Row],[2024/25 Baseline]]+Dataset[[#This Row],[2024/25 Total change]]","v":0},{"$f":"Dataset[[#This Row],[2025/26 Baseline]]+Dataset[[#This Row],[2025/26 Total change]]","v":0},{"$f":"Dataset[[#This Row],[2026/27 Baseline]]+Dataset[[#This Row],[2026/27 Total change]]","v":0}]
["NAT|Non-transfer item","26|Inventory: Food and food supplies","2024_25","MTEF2024",26,3,3,44757,870,"26","03","03","044757","000870","26|03|03","01","01","02","23","23","01|01|02|23|23","National","Military Veterans","Empowerment and Stakeholder Management","Heritage, Memorials, Burials and Honours","Non-transfer item","Current","Current payments","Goods and services","Inventory: Food and food supplies","Inventory: Food and food supplies","Peace and security","Defence and state security","NAT",0,0,0,0,0,0,0,0,0,0,0,null,null,null,null,null,null,null,null,null,null,null,null,null,null,null,null,null,null,null,null,null,null,null,null,null,null,null,null,null,null,null,null,null,null,{"$f":"Dataset[[#This Row],[2024/25 From - Spending review Topic 1]]+Dataset[[#This Row],[2024/25 From - Spending review Topic 2]]+Dataset[[#This Row],[2024/25 From - Spending review Topic 3]]+Dataset[[#This Row],[2024/25 From - Spending review Topic 4]]+Dataset[[#This Row],[2024/25 From - Other reallocations]]","v":0},{"$f":"Dataset[[#This Row],[2025/26 From - Spending review Topic 1]]+Dataset[[#This Row],[2025/26 From - Spending review Topic 2]]+Dataset[[#This Row],[2025/26 From - Spending review Topic 3]]+Dataset[[#This Row],[2025/26 From - Spending review Topic 4]]+Dataset[[#This Row],[2025/26 From - Other reallocations]]","v":0},{"$f":"Dataset[[#This Row],[2026/27 From - Spending review Topic 1]]+Dataset[[#This Row],[2026/27 From - Spending review Topic 2]]+Dataset[[#This Row],[2026/27 From - Spending review Topic 3]]+Dataset[[#This Row],[2026/27 From - Spending review Topic 4]]+Dataset[[#This Row],[2026/27 From - Other reallocations]]","v":0},{"$f":"Dataset[[#This Row],[2024/25 To - Spending review Topic 1]]+Dataset[[#This Row],[2024/25 To - Spending review Topic 2]]+Dataset[[#This Row],[2024/25 To - Spending review Topic 3]]+Dataset[[#This Row],[2024/25 To - Spending review Topic 4]]+Dataset[[#This Row],[2024/25 To - Other reallocations]]","v":0},{"$f":"Dataset[[#This Row],[2025/26 To - Spending review Topic 1]]+Dataset[[#This Row],[2025/26 To - Spending review Topic 2]]+Dataset[[#This Row],[2025/26 To - Spending review Topic 3]]+Dataset[[#This Row],[2025/26 To - Spending review Topic 4]]+Dataset[[#This Row],[2025/26 To - Other reallocations]]","v":0},{"$f":"Dataset[[#This Row],[2026/27 To - Spending review Topic 1]]+Dataset[[#This Row],[2026/27 To - Spending review Topic 2]]+Dataset[[#This Row],[2026/27 To - Spending review Topic 3]]+Dataset[[#This Row],[2026/27 To - Spending review Topic 4]]+Dataset[[#This Row],[2026/27 To - Other reallocations]]","v":0},{"$f":"Dataset[[#This Row],[2024/25 Reduction]]+Dataset[[#This Row],[2024/25 From - Total]]","v":0},{"$f":"Dataset[[#This Row],[2025/26 Reduction]]+Dataset[[#This Row],[2025/26 From - Total]]","v":0},{"$f":"Dataset[[#This Row],[2026/27 Reduction]]+Dataset[[#This Row],[2026/27 From - Total]]","v":0},{"$f":"Dataset[[#This Row],[2023/24 Reduction]]","v":0},{"$f":"SUM(Dataset[[#This Row],[2024/25 Reduction]],Dataset[[#This Row],[2024/25 From - Total]],Dataset[[#This Row],[2024/25 To - Total]])","v":0},{"$f":"SUM(Dataset[[#This Row],[2025/26 Reduction]],Dataset[[#This Row],[2025/26 From - Total]],Dataset[[#This Row],[2025/26 To - Total]])","v":0},{"$f":"SUM(Dataset[[#This Row],[2026/27 Reduction]],Dataset[[#This Row],[2026/27 From - Total]],Dataset[[#This Row],[2026/27 To - Total]])","v":0},{"$f":"Dataset[[#This Row],[2023/24 Baseline]]+Dataset[[#This Row],[2023/24 Total change]]","v":0},{"$f":"Dataset[[#This Row],[2024/25 Baseline]]+Dataset[[#This Row],[2024/25 Total change]]","v":0},{"$f":"Dataset[[#This Row],[2025/26 Baseline]]+Dataset[[#This Row],[2025/26 Total change]]","v":0},{"$f":"Dataset[[#This Row],[2026/27 Baseline]]+Dataset[[#This Row],[2026/27 Total change]]","v":0}]
["NAT|Non-transfer item","26|Inventory: Fuel, oil and gas","2024_25","MTEF2024",26,3,3,44758,871,"26","03","03","044758","000871","26|03|03","01","01","02","24","24","01|01|02|24|24","National","Military Veterans","Empowerment and Stakeholder Management","Heritage, Memorials, Burials and Honours","Non-transfer item","Current","Current payments","Goods and services","Inventory: Fuel, oil and gas","Inventory: Fuel, oil and gas","Peace and security","Defence and state security","NAT",0,0,0,0,0,0,0,0,0,0,0,null,null,null,null,null,null,null,null,null,null,null,null,null,null,null,null,null,null,null,null,null,null,null,null,null,null,null,null,null,null,null,null,null,null,{"$f":"Dataset[[#This Row],[2024/25 From - Spending review Topic 1]]+Dataset[[#This Row],[2024/25 From - Spending review Topic 2]]+Dataset[[#This Row],[2024/25 From - Spending review Topic 3]]+Dataset[[#This Row],[2024/25 From - Spending review Topic 4]]+Dataset[[#This Row],[2024/25 From - Other reallocations]]","v":0},{"$f":"Dataset[[#This Row],[2025/26 From - Spending review Topic 1]]+Dataset[[#This Row],[2025/26 From - Spending review Topic 2]]+Dataset[[#This Row],[2025/26 From - Spending review Topic 3]]+Dataset[[#This Row],[2025/26 From - Spending review Topic 4]]+Dataset[[#This Row],[2025/26 From - Other reallocations]]","v":0},{"$f":"Dataset[[#This Row],[2026/27 From - Spending review Topic 1]]+Dataset[[#This Row],[2026/27 From - Spending review Topic 2]]+Dataset[[#This Row],[2026/27 From - Spending review Topic 3]]+Dataset[[#This Row],[2026/27 From - Spending review Topic 4]]+Dataset[[#This Row],[2026/27 From - Other reallocations]]","v":0},{"$f":"Dataset[[#This Row],[2024/25 To - Spending review Topic 1]]+Dataset[[#This Row],[2024/25 To - Spending review Topic 2]]+Dataset[[#This Row],[2024/25 To - Spending review Topic 3]]+Dataset[[#This Row],[2024/25 To - Spending review Topic 4]]+Dataset[[#This Row],[2024/25 To - Other reallocations]]","v":0},{"$f":"Dataset[[#This Row],[2025/26 To - Spending review Topic 1]]+Dataset[[#This Row],[2025/26 To - Spending review Topic 2]]+Dataset[[#This Row],[2025/26 To - Spending review Topic 3]]+Dataset[[#This Row],[2025/26 To - Spending review Topic 4]]+Dataset[[#This Row],[2025/26 To - Other reallocations]]","v":0},{"$f":"Dataset[[#This Row],[2026/27 To - Spending review Topic 1]]+Dataset[[#This Row],[2026/27 To - Spending review Topic 2]]+Dataset[[#This Row],[2026/27 To - Spending review Topic 3]]+Dataset[[#This Row],[2026/27 To - Spending review Topic 4]]+Dataset[[#This Row],[2026/27 To - Other reallocations]]","v":0},{"$f":"Dataset[[#This Row],[2024/25 Reduction]]+Dataset[[#This Row],[2024/25 From - Total]]","v":0},{"$f":"Dataset[[#This Row],[2025/26 Reduction]]+Dataset[[#This Row],[2025/26 From - Total]]","v":0},{"$f":"Dataset[[#This Row],[2026/27 Reduction]]+Dataset[[#This Row],[2026/27 From - Total]]","v":0},{"$f":"Dataset[[#This Row],[2023/24 Reduction]]","v":0},{"$f":"SUM(Dataset[[#This Row],[2024/25 Reduction]],Dataset[[#This Row],[2024/25 From - Total]],Dataset[[#This Row],[2024/25 To - Total]])","v":0},{"$f":"SUM(Dataset[[#This Row],[2025/26 Reduction]],Dataset[[#This Row],[2025/26 From - Total]],Dataset[[#This Row],[2025/26 To - Total]])","v":0},{"$f":"SUM(Dataset[[#This Row],[2026/27 Reduction]],Dataset[[#This Row],[2026/27 From - Total]],Dataset[[#This Row],[2026/27 To - Total]])","v":0},{"$f":"Dataset[[#This Row],[2023/24 Baseline]]+Dataset[[#This Row],[2023/24 Total change]]","v":0},{"$f":"Dataset[[#This Row],[2024/25 Baseline]]+Dataset[[#This Row],[2024/25 Total change]]","v":0},{"$f":"Dataset[[#This Row],[2025/26 Baseline]]+Dataset[[#This Row],[2025/26 Total change]]","v":0},{"$f":"Dataset[[#This Row],[2026/27 Baseline]]+Dataset[[#This Row],[2026/27 Total change]]","v":0}]
["NAT|Non-transfer item","26|Inventory: Learner and teacher support material","2024_25","MTEF2024",26,3,3,44759,872,"26","03","03","044759","000872","26|03|03","01","01","02","25","25","01|01|02|25|25","National","Military Veterans","Empowerment and Stakeholder Management","Heritage, Memorials, Burials and Honours","Non-transfer item","Current","Current payments","Goods and services","Inventory: Learner and teacher support material","Inventory: Learner and teacher support material","Peace and security","Defence and state security","NAT",0,0,0,0,0,0,0,0,0,0,0,null,null,null,null,null,null,null,null,null,null,null,null,null,null,null,null,null,null,null,null,null,null,null,null,null,null,null,null,null,null,null,null,null,null,{"$f":"Dataset[[#This Row],[2024/25 From - Spending review Topic 1]]+Dataset[[#This Row],[2024/25 From - Spending review Topic 2]]+Dataset[[#This Row],[2024/25 From - Spending review Topic 3]]+Dataset[[#This Row],[2024/25 From - Spending review Topic 4]]+Dataset[[#This Row],[2024/25 From - Other reallocations]]","v":0},{"$f":"Dataset[[#This Row],[2025/26 From - Spending review Topic 1]]+Dataset[[#This Row],[2025/26 From - Spending review Topic 2]]+Dataset[[#This Row],[2025/26 From - Spending review Topic 3]]+Dataset[[#This Row],[2025/26 From - Spending review Topic 4]]+Dataset[[#This Row],[2025/26 From - Other reallocations]]","v":0},{"$f":"Dataset[[#This Row],[2026/27 From - Spending review Topic 1]]+Dataset[[#This Row],[2026/27 From - Spending review Topic 2]]+Dataset[[#This Row],[2026/27 From - Spending review Topic 3]]+Dataset[[#This Row],[2026/27 From - Spending review Topic 4]]+Dataset[[#This Row],[2026/27 From - Other reallocations]]","v":0},{"$f":"Dataset[[#This Row],[2024/25 To - Spending review Topic 1]]+Dataset[[#This Row],[2024/25 To - Spending review Topic 2]]+Dataset[[#This Row],[2024/25 To - Spending review Topic 3]]+Dataset[[#This Row],[2024/25 To - Spending review Topic 4]]+Dataset[[#This Row],[2024/25 To - Other reallocations]]","v":0},{"$f":"Dataset[[#This Row],[2025/26 To - Spending review Topic 1]]+Dataset[[#This Row],[2025/26 To - Spending review Topic 2]]+Dataset[[#This Row],[2025/26 To - Spending review Topic 3]]+Dataset[[#This Row],[2025/26 To - Spending review Topic 4]]+Dataset[[#This Row],[2025/26 To - Other reallocations]]","v":0},{"$f":"Dataset[[#This Row],[2026/27 To - Spending review Topic 1]]+Dataset[[#This Row],[2026/27 To - Spending review Topic 2]]+Dataset[[#This Row],[2026/27 To - Spending review Topic 3]]+Dataset[[#This Row],[2026/27 To - Spending review Topic 4]]+Dataset[[#This Row],[2026/27 To - Other reallocations]]","v":0},{"$f":"Dataset[[#This Row],[2024/25 Reduction]]+Dataset[[#This Row],[2024/25 From - Total]]","v":0},{"$f":"Dataset[[#This Row],[2025/26 Reduction]]+Dataset[[#This Row],[2025/26 From - Total]]","v":0},{"$f":"Dataset[[#This Row],[2026/27 Reduction]]+Dataset[[#This Row],[2026/27 From - Total]]","v":0},{"$f":"Dataset[[#This Row],[2023/24 Reduction]]","v":0},{"$f":"SUM(Dataset[[#This Row],[2024/25 Reduction]],Dataset[[#This Row],[2024/25 From - Total]],Dataset[[#This Row],[2024/25 To - Total]])","v":0},{"$f":"SUM(Dataset[[#This Row],[2025/26 Reduction]],Dataset[[#This Row],[2025/26 From - Total]],Dataset[[#This Row],[2025/26 To - Total]])","v":0},{"$f":"SUM(Dataset[[#This Row],[2026/27 Reduction]],Dataset[[#This Row],[2026/27 From - Total]],Dataset[[#This Row],[2026/27 To - Total]])","v":0},{"$f":"Dataset[[#This Row],[2023/24 Baseline]]+Dataset[[#This Row],[2023/24 Total change]]","v":0},{"$f":"Dataset[[#This Row],[2024/25 Baseline]]+Dataset[[#This Row],[2024/25 Total change]]","v":0},{"$f":"Dataset[[#This Row],[2025/26 Baseline]]+Dataset[[#This Row],[2025/26 Total change]]","v":0},{"$f":"Dataset[[#This Row],[2026/27 Baseline]]+Dataset[[#This Row],[2026/27 Total change]]","v":0}]
["NAT|Non-transfer item","26|Inventory: Materials and supplies","2024_25","MTEF2024",26,3,3,44760,873,"26","03","03","044760","000873","26|03|03","01","01","02","26","26","01|01|02|26|26","National","Military Veterans","Empowerment and Stakeholder Management","Heritage, Memorials, Burials and Honours","Non-transfer item","Current","Current payments","Goods and services","Inventory: Materials and supplies","Inventory: Materials and supplies","Peace and security","Defence and state security","NAT",0,0,0,0,0,0,0,0,0,0,0,null,null,null,null,null,null,null,null,null,null,null,null,null,null,null,null,null,null,null,null,null,null,null,null,null,null,null,null,null,null,null,null,null,null,{"$f":"Dataset[[#This Row],[2024/25 From - Spending review Topic 1]]+Dataset[[#This Row],[2024/25 From - Spending review Topic 2]]+Dataset[[#This Row],[2024/25 From - Spending review Topic 3]]+Dataset[[#This Row],[2024/25 From - Spending review Topic 4]]+Dataset[[#This Row],[2024/25 From - Other reallocations]]","v":0},{"$f":"Dataset[[#This Row],[2025/26 From - Spending review Topic 1]]+Dataset[[#This Row],[2025/26 From - Spending review Topic 2]]+Dataset[[#This Row],[2025/26 From - Spending review Topic 3]]+Dataset[[#This Row],[2025/26 From - Spending review Topic 4]]+Dataset[[#This Row],[2025/26 From - Other reallocations]]","v":0},{"$f":"Dataset[[#This Row],[2026/27 From - Spending review Topic 1]]+Dataset[[#This Row],[2026/27 From - Spending review Topic 2]]+Dataset[[#This Row],[2026/27 From - Spending review Topic 3]]+Dataset[[#This Row],[2026/27 From - Spending review Topic 4]]+Dataset[[#This Row],[2026/27 From - Other reallocations]]","v":0},{"$f":"Dataset[[#This Row],[2024/25 To - Spending review Topic 1]]+Dataset[[#This Row],[2024/25 To - Spending review Topic 2]]+Dataset[[#This Row],[2024/25 To - Spending review Topic 3]]+Dataset[[#This Row],[2024/25 To - Spending review Topic 4]]+Dataset[[#This Row],[2024/25 To - Other reallocations]]","v":0},{"$f":"Dataset[[#This Row],[2025/26 To - Spending review Topic 1]]+Dataset[[#This Row],[2025/26 To - Spending review Topic 2]]+Dataset[[#This Row],[2025/26 To - Spending review Topic 3]]+Dataset[[#This Row],[2025/26 To - Spending review Topic 4]]+Dataset[[#This Row],[2025/26 To - Other reallocations]]","v":0},{"$f":"Dataset[[#This Row],[2026/27 To - Spending review Topic 1]]+Dataset[[#This Row],[2026/27 To - Spending review Topic 2]]+Dataset[[#This Row],[2026/27 To - Spending review Topic 3]]+Dataset[[#This Row],[2026/27 To - Spending review Topic 4]]+Dataset[[#This Row],[2026/27 To - Other reallocations]]","v":0},{"$f":"Dataset[[#This Row],[2024/25 Reduction]]+Dataset[[#This Row],[2024/25 From - Total]]","v":0},{"$f":"Dataset[[#This Row],[2025/26 Reduction]]+Dataset[[#This Row],[2025/26 From - Total]]","v":0},{"$f":"Dataset[[#This Row],[2026/27 Reduction]]+Dataset[[#This Row],[2026/27 From - Total]]","v":0},{"$f":"Dataset[[#This Row],[2023/24 Reduction]]","v":0},{"$f":"SUM(Dataset[[#This Row],[2024/25 Reduction]],Dataset[[#This Row],[2024/25 From - Total]],Dataset[[#This Row],[2024/25 To - Total]])","v":0},{"$f":"SUM(Dataset[[#This Row],[2025/26 Reduction]],Dataset[[#This Row],[2025/26 From - Total]],Dataset[[#This Row],[2025/26 To - Total]])","v":0},{"$f":"SUM(Dataset[[#This Row],[2026/27 Reduction]],Dataset[[#This Row],[2026/27 From - Total]],Dataset[[#This Row],[2026/27 To - Total]])","v":0},{"$f":"Dataset[[#This Row],[2023/24 Baseline]]+Dataset[[#This Row],[2023/24 Total change]]","v":0},{"$f":"Dataset[[#This Row],[2024/25 Baseline]]+Dataset[[#This Row],[2024/25 Total change]]","v":0},{"$f":"Dataset[[#This Row],[2025/26 Baseline]]+Dataset[[#This Row],[2025/26 Total change]]","v":0},{"$f":"Dataset[[#This Row],[2026/27 Baseline]]+Dataset[[#This Row],[2026/27 Total change]]","v":0}]
["NAT|Non-transfer item","26|Inventory: Medical supplies","2024_25","MTEF2024",26,3,3,44761,874,"26","03","03","044761","000874","26|03|03","01","01","02","27","27","01|01|02|27|27","National","Military Veterans","Empowerment and Stakeholder Management","Heritage, Memorials, Burials and Honours","Non-transfer item","Current","Current payments","Goods and services","Inventory: Medical supplies","Inventory: Medical supplies","Peace and security","Defence and state security","NAT",0,0,0,0,0,0,0,0,0,0,0,null,null,null,null,null,null,null,null,null,null,null,null,null,null,null,null,null,null,null,null,null,null,null,null,null,null,null,null,null,null,null,null,null,null,{"$f":"Dataset[[#This Row],[2024/25 From - Spending review Topic 1]]+Dataset[[#This Row],[2024/25 From - Spending review Topic 2]]+Dataset[[#This Row],[2024/25 From - Spending review Topic 3]]+Dataset[[#This Row],[2024/25 From - Spending review Topic 4]]+Dataset[[#This Row],[2024/25 From - Other reallocations]]","v":0},{"$f":"Dataset[[#This Row],[2025/26 From - Spending review Topic 1]]+Dataset[[#This Row],[2025/26 From - Spending review Topic 2]]+Dataset[[#This Row],[2025/26 From - Spending review Topic 3]]+Dataset[[#This Row],[2025/26 From - Spending review Topic 4]]+Dataset[[#This Row],[2025/26 From - Other reallocations]]","v":0},{"$f":"Dataset[[#This Row],[2026/27 From - Spending review Topic 1]]+Dataset[[#This Row],[2026/27 From - Spending review Topic 2]]+Dataset[[#This Row],[2026/27 From - Spending review Topic 3]]+Dataset[[#This Row],[2026/27 From - Spending review Topic 4]]+Dataset[[#This Row],[2026/27 From - Other reallocations]]","v":0},{"$f":"Dataset[[#This Row],[2024/25 To - Spending review Topic 1]]+Dataset[[#This Row],[2024/25 To - Spending review Topic 2]]+Dataset[[#This Row],[2024/25 To - Spending review Topic 3]]+Dataset[[#This Row],[2024/25 To - Spending review Topic 4]]+Dataset[[#This Row],[2024/25 To - Other reallocations]]","v":0},{"$f":"Dataset[[#This Row],[2025/26 To - Spending review Topic 1]]+Dataset[[#This Row],[2025/26 To - Spending review Topic 2]]+Dataset[[#This Row],[2025/26 To - Spending review Topic 3]]+Dataset[[#This Row],[2025/26 To - Spending review Topic 4]]+Dataset[[#This Row],[2025/26 To - Other reallocations]]","v":0},{"$f":"Dataset[[#This Row],[2026/27 To - Spending review Topic 1]]+Dataset[[#This Row],[2026/27 To - Spending review Topic 2]]+Dataset[[#This Row],[2026/27 To - Spending review Topic 3]]+Dataset[[#This Row],[2026/27 To - Spending review Topic 4]]+Dataset[[#This Row],[2026/27 To - Other reallocations]]","v":0},{"$f":"Dataset[[#This Row],[2024/25 Reduction]]+Dataset[[#This Row],[2024/25 From - Total]]","v":0},{"$f":"Dataset[[#This Row],[2025/26 Reduction]]+Dataset[[#This Row],[2025/26 From - Total]]","v":0},{"$f":"Dataset[[#This Row],[2026/27 Reduction]]+Dataset[[#This Row],[2026/27 From - Total]]","v":0},{"$f":"Dataset[[#This Row],[2023/24 Reduction]]","v":0},{"$f":"SUM(Dataset[[#This Row],[2024/25 Reduction]],Dataset[[#This Row],[2024/25 From - Total]],Dataset[[#This Row],[2024/25 To - Total]])","v":0},{"$f":"SUM(Dataset[[#This Row],[2025/26 Reduction]],Dataset[[#This Row],[2025/26 From - Total]],Dataset[[#This Row],[2025/26 To - Total]])","v":0},{"$f":"SUM(Dataset[[#This Row],[2026/27 Reduction]],Dataset[[#This Row],[2026/27 From - Total]],Dataset[[#This Row],[2026/27 To - Total]])","v":0},{"$f":"Dataset[[#This Row],[2023/24 Baseline]]+Dataset[[#This Row],[2023/24 Total change]]","v":0},{"$f":"Dataset[[#This Row],[2024/25 Baseline]]+Dataset[[#This Row],[2024/25 Total change]]","v":0},{"$f":"Dataset[[#This Row],[2025/26 Baseline]]+Dataset[[#This Row],[2025/26 Total change]]","v":0},{"$f":"Dataset[[#This Row],[2026/27 Baseline]]+Dataset[[#This Row],[2026/27 Total change]]","v":0}]
["NAT|Non-transfer item","26|Inventory: Medicine","2024_25","MTEF2024",26,3,3,44762,875,"26","03","03","044762","000875","26|03|03","01","01","02","28","28","01|01|02|28|28","National","Military Veterans","Empowerment and Stakeholder Management","Heritage, Memorials, Burials and Honours","Non-transfer item","Current","Current payments","Goods and services","Inventory: Medicine","Inventory: Medicine","Peace and security","Defence and state security","NAT",0,0,0,0,0,0,0,0,0,0,0,null,null,null,null,null,null,null,null,null,null,null,null,null,null,null,null,null,null,null,null,null,null,null,null,null,null,null,null,null,null,null,null,null,null,{"$f":"Dataset[[#This Row],[2024/25 From - Spending review Topic 1]]+Dataset[[#This Row],[2024/25 From - Spending review Topic 2]]+Dataset[[#This Row],[2024/25 From - Spending review Topic 3]]+Dataset[[#This Row],[2024/25 From - Spending review Topic 4]]+Dataset[[#This Row],[2024/25 From - Other reallocations]]","v":0},{"$f":"Dataset[[#This Row],[2025/26 From - Spending review Topic 1]]+Dataset[[#This Row],[2025/26 From - Spending review Topic 2]]+Dataset[[#This Row],[2025/26 From - Spending review Topic 3]]+Dataset[[#This Row],[2025/26 From - Spending review Topic 4]]+Dataset[[#This Row],[2025/26 From - Other reallocations]]","v":0},{"$f":"Dataset[[#This Row],[2026/27 From - Spending review Topic 1]]+Dataset[[#This Row],[2026/27 From - Spending review Topic 2]]+Dataset[[#This Row],[2026/27 From - Spending review Topic 3]]+Dataset[[#This Row],[2026/27 From - Spending review Topic 4]]+Dataset[[#This Row],[2026/27 From - Other reallocations]]","v":0},{"$f":"Dataset[[#This Row],[2024/25 To - Spending review Topic 1]]+Dataset[[#This Row],[2024/25 To - Spending review Topic 2]]+Dataset[[#This Row],[2024/25 To - Spending review Topic 3]]+Dataset[[#This Row],[2024/25 To - Spending review Topic 4]]+Dataset[[#This Row],[2024/25 To - Other reallocations]]","v":0},{"$f":"Dataset[[#This Row],[2025/26 To - Spending review Topic 1]]+Dataset[[#This Row],[2025/26 To - Spending review Topic 2]]+Dataset[[#This Row],[2025/26 To - Spending review Topic 3]]+Dataset[[#This Row],[2025/26 To - Spending review Topic 4]]+Dataset[[#This Row],[2025/26 To - Other reallocations]]","v":0},{"$f":"Dataset[[#This Row],[2026/27 To - Spending review Topic 1]]+Dataset[[#This Row],[2026/27 To - Spending review Topic 2]]+Dataset[[#This Row],[2026/27 To - Spending review Topic 3]]+Dataset[[#This Row],[2026/27 To - Spending review Topic 4]]+Dataset[[#This Row],[2026/27 To - Other reallocations]]","v":0},{"$f":"Dataset[[#This Row],[2024/25 Reduction]]+Dataset[[#This Row],[2024/25 From - Total]]","v":0},{"$f":"Dataset[[#This Row],[2025/26 Reduction]]+Dataset[[#This Row],[2025/26 From - Total]]","v":0},{"$f":"Dataset[[#This Row],[2026/27 Reduction]]+Dataset[[#This Row],[2026/27 From - Total]]","v":0},{"$f":"Dataset[[#This Row],[2023/24 Reduction]]","v":0},{"$f":"SUM(Dataset[[#This Row],[2024/25 Reduction]],Dataset[[#This Row],[2024/25 From - Total]],Dataset[[#This Row],[2024/25 To - Total]])","v":0},{"$f":"SUM(Dataset[[#This Row],[2025/26 Reduction]],Dataset[[#This Row],[2025/26 From - Total]],Dataset[[#This Row],[2025/26 To - Total]])","v":0},{"$f":"SUM(Dataset[[#This Row],[2026/27 Reduction]],Dataset[[#This Row],[2026/27 From - Total]],Dataset[[#This Row],[2026/27 To - Total]])","v":0},{"$f":"Dataset[[#This Row],[2023/24 Baseline]]+Dataset[[#This Row],[2023/24 Total change]]","v":0},{"$f":"Dataset[[#This Row],[2024/25 Baseline]]+Dataset[[#This Row],[2024/25 Total change]]","v":0},{"$f":"Dataset[[#This Row],[2025/26 Baseline]]+Dataset[[#This Row],[2025/26 Total change]]","v":0},{"$f":"Dataset[[#This Row],[2026/27 Baseline]]+Dataset[[#This Row],[2026/27 Total change]]","v":0}]
["NAT|Non-transfer item","26|Medsas inventory interface","2024_25","MTEF2024",26,3,3,44763,876,"26","03","03","044763","000876","26|03|03","01","01","02","29","29","01|01|02|29|29","National","Military Veterans","Empowerment and Stakeholder Management","Heritage, Memorials, Burials and Honours","Non-transfer item","Current","Current payments","Goods and services","Medsas inventory interface","Medsas inventory interface","Peace and security","Defence and state security","NAT",0,0,0,0,0,0,0,0,0,0,0,null,null,null,null,null,null,null,null,null,null,null,null,null,null,null,null,null,null,null,null,null,null,null,null,null,null,null,null,null,null,null,null,null,null,{"$f":"Dataset[[#This Row],[2024/25 From - Spending review Topic 1]]+Dataset[[#This Row],[2024/25 From - Spending review Topic 2]]+Dataset[[#This Row],[2024/25 From - Spending review Topic 3]]+Dataset[[#This Row],[2024/25 From - Spending review Topic 4]]+Dataset[[#This Row],[2024/25 From - Other reallocations]]","v":0},{"$f":"Dataset[[#This Row],[2025/26 From - Spending review Topic 1]]+Dataset[[#This Row],[2025/26 From - Spending review Topic 2]]+Dataset[[#This Row],[2025/26 From - Spending review Topic 3]]+Dataset[[#This Row],[2025/26 From - Spending review Topic 4]]+Dataset[[#This Row],[2025/26 From - Other reallocations]]","v":0},{"$f":"Dataset[[#This Row],[2026/27 From - Spending review Topic 1]]+Dataset[[#This Row],[2026/27 From - Spending review Topic 2]]+Dataset[[#This Row],[2026/27 From - Spending review Topic 3]]+Dataset[[#This Row],[2026/27 From - Spending review Topic 4]]+Dataset[[#This Row],[2026/27 From - Other reallocations]]","v":0},{"$f":"Dataset[[#This Row],[2024/25 To - Spending review Topic 1]]+Dataset[[#This Row],[2024/25 To - Spending review Topic 2]]+Dataset[[#This Row],[2024/25 To - Spending review Topic 3]]+Dataset[[#This Row],[2024/25 To - Spending review Topic 4]]+Dataset[[#This Row],[2024/25 To - Other reallocations]]","v":0},{"$f":"Dataset[[#This Row],[2025/26 To - Spending review Topic 1]]+Dataset[[#This Row],[2025/26 To - Spending review Topic 2]]+Dataset[[#This Row],[2025/26 To - Spending review Topic 3]]+Dataset[[#This Row],[2025/26 To - Spending review Topic 4]]+Dataset[[#This Row],[2025/26 To - Other reallocations]]","v":0},{"$f":"Dataset[[#This Row],[2026/27 To - Spending review Topic 1]]+Dataset[[#This Row],[2026/27 To - Spending review Topic 2]]+Dataset[[#This Row],[2026/27 To - Spending review Topic 3]]+Dataset[[#This Row],[2026/27 To - Spending review Topic 4]]+Dataset[[#This Row],[2026/27 To - Other reallocations]]","v":0},{"$f":"Dataset[[#This Row],[2024/25 Reduction]]+Dataset[[#This Row],[2024/25 From - Total]]","v":0},{"$f":"Dataset[[#This Row],[2025/26 Reduction]]+Dataset[[#This Row],[2025/26 From - Total]]","v":0},{"$f":"Dataset[[#This Row],[2026/27 Reduction]]+Dataset[[#This Row],[2026/27 From - Total]]","v":0},{"$f":"Dataset[[#This Row],[2023/24 Reduction]]","v":0},{"$f":"SUM(Dataset[[#This Row],[2024/25 Reduction]],Dataset[[#This Row],[2024/25 From - Total]],Dataset[[#This Row],[2024/25 To - Total]])","v":0},{"$f":"SUM(Dataset[[#This Row],[2025/26 Reduction]],Dataset[[#This Row],[2025/26 From - Total]],Dataset[[#This Row],[2025/26 To - Total]])","v":0},{"$f":"SUM(Dataset[[#This Row],[2026/27 Reduction]],Dataset[[#This Row],[2026/27 From - Total]],Dataset[[#This Row],[2026/27 To - Total]])","v":0},{"$f":"Dataset[[#This Row],[2023/24 Baseline]]+Dataset[[#This Row],[2023/24 Total change]]","v":0},{"$f":"Dataset[[#This Row],[2024/25 Baseline]]+Dataset[[#This Row],[2024/25 Total change]]","v":0},{"$f":"Dataset[[#This Row],[2025/26 Baseline]]+Dataset[[#This Row],[2025/26 Total change]]","v":0},{"$f":"Dataset[[#This Row],[2026/27 Baseline]]+Dataset[[#This Row],[2026/27 Total change]]","v":0}]
["NAT|Non-transfer item","26|Inventory: Other supplies","2024_25","MTEF2024",26,3,3,44764,877,"26","03","03","044764","000877","26|03|03","01","01","02","30","30","01|01|02|30|30","National","Military Veterans","Empowerment and Stakeholder Management","Heritage, Memorials, Burials and Honours","Non-transfer item","Current","Current payments","Goods and services","Inventory: Other supplies","Inventory: Other supplies","Peace and security","Defence and state security","NAT",0,0,0,0,0,0,0,0,0,0,0,null,null,null,null,null,null,null,null,null,null,null,null,null,null,null,null,null,null,null,null,null,null,null,null,null,null,null,null,null,null,null,null,null,null,{"$f":"Dataset[[#This Row],[2024/25 From - Spending review Topic 1]]+Dataset[[#This Row],[2024/25 From - Spending review Topic 2]]+Dataset[[#This Row],[2024/25 From - Spending review Topic 3]]+Dataset[[#This Row],[2024/25 From - Spending review Topic 4]]+Dataset[[#This Row],[2024/25 From - Other reallocations]]","v":0},{"$f":"Dataset[[#This Row],[2025/26 From - Spending review Topic 1]]+Dataset[[#This Row],[2025/26 From - Spending review Topic 2]]+Dataset[[#This Row],[2025/26 From - Spending review Topic 3]]+Dataset[[#This Row],[2025/26 From - Spending review Topic 4]]+Dataset[[#This Row],[2025/26 From - Other reallocations]]","v":0},{"$f":"Dataset[[#This Row],[2026/27 From - Spending review Topic 1]]+Dataset[[#This Row],[2026/27 From - Spending review Topic 2]]+Dataset[[#This Row],[2026/27 From - Spending review Topic 3]]+Dataset[[#This Row],[2026/27 From - Spending review Topic 4]]+Dataset[[#This Row],[2026/27 From - Other reallocations]]","v":0},{"$f":"Dataset[[#This Row],[2024/25 To - Spending review Topic 1]]+Dataset[[#This Row],[2024/25 To - Spending review Topic 2]]+Dataset[[#This Row],[2024/25 To - Spending review Topic 3]]+Dataset[[#This Row],[2024/25 To - Spending review Topic 4]]+Dataset[[#This Row],[2024/25 To - Other reallocations]]","v":0},{"$f":"Dataset[[#This Row],[2025/26 To - Spending review Topic 1]]+Dataset[[#This Row],[2025/26 To - Spending review Topic 2]]+Dataset[[#This Row],[2025/26 To - Spending review Topic 3]]+Dataset[[#This Row],[2025/26 To - Spending review Topic 4]]+Dataset[[#This Row],[2025/26 To - Other reallocations]]","v":0},{"$f":"Dataset[[#This Row],[2026/27 To - Spending review Topic 1]]+Dataset[[#This Row],[2026/27 To - Spending review Topic 2]]+Dataset[[#This Row],[2026/27 To - Spending review Topic 3]]+Dataset[[#This Row],[2026/27 To - Spending review Topic 4]]+Dataset[[#This Row],[2026/27 To - Other reallocations]]","v":0},{"$f":"Dataset[[#This Row],[2024/25 Reduction]]+Dataset[[#This Row],[2024/25 From - Total]]","v":0},{"$f":"Dataset[[#This Row],[2025/26 Reduction]]+Dataset[[#This Row],[2025/26 From - Total]]","v":0},{"$f":"Dataset[[#This Row],[2026/27 Reduction]]+Dataset[[#This Row],[2026/27 From - Total]]","v":0},{"$f":"Dataset[[#This Row],[2023/24 Reduction]]","v":0},{"$f":"SUM(Dataset[[#This Row],[2024/25 Reduction]],Dataset[[#This Row],[2024/25 From - Total]],Dataset[[#This Row],[2024/25 To - Total]])","v":0},{"$f":"SUM(Dataset[[#This Row],[2025/26 Reduction]],Dataset[[#This Row],[2025/26 From - Total]],Dataset[[#This Row],[2025/26 To - Total]])","v":0},{"$f":"SUM(Dataset[[#This Row],[2026/27 Reduction]],Dataset[[#This Row],[2026/27 From - Total]],Dataset[[#This Row],[2026/27 To - Total]])","v":0},{"$f":"Dataset[[#This Row],[2023/24 Baseline]]+Dataset[[#This Row],[2023/24 Total change]]","v":0},{"$f":"Dataset[[#This Row],[2024/25 Baseline]]+Dataset[[#This Row],[2024/25 Total change]]","v":0},{"$f":"Dataset[[#This Row],[2025/26 Baseline]]+Dataset[[#This Row],[2025/26 Total change]]","v":0},{"$f":"Dataset[[#This Row],[2026/27 Baseline]]+Dataset[[#This Row],[2026/27 Total change]]","v":0}]
["NAT|Non-transfer item","26|Consumable supplies","2024_25","MTEF2024",26,3,3,44765,878,"26","03","03","044765","000878","26|03|03","01","01","02","31","31","01|01|02|31|31","National","Military Veterans","Empowerment and Stakeholder Management","Heritage, Memorials, Burials and Honours","Non-transfer item","Current","Current payments","Goods and services","Consumable supplies","Consumable supplies","Peace and security","Defence and state security","NAT",0,0,0,1183,170,170,0,20,25,30,31,null,null,null,null,null,null,null,null,null,null,null,null,null,null,null,null,null,null,null,null,null,null,null,null,null,null,null,null,null,null,null,null,null,null,{"$f":"Dataset[[#This Row],[2024/25 From - Spending review Topic 1]]+Dataset[[#This Row],[2024/25 From - Spending review Topic 2]]+Dataset[[#This Row],[2024/25 From - Spending review Topic 3]]+Dataset[[#This Row],[2024/25 From - Spending review Topic 4]]+Dataset[[#This Row],[2024/25 From - Other reallocations]]","v":0},{"$f":"Dataset[[#This Row],[2025/26 From - Spending review Topic 1]]+Dataset[[#This Row],[2025/26 From - Spending review Topic 2]]+Dataset[[#This Row],[2025/26 From - Spending review Topic 3]]+Dataset[[#This Row],[2025/26 From - Spending review Topic 4]]+Dataset[[#This Row],[2025/26 From - Other reallocations]]","v":0},{"$f":"Dataset[[#This Row],[2026/27 From - Spending review Topic 1]]+Dataset[[#This Row],[2026/27 From - Spending review Topic 2]]+Dataset[[#This Row],[2026/27 From - Spending review Topic 3]]+Dataset[[#This Row],[2026/27 From - Spending review Topic 4]]+Dataset[[#This Row],[2026/27 From - Other reallocations]]","v":0},{"$f":"Dataset[[#This Row],[2024/25 To - Spending review Topic 1]]+Dataset[[#This Row],[2024/25 To - Spending review Topic 2]]+Dataset[[#This Row],[2024/25 To - Spending review Topic 3]]+Dataset[[#This Row],[2024/25 To - Spending review Topic 4]]+Dataset[[#This Row],[2024/25 To - Other reallocations]]","v":0},{"$f":"Dataset[[#This Row],[2025/26 To - Spending review Topic 1]]+Dataset[[#This Row],[2025/26 To - Spending review Topic 2]]+Dataset[[#This Row],[2025/26 To - Spending review Topic 3]]+Dataset[[#This Row],[2025/26 To - Spending review Topic 4]]+Dataset[[#This Row],[2025/26 To - Other reallocations]]","v":0},{"$f":"Dataset[[#This Row],[2026/27 To - Spending review Topic 1]]+Dataset[[#This Row],[2026/27 To - Spending review Topic 2]]+Dataset[[#This Row],[2026/27 To - Spending review Topic 3]]+Dataset[[#This Row],[2026/27 To - Spending review Topic 4]]+Dataset[[#This Row],[2026/27 To - Other reallocations]]","v":0},{"$f":"Dataset[[#This Row],[2024/25 Reduction]]+Dataset[[#This Row],[2024/25 From - Total]]","v":0},{"$f":"Dataset[[#This Row],[2025/26 Reduction]]+Dataset[[#This Row],[2025/26 From - Total]]","v":0},{"$f":"Dataset[[#This Row],[2026/27 Reduction]]+Dataset[[#This Row],[2026/27 From - Total]]","v":0},{"$f":"Dataset[[#This Row],[2023/24 Reduction]]","v":0},{"$f":"SUM(Dataset[[#This Row],[2024/25 Reduction]],Dataset[[#This Row],[2024/25 From - Total]],Dataset[[#This Row],[2024/25 To - Total]])","v":0},{"$f":"SUM(Dataset[[#This Row],[2025/26 Reduction]],Dataset[[#This Row],[2025/26 From - Total]],Dataset[[#This Row],[2025/26 To - Total]])","v":0},{"$f":"SUM(Dataset[[#This Row],[2026/27 Reduction]],Dataset[[#This Row],[2026/27 From - Total]],Dataset[[#This Row],[2026/27 To - Total]])","v":0},{"$f":"Dataset[[#This Row],[2023/24 Baseline]]+Dataset[[#This Row],[2023/24 Total change]]","v":20},{"$f":"Dataset[[#This Row],[2024/25 Baseline]]+Dataset[[#This Row],[2024/25 Total change]]","v":25},{"$f":"Dataset[[#This Row],[2025/26 Baseline]]+Dataset[[#This Row],[2025/26 Total change]]","v":30},{"$f":"Dataset[[#This Row],[2026/27 Baseline]]+Dataset[[#This Row],[2026/27 Total change]]","v":31}]
["NAT|Non-transfer item","26|Consumables: Stationery, printing and office supplies","2024_25","MTEF2024",26,3,3,44766,879,"26","03","03","044766","000879","26|03|03","01","01","02","32","32","01|01|02|32|32","National","Military Veterans","Empowerment and Stakeholder Management","Heritage, Memorials, Burials and Honours","Non-transfer item","Current","Current payments","Goods and services","Consumables: Stationery, printing and office supplies","Consumables: Stationery, printing and office supplies","Peace and security","Defence and state security","NAT",0,25,0,461,161,161,0,261,284,306,320,null,null,null,null,null,null,null,null,null,null,null,null,null,null,null,null,null,null,null,null,null,null,null,null,null,null,null,null,null,null,null,null,null,null,{"$f":"Dataset[[#This Row],[2024/25 From - Spending review Topic 1]]+Dataset[[#This Row],[2024/25 From - Spending review Topic 2]]+Dataset[[#This Row],[2024/25 From - Spending review Topic 3]]+Dataset[[#This Row],[2024/25 From - Spending review Topic 4]]+Dataset[[#This Row],[2024/25 From - Other reallocations]]","v":0},{"$f":"Dataset[[#This Row],[2025/26 From - Spending review Topic 1]]+Dataset[[#This Row],[2025/26 From - Spending review Topic 2]]+Dataset[[#This Row],[2025/26 From - Spending review Topic 3]]+Dataset[[#This Row],[2025/26 From - Spending review Topic 4]]+Dataset[[#This Row],[2025/26 From - Other reallocations]]","v":0},{"$f":"Dataset[[#This Row],[2026/27 From - Spending review Topic 1]]+Dataset[[#This Row],[2026/27 From - Spending review Topic 2]]+Dataset[[#This Row],[2026/27 From - Spending review Topic 3]]+Dataset[[#This Row],[2026/27 From - Spending review Topic 4]]+Dataset[[#This Row],[2026/27 From - Other reallocations]]","v":0},{"$f":"Dataset[[#This Row],[2024/25 To - Spending review Topic 1]]+Dataset[[#This Row],[2024/25 To - Spending review Topic 2]]+Dataset[[#This Row],[2024/25 To - Spending review Topic 3]]+Dataset[[#This Row],[2024/25 To - Spending review Topic 4]]+Dataset[[#This Row],[2024/25 To - Other reallocations]]","v":0},{"$f":"Dataset[[#This Row],[2025/26 To - Spending review Topic 1]]+Dataset[[#This Row],[2025/26 To - Spending review Topic 2]]+Dataset[[#This Row],[2025/26 To - Spending review Topic 3]]+Dataset[[#This Row],[2025/26 To - Spending review Topic 4]]+Dataset[[#This Row],[2025/26 To - Other reallocations]]","v":0},{"$f":"Dataset[[#This Row],[2026/27 To - Spending review Topic 1]]+Dataset[[#This Row],[2026/27 To - Spending review Topic 2]]+Dataset[[#This Row],[2026/27 To - Spending review Topic 3]]+Dataset[[#This Row],[2026/27 To - Spending review Topic 4]]+Dataset[[#This Row],[2026/27 To - Other reallocations]]","v":0},{"$f":"Dataset[[#This Row],[2024/25 Reduction]]+Dataset[[#This Row],[2024/25 From - Total]]","v":0},{"$f":"Dataset[[#This Row],[2025/26 Reduction]]+Dataset[[#This Row],[2025/26 From - Total]]","v":0},{"$f":"Dataset[[#This Row],[2026/27 Reduction]]+Dataset[[#This Row],[2026/27 From - Total]]","v":0},{"$f":"Dataset[[#This Row],[2023/24 Reduction]]","v":0},{"$f":"SUM(Dataset[[#This Row],[2024/25 Reduction]],Dataset[[#This Row],[2024/25 From - Total]],Dataset[[#This Row],[2024/25 To - Total]])","v":0},{"$f":"SUM(Dataset[[#This Row],[2025/26 Reduction]],Dataset[[#This Row],[2025/26 From - Total]],Dataset[[#This Row],[2025/26 To - Total]])","v":0},{"$f":"SUM(Dataset[[#This Row],[2026/27 Reduction]],Dataset[[#This Row],[2026/27 From - Total]],Dataset[[#This Row],[2026/27 To - Total]])","v":0},{"$f":"Dataset[[#This Row],[2023/24 Baseline]]+Dataset[[#This Row],[2023/24 Total change]]","v":261},{"$f":"Dataset[[#This Row],[2024/25 Baseline]]+Dataset[[#This Row],[2024/25 Total change]]","v":284},{"$f":"Dataset[[#This Row],[2025/26 Baseline]]+Dataset[[#This Row],[2025/26 Total change]]","v":306},{"$f":"Dataset[[#This Row],[2026/27 Baseline]]+Dataset[[#This Row],[2026/27 Total change]]","v":320}]
["NAT|Non-transfer item","26|Operating leases","2024_25","MTEF2024",26,3,3,44767,880,"26","03","03","044767","000880","26|03|03","01","01","02","33","33","01|01|02|33|33","National","Military Veterans","Empowerment and Stakeholder Management","Heritage, Memorials, Burials and Honours","Non-transfer item","Current","Current payments","Goods and services","Operating leases","Operating leases","Peace and security","Defence and state security","NAT",0,0,0,0,0,0,0,0,0,0,0,null,null,null,null,null,null,null,null,null,null,null,null,null,null,null,null,null,null,null,null,null,null,null,null,null,null,null,null,null,null,null,null,null,null,{"$f":"Dataset[[#This Row],[2024/25 From - Spending review Topic 1]]+Dataset[[#This Row],[2024/25 From - Spending review Topic 2]]+Dataset[[#This Row],[2024/25 From - Spending review Topic 3]]+Dataset[[#This Row],[2024/25 From - Spending review Topic 4]]+Dataset[[#This Row],[2024/25 From - Other reallocations]]","v":0},{"$f":"Dataset[[#This Row],[2025/26 From - Spending review Topic 1]]+Dataset[[#This Row],[2025/26 From - Spending review Topic 2]]+Dataset[[#This Row],[2025/26 From - Spending review Topic 3]]+Dataset[[#This Row],[2025/26 From - Spending review Topic 4]]+Dataset[[#This Row],[2025/26 From - Other reallocations]]","v":0},{"$f":"Dataset[[#This Row],[2026/27 From - Spending review Topic 1]]+Dataset[[#This Row],[2026/27 From - Spending review Topic 2]]+Dataset[[#This Row],[2026/27 From - Spending review Topic 3]]+Dataset[[#This Row],[2026/27 From - Spending review Topic 4]]+Dataset[[#This Row],[2026/27 From - Other reallocations]]","v":0},{"$f":"Dataset[[#This Row],[2024/25 To - Spending review Topic 1]]+Dataset[[#This Row],[2024/25 To - Spending review Topic 2]]+Dataset[[#This Row],[2024/25 To - Spending review Topic 3]]+Dataset[[#This Row],[2024/25 To - Spending review Topic 4]]+Dataset[[#This Row],[2024/25 To - Other reallocations]]","v":0},{"$f":"Dataset[[#This Row],[2025/26 To - Spending review Topic 1]]+Dataset[[#This Row],[2025/26 To - Spending review Topic 2]]+Dataset[[#This Row],[2025/26 To - Spending review Topic 3]]+Dataset[[#This Row],[2025/26 To - Spending review Topic 4]]+Dataset[[#This Row],[2025/26 To - Other reallocations]]","v":0},{"$f":"Dataset[[#This Row],[2026/27 To - Spending review Topic 1]]+Dataset[[#This Row],[2026/27 To - Spending review Topic 2]]+Dataset[[#This Row],[2026/27 To - Spending review Topic 3]]+Dataset[[#This Row],[2026/27 To - Spending review Topic 4]]+Dataset[[#This Row],[2026/27 To - Other reallocations]]","v":0},{"$f":"Dataset[[#This Row],[2024/25 Reduction]]+Dataset[[#This Row],[2024/25 From - Total]]","v":0},{"$f":"Dataset[[#This Row],[2025/26 Reduction]]+Dataset[[#This Row],[2025/26 From - Total]]","v":0},{"$f":"Dataset[[#This Row],[2026/27 Reduction]]+Dataset[[#This Row],[2026/27 From - Total]]","v":0},{"$f":"Dataset[[#This Row],[2023/24 Reduction]]","v":0},{"$f":"SUM(Dataset[[#This Row],[2024/25 Reduction]],Dataset[[#This Row],[2024/25 From - Total]],Dataset[[#This Row],[2024/25 To - Total]])","v":0},{"$f":"SUM(Dataset[[#This Row],[2025/26 Reduction]],Dataset[[#This Row],[2025/26 From - Total]],Dataset[[#This Row],[2025/26 To - Total]])","v":0},{"$f":"SUM(Dataset[[#This Row],[2026/27 Reduction]],Dataset[[#This Row],[2026/27 From - Total]],Dataset[[#This Row],[2026/27 To - Total]])","v":0},{"$f":"Dataset[[#This Row],[2023/24 Baseline]]+Dataset[[#This Row],[2023/24 Total change]]","v":0},{"$f":"Dataset[[#This Row],[2024/25 Baseline]]+Dataset[[#This Row],[2024/25 Total change]]","v":0},{"$f":"Dataset[[#This Row],[2025/26 Baseline]]+Dataset[[#This Row],[2025/26 Total change]]","v":0},{"$f":"Dataset[[#This Row],[2026/27 Baseline]]+Dataset[[#This Row],[2026/27 Total change]]","v":0}]
["NAT|Non-transfer item","26|Rental and hiring","2024_25","MTEF2024",26,3,3,44768,881,"26","03","03","044768","000881","26|03|03","01","01","02","34","34","01|01|02|34|34","National","Military Veterans","Empowerment and Stakeholder Management","Heritage, Memorials, Burials and Honours","Non-transfer item","Current","Current payments","Goods and services","Rental and hiring","Rental and hiring","Peace and security","Defence and state security","NAT",0,0,0,0,0,0,0,0,0,0,0,null,null,null,null,null,null,null,null,null,null,null,null,null,null,null,null,null,null,null,null,null,null,null,null,null,null,null,null,null,null,null,null,null,null,{"$f":"Dataset[[#This Row],[2024/25 From - Spending review Topic 1]]+Dataset[[#This Row],[2024/25 From - Spending review Topic 2]]+Dataset[[#This Row],[2024/25 From - Spending review Topic 3]]+Dataset[[#This Row],[2024/25 From - Spending review Topic 4]]+Dataset[[#This Row],[2024/25 From - Other reallocations]]","v":0},{"$f":"Dataset[[#This Row],[2025/26 From - Spending review Topic 1]]+Dataset[[#This Row],[2025/26 From - Spending review Topic 2]]+Dataset[[#This Row],[2025/26 From - Spending review Topic 3]]+Dataset[[#This Row],[2025/26 From - Spending review Topic 4]]+Dataset[[#This Row],[2025/26 From - Other reallocations]]","v":0},{"$f":"Dataset[[#This Row],[2026/27 From - Spending review Topic 1]]+Dataset[[#This Row],[2026/27 From - Spending review Topic 2]]+Dataset[[#This Row],[2026/27 From - Spending review Topic 3]]+Dataset[[#This Row],[2026/27 From - Spending review Topic 4]]+Dataset[[#This Row],[2026/27 From - Other reallocations]]","v":0},{"$f":"Dataset[[#This Row],[2024/25 To - Spending review Topic 1]]+Dataset[[#This Row],[2024/25 To - Spending review Topic 2]]+Dataset[[#This Row],[2024/25 To - Spending review Topic 3]]+Dataset[[#This Row],[2024/25 To - Spending review Topic 4]]+Dataset[[#This Row],[2024/25 To - Other reallocations]]","v":0},{"$f":"Dataset[[#This Row],[2025/26 To - Spending review Topic 1]]+Dataset[[#This Row],[2025/26 To - Spending review Topic 2]]+Dataset[[#This Row],[2025/26 To - Spending review Topic 3]]+Dataset[[#This Row],[2025/26 To - Spending review Topic 4]]+Dataset[[#This Row],[2025/26 To - Other reallocations]]","v":0},{"$f":"Dataset[[#This Row],[2026/27 To - Spending review Topic 1]]+Dataset[[#This Row],[2026/27 To - Spending review Topic 2]]+Dataset[[#This Row],[2026/27 To - Spending review Topic 3]]+Dataset[[#This Row],[2026/27 To - Spending review Topic 4]]+Dataset[[#This Row],[2026/27 To - Other reallocations]]","v":0},{"$f":"Dataset[[#This Row],[2024/25 Reduction]]+Dataset[[#This Row],[2024/25 From - Total]]","v":0},{"$f":"Dataset[[#This Row],[2025/26 Reduction]]+Dataset[[#This Row],[2025/26 From - Total]]","v":0},{"$f":"Dataset[[#This Row],[2026/27 Reduction]]+Dataset[[#This Row],[2026/27 From - Total]]","v":0},{"$f":"Dataset[[#This Row],[2023/24 Reduction]]","v":0},{"$f":"SUM(Dataset[[#This Row],[2024/25 Reduction]],Dataset[[#This Row],[2024/25 From - Total]],Dataset[[#This Row],[2024/25 To - Total]])","v":0},{"$f":"SUM(Dataset[[#This Row],[2025/26 Reduction]],Dataset[[#This Row],[2025/26 From - Total]],Dataset[[#This Row],[2025/26 To - Total]])","v":0},{"$f":"SUM(Dataset[[#This Row],[2026/27 Reduction]],Dataset[[#This Row],[2026/27 From - Total]],Dataset[[#This Row],[2026/27 To - Total]])","v":0},{"$f":"Dataset[[#This Row],[2023/24 Baseline]]+Dataset[[#This Row],[2023/24 Total change]]","v":0},{"$f":"Dataset[[#This Row],[2024/25 Baseline]]+Dataset[[#This Row],[2024/25 Total change]]","v":0},{"$f":"Dataset[[#This Row],[2025/26 Baseline]]+Dataset[[#This Row],[2025/26 Total change]]","v":0},{"$f":"Dataset[[#This Row],[2026/27 Baseline]]+Dataset[[#This Row],[2026/27 Total change]]","v":0}]
["NAT|Non-transfer item","26|Property payments","2024_25","MTEF2024",26,3,3,44769,882,"26","03","03","044769","000882","26|03|03","01","01","02","35","35","01|01|02|35|35","National","Military Veterans","Empowerment and Stakeholder Management","Heritage, Memorials, Burials and Honours","Non-transfer item","Current","Current payments","Goods and services","Property payments","Property payments","Peace and security","Defence and state security","NAT",0,0,0,0,0,0,0,0,0,0,0,null,null,null,null,null,null,null,null,null,null,null,null,null,null,null,null,null,null,null,null,null,null,null,null,null,null,null,null,null,null,null,null,null,null,{"$f":"Dataset[[#This Row],[2024/25 From - Spending review Topic 1]]+Dataset[[#This Row],[2024/25 From - Spending review Topic 2]]+Dataset[[#This Row],[2024/25 From - Spending review Topic 3]]+Dataset[[#This Row],[2024/25 From - Spending review Topic 4]]+Dataset[[#This Row],[2024/25 From - Other reallocations]]","v":0},{"$f":"Dataset[[#This Row],[2025/26 From - Spending review Topic 1]]+Dataset[[#This Row],[2025/26 From - Spending review Topic 2]]+Dataset[[#This Row],[2025/26 From - Spending review Topic 3]]+Dataset[[#This Row],[2025/26 From - Spending review Topic 4]]+Dataset[[#This Row],[2025/26 From - Other reallocations]]","v":0},{"$f":"Dataset[[#This Row],[2026/27 From - Spending review Topic 1]]+Dataset[[#This Row],[2026/27 From - Spending review Topic 2]]+Dataset[[#This Row],[2026/27 From - Spending review Topic 3]]+Dataset[[#This Row],[2026/27 From - Spending review Topic 4]]+Dataset[[#This Row],[2026/27 From - Other reallocations]]","v":0},{"$f":"Dataset[[#This Row],[2024/25 To - Spending review Topic 1]]+Dataset[[#This Row],[2024/25 To - Spending review Topic 2]]+Dataset[[#This Row],[2024/25 To - Spending review Topic 3]]+Dataset[[#This Row],[2024/25 To - Spending review Topic 4]]+Dataset[[#This Row],[2024/25 To - Other reallocations]]","v":0},{"$f":"Dataset[[#This Row],[2025/26 To - Spending review Topic 1]]+Dataset[[#This Row],[2025/26 To - Spending review Topic 2]]+Dataset[[#This Row],[2025/26 To - Spending review Topic 3]]+Dataset[[#This Row],[2025/26 To - Spending review Topic 4]]+Dataset[[#This Row],[2025/26 To - Other reallocations]]","v":0},{"$f":"Dataset[[#This Row],[2026/27 To - Spending review Topic 1]]+Dataset[[#This Row],[2026/27 To - Spending review Topic 2]]+Dataset[[#This Row],[2026/27 To - Spending review Topic 3]]+Dataset[[#This Row],[2026/27 To - Spending review Topic 4]]+Dataset[[#This Row],[2026/27 To - Other reallocations]]","v":0},{"$f":"Dataset[[#This Row],[2024/25 Reduction]]+Dataset[[#This Row],[2024/25 From - Total]]","v":0},{"$f":"Dataset[[#This Row],[2025/26 Reduction]]+Dataset[[#This Row],[2025/26 From - Total]]","v":0},{"$f":"Dataset[[#This Row],[2026/27 Reduction]]+Dataset[[#This Row],[2026/27 From - Total]]","v":0},{"$f":"Dataset[[#This Row],[2023/24 Reduction]]","v":0},{"$f":"SUM(Dataset[[#This Row],[2024/25 Reduction]],Dataset[[#This Row],[2024/25 From - Total]],Dataset[[#This Row],[2024/25 To - Total]])","v":0},{"$f":"SUM(Dataset[[#This Row],[2025/26 Reduction]],Dataset[[#This Row],[2025/26 From - Total]],Dataset[[#This Row],[2025/26 To - Total]])","v":0},{"$f":"SUM(Dataset[[#This Row],[2026/27 Reduction]],Dataset[[#This Row],[2026/27 From - Total]],Dataset[[#This Row],[2026/27 To - Total]])","v":0},{"$f":"Dataset[[#This Row],[2023/24 Baseline]]+Dataset[[#This Row],[2023/24 Total change]]","v":0},{"$f":"Dataset[[#This Row],[2024/25 Baseline]]+Dataset[[#This Row],[2024/25 Total change]]","v":0},{"$f":"Dataset[[#This Row],[2025/26 Baseline]]+Dataset[[#This Row],[2025/26 Total change]]","v":0},{"$f":"Dataset[[#This Row],[2026/27 Baseline]]+Dataset[[#This Row],[2026/27 Total change]]","v":0}]
["NAT|Non-transfer item","26|Transport provided: Departmental activity","2024_25","MTEF2024",26,3,3,44770,883,"26","03","03","044770","000883","26|03|03","01","01","02","36","36","01|01|02|36|36","National","Military Veterans","Empowerment and Stakeholder Management","Heritage, Memorials, Burials and Honours","Non-transfer item","Current","Current payments","Goods and services","Transport provided: Departmental activity","Transport provided: Departmental activity","Peace and security","Defence and state security","NAT",0,0,0,0,1300,1300,0,0,0,0,0,null,null,null,null,null,null,null,null,null,null,null,null,null,null,null,null,null,null,null,null,null,null,null,null,null,null,null,null,null,null,null,null,null,null,{"$f":"Dataset[[#This Row],[2024/25 From - Spending review Topic 1]]+Dataset[[#This Row],[2024/25 From - Spending review Topic 2]]+Dataset[[#This Row],[2024/25 From - Spending review Topic 3]]+Dataset[[#This Row],[2024/25 From - Spending review Topic 4]]+Dataset[[#This Row],[2024/25 From - Other reallocations]]","v":0},{"$f":"Dataset[[#This Row],[2025/26 From - Spending review Topic 1]]+Dataset[[#This Row],[2025/26 From - Spending review Topic 2]]+Dataset[[#This Row],[2025/26 From - Spending review Topic 3]]+Dataset[[#This Row],[2025/26 From - Spending review Topic 4]]+Dataset[[#This Row],[2025/26 From - Other reallocations]]","v":0},{"$f":"Dataset[[#This Row],[2026/27 From - Spending review Topic 1]]+Dataset[[#This Row],[2026/27 From - Spending review Topic 2]]+Dataset[[#This Row],[2026/27 From - Spending review Topic 3]]+Dataset[[#This Row],[2026/27 From - Spending review Topic 4]]+Dataset[[#This Row],[2026/27 From - Other reallocations]]","v":0},{"$f":"Dataset[[#This Row],[2024/25 To - Spending review Topic 1]]+Dataset[[#This Row],[2024/25 To - Spending review Topic 2]]+Dataset[[#This Row],[2024/25 To - Spending review Topic 3]]+Dataset[[#This Row],[2024/25 To - Spending review Topic 4]]+Dataset[[#This Row],[2024/25 To - Other reallocations]]","v":0},{"$f":"Dataset[[#This Row],[2025/26 To - Spending review Topic 1]]+Dataset[[#This Row],[2025/26 To - Spending review Topic 2]]+Dataset[[#This Row],[2025/26 To - Spending review Topic 3]]+Dataset[[#This Row],[2025/26 To - Spending review Topic 4]]+Dataset[[#This Row],[2025/26 To - Other reallocations]]","v":0},{"$f":"Dataset[[#This Row],[2026/27 To - Spending review Topic 1]]+Dataset[[#This Row],[2026/27 To - Spending review Topic 2]]+Dataset[[#This Row],[2026/27 To - Spending review Topic 3]]+Dataset[[#This Row],[2026/27 To - Spending review Topic 4]]+Dataset[[#This Row],[2026/27 To - Other reallocations]]","v":0},{"$f":"Dataset[[#This Row],[2024/25 Reduction]]+Dataset[[#This Row],[2024/25 From - Total]]","v":0},{"$f":"Dataset[[#This Row],[2025/26 Reduction]]+Dataset[[#This Row],[2025/26 From - Total]]","v":0},{"$f":"Dataset[[#This Row],[2026/27 Reduction]]+Dataset[[#This Row],[2026/27 From - Total]]","v":0},{"$f":"Dataset[[#This Row],[2023/24 Reduction]]","v":0},{"$f":"SUM(Dataset[[#This Row],[2024/25 Reduction]],Dataset[[#This Row],[2024/25 From - Total]],Dataset[[#This Row],[2024/25 To - Total]])","v":0},{"$f":"SUM(Dataset[[#This Row],[2025/26 Reduction]],Dataset[[#This Row],[2025/26 From - Total]],Dataset[[#This Row],[2025/26 To - Total]])","v":0},{"$f":"SUM(Dataset[[#This Row],[2026/27 Reduction]],Dataset[[#This Row],[2026/27 From - Total]],Dataset[[#This Row],[2026/27 To - Total]])","v":0},{"$f":"Dataset[[#This Row],[2023/24 Baseline]]+Dataset[[#This Row],[2023/24 Total change]]","v":0},{"$f":"Dataset[[#This Row],[2024/25 Baseline]]+Dataset[[#This Row],[2024/25 Total change]]","v":0},{"$f":"Dataset[[#This Row],[2025/26 Baseline]]+Dataset[[#This Row],[2025/26 Total change]]","v":0},{"$f":"Dataset[[#This Row],[2026/27 Baseline]]+Dataset[[#This Row],[2026/27 Total change]]","v":0}]
["NAT|Non-transfer item","26|Travel and subsistence","2024_25","MTEF2024",26,3,3,44771,884,"26","03","03","044771","000884","26|03|03","01","01","02","37","37","01|01|02|37|37","National","Military Veterans","Empowerment and Stakeholder Management","Heritage, Memorials, Burials and Honours","Non-transfer item","Current","Current payments","Goods and services","Travel and subsistence","Travel and subsistence","Peace and security","Defence and state security","NAT",2205,209,205,2697,4653,4653,0,7696,9330,11157,11668,null,null,null,null,null,null,null,null,null,null,null,null,null,null,null,null,null,null,null,null,null,null,null,null,null,null,null,null,null,null,null,null,null,null,{"$f":"Dataset[[#This Row],[2024/25 From - Spending review Topic 1]]+Dataset[[#This Row],[2024/25 From - Spending review Topic 2]]+Dataset[[#This Row],[2024/25 From - Spending review Topic 3]]+Dataset[[#This Row],[2024/25 From - Spending review Topic 4]]+Dataset[[#This Row],[2024/25 From - Other reallocations]]","v":0},{"$f":"Dataset[[#This Row],[2025/26 From - Spending review Topic 1]]+Dataset[[#This Row],[2025/26 From - Spending review Topic 2]]+Dataset[[#This Row],[2025/26 From - Spending review Topic 3]]+Dataset[[#This Row],[2025/26 From - Spending review Topic 4]]+Dataset[[#This Row],[2025/26 From - Other reallocations]]","v":0},{"$f":"Dataset[[#This Row],[2026/27 From - Spending review Topic 1]]+Dataset[[#This Row],[2026/27 From - Spending review Topic 2]]+Dataset[[#This Row],[2026/27 From - Spending review Topic 3]]+Dataset[[#This Row],[2026/27 From - Spending review Topic 4]]+Dataset[[#This Row],[2026/27 From - Other reallocations]]","v":0},{"$f":"Dataset[[#This Row],[2024/25 To - Spending review Topic 1]]+Dataset[[#This Row],[2024/25 To - Spending review Topic 2]]+Dataset[[#This Row],[2024/25 To - Spending review Topic 3]]+Dataset[[#This Row],[2024/25 To - Spending review Topic 4]]+Dataset[[#This Row],[2024/25 To - Other reallocations]]","v":0},{"$f":"Dataset[[#This Row],[2025/26 To - Spending review Topic 1]]+Dataset[[#This Row],[2025/26 To - Spending review Topic 2]]+Dataset[[#This Row],[2025/26 To - Spending review Topic 3]]+Dataset[[#This Row],[2025/26 To - Spending review Topic 4]]+Dataset[[#This Row],[2025/26 To - Other reallocations]]","v":0},{"$f":"Dataset[[#This Row],[2026/27 To - Spending review Topic 1]]+Dataset[[#This Row],[2026/27 To - Spending review Topic 2]]+Dataset[[#This Row],[2026/27 To - Spending review Topic 3]]+Dataset[[#This Row],[2026/27 To - Spending review Topic 4]]+Dataset[[#This Row],[2026/27 To - Other reallocations]]","v":0},{"$f":"Dataset[[#This Row],[2024/25 Reduction]]+Dataset[[#This Row],[2024/25 From - Total]]","v":0},{"$f":"Dataset[[#This Row],[2025/26 Reduction]]+Dataset[[#This Row],[2025/26 From - Total]]","v":0},{"$f":"Dataset[[#This Row],[2026/27 Reduction]]+Dataset[[#This Row],[2026/27 From - Total]]","v":0},{"$f":"Dataset[[#This Row],[2023/24 Reduction]]","v":0},{"$f":"SUM(Dataset[[#This Row],[2024/25 Reduction]],Dataset[[#This Row],[2024/25 From - Total]],Dataset[[#This Row],[2024/25 To - Total]])","v":0},{"$f":"SUM(Dataset[[#This Row],[2025/26 Reduction]],Dataset[[#This Row],[2025/26 From - Total]],Dataset[[#This Row],[2025/26 To - Total]])","v":0},{"$f":"SUM(Dataset[[#This Row],[2026/27 Reduction]],Dataset[[#This Row],[2026/27 From - Total]],Dataset[[#This Row],[2026/27 To - Total]])","v":0},{"$f":"Dataset[[#This Row],[2023/24 Baseline]]+Dataset[[#This Row],[2023/24 Total change]]","v":7696},{"$f":"Dataset[[#This Row],[2024/25 Baseline]]+Dataset[[#This Row],[2024/25 Total change]]","v":9330},{"$f":"Dataset[[#This Row],[2025/26 Baseline]]+Dataset[[#This Row],[2025/26 Total change]]","v":11157},{"$f":"Dataset[[#This Row],[2026/27 Baseline]]+Dataset[[#This Row],[2026/27 Total change]]","v":11668}]
["NAT|Non-transfer item","26|Training and development","2024_25","MTEF2024",26,3,3,44772,885,"26","03","03","044772","000885","26|03|03","01","01","02","38","38","01|01|02|38|38","National","Military Veterans","Empowerment and Stakeholder Management","Heritage, Memorials, Burials and Honours","Non-transfer item","Current","Current payments","Goods and services","Training and development","Training and development","Peace and security","Defence and state security","NAT",0,0,0,0,0,0,0,0,0,0,0,null,null,null,null,null,null,null,null,null,null,null,null,null,null,null,null,null,null,null,null,null,null,null,null,null,null,null,null,null,null,null,null,null,null,{"$f":"Dataset[[#This Row],[2024/25 From - Spending review Topic 1]]+Dataset[[#This Row],[2024/25 From - Spending review Topic 2]]+Dataset[[#This Row],[2024/25 From - Spending review Topic 3]]+Dataset[[#This Row],[2024/25 From - Spending review Topic 4]]+Dataset[[#This Row],[2024/25 From - Other reallocations]]","v":0},{"$f":"Dataset[[#This Row],[2025/26 From - Spending review Topic 1]]+Dataset[[#This Row],[2025/26 From - Spending review Topic 2]]+Dataset[[#This Row],[2025/26 From - Spending review Topic 3]]+Dataset[[#This Row],[2025/26 From - Spending review Topic 4]]+Dataset[[#This Row],[2025/26 From - Other reallocations]]","v":0},{"$f":"Dataset[[#This Row],[2026/27 From - Spending review Topic 1]]+Dataset[[#This Row],[2026/27 From - Spending review Topic 2]]+Dataset[[#This Row],[2026/27 From - Spending review Topic 3]]+Dataset[[#This Row],[2026/27 From - Spending review Topic 4]]+Dataset[[#This Row],[2026/27 From - Other reallocations]]","v":0},{"$f":"Dataset[[#This Row],[2024/25 To - Spending review Topic 1]]+Dataset[[#This Row],[2024/25 To - Spending review Topic 2]]+Dataset[[#This Row],[2024/25 To - Spending review Topic 3]]+Dataset[[#This Row],[2024/25 To - Spending review Topic 4]]+Dataset[[#This Row],[2024/25 To - Other reallocations]]","v":0},{"$f":"Dataset[[#This Row],[2025/26 To - Spending review Topic 1]]+Dataset[[#This Row],[2025/26 To - Spending review Topic 2]]+Dataset[[#This Row],[2025/26 To - Spending review Topic 3]]+Dataset[[#This Row],[2025/26 To - Spending review Topic 4]]+Dataset[[#This Row],[2025/26 To - Other reallocations]]","v":0},{"$f":"Dataset[[#This Row],[2026/27 To - Spending review Topic 1]]+Dataset[[#This Row],[2026/27 To - Spending review Topic 2]]+Dataset[[#This Row],[2026/27 To - Spending review Topic 3]]+Dataset[[#This Row],[2026/27 To - Spending review Topic 4]]+Dataset[[#This Row],[2026/27 To - Other reallocations]]","v":0},{"$f":"Dataset[[#This Row],[2024/25 Reduction]]+Dataset[[#This Row],[2024/25 From - Total]]","v":0},{"$f":"Dataset[[#This Row],[2025/26 Reduction]]+Dataset[[#This Row],[2025/26 From - Total]]","v":0},{"$f":"Dataset[[#This Row],[2026/27 Reduction]]+Dataset[[#This Row],[2026/27 From - Total]]","v":0},{"$f":"Dataset[[#This Row],[2023/24 Reduction]]","v":0},{"$f":"SUM(Dataset[[#This Row],[2024/25 Reduction]],Dataset[[#This Row],[2024/25 From - Total]],Dataset[[#This Row],[2024/25 To - Total]])","v":0},{"$f":"SUM(Dataset[[#This Row],[2025/26 Reduction]],Dataset[[#This Row],[2025/26 From - Total]],Dataset[[#This Row],[2025/26 To - Total]])","v":0},{"$f":"SUM(Dataset[[#This Row],[2026/27 Reduction]],Dataset[[#This Row],[2026/27 From - Total]],Dataset[[#This Row],[2026/27 To - Total]])","v":0},{"$f":"Dataset[[#This Row],[2023/24 Baseline]]+Dataset[[#This Row],[2023/24 Total change]]","v":0},{"$f":"Dataset[[#This Row],[2024/25 Baseline]]+Dataset[[#This Row],[2024/25 Total change]]","v":0},{"$f":"Dataset[[#This Row],[2025/26 Baseline]]+Dataset[[#This Row],[2025/26 Total change]]","v":0},{"$f":"Dataset[[#This Row],[2026/27 Baseline]]+Dataset[[#This Row],[2026/27 Total change]]","v":0}]
["NAT|Non-transfer item","26|Operating payments","2024_25","MTEF2024",26,3,3,44773,886,"26","03","03","044773","000886","26|03|03","01","01","02","39","39","01|01|02|39|39","National","Military Veterans","Empowerment and Stakeholder Management","Heritage, Memorials, Burials and Honours","Non-transfer item","Current","Current payments","Goods and services","Operating payments","Operating payments","Peace and security","Defence and state security","NAT",0,0,0,102,0,0,0,101,107,112,117,null,null,null,null,null,null,null,null,null,null,null,null,null,null,null,null,null,null,null,null,null,null,null,null,null,null,null,null,null,null,null,null,null,null,{"$f":"Dataset[[#This Row],[2024/25 From - Spending review Topic 1]]+Dataset[[#This Row],[2024/25 From - Spending review Topic 2]]+Dataset[[#This Row],[2024/25 From - Spending review Topic 3]]+Dataset[[#This Row],[2024/25 From - Spending review Topic 4]]+Dataset[[#This Row],[2024/25 From - Other reallocations]]","v":0},{"$f":"Dataset[[#This Row],[2025/26 From - Spending review Topic 1]]+Dataset[[#This Row],[2025/26 From - Spending review Topic 2]]+Dataset[[#This Row],[2025/26 From - Spending review Topic 3]]+Dataset[[#This Row],[2025/26 From - Spending review Topic 4]]+Dataset[[#This Row],[2025/26 From - Other reallocations]]","v":0},{"$f":"Dataset[[#This Row],[2026/27 From - Spending review Topic 1]]+Dataset[[#This Row],[2026/27 From - Spending review Topic 2]]+Dataset[[#This Row],[2026/27 From - Spending review Topic 3]]+Dataset[[#This Row],[2026/27 From - Spending review Topic 4]]+Dataset[[#This Row],[2026/27 From - Other reallocations]]","v":0},{"$f":"Dataset[[#This Row],[2024/25 To - Spending review Topic 1]]+Dataset[[#This Row],[2024/25 To - Spending review Topic 2]]+Dataset[[#This Row],[2024/25 To - Spending review Topic 3]]+Dataset[[#This Row],[2024/25 To - Spending review Topic 4]]+Dataset[[#This Row],[2024/25 To - Other reallocations]]","v":0},{"$f":"Dataset[[#This Row],[2025/26 To - Spending review Topic 1]]+Dataset[[#This Row],[2025/26 To - Spending review Topic 2]]+Dataset[[#This Row],[2025/26 To - Spending review Topic 3]]+Dataset[[#This Row],[2025/26 To - Spending review Topic 4]]+Dataset[[#This Row],[2025/26 To - Other reallocations]]","v":0},{"$f":"Dataset[[#This Row],[2026/27 To - Spending review Topic 1]]+Dataset[[#This Row],[2026/27 To - Spending review Topic 2]]+Dataset[[#This Row],[2026/27 To - Spending review Topic 3]]+Dataset[[#This Row],[2026/27 To - Spending review Topic 4]]+Dataset[[#This Row],[2026/27 To - Other reallocations]]","v":0},{"$f":"Dataset[[#This Row],[2024/25 Reduction]]+Dataset[[#This Row],[2024/25 From - Total]]","v":0},{"$f":"Dataset[[#This Row],[2025/26 Reduction]]+Dataset[[#This Row],[2025/26 From - Total]]","v":0},{"$f":"Dataset[[#This Row],[2026/27 Reduction]]+Dataset[[#This Row],[2026/27 From - Total]]","v":0},{"$f":"Dataset[[#This Row],[2023/24 Reduction]]","v":0},{"$f":"SUM(Dataset[[#This Row],[2024/25 Reduction]],Dataset[[#This Row],[2024/25 From - Total]],Dataset[[#This Row],[2024/25 To - Total]])","v":0},{"$f":"SUM(Dataset[[#This Row],[2025/26 Reduction]],Dataset[[#This Row],[2025/26 From - Total]],Dataset[[#This Row],[2025/26 To - Total]])","v":0},{"$f":"SUM(Dataset[[#This Row],[2026/27 Reduction]],Dataset[[#This Row],[2026/27 From - Total]],Dataset[[#This Row],[2026/27 To - Total]])","v":0},{"$f":"Dataset[[#This Row],[2023/24 Baseline]]+Dataset[[#This Row],[2023/24 Total change]]","v":101},{"$f":"Dataset[[#This Row],[2024/25 Baseline]]+Dataset[[#This Row],[2024/25 Total change]]","v":107},{"$f":"Dataset[[#This Row],[2025/26 Baseline]]+Dataset[[#This Row],[2025/26 Total change]]","v":112},{"$f":"Dataset[[#This Row],[2026/27 Baseline]]+Dataset[[#This Row],[2026/27 Total change]]","v":117}]
["NAT|Non-transfer item","26|Venues and facilities","2024_25","MTEF2024",26,3,3,44774,887,"26","03","03","044774","000887","26|03|03","01","01","02","40","40","01|01|02|40|40","National","Military Veterans","Empowerment and Stakeholder Management","Heritage, Memorials, Burials and Honours","Non-transfer item","Current","Current payments","Goods and services","Venues and facilities","Venues and facilities","Peace and security","Defence and state security","NAT",0,17,14,1215,570,570,0,214,275,332,347,null,null,null,null,null,null,null,null,null,null,null,null,null,null,null,null,null,null,null,null,null,null,null,null,null,null,null,null,null,null,null,null,null,null,{"$f":"Dataset[[#This Row],[2024/25 From - Spending review Topic 1]]+Dataset[[#This Row],[2024/25 From - Spending review Topic 2]]+Dataset[[#This Row],[2024/25 From - Spending review Topic 3]]+Dataset[[#This Row],[2024/25 From - Spending review Topic 4]]+Dataset[[#This Row],[2024/25 From - Other reallocations]]","v":0},{"$f":"Dataset[[#This Row],[2025/26 From - Spending review Topic 1]]+Dataset[[#This Row],[2025/26 From - Spending review Topic 2]]+Dataset[[#This Row],[2025/26 From - Spending review Topic 3]]+Dataset[[#This Row],[2025/26 From - Spending review Topic 4]]+Dataset[[#This Row],[2025/26 From - Other reallocations]]","v":0},{"$f":"Dataset[[#This Row],[2026/27 From - Spending review Topic 1]]+Dataset[[#This Row],[2026/27 From - Spending review Topic 2]]+Dataset[[#This Row],[2026/27 From - Spending review Topic 3]]+Dataset[[#This Row],[2026/27 From - Spending review Topic 4]]+Dataset[[#This Row],[2026/27 From - Other reallocations]]","v":0},{"$f":"Dataset[[#This Row],[2024/25 To - Spending review Topic 1]]+Dataset[[#This Row],[2024/25 To - Spending review Topic 2]]+Dataset[[#This Row],[2024/25 To - Spending review Topic 3]]+Dataset[[#This Row],[2024/25 To - Spending review Topic 4]]+Dataset[[#This Row],[2024/25 To - Other reallocations]]","v":0},{"$f":"Dataset[[#This Row],[2025/26 To - Spending review Topic 1]]+Dataset[[#This Row],[2025/26 To - Spending review Topic 2]]+Dataset[[#This Row],[2025/26 To - Spending review Topic 3]]+Dataset[[#This Row],[2025/26 To - Spending review Topic 4]]+Dataset[[#This Row],[2025/26 To - Other reallocations]]","v":0},{"$f":"Dataset[[#This Row],[2026/27 To - Spending review Topic 1]]+Dataset[[#This Row],[2026/27 To - Spending review Topic 2]]+Dataset[[#This Row],[2026/27 To - Spending review Topic 3]]+Dataset[[#This Row],[2026/27 To - Spending review Topic 4]]+Dataset[[#This Row],[2026/27 To - Other reallocations]]","v":0},{"$f":"Dataset[[#This Row],[2024/25 Reduction]]+Dataset[[#This Row],[2024/25 From - Total]]","v":0},{"$f":"Dataset[[#This Row],[2025/26 Reduction]]+Dataset[[#This Row],[2025/26 From - Total]]","v":0},{"$f":"Dataset[[#This Row],[2026/27 Reduction]]+Dataset[[#This Row],[2026/27 From - Total]]","v":0},{"$f":"Dataset[[#This Row],[2023/24 Reduction]]","v":0},{"$f":"SUM(Dataset[[#This Row],[2024/25 Reduction]],Dataset[[#This Row],[2024/25 From - Total]],Dataset[[#This Row],[2024/25 To - Total]])","v":0},{"$f":"SUM(Dataset[[#This Row],[2025/26 Reduction]],Dataset[[#This Row],[2025/26 From - Total]],Dataset[[#This Row],[2025/26 To - Total]])","v":0},{"$f":"SUM(Dataset[[#This Row],[2026/27 Reduction]],Dataset[[#This Row],[2026/27 From - Total]],Dataset[[#This Row],[2026/27 To - Total]])","v":0},{"$f":"Dataset[[#This Row],[2023/24 Baseline]]+Dataset[[#This Row],[2023/24 Total change]]","v":214},{"$f":"Dataset[[#This Row],[2024/25 Baseline]]+Dataset[[#This Row],[2024/25 Total change]]","v":275},{"$f":"Dataset[[#This Row],[2025/26 Baseline]]+Dataset[[#This Row],[2025/26 Total change]]","v":332},{"$f":"Dataset[[#This Row],[2026/27 Baseline]]+Dataset[[#This Row],[2026/27 Total change]]","v":347}]
["NAT|Non-transfer item","26|Interest (Incl. interest on unitary payments (PPP))","2024_25","MTEF2024",26,3,3,44775,888,"26","03","03","044775","000888","26|03|03","01","01","03","41","41","01|01|03|41|41","National","Military Veterans","Empowerment and Stakeholder Management","Heritage, Memorials, Burials and Honours","Non-transfer item","Current","Current payments","Interest and rent on land","Interest (Incl. interest on unitary payments (PPP))","Interest (Incl. interest on unitary payments (PPP))","Peace and security","Defence and state security","NAT",13,0,0,0,0,0,0,0,0,0,0,null,null,null,null,null,null,null,null,null,null,null,null,null,null,null,null,null,null,null,null,null,null,null,null,null,null,null,null,null,null,null,null,null,null,{"$f":"Dataset[[#This Row],[2024/25 From - Spending review Topic 1]]+Dataset[[#This Row],[2024/25 From - Spending review Topic 2]]+Dataset[[#This Row],[2024/25 From - Spending review Topic 3]]+Dataset[[#This Row],[2024/25 From - Spending review Topic 4]]+Dataset[[#This Row],[2024/25 From - Other reallocations]]","v":0},{"$f":"Dataset[[#This Row],[2025/26 From - Spending review Topic 1]]+Dataset[[#This Row],[2025/26 From - Spending review Topic 2]]+Dataset[[#This Row],[2025/26 From - Spending review Topic 3]]+Dataset[[#This Row],[2025/26 From - Spending review Topic 4]]+Dataset[[#This Row],[2025/26 From - Other reallocations]]","v":0},{"$f":"Dataset[[#This Row],[2026/27 From - Spending review Topic 1]]+Dataset[[#This Row],[2026/27 From - Spending review Topic 2]]+Dataset[[#This Row],[2026/27 From - Spending review Topic 3]]+Dataset[[#This Row],[2026/27 From - Spending review Topic 4]]+Dataset[[#This Row],[2026/27 From - Other reallocations]]","v":0},{"$f":"Dataset[[#This Row],[2024/25 To - Spending review Topic 1]]+Dataset[[#This Row],[2024/25 To - Spending review Topic 2]]+Dataset[[#This Row],[2024/25 To - Spending review Topic 3]]+Dataset[[#This Row],[2024/25 To - Spending review Topic 4]]+Dataset[[#This Row],[2024/25 To - Other reallocations]]","v":0},{"$f":"Dataset[[#This Row],[2025/26 To - Spending review Topic 1]]+Dataset[[#This Row],[2025/26 To - Spending review Topic 2]]+Dataset[[#This Row],[2025/26 To - Spending review Topic 3]]+Dataset[[#This Row],[2025/26 To - Spending review Topic 4]]+Dataset[[#This Row],[2025/26 To - Other reallocations]]","v":0},{"$f":"Dataset[[#This Row],[2026/27 To - Spending review Topic 1]]+Dataset[[#This Row],[2026/27 To - Spending review Topic 2]]+Dataset[[#This Row],[2026/27 To - Spending review Topic 3]]+Dataset[[#This Row],[2026/27 To - Spending review Topic 4]]+Dataset[[#This Row],[2026/27 To - Other reallocations]]","v":0},{"$f":"Dataset[[#This Row],[2024/25 Reduction]]+Dataset[[#This Row],[2024/25 From - Total]]","v":0},{"$f":"Dataset[[#This Row],[2025/26 Reduction]]+Dataset[[#This Row],[2025/26 From - Total]]","v":0},{"$f":"Dataset[[#This Row],[2026/27 Reduction]]+Dataset[[#This Row],[2026/27 From - Total]]","v":0},{"$f":"Dataset[[#This Row],[2023/24 Reduction]]","v":0},{"$f":"SUM(Dataset[[#This Row],[2024/25 Reduction]],Dataset[[#This Row],[2024/25 From - Total]],Dataset[[#This Row],[2024/25 To - Total]])","v":0},{"$f":"SUM(Dataset[[#This Row],[2025/26 Reduction]],Dataset[[#This Row],[2025/26 From - Total]],Dataset[[#This Row],[2025/26 To - Total]])","v":0},{"$f":"SUM(Dataset[[#This Row],[2026/27 Reduction]],Dataset[[#This Row],[2026/27 From - Total]],Dataset[[#This Row],[2026/27 To - Total]])","v":0},{"$f":"Dataset[[#This Row],[2023/24 Baseline]]+Dataset[[#This Row],[2023/24 Total change]]","v":0},{"$f":"Dataset[[#This Row],[2024/25 Baseline]]+Dataset[[#This Row],[2024/25 Total change]]","v":0},{"$f":"Dataset[[#This Row],[2025/26 Baseline]]+Dataset[[#This Row],[2025/26 Total change]]","v":0},{"$f":"Dataset[[#This Row],[2026/27 Baseline]]+Dataset[[#This Row],[2026/27 Total change]]","v":0}]
["NAT|Non-transfer item","26|Rent on land","2024_25","MTEF2024",26,3,3,44776,889,"26","03","03","044776","000889","26|03|03","01","01","03","42","42","01|01|03|42|42","National","Military Veterans","Empowerment and Stakeholder Management","Heritage, Memorials, Burials and Honours","Non-transfer item","Current","Current payments","Interest and rent on land","Rent on land","Rent on land","Peace and security","Defence and state security","NAT",0,0,0,0,0,0,0,0,0,0,0,null,null,null,null,null,null,null,null,null,null,null,null,null,null,null,null,null,null,null,null,null,null,null,null,null,null,null,null,null,null,null,null,null,null,{"$f":"Dataset[[#This Row],[2024/25 From - Spending review Topic 1]]+Dataset[[#This Row],[2024/25 From - Spending review Topic 2]]+Dataset[[#This Row],[2024/25 From - Spending review Topic 3]]+Dataset[[#This Row],[2024/25 From - Spending review Topic 4]]+Dataset[[#This Row],[2024/25 From - Other reallocations]]","v":0},{"$f":"Dataset[[#This Row],[2025/26 From - Spending review Topic 1]]+Dataset[[#This Row],[2025/26 From - Spending review Topic 2]]+Dataset[[#This Row],[2025/26 From - Spending review Topic 3]]+Dataset[[#This Row],[2025/26 From - Spending review Topic 4]]+Dataset[[#This Row],[2025/26 From - Other reallocations]]","v":0},{"$f":"Dataset[[#This Row],[2026/27 From - Spending review Topic 1]]+Dataset[[#This Row],[2026/27 From - Spending review Topic 2]]+Dataset[[#This Row],[2026/27 From - Spending review Topic 3]]+Dataset[[#This Row],[2026/27 From - Spending review Topic 4]]+Dataset[[#This Row],[2026/27 From - Other reallocations]]","v":0},{"$f":"Dataset[[#This Row],[2024/25 To - Spending review Topic 1]]+Dataset[[#This Row],[2024/25 To - Spending review Topic 2]]+Dataset[[#This Row],[2024/25 To - Spending review Topic 3]]+Dataset[[#This Row],[2024/25 To - Spending review Topic 4]]+Dataset[[#This Row],[2024/25 To - Other reallocations]]","v":0},{"$f":"Dataset[[#This Row],[2025/26 To - Spending review Topic 1]]+Dataset[[#This Row],[2025/26 To - Spending review Topic 2]]+Dataset[[#This Row],[2025/26 To - Spending review Topic 3]]+Dataset[[#This Row],[2025/26 To - Spending review Topic 4]]+Dataset[[#This Row],[2025/26 To - Other reallocations]]","v":0},{"$f":"Dataset[[#This Row],[2026/27 To - Spending review Topic 1]]+Dataset[[#This Row],[2026/27 To - Spending review Topic 2]]+Dataset[[#This Row],[2026/27 To - Spending review Topic 3]]+Dataset[[#This Row],[2026/27 To - Spending review Topic 4]]+Dataset[[#This Row],[2026/27 To - Other reallocations]]","v":0},{"$f":"Dataset[[#This Row],[2024/25 Reduction]]+Dataset[[#This Row],[2024/25 From - Total]]","v":0},{"$f":"Dataset[[#This Row],[2025/26 Reduction]]+Dataset[[#This Row],[2025/26 From - Total]]","v":0},{"$f":"Dataset[[#This Row],[2026/27 Reduction]]+Dataset[[#This Row],[2026/27 From - Total]]","v":0},{"$f":"Dataset[[#This Row],[2023/24 Reduction]]","v":0},{"$f":"SUM(Dataset[[#This Row],[2024/25 Reduction]],Dataset[[#This Row],[2024/25 From - Total]],Dataset[[#This Row],[2024/25 To - Total]])","v":0},{"$f":"SUM(Dataset[[#This Row],[2025/26 Reduction]],Dataset[[#This Row],[2025/26 From - Total]],Dataset[[#This Row],[2025/26 To - Total]])","v":0},{"$f":"SUM(Dataset[[#This Row],[2026/27 Reduction]],Dataset[[#This Row],[2026/27 From - Total]],Dataset[[#This Row],[2026/27 To - Total]])","v":0},{"$f":"Dataset[[#This Row],[2023/24 Baseline]]+Dataset[[#This Row],[2023/24 Total change]]","v":0},{"$f":"Dataset[[#This Row],[2024/25 Baseline]]+Dataset[[#This Row],[2024/25 Total change]]","v":0},{"$f":"Dataset[[#This Row],[2025/26 Baseline]]+Dataset[[#This Row],[2025/26 Total change]]","v":0},{"$f":"Dataset[[#This Row],[2026/27 Baseline]]+Dataset[[#This Row],[2026/27 Total change]]","v":0}]
["NAT|Non-transfer item","26|Provincial Revenue Funds","2024_25","MTEF2024",26,3,3,44777,890,"26","03","03","044777","000890","26|03|03","01","02","04","43","43","01|02|04|43|43","National","Military Veterans","Empowerment and Stakeholder Management","Heritage, Memorials, Burials and Honours","Non-transfer item","Current","Transfers and subsidies","Provinces and municipalities","Provinces","Provincial Revenue Funds","Peace and security","Defence and state security","NAT",0,0,0,0,0,0,0,0,0,0,0,null,null,null,null,null,null,null,null,null,null,null,null,null,null,null,null,null,null,null,null,null,null,null,null,null,null,null,null,null,null,null,null,null,null,{"$f":"Dataset[[#This Row],[2024/25 From - Spending review Topic 1]]+Dataset[[#This Row],[2024/25 From - Spending review Topic 2]]+Dataset[[#This Row],[2024/25 From - Spending review Topic 3]]+Dataset[[#This Row],[2024/25 From - Spending review Topic 4]]+Dataset[[#This Row],[2024/25 From - Other reallocations]]","v":0},{"$f":"Dataset[[#This Row],[2025/26 From - Spending review Topic 1]]+Dataset[[#This Row],[2025/26 From - Spending review Topic 2]]+Dataset[[#This Row],[2025/26 From - Spending review Topic 3]]+Dataset[[#This Row],[2025/26 From - Spending review Topic 4]]+Dataset[[#This Row],[2025/26 From - Other reallocations]]","v":0},{"$f":"Dataset[[#This Row],[2026/27 From - Spending review Topic 1]]+Dataset[[#This Row],[2026/27 From - Spending review Topic 2]]+Dataset[[#This Row],[2026/27 From - Spending review Topic 3]]+Dataset[[#This Row],[2026/27 From - Spending review Topic 4]]+Dataset[[#This Row],[2026/27 From - Other reallocations]]","v":0},{"$f":"Dataset[[#This Row],[2024/25 To - Spending review Topic 1]]+Dataset[[#This Row],[2024/25 To - Spending review Topic 2]]+Dataset[[#This Row],[2024/25 To - Spending review Topic 3]]+Dataset[[#This Row],[2024/25 To - Spending review Topic 4]]+Dataset[[#This Row],[2024/25 To - Other reallocations]]","v":0},{"$f":"Dataset[[#This Row],[2025/26 To - Spending review Topic 1]]+Dataset[[#This Row],[2025/26 To - Spending review Topic 2]]+Dataset[[#This Row],[2025/26 To - Spending review Topic 3]]+Dataset[[#This Row],[2025/26 To - Spending review Topic 4]]+Dataset[[#This Row],[2025/26 To - Other reallocations]]","v":0},{"$f":"Dataset[[#This Row],[2026/27 To - Spending review Topic 1]]+Dataset[[#This Row],[2026/27 To - Spending review Topic 2]]+Dataset[[#This Row],[2026/27 To - Spending review Topic 3]]+Dataset[[#This Row],[2026/27 To - Spending review Topic 4]]+Dataset[[#This Row],[2026/27 To - Other reallocations]]","v":0},{"$f":"Dataset[[#This Row],[2024/25 Reduction]]+Dataset[[#This Row],[2024/25 From - Total]]","v":0},{"$f":"Dataset[[#This Row],[2025/26 Reduction]]+Dataset[[#This Row],[2025/26 From - Total]]","v":0},{"$f":"Dataset[[#This Row],[2026/27 Reduction]]+Dataset[[#This Row],[2026/27 From - Total]]","v":0},{"$f":"Dataset[[#This Row],[2023/24 Reduction]]","v":0},{"$f":"SUM(Dataset[[#This Row],[2024/25 Reduction]],Dataset[[#This Row],[2024/25 From - Total]],Dataset[[#This Row],[2024/25 To - Total]])","v":0},{"$f":"SUM(Dataset[[#This Row],[2025/26 Reduction]],Dataset[[#This Row],[2025/26 From - Total]],Dataset[[#This Row],[2025/26 To - Total]])","v":0},{"$f":"SUM(Dataset[[#This Row],[2026/27 Reduction]],Dataset[[#This Row],[2026/27 From - Total]],Dataset[[#This Row],[2026/27 To - Total]])","v":0},{"$f":"Dataset[[#This Row],[2023/24 Baseline]]+Dataset[[#This Row],[2023/24 Total change]]","v":0},{"$f":"Dataset[[#This Row],[2024/25 Baseline]]+Dataset[[#This Row],[2024/25 Total change]]","v":0},{"$f":"Dataset[[#This Row],[2025/26 Baseline]]+Dataset[[#This Row],[2025/26 Total change]]","v":0},{"$f":"Dataset[[#This Row],[2026/27 Baseline]]+Dataset[[#This Row],[2026/27 Total change]]","v":0}]
["NAT|Non-transfer item","26|Provincial agencies and funds","2024_25","MTEF2024",26,3,3,44778,891,"26","03","03","044778","000891","26|03|03","01","02","04","43","44","01|02|04|43|44","National","Military Veterans","Empowerment and Stakeholder Management","Heritage, Memorials, Burials and Honours","Non-transfer item","Current","Transfers and subsidies","Provinces and municipalities","Provinces","Provincial agencies and funds","Peace and security","Defence and state security","NAT",0,0,0,0,0,0,0,0,0,0,0,null,null,null,null,null,null,null,null,null,null,null,null,null,null,null,null,null,null,null,null,null,null,null,null,null,null,null,null,null,null,null,null,null,null,{"$f":"Dataset[[#This Row],[2024/25 From - Spending review Topic 1]]+Dataset[[#This Row],[2024/25 From - Spending review Topic 2]]+Dataset[[#This Row],[2024/25 From - Spending review Topic 3]]+Dataset[[#This Row],[2024/25 From - Spending review Topic 4]]+Dataset[[#This Row],[2024/25 From - Other reallocations]]","v":0},{"$f":"Dataset[[#This Row],[2025/26 From - Spending review Topic 1]]+Dataset[[#This Row],[2025/26 From - Spending review Topic 2]]+Dataset[[#This Row],[2025/26 From - Spending review Topic 3]]+Dataset[[#This Row],[2025/26 From - Spending review Topic 4]]+Dataset[[#This Row],[2025/26 From - Other reallocations]]","v":0},{"$f":"Dataset[[#This Row],[2026/27 From - Spending review Topic 1]]+Dataset[[#This Row],[2026/27 From - Spending review Topic 2]]+Dataset[[#This Row],[2026/27 From - Spending review Topic 3]]+Dataset[[#This Row],[2026/27 From - Spending review Topic 4]]+Dataset[[#This Row],[2026/27 From - Other reallocations]]","v":0},{"$f":"Dataset[[#This Row],[2024/25 To - Spending review Topic 1]]+Dataset[[#This Row],[2024/25 To - Spending review Topic 2]]+Dataset[[#This Row],[2024/25 To - Spending review Topic 3]]+Dataset[[#This Row],[2024/25 To - Spending review Topic 4]]+Dataset[[#This Row],[2024/25 To - Other reallocations]]","v":0},{"$f":"Dataset[[#This Row],[2025/26 To - Spending review Topic 1]]+Dataset[[#This Row],[2025/26 To - Spending review Topic 2]]+Dataset[[#This Row],[2025/26 To - Spending review Topic 3]]+Dataset[[#This Row],[2025/26 To - Spending review Topic 4]]+Dataset[[#This Row],[2025/26 To - Other reallocations]]","v":0},{"$f":"Dataset[[#This Row],[2026/27 To - Spending review Topic 1]]+Dataset[[#This Row],[2026/27 To - Spending review Topic 2]]+Dataset[[#This Row],[2026/27 To - Spending review Topic 3]]+Dataset[[#This Row],[2026/27 To - Spending review Topic 4]]+Dataset[[#This Row],[2026/27 To - Other reallocations]]","v":0},{"$f":"Dataset[[#This Row],[2024/25 Reduction]]+Dataset[[#This Row],[2024/25 From - Total]]","v":0},{"$f":"Dataset[[#This Row],[2025/26 Reduction]]+Dataset[[#This Row],[2025/26 From - Total]]","v":0},{"$f":"Dataset[[#This Row],[2026/27 Reduction]]+Dataset[[#This Row],[2026/27 From - Total]]","v":0},{"$f":"Dataset[[#This Row],[2023/24 Reduction]]","v":0},{"$f":"SUM(Dataset[[#This Row],[2024/25 Reduction]],Dataset[[#This Row],[2024/25 From - Total]],Dataset[[#This Row],[2024/25 To - Total]])","v":0},{"$f":"SUM(Dataset[[#This Row],[2025/26 Reduction]],Dataset[[#This Row],[2025/26 From - Total]],Dataset[[#This Row],[2025/26 To - Total]])","v":0},{"$f":"SUM(Dataset[[#This Row],[2026/27 Reduction]],Dataset[[#This Row],[2026/27 From - Total]],Dataset[[#This Row],[2026/27 To - Total]])","v":0},{"$f":"Dataset[[#This Row],[2023/24 Baseline]]+Dataset[[#This Row],[2023/24 Total change]]","v":0},{"$f":"Dataset[[#This Row],[2024/25 Baseline]]+Dataset[[#This Row],[2024/25 Total change]]","v":0},{"$f":"Dataset[[#This Row],[2025/26 Baseline]]+Dataset[[#This Row],[2025/26 Total change]]","v":0},{"$f":"Dataset[[#This Row],[2026/27 Baseline]]+Dataset[[#This Row],[2026/27 Total change]]","v":0}]
["NAT|Non-transfer item","26|Municipal bank accounts","2024_25","MTEF2024",26,3,3,44779,892,"26","03","03","044779","000892","26|03|03","01","02","04","44","45","01|02|04|44|45","National","Military Veterans","Empowerment and Stakeholder Management","Heritage, Memorials, Burials and Honours","Non-transfer item","Current","Transfers and subsidies","Provinces and municipalities","Municipalities","Municipal bank accounts","Peace and security","Defence and state security","NAT",0,0,0,0,0,0,0,0,0,0,0,null,null,null,null,null,null,null,null,null,null,null,null,null,null,null,null,null,null,null,null,null,null,null,null,null,null,null,null,null,null,null,null,null,null,{"$f":"Dataset[[#This Row],[2024/25 From - Spending review Topic 1]]+Dataset[[#This Row],[2024/25 From - Spending review Topic 2]]+Dataset[[#This Row],[2024/25 From - Spending review Topic 3]]+Dataset[[#This Row],[2024/25 From - Spending review Topic 4]]+Dataset[[#This Row],[2024/25 From - Other reallocations]]","v":0},{"$f":"Dataset[[#This Row],[2025/26 From - Spending review Topic 1]]+Dataset[[#This Row],[2025/26 From - Spending review Topic 2]]+Dataset[[#This Row],[2025/26 From - Spending review Topic 3]]+Dataset[[#This Row],[2025/26 From - Spending review Topic 4]]+Dataset[[#This Row],[2025/26 From - Other reallocations]]","v":0},{"$f":"Dataset[[#This Row],[2026/27 From - Spending review Topic 1]]+Dataset[[#This Row],[2026/27 From - Spending review Topic 2]]+Dataset[[#This Row],[2026/27 From - Spending review Topic 3]]+Dataset[[#This Row],[2026/27 From - Spending review Topic 4]]+Dataset[[#This Row],[2026/27 From - Other reallocations]]","v":0},{"$f":"Dataset[[#This Row],[2024/25 To - Spending review Topic 1]]+Dataset[[#This Row],[2024/25 To - Spending review Topic 2]]+Dataset[[#This Row],[2024/25 To - Spending review Topic 3]]+Dataset[[#This Row],[2024/25 To - Spending review Topic 4]]+Dataset[[#This Row],[2024/25 To - Other reallocations]]","v":0},{"$f":"Dataset[[#This Row],[2025/26 To - Spending review Topic 1]]+Dataset[[#This Row],[2025/26 To - Spending review Topic 2]]+Dataset[[#This Row],[2025/26 To - Spending review Topic 3]]+Dataset[[#This Row],[2025/26 To - Spending review Topic 4]]+Dataset[[#This Row],[2025/26 To - Other reallocations]]","v":0},{"$f":"Dataset[[#This Row],[2026/27 To - Spending review Topic 1]]+Dataset[[#This Row],[2026/27 To - Spending review Topic 2]]+Dataset[[#This Row],[2026/27 To - Spending review Topic 3]]+Dataset[[#This Row],[2026/27 To - Spending review Topic 4]]+Dataset[[#This Row],[2026/27 To - Other reallocations]]","v":0},{"$f":"Dataset[[#This Row],[2024/25 Reduction]]+Dataset[[#This Row],[2024/25 From - Total]]","v":0},{"$f":"Dataset[[#This Row],[2025/26 Reduction]]+Dataset[[#This Row],[2025/26 From - Total]]","v":0},{"$f":"Dataset[[#This Row],[2026/27 Reduction]]+Dataset[[#This Row],[2026/27 From - Total]]","v":0},{"$f":"Dataset[[#This Row],[2023/24 Reduction]]","v":0},{"$f":"SUM(Dataset[[#This Row],[2024/25 Reduction]],Dataset[[#This Row],[2024/25 From - Total]],Dataset[[#This Row],[2024/25 To - Total]])","v":0},{"$f":"SUM(Dataset[[#This Row],[2025/26 Reduction]],Dataset[[#This Row],[2025/26 From - Total]],Dataset[[#This Row],[2025/26 To - Total]])","v":0},{"$f":"SUM(Dataset[[#This Row],[2026/27 Reduction]],Dataset[[#This Row],[2026/27 From - Total]],Dataset[[#This Row],[2026/27 To - Total]])","v":0},{"$f":"Dataset[[#This Row],[2023/24 Baseline]]+Dataset[[#This Row],[2023/24 Total change]]","v":0},{"$f":"Dataset[[#This Row],[2024/25 Baseline]]+Dataset[[#This Row],[2024/25 Total change]]","v":0},{"$f":"Dataset[[#This Row],[2025/26 Baseline]]+Dataset[[#This Row],[2025/26 Total change]]","v":0},{"$f":"Dataset[[#This Row],[2026/27 Baseline]]+Dataset[[#This Row],[2026/27 Total change]]","v":0}]
["NAT|Non-transfer item","26|Municipal agencies and funds","2024_25","MTEF2024",26,3,3,44780,893,"26","03","03","044780","000893","26|03|03","01","02","04","44","46","01|02|04|44|46","National","Military Veterans","Empowerment and Stakeholder Management","Heritage, Memorials, Burials and Honours","Non-transfer item","Current","Transfers and subsidies","Provinces and municipalities","Municipalities","Municipal agencies and funds","Peace and security","Defence and state security","NAT",0,0,0,0,0,0,0,0,0,0,0,null,null,null,null,null,null,null,null,null,null,null,null,null,null,null,null,null,null,null,null,null,null,null,null,null,null,null,null,null,null,null,null,null,null,{"$f":"Dataset[[#This Row],[2024/25 From - Spending review Topic 1]]+Dataset[[#This Row],[2024/25 From - Spending review Topic 2]]+Dataset[[#This Row],[2024/25 From - Spending review Topic 3]]+Dataset[[#This Row],[2024/25 From - Spending review Topic 4]]+Dataset[[#This Row],[2024/25 From - Other reallocations]]","v":0},{"$f":"Dataset[[#This Row],[2025/26 From - Spending review Topic 1]]+Dataset[[#This Row],[2025/26 From - Spending review Topic 2]]+Dataset[[#This Row],[2025/26 From - Spending review Topic 3]]+Dataset[[#This Row],[2025/26 From - Spending review Topic 4]]+Dataset[[#This Row],[2025/26 From - Other reallocations]]","v":0},{"$f":"Dataset[[#This Row],[2026/27 From - Spending review Topic 1]]+Dataset[[#This Row],[2026/27 From - Spending review Topic 2]]+Dataset[[#This Row],[2026/27 From - Spending review Topic 3]]+Dataset[[#This Row],[2026/27 From - Spending review Topic 4]]+Dataset[[#This Row],[2026/27 From - Other reallocations]]","v":0},{"$f":"Dataset[[#This Row],[2024/25 To - Spending review Topic 1]]+Dataset[[#This Row],[2024/25 To - Spending review Topic 2]]+Dataset[[#This Row],[2024/25 To - Spending review Topic 3]]+Dataset[[#This Row],[2024/25 To - Spending review Topic 4]]+Dataset[[#This Row],[2024/25 To - Other reallocations]]","v":0},{"$f":"Dataset[[#This Row],[2025/26 To - Spending review Topic 1]]+Dataset[[#This Row],[2025/26 To - Spending review Topic 2]]+Dataset[[#This Row],[2025/26 To - Spending review Topic 3]]+Dataset[[#This Row],[2025/26 To - Spending review Topic 4]]+Dataset[[#This Row],[2025/26 To - Other reallocations]]","v":0},{"$f":"Dataset[[#This Row],[2026/27 To - Spending review Topic 1]]+Dataset[[#This Row],[2026/27 To - Spending review Topic 2]]+Dataset[[#This Row],[2026/27 To - Spending review Topic 3]]+Dataset[[#This Row],[2026/27 To - Spending review Topic 4]]+Dataset[[#This Row],[2026/27 To - Other reallocations]]","v":0},{"$f":"Dataset[[#This Row],[2024/25 Reduction]]+Dataset[[#This Row],[2024/25 From - Total]]","v":0},{"$f":"Dataset[[#This Row],[2025/26 Reduction]]+Dataset[[#This Row],[2025/26 From - Total]]","v":0},{"$f":"Dataset[[#This Row],[2026/27 Reduction]]+Dataset[[#This Row],[2026/27 From - Total]]","v":0},{"$f":"Dataset[[#This Row],[2023/24 Reduction]]","v":0},{"$f":"SUM(Dataset[[#This Row],[2024/25 Reduction]],Dataset[[#This Row],[2024/25 From - Total]],Dataset[[#This Row],[2024/25 To - Total]])","v":0},{"$f":"SUM(Dataset[[#This Row],[2025/26 Reduction]],Dataset[[#This Row],[2025/26 From - Total]],Dataset[[#This Row],[2025/26 To - Total]])","v":0},{"$f":"SUM(Dataset[[#This Row],[2026/27 Reduction]],Dataset[[#This Row],[2026/27 From - Total]],Dataset[[#This Row],[2026/27 To - Total]])","v":0},{"$f":"Dataset[[#This Row],[2023/24 Baseline]]+Dataset[[#This Row],[2023/24 Total change]]","v":0},{"$f":"Dataset[[#This Row],[2024/25 Baseline]]+Dataset[[#This Row],[2024/25 Total change]]","v":0},{"$f":"Dataset[[#This Row],[2025/26 Baseline]]+Dataset[[#This Row],[2025/26 Total change]]","v":0},{"$f":"Dataset[[#This Row],[2026/27 Baseline]]+Dataset[[#This Row],[2026/27 Total change]]","v":0}]
["NAT|Non-transfer item","26|Social security funds","2024_25","MTEF2024",26,3,3,44781,894,"26","03","03","044781","000894","26|03|03","01","02","05","45","47","01|02|05|45|47","National","Military Veterans","Empowerment and Stakeholder Management","Heritage, Memorials, Burials and Honours","Non-transfer item","Current","Transfers and subsidies","Departmental agencies and accounts","Social security funds","Social security funds","Peace and security","Defence and state security","NAT",0,0,0,0,0,0,0,0,0,0,0,null,null,null,null,null,null,null,null,null,null,null,null,null,null,null,null,null,null,null,null,null,null,null,null,null,null,null,null,null,null,null,null,null,null,{"$f":"Dataset[[#This Row],[2024/25 From - Spending review Topic 1]]+Dataset[[#This Row],[2024/25 From - Spending review Topic 2]]+Dataset[[#This Row],[2024/25 From - Spending review Topic 3]]+Dataset[[#This Row],[2024/25 From - Spending review Topic 4]]+Dataset[[#This Row],[2024/25 From - Other reallocations]]","v":0},{"$f":"Dataset[[#This Row],[2025/26 From - Spending review Topic 1]]+Dataset[[#This Row],[2025/26 From - Spending review Topic 2]]+Dataset[[#This Row],[2025/26 From - Spending review Topic 3]]+Dataset[[#This Row],[2025/26 From - Spending review Topic 4]]+Dataset[[#This Row],[2025/26 From - Other reallocations]]","v":0},{"$f":"Dataset[[#This Row],[2026/27 From - Spending review Topic 1]]+Dataset[[#This Row],[2026/27 From - Spending review Topic 2]]+Dataset[[#This Row],[2026/27 From - Spending review Topic 3]]+Dataset[[#This Row],[2026/27 From - Spending review Topic 4]]+Dataset[[#This Row],[2026/27 From - Other reallocations]]","v":0},{"$f":"Dataset[[#This Row],[2024/25 To - Spending review Topic 1]]+Dataset[[#This Row],[2024/25 To - Spending review Topic 2]]+Dataset[[#This Row],[2024/25 To - Spending review Topic 3]]+Dataset[[#This Row],[2024/25 To - Spending review Topic 4]]+Dataset[[#This Row],[2024/25 To - Other reallocations]]","v":0},{"$f":"Dataset[[#This Row],[2025/26 To - Spending review Topic 1]]+Dataset[[#This Row],[2025/26 To - Spending review Topic 2]]+Dataset[[#This Row],[2025/26 To - Spending review Topic 3]]+Dataset[[#This Row],[2025/26 To - Spending review Topic 4]]+Dataset[[#This Row],[2025/26 To - Other reallocations]]","v":0},{"$f":"Dataset[[#This Row],[2026/27 To - Spending review Topic 1]]+Dataset[[#This Row],[2026/27 To - Spending review Topic 2]]+Dataset[[#This Row],[2026/27 To - Spending review Topic 3]]+Dataset[[#This Row],[2026/27 To - Spending review Topic 4]]+Dataset[[#This Row],[2026/27 To - Other reallocations]]","v":0},{"$f":"Dataset[[#This Row],[2024/25 Reduction]]+Dataset[[#This Row],[2024/25 From - Total]]","v":0},{"$f":"Dataset[[#This Row],[2025/26 Reduction]]+Dataset[[#This Row],[2025/26 From - Total]]","v":0},{"$f":"Dataset[[#This Row],[2026/27 Reduction]]+Dataset[[#This Row],[2026/27 From - Total]]","v":0},{"$f":"Dataset[[#This Row],[2023/24 Reduction]]","v":0},{"$f":"SUM(Dataset[[#This Row],[2024/25 Reduction]],Dataset[[#This Row],[2024/25 From - Total]],Dataset[[#This Row],[2024/25 To - Total]])","v":0},{"$f":"SUM(Dataset[[#This Row],[2025/26 Reduction]],Dataset[[#This Row],[2025/26 From - Total]],Dataset[[#This Row],[2025/26 To - Total]])","v":0},{"$f":"SUM(Dataset[[#This Row],[2026/27 Reduction]],Dataset[[#This Row],[2026/27 From - Total]],Dataset[[#This Row],[2026/27 To - Total]])","v":0},{"$f":"Dataset[[#This Row],[2023/24 Baseline]]+Dataset[[#This Row],[2023/24 Total change]]","v":0},{"$f":"Dataset[[#This Row],[2024/25 Baseline]]+Dataset[[#This Row],[2024/25 Total change]]","v":0},{"$f":"Dataset[[#This Row],[2025/26 Baseline]]+Dataset[[#This Row],[2025/26 Total change]]","v":0},{"$f":"Dataset[[#This Row],[2026/27 Baseline]]+Dataset[[#This Row],[2026/27 Total change]]","v":0}]
["NAT|Non-transfer item","26|Departmental agencies (non-business entities)","2024_25","MTEF2024",26,3,3,44782,895,"26","03","03","044782","000895","26|03|03","01","02","05","46","48","01|02|05|46|48","National","Military Veterans","Empowerment and Stakeholder Management","Heritage, Memorials, Burials and Honours","Non-transfer item","Current","Transfers and subsidies","Departmental agencies and accounts","Departmental agencies (non-business entities)","Departmental agencies (non-business entities)","Peace and security","Defence and state security","NAT",0,0,0,0,0,0,0,0,0,0,0,null,null,null,null,null,null,null,null,null,null,null,null,null,null,null,null,null,null,null,null,null,null,null,null,null,null,null,null,null,null,null,null,null,null,{"$f":"Dataset[[#This Row],[2024/25 From - Spending review Topic 1]]+Dataset[[#This Row],[2024/25 From - Spending review Topic 2]]+Dataset[[#This Row],[2024/25 From - Spending review Topic 3]]+Dataset[[#This Row],[2024/25 From - Spending review Topic 4]]+Dataset[[#This Row],[2024/25 From - Other reallocations]]","v":0},{"$f":"Dataset[[#This Row],[2025/26 From - Spending review Topic 1]]+Dataset[[#This Row],[2025/26 From - Spending review Topic 2]]+Dataset[[#This Row],[2025/26 From - Spending review Topic 3]]+Dataset[[#This Row],[2025/26 From - Spending review Topic 4]]+Dataset[[#This Row],[2025/26 From - Other reallocations]]","v":0},{"$f":"Dataset[[#This Row],[2026/27 From - Spending review Topic 1]]+Dataset[[#This Row],[2026/27 From - Spending review Topic 2]]+Dataset[[#This Row],[2026/27 From - Spending review Topic 3]]+Dataset[[#This Row],[2026/27 From - Spending review Topic 4]]+Dataset[[#This Row],[2026/27 From - Other reallocations]]","v":0},{"$f":"Dataset[[#This Row],[2024/25 To - Spending review Topic 1]]+Dataset[[#This Row],[2024/25 To - Spending review Topic 2]]+Dataset[[#This Row],[2024/25 To - Spending review Topic 3]]+Dataset[[#This Row],[2024/25 To - Spending review Topic 4]]+Dataset[[#This Row],[2024/25 To - Other reallocations]]","v":0},{"$f":"Dataset[[#This Row],[2025/26 To - Spending review Topic 1]]+Dataset[[#This Row],[2025/26 To - Spending review Topic 2]]+Dataset[[#This Row],[2025/26 To - Spending review Topic 3]]+Dataset[[#This Row],[2025/26 To - Spending review Topic 4]]+Dataset[[#This Row],[2025/26 To - Other reallocations]]","v":0},{"$f":"Dataset[[#This Row],[2026/27 To - Spending review Topic 1]]+Dataset[[#This Row],[2026/27 To - Spending review Topic 2]]+Dataset[[#This Row],[2026/27 To - Spending review Topic 3]]+Dataset[[#This Row],[2026/27 To - Spending review Topic 4]]+Dataset[[#This Row],[2026/27 To - Other reallocations]]","v":0},{"$f":"Dataset[[#This Row],[2024/25 Reduction]]+Dataset[[#This Row],[2024/25 From - Total]]","v":0},{"$f":"Dataset[[#This Row],[2025/26 Reduction]]+Dataset[[#This Row],[2025/26 From - Total]]","v":0},{"$f":"Dataset[[#This Row],[2026/27 Reduction]]+Dataset[[#This Row],[2026/27 From - Total]]","v":0},{"$f":"Dataset[[#This Row],[2023/24 Reduction]]","v":0},{"$f":"SUM(Dataset[[#This Row],[2024/25 Reduction]],Dataset[[#This Row],[2024/25 From - Total]],Dataset[[#This Row],[2024/25 To - Total]])","v":0},{"$f":"SUM(Dataset[[#This Row],[2025/26 Reduction]],Dataset[[#This Row],[2025/26 From - Total]],Dataset[[#This Row],[2025/26 To - Total]])","v":0},{"$f":"SUM(Dataset[[#This Row],[2026/27 Reduction]],Dataset[[#This Row],[2026/27 From - Total]],Dataset[[#This Row],[2026/27 To - Total]])","v":0},{"$f":"Dataset[[#This Row],[2023/24 Baseline]]+Dataset[[#This Row],[2023/24 Total change]]","v":0},{"$f":"Dataset[[#This Row],[2024/25 Baseline]]+Dataset[[#This Row],[2024/25 Total change]]","v":0},{"$f":"Dataset[[#This Row],[2025/26 Baseline]]+Dataset[[#This Row],[2025/26 Total change]]","v":0},{"$f":"Dataset[[#This Row],[2026/27 Baseline]]+Dataset[[#This Row],[2026/27 Total change]]","v":0}]
["NAT|Non-transfer item","26|Higher education institutions","2024_25","MTEF2024",26,3,3,44783,896,"26","03","03","044783","000896","26|03|03","01","02","06","47","49","01|02|06|47|49","National","Military Veterans","Empowerment and Stakeholder Management","Heritage, Memorials, Burials and Honours","Non-transfer item","Current","Transfers and subsidies","Higher education institutions","Higher education institutions","Higher education institutions","Peace and security","Defence and state security","NAT",0,0,0,0,0,0,0,0,0,0,0,null,null,null,null,null,null,null,null,null,null,null,null,null,null,null,null,null,null,null,null,null,null,null,null,null,null,null,null,null,null,null,null,null,null,{"$f":"Dataset[[#This Row],[2024/25 From - Spending review Topic 1]]+Dataset[[#This Row],[2024/25 From - Spending review Topic 2]]+Dataset[[#This Row],[2024/25 From - Spending review Topic 3]]+Dataset[[#This Row],[2024/25 From - Spending review Topic 4]]+Dataset[[#This Row],[2024/25 From - Other reallocations]]","v":0},{"$f":"Dataset[[#This Row],[2025/26 From - Spending review Topic 1]]+Dataset[[#This Row],[2025/26 From - Spending review Topic 2]]+Dataset[[#This Row],[2025/26 From - Spending review Topic 3]]+Dataset[[#This Row],[2025/26 From - Spending review Topic 4]]+Dataset[[#This Row],[2025/26 From - Other reallocations]]","v":0},{"$f":"Dataset[[#This Row],[2026/27 From - Spending review Topic 1]]+Dataset[[#This Row],[2026/27 From - Spending review Topic 2]]+Dataset[[#This Row],[2026/27 From - Spending review Topic 3]]+Dataset[[#This Row],[2026/27 From - Spending review Topic 4]]+Dataset[[#This Row],[2026/27 From - Other reallocations]]","v":0},{"$f":"Dataset[[#This Row],[2024/25 To - Spending review Topic 1]]+Dataset[[#This Row],[2024/25 To - Spending review Topic 2]]+Dataset[[#This Row],[2024/25 To - Spending review Topic 3]]+Dataset[[#This Row],[2024/25 To - Spending review Topic 4]]+Dataset[[#This Row],[2024/25 To - Other reallocations]]","v":0},{"$f":"Dataset[[#This Row],[2025/26 To - Spending review Topic 1]]+Dataset[[#This Row],[2025/26 To - Spending review Topic 2]]+Dataset[[#This Row],[2025/26 To - Spending review Topic 3]]+Dataset[[#This Row],[2025/26 To - Spending review Topic 4]]+Dataset[[#This Row],[2025/26 To - Other reallocations]]","v":0},{"$f":"Dataset[[#This Row],[2026/27 To - Spending review Topic 1]]+Dataset[[#This Row],[2026/27 To - Spending review Topic 2]]+Dataset[[#This Row],[2026/27 To - Spending review Topic 3]]+Dataset[[#This Row],[2026/27 To - Spending review Topic 4]]+Dataset[[#This Row],[2026/27 To - Other reallocations]]","v":0},{"$f":"Dataset[[#This Row],[2024/25 Reduction]]+Dataset[[#This Row],[2024/25 From - Total]]","v":0},{"$f":"Dataset[[#This Row],[2025/26 Reduction]]+Dataset[[#This Row],[2025/26 From - Total]]","v":0},{"$f":"Dataset[[#This Row],[2026/27 Reduction]]+Dataset[[#This Row],[2026/27 From - Total]]","v":0},{"$f":"Dataset[[#This Row],[2023/24 Reduction]]","v":0},{"$f":"SUM(Dataset[[#This Row],[2024/25 Reduction]],Dataset[[#This Row],[2024/25 From - Total]],Dataset[[#This Row],[2024/25 To - Total]])","v":0},{"$f":"SUM(Dataset[[#This Row],[2025/26 Reduction]],Dataset[[#This Row],[2025/26 From - Total]],Dataset[[#This Row],[2025/26 To - Total]])","v":0},{"$f":"SUM(Dataset[[#This Row],[2026/27 Reduction]],Dataset[[#This Row],[2026/27 From - Total]],Dataset[[#This Row],[2026/27 To - Total]])","v":0},{"$f":"Dataset[[#This Row],[2023/24 Baseline]]+Dataset[[#This Row],[2023/24 Total change]]","v":0},{"$f":"Dataset[[#This Row],[2024/25 Baseline]]+Dataset[[#This Row],[2024/25 Total change]]","v":0},{"$f":"Dataset[[#This Row],[2025/26 Baseline]]+Dataset[[#This Row],[2025/26 Total change]]","v":0},{"$f":"Dataset[[#This Row],[2026/27 Baseline]]+Dataset[[#This Row],[2026/27 Total change]]","v":0}]
["NAT|World Veterans Federation","26|Foreign governments and international organisations","2024_25","MTEF2024",26,3,3,44784,897,"26","03","03","044784","000897","26|03|03","01","02","07","48","50","01|02|07|48|50","National","Military Veterans","Empowerment and Stakeholder Management","Heritage, Memorials, Burials and Honours","World Veterans Federation","Current","Transfers and subsidies","Foreign governments and international organisations","Foreign governments and international organisations","Foreign governments and international organisations","Peace and security","Defence and state security","NAT",0,70,31,600,600,600,0,600,600,627,656,null,null,null,null,null,null,null,null,null,null,null,null,null,null,null,null,null,null,null,null,null,null,null,null,null,null,null,null,null,null,null,null,null,null,{"$f":"Dataset[[#This Row],[2024/25 From - Spending review Topic 1]]+Dataset[[#This Row],[2024/25 From - Spending review Topic 2]]+Dataset[[#This Row],[2024/25 From - Spending review Topic 3]]+Dataset[[#This Row],[2024/25 From - Spending review Topic 4]]+Dataset[[#This Row],[2024/25 From - Other reallocations]]","v":0},{"$f":"Dataset[[#This Row],[2025/26 From - Spending review Topic 1]]+Dataset[[#This Row],[2025/26 From - Spending review Topic 2]]+Dataset[[#This Row],[2025/26 From - Spending review Topic 3]]+Dataset[[#This Row],[2025/26 From - Spending review Topic 4]]+Dataset[[#This Row],[2025/26 From - Other reallocations]]","v":0},{"$f":"Dataset[[#This Row],[2026/27 From - Spending review Topic 1]]+Dataset[[#This Row],[2026/27 From - Spending review Topic 2]]+Dataset[[#This Row],[2026/27 From - Spending review Topic 3]]+Dataset[[#This Row],[2026/27 From - Spending review Topic 4]]+Dataset[[#This Row],[2026/27 From - Other reallocations]]","v":0},{"$f":"Dataset[[#This Row],[2024/25 To - Spending review Topic 1]]+Dataset[[#This Row],[2024/25 To - Spending review Topic 2]]+Dataset[[#This Row],[2024/25 To - Spending review Topic 3]]+Dataset[[#This Row],[2024/25 To - Spending review Topic 4]]+Dataset[[#This Row],[2024/25 To - Other reallocations]]","v":0},{"$f":"Dataset[[#This Row],[2025/26 To - Spending review Topic 1]]+Dataset[[#This Row],[2025/26 To - Spending review Topic 2]]+Dataset[[#This Row],[2025/26 To - Spending review Topic 3]]+Dataset[[#This Row],[2025/26 To - Spending review Topic 4]]+Dataset[[#This Row],[2025/26 To - Other reallocations]]","v":0},{"$f":"Dataset[[#This Row],[2026/27 To - Spending review Topic 1]]+Dataset[[#This Row],[2026/27 To - Spending review Topic 2]]+Dataset[[#This Row],[2026/27 To - Spending review Topic 3]]+Dataset[[#This Row],[2026/27 To - Spending review Topic 4]]+Dataset[[#This Row],[2026/27 To - Other reallocations]]","v":0},{"$f":"Dataset[[#This Row],[2024/25 Reduction]]+Dataset[[#This Row],[2024/25 From - Total]]","v":0},{"$f":"Dataset[[#This Row],[2025/26 Reduction]]+Dataset[[#This Row],[2025/26 From - Total]]","v":0},{"$f":"Dataset[[#This Row],[2026/27 Reduction]]+Dataset[[#This Row],[2026/27 From - Total]]","v":0},{"$f":"Dataset[[#This Row],[2023/24 Reduction]]","v":0},{"$f":"SUM(Dataset[[#This Row],[2024/25 Reduction]],Dataset[[#This Row],[2024/25 From - Total]],Dataset[[#This Row],[2024/25 To - Total]])","v":0},{"$f":"SUM(Dataset[[#This Row],[2025/26 Reduction]],Dataset[[#This Row],[2025/26 From - Total]],Dataset[[#This Row],[2025/26 To - Total]])","v":0},{"$f":"SUM(Dataset[[#This Row],[2026/27 Reduction]],Dataset[[#This Row],[2026/27 From - Total]],Dataset[[#This Row],[2026/27 To - Total]])","v":0},{"$f":"Dataset[[#This Row],[2023/24 Baseline]]+Dataset[[#This Row],[2023/24 Total change]]","v":600},{"$f":"Dataset[[#This Row],[2024/25 Baseline]]+Dataset[[#This Row],[2024/25 Total change]]","v":600},{"$f":"Dataset[[#This Row],[2025/26 Baseline]]+Dataset[[#This Row],[2025/26 Total change]]","v":627},{"$f":"Dataset[[#This Row],[2026/27 Baseline]]+Dataset[[#This Row],[2026/27 Total change]]","v":656}]
["NAT|Non-transfer item","26|Subsidies on products and production (pc)","2024_25","MTEF2024",26,3,3,44785,898,"26","03","03","044785","000898","26|03|03","01","02","08","49","51","01|02|08|49|51","National","Military Veterans","Empowerment and Stakeholder Management","Heritage, Memorials, Burials and Honours","Non-transfer item","Current","Transfers and subsidies","Public corporations and private enterprises","Public corporations","Subsidies on products and production (pc)","Peace and security","Defence and state security","NAT",0,0,0,0,0,0,0,0,0,0,0,null,null,null,null,null,null,null,null,null,null,null,null,null,null,null,null,null,null,null,null,null,null,null,null,null,null,null,null,null,null,null,null,null,null,{"$f":"Dataset[[#This Row],[2024/25 From - Spending review Topic 1]]+Dataset[[#This Row],[2024/25 From - Spending review Topic 2]]+Dataset[[#This Row],[2024/25 From - Spending review Topic 3]]+Dataset[[#This Row],[2024/25 From - Spending review Topic 4]]+Dataset[[#This Row],[2024/25 From - Other reallocations]]","v":0},{"$f":"Dataset[[#This Row],[2025/26 From - Spending review Topic 1]]+Dataset[[#This Row],[2025/26 From - Spending review Topic 2]]+Dataset[[#This Row],[2025/26 From - Spending review Topic 3]]+Dataset[[#This Row],[2025/26 From - Spending review Topic 4]]+Dataset[[#This Row],[2025/26 From - Other reallocations]]","v":0},{"$f":"Dataset[[#This Row],[2026/27 From - Spending review Topic 1]]+Dataset[[#This Row],[2026/27 From - Spending review Topic 2]]+Dataset[[#This Row],[2026/27 From - Spending review Topic 3]]+Dataset[[#This Row],[2026/27 From - Spending review Topic 4]]+Dataset[[#This Row],[2026/27 From - Other reallocations]]","v":0},{"$f":"Dataset[[#This Row],[2024/25 To - Spending review Topic 1]]+Dataset[[#This Row],[2024/25 To - Spending review Topic 2]]+Dataset[[#This Row],[2024/25 To - Spending review Topic 3]]+Dataset[[#This Row],[2024/25 To - Spending review Topic 4]]+Dataset[[#This Row],[2024/25 To - Other reallocations]]","v":0},{"$f":"Dataset[[#This Row],[2025/26 To - Spending review Topic 1]]+Dataset[[#This Row],[2025/26 To - Spending review Topic 2]]+Dataset[[#This Row],[2025/26 To - Spending review Topic 3]]+Dataset[[#This Row],[2025/26 To - Spending review Topic 4]]+Dataset[[#This Row],[2025/26 To - Other reallocations]]","v":0},{"$f":"Dataset[[#This Row],[2026/27 To - Spending review Topic 1]]+Dataset[[#This Row],[2026/27 To - Spending review Topic 2]]+Dataset[[#This Row],[2026/27 To - Spending review Topic 3]]+Dataset[[#This Row],[2026/27 To - Spending review Topic 4]]+Dataset[[#This Row],[2026/27 To - Other reallocations]]","v":0},{"$f":"Dataset[[#This Row],[2024/25 Reduction]]+Dataset[[#This Row],[2024/25 From - Total]]","v":0},{"$f":"Dataset[[#This Row],[2025/26 Reduction]]+Dataset[[#This Row],[2025/26 From - Total]]","v":0},{"$f":"Dataset[[#This Row],[2026/27 Reduction]]+Dataset[[#This Row],[2026/27 From - Total]]","v":0},{"$f":"Dataset[[#This Row],[2023/24 Reduction]]","v":0},{"$f":"SUM(Dataset[[#This Row],[2024/25 Reduction]],Dataset[[#This Row],[2024/25 From - Total]],Dataset[[#This Row],[2024/25 To - Total]])","v":0},{"$f":"SUM(Dataset[[#This Row],[2025/26 Reduction]],Dataset[[#This Row],[2025/26 From - Total]],Dataset[[#This Row],[2025/26 To - Total]])","v":0},{"$f":"SUM(Dataset[[#This Row],[2026/27 Reduction]],Dataset[[#This Row],[2026/27 From - Total]],Dataset[[#This Row],[2026/27 To - Total]])","v":0},{"$f":"Dataset[[#This Row],[2023/24 Baseline]]+Dataset[[#This Row],[2023/24 Total change]]","v":0},{"$f":"Dataset[[#This Row],[2024/25 Baseline]]+Dataset[[#This Row],[2024/25 Total change]]","v":0},{"$f":"Dataset[[#This Row],[2025/26 Baseline]]+Dataset[[#This Row],[2025/26 Total change]]","v":0},{"$f":"Dataset[[#This Row],[2026/27 Baseline]]+Dataset[[#This Row],[2026/27 Total change]]","v":0}]
["NAT|Non-transfer item","26|Other transfers to public corporations","2024_25","MTEF2024",26,3,3,44786,899,"26","03","03","044786","000899","26|03|03","01","02","08","49","52","01|02|08|49|52","National","Military Veterans","Empowerment and Stakeholder Management","Heritage, Memorials, Burials and Honours","Non-transfer item","Current","Transfers and subsidies","Public corporations and private enterprises","Public corporations","Other transfers to public corporations","Peace and security","Defence and state security","NAT",0,0,0,0,0,0,0,0,0,0,0,null,null,null,null,null,null,null,null,null,null,null,null,null,null,null,null,null,null,null,null,null,null,null,null,null,null,null,null,null,null,null,null,null,null,{"$f":"Dataset[[#This Row],[2024/25 From - Spending review Topic 1]]+Dataset[[#This Row],[2024/25 From - Spending review Topic 2]]+Dataset[[#This Row],[2024/25 From - Spending review Topic 3]]+Dataset[[#This Row],[2024/25 From - Spending review Topic 4]]+Dataset[[#This Row],[2024/25 From - Other reallocations]]","v":0},{"$f":"Dataset[[#This Row],[2025/26 From - Spending review Topic 1]]+Dataset[[#This Row],[2025/26 From - Spending review Topic 2]]+Dataset[[#This Row],[2025/26 From - Spending review Topic 3]]+Dataset[[#This Row],[2025/26 From - Spending review Topic 4]]+Dataset[[#This Row],[2025/26 From - Other reallocations]]","v":0},{"$f":"Dataset[[#This Row],[2026/27 From - Spending review Topic 1]]+Dataset[[#This Row],[2026/27 From - Spending review Topic 2]]+Dataset[[#This Row],[2026/27 From - Spending review Topic 3]]+Dataset[[#This Row],[2026/27 From - Spending review Topic 4]]+Dataset[[#This Row],[2026/27 From - Other reallocations]]","v":0},{"$f":"Dataset[[#This Row],[2024/25 To - Spending review Topic 1]]+Dataset[[#This Row],[2024/25 To - Spending review Topic 2]]+Dataset[[#This Row],[2024/25 To - Spending review Topic 3]]+Dataset[[#This Row],[2024/25 To - Spending review Topic 4]]+Dataset[[#This Row],[2024/25 To - Other reallocations]]","v":0},{"$f":"Dataset[[#This Row],[2025/26 To - Spending review Topic 1]]+Dataset[[#This Row],[2025/26 To - Spending review Topic 2]]+Dataset[[#This Row],[2025/26 To - Spending review Topic 3]]+Dataset[[#This Row],[2025/26 To - Spending review Topic 4]]+Dataset[[#This Row],[2025/26 To - Other reallocations]]","v":0},{"$f":"Dataset[[#This Row],[2026/27 To - Spending review Topic 1]]+Dataset[[#This Row],[2026/27 To - Spending review Topic 2]]+Dataset[[#This Row],[2026/27 To - Spending review Topic 3]]+Dataset[[#This Row],[2026/27 To - Spending review Topic 4]]+Dataset[[#This Row],[2026/27 To - Other reallocations]]","v":0},{"$f":"Dataset[[#This Row],[2024/25 Reduction]]+Dataset[[#This Row],[2024/25 From - Total]]","v":0},{"$f":"Dataset[[#This Row],[2025/26 Reduction]]+Dataset[[#This Row],[2025/26 From - Total]]","v":0},{"$f":"Dataset[[#This Row],[2026/27 Reduction]]+Dataset[[#This Row],[2026/27 From - Total]]","v":0},{"$f":"Dataset[[#This Row],[2023/24 Reduction]]","v":0},{"$f":"SUM(Dataset[[#This Row],[2024/25 Reduction]],Dataset[[#This Row],[2024/25 From - Total]],Dataset[[#This Row],[2024/25 To - Total]])","v":0},{"$f":"SUM(Dataset[[#This Row],[2025/26 Reduction]],Dataset[[#This Row],[2025/26 From - Total]],Dataset[[#This Row],[2025/26 To - Total]])","v":0},{"$f":"SUM(Dataset[[#This Row],[2026/27 Reduction]],Dataset[[#This Row],[2026/27 From - Total]],Dataset[[#This Row],[2026/27 To - Total]])","v":0},{"$f":"Dataset[[#This Row],[2023/24 Baseline]]+Dataset[[#This Row],[2023/24 Total change]]","v":0},{"$f":"Dataset[[#This Row],[2024/25 Baseline]]+Dataset[[#This Row],[2024/25 Total change]]","v":0},{"$f":"Dataset[[#This Row],[2025/26 Baseline]]+Dataset[[#This Row],[2025/26 Total change]]","v":0},{"$f":"Dataset[[#This Row],[2026/27 Baseline]]+Dataset[[#This Row],[2026/27 Total change]]","v":0}]
["NAT|Non-transfer item","26|Subsidies on products and production (pe)","2024_25","MTEF2024",26,3,3,44787,900,"26","03","03","044787","000900","26|03|03","01","02","08","50","53","01|02|08|50|53","National","Military Veterans","Empowerment and Stakeholder Management","Heritage, Memorials, Burials and Honours","Non-transfer item","Current","Transfers and subsidies","Public corporations and private enterprises","Private enterprises","Subsidies on products and production (pe)","Peace and security","Defence and state security","NAT",0,0,0,0,0,0,0,0,0,0,0,null,null,null,null,null,null,null,null,null,null,null,null,null,null,null,null,null,null,null,null,null,null,null,null,null,null,null,null,null,null,null,null,null,null,{"$f":"Dataset[[#This Row],[2024/25 From - Spending review Topic 1]]+Dataset[[#This Row],[2024/25 From - Spending review Topic 2]]+Dataset[[#This Row],[2024/25 From - Spending review Topic 3]]+Dataset[[#This Row],[2024/25 From - Spending review Topic 4]]+Dataset[[#This Row],[2024/25 From - Other reallocations]]","v":0},{"$f":"Dataset[[#This Row],[2025/26 From - Spending review Topic 1]]+Dataset[[#This Row],[2025/26 From - Spending review Topic 2]]+Dataset[[#This Row],[2025/26 From - Spending review Topic 3]]+Dataset[[#This Row],[2025/26 From - Spending review Topic 4]]+Dataset[[#This Row],[2025/26 From - Other reallocations]]","v":0},{"$f":"Dataset[[#This Row],[2026/27 From - Spending review Topic 1]]+Dataset[[#This Row],[2026/27 From - Spending review Topic 2]]+Dataset[[#This Row],[2026/27 From - Spending review Topic 3]]+Dataset[[#This Row],[2026/27 From - Spending review Topic 4]]+Dataset[[#This Row],[2026/27 From - Other reallocations]]","v":0},{"$f":"Dataset[[#This Row],[2024/25 To - Spending review Topic 1]]+Dataset[[#This Row],[2024/25 To - Spending review Topic 2]]+Dataset[[#This Row],[2024/25 To - Spending review Topic 3]]+Dataset[[#This Row],[2024/25 To - Spending review Topic 4]]+Dataset[[#This Row],[2024/25 To - Other reallocations]]","v":0},{"$f":"Dataset[[#This Row],[2025/26 To - Spending review Topic 1]]+Dataset[[#This Row],[2025/26 To - Spending review Topic 2]]+Dataset[[#This Row],[2025/26 To - Spending review Topic 3]]+Dataset[[#This Row],[2025/26 To - Spending review Topic 4]]+Dataset[[#This Row],[2025/26 To - Other reallocations]]","v":0},{"$f":"Dataset[[#This Row],[2026/27 To - Spending review Topic 1]]+Dataset[[#This Row],[2026/27 To - Spending review Topic 2]]+Dataset[[#This Row],[2026/27 To - Spending review Topic 3]]+Dataset[[#This Row],[2026/27 To - Spending review Topic 4]]+Dataset[[#This Row],[2026/27 To - Other reallocations]]","v":0},{"$f":"Dataset[[#This Row],[2024/25 Reduction]]+Dataset[[#This Row],[2024/25 From - Total]]","v":0},{"$f":"Dataset[[#This Row],[2025/26 Reduction]]+Dataset[[#This Row],[2025/26 From - Total]]","v":0},{"$f":"Dataset[[#This Row],[2026/27 Reduction]]+Dataset[[#This Row],[2026/27 From - Total]]","v":0},{"$f":"Dataset[[#This Row],[2023/24 Reduction]]","v":0},{"$f":"SUM(Dataset[[#This Row],[2024/25 Reduction]],Dataset[[#This Row],[2024/25 From - Total]],Dataset[[#This Row],[2024/25 To - Total]])","v":0},{"$f":"SUM(Dataset[[#This Row],[2025/26 Reduction]],Dataset[[#This Row],[2025/26 From - Total]],Dataset[[#This Row],[2025/26 To - Total]])","v":0},{"$f":"SUM(Dataset[[#This Row],[2026/27 Reduction]],Dataset[[#This Row],[2026/27 From - Total]],Dataset[[#This Row],[2026/27 To - Total]])","v":0},{"$f":"Dataset[[#This Row],[2023/24 Baseline]]+Dataset[[#This Row],[2023/24 Total change]]","v":0},{"$f":"Dataset[[#This Row],[2024/25 Baseline]]+Dataset[[#This Row],[2024/25 Total change]]","v":0},{"$f":"Dataset[[#This Row],[2025/26 Baseline]]+Dataset[[#This Row],[2025/26 Total change]]","v":0},{"$f":"Dataset[[#This Row],[2026/27 Baseline]]+Dataset[[#This Row],[2026/27 Total change]]","v":0}]
["NAT|Non-transfer item","26|Other transfers to private enterprises","2024_25","MTEF2024",26,3,3,44788,901,"26","03","03","044788","000901","26|03|03","01","02","08","50","54","01|02|08|50|54","National","Military Veterans","Empowerment and Stakeholder Management","Heritage, Memorials, Burials and Honours","Non-transfer item","Current","Transfers and subsidies","Public corporations and private enterprises","Private enterprises","Other transfers to private enterprises","Peace and security","Defence and state security","NAT",0,0,0,0,0,0,0,0,0,0,0,null,null,null,null,null,null,null,null,null,null,null,null,null,null,null,null,null,null,null,null,null,null,null,null,null,null,null,null,null,null,null,null,null,null,{"$f":"Dataset[[#This Row],[2024/25 From - Spending review Topic 1]]+Dataset[[#This Row],[2024/25 From - Spending review Topic 2]]+Dataset[[#This Row],[2024/25 From - Spending review Topic 3]]+Dataset[[#This Row],[2024/25 From - Spending review Topic 4]]+Dataset[[#This Row],[2024/25 From - Other reallocations]]","v":0},{"$f":"Dataset[[#This Row],[2025/26 From - Spending review Topic 1]]+Dataset[[#This Row],[2025/26 From - Spending review Topic 2]]+Dataset[[#This Row],[2025/26 From - Spending review Topic 3]]+Dataset[[#This Row],[2025/26 From - Spending review Topic 4]]+Dataset[[#This Row],[2025/26 From - Other reallocations]]","v":0},{"$f":"Dataset[[#This Row],[2026/27 From - Spending review Topic 1]]+Dataset[[#This Row],[2026/27 From - Spending review Topic 2]]+Dataset[[#This Row],[2026/27 From - Spending review Topic 3]]+Dataset[[#This Row],[2026/27 From - Spending review Topic 4]]+Dataset[[#This Row],[2026/27 From - Other reallocations]]","v":0},{"$f":"Dataset[[#This Row],[2024/25 To - Spending review Topic 1]]+Dataset[[#This Row],[2024/25 To - Spending review Topic 2]]+Dataset[[#This Row],[2024/25 To - Spending review Topic 3]]+Dataset[[#This Row],[2024/25 To - Spending review Topic 4]]+Dataset[[#This Row],[2024/25 To - Other reallocations]]","v":0},{"$f":"Dataset[[#This Row],[2025/26 To - Spending review Topic 1]]+Dataset[[#This Row],[2025/26 To - Spending review Topic 2]]+Dataset[[#This Row],[2025/26 To - Spending review Topic 3]]+Dataset[[#This Row],[2025/26 To - Spending review Topic 4]]+Dataset[[#This Row],[2025/26 To - Other reallocations]]","v":0},{"$f":"Dataset[[#This Row],[2026/27 To - Spending review Topic 1]]+Dataset[[#This Row],[2026/27 To - Spending review Topic 2]]+Dataset[[#This Row],[2026/27 To - Spending review Topic 3]]+Dataset[[#This Row],[2026/27 To - Spending review Topic 4]]+Dataset[[#This Row],[2026/27 To - Other reallocations]]","v":0},{"$f":"Dataset[[#This Row],[2024/25 Reduction]]+Dataset[[#This Row],[2024/25 From - Total]]","v":0},{"$f":"Dataset[[#This Row],[2025/26 Reduction]]+Dataset[[#This Row],[2025/26 From - Total]]","v":0},{"$f":"Dataset[[#This Row],[2026/27 Reduction]]+Dataset[[#This Row],[2026/27 From - Total]]","v":0},{"$f":"Dataset[[#This Row],[2023/24 Reduction]]","v":0},{"$f":"SUM(Dataset[[#This Row],[2024/25 Reduction]],Dataset[[#This Row],[2024/25 From - Total]],Dataset[[#This Row],[2024/25 To - Total]])","v":0},{"$f":"SUM(Dataset[[#This Row],[2025/26 Reduction]],Dataset[[#This Row],[2025/26 From - Total]],Dataset[[#This Row],[2025/26 To - Total]])","v":0},{"$f":"SUM(Dataset[[#This Row],[2026/27 Reduction]],Dataset[[#This Row],[2026/27 From - Total]],Dataset[[#This Row],[2026/27 To - Total]])","v":0},{"$f":"Dataset[[#This Row],[2023/24 Baseline]]+Dataset[[#This Row],[2023/24 Total change]]","v":0},{"$f":"Dataset[[#This Row],[2024/25 Baseline]]+Dataset[[#This Row],[2024/25 Total change]]","v":0},{"$f":"Dataset[[#This Row],[2025/26 Baseline]]+Dataset[[#This Row],[2025/26 Total change]]","v":0},{"$f":"Dataset[[#This Row],[2026/27 Baseline]]+Dataset[[#This Row],[2026/27 Total change]]","v":0}]
["NAT|Non-transfer item","26|Non-profit institutions","2024_25","MTEF2024",26,3,3,44789,902,"26","03","03","044789","000902","26|03|03","01","02","09","51","55","01|02|09|51|55","National","Military Veterans","Empowerment and Stakeholder Management","Heritage, Memorials, Burials and Honours","Non-transfer item","Current","Transfers and subsidies","Non-profit institutions","Non-profit institutions","Non-profit institutions","Peace and security","Defence and state security","NAT",0,0,0,0,0,0,0,0,0,0,0,null,null,null,null,null,null,null,null,null,null,null,null,null,null,null,null,null,null,null,null,null,null,null,null,null,null,null,null,null,null,null,null,null,null,{"$f":"Dataset[[#This Row],[2024/25 From - Spending review Topic 1]]+Dataset[[#This Row],[2024/25 From - Spending review Topic 2]]+Dataset[[#This Row],[2024/25 From - Spending review Topic 3]]+Dataset[[#This Row],[2024/25 From - Spending review Topic 4]]+Dataset[[#This Row],[2024/25 From - Other reallocations]]","v":0},{"$f":"Dataset[[#This Row],[2025/26 From - Spending review Topic 1]]+Dataset[[#This Row],[2025/26 From - Spending review Topic 2]]+Dataset[[#This Row],[2025/26 From - Spending review Topic 3]]+Dataset[[#This Row],[2025/26 From - Spending review Topic 4]]+Dataset[[#This Row],[2025/26 From - Other reallocations]]","v":0},{"$f":"Dataset[[#This Row],[2026/27 From - Spending review Topic 1]]+Dataset[[#This Row],[2026/27 From - Spending review Topic 2]]+Dataset[[#This Row],[2026/27 From - Spending review Topic 3]]+Dataset[[#This Row],[2026/27 From - Spending review Topic 4]]+Dataset[[#This Row],[2026/27 From - Other reallocations]]","v":0},{"$f":"Dataset[[#This Row],[2024/25 To - Spending review Topic 1]]+Dataset[[#This Row],[2024/25 To - Spending review Topic 2]]+Dataset[[#This Row],[2024/25 To - Spending review Topic 3]]+Dataset[[#This Row],[2024/25 To - Spending review Topic 4]]+Dataset[[#This Row],[2024/25 To - Other reallocations]]","v":0},{"$f":"Dataset[[#This Row],[2025/26 To - Spending review Topic 1]]+Dataset[[#This Row],[2025/26 To - Spending review Topic 2]]+Dataset[[#This Row],[2025/26 To - Spending review Topic 3]]+Dataset[[#This Row],[2025/26 To - Spending review Topic 4]]+Dataset[[#This Row],[2025/26 To - Other reallocations]]","v":0},{"$f":"Dataset[[#This Row],[2026/27 To - Spending review Topic 1]]+Dataset[[#This Row],[2026/27 To - Spending review Topic 2]]+Dataset[[#This Row],[2026/27 To - Spending review Topic 3]]+Dataset[[#This Row],[2026/27 To - Spending review Topic 4]]+Dataset[[#This Row],[2026/27 To - Other reallocations]]","v":0},{"$f":"Dataset[[#This Row],[2024/25 Reduction]]+Dataset[[#This Row],[2024/25 From - Total]]","v":0},{"$f":"Dataset[[#This Row],[2025/26 Reduction]]+Dataset[[#This Row],[2025/26 From - Total]]","v":0},{"$f":"Dataset[[#This Row],[2026/27 Reduction]]+Dataset[[#This Row],[2026/27 From - Total]]","v":0},{"$f":"Dataset[[#This Row],[2023/24 Reduction]]","v":0},{"$f":"SUM(Dataset[[#This Row],[2024/25 Reduction]],Dataset[[#This Row],[2024/25 From - Total]],Dataset[[#This Row],[2024/25 To - Total]])","v":0},{"$f":"SUM(Dataset[[#This Row],[2025/26 Reduction]],Dataset[[#This Row],[2025/26 From - Total]],Dataset[[#This Row],[2025/26 To - Total]])","v":0},{"$f":"SUM(Dataset[[#This Row],[2026/27 Reduction]],Dataset[[#This Row],[2026/27 From - Total]],Dataset[[#This Row],[2026/27 To - Total]])","v":0},{"$f":"Dataset[[#This Row],[2023/24 Baseline]]+Dataset[[#This Row],[2023/24 Total change]]","v":0},{"$f":"Dataset[[#This Row],[2024/25 Baseline]]+Dataset[[#This Row],[2024/25 Total change]]","v":0},{"$f":"Dataset[[#This Row],[2025/26 Baseline]]+Dataset[[#This Row],[2025/26 Total change]]","v":0},{"$f":"Dataset[[#This Row],[2026/27 Baseline]]+Dataset[[#This Row],[2026/27 Total change]]","v":0}]
["NAT|Military veterans' benefits","26|Social benefits","2024_25","MTEF2024",26,3,3,44790,903,"26","03","03","044790","000903","26|03|03","01","02","10","52","56","01|02|10|52|56","National","Military Veterans","Empowerment and Stakeholder Management","Heritage, Memorials, Burials and Honours","Military veterans' benefits","Current","Transfers and subsidies","Households","Social benefits","Social benefits","Peace and security","Defence and state security","NAT",8848,8050,12038,5701,5701,5701,0,8692,8869,9031,9445,null,null,null,null,null,null,null,null,null,null,null,null,null,null,null,null,null,null,null,null,null,null,null,null,null,null,null,null,null,null,null,null,null,null,{"$f":"Dataset[[#This Row],[2024/25 From - Spending review Topic 1]]+Dataset[[#This Row],[2024/25 From - Spending review Topic 2]]+Dataset[[#This Row],[2024/25 From - Spending review Topic 3]]+Dataset[[#This Row],[2024/25 From - Spending review Topic 4]]+Dataset[[#This Row],[2024/25 From - Other reallocations]]","v":0},{"$f":"Dataset[[#This Row],[2025/26 From - Spending review Topic 1]]+Dataset[[#This Row],[2025/26 From - Spending review Topic 2]]+Dataset[[#This Row],[2025/26 From - Spending review Topic 3]]+Dataset[[#This Row],[2025/26 From - Spending review Topic 4]]+Dataset[[#This Row],[2025/26 From - Other reallocations]]","v":0},{"$f":"Dataset[[#This Row],[2026/27 From - Spending review Topic 1]]+Dataset[[#This Row],[2026/27 From - Spending review Topic 2]]+Dataset[[#This Row],[2026/27 From - Spending review Topic 3]]+Dataset[[#This Row],[2026/27 From - Spending review Topic 4]]+Dataset[[#This Row],[2026/27 From - Other reallocations]]","v":0},{"$f":"Dataset[[#This Row],[2024/25 To - Spending review Topic 1]]+Dataset[[#This Row],[2024/25 To - Spending review Topic 2]]+Dataset[[#This Row],[2024/25 To - Spending review Topic 3]]+Dataset[[#This Row],[2024/25 To - Spending review Topic 4]]+Dataset[[#This Row],[2024/25 To - Other reallocations]]","v":0},{"$f":"Dataset[[#This Row],[2025/26 To - Spending review Topic 1]]+Dataset[[#This Row],[2025/26 To - Spending review Topic 2]]+Dataset[[#This Row],[2025/26 To - Spending review Topic 3]]+Dataset[[#This Row],[2025/26 To - Spending review Topic 4]]+Dataset[[#This Row],[2025/26 To - Other reallocations]]","v":0},{"$f":"Dataset[[#This Row],[2026/27 To - Spending review Topic 1]]+Dataset[[#This Row],[2026/27 To - Spending review Topic 2]]+Dataset[[#This Row],[2026/27 To - Spending review Topic 3]]+Dataset[[#This Row],[2026/27 To - Spending review Topic 4]]+Dataset[[#This Row],[2026/27 To - Other reallocations]]","v":0},{"$f":"Dataset[[#This Row],[2024/25 Reduction]]+Dataset[[#This Row],[2024/25 From - Total]]","v":0},{"$f":"Dataset[[#This Row],[2025/26 Reduction]]+Dataset[[#This Row],[2025/26 From - Total]]","v":0},{"$f":"Dataset[[#This Row],[2026/27 Reduction]]+Dataset[[#This Row],[2026/27 From - Total]]","v":0},{"$f":"Dataset[[#This Row],[2023/24 Reduction]]","v":0},{"$f":"SUM(Dataset[[#This Row],[2024/25 Reduction]],Dataset[[#This Row],[2024/25 From - Total]],Dataset[[#This Row],[2024/25 To - Total]])","v":0},{"$f":"SUM(Dataset[[#This Row],[2025/26 Reduction]],Dataset[[#This Row],[2025/26 From - Total]],Dataset[[#This Row],[2025/26 To - Total]])","v":0},{"$f":"SUM(Dataset[[#This Row],[2026/27 Reduction]],Dataset[[#This Row],[2026/27 From - Total]],Dataset[[#This Row],[2026/27 To - Total]])","v":0},{"$f":"Dataset[[#This Row],[2023/24 Baseline]]+Dataset[[#This Row],[2023/24 Total change]]","v":8692},{"$f":"Dataset[[#This Row],[2024/25 Baseline]]+Dataset[[#This Row],[2024/25 Total change]]","v":8869},{"$f":"Dataset[[#This Row],[2025/26 Baseline]]+Dataset[[#This Row],[2025/26 Total change]]","v":9031},{"$f":"Dataset[[#This Row],[2026/27 Baseline]]+Dataset[[#This Row],[2026/27 Total change]]","v":9445}]
["NAT|Non-transfer item","26|Other transfers to households","2024_25","MTEF2024",26,3,3,44791,904,"26","03","03","044791","000904","26|03|03","01","02","10","53","57","01|02|10|53|57","National","Military Veterans","Empowerment and Stakeholder Management","Heritage, Memorials, Burials and Honours","Non-transfer item","Current","Transfers and subsidies","Households","Other transfers to households","Other transfers to households","Peace and security","Defence and state security","NAT",0,0,0,0,0,0,0,0,0,0,0,null,null,null,null,null,null,null,null,null,null,null,null,null,null,null,null,null,null,null,null,null,null,null,null,null,null,null,null,null,null,null,null,null,null,{"$f":"Dataset[[#This Row],[2024/25 From - Spending review Topic 1]]+Dataset[[#This Row],[2024/25 From - Spending review Topic 2]]+Dataset[[#This Row],[2024/25 From - Spending review Topic 3]]+Dataset[[#This Row],[2024/25 From - Spending review Topic 4]]+Dataset[[#This Row],[2024/25 From - Other reallocations]]","v":0},{"$f":"Dataset[[#This Row],[2025/26 From - Spending review Topic 1]]+Dataset[[#This Row],[2025/26 From - Spending review Topic 2]]+Dataset[[#This Row],[2025/26 From - Spending review Topic 3]]+Dataset[[#This Row],[2025/26 From - Spending review Topic 4]]+Dataset[[#This Row],[2025/26 From - Other reallocations]]","v":0},{"$f":"Dataset[[#This Row],[2026/27 From - Spending review Topic 1]]+Dataset[[#This Row],[2026/27 From - Spending review Topic 2]]+Dataset[[#This Row],[2026/27 From - Spending review Topic 3]]+Dataset[[#This Row],[2026/27 From - Spending review Topic 4]]+Dataset[[#This Row],[2026/27 From - Other reallocations]]","v":0},{"$f":"Dataset[[#This Row],[2024/25 To - Spending review Topic 1]]+Dataset[[#This Row],[2024/25 To - Spending review Topic 2]]+Dataset[[#This Row],[2024/25 To - Spending review Topic 3]]+Dataset[[#This Row],[2024/25 To - Spending review Topic 4]]+Dataset[[#This Row],[2024/25 To - Other reallocations]]","v":0},{"$f":"Dataset[[#This Row],[2025/26 To - Spending review Topic 1]]+Dataset[[#This Row],[2025/26 To - Spending review Topic 2]]+Dataset[[#This Row],[2025/26 To - Spending review Topic 3]]+Dataset[[#This Row],[2025/26 To - Spending review Topic 4]]+Dataset[[#This Row],[2025/26 To - Other reallocations]]","v":0},{"$f":"Dataset[[#This Row],[2026/27 To - Spending review Topic 1]]+Dataset[[#This Row],[2026/27 To - Spending review Topic 2]]+Dataset[[#This Row],[2026/27 To - Spending review Topic 3]]+Dataset[[#This Row],[2026/27 To - Spending review Topic 4]]+Dataset[[#This Row],[2026/27 To - Other reallocations]]","v":0},{"$f":"Dataset[[#This Row],[2024/25 Reduction]]+Dataset[[#This Row],[2024/25 From - Total]]","v":0},{"$f":"Dataset[[#This Row],[2025/26 Reduction]]+Dataset[[#This Row],[2025/26 From - Total]]","v":0},{"$f":"Dataset[[#This Row],[2026/27 Reduction]]+Dataset[[#This Row],[2026/27 From - Total]]","v":0},{"$f":"Dataset[[#This Row],[2023/24 Reduction]]","v":0},{"$f":"SUM(Dataset[[#This Row],[2024/25 Reduction]],Dataset[[#This Row],[2024/25 From - Total]],Dataset[[#This Row],[2024/25 To - Total]])","v":0},{"$f":"SUM(Dataset[[#This Row],[2025/26 Reduction]],Dataset[[#This Row],[2025/26 From - Total]],Dataset[[#This Row],[2025/26 To - Total]])","v":0},{"$f":"SUM(Dataset[[#This Row],[2026/27 Reduction]],Dataset[[#This Row],[2026/27 From - Total]],Dataset[[#This Row],[2026/27 To - Total]])","v":0},{"$f":"Dataset[[#This Row],[2023/24 Baseline]]+Dataset[[#This Row],[2023/24 Total change]]","v":0},{"$f":"Dataset[[#This Row],[2024/25 Baseline]]+Dataset[[#This Row],[2024/25 Total change]]","v":0},{"$f":"Dataset[[#This Row],[2025/26 Baseline]]+Dataset[[#This Row],[2025/26 Total change]]","v":0},{"$f":"Dataset[[#This Row],[2026/27 Baseline]]+Dataset[[#This Row],[2026/27 Total change]]","v":0}]
["NAT|Non-transfer item","26|Provincial Revenue Funds","2024_25","MTEF2024",26,3,3,44792,905,"26","03","03","044792","000905","26|03|03","02","02","04","43","43","02|02|04|43|43","National","Military Veterans","Empowerment and Stakeholder Management","Heritage, Memorials, Burials and Honours","Non-transfer item","Capital","Transfers and subsidies","Provinces and municipalities","Provinces","Provincial Revenue Funds","Peace and security","Defence and state security","NAT",0,0,0,0,0,0,0,0,0,0,0,null,null,null,null,null,null,null,null,null,null,null,null,null,null,null,null,null,null,null,null,null,null,null,null,null,null,null,null,null,null,null,null,null,null,{"$f":"Dataset[[#This Row],[2024/25 From - Spending review Topic 1]]+Dataset[[#This Row],[2024/25 From - Spending review Topic 2]]+Dataset[[#This Row],[2024/25 From - Spending review Topic 3]]+Dataset[[#This Row],[2024/25 From - Spending review Topic 4]]+Dataset[[#This Row],[2024/25 From - Other reallocations]]","v":0},{"$f":"Dataset[[#This Row],[2025/26 From - Spending review Topic 1]]+Dataset[[#This Row],[2025/26 From - Spending review Topic 2]]+Dataset[[#This Row],[2025/26 From - Spending review Topic 3]]+Dataset[[#This Row],[2025/26 From - Spending review Topic 4]]+Dataset[[#This Row],[2025/26 From - Other reallocations]]","v":0},{"$f":"Dataset[[#This Row],[2026/27 From - Spending review Topic 1]]+Dataset[[#This Row],[2026/27 From - Spending review Topic 2]]+Dataset[[#This Row],[2026/27 From - Spending review Topic 3]]+Dataset[[#This Row],[2026/27 From - Spending review Topic 4]]+Dataset[[#This Row],[2026/27 From - Other reallocations]]","v":0},{"$f":"Dataset[[#This Row],[2024/25 To - Spending review Topic 1]]+Dataset[[#This Row],[2024/25 To - Spending review Topic 2]]+Dataset[[#This Row],[2024/25 To - Spending review Topic 3]]+Dataset[[#This Row],[2024/25 To - Spending review Topic 4]]+Dataset[[#This Row],[2024/25 To - Other reallocations]]","v":0},{"$f":"Dataset[[#This Row],[2025/26 To - Spending review Topic 1]]+Dataset[[#This Row],[2025/26 To - Spending review Topic 2]]+Dataset[[#This Row],[2025/26 To - Spending review Topic 3]]+Dataset[[#This Row],[2025/26 To - Spending review Topic 4]]+Dataset[[#This Row],[2025/26 To - Other reallocations]]","v":0},{"$f":"Dataset[[#This Row],[2026/27 To - Spending review Topic 1]]+Dataset[[#This Row],[2026/27 To - Spending review Topic 2]]+Dataset[[#This Row],[2026/27 To - Spending review Topic 3]]+Dataset[[#This Row],[2026/27 To - Spending review Topic 4]]+Dataset[[#This Row],[2026/27 To - Other reallocations]]","v":0},{"$f":"Dataset[[#This Row],[2024/25 Reduction]]+Dataset[[#This Row],[2024/25 From - Total]]","v":0},{"$f":"Dataset[[#This Row],[2025/26 Reduction]]+Dataset[[#This Row],[2025/26 From - Total]]","v":0},{"$f":"Dataset[[#This Row],[2026/27 Reduction]]+Dataset[[#This Row],[2026/27 From - Total]]","v":0},{"$f":"Dataset[[#This Row],[2023/24 Reduction]]","v":0},{"$f":"SUM(Dataset[[#This Row],[2024/25 Reduction]],Dataset[[#This Row],[2024/25 From - Total]],Dataset[[#This Row],[2024/25 To - Total]])","v":0},{"$f":"SUM(Dataset[[#This Row],[2025/26 Reduction]],Dataset[[#This Row],[2025/26 From - Total]],Dataset[[#This Row],[2025/26 To - Total]])","v":0},{"$f":"SUM(Dataset[[#This Row],[2026/27 Reduction]],Dataset[[#This Row],[2026/27 From - Total]],Dataset[[#This Row],[2026/27 To - Total]])","v":0},{"$f":"Dataset[[#This Row],[2023/24 Baseline]]+Dataset[[#This Row],[2023/24 Total change]]","v":0},{"$f":"Dataset[[#This Row],[2024/25 Baseline]]+Dataset[[#This Row],[2024/25 Total change]]","v":0},{"$f":"Dataset[[#This Row],[2025/26 Baseline]]+Dataset[[#This Row],[2025/26 Total change]]","v":0},{"$f":"Dataset[[#This Row],[2026/27 Baseline]]+Dataset[[#This Row],[2026/27 Total change]]","v":0}]
["NAT|Non-transfer item","26|Municipal bank accounts","2024_25","MTEF2024",26,3,3,44793,906,"26","03","03","044793","000906","26|03|03","02","02","04","44","45","02|02|04|44|45","National","Military Veterans","Empowerment and Stakeholder Management","Heritage, Memorials, Burials and Honours","Non-transfer item","Capital","Transfers and subsidies","Provinces and municipalities","Municipalities","Municipal bank accounts","Peace and security","Defence and state security","NAT",0,0,0,0,0,0,0,0,0,0,0,null,null,null,null,null,null,null,null,null,null,null,null,null,null,null,null,null,null,null,null,null,null,null,null,null,null,null,null,null,null,null,null,null,null,{"$f":"Dataset[[#This Row],[2024/25 From - Spending review Topic 1]]+Dataset[[#This Row],[2024/25 From - Spending review Topic 2]]+Dataset[[#This Row],[2024/25 From - Spending review Topic 3]]+Dataset[[#This Row],[2024/25 From - Spending review Topic 4]]+Dataset[[#This Row],[2024/25 From - Other reallocations]]","v":0},{"$f":"Dataset[[#This Row],[2025/26 From - Spending review Topic 1]]+Dataset[[#This Row],[2025/26 From - Spending review Topic 2]]+Dataset[[#This Row],[2025/26 From - Spending review Topic 3]]+Dataset[[#This Row],[2025/26 From - Spending review Topic 4]]+Dataset[[#This Row],[2025/26 From - Other reallocations]]","v":0},{"$f":"Dataset[[#This Row],[2026/27 From - Spending review Topic 1]]+Dataset[[#This Row],[2026/27 From - Spending review Topic 2]]+Dataset[[#This Row],[2026/27 From - Spending review Topic 3]]+Dataset[[#This Row],[2026/27 From - Spending review Topic 4]]+Dataset[[#This Row],[2026/27 From - Other reallocations]]","v":0},{"$f":"Dataset[[#This Row],[2024/25 To - Spending review Topic 1]]+Dataset[[#This Row],[2024/25 To - Spending review Topic 2]]+Dataset[[#This Row],[2024/25 To - Spending review Topic 3]]+Dataset[[#This Row],[2024/25 To - Spending review Topic 4]]+Dataset[[#This Row],[2024/25 To - Other reallocations]]","v":0},{"$f":"Dataset[[#This Row],[2025/26 To - Spending review Topic 1]]+Dataset[[#This Row],[2025/26 To - Spending review Topic 2]]+Dataset[[#This Row],[2025/26 To - Spending review Topic 3]]+Dataset[[#This Row],[2025/26 To - Spending review Topic 4]]+Dataset[[#This Row],[2025/26 To - Other reallocations]]","v":0},{"$f":"Dataset[[#This Row],[2026/27 To - Spending review Topic 1]]+Dataset[[#This Row],[2026/27 To - Spending review Topic 2]]+Dataset[[#This Row],[2026/27 To - Spending review Topic 3]]+Dataset[[#This Row],[2026/27 To - Spending review Topic 4]]+Dataset[[#This Row],[2026/27 To - Other reallocations]]","v":0},{"$f":"Dataset[[#This Row],[2024/25 Reduction]]+Dataset[[#This Row],[2024/25 From - Total]]","v":0},{"$f":"Dataset[[#This Row],[2025/26 Reduction]]+Dataset[[#This Row],[2025/26 From - Total]]","v":0},{"$f":"Dataset[[#This Row],[2026/27 Reduction]]+Dataset[[#This Row],[2026/27 From - Total]]","v":0},{"$f":"Dataset[[#This Row],[2023/24 Reduction]]","v":0},{"$f":"SUM(Dataset[[#This Row],[2024/25 Reduction]],Dataset[[#This Row],[2024/25 From - Total]],Dataset[[#This Row],[2024/25 To - Total]])","v":0},{"$f":"SUM(Dataset[[#This Row],[2025/26 Reduction]],Dataset[[#This Row],[2025/26 From - Total]],Dataset[[#This Row],[2025/26 To - Total]])","v":0},{"$f":"SUM(Dataset[[#This Row],[2026/27 Reduction]],Dataset[[#This Row],[2026/27 From - Total]],Dataset[[#This Row],[2026/27 To - Total]])","v":0},{"$f":"Dataset[[#This Row],[2023/24 Baseline]]+Dataset[[#This Row],[2023/24 Total change]]","v":0},{"$f":"Dataset[[#This Row],[2024/25 Baseline]]+Dataset[[#This Row],[2024/25 Total change]]","v":0},{"$f":"Dataset[[#This Row],[2025/26 Baseline]]+Dataset[[#This Row],[2025/26 Total change]]","v":0},{"$f":"Dataset[[#This Row],[2026/27 Baseline]]+Dataset[[#This Row],[2026/27 Total change]]","v":0}]
["NAT|Non-transfer item","26|Departmental agencies (non-business entities)","2024_25","MTEF2024",26,3,3,44794,907,"26","03","03","044794","000907","26|03|03","02","02","05","46","48","02|02|05|46|48","National","Military Veterans","Empowerment and Stakeholder Management","Heritage, Memorials, Burials and Honours","Non-transfer item","Capital","Transfers and subsidies","Departmental agencies and accounts","Departmental agencies (non-business entities)","Departmental agencies (non-business entities)","Peace and security","Defence and state security","NAT",0,0,0,0,0,0,0,0,0,0,0,null,null,null,null,null,null,null,null,null,null,null,null,null,null,null,null,null,null,null,null,null,null,null,null,null,null,null,null,null,null,null,null,null,null,{"$f":"Dataset[[#This Row],[2024/25 From - Spending review Topic 1]]+Dataset[[#This Row],[2024/25 From - Spending review Topic 2]]+Dataset[[#This Row],[2024/25 From - Spending review Topic 3]]+Dataset[[#This Row],[2024/25 From - Spending review Topic 4]]+Dataset[[#This Row],[2024/25 From - Other reallocations]]","v":0},{"$f":"Dataset[[#This Row],[2025/26 From - Spending review Topic 1]]+Dataset[[#This Row],[2025/26 From - Spending review Topic 2]]+Dataset[[#This Row],[2025/26 From - Spending review Topic 3]]+Dataset[[#This Row],[2025/26 From - Spending review Topic 4]]+Dataset[[#This Row],[2025/26 From - Other reallocations]]","v":0},{"$f":"Dataset[[#This Row],[2026/27 From - Spending review Topic 1]]+Dataset[[#This Row],[2026/27 From - Spending review Topic 2]]+Dataset[[#This Row],[2026/27 From - Spending review Topic 3]]+Dataset[[#This Row],[2026/27 From - Spending review Topic 4]]+Dataset[[#This Row],[2026/27 From - Other reallocations]]","v":0},{"$f":"Dataset[[#This Row],[2024/25 To - Spending review Topic 1]]+Dataset[[#This Row],[2024/25 To - Spending review Topic 2]]+Dataset[[#This Row],[2024/25 To - Spending review Topic 3]]+Dataset[[#This Row],[2024/25 To - Spending review Topic 4]]+Dataset[[#This Row],[2024/25 To - Other reallocations]]","v":0},{"$f":"Dataset[[#This Row],[2025/26 To - Spending review Topic 1]]+Dataset[[#This Row],[2025/26 To - Spending review Topic 2]]+Dataset[[#This Row],[2025/26 To - Spending review Topic 3]]+Dataset[[#This Row],[2025/26 To - Spending review Topic 4]]+Dataset[[#This Row],[2025/26 To - Other reallocations]]","v":0},{"$f":"Dataset[[#This Row],[2026/27 To - Spending review Topic 1]]+Dataset[[#This Row],[2026/27 To - Spending review Topic 2]]+Dataset[[#This Row],[2026/27 To - Spending review Topic 3]]+Dataset[[#This Row],[2026/27 To - Spending review Topic 4]]+Dataset[[#This Row],[2026/27 To - Other reallocations]]","v":0},{"$f":"Dataset[[#This Row],[2024/25 Reduction]]+Dataset[[#This Row],[2024/25 From - Total]]","v":0},{"$f":"Dataset[[#This Row],[2025/26 Reduction]]+Dataset[[#This Row],[2025/26 From - Total]]","v":0},{"$f":"Dataset[[#This Row],[2026/27 Reduction]]+Dataset[[#This Row],[2026/27 From - Total]]","v":0},{"$f":"Dataset[[#This Row],[2023/24 Reduction]]","v":0},{"$f":"SUM(Dataset[[#This Row],[2024/25 Reduction]],Dataset[[#This Row],[2024/25 From - Total]],Dataset[[#This Row],[2024/25 To - Total]])","v":0},{"$f":"SUM(Dataset[[#This Row],[2025/26 Reduction]],Dataset[[#This Row],[2025/26 From - Total]],Dataset[[#This Row],[2025/26 To - Total]])","v":0},{"$f":"SUM(Dataset[[#This Row],[2026/27 Reduction]],Dataset[[#This Row],[2026/27 From - Total]],Dataset[[#This Row],[2026/27 To - Total]])","v":0},{"$f":"Dataset[[#This Row],[2023/24 Baseline]]+Dataset[[#This Row],[2023/24 Total change]]","v":0},{"$f":"Dataset[[#This Row],[2024/25 Baseline]]+Dataset[[#This Row],[2024/25 Total change]]","v":0},{"$f":"Dataset[[#This Row],[2025/26 Baseline]]+Dataset[[#This Row],[2025/26 Total change]]","v":0},{"$f":"Dataset[[#This Row],[2026/27 Baseline]]+Dataset[[#This Row],[2026/27 Total change]]","v":0}]
["NAT|Non-transfer item","26|Higher education institutions","2024_25","MTEF2024",26,3,3,44795,908,"26","03","03","044795","000908","26|03|03","02","02","06","47","49","02|02|06|47|49","National","Military Veterans","Empowerment and Stakeholder Management","Heritage, Memorials, Burials and Honours","Non-transfer item","Capital","Transfers and subsidies","Higher education institutions","Higher education institutions","Higher education institutions","Peace and security","Defence and state security","NAT",0,0,0,0,0,0,0,0,0,0,0,null,null,null,null,null,null,null,null,null,null,null,null,null,null,null,null,null,null,null,null,null,null,null,null,null,null,null,null,null,null,null,null,null,null,{"$f":"Dataset[[#This Row],[2024/25 From - Spending review Topic 1]]+Dataset[[#This Row],[2024/25 From - Spending review Topic 2]]+Dataset[[#This Row],[2024/25 From - Spending review Topic 3]]+Dataset[[#This Row],[2024/25 From - Spending review Topic 4]]+Dataset[[#This Row],[2024/25 From - Other reallocations]]","v":0},{"$f":"Dataset[[#This Row],[2025/26 From - Spending review Topic 1]]+Dataset[[#This Row],[2025/26 From - Spending review Topic 2]]+Dataset[[#This Row],[2025/26 From - Spending review Topic 3]]+Dataset[[#This Row],[2025/26 From - Spending review Topic 4]]+Dataset[[#This Row],[2025/26 From - Other reallocations]]","v":0},{"$f":"Dataset[[#This Row],[2026/27 From - Spending review Topic 1]]+Dataset[[#This Row],[2026/27 From - Spending review Topic 2]]+Dataset[[#This Row],[2026/27 From - Spending review Topic 3]]+Dataset[[#This Row],[2026/27 From - Spending review Topic 4]]+Dataset[[#This Row],[2026/27 From - Other reallocations]]","v":0},{"$f":"Dataset[[#This Row],[2024/25 To - Spending review Topic 1]]+Dataset[[#This Row],[2024/25 To - Spending review Topic 2]]+Dataset[[#This Row],[2024/25 To - Spending review Topic 3]]+Dataset[[#This Row],[2024/25 To - Spending review Topic 4]]+Dataset[[#This Row],[2024/25 To - Other reallocations]]","v":0},{"$f":"Dataset[[#This Row],[2025/26 To - Spending review Topic 1]]+Dataset[[#This Row],[2025/26 To - Spending review Topic 2]]+Dataset[[#This Row],[2025/26 To - Spending review Topic 3]]+Dataset[[#This Row],[2025/26 To - Spending review Topic 4]]+Dataset[[#This Row],[2025/26 To - Other reallocations]]","v":0},{"$f":"Dataset[[#This Row],[2026/27 To - Spending review Topic 1]]+Dataset[[#This Row],[2026/27 To - Spending review Topic 2]]+Dataset[[#This Row],[2026/27 To - Spending review Topic 3]]+Dataset[[#This Row],[2026/27 To - Spending review Topic 4]]+Dataset[[#This Row],[2026/27 To - Other reallocations]]","v":0},{"$f":"Dataset[[#This Row],[2024/25 Reduction]]+Dataset[[#This Row],[2024/25 From - Total]]","v":0},{"$f":"Dataset[[#This Row],[2025/26 Reduction]]+Dataset[[#This Row],[2025/26 From - Total]]","v":0},{"$f":"Dataset[[#This Row],[2026/27 Reduction]]+Dataset[[#This Row],[2026/27 From - Total]]","v":0},{"$f":"Dataset[[#This Row],[2023/24 Reduction]]","v":0},{"$f":"SUM(Dataset[[#This Row],[2024/25 Reduction]],Dataset[[#This Row],[2024/25 From - Total]],Dataset[[#This Row],[2024/25 To - Total]])","v":0},{"$f":"SUM(Dataset[[#This Row],[2025/26 Reduction]],Dataset[[#This Row],[2025/26 From - Total]],Dataset[[#This Row],[2025/26 To - Total]])","v":0},{"$f":"SUM(Dataset[[#This Row],[2026/27 Reduction]],Dataset[[#This Row],[2026/27 From - Total]],Dataset[[#This Row],[2026/27 To - Total]])","v":0},{"$f":"Dataset[[#This Row],[2023/24 Baseline]]+Dataset[[#This Row],[2023/24 Total change]]","v":0},{"$f":"Dataset[[#This Row],[2024/25 Baseline]]+Dataset[[#This Row],[2024/25 Total change]]","v":0},{"$f":"Dataset[[#This Row],[2025/26 Baseline]]+Dataset[[#This Row],[2025/26 Total change]]","v":0},{"$f":"Dataset[[#This Row],[2026/27 Baseline]]+Dataset[[#This Row],[2026/27 Total change]]","v":0}]
["NAT|Non-transfer item","26|Foreign governments and international organisations","2024_25","MTEF2024",26,3,3,44796,909,"26","03","03","044796","000909","26|03|03","02","02","07","48","50","02|02|07|48|50","National","Military Veterans","Empowerment and Stakeholder Management","Heritage, Memorials, Burials and Honours","Non-transfer item","Capital","Transfers and subsidies","Foreign governments and international organisations","Foreign governments and international organisations","Foreign governments and international organisations","Peace and security","Defence and state security","NAT",0,0,0,0,0,0,0,0,0,0,0,null,null,null,null,null,null,null,null,null,null,null,null,null,null,null,null,null,null,null,null,null,null,null,null,null,null,null,null,null,null,null,null,null,null,{"$f":"Dataset[[#This Row],[2024/25 From - Spending review Topic 1]]+Dataset[[#This Row],[2024/25 From - Spending review Topic 2]]+Dataset[[#This Row],[2024/25 From - Spending review Topic 3]]+Dataset[[#This Row],[2024/25 From - Spending review Topic 4]]+Dataset[[#This Row],[2024/25 From - Other reallocations]]","v":0},{"$f":"Dataset[[#This Row],[2025/26 From - Spending review Topic 1]]+Dataset[[#This Row],[2025/26 From - Spending review Topic 2]]+Dataset[[#This Row],[2025/26 From - Spending review Topic 3]]+Dataset[[#This Row],[2025/26 From - Spending review Topic 4]]+Dataset[[#This Row],[2025/26 From - Other reallocations]]","v":0},{"$f":"Dataset[[#This Row],[2026/27 From - Spending review Topic 1]]+Dataset[[#This Row],[2026/27 From - Spending review Topic 2]]+Dataset[[#This Row],[2026/27 From - Spending review Topic 3]]+Dataset[[#This Row],[2026/27 From - Spending review Topic 4]]+Dataset[[#This Row],[2026/27 From - Other reallocations]]","v":0},{"$f":"Dataset[[#This Row],[2024/25 To - Spending review Topic 1]]+Dataset[[#This Row],[2024/25 To - Spending review Topic 2]]+Dataset[[#This Row],[2024/25 To - Spending review Topic 3]]+Dataset[[#This Row],[2024/25 To - Spending review Topic 4]]+Dataset[[#This Row],[2024/25 To - Other reallocations]]","v":0},{"$f":"Dataset[[#This Row],[2025/26 To - Spending review Topic 1]]+Dataset[[#This Row],[2025/26 To - Spending review Topic 2]]+Dataset[[#This Row],[2025/26 To - Spending review Topic 3]]+Dataset[[#This Row],[2025/26 To - Spending review Topic 4]]+Dataset[[#This Row],[2025/26 To - Other reallocations]]","v":0},{"$f":"Dataset[[#This Row],[2026/27 To - Spending review Topic 1]]+Dataset[[#This Row],[2026/27 To - Spending review Topic 2]]+Dataset[[#This Row],[2026/27 To - Spending review Topic 3]]+Dataset[[#This Row],[2026/27 To - Spending review Topic 4]]+Dataset[[#This Row],[2026/27 To - Other reallocations]]","v":0},{"$f":"Dataset[[#This Row],[2024/25 Reduction]]+Dataset[[#This Row],[2024/25 From - Total]]","v":0},{"$f":"Dataset[[#This Row],[2025/26 Reduction]]+Dataset[[#This Row],[2025/26 From - Total]]","v":0},{"$f":"Dataset[[#This Row],[2026/27 Reduction]]+Dataset[[#This Row],[2026/27 From - Total]]","v":0},{"$f":"Dataset[[#This Row],[2023/24 Reduction]]","v":0},{"$f":"SUM(Dataset[[#This Row],[2024/25 Reduction]],Dataset[[#This Row],[2024/25 From - Total]],Dataset[[#This Row],[2024/25 To - Total]])","v":0},{"$f":"SUM(Dataset[[#This Row],[2025/26 Reduction]],Dataset[[#This Row],[2025/26 From - Total]],Dataset[[#This Row],[2025/26 To - Total]])","v":0},{"$f":"SUM(Dataset[[#This Row],[2026/27 Reduction]],Dataset[[#This Row],[2026/27 From - Total]],Dataset[[#This Row],[2026/27 To - Total]])","v":0},{"$f":"Dataset[[#This Row],[2023/24 Baseline]]+Dataset[[#This Row],[2023/24 Total change]]","v":0},{"$f":"Dataset[[#This Row],[2024/25 Baseline]]+Dataset[[#This Row],[2024/25 Total change]]","v":0},{"$f":"Dataset[[#This Row],[2025/26 Baseline]]+Dataset[[#This Row],[2025/26 Total change]]","v":0},{"$f":"Dataset[[#This Row],[2026/27 Baseline]]+Dataset[[#This Row],[2026/27 Total change]]","v":0}]
["NAT|Non-transfer item","26|Subsidies on products and production (pc)","2024_25","MTEF2024",26,3,3,44797,910,"26","03","03","044797","000910","26|03|03","02","02","08","49","51","02|02|08|49|51","National","Military Veterans","Empowerment and Stakeholder Management","Heritage, Memorials, Burials and Honours","Non-transfer item","Capital","Transfers and subsidies","Public corporations and private enterprises","Public corporations","Subsidies on products and production (pc)","Peace and security","Defence and state security","NAT",0,0,0,0,0,0,0,0,0,0,0,null,null,null,null,null,null,null,null,null,null,null,null,null,null,null,null,null,null,null,null,null,null,null,null,null,null,null,null,null,null,null,null,null,null,{"$f":"Dataset[[#This Row],[2024/25 From - Spending review Topic 1]]+Dataset[[#This Row],[2024/25 From - Spending review Topic 2]]+Dataset[[#This Row],[2024/25 From - Spending review Topic 3]]+Dataset[[#This Row],[2024/25 From - Spending review Topic 4]]+Dataset[[#This Row],[2024/25 From - Other reallocations]]","v":0},{"$f":"Dataset[[#This Row],[2025/26 From - Spending review Topic 1]]+Dataset[[#This Row],[2025/26 From - Spending review Topic 2]]+Dataset[[#This Row],[2025/26 From - Spending review Topic 3]]+Dataset[[#This Row],[2025/26 From - Spending review Topic 4]]+Dataset[[#This Row],[2025/26 From - Other reallocations]]","v":0},{"$f":"Dataset[[#This Row],[2026/27 From - Spending review Topic 1]]+Dataset[[#This Row],[2026/27 From - Spending review Topic 2]]+Dataset[[#This Row],[2026/27 From - Spending review Topic 3]]+Dataset[[#This Row],[2026/27 From - Spending review Topic 4]]+Dataset[[#This Row],[2026/27 From - Other reallocations]]","v":0},{"$f":"Dataset[[#This Row],[2024/25 To - Spending review Topic 1]]+Dataset[[#This Row],[2024/25 To - Spending review Topic 2]]+Dataset[[#This Row],[2024/25 To - Spending review Topic 3]]+Dataset[[#This Row],[2024/25 To - Spending review Topic 4]]+Dataset[[#This Row],[2024/25 To - Other reallocations]]","v":0},{"$f":"Dataset[[#This Row],[2025/26 To - Spending review Topic 1]]+Dataset[[#This Row],[2025/26 To - Spending review Topic 2]]+Dataset[[#This Row],[2025/26 To - Spending review Topic 3]]+Dataset[[#This Row],[2025/26 To - Spending review Topic 4]]+Dataset[[#This Row],[2025/26 To - Other reallocations]]","v":0},{"$f":"Dataset[[#This Row],[2026/27 To - Spending review Topic 1]]+Dataset[[#This Row],[2026/27 To - Spending review Topic 2]]+Dataset[[#This Row],[2026/27 To - Spending review Topic 3]]+Dataset[[#This Row],[2026/27 To - Spending review Topic 4]]+Dataset[[#This Row],[2026/27 To - Other reallocations]]","v":0},{"$f":"Dataset[[#This Row],[2024/25 Reduction]]+Dataset[[#This Row],[2024/25 From - Total]]","v":0},{"$f":"Dataset[[#This Row],[2025/26 Reduction]]+Dataset[[#This Row],[2025/26 From - Total]]","v":0},{"$f":"Dataset[[#This Row],[2026/27 Reduction]]+Dataset[[#This Row],[2026/27 From - Total]]","v":0},{"$f":"Dataset[[#This Row],[2023/24 Reduction]]","v":0},{"$f":"SUM(Dataset[[#This Row],[2024/25 Reduction]],Dataset[[#This Row],[2024/25 From - Total]],Dataset[[#This Row],[2024/25 To - Total]])","v":0},{"$f":"SUM(Dataset[[#This Row],[2025/26 Reduction]],Dataset[[#This Row],[2025/26 From - Total]],Dataset[[#This Row],[2025/26 To - Total]])","v":0},{"$f":"SUM(Dataset[[#This Row],[2026/27 Reduction]],Dataset[[#This Row],[2026/27 From - Total]],Dataset[[#This Row],[2026/27 To - Total]])","v":0},{"$f":"Dataset[[#This Row],[2023/24 Baseline]]+Dataset[[#This Row],[2023/24 Total change]]","v":0},{"$f":"Dataset[[#This Row],[2024/25 Baseline]]+Dataset[[#This Row],[2024/25 Total change]]","v":0},{"$f":"Dataset[[#This Row],[2025/26 Baseline]]+Dataset[[#This Row],[2025/26 Total change]]","v":0},{"$f":"Dataset[[#This Row],[2026/27 Baseline]]+Dataset[[#This Row],[2026/27 Total change]]","v":0}]
["NAT|Non-transfer item","26|Other transfers to public corporations","2024_25","MTEF2024",26,3,3,44798,911,"26","03","03","044798","000911","26|03|03","02","02","08","49","52","02|02|08|49|52","National","Military Veterans","Empowerment and Stakeholder Management","Heritage, Memorials, Burials and Honours","Non-transfer item","Capital","Transfers and subsidies","Public corporations and private enterprises","Public corporations","Other transfers to public corporations","Peace and security","Defence and state security","NAT",0,0,0,0,0,0,0,0,0,0,0,null,null,null,null,null,null,null,null,null,null,null,null,null,null,null,null,null,null,null,null,null,null,null,null,null,null,null,null,null,null,null,null,null,null,{"$f":"Dataset[[#This Row],[2024/25 From - Spending review Topic 1]]+Dataset[[#This Row],[2024/25 From - Spending review Topic 2]]+Dataset[[#This Row],[2024/25 From - Spending review Topic 3]]+Dataset[[#This Row],[2024/25 From - Spending review Topic 4]]+Dataset[[#This Row],[2024/25 From - Other reallocations]]","v":0},{"$f":"Dataset[[#This Row],[2025/26 From - Spending review Topic 1]]+Dataset[[#This Row],[2025/26 From - Spending review Topic 2]]+Dataset[[#This Row],[2025/26 From - Spending review Topic 3]]+Dataset[[#This Row],[2025/26 From - Spending review Topic 4]]+Dataset[[#This Row],[2025/26 From - Other reallocations]]","v":0},{"$f":"Dataset[[#This Row],[2026/27 From - Spending review Topic 1]]+Dataset[[#This Row],[2026/27 From - Spending review Topic 2]]+Dataset[[#This Row],[2026/27 From - Spending review Topic 3]]+Dataset[[#This Row],[2026/27 From - Spending review Topic 4]]+Dataset[[#This Row],[2026/27 From - Other reallocations]]","v":0},{"$f":"Dataset[[#This Row],[2024/25 To - Spending review Topic 1]]+Dataset[[#This Row],[2024/25 To - Spending review Topic 2]]+Dataset[[#This Row],[2024/25 To - Spending review Topic 3]]+Dataset[[#This Row],[2024/25 To - Spending review Topic 4]]+Dataset[[#This Row],[2024/25 To - Other reallocations]]","v":0},{"$f":"Dataset[[#This Row],[2025/26 To - Spending review Topic 1]]+Dataset[[#This Row],[2025/26 To - Spending review Topic 2]]+Dataset[[#This Row],[2025/26 To - Spending review Topic 3]]+Dataset[[#This Row],[2025/26 To - Spending review Topic 4]]+Dataset[[#This Row],[2025/26 To - Other reallocations]]","v":0},{"$f":"Dataset[[#This Row],[2026/27 To - Spending review Topic 1]]+Dataset[[#This Row],[2026/27 To - Spending review Topic 2]]+Dataset[[#This Row],[2026/27 To - Spending review Topic 3]]+Dataset[[#This Row],[2026/27 To - Spending review Topic 4]]+Dataset[[#This Row],[2026/27 To - Other reallocations]]","v":0},{"$f":"Dataset[[#This Row],[2024/25 Reduction]]+Dataset[[#This Row],[2024/25 From - Total]]","v":0},{"$f":"Dataset[[#This Row],[2025/26 Reduction]]+Dataset[[#This Row],[2025/26 From - Total]]","v":0},{"$f":"Dataset[[#This Row],[2026/27 Reduction]]+Dataset[[#This Row],[2026/27 From - Total]]","v":0},{"$f":"Dataset[[#This Row],[2023/24 Reduction]]","v":0},{"$f":"SUM(Dataset[[#This Row],[2024/25 Reduction]],Dataset[[#This Row],[2024/25 From - Total]],Dataset[[#This Row],[2024/25 To - Total]])","v":0},{"$f":"SUM(Dataset[[#This Row],[2025/26 Reduction]],Dataset[[#This Row],[2025/26 From - Total]],Dataset[[#This Row],[2025/26 To - Total]])","v":0},{"$f":"SUM(Dataset[[#This Row],[2026/27 Reduction]],Dataset[[#This Row],[2026/27 From - Total]],Dataset[[#This Row],[2026/27 To - Total]])","v":0},{"$f":"Dataset[[#This Row],[2023/24 Baseline]]+Dataset[[#This Row],[2023/24 Total change]]","v":0},{"$f":"Dataset[[#This Row],[2024/25 Baseline]]+Dataset[[#This Row],[2024/25 Total change]]","v":0},{"$f":"Dataset[[#This Row],[2025/26 Baseline]]+Dataset[[#This Row],[2025/26 Total change]]","v":0},{"$f":"Dataset[[#This Row],[2026/27 Baseline]]+Dataset[[#This Row],[2026/27 Total change]]","v":0}]
["NAT|Non-transfer item","26|Other transfers to private enterprises","2024_25","MTEF2024",26,3,3,44799,912,"26","03","03","044799","000912","26|03|03","02","02","08","50","54","02|02|08|50|54","National","Military Veterans","Empowerment and Stakeholder Management","Heritage, Memorials, Burials and Honours","Non-transfer item","Capital","Transfers and subsidies","Public corporations and private enterprises","Private enterprises","Other transfers to private enterprises","Peace and security","Defence and state security","NAT",0,0,0,0,0,0,0,0,0,0,0,null,null,null,null,null,null,null,null,null,null,null,null,null,null,null,null,null,null,null,null,null,null,null,null,null,null,null,null,null,null,null,null,null,null,{"$f":"Dataset[[#This Row],[2024/25 From - Spending review Topic 1]]+Dataset[[#This Row],[2024/25 From - Spending review Topic 2]]+Dataset[[#This Row],[2024/25 From - Spending review Topic 3]]+Dataset[[#This Row],[2024/25 From - Spending review Topic 4]]+Dataset[[#This Row],[2024/25 From - Other reallocations]]","v":0},{"$f":"Dataset[[#This Row],[2025/26 From - Spending review Topic 1]]+Dataset[[#This Row],[2025/26 From - Spending review Topic 2]]+Dataset[[#This Row],[2025/26 From - Spending review Topic 3]]+Dataset[[#This Row],[2025/26 From - Spending review Topic 4]]+Dataset[[#This Row],[2025/26 From - Other reallocations]]","v":0},{"$f":"Dataset[[#This Row],[2026/27 From - Spending review Topic 1]]+Dataset[[#This Row],[2026/27 From - Spending review Topic 2]]+Dataset[[#This Row],[2026/27 From - Spending review Topic 3]]+Dataset[[#This Row],[2026/27 From - Spending review Topic 4]]+Dataset[[#This Row],[2026/27 From - Other reallocations]]","v":0},{"$f":"Dataset[[#This Row],[2024/25 To - Spending review Topic 1]]+Dataset[[#This Row],[2024/25 To - Spending review Topic 2]]+Dataset[[#This Row],[2024/25 To - Spending review Topic 3]]+Dataset[[#This Row],[2024/25 To - Spending review Topic 4]]+Dataset[[#This Row],[2024/25 To - Other reallocations]]","v":0},{"$f":"Dataset[[#This Row],[2025/26 To - Spending review Topic 1]]+Dataset[[#This Row],[2025/26 To - Spending review Topic 2]]+Dataset[[#This Row],[2025/26 To - Spending review Topic 3]]+Dataset[[#This Row],[2025/26 To - Spending review Topic 4]]+Dataset[[#This Row],[2025/26 To - Other reallocations]]","v":0},{"$f":"Dataset[[#This Row],[2026/27 To - Spending review Topic 1]]+Dataset[[#This Row],[2026/27 To - Spending review Topic 2]]+Dataset[[#This Row],[2026/27 To - Spending review Topic 3]]+Dataset[[#This Row],[2026/27 To - Spending review Topic 4]]+Dataset[[#This Row],[2026/27 To - Other reallocations]]","v":0},{"$f":"Dataset[[#This Row],[2024/25 Reduction]]+Dataset[[#This Row],[2024/25 From - Total]]","v":0},{"$f":"Dataset[[#This Row],[2025/26 Reduction]]+Dataset[[#This Row],[2025/26 From - Total]]","v":0},{"$f":"Dataset[[#This Row],[2026/27 Reduction]]+Dataset[[#This Row],[2026/27 From - Total]]","v":0},{"$f":"Dataset[[#This Row],[2023/24 Reduction]]","v":0},{"$f":"SUM(Dataset[[#This Row],[2024/25 Reduction]],Dataset[[#This Row],[2024/25 From - Total]],Dataset[[#This Row],[2024/25 To - Total]])","v":0},{"$f":"SUM(Dataset[[#This Row],[2025/26 Reduction]],Dataset[[#This Row],[2025/26 From - Total]],Dataset[[#This Row],[2025/26 To - Total]])","v":0},{"$f":"SUM(Dataset[[#This Row],[2026/27 Reduction]],Dataset[[#This Row],[2026/27 From - Total]],Dataset[[#This Row],[2026/27 To - Total]])","v":0},{"$f":"Dataset[[#This Row],[2023/24 Baseline]]+Dataset[[#This Row],[2023/24 Total change]]","v":0},{"$f":"Dataset[[#This Row],[2024/25 Baseline]]+Dataset[[#This Row],[2024/25 Total change]]","v":0},{"$f":"Dataset[[#This Row],[2025/26 Baseline]]+Dataset[[#This Row],[2025/26 Total change]]","v":0},{"$f":"Dataset[[#This Row],[2026/27 Baseline]]+Dataset[[#This Row],[2026/27 Total change]]","v":0}]
["NAT|Non-transfer item","26|Non-profit institutions","2024_25","MTEF2024",26,3,3,44800,913,"26","03","03","044800","000913","26|03|03","02","02","09","51","55","02|02|09|51|55","National","Military Veterans","Empowerment and Stakeholder Management","Heritage, Memorials, Burials and Honours","Non-transfer item","Capital","Transfers and subsidies","Non-profit institutions","Non-profit institutions","Non-profit institutions","Peace and security","Defence and state security","NAT",0,0,0,0,0,0,0,0,0,0,0,null,null,null,null,null,null,null,null,null,null,null,null,null,null,null,null,null,null,null,null,null,null,null,null,null,null,null,null,null,null,null,null,null,null,{"$f":"Dataset[[#This Row],[2024/25 From - Spending review Topic 1]]+Dataset[[#This Row],[2024/25 From - Spending review Topic 2]]+Dataset[[#This Row],[2024/25 From - Spending review Topic 3]]+Dataset[[#This Row],[2024/25 From - Spending review Topic 4]]+Dataset[[#This Row],[2024/25 From - Other reallocations]]","v":0},{"$f":"Dataset[[#This Row],[2025/26 From - Spending review Topic 1]]+Dataset[[#This Row],[2025/26 From - Spending review Topic 2]]+Dataset[[#This Row],[2025/26 From - Spending review Topic 3]]+Dataset[[#This Row],[2025/26 From - Spending review Topic 4]]+Dataset[[#This Row],[2025/26 From - Other reallocations]]","v":0},{"$f":"Dataset[[#This Row],[2026/27 From - Spending review Topic 1]]+Dataset[[#This Row],[2026/27 From - Spending review Topic 2]]+Dataset[[#This Row],[2026/27 From - Spending review Topic 3]]+Dataset[[#This Row],[2026/27 From - Spending review Topic 4]]+Dataset[[#This Row],[2026/27 From - Other reallocations]]","v":0},{"$f":"Dataset[[#This Row],[2024/25 To - Spending review Topic 1]]+Dataset[[#This Row],[2024/25 To - Spending review Topic 2]]+Dataset[[#This Row],[2024/25 To - Spending review Topic 3]]+Dataset[[#This Row],[2024/25 To - Spending review Topic 4]]+Dataset[[#This Row],[2024/25 To - Other reallocations]]","v":0},{"$f":"Dataset[[#This Row],[2025/26 To - Spending review Topic 1]]+Dataset[[#This Row],[2025/26 To - Spending review Topic 2]]+Dataset[[#This Row],[2025/26 To - Spending review Topic 3]]+Dataset[[#This Row],[2025/26 To - Spending review Topic 4]]+Dataset[[#This Row],[2025/26 To - Other reallocations]]","v":0},{"$f":"Dataset[[#This Row],[2026/27 To - Spending review Topic 1]]+Dataset[[#This Row],[2026/27 To - Spending review Topic 2]]+Dataset[[#This Row],[2026/27 To - Spending review Topic 3]]+Dataset[[#This Row],[2026/27 To - Spending review Topic 4]]+Dataset[[#This Row],[2026/27 To - Other reallocations]]","v":0},{"$f":"Dataset[[#This Row],[2024/25 Reduction]]+Dataset[[#This Row],[2024/25 From - Total]]","v":0},{"$f":"Dataset[[#This Row],[2025/26 Reduction]]+Dataset[[#This Row],[2025/26 From - Total]]","v":0},{"$f":"Dataset[[#This Row],[2026/27 Reduction]]+Dataset[[#This Row],[2026/27 From - Total]]","v":0},{"$f":"Dataset[[#This Row],[2023/24 Reduction]]","v":0},{"$f":"SUM(Dataset[[#This Row],[2024/25 Reduction]],Dataset[[#This Row],[2024/25 From - Total]],Dataset[[#This Row],[2024/25 To - Total]])","v":0},{"$f":"SUM(Dataset[[#This Row],[2025/26 Reduction]],Dataset[[#This Row],[2025/26 From - Total]],Dataset[[#This Row],[2025/26 To - Total]])","v":0},{"$f":"SUM(Dataset[[#This Row],[2026/27 Reduction]],Dataset[[#This Row],[2026/27 From - Total]],Dataset[[#This Row],[2026/27 To - Total]])","v":0},{"$f":"Dataset[[#This Row],[2023/24 Baseline]]+Dataset[[#This Row],[2023/24 Total change]]","v":0},{"$f":"Dataset[[#This Row],[2024/25 Baseline]]+Dataset[[#This Row],[2024/25 Total change]]","v":0},{"$f":"Dataset[[#This Row],[2025/26 Baseline]]+Dataset[[#This Row],[2025/26 Total change]]","v":0},{"$f":"Dataset[[#This Row],[2026/27 Baseline]]+Dataset[[#This Row],[2026/27 Total change]]","v":0}]
["NAT|Non-transfer item","26|Other transfers to households","2024_25","MTEF2024",26,3,3,44801,914,"26","03","03","044801","000914","26|03|03","02","02","10","53","57","02|02|10|53|57","National","Military Veterans","Empowerment and Stakeholder Management","Heritage, Memorials, Burials and Honours","Non-transfer item","Capital","Transfers and subsidies","Households","Other transfers to households","Other transfers to households","Peace and security","Defence and state security","NAT",0,0,0,0,0,0,0,0,0,0,0,null,null,null,null,null,null,null,null,null,null,null,null,null,null,null,null,null,null,null,null,null,null,null,null,null,null,null,null,null,null,null,null,null,null,{"$f":"Dataset[[#This Row],[2024/25 From - Spending review Topic 1]]+Dataset[[#This Row],[2024/25 From - Spending review Topic 2]]+Dataset[[#This Row],[2024/25 From - Spending review Topic 3]]+Dataset[[#This Row],[2024/25 From - Spending review Topic 4]]+Dataset[[#This Row],[2024/25 From - Other reallocations]]","v":0},{"$f":"Dataset[[#This Row],[2025/26 From - Spending review Topic 1]]+Dataset[[#This Row],[2025/26 From - Spending review Topic 2]]+Dataset[[#This Row],[2025/26 From - Spending review Topic 3]]+Dataset[[#This Row],[2025/26 From - Spending review Topic 4]]+Dataset[[#This Row],[2025/26 From - Other reallocations]]","v":0},{"$f":"Dataset[[#This Row],[2026/27 From - Spending review Topic 1]]+Dataset[[#This Row],[2026/27 From - Spending review Topic 2]]+Dataset[[#This Row],[2026/27 From - Spending review Topic 3]]+Dataset[[#This Row],[2026/27 From - Spending review Topic 4]]+Dataset[[#This Row],[2026/27 From - Other reallocations]]","v":0},{"$f":"Dataset[[#This Row],[2024/25 To - Spending review Topic 1]]+Dataset[[#This Row],[2024/25 To - Spending review Topic 2]]+Dataset[[#This Row],[2024/25 To - Spending review Topic 3]]+Dataset[[#This Row],[2024/25 To - Spending review Topic 4]]+Dataset[[#This Row],[2024/25 To - Other reallocations]]","v":0},{"$f":"Dataset[[#This Row],[2025/26 To - Spending review Topic 1]]+Dataset[[#This Row],[2025/26 To - Spending review Topic 2]]+Dataset[[#This Row],[2025/26 To - Spending review Topic 3]]+Dataset[[#This Row],[2025/26 To - Spending review Topic 4]]+Dataset[[#This Row],[2025/26 To - Other reallocations]]","v":0},{"$f":"Dataset[[#This Row],[2026/27 To - Spending review Topic 1]]+Dataset[[#This Row],[2026/27 To - Spending review Topic 2]]+Dataset[[#This Row],[2026/27 To - Spending review Topic 3]]+Dataset[[#This Row],[2026/27 To - Spending review Topic 4]]+Dataset[[#This Row],[2026/27 To - Other reallocations]]","v":0},{"$f":"Dataset[[#This Row],[2024/25 Reduction]]+Dataset[[#This Row],[2024/25 From - Total]]","v":0},{"$f":"Dataset[[#This Row],[2025/26 Reduction]]+Dataset[[#This Row],[2025/26 From - Total]]","v":0},{"$f":"Dataset[[#This Row],[2026/27 Reduction]]+Dataset[[#This Row],[2026/27 From - Total]]","v":0},{"$f":"Dataset[[#This Row],[2023/24 Reduction]]","v":0},{"$f":"SUM(Dataset[[#This Row],[2024/25 Reduction]],Dataset[[#This Row],[2024/25 From - Total]],Dataset[[#This Row],[2024/25 To - Total]])","v":0},{"$f":"SUM(Dataset[[#This Row],[2025/26 Reduction]],Dataset[[#This Row],[2025/26 From - Total]],Dataset[[#This Row],[2025/26 To - Total]])","v":0},{"$f":"SUM(Dataset[[#This Row],[2026/27 Reduction]],Dataset[[#This Row],[2026/27 From - Total]],Dataset[[#This Row],[2026/27 To - Total]])","v":0},{"$f":"Dataset[[#This Row],[2023/24 Baseline]]+Dataset[[#This Row],[2023/24 Total change]]","v":0},{"$f":"Dataset[[#This Row],[2024/25 Baseline]]+Dataset[[#This Row],[2024/25 Total change]]","v":0},{"$f":"Dataset[[#This Row],[2025/26 Baseline]]+Dataset[[#This Row],[2025/26 Total change]]","v":0},{"$f":"Dataset[[#This Row],[2026/27 Baseline]]+Dataset[[#This Row],[2026/27 Total change]]","v":0}]
["NAT|Non-transfer item","26|Buildings","2024_25","MTEF2024",26,3,3,44802,915,"26","03","03","044802","000915","26|03|03","02","03","11","54","58","02|03|11|54|58","National","Military Veterans","Empowerment and Stakeholder Management","Heritage, Memorials, Burials and Honours","Non-transfer item","Capital","Payments for capital assets","Buildings and other fixed structures","Buildings","Buildings","Peace and security","Defence and state security","NAT",0,0,0,0,0,0,0,0,0,0,0,null,null,null,null,null,null,null,null,null,null,null,null,null,null,null,null,null,null,null,null,null,null,null,null,null,null,null,null,null,null,null,null,null,null,{"$f":"Dataset[[#This Row],[2024/25 From - Spending review Topic 1]]+Dataset[[#This Row],[2024/25 From - Spending review Topic 2]]+Dataset[[#This Row],[2024/25 From - Spending review Topic 3]]+Dataset[[#This Row],[2024/25 From - Spending review Topic 4]]+Dataset[[#This Row],[2024/25 From - Other reallocations]]","v":0},{"$f":"Dataset[[#This Row],[2025/26 From - Spending review Topic 1]]+Dataset[[#This Row],[2025/26 From - Spending review Topic 2]]+Dataset[[#This Row],[2025/26 From - Spending review Topic 3]]+Dataset[[#This Row],[2025/26 From - Spending review Topic 4]]+Dataset[[#This Row],[2025/26 From - Other reallocations]]","v":0},{"$f":"Dataset[[#This Row],[2026/27 From - Spending review Topic 1]]+Dataset[[#This Row],[2026/27 From - Spending review Topic 2]]+Dataset[[#This Row],[2026/27 From - Spending review Topic 3]]+Dataset[[#This Row],[2026/27 From - Spending review Topic 4]]+Dataset[[#This Row],[2026/27 From - Other reallocations]]","v":0},{"$f":"Dataset[[#This Row],[2024/25 To - Spending review Topic 1]]+Dataset[[#This Row],[2024/25 To - Spending review Topic 2]]+Dataset[[#This Row],[2024/25 To - Spending review Topic 3]]+Dataset[[#This Row],[2024/25 To - Spending review Topic 4]]+Dataset[[#This Row],[2024/25 To - Other reallocations]]","v":0},{"$f":"Dataset[[#This Row],[2025/26 To - Spending review Topic 1]]+Dataset[[#This Row],[2025/26 To - Spending review Topic 2]]+Dataset[[#This Row],[2025/26 To - Spending review Topic 3]]+Dataset[[#This Row],[2025/26 To - Spending review Topic 4]]+Dataset[[#This Row],[2025/26 To - Other reallocations]]","v":0},{"$f":"Dataset[[#This Row],[2026/27 To - Spending review Topic 1]]+Dataset[[#This Row],[2026/27 To - Spending review Topic 2]]+Dataset[[#This Row],[2026/27 To - Spending review Topic 3]]+Dataset[[#This Row],[2026/27 To - Spending review Topic 4]]+Dataset[[#This Row],[2026/27 To - Other reallocations]]","v":0},{"$f":"Dataset[[#This Row],[2024/25 Reduction]]+Dataset[[#This Row],[2024/25 From - Total]]","v":0},{"$f":"Dataset[[#This Row],[2025/26 Reduction]]+Dataset[[#This Row],[2025/26 From - Total]]","v":0},{"$f":"Dataset[[#This Row],[2026/27 Reduction]]+Dataset[[#This Row],[2026/27 From - Total]]","v":0},{"$f":"Dataset[[#This Row],[2023/24 Reduction]]","v":0},{"$f":"SUM(Dataset[[#This Row],[2024/25 Reduction]],Dataset[[#This Row],[2024/25 From - Total]],Dataset[[#This Row],[2024/25 To - Total]])","v":0},{"$f":"SUM(Dataset[[#This Row],[2025/26 Reduction]],Dataset[[#This Row],[2025/26 From - Total]],Dataset[[#This Row],[2025/26 To - Total]])","v":0},{"$f":"SUM(Dataset[[#This Row],[2026/27 Reduction]],Dataset[[#This Row],[2026/27 From - Total]],Dataset[[#This Row],[2026/27 To - Total]])","v":0},{"$f":"Dataset[[#This Row],[2023/24 Baseline]]+Dataset[[#This Row],[2023/24 Total change]]","v":0},{"$f":"Dataset[[#This Row],[2024/25 Baseline]]+Dataset[[#This Row],[2024/25 Total change]]","v":0},{"$f":"Dataset[[#This Row],[2025/26 Baseline]]+Dataset[[#This Row],[2025/26 Total change]]","v":0},{"$f":"Dataset[[#This Row],[2026/27 Baseline]]+Dataset[[#This Row],[2026/27 Total change]]","v":0}]
["NAT|Non-transfer item","26|Other fixed structures","2024_25","MTEF2024",26,3,3,44803,916,"26","03","03","044803","000916","26|03|03","02","03","11","55","59","02|03|11|55|59","National","Military Veterans","Empowerment and Stakeholder Management","Heritage, Memorials, Burials and Honours","Non-transfer item","Capital","Payments for capital assets","Buildings and other fixed structures","Other fixed structures","Other fixed structures","Peace and security","Defence and state security","NAT",0,0,0,0,0,0,0,0,0,0,0,null,null,null,null,null,null,null,null,null,null,null,null,null,null,null,null,null,null,null,null,null,null,null,null,null,null,null,null,null,null,null,null,null,null,{"$f":"Dataset[[#This Row],[2024/25 From - Spending review Topic 1]]+Dataset[[#This Row],[2024/25 From - Spending review Topic 2]]+Dataset[[#This Row],[2024/25 From - Spending review Topic 3]]+Dataset[[#This Row],[2024/25 From - Spending review Topic 4]]+Dataset[[#This Row],[2024/25 From - Other reallocations]]","v":0},{"$f":"Dataset[[#This Row],[2025/26 From - Spending review Topic 1]]+Dataset[[#This Row],[2025/26 From - Spending review Topic 2]]+Dataset[[#This Row],[2025/26 From - Spending review Topic 3]]+Dataset[[#This Row],[2025/26 From - Spending review Topic 4]]+Dataset[[#This Row],[2025/26 From - Other reallocations]]","v":0},{"$f":"Dataset[[#This Row],[2026/27 From - Spending review Topic 1]]+Dataset[[#This Row],[2026/27 From - Spending review Topic 2]]+Dataset[[#This Row],[2026/27 From - Spending review Topic 3]]+Dataset[[#This Row],[2026/27 From - Spending review Topic 4]]+Dataset[[#This Row],[2026/27 From - Other reallocations]]","v":0},{"$f":"Dataset[[#This Row],[2024/25 To - Spending review Topic 1]]+Dataset[[#This Row],[2024/25 To - Spending review Topic 2]]+Dataset[[#This Row],[2024/25 To - Spending review Topic 3]]+Dataset[[#This Row],[2024/25 To - Spending review Topic 4]]+Dataset[[#This Row],[2024/25 To - Other reallocations]]","v":0},{"$f":"Dataset[[#This Row],[2025/26 To - Spending review Topic 1]]+Dataset[[#This Row],[2025/26 To - Spending review Topic 2]]+Dataset[[#This Row],[2025/26 To - Spending review Topic 3]]+Dataset[[#This Row],[2025/26 To - Spending review Topic 4]]+Dataset[[#This Row],[2025/26 To - Other reallocations]]","v":0},{"$f":"Dataset[[#This Row],[2026/27 To - Spending review Topic 1]]+Dataset[[#This Row],[2026/27 To - Spending review Topic 2]]+Dataset[[#This Row],[2026/27 To - Spending review Topic 3]]+Dataset[[#This Row],[2026/27 To - Spending review Topic 4]]+Dataset[[#This Row],[2026/27 To - Other reallocations]]","v":0},{"$f":"Dataset[[#This Row],[2024/25 Reduction]]+Dataset[[#This Row],[2024/25 From - Total]]","v":0},{"$f":"Dataset[[#This Row],[2025/26 Reduction]]+Dataset[[#This Row],[2025/26 From - Total]]","v":0},{"$f":"Dataset[[#This Row],[2026/27 Reduction]]+Dataset[[#This Row],[2026/27 From - Total]]","v":0},{"$f":"Dataset[[#This Row],[2023/24 Reduction]]","v":0},{"$f":"SUM(Dataset[[#This Row],[2024/25 Reduction]],Dataset[[#This Row],[2024/25 From - Total]],Dataset[[#This Row],[2024/25 To - Total]])","v":0},{"$f":"SUM(Dataset[[#This Row],[2025/26 Reduction]],Dataset[[#This Row],[2025/26 From - Total]],Dataset[[#This Row],[2025/26 To - Total]])","v":0},{"$f":"SUM(Dataset[[#This Row],[2026/27 Reduction]],Dataset[[#This Row],[2026/27 From - Total]],Dataset[[#This Row],[2026/27 To - Total]])","v":0},{"$f":"Dataset[[#This Row],[2023/24 Baseline]]+Dataset[[#This Row],[2023/24 Total change]]","v":0},{"$f":"Dataset[[#This Row],[2024/25 Baseline]]+Dataset[[#This Row],[2024/25 Total change]]","v":0},{"$f":"Dataset[[#This Row],[2025/26 Baseline]]+Dataset[[#This Row],[2025/26 Total change]]","v":0},{"$f":"Dataset[[#This Row],[2026/27 Baseline]]+Dataset[[#This Row],[2026/27 Total change]]","v":0}]
["NAT|Non-transfer item","26|Transport equipment","2024_25","MTEF2024",26,3,3,44804,917,"26","03","03","044804","000917","26|03|03","02","03","12","56","60","02|03|12|56|60","National","Military Veterans","Empowerment and Stakeholder Management","Heritage, Memorials, Burials and Honours","Non-transfer item","Capital","Payments for capital assets","Machinery and equipment","Transport equipment","Transport equipment","Peace and security","Defence and state security","NAT",0,0,0,0,0,0,0,0,0,0,0,null,null,null,null,null,null,null,null,null,null,null,null,null,null,null,null,null,null,null,null,null,null,null,null,null,null,null,null,null,null,null,null,null,null,{"$f":"Dataset[[#This Row],[2024/25 From - Spending review Topic 1]]+Dataset[[#This Row],[2024/25 From - Spending review Topic 2]]+Dataset[[#This Row],[2024/25 From - Spending review Topic 3]]+Dataset[[#This Row],[2024/25 From - Spending review Topic 4]]+Dataset[[#This Row],[2024/25 From - Other reallocations]]","v":0},{"$f":"Dataset[[#This Row],[2025/26 From - Spending review Topic 1]]+Dataset[[#This Row],[2025/26 From - Spending review Topic 2]]+Dataset[[#This Row],[2025/26 From - Spending review Topic 3]]+Dataset[[#This Row],[2025/26 From - Spending review Topic 4]]+Dataset[[#This Row],[2025/26 From - Other reallocations]]","v":0},{"$f":"Dataset[[#This Row],[2026/27 From - Spending review Topic 1]]+Dataset[[#This Row],[2026/27 From - Spending review Topic 2]]+Dataset[[#This Row],[2026/27 From - Spending review Topic 3]]+Dataset[[#This Row],[2026/27 From - Spending review Topic 4]]+Dataset[[#This Row],[2026/27 From - Other reallocations]]","v":0},{"$f":"Dataset[[#This Row],[2024/25 To - Spending review Topic 1]]+Dataset[[#This Row],[2024/25 To - Spending review Topic 2]]+Dataset[[#This Row],[2024/25 To - Spending review Topic 3]]+Dataset[[#This Row],[2024/25 To - Spending review Topic 4]]+Dataset[[#This Row],[2024/25 To - Other reallocations]]","v":0},{"$f":"Dataset[[#This Row],[2025/26 To - Spending review Topic 1]]+Dataset[[#This Row],[2025/26 To - Spending review Topic 2]]+Dataset[[#This Row],[2025/26 To - Spending review Topic 3]]+Dataset[[#This Row],[2025/26 To - Spending review Topic 4]]+Dataset[[#This Row],[2025/26 To - Other reallocations]]","v":0},{"$f":"Dataset[[#This Row],[2026/27 To - Spending review Topic 1]]+Dataset[[#This Row],[2026/27 To - Spending review Topic 2]]+Dataset[[#This Row],[2026/27 To - Spending review Topic 3]]+Dataset[[#This Row],[2026/27 To - Spending review Topic 4]]+Dataset[[#This Row],[2026/27 To - Other reallocations]]","v":0},{"$f":"Dataset[[#This Row],[2024/25 Reduction]]+Dataset[[#This Row],[2024/25 From - Total]]","v":0},{"$f":"Dataset[[#This Row],[2025/26 Reduction]]+Dataset[[#This Row],[2025/26 From - Total]]","v":0},{"$f":"Dataset[[#This Row],[2026/27 Reduction]]+Dataset[[#This Row],[2026/27 From - Total]]","v":0},{"$f":"Dataset[[#This Row],[2023/24 Reduction]]","v":0},{"$f":"SUM(Dataset[[#This Row],[2024/25 Reduction]],Dataset[[#This Row],[2024/25 From - Total]],Dataset[[#This Row],[2024/25 To - Total]])","v":0},{"$f":"SUM(Dataset[[#This Row],[2025/26 Reduction]],Dataset[[#This Row],[2025/26 From - Total]],Dataset[[#This Row],[2025/26 To - Total]])","v":0},{"$f":"SUM(Dataset[[#This Row],[2026/27 Reduction]],Dataset[[#This Row],[2026/27 From - Total]],Dataset[[#This Row],[2026/27 To - Total]])","v":0},{"$f":"Dataset[[#This Row],[2023/24 Baseline]]+Dataset[[#This Row],[2023/24 Total change]]","v":0},{"$f":"Dataset[[#This Row],[2024/25 Baseline]]+Dataset[[#This Row],[2024/25 Total change]]","v":0},{"$f":"Dataset[[#This Row],[2025/26 Baseline]]+Dataset[[#This Row],[2025/26 Total change]]","v":0},{"$f":"Dataset[[#This Row],[2026/27 Baseline]]+Dataset[[#This Row],[2026/27 Total change]]","v":0}]
["NAT|Non-transfer item","26|Other machinery and equipment","2024_25","MTEF2024",26,3,3,44805,918,"26","03","03","044805","000918","26|03|03","02","03","12","57","61","02|03|12|57|61","National","Military Veterans","Empowerment and Stakeholder Management","Heritage, Memorials, Burials and Honours","Non-transfer item","Capital","Payments for capital assets","Machinery and equipment","Other machinery and equipment","Other machinery and equipment","Peace and security","Defence and state security","NAT",0,6,9,330,330,330,0,400,422,441,461,null,null,null,null,null,null,null,null,null,null,null,null,null,null,null,null,null,null,null,null,null,null,null,null,null,null,null,null,null,null,null,null,null,null,{"$f":"Dataset[[#This Row],[2024/25 From - Spending review Topic 1]]+Dataset[[#This Row],[2024/25 From - Spending review Topic 2]]+Dataset[[#This Row],[2024/25 From - Spending review Topic 3]]+Dataset[[#This Row],[2024/25 From - Spending review Topic 4]]+Dataset[[#This Row],[2024/25 From - Other reallocations]]","v":0},{"$f":"Dataset[[#This Row],[2025/26 From - Spending review Topic 1]]+Dataset[[#This Row],[2025/26 From - Spending review Topic 2]]+Dataset[[#This Row],[2025/26 From - Spending review Topic 3]]+Dataset[[#This Row],[2025/26 From - Spending review Topic 4]]+Dataset[[#This Row],[2025/26 From - Other reallocations]]","v":0},{"$f":"Dataset[[#This Row],[2026/27 From - Spending review Topic 1]]+Dataset[[#This Row],[2026/27 From - Spending review Topic 2]]+Dataset[[#This Row],[2026/27 From - Spending review Topic 3]]+Dataset[[#This Row],[2026/27 From - Spending review Topic 4]]+Dataset[[#This Row],[2026/27 From - Other reallocations]]","v":0},{"$f":"Dataset[[#This Row],[2024/25 To - Spending review Topic 1]]+Dataset[[#This Row],[2024/25 To - Spending review Topic 2]]+Dataset[[#This Row],[2024/25 To - Spending review Topic 3]]+Dataset[[#This Row],[2024/25 To - Spending review Topic 4]]+Dataset[[#This Row],[2024/25 To - Other reallocations]]","v":0},{"$f":"Dataset[[#This Row],[2025/26 To - Spending review Topic 1]]+Dataset[[#This Row],[2025/26 To - Spending review Topic 2]]+Dataset[[#This Row],[2025/26 To - Spending review Topic 3]]+Dataset[[#This Row],[2025/26 To - Spending review Topic 4]]+Dataset[[#This Row],[2025/26 To - Other reallocations]]","v":0},{"$f":"Dataset[[#This Row],[2026/27 To - Spending review Topic 1]]+Dataset[[#This Row],[2026/27 To - Spending review Topic 2]]+Dataset[[#This Row],[2026/27 To - Spending review Topic 3]]+Dataset[[#This Row],[2026/27 To - Spending review Topic 4]]+Dataset[[#This Row],[2026/27 To - Other reallocations]]","v":0},{"$f":"Dataset[[#This Row],[2024/25 Reduction]]+Dataset[[#This Row],[2024/25 From - Total]]","v":0},{"$f":"Dataset[[#This Row],[2025/26 Reduction]]+Dataset[[#This Row],[2025/26 From - Total]]","v":0},{"$f":"Dataset[[#This Row],[2026/27 Reduction]]+Dataset[[#This Row],[2026/27 From - Total]]","v":0},{"$f":"Dataset[[#This Row],[2023/24 Reduction]]","v":0},{"$f":"SUM(Dataset[[#This Row],[2024/25 Reduction]],Dataset[[#This Row],[2024/25 From - Total]],Dataset[[#This Row],[2024/25 To - Total]])","v":0},{"$f":"SUM(Dataset[[#This Row],[2025/26 Reduction]],Dataset[[#This Row],[2025/26 From - Total]],Dataset[[#This Row],[2025/26 To - Total]])","v":0},{"$f":"SUM(Dataset[[#This Row],[2026/27 Reduction]],Dataset[[#This Row],[2026/27 From - Total]],Dataset[[#This Row],[2026/27 To - Total]])","v":0},{"$f":"Dataset[[#This Row],[2023/24 Baseline]]+Dataset[[#This Row],[2023/24 Total change]]","v":400},{"$f":"Dataset[[#This Row],[2024/25 Baseline]]+Dataset[[#This Row],[2024/25 Total change]]","v":422},{"$f":"Dataset[[#This Row],[2025/26 Baseline]]+Dataset[[#This Row],[2025/26 Total change]]","v":441},{"$f":"Dataset[[#This Row],[2026/27 Baseline]]+Dataset[[#This Row],[2026/27 Total change]]","v":461}]
["NAT|Non-transfer item","26|Heritage assets","2024_25","MTEF2024",26,3,3,44806,919,"26","03","03","044806","000919","26|03|03","02","03","13","58","62","02|03|13|58|62","National","Military Veterans","Empowerment and Stakeholder Management","Heritage, Memorials, Burials and Honours","Non-transfer item","Capital","Payments for capital assets","Heritage assets","Heritage assets","Heritage assets","Peace and security","Defence and state security","NAT",98,0,0,100,100,100,0,10560,10775,11547,12076,null,null,null,null,null,null,null,null,null,null,null,null,null,null,null,null,null,null,null,null,null,null,null,null,null,null,null,null,null,null,null,null,null,null,{"$f":"Dataset[[#This Row],[2024/25 From - Spending review Topic 1]]+Dataset[[#This Row],[2024/25 From - Spending review Topic 2]]+Dataset[[#This Row],[2024/25 From - Spending review Topic 3]]+Dataset[[#This Row],[2024/25 From - Spending review Topic 4]]+Dataset[[#This Row],[2024/25 From - Other reallocations]]","v":0},{"$f":"Dataset[[#This Row],[2025/26 From - Spending review Topic 1]]+Dataset[[#This Row],[2025/26 From - Spending review Topic 2]]+Dataset[[#This Row],[2025/26 From - Spending review Topic 3]]+Dataset[[#This Row],[2025/26 From - Spending review Topic 4]]+Dataset[[#This Row],[2025/26 From - Other reallocations]]","v":0},{"$f":"Dataset[[#This Row],[2026/27 From - Spending review Topic 1]]+Dataset[[#This Row],[2026/27 From - Spending review Topic 2]]+Dataset[[#This Row],[2026/27 From - Spending review Topic 3]]+Dataset[[#This Row],[2026/27 From - Spending review Topic 4]]+Dataset[[#This Row],[2026/27 From - Other reallocations]]","v":0},{"$f":"Dataset[[#This Row],[2024/25 To - Spending review Topic 1]]+Dataset[[#This Row],[2024/25 To - Spending review Topic 2]]+Dataset[[#This Row],[2024/25 To - Spending review Topic 3]]+Dataset[[#This Row],[2024/25 To - Spending review Topic 4]]+Dataset[[#This Row],[2024/25 To - Other reallocations]]","v":0},{"$f":"Dataset[[#This Row],[2025/26 To - Spending review Topic 1]]+Dataset[[#This Row],[2025/26 To - Spending review Topic 2]]+Dataset[[#This Row],[2025/26 To - Spending review Topic 3]]+Dataset[[#This Row],[2025/26 To - Spending review Topic 4]]+Dataset[[#This Row],[2025/26 To - Other reallocations]]","v":0},{"$f":"Dataset[[#This Row],[2026/27 To - Spending review Topic 1]]+Dataset[[#This Row],[2026/27 To - Spending review Topic 2]]+Dataset[[#This Row],[2026/27 To - Spending review Topic 3]]+Dataset[[#This Row],[2026/27 To - Spending review Topic 4]]+Dataset[[#This Row],[2026/27 To - Other reallocations]]","v":0},{"$f":"Dataset[[#This Row],[2024/25 Reduction]]+Dataset[[#This Row],[2024/25 From - Total]]","v":0},{"$f":"Dataset[[#This Row],[2025/26 Reduction]]+Dataset[[#This Row],[2025/26 From - Total]]","v":0},{"$f":"Dataset[[#This Row],[2026/27 Reduction]]+Dataset[[#This Row],[2026/27 From - Total]]","v":0},{"$f":"Dataset[[#This Row],[2023/24 Reduction]]","v":0},{"$f":"SUM(Dataset[[#This Row],[2024/25 Reduction]],Dataset[[#This Row],[2024/25 From - Total]],Dataset[[#This Row],[2024/25 To - Total]])","v":0},{"$f":"SUM(Dataset[[#This Row],[2025/26 Reduction]],Dataset[[#This Row],[2025/26 From - Total]],Dataset[[#This Row],[2025/26 To - Total]])","v":0},{"$f":"SUM(Dataset[[#This Row],[2026/27 Reduction]],Dataset[[#This Row],[2026/27 From - Total]],Dataset[[#This Row],[2026/27 To - Total]])","v":0},{"$f":"Dataset[[#This Row],[2023/24 Baseline]]+Dataset[[#This Row],[2023/24 Total change]]","v":10560},{"$f":"Dataset[[#This Row],[2024/25 Baseline]]+Dataset[[#This Row],[2024/25 Total change]]","v":10775},{"$f":"Dataset[[#This Row],[2025/26 Baseline]]+Dataset[[#This Row],[2025/26 Total change]]","v":11547},{"$f":"Dataset[[#This Row],[2026/27 Baseline]]+Dataset[[#This Row],[2026/27 Total change]]","v":12076}]
["NAT|Non-transfer item","26|Specialised military assets","2024_25","MTEF2024",26,3,3,44807,920,"26","03","03","044807","000920","26|03|03","02","03","14","59","63","02|03|14|59|63","National","Military Veterans","Empowerment and Stakeholder Management","Heritage, Memorials, Burials and Honours","Non-transfer item","Capital","Payments for capital assets","Specialised military assets","Specialised military assets","Specialised military assets","Peace and security","Defence and state security","NAT",0,0,0,0,0,0,0,0,0,0,0,null,null,null,null,null,null,null,null,null,null,null,null,null,null,null,null,null,null,null,null,null,null,null,null,null,null,null,null,null,null,null,null,null,null,{"$f":"Dataset[[#This Row],[2024/25 From - Spending review Topic 1]]+Dataset[[#This Row],[2024/25 From - Spending review Topic 2]]+Dataset[[#This Row],[2024/25 From - Spending review Topic 3]]+Dataset[[#This Row],[2024/25 From - Spending review Topic 4]]+Dataset[[#This Row],[2024/25 From - Other reallocations]]","v":0},{"$f":"Dataset[[#This Row],[2025/26 From - Spending review Topic 1]]+Dataset[[#This Row],[2025/26 From - Spending review Topic 2]]+Dataset[[#This Row],[2025/26 From - Spending review Topic 3]]+Dataset[[#This Row],[2025/26 From - Spending review Topic 4]]+Dataset[[#This Row],[2025/26 From - Other reallocations]]","v":0},{"$f":"Dataset[[#This Row],[2026/27 From - Spending review Topic 1]]+Dataset[[#This Row],[2026/27 From - Spending review Topic 2]]+Dataset[[#This Row],[2026/27 From - Spending review Topic 3]]+Dataset[[#This Row],[2026/27 From - Spending review Topic 4]]+Dataset[[#This Row],[2026/27 From - Other reallocations]]","v":0},{"$f":"Dataset[[#This Row],[2024/25 To - Spending review Topic 1]]+Dataset[[#This Row],[2024/25 To - Spending review Topic 2]]+Dataset[[#This Row],[2024/25 To - Spending review Topic 3]]+Dataset[[#This Row],[2024/25 To - Spending review Topic 4]]+Dataset[[#This Row],[2024/25 To - Other reallocations]]","v":0},{"$f":"Dataset[[#This Row],[2025/26 To - Spending review Topic 1]]+Dataset[[#This Row],[2025/26 To - Spending review Topic 2]]+Dataset[[#This Row],[2025/26 To - Spending review Topic 3]]+Dataset[[#This Row],[2025/26 To - Spending review Topic 4]]+Dataset[[#This Row],[2025/26 To - Other reallocations]]","v":0},{"$f":"Dataset[[#This Row],[2026/27 To - Spending review Topic 1]]+Dataset[[#This Row],[2026/27 To - Spending review Topic 2]]+Dataset[[#This Row],[2026/27 To - Spending review Topic 3]]+Dataset[[#This Row],[2026/27 To - Spending review Topic 4]]+Dataset[[#This Row],[2026/27 To - Other reallocations]]","v":0},{"$f":"Dataset[[#This Row],[2024/25 Reduction]]+Dataset[[#This Row],[2024/25 From - Total]]","v":0},{"$f":"Dataset[[#This Row],[2025/26 Reduction]]+Dataset[[#This Row],[2025/26 From - Total]]","v":0},{"$f":"Dataset[[#This Row],[2026/27 Reduction]]+Dataset[[#This Row],[2026/27 From - Total]]","v":0},{"$f":"Dataset[[#This Row],[2023/24 Reduction]]","v":0},{"$f":"SUM(Dataset[[#This Row],[2024/25 Reduction]],Dataset[[#This Row],[2024/25 From - Total]],Dataset[[#This Row],[2024/25 To - Total]])","v":0},{"$f":"SUM(Dataset[[#This Row],[2025/26 Reduction]],Dataset[[#This Row],[2025/26 From - Total]],Dataset[[#This Row],[2025/26 To - Total]])","v":0},{"$f":"SUM(Dataset[[#This Row],[2026/27 Reduction]],Dataset[[#This Row],[2026/27 From - Total]],Dataset[[#This Row],[2026/27 To - Total]])","v":0},{"$f":"Dataset[[#This Row],[2023/24 Baseline]]+Dataset[[#This Row],[2023/24 Total change]]","v":0},{"$f":"Dataset[[#This Row],[2024/25 Baseline]]+Dataset[[#This Row],[2024/25 Total change]]","v":0},{"$f":"Dataset[[#This Row],[2025/26 Baseline]]+Dataset[[#This Row],[2025/26 Total change]]","v":0},{"$f":"Dataset[[#This Row],[2026/27 Baseline]]+Dataset[[#This Row],[2026/27 Total change]]","v":0}]
["NAT|Non-transfer item","26|Biological assets","2024_25","MTEF2024",26,3,3,44808,921,"26","03","03","044808","000921","26|03|03","02","03","15","60","64","02|03|15|60|64","National","Military Veterans","Empowerment and Stakeholder Management","Heritage, Memorials, Burials and Honours","Non-transfer item","Capital","Payments for capital assets","Biological assets","Biological assets","Biological assets","Peace and security","Defence and state security","NAT",0,0,0,0,0,0,0,0,0,0,0,null,null,null,null,null,null,null,null,null,null,null,null,null,null,null,null,null,null,null,null,null,null,null,null,null,null,null,null,null,null,null,null,null,null,{"$f":"Dataset[[#This Row],[2024/25 From - Spending review Topic 1]]+Dataset[[#This Row],[2024/25 From - Spending review Topic 2]]+Dataset[[#This Row],[2024/25 From - Spending review Topic 3]]+Dataset[[#This Row],[2024/25 From - Spending review Topic 4]]+Dataset[[#This Row],[2024/25 From - Other reallocations]]","v":0},{"$f":"Dataset[[#This Row],[2025/26 From - Spending review Topic 1]]+Dataset[[#This Row],[2025/26 From - Spending review Topic 2]]+Dataset[[#This Row],[2025/26 From - Spending review Topic 3]]+Dataset[[#This Row],[2025/26 From - Spending review Topic 4]]+Dataset[[#This Row],[2025/26 From - Other reallocations]]","v":0},{"$f":"Dataset[[#This Row],[2026/27 From - Spending review Topic 1]]+Dataset[[#This Row],[2026/27 From - Spending review Topic 2]]+Dataset[[#This Row],[2026/27 From - Spending review Topic 3]]+Dataset[[#This Row],[2026/27 From - Spending review Topic 4]]+Dataset[[#This Row],[2026/27 From - Other reallocations]]","v":0},{"$f":"Dataset[[#This Row],[2024/25 To - Spending review Topic 1]]+Dataset[[#This Row],[2024/25 To - Spending review Topic 2]]+Dataset[[#This Row],[2024/25 To - Spending review Topic 3]]+Dataset[[#This Row],[2024/25 To - Spending review Topic 4]]+Dataset[[#This Row],[2024/25 To - Other reallocations]]","v":0},{"$f":"Dataset[[#This Row],[2025/26 To - Spending review Topic 1]]+Dataset[[#This Row],[2025/26 To - Spending review Topic 2]]+Dataset[[#This Row],[2025/26 To - Spending review Topic 3]]+Dataset[[#This Row],[2025/26 To - Spending review Topic 4]]+Dataset[[#This Row],[2025/26 To - Other reallocations]]","v":0},{"$f":"Dataset[[#This Row],[2026/27 To - Spending review Topic 1]]+Dataset[[#This Row],[2026/27 To - Spending review Topic 2]]+Dataset[[#This Row],[2026/27 To - Spending review Topic 3]]+Dataset[[#This Row],[2026/27 To - Spending review Topic 4]]+Dataset[[#This Row],[2026/27 To - Other reallocations]]","v":0},{"$f":"Dataset[[#This Row],[2024/25 Reduction]]+Dataset[[#This Row],[2024/25 From - Total]]","v":0},{"$f":"Dataset[[#This Row],[2025/26 Reduction]]+Dataset[[#This Row],[2025/26 From - Total]]","v":0},{"$f":"Dataset[[#This Row],[2026/27 Reduction]]+Dataset[[#This Row],[2026/27 From - Total]]","v":0},{"$f":"Dataset[[#This Row],[2023/24 Reduction]]","v":0},{"$f":"SUM(Dataset[[#This Row],[2024/25 Reduction]],Dataset[[#This Row],[2024/25 From - Total]],Dataset[[#This Row],[2024/25 To - Total]])","v":0},{"$f":"SUM(Dataset[[#This Row],[2025/26 Reduction]],Dataset[[#This Row],[2025/26 From - Total]],Dataset[[#This Row],[2025/26 To - Total]])","v":0},{"$f":"SUM(Dataset[[#This Row],[2026/27 Reduction]],Dataset[[#This Row],[2026/27 From - Total]],Dataset[[#This Row],[2026/27 To - Total]])","v":0},{"$f":"Dataset[[#This Row],[2023/24 Baseline]]+Dataset[[#This Row],[2023/24 Total change]]","v":0},{"$f":"Dataset[[#This Row],[2024/25 Baseline]]+Dataset[[#This Row],[2024/25 Total change]]","v":0},{"$f":"Dataset[[#This Row],[2025/26 Baseline]]+Dataset[[#This Row],[2025/26 Total change]]","v":0},{"$f":"Dataset[[#This Row],[2026/27 Baseline]]+Dataset[[#This Row],[2026/27 Total change]]","v":0}]
["NAT|Non-transfer item","26|Land and sub-soil assets","2024_25","MTEF2024",26,3,3,44809,922,"26","03","03","044809","000922","26|03|03","02","03","16","61","65","02|03|16|61|65","National","Military Veterans","Empowerment and Stakeholder Management","Heritage, Memorials, Burials and Honours","Non-transfer item","Capital","Payments for capital assets","Land and sub-soil assets","Land and sub-soil assets","Land and sub-soil assets","Peace and security","Defence and state security","NAT",0,0,0,0,0,0,0,0,0,0,0,null,null,null,null,null,null,null,null,null,null,null,null,null,null,null,null,null,null,null,null,null,null,null,null,null,null,null,null,null,null,null,null,null,null,{"$f":"Dataset[[#This Row],[2024/25 From - Spending review Topic 1]]+Dataset[[#This Row],[2024/25 From - Spending review Topic 2]]+Dataset[[#This Row],[2024/25 From - Spending review Topic 3]]+Dataset[[#This Row],[2024/25 From - Spending review Topic 4]]+Dataset[[#This Row],[2024/25 From - Other reallocations]]","v":0},{"$f":"Dataset[[#This Row],[2025/26 From - Spending review Topic 1]]+Dataset[[#This Row],[2025/26 From - Spending review Topic 2]]+Dataset[[#This Row],[2025/26 From - Spending review Topic 3]]+Dataset[[#This Row],[2025/26 From - Spending review Topic 4]]+Dataset[[#This Row],[2025/26 From - Other reallocations]]","v":0},{"$f":"Dataset[[#This Row],[2026/27 From - Spending review Topic 1]]+Dataset[[#This Row],[2026/27 From - Spending review Topic 2]]+Dataset[[#This Row],[2026/27 From - Spending review Topic 3]]+Dataset[[#This Row],[2026/27 From - Spending review Topic 4]]+Dataset[[#This Row],[2026/27 From - Other reallocations]]","v":0},{"$f":"Dataset[[#This Row],[2024/25 To - Spending review Topic 1]]+Dataset[[#This Row],[2024/25 To - Spending review Topic 2]]+Dataset[[#This Row],[2024/25 To - Spending review Topic 3]]+Dataset[[#This Row],[2024/25 To - Spending review Topic 4]]+Dataset[[#This Row],[2024/25 To - Other reallocations]]","v":0},{"$f":"Dataset[[#This Row],[2025/26 To - Spending review Topic 1]]+Dataset[[#This Row],[2025/26 To - Spending review Topic 2]]+Dataset[[#This Row],[2025/26 To - Spending review Topic 3]]+Dataset[[#This Row],[2025/26 To - Spending review Topic 4]]+Dataset[[#This Row],[2025/26 To - Other reallocations]]","v":0},{"$f":"Dataset[[#This Row],[2026/27 To - Spending review Topic 1]]+Dataset[[#This Row],[2026/27 To - Spending review Topic 2]]+Dataset[[#This Row],[2026/27 To - Spending review Topic 3]]+Dataset[[#This Row],[2026/27 To - Spending review Topic 4]]+Dataset[[#This Row],[2026/27 To - Other reallocations]]","v":0},{"$f":"Dataset[[#This Row],[2024/25 Reduction]]+Dataset[[#This Row],[2024/25 From - Total]]","v":0},{"$f":"Dataset[[#This Row],[2025/26 Reduction]]+Dataset[[#This Row],[2025/26 From - Total]]","v":0},{"$f":"Dataset[[#This Row],[2026/27 Reduction]]+Dataset[[#This Row],[2026/27 From - Total]]","v":0},{"$f":"Dataset[[#This Row],[2023/24 Reduction]]","v":0},{"$f":"SUM(Dataset[[#This Row],[2024/25 Reduction]],Dataset[[#This Row],[2024/25 From - Total]],Dataset[[#This Row],[2024/25 To - Total]])","v":0},{"$f":"SUM(Dataset[[#This Row],[2025/26 Reduction]],Dataset[[#This Row],[2025/26 From - Total]],Dataset[[#This Row],[2025/26 To - Total]])","v":0},{"$f":"SUM(Dataset[[#This Row],[2026/27 Reduction]],Dataset[[#This Row],[2026/27 From - Total]],Dataset[[#This Row],[2026/27 To - Total]])","v":0},{"$f":"Dataset[[#This Row],[2023/24 Baseline]]+Dataset[[#This Row],[2023/24 Total change]]","v":0},{"$f":"Dataset[[#This Row],[2024/25 Baseline]]+Dataset[[#This Row],[2024/25 Total change]]","v":0},{"$f":"Dataset[[#This Row],[2025/26 Baseline]]+Dataset[[#This Row],[2025/26 Total change]]","v":0},{"$f":"Dataset[[#This Row],[2026/27 Baseline]]+Dataset[[#This Row],[2026/27 Total change]]","v":0}]
["NAT|Non-transfer item","26|Software and other intangible assets","2024_25","MTEF2024",26,3,3,44810,923,"26","03","03","044810","000923","26|03|03","02","03","17","62","66","02|03|17|62|66","National","Military Veterans","Empowerment and Stakeholder Management","Heritage, Memorials, Burials and Honours","Non-transfer item","Capital","Payments for capital assets","Software and other intangible assets","Software and other intangible assets","Software and other intangible assets","Peace and security","Defence and state security","NAT",0,0,0,0,0,0,0,0,0,0,0,null,null,null,null,null,null,null,null,null,null,null,null,null,null,null,null,null,null,null,null,null,null,null,null,null,null,null,null,null,null,null,null,null,null,{"$f":"Dataset[[#This Row],[2024/25 From - Spending review Topic 1]]+Dataset[[#This Row],[2024/25 From - Spending review Topic 2]]+Dataset[[#This Row],[2024/25 From - Spending review Topic 3]]+Dataset[[#This Row],[2024/25 From - Spending review Topic 4]]+Dataset[[#This Row],[2024/25 From - Other reallocations]]","v":0},{"$f":"Dataset[[#This Row],[2025/26 From - Spending review Topic 1]]+Dataset[[#This Row],[2025/26 From - Spending review Topic 2]]+Dataset[[#This Row],[2025/26 From - Spending review Topic 3]]+Dataset[[#This Row],[2025/26 From - Spending review Topic 4]]+Dataset[[#This Row],[2025/26 From - Other reallocations]]","v":0},{"$f":"Dataset[[#This Row],[2026/27 From - Spending review Topic 1]]+Dataset[[#This Row],[2026/27 From - Spending review Topic 2]]+Dataset[[#This Row],[2026/27 From - Spending review Topic 3]]+Dataset[[#This Row],[2026/27 From - Spending review Topic 4]]+Dataset[[#This Row],[2026/27 From - Other reallocations]]","v":0},{"$f":"Dataset[[#This Row],[2024/25 To - Spending review Topic 1]]+Dataset[[#This Row],[2024/25 To - Spending review Topic 2]]+Dataset[[#This Row],[2024/25 To - Spending review Topic 3]]+Dataset[[#This Row],[2024/25 To - Spending review Topic 4]]+Dataset[[#This Row],[2024/25 To - Other reallocations]]","v":0},{"$f":"Dataset[[#This Row],[2025/26 To - Spending review Topic 1]]+Dataset[[#This Row],[2025/26 To - Spending review Topic 2]]+Dataset[[#This Row],[2025/26 To - Spending review Topic 3]]+Dataset[[#This Row],[2025/26 To - Spending review Topic 4]]+Dataset[[#This Row],[2025/26 To - Other reallocations]]","v":0},{"$f":"Dataset[[#This Row],[2026/27 To - Spending review Topic 1]]+Dataset[[#This Row],[2026/27 To - Spending review Topic 2]]+Dataset[[#This Row],[2026/27 To - Spending review Topic 3]]+Dataset[[#This Row],[2026/27 To - Spending review Topic 4]]+Dataset[[#This Row],[2026/27 To - Other reallocations]]","v":0},{"$f":"Dataset[[#This Row],[2024/25 Reduction]]+Dataset[[#This Row],[2024/25 From - Total]]","v":0},{"$f":"Dataset[[#This Row],[2025/26 Reduction]]+Dataset[[#This Row],[2025/26 From - Total]]","v":0},{"$f":"Dataset[[#This Row],[2026/27 Reduction]]+Dataset[[#This Row],[2026/27 From - Total]]","v":0},{"$f":"Dataset[[#This Row],[2023/24 Reduction]]","v":0},{"$f":"SUM(Dataset[[#This Row],[2024/25 Reduction]],Dataset[[#This Row],[2024/25 From - Total]],Dataset[[#This Row],[2024/25 To - Total]])","v":0},{"$f":"SUM(Dataset[[#This Row],[2025/26 Reduction]],Dataset[[#This Row],[2025/26 From - Total]],Dataset[[#This Row],[2025/26 To - Total]])","v":0},{"$f":"SUM(Dataset[[#This Row],[2026/27 Reduction]],Dataset[[#This Row],[2026/27 From - Total]],Dataset[[#This Row],[2026/27 To - Total]])","v":0},{"$f":"Dataset[[#This Row],[2023/24 Baseline]]+Dataset[[#This Row],[2023/24 Total change]]","v":0},{"$f":"Dataset[[#This Row],[2024/25 Baseline]]+Dataset[[#This Row],[2024/25 Total change]]","v":0},{"$f":"Dataset[[#This Row],[2025/26 Baseline]]+Dataset[[#This Row],[2025/26 Total change]]","v":0},{"$f":"Dataset[[#This Row],[2026/27 Baseline]]+Dataset[[#This Row],[2026/27 Total change]]","v":0}]
["NAT|Non-transfer item","26|Payments for financial assets","2024_25","MTEF2024",26,3,3,44811,924,"26","03","03","044811","000924","26|03|03","03","04","18","63","67","03|04|18|63|67","National","Military Veterans","Empowerment and Stakeholder Management","Heritage, Memorials, Burials and Honours","Non-transfer item","Payments for financial assets","Payments for financial assets","Payments for financial assets","Payments for financial assets","Payments for financial assets","Peace and security","Defence and state security","NAT",0,0,0,0,0,0,0,0,0,0,0,null,null,null,null,null,null,null,null,null,null,null,null,null,null,null,null,null,null,null,null,null,null,null,null,null,null,null,null,null,null,null,null,null,null,{"$f":"Dataset[[#This Row],[2024/25 From - Spending review Topic 1]]+Dataset[[#This Row],[2024/25 From - Spending review Topic 2]]+Dataset[[#This Row],[2024/25 From - Spending review Topic 3]]+Dataset[[#This Row],[2024/25 From - Spending review Topic 4]]+Dataset[[#This Row],[2024/25 From - Other reallocations]]","v":0},{"$f":"Dataset[[#This Row],[2025/26 From - Spending review Topic 1]]+Dataset[[#This Row],[2025/26 From - Spending review Topic 2]]+Dataset[[#This Row],[2025/26 From - Spending review Topic 3]]+Dataset[[#This Row],[2025/26 From - Spending review Topic 4]]+Dataset[[#This Row],[2025/26 From - Other reallocations]]","v":0},{"$f":"Dataset[[#This Row],[2026/27 From - Spending review Topic 1]]+Dataset[[#This Row],[2026/27 From - Spending review Topic 2]]+Dataset[[#This Row],[2026/27 From - Spending review Topic 3]]+Dataset[[#This Row],[2026/27 From - Spending review Topic 4]]+Dataset[[#This Row],[2026/27 From - Other reallocations]]","v":0},{"$f":"Dataset[[#This Row],[2024/25 To - Spending review Topic 1]]+Dataset[[#This Row],[2024/25 To - Spending review Topic 2]]+Dataset[[#This Row],[2024/25 To - Spending review Topic 3]]+Dataset[[#This Row],[2024/25 To - Spending review Topic 4]]+Dataset[[#This Row],[2024/25 To - Other reallocations]]","v":0},{"$f":"Dataset[[#This Row],[2025/26 To - Spending review Topic 1]]+Dataset[[#This Row],[2025/26 To - Spending review Topic 2]]+Dataset[[#This Row],[2025/26 To - Spending review Topic 3]]+Dataset[[#This Row],[2025/26 To - Spending review Topic 4]]+Dataset[[#This Row],[2025/26 To - Other reallocations]]","v":0},{"$f":"Dataset[[#This Row],[2026/27 To - Spending review Topic 1]]+Dataset[[#This Row],[2026/27 To - Spending review Topic 2]]+Dataset[[#This Row],[2026/27 To - Spending review Topic 3]]+Dataset[[#This Row],[2026/27 To - Spending review Topic 4]]+Dataset[[#This Row],[2026/27 To - Other reallocations]]","v":0},{"$f":"Dataset[[#This Row],[2024/25 Reduction]]+Dataset[[#This Row],[2024/25 From - Total]]","v":0},{"$f":"Dataset[[#This Row],[2025/26 Reduction]]+Dataset[[#This Row],[2025/26 From - Total]]","v":0},{"$f":"Dataset[[#This Row],[2026/27 Reduction]]+Dataset[[#This Row],[2026/27 From - Total]]","v":0},{"$f":"Dataset[[#This Row],[2023/24 Reduction]]","v":0},{"$f":"SUM(Dataset[[#This Row],[2024/25 Reduction]],Dataset[[#This Row],[2024/25 From - Total]],Dataset[[#This Row],[2024/25 To - Total]])","v":0},{"$f":"SUM(Dataset[[#This Row],[2025/26 Reduction]],Dataset[[#This Row],[2025/26 From - Total]],Dataset[[#This Row],[2025/26 To - Total]])","v":0},{"$f":"SUM(Dataset[[#This Row],[2026/27 Reduction]],Dataset[[#This Row],[2026/27 From - Total]],Dataset[[#This Row],[2026/27 To - Total]])","v":0},{"$f":"Dataset[[#This Row],[2023/24 Baseline]]+Dataset[[#This Row],[2023/24 Total change]]","v":0},{"$f":"Dataset[[#This Row],[2024/25 Baseline]]+Dataset[[#This Row],[2024/25 Total change]]","v":0},{"$f":"Dataset[[#This Row],[2025/26 Baseline]]+Dataset[[#This Row],[2025/26 Total change]]","v":0},{"$f":"Dataset[[#This Row],[2026/27 Baseline]]+Dataset[[#This Row],[2026/27 Total change]]","v":0}]

{"sheet":"Summary","index":10,"n_rows":104,"n_cols":26,"rows_kept":104,"cut":false,"hidden":false,"merged":[]}
[]
[]
[null,null,null,null,null,null,{"$f":"Welcome!$B$7&\" \"& MyDeptName","v":"VOTE 26:  Military Veterans"}]
[null,null,null,null,null,null,null,null,null,null,null,null,"Growth"]
[null,null,null,null,null,null,"Quick view",{"$f":"MyYear4","v":"2023/24"},{"$f":"MyYear5","v":"2024/25"},{"$f":"MyYear6","v":"2025/26"},{"$f":"MyYear7","v":"2026/27"},"Trend",{"$f":"MyYear5","v":"2024/25"},{"$f":"MyYear6","v":"2025/26"},{"$f":"MyYear7","v":"2026/27"},"Ave Ann"]
[null,null,null,null,null,null,"Compensation of employees",{"$f":"SUMPRODUCT(($G$56:$G$89=$G6)*($M$56:$M$89))","v":134447},{"$f":"SUMPRODUCT(($G$56:$G$89=$G6)*($Q$56:$Q$89))","v":140373},{"$f":"SUMPRODUCT(($G$56:$G$89=$G6)*($U$56:$U$89))","v":146550},{"$f":"SUMPRODUCT(($G$56:$G$89=$G6)*($Y$56:$Y$89))","v":153263},null,{"$f":"IFERROR(I6/H6-1,0)","v":4.4076848126027413E-2},4.4004188839734226E-2,4.5806891845786346E-2,{"$f":"IFERROR(((K6/H6)^(1/3)-1),0)","v":4.462897744269978E-2}]
[null,null,null,null,null,null,"Goods and services",{"$f":"SUMPRODUCT(($G$56:$G$89=$G7)*($M$56:$M$89))","v":291780},{"$f":"SUMPRODUCT(($G$56:$G$89=$G7)*($Q$56:$Q$89))","v":306822},{"$f":"SUMPRODUCT(($G$56:$G$89=$G7)*($U$56:$U$89))","v":320729},{"$f":"SUMPRODUCT(($G$56:$G$89=$G7)*($Y$56:$Y$89))","v":335416},null,5.1552539584618584E-2,4.5325954462196227E-2,4.5792553838287064E-2,4.7553193539834782E-2,null,null,{"$f":"X8","v":"2024/25"},{"$f":"Y8","v":"2025/26"},{"$f":"Z8","v":"2026/27"}]
[null,null,null,null,null,null,"Transfers and subsidies",{"$f":"SUMPRODUCT(($G$56:$G$89=$G8)*($M$56:$M$89))","v":442873},{"$f":"SUMPRODUCT(($G$56:$G$89=$G8)*($Q$56:$Q$89))","v":502171},{"$f":"SUMPRODUCT(($G$56:$G$89=$G8)*($U$56:$U$89))","v":566684},{"$f":"SUMPRODUCT(($G$56:$G$89=$G8)*($Y$56:$Y$89))","v":592647},null,0.13389391541141582,0.12846819111418228,4.5815657403420529E-2,0.10197640425888843,"CoE","Compensation of employees",{"$f":"SUMIF($G$56:$G$89,$R8,$O$56:$O$89)+SUMIF($G$56:$G$89,$R8,$P$56:$P$89)","v":0},{"$f":"SUMIF($G$56:$G$89,$R8,$S$56:$S$89)+SUMIF($G$56:$G$89,$R8,$T$56:$T$89)","v":0},{"$f":"SUMIF($G$56:$G$89,$R8,$W$56:$W$89)+SUMIF($G$56:$G$89,$R8,$X$56:$X$89)","v":0},null,{"$f":"MyYear4","v":"2023/24"},{"$f":"MyYear5","v":"2024/25"},{"$f":"MyYear6","v":"2025/26"},{"$f":"MyYear7","v":"2026/27"}]
[null,null,null,null,null,null,"Payments for capital assets",{"$f":"SUMPRODUCT(($G$56:$G$89=$G9)*($M$56:$M$89))","v":25604},{"$f":"SUMPRODUCT(($G$56:$G$89=$G9)*($Q$56:$Q$89))","v":25264},{"$f":"SUMPRODUCT(($G$56:$G$89=$G9)*($U$56:$U$89))","v":26053},{"$f":"SUMPRODUCT(($G$56:$G$89=$G9)*($Y$56:$Y$89))","v":27248},null,-1.32791751288861E-2,3.1230208993033637E-2,4.5868038229762487E-2,2.0960493881650111E-2,"G&S","Goods and services",{"$f":"SUMIF($G$56:$G$89,$R9,$O$56:$O$89)+SUMIF($G$56:$G$89,$R9,$P$56:$P$89)","v":0},{"$f":"SUMIF($G$56:$G$89,$R9,$S$56:$S$89)+SUMIF($G$56:$G$89,$R9,$T$56:$T$89)","v":0},{"$f":"SUMIF($G$56:$G$89,$R9,$W$56:$W$89)+SUMIF($G$56:$G$89,$R9,$X$56:$X$89)","v":0}]
[null,null,null,null,null,null,"Total",{"$f":"SUMPRODUCT(($G$56:$G$89=$G10)*($M$56:$M$89))","v":894704},{"$f":"SUMPRODUCT(($G$56:$G$89=$G10)*($Q$56:$Q$89))","v":974630},{"$f":"SUMPRODUCT(($G$56:$G$89=$G10)*($U$56:$U$89))","v":1060016},{"$f":"SUMPRODUCT(($G$56:$G$89=$G10)*($Y$56:$Y$89))","v":1108574},null,8.9332337845812626E-2,8.760863096764937E-2,4.5808742509547029E-2,7.405973687214229E-2,"T&S","Transfers and subsidies",{"$f":"SUMIF($G$56:$G$89,$R10,$O$56:$O$89)+SUMIF($G$56:$G$89,$R10,$P$56:$P$89)","v":0},{"$f":"SUMIF($G$56:$G$89,$R10,$S$56:$S$89)+SUMIF($G$56:$G$89,$R10,$T$56:$T$89)","v":0},{"$f":"SUMIF($G$56:$G$89,$R10,$W$56:$W$89)+SUMIF($G$56:$G$89,$R10,$X$56:$X$89)","v":0}]
[null,null,null,null,null,null,"Composition of spending (% of Total)",null,null,null,null,null,null,null,null,null,"Capital","Payments for capital assets",{"$f":"SUMIF($G$56:$G$89,$R11,$O$56:$O$89)+SUMIF($G$56:$G$89,$R11,$P$56:$P$89)","v":0},{"$f":"SUMIF($G$56:$G$89,$R11,$S$56:$S$89)+SUMIF($G$56:$G$89,$R11,$T$56:$T$89)","v":0},{"$f":"SUMIF($G$56:$G$89,$R11,$W$56:$W$89)+SUMIF($G$56:$G$89,$R11,$X$56:$X$89)","v":0}]
[null,null,null,null,null,null,"Compensation of employees",{"$f":"H6/H$10","v":0.15026980990361058},0.14402696407867602,0.13825263014897887,0.13825238549704394,null,null,null,null,null,"Total","Total",{"$f":"SUMIF($G$56:$G$89,$R12,$O$56:$O$89)+SUMIF($G$56:$G$89,$R12,$P$56:$P$89)","v":0},{"$f":"SUMIF($G$56:$G$89,$R12,$S$56:$S$89)+SUMIF($G$56:$G$89,$R12,$T$56:$T$89)","v":0},{"$f":"SUMIF($G$56:$G$89,$R12,$W$56:$W$89)+SUMIF($G$56:$G$89,$R12,$X$56:$X$89)","v":0}]
[null,null,null,null,null,null,"Goods and services",0.32611902931025233,0.31480869663359429,0.30256996120813273,0.30256527755476859]
[null,null,null,null,null,null,"Transfers and subsidies",0.49499387506929665,0.51524270748899581,0.53459947774373218,0.53460301251878539]
[null,null,null,null,null,null,"Payments for capital assets",2.861728571684043E-2,2.5921631798733878E-2,2.457793089915624E-2,2.4579324429402097E-2,null,null,null,null,null,null,null,null,null,null,null,{"$f":"IF(H12>0.0595,H12,\"\")","v":0.15026980990361058},0.14402696407867602,0.13825263014897887,0.13825238549704394]
[null,null,null,null,null,null,null,null,null,null,null,null,null,null,null,null,null,null,null,null,null,null,0.32611902931025233,0.31480869663359429,0.30256996120813273,0.30256527755476859]
[null,null,null,null,null,null,"Division of Revenue",{"$f":"MyYear4","v":"2023/24"},{"$f":"MyYear5","v":"2024/25"},{"$f":"MyYear6","v":"2025/26"},{"$f":"MyYear7","v":"2026/27"},"Trend",{"$f":"MyYear5","v":"2024/25"},{"$f":"MyYear6","v":"2025/26"},{"$f":"MyYear7","v":"2026/27"},"Ave Ann",null,null,null,null,null,null,0.49499387506929665,0.51524270748899581,0.53459947774373218,0.53460301251878539]
[null,null,null,null,null,null,"National",{"$f":"SUM(H19:H21)","v":894704},{"$f":"SUM(I19:I21)","v":974630},1060016,1108574,null,{"$f":"IFERROR(I18/H18-1,0)","v":8.9332337845812626E-2},{"$f":"IFERROR(J18/I18-1,0)","v":8.760863096764937E-2},{"$f":"IFERROR(K18/J18-1,0)","v":4.5808742509547029E-2},{"$f":"IFERROR(((K18/H18)^(1/3)-1),0)","v":7.405973687214229E-2},null,null,null,null,null,null,"","","",""]
[null,"NAT",null,null,null,null,"National (excl. indirect grants)",{"$f":"SUMPRODUCT(((Dataset[DOR]=$B19))*Dataset[2023/24 Revised baseline])","v":894704},{"$f":"SUMPRODUCT(((Dataset[DOR]=$B19))*Dataset[2024/25 Revised baseline])","v":974630},{"$f":"SUMPRODUCT(((Dataset[DOR]=$B19))*Dataset[2025/26 Revised baseline])","v":1060016},{"$f":"SUMPRODUCT(((Dataset[DOR]=$B19))*Dataset[2026/27 Revised baseline])","v":1108574},null,8.9332337845812626E-2,8.760863096764937E-2,4.5808742509547029E-2,7.405973687214229E-2]
[null,"IGP",null,null,null,null,"Provincial indirect grants",{"$f":"SUMPRODUCT(((Dataset[DOR]=$B20))*Dataset[2023/24 Revised baseline])","v":0},{"$f":"SUMPRODUCT(((Dataset[DOR]=$B20))*Dataset[2024/25 Revised baseline])","v":0},{"$f":"SUMPRODUCT(((Dataset[DOR]=$B20))*Dataset[2025/26 Revised baseline])","v":0},{"$f":"SUMPRODUCT(((Dataset[DOR]=$B20))*Dataset[2026/27 Revised baseline])","v":0},null,{"$f":"IFERROR(I20/H20-1,0)","v":0},{"$f":"IFERROR(J20/I20-1,0)","v":0},{"$f":"IFERROR(K20/J20-1,0)","v":0},{"$f":"IFERROR(((K20/H20)^(1/3)-1),0)","v":0}]
[null,"IGM",null,null,null,null,"Local indirect grants",{"$f":"SUMPRODUCT(((Dataset[DOR]=$B21))*Dataset[2023/24 Revised baseline])","v":0},{"$f":"SUMPRODUCT(((Dataset[DOR]=$B21))*Dataset[2024/25 Revised baseline])","v":0},{"$f":"SUMPRODUCT(((Dataset[DOR]=$B21))*Dataset[2025/26 Revised baseline])","v":0},{"$f":"SUMPRODUCT(((Dataset[DOR]=$B21))*Dataset[2026/27 Revised baseline])","v":0},null,{"$f":"IFERROR(I21/H21-1,0)","v":0},{"$f":"IFERROR(J21/I21-1,0)","v":0},{"$f":"IFERROR(K21/J21-1,0)","v":0},{"$f":"IFERROR(((K21/H21)^(1/3)-1),0)","v":0}]
[null,null,null,null,null,null,"Provincial",{"$f":"SUM(H23:H24)","v":0},{"$f":"SUM(I23:I24)","v":0},0,0,null,0,0,0,0]
[null,"PES",null,null,null,null,"Provincial equitable share",{"$f":"SUMPRODUCT(((Dataset[DOR]=$B23))*Dataset[2023/24 Revised baseline])","v":0},{"$f":"SUMPRODUCT(((Dataset[DOR]=$B23))*Dataset[2024/25 Revised baseline])","v":0},{"$f":"SUMPRODUCT(((Dataset[DOR]=$B23))*Dataset[2025/26 Revised baseline])","v":0},{"$f":"SUMPRODUCT(((Dataset[DOR]=$B23))*Dataset[2026/27 Revised baseline])","v":0},null,{"$f":"IFERROR(I23/H23-1,0)","v":0},0,0,{"$f":"IFERROR(((K23/H23)^(1/3)-1),0)","v":0}]
[null,"PCG",null,null,null,null,"Provincial conditional grants",{"$f":"SUMPRODUCT(((Dataset[DOR]=$B24))*Dataset[2023/24 Revised baseline])","v":0},{"$f":"SUMPRODUCT(((Dataset[DOR]=$B24))*Dataset[2024/25 Revised baseline])","v":0},{"$f":"SUMPRODUCT(((Dataset[DOR]=$B24))*Dataset[2025/26 Revised baseline])","v":0},{"$f":"SUMPRODUCT(((Dataset[DOR]=$B24))*Dataset[2026/27 Revised baseline])","v":0},null,0,0,0,0]
[null,null,null,null,null,null,"Local government",{"$f":"SUM(H26:H28)","v":0},{"$f":"SUM(I26:I28)","v":0},0,0,null,{"$f":"IFERROR(I25/H25-1,0)","v":0},{"$f":"IFERROR(J25/I25-1,0)","v":0},{"$f":"IFERROR(K25/J25-1,0)","v":0},{"$f":"IFERROR(((K25/H25)^(1/3)-1),0)","v":0}]
[null,"LES",null,null,null,null,"Local equitable share",{"$f":"SUMPRODUCT(((Dataset[DOR]=$B26))*Dataset[2023/24 Revised baseline])","v":0},{"$f":"SUMPRODUCT(((Dataset[DOR]=$B26))*Dataset[2024/25 Revised baseline])","v":0},{"$f":"SUMPRODUCT(((Dataset[DOR]=$B26))*Dataset[2025/26 Revised baseline])","v":0},{"$f":"SUMPRODUCT(((Dataset[DOR]=$B26))*Dataset[2026/27 Revised baseline])","v":0},null,{"$f":"IFERROR(I26/H26-1,0)","v":0},0,0,{"$f":"IFERROR(((K26/H26)^(1/3)-1),0)","v":0}]
[null,"LCG",null,null,null,null,"Local conditional grants",{"$f":"SUMPRODUCT(((Dataset[DOR]=$B27))*Dataset[2023/24 Revised baseline])","v":0},{"$f":"SUMPRODUCT(((Dataset[DOR]=$B27))*Dataset[2024/25 Revised baseline])","v":0},{"$f":"SUMPRODUCT(((Dataset[DOR]=$B27))*Dataset[2025/26 Revised baseline])","v":0},{"$f":"SUMPRODUCT(((Dataset[DOR]=$B27))*Dataset[2026/27 Revised baseline])","v":0},null,0,0,0,0]
[null,"GFL",null,null,null,null,"General fuel levy ",{"$f":"SUMPRODUCT(((Dataset[DOR]=$B28))*Dataset[2023/24 Revised baseline])","v":0},{"$f":"SUMPRODUCT(((Dataset[DOR]=$B28))*Dataset[2024/25 Revised baseline])","v":0},{"$f":"SUMPRODUCT(((Dataset[DOR]=$B28))*Dataset[2025/26 Revised baseline])","v":0},{"$f":"SUMPRODUCT(((Dataset[DOR]=$B28))*Dataset[2026/27 Revised baseline])","v":0},null,0,0,0,0]
[]
[null,null,null,null,null,null,"Personnel numbers (HRBP)",{"$f":"MyYear4","v":"2023/24"},{"$f":"MyYear5","v":"2024/25"},{"$f":"MyYear6","v":"2025/26"},{"$f":"MyYear7","v":"2026/27"}]
[null,null,null,null,null,null,"Initial headcount",{"$f":"SUM(t_HRBP[2023/24 Initial Headcount])","v":0},{"$f":"SUM(t_HRBP[2024/25 Initial Headcount])","v":0},{"$f":"SUM(t_HRBP[2025/26 Initial Headcount])","v":0},{"$f":"SUM(t_HRBP[2026/27 Initial Headcount])","v":0},null,null,null,null,null,null,{"$f":"W8","v":"2023/24"},"2024/25","2025/26","2026/27"]
[null,null,null,null,null,null,"Vacant funded posts to be filled",{"$f":"SUM(t_HRBP[2023/24 Vacant funded posts to be filled])","v":0},{"$f":"SUM(t_HRBP[2024/25 Vacant funded posts to be filled])","v":0},{"$f":"SUM(t_HRBP[2025/26 Vacant funded posts to be filled])","v":0},{"$f":"SUM(t_HRBP[2026/27 Vacant funded posts to be filled])","v":0},null,null,null,null,null,"Revised head count",{"$f":"IF(H34=0,\"\",H34)","v":""},"","",""]
[null,null,null,null,null,null,"Headcount reductions to be made",{"$f":"SUM(t_HRBP[2023/24 Headcount reductions to be made])","v":0},{"$f":"SUM(t_HRBP[2024/25 Headcount reductions to be made])","v":0},{"$f":"SUM(t_HRBP[2025/26 Headcount reductions to be made])","v":0},{"$f":"SUM(t_HRBP[2026/27 Headcount reductions to be made])","v":0},null,null,null,null,null,"Additions",{"$f":"IF(H32=0,\"\",H32)","v":""},{"$f":"IF(I32=0,\"\",I32)","v":""},{"$f":"IF(J32=0,\"\",J32)","v":""},{"$f":"IF(K32=0,\"\",K32)","v":""}]
[null,null,null,null,null,null,"Revised headcount",{"$f":"SUM(t_HRBP[2023/24 Revised Headcount])","v":0},{"$f":"SUM(t_HRBP[2024/25 Revised Headcount])","v":0},{"$f":"SUM(t_HRBP[2025/26 Revised Headcount])","v":0},{"$f":"SUM(t_HRBP[2026/27 Revised Headcount])","v":0},null,null,null,null,null,"Reductions","","","",""]
[null,null,null,null,null,null,"Change in headcount",{"$f":"H34-H31","v":0},{"$f":"I34-I31","v":0},{"$f":"J34-J31","v":0},{"$f":"K34-K31","v":0}]
[null,null,null,null,null,null,"Cost of vacant posts to be filled",{"$f":"SUM(t_HRBP[2023/24 Cost of vacant posts to be filled])","v":0},{"$f":"SUM(t_HRBP[2024/25 Cost of vacant posts to be filled])","v":0},{"$f":"SUM(t_HRBP[2025/26 Cost of vacant posts to be filled])","v":0},{"$f":"SUM(t_HRBP[2026/27 Cost of vacant posts to be filled])","v":0}]
[null,null,null,null,null,null,"Savings from headcount reductions",{"$f":"SUM(t_HRBP[2023/24 Savings from headcount reductions])","v":0},{"$f":"SUM(t_HRBP[2024/25 Savings from headcount reductions])","v":0},{"$f":"SUM(t_HRBP[2025/26 Savings from headcount reductions])","v":0},{"$f":"SUM(t_HRBP[2026/27 Savings from headcount reductions])","v":0}]
[]
[null,null,null,null,null,null,"Check: CoE (economic) less HRBP annual cost",{"$f":"SUMIFS(Dataset[2023/24 Baseline],Dataset[Econ3],\"Compensation of employees\")-SUM(t_HRBP[2023/24 Projected Annual Cost])","v":134447},{"$f":"SUMIFS(Dataset[2024/25 Baseline],Dataset[Econ3],\"Compensation of employees\")-SUM(t_HRBP[2024/25 Projected Annual Cost])","v":140373},{"$f":"SUMIFS(Dataset[2025/26 Baseline],Dataset[Econ3],\"Compensation of employees\")-SUM(t_HRBP[2025/26 Projected Annual Cost])","v":146550},{"$f":"SUMIFS(Dataset[2026/27 Baseline],Dataset[Econ3],\"Compensation of employees\")-SUM(t_HRBP[2026/27 Projected Annual Cost])","v":153263}]
[]
[null,null,null,null,null,null,"Strategies to reduce headcounts (Indicators)",{"$f":"MyYear4","v":"2023/24"},{"$f":"MyYear5","v":"2024/25"},{"$f":"MyYear6","v":"2025/26"},{"$f":"MyYear7","v":"2026/27"},null,null,null,null,null,null,{"$f":"W8 & \" to \" & Z8","v":"2023/24 to 2026/27"}]
[null,null,null,null,null,null,"1. Employee initiated severance package",{"$f":"HRBP_Data!BA3","v":0},{"$f":"HRBP_Data!BB3","v":0},{"$f":"HRBP_Data!BC3","v":0},{"$f":"HRBP_Data!BD3","v":0},null,null,null,null,null,"Severance",{"$f":"IF(SUM(H42:K42)=0,\"\",SUM(H42:K42))","v":""}]
[null,null,null,null,null,null,"2. Early retirement",{"$f":"HRBP_Data!BA4","v":0},{"$f":"HRBP_Data!BB4","v":0},{"$f":"HRBP_Data!BC4","v":0},{"$f":"HRBP_Data!BD4","v":0},null,null,null,null,null,"Early retirement",""]
[null,null,null,null,null,null,"3. Natural attrition",{"$f":"HRBP_Data!BA5","v":0},{"$f":"HRBP_Data!BB5","v":0},{"$f":"HRBP_Data!BC5","v":0},{"$f":"HRBP_Data!BD5","v":0},null,null,null,null,null,"Natural attrition",""]
[null,null,null,null,null,null,"4. Retirement",{"$f":"HRBP_Data!BA6","v":0},{"$f":"HRBP_Data!BB6","v":0},{"$f":"HRBP_Data!BC6","v":0},{"$f":"HRBP_Data!BD6","v":0},null,null,null,null,null,"Retirement",""]
[null,null,null,null,null,null,"5. Contract termination",{"$f":"HRBP_Data!BA7","v":0},{"$f":"HRBP_Data!BB7","v":0},{"$f":"HRBP_Data!BC7","v":0},{"$f":"HRBP_Data!BD7","v":0},null,null,null,null,null,"Contract termination",""]
[null,null,null,null,null,null,"6. Redeployments (transfers to other departments)",{"$f":"HRBP_Data!BA8","v":0},{"$f":"HRBP_Data!BB8","v":0},{"$f":"HRBP_Data!BC8","v":0},{"$f":"HRBP_Data!BD8","v":0},null,null,null,null,null,"Redeployments",""]
[null,null,null,null,null,null,"Total",{"$f":"SUM(H42:H47)","v":0},0,0,0]
[]
[]
[]
[null,null,null,null,null,null,{"$f":"G3","v":"VOTE 26:  Military Veterans"}]
[null,null,null,null,null,null,null,{"$f":"MyYear1","v":"2020/21"},{"$f":"MyYear2","v":"2021/22"},{"$f":"MyYear3","v":"2022/23"},{"$f":"MyYear4","v":"2023/24"},null,null,{"$f":"MyYear5","v":"2024/25"},null,null,null,{"$f":"MyYear6","v":"2025/26"},null,null,null,{"$f":"MyYear7","v":"2026/27"}]
[null,null,null,null,null,null,"Rand thousand","Audited outcome","Audited outcome","Pre-audited outcome","Budget","Reduction","Revised","Baseline","Decrease","Increase","Revised baseline","Baseline","Decrease","Increase","Revised baseline","Baseline","Decrease","Increase","Revised baseline"]
[null,null,null,null,null,null,"Economic classification"]
[null,null,null,null,null,null,"Current payments",{"$f":"SUM(H57:H59)","v":312117},{"$f":"SUM(I57:I59)","v":358188},0,426227,{"$f":"SUM(L57:L59)","v":0},426227,447195,0,0,447195,467279,{"$f":"SUM(S57:S59)","v":0},0,467279,488679,0,0,488679]
[null,null,null,null,null,null,"Compensation of employees",{"$f":"SUMPRODUCT(((Dataset[Econ3]=$G57))*Dataset[2020/21])","v":121648},{"$f":"SUMPRODUCT(((Dataset[Econ3]=$G57))*Dataset[2021/22])","v":116372},{"$f":"SUMPRODUCT(((Dataset[Econ3]=$G57))*Dataset[2022/23 Preliminary outcome])","v":0},{"$f":"SUMPRODUCT(((Dataset[Econ3]=$G57))*Dataset[2023/24 Baseline])","v":134447},{"$f":"SUMPRODUCT(((Dataset[Econ3]=$G57))*Dataset[2023/24 Reduction])","v":0},{"$f":"K57+L57","v":134447},{"$f":"SUMPRODUCT(((Dataset[Econ3]=$G57))*Dataset[2024/25 Baseline])","v":140373},{"$f":"SUMPRODUCT(((Dataset[Econ3]=$G57))*Dataset[2024/25 Total decrease])","v":0},{"$f":"SUMPRODUCT(((Dataset[Econ3]=$G57))*Dataset[2024/25 To - Total])","v":0},{"$f":"N57+O57+P57","v":140373},{"$f":"SUMPRODUCT(((Dataset[Econ3]=$G57))*Dataset[2025/26 Baseline])","v":146550},{"$f":"SUMPRODUCT(((Dataset[Econ3]=$G57))*Dataset[2025/26 Total decrease])","v":0},{"$f":"SUMPRODUCT(((Dataset[Econ3]=$G57))*Dataset[2025/26 To - Total])","v":0},{"$f":"R57+S57+T57","v":146550},{"$f":"SUMPRODUCT(((Dataset[Econ3]=$G57))*Dataset[2026/27 Baseline])","v":153263},{"$f":"SUMPRODUCT(((Dataset[Econ3]=$G57))*Dataset[2026/27 Total decrease])","v":0},{"$f":"SUMPRODUCT(((Dataset[Econ3]=$G57))*Dataset[2026/27 To - Total])","v":0},{"$f":"V57+W57+X57","v":153263}]
[null,null,null,null,null,null,"Goods and services",{"$f":"SUMPRODUCT(((Dataset[Econ3]=$G58))*Dataset[2020/21])","v":189176},{"$f":"SUMPRODUCT(((Dataset[Econ3]=$G58))*Dataset[2021/22])","v":241816},{"$f":"SUMPRODUCT(((Dataset[Econ3]=$G58))*Dataset[2022/23 Preliminary outcome])","v":0},{"$f":"SUMPRODUCT(((Dataset[Econ3]=$G58))*Dataset[2023/24 Baseline])","v":291780},{"$f":"SUMPRODUCT(((Dataset[Econ3]=$G58))*Dataset[2023/24 Reduction])","v":0},{"$f":"K58+L58","v":291780},{"$f":"SUMPRODUCT(((Dataset[Econ3]=$G58))*Dataset[2024/25 Baseline])","v":306822},{"$f":"SUMPRODUCT(((Dataset[Econ3]=$G58))*Dataset[2024/25 Total decrease])","v":0},{"$f":"SUMPRODUCT(((Dataset[Econ3]=$G58))*Dataset[2024/25 To - Total])","v":0},{"$f":"N58+O58+P58","v":306822},{"$f":"SUMPRODUCT(((Dataset[Econ3]=$G58))*Dataset[2025/26 Baseline])","v":320729},{"$f":"SUMPRODUCT(((Dataset[Econ3]=$G58))*Dataset[2025/26 Total decrease])","v":0},{"$f":"SUMPRODUCT(((Dataset[Econ3]=$G58))*Dataset[2025/26 To - Total])","v":0},{"$f":"R58+S58+T58","v":320729},{"$f":"SUMPRODUCT(((Dataset[Econ3]=$G58))*Dataset[2026/27 Baseline])","v":335416},{"$f":"SUMPRODUCT(((Dataset[Econ3]=$G58))*Dataset[2026/27 Total decrease])","v":0},{"$f":"SUMPRODUCT(((Dataset[Econ3]=$G58))*Dataset[2026/27 To - Total])","v":0},{"$f":"V58+W58+X58","v":335416}]
[null,null,null,null,null,null,"Interest and rent on land",{"$f":"SUMPRODUCT(((Dataset[Econ3]=$G59))*Dataset[2020/21])","v":1293},{"$f":"SUMPRODUCT(((Dataset[Econ3]=$G59))*Dataset[2021/22])","v":0},{"$f":"SUMPRODUCT(((Dataset[Econ3]=$G59))*Dataset[2022/23 Preliminary outcome])","v":0},{"$f":"SUMPRODUCT(((Dataset[Econ3]=$G59))*Dataset[2023/24 Baseline])","v":0},{"$f":"SUMPRODUCT(((Dataset[Econ3]=$G59))*Dataset[2023/24 Reduction])","v":0},{"$f":"K59+L59","v":0},{"$f":"SUMPRODUCT(((Dataset[Econ3]=$G59))*Dataset[2024/25 Baseline])","v":0},{"$f":"SUMPRODUCT(((Dataset[Econ3]=$G59))*Dataset[2024/25 Total decrease])","v":0},{"$f":"SUMPRODUCT(((Dataset[Econ3]=$G59))*Dataset[2024/25 To - Total])","v":0},0,{"$f":"SUMPRODUCT(((Dataset[Econ3]=$G59))*Dataset[2025/26 Baseline])","v":0},{"$f":"SUMPRODUCT(((Dataset[Econ3]=$G59))*Dataset[2025/26 Total decrease])","v":0},{"$f":"SUMPRODUCT(((Dataset[Econ3]=$G59))*Dataset[2025/26 To - Total])","v":0},0,{"$f":"SUMPRODUCT(((Dataset[Econ3]=$G59))*Dataset[2026/27 Baseline])","v":0},{"$f":"SUMPRODUCT(((Dataset[Econ3]=$G59))*Dataset[2026/27 Total decrease])","v":0},{"$f":"SUMPRODUCT(((Dataset[Econ3]=$G59))*Dataset[2026/27 To - Total])","v":0},0]
[null,null,null,null,null,null,"Transfers and subsidies",{"$f":"SUM(H61,H64,H67:H69,H72:H73)","v":111339},{"$f":"SUM(I61,I64,I67:I69,I72:I73)","v":129055},0,442873,{"$f":"SUM(L61,L64,L67:L69,L72:L73)","v":0},442873,502171,0,0,502171,566684,{"$f":"SUM(S61,S64,S67:S69,S72:S73)","v":0},0,566684,592647,0,0,592647]
[null,null,null,null,null,null,"Provinces and municipalities",{"$f":"SUM(H62:H63)","v":0},{"$f":"SUM(I62:I63)","v":0},0,0,{"$f":"SUM(L62:L63)","v":0},0,0,0,0,0,0,{"$f":"SUM(S62:S63)","v":0},0,0,0,0,0,0]
[null,null,null,null,null,null,"Provinces",{"$f":"SUMPRODUCT(((Dataset[Econ4]=$G62))*Dataset[2020/21])","v":0},{"$f":"SUMPRODUCT(((Dataset[Econ4]=$G62))*Dataset[2021/22])","v":0},{"$f":"SUMPRODUCT(((Dataset[Econ4]=$G62))*Dataset[2022/23 Preliminary outcome])","v":0},{"$f":"SUMPRODUCT(((Dataset[Econ4]=$G62))*Dataset[2023/24 Baseline])","v":0},{"$f":"SUMPRODUCT(((Dataset[Econ4]=$G62))*Dataset[2023/24 Reduction])","v":0},{"$f":"K62+L62","v":0},{"$f":"SUMPRODUCT(((Dataset[Econ4]=$G62))*Dataset[2024/25 Baseline])","v":0},{"$f":"SUMPRODUCT(((Dataset[Econ4]=$G62))*Dataset[2024/25 Total decrease])","v":0},{"$f":"SUMPRODUCT(((Dataset[Econ4]=$G62))*Dataset[2024/25 To - Total])","v":0},{"$f":"N62+O62+P62","v":0},{"$f":"SUMPRODUCT(((Dataset[Econ4]=$G62))*Dataset[2025/26 Baseline])","v":0},{"$f":"SUMPRODUCT(((Dataset[Econ4]=$G62))*Dataset[2025/26 Total decrease])","v":0},{"$f":"SUMPRODUCT(((Dataset[Econ4]=$G62))*Dataset[2025/26 To - Total])","v":0},{"$f":"R62+S62+T62","v":0},{"$f":"SUMPRODUCT(((Dataset[Econ4]=$G62))*Dataset[2026/27 Baseline])","v":0},{"$f":"SUMPRODUCT(((Dataset[Econ4]=$G62))*Dataset[2026/27 Total decrease])","v":0},{"$f":"SUMPRODUCT(((Dataset[Econ4]=$G62))*Dataset[2026/27 To - Total])","v":0},{"$f":"V62+W62+X62","v":0}]
[null,null,null,null,null,null,"Municipalities",{"$f":"SUMPRODUCT(((Dataset[Econ4]=$G63))*Dataset[2020/21])","v":0},{"$f":"SUMPRODUCT(((Dataset[Econ4]=$G63))*Dataset[2021/22])","v":0},{"$f":"SUMPRODUCT(((Dataset[Econ4]=$G63))*Dataset[2022/23 Preliminary outcome])","v":0},{"$f":"SUMPRODUCT(((Dataset[Econ4]=$G63))*Dataset[2023/24 Baseline])","v":0},{"$f":"SUMPRODUCT(((Dataset[Econ4]=$G63))*Dataset[2023/24 Reduction])","v":0},{"$f":"K63+L63","v":0},{"$f":"SUMPRODUCT(((Dataset[Econ4]=$G63))*Dataset[2024/25 Baseline])","v":0},{"$f":"SUMPRODUCT(((Dataset[Econ4]=$G63))*Dataset[2024/25 Total decrease])","v":0},{"$f":"SUMPRODUCT(((Dataset[Econ4]=$G63))*Dataset[2024/25 To - Total])","v":0},0,{"$f":"SUMPRODUCT(((Dataset[Econ4]=$G63))*Dataset[2025/26 Baseline])","v":0},{"$f":"SUMPRODUCT(((Dataset[Econ4]=$G63))*Dataset[2025/26 Total decrease])","v":0},{"$f":"SUMPRODUCT(((Dataset[Econ4]=$G63))*Dataset[2025/26 To - Total])","v":0},0,{"$f":"SUMPRODUCT(((Dataset[Econ4]=$G63))*Dataset[2026/27 Baseline])","v":0},{"$f":"SUMPRODUCT(((Dataset[Econ4]=$G63))*Dataset[2026/27 Total decrease])","v":0},{"$f":"SUMPRODUCT(((Dataset[Econ4]=$G63))*Dataset[2026/27 To - Total])","v":0},0]
[null,null,null,null,null,null,"Departmental agencies and accounts",{"$f":"SUM(H65:H66)","v":0},{"$f":"SUM(I65:I66)","v":0},0,0,{"$f":"SUM(L65:L66)","v":0},0,0,0,0,0,0,{"$f":"SUM(S65:S66)","v":0},0,0,0,0,0,0]
[null,null,null,null,null,null,"Social security funds",{"$f":"SUMPRODUCT(((Dataset[Econ4]=$G65))*Dataset[2020/21])","v":0},{"$f":"SUMPRODUCT(((Dataset[Econ4]=$G65))*Dataset[2021/22])","v":0},{"$f":"SUMPRODUCT(((Dataset[Econ4]=$G65))*Dataset[2022/23 Preliminary outcome])","v":0},{"$f":"SUMPRODUCT(((Dataset[Econ4]=$G65))*Dataset[2023/24 Baseline])","v":0},{"$f":"SUMPRODUCT(((Dataset[Econ4]=$G65))*Dataset[2023/24 Reduction])","v":0},{"$f":"K65+L65","v":0},{"$f":"SUMPRODUCT(((Dataset[Econ4]=$G65))*Dataset[2024/25 Baseline])","v":0},{"$f":"SUMPRODUCT(((Dataset[Econ4]=$G65))*Dataset[2024/25 Total decrease])","v":0},{"$f":"SUMPRODUCT(((Dataset[Econ4]=$G65))*Dataset[2024/25 To - Total])","v":0},{"$f":"N65+O65+P65","v":0},{"$f":"SUMPRODUCT(((Dataset[Econ4]=$G65))*Dataset[2025/26 Baseline])","v":0},{"$f":"SUMPRODUCT(((Dataset[Econ4]=$G65))*Dataset[2025/26 Total decrease])","v":0},{"$f":"SUMPRODUCT(((Dataset[Econ4]=$G65))*Dataset[2025/26 To - Total])","v":0},{"$f":"R65+S65+T65","v":0},{"$f":"SUMPRODUCT(((Dataset[Econ4]=$G65))*Dataset[2026/27 Baseline])","v":0},{"$f":"SUMPRODUCT(((Dataset[Econ4]=$G65))*Dataset[2026/27 Total decrease])","v":0},{"$f":"SUMPRODUCT(((Dataset[Econ4]=$G65))*Dataset[2026/27 To - Total])","v":0},{"$f":"V65+W65+X65","v":0}]
[null,null,null,null,null,null,"Departmental agencies (non-business entities)",{"$f":"SUMPRODUCT(((Dataset[Econ4]=$G66))*Dataset[2020/21])","v":0},{"$f":"SUMPRODUCT(((Dataset[Econ4]=$G66))*Dataset[2021/22])","v":0},{"$f":"SUMPRODUCT(((Dataset[Econ4]=$G66))*Dataset[2022/23 Preliminary outcome])","v":0},{"$f":"SUMPRODUCT(((Dataset[Econ4]=$G66))*Dataset[2023/24 Baseline])","v":0},{"$f":"SUMPRODUCT(((Dataset[Econ4]=$G66))*Dataset[2023/24 Reduction])","v":0},{"$f":"K66+L66","v":0},{"$f":"SUMPRODUCT(((Dataset[Econ4]=$G66))*Dataset[2024/25 Baseline])","v":0},{"$f":"SUMPRODUCT(((Dataset[Econ4]=$G66))*Dataset[2024/25 Total decrease])","v":0},{"$f":"SUMPRODUCT(((Dataset[Econ4]=$G66))*Dataset[2024/25 To - Total])","v":0},0,{"$f":"SUMPRODUCT(((Dataset[Econ4]=$G66))*Dataset[2025/26 Baseline])","v":0},{"$f":"SUMPRODUCT(((Dataset[Econ4]=$G66))*Dataset[2025/26 Total decrease])","v":0},{"$f":"SUMPRODUCT(((Dataset[Econ4]=$G66))*Dataset[2025/26 To - Total])","v":0},0,{"$f":"SUMPRODUCT(((Dataset[Econ4]=$G66))*Dataset[2026/27 Baseline])","v":0},{"$f":"SUMPRODUCT(((Dataset[Econ4]=$G66))*Dataset[2026/27 Total decrease])","v":0},{"$f":"SUMPRODUCT(((Dataset[Econ4]=$G66))*Dataset[2026/27 To - Total])","v":0},0]
[null,null,null,null,null,null,"Higher education institutions",{"$f":"SUMPRODUCT(((Dataset[Econ3]=$G67))*Dataset[2020/21])","v":0},{"$f":"SUMPRODUCT(((Dataset[Econ3]=$G67))*Dataset[2021/22])","v":0},{"$f":"SUMPRODUCT(((Dataset[Econ3]=$G67))*Dataset[2022/23 Preliminary outcome])","v":0},{"$f":"SUMPRODUCT(((Dataset[Econ3]=$G67))*Dataset[2023/24 Baseline])","v":0},{"$f":"SUMPRODUCT(((Dataset[Econ3]=$G67))*Dataset[2023/24 Reduction])","v":0},{"$f":"K67+L67","v":0},{"$f":"SUMPRODUCT(((Dataset[Econ3]=$G67))*Dataset[2024/25 Baseline])","v":0},{"$f":"SUMPRODUCT(((Dataset[Econ3]=$G67))*Dataset[2024/25 Total decrease])","v":0},{"$f":"SUMPRODUCT(((Dataset[Econ3]=$G67))*Dataset[2024/25 To - Total])","v":0},0,{"$f":"SUMPRODUCT(((Dataset[Econ3]=$G67))*Dataset[2025/26 Baseline])","v":0},{"$f":"SUMPRODUCT(((Dataset[Econ3]=$G67))*Dataset[2025/26 Total decrease])","v":0},{"$f":"SUMPRODUCT(((Dataset[Econ3]=$G67))*Dataset[2025/26 To - Total])","v":0},0,{"$f":"SUMPRODUCT(((Dataset[Econ3]=$G67))*Dataset[2026/27 Baseline])","v":0},{"$f":"SUMPRODUCT(((Dataset[Econ3]=$G67))*Dataset[2026/27 Total decrease])","v":0},{"$f":"SUMPRODUCT(((Dataset[Econ3]=$G67))*Dataset[2026/27 To - Total])","v":0},0]
[null,null,null,null,null,null,"Foreign governments and international organisations",{"$f":"SUMPRODUCT(((Dataset[Econ3]=$G68))*Dataset[2020/21])","v":70},{"$f":"SUMPRODUCT(((Dataset[Econ3]=$G68))*Dataset[2021/22])","v":31},{"$f":"SUMPRODUCT(((Dataset[Econ3]=$G68))*Dataset[2022/23 Preliminary outcome])","v":0},{"$f":"SUMPRODUCT(((Dataset[Econ3]=$G68))*Dataset[2023/24 Baseline])","v":600},{"$f":"SUMPRODUCT(((Dataset[Econ3]=$G68))*Dataset[2023/24 Reduction])","v":0},{"$f":"K68+L68","v":600},{"$f":"SUMPRODUCT(((Dataset[Econ3]=$G68))*Dataset[2024/25 Baseline])","v":600},{"$f":"SUMPRODUCT(((Dataset[Econ3]=$G68))*Dataset[2024/25 Total decrease])","v":0},{"$f":"SUMPRODUCT(((Dataset[Econ3]=$G68))*Dataset[2024/25 To - Total])","v":0},600,{"$f":"SUMPRODUCT(((Dataset[Econ3]=$G68))*Dataset[2025/26 Baseline])","v":627},{"$f":"SUMPRODUCT(((Dataset[Econ3]=$G68))*Dataset[2025/26 Total decrease])","v":0},{"$f":"SUMPRODUCT(((Dataset[Econ3]=$G68))*Dataset[2025/26 To - Total])","v":0},627,{"$f":"SUMPRODUCT(((Dataset[Econ3]=$G68))*Dataset[2026/27 Baseline])","v":656},{"$f":"SUMPRODUCT(((Dataset[Econ3]=$G68))*Dataset[2026/27 Total decrease])","v":0},{"$f":"SUMPRODUCT(((Dataset[Econ3]=$G68))*Dataset[2026/27 To - Total])","v":0},656]
[null,null,null,null,null,null,"Public corporations and private enterprises",{"$f":"SUM(H70:H71)","v":0},{"$f":"SUM(I70:I71)","v":0},0,0,{"$f":"SUM(L70:L71)","v":0},0,0,0,0,0,0,{"$f":"SUM(S70:S71)","v":0},0,0,0,0,0,0]
[null,null,null,null,null,null,"Public corporations",{"$f":"SUMPRODUCT(((Dataset[Econ4]=$G70))*Dataset[2020/21])","v":0},{"$f":"SUMPRODUCT(((Dataset[Econ4]=$G70))*Dataset[2021/22])","v":0},{"$f":"SUMPRODUCT(((Dataset[Econ4]=$G70))*Dataset[2022/23 Preliminary outcome])","v":0},{"$f":"SUMPRODUCT(((Dataset[Econ4]=$G70))*Dataset[2023/24 Baseline])","v":0},{"$f":"SUMPRODUCT(((Dataset[Econ4]=$G70))*Dataset[2023/24 Reduction])","v":0},{"$f":"K70+L70","v":0},{"$f":"SUMPRODUCT(((Dataset[Econ4]=$G70))*Dataset[2024/25 Baseline])","v":0},{"$f":"SUMPRODUCT(((Dataset[Econ4]=$G70))*Dataset[2024/25 Total decrease])","v":0},{"$f":"SUMPRODUCT(((Dataset[Econ4]=$G70))*Dataset[2024/25 To - Total])","v":0},{"$f":"N70+O70+P70","v":0},{"$f":"SUMPRODUCT(((Dataset[Econ4]=$G70))*Dataset[2025/26 Baseline])","v":0},{"$f":"SUMPRODUCT(((Dataset[Econ4]=$G70))*Dataset[2025/26 Total decrease])","v":0},{"$f":"SUMPRODUCT(((Dataset[Econ4]=$G70))*Dataset[2025/26 To - Total])","v":0},{"$f":"R70+S70+T70","v":0},{"$f":"SUMPRODUCT(((Dataset[Econ4]=$G70))*Dataset[2026/27 Baseline])","v":0},{"$f":"SUMPRODUCT(((Dataset[Econ4]=$G70))*Dataset[2026/27 Total decrease])","v":0},{"$f":"SUMPRODUCT(((Dataset[Econ4]=$G70))*Dataset[2026/27 To - Total])","v":0},{"$f":"V70+W70+X70","v":0}]
[null,null,null,null,null,null,"Private enterprises",{"$f":"SUMPRODUCT(((Dataset[Econ4]=$G71))*Dataset[2020/21])","v":0},{"$f":"SUMPRODUCT(((Dataset[Econ4]=$G71))*Dataset[2021/22])","v":0},{"$f":"SUMPRODUCT(((Dataset[Econ4]=$G71))*Dataset[2022/23 Preliminary outcome])","v":0},{"$f":"SUMPRODUCT(((Dataset[Econ4]=$G71))*Dataset[2023/24 Baseline])","v":0},{"$f":"SUMPRODUCT(((Dataset[Econ4]=$G71))*Dataset[2023/24 Reduction])","v":0},{"$f":"K71+L71","v":0},{"$f":"SUMPRODUCT(((Dataset[Econ4]=$G71))*Dataset[2024/25 Baseline])","v":0},{"$f":"SUMPRODUCT(((Dataset[Econ4]=$G71))*Dataset[2024/25 Total decrease])","v":0},{"$f":"SUMPRODUCT(((Dataset[Econ4]=$G71))*Dataset[2024/25 To - Total])","v":0},0,{"$f":"SUMPRODUCT(((Dataset[Econ4]=$G71))*Dataset[2025/26 Baseline])","v":0},{"$f":"SUMPRODUCT(((Dataset[Econ4]=$G71))*Dataset[2025/26 Total decrease])","v":0},{"$f":"SUMPRODUCT(((Dataset[Econ4]=$G71))*Dataset[2025/26 To - Total])","v":0},0,{"$f":"SUMPRODUCT(((Dataset[Econ4]=$G71))*Dataset[2026/27 Baseline])","v":0},{"$f":"SUMPRODUCT(((Dataset[Econ4]=$G71))*Dataset[2026/27 Total decrease])","v":0},{"$f":"SUMPRODUCT(((Dataset[Econ4]=$G71))*Dataset[2026/27 To - Total])","v":0},0]
[null,null,null,null,null,null,"Non-profit institutions",{"$f":"SUMPRODUCT(((Dataset[Econ3]=$G72))*Dataset[2020/21])","v":0},{"$f":"SUMPRODUCT(((Dataset[Econ3]=$G72))*Dataset[2021/22])","v":0},{"$f":"SUMPRODUCT(((Dataset[Econ3]=$G72))*Dataset[2022/23 Preliminary outcome])","v":0},{"$f":"SUMPRODUCT(((Dataset[Econ3]=$G72))*Dataset[2023/24 Baseline])","v":0},{"$f":"SUMPRODUCT(((Dataset[Econ3]=$G72))*Dataset[2023/24 Reduction])","v":0},{"$f":"K72+L72","v":0},{"$f":"SUMPRODUCT(((Dataset[Econ3]=$G72))*Dataset[2024/25 Baseline])","v":0},{"$f":"SUMPRODUCT(((Dataset[Econ3]=$G72))*Dataset[2024/25 Total decrease])","v":0},{"$f":"SUMPRODUCT(((Dataset[Econ3]=$G72))*Dataset[2024/25 To - Total])","v":0},0,{"$f":"SUMPRODUCT(((Dataset[Econ3]=$G72))*Dataset[2025/26 Baseline])","v":0},{"$f":"SUMPRODUCT(((Dataset[Econ3]=$G72))*Dataset[2025/26 Total decrease])","v":0},{"$f":"SUMPRODUCT(((Dataset[Econ3]=$G72))*Dataset[2025/26 To - Total])","v":0},0,{"$f":"SUMPRODUCT(((Dataset[Econ3]=$G72))*Dataset[2026/27 Baseline])","v":0},{"$f":"SUMPRODUCT(((Dataset[Econ3]=$G72))*Dataset[2026/27 Total decrease])","v":0},{"$f":"SUMPRODUCT(((Dataset[Econ3]=$G72))*Dataset[2026/27 To - Total])","v":0},0]
[null,null,null,null,null,null,"Households",{"$f":"SUM(H74:H75)","v":111269},{"$f":"SUM(I74:I75)","v":129024},0,442273,{"$f":"SUM(L74:L75)","v":0},442273,501571,0,0,501571,566057,{"$f":"SUM(S74:S75)","v":0},0,566057,591991,0,0,591991]
[null,null,null,null,null,null,"Social benefits",{"$f":"SUMPRODUCT(((Dataset[Econ4]=$G74))*Dataset[2020/21])","v":107348},{"$f":"SUMPRODUCT(((Dataset[Econ4]=$G74))*Dataset[2021/22])","v":21446},{"$f":"SUMPRODUCT(((Dataset[Econ4]=$G74))*Dataset[2022/23 Preliminary outcome])","v":0},{"$f":"SUMPRODUCT(((Dataset[Econ4]=$G74))*Dataset[2023/24 Baseline])","v":344150},{"$f":"SUMPRODUCT(((Dataset[Econ4]=$G74))*Dataset[2023/24 Reduction])","v":0},{"$f":"K74+L74","v":344150},{"$f":"SUMPRODUCT(((Dataset[Econ4]=$G74))*Dataset[2024/25 Baseline])","v":401816},{"$f":"SUMPRODUCT(((Dataset[Econ4]=$G74))*Dataset[2024/25 Total decrease])","v":0},{"$f":"SUMPRODUCT(((Dataset[Econ4]=$G74))*Dataset[2024/25 To - Total])","v":0},{"$f":"N74+O74+P74","v":401816},{"$f":"SUMPRODUCT(((Dataset[Econ4]=$G74))*Dataset[2025/26 Baseline])","v":462025},{"$f":"SUMPRODUCT(((Dataset[Econ4]=$G74))*Dataset[2025/26 Total decrease])","v":0},{"$f":"SUMPRODUCT(((Dataset[Econ4]=$G74))*Dataset[2025/26 To - Total])","v":0},{"$f":"R74+S74+T74","v":462025},{"$f":"SUMPRODUCT(((Dataset[Econ4]=$G74))*Dataset[2026/27 Baseline])","v":483193},{"$f":"SUMPRODUCT(((Dataset[Econ4]=$G74))*Dataset[2026/27 Total decrease])","v":0},{"$f":"SUMPRODUCT(((Dataset[Econ4]=$G74))*Dataset[2026/27 To - Total])","v":0},{"$f":"V74+W74+X74","v":483193}]
[null,null,null,null,null,null,"Other transfers to households",{"$f":"SUMPRODUCT(((Dataset[Econ4]=$G75))*Dataset[2020/21])","v":3921},{"$f":"SUMPRODUCT(((Dataset[Econ4]=$G75))*Dataset[2021/22])","v":107578},{"$f":"SUMPRODUCT(((Dataset[Econ4]=$G75))*Dataset[2022/23 Preliminary outcome])","v":0},{"$f":"SUMPRODUCT(((Dataset[Econ4]=$G75))*Dataset[2023/24 Baseline])","v":98123},{"$f":"SUMPRODUCT(((Dataset[Econ4]=$G75))*Dataset[2023/24 Reduction])","v":0},{"$f":"K75+L75","v":98123},{"$f":"SUMPRODUCT(((Dataset[Econ4]=$G75))*Dataset[2024/25 Baseline])","v":99755},{"$f":"SUMPRODUCT(((Dataset[Econ4]=$G75))*Dataset[2024/25 Total decrease])","v":0},{"$f":"SUMPRODUCT(((Dataset[Econ4]=$G75))*Dataset[2024/25 To - Total])","v":0},99755,{"$f":"SUMPRODUCT(((Dataset[Econ4]=$G75))*Dataset[2025/26 Baseline])","v":104032},{"$f":"SUMPRODUCT(((Dataset[Econ4]=$G75))*Dataset[2025/26 Total decrease])","v":0},{"$f":"SUMPRODUCT(((Dataset[Econ4]=$G75))*Dataset[2025/26 To - Total])","v":0},104032,{"$f":"SUMPRODUCT(((Dataset[Econ4]=$G75))*Dataset[2026/27 Baseline])","v":108798},{"$f":"SUMPRODUCT(((Dataset[Econ4]=$G75))*Dataset[2026/27 Total decrease])","v":0},{"$f":"SUMPRODUCT(((Dataset[Econ4]=$G75))*Dataset[2026/27 To - Total])","v":0},108798]
[null,null,null,null,null,null,"Payments for capital assets",{"$f":"SUM(H77,H80,H83:H87)","v":1363},{"$f":"SUM(I77,I80,I83:I87)","v":28335},0,25604,{"$f":"SUM(L77,L80,L83:L87)","v":0},25604,25264,0,0,25264,26053,{"$f":"SUM(S77,S80,S83:S87)","v":0},0,26053,27248,0,0,27248]
[null,null,null,null,null,null,"Buildings and other fixed structures",{"$f":"SUM(H78:H79)","v":0},{"$f":"SUM(I78:I79)","v":0},0,0,{"$f":"SUM(L78:L79)","v":0},0,0,0,0,0,0,{"$f":"SUM(S78:S79)","v":0},0,0,0,0,0,0]
[null,null,null,null,null,null,"Buildings",{"$f":"SUMPRODUCT(((Dataset[Econ4]=$G78))*Dataset[2020/21])","v":0},{"$f":"SUMPRODUCT(((Dataset[Econ4]=$G78))*Dataset[2021/22])","v":0},{"$f":"SUMPRODUCT(((Dataset[Econ4]=$G78))*Dataset[2022/23 Preliminary outcome])","v":0},{"$f":"SUMPRODUCT(((Dataset[Econ4]=$G78))*Dataset[2023/24 Baseline])","v":0},{"$f":"SUMPRODUCT(((Dataset[Econ4]=$G78))*Dataset[2023/24 Reduction])","v":0},{"$f":"K78+L78","v":0},{"$f":"SUMPRODUCT(((Dataset[Econ4]=$G78))*Dataset[2024/25 Baseline])","v":0},{"$f":"SUMPRODUCT(((Dataset[Econ4]=$G78))*Dataset[2024/25 Total decrease])","v":0},{"$f":"SUMPRODUCT(((Dataset[Econ4]=$G78))*Dataset[2024/25 To - Total])","v":0},{"$f":"N78+O78+P78","v":0},{"$f":"SUMPRODUCT(((Dataset[Econ4]=$G78))*Dataset[2025/26 Baseline])","v":0},{"$f":"SUMPRODUCT(((Dataset[Econ4]=$G78))*Dataset[2025/26 Total decrease])","v":0},{"$f":"SUMPRODUCT(((Dataset[Econ4]=$G78))*Dataset[2025/26 To - Total])","v":0},{"$f":"R78+S78+T78","v":0},{"$f":"SUMPRODUCT(((Dataset[Econ4]=$G78))*Dataset[2026/27 Baseline])","v":0},{"$f":"SUMPRODUCT(((Dataset[Econ4]=$G78))*Dataset[2026/27 Total decrease])","v":0},{"$f":"SUMPRODUCT(((Dataset[Econ4]=$G78))*Dataset[2026/27 To - Total])","v":0},{"$f":"V78+W78+X78","v":0}]
[null,null,null,null,null,null,"Other fixed structures",{"$f":"SUMPRODUCT(((Dataset[Econ4]=$G79))*Dataset[2020/21])","v":0},{"$f":"SUMPRODUCT(((Dataset[Econ4]=$G79))*Dataset[2021/22])","v":0},{"$f":"SUMPRODUCT(((Dataset[Econ4]=$G79))*Dataset[2022/23 Preliminary outcome])","v":0},{"$f":"SUMPRODUCT(((Dataset[Econ4]=$G79))*Dataset[2023/24 Baseline])","v":0},{"$f":"SUMPRODUCT(((Dataset[Econ4]=$G79))*Dataset[2023/24 Reduction])","v":0},{"$f":"K79+L79","v":0},{"$f":"SUMPRODUCT(((Dataset[Econ4]=$G79))*Dataset[2024/25 Baseline])","v":0},{"$f":"SUMPRODUCT(((Dataset[Econ4]=$G79))*Dataset[2024/25 Total decrease])","v":0},{"$f":"SUMPRODUCT(((Dataset[Econ4]=$G79))*Dataset[2024/25 To - Total])","v":0},0,{"$f":"SUMPRODUCT(((Dataset[Econ4]=$G79))*Dataset[2025/26 Baseline])","v":0},{"$f":"SUMPRODUCT(((Dataset[Econ4]=$G79))*Dataset[2025/26 Total decrease])","v":0},{"$f":"SUMPRODUCT(((Dataset[Econ4]=$G79))*Dataset[2025/26 To - Total])","v":0},0,{"$f":"SUMPRODUCT(((Dataset[Econ4]=$G79))*Dataset[2026/27 Baseline])","v":0},{"$f":"SUMPRODUCT(((Dataset[Econ4]=$G79))*Dataset[2026/27 Total decrease])","v":0},{"$f":"SUMPRODUCT(((Dataset[Econ4]=$G79))*Dataset[2026/27 To - Total])","v":0},0]
[null,null,null,null,null,null,"Machinery and equipment",{"$f":"SUM(H81:H82)","v":1363},{"$f":"SUM(I81:I82)","v":28335},0,12144,{"$f":"SUM(L81:L82)","v":0},12144,10589,0,0,10589,10566,{"$f":"SUM(S81:S82)","v":0},0,10566,11051,0,0,11051]
[null,null,null,null,null,null,"Transport equipment",{"$f":"SUMPRODUCT(((Dataset[Econ4]=$G81))*Dataset[2020/21])","v":0},{"$f":"SUMPRODUCT(((Dataset[Econ4]=$G81))*Dataset[2021/22])","v":0},{"$f":"SUMPRODUCT(((Dataset[Econ4]=$G81))*Dataset[2022/23 Preliminary outcome])","v":0},{"$f":"SUMPRODUCT(((Dataset[Econ4]=$G81))*Dataset[2023/24 Baseline])","v":0},{"$f":"SUMPRODUCT(((Dataset[Econ4]=$G81))*Dataset[2023/24 Reduction])","v":0},{"$f":"K81+L81","v":0},{"$f":"SUMPRODUCT(((Dataset[Econ4]=$G81))*Dataset[2024/25 Baseline])","v":0},{"$f":"SUMPRODUCT(((Dataset[Econ4]=$G81))*Dataset[2024/25 Total decrease])","v":0},{"$f":"SUMPRODUCT(((Dataset[Econ4]=$G81))*Dataset[2024/25 To - Total])","v":0},{"$f":"N81+O81+P81","v":0},{"$f":"SUMPRODUCT(((Dataset[Econ4]=$G81))*Dataset[2025/26 Baseline])","v":0},{"$f":"SUMPRODUCT(((Dataset[Econ4]=$G81))*Dataset[2025/26 Total decrease])","v":0},{"$f":"SUMPRODUCT(((Dataset[Econ4]=$G81))*Dataset[2025/26 To - Total])","v":0},{"$f":"R81+S81+T81","v":0},{"$f":"SUMPRODUCT(((Dataset[Econ4]=$G81))*Dataset[2026/27 Baseline])","v":0},{"$f":"SUMPRODUCT(((Dataset[Econ4]=$G81))*Dataset[2026/27 Total decrease])","v":0},{"$f":"SUMPRODUCT(((Dataset[Econ4]=$G81))*Dataset[2026/27 To - Total])","v":0},{"$f":"V81+W81+X81","v":0}]
[null,null,null,null,null,null,"Other machinery and equipment",{"$f":"SUMPRODUCT(((Dataset[Econ4]=$G82))*Dataset[2020/21])","v":1363},{"$f":"SUMPRODUCT(((Dataset[Econ4]=$G82))*Dataset[2021/22])","v":28335},{"$f":"SUMPRODUCT(((Dataset[Econ4]=$G82))*Dataset[2022/23 Preliminary outcome])","v":0},{"$f":"SUMPRODUCT(((Dataset[Econ4]=$G82))*Dataset[2023/24 Baseline])","v":12144},{"$f":"SUMPRODUCT(((Dataset[Econ4]=$G82))*Dataset[2023/24 Reduction])","v":0},12144,{"$f":"SUMPRODUCT(((Dataset[Econ4]=$G82))*Dataset[2024/25 Baseline])","v":10589},{"$f":"SUMPRODUCT(((Dataset[Econ4]=$G82))*Dataset[2024/25 Total decrease])","v":0},{"$f":"SUMPRODUCT(((Dataset[Econ4]=$G82))*Dataset[2024/25 To - Total])","v":0},10589,{"$f":"SUMPRODUCT(((Dataset[Econ4]=$G82))*Dataset[2025/26 Baseline])","v":10566},{"$f":"SUMPRODUCT(((Dataset[Econ4]=$G82))*Dataset[2025/26 Total decrease])","v":0},{"$f":"SUMPRODUCT(((Dataset[Econ4]=$G82))*Dataset[2025/26 To - Total])","v":0},10566,{"$f":"SUMPRODUCT(((Dataset[Econ4]=$G82))*Dataset[2026/27 Baseline])","v":11051},{"$f":"SUMPRODUCT(((Dataset[Econ4]=$G82))*Dataset[2026/27 Total decrease])","v":0},{"$f":"SUMPRODUCT(((Dataset[Econ4]=$G82))*Dataset[2026/27 To - Total])","v":0},11051]
[null,null,null,null,null,null,"Heritage assets",{"$f":"SUMPRODUCT(((Dataset[Econ3]=$G83))*Dataset[2020/21])","v":0},{"$f":"SUMPRODUCT(((Dataset[Econ3]=$G83))*Dataset[2021/22])","v":0},{"$f":"SUMPRODUCT(((Dataset[Econ3]=$G83))*Dataset[2022/23 Preliminary outcome])","v":0},{"$f":"SUMPRODUCT(((Dataset[Econ3]=$G83))*Dataset[2023/24 Baseline])","v":10560},{"$f":"SUMPRODUCT(((Dataset[Econ3]=$G83))*Dataset[2023/24 Reduction])","v":0},10560,{"$f":"SUMPRODUCT(((Dataset[Econ3]=$G83))*Dataset[2024/25 Baseline])","v":10775},{"$f":"SUMPRODUCT(((Dataset[Econ3]=$G83))*Dataset[2024/25 Total decrease])","v":0},{"$f":"SUMPRODUCT(((Dataset[Econ3]=$G83))*Dataset[2024/25 To - Total])","v":0},10775,{"$f":"SUMPRODUCT(((Dataset[Econ3]=$G83))*Dataset[2025/26 Baseline])","v":11547},{"$f":"SUMPRODUCT(((Dataset[Econ3]=$G83))*Dataset[2025/26 Total decrease])","v":0},{"$f":"SUMPRODUCT(((Dataset[Econ3]=$G83))*Dataset[2025/26 To - Total])","v":0},11547,{"$f":"SUMPRODUCT(((Dataset[Econ3]=$G83))*Dataset[2026/27 Baseline])","v":12076},{"$f":"SUMPRODUCT(((Dataset[Econ3]=$G83))*Dataset[2026/27 Total decrease])","v":0},{"$f":"SUMPRODUCT(((Dataset[Econ3]=$G83))*Dataset[2026/27 To - Total])","v":0},12076]
[null,null,null,null,null,null,"Specialised military assets",{"$f":"SUMPRODUCT(((Dataset[Econ3]=$G84))*Dataset[2020/21])","v":0},{"$f":"SUMPRODUCT(((Dataset[Econ3]=$G84))*Dataset[2021/22])","v":0},{"$f":"SUMPRODUCT(((Dataset[Econ3]=$G84))*Dataset[2022/23 Preliminary outcome])","v":0},{"$f":"SUMPRODUCT(((Dataset[Econ3]=$G84))*Dataset[2023/24 Baseline])","v":0},{"$f":"SUMPRODUCT(((Dataset[Econ3]=$G84))*Dataset[2023/24 Reduction])","v":0},0,{"$f":"SUMPRODUCT(((Dataset[Econ3]=$G84))*Dataset[2024/25 Baseline])","v":0},{"$f":"SUMPRODUCT(((Dataset[Econ3]=$G84))*Dataset[2024/25 Total decrease])","v":0},{"$f":"SUMPRODUCT(((Dataset[Econ3]=$G84))*Dataset[2024/25 To - Total])","v":0},0,{"$f":"SUMPRODUCT(((Dataset[Econ3]=$G84))*Dataset[2025/26 Baseline])","v":0},{"$f":"SUMPRODUCT(((Dataset[Econ3]=$G84))*Dataset[2025/26 Total decrease])","v":0},{"$f":"SUMPRODUCT(((Dataset[Econ3]=$G84))*Dataset[2025/26 To - Total])","v":0},0,{"$f":"SUMPRODUCT(((Dataset[Econ3]=$G84))*Dataset[2026/27 Baseline])","v":0},{"$f":"SUMPRODUCT(((Dataset[Econ3]=$G84))*Dataset[2026/27 Total decrease])","v":0},{"$f":"SUMPRODUCT(((Dataset[Econ3]=$G84))*Dataset[2026/27 To - Total])","v":0},0]
[null,null,null,null,null,null,"Biological assets",{"$f":"SUMPRODUCT(((Dataset[Econ3]=$G85))*Dataset[2020/21])","v":0},{"$f":"SUMPRODUCT(((Dataset[Econ3]=$G85))*Dataset[2021/22])","v":0},{"$f":"SUMPRODUCT(((Dataset[Econ3]=$G85))*Dataset[2022/23 Preliminary outcome])","v":0},{"$f":"SUMPRODUCT(((Dataset[Econ3]=$G85))*Dataset[2023/24 Baseline])","v":0},{"$f":"SUMPRODUCT(((Dataset[Econ3]=$G85))*Dataset[2023/24 Reduction])","v":0},0,{"$f":"SUMPRODUCT(((Dataset[Econ3]=$G85))*Dataset[2024/25 Baseline])","v":0},{"$f":"SUMPRODUCT(((Dataset[Econ3]=$G85))*Dataset[2024/25 Total decrease])","v":0},{"$f":"SUMPRODUCT(((Dataset[Econ3]=$G85))*Dataset[2024/25 To - Total])","v":0},0,{"$f":"SUMPRODUCT(((Dataset[Econ3]=$G85))*Dataset[2025/26 Baseline])","v":0},{"$f":"SUMPRODUCT(((Dataset[Econ3]=$G85))*Dataset[2025/26 Total decrease])","v":0},{"$f":"SUMPRODUCT(((Dataset[Econ3]=$G85))*Dataset[2025/26 To - Total])","v":0},0,{"$f":"SUMPRODUCT(((Dataset[Econ3]=$G85))*Dataset[2026/27 Baseline])","v":0},{"$f":"SUMPRODUCT(((Dataset[Econ3]=$G85))*Dataset[2026/27 Total decrease])","v":0},{"$f":"SUMPRODUCT(((Dataset[Econ3]=$G85))*Dataset[2026/27 To - Total])","v":0},0]
[null,null,null,null,null,null,"Land and sub-soil assets",{"$f":"SUMPRODUCT(((Dataset[Econ3]=$G86))*Dataset[2020/21])","v":0},{"$f":"SUMPRODUCT(((Dataset[Econ3]=$G86))*Dataset[2021/22])","v":0},{"$f":"SUMPRODUCT(((Dataset[Econ3]=$G86))*Dataset[2022/23 Preliminary outcome])","v":0},{"$f":"SUMPRODUCT(((Dataset[Econ3]=$G86))*Dataset[2023/24 Baseline])","v":0},{"$f":"SUMPRODUCT(((Dataset[Econ3]=$G86))*Dataset[2023/24 Reduction])","v":0},0,{"$f":"SUMPRODUCT(((Dataset[Econ3]=$G86))*Dataset[2024/25 Baseline])","v":0},{"$f":"SUMPRODUCT(((Dataset[Econ3]=$G86))*Dataset[2024/25 Total decrease])","v":0},{"$f":"SUMPRODUCT(((Dataset[Econ3]=$G86))*Dataset[2024/25 To - Total])","v":0},0,{"$f":"SUMPRODUCT(((Dataset[Econ3]=$G86))*Dataset[2025/26 Baseline])","v":0},{"$f":"SUMPRODUCT(((Dataset[Econ3]=$G86))*Dataset[2025/26 Total decrease])","v":0},{"$f":"SUMPRODUCT(((Dataset[Econ3]=$G86))*Dataset[2025/26 To - Total])","v":0},0,{"$f":"SUMPRODUCT(((Dataset[Econ3]=$G86))*Dataset[2026/27 Baseline])","v":0},{"$f":"SUMPRODUCT(((Dataset[Econ3]=$G86))*Dataset[2026/27 Total decrease])","v":0},{"$f":"SUMPRODUCT(((Dataset[Econ3]=$G86))*Dataset[2026/27 To - Total])","v":0},0]
[null,null,null,null,null,null,"Software and other intangible assets",{"$f":"SUMPRODUCT(((Dataset[Econ3]=$G87))*Dataset[2020/21])","v":0},{"$f":"SUMPRODUCT(((Dataset[Econ3]=$G87))*Dataset[2021/22])","v":0},{"$f":"SUMPRODUCT(((Dataset[Econ3]=$G87))*Dataset[2022/23 Preliminary outcome])","v":0},{"$f":"SUMPRODUCT(((Dataset[Econ3]=$G87))*Dataset[2023/24 Baseline])","v":2900},{"$f":"SUMPRODUCT(((Dataset[Econ3]=$G87))*Dataset[2023/24 Reduction])","v":0},2900,{"$f":"SUMPRODUCT(((Dataset[Econ3]=$G87))*Dataset[2024/25 Baseline])","v":3900},{"$f":"SUMPRODUCT(((Dataset[Econ3]=$G87))*Dataset[2024/25 Total decrease])","v":0},{"$f":"SUMPRODUCT(((Dataset[Econ3]=$G87))*Dataset[2024/25 To - Total])","v":0},3900,{"$f":"SUMPRODUCT(((Dataset[Econ3]=$G87))*Dataset[2025/26 Baseline])","v":3940},{"$f":"SUMPRODUCT(((Dataset[Econ3]=$G87))*Dataset[2025/26 Total decrease])","v":0},{"$f":"SUMPRODUCT(((Dataset[Econ3]=$G87))*Dataset[2025/26 To - Total])","v":0},3940,{"$f":"SUMPRODUCT(((Dataset[Econ3]=$G87))*Dataset[2026/27 Baseline])","v":4121},{"$f":"SUMPRODUCT(((Dataset[Econ3]=$G87))*Dataset[2026/27 Total decrease])","v":0},{"$f":"SUMPRODUCT(((Dataset[Econ3]=$G87))*Dataset[2026/27 To - Total])","v":0},4121]
[null,null,null,null,null,null,"Payments for financial assets",{"$f":"SUMPRODUCT(((Dataset[Econ3]=$G88))*Dataset[2020/21])","v":4444},{"$f":"SUMPRODUCT(((Dataset[Econ3]=$G88))*Dataset[2021/22])","v":17},{"$f":"SUMPRODUCT(((Dataset[Econ3]=$G88))*Dataset[2022/23 Preliminary outcome])","v":0},{"$f":"SUMPRODUCT(((Dataset[Econ3]=$G88))*Dataset[2023/24 Baseline])","v":0},{"$f":"SUMPRODUCT(((Dataset[Econ3]=$G88))*Dataset[2023/24 Reduction])","v":0},0,{"$f":"SUMPRODUCT(((Dataset[Econ3]=$G88))*Dataset[2024/25 Baseline])","v":0},{"$f":"SUMPRODUCT(((Dataset[Econ3]=$G88))*Dataset[2024/25 Total decrease])","v":0},{"$f":"SUMPRODUCT(((Dataset[Econ3]=$G88))*Dataset[2024/25 To - Total])","v":0},0,{"$f":"SUMPRODUCT(((Dataset[Econ3]=$G88))*Dataset[2025/26 Baseline])","v":0},{"$f":"SUMPRODUCT(((Dataset[Econ3]=$G88))*Dataset[2025/26 Total decrease])","v":0},{"$f":"SUMPRODUCT(((Dataset[Econ3]=$G88))*Dataset[2025/26 To - Total])","v":0},0,{"$f":"SUMPRODUCT(((Dataset[Econ3]=$G88))*Dataset[2026/27 Baseline])","v":0},{"$f":"SUMPRODUCT(((Dataset[Econ3]=$G88))*Dataset[2026/27 Total decrease])","v":0},{"$f":"SUMPRODUCT(((Dataset[Econ3]=$G88))*Dataset[2026/27 To - Total])","v":0},0]
[null,null,null,null,null,null,"Total",{"$f":"SUM(H56,H60,H76,H88)","v":429263},{"$f":"SUM(I56,I60,I76,I88)","v":515595},0,894704,{"$f":"SUM(L56,L60,L76,L88)","v":0},894704,974630,0,0,974630,1060016,{"$f":"SUM(S56,S60,S76,S88)","v":0},0,1060016,1108574,0,0,1108574]
[]
[]
[]
[]
[]
[]
[null,null,null,null,null,null,"I, ……………………………………………………..………………………………………., certify that the information in this template is complete, true and accurate, and has been compiled in line with the requirements in the 2024 MTEF Technical Guidelines."]
[]
[]
[]
[]
[null,null,null,null,null,null,"……………….………………………….."]
[null,null,null,null,null,null,{"$f":"\"Chief Financial Officer\"","v":"Chief Financial Officer"}]
[]
[null,null,null,null,null,null,"…………......./……........….../……...….....…..."]

{"sheet":"SRT1","index":11,"n_rows":210,"n_cols":25,"rows_kept":210,"cut":false,"hidden":false,"merged":[[119,24,119,26],[120,24,120,26],[121,24,121,26],[105,24,105,26],[106,24,106,26],[107,24,107,26],[108,24,108,26],[109,24,109,26],[110,24,110,26],[111,24,111,26],[112,24,112,26],[113,24,113,26],[114,24,114,26],[115,24,115,26],[116,24,116,26],[117,24,117,26],[118,24,118,26],[205,19,205,23],[206,19,206,23],[207,19,207,23],[208,19,208,23],[199,19,199,23],[200,19,200,23],[201,19,201,23],[202,19,202,23],[203,19,203,23],[173,19,173,23],[174,19,174,23],[175,19,175,23],[176,19,176,23],[195,19,195,23],[178,19,178,23],[84,6,98,18],[194,19,194,23],[128,19,128,23],[129,19,129,23],[204,19,204,23],[159,19,159,23],[160,19,160,23],[196,19,196,23],[107,19,107,23],[108,19,108,23],[109,19,109,23],[197,19,197,23],[198,19,198,23],[120,19,120,23],[121,19,121,23],[105,19,105,23],[114,19,114,23],[106,19,106,23],[157,19,157,23],[158,19,158,23],[115,19,115,23],[116,19,116,23],[117,19,117,23],[118,19,118,23],[119,19,119,23],[110,19,110,23],[111,19,111,23],[112,19,112,23],[113,19,113,23],[130,19,149,23],[72,6,72,18],[161,19,161,23],[177,19,177,23],[188,19,188,23],[189,19,189,23],[162,19,162,23],[163,19,163,23],[164,19,164,23],[165,19,165,23],[166,19,166,23],[167,19,167,23],[168,19,168,23],[169,19,169,23],[170,19,170,23],[171,19,171,23],[172,19,172,23],[179,19,179,23],[180,19,180,23],[181,19,181,23],[182,19,182,23],[183,19,183,23],[191,19,191,23],[192,19,192,23],[193,19,193,23],[184,19,184,23],[185,19,185,23],[186,19,186,23],[187,19,187,23],[190,19,190,23]]}
[]
[null,null,null,null,null,null,"Spending review topic…"]
[null,{"$f":"IF(G3=\"\",0,1)","v":1},null,null,null,1,{"$f":"SRTopic1","v":"Spending review topic 1"}]
[]
[null,null,null,null,null,null,"Quick view…(Total change)",{"$f":"MyYear5","v":"2024/25"},{"$f":"MyYear6","v":"2025/26"},{"$f":"MyYear7","v":"2026/27"},"MTEF total","Trend"]
[null,null,null,null,null,null,"Compensation of employees",{"$f":"SUMPRODUCT(($G$35:$G$68=$G6)*($J$35:$J$68))","v":0},{"$f":"SUMPRODUCT(($G$35:$G$68=$G6)*($M$35:$M$68))","v":0},{"$f":"SUMPRODUCT(($G$35:$G$68=$G6)*($P$35:$P$68))","v":0},{"$f":"SUM(H6:J6)","v":0},null,null,"CoE"]
[null,null,null,null,null,null,"Goods and services",{"$f":"SUMPRODUCT(($G$35:$G$68=$G7)*($J$35:$J$68))","v":0},{"$f":"SUMPRODUCT(($G$35:$G$68=$G7)*($M$35:$M$68))","v":0},{"$f":"SUMPRODUCT(($G$35:$G$68=$G7)*($P$35:$P$68))","v":0},0,null,null,"G&S"]
[null,null,null,null,null,null,"Transfers and subsidies",{"$f":"SUMPRODUCT(($G$35:$G$68=$G8)*($J$35:$J$68))","v":0},{"$f":"SUMPRODUCT(($G$35:$G$68=$G8)*($M$35:$M$68))","v":0},{"$f":"SUMPRODUCT(($G$35:$G$68=$G8)*($P$35:$P$68))","v":0},0,null,null,"T&S"]
[null,null,null,null,null,null,"Payments for capital assets",{"$f":"SUMPRODUCT(($G$35:$G$68=$G9)*($J$35:$J$68))","v":0},{"$f":"SUMPRODUCT(($G$35:$G$68=$G9)*($M$35:$M$68))","v":0},{"$f":"SUMPRODUCT(($G$35:$G$68=$G9)*($P$35:$P$68))","v":0},0,null,null,"Capital"]
[null,null,null,null,null,null,"Total",{"$f":"SUMPRODUCT(($G$35:$G$68=$G10)*($J$35:$J$68))","v":0},{"$f":"SUMPRODUCT(($G$35:$G$68=$G10)*($M$35:$M$68))","v":0},{"$f":"SUMPRODUCT(($G$35:$G$68=$G10)*($P$35:$P$68))","v":0},0,null,null,"Total"]
[null,null,null,null,null,null,"% of MTEF total",null,null,null,null,null,null,null,null,null,null,null,{"$f":"MyYear5","v":"2024/25"},{"$f":"MyYear6","v":"2025/26"},{"$f":"MyYear7","v":"2026/27"}]
[null,null,null,null,null,null,"Compensation of employees",{"$f":"IFERROR(H6/$K6,\"\")","v":""},"","",null,null,null,null,null,null,null,{"$f":"G12","v":"Compensation of employees"},{"$f":"IF(H12>0.0595,H12,\"\")","v":""},"",""]
[null,null,null,null,null,null,"Goods and services","","","",null,null,null,null,null,null,null,{"$f":"G13","v":"Goods and services"},"","",""]
[null,null,null,null,null,null,"Transfers and subsidies","","","",null,null,null,null,null,null,null,{"$f":"G14","v":"Transfers and subsidies"},"","",""]
[null,null,null,null,null,null,"Payments for capital assets","","","",null,null,null,null,null,null,null,{"$f":"G15","v":"Payments for capital assets"},"","",""]
[]
[null,null,null,null,null,null,"Division of Revenue",{"$f":"MyYear5","v":"2024/25"},{"$f":"MyYear6","v":"2025/26"},{"$f":"MyYear7","v":"2026/27"},"MTEF total","Trend"]
[null,null,null,null,null,null,"National",{"$f":"SUM(H19:H21)","v":0},0,0,{"$f":"SUM(H18:J18)","v":0}]
[{"$f":"$G$3","v":"Spending review topic 1"},"NAT",null,null,null,null,"National (excl. indirect grants)",{"$f":"SUMPRODUCT(((Dataset[DOR]=$B19))*Dataset[2024/25 From - Spending review Topic 1])+SUMPRODUCT(((Dataset[DOR]=$B19))*Dataset[2024/25 To - Spending review Topic 1])","v":0},{"$f":"SUMPRODUCT(((Dataset[DOR]=$B19))*Dataset[2025/26 From - Spending review Topic 1])+SUMPRODUCT(((Dataset[DOR]=$B19))*Dataset[2025/26 To - Spending review Topic 1])","v":0},{"$f":"SUMPRODUCT(((Dataset[DOR]=$B19))*Dataset[2026/27 From - Spending review Topic 1])+SUMPRODUCT(((Dataset[DOR]=$B19))*Dataset[2026/27 To - Spending review Topic 1])","v":0},0]
["Spending review topic 1","IGP",null,null,null,null,"Provincial indirect grants",{"$f":"SUMPRODUCT(((Dataset[DOR]=$B20))*Dataset[2024/25 From - Spending review Topic 1])+SUMPRODUCT(((Dataset[DOR]=$B20))*Dataset[2024/25 To - Spending review Topic 1])","v":0},{"$f":"SUMPRODUCT(((Dataset[DOR]=$B20))*Dataset[2025/26 From - Spending review Topic 1])+SUMPRODUCT(((Dataset[DOR]=$B20))*Dataset[2025/26 To - Spending review Topic 1])","v":0},{"$f":"SUMPRODUCT(((Dataset[DOR]=$B20))*Dataset[2026/27 From - Spending review Topic 1])+SUMPRODUCT(((Dataset[DOR]=$B20))*Dataset[2026/27 To - Spending review Topic 1])","v":0},{"$f":"SUM(H20:J20)","v":0}]
["Spending review topic 1","IGM",null,null,null,null,"Local indirect grants",{"$f":"SUMPRODUCT(((Dataset[DOR]=$B21))*Dataset[2024/25 From - Spending review Topic 1])+SUMPRODUCT(((Dataset[DOR]=$B21))*Dataset[2024/25 To - Spending review Topic 1])","v":0},{"$f":"SUMPRODUCT(((Dataset[DOR]=$B21))*Dataset[2025/26 From - Spending review Topic 1])+SUMPRODUCT(((Dataset[DOR]=$B21))*Dataset[2025/26 To - Spending review Topic 1])","v":0},{"$f":"SUMPRODUCT(((Dataset[DOR]=$B21))*Dataset[2026/27 From - Spending review Topic 1])+SUMPRODUCT(((Dataset[DOR]=$B21))*Dataset[2026/27 To - Spending review Topic 1])","v":0},0]
["Spending review topic 1",null,null,null,null,null,"Provincial",{"$f":"SUMPRODUCT(((Dataset[DOR]=$B22))*Dataset[2024/25 From - Spending review Topic 1])+SUMPRODUCT(((Dataset[DOR]=$B22))*Dataset[2024/25 To - Spending review Topic 1])","v":0},{"$f":"SUMPRODUCT(((Dataset[DOR]=$B22))*Dataset[2025/26 From - Spending review Topic 1])+SUMPRODUCT(((Dataset[DOR]=$B22))*Dataset[2025/26 To - Spending review Topic 1])","v":0},{"$f":"SUMPRODUCT(((Dataset[DOR]=$B22))*Dataset[2026/27 From - Spending review Topic 1])+SUMPRODUCT(((Dataset[DOR]=$B22))*Dataset[2026/27 To - Spending review Topic 1])","v":0},0]
["Spending review topic 1","PES",null,null,null,null,"Provincial equitable share",{"$f":"SUMPRODUCT(((Dataset[DOR]=$B23))*Dataset[2024/25 From - Spending review Topic 1])+SUMPRODUCT(((Dataset[DOR]=$B23))*Dataset[2024/25 To - Spending review Topic 1])","v":0},{"$f":"SUMPRODUCT(((Dataset[DOR]=$B23))*Dataset[2025/26 From - Spending review Topic 1])+SUMPRODUCT(((Dataset[DOR]=$B23))*Dataset[2025/26 To - Spending review Topic 1])","v":0},{"$f":"SUMPRODUCT(((Dataset[DOR]=$B23))*Dataset[2026/27 From - Spending review Topic 1])+SUMPRODUCT(((Dataset[DOR]=$B23))*Dataset[2026/27 To - Spending review Topic 1])","v":0},0]
[{"$f":"$G$3","v":"Spending review topic 1"},"PCG",null,null,null,null,"Provincial conditional grants",{"$f":"SUMPRODUCT(((Dataset[DOR]=$B24))*Dataset[2024/25 From - Spending review Topic 1])+SUMPRODUCT(((Dataset[DOR]=$B24))*Dataset[2024/25 To - Spending review Topic 1])","v":0},{"$f":"SUMPRODUCT(((Dataset[DOR]=$B24))*Dataset[2025/26 From - Spending review Topic 1])+SUMPRODUCT(((Dataset[DOR]=$B24))*Dataset[2025/26 To - Spending review Topic 1])","v":0},{"$f":"SUMPRODUCT(((Dataset[DOR]=$B24))*Dataset[2026/27 From - Spending review Topic 1])+SUMPRODUCT(((Dataset[DOR]=$B24))*Dataset[2026/27 To - Spending review Topic 1])","v":0},0]
["Spending review topic 1",null,null,null,null,null,"Local government",{"$f":"SUMPRODUCT(((Dataset[DOR]=$B25))*Dataset[2024/25 From - Spending review Topic 1])+SUMPRODUCT(((Dataset[DOR]=$B25))*Dataset[2024/25 To - Spending review Topic 1])","v":0},{"$f":"SUMPRODUCT(((Dataset[DOR]=$B25))*Dataset[2025/26 From - Spending review Topic 1])+SUMPRODUCT(((Dataset[DOR]=$B25))*Dataset[2025/26 To - Spending review Topic 1])","v":0},{"$f":"SUMPRODUCT(((Dataset[DOR]=$B25))*Dataset[2026/27 From - Spending review Topic 1])+SUMPRODUCT(((Dataset[DOR]=$B25))*Dataset[2026/27 To - Spending review Topic 1])","v":0},0]
["Spending review topic 1","LES",null,null,null,null,"Local equitable share",{"$f":"SUMPRODUCT(((Dataset[DOR]=$B26))*Dataset[2024/25 From - Spending review Topic 1])+SUMPRODUCT(((Dataset[DOR]=$B26))*Dataset[2024/25 To - Spending review Topic 1])","v":0},{"$f":"SUMPRODUCT(((Dataset[DOR]=$B26))*Dataset[2025/26 From - Spending review Topic 1])+SUMPRODUCT(((Dataset[DOR]=$B26))*Dataset[2025/26 To - Spending review Topic 1])","v":0},{"$f":"SUMPRODUCT(((Dataset[DOR]=$B26))*Dataset[2026/27 From - Spending review Topic 1])+SUMPRODUCT(((Dataset[DOR]=$B26))*Dataset[2026/27 To - Spending review Topic 1])","v":0},0]
["Spending review topic 1","LCG",null,null,null,null,"Local conditional grants",{"$f":"SUMPRODUCT(((Dataset[DOR]=$B27))*Dataset[2024/25 From - Spending review Topic 1])+SUMPRODUCT(((Dataset[DOR]=$B27))*Dataset[2024/25 To - Spending review Topic 1])","v":0},{"$f":"SUMPRODUCT(((Dataset[DOR]=$B27))*Dataset[2025/26 From - Spending review Topic 1])+SUMPRODUCT(((Dataset[DOR]=$B27))*Dataset[2025/26 To - Spending review Topic 1])","v":0},{"$f":"SUMPRODUCT(((Dataset[DOR]=$B27))*Dataset[2026/27 From - Spending review Topic 1])+SUMPRODUCT(((Dataset[DOR]=$B27))*Dataset[2026/27 To - Spending review Topic 1])","v":0},0]
["Spending review topic 1","GFL",null,null,null,null,"General fuel levy ",{"$f":"SUMPRODUCT(((Dataset[DOR]=$B28))*Dataset[2024/25 From - Spending review Topic 1])+SUMPRODUCT(((Dataset[DOR]=$B28))*Dataset[2024/25 To - Spending review Topic 1])","v":0},{"$f":"SUMPRODUCT(((Dataset[DOR]=$B28))*Dataset[2025/26 From - Spending review Topic 1])+SUMPRODUCT(((Dataset[DOR]=$B28))*Dataset[2025/26 To - Spending review Topic 1])","v":0},{"$f":"SUMPRODUCT(((Dataset[DOR]=$B28))*Dataset[2026/27 From - Spending review Topic 1])+SUMPRODUCT(((Dataset[DOR]=$B28))*Dataset[2026/27 To - Spending review Topic 1])","v":0},0]
[]
[]
[null,null,null,null,null,null,{"$f":"G3","v":"Spending review topic 1"}]
[{"$f":"$G$3","v":"Spending review topic 1"},0,null,null,null,null,null,{"$f":"MyYear5","v":"2024/25"},null,null,{"$f":"MyYear6","v":"2025/26"},null,null,{"$f":"MyYear7","v":"2026/27"},null,null,"Total over MTEF"]
[{"$f":"$G$3","v":"Spending review topic 1"},0,null,null,null,null,"Rand thousand","From","To","Total change","From","To","Total change","From","To","Total change","From","To","Total change"]
["Spending review topic 1",0,null,null,null,null,"Economic classification"]
["Spending review topic 1",0,null,null,null,null,"Current payments",{"$f":"SUM(H36:H38)","v":0},{"$f":"SUM(I36:I38)","v":0},0,0,0,{"$f":"SUM(M36:M38)","v":0},0,0,{"$f":"SUM(P36:P38)","v":0},0,0,{"$f":"SUM(S36:S38)","v":0}]
["Spending review topic 1",0,null,null,null,null,"Compensation of employees",{"$f":"SUMPRODUCT(((Dataset[Econ3]=$G36))*Dataset[2024/25 From - Spending review Topic 1]*$B$3)","v":0},{"$f":"SUMPRODUCT(((Dataset[Econ3]=$G36))*Dataset[2024/25 To - Spending review Topic 1]*$B$3)","v":0},{"$f":"H36+I36","v":0},{"$f":"SUMPRODUCT(((Dataset[Econ3]=$G36))*Dataset[2025/26 From - Spending review Topic 1]*$B$3)","v":0},{"$f":"SUMPRODUCT(((Dataset[Econ3]=$G36))*Dataset[2025/26 To - Spending review Topic 1]*$B$3)","v":0},{"$f":"K36+L36","v":0},{"$f":"SUMPRODUCT(((Dataset[Econ3]=$G36))*Dataset[2026/27 From - Spending review Topic 1]*$B$3)","v":0},{"$f":"SUMPRODUCT(((Dataset[Econ3]=$G36))*Dataset[2026/27 To - Spending review Topic 1]*$B$3)","v":0},{"$f":"N36+O36","v":0},{"$f":"SUM(H36,K36,N36)","v":0},0,0]
["Spending review topic 1",0,null,null,null,null,"Goods and services",{"$f":"SUMPRODUCT(((Dataset[Econ3]=$G37))*Dataset[2024/25 From - Spending review Topic 1]*$B$3)","v":0},{"$f":"SUMPRODUCT(((Dataset[Econ3]=$G37))*Dataset[2024/25 To - Spending review Topic 1]*$B$3)","v":0},0,{"$f":"SUMPRODUCT(((Dataset[Econ3]=$G37))*Dataset[2025/26 From - Spending review Topic 1]*$B$3)","v":0},{"$f":"SUMPRODUCT(((Dataset[Econ3]=$G37))*Dataset[2025/26 To - Spending review Topic 1]*$B$3)","v":0},0,{"$f":"SUMPRODUCT(((Dataset[Econ3]=$G37))*Dataset[2026/27 From - Spending review Topic 1]*$B$3)","v":0},{"$f":"SUMPRODUCT(((Dataset[Econ3]=$G37))*Dataset[2026/27 To - Spending review Topic 1]*$B$3)","v":0},0,{"$f":"SUM(H37,K37,N37)","v":0},{"$f":"SUM(I37,L37,O37)","v":0},{"$f":"SUM(J37,M37,P37)","v":0}]
["Spending review topic 1",0,null,null,null,null,"Interest and rent on land",{"$f":"SUMPRODUCT(((Dataset[Econ3]=$G38))*Dataset[2024/25 From - Spending review Topic 1]*$B$3)","v":0},{"$f":"SUMPRODUCT(((Dataset[Econ3]=$G38))*Dataset[2024/25 To - Spending review Topic 1]*$B$3)","v":0},0,{"$f":"SUMPRODUCT(((Dataset[Econ3]=$G38))*Dataset[2025/26 From - Spending review Topic 1]*$B$3)","v":0},{"$f":"SUMPRODUCT(((Dataset[Econ3]=$G38))*Dataset[2025/26 To - Spending review Topic 1]*$B$3)","v":0},0,{"$f":"SUMPRODUCT(((Dataset[Econ3]=$G38))*Dataset[2026/27 From - Spending review Topic 1]*$B$3)","v":0},{"$f":"SUMPRODUCT(((Dataset[Econ3]=$G38))*Dataset[2026/27 To - Spending review Topic 1]*$B$3)","v":0},0,0,0,0]
["Spending review topic 1",0,null,null,null,null,"Transfers and subsidies",{"$f":"SUM(H40,H43,H46:H48,H51:H52)","v":0},{"$f":"SUM(I40,I43,I46:I48,I51:I52)","v":0},0,{"$f":"SUM(K40,K43,K46:K48,K51:K52)","v":0},0,0,0,0,{"$f":"SUM(P40,P43,P46:P48,P51:P52)","v":0},0,0,{"$f":"SUM(S40,S43,S46:S48,S51:S52)","v":0}]
["Spending review topic 1",0,null,null,null,null,"Provinces and municipalities",{"$f":"SUM(H41:H42)","v":0},{"$f":"SUM(I41:I42)","v":0},0,{"$f":"SUM(K41:K42)","v":0},0,0,0,0,{"$f":"SUM(P41:P42)","v":0},0,0,{"$f":"SUM(S41:S42)","v":0}]
["Spending review topic 1",0,null,null,null,null,"Provinces",{"$f":"SUMPRODUCT(((Dataset[Econ4]=$G41))*Dataset[2024/25 From - Spending review Topic 1]*$B$3)","v":0},{"$f":"SUMPRODUCT(((Dataset[Econ4]=$G41))*Dataset[2024/25 To - Spending review Topic 1]*$B$3)","v":0},{"$f":"H41+I41","v":0},{"$f":"SUMPRODUCT(((Dataset[Econ4]=$G41))*Dataset[2025/26 From - Spending review Topic 1]*$B$3)","v":0},{"$f":"SUMPRODUCT(((Dataset[Econ4]=$G41))*Dataset[2025/26 To - Spending review Topic 1]*$B$3)","v":0},{"$f":"K41+L41","v":0},{"$f":"SUMPRODUCT(((Dataset[Econ4]=$G41))*Dataset[2026/27 From - Spending review Topic 1]*$B$3)","v":0},{"$f":"SUMPRODUCT(((Dataset[Econ4]=$G41))*Dataset[2026/27 To - Spending review Topic 1]*$B$3)","v":0},{"$f":"N41+O41","v":0},{"$f":"SUM(H41,K41,N41)","v":0},{"$f":"SUM(I41,L41,O41)","v":0},{"$f":"SUM(J41,M41,P41)","v":0}]
["Spending review topic 1",0,null,null,null,null,"Municipalities",{"$f":"SUMPRODUCT(((Dataset[Econ4]=$G42))*Dataset[2024/25 From - Spending review Topic 1]*$B$3)","v":0},{"$f":"SUMPRODUCT(((Dataset[Econ4]=$G42))*Dataset[2024/25 To - Spending review Topic 1]*$B$3)","v":0},0,{"$f":"SUMPRODUCT(((Dataset[Econ4]=$G42))*Dataset[2025/26 From - Spending review Topic 1]*$B$3)","v":0},{"$f":"SUMPRODUCT(((Dataset[Econ4]=$G42))*Dataset[2025/26 To - Spending review Topic 1]*$B$3)","v":0},0,{"$f":"SUMPRODUCT(((Dataset[Econ4]=$G42))*Dataset[2026/27 From - Spending review Topic 1]*$B$3)","v":0},{"$f":"SUMPRODUCT(((Dataset[Econ4]=$G42))*Dataset[2026/27 To - Spending review Topic 1]*$B$3)","v":0},0,0,0,0]
["Spending review topic 1",0,null,null,null,null,"Departmental agencies and accounts",{"$f":"SUM(H44:H45)","v":0},{"$f":"SUM(I44:I45)","v":0},0,{"$f":"SUM(K44:K45)","v":0},0,0,0,0,{"$f":"SUM(P44:P45)","v":0},0,0,{"$f":"SUM(S44:S45)","v":0}]
["Spending review topic 1",0,null,null,null,null,"Social security funds",{"$f":"SUMPRODUCT(((Dataset[Econ4]=$G44))*Dataset[2024/25 From - Spending review Topic 1]*$B$3)","v":0},{"$f":"SUMPRODUCT(((Dataset[Econ4]=$G44))*Dataset[2024/25 To - Spending review Topic 1]*$B$3)","v":0},{"$f":"H44+I44","v":0},{"$f":"SUMPRODUCT(((Dataset[Econ4]=$G44))*Dataset[2025/26 From - Spending review Topic 1]*$B$3)","v":0},{"$f":"SUMPRODUCT(((Dataset[Econ4]=$G44))*Dataset[2025/26 To - Spending review Topic 1]*$B$3)","v":0},{"$f":"K44+L44","v":0},{"$f":"SUMPRODUCT(((Dataset[Econ4]=$G44))*Dataset[2026/27 From - Spending review Topic 1]*$B$3)","v":0},{"$f":"SUMPRODUCT(((Dataset[Econ4]=$G44))*Dataset[2026/27 To - Spending review Topic 1]*$B$3)","v":0},{"$f":"N44+O44","v":0},{"$f":"SUM(H44,K44,N44)","v":0},{"$f":"SUM(I44,L44,O44)","v":0},{"$f":"SUM(J44,M44,P44)","v":0}]
["Spending review topic 1",0,null,null,null,null,"Departmental agencies (non-business entities)",{"$f":"SUMPRODUCT(((Dataset[Econ4]=$G45))*Dataset[2024/25 From - Spending review Topic 1]*$B$3)","v":0},{"$f":"SUMPRODUCT(((Dataset[Econ4]=$G45))*Dataset[2024/25 To - Spending review Topic 1]*$B$3)","v":0},0,{"$f":"SUMPRODUCT(((Dataset[Econ4]=$G45))*Dataset[2025/26 From - Spending review Topic 1]*$B$3)","v":0},{"$f":"SUMPRODUCT(((Dataset[Econ4]=$G45))*Dataset[2025/26 To - Spending review Topic 1]*$B$3)","v":0},0,{"$f":"SUMPRODUCT(((Dataset[Econ4]=$G45))*Dataset[2026/27 From - Spending review Topic 1]*$B$3)","v":0},{"$f":"SUMPRODUCT(((Dataset[Econ4]=$G45))*Dataset[2026/27 To - Spending review Topic 1]*$B$3)","v":0},0,0,0,0]
["Spending review topic 1",0,null,null,null,null,"Higher education institutions",{"$f":"SUMPRODUCT(((Dataset[Econ3]=$G46))*Dataset[2024/25 From - Spending review Topic 1]*$B$3)","v":0},{"$f":"SUMPRODUCT(((Dataset[Econ3]=$G46))*Dataset[2024/25 To - Spending review Topic 1]*$B$3)","v":0},0,{"$f":"SUMPRODUCT(((Dataset[Econ3]=$G46))*Dataset[2025/26 From - Spending review Topic 1]*$B$3)","v":0},{"$f":"SUMPRODUCT(((Dataset[Econ3]=$G46))*Dataset[2025/26 To - Spending review Topic 1]*$B$3)","v":0},0,{"$f":"SUMPRODUCT(((Dataset[Econ3]=$G46))*Dataset[2026/27 From - Spending review Topic 1]*$B$3)","v":0},{"$f":"SUMPRODUCT(((Dataset[Econ3]=$G46))*Dataset[2026/27 To - Spending review Topic 1]*$B$3)","v":0},0,0,0,0]
["Spending review topic 1",0,null,null,null,null,"Foreign governments and international organisations",{"$f":"SUMPRODUCT(((Dataset[Econ3]=$G47))*Dataset[2024/25 From - Spending review Topic 1]*$B$3)","v":0},{"$f":"SUMPRODUCT(((Dataset[Econ3]=$G47))*Dataset[2024/25 To - Spending review Topic 1]*$B$3)","v":0},0,{"$f":"SUMPRODUCT(((Dataset[Econ3]=$G47))*Dataset[2025/26 From - Spending review Topic 1]*$B$3)","v":0},{"$f":"SUMPRODUCT(((Dataset[Econ3]=$G47))*Dataset[2025/26 To - Spending review Topic 1]*$B$3)","v":0},0,{"$f":"SUMPRODUCT(((Dataset[Econ3]=$G47))*Dataset[2026/27 From - Spending review Topic 1]*$B$3)","v":0},{"$f":"SUMPRODUCT(((Dataset[Econ3]=$G47))*Dataset[2026/27 To - Spending review Topic 1]*$B$3)","v":0},0,0,0,0]
["Spending review topic 1",0,null,null,null,null,"Public corporations and private enterprises",{"$f":"SUM(H49:H50)","v":0},{"$f":"SUM(I49:I50)","v":0},0,{"$f":"SUM(K49:K50)","v":0},0,0,0,0,{"$f":"SUM(P49:P50)","v":0},0,0,{"$f":"SUM(S49:S50)","v":0}]
["Spending review topic 1",0,null,null,null,null,"Public corporations",{"$f":"SUMPRODUCT(((Dataset[Econ4]=$G49))*Dataset[2024/25 From - Spending review Topic 1]*$B$3)","v":0},{"$f":"SUMPRODUCT(((Dataset[Econ4]=$G49))*Dataset[2024/25 To - Spending review Topic 1]*$B$3)","v":0},{"$f":"H49+I49","v":0},{"$f":"SUMPRODUCT(((Dataset[Econ4]=$G49))*Dataset[2025/26 From - Spending review Topic 1]*$B$3)","v":0},{"$f":"SUMPRODUCT(((Dataset[Econ4]=$G49))*Dataset[2025/26 To - Spending review Topic 1]*$B$3)","v":0},{"$f":"K49+L49","v":0},{"$f":"SUMPRODUCT(((Dataset[Econ4]=$G49))*Dataset[2026/27 From - Spending review Topic 1]*$B$3)","v":0},{"$f":"SUMPRODUCT(((Dataset[Econ4]=$G49))*Dataset[2026/27 To - Spending review Topic 1]*$B$3)","v":0},{"$f":"N49+O49","v":0},{"$f":"SUM(H49,K49,N49)","v":0},{"$f":"SUM(I49,L49,O49)","v":0},{"$f":"SUM(J49,M49,P49)","v":0}]
["Spending review topic 1",0,null,null,null,null,"Private enterprises",{"$f":"SUMPRODUCT(((Dataset[Econ4]=$G50))*Dataset[2024/25 From - Spending review Topic 1]*$B$3)","v":0},{"$f":"SUMPRODUCT(((Dataset[Econ4]=$G50))*Dataset[2024/25 To - Spending review Topic 1]*$B$3)","v":0},0,{"$f":"SUMPRODUCT(((Dataset[Econ4]=$G50))*Dataset[2025/26 From - Spending review Topic 1]*$B$3)","v":0},{"$f":"SUMPRODUCT(((Dataset[Econ4]=$G50))*Dataset[2025/26 To - Spending review Topic 1]*$B$3)","v":0},0,{"$f":"SUMPRODUCT(((Dataset[Econ4]=$G50))*Dataset[2026/27 From - Spending review Topic 1]*$B$3)","v":0},{"$f":"SUMPRODUCT(((Dataset[Econ4]=$G50))*Dataset[2026/27 To - Spending review Topic 1]*$B$3)","v":0},0,0,0,0]
["Spending review topic 1",0,null,null,null,null,"Non-profit institutions",{"$f":"SUMPRODUCT(((Dataset[Econ3]=$G51))*Dataset[2024/25 From - Spending review Topic 1]*$B$3)","v":0},{"$f":"SUMPRODUCT(((Dataset[Econ3]=$G51))*Dataset[2024/25 To - Spending review Topic 1]*$B$3)","v":0},0,{"$f":"SUMPRODUCT(((Dataset[Econ3]=$G51))*Dataset[2025/26 From - Spending review Topic 1]*$B$3)","v":0},{"$f":"SUMPRODUCT(((Dataset[Econ3]=$G51))*Dataset[2025/26 To - Spending review Topic 1]*$B$3)","v":0},0,{"$f":"SUMPRODUCT(((Dataset[Econ3]=$G51))*Dataset[2026/27 From - Spending review Topic 1]*$B$3)","v":0},{"$f":"SUMPRODUCT(((Dataset[Econ3]=$G51))*Dataset[2026/27 To - Spending review Topic 1]*$B$3)","v":0},0,0,0,0]
["Spending review topic 1",0,null,null,null,null,"Households",{"$f":"SUM(H53:H54)","v":0},{"$f":"SUM(I53:I54)","v":0},0,{"$f":"SUM(K53:K54)","v":0},0,0,0,0,{"$f":"SUM(P53:P54)","v":0},0,0,{"$f":"SUM(S53:S54)","v":0}]
["Spending review topic 1",0,null,null,null,null,"Social benefits",{"$f":"SUMPRODUCT(((Dataset[Econ4]=$G53))*Dataset[2024/25 From - Spending review Topic 1]*$B$3)","v":0},{"$f":"SUMPRODUCT(((Dataset[Econ4]=$G53))*Dataset[2024/25 To - Spending review Topic 1]*$B$3)","v":0},{"$f":"H53+I53","v":0},{"$f":"SUMPRODUCT(((Dataset[Econ4]=$G53))*Dataset[2025/26 From - Spending review Topic 1]*$B$3)","v":0},{"$f":"SUMPRODUCT(((Dataset[Econ4]=$G53))*Dataset[2025/26 To - Spending review Topic 1]*$B$3)","v":0},{"$f":"K53+L53","v":0},{"$f":"SUMPRODUCT(((Dataset[Econ4]=$G53))*Dataset[2026/27 From - Spending review Topic 1]*$B$3)","v":0},{"$f":"SUMPRODUCT(((Dataset[Econ4]=$G53))*Dataset[2026/27 To - Spending review Topic 1]*$B$3)","v":0},{"$f":"N53+O53","v":0},{"$f":"SUM(H53,K53,N53)","v":0},{"$f":"SUM(I53,L53,O53)","v":0},{"$f":"SUM(J53,M53,P53)","v":0}]
["Spending review topic 1",0,null,null,null,null,"Other transfers to households",{"$f":"SUMPRODUCT(((Dataset[Econ4]=$G54))*Dataset[2024/25 From - Spending review Topic 1]*$B$3)","v":0},{"$f":"SUMPRODUCT(((Dataset[Econ4]=$G54))*Dataset[2024/25 To - Spending review Topic 1]*$B$3)","v":0},0,{"$f":"SUMPRODUCT(((Dataset[Econ4]=$G54))*Dataset[2025/26 From - Spending review Topic 1]*$B$3)","v":0},{"$f":"SUMPRODUCT(((Dataset[Econ4]=$G54))*Dataset[2025/26 To - Spending review Topic 1]*$B$3)","v":0},0,{"$f":"SUMPRODUCT(((Dataset[Econ4]=$G54))*Dataset[2026/27 From - Spending review Topic 1]*$B$3)","v":0},{"$f":"SUMPRODUCT(((Dataset[Econ4]=$G54))*Dataset[2026/27 To - Spending review Topic 1]*$B$3)","v":0},0,0,0,0]
["Spending review topic 1",0,null,null,null,null,"Payments for capital assets",{"$f":"SUM(H56,H59,H62:H66)","v":0},{"$f":"SUM(I56,I59,I62:I66)","v":0},0,{"$f":"SUM(K56,K59,K62:K66)","v":0},0,0,0,0,{"$f":"SUM(P56,P59,P62:P66)","v":0},0,0,{"$f":"SUM(S56,S59,S62:S66)","v":0}]
["Spending review topic 1",0,null,null,null,null,"Buildings and other fixed structures",{"$f":"SUM(H57:H58)","v":0},{"$f":"SUM(I57:I58)","v":0},0,{"$f":"SUM(K57:K58)","v":0},0,0,0,0,{"$f":"SUM(P57:P58)","v":0},0,0,{"$f":"SUM(S57:S58)","v":0}]
["Spending review topic 1",0,null,null,null,null,"Buildings",{"$f":"SUMPRODUCT(((Dataset[Econ4]=$G57))*Dataset[2024/25 From - Spending review Topic 1]*$B$3)","v":0},{"$f":"SUMPRODUCT(((Dataset[Econ4]=$G57))*Dataset[2024/25 To - Spending review Topic 1]*$B$3)","v":0},{"$f":"H57+I57","v":0},{"$f":"SUMPRODUCT(((Dataset[Econ4]=$G57))*Dataset[2025/26 From - Spending review Topic 1]*$B$3)","v":0},{"$f":"SUMPRODUCT(((Dataset[Econ4]=$G57))*Dataset[2025/26 To - Spending review Topic 1]*$B$3)","v":0},{"$f":"K57+L57","v":0},{"$f":"SUMPRODUCT(((Dataset[Econ4]=$G57))*Dataset[2026/27 From - Spending review Topic 1]*$B$3)","v":0},{"$f":"SUMPRODUCT(((Dataset[Econ4]=$G57))*Dataset[2026/27 To - Spending review Topic 1]*$B$3)","v":0},{"$f":"N57+O57","v":0},{"$f":"SUM(H57,K57,N57)","v":0},{"$f":"SUM(I57,L57,O57)","v":0},{"$f":"SUM(J57,M57,P57)","v":0}]
["Spending review topic 1",0,null,null,null,null,"Other fixed structures",{"$f":"SUMPRODUCT(((Dataset[Econ4]=$G58))*Dataset[2024/25 From - Spending review Topic 1]*$B$3)","v":0},{"$f":"SUMPRODUCT(((Dataset[Econ4]=$G58))*Dataset[2024/25 To - Spending review Topic 1]*$B$3)","v":0},0,{"$f":"SUMPRODUCT(((Dataset[Econ4]=$G58))*Dataset[2025/26 From - Spending review Topic 1]*$B$3)","v":0},{"$f":"SUMPRODUCT(((Dataset[Econ4]=$G58))*Dataset[2025/26 To - Spending review Topic 1]*$B$3)","v":0},0,{"$f":"SUMPRODUCT(((Dataset[Econ4]=$G58))*Dataset[2026/27 From - Spending review Topic 1]*$B$3)","v":0},{"$f":"SUMPRODUCT(((Dataset[Econ4]=$G58))*Dataset[2026/27 To - Spending review Topic 1]*$B$3)","v":0},0,0,0,0]
["Spending review topic 1",0,null,null,null,null,"Machinery and equipment",{"$f":"SUM(H60:H61)","v":0},{"$f":"SUM(I60:I61)","v":0},0,{"$f":"SUM(K60:K61)","v":0},0,0,0,0,{"$f":"SUM(P60:P61)","v":0},0,0,{"$f":"SUM(S60:S61)","v":0}]
["Spending review topic 1",0,null,null,null,null,"Transport equipment",{"$f":"SUMPRODUCT(((Dataset[Econ4]=$G60))*Dataset[2024/25 From - Spending review Topic 1]*$B$3)","v":0},{"$f":"SUMPRODUCT(((Dataset[Econ4]=$G60))*Dataset[2024/25 To - Spending review Topic 1]*$B$3)","v":0},{"$f":"H60+I60","v":0},{"$f":"SUMPRODUCT(((Dataset[Econ4]=$G60))*Dataset[2025/26 From - Spending review Topic 1]*$B$3)","v":0},{"$f":"SUMPRODUCT(((Dataset[Econ4]=$G60))*Dataset[2025/26 To - Spending review Topic 1]*$B$3)","v":0},{"$f":"K60+L60","v":0},{"$f":"SUMPRODUCT(((Dataset[Econ4]=$G60))*Dataset[2026/27 From - Spending review Topic 1]*$B$3)","v":0},{"$f":"SUMPRODUCT(((Dataset[Econ4]=$G60))*Dataset[2026/27 To - Spending review Topic 1]*$B$3)","v":0},{"$f":"N60+O60","v":0},{"$f":"SUM(H60,K60,N60)","v":0},{"$f":"SUM(I60,L60,O60)","v":0},{"$f":"SUM(J60,M60,P60)","v":0}]
["Spending review topic 1",0,null,null,null,null,"Other machinery and equipment",{"$f":"SUMPRODUCT(((Dataset[Econ4]=$G61))*Dataset[2024/25 From - Spending review Topic 1]*$B$3)","v":0},{"$f":"SUMPRODUCT(((Dataset[Econ4]=$G61))*Dataset[2024/25 To - Spending review Topic 1]*$B$3)","v":0},0,{"$f":"SUMPRODUCT(((Dataset[Econ4]=$G61))*Dataset[2025/26 From - Spending review Topic 1]*$B$3)","v":0},{"$f":"SUMPRODUCT(((Dataset[Econ4]=$G61))*Dataset[2025/26 To - Spending review Topic 1]*$B$3)","v":0},0,{"$f":"SUMPRODUCT(((Dataset[Econ4]=$G61))*Dataset[2026/27 From - Spending review Topic 1]*$B$3)","v":0},{"$f":"SUMPRODUCT(((Dataset[Econ4]=$G61))*Dataset[2026/27 To - Spending review Topic 1]*$B$3)","v":0},0,0,0,0]
["Spending review topic 1",0,null,null,null,null,"Heritage assets",{"$f":"SUMPRODUCT(((Dataset[Econ3]=$G62))*Dataset[2024/25 From - Spending review Topic 1]*$B$3)","v":0},{"$f":"SUMPRODUCT(((Dataset[Econ3]=$G62))*Dataset[2024/25 To - Spending review Topic 1]*$B$3)","v":0},0,{"$f":"SUMPRODUCT(((Dataset[Econ3]=$G62))*Dataset[2025/26 From - Spending review Topic 1]*$B$3)","v":0},{"$f":"SUMPRODUCT(((Dataset[Econ3]=$G62))*Dataset[2025/26 To - Spending review Topic 1]*$B$3)","v":0},0,{"$f":"SUMPRODUCT(((Dataset[Econ3]=$G62))*Dataset[2026/27 From - Spending review Topic 1]*$B$3)","v":0},{"$f":"SUMPRODUCT(((Dataset[Econ3]=$G62))*Dataset[2026/27 To - Spending review Topic 1]*$B$3)","v":0},0,0,0,0]
["Spending review topic 1",0,null,null,null,null,"Specialised military assets",{"$f":"SUMPRODUCT(((Dataset[Econ3]=$G63))*Dataset[2024/25 From - Spending review Topic 1]*$B$3)","v":0},{"$f":"SUMPRODUCT(((Dataset[Econ3]=$G63))*Dataset[2024/25 To - Spending review Topic 1]*$B$3)","v":0},0,{"$f":"SUMPRODUCT(((Dataset[Econ3]=$G63))*Dataset[2025/26 From - Spending review Topic 1]*$B$3)","v":0},{"$f":"SUMPRODUCT(((Dataset[Econ3]=$G63))*Dataset[2025/26 To - Spending review Topic 1]*$B$3)","v":0},0,{"$f":"SUMPRODUCT(((Dataset[Econ3]=$G63))*Dataset[2026/27 From - Spending review Topic 1]*$B$3)","v":0},{"$f":"SUMPRODUCT(((Dataset[Econ3]=$G63))*Dataset[2026/27 To - Spending review Topic 1]*$B$3)","v":0},0,0,0,0]
["Spending review topic 1",0,null,null,null,null,"Biological assets",{"$f":"SUMPRODUCT(((Dataset[Econ3]=$G64))*Dataset[2024/25 From - Spending review Topic 1]*$B$3)","v":0},{"$f":"SUMPRODUCT(((Dataset[Econ3]=$G64))*Dataset[2024/25 To - Spending review Topic 1]*$B$3)","v":0},0,{"$f":"SUMPRODUCT(((Dataset[Econ3]=$G64))*Dataset[2025/26 From - Spending review Topic 1]*$B$3)","v":0},{"$f":"SUMPRODUCT(((Dataset[Econ3]=$G64))*Dataset[2025/26 To - Spending review Topic 1]*$B$3)","v":0},0,{"$f":"SUMPRODUCT(((Dataset[Econ3]=$G64))*Dataset[2026/27 From - Spending review Topic 1]*$B$3)","v":0},{"$f":"SUMPRODUCT(((Dataset[Econ3]=$G64))*Dataset[2026/27 To - Spending review Topic 1]*$B$3)","v":0},0,0,0,0]
["Spending review topic 1",0,null,null,null,null,"Land and sub-soil assets",{"$f":"SUMPRODUCT(((Dataset[Econ3]=$G65))*Dataset[2024/25 From - Spending review Topic 1]*$B$3)","v":0},{"$f":"SUMPRODUCT(((Dataset[Econ3]=$G65))*Dataset[2024/25 To - Spending review Topic 1]*$B$3)","v":0},0,{"$f":"SUMPRODUCT(((Dataset[Econ3]=$G65))*Dataset[2025/26 From - Spending review Topic 1]*$B$3)","v":0},{"$f":"SUMPRODUCT(((Dataset[Econ3]=$G65))*Dataset[2025/26 To - Spending review Topic 1]*$B$3)","v":0},0,{"$f":"SUMPRODUCT(((Dataset[Econ3]=$G65))*Dataset[2026/27 From - Spending review Topic 1]*$B$3)","v":0},{"$f":"SUMPRODUCT(((Dataset[Econ3]=$G65))*Dataset[2026/27 To - Spending review Topic 1]*$B$3)","v":0},0,0,0,0]
["Spending review topic 1",0,null,null,null,null,"Software and other intangible assets",{"$f":"SUMPRODUCT(((Dataset[Econ3]=$G66))*Dataset[2024/25 From - Spending review Topic 1]*$B$3)","v":0},{"$f":"SUMPRODUCT(((Dataset[Econ3]=$G66))*Dataset[2024/25 To - Spending review Topic 1]*$B$3)","v":0},0,{"$f":"SUMPRODUCT(((Dataset[Econ3]=$G66))*Dataset[2025/26 From - Spending review Topic 1]*$B$3)","v":0},{"$f":"SUMPRODUCT(((Dataset[Econ3]=$G66))*Dataset[2025/26 To - Spending review Topic 1]*$B$3)","v":0},0,{"$f":"SUMPRODUCT(((Dataset[Econ3]=$G66))*Dataset[2026/27 From - Spending review Topic 1]*$B$3)","v":0},{"$f":"SUMPRODUCT(((Dataset[Econ3]=$G66))*Dataset[2026/27 To - Spending review Topic 1]*$B$3)","v":0},0,0,0,0]
["Spending review topic 1",0,null,null,null,null,"Payments for financial assets",{"$f":"SUMPRODUCT(((Dataset[Econ3]=$G67))*Dataset[2024/25 From - Spending review Topic 1]*$B$3)","v":0},{"$f":"SUMPRODUCT(((Dataset[Econ3]=$G67))*Dataset[2024/25 To - Spending review Topic 1]*$B$3)","v":0},0,{"$f":"SUMPRODUCT(((Dataset[Econ3]=$G67))*Dataset[2025/26 From - Spending review Topic 1]*$B$3)","v":0},{"$f":"SUMPRODUCT(((Dataset[Econ3]=$G67))*Dataset[2025/26 To - Spending review Topic 1]*$B$3)","v":0},0,{"$f":"SUMPRODUCT(((Dataset[Econ3]=$G67))*Dataset[2026/27 From - Spending review Topic 1]*$B$3)","v":0},{"$f":"SUMPRODUCT(((Dataset[Econ3]=$G67))*Dataset[2026/27 To - Spending review Topic 1]*$B$3)","v":0},0,0,0,0]
["Spending review topic 1",0,null,null,null,null,"Total",{"$f":"SUM(H35,H39,H55,H67)","v":0},{"$f":"SUM(I35,I39,I55,I67)","v":0},0,0,0,{"$f":"SUM(M35,M39,M55,M67)","v":0},0,0,{"$f":"SUM(P35,P39,P55,P67)","v":0},0,0,{"$f":"SUM(S35,S39,S55,S67)","v":0}]
[]
[]
[]
[]
[null,null,null,null,null,null,{"$f":"\"IMPACT OF ADJUSTMENTS: \" &UPPER($G$3)","v":"IMPACT OF ADJUSTMENTS: SPENDING REVIEW TOPIC 1"}]
[]
[null,null,null,null,null,1,"Impact of adjustments on expenditure"]
[{"$f":"$G$3","v":"Spending review topic 1"},5,null,null,null,null,null,{"$f":"MyYear4","v":"2023/24"},null,null,{"$f":"MyYear5","v":"2024/25"},null,null,{"$f":"MyYear6","v":"2025/26"},null,null,{"$f":"MyYear7","v":"2026/27"}]
["Spending review topic 1",5,null,null,null,null,null,"Current expenditure","Potential expenditure @ benchmark level","% Savings if benchmark is achieved","Original number","Change in expenditure","Saving as % of original number","Original number","Change in expenditure","Saving as % of original number","Original number","Change in expenditure","Saving as % of original number"]
["Spending review topic 1",5,null,null,null,null,"Total",null,null,{"$f":"IFERROR((H78-I78)/-H78,\"\")","v":""},null,null,{"$f":"IFERROR((K78-L78)/-K78,\"\")","v":""},null,null,{"$f":"IFERROR((N78-O78)/-N78,\"\")","v":""},null,null,{"$f":"IFERROR((Q78-R78)/-Q78,\"\")","v":""}]
[]
[]
[]
[]
[]
[null,null,null,null,null,2,"Summary of impact on service delivery/policy area due to adjustments"]
[{"$f":"$G$3","v":"Spending review topic 1"},1]
["Spending review topic 1",1]
["Spending review topic 1",1]
["Spending review topic 1",1]
["Spending review topic 1",1]
["Spending review topic 1",1]
["Spending review topic 1",1]
["Spending review topic 1",1]
["Spending review topic 1",1]
["Spending review topic 1",1]
["Spending review topic 1",1]
["Spending review topic 1",1]
["Spending review topic 1",1]
["Spending review topic 1",1]
["Spending review topic 1",1]
[]
[]
[]
[]
[]
[null,null,null,null,null,3,"Impact of adjustments on performance indicators"]
[{"$f":"$G$3","v":"Spending review topic 1"},2,null,null,null,null,null,{"$f":"MyYear4","v":"2023/24"},null,null,{"$f":"MyYear5","v":"2024/25"},null,null,{"$f":"MyYear6","v":"2025/26"},null,null,{"$f":"MyYear7","v":"2026/27"},null,null," Comment",null,null,null,null,"Related MTSF Priority"]
["Spending review topic 1",2,null,null,null,null,"Performance indicator","Current performance","Performance @ benchmark level","Change","Original target","Revised target","Change","Original target","Revised target","Change","Original target","Revised target","Change"]
["Spending review topic 1",2]
["Spending review topic 1",2]
["Spending review topic 1",2]
["Spending review topic 1",2]
["Spending review topic 1",2]
["Spending review topic 1",2]
["Spending review topic 1",2]
["Spending review topic 1",2]
["Spending review topic 1",2]
["Spending review topic 1",2]
["Spending review topic 1",2]
["Spending review topic 1",2]
["Spending review topic 1",2]
["Spending review topic 1",2]
["Spending review topic 1",2]
[]
[]
[]
[]
[]
[null,null,null,null,null,4,"Impact of adjustments on personnel headcount numbers"]
[{"$f":"$G$3","v":"Spending review topic 1"},4,null,null,null,null,null,{"$f":"MyYear4","v":"2023/24"},null,null,{"$f":"MyYear5","v":"2024/25"},null,null,{"$f":"MyYear6","v":"2025/26"},null,null,{"$f":"MyYear7","v":"2026/27"},null,null," Comment"]
["Spending review topic 1",4,null,null,null,null,"Salary level","Current number","Potential number if benchmark is achieved","Change in number","Original number","Revised number","Change in number","Original number","Revised number","Change in number","Original number","Revised number","Change in number"]
["Spending review topic 1",4,null,null,null,null,1,null,null,{"$f":"I131-H131","v":0},null,null,{"$f":"L131-K131","v":0},null,null,{"$f":"O131-N131","v":0},null,null,{"$f":"R131-Q131","v":0}]
["Spending review topic 1",4,null,null,null,null,2,null,null,0,null,null,0,null,null,0,null,null,0]
["Spending review topic 1",4,null,null,null,null,3,null,null,0,null,null,0,null,null,0,null,null,0]
["Spending review topic 1",4,null,null,null,null,4,null,null,0,null,null,0,null,null,0,null,null,0]
["Spending review topic 1",4,null,null,null,null,5,null,null,0,null,null,0,null,null,0,null,null,0]
["Spending review topic 1",4,null,null,null,null,6,null,null,0,null,null,0,null,null,0,null,null,0]
["Spending review topic 1",4,null,null,null,null,7,null,null,0,null,null,0,null,null,0,null,null,0]
["Spending review topic 1",4,null,null,null,null,8,null,null,0,null,null,0,null,null,0,null,null,0]
["Spending review topic 1",4,null,null,null,null,9,null,null,0,null,null,0,null,null,0,null,null,0]
["Spending review topic 1",4,null,null,null,null,10,null,null,0,null,null,0,null,null,0,null,null,0]
["Spending review topic 1",4,null,null,null,null,11,null,null,0,null,null,0,null,null,0,null,null,0]
["Spending review topic 1",4,null,null,null,null,12,null,null,0,null,null,0,null,null,0,null,null,0]
["Spending review topic 1",4,null,null,null,null,13,null,null,0,null,null,0,null,null,0,null,null,0]
["Spending review topic 1",4,null,null,null,null,14,null,null,0,null,null,0,null,null,0,null,null,0]
["Spending review topic 1",4,null,null,null,null,15,null,null,0,null,null,0,null,null,0,null,null,0]
["Spending review topic 1",4,null,null,null,null,16,null,null,0,null,null,0,null,null,0,null,null,0]
["Spending review topic 1",4,null,null,null,null,"Other",null,null,0,null,null,0,null,null,0,null,null,0]
["Spending review topic 1",4,null,null,null,null,"Other",null,null,0,null,null,0,null,null,0,null,null,0]
["Spending review topic 1",4,null,null,null,null,"Other",null,null,0,null,null,0,null,null,0,null,null,0]
["Spending review topic 1",4,null,null,null,null,"Other",null,null,0,null,null,0,null,null,0,null,null,0]
["Spending review topic 1",4,null,null,null,null,"Total",{"$f":"SUM(H131:H150)","v":0},0,0,{"$f":"SUM(K131:K150)","v":0},0,0,0,0,0,0,0,0]
[]
[]
[]
[]
[]
[null,null,null,null,null,5,"Impact of adjustments on infrastructure projects"]
[{"$f":"$G$3","v":"Spending review topic 1"},3,null,null,null,null,null,{"$f":"MyYear4","v":"2023/24"},null,null,{"$f":"MyYear5","v":"2024/25"},null,null,{"$f":"MyYear6","v":"2025/26"},null,null,{"$f":"MyYear7","v":"2026/27"},null,null," Comment"]
["Spending review topic 1",3,null,null,null,null,"Project name","Current number","Market or best in class benchmark","Change","Original amount","Revised amount","Change","Original amount","Revised amount","Change","Original amount","Revised amount","Change"]
["Spending review topic 1",3,null,null,null,null,null,null,null,{"$f":"I160-H160","v":0},null,null,{"$f":"L160-K160","v":0},null,null,{"$f":"O160-N160","v":0},null,null,{"$f":"R160-Q160","v":0}]
["Spending review topic 1",3,null,null,null,null,null,null,null,0,null,null,0,null,null,0,null,null,0]
["Spending review topic 1",3,null,null,null,null,null,null,null,{"$f":"I162-H162","v":0},null,null,{"$f":"L162-K162","v":0},null,null,{"$f":"O162-N162","v":0},null,null,{"$f":"R162-Q162","v":0}]
["Spending review topic 1",3,null,null,null,null,null,null,null,0,null,null,0,null,null,0,null,null,0]
["Spending review topic 1",3,null,null,null,null,null,null,null,0,null,null,0,null,null,0,null,null,0]
["Spending review topic 1",3,null,null,null,null,null,null,null,0,null,null,0,null,null,0,null,null,0]
["Spending review topic 1",3,null,null,null,null,null,null,null,0,null,null,0,null,null,0,null,null,0]
["Spending review topic 1",3,null,null,null,null,null,null,null,0,null,null,0,null,null,0,null,null,0]
["Spending review topic 1",3,null,null,null,null,null,null,null,0,null,null,0,null,null,0,null,null,0]
["Spending review topic 1",3,null,null,null,null,null,null,null,0,null,null,0,null,null,0,null,null,0]
["Spending review topic 1",3,null,null,null,null,null,null,null,0,null,null,0,null,null,0,null,null,0]
["Spending review topic 1",3,null,null,null,null,null,null,null,0,null,null,0,null,null,0,null,null,0]
["Spending review topic 1",3,null,null,null,null,null,null,null,0,null,null,0,null,null,0,null,null,0]
["Spending review topic 1",3,null,null,null,null,null,null,null,{"$f":"I173-H173","v":0},null,null,{"$f":"L173-K173","v":0},null,null,{"$f":"O173-N173","v":0},null,null,{"$f":"R173-Q173","v":0}]
["Spending review topic 1",3,null,null,null,null,null,null,null,0,null,null,0,null,null,0,null,null,0]
["Spending review topic 1",3,null,null,null,null,null,null,null,0,null,null,0,null,null,0,null,null,0]
["Spending review topic 1",3,null,null,null,null,null,null,null,0,null,null,0,null,null,0,null,null,0]
["Spending review topic 1",3,null,null,null,null,null,null,null,0,null,null,0,null,null,0,null,null,0]
["Spending review topic 1",3,null,null,null,null,null,null,null,0,null,null,0,null,null,0,null,null,0]
["Spending review topic 1",3,null,null,null,null,null,null,null,{"$f":"I179-H179","v":0},null,null,{"$f":"L179-K179","v":0},null,null,{"$f":"O179-N179","v":0},null,null,{"$f":"R179-Q179","v":0}]
["Spending review topic 1",3,null,null,null,null,null,null,null,0,null,null,0,null,null,0,null,null,0]
["Spending review topic 1",3,null,null,null,null,null,null,null,0,null,null,0,null,null,0,null,null,0]
["Spending review topic 1",3,null,null,null,null,null,null,null,0,null,null,0,null,null,0,null,null,0]
["Spending review topic 1",3,null,null,null,null,null,null,null,0,null,null,0,null,null,0,null,null,0]
["Spending review topic 1",3,null,null,null,null,null,null,null,0,null,null,0,null,null,0,null,null,0]
["Spending review topic 1",3,null,null,null,null,null,null,null,0,null,null,0,null,null,0,null,null,0]
["Spending review topic 1",3,null,null,null,null,null,null,null,0,null,null,0,null,null,0,null,null,0]
["Spending review topic 1",3,null,null,null,null,null,null,null,0,null,null,0,null,null,0,null,null,0]
["Spending review topic 1",3,null,null,null,null,null,null,null,0,null,null,0,null,null,0,null,null,0]
["Spending review topic 1",3,null,null,null,null,null,null,null,0,null,null,0,null,null,0,null,null,0]
["Spending review topic 1",3,null,null,null,null,null,null,null,0,null,null,0,null,null,0,null,null,0]
["Spending review topic 1",3,null,null,null,null,null,null,null,0,null,null,0,null,null,0,null,null,0]
["Spending review topic 1",3,null,null,null,null,null,null,null,0,null,null,0,null,null,0,null,null,0]
["Spending review topic 1",3,null,null,null,null,null,null,null,0,null,null,0,null,null,0,null,null,0]
["Spending review topic 1",3,null,null,null,null,null,null,null,0,null,null,0,null,null,0,null,null,0]
["Spending review topic 1",3,null,null,null,null,null,null,null,0,null,null,0,null,null,0,null,null,0]
["Spending review topic 1",3,null,null,null,null,null,null,null,0,null,null,0,null,null,0,null,null,0]
["Spending review topic 1",3,null,null,null,null,null,null,null,0,null,null,0,null,null,0,null,null,0]
["Spending review topic 1",3,null,null,null,null,null,null,null,0,null,null,0,null,null,0,null,null,0]
["Spending review topic 1",3,null,null,null,null,null,null,null,0,null,null,0,null,null,0,null,null,0]
["Spending review topic 1",3,null,null,null,null,null,null,null,0,null,null,0,null,null,0,null,null,0]
["Spending review topic 1",3,null,null,null,null,null,null,null,0,null,null,0,null,null,0,null,null,0]
["Spending review topic 1",3,null,null,null,null,null,null,null,0,null,null,0,null,null,0,null,null,0]
["Spending review topic 1",3,null,null,null,null,null,null,null,0,null,null,0,null,null,0,null,null,0]
["Spending review topic 1",3,null,null,null,null,null,null,null,0,null,null,0,null,null,0,null,null,0]
["Spending review topic 1",3,null,null,null,null,null,null,null,0,null,null,0,null,null,0,null,null,0]
["Spending review topic 1",3,null,null,null,null,null,null,null,0,null,null,0,null,null,0,null,null,0]
["Spending review topic 1",3,null,null,null,null,null,null,null,0,null,null,0,null,null,0,null,null,0]
["Spending review topic 1",3,null,null,null,null,null,null,null,0,null,null,0,null,null,0,null,null,0]
["Spending review topic 1",3,null,null,null,null,null,null,null,0,null,null,0,null,null,0,null,null,0]
["Spending review topic 1",3,null,null,null,null,"Total",{"$f":"SUM(H160:H209)","v":0},0,0,{"$f":"SUM(K160:K209)","v":0},0,0,0,0,0,0,0,0]

{"sheet":"SRT2","index":12,"n_rows":210,"n_cols":25,"rows_kept":210,"cut":false,"hidden":false,"merged":[[72,6,72,18],[84,6,98,18],[105,19,105,23],[105,24,105,26],[106,19,106,23],[106,24,106,26],[107,19,107,23],[107,24,107,26],[108,19,108,23],[108,24,108,26],[109,19,109,23],[109,24,109,26],[110,19,110,23],[110,24,110,26],[111,19,111,23],[111,24,111,26],[112,19,112,23],[112,24,112,26],[113,19,113,23],[113,24,113,26],[114,19,114,23],[114,24,114,26],[115,19,115,23],[115,24,115,26],[116,19,116,23],[116,24,116,26],[117,19,117,23],[117,24,117,26],[118,19,118,23],[118,24,118,26],[119,19,119,23],[119,24,119,26],[120,19,120,23],[120,24,120,26],[121,19,121,23],[121,24,121,26],[165,19,165,23],[128,19,128,23],[129,19,129,23],[130,19,149,23],[157,19,157,23],[158,19,158,23],[159,19,159,23],[160,19,160,23],[161,19,161,23],[162,19,162,23],[163,19,163,23],[164,19,164,23],[177,19,177,23],[166,19,166,23],[167,19,167,23],[168,19,168,23],[169,19,169,23],[170,19,170,23],[171,19,171,23],[172,19,172,23],[173,19,173,23],[174,19,174,23],[175,19,175,23],[176,19,176,23],[189,19,189,23],[178,19,178,23],[179,19,179,23],[180,19,180,23],[181,19,181,23],[182,19,182,23],[183,19,183,23],[184,19,184,23],[185,19,185,23],[186,19,186,23],[187,19,187,23],[188,19,188,23],[201,19,201,23],[190,19,190,23],[191,19,191,23],[192,19,192,23],[193,19,193,23],[194,19,194,23],[195,19,195,23],[196,19,196,23],[197,19,197,23],[198,19,198,23],[199,19,199,23],[200,19,200,23],[208,19,208,23],[202,19,202,23],[203,19,203,23],[204,19,204,23],[205,19,205,23],[206,19,206,23],[207,19,207,23]]}
[]
[null,null,null,null,null,null,"Spending review topic…"]
[null,{"$f":"IF(G3=\"\",0,1)","v":1},null,null,null,2,{"$f":"SRTopic2","v":"Spending review topic 2"}]
[]
[null,null,null,null,null,null,"Quick view…(Total change)",{"$f":"MyYear5","v":"2024/25"},{"$f":"MyYear6","v":"2025/26"},{"$f":"MyYear7","v":"2026/27"},"MTEF total","Trend"]
[null,null,null,null,null,null,"Compensation of employees",{"$f":"SUMPRODUCT(($G$35:$G$68=$G6)*($J$35:$J$68))","v":0},{"$f":"SUMPRODUCT(($G$35:$G$68=$G6)*($M$35:$M$68))","v":0},{"$f":"SUMPRODUCT(($G$35:$G$68=$G6)*($P$35:$P$68))","v":0},{"$f":"SUM(H6:J6)","v":0},null,null,"CoE"]
[null,null,null,null,null,null,"Goods and services",{"$f":"SUMPRODUCT(($G$35:$G$68=$G7)*($J$35:$J$68))","v":0},{"$f":"SUMPRODUCT(($G$35:$G$68=$G7)*($M$35:$M$68))","v":0},{"$f":"SUMPRODUCT(($G$35:$G$68=$G7)*($P$35:$P$68))","v":0},0,null,null,"G&S"]
[null,null,null,null,null,null,"Transfers and subsidies",{"$f":"SUMPRODUCT(($G$35:$G$68=$G8)*($J$35:$J$68))","v":0},{"$f":"SUMPRODUCT(($G$35:$G$68=$G8)*($M$35:$M$68))","v":0},{"$f":"SUMPRODUCT(($G$35:$G$68=$G8)*($P$35:$P$68))","v":0},0,null,null,"T&S"]
[null,null,null,null,null,null,"Payments for capital assets",{"$f":"SUMPRODUCT(($G$35:$G$68=$G9)*($J$35:$J$68))","v":0},{"$f":"SUMPRODUCT(($G$35:$G$68=$G9)*($M$35:$M$68))","v":0},{"$f":"SUMPRODUCT(($G$35:$G$68=$G9)*($P$35:$P$68))","v":0},0,null,null,"Capital"]
[null,null,null,null,null,null,"Total",{"$f":"SUMPRODUCT(($G$35:$G$68=$G10)*($J$35:$J$68))","v":0},{"$f":"SUMPRODUCT(($G$35:$G$68=$G10)*($M$35:$M$68))","v":0},{"$f":"SUMPRODUCT(($G$35:$G$68=$G10)*($P$35:$P$68))","v":0},0,null,null,"Total"]
[null,null,null,null,null,null,"% of MTEF total",null,null,null,null,null,null,null,null,null,null,null,{"$f":"MyYear5","v":"2024/25"},{"$f":"MyYear6","v":"2025/26"},{"$f":"MyYear7","v":"2026/27"}]
[null,null,null,null,null,null,"Compensation of employees",{"$f":"IFERROR(H6/$K6,\"\")","v":""},"","",null,null,null,null,null,null,null,{"$f":"G12","v":"Compensation of employees"},{"$f":"IF(H12>0.0595,H12,\"\")","v":""},"",""]
[null,null,null,null,null,null,"Goods and services","","","",null,null,null,null,null,null,null,{"$f":"G13","v":"Goods and services"},"","",""]
[null,null,null,null,null,null,"Transfers and subsidies","","","",null,null,null,null,null,null,null,{"$f":"G14","v":"Transfers and subsidies"},"","",""]
[null,null,null,null,null,null,"Payments for capital assets","","","",null,null,null,null,null,null,null,{"$f":"G15","v":"Payments for capital assets"},"","",""]
[]
[null,null,null,null,null,null,"Division of Revenue",{"$f":"MyYear5","v":"2024/25"},{"$f":"MyYear6","v":"2025/26"},{"$f":"MyYear7","v":"2026/27"},"MTEF total","Trend"]
[null,null,null,null,null,null,"National",{"$f":"SUM(H19:H21)","v":0},0,0,{"$f":"SUM(H18:J18)","v":0}]
[{"$f":"$G$3","v":"Spending review topic 2"},"NAT",null,null,null,null,"National (excl. indirect grants)",{"$f":"SUMPRODUCT(((Dataset[DOR]=$B19))*Dataset[2024/25 From - Spending review Topic 2])+SUMPRODUCT(((Dataset[DOR]=$B19))*Dataset[2024/25 To - Spending review Topic 2])","v":0},{"$f":"SUMPRODUCT(((Dataset[DOR]=$B19))*Dataset[2025/26 From - Spending review Topic 2])+SUMPRODUCT(((Dataset[DOR]=$B19))*Dataset[2025/26 To - Spending review Topic 2])","v":0},{"$f":"SUMPRODUCT(((Dataset[DOR]=$B19))*Dataset[2026/27 From - Spending review Topic 2])+SUMPRODUCT(((Dataset[DOR]=$B19))*Dataset[2026/27 To - Spending review Topic 2])","v":0},0]
["Spending review topic 2","IGP",null,null,null,null,"Provincial indirect grants",{"$f":"SUMPRODUCT(((Dataset[DOR]=$B20))*Dataset[2024/25 From - Spending review Topic 2])+SUMPRODUCT(((Dataset[DOR]=$B20))*Dataset[2024/25 To - Spending review Topic 2])","v":0},{"$f":"SUMPRODUCT(((Dataset[DOR]=$B20))*Dataset[2025/26 From - Spending review Topic 2])+SUMPRODUCT(((Dataset[DOR]=$B20))*Dataset[2025/26 To - Spending review Topic 2])","v":0},{"$f":"SUMPRODUCT(((Dataset[DOR]=$B20))*Dataset[2026/27 From - Spending review Topic 2])+SUMPRODUCT(((Dataset[DOR]=$B20))*Dataset[2026/27 To - Spending review Topic 2])","v":0},0]
["Spending review topic 2","IGM",null,null,null,null,"Local indirect grants",{"$f":"SUMPRODUCT(((Dataset[DOR]=$B21))*Dataset[2024/25 From - Spending review Topic 2])+SUMPRODUCT(((Dataset[DOR]=$B21))*Dataset[2024/25 To - Spending review Topic 2])","v":0},{"$f":"SUMPRODUCT(((Dataset[DOR]=$B21))*Dataset[2025/26 From - Spending review Topic 2])+SUMPRODUCT(((Dataset[DOR]=$B21))*Dataset[2025/26 To - Spending review Topic 2])","v":0},{"$f":"SUMPRODUCT(((Dataset[DOR]=$B21))*Dataset[2026/27 From - Spending review Topic 2])+SUMPRODUCT(((Dataset[DOR]=$B21))*Dataset[2026/27 To - Spending review Topic 2])","v":0},0]
["Spending review topic 2",null,null,null,null,null,"Provincial",{"$f":"SUMPRODUCT(((Dataset[DOR]=$B22))*Dataset[2024/25 From - Spending review Topic 2])+SUMPRODUCT(((Dataset[DOR]=$B22))*Dataset[2024/25 To - Spending review Topic 2])","v":0},{"$f":"SUMPRODUCT(((Dataset[DOR]=$B22))*Dataset[2025/26 From - Spending review Topic 2])+SUMPRODUCT(((Dataset[DOR]=$B22))*Dataset[2025/26 To - Spending review Topic 2])","v":0},{"$f":"SUMPRODUCT(((Dataset[DOR]=$B22))*Dataset[2026/27 From - Spending review Topic 2])+SUMPRODUCT(((Dataset[DOR]=$B22))*Dataset[2026/27 To - Spending review Topic 2])","v":0},0]
["Spending review topic 2","PES",null,null,null,null,"Provincial equitable share",{"$f":"SUMPRODUCT(((Dataset[DOR]=$B23))*Dataset[2024/25 From - Spending review Topic 2])+SUMPRODUCT(((Dataset[DOR]=$B23))*Dataset[2024/25 To - Spending review Topic 2])","v":0},{"$f":"SUMPRODUCT(((Dataset[DOR]=$B23))*Dataset[2025/26 From - Spending review Topic 2])+SUMPRODUCT(((Dataset[DOR]=$B23))*Dataset[2025/26 To - Spending review Topic 2])","v":0},{"$f":"SUMPRODUCT(((Dataset[DOR]=$B23))*Dataset[2026/27 From - Spending review Topic 2])+SUMPRODUCT(((Dataset[DOR]=$B23))*Dataset[2026/27 To - Spending review Topic 2])","v":0},0]
["Spending review topic 2","PCG",null,null,null,null,"Provincial conditional grants",{"$f":"SUMPRODUCT(((Dataset[DOR]=$B24))*Dataset[2024/25 From - Spending review Topic 2])+SUMPRODUCT(((Dataset[DOR]=$B24))*Dataset[2024/25 To - Spending review Topic 2])","v":0},{"$f":"SUMPRODUCT(((Dataset[DOR]=$B24))*Dataset[2025/26 From - Spending review Topic 2])+SUMPRODUCT(((Dataset[DOR]=$B24))*Dataset[2025/26 To - Spending review Topic 2])","v":0},{"$f":"SUMPRODUCT(((Dataset[DOR]=$B24))*Dataset[2026/27 From - Spending review Topic 2])+SUMPRODUCT(((Dataset[DOR]=$B24))*Dataset[2026/27 To - Spending review Topic 2])","v":0},0]
["Spending review topic 2",null,null,null,null,null,"Local government",{"$f":"SUMPRODUCT(((Dataset[DOR]=$B25))*Dataset[2024/25 From - Spending review Topic 2])+SUMPRODUCT(((Dataset[DOR]=$B25))*Dataset[2024/25 To - Spending review Topic 2])","v":0},{"$f":"SUMPRODUCT(((Dataset[DOR]=$B25))*Dataset[2025/26 From - Spending review Topic 2])+SUMPRODUCT(((Dataset[DOR]=$B25))*Dataset[2025/26 To - Spending review Topic 2])","v":0},{"$f":"SUMPRODUCT(((Dataset[DOR]=$B25))*Dataset[2026/27 From - Spending review Topic 2])+SUMPRODUCT(((Dataset[DOR]=$B25))*Dataset[2026/27 To - Spending review Topic 2])","v":0},0]
["Spending review topic 2","LES",null,null,null,null,"Local equitable share",{"$f":"SUMPRODUCT(((Dataset[DOR]=$B26))*Dataset[2024/25 From - Spending review Topic 2])+SUMPRODUCT(((Dataset[DOR]=$B26))*Dataset[2024/25 To - Spending review Topic 2])","v":0},{"$f":"SUMPRODUCT(((Dataset[DOR]=$B26))*Dataset[2025/26 From - Spending review Topic 2])+SUMPRODUCT(((Dataset[DOR]=$B26))*Dataset[2025/26 To - Spending review Topic 2])","v":0},{"$f":"SUMPRODUCT(((Dataset[DOR]=$B26))*Dataset[2026/27 From - Spending review Topic 2])+SUMPRODUCT(((Dataset[DOR]=$B26))*Dataset[2026/27 To - Spending review Topic 2])","v":0},0]
["Spending review topic 2","LCG",null,null,null,null,"Local conditional grants",{"$f":"SUMPRODUCT(((Dataset[DOR]=$B27))*Dataset[2024/25 From - Spending review Topic 2])+SUMPRODUCT(((Dataset[DOR]=$B27))*Dataset[2024/25 To - Spending review Topic 2])","v":0},{"$f":"SUMPRODUCT(((Dataset[DOR]=$B27))*Dataset[2025/26 From - Spending review Topic 2])+SUMPRODUCT(((Dataset[DOR]=$B27))*Dataset[2025/26 To - Spending review Topic 2])","v":0},{"$f":"SUMPRODUCT(((Dataset[DOR]=$B27))*Dataset[2026/27 From - Spending review Topic 2])+SUMPRODUCT(((Dataset[DOR]=$B27))*Dataset[2026/27 To - Spending review Topic 2])","v":0},0]
["Spending review topic 2","GFL",null,null,null,null,"General fuel levy ",{"$f":"SUMPRODUCT(((Dataset[DOR]=$B28))*Dataset[2024/25 From - Spending review Topic 2])+SUMPRODUCT(((Dataset[DOR]=$B28))*Dataset[2024/25 To - Spending review Topic 2])","v":0},{"$f":"SUMPRODUCT(((Dataset[DOR]=$B28))*Dataset[2025/26 From - Spending review Topic 2])+SUMPRODUCT(((Dataset[DOR]=$B28))*Dataset[2025/26 To - Spending review Topic 2])","v":0},{"$f":"SUMPRODUCT(((Dataset[DOR]=$B28))*Dataset[2026/27 From - Spending review Topic 2])+SUMPRODUCT(((Dataset[DOR]=$B28))*Dataset[2026/27 To - Spending review Topic 2])","v":0},0]
[]
[]
[null,null,null,null,null,null,{"$f":"G3","v":"Spending review topic 2"}]
[{"$f":"$G$3","v":"Spending review topic 2"},0,null,null,null,null,null,{"$f":"MyYear5","v":"2024/25"},null,null,{"$f":"MyYear6","v":"2025/26"},null,null,{"$f":"MyYear7","v":"2026/27"},null,null,"Total over MTEF"]
[{"$f":"$G$3","v":"Spending review topic 2"},0,null,null,null,null,"Rand thousand","From","To","Total change","From","To","Total change","From","To","Total change","From","To","Total change"]
["Spending review topic 2",0,null,null,null,null,"Economic classification"]
["Spending review topic 2",0,null,null,null,null,"Current payments",{"$f":"SUM(H36:H38)","v":0},0,0,0,0,0,0,0,0,0,0,0]
["Spending review topic 2",0,null,null,null,null,"Compensation of employees",{"$f":"SUMPRODUCT(((Dataset[Econ3]=$G36))*Dataset[2024/25 From - Spending review Topic 2]*$B$3)","v":0},{"$f":"SUMPRODUCT(((Dataset[Econ3]=$G36))*Dataset[2024/25 To - Spending review Topic 2]*$B$3)","v":0},{"$f":"H36+I36","v":0},{"$f":"SUMPRODUCT(((Dataset[Econ3]=$G36))*Dataset[2025/26 From - Spending review Topic 2]*$B$3)","v":0},{"$f":"SUMPRODUCT(((Dataset[Econ3]=$G36))*Dataset[2025/26 To - Spending review Topic 2]*$B$3)","v":0},{"$f":"K36+L36","v":0},{"$f":"SUMPRODUCT(((Dataset[Econ3]=$G36))*Dataset[2026/27 From - Spending review Topic 2]*$B$3)","v":0},{"$f":"SUMPRODUCT(((Dataset[Econ3]=$G36))*Dataset[2026/27 To - Spending review Topic 2]*$B$3)","v":0},{"$f":"N36+O36","v":0},{"$f":"SUM(H36,K36,N36)","v":0},0,0]
["Spending review topic 2",0,null,null,null,null,"Goods and services",{"$f":"SUMPRODUCT(((Dataset[Econ3]=$G37))*Dataset[2024/25 From - Spending review Topic 2]*$B$3)","v":0},{"$f":"SUMPRODUCT(((Dataset[Econ3]=$G37))*Dataset[2024/25 To - Spending review Topic 2]*$B$3)","v":0},0,{"$f":"SUMPRODUCT(((Dataset[Econ3]=$G37))*Dataset[2025/26 From - Spending review Topic 2]*$B$3)","v":0},{"$f":"SUMPRODUCT(((Dataset[Econ3]=$G37))*Dataset[2025/26 To - Spending review Topic 2]*$B$3)","v":0},0,{"$f":"SUMPRODUCT(((Dataset[Econ3]=$G37))*Dataset[2026/27 From - Spending review Topic 2]*$B$3)","v":0},{"$f":"SUMPRODUCT(((Dataset[Econ3]=$G37))*Dataset[2026/27 To - Spending review Topic 2]*$B$3)","v":0},0,0,0,0]
["Spending review topic 2",0,null,null,null,null,"Interest and rent on land",{"$f":"SUMPRODUCT(((Dataset[Econ3]=$G38))*Dataset[2024/25 From - Spending review Topic 2]*$B$3)","v":0},{"$f":"SUMPRODUCT(((Dataset[Econ3]=$G38))*Dataset[2024/25 To - Spending review Topic 2]*$B$3)","v":0},0,{"$f":"SUMPRODUCT(((Dataset[Econ3]=$G38))*Dataset[2025/26 From - Spending review Topic 2]*$B$3)","v":0},{"$f":"SUMPRODUCT(((Dataset[Econ3]=$G38))*Dataset[2025/26 To - Spending review Topic 2]*$B$3)","v":0},0,{"$f":"SUMPRODUCT(((Dataset[Econ3]=$G38))*Dataset[2026/27 From - Spending review Topic 2]*$B$3)","v":0},{"$f":"SUMPRODUCT(((Dataset[Econ3]=$G38))*Dataset[2026/27 To - Spending review Topic 2]*$B$3)","v":0},0,0,0,0]
["Spending review topic 2",0,null,null,null,null,"Transfers and subsidies",{"$f":"SUM(H40,H43,H46:H48,H51:H52)","v":0},0,0,0,0,0,0,0,0,0,0,0]
["Spending review topic 2",0,null,null,null,null,"Provinces and municipalities",{"$f":"SUM(H41:H42)","v":0},0,0,0,0,0,0,0,0,0,0,0]
["Spending review topic 2",0,null,null,null,null,"Provinces",{"$f":"SUMPRODUCT(((Dataset[Econ4]=$G41))*Dataset[2024/25 From - Spending review Topic 2]*$B$3)","v":0},{"$f":"SUMPRODUCT(((Dataset[Econ4]=$G41))*Dataset[2024/25 To - Spending review Topic 2]*$B$3)","v":0},{"$f":"H41+I41","v":0},{"$f":"SUMPRODUCT(((Dataset[Econ4]=$G41))*Dataset[2025/26 From - Spending review Topic 2]*$B$3)","v":0},{"$f":"SUMPRODUCT(((Dataset[Econ4]=$G41))*Dataset[2025/26 To - Spending review Topic 2]*$B$3)","v":0},{"$f":"K41+L41","v":0},{"$f":"SUMPRODUCT(((Dataset[Econ4]=$G41))*Dataset[2026/27 From - Spending review Topic 2]*$B$3)","v":0},{"$f":"SUMPRODUCT(((Dataset[Econ4]=$G41))*Dataset[2026/27 To - Spending review Topic 2]*$B$3)","v":0},{"$f":"N41+O41","v":0},{"$f":"SUM(H41,K41,N41)","v":0},0,0]
["Spending review topic 2",0,null,null,null,null,"Municipalities",{"$f":"SUMPRODUCT(((Dataset[Econ4]=$G42))*Dataset[2024/25 From - Spending review Topic 2]*$B$3)","v":0},{"$f":"SUMPRODUCT(((Dataset[Econ4]=$G42))*Dataset[2024/25 To - Spending review Topic 2]*$B$3)","v":0},0,{"$f":"SUMPRODUCT(((Dataset[Econ4]=$G42))*Dataset[2025/26 From - Spending review Topic 2]*$B$3)","v":0},{"$f":"SUMPRODUCT(((Dataset[Econ4]=$G42))*Dataset[2025/26 To - Spending review Topic 2]*$B$3)","v":0},0,{"$f":"SUMPRODUCT(((Dataset[Econ4]=$G42))*Dataset[2026/27 From - Spending review Topic 2]*$B$3)","v":0},{"$f":"SUMPRODUCT(((Dataset[Econ4]=$G42))*Dataset[2026/27 To - Spending review Topic 2]*$B$3)","v":0},0,0,0,0]
["Spending review topic 2",0,null,null,null,null,"Departmental agencies and accounts",{"$f":"SUM(H44:H45)","v":0},0,0,0,0,0,0,0,0,0,0,0]
["Spending review topic 2",0,null,null,null,null,"Social security funds",{"$f":"SUMPRODUCT(((Dataset[Econ4]=$G44))*Dataset[2024/25 From - Spending review Topic 2]*$B$3)","v":0},{"$f":"SUMPRODUCT(((Dataset[Econ4]=$G44))*Dataset[2024/25 To - Spending review Topic 2]*$B$3)","v":0},{"$f":"H44+I44","v":0},{"$f":"SUMPRODUCT(((Dataset[Econ4]=$G44))*Dataset[2025/26 From - Spending review Topic 2]*$B$3)","v":0},{"$f":"SUMPRODUCT(((Dataset[Econ4]=$G44))*Dataset[2025/26 To - Spending review Topic 2]*$B$3)","v":0},{"$f":"K44+L44","v":0},{"$f":"SUMPRODUCT(((Dataset[Econ4]=$G44))*Dataset[2026/27 From - Spending review Topic 2]*$B$3)","v":0},{"$f":"SUMPRODUCT(((Dataset[Econ4]=$G44))*Dataset[2026/27 To - Spending review Topic 2]*$B$3)","v":0},{"$f":"N44+O44","v":0},{"$f":"SUM(H44,K44,N44)","v":0},0,0]
["Spending review topic 2",0,null,null,null,null,"Departmental agencies (non-business entities)",{"$f":"SUMPRODUCT(((Dataset[Econ4]=$G45))*Dataset[2024/25 From - Spending review Topic 2]*$B$3)","v":0},{"$f":"SUMPRODUCT(((Dataset[Econ4]=$G45))*Dataset[2024/25 To - Spending review Topic 2]*$B$3)","v":0},0,{"$f":"SUMPRODUCT(((Dataset[Econ4]=$G45))*Dataset[2025/26 From - Spending review Topic 2]*$B$3)","v":0},{"$f":"SUMPRODUCT(((Dataset[Econ4]=$G45))*Dataset[2025/26 To - Spending review Topic 2]*$B$3)","v":0},0,{"$f":"SUMPRODUCT(((Dataset[Econ4]=$G45))*Dataset[2026/27 From - Spending review Topic 2]*$B$3)","v":0},{"$f":"SUMPRODUCT(((Dataset[Econ4]=$G45))*Dataset[2026/27 To - Spending review Topic 2]*$B$3)","v":0},0,0,0,0]
["Spending review topic 2",0,null,null,null,null,"Higher education institutions",{"$f":"SUMPRODUCT(((Dataset[Econ3]=$G46))*Dataset[2024/25 From - Spending review Topic 2]*$B$3)","v":0},{"$f":"SUMPRODUCT(((Dataset[Econ3]=$G46))*Dataset[2024/25 To - Spending review Topic 2]*$B$3)","v":0},0,{"$f":"SUMPRODUCT(((Dataset[Econ3]=$G46))*Dataset[2025/26 From - Spending review Topic 2]*$B$3)","v":0},{"$f":"SUMPRODUCT(((Dataset[Econ3]=$G46))*Dataset[2025/26 To - Spending review Topic 2]*$B$3)","v":0},0,{"$f":"SUMPRODUCT(((Dataset[Econ3]=$G46))*Dataset[2026/27 From - Spending review Topic 2]*$B$3)","v":0},{"$f":"SUMPRODUCT(((Dataset[Econ3]=$G46))*Dataset[2026/27 To - Spending review Topic 2]*$B$3)","v":0},0,0,0,0]
["Spending review topic 2",0,null,null,null,null,"Foreign governments and international organisations",{"$f":"SUMPRODUCT(((Dataset[Econ3]=$G47))*Dataset[2024/25 From - Spending review Topic 2]*$B$3)","v":0},{"$f":"SUMPRODUCT(((Dataset[Econ3]=$G47))*Dataset[2024/25 To - Spending review Topic 2]*$B$3)","v":0},0,{"$f":"SUMPRODUCT(((Dataset[Econ3]=$G47))*Dataset[2025/26 From - Spending review Topic 2]*$B$3)","v":0},{"$f":"SUMPRODUCT(((Dataset[Econ3]=$G47))*Dataset[2025/26 To - Spending review Topic 2]*$B$3)","v":0},0,{"$f":"SUMPRODUCT(((Dataset[Econ3]=$G47))*Dataset[2026/27 From - Spending review Topic 2]*$B$3)","v":0},{"$f":"SUMPRODUCT(((Dataset[Econ3]=$G47))*Dataset[2026/27 To - Spending review Topic 2]*$B$3)","v":0},0,0,0,0]
["Spending review topic 2",0,null,null,null,null,"Public corporations and private enterprises",{"$f":"SUM(H49:H50)","v":0},0,0,0,0,0,0,0,0,0,0,0]
["Spending review topic 2",0,null,null,null,null,"Public corporations",{"$f":"SUMPRODUCT(((Dataset[Econ4]=$G49))*Dataset[2024/25 From - Spending review Topic 2]*$B$3)","v":0},{"$f":"SUMPRODUCT(((Dataset[Econ4]=$G49))*Dataset[2024/25 To - Spending review Topic 2]*$B$3)","v":0},{"$f":"H49+I49","v":0},{"$f":"SUMPRODUCT(((Dataset[Econ4]=$G49))*Dataset[2025/26 From - Spending review Topic 2]*$B$3)","v":0},{"$f":"SUMPRODUCT(((Dataset[Econ4]=$G49))*Dataset[2025/26 To - Spending review Topic 2]*$B$3)","v":0},{"$f":"K49+L49","v":0},{"$f":"SUMPRODUCT(((Dataset[Econ4]=$G49))*Dataset[2026/27 From - Spending review Topic 2]*$B$3)","v":0},{"$f":"SUMPRODUCT(((Dataset[Econ4]=$G49))*Dataset[2026/27 To - Spending review Topic 2]*$B$3)","v":0},{"$f":"N49+O49","v":0},{"$f":"SUM(H49,K49,N49)","v":0},0,0]
["Spending review topic 2",0,null,null,null,null,"Private enterprises",{"$f":"SUMPRODUCT(((Dataset[Econ4]=$G50))*Dataset[2024/25 From - Spending review Topic 2]*$B$3)","v":0},{"$f":"SUMPRODUCT(((Dataset[Econ4]=$G50))*Dataset[2024/25 To - Spending review Topic 2]*$B$3)","v":0},0,{"$f":"SUMPRODUCT(((Dataset[Econ4]=$G50))*Dataset[2025/26 From - Spending review Topic 2]*$B$3)","v":0},{"$f":"SUMPRODUCT(((Dataset[Econ4]=$G50))*Dataset[2025/26 To - Spending review Topic 2]*$B$3)","v":0},0,{"$f":"SUMPRODUCT(((Dataset[Econ4]=$G50))*Dataset[2026/27 From - Spending review Topic 2]*$B$3)","v":0},{"$f":"SUMPRODUCT(((Dataset[Econ4]=$G50))*Dataset[2026/27 To - Spending review Topic 2]*$B$3)","v":0},0,0,0,0]
["Spending review topic 2",0,null,null,null,null,"Non-profit institutions",{"$f":"SUMPRODUCT(((Dataset[Econ3]=$G51))*Dataset[2024/25 From - Spending review Topic 2]*$B$3)","v":0},{"$f":"SUMPRODUCT(((Dataset[Econ3]=$G51))*Dataset[2024/25 To - Spending review Topic 2]*$B$3)","v":0},0,{"$f":"SUMPRODUCT(((Dataset[Econ3]=$G51))*Dataset[2025/26 From - Spending review Topic 2]*$B$3)","v":0},{"$f":"SUMPRODUCT(((Dataset[Econ3]=$G51))*Dataset[2025/26 To - Spending review Topic 2]*$B$3)","v":0},0,{"$f":"SUMPRODUCT(((Dataset[Econ3]=$G51))*Dataset[2026/27 From - Spending review Topic 2]*$B$3)","v":0},{"$f":"SUMPRODUCT(((Dataset[Econ3]=$G51))*Dataset[2026/27 To - Spending review Topic 2]*$B$3)","v":0},0,0,0,0]
["Spending review topic 2",0,null,null,null,null,"Households",{"$f":"SUM(H53:H54)","v":0},0,0,0,0,0,0,0,0,0,0,0]
["Spending review topic 2",0,null,null,null,null,"Social benefits",{"$f":"SUMPRODUCT(((Dataset[Econ4]=$G53))*Dataset[2024/25 From - Spending review Topic 2]*$B$3)","v":0},{"$f":"SUMPRODUCT(((Dataset[Econ4]=$G53))*Dataset[2024/25 To - Spending review Topic 2]*$B$3)","v":0},{"$f":"H53+I53","v":0},{"$f":"SUMPRODUCT(((Dataset[Econ4]=$G53))*Dataset[2025/26 From - Spending review Topic 2]*$B$3)","v":0},{"$f":"SUMPRODUCT(((Dataset[Econ4]=$G53))*Dataset[2025/26 To - Spending review Topic 2]*$B$3)","v":0},{"$f":"K53+L53","v":0},{"$f":"SUMPRODUCT(((Dataset[Econ4]=$G53))*Dataset[2026/27 From - Spending review Topic 2]*$B$3)","v":0},{"$f":"SUMPRODUCT(((Dataset[Econ4]=$G53))*Dataset[2026/27 To - Spending review Topic 2]*$B$3)","v":0},{"$f":"N53+O53","v":0},{"$f":"SUM(H53,K53,N53)","v":0},0,0]
["Spending review topic 2",0,null,null,null,null,"Other transfers to households",{"$f":"SUMPRODUCT(((Dataset[Econ4]=$G54))*Dataset[2024/25 From - Spending review Topic 2]*$B$3)","v":0},{"$f":"SUMPRODUCT(((Dataset[Econ4]=$G54))*Dataset[2024/25 To - Spending review Topic 2]*$B$3)","v":0},0,{"$f":"SUMPRODUCT(((Dataset[Econ4]=$G54))*Dataset[2025/26 From - Spending review Topic 2]*$B$3)","v":0},{"$f":"SUMPRODUCT(((Dataset[Econ4]=$G54))*Dataset[2025/26 To - Spending review Topic 2]*$B$3)","v":0},0,{"$f":"SUMPRODUCT(((Dataset[Econ4]=$G54))*Dataset[2026/27 From - Spending review Topic 2]*$B$3)","v":0},{"$f":"SUMPRODUCT(((Dataset[Econ4]=$G54))*Dataset[2026/27 To - Spending review Topic 2]*$B$3)","v":0},0,0,0,0]
["Spending review topic 2",0,null,null,null,null,"Payments for capital assets",{"$f":"SUM(H56,H59,H62:H66)","v":0},0,0,0,0,0,0,0,0,0,0,0]
["Spending review topic 2",0,null,null,null,null,"Buildings and other fixed structures",{"$f":"SUM(H57:H58)","v":0},0,0,0,0,0,0,0,0,0,0,0]
["Spending review topic 2",0,null,null,null,null,"Buildings",{"$f":"SUMPRODUCT(((Dataset[Econ4]=$G57))*Dataset[2024/25 From - Spending review Topic 2]*$B$3)","v":0},{"$f":"SUMPRODUCT(((Dataset[Econ4]=$G57))*Dataset[2024/25 To - Spending review Topic 2]*$B$3)","v":0},{"$f":"H57+I57","v":0},{"$f":"SUMPRODUCT(((Dataset[Econ4]=$G57))*Dataset[2025/26 From - Spending review Topic 2]*$B$3)","v":0},{"$f":"SUMPRODUCT(((Dataset[Econ4]=$G57))*Dataset[2025/26 To - Spending review Topic 2]*$B$3)","v":0},{"$f":"K57+L57","v":0},{"$f":"SUMPRODUCT(((Dataset[Econ4]=$G57))*Dataset[2026/27 From - Spending review Topic 2]*$B$3)","v":0},{"$f":"SUMPRODUCT(((Dataset[Econ4]=$G57))*Dataset[2026/27 To - Spending review Topic 2]*$B$3)","v":0},{"$f":"N57+O57","v":0},{"$f":"SUM(H57,K57,N57)","v":0},0,0]
["Spending review topic 2",0,null,null,null,null,"Other fixed structures",{"$f":"SUMPRODUCT(((Dataset[Econ4]=$G58))*Dataset[2024/25 From - Spending review Topic 2]*$B$3)","v":0},{"$f":"SUMPRODUCT(((Dataset[Econ4]=$G58))*Dataset[2024/25 To - Spending review Topic 2]*$B$3)","v":0},0,{"$f":"SUMPRODUCT(((Dataset[Econ4]=$G58))*Dataset[2025/26 From - Spending review Topic 2]*$B$3)","v":0},{"$f":"SUMPRODUCT(((Dataset[Econ4]=$G58))*Dataset[2025/26 To - Spending review Topic 2]*$B$3)","v":0},0,{"$f":"SUMPRODUCT(((Dataset[Econ4]=$G58))*Dataset[2026/27 From - Spending review Topic 2]*$B$3)","v":0},{"$f":"SUMPRODUCT(((Dataset[Econ4]=$G58))*Dataset[2026/27 To - Spending review Topic 2]*$B$3)","v":0},0,0,0,0]
["Spending review topic 2",0,null,null,null,null,"Machinery and equipment",{"$f":"SUM(H60:H61)","v":0},0,0,0,0,0,0,0,0,0,0,0]
["Spending review topic 2",0,null,null,null,null,"Transport equipment",{"$f":"SUMPRODUCT(((Dataset[Econ4]=$G60))*Dataset[2024/25 From - Spending review Topic 2]*$B$3)","v":0},{"$f":"SUMPRODUCT(((Dataset[Econ4]=$G60))*Dataset[2024/25 To - Spending review Topic 2]*$B$3)","v":0},{"$f":"H60+I60","v":0},{"$f":"SUMPRODUCT(((Dataset[Econ4]=$G60))*Dataset[2025/26 From - Spending review Topic 2]*$B$3)","v":0},{"$f":"SUMPRODUCT(((Dataset[Econ4]=$G60))*Dataset[2025/26 To - Spending review Topic 2]*$B$3)","v":0},{"$f":"K60+L60","v":0},{"$f":"SUMPRODUCT(((Dataset[Econ4]=$G60))*Dataset[2026/27 From - Spending review Topic 2]*$B$3)","v":0},{"$f":"SUMPRODUCT(((Dataset[Econ4]=$G60))*Dataset[2026/27 To - Spending review Topic 2]*$B$3)","v":0},{"$f":"N60+O60","v":0},{"$f":"SUM(H60,K60,N60)","v":0},0,0]
["Spending review topic 2",0,null,null,null,null,"Other machinery and equipment",{"$f":"SUMPRODUCT(((Dataset[Econ4]=$G61))*Dataset[2024/25 From - Spending review Topic 2]*$B$3)","v":0},{"$f":"SUMPRODUCT(((Dataset[Econ4]=$G61))*Dataset[2024/25 To - Spending review Topic 2]*$B$3)","v":0},0,{"$f":"SUMPRODUCT(((Dataset[Econ4]=$G61))*Dataset[2025/26 From - Spending review Topic 2]*$B$3)","v":0},{"$f":"SUMPRODUCT(((Dataset[Econ4]=$G61))*Dataset[2025/26 To - Spending review Topic 2]*$B$3)","v":0},0,{"$f":"SUMPRODUCT(((Dataset[Econ4]=$G61))*Dataset[2026/27 From - Spending review Topic 2]*$B$3)","v":0},{"$f":"SUMPRODUCT(((Dataset[Econ4]=$G61))*Dataset[2026/27 To - Spending review Topic 2]*$B$3)","v":0},0,0,0,0]
["Spending review topic 2",0,null,null,null,null,"Heritage assets",{"$f":"SUMPRODUCT(((Dataset[Econ3]=$G62))*Dataset[2024/25 From - Spending review Topic 2]*$B$3)","v":0},{"$f":"SUMPRODUCT(((Dataset[Econ3]=$G62))*Dataset[2024/25 To - Spending review Topic 2]*$B$3)","v":0},0,{"$f":"SUMPRODUCT(((Dataset[Econ3]=$G62))*Dataset[2025/26 From - Spending review Topic 2]*$B$3)","v":0},{"$f":"SUMPRODUCT(((Dataset[Econ3]=$G62))*Dataset[2025/26 To - Spending review Topic 2]*$B$3)","v":0},0,{"$f":"SUMPRODUCT(((Dataset[Econ3]=$G62))*Dataset[2026/27 From - Spending review Topic 2]*$B$3)","v":0},{"$f":"SUMPRODUCT(((Dataset[Econ3]=$G62))*Dataset[2026/27 To - Spending review Topic 2]*$B$3)","v":0},0,0,0,0]
["Spending review topic 2",0,null,null,null,null,"Specialised military assets",{"$f":"SUMPRODUCT(((Dataset[Econ3]=$G63))*Dataset[2024/25 From - Spending review Topic 2]*$B$3)","v":0},{"$f":"SUMPRODUCT(((Dataset[Econ3]=$G63))*Dataset[2024/25 To - Spending review Topic 2]*$B$3)","v":0},0,{"$f":"SUMPRODUCT(((Dataset[Econ3]=$G63))*Dataset[2025/26 From - Spending review Topic 2]*$B$3)","v":0},{"$f":"SUMPRODUCT(((Dataset[Econ3]=$G63))*Dataset[2025/26 To - Spending review Topic 2]*$B$3)","v":0},0,{"$f":"SUMPRODUCT(((Dataset[Econ3]=$G63))*Dataset[2026/27 From - Spending review Topic 2]*$B$3)","v":0},{"$f":"SUMPRODUCT(((Dataset[Econ3]=$G63))*Dataset[2026/27 To - Spending review Topic 2]*$B$3)","v":0},0,0,0,0]
["Spending review topic 2",0,null,null,null,null,"Biological assets",{"$f":"SUMPRODUCT(((Dataset[Econ3]=$G64))*Dataset[2024/25 From - Spending review Topic 2]*$B$3)","v":0},{"$f":"SUMPRODUCT(((Dataset[Econ3]=$G64))*Dataset[2024/25 To - Spending review Topic 2]*$B$3)","v":0},0,{"$f":"SUMPRODUCT(((Dataset[Econ3]=$G64))*Dataset[2025/26 From - Spending review Topic 2]*$B$3)","v":0},{"$f":"SUMPRODUCT(((Dataset[Econ3]=$G64))*Dataset[2025/26 To - Spending review Topic 2]*$B$3)","v":0},0,{"$f":"SUMPRODUCT(((Dataset[Econ3]=$G64))*Dataset[2026/27 From - Spending review Topic 2]*$B$3)","v":0},{"$f":"SUMPRODUCT(((Dataset[Econ3]=$G64))*Dataset[2026/27 To - Spending review Topic 2]*$B$3)","v":0},0,0,0,0]
["Spending review topic 2",0,null,null,null,null,"Land and sub-soil assets",{"$f":"SUMPRODUCT(((Dataset[Econ3]=$G65))*Dataset[2024/25 From - Spending review Topic 2]*$B$3)","v":0},{"$f":"SUMPRODUCT(((Dataset[Econ3]=$G65))*Dataset[2024/25 To - Spending review Topic 2]*$B$3)","v":0},0,{"$f":"SUMPRODUCT(((Dataset[Econ3]=$G65))*Dataset[2025/26 From - Spending review Topic 2]*$B$3)","v":0},{"$f":"SUMPRODUCT(((Dataset[Econ3]=$G65))*Dataset[2025/26 To - Spending review Topic 2]*$B$3)","v":0},0,{"$f":"SUMPRODUCT(((Dataset[Econ3]=$G65))*Dataset[2026/27 From - Spending review Topic 2]*$B$3)","v":0},{"$f":"SUMPRODUCT(((Dataset[Econ3]=$G65))*Dataset[2026/27 To - Spending review Topic 2]*$B$3)","v":0},0,0,0,0]
["Spending review topic 2",0,null,null,null,null,"Software and other intangible assets",{"$f":"SUMPRODUCT(((Dataset[Econ3]=$G66))*Dataset[2024/25 From - Spending review Topic 2]*$B$3)","v":0},{"$f":"SUMPRODUCT(((Dataset[Econ3]=$G66))*Dataset[2024/25 To - Spending review Topic 2]*$B$3)","v":0},0,{"$f":"SUMPRODUCT(((Dataset[Econ3]=$G66))*Dataset[2025/26 From - Spending review Topic 2]*$B$3)","v":0},{"$f":"SUMPRODUCT(((Dataset[Econ3]=$G66))*Dataset[2025/26 To - Spending review Topic 2]*$B$3)","v":0},0,{"$f":"SUMPRODUCT(((Dataset[Econ3]=$G66))*Dataset[2026/27 From - Spending review Topic 2]*$B$3)","v":0},{"$f":"SUMPRODUCT(((Dataset[Econ3]=$G66))*Dataset[2026/27 To - Spending review Topic 2]*$B$3)","v":0},0,0,0,0]
["Spending review topic 2",0,null,null,null,null,"Payments for financial assets",{"$f":"SUMPRODUCT(((Dataset[Econ3]=$G67))*Dataset[2024/25 From - Spending review Topic 2]*$B$3)","v":0},{"$f":"SUMPRODUCT(((Dataset[Econ3]=$G67))*Dataset[2024/25 To - Spending review Topic 2]*$B$3)","v":0},0,{"$f":"SUMPRODUCT(((Dataset[Econ3]=$G67))*Dataset[2025/26 From - Spending review Topic 2]*$B$3)","v":0},{"$f":"SUMPRODUCT(((Dataset[Econ3]=$G67))*Dataset[2025/26 To - Spending review Topic 2]*$B$3)","v":0},0,{"$f":"SUMPRODUCT(((Dataset[Econ3]=$G67))*Dataset[2026/27 From - Spending review Topic 2]*$B$3)","v":0},{"$f":"SUMPRODUCT(((Dataset[Econ3]=$G67))*Dataset[2026/27 To - Spending review Topic 2]*$B$3)","v":0},0,0,0,0]
["Spending review topic 2",0,null,null,null,null,"Total",{"$f":"SUM(H35,H39,H55,H67)","v":0},0,0,0,0,0,0,0,0,0,0,0]
[]
[]
[]
[]
[null,null,null,null,null,null,{"$f":"\"IMPACT OF ADJUSTMENTS: \" &UPPER($G$3)","v":"IMPACT OF ADJUSTMENTS: SPENDING REVIEW TOPIC 2"}]
[]
[null,null,null,null,null,1,"Impact of adjustments on expenditure"]
[{"$f":"$G$3","v":"Spending review topic 2"},5,null,null,null,null,null,{"$f":"MyYear4","v":"2023/24"},null,null,{"$f":"MyYear5","v":"2024/25"},null,null,{"$f":"MyYear6","v":"2025/26"},null,null,{"$f":"MyYear7","v":"2026/27"}]
["Spending review topic 2",5,null,null,null,null,null,"Current expenditure","Potential expenditure @ benchmark level","% Savings if benchmark is achieved","Original number","Change in expenditure","Saving as % of original number","Original number","Change in expenditure","Saving as % of original number","Original number","Change in expenditure","Saving as % of original number"]
["Spending review topic 2",5,null,null,null,null,"Total",null,null,{"$f":"IFERROR((H78-I78)/-H78,\"\")","v":""},null,null,{"$f":"IFERROR((K78-L78)/-K78,\"\")","v":""},null,null,{"$f":"IFERROR((N78-O78)/-N78,\"\")","v":""},null,null,{"$f":"IFERROR((Q78-R78)/-Q78,\"\")","v":""}]
[]
[]
[]
[]
[]
[null,null,null,null,null,2,"Summary of impact on service delivery/policy area due to adjustments"]
[{"$f":"$G$3","v":"Spending review topic 2"},1]
["Spending review topic 2",1]
["Spending review topic 2",1]
["Spending review topic 2",1]
["Spending review topic 2",1]
["Spending review topic 2",1]
["Spending review topic 2",1]
["Spending review topic 2",1]
["Spending review topic 2",1]
["Spending review topic 2",1]
["Spending review topic 2",1]
["Spending review topic 2",1]
["Spending review topic 2",1]
["Spending review topic 2",1]
["Spending review topic 2",1]
[]
[]
[]
[]
[]
[null,null,null,null,null,3,"Impact of adjustments on performance indicators"]
[{"$f":"$G$3","v":"Spending review topic 2"},2,null,null,null,null,null,{"$f":"MyYear4","v":"2023/24"},null,null,{"$f":"MyYear5","v":"2024/25"},null,null,{"$f":"MyYear6","v":"2025/26"},null,null,{"$f":"MyYear7","v":"2026/27"},null,null," Comment",null,null,null,null,"Related MTSF Priority"]
["Spending review topic 2",2,null,null,null,null,"Performance indicator","Current performance","Performance @ benchmark level","Change","Original target","Revised target","Change","Original target","Revised target","Change","Original target","Revised target","Change"]
["Spending review topic 2",2]
["Spending review topic 2",2]
["Spending review topic 2",2]
["Spending review topic 2",2]
["Spending review topic 2",2]
["Spending review topic 2",2]
["Spending review topic 2",2]
["Spending review topic 2",2]
["Spending review topic 2",2]
["Spending review topic 2",2]
["Spending review topic 2",2]
["Spending review topic 2",2]
["Spending review topic 2",2]
["Spending review topic 2",2]
["Spending review topic 2",2]
[]
[]
[]
[]
[]
[null,null,null,null,null,4,"Impact of adjustments on personnel headcount numbers"]
[{"$f":"$G$3","v":"Spending review topic 2"},4,null,null,null,null,null,{"$f":"MyYear4","v":"2023/24"},null,null,{"$f":"MyYear5","v":"2024/25"},null,null,{"$f":"MyYear6","v":"2025/26"},null,null,{"$f":"MyYear7","v":"2026/27"},null,null," Comment"]
["Spending review topic 2",4,null,null,null,null,"Salary level","Current number","Potential number if benchmark is achieved","Change in number","Original number","Revised number","Change in number","Original number","Revised number","Change in number","Original number","Revised number","Change in number"]
["Spending review topic 2",4,null,null,null,null,1,null,null,{"$f":"I131-H131","v":0},null,null,{"$f":"L131-K131","v":0},null,null,{"$f":"O131-N131","v":0},null,null,{"$f":"R131-Q131","v":0}]
["Spending review topic 2",4,null,null,null,null,2,null,null,0,null,null,0,null,null,0,null,null,0]
["Spending review topic 2",4,null,null,null,null,3,null,null,0,null,null,0,null,null,0,null,null,0]
["Spending review topic 2",4,null,null,null,null,4,null,null,0,null,null,0,null,null,0,null,null,0]
["Spending review topic 2",4,null,null,null,null,5,null,null,0,null,null,0,null,null,0,null,null,0]
["Spending review topic 2",4,null,null,null,null,6,null,null,0,null,null,0,null,null,0,null,null,0]
["Spending review topic 2",4,null,null,null,null,7,null,null,0,null,null,0,null,null,0,null,null,0]
["Spending review topic 2",4,null,null,null,null,8,null,null,0,null,null,0,null,null,0,null,null,0]
["Spending review topic 2",4,null,null,null,null,9,null,null,0,null,null,0,null,null,0,null,null,0]
["Spending review topic 2",4,null,null,null,null,10,null,null,0,null,null,0,null,null,0,null,null,0]
["Spending review topic 2",4,null,null,null,null,11,null,null,0,null,null,0,null,null,0,null,null,0]
["Spending review topic 2",4,null,null,null,null,12,null,null,0,null,null,0,null,null,0,null,null,0]
["Spending review topic 2",4,null,null,null,null,13,null,null,0,null,null,0,null,null,0,null,null,0]
["Spending review topic 2",4,null,null,null,null,14,null,null,0,null,null,0,null,null,0,null,null,0]
["Spending review topic 2",4,null,null,null,null,15,null,null,0,null,null,0,null,null,0,null,null,0]
["Spending review topic 2",4,null,null,null,null,16,null,null,0,null,null,0,null,null,0,null,null,0]
["Spending review topic 2",4,null,null,null,null,"Other",null,null,0,null,null,0,null,null,0,null,null,0]
["Spending review topic 2",4,null,null,null,null,"Other",null,null,0,null,null,0,null,null,0,null,null,0]
["Spending review topic 2",4,null,null,null,null,"Other",null,null,0,null,null,0,null,null,0,null,null,0]
["Spending review topic 2",4,null,null,null,null,"Other",null,null,0,null,null,0,null,null,0,null,null,0]
["Spending review topic 2",4,null,null,null,null,"Total",{"$f":"SUM(H131:H150)","v":0},0,0,{"$f":"SUM(K131:K150)","v":0},0,0,0,0,0,0,0,0]
[]
[]
[]
[]
[]
[null,null,null,null,null,5,"Impact of adjustments on infrastructure projects"]
[{"$f":"$G$3","v":"Spending review topic 2"},3,null,null,null,null,null,{"$f":"MyYear4","v":"2023/24"},null,null,{"$f":"MyYear5","v":"2024/25"},null,null,{"$f":"MyYear6","v":"2025/26"},null,null,{"$f":"MyYear7","v":"2026/27"},null,null," Comment"]
["Spending review topic 2",3,null,null,null,null,"Project name","Current number","Market or best in class benchmark","Change","Original amount","Revised amount","Change","Original amount","Revised amount","Change","Original amount","Revised amount","Change"]
["Spending review topic 2",3,null,null,null,null,null,null,null,{"$f":"I160-H160","v":0},null,null,{"$f":"L160-K160","v":0},null,null,{"$f":"O160-N160","v":0},null,null,{"$f":"R160-Q160","v":0}]
["Spending review topic 2",3,null,null,null,null,null,null,null,0,null,null,0,null,null,0,null,null,0]
["Spending review topic 2",3,null,null,null,null,null,null,null,0,null,null,0,null,null,0,null,null,0]
["Spending review topic 2",3,null,null,null,null,null,null,null,0,null,null,0,null,null,0,null,null,0]
["Spending review topic 2",3,null,null,null,null,null,null,null,0,null,null,0,null,null,0,null,null,0]
["Spending review topic 2",3,null,null,null,null,null,null,null,0,null,null,0,null,null,0,null,null,0]
["Spending review topic 2",3,null,null,null,null,null,null,null,0,null,null,0,null,null,0,null,null,0]
["Spending review topic 2",3,null,null,null,null,null,null,null,0,null,null,0,null,null,0,null,null,0]
["Spending review topic 2",3,null,null,null,null,null,null,null,0,null,null,0,null,null,0,null,null,0]
["Spending review topic 2",3,null,null,null,null,null,null,null,0,null,null,0,null,null,0,null,null,0]
["Spending review topic 2",3,null,null,null,null,null,null,null,0,null,null,0,null,null,0,null,null,0]
["Spending review topic 2",3,null,null,null,null,null,null,null,0,null,null,0,null,null,0,null,null,0]
["Spending review topic 2",3,null,null,null,null,null,null,null,0,null,null,0,null,null,0,null,null,0]
["Spending review topic 2",3,null,null,null,null,null,null,null,0,null,null,0,null,null,0,null,null,0]
["Spending review topic 2",3,null,null,null,null,null,null,null,0,null,null,0,null,null,0,null,null,0]
["Spending review topic 2",3,null,null,null,null,null,null,null,0,null,null,0,null,null,0,null,null,0]
["Spending review topic 2",3,null,null,null,null,null,null,null,0,null,null,0,null,null,0,null,null,0]
["Spending review topic 2",3,null,null,null,null,null,null,null,0,null,null,0,null,null,0,null,null,0]
["Spending review topic 2",3,null,null,null,null,null,null,null,0,null,null,0,null,null,0,null,null,0]
["Spending review topic 2",3,null,null,null,null,null,null,null,0,null,null,0,null,null,0,null,null,0]
["Spending review topic 2",3,null,null,null,null,null,null,null,0,null,null,0,null,null,0,null,null,0]
["Spending review topic 2",3,null,null,null,null,null,null,null,0,null,null,0,null,null,0,null,null,0]
["Spending review topic 2",3,null,null,null,null,null,null,null,0,null,null,0,null,null,0,null,null,0]
["Spending review topic 2",3,null,null,null,null,null,null,null,0,null,null,0,null,null,0,null,null,0]
["Spending review topic 2",3,null,null,null,null,null,null,null,0,null,null,0,null,null,0,null,null,0]
["Spending review topic 2",3,null,null,null,null,null,null,null,0,null,null,0,null,null,0,null,null,0]
["Spending review topic 2",3,null,null,null,null,null,null,null,0,null,null,0,null,null,0,null,null,0]
["Spending review topic 2",3,null,null,null,null,null,null,null,0,null,null,0,null,null,0,null,null,0]
["Spending review topic 2",3,null,null,null,null,null,null,null,0,null,null,0,null,null,0,null,null,0]
["Spending review topic 2",3,null,null,null,null,null,null,null,0,null,null,0,null,null,0,null,null,0]
["Spending review topic 2",3,null,null,null,null,null,null,null,0,null,null,0,null,null,0,null,null,0]
["Spending review topic 2",3,null,null,null,null,null,null,null,0,null,null,0,null,null,0,null,null,0]
["Spending review topic 2",3,null,null,null,null,null,null,null,0,null,null,0,null,null,0,null,null,0]
["Spending review topic 2",3,null,null,null,null,null,null,null,0,null,null,0,null,null,0,null,null,0]
["Spending review topic 2",3,null,null,null,null,null,null,null,0,null,null,0,null,null,0,null,null,0]
["Spending review topic 2",3,null,null,null,null,null,null,null,0,null,null,0,null,null,0,null,null,0]
["Spending review topic 2",3,null,null,null,null,null,null,null,0,null,null,0,null,null,0,null,null,0]
["Spending review topic 2",3,null,null,null,null,null,null,null,0,null,null,0,null,null,0,null,null,0]
["Spending review topic 2",3,null,null,null,null,null,null,null,0,null,null,0,null,null,0,null,null,0]
["Spending review topic 2",3,null,null,null,null,null,null,null,0,null,null,0,null,null,0,null,null,0]
["Spending review topic 2",3,null,null,null,null,null,null,null,0,null,null,0,null,null,0,null,null,0]
["Spending review topic 2",3,null,null,null,null,null,null,null,0,null,null,0,null,null,0,null,null,0]
["Spending review topic 2",3,null,null,null,null,null,null,null,0,null,null,0,null,null,0,null,null,0]
["Spending review topic 2",3,null,null,null,null,null,null,null,0,null,null,0,null,null,0,null,null,0]
["Spending review topic 2",3,null,null,null,null,null,null,null,0,null,null,0,null,null,0,null,null,0]
["Spending review topic 2",3,null,null,null,null,null,null,null,0,null,null,0,null,null,0,null,null,0]
["Spending review topic 2",3,null,null,null,null,null,null,null,0,null,null,0,null,null,0,null,null,0]
["Spending review topic 2",3,null,null,null,null,null,null,null,0,null,null,0,null,null,0,null,null,0]
["Spending review topic 2",3,null,null,null,null,null,null,null,0,null,null,0,null,null,0,null,null,0]
["Spending review topic 2",3,null,null,null,null,null,null,null,0,null,null,0,null,null,0,null,null,0]
["Spending review topic 2",3,null,null,null,null,"Total",{"$f":"SUM(H160:H209)","v":0},0,0,0,0,0,0,0,0,0,0,0]

{"sheet":"SRT3","index":13,"n_rows":210,"n_cols":25,"rows_kept":210,"cut":false,"hidden":false,"merged":[[72,6,72,18],[84,6,98,18],[105,19,105,23],[105,24,105,26],[106,19,106,23],[106,24,106,26],[107,19,107,23],[107,24,107,26],[108,19,108,23],[108,24,108,26],[109,19,109,23],[109,24,109,26],[110,19,110,23],[110,24,110,26],[111,19,111,23],[111,24,111,26],[112,19,112,23],[112,24,112,26],[113,19,113,23],[113,24,113,26],[114,19,114,23],[114,24,114,26],[115,19,115,23],[115,24,115,26],[116,19,116,23],[116,24,116,26],[117,19,117,23],[117,24,117,26],[118,19,118,23],[118,24,118,26],[119,19,119,23],[119,24,119,26],[120,19,120,23],[120,24,120,26],[121,19,121,23],[121,24,121,26],[165,19,165,23],[128,19,128,23],[129,19,129,23],[130,19,149,23],[157,19,157,23],[158,19,158,23],[159,19,159,23],[160,19,160,23],[161,19,161,23],[162,19,162,23],[163,19,163,23],[164,19,164,23],[177,19,177,23],[166,19,166,23],[167,19,167,23],[168,19,168,23],[169,19,169,23],[170,19,170,23],[171,19,171,23],[172,19,172,23],[173,19,173,23],[174,19,174,23],[175,19,175,23],[176,19,176,23],[189,19,189,23],[178,19,178,23],[179,19,179,23],[180,19,180,23],[181,19,181,23],[182,19,182,23],[183,19,183,23],[184,19,184,23],[185,19,185,23],[186,19,186,23],[187,19,187,23],[188,19,188,23],[201,19,201,23],[190,19,190,23],[191,19,191,23],[192,19,192,23],[193,19,193,23],[194,19,194,23],[195,19,195,23],[196,19,196,23],[197,19,197,23],[198,19,198,23],[199,19,199,23],[200,19,200,23],[208,19,208,23],[202,19,202,23],[203,19,203,23],[204,19,204,23],[205,19,205,23],[206,19,206,23],[207,19,207,23]]}
[]
[null,null,null,null,null,null,"Spending review topic…"]
[null,{"$f":"IF(G3=\"\",0,1)","v":1},null,null,null,3,{"$f":"SRTopic3","v":"Spending review topic 3"}]
[]
[null,null,null,null,null,null,"Quick view…(Total change)",{"$f":"MyYear5","v":"2024/25"},{"$f":"MyYear6","v":"2025/26"},{"$f":"MyYear7","v":"2026/27"},"MTEF total","Trend"]
[null,null,null,null,null,null,"Compensation of employees",{"$f":"SUMPRODUCT(($G$35:$G$68=$G6)*($J$35:$J$68))","v":0},{"$f":"SUMPRODUCT(($G$35:$G$68=$G6)*($M$35:$M$68))","v":0},{"$f":"SUMPRODUCT(($G$35:$G$68=$G6)*($P$35:$P$68))","v":0},{"$f":"SUM(H6:J6)","v":0},null,null,"CoE"]
[null,null,null,null,null,null,"Goods and services",{"$f":"SUMPRODUCT(($G$35:$G$68=$G7)*($J$35:$J$68))","v":0},{"$f":"SUMPRODUCT(($G$35:$G$68=$G7)*($M$35:$M$68))","v":0},{"$f":"SUMPRODUCT(($G$35:$G$68=$G7)*($P$35:$P$68))","v":0},0,null,null,"G&S"]
[null,null,null,null,null,null,"Transfers and subsidies",{"$f":"SUMPRODUCT(($G$35:$G$68=$G8)*($J$35:$J$68))","v":0},{"$f":"SUMPRODUCT(($G$35:$G$68=$G8)*($M$35:$M$68))","v":0},{"$f":"SUMPRODUCT(($G$35:$G$68=$G8)*($P$35:$P$68))","v":0},0,null,null,"T&S"]
[null,null,null,null,null,null,"Payments for capital assets",{"$f":"SUMPRODUCT(($G$35:$G$68=$G9)*($J$35:$J$68))","v":0},{"$f":"SUMPRODUCT(($G$35:$G$68=$G9)*($M$35:$M$68))","v":0},{"$f":"SUMPRODUCT(($G$35:$G$68=$G9)*($P$35:$P$68))","v":0},0,null,null,"Capital"]
[null,null,null,null,null,null,"Total",{"$f":"SUMPRODUCT(($G$35:$G$68=$G10)*($J$35:$J$68))","v":0},{"$f":"SUMPRODUCT(($G$35:$G$68=$G10)*($M$35:$M$68))","v":0},{"$f":"SUMPRODUCT(($G$35:$G$68=$G10)*($P$35:$P$68))","v":0},0,null,null,"Total"]
[null,null,null,null,null,null,"% of MTEF total",null,null,null,null,null,null,null,null,null,null,null,{"$f":"MyYear5","v":"2024/25"},{"$f":"MyYear6","v":"2025/26"},{"$f":"MyYear7","v":"2026/27"}]
[null,null,null,null,null,null,"Compensation of employees",{"$f":"IFERROR(H6/$K6,\"\")","v":""},"","",null,null,null,null,null,null,null,{"$f":"G12","v":"Compensation of employees"},{"$f":"IF(H12>0.0595,H12,\"\")","v":""},"",""]
[null,null,null,null,null,null,"Goods and services","","","",null,null,null,null,null,null,null,{"$f":"G13","v":"Goods and services"},"","",""]
[null,null,null,null,null,null,"Transfers and subsidies","","","",null,null,null,null,null,null,null,{"$f":"G14","v":"Transfers and subsidies"},"","",""]
[null,null,null,null,null,null,"Payments for capital assets","","","",null,null,null,null,null,null,null,{"$f":"G15","v":"Payments for capital assets"},"","",""]
[]
[null,null,null,null,null,null,"Division of Revenue",{"$f":"MyYear5","v":"2024/25"},{"$f":"MyYear6","v":"2025/26"},{"$f":"MyYear7","v":"2026/27"},"MTEF total","Trend"]
[null,null,null,null,null,null,"National",{"$f":"SUM(H19:H21)","v":0},0,0,{"$f":"SUM(H18:J18)","v":0}]
[{"$f":"$G$3","v":"Spending review topic 3"},"NAT",null,null,null,null,"National (excl. indirect grants)",{"$f":"SUMPRODUCT(((Dataset[DOR]=$B19))*Dataset[2024/25 From - Spending review Topic 3])+SUMPRODUCT(((Dataset[DOR]=$B19))*Dataset[2024/25 To - Spending review Topic 3])","v":0},{"$f":"SUMPRODUCT(((Dataset[DOR]=$B19))*Dataset[2025/26 From - Spending review Topic 3])+SUMPRODUCT(((Dataset[DOR]=$B19))*Dataset[2025/26 To - Spending review Topic 3])","v":0},{"$f":"SUMPRODUCT(((Dataset[DOR]=$B19))*Dataset[2026/27 From - Spending review Topic 3])+SUMPRODUCT(((Dataset[DOR]=$B19))*Dataset[2026/27 To - Spending review Topic 3])","v":0},0]
["Spending review topic 3","IGP",null,null,null,null,"Provincial indirect grants",{"$f":"SUMPRODUCT(((Dataset[DOR]=$B20))*Dataset[2024/25 From - Spending review Topic 3])+SUMPRODUCT(((Dataset[DOR]=$B20))*Dataset[2024/25 To - Spending review Topic 3])","v":0},{"$f":"SUMPRODUCT(((Dataset[DOR]=$B20))*Dataset[2025/26 From - Spending review Topic 3])+SUMPRODUCT(((Dataset[DOR]=$B20))*Dataset[2025/26 To - Spending review Topic 3])","v":0},{"$f":"SUMPRODUCT(((Dataset[DOR]=$B20))*Dataset[2026/27 From - Spending review Topic 3])+SUMPRODUCT(((Dataset[DOR]=$B20))*Dataset[2026/27 To - Spending review Topic 3])","v":0},0]
["Spending review topic 3","IGM",null,null,null,null,"Local indirect grants",{"$f":"SUMPRODUCT(((Dataset[DOR]=$B21))*Dataset[2024/25 From - Spending review Topic 3])+SUMPRODUCT(((Dataset[DOR]=$B21))*Dataset[2024/25 To - Spending review Topic 3])","v":0},{"$f":"SUMPRODUCT(((Dataset[DOR]=$B21))*Dataset[2025/26 From - Spending review Topic 3])+SUMPRODUCT(((Dataset[DOR]=$B21))*Dataset[2025/26 To - Spending review Topic 3])","v":0},{"$f":"SUMPRODUCT(((Dataset[DOR]=$B21))*Dataset[2026/27 From - Spending review Topic 3])+SUMPRODUCT(((Dataset[DOR]=$B21))*Dataset[2026/27 To - Spending review Topic 3])","v":0},0]
["Spending review topic 3",null,null,null,null,null,"Provincial",{"$f":"SUMPRODUCT(((Dataset[DOR]=$B22))*Dataset[2024/25 From - Spending review Topic 3])+SUMPRODUCT(((Dataset[DOR]=$B22))*Dataset[2024/25 To - Spending review Topic 3])","v":0},{"$f":"SUMPRODUCT(((Dataset[DOR]=$B22))*Dataset[2025/26 From - Spending review Topic 3])+SUMPRODUCT(((Dataset[DOR]=$B22))*Dataset[2025/26 To - Spending review Topic 3])","v":0},{"$f":"SUMPRODUCT(((Dataset[DOR]=$B22))*Dataset[2026/27 From - Spending review Topic 3])+SUMPRODUCT(((Dataset[DOR]=$B22))*Dataset[2026/27 To - Spending review Topic 3])","v":0},0]
["Spending review topic 3","PES",null,null,null,null,"Provincial equitable share",{"$f":"SUMPRODUCT(((Dataset[DOR]=$B23))*Dataset[2024/25 From - Spending review Topic 3])+SUMPRODUCT(((Dataset[DOR]=$B23))*Dataset[2024/25 To - Spending review Topic 3])","v":0},{"$f":"SUMPRODUCT(((Dataset[DOR]=$B23))*Dataset[2025/26 From - Spending review Topic 3])+SUMPRODUCT(((Dataset[DOR]=$B23))*Dataset[2025/26 To - Spending review Topic 3])","v":0},{"$f":"SUMPRODUCT(((Dataset[DOR]=$B23))*Dataset[2026/27 From - Spending review Topic 3])+SUMPRODUCT(((Dataset[DOR]=$B23))*Dataset[2026/27 To - Spending review Topic 3])","v":0},0]
["Spending review topic 3","PCG",null,null,null,null,"Provincial conditional grants",{"$f":"SUMPRODUCT(((Dataset[DOR]=$B24))*Dataset[2024/25 From - Spending review Topic 3])+SUMPRODUCT(((Dataset[DOR]=$B24))*Dataset[2024/25 To - Spending review Topic 3])","v":0},{"$f":"SUMPRODUCT(((Dataset[DOR]=$B24))*Dataset[2025/26 From - Spending review Topic 3])+SUMPRODUCT(((Dataset[DOR]=$B24))*Dataset[2025/26 To - Spending review Topic 3])","v":0},{"$f":"SUMPRODUCT(((Dataset[DOR]=$B24))*Dataset[2026/27 From - Spending review Topic 3])+SUMPRODUCT(((Dataset[DOR]=$B24))*Dataset[2026/27 To - Spending review Topic 3])","v":0},0]
["Spending review topic 3",null,null,null,null,null,"Local government",{"$f":"SUMPRODUCT(((Dataset[DOR]=$B25))*Dataset[2024/25 From - Spending review Topic 3])+SUMPRODUCT(((Dataset[DOR]=$B25))*Dataset[2024/25 To - Spending review Topic 3])","v":0},{"$f":"SUMPRODUCT(((Dataset[DOR]=$B25))*Dataset[2025/26 From - Spending review Topic 3])+SUMPRODUCT(((Dataset[DOR]=$B25))*Dataset[2025/26 To - Spending review Topic 3])","v":0},{"$f":"SUMPRODUCT(((Dataset[DOR]=$B25))*Dataset[2026/27 From - Spending review Topic 3])+SUMPRODUCT(((Dataset[DOR]=$B25))*Dataset[2026/27 To - Spending review Topic 3])","v":0},0]
["Spending review topic 3","LES",null,null,null,null,"Local equitable share",{"$f":"SUMPRODUCT(((Dataset[DOR]=$B26))*Dataset[2024/25 From - Spending review Topic 3])+SUMPRODUCT(((Dataset[DOR]=$B26))*Dataset[2024/25 To - Spending review Topic 3])","v":0},{"$f":"SUMPRODUCT(((Dataset[DOR]=$B26))*Dataset[2025/26 From - Spending review Topic 3])+SUMPRODUCT(((Dataset[DOR]=$B26))*Dataset[2025/26 To - Spending review Topic 3])","v":0},{"$f":"SUMPRODUCT(((Dataset[DOR]=$B26))*Dataset[2026/27 From - Spending review Topic 3])+SUMPRODUCT(((Dataset[DOR]=$B26))*Dataset[2026/27 To - Spending review Topic 3])","v":0},0]
["Spending review topic 3","LCG",null,null,null,null,"Local conditional grants",{"$f":"SUMPRODUCT(((Dataset[DOR]=$B27))*Dataset[2024/25 From - Spending review Topic 3])+SUMPRODUCT(((Dataset[DOR]=$B27))*Dataset[2024/25 To - Spending review Topic 3])","v":0},{"$f":"SUMPRODUCT(((Dataset[DOR]=$B27))*Dataset[2025/26 From - Spending review Topic 3])+SUMPRODUCT(((Dataset[DOR]=$B27))*Dataset[2025/26 To - Spending review Topic 3])","v":0},{"$f":"SUMPRODUCT(((Dataset[DOR]=$B27))*Dataset[2026/27 From - Spending review Topic 3])+SUMPRODUCT(((Dataset[DOR]=$B27))*Dataset[2026/27 To - Spending review Topic 3])","v":0},0]
["Spending review topic 3","GFL",null,null,null,null,"General fuel levy ",{"$f":"SUMPRODUCT(((Dataset[DOR]=$B28))*Dataset[2024/25 From - Spending review Topic 3])+SUMPRODUCT(((Dataset[DOR]=$B28))*Dataset[2024/25 To - Spending review Topic 3])","v":0},{"$f":"SUMPRODUCT(((Dataset[DOR]=$B28))*Dataset[2025/26 From - Spending review Topic 3])+SUMPRODUCT(((Dataset[DOR]=$B28))*Dataset[2025/26 To - Spending review Topic 3])","v":0},{"$f":"SUMPRODUCT(((Dataset[DOR]=$B28))*Dataset[2026/27 From - Spending review Topic 3])+SUMPRODUCT(((Dataset[DOR]=$B28))*Dataset[2026/27 To - Spending review Topic 3])","v":0},0]
[]
[]
[null,null,null,null,null,null,{"$f":"G3","v":"Spending review topic 3"}]
[{"$f":"$G$3","v":"Spending review topic 3"},0,null,null,null,null,null,{"$f":"MyYear5","v":"2024/25"},null,null,{"$f":"MyYear6","v":"2025/26"},null,null,{"$f":"MyYear7","v":"2026/27"},null,null,"Total over MTEF"]
[{"$f":"$G$3","v":"Spending review topic 3"},0,null,null,null,null,"Rand thousand","From","To","Total change","From","To","Total change","From","To","Total change","From","To","Total change"]
["Spending review topic 3",0,null,null,null,null,"Economic classification"]
["Spending review topic 3",0,null,null,null,null,"Current payments",{"$f":"SUM(H36:H38)","v":0},0,0,0,0,0,0,0,0,0,0,0]
["Spending review topic 3",0,null,null,null,null,"Compensation of employees",{"$f":"SUMPRODUCT(((Dataset[Econ3]=$G36))*Dataset[2024/25 From - Spending review Topic 3]*$B$3)","v":0},{"$f":"SUMPRODUCT(((Dataset[Econ3]=$G36))*Dataset[2024/25 To - Spending review Topic 3]*$B$3)","v":0},{"$f":"H36+I36","v":0},{"$f":"SUMPRODUCT(((Dataset[Econ3]=$G36))*Dataset[2025/26 From - Spending review Topic 3]*$B$3)","v":0},{"$f":"SUMPRODUCT(((Dataset[Econ3]=$G36))*Dataset[2025/26 To - Spending review Topic 3]*$B$3)","v":0},{"$f":"K36+L36","v":0},{"$f":"SUMPRODUCT(((Dataset[Econ3]=$G36))*Dataset[2026/27 From - Spending review Topic 3]*$B$3)","v":0},{"$f":"SUMPRODUCT(((Dataset[Econ3]=$G36))*Dataset[2026/27 To - Spending review Topic 3]*$B$3)","v":0},{"$f":"N36+O36","v":0},{"$f":"SUM(H36,K36,N36)","v":0},0,0]
["Spending review topic 3",0,null,null,null,null,"Goods and services",{"$f":"SUMPRODUCT(((Dataset[Econ3]=$G37))*Dataset[2024/25 From - Spending review Topic 3]*$B$3)","v":0},{"$f":"SUMPRODUCT(((Dataset[Econ3]=$G37))*Dataset[2024/25 To - Spending review Topic 3]*$B$3)","v":0},0,{"$f":"SUMPRODUCT(((Dataset[Econ3]=$G37))*Dataset[2025/26 From - Spending review Topic 3]*$B$3)","v":0},{"$f":"SUMPRODUCT(((Dataset[Econ3]=$G37))*Dataset[2025/26 To - Spending review Topic 3]*$B$3)","v":0},0,{"$f":"SUMPRODUCT(((Dataset[Econ3]=$G37))*Dataset[2026/27 From - Spending review Topic 3]*$B$3)","v":0},{"$f":"SUMPRODUCT(((Dataset[Econ3]=$G37))*Dataset[2026/27 To - Spending review Topic 3]*$B$3)","v":0},0,0,0,0]
["Spending review topic 3",0,null,null,null,null,"Interest and rent on land",{"$f":"SUMPRODUCT(((Dataset[Econ3]=$G38))*Dataset[2024/25 From - Spending review Topic 3]*$B$3)","v":0},{"$f":"SUMPRODUCT(((Dataset[Econ3]=$G38))*Dataset[2024/25 To - Spending review Topic 3]*$B$3)","v":0},0,{"$f":"SUMPRODUCT(((Dataset[Econ3]=$G38))*Dataset[2025/26 From - Spending review Topic 3]*$B$3)","v":0},{"$f":"SUMPRODUCT(((Dataset[Econ3]=$G38))*Dataset[2025/26 To - Spending review Topic 3]*$B$3)","v":0},0,{"$f":"SUMPRODUCT(((Dataset[Econ3]=$G38))*Dataset[2026/27 From - Spending review Topic 3]*$B$3)","v":0},{"$f":"SUMPRODUCT(((Dataset[Econ3]=$G38))*Dataset[2026/27 To - Spending review Topic 3]*$B$3)","v":0},0,0,0,0]
["Spending review topic 3",0,null,null,null,null,"Transfers and subsidies",{"$f":"SUM(H40,H43,H46:H48,H51:H52)","v":0},0,0,0,0,0,0,0,0,0,0,0]
["Spending review topic 3",0,null,null,null,null,"Provinces and municipalities",{"$f":"SUM(H41:H42)","v":0},0,0,0,0,0,0,0,0,0,0,0]
["Spending review topic 3",0,null,null,null,null,"Provinces",{"$f":"SUMPRODUCT(((Dataset[Econ4]=$G41))*Dataset[2024/25 From - Spending review Topic 3]*$B$3)","v":0},{"$f":"SUMPRODUCT(((Dataset[Econ4]=$G41))*Dataset[2024/25 To - Spending review Topic 3]*$B$3)","v":0},{"$f":"H41+I41","v":0},{"$f":"SUMPRODUCT(((Dataset[Econ4]=$G41))*Dataset[2025/26 From - Spending review Topic 3]*$B$3)","v":0},{"$f":"SUMPRODUCT(((Dataset[Econ4]=$G41))*Dataset[2025/26 To - Spending review Topic 3]*$B$3)","v":0},{"$f":"K41+L41","v":0},{"$f":"SUMPRODUCT(((Dataset[Econ4]=$G41))*Dataset[2026/27 From - Spending review Topic 3]*$B$3)","v":0},{"$f":"SUMPRODUCT(((Dataset[Econ4]=$G41))*Dataset[2026/27 To - Spending review Topic 3]*$B$3)","v":0},{"$f":"N41+O41","v":0},{"$f":"SUM(H41,K41,N41)","v":0},0,0]
["Spending review topic 3",0,null,null,null,null,"Municipalities",{"$f":"SUMPRODUCT(((Dataset[Econ4]=$G42))*Dataset[2024/25 From - Spending review Topic 3]*$B$3)","v":0},{"$f":"SUMPRODUCT(((Dataset[Econ4]=$G42))*Dataset[2024/25 To - Spending review Topic 3]*$B$3)","v":0},0,{"$f":"SUMPRODUCT(((Dataset[Econ4]=$G42))*Dataset[2025/26 From - Spending review Topic 3]*$B$3)","v":0},{"$f":"SUMPRODUCT(((Dataset[Econ4]=$G42))*Dataset[2025/26 To - Spending review Topic 3]*$B$3)","v":0},0,{"$f":"SUMPRODUCT(((Dataset[Econ4]=$G42))*Dataset[2026/27 From - Spending review Topic 3]*$B$3)","v":0},{"$f":"SUMPRODUCT(((Dataset[Econ4]=$G42))*Dataset[2026/27 To - Spending review Topic 3]*$B$3)","v":0},0,0,0,0]
["Spending review topic 3",0,null,null,null,null,"Departmental agencies and accounts",{"$f":"SUM(H44:H45)","v":0},0,0,0,0,0,0,0,0,0,0,0]
["Spending review topic 3",0,null,null,null,null,"Social security funds",{"$f":"SUMPRODUCT(((Dataset[Econ4]=$G44))*Dataset[2024/25 From - Spending review Topic 3]*$B$3)","v":0},{"$f":"SUMPRODUCT(((Dataset[Econ4]=$G44))*Dataset[2024/25 To - Spending review Topic 3]*$B$3)","v":0},{"$f":"H44+I44","v":0},{"$f":"SUMPRODUCT(((Dataset[Econ4]=$G44))*Dataset[2025/26 From - Spending review Topic 3]*$B$3)","v":0},{"$f":"SUMPRODUCT(((Dataset[Econ4]=$G44))*Dataset[2025/26 To - Spending review Topic 3]*$B$3)","v":0},{"$f":"K44+L44","v":0},{"$f":"SUMPRODUCT(((Dataset[Econ4]=$G44))*Dataset[2026/27 From - Spending review Topic 3]*$B$3)","v":0},{"$f":"SUMPRODUCT(((Dataset[Econ4]=$G44))*Dataset[2026/27 To - Spending review Topic 3]*$B$3)","v":0},{"$f":"N44+O44","v":0},{"$f":"SUM(H44,K44,N44)","v":0},0,0]
["Spending review topic 3",0,null,null,null,null,"Departmental agencies (non-business entities)",{"$f":"SUMPRODUCT(((Dataset[Econ4]=$G45))*Dataset[2024/25 From - Spending review Topic 3]*$B$3)","v":0},{"$f":"SUMPRODUCT(((Dataset[Econ4]=$G45))*Dataset[2024/25 To - Spending review Topic 3]*$B$3)","v":0},0,{"$f":"SUMPRODUCT(((Dataset[Econ4]=$G45))*Dataset[2025/26 From - Spending review Topic 3]*$B$3)","v":0},{"$f":"SUMPRODUCT(((Dataset[Econ4]=$G45))*Dataset[2025/26 To - Spending review Topic 3]*$B$3)","v":0},0,{"$f":"SUMPRODUCT(((Dataset[Econ4]=$G45))*Dataset[2026/27 From - Spending review Topic 3]*$B$3)","v":0},{"$f":"SUMPRODUCT(((Dataset[Econ4]=$G45))*Dataset[2026/27 To - Spending review Topic 3]*$B$3)","v":0},0,0,0,0]
["Spending review topic 3",0,null,null,null,null,"Higher education institutions",{"$f":"SUMPRODUCT(((Dataset[Econ3]=$G46))*Dataset[2024/25 From - Spending review Topic 3]*$B$3)","v":0},{"$f":"SUMPRODUCT(((Dataset[Econ3]=$G46))*Dataset[2024/25 To - Spending review Topic 3]*$B$3)","v":0},0,{"$f":"SUMPRODUCT(((Dataset[Econ3]=$G46))*Dataset[2025/26 From - Spending review Topic 3]*$B$3)","v":0},{"$f":"SUMPRODUCT(((Dataset[Econ3]=$G46))*Dataset[2025/26 To - Spending review Topic 3]*$B$3)","v":0},0,{"$f":"SUMPRODUCT(((Dataset[Econ3]=$G46))*Dataset[2026/27 From - Spending review Topic 3]*$B$3)","v":0},{"$f":"SUMPRODUCT(((Dataset[Econ3]=$G46))*Dataset[2026/27 To - Spending review Topic 3]*$B$3)","v":0},0,0,0,0]
["Spending review topic 3",0,null,null,null,null,"Foreign governments and international organisations",{"$f":"SUMPRODUCT(((Dataset[Econ3]=$G47))*Dataset[2024/25 From - Spending review Topic 3]*$B$3)","v":0},{"$f":"SUMPRODUCT(((Dataset[Econ3]=$G47))*Dataset[2024/25 To - Spending review Topic 3]*$B$3)","v":0},0,{"$f":"SUMPRODUCT(((Dataset[Econ3]=$G47))*Dataset[2025/26 From - Spending review Topic 3]*$B$3)","v":0},{"$f":"SUMPRODUCT(((Dataset[Econ3]=$G47))*Dataset[2025/26 To - Spending review Topic 3]*$B$3)","v":0},0,{"$f":"SUMPRODUCT(((Dataset[Econ3]=$G47))*Dataset[2026/27 From - Spending review Topic 3]*$B$3)","v":0},{"$f":"SUMPRODUCT(((Dataset[Econ3]=$G47))*Dataset[2026/27 To - Spending review Topic 3]*$B$3)","v":0},0,0,0,0]
["Spending review topic 3",0,null,null,null,null,"Public corporations and private enterprises",{"$f":"SUM(H49:H50)","v":0},0,0,0,0,0,0,0,0,0,0,0]
["Spending review topic 3",0,null,null,null,null,"Public corporations",{"$f":"SUMPRODUCT(((Dataset[Econ4]=$G49))*Dataset[2024/25 From - Spending review Topic 3]*$B$3)","v":0},{"$f":"SUMPRODUCT(((Dataset[Econ4]=$G49))*Dataset[2024/25 To - Spending review Topic 3]*$B$3)","v":0},{"$f":"H49+I49","v":0},{"$f":"SUMPRODUCT(((Dataset[Econ4]=$G49))*Dataset[2025/26 From - Spending review Topic 3]*$B$3)","v":0},{"$f":"SUMPRODUCT(((Dataset[Econ4]=$G49))*Dataset[2025/26 To - Spending review Topic 3]*$B$3)","v":0},{"$f":"K49+L49","v":0},{"$f":"SUMPRODUCT(((Dataset[Econ4]=$G49))*Dataset[2026/27 From - Spending review Topic 3]*$B$3)","v":0},{"$f":"SUMPRODUCT(((Dataset[Econ4]=$G49))*Dataset[2026/27 To - Spending review Topic 3]*$B$3)","v":0},{"$f":"N49+O49","v":0},{"$f":"SUM(H49,K49,N49)","v":0},0,0]
["Spending review topic 3",0,null,null,null,null,"Private enterprises",{"$f":"SUMPRODUCT(((Dataset[Econ4]=$G50))*Dataset[2024/25 From - Spending review Topic 3]*$B$3)","v":0},{"$f":"SUMPRODUCT(((Dataset[Econ4]=$G50))*Dataset[2024/25 To - Spending review Topic 3]*$B$3)","v":0},0,{"$f":"SUMPRODUCT(((Dataset[Econ4]=$G50))*Dataset[2025/26 From - Spending review Topic 3]*$B$3)","v":0},{"$f":"SUMPRODUCT(((Dataset[Econ4]=$G50))*Dataset[2025/26 To - Spending review Topic 3]*$B$3)","v":0},0,{"$f":"SUMPRODUCT(((Dataset[Econ4]=$G50))*Dataset[2026/27 From - Spending review Topic 3]*$B$3)","v":0},{"$f":"SUMPRODUCT(((Dataset[Econ4]=$G50))*Dataset[2026/27 To - Spending review Topic 3]*$B$3)","v":0},0,0,0,0]
["Spending review topic 3",0,null,null,null,null,"Non-profit institutions",{"$f":"SUMPRODUCT(((Dataset[Econ3]=$G51))*Dataset[2024/25 From - Spending review Topic 3]*$B$3)","v":0},{"$f":"SUMPRODUCT(((Dataset[Econ3]=$G51))*Dataset[2024/25 To - Spending review Topic 3]*$B$3)","v":0},0,{"$f":"SUMPRODUCT(((Dataset[Econ3]=$G51))*Dataset[2025/26 From - Spending review Topic 3]*$B$3)","v":0},{"$f":"SUMPRODUCT(((Dataset[Econ3]=$G51))*Dataset[2025/26 To - Spending review Topic 3]*$B$3)","v":0},0,{"$f":"SUMPRODUCT(((Dataset[Econ3]=$G51))*Dataset[2026/27 From - Spending review Topic 3]*$B$3)","v":0},{"$f":"SUMPRODUCT(((Dataset[Econ3]=$G51))*Dataset[2026/27 To - Spending review Topic 3]*$B$3)","v":0},0,0,0,0]
["Spending review topic 3",0,null,null,null,null,"Households",{"$f":"SUM(H53:H54)","v":0},0,0,0,0,0,0,0,0,0,0,0]
["Spending review topic 3",0,null,null,null,null,"Social benefits",{"$f":"SUMPRODUCT(((Dataset[Econ4]=$G53))*Dataset[2024/25 From - Spending review Topic 3]*$B$3)","v":0},{"$f":"SUMPRODUCT(((Dataset[Econ4]=$G53))*Dataset[2024/25 To - Spending review Topic 3]*$B$3)","v":0},{"$f":"H53+I53","v":0},{"$f":"SUMPRODUCT(((Dataset[Econ4]=$G53))*Dataset[2025/26 From - Spending review Topic 3]*$B$3)","v":0},{"$f":"SUMPRODUCT(((Dataset[Econ4]=$G53))*Dataset[2025/26 To - Spending review Topic 3]*$B$3)","v":0},{"$f":"K53+L53","v":0},{"$f":"SUMPRODUCT(((Dataset[Econ4]=$G53))*Dataset[2026/27 From - Spending review Topic 3]*$B$3)","v":0},{"$f":"SUMPRODUCT(((Dataset[Econ4]=$G53))*Dataset[2026/27 To - Spending review Topic 3]*$B$3)","v":0},{"$f":"N53+O53","v":0},{"$f":"SUM(H53,K53,N53)","v":0},0,0]
["Spending review topic 3",0,null,null,null,null,"Other transfers to households",{"$f":"SUMPRODUCT(((Dataset[Econ4]=$G54))*Dataset[2024/25 From - Spending review Topic 3]*$B$3)","v":0},{"$f":"SUMPRODUCT(((Dataset[Econ4]=$G54))*Dataset[2024/25 To - Spending review Topic 3]*$B$3)","v":0},0,{"$f":"SUMPRODUCT(((Dataset[Econ4]=$G54))*Dataset[2025/26 From - Spending review Topic 3]*$B$3)","v":0},{"$f":"SUMPRODUCT(((Dataset[Econ4]=$G54))*Dataset[2025/26 To - Spending review Topic 3]*$B$3)","v":0},0,{"$f":"SUMPRODUCT(((Dataset[Econ4]=$G54))*Dataset[2026/27 From - Spending review Topic 3]*$B$3)","v":0},{"$f":"SUMPRODUCT(((Dataset[Econ4]=$G54))*Dataset[2026/27 To - Spending review Topic 3]*$B$3)","v":0},0,0,0,0]
["Spending review topic 3",0,null,null,null,null,"Payments for capital assets",{"$f":"SUM(H56,H59,H62:H66)","v":0},0,0,0,0,0,0,0,0,0,0,0]
["Spending review topic 3",0,null,null,null,null,"Buildings and other fixed structures",{"$f":"SUM(H57:H58)","v":0},0,0,0,0,0,0,0,0,0,0,0]
["Spending review topic 3",0,null,null,null,null,"Buildings",{"$f":"SUMPRODUCT(((Dataset[Econ4]=$G57))*Dataset[2024/25 From - Spending review Topic 3]*$B$3)","v":0},{"$f":"SUMPRODUCT(((Dataset[Econ4]=$G57))*Dataset[2024/25 To - Spending review Topic 3]*$B$3)","v":0},{"$f":"H57+I57","v":0},{"$f":"SUMPRODUCT(((Dataset[Econ4]=$G57))*Dataset[2025/26 From - Spending review Topic 3]*$B$3)","v":0},{"$f":"SUMPRODUCT(((Dataset[Econ4]=$G57))*Dataset[2025/26 To - Spending review Topic 3]*$B$3)","v":0},{"$f":"K57+L57","v":0},{"$f":"SUMPRODUCT(((Dataset[Econ4]=$G57))*Dataset[2026/27 From - Spending review Topic 3]*$B$3)","v":0},{"$f":"SUMPRODUCT(((Dataset[Econ4]=$G57))*Dataset[2026/27 To - Spending review Topic 3]*$B$3)","v":0},{"$f":"N57+O57","v":0},{"$f":"SUM(H57,K57,N57)","v":0},0,0]
["Spending review topic 3",0,null,null,null,null,"Other fixed structures",{"$f":"SUMPRODUCT(((Dataset[Econ4]=$G58))*Dataset[2024/25 From - Spending review Topic 3]*$B$3)","v":0},{"$f":"SUMPRODUCT(((Dataset[Econ4]=$G58))*Dataset[2024/25 To - Spending review Topic 3]*$B$3)","v":0},0,{"$f":"SUMPRODUCT(((Dataset[Econ4]=$G58))*Dataset[2025/26 From - Spending review Topic 3]*$B$3)","v":0},{"$f":"SUMPRODUCT(((Dataset[Econ4]=$G58))*Dataset[2025/26 To - Spending review Topic 3]*$B$3)","v":0},0,{"$f":"SUMPRODUCT(((Dataset[Econ4]=$G58))*Dataset[2026/27 From - Spending review Topic 3]*$B$3)","v":0},{"$f":"SUMPRODUCT(((Dataset[Econ4]=$G58))*Dataset[2026/27 To - Spending review Topic 3]*$B$3)","v":0},0,0,0,0]
["Spending review topic 3",0,null,null,null,null,"Machinery and equipment",{"$f":"SUM(H60:H61)","v":0},0,0,0,0,0,0,0,0,0,0,0]
["Spending review topic 3",0,null,null,null,null,"Transport equipment",{"$f":"SUMPRODUCT(((Dataset[Econ4]=$G60))*Dataset[2024/25 From - Spending review Topic 3]*$B$3)","v":0},{"$f":"SUMPRODUCT(((Dataset[Econ4]=$G60))*Dataset[2024/25 To - Spending review Topic 3]*$B$3)","v":0},{"$f":"H60+I60","v":0},{"$f":"SUMPRODUCT(((Dataset[Econ4]=$G60))*Dataset[2025/26 From - Spending review Topic 3]*$B$3)","v":0},{"$f":"SUMPRODUCT(((Dataset[Econ4]=$G60))*Dataset[2025/26 To - Spending review Topic 3]*$B$3)","v":0},{"$f":"K60+L60","v":0},{"$f":"SUMPRODUCT(((Dataset[Econ4]=$G60))*Dataset[2026/27 From - Spending review Topic 3]*$B$3)","v":0},{"$f":"SUMPRODUCT(((Dataset[Econ4]=$G60))*Dataset[2026/27 To - Spending review Topic 3]*$B$3)","v":0},{"$f":"N60+O60","v":0},{"$f":"SUM(H60,K60,N60)","v":0},0,0]
["Spending review topic 3",0,null,null,null,null,"Other machinery and equipment",{"$f":"SUMPRODUCT(((Dataset[Econ4]=$G61))*Dataset[2024/25 From - Spending review Topic 3]*$B$3)","v":0},{"$f":"SUMPRODUCT(((Dataset[Econ4]=$G61))*Dataset[2024/25 To - Spending review Topic 3]*$B$3)","v":0},0,{"$f":"SUMPRODUCT(((Dataset[Econ4]=$G61))*Dataset[2025/26 From - Spending review Topic 3]*$B$3)","v":0},{"$f":"SUMPRODUCT(((Dataset[Econ4]=$G61))*Dataset[2025/26 To - Spending review Topic 3]*$B$3)","v":0},0,{"$f":"SUMPRODUCT(((Dataset[Econ4]=$G61))*Dataset[2026/27 From - Spending review Topic 3]*$B$3)","v":0},{"$f":"SUMPRODUCT(((Dataset[Econ4]=$G61))*Dataset[2026/27 To - Spending review Topic 3]*$B$3)","v":0},0,0,0,0]
["Spending review topic 3",0,null,null,null,null,"Heritage assets",{"$f":"SUMPRODUCT(((Dataset[Econ3]=$G62))*Dataset[2024/25 From - Spending review Topic 3]*$B$3)","v":0},{"$f":"SUMPRODUCT(((Dataset[Econ3]=$G62))*Dataset[2024/25 To - Spending review Topic 3]*$B$3)","v":0},0,{"$f":"SUMPRODUCT(((Dataset[Econ3]=$G62))*Dataset[2025/26 From - Spending review Topic 3]*$B$3)","v":0},{"$f":"SUMPRODUCT(((Dataset[Econ3]=$G62))*Dataset[2025/26 To - Spending review Topic 3]*$B$3)","v":0},0,{"$f":"SUMPRODUCT(((Dataset[Econ3]=$G62))*Dataset[2026/27 From - Spending review Topic 3]*$B$3)","v":0},{"$f":"SUMPRODUCT(((Dataset[Econ3]=$G62))*Dataset[2026/27 To - Spending review Topic 3]*$B$3)","v":0},0,0,0,0]
["Spending review topic 3",0,null,null,null,null,"Specialised military assets",{"$f":"SUMPRODUCT(((Dataset[Econ3]=$G63))*Dataset[2024/25 From - Spending review Topic 3]*$B$3)","v":0},{"$f":"SUMPRODUCT(((Dataset[Econ3]=$G63))*Dataset[2024/25 To - Spending review Topic 3]*$B$3)","v":0},0,{"$f":"SUMPRODUCT(((Dataset[Econ3]=$G63))*Dataset[2025/26 From - Spending review Topic 3]*$B$3)","v":0},{"$f":"SUMPRODUCT(((Dataset[Econ3]=$G63))*Dataset[2025/26 To - Spending review Topic 3]*$B$3)","v":0},0,{"$f":"SUMPRODUCT(((Dataset[Econ3]=$G63))*Dataset[2026/27 From - Spending review Topic 3]*$B$3)","v":0},{"$f":"SUMPRODUCT(((Dataset[Econ3]=$G63))*Dataset[2026/27 To - Spending review Topic 3]*$B$3)","v":0},0,0,0,0]
["Spending review topic 3",0,null,null,null,null,"Biological assets",{"$f":"SUMPRODUCT(((Dataset[Econ3]=$G64))*Dataset[2024/25 From - Spending review Topic 3]*$B$3)","v":0},{"$f":"SUMPRODUCT(((Dataset[Econ3]=$G64))*Dataset[2024/25 To - Spending review Topic 3]*$B$3)","v":0},0,{"$f":"SUMPRODUCT(((Dataset[Econ3]=$G64))*Dataset[2025/26 From - Spending review Topic 3]*$B$3)","v":0},{"$f":"SUMPRODUCT(((Dataset[Econ3]=$G64))*Dataset[2025/26 To - Spending review Topic 3]*$B$3)","v":0},0,{"$f":"SUMPRODUCT(((Dataset[Econ3]=$G64))*Dataset[2026/27 From - Spending review Topic 3]*$B$3)","v":0},{"$f":"SUMPRODUCT(((Dataset[Econ3]=$G64))*Dataset[2026/27 To - Spending review Topic 3]*$B$3)","v":0},0,0,0,0]
["Spending review topic 3",0,null,null,null,null,"Land and sub-soil assets",{"$f":"SUMPRODUCT(((Dataset[Econ3]=$G65))*Dataset[2024/25 From - Spending review Topic 3]*$B$3)","v":0},{"$f":"SUMPRODUCT(((Dataset[Econ3]=$G65))*Dataset[2024/25 To - Spending review Topic 3]*$B$3)","v":0},0,{"$f":"SUMPRODUCT(((Dataset[Econ3]=$G65))*Dataset[2025/26 From - Spending review Topic 3]*$B$3)","v":0},{"$f":"SUMPRODUCT(((Dataset[Econ3]=$G65))*Dataset[2025/26 To - Spending review Topic 3]*$B$3)","v":0},0,{"$f":"SUMPRODUCT(((Dataset[Econ3]=$G65))*Dataset[2026/27 From - Spending review Topic 3]*$B$3)","v":0},{"$f":"SUMPRODUCT(((Dataset[Econ3]=$G65))*Dataset[2026/27 To - Spending review Topic 3]*$B$3)","v":0},0,0,0,0]
["Spending review topic 3",0,null,null,null,null,"Software and other intangible assets",{"$f":"SUMPRODUCT(((Dataset[Econ3]=$G66))*Dataset[2024/25 From - Spending review Topic 3]*$B$3)","v":0},{"$f":"SUMPRODUCT(((Dataset[Econ3]=$G66))*Dataset[2024/25 To - Spending review Topic 3]*$B$3)","v":0},0,{"$f":"SUMPRODUCT(((Dataset[Econ3]=$G66))*Dataset[2025/26 From - Spending review Topic 3]*$B$3)","v":0},{"$f":"SUMPRODUCT(((Dataset[Econ3]=$G66))*Dataset[2025/26 To - Spending review Topic 3]*$B$3)","v":0},0,{"$f":"SUMPRODUCT(((Dataset[Econ3]=$G66))*Dataset[2026/27 From - Spending review Topic 3]*$B$3)","v":0},{"$f":"SUMPRODUCT(((Dataset[Econ3]=$G66))*Dataset[2026/27 To - Spending review Topic 3]*$B$3)","v":0},0,0,0,0]
["Spending review topic 3",0,null,null,null,null,"Payments for financial assets",{"$f":"SUMPRODUCT(((Dataset[Econ3]=$G67))*Dataset[2024/25 From - Spending review Topic 3]*$B$3)","v":0},{"$f":"SUMPRODUCT(((Dataset[Econ3]=$G67))*Dataset[2024/25 To - Spending review Topic 3]*$B$3)","v":0},0,{"$f":"SUMPRODUCT(((Dataset[Econ3]=$G67))*Dataset[2025/26 From - Spending review Topic 3]*$B$3)","v":0},{"$f":"SUMPRODUCT(((Dataset[Econ3]=$G67))*Dataset[2025/26 To - Spending review Topic 3]*$B$3)","v":0},0,{"$f":"SUMPRODUCT(((Dataset[Econ3]=$G67))*Dataset[2026/27 From - Spending review Topic 3]*$B$3)","v":0},{"$f":"SUMPRODUCT(((Dataset[Econ3]=$G67))*Dataset[2026/27 To - Spending review Topic 3]*$B$3)","v":0},0,0,0,0]
["Spending review topic 3",0,null,null,null,null,"Total",{"$f":"SUM(H35,H39,H55,H67)","v":0},0,0,0,0,0,0,0,0,0,0,0]
[]
[]
[]
[]
[null,null,null,null,null,null,{"$f":"\"IMPACT OF ADJUSTMENTS: \" &UPPER($G$3)","v":"IMPACT OF ADJUSTMENTS: SPENDING REVIEW TOPIC 3"}]
[]
[null,null,null,null,null,1,"Impact of adjustments on expenditure"]
[{"$f":"$G$3","v":"Spending review topic 3"},5,null,null,null,null,null,{"$f":"MyYear4","v":"2023/24"},null,null,{"$f":"MyYear5","v":"2024/25"},null,null,{"$f":"MyYear6","v":"2025/26"},null,null,{"$f":"MyYear7","v":"2026/27"}]
["Spending review topic 3",5,null,null,null,null,null,"Current expenditure","Potential expenditure @ benchmark level","% Savings if benchmark is achieved","Original number","Change in expenditure","Saving as % of original number","Original number","Change in expenditure","Saving as % of original number","Original number","Change in expenditure","Saving as % of original number"]
["Spending review topic 3",5,null,null,null,null,"Total",null,null,{"$f":"IFERROR((H78-I78)/-H78,\"\")","v":""},null,null,{"$f":"IFERROR((K78-L78)/-K78,\"\")","v":""},null,null,{"$f":"IFERROR((N78-O78)/-N78,\"\")","v":""},null,null,{"$f":"IFERROR((Q78-R78)/-Q78,\"\")","v":""}]
[]
[]
[]
[]
[]
[null,null,null,null,null,2,"Summary of impact on service delivery/policy area due to adjustments"]
[{"$f":"$G$3","v":"Spending review topic 3"},1]
["Spending review topic 3",1]
["Spending review topic 3",1]
["Spending review topic 3",1]
["Spending review topic 3",1]
["Spending review topic 3",1]
["Spending review topic 3",1]
["Spending review topic 3",1]
["Spending review topic 3",1]
["Spending review topic 3",1]
["Spending review topic 3",1]
["Spending review topic 3",1]
["Spending review topic 3",1]
["Spending review topic 3",1]
["Spending review topic 3",1]
[]
[]
[]
[]
[]
[null,null,null,null,null,3,"Impact of adjustments on performance indicators"]
[{"$f":"$G$3","v":"Spending review topic 3"},2,null,null,null,null,null,{"$f":"MyYear4","v":"2023/24"},null,null,{"$f":"MyYear5","v":"2024/25"},null,null,{"$f":"MyYear6","v":"2025/26"},null,null,{"$f":"MyYear7","v":"2026/27"},null,null," Comment",null,null,null,null,"Related MTSF Priority"]
["Spending review topic 3",2,null,null,null,null,"Performance indicator","Current performance","Performance @ benchmark level","Change","Original target","Revised target","Change","Original target","Revised target","Change","Original target","Revised target","Change"]
["Spending review topic 3",2]
["Spending review topic 3",2]
["Spending review topic 3",2]
["Spending review topic 3",2]
["Spending review topic 3",2]
["Spending review topic 3",2]
["Spending review topic 3",2]
["Spending review topic 3",2]
["Spending review topic 3",2]
["Spending review topic 3",2]
["Spending review topic 3",2]
["Spending review topic 3",2]
["Spending review topic 3",2]
["Spending review topic 3",2]
["Spending review topic 3",2]
[]
[]
[]
[]
[]
[null,null,null,null,null,4,"Impact of adjustments on personnel headcount numbers"]
[{"$f":"$G$3","v":"Spending review topic 3"},4,null,null,null,null,null,{"$f":"MyYear4","v":"2023/24"},null,null,{"$f":"MyYear5","v":"2024/25"},null,null,{"$f":"MyYear6","v":"2025/26"},null,null,{"$f":"MyYear7","v":"2026/27"},null,null," Comment"]
["Spending review topic 3",4,null,null,null,null,"Salary level","Current number","Potential number if benchmark is achieved","Change in number","Original number","Revised number","Change in number","Original number","Revised number","Change in number","Original number","Revised number","Change in number"]
["Spending review topic 3",4,null,null,null,null,1,null,null,{"$f":"I131-H131","v":0},null,null,{"$f":"L131-K131","v":0},null,null,{"$f":"O131-N131","v":0},null,null,{"$f":"R131-Q131","v":0}]
["Spending review topic 3",4,null,null,null,null,2,null,null,0,null,null,0,null,null,0,null,null,0]
["Spending review topic 3",4,null,null,null,null,3,null,null,0,null,null,0,null,null,0,null,null,0]
["Spending review topic 3",4,null,null,null,null,4,null,null,0,null,null,0,null,null,0,null,null,0]
["Spending review topic 3",4,null,null,null,null,5,null,null,0,null,null,0,null,null,0,null,null,0]
["Spending review topic 3",4,null,null,null,null,6,null,null,0,null,null,0,null,null,0,null,null,0]
["Spending review topic 3",4,null,null,null,null,7,null,null,0,null,null,0,null,null,0,null,null,0]
["Spending review topic 3",4,null,null,null,null,8,null,null,0,null,null,0,null,null,0,null,null,0]
["Spending review topic 3",4,null,null,null,null,9,null,null,0,null,null,0,null,null,0,null,null,0]
["Spending review topic 3",4,null,null,null,null,10,null,null,0,null,null,0,null,null,0,null,null,0]
["Spending review topic 3",4,null,null,null,null,11,null,null,0,null,null,0,null,null,0,null,null,0]
["Spending review topic 3",4,null,null,null,null,12,null,null,0,null,null,0,null,null,0,null,null,0]
["Spending review topic 3",4,null,null,null,null,13,null,null,0,null,null,0,null,null,0,null,null,0]
["Spending review topic 3",4,null,null,null,null,14,null,null,0,null,null,0,null,null,0,null,null,0]
["Spending review topic 3",4,null,null,null,null,15,null,null,0,null,null,0,null,null,0,null,null,0]
["Spending review topic 3",4,null,null,null,null,16,null,null,0,null,null,0,null,null,0,null,null,0]
["Spending review topic 3",4,null,null,null,null,"Other",null,null,0,null,null,0,null,null,0,null,null,0]
["Spending review topic 3",4,null,null,null,null,"Other",null,null,0,null,null,0,null,null,0,null,null,0]
["Spending review topic 3",4,null,null,null,null,"Other",null,null,0,null,null,0,null,null,0,null,null,0]
["Spending review topic 3",4,null,null,null,null,"Other",null,null,0,null,null,0,null,null,0,null,null,0]
["Spending review topic 3",4,null,null,null,null,"Total",{"$f":"SUM(H131:H150)","v":0},0,0,{"$f":"SUM(K131:K150)","v":0},0,0,0,0,0,0,0,0]
[]
[]
[]
[]
[]
[null,null,null,null,null,5,"Impact of adjustments on infrastructure projects"]
[{"$f":"$G$3","v":"Spending review topic 3"},3,null,null,null,null,null,{"$f":"MyYear4","v":"2023/24"},null,null,{"$f":"MyYear5","v":"2024/25"},null,null,{"$f":"MyYear6","v":"2025/26"},null,null,{"$f":"MyYear7","v":"2026/27"},null,null," Comment"]
["Spending review topic 3",3,null,null,null,null,"Project name","Current number","Market or best in class benchmark","Change","Original amount","Revised amount","Change","Original amount","Revised amount","Change","Original amount","Revised amount","Change"]
["Spending review topic 3",3,null,null,null,null,null,null,null,{"$f":"I160-H160","v":0},null,null,{"$f":"L160-K160","v":0},null,null,{"$f":"O160-N160","v":0},null,null,{"$f":"R160-Q160","v":0}]
["Spending review topic 3",3,null,null,null,null,null,null,null,0,null,null,0,null,null,0,null,null,0]
["Spending review topic 3",3,null,null,null,null,null,null,null,0,null,null,0,null,null,0,null,null,0]
["Spending review topic 3",3,null,null,null,null,null,null,null,0,null,null,0,null,null,0,null,null,0]
["Spending review topic 3",3,null,null,null,null,null,null,null,0,null,null,0,null,null,0,null,null,0]
["Spending review topic 3",3,null,null,null,null,null,null,null,0,null,null,0,null,null,0,null,null,0]
["Spending review topic 3",3,null,null,null,null,null,null,null,0,null,null,0,null,null,0,null,null,0]
["Spending review topic 3",3,null,null,null,null,null,null,null,0,null,null,0,null,null,0,null,null,0]
["Spending review topic 3",3,null,null,null,null,null,null,null,0,null,null,0,null,null,0,null,null,0]
["Spending review topic 3",3,null,null,null,null,null,null,null,0,null,null,0,null,null,0,null,null,0]
["Spending review topic 3",3,null,null,null,null,null,null,null,0,null,null,0,null,null,0,null,null,0]
["Spending review topic 3",3,null,null,null,null,null,null,null,0,null,null,0,null,null,0,null,null,0]
["Spending review topic 3",3,null,null,null,null,null,null,null,0,null,null,0,null,null,0,null,null,0]
["Spending review topic 3",3,null,null,null,null,null,null,null,0,null,null,0,null,null,0,null,null,0]
["Spending review topic 3",3,null,null,null,null,null,null,null,0,null,null,0,null,null,0,null,null,0]
["Spending review topic 3",3,null,null,null,null,null,null,null,0,null,null,0,null,null,0,null,null,0]
["Spending review topic 3",3,null,null,null,null,null,null,null,0,null,null,0,null,null,0,null,null,0]
["Spending review topic 3",3,null,null,null,null,null,null,null,0,null,null,0,null,null,0,null,null,0]
["Spending review topic 3",3,null,null,null,null,null,null,null,0,null,null,0,null,null,0,null,null,0]
["Spending review topic 3",3,null,null,null,null,null,null,null,0,null,null,0,null,null,0,null,null,0]
["Spending review topic 3",3,null,null,null,null,null,null,null,0,null,null,0,null,null,0,null,null,0]
["Spending review topic 3",3,null,null,null,null,null,null,null,0,null,null,0,null,null,0,null,null,0]
["Spending review topic 3",3,null,null,null,null,null,null,null,0,null,null,0,null,null,0,null,null,0]
["Spending review topic 3",3,null,null,null,null,null,null,null,0,null,null,0,null,null,0,null,null,0]
["Spending review topic 3",3,null,null,null,null,null,null,null,0,null,null,0,null,null,0,null,null,0]
["Spending review topic 3",3,null,null,null,null,null,null,null,0,null,null,0,null,null,0,null,null,0]
["Spending review topic 3",3,null,null,null,null,null,null,null,0,null,null,0,null,null,0,null,null,0]
["Spending review topic 3",3,null,null,null,null,null,null,null,0,null,null,0,null,null,0,null,null,0]
["Spending review topic 3",3,null,null,null,null,null,null,null,0,null,null,0,null,null,0,null,null,0]
["Spending review topic 3",3,null,null,null,null,null,null,null,0,null,null,0,null,null,0,null,null,0]
["Spending review topic 3",3,null,null,null,null,null,null,null,0,null,null,0,null,null,0,null,null,0]
["Spending review topic 3",3,null,null,null,null,null,null,null,0,null,null,0,null,null,0,null,null,0]
["Spending review topic 3",3,null,null,null,null,null,null,null,0,null,null,0,null,null,0,null,null,0]
["Spending review topic 3",3,null,null,null,null,null,null,null,0,null,null,0,null,null,0,null,null,0]
["Spending review topic 3",3,null,null,null,null,null,null,null,0,null,null,0,null,null,0,null,null,0]
["Spending review topic 3",3,null,null,null,null,null,null,null,0,null,null,0,null,null,0,null,null,0]
["Spending review topic 3",3,null,null,null,null,null,null,null,0,null,null,0,null,null,0,null,null,0]
["Spending review topic 3",3,null,null,null,null,null,null,null,0,null,null,0,null,null,0,null,null,0]
["Spending review topic 3",3,null,null,null,null,null,null,null,0,null,null,0,null,null,0,null,null,0]
["Spending review topic 3",3,null,null,null,null,null,null,null,0,null,null,0,null,null,0,null,null,0]
["Spending review topic 3",3,null,null,null,null,null,null,null,0,null,null,0,null,null,0,null,null,0]
["Spending review topic 3",3,null,null,null,null,null,null,null,0,null,null,0,null,null,0,null,null,0]
["Spending review topic 3",3,null,null,null,null,null,null,null,0,null,null,0,null,null,0,null,null,0]
["Spending review topic 3",3,null,null,null,null,null,null,null,0,null,null,0,null,null,0,null,null,0]
["Spending review topic 3",3,null,null,null,null,null,null,null,0,null,null,0,null,null,0,null,null,0]
["Spending review topic 3",3,null,null,null,null,null,null,null,0,null,null,0,null,null,0,null,null,0]
["Spending review topic 3",3,null,null,null,null,null,null,null,0,null,null,0,null,null,0,null,null,0]
["Spending review topic 3",3,null,null,null,null,null,null,null,0,null,null,0,null,null,0,null,null,0]
["Spending review topic 3",3,null,null,null,null,null,null,null,0,null,null,0,null,null,0,null,null,0]
["Spending review topic 3",3,null,null,null,null,null,null,null,0,null,null,0,null,null,0,null,null,0]
["Spending review topic 3",3,null,null,null,null,"Total",{"$f":"SUM(H160:H209)","v":0},0,0,0,0,0,0,0,0,0,0,0]

{"sheet":"SRT4","index":14,"n_rows":210,"n_cols":25,"rows_kept":210,"cut":false,"hidden":false,"merged":[[72,6,72,18],[84,6,98,18],[105,19,105,23],[105,24,105,26],[106,19,106,23],[106,24,106,26],[107,19,107,23],[107,24,107,26],[108,19,108,23],[108,24,108,26],[109,19,109,23],[109,24,109,26],[110,19,110,23],[110,24,110,26],[111,19,111,23],[111,24,111,26],[112,19,112,23],[112,24,112,26],[113,19,113,23],[113,24,113,26],[114,19,114,23],[114,24,114,26],[115,19,115,23],[115,24,115,26],[116,19,116,23],[116,24,116,26],[117,19,117,23],[117,24,117,26],[118,19,118,23],[118,24,118,26],[119,19,119,23],[119,24,119,26],[120,19,120,23],[120,24,120,26],[121,19,121,23],[121,24,121,26],[165,19,165,23],[128,19,128,23],[129,19,129,23],[130,19,149,23],[157,19,157,23],[158,19,158,23],[159,19,159,23],[160,19,160,23],[161,19,161,23],[162,19,162,23],[163,19,163,23],[164,19,164,23],[177,19,177,23],[166,19,166,23],[167,19,167,23],[168,19,168,23],[169,19,169,23],[170,19,170,23],[171,19,171,23],[172,19,172,23],[173,19,173,23],[174,19,174,23],[175,19,175,23],[176,19,176,23],[189,19,189,23],[178,19,178,23],[179,19,179,23],[180,19,180,23],[181,19,181,23],[182,19,182,23],[183,19,183,23],[184,19,184,23],[185,19,185,23],[186,19,186,23],[187,19,187,23],[188,19,188,23],[201,19,201,23],[190,19,190,23],[191,19,191,23],[192,19,192,23],[193,19,193,23],[194,19,194,23],[195,19,195,23],[196,19,196,23],[197,19,197,23],[198,19,198,23],[199,19,199,23],[200,19,200,23],[208,19,208,23],[202,19,202,23],[203,19,203,23],[204,19,204,23],[205,19,205,23],[206,19,206,23],[207,19,207,23]]}
[]
[null,null,null,null,null,null,"Spending review topic…"]
[null,{"$f":"IF(G3=\"\",0,1)","v":1},null,null,null,4,{"$f":"SRTopic4","v":"Spending review topic 4"}]
[]
[null,null,null,null,null,null,"Quick view…(Total change)",{"$f":"MyYear5","v":"2024/25"},{"$f":"MyYear6","v":"2025/26"},{"$f":"MyYear7","v":"2026/27"},"MTEF total","Trend"]
[null,null,null,null,null,null,"Compensation of employees",{"$f":"SUMPRODUCT(($G$35:$G$68=$G6)*($J$35:$J$68))","v":0},{"$f":"SUMPRODUCT(($G$35:$G$68=$G6)*($M$35:$M$68))","v":0},{"$f":"SUMPRODUCT(($G$35:$G$68=$G6)*($P$35:$P$68))","v":0},{"$f":"SUM(H6:J6)","v":0},null,null,"CoE"]
[null,null,null,null,null,null,"Goods and services",{"$f":"SUMPRODUCT(($G$35:$G$68=$G7)*($J$35:$J$68))","v":0},{"$f":"SUMPRODUCT(($G$35:$G$68=$G7)*($M$35:$M$68))","v":0},{"$f":"SUMPRODUCT(($G$35:$G$68=$G7)*($P$35:$P$68))","v":0},0,null,null,"G&S"]
[null,null,null,null,null,null,"Transfers and subsidies",{"$f":"SUMPRODUCT(($G$35:$G$68=$G8)*($J$35:$J$68))","v":0},{"$f":"SUMPRODUCT(($G$35:$G$68=$G8)*($M$35:$M$68))","v":0},{"$f":"SUMPRODUCT(($G$35:$G$68=$G8)*($P$35:$P$68))","v":0},0,null,null,"T&S"]
[null,null,null,null,null,null,"Payments for capital assets",{"$f":"SUMPRODUCT(($G$35:$G$68=$G9)*($J$35:$J$68))","v":0},{"$f":"SUMPRODUCT(($G$35:$G$68=$G9)*($M$35:$M$68))","v":0},{"$f":"SUMPRODUCT(($G$35:$G$68=$G9)*($P$35:$P$68))","v":0},0,null,null,"Capital"]
[null,null,null,null,null,null,"Total",{"$f":"SUMPRODUCT(($G$35:$G$68=$G10)*($J$35:$J$68))","v":0},{"$f":"SUMPRODUCT(($G$35:$G$68=$G10)*($M$35:$M$68))","v":0},{"$f":"SUMPRODUCT(($G$35:$G$68=$G10)*($P$35:$P$68))","v":0},0,null,null,"Total"]
[null,null,null,null,null,null,"% of MTEF total",null,null,null,null,null,null,null,null,null,null,null,{"$f":"MyYear5","v":"2024/25"},{"$f":"MyYear6","v":"2025/26"},{"$f":"MyYear7","v":"2026/27"}]
[null,null,null,null,null,null,"Compensation of employees",{"$f":"IFERROR(H6/$K6,\"\")","v":""},"","",null,null,null,null,null,null,null,{"$f":"G12","v":"Compensation of employees"},{"$f":"IF(H12>0.0595,H12,\"\")","v":""},"",""]
[null,null,null,null,null,null,"Goods and services","","","",null,null,null,null,null,null,null,{"$f":"G13","v":"Goods and services"},"","",""]
[null,null,null,null,null,null,"Transfers and subsidies","","","",null,null,null,null,null,null,null,{"$f":"G14","v":"Transfers and subsidies"},"","",""]
[null,null,null,null,null,null,"Payments for capital assets","","","",null,null,null,null,null,null,null,{"$f":"G15","v":"Payments for capital assets"},"","",""]
[]
[null,null,null,null,null,null,"Division of Revenue",{"$f":"MyYear5","v":"2024/25"},{"$f":"MyYear6","v":"2025/26"},{"$f":"MyYear7","v":"2026/27"},"MTEF total","Trend"]
[null,null,null,null,null,null,"National",{"$f":"SUM(H19:H21)","v":0},0,0,{"$f":"SUM(H18:J18)","v":0}]
[{"$f":"$G$3","v":"Spending review topic 4"},"NAT",null,null,null,null,"National (excl. indirect grants)",{"$f":"SUMPRODUCT(((Dataset[DOR]=$B19))*Dataset[2024/25 From - Spending review Topic 4])+SUMPRODUCT(((Dataset[DOR]=$B19))*Dataset[2024/25 To - Spending review Topic 4])","v":0},{"$f":"SUMPRODUCT(((Dataset[DOR]=$B19))*Dataset[2025/26 From - Spending review Topic 4])+SUMPRODUCT(((Dataset[DOR]=$B19))*Dataset[2025/26 To - Spending review Topic 4])","v":0},{"$f":"SUMPRODUCT(((Dataset[DOR]=$B19))*Dataset[2026/27 From - Spending review Topic 4])+SUMPRODUCT(((Dataset[DOR]=$B19))*Dataset[2026/27 To - Spending review Topic 4])","v":0},0]
["Spending review topic 4","IGP",null,null,null,null,"Provincial indirect grants",{"$f":"SUMPRODUCT(((Dataset[DOR]=$B20))*Dataset[2024/25 From - Spending review Topic 4])+SUMPRODUCT(((Dataset[DOR]=$B20))*Dataset[2024/25 To - Spending review Topic 4])","v":0},{"$f":"SUMPRODUCT(((Dataset[DOR]=$B20))*Dataset[2025/26 From - Spending review Topic 4])+SUMPRODUCT(((Dataset[DOR]=$B20))*Dataset[2025/26 To - Spending review Topic 4])","v":0},{"$f":"SUMPRODUCT(((Dataset[DOR]=$B20))*Dataset[2026/27 From - Spending review Topic 4])+SUMPRODUCT(((Dataset[DOR]=$B20))*Dataset[2026/27 To - Spending review Topic 4])","v":0},0]
["Spending review topic 4","IGM",null,null,null,null,"Local indirect grants",{"$f":"SUMPRODUCT(((Dataset[DOR]=$B21))*Dataset[2024/25 From - Spending review Topic 4])+SUMPRODUCT(((Dataset[DOR]=$B21))*Dataset[2024/25 To - Spending review Topic 4])","v":0},{"$f":"SUMPRODUCT(((Dataset[DOR]=$B21))*Dataset[2025/26 From - Spending review Topic 4])+SUMPRODUCT(((Dataset[DOR]=$B21))*Dataset[2025/26 To - Spending review Topic 4])","v":0},{"$f":"SUMPRODUCT(((Dataset[DOR]=$B21))*Dataset[2026/27 From - Spending review Topic 4])+SUMPRODUCT(((Dataset[DOR]=$B21))*Dataset[2026/27 To - Spending review Topic 4])","v":0},0]
["Spending review topic 4",null,null,null,null,null,"Provincial",{"$f":"SUMPRODUCT(((Dataset[DOR]=$B22))*Dataset[2024/25 From - Spending review Topic 4])+SUMPRODUCT(((Dataset[DOR]=$B22))*Dataset[2024/25 To - Spending review Topic 4])","v":0},{"$f":"SUMPRODUCT(((Dataset[DOR]=$B22))*Dataset[2025/26 From - Spending review Topic 4])+SUMPRODUCT(((Dataset[DOR]=$B22))*Dataset[2025/26 To - Spending review Topic 4])","v":0},{"$f":"SUMPRODUCT(((Dataset[DOR]=$B22))*Dataset[2026/27 From - Spending review Topic 4])+SUMPRODUCT(((Dataset[DOR]=$B22))*Dataset[2026/27 To - Spending review Topic 4])","v":0},0]
["Spending review topic 4","PES",null,null,null,null,"Provincial equitable share",{"$f":"SUMPRODUCT(((Dataset[DOR]=$B23))*Dataset[2024/25 From - Spending review Topic 4])+SUMPRODUCT(((Dataset[DOR]=$B23))*Dataset[2024/25 To - Spending review Topic 4])","v":0},{"$f":"SUMPRODUCT(((Dataset[DOR]=$B23))*Dataset[2025/26 From - Spending review Topic 4])+SUMPRODUCT(((Dataset[DOR]=$B23))*Dataset[2025/26 To - Spending review Topic 4])","v":0},{"$f":"SUMPRODUCT(((Dataset[DOR]=$B23))*Dataset[2026/27 From - Spending review Topic 4])+SUMPRODUCT(((Dataset[DOR]=$B23))*Dataset[2026/27 To - Spending review Topic 4])","v":0},0]
["Spending review topic 4","PCG",null,null,null,null,"Provincial conditional grants",{"$f":"SUMPRODUCT(((Dataset[DOR]=$B24))*Dataset[2024/25 From - Spending review Topic 4])+SUMPRODUCT(((Dataset[DOR]=$B24))*Dataset[2024/25 To - Spending review Topic 4])","v":0},{"$f":"SUMPRODUCT(((Dataset[DOR]=$B24))*Dataset[2025/26 From - Spending review Topic 4])+SUMPRODUCT(((Dataset[DOR]=$B24))*Dataset[2025/26 To - Spending review Topic 4])","v":0},{"$f":"SUMPRODUCT(((Dataset[DOR]=$B24))*Dataset[2026/27 From - Spending review Topic 4])+SUMPRODUCT(((Dataset[DOR]=$B24))*Dataset[2026/27 To - Spending review Topic 4])","v":0},0]
["Spending review topic 4",null,null,null,null,null,"Local government",{"$f":"SUMPRODUCT(((Dataset[DOR]=$B25))*Dataset[2024/25 From - Spending review Topic 4])+SUMPRODUCT(((Dataset[DOR]=$B25))*Dataset[2024/25 To - Spending review Topic 4])","v":0},{"$f":"SUMPRODUCT(((Dataset[DOR]=$B25))*Dataset[2025/26 From - Spending review Topic 4])+SUMPRODUCT(((Dataset[DOR]=$B25))*Dataset[2025/26 To - Spending review Topic 4])","v":0},{"$f":"SUMPRODUCT(((Dataset[DOR]=$B25))*Dataset[2026/27 From - Spending review Topic 4])+SUMPRODUCT(((Dataset[DOR]=$B25))*Dataset[2026/27 To - Spending review Topic 4])","v":0},0]
["Spending review topic 4","LES",null,null,null,null,"Local equitable share",{"$f":"SUMPRODUCT(((Dataset[DOR]=$B26))*Dataset[2024/25 From - Spending review Topic 4])+SUMPRODUCT(((Dataset[DOR]=$B26))*Dataset[2024/25 To - Spending review Topic 4])","v":0},{"$f":"SUMPRODUCT(((Dataset[DOR]=$B26))*Dataset[2025/26 From - Spending review Topic 4])+SUMPRODUCT(((Dataset[DOR]=$B26))*Dataset[2025/26 To - Spending review Topic 4])","v":0},{"$f":"SUMPRODUCT(((Dataset[DOR]=$B26))*Dataset[2026/27 From - Spending review Topic 4])+SUMPRODUCT(((Dataset[DOR]=$B26))*Dataset[2026/27 To - Spending review Topic 4])","v":0},0]
["Spending review topic 4","LCG",null,null,null,null,"Local conditional grants",{"$f":"SUMPRODUCT(((Dataset[DOR]=$B27))*Dataset[2024/25 From - Spending review Topic 4])+SUMPRODUCT(((Dataset[DOR]=$B27))*Dataset[2024/25 To - Spending review Topic 4])","v":0},{"$f":"SUMPRODUCT(((Dataset[DOR]=$B27))*Dataset[2025/26 From - Spending review Topic 4])+SUMPRODUCT(((Dataset[DOR]=$B27))*Dataset[2025/26 To - Spending review Topic 4])","v":0},{"$f":"SUMPRODUCT(((Dataset[DOR]=$B27))*Dataset[2026/27 From - Spending review Topic 4])+SUMPRODUCT(((Dataset[DOR]=$B27))*Dataset[2026/27 To - Spending review Topic 4])","v":0},0]
["Spending review topic 4","GFL",null,null,null,null,"General fuel levy ",{"$f":"SUMPRODUCT(((Dataset[DOR]=$B28))*Dataset[2024/25 From - Spending review Topic 4])+SUMPRODUCT(((Dataset[DOR]=$B28))*Dataset[2024/25 To - Spending review Topic 4])","v":0},{"$f":"SUMPRODUCT(((Dataset[DOR]=$B28))*Dataset[2025/26 From - Spending review Topic 4])+SUMPRODUCT(((Dataset[DOR]=$B28))*Dataset[2025/26 To - Spending review Topic 4])","v":0},{"$f":"SUMPRODUCT(((Dataset[DOR]=$B28))*Dataset[2026/27 From - Spending review Topic 4])+SUMPRODUCT(((Dataset[DOR]=$B28))*Dataset[2026/27 To - Spending review Topic 4])","v":0},0]
[]
[]
[null,null,null,null,null,null,{"$f":"G3","v":"Spending review topic 4"}]
[{"$f":"$G$3","v":"Spending review topic 4"},0,null,null,null,null,null,{"$f":"MyYear5","v":"2024/25"},null,null,{"$f":"MyYear6","v":"2025/26"},null,null,{"$f":"MyYear7","v":"2026/27"},null,null,"Total over MTEF"]
[{"$f":"$G$3","v":"Spending review topic 4"},0,null,null,null,null,"Rand thousand","From","To","Total change","From","To","Total change","From","To","Total change","From","To","Total change"]
["Spending review topic 4",0,null,null,null,null,"Economic classification"]
["Spending review topic 4",0,null,null,null,null,"Current payments",{"$f":"SUM(H36:H38)","v":0},0,0,0,0,0,0,0,0,0,0,0]
["Spending review topic 4",0,null,null,null,null,"Compensation of employees",{"$f":"SUMPRODUCT(((Dataset[Econ3]=$G36))*Dataset[2024/25 From - Spending review Topic 4]*$B$3)","v":0},{"$f":"SUMPRODUCT(((Dataset[Econ3]=$G36))*Dataset[2024/25 To - Spending review Topic 4]*$B$3)","v":0},{"$f":"H36+I36","v":0},{"$f":"SUMPRODUCT(((Dataset[Econ3]=$G36))*Dataset[2025/26 From - Spending review Topic 4]*$B$3)","v":0},{"$f":"SUMPRODUCT(((Dataset[Econ3]=$G36))*Dataset[2025/26 To - Spending review Topic 4]*$B$3)","v":0},{"$f":"K36+L36","v":0},{"$f":"SUMPRODUCT(((Dataset[Econ3]=$G36))*Dataset[2026/27 From - Spending review Topic 4]*$B$3)","v":0},{"$f":"SUMPRODUCT(((Dataset[Econ3]=$G36))*Dataset[2026/27 To - Spending review Topic 4]*$B$3)","v":0},{"$f":"N36+O36","v":0},{"$f":"SUM(H36,K36,N36)","v":0},0,0]
["Spending review topic 4",0,null,null,null,null,"Goods and services",{"$f":"SUMPRODUCT(((Dataset[Econ3]=$G37))*Dataset[2024/25 From - Spending review Topic 4]*$B$3)","v":0},{"$f":"SUMPRODUCT(((Dataset[Econ3]=$G37))*Dataset[2024/25 To - Spending review Topic 4]*$B$3)","v":0},0,{"$f":"SUMPRODUCT(((Dataset[Econ3]=$G37))*Dataset[2025/26 From - Spending review Topic 4]*$B$3)","v":0},{"$f":"SUMPRODUCT(((Dataset[Econ3]=$G37))*Dataset[2025/26 To - Spending review Topic 4]*$B$3)","v":0},0,{"$f":"SUMPRODUCT(((Dataset[Econ3]=$G37))*Dataset[2026/27 From - Spending review Topic 4]*$B$3)","v":0},{"$f":"SUMPRODUCT(((Dataset[Econ3]=$G37))*Dataset[2026/27 To - Spending review Topic 4]*$B$3)","v":0},0,0,0,0]
["Spending review topic 4",0,null,null,null,null,"Interest and rent on land",{"$f":"SUMPRODUCT(((Dataset[Econ3]=$G38))*Dataset[2024/25 From - Spending review Topic 4]*$B$3)","v":0},{"$f":"SUMPRODUCT(((Dataset[Econ3]=$G38))*Dataset[2024/25 To - Spending review Topic 4]*$B$3)","v":0},0,{"$f":"SUMPRODUCT(((Dataset[Econ3]=$G38))*Dataset[2025/26 From - Spending review Topic 4]*$B$3)","v":0},{"$f":"SUMPRODUCT(((Dataset[Econ3]=$G38))*Dataset[2025/26 To - Spending review Topic 4]*$B$3)","v":0},0,{"$f":"SUMPRODUCT(((Dataset[Econ3]=$G38))*Dataset[2026/27 From - Spending review Topic 4]*$B$3)","v":0},{"$f":"SUMPRODUCT(((Dataset[Econ3]=$G38))*Dataset[2026/27 To - Spending review Topic 4]*$B$3)","v":0},0,0,0,0]
["Spending review topic 4",0,null,null,null,null,"Transfers and subsidies",{"$f":"SUM(H40,H43,H46:H48,H51:H52)","v":0},0,0,0,0,0,0,0,0,0,0,0]
["Spending review topic 4",0,null,null,null,null,"Provinces and municipalities",{"$f":"SUM(H41:H42)","v":0},0,0,0,0,0,0,0,0,0,0,0]
["Spending review topic 4",0,null,null,null,null,"Provinces",{"$f":"SUMPRODUCT(((Dataset[Econ4]=$G41))*Dataset[2024/25 From - Spending review Topic 4]*$B$3)","v":0},{"$f":"SUMPRODUCT(((Dataset[Econ4]=$G41))*Dataset[2024/25 To - Spending review Topic 4]*$B$3)","v":0},{"$f":"H41+I41","v":0},{"$f":"SUMPRODUCT(((Dataset[Econ4]=$G41))*Dataset[2025/26 From - Spending review Topic 4]*$B$3)","v":0},{"$f":"SUMPRODUCT(((Dataset[Econ4]=$G41))*Dataset[2025/26 To - Spending review Topic 4]*$B$3)","v":0},{"$f":"K41+L41","v":0},{"$f":"SUMPRODUCT(((Dataset[Econ4]=$G41))*Dataset[2026/27 From - Spending review Topic 4]*$B$3)","v":0},{"$f":"SUMPRODUCT(((Dataset[Econ4]=$G41))*Dataset[2026/27 To - Spending review Topic 4]*$B$3)","v":0},{"$f":"N41+O41","v":0},{"$f":"SUM(H41,K41,N41)","v":0},0,0]
["Spending review topic 4",0,null,null,null,null,"Municipalities",{"$f":"SUMPRODUCT(((Dataset[Econ4]=$G42))*Dataset[2024/25 From - Spending review Topic 4]*$B$3)","v":0},{"$f":"SUMPRODUCT(((Dataset[Econ4]=$G42))*Dataset[2024/25 To - Spending review Topic 4]*$B$3)","v":0},0,{"$f":"SUMPRODUCT(((Dataset[Econ4]=$G42))*Dataset[2025/26 From - Spending review Topic 4]*$B$3)","v":0},{"$f":"SUMPRODUCT(((Dataset[Econ4]=$G42))*Dataset[2025/26 To - Spending review Topic 4]*$B$3)","v":0},0,{"$f":"SUMPRODUCT(((Dataset[Econ4]=$G42))*Dataset[2026/27 From - Spending review Topic 4]*$B$3)","v":0},{"$f":"SUMPRODUCT(((Dataset[Econ4]=$G42))*Dataset[2026/27 To - Spending review Topic 4]*$B$3)","v":0},0,0,0,0]
["Spending review topic 4",0,null,null,null,null,"Departmental agencies and accounts",{"$f":"SUM(H44:H45)","v":0},0,0,0,0,0,0,0,0,0,0,0]
["Spending review topic 4",0,null,null,null,null,"Social security funds",{"$f":"SUMPRODUCT(((Dataset[Econ4]=$G44))*Dataset[2024/25 From - Spending review Topic 4]*$B$3)","v":0},{"$f":"SUMPRODUCT(((Dataset[Econ4]=$G44))*Dataset[2024/25 To - Spending review Topic 4]*$B$3)","v":0},{"$f":"H44+I44","v":0},{"$f":"SUMPRODUCT(((Dataset[Econ4]=$G44))*Dataset[2025/26 From - Spending review Topic 4]*$B$3)","v":0},{"$f":"SUMPRODUCT(((Dataset[Econ4]=$G44))*Dataset[2025/26 To - Spending review Topic 4]*$B$3)","v":0},{"$f":"K44+L44","v":0},{"$f":"SUMPRODUCT(((Dataset[Econ4]=$G44))*Dataset[2026/27 From - Spending review Topic 4]*$B$3)","v":0},{"$f":"SUMPRODUCT(((Dataset[Econ4]=$G44))*Dataset[2026/27 To - Spending review Topic 4]*$B$3)","v":0},{"$f":"N44+O44","v":0},{"$f":"SUM(H44,K44,N44)","v":0},0,0]
["Spending review topic 4",0,null,null,null,null,"Departmental agencies (non-business entities)",{"$f":"SUMPRODUCT(((Dataset[Econ4]=$G45))*Dataset[2024/25 From - Spending review Topic 4]*$B$3)","v":0},{"$f":"SUMPRODUCT(((Dataset[Econ4]=$G45))*Dataset[2024/25 To - Spending review Topic 4]*$B$3)","v":0},0,{"$f":"SUMPRODUCT(((Dataset[Econ4]=$G45))*Dataset[2025/26 From - Spending review Topic 4]*$B$3)","v":0},{"$f":"SUMPRODUCT(((Dataset[Econ4]=$G45))*Dataset[2025/26 To - Spending review Topic 4]*$B$3)","v":0},0,{"$f":"SUMPRODUCT(((Dataset[Econ4]=$G45))*Dataset[2026/27 From - Spending review Topic 4]*$B$3)","v":0},{"$f":"SUMPRODUCT(((Dataset[Econ4]=$G45))*Dataset[2026/27 To - Spending review Topic 4]*$B$3)","v":0},0,0,0,0]
["Spending review topic 4",0,null,null,null,null,"Higher education institutions",{"$f":"SUMPRODUCT(((Dataset[Econ3]=$G46))*Dataset[2024/25 From - Spending review Topic 4]*$B$3)","v":0},{"$f":"SUMPRODUCT(((Dataset[Econ3]=$G46))*Dataset[2024/25 To - Spending review Topic 4]*$B$3)","v":0},0,{"$f":"SUMPRODUCT(((Dataset[Econ3]=$G46))*Dataset[2025/26 From - Spending review Topic 4]*$B$3)","v":0},{"$f":"SUMPRODUCT(((Dataset[Econ3]=$G46))*Dataset[2025/26 To - Spending review Topic 4]*$B$3)","v":0},0,{"$f":"SUMPRODUCT(((Dataset[Econ3]=$G46))*Dataset[2026/27 From - Spending review Topic 4]*$B$3)","v":0},{"$f":"SUMPRODUCT(((Dataset[Econ3]=$G46))*Dataset[2026/27 To - Spending review Topic 4]*$B$3)","v":0},0,0,0,0]
["Spending review topic 4",0,null,null,null,null,"Foreign governments and international organisations",{"$f":"SUMPRODUCT(((Dataset[Econ3]=$G47))*Dataset[2024/25 From - Spending review Topic 4]*$B$3)","v":0},{"$f":"SUMPRODUCT(((Dataset[Econ3]=$G47))*Dataset[2024/25 To - Spending review Topic 4]*$B$3)","v":0},0,{"$f":"SUMPRODUCT(((Dataset[Econ3]=$G47))*Dataset[2025/26 From - Spending review Topic 4]*$B$3)","v":0},{"$f":"SUMPRODUCT(((Dataset[Econ3]=$G47))*Dataset[2025/26 To - Spending review Topic 4]*$B$3)","v":0},0,{"$f":"SUMPRODUCT(((Dataset[Econ3]=$G47))*Dataset[2026/27 From - Spending review Topic 4]*$B$3)","v":0},{"$f":"SUMPRODUCT(((Dataset[Econ3]=$G47))*Dataset[2026/27 To - Spending review Topic 4]*$B$3)","v":0},0,0,0,0]
["Spending review topic 4",0,null,null,null,null,"Public corporations and private enterprises",{"$f":"SUM(H49:H50)","v":0},0,0,0,0,0,0,0,0,0,0,0]
["Spending review topic 4",0,null,null,null,null,"Public corporations",{"$f":"SUMPRODUCT(((Dataset[Econ4]=$G49))*Dataset[2024/25 From - Spending review Topic 4]*$B$3)","v":0},{"$f":"SUMPRODUCT(((Dataset[Econ4]=$G49))*Dataset[2024/25 To - Spending review Topic 4]*$B$3)","v":0},{"$f":"H49+I49","v":0},{"$f":"SUMPRODUCT(((Dataset[Econ4]=$G49))*Dataset[2025/26 From - Spending review Topic 4]*$B$3)","v":0},{"$f":"SUMPRODUCT(((Dataset[Econ4]=$G49))*Dataset[2025/26 To - Spending review Topic 4]*$B$3)","v":0},{"$f":"K49+L49","v":0},{"$f":"SUMPRODUCT(((Dataset[Econ4]=$G49))*Dataset[2026/27 From - Spending review Topic 4]*$B$3)","v":0},{"$f":"SUMPRODUCT(((Dataset[Econ4]=$G49))*Dataset[2026/27 To - Spending review Topic 4]*$B$3)","v":0},{"$f":"N49+O49","v":0},{"$f":"SUM(H49,K49,N49)","v":0},0,0]
["Spending review topic 4",0,null,null,null,null,"Private enterprises",{"$f":"SUMPRODUCT(((Dataset[Econ4]=$G50))*Dataset[2024/25 From - Spending review Topic 4]*$B$3)","v":0},{"$f":"SUMPRODUCT(((Dataset[Econ4]=$G50))*Dataset[2024/25 To - Spending review Topic 4]*$B$3)","v":0},0,{"$f":"SUMPRODUCT(((Dataset[Econ4]=$G50))*Dataset[2025/26 From - Spending review Topic 4]*$B$3)","v":0},{"$f":"SUMPRODUCT(((Dataset[Econ4]=$G50))*Dataset[2025/26 To - Spending review Topic 4]*$B$3)","v":0},0,{"$f":"SUMPRODUCT(((Dataset[Econ4]=$G50))*Dataset[2026/27 From - Spending review Topic 4]*$B$3)","v":0},{"$f":"SUMPRODUCT(((Dataset[Econ4]=$G50))*Dataset[2026/27 To - Spending review Topic 4]*$B$3)","v":0},0,0,0,0]
["Spending review topic 4",0,null,null,null,null,"Non-profit institutions",{"$f":"SUMPRODUCT(((Dataset[Econ3]=$G51))*Dataset[2024/25 From - Spending review Topic 4]*$B$3)","v":0},{"$f":"SUMPRODUCT(((Dataset[Econ3]=$G51))*Dataset[2024/25 To - Spending review Topic 4]*$B$3)","v":0},0,{"$f":"SUMPRODUCT(((Dataset[Econ3]=$G51))*Dataset[2025/26 From - Spending review Topic 4]*$B$3)","v":0},{"$f":"SUMPRODUCT(((Dataset[Econ3]=$G51))*Dataset[2025/26 To - Spending review Topic 4]*$B$3)","v":0},0,{"$f":"SUMPRODUCT(((Dataset[Econ3]=$G51))*Dataset[2026/27 From - Spending review Topic 4]*$B$3)","v":0},{"$f":"SUMPRODUCT(((Dataset[Econ3]=$G51))*Dataset[2026/27 To - Spending review Topic 4]*$B$3)","v":0},0,0,0,0]
["Spending review topic 4",0,null,null,null,null,"Households",{"$f":"SUM(H53:H54)","v":0},0,0,0,0,0,0,0,0,0,0,0]
["Spending review topic 4",0,null,null,null,null,"Social benefits",{"$f":"SUMPRODUCT(((Dataset[Econ4]=$G53))*Dataset[2024/25 From - Spending review Topic 4]*$B$3)","v":0},{"$f":"SUMPRODUCT(((Dataset[Econ4]=$G53))*Dataset[2024/25 To - Spending review Topic 4]*$B$3)","v":0},{"$f":"H53+I53","v":0},{"$f":"SUMPRODUCT(((Dataset[Econ4]=$G53))*Dataset[2025/26 From - Spending review Topic 4]*$B$3)","v":0},{"$f":"SUMPRODUCT(((Dataset[Econ4]=$G53))*Dataset[2025/26 To - Spending review Topic 4]*$B$3)","v":0},{"$f":"K53+L53","v":0},{"$f":"SUMPRODUCT(((Dataset[Econ4]=$G53))*Dataset[2026/27 From - Spending review Topic 4]*$B$3)","v":0},{"$f":"SUMPRODUCT(((Dataset[Econ4]=$G53))*Dataset[2026/27 To - Spending review Topic 4]*$B$3)","v":0},{"$f":"N53+O53","v":0},{"$f":"SUM(H53,K53,N53)","v":0},0,0]
["Spending review topic 4",0,null,null,null,null,"Other transfers to households",{"$f":"SUMPRODUCT(((Dataset[Econ4]=$G54))*Dataset[2024/25 From - Spending review Topic 4]*$B$3)","v":0},{"$f":"SUMPRODUCT(((Dataset[Econ4]=$G54))*Dataset[2024/25 To - Spending review Topic 4]*$B$3)","v":0},0,{"$f":"SUMPRODUCT(((Dataset[Econ4]=$G54))*Dataset[2025/26 From - Spending review Topic 4]*$B$3)","v":0},{"$f":"SUMPRODUCT(((Dataset[Econ4]=$G54))*Dataset[2025/26 To - Spending review Topic 4]*$B$3)","v":0},0,{"$f":"SUMPRODUCT(((Dataset[Econ4]=$G54))*Dataset[2026/27 From - Spending review Topic 4]*$B$3)","v":0},{"$f":"SUMPRODUCT(((Dataset[Econ4]=$G54))*Dataset[2026/27 To - Spending review Topic 4]*$B$3)","v":0},0,0,0,0]
["Spending review topic 4",0,null,null,null,null,"Payments for capital assets",{"$f":"SUM(H56,H59,H62:H66)","v":0},0,0,0,0,0,0,0,0,0,0,0]
["Spending review topic 4",0,null,null,null,null,"Buildings and other fixed structures",{"$f":"SUM(H57:H58)","v":0},0,0,0,0,0,0,0,0,0,0,0]
["Spending review topic 4",0,null,null,null,null,"Buildings",{"$f":"SUMPRODUCT(((Dataset[Econ4]=$G57))*Dataset[2024/25 From - Spending review Topic 4]*$B$3)","v":0},{"$f":"SUMPRODUCT(((Dataset[Econ4]=$G57))*Dataset[2024/25 To - Spending review Topic 4]*$B$3)","v":0},{"$f":"H57+I57","v":0},{"$f":"SUMPRODUCT(((Dataset[Econ4]=$G57))*Dataset[2025/26 From - Spending review Topic 4]*$B$3)","v":0},{"$f":"SUMPRODUCT(((Dataset[Econ4]=$G57))*Dataset[2025/26 To - Spending review Topic 4]*$B$3)","v":0},{"$f":"K57+L57","v":0},{"$f":"SUMPRODUCT(((Dataset[Econ4]=$G57))*Dataset[2026/27 From - Spending review Topic 4]*$B$3)","v":0},{"$f":"SUMPRODUCT(((Dataset[Econ4]=$G57))*Dataset[2026/27 To - Spending review Topic 4]*$B$3)","v":0},{"$f":"N57+O57","v":0},{"$f":"SUM(H57,K57,N57)","v":0},0,0]
["Spending review topic 4",0,null,null,null,null,"Other fixed structures",{"$f":"SUMPRODUCT(((Dataset[Econ4]=$G58))*Dataset[2024/25 From - Spending review Topic 4]*$B$3)","v":0},{"$f":"SUMPRODUCT(((Dataset[Econ4]=$G58))*Dataset[2024/25 To - Spending review Topic 4]*$B$3)","v":0},0,{"$f":"SUMPRODUCT(((Dataset[Econ4]=$G58))*Dataset[2025/26 From - Spending review Topic 4]*$B$3)","v":0},{"$f":"SUMPRODUCT(((Dataset[Econ4]=$G58))*Dataset[2025/26 To - Spending review Topic 4]*$B$3)","v":0},0,{"$f":"SUMPRODUCT(((Dataset[Econ4]=$G58))*Dataset[2026/27 From - Spending review Topic 4]*$B$3)","v":0},{"$f":"SUMPRODUCT(((Dataset[Econ4]=$G58))*Dataset[2026/27 To - Spending review Topic 4]*$B$3)","v":0},0,0,0,0]
["Spending review topic 4",0,null,null,null,null,"Machinery and equipment",{"$f":"SUM(H60:H61)","v":0},0,0,0,0,0,0,0,0,0,0,0]
["Spending review topic 4",0,null,null,null,null,"Transport equipment",{"$f":"SUMPRODUCT(((Dataset[Econ4]=$G60))*Dataset[2024/25 From - Spending review Topic 4]*$B$3)","v":0},{"$f":"SUMPRODUCT(((Dataset[Econ4]=$G60))*Dataset[2024/25 To - Spending review Topic 4]*$B$3)","v":0},{"$f":"H60+I60","v":0},{"$f":"SUMPRODUCT(((Dataset[Econ4]=$G60))*Dataset[2025/26 From - Spending review Topic 4]*$B$3)","v":0},{"$f":"SUMPRODUCT(((Dataset[Econ4]=$G60))*Dataset[2025/26 To - Spending review Topic 4]*$B$3)","v":0},{"$f":"K60+L60","v":0},{"$f":"SUMPRODUCT(((Dataset[Econ4]=$G60))*Dataset[2026/27 From - Spending review Topic 4]*$B$3)","v":0},{"$f":"SUMPRODUCT(((Dataset[Econ4]=$G60))*Dataset[2026/27 To - Spending review Topic 4]*$B$3)","v":0},{"$f":"N60+O60","v":0},{"$f":"SUM(H60,K60,N60)","v":0},0,0]
["Spending review topic 4",0,null,null,null,null,"Other machinery and equipment",{"$f":"SUMPRODUCT(((Dataset[Econ4]=$G61))*Dataset[2024/25 From - Spending review Topic 4]*$B$3)","v":0},{"$f":"SUMPRODUCT(((Dataset[Econ4]=$G61))*Dataset[2024/25 To - Spending review Topic 4]*$B$3)","v":0},0,{"$f":"SUMPRODUCT(((Dataset[Econ4]=$G61))*Dataset[2025/26 From - Spending review Topic 4]*$B$3)","v":0},{"$f":"SUMPRODUCT(((Dataset[Econ4]=$G61))*Dataset[2025/26 To - Spending review Topic 4]*$B$3)","v":0},0,{"$f":"SUMPRODUCT(((Dataset[Econ4]=$G61))*Dataset[2026/27 From - Spending review Topic 4]*$B$3)","v":0},{"$f":"SUMPRODUCT(((Dataset[Econ4]=$G61))*Dataset[2026/27 To - Spending review Topic 4]*$B$3)","v":0},0,0,0,0]
["Spending review topic 4",0,null,null,null,null,"Heritage assets",{"$f":"SUMPRODUCT(((Dataset[Econ3]=$G62))*Dataset[2024/25 From - Spending review Topic 4]*$B$3)","v":0},{"$f":"SUMPRODUCT(((Dataset[Econ3]=$G62))*Dataset[2024/25 To - Spending review Topic 4]*$B$3)","v":0},0,{"$f":"SUMPRODUCT(((Dataset[Econ3]=$G62))*Dataset[2025/26 From - Spending review Topic 4]*$B$3)","v":0},{"$f":"SUMPRODUCT(((Dataset[Econ3]=$G62))*Dataset[2025/26 To - Spending review Topic 4]*$B$3)","v":0},0,{"$f":"SUMPRODUCT(((Dataset[Econ3]=$G62))*Dataset[2026/27 From - Spending review Topic 4]*$B$3)","v":0},{"$f":"SUMPRODUCT(((Dataset[Econ3]=$G62))*Dataset[2026/27 To - Spending review Topic 4]*$B$3)","v":0},0,0,0,0]
["Spending review topic 4",0,null,null,null,null,"Specialised military assets",{"$f":"SUMPRODUCT(((Dataset[Econ3]=$G63))*Dataset[2024/25 From - Spending review Topic 4]*$B$3)","v":0},{"$f":"SUMPRODUCT(((Dataset[Econ3]=$G63))*Dataset[2024/25 To - Spending review Topic 4]*$B$3)","v":0},0,{"$f":"SUMPRODUCT(((Dataset[Econ3]=$G63))*Dataset[2025/26 From - Spending review Topic 4]*$B$3)","v":0},{"$f":"SUMPRODUCT(((Dataset[Econ3]=$G63))*Dataset[2025/26 To - Spending review Topic 4]*$B$3)","v":0},0,{"$f":"SUMPRODUCT(((Dataset[Econ3]=$G63))*Dataset[2026/27 From - Spending review Topic 4]*$B$3)","v":0},{"$f":"SUMPRODUCT(((Dataset[Econ3]=$G63))*Dataset[2026/27 To - Spending review Topic 4]*$B$3)","v":0},0,0,0,0]
["Spending review topic 4",0,null,null,null,null,"Biological assets",{"$f":"SUMPRODUCT(((Dataset[Econ3]=$G64))*Dataset[2024/25 From - Spending review Topic 4]*$B$3)","v":0},{"$f":"SUMPRODUCT(((Dataset[Econ3]=$G64))*Dataset[2024/25 To - Spending review Topic 4]*$B$3)","v":0},0,{"$f":"SUMPRODUCT(((Dataset[Econ3]=$G64))*Dataset[2025/26 From - Spending review Topic 4]*$B$3)","v":0},{"$f":"SUMPRODUCT(((Dataset[Econ3]=$G64))*Dataset[2025/26 To - Spending review Topic 4]*$B$3)","v":0},0,{"$f":"SUMPRODUCT(((Dataset[Econ3]=$G64))*Dataset[2026/27 From - Spending review Topic 4]*$B$3)","v":0},{"$f":"SUMPRODUCT(((Dataset[Econ3]=$G64))*Dataset[2026/27 To - Spending review Topic 4]*$B$3)","v":0},0,0,0,0]
["Spending review topic 4",0,null,null,null,null,"Land and sub-soil assets",{"$f":"SUMPRODUCT(((Dataset[Econ3]=$G65))*Dataset[2024/25 From - Spending review Topic 4]*$B$3)","v":0},{"$f":"SUMPRODUCT(((Dataset[Econ3]=$G65))*Dataset[2024/25 To - Spending review Topic 4]*$B$3)","v":0},0,{"$f":"SUMPRODUCT(((Dataset[Econ3]=$G65))*Dataset[2025/26 From - Spending review Topic 4]*$B$3)","v":0},{"$f":"SUMPRODUCT(((Dataset[Econ3]=$G65))*Dataset[2025/26 To - Spending review Topic 4]*$B$3)","v":0},0,{"$f":"SUMPRODUCT(((Dataset[Econ3]=$G65))*Dataset[2026/27 From - Spending review Topic 4]*$B$3)","v":0},{"$f":"SUMPRODUCT(((Dataset[Econ3]=$G65))*Dataset[2026/27 To - Spending review Topic 4]*$B$3)","v":0},0,0,0,0]
["Spending review topic 4",0,null,null,null,null,"Software and other intangible assets",{"$f":"SUMPRODUCT(((Dataset[Econ3]=$G66))*Dataset[2024/25 From - Spending review Topic 4]*$B$3)","v":0},{"$f":"SUMPRODUCT(((Dataset[Econ3]=$G66))*Dataset[2024/25 To - Spending review Topic 4]*$B$3)","v":0},0,{"$f":"SUMPRODUCT(((Dataset[Econ3]=$G66))*Dataset[2025/26 From - Spending review Topic 4]*$B$3)","v":0},{"$f":"SUMPRODUCT(((Dataset[Econ3]=$G66))*Dataset[2025/26 To - Spending review Topic 4]*$B$3)","v":0},0,{"$f":"SUMPRODUCT(((Dataset[Econ3]=$G66))*Dataset[2026/27 From - Spending review Topic 4]*$B$3)","v":0},{"$f":"SUMPRODUCT(((Dataset[Econ3]=$G66))*Dataset[2026/27 To - Spending review Topic 4]*$B$3)","v":0},0,0,0,0]
["Spending review topic 4",0,null,null,null,null,"Payments for financial assets",{"$f":"SUMPRODUCT(((Dataset[Econ3]=$G67))*Dataset[2024/25 From - Spending review Topic 4]*$B$3)","v":0},{"$f":"SUMPRODUCT(((Dataset[Econ3]=$G67))*Dataset[2024/25 To - Spending review Topic 4]*$B$3)","v":0},0,{"$f":"SUMPRODUCT(((Dataset[Econ3]=$G67))*Dataset[2025/26 From - Spending review Topic 4]*$B$3)","v":0},{"$f":"SUMPRODUCT(((Dataset[Econ3]=$G67))*Dataset[2025/26 To - Spending review Topic 4]*$B$3)","v":0},0,{"$f":"SUMPRODUCT(((Dataset[Econ3]=$G67))*Dataset[2026/27 From - Spending review Topic 4]*$B$3)","v":0},{"$f":"SUMPRODUCT(((Dataset[Econ3]=$G67))*Dataset[2026/27 To - Spending review Topic 4]*$B$3)","v":0},0,0,0,0]
["Spending review topic 4",0,null,null,null,null,"Total",{"$f":"SUM(H35,H39,H55,H67)","v":0},0,0,0,0,0,0,0,0,0,0,0]
[]
[]
[]
[]
[null,null,null,null,null,null,{"$f":"\"IMPACT OF ADJUSTMENTS: \" &UPPER($G$3)","v":"IMPACT OF ADJUSTMENTS: SPENDING REVIEW TOPIC 4"}]
[]
[null,null,null,null,null,1,"Impact of adjustments on expenditure"]
[{"$f":"$G$3","v":"Spending review topic 4"},5,null,null,null,null,null,{"$f":"MyYear4","v":"2023/24"},null,null,{"$f":"MyYear5","v":"2024/25"},null,null,{"$f":"MyYear6","v":"2025/26"},null,null,{"$f":"MyYear7","v":"2026/27"}]
["Spending review topic 4",5,null,null,null,null,null,"Current expenditure","Potential expenditure @ benchmark level","% Savings if benchmark is achieved","Original number","Change in expenditure","Saving as % of original number","Original number","Change in expenditure","Saving as % of original number","Original number","Change in expenditure","Saving as % of original number"]
["Spending review topic 4",5,null,null,null,null,"Total",null,null,{"$f":"IFERROR((H78-I78)/-H78,\"\")","v":""},null,null,{"$f":"IFERROR((K78-L78)/-K78,\"\")","v":""},null,null,{"$f":"IFERROR((N78-O78)/-N78,\"\")","v":""},null,null,{"$f":"IFERROR((Q78-R78)/-Q78,\"\")","v":""}]
[]
[]
[]
[]
[]
[null,null,null,null,null,2,"Summary of impact on service delivery/policy area due to adjustments"]
[{"$f":"$G$3","v":"Spending review topic 4"},1]
["Spending review topic 4",1]
["Spending review topic 4",1]
["Spending review topic 4",1]
["Spending review topic 4",1]
["Spending review topic 4",1]
["Spending review topic 4",1]
["Spending review topic 4",1]
["Spending review topic 4",1]
["Spending review topic 4",1]
["Spending review topic 4",1]
["Spending review topic 4",1]
["Spending review topic 4",1]
["Spending review topic 4",1]
["Spending review topic 4",1]
[]
[]
[]
[]
[]
[null,null,null,null,null,3,"Impact of adjustments on performance indicators"]
[{"$f":"$G$3","v":"Spending review topic 4"},2,null,null,null,null,null,{"$f":"MyYear4","v":"2023/24"},null,null,{"$f":"MyYear5","v":"2024/25"},null,null,{"$f":"MyYear6","v":"2025/26"},null,null,{"$f":"MyYear7","v":"2026/27"},null,null," Comment",null,null,null,null,"Related MTSF Priority"]
["Spending review topic 4",2,null,null,null,null,"Performance indicator","Current performance","Performance @ benchmark level","Change","Original target","Revised target","Change","Original target","Revised target","Change","Original target","Revised target","Change"]
["Spending review topic 4",2]
["Spending review topic 4",2]
["Spending review topic 4",2]
["Spending review topic 4",2]
["Spending review topic 4",2]
["Spending review topic 4",2]
["Spending review topic 4",2]
["Spending review topic 4",2]
["Spending review topic 4",2]
["Spending review topic 4",2]
["Spending review topic 4",2]
["Spending review topic 4",2]
["Spending review topic 4",2]
["Spending review topic 4",2]
["Spending review topic 4",2]
[]
[]
[]
[]
[]
[null,null,null,null,null,4,"Impact of adjustments on personnel headcount numbers"]
[{"$f":"$G$3","v":"Spending review topic 4"},4,null,null,null,null,null,{"$f":"MyYear4","v":"2023/24"},null,null,{"$f":"MyYear5","v":"2024/25"},null,null,{"$f":"MyYear6","v":"2025/26"},null,null,{"$f":"MyYear7","v":"2026/27"},null,null," Comment"]
["Spending review topic 4",4,null,null,null,null,"Salary level","Current number","Potential number if benchmark is achieved","Change in number","Original number","Revised number","Change in number","Original number","Revised number","Change in number","Original number","Revised number","Change in number"]
["Spending review topic 4",4,null,null,null,null,1,null,null,{"$f":"I131-H131","v":0},null,null,{"$f":"L131-K131","v":0},null,null,{"$f":"O131-N131","v":0},null,null,{"$f":"R131-Q131","v":0}]
["Spending review topic 4",4,null,null,null,null,2,null,null,0,null,null,0,null,null,0,null,null,0]
["Spending review topic 4",4,null,null,null,null,3,null,null,0,null,null,0,null,null,0,null,null,0]
["Spending review topic 4",4,null,null,null,null,4,null,null,0,null,null,0,null,null,0,null,null,0]
["Spending review topic 4",4,null,null,null,null,5,null,null,0,null,null,0,null,null,0,null,null,0]
["Spending review topic 4",4,null,null,null,null,6,null,null,0,null,null,0,null,null,0,null,null,0]
["Spending review topic 4",4,null,null,null,null,7,null,null,0,null,null,0,null,null,0,null,null,0]
["Spending review topic 4",4,null,null,null,null,8,null,null,0,null,null,0,null,null,0,null,null,0]
["Spending review topic 4",4,null,null,null,null,9,null,null,0,null,null,0,null,null,0,null,null,0]
["Spending review topic 4",4,null,null,null,null,10,null,null,0,null,null,0,null,null,0,null,null,0]
["Spending review topic 4",4,null,null,null,null,11,null,null,0,null,null,0,null,null,0,null,null,0]
["Spending review topic 4",4,null,null,null,null,12,null,null,0,null,null,0,null,null,0,null,null,0]
["Spending review topic 4",4,null,null,null,null,13,null,null,0,null,null,0,null,null,0,null,null,0]
["Spending review topic 4",4,null,null,null,null,14,null,null,0,null,null,0,null,null,0,null,null,0]
["Spending review topic 4",4,null,null,null,null,15,null,null,0,null,null,0,null,null,0,null,null,0]
["Spending review topic 4",4,null,null,null,null,16,null,null,0,null,null,0,null,null,0,null,null,0]
["Spending review topic 4",4,null,null,null,null,"Other",null,null,0,null,null,0,null,null,0,null,null,0]
["Spending review topic 4",4,null,null,null,null,"Other",null,null,0,null,null,0,null,null,0,null,null,0]
["Spending review topic 4",4,null,null,null,null,"Other",null,null,0,null,null,0,null,null,0,null,null,0]
["Spending review topic 4",4,null,null,null,null,"Other",null,null,0,null,null,0,null,null,0,null,null,0]
["Spending review topic 4",4,null,null,null,null,"Total",{"$f":"SUM(H131:H150)","v":0},0,0,{"$f":"SUM(K131:K150)","v":0},0,0,0,0,0,0,0,0]
[]
[]
[]
[]
[]
[null,null,null,null,null,5,"Impact of adjustments on infrastructure projects"]
[{"$f":"$G$3","v":"Spending review topic 4"},3,null,null,null,null,null,{"$f":"MyYear4","v":"2023/24"},null,null,{"$f":"MyYear5","v":"2024/25"},null,null,{"$f":"MyYear6","v":"2025/26"},null,null,{"$f":"MyYear7","v":"2026/27"},null,null," Comment"]
["Spending review topic 4",3,null,null,null,null,"Project name","Current number","Market or best in class benchmark","Change","Original amount","Revised amount","Change","Original amount","Revised amount","Change","Original amount","Revised amount","Change"]
["Spending review topic 4",3,null,null,null,null,null,null,null,{"$f":"I160-H160","v":0},null,null,{"$f":"L160-K160","v":0},null,null,{"$f":"O160-N160","v":0},null,null,{"$f":"R160-Q160","v":0}]
["Spending review topic 4",3,null,null,null,null,null,null,null,0,null,null,0,null,null,0,null,null,0]
["Spending review topic 4",3,null,null,null,null,null,null,null,0,null,null,0,null,null,0,null,null,0]
["Spending review topic 4",3,null,null,null,null,null,null,null,0,null,null,0,null,null,0,null,null,0]
["Spending review topic 4",3,null,null,null,null,null,null,null,0,null,null,0,null,null,0,null,null,0]
["Spending review topic 4",3,null,null,null,null,null,null,null,0,null,null,0,null,null,0,null,null,0]
["Spending review topic 4",3,null,null,null,null,null,null,null,0,null,null,0,null,null,0,null,null,0]
["Spending review topic 4",3,null,null,null,null,null,null,null,0,null,null,0,null,null,0,null,null,0]
["Spending review topic 4",3,null,null,null,null,null,null,null,0,null,null,0,null,null,0,null,null,0]
["Spending review topic 4",3,null,null,null,null,null,null,null,0,null,null,0,null,null,0,null,null,0]
["Spending review topic 4",3,null,null,null,null,null,null,null,0,null,null,0,null,null,0,null,null,0]
["Spending review topic 4",3,null,null,null,null,null,null,null,0,null,null,0,null,null,0,null,null,0]
["Spending review topic 4",3,null,null,null,null,null,null,null,0,null,null,0,null,null,0,null,null,0]
["Spending review topic 4",3,null,null,null,null,null,null,null,0,null,null,0,null,null,0,null,null,0]
["Spending review topic 4",3,null,null,null,null,null,null,null,0,null,null,0,null,null,0,null,null,0]
["Spending review topic 4",3,null,null,null,null,null,null,null,0,null,null,0,null,null,0,null,null,0]
["Spending review topic 4",3,null,null,null,null,null,null,null,0,null,null,0,null,null,0,null,null,0]
["Spending review topic 4",3,null,null,null,null,null,null,null,0,null,null,0,null,null,0,null,null,0]
["Spending review topic 4",3,null,null,null,null,null,null,null,0,null,null,0,null,null,0,null,null,0]
["Spending review topic 4",3,null,null,null,null,null,null,null,0,null,null,0,null,null,0,null,null,0]
["Spending review topic 4",3,null,null,null,null,null,null,null,0,null,null,0,null,null,0,null,null,0]
["Spending review topic 4",3,null,null,null,null,null,null,null,0,null,null,0,null,null,0,null,null,0]
["Spending review topic 4",3,null,null,null,null,null,null,null,0,null,null,0,null,null,0,null,null,0]
["Spending review topic 4",3,null,null,null,null,null,null,null,0,null,null,0,null,null,0,null,null,0]
["Spending review topic 4",3,null,null,null,null,null,null,null,0,null,null,0,null,null,0,null,null,0]
["Spending review topic 4",3,null,null,null,null,null,null,null,0,null,null,0,null,null,0,null,null,0]
["Spending review topic 4",3,null,null,null,null,null,null,null,0,null,null,0,null,null,0,null,null,0]
["Spending review topic 4",3,null,null,null,null,null,null,null,0,null,null,0,null,null,0,null,null,0]
["Spending review topic 4",3,null,null,null,null,null,null,null,0,null,null,0,null,null,0,null,null,0]
["Spending review topic 4",3,null,null,null,null,null,null,null,0,null,null,0,null,null,0,null,null,0]
["Spending review topic 4",3,null,null,null,null,null,null,null,0,null,null,0,null,null,0,null,null,0]
["Spending review topic 4",3,null,null,null,null,null,null,null,0,null,null,0,null,null,0,null,null,0]
["Spending review topic 4",3,null,null,null,null,null,null,null,0,null,null,0,null,null,0,null,null,0]
["Spending review topic 4",3,null,null,null,null,null,null,null,0,null,null,0,null,null,0,null,null,0]
["Spending review topic 4",3,null,null,null,null,null,null,null,0,null,null,0,null,null,0,null,null,0]
["Spending review topic 4",3,null,null,null,null,null,null,null,0,null,null,0,null,null,0,null,null,0]
["Spending review topic 4",3,null,null,null,null,null,null,null,0,null,null,0,null,null,0,null,null,0]
["Spending review topic 4",3,null,null,null,null,null,null,null,0,null,null,0,null,null,0,null,null,0]
["Spending review topic 4",3,null,null,null,null,null,null,null,0,null,null,0,null,null,0,null,null,0]
["Spending review topic 4",3,null,null,null,null,null,null,null,0,null,null,0,null,null,0,null,null,0]
["Spending review topic 4",3,null,null,null,null,null,null,null,0,null,null,0,null,null,0,null,null,0]
["Spending review topic 4",3,null,null,null,null,null,null,null,0,null,null,0,null,null,0,null,null,0]
["Spending review topic 4",3,null,null,null,null,null,null,null,0,null,null,0,null,null,0,null,null,0]
["Spending review topic 4",3,null,null,null,null,null,null,null,0,null,null,0,null,null,0,null,null,0]
["Spending review topic 4",3,null,null,null,null,null,null,null,0,null,null,0,null,null,0,null,null,0]
["Spending review topic 4",3,null,null,null,null,null,null,null,0,null,null,0,null,null,0,null,null,0]
["Spending review topic 4",3,null,null,null,null,null,null,null,0,null,null,0,null,null,0,null,null,0]
["Spending review topic 4",3,null,null,null,null,null,null,null,0,null,null,0,null,null,0,null,null,0]
["Spending review topic 4",3,null,null,null,null,null,null,null,0,null,null,0,null,null,0,null,null,0]
["Spending review topic 4",3,null,null,null,null,null,null,null,0,null,null,0,null,null,0,null,null,0]
["Spending review topic 4",3,null,null,null,null,"Total",{"$f":"SUM(H160:H209)","v":0},0,0,0,0,0,0,0,0,0,0,0]

{"sheet":"Other reallocations","index":15,"n_rows":210,"n_cols":25,"rows_kept":210,"cut":false,"hidden":false,"merged":[[72,6,72,18],[84,6,98,18],[105,19,105,23],[105,24,105,26],[106,19,106,23],[106,24,106,26],[107,19,107,23],[107,24,107,26],[108,19,108,23],[108,24,108,26],[109,19,109,23],[109,24,109,26],[110,19,110,23],[110,24,110,26],[111,19,111,23],[111,24,111,26],[112,19,112,23],[112,24,112,26],[113,19,113,23],[113,24,113,26],[114,19,114,23],[114,24,114,26],[115,19,115,23],[115,24,115,26],[116,19,116,23],[116,24,116,26],[117,19,117,23],[117,24,117,26],[118,19,118,23],[118,24,118,26],[119,19,119,23],[119,24,119,26],[120,19,120,23],[120,24,120,26],[121,19,121,23],[121,24,121,26],[165,19,165,23],[128,19,128,23],[129,19,129,23],[130,19,149,23],[157,19,157,23],[158,19,158,23],[159,19,159,23],[160,19,160,23],[161,19,161,23],[162,19,162,23],[163,19,163,23],[164,19,164,23],[177,19,177,23],[166,19,166,23],[167,19,167,23],[168,19,168,23],[169,19,169,23],[170,19,170,23],[171,19,171,23],[172,19,172,23],[173,19,173,23],[174,19,174,23],[175,19,175,23],[176,19,176,23],[189,19,189,23],[178,19,178,23],[179,19,179,23],[180,19,180,23],[181,19,181,23],[182,19,182,23],[183,19,183,23],[184,19,184,23],[185,19,185,23],[186,19,186,23],[187,19,187,23],[188,19,188,23],[201,19,201,23],[190,19,190,23],[191,19,191,23],[192,19,192,23],[193,19,193,23],[194,19,194,23],[195,19,195,23],[196,19,196,23],[197,19,197,23],[198,19,198,23],[199,19,199,23],[200,19,200,23],[208,19,208,23],[202,19,202,23],[203,19,203,23],[204,19,204,23],[205,19,205,23],[206,19,206,23],[207,19,207,23]]}
[]
[]
[null,{"$f":"IF(G3=\"\",0,1)","v":1},null,null,null,5,{"$f":"\"Other reallocations\"","v":"Other reallocations"}]
[]
[null,null,null,null,null,null,"Quick view…(Total change)",{"$f":"MyYear5","v":"2024/25"},{"$f":"MyYear6","v":"2025/26"},{"$f":"MyYear7","v":"2026/27"},"MTEF total","Trend"]
[null,null,null,null,null,null,"Compensation of employees",{"$f":"SUMPRODUCT(($G$35:$G$68=$G6)*($J$35:$J$68))","v":0},{"$f":"SUMPRODUCT(($G$35:$G$68=$G6)*($M$35:$M$68))","v":0},{"$f":"SUMPRODUCT(($G$35:$G$68=$G6)*($P$35:$P$68))","v":0},{"$f":"SUM(H6:J6)","v":0},null,null,"CoE"]
[null,null,null,null,null,null,"Goods and services",{"$f":"SUMPRODUCT(($G$35:$G$68=$G7)*($J$35:$J$68))","v":0},{"$f":"SUMPRODUCT(($G$35:$G$68=$G7)*($M$35:$M$68))","v":0},{"$f":"SUMPRODUCT(($G$35:$G$68=$G7)*($P$35:$P$68))","v":0},0,null,null,"G&S"]
[null,null,null,null,null,null,"Transfers and subsidies",{"$f":"SUMPRODUCT(($G$35:$G$68=$G8)*($J$35:$J$68))","v":0},{"$f":"SUMPRODUCT(($G$35:$G$68=$G8)*($M$35:$M$68))","v":0},{"$f":"SUMPRODUCT(($G$35:$G$68=$G8)*($P$35:$P$68))","v":0},0,null,null,"T&S"]
[null,null,null,null,null,null,"Payments for capital assets",{"$f":"SUMPRODUCT(($G$35:$G$68=$G9)*($J$35:$J$68))","v":0},{"$f":"SUMPRODUCT(($G$35:$G$68=$G9)*($M$35:$M$68))","v":0},{"$f":"SUMPRODUCT(($G$35:$G$68=$G9)*($P$35:$P$68))","v":0},0,null,null,"Capital"]
[null,null,null,null,null,null,"Total",{"$f":"SUMPRODUCT(($G$35:$G$68=$G10)*($J$35:$J$68))","v":0},{"$f":"SUMPRODUCT(($G$35:$G$68=$G10)*($M$35:$M$68))","v":0},{"$f":"SUMPRODUCT(($G$35:$G$68=$G10)*($P$35:$P$68))","v":0},0,null,null,"Total"]
[null,null,null,null,null,null,"% of MTEF total",null,null,null,null,null,null,null,null,null,null,null,{"$f":"MyYear5","v":"2024/25"},{"$f":"MyYear6","v":"2025/26"},{"$f":"MyYear7","v":"2026/27"}]
[null,null,null,null,null,null,"Compensation of employees",{"$f":"IFERROR(H6/$K6,\"\")","v":""},"","",null,null,null,null,null,null,null,{"$f":"G12","v":"Compensation of employees"},{"$f":"IF(H12>0.0595,H12,\"\")","v":""},"",""]
[null,null,null,null,null,null,"Goods and services","","","",null,null,null,null,null,null,null,{"$f":"G13","v":"Goods and services"},"","",""]
[null,null,null,null,null,null,"Transfers and subsidies","","","",null,null,null,null,null,null,null,{"$f":"G14","v":"Transfers and subsidies"},"","",""]
[null,null,null,null,null,null,"Payments for capital assets","","","",null,null,null,null,null,null,null,{"$f":"G15","v":"Payments for capital assets"},"","",""]
[]
[null,null,null,null,null,null,"Division of Revenue",{"$f":"MyYear5","v":"2024/25"},{"$f":"MyYear6","v":"2025/26"},{"$f":"MyYear7","v":"2026/27"},"MTEF total","Trend"]
[null,null,null,null,null,null,"National",{"$f":"SUM(H19:H21)","v":0},0,0,{"$f":"SUM(H18:J18)","v":0}]
[{"$f":"$G$3","v":"Other reallocations"},"NAT",null,null,null,null,"National (excl. indirect grants)",{"$f":"SUMPRODUCT(((Dataset[DOR]=$B19))*Dataset[2024/25 From - Other reallocations])+SUMPRODUCT(((Dataset[DOR]=$B19))*Dataset[2024/25 To - Other reallocations])","v":0},{"$f":"SUMPRODUCT(((Dataset[DOR]=$B19))*Dataset[2025/26 From - Other reallocations])+SUMPRODUCT(((Dataset[DOR]=$B19))*Dataset[2025/26 To - Other reallocations])","v":0},{"$f":"SUMPRODUCT(((Dataset[DOR]=$B19))*Dataset[2026/27 From - Other reallocations])+SUMPRODUCT(((Dataset[DOR]=$B19))*Dataset[2026/27 To - Other reallocations])","v":0},0]
["Other reallocations","IGP",null,null,null,null,"Provincial indirect grants",{"$f":"SUMPRODUCT(((Dataset[DOR]=$B20))*Dataset[2024/25 From - Other reallocations])+SUMPRODUCT(((Dataset[DOR]=$B20))*Dataset[2024/25 To - Other reallocations])","v":0},{"$f":"SUMPRODUCT(((Dataset[DOR]=$B20))*Dataset[2025/26 From - Other reallocations])+SUMPRODUCT(((Dataset[DOR]=$B20))*Dataset[2025/26 To - Other reallocations])","v":0},{"$f":"SUMPRODUCT(((Dataset[DOR]=$B20))*Dataset[2026/27 From - Other reallocations])+SUMPRODUCT(((Dataset[DOR]=$B20))*Dataset[2026/27 To - Other reallocations])","v":0},0]
["Other reallocations","IGM",null,null,null,null,"Local indirect grants",{"$f":"SUMPRODUCT(((Dataset[DOR]=$B21))*Dataset[2024/25 From - Other reallocations])+SUMPRODUCT(((Dataset[DOR]=$B21))*Dataset[2024/25 To - Other reallocations])","v":0},{"$f":"SUMPRODUCT(((Dataset[DOR]=$B21))*Dataset[2025/26 From - Other reallocations])+SUMPRODUCT(((Dataset[DOR]=$B21))*Dataset[2025/26 To - Other reallocations])","v":0},{"$f":"SUMPRODUCT(((Dataset[DOR]=$B21))*Dataset[2026/27 From - Other reallocations])+SUMPRODUCT(((Dataset[DOR]=$B21))*Dataset[2026/27 To - Other reallocations])","v":0},0]
["Other reallocations",null,null,null,null,null,"Provincial",{"$f":"SUMPRODUCT(((Dataset[DOR]=$B22))*Dataset[2024/25 From - Other reallocations])+SUMPRODUCT(((Dataset[DOR]=$B22))*Dataset[2024/25 To - Other reallocations])","v":0},{"$f":"SUMPRODUCT(((Dataset[DOR]=$B22))*Dataset[2025/26 From - Other reallocations])+SUMPRODUCT(((Dataset[DOR]=$B22))*Dataset[2025/26 To - Other reallocations])","v":0},{"$f":"SUMPRODUCT(((Dataset[DOR]=$B22))*Dataset[2026/27 From - Other reallocations])+SUMPRODUCT(((Dataset[DOR]=$B22))*Dataset[2026/27 To - Other reallocations])","v":0},0]
["Other reallocations","PES",null,null,null,null,"Provincial equitable share",{"$f":"SUMPRODUCT(((Dataset[DOR]=$B23))*Dataset[2024/25 From - Other reallocations])+SUMPRODUCT(((Dataset[DOR]=$B23))*Dataset[2024/25 To - Other reallocations])","v":0},{"$f":"SUMPRODUCT(((Dataset[DOR]=$B23))*Dataset[2025/26 From - Other reallocations])+SUMPRODUCT(((Dataset[DOR]=$B23))*Dataset[2025/26 To - Other reallocations])","v":0},{"$f":"SUMPRODUCT(((Dataset[DOR]=$B23))*Dataset[2026/27 From - Other reallocations])+SUMPRODUCT(((Dataset[DOR]=$B23))*Dataset[2026/27 To - Other reallocations])","v":0},0]
["Other reallocations","PCG",null,null,null,null,"Provincial conditional grants",{"$f":"SUMPRODUCT(((Dataset[DOR]=$B24))*Dataset[2024/25 From - Other reallocations])+SUMPRODUCT(((Dataset[DOR]=$B24))*Dataset[2024/25 To - Other reallocations])","v":0},{"$f":"SUMPRODUCT(((Dataset[DOR]=$B24))*Dataset[2025/26 From - Other reallocations])+SUMPRODUCT(((Dataset[DOR]=$B24))*Dataset[2025/26 To - Other reallocations])","v":0},{"$f":"SUMPRODUCT(((Dataset[DOR]=$B24))*Dataset[2026/27 From - Other reallocations])+SUMPRODUCT(((Dataset[DOR]=$B24))*Dataset[2026/27 To - Other reallocations])","v":0},0]
["Other reallocations",null,null,null,null,null,"Local government",{"$f":"SUMPRODUCT(((Dataset[DOR]=$B25))*Dataset[2024/25 From - Other reallocations])+SUMPRODUCT(((Dataset[DOR]=$B25))*Dataset[2024/25 To - Other reallocations])","v":0},{"$f":"SUMPRODUCT(((Dataset[DOR]=$B25))*Dataset[2025/26 From - Other reallocations])+SUMPRODUCT(((Dataset[DOR]=$B25))*Dataset[2025/26 To - Other reallocations])","v":0},{"$f":"SUMPRODUCT(((Dataset[DOR]=$B25))*Dataset[2026/27 From - Other reallocations])+SUMPRODUCT(((Dataset[DOR]=$B25))*Dataset[2026/27 To - Other reallocations])","v":0},0]
["Other reallocations","LES",null,null,null,null,"Local equitable share",{"$f":"SUMPRODUCT(((Dataset[DOR]=$B26))*Dataset[2024/25 From - Other reallocations])+SUMPRODUCT(((Dataset[DOR]=$B26))*Dataset[2024/25 To - Other reallocations])","v":0},{"$f":"SUMPRODUCT(((Dataset[DOR]=$B26))*Dataset[2025/26 From - Other reallocations])+SUMPRODUCT(((Dataset[DOR]=$B26))*Dataset[2025/26 To - Other reallocations])","v":0},{"$f":"SUMPRODUCT(((Dataset[DOR]=$B26))*Dataset[2026/27 From - Other reallocations])+SUMPRODUCT(((Dataset[DOR]=$B26))*Dataset[2026/27 To - Other reallocations])","v":0},0]
["Other reallocations","LCG",null,null,null,null,"Local conditional grants",{"$f":"SUMPRODUCT(((Dataset[DOR]=$B27))*Dataset[2024/25 From - Other reallocations])+SUMPRODUCT(((Dataset[DOR]=$B27))*Dataset[2024/25 To - Other reallocations])","v":0},{"$f":"SUMPRODUCT(((Dataset[DOR]=$B27))*Dataset[2025/26 From - Other reallocations])+SUMPRODUCT(((Dataset[DOR]=$B27))*Dataset[2025/26 To - Other reallocations])","v":0},{"$f":"SUMPRODUCT(((Dataset[DOR]=$B27))*Dataset[2026/27 From - Other reallocations])+SUMPRODUCT(((Dataset[DOR]=$B27))*Dataset[2026/27 To - Other reallocations])","v":0},0]
["Other reallocations","GFL",null,null,null,null,"General fuel levy ",{"$f":"SUMPRODUCT(((Dataset[DOR]=$B28))*Dataset[2024/25 From - Other reallocations])+SUMPRODUCT(((Dataset[DOR]=$B28))*Dataset[2024/25 To - Other reallocations])","v":0},{"$f":"SUMPRODUCT(((Dataset[DOR]=$B28))*Dataset[2025/26 From - Other reallocations])+SUMPRODUCT(((Dataset[DOR]=$B28))*Dataset[2025/26 To - Other reallocations])","v":0},{"$f":"SUMPRODUCT(((Dataset[DOR]=$B28))*Dataset[2026/27 From - Other reallocations])+SUMPRODUCT(((Dataset[DOR]=$B28))*Dataset[2026/27 To - Other reallocations])","v":0},0]
[]
[]
[null,null,null,null,null,null,{"$f":"G3","v":"Other reallocations"}]
[{"$f":"$G$3","v":"Other reallocations"},0,null,null,null,null,null,{"$f":"MyYear5","v":"2024/25"},null,null,{"$f":"MyYear6","v":"2025/26"},null,null,{"$f":"MyYear7","v":"2026/27"},null,null,"Total over MTEF"]
[{"$f":"$G$3","v":"Other reallocations"},0,null,null,null,null,"Rand thousand","From","To","Total change","From","To","Total change","From","To","Total change","From","To","Total change"]
["Other reallocations",0,null,null,null,null,"Economic classification"]
["Other reallocations",0,null,null,null,null,"Current payments",{"$f":"SUM(H36:H38)","v":0},0,0,0,0,0,0,0,0,0,0,0]
["Other reallocations",0,null,null,null,null,"Compensation of employees",{"$f":"SUMPRODUCT(((Dataset[Econ3]=$G36))*Dataset[2024/25 From - Other reallocations]*$B$3)","v":0},{"$f":"SUMPRODUCT(((Dataset[Econ3]=$G36))*Dataset[2024/25 To - Other reallocations]*$B$3)","v":0},{"$f":"H36+I36","v":0},{"$f":"SUMPRODUCT(((Dataset[Econ3]=$G36))*Dataset[2025/26 From - Other reallocations]*$B$3)","v":0},{"$f":"SUMPRODUCT(((Dataset[Econ3]=$G36))*Dataset[2025/26 To - Other reallocations]*$B$3)","v":0},{"$f":"K36+L36","v":0},{"$f":"SUMPRODUCT(((Dataset[Econ3]=$G36))*Dataset[2026/27 From - Other reallocations]*$B$3)","v":0},{"$f":"SUMPRODUCT(((Dataset[Econ3]=$G36))*Dataset[2026/27 To - Other reallocations]*$B$3)","v":0},{"$f":"N36+O36","v":0},{"$f":"SUM(H36,K36,N36)","v":0},0,0]
["Other reallocations",0,null,null,null,null,"Goods and services",{"$f":"SUMPRODUCT(((Dataset[Econ3]=$G37))*Dataset[2024/25 From - Other reallocations]*$B$3)","v":0},{"$f":"SUMPRODUCT(((Dataset[Econ3]=$G37))*Dataset[2024/25 To - Other reallocations]*$B$3)","v":0},0,{"$f":"SUMPRODUCT(((Dataset[Econ3]=$G37))*Dataset[2025/26 From - Other reallocations]*$B$3)","v":0},{"$f":"SUMPRODUCT(((Dataset[Econ3]=$G37))*Dataset[2025/26 To - Other reallocations]*$B$3)","v":0},0,{"$f":"SUMPRODUCT(((Dataset[Econ3]=$G37))*Dataset[2026/27 From - Other reallocations]*$B$3)","v":0},{"$f":"SUMPRODUCT(((Dataset[Econ3]=$G37))*Dataset[2026/27 To - Other reallocations]*$B$3)","v":0},0,0,0,0]
["Other reallocations",0,null,null,null,null,"Interest and rent on land",{"$f":"SUMPRODUCT(((Dataset[Econ3]=$G38))*Dataset[2024/25 From - Other reallocations]*$B$3)","v":0},{"$f":"SUMPRODUCT(((Dataset[Econ3]=$G38))*Dataset[2024/25 To - Other reallocations]*$B$3)","v":0},0,{"$f":"SUMPRODUCT(((Dataset[Econ3]=$G38))*Dataset[2025/26 From - Other reallocations]*$B$3)","v":0},{"$f":"SUMPRODUCT(((Dataset[Econ3]=$G38))*Dataset[2025/26 To - Other reallocations]*$B$3)","v":0},0,{"$f":"SUMPRODUCT(((Dataset[Econ3]=$G38))*Dataset[2026/27 From - Other reallocations]*$B$3)","v":0},{"$f":"SUMPRODUCT(((Dataset[Econ3]=$G38))*Dataset[2026/27 To - Other reallocations]*$B$3)","v":0},0,0,0,0]
["Other reallocations",0,null,null,null,null,"Transfers and subsidies",{"$f":"SUM(H40,H43,H46:H48,H51:H52)","v":0},0,0,0,0,0,0,0,0,0,0,0]
["Other reallocations",0,null,null,null,null,"Provinces and municipalities",{"$f":"SUM(H41:H42)","v":0},0,0,0,0,0,0,0,0,0,0,0]
["Other reallocations",0,null,null,null,null,"Provinces",{"$f":"SUMPRODUCT(((Dataset[Econ4]=$G41))*Dataset[2024/25 From - Other reallocations]*$B$3)","v":0},{"$f":"SUMPRODUCT(((Dataset[Econ4]=$G41))*Dataset[2024/25 To - Other reallocations]*$B$3)","v":0},{"$f":"H41+I41","v":0},{"$f":"SUMPRODUCT(((Dataset[Econ4]=$G41))*Dataset[2025/26 From - Other reallocations]*$B$3)","v":0},{"$f":"SUMPRODUCT(((Dataset[Econ4]=$G41))*Dataset[2025/26 To - Other reallocations]*$B$3)","v":0},{"$f":"K41+L41","v":0},{"$f":"SUMPRODUCT(((Dataset[Econ4]=$G41))*Dataset[2026/27 From - Other reallocations]*$B$3)","v":0},{"$f":"SUMPRODUCT(((Dataset[Econ4]=$G41))*Dataset[2026/27 To - Other reallocations]*$B$3)","v":0},{"$f":"N41+O41","v":0},{"$f":"SUM(H41,K41,N41)","v":0},0,0]
["Other reallocations",0,null,null,null,null,"Municipalities",{"$f":"SUMPRODUCT(((Dataset[Econ4]=$G42))*Dataset[2024/25 From - Other reallocations]*$B$3)","v":0},{"$f":"SUMPRODUCT(((Dataset[Econ4]=$G42))*Dataset[2024/25 To - Other reallocations]*$B$3)","v":0},0,{"$f":"SUMPRODUCT(((Dataset[Econ4]=$G42))*Dataset[2025/26 From - Other reallocations]*$B$3)","v":0},{"$f":"SUMPRODUCT(((Dataset[Econ4]=$G42))*Dataset[2025/26 To - Other reallocations]*$B$3)","v":0},0,{"$f":"SUMPRODUCT(((Dataset[Econ4]=$G42))*Dataset[2026/27 From - Other reallocations]*$B$3)","v":0},{"$f":"SUMPRODUCT(((Dataset[Econ4]=$G42))*Dataset[2026/27 To - Other reallocations]*$B$3)","v":0},0,0,0,0]
["Other reallocations",0,null,null,null,null,"Departmental agencies and accounts",{"$f":"SUM(H44:H45)","v":0},0,0,0,0,0,0,0,0,0,0,0]
["Other reallocations",0,null,null,null,null,"Social security funds",{"$f":"SUMPRODUCT(((Dataset[Econ4]=$G44))*Dataset[2024/25 From - Other reallocations]*$B$3)","v":0},{"$f":"SUMPRODUCT(((Dataset[Econ4]=$G44))*Dataset[2024/25 To - Other reallocations]*$B$3)","v":0},{"$f":"H44+I44","v":0},{"$f":"SUMPRODUCT(((Dataset[Econ4]=$G44))*Dataset[2025/26 From - Other reallocations]*$B$3)","v":0},{"$f":"SUMPRODUCT(((Dataset[Econ4]=$G44))*Dataset[2025/26 To - Other reallocations]*$B$3)","v":0},{"$f":"K44+L44","v":0},{"$f":"SUMPRODUCT(((Dataset[Econ4]=$G44))*Dataset[2026/27 From - Other reallocations]*$B$3)","v":0},{"$f":"SUMPRODUCT(((Dataset[Econ4]=$G44))*Dataset[2026/27 To - Other reallocations]*$B$3)","v":0},{"$f":"N44+O44","v":0},{"$f":"SUM(H44,K44,N44)","v":0},0,0]
["Other reallocations",0,null,null,null,null,"Departmental agencies (non-business entities)",{"$f":"SUMPRODUCT(((Dataset[Econ4]=$G45))*Dataset[2024/25 From - Other reallocations]*$B$3)","v":0},{"$f":"SUMPRODUCT(((Dataset[Econ4]=$G45))*Dataset[2024/25 To - Other reallocations]*$B$3)","v":0},0,{"$f":"SUMPRODUCT(((Dataset[Econ4]=$G45))*Dataset[2025/26 From - Other reallocations]*$B$3)","v":0},{"$f":"SUMPRODUCT(((Dataset[Econ4]=$G45))*Dataset[2025/26 To - Other reallocations]*$B$3)","v":0},0,{"$f":"SUMPRODUCT(((Dataset[Econ4]=$G45))*Dataset[2026/27 From - Other reallocations]*$B$3)","v":0},{"$f":"SUMPRODUCT(((Dataset[Econ4]=$G45))*Dataset[2026/27 To - Other reallocations]*$B$3)","v":0},0,0,0,0]
["Other reallocations",0,null,null,null,null,"Higher education institutions",{"$f":"SUMPRODUCT(((Dataset[Econ3]=$G46))*Dataset[2024/25 From - Other reallocations]*$B$3)","v":0},{"$f":"SUMPRODUCT(((Dataset[Econ3]=$G46))*Dataset[2024/25 To - Other reallocations]*$B$3)","v":0},0,{"$f":"SUMPRODUCT(((Dataset[Econ3]=$G46))*Dataset[2025/26 From - Other reallocations]*$B$3)","v":0},{"$f":"SUMPRODUCT(((Dataset[Econ3]=$G46))*Dataset[2025/26 To - Other reallocations]*$B$3)","v":0},0,{"$f":"SUMPRODUCT(((Dataset[Econ3]=$G46))*Dataset[2026/27 From - Other reallocations]*$B$3)","v":0},{"$f":"SUMPRODUCT(((Dataset[Econ3]=$G46))*Dataset[2026/27 To - Other reallocations]*$B$3)","v":0},0,0,0,0]
["Other reallocations",0,null,null,null,null,"Foreign governments and international organisations",{"$f":"SUMPRODUCT(((Dataset[Econ3]=$G47))*Dataset[2024/25 From - Other reallocations]*$B$3)","v":0},{"$f":"SUMPRODUCT(((Dataset[Econ3]=$G47))*Dataset[2024/25 To - Other reallocations]*$B$3)","v":0},0,{"$f":"SUMPRODUCT(((Dataset[Econ3]=$G47))*Dataset[2025/26 From - Other reallocations]*$B$3)","v":0},{"$f":"SUMPRODUCT(((Dataset[Econ3]=$G47))*Dataset[2025/26 To - Other reallocations]*$B$3)","v":0},0,{"$f":"SUMPRODUCT(((Dataset[Econ3]=$G47))*Dataset[2026/27 From - Other reallocations]*$B$3)","v":0},{"$f":"SUMPRODUCT(((Dataset[Econ3]=$G47))*Dataset[2026/27 To - Other reallocations]*$B$3)","v":0},0,0,0,0]
["Other reallocations",0,null,null,null,null,"Public corporations and private enterprises",{"$f":"SUM(H49:H50)","v":0},0,0,0,0,0,0,0,0,0,0,0]
["Other reallocations",0,null,null,null,null,"Public corporations",{"$f":"SUMPRODUCT(((Dataset[Econ4]=$G49))*Dataset[2024/25 From - Other reallocations]*$B$3)","v":0},{"$f":"SUMPRODUCT(((Dataset[Econ4]=$G49))*Dataset[2024/25 To - Other reallocations]*$B$3)","v":0},{"$f":"H49+I49","v":0},{"$f":"SUMPRODUCT(((Dataset[Econ4]=$G49))*Dataset[2025/26 From - Other reallocations]*$B$3)","v":0},{"$f":"SUMPRODUCT(((Dataset[Econ4]=$G49))*Dataset[2025/26 To - Other reallocations]*$B$3)","v":0},{"$f":"K49+L49","v":0},{"$f":"SUMPRODUCT(((Dataset[Econ4]=$G49))*Dataset[2026/27 From - Other reallocations]*$B$3)","v":0},{"$f":"SUMPRODUCT(((Dataset[Econ4]=$G49))*Dataset[2026/27 To - Other reallocations]*$B$3)","v":0},{"$f":"N49+O49","v":0},{"$f":"SUM(H49,K49,N49)","v":0},0,0]
["Other reallocations",0,null,null,null,null,"Private enterprises",{"$f":"SUMPRODUCT(((Dataset[Econ4]=$G50))*Dataset[2024/25 From - Other reallocations]*$B$3)","v":0},{"$f":"SUMPRODUCT(((Dataset[Econ4]=$G50))*Dataset[2024/25 To - Other reallocations]*$B$3)","v":0},0,{"$f":"SUMPRODUCT(((Dataset[Econ4]=$G50))*Dataset[2025/26 From - Other reallocations]*$B$3)","v":0},{"$f":"SUMPRODUCT(((Dataset[Econ4]=$G50))*Dataset[2025/26 To - Other reallocations]*$B$3)","v":0},0,{"$f":"SUMPRODUCT(((Dataset[Econ4]=$G50))*Dataset[2026/27 From - Other reallocations]*$B$3)","v":0},{"$f":"SUMPRODUCT(((Dataset[Econ4]=$G50))*Dataset[2026/27 To - Other reallocations]*$B$3)","v":0},0,0,0,0]
["Other reallocations",0,null,null,null,null,"Non-profit institutions",{"$f":"SUMPRODUCT(((Dataset[Econ3]=$G51))*Dataset[2024/25 From - Other reallocations]*$B$3)","v":0},{"$f":"SUMPRODUCT(((Dataset[Econ3]=$G51))*Dataset[2024/25 To - Other reallocations]*$B$3)","v":0},0,{"$f":"SUMPRODUCT(((Dataset[Econ3]=$G51))*Dataset[2025/26 From - Other reallocations]*$B$3)","v":0},{"$f":"SUMPRODUCT(((Dataset[Econ3]=$G51))*Dataset[2025/26 To - Other reallocations]*$B$3)","v":0},0,{"$f":"SUMPRODUCT(((Dataset[Econ3]=$G51))*Dataset[2026/27 From - Other reallocations]*$B$3)","v":0},{"$f":"SUMPRODUCT(((Dataset[Econ3]=$G51))*Dataset[2026/27 To - Other reallocations]*$B$3)","v":0},0,0,0,0]
["Other reallocations",0,null,null,null,null,"Households",{"$f":"SUM(H53:H54)","v":0},0,0,0,0,0,0,0,0,0,0,0]
["Other reallocations",0,null,null,null,null,"Social benefits",{"$f":"SUMPRODUCT(((Dataset[Econ4]=$G53))*Dataset[2024/25 From - Other reallocations]*$B$3)","v":0},{"$f":"SUMPRODUCT(((Dataset[Econ4]=$G53))*Dataset[2024/25 To - Other reallocations]*$B$3)","v":0},{"$f":"H53+I53","v":0},{"$f":"SUMPRODUCT(((Dataset[Econ4]=$G53))*Dataset[2025/26 From - Other reallocations]*$B$3)","v":0},{"$f":"SUMPRODUCT(((Dataset[Econ4]=$G53))*Dataset[2025/26 To - Other reallocations]*$B$3)","v":0},{"$f":"K53+L53","v":0},{"$f":"SUMPRODUCT(((Dataset[Econ4]=$G53))*Dataset[2026/27 From - Other reallocations]*$B$3)","v":0},{"$f":"SUMPRODUCT(((Dataset[Econ4]=$G53))*Dataset[2026/27 To - Other reallocations]*$B$3)","v":0},{"$f":"N53+O53","v":0},{"$f":"SUM(H53,K53,N53)","v":0},0,0]
["Other reallocations",0,null,null,null,null,"Other transfers to households",{"$f":"SUMPRODUCT(((Dataset[Econ4]=$G54))*Dataset[2024/25 From - Other reallocations]*$B$3)","v":0},{"$f":"SUMPRODUCT(((Dataset[Econ4]=$G54))*Dataset[2024/25 To - Other reallocations]*$B$3)","v":0},0,{"$f":"SUMPRODUCT(((Dataset[Econ4]=$G54))*Dataset[2025/26 From - Other reallocations]*$B$3)","v":0},{"$f":"SUMPRODUCT(((Dataset[Econ4]=$G54))*Dataset[2025/26 To - Other reallocations]*$B$3)","v":0},0,{"$f":"SUMPRODUCT(((Dataset[Econ4]=$G54))*Dataset[2026/27 From - Other reallocations]*$B$3)","v":0},{"$f":"SUMPRODUCT(((Dataset[Econ4]=$G54))*Dataset[2026/27 To - Other reallocations]*$B$3)","v":0},0,0,0,0]
["Other reallocations",0,null,null,null,null,"Payments for capital assets",{"$f":"SUM(H56,H59,H62:H66)","v":0},0,0,0,0,0,0,0,0,0,0,0]
["Other reallocations",0,null,null,null,null,"Buildings and other fixed structures",{"$f":"SUM(H57:H58)","v":0},0,0,0,0,0,0,0,0,0,0,0]
["Other reallocations",0,null,null,null,null,"Buildings",{"$f":"SUMPRODUCT(((Dataset[Econ4]=$G57))*Dataset[2024/25 From - Other reallocations]*$B$3)","v":0},{"$f":"SUMPRODUCT(((Dataset[Econ4]=$G57))*Dataset[2024/25 To - Other reallocations]*$B$3)","v":0},{"$f":"H57+I57","v":0},{"$f":"SUMPRODUCT(((Dataset[Econ4]=$G57))*Dataset[2025/26 From - Other reallocations]*$B$3)","v":0},{"$f":"SUMPRODUCT(((Dataset[Econ4]=$G57))*Dataset[2025/26 To - Other reallocations]*$B$3)","v":0},{"$f":"K57+L57","v":0},{"$f":"SUMPRODUCT(((Dataset[Econ4]=$G57))*Dataset[2026/27 From - Other reallocations]*$B$3)","v":0},{"$f":"SUMPRODUCT(((Dataset[Econ4]=$G57))*Dataset[2026/27 To - Other reallocations]*$B$3)","v":0},{"$f":"N57+O57","v":0},{"$f":"SUM(H57,K57,N57)","v":0},0,0]
["Other reallocations",0,null,null,null,null,"Other fixed structures",{"$f":"SUMPRODUCT(((Dataset[Econ4]=$G58))*Dataset[2024/25 From - Other reallocations]*$B$3)","v":0},{"$f":"SUMPRODUCT(((Dataset[Econ4]=$G58))*Dataset[2024/25 To - Other reallocations]*$B$3)","v":0},0,{"$f":"SUMPRODUCT(((Dataset[Econ4]=$G58))*Dataset[2025/26 From - Other reallocations]*$B$3)","v":0},{"$f":"SUMPRODUCT(((Dataset[Econ4]=$G58))*Dataset[2025/26 To - Other reallocations]*$B$3)","v":0},0,{"$f":"SUMPRODUCT(((Dataset[Econ4]=$G58))*Dataset[2026/27 From - Other reallocations]*$B$3)","v":0},{"$f":"SUMPRODUCT(((Dataset[Econ4]=$G58))*Dataset[2026/27 To - Other reallocations]*$B$3)","v":0},0,0,0,0]
["Other reallocations",0,null,null,null,null,"Machinery and equipment",{"$f":"SUM(H60:H61)","v":0},0,0,0,0,0,0,0,0,0,0,0]
["Other reallocations",0,null,null,null,null,"Transport equipment",{"$f":"SUMPRODUCT(((Dataset[Econ4]=$G60))*Dataset[2024/25 From - Other reallocations]*$B$3)","v":0},{"$f":"SUMPRODUCT(((Dataset[Econ4]=$G60))*Dataset[2024/25 To - Other reallocations]*$B$3)","v":0},{"$f":"H60+I60","v":0},{"$f":"SUMPRODUCT(((Dataset[Econ4]=$G60))*Dataset[2025/26 From - Other reallocations]*$B$3)","v":0},{"$f":"SUMPRODUCT(((Dataset[Econ4]=$G60))*Dataset[2025/26 To - Other reallocations]*$B$3)","v":0},{"$f":"K60+L60","v":0},{"$f":"SUMPRODUCT(((Dataset[Econ4]=$G60))*Dataset[2026/27 From - Other reallocations]*$B$3)","v":0},{"$f":"SUMPRODUCT(((Dataset[Econ4]=$G60))*Dataset[2026/27 To - Other reallocations]*$B$3)","v":0},{"$f":"N60+O60","v":0},{"$f":"SUM(H60,K60,N60)","v":0},0,0]
["Other reallocations",0,null,null,null,null,"Other machinery and equipment",{"$f":"SUMPRODUCT(((Dataset[Econ4]=$G61))*Dataset[2024/25 From - Other reallocations]*$B$3)","v":0},{"$f":"SUMPRODUCT(((Dataset[Econ4]=$G61))*Dataset[2024/25 To - Other reallocations]*$B$3)","v":0},0,{"$f":"SUMPRODUCT(((Dataset[Econ4]=$G61))*Dataset[2025/26 From - Other reallocations]*$B$3)","v":0},{"$f":"SUMPRODUCT(((Dataset[Econ4]=$G61))*Dataset[2025/26 To - Other reallocations]*$B$3)","v":0},0,{"$f":"SUMPRODUCT(((Dataset[Econ4]=$G61))*Dataset[2026/27 From - Other reallocations]*$B$3)","v":0},{"$f":"SUMPRODUCT(((Dataset[Econ4]=$G61))*Dataset[2026/27 To - Other reallocations]*$B$3)","v":0},0,0,0,0]
["Other reallocations",0,null,null,null,null,"Heritage assets",{"$f":"SUMPRODUCT(((Dataset[Econ3]=$G62))*Dataset[2024/25 From - Other reallocations]*$B$3)","v":0},{"$f":"SUMPRODUCT(((Dataset[Econ3]=$G62))*Dataset[2024/25 To - Other reallocations]*$B$3)","v":0},0,{"$f":"SUMPRODUCT(((Dataset[Econ3]=$G62))*Dataset[2025/26 From - Other reallocations]*$B$3)","v":0},{"$f":"SUMPRODUCT(((Dataset[Econ3]=$G62))*Dataset[2025/26 To - Other reallocations]*$B$3)","v":0},0,{"$f":"SUMPRODUCT(((Dataset[Econ3]=$G62))*Dataset[2026/27 From - Other reallocations]*$B$3)","v":0},{"$f":"SUMPRODUCT(((Dataset[Econ3]=$G62))*Dataset[2026/27 To - Other reallocations]*$B$3)","v":0},0,0,0,0]
["Other reallocations",0,null,null,null,null,"Specialised military assets",{"$f":"SUMPRODUCT(((Dataset[Econ3]=$G63))*Dataset[2024/25 From - Other reallocations]*$B$3)","v":0},{"$f":"SUMPRODUCT(((Dataset[Econ3]=$G63))*Dataset[2024/25 To - Other reallocations]*$B$3)","v":0},0,{"$f":"SUMPRODUCT(((Dataset[Econ3]=$G63))*Dataset[2025/26 From - Other reallocations]*$B$3)","v":0},{"$f":"SUMPRODUCT(((Dataset[Econ3]=$G63))*Dataset[2025/26 To - Other reallocations]*$B$3)","v":0},0,{"$f":"SUMPRODUCT(((Dataset[Econ3]=$G63))*Dataset[2026/27 From - Other reallocations]*$B$3)","v":0},{"$f":"SUMPRODUCT(((Dataset[Econ3]=$G63))*Dataset[2026/27 To - Other reallocations]*$B$3)","v":0},0,0,0,0]
["Other reallocations",0,null,null,null,null,"Biological assets",{"$f":"SUMPRODUCT(((Dataset[Econ3]=$G64))*Dataset[2024/25 From - Other reallocations]*$B$3)","v":0},{"$f":"SUMPRODUCT(((Dataset[Econ3]=$G64))*Dataset[2024/25 To - Other reallocations]*$B$3)","v":0},0,{"$f":"SUMPRODUCT(((Dataset[Econ3]=$G64))*Dataset[2025/26 From - Other reallocations]*$B$3)","v":0},{"$f":"SUMPRODUCT(((Dataset[Econ3]=$G64))*Dataset[2025/26 To - Other reallocations]*$B$3)","v":0},0,{"$f":"SUMPRODUCT(((Dataset[Econ3]=$G64))*Dataset[2026/27 From - Other reallocations]*$B$3)","v":0},{"$f":"SUMPRODUCT(((Dataset[Econ3]=$G64))*Dataset[2026/27 To - Other reallocations]*$B$3)","v":0},0,0,0,0]
["Other reallocations",0,null,null,null,null,"Land and sub-soil assets",{"$f":"SUMPRODUCT(((Dataset[Econ3]=$G65))*Dataset[2024/25 From - Other reallocations]*$B$3)","v":0},{"$f":"SUMPRODUCT(((Dataset[Econ3]=$G65))*Dataset[2024/25 To - Other reallocations]*$B$3)","v":0},0,{"$f":"SUMPRODUCT(((Dataset[Econ3]=$G65))*Dataset[2025/26 From - Other reallocations]*$B$3)","v":0},{"$f":"SUMPRODUCT(((Dataset[Econ3]=$G65))*Dataset[2025/26 To - Other reallocations]*$B$3)","v":0},0,{"$f":"SUMPRODUCT(((Dataset[Econ3]=$G65))*Dataset[2026/27 From - Other reallocations]*$B$3)","v":0},{"$f":"SUMPRODUCT(((Dataset[Econ3]=$G65))*Dataset[2026/27 To - Other reallocations]*$B$3)","v":0},0,0,0,0]
["Other reallocations",0,null,null,null,null,"Software and other intangible assets",{"$f":"SUMPRODUCT(((Dataset[Econ3]=$G66))*Dataset[2024/25 From - Other reallocations]*$B$3)","v":0},{"$f":"SUMPRODUCT(((Dataset[Econ3]=$G66))*Dataset[2024/25 To - Other reallocations]*$B$3)","v":0},0,{"$f":"SUMPRODUCT(((Dataset[Econ3]=$G66))*Dataset[2025/26 From - Other reallocations]*$B$3)","v":0},{"$f":"SUMPRODUCT(((Dataset[Econ3]=$G66))*Dataset[2025/26 To - Other reallocations]*$B$3)","v":0},0,{"$f":"SUMPRODUCT(((Dataset[Econ3]=$G66))*Dataset[2026/27 From - Other reallocations]*$B$3)","v":0},{"$f":"SUMPRODUCT(((Dataset[Econ3]=$G66))*Dataset[2026/27 To - Other reallocations]*$B$3)","v":0},0,0,0,0]
["Other reallocations",0,null,null,null,null,"Payments for financial assets",{"$f":"SUMPRODUCT(((Dataset[Econ3]=$G67))*Dataset[2024/25 From - Other reallocations]*$B$3)","v":0},{"$f":"SUMPRODUCT(((Dataset[Econ3]=$G67))*Dataset[2024/25 To - Other reallocations]*$B$3)","v":0},0,{"$f":"SUMPRODUCT(((Dataset[Econ3]=$G67))*Dataset[2025/26 From - Other reallocations]*$B$3)","v":0},{"$f":"SUMPRODUCT(((Dataset[Econ3]=$G67))*Dataset[2025/26 To - Other reallocations]*$B$3)","v":0},0,{"$f":"SUMPRODUCT(((Dataset[Econ3]=$G67))*Dataset[2026/27 From - Other reallocations]*$B$3)","v":0},{"$f":"SUMPRODUCT(((Dataset[Econ3]=$G67))*Dataset[2026/27 To - Other reallocations]*$B$3)","v":0},0,0,0,0]
["Other reallocations",0,null,null,null,null,"Total",{"$f":"SUM(H35,H39,H55,H67)","v":0},0,0,0,0,0,0,0,0,0,0,0]
[]
[]
[]
[]
[null,null,null,null,null,null,{"$f":"\"IMPACT OF ADJUSTMENTS: \" &UPPER($G$3)","v":"IMPACT OF ADJUSTMENTS: OTHER REALLOCATIONS"}]
[]
[null,null,null,null,null,1,"Impact of adjustments on expenditure"]
[{"$f":"$G$3","v":"Other reallocations"},5,null,null,null,null,null,{"$f":"MyYear4","v":"2023/24"},null,null,{"$f":"MyYear5","v":"2024/25"},null,null,{"$f":"MyYear6","v":"2025/26"},null,null,{"$f":"MyYear7","v":"2026/27"}]
["Other reallocations",5,null,null,null,null,null,"Current expenditure","Potential expenditure @ benchmark level","% Savings if benchmark is achieved","Original number","Change in expenditure","Saving as % of original number","Original number","Change in expenditure","Saving as % of original number","Original number","Change in expenditure","Saving as % of original number"]
["Other reallocations",5,null,null,null,null,"Total",null,null,{"$f":"IFERROR((H78-I78)/H78,\"\")","v":""},null,null,{"$f":"IFERROR(L78/K78,\"\")","v":""},null,null,{"$f":"IFERROR(O78/N78,\"\")","v":""},null,null,{"$f":"IFERROR(R78/Q78,\"\")","v":""}]
[]
[]
[]
[]
[]
[null,null,null,null,null,2,"Summary of impact on service delivery/policy area due to adjustments"]
[{"$f":"$G$3","v":"Other reallocations"},1]
["Other reallocations",1]
["Other reallocations",1]
["Other reallocations",1]
["Other reallocations",1]
["Other reallocations",1]
["Other reallocations",1]
["Other reallocations",1]
["Other reallocations",1]
["Other reallocations",1]
["Other reallocations",1]
["Other reallocations",1]
["Other reallocations",1]
["Other reallocations",1]
["Other reallocations",1]
[]
[]
[]
[]
[]
[null,null,null,null,null,3,"Impact of adjustments on performance indicators"]
[{"$f":"$G$3","v":"Other reallocations"},2,null,null,null,null,null,{"$f":"MyYear4","v":"2023/24"},null,null,{"$f":"MyYear5","v":"2024/25"},null,null,{"$f":"MyYear6","v":"2025/26"},null,null,{"$f":"MyYear7","v":"2026/27"},null,null," Comment",null,null,null,null,"Related MTSF Priority"]
["Other reallocations",2,null,null,null,null,"Performance indicator","Current performance","Performance @ benchmark level","Change","Original target","Revised target","Change","Original target","Revised target","Change","Original target","Revised target","Change"]
["Other reallocations",2]
["Other reallocations",2]
["Other reallocations",2]
["Other reallocations",2]
["Other reallocations",2]
["Other reallocations",2]
["Other reallocations",2]
["Other reallocations",2]
["Other reallocations",2]
["Other reallocations",2]
["Other reallocations",2]
["Other reallocations",2]
["Other reallocations",2]
["Other reallocations",2]
["Other reallocations",2]
[]
[]
[]
[]
[]
[null,null,null,null,null,4,"Impact of adjustments on personnel headcount numbers"]
[{"$f":"$G$3","v":"Other reallocations"},4,null,null,null,null,null,{"$f":"MyYear4","v":"2023/24"},null,null,{"$f":"MyYear5","v":"2024/25"},null,null,{"$f":"MyYear6","v":"2025/26"},null,null,{"$f":"MyYear7","v":"2026/27"},null,null," Comment"]
["Other reallocations",4,null,null,null,null,"Salary level","Current number","Potential number if benchmark is achieved","Change in number","Original number","Revised number","Change in number","Original number","Revised number","Change in number","Original number","Revised number","Change in number"]
["Other reallocations",4,null,null,null,null,1,null,null,{"$f":"I131-H131","v":0},null,null,{"$f":"L131-K131","v":0},null,null,{"$f":"O131-N131","v":0},null,null,{"$f":"R131-Q131","v":0}]
["Other reallocations",4,null,null,null,null,2,null,null,0,null,null,0,null,null,0,null,null,0]
["Other reallocations",4,null,null,null,null,3,null,null,0,null,null,0,null,null,0,null,null,0]
["Other reallocations",4,null,null,null,null,4,null,null,0,null,null,0,null,null,0,null,null,0]
["Other reallocations",4,null,null,null,null,5,null,null,0,null,null,0,null,null,0,null,null,0]
["Other reallocations",4,null,null,null,null,6,null,null,0,null,null,0,null,null,0,null,null,0]
["Other reallocations",4,null,null,null,null,7,null,null,0,null,null,0,null,null,0,null,null,0]
["Other reallocations",4,null,null,null,null,8,null,null,0,null,null,0,null,null,0,null,null,0]
["Other reallocations",4,null,null,null,null,9,null,null,0,null,null,0,null,null,0,null,null,0]
["Other reallocations",4,null,null,null,null,10,null,null,0,null,null,0,null,null,0,null,null,0]
["Other reallocations",4,null,null,null,null,11,null,null,0,null,null,0,null,null,0,null,null,0]
["Other reallocations",4,null,null,null,null,12,null,null,0,null,null,0,null,null,0,null,null,0]
["Other reallocations",4,null,null,null,null,13,null,null,0,null,null,0,null,null,0,null,null,0]
["Other reallocations",4,null,null,null,null,14,null,null,0,null,null,0,null,null,0,null,null,0]
["Other reallocations",4,null,null,null,null,15,null,null,0,null,null,0,null,null,0,null,null,0]
["Other reallocations",4,null,null,null,null,16,null,null,0,null,null,0,null,null,0,null,null,0]
["Other reallocations",4,null,null,null,null,"Other",null,null,0,null,null,0,null,null,0,null,null,0]
["Other reallocations",4,null,null,null,null,"Other",null,null,0,null,null,0,null,null,0,null,null,0]
["Other reallocations",4,null,null,null,null,"Other",null,null,0,null,null,0,null,null,0,null,null,0]
["Other reallocations",4,null,null,null,null,"Other",null,null,0,null,null,0,null,null,0,null,null,0]
["Other reallocations",4,null,null,null,null,"Total",{"$f":"SUM(H131:H150)","v":0},0,0,{"$f":"SUM(K131:K150)","v":0},0,0,0,0,0,0,0,0]
[]
[]
[]
[]
[]
[null,null,null,null,null,5,"Impact of adjustments on infrastructure projects"]
[{"$f":"$G$3","v":"Other reallocations"},3,null,null,null,null,null,{"$f":"MyYear4","v":"2023/24"},null,null,{"$f":"MyYear5","v":"2024/25"},null,null,{"$f":"MyYear6","v":"2025/26"},null,null,{"$f":"MyYear7","v":"2026/27"},null,null," Comment"]
["Other reallocations",3,null,null,null,null,"Project name","Current number","Market or best in class benchmark","Change","Original amount","Revised amount","Change","Original amount","Revised amount","Change","Original amount","Revised amount","Change"]
["Other reallocations",3,null,null,null,null,null,null,null,{"$f":"I160-H160","v":0},null,null,{"$f":"L160-K160","v":0},null,null,{"$f":"O160-N160","v":0},null,null,{"$f":"R160-Q160","v":0}]
["Other reallocations",3,null,null,null,null,null,null,null,0,null,null,0,null,null,0,null,null,0]
["Other reallocations",3,null,null,null,null,null,null,null,0,null,null,0,null,null,0,null,null,0]
["Other reallocations",3,null,null,null,null,null,null,null,0,null,null,0,null,null,0,null,null,0]
["Other reallocations",3,null,null,null,null,null,null,null,0,null,null,0,null,null,0,null,null,0]
["Other reallocations",3,null,null,null,null,null,null,null,0,null,null,0,null,null,0,null,null,0]
["Other reallocations",3,null,null,null,null,null,null,null,0,null,null,0,null,null,0,null,null,0]
["Other reallocations",3,null,null,null,null,null,null,null,0,null,null,0,null,null,0,null,null,0]
["Other reallocations",3,null,null,null,null,null,null,null,0,null,null,0,null,null,0,null,null,0]
["Other reallocations",3,null,null,null,null,null,null,null,0,null,null,0,null,null,0,null,null,0]
["Other reallocations",3,null,null,null,null,null,null,null,0,null,null,0,null,null,0,null,null,0]
["Other reallocations",3,null,null,null,null,null,null,null,0,null,null,0,null,null,0,null,null,0]
["Other reallocations",3,null,null,null,null,null,null,null,0,null,null,0,null,null,0,null,null,0]
["Other reallocations",3,null,null,null,null,null,null,null,0,null,null,0,null,null,0,null,null,0]
["Other reallocations",3,null,null,null,null,null,null,null,0,null,null,0,null,null,0,null,null,0]
["Other reallocations",3,null,null,null,null,null,null,null,0,null,null,0,null,null,0,null,null,0]
["Other reallocations",3,null,null,null,null,null,null,null,0,null,null,0,null,null,0,null,null,0]
["Other reallocations",3,null,null,null,null,null,null,null,0,null,null,0,null,null,0,null,null,0]
["Other reallocations",3,null,null,null,null,null,null,null,0,null,null,0,null,null,0,null,null,0]
["Other reallocations",3,null,null,null,null,null,null,null,0,null,null,0,null,null,0,null,null,0]
["Other reallocations",3,null,null,null,null,null,null,null,0,null,null,0,null,null,0,null,null,0]
["Other reallocations",3,null,null,null,null,null,null,null,0,null,null,0,null,null,0,null,null,0]
["Other reallocations",3,null,null,null,null,null,null,null,0,null,null,0,null,null,0,null,null,0]
["Other reallocations",3,null,null,null,null,null,null,null,0,null,null,0,null,null,0,null,null,0]
["Other reallocations",3,null,null,null,null,null,null,null,0,null,null,0,null,null,0,null,null,0]
["Other reallocations",3,null,null,null,null,null,null,null,0,null,null,0,null,null,0,null,null,0]
["Other reallocations",3,null,null,null,null,null,null,null,0,null,null,0,null,null,0,null,null,0]
["Other reallocations",3,null,null,null,null,null,null,null,0,null,null,0,null,null,0,null,null,0]
["Other reallocations",3,null,null,null,null,null,null,null,0,null,null,0,null,null,0,null,null,0]
["Other reallocations",3,null,null,null,null,null,null,null,0,null,null,0,null,null,0,null,null,0]
["Other reallocations",3,null,null,null,null,null,null,null,0,null,null,0,null,null,0,null,null,0]
["Other reallocations",3,null,null,null,null,null,null,null,0,null,null,0,null,null,0,null,null,0]
["Other reallocations",3,null,null,null,null,null,null,null,0,null,null,0,null,null,0,null,null,0]
["Other reallocations",3,null,null,null,null,null,null,null,0,null,null,0,null,null,0,null,null,0]
["Other reallocations",3,null,null,null,null,null,null,null,0,null,null,0,null,null,0,null,null,0]
["Other reallocations",3,null,null,null,null,null,null,null,0,null,null,0,null,null,0,null,null,0]
["Other reallocations",3,null,null,null,null,null,null,null,0,null,null,0,null,null,0,null,null,0]
["Other reallocations",3,null,null,null,null,null,null,null,0,null,null,0,null,null,0,null,null,0]
["Other reallocations",3,null,null,null,null,null,null,null,0,null,null,0,null,null,0,null,null,0]
["Other reallocations",3,null,null,null,null,null,null,null,0,null,null,0,null,null,0,null,null,0]
["Other reallocations",3,null,null,null,null,null,null,null,0,null,null,0,null,null,0,null,null,0]
["Other reallocations",3,null,null,null,null,null,null,null,0,null,null,0,null,null,0,null,null,0]
["Other reallocations",3,null,null,null,null,null,null,null,0,null,null,0,null,null,0,null,null,0]
["Other reallocations",3,null,null,null,null,null,null,null,0,null,null,0,null,null,0,null,null,0]
["Other reallocations",3,null,null,null,null,null,null,null,0,null,null,0,null,null,0,null,null,0]
["Other reallocations",3,null,null,null,null,null,null,null,0,null,null,0,null,null,0,null,null,0]
["Other reallocations",3,null,null,null,null,null,null,null,0,null,null,0,null,null,0,null,null,0]
["Other reallocations",3,null,null,null,null,null,null,null,0,null,null,0,null,null,0,null,null,0]
["Other reallocations",3,null,null,null,null,null,null,null,0,null,null,0,null,null,0,null,null,0]
["Other reallocations",3,null,null,null,null,null,null,null,0,null,null,0,null,null,0,null,null,0]
["Other reallocations",3,null,null,null,null,"Total",{"$f":"SUM(H160:H209)","v":0},0,0,0,0,0,0,0,0,0,0,0]

{"sheet":"Reductions","index":16,"n_rows":210,"n_cols":25,"rows_kept":210,"cut":false,"hidden":false,"merged":[[208,19,208,23],[202,19,202,23],[203,19,203,23],[204,19,204,23],[205,19,205,23],[206,19,206,23],[207,19,207,23],[201,19,201,23],[190,19,190,23],[191,19,191,23],[192,19,192,23],[193,19,193,23],[194,19,194,23],[195,19,195,23],[196,19,196,23],[197,19,197,23],[198,19,198,23],[199,19,199,23],[200,19,200,23],[189,19,189,23],[178,19,178,23],[179,19,179,23],[180,19,180,23],[181,19,181,23],[182,19,182,23],[183,19,183,23],[184,19,184,23],[185,19,185,23],[186,19,186,23],[187,19,187,23],[188,19,188,23],[177,19,177,23],[166,19,166,23],[167,19,167,23],[168,19,168,23],[169,19,169,23],[170,19,170,23],[171,19,171,23],[172,19,172,23],[173,19,173,23],[174,19,174,23],[175,19,175,23],[176,19,176,23],[165,19,165,23],[128,19,128,23],[129,19,129,23],[130,19,149,23],[157,19,157,23],[158,19,158,23],[159,19,159,23],[160,19,160,23],[161,19,161,23],[162,19,162,23],[163,19,163,23],[164,19,164,23],[119,19,119,23],[119,24,119,26],[120,19,120,23],[120,24,120,26],[121,19,121,23],[121,24,121,26],[116,19,116,23],[116,24,116,26],[117,19,117,23],[117,24,117,26],[118,19,118,23],[118,24,118,26],[113,19,113,23],[113,24,113,26],[114,19,114,23],[114,24,114,26],[115,19,115,23],[115,24,115,26],[110,19,110,23],[110,24,110,26],[111,19,111,23],[111,24,111,26],[112,19,112,23],[112,24,112,26],[107,19,107,23],[107,24,107,26],[108,19,108,23],[108,24,108,26],[109,19,109,23],[109,24,109,26],[72,6,72,18],[84,6,98,18],[105,19,105,23],[105,24,105,26],[106,19,106,23],[106,24,106,26]]}
[]
[]
[null,{"$f":"IF(G3=\"\",0,1)","v":1},null,null,null,6,{"$f":"\"Reductions\"","v":"Reductions"}]
[]
[null,null,null,null,null,null,"Quick view…(Total change)",{"$f":"MyYear5","v":"2024/25"},{"$f":"MyYear6","v":"2025/26"},{"$f":"MyYear7","v":"2026/27"},"MTEF total","Trend"]
[null,null,null,null,null,null,"Compensation of employees",{"$f":"SUMPRODUCT(($G$35:$G$68=$G6)*(I$35:I$68))","v":0},{"$f":"SUMPRODUCT(($G$35:$G$68=$G6)*(J$35:J$68))","v":0},{"$f":"SUMPRODUCT(($G$35:$G$68=$G6)*(K$35:K$68))","v":0},{"$f":"SUM(H6:J6)","v":0},null,null,"CoE"]
[null,null,null,null,null,null,"Goods and services",{"$f":"SUMPRODUCT(($G$35:$G$68=$G7)*(I$35:I$68))","v":0},{"$f":"SUMPRODUCT(($G$35:$G$68=$G7)*(J$35:J$68))","v":0},{"$f":"SUMPRODUCT(($G$35:$G$68=$G7)*(K$35:K$68))","v":0},0,null,null,"G&S"]
[null,null,null,null,null,null,"Transfers and subsidies",{"$f":"SUMPRODUCT(($G$35:$G$68=$G8)*(I$35:I$68))","v":0},{"$f":"SUMPRODUCT(($G$35:$G$68=$G8)*(J$35:J$68))","v":0},{"$f":"SUMPRODUCT(($G$35:$G$68=$G8)*(K$35:K$68))","v":0},0,null,null,"T&S"]
[null,null,null,null,null,null,"Payments for capital assets",{"$f":"SUMPRODUCT(($G$35:$G$68=$G9)*(I$35:I$68))","v":0},{"$f":"SUMPRODUCT(($G$35:$G$68=$G9)*(J$35:J$68))","v":0},{"$f":"SUMPRODUCT(($G$35:$G$68=$G9)*(K$35:K$68))","v":0},0,null,null,"Capital"]
[null,null,null,null,null,null,"Total",{"$f":"SUMPRODUCT(($G$35:$G$68=$G10)*(I$35:I$68))","v":0},{"$f":"SUMPRODUCT(($G$35:$G$68=$G10)*(J$35:J$68))","v":0},{"$f":"SUMPRODUCT(($G$35:$G$68=$G10)*(K$35:K$68))","v":0},0,null,null,"Total"]
[null,null,null,null,null,null,"% of MTEF total",null,null,null,null,null,null,null,null,null,null,null,{"$f":"MyYear5","v":"2024/25"},{"$f":"MyYear6","v":"2025/26"},{"$f":"MyYear7","v":"2026/27"}]
[null,null,null,null,null,null,"Compensation of employees",{"$f":"IFERROR(H6/$K6,\"\")","v":""},"","",null,null,null,null,null,null,null,{"$f":"G12","v":"Compensation of employees"},{"$f":"IF(H12>0.0595,H12,\"\")","v":""},"",""]
[null,null,null,null,null,null,"Goods and services","","","",null,null,null,null,null,null,null,{"$f":"G13","v":"Goods and services"},"","",""]
[null,null,null,null,null,null,"Transfers and subsidies","","","",null,null,null,null,null,null,null,{"$f":"G14","v":"Transfers and subsidies"},"","",""]
[null,null,null,null,null,null,"Payments for capital assets","","","",null,null,null,null,null,null,null,{"$f":"G15","v":"Payments for capital assets"},"","",""]
[]
[null,null,null,null,null,null,"Division of Revenue",{"$f":"MyYear5","v":"2024/25"},{"$f":"MyYear6","v":"2025/26"},{"$f":"MyYear7","v":"2026/27"},"MTEF total","Trend"]
[null,null,null,null,null,null,"National",{"$f":"SUM(H19:H21)","v":0},0,0,{"$f":"SUM(H18:J18)","v":0}]
[{"$f":"$G$3","v":"Reductions"},"NAT",null,null,null,null,"National (excl. indirect grants)",{"$f":"SUMPRODUCT(((Dataset[DOR]=$B19))*Dataset[2024/25 Reduction])","v":0},{"$f":"SUMPRODUCT(((Dataset[DOR]=$B19))*Dataset[2025/26 Reduction])","v":0},{"$f":"SUMPRODUCT(((Dataset[DOR]=$B19))*Dataset[2026/27 Reduction])","v":0},0]
["Reductions","IGP",null,null,null,null,"Provincial indirect grants",{"$f":"SUMPRODUCT(((Dataset[DOR]=$B20))*Dataset[2024/25 Reduction])","v":0},{"$f":"SUMPRODUCT(((Dataset[DOR]=$B20))*Dataset[2025/26 Reduction])","v":0},{"$f":"SUMPRODUCT(((Dataset[DOR]=$B20))*Dataset[2026/27 Reduction])","v":0},0]
["Reductions","IGM",null,null,null,null,"Local indirect grants",{"$f":"SUMPRODUCT(((Dataset[DOR]=$B21))*Dataset[2024/25 Reduction])","v":0},{"$f":"SUMPRODUCT(((Dataset[DOR]=$B21))*Dataset[2025/26 Reduction])","v":0},{"$f":"SUMPRODUCT(((Dataset[DOR]=$B21))*Dataset[2026/27 Reduction])","v":0},0]
["Reductions",null,null,null,null,null,"Provincial",{"$f":"SUMPRODUCT(((Dataset[DOR]=$B22))*Dataset[2024/25 Reduction])","v":0},{"$f":"SUMPRODUCT(((Dataset[DOR]=$B22))*Dataset[2025/26 Reduction])","v":0},{"$f":"SUMPRODUCT(((Dataset[DOR]=$B22))*Dataset[2026/27 Reduction])","v":0},0]
["Reductions","PES",null,null,null,null,"Provincial equitable share",{"$f":"SUMPRODUCT(((Dataset[DOR]=$B23))*Dataset[2024/25 Reduction])","v":0},{"$f":"SUMPRODUCT(((Dataset[DOR]=$B23))*Dataset[2025/26 Reduction])","v":0},{"$f":"SUMPRODUCT(((Dataset[DOR]=$B23))*Dataset[2026/27 Reduction])","v":0},0]
["Reductions","PCG",null,null,null,null,"Provincial conditional grants",{"$f":"SUMPRODUCT(((Dataset[DOR]=$B24))*Dataset[2024/25 Reduction])","v":0},{"$f":"SUMPRODUCT(((Dataset[DOR]=$B24))*Dataset[2025/26 Reduction])","v":0},{"$f":"SUMPRODUCT(((Dataset[DOR]=$B24))*Dataset[2026/27 Reduction])","v":0},0]
["Reductions",null,null,null,null,null,"Local government",{"$f":"SUMPRODUCT(((Dataset[DOR]=$B25))*Dataset[2024/25 Reduction])","v":0},{"$f":"SUMPRODUCT(((Dataset[DOR]=$B25))*Dataset[2025/26 Reduction])","v":0},{"$f":"SUMPRODUCT(((Dataset[DOR]=$B25))*Dataset[2026/27 Reduction])","v":0},0]
["Reductions","LES",null,null,null,null,"Local equitable share",{"$f":"SUMPRODUCT(((Dataset[DOR]=$B26))*Dataset[2024/25 Reduction])","v":0},{"$f":"SUMPRODUCT(((Dataset[DOR]=$B26))*Dataset[2025/26 Reduction])","v":0},{"$f":"SUMPRODUCT(((Dataset[DOR]=$B26))*Dataset[2026/27 Reduction])","v":0},0]
["Reductions","LCG",null,null,null,null,"Local conditional grants",{"$f":"SUMPRODUCT(((Dataset[DOR]=$B27))*Dataset[2024/25 Reduction])","v":0},{"$f":"SUMPRODUCT(((Dataset[DOR]=$B27))*Dataset[2025/26 Reduction])","v":0},{"$f":"SUMPRODUCT(((Dataset[DOR]=$B27))*Dataset[2026/27 Reduction])","v":0},0]
["Reductions","GFL",null,null,null,null,"General fuel levy ",{"$f":"SUMPRODUCT(((Dataset[DOR]=$B28))*Dataset[2024/25 Reduction])","v":0},{"$f":"SUMPRODUCT(((Dataset[DOR]=$B28))*Dataset[2025/26 Reduction])","v":0},{"$f":"SUMPRODUCT(((Dataset[DOR]=$B28))*Dataset[2026/27 Reduction])","v":0},0]
[]
[]
[null,null,null,null,null,null,{"$f":"G3","v":"Reductions"}]
[{"$f":"$G$3","v":"Reductions"},0,null,null,null,null,null,{"$f":"MyYear4","v":"2023/24"},{"$f":"MyYear5","v":"2024/25"},{"$f":"MyYear6","v":"2025/26"},{"$f":"MyYear7","v":"2026/27"},"Total over MTEF"]
[{"$f":"$G$3","v":"Reductions"},0,null,null,null,null,"Rand thousand","Reduction","Reduction","Reduction","Reduction","Reduction"]
["Reductions",0,null,null,null,null,"Economic classification"]
["Reductions",0,null,null,null,null,"Current payments",{"$f":"SUM(H36:H38)","v":0},{"$f":"SUM(I36:I38)","v":0},0,0,0]
["Reductions",0,null,null,null,null,"Compensation of employees",{"$f":"SUMPRODUCT(((Dataset[Econ3]=$G36))*Dataset[2023/24 Reduction]*$B$3)","v":0},{"$f":"SUMPRODUCT(((Dataset[Econ3]=$G36))*Dataset[2024/25 Reduction]*$B$3)","v":0},{"$f":"SUMPRODUCT(((Dataset[Econ3]=$G36))*Dataset[2025/26 Reduction]*$B$3)","v":0},{"$f":"SUMPRODUCT(((Dataset[Econ3]=$G36))*Dataset[2026/27 Reduction]*$B$3)","v":0},{"$f":"SUM(I36,J36,K36)","v":0}]
["Reductions",0,null,null,null,null,"Goods and services",{"$f":"SUMPRODUCT(((Dataset[Econ3]=$G37))*Dataset[2023/24 Reduction]*$B$3)","v":0},{"$f":"SUMPRODUCT(((Dataset[Econ3]=$G37))*Dataset[2024/25 Reduction]*$B$3)","v":0},{"$f":"SUMPRODUCT(((Dataset[Econ3]=$G37))*Dataset[2025/26 Reduction]*$B$3)","v":0},{"$f":"SUMPRODUCT(((Dataset[Econ3]=$G37))*Dataset[2026/27 Reduction]*$B$3)","v":0},{"$f":"SUM(I37,J37,K37)","v":0}]
["Reductions",0,null,null,null,null,"Interest and rent on land",{"$f":"SUMPRODUCT(((Dataset[Econ3]=$G38))*Dataset[2023/24 Reduction]*$B$3)","v":0},{"$f":"SUMPRODUCT(((Dataset[Econ3]=$G38))*Dataset[2024/25 Reduction]*$B$3)","v":0},{"$f":"SUMPRODUCT(((Dataset[Econ3]=$G38))*Dataset[2025/26 Reduction]*$B$3)","v":0},{"$f":"SUMPRODUCT(((Dataset[Econ3]=$G38))*Dataset[2026/27 Reduction]*$B$3)","v":0},{"$f":"SUM(I38,J38,K38)","v":0}]
["Reductions",0,null,null,null,null,"Transfers and subsidies",{"$f":"SUM(H40,H43,H46:H48,H51:H52)","v":0},{"$f":"SUM(I40,I43,I46:I48,I51:I52)","v":0},0,0,0]
["Reductions",0,null,null,null,null,"Provinces and municipalities",{"$f":"SUM(H41:H42)","v":0},{"$f":"SUM(I41:I42)","v":0},0,0,0]
["Reductions",0,null,null,null,null,"Provinces",{"$f":"SUMPRODUCT(((Dataset[Econ4]=$G41))*Dataset[2023/24 Reduction]*$B$3)","v":0},{"$f":"SUMPRODUCT(((Dataset[Econ4]=$G41))*Dataset[2024/25 Reduction]*$B$3)","v":0},{"$f":"SUMPRODUCT(((Dataset[Econ4]=$G41))*Dataset[2025/26 Reduction]*$B$3)","v":0},{"$f":"SUMPRODUCT(((Dataset[Econ4]=$G41))*Dataset[2026/27 Reduction]*$B$3)","v":0},{"$f":"SUM(I41,J41,K41)","v":0}]
["Reductions",0,null,null,null,null,"Municipalities",{"$f":"SUMPRODUCT(((Dataset[Econ4]=$G42))*Dataset[2023/24 Reduction]*$B$3)","v":0},{"$f":"SUMPRODUCT(((Dataset[Econ4]=$G42))*Dataset[2024/25 Reduction]*$B$3)","v":0},{"$f":"SUMPRODUCT(((Dataset[Econ4]=$G42))*Dataset[2025/26 Reduction]*$B$3)","v":0},{"$f":"SUMPRODUCT(((Dataset[Econ4]=$G42))*Dataset[2026/27 Reduction]*$B$3)","v":0},{"$f":"SUM(I42,J42,K42)","v":0}]
["Reductions",0,null,null,null,null,"Departmental agencies and accounts",{"$f":"SUM(H44:H45)","v":0},{"$f":"SUM(I44:I45)","v":0},0,0,0]
["Reductions",0,null,null,null,null,"Social security funds",{"$f":"SUMPRODUCT(((Dataset[Econ4]=$G44))*Dataset[2023/24 Reduction]*$B$3)","v":0},{"$f":"SUMPRODUCT(((Dataset[Econ4]=$G44))*Dataset[2024/25 Reduction]*$B$3)","v":0},{"$f":"SUMPRODUCT(((Dataset[Econ4]=$G44))*Dataset[2025/26 Reduction]*$B$3)","v":0},{"$f":"SUMPRODUCT(((Dataset[Econ4]=$G44))*Dataset[2026/27 Reduction]*$B$3)","v":0},{"$f":"SUM(I44,J44,K44)","v":0}]
["Reductions",0,null,null,null,null,"Departmental agencies (non-business entities)",{"$f":"SUMPRODUCT(((Dataset[Econ4]=$G45))*Dataset[2023/24 Reduction]*$B$3)","v":0},{"$f":"SUMPRODUCT(((Dataset[Econ4]=$G45))*Dataset[2024/25 Reduction]*$B$3)","v":0},{"$f":"SUMPRODUCT(((Dataset[Econ4]=$G45))*Dataset[2025/26 Reduction]*$B$3)","v":0},{"$f":"SUMPRODUCT(((Dataset[Econ4]=$G45))*Dataset[2026/27 Reduction]*$B$3)","v":0},{"$f":"SUM(I45,J45,K45)","v":0}]
["Reductions",0,null,null,null,null,"Higher education institutions",{"$f":"SUMPRODUCT(((Dataset[Econ3]=$G46))*Dataset[2023/24 Reduction]*$B$3)","v":0},{"$f":"SUMPRODUCT(((Dataset[Econ3]=$G46))*Dataset[2024/25 Reduction]*$B$3)","v":0},{"$f":"SUMPRODUCT(((Dataset[Econ3]=$G46))*Dataset[2025/26 Reduction]*$B$3)","v":0},{"$f":"SUMPRODUCT(((Dataset[Econ3]=$G46))*Dataset[2026/27 Reduction]*$B$3)","v":0},{"$f":"SUM(I46,J46,K46)","v":0}]
["Reductions",0,null,null,null,null,"Foreign governments and international organisations",{"$f":"SUMPRODUCT(((Dataset[Econ3]=$G47))*Dataset[2023/24 Reduction]*$B$3)","v":0},{"$f":"SUMPRODUCT(((Dataset[Econ3]=$G47))*Dataset[2024/25 Reduction]*$B$3)","v":0},{"$f":"SUMPRODUCT(((Dataset[Econ3]=$G47))*Dataset[2025/26 Reduction]*$B$3)","v":0},{"$f":"SUMPRODUCT(((Dataset[Econ3]=$G47))*Dataset[2026/27 Reduction]*$B$3)","v":0},{"$f":"SUM(I47,J47,K47)","v":0}]
["Reductions",0,null,null,null,null,"Public corporations and private enterprises",{"$f":"SUM(H49:H50)","v":0},{"$f":"SUM(I49:I50)","v":0},0,0,0]
["Reductions",0,null,null,null,null,"Public corporations",{"$f":"SUMPRODUCT(((Dataset[Econ4]=$G49))*Dataset[2023/24 Reduction]*$B$3)","v":0},{"$f":"SUMPRODUCT(((Dataset[Econ4]=$G49))*Dataset[2024/25 Reduction]*$B$3)","v":0},{"$f":"SUMPRODUCT(((Dataset[Econ4]=$G49))*Dataset[2025/26 Reduction]*$B$3)","v":0},{"$f":"SUMPRODUCT(((Dataset[Econ4]=$G49))*Dataset[2026/27 Reduction]*$B$3)","v":0},{"$f":"SUM(I49,J49,K49)","v":0}]
["Reductions",0,null,null,null,null,"Private enterprises",{"$f":"SUMPRODUCT(((Dataset[Econ4]=$G50))*Dataset[2023/24 Reduction]*$B$3)","v":0},{"$f":"SUMPRODUCT(((Dataset[Econ4]=$G50))*Dataset[2024/25 Reduction]*$B$3)","v":0},{"$f":"SUMPRODUCT(((Dataset[Econ4]=$G50))*Dataset[2025/26 Reduction]*$B$3)","v":0},{"$f":"SUMPRODUCT(((Dataset[Econ4]=$G50))*Dataset[2026/27 Reduction]*$B$3)","v":0},{"$f":"SUM(I50,J50,K50)","v":0}]
["Reductions",0,null,null,null,null,"Non-profit institutions",{"$f":"SUMPRODUCT(((Dataset[Econ3]=$G51))*Dataset[2023/24 Reduction]*$B$3)","v":0},{"$f":"SUMPRODUCT(((Dataset[Econ3]=$G51))*Dataset[2024/25 Reduction]*$B$3)","v":0},{"$f":"SUMPRODUCT(((Dataset[Econ3]=$G51))*Dataset[2025/26 Reduction]*$B$3)","v":0},{"$f":"SUMPRODUCT(((Dataset[Econ3]=$G51))*Dataset[2026/27 Reduction]*$B$3)","v":0},{"$f":"SUM(I51,J51,K51)","v":0}]
["Reductions",0,null,null,null,null,"Households",{"$f":"SUM(H53:H54)","v":0},{"$f":"SUM(I53:I54)","v":0},0,0,0]
["Reductions",0,null,null,null,null,"Social benefits",{"$f":"SUMPRODUCT(((Dataset[Econ4]=$G53))*Dataset[2023/24 Reduction]*$B$3)","v":0},{"$f":"SUMPRODUCT(((Dataset[Econ4]=$G53))*Dataset[2024/25 Reduction]*$B$3)","v":0},{"$f":"SUMPRODUCT(((Dataset[Econ4]=$G53))*Dataset[2025/26 Reduction]*$B$3)","v":0},{"$f":"SUMPRODUCT(((Dataset[Econ4]=$G53))*Dataset[2026/27 Reduction]*$B$3)","v":0},{"$f":"SUM(I53,J53,K53)","v":0}]
["Reductions",0,null,null,null,null,"Other transfers to households",{"$f":"SUMPRODUCT(((Dataset[Econ4]=$G54))*Dataset[2023/24 Reduction]*$B$3)","v":0},{"$f":"SUMPRODUCT(((Dataset[Econ4]=$G54))*Dataset[2024/25 Reduction]*$B$3)","v":0},{"$f":"SUMPRODUCT(((Dataset[Econ4]=$G54))*Dataset[2025/26 Reduction]*$B$3)","v":0},{"$f":"SUMPRODUCT(((Dataset[Econ4]=$G54))*Dataset[2026/27 Reduction]*$B$3)","v":0},{"$f":"SUM(I54,J54,K54)","v":0}]
["Reductions",0,null,null,null,null,"Payments for capital assets",{"$f":"SUM(H56,H59,H62:H66)","v":0},{"$f":"SUM(I56,I59,I62:I66)","v":0},0,0,0]
["Reductions",0,null,null,null,null,"Buildings and other fixed structures",{"$f":"SUM(H57:H58)","v":0},{"$f":"SUM(I57:I58)","v":0},0,0,0]
["Reductions",0,null,null,null,null,"Buildings",{"$f":"SUMPRODUCT(((Dataset[Econ4]=$G57))*Dataset[2023/24 Reduction]*$B$3)","v":0},{"$f":"SUMPRODUCT(((Dataset[Econ4]=$G57))*Dataset[2024/25 Reduction]*$B$3)","v":0},{"$f":"SUMPRODUCT(((Dataset[Econ4]=$G57))*Dataset[2025/26 Reduction]*$B$3)","v":0},{"$f":"SUMPRODUCT(((Dataset[Econ4]=$G57))*Dataset[2026/27 Reduction]*$B$3)","v":0},{"$f":"SUM(I57,J57,K57)","v":0}]
["Reductions",0,null,null,null,null,"Other fixed structures",{"$f":"SUMPRODUCT(((Dataset[Econ4]=$G58))*Dataset[2023/24 Reduction]*$B$3)","v":0},{"$f":"SUMPRODUCT(((Dataset[Econ4]=$G58))*Dataset[2024/25 Reduction]*$B$3)","v":0},{"$f":"SUMPRODUCT(((Dataset[Econ4]=$G58))*Dataset[2025/26 Reduction]*$B$3)","v":0},{"$f":"SUMPRODUCT(((Dataset[Econ4]=$G58))*Dataset[2026/27 Reduction]*$B$3)","v":0},{"$f":"SUM(I58,J58,K58)","v":0}]
["Reductions",0,null,null,null,null,"Machinery and equipment",{"$f":"SUM(H60:H61)","v":0},{"$f":"SUM(I60:I61)","v":0},0,0,0]
["Reductions",0,null,null,null,null,"Transport equipment",{"$f":"SUMPRODUCT(((Dataset[Econ4]=$G60))*Dataset[2023/24 Reduction]*$B$3)","v":0},{"$f":"SUMPRODUCT(((Dataset[Econ4]=$G60))*Dataset[2024/25 Reduction]*$B$3)","v":0},{"$f":"SUMPRODUCT(((Dataset[Econ4]=$G60))*Dataset[2025/26 Reduction]*$B$3)","v":0},{"$f":"SUMPRODUCT(((Dataset[Econ4]=$G60))*Dataset[2026/27 Reduction]*$B$3)","v":0},{"$f":"SUM(I60,J60,K60)","v":0}]
["Reductions",0,null,null,null,null,"Other machinery and equipment",{"$f":"SUMPRODUCT(((Dataset[Econ4]=$G61))*Dataset[2023/24 Reduction]*$B$3)","v":0},{"$f":"SUMPRODUCT(((Dataset[Econ4]=$G61))*Dataset[2024/25 Reduction]*$B$3)","v":0},{"$f":"SUMPRODUCT(((Dataset[Econ4]=$G61))*Dataset[2025/26 Reduction]*$B$3)","v":0},{"$f":"SUMPRODUCT(((Dataset[Econ4]=$G61))*Dataset[2026/27 Reduction]*$B$3)","v":0},0]
["Reductions",0,null,null,null,null,"Heritage assets",{"$f":"SUMPRODUCT(((Dataset[Econ3]=$G62))*Dataset[2023/24 Reduction]*$B$3)","v":0},{"$f":"SUMPRODUCT(((Dataset[Econ3]=$G62))*Dataset[2024/25 Reduction]*$B$3)","v":0},{"$f":"SUMPRODUCT(((Dataset[Econ3]=$G62))*Dataset[2025/26 Reduction]*$B$3)","v":0},{"$f":"SUMPRODUCT(((Dataset[Econ3]=$G62))*Dataset[2026/27 Reduction]*$B$3)","v":0},0]
["Reductions",0,null,null,null,null,"Specialised military assets",{"$f":"SUMPRODUCT(((Dataset[Econ3]=$G63))*Dataset[2023/24 Reduction]*$B$3)","v":0},{"$f":"SUMPRODUCT(((Dataset[Econ3]=$G63))*Dataset[2024/25 Reduction]*$B$3)","v":0},{"$f":"SUMPRODUCT(((Dataset[Econ3]=$G63))*Dataset[2025/26 Reduction]*$B$3)","v":0},{"$f":"SUMPRODUCT(((Dataset[Econ3]=$G63))*Dataset[2026/27 Reduction]*$B$3)","v":0},0]
["Reductions",0,null,null,null,null,"Biological assets",{"$f":"SUMPRODUCT(((Dataset[Econ3]=$G64))*Dataset[2023/24 Reduction]*$B$3)","v":0},{"$f":"SUMPRODUCT(((Dataset[Econ3]=$G64))*Dataset[2024/25 Reduction]*$B$3)","v":0},{"$f":"SUMPRODUCT(((Dataset[Econ3]=$G64))*Dataset[2025/26 Reduction]*$B$3)","v":0},{"$f":"SUMPRODUCT(((Dataset[Econ3]=$G64))*Dataset[2026/27 Reduction]*$B$3)","v":0},0]
["Reductions",0,null,null,null,null,"Land and sub-soil assets",{"$f":"SUMPRODUCT(((Dataset[Econ3]=$G65))*Dataset[2023/24 Reduction]*$B$3)","v":0},{"$f":"SUMPRODUCT(((Dataset[Econ3]=$G65))*Dataset[2024/25 Reduction]*$B$3)","v":0},{"$f":"SUMPRODUCT(((Dataset[Econ3]=$G65))*Dataset[2025/26 Reduction]*$B$3)","v":0},{"$f":"SUMPRODUCT(((Dataset[Econ3]=$G65))*Dataset[2026/27 Reduction]*$B$3)","v":0},0]
["Reductions",0,null,null,null,null,"Software and other intangible assets",{"$f":"SUMPRODUCT(((Dataset[Econ3]=$G66))*Dataset[2023/24 Reduction]*$B$3)","v":0},{"$f":"SUMPRODUCT(((Dataset[Econ3]=$G66))*Dataset[2024/25 Reduction]*$B$3)","v":0},{"$f":"SUMPRODUCT(((Dataset[Econ3]=$G66))*Dataset[2025/26 Reduction]*$B$3)","v":0},{"$f":"SUMPRODUCT(((Dataset[Econ3]=$G66))*Dataset[2026/27 Reduction]*$B$3)","v":0},0]
["Reductions",0,null,null,null,null,"Payments for financial assets",{"$f":"SUMPRODUCT(((Dataset[Econ3]=$G67))*Dataset[2023/24 Reduction]*$B$3)","v":0},{"$f":"SUMPRODUCT(((Dataset[Econ3]=$G67))*Dataset[2024/25 Reduction]*$B$3)","v":0},{"$f":"SUMPRODUCT(((Dataset[Econ3]=$G67))*Dataset[2025/26 Reduction]*$B$3)","v":0},{"$f":"SUMPRODUCT(((Dataset[Econ3]=$G67))*Dataset[2026/27 Reduction]*$B$3)","v":0},0]
["Reductions",0,null,null,null,null,"Total",{"$f":"SUM(H35,H39,H55,H67)","v":0},{"$f":"SUM(I35,I39,I55,I67)","v":0},0,0,0]
[]
[]
[]
[]
[null,null,null,null,null,null,{"$f":"\"IMPACT OF ADJUSTMENTS: \" &UPPER($G$3)","v":"IMPACT OF ADJUSTMENTS: REDUCTIONS"}]
[]
[null,null,null,null,null,1,"Impact of adjustments on expenditure"]
[{"$f":"$G$3","v":"Reductions"},5,null,null,null,null,null,{"$f":"MyYear4","v":"2023/24"},null,null,{"$f":"MyYear5","v":"2024/25"},null,null,{"$f":"MyYear6","v":"2025/26"},null,null,{"$f":"MyYear7","v":"2026/27"}]
["Reductions",5,null,null,null,null,null,"Current expenditure","Potential expenditure @ benchmark level","% Savings if benchmark is achieved","Original number","Change in expenditure","Saving as % of original number","Original number","Change in expenditure","Saving as % of original number","Original number","Change in expenditure","Saving as % of original number"]
["Reductions",5,null,null,null,null,"Total",null,null,{"$f":"IFERROR((H78-I78)/H78,\"\")","v":""},null,null,{"$f":"IFERROR(L78/K78,\"\")","v":""},null,null,{"$f":"IFERROR(O78/N78,\"\")","v":""},null,null,{"$f":"IFERROR(R78/Q78,\"\")","v":""}]
[]
[]
[]
[]
[]
[null,null,null,null,null,2,"Summary of impact on service delivery/policy area due to adjustments"]
[{"$f":"$G$3","v":"Reductions"},1]
["Reductions",1]
["Reductions",1]
["Reductions",1]
["Reductions",1]
["Reductions",1]
["Reductions",1]
["Reductions",1]
["Reductions",1]
["Reductions",1]
["Reductions",1]
["Reductions",1]
["Reductions",1]
["Reductions",1]
["Reductions",1]
[]
[]
[]
[]
[]
[null,null,null,null,null,3,"Impact of adjustments on performance indicators"]
[{"$f":"$G$3","v":"Reductions"},2,null,null,null,null,null,{"$f":"MyYear4","v":"2023/24"},null,null,{"$f":"MyYear5","v":"2024/25"},null,null,{"$f":"MyYear6","v":"2025/26"},null,null,{"$f":"MyYear7","v":"2026/27"},null,null," Comment",null,null,null,null,"Related MTSF Priority"]
["Reductions",2,null,null,null,null,"Performance indicator","Current performance","Performance @ benchmark level","Change","Original target","Revised target","Change","Original target","Revised target","Change","Original target","Revised target","Change"]
["Reductions",2]
["Reductions",2]
["Reductions",2]
["Reductions",2]
["Reductions",2]
["Reductions",2]
["Reductions",2]
["Reductions",2]
["Reductions",2]
["Reductions",2]
["Reductions",2]
["Reductions",2]
["Reductions",2]
["Reductions",2]
["Reductions",2]
[]
[]
[]
[]
[]
[null,null,null,null,null,4,"Impact of adjustments on personnel headcount numbers"]
[{"$f":"$G$3","v":"Reductions"},4,null,null,null,null,null,{"$f":"MyYear4","v":"2023/24"},null,null,{"$f":"MyYear5","v":"2024/25"},null,null,{"$f":"MyYear6","v":"2025/26"},null,null,{"$f":"MyYear7","v":"2026/27"},null,null," Comment"]
["Reductions",4,null,null,null,null,"Salary level","Current number","Potential number if benchmark is achieved","Change in number","Original number","Revised number","Change in number","Original number","Revised number","Change in number","Original number","Revised number","Change in number"]
["Reductions",4,null,null,null,null,1,null,null,{"$f":"I131-H131","v":0},null,null,{"$f":"L131-K131","v":0},null,null,{"$f":"O131-N131","v":0},null,null,{"$f":"R131-Q131","v":0}]
["Reductions",4,null,null,null,null,2,null,null,0,null,null,0,null,null,0,null,null,0]
["Reductions",4,null,null,null,null,3,null,null,0,null,null,0,null,null,0,null,null,0]
["Reductions",4,null,null,null,null,4,null,null,0,null,null,0,null,null,0,null,null,0]
["Reductions",4,null,null,null,null,5,null,null,0,null,null,0,null,null,0,null,null,0]
["Reductions",4,null,null,null,null,6,null,null,0,null,null,0,null,null,0,null,null,0]
["Reductions",4,null,null,null,null,7,null,null,0,null,null,0,null,null,0,null,null,0]
["Reductions",4,null,null,null,null,8,null,null,0,null,null,0,null,null,0,null,null,0]
["Reductions",4,null,null,null,null,9,null,null,0,null,null,0,null,null,0,null,null,0]
["Reductions",4,null,null,null,null,10,null,null,0,null,null,0,null,null,0,null,null,0]
["Reductions",4,null,null,null,null,11,null,null,0,null,null,0,null,null,0,null,null,0]
["Reductions",4,null,null,null,null,12,null,null,0,null,null,0,null,null,0,null,null,0]
["Reductions",4,null,null,null,null,13,null,null,0,null,null,0,null,null,0,null,null,0]
["Reductions",4,null,null,null,null,14,null,null,0,null,null,0,null,null,0,null,null,0]
["Reductions",4,null,null,null,null,15,null,null,0,null,null,0,null,null,0,null,null,0]
["Reductions",4,null,null,null,null,16,null,null,0,null,null,0,null,null,0,null,null,0]
["Reductions",4,null,null,null,null,"Other",null,null,0,null,null,0,null,null,0,null,null,0]
["Reductions",4,null,null,null,null,"Other",null,null,0,null,null,0,null,null,0,null,null,0]
["Reductions",4,null,null,null,null,"Other",null,null,0,null,null,0,null,null,0,null,null,0]
["Reductions",4,null,null,null,null,"Other",null,null,0,null,null,0,null,null,0,null,null,0]
["Reductions",4,null,null,null,null,"Total",{"$f":"SUM(H131:H150)","v":0},0,0,{"$f":"SUM(K131:K150)","v":0},0,0,0,0,0,0,0,0]
[]
[]
[]
[]
[]
[null,null,null,null,null,5,"Impact of adjustments on infrastructure projects"]
[{"$f":"$G$3","v":"Reductions"},3,null,null,null,null,null,{"$f":"MyYear4","v":"2023/24"},null,null,{"$f":"MyYear5","v":"2024/25"},null,null,{"$f":"MyYear6","v":"2025/26"},null,null,{"$f":"MyYear7","v":"2026/27"},null,null," Comment"]
["Reductions",3,null,null,null,null,"Project name","Current number","Market or best in class benchmark","Change","Original amount","Revised amount","Change","Original amount","Revised amount","Change","Original amount","Revised amount","Change"]
["Reductions",3,null,null,null,null,null,null,null,{"$f":"I160-H160","v":0},null,null,{"$f":"L160-K160","v":0},null,null,{"$f":"O160-N160","v":0},null,null,{"$f":"R160-Q160","v":0}]
["Reductions",3,null,null,null,null,null,null,null,0,null,null,0,null,null,0,null,null,0]
["Reductions",3,null,null,null,null,null,null,null,0,null,null,0,null,null,0,null,null,0]
["Reductions",3,null,null,null,null,null,null,null,0,null,null,0,null,null,0,null,null,0]
["Reductions",3,null,null,null,null,null,null,null,0,null,null,0,null,null,0,null,null,0]
["Reductions",3,null,null,null,null,null,null,null,0,null,null,0,null,null,0,null,null,0]
["Reductions",3,null,null,null,null,null,null,null,0,null,null,0,null,null,0,null,null,0]
["Reductions",3,null,null,null,null,null,null,null,0,null,null,0,null,null,0,null,null,0]
["Reductions",3,null,null,null,null,null,null,null,0,null,null,0,null,null,0,null,null,0]
["Reductions",3,null,null,null,null,null,null,null,0,null,null,0,null,null,0,null,null,0]
["Reductions",3,null,null,null,null,null,null,null,0,null,null,0,null,null,0,null,null,0]
["Reductions",3,null,null,null,null,null,null,null,0,null,null,0,null,null,0,null,null,0]
["Reductions",3,null,null,null,null,null,null,null,0,null,null,0,null,null,0,null,null,0]
["Reductions",3,null,null,null,null,null,null,null,0,null,null,0,null,null,0,null,null,0]
["Reductions",3,null,null,null,null,null,null,null,0,null,null,0,null,null,0,null,null,0]
["Reductions",3,null,null,null,null,null,null,null,0,null,null,0,null,null,0,null,null,0]
["Reductions",3,null,null,null,null,null,null,null,0,null,null,0,null,null,0,null,null,0]
["Reductions",3,null,null,null,null,null,null,null,0,null,null,0,null,null,0,null,null,0]
["Reductions",3,null,null,null,null,null,null,null,0,null,null,0,null,null,0,null,null,0]
["Reductions",3,null,null,null,null,null,null,null,0,null,null,0,null,null,0,null,null,0]
["Reductions",3,null,null,null,null,null,null,null,0,null,null,0,null,null,0,null,null,0]
["Reductions",3,null,null,null,null,null,null,null,0,null,null,0,null,null,0,null,null,0]
["Reductions",3,null,null,null,null,null,null,null,0,null,null,0,null,null,0,null,null,0]
["Reductions",3,null,null,null,null,null,null,null,0,null,null,0,null,null,0,null,null,0]
["Reductions",3,null,null,null,null,null,null,null,0,null,null,0,null,null,0,null,null,0]
["Reductions",3,null,null,null,null,null,null,null,0,null,null,0,null,null,0,null,null,0]
["Reductions",3,null,null,null,null,null,null,null,0,null,null,0,null,null,0,null,null,0]
["Reductions",3,null,null,null,null,null,null,null,0,null,null,0,null,null,0,null,null,0]
["Reductions",3,null,null,null,null,null,null,null,0,null,null,0,null,null,0,null,null,0]
["Reductions",3,null,null,null,null,null,null,null,0,null,null,0,null,null,0,null,null,0]
["Reductions",3,null,null,null,null,null,null,null,0,null,null,0,null,null,0,null,null,0]
["Reductions",3,null,null,null,null,null,null,null,0,null,null,0,null,null,0,null,null,0]
["Reductions",3,null,null,null,null,null,null,null,0,null,null,0,null,null,0,null,null,0]
["Reductions",3,null,null,null,null,null,null,null,0,null,null,0,null,null,0,null,null,0]
["Reductions",3,null,null,null,null,null,null,null,0,null,null,0,null,null,0,null,null,0]
["Reductions",3,null,null,null,null,null,null,null,0,null,null,0,null,null,0,null,null,0]
["Reductions",3,null,null,null,null,null,null,null,0,null,null,0,null,null,0,null,null,0]
["Reductions",3,null,null,null,null,null,null,null,0,null,null,0,null,null,0,null,null,0]
["Reductions",3,null,null,null,null,null,null,null,0,null,null,0,null,null,0,null,null,0]
["Reductions",3,null,null,null,null,null,null,null,0,null,null,0,null,null,0,null,null,0]
["Reductions",3,null,null,null,null,null,null,null,0,null,null,0,null,null,0,null,null,0]
["Reductions",3,null,null,null,null,null,null,null,0,null,null,0,null,null,0,null,null,0]
["Reductions",3,null,null,null,null,null,null,null,0,null,null,0,null,null,0,null,null,0]
["Reductions",3,null,null,null,null,null,null,null,0,null,null,0,null,null,0,null,null,0]
["Reductions",3,null,null,null,null,null,null,null,0,null,null,0,null,null,0,null,null,0]
["Reductions",3,null,null,null,null,null,null,null,0,null,null,0,null,null,0,null,null,0]
["Reductions",3,null,null,null,null,null,null,null,0,null,null,0,null,null,0,null,null,0]
["Reductions",3,null,null,null,null,null,null,null,0,null,null,0,null,null,0,null,null,0]
["Reductions",3,null,null,null,null,null,null,null,0,null,null,0,null,null,0,null,null,0]
["Reductions",3,null,null,null,null,null,null,null,0,null,null,0,null,null,0,null,null,0]
["Reductions",3,null,null,null,null,"Total",{"$f":"SUM(H160:H209)","v":0},0,0,0,0,0,0,0,0,0,0,0]

{"sheet":"Metadata","index":17,"n_rows":26,"n_cols":4,"rows_kept":26,"cut":false,"hidden":true,"merged":[]}
[]
[null,"Metadata"]
[null,"ContextData","ProcessActivity","NAT_MTEC"]
[null,null,"Province","National"]
[null,null,"Department",{"$f":"MyDeptName","v":"Military Veterans"}]
[null,null,"Month"]
[null,null,"Fin Year","2024/25"]
[null,null,"VoteNo",{"$f":"MyVoteNo","v":26}]
[null,null,"Identifier"]
[null,null,"ProgSectionCount"]
[null,null,"SubprogSectionCount"]
[null,"SourceRef","name",{"$f":"Welcome!G11","v":0}]
[null,null,"email",{"$f":"Welcome!G12","v":0}]
[null,null,"telephone",{"$f":"Welcome!G13","v":0}]
[null,null,"mobile",{"$f":"Welcome!G14","v":0}]
[null,"Platform","file modified",{"$f":"NOW()","v":45090.072371527778}]
[null,null,"OS version",{"$f":"INFO(\"OSVERSION\")","v":"Windows (64-bit) NT 10.00"}]
[null,null,"Excel version",{"$f":"INFO(\"RELEASE\")","v":"16.0"}]
[null,"SourceControl","SourceIdentifier",{"$f":"CONCATENATE(D3,\"_\",D9,\"_\",D16)","v":"NAT_MTEC__45090.0723715278"}]
[null,null,"Filename",{"$f":"MID(CELL(\"filename\",A1),FIND(\"[\",CELL(\"filename\",A1))+1,FIND(\"]\",CELL(\"filename\",A1))-FIND(\"[\",CELL(\"filename\",A1))-1)","v":"MTEC2024-Vote 26.xlsm"}]
[null,null,"FilePath",{"$f":"LEFT(CELL(\"filename\",A1),FIND(\"[\",CELL(\"filename\",A1),1)-1)","v":"D:\\1. Budget\\2024\\1. MTEC\\MTEC Workbook\\Master Workbook file\\Model\\Rollout\\"}]
[null,null,"template_versionDate",{"$f":"DATE(2015,6,26)","v":42181}]
[null,null,"LockDate1",{"$f":"DATE(2015,2,8)","v":42043}]
[null,null,"lockDate2",{"$f":"DATE(2015,2,8)","v":42043}]
[null,null,"LockStatus1",1]
[null,null,"LockStatus2",1]

{"sheet":"Sheet1","index":18,"n_rows":50,"n_cols":45,"rows_kept":50,"cut":false,"hidden":true,"merged":[]}
[]
[null,"Department:","Cooperative Governance"]
[null,null,null,null,null,null,null,null,null,null,null,null,null,null,null,null,null,null,null,null,null,null,null,null,null,null,null,null,null,null,null,null,null,"Ceiling Dept",null,null,null,null,null,null,"Ceiling CoE"]
[null,null,null,null,null,null,null,null,null,null,null,null,null,null,null,null,null,null,null,null,"Check Ceilings"]
[null,null,null,null,null,null,null,null,{"$f":"20-COUNTIF(J7:J26,\"\")","v":0},null,null,null,null,null,null,null,null,null,null,null,{"$f":"MyYear5","v":"2024/25"},{"$f":"MyYear6","v":"2025/26"},{"$f":"MyYear7","v":"2026/27"},"Check","Message",null,null,"ShtNames","Lock","Hide",null,null,null,"Vote No. - N","Department","2023/24","2024/25","2025/26",null,null,"Vote No. - N","Department","2023/24","2024/25","2025/26"]
[null,"UID_Org","Department","Programme","Subprogramme","Implementation programme","IP No",null,"IP No","Implementation programme",null,null,"ShtName",null,null,null,"Gov_Priority",null,null,"Dept",{"$f":"Data!CP9","v":0},{"$f":"Data!CQ9","v":0},{"$f":"Data!CR9","v":0},{"$f":"IF(OR(U6<0,V6<0,W6<0),1,0)","v":0},{"$f":"IF(X6=1,\"Departmental baseline ceiling exceeded!\")","v":false},null,null,"Welcome",1,0,null,null,null,29,"Agriculture, Land Reform and Rural Development",17387702,18168574,18982512,null,null,29,"Agriculture, Land Reform and Rural Development",3856499,4029693,4210223]
[null,"03|01|01","Cooperative Governance","Administration","Ministry",null,null,null,1,{"$f":"IFERROR(INDEX(#REF!,MATCH(0,COUNTIF(Sheet1!$J$6:J6,#REF!),0)),\"\")","v":""},null,null,"IP1",null,{"$f":"IFERROR(INDEX((t_PolicyMap[Implementation programme]),MATCH(I7,t_PolicyMap[IP No],0)),\"\")","v":""},null,"Priority 1: A Capable, Ethical and Developmental State",null,null,"CoE",{"$f":"Data!CP12","v":0},{"$f":"Data!CQ12","v":0},{"$f":"Data!CR12","v":0},{"$f":"IF(OR(U7<0,V7<0,W7<0),1,0)","v":0},{"$f":"IF(X7=1,\"Compensation baseline ceiling exceeded!\")","v":false},null,null,"Notes",1,0,null,null,null,16,"Basic Education",30388009,31406684,32813705,null,null,16,"Basic Education",541065,565363,590690]
[null,"03|01|02","Cooperative Governance","Administration","Management",null,null,null,2,{"$f":"IFERROR(INDEX(#REF!,MATCH(0,COUNTIF(Sheet1!$J$6:J7,#REF!),0)),\"\")","v":""},null,null,"IP2",null,{"$f":"IFERROR(INDEX((t_PolicyMap[Implementation programme]),MATCH(I8,t_PolicyMap[IP No],0)),\"\")","v":""},null,"Priority 2: Economic Transformation and Job Creation",null,null,null,null,null,null,{"$f":"SUM(X6:X7)","v":0},null,null,null,"Pivot % growth",0,0,null,null,null,42,"Centre for Public Service Innovation",45363,47400,49526,null,null,42,"Centre for Public Service Innovation",24869,25985,27150]
[null,"03|01|03","Cooperative Governance","Administration","Corporate Services",null,null,null,3,{"$f":"IFERROR(INDEX(#REF!,MATCH(0,COUNTIF(Sheet1!$J$6:J8,#REF!),0)),\"\")","v":""},null,null,"IP3",null,{"$f":"IFERROR(INDEX((t_PolicyMap[Implementation programme]),MATCH(I9,t_PolicyMap[IP No],0)),\"\")","v":""},null,"Priority 3: Education, Skills and Health",null,null,null,null,null,null,null,null,null,null,"Pivot_T",0,0,null,null,null,21,"Civilian Secretariat for the Police Service",150489,157245,164284,null,null,21,"Civilian Secretariat for the Police Service",105189,109906,114831]
[null,"03|01|04","Cooperative Governance","Administration","Financial Services",null,null,null,4,{"$f":"IFERROR(INDEX(#REF!,MATCH(0,COUNTIF(Sheet1!$J$6:J9,#REF!),0)),\"\")","v":""},null,null,null,null,{"$f":"IFERROR(INDEX((t_PolicyMap[Implementation programme]),MATCH(I10,t_PolicyMap[IP No],0)),\"\")","v":""},null,"Priority 4: Consolidating the Social Wage through Reliable and Quality Basic Services",null,null,null,null,null,null,null,null,null,null,"Service delivery impact",0,0,null,null,null,30,"Communications and Digital Technologies",2426409,2535360,2583461,null,null,30,"Communications and Digital Technologies",291288,304366,318003]
[null,"03|01|05","Cooperative Governance","Administration","Internal Audit and Risk Management",null,null,null,5,{"$f":"IFERROR(INDEX(#REF!,MATCH(0,COUNTIF(Sheet1!$J$6:J10,#REF!),0)),\"\")","v":""},null,null,null,null,{"$f":"IFERROR(INDEX((t_PolicyMap[Implementation programme]),MATCH(I11,t_PolicyMap[IP No],0)),\"\")","v":""},null,"Priority 5: Spatial Integration, Human Settlements and Local Government",null,null,null,null,null,null,null,null,null,null,"Performance impact",0,0,null,null,null,3,"Cooperative Governance",119225831,127419419,133127805,null,null,3,"Cooperative Governance",333973,348968,364600]
[null,"03|01|06","Cooperative Governance","Administration","Office Accommodation",null,null,null,6,{"$f":"IFERROR(INDEX(#REF!,MATCH(0,COUNTIF(Sheet1!$J$6:J11,#REF!),0)),\"\")","v":""},null,null,null,null,{"$f":"IFERROR(INDEX((t_PolicyMap[Implementation programme]),MATCH(I12,t_PolicyMap[IP No],0)),\"\")","v":""},null,"Priority 6: Social Cohesion and Safer Communities",null,null,null,null,null,null,null,null,null,null,"Pivot Infra impact",0,0,null,null,null,22,"Correctional Services",25593909,26743311,27941397,null,null,22,"Correctional Services",16928739,17689000,18481466]
[null,"03|02|01","Cooperative Governance","Regional and Urban Development and Legislative Support","Management: Regional and Urban Development and Legislative Support",null,null,null,7,{"$f":"IFERROR(INDEX(#REF!,MATCH(0,COUNTIF(Sheet1!$J$6:J12,#REF!),0)),\"\")","v":""},null,null,null,null,{"$f":"IFERROR(INDEX((t_PolicyMap[Implementation programme]),MATCH(I13,t_PolicyMap[IP No],0)),\"\")","v":""},null,"Priority 7: A Better Africa and World",null,null,null,null,null,null,null,null,null,null,"Pivot Personnel impact",0,0,null,null,null,23,"Defence",47959805,49277735,51485360,null,null,23,"Defence",29649010,30980536,32368468]
[null,"03|02|02","Cooperative Governance","Regional and Urban Development and Legislative Support","Local Government Legislative Support and Institutional Establishment",null,null,null,8,{"$f":"IFERROR(INDEX(#REF!,MATCH(0,COUNTIF(Sheet1!$J$6:J13,#REF!),0)),\"\")","v":""},null,null,null,null,{"$f":"IFERROR(INDEX((t_PolicyMap[Implementation programme]),MATCH(I14,t_PolicyMap[IP No],0)),\"\")","v":""},null,"Departmental mandate",null,null,null,null,null,null,null,null,null,null,"Pivot HRBP",0,0,null,null,null,31,"Employment and Labour",3983468,3772616,3941622,null,null,31,"Employment and Labour",1378647,1440561,1505099]
[null,"03|02|03","Cooperative Governance","Regional and Urban Development and Legislative Support","Urban Development Planning",null,null,null,9,{"$f":"IFERROR(INDEX(#REF!,MATCH(0,COUNTIF(Sheet1!$J$6:J14,#REF!),0)),\"\")","v":""},null,null,null,null,{"$f":"IFERROR(INDEX((t_PolicyMap[Implementation programme]),MATCH(I15,t_PolicyMap[IP No],0)),\"\")","v":""},null,null,null,null,null,null,null,null,null,null,null,null,"Data",1,0,null,null,null,32,"Forestry, Fisheries and the Environment",8947150,9348937,9767746,null,null,32,"Forestry, Fisheries and the Environment",1889993,1974872,2063344]
[null,"03|02|04","Cooperative Governance","Regional and Urban Development and Legislative Support","Spatial Planning Districts and Regions",null,null,null,10,{"$f":"IFERROR(INDEX(#REF!,MATCH(0,COUNTIF(Sheet1!$J$6:J15,#REF!),0)),\"\")","v":""},null,null,null,null,{"$f":"IFERROR(INDEX((t_PolicyMap[Implementation programme]),MATCH(I16,t_PolicyMap[IP No],0)),\"\")","v":""},null,null,null,null,null,null,null,null,null,null,null,null,"Summary",1,0,null,null,null,4,"Government Communication and Information System",714862,746830,780277,null,null,4,"Government Communication and Information System",275218,287579,300460]
[null,"03|02|05","Cooperative Governance","Regional and Urban Development and Legislative Support","Intergovernmental Policy and Practice",null,null,null,11,{"$f":"IFERROR(INDEX(#REF!,MATCH(0,COUNTIF(Sheet1!$J$6:J16,#REF!),0)),\"\")","v":""},null,null,null,null,{"$f":"IFERROR(INDEX((t_PolicyMap[Implementation programme]),MATCH(I17,t_PolicyMap[IP No],0)),\"\")","v":""},null,null,null,null,null,null,null,null,null,null,null,null,"SRT1",1,0,null,null,null,18,"Health",60620455,62157612,64942267,null,null,18,"Health",760135,794290,829876]
[null,"03|02|06","Cooperative Governance","Regional and Urban Development and Legislative Support","Municipal Demarcation Transition Grant",null,null,null,12,{"$f":"IFERROR(INDEX(#REF!,MATCH(0,COUNTIF(Sheet1!$J$6:J17,#REF!),0)),\"\")","v":""},null,null,null,null,{"$f":"IFERROR(INDEX((t_PolicyMap[Implementation programme]),MATCH(I18,t_PolicyMap[IP No],0)),\"\")","v":""},null,null,null,null,null,null,null,null,null,null,null,null,"SRT2",1,0,null,null,null,17,"Higher Education and Training",136190371,144509123,151981819,null,null,17,"Higher Education and Training",10962604,11454929,11968107]
[null,"03|02|07","Cooperative Governance","Regional and Urban Development and Legislative Support","Municipal Demarcation Board",null,null,null,13,{"$f":"IFERROR(INDEX(#REF!,MATCH(0,COUNTIF(Sheet1!$J$6:J18,#REF!),0)),\"\")","v":""},null,null,null,null,{"$f":"IFERROR(INDEX((t_PolicyMap[Implementation programme]),MATCH(I19,t_PolicyMap[IP No],0)),\"\")","v":""},null,null,null,null,null,null,null,null,null,null,null,null,"SRT3",1,0,null,null,null,5,"Home Affairs",9332567,9751680,10188556,null,null,5,"Home Affairs",3781770,3951607,4128639]
[null,"03|02|08","Cooperative Governance","Regional and Urban Development and Legislative Support","South African Cities Network",null,null,null,14,{"$f":"IFERROR(INDEX(#REF!,MATCH(0,COUNTIF(Sheet1!$J$6:J19,#REF!),0)),\"\")","v":""},null,null,null,null,{"$f":"IFERROR(INDEX((t_PolicyMap[Implementation programme]),MATCH(I20,t_PolicyMap[IP No],0)),\"\")","v":""},null,null,null,null,null,null,null,null,null,null,null,null,"SRT4",1,0,null,null,null,33,"Human Settlements",34457574,35508742,37099532,null,null,33,"Human Settlements",403176,421283,440156]
[null,"03|02|09","Cooperative Governance","Regional and Urban Development and Legislative Support","Integrated Urban Development Grant",null,null,null,15,{"$f":"IFERROR(INDEX(#REF!,MATCH(0,COUNTIF(Sheet1!$J$6:J20,#REF!),0)),\"\")","v":""},null,null,null,null,{"$f":"IFERROR(INDEX((t_PolicyMap[Implementation programme]),MATCH(I21,t_PolicyMap[IP No],0)),\"\")","v":""},null,null,null,null,null,null,null,null,null,null,null,null,"Other reallocations",1,0,null,null,null,24,"Independent Police Investigative Directorate",357989,374064,390822,null,null,24,"Independent Police Investigative Directorate",239613,250376,261591]
[null,"03|03|01","Cooperative Governance","Institutional Development","Management: Institutional Development",null,null,null,16,{"$f":"IFERROR(INDEX(#REF!,MATCH(0,COUNTIF(Sheet1!$J$6:J21,#REF!),0)),\"\")","v":""},null,null,null,null,{"$f":"IFERROR(INDEX((t_PolicyMap[Implementation programme]),MATCH(I22,t_PolicyMap[IP No],0)),\"\")","v":""},null,null,null,null,null,null,null,null,null,null,null,null,"Reductions",1,0,null,null,null,6,"International Relations and Cooperation",6611037,6907933,7217415,null,null,6,"International Relations and Cooperation",2839854,2967390,3100331]
[null,"03|03|02","Cooperative Governance","Institutional Development","Municipal Human Resources Management Systems",null,null,null,17,{"$f":"IFERROR(INDEX(#REF!,MATCH(0,COUNTIF(Sheet1!$J$6:J22,#REF!),0)),\"\")","v":""},null,null,null,null,{"$f":"IFERROR(INDEX((t_PolicyMap[Implementation programme]),MATCH(I23,t_PolicyMap[IP No],0)),\"\")","v":""},null,null,null,null,null,null,null,null,null,null,null,null,"Metadata",1,1,null,null,null,25,"Justice and Constitutional Development",22210993,23209291,24249060,null,null,25,"Justice and Constitutional Development",12522222,13086101,13672358]
[null,"03|03|03","Cooperative Governance","Institutional Development","Municipal Finance",null,null,null,18,{"$f":"IFERROR(INDEX(#REF!,MATCH(0,COUNTIF(Sheet1!$J$6:J23,#REF!),0)),\"\")","v":""},null,null,null,null,{"$f":"IFERROR(INDEX((t_PolicyMap[Implementation programme]),MATCH(I24,t_PolicyMap[IP No],0)),\"\")","v":""},null,null,null,null,null,null,null,null,null,null,null,null,"Sheet1",0,1,null,null,null,26,"Military Veterans",662993,692764,723793,null,null,26,"Military Veterans",130736,136607,142727]
[null,"03|03|04","Cooperative Governance","Institutional Development","Citizen Engagement",null,null,null,19,{"$f":"IFERROR(INDEX(#REF!,MATCH(0,COUNTIF(Sheet1!$J$6:J24,#REF!),0)),\"\")","v":""},null,null,null,null,{"$f":"IFERROR(INDEX((t_PolicyMap[Implementation programme]),MATCH(I25,t_PolicyMap[IP No],0)),\"\")","v":""},null,null,null,null,null,null,null,null,null,null,null,null,"HRBP_Data",1,1,null,null,null,34,"Mineral Resources and Energy",10653456,11205147,11707142,null,null,34,"Mineral Resources and Energy",1037131,1083709,1132261]
[null,"03|03|05","Cooperative Governance","Institutional Development","Anti-Corruption and Good Governance",null,null,null,20,{"$f":"IFERROR(INDEX(#REF!,MATCH(0,COUNTIF(Sheet1!$J$6:J25,#REF!),0)),\"\")","v":""},null,null,null,null,{"$f":"IFERROR(INDEX((t_PolicyMap[Implementation programme]),MATCH(I26,t_PolicyMap[IP No],0)),\"\")","v":""},null,null,null,null,null,null,null,null,null,null,null,null,"Tables",0,1,null,null,null,7,"National School of Government",225944,235642,246196,null,null,7,"National School of Government",59309,61974,64750]
[null,"03|03|06","Cooperative Governance","Institutional Development","Municipal Property Rates",null,null,null,null,null,null,null,null,null,null,null,null,null,null,null,null,null,null,null,null,null,null,null,null,null,null,null,null,8,"National Treasury",930737811,977634759,1039728978,null,null,8,"National Treasury",890023,902007,942414]
[null,"03|03|07","Cooperative Governance","Institutional Development","Local Government Equitable Share ",null,null,null,null,null,null,null,null,null,null,null,null,null,null,null,null,null,null,null,null,null,null,null,null,null,null,null,null,27,"Office of the Chief Justice",2357611,2463491,2573851,null,null,27,"Office of the Chief Justice",1740705,1818880,1900371]
[null,"03|03|08","Cooperative Governance","Institutional Development","South African Local Government Association",null,null,null,null,null,null,null,null,null,null,null,null,null,null,null,null,null,null,null,null,null,null,null,null,null,null,null,null,2,"Parliament",2657570,2776916,2901323,null,null,2,"Parliament",1399164,1461998,1527497]
[null,"03|03|09","Cooperative Governance","Institutional Development","Municipal Systems Improvement Grant ",null,null,null,null,null,null,null,null,null,null,null,null,null,null,null,null,null,null,null,null,null,null,null,null,null,null,null,null,9,"Planning, Monitoring and Evaluation",466812,487769,509615,null,null,9,"Planning, Monitoring and Evaluation",311990,326003,340607]
[null,"03|03|11","Cooperative Governance","Institutional Development","United Cities and Local Government of Africa",null,null,null,null,null,null,null,null,null,null,null,null,null,null,null,null,null,null,null,null,null,null,null,null,null,null,null,null,28,"Police",99018831,104373725,109049663,null,null,28,"Police",77232311,81608782,85264855]
[null,"03|04|01","Cooperative Governance","National Disaster Management Centre","Management: Head of the National Disaster Management Centre",null,null,null,null,null,null,null,null,null,null,null,null,null,null,null,null,null,null,null,null,null,null,null,null,null,null,null,null,10,"Public Enterprises",297553,310915,324839,null,null,10,"Public Enterprises",179974,188057,196481]
[null,"03|04|02","Cooperative Governance","National Disaster Management Centre","Disaster Risk Reduction, Capacity Building and Intervention",null,null,null,null,null,null,null,null,null,null,null,null,null,null,null,null,null,null,null,null,null,null,null,null,null,null,null,null,12,"Public Service Commission",284921,297715,311054,null,null,12,"Public Service Commission",212877,222437,232403]
[null,"03|04|03","Cooperative Governance","National Disaster Management Centre","Legislation and Policy Management",null,null,null,null,null,null,null,null,null,null,null,null,null,null,null,null,null,null,null,null,null,null,null,null,null,null,null,null,11,"Public Service and Administration",543462,567875,593307,null,null,11,"Public Service and Administration",290747,303804,317415]
[null,"03|04|04","Cooperative Governance","National Disaster Management Centre","Integrated Provincial Disaster Management Support, Monitoring and Evaluation Systems",null,null,null,null,null,null,null,null,null,null,null,null,null,null,null,null,null,null,null,null,null,null,null,null,null,null,null,null,13,"Public Works and Infrastructure",8568946,8954214,9355359,null,null,13,"Public Works and Infrastructure",571442,597104,623854]
[null,"03|04|05","Cooperative Governance","National Disaster Management Centre","Fire Services",null,null,null,null,null,null,null,null,null,null,null,null,null,null,null,null,null,null,null,null,null,null,null,null,null,null,null,null,35,"Science and Innovation",9244581,9659756,10092514,null,null,35,"Science and Innovation",358376,374470,391249]
[null,"03|04|06","Cooperative Governance","National Disaster Management Centre","Information Technology, Intelligence and Information Management Systems",null,null,null,null,null,null,null,null,null,null,null,null,null,null,null,null,null,null,null,null,null,null,null,null,null,null,null,null,36,"Small Business Development",2569927,2685340,2805646,null,null,36,"Small Business Development",220264,246706,257760]
[null,"03|04|07","Cooperative Governance","National Disaster Management Centre","Disaster Relief Grant",null,null,null,null,null,null,null,null,null,null,null,null,null,null,null,null,null,null,null,null,null,null,null,null,null,null,null,null,19,"Social Development",221041972,232974986,243412261,null,null,19,"Social Development",498009,520374,543688]
[null,"03|04|08","Cooperative Governance","National Disaster Management Centre","Municipal Disaster Recovery Grant",null,null,null,null,null,null,null,null,null,null,null,null,null,null,null,null,null,null,null,null,null,null,null,null,null,null,null,null,37,"Sport, Arts and Culture",6347204,6149504,6425006,null,null,37,"Sport, Arts and Culture",376422,393325,410947]
[null,"03|04|09","Cooperative Governance","National Disaster Management Centre","Provincial Disaster Recovery Grant",null,null,null,null,null,null,null,null,null,null,null,null,null,null,null,null,null,null,null,null,null,null,null,null,null,null,null,null,14,"Statistics South Africa",2644134,2774713,2899018,null,null,14,"Statistics South Africa",1600931,1684662,1760135]
[null,"03|05|01","Cooperative Governance","Local Government Support and Intervention Management","Management: Local Government Support and Interventions",null,null,null,null,null,null,null,null,null,null,null,null,null,null,null,null,null,null,null,null,null,null,null,null,null,null,null,null,1,"The Presidency",610485,637903,666479,null,null,1,"The Presidency",376377,393280,410898]
[null,"03|05|02","Cooperative Governance","Local Government Support and Intervention Management","Municipal Performance Monitoring",null,null,null,null,null,null,null,null,null,null,null,null,null,null,null,null,null,null,null,null,null,null,null,null,null,null,null,null,38,"Tourism",2492307,2604237,2720908,null,null,38,"Tourism",363524,379846,396864]
[null,"03|05|03","Cooperative Governance","Local Government Support and Intervention Management","Local Government Improvement Programme",null,null,null,null,null,null,null,null,null,null,null,null,null,null,null,null,null,null,null,null,null,null,null,null,null,null,null,null,39,"Trade, Industry and Competition",10887653,10553269,11026040,null,null,39,"Trade, Industry and Competition",1031246,1045762,1092612]
[null,"03|05|04","Cooperative Governance","Local Government Support and Intervention Management","Litigations and Interventions",null,null,null,null,null,null,null,null,null,null,null,null,null,null,null,null,null,null,null,null,null,null,null,null,null,null,null,null,15,"Traditional Affairs",179962,188044,196465,null,null,15,"Traditional Affairs",89020,93018,97185]
[null,"03|05|05","Cooperative Governance","Local Government Support and Intervention Management","Municipal Infrastructure Administration",null,null,null,null,null,null,null,null,null,null,null,null,null,null,null,null,null,null,null,null,null,null,null,null,null,null,null,null,40,"Transport",76907174,81658177,85316464,null,null,40,"Transport",531457,555328,580210]
[null,"03|05|06","Cooperative Governance","Local Government Support and Intervention Management","Municipal Infrastructure Grant",null,null,null,null,null,null,null,null,null,null,null,null,null,null,null,null,null,null,null,null,null,null,null,null,null,null,null,null,41,"Water and Sanitation",20155237,20913287,19624487,null,null,41,"Water and Sanitation",1741701,1819924,1901455]
[null,"03|05|07","Cooperative Governance","Local Government Support and Intervention Management","Municipal Infrastructure Support Agent",null,null,null,null,null,null,null,null,null,null,null,null,null,null,null,null,null,null,null,null,null,null,null,null,null,null,null,null,20,"Women, Youth and Persons with Disabilities",1031916,817034,853637,null,null,20,"Women, Youth and Persons with Disabilities",111943,116976,122218]
[null,"03|06|01","Cooperative Governance","Community Work Programme","Management: Community Work Programme"]
[null,"03|06|02","Cooperative Governance","Community Work Programme","Programme Coordination"]
[null,"03|06|03","Cooperative Governance","Community Work Programme","Partnerships, Norms, Standards and Innovation"]

{"sheet":"HRBP_Data","index":19,"n_rows":321,"n_cols":56,"rows_kept":321,"cut":false,"hidden":true,"merged":[]}
["VoteNo","Department","Programme No","Salary level","2022/23 Establishment: Number of funded posts as at 31 March 2023","2022/23 Establishment: Number of funded posts additional to the establishment","2022/23 FTE\nHeadcount","2022/23 Unit Costs","2022/23 \nOnce-off Payments per person","2022/23 Total Annual Cost","2023/24 Initial Headcount","2023/24 Unit Costs","2023/24 \nOnce-off Payments per person","2023/24 Vacant funded posts to be filled","2023/24 Headcount reductions to be made","2023/24 Revised Headcount","2023/24 Cost of vacant posts to be filled","2023/24 Savings from headcount reductions","2023/24 Projected Annual Cost","2024/25 Initial Headcount","2024/25 Unit Costs","2024/25 \nOnce-off Payments per person","2024/25 Vacant funded posts to be filled","2024/25 Headcount reductions to be made","2024/25 Revised Headcount","2024/25 Cost of vacant posts to be filled","2024/25 Savings from headcount reductions","2024/25 Projected Annual Cost","2025/26 Initial Headcount","2025/26 Unit Costs","2025/26 \nOnce-off Payments per person","2025/26 Vacant funded posts to be filled","2025/26 Headcount reductions to be made","2025/26 Revised Headcount","2025/26 Cost of vacant posts to be filled","2025/26 Savings from headcount reductions","2025/26 Projected Annual Cost","2026/27 Initial Headcount","2026/27 Unit Costs","2026/27 \nOnce-off Payments per person","2026/27 Vacant funded posts to be filled","2026/27 Headcount reductions to be made","2026/27 Revised Headcount","2026/27 Cost of vacant posts to be filled","2026/27 Savings from headcount reductions","2026/27 Projected Annual Cost","ValueIndi",null,null,null,null,"Strategies to Reduce Headcounts"]
["Vote 01","The Presidency",1,1,0,0,0,0,0,0,0,0,0,0,0,0,0,0,0,0,0,0,0,0,0,0,0,0,0,0,0,0,0,0,0,0,0,0,0,0,0,0,0,0,0,0,0,null,null,null,null,"Indicators","2023/24","2024/25","2025/26","2026/27"]
["Vote 01","The Presidency",1,2,0,0,0,0,0,0,0,0,0,0,0,0,0,0,0,0,0,0,0,0,0,0,0,0,0,0,0,0,0,0,0,0,0,0,0,0,0,0,0,0,0,0,0,null,null,null,null,"1. Employee initiated severance package"]
["Vote 01","The Presidency",1,3,0,0,0,0,0,0,0,0,0,0,0,0,0,0,0,0,0,0,0,0,0,0,0,0,0,0,0,0,0,0,0,0,0,0,0,0,0,0,0,0,0,0,0,null,null,null,null,"2. Early retirement"]
["Vote 01","The Presidency",1,4,0,0,0,0,0,0,0,0,0,0,0,0,0,0,0,0,0,0,0,0,0,0,0,0,0,0,0,0,0,0,0,0,0,0,0,0,0,0,0,0,0,0,0,null,null,null,null,"3. Natural attrition"]
["Vote 01","The Presidency",1,5,0,0,0,0,0,0,0,0,0,0,0,0,0,0,0,0,0,0,0,0,0,0,0,0,0,0,0,0,0,0,0,0,0,0,0,0,0,0,0,0,0,0,0,null,null,null,null,"4. Retirement"]
["Vote 01","The Presidency",1,6,0,0,0,0,0,0,0,0,0,0,0,0,0,0,0,0,0,0,0,0,0,0,0,0,0,0,0,0,0,0,0,0,0,0,0,0,0,0,0,0,0,0,0,null,null,null,null,"5. Contract termination"]
["Vote 01","The Presidency",1,7,0,0,0,0,0,0,0,0,0,0,0,0,0,0,0,0,0,0,0,0,0,0,0,0,0,0,0,0,0,0,0,0,0,0,0,0,0,0,0,0,0,0,0,null,null,null,null,"6. Redeployments (transfers to other departments)"]
["Vote 01","The Presidency",1,8,0,0,0,0,0,0,0,0,0,0,0,0,0,0,0,0,0,0,0,0,0,0,0,0,0,0,0,0,0,0,0,0,0,0,0,0,0,0,0,0,0,0,0,null,null,null,null,"Total",0,0,0,0]
["Vote 01","The Presidency",1,9,0,0,0,0,0,0,0,0,0,0,0,0,0,0,0,0,0,0,0,0,0,0,0,0,0,0,0,0,0,0,0,0,0,0,0,0,0,0,0,0,0,0,0]
["Vote 01","The Presidency",1,10,0,0,0,0,0,0,0,0,0,0,0,0,0,0,0,0,0,0,0,0,0,0,0,0,0,0,0,0,0,0,0,0,0,0,0,0,0,0,0,0,0,0,0]
["Vote 01","The Presidency",1,11,0,0,0,0,0,0,0,0,0,0,0,0,0,0,0,0,0,0,0,0,0,0,0,0,0,0,0,0,0,0,0,0,0,0,0,0,0,0,0,0,0,0,0]
["Vote 01","The Presidency",1,12,0,0,0,0,0,0,0,0,0,0,0,0,0,0,0,0,0,0,0,0,0,0,0,0,0,0,0,0,0,0,0,0,0,0,0,0,0,0,0,0,0,0,0]
["Vote 01","The Presidency",1,13,0,0,0,0,0,0,0,0,0,0,0,0,0,0,0,0,0,0,0,0,0,0,0,0,0,0,0,0,0,0,0,0,0,0,0,0,0,0,0,0,0,0,0]
["Vote 01","The Presidency",1,14,0,0,0,0,0,0,0,0,0,0,0,0,0,0,0,0,0,0,0,0,0,0,0,0,0,0,0,0,0,0,0,0,0,0,0,0,0,0,0,0,0,0,0]
["Vote 01","The Presidency",1,15,0,0,0,0,0,0,0,0,0,0,0,0,0,0,0,0,0,0,0,0,0,0,0,0,0,0,0,0,0,0,0,0,0,0,0,0,0,0,0,0,0,0,0]
["Vote 01","The Presidency",1,16,0,0,0,0,0,0,0,0,0,0,0,0,0,0,0,0,0,0,0,0,0,0,0,0,0,0,0,0,0,0,0,0,0,0,0,0,0,0,0,0,0,0,0]
["Vote 01","The Presidency",1,"Deputy Minister",0,0,0,0,0,0,0,0,0,0,0,0,0,0,0,0,0,0,0,0,0,0,0,0,0,0,0,0,0,0,0,0,0,0,0,0,0,0,0,0,0,0,0]
["Vote 01","The Presidency",1,"Minister",0,0,0,0,0,0,0,0,0,0,0,0,0,0,0,0,0,0,0,0,0,0,0,0,0,0,0,0,0,0,0,0,0,0,0,0,0,0,0,0,0,0,0]
["Vote 01","The Presidency",1,"Intern",0,0,0,0,0,0,0,0,0,0,0,0,0,0,0,0,0,0,0,0,0,0,0,0,0,0,0,0,0,0,0,0,0,0,0,0,0,0,0,0,0,0,0]
["Vote 01","The Presidency",1,"Other",0,0,0,0,0,0,0,0,0,0,0,0,0,0,0,0,0,0,0,0,0,0,0,0,0,0,0,0,0,0,0,0,0,0,0,0,0,0,0,0,0,0,0]
["Vote 01","The Presidency",2,1,0,0,0,0,0,0,0,0,0,0,0,0,0,0,0,0,0,0,0,0,0,0,0,0,0,0,0,0,0,0,0,0,0,0,0,0,0,0,0,0,0,0,0]
["Vote 01","The Presidency",2,2,0,0,0,0,0,0,0,0,0,0,0,0,0,0,0,0,0,0,0,0,0,0,0,0,0,0,0,0,0,0,0,0,0,0,0,0,0,0,0,0,0,0,0]
["Vote 01","The Presidency",2,3,0,0,0,0,0,0,0,0,0,0,0,0,0,0,0,0,0,0,0,0,0,0,0,0,0,0,0,0,0,0,0,0,0,0,0,0,0,0,0,0,0,0,0]
["Vote 01","The Presidency",2,4,0,0,0,0,0,0,0,0,0,0,0,0,0,0,0,0,0,0,0,0,0,0,0,0,0,0,0,0,0,0,0,0,0,0,0,0,0,0,0,0,0,0,0]
["Vote 01","The Presidency",2,5,0,0,0,0,0,0,0,0,0,0,0,0,0,0,0,0,0,0,0,0,0,0,0,0,0,0,0,0,0,0,0,0,0,0,0,0,0,0,0,0,0,0,0]
["Vote 01","The Presidency",2,6,0,0,0,0,0,0,0,0,0,0,0,0,0,0,0,0,0,0,0,0,0,0,0,0,0,0,0,0,0,0,0,0,0,0,0,0,0,0,0,0,0,0,0]
["Vote 01","The Presidency",2,7,0,0,0,0,0,0,0,0,0,0,0,0,0,0,0,0,0,0,0,0,0,0,0,0,0,0,0,0,0,0,0,0,0,0,0,0,0,0,0,0,0,0,0]
["Vote 01","The Presidency",2,8,0,0,0,0,0,0,0,0,0,0,0,0,0,0,0,0,0,0,0,0,0,0,0,0,0,0,0,0,0,0,0,0,0,0,0,0,0,0,0,0,0,0,0]
["Vote 01","The Presidency",2,9,0,0,0,0,0,0,0,0,0,0,0,0,0,0,0,0,0,0,0,0,0,0,0,0,0,0,0,0,0,0,0,0,0,0,0,0,0,0,0,0,0,0,0]
["Vote 01","The Presidency",2,10,0,0,0,0,0,0,0,0,0,0,0,0,0,0,0,0,0,0,0,0,0,0,0,0,0,0,0,0,0,0,0,0,0,0,0,0,0,0,0,0,0,0,0]
["Vote 01","The Presidency",2,11,0,0,0,0,0,0,0,0,0,0,0,0,0,0,0,0,0,0,0,0,0,0,0,0,0,0,0,0,0,0,0,0,0,0,0,0,0,0,0,0,0,0,0]
["Vote 01","The Presidency",2,12,0,0,0,0,0,0,0,0,0,0,0,0,0,0,0,0,0,0,0,0,0,0,0,0,0,0,0,0,0,0,0,0,0,0,0,0,0,0,0,0,0,0,0]
["Vote 01","The Presidency",2,13,0,0,0,0,0,0,0,0,0,0,0,0,0,0,0,0,0,0,0,0,0,0,0,0,0,0,0,0,0,0,0,0,0,0,0,0,0,0,0,0,0,0,0]
["Vote 01","The Presidency",2,14,0,0,0,0,0,0,0,0,0,0,0,0,0,0,0,0,0,0,0,0,0,0,0,0,0,0,0,0,0,0,0,0,0,0,0,0,0,0,0,0,0,0,0]
["Vote 01","The Presidency",2,15,0,0,0,0,0,0,0,0,0,0,0,0,0,0,0,0,0,0,0,0,0,0,0,0,0,0,0,0,0,0,0,0,0,0,0,0,0,0,0,0,0,0,0]
["Vote 01","The Presidency",2,16,0,0,0,0,0,0,0,0,0,0,0,0,0,0,0,0,0,0,0,0,0,0,0,0,0,0,0,0,0,0,0,0,0,0,0,0,0,0,0,0,0,0,0]
["Vote 01","The Presidency",2,"Deputy Minister",0,0,0,0,0,0,0,0,0,0,0,0,0,0,0,0,0,0,0,0,0,0,0,0,0,0,0,0,0,0,0,0,0,0,0,0,0,0,0,0,0,0,0]
["Vote 01","The Presidency",2,"Minister",0,0,0,0,0,0,0,0,0,0,0,0,0,0,0,0,0,0,0,0,0,0,0,0,0,0,0,0,0,0,0,0,0,0,0,0,0,0,0,0,0,0,0]
["Vote 01","The Presidency",2,"Intern",0,0,0,0,0,0,0,0,0,0,0,0,0,0,0,0,0,0,0,0,0,0,0,0,0,0,0,0,0,0,0,0,0,0,0,0,0,0,0,0,0,0,0]
["Vote 01","The Presidency",2,"Other",0,0,0,0,0,0,0,0,0,0,0,0,0,0,0,0,0,0,0,0,0,0,0,0,0,0,0,0,0,0,0,0,0,0,0,0,0,0,0,0,0,0,0]
["Vote 01","The Presidency",3,1,0,0,0,0,0,0,0,0,0,0,0,0,0,0,0,0,0,0,0,0,0,0,0,0,0,0,0,0,0,0,0,0,0,0,0,0,0,0,0,0,0,0,0]
["Vote 01","The Presidency",3,2,0,0,0,0,0,0,0,0,0,0,0,0,0,0,0,0,0,0,0,0,0,0,0,0,0,0,0,0,0,0,0,0,0,0,0,0,0,0,0,0,0,0,0]
["Vote 01","The Presidency",3,3,0,0,0,0,0,0,0,0,0,0,0,0,0,0,0,0,0,0,0,0,0,0,0,0,0,0,0,0,0,0,0,0,0,0,0,0,0,0,0,0,0,0,0]
["Vote 01","The Presidency",3,4,0,0,0,0,0,0,0,0,0,0,0,0,0,0,0,0,0,0,0,0,0,0,0,0,0,0,0,0,0,0,0,0,0,0,0,0,0,0,0,0,0,0,0]
["Vote 01","The Presidency",3,5,0,0,0,0,0,0,0,0,0,0,0,0,0,0,0,0,0,0,0,0,0,0,0,0,0,0,0,0,0,0,0,0,0,0,0,0,0,0,0,0,0,0,0]
["Vote 01","The Presidency",3,6,0,0,0,0,0,0,0,0,0,0,0,0,0,0,0,0,0,0,0,0,0,0,0,0,0,0,0,0,0,0,0,0,0,0,0,0,0,0,0,0,0,0,0]
["Vote 01","The Presidency",3,7,0,0,0,0,0,0,0,0,0,0,0,0,0,0,0,0,0,0,0,0,0,0,0,0,0,0,0,0,0,0,0,0,0,0,0,0,0,0,0,0,0,0,0]
["Vote 01","The Presidency",3,8,0,0,0,0,0,0,0,0,0,0,0,0,0,0,0,0,0,0,0,0,0,0,0,0,0,0,0,0,0,0,0,0,0,0,0,0,0,0,0,0,0,0,0]
["Vote 01","The Presidency",3,9,0,0,0,0,0,0,0,0,0,0,0,0,0,0,0,0,0,0,0,0,0,0,0,0,0,0,0,0,0,0,0,0,0,0,0,0,0,0,0,0,0,0,0]
["Vote 01","The Presidency",3,10,0,0,0,0,0,0,0,0,0,0,0,0,0,0,0,0,0,0,0,0,0,0,0,0,0,0,0,0,0,0,0,0,0,0,0,0,0,0,0,0,0,0,0]
["Vote 01","The Presidency",3,11,0,0,0,0,0,0,0,0,0,0,0,0,0,0,0,0,0,0,0,0,0,0,0,0,0,0,0,0,0,0,0,0,0,0,0,0,0,0,0,0,0,0,0]
["Vote 01","The Presidency",3,12,0,0,0,0,0,0,0,0,0,0,0,0,0,0,0,0,0,0,0,0,0,0,0,0,0,0,0,0,0,0,0,0,0,0,0,0,0,0,0,0,0,0,0]
["Vote 01","The Presidency",3,13,0,0,0,0,0,0,0,0,0,0,0,0,0,0,0,0,0,0,0,0,0,0,0,0,0,0,0,0,0,0,0,0,0,0,0,0,0,0,0,0,0,0,0]
["Vote 01","The Presidency",3,14,0,0,0,0,0,0,0,0,0,0,0,0,0,0,0,0,0,0,0,0,0,0,0,0,0,0,0,0,0,0,0,0,0,0,0,0,0,0,0,0,0,0,0]
["Vote 01","The Presidency",3,15,0,0,0,0,0,0,0,0,0,0,0,0,0,0,0,0,0,0,0,0,0,0,0,0,0,0,0,0,0,0,0,0,0,0,0,0,0,0,0,0,0,0,0]
["Vote 01","The Presidency",3,16,0,0,0,0,0,0,0,0,0,0,0,0,0,0,0,0,0,0,0,0,0,0,0,0,0,0,0,0,0,0,0,0,0,0,0,0,0,0,0,0,0,0,0]
["Vote 01","The Presidency",3,"Deputy Minister",0,0,0,0,0,0,0,0,0,0,0,0,0,0,0,0,0,0,0,0,0,0,0,0,0,0,0,0,0,0,0,0,0,0,0,0,0,0,0,0,0,0,0]
["Vote 01","The Presidency",3,"Minister",0,0,0,0,0,0,0,0,0,0,0,0,0,0,0,0,0,0,0,0,0,0,0,0,0,0,0,0,0,0,0,0,0,0,0,0,0,0,0,0,0,0,0]
["Vote 01","The Presidency",3,"Intern",0,0,0,0,0,0,0,0,0,0,0,0,0,0,0,0,0,0,0,0,0,0,0,0,0,0,0,0,0,0,0,0,0,0,0,0,0,0,0,0,0,0,0]
["Vote 01","The Presidency",3,"Other",0,0,0,0,0,0,0,0,0,0,0,0,0,0,0,0,0,0,0,0,0,0,0,0,0,0,0,0,0,0,0,0,0,0,0,0,0,0,0,0,0,0,0]
["Vote 01","The Presidency",4,1,0,0,0,0,0,0,0,0,0,0,0,0,0,0,0,0,0,0,0,0,0,0,0,0,0,0,0,0,0,0,0,0,0,0,0,0,0,0,0,0,0,0,0]
["Vote 01","The Presidency",4,2,0,0,0,0,0,0,0,0,0,0,0,0,0,0,0,0,0,0,0,0,0,0,0,0,0,0,0,0,0,0,0,0,0,0,0,0,0,0,0,0,0,0,0]
["Vote 01","The Presidency",4,3,0,0,0,0,0,0,0,0,0,0,0,0,0,0,0,0,0,0,0,0,0,0,0,0,0,0,0,0,0,0,0,0,0,0,0,0,0,0,0,0,0,0,0]
["Vote 01","The Presidency",4,4,0,0,0,0,0,0,0,0,0,0,0,0,0,0,0,0,0,0,0,0,0,0,0,0,0,0,0,0,0,0,0,0,0,0,0,0,0,0,0,0,0,0,0]
["Vote 01","The Presidency",4,5,0,0,0,0,0,0,0,0,0,0,0,0,0,0,0,0,0,0,0,0,0,0,0,0,0,0,0,0,0,0,0,0,0,0,0,0,0,0,0,0,0,0,0]
["Vote 01","The Presidency",4,6,0,0,0,0,0,0,0,0,0,0,0,0,0,0,0,0,0,0,0,0,0,0,0,0,0,0,0,0,0,0,0,0,0,0,0,0,0,0,0,0,0,0,0]
["Vote 01","The Presidency",4,7,0,0,0,0,0,0,0,0,0,0,0,0,0,0,0,0,0,0,0,0,0,0,0,0,0,0,0,0,0,0,0,0,0,0,0,0,0,0,0,0,0,0,0]
["Vote 01","The Presidency",4,8,0,0,0,0,0,0,0,0,0,0,0,0,0,0,0,0,0,0,0,0,0,0,0,0,0,0,0,0,0,0,0,0,0,0,0,0,0,0,0,0,0,0,0]
["Vote 01","The Presidency",4,9,0,0,0,0,0,0,0,0,0,0,0,0,0,0,0,0,0,0,0,0,0,0,0,0,0,0,0,0,0,0,0,0,0,0,0,0,0,0,0,0,0,0,0]
["Vote 01","The Presidency",4,10,0,0,0,0,0,0,0,0,0,0,0,0,0,0,0,0,0,0,0,0,0,0,0,0,0,0,0,0,0,0,0,0,0,0,0,0,0,0,0,0,0,0,0]
["Vote 01","The Presidency",4,11,0,0,0,0,0,0,0,0,0,0,0,0,0,0,0,0,0,0,0,0,0,0,0,0,0,0,0,0,0,0,0,0,0,0,0,0,0,0,0,0,0,0,0]
["Vote 01","The Presidency",4,12,0,0,0,0,0,0,0,0,0,0,0,0,0,0,0,0,0,0,0,0,0,0,0,0,0,0,0,0,0,0,0,0,0,0,0,0,0,0,0,0,0,0,0]
["Vote 01","The Presidency",4,13,0,0,0,0,0,0,0,0,0,0,0,0,0,0,0,0,0,0,0,0,0,0,0,0,0,0,0,0,0,0,0,0,0,0,0,0,0,0,0,0,0,0,0]
["Vote 01","The Presidency",4,14,0,0,0,0,0,0,0,0,0,0,0,0,0,0,0,0,0,0,0,0,0,0,0,0,0,0,0,0,0,0,0,0,0,0,0,0,0,0,0,0,0,0,0]
["Vote 01","The Presidency",4,15,0,0,0,0,0,0,0,0,0,0,0,0,0,0,0,0,0,0,0,0,0,0,0,0,0,0,0,0,0,0,0,0,0,0,0,0,0,0,0,0,0,0,0]
["Vote 01","The Presidency",4,16,0,0,0,0,0,0,0,0,0,0,0,0,0,0,0,0,0,0,0,0,0,0,0,0,0,0,0,0,0,0,0,0,0,0,0,0,0,0,0,0,0,0,0]
["Vote 01","The Presidency",4,"Deputy Minister",0,0,0,0,0,0,0,0,0,0,0,0,0,0,0,0,0,0,0,0,0,0,0,0,0,0,0,0,0,0,0,0,0,0,0,0,0,0,0,0,0,0,0]
["Vote 01","The Presidency",4,"Minister",0,0,0,0,0,0,0,0,0,0,0,0,0,0,0,0,0,0,0,0,0,0,0,0,0,0,0,0,0,0,0,0,0,0,0,0,0,0,0,0,0,0,0]
["Vote 01","The Presidency",4,"Intern",0,0,0,0,0,0,0,0,0,0,0,0,0,0,0,0,0,0,0,0,0,0,0,0,0,0,0,0,0,0,0,0,0,0,0,0,0,0,0,0,0,0,0]
["Vote 01","The Presidency",4,"Other",0,0,0,0,0,0,0,0,0,0,0,0,0,0,0,0,0,0,0,0,0,0,0,0,0,0,0,0,0,0,0,0,0,0,0,0,0,0,0,0,0,0,0]
["Vote 01","The Presidency",5,1,0,0,0,0,0,0,0,0,0,0,0,0,0,0,0,0,0,0,0,0,0,0,0,0,0,0,0,0,0,0,0,0,0,0,0,0,0,0,0,0,0,0,0]
["Vote 01","The Presidency",5,2,0,0,0,0,0,0,0,0,0,0,0,0,0,0,0,0,0,0,0,0,0,0,0,0,0,0,0,0,0,0,0,0,0,0,0,0,0,0,0,0,0,0,0]
["Vote 01","The Presidency",5,3,0,0,0,0,0,0,0,0,0,0,0,0,0,0,0,0,0,0,0,0,0,0,0,0,0,0,0,0,0,0,0,0,0,0,0,0,0,0,0,0,0,0,0]
["Vote 01","The Presidency",5,4,0,0,0,0,0,0,0,0,0,0,0,0,0,0,0,0,0,0,0,0,0,0,0,0,0,0,0,0,0,0,0,0,0,0,0,0,0,0,0,0,0,0,0]
["Vote 01","The Presidency",5,5,0,0,0,0,0,0,0,0,0,0,0,0,0,0,0,0,0,0,0,0,0,0,0,0,0,0,0,0,0,0,0,0,0,0,0,0,0,0,0,0,0,0,0]
["Vote 01","The Presidency",5,6,0,0,0,0,0,0,0,0,0,0,0,0,0,0,0,0,0,0,0,0,0,0,0,0,0,0,0,0,0,0,0,0,0,0,0,0,0,0,0,0,0,0,0]
["Vote 01","The Presidency",5,7,0,0,0,0,0,0,0,0,0,0,0,0,0,0,0,0,0,0,0,0,0,0,0,0,0,0,0,0,0,0,0,0,0,0,0,0,0,0,0,0,0,0,0]
["Vote 01","The Presidency",5,8,0,0,0,0,0,0,0,0,0,0,0,0,0,0,0,0,0,0,0,0,0,0,0,0,0,0,0,0,0,0,0,0,0,0,0,0,0,0,0,0,0,0,0]
["Vote 01","The Presidency",5,9,0,0,0,0,0,0,0,0,0,0,0,0,0,0,0,0,0,0,0,0,0,0,0,0,0,0,0,0,0,0,0,0,0,0,0,0,0,0,0,0,0,0,0]
["Vote 01","The Presidency",5,10,0,0,0,0,0,0,0,0,0,0,0,0,0,0,0,0,0,0,0,0,0,0,0,0,0,0,0,0,0,0,0,0,0,0,0,0,0,0,0,0,0,0,0]
["Vote 01","The Presidency",5,11,0,0,0,0,0,0,0,0,0,0,0,0,0,0,0,0,0,0,0,0,0,0,0,0,0,0,0,0,0,0,0,0,0,0,0,0,0,0,0,0,0,0,0]
["Vote 01","The Presidency",5,12,0,0,0,0,0,0,0,0,0,0,0,0,0,0,0,0,0,0,0,0,0,0,0,0,0,0,0,0,0,0,0,0,0,0,0,0,0,0,0,0,0,0,0]
["Vote 01","The Presidency",5,13,0,0,0,0,0,0,0,0,0,0,0,0,0,0,0,0,0,0,0,0,0,0,0,0,0,0,0,0,0,0,0,0,0,0,0,0,0,0,0,0,0,0,0]
["Vote 01","The Presidency",5,14,0,0,0,0,0,0,0,0,0,0,0,0,0,0,0,0,0,0,0,0,0,0,0,0,0,0,0,0,0,0,0,0,0,0,0,0,0,0,0,0,0,0,0]
["Vote 01","The Presidency",5,15,0,0,0,0,0,0,0,0,0,0,0,0,0,0,0,0,0,0,0,0,0,0,0,0,0,0,0,0,0,0,0,0,0,0,0,0,0,0,0,0,0,0,0]
["Vote 01","The Presidency",5,16,0,0,0,0,0,0,0,0,0,0,0,0,0,0,0,0,0,0,0,0,0,0,0,0,0,0,0,0,0,0,0,0,0,0,0,0,0,0,0,0,0,0,0]
["Vote 01","The Presidency",5,"Deputy Minister",0,0,0,0,0,0,0,0,0,0,0,0,0,0,0,0,0,0,0,0,0,0,0,0,0,0,0,0,0,0,0,0,0,0,0,0,0,0,0,0,0,0,0]
["Vote 01","The Presidency",5,"Minister",0,0,0,0,0,0,0,0,0,0,0,0,0,0,0,0,0,0,0,0,0,0,0,0,0,0,0,0,0,0,0,0,0,0,0,0,0,0,0,0,0,0,0]
["Vote 01","The Presidency",5,"Intern",0,0,0,0,0,0,0,0,0,0,0,0,0,0,0,0,0,0,0,0,0,0,0,0,0,0,0,0,0,0,0,0,0,0,0,0,0,0,0,0,0,0,0]
["Vote 01","The Presidency",5,"Other",0,0,0,0,0,0,0,0,0,0,0,0,0,0,0,0,0,0,0,0,0,0,0,0,0,0,0,0,0,0,0,0,0,0,0,0,0,0,0,0,0,0,0]
["Vote 01","The Presidency",6,1,0,0,0,0,0,0,0,0,0,0,0,0,0,0,0,0,0,0,0,0,0,0,0,0,0,0,0,0,0,0,0,0,0,0,0,0,0,0,0,0,0,0,0]
["Vote 01","The Presidency",6,2,0,0,0,0,0,0,0,0,0,0,0,0,0,0,0,0,0,0,0,0,0,0,0,0,0,0,0,0,0,0,0,0,0,0,0,0,0,0,0,0,0,0,0]
["Vote 01","The Presidency",6,3,0,0,0,0,0,0,0,0,0,0,0,0,0,0,0,0,0,0,0,0,0,0,0,0,0,0,0,0,0,0,0,0,0,0,0,0,0,0,0,0,0,0,0]
["Vote 01","The Presidency",6,4,0,0,0,0,0,0,0,0,0,0,0,0,0,0,0,0,0,0,0,0,0,0,0,0,0,0,0,0,0,0,0,0,0,0,0,0,0,0,0,0,0,0,0]
["Vote 01","The Presidency",6,5,0,0,0,0,0,0,0,0,0,0,0,0,0,0,0,0,0,0,0,0,0,0,0,0,0,0,0,0,0,0,0,0,0,0,0,0,0,0,0,0,0,0,0]
["Vote 01","The Presidency",6,6,0,0,0,0,0,0,0,0,0,0,0,0,0,0,0,0,0,0,0,0,0,0,0,0,0,0,0,0,0,0,0,0,0,0,0,0,0,0,0,0,0,0,0]
["Vote 01","The Presidency",6,7,0,0,0,0,0,0,0,0,0,0,0,0,0,0,0,0,0,0,0,0,0,0,0,0,0,0,0,0,0,0,0,0,0,0,0,0,0,0,0,0,0,0,0]
["Vote 01","The Presidency",6,8,0,0,0,0,0,0,0,0,0,0,0,0,0,0,0,0,0,0,0,0,0,0,0,0,0,0,0,0,0,0,0,0,0,0,0,0,0,0,0,0,0,0,0]
["Vote 01","The Presidency",6,9,0,0,0,0,0,0,0,0,0,0,0,0,0,0,0,0,0,0,0,0,0,0,0,0,0,0,0,0,0,0,0,0,0,0,0,0,0,0,0,0,0,0,0]
["Vote 01","The Presidency",6,10,0,0,0,0,0,0,0,0,0,0,0,0,0,0,0,0,0,0,0,0,0,0,0,0,0,0,0,0,0,0,0,0,0,0,0,0,0,0,0,0,0,0,0]
["Vote 01","The Presidency",6,11,0,0,0,0,0,0,0,0,0,0,0,0,0,0,0,0,0,0,0,0,0,0,0,0,0,0,0,0,0,0,0,0,0,0,0,0,0,0,0,0,0,0,0]
["Vote 01","The Presidency",6,12,0,0,0,0,0,0,0,0,0,0,0,0,0,0,0,0,0,0,0,0,0,0,0,0,0,0,0,0,0,0,0,0,0,0,0,0,0,0,0,0,0,0,0]
["Vote 01","The Presidency",6,13,0,0,0,0,0,0,0,0,0,0,0,0,0,0,0,0,0,0,0,0,0,0,0,0,0,0,0,0,0,0,0,0,0,0,0,0,0,0,0,0,0,0,0]
["Vote 01","The Presidency",6,14,0,0,0,0,0,0,0,0,0,0,0,0,0,0,0,0,0,0,0,0,0,0,0,0,0,0,0,0,0,0,0,0,0,0,0,0,0,0,0,0,0,0,0]
["Vote 01","The Presidency",6,15,0,0,0,0,0,0,0,0,0,0,0,0,0,0,0,0,0,0,0,0,0,0,0,0,0,0,0,0,0,0,0,0,0,0,0,0,0,0,0,0,0,0,0]
["Vote 01","The Presidency",6,16,0,0,0,0,0,0,0,0,0,0,0,0,0,0,0,0,0,0,0,0,0,0,0,0,0,0,0,0,0,0,0,0,0,0,0,0,0,0,0,0,0,0,0]
["Vote 01","The Presidency",6,"Deputy Minister",0,0,0,0,0,0,0,0,0,0,0,0,0,0,0,0,0,0,0,0,0,0,0,0,0,0,0,0,0,0,0,0,0,0,0,0,0,0,0,0,0,0,0]
["Vote 01","The Presidency",6,"Minister",0,0,0,0,0,0,0,0,0,0,0,0,0,0,0,0,0,0,0,0,0,0,0,0,0,0,0,0,0,0,0,0,0,0,0,0,0,0,0,0,0,0,0]
["Vote 01","The Presidency",6,"Intern",0,0,0,0,0,0,0,0,0,0,0,0,0,0,0,0,0,0,0,0,0,0,0,0,0,0,0,0,0,0,0,0,0,0,0,0,0,0,0,0,0,0,0]
["Vote 01","The Presidency",6,"Other",0,0,0,0,0,0,0,0,0,0,0,0,0,0,0,0,0,0,0,0,0,0,0,0,0,0,0,0,0,0,0,0,0,0,0,0,0,0,0,0,0,0,0]
["Vote 01","The Presidency",7,1,0,0,0,0,0,0,0,0,0,0,0,0,0,0,0,0,0,0,0,0,0,0,0,0,0,0,0,0,0,0,0,0,0,0,0,0,0,0,0,0,0,0,0]
["Vote 01","The Presidency",7,2,0,0,0,0,0,0,0,0,0,0,0,0,0,0,0,0,0,0,0,0,0,0,0,0,0,0,0,0,0,0,0,0,0,0,0,0,0,0,0,0,0,0,0]
["Vote 01","The Presidency",7,3,0,0,0,0,0,0,0,0,0,0,0,0,0,0,0,0,0,0,0,0,0,0,0,0,0,0,0,0,0,0,0,0,0,0,0,0,0,0,0,0,0,0,0]
["Vote 01","The Presidency",7,4,0,0,0,0,0,0,0,0,0,0,0,0,0,0,0,0,0,0,0,0,0,0,0,0,0,0,0,0,0,0,0,0,0,0,0,0,0,0,0,0,0,0,0]
["Vote 01","The Presidency",7,5,0,0,0,0,0,0,0,0,0,0,0,0,0,0,0,0,0,0,0,0,0,0,0,0,0,0,0,0,0,0,0,0,0,0,0,0,0,0,0,0,0,0,0]
["Vote 01","The Presidency",7,6,0,0,0,0,0,0,0,0,0,0,0,0,0,0,0,0,0,0,0,0,0,0,0,0,0,0,0,0,0,0,0,0,0,0,0,0,0,0,0,0,0,0,0]
["Vote 01","The Presidency",7,7,0,0,0,0,0,0,0,0,0,0,0,0,0,0,0,0,0,0,0,0,0,0,0,0,0,0,0,0,0,0,0,0,0,0,0,0,0,0,0,0,0,0,0]
["Vote 01","The Presidency",7,8,0,0,0,0,0,0,0,0,0,0,0,0,0,0,0,0,0,0,0,0,0,0,0,0,0,0,0,0,0,0,0,0,0,0,0,0,0,0,0,0,0,0,0]
["Vote 01","The Presidency",7,9,0,0,0,0,0,0,0,0,0,0,0,0,0,0,0,0,0,0,0,0,0,0,0,0,0,0,0,0,0,0,0,0,0,0,0,0,0,0,0,0,0,0,0]
["Vote 01","The Presidency",7,10,0,0,0,0,0,0,0,0,0,0,0,0,0,0,0,0,0,0,0,0,0,0,0,0,0,0,0,0,0,0,0,0,0,0,0,0,0,0,0,0,0,0,0]
["Vote 01","The Presidency",7,11,0,0,0,0,0,0,0,0,0,0,0,0,0,0,0,0,0,0,0,0,0,0,0,0,0,0,0,0,0,0,0,0,0,0,0,0,0,0,0,0,0,0,0]
["Vote 01","The Presidency",7,12,0,0,0,0,0,0,0,0,0,0,0,0,0,0,0,0,0,0,0,0,0,0,0,0,0,0,0,0,0,0,0,0,0,0,0,0,0,0,0,0,0,0,0]
["Vote 01","The Presidency",7,13,0,0,0,0,0,0,0,0,0,0,0,0,0,0,0,0,0,0,0,0,0,0,0,0,0,0,0,0,0,0,0,0,0,0,0,0,0,0,0,0,0,0,0]
["Vote 01","The Presidency",7,14,0,0,0,0,0,0,0,0,0,0,0,0,0,0,0,0,0,0,0,0,0,0,0,0,0,0,0,0,0,0,0,0,0,0,0,0,0,0,0,0,0,0,0]
["Vote 01","The Presidency",7,15,0,0,0,0,0,0,0,0,0,0,0,0,0,0,0,0,0,0,0,0,0,0,0,0,0,0,0,0,0,0,0,0,0,0,0,0,0,0,0,0,0,0,0]
["Vote 01","The Presidency",7,16,0,0,0,0,0,0,0,0,0,0,0,0,0,0,0,0,0,0,0,0,0,0,0,0,0,0,0,0,0,0,0,0,0,0,0,0,0,0,0,0,0,0,0]
["Vote 01","The Presidency",7,"Deputy Minister",0,0,0,0,0,0,0,0,0,0,0,0,0,0,0,0,0,0,0,0,0,0,0,0,0,0,0,0,0,0,0,0,0,0,0,0,0,0,0,0,0,0,0]
["Vote 01","The Presidency",7,"Minister",0,0,0,0,0,0,0,0,0,0,0,0,0,0,0,0,0,0,0,0,0,0,0,0,0,0,0,0,0,0,0,0,0,0,0,0,0,0,0,0,0,0,0]
["Vote 01","The Presidency",7,"Intern",0,0,0,0,0,0,0,0,0,0,0,0,0,0,0,0,0,0,0,0,0,0,0,0,0,0,0,0,0,0,0,0,0,0,0,0,0,0,0,0,0,0,0]
["Vote 01","The Presidency",7,"Other",0,0,0,0,0,0,0,0,0,0,0,0,0,0,0,0,0,0,0,0,0,0,0,0,0,0,0,0,0,0,0,0,0,0,0,0,0,0,0,0,0,0,0]
["Vote 01","The Presidency",8,1,0,0,0,0,0,0,0,0,0,0,0,0,0,0,0,0,0,0,0,0,0,0,0,0,0,0,0,0,0,0,0,0,0,0,0,0,0,0,0,0,0,0,0]
["Vote 01","The Presidency",8,2,0,0,0,0,0,0,0,0,0,0,0,0,0,0,0,0,0,0,0,0,0,0,0,0,0,0,0,0,0,0,0,0,0,0,0,0,0,0,0,0,0,0,0]
["Vote 01","The Presidency",8,3,0,0,0,0,0,0,0,0,0,0,0,0,0,0,0,0,0,0,0,0,0,0,0,0,0,0,0,0,0,0,0,0,0,0,0,0,0,0,0,0,0,0,0]
["Vote 01","The Presidency",8,4,0,0,0,0,0,0,0,0,0,0,0,0,0,0,0,0,0,0,0,0,0,0,0,0,0,0,0,0,0,0,0,0,0,0,0,0,0,0,0,0,0,0,0]
["Vote 01","The Presidency",8,5,0,0,0,0,0,0,0,0,0,0,0,0,0,0,0,0,0,0,0,0,0,0,0,0,0,0,0,0,0,0,0,0,0,0,0,0,0,0,0,0,0,0,0]
["Vote 01","The Presidency",8,6,0,0,0,0,0,0,0,0,0,0,0,0,0,0,0,0,0,0,0,0,0,0,0,0,0,0,0,0,0,0,0,0,0,0,0,0,0,0,0,0,0,0,0]
["Vote 01","The Presidency",8,7,0,0,0,0,0,0,0,0,0,0,0,0,0,0,0,0,0,0,0,0,0,0,0,0,0,0,0,0,0,0,0,0,0,0,0,0,0,0,0,0,0,0,0]
["Vote 01","The Presidency",8,8,0,0,0,0,0,0,0,0,0,0,0,0,0,0,0,0,0,0,0,0,0,0,0,0,0,0,0,0,0,0,0,0,0,0,0,0,0,0,0,0,0,0,0]
["Vote 01","The Presidency",8,9,0,0,0,0,0,0,0,0,0,0,0,0,0,0,0,0,0,0,0,0,0,0,0,0,0,0,0,0,0,0,0,0,0,0,0,0,0,0,0,0,0,0,0]
["Vote 01","The Presidency",8,10,0,0,0,0,0,0,0,0,0,0,0,0,0,0,0,0,0,0,0,0,0,0,0,0,0,0,0,0,0,0,0,0,0,0,0,0,0,0,0,0,0,0,0]
["Vote 01","The Presidency",8,11,0,0,0,0,0,0,0,0,0,0,0,0,0,0,0,0,0,0,0,0,0,0,0,0,0,0,0,0,0,0,0,0,0,0,0,0,0,0,0,0,0,0,0]
["Vote 01","The Presidency",8,12,0,0,0,0,0,0,0,0,0,0,0,0,0,0,0,0,0,0,0,0,0,0,0,0,0,0,0,0,0,0,0,0,0,0,0,0,0,0,0,0,0,0,0]
["Vote 01","The Presidency",8,13,0,0,0,0,0,0,0,0,0,0,0,0,0,0,0,0,0,0,0,0,0,0,0,0,0,0,0,0,0,0,0,0,0,0,0,0,0,0,0,0,0,0,0]
["Vote 01","The Presidency",8,14,0,0,0,0,0,0,0,0,0,0,0,0,0,0,0,0,0,0,0,0,0,0,0,0,0,0,0,0,0,0,0,0,0,0,0,0,0,0,0,0,0,0,0]
["Vote 01","The Presidency",8,15,0,0,0,0,0,0,0,0,0,0,0,0,0,0,0,0,0,0,0,0,0,0,0,0,0,0,0,0,0,0,0,0,0,0,0,0,0,0,0,0,0,0,0]
["Vote 01","The Presidency",8,16,0,0,0,0,0,0,0,0,0,0,0,0,0,0,0,0,0,0,0,0,0,0,0,0,0,0,0,0,0,0,0,0,0,0,0,0,0,0,0,0,0,0,0]
["Vote 01","The Presidency",8,"Deputy Minister",0,0,0,0,0,0,0,0,0,0,0,0,0,0,0,0,0,0,0,0,0,0,0,0,0,0,0,0,0,0,0,0,0,0,0,0,0,0,0,0,0,0,0]
["Vote 01","The Presidency",8,"Minister",0,0,0,0,0,0,0,0,0,0,0,0,0,0,0,0,0,0,0,0,0,0,0,0,0,0,0,0,0,0,0,0,0,0,0,0,0,0,0,0,0,0,0]
["Vote 01","The Presidency",8,"Intern",0,0,0,0,0,0,0,0,0,0,0,0,0,0,0,0,0,0,0,0,0,0,0,0,0,0,0,0,0,0,0,0,0,0,0,0,0,0,0,0,0,0,0]
["Vote 01","The Presidency",8,"Other",0,0,0,0,0,0,0,0,0,0,0,0,0,0,0,0,0,0,0,0,0,0,0,0,0,0,0,0,0,0,0,0,0,0,0,0,0,0,0,0,0,0,0]
["Vote 01","The Presidency",9,1,0,0,0,0,0,0,0,0,0,0,0,0,0,0,0,0,0,0,0,0,0,0,0,0,0,0,0,0,0,0,0,0,0,0,0,0,0,0,0,0,0,0,0]
["Vote 01","The Presidency",9,2,0,0,0,0,0,0,0,0,0,0,0,0,0,0,0,0,0,0,0,0,0,0,0,0,0,0,0,0,0,0,0,0,0,0,0,0,0,0,0,0,0,0,0]
["Vote 01","The Presidency",9,3,0,0,0,0,0,0,0,0,0,0,0,0,0,0,0,0,0,0,0,0,0,0,0,0,0,0,0,0,0,0,0,0,0,0,0,0,0,0,0,0,0,0,0]
["Vote 01","The Presidency",9,4,0,0,0,0,0,0,0,0,0,0,0,0,0,0,0,0,0,0,0,0,0,0,0,0,0,0,0,0,0,0,0,0,0,0,0,0,0,0,0,0,0,0,0]
["Vote 01","The Presidency",9,5,0,0,0,0,0,0,0,0,0,0,0,0,0,0,0,0,0,0,0,0,0,0,0,0,0,0,0,0,0,0,0,0,0,0,0,0,0,0,0,0,0,0,0]
["Vote 01","The Presidency",9,6,0,0,0,0,0,0,0,0,0,0,0,0,0,0,0,0,0,0,0,0,0,0,0,0,0,0,0,0,0,0,0,0,0,0,0,0,0,0,0,0,0,0,0]
["Vote 01","The Presidency",9,7,0,0,0,0,0,0,0,0,0,0,0,0,0,0,0,0,0,0,0,0,0,0,0,0,0,0,0,0,0,0,0,0,0,0,0,0,0,0,0,0,0,0,0]
["Vote 01","The Presidency",9,8,0,0,0,0,0,0,0,0,0,0,0,0,0,0,0,0,0,0,0,0,0,0,0,0,0,0,0,0,0,0,0,0,0,0,0,0,0,0,0,0,0,0,0]
["Vote 01","The Presidency",9,9,0,0,0,0,0,0,0,0,0,0,0,0,0,0,0,0,0,0,0,0,0,0,0,0,0,0,0,0,0,0,0,0,0,0,0,0,0,0,0,0,0,0,0]
["Vote 01","The Presidency",9,10,0,0,0,0,0,0,0,0,0,0,0,0,0,0,0,0,0,0,0,0,0,0,0,0,0,0,0,0,0,0,0,0,0,0,0,0,0,0,0,0,0,0,0]
["Vote 01","The Presidency",9,11,0,0,0,0,0,0,0,0,0,0,0,0,0,0,0,0,0,0,0,0,0,0,0,0,0,0,0,0,0,0,0,0,0,0,0,0,0,0,0,0,0,0,0]
["Vote 01","The Presidency",9,12,0,0,0,0,0,0,0,0,0,0,0,0,0,0,0,0,0,0,0,0,0,0,0,0,0,0,0,0,0,0,0,0,0,0,0,0,0,0,0,0,0,0,0]
["Vote 01","The Presidency",9,13,0,0,0,0,0,0,0,0,0,0,0,0,0,0,0,0,0,0,0,0,0,0,0,0,0,0,0,0,0,0,0,0,0,0,0,0,0,0,0,0,0,0,0]
["Vote 01","The Presidency",9,14,0,0,0,0,0,0,0,0,0,0,0,0,0,0,0,0,0,0,0,0,0,0,0,0,0,0,0,0,0,0,0,0,0,0,0,0,0,0,0,0,0,0,0]
["Vote 01","The Presidency",9,15,0,0,0,0,0,0,0,0,0,0,0,0,0,0,0,0,0,0,0,0,0,0,0,0,0,0,0,0,0,0,0,0,0,0,0,0,0,0,0,0,0,0,0]
["Vote 01","The Presidency",9,16,0,0,0,0,0,0,0,0,0,0,0,0,0,0,0,0,0,0,0,0,0,0,0,0,0,0,0,0,0,0,0,0,0,0,0,0,0,0,0,0,0,0,0]
["Vote 01","The Presidency",9,"Deputy Minister",0,0,0,0,0,0,0,0,0,0,0,0,0,0,0,0,0,0,0,0,0,0,0,0,0,0,0,0,0,0,0,0,0,0,0,0,0,0,0,0,0,0,0]
["Vote 01","The Presidency",9,"Minister",0,0,0,0,0,0,0,0,0,0,0,0,0,0,0,0,0,0,0,0,0,0,0,0,0,0,0,0,0,0,0,0,0,0,0,0,0,0,0,0,0,0,0]
["Vote 01","The Presidency",9,"Intern",0,0,0,0,0,0,0,0,0,0,0,0,0,0,0,0,0,0,0,0,0,0,0,0,0,0,0,0,0,0,0,0,0,0,0,0,0,0,0,0,0,0,0]
["Vote 01","The Presidency",9,"Other",0,0,0,0,0,0,0,0,0,0,0,0,0,0,0,0,0,0,0,0,0,0,0,0,0,0,0,0,0,0,0,0,0,0,0,0,0,0,0,0,0,0,0]
["Vote 01","The Presidency",10,1,0,0,0,0,0,0,0,0,0,0,0,0,0,0,0,0,0,0,0,0,0,0,0,0,0,0,0,0,0,0,0,0,0,0,0,0,0,0,0,0,0,0,0]
["Vote 01","The Presidency",10,2,0,0,0,0,0,0,0,0,0,0,0,0,0,0,0,0,0,0,0,0,0,0,0,0,0,0,0,0,0,0,0,0,0,0,0,0,0,0,0,0,0,0,0]
["Vote 01","The Presidency",10,3,0,0,0,0,0,0,0,0,0,0,0,0,0,0,0,0,0,0,0,0,0,0,0,0,0,0,0,0,0,0,0,0,0,0,0,0,0,0,0,0,0,0,0]
["Vote 01","The Presidency",10,4,0,0,0,0,0,0,0,0,0,0,0,0,0,0,0,0,0,0,0,0,0,0,0,0,0,0,0,0,0,0,0,0,0,0,0,0,0,0,0,0,0,0,0]
["Vote 01","The Presidency",10,5,0,0,0,0,0,0,0,0,0,0,0,0,0,0,0,0,0,0,0,0,0,0,0,0,0,0,0,0,0,0,0,0,0,0,0,0,0,0,0,0,0,0,0]
["Vote 01","The Presidency",10,6,0,0,0,0,0,0,0,0,0,0,0,0,0,0,0,0,0,0,0,0,0,0,0,0,0,0,0,0,0,0,0,0,0,0,0,0,0,0,0,0,0,0,0]
["Vote 01","The Presidency",10,7,0,0,0,0,0,0,0,0,0,0,0,0,0,0,0,0,0,0,0,0,0,0,0,0,0,0,0,0,0,0,0,0,0,0,0,0,0,0,0,0,0,0,0]
["Vote 01","The Presidency",10,8,0,0,0,0,0,0,0,0,0,0,0,0,0,0,0,0,0,0,0,0,0,0,0,0,0,0,0,0,0,0,0,0,0,0,0,0,0,0,0,0,0,0,0]
["Vote 01","The Presidency",10,9,0,0,0,0,0,0,0,0,0,0,0,0,0,0,0,0,0,0,0,0,0,0,0,0,0,0,0,0,0,0,0,0,0,0,0,0,0,0,0,0,0,0,0]
["Vote 01","The Presidency",10,10,0,0,0,0,0,0,0,0,0,0,0,0,0,0,0,0,0,0,0,0,0,0,0,0,0,0,0,0,0,0,0,0,0,0,0,0,0,0,0,0,0,0,0]
["Vote 01","The Presidency",10,11,0,0,0,0,0,0,0,0,0,0,0,0,0,0,0,0,0,0,0,0,0,0,0,0,0,0,0,0,0,0,0,0,0,0,0,0,0,0,0,0,0,0,0]
["Vote 01","The Presidency",10,12,0,0,0,0,0,0,0,0,0,0,0,0,0,0,0,0,0,0,0,0,0,0,0,0,0,0,0,0,0,0,0,0,0,0,0,0,0,0,0,0,0,0,0]
["Vote 01","The Presidency",10,13,0,0,0,0,0,0,0,0,0,0,0,0,0,0,0,0,0,0,0,0,0,0,0,0,0,0,0,0,0,0,0,0,0,0,0,0,0,0,0,0,0,0,0]
["Vote 01","The Presidency",10,14,0,0,0,0,0,0,0,0,0,0,0,0,0,0,0,0,0,0,0,0,0,0,0,0,0,0,0,0,0,0,0,0,0,0,0,0,0,0,0,0,0,0,0]
["Vote 01","The Presidency",10,15,0,0,0,0,0,0,0,0,0,0,0,0,0,0,0,0,0,0,0,0,0,0,0,0,0,0,0,0,0,0,0,0,0,0,0,0,0,0,0,0,0,0,0]
["Vote 01","The Presidency",10,16,0,0,0,0,0,0,0,0,0,0,0,0,0,0,0,0,0,0,0,0,0,0,0,0,0,0,0,0,0,0,0,0,0,0,0,0,0,0,0,0,0,0,0]
["Vote 01","The Presidency",10,"Deputy Minister",0,0,0,0,0,0,0,0,0,0,0,0,0,0,0,0,0,0,0,0,0,0,0,0,0,0,0,0,0,0,0,0,0,0,0,0,0,0,0,0,0,0,0]
["Vote 01","The Presidency",10,"Minister",0,0,0,0,0,0,0,0,0,0,0,0,0,0,0,0,0,0,0,0,0,0,0,0,0,0,0,0,0,0,0,0,0,0,0,0,0,0,0,0,0,0,0]
["Vote 01","The Presidency",10,"Intern",0,0,0,0,0,0,0,0,0,0,0,0,0,0,0,0,0,0,0,0,0,0,0,0,0,0,0,0,0,0,0,0,0,0,0,0,0,0,0,0,0,0,0]
["Vote 01","The Presidency",10,"Other",0,0,0,0,0,0,0,0,0,0,0,0,0,0,0,0,0,0,0,0,0,0,0,0,0,0,0,0,0,0,0,0,0,0,0,0,0,0,0,0,0,0,0]
["Vote 01","The Presidency",11,1,0,0,0,0,0,0,0,0,0,0,0,0,0,0,0,0,0,0,0,0,0,0,0,0,0,0,0,0,0,0,0,0,0,0,0,0,0,0,0,0,0,0,0]
["Vote 01","The Presidency",11,2,0,0,0,0,0,0,0,0,0,0,0,0,0,0,0,0,0,0,0,0,0,0,0,0,0,0,0,0,0,0,0,0,0,0,0,0,0,0,0,0,0,0,0]
["Vote 01","The Presidency",11,3,0,0,0,0,0,0,0,0,0,0,0,0,0,0,0,0,0,0,0,0,0,0,0,0,0,0,0,0,0,0,0,0,0,0,0,0,0,0,0,0,0,0,0]
["Vote 01","The Presidency",11,4,0,0,0,0,0,0,0,0,0,0,0,0,0,0,0,0,0,0,0,0,0,0,0,0,0,0,0,0,0,0,0,0,0,0,0,0,0,0,0,0,0,0,0]
["Vote 01","The Presidency",11,5,0,0,0,0,0,0,0,0,0,0,0,0,0,0,0,0,0,0,0,0,0,0,0,0,0,0,0,0,0,0,0,0,0,0,0,0,0,0,0,0,0,0,0]
["Vote 01","The Presidency",11,6,0,0,0,0,0,0,0,0,0,0,0,0,0,0,0,0,0,0,0,0,0,0,0,0,0,0,0,0,0,0,0,0,0,0,0,0,0,0,0,0,0,0,0]
["Vote 01","The Presidency",11,7,0,0,0,0,0,0,0,0,0,0,0,0,0,0,0,0,0,0,0,0,0,0,0,0,0,0,0,0,0,0,0,0,0,0,0,0,0,0,0,0,0,0,0]
["Vote 01","The Presidency",11,8,0,0,0,0,0,0,0,0,0,0,0,0,0,0,0,0,0,0,0,0,0,0,0,0,0,0,0,0,0,0,0,0,0,0,0,0,0,0,0,0,0,0,0]
["Vote 01","The Presidency",11,9,0,0,0,0,0,0,0,0,0,0,0,0,0,0,0,0,0,0,0,0,0,0,0,0,0,0,0,0,0,0,0,0,0,0,0,0,0,0,0,0,0,0,0]
["Vote 01","The Presidency",11,10,0,0,0,0,0,0,0,0,0,0,0,0,0,0,0,0,0,0,0,0,0,0,0,0,0,0,0,0,0,0,0,0,0,0,0,0,0,0,0,0,0,0,0]
["Vote 01","The Presidency",11,11,0,0,0,0,0,0,0,0,0,0,0,0,0,0,0,0,0,0,0,0,0,0,0,0,0,0,0,0,0,0,0,0,0,0,0,0,0,0,0,0,0,0,0]
["Vote 01","The Presidency",11,12,0,0,0,0,0,0,0,0,0,0,0,0,0,0,0,0,0,0,0,0,0,0,0,0,0,0,0,0,0,0,0,0,0,0,0,0,0,0,0,0,0,0,0]
["Vote 01","The Presidency",11,13,0,0,0,0,0,0,0,0,0,0,0,0,0,0,0,0,0,0,0,0,0,0,0,0,0,0,0,0,0,0,0,0,0,0,0,0,0,0,0,0,0,0,0]
["Vote 01","The Presidency",11,14,0,0,0,0,0,0,0,0,0,0,0,0,0,0,0,0,0,0,0,0,0,0,0,0,0,0,0,0,0,0,0,0,0,0,0,0,0,0,0,0,0,0,0]
["Vote 01","The Presidency",11,15,0,0,0,0,0,0,0,0,0,0,0,0,0,0,0,0,0,0,0,0,0,0,0,0,0,0,0,0,0,0,0,0,0,0,0,0,0,0,0,0,0,0,0]
["Vote 01","The Presidency",11,16,0,0,0,0,0,0,0,0,0,0,0,0,0,0,0,0,0,0,0,0,0,0,0,0,0,0,0,0,0,0,0,0,0,0,0,0,0,0,0,0,0,0,0]
["Vote 01","The Presidency",11,"Deputy Minister",0,0,0,0,0,0,0,0,0,0,0,0,0,0,0,0,0,0,0,0,0,0,0,0,0,0,0,0,0,0,0,0,0,0,0,0,0,0,0,0,0,0,0]
["Vote 01","The Presidency",11,"Minister",0,0,0,0,0,0,0,0,0,0,0,0,0,0,0,0,0,0,0,0,0,0,0,0,0,0,0,0,0,0,0,0,0,0,0,0,0,0,0,0,0,0,0]
["Vote 01","The Presidency",11,"Intern",0,0,0,0,0,0,0,0,0,0,0,0,0,0,0,0,0,0,0,0,0,0,0,0,0,0,0,0,0,0,0,0,0,0,0,0,0,0,0,0,0,0,0]
["Vote 01","The Presidency",11,"Other",0,0,0,0,0,0,0,0,0,0,0,0,0,0,0,0,0,0,0,0,0,0,0,0,0,0,0,0,0,0,0,0,0,0,0,0,0,0,0,0,0,0,0]
["Vote 01","The Presidency",12,1,0,0,0,0,0,0,0,0,0,0,0,0,0,0,0,0,0,0,0,0,0,0,0,0,0,0,0,0,0,0,0,0,0,0,0,0,0,0,0,0,0,0,0]
["Vote 01","The Presidency",12,2,0,0,0,0,0,0,0,0,0,0,0,0,0,0,0,0,0,0,0,0,0,0,0,0,0,0,0,0,0,0,0,0,0,0,0,0,0,0,0,0,0,0,0]
["Vote 01","The Presidency",12,3,0,0,0,0,0,0,0,0,0,0,0,0,0,0,0,0,0,0,0,0,0,0,0,0,0,0,0,0,0,0,0,0,0,0,0,0,0,0,0,0,0,0,0]
["Vote 01","The Presidency",12,4,0,0,0,0,0,0,0,0,0,0,0,0,0,0,0,0,0,0,0,0,0,0,0,0,0,0,0,0,0,0,0,0,0,0,0,0,0,0,0,0,0,0,0]
["Vote 01","The Presidency",12,5,0,0,0,0,0,0,0,0,0,0,0,0,0,0,0,0,0,0,0,0,0,0,0,0,0,0,0,0,0,0,0,0,0,0,0,0,0,0,0,0,0,0,0]
["Vote 01","The Presidency",12,6,0,0,0,0,0,0,0,0,0,0,0,0,0,0,0,0,0,0,0,0,0,0,0,0,0,0,0,0,0,0,0,0,0,0,0,0,0,0,0,0,0,0,0]
["Vote 01","The Presidency",12,7,0,0,0,0,0,0,0,0,0,0,0,0,0,0,0,0,0,0,0,0,0,0,0,0,0,0,0,0,0,0,0,0,0,0,0,0,0,0,0,0,0,0,0]
["Vote 01","The Presidency",12,8,0,0,0,0,0,0,0,0,0,0,0,0,0,0,0,0,0,0,0,0,0,0,0,0,0,0,0,0,0,0,0,0,0,0,0,0,0,0,0,0,0,0,0]
["Vote 01","The Presidency",12,9,0,0,0,0,0,0,0,0,0,0,0,0,0,0,0,0,0,0,0,0,0,0,0,0,0,0,0,0,0,0,0,0,0,0,0,0,0,0,0,0,0,0,0]
["Vote 01","The Presidency",12,10,0,0,0,0,0,0,0,0,0,0,0,0,0,0,0,0,0,0,0,0,0,0,0,0,0,0,0,0,0,0,0,0,0,0,0,0,0,0,0,0,0,0,0]
["Vote 01","The Presidency",12,11,0,0,0,0,0,0,0,0,0,0,0,0,0,0,0,0,0,0,0,0,0,0,0,0,0,0,0,0,0,0,0,0,0,0,0,0,0,0,0,0,0,0,0]
["Vote 01","The Presidency",12,12,0,0,0,0,0,0,0,0,0,0,0,0,0,0,0,0,0,0,0,0,0,0,0,0,0,0,0,0,0,0,0,0,0,0,0,0,0,0,0,0,0,0,0]
["Vote 01","The Presidency",12,13,0,0,0,0,0,0,0,0,0,0,0,0,0,0,0,0,0,0,0,0,0,0,0,0,0,0,0,0,0,0,0,0,0,0,0,0,0,0,0,0,0,0,0]
["Vote 01","The Presidency",12,14,0,0,0,0,0,0,0,0,0,0,0,0,0,0,0,0,0,0,0,0,0,0,0,0,0,0,0,0,0,0,0,0,0,0,0,0,0,0,0,0,0,0,0]
["Vote 01","The Presidency",12,15,0,0,0,0,0,0,0,0,0,0,0,0,0,0,0,0,0,0,0,0,0,0,0,0,0,0,0,0,0,0,0,0,0,0,0,0,0,0,0,0,0,0,0]
["Vote 01","The Presidency",12,16,0,0,0,0,0,0,0,0,0,0,0,0,0,0,0,0,0,0,0,0,0,0,0,0,0,0,0,0,0,0,0,0,0,0,0,0,0,0,0,0,0,0,0]
["Vote 01","The Presidency",12,"Deputy Minister",0,0,0,0,0,0,0,0,0,0,0,0,0,0,0,0,0,0,0,0,0,0,0,0,0,0,0,0,0,0,0,0,0,0,0,0,0,0,0,0,0,0,0]
["Vote 01","The Presidency",12,"Minister",0,0,0,0,0,0,0,0,0,0,0,0,0,0,0,0,0,0,0,0,0,0,0,0,0,0,0,0,0,0,0,0,0,0,0,0,0,0,0,0,0,0,0]
["Vote 01","The Presidency",12,"Intern",0,0,0,0,0,0,0,0,0,0,0,0,0,0,0,0,0,0,0,0,0,0,0,0,0,0,0,0,0,0,0,0,0,0,0,0,0,0,0,0,0,0,0]
["Vote 01","The Presidency",12,"Other",0,0,0,0,0,0,0,0,0,0,0,0,0,0,0,0,0,0,0,0,0,0,0,0,0,0,0,0,0,0,0,0,0,0,0,0,0,0,0,0,0,0,0]
["Vote 01","The Presidency",13,1,0,0,0,0,0,0,0,0,0,0,0,0,0,0,0,0,0,0,0,0,0,0,0,0,0,0,0,0,0,0,0,0,0,0,0,0,0,0,0,0,0,0,0]
["Vote 01","The Presidency",13,2,0,0,0,0,0,0,0,0,0,0,0,0,0,0,0,0,0,0,0,0,0,0,0,0,0,0,0,0,0,0,0,0,0,0,0,0,0,0,0,0,0,0,0]
["Vote 01","The Presidency",13,3,0,0,0,0,0,0,0,0,0,0,0,0,0,0,0,0,0,0,0,0,0,0,0,0,0,0,0,0,0,0,0,0,0,0,0,0,0,0,0,0,0,0,0]
["Vote 01","The Presidency",13,4,0,0,0,0,0,0,0,0,0,0,0,0,0,0,0,0,0,0,0,0,0,0,0,0,0,0,0,0,0,0,0,0,0,0,0,0,0,0,0,0,0,0,0]
["Vote 01","The Presidency",13,5,0,0,0,0,0,0,0,0,0,0,0,0,0,0,0,0,0,0,0,0,0,0,0,0,0,0,0,0,0,0,0,0,0,0,0,0,0,0,0,0,0,0,0]
["Vote 01","The Presidency",13,6,0,0,0,0,0,0,0,0,0,0,0,0,0,0,0,0,0,0,0,0,0,0,0,0,0,0,0,0,0,0,0,0,0,0,0,0,0,0,0,0,0,0,0]
["Vote 01","The Presidency",13,7,0,0,0,0,0,0,0,0,0,0,0,0,0,0,0,0,0,0,0,0,0,0,0,0,0,0,0,0,0,0,0,0,0,0,0,0,0,0,0,0,0,0,0]
["Vote 01","The Presidency",13,8,0,0,0,0,0,0,0,0,0,0,0,0,0,0,0,0,0,0,0,0,0,0,0,0,0,0,0,0,0,0,0,0,0,0,0,0,0,0,0,0,0,0,0]
["Vote 01","The Presidency",13,9,0,0,0,0,0,0,0,0,0,0,0,0,0,0,0,0,0,0,0,0,0,0,0,0,0,0,0,0,0,0,0,0,0,0,0,0,0,0,0,0,0,0,0]
["Vote 01","The Presidency",13,10,0,0,0,0,0,0,0,0,0,0,0,0,0,0,0,0,0,0,0,0,0,0,0,0,0,0,0,0,0,0,0,0,0,0,0,0,0,0,0,0,0,0,0]
["Vote 01","The Presidency",13,11,0,0,0,0,0,0,0,0,0,0,0,0,0,0,0,0,0,0,0,0,0,0,0,0,0,0,0,0,0,0,0,0,0,0,0,0,0,0,0,0,0,0,0]
["Vote 01","The Presidency",13,12,0,0,0,0,0,0,0,0,0,0,0,0,0,0,0,0,0,0,0,0,0,0,0,0,0,0,0,0,0,0,0,0,0,0,0,0,0,0,0,0,0,0,0]
["Vote 01","The Presidency",13,13,0,0,0,0,0,0,0,0,0,0,0,0,0,0,0,0,0,0,0,0,0,0,0,0,0,0,0,0,0,0,0,0,0,0,0,0,0,0,0,0,0,0,0]
["Vote 01","The Presidency",13,14,0,0,0,0,0,0,0,0,0,0,0,0,0,0,0,0,0,0,0,0,0,0,0,0,0,0,0,0,0,0,0,0,0,0,0,0,0,0,0,0,0,0,0]
["Vote 01","The Presidency",13,15,0,0,0,0,0,0,0,0,0,0,0,0,0,0,0,0,0,0,0,0,0,0,0,0,0,0,0,0,0,0,0,0,0,0,0,0,0,0,0,0,0,0,0]
["Vote 01","The Presidency",13,16,0,0,0,0,0,0,0,0,0,0,0,0,0,0,0,0,0,0,0,0,0,0,0,0,0,0,0,0,0,0,0,0,0,0,0,0,0,0,0,0,0,0,0]
["Vote 01","The Presidency",13,"Deputy Minister",0,0,0,0,0,0,0,0,0,0,0,0,0,0,0,0,0,0,0,0,0,0,0,0,0,0,0,0,0,0,0,0,0,0,0,0,0,0,0,0,0,0,0]
["Vote 01","The Presidency",13,"Minister",0,0,0,0,0,0,0,0,0,0,0,0,0,0,0,0,0,0,0,0,0,0,0,0,0,0,0,0,0,0,0,0,0,0,0,0,0,0,0,0,0,0,0]
["Vote 01","The Presidency",13,"Intern",0,0,0,0,0,0,0,0,0,0,0,0,0,0,0,0,0,0,0,0,0,0,0,0,0,0,0,0,0,0,0,0,0,0,0,0,0,0,0,0,0,0,0]
["Vote 01","The Presidency",13,"Other",0,0,0,0,0,0,0,0,0,0,0,0,0,0,0,0,0,0,0,0,0,0,0,0,0,0,0,0,0,0,0,0,0,0,0,0,0,0,0,0,0,0,0]
["Vote 01","The Presidency",14,1,0,0,0,0,0,0,0,0,0,0,0,0,0,0,0,0,0,0,0,0,0,0,0,0,0,0,0,0,0,0,0,0,0,0,0,0,0,0,0,0,0,0,0]
["Vote 01","The Presidency",14,2,0,0,0,0,0,0,0,0,0,0,0,0,0,0,0,0,0,0,0,0,0,0,0,0,0,0,0,0,0,0,0,0,0,0,0,0,0,0,0,0,0,0,0]
["Vote 01","The Presidency",14,3,0,0,0,0,0,0,0,0,0,0,0,0,0,0,0,0,0,0,0,0,0,0,0,0,0,0,0,0,0,0,0,0,0,0,0,0,0,0,0,0,0,0,0]
["Vote 01","The Presidency",14,4,0,0,0,0,0,0,0,0,0,0,0,0,0,0,0,0,0,0,0,0,0,0,0,0,0,0,0,0,0,0,0,0,0,0,0,0,0,0,0,0,0,0,0]
["Vote 01","The Presidency",14,5,0,0,0,0,0,0,0,0,0,0,0,0,0,0,0,0,0,0,0,0,0,0,0,0,0,0,0,0,0,0,0,0,0,0,0,0,0,0,0,0,0,0,0]
["Vote 01","The Presidency",14,6,0,0,0,0,0,0,0,0,0,0,0,0,0,0,0,0,0,0,0,0,0,0,0,0,0,0,0,0,0,0,0,0,0,0,0,0,0,0,0,0,0,0,0]
["Vote 01","The Presidency",14,7,0,0,0,0,0,0,0,0,0,0,0,0,0,0,0,0,0,0,0,0,0,0,0,0,0,0,0,0,0,0,0,0,0,0,0,0,0,0,0,0,0,0,0]
["Vote 01","The Presidency",14,8,0,0,0,0,0,0,0,0,0,0,0,0,0,0,0,0,0,0,0,0,0,0,0,0,0,0,0,0,0,0,0,0,0,0,0,0,0,0,0,0,0,0,0]
["Vote 01","The Presidency",14,9,0,0,0,0,0,0,0,0,0,0,0,0,0,0,0,0,0,0,0,0,0,0,0,0,0,0,0,0,0,0,0,0,0,0,0,0,0,0,0,0,0,0,0]
["Vote 01","The Presidency",14,10,0,0,0,0,0,0,0,0,0,0,0,0,0,0,0,0,0,0,0,0,0,0,0,0,0,0,0,0,0,0,0,0,0,0,0,0,0,0,0,0,0,0,0]
["Vote 01","The Presidency",14,11,0,0,0,0,0,0,0,0,0,0,0,0,0,0,0,0,0,0,0,0,0,0,0,0,0,0,0,0,0,0,0,0,0,0,0,0,0,0,0,0,0,0,0]
["Vote 01","The Presidency",14,12,0,0,0,0,0,0,0,0,0,0,0,0,0,0,0,0,0,0,0,0,0,0,0,0,0,0,0,0,0,0,0,0,0,0,0,0,0,0,0,0,0,0,0]
["Vote 01","The Presidency",14,13,0,0,0,0,0,0,0,0,0,0,0,0,0,0,0,0,0,0,0,0,0,0,0,0,0,0,0,0,0,0,0,0,0,0,0,0,0,0,0,0,0,0,0]
["Vote 01","The Presidency",14,14,0,0,0,0,0,0,0,0,0,0,0,0,0,0,0,0,0,0,0,0,0,0,0,0,0,0,0,0,0,0,0,0,0,0,0,0,0,0,0,0,0,0,0]
["Vote 01","The Presidency",14,15,0,0,0,0,0,0,0,0,0,0,0,0,0,0,0,0,0,0,0,0,0,0,0,0,0,0,0,0,0,0,0,0,0,0,0,0,0,0,0,0,0,0,0]
["Vote 01","The Presidency",14,16,0,0,0,0,0,0,0,0,0,0,0,0,0,0,0,0,0,0,0,0,0,0,0,0,0,0,0,0,0,0,0,0,0,0,0,0,0,0,0,0,0,0,0]
["Vote 01","The Presidency",14,"Deputy Minister",0,0,0,0,0,0,0,0,0,0,0,0,0,0,0,0,0,0,0,0,0,0,0,0,0,0,0,0,0,0,0,0,0,0,0,0,0,0,0,0,0,0,0]
["Vote 01","The Presidency",14,"Minister",0,0,0,0,0,0,0,0,0,0,0,0,0,0,0,0,0,0,0,0,0,0,0,0,0,0,0,0,0,0,0,0,0,0,0,0,0,0,0,0,0,0,0]
["Vote 01","The Presidency",14,"Intern",0,0,0,0,0,0,0,0,0,0,0,0,0,0,0,0,0,0,0,0,0,0,0,0,0,0,0,0,0,0,0,0,0,0,0,0,0,0,0,0,0,0,0]
["Vote 01","The Presidency",14,"Other",0,0,0,0,0,0,0,0,0,0,0,0,0,0,0,0,0,0,0,0,0,0,0,0,0,0,0,0,0,0,0,0,0,0,0,0,0,0,0,0,0,0,0]
["Vote 01","The Presidency",15,1,0,0,0,0,0,0,0,0,0,0,0,0,0,0,0,0,0,0,0,0,0,0,0,0,0,0,0,0,0,0,0,0,0,0,0,0,0,0,0,0,0,0,0]
["Vote 01","The Presidency",15,2,0,0,0,0,0,0,0,0,0,0,0,0,0,0,0,0,0,0,0,0,0,0,0,0,0,0,0,0,0,0,0,0,0,0,0,0,0,0,0,0,0,0,0]
["Vote 01","The Presidency",15,3,0,0,0,0,0,0,0,0,0,0,0,0,0,0,0,0,0,0,0,0,0,0,0,0,0,0,0,0,0,0,0,0,0,0,0,0,0,0,0,0,0,0,0]
["Vote 01","The Presidency",15,4,0,0,0,0,0,0,0,0,0,0,0,0,0,0,0,0,0,0,0,0,0,0,0,0,0,0,0,0,0,0,0,0,0,0,0,0,0,0,0,0,0,0,0]
["Vote 01","The Presidency",15,5,0,0,0,0,0,0,0,0,0,0,0,0,0,0,0,0,0,0,0,0,0,0,0,0,0,0,0,0,0,0,0,0,0,0,0,0,0,0,0,0,0,0,0]
["Vote 01","The Presidency",15,6,0,0,0,0,0,0,0,0,0,0,0,0,0,0,0,0,0,0,0,0,0,0,0,0,0,0,0,0,0,0,0,0,0,0,0,0,0,0,0,0,0,0,0]
["Vote 01","The Presidency",15,7,0,0,0,0,0,0,0,0,0,0,0,0,0,0,0,0,0,0,0,0,0,0,0,0,0,0,0,0,0,0,0,0,0,0,0,0,0,0,0,0,0,0,0]
["Vote 01","The Presidency",15,8,0,0,0,0,0,0,0,0,0,0,0,0,0,0,0,0,0,0,0,0,0,0,0,0,0,0,0,0,0,0,0,0,0,0,0,0,0,0,0,0,0,0,0]
["Vote 01","The Presidency",15,9,0,0,0,0,0,0,0,0,0,0,0,0,0,0,0,0,0,0,0,0,0,0,0,0,0,0,0,0,0,0,0,0,0,0,0,0,0,0,0,0,0,0,0]
["Vote 01","The Presidency",15,10,0,0,0,0,0,0,0,0,0,0,0,0,0,0,0,0,0,0,0,0,0,0,0,0,0,0,0,0,0,0,0,0,0,0,0,0,0,0,0,0,0,0,0]
["Vote 01","The Presidency",15,11,0,0,0,0,0,0,0,0,0,0,0,0,0,0,0,0,0,0,0,0,0,0,0,0,0,0,0,0,0,0,0,0,0,0,0,0,0,0,0,0,0,0,0]
["Vote 01","The Presidency",15,12,0,0,0,0,0,0,0,0,0,0,0,0,0,0,0,0,0,0,0,0,0,0,0,0,0,0,0,0,0,0,0,0,0,0,0,0,0,0,0,0,0,0,0]
["Vote 01","The Presidency",15,13,0,0,0,0,0,0,0,0,0,0,0,0,0,0,0,0,0,0,0,0,0,0,0,0,0,0,0,0,0,0,0,0,0,0,0,0,0,0,0,0,0,0,0]
["Vote 01","The Presidency",15,14,0,0,0,0,0,0,0,0,0,0,0,0,0,0,0,0,0,0,0,0,0,0,0,0,0,0,0,0,0,0,0,0,0,0,0,0,0,0,0,0,0,0,0]
["Vote 01","The Presidency",15,15,0,0,0,0,0,0,0,0,0,0,0,0,0,0,0,0,0,0,0,0,0,0,0,0,0,0,0,0,0,0,0,0,0,0,0,0,0,0,0,0,0,0,0]
["Vote 01","The Presidency",15,16,0,0,0,0,0,0,0,0,0,0,0,0,0,0,0,0,0,0,0,0,0,0,0,0,0,0,0,0,0,0,0,0,0,0,0,0,0,0,0,0,0,0,0]
["Vote 01","The Presidency",15,"Deputy Minister",0,0,0,0,0,0,0,0,0,0,0,0,0,0,0,0,0,0,0,0,0,0,0,0,0,0,0,0,0,0,0,0,0,0,0,0,0,0,0,0,0,0,0]
["Vote 01","The Presidency",15,"Minister",0,0,0,0,0,0,0,0,0,0,0,0,0,0,0,0,0,0,0,0,0,0,0,0,0,0,0,0,0,0,0,0,0,0,0,0,0,0,0,0,0,0,0]
["Vote 01","The Presidency",15,"Intern",0,0,0,0,0,0,0,0,0,0,0,0,0,0,0,0,0,0,0,0,0,0,0,0,0,0,0,0,0,0,0,0,0,0,0,0,0,0,0,0,0,0,0]
["Vote 01","The Presidency",15,"Other",0,0,0,0,0,0,0,0,0,0,0,0,0,0,0,0,0,0,0,0,0,0,0,0,0,0,0,0,0,0,0,0,0,0,0,0,0,0,0,0,0,0,0]
["Vote 01","The Presidency",16,1,0,0,0,0,0,0,0,0,0,0,0,0,0,0,0,0,0,0,0,0,0,0,0,0,0,0,0,0,0,0,0,0,0,0,0,0,0,0,0,0,0,0,0]
["Vote 01","The Presidency",16,2,0,0,0,0,0,0,0,0,0,0,0,0,0,0,0,0,0,0,0,0,0,0,0,0,0,0,0,0,0,0,0,0,0,0,0,0,0,0,0,0,0,0,0]
["Vote 01","The Presidency",16,3,0,0,0,0,0,0,0,0,0,0,0,0,0,0,0,0,0,0,0,0,0,0,0,0,0,0,0,0,0,0,0,0,0,0,0,0,0,0,0,0,0,0,0]
["Vote 01","The Presidency",16,4,0,0,0,0,0,0,0,0,0,0,0,0,0,0,0,0,0,0,0,0,0,0,0,0,0,0,0,0,0,0,0,0,0,0,0,0,0,0,0,0,0,0,0]
["Vote 01","The Presidency",16,5,0,0,0,0,0,0,0,0,0,0,0,0,0,0,0,0,0,0,0,0,0,0,0,0,0,0,0,0,0,0,0,0,0,0,0,0,0,0,0,0,0,0,0]
["Vote 01","The Presidency",16,6,0,0,0,0,0,0,0,0,0,0,0,0,0,0,0,0,0,0,0,0,0,0,0,0,0,0,0,0,0,0,0,0,0,0,0,0,0,0,0,0,0,0,0]
["Vote 01","The Presidency",16,7,0,0,0,0,0,0,0,0,0,0,0,0,0,0,0,0,0,0,0,0,0,0,0,0,0,0,0,0,0,0,0,0,0,0,0,0,0,0,0,0,0,0,0]
["Vote 01","The Presidency",16,8,0,0,0,0,0,0,0,0,0,0,0,0,0,0,0,0,0,0,0,0,0,0,0,0,0,0,0,0,0,0,0,0,0,0,0,0,0,0,0,0,0,0,0]
["Vote 01","The Presidency",16,9,0,0,0,0,0,0,0,0,0,0,0,0,0,0,0,0,0,0,0,0,0,0,0,0,0,0,0,0,0,0,0,0,0,0,0,0,0,0,0,0,0,0,0]
["Vote 01","The Presidency",16,10,0,0,0,0,0,0,0,0,0,0,0,0,0,0,0,0,0,0,0,0,0,0,0,0,0,0,0,0,0,0,0,0,0,0,0,0,0,0,0,0,0,0,0]
["Vote 01","The Presidency",16,11,0,0,0,0,0,0,0,0,0,0,0,0,0,0,0,0,0,0,0,0,0,0,0,0,0,0,0,0,0,0,0,0,0,0,0,0,0,0,0,0,0,0,0]
["Vote 01","The Presidency",16,12,0,0,0,0,0,0,0,0,0,0,0,0,0,0,0,0,0,0,0,0,0,0,0,0,0,0,0,0,0,0,0,0,0,0,0,0,0,0,0,0,0,0,0]
["Vote 01","The Presidency",16,13,0,0,0,0,0,0,0,0,0,0,0,0,0,0,0,0,0,0,0,0,0,0,0,0,0,0,0,0,0,0,0,0,0,0,0,0,0,0,0,0,0,0,0]
["Vote 01","The Presidency",16,14,0,0,0,0,0,0,0,0,0,0,0,0,0,0,0,0,0,0,0,0,0,0,0,0,0,0,0,0,0,0,0,0,0,0,0,0,0,0,0,0,0,0,0]
["Vote 01","The Presidency",16,15,0,0,0,0,0,0,0,0,0,0,0,0,0,0,0,0,0,0,0,0,0,0,0,0,0,0,0,0,0,0,0,0,0,0,0,0,0,0,0,0,0,0,0]
["Vote 01","The Presidency",16,16,0,0,0,0,0,0,0,0,0,0,0,0,0,0,0,0,0,0,0,0,0,0,0,0,0,0,0,0,0,0,0,0,0,0,0,0,0,0,0,0,0,0,0]
["Vote 01","The Presidency",16,"Deputy Minister",0,0,0,0,0,0,0,0,0,0,0,0,0,0,0,0,0,0,0,0,0,0,0,0,0,0,0,0,0,0,0,0,0,0,0,0,0,0,0,0,0,0,0]
["Vote 01","The Presidency",16,"Minister",0,0,0,0,0,0,0,0,0,0,0,0,0,0,0,0,0,0,0,0,0,0,0,0,0,0,0,0,0,0,0,0,0,0,0,0,0,0,0,0,0,0,0]
["Vote 01","The Presidency",16,"Intern",0,0,0,0,0,0,0,0,0,0,0,0,0,0,0,0,0,0,0,0,0,0,0,0,0,0,0,0,0,0,0,0,0,0,0,0,0,0,0,0,0,0,0]
["Vote 01","The Presidency",16,"Other",0,0,0,0,0,0,0,0,0,0,0,0,0,0,0,0,0,0,0,0,0,0,0,0,0,0,0,0,0,0,0,0,0,0,0,0,0,0,0,0,0,0,0]

{"sheet":"Tables","index":20,"n_rows":1039,"n_cols":48,"rows_kept":1039,"cut":false,"hidden":true,"merged":[]}
[null,null,null,null,null,null,null,null,null,null,null,null,null,null,null,null,null,"Headers: Performance",null,null,null,"Headers: Infrastructure",null,null,null,"Headers: Personnel",null,null,null,"Headers: Dataset",null,null,null,null,null,null,null,null,"Reporting level Indi"]
["Vote No. - N","Vote No.","Department",null,null,"Vote No. - N","Programme No. - N","Subprogramme No. - N","Vote No.","Programme No.","Subprogramme No.","UID_Org","Department","Programme","Subprogramme",null,null,"CurCol","NewCol",null,null,"CurCol","NewCol",null,null,"CurCol","NewCol",null,null,"OldCol","GenCol","NewCol",null,null,"YearNo","Year",null,null,"Econ2","Econ3","Econ4","Level 3","Level 4",null,null,"Salary level","Salary level2","Salary level grouping"]
[1,"01","The Presidency",null,null,1,1,1,"01","01","01","01|01|01","The Presidency","Administration","Management",null,null,"Column1","Unit no",null,null,"Column1","Unit no",null,null,"Column1","Unit no",null,null,"Department","Department","Department",null,null,1,"2020/21",null,null,"Current payments","Compensation of employees","Compensation of employees",1,0,null,null,1,"01","Levels 01 - 06"]
[2,"02","Parliament",null,null,1,1,2,"01","01","02","01|01|02","The Presidency","Administration","Support Services to the President",null,null,"Column2","Impact area",null,null,"Column2","Impact area",null,null,"Column2","Impact area",null,null,"Programme","Programme","Programme",null,null,2,"2021/22",null,null,"Current payments","Compensation of employees","Salaries and wages",0,1,null,null,2,"02","Levels 01 - 06"]
[3,"03","Cooperative Governance",null,null,1,1,3,"01","01","03","01|01|03","The Presidency","Administration","Support Services to the Deputy President",null,null,"Column3","Unit name",null,null,"Column3","Unit name",null,null,"Column3","Unit name",null,null,"Subprogramme","Subprogramme","Subprogramme",null,null,3,"2022/23",null,null,"Current payments","Compensation of employees","Social contributions",0,1,null,null,3,"03","Levels 01 - 06"]
[4,"04","Government Communication and Information System",null,null,1,2,1,"01","02","01","01|02|01","The Presidency","Executive Support","Cabinet Services",null,null,"Column4","Performance indicator",null,null,"Column4","Project",null,null,"Column4","Salary level",null,null,"Transfers and subsidies / Payments for financial assets detail","Transfers and subsidies / Payments for financial assets detail","Transfers and subsidies / Payments for financial assets detail",null,null,4,"2023/24",null,null,"Current payments","Goods and services","Goods and services",1,0,null,null,4,"04","Levels 01 - 06"]
[5,"05","Home Affairs",null,null,1,3,1,"01","03","01","01|03|01","The Presidency","Policy and Research Services","Economy, Trade and Investment",null,null,"Column5","2023/24 Current performance",null,null,"Column5","2023/24 Current Number",null,null,"Column5","2023/24 Original number",null,null,"Econ1","Econ1","Econ1",null,null,5,"2024/25",null,null,"Current payments","Goods and services","Administrative fees",0,1,null,null,5,"05","Levels 01 - 06"]
[6,"06","International Relations and Cooperation",null,null,1,3,2,"01","03","02","01|03|02","The Presidency","Policy and Research Services","Socioeconomic Impact Assessment System",null,null,"Column6","2023/24 Performance @ benchmark level",null,null,"Column6","2023/24 Market or best in class benchmark",null,null,"Column6","2023/24 Revised number",null,null,"Econ2","Econ2","Econ2",null,null,6,"2025/26",null,null,"Current payments","Goods and services","Advertising",0,1,null,null,6,"06","Levels 01 - 06"]
[7,"07","National School of Government",null,null,1,16,1,"01","16","01","01|16|01","The Presidency","Direct charge against the National Revenue Fund","Salary of the president",null,null,"Column7","2023/24 Change",null,null,"Column7","2023/24 Change",null,null,"Column7","2023/24 Change in number",null,null,"Econ3","Econ3","Econ3",null,null,7,"2026/27",null,null,"Current payments","Goods and services","Agency and support/outsourced services",0,1,null,null,7,"07","Levels 07 - 12"]
[8,"08","National Treasury",null,null,1,16,2,"01","16","02","01|16|02","The Presidency","Direct charge against the National Revenue Fund","Salary of the deputy president",null,null,"Column8","2024/25 Original target",null,null,"Column8","2024/25 Original amount",null,null,"Column8","2024/25 Original number",null,null,"Econ4","Econ4","Econ4",null,null,null,null,null,null,"Current payments","Goods and services","Audit costs: External",0,1,null,null,8,"08","Levels 07 - 12"]
[9,"09","Planning, Monitoring and Evaluation",null,null,2,1,1,"02","01","01","02|01|01","Parliament","Administration","Executive Authority",null,null,"Column9","2024/25 Revised target",null,null,"Column9","2024/25 Revised amount",null,null,"Column9","2024/25 Revised number",null,null,"Econ5","Econ5","Econ5",null,null,null,null,null,null,"Current payments","Goods and services","Bursaries: Employees",0,1,null,null,9,"09","Levels 07 - 12"]
[10,"10","Public Enterprises",null,null,2,1,2,"02","01","02","02|01|02","Parliament","Administration","Office of the Secretary",null,null,"Column10","2024/25 Change",null,null,"Column10","2024/25 Change",null,null,"Column10","2024/25 Change in number",null,null,"Function group","Function group","Function group",null,null,null,null,null,null,"Current payments","Goods and services","Catering: Departmental activities",0,1,null,null,10,"10","Levels 07 - 12"]
[11,"11","Public Service and Administration",null,null,2,1,3,"02","01","03","02|01|03","Parliament","Administration","Corporate and Support Services",null,null,"Column11","2025/26 Original target",null,null,"Column11","2025/26 Original amount",null,null,"Column11","2025/26 Original number",null,null,"Technical group","Technical group","Technical group",null,null,null,null,null,null,"Current payments","Goods and services","Communication (G&S)",0,1,null,null,11,"11","Levels 07 - 12"]
[12,"12","Public Service Commission",null,null,2,2,1,"02","02","01","02|02|01","Parliament","Legislation and Oversight","National Assembly",null,null,"Column12","2025/26 Revised target",null,null,"Column12","2025/26 Revised amount",null,null,"Column12","2025/26 Revised number",null,null,"DOR","DOR","DOR",null,null,null,null,null,null,"Current payments","Goods and services","Computer services",0,1,null,null,12,"12","Levels 07 - 12"]
[13,"13","Public Works and Infrastructure",null,null,2,2,2,"02","02","02","02|02|02","Parliament","Legislation and Oversight","National Council of Provinces",null,null,"Column13","2025/26 Change",null,null,"Column13","2025/26 Change",null,null,"Column13","2025/26 Change in number",null,null,"2018/19","Column13","2019/20",null,null,null,null,null,null,"Current payments","Goods and services","Consultants: Business and advisory services",0,1,null,null,13,"13","Levels 13 - 16"]
[14,"14","Statistics South Africa",null,null,2,2,3,"02","02","03","02|02|03","Parliament","Legislation and Oversight","Public Participation and external relations: Shared Services",null,null,"Column14","2026/27 Original target",null,null,"Column14","2026/27 Original amount",null,null,"Column14","2026/27 Original number",null,null,"2019/20","Column14","2020/21",null,null,null,null,null,null,"Current payments","Goods and services","Consumable supplies",0,1,null,null,14,"14","Levels 13 - 16"]
[15,"15","Traditional Affairs",null,null,2,3,1,"02","03","01","02|03|01","Parliament","Associated Services","Members Facilities",null,null,"Column15","2026/27 Revised target",null,null,"Column15","2026/27 Revised amount",null,null,"Column15","2026/27 Revised number",null,null,"2020/21","Column15","2021/22",null,null,null,null,null,null,"Current payments","Goods and services","Consumables: Stationery, printing and office supplies",0,1,null,null,15,"15","Levels 13 - 16"]
[16,"16","Basic Education",null,null,2,3,2,"02","03","02","02|03|02","Parliament","Associated Services","Transfer to Political Party Allowances",null,null,"Column16","2026/27 Change",null,null,"Column16","2026/27 Change",null,null,"Column16","2026/27 Change in number",null,null,"2021/22 Main appropriation","Column16","2022/23 Main appropriation",null,null,null,null,null,null,"Current payments","Goods and services","Contractors",0,1,null,null,16,"16","Levels 13 - 16"]
[17,"17","Higher Education and Training",null,null,2,3,3,"02","03","03","02|03|03","Parliament","Associated Services","Transfer: Parliamentary Budget Office",null,null,"Column17","Comment",null,null,"Column17","Comment",null,null,"Column17","Comment",null,null,"2021/22 Adjusted appropriation","Column17","2022/23 Adjusted appropriation",null,null,null,null,null,null,"Current payments","Goods and services","Entertainment",0,1,null,null,"Deputy Minister","Deputy Minister","Other"]
[18,"18","Health",null,null,2,16,1,"02","16","01","02|16|01","Parliament","Direct charge against the National Revenue Fund","Members' Remuneration",null,null,"Column18","Gov Priority",null,null,null,null,null,null,null,null,null,null,"2021/22 Revised estimate","Column18","2022/23 Revised estimate",null,null,null,null,null,null,"Current payments","Goods and services","Fleet services (including government motor transport)",0,1,null,null,"Minister","Minister","Other"]
[19,"19","Social Development",null,null,3,1,1,"03","01","01","03|01|01","Cooperative Governance","Administration","Ministry",null,null,null,null,null,null,null,null,null,null,null,null,null,null,"2021/22 Preliminary outcome","Column19","2022/23 Preliminary outcome",null,null,null,null,null,null,"Current payments","Goods and services","Housing",0,1,null,null,"Intern","Intern","Other"]
[20,"20","Women, Youth and Persons with Disabilities",null,null,3,1,2,"03","01","02","03|01|02","Cooperative Governance","Administration","Management",null,null,null,null,null,null,null,null,null,null,null,null,null,null,"2022/23 Baseline","Column20","2023/24 Baseline",null,null,null,null,null,null,"Current payments","Goods and services","Infrastructure and planning services",0,1,null,null,"Other","Other","Other"]
[21,"21","Civilian Secretariat for the Police Service",null,null,3,1,3,"03","01","03","03|01|03","Cooperative Governance","Administration","Corporate Services",null,null,null,null,null,null,null,null,null,null,null,null,null,null,"2023/24 Baseline","Column21","2024/25 Baseline",null,null,null,null,null,null,"Current payments","Goods and services","Inventory: Clothing material and accessories",0,1]
[22,"22","Correctional Services",null,null,3,1,4,"03","01","04","03|01|04","Cooperative Governance","Administration","Financial Services",null,null,null,null,null,null,null,null,null,null,null,null,null,null,"2024/25 Baseline","Column22","2025/26 Baseline",null,null,null,null,null,null,"Current payments","Goods and services","Inventory: Farming supplies",0,1]
[23,"23","Defence",null,null,3,1,5,"03","01","05","03|01|05","Cooperative Governance","Administration","Internal Audit and Risk management",null,null,null,null,null,null,null,null,null,null,null,null,null,null,"2025/26 Baseline","Column23","2026/27 Baseline",null,null,null,null,null,null,"Current payments","Goods and services","Inventory: Food and food supplies",0,1]
[24,"24","Independent Police Investigative Directorate",null,null,3,1,6,"03","01","06","03|01|06","Cooperative Governance","Administration","Office Accommodation",null,null,null,null,null,null,null,null,null,null,null,null,null,null,"2023/24 From - Spending review Topic 1","Column24","2024/25 From - Spending review Topic 1",null,null,null,null,null,null,"Current payments","Goods and services","Inventory: Fuel, oil and gas",0,1]
[25,"25","Justice and Constitutional Development",null,null,3,2,1,"03","02","01","03|02|01","Cooperative Governance","Local Government Support and Intervention Management","Management: Local Government Support and Intervention Management",null,null,null,null,null,null,null,null,null,null,null,null,null,null,"2024/25 From - Spending review Topic 1","Column25","2025/26 From - Spending review Topic 1",null,null,null,null,null,null,"Current payments","Goods and services","Inventory: Learner and teacher support material",0,1]
[26,"26","Military Veterans",null,null,3,2,2,"03","02","02","03|02|02","Cooperative Governance","Local Government Support and Intervention Management","Performance Monitoring",null,null,null,null,null,null,null,null,null,null,null,null,null,null,"2025/26 From - Spending review Topic 1","Column26","2026/27 From - Spending review Topic 1",null,null,null,null,null,null,"Current payments","Goods and services","Inventory: Materials and supplies",0,1]
[27,"27","Office of the Chief Justice",null,null,3,2,3,"03","02","03","03|02|03","Cooperative Governance","Local Government Support and Intervention Management","Local Government Improvement Programme",null,null,null,null,null,null,null,null,null,null,null,null,null,null,"2023/24 To - Spending review Topic 1","Column27","2024/25 To - Spending review Topic 1",null,null,null,null,null,null,"Current payments","Goods and services","Inventory: Medical supplies",0,1]
[28,"28","Police",null,null,3,2,4,"03","02","04","03|02|04","Cooperative Governance","Local Government Support and Intervention Management","Municipal Infrastructure Grant Administration",null,null,null,null,null,null,null,null,null,null,null,null,null,null,"2024/25 To - Spending review Topic 1","Column28","2025/26 To - Spending review Topic 1",null,null,null,null,null,null,"Current payments","Goods and services","Inventory: Medicine",0,1]
[29,"29","Agriculture, Land Reform and Rural Development",null,null,3,2,5,"03","02","05","03|02|05","Cooperative Governance","Local Government Support and Intervention Management","Urban Development Planning",null,null,null,null,null,null,null,null,null,null,null,null,null,null,"2025/26 To - Spending review Topic 1","Column29","2026/27 To - Spending review Topic 1",null,null,null,null,null,null,"Current payments","Goods and services","Inventory: Other supplies",0,1]
[30,"30","Communications and Digital Technologies",null,null,3,2,6,"03","02","06","03|02|06","Cooperative Governance","Local Government Support and Intervention Management","Integrated Districts and Regional Spatial Planning",null,null,null,null,null,null,null,null,null,null,null,null,null,null,"2023/24 From - Spending review Topic 2","Column30","2024/25 From - Spending review Topic 2",null,null,null,null,null,null,"Current payments","Goods and services","Laboratory services",0,1]
[31,"31","Employment and Labour",null,null,3,2,7,"03","02","07","03|02|07","Cooperative Governance","Local Government Support and Intervention Management","Intergovernmental Policy and Practice",null,null,null,null,null,null,null,null,null,null,null,null,null,null,"2024/25 From - Spending review Topic 2","Column31","2025/26 From - Spending review Topic 2",null,null,null,null,null,null,"Current payments","Goods and services","Legal services (G&S)",0,1]
[32,"32","Forestry, Fisheries and the Environment",null,null,3,2,8,"03","02","08","03|02|08","Cooperative Governance","Local Government Support and Intervention Management","Integrated urban development grant",null,null,null,null,null,null,null,null,null,null,null,null,null,null,"2025/26 From - Spending review Topic 2","Column32","2026/27 From - Spending review Topic 2",null,null,null,null,null,null,"Current payments","Goods and services","Medsas inventory interface",0,1]
[33,"33","Human Settlements",null,null,3,2,9,"03","02","09","03|02|09","Cooperative Governance","Local Government Support and Intervention Management","Municipal Demarcation Board",null,null,null,null,null,null,null,null,null,null,null,null,null,null,"2023/24 To - Spending review Topic 2","Column33","2024/25 To - Spending review Topic 2",null,null,null,null,null,null,"Current payments","Goods and services","Minor assets",0,1]
[34,"34","Mineral Resources and Energy",null,null,3,2,10,"03","02","10","03|02|10","Cooperative Governance","Local Government Support and Intervention Management","South African Cities Network",null,null,null,null,null,null,null,null,null,null,null,null,null,null,"2024/25 To - Spending review Topic 2","Column34","2025/26 To - Spending review Topic 2",null,null,null,null,null,null,"Current payments","Goods and services","Operating leases",0,1]
[35,"35","Science and Innovation",null,null,3,2,11,"03","02","11","03|02|11","Cooperative Governance","Local Government Support and Intervention Management","Municipal Infrastructure Grant",null,null,null,null,null,null,null,null,null,null,null,null,null,null,"2025/26 To - Spending review Topic 2","Column35","2026/27 To - Spending review Topic 2",null,null,null,null,null,null,"Current payments","Goods and services","Operating payments",0,1]
[36,"36","Small Business Development",null,null,3,2,12,"03","02","12","03|02|12","Cooperative Governance","Local Government Support and Intervention Management","Municipal Infrastructure Support Agent",null,null,null,null,null,null,null,null,null,null,null,null,null,null,"2023/24 From - Spending review Topic 3","Column36","2024/25 From - Spending review Topic 3",null,null,null,null,null,null,"Current payments","Goods and services","Property payments",0,1]
[37,"37","Sport, Arts and Culture",null,null,3,3,1,"03","03","01","03|03|01","Cooperative Governance","Institutional Development","Management: Institutional Development",null,null,null,null,null,null,null,null,null,null,null,null,null,null,"2024/25 From - Spending review Topic 3","Column37","2025/26 From - Spending review Topic 3",null,null,null,null,null,null,"Current payments","Goods and services","Rental and hiring",0,1]
[38,"38","Tourism",null,null,3,3,2,"03","03","02","03|03|02","Cooperative Governance","Institutional Development","Municipal Human Resource Management System",null,null,null,null,null,null,null,null,null,null,null,null,null,null,"2025/26 From - Spending review Topic 3","Column38","2026/27 From - Spending review Topic 3",null,null,null,null,null,null,"Current payments","Goods and services","Science and technological services",0,1]
[39,"39","Trade, Industry and Competition",null,null,3,3,3,"03","03","03","03|03|03","Cooperative Governance","Institutional Development","Municipal Revenue Enhancement and Audit Outcomes",null,null,null,null,null,null,null,null,null,null,null,null,null,null,"2023/24 To - Spending review Topic 3","Column39","2024/25 To - Spending review Topic 3",null,null,null,null,null,null,"Current payments","Goods and services","Training and development",0,1]
[40,"40","Transport",null,null,3,3,4,"03","03","04","03|03|04","Cooperative Governance","Institutional Development","Citizen Engagement",null,null,null,null,null,null,null,null,null,null,null,null,null,null,"2024/25 To - Spending review Topic 3","Column40","2025/26 To - Spending review Topic 3",null,null,null,null,null,null,"Current payments","Goods and services","Transport provided: Departmental activity",0,1]
[41,"41","Water and Sanitation",null,null,3,3,5,"03","03","05","03|03|05","Cooperative Governance","Institutional Development","Anti-Corruption and Good Governance",null,null,null,null,null,null,null,null,null,null,null,null,null,null,"2025/26 To - Spending review Topic 3","Column41","2026/27 To - Spending review Topic 3",null,null,null,null,null,null,"Current payments","Goods and services","Travel and subsistence",0,1]
[42,"42","Centre for Public Service Innovation",null,null,3,3,6,"03","03","06","03|03|06","Cooperative Governance","Institutional Development","Municipal Property Rates",null,null,null,null,null,null,null,null,null,null,null,null,null,null,"2023/24 From - Spending review Topic 4","Column42","2024/25 From - Spending review Topic 4",null,null,null,null,null,null,"Current payments","Goods and services","Venues and facilities",0,1]
[50,"50","Below the line items",null,null,3,3,7,"03","03","07","03|03|07","Cooperative Governance","Institutional Development","Municipal Governance",null,null,null,null,null,null,null,null,null,null,null,null,null,null,"2024/25 From - Spending review Topic 4","Column43","2025/26 From - Spending review Topic 4",null,null,null,null,null,null,"Current payments","Interest and rent on land","Interest (Incl. interest on unitary payments (PPP))",1,1]
[null,null,null,null,null,3,3,8,"03","03","08","03|03|08","Cooperative Governance","Institutional Development","Local Government Equitable Share",null,null,null,null,null,null,null,null,null,null,null,null,null,null,"2025/26 From - Spending review Topic 4","Column44","2026/27 From - Spending review Topic 4",null,null,null,null,null,null,"Current payments","Interest and rent on land","Rent on land",1,1]
[null,null,null,null,null,3,3,9,"03","03","09","03|03|09","Cooperative Governance","Institutional Development","South African Local Government Association",null,null,null,null,null,null,null,null,null,null,null,null,null,null,"2023/24 To - Spending review Topic 4","Column45","2024/25 To - Spending review Topic 4",null,null,null,null,null,null,"Transfers and subsidies","Provinces and municipalities","Municipalities",1,1]
[null,null,null,null,null,3,3,10,"03","03","10","03|03|10","Cooperative Governance","Institutional Development","United Cities and Local Government of Africa",null,null,null,null,null,null,null,null,null,null,null,null,null,null,"2024/25 To - Spending review Topic 4","Column46","2025/26 To - Spending review Topic 4",null,null,null,null,null,null,"Transfers and subsidies","Provinces and municipalities","Provinces",1,1]
[null,null,null,null,null,3,3,11,"03","03","11","03|03|11","Cooperative Governance","Institutional Development","Municipal Systems Improvement Grant",null,null,null,null,null,null,null,null,null,null,null,null,null,null,"2025/26 To - Spending review Topic 4","Column47","2026/27 To - Spending review Topic 4",null,null,null,null,null,null,"Transfers and subsidies","Departmental agencies and accounts","Social security funds",1,1]
[null,null,null,null,null,3,4,1,"03","04","01","03|04|01","Cooperative Governance","National Disaster Management Centre","Management: Head of the National Disaster Management Centre",null,null,null,null,null,null,null,null,null,null,null,null,null,null,"2023/24 From - Other reallocations","Column48","2024/25 From - Other reallocations",null,null,null,null,null,null,"Transfers and subsidies","Departmental agencies and accounts","Departmental agencies (non-business entities)",1,1]
[null,null,null,null,null,3,4,2,"03","04","02","03|04|02","Cooperative Governance","National Disaster Management Centre","Disaster Risk Reduction, Capacity Building and Intervention",null,null,null,null,null,null,null,null,null,null,null,null,null,null,"2024/25 From - Other reallocations","Column49","2025/26 From - Other reallocations",null,null,null,null,null,null,"Transfers and subsidies","Higher education institutions","Higher education institutions",1,1]
[null,null,null,null,null,3,4,3,"03","04","03","03|04|03","Cooperative Governance","National Disaster Management Centre","Legislation and Policy Management",null,null,null,null,null,null,null,null,null,null,null,null,null,null,"2025/26 From - Other reallocations","Column50","2026/27 From - Other reallocations",null,null,null,null,null,null,"Transfers and subsidies","Foreign governments and international organisations","Foreign governments and international organisations",1,1]
[null,null,null,null,null,3,4,4,"03","04","04","03|04|04","Cooperative Governance","National Disaster Management Centre","Integrated Provincial Disaster Management Support, Monitoring and Evaluation Systems",null,null,null,null,null,null,null,null,null,null,null,null,null,null,"2023/24 To - Other reallocations","Column51","2024/25 To - Other reallocations",null,null,null,null,null,null,"Transfers and subsidies","Public corporations and private enterprises","Private enterprises",1,1]
[null,null,null,null,null,3,4,5,"03","04","05","03|04|05","Cooperative Governance","National Disaster Management Centre","Fire Services",null,null,null,null,null,null,null,null,null,null,null,null,null,null,"2024/25 To - Other reallocations","Column52","2025/26 To - Other reallocations",null,null,null,null,null,null,"Transfers and subsidies","Public corporations and private enterprises","Public corporations",1,1]
[null,null,null,null,null,3,4,6,"03","04","06","03|04|06","Cooperative Governance","National Disaster Management Centre","Information Technology, Intelligence and Information Management Systems",null,null,null,null,null,null,null,null,null,null,null,null,null,null,"2025/26 To - Other reallocations","Column53","2026/27 To - Other reallocations",null,null,null,null,null,null,"Transfers and subsidies","Non-profit institutions","Non-profit institutions",1,1]
[null,null,null,null,null,3,4,7,"03","04","07","03|04|07","Cooperative Governance","National Disaster Management Centre","Disaster Response Grant",null,null,null,null,null,null,null,null,null,null,null,null,null,null,"2022/23 Reduction","Column54","2023/24 Reduction",null,null,null,null,null,null,"Transfers and subsidies","Households","Other transfers to households",1,1]
[null,null,null,null,null,3,4,8,"03","04","08","03|04|08","Cooperative Governance","National Disaster Management Centre","Municipal disaster recovery grant",null,null,null,null,null,null,null,null,null,null,null,null,null,null,"2023/24 Reduction","Column55","2024/25 Reduction",null,null,null,null,null,null,"Transfers and subsidies","Households","Social benefits",1,1]
[null,null,null,null,null,3,4,9,"03","04","09","03|04|09","Cooperative Governance","National Disaster Management Centre","Provincial Disaster Response Grant",null,null,null,null,null,null,null,null,null,null,null,null,null,null,"2024/25 Reduction","Column56","2025/26 Reduction",null,null,null,null,null,null,"Payments for capital assets","Buildings and other fixed structures","Buildings",1,1]
[null,null,null,null,null,3,5,1,"03","05","01","03|05|01","Cooperative Governance","Community Work Programme","Management: Community Work Programme",null,null,null,null,null,null,null,null,null,null,null,null,null,null,"2025/26 Reduction","Column57","2026/27 Reduction",null,null,null,null,null,null,"Payments for capital assets","Buildings and other fixed structures","Other fixed structures",1,1]
[null,null,null,null,null,3,5,2,"03","05","02","03|05|02","Cooperative Governance","Community Work Programme","Programme Coordination",null,null,null,null,null,null,null,null,null,null,null,null,null,null,"2023/24 From - Total","Column58","2024/25 From - Total",null,null,null,null,null,null,"Payments for capital assets","Machinery and equipment","Other machinery and equipment",1,1]
[null,null,null,null,null,3,5,3,"03","05","03","03|05|03","Cooperative Governance","Community Work Programme","Partnerships, Norms, Standards and Innovation",null,null,null,null,null,null,null,null,null,null,null,null,null,null,"2024/25 From - Total","Column59","2025/26 From - Total",null,null,null,null,null,null,"Payments for capital assets","Machinery and equipment","Transport equipment",1,1]
[null,null,null,null,null,4,1,1,"04","01","01","04|01|01","Government Communication and Information System","Administration","Departmental Management",null,null,null,null,null,null,null,null,null,null,null,null,null,null,"2025/26 From - Total","Column60","2026/27 From - Total",null,null,null,null,null,null,"Payments for capital assets","Heritage assets","Heritage assets",1,1]
[null,null,null,null,null,4,1,2,"04","01","02","04|01|02","Government Communication and Information System","Administration","Corporate Services",null,null,null,null,null,null,null,null,null,null,null,null,null,null,"2023/24 To - Total","Column61","2024/25 To - Total",null,null,null,null,null,null,"Payments for capital assets","Specialised military assets","Specialised military assets",1,1]
[null,null,null,null,null,4,1,3,"04","01","03","04|01|03","Government Communication and Information System","Administration","Financial Administration",null,null,null,null,null,null,null,null,null,null,null,null,null,null,"2024/25 To - Total","Column62","2025/26 To - Total",null,null,null,null,null,null,"Payments for capital assets","Biological assets","Biological assets",1,1]
[null,null,null,null,null,4,1,4,"04","01","04","04|01|04","Government Communication and Information System","Administration","Internal Audit",null,null,null,null,null,null,null,null,null,null,null,null,null,null,"2025/26 To - Total","Column63","2026/27 To - Total",null,null,null,null,null,null,"Payments for capital assets","Land and sub-soil assets","Land and sub-soil assets",1,1]
[null,null,null,null,null,4,1,6,"04","01","06","04|01|06","Government Communication and Information System","Administration","Office Accommodation",null,null,null,null,null,null,null,null,null,null,null,null,null,null,"2023/24 Total decrease","Column64","2024/25 Total decrease",null,null,null,null,null,null,"Payments for capital assets","Software and other intangible assets","Software and other intangible assets",1,1]
[null,null,null,null,null,4,2,1,"04","02","01","04|02|01","Government Communication and Information System","Content Processing and Dissemination","Programme Management for Content Processing and Dissemination",null,null,null,null,null,null,null,null,null,null,null,null,null,null,"2024/25 Total decrease","Column65","2025/26 Total decrease",null,null,null,null,null,null,"Payments for financial assets","Payments for financial assets","Payments for financial assets",1,1]
[null,null,null,null,null,4,2,2,"04","02","02","04|02|02","Government Communication and Information System","Content Processing and Dissemination","Policy and Research",null,null,null,null,null,null,null,null,null,null,null,null,null,null,"2025/26 Total decrease","Column66","2026/27 Total decrease"]
[null,null,null,null,null,4,2,3,"04","02","03","04|02|03","Government Communication and Information System","Content Processing and Dissemination","Products and Platforms",null,null,null,null,null,null,null,null,null,null,null,null,null,null,"2022/23 Total change","Column67","2023/24 Total change"]
[null,null,null,null,null,4,2,4,"04","02","04","04|02|04","Government Communication and Information System","Content Processing and Dissemination","Communication Service Agency",null,null,null,null,null,null,null,null,null,null,null,null,null,null,"2023/24 Total change","Column68","2024/25 Total change"]
[null,null,null,null,null,4,2,5,"04","02","05","04|02|05","Government Communication and Information System","Content Processing and Dissemination","Entity Oversight",null,null,null,null,null,null,null,null,null,null,null,null,null,null,"2024/25 Total change","Column69","2025/26 Total change"]
[null,null,null,null,null,4,2,6,"04","02","06","04|02|06","Government Communication and Information System","Content Processing and Dissemination","Media Policy",null,null,null,null,null,null,null,null,null,null,null,null,null,null,"2025/26 Total change","Column70","2026/27 Total change"]
[null,null,null,null,null,4,3,1,"04","03","01","04|03|01","Government Communication and Information System","Intergovernmental Coordination and Stakeholder Management","Programme Management for Intergovernmental Coordination and Stakeholder Management",null,null,null,null,null,null,null,null,null,null,null,null,null,null,"2022/23 Revised baseline","Column71","2023/24 Revised baseline"]
[null,null,null,null,null,4,3,2,"04","03","02","04|03|02","Government Communication and Information System","Intergovernmental Coordination and Stakeholder Management","Provincial and Local Liaison",null,null,null,null,null,null,null,null,null,null,null,null,null,null,"2023/24 Revised baseline","Column72","2024/25 Revised baseline"]
[null,null,null,null,null,4,3,3,"04","03","03","04|03|03","Government Communication and Information System","Intergovernmental Coordination and Stakeholder Management","Media Engagement",null,null,null,null,null,null,null,null,null,null,null,null,null,null,"2024/25 Revised baseline","Column73","2025/26 Revised baseline"]
[null,null,null,null,null,4,3,4,"04","03","04","04|03|04","Government Communication and Information System","Intergovernmental Coordination and Stakeholder Management","Cluster Supervision (Human Development, Social Protection, and Governance and Administration)",null,null,null,null,null,null,null,null,null,null,null,null,null,null,"2025/26 Revised baseline","Column74","2026/27 Revised baseline"]
[null,null,null,null,null,4,3,5,"04","03","05","04|03|05","Government Communication and Information System","Intergovernmental Coordination and Stakeholder Management","Cluster Supervision (Economic and Infrastructure, Justice and International)"]
[null,null,null,null,null,5,1,1,"05","01","01","05|01|01","Home Affairs","Administration","Ministry"]
[null,null,null,null,null,5,1,2,"05","01","02","05|01|02","Home Affairs","Administration","Management Support Services"]
[null,null,null,null,null,5,1,3,"05","01","03","05|01|03","Home Affairs","Administration","Corporate Services"]
[null,null,null,null,null,5,1,4,"05","01","04","05|01|04","Home Affairs","Administration","Transversal Information Technology Management"]
[null,null,null,null,null,5,1,5,"05","01","05","05|01|05","Home Affairs","Administration","Office Accommodation"]
[null,null,null,null,null,5,2,1,"05","02","01","05|02|01","Home Affairs","Citizen Affairs","Citizen Affairs Management"]
[null,null,null,null,null,5,2,2,"05","02","02","05|02|02","Home Affairs","Citizen Affairs","Status Services"]
[null,null,null,null,null,5,2,3,"05","02","03","05|02|03","Home Affairs","Citizen Affairs","Identification Services"]
[null,null,null,null,null,5,2,4,"05","02","04","05|02|04","Home Affairs","Citizen Affairs","Service Delivery to Provinces"]
[null,null,null,null,null,5,3,1,"05","03","01","05|03|01","Home Affairs","Immigration Affairs","Immigration Affairs Management"]
[null,null,null,null,null,5,3,2,"05","03","02","05|03|02","Home Affairs","Immigration Affairs","Admission Services"]
[null,null,null,null,null,5,3,3,"05","03","03","05|03|03","Home Affairs","Immigration Affairs","Immigration Services"]
[null,null,null,null,null,5,3,4,"05","03","04","05|03|04","Home Affairs","Immigration Affairs","Asylum Seekers"]
[null,null,null,null,null,5,4,1,"05","04","01","05|04|01","Home Affairs","Institutional Support and Transfers","Border Management Authority"]
[null,null,null,null,null,5,4,2,"05","04","02","05|04|02","Home Affairs","Institutional Support and Transfers","Electoral Commission"]
[null,null,null,null,null,5,4,3,"05","04","03","05|04|03","Home Affairs","Institutional Support and Transfers","Represented Political Parties' Fund"]
[null,null,null,null,null,6,1,1,"06","01","01","06|01|01","International Relations and Cooperation","Administration","Ministry"]
[null,null,null,null,null,6,1,2,"06","01","02","06|01|02","International Relations and Cooperation","Administration","Departmental Management"]
[null,null,null,null,null,6,1,3,"06","01","03","06|01|03","International Relations and Cooperation","Administration","Audit Services"]
[null,null,null,null,null,6,1,4,"06","01","04","06|01|04","International Relations and Cooperation","Administration","Financial Management"]
[null,null,null,null,null,6,1,5,"06","01","05","06|01|05","International Relations and Cooperation","Administration","Corporate Services"]
[null,null,null,null,null,6,1,6,"06","01","06","06|01|06","International Relations and Cooperation","Administration","Diplomatic Training, Research and Development"]
[null,null,null,null,null,6,1,7,"06","01","07","06|01|07","International Relations and Cooperation","Administration","Foreign Fixed Assets Management"]
[null,null,null,null,null,6,1,8,"06","01","08","06|01|08","International Relations and Cooperation","Administration","Office Accommodation"]
[null,null,null,null,null,6,2,1,"06","02","01","06|02|01","International Relations and Cooperation","International Relations","Africa"]
[null,null,null,null,null,6,2,2,"06","02","02","06|02|02","International Relations and Cooperation","International Relations","Asia and Middle East"]
[null,null,null,null,null,6,2,3,"06","02","03","06|02|03","International Relations and Cooperation","International Relations","Americas and Caribbean"]
[null,null,null,null,null,6,2,4,"06","02","04","06|02|04","International Relations and Cooperation","International Relations","Europe"]
[null,null,null,null,null,6,3,1,"06","03","01","06|03|01","International Relations and Cooperation","International Cooperation","Global System of Governance"]
[null,null,null,null,null,6,3,2,"06","03","02","06|03|02","International Relations and Cooperation","International Cooperation","Continental Cooperation"]
[null,null,null,null,null,6,3,3,"06","03","03","06|03|03","International Relations and Cooperation","International Cooperation","South-South Cooperation"]
[null,null,null,null,null,6,3,4,"06","03","04","06|03|04","International Relations and Cooperation","International Cooperation","North-South Dialogue"]
[null,null,null,null,null,6,4,1,"06","04","01","06|04|01","International Relations and Cooperation","Public Diplomacy and Protocol Services","Public Diplomacy"]
[null,null,null,null,null,6,4,2,"06","04","02","06|04|02","International Relations and Cooperation","Public Diplomacy and Protocol Services","Protocol Services"]
[null,null,null,null,null,6,5,1,"06","05","01","06|05|01","International Relations and Cooperation","International Transfers","Departmental Agencies"]
[null,null,null,null,null,6,5,2,"06","05","02","06|05|02","International Relations and Cooperation","International Transfers","Membership contribution"]
[null,null,null,null,null,7,1,1,"07","01","01","07|01|01","National School of Government","Administration","Management"]
[null,null,null,null,null,7,1,2,"07","01","02","07|01|02","National School of Government","Administration","Corporate Services"]
[null,null,null,null,null,7,1,3,"07","01","03","07|01|03","National School of Government","Administration","Property Management"]
[null,null,null,null,null,7,2,1,"07","02","01","07|02|01","National School of Government","Public Sector Organisational and Staff Development","National School of Government Training Trading Account"]
[null,null,null,null,null,8,1,1,"08","01","01","08|01|01","National Treasury","Administration","Ministry"]
[null,null,null,null,null,8,1,2,"08","01","02","08|01|02","National Treasury","Administration","Departmental Management"]
[null,null,null,null,null,8,1,3,"08","01","03","08|01|03","National Treasury","Administration","Corporate Services"]
[null,null,null,null,null,8,1,4,"08","01","04","08|01|04","National Treasury","Administration","Enterprise-wide Risk Management"]
[null,null,null,null,null,8,1,5,"08","01","05","08|01|05","National Treasury","Administration","Financial Administration"]
[null,null,null,null,null,8,1,6,"08","01","06","08|01|06","National Treasury","Administration","Legal Services"]
[null,null,null,null,null,8,1,7,"08","01","07","08|01|07","National Treasury","Administration","Internal Audit"]
[null,null,null,null,null,8,1,8,"08","01","08","08|01|08","National Treasury","Administration","Communications"]
[null,null,null,null,null,8,1,9,"08","01","09","08|01|09","National Treasury","Administration","Office Accommodation"]
[null,null,null,null,null,8,2,1,"08","02","01","08|02|01","National Treasury","Economic Policy, Tax, Financial Regulation and Research","Programme Management for Economic Policy, Tax, Financial Regulation and Research"]
[null,null,null,null,null,8,2,3,"08","02","03","08|02|03","National Treasury","Economic Policy, Tax, Financial Regulation and Research","Financial Sector Policy"]
[null,null,null,null,null,8,2,4,"08","02","04","08|02|04","National Treasury","Economic Policy, Tax, Financial Regulation and Research","Tax Policy"]
[null,null,null,null,null,8,2,5,"08","02","05","08|02|05","National Treasury","Economic Policy, Tax, Financial Regulation and Research","Economic Policy"]
[null,null,null,null,null,8,2,6,"08","02","06","08|02|06","National Treasury","Economic Policy, Tax, Financial Regulation and Research","Cooperative Banks Development Agency"]
[null,null,null,null,null,8,3,1,"08","03","01","08|03|01","National Treasury","Public Finance and Budget Management","Programme Management for Public Finance and Budget Management"]
[null,null,null,null,null,8,3,2,"08","03","02","08|03|02","National Treasury","Public Finance and Budget Management","Public Finance"]
[null,null,null,null,null,8,3,3,"08","03","03","08|03|03","National Treasury","Public Finance and Budget Management","Budget Office and Coordination"]
[null,null,null,null,null,8,3,4,"08","03","04","08|03|04","National Treasury","Public Finance and Budget Management","Intergovernmental Relations"]
[null,null,null,null,null,8,3,5,"08","03","05","08|03|05","National Treasury","Public Finance and Budget Management","Financial and Fiscal Commission"]
[null,null,null,null,null,8,3,6,"08","03","06","08|03|06","National Treasury","Public Finance and Budget Management","Facilitation of Conditional Grants"]
[null,null,null,null,null,8,3,7,"08","03","07","08|03|07","National Treasury","Public Finance and Budget Management","Catalytic Infrastructure and Development Support Programme"]
[null,null,null,null,null,8,3,8,"08","03","08","08|03|08","National Treasury","Public Finance and Budget Management","Government Technical Advisory Centre"]
[null,null,null,null,null,8,4,1,"08","04","01","08|04|01","National Treasury","Asset and Liability Management","Programme Management for Asset and Liability Management"]
[null,null,null,null,null,8,4,2,"08","04","02","08|04|02","National Treasury","Asset and Liability Management","State-owned Entity Financial Management and Governance"]
[null,null,null,null,null,8,4,3,"08","04","03","08|04|03","National Treasury","Asset and Liability Management","Government Debt Management"]
[null,null,null,null,null,8,4,4,"08","04","04","08|04|04","National Treasury","Asset and Liability Management","Financial Operations"]
[null,null,null,null,null,8,4,5,"08","04","05","08|04|05","National Treasury","Asset and Liability Management","Strategy and Risk Management"]
[null,null,null,null,null,8,5,1,"08","05","01","08|05|01","National Treasury","Financial Accounting and Supply Chain Management Systems","Programme Management for Financial Accounting and Supply Chain Management Systems"]
[null,null,null,null,null,8,5,2,"08","05","02","08|05|02","National Treasury","Financial Accounting and Supply Chain Management Systems","Office of the Chief Procurement Officer"]
[null,null,null,null,null,8,5,3,"08","05","03","08|05|03","National Treasury","Financial Accounting and Supply Chain Management Systems","Financial Systems"]
[null,null,null,null,null,8,5,4,"08","05","04","08|05|04","National Treasury","Financial Accounting and Supply Chain Management Systems","Financial Reporting for National Accounts"]
[null,null,null,null,null,8,5,5,"08","05","05","08|05|05","National Treasury","Financial Accounting and Supply Chain Management Systems","Financial Management Policy and Compliance Improvement"]
[null,null,null,null,null,8,5,6,"08","05","06","08|05|06","National Treasury","Financial Accounting and Supply Chain Management Systems","Audit Statutory Bodies"]
[null,null,null,null,null,8,5,7,"08","05","07","08|05|07","National Treasury","Financial Accounting and Supply Chain Management Systems","Service Charges: Commercial Banks"]
[null,null,null,null,null,8,6,1,"08","06","01","08|06|01","National Treasury","International Financial Relations","Programme Management for International Financial Relations"]
[null,null,null,null,null,8,6,2,"08","06","02","08|06|02","National Treasury","International Financial Relations","International Economic Cooperation"]
[null,null,null,null,null,8,6,3,"08","06","03","08|06|03","National Treasury","International Financial Relations","African Integration and Support"]
[null,null,null,null,null,8,6,4,"08","06","04","08|06|04","National Treasury","International Financial Relations","International Development Funding Institutions"]
[null,null,null,null,null,8,6,5,"08","06","05","08|06|05","National Treasury","International Financial Relations","International Projects"]
[null,null,null,null,null,8,7,1,"08","07","01","08|07|01","National Treasury","Civil and Military Pensions, Contributions to Funds and Other Benefits","Government Pensions Administration Agency"]
[null,null,null,null,null,8,7,2,"08","07","02","08|07|02","National Treasury","Civil and Military Pensions, Contributions to Funds and Other Benefits","Civil Pensions and Contributions to Funds"]
[null,null,null,null,null,8,7,3,"08","07","03","08|07|03","National Treasury","Civil and Military Pensions, Contributions to Funds and Other Benefits","Military Pensions and Other Benefits"]
[null,null,null,null,null,8,8,1,"08","08","01","08|08|01","National Treasury","Revenue Administration","South African Revenue Service"]
[null,null,null,null,null,8,9,1,"08","09","01","08|09|01","National Treasury","Financial Intelligence and State Security","Financial Intelligence Centre"]
[null,null,null,null,null,8,9,2,"08","09","02","08|09|02","National Treasury","Financial Intelligence and State Security","Secret Services"]
[null,null,null,null,null,8,16,1,"08","16","01","08|16|01","National Treasury","Direct charge against the National Revenue Fund","Provincial Equitable Share"]
[null,null,null,null,null,8,16,2,"08","16","02","08|16|02","National Treasury","Direct charge against the National Revenue Fund","Debt-service costs"]
[null,null,null,null,null,8,16,3,"08","16","03","08|16|03","National Treasury","Direct charge against the National Revenue Fund","General Fuel Levy Sharing with Metropolitan Municipalities"]
[null,null,null,null,null,8,16,4,"08","16","04","08|16|04","National Treasury","Direct charge against the National Revenue Fund","National Revenue Fund payments"]
[null,null,null,null,null,8,16,5,"08","16","05","08|16|05","National Treasury","Direct charge against the National Revenue Fund","Auditor-General of South Africa"]
[null,null,null,null,null,8,16,6,"08","16","06","08|16|06","National Treasury","Direct charge against the National Revenue Fund","Public Finance Management Act (1999) section 70 payment: Land and Agricultural Development Bank of South Africa"]
[null,null,null,null,null,8,16,7,"08","16","07","08|16|07","National Treasury","Direct charge against the National Revenue Fund","Section 6 of the Appropriation Act no. 10 of 2021: South African Special Risks Insurance Association (SASRIA)"]
[null,null,null,null,null,8,16,8,"08","16","08","08|16|08","National Treasury","Direct charge against the National Revenue Fund","Section 16 of the PFMA payment: South African Special Risks Insurance Association (SASRIA)."]
[null,null,null,null,null,9,1,1,"09","01","01","09|01|01","Planning, Monitoring and Evaluation","Administration","Ministerial Support"]
[null,null,null,null,null,9,1,2,"09","01","02","09|01|02","Planning, Monitoring and Evaluation","Administration","Departmental Management"]
[null,null,null,null,null,9,1,3,"09","01","03","09|01|03","Planning, Monitoring and Evaluation","Administration","Corporate and Financial Services"]
[null,null,null,null,null,9,2,1,"09","02","01","09|02|01","Planning, Monitoring and Evaluation","National Planning Coordination","Management: National Planning Coordination"]
[null,null,null,null,null,9,2,2,"09","02","02","09|02|02","Planning, Monitoring and Evaluation","National Planning Coordination","Planning Coordination"]
[null,null,null,null,null,9,3,1,"09","03","01","09|03|01","Planning, Monitoring and Evaluation","Sector Monitoring Services","Management: Sector Monitoring Services"]
[null,null,null,null,null,9,3,2,"09","03","02","09|03|02","Planning, Monitoring and Evaluation","Sector Monitoring Services","Outcomes Monitoring and Support"]
[null,null,null,null,null,9,3,3,"09","03","03","09|03|03","Planning, Monitoring and Evaluation","Sector Monitoring Services","Intervention Support"]
[null,null,null,null,null,9,4,1,"09","04","01","09|04|01","Planning, Monitoring and Evaluation","Public Sector Monitoring and Capacity Development","Management: Public Sector Monitoring and Capacity Development"]
[null,null,null,null,null,9,4,2,"09","04","02","09|04|02","Planning, Monitoring and Evaluation","Public Sector Monitoring and Capacity Development","Public Service Monitoring and Capacity Development"]
[null,null,null,null,null,9,5,1,"09","05","01","09|05|01","Planning, Monitoring and Evaluation","Evidence and Knowledge Systems","Management: Evidence and Knowledge Systems"]
[null,null,null,null,null,9,5,2,"09","05","02","09|05|02","Planning, Monitoring and Evaluation","Evidence and Knowledge Systems","Evaluation, Research, Knowledge and Data Systems"]
[null,null,null,null,null,10,1,1,"10","01","01","10|01|01","Public Enterprises","Administration","Ministry"]
[null,null,null,null,null,10,1,2,"10","01","02","10|01|02","Public Enterprises","Administration","Management"]
[null,null,null,null,null,10,1,3,"10","01","03","10|01|03","Public Enterprises","Administration","Communications"]
[null,null,null,null,null,10,1,4,"10","01","04","10|01|04","Public Enterprises","Administration","Chief Financial Officer"]
[null,null,null,null,null,10,1,5,"10","01","05","10|01|05","Public Enterprises","Administration","Human Resources"]
[null,null,null,null,null,10,1,6,"10","01","06","10|01|06","Public Enterprises","Administration","Internal Audit"]
[null,null,null,null,null,10,1,7,"10","01","07","10|01|07","Public Enterprises","Administration","Corporate Services"]
[null,null,null,null,null,10,1,8,"10","01","08","10|01|08","Public Enterprises","Administration","Office Accommodation"]
[null,null,null,null,null,10,2,1,"10","02","01","10|02|01","Public Enterprises","State-owned Companies Governance Assurance and Performance","Management"]
[null,null,null,null,null,10,2,2,"10","02","02","10|02|02","Public Enterprises","State-owned Companies Governance Assurance and Performance","Legal"]
[null,null,null,null,null,10,2,3,"10","02","03","10|02|03","Public Enterprises","State-owned Companies Governance Assurance and Performance","Governance"]
[null,null,null,null,null,10,2,4,"10","02","04","10|02|04","Public Enterprises","State-owned Companies Governance Assurance and Performance","Financial Assessment and Investment Support"]
[null,null,null,null,null,10,3,1,"10","03","01","10|03|01","Public Enterprises","Business Enhancement, Transformation and Industrialisation","Energy Resources"]
[null,null,null,null,null,10,3,2,"10","03","02","10|03|02","Public Enterprises","Business Enhancement, Transformation and Industrialisation","Research and Economic Modelling"]
[null,null,null,null,null,10,3,3,"10","03","03","10|03|03","Public Enterprises","Business Enhancement, Transformation and Industrialisation","Transport and Defence"]
[null,null,null,null,null,10,3,4,"10","03","04","10|03|04","Public Enterprises","Business Enhancement, Transformation and Industrialisation","Business Enhancement Services"]
[null,null,null,null,null,10,16,1,"10","16","01","10|16|01","Public Enterprises","Direct charge against the National Revenue Fund","Section 70 of the Public Finance Management Act (1999) payment: South African Express Airways SOC Ltd"]
[null,null,null,null,null,10,16,2,"10","16","02","10|16|02","Public Enterprises","Direct charge against the National Revenue Fund","Section 70 of the Public Finance Management Act (1999) payment: South African Airways SOC Ltd"]
[null,null,null,null,null,10,16,3,"10","16","03","10|16|03","Public Enterprises","Direct charge against the National Revenue Fund","Section 70 of the Public Finance Management Act (1999) payment: Denel SOC Ltd"]
[null,null,null,null,null,11,1,1,"11","01","01","11|01|01","Public Service and Administration","Administration","Ministry"]
[null,null,null,null,null,11,1,2,"11","01","02","11|01|02","Public Service and Administration","Administration","Departmental Management"]
[null,null,null,null,null,11,1,3,"11","01","03","11|01|03","Public Service and Administration","Administration","Corporate Services"]
[null,null,null,null,null,11,1,4,"11","01","04","11|01|04","Public Service and Administration","Administration","Finance Administration"]
[null,null,null,null,null,11,1,5,"11","01","05","11|01|05","Public Service and Administration","Administration","Internal Audit"]
[null,null,null,null,null,11,1,6,"11","01","06","11|01|06","Public Service and Administration","Administration","Legal Services"]
[null,null,null,null,null,11,1,7,"11","01","07","11|01|07","Public Service and Administration","Administration","International Relations and Donor Funding"]
[null,null,null,null,null,11,1,8,"11","01","08","11|01|08","Public Service and Administration","Administration","Office Accommodation"]
[null,null,null,null,null,11,2,1,"11","02","01","11|02|01","Public Service and Administration","Human Resource Management and Development","Management: Human Resource Management and Development"]
[null,null,null,null,null,11,2,2,"11","02","02","11|02|02","Public Service and Administration","Human Resource Management and Development","Office of Standards and Compliance"]
[null,null,null,null,null,11,2,3,"11","02","03","11|02|03","Public Service and Administration","Human Resource Management and Development","Human Resource Planning, Employment and Performance Management"]
[null,null,null,null,null,11,2,4,"11","02","04","11|02|04","Public Service and Administration","Human Resource Management and Development","Human Resource Development"]
[null,null,null,null,null,11,2,5,"11","02","05","11|02|05","Public Service and Administration","Human Resource Management and Development","Transformation and Workplace Environment Management"]
[null,null,null,null,null,11,3,1,"11","03","01","11|03|01","Public Service and Administration","Negotiations, Labour Relations and Remuneration Management","Management: Negotiations, Labour Relations and Remuneration Management"]
[null,null,null,null,null,11,3,2,"11","03","02","11|03|02","Public Service and Administration","Negotiations, Labour Relations and Remuneration Management","Negotiations, Labour Relations and Dispute Management"]
[null,null,null,null,null,11,3,3,"11","03","03","11|03|03","Public Service and Administration","Negotiations, Labour Relations and Remuneration Management","Remuneration, Employment Conditions and Human Resource Systems"]
[null,null,null,null,null,11,3,4,"11","03","04","11|03|04","Public Service and Administration","Negotiations, Labour Relations and Remuneration Management","Government Employees Housing Scheme, Project Management Office"]
[null,null,null,null,null,11,3,5,"11","03","05","11|03|05","Public Service and Administration","Negotiations, Labour Relations and Remuneration Management","Organisational Development, Job Grading and Macro Organisation of the State"]
[null,null,null,null,null,11,3,6,"11","03","06","11|03|06","Public Service and Administration","Negotiations, Labour Relations and Remuneration Management","Public Administration Ethics, Integrity and Disciplinary Technical Assistance Unit"]
[null,null,null,null,null,11,4,1,"11","04","01","11|04|01","Public Service and Administration","e-Government Services and Information Management","Management: e-Government Services and Information Management"]
[null,null,null,null,null,11,4,2,"11","04","02","11|04|02","Public Service and Administration","e-Government Services and Information Management","e-Enablement and ICT Service Infrastructure Management"]
[null,null,null,null,null,11,4,3,"11","04","03","11|04|03","Public Service and Administration","e-Government Services and Information Management","Information and Stakeholder Management"]
[null,null,null,null,null,11,4,4,"11","04","04","11|04|04","Public Service and Administration","e-Government Services and Information Management","ICT Governance and Management"]
[null,null,null,null,null,11,4,5,"11","04","05","11|04|05","Public Service and Administration","e-Government Services and Information Management","Knowledge Management and Innovation"]
[null,null,null,null,null,11,5,1,"11","05","01","11|05|01","Public Service and Administration","Government Service Access and Improvement","Management: Government Service Access and Improvement"]
[null,null,null,null,null,11,5,2,"11","05","02","11|05|02","Public Service and Administration","Government Service Access and Improvement","Operations Management"]
[null,null,null,null,null,11,5,3,"11","05","03","11|05|03","Public Service and Administration","Government Service Access and Improvement","Service Delivery Improvement, Citizen Relations and Public Participation"]
[null,null,null,null,null,11,5,4,"11","05","04","11|05|04","Public Service and Administration","Government Service Access and Improvement","Service Access"]
[null,null,null,null,null,11,5,5,"11","05","05","11|05|05","Public Service and Administration","Government Service Access and Improvement","International Cooperation and Stakeholder Relations"]
[null,null,null,null,null,11,5,6,"11","05","06","11|05|06","Public Service and Administration","Government Service Access and Improvement","Centre for Public Service Innovation"]
[null,null,null,null,null,12,1,1,"12","01","01","12|01|01","Public Service Commission","Administration","Public Service Commission"]
[null,null,null,null,null,12,1,2,"12","01","02","12|01|02","Public Service Commission","Administration","Management"]
[null,null,null,null,null,12,1,3,"12","01","03","12|01|03","Public Service Commission","Administration","Corporate Services"]
[null,null,null,null,null,12,1,4,"12","01","04","12|01|04","Public Service Commission","Administration","Property Management"]
[null,null,null,null,null,12,1,5,"12","01","05","12|01|05","Public Service Commission","Administration","Chief Financial Officer"]
[null,null,null,null,null,12,2,1,"12","02","01","12|02|01","Public Service Commission","Leadership and Management Practices","Labour Relations Improvement"]
[null,null,null,null,null,12,2,2,"12","02","02","12|02|02","Public Service Commission","Leadership and Management Practices","Leadership and Human Resource Reviews"]
[null,null,null,null,null,12,2,3,"12","02","03","12|02|03","Public Service Commission","Leadership and Management Practices","Programme Management: Leadership and Management Practices"]
[null,null,null,null,null,12,3,1,"12","03","01","12|03|01","Public Service Commission","Monitoring and Evaluation","Governance Monitoring"]
[null,null,null,null,null,12,3,2,"12","03","02","12|03|02","Public Service Commission","Monitoring and Evaluation","Service Delivery and Compliance Evaluations"]
[null,null,null,null,null,12,3,3,"12","03","03","12|03|03","Public Service Commission","Monitoring and Evaluation","Programme Management: Monitoring and Evaluation"]
[null,null,null,null,null,12,4,1,"12","04","01","12|04|01","Public Service Commission","Integrity and Anti-corruption","Public Administration Investigations"]
[null,null,null,null,null,12,4,2,"12","04","02","12|04|02","Public Service Commission","Integrity and Anti-corruption","Professional Ethics"]
[null,null,null,null,null,12,4,3,"12","04","03","12|04|03","Public Service Commission","Integrity and Anti-corruption","Programme Management: Integrity and Anti-corruption"]
[null,null,null,null,null,13,1,1,"13","01","01","13|01|01","Public Works and Infrastructure","Administration","Ministry"]
[null,null,null,null,null,13,1,2,"13","01","02","13|01|02","Public Works and Infrastructure","Administration","Management"]
[null,null,null,null,null,13,1,3,"13","01","03","13|01|03","Public Works and Infrastructure","Administration","Corporate Services"]
[null,null,null,null,null,13,1,4,"13","01","04","13|01|04","Public Works and Infrastructure","Administration","Finance and Supply Chain Management"]
[null,null,null,null,null,13,1,5,"13","01","05","13|01|05","Public Works and Infrastructure","Administration","Office Accommodation"]
[null,null,null,null,null,13,2,1,"13","02","01","13|02|01","Public Works and Infrastructure","Intergovernmental Coordination","Monitoring, Evaluation and Reporting"]
[null,null,null,null,null,13,2,2,"13","02","02","13|02|02","Public Works and Infrastructure","Intergovernmental Coordination","Intergovernmental Relations and Coordination"]
[null,null,null,null,null,13,2,3,"13","02","03","13|02|03","Public Works and Infrastructure","Intergovernmental Coordination","Professional Services"]
[null,null,null,null,null,13,3,1,"13","03","01","13|03|01","Public Works and Infrastructure","Expanded Public Works Programme","Expanded Public Works Programme: Monitoring and Evaluation"]
[null,null,null,null,null,13,3,2,"13","03","02","13|03|02","Public Works and Infrastructure","Expanded Public Works Programme","Expanded Public Works Programme: Infrastructure"]
[null,null,null,null,null,13,3,3,"13","03","03","13|03|03","Public Works and Infrastructure","Expanded Public Works Programme","Expanded Public Works Programme: Operations"]
[null,null,null,null,null,13,3,4,"13","03","04","13|03|04","Public Works and Infrastructure","Expanded Public Works Programme","Expanded Public Works Programme: Partnership Support"]
[null,null,null,null,null,13,3,5,"13","03","05","13|03|05","Public Works and Infrastructure","Expanded Public Works Programme","Expanded Public Works Programme: Public Employment Coordinating Commission"]
[null,null,null,null,null,13,4,1,"13","04","01","13|04|01","Public Works and Infrastructure","Property and Construction Industry Policy and Research","Construction Policy Development Programme"]
[null,null,null,null,null,13,4,2,"13","04","02","13|04|02","Public Works and Infrastructure","Property and Construction Industry Policy and Research","Property Policy Development Programme"]
[null,null,null,null,null,13,4,4,"13","04","04","13|04|04","Public Works and Infrastructure","Property and Construction Industry Policy and Research","Construction Industry Development Board"]
[null,null,null,null,null,13,4,5,"13","04","05","13|04|05","Public Works and Infrastructure","Property and Construction Industry Policy and Research","Council for the Built Environment"]
[null,null,null,null,null,13,4,6,"13","04","06","13|04|06","Public Works and Infrastructure","Property and Construction Industry Policy and Research","Independent Development Trust"]
[null,null,null,null,null,13,4,7,"13","04","07","13|04|07","Public Works and Infrastructure","Property and Construction Industry Policy and Research","Construction Education and Training Authority"]
[null,null,null,null,null,13,4,8,"13","04","08","13|04|08","Public Works and Infrastructure","Property and Construction Industry Policy and Research","Property Management Trading Entity"]
[null,null,null,null,null,13,4,9,"13","04","09","13|04|09","Public Works and Infrastructure","Property and Construction Industry Policy and Research","Assistance to Organisations for the Preservation of National Memorials"]
[null,null,null,null,null,13,4,10,"13","04","10","13|04|10","Public Works and Infrastructure","Property and Construction Industry Policy and Research","Infrastructure Development Coordination"]
[null,null,null,null,null,13,5,1,"13","05","01","13|05|01","Public Works and Infrastructure","Prestige Policy","Prestige Accommodation and State Functions"]
[null,null,null,null,null,13,5,2,"13","05","02","13|05|02","Public Works and Infrastructure","Prestige Policy","Parliamentary Villages Management Board"]
[null,null,null,null,null,14,1,1,"14","01","01","14|01|01","Statistics South Africa","Administration","Departmental Management"]
[null,null,null,null,null,14,1,2,"14","01","02","14|01|02","Statistics South Africa","Administration","Corporate Services"]
[null,null,null,null,null,14,1,3,"14","01","03","14|01|03","Statistics South Africa","Administration","Financial Administration"]
[null,null,null,null,null,14,1,4,"14","01","04","14|01|04","Statistics South Africa","Administration","Internal Audit"]
[null,null,null,null,null,14,1,5,"14","01","05","14|01|05","Statistics South Africa","Administration","Office Accommodation"]
[null,null,null,null,null,14,2,1,"14","02","01","14|02|01","Statistics South Africa","Economic Statistics","Programme Management for Economic Statistics"]
[null,null,null,null,null,14,2,2,"14","02","02","14|02|02","Statistics South Africa","Economic Statistics","Business Cycle Indicators"]
[null,null,null,null,null,14,2,3,"14","02","03","14|02|03","Statistics South Africa","Economic Statistics","Structural Industry Statistics"]
[null,null,null,null,null,14,2,4,"14","02","04","14|02|04","Statistics South Africa","Economic Statistics","Price Statistics"]
[null,null,null,null,null,14,2,5,"14","02","05","14|02|05","Statistics South Africa","Economic Statistics","Private Sector Finance Statistics"]
[null,null,null,null,null,14,2,6,"14","02","06","14|02|06","Statistics South Africa","Economic Statistics","Government Finance Statistics"]
[null,null,null,null,null,14,2,7,"14","02","07","14|02|07","Statistics South Africa","Economic Statistics","National Accounts"]
[null,null,null,null,null,14,3,1,"14","03","01","14|03|01","Statistics South Africa","Population and Social Statistics","Programme Management for Population and Social Statistics"]
[null,null,null,null,null,14,3,2,"14","03","02","14|03|02","Statistics South Africa","Population and Social Statistics","Demographic and Population Statistics"]
[null,null,null,null,null,14,3,3,"14","03","03","14|03|03","Statistics South Africa","Population and Social Statistics","Health and Vital Statistics"]
[null,null,null,null,null,14,3,4,"14","03","04","14|03|04","Statistics South Africa","Population and Social Statistics","Social Statistics"]
[null,null,null,null,null,14,3,5,"14","03","05","14|03|05","Statistics South Africa","Population and Social Statistics","Labour Statistics"]
[null,null,null,null,null,14,3,6,"14","03","06","14|03|06","Statistics South Africa","Population and Social Statistics","Poverty and Inequality Statistics"]
[null,null,null,null,null,14,4,1,"14","04","01","14|04|01","Statistics South Africa","Methodology and Statistical Infrastructure","Programme Management for Methodology and Statistical Infrastructure"]
[null,null,null,null,null,14,4,2,"14","04","02","14|04|02","Statistics South Africa","Methodology and Statistical Infrastructure","Statistical Methods"]
[null,null,null,null,null,14,4,3,"14","04","03","14|04|03","Statistics South Africa","Methodology and Statistical Infrastructure","Statistical Standards"]
[null,null,null,null,null,14,4,4,"14","04","04","14|04|04","Statistics South Africa","Methodology and Statistical Infrastructure","Business Register"]
[null,null,null,null,null,14,4,5,"14","04","05","14|04|05","Statistics South Africa","Methodology and Statistical Infrastructure","Geography Frames and Services"]
[null,null,null,null,null,14,4,6,"14","04","06","14|04|06","Statistics South Africa","Methodology and Statistical Infrastructure","Survey Monitoring and Evaluation"]
[null,null,null,null,null,14,4,7,"14","04","07","14|04|07","Statistics South Africa","Methodology and Statistical Infrastructure","Innovation and Research"]
[null,null,null,null,null,14,5,1,"14","05","01","14|05|01","Statistics South Africa","Statistical Support and Informatics","Programme Management for Statistical Support and Informatics"]
[null,null,null,null,null,14,5,2,"14","05","02","14|05|02","Statistics South Africa","Statistical Support and Informatics","Communication and Marketing"]
[null,null,null,null,null,14,5,3,"14","05","03","14|05|03","Statistics South Africa","Statistical Support and Informatics","Business Modernisation"]
[null,null,null,null,null,14,5,4,"14","05","04","14|05|04","Statistics South Africa","Statistical Support and Informatics","Publication Services"]
[null,null,null,null,null,14,5,5,"14","05","05","14|05|05","Statistics South Africa","Statistical Support and Informatics","Information, Communication and Technology"]
[null,null,null,null,null,14,5,6,"14","05","06","14|05|06","Statistics South Africa","Statistical Support and Informatics","Analytical Studies"]
[null,null,null,null,null,14,6,1,"14","06","01","14|06|01","Statistics South Africa","Statistical Operations and Provincial Coordination","Programme Management for Statistical Operations and Provincial Coordination"]
[null,null,null,null,null,14,6,2,"14","06","02","14|06|02","Statistics South Africa","Statistical Operations and Provincial Coordination","Provincial and District Offices"]
[null,null,null,null,null,14,6,3,"14","06","03","14|06|03","Statistics South Africa","Statistical Operations and Provincial Coordination","Data Operations"]
[null,null,null,null,null,14,6,4,"14","06","04","14|06|04","Statistics South Africa","Statistical Operations and Provincial Coordination","Household Survey and Censuses"]
[null,null,null,null,null,14,7,1,"14","07","01","14|07|01","Statistics South Africa","South African National Statistics System","Programme Management for South African National Statistics System"]
[null,null,null,null,null,14,7,2,"14","07","02","14|07|02","Statistics South Africa","South African National Statistics System","Economic Subsystem"]
[null,null,null,null,null,14,7,3,"14","07","03","14|07|03","Statistics South Africa","South African National Statistics System","Social Subsystem"]
[null,null,null,null,null,14,7,4,"14","07","04","14|07|04","Statistics South Africa","South African National Statistics System","Independent Quality Assessment"]
[null,null,null,null,null,14,7,5,"14","07","05","14|07|05","Statistics South Africa","South African National Statistics System","Statistical Reporting"]
[null,null,null,null,null,14,7,6,"14","07","06","14|07|06","Statistics South Africa","South African National Statistics System","Data and Information Management"]
[null,null,null,null,null,15,1,1,"15","01","01","15|01|01","Traditional Affairs","Administration","Ministry"]
[null,null,null,null,null,15,1,2,"15","01","02","15|01|02","Traditional Affairs","Administration","Management of Traditional Affairs"]
[null,null,null,null,null,15,1,3,"15","01","03","15|01|03","Traditional Affairs","Administration","Corporate Services"]
[null,null,null,null,null,15,1,4,"15","01","04","15|01|04","Traditional Affairs","Administration","Internal Audit"]
[null,null,null,null,null,15,2,1,"15","02","01","15|02|01","Traditional Affairs","Research, Policy and Legislation","Management"]
[null,null,null,null,null,15,2,2,"15","02","02","15|02|02","Traditional Affairs","Research, Policy and Legislation","Policy and Legislation"]
[null,null,null,null,null,15,2,3,"15","02","03","15|02|03","Traditional Affairs","Research, Policy and Legislation","Research and Information Management"]
[null,null,null,null,null,15,3,1,"15","03","01","15|03|01","Traditional Affairs","Institutional Support and Coordination","Management"]
[null,null,null,null,null,15,3,2,"15","03","02","15|03|02","Traditional Affairs","Institutional Support and Coordination","Institutional Development and Capacity Building"]
[null,null,null,null,null,15,3,3,"15","03","03","15|03|03","Traditional Affairs","Institutional Support and Coordination","Intergovernmental Relations and Partnerships"]
[null,null,null,null,null,15,3,4,"15","03","04","15|03|04","Traditional Affairs","Institutional Support and Coordination","National House of Traditional Leaders"]
[null,null,null,null,null,15,3,5,"15","03","05","15|03|05","Traditional Affairs","Institutional Support and Coordination","Commission for the Promotion and Protection of the Rights of Cultural, Religious and Linguistic Communities"]
[null,null,null,null,null,15,3,6,"15","03","06","15|03|06","Traditional Affairs","Institutional Support and Coordination","Disputes and Claims Resolution"]
[null,null,null,null,null,16,1,1,"16","01","01","16|01|01","Basic Education","Administration","Ministry"]
[null,null,null,null,null,16,1,2,"16","01","02","16|01|02","Basic Education","Administration","Department Management"]
[null,null,null,null,null,16,1,3,"16","01","03","16|01|03","Basic Education","Administration","Corporate Services"]
[null,null,null,null,null,16,1,4,"16","01","04","16|01|04","Basic Education","Administration","Office of the Chief Financial Officer"]
[null,null,null,null,null,16,1,5,"16","01","05","16|01|05","Basic Education","Administration","Internal Audit"]
[null,null,null,null,null,16,1,6,"16","01","06","16|01|06","Basic Education","Administration","Office Accommodation"]
[null,null,null,null,null,16,2,1,"16","02","01","16|02|01","Basic Education","Curriculum Policy, Support and Monitoring","Programme Management: Curriculum Policy, Support and Monitoring"]
[null,null,null,null,null,16,2,2,"16","02","02","16|02|02","Basic Education","Curriculum Policy, Support and Monitoring","Curriculum Implementation and Monitoring"]
[null,null,null,null,null,16,2,3,"16","02","03","16|02|03","Basic Education","Curriculum Policy, Support and Monitoring","Curriculum and Quality Enhancement Programmes"]
[null,null,null,null,null,16,3,1,"16","03","01","16|03|01","Basic Education","Teachers, Education Human Resources and Institutional Development","Programme Management: Teachers, Education Human Resources and Institutional Development"]
[null,null,null,null,null,16,3,2,"16","03","02","16|03|02","Basic Education","Teachers, Education Human Resources and Institutional Development","Education Human Resources Management"]
[null,null,null,null,null,16,3,3,"16","03","03","16|03|03","Basic Education","Teachers, Education Human Resources and Institutional Development","Education Human Resources Development"]
[null,null,null,null,null,16,3,4,"16","03","04","16|03|04","Basic Education","Teachers, Education Human Resources and Institutional Development","Curriculum and Professional Development Unit"]
[null,null,null,null,null,16,4,1,"16","04","01","16|04|01","Basic Education","Planning, Information and Assessment","Programme Management: Planning, Information and Assessment"]
[null,null,null,null,null,16,4,2,"16","04","02","16|04|02","Basic Education","Planning, Information and Assessment","Financial Planning, Information and Management Systems"]
[null,null,null,null,null,16,4,3,"16","04","03","16|04|03","Basic Education","Planning, Information and Assessment","School Infrastructure"]
[null,null,null,null,null,16,4,4,"16","04","04","16|04|04","Basic Education","Planning, Information and Assessment","National Assessments and Public Examinations"]
[null,null,null,null,null,16,4,5,"16","04","05","16|04|05","Basic Education","Planning, Information and Assessment","National Education Evaluation and Development Unit"]
[null,null,null,null,null,16,4,6,"16","04","06","16|04|06","Basic Education","Planning, Information and Assessment","Planning and Delivery Oversight Unit"]
[null,null,null,null,null,16,5,1,"16","05","01","16|05|01","Basic Education","Educational Enrichment Services","Programme Management: Educational Enrichment Services"]
[null,null,null,null,null,16,5,2,"16","05","02","16|05|02","Basic Education","Educational Enrichment Services","Partnerships in Education"]
[null,null,null,null,null,16,5,3,"16","05","03","16|05|03","Basic Education","Educational Enrichment Services","Care and Support in Schools"]
[null,null,null,null,null,17,1,1,"17","01","01","17|01|01","Higher Education and Training","Administration","Department Management"]
[null,null,null,null,null,17,1,2,"17","01","02","17|01|02","Higher Education and Training","Administration","Corporate Management Services"]
[null,null,null,null,null,17,1,3,"17","01","03","17|01|03","Higher Education and Training","Administration","Office of the Chief Financial Officer"]
[null,null,null,null,null,17,1,4,"17","01","04","17|01|04","Higher Education and Training","Administration","Internal Audit"]
[null,null,null,null,null,17,1,5,"17","01","05","17|01|05","Higher Education and Training","Administration","Office Accommodation"]
[null,null,null,null,null,17,2,1,"17","02","01","17|02|01","Higher Education and Training","Planning, Policy and Strategy","Programme Management: Planning, Policy and Strategy"]
[null,null,null,null,null,17,2,2,"17","02","02","17|02|02","Higher Education and Training","Planning, Policy and Strategy","Human Resource Development Council of South Africa"]
[null,null,null,null,null,17,2,3,"17","02","03","17|02|03","Higher Education and Training","Planning, Policy and Strategy","Policy, Planning, Monitoring and Evaluation"]
[null,null,null,null,null,17,2,4,"17","02","04","17|02|04","Higher Education and Training","Planning, Policy and Strategy","International Relations"]
[null,null,null,null,null,17,2,5,"17","02","05","17|02|05","Higher Education and Training","Planning, Policy and Strategy","Legal and Legislative Services"]
[null,null,null,null,null,17,2,6,"17","02","06","17|02|06","Higher Education and Training","Planning, Policy and Strategy","Social Inclusion and Quality"]
[null,null,null,null,null,17,3,1,"17","03","01","17|03|01","Higher Education and Training","University Education","Programme Management: University Education"]
[null,null,null,null,null,17,3,2,"17","03","02","17|03|02","Higher Education and Training","University Education","University Planning and Institutional Funding"]
[null,null,null,null,null,17,3,3,"17","03","03","17|03|03","Higher Education and Training","University Education","Institutional Governance and Management Support"]
[null,null,null,null,null,17,3,4,"17","03","04","17|03|04","Higher Education and Training","University Education","Higher Education Policy Development and Research"]
[null,null,null,null,null,17,3,5,"17","03","05","17|03|05","Higher Education and Training","University Education","Teaching, Learning and Research Development"]
[null,null,null,null,null,17,3,6,"17","03","06","17|03|06","Higher Education and Training","University Education","University Subsidies"]
[null,null,null,null,null,17,4,1,"17","04","01","17|04|01","Higher Education and Training","Technical and Vocational Education and Training","Programme Management: Technical and Vocational Education and Training"]
[null,null,null,null,null,17,4,2,"17","04","02","17|04|02","Higher Education and Training","Technical and Vocational Education and Training","Technical and Vocational Education and Training System Planning and Institutional Support"]
[null,null,null,null,null,17,4,3,"17","04","03","17|04|03","Higher Education and Training","Technical and Vocational Education and Training","Programmes and Qualifications"]
[null,null,null,null,null,17,4,4,"17","04","04","17|04|04","Higher Education and Training","Technical and Vocational Education and Training","National Examinations and Assessment"]
[null,null,null,null,null,17,4,5,"17","04","05","17|04|05","Higher Education and Training","Technical and Vocational Education and Training","Technical and Vocational Education and Training Financial Planning"]
[null,null,null,null,null,17,4,6,"17","04","06","17|04|06","Higher Education and Training","Technical and Vocational Education and Training","Regional Offices"]
[null,null,null,null,null,17,5,1,"17","05","01","17|05|01","Higher Education and Training","Skills Development","Programme Management: Skills Development"]
[null,null,null,null,null,17,5,2,"17","05","02","17|05|02","Higher Education and Training","Skills Development","Sector Education and Training Authority Coordination"]
[null,null,null,null,null,17,5,3,"17","05","03","17|05|03","Higher Education and Training","Skills Development","National Skills Authority Secretariat"]
[null,null,null,null,null,17,5,4,"17","05","04","17|05|04","Higher Education and Training","Skills Development","Quality Development and Promotion"]
[null,null,null,null,null,17,5,5,"17","05","05","17|05|05","Higher Education and Training","Skills Development","National Artisan Development"]
[null,null,null,null,null,17,6,1,"17","06","01","17|06|01","Higher Education and Training","Community Education and Training","Programme Management: Community Education and Training"]
[null,null,null,null,null,17,6,2,"17","06","02","17|06|02","Higher Education and Training","Community Education and Training","Community Education and Training System Planning, Institutional Development and Support"]
[null,null,null,null,null,17,6,3,"17","06","03","17|06|03","Higher Education and Training","Community Education and Training","Community Education and Training Colleges Financial Planning and Management"]
[null,null,null,null,null,17,6,4,"17","06","04","17|06|04","Higher Education and Training","Community Education and Training","Education, Training and Development Assessment"]
[null,null,null,null,null,17,16,1,"17","16","01","17|16|01","Higher Education and Training","Direct charge against the National Revenue Fund","Sector education and training authorities"]
[null,null,null,null,null,17,16,2,"17","16","02","17|16|02","Higher Education and Training","Direct charge against the National Revenue Fund","National Skills Fund"]
[null,null,null,null,null,18,1,1,"18","01","01","18|01|01","Health","Administration","Ministry"]
[null,null,null,null,null,18,1,2,"18","01","02","18|01|02","Health","Administration","Management"]
[null,null,null,null,null,18,1,3,"18","01","03","18|01|03","Health","Administration","Corporate Services"]
[null,null,null,null,null,18,1,4,"18","01","04","18|01|04","Health","Administration","Property Management"]
[null,null,null,null,null,18,1,5,"18","01","05","18|01|05","Health","Administration","Financial Management"]
[null,null,null,null,null,18,2,1,"18","02","01","18|02|01","Health","National Health Insurance","Programme Management"]
[null,null,null,null,null,18,2,2,"18","02","02","18|02|02","Health","National Health Insurance","Affordable Medicine"]
[null,null,null,null,null,18,2,3,"18","02","03","18|02|03","Health","National Health Insurance","Health Financing and National Health Insurance"]
[null,null,null,null,null,18,3,1,"18","03","01","18|03|01","Health","Communicable and Non-communicable Diseases","Programme Management"]
[null,null,null,null,null,18,3,2,"18","03","02","18|03|02","Health","Communicable and Non-communicable Diseases","HIV, AIDS and STIs"]
[null,null,null,null,null,18,3,3,"18","03","03","18|03|03","Health","Communicable and Non-communicable Diseases","Tuberculosis Management"]
[null,null,null,null,null,18,3,4,"18","03","04","18|03|04","Health","Communicable and Non-communicable Diseases","Women's Maternal and Reproductive Health"]
[null,null,null,null,null,18,3,5,"18","03","05","18|03|05","Health","Communicable and Non-communicable Diseases","Child, Youth and School Health"]
[null,null,null,null,null,18,3,6,"18","03","06","18|03|06","Health","Communicable and Non-communicable Diseases","Communicable Diseases"]
[null,null,null,null,null,18,3,7,"18","03","07","18|03|07","Health","Communicable and Non-communicable Diseases","Non-communicable Diseases"]
[null,null,null,null,null,18,3,8,"18","03","08","18|03|08","Health","Communicable and Non-communicable Diseases","Health Promotion and Nutrition"]
[null,null,null,null,null,18,4,1,"18","04","01","18|04|01","Health","Primary Health Care","Programme Management"]
[null,null,null,null,null,18,4,2,"18","04","02","18|04|02","Health","Primary Health Care","District Health Services"]
[null,null,null,null,null,18,4,3,"18","04","03","18|04|03","Health","Primary Health Care","Environmental and Port Health Services"]
[null,null,null,null,null,18,4,4,"18","04","04","18|04|04","Health","Primary Health Care","Emergency Medical Services and Trauma"]
[null,null,null,null,null,18,5,1,"18","05","01","18|05|01","Health","Hospital Systems","Programme Management"]
[null,null,null,null,null,18,5,2,"18","05","02","18|05|02","Health","Hospital Systems","Health Facilities Infrastructure Management"]
[null,null,null,null,null,18,5,3,"18","05","03","18|05|03","Health","Hospital Systems","Hospital Systems"]
[null,null,null,null,null,18,6,1,"18","06","01","18|06|01","Health","Health System Governance and Human Resources","Programme Management"]
[null,null,null,null,null,18,6,2,"18","06","02","18|06|02","Health","Health System Governance and Human Resources","Policy and Planning"]
[null,null,null,null,null,18,6,3,"18","06","03","18|06|03","Health","Health System Governance and Human Resources","Public Entities Management and Laboratories"]
[null,null,null,null,null,18,6,4,"18","06","04","18|06|04","Health","Health System Governance and Human Resources","Nursing Services"]
[null,null,null,null,null,18,6,5,"18","06","05","18|06|05","Health","Health System Governance and Human Resources","Health Information, Monitoring and Evaluation"]
[null,null,null,null,null,18,6,6,"18","06","06","18|06|06","Health","Health System Governance and Human Resources","Human Resources for Health"]
[null,null,null,null,null,18,16,1,"18","16","01","18|16|01","Health","Direct charge against the National Revenue Fund","Section 6(1)(b) of the Appropriation Act, 2021 (Act No. 10 of 2021): Covid-19 vaccine programme"]
[null,null,null,null,null,19,1,1,"19","01","01","19|01|01","Social Development","Administration","Ministry"]
[null,null,null,null,null,19,1,2,"19","01","02","19|01|02","Social Development","Administration","Department Management"]
[null,null,null,null,null,19,1,3,"19","01","03","19|01|03","Social Development","Administration","Corporate Management"]
[null,null,null,null,null,19,1,4,"19","01","04","19|01|04","Social Development","Administration","Finance"]
[null,null,null,null,null,19,1,5,"19","01","05","19|01|05","Social Development","Administration","Internal Audit"]
[null,null,null,null,null,19,1,6,"19","01","06","19|01|06","Social Development","Administration","Office Accommodation"]
[null,null,null,null,null,19,2,1,"19","02","01","19|02|01","Social Development","Social Assistance","Old Age"]
[null,null,null,null,null,19,2,2,"19","02","02","19|02|02","Social Development","Social Assistance","War Veterans"]
[null,null,null,null,null,19,2,3,"19","02","03","19|02|03","Social Development","Social Assistance","Disability"]
[null,null,null,null,null,19,2,4,"19","02","04","19|02|04","Social Development","Social Assistance","Foster Care"]
[null,null,null,null,null,19,2,5,"19","02","05","19|02|05","Social Development","Social Assistance","Care Dependency"]
[null,null,null,null,null,19,2,6,"19","02","06","19|02|06","Social Development","Social Assistance","Child Support"]
[null,null,null,null,null,19,2,7,"19","02","07","19|02|07","Social Development","Social Assistance","Grant-in-aid"]
[null,null,null,null,null,19,2,8,"19","02","08","19|02|08","Social Development","Social Assistance","Social Relief of Distress"]
[null,null,null,null,null,19,3,1,"19","03","01","19|03|01","Social Development","Social Security Policy and Administration","Social Security Policy Development"]
[null,null,null,null,null,19,3,2,"19","03","02","19|03|02","Social Development","Social Security Policy and Administration","Appeals Adjudication"]
[null,null,null,null,null,19,3,3,"19","03","03","19|03|03","Social Development","Social Security Policy and Administration","Social Grants Administration"]
[null,null,null,null,null,19,3,4,"19","03","04","19|03|04","Social Development","Social Security Policy and Administration","Social Grants Fraud Investigations"]
[null,null,null,null,null,19,3,5,"19","03","05","19|03|05","Social Development","Social Security Policy and Administration","Programme Management"]
[null,null,null,null,null,19,4,1,"19","04","01","19|04|01","Social Development","Welfare Services Policy Development and Implementation Support","Service Standards"]
[null,null,null,null,null,19,4,2,"19","04","02","19|04|02","Social Development","Welfare Services Policy Development and Implementation Support","Substance Abuse"]
[null,null,null,null,null,19,4,3,"19","04","03","19|04|03","Social Development","Welfare Services Policy Development and Implementation Support","Older Persons"]
[null,null,null,null,null,19,4,4,"19","04","04","19|04|04","Social Development","Welfare Services Policy Development and Implementation Support","People with Disabilities"]
[null,null,null,null,null,19,4,5,"19","04","05","19|04|05","Social Development","Welfare Services Policy Development and Implementation Support","Children"]
[null,null,null,null,null,19,4,6,"19","04","06","19|04|06","Social Development","Welfare Services Policy Development and Implementation Support","Families"]
[null,null,null,null,null,19,4,7,"19","04","07","19|04|07","Social Development","Welfare Services Policy Development and Implementation Support","Social Crime Prevention and Victim Empowerment"]
[null,null,null,null,null,19,4,8,"19","04","08","19|04|08","Social Development","Welfare Services Policy Development and Implementation Support","Youth"]
[null,null,null,null,null,19,4,9,"19","04","09","19|04|09","Social Development","Welfare Services Policy Development and Implementation Support","HIV and AIDS"]
[null,null,null,null,null,19,4,10,"19","04","10","19|04|10","Social Development","Welfare Services Policy Development and Implementation Support","Social Worker Scholarships"]
[null,null,null,null,null,19,4,11,"19","04","11","19|04|11","Social Development","Welfare Services Policy Development and Implementation Support","Programme Management"]
[null,null,null,null,null,19,5,1,"19","05","01","19|05|01","Social Development","Social Policy and Integrated Service Delivery","Social Policy Research and Development"]
[null,null,null,null,null,19,5,2,"19","05","02","19|05|02","Social Development","Social Policy and Integrated Service Delivery","Special Projects and Innovation"]
[null,null,null,null,null,19,5,3,"19","05","03","19|05|03","Social Development","Social Policy and Integrated Service Delivery","Population Policy Promotion"]
[null,null,null,null,null,19,5,4,"19","05","04","19|05|04","Social Development","Social Policy and Integrated Service Delivery","Registration and Monitoring of Non-profit Organisations"]
[null,null,null,null,null,19,5,5,"19","05","05","19|05|05","Social Development","Social Policy and Integrated Service Delivery","Substance Abuse Advisory Services and Oversight"]
[null,null,null,null,null,19,5,6,"19","05","06","19|05|06","Social Development","Social Policy and Integrated Service Delivery","Community Development"]
[null,null,null,null,null,19,5,7,"19","05","07","19|05|07","Social Development","Social Policy and Integrated Service Delivery","National Development Agency"]
[null,null,null,null,null,19,5,8,"19","05","08","19|05|08","Social Development","Social Policy and Integrated Service Delivery","Programme Management"]
[null,null,null,null,null,20,1,1,"20","01","01","20|01|01","Women, Youth and Persons with Disabilities","Administration","Ministry"]
[null,null,null,null,null,20,1,2,"20","01","02","20|01|02","Women, Youth and Persons with Disabilities","Administration","Departmental Management"]
[null,null,null,null,null,20,1,3,"20","01","03","20|01|03","Women, Youth and Persons with Disabilities","Administration","Corporate Services"]
[null,null,null,null,null,20,1,4,"20","01","04","20|01|04","Women, Youth and Persons with Disabilities","Administration","Financial Management"]
[null,null,null,null,null,20,1,5,"20","01","05","20|01|05","Women, Youth and Persons with Disabilities","Administration","Office Accommodation"]
[null,null,null,null,null,20,2,1,"20","02","01","20|02|01","Women, Youth and Persons with Disabilities","Mainstreaming Women’s Rights and Advocacy","Management: Advocacy and Mainstreaming for the Rights of Women"]
[null,null,null,null,null,20,2,2,"20","02","02","20|02|02","Women, Youth and Persons with Disabilities","Mainstreaming Women’s Rights and Advocacy","Social Empowerment of Women"]
[null,null,null,null,null,20,2,3,"20","02","03","20|02|03","Women, Youth and Persons with Disabilities","Mainstreaming Women’s Rights and Advocacy","Economic Empowerment of Women"]
[null,null,null,null,null,20,2,4,"20","02","04","20|02|04","Women, Youth and Persons with Disabilities","Mainstreaming Women’s Rights and Advocacy","Commission for Gender Equality"]
[null,null,null,null,null,20,3,1,"20","03","01","20|03|01","Women, Youth and Persons with Disabilities","Monitoring, Evaluation, Research and Coordination","Management: Monitoring, Evaluation, Research and Coordination"]
[null,null,null,null,null,20,3,2,"20","03","02","20|03|02","Women, Youth and Persons with Disabilities","Monitoring, Evaluation, Research and Coordination","Research and Knowledge Management"]
[null,null,null,null,null,20,3,3,"20","03","03","20|03|03","Women, Youth and Persons with Disabilities","Monitoring, Evaluation, Research and Coordination","International Relations, Stakeholder Management and Capacity Building"]
[null,null,null,null,null,20,3,4,"20","03","04","20|03|04","Women, Youth and Persons with Disabilities","Monitoring, Evaluation, Research and Coordination","Monitoring and Evaluation: Women,Youth and Persons with Disabilities"]
[null,null,null,null,null,20,4,1,"20","04","01","20|04|01","Women, Youth and Persons with Disabilities","Mainstreaming Youth and Persons with Disabilities Rights and Advocacy","Management: Advocacy and Mainstreaming for the Rights of Youth and Persons with Disabilities"]
[null,null,null,null,null,20,4,2,"20","04","02","20|04|02","Women, Youth and Persons with Disabilities","Mainstreaming Youth and Persons with Disabilities Rights and Advocacy","Advocacy and Mainstreaming for the Rights of Youth"]
[null,null,null,null,null,20,4,3,"20","04","03","20|04|03","Women, Youth and Persons with Disabilities","Mainstreaming Youth and Persons with Disabilities Rights and Advocacy","Advocacy and Mainstreaming for the Rights of Persons with Disabilities"]
[null,null,null,null,null,20,4,4,"20","04","04","20|04|04","Women, Youth and Persons with Disabilities","Mainstreaming Youth and Persons with Disabilities Rights and Advocacy","National Youth Development Agency"]
[null,null,null,null,null,21,1,1,"21","01","01","21|01|01","Civilian Secretariat for the Police Service","Administration","Department Management"]
[null,null,null,null,null,21,1,2,"21","01","02","21|01|02","Civilian Secretariat for the Police Service","Administration","Corporate Services"]
[null,null,null,null,null,21,1,3,"21","01","03","21|01|03","Civilian Secretariat for the Police Service","Administration","Finance Administration"]
[null,null,null,null,null,21,1,4,"21","01","04","21|01|04","Civilian Secretariat for the Police Service","Administration","Office Accommodation"]
[null,null,null,null,null,21,1,5,"21","01","05","21|01|05","Civilian Secretariat for the Police Service","Administration","Internal Audit"]
[null,null,null,null,null,21,2,1,"21","02","01","21|02|01","Civilian Secretariat for the Police Service","Intersectoral Coordination and Strategic Partnerships","Intergovernmental, Civil Society and Public-Private Partnerships"]
[null,null,null,null,null,21,2,2,"21","02","02","21|02|02","Civilian Secretariat for the Police Service","Intersectoral Coordination and Strategic Partnerships","Community Outreach"]
[null,null,null,null,null,21,3,1,"21","03","01","21|03|01","Civilian Secretariat for the Police Service","Legislation and Policy Development","Policy Development and Research"]
[null,null,null,null,null,21,3,2,"21","03","02","21|03|02","Civilian Secretariat for the Police Service","Legislation and Policy Development","Legislation"]
[null,null,null,null,null,21,4,1,"21","04","01","21|04|01","Civilian Secretariat for the Police Service","Civilian Oversight, Monitoring and Evaluations","Police Performance, Conduct and Compliance"]
[null,null,null,null,null,21,4,2,"21","04","02","21|04|02","Civilian Secretariat for the Police Service","Civilian Oversight, Monitoring and Evaluations","Policy and Programme Evaluations"]
[null,null,null,null,null,21,4,3,"21","04","03","21|04|03","Civilian Secretariat for the Police Service","Civilian Oversight, Monitoring and Evaluations","Office of the Directorate for Priority Crime Investigation Judge"]
[null,null,null,null,null,21,4,4,"21","04","04","21|04|04","Civilian Secretariat for the Police Service","Civilian Oversight, Monitoring and Evaluations","National Forensic Oversight and Ethics Board"]
[null,null,null,null,null,22,1,1,"22","01","01","22|01|01","Correctional Services","Administration","Ministry"]
[null,null,null,null,null,22,1,2,"22","01","02","22|01|02","Correctional Services","Administration","Judicial Inspectorate for Correctional Services"]
[null,null,null,null,null,22,1,3,"22","01","03","22|01|03","Correctional Services","Administration","Management"]
[null,null,null,null,null,22,1,4,"22","01","04","22|01|04","Correctional Services","Administration","Human Resources"]
[null,null,null,null,null,22,1,5,"22","01","05","22|01|05","Correctional Services","Administration","Finance"]
[null,null,null,null,null,22,1,6,"22","01","06","22|01|06","Correctional Services","Administration","Assurance Services"]
[null,null,null,null,null,22,1,7,"22","01","07","22|01|07","Correctional Services","Administration","Information Technology"]
[null,null,null,null,null,22,1,8,"22","01","08","22|01|08","Correctional Services","Administration","Office Accommodation"]
[null,null,null,null,null,22,2,1,"22","02","01","22|02|01","Correctional Services","Incarceration","Security Operations"]
[null,null,null,null,null,22,2,2,"22","02","02","22|02|02","Correctional Services","Incarceration","Facilities"]
[null,null,null,null,null,22,2,3,"22","02","03","22|02|03","Correctional Services","Incarceration","Remand Detention"]
[null,null,null,null,null,22,2,4,"22","02","04","22|02|04","Correctional Services","Incarceration","Offender Management"]
[null,null,null,null,null,22,3,1,"22","03","01","22|03|01","Correctional Services","Rehabilitation","Correctional Programmes"]
[null,null,null,null,null,22,3,2,"22","03","02","22|03|02","Correctional Services","Rehabilitation","Offender Development"]
[null,null,null,null,null,22,3,3,"22","03","03","22|03|03","Correctional Services","Rehabilitation","Psychological, Social and Spiritual Services"]
[null,null,null,null,null,22,4,1,"22","04","01","22|04|01","Correctional Services","Care","Nutritional Services"]
[null,null,null,null,null,22,4,2,"22","04","02","22|04|02","Correctional Services","Care","Health and Hygiene Services"]
[null,null,null,null,null,22,5,1,"22","05","01","22|05|01","Correctional Services","Social Reintegration","Supervision"]
[null,null,null,null,null,22,5,2,"22","05","02","22|05|02","Correctional Services","Social Reintegration","Community Reintegration"]
[null,null,null,null,null,22,5,3,"22","05","03","22|05|03","Correctional Services","Social Reintegration","Office Accommodation: Community Corrections"]
[null,null,null,null,null,23,1,1,"23","01","01","23|01|01","Defence","Administration","Ministry"]
[null,null,null,null,null,23,1,2,"23","01","02","23|01|02","Defence","Administration","Departmental Direction"]
[null,null,null,null,null,23,1,3,"23","01","03","23|01|03","Defence","Administration","Policy and Planning"]
[null,null,null,null,null,23,1,4,"23","01","04","23|01|04","Defence","Administration","Financial Services"]
[null,null,null,null,null,23,1,5,"23","01","05","23|01|05","Defence","Administration","Human Resources Support Services"]
[null,null,null,null,null,23,1,6,"23","01","06","23|01|06","Defence","Administration","Legal Services"]
[null,null,null,null,null,23,1,7,"23","01","07","23|01|07","Defence","Administration","Inspection and Audit Services"]
[null,null,null,null,null,23,1,8,"23","01","08","23|01|08","Defence","Administration","Acquisition Services"]
[null,null,null,null,null,23,1,9,"23","01","09","23|01|09","Defence","Administration","Communication Services"]
[null,null,null,null,null,23,1,10,"23","01","10","23|01|10","Defence","Administration","South African National Defence Force Command and Control"]
[null,null,null,null,null,23,1,11,"23","01","11","23|01|11","Defence","Administration","Religious Services"]
[null,null,null,null,null,23,1,12,"23","01","12","23|01|12","Defence","Administration","Defence Reserve Direction"]
[null,null,null,null,null,23,1,13,"23","01","13","23|01|13","Defence","Administration","Defence Foreign Relations"]
[null,null,null,null,null,23,1,14,"23","01","14","23|01|14","Defence","Administration","Office Accommodation"]
[null,null,null,null,null,23,2,1,"23","02","01","23|02|01","Defence","Force Employment","Strategic Direction"]
[null,null,null,null,null,23,2,2,"23","02","02","23|02|02","Defence","Force Employment","Operational Direction"]
[null,null,null,null,null,23,2,3,"23","02","03","23|02|03","Defence","Force Employment","Special Operations"]
[null,null,null,null,null,23,2,4,"23","02","04","23|02|04","Defence","Force Employment","Regional Security"]
[null,null,null,null,null,23,2,5,"23","02","05","23|02|05","Defence","Force Employment","Support to the People"]
[null,null,null,null,null,23,3,1,"23","03","01","23|03|01","Defence","Landward Defence","Strategic Direction"]
[null,null,null,null,null,23,3,2,"23","03","02","23|03|02","Defence","Landward Defence","Infantry Capability"]
[null,null,null,null,null,23,3,3,"23","03","03","23|03|03","Defence","Landward Defence","Armour Capability"]
[null,null,null,null,null,23,3,4,"23","03","04","23|03|04","Defence","Landward Defence","Artillery Capability"]
[null,null,null,null,null,23,3,5,"23","03","05","23|03|05","Defence","Landward Defence","Air Defence Artillery Capability"]
[null,null,null,null,null,23,3,6,"23","03","06","23|03|06","Defence","Landward Defence","Engineering Capability"]
[null,null,null,null,null,23,3,7,"23","03","07","23|03|07","Defence","Landward Defence","Operational Intelligence"]
[null,null,null,null,null,23,3,8,"23","03","08","23|03|08","Defence","Landward Defence","Command and Control Capability"]
[null,null,null,null,null,23,3,9,"23","03","09","23|03|09","Defence","Landward Defence","Support Capability"]
[null,null,null,null,null,23,3,10,"23","03","10","23|03|10","Defence","Landward Defence","General Training Capability"]
[null,null,null,null,null,23,3,11,"23","03","11","23|03|11","Defence","Landward Defence","Signal Capability"]
[null,null,null,null,null,23,4,1,"23","04","01","23|04|01","Defence","Air Defence","Strategic Direction"]
[null,null,null,null,null,23,4,2,"23","04","02","23|04|02","Defence","Air Defence","Operational Direction"]
[null,null,null,null,null,23,4,3,"23","04","03","23|04|03","Defence","Air Defence","Helicopter Capability"]
[null,null,null,null,null,23,4,4,"23","04","04","23|04|04","Defence","Air Defence","Transport and Maritime Capability"]
[null,null,null,null,null,23,4,5,"23","04","05","23|04|05","Defence","Air Defence","Air Combat Capability"]
[null,null,null,null,null,23,4,6,"23","04","06","23|04|06","Defence","Air Defence","Operational Support and Intelligence Capability"]
[null,null,null,null,null,23,4,7,"23","04","07","23|04|07","Defence","Air Defence","Command and Control Capability"]
[null,null,null,null,null,23,4,8,"23","04","08","23|04|08","Defence","Air Defence","Base Support Capability"]
[null,null,null,null,null,23,4,9,"23","04","09","23|04|09","Defence","Air Defence","Command Post"]
[null,null,null,null,null,23,4,10,"23","04","10","23|04|10","Defence","Air Defence","Training Capability"]
[null,null,null,null,null,23,4,11,"23","04","11","23|04|11","Defence","Air Defence","Technical Support Services"]
[null,null,null,null,null,23,5,1,"23","05","01","23|05|01","Defence","Maritime Defence","Maritime Direction"]
[null,null,null,null,null,23,5,2,"23","05","02","23|05|02","Defence","Maritime Defence","Maritime Combat Capability"]
[null,null,null,null,null,23,5,3,"23","05","03","23|05|03","Defence","Maritime Defence","Maritime Logistic Support Capability"]
[null,null,null,null,null,23,5,4,"23","05","04","23|05|04","Defence","Maritime Defence","Maritime Human Resources and Training Capability"]
[null,null,null,null,null,23,5,5,"23","05","05","23|05|05","Defence","Maritime Defence","Base Support Capability"]
[null,null,null,null,null,23,6,1,"23","06","01","23|06|01","Defence","Military Health Support","Strategic Direction"]
[null,null,null,null,null,23,6,2,"23","06","02","23|06|02","Defence","Military Health Support","Mobile Military Health Support"]
[null,null,null,null,null,23,6,3,"23","06","03","23|06|03","Defence","Military Health Support","Area Military Health Service"]
[null,null,null,null,null,23,6,4,"23","06","04","23|06|04","Defence","Military Health Support","Specialist/Tertiary Health Service"]
[null,null,null,null,null,23,6,5,"23","06","05","23|06|05","Defence","Military Health Support","Military Health Product Support Capability"]
[null,null,null,null,null,23,6,6,"23","06","06","23|06|06","Defence","Military Health Support","Military Health Maintenance Capability"]
[null,null,null,null,null,23,6,7,"23","06","07","23|06|07","Defence","Military Health Support","Military Health Training Capability"]
[null,null,null,null,null,23,7,1,"23","07","01","23|07|01","Defence","Defence Intelligence","Operations"]
[null,null,null,null,null,23,7,2,"23","07","02","23|07|02","Defence","Defence Intelligence","Defence Intelligence Support Services"]
[null,null,null,null,null,23,8,1,"23","08","01","23|08|01","Defence","General Support","Joint Logistic Services"]
[null,null,null,null,null,23,8,2,"23","08","02","23|08|02","Defence","General Support","Command and Management Information Systems"]
[null,null,null,null,null,23,8,3,"23","08","03","23|08|03","Defence","General Support","Military Police"]
[null,null,null,null,null,23,8,4,"23","08","04","23|08|04","Defence","General Support","Technology Development"]
[null,null,null,null,null,23,8,5,"23","08","05","23|08|05","Defence","General Support","Departmental Support"]
[null,null,null,null,null,24,1,1,"24","01","01","24|01|01","Independent Police Investigative Directorate","Administration","Department Management"]
[null,null,null,null,null,24,1,2,"24","01","02","24|01|02","Independent Police Investigative Directorate","Administration","Corporate Services"]
[null,null,null,null,null,24,1,3,"24","01","03","24|01|03","Independent Police Investigative Directorate","Administration","Office Accommodation"]
[null,null,null,null,null,24,1,4,"24","01","04","24|01|04","Independent Police Investigative Directorate","Administration","Internal Audit"]
[null,null,null,null,null,24,1,5,"24","01","05","24|01|05","Independent Police Investigative Directorate","Administration","Finance Services"]
[null,null,null,null,null,24,2,1,"24","02","01","24|02|01","Independent Police Investigative Directorate","Investigation and Information Management","Investigation Management"]
[null,null,null,null,null,24,2,2,"24","02","02","24|02|02","Independent Police Investigative Directorate","Investigation and Information Management","Investigation Services"]
[null,null,null,null,null,24,2,3,"24","02","03","24|02|03","Independent Police Investigative Directorate","Investigation and Information Management","Information Management"]
[null,null,null,null,null,24,3,1,"24","03","01","24|03|01","Independent Police Investigative Directorate","Legal and Investigation Advisory Services","Legal Support and Administration"]
[null,null,null,null,null,24,3,2,"24","03","02","24|03|02","Independent Police Investigative Directorate","Legal and Investigation Advisory Services","Litigation Advisory Services"]
[null,null,null,null,null,24,3,3,"24","03","03","24|03|03","Independent Police Investigative Directorate","Legal and Investigation Advisory Services","Investigation Advisory Services"]
[null,null,null,null,null,24,4,1,"24","04","01","24|04|01","Independent Police Investigative Directorate","Compliance Monitoring and Stakeholder Management","Compliance Monitoring"]
[null,null,null,null,null,24,4,2,"24","04","02","24|04|02","Independent Police Investigative Directorate","Compliance Monitoring and Stakeholder Management","Stakeholder Management"]
[null,null,null,null,null,25,1,1,"25","01","01","25|01|01","Justice and Constitutional Development","Administration","Ministry"]
[null,null,null,null,null,25,1,2,"25","01","02","25|01|02","Justice and Constitutional Development","Administration","Management"]
[null,null,null,null,null,25,1,3,"25","01","03","25|01|03","Justice and Constitutional Development","Administration","Corporate Services"]
[null,null,null,null,null,25,1,4,"25","01","04","25|01|04","Justice and Constitutional Development","Administration","Financial Administration"]
[null,null,null,null,null,25,1,5,"25","01","05","25|01|05","Justice and Constitutional Development","Administration","Internal Audit"]
[null,null,null,null,null,25,1,6,"25","01","06","25|01|06","Justice and Constitutional Development","Administration","Office Accommodation"]
[null,null,null,null,null,25,2,1,"25","02","01","25|02|01","Justice and Constitutional Development","Court Services","Lower Courts"]
[null,null,null,null,null,25,2,2,"25","02","02","25|02|02","Justice and Constitutional Development","Court Services","Family Advocate"]
[null,null,null,null,null,25,2,3,"25","02","03","25|02|03","Justice and Constitutional Development","Court Services","Magistrate's Commission"]
[null,null,null,null,null,25,2,4,"25","02","04","25|02|04","Justice and Constitutional Development","Court Services","Facilities Management"]
[null,null,null,null,null,25,2,5,"25","02","05","25|02|05","Justice and Constitutional Development","Court Services","Administration of Lower Courts"]
[null,null,null,null,null,25,3,1,"25","03","01","25|03|01","Justice and Constitutional Development","State Legal Services","State Law Advisors"]
[null,null,null,null,null,25,3,2,"25","03","02","25|03|02","Justice and Constitutional Development","State Legal Services","Litigation and Legal Services"]
[null,null,null,null,null,25,3,3,"25","03","03","25|03|03","Justice and Constitutional Development","State Legal Services","Legislative Development and Law Reform"]
[null,null,null,null,null,25,3,4,"25","03","04","25|03|04","Justice and Constitutional Development","State Legal Services","Master of the High Court"]
[null,null,null,null,null,25,3,5,"25","03","05","25|03|05","Justice and Constitutional Development","State Legal Services","Constitutional Development"]
[null,null,null,null,null,25,4,1,"25","04","01","25|04|01","Justice and Constitutional Development","National Prosecuting Authority","National Prosecutions Service"]
[null,null,null,null,null,25,4,2,"25","04","02","25|04|02","Justice and Constitutional Development","National Prosecuting Authority","Investigating Directorate"]
[null,null,null,null,null,25,4,3,"25","04","03","25|04|03","Justice and Constitutional Development","National Prosecuting Authority","Asset Forfeiture Unit"]
[null,null,null,null,null,25,4,4,"25","04","04","25|04|04","Justice and Constitutional Development","National Prosecuting Authority","Office for Witness Protection"]
[null,null,null,null,null,25,4,5,"25","04","05","25|04|05","Justice and Constitutional Development","National Prosecuting Authority","Support Services"]
[null,null,null,null,null,25,5,1,"25","05","01","25|05|01","Justice and Constitutional Development","Auxiliary and Associated Services","Legal Aid South Africa"]
[null,null,null,null,null,25,5,2,"25","05","02","25|05|02","Justice and Constitutional Development","Auxiliary and Associated Services","Special Investigating Unit"]
[null,null,null,null,null,25,5,3,"25","05","03","25|05|03","Justice and Constitutional Development","Auxiliary and Associated Services","Public Protector of South Africa"]
[null,null,null,null,null,25,5,4,"25","05","04","25|05|04","Justice and Constitutional Development","Auxiliary and Associated Services","South African Human Rights Commission"]
[null,null,null,null,null,25,5,5,"25","05","05","25|05|05","Justice and Constitutional Development","Auxiliary and Associated Services","Justice Modernisation"]
[null,null,null,null,null,25,5,6,"25","05","06","25|05|06","Justice and Constitutional Development","Auxiliary and Associated Services","President's Fund"]
[null,null,null,null,null,25,5,7,"25","05","07","25|05|07","Justice and Constitutional Development","Auxiliary and Associated Services","Information Regulator"]
[null,null,null,null,null,25,16,1,"25","16","01","25|16|01","Justice and Constitutional Development","Direct charge against the National Revenue Fund","Magistrates' salaries"]
[null,null,null,null,null,26,1,1,"26","01","01","26|01|01","Military Veterans","Administration","Management"]
[null,null,null,null,null,26,1,2,"26","01","02","26|01|02","Military Veterans","Administration","Corporate Services"]
[null,null,null,null,null,26,1,3,"26","01","03","26|01|03","Military Veterans","Administration","Financial Administration"]
[null,null,null,null,null,26,1,4,"26","01","04","26|01|04","Military Veterans","Administration","Internal Audit"]
[null,null,null,null,null,26,1,5,"26","01","05","26|01|05","Military Veterans","Administration","Strategic Planning, Policy Development, and Monitoring and Evaluation"]
[null,null,null,null,null,26,1,6,"26","01","06","26|01|06","Military Veterans","Administration","Office Accommodation"]
[null,null,null,null,null,26,2,1,"26","02","01","26|02|01","Military Veterans","Socioeconomic Support","Database and Benefits Management"]
[null,null,null,null,null,26,2,2,"26","02","02","26|02|02","Military Veterans","Socioeconomic Support","Health Care and Wellbeing Support"]
[null,null,null,null,null,26,2,3,"26","02","03","26|02|03","Military Veterans","Socioeconomic Support","Socioeconomic Support Management"]
[null,null,null,null,null,26,3,1,"26","03","01","26|03|01","Military Veterans","Empowerment and Stakeholder Management","Provincial Offices and Stakeholder Relations"]
[null,null,null,null,null,26,3,2,"26","03","02","26|03|02","Military Veterans","Empowerment and Stakeholder Management","Empowerment and Skills Development"]
[null,null,null,null,null,26,3,3,"26","03","03","26|03|03","Military Veterans","Empowerment and Stakeholder Management","Heritage, Memorials, Burials and Honours"]
[null,null,null,null,null,27,1,1,"27","01","01","27|01|01","Office of the Chief Justice","Administration","Management"]
[null,null,null,null,null,27,1,2,"27","01","02","27|01|02","Office of the Chief Justice","Administration","Corporate Services"]
[null,null,null,null,null,27,1,3,"27","01","03","27|01|03","Office of the Chief Justice","Administration","Financial Administration"]
[null,null,null,null,null,27,1,4,"27","01","04","27|01|04","Office of the Chief Justice","Administration","Internal Audit"]
[null,null,null,null,null,27,1,5,"27","01","05","27|01|05","Office of the Chief Justice","Administration","Office Accommodation"]
[null,null,null,null,null,27,2,1,"27","02","01","27|02|01","Office of the Chief Justice","Superior Court Services","Administration of Superior Courts"]
[null,null,null,null,null,27,2,2,"27","02","02","27|02|02","Office of the Chief Justice","Superior Court Services","Constitutional Court"]
[null,null,null,null,null,27,2,3,"27","02","03","27|02|03","Office of the Chief Justice","Superior Court Services","Supreme Court of Appeal"]
[null,null,null,null,null,27,2,4,"27","02","04","27|02|04","Office of the Chief Justice","Superior Court Services","High Courts"]
[null,null,null,null,null,27,2,5,"27","02","05","27|02|05","Office of the Chief Justice","Superior Court Services","Specialised Courts"]
[null,null,null,null,null,27,3,1,"27","03","01","27|03|01","Office of the Chief Justice","Judicial Education and Support","South African Judicial Education Institute"]
[null,null,null,null,null,27,3,2,"27","03","02","27|03|02","Office of the Chief Justice","Judicial Education and Support","Judicial Policy, Research and Support"]
[null,null,null,null,null,27,3,3,"27","03","03","27|03|03","Office of the Chief Justice","Judicial Education and Support","Judicial Service Commission"]
[null,null,null,null,null,27,16,1,"27","16","01","27|16|01","Office of the Chief Justice","Direct charge against the National Revenue Fund","Judges' salaries"]
[null,null,null,null,null,28,1,1,"28","01","01","28|01|01","Police","Administration","Ministry"]
[null,null,null,null,null,28,1,2,"28","01","02","28|01|02","Police","Administration","Management"]
[null,null,null,null,null,28,1,3,"28","01","03","28|01|03","Police","Administration","Corporate Services"]
[null,null,null,null,null,28,2,1,"28","02","01","28|02|01","Police","Visible Policing","Crime Prevention"]
[null,null,null,null,null,28,2,2,"28","02","02","28|02|02","Police","Visible Policing","Border Security"]
[null,null,null,null,null,28,2,3,"28","02","03","28|02|03","Police","Visible Policing","Specialised Interventions"]
[null,null,null,null,null,28,2,4,"28","02","04","28|02|04","Police","Visible Policing","Facilities"]
[null,null,null,null,null,28,3,1,"28","03","01","28|03|01","Police","Detective Services","Crime Investigations"]
[null,null,null,null,null,28,3,2,"28","03","02","28|03|02","Police","Detective Services","Criminal Record Centre"]
[null,null,null,null,null,28,3,3,"28","03","03","28|03|03","Police","Detective Services","Forensic Science Laboratory"]
[null,null,null,null,null,28,3,4,"28","03","04","28|03|04","Police","Detective Services","Specialised Investigations"]
[null,null,null,null,null,28,4,1,"28","04","01","28|04|01","Police","Crime Intelligence","Crime Intelligence Operations"]
[null,null,null,null,null,28,4,2,"28","04","02","28|04|02","Police","Crime Intelligence","Intelligence and Information Management"]
[null,null,null,null,null,28,5,1,"28","05","01","28|05|01","Police","Protection and Security Services","VIP Protection Services"]
[null,null,null,null,null,28,5,2,"28","05","02","28|05|02","Police","Protection and Security Services","Static Protection"]
[null,null,null,null,null,28,5,3,"28","05","03","28|05|03","Police","Protection and Security Services","Government Security Regulator"]
[null,null,null,null,null,28,5,4,"28","05","04","28|05|04","Police","Protection and Security Services","Operational Support"]
[null,null,null,null,null,29,1,1,"29","01","01","29|01|01","Agriculture, Land Reform and Rural Development","Administration","Ministry"]
[null,null,null,null,null,29,1,2,"29","01","02","29|01|02","Agriculture, Land Reform and Rural Development","Administration","Department Management"]
[null,null,null,null,null,29,1,3,"29","01","03","29|01|03","Agriculture, Land Reform and Rural Development","Administration","Internal Audit"]
[null,null,null,null,null,29,1,4,"29","01","04","29|01|04","Agriculture, Land Reform and Rural Development","Administration","Financial Management Services"]
[null,null,null,null,null,29,1,5,"29","01","05","29|01|05","Agriculture, Land Reform and Rural Development","Administration","Corporate Support Services"]
[null,null,null,null,null,29,1,6,"29","01","06","29|01|06","Agriculture, Land Reform and Rural Development","Administration","Provincial Operations"]
[null,null,null,null,null,29,1,7,"29","01","07","29|01|07","Agriculture, Land Reform and Rural Development","Administration","Office Accommodation"]
[null,null,null,null,null,29,2,1,"29","02","01","29|02|01","Agriculture, Land Reform and Rural Development","Agricultural Production, Biosecurity and Resources Management","Inspection and Quarantine Services"]
[null,null,null,null,null,29,2,2,"29","02","02","29|02|02","Agriculture, Land Reform and Rural Development","Agricultural Production, Biosecurity and Resources Management","Plant Production and Health"]
[null,null,null,null,null,29,2,3,"29","02","03","29|02|03","Agriculture, Land Reform and Rural Development","Agricultural Production, Biosecurity and Resources Management","Animal Production and Health"]
[null,null,null,null,null,29,2,4,"29","02","04","29|02|04","Agriculture, Land Reform and Rural Development","Agricultural Production, Biosecurity and Resources Management","Natural Resources and Disaster Management"]
[null,null,null,null,null,29,2,5,"29","02","05","29|02|05","Agriculture, Land Reform and Rural Development","Agricultural Production, Biosecurity and Resources Management","Biosecurity"]
[null,null,null,null,null,29,2,6,"29","02","06","29|02|06","Agriculture, Land Reform and Rural Development","Agricultural Production, Biosecurity and Resources Management","Agricultural Research Council"]
[null,null,null,null,null,29,3,1,"29","03","01","29|03|01","Agriculture, Land Reform and Rural Development","Food Security, Land Reform and Restitution","Food Security and Agrarian Reform"]
[null,null,null,null,null,29,3,2,"29","03","02","29|03|02","Agriculture, Land Reform and Rural Development","Food Security, Land Reform and Restitution","Land Redistribution and Tenure Reform"]
[null,null,null,null,null,29,3,3,"29","03","03","29|03|03","Agriculture, Land Reform and Rural Development","Food Security, Land Reform and Restitution","National Extension Support Services and Sector Capacity Development"]
[null,null,null,null,null,29,3,4,"29","03","04","29|03|04","Agriculture, Land Reform and Rural Development","Food Security, Land Reform and Restitution","Land Development and Post-settlement Support"]
[null,null,null,null,null,29,3,5,"29","03","05","29|03|05","Agriculture, Land Reform and Rural Development","Food Security, Land Reform and Restitution","Commission on the Restitution of Land Rights"]
[null,null,null,null,null,29,3,6,"29","03","06","29|03|06","Agriculture, Land Reform and Rural Development","Food Security, Land Reform and Restitution","Restitution"]
[null,null,null,null,null,29,3,7,"29","03","07","29|03|07","Agriculture, Land Reform and Rural Development","Food Security, Land Reform and Restitution","Agricultural Land Holding Account"]
[null,null,null,null,null,29,3,8,"29","03","08","29|03|08","Agriculture, Land Reform and Rural Development","Food Security, Land Reform and Restitution","Ingonyama Trust Board"]
[null,null,null,null,null,29,3,9,"29","03","09","29|03|09","Agriculture, Land Reform and Rural Development","Food Security, Land Reform and Restitution","Office of the Valuer-General"]
[null,null,null,null,null,29,4,1,"29","04","01","29|04|01","Agriculture, Land Reform and Rural Development","Rural Development","National Rural Youth Service Corps"]
[null,null,null,null,null,29,4,2,"29","04","02","29|04|02","Agriculture, Land Reform and Rural Development","Rural Development","Rural Infrastructure Development"]
[null,null,null,null,null,29,4,3,"29","04","03","29|04|03","Agriculture, Land Reform and Rural Development","Rural Development","Technology Research and Development"]
[null,null,null,null,null,29,5,1,"29","05","01","29|05|01","Agriculture, Land Reform and Rural Development","Economic Development, Trade and Marketing","International Relations and Trade"]
[null,null,null,null,null,29,5,2,"29","05","02","29|05|02","Agriculture, Land Reform and Rural Development","Economic Development, Trade and Marketing","Cooperatives Development"]
[null,null,null,null,null,29,5,3,"29","05","03","29|05|03","Agriculture, Land Reform and Rural Development","Economic Development, Trade and Marketing","Agro-Processing, Marketing and Rural Industrial Development"]
[null,null,null,null,null,29,5,4,"29","05","04","29|05|04","Agriculture, Land Reform and Rural Development","Economic Development, Trade and Marketing","National Agricultural Marketing Council"]
[null,null,null,null,null,29,6,1,"29","06","01","29|06|01","Agriculture, Land Reform and Rural Development","Land Administration","National Geomatics Management Services"]
[null,null,null,null,null,29,6,2,"29","06","02","29|06|02","Agriculture, Land Reform and Rural Development","Land Administration","Spatial Planning and Land Use"]
[null,null,null,null,null,29,6,3,"29","06","03","29|06|03","Agriculture, Land Reform and Rural Development","Land Administration","Deeds Registration"]
[null,null,null,null,null,29,6,4,"29","06","04","29|06|04","Agriculture, Land Reform and Rural Development","Land Administration","South African Council of Planners"]
[null,null,null,null,null,29,6,5,"29","06","05","29|06|05","Agriculture, Land Reform and Rural Development","Land Administration","South African Geomatics Council"]
[null,null,null,null,null,29,6,6,"29","06","06","29|06|06","Agriculture, Land Reform and Rural Development","Land Administration","Integrated Land Administration"]
[null,null,null,null,null,30,1,1,"30","01","01","30|01|01","Communications and Digital Technologies","Administration","Ministry"]
[null,null,null,null,null,30,1,2,"30","01","02","30|01|02","Communications and Digital Technologies","Administration","Departmental Management"]
[null,null,null,null,null,30,1,3,"30","01","03","30|01|03","Communications and Digital Technologies","Administration","Internal Audit"]
[null,null,null,null,null,30,1,4,"30","01","04","30|01|04","Communications and Digital Technologies","Administration","Corporate Services"]
[null,null,null,null,null,30,1,5,"30","01","05","30|01|05","Communications and Digital Technologies","Administration","Financial Management"]
[null,null,null,null,null,30,1,6,"30","01","06","30|01|06","Communications and Digital Technologies","Administration","Office Accommodation"]
[null,null,null,null,null,30,2,1,"30","02","01","30|02|01","Communications and Digital Technologies","ICT International Relations and Affairs","Programme Management for International Relations and Affairs"]
[null,null,null,null,null,30,2,2,"30","02","02","30|02|02","Communications and Digital Technologies","ICT International Relations and Affairs","International Affairs"]
[null,null,null,null,null,30,2,3,"30","02","03","30|02|03","Communications and Digital Technologies","ICT International Relations and Affairs","ICT Trade/Partnership"]
[null,null,null,null,null,30,3,1,"30","03","01","30|03|01","Communications and Digital Technologies","ICT Policy Development and Research","Programme Management for ICT Policy Development and Research"]
[null,null,null,null,null,30,3,2,"30","03","02","30|03|02","Communications and Digital Technologies","ICT Policy Development and Research","ICT Policy Development"]
[null,null,null,null,null,30,3,3,"30","03","03","30|03|03","Communications and Digital Technologies","ICT Policy Development and Research","Economic and Market Analysis"]
[null,null,null,null,null,30,3,4,"30","03","04","30|03|04","Communications and Digital Technologies","ICT Policy Development and Research","Research"]
[null,null,null,null,null,30,3,5,"30","03","05","30|03|05","Communications and Digital Technologies","ICT Policy Development and Research","Small, Medium and Micro Enterprise"]
[null,null,null,null,null,30,3,6,"30","03","06","30|03|06","Communications and Digital Technologies","ICT Policy Development and Research","Broadcasting Policy"]
[null,null,null,null,null,30,3,7,"30","03","07","30|03|07","Communications and Digital Technologies","ICT Policy Development and Research","Presidential Commission on 4IR"]
[null,null,null,null,null,30,4,1,"30","04","01","30|04|01","Communications and Digital Technologies","ICT Enterprise and Public Entity Oversight","Programme Management for ICT Enterprise and Public Entity Oversight"]
[null,null,null,null,null,30,4,2,"30","04","02","30|04|02","Communications and Digital Technologies","ICT Enterprise and Public Entity Oversight","Regulatory Institutions"]
[null,null,null,null,null,30,4,3,"30","04","03","30|04|03","Communications and Digital Technologies","ICT Enterprise and Public Entity Oversight","Universal Service and Access"]
[null,null,null,null,null,30,4,4,"30","04","04","30|04|04","Communications and Digital Technologies","ICT Enterprise and Public Entity Oversight","ICT Skills Development"]
[null,null,null,null,null,30,4,5,"30","04","05","30|04|05","Communications and Digital Technologies","ICT Enterprise and Public Entity Oversight","State Owned Enterprise Governance and Support"]
[null,null,null,null,null,30,5,1,"30","05","01","30|05|01","Communications and Digital Technologies","ICT Infrastructure Development and Support","Programme Management for ICT Infrastructure Development and Support"]
[null,null,null,null,null,30,5,2,"30","05","02","30|05|02","Communications and Digital Technologies","ICT Infrastructure Development and Support","Broadband"]
[null,null,null,null,null,30,5,3,"30","05","03","30|05|03","Communications and Digital Technologies","ICT Infrastructure Development and Support","ICT Support"]
[null,null,null,null,null,30,5,4,"30","05","04","30|05|04","Communications and Digital Technologies","ICT Infrastructure Development and Support","Broadcasting Digital Migration"]
[null,null,null,null,null,30,6,1,"30","06","01","30|06|01","Communications and Digital Technologies","ICT Information Society and Capacity Development","Programme Management for ICT Information Society and Capacity Development"]
[null,null,null,null,null,30,6,2,"30","06","02","30|06|02","Communications and Digital Technologies","ICT Information Society and Capacity Development","Information Society Development"]
[null,null,null,null,null,30,6,3,"30","06","03","30|06|03","Communications and Digital Technologies","ICT Information Society and Capacity Development","Capacity Development"]
[null,null,null,null,null,31,1,1,"31","01","01","31|01|01","Employment and Labour","Administration","Ministry"]
[null,null,null,null,null,31,1,2,"31","01","02","31|01|02","Employment and Labour","Administration","Management"]
[null,null,null,null,null,31,1,3,"31","01","03","31|01|03","Employment and Labour","Administration","Corporate Services"]
[null,null,null,null,null,31,1,4,"31","01","04","31|01|04","Employment and Labour","Administration","Office of the Chief Financial Officer"]
[null,null,null,null,null,31,1,5,"31","01","05","31|01|05","Employment and Labour","Administration","Office Accommodation"]
[null,null,null,null,null,31,2,1,"31","02","01","31|02|01","Employment and Labour","Inspection and Enforcement Services","Management and Support Services: Inspection and Enforcement Services"]
[null,null,null,null,null,31,2,2,"31","02","02","31|02|02","Employment and Labour","Inspection and Enforcement Services","Occupational Health and Safety"]
[null,null,null,null,null,31,2,3,"31","02","03","31|02|03","Employment and Labour","Inspection and Enforcement Services","Registration: Inspection and Enforcement Services"]
[null,null,null,null,null,31,2,4,"31","02","04","31|02|04","Employment and Labour","Inspection and Enforcement Services","Compliance, Monitoring and Enforcement Services"]
[null,null,null,null,null,31,2,5,"31","02","05","31|02|05","Employment and Labour","Inspection and Enforcement Services","Training of Staff: Inspection and Enforcement Services"]
[null,null,null,null,null,31,2,6,"31","02","06","31|02|06","Employment and Labour","Inspection and Enforcement Services","Statutory and Advocacy Services"]
[null,null,null,null,null,31,3,1,"31","03","01","31|03|01","Employment and Labour","Public Employment Services","Management and Support Services: Public Employment Services"]
[null,null,null,null,null,31,3,2,"31","03","02","31|03|02","Employment and Labour","Public Employment Services","Employer Services"]
[null,null,null,null,null,31,3,3,"31","03","03","31|03|03","Employment and Labour","Public Employment Services","Work Seeker Services"]
[null,null,null,null,null,31,3,4,"31","03","04","31|03|04","Employment and Labour","Public Employment Services","Designated Groups Special Services"]
[null,null,null,null,null,31,3,5,"31","03","05","31|03|05","Employment and Labour","Public Employment Services","Supported Employment Enterprises"]
[null,null,null,null,null,31,3,6,"31","03","06","31|03|06","Employment and Labour","Public Employment Services","Productivity South Africa"]
[null,null,null,null,null,31,3,7,"31","03","07","31|03|07","Employment and Labour","Public Employment Services","Unemployment Insurance Fund"]
[null,null,null,null,null,31,3,8,"31","03","08","31|03|08","Employment and Labour","Public Employment Services","Compensation Fund"]
[null,null,null,null,null,31,3,9,"31","03","09","31|03|09","Employment and Labour","Public Employment Services","Training of Staff: Public Employment Services"]
[null,null,null,null,null,31,4,1,"31","04","01","31|04|01","Employment and Labour","Labour Policy and Industrial Relations","Management and Support Services: Labour Policy and Industrial Relations"]
[null,null,null,null,null,31,4,2,"31","04","02","31|04|02","Employment and Labour","Labour Policy and Industrial Relations","Strengthen Civil Society"]
[null,null,null,null,null,31,4,3,"31","04","03","31|04|03","Employment and Labour","Labour Policy and Industrial Relations","Collective Bargaining"]
[null,null,null,null,null,31,4,4,"31","04","04","31|04|04","Employment and Labour","Labour Policy and Industrial Relations","Employment Equity"]
[null,null,null,null,null,31,4,5,"31","04","05","31|04|05","Employment and Labour","Labour Policy and Industrial Relations","Employment Standards"]
[null,null,null,null,null,31,4,6,"31","04","06","31|04|06","Employment and Labour","Labour Policy and Industrial Relations","Commission for Conciliation, Mediation and Arbitration"]
[null,null,null,null,null,31,4,7,"31","04","07","31|04|07","Employment and Labour","Labour Policy and Industrial Relations","Research, Policy and Planning"]
[null,null,null,null,null,31,4,8,"31","04","08","31|04|08","Employment and Labour","Labour Policy and Industrial Relations","Labour Market Information and Statistics"]
[null,null,null,null,null,31,4,9,"31","04","09","31|04|09","Employment and Labour","Labour Policy and Industrial Relations","International Labour Matters"]
[null,null,null,null,null,31,4,10,"31","04","10","31|04|10","Employment and Labour","Labour Policy and Industrial Relations","National Economic Development and Labour Council"]
[null,null,null,null,null,32,1,1,"32","01","01","32|01|01","Forestry, Fisheries and the Environment","Administration","Management"]
[null,null,null,null,null,32,1,2,"32","01","02","32|01|02","Forestry, Fisheries and the Environment","Administration","Corporate Management Services"]
[null,null,null,null,null,32,1,4,"32","01","04","32|01|04","Forestry, Fisheries and the Environment","Administration","Financial Management Services"]
[null,null,null,null,null,32,1,5,"32","01","05","32|01|05","Forestry, Fisheries and the Environment","Administration","Office Accommodation"]
[null,null,null,null,null,32,2,1,"32","02","01","32|02|01","Forestry, Fisheries and the Environment","Regulatory Compliance and Sector Monitoring","Regulatory Compliance and Sector Monitoring Management"]
[null,null,null,null,null,32,2,2,"32","02","02","32|02|02","Forestry, Fisheries and the Environment","Regulatory Compliance and Sector Monitoring","Compliance"]
[null,null,null,null,null,32,2,3,"32","02","03","32|02|03","Forestry, Fisheries and the Environment","Regulatory Compliance and Sector Monitoring","Integrated Environmental Authorisations"]
[null,null,null,null,null,32,2,4,"32","02","04","32|02|04","Forestry, Fisheries and the Environment","Regulatory Compliance and Sector Monitoring","Enforcement"]
[null,null,null,null,null,32,2,5,"32","02","05","32|02|05","Forestry, Fisheries and the Environment","Regulatory Compliance and Sector Monitoring","Litigation and Legal Support"]
[null,null,null,null,null,32,2,6,"32","02","06","32|02|06","Forestry, Fisheries and the Environment","Regulatory Compliance and Sector Monitoring","Law Reform and Appeals"]
[null,null,null,null,null,32,3,1,"32","03","01","32|03|01","Forestry, Fisheries and the Environment","Oceans and Coasts","Oceans and Coasts Management"]
[null,null,null,null,null,32,3,2,"32","03","02","32|03|02","Forestry, Fisheries and the Environment","Oceans and Coasts","Integrated Coastal Management and Coastal Conservation"]
[null,null,null,null,null,32,3,3,"32","03","03","32|03|03","Forestry, Fisheries and the Environment","Oceans and Coasts","Oceans and Coastal Research"]
[null,null,null,null,null,32,3,4,"32","03","04","32|03|04","Forestry, Fisheries and the Environment","Oceans and Coasts","Oceans Economy and Project Management"]
[null,null,null,null,null,32,3,5,"32","03","05","32|03|05","Forestry, Fisheries and the Environment","Oceans and Coasts","Specialist Monitoring Services"]
[null,null,null,null,null,32,4,1,"32","04","01","32|04|01","Forestry, Fisheries and the Environment","Climate Change, Air Quality and Sustainable Development","Climate Change, Air Quality and Sustainable Development Management"]
[null,null,null,null,null,32,4,2,"32","04","02","32|04|02","Forestry, Fisheries and the Environment","Climate Change, Air Quality and Sustainable Development","Climate Change Mitigation"]
[null,null,null,null,null,32,4,3,"32","04","03","32|04|03","Forestry, Fisheries and the Environment","Climate Change, Air Quality and Sustainable Development","Climate Change Adaptation"]
[null,null,null,null,null,32,4,4,"32","04","04","32|04|04","Forestry, Fisheries and the Environment","Climate Change, Air Quality and Sustainable Development","Air Quality Management"]
[null,null,null,null,null,32,4,5,"32","04","05","32|04|05","Forestry, Fisheries and the Environment","Climate Change, Air Quality and Sustainable Development","South African Weather Service"]
[null,null,null,null,null,32,4,6,"32","04","06","32|04|06","Forestry, Fisheries and the Environment","Climate Change, Air Quality and Sustainable Development","International Climate Change Relations and Reporting"]
[null,null,null,null,null,32,4,7,"32","04","07","32|04|07","Forestry, Fisheries and the Environment","Climate Change, Air Quality and Sustainable Development","Climate Change Monitoring and Evaluation"]
[null,null,null,null,null,32,4,8,"32","04","08","32|04|08","Forestry, Fisheries and the Environment","Climate Change, Air Quality and Sustainable Development","International Governance and Resource Mobilisation"]
[null,null,null,null,null,32,4,9,"32","04","09","32|04|09","Forestry, Fisheries and the Environment","Climate Change, Air Quality and Sustainable Development","Knowledge and Information Management"]
[null,null,null,null,null,32,4,10,"32","04","10","32|04|10","Forestry, Fisheries and the Environment","Climate Change, Air Quality and Sustainable Development","Environmental Sector Performance"]
[null,null,null,null,null,32,5,1,"32","05","01","32|05|01","Forestry, Fisheries and the Environment","Biodiversity and Conservation","Biodiversity and Conservation Management"]
[null,null,null,null,null,32,5,2,"32","05","02","32|05|02","Forestry, Fisheries and the Environment","Biodiversity and Conservation","Biodiversity Management and Permitting"]
[null,null,null,null,null,32,5,3,"32","05","03","32|05|03","Forestry, Fisheries and the Environment","Biodiversity and Conservation","Protected Areas Systems Management"]
[null,null,null,null,null,32,5,4,"32","05","04","32|05|04","Forestry, Fisheries and the Environment","Biodiversity and Conservation","iSimangaliso Wetland Park Authority"]
[null,null,null,null,null,32,5,5,"32","05","05","32|05|05","Forestry, Fisheries and the Environment","Biodiversity and Conservation","South African National Parks"]
[null,null,null,null,null,32,5,6,"32","05","06","32|05|06","Forestry, Fisheries and the Environment","Biodiversity and Conservation","South African National Biodiversity Institute"]
[null,null,null,null,null,32,5,7,"32","05","07","32|05|07","Forestry, Fisheries and the Environment","Biodiversity and Conservation","Biodiversity Monitoring Specialist Services"]
[null,null,null,null,null,32,5,8,"32","05","08","32|05|08","Forestry, Fisheries and the Environment","Biodiversity and Conservation","Biodiversity Economy and Sustainable Use"]
[null,null,null,null,null,32,6,1,"32","06","01","32|06|01","Forestry, Fisheries and the Environment","Environmental Programmes","Environmental Protection and Infrastructure Programme"]
[null,null,null,null,null,32,6,2,"32","06","02","32|06|02","Forestry, Fisheries and the Environment","Environmental Programmes","Natural Resource Management"]
[null,null,null,null,null,32,6,3,"32","06","03","32|06|03","Forestry, Fisheries and the Environment","Environmental Programmes","Green Fund"]
[null,null,null,null,null,32,6,4,"32","06","04","32|06|04","Forestry, Fisheries and the Environment","Environmental Programmes","Environmental Programmes Management"]
[null,null,null,null,null,32,6,5,"32","06","05","32|06|05","Forestry, Fisheries and the Environment","Environmental Programmes","Information Management and Sector Coordination"]
[null,null,null,null,null,32,7,1,"32","07","01","32|07|01","Forestry, Fisheries and the Environment","Chemicals and Waste Management","Chemicals and Waste Management"]
[null,null,null,null,null,32,7,2,"32","07","02","32|07|02","Forestry, Fisheries and the Environment","Chemicals and Waste Management","Hazardous Waste Management and Licensing"]
[null,null,null,null,null,32,7,3,"32","07","03","32|07|03","Forestry, Fisheries and the Environment","Chemicals and Waste Management","Integrated Waste Management and Strategic Support"]
[null,null,null,null,null,32,7,4,"32","07","04","32|07|04","Forestry, Fisheries and the Environment","Chemicals and Waste Management","Chemicals and Waste Policy, Evaluation and Monitoring"]
[null,null,null,null,null,32,7,5,"32","07","05","32|07|05","Forestry, Fisheries and the Environment","Chemicals and Waste Management","Chemicals Management"]
[null,null,null,null,null,32,7,6,"32","07","06","32|07|06","Forestry, Fisheries and the Environment","Chemicals and Waste Management","Waste Bureau"]
[null,null,null,null,null,32,8,1,"32","08","01","32|08|01","Forestry, Fisheries and the Environment","Forestry Management","Forestry Management"]
[null,null,null,null,null,32,8,2,"32","08","02","32|08|02","Forestry, Fisheries and the Environment","Forestry Management","Forestry Operations"]
[null,null,null,null,null,32,8,3,"32","08","03","32|08|03","Forestry, Fisheries and the Environment","Forestry Management","Forestry Development and Regulation"]
[null,null,null,null,null,32,9,1,"32","09","01","32|09|01","Forestry, Fisheries and the Environment","Fisheries Management","Fisheries Management"]
[null,null,null,null,null,32,9,2,"32","09","02","32|09|02","Forestry, Fisheries and the Environment","Fisheries Management","Aquaculture and Economic Development"]
[null,null,null,null,null,32,9,3,"32","09","03","32|09|03","Forestry, Fisheries and the Environment","Fisheries Management","Monitoring, Control and Surveillance"]
[null,null,null,null,null,32,9,4,"32","09","04","32|09|04","Forestry, Fisheries and the Environment","Fisheries Management","Marine Resources Management"]
[null,null,null,null,null,32,9,5,"32","09","05","32|09|05","Forestry, Fisheries and the Environment","Fisheries Management","Fisheries Research and Development"]
[null,null,null,null,null,32,9,6,"32","09","06","32|09|06","Forestry, Fisheries and the Environment","Fisheries Management","Marine Living Resources Fund"]
[null,null,null,null,null,33,1,1,"33","01","01","33|01|01","Human Settlements","Administration","Ministry"]
[null,null,null,null,null,33,1,2,"33","01","02","33|01|02","Human Settlements","Administration","Departmental Management"]
[null,null,null,null,null,33,1,3,"33","01","03","33|01|03","Human Settlements","Administration","Corporate Services"]
[null,null,null,null,null,33,1,4,"33","01","04","33|01|04","Human Settlements","Administration","Property Management"]
[null,null,null,null,null,33,1,5,"33","01","05","33|01|05","Human Settlements","Administration","Financial Management"]
[null,null,null,null,null,33,2,1,"33","02","01","33|02|01","Human Settlements","Integrated Human Settlements Planning and Development","Management for Integrated Human Settlements Planning and Development"]
[null,null,null,null,null,33,2,2,"33","02","02","33|02|02","Human Settlements","Integrated Human Settlements Planning and Development","Macro Sector Planning"]
[null,null,null,null,null,33,2,3,"33","02","03","33|02|03","Human Settlements","Integrated Human Settlements Planning and Development","Macro Policy and Research"]
[null,null,null,null,null,33,2,4,"33","02","04","33|02|04","Human Settlements","Integrated Human Settlements Planning and Development","Monitoring and Evaluation"]
[null,null,null,null,null,33,2,5,"33","02","05","33|02|05","Human Settlements","Integrated Human Settlements Planning and Development","Public Entity Oversight"]
[null,null,null,null,null,33,2,6,"33","02","06","33|02|06","Human Settlements","Integrated Human Settlements Planning and Development","Grant Management"]
[null,null,null,null,null,33,2,7,"33","02","07","33|02|07","Human Settlements","Integrated Human Settlements Planning and Development","Capacity Building and Sector Support"]
[null,null,null,null,null,33,3,1,"33","03","01","33|03|01","Human Settlements","Informal Settlements","Management for Informal Settlements"]
[null,null,null,null,null,33,3,4,"33","03","04","33|03|04","Human Settlements","Informal Settlements","Grant Management"]
[null,null,null,null,null,33,3,5,"33","03","05","33|03|05","Human Settlements","Informal Settlements","Capacity Building and Sector Support"]
[null,null,null,null,null,33,4,1,"33","04","01","33|04|01","Human Settlements","Rental and Social Housing","Management for Rental and Social Housing"]
[null,null,null,null,null,33,4,4,"33","04","04","33|04|04","Human Settlements","Rental and Social Housing","Public Entity Oversight"]
[null,null,null,null,null,33,4,5,"33","04","05","33|04|05","Human Settlements","Rental and Social Housing","Capacity Building and Sector Support"]
[null,null,null,null,null,33,5,1,"33","05","01","33|05|01","Human Settlements","Affordable Housing","Management for Affordable Housing"]
[null,null,null,null,null,33,5,4,"33","05","04","33|05|04","Human Settlements","Affordable Housing","Public Entity Oversight"]
[null,null,null,null,null,33,5,6,"33","05","06","33|05|06","Human Settlements","Affordable Housing","Capacity Building and Sector Support"]
[null,null,null,null,null,34,1,1,"34","01","01","34|01|01","Mineral Resources and Energy","Administration","Ministry"]
[null,null,null,null,null,34,1,2,"34","01","02","34|01|02","Mineral Resources and Energy","Administration","Departmental Management"]
[null,null,null,null,null,34,1,3,"34","01","03","34|01|03","Mineral Resources and Energy","Administration","Audit Services"]
[null,null,null,null,null,34,1,4,"34","01","04","34|01|04","Mineral Resources and Energy","Administration","Financial Administration"]
[null,null,null,null,null,34,1,5,"34","01","05","34|01|05","Mineral Resources and Energy","Administration","Corporate Services"]
[null,null,null,null,null,34,1,6,"34","01","06","34|01|06","Mineral Resources and Energy","Administration","Office Accommodation"]
[null,null,null,null,null,34,2,1,"34","02","01","34|02|01","Mineral Resources and Energy","Minerals and Petroleum Regulation","Minerals and Petroleum Management"]
[null,null,null,null,null,34,2,2,"34","02","02","34|02|02","Mineral Resources and Energy","Minerals and Petroleum Regulation","Mineral Regulation and Administration"]
[null,null,null,null,null,34,2,3,"34","02","03","34|02|03","Mineral Resources and Energy","Minerals and Petroleum Regulation","Environmental Enforcement and Compliance"]
[null,null,null,null,null,34,2,4,"34","02","04","34|02|04","Mineral Resources and Energy","Minerals and Petroleum Regulation","Petroleum Compliance Monitoring, Enforcement and Fuel Pricing"]
[null,null,null,null,null,34,2,5,"34","02","05","34|02|05","Mineral Resources and Energy","Minerals and Petroleum Regulation","Petroleum Licensing and Fuel Supply"]
[null,null,null,null,null,34,3,1,"34","03","01","34|03|01","Mineral Resources and Energy","Mining, Minerals and Energy Policy Development","Mining, Minerals and Energy Policy Development Management"]
[null,null,null,null,null,34,3,2,"34","03","02","34|03|02","Mineral Resources and Energy","Mining, Minerals and Energy Policy Development","Minerals and Petroleum Policy"]
[null,null,null,null,null,34,3,3,"34","03","03","34|03|03","Mineral Resources and Energy","Mining, Minerals and Energy Policy Development","Nuclear, Electricity and Gas Policy"]
[null,null,null,null,null,34,3,4,"34","03","04","34|03|04","Mineral Resources and Energy","Mining, Minerals and Energy Policy Development","Economic Analysis and Statistics"]
[null,null,null,null,null,34,3,5,"34","03","05","34|03|05","Mineral Resources and Energy","Mining, Minerals and Energy Policy Development","Economic Growth, Promotion and Global Relations"]
[null,null,null,null,null,34,3,6,"34","03","06","34|03|06","Mineral Resources and Energy","Mining, Minerals and Energy Policy Development","Mineral and Energy Planning"]
[null,null,null,null,null,34,4,1,"34","04","01","34|04|01","Mineral Resources and Energy","Mine Health and Safety Inspectorate","Mine Health and Safety Management"]
[null,null,null,null,null,34,4,2,"34","04","02","34|04|02","Mineral Resources and Energy","Mine Health and Safety Inspectorate","Mine Health and Safety Regions"]
[null,null,null,null,null,34,4,3,"34","04","03","34|04|03","Mineral Resources and Energy","Mine Health and Safety Inspectorate","Occupational Health"]
[null,null,null,null,null,34,5,1,"34","05","01","34|05|01","Mineral Resources and Energy","Mineral and Energy Resources Programmes and Projects","Programmes and Projects Management"]
[null,null,null,null,null,34,5,2,"34","05","02","34|05|02","Mineral Resources and Energy","Mineral and Energy Resources Programmes and Projects","Integrated National Electrification Programme"]
[null,null,null,null,null,34,5,3,"34","05","03","34|05|03","Mineral Resources and Energy","Mineral and Energy Resources Programmes and Projects","Programmes and Projects Management Office"]
[null,null,null,null,null,34,5,4,"34","05","04","34|05|04","Mineral Resources and Energy","Mineral and Energy Resources Programmes and Projects","Regional Programmes and Projects Management Office"]
[null,null,null,null,null,34,5,5,"34","05","05","34|05|05","Mineral Resources and Energy","Mineral and Energy Resources Programmes and Projects","Electricity Infrastructure and Industry Transformation"]
[null,null,null,null,null,34,5,6,"34","05","06","34|05|06","Mineral Resources and Energy","Mineral and Energy Resources Programmes and Projects","Energy Efficiency Projects"]
[null,null,null,null,null,34,5,7,"34","05","07","34|05|07","Mineral Resources and Energy","Mineral and Energy Resources Programmes and Projects","Renewable Energy Projects"]
[null,null,null,null,null,34,5,8,"34","05","08","34|05|08","Mineral Resources and Energy","Mineral and Energy Resources Programmes and Projects","Environmental Management Projects"]
[null,null,null,null,null,34,6,1,"34","06","01","34|06|01","Mineral Resources and Energy","Nuclear Energy Regulation and Management","Nuclear Energy Management"]
[null,null,null,null,null,34,6,2,"34","06","02","34|06|02","Mineral Resources and Energy","Nuclear Energy Regulation and Management","Nuclear Safety and Technology"]
[null,null,null,null,null,34,6,3,"34","06","03","34|06|03","Mineral Resources and Energy","Nuclear Energy Regulation and Management","Nuclear Non-proliferation and Radiation Security"]
[null,null,null,null,null,35,1,1,"35","01","01","35|01|01","Science and Innovation","Administration","Ministry"]
[null,null,null,null,null,35,1,2,"35","01","02","35|01|02","Science and Innovation","Administration","Institutional Planning and Support"]
[null,null,null,null,null,35,1,3,"35","01","03","35|01|03","Science and Innovation","Administration","Corporate Services"]
[null,null,null,null,null,35,1,4,"35","01","04","35|01|04","Science and Innovation","Administration","Office Accommodation"]
[null,null,null,null,null,35,2,1,"35","02","01","35|02|01","Science and Innovation","Technology Innovation","Space Science"]
[null,null,null,null,null,35,2,2,"35","02","02","35|02|02","Science and Innovation","Technology Innovation","Hydrogen and Energy"]
[null,null,null,null,null,35,2,3,"35","02","03","35|02|03","Science and Innovation","Technology Innovation","Bio-innovation"]
[null,null,null,null,null,35,2,4,"35","02","04","35|02|04","Science and Innovation","Technology Innovation","Innovation Priorities and Instruments"]
[null,null,null,null,null,35,2,5,"35","02","05","35|02|05","Science and Innovation","Technology Innovation","National Intellectual Property Management Office"]
[null,null,null,null,null,35,2,6,"35","02","06","35|02|06","Science and Innovation","Technology Innovation","Office of the Deputy Director-General: Technology Innovation"]
[null,null,null,null,null,35,3,1,"35","03","01","35|03|01","Science and Innovation","International Cooperation and Resources","Multilateral Cooperation and Africa"]
[null,null,null,null,null,35,3,2,"35","03","02","35|03|02","Science and Innovation","International Cooperation and Resources","International Resources"]
[null,null,null,null,null,35,3,3,"35","03","03","35|03|03","Science and Innovation","International Cooperation and Resources","Overseas Bilateral Cooperation"]
[null,null,null,null,null,35,3,4,"35","03","04","35|03|04","Science and Innovation","International Cooperation and Resources","Office of the Deputy Director-General: International Cooperation and Resources"]
[null,null,null,null,null,35,4,1,"35","04","01","35|04|01","Science and Innovation","Research, Development and Support","Human Capital and Science Promotions"]
[null,null,null,null,null,35,4,2,"35","04","02","35|04|02","Science and Innovation","Research, Development and Support","Science Missions"]
[null,null,null,null,null,35,4,3,"35","04","03","35|04|03","Science and Innovation","Research, Development and Support","Basic Science and Infrastructure"]
[null,null,null,null,null,35,4,4,"35","04","04","35|04|04","Science and Innovation","Research, Development and Support","Astronomy"]
[null,null,null,null,null,35,4,5,"35","04","05","35|04|05","Science and Innovation","Research, Development and Support","Office of the Deputy Director-General: Research, Development and Support"]
[null,null,null,null,null,35,5,1,"35","05","01","35|05|01","Science and Innovation","Socioeconomic Innovation Partnerships","Sector Innovation and Green Economy"]
[null,null,null,null,null,35,5,2,"35","05","02","35|05|02","Science and Innovation","Socioeconomic Innovation Partnerships","Innovation for Inclusive Development"]
[null,null,null,null,null,35,5,3,"35","05","03","35|05|03","Science and Innovation","Socioeconomic Innovation Partnerships","Science and Technology Investment"]
[null,null,null,null,null,35,5,4,"35","05","04","35|05|04","Science and Innovation","Socioeconomic Innovation Partnerships","Technology Localisation, Beneficiation and Advanced Manufacturing"]
[null,null,null,null,null,35,5,5,"35","05","05","35|05|05","Science and Innovation","Socioeconomic Innovation Partnerships","Office of the Deputy Director-General: Socioeconomic Innovation Partnership"]
[null,null,null,null,null,36,1,1,"36","01","01","36|01|01","Small Business Development","Administration","Ministry"]
[null,null,null,null,null,36,1,2,"36","01","02","36|01|02","Small Business Development","Administration","Departmental Management"]
[null,null,null,null,null,36,1,3,"36","01","03","36|01|03","Small Business Development","Administration","Corporate Services"]
[null,null,null,null,null,36,1,4,"36","01","04","36|01|04","Small Business Development","Administration","Financial Management"]
[null,null,null,null,null,36,2,1,"36","02","01","36|02|01","Small Business Development","Sector and Market Development","Sector and Market Development Management"]
[null,null,null,null,null,36,2,2,"36","02","02","36|02|02","Small Business Development","Sector and Market Development","Business Intelligence and Knowledge Management"]
[null,null,null,null,null,36,2,3,"36","02","03","36|02|03","Small Business Development","Sector and Market Development","Ease of Doing Business"]
[null,null,null,null,null,36,2,4,"36","02","04","36|02|04","Small Business Development","Sector and Market Development","Access to Market Support"]
[null,null,null,null,null,36,3,1,"36","03","01","36|03|01","Small Business Development","Development Finance","Development Finance Management"]
[null,null,null,null,null,36,3,2,"36","03","02","36|03|02","Small Business Development","Development Finance","Model Funding Collaboration"]
[null,null,null,null,null,36,3,3,"36","03","03","36|03|03","Small Business Development","Development Finance","Blended Finance"]
[null,null,null,null,null,36,3,4,"36","03","04","36|03|04","Small Business Development","Development Finance","Business Viability"]
[null,null,null,null,null,36,4,1,"36","04","01","36|04|01","Small Business Development","Enterprise Development","Enterprise Development Management"]
[null,null,null,null,null,36,4,2,"36","04","02","36|04|02","Small Business Development","Enterprise Development","Enterprise and Supplier Development"]
[null,null,null,null,null,36,4,3,"36","04","03","36|04|03","Small Business Development","Enterprise Development","SMME Competitiveness"]
[null,null,null,null,null,37,1,1,"37","01","01","37|01|01","Sport, Arts and Culture","Administration","Ministry"]
[null,null,null,null,null,37,1,2,"37","01","02","37|01|02","Sport, Arts and Culture","Administration","Management"]
[null,null,null,null,null,37,1,3,"37","01","03","37|01|03","Sport, Arts and Culture","Administration","Strategic Management and Planning"]
[null,null,null,null,null,37,1,4,"37","01","04","37|01|04","Sport, Arts and Culture","Administration","Corporate Services"]
[null,null,null,null,null,37,1,5,"37","01","05","37|01|05","Sport, Arts and Culture","Administration","Office of the Chief Financial Officer"]
[null,null,null,null,null,37,1,6,"37","01","06","37|01|06","Sport, Arts and Culture","Administration","Office Accommodation"]
[null,null,null,null,null,37,2,1,"37","02","01","37|02|01","Sport, Arts and Culture","Recreation Development and Sport Promotion","Winning Nation"]
[null,null,null,null,null,37,2,2,"37","02","02","37|02|02","Sport, Arts and Culture","Recreation Development and Sport Promotion","Active Nation"]
[null,null,null,null,null,37,2,3,"37","02","03","37|02|03","Sport, Arts and Culture","Recreation Development and Sport Promotion","Infrastructure Support"]
[null,null,null,null,null,37,3,1,"37","03","01","37|03|01","Sport, Arts and Culture","Arts and Culture Promotion and Development","National Language Services"]
[null,null,null,null,null,37,3,2,"37","03","02","37|03|02","Sport, Arts and Culture","Arts and Culture Promotion and Development","Pan South African Language Board"]
[null,null,null,null,null,37,3,3,"37","03","03","37|03|03","Sport, Arts and Culture","Arts and Culture Promotion and Development","Cultural and Creative Industries Development"]
[null,null,null,null,null,37,3,4,"37","03","04","37|03|04","Sport, Arts and Culture","Arts and Culture Promotion and Development","International Cooperation"]
[null,null,null,null,null,37,3,5,"37","03","05","37|03|05","Sport, Arts and Culture","Arts and Culture Promotion and Development","Social Cohesion and Nation Building"]
[null,null,null,null,null,37,3,6,"37","03","06","37|03|06","Sport, Arts and Culture","Arts and Culture Promotion and Development","Mzansi Golden Economy"]
[null,null,null,null,null,37,3,7,"37","03","07","37|03|07","Sport, Arts and Culture","Arts and Culture Promotion and Development","Performing Arts Institutions"]
[null,null,null,null,null,37,3,8,"37","03","08","37|03|08","Sport, Arts and Culture","Arts and Culture Promotion and Development","National Film and Video Foundation"]
[null,null,null,null,null,37,3,9,"37","03","09","37|03|09","Sport, Arts and Culture","Arts and Culture Promotion and Development","National Arts Council"]
[null,null,null,null,null,37,4,1,"37","04","01","37|04|01","Sport, Arts and Culture","Heritage Promotion and Preservation","Heritage Promotion"]
[null,null,null,null,null,37,4,2,"37","04","02","37|04|02","Sport, Arts and Culture","Heritage Promotion and Preservation","National Archive Services"]
[null,null,null,null,null,37,4,3,"37","04","03","37|04|03","Sport, Arts and Culture","Heritage Promotion and Preservation","Heritage Institutions"]
[null,null,null,null,null,37,4,4,"37","04","04","37|04|04","Sport, Arts and Culture","Heritage Promotion and Preservation","National Library Services"]
[null,null,null,null,null,37,4,5,"37","04","05","37|04|05","Sport, Arts and Culture","Heritage Promotion and Preservation","Public Library Services"]
[null,null,null,null,null,37,4,6,"37","04","06","37|04|06","Sport, Arts and Culture","Heritage Promotion and Preservation","South African Heritage Resources Agency"]
[null,null,null,null,null,37,4,7,"37","04","07","37|04|07","Sport, Arts and Culture","Heritage Promotion and Preservation","South African Geographical Names Council"]
[null,null,null,null,null,37,4,8,"37","04","08","37|04|08","Sport, Arts and Culture","Heritage Promotion and Preservation","National Heritage Council"]
[null,null,null,null,null,38,1,1,"38","01","01","38|01|01","Tourism","Administration","Ministry"]
[null,null,null,null,null,38,1,2,"38","01","02","38|01|02","Tourism","Administration","Management"]
[null,null,null,null,null,38,1,3,"38","01","03","38|01|03","Tourism","Administration","Corporate Management"]
[null,null,null,null,null,38,1,4,"38","01","04","38|01|04","Tourism","Administration","Financial Management"]
[null,null,null,null,null,38,1,5,"38","01","05","38|01|05","Tourism","Administration","Office Accommodation"]
[null,null,null,null,null,38,2,1,"38","02","01","38|02|01","Tourism","Tourism Research, Policy and International Relations","Tourism Research, Policy and International Relations Management"]
[null,null,null,null,null,38,2,2,"38","02","02","38|02|02","Tourism","Tourism Research, Policy and International Relations","Research and Knowledge Management"]
[null,null,null,null,null,38,2,3,"38","02","03","38|02|03","Tourism","Tourism Research, Policy and International Relations","Policy Planning and Strategy"]
[null,null,null,null,null,38,2,4,"38","02","04","38|02|04","Tourism","Tourism Research, Policy and International Relations","South African Tourism"]
[null,null,null,null,null,38,2,5,"38","02","05","38|02|05","Tourism","Tourism Research, Policy and International Relations","International Relations and Cooperation"]
[null,null,null,null,null,38,3,1,"38","03","01","38|03|01","Tourism","Destination Development","Destination Development Management"]
[null,null,null,null,null,38,3,2,"38","03","02","38|03|02","Tourism","Destination Development","Tourism Enhancement"]
[null,null,null,null,null,38,3,3,"38","03","03","38|03|03","Tourism","Destination Development","Destination Planning and Investment Coordination"]
[null,null,null,null,null,38,3,4,"38","03","04","38|03|04","Tourism","Destination Development","Working for Tourism"]
[null,null,null,null,null,38,4,1,"38","04","01","38|04|01","Tourism","Tourism Sector Support Services","Tourism Sector Support Services Management"]
[null,null,null,null,null,38,4,2,"38","04","02","38|04|02","Tourism","Tourism Sector Support Services","Tourism Human Resource Development"]
[null,null,null,null,null,38,4,3,"38","04","03","38|04|03","Tourism","Tourism Sector Support Services","Enterprise Development and Transformation"]
[null,null,null,null,null,38,4,4,"38","04","04","38|04|04","Tourism","Tourism Sector Support Services","Tourism Visitor Services"]
[null,null,null,null,null,38,4,5,"38","04","05","38|04|05","Tourism","Tourism Sector Support Services","Tourism incentive programme"]
[null,null,null,null,null,39,1,1,"39","01","01","39|01|01","Trade, Industry and Competition","Administration","Ministry"]
[null,null,null,null,null,39,1,2,"39","01","02","39|01|02","Trade, Industry and Competition","Administration","Office of the Director-General"]
[null,null,null,null,null,39,1,3,"39","01","03","39|01|03","Trade, Industry and Competition","Administration","Corporate Management Services"]
[null,null,null,null,null,39,1,4,"39","01","04","39|01|04","Trade, Industry and Competition","Administration","Office Accommodation"]
[null,null,null,null,null,39,1,5,"39","01","05","39|01|05","Trade, Industry and Competition","Administration","Financial Management"]
[null,null,null,null,null,39,1,6,"39","01","06","39|01|06","Trade, Industry and Competition","Administration","Marketing Communication and Media Relations"]
[null,null,null,null,null,39,2,1,"39","02","01","39|02|01","Trade, Industry and Competition","Trade Policy","International Trade Development"]
[null,null,null,null,null,39,2,2,"39","02","02","39|02|02","Trade, Industry and Competition","Trade Policy","African Multilateral Economic Development"]
[null,null,null,null,null,39,3,1,"39","03","01","39|03|01","Trade, Industry and Competition","Spatial Industrial Development","Enterprise Competitiveness"]
[null,null,null,null,null,39,3,2,"39","03","02","39|03|02","Trade, Industry and Competition","Spatial Industrial Development","Equity and Empowerment"]
[null,null,null,null,null,39,3,3,"39","03","03","39|03|03","Trade, Industry and Competition","Spatial Industrial Development","Regional Industrial Development"]
[null,null,null,null,null,39,4,1,"39","04","01","39|04|01","Trade, Industry and Competition","Industrial Policy","Industrial Competitiveness"]
[null,null,null,null,null,39,4,2,"39","04","02","39|04|02","Trade, Industry and Competition","Industrial Policy","Customised Sector Programmes"]
[null,null,null,null,null,39,5,1,"39","05","01","39|05|01","Trade, Industry and Competition","Consumer and Corporate Regulation","Policy and Legislative Development"]
[null,null,null,null,null,39,5,2,"39","05","02","39|05|02","Trade, Industry and Competition","Consumer and Corporate Regulation","Enforcement and Compliance"]
[null,null,null,null,null,39,5,3,"39","05","03","39|05|03","Trade, Industry and Competition","Consumer and Corporate Regulation","Regulatory Services"]
[null,null,null,null,null,39,6,1,"39","06","01","39|06|01","Trade, Industry and Competition","Industrial Financing","Broadening Participation and Industrial Incentives"]
[null,null,null,null,null,39,6,2,"39","06","02","39|06|02","Trade, Industry and Competition","Industrial Financing","Manufacturing Incentives"]
[null,null,null,null,null,39,6,3,"39","06","03","39|06|03","Trade, Industry and Competition","Industrial Financing","Services Investment Incentives"]
[null,null,null,null,null,39,6,4,"39","06","04","39|06|04","Trade, Industry and Competition","Industrial Financing","Infrastructure Investment Support"]
[null,null,null,null,null,39,6,5,"39","06","05","39|06|05","Trade, Industry and Competition","Industrial Financing","Product and Systems Development"]
[null,null,null,null,null,39,6,6,"39","06","06","39|06|06","Trade, Industry and Competition","Industrial Financing","Strategic Partnership and Customer Care"]
[null,null,null,null,null,39,7,1,"39","07","01","39|07|01","Trade, Industry and Competition","Trade and Investment South Africa","Trade Invest Africa"]
[null,null,null,null,null,39,7,2,"39","07","02","39|07|02","Trade, Industry and Competition","Trade and Investment South Africa","Export Promotion and Marketing"]
[null,null,null,null,null,39,7,3,"39","07","03","39|07|03","Trade, Industry and Competition","Trade and Investment South Africa","Trade and Investment Foreign Services Management Unit"]
[null,null,null,null,null,39,7,4,"39","07","04","39|07|04","Trade, Industry and Competition","Trade and Investment South Africa","Export Development and Support"]
[null,null,null,null,null,39,8,1,"39","08","01","39|08|01","Trade, Industry and Competition","Invest South Africa","Investment Promotion"]
[null,null,null,null,null,39,8,2,"39","08","02","39|08|02","Trade, Industry and Competition","Invest South Africa","Investment and Interdepartmental Clearing House"]
[null,null,null,null,null,39,8,3,"39","08","03","39|08|03","Trade, Industry and Competition","Invest South Africa","Investor Support and Aftercare"]
[null,null,null,null,null,39,9,1,"39","09","01","39|09|01","Trade, Industry and Competition","Competition Policy","Economic Planning and Advisory"]
[null,null,null,null,null,39,9,2,"39","09","02","39|09|02","Trade, Industry and Competition","Competition Policy","Implementation and Coordination"]
[null,null,null,null,null,39,9,3,"39","09","03","39|09|03","Trade, Industry and Competition","Competition Policy","Investment and Development"]
[null,null,null,null,null,39,9,4,"39","09","04","39|09|04","Trade, Industry and Competition","Competition Policy","Competition Oversight"]
[null,null,null,null,null,39,10,1,"39","10","01","39|10|01","Trade, Industry and Competition","Economic Research","Economic Research and Policy Coordination"]
[null,null,null,null,null,39,10,2,"39","10","02","39|10|02","Trade, Industry and Competition","Economic Research","Macroeconomic and Microeconomic Policy"]
[null,null,null,null,null,39,10,3,"39","10","03","39|10|03","Trade, Industry and Competition","Economic Research","Growth Path and Decent Work"]
[null,null,null,null,null,40,1,1,"40","01","01","40|01|01","Transport","Administration","Ministry"]
[null,null,null,null,null,40,1,2,"40","01","02","40|01|02","Transport","Administration","Management"]
[null,null,null,null,null,40,1,3,"40","01","03","40|01|03","Transport","Administration","Corporate Services"]
[null,null,null,null,null,40,1,4,"40","01","04","40|01|04","Transport","Administration","Communications"]
[null,null,null,null,null,40,1,5,"40","01","05","40|01|05","Transport","Administration","Office Accommodation"]
[null,null,null,null,null,40,2,1,"40","02","01","40|02|01","Transport","Integrated Transport Planning","Macro Sector Planning"]
[null,null,null,null,null,40,2,2,"40","02","02","40|02|02","Transport","Integrated Transport Planning","Freight Logistics"]
[null,null,null,null,null,40,2,3,"40","02","03","40|02|03","Transport","Integrated Transport Planning","Modelling and Economic Analysis"]
[null,null,null,null,null,40,2,4,"40","02","04","40|02|04","Transport","Integrated Transport Planning","Regional Integration"]
[null,null,null,null,null,40,2,5,"40","02","05","40|02|05","Transport","Integrated Transport Planning","Research and Innovation"]
[null,null,null,null,null,40,2,6,"40","02","06","40|02|06","Transport","Integrated Transport Planning","Integrated Transport Planning Administration Support"]
[null,null,null,null,null,40,3,1,"40","03","01","40|03|01","Transport","Rail Transport","Rail Regulation"]
[null,null,null,null,null,40,3,2,"40","03","02","40|03|02","Transport","Rail Transport","Rail Infrastructure and Industry Development"]
[null,null,null,null,null,40,3,3,"40","03","03","40|03|03","Transport","Rail Transport","Rail Operations"]
[null,null,null,null,null,40,3,4,"40","03","04","40|03|04","Transport","Rail Transport","Rail Oversight"]
[null,null,null,null,null,40,3,5,"40","03","05","40|03|05","Transport","Rail Transport","Rail Administration Support"]
[null,null,null,null,null,40,4,1,"40","04","01","40|04|01","Transport","Road Transport","Road Regulation"]
[null,null,null,null,null,40,4,2,"40","04","02","40|04|02","Transport","Road Transport","Road Infrastructure and Industry Development"]
[null,null,null,null,null,40,4,3,"40","04","03","40|04|03","Transport","Road Transport","Road Oversight"]
[null,null,null,null,null,40,4,4,"40","04","04","40|04|04","Transport","Road Transport","Road Administration Support"]
[null,null,null,null,null,40,4,5,"40","04","05","40|04|05","Transport","Road Transport","Road Engineering Standards"]
[null,null,null,null,null,40,5,1,"40","05","01","40|05|01","Transport","Civil Aviation","Aviation Policy and Regulations"]
[null,null,null,null,null,40,5,2,"40","05","02","40|05|02","Transport","Civil Aviation","Aviation Economic Analysis and Industry Development"]
[null,null,null,null,null,40,5,3,"40","05","03","40|05|03","Transport","Civil Aviation","Aviation Safety, Security, Environment, and Search and Rescue"]
[null,null,null,null,null,40,5,4,"40","05","04","40|05|04","Transport","Civil Aviation","Aviation Oversight"]
[null,null,null,null,null,40,5,5,"40","05","05","40|05|05","Transport","Civil Aviation","Aviation Administration Support"]
[null,null,null,null,null,40,6,1,"40","06","01","40|06|01","Transport","Maritime Transport","Maritime Policy Development"]
[null,null,null,null,null,40,6,2,"40","06","02","40|06|02","Transport","Maritime Transport","Maritime Infrastructure and Industry Development"]
[null,null,null,null,null,40,6,3,"40","06","03","40|06|03","Transport","Maritime Transport","Implementation, Monitoring and Evaluation"]
[null,null,null,null,null,40,6,4,"40","06","04","40|06|04","Transport","Maritime Transport","Maritime Oversight"]
[null,null,null,null,null,40,6,5,"40","06","05","40|06|05","Transport","Maritime Transport","Maritime Administration Support"]
[null,null,null,null,null,40,7,1,"40","07","01","40|07|01","Transport","Public Transport","Public Transport Regulation"]
[null,null,null,null,null,40,7,2,"40","07","02","40|07|02","Transport","Public Transport","Rural and Scholar Transport"]
[null,null,null,null,null,40,7,3,"40","07","03","40|07|03","Transport","Public Transport","Public Transport Industry Development"]
[null,null,null,null,null,40,7,4,"40","07","04","40|07|04","Transport","Public Transport","Public Transport Oversight"]
[null,null,null,null,null,40,7,5,"40","07","05","40|07|05","Transport","Public Transport","Public Transport Administration Support"]
[null,null,null,null,null,40,7,6,"40","07","06","40|07|06","Transport","Public Transport","Public Transport Network Development"]
[null,null,null,null,null,40,16,1,"40","16","01","40|16|01","Transport","Direct charge against the National Revenue Fund","International Oil Pollution Compensation Funds"]
[null,null,null,null,null,41,1,1,"41","01","01","41|01|01","Water and Sanitation","Administration","Ministry"]
[null,null,null,null,null,41,1,2,"41","01","02","41|01|02","Water and Sanitation","Administration","Departmental Management"]
[null,null,null,null,null,41,1,3,"41","01","03","41|01|03","Water and Sanitation","Administration","Corporate Services"]
[null,null,null,null,null,41,1,4,"41","01","04","41|01|04","Water and Sanitation","Administration","Financial Management"]
[null,null,null,null,null,41,1,5,"41","01","05","41|01|05","Water and Sanitation","Administration","Office Accommodation"]
[null,null,null,null,null,41,1,6,"41","01","06","41|01|06","Water and Sanitation","Administration","Provincial and International Coordination"]
[null,null,null,null,null,41,2,1,"41","02","01","41|02|01","Water and Sanitation","Water Resources Management","Water Resources Management Support"]
[null,null,null,null,null,41,2,2,"41","02","02","41|02|02","Water and Sanitation","Water Resources Management","Integrated Water Resources Planning"]
[null,null,null,null,null,41,2,3,"41","02","03","41|02|03","Water and Sanitation","Water Resources Management","Water Ecosystems Management"]
[null,null,null,null,null,41,2,4,"41","02","04","41|02|04","Water and Sanitation","Water Resources Management","Water Resources Information and Management"]
[null,null,null,null,null,41,2,5,"41","02","05","41|02|05","Water and Sanitation","Water Resources Management","Water Resources Infrastructure Management"]
[null,null,null,null,null,41,2,6,"41","02","06","41|02|06","Water and Sanitation","Water Resources Management","Water Resources Policy and Strategy"]
[null,null,null,null,null,41,2,7,"41","02","07","41|02|07","Water and Sanitation","Water Resources Management","Water Resources Regulation"]
[null,null,null,null,null,41,2,8,"41","02","08","41|02|08","Water and Sanitation","Water Resources Management","Water Resources Institutional Oversight"]
[null,null,null,null,null,41,3,1,"41","03","01","41|03|01","Water and Sanitation","Water Services Management","Water Services Management Support"]
[null,null,null,null,null,41,3,2,"41","03","02","41|03|02","Water and Sanitation","Water Services Management","Water Services and Local Management"]
[null,null,null,null,null,41,3,3,"41","03","03","41|03|03","Water and Sanitation","Water Services Management","Regional Bulk Infrastructure Grant"]
[null,null,null,null,null,41,3,4,"41","03","04","41|03|04","Water and Sanitation","Water Services Management","Water Services Regulation"]
[null,null,null,null,null,41,3,5,"41","03","05","41|03|05","Water and Sanitation","Water Services Management","Water Services Policy and Strategy"]
[null,null,null,null,null,41,3,6,"41","03","06","41|03|06","Water and Sanitation","Water Services Management","Water Services Infrastructure Grant"]
[null,null,null,null,null,41,3,7,"41","03","07","41|03|07","Water and Sanitation","Water Services Management","Water Services Institutional Oversight"]
[null,null,null,null,null,42,1,1,"42","01","01","42|01|01","Centre for Public Service Innovation","Administration","Executive Support"]
[null,null,null,null,null,42,1,2,"42","01","02","42|01|02","Centre for Public Service Innovation","Administration","Corporate Services"]
[null,null,null,null,null,42,1,3,"42","01","03","42|01|03","Centre for Public Service Innovation","Administration","Office of the Chief Financial Officer"]
[null,null,null,null,null,42,2,1,"42","02","01","42|02|01","Centre for Public Service Innovation","Public Sector Innovation","Research and Development"]
[null,null,null,null,null,42,2,2,"42","02","02","42|02|02","Centre for Public Service Innovation","Public Sector Innovation","Institutional Support and Replication"]
[null,null,null,null,null,42,2,3,"42","02","03","42|02|03","Centre for Public Service Innovation","Public Sector Innovation","Enabling Environment and Stakeholder Management"]
[null,null,null,null,null,50,0,0,"50","01","01","50|01|01","Below the line items","Contingency reserve","Contingency reserve"]
[null,null,null,null,null,50,0,0,"50","02","01","50|02|01","Below the line items","Provisional allocation","Provisional allocation"]
[null,null,null,null,null,50,0,0,"50","03","01","50|03|01","Below the line items","Provisional allocation","Provisional allocation"]
[null,null,null,null,null,50,0,0,"50","04","01","50|04|01","Below the line items","Provisional allocation","Provisional allocation"]
[null,null,null,null,null,50,0,0,"50","05","01","50|05|01","Below the line items","Provisional allocation","Provisional allocation"]
[null,null,null,null,null,50,0,0,"50","06","01","50|06|01","Below the line items","Provisional allocation","Provisional allocation"]
[null,null,null,null,null,50,0,0,"50","07","01","50|07|01","Below the line items","Provisional allocation","Provisional allocation"]
[null,null,null,null,null,50,0,0,"50","08","01","50|08|01","Below the line items","Provisional allocation","Provisional allocation"]
[null,null,null,null,null,50,0,0,"50","10","01","50|10|01","Below the line items","Provisional allocation","Provisional allocation"]
[null,null,null,null,null,50,0,0,"50","11","01","50|11|01","Below the line items","Provisional allocation","Provisional allocation"]
[null,null,null,null,null,50,0,0,"50","12","01","50|12|01","Below the line items","Provisional allocation","Provisional allocation"]
[null,null,null,null,null,50,0,0,"50","13","01","50|13|01","Below the line items","Provisional allocation","Provisional allocation"]
[null,null,null,null,null,50,0,0,"50","14","01","50|14|01","Below the line items","Provisional allocation","Provisional allocation"]
[null,null,null,null,null,50,0,0,"50","16","01","50|16|01","Below the line items","Unallocated reserve","Unallocated reserve"]